{"text_format":"1","workbook":"xlsx","n_sheets":19,"sheets":["Introduction","User Guide","Options","Results","Evidence","SHEETS TO BE HIDDEN ->","Calculations","Inequalities","Health outcome totals 2016","Lists","Demographic data","Prevalence Rates","Population 2016","Population at Risk","Pop2016fraction","Pop2016fractionQ1","Pop2016fractionQ1&2","PARfraction","Targeting"],"not_rendered":{"charts":0,"images":4,"macros":1,"external_links":0,"defined_names":2,"comments":0,"pivot_tables":0},"unopened":[],"bounds":{"document_bytes":16777216,"sheet_cells":100000,"rows_first":2000,"rows_last":500,"rows_between":2000,"halvings":0,"cell_chars":16384,"cell_head_chars":4096},"cells_cut":0,"cells_raw":0,"read":"whole","date_system":"1900"}

{"sheet":"Introduction","index":0,"n_rows":51,"n_cols":10,"rows_kept":51,"cut":false,"hidden":false,"merged":[]}
[]
[null,"Informing Interventions to reduce health Inequalities ('Triple I'):"]
[null,"Smoking Cessation Services"]
[]
[]
[]
[null,"Informing Interventions to reduce health Inequalities ('Triple I') is a collaboration between NHS Health Scotland and the Scottish Public Health Observatory (ScotPHO)."]
[null,"Triple I provides national and local decision makers with practical tools and interpreted results about investing in interventions to reduce health inequalities in Scotland. "]
[null,"It does this by modelling the potential impact of different interventions and policies on overall population health and health inequalities."]
[null,"This tool is part of a set of 9 spreadsheets and associated documentation, produced as an update and extension of our 2014 Triple I work.  "]
[null,"Data and evidence have been updated where applicable, new interventions have been included, and presentation of the results has been improved.  "]
[null,"The tool can be used to produce detailed results for different geographies (Scotland, Local Authorities, Health Boards, City Regions, or Integrated Joint Boards)."]
[null,"Results are provided for three health outcomes: premature mortality, years of life lost, and hospital stays.  "]
[]
[null,"The interventions:"]
[null,"The interventions were chosen based on the highest quality and most generalisable evidence linking them to changes in all-cause mortality and hospital admissions."]
[null,"The topics addressed by the interventions span the determinants of health (including ‘upstream’, ‘downstream’, individual-level and population-wide)."]
[null,"There are 9 Triple I spreadsheet tools (corresponding to the topic areas below)."]
[]
[null,null,"Individual-level interventions: ",null,null,null,null,"Population-wide interventions:"]
[null,null,"(N.B. modelled as being implemented in year 1 only)",null,null,null,null,"(N.B. permanent: modelled as remaining "]
[null,null,"Topic","Intervention(s) ",null,null,null,"in place after implementation in year 1)"]
[null,null,"Mental Health","Interventions for depression",null,null,null,"Topic",null,"Intervention(s) "]
[null,null,"Obesity","Weight management service",null,null,null,"Physical Environment",null,"20 mph speed limits "]
[null,null,"Physical inactivity","Physical activity interventions",null,null,null,"Smoking",null,"Tobacco taxation"]
[null,null,"Smoking","Smoking cessation",null,null,null,"Income",null,"Income-based policies"]
[null,null,"Alcohol consumption","Alcohol Brief Interventions (ABIs)"]
[null,null,"Unemployment","Job provision"]
[]
[null,"Pages in this spreadsheet tool:"]
[null,null,"Introduction",null,">>","Information about the Triple I project"]
[null,null,"User guide",null,">>","How to use this spreadsheet tool"]
[null,null,"Options",null,">>","Where users can change the model options, and see high-level results"]
[null,null,"Results",null,">>","Full results for the chosen model options"]
[null,null,"Evidence",null,">>","Summary of the evidence underpinning the model, and definitions of the policies/interventions"]
[]
[null,"Further information is available on the Triple I website:",null,null,null,null,"Triple I website"]
[null,null,"Interactive results browser",null,">>","An online interactive results browser for comparing different interventions (April 2019)"]
[null,null,"National Overview Report",null,">>","A summary report of the national-level findings (April 2019)"]
[null,null,"Technical Report",null,">>","Details of Triple I's methods and data sources (April 2019)"]
[null,null,"Frequently Asked Questions",null,">>","Answers to frequently-asked questions about Triple I (April 2019)"]
[null,null,"Income-based policies",null,">>","Report and Supplementary Information about the income-based policies work (October 2018)"]
[null,null,"nhs.triple.i@nhs.net",null,">>","Email us for more information."]
[]
[null,"Abbreviations used"]
[null,"IJB","Integrated Joint Board"]
[null,"LA","Local Authority"]
[null,"RII","Relative Index of Inequality"]
[null,"SII","Slope Index of Inequality"]
[null,"SIMD","Scottish Index of Multiple Deprivation"]
[null,"Q1 - Q5","Quintiles of the SIMD: Q1 contains the 20% most deprived areas, and Q5 contains the 20% least deprived areas."]

{"sheet":"User Guide","index":1,"n_rows":72,"n_cols":10,"rows_kept":72,"cut":false,"hidden":false,"merged":[]}
[]
[null,"User Guide"]
[]
[null,"Please note: Macros need to be enabled for the tools to work properly."]
[null,"How to do this in a recent version of Excel: File > Options > Trust Center > Trust Center Settings > Macro Settings > \"Enable all macros\""]
[null,"How to do this in an older version of Excel: Tools > Options > Security > Macro Security > \"Medium\""]
[]
[null,"Changing the intervention details:"]
[null,"You can interact with the Triple I model from the Options tab."]
[null,"Any changes made to the shaded cells (blue) on this tab will cause Excel to recalculate the model and present new results.   "]
[null,"Below are the options available (N.B. not every spreadsheet will have all of these options):"]
[]
[null,"Intervention:"]
[null,"Choose the intervention of interest (only relevant for tools covering more than one intervention: Mental health, Physical activity, and Income-based interventions)"]
[]
[null,"Area:"]
[null,"Choose the area to run the model for.  The available geographies are listed below. "]
[null,null,"1. Health Boards:",null,null,"The 14 territorial NHS health boards responsible for delivery of frontline healthcare services in Scotland (2014 boundaries). "]
[null,null,"2. Local Authorities:",null,null,"The 32 elected councils that provide a range of services to local people, including education and care.  "]
[null,null,null,null,null,"The Gaelic name of Eilean Siar is used for the local authority covering the Western Isles.  "]
[null,null,"3. Integrated Joint Boards:",null,null,"31 integration authorities were created by The Public Bodies (Joint Working) Act 2014, in order to integrate the health and "]
[null,null,null,null,null,"social care functions of health boards and local authorities.  These Integrated Joint Boards (IJBs) or Partnerships "]
[null,null,null,null,null,"correspond to local authority areas, with the exception of Clackmannanshire and Stirling IJB which combines two local "]
[null,null,null,null,null,"authorities.  The Gaelic name of Eilean Siar is used for the IJB covering the Western Isles.  "]
[null,null,"4. City Region Deals: ",null,null,"City Region Deals are agreements between the Scottish Government, the UK Government and local government."]
[null,null,null,null,null,"They have been designed to bring about long-term strategic approaches to improving regional economies.  "]
[null,null,null,null,null,"The following 6 city regions are included:"]
[]
[null,null,null,null,null,"City Region:",null,null,null,"Local Authorities (LAs) included: "]
[null,null,null,null,null,"Aberdeen City Region Deal",null,null,null,"Aberdeen and Aberdeenshire "]
[null,null,null,null,null,"Edinburgh & Southeast Scotland City Region Deal",null,null,null,"Edinburgh, Fife, East Lothian, Midlothian, West Lothian, Borders "]
[null,null,null,null,null,"Glasgow City Region Deal",null,null,null,"East Dunbartonshire, East Renfrewshire, Glasgow City, Inverclyde, "]
[null,null,null,null,null,null,null,null,null,"North Lanarkshire, Renfrewshire, South Lanarkshire, and West Dunbartonshire "]
[null,null,null,null,null,"Inverness & Highland City Region Deal",null,null,null,"Highland "]
[null,null,null,null,null,"Stirling and Clackmannanshire City Region Deal",null,null,null,"Stirling and Clackmannanshire "]
[null,null,null,null,null,"Tay Cities Region Deal ",null,null,null,"Dundee, Perth & Kinross, Angus, Fife "]
[]
[null,"Targeting strategy:"]
[null,"The strategy for delivering the individual-level* interventions can be altered by the user.  "]
[null,"*Interventions delivered to individuals: mental health, weight management, physical activity, smoking cessation, alcohol brief interventions, and job provision. "]
[null,"Four options are available:"]
[null,"·       Even distribution: treat the same proportion of the eligible population in each subgroup (i.e., age group, sex and SIMD 2016 quintile)."]
[null,"·       Proportionate to need: the proportion of each subgroup treated is proportionate to the subgroup's prevalence of the exposure (e.g., smoking or depression)."]
[null,"·       Most deprived 20% only**: treat only those in SIMD quintile 1 (even distribution within this quintile).    "]
[null,"·       Most deprived 40% only: treat only those in SIMD quintiles 1 and 2 (even distribution within these quintiles).  "]
[null,"**The Orkney Islands, Shetland Islands and the Western Isles do not have population in SIMD 2016 quintile 1, so targeting to quintile 1 will produce an error message."]
[]
[null,"Number to treat:"]
[null,"For individual-level interventions you can choose the number of people to be treated."]
[null,"·       For information the maximum number of people who are eligible to be treated will be calculated in the preceding cell."]
[null,"·       If a higher number is entered an error message will prevent the calculation from occurring."]
[null,"·       Be aware that the model will run and produce results if changes to another cell mean that the number of people then exceeds the new maximum number.  "]
[]
[null,"Number of years:"]
[null,"The interventions are delivered in year 1.  "]
[null,"Their effects can be modelled from year 2 (the first year of follow-up) to year 20."]
[null,"N.B. Individual-level interventions are delivered for a single year, while the population-level interventions are modelled as remaining in place after year 1. "]
[]
[null,"Viewing the results:"]
[null,"Options tab",null,"A summary of the results is shown on the Options tab."]
[null,"Results tab",null,"More detailed results are shown on the Results tab."]
[null,"Technical Report",null,"Further information about how the results are calculated, and how to interpret them, can be found in the Triple I Technical Report.  "]
[]
[null,"For advanced users: How to make more advanced changes to the model"]
[null,"The inner workings of the Triple I tools are described in the Technical Report.  We recommend you consult the report before making any advanced changes."]
[null,"The model data and calculations can be found in a number of 'hidden' tabs."]
[null,"These are hidden to simplify the spreadsheet for users.  "]
[null,"To see the hidden tabs, right-click on any tab, select 'Unhide', then select the tab you want to unhide. "]
[null,"The hidden tabs include population data, prevalence data, targeting calculations, and result calculations."]
[null,"VBA (Visual Basic for Applications) code has been written to create bespoke functions for the calculations.   "]
[null,"The code can be found from the Developer tab > Visual Basic."]
[null,"If the Developer tab is not shown in your version of Excel go to File > Options > Customize Ribbon and switch on the Developer tab (recent Excel versions only)."]

{"sheet":"Options","index":2,"n_rows":30,"n_cols":8,"rows_kept":30,"cut":false,"hidden":false,"merged":[]}
[]
[null,"Options for changing the model:",null,null,"Results summary:"]
[]
[null,"Change the shaded cells (blue) to recalculate.",null,null,"Check the Results tab for a detailed breakdown of the results"]
[null,"N.B. Results may take a few seconds to change.",null,null,"Results shown as cumulative difference from baseline over the follow-up period (% difference in brackets).  "]
[]
[null,"Intervention: (defined on Evidence tab)",null,null,"POLICY IMPACT ON HEALTH*","Whole population","SIMD Q1 & Q2","SIMD Q1"]
[null,"Smoking cessation services",null,null,"Hospital stays prevented",{"$f":"CONCATENATE(FIXED(Results!E16,0),\" (\",FIXED(Results!F16,2),\"%)\")","v":"2,672 (0.23%)"},{"$f":"CONCATENATE(FIXED(Results!E17,0),\" (\",FIXED(Results!F17,2),\"%)\")","v":"1,224 (0.23%)"},{"$f":"IF(OR(Calculations!$E$2=\"Orkney Health Board\",Calculations!$E$2=\"Orkney Islands Local Authority\",Calculations!$E$2=\"Shetland Health Board\",Calculations!$E$2=\"Western Isles Health Board\",Calculations!$E$2=\"Shetland Islands Local Authority\",Calculations!$E$2=\"Eilean Siar Local Authority\"),\"N/A\", CONCATENATE(FIXED(Results!E18,0),\" (\",FIXED(Results!F18,2),\"%)\"))","v":"640 (0.22%)"}]
[null,null,null,null,"Premature deaths prevented",{"$f":"CONCATENATE(FIXED(Results!E20,0),\" (\",FIXED(Results!F20,2),\"%)\")","v":"76 (0.35%)"},{"$f":"CONCATENATE(FIXED(Results!E21,0),\" (\",FIXED(Results!F21,2),\"%)\")","v":"38 (0.33%)"},{"$f":"IF(OR(Calculations!$E$2=\"Orkney Health Board\",Calculations!$E$2=\"Orkney Islands Local Authority\",Calculations!$E$2=\"Shetland Health Board\",Calculations!$E$2=\"Western Isles Health Board\",Calculations!$E$2=\"Shetland Islands Local Authority\",Calculations!$E$2=\"Eilean Siar Local Authority\"),\"N/A\", CONCATENATE(FIXED(Results!E22,0),\" (\",FIXED(Results!F22,2),\"%)\"))","v":"21 (0.32%)"}]
[null,"Choose the area to run the model for:",null,null,"Years of life saved",{"$f":"CONCATENATE(FIXED(Results!E24,0),\" (\",FIXED(Results!F24,2),\"%)\")","v":"2,132 (0.36%)"},{"$f":"CONCATENATE(FIXED(Results!E25,0),\" (\",FIXED(Results!F25,2),\"%)\")","v":"1,078 (0.34%)"},{"$f":"IF(OR(Calculations!$E$2=\"Orkney Health Board\",Calculations!$E$2=\"Orkney Islands Local Authority\",Calculations!$E$2=\"Shetland Health Board\",Calculations!$E$2=\"Western Isles Health Board\",Calculations!$E$2=\"Shetland Islands Local Authority\",Calculations!$E$2=\"Eilean Siar Local Authority\"),\"N/A\", CONCATENATE(FIXED(Results!E26,0),\" (\",FIXED(Results!F26,2),\"%)\"))","v":"590 (0.33%)"}]
[null,"Scotland",null,null,"*N.B. a positive figure indicates an improvement in health outcomes."]
[]
[null,"Choose the targeting strategy:",null,null,"POLICY IMPACT ON HEALTH INEQUALITIES**"]
[null,"Even distribution",null,null,"Gap between most and least deprived","Absolute","Relative"]
[null,null,null,null,"Hospital stays",{"$f":"CONCATENATE(FIXED(Results!E29,0),\" (\",FIXED(Results!F29,3),\"%)\")","v":"-25 (-0.188%)"},{"$f":"CONCATENATE(FIXED(Results!E33,4),\" (\",FIXED(Results!F33,3),\"%)\")","v":"0.0005 (0.025%)"}]
[null,"Max no. people available to be treated:",null,null,"Premature deaths",{"$f":"CONCATENATE(FIXED(Results!E30,0),\" (\",FIXED(Results!F30,3),\"%)\")","v":"-1 (-0.283%)"},{"$f":"CONCATENATE(FIXED(Results!E34,4),\" (\",FIXED(Results!F34,3),\"%)\")","v":"0.0021 (0.069%)"}]
[null,{"$f":"ROUNDDOWN(IF(OR($B$14=\"Even distribution\",$B$14=\"Proportionate to need\"),HLOOKUP(Calculations!$E$2,'Population at Risk'!$C$3:$BC$257,'Population at Risk'!BD255,FALSE),IF($B$14=\"Targeting to SIMD Q1\",HLOOKUP(Calculations!$E$2,'Population at Risk'!$C$3:$BC$257,'Population at Risk'!BD256,FALSE),IF($B$14=\"Targeting to SIMD Q1 & Q2\",HLOOKUP(Calculations!$E$2,'Population at Risk'!$C$3:$BC$257,'Population at Risk'!BD257,FALSE),\"error\"))),0)","v":691607},null,null,"Years of life lost",{"$f":"CONCATENATE(FIXED(Results!E31,0),\" (\",FIXED(Results!F31,3),\"%)\")","v":"-36 (-0.291%)"},{"$f":"CONCATENATE(FIXED(Results!E35,4),\" (\",FIXED(Results!F35,3),\"%)\")","v":"0.0020 (0.067%)"}]
[null,null,null,null,"Population-wide inequalities slope","Absolute (SII)","Relative (RII)"]
[null,"Choose the number of people to treat:",null,null,"Hospital stays",{"$f":"CONCATENATE(FIXED(Results!E37,0),\" (\",FIXED(Results!F37,3),\"%)\")","v":"-30 (-0.189%)"},{"$f":"CONCATENATE(FIXED(Results!E41,4),\" (\",FIXED(Results!F41,3),\"%)\")","v":"0.0003 (0.042%)"}]
[null,"(in addition to current number treated)",null,null,"Premature deaths",{"$f":"CONCATENATE(FIXED(Results!E38,0),\" (\",FIXED(Results!F38,3),\"%)\")","v":"-2 (-0.283%)"},{"$f":"CONCATENATE(FIXED(Results!E42,4),\" (\",FIXED(Results!F42,3),\"%)\")","v":"0.0008 (0.063%)"}]
[null,691607,null,null,"Years of life lost",{"$f":"CONCATENATE(FIXED(Results!E39,0),\" (\",FIXED(Results!F39,3),\"%)\")","v":"-43 (-0.291%)"},{"$f":"CONCATENATE(FIXED(Results!E43,4),\" (\",FIXED(Results!F43,3),\"%)\")","v":"0.0008 (0.061%)"}]
[null,{"$f":"IF(AND(OR(Calculations!$E$2=\"Orkney Health Board\",Calculations!$E$2=\"Orkney Islands Local Authority\",Calculations!$E$2=\"Shetland Health Board\",Calculations!$E$2=\"Western Isles Health Board\",Calculations!$E$2=\"Shetland Islands Local Authority\",Calculations!$E$2=\"Eilean Siar Local Authority\"),B14=\"Targeting to SIMD Q1\"),\"Error: No Q1 population for this area\", IF(B21>B17,\"Too high: please check and re-enter\",\"\"))","v":""},null,null,"**N.B. Based on rates per 100,000.  A negative figure indicates reduced inequalities / narrowing of the gap."]
[null,"Calculate health impact after this many years:"]
[null,2,null,null,"SELECTED COSTS AND SAVINGS***",null,"£"]
[null,null,null,null,"Direct financial cost of the intervention (£):",null,{"$f":"Results!D50","v":71927128}]
[null,null,null,null,"Direct financial savings from reduced hospitalisations (£):"]
[null,null,null,null,null,"Whole population",{"$f":"CONCATENATE(FIXED(Results!E54,0),\" (\",FIXED(Results!F54,3),\"%)\")","v":"6,711,169 (0.234%)"}]
[null,null,null,null,null,"SIMD Q1 & Q2",{"$f":"CONCATENATE(FIXED(Results!E55,0),\" (\",FIXED(Results!F55,3),\"%)\")","v":"3,074,021 (0.226%)"}]
[null,null,null,null,null,"SIMD Q1",{"$f":"IF(OR(Calculations!$E$2=\"Orkney Health Board\",Calculations!$E$2=\"Orkney Islands Local Authority\",Calculations!$E$2=\"Shetland Health Board\",Calculations!$E$2=\"Western Isles Health Board\",Calculations!$E$2=\"Shetland Islands Local Authority\",Calculations!$E$2=\"Eilean Siar Local Authority\"),\"N/A\", CONCATENATE(FIXED(Results!E56,0),\" (\",FIXED(Results!F56,3),\"%)\"))","v":"1,606,655 (0.222%)"}]
[null,null,null,null,"***Costs/savings from changes to other health outcomes and to health inequalities have not been estimated."]

{"sheet":"Results","index":3,"n_rows":59,"n_cols":8,"rows_kept":59,"cut":false,"hidden":false,"merged":[]}
[]
[null,"Detailed results for intervention:",null,{"$f":"Options!B8","v":"Smoking cessation services"}]
[]
[null,"Area of interest:",{"$f":"Options!B11","v":"Scotland"},"Targeting strategy:",{"$f":"Options!B14","v":"Even distribution"}]
[null,"Age group:","16+ years","Additional people to be treated:",{"$f":"Options!B21","v":691607}]
[null,"Baseline year (prevalence and population data):",2016,"Health impact calculated after:",{"$f":"CONCATENATE(Options!B24,\" years\")","v":"2 years"}]
[]
[null,"Baseline situation (2016):","No. smokers","No. available for intervention","No. all-cause hospital stays","No. all-cause deaths","No. premature all-cause deaths","Years of life lost (all causes)"]
[null,"Whole population",{"$f":"HLOOKUP(Calculations!$E$2,'Population at Risk'!$C$3:$BC$257,'Population at Risk'!BD251,FALSE)","v":990842.21130000008},{"$f":"ROUNDDOWN(HLOOKUP(Calculations!$E$2,'Population at Risk'!$C$3:$BC$257,'Population at Risk'!BD255,FALSE),0)","v":691607},{"$f":"HLOOKUP(Calculations!$E$2,'Health outcome totals 2016'!$C$3:$BC$17,'Health outcome totals 2016'!$BD6,FALSE)","v":1125093},{"$f":"HLOOKUP(Calculations!$E$2,'Health outcome totals 2016'!$C$3:$BC$17,'Health outcome totals 2016'!$BD9,FALSE)","v":56725},{"$f":"HLOOKUP(Calculations!$E$2,'Health outcome totals 2016'!$C$3:$BC$17,'Health outcome totals 2016'!$BD12,FALSE)","v":21313},{"$f":"HLOOKUP(Calculations!$E$2,'Health outcome totals 2016'!$C$3:$BC$17,'Health outcome totals 2016'!$BD15,FALSE)","v":708624.04837918223}]
[null,"Most deprived 40% (Q1 & Q2)",{"$f":"HLOOKUP(Calculations!$E$2,'Population at Risk'!$C$3:$BC$257,'Population at Risk'!BD253,FALSE)","v":561679.87490000005},{"$f":"ROUNDDOWN(HLOOKUP(Calculations!$E$2,'Population at Risk'!$C$3:$BC$257,'Population at Risk'!BD257,FALSE),0)","v":392052},{"$f":"HLOOKUP(Calculations!$E$2,'Health outcome totals 2016'!$C$3:$BC$17,'Health outcome totals 2016'!$BD8,FALSE)","v":534382},{"$f":"HLOOKUP(Calculations!$E$2,'Health outcome totals 2016'!$C$3:$BC$17,'Health outcome totals 2016'!$BD11,FALSE)","v":26567},{"$f":"HLOOKUP(Calculations!$E$2,'Health outcome totals 2016'!$C$3:$BC$17,'Health outcome totals 2016'!$BD14,FALSE)","v":11618},{"$f":"HLOOKUP(Calculations!$E$2,'Health outcome totals 2016'!$C$3:$BC$17,'Health outcome totals 2016'!$BD17,FALSE)","v":372328.97050476068}]
[null,"Most deprived 20% (Q1)",{"$f":"IF(OR(Calculations!$E$2=\"Orkney Health Board\",Calculations!$E$2=\"Orkney Islands Local Authority\",Calculations!$E$2=\"Shetland Health Board\",Calculations!$E$2=\"Western Isles Health Board\",Calculations!$E$2=\"Shetland Islands Local Authority\",Calculations!$E$2=\"Eilean Siar Local Authority\"),\"N/A\", HLOOKUP(Calculations!$E$2,'Population at Risk'!$C$3:$BC$257,'Population at Risk'!BD252,FALSE))","v":316301.97120000003},{"$f":"IF(OR(Calculations!$E$2=\"Orkney Health Board\",Calculations!$E$2=\"Orkney Islands Local Authority\",Calculations!$E$2=\"Shetland Health Board\",Calculations!$E$2=\"Western Isles Health Board\",Calculations!$E$2=\"Shetland Islands Local Authority\",Calculations!$E$2=\"Eilean Siar Local Authority\"),\"N/A\", ROUNDDOWN(HLOOKUP(Calculations!$E$2,'Population at Risk'!$C$3:$BC$257,'Population at Risk'!BD256,FALSE),0))","v":220778},{"$f":"IF(OR(Calculations!$E$2=\"Orkney Health Board\",Calculations!$E$2=\"Orkney Islands Local Authority\",Calculations!$E$2=\"Shetland Health Board\",Calculations!$E$2=\"Western Isles Health Board\",Calculations!$E$2=\"Shetland Islands Local Authority\",Calculations!$E$2=\"Eilean Siar Local Authority\"),\"N/A\", HLOOKUP(Calculations!$E$2,'Health outcome totals 2016'!$C$3:$BC$17,'Health outcome totals 2016'!$BD7,FALSE))","v":283718},{"$f":"IF(OR(Calculations!$E$2=\"Orkney Health Board\",Calculations!$E$2=\"Orkney Islands Local Authority\",Calculations!$E$2=\"Shetland Health Board\",Calculations!$E$2=\"Western Isles Health Board\",Calculations!$E$2=\"Shetland Islands Local Authority\",Calculations!$E$2=\"Eilean Siar Local Authority\"),\"N/A\", HLOOKUP(Calculations!$E$2,'Health outcome totals 2016'!$C$3:$BC$17,'Health outcome totals 2016'!$BD10,FALSE))","v":13665},{"$f":"IF(OR(Calculations!$E$2=\"Orkney Health Board\",Calculations!$E$2=\"Orkney Islands Local Authority\",Calculations!$E$2=\"Shetland Health Board\",Calculations!$E$2=\"Western Isles Health Board\",Calculations!$E$2=\"Shetland Islands Local Authority\",Calculations!$E$2=\"Eilean Siar Local Authority\"),\"N/A\", HLOOKUP(Calculations!$E$2,'Health outcome totals 2016'!$C$3:$BC$17,'Health outcome totals 2016'!$BD13,FALSE))","v":6443},{"$f":"IF(OR(Calculations!$E$2=\"Orkney Health Board\",Calculations!$E$2=\"Orkney Islands Local Authority\",Calculations!$E$2=\"Shetland Health Board\",Calculations!$E$2=\"Western Isles Health Board\",Calculations!$E$2=\"Shetland Islands Local Authority\",Calculations!$E$2=\"Eilean Siar Local Authority\"),\"N/A\", HLOOKUP(Calculations!$E$2,'Health outcome totals 2016'!$C$3:$BC$17,'Health outcome totals 2016'!$BD16,FALSE))","v":203545.71069335938}]
[]
[null,"Health impact","Without intervention","With intervention","Difference","Difference","Interpretation"]
[null,"HEALTH OUTCOMES","n","n","n","%"]
[null,"Hospital stays",null,null,null,"% prevented"]
[null,"Whole population",{"$f":"Calculations!O5","v":1143855.727350824},{"$f":"Calculations!P5","v":1141184.0834490557},{"$f":"C16-D16","v":2671.6439017683733},{"$f":"E16*100/C16","v":0.23356476152424527},"Hospital stays prevented"]
[null,"Q1 & Q2",{"$f":"Calculations!O6","v":542278.73076819046},{"$f":"Calculations!P6","v":541054.99630422448},{"$f":"C17-D17","v":1223.7344639659859},{"$f":"E17*100/C17","v":0.22566521505139014},"(N.B. positive difference = "]
[null,"Q1",{"$f":"IF(OR(Calculations!$E$2=\"Orkney Health Board\",Calculations!$E$2=\"Orkney Islands Local Authority\",Calculations!$E$2=\"Shetland Health Board\",Calculations!$E$2=\"Western Isles Health Board\",Calculations!$E$2=\"Shetland Islands Local Authority\",Calculations!$E$2=\"Eilean Siar Local Authority\"),\"N/A\", Calculations!O7)","v":288715.84006160521},{"$f":"IF(OR(Calculations!$E$2=\"Orkney Health Board\",Calculations!$E$2=\"Orkney Islands Local Authority\",Calculations!$E$2=\"Shetland Health Board\",Calculations!$E$2=\"Western Isles Health Board\",Calculations!$E$2=\"Shetland Islands Local Authority\",Calculations!$E$2=\"Eilean Siar Local Authority\"),\"N/A\", Calculations!P7)","v":288076.24804437422},{"$f":"IF(OR(Calculations!$E$2=\"Orkney Health Board\",Calculations!$E$2=\"Orkney Islands Local Authority\",Calculations!$E$2=\"Shetland Health Board\",Calculations!$E$2=\"Western Isles Health Board\",Calculations!$E$2=\"Shetland Islands Local Authority\",Calculations!$E$2=\"Eilean Siar Local Authority\"),\"N/A\", C18-D18)","v":639.59201723098522},{"$f":"IF(OR(Calculations!$E$2=\"Orkney Health Board\",Calculations!$E$2=\"Orkney Islands Local Authority\",Calculations!$E$2=\"Shetland Health Board\",Calculations!$E$2=\"Western Isles Health Board\",Calculations!$E$2=\"Shetland Islands Local Authority\",Calculations!$E$2=\"Eilean Siar Local Authority\"),\"N/A\", E18*100/C18)","v":0.22152993652669395},"fewer stays)"]
[null,"Premature deaths (<75 years)",null,null,null,"% prevented"]
[null,"Whole population",{"$f":"Calculations!Q5","v":21611.413127534201},{"$f":"Calculations!R5","v":21535.831874191801},{"$f":"C20-D20","v":75.581253342399577},{"$f":"E20*100/C20","v":0.34972841848136554},"Premature deaths prevented"]
[null,"Q1 & Q2",{"$f":"Calculations!Q6","v":11396.364678034401},{"$f":"Calculations!R6","v":11358.771367535399},{"$f":"C21-D21","v":37.593310499001745},{"$f":"E21*100/C21","v":0.32987107346134598},"(N.B. positive difference = "]
[null,"Q1",{"$f":"IF(OR(Calculations!$E$2=\"Orkney Health Board\",Calculations!$E$2=\"Orkney Islands Local Authority\",Calculations!$E$2=\"Shetland Health Board\",Calculations!$E$2=\"Western Isles Health Board\",Calculations!$E$2=\"Shetland Islands Local Authority\",Calculations!$E$2=\"Eilean Siar Local Authority\"),\"N/A\", Calculations!Q7)","v":6418.2032144008008},{"$f":"IF(OR(Calculations!$E$2=\"Orkney Health Board\",Calculations!$E$2=\"Orkney Islands Local Authority\",Calculations!$E$2=\"Shetland Health Board\",Calculations!$E$2=\"Western Isles Health Board\",Calculations!$E$2=\"Shetland Islands Local Authority\",Calculations!$E$2=\"Eilean Siar Local Authority\"),\"N/A\", Calculations!R7)","v":6397.6752406512996},{"$f":"IF(OR(Calculations!$E$2=\"Orkney Health Board\",Calculations!$E$2=\"Orkney Islands Local Authority\",Calculations!$E$2=\"Shetland Health Board\",Calculations!$E$2=\"Western Isles Health Board\",Calculations!$E$2=\"Shetland Islands Local Authority\",Calculations!$E$2=\"Eilean Siar Local Authority\"),\"N/A\", C22-D22)","v":20.527973749501143},{"$f":"IF(OR(Calculations!$E$2=\"Orkney Health Board\",Calculations!$E$2=\"Orkney Islands Local Authority\",Calculations!$E$2=\"Shetland Health Board\",Calculations!$E$2=\"Western Isles Health Board\",Calculations!$E$2=\"Shetland Islands Local Authority\",Calculations!$E$2=\"Eilean Siar Local Authority\"),\"N/A\", E22*100/C22)","v":0.31983988452471618},"fewer premature deaths)"]
[null,"Years of life lost",null,null,null,"% saved"]
[null,"Whole population",{"$f":"Calculations!M5","v":595251.88027269009},{"$f":"Calculations!N5","v":593120.32747584442},{"$f":"C24-D24","v":2131.5527968456736},{"$f":"E24*100/C24","v":0.35809257685489221},"Years of life saved"]
[null,"Q1 & Q2",{"$f":"Calculations!M6","v":317747.90651440376},{"$f":"Calculations!N6","v":316669.47565540485},{"$f":"C25-D25","v":1078.4308589989087},{"$f":"E25*100/C25","v":0.33939825782928407},"(N.B. positive difference ="]
[null,"Q1",{"$f":"IF(OR(Calculations!$E$2=\"Orkney Health Board\",Calculations!$E$2=\"Orkney Islands Local Authority\",Calculations!$E$2=\"Shetland Health Board\",Calculations!$E$2=\"Western Isles Health Board\",Calculations!$E$2=\"Shetland Islands Local Authority\",Calculations!$E$2=\"Eilean Siar Local Authority\"),\"N/A\", Calculations!M7)","v":179391.53956481616},{"$f":"IF(OR(Calculations!$E$2=\"Orkney Health Board\",Calculations!$E$2=\"Orkney Islands Local Authority\",Calculations!$E$2=\"Shetland Health Board\",Calculations!$E$2=\"Western Isles Health Board\",Calculations!$E$2=\"Shetland Islands Local Authority\",Calculations!$E$2=\"Eilean Siar Local Authority\"),\"N/A\", Calculations!N7)","v":178801.2981292278},{"$f":"IF(OR(Calculations!$E$2=\"Orkney Health Board\",Calculations!$E$2=\"Orkney Islands Local Authority\",Calculations!$E$2=\"Shetland Health Board\",Calculations!$E$2=\"Western Isles Health Board\",Calculations!$E$2=\"Shetland Islands Local Authority\",Calculations!$E$2=\"Eilean Siar Local Authority\"),\"N/A\", C26-D26)","v":590.24143558836658},{"$f":"IF(OR(Calculations!$E$2=\"Orkney Health Board\",Calculations!$E$2=\"Orkney Islands Local Authority\",Calculations!$E$2=\"Shetland Health Board\",Calculations!$E$2=\"Western Isles Health Board\",Calculations!$E$2=\"Shetland Islands Local Authority\",Calculations!$E$2=\"Eilean Siar Local Authority\"),\"N/A\", E26*100/C26)","v":0.32902412065821296},"years of life saved)"]
[null,"HEALTH INEQUALITIES ","rate*","rate*","rate*","%"]
[null,"Absolute gap (Q1 minus Q5**)",null,null,null,"% increase"]
[null,"Hospital stays",{"$f":"Inequalities!H17","v":13347.326196375001},{"$f":"Inequalities!J17","v":13322.177411767387},{"$f":"D29-C29","v":-25.148784607614289},{"$f":"E29*100/C29","v":-0.18841814635836535},"Change in the absolute gap"]
[null,"Premature deaths",{"$f":"Inequalities!N17","v":452.85972769368129},{"$f":"Inequalities!P17","v":451.57764576749537},{"$f":"D30-C30","v":-1.2820819261859242},{"$f":"E30*100/C30","v":-0.28310795767053432},"(N.B. negative = narrower gap)"]
[null,"YLL",{"$f":"Inequalities!T17","v":12467.788608299079},{"$f":"Inequalities!V17","v":12431.481245125997},{"$f":"D31-C31","v":-36.307363173082194},{"$f":"E31*100/C31","v":-0.29120932599799215}]
[null,"Relative gap Q1 to Q5**",null,null,null,"% increase"]
[null,"Hospital stays",{"$f":"Inequalities!H18","v":1.8136171707492037},{"$f":"Inequalities!J18","v":1.8140686232289018},{"$f":"D33-C33","v":4.514524796981334E-4},{"$f":"E33*100/C33","v":2.4892380099800156E-2},"Change in the relative gap"]
[null,"Premature deaths",{"$f":"Inequalities!N18","v":3.0021460268931137},{"$f":"Inequalities!P18","v":3.0042324021446749},{"$f":"D34-C34","v":2.08637525156119E-3},{"$f":"E34*100/C34","v":6.9496128198679119E-2},"(N.B. negative = narrower gap)"]
[null,"YLL",{"$f":"Inequalities!T18","v":2.9890503101685257},{"$f":"Inequalities!V18","v":2.9910553882295603},{"$f":"D35-C35","v":2.0050780610345598E-3},{"$f":"E35*100/C35","v":6.7080773254750314E-2}]
[null,"Slope Index of Inequality (SII)",null,null,null,"% increase"]
[null,"Hospital stays",{"$f":"Inequalities!H15","v":16090.340555944245},{"$f":"Inequalities!J15","v":16059.96280322852},{"$f":"D37-C37","v":-30.377752715725364},{"$f":"E37*100/C37","v":-0.18879496434587847},"Change in absolute inequalities"]
[null,"Premature deaths",{"$f":"Inequalities!N15","v":533.46848173714238},{"$f":"Inequalities!P15","v":531.95927060593908},{"$f":"D38-C38","v":-1.5092111312033012},{"$f":"E38*100/C38","v":-0.28290539795131509},"(N.B. negative = decreased inequalities)"]
[null,"YLL",{"$f":"Inequalities!T15","v":14690.304517187824},{"$f":"Inequalities!V15","v":14647.487628684054},{"$f":"D39-C39","v":-42.816888503770315},{"$f":"E39*100/C39","v":-0.29146358711403203}]
[null,"Relative Index of Inequality (RII)",null,null,null,"% increase"]
[null,"Hospital stays",{"$f":"Inequalities!H16","v":0.73338952625810161},{"$f":"Inequalities!J16","v":0.73369750652968824},{"$f":"D41-C41","v":3.0798027158662755E-4},{"$f":"E41*100/C41","v":4.1994091892476812E-2},"Change in relative inequalities"]
[null,"Premature deaths",{"$f":"Inequalities!N16","v":1.2849380037542335},{"$f":"Inequalities!P16","v":1.285750209610292},{"$f":"D42-C42","v":8.1220585605845663E-4},{"$f":"E42*100/C42","v":6.3209731028688987E-2},"(N.B. negative = decreased inequalities)"]
[null,"YLL",{"$f":"Inequalities!T16","v":1.2798286153286231},{"$f":"Inequalities!V16","v":1.2806137300159517},{"$f":"D43-C43","v":7.851146873285586E-4},{"$f":"E43*100/C43","v":6.1345298731812131E-2}]
[]
[null,"* European age-standardised rate per 100,000"]
[null,"** or the most and least deprived quintiles in the area"]
[]
[null,"Economic impact","Without intervention","With intervention","Difference","Difference","Interpretation"]
[null,null,"£","£","£"]
[null,"Direct financial cost:",0,{"$f":"Evidence!D165*Results!E5","v":71927128},{"$f":"D50-C50","v":71927128},null,"Positive difference = net cost incurred"]
[]
[null,"Direct financial savings:","£","£","£","% saved"]
[null,"Hospital stays"]
[null,"Whole population",{"$f":"Evidence!$D$173*Results!C16","v":2873365587.1052699},{"$f":"Evidence!$D$173*Results!D16","v":2866654417.6240277},{"$f":"C54-D54","v":6711169.4812421799},{"$f":"E54*100/C54","v":0.23356476152424618},"Reduction in hospital stay costs"]
[null,"Q1 & Q2",{"$f":"Evidence!$D$173*Results!C17","v":1362204171.6896944},{"$f":"Evidence!$D$173*Results!D17","v":1359130150.7162118},{"$f":"C55-D55","v":3074020.9734826088},{"$f":"E55*100/C55","v":0.22566521505139397},"(N.B. positive difference = "]
[null,"Q1",{"$f":"IF(OR(Calculations!$E$2=\"Orkney Health Board\",Calculations!$E$2=\"Orkney Islands Local Authority\",Calculations!$E$2=\"Shetland Health Board\",Calculations!$E$2=\"Western Isles Health Board\",Calculations!$E$2=\"Shetland Islands Local Authority\",Calculations!$E$2=\"Eilean Siar Local Authority\"),\"N/A\", Evidence!$D$173*Results!C18)","v":725254190.2347523},{"$f":"IF(OR(Calculations!$E$2=\"Orkney Health Board\",Calculations!$E$2=\"Orkney Islands Local Authority\",Calculations!$E$2=\"Shetland Health Board\",Calculations!$E$2=\"Western Isles Health Board\",Calculations!$E$2=\"Shetland Islands Local Authority\",Calculations!$E$2=\"Eilean Siar Local Authority\"),\"N/A\", Evidence!$D$173*Results!D18)","v":723647535.08746803},{"$f":"IF(OR(Calculations!$E$2=\"Orkney Health Board\",Calculations!$E$2=\"Orkney Islands Local Authority\",Calculations!$E$2=\"Shetland Health Board\",Calculations!$E$2=\"Western Isles Health Board\",Calculations!$E$2=\"Shetland Islands Local Authority\",Calculations!$E$2=\"Eilean Siar Local Authority\"),\"N/A\", C56-D56)","v":1606655.1472842693},{"$f":"IF(OR(Calculations!$E$2=\"Orkney Health Board\",Calculations!$E$2=\"Orkney Islands Local Authority\",Calculations!$E$2=\"Shetland Health Board\",Calculations!$E$2=\"Western Isles Health Board\",Calculations!$E$2=\"Shetland Islands Local Authority\",Calculations!$E$2=\"Eilean Siar Local Authority\"),\"N/A\", E56*100/C56)","v":0.2215299365266987},"money saved)"]
[null,"Premature deaths (<75 years)",null,null,"Savings not estimated"]
[null,"Years of life lost",null,null,"Savings not estimated"]
[null,"Inequalities",null,null,"Savings not estimated"]

{"sheet":"Evidence","index":4,"n_rows":185,"n_cols":9,"rows_kept":185,"cut":false,"hidden":false,"merged":[]}
[]
[null,"The intervention"]
[]
[null,"The intervention to be modelled is the NHS Smoking cessation services (Scotland) program (NHS Health Scotland et al 2017):  "]
[null,"● Brief interventions – opportunistic advice, discussion, negotiation or encouragement, and referral to more intensive treatment where appropriate."]
[null,"● Specialist smoking services – NHS-supported services that provide an enhanced level of smoking cessation support from that provided through brief interventions, "]
[null,"   to particular standards, and are staffed by specialists or advisers who have undertaken nationally recognised training to the appropriate national standards. "]
[null,"These services provide intensive group and 1:1 support for a series of planned sessions throughout the quit attempt, in conjunction with pharmacotherapy, and "]
[null,"follow up the client beyond the quit date."]
[]
[null,"Exposure Rate Ratios (ERR): likelihood of outcomes for smokers compared to non-smokers"]
[]
[null,"Outcome","Sex","ERR (relative to non-smokers)","Source","Quoted/calculated?"]
[null,"All-cause hospitalisation","Men",1.48,"Lawder et al., 2007","Quoted "]
[null,null,"Women",1.55,"Lawder et al., 2007","Quoted "]
[]
[null,"All-cause mortality","Men",1.9,"Gellert et al., 2012","Quoted"]
[null,null,"Women",1.8,"Gellert et al., 2012","Quoted"]
[]
[]
[null,"Hospitalisation"]
[null,"The relative risk of hospitalisation in current smokers compared with never smokers is 1.48 (Hazard Ratio, 'HR') for males and 1.55 (HR) for females as reported in the "]
[null,"Linked Scottish Health Survey to Predict Hospitalization and Deaths (Lawder et al, 2007).  The hazard ratios are based on individuals who smoke 10-20 "]
[null,"cigarettes per day."]
[]
[null,"Mortality"]
[null,"Based on a systematic review and meta-analysis of association of smoking with all-cause mortality in people 60 years and older (Gellert et al 2012).  "]
[null,"The study included 17 cohort studies from 7 countries (including England) published before 2011."]
[null,"Age and sex were adjusted for in all studies that were not restricted to single age group or sex. "]
[null,"Other factors controlled for were systolic blood pressure, alcohol consumption, and physical activity."]
[]
[]
[null,"Intervention Rate Ratios (IRR) likelihood of outcomes for those undergoing successful smoking cessation intervention"]
[]
[null,"Outcome","Sex","IRR for ex-smokers relative to current smokers","Sources","Quoted/calculated?"]
[null,"All-cause hospitalisation","Men",0.82,"Lawder et al, 2007","Calculated"]
[null,null,"Women",0.76,"Lawder et al, 2007","Calculated"]
[]
[null,"All-cause mortality","Men",0.76,"Hart et al, 2013","Quoted"]
[null,null,"Women",0.64,"Hart et al, 2013","Quoted"]
[]
[null,"Hospitalisation"]
[null,"We found no direct evidence for the effect of giving up smoking on hospitalisation risks.  "]
[null,"We therefore calculated these from the HRs given by Lawder et al (2007), for the risk of hospitalisation for former smokers and moderate smokers, relative to "]
[null,"never smokers.  The hospitalisation IRR for was calculated as the HR for former smokers divided by the HR for moderate smokers.   "]
[null,"For males this was 1.21/1.48 = 0.82 and for females it was 1.18/1.55 = 0.76."]
[]
[]
[null,"Change in intervention effect over time"]
[]
[null,"Intervention","Success rate (%)","Measured at","Sources","Quoted/calculated?"]
[null,"NHS smoking cessation services in Scotland (5 year average 2009 - 2013)",5.8,"12 months","NHS Information Services Division (2014)","Quoted"]
[]
[null,"We used averages for NHS-delivered smoking cessation services in Scotland (2009-2013)."]
[null,"Of those being treated 5.80% reported successfully giving up smoking (within 12 months)."]
[null,"After the intervention year we assumed that 30.00% of those who had successfully given up smoking relapsed over the next 8 years."]
[null,"This was based on a meta-analysis of nicotine-replacement therapy (Etter and Stapleton, 2006)."]
[null,"This relapse rate was applied linearly (0.25% of the treated population per annum)."]
[]
[null,null,null,null,null,"Rate ratio (see above)"]
[null,null,null,null,null,"Hospitalisation",null,"Mortality"]
[null,null,null,null,null,"male","female","male","female"]
[null,null,null,"Ex-smoker relative to current smoker:",null,{"$f":"D36","v":0.82},{"$f":"D37","v":0.76},{"$f":"D39","v":0.76},{"$f":"D40","v":0.64}]
[null,null,null,"Current smoker relative to ex-smoker:",null,{"$f":"1/F63","v":1.2195121951219512},{"$f":"1/G63","v":1.3157894736842106},{"$f":"1/H63","v":1.3157894736842106},{"$f":"1/I63","v":1.5625}]
[null,null,"Smoking prevalence",null,null,"IRR for treated group (relative to untreated)"]
[null,null,"Treated group",null,"Untreated","Hospitalisation",null,"Mortality"]
[null,"Year","% smokers","% non-smokers","% smokers","male","female","male","female"]
[null,"0 (pre-intervention)",100,0,100]
[null,"1 (intervention)",94.2,5.8,100,{"$f":"(($C69/100)*F$64 + ($D69/100))/(1*F$64)","v":0.98956000000000022},{"$f":"(($C69/100)*G$64 + ($D69/100))/(1*G$64)","v":0.98608000000000007},0.98608000000000007,0.9791200000000001]
[null,2,94.448571428571427,5.5514285714285716,100,0.99000742857142854,0.98667657142857135,0.98667657142857135,0.98001485714285708]
[null,3,94.69714285714285,5.3028571428571434,100,0.99045485714285697,0.98727314285714274,0.98727314285714274,0.98090971428571416]
[null,4,94.945714285714288,5.0542857142857152,100,0.99090228571428585,0.98786971428571435,0.98786971428571435,0.98180457142857147]
[null,5,95.194285714285712,4.8057142857142869,100,0.99134971428571417,0.98846628571428552,0.98846628571428552,0.98269942857142856]
[null,6,95.442857142857136,4.5571428571428587,100,0.99179714285714293,0.98906285714285713,0.98906285714285713,0.98359428571428564]
[null,7,95.691428571428574,4.3085714285714305,100,0.99224457142857159,0.98965942857142863,0.98965942857142863,0.98448914285714295]
[null,8,95.94,4.0599999999999996,100,0.99269199999999991,0.99025600000000003,0.99025600000000003,0.98538399999999993]
[null,9,95.94,4.0599999999999996,100,0.99269199999999991,0.99025600000000003,0.99025600000000003,0.98538399999999993]
[null,10,95.94,4.0599999999999996,100,0.99269199999999991,0.99025600000000003,0.99025600000000003,0.98538399999999993]
[null,11,95.94,4.0599999999999996,100,0.99269199999999991,0.99025600000000003,0.99025600000000003,0.98538399999999993]
[null,12,95.94,4.0599999999999996,100,0.99269199999999991,0.99025600000000003,0.99025600000000003,0.98538399999999993]
[null,13,95.94,4.0599999999999996,100,0.99269199999999991,0.99025600000000003,0.99025600000000003,0.98538399999999993]
[null,14,95.94,4.0599999999999996,100,0.99269199999999991,0.99025600000000003,0.99025600000000003,0.98538399999999993]
[null,15,95.94,4.0599999999999996,100,0.99269199999999991,0.99025600000000003,0.99025600000000003,0.98538399999999993]
[null,16,95.94,4.0599999999999996,100,0.99269199999999991,0.99025600000000003,0.99025600000000003,0.98538399999999993]
[null,17,95.94,4.0599999999999996,100,0.99269199999999991,0.99025600000000003,0.99025600000000003,0.98538399999999993]
[null,18,95.94,4.0599999999999996,100,0.99269199999999991,0.99025600000000003,0.99025600000000003,0.98538399999999993]
[null,19,95.94,4.0599999999999996,100,0.99269199999999991,0.99025600000000003,0.99025600000000003,0.98538399999999993]
[null,20,95.94,4.0599999999999996,100,0.99269199999999991,0.99025600000000003,0.99025600000000003,0.98538399999999993]
[null,21,95.94,4.0599999999999996,100,0.99269199999999991,0.99025600000000003,0.99025600000000003,0.98538399999999993]
[]
[]
[null,"Prevalence of smoking"]
[]
[null,"The prevalence data (proportion of the population that smoke) were extracted from the Scottish Surveys Core Questions.  Prevalence for local areas (by sex) was "]
[null,"taken from the 2015 dataset, and national prevalence (by age group, sex and SIMD) was taken from the 2012-2015 combined data.  "]
[]
[null,"Prevalence by Area (proportion)",null,null,null,"Prevalence by deprivation quintile (proportion)"]
[null,"Area ","Females","Males",null,"SIMD 2016 quintile ","age group","Females","Males"]
[null,"SCOTLAND",0.188,0.2266,null,"Q1 (most deprived)","16-24",0.27679999999999999,0.33260000000000001]
[null,"Ayrshire & Arran Health Board",0.19010000000000002,0.23569999999999999,null,null,"25-34",0.35870000000000002,0.40960000000000002]
[null,"Borders Health Board",0.19210000000000002,0.16690000000000002,null,null,"35-44",0.39290000000000003,0.47410000000000002]
[null,"Dumfries & Galloway Health Board",0.22359999999999999,0.2341,null,null,"45-54",0.43149999999999999,0.43470000000000003]
[null,"Fife Health Board",0.1938,0.24809999999999999,null,null,"55-64",0.39530000000000004,0.43260000000000004]
[null,"Forth Valley Health Board",0.13849999999999998,0.19350000000000001,null,null,"65-74",0.2737,0.3095]
[null,"Grampian Health Board",0.16600000000000001,0.23760000000000001,null,null,"75+",0.14899999999999999,0.17050000000000001]
[null,"Greater Glasgow & Clyde Health Board",0.21,0.2432,null,"Q2","16-24",0.26369999999999999,0.2858]
[null,"Highland Health Board",0.1787,0.2402,null,null,"25-34",0.28010000000000002,0.31980000000000003]
[null,"Lanarkshire Health Board",0.21920000000000001,0.21640000000000001,null,null,"35-44",0.30299999999999999,0.34090000000000004]
[null,"Lothian Health Board",0.1709,0.2011,null,null,"45-54",0.31280000000000002,0.36699999999999999]
[null,"Orkney Health Board",0.188,0.2266,null,null,"55-64",0.29300000000000004,0.2838]
[null,"Shetland Health Board",0.188,0.2266,null,null,"65-74",0.21100000000000002,0.21840000000000001]
[null,"Tayside Health Board",0.1686,0.23809999999999998,null,null,"75+",9.6500000000000002E-2,0.10050000000000001]
[null,"Western Isles Health Board",0.188,0.2266,null,"Q3","16-24",0.1986,0.2051]
[null,"Aberdeen City Local Authority",0.1666,0.25629999999999997,null,null,"25-34",0.23120000000000002,0.2873]
[null,"Aberdeenshire Local Authority",0.14150000000000001,0.2177,null,null,"35-44",0.22220000000000001,0.31010000000000004]
[null,"Angus Local Authority",9.8299999999999998E-2,0.26170000000000004,null,null,"45-54",0.23120000000000002,0.24860000000000002]
[null,"Argyll & Bute Local Authority",0.188,0.2266,null,null,"55-64",0.18410000000000001,0.20950000000000002]
[null,"Clackmannanshire Local Authority",0.188,0.2266,null,null,"65-74",0.1651,0.16290000000000002]
[null,"Dumfries & Galloway Local Authority",0.22359999999999999,0.2341,null,null,"75+",7.3700000000000002E-2,7.400000000000001E-2]
[null,"Dundee City Local Authority",0.24429999999999999,0.25769999999999998,null,"Q4","16-24",0.1918,0.2054]
[null,"East Ayrshire Local Authority",0.19190000000000002,0.2306,null,null,"25-34",0.18720000000000001,0.23650000000000002]
[null,"East Dunbartonshire Local Authority",0.14249999999999999,0.19519999999999998,null,null,"35-44",0.15670000000000001,0.20830000000000001]
[null,"East Lothian Local Authority",0.21170000000000003,0.21690000000000001,null,null,"45-54",0.14949999999999999,0.2069]
[null,"East Renfrewshire Local Authority",8.1500000000000003E-2,0.13059999999999999,null,null,"55-64",0.13770000000000002,0.14940000000000001]
[null,"Edinburgh, City of Local Authority",0.14279999999999998,0.19350000000000001,null,null,"65-74",0.11560000000000001,0.11320000000000001]
[null,"Eilean Siar Local Authority",0.188,0.2266,null,null,"75+",6.1400000000000003E-2,4.07E-2]
[null,"Falkirk Local Authority",0.12480000000000001,0.21109999999999998,null,"Q5 (least deprived)","16-24",9.8299999999999998E-2,0.1351]
[null,"Fife Local Authority",0.1938,0.24809999999999999,null,null,"25-34",0.1003,0.19260000000000002]
[null,"Glasgow City Local Authority",0.2281,0.26579999999999998,null,null,"35-44",9.2200000000000004E-2,0.12860000000000002]
[null,"Highland Local Authority",0.17660000000000001,0.245,null,null,"45-54",9.98E-2,0.12290000000000001]
[null,"Inverclyde Local Authority",0.188,0.2266,null,null,"55-64",0.10840000000000001,0.11360000000000001]
[null,"Midlothian Local Authority",0.188,0.2266,null,null,"65-74",7.2599999999999998E-2,7.6200000000000004E-2]
[null,"Moray Local Authority",0.2303,0.24460000000000001,null,null,"75+",5.0599999999999999E-2,0.04]
[null,"North Ayrshire Local Authority",0.1837,0.28820000000000001]
[null,"North Lanarkshire Local Authority",0.2586,0.21890000000000001]
[null,"Orkney Islands Local Authority",0.188,0.2266]
[null,"Perth & Kinross Local Authority",0.14710000000000001,0.20069999999999999]
[null,"Renfrewshire Local Authority",0.21739999999999998,0.23780000000000001]
[null,"Scottish Borders Local Authority",0.19210000000000002,0.16690000000000002]
[null,"Shetland Islands Local Authority",0.188,0.2266]
[null,"South Ayrshire Local Authority",0.19579999999999997,0.17899999999999999]
[null,"South Lanarkshire Local Authority",0.17780000000000001,0.21379999999999999]
[null,"Stirling Local Authority",0.188,0.2266]
[null,"West Dunbartonshire Local Authority",0.25069999999999998,0.26100000000000001]
[null,"West Lothian Local Authority",0.2024,0.18329999999999999]
[null,"Aberdeen City Region Deal",9.0164723575007558E-2,9.0164723575007558E-2]
[null,"Edinburgh & SE Scotland City Region Deal",0.13380566601024071,0.13380566601024071]
[null,"Glasgow City Region Deal",7.9155541094083695E-2,7.9155541094083695E-2]
[null,"Inverness & Highland City Region Deal",9.4347826086956521E-2,9.4347826086956521E-2]
[null,"Tay Cities Region Deal ",0.1071890421622347,0.1071890421622347]
[null,"Clackmannanshire & Stirling IJB",0.188,0.2266]
[]
[]
[]
[null,"Proportion who seek help"]
[]
[null,"Description","Gender","Value","Sources","Quoted/calculated?"]
[null,"Proportion of smokers who want to give up smoking","All",0.69799999999999995,"Scottish Health Survey (SHeS) 2016","Quoted"]
[]
[null,"The proportion of smokers who want to give up smoking (69.1% male, 70.4% female) is taken from the Scottish Health Survey 2016.  "]
[]
[]
[null,"Intervention costs"]
[]
[null,"Cost of providing smoking cessation advice",null,104]
[null,"The figure is based on the work of Ormston et al (2012), and inflated to financial year 2015/16 using the Hospital and Community Health Service (HCHS) inflation index.  "]
[]
[]
[null,"Hospitalisation costs"]
[]
[null,"The cost of a continuous inpatient stay was estimated to be £2,113 in 2006/07 (Geue et al 2012; based on healthcare resource groups and the English tariff)."]
[null,"This was inflated to £2,512 for 2015/16 using the Hospital and Community Health Service (HCHS) inflation index."]
[null,"Cost of continuous Inpatient stay ",null,2512]
[]
[null,"References"]
[]
[null,"Etter & Stapleton 2006","Nicotine replacement therapy for long-term smoking cessation: a meta-analysis. Tobacco Control 15(4): 280-285. https://www.ncbi.nlm.nih.gov/pmc/articles/PMC2563611/"]
[null,"Gellert et al., 2012","Smoking and all-cause mortality in older people. Arch Intern Med 172(11): 837-844. https://jamanetwork.com/journals/jamainternalmedicine/fullarticle/1182214"]
[null,"Geue et al 2012","Spoilt for choice: implications of using alternative methods of costing hospital episode statistics. Health Economics 21: 1201-1216. https://onlinelibrary.wiley.com/doi/abs/10.1002/hec.1785"]
[null,"Hart et al., 2013","Does smoking reduction in midlife reduce mortality risk? Results of 2 long-term prospective cohort studies of men and women in Scotland. Am J Epidemiol 178(5): 770-779. http://doi.org/10.1093/aje/kwt038"]
[null,"Lawder et al., 2007","Using the linked Scottish Health Survey to predict hospitalisation and death: an analysis of the link between behavioural, biological and social risk factors and subsequent hospital admission and death in Scotland. http://www.scotpho.org.uk/publications/reports-and-papers/using-the-linked-scottish-health-survey-to-predict-hospitalisation-and-death/"]
[null,"NHS Health Scotland et al 2017","A guide to smoking cessation services in Scotland 2010. http://www.healthscotland.scot/media/1096/a-guide-to-smoking-cessation-in-scotland-2017.pdf"]
[null,"NHS Information Services Division 2014","NHS Smoking Cessation Service Statistics (Scotland) 1 January to 31 December 2014. https://www.isdscotland.org/Health-Topics/Public-Health/Publications/2015-06-30/2015-06-30-SmokingCessation-Tables.xlsx?34279579"]
[null,"Ormston et al 2012","Evaluation of quit4u. Report to NHS Health Scotland. http://www.healthscotland.com/documents/5827.aspx"]
[null,"Scottish Health Survey 2016","Supplementary Tables. Part 10: Smoking. http://www.gov.scot/Topics/Statistics/Browse/Health/scottish-health-survey/Publications/Supplementary2015/Supplementary2016"]

{"sheet":"SHEETS TO BE HIDDEN ->","index":5,"n_rows":0,"n_cols":0,"rows_kept":0,"cut":false,"hidden":true,"merged":[]}

{"sheet":"Calculations","index":6,"n_rows":249,"n_cols":43,"rows_kept":249,"cut":false,"hidden":true,"merged":[]}
["Calculating the deaths, years of life lost, hospital stays, and premature deaths for each group ",null,null,null,null,null,null,null,null,null,"COUNTS",null,null,null,null,null,null,null,null,null,null,null,null,null,null,null,null,null,null,null,null,null,null,null,null,"EUROPEAN AGE-STANDARDISED RATE (EASR) PER 100000"]
["AREA:",{"$f":"Options!B11","v":"Scotland"},"EQUIVALENT AREA:",null,{"$f":"VLOOKUP(B2,Lists!D2:E85,2)","v":"Scotland"},null,null,null,null,null,"CUMULATIVE INCIDENCE (DEATHS)",null,"YEARS OF LIFE LOST",null,"HOSPITALISATIONS",null,"PREMATURE MORTALITY",null,"AGE STANDARDISED RATE (ASR)",null,null,null,null,null,null,null,"ASR*EUROPEAN STANDARD POPULATION (ESP2013)",null,null,null,null,null,null,null,null,"CUMULATIVE INCIDENCE (DEATHS)",null,"YEARS OF LIFE LOST",null,"HOSPITALISATIONS",null,"PREMATURE MORTALITY"]
["SIMD","group","mean age (2016)","life exp (2014-16)","sex","SIMD","prevalence exposure","population (2016)","no. treated at base","additional no. treated under policy","Baseline","Policy","Baseline","Policy","Baseline","Policy","Baseline","Policy","CI_BASE","CI_POLICY","YLL_BASE","YLL_POLICY","HOSP_BASE","HOSP_POLICY","PREM_BASE","PREM_POLICY","CI_BASE","CI_POLICY","YLL_BASE","YLL_POLICY","HOSP_BASE","HOSP_POLICY","PREM_BASE","PREM_POLICY","ESP2013","Baseline","Policy","Baseline","Policy","Baseline","Policy","Baseline","Policy"]
[]
["All quintiles","16+ Males and Females","N/A",null,"BOTH","ALL",null,{"$f":"SUM(H7:H11)","v":4488783},{"$f":"SUM(I7:I11)","v":0},{"$f":"SUM(J7:J11)","v":691611},{"$f":"SUMIF(K7:K11,\">0\")","v":44470.024307599102},44306.892025994399,595251.88027269009,593120.32747584442,1143855.727350824,1141184.0834490557,21611.413127534201,21535.831874191801,null,null,null,null,null,null,null,null,{"$f":"SUMIF(AA7:AA11,\">0\")","v":905253480.1962477},{"$f":"SUMIF(AB7:AB11,\">0\")","v":902035158.080832},11478337287.696741,11437865521.324371,21939692318.814999,21889079164.505337,415170599.80987024,413734539.28284788,{"$f":"SUM(AI7:AI11)","v":1000000},{"$f":"AA5/$AI5","v":905.25348019624766},{"$f":"AB5/$AI5","v":902.03515808083205},{"$f":"AC5/$AI5","v":11478.337287696741},11437.865521324371,21939.692318814999,21889.079164505336,415.17059980987023,413.73453928284789]
["Q1 and Q2","16+ Males and Females","N/A",null,"BOTH","Q1&2",null,{"$f":"SUM(H7:H8)","v":1769266},0,272598,23376.352664210601,23294.667026295996,317747.90651440376,316669.47565540485,542278.73076819046,541054.99630422448,11396.364678034401,11358.771367535399,null,null,null,null,null,null,null,null,{"$f":"SUMIF(AA7:AA8,\">0\")","v":501761254.70408034},{"$f":"SUMIF(AB7:AB8,\">0\")","v":500066568.12853169},6385547340.7285118,6364207222.6450157,10787710810.292,10763684645.142204,231238681.21020055,230482851.71362799,{"$f":"SUM(AI7:AI8)","v":400000},{"$f":"AA6/$AI6","v":1254.4031367602008},1250.1664203213293,15963.86835182128,15910.51805661254,26969.27702573,26909.21161285551,578.09670302550137,576.20712928406999]
["SIMD Q1 (most deprived)","16+ Males and Females","N/A",null,"BOTH",1,null,{"$f":"H12+H17","v":872234},0,134387,12882.173790882,12838.608647733199,{"$f":"M12+M17","v":179391.53956481616},178801.2981292278,288715.84006160521,288076.24804437422,6418.2032144008008,6397.6752406512996,null,null,null,null,null,null,null,null,{"$f":"AA12+AA17","v":293701285.96516037},{"$f":"AB12+AB17","v":292739126.96044338},3747200079.9813333,3735029088.7660394,5950449632.4840012,5937421820.7598457,135809377.93485564,135377932.62370288,{"$f":"AI12+AI17","v":200000},{"$f":"AA7/$AI7","v":1468.5064298258019},1463.695634802217,{"$f":"AC7/$AI7","v":18736.000399906665},{"$f":"AD7/$AI7","v":18675.145443830195},{"$f":"AE7/$AI7","v":29752.248162420005},{"$f":"AF7/$AI7","v":29687.10910379923},{"$f":"AG7/$AI7","v":679.04688967427819},{"$f":"AH7/$AI7","v":676.88966311851436}]
["SIMD Q2",null,"N/A",null,"BOTH",2,null,{"$f":"H13+H18","v":897032},0,138211,{"$f":"K13+K18","v":10494.178873328601},10456.058378562799,138356.36694958759,137868.17752617708,253562.89070658525,252978.74825985031,4978.1614636335999,4961.0961268841002,null,null,null,null,null,null,null,null,{"$f":"AA13+AA18","v":208059968.73891997},{"$f":"AB13+AB18","v":207327441.16808832},2638347260.7471786,2629178133.8789759,4837261177.8079996,4826262824.3823586,95429303.275344893,95104919.08992511,{"$f":"AI13+AI18","v":200000},1040.2998436945998,1036.6372058404415,13191.736303735894,13145.890669394879,24186.305889039999,24131.314121911793,477.14651637672449,475.52459544962556]
["SIMD Q3",null,"N/A",null,"BOTH",3,null,907978,0,139897,8984.6686046559007,8950.8659029269984,117466.94507120381,117034.17326004661,227312.98226707341,226776.18675631849,4320.2324650849005,4304.6857577006995,null,null,null,null,null,null,null,null,{"$f":"AA14+AA19","v":169124904.28240126},{"$f":"AB14+AB19","v":168504208.45159447},2138813712.7313056,2131026836.0461993,4182172524.5570002,4172397435.9301958,77293683.447550997,77017383.409960657,{"$f":"AI14+AI19","v":200000},845.62452141200629,842.52104225797234,10694.068563656529,10655.134180230996,20910.862622785,20861.98717965098,386.46841723775498,385.08691704980328]
["SIMD Q4",null,"N/A",null,"BOTH",4,null,910792,0,140332,7029.3881051767003,7002.0790142634996,93214.468622158893,92858.527475661307,200119.05611311671,199636.7949547295,3451.0812198318999,3438.1543754287,null,null,null,null,null,null,null,null,{"$f":"AA15+AA20","v":134772459.47818372},{"$f":"AB15+AB20","v":134259473.66750568},1700333875.9154048,1693898622.8923173,3688824590.757,3680010745.0265694,61400802.755999357,61171900.689055361,{"$f":"AI15+AI20","v":200000},673.86229739091857,671.29736833752838,8501.6693795770243,8469.4931144615857,18444.122953785001,18400.053725132846,307.0040137799968,305.8595034452768]
["SIMD Q5 (least deprived)",null,"N/A",null,"BOTH",5,null,900747,0,138784,5079.6149335559003,5059.2800825079003,66822.5600649236,66558.151084731508,174144.95820244367,173716.10543378323,2443.7347645829996,2434.220373527,null,null,null,null,null,null,null,null,{"$f":"AA16+AA21","v":99594861.731582284},{"$f":"AB16+AB21","v":99204907.833200157},1253642358.3215172,1248732839.74084,3280984393.2090006,3272986338.4063687,45237432.396119386,45062403.470203795,{"$f":"AI16+AI21","v":200000},{"$f":"AA11/$AI11","v":497.97430865791142},496.02453916600081,6268.2117916075858,6243.6641987041994,16404.921966045004,16364.931692031843,226.18716198059693,225.31201735101897]
["SIMD Q1 (most deprived)","16+ Females","N/A",null,"female",1,null,{"$f":"SUM(H60:H78)","v":457633},{"$f":"SUM(I60:I78)","v":0},{"$f":"SUM(J60:J78)","v":70509},{"$f":"SUMIF(K60:K78,\">0\")","v":6419.095526608},6392.9896181882987,82501.770895734997,82169.227994442306,155037.8908593776,154642.91288768992,2637.1668751559,2626.6405307901996,null,null,null,null,null,null,null,null,{"$f":"SUMIF(AA60:AA78,\">0\")","v":123883425.88065423},{"$f":"SUMIF(AB60:AB78,\">0\")","v":123379798.76223776},{"$f":"SUMIF(AC60:AC78,\">0\")","v":1588767246.1702867},1582357813.633276,2906076588.3480005,2898667145.3274608,53045749.197697461,52833645.981618017,{"$f":"SUM(AI60:AI78)","v":100000},1238.8342588065423,1233.7979876223776,15887.672461702867,15823.578136332761,29060.765883480006,28986.671453274608,530.45749197697455,528.3364598161802]
["SIMD Q2",null,"N/A",null,"female",2,null,{"$f":"SUM(H98:H116)","v":469079},{"$f":"SUM(I98:I116)","v":0},{"$f":"SUM(J98:J116)","v":72275},{"$f":"SUMIF(K98:K116,\">0\")","v":5237.0175506463002},5214.3306593264997,64009.394528549405,63735.179764450702,134904.85907071829,134547.38804725802,2051.8506668999999,2043.1691746772999,null,null,null,null,null,null,null,null,{"$f":"SUMIF(AA98:AA116,\">0\")","v":87683288.280680507},{"$f":"SUMIF(AB98:AB116,\">0\")","v":87303948.495180264},1118092062.1253412,1113308511.1179366,2362418359.7929997,2356171197.1085706,37245419.040143549,37087837.35074389,{"$f":"SUM(AI98:AI116)","v":100000},876.83288280680506,873.03948495180259,11180.920621253412,11133.085111179365,23624.183597929998,23561.711971085704,372.45419040143548,370.87837350743888]
["SIMD Q3",null,"N/A",null,"female",3,null,{"$f":"SUM(H136:H154)","v":469093},{"$f":"SUM(I136:I154)","v":0},{"$f":"SUM(J136:J154)","v":72275},{"$f":"SUMIF(K136:K154,\">0\")","v":4353.9769323118999},4334.4094459573998,53280.104460582697,53041.669918112209,118438.08137411861,118114.82869704411,1752.7457043868999,1744.9594778292999,null,null,null,null,null,null,null,null,{"$f":"SUMIF(AA136:AA154,\">0\")","v":71247777.688673109},{"$f":"SUMIF(AB136:AB154,\">0\")","v":70927548.70198983},906201622.68972504,902147845.63665569,2042486603.9890001,2036919734.6878417,30156555.4908024,30022630.752872098,{"$f":"SUM(AI136:AI154)","v":100000},712.47777688673114,709.27548701989826,9062.0162268972508,9021.4784563665562,20424.866039889999,20369.197346878416,301.56555490802401,300.22630752872101]
["SIMD Q4",null,"N/A",null,"female",4,null,{"$f":"SUM(H174:H192)","v":468792},{"$f":"SUM(I174:I192)","v":0},{"$f":"SUM(J174:J192)","v":72230},{"$f":"SUMIF(K174:K192,\">0\")","v":3353.2195988243002},3337.7004394727001,41820.323523705403,41626.712096485302,103630.27058914659,103341.30807819979,1387.2364035681001,1380.8268723204001,null,null,null,null,null,null,null,null,{"$f":"SUMIF(AA174:AA192,\">0\")","v":56753042.44918292},{"$f":"SUMIF(AB174:AB192,\">0\")","v":56490245.40029446},720264097.87689197,716929050.02735007,1801545672.0019999,1796524614.0775082,23948420.399818484,23837788.021277733,{"$f":"SUM(AI174:AI192)","v":100000},567.53042449182919,564.90245400294464,7202.6409787689199,7169.2905002735006,18015.45672002,17965.246140775082,239.48420399818482,238.37788021277734]
["SIMD Q5 (least deprived)",null,"N/A",null,"female",5,null,{"$f":"SUM(H212:H230)","v":465079},{"$f":"SUM(I212:I230)","v":0},{"$f":"SUM(J212:J230)","v":71657},{"$f":"SUMIF(K212:K230,\">0\")","v":2445.4602286762001},2433.8343120738,30215.823298677398,30071.599862218205,90811.936485394297,90553.128774556011,993.46403351139998,988.71841781240005,null,null,null,null,null,null,null,null,{"$f":"SUMIF(AA212:AA230,\">0\")","v":41929695.883388713},{"$f":"SUMIF(AB212:AB230,\">0\")","v":41730219.897852175},530961234.56070298,528425995.26561773,1602364950.7030003,1597798771.4817848,17638809.189126551,17554547.130654946,{"$f":"SUM(AI212:AI230)","v":100000},419.29695883388712,417.30219897852174,5309.61234560703,5284.2599526561771,16023.649507030002,15977.987714817848,176.3880918912655,175.54547130654947]
["SIMD Q1 (most deprived)","16+ Males","N/A",null,"male",1,null,{"$f":"SUM(H79:H97)","v":414601},{"$f":"SUM(I79:I97)","v":0},{"$f":"SUM(J79:J97)","v":63878},{"$f":"SUMIF(K79:K97,\">0\")","v":6463.0782642739996},6445.6190295449005,96889.768669081182,96632.070134785492,133677.94920222761,133433.3351566843,3781.0363392449003,3771.0347098611001,null,null,null,null,null,null,null,null,{"$f":"SUMIF(AA79:AA97,\">0\")","v":169817860.08450612},{"$f":"SUMIF(AB79:AB97,\">0\")","v":169359328.19820559},2158432833.8110466,2152671275.1327634,3044373044.1360002,3038754675.4323845,82763628.737158194,82544286.642084867,{"$f":"SUM(AI79:AI97)","v":100000},1698.1786008450613,1693.5932819820559,21584.328338110467,21526.712751327635,30443.730441360003,30387.546754323845,827.63628737158194,825.44286642084865]
["SIMD Q2",null,"N/A",null,"male",2,null,{"$f":"SUM(H117:H135)","v":427953},{"$f":"SUM(I117:I135)","v":0},{"$f":"SUM(J117:J135)","v":65936},{"$f":"SUMIF(K117:K135,\">0\")","v":5257.1613226823001},5241.727719236299,74346.972421038197,74132.997761726394,118658.03163586698,118431.36021259229,2926.3107967336005,2917.9269522067998,null,null,null,null,null,null,null,null,{"$f":"SUMIF(AA117:AA135,\">0\")","v":120376680.45823945},{"$f":"SUMIF(AB117:AB135,\">0\")","v":120023492.67290807},1520255198.6218374,1515869622.7610393,2474842818.0149999,2470091627.273788,58183884.235201344,58017081.739181221,{"$f":"SUM(AI117:AI135)","v":100000},1203.7668045823946,1200.2349267290806,15202.551986218374,15158.696227610393,24748.42818015,24700.916272737879,581.83884235201344,580.17081739181219]
["SIMD Q3",null,"N/A",null,"male",3,null,{"$f":"SUM(H155:H173)","v":438885},{"$f":"SUM(I155:I173)","v":0},{"$f":"SUM(J155:J173)","v":67622},{"$f":"SUMIF(K155:K173,\">0\")","v":4630.6916723439999},4616.4564569695995,64186.840610621104,63992.503341934404,108874.90089295481,108661.3580592744,2567.4867606980001,2559.7262798714,null,null,null,null,null,null,null,null,{"$f":"SUMIF(AA155:AA173,\">0\")","v":97877126.593728155},{"$f":"SUMIF(AB155:AB173,\">0\")","v":97576659.749604657},1232612090.0415807,1228878990.4095438,2139685920.5679998,2135477701.2423544,47137127.956748597,46994752.657088563,{"$f":"SUM(AI155:AI173)","v":100000},{"$f":"AA19/$AI19","v":978.77126593728156},{"$f":"AB19/$AI19","v":975.76659749604653},{"$f":"AC19/$AI19","v":12326.120900415806},{"$f":"AD19/$AI19","v":12288.789904095438},21396.859205679997,21354.777012423543,471.371279567486,469.94752657088566]
["SIMD Q4",null,"N/A",null,"male",4,null,{"$f":"SUM(H193:H211)","v":442000},{"$f":"SUM(I193:I211)","v":0},{"$f":"SUM(J193:J211)","v":68102},{"$f":"SUMIF(K193:K211,\">0\")","v":3676.1685063524001},3664.3785747908,51394.145098453497,51231.815379175998,96488.785523970117,96295.4868765297,2063.8448162638001,2057.3275031082999,null,null,null,null,null,null,null,null,{"$f":"SUMIF(AA193:AA211,\">0\")","v":78019417.029000789},{"$f":"SUMIF(AB193:AB211,\">0\")","v":77769228.267211229},980069778.03851283,976969572.86496723,1887278918.7550004,1883486130.9490612,37452382.356180876,37334112.667777628,{"$f":"SUM(AI193:AI211)","v":100000},780.19417029000783,777.69228267211224,9800.6977803851278,9769.6957286496727,18872.789187550003,18834.86130949061,374.52382356180874,373.34112667777629]
["SIMD Q5 (least deprived)",null,"N/A",null,"male",5,null,{"$f":"SUM(H231:H249)","v":435668},{"$f":"SUM(I231:I249)","v":0},{"$f":"SUM(J231:J249)","v":67127},{"$f":"SUMIF(K231:K249,\">0\")","v":2634.1547048797001},2625.4457704341003,36606.736766246198,36486.551222513299,83333.021717049385,83162.976659227221,1450.2707310715998,1445.5019557145999,null,null,null,null,null,null,null,null,{"$f":"SUMIF(AA231:AA249,\">0\")","v":57665165.848193578},{"$f":"SUMIF(AB231:AB249,\">0\")","v":57474687.935347982},722681123.76081431,720306844.47522211,1678619442.506,1675187566.9245839,27598623.206992835,27507856.339548849,{"$f":"SUM(AI231:AI249)","v":100000},{"$f":"AA21/$AI21","v":576.65165848193578},574.74687935347981,7226.8112376081435,7203.0684447522208,16786.194425059999,16751.875669245837,275.98623206992835,275.07856339548846]
[null,"Female 0-4",2.0384007,81.468401,"female","ALL",null,{"$f":"SUM(H60,H98,H136,H174,H212)","v":0},0,0,{"$f":"SUM(K60,K98,K136,K174,K212)","v":{"$error":"#VALUE!"}},{"$error":"#VALUE!"},{"$error":"#VALUE!"},{"$error":"#VALUE!"},{"$error":"#VALUE!"},{"$error":"#VALUE!"},{"$error":"#VALUE!"},{"$error":"#VALUE!"},null,null,null,null,null,null,null,null,{"$f":"SUM(AA60,AA98,AA136,AA174,AA212)","v":{"$error":"#VALUE!"}},{"$error":"#VALUE!"},{"$error":"#VALUE!"},{"$error":"#VALUE!"},{"$error":"#VALUE!"},{"$error":"#VALUE!"},{"$error":"#VALUE!"},{"$error":"#VALUE!"},25000,{"$error":"#VALUE!"},{"$error":"#VALUE!"},{"$error":"#VALUE!"},{"$error":"#VALUE!"},{"$error":"#VALUE!"},{"$error":"#VALUE!"},{"$error":"#VALUE!"},{"$error":"#VALUE!"}]
[null,"Female 5-9",6.9792794999999996,81.439279999999997,"female","ALL",null,{"$f":"SUM(H61,H99,H137,H175,H213)","v":0},0,0,{"$f":"SUM(K61,K99,K137,K175,K213)","v":{"$error":"#VALUE!"}},{"$error":"#VALUE!"},{"$f":"SUM(M61,M99,M137,M175,M213)","v":{"$error":"#VALUE!"}},{"$error":"#VALUE!"},{"$error":"#VALUE!"},{"$error":"#VALUE!"},{"$error":"#VALUE!"},{"$error":"#VALUE!"},null,null,null,null,null,null,null,null,{"$f":"SUM(AA61,AA99,AA137,AA175,AA213)","v":{"$error":"#VALUE!"}},{"$error":"#VALUE!"},{"$error":"#VALUE!"},{"$error":"#VALUE!"},{"$error":"#VALUE!"},{"$error":"#VALUE!"},{"$error":"#VALUE!"},{"$error":"#VALUE!"},27500,{"$error":"#VALUE!"},{"$error":"#VALUE!"},{"$error":"#VALUE!"},{"$error":"#VALUE!"},{"$error":"#VALUE!"},{"$error":"#VALUE!"},{"$error":"#VALUE!"},{"$error":"#VALUE!"}]
[null,"Female 10-15",12.478312000000001,81.948309999999992,"female","ALL",null,{"$f":"SUM(H62,H100,H138,H176,H214)","v":0},0,0,{"$f":"SUM(K62,K100,K138,K176,K214)","v":{"$error":"#VALUE!"}},{"$f":"SUM(L62,L100,L138,L176,L214)","v":{"$error":"#VALUE!"}},{"$error":"#VALUE!"},{"$error":"#VALUE!"},{"$f":"SUM(O62,O100,O138,O176,O214)","v":{"$error":"#VALUE!"}},{"$f":"SUM(P62,P100,P138,P176,P214)","v":{"$error":"#VALUE!"}},{"$error":"#VALUE!"},{"$error":"#VALUE!"},null,null,null,null,null,null,null,null,{"$f":"SUM(AA62,AA100,AA138,AA176,AA214)","v":{"$error":"#VALUE!"}},{"$error":"#VALUE!"},{"$error":"#VALUE!"},{"$error":"#VALUE!"},{"$error":"#VALUE!"},{"$error":"#VALUE!"},{"$error":"#VALUE!"},{"$error":"#VALUE!"},33000,{"$error":"#VALUE!"},{"$error":"#VALUE!"},{"$error":"#VALUE!"},{"$error":"#VALUE!"},{"$error":"#VALUE!"},{"$error":"#VALUE!"},{"$error":"#VALUE!"},{"$error":"#VALUE!"}]
["All quintiles","Female 16-19",17.570053000000001,81.100049999999996,"female","ALL",null,{"$f":"SUM(H63,H101,H139,H177,H215)","v":118803},0,18305,22.937371861599999,22.837298922600002,1434.2737936937001,1428.0162331181998,12465.290273103001,12432.058731995199,22.937371861599999,22.837298922600002,null,null,null,null,null,null,null,null,{"$f":"SUM(AA63,AA101,AA139,AA177,AA215)","v":426135.13950307155},424276.79863371298,26646228.994721074,26530026.945734169,231245008.5,230628835.008241,426135.13950307155,424276.79863371298,22000,19.369779068321435,19.285309028805134,1211.1922270327761,1205.9103157151894,10511.13675,10483.128864010954,19.369779068321435,19.285309028805134]
[null,"Female 20-24",22.077057,81.667060000000006,"female","ALL",null,{"$f":"SUM(H64,H102,H140,H178,H216)","v":182279},0,28085,51.980350206999994,51.753757591700001,3045.5288745691996,3032.2528125590002,21506.627044283003,21449.326125429099,51.980350206999994,51.753757591700001,null,null,null,null,null,null,null,null,{"$f":"SUM(AA64,AA102,AA140,AA178,AA216)","v":852519.13482760312},848801.76201510546,49949098.667106956,49731297.782870688,353188002.77999997,352246914.22021091,852519.13482760312,848801.76201510546,30000,28.417304494253436,28.293392067170181,1664.9699555702318,1657.7099260956895,11772.933426,11741.563807340364,28.417304494253436,28.293392067170181]
[null,"Female 25-29",26.975186999999998,81.645189999999999,"female","ALL",null,{"$f":"SUM(H65,H103,H141,H179,H217)","v":187975},0,28962,84.831593814200005,84.472470846699991,4552.9118945028995,4533.6377637597998,25701.254892726301,25634.108397816199,84.831593814200005,84.472470846699991,null,null,null,null,null,null,null,null,{"$f":"SUM(AA65,AA103,AA141,AA179,AA217)","v":1292988.4771081554},1287477.6974645532,69394695.445360199,69098931.885355562,399497115.36000001,398448012.62192303,1292988.4771081554,1287477.6974645532,30000,43.099615903605176,42.915923248818437,2313.1565148453401,2303.2977295118521,13316.570512,13281.600420730767,43.099615903605176,42.915923248818437]
[null,"Female 30-34",31.999904999999998,81.799899999999994,"female","ALL",null,{"$f":"SUM(H66,H104,H142,H180,H218)","v":179608},0,27674,122.85146762609999,122.33063808380001,5995.1510058962995,5969.7345268363006,27681.461214470404,27609.049015911303,122.85146762609999,122.33063808380001,null,null,null,null,null,null,null,null,{"$f":"SUM(AA66,AA104,AA142,AA180,AA218)","v":2147341.4656121242},2138191.0832909821,104790252.78516363,104343714.17364538,491095913.10000002,489806213.94899547,2147341.4656121242,2138191.0832909821,32500,66.072045095757673,65.790494870491756,3224.315470312727,3210.5758207275499,15110.643480000001,15070.96042919986,66.072045095757673,65.790494870491756]
[null,"Female 35-39",36.918118,81.898120000000006,"female","ALL",null,{"$f":"SUM(H67,H105,H143,H181,H219)","v":166485},0,25652,168.2289625665,167.5166491878,7398.7101101326998,7367.3825663128,28578.8459945453,28504.023704097399,168.2289625665,167.5166491878,null,null,null,null,null,null,null,null,{"$f":"SUM(AA67,AA105,AA143,AA181,AA219)","v":3512899.4063438345},3498002.6013492411,154497322.91680291,153842161.40334609,598519214.23000002,596950740.88079512,3512899.4063438345,3498002.6013492411,35000,100.3685544669667,99.94293146712117,4414.209226194369,4395.4903258098884,17100.548977999999,17055.735453737005,100.3685544669667,99.94293146712117]
[null,"Female 40-44",42.077438000000001,82.30744,"female","ALL",null,{"$f":"SUM(H68,H106,H144,H182,H220)","v":172709},0,26611,265.83507329119999,264.70625889079997,10428.710456883899,10384.427065698601,33419.637561234005,33331.923477663098,265.83507329119999,264.70625889079997,null,null,null,null,null,null,null,null,{"$f":"SUM(AA68,AA106,AA144,AA182,AA220)","v":5446220.6730400911},5423137.5639893385,213655247.8958036,212749697.48157695,681457961.73000002,679672120.57177246,5446220.6730400911,5423137.5639893385,35000,155.6063049440026,154.94678754255253,6104.4356541658171,6078.5627851879126,19470.227478000001,19419.203444907784,155.6063049440026,154.94678754255253]
[null,"Female 45-49",47.025772000000003,82.585769999999997,"female","ALL",null,{"$f":"SUM(H69,H107,H145,H183,H221)","v":202829},0,31250,475.64356552719994,473.64386238259999,16438.240673332799,16369.130936655001,44462.663781813499,44346.683208463699,475.64356552719994,473.64386238259999,null,null,null,null,null,null,null,null,{"$f":"SUM(AA69,AA107,AA145,AA183,AA221)","v":8292036.5926495055},8257250.7884498676,286572768.05789196,285370570.73432708,771783001.00999999,769773100.10677552,8292036.5926495055,8257250.7884498676,35000,236.9153312185573,235.92145109856764,8187.793373082628,8153.4448781236306,22050.942886000001,21993.517145907874,236.9153312185573,235.92145109856764]
[null,"Female 50-54",51.990825999999998,82.980829999999997,"female","ALL",null,{"$f":"SUM(H70,H108,H146,H184,H222)","v":209262},0,32242,746.78667904880001,743.64890951630002,22396.135491820103,22302.033770989503,51924.448520960301,51788.956991184998,746.78667904880001,743.64890951630002,null,null,null,null,null,null,null,null,{"$f":"SUM(AA70,AA108,AA146,AA184,AA222)","v":12639468.803081926},12586507.882068146,379057719.96229994,377469421.72925556,874448019.83000016,872170699.25469506,12639468.803081926,12586507.882068146,35000,361.127680088055,359.61451091623275,10830.220570351426,10784.840620835874,24984.229138000006,24919.16283584843,361.127680088055,359.61451091623275]
[null,"Female 55-59",56.953040999999999,83.473039999999997,"female","ALL",null,{"$f":"SUM(H71,H109,H147,H185,H223)","v":190084},0,29286,1032.5327680138,1028.1314564753002,26350.235207179401,26237.913741118202,53414.8733387307,53273.951749422995,1032.5327680138,1028.1314564753002,null,null,null,null,null,null,null,null,{"$f":"SUM(AA71,AA109,AA147,AA185,AA223)","v":17878574.419906311},17802590.965408899,456261201.31743443,454322103.63464409,919934892.56499994,917512772.03181183,17878574.419906311,17802590.965408899,32500,550.10998215096345,547.77202970488918,14038.806194382598,13979.14165029674,28305.689001999999,28231.162216363442,550.10998215096345,547.77202970488918]
[null,"Female 60-64",61.947387999999997,84.167389999999997,"female","ALL",null,{"$f":"SUM(H72,H110,H148,H186,H224)","v":165146},0,25446,1358.1528203426999,1352.3686819568002,28820.005563977695,28697.266135860602,52377.011972582302,52238.643225799904,1358.1528203426999,1352.3686819568002,null,null,null,null,null,null,null,null,{"$f":"SUM(AA72,AA110,AA148,AA186,AA224)","v":25192582.948637575},25085819.320381511,534586660.55525464,532321136.15013325,962839226.39999986,960303934.37406278,25192582.948637575,25085819.320381511,30000,839.75276495458581,836.19397734605036,17819.55535184182,17744.037871671109,32094.640879999995,32010.131145802094,839.75276495458581,836.19397734605036]
[null,"Female 65-69",67.063927000000007,85.193929999999995,"female","ALL",null,{"$f":"SUM(H73,H111,H149,H187,H225)","v":164057},0,25276,2066.2542076137001,2057.1193051260998,35394.9407751853,35238.459868168,58973.220499182193,58812.826764290301,2066.2542076137001,2057.1193051260998,null,null,null,null,null,null,null,null,{"$f":"SUM(AA73,AA111,AA149,AA187,AA225)","v":35585132.202063732},35428476.019820839,609573421.3767482,606889900.50495887,1003826931.03,1001103926.4799429,35585132.202063732,35428476.019820839,27500,1294.0048073477722,1288.3082189025761,22166.306231881754,22068.723654725778,36502.797491999998,36403.779144725195,1294.0048073477722,1288.3082189025761]
[null,"Female 70-74",71.938164,86.248159999999999,"female","ALL",null,{"$f":"SUM(H74,H112,H150,H188,H226)","v":127150},0,19591,2426.4288236094999,2415.7851844491001,32295.757936527203,32154.091141876695,51815.942235666997,51675.0746258449,2426.4288236094999,2415.7851844491001,null,null,null,null,null,null,null,null,{"$f":"SUM(AA74,AA112,AA150,AA188,AA226)","v":48769054.054814517},48555916.754294492,649115914.39336622,646279057.77599108,1031603609.2000002,1028805045.6236988,48769054.054814517,48555916.754294492,25000,1950.7621621925807,1942.2366701717797,25964.63657573465,25851.162311039643,41264.144368000008,41152.201824947952,1950.7621621925807,1942.2366701717797]
[null,"Female 75-79",76.942824999999999,87.812830000000005,"female","ALL",null,{"$f":"SUM(H75,H113,H151,H189,H227)","v":104331},0,16075,3076.7549921096997,3062.5989639314998,30367.587155897701,30227.867086998798,48655.3933290477,48517.304863715501,0,0,null,null,null,null,null,null,null,null,{"$f":"SUM(AA75,AA113,AA151,AA189,AA227)","v":59361155.62302424},59088418.904831424,585894902.80502725,583202990.0327822,935996664.24000001,933341829.10334241,0,0,20000,2968.0577811512121,2954.4209452415712,29294.745140251362,29160.149501639109,46799.833211999998,46667.091455167123,0,0]
[null,"Female 80-84",81.856712000000002,89.736710000000002,"female","ALL",null,{"$f":"SUM(H76,H114,H152,H190,H228)","v":80217},0,12361,3567.8762767677003,3551.7788186845,24546.981648409201,24436.231168991701,42391.156082702597,42270.845747033403,0,0,null,null,null,null,null,null,null,null,{"$f":"SUM(AA76,AA114,AA152,AA190,AA228)","v":55828278.730138212},55576724.539669484,384098446.00679302,382367753.67947668,661963668.95000005,660085882.01128721,0,0,12500,4466.2622984110567,4446.137963173559,30727.875680543442,30589.420294358133,52957.093516000001,52806.870560902978,0,0]
[null,"Female 85-89",86.730819999999994,92.220819999999989,"female","ALL",null,{"$f":"SUM(H77,H115,H153,H191,H229)","v":49691},0,7655,3270.3859906739003,3256.0419321224999,14684.033098125801,14619.628275229999,29525.065473962801,29441.257752884499,0,0,null,null,null,null,null,null,null,null,{"$f":"SUM(AA77,AA115,AA153,AA191,AA229)","v":50005245.611253478},49786528.873338178,224523552.79452795,223541514.64128807,448983820.05000007,447710575.71713454,0,0,7500,6667.3660815004641,6638.2038497784233,29936.47370593706,29805.535285505077,59864.509340000011,59694.743428951275,0,0]
[null,"Female 90+",92.779342999999997,96.279340000000005,"female","ALL",null,{"$f":"SUM(H78,H116,H154,H192,H230)","v":29050},0,4475,3071.2888939930999,3058.5302868506001,7678.2130211160002,7646.3165415354997,19930.146163744299,19873.532103195299,0,0,null,null,null,null,null,null,null,null,{"$f":"SUM(AA78,AA116,AA154,AA192,AA230)","v":54267596.900575139},54043639.702548727,135668829.44864586,135108937.12545037,348509125.86000001,347520860.7284773,0,0,5000,10853.519380115027,10808.727940509745,27133.765889729173,27021.787425090075,69701.825171999997,69504.172145695455,0,0]
[null,"Male 0-4",2.0320822999999999,77.402082000000007,"male","ALL",null,{"$f":"SUM(H79,H117,H155,H193,H231)","v":0},0,0,{"$error":"#VALUE!"},{"$error":"#VALUE!"},{"$error":"#VALUE!"},{"$error":"#VALUE!"},{"$error":"#VALUE!"},{"$error":"#VALUE!"},{"$error":"#VALUE!"},{"$error":"#VALUE!"},null,null,null,null,null,null,null,null,{"$f":"SUM(AA79,AA117,AA155,AA193,AA231)","v":{"$error":"#VALUE!"}},{"$error":"#VALUE!"},{"$error":"#VALUE!"},{"$error":"#VALUE!"},{"$error":"#VALUE!"},{"$error":"#VALUE!"},{"$error":"#VALUE!"},{"$error":"#VALUE!"},25000,{"$error":"#VALUE!"},{"$error":"#VALUE!"},{"$error":"#VALUE!"},{"$error":"#VALUE!"},{"$error":"#VALUE!"},{"$error":"#VALUE!"},{"$error":"#VALUE!"},{"$error":"#VALUE!"}]
[null,"Male 5-9",6.9784756000000003,77.398476000000002,"male","ALL",null,{"$f":"SUM(H80,H118,H156,H194,H232)","v":0},0,0,{"$error":"#VALUE!"},{"$error":"#VALUE!"},{"$error":"#VALUE!"},{"$error":"#VALUE!"},{"$error":"#VALUE!"},{"$error":"#VALUE!"},{"$error":"#VALUE!"},{"$error":"#VALUE!"},null,null,null,null,null,null,null,null,{"$f":"SUM(AA80,AA118,AA156,AA194,AA232)","v":{"$error":"#VALUE!"}},{"$error":"#VALUE!"},{"$error":"#VALUE!"},{"$error":"#VALUE!"},{"$error":"#VALUE!"},{"$error":"#VALUE!"},{"$error":"#VALUE!"},{"$error":"#VALUE!"},27500,{"$error":"#VALUE!"},{"$error":"#VALUE!"},{"$error":"#VALUE!"},{"$error":"#VALUE!"},{"$error":"#VALUE!"},{"$error":"#VALUE!"},{"$error":"#VALUE!"},{"$error":"#VALUE!"}]
[null,"Male 10-15",12.471144000000001,77.921140000000008,"male","ALL",null,{"$f":"SUM(H81,H119,H157,H195,H233)","v":0},0,0,{"$error":"#VALUE!"},{"$error":"#VALUE!"},{"$error":"#VALUE!"},{"$error":"#VALUE!"},{"$error":"#VALUE!"},{"$error":"#VALUE!"},{"$error":"#VALUE!"},{"$error":"#VALUE!"},null,null,null,null,null,null,null,null,{"$f":"SUM(AA81,AA119,AA157,AA195,AA233)","v":{"$error":"#VALUE!"}},{"$error":"#VALUE!"},{"$error":"#VALUE!"},{"$error":"#VALUE!"},{"$error":"#VALUE!"},{"$error":"#VALUE!"},{"$error":"#VALUE!"},{"$error":"#VALUE!"},33000,{"$error":"#VALUE!"},{"$error":"#VALUE!"},{"$error":"#VALUE!"},{"$error":"#VALUE!"},{"$error":"#VALUE!"},{"$error":"#VALUE!"},{"$error":"#VALUE!"},{"$error":"#VALUE!"}]
[null,"Male 16-19",17.556318000000001,77.07632000000001,"male","ALL",null,{"$f":"SUM(H82,H120,H158,H196,H234)","v":124418},0,19170,56.983085586300007,56.815164306,3334.6502824764002,3324.8235288174001,8826.1892314548004,8809.3200741315013,56.983085586300007,56.815164306,null,null,null,null,null,null,null,null,{"$f":"SUM(AA82,AA120,AA158,AA196,AA234)","v":1013108.4483698934},1010124.1448716874,59287108.42482233,59112466.978138655,156551621.59999999,156252538.10303301,1013108.4483698934,1010124.1448716874,22000,46.050384016813332,45.914733857803974,2694.8685647646512,2686.9303171881206,7115.9827999999998,7102.3880955924096,46.050384016813332,45.914733857803974]
[null,"Male 20-24",22.054632000000002,77.704629999999995,"male","ALL",null,{"$f":"SUM(H83,H121,H159,H197,H235)","v":181688},0,27993,117.52926087200001,117.1832154497,6422.9738715963003,6404.0624899596987,15171.5733622719,15142.590365029,117.52926087200001,117.1832154497,null,null,null,null,null,null,null,null,{"$f":"SUM(AA83,AA121,AA159,AA197,AA235)","v":1939971.5727290353},1934258.2557008017,106019442.56969902,105707209.80553277,250437460.62000003,249959025.18294904,1939971.5727290353,1934258.2557008017,30000,64.665719090967841,64.475275190026721,3533.9814189899671,3523.5736601844255,8347.9153540000007,8331.9675060983009,64.665719090967841,64.475275190026721]
[null,"Male 25-29",26.959762999999999,77.789760000000001,"male","ALL",null,{"$f":"SUM(H84,H122,H160,H198,H236)","v":186149},0,28681,180.0667229101,179.56071989240002,8972.7242624101018,8947.5101335562013,18844.707746336899,18809.672438263799,180.0667229101,179.56071989240002,null,null,null,null,null,null,null,null,{"$f":"SUM(AA84,AA122,AA160,AA198,AA236)","v":2808963.823753492},2801033.5756851346,139970658.91074497,139575494.67329067,298066844.88,297511139.29544091,2808963.823753492,2801033.5756851346,30000,93.63212745844973,93.367785856171153,4665.6886303581659,4652.5164891096892,9935.5614960000003,9917.0379765146972,93.63212745844973,93.367785856171153]
[null,"Male 30-34",31.981521999999998,78.061520000000002,"male","ALL",null,{"$f":"SUM(H85,H123,H161,H199,H237)","v":172305},0,26549,242.73364493950001,242.05129626190001,10942.432228405498,10911.671951383902,20810.1130147968,20771.409807512999,242.73364493950001,242.05129626190001,null,null,null,null,null,null,null,null,{"$f":"SUM(AA85,AA123,AA161,AA199,AA237)","v":4444721.4541476788},4432178.1542502828,200368034.26353687,199802582.32924727,385911765.13499999,385192258.65955609,4444721.4541476788,4432178.1542502828,32500,136.76066012762089,136.37471243847023,6165.1702850319034,6147.7717639768389,11874.208157999999,11852.069497217111,136.76066012762089,136.37471243847023]
[null,"Male 35-39",36.926009999999998,78.336009999999987,"male","ALL",null,{"$f":"SUM(H86,H124,H162,H200,H238)","v":161268},0,24847,321.64932170539998,320.7515863653,12997.849090115298,12961.5716050218,22880.108764238601,22837.631545695098,321.64932170539998,320.7515863653,null,null,null,null,null,null,null,null,{"$f":"SUM(AA86,AA124,AA162,AA200,AA238)","v":6949961.6819153037},6930544.8081146004,280847951.56619924,280063315.69591165,495329032.51999998,494408912.5736922,6949961.6819153037,6930544.8081146004,35000,198.57033376900867,198.01556594613143,8024.227187605693,8001.8090198831896,14152.258071999999,14125.96893067692,198.57033376900867,198.01556594613143]
[null,"Male 40-44",42.067703000000002,78.907700000000006,"male","ALL",null,{"$f":"SUM(H87,H125,H163,H201,H239)","v":164929},0,25411,475.91620807219999,474.58383821840005,17056.835469558999,17009.083337995802,27796.411228545301,27744.678219981695,475.91620807219999,474.58383821840005,null,null,null,null,null,null,null,null,{"$f":"SUM(AA87,AA125,AA163,AA201,AA239)","v":10240286.194035577},10211702.747540239,367011826.4733761,365987395.83673102,594504097.52999997,593399755.18177021,10240286.194035577,10211702.747540239,35000,292.57960554387364,291.76293564400686,10486.052184953604,10456.782738192314,16985.831357999999,16954.278719479149,292.57960554387364,291.76293564400686]
[null,"Male 45-49",47.038155000000003,79.418149999999997,"male","ALL",null,{"$f":"SUM(H88,H126,H164,H202,H240)","v":189422},0,29185,794.6930565184,792.44281923969993,24937.464140082098,24866.851705527697,38076.879094208001,38005.509958136696,794.6930565184,792.44281923969993,null,null,null,null,null,null,null,null,{"$f":"SUM(AA88,AA126,AA164,AA202,AA240)","v":14890850.385256773},14848810.074872253,467274810.63510543,465955585.90544105,709212168.1400001,707885226.55793238,14890850.385256773,14848810.074872253,35000,425.45286815019352,424.25171642492154,13350.708875288727,13313.016740155459,20263.204804000005,20225.292187369498,425.45286815019352,424.25171642492154]
[null,"Male 50-54",51.998646000000001,79.988649999999993,"male","ALL",null,{"$f":"SUM(H89,H127,H165,H203,H241)","v":197429},0,30419,1201.9410748933001,1198.5424690704999,32440.3944191345,32348.666034382699,47294.710130008105,47206.045982346004,1201.9410748933001,1198.5424690704999,null,null,null,null,null,null,null,null,{"$f":"SUM(AA89,AA127,AA165,AA203,AA241)","v":21629005.30036404},21568057.496277057,583766939.57284713,582121958.09674835,845753788.74000001,844171365.78153026,21629005.30036404,21568057.496277057,35000,617.97158001040111,616.23021417934444,16679.05541636706,16632.055945621381,24164.393963999999,24119.181879472293,617.97158001040111,616.23021417934444]
[null,"Male 55-59",56.950867000000002,80.660870000000003,"male","ALL",null,{"$f":"SUM(H90,H128,H166,H204,H242)","v":180737},0,27847,1594.9092706869001,1590.2857669933001,36220.394322027299,36115.394539275097,51591.136928716893,51492.811593298698,1594.9092706869001,1590.2857669933001,null,null,null,null,null,null,null,null,{"$f":"SUM(AA90,AA128,AA166,AA204,AA242)","v":29138433.176066414},29054328.55353529,661733904.84376752,659823888.6137712,936266656.77999997,934486483.26168931,29138433.176066414,29054328.55353529,32500,896.56717464819735,893.97934010877816,20361.043225962079,20302.273495808346,28808.204824,28753.430254205825,896.56717464819735,893.97934010877816]
[null,"Male 60-64",61.942988999999997,81.612989999999996,"male","ALL",null,{"$f":"SUM(H91,H129,H167,H205,H243)","v":156406},0,24099,1989.1832327154998,1983.4268531808998,37138.052943981602,37030.581332314199,53033.3207283355,52932.113245319102,1989.1832327154998,1983.4268531808998,null,null,null,null,null,null,null,null,{"$f":"SUM(AA91,AA129,AA167,AA205,AA243)","v":39108076.28396938},38995667.781011961,730147823.32978427,728049156.46716011,1031793595.7400001,1029831742.503222,39108076.28396938,38995667.781011961,30000,1303.6025427989794,1299.8555927003988,24338.260777659474,24268.305215572003,34393.119858000005,34327.724750107402,1303.6025427989794,1299.8555927003988]
[null,"Male 65-69",67.054419999999993,82.954419999999999,"male","ALL",null,{"$f":"SUM(H92,H130,H168,H206,H244)","v":153467},0,23645,2842.6808033265002,2834.0974289882997,42355.943969564803,42228.051691925706,62174.331774444901,62052.302069318801,2842.6808033265002,2834.0974289882997,null,null,null,null,null,null,null,null,{"$f":"SUM(AA92,AA130,AA168,AA206,AA244)","v":52531096.19883877},52373530.762462191,782713333.36269665,780365608.36068726,1133962873.1749997,1131744619.6978357,52531096.19883877,52373530.762462191,27500,1910.2216799577734,1904.492027725898,28462.303031370786,28376.931213115899,41235.013569999988,41154.349807194027,1910.2216799577734,1904.492027725898]
[null,"Male 70-74",71.891098,84.341099999999997,"male","ALL",null,{"$f":"SUM(H93,H131,H169,H207,H245)","v":111869},0,17236,2970.6637617858005,2961.7762427957996,34014.106013774894,33912.343903564302,53814.804399198903,53709.177946912896,2970.6637617858005,2961.7762427957996,null,null,null,null,null,null,null,null,{"$f":"SUM(AA93,AA131,AA169,AA207,AA245)","v":68441171.972835496},68237853.691359624,783651555.97130978,781323561.24177289,1223954579.8000002,1221560295.2061012,68441171.972835496,68237853.691359624,25000,2737.6468789134196,2729.5141476543849,31346.062238852392,31252.942449670914,48958.183192000004,48862.411808244047,2737.6468789134196,2729.5141476543849]
[null,"Male 75-79",76.907700000000006,86.357700000000008,"male","ALL",null,{"$f":"SUM(H94,H132,H170,H208,H246)","v":82515},0,12713,3200.4715334839998,3190.3492778016998,27043.984457939801,26958.4513974244,47629.863037836702,47532.391153887096,0,0,null,null,null,null,null,null,null,null,{"$f":"SUM(AA94,AA132,AA170,AA208,AA246)","v":79383208.597126752},79133343.268413693,670788112.6457212,668676750.61809659,1170005851.5599999,1167615862.225312,0,0,20000,3969.1604298563375,3956.6671634206846,33539.405632286063,33433.837530904828,58500.292578000001,58380.793111265601,0,0]
[null,"Male 80-84",81.797089,88.627089999999995,"male","ALL",null,{"$f":"SUM(H95,H133,H171,H209,H247)","v":56201},0,8660,3097.8644247156999,3088.2822513163001,18060.552693956899,18004.688613456299,38436.063031124599,38357.369751202306,0,0,null,null,null,null,null,null,null,null,{"$f":"SUM(AA95,AA133,AA171,AA209,AA247)","v":70991409.710358769},70773199.997856304,413879989.60280013,412607826.76070291,869840774.2249999,868063768.7471199,0,0,12500,5679.3127768287013,5661.8559998285045,33110.399168224008,33008.626140856235,69587.261937999996,69445.101499769589,0,0]
[null,"Male 85-89",86.630752999999999,91.420750000000012,"male","ALL",null,{"$f":"SUM(H96,H134,H172,H210,H248)","v":28287},0,4358,2191.93219662,2185.3605159315002,8307.4164493933004,8282.5097992988995,22836.6916996447,22789.9158586987,0,0,null,null,null,null,null,null,null,null,{"$f":"SUM(AA96,AA134,AA172,AA210,AA248)","v":60418636.163269326},60239161.022098646,228986449.80288491,228306239.55627257,619589003.44500005,618323530.90902281,0,0,7500,8055.8181551025764,8031.8881362798193,30531.526640384654,30440.831940836342,82611.867126000012,82443.13745453638,0,0]
[null,"Male 90+",92.215477000000007,95.515479999999997,"male","ALL",null,{"$f":"SUM(H97,H135,H173,H211,H249)","v":12017},0,1852,1382.0368717008,1378.1181051640001,3178.6889510224,3169.6757762315001,11815.7848009063,11791.576954573498,0,0,null,null,null,null,null,null,null,null,{"$f":"SUM(AA97,AA135,AA173,AA211,AA249)","v":59827349.050631411},59659602.489227757,137603082.2984964,137217264.70403099,503620030.09000003,502591177.9359647,0,0,5000,{"$f":"AA59/$AI59","v":11965.469810126282},11931.920497845551,{"$f":"AC59/$AI59","v":27520.616459699278},27443.452940806197,100724.006018,100518.23558719295,0,0]
[null,"Female 0-4",2.0384007,81.468401,"female",1,{"$f":"HLOOKUP(Calculations!$E$2,'Prevalence Rates'!$C$3:$BC$249,'Prevalence Rates'!$BD60,FALSE)","v":0},{"$f":"HLOOKUP(Calculations!$E$2,'Population 2016'!$C$3:$BC$249,'Population 2016'!BD60,FALSE)","v":0},0,{"$f":"HLOOKUP(Results!E$4,Targeting!$C$3:$F$249,Targeting!$G60,FALSE)","v":0},{"$f":"IF(AND(OR(Calculations!$E$2=\"Orkney Health Board\",Calculations!$E$2=\"Orkney Islands Local Authority\"),$F60=1),0,IF(AND(OR(Calculations!$E$2=\"Shetland Health Board\",Calculations!$E$2=\"Western Isles Health Board\",Calculations!$E$2=\"Shetland Islands Local Authority\",Calculations!$E$2=\"Eilean Siar Local Authority\"),OR($F60=1,$F60=5)),0,new_ci(VALUE(LEFT(Options!$B$24,2)),$C60,$E60,$F60,2016,$I60,1,$H60,$G60*$H60,Options!$B$8)))","v":{"$error":"#VALUE!"}},{"$f":"IF(AND(OR(Calculations!$E$2=\"Orkney Health Board\",Calculations!$E$2=\"Orkney Islands Local Authority\"),$F60=1),0,IF(AND(OR(Calculations!$E$2=\"Shetland Health Board\",Calculations!$E$2=\"Western Isles Health Board\",Calculations!$E$2=\"Shetland Islands Local Authority\",Calculations!$E$2=\"Eilean Siar Local Authority\"),OR($F60=1,$F60=5)),0,new_ci(VALUE(LEFT(Options!$B$24,2)),$C60,$E60,$F60,2016,$I60+$J60,1,$H60,$G60*$H60,Options!$B$8)))","v":{"$error":"#VALUE!"}},{"$f":"IF(AND(OR(Calculations!$E$2=\"Orkney Health Board\",Calculations!$E$2=\"Orkney Islands Local Authority\"),$F60=1),0,IF(AND(OR(Calculations!$E$2=\"Shetland Health Board\",Calculations!$E$2=\"Western Isles Health Board\",Calculations!$E$2=\"Shetland Islands Local Authority\",Calculations!$E$2=\"Eilean Siar Local Authority\"),OR($F60=1,$F60=5)),0,new_yllv2(VALUE(LEFT(Options!$B$24,2)),$C60,$D60,$E60,$F60,2016,$I60,1,$H60,$G60*$H60,Options!$B$8)))","v":{"$error":"#VALUE!"}},{"$f":"IF(AND(OR(Calculations!$E$2=\"Orkney Health Board\",Calculations!$E$2=\"Orkney Islands Local Authority\"),$F60=1),0,IF(AND(OR(Calculations!$E$2=\"Shetland Health Board\",Calculations!$E$2=\"Western Isles Health Board\",Calculations!$E$2=\"Shetland Islands Local Authority\",Calculations!$E$2=\"Eilean Siar Local Authority\"),OR($F60=1,$F60=5)),0,new_yllv2(VALUE(LEFT(Options!$B$24,2)),$C60,$D60,$E60,$F60,2016,$I60+$J60,1,$H60,$G60*$H60,Options!$B$8)))","v":{"$error":"#VALUE!"}},{"$f":"IF(AND(OR(Calculations!$E$2=\"Orkney Health Board\",Calculations!$E$2=\"Orkney Islands Local Authority\"),$F60=1),0,IF(AND(OR(Calculations!$E$2=\"Shetland Health Board\",Calculations!$E$2=\"Western Isles Health Board\",Calculations!$E$2=\"Shetland Islands Local Authority\",Calculations!$E$2=\"Eilean Siar Local Authority\"),OR($F60=1,$F60=5)),0,hosp_count(VALUE(LEFT(Options!$B$24,2)),$C60,$E60,$F60,2016,$I60,1,$H60,$G60*$H60, Options!$B$8)))","v":{"$error":"#VALUE!"}},{"$f":"IF(AND(OR(Calculations!$E$2=\"Orkney Health Board\",Calculations!$E$2=\"Orkney Islands Local Authority\"),$F60=1),0,IF(AND(OR(Calculations!$E$2=\"Shetland Health Board\",Calculations!$E$2=\"Western Isles Health Board\",Calculations!$E$2=\"Shetland Islands Local Authority\",Calculations!$E$2=\"Eilean Siar Local Authority\"),OR($F60=1,$F60=5)),0,hosp_count(VALUE(LEFT(Options!$B$24,2)),$C60,$E60,$F60,2016,$I60+$J60,1,$H60,$G60*$H60, Options!$B$8)))","v":{"$error":"#VALUE!"}},{"$f":"IF(AND(OR(Calculations!$E$2=\"Orkney Health Board\",Calculations!$E$2=\"Orkney Islands Local Authority\"),$F60=1),0,IF(AND(OR(Calculations!$E$2=\"Shetland Health Board\",Calculations!$E$2=\"Western Isles Health Board\",Calculations!$E$2=\"Shetland Islands Local Authority\",Calculations!$E$2=\"Eilean Siar Local Authority\"),OR($F60=1,$F60=5)),0,prem_mort(VALUE(LEFT(Options!$B$24,2)),$C60,$E60,$F60,2016,$I60,1,$H60,$G60*$H60,Options!$B$8)))","v":{"$error":"#VALUE!"}},{"$f":"IF(AND(OR(Calculations!$E$2=\"Orkney Health Board\",Calculations!$E$2=\"Orkney Islands Local Authority\"),$F60=1),0,IF(AND(OR(Calculations!$E$2=\"Shetland Health Board\",Calculations!$E$2=\"Western Isles Health Board\",Calculations!$E$2=\"Shetland Islands Local Authority\",Calculations!$E$2=\"Eilean Siar Local Authority\"),OR($F60=1,$F60=5)),0,prem_mort(VALUE(LEFT(Options!$B$24,2)),$C60,$E60,$F60,2016,$I60+$J60,1,$H60,$G60*$H60,Options!$B$8)))","v":{"$error":"#VALUE!"}},{"$f":"K60*100000/$H60","v":{"$error":"#VALUE!"}},{"$error":"#VALUE!"},{"$error":"#VALUE!"},{"$error":"#VALUE!"},{"$error":"#VALUE!"},{"$error":"#VALUE!"},{"$error":"#VALUE!"},{"$error":"#VALUE!"},{"$f":"S60*$AI60","v":{"$error":"#VALUE!"}},{"$f":"T60*$AI60","v":{"$error":"#VALUE!"}},{"$f":"U60*$AI60","v":{"$error":"#VALUE!"}},{"$f":"V60*$AI60","v":{"$error":"#VALUE!"}},{"$f":"W60*$AI60","v":{"$error":"#VALUE!"}},{"$f":"X60*$AI60","v":{"$error":"#VALUE!"}},{"$f":"Y60*$AI60","v":{"$error":"#VALUE!"}},{"$f":"Z60*$AI60","v":{"$error":"#VALUE!"}},5000]
[null,"Female 5-9",6.9792794999999996,81.439279999999997,"female",1,{"$f":"HLOOKUP(Calculations!$E$2,'Prevalence Rates'!$C$3:$BC$249,'Prevalence Rates'!$BD61,FALSE)","v":0},{"$f":"HLOOKUP(Calculations!$E$2,'Population 2016'!$C$3:$BC$249,'Population 2016'!BD61,FALSE)","v":0},0,{"$f":"HLOOKUP(Results!E$4,Targeting!$C$3:$F$249,Targeting!$G61,FALSE)","v":0},{"$f":"IF(AND(OR(Calculations!$E$2=\"Orkney Health Board\",Calculations!$E$2=\"Orkney Islands Local Authority\"),$F61=1),0,IF(AND(OR(Calculations!$E$2=\"Shetland Health Board\",Calculations!$E$2=\"Western Isles Health Board\",Calculations!$E$2=\"Shetland Islands Local Authority\",Calculations!$E$2=\"Eilean Siar Local Authority\"),OR($F61=1,$F61=5)),0,new_ci(VALUE(LEFT(Options!$B$24,2)),$C61,$E61,$F61,2016,$I61,1,$H61,$G61*$H61,Options!$B$8)))","v":{"$error":"#VALUE!"}},{"$f":"IF(AND(OR(Calculations!$E$2=\"Orkney Health Board\",Calculations!$E$2=\"Orkney Islands Local Authority\"),$F61=1),0,IF(AND(OR(Calculations!$E$2=\"Shetland Health Board\",Calculations!$E$2=\"Western Isles Health Board\",Calculations!$E$2=\"Shetland Islands Local Authority\",Calculations!$E$2=\"Eilean Siar Local Authority\"),OR($F61=1,$F61=5)),0,new_ci(VALUE(LEFT(Options!$B$24,2)),$C61,$E61,$F61,2016,$I61+$J61,1,$H61,$G61*$H61,Options!$B$8)))","v":{"$error":"#VALUE!"}},{"$f":"IF(AND(OR(Calculations!$E$2=\"Orkney Health Board\",Calculations!$E$2=\"Orkney Islands Local Authority\"),$F61=1),0,IF(AND(OR(Calculations!$E$2=\"Shetland Health Board\",Calculations!$E$2=\"Western Isles Health Board\",Calculations!$E$2=\"Shetland Islands Local Authority\",Calculations!$E$2=\"Eilean Siar Local Authority\"),OR($F61=1,$F61=5)),0,new_yllv2(VALUE(LEFT(Options!$B$24,2)),$C61,$D61,$E61,$F61,2016,$I61,1,$H61,$G61*$H61,Options!$B$8)))","v":{"$error":"#VALUE!"}},{"$f":"IF(AND(OR(Calculations!$E$2=\"Orkney Health Board\",Calculations!$E$2=\"Orkney Islands Local Authority\"),$F61=1),0,IF(AND(OR(Calculations!$E$2=\"Shetland Health Board\",Calculations!$E$2=\"Western Isles Health Board\",Calculations!$E$2=\"Shetland Islands Local Authority\",Calculations!$E$2=\"Eilean Siar Local Authority\"),OR($F61=1,$F61=5)),0,new_yllv2(VALUE(LEFT(Options!$B$24,2)),$C61,$D61,$E61,$F61,2016,$I61+$J61,1,$H61,$G61*$H61,Options!$B$8)))","v":{"$error":"#VALUE!"}},{"$f":"IF(AND(OR(Calculations!$E$2=\"Orkney Health Board\",Calculations!$E$2=\"Orkney Islands Local Authority\"),$F61=1),0,IF(AND(OR(Calculations!$E$2=\"Shetland Health Board\",Calculations!$E$2=\"Western Isles Health Board\",Calculations!$E$2=\"Shetland Islands Local Authority\",Calculations!$E$2=\"Eilean Siar Local Authority\"),OR($F61=1,$F61=5)),0,hosp_count(VALUE(LEFT(Options!$B$24,2)),$C61,$E61,$F61,2016,$I61,1,$H61,$G61*$H61, Options!$B$8)))","v":{"$error":"#VALUE!"}},{"$f":"IF(AND(OR(Calculations!$E$2=\"Orkney Health Board\",Calculations!$E$2=\"Orkney Islands Local Authority\"),$F61=1),0,IF(AND(OR(Calculations!$E$2=\"Shetland Health Board\",Calculations!$E$2=\"Western Isles Health Board\",Calculations!$E$2=\"Shetland Islands Local Authority\",Calculations!$E$2=\"Eilean Siar Local Authority\"),OR($F61=1,$F61=5)),0,hosp_count(VALUE(LEFT(Options!$B$24,2)),$C61,$E61,$F61,2016,$I61+$J61,1,$H61,$G61*$H61, Options!$B$8)))","v":{"$error":"#VALUE!"}},{"$f":"IF(AND(OR(Calculations!$E$2=\"Orkney Health Board\",Calculations!$E$2=\"Orkney Islands Local Authority\"),$F61=1),0,IF(AND(OR(Calculations!$E$2=\"Shetland Health Board\",Calculations!$E$2=\"Western Isles Health Board\",Calculations!$E$2=\"Shetland Islands Local Authority\",Calculations!$E$2=\"Eilean Siar Local Authority\"),OR($F61=1,$F61=5)),0,prem_mort(VALUE(LEFT(Options!$B$24,2)),$C61,$E61,$F61,2016,$I61,1,$H61,$G61*$H61,Options!$B$8)))","v":{"$error":"#VALUE!"}},{"$f":"IF(AND(OR(Calculations!$E$2=\"Orkney Health Board\",Calculations!$E$2=\"Orkney Islands Local Authority\"),$F61=1),0,IF(AND(OR(Calculations!$E$2=\"Shetland Health Board\",Calculations!$E$2=\"Western Isles Health Board\",Calculations!$E$2=\"Shetland Islands Local Authority\",Calculations!$E$2=\"Eilean Siar Local Authority\"),OR($F61=1,$F61=5)),0,prem_mort(VALUE(LEFT(Options!$B$24,2)),$C61,$E61,$F61,2016,$I61+$J61,1,$H61,$G61*$H61,Options!$B$8)))","v":{"$error":"#VALUE!"}},{"$f":"K61*100000/$H61","v":{"$error":"#VALUE!"}},{"$f":"L61*100000/$H61","v":{"$error":"#VALUE!"}},{"$f":"M61*100000/$H61","v":{"$error":"#VALUE!"}},{"$f":"N61*100000/$H61","v":{"$error":"#VALUE!"}},{"$f":"O61*100000/$H61","v":{"$error":"#VALUE!"}},{"$f":"P61*100000/$H61","v":{"$error":"#VALUE!"}},{"$f":"Q61*100000/$H61","v":{"$error":"#VALUE!"}},{"$f":"R61*100000/$H61","v":{"$error":"#VALUE!"}},{"$f":"S61*$AI61","v":{"$error":"#VALUE!"}},{"$f":"T61*$AI61","v":{"$error":"#VALUE!"}},{"$f":"U61*$AI61","v":{"$error":"#VALUE!"}},{"$error":"#VALUE!"},{"$error":"#VALUE!"},{"$error":"#VALUE!"},{"$error":"#VALUE!"},{"$error":"#VALUE!"},5500]
[null,"Female 10-15",12.478312000000001,81.948309999999992,"female",1,{"$f":"HLOOKUP(Calculations!$E$2,'Prevalence Rates'!$C$3:$BC$249,'Prevalence Rates'!$BD62,FALSE)","v":0},{"$f":"HLOOKUP(Calculations!$E$2,'Population 2016'!$C$3:$BC$249,'Population 2016'!BD62,FALSE)","v":0},0,{"$f":"HLOOKUP(Results!E$4,Targeting!$C$3:$F$249,Targeting!$G62,FALSE)","v":0},{"$f":"IF(AND(OR(Calculations!$E$2=\"Orkney Health Board\",Calculations!$E$2=\"Orkney Islands Local Authority\"),$F62=1),0,IF(AND(OR(Calculations!$E$2=\"Shetland Health Board\",Calculations!$E$2=\"Western Isles Health Board\",Calculations!$E$2=\"Shetland Islands Local Authority\",Calculations!$E$2=\"Eilean Siar Local Authority\"),OR($F62=1,$F62=5)),0,new_ci(VALUE(LEFT(Options!$B$24,2)),$C62,$E62,$F62,2016,$I62,1,$H62,$G62*$H62,Options!$B$8)))","v":{"$error":"#VALUE!"}},{"$f":"IF(AND(OR(Calculations!$E$2=\"Orkney Health Board\",Calculations!$E$2=\"Orkney Islands Local Authority\"),$F62=1),0,IF(AND(OR(Calculations!$E$2=\"Shetland Health Board\",Calculations!$E$2=\"Western Isles Health Board\",Calculations!$E$2=\"Shetland Islands Local Authority\",Calculations!$E$2=\"Eilean Siar Local Authority\"),OR($F62=1,$F62=5)),0,new_ci(VALUE(LEFT(Options!$B$24,2)),$C62,$E62,$F62,2016,$I62+$J62,1,$H62,$G62*$H62,Options!$B$8)))","v":{"$error":"#VALUE!"}},{"$f":"IF(AND(OR(Calculations!$E$2=\"Orkney Health Board\",Calculations!$E$2=\"Orkney Islands Local Authority\"),$F62=1),0,IF(AND(OR(Calculations!$E$2=\"Shetland Health Board\",Calculations!$E$2=\"Western Isles Health Board\",Calculations!$E$2=\"Shetland Islands Local Authority\",Calculations!$E$2=\"Eilean Siar Local Authority\"),OR($F62=1,$F62=5)),0,new_yllv2(VALUE(LEFT(Options!$B$24,2)),$C62,$D62,$E62,$F62,2016,$I62,1,$H62,$G62*$H62,Options!$B$8)))","v":{"$error":"#VALUE!"}},{"$f":"IF(AND(OR(Calculations!$E$2=\"Orkney Health Board\",Calculations!$E$2=\"Orkney Islands Local Authority\"),$F62=1),0,IF(AND(OR(Calculations!$E$2=\"Shetland Health Board\",Calculations!$E$2=\"Western Isles Health Board\",Calculations!$E$2=\"Shetland Islands Local Authority\",Calculations!$E$2=\"Eilean Siar Local Authority\"),OR($F62=1,$F62=5)),0,new_yllv2(VALUE(LEFT(Options!$B$24,2)),$C62,$D62,$E62,$F62,2016,$I62+$J62,1,$H62,$G62*$H62,Options!$B$8)))","v":{"$error":"#VALUE!"}},{"$f":"IF(AND(OR(Calculations!$E$2=\"Orkney Health Board\",Calculations!$E$2=\"Orkney Islands Local Authority\"),$F62=1),0,IF(AND(OR(Calculations!$E$2=\"Shetland Health Board\",Calculations!$E$2=\"Western Isles Health Board\",Calculations!$E$2=\"Shetland Islands Local Authority\",Calculations!$E$2=\"Eilean Siar Local Authority\"),OR($F62=1,$F62=5)),0,hosp_count(VALUE(LEFT(Options!$B$24,2)),$C62,$E62,$F62,2016,$I62,1,$H62,$G62*$H62, Options!$B$8)))","v":{"$error":"#VALUE!"}},{"$f":"IF(AND(OR(Calculations!$E$2=\"Orkney Health Board\",Calculations!$E$2=\"Orkney Islands Local Authority\"),$F62=1),0,IF(AND(OR(Calculations!$E$2=\"Shetland Health Board\",Calculations!$E$2=\"Western Isles Health Board\",Calculations!$E$2=\"Shetland Islands Local Authority\",Calculations!$E$2=\"Eilean Siar Local Authority\"),OR($F62=1,$F62=5)),0,hosp_count(VALUE(LEFT(Options!$B$24,2)),$C62,$E62,$F62,2016,$I62+$J62,1,$H62,$G62*$H62, Options!$B$8)))","v":{"$error":"#VALUE!"}},{"$f":"IF(AND(OR(Calculations!$E$2=\"Orkney Health Board\",Calculations!$E$2=\"Orkney Islands Local Authority\"),$F62=1),0,IF(AND(OR(Calculations!$E$2=\"Shetland Health Board\",Calculations!$E$2=\"Western Isles Health Board\",Calculations!$E$2=\"Shetland Islands Local Authority\",Calculations!$E$2=\"Eilean Siar Local Authority\"),OR($F62=1,$F62=5)),0,prem_mort(VALUE(LEFT(Options!$B$24,2)),$C62,$E62,$F62,2016,$I62,1,$H62,$G62*$H62,Options!$B$8)))","v":{"$error":"#VALUE!"}},{"$f":"IF(AND(OR(Calculations!$E$2=\"Orkney Health Board\",Calculations!$E$2=\"Orkney Islands Local Authority\"),$F62=1),0,IF(AND(OR(Calculations!$E$2=\"Shetland Health Board\",Calculations!$E$2=\"Western Isles Health Board\",Calculations!$E$2=\"Shetland Islands Local Authority\",Calculations!$E$2=\"Eilean Siar Local Authority\"),OR($F62=1,$F62=5)),0,prem_mort(VALUE(LEFT(Options!$B$24,2)),$C62,$E62,$F62,2016,$I62+$J62,1,$H62,$G62*$H62,Options!$B$8)))","v":{"$error":"#VALUE!"}},{"$error":"#VALUE!"},{"$error":"#VALUE!"},{"$error":"#VALUE!"},{"$error":"#VALUE!"},{"$error":"#VALUE!"},{"$error":"#VALUE!"},{"$error":"#VALUE!"},{"$error":"#VALUE!"},{"$error":"#VALUE!"},{"$error":"#VALUE!"},{"$error":"#VALUE!"},{"$error":"#VALUE!"},{"$error":"#VALUE!"},{"$error":"#VALUE!"},{"$error":"#VALUE!"},{"$error":"#VALUE!"},6600]
["SIMD Q1 (most deprived)","Female 16-19",17.570053000000001,81.100049999999996,"female",1,{"$f":"HLOOKUP(Calculations!$E$2,'Prevalence Rates'!$C$3:$BC$249,'Prevalence Rates'!$BD63,FALSE)","v":0.27679999999999999},{"$f":"HLOOKUP(Calculations!$E$2,'Population 2016'!$C$3:$BC$249,'Population 2016'!BD63,FALSE)","v":24142},0,{"$f":"HLOOKUP(Results!E$4,Targeting!$C$3:$F$249,Targeting!$G63,FALSE)","v":3720},{"$f":"IF(AND(OR(Calculations!$E$2=\"Orkney Health Board\",Calculations!$E$2=\"Orkney Islands Local Authority\"),$F63=1),0,IF(AND(OR(Calculations!$E$2=\"Shetland Health Board\",Calculations!$E$2=\"Western Isles Health Board\",Calculations!$E$2=\"Shetland Islands Local Authority\",Calculations!$E$2=\"Eilean Siar Local Authority\"),OR($F63=1,$F63=5)),0,new_ci(VALUE(LEFT(Options!$B$24,2)),$C63,$E63,$F63,2016,$I63,1,$H63,$G63*$H63,Options!$B$8)))","v":7.6776007304},{"$f":"IF(AND(OR(Calculations!$E$2=\"Orkney Health Board\",Calculations!$E$2=\"Orkney Islands Local Authority\"),$F63=1),0,IF(AND(OR(Calculations!$E$2=\"Shetland Health Board\",Calculations!$E$2=\"Western Isles Health Board\",Calculations!$E$2=\"Shetland Islands Local Authority\",Calculations!$E$2=\"Eilean Siar Local Authority\"),OR($F63=1,$F63=5)),0,new_ci(VALUE(LEFT(Options!$B$24,2)),$C63,$E63,$F63,2016,$I63+$J63,1,$H63,$G63*$H63,Options!$B$8)))","v":7.6452545864000001},{"$f":"IF(AND(OR(Calculations!$E$2=\"Orkney Health Board\",Calculations!$E$2=\"Orkney Islands Local Authority\"),$F63=1),0,IF(AND(OR(Calculations!$E$2=\"Shetland Health Board\",Calculations!$E$2=\"Western Isles Health Board\",Calculations!$E$2=\"Shetland Islands Local Authority\",Calculations!$E$2=\"Eilean Siar Local Authority\"),OR($F63=1,$F63=5)),0,new_yllv2(VALUE(LEFT(Options!$B$24,2)),$C63,$D63,$E63,$F63,2016,$I63,1,$H63,$G63*$H63,Options!$B$8)))","v":480.0803506391},{"$f":"IF(AND(OR(Calculations!$E$2=\"Orkney Health Board\",Calculations!$E$2=\"Orkney Islands Local Authority\"),$F63=1),0,IF(AND(OR(Calculations!$E$2=\"Shetland Health Board\",Calculations!$E$2=\"Western Isles Health Board\",Calculations!$E$2=\"Shetland Islands Local Authority\",Calculations!$E$2=\"Eilean Siar Local Authority\"),OR($F63=1,$F63=5)),0,new_yllv2(VALUE(LEFT(Options!$B$24,2)),$C63,$D63,$E63,$F63,2016,$I63+$J63,1,$H63,$G63*$H63,Options!$B$8)))","v":478.05774635180001},{"$f":"IF(AND(OR(Calculations!$E$2=\"Orkney Health Board\",Calculations!$E$2=\"Orkney Islands Local Authority\"),$F63=1),0,IF(AND(OR(Calculations!$E$2=\"Shetland Health Board\",Calculations!$E$2=\"Western Isles Health Board\",Calculations!$E$2=\"Shetland Islands Local Authority\",Calculations!$E$2=\"Eilean Siar Local Authority\"),OR($F63=1,$F63=5)),0,hosp_count(VALUE(LEFT(Options!$B$24,2)),$C63,$E63,$F63,2016,$I63,1,$H63,$G63*$H63, Options!$B$8)))","v":3441.2180067134},{"$f":"IF(AND(OR(Calculations!$E$2=\"Orkney Health Board\",Calculations!$E$2=\"Orkney Islands Local Authority\"),$F63=1),0,IF(AND(OR(Calculations!$E$2=\"Shetland Health Board\",Calculations!$E$2=\"Western Isles Health Board\",Calculations!$E$2=\"Shetland Islands Local Authority\",Calculations!$E$2=\"Eilean Siar Local Authority\"),OR($F63=1,$F63=5)),0,hosp_count(VALUE(LEFT(Options!$B$24,2)),$C63,$E63,$F63,2016,$I63+$J63,1,$H63,$G63*$H63, Options!$B$8)))","v":3432.3135185280998},{"$f":"IF(AND(OR(Calculations!$E$2=\"Orkney Health Board\",Calculations!$E$2=\"Orkney Islands Local Authority\"),$F63=1),0,IF(AND(OR(Calculations!$E$2=\"Shetland Health Board\",Calculations!$E$2=\"Western Isles Health Board\",Calculations!$E$2=\"Shetland Islands Local Authority\",Calculations!$E$2=\"Eilean Siar Local Authority\"),OR($F63=1,$F63=5)),0,prem_mort(VALUE(LEFT(Options!$B$24,2)),$C63,$E63,$F63,2016,$I63,1,$H63,$G63*$H63,Options!$B$8)))","v":7.6776007304},{"$f":"IF(AND(OR(Calculations!$E$2=\"Orkney Health Board\",Calculations!$E$2=\"Orkney Islands Local Authority\"),$F63=1),0,IF(AND(OR(Calculations!$E$2=\"Shetland Health Board\",Calculations!$E$2=\"Western Isles Health Board\",Calculations!$E$2=\"Shetland Islands Local Authority\",Calculations!$E$2=\"Eilean Siar Local Authority\"),OR($F63=1,$F63=5)),0,prem_mort(VALUE(LEFT(Options!$B$24,2)),$C63,$E63,$F63,2016,$I63+$J63,1,$H63,$G63*$H63,Options!$B$8)))","v":7.6452545864000001},31.801842143981446,31.667859275950626,1988.5690938575926,1980.1911455214979,14254.071769999999,14217.187965073728,31.801842143981446,31.667859275950626,{"$f":"S63*$AI63","v":139928.10543351836},139338.58081418276,8749704.0129734073,8712841.0402945913,62717915.787999995,62555627.046324402,139928.10543351836,{"$f":"Z63*$AI63","v":139338.58081418276},4400]
[null,"Female 20-24",22.077057,81.667060000000006,"female",1,{"$f":"HLOOKUP(Calculations!$E$2,'Prevalence Rates'!$C$3:$BC$249,'Prevalence Rates'!$BD64,FALSE)","v":0.27679999999999999},{"$f":"HLOOKUP(Calculations!$E$2,'Population 2016'!$C$3:$BC$249,'Population 2016'!BD64,FALSE)","v":37624},0,{"$f":"HLOOKUP(Results!E$4,Targeting!$C$3:$F$249,Targeting!$G64,FALSE)","v":5797},{"$f":"IF(AND(OR(Calculations!$E$2=\"Orkney Health Board\",Calculations!$E$2=\"Orkney Islands Local Authority\"),$F64=1),0,IF(AND(OR(Calculations!$E$2=\"Shetland Health Board\",Calculations!$E$2=\"Western Isles Health Board\",Calculations!$E$2=\"Shetland Islands Local Authority\",Calculations!$E$2=\"Eilean Siar Local Authority\"),OR($F64=1,$F64=5)),0,new_ci(VALUE(LEFT(Options!$B$24,2)),$C64,$E64,$F64,2016,$I64,1,$H64,$G64*$H64,Options!$B$8)))","v":17.5535384338},{"$f":"IF(AND(OR(Calculations!$E$2=\"Orkney Health Board\",Calculations!$E$2=\"Orkney Islands Local Authority\"),$F64=1),0,IF(AND(OR(Calculations!$E$2=\"Shetland Health Board\",Calculations!$E$2=\"Western Isles Health Board\",Calculations!$E$2=\"Shetland Islands Local Authority\",Calculations!$E$2=\"Eilean Siar Local Authority\"),OR($F64=1,$F64=5)),0,new_ci(VALUE(LEFT(Options!$B$24,2)),$C64,$E64,$F64,2016,$I64+$J64,1,$H64,$G64*$H64,Options!$B$8)))","v":17.479599437899999},{"$f":"IF(AND(OR(Calculations!$E$2=\"Orkney Health Board\",Calculations!$E$2=\"Orkney Islands Local Authority\"),$F64=1),0,IF(AND(OR(Calculations!$E$2=\"Shetland Health Board\",Calculations!$E$2=\"Western Isles Health Board\",Calculations!$E$2=\"Shetland Islands Local Authority\",Calculations!$E$2=\"Eilean Siar Local Authority\"),OR($F64=1,$F64=5)),0,new_yllv2(VALUE(LEFT(Options!$B$24,2)),$C64,$D64,$E64,$F64,2016,$I64,1,$H64,$G64*$H64,Options!$B$8)))","v":1028.461869497},{"$f":"IF(AND(OR(Calculations!$E$2=\"Orkney Health Board\",Calculations!$E$2=\"Orkney Islands Local Authority\"),$F64=1),0,IF(AND(OR(Calculations!$E$2=\"Shetland Health Board\",Calculations!$E$2=\"Western Isles Health Board\",Calculations!$E$2=\"Shetland Islands Local Authority\",Calculations!$E$2=\"Eilean Siar Local Authority\"),OR($F64=1,$F64=5)),0,new_yllv2(VALUE(LEFT(Options!$B$24,2)),$C64,$D64,$E64,$F64,2016,$I64+$J64,1,$H64,$G64*$H64,Options!$B$8)))","v":1024.1297835053999},{"$f":"IF(AND(OR(Calculations!$E$2=\"Orkney Health Board\",Calculations!$E$2=\"Orkney Islands Local Authority\"),$F64=1),0,IF(AND(OR(Calculations!$E$2=\"Shetland Health Board\",Calculations!$E$2=\"Western Isles Health Board\",Calculations!$E$2=\"Shetland Islands Local Authority\",Calculations!$E$2=\"Eilean Siar Local Authority\"),OR($F64=1,$F64=5)),0,hosp_count(VALUE(LEFT(Options!$B$24,2)),$C64,$E64,$F64,2016,$I64,1,$H64,$G64*$H64, Options!$B$8)))","v":6006.7410350919999},{"$f":"IF(AND(OR(Calculations!$E$2=\"Orkney Health Board\",Calculations!$E$2=\"Orkney Islands Local Authority\"),$F64=1),0,IF(AND(OR(Calculations!$E$2=\"Shetland Health Board\",Calculations!$E$2=\"Western Isles Health Board\",Calculations!$E$2=\"Shetland Islands Local Authority\",Calculations!$E$2=\"Eilean Siar Local Authority\"),OR($F64=1,$F64=5)),0,hosp_count(VALUE(LEFT(Options!$B$24,2)),$C64,$E64,$F64,2016,$I64+$J64,1,$H64,$G64*$H64, Options!$B$8)))","v":5991.1991276629997},{"$f":"IF(AND(OR(Calculations!$E$2=\"Orkney Health Board\",Calculations!$E$2=\"Orkney Islands Local Authority\"),$F64=1),0,IF(AND(OR(Calculations!$E$2=\"Shetland Health Board\",Calculations!$E$2=\"Western Isles Health Board\",Calculations!$E$2=\"Shetland Islands Local Authority\",Calculations!$E$2=\"Eilean Siar Local Authority\"),OR($F64=1,$F64=5)),0,prem_mort(VALUE(LEFT(Options!$B$24,2)),$C64,$E64,$F64,2016,$I64,1,$H64,$G64*$H64,Options!$B$8)))","v":17.5535384338},{"$f":"IF(AND(OR(Calculations!$E$2=\"Orkney Health Board\",Calculations!$E$2=\"Orkney Islands Local Authority\"),$F64=1),0,IF(AND(OR(Calculations!$E$2=\"Shetland Health Board\",Calculations!$E$2=\"Western Isles Health Board\",Calculations!$E$2=\"Shetland Islands Local Authority\",Calculations!$E$2=\"Eilean Siar Local Authority\"),OR($F64=1,$F64=5)),0,prem_mort(VALUE(LEFT(Options!$B$24,2)),$C64,$E64,$F64,2016,$I64+$J64,1,$H64,$G64*$H64,Options!$B$8)))","v":17.479599437899999},46.655162751966827,46.458641925100999,2733.5261256033382,2722.0119697677014,15965.18455,15923.876056939718,46.655162751966827,46.458641925100999,279930.97651180095,278751.85155060596,16401156.753620028,16332071.818606209,95791107.299999997,95543256.341638312,279930.97651180095,278751.85155060596,6000]
[null,"Female 25-29",26.975186999999998,81.645189999999999,"female",1,{"$f":"HLOOKUP(Calculations!$E$2,'Prevalence Rates'!$C$3:$BC$249,'Prevalence Rates'!$BD65,FALSE)","v":0.35870000000000002},{"$f":"HLOOKUP(Calculations!$E$2,'Population 2016'!$C$3:$BC$249,'Population 2016'!BD65,FALSE)","v":45129},0,{"$f":"HLOOKUP(Results!E$4,Targeting!$C$3:$F$249,Targeting!$G65,FALSE)","v":6953},{"$f":"IF(AND(OR(Calculations!$E$2=\"Orkney Health Board\",Calculations!$E$2=\"Orkney Islands Local Authority\"),$F65=1),0,IF(AND(OR(Calculations!$E$2=\"Shetland Health Board\",Calculations!$E$2=\"Western Isles Health Board\",Calculations!$E$2=\"Shetland Islands Local Authority\",Calculations!$E$2=\"Eilean Siar Local Authority\"),OR($F65=1,$F65=5)),0,new_ci(VALUE(LEFT(Options!$B$24,2)),$C65,$E65,$F65,2016,$I65,1,$H65,$G65*$H65,Options!$B$8)))","v":31.9321637366},{"$f":"IF(AND(OR(Calculations!$E$2=\"Orkney Health Board\",Calculations!$E$2=\"Orkney Islands Local Authority\"),$F65=1),0,IF(AND(OR(Calculations!$E$2=\"Shetland Health Board\",Calculations!$E$2=\"Western Isles Health Board\",Calculations!$E$2=\"Shetland Islands Local Authority\",Calculations!$E$2=\"Eilean Siar Local Authority\"),OR($F65=1,$F65=5)),0,new_ci(VALUE(LEFT(Options!$B$24,2)),$C65,$E65,$F65,2016,$I65+$J65,1,$H65,$G65*$H65,Options!$B$8)))","v":31.8045344686},{"$f":"IF(AND(OR(Calculations!$E$2=\"Orkney Health Board\",Calculations!$E$2=\"Orkney Islands Local Authority\"),$F65=1),0,IF(AND(OR(Calculations!$E$2=\"Shetland Health Board\",Calculations!$E$2=\"Western Isles Health Board\",Calculations!$E$2=\"Shetland Islands Local Authority\",Calculations!$E$2=\"Eilean Siar Local Authority\"),OR($F65=1,$F65=5)),0,new_yllv2(VALUE(LEFT(Options!$B$24,2)),$C65,$D65,$E65,$F65,2016,$I65,1,$H65,$G65*$H65,Options!$B$8)))","v":1713.7993235398001},{"$f":"IF(AND(OR(Calculations!$E$2=\"Orkney Health Board\",Calculations!$E$2=\"Orkney Islands Local Authority\"),$F65=1),0,IF(AND(OR(Calculations!$E$2=\"Shetland Health Board\",Calculations!$E$2=\"Western Isles Health Board\",Calculations!$E$2=\"Shetland Islands Local Authority\",Calculations!$E$2=\"Eilean Siar Local Authority\"),OR($F65=1,$F65=5)),0,new_yllv2(VALUE(LEFT(Options!$B$24,2)),$C65,$D65,$E65,$F65,2016,$I65+$J65,1,$H65,$G65*$H65,Options!$B$8)))","v":1706.9494603434},{"$f":"IF(AND(OR(Calculations!$E$2=\"Orkney Health Board\",Calculations!$E$2=\"Orkney Islands Local Authority\"),$F65=1),0,IF(AND(OR(Calculations!$E$2=\"Shetland Health Board\",Calculations!$E$2=\"Western Isles Health Board\",Calculations!$E$2=\"Shetland Islands Local Authority\",Calculations!$E$2=\"Eilean Siar Local Authority\"),OR($F65=1,$F65=5)),0,hosp_count(VALUE(LEFT(Options!$B$24,2)),$C65,$E65,$F65,2016,$I65,1,$H65,$G65*$H65, Options!$B$8)))","v":8149.6199866325996},{"$f":"IF(AND(OR(Calculations!$E$2=\"Orkney Health Board\",Calculations!$E$2=\"Orkney Islands Local Authority\"),$F65=1),0,IF(AND(OR(Calculations!$E$2=\"Shetland Health Board\",Calculations!$E$2=\"Western Isles Health Board\",Calculations!$E$2=\"Shetland Islands Local Authority\",Calculations!$E$2=\"Eilean Siar Local Authority\"),OR($F65=1,$F65=5)),0,hosp_count(VALUE(LEFT(Options!$B$24,2)),$C65,$E65,$F65,2016,$I65+$J65,1,$H65,$G65*$H65, Options!$B$8)))","v":8129.3279161691999},{"$f":"IF(AND(OR(Calculations!$E$2=\"Orkney Health Board\",Calculations!$E$2=\"Orkney Islands Local Authority\"),$F65=1),0,IF(AND(OR(Calculations!$E$2=\"Shetland Health Board\",Calculations!$E$2=\"Western Isles Health Board\",Calculations!$E$2=\"Shetland Islands Local Authority\",Calculations!$E$2=\"Eilean Siar Local Authority\"),OR($F65=1,$F65=5)),0,prem_mort(VALUE(LEFT(Options!$B$24,2)),$C65,$E65,$F65,2016,$I65,1,$H65,$G65*$H65,Options!$B$8)))","v":31.9321637366},{"$f":"IF(AND(OR(Calculations!$E$2=\"Orkney Health Board\",Calculations!$E$2=\"Orkney Islands Local Authority\"),$F65=1),0,IF(AND(OR(Calculations!$E$2=\"Shetland Health Board\",Calculations!$E$2=\"Western Isles Health Board\",Calculations!$E$2=\"Shetland Islands Local Authority\",Calculations!$E$2=\"Eilean Siar Local Authority\"),OR($F65=1,$F65=5)),0,prem_mort(VALUE(LEFT(Options!$B$24,2)),$C65,$E65,$F65,2016,$I65+$J65,1,$H65,$G65*$H65,Options!$B$8)))","v":31.8045344686},70.757525619003303,70.474715745086314,3797.5566122444548,3782.378205463006,18058.498940000001,18013.534348576748,70.757525619003303,70.474715745086314,424545.15371401981,422848.2944705179,22785339.673466727,22694269.232778035,108350993.64,108081206.09146048,424545.15371401981,422848.2944705179,6000]
[null,"Female 30-34",31.999904999999998,81.799899999999994,"female",1,{"$f":"HLOOKUP(Calculations!$E$2,'Prevalence Rates'!$C$3:$BC$249,'Prevalence Rates'!$BD66,FALSE)","v":0.35870000000000002},{"$f":"HLOOKUP(Calculations!$E$2,'Population 2016'!$C$3:$BC$249,'Population 2016'!BD66,FALSE)","v":41240},0,{"$f":"HLOOKUP(Results!E$4,Targeting!$C$3:$F$249,Targeting!$G66,FALSE)","v":6354},{"$f":"IF(AND(OR(Calculations!$E$2=\"Orkney Health Board\",Calculations!$E$2=\"Orkney Islands Local Authority\"),$F66=1),0,IF(AND(OR(Calculations!$E$2=\"Shetland Health Board\",Calculations!$E$2=\"Western Isles Health Board\",Calculations!$E$2=\"Shetland Islands Local Authority\",Calculations!$E$2=\"Eilean Siar Local Authority\"),OR($F66=1,$F66=5)),0,new_ci(VALUE(LEFT(Options!$B$24,2)),$C66,$E66,$F66,2016,$I66,1,$H66,$G66*$H66,Options!$B$8)))","v":44.730962071900002},{"$f":"IF(AND(OR(Calculations!$E$2=\"Orkney Health Board\",Calculations!$E$2=\"Orkney Islands Local Authority\"),$F66=1),0,IF(AND(OR(Calculations!$E$2=\"Shetland Health Board\",Calculations!$E$2=\"Western Isles Health Board\",Calculations!$E$2=\"Shetland Islands Local Authority\",Calculations!$E$2=\"Eilean Siar Local Authority\"),OR($F66=1,$F66=5)),0,new_ci(VALUE(LEFT(Options!$B$24,2)),$C66,$E66,$F66,2016,$I66+$J66,1,$H66,$G66*$H66,Options!$B$8)))","v":44.552229770499999},{"$f":"IF(AND(OR(Calculations!$E$2=\"Orkney Health Board\",Calculations!$E$2=\"Orkney Islands Local Authority\"),$F66=1),0,IF(AND(OR(Calculations!$E$2=\"Shetland Health Board\",Calculations!$E$2=\"Western Isles Health Board\",Calculations!$E$2=\"Shetland Islands Local Authority\",Calculations!$E$2=\"Eilean Siar Local Authority\"),OR($F66=1,$F66=5)),0,new_yllv2(VALUE(LEFT(Options!$B$24,2)),$C66,$D66,$E66,$F66,2016,$I66,1,$H66,$G66*$H66,Options!$B$8)))","v":2182.8707254538999},{"$f":"IF(AND(OR(Calculations!$E$2=\"Orkney Health Board\",Calculations!$E$2=\"Orkney Islands Local Authority\"),$F66=1),0,IF(AND(OR(Calculations!$E$2=\"Shetland Health Board\",Calculations!$E$2=\"Western Isles Health Board\",Calculations!$E$2=\"Shetland Islands Local Authority\",Calculations!$E$2=\"Eilean Siar Local Authority\"),OR($F66=1,$F66=5)),0,new_yllv2(VALUE(LEFT(Options!$B$24,2)),$C66,$D66,$E66,$F66,2016,$I66+$J66,1,$H66,$G66*$H66,Options!$B$8)))","v":2174.1485900393},{"$f":"IF(AND(OR(Calculations!$E$2=\"Orkney Health Board\",Calculations!$E$2=\"Orkney Islands Local Authority\"),$F66=1),0,IF(AND(OR(Calculations!$E$2=\"Shetland Health Board\",Calculations!$E$2=\"Western Isles Health Board\",Calculations!$E$2=\"Shetland Islands Local Authority\",Calculations!$E$2=\"Eilean Siar Local Authority\"),OR($F66=1,$F66=5)),0,hosp_count(VALUE(LEFT(Options!$B$24,2)),$C66,$E66,$F66,2016,$I66,1,$H66,$G66*$H66, Options!$B$8)))","v":8450.6647051239997},{"$f":"IF(AND(OR(Calculations!$E$2=\"Orkney Health Board\",Calculations!$E$2=\"Orkney Islands Local Authority\"),$F66=1),0,IF(AND(OR(Calculations!$E$2=\"Shetland Health Board\",Calculations!$E$2=\"Western Isles Health Board\",Calculations!$E$2=\"Shetland Islands Local Authority\",Calculations!$E$2=\"Eilean Siar Local Authority\"),OR($F66=1,$F66=5)),0,hosp_count(VALUE(LEFT(Options!$B$24,2)),$C66,$E66,$F66,2016,$I66+$J66,1,$H66,$G66*$H66, Options!$B$8)))","v":8429.6224673331999},{"$f":"IF(AND(OR(Calculations!$E$2=\"Orkney Health Board\",Calculations!$E$2=\"Orkney Islands Local Authority\"),$F66=1),0,IF(AND(OR(Calculations!$E$2=\"Shetland Health Board\",Calculations!$E$2=\"Western Isles Health Board\",Calculations!$E$2=\"Shetland Islands Local Authority\",Calculations!$E$2=\"Eilean Siar Local Authority\"),OR($F66=1,$F66=5)),0,prem_mort(VALUE(LEFT(Options!$B$24,2)),$C66,$E66,$F66,2016,$I66,1,$H66,$G66*$H66,Options!$B$8)))","v":44.730962071900002},{"$f":"IF(AND(OR(Calculations!$E$2=\"Orkney Health Board\",Calculations!$E$2=\"Orkney Islands Local Authority\"),$F66=1),0,IF(AND(OR(Calculations!$E$2=\"Shetland Health Board\",Calculations!$E$2=\"Western Isles Health Board\",Calculations!$E$2=\"Shetland Islands Local Authority\",Calculations!$E$2=\"Eilean Siar Local Authority\"),OR($F66=1,$F66=5)),0,prem_mort(VALUE(LEFT(Options!$B$24,2)),$C66,$E66,$F66,2016,$I66+$J66,1,$H66,$G66*$H66,Options!$B$8)))","v":44.552229770499999},108.46499047502427,108.03159498181377,5293.0909928562069,5271.9412949546559,20491.427510000001,20440.403655027159,108.46499047502427,108.03159498181377,705022.43808765768,702205.36738178949,34405091.453565344,34267618.417205267,133194278.81500001,132862623.75767654,705022.43808765768,702205.36738178949,6500]
[null,"Female 35-39",36.918118,81.898120000000006,"female",1,{"$f":"HLOOKUP(Calculations!$E$2,'Prevalence Rates'!$C$3:$BC$249,'Prevalence Rates'!$BD67,FALSE)","v":0.39290000000000003},{"$f":"HLOOKUP(Calculations!$E$2,'Population 2016'!$C$3:$BC$249,'Population 2016'!BD67,FALSE)","v":35038},0,{"$f":"HLOOKUP(Results!E$4,Targeting!$C$3:$F$249,Targeting!$G67,FALSE)","v":5398},{"$f":"IF(AND(OR(Calculations!$E$2=\"Orkney Health Board\",Calculations!$E$2=\"Orkney Islands Local Authority\"),$F67=1),0,IF(AND(OR(Calculations!$E$2=\"Shetland Health Board\",Calculations!$E$2=\"Western Isles Health Board\",Calculations!$E$2=\"Shetland Islands Local Authority\",Calculations!$E$2=\"Eilean Siar Local Authority\"),OR($F67=1,$F67=5)),0,new_ci(VALUE(LEFT(Options!$B$24,2)),$C67,$E67,$F67,2016,$I67,1,$H67,$G67*$H67,Options!$B$8)))","v":57.725522121099999},{"$f":"IF(AND(OR(Calculations!$E$2=\"Orkney Health Board\",Calculations!$E$2=\"Orkney Islands Local Authority\"),$F67=1),0,IF(AND(OR(Calculations!$E$2=\"Shetland Health Board\",Calculations!$E$2=\"Western Isles Health Board\",Calculations!$E$2=\"Shetland Islands Local Authority\",Calculations!$E$2=\"Eilean Siar Local Authority\"),OR($F67=1,$F67=5)),0,new_ci(VALUE(LEFT(Options!$B$24,2)),$C67,$E67,$F67,2016,$I67+$J67,1,$H67,$G67*$H67,Options!$B$8)))","v":57.499783159099998},{"$f":"IF(AND(OR(Calculations!$E$2=\"Orkney Health Board\",Calculations!$E$2=\"Orkney Islands Local Authority\"),$F67=1),0,IF(AND(OR(Calculations!$E$2=\"Shetland Health Board\",Calculations!$E$2=\"Western Isles Health Board\",Calculations!$E$2=\"Shetland Islands Local Authority\",Calculations!$E$2=\"Eilean Siar Local Authority\"),OR($F67=1,$F67=5)),0,new_yllv2(VALUE(LEFT(Options!$B$24,2)),$C67,$D67,$E67,$F67,2016,$I67,1,$H67,$G67*$H67,Options!$B$8)))","v":2538.7685783369998},{"$f":"IF(AND(OR(Calculations!$E$2=\"Orkney Health Board\",Calculations!$E$2=\"Orkney Islands Local Authority\"),$F67=1),0,IF(AND(OR(Calculations!$E$2=\"Shetland Health Board\",Calculations!$E$2=\"Western Isles Health Board\",Calculations!$E$2=\"Shetland Islands Local Authority\",Calculations!$E$2=\"Eilean Siar Local Authority\"),OR($F67=1,$F67=5)),0,new_yllv2(VALUE(LEFT(Options!$B$24,2)),$C67,$D67,$E67,$F67,2016,$I67+$J67,1,$H67,$G67*$H67,Options!$B$8)))","v":2528.8405783367998},{"$f":"IF(AND(OR(Calculations!$E$2=\"Orkney Health Board\",Calculations!$E$2=\"Orkney Islands Local Authority\"),$F67=1),0,IF(AND(OR(Calculations!$E$2=\"Shetland Health Board\",Calculations!$E$2=\"Western Isles Health Board\",Calculations!$E$2=\"Shetland Islands Local Authority\",Calculations!$E$2=\"Eilean Siar Local Authority\"),OR($F67=1,$F67=5)),0,hosp_count(VALUE(LEFT(Options!$B$24,2)),$C67,$E67,$F67,2016,$I67,1,$H67,$G67*$H67, Options!$B$8)))","v":8125.2852417628001},{"$f":"IF(AND(OR(Calculations!$E$2=\"Orkney Health Board\",Calculations!$E$2=\"Orkney Islands Local Authority\"),$F67=1),0,IF(AND(OR(Calculations!$E$2=\"Shetland Health Board\",Calculations!$E$2=\"Western Isles Health Board\",Calculations!$E$2=\"Shetland Islands Local Authority\",Calculations!$E$2=\"Eilean Siar Local Authority\"),OR($F67=1,$F67=5)),0,hosp_count(VALUE(LEFT(Options!$B$24,2)),$C67,$E67,$F67,2016,$I67+$J67,1,$H67,$G67*$H67, Options!$B$8)))","v":8105.3677465097999},{"$f":"IF(AND(OR(Calculations!$E$2=\"Orkney Health Board\",Calculations!$E$2=\"Orkney Islands Local Authority\"),$F67=1),0,IF(AND(OR(Calculations!$E$2=\"Shetland Health Board\",Calculations!$E$2=\"Western Isles Health Board\",Calculations!$E$2=\"Shetland Islands Local Authority\",Calculations!$E$2=\"Eilean Siar Local Authority\"),OR($F67=1,$F67=5)),0,prem_mort(VALUE(LEFT(Options!$B$24,2)),$C67,$E67,$F67,2016,$I67,1,$H67,$G67*$H67,Options!$B$8)))","v":57.725522121099999},{"$f":"IF(AND(OR(Calculations!$E$2=\"Orkney Health Board\",Calculations!$E$2=\"Orkney Islands Local Authority\"),$F67=1),0,IF(AND(OR(Calculations!$E$2=\"Shetland Health Board\",Calculations!$E$2=\"Western Isles Health Board\",Calculations!$E$2=\"Shetland Islands Local Authority\",Calculations!$E$2=\"Eilean Siar Local Authority\"),OR($F67=1,$F67=5)),0,prem_mort(VALUE(LEFT(Options!$B$24,2)),$C67,$E67,$F67,2016,$I67+$J67,1,$H67,$G67*$H67,Options!$B$8)))","v":57.499783159099998},164.75119048204806,164.10692151121637,7245.7576869027907,7217.4227362771844,23189.923060000001,23133.077648580969,164.75119048204806,164.10692151121637,1153258.3333743364,1148748.4505785145,50720303.808319539,50521959.15394029,162329461.42000002,161931543.54006678,1153258.3333743364,1148748.4505785145,7000]
[null,"Female 40-44",42.077438000000001,82.30744,"female",1,{"$f":"HLOOKUP(Calculations!$E$2,'Prevalence Rates'!$C$3:$BC$249,'Prevalence Rates'!$BD68,FALSE)","v":0.39290000000000003},{"$f":"HLOOKUP(Calculations!$E$2,'Population 2016'!$C$3:$BC$249,'Population 2016'!BD68,FALSE)","v":33663},0,{"$f":"HLOOKUP(Results!E$4,Targeting!$C$3:$F$249,Targeting!$G68,FALSE)","v":5187},{"$f":"IF(AND(OR(Calculations!$E$2=\"Orkney Health Board\",Calculations!$E$2=\"Orkney Islands Local Authority\"),$F68=1),0,IF(AND(OR(Calculations!$E$2=\"Shetland Health Board\",Calculations!$E$2=\"Western Isles Health Board\",Calculations!$E$2=\"Shetland Islands Local Authority\",Calculations!$E$2=\"Eilean Siar Local Authority\"),OR($F68=1,$F68=5)),0,new_ci(VALUE(LEFT(Options!$B$24,2)),$C68,$E68,$F68,2016,$I68,1,$H68,$G68*$H68,Options!$B$8)))","v":85.969617490399997},{"$f":"IF(AND(OR(Calculations!$E$2=\"Orkney Health Board\",Calculations!$E$2=\"Orkney Islands Local Authority\"),$F68=1),0,IF(AND(OR(Calculations!$E$2=\"Shetland Health Board\",Calculations!$E$2=\"Western Isles Health Board\",Calculations!$E$2=\"Shetland Islands Local Authority\",Calculations!$E$2=\"Eilean Siar Local Authority\"),OR($F68=1,$F68=5)),0,new_ci(VALUE(LEFT(Options!$B$24,2)),$C68,$E68,$F68,2016,$I68+$J68,1,$H68,$G68*$H68,Options!$B$8)))","v":85.633622303600006},{"$f":"IF(AND(OR(Calculations!$E$2=\"Orkney Health Board\",Calculations!$E$2=\"Orkney Islands Local Authority\"),$F68=1),0,IF(AND(OR(Calculations!$E$2=\"Shetland Health Board\",Calculations!$E$2=\"Western Isles Health Board\",Calculations!$E$2=\"Shetland Islands Local Authority\",Calculations!$E$2=\"Eilean Siar Local Authority\"),OR($F68=1,$F68=5)),0,new_yllv2(VALUE(LEFT(Options!$B$24,2)),$C68,$D68,$E68,$F68,2016,$I68,1,$H68,$G68*$H68,Options!$B$8)))","v":3372.5882660876},{"$f":"IF(AND(OR(Calculations!$E$2=\"Orkney Health Board\",Calculations!$E$2=\"Orkney Islands Local Authority\"),$F68=1),0,IF(AND(OR(Calculations!$E$2=\"Shetland Health Board\",Calculations!$E$2=\"Western Isles Health Board\",Calculations!$E$2=\"Shetland Islands Local Authority\",Calculations!$E$2=\"Eilean Siar Local Authority\"),OR($F68=1,$F68=5)),0,new_yllv2(VALUE(LEFT(Options!$B$24,2)),$C68,$D68,$E68,$F68,2016,$I68+$J68,1,$H68,$G68*$H68,Options!$B$8)))","v":3359.4071742374999},{"$f":"IF(AND(OR(Calculations!$E$2=\"Orkney Health Board\",Calculations!$E$2=\"Orkney Islands Local Authority\"),$F68=1),0,IF(AND(OR(Calculations!$E$2=\"Shetland Health Board\",Calculations!$E$2=\"Western Isles Health Board\",Calculations!$E$2=\"Shetland Islands Local Authority\",Calculations!$E$2=\"Eilean Siar Local Authority\"),OR($F68=1,$F68=5)),0,hosp_count(VALUE(LEFT(Options!$B$24,2)),$C68,$E68,$F68,2016,$I68,1,$H68,$G68*$H68, Options!$B$8)))","v":8888.1852506181003},{"$f":"IF(AND(OR(Calculations!$E$2=\"Orkney Health Board\",Calculations!$E$2=\"Orkney Islands Local Authority\"),$F68=1),0,IF(AND(OR(Calculations!$E$2=\"Shetland Health Board\",Calculations!$E$2=\"Western Isles Health Board\",Calculations!$E$2=\"Shetland Islands Local Authority\",Calculations!$E$2=\"Eilean Siar Local Authority\"),OR($F68=1,$F68=5)),0,hosp_count(VALUE(LEFT(Options!$B$24,2)),$C68,$E68,$F68,2016,$I68+$J68,1,$H68,$G68*$H68, Options!$B$8)))","v":8866.3941554726007},{"$f":"IF(AND(OR(Calculations!$E$2=\"Orkney Health Board\",Calculations!$E$2=\"Orkney Islands Local Authority\"),$F68=1),0,IF(AND(OR(Calculations!$E$2=\"Shetland Health Board\",Calculations!$E$2=\"Western Isles Health Board\",Calculations!$E$2=\"Shetland Islands Local Authority\",Calculations!$E$2=\"Eilean Siar Local Authority\"),OR($F68=1,$F68=5)),0,prem_mort(VALUE(LEFT(Options!$B$24,2)),$C68,$E68,$F68,2016,$I68,1,$H68,$G68*$H68,Options!$B$8)))","v":85.969617490399997},{"$f":"IF(AND(OR(Calculations!$E$2=\"Orkney Health Board\",Calculations!$E$2=\"Orkney Islands Local Authority\"),$F68=1),0,IF(AND(OR(Calculations!$E$2=\"Shetland Health Board\",Calculations!$E$2=\"Western Isles Health Board\",Calculations!$E$2=\"Shetland Islands Local Authority\",Calculations!$E$2=\"Eilean Siar Local Authority\"),OR($F68=1,$F68=5)),0,prem_mort(VALUE(LEFT(Options!$B$24,2)),$C68,$E68,$F68,2016,$I68+$J68,1,$H68,$G68*$H68,Options!$B$8)))","v":85.633622303600006},255.38311347889373,254.38499926803914,10018.680052543148,9979.5240300552523,26403.425869999999,26338.692794678431,255.38311347889373,254.38499926803914,1787681.7943522562,1780694.9948762739,70130760.367802039,69856668.210386768,184823981.09,184370849.56274903,1787681.7943522562,1780694.9948762739,7000]
[null,"Female 45-49",47.025772000000003,82.585769999999997,"female",1,{"$f":"HLOOKUP(Calculations!$E$2,'Prevalence Rates'!$C$3:$BC$249,'Prevalence Rates'!$BD69,FALSE)","v":0.43149999999999999},{"$f":"HLOOKUP(Calculations!$E$2,'Population 2016'!$C$3:$BC$249,'Population 2016'!BD69,FALSE)","v":39197},0,{"$f":"HLOOKUP(Results!E$4,Targeting!$C$3:$F$249,Targeting!$G69,FALSE)","v":6039},{"$f":"IF(AND(OR(Calculations!$E$2=\"Orkney Health Board\",Calculations!$E$2=\"Orkney Islands Local Authority\"),$F69=1),0,IF(AND(OR(Calculations!$E$2=\"Shetland Health Board\",Calculations!$E$2=\"Western Isles Health Board\",Calculations!$E$2=\"Shetland Islands Local Authority\",Calculations!$E$2=\"Eilean Siar Local Authority\"),OR($F69=1,$F69=5)),0,new_ci(VALUE(LEFT(Options!$B$24,2)),$C69,$E69,$F69,2016,$I69,1,$H69,$G69*$H69,Options!$B$8)))","v":152.3754440088},{"$f":"IF(AND(OR(Calculations!$E$2=\"Orkney Health Board\",Calculations!$E$2=\"Orkney Islands Local Authority\"),$F69=1),0,IF(AND(OR(Calculations!$E$2=\"Shetland Health Board\",Calculations!$E$2=\"Western Isles Health Board\",Calculations!$E$2=\"Shetland Islands Local Authority\",Calculations!$E$2=\"Eilean Siar Local Authority\"),OR($F69=1,$F69=5)),0,new_ci(VALUE(LEFT(Options!$B$24,2)),$C69,$E69,$F69,2016,$I69+$J69,1,$H69,$G69*$H69,Options!$B$8)))","v":151.7942180382},{"$f":"IF(AND(OR(Calculations!$E$2=\"Orkney Health Board\",Calculations!$E$2=\"Orkney Islands Local Authority\"),$F69=1),0,IF(AND(OR(Calculations!$E$2=\"Shetland Health Board\",Calculations!$E$2=\"Western Isles Health Board\",Calculations!$E$2=\"Shetland Islands Local Authority\",Calculations!$E$2=\"Eilean Siar Local Authority\"),OR($F69=1,$F69=5)),0,new_yllv2(VALUE(LEFT(Options!$B$24,2)),$C69,$D69,$E69,$F69,2016,$I69,1,$H69,$G69*$H69,Options!$B$8)))","v":5266.0950401931996},{"$f":"IF(AND(OR(Calculations!$E$2=\"Orkney Health Board\",Calculations!$E$2=\"Orkney Islands Local Authority\"),$F69=1),0,IF(AND(OR(Calculations!$E$2=\"Shetland Health Board\",Calculations!$E$2=\"Western Isles Health Board\",Calculations!$E$2=\"Shetland Islands Local Authority\",Calculations!$E$2=\"Eilean Siar Local Authority\"),OR($F69=1,$F69=5)),0,new_yllv2(VALUE(LEFT(Options!$B$24,2)),$C69,$D69,$E69,$F69,2016,$I69+$J69,1,$H69,$G69*$H69,Options!$B$8)))","v":5246.0078718118002},{"$f":"IF(AND(OR(Calculations!$E$2=\"Orkney Health Board\",Calculations!$E$2=\"Orkney Islands Local Authority\"),$F69=1),0,IF(AND(OR(Calculations!$E$2=\"Shetland Health Board\",Calculations!$E$2=\"Western Isles Health Board\",Calculations!$E$2=\"Shetland Islands Local Authority\",Calculations!$E$2=\"Eilean Siar Local Authority\"),OR($F69=1,$F69=5)),0,hosp_count(VALUE(LEFT(Options!$B$24,2)),$C69,$E69,$F69,2016,$I69,1,$H69,$G69*$H69, Options!$B$8)))","v":11721.123672973999},{"$f":"IF(AND(OR(Calculations!$E$2=\"Orkney Health Board\",Calculations!$E$2=\"Orkney Islands Local Authority\"),$F69=1),0,IF(AND(OR(Calculations!$E$2=\"Shetland Health Board\",Calculations!$E$2=\"Western Isles Health Board\",Calculations!$E$2=\"Shetland Islands Local Authority\",Calculations!$E$2=\"Eilean Siar Local Authority\"),OR($F69=1,$F69=5)),0,hosp_count(VALUE(LEFT(Options!$B$24,2)),$C69,$E69,$F69,2016,$I69+$J69,1,$H69,$G69*$H69, Options!$B$8)))","v":11692.8834776902},{"$f":"IF(AND(OR(Calculations!$E$2=\"Orkney Health Board\",Calculations!$E$2=\"Orkney Islands Local Authority\"),$F69=1),0,IF(AND(OR(Calculations!$E$2=\"Shetland Health Board\",Calculations!$E$2=\"Western Isles Health Board\",Calculations!$E$2=\"Shetland Islands Local Authority\",Calculations!$E$2=\"Eilean Siar Local Authority\"),OR($F69=1,$F69=5)),0,prem_mort(VALUE(LEFT(Options!$B$24,2)),$C69,$E69,$F69,2016,$I69,1,$H69,$G69*$H69,Options!$B$8)))","v":152.3754440088},{"$f":"IF(AND(OR(Calculations!$E$2=\"Orkney Health Board\",Calculations!$E$2=\"Orkney Islands Local Authority\"),$F69=1),0,IF(AND(OR(Calculations!$E$2=\"Shetland Health Board\",Calculations!$E$2=\"Western Isles Health Board\",Calculations!$E$2=\"Shetland Islands Local Authority\",Calculations!$E$2=\"Eilean Siar Local Authority\"),OR($F69=1,$F69=5)),0,prem_mort(VALUE(LEFT(Options!$B$24,2)),$C69,$E69,$F69,2016,$I69+$J69,1,$H69,$G69*$H69,Options!$B$8)))","v":151.7942180382},388.74261807995509,387.25978528509836,13434.94410335791,13383.69740493354,29903.1142,29831.067371712634,388.74261807995509,387.25978528509836,2721198.3265596856,2710818.4969956884,94044608.723505363,93685881.834534779,209321799.40000001,208817471.60198843,2721198.3265596856,2710818.4969956884,7000]
[null,"Female 50-54",51.990825999999998,82.980829999999997,"female",1,{"$f":"HLOOKUP(Calculations!$E$2,'Prevalence Rates'!$C$3:$BC$249,'Prevalence Rates'!$BD70,FALSE)","v":0.43149999999999999},{"$f":"HLOOKUP(Calculations!$E$2,'Population 2016'!$C$3:$BC$249,'Population 2016'!BD70,FALSE)","v":39704},0,{"$f":"HLOOKUP(Results!E$4,Targeting!$C$3:$F$249,Targeting!$G70,FALSE)","v":6117},{"$f":"IF(AND(OR(Calculations!$E$2=\"Orkney Health Board\",Calculations!$E$2=\"Orkney Islands Local Authority\"),$F70=1),0,IF(AND(OR(Calculations!$E$2=\"Shetland Health Board\",Calculations!$E$2=\"Western Isles Health Board\",Calculations!$E$2=\"Shetland Islands Local Authority\",Calculations!$E$2=\"Eilean Siar Local Authority\"),OR($F70=1,$F70=5)),0,new_ci(VALUE(LEFT(Options!$B$24,2)),$C70,$E70,$F70,2016,$I70,1,$H70,$G70*$H70,Options!$B$8)))","v":235.18855463989999},{"$f":"IF(AND(OR(Calculations!$E$2=\"Orkney Health Board\",Calculations!$E$2=\"Orkney Islands Local Authority\"),$F70=1),0,IF(AND(OR(Calculations!$E$2=\"Shetland Health Board\",Calculations!$E$2=\"Western Isles Health Board\",Calculations!$E$2=\"Shetland Islands Local Authority\",Calculations!$E$2=\"Eilean Siar Local Authority\"),OR($F70=1,$F70=5)),0,new_ci(VALUE(LEFT(Options!$B$24,2)),$C70,$E70,$F70,2016,$I70+$J70,1,$H70,$G70*$H70,Options!$B$8)))","v":234.29289677119999},{"$f":"IF(AND(OR(Calculations!$E$2=\"Orkney Health Board\",Calculations!$E$2=\"Orkney Islands Local Authority\"),$F70=1),0,IF(AND(OR(Calculations!$E$2=\"Shetland Health Board\",Calculations!$E$2=\"Western Isles Health Board\",Calculations!$E$2=\"Shetland Islands Local Authority\",Calculations!$E$2=\"Eilean Siar Local Authority\"),OR($F70=1,$F70=5)),0,new_yllv2(VALUE(LEFT(Options!$B$24,2)),$C70,$D70,$E70,$F70,2016,$I70,1,$H70,$G70*$H70,Options!$B$8)))","v":7053.3056944048003},{"$f":"IF(AND(OR(Calculations!$E$2=\"Orkney Health Board\",Calculations!$E$2=\"Orkney Islands Local Authority\"),$F70=1),0,IF(AND(OR(Calculations!$E$2=\"Shetland Health Board\",Calculations!$E$2=\"Western Isles Health Board\",Calculations!$E$2=\"Shetland Islands Local Authority\",Calculations!$E$2=\"Eilean Siar Local Authority\"),OR($F70=1,$F70=5)),0,new_yllv2(VALUE(LEFT(Options!$B$24,2)),$C70,$D70,$E70,$F70,2016,$I70+$J70,1,$H70,$G70*$H70,Options!$B$8)))","v":7026.4449113398996},{"$f":"IF(AND(OR(Calculations!$E$2=\"Orkney Health Board\",Calculations!$E$2=\"Orkney Islands Local Authority\"),$F70=1),0,IF(AND(OR(Calculations!$E$2=\"Shetland Health Board\",Calculations!$E$2=\"Western Isles Health Board\",Calculations!$E$2=\"Shetland Islands Local Authority\",Calculations!$E$2=\"Eilean Siar Local Authority\"),OR($F70=1,$F70=5)),0,hosp_count(VALUE(LEFT(Options!$B$24,2)),$C70,$E70,$F70,2016,$I70,1,$H70,$G70*$H70, Options!$B$8)))","v":13452.080933396001},{"$f":"IF(AND(OR(Calculations!$E$2=\"Orkney Health Board\",Calculations!$E$2=\"Orkney Islands Local Authority\"),$F70=1),0,IF(AND(OR(Calculations!$E$2=\"Shetland Health Board\",Calculations!$E$2=\"Western Isles Health Board\",Calculations!$E$2=\"Shetland Islands Local Authority\",Calculations!$E$2=\"Eilean Siar Local Authority\"),OR($F70=1,$F70=5)),0,hosp_count(VALUE(LEFT(Options!$B$24,2)),$C70,$E70,$F70,2016,$I70+$J70,1,$H70,$G70*$H70, Options!$B$8)))","v":13419.670865706101},{"$f":"IF(AND(OR(Calculations!$E$2=\"Orkney Health Board\",Calculations!$E$2=\"Orkney Islands Local Authority\"),$F70=1),0,IF(AND(OR(Calculations!$E$2=\"Shetland Health Board\",Calculations!$E$2=\"Western Isles Health Board\",Calculations!$E$2=\"Shetland Islands Local Authority\",Calculations!$E$2=\"Eilean Siar Local Authority\"),OR($F70=1,$F70=5)),0,prem_mort(VALUE(LEFT(Options!$B$24,2)),$C70,$E70,$F70,2016,$I70,1,$H70,$G70*$H70,Options!$B$8)))","v":235.18855463989999},{"$f":"IF(AND(OR(Calculations!$E$2=\"Orkney Health Board\",Calculations!$E$2=\"Orkney Islands Local Authority\"),$F70=1),0,IF(AND(OR(Calculations!$E$2=\"Shetland Health Board\",Calculations!$E$2=\"Western Isles Health Board\",Calculations!$E$2=\"Shetland Islands Local Authority\",Calculations!$E$2=\"Eilean Siar Local Authority\"),OR($F70=1,$F70=5)),0,prem_mort(VALUE(LEFT(Options!$B$24,2)),$C70,$E70,$F70,2016,$I70+$J70,1,$H70,$G70*$H70,Options!$B$8)))","v":234.29289677119999},592.3548122101048,590.09897433810193,17764.723187600241,17697.070600795636,33880.921150000002,33799.2919245066,592.3548122101048,590.09897433810193,4146483.6854707338,4130692.8203667137,124353062.31320168,123879494.20556945,237166448.05000001,236595043.4715462,4146483.6854707338,4130692.8203667137,7000]
[null,"Female 55-59",56.953040999999999,83.473039999999997,"female",1,{"$f":"HLOOKUP(Calculations!$E$2,'Prevalence Rates'!$C$3:$BC$249,'Prevalence Rates'!$BD71,FALSE)","v":0.39530000000000004},{"$f":"HLOOKUP(Calculations!$E$2,'Population 2016'!$C$3:$BC$249,'Population 2016'!BD71,FALSE)","v":35528},0,{"$f":"HLOOKUP(Results!E$4,Targeting!$C$3:$F$249,Targeting!$G71,FALSE)","v":5474},{"$f":"IF(AND(OR(Calculations!$E$2=\"Orkney Health Board\",Calculations!$E$2=\"Orkney Islands Local Authority\"),$F71=1),0,IF(AND(OR(Calculations!$E$2=\"Shetland Health Board\",Calculations!$E$2=\"Western Isles Health Board\",Calculations!$E$2=\"Shetland Islands Local Authority\",Calculations!$E$2=\"Eilean Siar Local Authority\"),OR($F71=1,$F71=5)),0,new_ci(VALUE(LEFT(Options!$B$24,2)),$C71,$E71,$F71,2016,$I71,1,$H71,$G71*$H71,Options!$B$8)))","v":320.41437052499998},{"$f":"IF(AND(OR(Calculations!$E$2=\"Orkney Health Board\",Calculations!$E$2=\"Orkney Islands Local Authority\"),$F71=1),0,IF(AND(OR(Calculations!$E$2=\"Shetland Health Board\",Calculations!$E$2=\"Western Isles Health Board\",Calculations!$E$2=\"Shetland Islands Local Authority\",Calculations!$E$2=\"Eilean Siar Local Authority\"),OR($F71=1,$F71=5)),0,new_ci(VALUE(LEFT(Options!$B$24,2)),$C71,$E71,$F71,2016,$I71+$J71,1,$H71,$G71*$H71,Options!$B$8)))","v":319.17058302480001},{"$f":"IF(AND(OR(Calculations!$E$2=\"Orkney Health Board\",Calculations!$E$2=\"Orkney Islands Local Authority\"),$F71=1),0,IF(AND(OR(Calculations!$E$2=\"Shetland Health Board\",Calculations!$E$2=\"Western Isles Health Board\",Calculations!$E$2=\"Shetland Islands Local Authority\",Calculations!$E$2=\"Eilean Siar Local Authority\"),OR($F71=1,$F71=5)),0,new_yllv2(VALUE(LEFT(Options!$B$24,2)),$C71,$D71,$E71,$F71,2016,$I71,1,$H71,$G71*$H71,Options!$B$8)))","v":8176.9744153836},{"$f":"IF(AND(OR(Calculations!$E$2=\"Orkney Health Board\",Calculations!$E$2=\"Orkney Islands Local Authority\"),$F71=1),0,IF(AND(OR(Calculations!$E$2=\"Shetland Health Board\",Calculations!$E$2=\"Western Isles Health Board\",Calculations!$E$2=\"Shetland Islands Local Authority\",Calculations!$E$2=\"Eilean Siar Local Authority\"),OR($F71=1,$F71=5)),0,new_yllv2(VALUE(LEFT(Options!$B$24,2)),$C71,$D71,$E71,$F71,2016,$I71+$J71,1,$H71,$G71*$H71,Options!$B$8)))","v":8145.2329596222999},{"$f":"IF(AND(OR(Calculations!$E$2=\"Orkney Health Board\",Calculations!$E$2=\"Orkney Islands Local Authority\"),$F71=1),0,IF(AND(OR(Calculations!$E$2=\"Shetland Health Board\",Calculations!$E$2=\"Western Isles Health Board\",Calculations!$E$2=\"Shetland Islands Local Authority\",Calculations!$E$2=\"Eilean Siar Local Authority\"),OR($F71=1,$F71=5)),0,hosp_count(VALUE(LEFT(Options!$B$24,2)),$C71,$E71,$F71,2016,$I71,1,$H71,$G71*$H71, Options!$B$8)))","v":13637.468044908001},{"$f":"IF(AND(OR(Calculations!$E$2=\"Orkney Health Board\",Calculations!$E$2=\"Orkney Islands Local Authority\"),$F71=1),0,IF(AND(OR(Calculations!$E$2=\"Shetland Health Board\",Calculations!$E$2=\"Western Isles Health Board\",Calculations!$E$2=\"Shetland Islands Local Authority\",Calculations!$E$2=\"Eilean Siar Local Authority\"),OR($F71=1,$F71=5)),0,hosp_count(VALUE(LEFT(Options!$B$24,2)),$C71,$E71,$F71,2016,$I71+$J71,1,$H71,$G71*$H71, Options!$B$8)))","v":13604.071682644701},{"$f":"IF(AND(OR(Calculations!$E$2=\"Orkney Health Board\",Calculations!$E$2=\"Orkney Islands Local Authority\"),$F71=1),0,IF(AND(OR(Calculations!$E$2=\"Shetland Health Board\",Calculations!$E$2=\"Western Isles Health Board\",Calculations!$E$2=\"Shetland Islands Local Authority\",Calculations!$E$2=\"Eilean Siar Local Authority\"),OR($F71=1,$F71=5)),0,prem_mort(VALUE(LEFT(Options!$B$24,2)),$C71,$E71,$F71,2016,$I71,1,$H71,$G71*$H71,Options!$B$8)))","v":320.41437052499998},{"$f":"IF(AND(OR(Calculations!$E$2=\"Orkney Health Board\",Calculations!$E$2=\"Orkney Islands Local Authority\"),$F71=1),0,IF(AND(OR(Calculations!$E$2=\"Shetland Health Board\",Calculations!$E$2=\"Western Isles Health Board\",Calculations!$E$2=\"Shetland Islands Local Authority\",Calculations!$E$2=\"Eilean Siar Local Authority\"),OR($F71=1,$F71=5)),0,prem_mort(VALUE(LEFT(Options!$B$24,2)),$C71,$E71,$F71,2016,$I71+$J71,1,$H71,$G71*$H71,Options!$B$8)))","v":319.17058302480001},901.86436198209856,898.36349646701194,23015.577615918712,22926.235531474609,38385.127350000002,38291.127231042279,901.86436198209856,898.36349646701194,5862118.3528836407,5839362.7270355774,149601254.50347161,149020530.95458496,249503327.77500001,248892327.00177482,5862118.3528836407,5839362.7270355774,6500]
[null,"Female 60-64",61.947387999999997,84.167389999999997,"female",1,{"$f":"HLOOKUP(Calculations!$E$2,'Prevalence Rates'!$C$3:$BC$249,'Prevalence Rates'!$BD72,FALSE)","v":0.39530000000000004},{"$f":"HLOOKUP(Calculations!$E$2,'Population 2016'!$C$3:$BC$249,'Population 2016'!BD72,FALSE)","v":29212},0,{"$f":"HLOOKUP(Results!E$4,Targeting!$C$3:$F$249,Targeting!$G72,FALSE)","v":4501},{"$f":"IF(AND(OR(Calculations!$E$2=\"Orkney Health Board\",Calculations!$E$2=\"Orkney Islands Local Authority\"),$F72=1),0,IF(AND(OR(Calculations!$E$2=\"Shetland Health Board\",Calculations!$E$2=\"Western Isles Health Board\",Calculations!$E$2=\"Shetland Islands Local Authority\",Calculations!$E$2=\"Eilean Siar Local Authority\"),OR($F72=1,$F72=5)),0,new_ci(VALUE(LEFT(Options!$B$24,2)),$C72,$E72,$F72,2016,$I72,1,$H72,$G72*$H72,Options!$B$8)))","v":401.84291151719998},{"$f":"IF(AND(OR(Calculations!$E$2=\"Orkney Health Board\",Calculations!$E$2=\"Orkney Islands Local Authority\"),$F72=1),0,IF(AND(OR(Calculations!$E$2=\"Shetland Health Board\",Calculations!$E$2=\"Western Isles Health Board\",Calculations!$E$2=\"Shetland Islands Local Authority\",Calculations!$E$2=\"Eilean Siar Local Authority\"),OR($F72=1,$F72=5)),0,new_ci(VALUE(LEFT(Options!$B$24,2)),$C72,$E72,$F72,2016,$I72+$J72,1,$H72,$G72*$H72,Options!$B$8)))","v":400.28905064150001},{"$f":"IF(AND(OR(Calculations!$E$2=\"Orkney Health Board\",Calculations!$E$2=\"Orkney Islands Local Authority\"),$F72=1),0,IF(AND(OR(Calculations!$E$2=\"Shetland Health Board\",Calculations!$E$2=\"Western Isles Health Board\",Calculations!$E$2=\"Shetland Islands Local Authority\",Calculations!$E$2=\"Eilean Siar Local Authority\"),OR($F72=1,$F72=5)),0,new_yllv2(VALUE(LEFT(Options!$B$24,2)),$C72,$D72,$E72,$F72,2016,$I72,1,$H72,$G72*$H72,Options!$B$8)))","v":8527.1073860807992},{"$f":"IF(AND(OR(Calculations!$E$2=\"Orkney Health Board\",Calculations!$E$2=\"Orkney Islands Local Authority\"),$F72=1),0,IF(AND(OR(Calculations!$E$2=\"Shetland Health Board\",Calculations!$E$2=\"Western Isles Health Board\",Calculations!$E$2=\"Shetland Islands Local Authority\",Calculations!$E$2=\"Eilean Siar Local Authority\"),OR($F72=1,$F72=5)),0,new_yllv2(VALUE(LEFT(Options!$B$24,2)),$C72,$D72,$E72,$F72,2016,$I72+$J72,1,$H72,$G72*$H72,Options!$B$8)))","v":8494.1344551907005},{"$f":"IF(AND(OR(Calculations!$E$2=\"Orkney Health Board\",Calculations!$E$2=\"Orkney Islands Local Authority\"),$F72=1),0,IF(AND(OR(Calculations!$E$2=\"Shetland Health Board\",Calculations!$E$2=\"Western Isles Health Board\",Calculations!$E$2=\"Shetland Islands Local Authority\",Calculations!$E$2=\"Eilean Siar Local Authority\"),OR($F72=1,$F72=5)),0,hosp_count(VALUE(LEFT(Options!$B$24,2)),$C72,$E72,$F72,2016,$I72,1,$H72,$G72*$H72, Options!$B$8)))","v":12714.0251895444},{"$f":"IF(AND(OR(Calculations!$E$2=\"Orkney Health Board\",Calculations!$E$2=\"Orkney Islands Local Authority\"),$F72=1),0,IF(AND(OR(Calculations!$E$2=\"Shetland Health Board\",Calculations!$E$2=\"Western Isles Health Board\",Calculations!$E$2=\"Shetland Islands Local Authority\",Calculations!$E$2=\"Eilean Siar Local Authority\"),OR($F72=1,$F72=5)),0,hosp_count(VALUE(LEFT(Options!$B$24,2)),$C72,$E72,$F72,2016,$I72+$J72,1,$H72,$G72*$H72, Options!$B$8)))","v":12682.889235688701},{"$f":"IF(AND(OR(Calculations!$E$2=\"Orkney Health Board\",Calculations!$E$2=\"Orkney Islands Local Authority\"),$F72=1),0,IF(AND(OR(Calculations!$E$2=\"Shetland Health Board\",Calculations!$E$2=\"Western Isles Health Board\",Calculations!$E$2=\"Shetland Islands Local Authority\",Calculations!$E$2=\"Eilean Siar Local Authority\"),OR($F72=1,$F72=5)),0,prem_mort(VALUE(LEFT(Options!$B$24,2)),$C72,$E72,$F72,2016,$I72,1,$H72,$G72*$H72,Options!$B$8)))","v":401.84291151719998},{"$f":"IF(AND(OR(Calculations!$E$2=\"Orkney Health Board\",Calculations!$E$2=\"Orkney Islands Local Authority\"),$F72=1),0,IF(AND(OR(Calculations!$E$2=\"Shetland Health Board\",Calculations!$E$2=\"Western Isles Health Board\",Calculations!$E$2=\"Shetland Islands Local Authority\",Calculations!$E$2=\"Eilean Siar Local Authority\"),OR($F72=1,$F72=5)),0,prem_mort(VALUE(LEFT(Options!$B$24,2)),$C72,$E72,$F72,2016,$I72+$J72,1,$H72,$G72*$H72,Options!$B$8)))","v":400.28905064150001},1375.6090357291523,1370.2897803693686,29190.426489390658,29077.551880017461,43523.295869999994,43416.709693580378,1375.6090357291523,1370.2897803693686,8253654.2143749138,8221738.6822162112,175142558.93634394,174465311.28010476,261139775.21999997,260500258.16148227,8253654.2143749138,8221738.6822162112,6000]
[null,"Female 65-69",67.063927000000007,85.193929999999995,"female",1,{"$f":"HLOOKUP(Calculations!$E$2,'Prevalence Rates'!$C$3:$BC$249,'Prevalence Rates'!$BD73,FALSE)","v":0.2737},{"$f":"HLOOKUP(Calculations!$E$2,'Population 2016'!$C$3:$BC$249,'Population 2016'!BD73,FALSE)","v":27762},0,{"$f":"HLOOKUP(Results!E$4,Targeting!$C$3:$F$249,Targeting!$G73,FALSE)","v":4277},{"$f":"IF(AND(OR(Calculations!$E$2=\"Orkney Health Board\",Calculations!$E$2=\"Orkney Islands Local Authority\"),$F73=1),0,IF(AND(OR(Calculations!$E$2=\"Shetland Health Board\",Calculations!$E$2=\"Western Isles Health Board\",Calculations!$E$2=\"Shetland Islands Local Authority\",Calculations!$E$2=\"Eilean Siar Local Authority\"),OR($F73=1,$F73=5)),0,new_ci(VALUE(LEFT(Options!$B$24,2)),$C73,$E73,$F73,2016,$I73,1,$H73,$G73*$H73,Options!$B$8)))","v":587.73026207639998},{"$f":"IF(AND(OR(Calculations!$E$2=\"Orkney Health Board\",Calculations!$E$2=\"Orkney Islands Local Authority\"),$F73=1),0,IF(AND(OR(Calculations!$E$2=\"Shetland Health Board\",Calculations!$E$2=\"Western Isles Health Board\",Calculations!$E$2=\"Shetland Islands Local Authority\",Calculations!$E$2=\"Eilean Siar Local Authority\"),OR($F73=1,$F73=5)),0,new_ci(VALUE(LEFT(Options!$B$24,2)),$C73,$E73,$F73,2016,$I73+$J73,1,$H73,$G73*$H73,Options!$B$8)))","v":585.29730987289997},{"$f":"IF(AND(OR(Calculations!$E$2=\"Orkney Health Board\",Calculations!$E$2=\"Orkney Islands Local Authority\"),$F73=1),0,IF(AND(OR(Calculations!$E$2=\"Shetland Health Board\",Calculations!$E$2=\"Western Isles Health Board\",Calculations!$E$2=\"Shetland Islands Local Authority\",Calculations!$E$2=\"Eilean Siar Local Authority\"),OR($F73=1,$F73=5)),0,new_yllv2(VALUE(LEFT(Options!$B$24,2)),$C73,$D73,$E73,$F73,2016,$I73,1,$H73,$G73*$H73,Options!$B$8)))","v":10067.8211525595},{"$f":"IF(AND(OR(Calculations!$E$2=\"Orkney Health Board\",Calculations!$E$2=\"Orkney Islands Local Authority\"),$F73=1),0,IF(AND(OR(Calculations!$E$2=\"Shetland Health Board\",Calculations!$E$2=\"Western Isles Health Board\",Calculations!$E$2=\"Shetland Islands Local Authority\",Calculations!$E$2=\"Eilean Siar Local Authority\"),OR($F73=1,$F73=5)),0,new_yllv2(VALUE(LEFT(Options!$B$24,2)),$C73,$D73,$E73,$F73,2016,$I73+$J73,1,$H73,$G73*$H73,Options!$B$8)))","v":10026.1446740147},{"$f":"IF(AND(OR(Calculations!$E$2=\"Orkney Health Board\",Calculations!$E$2=\"Orkney Islands Local Authority\"),$F73=1),0,IF(AND(OR(Calculations!$E$2=\"Shetland Health Board\",Calculations!$E$2=\"Western Isles Health Board\",Calculations!$E$2=\"Shetland Islands Local Authority\",Calculations!$E$2=\"Eilean Siar Local Authority\"),OR($F73=1,$F73=5)),0,hosp_count(VALUE(LEFT(Options!$B$24,2)),$C73,$E73,$F73,2016,$I73,1,$H73,$G73*$H73, Options!$B$8)))","v":13742.512922031599},{"$f":"IF(AND(OR(Calculations!$E$2=\"Orkney Health Board\",Calculations!$E$2=\"Orkney Islands Local Authority\"),$F73=1),0,IF(AND(OR(Calculations!$E$2=\"Shetland Health Board\",Calculations!$E$2=\"Western Isles Health Board\",Calculations!$E$2=\"Shetland Islands Local Authority\",Calculations!$E$2=\"Eilean Siar Local Authority\"),OR($F73=1,$F73=5)),0,hosp_count(VALUE(LEFT(Options!$B$24,2)),$C73,$E73,$F73,2016,$I73+$J73,1,$H73,$G73*$H73, Options!$B$8)))","v":13706.906785658301},{"$f":"IF(AND(OR(Calculations!$E$2=\"Orkney Health Board\",Calculations!$E$2=\"Orkney Islands Local Authority\"),$F73=1),0,IF(AND(OR(Calculations!$E$2=\"Shetland Health Board\",Calculations!$E$2=\"Western Isles Health Board\",Calculations!$E$2=\"Shetland Islands Local Authority\",Calculations!$E$2=\"Eilean Siar Local Authority\"),OR($F73=1,$F73=5)),0,prem_mort(VALUE(LEFT(Options!$B$24,2)),$C73,$E73,$F73,2016,$I73,1,$H73,$G73*$H73,Options!$B$8)))","v":587.73026207639998},{"$f":"IF(AND(OR(Calculations!$E$2=\"Orkney Health Board\",Calculations!$E$2=\"Orkney Islands Local Authority\"),$F73=1),0,IF(AND(OR(Calculations!$E$2=\"Shetland Health Board\",Calculations!$E$2=\"Western Isles Health Board\",Calculations!$E$2=\"Shetland Islands Local Authority\",Calculations!$E$2=\"Eilean Siar Local Authority\"),OR($F73=1,$F73=5)),0,prem_mort(VALUE(LEFT(Options!$B$24,2)),$C73,$E73,$F73,2016,$I73+$J73,1,$H73,$G73*$H73,Options!$B$8)))","v":585.29730987289997},2117.0314173200777,2108.2678116594625,36264.754529787118,36114.633938530009,49501.163180000003,49372.908240250341,2117.0314173200777,2108.2678116594625,11643672.795260428,11595472.964127043,199456149.91382915,198630486.66191503,272256397.49000001,271550995.32137686,11643672.795260428,11595472.964127043,5500]
[null,"Female 70-74",71.938164,86.248159999999999,"female",1,{"$f":"HLOOKUP(Calculations!$E$2,'Prevalence Rates'!$C$3:$BC$249,'Prevalence Rates'!$BD74,FALSE)","v":0.2737},{"$f":"HLOOKUP(Calculations!$E$2,'Population 2016'!$C$3:$BC$249,'Population 2016'!BD74,FALSE)","v":21786},0,{"$f":"HLOOKUP(Results!E$4,Targeting!$C$3:$F$249,Targeting!$G74,FALSE)","v":3357},{"$f":"IF(AND(OR(Calculations!$E$2=\"Orkney Health Board\",Calculations!$E$2=\"Orkney Islands Local Authority\"),$F74=1),0,IF(AND(OR(Calculations!$E$2=\"Shetland Health Board\",Calculations!$E$2=\"Western Isles Health Board\",Calculations!$E$2=\"Shetland Islands Local Authority\",Calculations!$E$2=\"Eilean Siar Local Authority\"),OR($F74=1,$F74=5)),0,new_ci(VALUE(LEFT(Options!$B$24,2)),$C74,$E74,$F74,2016,$I74,1,$H74,$G74*$H74,Options!$B$8)))","v":694.0259278044},{"$f":"IF(AND(OR(Calculations!$E$2=\"Orkney Health Board\",Calculations!$E$2=\"Orkney Islands Local Authority\"),$F74=1),0,IF(AND(OR(Calculations!$E$2=\"Shetland Health Board\",Calculations!$E$2=\"Western Isles Health Board\",Calculations!$E$2=\"Shetland Islands Local Authority\",Calculations!$E$2=\"Eilean Siar Local Authority\"),OR($F74=1,$F74=5)),0,new_ci(VALUE(LEFT(Options!$B$24,2)),$C74,$E74,$F74,2016,$I74+$J74,1,$H74,$G74*$H74,Options!$B$8)))","v":691.18144871549998},{"$f":"IF(AND(OR(Calculations!$E$2=\"Orkney Health Board\",Calculations!$E$2=\"Orkney Islands Local Authority\"),$F74=1),0,IF(AND(OR(Calculations!$E$2=\"Shetland Health Board\",Calculations!$E$2=\"Western Isles Health Board\",Calculations!$E$2=\"Shetland Islands Local Authority\",Calculations!$E$2=\"Eilean Siar Local Authority\"),OR($F74=1,$F74=5)),0,new_yllv2(VALUE(LEFT(Options!$B$24,2)),$C74,$D74,$E74,$F74,2016,$I74,1,$H74,$G74*$H74,Options!$B$8)))","v":9237.4823229729009},{"$f":"IF(AND(OR(Calculations!$E$2=\"Orkney Health Board\",Calculations!$E$2=\"Orkney Islands Local Authority\"),$F74=1),0,IF(AND(OR(Calculations!$E$2=\"Shetland Health Board\",Calculations!$E$2=\"Western Isles Health Board\",Calculations!$E$2=\"Shetland Islands Local Authority\",Calculations!$E$2=\"Eilean Siar Local Authority\"),OR($F74=1,$F74=5)),0,new_yllv2(VALUE(LEFT(Options!$B$24,2)),$C74,$D74,$E74,$F74,2016,$I74+$J74,1,$H74,$G74*$H74,Options!$B$8)))","v":9199.6223176775002},{"$f":"IF(AND(OR(Calculations!$E$2=\"Orkney Health Board\",Calculations!$E$2=\"Orkney Islands Local Authority\"),$F74=1),0,IF(AND(OR(Calculations!$E$2=\"Shetland Health Board\",Calculations!$E$2=\"Western Isles Health Board\",Calculations!$E$2=\"Shetland Islands Local Authority\",Calculations!$E$2=\"Eilean Siar Local Authority\"),OR($F74=1,$F74=5)),0,hosp_count(VALUE(LEFT(Options!$B$24,2)),$C74,$E74,$F74,2016,$I74,1,$H74,$G74*$H74, Options!$B$8)))","v":12191.007503147401},{"$f":"IF(AND(OR(Calculations!$E$2=\"Orkney Health Board\",Calculations!$E$2=\"Orkney Islands Local Authority\"),$F74=1),0,IF(AND(OR(Calculations!$E$2=\"Shetland Health Board\",Calculations!$E$2=\"Western Isles Health Board\",Calculations!$E$2=\"Shetland Islands Local Authority\",Calculations!$E$2=\"Eilean Siar Local Authority\"),OR($F74=1,$F74=5)),0,hosp_count(VALUE(LEFT(Options!$B$24,2)),$C74,$E74,$F74,2016,$I74+$J74,1,$H74,$G74*$H74, Options!$B$8)))","v":12159.415029191299},{"$f":"IF(AND(OR(Calculations!$E$2=\"Orkney Health Board\",Calculations!$E$2=\"Orkney Islands Local Authority\"),$F74=1),0,IF(AND(OR(Calculations!$E$2=\"Shetland Health Board\",Calculations!$E$2=\"Western Isles Health Board\",Calculations!$E$2=\"Shetland Islands Local Authority\",Calculations!$E$2=\"Eilean Siar Local Authority\"),OR($F74=1,$F74=5)),0,prem_mort(VALUE(LEFT(Options!$B$24,2)),$C74,$E74,$F74,2016,$I74,1,$H74,$G74*$H74,Options!$B$8)))","v":694.0259278044},{"$f":"IF(AND(OR(Calculations!$E$2=\"Orkney Health Board\",Calculations!$E$2=\"Orkney Islands Local Authority\"),$F74=1),0,IF(AND(OR(Calculations!$E$2=\"Shetland Health Board\",Calculations!$E$2=\"Western Isles Health Board\",Calculations!$E$2=\"Shetland Islands Local Authority\",Calculations!$E$2=\"Eilean Siar Local Authority\"),OR($F74=1,$F74=5)),0,prem_mort(VALUE(LEFT(Options!$B$24,2)),$C74,$E74,$F74,2016,$I74+$J74,1,$H74,$G74*$H74,Options!$B$8)))","v":691.18144871549998},3185.651004334894,3172.59455024098,42401.002125093641,42227.220773329202,55957.98909000001,55812.976357253734,3185.651004334894,3172.59455024098,15928255.021674469,15862972.7512049,212005010.62546819,211136103.86664602,279789945.45000005,279064881.78626865,15928255.021674469,15862972.7512049,5000]
[null,"Female 75-79",76.942824999999999,87.812830000000005,"female",1,{"$f":"HLOOKUP(Calculations!$E$2,'Prevalence Rates'!$C$3:$BC$249,'Prevalence Rates'!$BD75,FALSE)","v":0.14899999999999999},{"$f":"HLOOKUP(Calculations!$E$2,'Population 2016'!$C$3:$BC$249,'Population 2016'!BD75,FALSE)","v":19138},0,{"$f":"HLOOKUP(Results!E$4,Targeting!$C$3:$F$249,Targeting!$G75,FALSE)","v":2949},{"$f":"IF(AND(OR(Calculations!$E$2=\"Orkney Health Board\",Calculations!$E$2=\"Orkney Islands Local Authority\"),$F75=1),0,IF(AND(OR(Calculations!$E$2=\"Shetland Health Board\",Calculations!$E$2=\"Western Isles Health Board\",Calculations!$E$2=\"Shetland Islands Local Authority\",Calculations!$E$2=\"Eilean Siar Local Authority\"),OR($F75=1,$F75=5)),0,new_ci(VALUE(LEFT(Options!$B$24,2)),$C75,$E75,$F75,2016,$I75,1,$H75,$G75*$H75,Options!$B$8)))","v":925.05143352840003},{"$f":"IF(AND(OR(Calculations!$E$2=\"Orkney Health Board\",Calculations!$E$2=\"Orkney Islands Local Authority\"),$F75=1),0,IF(AND(OR(Calculations!$E$2=\"Shetland Health Board\",Calculations!$E$2=\"Western Isles Health Board\",Calculations!$E$2=\"Shetland Islands Local Authority\",Calculations!$E$2=\"Eilean Siar Local Authority\"),OR($F75=1,$F75=5)),0,new_ci(VALUE(LEFT(Options!$B$24,2)),$C75,$E75,$F75,2016,$I75+$J75,1,$H75,$G75*$H75,Options!$B$8)))","v":921.01559904179999},{"$f":"IF(AND(OR(Calculations!$E$2=\"Orkney Health Board\",Calculations!$E$2=\"Orkney Islands Local Authority\"),$F75=1),0,IF(AND(OR(Calculations!$E$2=\"Shetland Health Board\",Calculations!$E$2=\"Western Isles Health Board\",Calculations!$E$2=\"Shetland Islands Local Authority\",Calculations!$E$2=\"Eilean Siar Local Authority\"),OR($F75=1,$F75=5)),0,new_yllv2(VALUE(LEFT(Options!$B$24,2)),$C75,$D75,$E75,$F75,2016,$I75,1,$H75,$G75*$H75,Options!$B$8)))","v":9130.2622741824998},{"$f":"IF(AND(OR(Calculations!$E$2=\"Orkney Health Board\",Calculations!$E$2=\"Orkney Islands Local Authority\"),$F75=1),0,IF(AND(OR(Calculations!$E$2=\"Shetland Health Board\",Calculations!$E$2=\"Western Isles Health Board\",Calculations!$E$2=\"Shetland Islands Local Authority\",Calculations!$E$2=\"Eilean Siar Local Authority\"),OR($F75=1,$F75=5)),0,new_yllv2(VALUE(LEFT(Options!$B$24,2)),$C75,$D75,$E75,$F75,2016,$I75+$J75,1,$H75,$G75*$H75,Options!$B$8)))","v":9090.4285676206},{"$f":"IF(AND(OR(Calculations!$E$2=\"Orkney Health Board\",Calculations!$E$2=\"Orkney Islands Local Authority\"),$F75=1),0,IF(AND(OR(Calculations!$E$2=\"Shetland Health Board\",Calculations!$E$2=\"Western Isles Health Board\",Calculations!$E$2=\"Shetland Islands Local Authority\",Calculations!$E$2=\"Eilean Siar Local Authority\"),OR($F75=1,$F75=5)),0,hosp_count(VALUE(LEFT(Options!$B$24,2)),$C75,$E75,$F75,2016,$I75,1,$H75,$G75*$H75, Options!$B$8)))","v":12145.911451996},{"$f":"IF(AND(OR(Calculations!$E$2=\"Orkney Health Board\",Calculations!$E$2=\"Orkney Islands Local Authority\"),$F75=1),0,IF(AND(OR(Calculations!$E$2=\"Shetland Health Board\",Calculations!$E$2=\"Western Isles Health Board\",Calculations!$E$2=\"Shetland Islands Local Authority\",Calculations!$E$2=\"Eilean Siar Local Authority\"),OR($F75=1,$F75=5)),0,hosp_count(VALUE(LEFT(Options!$B$24,2)),$C75,$E75,$F75,2016,$I75+$J75,1,$H75,$G75*$H75, Options!$B$8)))","v":12112.440260293801},{"$f":"IF(AND(OR(Calculations!$E$2=\"Orkney Health Board\",Calculations!$E$2=\"Orkney Islands Local Authority\"),$F75=1),0,IF(AND(OR(Calculations!$E$2=\"Shetland Health Board\",Calculations!$E$2=\"Western Isles Health Board\",Calculations!$E$2=\"Shetland Islands Local Authority\",Calculations!$E$2=\"Eilean Siar Local Authority\"),OR($F75=1,$F75=5)),0,prem_mort(VALUE(LEFT(Options!$B$24,2)),$C75,$E75,$F75,2016,$I75,1,$H75,$G75*$H75,Options!$B$8)))","v":0},{"$f":"IF(AND(OR(Calculations!$E$2=\"Orkney Health Board\",Calculations!$E$2=\"Orkney Islands Local Authority\"),$F75=1),0,IF(AND(OR(Calculations!$E$2=\"Shetland Health Board\",Calculations!$E$2=\"Western Isles Health Board\",Calculations!$E$2=\"Shetland Islands Local Authority\",Calculations!$E$2=\"Eilean Siar Local Authority\"),OR($F75=1,$F75=5)),0,prem_mort(VALUE(LEFT(Options!$B$24,2)),$C75,$E75,$F75,2016,$I75+$J75,1,$H75,$G75*$H75,Options!$B$8)))","v":0},4833.584666780228,4812.4965986090501,47707.504829044308,47499.365490754521,63464.894200000002,63290.000315047553,0,0,19334338.667120911,19249986.394436199,190830019.31617722,189997461.96301809,253859576.80000001,253160001.26019022,0,0,4000]
[null,"Female 80-84",81.856712000000002,89.736710000000002,"female",1,{"$f":"HLOOKUP(Calculations!$E$2,'Prevalence Rates'!$C$3:$BC$249,'Prevalence Rates'!$BD76,FALSE)","v":0.14899999999999999},{"$f":"HLOOKUP(Calculations!$E$2,'Population 2016'!$C$3:$BC$249,'Population 2016'!BD76,FALSE)","v":14776},0,{"$f":"HLOOKUP(Results!E$4,Targeting!$C$3:$F$249,Targeting!$G76,FALSE)","v":2277},{"$f":"IF(AND(OR(Calculations!$E$2=\"Orkney Health Board\",Calculations!$E$2=\"Orkney Islands Local Authority\"),$F76=1),0,IF(AND(OR(Calculations!$E$2=\"Shetland Health Board\",Calculations!$E$2=\"Western Isles Health Board\",Calculations!$E$2=\"Shetland Islands Local Authority\",Calculations!$E$2=\"Eilean Siar Local Authority\"),OR($F76=1,$F76=5)),0,new_ci(VALUE(LEFT(Options!$B$24,2)),$C76,$E76,$F76,2016,$I76,1,$H76,$G76*$H76,Options!$B$8)))","v":1070.2187304704},{"$f":"IF(AND(OR(Calculations!$E$2=\"Orkney Health Board\",Calculations!$E$2=\"Orkney Islands Local Authority\"),$F76=1),0,IF(AND(OR(Calculations!$E$2=\"Shetland Health Board\",Calculations!$E$2=\"Western Isles Health Board\",Calculations!$E$2=\"Shetland Islands Local Authority\",Calculations!$E$2=\"Eilean Siar Local Authority\"),OR($F76=1,$F76=5)),0,new_ci(VALUE(LEFT(Options!$B$24,2)),$C76,$E76,$F76,2016,$I76+$J76,1,$H76,$G76*$H76,Options!$B$8)))","v":1065.6759902353999},{"$f":"IF(AND(OR(Calculations!$E$2=\"Orkney Health Board\",Calculations!$E$2=\"Orkney Islands Local Authority\"),$F76=1),0,IF(AND(OR(Calculations!$E$2=\"Shetland Health Board\",Calculations!$E$2=\"Western Isles Health Board\",Calculations!$E$2=\"Shetland Islands Local Authority\",Calculations!$E$2=\"Eilean Siar Local Authority\"),OR($F76=1,$F76=5)),0,new_yllv2(VALUE(LEFT(Options!$B$24,2)),$C76,$D76,$E76,$F76,2016,$I76,1,$H76,$G76*$H76,Options!$B$8)))","v":7363.1027251988999},{"$f":"IF(AND(OR(Calculations!$E$2=\"Orkney Health Board\",Calculations!$E$2=\"Orkney Islands Local Authority\"),$F76=1),0,IF(AND(OR(Calculations!$E$2=\"Shetland Health Board\",Calculations!$E$2=\"Western Isles Health Board\",Calculations!$E$2=\"Shetland Islands Local Authority\",Calculations!$E$2=\"Eilean Siar Local Authority\"),OR($F76=1,$F76=5)),0,new_yllv2(VALUE(LEFT(Options!$B$24,2)),$C76,$D76,$E76,$F76,2016,$I76+$J76,1,$H76,$G76*$H76,Options!$B$8)))","v":7331.8486814675998},{"$f":"IF(AND(OR(Calculations!$E$2=\"Orkney Health Board\",Calculations!$E$2=\"Orkney Islands Local Authority\"),$F76=1),0,IF(AND(OR(Calculations!$E$2=\"Shetland Health Board\",Calculations!$E$2=\"Western Isles Health Board\",Calculations!$E$2=\"Shetland Islands Local Authority\",Calculations!$E$2=\"Eilean Siar Local Authority\"),OR($F76=1,$F76=5)),0,hosp_count(VALUE(LEFT(Options!$B$24,2)),$C76,$E76,$F76,2016,$I76,1,$H76,$G76*$H76, Options!$B$8)))","v":10611.3411920208},{"$f":"IF(AND(OR(Calculations!$E$2=\"Orkney Health Board\",Calculations!$E$2=\"Orkney Islands Local Authority\"),$F76=1),0,IF(AND(OR(Calculations!$E$2=\"Shetland Health Board\",Calculations!$E$2=\"Western Isles Health Board\",Calculations!$E$2=\"Shetland Islands Local Authority\",Calculations!$E$2=\"Eilean Siar Local Authority\"),OR($F76=1,$F76=5)),0,hosp_count(VALUE(LEFT(Options!$B$24,2)),$C76,$E76,$F76,2016,$I76+$J76,1,$H76,$G76*$H76, Options!$B$8)))","v":10582.097024017001},{"$f":"IF(AND(OR(Calculations!$E$2=\"Orkney Health Board\",Calculations!$E$2=\"Orkney Islands Local Authority\"),$F76=1),0,IF(AND(OR(Calculations!$E$2=\"Shetland Health Board\",Calculations!$E$2=\"Western Isles Health Board\",Calculations!$E$2=\"Shetland Islands Local Authority\",Calculations!$E$2=\"Eilean Siar Local Authority\"),OR($F76=1,$F76=5)),0,prem_mort(VALUE(LEFT(Options!$B$24,2)),$C76,$E76,$F76,2016,$I76,1,$H76,$G76*$H76,Options!$B$8)))","v":0},{"$f":"IF(AND(OR(Calculations!$E$2=\"Orkney Health Board\",Calculations!$E$2=\"Orkney Islands Local Authority\"),$F76=1),0,IF(AND(OR(Calculations!$E$2=\"Shetland Health Board\",Calculations!$E$2=\"Western Isles Health Board\",Calculations!$E$2=\"Shetland Islands Local Authority\",Calculations!$E$2=\"Eilean Siar Local Authority\"),OR($F76=1,$F76=5)),0,prem_mort(VALUE(LEFT(Options!$B$24,2)),$C76,$E76,$F76,2016,$I76+$J76,1,$H76,$G76*$H76,Options!$B$8)))","v":0},7242.952967449919,7212.2089214631833,49831.501930149563,49619.982955249048,71814.707580000002,71616.790904283989,0,0,18107382.418624796,18030522.303657956,124578754.8253739,124049957.38812262,179536768.95000002,179041977.26070997,0,0,2500]
[null,"Female 85-89",86.730819999999994,92.220819999999989,"female",1,{"$f":"HLOOKUP(Calculations!$E$2,'Prevalence Rates'!$C$3:$BC$249,'Prevalence Rates'!$BD77,FALSE)","v":0.14899999999999999},{"$f":"HLOOKUP(Calculations!$E$2,'Population 2016'!$C$3:$BC$249,'Population 2016'!BD77,FALSE)","v":8869},0,{"$f":"HLOOKUP(Results!E$4,Targeting!$C$3:$F$249,Targeting!$G77,FALSE)","v":1366},{"$f":"IF(AND(OR(Calculations!$E$2=\"Orkney Health Board\",Calculations!$E$2=\"Orkney Islands Local Authority\"),$F77=1),0,IF(AND(OR(Calculations!$E$2=\"Shetland Health Board\",Calculations!$E$2=\"Western Isles Health Board\",Calculations!$E$2=\"Shetland Islands Local Authority\",Calculations!$E$2=\"Eilean Siar Local Authority\"),OR($F77=1,$F77=5)),0,new_ci(VALUE(LEFT(Options!$B$24,2)),$C77,$E77,$F77,2016,$I77,1,$H77,$G77*$H77,Options!$B$8)))","v":952.96836866410001},{"$f":"IF(AND(OR(Calculations!$E$2=\"Orkney Health Board\",Calculations!$E$2=\"Orkney Islands Local Authority\"),$F77=1),0,IF(AND(OR(Calculations!$E$2=\"Shetland Health Board\",Calculations!$E$2=\"Western Isles Health Board\",Calculations!$E$2=\"Shetland Islands Local Authority\",Calculations!$E$2=\"Eilean Siar Local Authority\"),OR($F77=1,$F77=5)),0,new_ci(VALUE(LEFT(Options!$B$24,2)),$C77,$E77,$F77,2016,$I77+$J77,1,$H77,$G77*$H77,Options!$B$8)))","v":949.08993431329998},{"$f":"IF(AND(OR(Calculations!$E$2=\"Orkney Health Board\",Calculations!$E$2=\"Orkney Islands Local Authority\"),$F77=1),0,IF(AND(OR(Calculations!$E$2=\"Shetland Health Board\",Calculations!$E$2=\"Western Isles Health Board\",Calculations!$E$2=\"Shetland Islands Local Authority\",Calculations!$E$2=\"Eilean Siar Local Authority\"),OR($F77=1,$F77=5)),0,new_yllv2(VALUE(LEFT(Options!$B$24,2)),$C77,$D77,$E77,$F77,2016,$I77,1,$H77,$G77*$H77,Options!$B$8)))","v":4278.8279753017996},{"$f":"IF(AND(OR(Calculations!$E$2=\"Orkney Health Board\",Calculations!$E$2=\"Orkney Islands Local Authority\"),$F77=1),0,IF(AND(OR(Calculations!$E$2=\"Shetland Health Board\",Calculations!$E$2=\"Western Isles Health Board\",Calculations!$E$2=\"Shetland Islands Local Authority\",Calculations!$E$2=\"Eilean Siar Local Authority\"),OR($F77=1,$F77=5)),0,new_yllv2(VALUE(LEFT(Options!$B$24,2)),$C77,$D77,$E77,$F77,2016,$I77+$J77,1,$H77,$G77*$H77,Options!$B$8)))","v":4261.4138050666998},{"$f":"IF(AND(OR(Calculations!$E$2=\"Orkney Health Board\",Calculations!$E$2=\"Orkney Islands Local Authority\"),$F77=1),0,IF(AND(OR(Calculations!$E$2=\"Shetland Health Board\",Calculations!$E$2=\"Western Isles Health Board\",Calculations!$E$2=\"Shetland Islands Local Authority\",Calculations!$E$2=\"Eilean Siar Local Authority\"),OR($F77=1,$F77=5)),0,hosp_count(VALUE(LEFT(Options!$B$24,2)),$C77,$E77,$F77,2016,$I77,1,$H77,$G77*$H77, Options!$B$8)))","v":7200.0139395590004},{"$f":"IF(AND(OR(Calculations!$E$2=\"Orkney Health Board\",Calculations!$E$2=\"Orkney Islands Local Authority\"),$F77=1),0,IF(AND(OR(Calculations!$E$2=\"Shetland Health Board\",Calculations!$E$2=\"Western Isles Health Board\",Calculations!$E$2=\"Shetland Islands Local Authority\",Calculations!$E$2=\"Eilean Siar Local Authority\"),OR($F77=1,$F77=5)),0,hosp_count(VALUE(LEFT(Options!$B$24,2)),$C77,$E77,$F77,2016,$I77+$J77,1,$H77,$G77*$H77, Options!$B$8)))","v":7180.1816788107999},{"$f":"IF(AND(OR(Calculations!$E$2=\"Orkney Health Board\",Calculations!$E$2=\"Orkney Islands Local Authority\"),$F77=1),0,IF(AND(OR(Calculations!$E$2=\"Shetland Health Board\",Calculations!$E$2=\"Western Isles Health Board\",Calculations!$E$2=\"Shetland Islands Local Authority\",Calculations!$E$2=\"Eilean Siar Local Authority\"),OR($F77=1,$F77=5)),0,prem_mort(VALUE(LEFT(Options!$B$24,2)),$C77,$E77,$F77,2016,$I77,1,$H77,$G77*$H77,Options!$B$8)))","v":0},{"$f":"IF(AND(OR(Calculations!$E$2=\"Orkney Health Board\",Calculations!$E$2=\"Orkney Islands Local Authority\"),$F77=1),0,IF(AND(OR(Calculations!$E$2=\"Shetland Health Board\",Calculations!$E$2=\"Western Isles Health Board\",Calculations!$E$2=\"Shetland Islands Local Authority\",Calculations!$E$2=\"Eilean Siar Local Authority\"),OR($F77=1,$F77=5)),0,prem_mort(VALUE(LEFT(Options!$B$24,2)),$C77,$E77,$F77,2016,$I77+$J77,1,$H77,$G77*$H77,Options!$B$8)))","v":0},10744.935941640546,10701.205708798059,48244.762377965948,48048.4136325031,81181.801100000012,80958.187831895368,0,0,16117403.912460819,16051808.563197089,72367143.56694892,72072620.448754653,121772701.65000002,121437281.74784306,0,0,1500]
[null,"Female 90+",92.779342999999997,96.279340000000005,"female",1,{"$f":"HLOOKUP(Calculations!$E$2,'Prevalence Rates'!$C$3:$BC$249,'Prevalence Rates'!$BD78,FALSE)","v":0.14899999999999999},{"$f":"HLOOKUP(Calculations!$E$2,'Population 2016'!$C$3:$BC$249,'Population 2016'!BD78,FALSE)","v":4825},0,{"$f":"HLOOKUP(Results!E$4,Targeting!$C$3:$F$249,Targeting!$G78,FALSE)","v":743},{"$f":"IF(AND(OR(Calculations!$E$2=\"Orkney Health Board\",Calculations!$E$2=\"Orkney Islands Local Authority\"),$F78=1),0,IF(AND(OR(Calculations!$E$2=\"Shetland Health Board\",Calculations!$E$2=\"Western Isles Health Board\",Calculations!$E$2=\"Shetland Islands Local Authority\",Calculations!$E$2=\"Eilean Siar Local Authority\"),OR($F78=1,$F78=5)),0,new_ci(VALUE(LEFT(Options!$B$24,2)),$C78,$E78,$F78,2016,$I78,1,$H78,$G78*$H78,Options!$B$8)))","v":833.69011878920003},{"$f":"IF(AND(OR(Calculations!$E$2=\"Orkney Health Board\",Calculations!$E$2=\"Orkney Islands Local Authority\"),$F78=1),0,IF(AND(OR(Calculations!$E$2=\"Shetland Health Board\",Calculations!$E$2=\"Western Isles Health Board\",Calculations!$E$2=\"Shetland Islands Local Authority\",Calculations!$E$2=\"Eilean Siar Local Authority\"),OR($F78=1,$F78=5)),0,new_ci(VALUE(LEFT(Options!$B$24,2)),$C78,$E78,$F78,2016,$I78+$J78,1,$H78,$G78*$H78,Options!$B$8)))","v":830.56756380759998},{"$f":"IF(AND(OR(Calculations!$E$2=\"Orkney Health Board\",Calculations!$E$2=\"Orkney Islands Local Authority\"),$F78=1),0,IF(AND(OR(Calculations!$E$2=\"Shetland Health Board\",Calculations!$E$2=\"Western Isles Health Board\",Calculations!$E$2=\"Shetland Islands Local Authority\",Calculations!$E$2=\"Eilean Siar Local Authority\"),OR($F78=1,$F78=5)),0,new_yllv2(VALUE(LEFT(Options!$B$24,2)),$C78,$D78,$E78,$F78,2016,$I78,1,$H78,$G78*$H78,Options!$B$8)))","v":2084.2227959026},{"$f":"IF(AND(OR(Calculations!$E$2=\"Orkney Health Board\",Calculations!$E$2=\"Orkney Islands Local Authority\"),$F78=1),0,IF(AND(OR(Calculations!$E$2=\"Shetland Health Board\",Calculations!$E$2=\"Western Isles Health Board\",Calculations!$E$2=\"Shetland Islands Local Authority\",Calculations!$E$2=\"Eilean Siar Local Authority\"),OR($F78=1,$F78=5)),0,new_yllv2(VALUE(LEFT(Options!$B$24,2)),$C78,$D78,$E78,$F78,2016,$I78+$J78,1,$H78,$G78*$H78,Options!$B$8)))","v":2076.4164178163001},{"$f":"IF(AND(OR(Calculations!$E$2=\"Orkney Health Board\",Calculations!$E$2=\"Orkney Islands Local Authority\"),$F78=1),0,IF(AND(OR(Calculations!$E$2=\"Shetland Health Board\",Calculations!$E$2=\"Western Isles Health Board\",Calculations!$E$2=\"Shetland Islands Local Authority\",Calculations!$E$2=\"Eilean Siar Local Authority\"),OR($F78=1,$F78=5)),0,hosp_count(VALUE(LEFT(Options!$B$24,2)),$C78,$E78,$F78,2016,$I78,1,$H78,$G78*$H78, Options!$B$8)))","v":4560.6917838575},{"$f":"IF(AND(OR(Calculations!$E$2=\"Orkney Health Board\",Calculations!$E$2=\"Orkney Islands Local Authority\"),$F78=1),0,IF(AND(OR(Calculations!$E$2=\"Shetland Health Board\",Calculations!$E$2=\"Western Isles Health Board\",Calculations!$E$2=\"Shetland Islands Local Authority\",Calculations!$E$2=\"Eilean Siar Local Authority\"),OR($F78=1,$F78=5)),0,hosp_count(VALUE(LEFT(Options!$B$24,2)),$C78,$E78,$F78,2016,$I78+$J78,1,$H78,$G78*$H78, Options!$B$8)))","v":4548.1319163131002},{"$f":"IF(AND(OR(Calculations!$E$2=\"Orkney Health Board\",Calculations!$E$2=\"Orkney Islands Local Authority\"),$F78=1),0,IF(AND(OR(Calculations!$E$2=\"Shetland Health Board\",Calculations!$E$2=\"Western Isles Health Board\",Calculations!$E$2=\"Shetland Islands Local Authority\",Calculations!$E$2=\"Eilean Siar Local Authority\"),OR($F78=1,$F78=5)),0,prem_mort(VALUE(LEFT(Options!$B$24,2)),$C78,$E78,$F78,2016,$I78,1,$H78,$G78*$H78,Options!$B$8)))","v":0},{"$f":"IF(AND(OR(Calculations!$E$2=\"Orkney Health Board\",Calculations!$E$2=\"Orkney Islands Local Authority\"),$F78=1),0,IF(AND(OR(Calculations!$E$2=\"Shetland Health Board\",Calculations!$E$2=\"Western Isles Health Board\",Calculations!$E$2=\"Shetland Islands Local Authority\",Calculations!$E$2=\"Eilean Siar Local Authority\"),OR($F78=1,$F78=5)),0,prem_mort(VALUE(LEFT(Options!$B$24,2)),$C78,$E78,$F78,2016,$I78+$J78,1,$H78,$G78*$H78,Options!$B$8)))","v":0},17278.551684750259,17213.835519328499,43196.327376219691,43034.537156814513,94522.109509999995,94261.801374364775,0,0,17278551.684750259,17213835.519328497,43196327.37621969,43034537.156814516,94522109.50999999,94261801.374364778,0,0,1000]
[null,"Male 0-4",2.0320822999999999,77.402082000000007,"male",1,{"$f":"HLOOKUP(Calculations!$E$2,'Prevalence Rates'!$C$3:$BC$249,'Prevalence Rates'!$BD79,FALSE)","v":0},{"$f":"HLOOKUP(Calculations!$E$2,'Population 2016'!$C$3:$BC$249,'Population 2016'!BD79,FALSE)","v":0},0,{"$f":"HLOOKUP(Results!E$4,Targeting!$C$3:$F$249,Targeting!$G79,FALSE)","v":0},{"$f":"IF(AND(OR(Calculations!$E$2=\"Orkney Health Board\",Calculations!$E$2=\"Orkney Islands Local Authority\"),$F79=1),0,IF(AND(OR(Calculations!$E$2=\"Shetland Health Board\",Calculations!$E$2=\"Western Isles Health Board\",Calculations!$E$2=\"Shetland Islands Local Authority\",Calculations!$E$2=\"Eilean Siar Local Authority\"),OR($F79=1,$F79=5)),0,new_ci(VALUE(LEFT(Options!$B$24,2)),$C79,$E79,$F79,2016,$I79,1,$H79,$G79*$H79,Options!$B$8)))","v":{"$error":"#VALUE!"}},{"$f":"IF(AND(OR(Calculations!$E$2=\"Orkney Health Board\",Calculations!$E$2=\"Orkney Islands Local Authority\"),$F79=1),0,IF(AND(OR(Calculations!$E$2=\"Shetland Health Board\",Calculations!$E$2=\"Western Isles Health Board\",Calculations!$E$2=\"Shetland Islands Local Authority\",Calculations!$E$2=\"Eilean Siar Local Authority\"),OR($F79=1,$F79=5)),0,new_ci(VALUE(LEFT(Options!$B$24,2)),$C79,$E79,$F79,2016,$I79+$J79,1,$H79,$G79*$H79,Options!$B$8)))","v":{"$error":"#VALUE!"}},{"$f":"IF(AND(OR(Calculations!$E$2=\"Orkney Health Board\",Calculations!$E$2=\"Orkney Islands Local Authority\"),$F79=1),0,IF(AND(OR(Calculations!$E$2=\"Shetland Health Board\",Calculations!$E$2=\"Western Isles Health Board\",Calculations!$E$2=\"Shetland Islands Local Authority\",Calculations!$E$2=\"Eilean Siar Local Authority\"),OR($F79=1,$F79=5)),0,new_yllv2(VALUE(LEFT(Options!$B$24,2)),$C79,$D79,$E79,$F79,2016,$I79,1,$H79,$G79*$H79,Options!$B$8)))","v":{"$error":"#VALUE!"}},{"$f":"IF(AND(OR(Calculations!$E$2=\"Orkney Health Board\",Calculations!$E$2=\"Orkney Islands Local Authority\"),$F79=1),0,IF(AND(OR(Calculations!$E$2=\"Shetland Health Board\",Calculations!$E$2=\"Western Isles Health Board\",Calculations!$E$2=\"Shetland Islands Local Authority\",Calculations!$E$2=\"Eilean Siar Local Authority\"),OR($F79=1,$F79=5)),0,new_yllv2(VALUE(LEFT(Options!$B$24,2)),$C79,$D79,$E79,$F79,2016,$I79+$J79,1,$H79,$G79*$H79,Options!$B$8)))","v":{"$error":"#VALUE!"}},{"$f":"IF(AND(OR(Calculations!$E$2=\"Orkney Health Board\",Calculations!$E$2=\"Orkney Islands Local Authority\"),$F79=1),0,IF(AND(OR(Calculations!$E$2=\"Shetland Health Board\",Calculations!$E$2=\"Western Isles Health Board\",Calculations!$E$2=\"Shetland Islands Local Authority\",Calculations!$E$2=\"Eilean Siar Local Authority\"),OR($F79=1,$F79=5)),0,hosp_count(VALUE(LEFT(Options!$B$24,2)),$C79,$E79,$F79,2016,$I79,1,$H79,$G79*$H79, Options!$B$8)))","v":{"$error":"#VALUE!"}},{"$f":"IF(AND(OR(Calculations!$E$2=\"Orkney Health Board\",Calculations!$E$2=\"Orkney Islands Local Authority\"),$F79=1),0,IF(AND(OR(Calculations!$E$2=\"Shetland Health Board\",Calculations!$E$2=\"Western Isles Health Board\",Calculations!$E$2=\"Shetland Islands Local Authority\",Calculations!$E$2=\"Eilean Siar Local Authority\"),OR($F79=1,$F79=5)),0,hosp_count(VALUE(LEFT(Options!$B$24,2)),$C79,$E79,$F79,2016,$I79+$J79,1,$H79,$G79*$H79, Options!$B$8)))","v":{"$error":"#VALUE!"}},{"$f":"IF(AND(OR(Calculations!$E$2=\"Orkney Health Board\",Calculations!$E$2=\"Orkney Islands Local Authority\"),$F79=1),0,IF(AND(OR(Calculations!$E$2=\"Shetland Health Board\",Calculations!$E$2=\"Western Isles Health Board\",Calculations!$E$2=\"Shetland Islands Local Authority\",Calculations!$E$2=\"Eilean Siar Local Authority\"),OR($F79=1,$F79=5)),0,prem_mort(VALUE(LEFT(Options!$B$24,2)),$C79,$E79,$F79,2016,$I79,1,$H79,$G79*$H79,Options!$B$8)))","v":{"$error":"#VALUE!"}},{"$f":"IF(AND(OR(Calculations!$E$2=\"Orkney Health Board\",Calculations!$E$2=\"Orkney Islands Local Authority\"),$F79=1),0,IF(AND(OR(Calculations!$E$2=\"Shetland Health Board\",Calculations!$E$2=\"Western Isles Health Board\",Calculations!$E$2=\"Shetland Islands Local Authority\",Calculations!$E$2=\"Eilean Siar Local Authority\"),OR($F79=1,$F79=5)),0,prem_mort(VALUE(LEFT(Options!$B$24,2)),$C79,$E79,$F79,2016,$I79+$J79,1,$H79,$G79*$H79,Options!$B$8)))","v":{"$error":"#VALUE!"}},{"$error":"#VALUE!"},{"$error":"#VALUE!"},{"$error":"#VALUE!"},{"$error":"#VALUE!"},{"$error":"#VALUE!"},{"$error":"#VALUE!"},{"$error":"#VALUE!"},{"$error":"#VALUE!"},{"$error":"#VALUE!"},{"$error":"#VALUE!"},{"$error":"#VALUE!"},{"$error":"#VALUE!"},{"$error":"#VALUE!"},{"$error":"#VALUE!"},{"$error":"#VALUE!"},{"$error":"#VALUE!"},5000]
[null,"Male 5-9",6.9784756000000003,77.398476000000002,"male",1,{"$f":"HLOOKUP(Calculations!$E$2,'Prevalence Rates'!$C$3:$BC$249,'Prevalence Rates'!$BD80,FALSE)","v":0},{"$f":"HLOOKUP(Calculations!$E$2,'Population 2016'!$C$3:$BC$249,'Population 2016'!BD80,FALSE)","v":0},0,{"$f":"HLOOKUP(Results!E$4,Targeting!$C$3:$F$249,Targeting!$G80,FALSE)","v":0},{"$f":"IF(AND(OR(Calculations!$E$2=\"Orkney Health Board\",Calculations!$E$2=\"Orkney Islands Local Authority\"),$F80=1),0,IF(AND(OR(Calculations!$E$2=\"Shetland Health Board\",Calculations!$E$2=\"Western Isles Health Board\",Calculations!$E$2=\"Shetland Islands Local Authority\",Calculations!$E$2=\"Eilean Siar Local Authority\"),OR($F80=1,$F80=5)),0,new_ci(VALUE(LEFT(Options!$B$24,2)),$C80,$E80,$F80,2016,$I80,1,$H80,$G80*$H80,Options!$B$8)))","v":{"$error":"#VALUE!"}},{"$f":"IF(AND(OR(Calculations!$E$2=\"Orkney Health Board\",Calculations!$E$2=\"Orkney Islands Local Authority\"),$F80=1),0,IF(AND(OR(Calculations!$E$2=\"Shetland Health Board\",Calculations!$E$2=\"Western Isles Health Board\",Calculations!$E$2=\"Shetland Islands Local Authority\",Calculations!$E$2=\"Eilean Siar Local Authority\"),OR($F80=1,$F80=5)),0,new_ci(VALUE(LEFT(Options!$B$24,2)),$C80,$E80,$F80,2016,$I80+$J80,1,$H80,$G80*$H80,Options!$B$8)))","v":{"$error":"#VALUE!"}},{"$f":"IF(AND(OR(Calculations!$E$2=\"Orkney Health Board\",Calculations!$E$2=\"Orkney Islands Local Authority\"),$F80=1),0,IF(AND(OR(Calculations!$E$2=\"Shetland Health Board\",Calculations!$E$2=\"Western Isles Health Board\",Calculations!$E$2=\"Shetland Islands Local Authority\",Calculations!$E$2=\"Eilean Siar Local Authority\"),OR($F80=1,$F80=5)),0,new_yllv2(VALUE(LEFT(Options!$B$24,2)),$C80,$D80,$E80,$F80,2016,$I80,1,$H80,$G80*$H80,Options!$B$8)))","v":{"$error":"#VALUE!"}},{"$f":"IF(AND(OR(Calculations!$E$2=\"Orkney Health Board\",Calculations!$E$2=\"Orkney Islands Local Authority\"),$F80=1),0,IF(AND(OR(Calculations!$E$2=\"Shetland Health Board\",Calculations!$E$2=\"Western Isles Health Board\",Calculations!$E$2=\"Shetland Islands Local Authority\",Calculations!$E$2=\"Eilean Siar Local Authority\"),OR($F80=1,$F80=5)),0,new_yllv2(VALUE(LEFT(Options!$B$24,2)),$C80,$D80,$E80,$F80,2016,$I80+$J80,1,$H80,$G80*$H80,Options!$B$8)))","v":{"$error":"#VALUE!"}},{"$f":"IF(AND(OR(Calculations!$E$2=\"Orkney Health Board\",Calculations!$E$2=\"Orkney Islands Local Authority\"),$F80=1),0,IF(AND(OR(Calculations!$E$2=\"Shetland Health Board\",Calculations!$E$2=\"Western Isles Health Board\",Calculations!$E$2=\"Shetland Islands Local Authority\",Calculations!$E$2=\"Eilean Siar Local Authority\"),OR($F80=1,$F80=5)),0,hosp_count(VALUE(LEFT(Options!$B$24,2)),$C80,$E80,$F80,2016,$I80,1,$H80,$G80*$H80, Options!$B$8)))","v":{"$error":"#VALUE!"}},{"$f":"IF(AND(OR(Calculations!$E$2=\"Orkney Health Board\",Calculations!$E$2=\"Orkney Islands Local Authority\"),$F80=1),0,IF(AND(OR(Calculations!$E$2=\"Shetland Health Board\",Calculations!$E$2=\"Western Isles Health Board\",Calculations!$E$2=\"Shetland Islands Local Authority\",Calculations!$E$2=\"Eilean Siar Local Authority\"),OR($F80=1,$F80=5)),0,hosp_count(VALUE(LEFT(Options!$B$24,2)),$C80,$E80,$F80,2016,$I80+$J80,1,$H80,$G80*$H80, Options!$B$8)))","v":{"$error":"#VALUE!"}},{"$f":"IF(AND(OR(Calculations!$E$2=\"Orkney Health Board\",Calculations!$E$2=\"Orkney Islands Local Authority\"),$F80=1),0,IF(AND(OR(Calculations!$E$2=\"Shetland Health Board\",Calculations!$E$2=\"Western Isles Health Board\",Calculations!$E$2=\"Shetland Islands Local Authority\",Calculations!$E$2=\"Eilean Siar Local Authority\"),OR($F80=1,$F80=5)),0,prem_mort(VALUE(LEFT(Options!$B$24,2)),$C80,$E80,$F80,2016,$I80,1,$H80,$G80*$H80,Options!$B$8)))","v":{"$error":"#VALUE!"}},{"$f":"IF(AND(OR(Calculations!$E$2=\"Orkney Health Board\",Calculations!$E$2=\"Orkney Islands Local Authority\"),$F80=1),0,IF(AND(OR(Calculations!$E$2=\"Shetland Health Board\",Calculations!$E$2=\"Western Isles Health Board\",Calculations!$E$2=\"Shetland Islands Local Authority\",Calculations!$E$2=\"Eilean Siar Local Authority\"),OR($F80=1,$F80=5)),0,prem_mort(VALUE(LEFT(Options!$B$24,2)),$C80,$E80,$F80,2016,$I80+$J80,1,$H80,$G80*$H80,Options!$B$8)))","v":{"$error":"#VALUE!"}},{"$error":"#VALUE!"},{"$error":"#VALUE!"},{"$error":"#VALUE!"},{"$error":"#VALUE!"},{"$error":"#VALUE!"},{"$error":"#VALUE!"},{"$error":"#VALUE!"},{"$error":"#VALUE!"},{"$error":"#VALUE!"},{"$error":"#VALUE!"},{"$error":"#VALUE!"},{"$error":"#VALUE!"},{"$error":"#VALUE!"},{"$error":"#VALUE!"},{"$error":"#VALUE!"},{"$error":"#VALUE!"},5500]
[null,"Male 10-15",12.471144000000001,77.921140000000008,"male",1,{"$f":"HLOOKUP(Calculations!$E$2,'Prevalence Rates'!$C$3:$BC$249,'Prevalence Rates'!$BD81,FALSE)","v":0},{"$f":"HLOOKUP(Calculations!$E$2,'Population 2016'!$C$3:$BC$249,'Population 2016'!BD81,FALSE)","v":0},0,{"$f":"HLOOKUP(Results!E$4,Targeting!$C$3:$F$249,Targeting!$G81,FALSE)","v":0},{"$f":"IF(AND(OR(Calculations!$E$2=\"Orkney Health Board\",Calculations!$E$2=\"Orkney Islands Local Authority\"),$F81=1),0,IF(AND(OR(Calculations!$E$2=\"Shetland Health Board\",Calculations!$E$2=\"Western Isles Health Board\",Calculations!$E$2=\"Shetland Islands Local Authority\",Calculations!$E$2=\"Eilean Siar Local Authority\"),OR($F81=1,$F81=5)),0,new_ci(VALUE(LEFT(Options!$B$24,2)),$C81,$E81,$F81,2016,$I81,1,$H81,$G81*$H81,Options!$B$8)))","v":{"$error":"#VALUE!"}},{"$f":"IF(AND(OR(Calculations!$E$2=\"Orkney Health Board\",Calculations!$E$2=\"Orkney Islands Local Authority\"),$F81=1),0,IF(AND(OR(Calculations!$E$2=\"Shetland Health Board\",Calculations!$E$2=\"Western Isles Health Board\",Calculations!$E$2=\"Shetland Islands Local Authority\",Calculations!$E$2=\"Eilean Siar Local Authority\"),OR($F81=1,$F81=5)),0,new_ci(VALUE(LEFT(Options!$B$24,2)),$C81,$E81,$F81,2016,$I81+$J81,1,$H81,$G81*$H81,Options!$B$8)))","v":{"$error":"#VALUE!"}},{"$f":"IF(AND(OR(Calculations!$E$2=\"Orkney Health Board\",Calculations!$E$2=\"Orkney Islands Local Authority\"),$F81=1),0,IF(AND(OR(Calculations!$E$2=\"Shetland Health Board\",Calculations!$E$2=\"Western Isles Health Board\",Calculations!$E$2=\"Shetland Islands Local Authority\",Calculations!$E$2=\"Eilean Siar Local Authority\"),OR($F81=1,$F81=5)),0,new_yllv2(VALUE(LEFT(Options!$B$24,2)),$C81,$D81,$E81,$F81,2016,$I81,1,$H81,$G81*$H81,Options!$B$8)))","v":{"$error":"#VALUE!"}},{"$f":"IF(AND(OR(Calculations!$E$2=\"Orkney Health Board\",Calculations!$E$2=\"Orkney Islands Local Authority\"),$F81=1),0,IF(AND(OR(Calculations!$E$2=\"Shetland Health Board\",Calculations!$E$2=\"Western Isles Health Board\",Calculations!$E$2=\"Shetland Islands Local Authority\",Calculations!$E$2=\"Eilean Siar Local Authority\"),OR($F81=1,$F81=5)),0,new_yllv2(VALUE(LEFT(Options!$B$24,2)),$C81,$D81,$E81,$F81,2016,$I81+$J81,1,$H81,$G81*$H81,Options!$B$8)))","v":{"$error":"#VALUE!"}},{"$f":"IF(AND(OR(Calculations!$E$2=\"Orkney Health Board\",Calculations!$E$2=\"Orkney Islands Local Authority\"),$F81=1),0,IF(AND(OR(Calculations!$E$2=\"Shetland Health Board\",Calculations!$E$2=\"Western Isles Health Board\",Calculations!$E$2=\"Shetland Islands Local Authority\",Calculations!$E$2=\"Eilean Siar Local Authority\"),OR($F81=1,$F81=5)),0,hosp_count(VALUE(LEFT(Options!$B$24,2)),$C81,$E81,$F81,2016,$I81,1,$H81,$G81*$H81, Options!$B$8)))","v":{"$error":"#VALUE!"}},{"$f":"IF(AND(OR(Calculations!$E$2=\"Orkney Health Board\",Calculations!$E$2=\"Orkney Islands Local Authority\"),$F81=1),0,IF(AND(OR(Calculations!$E$2=\"Shetland Health Board\",Calculations!$E$2=\"Western Isles Health Board\",Calculations!$E$2=\"Shetland Islands Local Authority\",Calculations!$E$2=\"Eilean Siar Local Authority\"),OR($F81=1,$F81=5)),0,hosp_count(VALUE(LEFT(Options!$B$24,2)),$C81,$E81,$F81,2016,$I81+$J81,1,$H81,$G81*$H81, Options!$B$8)))","v":{"$error":"#VALUE!"}},{"$f":"IF(AND(OR(Calculations!$E$2=\"Orkney Health Board\",Calculations!$E$2=\"Orkney Islands Local Authority\"),$F81=1),0,IF(AND(OR(Calculations!$E$2=\"Shetland Health Board\",Calculations!$E$2=\"Western Isles Health Board\",Calculations!$E$2=\"Shetland Islands Local Authority\",Calculations!$E$2=\"Eilean Siar Local Authority\"),OR($F81=1,$F81=5)),0,prem_mort(VALUE(LEFT(Options!$B$24,2)),$C81,$E81,$F81,2016,$I81,1,$H81,$G81*$H81,Options!$B$8)))","v":{"$error":"#VALUE!"}},{"$f":"IF(AND(OR(Calculations!$E$2=\"Orkney Health Board\",Calculations!$E$2=\"Orkney Islands Local Authority\"),$F81=1),0,IF(AND(OR(Calculations!$E$2=\"Shetland Health Board\",Calculations!$E$2=\"Western Isles Health Board\",Calculations!$E$2=\"Shetland Islands Local Authority\",Calculations!$E$2=\"Eilean Siar Local Authority\"),OR($F81=1,$F81=5)),0,prem_mort(VALUE(LEFT(Options!$B$24,2)),$C81,$E81,$F81,2016,$I81+$J81,1,$H81,$G81*$H81,Options!$B$8)))","v":{"$error":"#VALUE!"}},{"$error":"#VALUE!"},{"$error":"#VALUE!"},{"$error":"#VALUE!"},{"$error":"#VALUE!"},{"$error":"#VALUE!"},{"$error":"#VALUE!"},{"$error":"#VALUE!"},{"$error":"#VALUE!"},{"$error":"#VALUE!"},{"$error":"#VALUE!"},{"$error":"#VALUE!"},{"$error":"#VALUE!"},{"$error":"#VALUE!"},{"$error":"#VALUE!"},{"$error":"#VALUE!"},{"$error":"#VALUE!"},6600]
[null,"Male 16-19",17.556318000000001,77.07632000000001,"male",1,{"$f":"HLOOKUP(Calculations!$E$2,'Prevalence Rates'!$C$3:$BC$249,'Prevalence Rates'!$BD82,FALSE)","v":0.33260000000000001},{"$f":"HLOOKUP(Calculations!$E$2,'Population 2016'!$C$3:$BC$249,'Population 2016'!BD82,FALSE)","v":25359},0,{"$f":"HLOOKUP(Results!E$4,Targeting!$C$3:$F$249,Targeting!$G82,FALSE)","v":3907},{"$f":"IF(AND(OR(Calculations!$E$2=\"Orkney Health Board\",Calculations!$E$2=\"Orkney Islands Local Authority\"),$F82=1),0,IF(AND(OR(Calculations!$E$2=\"Shetland Health Board\",Calculations!$E$2=\"Western Isles Health Board\",Calculations!$E$2=\"Shetland Islands Local Authority\",Calculations!$E$2=\"Eilean Siar Local Authority\"),OR($F82=1,$F82=5)),0,new_ci(VALUE(LEFT(Options!$B$24,2)),$C82,$E82,$F82,2016,$I82,1,$H82,$G82*$H82,Options!$B$8)))","v":19.171681618200001},{"$f":"IF(AND(OR(Calculations!$E$2=\"Orkney Health Board\",Calculations!$E$2=\"Orkney Islands Local Authority\"),$F82=1),0,IF(AND(OR(Calculations!$E$2=\"Shetland Health Board\",Calculations!$E$2=\"Western Isles Health Board\",Calculations!$E$2=\"Shetland Islands Local Authority\",Calculations!$E$2=\"Eilean Siar Local Authority\"),OR($F82=1,$F82=5)),0,new_ci(VALUE(LEFT(Options!$B$24,2)),$C82,$E82,$F82,2016,$I82+$J82,1,$H82,$G82*$H82,Options!$B$8)))","v":19.118272537500001},{"$f":"IF(AND(OR(Calculations!$E$2=\"Orkney Health Board\",Calculations!$E$2=\"Orkney Islands Local Authority\"),$F82=1),0,IF(AND(OR(Calculations!$E$2=\"Shetland Health Board\",Calculations!$E$2=\"Western Isles Health Board\",Calculations!$E$2=\"Shetland Islands Local Authority\",Calculations!$E$2=\"Eilean Siar Local Authority\"),OR($F82=1,$F82=5)),0,new_yllv2(VALUE(LEFT(Options!$B$24,2)),$C82,$D82,$E82,$F82,2016,$I82,1,$H82,$G82*$H82,Options!$B$8)))","v":1121.9268466404001},{"$f":"IF(AND(OR(Calculations!$E$2=\"Orkney Health Board\",Calculations!$E$2=\"Orkney Islands Local Authority\"),$F82=1),0,IF(AND(OR(Calculations!$E$2=\"Shetland Health Board\",Calculations!$E$2=\"Western Isles Health Board\",Calculations!$E$2=\"Shetland Islands Local Authority\",Calculations!$E$2=\"Eilean Siar Local Authority\"),OR($F82=1,$F82=5)),0,new_yllv2(VALUE(LEFT(Options!$B$24,2)),$C82,$D82,$E82,$F82,2016,$I82+$J82,1,$H82,$G82*$H82,Options!$B$8)))","v":1118.8013471310001},{"$f":"IF(AND(OR(Calculations!$E$2=\"Orkney Health Board\",Calculations!$E$2=\"Orkney Islands Local Authority\"),$F82=1),0,IF(AND(OR(Calculations!$E$2=\"Shetland Health Board\",Calculations!$E$2=\"Western Isles Health Board\",Calculations!$E$2=\"Shetland Islands Local Authority\",Calculations!$E$2=\"Eilean Siar Local Authority\"),OR($F82=1,$F82=5)),0,hosp_count(VALUE(LEFT(Options!$B$24,2)),$C82,$E82,$F82,2016,$I82,1,$H82,$G82*$H82, Options!$B$8)))","v":2447.1256447280998},{"$f":"IF(AND(OR(Calculations!$E$2=\"Orkney Health Board\",Calculations!$E$2=\"Orkney Islands Local Authority\"),$F82=1),0,IF(AND(OR(Calculations!$E$2=\"Shetland Health Board\",Calculations!$E$2=\"Western Isles Health Board\",Calculations!$E$2=\"Shetland Islands Local Authority\",Calculations!$E$2=\"Eilean Siar Local Authority\"),OR($F82=1,$F82=5)),0,hosp_count(VALUE(LEFT(Options!$B$24,2)),$C82,$E82,$F82,2016,$I82+$J82,1,$H82,$G82*$H82, Options!$B$8)))","v":2442.6203281049002},{"$f":"IF(AND(OR(Calculations!$E$2=\"Orkney Health Board\",Calculations!$E$2=\"Orkney Islands Local Authority\"),$F82=1),0,IF(AND(OR(Calculations!$E$2=\"Shetland Health Board\",Calculations!$E$2=\"Western Isles Health Board\",Calculations!$E$2=\"Shetland Islands Local Authority\",Calculations!$E$2=\"Eilean Siar Local Authority\"),OR($F82=1,$F82=5)),0,prem_mort(VALUE(LEFT(Options!$B$24,2)),$C82,$E82,$F82,2016,$I82,1,$H82,$G82*$H82,Options!$B$8)))","v":19.171681618200001},{"$f":"IF(AND(OR(Calculations!$E$2=\"Orkney Health Board\",Calculations!$E$2=\"Orkney Islands Local Authority\"),$F82=1),0,IF(AND(OR(Calculations!$E$2=\"Shetland Health Board\",Calculations!$E$2=\"Western Isles Health Board\",Calculations!$E$2=\"Shetland Islands Local Authority\",Calculations!$E$2=\"Eilean Siar Local Authority\"),OR($F82=1,$F82=5)),0,prem_mort(VALUE(LEFT(Options!$B$24,2)),$C82,$E82,$F82,2016,$I82+$J82,1,$H82,$G82*$H82,Options!$B$8)))","v":19.118272537500001},75.601094752159,75.390482816751458,4424.1762160984272,4411.8512052170827,9649.9295899999997,9632.1634453444549,75.601094752159,75.390482816751458,332644.81690949958,331718.12439370644,19466375.350833081,19412145.302955166,42459690.196000002,42381519.159515604,332644.81690949958,331718.12439370644,4400]
[null,"Male 20-24",22.054632000000002,77.704629999999995,"male",1,{"$f":"HLOOKUP(Calculations!$E$2,'Prevalence Rates'!$C$3:$BC$249,'Prevalence Rates'!$BD83,FALSE)","v":0.33260000000000001},{"$f":"HLOOKUP(Calculations!$E$2,'Population 2016'!$C$3:$BC$249,'Population 2016'!BD83,FALSE)","v":37180},0,{"$f":"HLOOKUP(Results!E$4,Targeting!$C$3:$F$249,Targeting!$G83,FALSE)","v":5728},{"$f":"IF(AND(OR(Calculations!$E$2=\"Orkney Health Board\",Calculations!$E$2=\"Orkney Islands Local Authority\"),$F83=1),0,IF(AND(OR(Calculations!$E$2=\"Shetland Health Board\",Calculations!$E$2=\"Western Isles Health Board\",Calculations!$E$2=\"Shetland Islands Local Authority\",Calculations!$E$2=\"Eilean Siar Local Authority\"),OR($F83=1,$F83=5)),0,new_ci(VALUE(LEFT(Options!$B$24,2)),$C83,$E83,$F83,2016,$I83,1,$H83,$G83*$H83,Options!$B$8)))","v":39.468973076499999},{"$f":"IF(AND(OR(Calculations!$E$2=\"Orkney Health Board\",Calculations!$E$2=\"Orkney Islands Local Authority\"),$F83=1),0,IF(AND(OR(Calculations!$E$2=\"Shetland Health Board\",Calculations!$E$2=\"Western Isles Health Board\",Calculations!$E$2=\"Shetland Islands Local Authority\",Calculations!$E$2=\"Eilean Siar Local Authority\"),OR($F83=1,$F83=5)),0,new_ci(VALUE(LEFT(Options!$B$24,2)),$C83,$E83,$F83,2016,$I83+$J83,1,$H83,$G83*$H83,Options!$B$8)))","v":39.359052756499999},{"$f":"IF(AND(OR(Calculations!$E$2=\"Orkney Health Board\",Calculations!$E$2=\"Orkney Islands Local Authority\"),$F83=1),0,IF(AND(OR(Calculations!$E$2=\"Shetland Health Board\",Calculations!$E$2=\"Western Isles Health Board\",Calculations!$E$2=\"Shetland Islands Local Authority\",Calculations!$E$2=\"Eilean Siar Local Authority\"),OR($F83=1,$F83=5)),0,new_yllv2(VALUE(LEFT(Options!$B$24,2)),$C83,$D83,$E83,$F83,2016,$I83,1,$H83,$G83*$H83,Options!$B$8)))","v":2156.9792996927999},{"$f":"IF(AND(OR(Calculations!$E$2=\"Orkney Health Board\",Calculations!$E$2=\"Orkney Islands Local Authority\"),$F83=1),0,IF(AND(OR(Calculations!$E$2=\"Shetland Health Board\",Calculations!$E$2=\"Western Isles Health Board\",Calculations!$E$2=\"Shetland Islands Local Authority\",Calculations!$E$2=\"Eilean Siar Local Authority\"),OR($F83=1,$F83=5)),0,new_yllv2(VALUE(LEFT(Options!$B$24,2)),$C83,$D83,$E83,$F83,2016,$I83+$J83,1,$H83,$G83*$H83,Options!$B$8)))","v":2150.9721544245999},{"$f":"IF(AND(OR(Calculations!$E$2=\"Orkney Health Board\",Calculations!$E$2=\"Orkney Islands Local Authority\"),$F83=1),0,IF(AND(OR(Calculations!$E$2=\"Shetland Health Board\",Calculations!$E$2=\"Western Isles Health Board\",Calculations!$E$2=\"Shetland Islands Local Authority\",Calculations!$E$2=\"Eilean Siar Local Authority\"),OR($F83=1,$F83=5)),0,hosp_count(VALUE(LEFT(Options!$B$24,2)),$C83,$E83,$F83,2016,$I83,1,$H83,$G83*$H83, Options!$B$8)))","v":4208.9782071480004},{"$f":"IF(AND(OR(Calculations!$E$2=\"Orkney Health Board\",Calculations!$E$2=\"Orkney Islands Local Authority\"),$F83=1),0,IF(AND(OR(Calculations!$E$2=\"Shetland Health Board\",Calculations!$E$2=\"Western Isles Health Board\",Calculations!$E$2=\"Shetland Islands Local Authority\",Calculations!$E$2=\"Eilean Siar Local Authority\"),OR($F83=1,$F83=5)),0,hosp_count(VALUE(LEFT(Options!$B$24,2)),$C83,$E83,$F83,2016,$I83+$J83,1,$H83,$G83*$H83, Options!$B$8)))","v":4201.2295212104},{"$f":"IF(AND(OR(Calculations!$E$2=\"Orkney Health Board\",Calculations!$E$2=\"Orkney Islands Local Authority\"),$F83=1),0,IF(AND(OR(Calculations!$E$2=\"Shetland Health Board\",Calculations!$E$2=\"Western Isles Health Board\",Calculations!$E$2=\"Shetland Islands Local Authority\",Calculations!$E$2=\"Eilean Siar Local Authority\"),OR($F83=1,$F83=5)),0,prem_mort(VALUE(LEFT(Options!$B$24,2)),$C83,$E83,$F83,2016,$I83,1,$H83,$G83*$H83,Options!$B$8)))","v":39.468973076499999},{"$f":"IF(AND(OR(Calculations!$E$2=\"Orkney Health Board\",Calculations!$E$2=\"Orkney Islands Local Authority\"),$F83=1),0,IF(AND(OR(Calculations!$E$2=\"Shetland Health Board\",Calculations!$E$2=\"Western Isles Health Board\",Calculations!$E$2=\"Shetland Islands Local Authority\",Calculations!$E$2=\"Eilean Siar Local Authority\"),OR($F83=1,$F83=5)),0,prem_mort(VALUE(LEFT(Options!$B$24,2)),$C83,$E83,$F83,2016,$I83+$J83,1,$H83,$G83*$H83,Options!$B$8)))","v":39.359052756499999},106.15646335798816,105.86081967859063,5801.4505102011835,5785.2935837132864,11320.543860000002,11299.702854250672,106.15646335798816,105.86081967859063,636938.78014792898,635164.9180715438,34808703.061207101,34711761.502279721,67923263.160000011,67798217.125504032,636938.78014792898,635164.9180715438,6000]
[null,"Male 25-29",26.959762999999999,77.789760000000001,"male",1,{"$f":"HLOOKUP(Calculations!$E$2,'Prevalence Rates'!$C$3:$BC$249,'Prevalence Rates'!$BD84,FALSE)","v":0.40960000000000002},{"$f":"HLOOKUP(Calculations!$E$2,'Population 2016'!$C$3:$BC$249,'Population 2016'!BD84,FALSE)","v":42600},0,{"$f":"HLOOKUP(Results!E$4,Targeting!$C$3:$F$249,Targeting!$G84,FALSE)","v":6564},{"$f":"IF(AND(OR(Calculations!$E$2=\"Orkney Health Board\",Calculations!$E$2=\"Orkney Islands Local Authority\"),$F84=1),0,IF(AND(OR(Calculations!$E$2=\"Shetland Health Board\",Calculations!$E$2=\"Western Isles Health Board\",Calculations!$E$2=\"Shetland Islands Local Authority\",Calculations!$E$2=\"Eilean Siar Local Authority\"),OR($F84=1,$F84=5)),0,new_ci(VALUE(LEFT(Options!$B$24,2)),$C84,$E84,$F84,2016,$I84,1,$H84,$G84*$H84,Options!$B$8)))","v":65.474609595499999},{"$f":"IF(AND(OR(Calculations!$E$2=\"Orkney Health Board\",Calculations!$E$2=\"Orkney Islands Local Authority\"),$F84=1),0,IF(AND(OR(Calculations!$E$2=\"Shetland Health Board\",Calculations!$E$2=\"Western Isles Health Board\",Calculations!$E$2=\"Shetland Islands Local Authority\",Calculations!$E$2=\"Eilean Siar Local Authority\"),OR($F84=1,$F84=5)),0,new_ci(VALUE(LEFT(Options!$B$24,2)),$C84,$E84,$F84,2016,$I84+$J84,1,$H84,$G84*$H84,Options!$B$8)))","v":65.3015267615},{"$f":"IF(AND(OR(Calculations!$E$2=\"Orkney Health Board\",Calculations!$E$2=\"Orkney Islands Local Authority\"),$F84=1),0,IF(AND(OR(Calculations!$E$2=\"Shetland Health Board\",Calculations!$E$2=\"Western Isles Health Board\",Calculations!$E$2=\"Shetland Islands Local Authority\",Calculations!$E$2=\"Eilean Siar Local Authority\"),OR($F84=1,$F84=5)),0,new_yllv2(VALUE(LEFT(Options!$B$24,2)),$C84,$D84,$E84,$F84,2016,$I84,1,$H84,$G84*$H84,Options!$B$8)))","v":3262.5995997199002},{"$f":"IF(AND(OR(Calculations!$E$2=\"Orkney Health Board\",Calculations!$E$2=\"Orkney Islands Local Authority\"),$F84=1),0,IF(AND(OR(Calculations!$E$2=\"Shetland Health Board\",Calculations!$E$2=\"Western Isles Health Board\",Calculations!$E$2=\"Shetland Islands Local Authority\",Calculations!$E$2=\"Eilean Siar Local Authority\"),OR($F84=1,$F84=5)),0,new_yllv2(VALUE(LEFT(Options!$B$24,2)),$C84,$D84,$E84,$F84,2016,$I84+$J84,1,$H84,$G84*$H84,Options!$B$8)))","v":3253.9748826209998},{"$f":"IF(AND(OR(Calculations!$E$2=\"Orkney Health Board\",Calculations!$E$2=\"Orkney Islands Local Authority\"),$F84=1),0,IF(AND(OR(Calculations!$E$2=\"Shetland Health Board\",Calculations!$E$2=\"Western Isles Health Board\",Calculations!$E$2=\"Shetland Islands Local Authority\",Calculations!$E$2=\"Eilean Siar Local Authority\"),OR($F84=1,$F84=5)),0,hosp_count(VALUE(LEFT(Options!$B$24,2)),$C84,$E84,$F84,2016,$I84,1,$H84,$G84*$H84, Options!$B$8)))","v":5739.7274435999998},{"$f":"IF(AND(OR(Calculations!$E$2=\"Orkney Health Board\",Calculations!$E$2=\"Orkney Islands Local Authority\"),$F84=1),0,IF(AND(OR(Calculations!$E$2=\"Shetland Health Board\",Calculations!$E$2=\"Western Isles Health Board\",Calculations!$E$2=\"Shetland Islands Local Authority\",Calculations!$E$2=\"Eilean Siar Local Authority\"),OR($F84=1,$F84=5)),0,hosp_count(VALUE(LEFT(Options!$B$24,2)),$C84,$E84,$F84,2016,$I84+$J84,1,$H84,$G84*$H84, Options!$B$8)))","v":5729.4855026293999},{"$f":"IF(AND(OR(Calculations!$E$2=\"Orkney Health Board\",Calculations!$E$2=\"Orkney Islands Local Authority\"),$F84=1),0,IF(AND(OR(Calculations!$E$2=\"Shetland Health Board\",Calculations!$E$2=\"Western Isles Health Board\",Calculations!$E$2=\"Shetland Islands Local Authority\",Calculations!$E$2=\"Eilean Siar Local Authority\"),OR($F84=1,$F84=5)),0,prem_mort(VALUE(LEFT(Options!$B$24,2)),$C84,$E84,$F84,2016,$I84,1,$H84,$G84*$H84,Options!$B$8)))","v":65.474609595499999},{"$f":"IF(AND(OR(Calculations!$E$2=\"Orkney Health Board\",Calculations!$E$2=\"Orkney Islands Local Authority\"),$F84=1),0,IF(AND(OR(Calculations!$E$2=\"Shetland Health Board\",Calculations!$E$2=\"Western Isles Health Board\",Calculations!$E$2=\"Shetland Islands Local Authority\",Calculations!$E$2=\"Eilean Siar Local Authority\"),OR($F84=1,$F84=5)),0,prem_mort(VALUE(LEFT(Options!$B$24,2)),$C84,$E84,$F84,2016,$I84+$J84,1,$H84,$G84*$H84,Options!$B$8)))","v":65.3015267615},153.69626665610329,153.28996892370893,7658.6845063847431,7638.4386915985915,13473.5386,13449.496485045538,153.69626665610329,153.28996892370893,922177.59993661975,919739.81354225357,45952107.038308457,45830632.14959155,80841231.599999994,80696978.910273224,922177.59993661975,919739.81354225357,6000]
[null,"Male 30-34",31.981521999999998,78.061520000000002,"male",1,{"$f":"HLOOKUP(Calculations!$E$2,'Prevalence Rates'!$C$3:$BC$249,'Prevalence Rates'!$BD85,FALSE)","v":0.40960000000000002},{"$f":"HLOOKUP(Calculations!$E$2,'Population 2016'!$C$3:$BC$249,'Population 2016'!BD85,FALSE)","v":38006},0,{"$f":"HLOOKUP(Results!E$4,Targeting!$C$3:$F$249,Targeting!$G85,FALSE)","v":5856},{"$f":"IF(AND(OR(Calculations!$E$2=\"Orkney Health Board\",Calculations!$E$2=\"Orkney Islands Local Authority\"),$F85=1),0,IF(AND(OR(Calculations!$E$2=\"Shetland Health Board\",Calculations!$E$2=\"Western Isles Health Board\",Calculations!$E$2=\"Shetland Islands Local Authority\",Calculations!$E$2=\"Eilean Siar Local Authority\"),OR($F85=1,$F85=5)),0,new_ci(VALUE(LEFT(Options!$B$24,2)),$C85,$E85,$F85,2016,$I85,1,$H85,$G85*$H85,Options!$B$8)))","v":85.310031820299997},{"$f":"IF(AND(OR(Calculations!$E$2=\"Orkney Health Board\",Calculations!$E$2=\"Orkney Islands Local Authority\"),$F85=1),0,IF(AND(OR(Calculations!$E$2=\"Shetland Health Board\",Calculations!$E$2=\"Western Isles Health Board\",Calculations!$E$2=\"Shetland Islands Local Authority\",Calculations!$E$2=\"Eilean Siar Local Authority\"),OR($F85=1,$F85=5)),0,new_ci(VALUE(LEFT(Options!$B$24,2)),$C85,$E85,$F85,2016,$I85+$J85,1,$H85,$G85*$H85,Options!$B$8)))","v":85.084651362700001},{"$f":"IF(AND(OR(Calculations!$E$2=\"Orkney Health Board\",Calculations!$E$2=\"Orkney Islands Local Authority\"),$F85=1),0,IF(AND(OR(Calculations!$E$2=\"Shetland Health Board\",Calculations!$E$2=\"Western Isles Health Board\",Calculations!$E$2=\"Shetland Islands Local Authority\",Calculations!$E$2=\"Eilean Siar Local Authority\"),OR($F85=1,$F85=5)),0,new_yllv2(VALUE(LEFT(Options!$B$24,2)),$C85,$D85,$E85,$F85,2016,$I85,1,$H85,$G85*$H85,Options!$B$8)))","v":3845.7760638391001},{"$f":"IF(AND(OR(Calculations!$E$2=\"Orkney Health Board\",Calculations!$E$2=\"Orkney Islands Local Authority\"),$F85=1),0,IF(AND(OR(Calculations!$E$2=\"Shetland Health Board\",Calculations!$E$2=\"Western Isles Health Board\",Calculations!$E$2=\"Shetland Islands Local Authority\",Calculations!$E$2=\"Eilean Siar Local Authority\"),OR($F85=1,$F85=5)),0,new_yllv2(VALUE(LEFT(Options!$B$24,2)),$C85,$D85,$E85,$F85,2016,$I85+$J85,1,$H85,$G85*$H85,Options!$B$8)))","v":3835.6159132612001},{"$f":"IF(AND(OR(Calculations!$E$2=\"Orkney Health Board\",Calculations!$E$2=\"Orkney Islands Local Authority\"),$F85=1),0,IF(AND(OR(Calculations!$E$2=\"Shetland Health Board\",Calculations!$E$2=\"Western Isles Health Board\",Calculations!$E$2=\"Shetland Islands Local Authority\",Calculations!$E$2=\"Eilean Siar Local Authority\"),OR($F85=1,$F85=5)),0,hosp_count(VALUE(LEFT(Options!$B$24,2)),$C85,$E85,$F85,2016,$I85,1,$H85,$G85*$H85, Options!$B$8)))","v":6119.9246785464002},{"$f":"IF(AND(OR(Calculations!$E$2=\"Orkney Health Board\",Calculations!$E$2=\"Orkney Islands Local Authority\"),$F85=1),0,IF(AND(OR(Calculations!$E$2=\"Shetland Health Board\",Calculations!$E$2=\"Western Isles Health Board\",Calculations!$E$2=\"Shetland Islands Local Authority\",Calculations!$E$2=\"Eilean Siar Local Authority\"),OR($F85=1,$F85=5)),0,hosp_count(VALUE(LEFT(Options!$B$24,2)),$C85,$E85,$F85,2016,$I85+$J85,1,$H85,$G85*$H85, Options!$B$8)))","v":6109.0045682205},{"$f":"IF(AND(OR(Calculations!$E$2=\"Orkney Health Board\",Calculations!$E$2=\"Orkney Islands Local Authority\"),$F85=1),0,IF(AND(OR(Calculations!$E$2=\"Shetland Health Board\",Calculations!$E$2=\"Western Isles Health Board\",Calculations!$E$2=\"Shetland Islands Local Authority\",Calculations!$E$2=\"Eilean Siar Local Authority\"),OR($F85=1,$F85=5)),0,prem_mort(VALUE(LEFT(Options!$B$24,2)),$C85,$E85,$F85,2016,$I85,1,$H85,$G85*$H85,Options!$B$8)))","v":85.310031820299997},{"$f":"IF(AND(OR(Calculations!$E$2=\"Orkney Health Board\",Calculations!$E$2=\"Orkney Islands Local Authority\"),$F85=1),0,IF(AND(OR(Calculations!$E$2=\"Shetland Health Board\",Calculations!$E$2=\"Western Isles Health Board\",Calculations!$E$2=\"Shetland Islands Local Authority\",Calculations!$E$2=\"Eilean Siar Local Authority\"),OR($F85=1,$F85=5)),0,prem_mort(VALUE(LEFT(Options!$B$24,2)),$C85,$E85,$F85,2016,$I85+$J85,1,$H85,$G85*$H85,Options!$B$8)))","v":85.084651362700001},224.46464195206019,223.87162911829711,10118.865610269695,10092.132592909542,16102.522440000001,16073.789844289058,224.46464195206019,223.87162911829711,1459020.1726883913,1455165.5892689312,65772626.466753021,65598861.853912026,104666395.86,104479633.98787887,1459020.1726883913,1455165.5892689312,6500]
[null,"Male 35-39",36.926009999999998,78.336009999999987,"male",1,{"$f":"HLOOKUP(Calculations!$E$2,'Prevalence Rates'!$C$3:$BC$249,'Prevalence Rates'!$BD86,FALSE)","v":0.47410000000000002},{"$f":"HLOOKUP(Calculations!$E$2,'Population 2016'!$C$3:$BC$249,'Population 2016'!BD86,FALSE)","v":32984},0,{"$f":"HLOOKUP(Results!E$4,Targeting!$C$3:$F$249,Targeting!$G86,FALSE)","v":5082},{"$f":"IF(AND(OR(Calculations!$E$2=\"Orkney Health Board\",Calculations!$E$2=\"Orkney Islands Local Authority\"),$F86=1),0,IF(AND(OR(Calculations!$E$2=\"Shetland Health Board\",Calculations!$E$2=\"Western Isles Health Board\",Calculations!$E$2=\"Shetland Islands Local Authority\",Calculations!$E$2=\"Eilean Siar Local Authority\"),OR($F86=1,$F86=5)),0,new_ci(VALUE(LEFT(Options!$B$24,2)),$C86,$E86,$F86,2016,$I86,1,$H86,$G86*$H86,Options!$B$8)))","v":107.4811574509},{"$f":"IF(AND(OR(Calculations!$E$2=\"Orkney Health Board\",Calculations!$E$2=\"Orkney Islands Local Authority\"),$F86=1),0,IF(AND(OR(Calculations!$E$2=\"Shetland Health Board\",Calculations!$E$2=\"Western Isles Health Board\",Calculations!$E$2=\"Shetland Islands Local Authority\",Calculations!$E$2=\"Eilean Siar Local Authority\"),OR($F86=1,$F86=5)),0,new_ci(VALUE(LEFT(Options!$B$24,2)),$C86,$E86,$F86,2016,$I86+$J86,1,$H86,$G86*$H86,Options!$B$8)))","v":107.2089497767},{"$f":"IF(AND(OR(Calculations!$E$2=\"Orkney Health Board\",Calculations!$E$2=\"Orkney Islands Local Authority\"),$F86=1),0,IF(AND(OR(Calculations!$E$2=\"Shetland Health Board\",Calculations!$E$2=\"Western Isles Health Board\",Calculations!$E$2=\"Shetland Islands Local Authority\",Calculations!$E$2=\"Eilean Siar Local Authority\"),OR($F86=1,$F86=5)),0,new_yllv2(VALUE(LEFT(Options!$B$24,2)),$C86,$D86,$E86,$F86,2016,$I86,1,$H86,$G86*$H86,Options!$B$8)))","v":4343.3135725908996},{"$f":"IF(AND(OR(Calculations!$E$2=\"Orkney Health Board\",Calculations!$E$2=\"Orkney Islands Local Authority\"),$F86=1),0,IF(AND(OR(Calculations!$E$2=\"Shetland Health Board\",Calculations!$E$2=\"Western Isles Health Board\",Calculations!$E$2=\"Shetland Islands Local Authority\",Calculations!$E$2=\"Eilean Siar Local Authority\"),OR($F86=1,$F86=5)),0,new_yllv2(VALUE(LEFT(Options!$B$24,2)),$C86,$D86,$E86,$F86,2016,$I86+$J86,1,$H86,$G86*$H86,Options!$B$8)))","v":4332.3136604764004},{"$f":"IF(AND(OR(Calculations!$E$2=\"Orkney Health Board\",Calculations!$E$2=\"Orkney Islands Local Authority\"),$F86=1),0,IF(AND(OR(Calculations!$E$2=\"Shetland Health Board\",Calculations!$E$2=\"Western Isles Health Board\",Calculations!$E$2=\"Shetland Islands Local Authority\",Calculations!$E$2=\"Eilean Siar Local Authority\"),OR($F86=1,$F86=5)),0,hosp_count(VALUE(LEFT(Options!$B$24,2)),$C86,$E86,$F86,2016,$I86,1,$H86,$G86*$H86, Options!$B$8)))","v":6330.2128956528004},{"$f":"IF(AND(OR(Calculations!$E$2=\"Orkney Health Board\",Calculations!$E$2=\"Orkney Islands Local Authority\"),$F86=1),0,IF(AND(OR(Calculations!$E$2=\"Shetland Health Board\",Calculations!$E$2=\"Western Isles Health Board\",Calculations!$E$2=\"Shetland Islands Local Authority\",Calculations!$E$2=\"Eilean Siar Local Authority\"),OR($F86=1,$F86=5)),0,hosp_count(VALUE(LEFT(Options!$B$24,2)),$C86,$E86,$F86,2016,$I86+$J86,1,$H86,$G86*$H86, Options!$B$8)))","v":6319.2028779113998},{"$f":"IF(AND(OR(Calculations!$E$2=\"Orkney Health Board\",Calculations!$E$2=\"Orkney Islands Local Authority\"),$F86=1),0,IF(AND(OR(Calculations!$E$2=\"Shetland Health Board\",Calculations!$E$2=\"Western Isles Health Board\",Calculations!$E$2=\"Shetland Islands Local Authority\",Calculations!$E$2=\"Eilean Siar Local Authority\"),OR($F86=1,$F86=5)),0,prem_mort(VALUE(LEFT(Options!$B$24,2)),$C86,$E86,$F86,2016,$I86,1,$H86,$G86*$H86,Options!$B$8)))","v":107.4811574509},{"$f":"IF(AND(OR(Calculations!$E$2=\"Orkney Health Board\",Calculations!$E$2=\"Orkney Islands Local Authority\"),$F86=1),0,IF(AND(OR(Calculations!$E$2=\"Shetland Health Board\",Calculations!$E$2=\"Western Isles Health Board\",Calculations!$E$2=\"Shetland Islands Local Authority\",Calculations!$E$2=\"Eilean Siar Local Authority\"),OR($F86=1,$F86=5)),0,prem_mort(VALUE(LEFT(Options!$B$24,2)),$C86,$E86,$F86,2016,$I86+$J86,1,$H86,$G86*$H86,Options!$B$8)))","v":107.2089497767},325.85846910896191,325.03319723714526,13167.940736693243,13134.591500352899,19191.768420000004,19158.388545693062,325.85846910896191,325.03319723714526,2281009.2837627335,2275232.380660017,92175585.156852692,91942140.5024703,134342378.94000003,134108719.81985143,2281009.2837627335,2275232.380660017,7000]
[null,"Male 40-44",42.067703000000002,78.907700000000006,"male",1,{"$f":"HLOOKUP(Calculations!$E$2,'Prevalence Rates'!$C$3:$BC$249,'Prevalence Rates'!$BD87,FALSE)","v":0.47410000000000002},{"$f":"HLOOKUP(Calculations!$E$2,'Population 2016'!$C$3:$BC$249,'Population 2016'!BD87,FALSE)","v":31623},0,{"$f":"HLOOKUP(Results!E$4,Targeting!$C$3:$F$249,Targeting!$G87,FALSE)","v":4872},{"$f":"IF(AND(OR(Calculations!$E$2=\"Orkney Health Board\",Calculations!$E$2=\"Orkney Islands Local Authority\"),$F87=1),0,IF(AND(OR(Calculations!$E$2=\"Shetland Health Board\",Calculations!$E$2=\"Western Isles Health Board\",Calculations!$E$2=\"Shetland Islands Local Authority\",Calculations!$E$2=\"Eilean Siar Local Authority\"),OR($F87=1,$F87=5)),0,new_ci(VALUE(LEFT(Options!$B$24,2)),$C87,$E87,$F87,2016,$I87,1,$H87,$G87*$H87,Options!$B$8)))","v":151.79236231339999},{"$f":"IF(AND(OR(Calculations!$E$2=\"Orkney Health Board\",Calculations!$E$2=\"Orkney Islands Local Authority\"),$F87=1),0,IF(AND(OR(Calculations!$E$2=\"Shetland Health Board\",Calculations!$E$2=\"Western Isles Health Board\",Calculations!$E$2=\"Shetland Islands Local Authority\",Calculations!$E$2=\"Eilean Siar Local Authority\"),OR($F87=1,$F87=5)),0,new_ci(VALUE(LEFT(Options!$B$24,2)),$C87,$E87,$F87,2016,$I87+$J87,1,$H87,$G87*$H87,Options!$B$8)))","v":151.40841509660001},{"$f":"IF(AND(OR(Calculations!$E$2=\"Orkney Health Board\",Calculations!$E$2=\"Orkney Islands Local Authority\"),$F87=1),0,IF(AND(OR(Calculations!$E$2=\"Shetland Health Board\",Calculations!$E$2=\"Western Isles Health Board\",Calculations!$E$2=\"Shetland Islands Local Authority\",Calculations!$E$2=\"Eilean Siar Local Authority\"),OR($F87=1,$F87=5)),0,new_yllv2(VALUE(LEFT(Options!$B$24,2)),$C87,$D87,$E87,$F87,2016,$I87,1,$H87,$G87*$H87,Options!$B$8)))","v":5440.2378099351999},{"$f":"IF(AND(OR(Calculations!$E$2=\"Orkney Health Board\",Calculations!$E$2=\"Orkney Islands Local Authority\"),$F87=1),0,IF(AND(OR(Calculations!$E$2=\"Shetland Health Board\",Calculations!$E$2=\"Western Isles Health Board\",Calculations!$E$2=\"Shetland Islands Local Authority\",Calculations!$E$2=\"Eilean Siar Local Authority\"),OR($F87=1,$F87=5)),0,new_yllv2(VALUE(LEFT(Options!$B$24,2)),$C87,$D87,$E87,$F87,2016,$I87+$J87,1,$H87,$G87*$H87,Options!$B$8)))","v":5426.4771428369004},{"$f":"IF(AND(OR(Calculations!$E$2=\"Orkney Health Board\",Calculations!$E$2=\"Orkney Islands Local Authority\"),$F87=1),0,IF(AND(OR(Calculations!$E$2=\"Shetland Health Board\",Calculations!$E$2=\"Western Isles Health Board\",Calculations!$E$2=\"Shetland Islands Local Authority\",Calculations!$E$2=\"Eilean Siar Local Authority\"),OR($F87=1,$F87=5)),0,hosp_count(VALUE(LEFT(Options!$B$24,2)),$C87,$E87,$F87,2016,$I87,1,$H87,$G87*$H87, Options!$B$8)))","v":7284.1542018173996},{"$f":"IF(AND(OR(Calculations!$E$2=\"Orkney Health Board\",Calculations!$E$2=\"Orkney Islands Local Authority\"),$F87=1),0,IF(AND(OR(Calculations!$E$2=\"Shetland Health Board\",Calculations!$E$2=\"Western Isles Health Board\",Calculations!$E$2=\"Shetland Islands Local Authority\",Calculations!$E$2=\"Eilean Siar Local Authority\"),OR($F87=1,$F87=5)),0,hosp_count(VALUE(LEFT(Options!$B$24,2)),$C87,$E87,$F87,2016,$I87+$J87,1,$H87,$G87*$H87, Options!$B$8)))","v":7271.4858034234003},{"$f":"IF(AND(OR(Calculations!$E$2=\"Orkney Health Board\",Calculations!$E$2=\"Orkney Islands Local Authority\"),$F87=1),0,IF(AND(OR(Calculations!$E$2=\"Shetland Health Board\",Calculations!$E$2=\"Western Isles Health Board\",Calculations!$E$2=\"Shetland Islands Local Authority\",Calculations!$E$2=\"Eilean Siar Local Authority\"),OR($F87=1,$F87=5)),0,prem_mort(VALUE(LEFT(Options!$B$24,2)),$C87,$E87,$F87,2016,$I87,1,$H87,$G87*$H87,Options!$B$8)))","v":151.79236231339999},{"$f":"IF(AND(OR(Calculations!$E$2=\"Orkney Health Board\",Calculations!$E$2=\"Orkney Islands Local Authority\"),$F87=1),0,IF(AND(OR(Calculations!$E$2=\"Shetland Health Board\",Calculations!$E$2=\"Western Isles Health Board\",Calculations!$E$2=\"Shetland Islands Local Authority\",Calculations!$E$2=\"Eilean Siar Local Authority\"),OR($F87=1,$F87=5)),0,prem_mort(VALUE(LEFT(Options!$B$24,2)),$C87,$E87,$F87,2016,$I87+$J87,1,$H87,$G87*$H87,Options!$B$8)))","v":151.40841509660001},480.00620533598959,478.79206620687478,17203.420959223349,17159.906216478201,23034.355379999997,22994.294669776427,480.00620533598959,478.79206620687478,3360043.4373519272,3351544.4634481235,120423946.71456344,120119343.51534741,161240487.65999997,160960062.68843499,3360043.4373519272,3351544.4634481235,7000]
[null,"Male 45-49",47.038155000000003,79.418149999999997,"male",1,{"$f":"HLOOKUP(Calculations!$E$2,'Prevalence Rates'!$C$3:$BC$249,'Prevalence Rates'!$BD88,FALSE)","v":0.43470000000000003},{"$f":"HLOOKUP(Calculations!$E$2,'Population 2016'!$C$3:$BC$249,'Population 2016'!BD88,FALSE)","v":35878},0,{"$f":"HLOOKUP(Results!E$4,Targeting!$C$3:$F$249,Targeting!$G88,FALSE)","v":5528},{"$f":"IF(AND(OR(Calculations!$E$2=\"Orkney Health Board\",Calculations!$E$2=\"Orkney Islands Local Authority\"),$F88=1),0,IF(AND(OR(Calculations!$E$2=\"Shetland Health Board\",Calculations!$E$2=\"Western Isles Health Board\",Calculations!$E$2=\"Shetland Islands Local Authority\",Calculations!$E$2=\"Eilean Siar Local Authority\"),OR($F88=1,$F88=5)),0,new_ci(VALUE(LEFT(Options!$B$24,2)),$C88,$E88,$F88,2016,$I88,1,$H88,$G88*$H88,Options!$B$8)))","v":250.33386353189999},{"$f":"IF(AND(OR(Calculations!$E$2=\"Orkney Health Board\",Calculations!$E$2=\"Orkney Islands Local Authority\"),$F88=1),0,IF(AND(OR(Calculations!$E$2=\"Shetland Health Board\",Calculations!$E$2=\"Western Isles Health Board\",Calculations!$E$2=\"Shetland Islands Local Authority\",Calculations!$E$2=\"Eilean Siar Local Authority\"),OR($F88=1,$F88=5)),0,new_ci(VALUE(LEFT(Options!$B$24,2)),$C88,$E88,$F88,2016,$I88+$J88,1,$H88,$G88*$H88,Options!$B$8)))","v":249.68571935189999},{"$f":"IF(AND(OR(Calculations!$E$2=\"Orkney Health Board\",Calculations!$E$2=\"Orkney Islands Local Authority\"),$F88=1),0,IF(AND(OR(Calculations!$E$2=\"Shetland Health Board\",Calculations!$E$2=\"Western Isles Health Board\",Calculations!$E$2=\"Shetland Islands Local Authority\",Calculations!$E$2=\"Eilean Siar Local Authority\"),OR($F88=1,$F88=5)),0,new_yllv2(VALUE(LEFT(Options!$B$24,2)),$C88,$D88,$E88,$F88,2016,$I88,1,$H88,$G88*$H88,Options!$B$8)))","v":7855.4753859617003},{"$f":"IF(AND(OR(Calculations!$E$2=\"Orkney Health Board\",Calculations!$E$2=\"Orkney Islands Local Authority\"),$F88=1),0,IF(AND(OR(Calculations!$E$2=\"Shetland Health Board\",Calculations!$E$2=\"Western Isles Health Board\",Calculations!$E$2=\"Shetland Islands Local Authority\",Calculations!$E$2=\"Eilean Siar Local Authority\"),OR($F88=1,$F88=5)),0,new_yllv2(VALUE(LEFT(Options!$B$24,2)),$C88,$D88,$E88,$F88,2016,$I88+$J88,1,$H88,$G88*$H88,Options!$B$8)))","v":7835.136624834},{"$f":"IF(AND(OR(Calculations!$E$2=\"Orkney Health Board\",Calculations!$E$2=\"Orkney Islands Local Authority\"),$F88=1),0,IF(AND(OR(Calculations!$E$2=\"Shetland Health Board\",Calculations!$E$2=\"Western Isles Health Board\",Calculations!$E$2=\"Shetland Islands Local Authority\",Calculations!$E$2=\"Eilean Siar Local Authority\"),OR($F88=1,$F88=5)),0,hosp_count(VALUE(LEFT(Options!$B$24,2)),$C88,$E88,$F88,2016,$I88,1,$H88,$G88*$H88, Options!$B$8)))","v":9858.8353716774},{"$f":"IF(AND(OR(Calculations!$E$2=\"Orkney Health Board\",Calculations!$E$2=\"Orkney Islands Local Authority\"),$F88=1),0,IF(AND(OR(Calculations!$E$2=\"Shetland Health Board\",Calculations!$E$2=\"Western Isles Health Board\",Calculations!$E$2=\"Shetland Islands Local Authority\",Calculations!$E$2=\"Eilean Siar Local Authority\"),OR($F88=1,$F88=5)),0,hosp_count(VALUE(LEFT(Options!$B$24,2)),$C88,$E88,$F88,2016,$I88+$J88,1,$H88,$G88*$H88, Options!$B$8)))","v":9841.4194430593998},{"$f":"IF(AND(OR(Calculations!$E$2=\"Orkney Health Board\",Calculations!$E$2=\"Orkney Islands Local Authority\"),$F88=1),0,IF(AND(OR(Calculations!$E$2=\"Shetland Health Board\",Calculations!$E$2=\"Western Isles Health Board\",Calculations!$E$2=\"Shetland Islands Local Authority\",Calculations!$E$2=\"Eilean Siar Local Authority\"),OR($F88=1,$F88=5)),0,prem_mort(VALUE(LEFT(Options!$B$24,2)),$C88,$E88,$F88,2016,$I88,1,$H88,$G88*$H88,Options!$B$8)))","v":250.33386353189999},{"$f":"IF(AND(OR(Calculations!$E$2=\"Orkney Health Board\",Calculations!$E$2=\"Orkney Islands Local Authority\"),$F88=1),0,IF(AND(OR(Calculations!$E$2=\"Shetland Health Board\",Calculations!$E$2=\"Western Isles Health Board\",Calculations!$E$2=\"Shetland Islands Local Authority\",Calculations!$E$2=\"Eilean Siar Local Authority\"),OR($F88=1,$F88=5)),0,prem_mort(VALUE(LEFT(Options!$B$24,2)),$C88,$E88,$F88,2016,$I88+$J88,1,$H88,$G88*$H88,Options!$B$8)))","v":249.68571935189999},697.73639425804117,695.92987165365957,21894.964563135349,21838.275892842412,27478.776330000001,27430.234246779084,697.73639425804117,695.92987165365957,4884154.7598062884,4871509.1015756167,153264751.94194743,152867931.24989688,192351434.31,192011639.72745359,4884154.7598062884,4871509.1015756167,7000]
[null,"Male 50-54",51.998646000000001,79.988649999999993,"male",1,{"$f":"HLOOKUP(Calculations!$E$2,'Prevalence Rates'!$C$3:$BC$249,'Prevalence Rates'!$BD89,FALSE)","v":0.43470000000000003},{"$f":"HLOOKUP(Calculations!$E$2,'Population 2016'!$C$3:$BC$249,'Population 2016'!BD89,FALSE)","v":36922},0,{"$f":"HLOOKUP(Results!E$4,Targeting!$C$3:$F$249,Targeting!$G89,FALSE)","v":5689},{"$f":"IF(AND(OR(Calculations!$E$2=\"Orkney Health Board\",Calculations!$E$2=\"Orkney Islands Local Authority\"),$F89=1),0,IF(AND(OR(Calculations!$E$2=\"Shetland Health Board\",Calculations!$E$2=\"Western Isles Health Board\",Calculations!$E$2=\"Shetland Islands Local Authority\",Calculations!$E$2=\"Eilean Siar Local Authority\"),OR($F89=1,$F89=5)),0,new_ci(VALUE(LEFT(Options!$B$24,2)),$C89,$E89,$F89,2016,$I89,1,$H89,$G89*$H89,Options!$B$8)))","v":373.99170781610002},{"$f":"IF(AND(OR(Calculations!$E$2=\"Orkney Health Board\",Calculations!$E$2=\"Orkney Islands Local Authority\"),$F89=1),0,IF(AND(OR(Calculations!$E$2=\"Shetland Health Board\",Calculations!$E$2=\"Western Isles Health Board\",Calculations!$E$2=\"Shetland Islands Local Authority\",Calculations!$E$2=\"Eilean Siar Local Authority\"),OR($F89=1,$F89=5)),0,new_ci(VALUE(LEFT(Options!$B$24,2)),$C89,$E89,$F89,2016,$I89+$J89,1,$H89,$G89*$H89,Options!$B$8)))","v":373.02585670330001},{"$f":"IF(AND(OR(Calculations!$E$2=\"Orkney Health Board\",Calculations!$E$2=\"Orkney Islands Local Authority\"),$F89=1),0,IF(AND(OR(Calculations!$E$2=\"Shetland Health Board\",Calculations!$E$2=\"Western Isles Health Board\",Calculations!$E$2=\"Shetland Islands Local Authority\",Calculations!$E$2=\"Eilean Siar Local Authority\"),OR($F89=1,$F89=5)),0,new_yllv2(VALUE(LEFT(Options!$B$24,2)),$C89,$D89,$E89,$F89,2016,$I89,1,$H89,$G89*$H89,Options!$B$8)))","v":10094.0376899234},{"$f":"IF(AND(OR(Calculations!$E$2=\"Orkney Health Board\",Calculations!$E$2=\"Orkney Islands Local Authority\"),$F89=1),0,IF(AND(OR(Calculations!$E$2=\"Shetland Health Board\",Calculations!$E$2=\"Western Isles Health Board\",Calculations!$E$2=\"Shetland Islands Local Authority\",Calculations!$E$2=\"Eilean Siar Local Authority\"),OR($F89=1,$F89=5)),0,new_yllv2(VALUE(LEFT(Options!$B$24,2)),$C89,$D89,$E89,$F89,2016,$I89+$J89,1,$H89,$G89*$H89,Options!$B$8)))","v":10067.969364525499},{"$f":"IF(AND(OR(Calculations!$E$2=\"Orkney Health Board\",Calculations!$E$2=\"Orkney Islands Local Authority\"),$F89=1),0,IF(AND(OR(Calculations!$E$2=\"Shetland Health Board\",Calculations!$E$2=\"Western Isles Health Board\",Calculations!$E$2=\"Shetland Islands Local Authority\",Calculations!$E$2=\"Eilean Siar Local Authority\"),OR($F89=1,$F89=5)),0,hosp_count(VALUE(LEFT(Options!$B$24,2)),$C89,$E89,$F89,2016,$I89,1,$H89,$G89*$H89, Options!$B$8)))","v":12099.025182703401},{"$f":"IF(AND(OR(Calculations!$E$2=\"Orkney Health Board\",Calculations!$E$2=\"Orkney Islands Local Authority\"),$F89=1),0,IF(AND(OR(Calculations!$E$2=\"Shetland Health Board\",Calculations!$E$2=\"Western Isles Health Board\",Calculations!$E$2=\"Shetland Islands Local Authority\",Calculations!$E$2=\"Eilean Siar Local Authority\"),OR($F89=1,$F89=5)),0,hosp_count(VALUE(LEFT(Options!$B$24,2)),$C89,$E89,$F89,2016,$I89+$J89,1,$H89,$G89*$H89, Options!$B$8)))","v":12077.651354665801},{"$f":"IF(AND(OR(Calculations!$E$2=\"Orkney Health Board\",Calculations!$E$2=\"Orkney Islands Local Authority\"),$F89=1),0,IF(AND(OR(Calculations!$E$2=\"Shetland Health Board\",Calculations!$E$2=\"Western Isles Health Board\",Calculations!$E$2=\"Shetland Islands Local Authority\",Calculations!$E$2=\"Eilean Siar Local Authority\"),OR($F89=1,$F89=5)),0,prem_mort(VALUE(LEFT(Options!$B$24,2)),$C89,$E89,$F89,2016,$I89,1,$H89,$G89*$H89,Options!$B$8)))","v":373.99170781610002},{"$f":"IF(AND(OR(Calculations!$E$2=\"Orkney Health Board\",Calculations!$E$2=\"Orkney Islands Local Authority\"),$F89=1),0,IF(AND(OR(Calculations!$E$2=\"Shetland Health Board\",Calculations!$E$2=\"Western Isles Health Board\",Calculations!$E$2=\"Shetland Islands Local Authority\",Calculations!$E$2=\"Eilean Siar Local Authority\"),OR($F89=1,$F89=5)),0,prem_mort(VALUE(LEFT(Options!$B$24,2)),$C89,$E89,$F89,2016,$I89+$J89,1,$H89,$G89*$H89,Options!$B$8)))","v":373.02585670330001},1012.9237522780458,1010.3078292164564,27338.816125679539,27268.212351783488,32769.148970000002,32711.259830631607,1012.9237522780458,1010.3078292164564,7090466.2659463203,7072154.8045151951,191371712.87975678,190877486.46248442,229384042.79000002,228978818.81442124,7090466.2659463203,7072154.8045151951,7000]
[null,"Male 55-59",56.950867000000002,80.660870000000003,"male",1,{"$f":"HLOOKUP(Calculations!$E$2,'Prevalence Rates'!$C$3:$BC$249,'Prevalence Rates'!$BD90,FALSE)","v":0.43260000000000004},{"$f":"HLOOKUP(Calculations!$E$2,'Population 2016'!$C$3:$BC$249,'Population 2016'!BD90,FALSE)","v":33251},0,{"$f":"HLOOKUP(Results!E$4,Targeting!$C$3:$F$249,Targeting!$G90,FALSE)","v":5123},{"$f":"IF(AND(OR(Calculations!$E$2=\"Orkney Health Board\",Calculations!$E$2=\"Orkney Islands Local Authority\"),$F90=1),0,IF(AND(OR(Calculations!$E$2=\"Shetland Health Board\",Calculations!$E$2=\"Western Isles Health Board\",Calculations!$E$2=\"Shetland Islands Local Authority\",Calculations!$E$2=\"Eilean Siar Local Authority\"),OR($F90=1,$F90=5)),0,new_ci(VALUE(LEFT(Options!$B$24,2)),$C90,$E90,$F90,2016,$I90,1,$H90,$G90*$H90,Options!$B$8)))","v":488.26209149390002},{"$f":"IF(AND(OR(Calculations!$E$2=\"Orkney Health Board\",Calculations!$E$2=\"Orkney Islands Local Authority\"),$F90=1),0,IF(AND(OR(Calculations!$E$2=\"Shetland Health Board\",Calculations!$E$2=\"Western Isles Health Board\",Calculations!$E$2=\"Shetland Islands Local Authority\",Calculations!$E$2=\"Eilean Siar Local Authority\"),OR($F90=1,$F90=5)),0,new_ci(VALUE(LEFT(Options!$B$24,2)),$C90,$E90,$F90,2016,$I90+$J90,1,$H90,$G90*$H90,Options!$B$8)))","v":487.00423874239999},{"$f":"IF(AND(OR(Calculations!$E$2=\"Orkney Health Board\",Calculations!$E$2=\"Orkney Islands Local Authority\"),$F90=1),0,IF(AND(OR(Calculations!$E$2=\"Shetland Health Board\",Calculations!$E$2=\"Western Isles Health Board\",Calculations!$E$2=\"Shetland Islands Local Authority\",Calculations!$E$2=\"Eilean Siar Local Authority\"),OR($F90=1,$F90=5)),0,new_yllv2(VALUE(LEFT(Options!$B$24,2)),$C90,$D90,$E90,$F90,2016,$I90,1,$H90,$G90*$H90,Options!$B$8)))","v":11088.433562612699},{"$f":"IF(AND(OR(Calculations!$E$2=\"Orkney Health Board\",Calculations!$E$2=\"Orkney Islands Local Authority\"),$F90=1),0,IF(AND(OR(Calculations!$E$2=\"Shetland Health Board\",Calculations!$E$2=\"Western Isles Health Board\",Calculations!$E$2=\"Shetland Islands Local Authority\",Calculations!$E$2=\"Eilean Siar Local Authority\"),OR($F90=1,$F90=5)),0,new_yllv2(VALUE(LEFT(Options!$B$24,2)),$C90,$D90,$E90,$F90,2016,$I90+$J90,1,$H90,$G90*$H90,Options!$B$8)))","v":11059.867722852599},{"$f":"IF(AND(OR(Calculations!$E$2=\"Orkney Health Board\",Calculations!$E$2=\"Orkney Islands Local Authority\"),$F90=1),0,IF(AND(OR(Calculations!$E$2=\"Shetland Health Board\",Calculations!$E$2=\"Western Isles Health Board\",Calculations!$E$2=\"Shetland Islands Local Authority\",Calculations!$E$2=\"Eilean Siar Local Authority\"),OR($F90=1,$F90=5)),0,hosp_count(VALUE(LEFT(Options!$B$24,2)),$C90,$E90,$F90,2016,$I90,1,$H90,$G90*$H90, Options!$B$8)))","v":12990.0302415269},{"$f":"IF(AND(OR(Calculations!$E$2=\"Orkney Health Board\",Calculations!$E$2=\"Orkney Islands Local Authority\"),$F90=1),0,IF(AND(OR(Calculations!$E$2=\"Shetland Health Board\",Calculations!$E$2=\"Western Isles Health Board\",Calculations!$E$2=\"Shetland Islands Local Authority\",Calculations!$E$2=\"Eilean Siar Local Authority\"),OR($F90=1,$F90=5)),0,hosp_count(VALUE(LEFT(Options!$B$24,2)),$C90,$E90,$F90,2016,$I90+$J90,1,$H90,$G90*$H90, Options!$B$8)))","v":12967.064875174599},{"$f":"IF(AND(OR(Calculations!$E$2=\"Orkney Health Board\",Calculations!$E$2=\"Orkney Islands Local Authority\"),$F90=1),0,IF(AND(OR(Calculations!$E$2=\"Shetland Health Board\",Calculations!$E$2=\"Western Isles Health Board\",Calculations!$E$2=\"Shetland Islands Local Authority\",Calculations!$E$2=\"Eilean Siar Local Authority\"),OR($F90=1,$F90=5)),0,prem_mort(VALUE(LEFT(Options!$B$24,2)),$C90,$E90,$F90,2016,$I90,1,$H90,$G90*$H90,Options!$B$8)))","v":488.26209149390002},{"$f":"IF(AND(OR(Calculations!$E$2=\"Orkney Health Board\",Calculations!$E$2=\"Orkney Islands Local Authority\"),$F90=1),0,IF(AND(OR(Calculations!$E$2=\"Shetland Health Board\",Calculations!$E$2=\"Western Isles Health Board\",Calculations!$E$2=\"Shetland Islands Local Authority\",Calculations!$E$2=\"Eilean Siar Local Authority\"),OR($F90=1,$F90=5)),0,prem_mort(VALUE(LEFT(Options!$B$24,2)),$C90,$E90,$F90,2016,$I90+$J90,1,$H90,$G90*$H90,Options!$B$8)))","v":487.00423874239999},1468.4132552220988,1464.630353199603,33347.669431333496,33261.75971505398,39066.585189999998,38997.518496209435,1468.4132552220988,1464.630353199603,9544686.1589436419,9520097.2957974188,216759851.30366772,216201438.14785087,253932803.73499998,253483870.22536132,9544686.1589436419,9520097.2957974188,6500]
[null,"Male 60-64",61.942988999999997,81.612989999999996,"male",1,{"$f":"HLOOKUP(Calculations!$E$2,'Prevalence Rates'!$C$3:$BC$249,'Prevalence Rates'!$BD91,FALSE)","v":0.43260000000000004},{"$f":"HLOOKUP(Calculations!$E$2,'Population 2016'!$C$3:$BC$249,'Population 2016'!BD91,FALSE)","v":27358},0,{"$f":"HLOOKUP(Results!E$4,Targeting!$C$3:$F$249,Targeting!$G91,FALSE)","v":4215},{"$f":"IF(AND(OR(Calculations!$E$2=\"Orkney Health Board\",Calculations!$E$2=\"Orkney Islands Local Authority\"),$F91=1),0,IF(AND(OR(Calculations!$E$2=\"Shetland Health Board\",Calculations!$E$2=\"Western Isles Health Board\",Calculations!$E$2=\"Shetland Islands Local Authority\",Calculations!$E$2=\"Eilean Siar Local Authority\"),OR($F91=1,$F91=5)),0,new_ci(VALUE(LEFT(Options!$B$24,2)),$C91,$E91,$F91,2016,$I91,1,$H91,$G91*$H91,Options!$B$8)))","v":583.44463640799995},{"$f":"IF(AND(OR(Calculations!$E$2=\"Orkney Health Board\",Calculations!$E$2=\"Orkney Islands Local Authority\"),$F91=1),0,IF(AND(OR(Calculations!$E$2=\"Shetland Health Board\",Calculations!$E$2=\"Western Isles Health Board\",Calculations!$E$2=\"Shetland Islands Local Authority\",Calculations!$E$2=\"Eilean Siar Local Authority\"),OR($F91=1,$F91=5)),0,new_ci(VALUE(LEFT(Options!$B$24,2)),$C91,$E91,$F91,2016,$I91+$J91,1,$H91,$G91*$H91,Options!$B$8)))","v":581.94982627900004},{"$f":"IF(AND(OR(Calculations!$E$2=\"Orkney Health Board\",Calculations!$E$2=\"Orkney Islands Local Authority\"),$F91=1),0,IF(AND(OR(Calculations!$E$2=\"Shetland Health Board\",Calculations!$E$2=\"Western Isles Health Board\",Calculations!$E$2=\"Shetland Islands Local Authority\",Calculations!$E$2=\"Eilean Siar Local Authority\"),OR($F91=1,$F91=5)),0,new_yllv2(VALUE(LEFT(Options!$B$24,2)),$C91,$D91,$E91,$F91,2016,$I91,1,$H91,$G91*$H91,Options!$B$8)))","v":10892.911945182001},{"$f":"IF(AND(OR(Calculations!$E$2=\"Orkney Health Board\",Calculations!$E$2=\"Orkney Islands Local Authority\"),$F91=1),0,IF(AND(OR(Calculations!$E$2=\"Shetland Health Board\",Calculations!$E$2=\"Western Isles Health Board\",Calculations!$E$2=\"Shetland Islands Local Authority\",Calculations!$E$2=\"Eilean Siar Local Authority\"),OR($F91=1,$F91=5)),0,new_yllv2(VALUE(LEFT(Options!$B$24,2)),$C91,$D91,$E91,$F91,2016,$I91+$J91,1,$H91,$G91*$H91,Options!$B$8)))","v":10865.003838578799},{"$f":"IF(AND(OR(Calculations!$E$2=\"Orkney Health Board\",Calculations!$E$2=\"Orkney Islands Local Authority\"),$F91=1),0,IF(AND(OR(Calculations!$E$2=\"Shetland Health Board\",Calculations!$E$2=\"Western Isles Health Board\",Calculations!$E$2=\"Shetland Islands Local Authority\",Calculations!$E$2=\"Eilean Siar Local Authority\"),OR($F91=1,$F91=5)),0,hosp_count(VALUE(LEFT(Options!$B$24,2)),$C91,$E91,$F91,2016,$I91,1,$H91,$G91*$H91, Options!$B$8)))","v":12759.838377569},{"$f":"IF(AND(OR(Calculations!$E$2=\"Orkney Health Board\",Calculations!$E$2=\"Orkney Islands Local Authority\"),$F91=1),0,IF(AND(OR(Calculations!$E$2=\"Shetland Health Board\",Calculations!$E$2=\"Western Isles Health Board\",Calculations!$E$2=\"Shetland Islands Local Authority\",Calculations!$E$2=\"Eilean Siar Local Authority\"),OR($F91=1,$F91=5)),0,hosp_count(VALUE(LEFT(Options!$B$24,2)),$C91,$E91,$F91,2016,$I91+$J91,1,$H91,$G91*$H91, Options!$B$8)))","v":12737.280305976399},{"$f":"IF(AND(OR(Calculations!$E$2=\"Orkney Health Board\",Calculations!$E$2=\"Orkney Islands Local Authority\"),$F91=1),0,IF(AND(OR(Calculations!$E$2=\"Shetland Health Board\",Calculations!$E$2=\"Western Isles Health Board\",Calculations!$E$2=\"Shetland Islands Local Authority\",Calculations!$E$2=\"Eilean Siar Local Authority\"),OR($F91=1,$F91=5)),0,prem_mort(VALUE(LEFT(Options!$B$24,2)),$C91,$E91,$F91,2016,$I91,1,$H91,$G91*$H91,Options!$B$8)))","v":583.44463640799995},{"$f":"IF(AND(OR(Calculations!$E$2=\"Orkney Health Board\",Calculations!$E$2=\"Orkney Islands Local Authority\"),$F91=1),0,IF(AND(OR(Calculations!$E$2=\"Shetland Health Board\",Calculations!$E$2=\"Western Isles Health Board\",Calculations!$E$2=\"Shetland Islands Local Authority\",Calculations!$E$2=\"Eilean Siar Local Authority\"),OR($F91=1,$F91=5)),0,prem_mort(VALUE(LEFT(Options!$B$24,2)),$C91,$E91,$F91,2016,$I91+$J91,1,$H91,$G91*$H91,Options!$B$8)))","v":581.94982627900004},2132.6289802178517,2127.1650934973318,39816.185193296296,39714.174422760429,46640.24555,46557.790430500761,2132.6289802178517,2127.1650934973318,12795773.88130711,12762990.560983991,238897111.15977779,238285046.53656256,279841473.30000001,279346742.58300459,12795773.88130711,12762990.560983991,6000]
[null,"Male 65-69",67.054419999999993,82.954419999999999,"male",1,{"$f":"HLOOKUP(Calculations!$E$2,'Prevalence Rates'!$C$3:$BC$249,'Prevalence Rates'!$BD92,FALSE)","v":0.3095},{"$f":"HLOOKUP(Calculations!$E$2,'Population 2016'!$C$3:$BC$249,'Population 2016'!BD92,FALSE)","v":25567},0,{"$f":"HLOOKUP(Results!E$4,Targeting!$C$3:$F$249,Targeting!$G92,FALSE)","v":3939},{"$f":"IF(AND(OR(Calculations!$E$2=\"Orkney Health Board\",Calculations!$E$2=\"Orkney Islands Local Authority\"),$F92=1),0,IF(AND(OR(Calculations!$E$2=\"Shetland Health Board\",Calculations!$E$2=\"Western Isles Health Board\",Calculations!$E$2=\"Shetland Islands Local Authority\",Calculations!$E$2=\"Eilean Siar Local Authority\"),OR($F92=1,$F92=5)),0,new_ci(VALUE(LEFT(Options!$B$24,2)),$C92,$E92,$F92,2016,$I92,1,$H92,$G92*$H92,Options!$B$8)))","v":797.5414112899},{"$f":"IF(AND(OR(Calculations!$E$2=\"Orkney Health Board\",Calculations!$E$2=\"Orkney Islands Local Authority\"),$F92=1),0,IF(AND(OR(Calculations!$E$2=\"Shetland Health Board\",Calculations!$E$2=\"Western Isles Health Board\",Calculations!$E$2=\"Shetland Islands Local Authority\",Calculations!$E$2=\"Eilean Siar Local Authority\"),OR($F92=1,$F92=5)),0,new_ci(VALUE(LEFT(Options!$B$24,2)),$C92,$E92,$F92,2016,$I92+$J92,1,$H92,$G92*$H92,Options!$B$8)))","v":795.34740719709998},{"$f":"IF(AND(OR(Calculations!$E$2=\"Orkney Health Board\",Calculations!$E$2=\"Orkney Islands Local Authority\"),$F92=1),0,IF(AND(OR(Calculations!$E$2=\"Shetland Health Board\",Calculations!$E$2=\"Western Isles Health Board\",Calculations!$E$2=\"Shetland Islands Local Authority\",Calculations!$E$2=\"Eilean Siar Local Authority\"),OR($F92=1,$F92=5)),0,new_yllv2(VALUE(LEFT(Options!$B$24,2)),$C92,$D92,$E92,$F92,2016,$I92,1,$H92,$G92*$H92,Options!$B$8)))","v":11883.3670282195},{"$f":"IF(AND(OR(Calculations!$E$2=\"Orkney Health Board\",Calculations!$E$2=\"Orkney Islands Local Authority\"),$F92=1),0,IF(AND(OR(Calculations!$E$2=\"Shetland Health Board\",Calculations!$E$2=\"Western Isles Health Board\",Calculations!$E$2=\"Shetland Islands Local Authority\",Calculations!$E$2=\"Eilean Siar Local Authority\"),OR($F92=1,$F92=5)),0,new_yllv2(VALUE(LEFT(Options!$B$24,2)),$C92,$D92,$E92,$F92,2016,$I92+$J92,1,$H92,$G92*$H92,Options!$B$8)))","v":11850.6763672368},{"$f":"IF(AND(OR(Calculations!$E$2=\"Orkney Health Board\",Calculations!$E$2=\"Orkney Islands Local Authority\"),$F92=1),0,IF(AND(OR(Calculations!$E$2=\"Shetland Health Board\",Calculations!$E$2=\"Western Isles Health Board\",Calculations!$E$2=\"Shetland Islands Local Authority\",Calculations!$E$2=\"Eilean Siar Local Authority\"),OR($F92=1,$F92=5)),0,hosp_count(VALUE(LEFT(Options!$B$24,2)),$C92,$E92,$F92,2016,$I92,1,$H92,$G92*$H92, Options!$B$8)))","v":14296.6790701768},{"$f":"IF(AND(OR(Calculations!$E$2=\"Orkney Health Board\",Calculations!$E$2=\"Orkney Islands Local Authority\"),$F92=1),0,IF(AND(OR(Calculations!$E$2=\"Shetland Health Board\",Calculations!$E$2=\"Western Isles Health Board\",Calculations!$E$2=\"Shetland Islands Local Authority\",Calculations!$E$2=\"Eilean Siar Local Authority\"),OR($F92=1,$F92=5)),0,hosp_count(VALUE(LEFT(Options!$B$24,2)),$C92,$E92,$F92,2016,$I92+$J92,1,$H92,$G92*$H92, Options!$B$8)))","v":14270.1041710602},{"$f":"IF(AND(OR(Calculations!$E$2=\"Orkney Health Board\",Calculations!$E$2=\"Orkney Islands Local Authority\"),$F92=1),0,IF(AND(OR(Calculations!$E$2=\"Shetland Health Board\",Calculations!$E$2=\"Western Isles Health Board\",Calculations!$E$2=\"Shetland Islands Local Authority\",Calculations!$E$2=\"Eilean Siar Local Authority\"),OR($F92=1,$F92=5)),0,prem_mort(VALUE(LEFT(Options!$B$24,2)),$C92,$E92,$F92,2016,$I92,1,$H92,$G92*$H92,Options!$B$8)))","v":797.5414112899},{"$f":"IF(AND(OR(Calculations!$E$2=\"Orkney Health Board\",Calculations!$E$2=\"Orkney Islands Local Authority\"),$F92=1),0,IF(AND(OR(Calculations!$E$2=\"Shetland Health Board\",Calculations!$E$2=\"Western Isles Health Board\",Calculations!$E$2=\"Shetland Islands Local Authority\",Calculations!$E$2=\"Eilean Siar Local Authority\"),OR($F92=1,$F92=5)),0,prem_mort(VALUE(LEFT(Options!$B$24,2)),$C92,$E92,$F92,2016,$I92+$J92,1,$H92,$G92*$H92,Options!$B$8)))","v":795.34740719709998},3119.4172616650367,3110.8358712289278,46479.317198809011,46351.454481311062,55918.48504,55814.542852349514,3119.4172616650367,3110.8358712289278,17156794.939157702,17109597.291759104,255636244.59344956,254932999.64721084,{"$f":"W92*$AI92","v":307551667.71999997},{"$f":"X92*$AI92","v":306979985.6879223},{"$f":"Y92*$AI92","v":17156794.939157702},{"$f":"Z92*$AI92","v":17109597.291759104},5500]
[null,"Male 70-74",71.891098,84.341099999999997,"male",1,{"$f":"HLOOKUP(Calculations!$E$2,'Prevalence Rates'!$C$3:$BC$249,'Prevalence Rates'!$BD93,FALSE)","v":0.3095},{"$f":"HLOOKUP(Calculations!$E$2,'Population 2016'!$C$3:$BC$249,'Population 2016'!BD93,FALSE)","v":18358},0,{"$f":"HLOOKUP(Results!E$4,Targeting!$C$3:$F$249,Targeting!$G93,FALSE)","v":2828},{"$f":"IF(AND(OR(Calculations!$E$2=\"Orkney Health Board\",Calculations!$E$2=\"Orkney Islands Local Authority\"),$F93=1),0,IF(AND(OR(Calculations!$E$2=\"Shetland Health Board\",Calculations!$E$2=\"Western Isles Health Board\",Calculations!$E$2=\"Shetland Islands Local Authority\",Calculations!$E$2=\"Eilean Siar Local Authority\"),OR($F93=1,$F93=5)),0,new_ci(VALUE(LEFT(Options!$B$24,2)),$C93,$E93,$F93,2016,$I93,1,$H93,$G93*$H93,Options!$B$8)))","v":818.76381283030003},{"$f":"IF(AND(OR(Calculations!$E$2=\"Orkney Health Board\",Calculations!$E$2=\"Orkney Islands Local Authority\"),$F93=1),0,IF(AND(OR(Calculations!$E$2=\"Shetland Health Board\",Calculations!$E$2=\"Western Isles Health Board\",Calculations!$E$2=\"Shetland Islands Local Authority\",Calculations!$E$2=\"Eilean Siar Local Authority\"),OR($F93=1,$F93=5)),0,new_ci(VALUE(LEFT(Options!$B$24,2)),$C93,$E93,$F93,2016,$I93+$J93,1,$H93,$G93*$H93,Options!$B$8)))","v":816.54079329590002},{"$f":"IF(AND(OR(Calculations!$E$2=\"Orkney Health Board\",Calculations!$E$2=\"Orkney Islands Local Authority\"),$F93=1),0,IF(AND(OR(Calculations!$E$2=\"Shetland Health Board\",Calculations!$E$2=\"Western Isles Health Board\",Calculations!$E$2=\"Shetland Islands Local Authority\",Calculations!$E$2=\"Eilean Siar Local Authority\"),OR($F93=1,$F93=5)),0,new_yllv2(VALUE(LEFT(Options!$B$24,2)),$C93,$D93,$E93,$F93,2016,$I93,1,$H93,$G93*$H93,Options!$B$8)))","v":9374.8472944345995},{"$f":"IF(AND(OR(Calculations!$E$2=\"Orkney Health Board\",Calculations!$E$2=\"Orkney Islands Local Authority\"),$F93=1),0,IF(AND(OR(Calculations!$E$2=\"Shetland Health Board\",Calculations!$E$2=\"Western Isles Health Board\",Calculations!$E$2=\"Shetland Islands Local Authority\",Calculations!$E$2=\"Eilean Siar Local Authority\"),OR($F93=1,$F93=5)),0,new_yllv2(VALUE(LEFT(Options!$B$24,2)),$C93,$D93,$E93,$F93,2016,$I93+$J93,1,$H93,$G93*$H93,Options!$B$8)))","v":9349.3937163196006},{"$f":"IF(AND(OR(Calculations!$E$2=\"Orkney Health Board\",Calculations!$E$2=\"Orkney Islands Local Authority\"),$F93=1),0,IF(AND(OR(Calculations!$E$2=\"Shetland Health Board\",Calculations!$E$2=\"Western Isles Health Board\",Calculations!$E$2=\"Shetland Islands Local Authority\",Calculations!$E$2=\"Eilean Siar Local Authority\"),OR($F93=1,$F93=5)),0,hosp_count(VALUE(LEFT(Options!$B$24,2)),$C93,$E93,$F93,2016,$I93,1,$H93,$G93*$H93, Options!$B$8)))","v":12188.209584951601},{"$f":"IF(AND(OR(Calculations!$E$2=\"Orkney Health Board\",Calculations!$E$2=\"Orkney Islands Local Authority\"),$F93=1),0,IF(AND(OR(Calculations!$E$2=\"Shetland Health Board\",Calculations!$E$2=\"Western Isles Health Board\",Calculations!$E$2=\"Shetland Islands Local Authority\",Calculations!$E$2=\"Eilean Siar Local Authority\"),OR($F93=1,$F93=5)),0,hosp_count(VALUE(LEFT(Options!$B$24,2)),$C93,$E93,$F93,2016,$I93+$J93,1,$H93,$G93*$H93, Options!$B$8)))","v":12165.556664588999},{"$f":"IF(AND(OR(Calculations!$E$2=\"Orkney Health Board\",Calculations!$E$2=\"Orkney Islands Local Authority\"),$F93=1),0,IF(AND(OR(Calculations!$E$2=\"Shetland Health Board\",Calculations!$E$2=\"Western Isles Health Board\",Calculations!$E$2=\"Shetland Islands Local Authority\",Calculations!$E$2=\"Eilean Siar Local Authority\"),OR($F93=1,$F93=5)),0,prem_mort(VALUE(LEFT(Options!$B$24,2)),$C93,$E93,$F93,2016,$I93,1,$H93,$G93*$H93,Options!$B$8)))","v":818.76381283030003},{"$f":"IF(AND(OR(Calculations!$E$2=\"Orkney Health Board\",Calculations!$E$2=\"Orkney Islands Local Authority\"),$F93=1),0,IF(AND(OR(Calculations!$E$2=\"Shetland Health Board\",Calculations!$E$2=\"Western Isles Health Board\",Calculations!$E$2=\"Shetland Islands Local Authority\",Calculations!$E$2=\"Eilean Siar Local Authority\"),OR($F93=1,$F93=5)),0,prem_mort(VALUE(LEFT(Options!$B$24,2)),$C93,$E93,$F93,2016,$I93+$J93,1,$H93,$G93*$H93,Options!$B$8)))","v":816.54079329590002},4459.9837282400049,4447.8744596137931,51066.822608315721,50928.171458326615,66391.816019999998,66268.42065905327,4459.9837282400049,4447.8744596137931,22299918.641200025,22239372.298068967,255334113.04157859,254640857.29163307,331959080.09999996,331342103.29526633,22299918.641200025,22239372.298068967,5000]
[null,"Male 75-79",76.907700000000006,86.357700000000008,"male",1,{"$f":"HLOOKUP(Calculations!$E$2,'Prevalence Rates'!$C$3:$BC$249,'Prevalence Rates'!$BD94,FALSE)","v":0.17050000000000001},{"$f":"HLOOKUP(Calculations!$E$2,'Population 2016'!$C$3:$BC$249,'Population 2016'!BD94,FALSE)","v":13914},0,{"$f":"HLOOKUP(Results!E$4,Targeting!$C$3:$F$249,Targeting!$G94,FALSE)","v":2144},{"$f":"IF(AND(OR(Calculations!$E$2=\"Orkney Health Board\",Calculations!$E$2=\"Orkney Islands Local Authority\"),$F94=1),0,IF(AND(OR(Calculations!$E$2=\"Shetland Health Board\",Calculations!$E$2=\"Western Isles Health Board\",Calculations!$E$2=\"Shetland Islands Local Authority\",Calculations!$E$2=\"Eilean Siar Local Authority\"),OR($F94=1,$F94=5)),0,new_ci(VALUE(LEFT(Options!$B$24,2)),$C94,$E94,$F94,2016,$I94,1,$H94,$G94*$H94,Options!$B$8)))","v":896.54089720750005},{"$f":"IF(AND(OR(Calculations!$E$2=\"Orkney Health Board\",Calculations!$E$2=\"Orkney Islands Local Authority\"),$F94=1),0,IF(AND(OR(Calculations!$E$2=\"Shetland Health Board\",Calculations!$E$2=\"Western Isles Health Board\",Calculations!$E$2=\"Shetland Islands Local Authority\",Calculations!$E$2=\"Eilean Siar Local Authority\"),OR($F94=1,$F94=5)),0,new_ci(VALUE(LEFT(Options!$B$24,2)),$C94,$E94,$F94,2016,$I94+$J94,1,$H94,$G94*$H94,Options!$B$8)))","v":893.92428220910006},{"$f":"IF(AND(OR(Calculations!$E$2=\"Orkney Health Board\",Calculations!$E$2=\"Orkney Islands Local Authority\"),$F94=1),0,IF(AND(OR(Calculations!$E$2=\"Shetland Health Board\",Calculations!$E$2=\"Western Isles Health Board\",Calculations!$E$2=\"Shetland Islands Local Authority\",Calculations!$E$2=\"Eilean Siar Local Authority\"),OR($F94=1,$F94=5)),0,new_yllv2(VALUE(LEFT(Options!$B$24,2)),$C94,$D94,$E94,$F94,2016,$I94,1,$H94,$G94*$H94,Options!$B$8)))","v":7575.7705814033998},{"$f":"IF(AND(OR(Calculations!$E$2=\"Orkney Health Board\",Calculations!$E$2=\"Orkney Islands Local Authority\"),$F94=1),0,IF(AND(OR(Calculations!$E$2=\"Shetland Health Board\",Calculations!$E$2=\"Western Isles Health Board\",Calculations!$E$2=\"Shetland Islands Local Authority\",Calculations!$E$2=\"Eilean Siar Local Authority\"),OR($F94=1,$F94=5)),0,new_yllv2(VALUE(LEFT(Options!$B$24,2)),$C94,$D94,$E94,$F94,2016,$I94+$J94,1,$H94,$G94*$H94,Options!$B$8)))","v":7553.6601846669},{"$f":"IF(AND(OR(Calculations!$E$2=\"Orkney Health Board\",Calculations!$E$2=\"Orkney Islands Local Authority\"),$F94=1),0,IF(AND(OR(Calculations!$E$2=\"Shetland Health Board\",Calculations!$E$2=\"Western Isles Health Board\",Calculations!$E$2=\"Shetland Islands Local Authority\",Calculations!$E$2=\"Eilean Siar Local Authority\"),OR($F94=1,$F94=5)),0,hosp_count(VALUE(LEFT(Options!$B$24,2)),$C94,$E94,$F94,2016,$I94,1,$H94,$G94*$H94, Options!$B$8)))","v":11038.2262665822},{"$f":"IF(AND(OR(Calculations!$E$2=\"Orkney Health Board\",Calculations!$E$2=\"Orkney Islands Local Authority\"),$F94=1),0,IF(AND(OR(Calculations!$E$2=\"Shetland Health Board\",Calculations!$E$2=\"Western Isles Health Board\",Calculations!$E$2=\"Shetland Islands Local Authority\",Calculations!$E$2=\"Eilean Siar Local Authority\"),OR($F94=1,$F94=5)),0,hosp_count(VALUE(LEFT(Options!$B$24,2)),$C94,$E94,$F94,2016,$I94+$J94,1,$H94,$G94*$H94, Options!$B$8)))","v":11016.4394904446},{"$f":"IF(AND(OR(Calculations!$E$2=\"Orkney Health Board\",Calculations!$E$2=\"Orkney Islands Local Authority\"),$F94=1),0,IF(AND(OR(Calculations!$E$2=\"Shetland Health Board\",Calculations!$E$2=\"Western Isles Health Board\",Calculations!$E$2=\"Shetland Islands Local Authority\",Calculations!$E$2=\"Eilean Siar Local Authority\"),OR($F94=1,$F94=5)),0,prem_mort(VALUE(LEFT(Options!$B$24,2)),$C94,$E94,$F94,2016,$I94,1,$H94,$G94*$H94,Options!$B$8)))","v":0},{"$f":"IF(AND(OR(Calculations!$E$2=\"Orkney Health Board\",Calculations!$E$2=\"Orkney Islands Local Authority\"),$F94=1),0,IF(AND(OR(Calculations!$E$2=\"Shetland Health Board\",Calculations!$E$2=\"Western Isles Health Board\",Calculations!$E$2=\"Shetland Islands Local Authority\",Calculations!$E$2=\"Eilean Siar Local Authority\"),OR($F94=1,$F94=5)),0,prem_mort(VALUE(LEFT(Options!$B$24,2)),$C94,$E94,$F94,2016,$I94+$J94,1,$H94,$G94*$H94,Options!$B$8)))","v":0},6443.444711854967,6424.6390844408515,54447.107815174641,54288.200263525221,79331.797230000011,79175.215541502082,0,0,25773778.847419869,25698556.337763406,217788431.26069856,217152801.05410087,317327188.92000002,316700862.16600835,0,0,4000]
[null,"Male 80-84",81.797089,88.627089999999995,"male",1,{"$f":"HLOOKUP(Calculations!$E$2,'Prevalence Rates'!$C$3:$BC$249,'Prevalence Rates'!$BD95,FALSE)","v":0.17050000000000001},{"$f":"HLOOKUP(Calculations!$E$2,'Population 2016'!$C$3:$BC$249,'Population 2016'!BD95,FALSE)","v":9236},0,{"$f":"HLOOKUP(Results!E$4,Targeting!$C$3:$F$249,Targeting!$G95,FALSE)","v":1423},{"$f":"IF(AND(OR(Calculations!$E$2=\"Orkney Health Board\",Calculations!$E$2=\"Orkney Islands Local Authority\"),$F95=1),0,IF(AND(OR(Calculations!$E$2=\"Shetland Health Board\",Calculations!$E$2=\"Western Isles Health Board\",Calculations!$E$2=\"Shetland Islands Local Authority\",Calculations!$E$2=\"Eilean Siar Local Authority\"),OR($F95=1,$F95=5)),0,new_ci(VALUE(LEFT(Options!$B$24,2)),$C95,$E95,$F95,2016,$I95,1,$H95,$G95*$H95,Options!$B$8)))","v":847.28296067919996},{"$f":"IF(AND(OR(Calculations!$E$2=\"Orkney Health Board\",Calculations!$E$2=\"Orkney Islands Local Authority\"),$F95=1),0,IF(AND(OR(Calculations!$E$2=\"Shetland Health Board\",Calculations!$E$2=\"Western Isles Health Board\",Calculations!$E$2=\"Shetland Islands Local Authority\",Calculations!$E$2=\"Eilean Siar Local Authority\"),OR($F95=1,$F95=5)),0,new_ci(VALUE(LEFT(Options!$B$24,2)),$C95,$E95,$F95,2016,$I95+$J95,1,$H95,$G95*$H95,Options!$B$8)))","v":844.89057138529995},{"$f":"IF(AND(OR(Calculations!$E$2=\"Orkney Health Board\",Calculations!$E$2=\"Orkney Islands Local Authority\"),$F95=1),0,IF(AND(OR(Calculations!$E$2=\"Shetland Health Board\",Calculations!$E$2=\"Western Isles Health Board\",Calculations!$E$2=\"Shetland Islands Local Authority\",Calculations!$E$2=\"Eilean Siar Local Authority\"),OR($F95=1,$F95=5)),0,new_yllv2(VALUE(LEFT(Options!$B$24,2)),$C95,$D95,$E95,$F95,2016,$I95,1,$H95,$G95*$H95,Options!$B$8)))","v":4939.6605080426998},{"$f":"IF(AND(OR(Calculations!$E$2=\"Orkney Health Board\",Calculations!$E$2=\"Orkney Islands Local Authority\"),$F95=1),0,IF(AND(OR(Calculations!$E$2=\"Shetland Health Board\",Calculations!$E$2=\"Western Isles Health Board\",Calculations!$E$2=\"Shetland Islands Local Authority\",Calculations!$E$2=\"Eilean Siar Local Authority\"),OR($F95=1,$F95=5)),0,new_yllv2(VALUE(LEFT(Options!$B$24,2)),$C95,$D95,$E95,$F95,2016,$I95+$J95,1,$H95,$G95*$H95,Options!$B$8)))","v":4925.7128760669002},{"$f":"IF(AND(OR(Calculations!$E$2=\"Orkney Health Board\",Calculations!$E$2=\"Orkney Islands Local Authority\"),$F95=1),0,IF(AND(OR(Calculations!$E$2=\"Shetland Health Board\",Calculations!$E$2=\"Western Isles Health Board\",Calculations!$E$2=\"Shetland Islands Local Authority\",Calculations!$E$2=\"Eilean Siar Local Authority\"),OR($F95=1,$F95=5)),0,hosp_count(VALUE(LEFT(Options!$B$24,2)),$C95,$E95,$F95,2016,$I95,1,$H95,$G95*$H95, Options!$B$8)))","v":8715.7131399083992},{"$f":"IF(AND(OR(Calculations!$E$2=\"Orkney Health Board\",Calculations!$E$2=\"Orkney Islands Local Authority\"),$F95=1),0,IF(AND(OR(Calculations!$E$2=\"Shetland Health Board\",Calculations!$E$2=\"Western Isles Health Board\",Calculations!$E$2=\"Shetland Islands Local Authority\",Calculations!$E$2=\"Eilean Siar Local Authority\"),OR($F95=1,$F95=5)),0,hosp_count(VALUE(LEFT(Options!$B$24,2)),$C95,$E95,$F95,2016,$I95+$J95,1,$H95,$G95*$H95, Options!$B$8)))","v":8698.5124921324004},{"$f":"IF(AND(OR(Calculations!$E$2=\"Orkney Health Board\",Calculations!$E$2=\"Orkney Islands Local Authority\"),$F95=1),0,IF(AND(OR(Calculations!$E$2=\"Shetland Health Board\",Calculations!$E$2=\"Western Isles Health Board\",Calculations!$E$2=\"Shetland Islands Local Authority\",Calculations!$E$2=\"Eilean Siar Local Authority\"),OR($F95=1,$F95=5)),0,prem_mort(VALUE(LEFT(Options!$B$24,2)),$C95,$E95,$F95,2016,$I95,1,$H95,$G95*$H95,Options!$B$8)))","v":0},{"$f":"IF(AND(OR(Calculations!$E$2=\"Orkney Health Board\",Calculations!$E$2=\"Orkney Islands Local Authority\"),$F95=1),0,IF(AND(OR(Calculations!$E$2=\"Shetland Health Board\",Calculations!$E$2=\"Western Isles Health Board\",Calculations!$E$2=\"Shetland Islands Local Authority\",Calculations!$E$2=\"Eilean Siar Local Authority\"),OR($F95=1,$F95=5)),0,prem_mort(VALUE(LEFT(Options!$B$24,2)),$C95,$E95,$F95,2016,$I95+$J95,1,$H95,$G95*$H95,Options!$B$8)))","v":0},9173.7003105153744,9147.7974381258118,53482.681984004979,53331.66821207125,94366.751189999995,94180.516372156781,0,0,22934250.776288435,22869493.595314529,133706704.96001245,133329170.53017813,235916877.97499999,235451290.93039194,0,0,2500]
[null,"Male 85-89",86.630752999999999,91.420750000000012,"male",1,{"$f":"HLOOKUP(Calculations!$E$2,'Prevalence Rates'!$C$3:$BC$249,'Prevalence Rates'!$BD96,FALSE)","v":0.17050000000000001},{"$f":"HLOOKUP(Calculations!$E$2,'Population 2016'!$C$3:$BC$249,'Population 2016'!BD96,FALSE)","v":4449},0,{"$f":"HLOOKUP(Results!E$4,Targeting!$C$3:$F$249,Targeting!$G96,FALSE)","v":685},{"$f":"IF(AND(OR(Calculations!$E$2=\"Orkney Health Board\",Calculations!$E$2=\"Orkney Islands Local Authority\"),$F96=1),0,IF(AND(OR(Calculations!$E$2=\"Shetland Health Board\",Calculations!$E$2=\"Western Isles Health Board\",Calculations!$E$2=\"Shetland Islands Local Authority\",Calculations!$E$2=\"Eilean Siar Local Authority\"),OR($F96=1,$F96=5)),0,new_ci(VALUE(LEFT(Options!$B$24,2)),$C96,$E96,$F96,2016,$I96,1,$H96,$G96*$H96,Options!$B$8)))","v":574.852725448},{"$f":"IF(AND(OR(Calculations!$E$2=\"Orkney Health Board\",Calculations!$E$2=\"Orkney Islands Local Authority\"),$F96=1),0,IF(AND(OR(Calculations!$E$2=\"Shetland Health Board\",Calculations!$E$2=\"Western Isles Health Board\",Calculations!$E$2=\"Shetland Islands Local Authority\",Calculations!$E$2=\"Eilean Siar Local Authority\"),OR($F96=1,$F96=5)),0,new_ci(VALUE(LEFT(Options!$B$24,2)),$C96,$E96,$F96,2016,$I96+$J96,1,$H96,$G96*$H96,Options!$B$8)))","v":573.30550300150003},{"$f":"IF(AND(OR(Calculations!$E$2=\"Orkney Health Board\",Calculations!$E$2=\"Orkney Islands Local Authority\"),$F96=1),0,IF(AND(OR(Calculations!$E$2=\"Shetland Health Board\",Calculations!$E$2=\"Western Isles Health Board\",Calculations!$E$2=\"Shetland Islands Local Authority\",Calculations!$E$2=\"Eilean Siar Local Authority\"),OR($F96=1,$F96=5)),0,new_yllv2(VALUE(LEFT(Options!$B$24,2)),$C96,$D96,$E96,$F96,2016,$I96,1,$H96,$G96*$H96,Options!$B$8)))","v":2178.6901048897998},{"$f":"IF(AND(OR(Calculations!$E$2=\"Orkney Health Board\",Calculations!$E$2=\"Orkney Islands Local Authority\"),$F96=1),0,IF(AND(OR(Calculations!$E$2=\"Shetland Health Board\",Calculations!$E$2=\"Western Isles Health Board\",Calculations!$E$2=\"Shetland Islands Local Authority\",Calculations!$E$2=\"Eilean Siar Local Authority\"),OR($F96=1,$F96=5)),0,new_yllv2(VALUE(LEFT(Options!$B$24,2)),$C96,$D96,$E96,$F96,2016,$I96+$J96,1,$H96,$G96*$H96,Options!$B$8)))","v":2172.8261364591999},{"$f":"IF(AND(OR(Calculations!$E$2=\"Orkney Health Board\",Calculations!$E$2=\"Orkney Islands Local Authority\"),$F96=1),0,IF(AND(OR(Calculations!$E$2=\"Shetland Health Board\",Calculations!$E$2=\"Western Isles Health Board\",Calculations!$E$2=\"Shetland Islands Local Authority\",Calculations!$E$2=\"Eilean Siar Local Authority\"),OR($F96=1,$F96=5)),0,hosp_count(VALUE(LEFT(Options!$B$24,2)),$C96,$E96,$F96,2016,$I96,1,$H96,$G96*$H96, Options!$B$8)))","v":4984.1843667180001},{"$f":"IF(AND(OR(Calculations!$E$2=\"Orkney Health Board\",Calculations!$E$2=\"Orkney Islands Local Authority\"),$F96=1),0,IF(AND(OR(Calculations!$E$2=\"Shetland Health Board\",Calculations!$E$2=\"Western Isles Health Board\",Calculations!$E$2=\"Shetland Islands Local Authority\",Calculations!$E$2=\"Eilean Siar Local Authority\"),OR($F96=1,$F96=5)),0,hosp_count(VALUE(LEFT(Options!$B$24,2)),$C96,$E96,$F96,2016,$I96+$J96,1,$H96,$G96*$H96, Options!$B$8)))","v":4974.3546011265998},{"$f":"IF(AND(OR(Calculations!$E$2=\"Orkney Health Board\",Calculations!$E$2=\"Orkney Islands Local Authority\"),$F96=1),0,IF(AND(OR(Calculations!$E$2=\"Shetland Health Board\",Calculations!$E$2=\"Western Isles Health Board\",Calculations!$E$2=\"Shetland Islands Local Authority\",Calculations!$E$2=\"Eilean Siar Local Authority\"),OR($F96=1,$F96=5)),0,prem_mort(VALUE(LEFT(Options!$B$24,2)),$C96,$E96,$F96,2016,$I96,1,$H96,$G96*$H96,Options!$B$8)))","v":0},{"$f":"IF(AND(OR(Calculations!$E$2=\"Orkney Health Board\",Calculations!$E$2=\"Orkney Islands Local Authority\"),$F96=1),0,IF(AND(OR(Calculations!$E$2=\"Shetland Health Board\",Calculations!$E$2=\"Western Isles Health Board\",Calculations!$E$2=\"Shetland Islands Local Authority\",Calculations!$E$2=\"Eilean Siar Local Authority\"),OR($F96=1,$F96=5)),0,prem_mort(VALUE(LEFT(Options!$B$24,2)),$C96,$E96,$F96,2016,$I96+$J96,1,$H96,$G96*$H96,Options!$B$8)))","v":0},12920.942356664418,12886.165497898404,48970.332768932341,48838.528578538993,112029.31820000001,111808.37494103394,0,0,19381413.534996629,19329248.246847607,73455499.153398514,73257792.867808491,168043977.30000001,167712562.41155091,0,0,1500]
[null,"Male 90+",92.215477000000007,95.515479999999997,"male",1,{"$f":"HLOOKUP(Calculations!$E$2,'Prevalence Rates'!$C$3:$BC$249,'Prevalence Rates'!$BD97,FALSE)","v":0.17050000000000001},{"$f":"HLOOKUP(Calculations!$E$2,'Population 2016'!$C$3:$BC$249,'Population 2016'!BD97,FALSE)","v":1916},0,{"$f":"HLOOKUP(Results!E$4,Targeting!$C$3:$F$249,Targeting!$G97,FALSE)","v":295},{"$f":"IF(AND(OR(Calculations!$E$2=\"Orkney Health Board\",Calculations!$E$2=\"Orkney Islands Local Authority\"),$F97=1),0,IF(AND(OR(Calculations!$E$2=\"Shetland Health Board\",Calculations!$E$2=\"Western Isles Health Board\",Calculations!$E$2=\"Shetland Islands Local Authority\",Calculations!$E$2=\"Eilean Siar Local Authority\"),OR($F97=1,$F97=5)),0,new_ci(VALUE(LEFT(Options!$B$24,2)),$C97,$E97,$F97,2016,$I97,1,$H97,$G97*$H97,Options!$B$8)))","v":363.3653416944},{"$f":"IF(AND(OR(Calculations!$E$2=\"Orkney Health Board\",Calculations!$E$2=\"Orkney Islands Local Authority\"),$F97=1),0,IF(AND(OR(Calculations!$E$2=\"Shetland Health Board\",Calculations!$E$2=\"Western Isles Health Board\",Calculations!$E$2=\"Shetland Islands Local Authority\",Calculations!$E$2=\"Eilean Siar Local Authority\"),OR($F97=1,$F97=5)),0,new_ci(VALUE(LEFT(Options!$B$24,2)),$C97,$E97,$F97,2016,$I97+$J97,1,$H97,$G97*$H97,Options!$B$8)))","v":362.46396308790003},{"$f":"IF(AND(OR(Calculations!$E$2=\"Orkney Health Board\",Calculations!$E$2=\"Orkney Islands Local Authority\"),$F97=1),0,IF(AND(OR(Calculations!$E$2=\"Shetland Health Board\",Calculations!$E$2=\"Western Isles Health Board\",Calculations!$E$2=\"Shetland Islands Local Authority\",Calculations!$E$2=\"Eilean Siar Local Authority\"),OR($F97=1,$F97=5)),0,new_yllv2(VALUE(LEFT(Options!$B$24,2)),$C97,$D97,$E97,$F97,2016,$I97,1,$H97,$G97*$H97,Options!$B$8)))","v":835.74137599309995},{"$f":"IF(AND(OR(Calculations!$E$2=\"Orkney Health Board\",Calculations!$E$2=\"Orkney Islands Local Authority\"),$F97=1),0,IF(AND(OR(Calculations!$E$2=\"Shetland Health Board\",Calculations!$E$2=\"Western Isles Health Board\",Calculations!$E$2=\"Shetland Islands Local Authority\",Calculations!$E$2=\"Eilean Siar Local Authority\"),OR($F97=1,$F97=5)),0,new_yllv2(VALUE(LEFT(Options!$B$24,2)),$C97,$D97,$E97,$F97,2016,$I97+$J97,1,$H97,$G97*$H97,Options!$B$8)))","v":833.6682024941},{"$f":"IF(AND(OR(Calculations!$E$2=\"Orkney Health Board\",Calculations!$E$2=\"Orkney Islands Local Authority\"),$F97=1),0,IF(AND(OR(Calculations!$E$2=\"Shetland Health Board\",Calculations!$E$2=\"Western Isles Health Board\",Calculations!$E$2=\"Shetland Islands Local Authority\",Calculations!$E$2=\"Eilean Siar Local Authority\"),OR($F97=1,$F97=5)),0,hosp_count(VALUE(LEFT(Options!$B$24,2)),$C97,$E97,$F97,2016,$I97,1,$H97,$G97*$H97, Options!$B$8)))","v":2617.0845289212002},{"$f":"IF(AND(OR(Calculations!$E$2=\"Orkney Health Board\",Calculations!$E$2=\"Orkney Islands Local Authority\"),$F97=1),0,IF(AND(OR(Calculations!$E$2=\"Shetland Health Board\",Calculations!$E$2=\"Western Isles Health Board\",Calculations!$E$2=\"Shetland Islands Local Authority\",Calculations!$E$2=\"Eilean Siar Local Authority\"),OR($F97=1,$F97=5)),0,hosp_count(VALUE(LEFT(Options!$B$24,2)),$C97,$E97,$F97,2016,$I97+$J97,1,$H97,$G97*$H97, Options!$B$8)))","v":2611.9231569552999},{"$f":"IF(AND(OR(Calculations!$E$2=\"Orkney Health Board\",Calculations!$E$2=\"Orkney Islands Local Authority\"),$F97=1),0,IF(AND(OR(Calculations!$E$2=\"Shetland Health Board\",Calculations!$E$2=\"Western Isles Health Board\",Calculations!$E$2=\"Shetland Islands Local Authority\",Calculations!$E$2=\"Eilean Siar Local Authority\"),OR($F97=1,$F97=5)),0,prem_mort(VALUE(LEFT(Options!$B$24,2)),$C97,$E97,$F97,2016,$I97,1,$H97,$G97*$H97,Options!$B$8)))","v":0},{"$f":"IF(AND(OR(Calculations!$E$2=\"Orkney Health Board\",Calculations!$E$2=\"Orkney Islands Local Authority\"),$F97=1),0,IF(AND(OR(Calculations!$E$2=\"Shetland Health Board\",Calculations!$E$2=\"Western Isles Health Board\",Calculations!$E$2=\"Shetland Islands Local Authority\",Calculations!$E$2=\"Eilean Siar Local Authority\"),OR($F97=1,$F97=5)),0,prem_mort(VALUE(LEFT(Options!$B$24,2)),$C97,$E97,$F97,2016,$I97+$J97,1,$H97,$G97*$H97,Options!$B$8)))","v":0},18964.788188643008,18917.743376195202,43619.069728241127,43510.866518481213,136591.05057000002,136321.66789954592,0,0,18964788.188643008,18917743.3761952,43619069.728241131,43510866.51848121,136591050.57000002,136321667.89954591,0,0,1000]
[null,"Female 0-4",2.0384007,81.468401,"female",2,{"$f":"HLOOKUP(Calculations!$E$2,'Prevalence Rates'!$C$3:$BC$249,'Prevalence Rates'!$BD98,FALSE)","v":0},{"$f":"HLOOKUP(Calculations!$E$2,'Population 2016'!$C$3:$BC$249,'Population 2016'!BD98,FALSE)","v":0},0,{"$f":"HLOOKUP(Results!E$4,Targeting!$C$3:$F$249,Targeting!$G98,FALSE)","v":0},{"$f":"IF(AND(OR(Calculations!$E$2=\"Orkney Health Board\",Calculations!$E$2=\"Orkney Islands Local Authority\"),$F98=1),0,IF(AND(OR(Calculations!$E$2=\"Shetland Health Board\",Calculations!$E$2=\"Western Isles Health Board\",Calculations!$E$2=\"Shetland Islands Local Authority\",Calculations!$E$2=\"Eilean Siar Local Authority\"),OR($F98=1,$F98=5)),0,new_ci(VALUE(LEFT(Options!$B$24,2)),$C98,$E98,$F98,2016,$I98,1,$H98,$G98*$H98,Options!$B$8)))","v":{"$error":"#VALUE!"}},{"$f":"IF(AND(OR(Calculations!$E$2=\"Orkney Health Board\",Calculations!$E$2=\"Orkney Islands Local Authority\"),$F98=1),0,IF(AND(OR(Calculations!$E$2=\"Shetland Health Board\",Calculations!$E$2=\"Western Isles Health Board\",Calculations!$E$2=\"Shetland Islands Local Authority\",Calculations!$E$2=\"Eilean Siar Local Authority\"),OR($F98=1,$F98=5)),0,new_ci(VALUE(LEFT(Options!$B$24,2)),$C98,$E98,$F98,2016,$I98+$J98,1,$H98,$G98*$H98,Options!$B$8)))","v":{"$error":"#VALUE!"}},{"$f":"IF(AND(OR(Calculations!$E$2=\"Orkney Health Board\",Calculations!$E$2=\"Orkney Islands Local Authority\"),$F98=1),0,IF(AND(OR(Calculations!$E$2=\"Shetland Health Board\",Calculations!$E$2=\"Western Isles Health Board\",Calculations!$E$2=\"Shetland Islands Local Authority\",Calculations!$E$2=\"Eilean Siar Local Authority\"),OR($F98=1,$F98=5)),0,new_yllv2(VALUE(LEFT(Options!$B$24,2)),$C98,$D98,$E98,$F98,2016,$I98,1,$H98,$G98*$H98,Options!$B$8)))","v":{"$error":"#VALUE!"}},{"$f":"IF(AND(OR(Calculations!$E$2=\"Orkney Health Board\",Calculations!$E$2=\"Orkney Islands Local Authority\"),$F98=1),0,IF(AND(OR(Calculations!$E$2=\"Shetland Health Board\",Calculations!$E$2=\"Western Isles Health Board\",Calculations!$E$2=\"Shetland Islands Local Authority\",Calculations!$E$2=\"Eilean Siar Local Authority\"),OR($F98=1,$F98=5)),0,new_yllv2(VALUE(LEFT(Options!$B$24,2)),$C98,$D98,$E98,$F98,2016,$I98+$J98,1,$H98,$G98*$H98,Options!$B$8)))","v":{"$error":"#VALUE!"}},{"$f":"IF(AND(OR(Calculations!$E$2=\"Orkney Health Board\",Calculations!$E$2=\"Orkney Islands Local Authority\"),$F98=1),0,IF(AND(OR(Calculations!$E$2=\"Shetland Health Board\",Calculations!$E$2=\"Western Isles Health Board\",Calculations!$E$2=\"Shetland Islands Local Authority\",Calculations!$E$2=\"Eilean Siar Local Authority\"),OR($F98=1,$F98=5)),0,hosp_count(VALUE(LEFT(Options!$B$24,2)),$C98,$E98,$F98,2016,$I98,1,$H98,$G98*$H98, Options!$B$8)))","v":{"$error":"#VALUE!"}},{"$f":"IF(AND(OR(Calculations!$E$2=\"Orkney Health Board\",Calculations!$E$2=\"Orkney Islands Local Authority\"),$F98=1),0,IF(AND(OR(Calculations!$E$2=\"Shetland Health Board\",Calculations!$E$2=\"Western Isles Health Board\",Calculations!$E$2=\"Shetland Islands Local Authority\",Calculations!$E$2=\"Eilean Siar Local Authority\"),OR($F98=1,$F98=5)),0,hosp_count(VALUE(LEFT(Options!$B$24,2)),$C98,$E98,$F98,2016,$I98+$J98,1,$H98,$G98*$H98, Options!$B$8)))","v":{"$error":"#VALUE!"}},{"$f":"IF(AND(OR(Calculations!$E$2=\"Orkney Health Board\",Calculations!$E$2=\"Orkney Islands Local Authority\"),$F98=1),0,IF(AND(OR(Calculations!$E$2=\"Shetland Health Board\",Calculations!$E$2=\"Western Isles Health Board\",Calculations!$E$2=\"Shetland Islands Local Authority\",Calculations!$E$2=\"Eilean Siar Local Authority\"),OR($F98=1,$F98=5)),0,prem_mort(VALUE(LEFT(Options!$B$24,2)),$C98,$E98,$F98,2016,$I98,1,$H98,$G98*$H98,Options!$B$8)))","v":{"$error":"#VALUE!"}},{"$f":"IF(AND(OR(Calculations!$E$2=\"Orkney Health Board\",Calculations!$E$2=\"Orkney Islands Local Authority\"),$F98=1),0,IF(AND(OR(Calculations!$E$2=\"Shetland Health Board\",Calculations!$E$2=\"Western Isles Health Board\",Calculations!$E$2=\"Shetland Islands Local Authority\",Calculations!$E$2=\"Eilean Siar Local Authority\"),OR($F98=1,$F98=5)),0,prem_mort(VALUE(LEFT(Options!$B$24,2)),$C98,$E98,$F98,2016,$I98+$J98,1,$H98,$G98*$H98,Options!$B$8)))","v":{"$error":"#VALUE!"}},{"$error":"#VALUE!"},{"$error":"#VALUE!"},{"$error":"#VALUE!"},{"$error":"#VALUE!"},{"$error":"#VALUE!"},{"$error":"#VALUE!"},{"$error":"#VALUE!"},{"$error":"#VALUE!"},{"$error":"#VALUE!"},{"$error":"#VALUE!"},{"$error":"#VALUE!"},{"$error":"#VALUE!"},{"$error":"#VALUE!"},{"$error":"#VALUE!"},{"$error":"#VALUE!"},{"$error":"#VALUE!"},5000]
[null,"Female 5-9",6.9792794999999996,81.439279999999997,"female",2,{"$f":"HLOOKUP(Calculations!$E$2,'Prevalence Rates'!$C$3:$BC$249,'Prevalence Rates'!$BD99,FALSE)","v":0},{"$f":"HLOOKUP(Calculations!$E$2,'Population 2016'!$C$3:$BC$249,'Population 2016'!BD99,FALSE)","v":0},0,{"$f":"HLOOKUP(Results!E$4,Targeting!$C$3:$F$249,Targeting!$G99,FALSE)","v":0},{"$f":"IF(AND(OR(Calculations!$E$2=\"Orkney Health Board\",Calculations!$E$2=\"Orkney Islands Local Authority\"),$F99=1),0,IF(AND(OR(Calculations!$E$2=\"Shetland Health Board\",Calculations!$E$2=\"Western Isles Health Board\",Calculations!$E$2=\"Shetland Islands Local Authority\",Calculations!$E$2=\"Eilean Siar Local Authority\"),OR($F99=1,$F99=5)),0,new_ci(VALUE(LEFT(Options!$B$24,2)),$C99,$E99,$F99,2016,$I99,1,$H99,$G99*$H99,Options!$B$8)))","v":{"$error":"#VALUE!"}},{"$f":"IF(AND(OR(Calculations!$E$2=\"Orkney Health Board\",Calculations!$E$2=\"Orkney Islands Local Authority\"),$F99=1),0,IF(AND(OR(Calculations!$E$2=\"Shetland Health Board\",Calculations!$E$2=\"Western Isles Health Board\",Calculations!$E$2=\"Shetland Islands Local Authority\",Calculations!$E$2=\"Eilean Siar Local Authority\"),OR($F99=1,$F99=5)),0,new_ci(VALUE(LEFT(Options!$B$24,2)),$C99,$E99,$F99,2016,$I99+$J99,1,$H99,$G99*$H99,Options!$B$8)))","v":{"$error":"#VALUE!"}},{"$f":"IF(AND(OR(Calculations!$E$2=\"Orkney Health Board\",Calculations!$E$2=\"Orkney Islands Local Authority\"),$F99=1),0,IF(AND(OR(Calculations!$E$2=\"Shetland Health Board\",Calculations!$E$2=\"Western Isles Health Board\",Calculations!$E$2=\"Shetland Islands Local Authority\",Calculations!$E$2=\"Eilean Siar Local Authority\"),OR($F99=1,$F99=5)),0,new_yllv2(VALUE(LEFT(Options!$B$24,2)),$C99,$D99,$E99,$F99,2016,$I99,1,$H99,$G99*$H99,Options!$B$8)))","v":{"$error":"#VALUE!"}},{"$f":"IF(AND(OR(Calculations!$E$2=\"Orkney Health Board\",Calculations!$E$2=\"Orkney Islands Local Authority\"),$F99=1),0,IF(AND(OR(Calculations!$E$2=\"Shetland Health Board\",Calculations!$E$2=\"Western Isles Health Board\",Calculations!$E$2=\"Shetland Islands Local Authority\",Calculations!$E$2=\"Eilean Siar Local Authority\"),OR($F99=1,$F99=5)),0,new_yllv2(VALUE(LEFT(Options!$B$24,2)),$C99,$D99,$E99,$F99,2016,$I99+$J99,1,$H99,$G99*$H99,Options!$B$8)))","v":{"$error":"#VALUE!"}},{"$f":"IF(AND(OR(Calculations!$E$2=\"Orkney Health Board\",Calculations!$E$2=\"Orkney Islands Local Authority\"),$F99=1),0,IF(AND(OR(Calculations!$E$2=\"Shetland Health Board\",Calculations!$E$2=\"Western Isles Health Board\",Calculations!$E$2=\"Shetland Islands Local Authority\",Calculations!$E$2=\"Eilean Siar Local Authority\"),OR($F99=1,$F99=5)),0,hosp_count(VALUE(LEFT(Options!$B$24,2)),$C99,$E99,$F99,2016,$I99,1,$H99,$G99*$H99, Options!$B$8)))","v":{"$error":"#VALUE!"}},{"$f":"IF(AND(OR(Calculations!$E$2=\"Orkney Health Board\",Calculations!$E$2=\"Orkney Islands Local Authority\"),$F99=1),0,IF(AND(OR(Calculations!$E$2=\"Shetland Health Board\",Calculations!$E$2=\"Western Isles Health Board\",Calculations!$E$2=\"Shetland Islands Local Authority\",Calculations!$E$2=\"Eilean Siar Local Authority\"),OR($F99=1,$F99=5)),0,hosp_count(VALUE(LEFT(Options!$B$24,2)),$C99,$E99,$F99,2016,$I99+$J99,1,$H99,$G99*$H99, Options!$B$8)))","v":{"$error":"#VALUE!"}},{"$f":"IF(AND(OR(Calculations!$E$2=\"Orkney Health Board\",Calculations!$E$2=\"Orkney Islands Local Authority\"),$F99=1),0,IF(AND(OR(Calculations!$E$2=\"Shetland Health Board\",Calculations!$E$2=\"Western Isles Health Board\",Calculations!$E$2=\"Shetland Islands Local Authority\",Calculations!$E$2=\"Eilean Siar Local Authority\"),OR($F99=1,$F99=5)),0,prem_mort(VALUE(LEFT(Options!$B$24,2)),$C99,$E99,$F99,2016,$I99,1,$H99,$G99*$H99,Options!$B$8)))","v":{"$error":"#VALUE!"}},{"$f":"IF(AND(OR(Calculations!$E$2=\"Orkney Health Board\",Calculations!$E$2=\"Orkney Islands Local Authority\"),$F99=1),0,IF(AND(OR(Calculations!$E$2=\"Shetland Health Board\",Calculations!$E$2=\"Western Isles Health Board\",Calculations!$E$2=\"Shetland Islands Local Authority\",Calculations!$E$2=\"Eilean Siar Local Authority\"),OR($F99=1,$F99=5)),0,prem_mort(VALUE(LEFT(Options!$B$24,2)),$C99,$E99,$F99,2016,$I99+$J99,1,$H99,$G99*$H99,Options!$B$8)))","v":{"$error":"#VALUE!"}},{"$error":"#VALUE!"},{"$error":"#VALUE!"},{"$error":"#VALUE!"},{"$error":"#VALUE!"},{"$error":"#VALUE!"},{"$error":"#VALUE!"},{"$error":"#VALUE!"},{"$error":"#VALUE!"},{"$error":"#VALUE!"},{"$error":"#VALUE!"},{"$error":"#VALUE!"},{"$error":"#VALUE!"},{"$error":"#VALUE!"},{"$error":"#VALUE!"},{"$error":"#VALUE!"},{"$error":"#VALUE!"},5500]
[null,"Female 10-15",12.478312000000001,81.948309999999992,"female",2,{"$f":"HLOOKUP(Calculations!$E$2,'Prevalence Rates'!$C$3:$BC$249,'Prevalence Rates'!$BD100,FALSE)","v":0},{"$f":"HLOOKUP(Calculations!$E$2,'Population 2016'!$C$3:$BC$249,'Population 2016'!BD100,FALSE)","v":0},0,{"$f":"HLOOKUP(Results!E$4,Targeting!$C$3:$F$249,Targeting!$G100,FALSE)","v":0},{"$f":"IF(AND(OR(Calculations!$E$2=\"Orkney Health Board\",Calculations!$E$2=\"Orkney Islands Local Authority\"),$F100=1),0,IF(AND(OR(Calculations!$E$2=\"Shetland Health Board\",Calculations!$E$2=\"Western Isles Health Board\",Calculations!$E$2=\"Shetland Islands Local Authority\",Calculations!$E$2=\"Eilean Siar Local Authority\"),OR($F100=1,$F100=5)),0,new_ci(VALUE(LEFT(Options!$B$24,2)),$C100,$E100,$F100,2016,$I100,1,$H100,$G100*$H100,Options!$B$8)))","v":{"$error":"#VALUE!"}},{"$f":"IF(AND(OR(Calculations!$E$2=\"Orkney Health Board\",Calculations!$E$2=\"Orkney Islands Local Authority\"),$F100=1),0,IF(AND(OR(Calculations!$E$2=\"Shetland Health Board\",Calculations!$E$2=\"Western Isles Health Board\",Calculations!$E$2=\"Shetland Islands Local Authority\",Calculations!$E$2=\"Eilean Siar Local Authority\"),OR($F100=1,$F100=5)),0,new_ci(VALUE(LEFT(Options!$B$24,2)),$C100,$E100,$F100,2016,$I100+$J100,1,$H100,$G100*$H100,Options!$B$8)))","v":{"$error":"#VALUE!"}},{"$f":"IF(AND(OR(Calculations!$E$2=\"Orkney Health Board\",Calculations!$E$2=\"Orkney Islands Local Authority\"),$F100=1),0,IF(AND(OR(Calculations!$E$2=\"Shetland Health Board\",Calculations!$E$2=\"Western Isles Health Board\",Calculations!$E$2=\"Shetland Islands Local Authority\",Calculations!$E$2=\"Eilean Siar Local Authority\"),OR($F100=1,$F100=5)),0,new_yllv2(VALUE(LEFT(Options!$B$24,2)),$C100,$D100,$E100,$F100,2016,$I100,1,$H100,$G100*$H100,Options!$B$8)))","v":{"$error":"#VALUE!"}},{"$f":"IF(AND(OR(Calculations!$E$2=\"Orkney Health Board\",Calculations!$E$2=\"Orkney Islands Local Authority\"),$F100=1),0,IF(AND(OR(Calculations!$E$2=\"Shetland Health Board\",Calculations!$E$2=\"Western Isles Health Board\",Calculations!$E$2=\"Shetland Islands Local Authority\",Calculations!$E$2=\"Eilean Siar Local Authority\"),OR($F100=1,$F100=5)),0,new_yllv2(VALUE(LEFT(Options!$B$24,2)),$C100,$D100,$E100,$F100,2016,$I100+$J100,1,$H100,$G100*$H100,Options!$B$8)))","v":{"$error":"#VALUE!"}},{"$f":"IF(AND(OR(Calculations!$E$2=\"Orkney Health Board\",Calculations!$E$2=\"Orkney Islands Local Authority\"),$F100=1),0,IF(AND(OR(Calculations!$E$2=\"Shetland Health Board\",Calculations!$E$2=\"Western Isles Health Board\",Calculations!$E$2=\"Shetland Islands Local Authority\",Calculations!$E$2=\"Eilean Siar Local Authority\"),OR($F100=1,$F100=5)),0,hosp_count(VALUE(LEFT(Options!$B$24,2)),$C100,$E100,$F100,2016,$I100,1,$H100,$G100*$H100, Options!$B$8)))","v":{"$error":"#VALUE!"}},{"$f":"IF(AND(OR(Calculations!$E$2=\"Orkney Health Board\",Calculations!$E$2=\"Orkney Islands Local Authority\"),$F100=1),0,IF(AND(OR(Calculations!$E$2=\"Shetland Health Board\",Calculations!$E$2=\"Western Isles Health Board\",Calculations!$E$2=\"Shetland Islands Local Authority\",Calculations!$E$2=\"Eilean Siar Local Authority\"),OR($F100=1,$F100=5)),0,hosp_count(VALUE(LEFT(Options!$B$24,2)),$C100,$E100,$F100,2016,$I100+$J100,1,$H100,$G100*$H100, Options!$B$8)))","v":{"$error":"#VALUE!"}},{"$f":"IF(AND(OR(Calculations!$E$2=\"Orkney Health Board\",Calculations!$E$2=\"Orkney Islands Local Authority\"),$F100=1),0,IF(AND(OR(Calculations!$E$2=\"Shetland Health Board\",Calculations!$E$2=\"Western Isles Health Board\",Calculations!$E$2=\"Shetland Islands Local Authority\",Calculations!$E$2=\"Eilean Siar Local Authority\"),OR($F100=1,$F100=5)),0,prem_mort(VALUE(LEFT(Options!$B$24,2)),$C100,$E100,$F100,2016,$I100,1,$H100,$G100*$H100,Options!$B$8)))","v":{"$error":"#VALUE!"}},{"$f":"IF(AND(OR(Calculations!$E$2=\"Orkney Health Board\",Calculations!$E$2=\"Orkney Islands Local Authority\"),$F100=1),0,IF(AND(OR(Calculations!$E$2=\"Shetland Health Board\",Calculations!$E$2=\"Western Isles Health Board\",Calculations!$E$2=\"Shetland Islands Local Authority\",Calculations!$E$2=\"Eilean Siar Local Authority\"),OR($F100=1,$F100=5)),0,prem_mort(VALUE(LEFT(Options!$B$24,2)),$C100,$E100,$F100,2016,$I100+$J100,1,$H100,$G100*$H100,Options!$B$8)))","v":{"$error":"#VALUE!"}},{"$error":"#VALUE!"},{"$error":"#VALUE!"},{"$error":"#VALUE!"},{"$error":"#VALUE!"},{"$error":"#VALUE!"},{"$error":"#VALUE!"},{"$error":"#VALUE!"},{"$error":"#VALUE!"},{"$error":"#VALUE!"},{"$error":"#VALUE!"},{"$error":"#VALUE!"},{"$error":"#VALUE!"},{"$error":"#VALUE!"},{"$error":"#VALUE!"},{"$error":"#VALUE!"},{"$error":"#VALUE!"},6600]
["SIMD Q2","Female 16-19",17.570053000000001,81.100049999999996,"female",2,{"$f":"HLOOKUP(Calculations!$E$2,'Prevalence Rates'!$C$3:$BC$249,'Prevalence Rates'!$BD101,FALSE)","v":0.26369999999999999},{"$f":"HLOOKUP(Calculations!$E$2,'Population 2016'!$C$3:$BC$249,'Population 2016'!BD101,FALSE)","v":23121},0,{"$f":"HLOOKUP(Results!E$4,Targeting!$C$3:$F$249,Targeting!$G101,FALSE)","v":3562},{"$f":"IF(AND(OR(Calculations!$E$2=\"Orkney Health Board\",Calculations!$E$2=\"Orkney Islands Local Authority\"),$F101=1),0,IF(AND(OR(Calculations!$E$2=\"Shetland Health Board\",Calculations!$E$2=\"Western Isles Health Board\",Calculations!$E$2=\"Shetland Islands Local Authority\",Calculations!$E$2=\"Eilean Siar Local Authority\"),OR($F101=1,$F101=5)),0,new_ci(VALUE(LEFT(Options!$B$24,2)),$C101,$E101,$F101,2016,$I101,1,$H101,$G101*$H101,Options!$B$8)))","v":5.1474288176999998},{"$f":"IF(AND(OR(Calculations!$E$2=\"Orkney Health Board\",Calculations!$E$2=\"Orkney Islands Local Authority\"),$F101=1),0,IF(AND(OR(Calculations!$E$2=\"Shetland Health Board\",Calculations!$E$2=\"Western Isles Health Board\",Calculations!$E$2=\"Shetland Islands Local Authority\",Calculations!$E$2=\"Eilean Siar Local Authority\"),OR($F101=1,$F101=5)),0,new_ci(VALUE(LEFT(Options!$B$24,2)),$C101,$E101,$F101,2016,$I101+$J101,1,$H101,$G101*$H101,Options!$B$8)))","v":5.1255574253000002},{"$f":"IF(AND(OR(Calculations!$E$2=\"Orkney Health Board\",Calculations!$E$2=\"Orkney Islands Local Authority\"),$F101=1),0,IF(AND(OR(Calculations!$E$2=\"Shetland Health Board\",Calculations!$E$2=\"Western Isles Health Board\",Calculations!$E$2=\"Shetland Islands Local Authority\",Calculations!$E$2=\"Eilean Siar Local Authority\"),OR($F101=1,$F101=5)),0,new_yllv2(VALUE(LEFT(Options!$B$24,2)),$C101,$D101,$E101,$F101,2016,$I101,1,$H101,$G101*$H101,Options!$B$8)))","v":321.86870852850001},{"$f":"IF(AND(OR(Calculations!$E$2=\"Orkney Health Board\",Calculations!$E$2=\"Orkney Islands Local Authority\"),$F101=1),0,IF(AND(OR(Calculations!$E$2=\"Shetland Health Board\",Calculations!$E$2=\"Western Isles Health Board\",Calculations!$E$2=\"Shetland Islands Local Authority\",Calculations!$E$2=\"Eilean Siar Local Authority\"),OR($F101=1,$F101=5)),0,new_yllv2(VALUE(LEFT(Options!$B$24,2)),$C101,$D101,$E101,$F101,2016,$I101+$J101,1,$H101,$G101*$H101,Options!$B$8)))","v":320.50109042730003},{"$f":"IF(AND(OR(Calculations!$E$2=\"Orkney Health Board\",Calculations!$E$2=\"Orkney Islands Local Authority\"),$F101=1),0,IF(AND(OR(Calculations!$E$2=\"Shetland Health Board\",Calculations!$E$2=\"Western Isles Health Board\",Calculations!$E$2=\"Shetland Islands Local Authority\",Calculations!$E$2=\"Eilean Siar Local Authority\"),OR($F101=1,$F101=5)),0,hosp_count(VALUE(LEFT(Options!$B$24,2)),$C101,$E101,$F101,2016,$I101,1,$H101,$G101*$H101, Options!$B$8)))","v":2679.1393826232002},{"$f":"IF(AND(OR(Calculations!$E$2=\"Orkney Health Board\",Calculations!$E$2=\"Orkney Islands Local Authority\"),$F101=1),0,IF(AND(OR(Calculations!$E$2=\"Shetland Health Board\",Calculations!$E$2=\"Western Isles Health Board\",Calculations!$E$2=\"Shetland Islands Local Authority\",Calculations!$E$2=\"Eilean Siar Local Authority\"),OR($F101=1,$F101=5)),0,hosp_count(VALUE(LEFT(Options!$B$24,2)),$C101,$E101,$F101,2016,$I101+$J101,1,$H101,$G101*$H101, Options!$B$8)))","v":2672.1645486194998},{"$f":"IF(AND(OR(Calculations!$E$2=\"Orkney Health Board\",Calculations!$E$2=\"Orkney Islands Local Authority\"),$F101=1),0,IF(AND(OR(Calculations!$E$2=\"Shetland Health Board\",Calculations!$E$2=\"Western Isles Health Board\",Calculations!$E$2=\"Shetland Islands Local Authority\",Calculations!$E$2=\"Eilean Siar Local Authority\"),OR($F101=1,$F101=5)),0,prem_mort(VALUE(LEFT(Options!$B$24,2)),$C101,$E101,$F101,2016,$I101,1,$H101,$G101*$H101,Options!$B$8)))","v":5.1474288176999998},{"$f":"IF(AND(OR(Calculations!$E$2=\"Orkney Health Board\",Calculations!$E$2=\"Orkney Islands Local Authority\"),$F101=1),0,IF(AND(OR(Calculations!$E$2=\"Shetland Health Board\",Calculations!$E$2=\"Western Isles Health Board\",Calculations!$E$2=\"Shetland Islands Local Authority\",Calculations!$E$2=\"Eilean Siar Local Authority\"),OR($F101=1,$F101=5)),0,prem_mort(VALUE(LEFT(Options!$B$24,2)),$C101,$E101,$F101,2016,$I101+$J101,1,$H101,$G101*$H101,Options!$B$8)))","v":5.1255574253000002},22.263002541845076,22.168407185242856,1392.1054821525886,1386.1904347878553,11587.47192,11557.305257642402,22.263002541845076,22.168407185242856,97957.211184118336,97540.99161506856,6125264.1214713901,6099237.9130665632,50984876.447999999,50852143.133626565,97957.211184118336,97540.99161506856,4400]
[null,"Female 20-24",22.077057,81.667060000000006,"female",2,{"$f":"HLOOKUP(Calculations!$E$2,'Prevalence Rates'!$C$3:$BC$249,'Prevalence Rates'!$BD102,FALSE)","v":0.26369999999999999},{"$f":"HLOOKUP(Calculations!$E$2,'Population 2016'!$C$3:$BC$249,'Population 2016'!BD102,FALSE)","v":36899},0,{"$f":"HLOOKUP(Results!E$4,Targeting!$C$3:$F$249,Targeting!$G102,FALSE)","v":5685},{"$f":"IF(AND(OR(Calculations!$E$2=\"Orkney Health Board\",Calculations!$E$2=\"Orkney Islands Local Authority\"),$F102=1),0,IF(AND(OR(Calculations!$E$2=\"Shetland Health Board\",Calculations!$E$2=\"Western Isles Health Board\",Calculations!$E$2=\"Shetland Islands Local Authority\",Calculations!$E$2=\"Eilean Siar Local Authority\"),OR($F102=1,$F102=5)),0,new_ci(VALUE(LEFT(Options!$B$24,2)),$C102,$E102,$F102,2016,$I102,1,$H102,$G102*$H102,Options!$B$8)))","v":12.051923881800001},{"$f":"IF(AND(OR(Calculations!$E$2=\"Orkney Health Board\",Calculations!$E$2=\"Orkney Islands Local Authority\"),$F102=1),0,IF(AND(OR(Calculations!$E$2=\"Shetland Health Board\",Calculations!$E$2=\"Western Isles Health Board\",Calculations!$E$2=\"Shetland Islands Local Authority\",Calculations!$E$2=\"Eilean Siar Local Authority\"),OR($F102=1,$F102=5)),0,new_ci(VALUE(LEFT(Options!$B$24,2)),$C102,$E102,$F102,2016,$I102+$J102,1,$H102,$G102*$H102,Options!$B$8)))","v":12.0007162443},{"$f":"IF(AND(OR(Calculations!$E$2=\"Orkney Health Board\",Calculations!$E$2=\"Orkney Islands Local Authority\"),$F102=1),0,IF(AND(OR(Calculations!$E$2=\"Shetland Health Board\",Calculations!$E$2=\"Western Isles Health Board\",Calculations!$E$2=\"Shetland Islands Local Authority\",Calculations!$E$2=\"Eilean Siar Local Authority\"),OR($F102=1,$F102=5)),0,new_yllv2(VALUE(LEFT(Options!$B$24,2)),$C102,$D102,$E102,$F102,2016,$I102,1,$H102,$G102*$H102,Options!$B$8)))","v":706.12225639040003},{"$f":"IF(AND(OR(Calculations!$E$2=\"Orkney Health Board\",Calculations!$E$2=\"Orkney Islands Local Authority\"),$F102=1),0,IF(AND(OR(Calculations!$E$2=\"Shetland Health Board\",Calculations!$E$2=\"Western Isles Health Board\",Calculations!$E$2=\"Shetland Islands Local Authority\",Calculations!$E$2=\"Eilean Siar Local Authority\"),OR($F102=1,$F102=5)),0,new_yllv2(VALUE(LEFT(Options!$B$24,2)),$C102,$D102,$E102,$F102,2016,$I102+$J102,1,$H102,$G102*$H102,Options!$B$8)))","v":703.12200075570001},{"$f":"IF(AND(OR(Calculations!$E$2=\"Orkney Health Board\",Calculations!$E$2=\"Orkney Islands Local Authority\"),$F102=1),0,IF(AND(OR(Calculations!$E$2=\"Shetland Health Board\",Calculations!$E$2=\"Western Isles Health Board\",Calculations!$E$2=\"Shetland Islands Local Authority\",Calculations!$E$2=\"Eilean Siar Local Authority\"),OR($F102=1,$F102=5)),0,hosp_count(VALUE(LEFT(Options!$B$24,2)),$C102,$E102,$F102,2016,$I102,1,$H102,$G102*$H102, Options!$B$8)))","v":4788.9278407905003},{"$f":"IF(AND(OR(Calculations!$E$2=\"Orkney Health Board\",Calculations!$E$2=\"Orkney Islands Local Authority\"),$F102=1),0,IF(AND(OR(Calculations!$E$2=\"Shetland Health Board\",Calculations!$E$2=\"Western Isles Health Board\",Calculations!$E$2=\"Shetland Islands Local Authority\",Calculations!$E$2=\"Eilean Siar Local Authority\"),OR($F102=1,$F102=5)),0,hosp_count(VALUE(LEFT(Options!$B$24,2)),$C102,$E102,$F102,2016,$I102+$J102,1,$H102,$G102*$H102, Options!$B$8)))","v":4776.4595925876001},{"$f":"IF(AND(OR(Calculations!$E$2=\"Orkney Health Board\",Calculations!$E$2=\"Orkney Islands Local Authority\"),$F102=1),0,IF(AND(OR(Calculations!$E$2=\"Shetland Health Board\",Calculations!$E$2=\"Western Isles Health Board\",Calculations!$E$2=\"Shetland Islands Local Authority\",Calculations!$E$2=\"Eilean Siar Local Authority\"),OR($F102=1,$F102=5)),0,prem_mort(VALUE(LEFT(Options!$B$24,2)),$C102,$E102,$F102,2016,$I102,1,$H102,$G102*$H102,Options!$B$8)))","v":12.051923881800001},{"$f":"IF(AND(OR(Calculations!$E$2=\"Orkney Health Board\",Calculations!$E$2=\"Orkney Islands Local Authority\"),$F102=1),0,IF(AND(OR(Calculations!$E$2=\"Shetland Health Board\",Calculations!$E$2=\"Western Isles Health Board\",Calculations!$E$2=\"Shetland Islands Local Authority\",Calculations!$E$2=\"Eilean Siar Local Authority\"),OR($F102=1,$F102=5)),0,prem_mort(VALUE(LEFT(Options!$B$24,2)),$C102,$E102,$F102,2016,$I102+$J102,1,$H102,$G102*$H102,Options!$B$8)))","v":12.0007162443},32.661925477113201,32.523147630830103,1913.6623116897479,1905.5313172598173,12978.47595,12944.685743753491,32.661925477113201,32.523147630830103,195971.55286267921,195138.88578498061,11481973.870138487,11433187.903558904,77870855.700000003,77668114.462520942,195971.55286267921,195138.88578498061,6000]
[null,"Female 25-29",26.975186999999998,81.645189999999999,"female",2,{"$f":"HLOOKUP(Calculations!$E$2,'Prevalence Rates'!$C$3:$BC$249,'Prevalence Rates'!$BD103,FALSE)","v":0.28010000000000002},{"$f":"HLOOKUP(Calculations!$E$2,'Population 2016'!$C$3:$BC$249,'Population 2016'!BD103,FALSE)","v":40610},0,{"$f":"HLOOKUP(Results!E$4,Targeting!$C$3:$F$249,Targeting!$G103,FALSE)","v":6257},{"$f":"IF(AND(OR(Calculations!$E$2=\"Orkney Health Board\",Calculations!$E$2=\"Orkney Islands Local Authority\"),$F103=1),0,IF(AND(OR(Calculations!$E$2=\"Shetland Health Board\",Calculations!$E$2=\"Western Isles Health Board\",Calculations!$E$2=\"Shetland Islands Local Authority\",Calculations!$E$2=\"Eilean Siar Local Authority\"),OR($F103=1,$F103=5)),0,new_ci(VALUE(LEFT(Options!$B$24,2)),$C103,$E103,$F103,2016,$I103,1,$H103,$G103*$H103,Options!$B$8)))","v":20.117085572400001},{"$f":"IF(AND(OR(Calculations!$E$2=\"Orkney Health Board\",Calculations!$E$2=\"Orkney Islands Local Authority\"),$F103=1),0,IF(AND(OR(Calculations!$E$2=\"Shetland Health Board\",Calculations!$E$2=\"Western Isles Health Board\",Calculations!$E$2=\"Shetland Islands Local Authority\",Calculations!$E$2=\"Eilean Siar Local Authority\"),OR($F103=1,$F103=5)),0,new_ci(VALUE(LEFT(Options!$B$24,2)),$C103,$E103,$F103,2016,$I103+$J103,1,$H103,$G103*$H103,Options!$B$8)))","v":20.032534731399998},{"$f":"IF(AND(OR(Calculations!$E$2=\"Orkney Health Board\",Calculations!$E$2=\"Orkney Islands Local Authority\"),$F103=1),0,IF(AND(OR(Calculations!$E$2=\"Shetland Health Board\",Calculations!$E$2=\"Western Isles Health Board\",Calculations!$E$2=\"Shetland Islands Local Authority\",Calculations!$E$2=\"Eilean Siar Local Authority\"),OR($F103=1,$F103=5)),0,new_yllv2(VALUE(LEFT(Options!$B$24,2)),$C103,$D103,$E103,$F103,2016,$I103,1,$H103,$G103*$H103,Options!$B$8)))","v":1079.684043022},{"$f":"IF(AND(OR(Calculations!$E$2=\"Orkney Health Board\",Calculations!$E$2=\"Orkney Islands Local Authority\"),$F103=1),0,IF(AND(OR(Calculations!$E$2=\"Shetland Health Board\",Calculations!$E$2=\"Western Isles Health Board\",Calculations!$E$2=\"Shetland Islands Local Authority\",Calculations!$E$2=\"Eilean Siar Local Authority\"),OR($F103=1,$F103=5)),0,new_yllv2(VALUE(LEFT(Options!$B$24,2)),$C103,$D103,$E103,$F103,2016,$I103+$J103,1,$H103,$G103*$H103,Options!$B$8)))","v":1075.1461991317999},{"$f":"IF(AND(OR(Calculations!$E$2=\"Orkney Health Board\",Calculations!$E$2=\"Orkney Islands Local Authority\"),$F103=1),0,IF(AND(OR(Calculations!$E$2=\"Shetland Health Board\",Calculations!$E$2=\"Western Isles Health Board\",Calculations!$E$2=\"Shetland Islands Local Authority\",Calculations!$E$2=\"Eilean Siar Local Authority\"),OR($F103=1,$F103=5)),0,hosp_count(VALUE(LEFT(Options!$B$24,2)),$C103,$E103,$F103,2016,$I103,1,$H103,$G103*$H103, Options!$B$8)))","v":5961.6213822700001},{"$f":"IF(AND(OR(Calculations!$E$2=\"Orkney Health Board\",Calculations!$E$2=\"Orkney Islands Local Authority\"),$F103=1),0,IF(AND(OR(Calculations!$E$2=\"Shetland Health Board\",Calculations!$E$2=\"Western Isles Health Board\",Calculations!$E$2=\"Shetland Islands Local Authority\",Calculations!$E$2=\"Eilean Siar Local Authority\"),OR($F103=1,$F103=5)),0,hosp_count(VALUE(LEFT(Options!$B$24,2)),$C103,$E103,$F103,2016,$I103+$J103,1,$H103,$G103*$H103, Options!$B$8)))","v":5946.2206599598003},{"$f":"IF(AND(OR(Calculations!$E$2=\"Orkney Health Board\",Calculations!$E$2=\"Orkney Islands Local Authority\"),$F103=1),0,IF(AND(OR(Calculations!$E$2=\"Shetland Health Board\",Calculations!$E$2=\"Western Isles Health Board\",Calculations!$E$2=\"Shetland Islands Local Authority\",Calculations!$E$2=\"Eilean Siar Local Authority\"),OR($F103=1,$F103=5)),0,prem_mort(VALUE(LEFT(Options!$B$24,2)),$C103,$E103,$F103,2016,$I103,1,$H103,$G103*$H103,Options!$B$8)))","v":20.117085572400001},{"$f":"IF(AND(OR(Calculations!$E$2=\"Orkney Health Board\",Calculations!$E$2=\"Orkney Islands Local Authority\"),$F103=1),0,IF(AND(OR(Calculations!$E$2=\"Shetland Health Board\",Calculations!$E$2=\"Western Isles Health Board\",Calculations!$E$2=\"Shetland Islands Local Authority\",Calculations!$E$2=\"Eilean Siar Local Authority\"),OR($F103=1,$F103=5)),0,prem_mort(VALUE(LEFT(Options!$B$24,2)),$C103,$E103,$F103,2016,$I103+$J103,1,$H103,$G103*$H103,Options!$B$8)))","v":20.032534731399998},49.537270555035704,49.329068533366161,2658.6654593006647,2647.4912561728638,14680.180700000001,14642.257227184931,49.537270555035704,49.329068533366161,297223.62333021424,295974.41120019695,15951992.755803987,15884947.537037183,88081084.200000003,87853543.363109589,297223.62333021424,295974.41120019695,6000]
[null,"Female 30-34",31.999904999999998,81.799899999999994,"female",2,{"$f":"HLOOKUP(Calculations!$E$2,'Prevalence Rates'!$C$3:$BC$249,'Prevalence Rates'!$BD104,FALSE)","v":0.28010000000000002},{"$f":"HLOOKUP(Calculations!$E$2,'Population 2016'!$C$3:$BC$249,'Population 2016'!BD104,FALSE)","v":38102},0,{"$f":"HLOOKUP(Results!E$4,Targeting!$C$3:$F$249,Targeting!$G104,FALSE)","v":5871},{"$f":"IF(AND(OR(Calculations!$E$2=\"Orkney Health Board\",Calculations!$E$2=\"Orkney Islands Local Authority\"),$F104=1),0,IF(AND(OR(Calculations!$E$2=\"Shetland Health Board\",Calculations!$E$2=\"Western Isles Health Board\",Calculations!$E$2=\"Shetland Islands Local Authority\",Calculations!$E$2=\"Eilean Siar Local Authority\"),OR($F104=1,$F104=5)),0,new_ci(VALUE(LEFT(Options!$B$24,2)),$C104,$E104,$F104,2016,$I104,1,$H104,$G104*$H104,Options!$B$8)))","v":28.935016833399999},{"$f":"IF(AND(OR(Calculations!$E$2=\"Orkney Health Board\",Calculations!$E$2=\"Orkney Islands Local Authority\"),$F104=1),0,IF(AND(OR(Calculations!$E$2=\"Shetland Health Board\",Calculations!$E$2=\"Western Isles Health Board\",Calculations!$E$2=\"Shetland Islands Local Authority\",Calculations!$E$2=\"Eilean Siar Local Authority\"),OR($F104=1,$F104=5)),0,new_ci(VALUE(LEFT(Options!$B$24,2)),$C104,$E104,$F104,2016,$I104+$J104,1,$H104,$G104*$H104,Options!$B$8)))","v":28.813424900800001},{"$f":"IF(AND(OR(Calculations!$E$2=\"Orkney Health Board\",Calculations!$E$2=\"Orkney Islands Local Authority\"),$F104=1),0,IF(AND(OR(Calculations!$E$2=\"Shetland Health Board\",Calculations!$E$2=\"Western Isles Health Board\",Calculations!$E$2=\"Shetland Islands Local Authority\",Calculations!$E$2=\"Eilean Siar Local Authority\"),OR($F104=1,$F104=5)),0,new_yllv2(VALUE(LEFT(Options!$B$24,2)),$C104,$D104,$E104,$F104,2016,$I104,1,$H104,$G104*$H104,Options!$B$8)))","v":1412.0286767948},{"$f":"IF(AND(OR(Calculations!$E$2=\"Orkney Health Board\",Calculations!$E$2=\"Orkney Islands Local Authority\"),$F104=1),0,IF(AND(OR(Calculations!$E$2=\"Shetland Health Board\",Calculations!$E$2=\"Western Isles Health Board\",Calculations!$E$2=\"Shetland Islands Local Authority\",Calculations!$E$2=\"Eilean Siar Local Authority\"),OR($F104=1,$F104=5)),0,new_yllv2(VALUE(LEFT(Options!$B$24,2)),$C104,$D104,$E104,$F104,2016,$I104+$J104,1,$H104,$G104*$H104,Options!$B$8)))","v":1406.0949910919001},{"$f":"IF(AND(OR(Calculations!$E$2=\"Orkney Health Board\",Calculations!$E$2=\"Orkney Islands Local Authority\"),$F104=1),0,IF(AND(OR(Calculations!$E$2=\"Shetland Health Board\",Calculations!$E$2=\"Western Isles Health Board\",Calculations!$E$2=\"Shetland Islands Local Authority\",Calculations!$E$2=\"Eilean Siar Local Authority\"),OR($F104=1,$F104=5)),0,hosp_count(VALUE(LEFT(Options!$B$24,2)),$C104,$E104,$F104,2016,$I104,1,$H104,$G104*$H104, Options!$B$8)))","v":6347.0181481669997},{"$f":"IF(AND(OR(Calculations!$E$2=\"Orkney Health Board\",Calculations!$E$2=\"Orkney Islands Local Authority\"),$F104=1),0,IF(AND(OR(Calculations!$E$2=\"Shetland Health Board\",Calculations!$E$2=\"Western Isles Health Board\",Calculations!$E$2=\"Shetland Islands Local Authority\",Calculations!$E$2=\"Eilean Siar Local Authority\"),OR($F104=1,$F104=5)),0,hosp_count(VALUE(LEFT(Options!$B$24,2)),$C104,$E104,$F104,2016,$I104+$J104,1,$H104,$G104*$H104, Options!$B$8)))","v":6330.6206506168},{"$f":"IF(AND(OR(Calculations!$E$2=\"Orkney Health Board\",Calculations!$E$2=\"Orkney Islands Local Authority\"),$F104=1),0,IF(AND(OR(Calculations!$E$2=\"Shetland Health Board\",Calculations!$E$2=\"Western Isles Health Board\",Calculations!$E$2=\"Shetland Islands Local Authority\",Calculations!$E$2=\"Eilean Siar Local Authority\"),OR($F104=1,$F104=5)),0,prem_mort(VALUE(LEFT(Options!$B$24,2)),$C104,$E104,$F104,2016,$I104,1,$H104,$G104*$H104,Options!$B$8)))","v":28.935016833399999},{"$f":"IF(AND(OR(Calculations!$E$2=\"Orkney Health Board\",Calculations!$E$2=\"Orkney Islands Local Authority\"),$F104=1),0,IF(AND(OR(Calculations!$E$2=\"Shetland Health Board\",Calculations!$E$2=\"Western Isles Health Board\",Calculations!$E$2=\"Shetland Islands Local Authority\",Calculations!$E$2=\"Eilean Siar Local Authority\"),OR($F104=1,$F104=5)),0,prem_mort(VALUE(LEFT(Options!$B$24,2)),$C104,$E104,$F104,2016,$I104+$J104,1,$H104,$G104*$H104,Options!$B$8)))","v":28.813424900800001},75.940939670883424,75.621817491995174,3705.9174762343187,3690.3443155002365,16657.965850000001,16614.930057783844,75.940939670883424,75.621817491995174,493616.10786074225,491541.81369796861,24088463.595523071,23987238.050751537,108276778.02500001,107997045.37559499,493616.10786074225,491541.81369796861,6500]
[null,"Female 35-39",36.918118,81.898120000000006,"female",2,{"$f":"HLOOKUP(Calculations!$E$2,'Prevalence Rates'!$C$3:$BC$249,'Prevalence Rates'!$BD105,FALSE)","v":0.30299999999999999},{"$f":"HLOOKUP(Calculations!$E$2,'Population 2016'!$C$3:$BC$249,'Population 2016'!BD105,FALSE)","v":33014},0,{"$f":"HLOOKUP(Results!E$4,Targeting!$C$3:$F$249,Targeting!$G105,FALSE)","v":5087},{"$f":"IF(AND(OR(Calculations!$E$2=\"Orkney Health Board\",Calculations!$E$2=\"Orkney Islands Local Authority\"),$F105=1),0,IF(AND(OR(Calculations!$E$2=\"Shetland Health Board\",Calculations!$E$2=\"Western Isles Health Board\",Calculations!$E$2=\"Shetland Islands Local Authority\",Calculations!$E$2=\"Eilean Siar Local Authority\"),OR($F105=1,$F105=5)),0,new_ci(VALUE(LEFT(Options!$B$24,2)),$C105,$E105,$F105,2016,$I105,1,$H105,$G105*$H105,Options!$B$8)))","v":38.084893556499999},{"$f":"IF(AND(OR(Calculations!$E$2=\"Orkney Health Board\",Calculations!$E$2=\"Orkney Islands Local Authority\"),$F105=1),0,IF(AND(OR(Calculations!$E$2=\"Shetland Health Board\",Calculations!$E$2=\"Western Isles Health Board\",Calculations!$E$2=\"Shetland Islands Local Authority\",Calculations!$E$2=\"Eilean Siar Local Authority\"),OR($F105=1,$F105=5)),0,new_ci(VALUE(LEFT(Options!$B$24,2)),$C105,$E105,$F105,2016,$I105+$J105,1,$H105,$G105*$H105,Options!$B$8)))","v":37.927264722300002},{"$f":"IF(AND(OR(Calculations!$E$2=\"Orkney Health Board\",Calculations!$E$2=\"Orkney Islands Local Authority\"),$F105=1),0,IF(AND(OR(Calculations!$E$2=\"Shetland Health Board\",Calculations!$E$2=\"Western Isles Health Board\",Calculations!$E$2=\"Shetland Islands Local Authority\",Calculations!$E$2=\"Eilean Siar Local Authority\"),OR($F105=1,$F105=5)),0,new_yllv2(VALUE(LEFT(Options!$B$24,2)),$C105,$D105,$E105,$F105,2016,$I105,1,$H105,$G105*$H105,Options!$B$8)))","v":1674.9736947847},{"$f":"IF(AND(OR(Calculations!$E$2=\"Orkney Health Board\",Calculations!$E$2=\"Orkney Islands Local Authority\"),$F105=1),0,IF(AND(OR(Calculations!$E$2=\"Shetland Health Board\",Calculations!$E$2=\"Western Isles Health Board\",Calculations!$E$2=\"Shetland Islands Local Authority\",Calculations!$E$2=\"Eilean Siar Local Authority\"),OR($F105=1,$F105=5)),0,new_yllv2(VALUE(LEFT(Options!$B$24,2)),$C105,$D105,$E105,$F105,2016,$I105+$J105,1,$H105,$G105*$H105,Options!$B$8)))","v":1668.0411783413001},{"$f":"IF(AND(OR(Calculations!$E$2=\"Orkney Health Board\",Calculations!$E$2=\"Orkney Islands Local Authority\"),$F105=1),0,IF(AND(OR(Calculations!$E$2=\"Shetland Health Board\",Calculations!$E$2=\"Western Isles Health Board\",Calculations!$E$2=\"Shetland Islands Local Authority\",Calculations!$E$2=\"Eilean Siar Local Authority\"),OR($F105=1,$F105=5)),0,hosp_count(VALUE(LEFT(Options!$B$24,2)),$C105,$E105,$F105,2016,$I105,1,$H105,$G105*$H105, Options!$B$8)))","v":6223.6793335352004},{"$f":"IF(AND(OR(Calculations!$E$2=\"Orkney Health Board\",Calculations!$E$2=\"Orkney Islands Local Authority\"),$F105=1),0,IF(AND(OR(Calculations!$E$2=\"Shetland Health Board\",Calculations!$E$2=\"Western Isles Health Board\",Calculations!$E$2=\"Shetland Islands Local Authority\",Calculations!$E$2=\"Eilean Siar Local Authority\"),OR($F105=1,$F105=5)),0,hosp_count(VALUE(LEFT(Options!$B$24,2)),$C105,$E105,$F105,2016,$I105+$J105,1,$H105,$G105*$H105, Options!$B$8)))","v":6207.7740930548998},{"$f":"IF(AND(OR(Calculations!$E$2=\"Orkney Health Board\",Calculations!$E$2=\"Orkney Islands Local Authority\"),$F105=1),0,IF(AND(OR(Calculations!$E$2=\"Shetland Health Board\",Calculations!$E$2=\"Western Isles Health Board\",Calculations!$E$2=\"Shetland Islands Local Authority\",Calculations!$E$2=\"Eilean Siar Local Authority\"),OR($F105=1,$F105=5)),0,prem_mort(VALUE(LEFT(Options!$B$24,2)),$C105,$E105,$F105,2016,$I105,1,$H105,$G105*$H105,Options!$B$8)))","v":38.084893556499999},{"$f":"IF(AND(OR(Calculations!$E$2=\"Orkney Health Board\",Calculations!$E$2=\"Orkney Islands Local Authority\"),$F105=1),0,IF(AND(OR(Calculations!$E$2=\"Shetland Health Board\",Calculations!$E$2=\"Western Isles Health Board\",Calculations!$E$2=\"Shetland Islands Local Authority\",Calculations!$E$2=\"Eilean Siar Local Authority\"),OR($F105=1,$F105=5)),0,prem_mort(VALUE(LEFT(Options!$B$24,2)),$C105,$E105,$F105,2016,$I105+$J105,1,$H105,$G105*$H105,Options!$B$8)))","v":37.927264722300002},115.35982782001574,114.88236724510814,5073.5254582440784,5052.5267412046414,18851.63668,18803.459420412251,115.35982782001574,114.88236724510814,807518.79474011017,804176.57071575697,35514678.207708552,35367687.188432492,131961456.75999999,131624215.94288576,807518.79474011017,804176.57071575697,7000]
[null,"Female 40-44",42.077438000000001,82.30744,"female",2,{"$f":"HLOOKUP(Calculations!$E$2,'Prevalence Rates'!$C$3:$BC$249,'Prevalence Rates'!$BD106,FALSE)","v":0.30299999999999999},{"$f":"HLOOKUP(Calculations!$E$2,'Population 2016'!$C$3:$BC$249,'Population 2016'!BD106,FALSE)","v":33442},0,{"$f":"HLOOKUP(Results!E$4,Targeting!$C$3:$F$249,Targeting!$G106,FALSE)","v":5153},{"$f":"IF(AND(OR(Calculations!$E$2=\"Orkney Health Board\",Calculations!$E$2=\"Orkney Islands Local Authority\"),$F106=1),0,IF(AND(OR(Calculations!$E$2=\"Shetland Health Board\",Calculations!$E$2=\"Western Isles Health Board\",Calculations!$E$2=\"Shetland Islands Local Authority\",Calculations!$E$2=\"Eilean Siar Local Authority\"),OR($F106=1,$F106=5)),0,new_ci(VALUE(LEFT(Options!$B$24,2)),$C106,$E106,$F106,2016,$I106,1,$H106,$G106*$H106,Options!$B$8)))","v":59.810155895299999},{"$f":"IF(AND(OR(Calculations!$E$2=\"Orkney Health Board\",Calculations!$E$2=\"Orkney Islands Local Authority\"),$F106=1),0,IF(AND(OR(Calculations!$E$2=\"Shetland Health Board\",Calculations!$E$2=\"Western Isles Health Board\",Calculations!$E$2=\"Shetland Islands Local Authority\",Calculations!$E$2=\"Eilean Siar Local Authority\"),OR($F106=1,$F106=5)),0,new_ci(VALUE(LEFT(Options!$B$24,2)),$C106,$E106,$F106,2016,$I106+$J106,1,$H106,$G106*$H106,Options!$B$8)))","v":59.562746452200003},{"$f":"IF(AND(OR(Calculations!$E$2=\"Orkney Health Board\",Calculations!$E$2=\"Orkney Islands Local Authority\"),$F106=1),0,IF(AND(OR(Calculations!$E$2=\"Shetland Health Board\",Calculations!$E$2=\"Western Isles Health Board\",Calculations!$E$2=\"Shetland Islands Local Authority\",Calculations!$E$2=\"Eilean Siar Local Authority\"),OR($F106=1,$F106=5)),0,new_yllv2(VALUE(LEFT(Options!$B$24,2)),$C106,$D106,$E106,$F106,2016,$I106,1,$H106,$G106*$H106,Options!$B$8)))","v":2346.3525353928999},{"$f":"IF(AND(OR(Calculations!$E$2=\"Orkney Health Board\",Calculations!$E$2=\"Orkney Islands Local Authority\"),$F106=1),0,IF(AND(OR(Calculations!$E$2=\"Shetland Health Board\",Calculations!$E$2=\"Western Isles Health Board\",Calculations!$E$2=\"Shetland Islands Local Authority\",Calculations!$E$2=\"Eilean Siar Local Authority\"),OR($F106=1,$F106=5)),0,new_yllv2(VALUE(LEFT(Options!$B$24,2)),$C106,$D106,$E106,$F106,2016,$I106+$J106,1,$H106,$G106*$H106,Options!$B$8)))","v":2336.6466624453001},{"$f":"IF(AND(OR(Calculations!$E$2=\"Orkney Health Board\",Calculations!$E$2=\"Orkney Islands Local Authority\"),$F106=1),0,IF(AND(OR(Calculations!$E$2=\"Shetland Health Board\",Calculations!$E$2=\"Western Isles Health Board\",Calculations!$E$2=\"Shetland Islands Local Authority\",Calculations!$E$2=\"Eilean Siar Local Authority\"),OR($F106=1,$F106=5)),0,hosp_count(VALUE(LEFT(Options!$B$24,2)),$C106,$E106,$F106,2016,$I106,1,$H106,$G106*$H106, Options!$B$8)))","v":7177.9805397336004},{"$f":"IF(AND(OR(Calculations!$E$2=\"Orkney Health Board\",Calculations!$E$2=\"Orkney Islands Local Authority\"),$F106=1),0,IF(AND(OR(Calculations!$E$2=\"Shetland Health Board\",Calculations!$E$2=\"Western Isles Health Board\",Calculations!$E$2=\"Shetland Islands Local Authority\",Calculations!$E$2=\"Eilean Siar Local Authority\"),OR($F106=1,$F106=5)),0,hosp_count(VALUE(LEFT(Options!$B$24,2)),$C106,$E106,$F106,2016,$I106+$J106,1,$H106,$G106*$H106, Options!$B$8)))","v":7159.636304142},{"$f":"IF(AND(OR(Calculations!$E$2=\"Orkney Health Board\",Calculations!$E$2=\"Orkney Islands Local Authority\"),$F106=1),0,IF(AND(OR(Calculations!$E$2=\"Shetland Health Board\",Calculations!$E$2=\"Western Isles Health Board\",Calculations!$E$2=\"Shetland Islands Local Authority\",Calculations!$E$2=\"Eilean Siar Local Authority\"),OR($F106=1,$F106=5)),0,prem_mort(VALUE(LEFT(Options!$B$24,2)),$C106,$E106,$F106,2016,$I106,1,$H106,$G106*$H106,Options!$B$8)))","v":59.810155895299999},{"$f":"IF(AND(OR(Calculations!$E$2=\"Orkney Health Board\",Calculations!$E$2=\"Orkney Islands Local Authority\"),$F106=1),0,IF(AND(OR(Calculations!$E$2=\"Shetland Health Board\",Calculations!$E$2=\"Western Isles Health Board\",Calculations!$E$2=\"Shetland Islands Local Authority\",Calculations!$E$2=\"Eilean Siar Local Authority\"),OR($F106=1,$F106=5)),0,prem_mort(VALUE(LEFT(Options!$B$24,2)),$C106,$E106,$F106,2016,$I106+$J106,1,$H106,$G106*$H106,Options!$B$8)))","v":59.562746452200003},178.84742508013872,178.10760855271815,7016.1848435886004,6987.1618397383536,21463.969080000003,21409.115196884155,178.84742508013872,178.10760855271815,1251931.9755609711,1246753.259869027,49113293.905120201,48910132.878168479,150247783.56000003,149863806.37818909,1251931.9755609711,1246753.259869027,7000]
[null,"Female 45-49",47.025772000000003,82.585769999999997,"female",2,{"$f":"HLOOKUP(Calculations!$E$2,'Prevalence Rates'!$C$3:$BC$249,'Prevalence Rates'!$BD107,FALSE)","v":0.31280000000000002},{"$f":"HLOOKUP(Calculations!$E$2,'Population 2016'!$C$3:$BC$249,'Population 2016'!BD107,FALSE)","v":39170},0,{"$f":"HLOOKUP(Results!E$4,Targeting!$C$3:$F$249,Targeting!$G107,FALSE)","v":6035},{"$f":"IF(AND(OR(Calculations!$E$2=\"Orkney Health Board\",Calculations!$E$2=\"Orkney Islands Local Authority\"),$F107=1),0,IF(AND(OR(Calculations!$E$2=\"Shetland Health Board\",Calculations!$E$2=\"Western Isles Health Board\",Calculations!$E$2=\"Shetland Islands Local Authority\",Calculations!$E$2=\"Eilean Siar Local Authority\"),OR($F107=1,$F107=5)),0,new_ci(VALUE(LEFT(Options!$B$24,2)),$C107,$E107,$F107,2016,$I107,1,$H107,$G107*$H107,Options!$B$8)))","v":106.65949747409999},{"$f":"IF(AND(OR(Calculations!$E$2=\"Orkney Health Board\",Calculations!$E$2=\"Orkney Islands Local Authority\"),$F107=1),0,IF(AND(OR(Calculations!$E$2=\"Shetland Health Board\",Calculations!$E$2=\"Western Isles Health Board\",Calculations!$E$2=\"Shetland Islands Local Authority\",Calculations!$E$2=\"Eilean Siar Local Authority\"),OR($F107=1,$F107=5)),0,new_ci(VALUE(LEFT(Options!$B$24,2)),$C107,$E107,$F107,2016,$I107+$J107,1,$H107,$G107*$H107,Options!$B$8)))","v":106.2214578621},{"$f":"IF(AND(OR(Calculations!$E$2=\"Orkney Health Board\",Calculations!$E$2=\"Orkney Islands Local Authority\"),$F107=1),0,IF(AND(OR(Calculations!$E$2=\"Shetland Health Board\",Calculations!$E$2=\"Western Isles Health Board\",Calculations!$E$2=\"Shetland Islands Local Authority\",Calculations!$E$2=\"Eilean Siar Local Authority\"),OR($F107=1,$F107=5)),0,new_yllv2(VALUE(LEFT(Options!$B$24,2)),$C107,$D107,$E107,$F107,2016,$I107,1,$H107,$G107*$H107,Options!$B$8)))","v":3686.1520193859001},{"$f":"IF(AND(OR(Calculations!$E$2=\"Orkney Health Board\",Calculations!$E$2=\"Orkney Islands Local Authority\"),$F107=1),0,IF(AND(OR(Calculations!$E$2=\"Shetland Health Board\",Calculations!$E$2=\"Western Isles Health Board\",Calculations!$E$2=\"Shetland Islands Local Authority\",Calculations!$E$2=\"Eilean Siar Local Authority\"),OR($F107=1,$F107=5)),0,new_yllv2(VALUE(LEFT(Options!$B$24,2)),$C107,$D107,$E107,$F107,2016,$I107+$J107,1,$H107,$G107*$H107,Options!$B$8)))","v":3671.0133712713},{"$f":"IF(AND(OR(Calculations!$E$2=\"Orkney Health Board\",Calculations!$E$2=\"Orkney Islands Local Authority\"),$F107=1),0,IF(AND(OR(Calculations!$E$2=\"Shetland Health Board\",Calculations!$E$2=\"Western Isles Health Board\",Calculations!$E$2=\"Shetland Islands Local Authority\",Calculations!$E$2=\"Eilean Siar Local Authority\"),OR($F107=1,$F107=5)),0,hosp_count(VALUE(LEFT(Options!$B$24,2)),$C107,$E107,$F107,2016,$I107,1,$H107,$G107*$H107, Options!$B$8)))","v":9521.8151117819998},{"$f":"IF(AND(OR(Calculations!$E$2=\"Orkney Health Board\",Calculations!$E$2=\"Orkney Islands Local Authority\"),$F107=1),0,IF(AND(OR(Calculations!$E$2=\"Shetland Health Board\",Calculations!$E$2=\"Western Isles Health Board\",Calculations!$E$2=\"Shetland Islands Local Authority\",Calculations!$E$2=\"Eilean Siar Local Authority\"),OR($F107=1,$F107=5)),0,hosp_count(VALUE(LEFT(Options!$B$24,2)),$C107,$E107,$F107,2016,$I107+$J107,1,$H107,$G107*$H107, Options!$B$8)))","v":9497.5952845614993},{"$f":"IF(AND(OR(Calculations!$E$2=\"Orkney Health Board\",Calculations!$E$2=\"Orkney Islands Local Authority\"),$F107=1),0,IF(AND(OR(Calculations!$E$2=\"Shetland Health Board\",Calculations!$E$2=\"Western Isles Health Board\",Calculations!$E$2=\"Shetland Islands Local Authority\",Calculations!$E$2=\"Eilean Siar Local Authority\"),OR($F107=1,$F107=5)),0,prem_mort(VALUE(LEFT(Options!$B$24,2)),$C107,$E107,$F107,2016,$I107,1,$H107,$G107*$H107,Options!$B$8)))","v":106.65949747409999},{"$f":"IF(AND(OR(Calculations!$E$2=\"Orkney Health Board\",Calculations!$E$2=\"Orkney Islands Local Authority\"),$F107=1),0,IF(AND(OR(Calculations!$E$2=\"Shetland Health Board\",Calculations!$E$2=\"Western Isles Health Board\",Calculations!$E$2=\"Shetland Islands Local Authority\",Calculations!$E$2=\"Eilean Siar Local Authority\"),OR($F107=1,$F107=5)),0,prem_mort(VALUE(LEFT(Options!$B$24,2)),$C107,$E107,$F107,2016,$I107+$J107,1,$H107,$G107*$H107,Options!$B$8)))","v":106.2214578621},272.29894683201428,271.18064299744702,9410.6510579165169,9372.0024796305843,24308.94846,24247.115865615266,272.29894683201428,271.18064299744702,1906092.6278241,1898264.5009821292,65874557.405415617,65604017.357414089,170162639.22,169729811.05930686,1906092.6278241,1898264.5009821292,7000]
[null,"Female 50-54",51.990825999999998,82.980829999999997,"female",2,{"$f":"HLOOKUP(Calculations!$E$2,'Prevalence Rates'!$C$3:$BC$249,'Prevalence Rates'!$BD108,FALSE)","v":0.31280000000000002},{"$f":"HLOOKUP(Calculations!$E$2,'Population 2016'!$C$3:$BC$249,'Population 2016'!BD108,FALSE)","v":40518},0,{"$f":"HLOOKUP(Results!E$4,Targeting!$C$3:$F$249,Targeting!$G108,FALSE)","v":6243},{"$f":"IF(AND(OR(Calculations!$E$2=\"Orkney Health Board\",Calculations!$E$2=\"Orkney Islands Local Authority\"),$F108=1),0,IF(AND(OR(Calculations!$E$2=\"Shetland Health Board\",Calculations!$E$2=\"Western Isles Health Board\",Calculations!$E$2=\"Shetland Islands Local Authority\",Calculations!$E$2=\"Eilean Siar Local Authority\"),OR($F108=1,$F108=5)),0,new_ci(VALUE(LEFT(Options!$B$24,2)),$C108,$E108,$F108,2016,$I108,1,$H108,$G108*$H108,Options!$B$8)))","v":168.17365869860001},{"$f":"IF(AND(OR(Calculations!$E$2=\"Orkney Health Board\",Calculations!$E$2=\"Orkney Islands Local Authority\"),$F108=1),0,IF(AND(OR(Calculations!$E$2=\"Shetland Health Board\",Calculations!$E$2=\"Western Isles Health Board\",Calculations!$E$2=\"Shetland Islands Local Authority\",Calculations!$E$2=\"Eilean Siar Local Authority\"),OR($F108=1,$F108=5)),0,new_ci(VALUE(LEFT(Options!$B$24,2)),$C108,$E108,$F108,2016,$I108+$J108,1,$H108,$G108*$H108,Options!$B$8)))","v":167.48382592760001},{"$f":"IF(AND(OR(Calculations!$E$2=\"Orkney Health Board\",Calculations!$E$2=\"Orkney Islands Local Authority\"),$F108=1),0,IF(AND(OR(Calculations!$E$2=\"Shetland Health Board\",Calculations!$E$2=\"Western Isles Health Board\",Calculations!$E$2=\"Shetland Islands Local Authority\",Calculations!$E$2=\"Eilean Siar Local Authority\"),OR($F108=1,$F108=5)),0,new_yllv2(VALUE(LEFT(Options!$B$24,2)),$C108,$D108,$E108,$F108,2016,$I108,1,$H108,$G108*$H108,Options!$B$8)))","v":5043.5286970655998},{"$f":"IF(AND(OR(Calculations!$E$2=\"Orkney Health Board\",Calculations!$E$2=\"Orkney Islands Local Authority\"),$F108=1),0,IF(AND(OR(Calculations!$E$2=\"Shetland Health Board\",Calculations!$E$2=\"Western Isles Health Board\",Calculations!$E$2=\"Shetland Islands Local Authority\",Calculations!$E$2=\"Eilean Siar Local Authority\"),OR($F108=1,$F108=5)),0,new_yllv2(VALUE(LEFT(Options!$B$24,2)),$C108,$D108,$E108,$F108,2016,$I108+$J108,1,$H108,$G108*$H108,Options!$B$8)))","v":5022.840609504},{"$f":"IF(AND(OR(Calculations!$E$2=\"Orkney Health Board\",Calculations!$E$2=\"Orkney Islands Local Authority\"),$F108=1),0,IF(AND(OR(Calculations!$E$2=\"Shetland Health Board\",Calculations!$E$2=\"Western Isles Health Board\",Calculations!$E$2=\"Shetland Islands Local Authority\",Calculations!$E$2=\"Eilean Siar Local Authority\"),OR($F108=1,$F108=5)),0,hosp_count(VALUE(LEFT(Options!$B$24,2)),$C108,$E108,$F108,2016,$I108,1,$H108,$G108*$H108, Options!$B$8)))","v":11159.7113811168},{"$f":"IF(AND(OR(Calculations!$E$2=\"Orkney Health Board\",Calculations!$E$2=\"Orkney Islands Local Authority\"),$F108=1),0,IF(AND(OR(Calculations!$E$2=\"Shetland Health Board\",Calculations!$E$2=\"Western Isles Health Board\",Calculations!$E$2=\"Shetland Islands Local Authority\",Calculations!$E$2=\"Eilean Siar Local Authority\"),OR($F108=1,$F108=5)),0,hosp_count(VALUE(LEFT(Options!$B$24,2)),$C108,$E108,$F108,2016,$I108+$J108,1,$H108,$G108*$H108, Options!$B$8)))","v":11131.3239626913},{"$f":"IF(AND(OR(Calculations!$E$2=\"Orkney Health Board\",Calculations!$E$2=\"Orkney Islands Local Authority\"),$F108=1),0,IF(AND(OR(Calculations!$E$2=\"Shetland Health Board\",Calculations!$E$2=\"Western Isles Health Board\",Calculations!$E$2=\"Shetland Islands Local Authority\",Calculations!$E$2=\"Eilean Siar Local Authority\"),OR($F108=1,$F108=5)),0,prem_mort(VALUE(LEFT(Options!$B$24,2)),$C108,$E108,$F108,2016,$I108,1,$H108,$G108*$H108,Options!$B$8)))","v":168.17365869860001},{"$f":"IF(AND(OR(Calculations!$E$2=\"Orkney Health Board\",Calculations!$E$2=\"Orkney Islands Local Authority\"),$F108=1),0,IF(AND(OR(Calculations!$E$2=\"Shetland Health Board\",Calculations!$E$2=\"Western Isles Health Board\",Calculations!$E$2=\"Shetland Islands Local Authority\",Calculations!$E$2=\"Eilean Siar Local Authority\"),OR($F108=1,$F108=5)),0,prem_mort(VALUE(LEFT(Options!$B$24,2)),$C108,$E108,$F108,2016,$I108+$J108,1,$H108,$G108*$H108,Options!$B$8)))","v":167.48382592760001},415.05913100004938,413.35659688928376,12447.624998927882,12396.565994135939,27542.601760000001,27472.54050716052,415.05913100004938,413.35659688928376,2905413.9170003454,2893496.1782249864,87133374.992495179,86775961.958951578,192798212.32000002,192307783.55012363,2905413.9170003454,2893496.1782249864,7000]
[null,"Female 55-59",56.953040999999999,83.473039999999997,"female",2,{"$f":"HLOOKUP(Calculations!$E$2,'Prevalence Rates'!$C$3:$BC$249,'Prevalence Rates'!$BD109,FALSE)","v":0.29300000000000004},{"$f":"HLOOKUP(Calculations!$E$2,'Population 2016'!$C$3:$BC$249,'Population 2016'!BD109,FALSE)","v":37275},0,{"$f":"HLOOKUP(Results!E$4,Targeting!$C$3:$F$249,Targeting!$G109,FALSE)","v":5743},{"$f":"IF(AND(OR(Calculations!$E$2=\"Orkney Health Board\",Calculations!$E$2=\"Orkney Islands Local Authority\"),$F109=1),0,IF(AND(OR(Calculations!$E$2=\"Shetland Health Board\",Calculations!$E$2=\"Western Isles Health Board\",Calculations!$E$2=\"Shetland Islands Local Authority\",Calculations!$E$2=\"Eilean Siar Local Authority\"),OR($F109=1,$F109=5)),0,new_ci(VALUE(LEFT(Options!$B$24,2)),$C109,$E109,$F109,2016,$I109,1,$H109,$G109*$H109,Options!$B$8)))","v":235.6736339142},{"$f":"IF(AND(OR(Calculations!$E$2=\"Orkney Health Board\",Calculations!$E$2=\"Orkney Islands Local Authority\"),$F109=1),0,IF(AND(OR(Calculations!$E$2=\"Shetland Health Board\",Calculations!$E$2=\"Western Isles Health Board\",Calculations!$E$2=\"Shetland Islands Local Authority\",Calculations!$E$2=\"Eilean Siar Local Authority\"),OR($F109=1,$F109=5)),0,new_ci(VALUE(LEFT(Options!$B$24,2)),$C109,$E109,$F109,2016,$I109+$J109,1,$H109,$G109*$H109,Options!$B$8)))","v":234.6965756013},{"$f":"IF(AND(OR(Calculations!$E$2=\"Orkney Health Board\",Calculations!$E$2=\"Orkney Islands Local Authority\"),$F109=1),0,IF(AND(OR(Calculations!$E$2=\"Shetland Health Board\",Calculations!$E$2=\"Western Isles Health Board\",Calculations!$E$2=\"Shetland Islands Local Authority\",Calculations!$E$2=\"Eilean Siar Local Authority\"),OR($F109=1,$F109=5)),0,new_yllv2(VALUE(LEFT(Options!$B$24,2)),$C109,$D109,$E109,$F109,2016,$I109,1,$H109,$G109*$H109,Options!$B$8)))","v":6014.3909018167997},{"$f":"IF(AND(OR(Calculations!$E$2=\"Orkney Health Board\",Calculations!$E$2=\"Orkney Islands Local Authority\"),$F109=1),0,IF(AND(OR(Calculations!$E$2=\"Shetland Health Board\",Calculations!$E$2=\"Western Isles Health Board\",Calculations!$E$2=\"Shetland Islands Local Authority\",Calculations!$E$2=\"Eilean Siar Local Authority\"),OR($F109=1,$F109=5)),0,new_yllv2(VALUE(LEFT(Options!$B$24,2)),$C109,$D109,$E109,$F109,2016,$I109+$J109,1,$H109,$G109*$H109,Options!$B$8)))","v":5989.4563746486001},{"$f":"IF(AND(OR(Calculations!$E$2=\"Orkney Health Board\",Calculations!$E$2=\"Orkney Islands Local Authority\"),$F109=1),0,IF(AND(OR(Calculations!$E$2=\"Shetland Health Board\",Calculations!$E$2=\"Western Isles Health Board\",Calculations!$E$2=\"Shetland Islands Local Authority\",Calculations!$E$2=\"Eilean Siar Local Authority\"),OR($F109=1,$F109=5)),0,hosp_count(VALUE(LEFT(Options!$B$24,2)),$C109,$E109,$F109,2016,$I109,1,$H109,$G109*$H109, Options!$B$8)))","v":11631.357148215},{"$f":"IF(AND(OR(Calculations!$E$2=\"Orkney Health Board\",Calculations!$E$2=\"Orkney Islands Local Authority\"),$F109=1),0,IF(AND(OR(Calculations!$E$2=\"Shetland Health Board\",Calculations!$E$2=\"Western Isles Health Board\",Calculations!$E$2=\"Shetland Islands Local Authority\",Calculations!$E$2=\"Eilean Siar Local Authority\"),OR($F109=1,$F109=5)),0,hosp_count(VALUE(LEFT(Options!$B$24,2)),$C109,$E109,$F109,2016,$I109+$J109,1,$H109,$G109*$H109, Options!$B$8)))","v":11601.4941597333},{"$f":"IF(AND(OR(Calculations!$E$2=\"Orkney Health Board\",Calculations!$E$2=\"Orkney Islands Local Authority\"),$F109=1),0,IF(AND(OR(Calculations!$E$2=\"Shetland Health Board\",Calculations!$E$2=\"Western Isles Health Board\",Calculations!$E$2=\"Shetland Islands Local Authority\",Calculations!$E$2=\"Eilean Siar Local Authority\"),OR($F109=1,$F109=5)),0,prem_mort(VALUE(LEFT(Options!$B$24,2)),$C109,$E109,$F109,2016,$I109,1,$H109,$G109*$H109,Options!$B$8)))","v":235.6736339142},{"$f":"IF(AND(OR(Calculations!$E$2=\"Orkney Health Board\",Calculations!$E$2=\"Orkney Islands Local Authority\"),$F109=1),0,IF(AND(OR(Calculations!$E$2=\"Shetland Health Board\",Calculations!$E$2=\"Western Isles Health Board\",Calculations!$E$2=\"Shetland Islands Local Authority\",Calculations!$E$2=\"Eilean Siar Local Authority\"),OR($F109=1,$F109=5)),0,prem_mort(VALUE(LEFT(Options!$B$24,2)),$C109,$E109,$F109,2016,$I109+$J109,1,$H109,$G109*$H109,Options!$B$8)))","v":234.6965756013},632.25656315010053,629.63534701891354,16135.186859334137,16068.293426287322,31204.177460000003,31124.06213208129,632.25656315010053,629.63534701891354,4109667.6604756536,4092629.7556229378,104878714.58567189,104443907.2708676,202827153.49000001,202306403.85852838,4109667.6604756536,4092629.7556229378,6500]
[null,"Female 60-64",61.947387999999997,84.167389999999997,"female",2,{"$f":"HLOOKUP(Calculations!$E$2,'Prevalence Rates'!$C$3:$BC$249,'Prevalence Rates'!$BD110,FALSE)","v":0.29300000000000004},{"$f":"HLOOKUP(Calculations!$E$2,'Population 2016'!$C$3:$BC$249,'Population 2016'!BD110,FALSE)","v":32644},0,{"$f":"HLOOKUP(Results!E$4,Targeting!$C$3:$F$249,Targeting!$G110,FALSE)","v":5030},{"$f":"IF(AND(OR(Calculations!$E$2=\"Orkney Health Board\",Calculations!$E$2=\"Orkney Islands Local Authority\"),$F110=1),0,IF(AND(OR(Calculations!$E$2=\"Shetland Health Board\",Calculations!$E$2=\"Western Isles Health Board\",Calculations!$E$2=\"Shetland Islands Local Authority\",Calculations!$E$2=\"Eilean Siar Local Authority\"),OR($F110=1,$F110=5)),0,new_ci(VALUE(LEFT(Options!$B$24,2)),$C110,$E110,$F110,2016,$I110,1,$H110,$G110*$H110,Options!$B$8)))","v":315.05761837419999},{"$f":"IF(AND(OR(Calculations!$E$2=\"Orkney Health Board\",Calculations!$E$2=\"Orkney Islands Local Authority\"),$F110=1),0,IF(AND(OR(Calculations!$E$2=\"Shetland Health Board\",Calculations!$E$2=\"Western Isles Health Board\",Calculations!$E$2=\"Shetland Islands Local Authority\",Calculations!$E$2=\"Eilean Siar Local Authority\"),OR($F110=1,$F110=5)),0,new_ci(VALUE(LEFT(Options!$B$24,2)),$C110,$E110,$F110,2016,$I110+$J110,1,$H110,$G110*$H110,Options!$B$8)))","v":313.75527039119999},{"$f":"IF(AND(OR(Calculations!$E$2=\"Orkney Health Board\",Calculations!$E$2=\"Orkney Islands Local Authority\"),$F110=1),0,IF(AND(OR(Calculations!$E$2=\"Shetland Health Board\",Calculations!$E$2=\"Western Isles Health Board\",Calculations!$E$2=\"Shetland Islands Local Authority\",Calculations!$E$2=\"Eilean Siar Local Authority\"),OR($F110=1,$F110=5)),0,new_yllv2(VALUE(LEFT(Options!$B$24,2)),$C110,$D110,$E110,$F110,2016,$I110,1,$H110,$G110*$H110,Options!$B$8)))","v":6685.5232920157996},{"$f":"IF(AND(OR(Calculations!$E$2=\"Orkney Health Board\",Calculations!$E$2=\"Orkney Islands Local Authority\"),$F110=1),0,IF(AND(OR(Calculations!$E$2=\"Shetland Health Board\",Calculations!$E$2=\"Western Isles Health Board\",Calculations!$E$2=\"Shetland Islands Local Authority\",Calculations!$E$2=\"Eilean Siar Local Authority\"),OR($F110=1,$F110=5)),0,new_yllv2(VALUE(LEFT(Options!$B$24,2)),$C110,$D110,$E110,$F110,2016,$I110+$J110,1,$H110,$G110*$H110,Options!$B$8)))","v":6657.8874652118002},{"$f":"IF(AND(OR(Calculations!$E$2=\"Orkney Health Board\",Calculations!$E$2=\"Orkney Islands Local Authority\"),$F110=1),0,IF(AND(OR(Calculations!$E$2=\"Shetland Health Board\",Calculations!$E$2=\"Western Isles Health Board\",Calculations!$E$2=\"Shetland Islands Local Authority\",Calculations!$E$2=\"Eilean Siar Local Authority\"),OR($F110=1,$F110=5)),0,hosp_count(VALUE(LEFT(Options!$B$24,2)),$C110,$E110,$F110,2016,$I110,1,$H110,$G110*$H110, Options!$B$8)))","v":11549.811549477199},{"$f":"IF(AND(OR(Calculations!$E$2=\"Orkney Health Board\",Calculations!$E$2=\"Orkney Islands Local Authority\"),$F110=1),0,IF(AND(OR(Calculations!$E$2=\"Shetland Health Board\",Calculations!$E$2=\"Western Isles Health Board\",Calculations!$E$2=\"Shetland Islands Local Authority\",Calculations!$E$2=\"Eilean Siar Local Authority\"),OR($F110=1,$F110=5)),0,hosp_count(VALUE(LEFT(Options!$B$24,2)),$C110,$E110,$F110,2016,$I110+$J110,1,$H110,$G110*$H110, Options!$B$8)))","v":11520.1549586973},{"$f":"IF(AND(OR(Calculations!$E$2=\"Orkney Health Board\",Calculations!$E$2=\"Orkney Islands Local Authority\"),$F110=1),0,IF(AND(OR(Calculations!$E$2=\"Shetland Health Board\",Calculations!$E$2=\"Western Isles Health Board\",Calculations!$E$2=\"Shetland Islands Local Authority\",Calculations!$E$2=\"Eilean Siar Local Authority\"),OR($F110=1,$F110=5)),0,prem_mort(VALUE(LEFT(Options!$B$24,2)),$C110,$E110,$F110,2016,$I110,1,$H110,$G110*$H110,Options!$B$8)))","v":315.05761837419999},{"$f":"IF(AND(OR(Calculations!$E$2=\"Orkney Health Board\",Calculations!$E$2=\"Orkney Islands Local Authority\"),$F110=1),0,IF(AND(OR(Calculations!$E$2=\"Shetland Health Board\",Calculations!$E$2=\"Western Isles Health Board\",Calculations!$E$2=\"Shetland Islands Local Authority\",Calculations!$E$2=\"Eilean Siar Local Authority\"),OR($F110=1,$F110=5)),0,prem_mort(VALUE(LEFT(Options!$B$24,2)),$C110,$E110,$F110,2016,$I110+$J110,1,$H110,$G110*$H110,Options!$B$8)))","v":313.75527039119999},965.13178034003181,961.14223254258059,20480.098309079156,20395.440096838011,35381.116129999995,35290.267610272334,965.13178034003181,961.14223254258059,5790790.6820401913,5766853.3952554837,122880589.85447493,122372640.58102806,212286696.77999997,211741605.661634,5790790.6820401913,5766853.3952554837,6000]
[null,"Female 65-69",67.063927000000007,85.193929999999995,"female",2,{"$f":"HLOOKUP(Calculations!$E$2,'Prevalence Rates'!$C$3:$BC$249,'Prevalence Rates'!$BD111,FALSE)","v":0.21100000000000002},{"$f":"HLOOKUP(Calculations!$E$2,'Population 2016'!$C$3:$BC$249,'Population 2016'!BD111,FALSE)","v":32580},0,{"$f":"HLOOKUP(Results!E$4,Targeting!$C$3:$F$249,Targeting!$G111,FALSE)","v":5020},{"$f":"IF(AND(OR(Calculations!$E$2=\"Orkney Health Board\",Calculations!$E$2=\"Orkney Islands Local Authority\"),$F111=1),0,IF(AND(OR(Calculations!$E$2=\"Shetland Health Board\",Calculations!$E$2=\"Western Isles Health Board\",Calculations!$E$2=\"Shetland Islands Local Authority\",Calculations!$E$2=\"Eilean Siar Local Authority\"),OR($F111=1,$F111=5)),0,new_ci(VALUE(LEFT(Options!$B$24,2)),$C111,$E111,$F111,2016,$I111,1,$H111,$G111*$H111,Options!$B$8)))","v":484.52920217500002},{"$f":"IF(AND(OR(Calculations!$E$2=\"Orkney Health Board\",Calculations!$E$2=\"Orkney Islands Local Authority\"),$F111=1),0,IF(AND(OR(Calculations!$E$2=\"Shetland Health Board\",Calculations!$E$2=\"Western Isles Health Board\",Calculations!$E$2=\"Shetland Islands Local Authority\",Calculations!$E$2=\"Eilean Siar Local Authority\"),OR($F111=1,$F111=5)),0,new_ci(VALUE(LEFT(Options!$B$24,2)),$C111,$E111,$F111,2016,$I111+$J111,1,$H111,$G111*$H111,Options!$B$8)))","v":482.42673280299999},{"$f":"IF(AND(OR(Calculations!$E$2=\"Orkney Health Board\",Calculations!$E$2=\"Orkney Islands Local Authority\"),$F111=1),0,IF(AND(OR(Calculations!$E$2=\"Shetland Health Board\",Calculations!$E$2=\"Western Isles Health Board\",Calculations!$E$2=\"Shetland Islands Local Authority\",Calculations!$E$2=\"Eilean Siar Local Authority\"),OR($F111=1,$F111=5)),0,new_yllv2(VALUE(LEFT(Options!$B$24,2)),$C111,$D111,$E111,$F111,2016,$I111,1,$H111,$G111*$H111,Options!$B$8)))","v":8299.9866868453992},{"$f":"IF(AND(OR(Calculations!$E$2=\"Orkney Health Board\",Calculations!$E$2=\"Orkney Islands Local Authority\"),$F111=1),0,IF(AND(OR(Calculations!$E$2=\"Shetland Health Board\",Calculations!$E$2=\"Western Isles Health Board\",Calculations!$E$2=\"Shetland Islands Local Authority\",Calculations!$E$2=\"Eilean Siar Local Authority\"),OR($F111=1,$F111=5)),0,new_yllv2(VALUE(LEFT(Options!$B$24,2)),$C111,$D111,$E111,$F111,2016,$I111+$J111,1,$H111,$G111*$H111,Options!$B$8)))","v":8263.9713801956004},{"$f":"IF(AND(OR(Calculations!$E$2=\"Orkney Health Board\",Calculations!$E$2=\"Orkney Islands Local Authority\"),$F111=1),0,IF(AND(OR(Calculations!$E$2=\"Shetland Health Board\",Calculations!$E$2=\"Western Isles Health Board\",Calculations!$E$2=\"Shetland Islands Local Authority\",Calculations!$E$2=\"Eilean Siar Local Authority\"),OR($F111=1,$F111=5)),0,hosp_count(VALUE(LEFT(Options!$B$24,2)),$C111,$E111,$F111,2016,$I111,1,$H111,$G111*$H111, Options!$B$8)))","v":13110.408911123999},{"$f":"IF(AND(OR(Calculations!$E$2=\"Orkney Health Board\",Calculations!$E$2=\"Orkney Islands Local Authority\"),$F111=1),0,IF(AND(OR(Calculations!$E$2=\"Shetland Health Board\",Calculations!$E$2=\"Western Isles Health Board\",Calculations!$E$2=\"Shetland Islands Local Authority\",Calculations!$E$2=\"Eilean Siar Local Authority\"),OR($F111=1,$F111=5)),0,hosp_count(VALUE(LEFT(Options!$B$24,2)),$C111,$E111,$F111,2016,$I111+$J111,1,$H111,$G111*$H111, Options!$B$8)))","v":13075.385756892299},{"$f":"IF(AND(OR(Calculations!$E$2=\"Orkney Health Board\",Calculations!$E$2=\"Orkney Islands Local Authority\"),$F111=1),0,IF(AND(OR(Calculations!$E$2=\"Shetland Health Board\",Calculations!$E$2=\"Western Isles Health Board\",Calculations!$E$2=\"Shetland Islands Local Authority\",Calculations!$E$2=\"Eilean Siar Local Authority\"),OR($F111=1,$F111=5)),0,prem_mort(VALUE(LEFT(Options!$B$24,2)),$C111,$E111,$F111,2016,$I111,1,$H111,$G111*$H111,Options!$B$8)))","v":484.52920217500002},{"$f":"IF(AND(OR(Calculations!$E$2=\"Orkney Health Board\",Calculations!$E$2=\"Orkney Islands Local Authority\"),$F111=1),0,IF(AND(OR(Calculations!$E$2=\"Shetland Health Board\",Calculations!$E$2=\"Western Isles Health Board\",Calculations!$E$2=\"Shetland Islands Local Authority\",Calculations!$E$2=\"Eilean Siar Local Authority\"),OR($F111=1,$F111=5)),0,prem_mort(VALUE(LEFT(Options!$B$24,2)),$C111,$E111,$F111,2016,$I111+$J111,1,$H111,$G111*$H111,Options!$B$8)))","v":482.42673280299999},1487.1982878299571,1480.7450362277471,25475.711132122156,25365.166912816454,40240.665779999996,40133.166841290054,1487.1982878299571,1480.7450362277471,8179590.5830647638,8144097.6992526092,140116411.22667187,139508418.0204905,221323661.78999996,220732417.62709531,8179590.5830647638,8144097.6992526092,5500]
[null,"Female 70-74",71.938164,86.248159999999999,"female",2,{"$f":"HLOOKUP(Calculations!$E$2,'Prevalence Rates'!$C$3:$BC$249,'Prevalence Rates'!$BD112,FALSE)","v":0.21100000000000002},{"$f":"HLOOKUP(Calculations!$E$2,'Population 2016'!$C$3:$BC$249,'Population 2016'!BD112,FALSE)","v":25764},0,{"$f":"HLOOKUP(Results!E$4,Targeting!$C$3:$F$249,Targeting!$G112,FALSE)","v":3970},{"$f":"IF(AND(OR(Calculations!$E$2=\"Orkney Health Board\",Calculations!$E$2=\"Orkney Islands Local Authority\"),$F112=1),0,IF(AND(OR(Calculations!$E$2=\"Shetland Health Board\",Calculations!$E$2=\"Western Isles Health Board\",Calculations!$E$2=\"Shetland Islands Local Authority\",Calculations!$E$2=\"Eilean Siar Local Authority\"),OR($F112=1,$F112=5)),0,new_ci(VALUE(LEFT(Options!$B$24,2)),$C112,$E112,$F112,2016,$I112,1,$H112,$G112*$H112,Options!$B$8)))","v":577.61055170680004},{"$f":"IF(AND(OR(Calculations!$E$2=\"Orkney Health Board\",Calculations!$E$2=\"Orkney Islands Local Authority\"),$F112=1),0,IF(AND(OR(Calculations!$E$2=\"Shetland Health Board\",Calculations!$E$2=\"Western Isles Health Board\",Calculations!$E$2=\"Shetland Islands Local Authority\",Calculations!$E$2=\"Eilean Siar Local Authority\"),OR($F112=1,$F112=5)),0,new_ci(VALUE(LEFT(Options!$B$24,2)),$C112,$E112,$F112,2016,$I112+$J112,1,$H112,$G112*$H112,Options!$B$8)))","v":575.12306761579998},{"$f":"IF(AND(OR(Calculations!$E$2=\"Orkney Health Board\",Calculations!$E$2=\"Orkney Islands Local Authority\"),$F112=1),0,IF(AND(OR(Calculations!$E$2=\"Shetland Health Board\",Calculations!$E$2=\"Western Isles Health Board\",Calculations!$E$2=\"Shetland Islands Local Authority\",Calculations!$E$2=\"Eilean Siar Local Authority\"),OR($F112=1,$F112=5)),0,new_yllv2(VALUE(LEFT(Options!$B$24,2)),$C112,$D112,$E112,$F112,2016,$I112,1,$H112,$G112*$H112,Options!$B$8)))","v":7687.9941327753004},{"$f":"IF(AND(OR(Calculations!$E$2=\"Orkney Health Board\",Calculations!$E$2=\"Orkney Islands Local Authority\"),$F112=1),0,IF(AND(OR(Calculations!$E$2=\"Shetland Health Board\",Calculations!$E$2=\"Western Isles Health Board\",Calculations!$E$2=\"Shetland Islands Local Authority\",Calculations!$E$2=\"Eilean Siar Local Authority\"),OR($F112=1,$F112=5)),0,new_yllv2(VALUE(LEFT(Options!$B$24,2)),$C112,$D112,$E112,$F112,2016,$I112+$J112,1,$H112,$G112*$H112,Options!$B$8)))","v":7654.8857294740001},{"$f":"IF(AND(OR(Calculations!$E$2=\"Orkney Health Board\",Calculations!$E$2=\"Orkney Islands Local Authority\"),$F112=1),0,IF(AND(OR(Calculations!$E$2=\"Shetland Health Board\",Calculations!$E$2=\"Western Isles Health Board\",Calculations!$E$2=\"Shetland Islands Local Authority\",Calculations!$E$2=\"Eilean Siar Local Authority\"),OR($F112=1,$F112=5)),0,hosp_count(VALUE(LEFT(Options!$B$24,2)),$C112,$E112,$F112,2016,$I112,1,$H112,$G112*$H112, Options!$B$8)))","v":11719.9333841844},{"$f":"IF(AND(OR(Calculations!$E$2=\"Orkney Health Board\",Calculations!$E$2=\"Orkney Islands Local Authority\"),$F112=1),0,IF(AND(OR(Calculations!$E$2=\"Shetland Health Board\",Calculations!$E$2=\"Western Isles Health Board\",Calculations!$E$2=\"Shetland Islands Local Authority\",Calculations!$E$2=\"Eilean Siar Local Authority\"),OR($F112=1,$F112=5)),0,hosp_count(VALUE(LEFT(Options!$B$24,2)),$C112,$E112,$F112,2016,$I112+$J112,1,$H112,$G112*$H112, Options!$B$8)))","v":11688.622975168},{"$f":"IF(AND(OR(Calculations!$E$2=\"Orkney Health Board\",Calculations!$E$2=\"Orkney Islands Local Authority\"),$F112=1),0,IF(AND(OR(Calculations!$E$2=\"Shetland Health Board\",Calculations!$E$2=\"Western Isles Health Board\",Calculations!$E$2=\"Shetland Islands Local Authority\",Calculations!$E$2=\"Eilean Siar Local Authority\"),OR($F112=1,$F112=5)),0,prem_mort(VALUE(LEFT(Options!$B$24,2)),$C112,$E112,$F112,2016,$I112,1,$H112,$G112*$H112,Options!$B$8)))","v":577.61055170680004},{"$f":"IF(AND(OR(Calculations!$E$2=\"Orkney Health Board\",Calculations!$E$2=\"Orkney Islands Local Authority\"),$F112=1),0,IF(AND(OR(Calculations!$E$2=\"Shetland Health Board\",Calculations!$E$2=\"Western Isles Health Board\",Calculations!$E$2=\"Shetland Islands Local Authority\",Calculations!$E$2=\"Eilean Siar Local Authority\"),OR($F112=1,$F112=5)),0,prem_mort(VALUE(LEFT(Options!$B$24,2)),$C112,$E112,$F112,2016,$I112+$J112,1,$H112,$G112*$H112,Options!$B$8)))","v":575.12306761579998},2241.9288608399315,2232.273977704549,29840.064170064044,29711.557714151528,45489.572210000006,45368.044461915852,2241.9288608399315,2232.273977704549,11209644.304199658,11161369.888522744,149200320.85032022,148557788.57075763,227447861.05000004,226840222.30957925,11209644.304199658,11161369.888522744,5000]
[null,"Female 75-79",76.942824999999999,87.812830000000005,"female",2,{"$f":"HLOOKUP(Calculations!$E$2,'Prevalence Rates'!$C$3:$BC$249,'Prevalence Rates'!$BD113,FALSE)","v":9.6500000000000002E-2},{"$f":"HLOOKUP(Calculations!$E$2,'Population 2016'!$C$3:$BC$249,'Population 2016'!BD113,FALSE)","v":22167},0,{"$f":"HLOOKUP(Results!E$4,Targeting!$C$3:$F$249,Targeting!$G113,FALSE)","v":3415},{"$f":"IF(AND(OR(Calculations!$E$2=\"Orkney Health Board\",Calculations!$E$2=\"Orkney Islands Local Authority\"),$F113=1),0,IF(AND(OR(Calculations!$E$2=\"Shetland Health Board\",Calculations!$E$2=\"Western Isles Health Board\",Calculations!$E$2=\"Shetland Islands Local Authority\",Calculations!$E$2=\"Eilean Siar Local Authority\"),OR($F113=1,$F113=5)),0,new_ci(VALUE(LEFT(Options!$B$24,2)),$C113,$E113,$F113,2016,$I113,1,$H113,$G113*$H113,Options!$B$8)))","v":756.16502267359999},{"$f":"IF(AND(OR(Calculations!$E$2=\"Orkney Health Board\",Calculations!$E$2=\"Orkney Islands Local Authority\"),$F113=1),0,IF(AND(OR(Calculations!$E$2=\"Shetland Health Board\",Calculations!$E$2=\"Western Isles Health Board\",Calculations!$E$2=\"Shetland Islands Local Authority\",Calculations!$E$2=\"Eilean Siar Local Authority\"),OR($F113=1,$F113=5)),0,new_ci(VALUE(LEFT(Options!$B$24,2)),$C113,$E113,$F113,2016,$I113+$J113,1,$H113,$G113*$H113,Options!$B$8)))","v":752.69179521609999},{"$f":"IF(AND(OR(Calculations!$E$2=\"Orkney Health Board\",Calculations!$E$2=\"Orkney Islands Local Authority\"),$F113=1),0,IF(AND(OR(Calculations!$E$2=\"Shetland Health Board\",Calculations!$E$2=\"Western Isles Health Board\",Calculations!$E$2=\"Shetland Islands Local Authority\",Calculations!$E$2=\"Eilean Siar Local Authority\"),OR($F113=1,$F113=5)),0,new_yllv2(VALUE(LEFT(Options!$B$24,2)),$C113,$D113,$E113,$F113,2016,$I113,1,$H113,$G113*$H113,Options!$B$8)))","v":7463.3525546135998},{"$f":"IF(AND(OR(Calculations!$E$2=\"Orkney Health Board\",Calculations!$E$2=\"Orkney Islands Local Authority\"),$F113=1),0,IF(AND(OR(Calculations!$E$2=\"Shetland Health Board\",Calculations!$E$2=\"Western Isles Health Board\",Calculations!$E$2=\"Shetland Islands Local Authority\",Calculations!$E$2=\"Eilean Siar Local Authority\"),OR($F113=1,$F113=5)),0,new_yllv2(VALUE(LEFT(Options!$B$24,2)),$C113,$D113,$E113,$F113,2016,$I113+$J113,1,$H113,$G113*$H113,Options!$B$8)))","v":7429.0717822419001},{"$f":"IF(AND(OR(Calculations!$E$2=\"Orkney Health Board\",Calculations!$E$2=\"Orkney Islands Local Authority\"),$F113=1),0,IF(AND(OR(Calculations!$E$2=\"Shetland Health Board\",Calculations!$E$2=\"Western Isles Health Board\",Calculations!$E$2=\"Shetland Islands Local Authority\",Calculations!$E$2=\"Eilean Siar Local Authority\"),OR($F113=1,$F113=5)),0,hosp_count(VALUE(LEFT(Options!$B$24,2)),$C113,$E113,$F113,2016,$I113,1,$H113,$G113*$H113, Options!$B$8)))","v":11436.4236510261},{"$f":"IF(AND(OR(Calculations!$E$2=\"Orkney Health Board\",Calculations!$E$2=\"Orkney Islands Local Authority\"),$F113=1),0,IF(AND(OR(Calculations!$E$2=\"Shetland Health Board\",Calculations!$E$2=\"Western Isles Health Board\",Calculations!$E$2=\"Shetland Islands Local Authority\",Calculations!$E$2=\"Eilean Siar Local Authority\"),OR($F113=1,$F113=5)),0,hosp_count(VALUE(LEFT(Options!$B$24,2)),$C113,$E113,$F113,2016,$I113+$J113,1,$H113,$G113*$H113, Options!$B$8)))","v":11404.050516540499},{"$f":"IF(AND(OR(Calculations!$E$2=\"Orkney Health Board\",Calculations!$E$2=\"Orkney Islands Local Authority\"),$F113=1),0,IF(AND(OR(Calculations!$E$2=\"Shetland Health Board\",Calculations!$E$2=\"Western Isles Health Board\",Calculations!$E$2=\"Shetland Islands Local Authority\",Calculations!$E$2=\"Eilean Siar Local Authority\"),OR($F113=1,$F113=5)),0,prem_mort(VALUE(LEFT(Options!$B$24,2)),$C113,$E113,$F113,2016,$I113,1,$H113,$G113*$H113,Options!$B$8)))","v":0},{"$f":"IF(AND(OR(Calculations!$E$2=\"Orkney Health Board\",Calculations!$E$2=\"Orkney Islands Local Authority\"),$F113=1),0,IF(AND(OR(Calculations!$E$2=\"Shetland Health Board\",Calculations!$E$2=\"Western Isles Health Board\",Calculations!$E$2=\"Shetland Islands Local Authority\",Calculations!$E$2=\"Eilean Siar Local Authority\"),OR($F113=1,$F113=5)),0,prem_mort(VALUE(LEFT(Options!$B$24,2)),$C113,$E113,$F113,2016,$I113+$J113,1,$H113,$G113*$H113,Options!$B$8)))","v":0},3411.2194824450762,3395.5510227640184,33668.753347830556,33514.105572436056,51592.112829999991,51446.070810396079,0,0,13644877.929780304,13582204.091056073,134675013.39132223,134056422.28974423,206368451.31999996,205784283.2415843,0,0,4000]
[null,"Female 80-84",81.856712000000002,89.736710000000002,"female",2,{"$f":"HLOOKUP(Calculations!$E$2,'Prevalence Rates'!$C$3:$BC$249,'Prevalence Rates'!$BD114,FALSE)","v":9.6500000000000002E-2},{"$f":"HLOOKUP(Calculations!$E$2,'Population 2016'!$C$3:$BC$249,'Population 2016'!BD114,FALSE)","v":17470},0,{"$f":"HLOOKUP(Results!E$4,Targeting!$C$3:$F$249,Targeting!$G114,FALSE)","v":2692},{"$f":"IF(AND(OR(Calculations!$E$2=\"Orkney Health Board\",Calculations!$E$2=\"Orkney Islands Local Authority\"),$F114=1),0,IF(AND(OR(Calculations!$E$2=\"Shetland Health Board\",Calculations!$E$2=\"Western Isles Health Board\",Calculations!$E$2=\"Shetland Islands Local Authority\",Calculations!$E$2=\"Eilean Siar Local Authority\"),OR($F114=1,$F114=5)),0,new_ci(VALUE(LEFT(Options!$B$24,2)),$C114,$E114,$F114,2016,$I114,1,$H114,$G114*$H114,Options!$B$8)))","v":896.71137433889999},{"$f":"IF(AND(OR(Calculations!$E$2=\"Orkney Health Board\",Calculations!$E$2=\"Orkney Islands Local Authority\"),$F114=1),0,IF(AND(OR(Calculations!$E$2=\"Shetland Health Board\",Calculations!$E$2=\"Western Isles Health Board\",Calculations!$E$2=\"Shetland Islands Local Authority\",Calculations!$E$2=\"Eilean Siar Local Authority\"),OR($F114=1,$F114=5)),0,new_ci(VALUE(LEFT(Options!$B$24,2)),$C114,$E114,$F114,2016,$I114+$J114,1,$H114,$G114*$H114,Options!$B$8)))","v":892.67518013250003},{"$f":"IF(AND(OR(Calculations!$E$2=\"Orkney Health Board\",Calculations!$E$2=\"Orkney Islands Local Authority\"),$F114=1),0,IF(AND(OR(Calculations!$E$2=\"Shetland Health Board\",Calculations!$E$2=\"Western Isles Health Board\",Calculations!$E$2=\"Shetland Islands Local Authority\",Calculations!$E$2=\"Eilean Siar Local Authority\"),OR($F114=1,$F114=5)),0,new_yllv2(VALUE(LEFT(Options!$B$24,2)),$C114,$D114,$E114,$F114,2016,$I114,1,$H114,$G114*$H114,Options!$B$8)))","v":6169.3724620289004},{"$f":"IF(AND(OR(Calculations!$E$2=\"Orkney Health Board\",Calculations!$E$2=\"Orkney Islands Local Authority\"),$F114=1),0,IF(AND(OR(Calculations!$E$2=\"Shetland Health Board\",Calculations!$E$2=\"Western Isles Health Board\",Calculations!$E$2=\"Shetland Islands Local Authority\",Calculations!$E$2=\"Eilean Siar Local Authority\"),OR($F114=1,$F114=5)),0,new_yllv2(VALUE(LEFT(Options!$B$24,2)),$C114,$D114,$E114,$F114,2016,$I114+$J114,1,$H114,$G114*$H114,Options!$B$8)))","v":6141.6034539612001},{"$f":"IF(AND(OR(Calculations!$E$2=\"Orkney Health Board\",Calculations!$E$2=\"Orkney Islands Local Authority\"),$F114=1),0,IF(AND(OR(Calculations!$E$2=\"Shetland Health Board\",Calculations!$E$2=\"Western Isles Health Board\",Calculations!$E$2=\"Shetland Islands Local Authority\",Calculations!$E$2=\"Eilean Siar Local Authority\"),OR($F114=1,$F114=5)),0,hosp_count(VALUE(LEFT(Options!$B$24,2)),$C114,$E114,$F114,2016,$I114,1,$H114,$G114*$H114, Options!$B$8)))","v":10198.963905691},{"$f":"IF(AND(OR(Calculations!$E$2=\"Orkney Health Board\",Calculations!$E$2=\"Orkney Islands Local Authority\"),$F114=1),0,IF(AND(OR(Calculations!$E$2=\"Shetland Health Board\",Calculations!$E$2=\"Western Isles Health Board\",Calculations!$E$2=\"Shetland Islands Local Authority\",Calculations!$E$2=\"Eilean Siar Local Authority\"),OR($F114=1,$F114=5)),0,hosp_count(VALUE(LEFT(Options!$B$24,2)),$C114,$E114,$F114,2016,$I114+$J114,1,$H114,$G114*$H114, Options!$B$8)))","v":10170.087114121599},{"$f":"IF(AND(OR(Calculations!$E$2=\"Orkney Health Board\",Calculations!$E$2=\"Orkney Islands Local Authority\"),$F114=1),0,IF(AND(OR(Calculations!$E$2=\"Shetland Health Board\",Calculations!$E$2=\"Western Isles Health Board\",Calculations!$E$2=\"Shetland Islands Local Authority\",Calculations!$E$2=\"Eilean Siar Local Authority\"),OR($F114=1,$F114=5)),0,prem_mort(VALUE(LEFT(Options!$B$24,2)),$C114,$E114,$F114,2016,$I114,1,$H114,$G114*$H114,Options!$B$8)))","v":0},{"$f":"IF(AND(OR(Calculations!$E$2=\"Orkney Health Board\",Calculations!$E$2=\"Orkney Islands Local Authority\"),$F114=1),0,IF(AND(OR(Calculations!$E$2=\"Shetland Health Board\",Calculations!$E$2=\"Western Isles Health Board\",Calculations!$E$2=\"Shetland Islands Local Authority\",Calculations!$E$2=\"Eilean Siar Local Authority\"),OR($F114=1,$F114=5)),0,prem_mort(VALUE(LEFT(Options!$B$24,2)),$C114,$E114,$F114,2016,$I114+$J114,1,$H114,$G114*$H114,Options!$B$8)))","v":0},5132.8641919799657,5109.7606189610769,35314.095375093879,35155.142838930733,58379.873530000004,58214.579932006862,0,0,12832160.479949914,12774401.547402693,88285238.437734693,87887857.09732683,145949683.82500002,145536449.83001715,0,0,2500]
[null,"Female 85-89",86.730819999999994,92.220819999999989,"female",2,{"$f":"HLOOKUP(Calculations!$E$2,'Prevalence Rates'!$C$3:$BC$249,'Prevalence Rates'!$BD115,FALSE)","v":9.6500000000000002E-2},{"$f":"HLOOKUP(Calculations!$E$2,'Population 2016'!$C$3:$BC$249,'Population 2016'!BD115,FALSE)","v":10411},0,{"$f":"HLOOKUP(Results!E$4,Targeting!$C$3:$F$249,Targeting!$G115,FALSE)","v":1604},{"$f":"IF(AND(OR(Calculations!$E$2=\"Orkney Health Board\",Calculations!$E$2=\"Orkney Islands Local Authority\"),$F115=1),0,IF(AND(OR(Calculations!$E$2=\"Shetland Health Board\",Calculations!$E$2=\"Western Isles Health Board\",Calculations!$E$2=\"Shetland Islands Local Authority\",Calculations!$E$2=\"Eilean Siar Local Authority\"),OR($F115=1,$F115=5)),0,new_ci(VALUE(LEFT(Options!$B$24,2)),$C115,$E115,$F115,2016,$I115,1,$H115,$G115*$H115,Options!$B$8)))","v":797.65821816640005},{"$f":"IF(AND(OR(Calculations!$E$2=\"Orkney Health Board\",Calculations!$E$2=\"Orkney Islands Local Authority\"),$F115=1),0,IF(AND(OR(Calculations!$E$2=\"Shetland Health Board\",Calculations!$E$2=\"Western Isles Health Board\",Calculations!$E$2=\"Shetland Islands Local Authority\",Calculations!$E$2=\"Eilean Siar Local Authority\"),OR($F115=1,$F115=5)),0,new_ci(VALUE(LEFT(Options!$B$24,2)),$C115,$E115,$F115,2016,$I115+$J115,1,$H115,$G115*$H115,Options!$B$8)))","v":794.17758660720006},{"$f":"IF(AND(OR(Calculations!$E$2=\"Orkney Health Board\",Calculations!$E$2=\"Orkney Islands Local Authority\"),$F115=1),0,IF(AND(OR(Calculations!$E$2=\"Shetland Health Board\",Calculations!$E$2=\"Western Isles Health Board\",Calculations!$E$2=\"Shetland Islands Local Authority\",Calculations!$E$2=\"Eilean Siar Local Authority\"),OR($F115=1,$F115=5)),0,new_yllv2(VALUE(LEFT(Options!$B$24,2)),$C115,$D115,$E115,$F115,2016,$I115,1,$H115,$G115*$H115,Options!$B$8)))","v":3581.4853995671001},{"$f":"IF(AND(OR(Calculations!$E$2=\"Orkney Health Board\",Calculations!$E$2=\"Orkney Islands Local Authority\"),$F115=1),0,IF(AND(OR(Calculations!$E$2=\"Shetland Health Board\",Calculations!$E$2=\"Western Isles Health Board\",Calculations!$E$2=\"Shetland Islands Local Authority\",Calculations!$E$2=\"Eilean Siar Local Authority\"),OR($F115=1,$F115=5)),0,new_yllv2(VALUE(LEFT(Options!$B$24,2)),$C115,$D115,$E115,$F115,2016,$I115+$J115,1,$H115,$G115*$H115,Options!$B$8)))","v":3565.8573638663001},{"$f":"IF(AND(OR(Calculations!$E$2=\"Orkney Health Board\",Calculations!$E$2=\"Orkney Islands Local Authority\"),$F115=1),0,IF(AND(OR(Calculations!$E$2=\"Shetland Health Board\",Calculations!$E$2=\"Western Isles Health Board\",Calculations!$E$2=\"Shetland Islands Local Authority\",Calculations!$E$2=\"Eilean Siar Local Authority\"),OR($F115=1,$F115=5)),0,hosp_count(VALUE(LEFT(Options!$B$24,2)),$C115,$E115,$F115,2016,$I115,1,$H115,$G115*$H115, Options!$B$8)))","v":6870.6983567419002},{"$f":"IF(AND(OR(Calculations!$E$2=\"Orkney Health Board\",Calculations!$E$2=\"Orkney Islands Local Authority\"),$F115=1),0,IF(AND(OR(Calculations!$E$2=\"Shetland Health Board\",Calculations!$E$2=\"Western Isles Health Board\",Calculations!$E$2=\"Shetland Islands Local Authority\",Calculations!$E$2=\"Eilean Siar Local Authority\"),OR($F115=1,$F115=5)),0,hosp_count(VALUE(LEFT(Options!$B$24,2)),$C115,$E115,$F115,2016,$I115+$J115,1,$H115,$G115*$H115, Options!$B$8)))","v":6851.2481810088002},{"$f":"IF(AND(OR(Calculations!$E$2=\"Orkney Health Board\",Calculations!$E$2=\"Orkney Islands Local Authority\"),$F115=1),0,IF(AND(OR(Calculations!$E$2=\"Shetland Health Board\",Calculations!$E$2=\"Western Isles Health Board\",Calculations!$E$2=\"Shetland Islands Local Authority\",Calculations!$E$2=\"Eilean Siar Local Authority\"),OR($F115=1,$F115=5)),0,prem_mort(VALUE(LEFT(Options!$B$24,2)),$C115,$E115,$F115,2016,$I115,1,$H115,$G115*$H115,Options!$B$8)))","v":0},{"$f":"IF(AND(OR(Calculations!$E$2=\"Orkney Health Board\",Calculations!$E$2=\"Orkney Islands Local Authority\"),$F115=1),0,IF(AND(OR(Calculations!$E$2=\"Shetland Health Board\",Calculations!$E$2=\"Western Isles Health Board\",Calculations!$E$2=\"Shetland Islands Local Authority\",Calculations!$E$2=\"Eilean Siar Local Authority\"),OR($F115=1,$F115=5)),0,prem_mort(VALUE(LEFT(Options!$B$24,2)),$C115,$E115,$F115,2016,$I115+$J115,1,$H115,$G115*$H115,Options!$B$8)))","v":0},7661.6868520449525,7628.2546019325719,34400.973965681485,34250.863162676978,65994.605290000007,65807.781971076751,0,0,11492530.278067429,11442381.902898857,51601460.948522225,51376294.74401547,98991907.935000017,98711672.95661512,0,0,1500]
[null,"Female 90+",92.779342999999997,96.279340000000005,"female",2,{"$f":"HLOOKUP(Calculations!$E$2,'Prevalence Rates'!$C$3:$BC$249,'Prevalence Rates'!$BD116,FALSE)","v":9.6500000000000002E-2},{"$f":"HLOOKUP(Calculations!$E$2,'Population 2016'!$C$3:$BC$249,'Population 2016'!BD116,FALSE)","v":5892},0,{"$f":"HLOOKUP(Results!E$4,Targeting!$C$3:$F$249,Targeting!$G116,FALSE)","v":908},{"$f":"IF(AND(OR(Calculations!$E$2=\"Orkney Health Board\",Calculations!$E$2=\"Orkney Islands Local Authority\"),$F116=1),0,IF(AND(OR(Calculations!$E$2=\"Shetland Health Board\",Calculations!$E$2=\"Western Isles Health Board\",Calculations!$E$2=\"Shetland Islands Local Authority\",Calculations!$E$2=\"Eilean Siar Local Authority\"),OR($F116=1,$F116=5)),0,new_ci(VALUE(LEFT(Options!$B$24,2)),$C116,$E116,$F116,2016,$I116,1,$H116,$G116*$H116,Options!$B$8)))","v":734.63226856740005},{"$f":"IF(AND(OR(Calculations!$E$2=\"Orkney Health Board\",Calculations!$E$2=\"Orkney Islands Local Authority\"),$F116=1),0,IF(AND(OR(Calculations!$E$2=\"Shetland Health Board\",Calculations!$E$2=\"Western Isles Health Board\",Calculations!$E$2=\"Shetland Islands Local Authority\",Calculations!$E$2=\"Eilean Siar Local Authority\"),OR($F116=1,$F116=5)),0,new_ci(VALUE(LEFT(Options!$B$24,2)),$C116,$E116,$F116,2016,$I116+$J116,1,$H116,$G116*$H116,Options!$B$8)))","v":731.61692269340006},{"$f":"IF(AND(OR(Calculations!$E$2=\"Orkney Health Board\",Calculations!$E$2=\"Orkney Islands Local Authority\"),$F116=1),0,IF(AND(OR(Calculations!$E$2=\"Shetland Health Board\",Calculations!$E$2=\"Western Isles Health Board\",Calculations!$E$2=\"Shetland Islands Local Authority\",Calculations!$E$2=\"Eilean Siar Local Authority\"),OR($F116=1,$F116=5)),0,new_yllv2(VALUE(LEFT(Options!$B$24,2)),$C116,$D116,$E116,$F116,2016,$I116,1,$H116,$G116*$H116,Options!$B$8)))","v":1836.5784675217001},{"$f":"IF(AND(OR(Calculations!$E$2=\"Orkney Health Board\",Calculations!$E$2=\"Orkney Islands Local Authority\"),$F116=1),0,IF(AND(OR(Calculations!$E$2=\"Shetland Health Board\",Calculations!$E$2=\"Western Isles Health Board\",Calculations!$E$2=\"Shetland Islands Local Authority\",Calculations!$E$2=\"Eilean Siar Local Authority\"),OR($F116=1,$F116=5)),0,new_yllv2(VALUE(LEFT(Options!$B$24,2)),$C116,$D116,$E116,$F116,2016,$I116+$J116,1,$H116,$G116*$H116,Options!$B$8)))","v":1829.0401118827001},{"$f":"IF(AND(OR(Calculations!$E$2=\"Orkney Health Board\",Calculations!$E$2=\"Orkney Islands Local Authority\"),$F116=1),0,IF(AND(OR(Calculations!$E$2=\"Shetland Health Board\",Calculations!$E$2=\"Western Isles Health Board\",Calculations!$E$2=\"Shetland Islands Local Authority\",Calculations!$E$2=\"Eilean Siar Local Authority\"),OR($F116=1,$F116=5)),0,hosp_count(VALUE(LEFT(Options!$B$24,2)),$C116,$E116,$F116,2016,$I116,1,$H116,$G116*$H116, Options!$B$8)))","v":4527.3690442404004},{"$f":"IF(AND(OR(Calculations!$E$2=\"Orkney Health Board\",Calculations!$E$2=\"Orkney Islands Local Authority\"),$F116=1),0,IF(AND(OR(Calculations!$E$2=\"Shetland Health Board\",Calculations!$E$2=\"Western Isles Health Board\",Calculations!$E$2=\"Shetland Islands Local Authority\",Calculations!$E$2=\"Eilean Siar Local Authority\"),OR($F116=1,$F116=5)),0,hosp_count(VALUE(LEFT(Options!$B$24,2)),$C116,$E116,$F116,2016,$I116+$J116,1,$H116,$G116*$H116, Options!$B$8)))","v":4514.5492888627996},{"$f":"IF(AND(OR(Calculations!$E$2=\"Orkney Health Board\",Calculations!$E$2=\"Orkney Islands Local Authority\"),$F116=1),0,IF(AND(OR(Calculations!$E$2=\"Shetland Health Board\",Calculations!$E$2=\"Western Isles Health Board\",Calculations!$E$2=\"Shetland Islands Local Authority\",Calculations!$E$2=\"Eilean Siar Local Authority\"),OR($F116=1,$F116=5)),0,prem_mort(VALUE(LEFT(Options!$B$24,2)),$C116,$E116,$F116,2016,$I116,1,$H116,$G116*$H116,Options!$B$8)))","v":0},{"$f":"IF(AND(OR(Calculations!$E$2=\"Orkney Health Board\",Calculations!$E$2=\"Orkney Islands Local Authority\"),$F116=1),0,IF(AND(OR(Calculations!$E$2=\"Shetland Health Board\",Calculations!$E$2=\"Western Isles Health Board\",Calculations!$E$2=\"Shetland Islands Local Authority\",Calculations!$E$2=\"Eilean Siar Local Authority\"),OR($F116=1,$F116=5)),0,prem_mort(VALUE(LEFT(Options!$B$24,2)),$C116,$E116,$F116,2016,$I116+$J116,1,$H116,$G116*$H116,Options!$B$8)))","v":0},12468.300552739307,12417.123603078753,31170.713976946707,31042.771756325528,76839.257370000007,76621.678358160207,0,0,12468300.552739307,12417123.603078753,31170713.976946708,31042771.756325528,76839257.370000005,76621678.358160213,0,0,1000]
[null,"Male 0-4",2.0320822999999999,77.402082000000007,"male",2,{"$f":"HLOOKUP(Calculations!$E$2,'Prevalence Rates'!$C$3:$BC$249,'Prevalence Rates'!$BD117,FALSE)","v":0},{"$f":"HLOOKUP(Calculations!$E$2,'Population 2016'!$C$3:$BC$249,'Population 2016'!BD117,FALSE)","v":0},0,{"$f":"HLOOKUP(Results!E$4,Targeting!$C$3:$F$249,Targeting!$G117,FALSE)","v":0},{"$f":"IF(AND(OR(Calculations!$E$2=\"Orkney Health Board\",Calculations!$E$2=\"Orkney Islands Local Authority\"),$F117=1),0,IF(AND(OR(Calculations!$E$2=\"Shetland Health Board\",Calculations!$E$2=\"Western Isles Health Board\",Calculations!$E$2=\"Shetland Islands Local Authority\",Calculations!$E$2=\"Eilean Siar Local Authority\"),OR($F117=1,$F117=5)),0,new_ci(VALUE(LEFT(Options!$B$24,2)),$C117,$E117,$F117,2016,$I117,1,$H117,$G117*$H117,Options!$B$8)))","v":{"$error":"#VALUE!"}},{"$f":"IF(AND(OR(Calculations!$E$2=\"Orkney Health Board\",Calculations!$E$2=\"Orkney Islands Local Authority\"),$F117=1),0,IF(AND(OR(Calculations!$E$2=\"Shetland Health Board\",Calculations!$E$2=\"Western Isles Health Board\",Calculations!$E$2=\"Shetland Islands Local Authority\",Calculations!$E$2=\"Eilean Siar Local Authority\"),OR($F117=1,$F117=5)),0,new_ci(VALUE(LEFT(Options!$B$24,2)),$C117,$E117,$F117,2016,$I117+$J117,1,$H117,$G117*$H117,Options!$B$8)))","v":{"$error":"#VALUE!"}},{"$f":"IF(AND(OR(Calculations!$E$2=\"Orkney Health Board\",Calculations!$E$2=\"Orkney Islands Local Authority\"),$F117=1),0,IF(AND(OR(Calculations!$E$2=\"Shetland Health Board\",Calculations!$E$2=\"Western Isles Health Board\",Calculations!$E$2=\"Shetland Islands Local Authority\",Calculations!$E$2=\"Eilean Siar Local Authority\"),OR($F117=1,$F117=5)),0,new_yllv2(VALUE(LEFT(Options!$B$24,2)),$C117,$D117,$E117,$F117,2016,$I117,1,$H117,$G117*$H117,Options!$B$8)))","v":{"$error":"#VALUE!"}},{"$f":"IF(AND(OR(Calculations!$E$2=\"Orkney Health Board\",Calculations!$E$2=\"Orkney Islands Local Authority\"),$F117=1),0,IF(AND(OR(Calculations!$E$2=\"Shetland Health Board\",Calculations!$E$2=\"Western Isles Health Board\",Calculations!$E$2=\"Shetland Islands Local Authority\",Calculations!$E$2=\"Eilean Siar Local Authority\"),OR($F117=1,$F117=5)),0,new_yllv2(VALUE(LEFT(Options!$B$24,2)),$C117,$D117,$E117,$F117,2016,$I117+$J117,1,$H117,$G117*$H117,Options!$B$8)))","v":{"$error":"#VALUE!"}},{"$f":"IF(AND(OR(Calculations!$E$2=\"Orkney Health Board\",Calculations!$E$2=\"Orkney Islands Local Authority\"),$F117=1),0,IF(AND(OR(Calculations!$E$2=\"Shetland Health Board\",Calculations!$E$2=\"Western Isles Health Board\",Calculations!$E$2=\"Shetland Islands Local Authority\",Calculations!$E$2=\"Eilean Siar Local Authority\"),OR($F117=1,$F117=5)),0,hosp_count(VALUE(LEFT(Options!$B$24,2)),$C117,$E117,$F117,2016,$I117,1,$H117,$G117*$H117, Options!$B$8)))","v":{"$error":"#VALUE!"}},{"$f":"IF(AND(OR(Calculations!$E$2=\"Orkney Health Board\",Calculations!$E$2=\"Orkney Islands Local Authority\"),$F117=1),0,IF(AND(OR(Calculations!$E$2=\"Shetland Health Board\",Calculations!$E$2=\"Western Isles Health Board\",Calculations!$E$2=\"Shetland Islands Local Authority\",Calculations!$E$2=\"Eilean Siar Local Authority\"),OR($F117=1,$F117=5)),0,hosp_count(VALUE(LEFT(Options!$B$24,2)),$C117,$E117,$F117,2016,$I117+$J117,1,$H117,$G117*$H117, Options!$B$8)))","v":{"$error":"#VALUE!"}},{"$f":"IF(AND(OR(Calculations!$E$2=\"Orkney Health Board\",Calculations!$E$2=\"Orkney Islands Local Authority\"),$F117=1),0,IF(AND(OR(Calculations!$E$2=\"Shetland Health Board\",Calculations!$E$2=\"Western Isles Health Board\",Calculations!$E$2=\"Shetland Islands Local Authority\",Calculations!$E$2=\"Eilean Siar Local Authority\"),OR($F117=1,$F117=5)),0,prem_mort(VALUE(LEFT(Options!$B$24,2)),$C117,$E117,$F117,2016,$I117,1,$H117,$G117*$H117,Options!$B$8)))","v":{"$error":"#VALUE!"}},{"$f":"IF(AND(OR(Calculations!$E$2=\"Orkney Health Board\",Calculations!$E$2=\"Orkney Islands Local Authority\"),$F117=1),0,IF(AND(OR(Calculations!$E$2=\"Shetland Health Board\",Calculations!$E$2=\"Western Isles Health Board\",Calculations!$E$2=\"Shetland Islands Local Authority\",Calculations!$E$2=\"Eilean Siar Local Authority\"),OR($F117=1,$F117=5)),0,prem_mort(VALUE(LEFT(Options!$B$24,2)),$C117,$E117,$F117,2016,$I117+$J117,1,$H117,$G117*$H117,Options!$B$8)))","v":{"$error":"#VALUE!"}},{"$error":"#VALUE!"},{"$error":"#VALUE!"},{"$error":"#VALUE!"},{"$error":"#VALUE!"},{"$error":"#VALUE!"},{"$error":"#VALUE!"},{"$error":"#VALUE!"},{"$error":"#VALUE!"},{"$error":"#VALUE!"},{"$error":"#VALUE!"},{"$error":"#VALUE!"},{"$error":"#VALUE!"},{"$error":"#VALUE!"},{"$error":"#VALUE!"},{"$error":"#VALUE!"},{"$error":"#VALUE!"},5000]
[null,"Male 5-9",6.9784756000000003,77.398476000000002,"male",2,{"$f":"HLOOKUP(Calculations!$E$2,'Prevalence Rates'!$C$3:$BC$249,'Prevalence Rates'!$BD118,FALSE)","v":0},{"$f":"HLOOKUP(Calculations!$E$2,'Population 2016'!$C$3:$BC$249,'Population 2016'!BD118,FALSE)","v":0},0,{"$f":"HLOOKUP(Results!E$4,Targeting!$C$3:$F$249,Targeting!$G118,FALSE)","v":0},{"$f":"IF(AND(OR(Calculations!$E$2=\"Orkney Health Board\",Calculations!$E$2=\"Orkney Islands Local Authority\"),$F118=1),0,IF(AND(OR(Calculations!$E$2=\"Shetland Health Board\",Calculations!$E$2=\"Western Isles Health Board\",Calculations!$E$2=\"Shetland Islands Local Authority\",Calculations!$E$2=\"Eilean Siar Local Authority\"),OR($F118=1,$F118=5)),0,new_ci(VALUE(LEFT(Options!$B$24,2)),$C118,$E118,$F118,2016,$I118,1,$H118,$G118*$H118,Options!$B$8)))","v":{"$error":"#VALUE!"}},{"$f":"IF(AND(OR(Calculations!$E$2=\"Orkney Health Board\",Calculations!$E$2=\"Orkney Islands Local Authority\"),$F118=1),0,IF(AND(OR(Calculations!$E$2=\"Shetland Health Board\",Calculations!$E$2=\"Western Isles Health Board\",Calculations!$E$2=\"Shetland Islands Local Authority\",Calculations!$E$2=\"Eilean Siar Local Authority\"),OR($F118=1,$F118=5)),0,new_ci(VALUE(LEFT(Options!$B$24,2)),$C118,$E118,$F118,2016,$I118+$J118,1,$H118,$G118*$H118,Options!$B$8)))","v":{"$error":"#VALUE!"}},{"$f":"IF(AND(OR(Calculations!$E$2=\"Orkney Health Board\",Calculations!$E$2=\"Orkney Islands Local Authority\"),$F118=1),0,IF(AND(OR(Calculations!$E$2=\"Shetland Health Board\",Calculations!$E$2=\"Western Isles Health Board\",Calculations!$E$2=\"Shetland Islands Local Authority\",Calculations!$E$2=\"Eilean Siar Local Authority\"),OR($F118=1,$F118=5)),0,new_yllv2(VALUE(LEFT(Options!$B$24,2)),$C118,$D118,$E118,$F118,2016,$I118,1,$H118,$G118*$H118,Options!$B$8)))","v":{"$error":"#VALUE!"}},{"$f":"IF(AND(OR(Calculations!$E$2=\"Orkney Health Board\",Calculations!$E$2=\"Orkney Islands Local Authority\"),$F118=1),0,IF(AND(OR(Calculations!$E$2=\"Shetland Health Board\",Calculations!$E$2=\"Western Isles Health Board\",Calculations!$E$2=\"Shetland Islands Local Authority\",Calculations!$E$2=\"Eilean Siar Local Authority\"),OR($F118=1,$F118=5)),0,new_yllv2(VALUE(LEFT(Options!$B$24,2)),$C118,$D118,$E118,$F118,2016,$I118+$J118,1,$H118,$G118*$H118,Options!$B$8)))","v":{"$error":"#VALUE!"}},{"$f":"IF(AND(OR(Calculations!$E$2=\"Orkney Health Board\",Calculations!$E$2=\"Orkney Islands Local Authority\"),$F118=1),0,IF(AND(OR(Calculations!$E$2=\"Shetland Health Board\",Calculations!$E$2=\"Western Isles Health Board\",Calculations!$E$2=\"Shetland Islands Local Authority\",Calculations!$E$2=\"Eilean Siar Local Authority\"),OR($F118=1,$F118=5)),0,hosp_count(VALUE(LEFT(Options!$B$24,2)),$C118,$E118,$F118,2016,$I118,1,$H118,$G118*$H118, Options!$B$8)))","v":{"$error":"#VALUE!"}},{"$f":"IF(AND(OR(Calculations!$E$2=\"Orkney Health Board\",Calculations!$E$2=\"Orkney Islands Local Authority\"),$F118=1),0,IF(AND(OR(Calculations!$E$2=\"Shetland Health Board\",Calculations!$E$2=\"Western Isles Health Board\",Calculations!$E$2=\"Shetland Islands Local Authority\",Calculations!$E$2=\"Eilean Siar Local Authority\"),OR($F118=1,$F118=5)),0,hosp_count(VALUE(LEFT(Options!$B$24,2)),$C118,$E118,$F118,2016,$I118+$J118,1,$H118,$G118*$H118, Options!$B$8)))","v":{"$error":"#VALUE!"}},{"$f":"IF(AND(OR(Calculations!$E$2=\"Orkney Health Board\",Calculations!$E$2=\"Orkney Islands Local Authority\"),$F118=1),0,IF(AND(OR(Calculations!$E$2=\"Shetland Health Board\",Calculations!$E$2=\"Western Isles Health Board\",Calculations!$E$2=\"Shetland Islands Local Authority\",Calculations!$E$2=\"Eilean Siar Local Authority\"),OR($F118=1,$F118=5)),0,prem_mort(VALUE(LEFT(Options!$B$24,2)),$C118,$E118,$F118,2016,$I118,1,$H118,$G118*$H118,Options!$B$8)))","v":{"$error":"#VALUE!"}},{"$f":"IF(AND(OR(Calculations!$E$2=\"Orkney Health Board\",Calculations!$E$2=\"Orkney Islands Local Authority\"),$F118=1),0,IF(AND(OR(Calculations!$E$2=\"Shetland Health Board\",Calculations!$E$2=\"Western Isles Health Board\",Calculations!$E$2=\"Shetland Islands Local Authority\",Calculations!$E$2=\"Eilean Siar Local Authority\"),OR($F118=1,$F118=5)),0,prem_mort(VALUE(LEFT(Options!$B$24,2)),$C118,$E118,$F118,2016,$I118+$J118,1,$H118,$G118*$H118,Options!$B$8)))","v":{"$error":"#VALUE!"}},{"$error":"#VALUE!"},{"$error":"#VALUE!"},{"$error":"#VALUE!"},{"$error":"#VALUE!"},{"$error":"#VALUE!"},{"$error":"#VALUE!"},{"$error":"#VALUE!"},{"$error":"#VALUE!"},{"$error":"#VALUE!"},{"$error":"#VALUE!"},{"$error":"#VALUE!"},{"$error":"#VALUE!"},{"$error":"#VALUE!"},{"$error":"#VALUE!"},{"$error":"#VALUE!"},{"$error":"#VALUE!"},5500]
[null,"Male 10-15",12.471144000000001,77.921140000000008,"male",2,{"$f":"HLOOKUP(Calculations!$E$2,'Prevalence Rates'!$C$3:$BC$249,'Prevalence Rates'!$BD119,FALSE)","v":0},{"$f":"HLOOKUP(Calculations!$E$2,'Population 2016'!$C$3:$BC$249,'Population 2016'!BD119,FALSE)","v":0},0,{"$f":"HLOOKUP(Results!E$4,Targeting!$C$3:$F$249,Targeting!$G119,FALSE)","v":0},{"$f":"IF(AND(OR(Calculations!$E$2=\"Orkney Health Board\",Calculations!$E$2=\"Orkney Islands Local Authority\"),$F119=1),0,IF(AND(OR(Calculations!$E$2=\"Shetland Health Board\",Calculations!$E$2=\"Western Isles Health Board\",Calculations!$E$2=\"Shetland Islands Local Authority\",Calculations!$E$2=\"Eilean Siar Local Authority\"),OR($F119=1,$F119=5)),0,new_ci(VALUE(LEFT(Options!$B$24,2)),$C119,$E119,$F119,2016,$I119,1,$H119,$G119*$H119,Options!$B$8)))","v":{"$error":"#VALUE!"}},{"$f":"IF(AND(OR(Calculations!$E$2=\"Orkney Health Board\",Calculations!$E$2=\"Orkney Islands Local Authority\"),$F119=1),0,IF(AND(OR(Calculations!$E$2=\"Shetland Health Board\",Calculations!$E$2=\"Western Isles Health Board\",Calculations!$E$2=\"Shetland Islands Local Authority\",Calculations!$E$2=\"Eilean Siar Local Authority\"),OR($F119=1,$F119=5)),0,new_ci(VALUE(LEFT(Options!$B$24,2)),$C119,$E119,$F119,2016,$I119+$J119,1,$H119,$G119*$H119,Options!$B$8)))","v":{"$error":"#VALUE!"}},{"$f":"IF(AND(OR(Calculations!$E$2=\"Orkney Health Board\",Calculations!$E$2=\"Orkney Islands Local Authority\"),$F119=1),0,IF(AND(OR(Calculations!$E$2=\"Shetland Health Board\",Calculations!$E$2=\"Western Isles Health Board\",Calculations!$E$2=\"Shetland Islands Local Authority\",Calculations!$E$2=\"Eilean Siar Local Authority\"),OR($F119=1,$F119=5)),0,new_yllv2(VALUE(LEFT(Options!$B$24,2)),$C119,$D119,$E119,$F119,2016,$I119,1,$H119,$G119*$H119,Options!$B$8)))","v":{"$error":"#VALUE!"}},{"$f":"IF(AND(OR(Calculations!$E$2=\"Orkney Health Board\",Calculations!$E$2=\"Orkney Islands Local Authority\"),$F119=1),0,IF(AND(OR(Calculations!$E$2=\"Shetland Health Board\",Calculations!$E$2=\"Western Isles Health Board\",Calculations!$E$2=\"Shetland Islands Local Authority\",Calculations!$E$2=\"Eilean Siar Local Authority\"),OR($F119=1,$F119=5)),0,new_yllv2(VALUE(LEFT(Options!$B$24,2)),$C119,$D119,$E119,$F119,2016,$I119+$J119,1,$H119,$G119*$H119,Options!$B$8)))","v":{"$error":"#VALUE!"}},{"$f":"IF(AND(OR(Calculations!$E$2=\"Orkney Health Board\",Calculations!$E$2=\"Orkney Islands Local Authority\"),$F119=1),0,IF(AND(OR(Calculations!$E$2=\"Shetland Health Board\",Calculations!$E$2=\"Western Isles Health Board\",Calculations!$E$2=\"Shetland Islands Local Authority\",Calculations!$E$2=\"Eilean Siar Local Authority\"),OR($F119=1,$F119=5)),0,hosp_count(VALUE(LEFT(Options!$B$24,2)),$C119,$E119,$F119,2016,$I119,1,$H119,$G119*$H119, Options!$B$8)))","v":{"$error":"#VALUE!"}},{"$f":"IF(AND(OR(Calculations!$E$2=\"Orkney Health Board\",Calculations!$E$2=\"Orkney Islands Local Authority\"),$F119=1),0,IF(AND(OR(Calculations!$E$2=\"Shetland Health Board\",Calculations!$E$2=\"Western Isles Health Board\",Calculations!$E$2=\"Shetland Islands Local Authority\",Calculations!$E$2=\"Eilean Siar Local Authority\"),OR($F119=1,$F119=5)),0,hosp_count(VALUE(LEFT(Options!$B$24,2)),$C119,$E119,$F119,2016,$I119+$J119,1,$H119,$G119*$H119, Options!$B$8)))","v":{"$error":"#VALUE!"}},{"$f":"IF(AND(OR(Calculations!$E$2=\"Orkney Health Board\",Calculations!$E$2=\"Orkney Islands Local Authority\"),$F119=1),0,IF(AND(OR(Calculations!$E$2=\"Shetland Health Board\",Calculations!$E$2=\"Western Isles Health Board\",Calculations!$E$2=\"Shetland Islands Local Authority\",Calculations!$E$2=\"Eilean Siar Local Authority\"),OR($F119=1,$F119=5)),0,prem_mort(VALUE(LEFT(Options!$B$24,2)),$C119,$E119,$F119,2016,$I119,1,$H119,$G119*$H119,Options!$B$8)))","v":{"$error":"#VALUE!"}},{"$f":"IF(AND(OR(Calculations!$E$2=\"Orkney Health Board\",Calculations!$E$2=\"Orkney Islands Local Authority\"),$F119=1),0,IF(AND(OR(Calculations!$E$2=\"Shetland Health Board\",Calculations!$E$2=\"Western Isles Health Board\",Calculations!$E$2=\"Shetland Islands Local Authority\",Calculations!$E$2=\"Eilean Siar Local Authority\"),OR($F119=1,$F119=5)),0,prem_mort(VALUE(LEFT(Options!$B$24,2)),$C119,$E119,$F119,2016,$I119+$J119,1,$H119,$G119*$H119,Options!$B$8)))","v":{"$error":"#VALUE!"}},{"$error":"#VALUE!"},{"$error":"#VALUE!"},{"$error":"#VALUE!"},{"$error":"#VALUE!"},{"$error":"#VALUE!"},{"$error":"#VALUE!"},{"$error":"#VALUE!"},{"$error":"#VALUE!"},{"$error":"#VALUE!"},{"$error":"#VALUE!"},{"$error":"#VALUE!"},{"$error":"#VALUE!"},{"$error":"#VALUE!"},{"$error":"#VALUE!"},{"$error":"#VALUE!"},{"$error":"#VALUE!"},6600]
[null,"Male 16-19",17.556318000000001,77.07632000000001,"male",2,{"$f":"HLOOKUP(Calculations!$E$2,'Prevalence Rates'!$C$3:$BC$249,'Prevalence Rates'!$BD120,FALSE)","v":0.2858},{"$f":"HLOOKUP(Calculations!$E$2,'Population 2016'!$C$3:$BC$249,'Population 2016'!BD120,FALSE)","v":23693},0,{"$f":"HLOOKUP(Results!E$4,Targeting!$C$3:$F$249,Targeting!$G120,FALSE)","v":3650},{"$f":"IF(AND(OR(Calculations!$E$2=\"Orkney Health Board\",Calculations!$E$2=\"Orkney Islands Local Authority\"),$F120=1),0,IF(AND(OR(Calculations!$E$2=\"Shetland Health Board\",Calculations!$E$2=\"Western Isles Health Board\",Calculations!$E$2=\"Shetland Islands Local Authority\",Calculations!$E$2=\"Eilean Siar Local Authority\"),OR($F120=1,$F120=5)),0,new_ci(VALUE(LEFT(Options!$B$24,2)),$C120,$E120,$F120,2016,$I120,1,$H120,$G120*$H120,Options!$B$8)))","v":12.540413025499999},{"$f":"IF(AND(OR(Calculations!$E$2=\"Orkney Health Board\",Calculations!$E$2=\"Orkney Islands Local Authority\"),$F120=1),0,IF(AND(OR(Calculations!$E$2=\"Shetland Health Board\",Calculations!$E$2=\"Western Isles Health Board\",Calculations!$E$2=\"Shetland Islands Local Authority\",Calculations!$E$2=\"Eilean Siar Local Authority\"),OR($F120=1,$F120=5)),0,new_ci(VALUE(LEFT(Options!$B$24,2)),$C120,$E120,$F120,2016,$I120+$J120,1,$H120,$G120*$H120,Options!$B$8)))","v":12.5043039405},{"$f":"IF(AND(OR(Calculations!$E$2=\"Orkney Health Board\",Calculations!$E$2=\"Orkney Islands Local Authority\"),$F120=1),0,IF(AND(OR(Calculations!$E$2=\"Shetland Health Board\",Calculations!$E$2=\"Western Isles Health Board\",Calculations!$E$2=\"Shetland Islands Local Authority\",Calculations!$E$2=\"Eilean Siar Local Authority\"),OR($F120=1,$F120=5)),0,new_yllv2(VALUE(LEFT(Options!$B$24,2)),$C120,$D120,$E120,$F120,2016,$I120,1,$H120,$G120*$H120,Options!$B$8)))","v":733.86499533309996},{"$f":"IF(AND(OR(Calculations!$E$2=\"Orkney Health Board\",Calculations!$E$2=\"Orkney Islands Local Authority\"),$F120=1),0,IF(AND(OR(Calculations!$E$2=\"Shetland Health Board\",Calculations!$E$2=\"Western Isles Health Board\",Calculations!$E$2=\"Shetland Islands Local Authority\",Calculations!$E$2=\"Eilean Siar Local Authority\"),OR($F120=1,$F120=5)),0,new_yllv2(VALUE(LEFT(Options!$B$24,2)),$C120,$D120,$E120,$F120,2016,$I120+$J120,1,$H120,$G120*$H120,Options!$B$8)))","v":731.75189160670004},{"$f":"IF(AND(OR(Calculations!$E$2=\"Orkney Health Board\",Calculations!$E$2=\"Orkney Islands Local Authority\"),$F120=1),0,IF(AND(OR(Calculations!$E$2=\"Shetland Health Board\",Calculations!$E$2=\"Western Isles Health Board\",Calculations!$E$2=\"Shetland Islands Local Authority\",Calculations!$E$2=\"Eilean Siar Local Authority\"),OR($F120=1,$F120=5)),0,hosp_count(VALUE(LEFT(Options!$B$24,2)),$C120,$E120,$F120,2016,$I120,1,$H120,$G120*$H120, Options!$B$8)))","v":1858.6343223870001},{"$f":"IF(AND(OR(Calculations!$E$2=\"Orkney Health Board\",Calculations!$E$2=\"Orkney Islands Local Authority\"),$F120=1),0,IF(AND(OR(Calculations!$E$2=\"Shetland Health Board\",Calculations!$E$2=\"Western Isles Health Board\",Calculations!$E$2=\"Shetland Islands Local Authority\",Calculations!$E$2=\"Eilean Siar Local Authority\"),OR($F120=1,$F120=5)),0,hosp_count(VALUE(LEFT(Options!$B$24,2)),$C120,$E120,$F120,2016,$I120+$J120,1,$H120,$G120*$H120, Options!$B$8)))","v":1855.1451698535},{"$f":"IF(AND(OR(Calculations!$E$2=\"Orkney Health Board\",Calculations!$E$2=\"Orkney Islands Local Authority\"),$F120=1),0,IF(AND(OR(Calculations!$E$2=\"Shetland Health Board\",Calculations!$E$2=\"Western Isles Health Board\",Calculations!$E$2=\"Shetland Islands Local Authority\",Calculations!$E$2=\"Eilean Siar Local Authority\"),OR($F120=1,$F120=5)),0,prem_mort(VALUE(LEFT(Options!$B$24,2)),$C120,$E120,$F120,2016,$I120,1,$H120,$G120*$H120,Options!$B$8)))","v":12.540413025499999},{"$f":"IF(AND(OR(Calculations!$E$2=\"Orkney Health Board\",Calculations!$E$2=\"Orkney Islands Local Authority\"),$F120=1),0,IF(AND(OR(Calculations!$E$2=\"Shetland Health Board\",Calculations!$E$2=\"Western Isles Health Board\",Calculations!$E$2=\"Shetland Islands Local Authority\",Calculations!$E$2=\"Eilean Siar Local Authority\"),OR($F120=1,$F120=5)),0,prem_mort(VALUE(LEFT(Options!$B$24,2)),$C120,$E120,$F120,2016,$I120+$J120,1,$H120,$G120*$H120,Options!$B$8)))","v":12.5043039405},52.928768098172455,52.776364075887393,3097.3916149626471,3088.4729312737936,7844.6558999999997,7829.9293878086346,52.928768098172455,52.776364075887393,232886.5796319588,232216.00193390454,13628523.105835646,13589280.897604693,34516485.960000001,34451689.306357995,232886.5796319588,232216.00193390454,4400]
[null,"Male 20-24",22.054632000000002,77.704629999999995,"male",2,{"$f":"HLOOKUP(Calculations!$E$2,'Prevalence Rates'!$C$3:$BC$249,'Prevalence Rates'!$BD121,FALSE)","v":0.2858},{"$f":"HLOOKUP(Calculations!$E$2,'Population 2016'!$C$3:$BC$249,'Population 2016'!BD121,FALSE)","v":35964},0,{"$f":"HLOOKUP(Results!E$4,Targeting!$C$3:$F$249,Targeting!$G121,FALSE)","v":5541},{"$f":"IF(AND(OR(Calculations!$E$2=\"Orkney Health Board\",Calculations!$E$2=\"Orkney Islands Local Authority\"),$F121=1),0,IF(AND(OR(Calculations!$E$2=\"Shetland Health Board\",Calculations!$E$2=\"Western Isles Health Board\",Calculations!$E$2=\"Shetland Islands Local Authority\",Calculations!$E$2=\"Eilean Siar Local Authority\"),OR($F121=1,$F121=5)),0,new_ci(VALUE(LEFT(Options!$B$24,2)),$C121,$E121,$F121,2016,$I121,1,$H121,$G121*$H121,Options!$B$8)))","v":26.730078056100002},{"$f":"IF(AND(OR(Calculations!$E$2=\"Orkney Health Board\",Calculations!$E$2=\"Orkney Islands Local Authority\"),$F121=1),0,IF(AND(OR(Calculations!$E$2=\"Shetland Health Board\",Calculations!$E$2=\"Western Isles Health Board\",Calculations!$E$2=\"Shetland Islands Local Authority\",Calculations!$E$2=\"Eilean Siar Local Authority\"),OR($F121=1,$F121=5)),0,new_ci(VALUE(LEFT(Options!$B$24,2)),$C121,$E121,$F121,2016,$I121+$J121,1,$H121,$G121*$H121,Options!$B$8)))","v":26.653117444799999},{"$f":"IF(AND(OR(Calculations!$E$2=\"Orkney Health Board\",Calculations!$E$2=\"Orkney Islands Local Authority\"),$F121=1),0,IF(AND(OR(Calculations!$E$2=\"Shetland Health Board\",Calculations!$E$2=\"Western Isles Health Board\",Calculations!$E$2=\"Shetland Islands Local Authority\",Calculations!$E$2=\"Eilean Siar Local Authority\"),OR($F121=1,$F121=5)),0,new_yllv2(VALUE(LEFT(Options!$B$24,2)),$C121,$D121,$E121,$F121,2016,$I121,1,$H121,$G121*$H121,Options!$B$8)))","v":1460.7987123057001},{"$f":"IF(AND(OR(Calculations!$E$2=\"Orkney Health Board\",Calculations!$E$2=\"Orkney Islands Local Authority\"),$F121=1),0,IF(AND(OR(Calculations!$E$2=\"Shetland Health Board\",Calculations!$E$2=\"Western Isles Health Board\",Calculations!$E$2=\"Shetland Islands Local Authority\",Calculations!$E$2=\"Eilean Siar Local Authority\"),OR($F121=1,$F121=5)),0,new_yllv2(VALUE(LEFT(Options!$B$24,2)),$C121,$D121,$E121,$F121,2016,$I121+$J121,1,$H121,$G121*$H121,Options!$B$8)))","v":1456.5928150520999},{"$f":"IF(AND(OR(Calculations!$E$2=\"Orkney Health Board\",Calculations!$E$2=\"Orkney Islands Local Authority\"),$F121=1),0,IF(AND(OR(Calculations!$E$2=\"Shetland Health Board\",Calculations!$E$2=\"Western Isles Health Board\",Calculations!$E$2=\"Shetland Islands Local Authority\",Calculations!$E$2=\"Eilean Siar Local Authority\"),OR($F121=1,$F121=5)),0,hosp_count(VALUE(LEFT(Options!$B$24,2)),$C121,$E121,$F121,2016,$I121,1,$H121,$G121*$H121, Options!$B$8)))","v":3309.6725972171998},{"$f":"IF(AND(OR(Calculations!$E$2=\"Orkney Health Board\",Calculations!$E$2=\"Orkney Islands Local Authority\"),$F121=1),0,IF(AND(OR(Calculations!$E$2=\"Shetland Health Board\",Calculations!$E$2=\"Western Isles Health Board\",Calculations!$E$2=\"Shetland Islands Local Authority\",Calculations!$E$2=\"Eilean Siar Local Authority\"),OR($F121=1,$F121=5)),0,hosp_count(VALUE(LEFT(Options!$B$24,2)),$C121,$E121,$F121,2016,$I121+$J121,1,$H121,$G121*$H121, Options!$B$8)))","v":3303.4587812883001},{"$f":"IF(AND(OR(Calculations!$E$2=\"Orkney Health Board\",Calculations!$E$2=\"Orkney Islands Local Authority\"),$F121=1),0,IF(AND(OR(Calculations!$E$2=\"Shetland Health Board\",Calculations!$E$2=\"Western Isles Health Board\",Calculations!$E$2=\"Shetland Islands Local Authority\",Calculations!$E$2=\"Eilean Siar Local Authority\"),OR($F121=1,$F121=5)),0,prem_mort(VALUE(LEFT(Options!$B$24,2)),$C121,$E121,$F121,2016,$I121,1,$H121,$G121*$H121,Options!$B$8)))","v":26.730078056100002},{"$f":"IF(AND(OR(Calculations!$E$2=\"Orkney Health Board\",Calculations!$E$2=\"Orkney Islands Local Authority\"),$F121=1),0,IF(AND(OR(Calculations!$E$2=\"Shetland Health Board\",Calculations!$E$2=\"Western Isles Health Board\",Calculations!$E$2=\"Shetland Islands Local Authority\",Calculations!$E$2=\"Eilean Siar Local Authority\"),OR($F121=1,$F121=5)),0,prem_mort(VALUE(LEFT(Options!$B$24,2)),$C121,$E121,$F121,2016,$I121+$J121,1,$H121,$G121*$H121,Options!$B$8)))","v":26.653117444799999},74.324541363863872,74.110547894561222,4061.8360368860531,4050.1412942167162,9202.7377299999989,9185.4598523198201,74.324541363863872,74.110547894561222,445947.24818318326,444663.28736736736,24371016.221316319,24300847.765300296,55216426.379999995,55112759.113918923,445947.24818318326,444663.28736736736,6000]
[null,"Male 25-29",26.959762999999999,77.789760000000001,"male",2,{"$f":"HLOOKUP(Calculations!$E$2,'Prevalence Rates'!$C$3:$BC$249,'Prevalence Rates'!$BD122,FALSE)","v":0.31980000000000003},{"$f":"HLOOKUP(Calculations!$E$2,'Population 2016'!$C$3:$BC$249,'Population 2016'!BD122,FALSE)","v":39611},0,{"$f":"HLOOKUP(Results!E$4,Targeting!$C$3:$F$249,Targeting!$G122,FALSE)","v":6103},{"$f":"IF(AND(OR(Calculations!$E$2=\"Orkney Health Board\",Calculations!$E$2=\"Orkney Islands Local Authority\"),$F122=1),0,IF(AND(OR(Calculations!$E$2=\"Shetland Health Board\",Calculations!$E$2=\"Western Isles Health Board\",Calculations!$E$2=\"Shetland Islands Local Authority\",Calculations!$E$2=\"Eilean Siar Local Authority\"),OR($F122=1,$F122=5)),0,new_ci(VALUE(LEFT(Options!$B$24,2)),$C122,$E122,$F122,2016,$I122,1,$H122,$G122*$H122,Options!$B$8)))","v":42.628333175100003},{"$f":"IF(AND(OR(Calculations!$E$2=\"Orkney Health Board\",Calculations!$E$2=\"Orkney Islands Local Authority\"),$F122=1),0,IF(AND(OR(Calculations!$E$2=\"Shetland Health Board\",Calculations!$E$2=\"Western Isles Health Board\",Calculations!$E$2=\"Shetland Islands Local Authority\",Calculations!$E$2=\"Eilean Siar Local Authority\"),OR($F122=1,$F122=5)),0,new_ci(VALUE(LEFT(Options!$B$24,2)),$C122,$E122,$F122,2016,$I122+$J122,1,$H122,$G122*$H122,Options!$B$8)))","v":42.508546542600001},{"$f":"IF(AND(OR(Calculations!$E$2=\"Orkney Health Board\",Calculations!$E$2=\"Orkney Islands Local Authority\"),$F122=1),0,IF(AND(OR(Calculations!$E$2=\"Shetland Health Board\",Calculations!$E$2=\"Western Isles Health Board\",Calculations!$E$2=\"Shetland Islands Local Authority\",Calculations!$E$2=\"Eilean Siar Local Authority\"),OR($F122=1,$F122=5)),0,new_yllv2(VALUE(LEFT(Options!$B$24,2)),$C122,$D122,$E122,$F122,2016,$I122,1,$H122,$G122*$H122,Options!$B$8)))","v":2124.1697142302},{"$f":"IF(AND(OR(Calculations!$E$2=\"Orkney Health Board\",Calculations!$E$2=\"Orkney Islands Local Authority\"),$F122=1),0,IF(AND(OR(Calculations!$E$2=\"Shetland Health Board\",Calculations!$E$2=\"Western Isles Health Board\",Calculations!$E$2=\"Shetland Islands Local Authority\",Calculations!$E$2=\"Eilean Siar Local Authority\"),OR($F122=1,$F122=5)),0,new_yllv2(VALUE(LEFT(Options!$B$24,2)),$C122,$D122,$E122,$F122,2016,$I122+$J122,1,$H122,$G122*$H122,Options!$B$8)))","v":2118.2007466921},{"$f":"IF(AND(OR(Calculations!$E$2=\"Orkney Health Board\",Calculations!$E$2=\"Orkney Islands Local Authority\"),$F122=1),0,IF(AND(OR(Calculations!$E$2=\"Shetland Health Board\",Calculations!$E$2=\"Western Isles Health Board\",Calculations!$E$2=\"Shetland Islands Local Authority\",Calculations!$E$2=\"Eilean Siar Local Authority\"),OR($F122=1,$F122=5)),0,hosp_count(VALUE(LEFT(Options!$B$24,2)),$C122,$E122,$F122,2016,$I122,1,$H122,$G122*$H122, Options!$B$8)))","v":4338.5762131854999},{"$f":"IF(AND(OR(Calculations!$E$2=\"Orkney Health Board\",Calculations!$E$2=\"Orkney Islands Local Authority\"),$F122=1),0,IF(AND(OR(Calculations!$E$2=\"Shetland Health Board\",Calculations!$E$2=\"Western Isles Health Board\",Calculations!$E$2=\"Shetland Islands Local Authority\",Calculations!$E$2=\"Eilean Siar Local Authority\"),OR($F122=1,$F122=5)),0,hosp_count(VALUE(LEFT(Options!$B$24,2)),$C122,$E122,$F122,2016,$I122+$J122,1,$H122,$G122*$H122, Options!$B$8)))","v":4330.5457676052001},{"$f":"IF(AND(OR(Calculations!$E$2=\"Orkney Health Board\",Calculations!$E$2=\"Orkney Islands Local Authority\"),$F122=1),0,IF(AND(OR(Calculations!$E$2=\"Shetland Health Board\",Calculations!$E$2=\"Western Isles Health Board\",Calculations!$E$2=\"Shetland Islands Local Authority\",Calculations!$E$2=\"Eilean Siar Local Authority\"),OR($F122=1,$F122=5)),0,prem_mort(VALUE(LEFT(Options!$B$24,2)),$C122,$E122,$F122,2016,$I122,1,$H122,$G122*$H122,Options!$B$8)))","v":42.628333175100003},{"$f":"IF(AND(OR(Calculations!$E$2=\"Orkney Health Board\",Calculations!$E$2=\"Orkney Islands Local Authority\"),$F122=1),0,IF(AND(OR(Calculations!$E$2=\"Shetland Health Board\",Calculations!$E$2=\"Western Isles Health Board\",Calculations!$E$2=\"Shetland Islands Local Authority\",Calculations!$E$2=\"Eilean Siar Local Authority\"),OR($F122=1,$F122=5)),0,prem_mort(VALUE(LEFT(Options!$B$24,2)),$C122,$E122,$F122,2016,$I122+$J122,1,$H122,$G122*$H122,Options!$B$8)))","v":42.508546542600001},107.61741227209615,107.31500477796573,5362.5753306662291,5347.5063661409704,10952.958049999999,10932.684778483756,107.61741227209615,107.31500477796573,645704.47363257688,643890.02866779431,32175451.983997375,32085038.196845822,65717748.299999997,65596108.670902535,645704.47363257688,643890.02866779431,6000]
[null,"Male 30-34",31.981521999999998,78.061520000000002,"male",2,{"$f":"HLOOKUP(Calculations!$E$2,'Prevalence Rates'!$C$3:$BC$249,'Prevalence Rates'!$BD123,FALSE)","v":0.31980000000000003},{"$f":"HLOOKUP(Calculations!$E$2,'Population 2016'!$C$3:$BC$249,'Population 2016'!BD123,FALSE)","v":37146},0,{"$f":"HLOOKUP(Results!E$4,Targeting!$C$3:$F$249,Targeting!$G123,FALSE)","v":5723},{"$f":"IF(AND(OR(Calculations!$E$2=\"Orkney Health Board\",Calculations!$E$2=\"Orkney Islands Local Authority\"),$F123=1),0,IF(AND(OR(Calculations!$E$2=\"Shetland Health Board\",Calculations!$E$2=\"Western Isles Health Board\",Calculations!$E$2=\"Shetland Islands Local Authority\",Calculations!$E$2=\"Eilean Siar Local Authority\"),OR($F123=1,$F123=5)),0,new_ci(VALUE(LEFT(Options!$B$24,2)),$C123,$E123,$F123,2016,$I123,1,$H123,$G123*$H123,Options!$B$8)))","v":58.388864265000002},{"$f":"IF(AND(OR(Calculations!$E$2=\"Orkney Health Board\",Calculations!$E$2=\"Orkney Islands Local Authority\"),$F123=1),0,IF(AND(OR(Calculations!$E$2=\"Shetland Health Board\",Calculations!$E$2=\"Western Isles Health Board\",Calculations!$E$2=\"Shetland Islands Local Authority\",Calculations!$E$2=\"Eilean Siar Local Authority\"),OR($F123=1,$F123=5)),0,new_ci(VALUE(LEFT(Options!$B$24,2)),$C123,$E123,$F123,2016,$I123+$J123,1,$H123,$G123*$H123,Options!$B$8)))","v":58.224870555400003},{"$f":"IF(AND(OR(Calculations!$E$2=\"Orkney Health Board\",Calculations!$E$2=\"Orkney Islands Local Authority\"),$F123=1),0,IF(AND(OR(Calculations!$E$2=\"Shetland Health Board\",Calculations!$E$2=\"Western Isles Health Board\",Calculations!$E$2=\"Shetland Islands Local Authority\",Calculations!$E$2=\"Eilean Siar Local Authority\"),OR($F123=1,$F123=5)),0,new_yllv2(VALUE(LEFT(Options!$B$24,2)),$C123,$D123,$E123,$F123,2016,$I123,1,$H123,$G123*$H123,Options!$B$8)))","v":2632.1698842884998},{"$f":"IF(AND(OR(Calculations!$E$2=\"Orkney Health Board\",Calculations!$E$2=\"Orkney Islands Local Authority\"),$F123=1),0,IF(AND(OR(Calculations!$E$2=\"Shetland Health Board\",Calculations!$E$2=\"Western Isles Health Board\",Calculations!$E$2=\"Shetland Islands Local Authority\",Calculations!$E$2=\"Eilean Siar Local Authority\"),OR($F123=1,$F123=5)),0,new_yllv2(VALUE(LEFT(Options!$B$24,2)),$C123,$D123,$E123,$F123,2016,$I123+$J123,1,$H123,$G123*$H123,Options!$B$8)))","v":2624.7770481877001},{"$f":"IF(AND(OR(Calculations!$E$2=\"Orkney Health Board\",Calculations!$E$2=\"Orkney Islands Local Authority\"),$F123=1),0,IF(AND(OR(Calculations!$E$2=\"Shetland Health Board\",Calculations!$E$2=\"Western Isles Health Board\",Calculations!$E$2=\"Shetland Islands Local Authority\",Calculations!$E$2=\"Eilean Siar Local Authority\"),OR($F123=1,$F123=5)),0,hosp_count(VALUE(LEFT(Options!$B$24,2)),$C123,$E123,$F123,2016,$I123,1,$H123,$G123*$H123, Options!$B$8)))","v":4862.4564060936},{"$f":"IF(AND(OR(Calculations!$E$2=\"Orkney Health Board\",Calculations!$E$2=\"Orkney Islands Local Authority\"),$F123=1),0,IF(AND(OR(Calculations!$E$2=\"Shetland Health Board\",Calculations!$E$2=\"Western Isles Health Board\",Calculations!$E$2=\"Shetland Islands Local Authority\",Calculations!$E$2=\"Eilean Siar Local Authority\"),OR($F123=1,$F123=5)),0,hosp_count(VALUE(LEFT(Options!$B$24,2)),$C123,$E123,$F123,2016,$I123+$J123,1,$H123,$G123*$H123, Options!$B$8)))","v":4853.4566192468001},{"$f":"IF(AND(OR(Calculations!$E$2=\"Orkney Health Board\",Calculations!$E$2=\"Orkney Islands Local Authority\"),$F123=1),0,IF(AND(OR(Calculations!$E$2=\"Shetland Health Board\",Calculations!$E$2=\"Western Isles Health Board\",Calculations!$E$2=\"Shetland Islands Local Authority\",Calculations!$E$2=\"Eilean Siar Local Authority\"),OR($F123=1,$F123=5)),0,prem_mort(VALUE(LEFT(Options!$B$24,2)),$C123,$E123,$F123,2016,$I123,1,$H123,$G123*$H123,Options!$B$8)))","v":58.388864265000002},{"$f":"IF(AND(OR(Calculations!$E$2=\"Orkney Health Board\",Calculations!$E$2=\"Orkney Islands Local Authority\"),$F123=1),0,IF(AND(OR(Calculations!$E$2=\"Shetland Health Board\",Calculations!$E$2=\"Western Isles Health Board\",Calculations!$E$2=\"Shetland Islands Local Authority\",Calculations!$E$2=\"Eilean Siar Local Authority\"),OR($F123=1,$F123=5)),0,prem_mort(VALUE(LEFT(Options!$B$24,2)),$C123,$E123,$F123,2016,$I123+$J123,1,$H123,$G123*$H123,Options!$B$8)))","v":58.224870555400003},157.18748792602165,156.7460037565283,7086.0116413301566,7066.1095358523135,13090.121159999999,13065.893014717063,157.18748792602165,156.7460037565283,1021718.6715191407,1018849.0244174339,46059075.668646015,45929711.983040035,85085787.539999992,84928304.59566091,1021718.6715191407,1018849.0244174339,6500]
[null,"Male 35-39",36.926009999999998,78.336009999999987,"male",2,{"$f":"HLOOKUP(Calculations!$E$2,'Prevalence Rates'!$C$3:$BC$249,'Prevalence Rates'!$BD124,FALSE)","v":0.34090000000000004},{"$f":"HLOOKUP(Calculations!$E$2,'Population 2016'!$C$3:$BC$249,'Population 2016'!BD124,FALSE)","v":32341},0,{"$f":"HLOOKUP(Results!E$4,Targeting!$C$3:$F$249,Targeting!$G124,FALSE)","v":4983},{"$f":"IF(AND(OR(Calculations!$E$2=\"Orkney Health Board\",Calculations!$E$2=\"Orkney Islands Local Authority\"),$F124=1),0,IF(AND(OR(Calculations!$E$2=\"Shetland Health Board\",Calculations!$E$2=\"Western Isles Health Board\",Calculations!$E$2=\"Shetland Islands Local Authority\",Calculations!$E$2=\"Eilean Siar Local Authority\"),OR($F124=1,$F124=5)),0,new_ci(VALUE(LEFT(Options!$B$24,2)),$C124,$E124,$F124,2016,$I124,1,$H124,$G124*$H124,Options!$B$8)))","v":73.811050172600005},{"$f":"IF(AND(OR(Calculations!$E$2=\"Orkney Health Board\",Calculations!$E$2=\"Orkney Islands Local Authority\"),$F124=1),0,IF(AND(OR(Calculations!$E$2=\"Shetland Health Board\",Calculations!$E$2=\"Western Isles Health Board\",Calculations!$E$2=\"Shetland Islands Local Authority\",Calculations!$E$2=\"Eilean Siar Local Authority\"),OR($F124=1,$F124=5)),0,new_ci(VALUE(LEFT(Options!$B$24,2)),$C124,$E124,$F124,2016,$I124+$J124,1,$H124,$G124*$H124,Options!$B$8)))","v":73.606864273100001},{"$f":"IF(AND(OR(Calculations!$E$2=\"Orkney Health Board\",Calculations!$E$2=\"Orkney Islands Local Authority\"),$F124=1),0,IF(AND(OR(Calculations!$E$2=\"Shetland Health Board\",Calculations!$E$2=\"Western Isles Health Board\",Calculations!$E$2=\"Shetland Islands Local Authority\",Calculations!$E$2=\"Eilean Siar Local Authority\"),OR($F124=1,$F124=5)),0,new_yllv2(VALUE(LEFT(Options!$B$24,2)),$C124,$D124,$E124,$F124,2016,$I124,1,$H124,$G124*$H124,Options!$B$8)))","v":2982.7045374748},{"$f":"IF(AND(OR(Calculations!$E$2=\"Orkney Health Board\",Calculations!$E$2=\"Orkney Islands Local Authority\"),$F124=1),0,IF(AND(OR(Calculations!$E$2=\"Shetland Health Board\",Calculations!$E$2=\"Western Isles Health Board\",Calculations!$E$2=\"Shetland Islands Local Authority\",Calculations!$E$2=\"Eilean Siar Local Authority\"),OR($F124=1,$F124=5)),0,new_yllv2(VALUE(LEFT(Options!$B$24,2)),$C124,$D124,$E124,$F124,2016,$I124+$J124,1,$H124,$G124*$H124,Options!$B$8)))","v":2974.4533852760001},{"$f":"IF(AND(OR(Calculations!$E$2=\"Orkney Health Board\",Calculations!$E$2=\"Orkney Islands Local Authority\"),$F124=1),0,IF(AND(OR(Calculations!$E$2=\"Shetland Health Board\",Calculations!$E$2=\"Western Isles Health Board\",Calculations!$E$2=\"Shetland Islands Local Authority\",Calculations!$E$2=\"Eilean Siar Local Authority\"),OR($F124=1,$F124=5)),0,hosp_count(VALUE(LEFT(Options!$B$24,2)),$C124,$E124,$F124,2016,$I124,1,$H124,$G124*$H124, Options!$B$8)))","v":5045.6624380724998},{"$f":"IF(AND(OR(Calculations!$E$2=\"Orkney Health Board\",Calculations!$E$2=\"Orkney Islands Local Authority\"),$F124=1),0,IF(AND(OR(Calculations!$E$2=\"Shetland Health Board\",Calculations!$E$2=\"Western Isles Health Board\",Calculations!$E$2=\"Shetland Islands Local Authority\",Calculations!$E$2=\"Eilean Siar Local Authority\"),OR($F124=1,$F124=5)),0,hosp_count(VALUE(LEFT(Options!$B$24,2)),$C124,$E124,$F124,2016,$I124+$J124,1,$H124,$G124*$H124, Options!$B$8)))","v":5036.4042947127},{"$f":"IF(AND(OR(Calculations!$E$2=\"Orkney Health Board\",Calculations!$E$2=\"Orkney Islands Local Authority\"),$F124=1),0,IF(AND(OR(Calculations!$E$2=\"Shetland Health Board\",Calculations!$E$2=\"Western Isles Health Board\",Calculations!$E$2=\"Shetland Islands Local Authority\",Calculations!$E$2=\"Eilean Siar Local Authority\"),OR($F124=1,$F124=5)),0,prem_mort(VALUE(LEFT(Options!$B$24,2)),$C124,$E124,$F124,2016,$I124,1,$H124,$G124*$H124,Options!$B$8)))","v":73.811050172600005},{"$f":"IF(AND(OR(Calculations!$E$2=\"Orkney Health Board\",Calculations!$E$2=\"Orkney Islands Local Authority\"),$F124=1),0,IF(AND(OR(Calculations!$E$2=\"Shetland Health Board\",Calculations!$E$2=\"Western Isles Health Board\",Calculations!$E$2=\"Shetland Islands Local Authority\",Calculations!$E$2=\"Eilean Siar Local Authority\"),OR($F124=1,$F124=5)),0,prem_mort(VALUE(LEFT(Options!$B$24,2)),$C124,$E124,$F124,2016,$I124+$J124,1,$H124,$G124*$H124,Options!$B$8)))","v":73.606864273100001},228.22748267709719,227.59612959741506,9222.6725749816014,9197.1595970316321,15601.442249999998,15572.815604689713,228.22748267709719,227.59612959741506,1597592.3787396804,1593172.9071819053,{"$f":"U124*$AI124","v":64558708.024871208},{"$f":"V124*$AI124","v":64380117.179221421},{"$f":"W124*$AI124","v":109210095.74999999},{"$f":"X124*$AI124","v":109009709.23282799},{"$f":"Y124*$AI124","v":1597592.3787396804},{"$f":"Z124*$AI124","v":1593172.9071819053},7000]
[null,"Male 40-44",42.067703000000002,78.907700000000006,"male",2,{"$f":"HLOOKUP(Calculations!$E$2,'Prevalence Rates'!$C$3:$BC$249,'Prevalence Rates'!$BD125,FALSE)","v":0.34090000000000004},{"$f":"HLOOKUP(Calculations!$E$2,'Population 2016'!$C$3:$BC$249,'Population 2016'!BD125,FALSE)","v":32014},0,{"$f":"HLOOKUP(Results!E$4,Targeting!$C$3:$F$249,Targeting!$G125,FALSE)","v":4933},{"$f":"IF(AND(OR(Calculations!$E$2=\"Orkney Health Board\",Calculations!$E$2=\"Orkney Islands Local Authority\"),$F125=1),0,IF(AND(OR(Calculations!$E$2=\"Shetland Health Board\",Calculations!$E$2=\"Western Isles Health Board\",Calculations!$E$2=\"Shetland Islands Local Authority\",Calculations!$E$2=\"Eilean Siar Local Authority\"),OR($F125=1,$F125=5)),0,new_ci(VALUE(LEFT(Options!$B$24,2)),$C125,$E125,$F125,2016,$I125,1,$H125,$G125*$H125,Options!$B$8)))","v":107.6551198013},{"$f":"IF(AND(OR(Calculations!$E$2=\"Orkney Health Board\",Calculations!$E$2=\"Orkney Islands Local Authority\"),$F125=1),0,IF(AND(OR(Calculations!$E$2=\"Shetland Health Board\",Calculations!$E$2=\"Western Isles Health Board\",Calculations!$E$2=\"Shetland Islands Local Authority\",Calculations!$E$2=\"Eilean Siar Local Authority\"),OR($F125=1,$F125=5)),0,new_ci(VALUE(LEFT(Options!$B$24,2)),$C125,$E125,$F125,2016,$I125+$J125,1,$H125,$G125*$H125,Options!$B$8)))","v":107.3575740671},{"$f":"IF(AND(OR(Calculations!$E$2=\"Orkney Health Board\",Calculations!$E$2=\"Orkney Islands Local Authority\"),$F125=1),0,IF(AND(OR(Calculations!$E$2=\"Shetland Health Board\",Calculations!$E$2=\"Western Isles Health Board\",Calculations!$E$2=\"Shetland Islands Local Authority\",Calculations!$E$2=\"Eilean Siar Local Authority\"),OR($F125=1,$F125=5)),0,new_yllv2(VALUE(LEFT(Options!$B$24,2)),$C125,$D125,$E125,$F125,2016,$I125,1,$H125,$G125*$H125,Options!$B$8)))","v":3858.3591707132},{"$f":"IF(AND(OR(Calculations!$E$2=\"Orkney Health Board\",Calculations!$E$2=\"Orkney Islands Local Authority\"),$F125=1),0,IF(AND(OR(Calculations!$E$2=\"Shetland Health Board\",Calculations!$E$2=\"Western Isles Health Board\",Calculations!$E$2=\"Shetland Islands Local Authority\",Calculations!$E$2=\"Eilean Siar Local Authority\"),OR($F125=1,$F125=5)),0,new_yllv2(VALUE(LEFT(Options!$B$24,2)),$C125,$D125,$E125,$F125,2016,$I125+$J125,1,$H125,$G125*$H125,Options!$B$8)))","v":3847.6951324921001},{"$f":"IF(AND(OR(Calculations!$E$2=\"Orkney Health Board\",Calculations!$E$2=\"Orkney Islands Local Authority\"),$F125=1),0,IF(AND(OR(Calculations!$E$2=\"Shetland Health Board\",Calculations!$E$2=\"Western Isles Health Board\",Calculations!$E$2=\"Shetland Islands Local Authority\",Calculations!$E$2=\"Eilean Siar Local Authority\"),OR($F125=1,$F125=5)),0,hosp_count(VALUE(LEFT(Options!$B$24,2)),$C125,$E125,$F125,2016,$I125,1,$H125,$G125*$H125, Options!$B$8)))","v":5994.6765736841999},{"$f":"IF(AND(OR(Calculations!$E$2=\"Orkney Health Board\",Calculations!$E$2=\"Orkney Islands Local Authority\"),$F125=1),0,IF(AND(OR(Calculations!$E$2=\"Shetland Health Board\",Calculations!$E$2=\"Western Isles Health Board\",Calculations!$E$2=\"Shetland Islands Local Authority\",Calculations!$E$2=\"Eilean Siar Local Authority\"),OR($F125=1,$F125=5)),0,hosp_count(VALUE(LEFT(Options!$B$24,2)),$C125,$E125,$F125,2016,$I125+$J125,1,$H125,$G125*$H125, Options!$B$8)))","v":5983.6762564754999},{"$f":"IF(AND(OR(Calculations!$E$2=\"Orkney Health Board\",Calculations!$E$2=\"Orkney Islands Local Authority\"),$F125=1),0,IF(AND(OR(Calculations!$E$2=\"Shetland Health Board\",Calculations!$E$2=\"Western Isles Health Board\",Calculations!$E$2=\"Shetland Islands Local Authority\",Calculations!$E$2=\"Eilean Siar Local Authority\"),OR($F125=1,$F125=5)),0,prem_mort(VALUE(LEFT(Options!$B$24,2)),$C125,$E125,$F125,2016,$I125,1,$H125,$G125*$H125,Options!$B$8)))","v":107.6551198013},{"$f":"IF(AND(OR(Calculations!$E$2=\"Orkney Health Board\",Calculations!$E$2=\"Orkney Islands Local Authority\"),$F125=1),0,IF(AND(OR(Calculations!$E$2=\"Shetland Health Board\",Calculations!$E$2=\"Western Isles Health Board\",Calculations!$E$2=\"Shetland Islands Local Authority\",Calculations!$E$2=\"Eilean Siar Local Authority\"),OR($F125=1,$F125=5)),0,prem_mort(VALUE(LEFT(Options!$B$24,2)),$C125,$E125,$F125,2016,$I125+$J125,1,$H125,$G125*$H125,Options!$B$8)))","v":107.3575740671},{"$f":"K125*100000/$H125","v":336.27512901012057},{"$f":"L125*100000/$H125","v":335.34570521365657},{"$f":"M125*100000/$H125","v":12052.099614897232},{"$f":"N125*100000/$H125","v":12018.789068820204},{"$f":"O125*100000/$H125","v":18725.172030000002},{"$f":"P125*100000/$H125","v":18690.811071642092},{"$f":"Q125*100000/$H125","v":336.27512901012057},{"$f":"R125*100000/$H125","v":335.34570521365657},{"$f":"S125*$AI125","v":2353925.9030708438},{"$f":"T125*$AI125","v":2347419.9364955961},84364697.304280624,84131523.481741428,131076204.21000001,130835677.50149465,2353925.9030708438,2347419.9364955961,7000]
[null,"Male 45-49",47.038155000000003,79.418149999999997,"male",2,{"$f":"HLOOKUP(Calculations!$E$2,'Prevalence Rates'!$C$3:$BC$249,'Prevalence Rates'!$BD126,FALSE)","v":0.36699999999999999},{"$f":"HLOOKUP(Calculations!$E$2,'Population 2016'!$C$3:$BC$249,'Population 2016'!BD126,FALSE)","v":36688},0,{"$f":"HLOOKUP(Results!E$4,Targeting!$C$3:$F$249,Targeting!$G126,FALSE)","v":5653},{"$f":"IF(AND(OR(Calculations!$E$2=\"Orkney Health Board\",Calculations!$E$2=\"Orkney Islands Local Authority\"),$F126=1),0,IF(AND(OR(Calculations!$E$2=\"Shetland Health Board\",Calculations!$E$2=\"Western Isles Health Board\",Calculations!$E$2=\"Shetland Islands Local Authority\",Calculations!$E$2=\"Eilean Siar Local Authority\"),OR($F126=1,$F126=5)),0,new_ci(VALUE(LEFT(Options!$B$24,2)),$C126,$E126,$F126,2016,$I126,1,$H126,$G126*$H126,Options!$B$8)))","v":179.4002942514},{"$f":"IF(AND(OR(Calculations!$E$2=\"Orkney Health Board\",Calculations!$E$2=\"Orkney Islands Local Authority\"),$F126=1),0,IF(AND(OR(Calculations!$E$2=\"Shetland Health Board\",Calculations!$E$2=\"Western Isles Health Board\",Calculations!$E$2=\"Shetland Islands Local Authority\",Calculations!$E$2=\"Eilean Siar Local Authority\"),OR($F126=1,$F126=5)),0,new_ci(VALUE(LEFT(Options!$B$24,2)),$C126,$E126,$F126,2016,$I126+$J126,1,$H126,$G126*$H126,Options!$B$8)))","v":178.91383381590001},{"$f":"IF(AND(OR(Calculations!$E$2=\"Orkney Health Board\",Calculations!$E$2=\"Orkney Islands Local Authority\"),$F126=1),0,IF(AND(OR(Calculations!$E$2=\"Shetland Health Board\",Calculations!$E$2=\"Western Isles Health Board\",Calculations!$E$2=\"Shetland Islands Local Authority\",Calculations!$E$2=\"Eilean Siar Local Authority\"),OR($F126=1,$F126=5)),0,new_yllv2(VALUE(LEFT(Options!$B$24,2)),$C126,$D126,$E126,$F126,2016,$I126,1,$H126,$G126*$H126,Options!$B$8)))","v":5629.5803366074997},{"$f":"IF(AND(OR(Calculations!$E$2=\"Orkney Health Board\",Calculations!$E$2=\"Orkney Islands Local Authority\"),$F126=1),0,IF(AND(OR(Calculations!$E$2=\"Shetland Health Board\",Calculations!$E$2=\"Western Isles Health Board\",Calculations!$E$2=\"Shetland Islands Local Authority\",Calculations!$E$2=\"Eilean Siar Local Authority\"),OR($F126=1,$F126=5)),0,new_yllv2(VALUE(LEFT(Options!$B$24,2)),$C126,$D126,$E126,$F126,2016,$I126+$J126,1,$H126,$G126*$H126,Options!$B$8)))","v":5614.3152105738},{"$f":"IF(AND(OR(Calculations!$E$2=\"Orkney Health Board\",Calculations!$E$2=\"Orkney Islands Local Authority\"),$F126=1),0,IF(AND(OR(Calculations!$E$2=\"Shetland Health Board\",Calculations!$E$2=\"Western Isles Health Board\",Calculations!$E$2=\"Shetland Islands Local Authority\",Calculations!$E$2=\"Eilean Siar Local Authority\"),OR($F126=1,$F126=5)),0,hosp_count(VALUE(LEFT(Options!$B$24,2)),$C126,$E126,$F126,2016,$I126,1,$H126,$G126*$H126, Options!$B$8)))","v":8195.4193310032006},{"$f":"IF(AND(OR(Calculations!$E$2=\"Orkney Health Board\",Calculations!$E$2=\"Orkney Islands Local Authority\"),$F126=1),0,IF(AND(OR(Calculations!$E$2=\"Shetland Health Board\",Calculations!$E$2=\"Western Isles Health Board\",Calculations!$E$2=\"Shetland Islands Local Authority\",Calculations!$E$2=\"Eilean Siar Local Authority\"),OR($F126=1,$F126=5)),0,hosp_count(VALUE(LEFT(Options!$B$24,2)),$C126,$E126,$F126,2016,$I126+$J126,1,$H126,$G126*$H126, Options!$B$8)))","v":8180.5413620838999},{"$f":"IF(AND(OR(Calculations!$E$2=\"Orkney Health Board\",Calculations!$E$2=\"Orkney Islands Local Authority\"),$F126=1),0,IF(AND(OR(Calculations!$E$2=\"Shetland Health Board\",Calculations!$E$2=\"Western Isles Health Board\",Calculations!$E$2=\"Shetland Islands Local Authority\",Calculations!$E$2=\"Eilean Siar Local Authority\"),OR($F126=1,$F126=5)),0,prem_mort(VALUE(LEFT(Options!$B$24,2)),$C126,$E126,$F126,2016,$I126,1,$H126,$G126*$H126,Options!$B$8)))","v":179.4002942514},{"$f":"IF(AND(OR(Calculations!$E$2=\"Orkney Health Board\",Calculations!$E$2=\"Orkney Islands Local Authority\"),$F126=1),0,IF(AND(OR(Calculations!$E$2=\"Shetland Health Board\",Calculations!$E$2=\"Western Isles Health Board\",Calculations!$E$2=\"Shetland Islands Local Authority\",Calculations!$E$2=\"Eilean Siar Local Authority\"),OR($F126=1,$F126=5)),0,prem_mort(VALUE(LEFT(Options!$B$24,2)),$C126,$E126,$F126,2016,$I126+$J126,1,$H126,$G126*$H126,Options!$B$8)))","v":178.91383381590001},488.98902706988662,487.66308824656568,15344.47322450801,15302.865270861861,22338.146890000004,22297.594205418394,488.98902706988662,487.66308824656568,3422923.1894892063,3413641.61772596,107411312.57155608,107120056.89603303,156367028.23000002,156083159.43792877,3422923.1894892063,3413641.61772596,7000]
[null,"Male 50-54",51.998646000000001,79.988649999999993,"male",2,{"$f":"HLOOKUP(Calculations!$E$2,'Prevalence Rates'!$C$3:$BC$249,'Prevalence Rates'!$BD127,FALSE)","v":0.36699999999999999},{"$f":"HLOOKUP(Calculations!$E$2,'Population 2016'!$C$3:$BC$249,'Population 2016'!BD127,FALSE)","v":37819},0,{"$f":"HLOOKUP(Results!E$4,Targeting!$C$3:$F$249,Targeting!$G127,FALSE)","v":5827},{"$f":"IF(AND(OR(Calculations!$E$2=\"Orkney Health Board\",Calculations!$E$2=\"Orkney Islands Local Authority\"),$F127=1),0,IF(AND(OR(Calculations!$E$2=\"Shetland Health Board\",Calculations!$E$2=\"Western Isles Health Board\",Calculations!$E$2=\"Shetland Islands Local Authority\",Calculations!$E$2=\"Eilean Siar Local Authority\"),OR($F127=1,$F127=5)),0,new_ci(VALUE(LEFT(Options!$B$24,2)),$C127,$E127,$F127,2016,$I127,1,$H127,$G127*$H127,Options!$B$8)))","v":268.6090457601},{"$f":"IF(AND(OR(Calculations!$E$2=\"Orkney Health Board\",Calculations!$E$2=\"Orkney Islands Local Authority\"),$F127=1),0,IF(AND(OR(Calculations!$E$2=\"Shetland Health Board\",Calculations!$E$2=\"Western Isles Health Board\",Calculations!$E$2=\"Shetland Islands Local Authority\",Calculations!$E$2=\"Eilean Siar Local Authority\"),OR($F127=1,$F127=5)),0,new_ci(VALUE(LEFT(Options!$B$24,2)),$C127,$E127,$F127,2016,$I127+$J127,1,$H127,$G127*$H127,Options!$B$8)))","v":267.8821263447},{"$f":"IF(AND(OR(Calculations!$E$2=\"Orkney Health Board\",Calculations!$E$2=\"Orkney Islands Local Authority\"),$F127=1),0,IF(AND(OR(Calculations!$E$2=\"Shetland Health Board\",Calculations!$E$2=\"Western Isles Health Board\",Calculations!$E$2=\"Shetland Islands Local Authority\",Calculations!$E$2=\"Eilean Siar Local Authority\"),OR($F127=1,$F127=5)),0,new_yllv2(VALUE(LEFT(Options!$B$24,2)),$C127,$D127,$E127,$F127,2016,$I127,1,$H127,$G127*$H127,Options!$B$8)))","v":7249.7592195013003},{"$f":"IF(AND(OR(Calculations!$E$2=\"Orkney Health Board\",Calculations!$E$2=\"Orkney Islands Local Authority\"),$F127=1),0,IF(AND(OR(Calculations!$E$2=\"Shetland Health Board\",Calculations!$E$2=\"Western Isles Health Board\",Calculations!$E$2=\"Shetland Islands Local Authority\",Calculations!$E$2=\"Eilean Siar Local Authority\"),OR($F127=1,$F127=5)),0,new_yllv2(VALUE(LEFT(Options!$B$24,2)),$C127,$D127,$E127,$F127,2016,$I127+$J127,1,$H127,$G127*$H127,Options!$B$8)))","v":7230.1396615719996},{"$f":"IF(AND(OR(Calculations!$E$2=\"Orkney Health Board\",Calculations!$E$2=\"Orkney Islands Local Authority\"),$F127=1),0,IF(AND(OR(Calculations!$E$2=\"Shetland Health Board\",Calculations!$E$2=\"Western Isles Health Board\",Calculations!$E$2=\"Shetland Islands Local Authority\",Calculations!$E$2=\"Eilean Siar Local Authority\"),OR($F127=1,$F127=5)),0,hosp_count(VALUE(LEFT(Options!$B$24,2)),$C127,$E127,$F127,2016,$I127,1,$H127,$G127*$H127, Options!$B$8)))","v":10074.533773875301},{"$f":"IF(AND(OR(Calculations!$E$2=\"Orkney Health Board\",Calculations!$E$2=\"Orkney Islands Local Authority\"),$F127=1),0,IF(AND(OR(Calculations!$E$2=\"Shetland Health Board\",Calculations!$E$2=\"Western Isles Health Board\",Calculations!$E$2=\"Shetland Islands Local Authority\",Calculations!$E$2=\"Eilean Siar Local Authority\"),OR($F127=1,$F127=5)),0,hosp_count(VALUE(LEFT(Options!$B$24,2)),$C127,$E127,$F127,2016,$I127+$J127,1,$H127,$G127*$H127, Options!$B$8)))","v":10056.245300540801},{"$f":"IF(AND(OR(Calculations!$E$2=\"Orkney Health Board\",Calculations!$E$2=\"Orkney Islands Local Authority\"),$F127=1),0,IF(AND(OR(Calculations!$E$2=\"Shetland Health Board\",Calculations!$E$2=\"Western Isles Health Board\",Calculations!$E$2=\"Shetland Islands Local Authority\",Calculations!$E$2=\"Eilean Siar Local Authority\"),OR($F127=1,$F127=5)),0,prem_mort(VALUE(LEFT(Options!$B$24,2)),$C127,$E127,$F127,2016,$I127,1,$H127,$G127*$H127,Options!$B$8)))","v":268.6090457601},{"$f":"IF(AND(OR(Calculations!$E$2=\"Orkney Health Board\",Calculations!$E$2=\"Orkney Islands Local Authority\"),$F127=1),0,IF(AND(OR(Calculations!$E$2=\"Shetland Health Board\",Calculations!$E$2=\"Western Isles Health Board\",Calculations!$E$2=\"Shetland Islands Local Authority\",Calculations!$E$2=\"Eilean Siar Local Authority\"),OR($F127=1,$F127=5)),0,prem_mort(VALUE(LEFT(Options!$B$24,2)),$C127,$E127,$F127,2016,$I127+$J127,1,$H127,$G127*$H127,Options!$B$8)))","v":267.8821263447},710.248937729977,708.32683662894317,19169.621670327877,19117.744153922631,26638.815870000002,26590.457972291177,710.248937729977,708.32683662894317,4971742.5641098386,4958287.856402602,134187351.69229513,133824209.07745841,186471711.09,186133205.80603823,4971742.5641098386,4958287.856402602,7000]
[null,"Male 55-59",56.950867000000002,80.660870000000003,"male",2,{"$f":"HLOOKUP(Calculations!$E$2,'Prevalence Rates'!$C$3:$BC$249,'Prevalence Rates'!$BD128,FALSE)","v":0.2838},{"$f":"HLOOKUP(Calculations!$E$2,'Population 2016'!$C$3:$BC$249,'Population 2016'!BD128,FALSE)","v":35036},0,{"$f":"HLOOKUP(Results!E$4,Targeting!$C$3:$F$249,Targeting!$G128,FALSE)","v":5398},{"$f":"IF(AND(OR(Calculations!$E$2=\"Orkney Health Board\",Calculations!$E$2=\"Orkney Islands Local Authority\"),$F128=1),0,IF(AND(OR(Calculations!$E$2=\"Shetland Health Board\",Calculations!$E$2=\"Western Isles Health Board\",Calculations!$E$2=\"Shetland Islands Local Authority\",Calculations!$E$2=\"Eilean Siar Local Authority\"),OR($F128=1,$F128=5)),0,new_ci(VALUE(LEFT(Options!$B$24,2)),$C128,$E128,$F128,2016,$I128,1,$H128,$G128*$H128,Options!$B$8)))","v":361.0182041466},{"$f":"IF(AND(OR(Calculations!$E$2=\"Orkney Health Board\",Calculations!$E$2=\"Orkney Islands Local Authority\"),$F128=1),0,IF(AND(OR(Calculations!$E$2=\"Shetland Health Board\",Calculations!$E$2=\"Western Isles Health Board\",Calculations!$E$2=\"Shetland Islands Local Authority\",Calculations!$E$2=\"Eilean Siar Local Authority\"),OR($F128=1,$F128=5)),0,new_ci(VALUE(LEFT(Options!$B$24,2)),$C128,$E128,$F128,2016,$I128+$J128,1,$H128,$G128*$H128,Options!$B$8)))","v":359.98678399559998},{"$f":"IF(AND(OR(Calculations!$E$2=\"Orkney Health Board\",Calculations!$E$2=\"Orkney Islands Local Authority\"),$F128=1),0,IF(AND(OR(Calculations!$E$2=\"Shetland Health Board\",Calculations!$E$2=\"Western Isles Health Board\",Calculations!$E$2=\"Shetland Islands Local Authority\",Calculations!$E$2=\"Eilean Siar Local Authority\"),OR($F128=1,$F128=5)),0,new_yllv2(VALUE(LEFT(Options!$B$24,2)),$C128,$D128,$E128,$F128,2016,$I128,1,$H128,$G128*$H128,Options!$B$8)))","v":8198.7244992238993},{"$f":"IF(AND(OR(Calculations!$E$2=\"Orkney Health Board\",Calculations!$E$2=\"Orkney Islands Local Authority\"),$F128=1),0,IF(AND(OR(Calculations!$E$2=\"Shetland Health Board\",Calculations!$E$2=\"Western Isles Health Board\",Calculations!$E$2=\"Shetland Islands Local Authority\",Calculations!$E$2=\"Eilean Siar Local Authority\"),OR($F128=1,$F128=5)),0,new_yllv2(VALUE(LEFT(Options!$B$24,2)),$C128,$D128,$E128,$F128,2016,$I128+$J128,1,$H128,$G128*$H128,Options!$B$8)))","v":8175.3009445004},{"$f":"IF(AND(OR(Calculations!$E$2=\"Orkney Health Board\",Calculations!$E$2=\"Orkney Islands Local Authority\"),$F128=1),0,IF(AND(OR(Calculations!$E$2=\"Shetland Health Board\",Calculations!$E$2=\"Western Isles Health Board\",Calculations!$E$2=\"Shetland Islands Local Authority\",Calculations!$E$2=\"Eilean Siar Local Authority\"),OR($F128=1,$F128=5)),0,hosp_count(VALUE(LEFT(Options!$B$24,2)),$C128,$E128,$F128,2016,$I128,1,$H128,$G128*$H128, Options!$B$8)))","v":11126.785665237599},{"$f":"IF(AND(OR(Calculations!$E$2=\"Orkney Health Board\",Calculations!$E$2=\"Orkney Islands Local Authority\"),$F128=1),0,IF(AND(OR(Calculations!$E$2=\"Shetland Health Board\",Calculations!$E$2=\"Western Isles Health Board\",Calculations!$E$2=\"Shetland Islands Local Authority\",Calculations!$E$2=\"Eilean Siar Local Authority\"),OR($F128=1,$F128=5)),0,hosp_count(VALUE(LEFT(Options!$B$24,2)),$C128,$E128,$F128,2016,$I128+$J128,1,$H128,$G128*$H128, Options!$B$8)))","v":11105.8778786315},{"$f":"IF(AND(OR(Calculations!$E$2=\"Orkney Health Board\",Calculations!$E$2=\"Orkney Islands Local Authority\"),$F128=1),0,IF(AND(OR(Calculations!$E$2=\"Shetland Health Board\",Calculations!$E$2=\"Western Isles Health Board\",Calculations!$E$2=\"Shetland Islands Local Authority\",Calculations!$E$2=\"Eilean Siar Local Authority\"),OR($F128=1,$F128=5)),0,prem_mort(VALUE(LEFT(Options!$B$24,2)),$C128,$E128,$F128,2016,$I128,1,$H128,$G128*$H128,Options!$B$8)))","v":361.0182041466},{"$f":"IF(AND(OR(Calculations!$E$2=\"Orkney Health Board\",Calculations!$E$2=\"Orkney Islands Local Authority\"),$F128=1),0,IF(AND(OR(Calculations!$E$2=\"Shetland Health Board\",Calculations!$E$2=\"Western Isles Health Board\",Calculations!$E$2=\"Shetland Islands Local Authority\",Calculations!$E$2=\"Eilean Siar Local Authority\"),OR($F128=1,$F128=5)),0,prem_mort(VALUE(LEFT(Options!$B$24,2)),$C128,$E128,$F128,2016,$I128+$J128,1,$H128,$G128*$H128,Options!$B$8)))","v":359.98678399559998},1030.4207219619821,1027.4768352426074,23400.857687018779,23334.002010790045,31758.150659999996,31698.475506997085,1030.4207219619821,1027.4768352426074,6697734.6927528838,6678599.4290769482,152105574.96562207,151671013.0701353,206427979.28999996,206040090.79548106,6697734.6927528838,6678599.4290769482,6500]
[null,"Male 60-64",61.942988999999997,81.612989999999996,"male",2,{"$f":"HLOOKUP(Calculations!$E$2,'Prevalence Rates'!$C$3:$BC$249,'Prevalence Rates'!$BD129,FALSE)","v":0.2838},{"$f":"HLOOKUP(Calculations!$E$2,'Population 2016'!$C$3:$BC$249,'Population 2016'!BD129,FALSE)","v":29980},0,{"$f":"HLOOKUP(Results!E$4,Targeting!$C$3:$F$249,Targeting!$G129,FALSE)","v":4619},{"$f":"IF(AND(OR(Calculations!$E$2=\"Orkney Health Board\",Calculations!$E$2=\"Orkney Islands Local Authority\"),$F129=1),0,IF(AND(OR(Calculations!$E$2=\"Shetland Health Board\",Calculations!$E$2=\"Western Isles Health Board\",Calculations!$E$2=\"Shetland Islands Local Authority\",Calculations!$E$2=\"Eilean Siar Local Authority\"),OR($F129=1,$F129=5)),0,new_ci(VALUE(LEFT(Options!$B$24,2)),$C129,$E129,$F129,2016,$I129,1,$H129,$G129*$H129,Options!$B$8)))","v":449.15388691390001},{"$f":"IF(AND(OR(Calculations!$E$2=\"Orkney Health Board\",Calculations!$E$2=\"Orkney Islands Local Authority\"),$F129=1),0,IF(AND(OR(Calculations!$E$2=\"Shetland Health Board\",Calculations!$E$2=\"Western Isles Health Board\",Calculations!$E$2=\"Shetland Islands Local Authority\",Calculations!$E$2=\"Eilean Siar Local Authority\"),OR($F129=1,$F129=5)),0,new_ci(VALUE(LEFT(Options!$B$24,2)),$C129,$E129,$F129,2016,$I129+$J129,1,$H129,$G129*$H129,Options!$B$8)))","v":447.87646458810002},{"$f":"IF(AND(OR(Calculations!$E$2=\"Orkney Health Board\",Calculations!$E$2=\"Orkney Islands Local Authority\"),$F129=1),0,IF(AND(OR(Calculations!$E$2=\"Shetland Health Board\",Calculations!$E$2=\"Western Isles Health Board\",Calculations!$E$2=\"Shetland Islands Local Authority\",Calculations!$E$2=\"Eilean Siar Local Authority\"),OR($F129=1,$F129=5)),0,new_yllv2(VALUE(LEFT(Options!$B$24,2)),$C129,$D129,$E129,$F129,2016,$I129,1,$H129,$G129*$H129,Options!$B$8)))","v":8385.7035178364004},{"$f":"IF(AND(OR(Calculations!$E$2=\"Orkney Health Board\",Calculations!$E$2=\"Orkney Islands Local Authority\"),$F129=1),0,IF(AND(OR(Calculations!$E$2=\"Shetland Health Board\",Calculations!$E$2=\"Western Isles Health Board\",Calculations!$E$2=\"Shetland Islands Local Authority\",Calculations!$E$2=\"Eilean Siar Local Authority\"),OR($F129=1,$F129=5)),0,new_yllv2(VALUE(LEFT(Options!$B$24,2)),$C129,$D129,$E129,$F129,2016,$I129+$J129,1,$H129,$G129*$H129,Options!$B$8)))","v":8361.8540417363001},{"$f":"IF(AND(OR(Calculations!$E$2=\"Orkney Health Board\",Calculations!$E$2=\"Orkney Islands Local Authority\"),$F129=1),0,IF(AND(OR(Calculations!$E$2=\"Shetland Health Board\",Calculations!$E$2=\"Western Isles Health Board\",Calculations!$E$2=\"Shetland Islands Local Authority\",Calculations!$E$2=\"Eilean Siar Local Authority\"),OR($F129=1,$F129=5)),0,hosp_count(VALUE(LEFT(Options!$B$24,2)),$C129,$E129,$F129,2016,$I129,1,$H129,$G129*$H129, Options!$B$8)))","v":11366.904471358001},{"$f":"IF(AND(OR(Calculations!$E$2=\"Orkney Health Board\",Calculations!$E$2=\"Orkney Islands Local Authority\"),$F129=1),0,IF(AND(OR(Calculations!$E$2=\"Shetland Health Board\",Calculations!$E$2=\"Western Isles Health Board\",Calculations!$E$2=\"Shetland Islands Local Authority\",Calculations!$E$2=\"Eilean Siar Local Authority\"),OR($F129=1,$F129=5)),0,hosp_count(VALUE(LEFT(Options!$B$24,2)),$C129,$E129,$F129,2016,$I129+$J129,1,$H129,$G129*$H129, Options!$B$8)))","v":11345.5455895256},{"$f":"IF(AND(OR(Calculations!$E$2=\"Orkney Health Board\",Calculations!$E$2=\"Orkney Islands Local Authority\"),$F129=1),0,IF(AND(OR(Calculations!$E$2=\"Shetland Health Board\",Calculations!$E$2=\"Western Isles Health Board\",Calculations!$E$2=\"Shetland Islands Local Authority\",Calculations!$E$2=\"Eilean Siar Local Authority\"),OR($F129=1,$F129=5)),0,prem_mort(VALUE(LEFT(Options!$B$24,2)),$C129,$E129,$F129,2016,$I129,1,$H129,$G129*$H129,Options!$B$8)))","v":449.15388691390001},{"$f":"IF(AND(OR(Calculations!$E$2=\"Orkney Health Board\",Calculations!$E$2=\"Orkney Islands Local Authority\"),$F129=1),0,IF(AND(OR(Calculations!$E$2=\"Shetland Health Board\",Calculations!$E$2=\"Western Isles Health Board\",Calculations!$E$2=\"Shetland Islands Local Authority\",Calculations!$E$2=\"Eilean Siar Local Authority\"),OR($F129=1,$F129=5)),0,prem_mort(VALUE(LEFT(Options!$B$24,2)),$C129,$E129,$F129,2016,$I129+$J129,1,$H129,$G129*$H129,Options!$B$8)))","v":447.87646458810002},1498.1784086521013,1493.9174936227485,27970.992387713144,27891.441099854237,37914.958210000004,37843.714441379583,1498.1784086521013,1493.9174936227485,8989070.451912608,8963504.9617364909,167825954.32627887,167348646.59912542,227489749.26000002,227062286.64827749,8989070.451912608,8963504.9617364909,6000]
[null,"Male 65-69",67.054419999999993,82.954419999999999,"male",2,{"$f":"HLOOKUP(Calculations!$E$2,'Prevalence Rates'!$C$3:$BC$249,'Prevalence Rates'!$BD130,FALSE)","v":0.21840000000000001},{"$f":"HLOOKUP(Calculations!$E$2,'Population 2016'!$C$3:$BC$249,'Population 2016'!BD130,FALSE)","v":29727},0,{"$f":"HLOOKUP(Results!E$4,Targeting!$C$3:$F$249,Targeting!$G130,FALSE)","v":4580},{"$f":"IF(AND(OR(Calculations!$E$2=\"Orkney Health Board\",Calculations!$E$2=\"Orkney Islands Local Authority\"),$F130=1),0,IF(AND(OR(Calculations!$E$2=\"Shetland Health Board\",Calculations!$E$2=\"Western Isles Health Board\",Calculations!$E$2=\"Shetland Islands Local Authority\",Calculations!$E$2=\"Eilean Siar Local Authority\"),OR($F130=1,$F130=5)),0,new_ci(VALUE(LEFT(Options!$B$24,2)),$C130,$E130,$F130,2016,$I130,1,$H130,$G130*$H130,Options!$B$8)))","v":652.60351460460004},{"$f":"IF(AND(OR(Calculations!$E$2=\"Orkney Health Board\",Calculations!$E$2=\"Orkney Islands Local Authority\"),$F130=1),0,IF(AND(OR(Calculations!$E$2=\"Shetland Health Board\",Calculations!$E$2=\"Western Isles Health Board\",Calculations!$E$2=\"Shetland Islands Local Authority\",Calculations!$E$2=\"Eilean Siar Local Authority\"),OR($F130=1,$F130=5)),0,new_ci(VALUE(LEFT(Options!$B$24,2)),$C130,$E130,$F130,2016,$I130+$J130,1,$H130,$G130*$H130,Options!$B$8)))","v":650.67270064659999},{"$f":"IF(AND(OR(Calculations!$E$2=\"Orkney Health Board\",Calculations!$E$2=\"Orkney Islands Local Authority\"),$F130=1),0,IF(AND(OR(Calculations!$E$2=\"Shetland Health Board\",Calculations!$E$2=\"Western Isles Health Board\",Calculations!$E$2=\"Shetland Islands Local Authority\",Calculations!$E$2=\"Eilean Siar Local Authority\"),OR($F130=1,$F130=5)),0,new_yllv2(VALUE(LEFT(Options!$B$24,2)),$C130,$D130,$E130,$F130,2016,$I130,1,$H130,$G130*$H130,Options!$B$8)))","v":9723.7923676084993},{"$f":"IF(AND(OR(Calculations!$E$2=\"Orkney Health Board\",Calculations!$E$2=\"Orkney Islands Local Authority\"),$F130=1),0,IF(AND(OR(Calculations!$E$2=\"Shetland Health Board\",Calculations!$E$2=\"Western Isles Health Board\",Calculations!$E$2=\"Shetland Islands Local Authority\",Calculations!$E$2=\"Eilean Siar Local Authority\"),OR($F130=1,$F130=5)),0,new_yllv2(VALUE(LEFT(Options!$B$24,2)),$C130,$D130,$E130,$F130,2016,$I130+$J130,1,$H130,$G130*$H130,Options!$B$8)))","v":9695.0232396342999},{"$f":"IF(AND(OR(Calculations!$E$2=\"Orkney Health Board\",Calculations!$E$2=\"Orkney Islands Local Authority\"),$F130=1),0,IF(AND(OR(Calculations!$E$2=\"Shetland Health Board\",Calculations!$E$2=\"Western Isles Health Board\",Calculations!$E$2=\"Shetland Islands Local Authority\",Calculations!$E$2=\"Eilean Siar Local Authority\"),OR($F130=1,$F130=5)),0,hosp_count(VALUE(LEFT(Options!$B$24,2)),$C130,$E130,$F130,2016,$I130,1,$H130,$G130*$H130, Options!$B$8)))","v":13513.138667486101},{"$f":"IF(AND(OR(Calculations!$E$2=\"Orkney Health Board\",Calculations!$E$2=\"Orkney Islands Local Authority\"),$F130=1),0,IF(AND(OR(Calculations!$E$2=\"Shetland Health Board\",Calculations!$E$2=\"Western Isles Health Board\",Calculations!$E$2=\"Shetland Islands Local Authority\",Calculations!$E$2=\"Eilean Siar Local Authority\"),OR($F130=1,$F130=5)),0,hosp_count(VALUE(LEFT(Options!$B$24,2)),$C130,$E130,$F130,2016,$I130+$J130,1,$H130,$G130*$H130, Options!$B$8)))","v":13487.0255746445},{"$f":"IF(AND(OR(Calculations!$E$2=\"Orkney Health Board\",Calculations!$E$2=\"Orkney Islands Local Authority\"),$F130=1),0,IF(AND(OR(Calculations!$E$2=\"Shetland Health Board\",Calculations!$E$2=\"Western Isles Health Board\",Calculations!$E$2=\"Shetland Islands Local Authority\",Calculations!$E$2=\"Eilean Siar Local Authority\"),OR($F130=1,$F130=5)),0,prem_mort(VALUE(LEFT(Options!$B$24,2)),$C130,$E130,$F130,2016,$I130,1,$H130,$G130*$H130,Options!$B$8)))","v":652.60351460460004},{"$f":"IF(AND(OR(Calculations!$E$2=\"Orkney Health Board\",Calculations!$E$2=\"Orkney Islands Local Authority\"),$F130=1),0,IF(AND(OR(Calculations!$E$2=\"Shetland Health Board\",Calculations!$E$2=\"Western Isles Health Board\",Calculations!$E$2=\"Shetland Islands Local Authority\",Calculations!$E$2=\"Eilean Siar Local Authority\"),OR($F130=1,$F130=5)),0,prem_mort(VALUE(LEFT(Options!$B$24,2)),$C130,$E130,$F130,2016,$I130+$J130,1,$H130,$G130*$H130,Options!$B$8)))","v":650.67270064659999},2195.3224832798469,2188.827330866216,32710.305000869579,32613.527229906485,45457.458429999999,45369.615415765125,2195.3224832798469,2188.827330866216,12074273.658039158,12038550.319764188,179906677.50478268,179374399.76448566,250016021.36499998,249532884.78670818,12074273.658039158,12038550.319764188,5500]
[null,"Male 70-74",71.891098,84.341099999999997,"male",2,{"$f":"HLOOKUP(Calculations!$E$2,'Prevalence Rates'!$C$3:$BC$249,'Prevalence Rates'!$BD131,FALSE)","v":0.21840000000000001},{"$f":"HLOOKUP(Calculations!$E$2,'Population 2016'!$C$3:$BC$249,'Population 2016'!BD131,FALSE)","v":22052},0,{"$f":"HLOOKUP(Results!E$4,Targeting!$C$3:$F$249,Targeting!$G131,FALSE)","v":3398},{"$f":"IF(AND(OR(Calculations!$E$2=\"Orkney Health Board\",Calculations!$E$2=\"Orkney Islands Local Authority\"),$F131=1),0,IF(AND(OR(Calculations!$E$2=\"Shetland Health Board\",Calculations!$E$2=\"Western Isles Health Board\",Calculations!$E$2=\"Shetland Islands Local Authority\",Calculations!$E$2=\"Eilean Siar Local Authority\"),OR($F131=1,$F131=5)),0,new_ci(VALUE(LEFT(Options!$B$24,2)),$C131,$E131,$F131,2016,$I131,1,$H131,$G131*$H131,Options!$B$8)))","v":693.7719925614},{"$f":"IF(AND(OR(Calculations!$E$2=\"Orkney Health Board\",Calculations!$E$2=\"Orkney Islands Local Authority\"),$F131=1),0,IF(AND(OR(Calculations!$E$2=\"Shetland Health Board\",Calculations!$E$2=\"Western Isles Health Board\",Calculations!$E$2=\"Shetland Islands Local Authority\",Calculations!$E$2=\"Eilean Siar Local Authority\"),OR($F131=1,$F131=5)),0,new_ci(VALUE(LEFT(Options!$B$24,2)),$C131,$E131,$F131,2016,$I131+$J131,1,$H131,$G131*$H131,Options!$B$8)))","v":691.73976599239995},{"$f":"IF(AND(OR(Calculations!$E$2=\"Orkney Health Board\",Calculations!$E$2=\"Orkney Islands Local Authority\"),$F131=1),0,IF(AND(OR(Calculations!$E$2=\"Shetland Health Board\",Calculations!$E$2=\"Western Isles Health Board\",Calculations!$E$2=\"Shetland Islands Local Authority\",Calculations!$E$2=\"Eilean Siar Local Authority\"),OR($F131=1,$F131=5)),0,new_yllv2(VALUE(LEFT(Options!$B$24,2)),$C131,$D131,$E131,$F131,2016,$I131,1,$H131,$G131*$H131,Options!$B$8)))","v":7943.6907023719996},{"$f":"IF(AND(OR(Calculations!$E$2=\"Orkney Health Board\",Calculations!$E$2=\"Orkney Islands Local Authority\"),$F131=1),0,IF(AND(OR(Calculations!$E$2=\"Shetland Health Board\",Calculations!$E$2=\"Western Isles Health Board\",Calculations!$E$2=\"Shetland Islands Local Authority\",Calculations!$E$2=\"Eilean Siar Local Authority\"),OR($F131=1,$F131=5)),0,new_yllv2(VALUE(LEFT(Options!$B$24,2)),$C131,$D131,$E131,$F131,2016,$I131+$J131,1,$H131,$G131*$H131,Options!$B$8)))","v":7920.4217040924996},{"$f":"IF(AND(OR(Calculations!$E$2=\"Orkney Health Board\",Calculations!$E$2=\"Orkney Islands Local Authority\"),$F131=1),0,IF(AND(OR(Calculations!$E$2=\"Shetland Health Board\",Calculations!$E$2=\"Western Isles Health Board\",Calculations!$E$2=\"Shetland Islands Local Authority\",Calculations!$E$2=\"Eilean Siar Local Authority\"),OR($F131=1,$F131=5)),0,hosp_count(VALUE(LEFT(Options!$B$24,2)),$C131,$E131,$F131,2016,$I131,1,$H131,$G131*$H131, Options!$B$8)))","v":11901.790057320401},{"$f":"IF(AND(OR(Calculations!$E$2=\"Orkney Health Board\",Calculations!$E$2=\"Orkney Islands Local Authority\"),$F131=1),0,IF(AND(OR(Calculations!$E$2=\"Shetland Health Board\",Calculations!$E$2=\"Western Isles Health Board\",Calculations!$E$2=\"Shetland Islands Local Authority\",Calculations!$E$2=\"Eilean Siar Local Authority\"),OR($F131=1,$F131=5)),0,hosp_count(VALUE(LEFT(Options!$B$24,2)),$C131,$E131,$F131,2016,$I131+$J131,1,$H131,$G131*$H131, Options!$B$8)))","v":11878.7875400171},{"$f":"IF(AND(OR(Calculations!$E$2=\"Orkney Health Board\",Calculations!$E$2=\"Orkney Islands Local Authority\"),$F131=1),0,IF(AND(OR(Calculations!$E$2=\"Shetland Health Board\",Calculations!$E$2=\"Western Isles Health Board\",Calculations!$E$2=\"Shetland Islands Local Authority\",Calculations!$E$2=\"Eilean Siar Local Authority\"),OR($F131=1,$F131=5)),0,prem_mort(VALUE(LEFT(Options!$B$24,2)),$C131,$E131,$F131,2016,$I131,1,$H131,$G131*$H131,Options!$B$8)))","v":693.7719925614},{"$f":"IF(AND(OR(Calculations!$E$2=\"Orkney Health Board\",Calculations!$E$2=\"Orkney Islands Local Authority\"),$F131=1),0,IF(AND(OR(Calculations!$E$2=\"Shetland Health Board\",Calculations!$E$2=\"Western Isles Health Board\",Calculations!$E$2=\"Shetland Islands Local Authority\",Calculations!$E$2=\"Eilean Siar Local Authority\"),OR($F131=1,$F131=5)),0,prem_mort(VALUE(LEFT(Options!$B$24,2)),$C131,$E131,$F131,2016,$I131+$J131,1,$H131,$G131*$H131,Options!$B$8)))","v":691.73976599239995},3146.0728848240519,3136.8572736822052,36022.540823381096,35917.022057375747,53971.476770000008,53867.16642489162,3146.0728848240519,3136.8572736822052,15730364.42412026,15684286.368411027,180112704.11690548,179585110.28687873,269857383.85000002,269335832.12445807,15730364.42412026,15684286.368411027,5000]
[null,"Male 75-79",76.907700000000006,86.357700000000008,"male",2,{"$f":"HLOOKUP(Calculations!$E$2,'Prevalence Rates'!$C$3:$BC$249,'Prevalence Rates'!$BD132,FALSE)","v":0.10050000000000001},{"$f":"HLOOKUP(Calculations!$E$2,'Population 2016'!$C$3:$BC$249,'Population 2016'!BD132,FALSE)","v":16695},0,{"$f":"HLOOKUP(Results!E$4,Targeting!$C$3:$F$249,Targeting!$G132,FALSE)","v":2572},{"$f":"IF(AND(OR(Calculations!$E$2=\"Orkney Health Board\",Calculations!$E$2=\"Orkney Islands Local Authority\"),$F132=1),0,IF(AND(OR(Calculations!$E$2=\"Shetland Health Board\",Calculations!$E$2=\"Western Isles Health Board\",Calculations!$E$2=\"Shetland Islands Local Authority\",Calculations!$E$2=\"Eilean Siar Local Authority\"),OR($F132=1,$F132=5)),0,new_ci(VALUE(LEFT(Options!$B$24,2)),$C132,$E132,$F132,2016,$I132,1,$H132,$G132*$H132,Options!$B$8)))","v":761.57730014629999},{"$f":"IF(AND(OR(Calculations!$E$2=\"Orkney Health Board\",Calculations!$E$2=\"Orkney Islands Local Authority\"),$F132=1),0,IF(AND(OR(Calculations!$E$2=\"Shetland Health Board\",Calculations!$E$2=\"Western Isles Health Board\",Calculations!$E$2=\"Shetland Islands Local Authority\",Calculations!$E$2=\"Eilean Siar Local Authority\"),OR($F132=1,$F132=5)),0,new_ci(VALUE(LEFT(Options!$B$24,2)),$C132,$E132,$F132,2016,$I132+$J132,1,$H132,$G132*$H132,Options!$B$8)))","v":759.18611663310003},{"$f":"IF(AND(OR(Calculations!$E$2=\"Orkney Health Board\",Calculations!$E$2=\"Orkney Islands Local Authority\"),$F132=1),0,IF(AND(OR(Calculations!$E$2=\"Shetland Health Board\",Calculations!$E$2=\"Western Isles Health Board\",Calculations!$E$2=\"Shetland Islands Local Authority\",Calculations!$E$2=\"Eilean Siar Local Authority\"),OR($F132=1,$F132=5)),0,new_yllv2(VALUE(LEFT(Options!$B$24,2)),$C132,$D132,$E132,$F132,2016,$I132,1,$H132,$G132*$H132,Options!$B$8)))","v":6435.3281862362001},{"$f":"IF(AND(OR(Calculations!$E$2=\"Orkney Health Board\",Calculations!$E$2=\"Orkney Islands Local Authority\"),$F132=1),0,IF(AND(OR(Calculations!$E$2=\"Shetland Health Board\",Calculations!$E$2=\"Western Isles Health Board\",Calculations!$E$2=\"Shetland Islands Local Authority\",Calculations!$E$2=\"Eilean Siar Local Authority\"),OR($F132=1,$F132=5)),0,new_yllv2(VALUE(LEFT(Options!$B$24,2)),$C132,$D132,$E132,$F132,2016,$I132+$J132,1,$H132,$G132*$H132,Options!$B$8)))","v":6415.1226855496998},{"$f":"IF(AND(OR(Calculations!$E$2=\"Orkney Health Board\",Calculations!$E$2=\"Orkney Islands Local Authority\"),$F132=1),0,IF(AND(OR(Calculations!$E$2=\"Shetland Health Board\",Calculations!$E$2=\"Western Isles Health Board\",Calculations!$E$2=\"Shetland Islands Local Authority\",Calculations!$E$2=\"Eilean Siar Local Authority\"),OR($F132=1,$F132=5)),0,hosp_count(VALUE(LEFT(Options!$B$24,2)),$C132,$E132,$F132,2016,$I132,1,$H132,$G132*$H132, Options!$B$8)))","v":10766.7212647995},{"$f":"IF(AND(OR(Calculations!$E$2=\"Orkney Health Board\",Calculations!$E$2=\"Orkney Islands Local Authority\"),$F132=1),0,IF(AND(OR(Calculations!$E$2=\"Shetland Health Board\",Calculations!$E$2=\"Western Isles Health Board\",Calculations!$E$2=\"Shetland Islands Local Authority\",Calculations!$E$2=\"Eilean Siar Local Authority\"),OR($F132=1,$F132=5)),0,hosp_count(VALUE(LEFT(Options!$B$24,2)),$C132,$E132,$F132,2016,$I132+$J132,1,$H132,$G132*$H132, Options!$B$8)))","v":10744.793659150801},{"$f":"IF(AND(OR(Calculations!$E$2=\"Orkney Health Board\",Calculations!$E$2=\"Orkney Islands Local Authority\"),$F132=1),0,IF(AND(OR(Calculations!$E$2=\"Shetland Health Board\",Calculations!$E$2=\"Western Isles Health Board\",Calculations!$E$2=\"Shetland Islands Local Authority\",Calculations!$E$2=\"Eilean Siar Local Authority\"),OR($F132=1,$F132=5)),0,prem_mort(VALUE(LEFT(Options!$B$24,2)),$C132,$E132,$F132,2016,$I132,1,$H132,$G132*$H132,Options!$B$8)))","v":0},{"$f":"IF(AND(OR(Calculations!$E$2=\"Orkney Health Board\",Calculations!$E$2=\"Orkney Islands Local Authority\"),$F132=1),0,IF(AND(OR(Calculations!$E$2=\"Shetland Health Board\",Calculations!$E$2=\"Western Isles Health Board\",Calculations!$E$2=\"Shetland Islands Local Authority\",Calculations!$E$2=\"Eilean Siar Local Authority\"),OR($F132=1,$F132=5)),0,prem_mort(VALUE(LEFT(Options!$B$24,2)),$C132,$E132,$F132,2016,$I132+$J132,1,$H132,$G132*$H132,Options!$B$8)))","v":0},4561.7088957550168,4547.3861433548973,38546.440169129681,38425.412911348911,64490.69341,64359.351058106025,0,0,18246835.583020069,18189544.57341959,154185760.67651871,153701651.64539564,257962773.63999999,257437404.23242411,0,0,4000]
[null,"Male 80-84",81.797089,88.627089999999995,"male",2,{"$f":"HLOOKUP(Calculations!$E$2,'Prevalence Rates'!$C$3:$BC$249,'Prevalence Rates'!$BD133,FALSE)","v":0.10050000000000001},{"$f":"HLOOKUP(Calculations!$E$2,'Population 2016'!$C$3:$BC$249,'Population 2016'!BD133,FALSE)","v":11333},0,{"$f":"HLOOKUP(Results!E$4,Targeting!$C$3:$F$249,Targeting!$G133,FALSE)","v":1746},{"$f":"IF(AND(OR(Calculations!$E$2=\"Orkney Health Board\",Calculations!$E$2=\"Orkney Islands Local Authority\"),$F133=1),0,IF(AND(OR(Calculations!$E$2=\"Shetland Health Board\",Calculations!$E$2=\"Western Isles Health Board\",Calculations!$E$2=\"Shetland Islands Local Authority\",Calculations!$E$2=\"Eilean Siar Local Authority\"),OR($F133=1,$F133=5)),0,new_ci(VALUE(LEFT(Options!$B$24,2)),$C133,$E133,$F133,2016,$I133,1,$H133,$G133*$H133,Options!$B$8)))","v":739.67277299720001},{"$f":"IF(AND(OR(Calculations!$E$2=\"Orkney Health Board\",Calculations!$E$2=\"Orkney Islands Local Authority\"),$F133=1),0,IF(AND(OR(Calculations!$E$2=\"Shetland Health Board\",Calculations!$E$2=\"Western Isles Health Board\",Calculations!$E$2=\"Shetland Islands Local Authority\",Calculations!$E$2=\"Eilean Siar Local Authority\"),OR($F133=1,$F133=5)),0,new_ci(VALUE(LEFT(Options!$B$24,2)),$C133,$E133,$F133,2016,$I133+$J133,1,$H133,$G133*$H133,Options!$B$8)))","v":737.40812369720004},{"$f":"IF(AND(OR(Calculations!$E$2=\"Orkney Health Board\",Calculations!$E$2=\"Orkney Islands Local Authority\"),$F133=1),0,IF(AND(OR(Calculations!$E$2=\"Shetland Health Board\",Calculations!$E$2=\"Western Isles Health Board\",Calculations!$E$2=\"Shetland Islands Local Authority\",Calculations!$E$2=\"Eilean Siar Local Authority\"),OR($F133=1,$F133=5)),0,new_yllv2(VALUE(LEFT(Options!$B$24,2)),$C133,$D133,$E133,$F133,2016,$I133,1,$H133,$G133*$H133,Options!$B$8)))","v":4312.2930062464002},{"$f":"IF(AND(OR(Calculations!$E$2=\"Orkney Health Board\",Calculations!$E$2=\"Orkney Islands Local Authority\"),$F133=1),0,IF(AND(OR(Calculations!$E$2=\"Shetland Health Board\",Calculations!$E$2=\"Western Isles Health Board\",Calculations!$E$2=\"Shetland Islands Local Authority\",Calculations!$E$2=\"Eilean Siar Local Authority\"),OR($F133=1,$F133=5)),0,new_yllv2(VALUE(LEFT(Options!$B$24,2)),$C133,$D133,$E133,$F133,2016,$I133+$J133,1,$H133,$G133*$H133,Options!$B$8)))","v":4299.0900985628004},{"$f":"IF(AND(OR(Calculations!$E$2=\"Orkney Health Board\",Calculations!$E$2=\"Orkney Islands Local Authority\"),$F133=1),0,IF(AND(OR(Calculations!$E$2=\"Shetland Health Board\",Calculations!$E$2=\"Western Isles Health Board\",Calculations!$E$2=\"Shetland Islands Local Authority\",Calculations!$E$2=\"Eilean Siar Local Authority\"),OR($F133=1,$F133=5)),0,hosp_count(VALUE(LEFT(Options!$B$24,2)),$C133,$E133,$F133,2016,$I133,1,$H133,$G133*$H133, Options!$B$8)))","v":8693.8800865902995},{"$f":"IF(AND(OR(Calculations!$E$2=\"Orkney Health Board\",Calculations!$E$2=\"Orkney Islands Local Authority\"),$F133=1),0,IF(AND(OR(Calculations!$E$2=\"Shetland Health Board\",Calculations!$E$2=\"Western Isles Health Board\",Calculations!$E$2=\"Shetland Islands Local Authority\",Calculations!$E$2=\"Eilean Siar Local Authority\"),OR($F133=1,$F133=5)),0,hosp_count(VALUE(LEFT(Options!$B$24,2)),$C133,$E133,$F133,2016,$I133+$J133,1,$H133,$G133*$H133, Options!$B$8)))","v":8676.1734448087009},{"$f":"IF(AND(OR(Calculations!$E$2=\"Orkney Health Board\",Calculations!$E$2=\"Orkney Islands Local Authority\"),$F133=1),0,IF(AND(OR(Calculations!$E$2=\"Shetland Health Board\",Calculations!$E$2=\"Western Isles Health Board\",Calculations!$E$2=\"Shetland Islands Local Authority\",Calculations!$E$2=\"Eilean Siar Local Authority\"),OR($F133=1,$F133=5)),0,prem_mort(VALUE(LEFT(Options!$B$24,2)),$C133,$E133,$F133,2016,$I133,1,$H133,$G133*$H133,Options!$B$8)))","v":0},{"$f":"IF(AND(OR(Calculations!$E$2=\"Orkney Health Board\",Calculations!$E$2=\"Orkney Islands Local Authority\"),$F133=1),0,IF(AND(OR(Calculations!$E$2=\"Shetland Health Board\",Calculations!$E$2=\"Western Isles Health Board\",Calculations!$E$2=\"Shetland Islands Local Authority\",Calculations!$E$2=\"Eilean Siar Local Authority\"),OR($F133=1,$F133=5)),0,prem_mort(VALUE(LEFT(Options!$B$24,2)),$C133,$E133,$F133,2016,$I133+$J133,1,$H133,$G133*$H133,Options!$B$8)))","v":0},6526.716429870291,6506.7336424353653,38050.763312859795,37934.263642131831,76712.962910000002,76556.723240172068,0,0,16316791.074675728,16266834.106088413,95126908.282149494,94835659.105329573,191782407.27500001,191391808.10043016,0,0,2500]
[null,"Male 85-89",86.630752999999999,91.420750000000012,"male",2,{"$f":"HLOOKUP(Calculations!$E$2,'Prevalence Rates'!$C$3:$BC$249,'Prevalence Rates'!$BD134,FALSE)","v":0.10050000000000001},{"$f":"HLOOKUP(Calculations!$E$2,'Population 2016'!$C$3:$BC$249,'Population 2016'!BD134,FALSE)","v":5568},0,{"$f":"HLOOKUP(Results!E$4,Targeting!$C$3:$F$249,Targeting!$G134,FALSE)","v":858},{"$f":"IF(AND(OR(Calculations!$E$2=\"Orkney Health Board\",Calculations!$E$2=\"Orkney Islands Local Authority\"),$F134=1),0,IF(AND(OR(Calculations!$E$2=\"Shetland Health Board\",Calculations!$E$2=\"Western Isles Health Board\",Calculations!$E$2=\"Shetland Islands Local Authority\",Calculations!$E$2=\"Eilean Siar Local Authority\"),OR($F134=1,$F134=5)),0,new_ci(VALUE(LEFT(Options!$B$24,2)),$C134,$E134,$F134,2016,$I134,1,$H134,$G134*$H134,Options!$B$8)))","v":515.40478740670005},{"$f":"IF(AND(OR(Calculations!$E$2=\"Orkney Health Board\",Calculations!$E$2=\"Orkney Islands Local Authority\"),$F134=1),0,IF(AND(OR(Calculations!$E$2=\"Shetland Health Board\",Calculations!$E$2=\"Western Isles Health Board\",Calculations!$E$2=\"Shetland Islands Local Authority\",Calculations!$E$2=\"Eilean Siar Local Authority\"),OR($F134=1,$F134=5)),0,new_ci(VALUE(LEFT(Options!$B$24,2)),$C134,$E134,$F134,2016,$I134+$J134,1,$H134,$G134*$H134,Options!$B$8)))","v":513.88238017749995},{"$f":"IF(AND(OR(Calculations!$E$2=\"Orkney Health Board\",Calculations!$E$2=\"Orkney Islands Local Authority\"),$F134=1),0,IF(AND(OR(Calculations!$E$2=\"Shetland Health Board\",Calculations!$E$2=\"Western Isles Health Board\",Calculations!$E$2=\"Shetland Islands Local Authority\",Calculations!$E$2=\"Eilean Siar Local Authority\"),OR($F134=1,$F134=5)),0,new_yllv2(VALUE(LEFT(Options!$B$24,2)),$C134,$D134,$E134,$F134,2016,$I134,1,$H134,$G134*$H134,Options!$B$8)))","v":1953.382598057},{"$f":"IF(AND(OR(Calculations!$E$2=\"Orkney Health Board\",Calculations!$E$2=\"Orkney Islands Local Authority\"),$F134=1),0,IF(AND(OR(Calculations!$E$2=\"Shetland Health Board\",Calculations!$E$2=\"Western Isles Health Board\",Calculations!$E$2=\"Shetland Islands Local Authority\",Calculations!$E$2=\"Eilean Siar Local Authority\"),OR($F134=1,$F134=5)),0,new_yllv2(VALUE(LEFT(Options!$B$24,2)),$C134,$D134,$E134,$F134,2016,$I134+$J134,1,$H134,$G134*$H134,Options!$B$8)))","v":1947.6126792256},{"$f":"IF(AND(OR(Calculations!$E$2=\"Orkney Health Board\",Calculations!$E$2=\"Orkney Islands Local Authority\"),$F134=1),0,IF(AND(OR(Calculations!$E$2=\"Shetland Health Board\",Calculations!$E$2=\"Western Isles Health Board\",Calculations!$E$2=\"Shetland Islands Local Authority\",Calculations!$E$2=\"Eilean Siar Local Authority\"),OR($F134=1,$F134=5)),0,hosp_count(VALUE(LEFT(Options!$B$24,2)),$C134,$E134,$F134,2016,$I134,1,$H134,$G134*$H134, Options!$B$8)))","v":5070.8489366592003},{"$f":"IF(AND(OR(Calculations!$E$2=\"Orkney Health Board\",Calculations!$E$2=\"Orkney Islands Local Authority\"),$F134=1),0,IF(AND(OR(Calculations!$E$2=\"Shetland Health Board\",Calculations!$E$2=\"Western Isles Health Board\",Calculations!$E$2=\"Shetland Islands Local Authority\",Calculations!$E$2=\"Eilean Siar Local Authority\"),OR($F134=1,$F134=5)),0,hosp_count(VALUE(LEFT(Options!$B$24,2)),$C134,$E134,$F134,2016,$I134+$J134,1,$H134,$G134*$H134, Options!$B$8)))","v":5060.5191360526997},{"$f":"IF(AND(OR(Calculations!$E$2=\"Orkney Health Board\",Calculations!$E$2=\"Orkney Islands Local Authority\"),$F134=1),0,IF(AND(OR(Calculations!$E$2=\"Shetland Health Board\",Calculations!$E$2=\"Western Isles Health Board\",Calculations!$E$2=\"Shetland Islands Local Authority\",Calculations!$E$2=\"Eilean Siar Local Authority\"),OR($F134=1,$F134=5)),0,prem_mort(VALUE(LEFT(Options!$B$24,2)),$C134,$E134,$F134,2016,$I134,1,$H134,$G134*$H134,Options!$B$8)))","v":0},{"$f":"IF(AND(OR(Calculations!$E$2=\"Orkney Health Board\",Calculations!$E$2=\"Orkney Islands Local Authority\"),$F134=1),0,IF(AND(OR(Calculations!$E$2=\"Shetland Health Board\",Calculations!$E$2=\"Western Isles Health Board\",Calculations!$E$2=\"Shetland Islands Local Authority\",Calculations!$E$2=\"Eilean Siar Local Authority\"),OR($F134=1,$F134=5)),0,prem_mort(VALUE(LEFT(Options!$B$24,2)),$C134,$E134,$F134,2016,$I134+$J134,1,$H134,$G134*$H134,Options!$B$8)))","v":0},9256.551497965158,9229.2094141073994,35082.302407632902,34978.675991839082,91071.281190000009,90885.760345774062,0,0,13884827.246947737,13843814.1211611,52623453.611449353,52468013.987758622,136606921.78500003,136328640.51866108,0,0,1500]
[null,"Male 90+",92.215477000000007,95.515479999999997,"male",2,{"$f":"HLOOKUP(Calculations!$E$2,'Prevalence Rates'!$C$3:$BC$249,'Prevalence Rates'!$BD135,FALSE)","v":0.10050000000000001},{"$f":"HLOOKUP(Calculations!$E$2,'Population 2016'!$C$3:$BC$249,'Population 2016'!BD135,FALSE)","v":2286},0,{"$f":"HLOOKUP(Results!E$4,Targeting!$C$3:$F$249,Targeting!$G135,FALSE)","v":352},{"$f":"IF(AND(OR(Calculations!$E$2=\"Orkney Health Board\",Calculations!$E$2=\"Orkney Islands Local Authority\"),$F135=1),0,IF(AND(OR(Calculations!$E$2=\"Shetland Health Board\",Calculations!$E$2=\"Western Isles Health Board\",Calculations!$E$2=\"Shetland Islands Local Authority\",Calculations!$E$2=\"Eilean Siar Local Authority\"),OR($F135=1,$F135=5)),0,new_ci(VALUE(LEFT(Options!$B$24,2)),$C135,$E135,$F135,2016,$I135,1,$H135,$G135*$H135,Options!$B$8)))","v":314.19566539850001},{"$f":"IF(AND(OR(Calculations!$E$2=\"Orkney Health Board\",Calculations!$E$2=\"Orkney Islands Local Authority\"),$F135=1),0,IF(AND(OR(Calculations!$E$2=\"Shetland Health Board\",Calculations!$E$2=\"Western Isles Health Board\",Calculations!$E$2=\"Shetland Islands Local Authority\",Calculations!$E$2=\"Eilean Siar Local Authority\"),OR($F135=1,$F135=5)),0,new_ci(VALUE(LEFT(Options!$B$24,2)),$C135,$E135,$F135,2016,$I135+$J135,1,$H135,$G135*$H135,Options!$B$8)))","v":313.32414652170002},{"$f":"IF(AND(OR(Calculations!$E$2=\"Orkney Health Board\",Calculations!$E$2=\"Orkney Islands Local Authority\"),$F135=1),0,IF(AND(OR(Calculations!$E$2=\"Shetland Health Board\",Calculations!$E$2=\"Western Isles Health Board\",Calculations!$E$2=\"Shetland Islands Local Authority\",Calculations!$E$2=\"Eilean Siar Local Authority\"),OR($F135=1,$F135=5)),0,new_yllv2(VALUE(LEFT(Options!$B$24,2)),$C135,$D135,$E135,$F135,2016,$I135,1,$H135,$G135*$H135,Options!$B$8)))","v":722.65097300349998},{"$f":"IF(AND(OR(Calculations!$E$2=\"Orkney Health Board\",Calculations!$E$2=\"Orkney Islands Local Authority\"),$F135=1),0,IF(AND(OR(Calculations!$E$2=\"Shetland Health Board\",Calculations!$E$2=\"Western Isles Health Board\",Calculations!$E$2=\"Shetland Islands Local Authority\",Calculations!$E$2=\"Eilean Siar Local Authority\"),OR($F135=1,$F135=5)),0,new_yllv2(VALUE(LEFT(Options!$B$24,2)),$C135,$D135,$E135,$F135,2016,$I135+$J135,1,$H135,$G135*$H135,Options!$B$8)))","v":720.64647697229998},{"$f":"IF(AND(OR(Calculations!$E$2=\"Orkney Health Board\",Calculations!$E$2=\"Orkney Islands Local Authority\"),$F135=1),0,IF(AND(OR(Calculations!$E$2=\"Shetland Health Board\",Calculations!$E$2=\"Western Isles Health Board\",Calculations!$E$2=\"Shetland Islands Local Authority\",Calculations!$E$2=\"Eilean Siar Local Authority\"),OR($F135=1,$F135=5)),0,hosp_count(VALUE(LEFT(Options!$B$24,2)),$C135,$E135,$F135,2016,$I135,1,$H135,$G135*$H135, Options!$B$8)))","v":2538.3308308974001},{"$f":"IF(AND(OR(Calculations!$E$2=\"Orkney Health Board\",Calculations!$E$2=\"Orkney Islands Local Authority\"),$F135=1),0,IF(AND(OR(Calculations!$E$2=\"Shetland Health Board\",Calculations!$E$2=\"Western Isles Health Board\",Calculations!$E$2=\"Shetland Islands Local Authority\",Calculations!$E$2=\"Eilean Siar Local Authority\"),OR($F135=1,$F135=5)),0,hosp_count(VALUE(LEFT(Options!$B$24,2)),$C135,$E135,$F135,2016,$I135+$J135,1,$H135,$G135*$H135, Options!$B$8)))","v":2533.1638379546998},{"$f":"IF(AND(OR(Calculations!$E$2=\"Orkney Health Board\",Calculations!$E$2=\"Orkney Islands Local Authority\"),$F135=1),0,IF(AND(OR(Calculations!$E$2=\"Shetland Health Board\",Calculations!$E$2=\"Western Isles Health Board\",Calculations!$E$2=\"Shetland Islands Local Authority\",Calculations!$E$2=\"Eilean Siar Local Authority\"),OR($F135=1,$F135=5)),0,prem_mort(VALUE(LEFT(Options!$B$24,2)),$C135,$E135,$F135,2016,$I135,1,$H135,$G135*$H135,Options!$B$8)))","v":0},{"$f":"IF(AND(OR(Calculations!$E$2=\"Orkney Health Board\",Calculations!$E$2=\"Orkney Islands Local Authority\"),$F135=1),0,IF(AND(OR(Calculations!$E$2=\"Shetland Health Board\",Calculations!$E$2=\"Western Isles Health Board\",Calculations!$E$2=\"Shetland Islands Local Authority\",Calculations!$E$2=\"Eilean Siar Local Authority\"),OR($F135=1,$F135=5)),0,prem_mort(VALUE(LEFT(Options!$B$24,2)),$C135,$E135,$F135,2016,$I135+$J135,1,$H135,$G135*$H135,Options!$B$8)))","v":0},13744.342318394576,13706.218133057744,31612.028565332457,31524.342824685038,111038.09409,110812.06640221784,0,0,13744342.318394575,13706218.133057743,31612028.565332457,31524342.824685037,111038094.09,110812066.40221784,0,0,1000]
[null,"Female 0-4",2.0384007,81.468401,"female",3,{"$f":"HLOOKUP(Calculations!$E$2,'Prevalence Rates'!$C$3:$BC$249,'Prevalence Rates'!$BD136,FALSE)","v":0},{"$f":"HLOOKUP(Calculations!$E$2,'Population 2016'!$C$3:$BC$249,'Population 2016'!BD136,FALSE)","v":0},0,{"$f":"HLOOKUP(Results!E$4,Targeting!$C$3:$F$249,Targeting!$G136,FALSE)","v":0},{"$f":"IF(AND(OR(Calculations!$E$2=\"Orkney Health Board\",Calculations!$E$2=\"Orkney Islands Local Authority\"),$F136=1),0,IF(AND(OR(Calculations!$E$2=\"Shetland Health Board\",Calculations!$E$2=\"Western Isles Health Board\",Calculations!$E$2=\"Shetland Islands Local Authority\",Calculations!$E$2=\"Eilean Siar Local Authority\"),OR($F136=1,$F136=5)),0,new_ci(VALUE(LEFT(Options!$B$24,2)),$C136,$E136,$F136,2016,$I136,1,$H136,$G136*$H136,Options!$B$8)))","v":{"$error":"#VALUE!"}},{"$f":"IF(AND(OR(Calculations!$E$2=\"Orkney Health Board\",Calculations!$E$2=\"Orkney Islands Local Authority\"),$F136=1),0,IF(AND(OR(Calculations!$E$2=\"Shetland Health Board\",Calculations!$E$2=\"Western Isles Health Board\",Calculations!$E$2=\"Shetland Islands Local Authority\",Calculations!$E$2=\"Eilean Siar Local Authority\"),OR($F136=1,$F136=5)),0,new_ci(VALUE(LEFT(Options!$B$24,2)),$C136,$E136,$F136,2016,$I136+$J136,1,$H136,$G136*$H136,Options!$B$8)))","v":{"$error":"#VALUE!"}},{"$f":"IF(AND(OR(Calculations!$E$2=\"Orkney Health Board\",Calculations!$E$2=\"Orkney Islands Local Authority\"),$F136=1),0,IF(AND(OR(Calculations!$E$2=\"Shetland Health Board\",Calculations!$E$2=\"Western Isles Health Board\",Calculations!$E$2=\"Shetland Islands Local Authority\",Calculations!$E$2=\"Eilean Siar Local Authority\"),OR($F136=1,$F136=5)),0,new_yllv2(VALUE(LEFT(Options!$B$24,2)),$C136,$D136,$E136,$F136,2016,$I136,1,$H136,$G136*$H136,Options!$B$8)))","v":{"$error":"#VALUE!"}},{"$f":"IF(AND(OR(Calculations!$E$2=\"Orkney Health Board\",Calculations!$E$2=\"Orkney Islands Local Authority\"),$F136=1),0,IF(AND(OR(Calculations!$E$2=\"Shetland Health Board\",Calculations!$E$2=\"Western Isles Health Board\",Calculations!$E$2=\"Shetland Islands Local Authority\",Calculations!$E$2=\"Eilean Siar Local Authority\"),OR($F136=1,$F136=5)),0,new_yllv2(VALUE(LEFT(Options!$B$24,2)),$C136,$D136,$E136,$F136,2016,$I136+$J136,1,$H136,$G136*$H136,Options!$B$8)))","v":{"$error":"#VALUE!"}},{"$f":"IF(AND(OR(Calculations!$E$2=\"Orkney Health Board\",Calculations!$E$2=\"Orkney Islands Local Authority\"),$F136=1),0,IF(AND(OR(Calculations!$E$2=\"Shetland Health Board\",Calculations!$E$2=\"Western Isles Health Board\",Calculations!$E$2=\"Shetland Islands Local Authority\",Calculations!$E$2=\"Eilean Siar Local Authority\"),OR($F136=1,$F136=5)),0,hosp_count(VALUE(LEFT(Options!$B$24,2)),$C136,$E136,$F136,2016,$I136,1,$H136,$G136*$H136, Options!$B$8)))","v":{"$error":"#VALUE!"}},{"$f":"IF(AND(OR(Calculations!$E$2=\"Orkney Health Board\",Calculations!$E$2=\"Orkney Islands Local Authority\"),$F136=1),0,IF(AND(OR(Calculations!$E$2=\"Shetland Health Board\",Calculations!$E$2=\"Western Isles Health Board\",Calculations!$E$2=\"Shetland Islands Local Authority\",Calculations!$E$2=\"Eilean Siar Local Authority\"),OR($F136=1,$F136=5)),0,hosp_count(VALUE(LEFT(Options!$B$24,2)),$C136,$E136,$F136,2016,$I136+$J136,1,$H136,$G136*$H136, Options!$B$8)))","v":{"$error":"#VALUE!"}},{"$f":"IF(AND(OR(Calculations!$E$2=\"Orkney Health Board\",Calculations!$E$2=\"Orkney Islands Local Authority\"),$F136=1),0,IF(AND(OR(Calculations!$E$2=\"Shetland Health Board\",Calculations!$E$2=\"Western Isles Health Board\",Calculations!$E$2=\"Shetland Islands Local Authority\",Calculations!$E$2=\"Eilean Siar Local Authority\"),OR($F136=1,$F136=5)),0,prem_mort(VALUE(LEFT(Options!$B$24,2)),$C136,$E136,$F136,2016,$I136,1,$H136,$G136*$H136,Options!$B$8)))","v":{"$error":"#VALUE!"}},{"$f":"IF(AND(OR(Calculations!$E$2=\"Orkney Health Board\",Calculations!$E$2=\"Orkney Islands Local Authority\"),$F136=1),0,IF(AND(OR(Calculations!$E$2=\"Shetland Health Board\",Calculations!$E$2=\"Western Isles Health Board\",Calculations!$E$2=\"Shetland Islands Local Authority\",Calculations!$E$2=\"Eilean Siar Local Authority\"),OR($F136=1,$F136=5)),0,prem_mort(VALUE(LEFT(Options!$B$24,2)),$C136,$E136,$F136,2016,$I136+$J136,1,$H136,$G136*$H136,Options!$B$8)))","v":{"$error":"#VALUE!"}},{"$error":"#VALUE!"},{"$error":"#VALUE!"},{"$error":"#VALUE!"},{"$error":"#VALUE!"},{"$error":"#VALUE!"},{"$error":"#VALUE!"},{"$error":"#VALUE!"},{"$error":"#VALUE!"},{"$error":"#VALUE!"},{"$error":"#VALUE!"},{"$error":"#VALUE!"},{"$error":"#VALUE!"},{"$error":"#VALUE!"},{"$error":"#VALUE!"},{"$error":"#VALUE!"},{"$error":"#VALUE!"},5000]
[null,"Female 5-9",6.9792794999999996,81.439279999999997,"female",3,{"$f":"HLOOKUP(Calculations!$E$2,'Prevalence Rates'!$C$3:$BC$249,'Prevalence Rates'!$BD137,FALSE)","v":0},{"$f":"HLOOKUP(Calculations!$E$2,'Population 2016'!$C$3:$BC$249,'Population 2016'!BD137,FALSE)","v":0},0,{"$f":"HLOOKUP(Results!E$4,Targeting!$C$3:$F$249,Targeting!$G137,FALSE)","v":0},{"$f":"IF(AND(OR(Calculations!$E$2=\"Orkney Health Board\",Calculations!$E$2=\"Orkney Islands Local Authority\"),$F137=1),0,IF(AND(OR(Calculations!$E$2=\"Shetland Health Board\",Calculations!$E$2=\"Western Isles Health Board\",Calculations!$E$2=\"Shetland Islands Local Authority\",Calculations!$E$2=\"Eilean Siar Local Authority\"),OR($F137=1,$F137=5)),0,new_ci(VALUE(LEFT(Options!$B$24,2)),$C137,$E137,$F137,2016,$I137,1,$H137,$G137*$H137,Options!$B$8)))","v":{"$error":"#VALUE!"}},{"$f":"IF(AND(OR(Calculations!$E$2=\"Orkney Health Board\",Calculations!$E$2=\"Orkney Islands Local Authority\"),$F137=1),0,IF(AND(OR(Calculations!$E$2=\"Shetland Health Board\",Calculations!$E$2=\"Western Isles Health Board\",Calculations!$E$2=\"Shetland Islands Local Authority\",Calculations!$E$2=\"Eilean Siar Local Authority\"),OR($F137=1,$F137=5)),0,new_ci(VALUE(LEFT(Options!$B$24,2)),$C137,$E137,$F137,2016,$I137+$J137,1,$H137,$G137*$H137,Options!$B$8)))","v":{"$error":"#VALUE!"}},{"$f":"IF(AND(OR(Calculations!$E$2=\"Orkney Health Board\",Calculations!$E$2=\"Orkney Islands Local Authority\"),$F137=1),0,IF(AND(OR(Calculations!$E$2=\"Shetland Health Board\",Calculations!$E$2=\"Western Isles Health Board\",Calculations!$E$2=\"Shetland Islands Local Authority\",Calculations!$E$2=\"Eilean Siar Local Authority\"),OR($F137=1,$F137=5)),0,new_yllv2(VALUE(LEFT(Options!$B$24,2)),$C137,$D137,$E137,$F137,2016,$I137,1,$H137,$G137*$H137,Options!$B$8)))","v":{"$error":"#VALUE!"}},{"$f":"IF(AND(OR(Calculations!$E$2=\"Orkney Health Board\",Calculations!$E$2=\"Orkney Islands Local Authority\"),$F137=1),0,IF(AND(OR(Calculations!$E$2=\"Shetland Health Board\",Calculations!$E$2=\"Western Isles Health Board\",Calculations!$E$2=\"Shetland Islands Local Authority\",Calculations!$E$2=\"Eilean Siar Local Authority\"),OR($F137=1,$F137=5)),0,new_yllv2(VALUE(LEFT(Options!$B$24,2)),$C137,$D137,$E137,$F137,2016,$I137+$J137,1,$H137,$G137*$H137,Options!$B$8)))","v":{"$error":"#VALUE!"}},{"$f":"IF(AND(OR(Calculations!$E$2=\"Orkney Health Board\",Calculations!$E$2=\"Orkney Islands Local Authority\"),$F137=1),0,IF(AND(OR(Calculations!$E$2=\"Shetland Health Board\",Calculations!$E$2=\"Western Isles Health Board\",Calculations!$E$2=\"Shetland Islands Local Authority\",Calculations!$E$2=\"Eilean Siar Local Authority\"),OR($F137=1,$F137=5)),0,hosp_count(VALUE(LEFT(Options!$B$24,2)),$C137,$E137,$F137,2016,$I137,1,$H137,$G137*$H137, Options!$B$8)))","v":{"$error":"#VALUE!"}},{"$f":"IF(AND(OR(Calculations!$E$2=\"Orkney Health Board\",Calculations!$E$2=\"Orkney Islands Local Authority\"),$F137=1),0,IF(AND(OR(Calculations!$E$2=\"Shetland Health Board\",Calculations!$E$2=\"Western Isles Health Board\",Calculations!$E$2=\"Shetland Islands Local Authority\",Calculations!$E$2=\"Eilean Siar Local Authority\"),OR($F137=1,$F137=5)),0,hosp_count(VALUE(LEFT(Options!$B$24,2)),$C137,$E137,$F137,2016,$I137+$J137,1,$H137,$G137*$H137, Options!$B$8)))","v":{"$error":"#VALUE!"}},{"$f":"IF(AND(OR(Calculations!$E$2=\"Orkney Health Board\",Calculations!$E$2=\"Orkney Islands Local Authority\"),$F137=1),0,IF(AND(OR(Calculations!$E$2=\"Shetland Health Board\",Calculations!$E$2=\"Western Isles Health Board\",Calculations!$E$2=\"Shetland Islands Local Authority\",Calculations!$E$2=\"Eilean Siar Local Authority\"),OR($F137=1,$F137=5)),0,prem_mort(VALUE(LEFT(Options!$B$24,2)),$C137,$E137,$F137,2016,$I137,1,$H137,$G137*$H137,Options!$B$8)))","v":{"$error":"#VALUE!"}},{"$f":"IF(AND(OR(Calculations!$E$2=\"Orkney Health Board\",Calculations!$E$2=\"Orkney Islands Local Authority\"),$F137=1),0,IF(AND(OR(Calculations!$E$2=\"Shetland Health Board\",Calculations!$E$2=\"Western Isles Health Board\",Calculations!$E$2=\"Shetland Islands Local Authority\",Calculations!$E$2=\"Eilean Siar Local Authority\"),OR($F137=1,$F137=5)),0,prem_mort(VALUE(LEFT(Options!$B$24,2)),$C137,$E137,$F137,2016,$I137+$J137,1,$H137,$G137*$H137,Options!$B$8)))","v":{"$error":"#VALUE!"}},{"$error":"#VALUE!"},{"$error":"#VALUE!"},{"$error":"#VALUE!"},{"$error":"#VALUE!"},{"$error":"#VALUE!"},{"$error":"#VALUE!"},{"$error":"#VALUE!"},{"$error":"#VALUE!"},{"$error":"#VALUE!"},{"$error":"#VALUE!"},{"$error":"#VALUE!"},{"$error":"#VALUE!"},{"$error":"#VALUE!"},{"$error":"#VALUE!"},{"$error":"#VALUE!"},{"$error":"#VALUE!"},5500]
[null,"Female 10-15",12.478312000000001,81.948309999999992,"female",3,{"$f":"HLOOKUP(Calculations!$E$2,'Prevalence Rates'!$C$3:$BC$249,'Prevalence Rates'!$BD138,FALSE)","v":0},{"$f":"HLOOKUP(Calculations!$E$2,'Population 2016'!$C$3:$BC$249,'Population 2016'!BD138,FALSE)","v":0},0,{"$f":"HLOOKUP(Results!E$4,Targeting!$C$3:$F$249,Targeting!$G138,FALSE)","v":0},{"$f":"IF(AND(OR(Calculations!$E$2=\"Orkney Health Board\",Calculations!$E$2=\"Orkney Islands Local Authority\"),$F138=1),0,IF(AND(OR(Calculations!$E$2=\"Shetland Health Board\",Calculations!$E$2=\"Western Isles Health Board\",Calculations!$E$2=\"Shetland Islands Local Authority\",Calculations!$E$2=\"Eilean Siar Local Authority\"),OR($F138=1,$F138=5)),0,new_ci(VALUE(LEFT(Options!$B$24,2)),$C138,$E138,$F138,2016,$I138,1,$H138,$G138*$H138,Options!$B$8)))","v":{"$error":"#VALUE!"}},{"$f":"IF(AND(OR(Calculations!$E$2=\"Orkney Health Board\",Calculations!$E$2=\"Orkney Islands Local Authority\"),$F138=1),0,IF(AND(OR(Calculations!$E$2=\"Shetland Health Board\",Calculations!$E$2=\"Western Isles Health Board\",Calculations!$E$2=\"Shetland Islands Local Authority\",Calculations!$E$2=\"Eilean Siar Local Authority\"),OR($F138=1,$F138=5)),0,new_ci(VALUE(LEFT(Options!$B$24,2)),$C138,$E138,$F138,2016,$I138+$J138,1,$H138,$G138*$H138,Options!$B$8)))","v":{"$error":"#VALUE!"}},{"$f":"IF(AND(OR(Calculations!$E$2=\"Orkney Health Board\",Calculations!$E$2=\"Orkney Islands Local Authority\"),$F138=1),0,IF(AND(OR(Calculations!$E$2=\"Shetland Health Board\",Calculations!$E$2=\"Western Isles Health Board\",Calculations!$E$2=\"Shetland Islands Local Authority\",Calculations!$E$2=\"Eilean Siar Local Authority\"),OR($F138=1,$F138=5)),0,new_yllv2(VALUE(LEFT(Options!$B$24,2)),$C138,$D138,$E138,$F138,2016,$I138,1,$H138,$G138*$H138,Options!$B$8)))","v":{"$error":"#VALUE!"}},{"$f":"IF(AND(OR(Calculations!$E$2=\"Orkney Health Board\",Calculations!$E$2=\"Orkney Islands Local Authority\"),$F138=1),0,IF(AND(OR(Calculations!$E$2=\"Shetland Health Board\",Calculations!$E$2=\"Western Isles Health Board\",Calculations!$E$2=\"Shetland Islands Local Authority\",Calculations!$E$2=\"Eilean Siar Local Authority\"),OR($F138=1,$F138=5)),0,new_yllv2(VALUE(LEFT(Options!$B$24,2)),$C138,$D138,$E138,$F138,2016,$I138+$J138,1,$H138,$G138*$H138,Options!$B$8)))","v":{"$error":"#VALUE!"}},{"$f":"IF(AND(OR(Calculations!$E$2=\"Orkney Health Board\",Calculations!$E$2=\"Orkney Islands Local Authority\"),$F138=1),0,IF(AND(OR(Calculations!$E$2=\"Shetland Health Board\",Calculations!$E$2=\"Western Isles Health Board\",Calculations!$E$2=\"Shetland Islands Local Authority\",Calculations!$E$2=\"Eilean Siar Local Authority\"),OR($F138=1,$F138=5)),0,hosp_count(VALUE(LEFT(Options!$B$24,2)),$C138,$E138,$F138,2016,$I138,1,$H138,$G138*$H138, Options!$B$8)))","v":{"$error":"#VALUE!"}},{"$f":"IF(AND(OR(Calculations!$E$2=\"Orkney Health Board\",Calculations!$E$2=\"Orkney Islands Local Authority\"),$F138=1),0,IF(AND(OR(Calculations!$E$2=\"Shetland Health Board\",Calculations!$E$2=\"Western Isles Health Board\",Calculations!$E$2=\"Shetland Islands Local Authority\",Calculations!$E$2=\"Eilean Siar Local Authority\"),OR($F138=1,$F138=5)),0,hosp_count(VALUE(LEFT(Options!$B$24,2)),$C138,$E138,$F138,2016,$I138+$J138,1,$H138,$G138*$H138, Options!$B$8)))","v":{"$error":"#VALUE!"}},{"$f":"IF(AND(OR(Calculations!$E$2=\"Orkney Health Board\",Calculations!$E$2=\"Orkney Islands Local Authority\"),$F138=1),0,IF(AND(OR(Calculations!$E$2=\"Shetland Health Board\",Calculations!$E$2=\"Western Isles Health Board\",Calculations!$E$2=\"Shetland Islands Local Authority\",Calculations!$E$2=\"Eilean Siar Local Authority\"),OR($F138=1,$F138=5)),0,prem_mort(VALUE(LEFT(Options!$B$24,2)),$C138,$E138,$F138,2016,$I138,1,$H138,$G138*$H138,Options!$B$8)))","v":{"$error":"#VALUE!"}},{"$f":"IF(AND(OR(Calculations!$E$2=\"Orkney Health Board\",Calculations!$E$2=\"Orkney Islands Local Authority\"),$F138=1),0,IF(AND(OR(Calculations!$E$2=\"Shetland Health Board\",Calculations!$E$2=\"Western Isles Health Board\",Calculations!$E$2=\"Shetland Islands Local Authority\",Calculations!$E$2=\"Eilean Siar Local Authority\"),OR($F138=1,$F138=5)),0,prem_mort(VALUE(LEFT(Options!$B$24,2)),$C138,$E138,$F138,2016,$I138+$J138,1,$H138,$G138*$H138,Options!$B$8)))","v":{"$error":"#VALUE!"}},{"$error":"#VALUE!"},{"$error":"#VALUE!"},{"$error":"#VALUE!"},{"$error":"#VALUE!"},{"$error":"#VALUE!"},{"$error":"#VALUE!"},{"$error":"#VALUE!"},{"$error":"#VALUE!"},{"$error":"#VALUE!"},{"$error":"#VALUE!"},{"$error":"#VALUE!"},{"$error":"#VALUE!"},{"$error":"#VALUE!"},{"$error":"#VALUE!"},{"$error":"#VALUE!"},{"$error":"#VALUE!"},6600]
["SIMD Q3","Female 16-19",17.570053000000001,81.100049999999996,"female",3,{"$f":"HLOOKUP(Calculations!$E$2,'Prevalence Rates'!$C$3:$BC$249,'Prevalence Rates'!$BD139,FALSE)","v":0.1986},{"$f":"HLOOKUP(Calculations!$E$2,'Population 2016'!$C$3:$BC$249,'Population 2016'!BD139,FALSE)","v":22864},0,{"$f":"HLOOKUP(Results!E$4,Targeting!$C$3:$F$249,Targeting!$G139,FALSE)","v":3523},{"$f":"IF(AND(OR(Calculations!$E$2=\"Orkney Health Board\",Calculations!$E$2=\"Orkney Islands Local Authority\"),$F139=1),0,IF(AND(OR(Calculations!$E$2=\"Shetland Health Board\",Calculations!$E$2=\"Western Isles Health Board\",Calculations!$E$2=\"Shetland Islands Local Authority\",Calculations!$E$2=\"Eilean Siar Local Authority\"),OR($F139=1,$F139=5)),0,new_ci(VALUE(LEFT(Options!$B$24,2)),$C139,$E139,$F139,2016,$I139,1,$H139,$G139*$H139,Options!$B$8)))","v":4.1158155706999997},{"$f":"IF(AND(OR(Calculations!$E$2=\"Orkney Health Board\",Calculations!$E$2=\"Orkney Islands Local Authority\"),$F139=1),0,IF(AND(OR(Calculations!$E$2=\"Shetland Health Board\",Calculations!$E$2=\"Western Isles Health Board\",Calculations!$E$2=\"Shetland Islands Local Authority\",Calculations!$E$2=\"Eilean Siar Local Authority\"),OR($F139=1,$F139=5)),0,new_ci(VALUE(LEFT(Options!$B$24,2)),$C139,$E139,$F139,2016,$I139+$J139,1,$H139,$G139*$H139,Options!$B$8)))","v":4.0975375421000004},{"$f":"IF(AND(OR(Calculations!$E$2=\"Orkney Health Board\",Calculations!$E$2=\"Orkney Islands Local Authority\"),$F139=1),0,IF(AND(OR(Calculations!$E$2=\"Shetland Health Board\",Calculations!$E$2=\"Western Isles Health Board\",Calculations!$E$2=\"Shetland Islands Local Authority\",Calculations!$E$2=\"Eilean Siar Local Authority\"),OR($F139=1,$F139=5)),0,new_yllv2(VALUE(LEFT(Options!$B$24,2)),$C139,$D139,$E139,$F139,2016,$I139,1,$H139,$G139*$H139,Options!$B$8)))","v":257.36193528839999},{"$f":"IF(AND(OR(Calculations!$E$2=\"Orkney Health Board\",Calculations!$E$2=\"Orkney Islands Local Authority\"),$F139=1),0,IF(AND(OR(Calculations!$E$2=\"Shetland Health Board\",Calculations!$E$2=\"Western Isles Health Board\",Calculations!$E$2=\"Shetland Islands Local Authority\",Calculations!$E$2=\"Eilean Siar Local Authority\"),OR($F139=1,$F139=5)),0,new_yllv2(VALUE(LEFT(Options!$B$24,2)),$C139,$D139,$E139,$F139,2016,$I139+$J139,1,$H139,$G139*$H139,Options!$B$8)))","v":256.21901021489998},{"$f":"IF(AND(OR(Calculations!$E$2=\"Orkney Health Board\",Calculations!$E$2=\"Orkney Islands Local Authority\"),$F139=1),0,IF(AND(OR(Calculations!$E$2=\"Shetland Health Board\",Calculations!$E$2=\"Western Isles Health Board\",Calculations!$E$2=\"Shetland Islands Local Authority\",Calculations!$E$2=\"Eilean Siar Local Authority\"),OR($F139=1,$F139=5)),0,hosp_count(VALUE(LEFT(Options!$B$24,2)),$C139,$E139,$F139,2016,$I139,1,$H139,$G139*$H139, Options!$B$8)))","v":2290.5686582223998},{"$f":"IF(AND(OR(Calculations!$E$2=\"Orkney Health Board\",Calculations!$E$2=\"Orkney Islands Local Authority\"),$F139=1),0,IF(AND(OR(Calculations!$E$2=\"Shetland Health Board\",Calculations!$E$2=\"Western Isles Health Board\",Calculations!$E$2=\"Shetland Islands Local Authority\",Calculations!$E$2=\"Eilean Siar Local Authority\"),OR($F139=1,$F139=5)),0,hosp_count(VALUE(LEFT(Options!$B$24,2)),$C139,$E139,$F139,2016,$I139+$J139,1,$H139,$G139*$H139, Options!$B$8)))","v":2284.4118990358002},{"$f":"IF(AND(OR(Calculations!$E$2=\"Orkney Health Board\",Calculations!$E$2=\"Orkney Islands Local Authority\"),$F139=1),0,IF(AND(OR(Calculations!$E$2=\"Shetland Health Board\",Calculations!$E$2=\"Western Isles Health Board\",Calculations!$E$2=\"Shetland Islands Local Authority\",Calculations!$E$2=\"Eilean Siar Local Authority\"),OR($F139=1,$F139=5)),0,prem_mort(VALUE(LEFT(Options!$B$24,2)),$C139,$E139,$F139,2016,$I139,1,$H139,$G139*$H139,Options!$B$8)))","v":4.1158155706999997},{"$f":"IF(AND(OR(Calculations!$E$2=\"Orkney Health Board\",Calculations!$E$2=\"Orkney Islands Local Authority\"),$F139=1),0,IF(AND(OR(Calculations!$E$2=\"Shetland Health Board\",Calculations!$E$2=\"Western Isles Health Board\",Calculations!$E$2=\"Shetland Islands Local Authority\",Calculations!$E$2=\"Eilean Siar Local Authority\"),OR($F139=1,$F139=5)),0,prem_mort(VALUE(LEFT(Options!$B$24,2)),$C139,$E139,$F139,2016,$I139+$J139,1,$H139,$G139*$H139,Options!$B$8)))","v":4.0975375421000004},18.001292733992301,17.921350341585025,1125.6207806525542,1120.6219830952587,10018.232409999999,9991.3046668815605,18.001292733992301,17.921350341585025,79205.688029566125,78853.941502974107,4952731.4348712387,4930736.7256191382,44080222.603999995,43961740.53427887,79205.688029566125,78853.941502974107,4400]
[null,"Female 20-24",22.077057,81.667060000000006,"female",3,{"$f":"HLOOKUP(Calculations!$E$2,'Prevalence Rates'!$C$3:$BC$249,'Prevalence Rates'!$BD140,FALSE)","v":0.1986},{"$f":"HLOOKUP(Calculations!$E$2,'Population 2016'!$C$3:$BC$249,'Population 2016'!BD140,FALSE)","v":34910},0,{"$f":"HLOOKUP(Results!E$4,Targeting!$C$3:$F$249,Targeting!$G140,FALSE)","v":5379},{"$f":"IF(AND(OR(Calculations!$E$2=\"Orkney Health Board\",Calculations!$E$2=\"Orkney Islands Local Authority\"),$F140=1),0,IF(AND(OR(Calculations!$E$2=\"Shetland Health Board\",Calculations!$E$2=\"Western Isles Health Board\",Calculations!$E$2=\"Shetland Islands Local Authority\",Calculations!$E$2=\"Eilean Siar Local Authority\"),OR($F140=1,$F140=5)),0,new_ci(VALUE(LEFT(Options!$B$24,2)),$C140,$E140,$F140,2016,$I140,1,$H140,$G140*$H140,Options!$B$8)))","v":9.2196935227000001},{"$f":"IF(AND(OR(Calculations!$E$2=\"Orkney Health Board\",Calculations!$E$2=\"Orkney Islands Local Authority\"),$F140=1),0,IF(AND(OR(Calculations!$E$2=\"Shetland Health Board\",Calculations!$E$2=\"Western Isles Health Board\",Calculations!$E$2=\"Shetland Islands Local Authority\",Calculations!$E$2=\"Eilean Siar Local Authority\"),OR($F140=1,$F140=5)),0,new_ci(VALUE(LEFT(Options!$B$24,2)),$C140,$E140,$F140,2016,$I140+$J140,1,$H140,$G140*$H140,Options!$B$8)))","v":9.1787534157999993},{"$f":"IF(AND(OR(Calculations!$E$2=\"Orkney Health Board\",Calculations!$E$2=\"Orkney Islands Local Authority\"),$F140=1),0,IF(AND(OR(Calculations!$E$2=\"Shetland Health Board\",Calculations!$E$2=\"Western Isles Health Board\",Calculations!$E$2=\"Shetland Islands Local Authority\",Calculations!$E$2=\"Eilean Siar Local Authority\"),OR($F140=1,$F140=5)),0,new_yllv2(VALUE(LEFT(Options!$B$24,2)),$C140,$D140,$E140,$F140,2016,$I140,1,$H140,$G140*$H140,Options!$B$8)))","v":540.18187115410001},{"$f":"IF(AND(OR(Calculations!$E$2=\"Orkney Health Board\",Calculations!$E$2=\"Orkney Islands Local Authority\"),$F140=1),0,IF(AND(OR(Calculations!$E$2=\"Shetland Health Board\",Calculations!$E$2=\"Western Isles Health Board\",Calculations!$E$2=\"Shetland Islands Local Authority\",Calculations!$E$2=\"Eilean Siar Local Authority\"),OR($F140=1,$F140=5)),0,new_yllv2(VALUE(LEFT(Options!$B$24,2)),$C140,$D140,$E140,$F140,2016,$I140+$J140,1,$H140,$G140*$H140,Options!$B$8)))","v":537.78319016800003},{"$f":"IF(AND(OR(Calculations!$E$2=\"Orkney Health Board\",Calculations!$E$2=\"Orkney Islands Local Authority\"),$F140=1),0,IF(AND(OR(Calculations!$E$2=\"Shetland Health Board\",Calculations!$E$2=\"Western Isles Health Board\",Calculations!$E$2=\"Shetland Islands Local Authority\",Calculations!$E$2=\"Eilean Siar Local Authority\"),OR($F140=1,$F140=5)),0,hosp_count(VALUE(LEFT(Options!$B$24,2)),$C140,$E140,$F140,2016,$I140,1,$H140,$G140*$H140, Options!$B$8)))","v":3917.2018699179998},{"$f":"IF(AND(OR(Calculations!$E$2=\"Orkney Health Board\",Calculations!$E$2=\"Orkney Islands Local Authority\"),$F140=1),0,IF(AND(OR(Calculations!$E$2=\"Shetland Health Board\",Calculations!$E$2=\"Western Isles Health Board\",Calculations!$E$2=\"Shetland Islands Local Authority\",Calculations!$E$2=\"Eilean Siar Local Authority\"),OR($F140=1,$F140=5)),0,hosp_count(VALUE(LEFT(Options!$B$24,2)),$C140,$E140,$F140,2016,$I140+$J140,1,$H140,$G140*$H140, Options!$B$8)))","v":3906.6731377000001},{"$f":"IF(AND(OR(Calculations!$E$2=\"Orkney Health Board\",Calculations!$E$2=\"Orkney Islands Local Authority\"),$F140=1),0,IF(AND(OR(Calculations!$E$2=\"Shetland Health Board\",Calculations!$E$2=\"Western Isles Health Board\",Calculations!$E$2=\"Shetland Islands Local Authority\",Calculations!$E$2=\"Eilean Siar Local Authority\"),OR($F140=1,$F140=5)),0,prem_mort(VALUE(LEFT(Options!$B$24,2)),$C140,$E140,$F140,2016,$I140,1,$H140,$G140*$H140,Options!$B$8)))","v":9.2196935227000001},{"$f":"IF(AND(OR(Calculations!$E$2=\"Orkney Health Board\",Calculations!$E$2=\"Orkney Islands Local Authority\"),$F140=1),0,IF(AND(OR(Calculations!$E$2=\"Shetland Health Board\",Calculations!$E$2=\"Western Isles Health Board\",Calculations!$E$2=\"Shetland Islands Local Authority\",Calculations!$E$2=\"Eilean Siar Local Authority\"),OR($F140=1,$F140=5)),0,prem_mort(VALUE(LEFT(Options!$B$24,2)),$C140,$E140,$F140,2016,$I140+$J140,1,$H140,$G140*$H140,Options!$B$8)))","v":9.1787534157999993},26.409892645946719,26.292619352048121,1547.355689355772,1540.4846467144084,11220.858980000001,11190.69933457462,26.409892645946719,26.292619352048121,158459.35587568031,157755.71611228873,9284134.1361346319,9242907.8802864514,67325153.88000001,67144196.00744772,158459.35587568031,157755.71611228873,6000]
[null,"Female 25-29",26.975186999999998,81.645189999999999,"female",3,{"$f":"HLOOKUP(Calculations!$E$2,'Prevalence Rates'!$C$3:$BC$249,'Prevalence Rates'!$BD141,FALSE)","v":0.23120000000000002},{"$f":"HLOOKUP(Calculations!$E$2,'Population 2016'!$C$3:$BC$249,'Population 2016'!BD141,FALSE)","v":36432},0,{"$f":"HLOOKUP(Results!E$4,Targeting!$C$3:$F$249,Targeting!$G141,FALSE)","v":5613},{"$f":"IF(AND(OR(Calculations!$E$2=\"Orkney Health Board\",Calculations!$E$2=\"Orkney Islands Local Authority\"),$F141=1),0,IF(AND(OR(Calculations!$E$2=\"Shetland Health Board\",Calculations!$E$2=\"Western Isles Health Board\",Calculations!$E$2=\"Shetland Islands Local Authority\",Calculations!$E$2=\"Eilean Siar Local Authority\"),OR($F141=1,$F141=5)),0,new_ci(VALUE(LEFT(Options!$B$24,2)),$C141,$E141,$F141,2016,$I141,1,$H141,$G141*$H141,Options!$B$8)))","v":14.5930988029},{"$f":"IF(AND(OR(Calculations!$E$2=\"Orkney Health Board\",Calculations!$E$2=\"Orkney Islands Local Authority\"),$F141=1),0,IF(AND(OR(Calculations!$E$2=\"Shetland Health Board\",Calculations!$E$2=\"Western Isles Health Board\",Calculations!$E$2=\"Shetland Islands Local Authority\",Calculations!$E$2=\"Eilean Siar Local Authority\"),OR($F141=1,$F141=5)),0,new_ci(VALUE(LEFT(Options!$B$24,2)),$C141,$E141,$F141,2016,$I141+$J141,1,$H141,$G141*$H141,Options!$B$8)))","v":14.529739258899999},{"$f":"IF(AND(OR(Calculations!$E$2=\"Orkney Health Board\",Calculations!$E$2=\"Orkney Islands Local Authority\"),$F141=1),0,IF(AND(OR(Calculations!$E$2=\"Shetland Health Board\",Calculations!$E$2=\"Western Isles Health Board\",Calculations!$E$2=\"Shetland Islands Local Authority\",Calculations!$E$2=\"Eilean Siar Local Authority\"),OR($F141=1,$F141=5)),0,new_yllv2(VALUE(LEFT(Options!$B$24,2)),$C141,$D141,$E141,$F141,2016,$I141,1,$H141,$G141*$H141,Options!$B$8)))","v":783.21165653089997},{"$f":"IF(AND(OR(Calculations!$E$2=\"Orkney Health Board\",Calculations!$E$2=\"Orkney Islands Local Authority\"),$F141=1),0,IF(AND(OR(Calculations!$E$2=\"Shetland Health Board\",Calculations!$E$2=\"Western Isles Health Board\",Calculations!$E$2=\"Shetland Islands Local Authority\",Calculations!$E$2=\"Eilean Siar Local Authority\"),OR($F141=1,$F141=5)),0,new_yllv2(VALUE(LEFT(Options!$B$24,2)),$C141,$D141,$E141,$F141,2016,$I141+$J141,1,$H141,$G141*$H141,Options!$B$8)))","v":779.81114961440005},{"$f":"IF(AND(OR(Calculations!$E$2=\"Orkney Health Board\",Calculations!$E$2=\"Orkney Islands Local Authority\"),$F141=1),0,IF(AND(OR(Calculations!$E$2=\"Shetland Health Board\",Calculations!$E$2=\"Western Isles Health Board\",Calculations!$E$2=\"Shetland Islands Local Authority\",Calculations!$E$2=\"Eilean Siar Local Authority\"),OR($F141=1,$F141=5)),0,hosp_count(VALUE(LEFT(Options!$B$24,2)),$C141,$E141,$F141,2016,$I141,1,$H141,$G141*$H141, Options!$B$8)))","v":4623.9893221104003},{"$f":"IF(AND(OR(Calculations!$E$2=\"Orkney Health Board\",Calculations!$E$2=\"Orkney Islands Local Authority\"),$F141=1),0,IF(AND(OR(Calculations!$E$2=\"Shetland Health Board\",Calculations!$E$2=\"Western Isles Health Board\",Calculations!$E$2=\"Shetland Islands Local Authority\",Calculations!$E$2=\"Eilean Siar Local Authority\"),OR($F141=1,$F141=5)),0,hosp_count(VALUE(LEFT(Options!$B$24,2)),$C141,$E141,$F141,2016,$I141+$J141,1,$H141,$G141*$H141, Options!$B$8)))","v":4611.7596919301004},{"$f":"IF(AND(OR(Calculations!$E$2=\"Orkney Health Board\",Calculations!$E$2=\"Orkney Islands Local Authority\"),$F141=1),0,IF(AND(OR(Calculations!$E$2=\"Shetland Health Board\",Calculations!$E$2=\"Western Isles Health Board\",Calculations!$E$2=\"Shetland Islands Local Authority\",Calculations!$E$2=\"Eilean Siar Local Authority\"),OR($F141=1,$F141=5)),0,prem_mort(VALUE(LEFT(Options!$B$24,2)),$C141,$E141,$F141,2016,$I141,1,$H141,$G141*$H141,Options!$B$8)))","v":14.5930988029},{"$f":"IF(AND(OR(Calculations!$E$2=\"Orkney Health Board\",Calculations!$E$2=\"Orkney Islands Local Authority\"),$F141=1),0,IF(AND(OR(Calculations!$E$2=\"Shetland Health Board\",Calculations!$E$2=\"Western Isles Health Board\",Calculations!$E$2=\"Shetland Islands Local Authority\",Calculations!$E$2=\"Eilean Siar Local Authority\"),OR($F141=1,$F141=5)),0,prem_mort(VALUE(LEFT(Options!$B$24,2)),$C141,$E141,$F141,2016,$I141+$J141,1,$H141,$G141*$H141,Options!$B$8)))","v":14.529739258899999},40.055716960090031,39.881805168258673,2149.7904494150748,2140.4566030259116,12692.109470000001,12658.541095548146,40.055716960090031,39.881805168258673,240334.3017605402,239290.83100955203,12898742.69649045,12842739.61815547,76152656.820000008,75951246.573288873,240334.3017605402,239290.83100955203,6000]
[null,"Female 30-34",31.999904999999998,81.799899999999994,"female",3,{"$f":"HLOOKUP(Calculations!$E$2,'Prevalence Rates'!$C$3:$BC$249,'Prevalence Rates'!$BD142,FALSE)","v":0.23120000000000002},{"$f":"HLOOKUP(Calculations!$E$2,'Population 2016'!$C$3:$BC$249,'Population 2016'!BD142,FALSE)","v":34795},0,{"$f":"HLOOKUP(Results!E$4,Targeting!$C$3:$F$249,Targeting!$G142,FALSE)","v":5361},{"$f":"IF(AND(OR(Calculations!$E$2=\"Orkney Health Board\",Calculations!$E$2=\"Orkney Islands Local Authority\"),$F142=1),0,IF(AND(OR(Calculations!$E$2=\"Shetland Health Board\",Calculations!$E$2=\"Western Isles Health Board\",Calculations!$E$2=\"Shetland Islands Local Authority\",Calculations!$E$2=\"Eilean Siar Local Authority\"),OR($F142=1,$F142=5)),0,new_ci(VALUE(LEFT(Options!$B$24,2)),$C142,$E142,$F142,2016,$I142,1,$H142,$G142*$H142,Options!$B$8)))","v":21.366699279500001},{"$f":"IF(AND(OR(Calculations!$E$2=\"Orkney Health Board\",Calculations!$E$2=\"Orkney Islands Local Authority\"),$F142=1),0,IF(AND(OR(Calculations!$E$2=\"Shetland Health Board\",Calculations!$E$2=\"Western Isles Health Board\",Calculations!$E$2=\"Shetland Islands Local Authority\",Calculations!$E$2=\"Eilean Siar Local Authority\"),OR($F142=1,$F142=5)),0,new_ci(VALUE(LEFT(Options!$B$24,2)),$C142,$E142,$F142,2016,$I142+$J142,1,$H142,$G142*$H142,Options!$B$8)))","v":21.273944865800001},{"$f":"IF(AND(OR(Calculations!$E$2=\"Orkney Health Board\",Calculations!$E$2=\"Orkney Islands Local Authority\"),$F142=1),0,IF(AND(OR(Calculations!$E$2=\"Shetland Health Board\",Calculations!$E$2=\"Western Isles Health Board\",Calculations!$E$2=\"Shetland Islands Local Authority\",Calculations!$E$2=\"Eilean Siar Local Authority\"),OR($F142=1,$F142=5)),0,new_yllv2(VALUE(LEFT(Options!$B$24,2)),$C142,$D142,$E142,$F142,2016,$I142,1,$H142,$G142*$H142,Options!$B$8)))","v":1042.6948180060999},{"$f":"IF(AND(OR(Calculations!$E$2=\"Orkney Health Board\",Calculations!$E$2=\"Orkney Islands Local Authority\"),$F142=1),0,IF(AND(OR(Calculations!$E$2=\"Shetland Health Board\",Calculations!$E$2=\"Western Isles Health Board\",Calculations!$E$2=\"Shetland Islands Local Authority\",Calculations!$E$2=\"Eilean Siar Local Authority\"),OR($F142=1,$F142=5)),0,new_yllv2(VALUE(LEFT(Options!$B$24,2)),$C142,$D142,$E142,$F142,2016,$I142+$J142,1,$H142,$G142*$H142,Options!$B$8)))","v":1038.1684030813001},{"$f":"IF(AND(OR(Calculations!$E$2=\"Orkney Health Board\",Calculations!$E$2=\"Orkney Islands Local Authority\"),$F142=1),0,IF(AND(OR(Calculations!$E$2=\"Shetland Health Board\",Calculations!$E$2=\"Western Isles Health Board\",Calculations!$E$2=\"Shetland Islands Local Authority\",Calculations!$E$2=\"Eilean Siar Local Authority\"),OR($F142=1,$F142=5)),0,hosp_count(VALUE(LEFT(Options!$B$24,2)),$C142,$E142,$F142,2016,$I142,1,$H142,$G142*$H142, Options!$B$8)))","v":5011.1939968795004},{"$f":"IF(AND(OR(Calculations!$E$2=\"Orkney Health Board\",Calculations!$E$2=\"Orkney Islands Local Authority\"),$F142=1),0,IF(AND(OR(Calculations!$E$2=\"Shetland Health Board\",Calculations!$E$2=\"Western Isles Health Board\",Calculations!$E$2=\"Shetland Islands Local Authority\",Calculations!$E$2=\"Eilean Siar Local Authority\"),OR($F142=1,$F142=5)),0,hosp_count(VALUE(LEFT(Options!$B$24,2)),$C142,$E142,$F142,2016,$I142+$J142,1,$H142,$G142*$H142, Options!$B$8)))","v":4997.9397625887004},{"$f":"IF(AND(OR(Calculations!$E$2=\"Orkney Health Board\",Calculations!$E$2=\"Orkney Islands Local Authority\"),$F142=1),0,IF(AND(OR(Calculations!$E$2=\"Shetland Health Board\",Calculations!$E$2=\"Western Isles Health Board\",Calculations!$E$2=\"Shetland Islands Local Authority\",Calculations!$E$2=\"Eilean Siar Local Authority\"),OR($F142=1,$F142=5)),0,prem_mort(VALUE(LEFT(Options!$B$24,2)),$C142,$E142,$F142,2016,$I142,1,$H142,$G142*$H142,Options!$B$8)))","v":21.366699279500001},{"$f":"IF(AND(OR(Calculations!$E$2=\"Orkney Health Board\",Calculations!$E$2=\"Orkney Islands Local Authority\"),$F142=1),0,IF(AND(OR(Calculations!$E$2=\"Shetland Health Board\",Calculations!$E$2=\"Western Isles Health Board\",Calculations!$E$2=\"Shetland Islands Local Authority\",Calculations!$E$2=\"Eilean Siar Local Authority\"),OR($F142=1,$F142=5)),0,prem_mort(VALUE(LEFT(Options!$B$24,2)),$C142,$E142,$F142,2016,$I142+$J142,1,$H142,$G142*$H142,Options!$B$8)))","v":21.273944865800001},61.4073840479954,61.140810075585577,2996.6800345052447,2983.6712259844808,14402.052010000001,14363.959656814774,61.4073840479954,61.140810075585577,399147.99631197011,397415.26549130626,19478420.22428409,19393862.968899123,93613338.065000013,93365737.769296035,399147.99631197011,397415.26549130626,6500]
[null,"Female 35-39",36.918118,81.898120000000006,"female",3,{"$f":"HLOOKUP(Calculations!$E$2,'Prevalence Rates'!$C$3:$BC$249,'Prevalence Rates'!$BD143,FALSE)","v":0.22220000000000001},{"$f":"HLOOKUP(Calculations!$E$2,'Population 2016'!$C$3:$BC$249,'Population 2016'!BD143,FALSE)","v":31957},0,{"$f":"HLOOKUP(Results!E$4,Targeting!$C$3:$F$249,Targeting!$G143,FALSE)","v":4924},{"$f":"IF(AND(OR(Calculations!$E$2=\"Orkney Health Board\",Calculations!$E$2=\"Orkney Islands Local Authority\"),$F143=1),0,IF(AND(OR(Calculations!$E$2=\"Shetland Health Board\",Calculations!$E$2=\"Western Isles Health Board\",Calculations!$E$2=\"Shetland Islands Local Authority\",Calculations!$E$2=\"Eilean Siar Local Authority\"),OR($F143=1,$F143=5)),0,new_ci(VALUE(LEFT(Options!$B$24,2)),$C143,$E143,$F143,2016,$I143,1,$H143,$G143*$H143,Options!$B$8)))","v":29.811510866799999},{"$f":"IF(AND(OR(Calculations!$E$2=\"Orkney Health Board\",Calculations!$E$2=\"Orkney Islands Local Authority\"),$F143=1),0,IF(AND(OR(Calculations!$E$2=\"Shetland Health Board\",Calculations!$E$2=\"Western Isles Health Board\",Calculations!$E$2=\"Shetland Islands Local Authority\",Calculations!$E$2=\"Eilean Siar Local Authority\"),OR($F143=1,$F143=5)),0,new_ci(VALUE(LEFT(Options!$B$24,2)),$C143,$E143,$F143,2016,$I143+$J143,1,$H143,$G143*$H143,Options!$B$8)))","v":29.681340495200001},{"$f":"IF(AND(OR(Calculations!$E$2=\"Orkney Health Board\",Calculations!$E$2=\"Orkney Islands Local Authority\"),$F143=1),0,IF(AND(OR(Calculations!$E$2=\"Shetland Health Board\",Calculations!$E$2=\"Western Isles Health Board\",Calculations!$E$2=\"Shetland Islands Local Authority\",Calculations!$E$2=\"Eilean Siar Local Authority\"),OR($F143=1,$F143=5)),0,new_yllv2(VALUE(LEFT(Options!$B$24,2)),$C143,$D143,$E143,$F143,2016,$I143,1,$H143,$G143*$H143,Options!$B$8)))","v":1311.1103075449},{"$f":"IF(AND(OR(Calculations!$E$2=\"Orkney Health Board\",Calculations!$E$2=\"Orkney Islands Local Authority\"),$F143=1),0,IF(AND(OR(Calculations!$E$2=\"Shetland Health Board\",Calculations!$E$2=\"Western Isles Health Board\",Calculations!$E$2=\"Shetland Islands Local Authority\",Calculations!$E$2=\"Eilean Siar Local Authority\"),OR($F143=1,$F143=5)),0,new_yllv2(VALUE(LEFT(Options!$B$24,2)),$C143,$D143,$E143,$F143,2016,$I143+$J143,1,$H143,$G143*$H143,Options!$B$8)))","v":1305.3854143415999},{"$f":"IF(AND(OR(Calculations!$E$2=\"Orkney Health Board\",Calculations!$E$2=\"Orkney Islands Local Authority\"),$F143=1),0,IF(AND(OR(Calculations!$E$2=\"Shetland Health Board\",Calculations!$E$2=\"Western Isles Health Board\",Calculations!$E$2=\"Shetland Islands Local Authority\",Calculations!$E$2=\"Eilean Siar Local Authority\"),OR($F143=1,$F143=5)),0,hosp_count(VALUE(LEFT(Options!$B$24,2)),$C143,$E143,$F143,2016,$I143,1,$H143,$G143*$H143, Options!$B$8)))","v":5208.5576023617004},{"$f":"IF(AND(OR(Calculations!$E$2=\"Orkney Health Board\",Calculations!$E$2=\"Orkney Islands Local Authority\"),$F143=1),0,IF(AND(OR(Calculations!$E$2=\"Shetland Health Board\",Calculations!$E$2=\"Western Isles Health Board\",Calculations!$E$2=\"Shetland Islands Local Authority\",Calculations!$E$2=\"Eilean Siar Local Authority\"),OR($F143=1,$F143=5)),0,hosp_count(VALUE(LEFT(Options!$B$24,2)),$C143,$E143,$F143,2016,$I143+$J143,1,$H143,$G143*$H143, Options!$B$8)))","v":5194.7198547182998},{"$f":"IF(AND(OR(Calculations!$E$2=\"Orkney Health Board\",Calculations!$E$2=\"Orkney Islands Local Authority\"),$F143=1),0,IF(AND(OR(Calculations!$E$2=\"Shetland Health Board\",Calculations!$E$2=\"Western Isles Health Board\",Calculations!$E$2=\"Shetland Islands Local Authority\",Calculations!$E$2=\"Eilean Siar Local Authority\"),OR($F143=1,$F143=5)),0,prem_mort(VALUE(LEFT(Options!$B$24,2)),$C143,$E143,$F143,2016,$I143,1,$H143,$G143*$H143,Options!$B$8)))","v":29.811510866799999},{"$f":"IF(AND(OR(Calculations!$E$2=\"Orkney Health Board\",Calculations!$E$2=\"Orkney Islands Local Authority\"),$F143=1),0,IF(AND(OR(Calculations!$E$2=\"Shetland Health Board\",Calculations!$E$2=\"Western Isles Health Board\",Calculations!$E$2=\"Shetland Islands Local Authority\",Calculations!$E$2=\"Eilean Siar Local Authority\"),OR($F143=1,$F143=5)),0,prem_mort(VALUE(LEFT(Options!$B$24,2)),$C143,$E143,$F143,2016,$I143+$J143,1,$H143,$G143*$H143,Options!$B$8)))","v":29.681340495200001},93.286324957912186,92.878995197296362,4102.7327582216731,4084.8183945351566,16298.643810000001,16255.342662697685,93.286324957912186,92.878995197296362,653004.27470538532,650152.96638107451,28719129.307551712,28593728.761746097,114090506.67000002,113787398.6388838,653004.27470538532,650152.96638107451,7000]
[null,"Female 40-44",42.077438000000001,82.30744,"female",3,{"$f":"HLOOKUP(Calculations!$E$2,'Prevalence Rates'!$C$3:$BC$249,'Prevalence Rates'!$BD144,FALSE)","v":0.22220000000000001},{"$f":"HLOOKUP(Calculations!$E$2,'Population 2016'!$C$3:$BC$249,'Population 2016'!BD144,FALSE)","v":33291},0,{"$f":"HLOOKUP(Results!E$4,Targeting!$C$3:$F$249,Targeting!$G144,FALSE)","v":5129},{"$f":"IF(AND(OR(Calculations!$E$2=\"Orkney Health Board\",Calculations!$E$2=\"Orkney Islands Local Authority\"),$F144=1),0,IF(AND(OR(Calculations!$E$2=\"Shetland Health Board\",Calculations!$E$2=\"Western Isles Health Board\",Calculations!$E$2=\"Shetland Islands Local Authority\",Calculations!$E$2=\"Eilean Siar Local Authority\"),OR($F144=1,$F144=5)),0,new_ci(VALUE(LEFT(Options!$B$24,2)),$C144,$E144,$F144,2016,$I144,1,$H144,$G144*$H144,Options!$B$8)))","v":48.150691953500001},{"$f":"IF(AND(OR(Calculations!$E$2=\"Orkney Health Board\",Calculations!$E$2=\"Orkney Islands Local Authority\"),$F144=1),0,IF(AND(OR(Calculations!$E$2=\"Shetland Health Board\",Calculations!$E$2=\"Western Isles Health Board\",Calculations!$E$2=\"Shetland Islands Local Authority\",Calculations!$E$2=\"Eilean Siar Local Authority\"),OR($F144=1,$F144=5)),0,new_ci(VALUE(LEFT(Options!$B$24,2)),$C144,$E144,$F144,2016,$I144+$J144,1,$H144,$G144*$H144,Options!$B$8)))","v":47.940572210500001},{"$f":"IF(AND(OR(Calculations!$E$2=\"Orkney Health Board\",Calculations!$E$2=\"Orkney Islands Local Authority\"),$F144=1),0,IF(AND(OR(Calculations!$E$2=\"Shetland Health Board\",Calculations!$E$2=\"Western Isles Health Board\",Calculations!$E$2=\"Shetland Islands Local Authority\",Calculations!$E$2=\"Eilean Siar Local Authority\"),OR($F144=1,$F144=5)),0,new_yllv2(VALUE(LEFT(Options!$B$24,2)),$C144,$D144,$E144,$F144,2016,$I144,1,$H144,$G144*$H144,Options!$B$8)))","v":1888.9517416372},{"$f":"IF(AND(OR(Calculations!$E$2=\"Orkney Health Board\",Calculations!$E$2=\"Orkney Islands Local Authority\"),$F144=1),0,IF(AND(OR(Calculations!$E$2=\"Shetland Health Board\",Calculations!$E$2=\"Western Isles Health Board\",Calculations!$E$2=\"Shetland Islands Local Authority\",Calculations!$E$2=\"Eilean Siar Local Authority\"),OR($F144=1,$F144=5)),0,new_yllv2(VALUE(LEFT(Options!$B$24,2)),$C144,$D144,$E144,$F144,2016,$I144+$J144,1,$H144,$G144*$H144,Options!$B$8)))","v":1880.7087436991001},{"$f":"IF(AND(OR(Calculations!$E$2=\"Orkney Health Board\",Calculations!$E$2=\"Orkney Islands Local Authority\"),$F144=1),0,IF(AND(OR(Calculations!$E$2=\"Shetland Health Board\",Calculations!$E$2=\"Western Isles Health Board\",Calculations!$E$2=\"Shetland Islands Local Authority\",Calculations!$E$2=\"Eilean Siar Local Authority\"),OR($F144=1,$F144=5)),0,hosp_count(VALUE(LEFT(Options!$B$24,2)),$C144,$E144,$F144,2016,$I144,1,$H144,$G144*$H144, Options!$B$8)))","v":6177.8773554561003},{"$f":"IF(AND(OR(Calculations!$E$2=\"Orkney Health Board\",Calculations!$E$2=\"Orkney Islands Local Authority\"),$F144=1),0,IF(AND(OR(Calculations!$E$2=\"Shetland Health Board\",Calculations!$E$2=\"Western Isles Health Board\",Calculations!$E$2=\"Shetland Islands Local Authority\",Calculations!$E$2=\"Eilean Siar Local Authority\"),OR($F144=1,$F144=5)),0,hosp_count(VALUE(LEFT(Options!$B$24,2)),$C144,$E144,$F144,2016,$I144+$J144,1,$H144,$G144*$H144, Options!$B$8)))","v":6161.4661291748998},{"$f":"IF(AND(OR(Calculations!$E$2=\"Orkney Health Board\",Calculations!$E$2=\"Orkney Islands Local Authority\"),$F144=1),0,IF(AND(OR(Calculations!$E$2=\"Shetland Health Board\",Calculations!$E$2=\"Western Isles Health Board\",Calculations!$E$2=\"Shetland Islands Local Authority\",Calculations!$E$2=\"Eilean Siar Local Authority\"),OR($F144=1,$F144=5)),0,prem_mort(VALUE(LEFT(Options!$B$24,2)),$C144,$E144,$F144,2016,$I144,1,$H144,$G144*$H144,Options!$B$8)))","v":48.150691953500001},{"$f":"IF(AND(OR(Calculations!$E$2=\"Orkney Health Board\",Calculations!$E$2=\"Orkney Islands Local Authority\"),$F144=1),0,IF(AND(OR(Calculations!$E$2=\"Shetland Health Board\",Calculations!$E$2=\"Western Isles Health Board\",Calculations!$E$2=\"Shetland Islands Local Authority\",Calculations!$E$2=\"Eilean Siar Local Authority\"),OR($F144=1,$F144=5)),0,prem_mort(VALUE(LEFT(Options!$B$24,2)),$C144,$E144,$F144,2016,$I144+$J144,1,$H144,$G144*$H144,Options!$B$8)))","v":47.940572210500001},144.63576327986542,144.00460247664535,5674.0612827406812,5649.3008431681237,18557.199710000001,18507.90342487429,144.63576327986542,144.00460247664535,1012450.3429590579,1008032.2173365174,39718428.979184769,39545105.902176864,129900397.97,129555323.97412004,1012450.3429590579,1008032.2173365174,7000]
[null,"Female 45-49",47.025772000000003,82.585769999999997,"female",3,{"$f":"HLOOKUP(Calculations!$E$2,'Prevalence Rates'!$C$3:$BC$249,'Prevalence Rates'!$BD145,FALSE)","v":0.23120000000000002},{"$f":"HLOOKUP(Calculations!$E$2,'Population 2016'!$C$3:$BC$249,'Population 2016'!BD145,FALSE)","v":40488},0,{"$f":"HLOOKUP(Results!E$4,Targeting!$C$3:$F$249,Targeting!$G145,FALSE)","v":6238},{"$f":"IF(AND(OR(Calculations!$E$2=\"Orkney Health Board\",Calculations!$E$2=\"Orkney Islands Local Authority\"),$F145=1),0,IF(AND(OR(Calculations!$E$2=\"Shetland Health Board\",Calculations!$E$2=\"Western Isles Health Board\",Calculations!$E$2=\"Shetland Islands Local Authority\",Calculations!$E$2=\"Eilean Siar Local Authority\"),OR($F145=1,$F145=5)),0,new_ci(VALUE(LEFT(Options!$B$24,2)),$C145,$E145,$F145,2016,$I145,1,$H145,$G145*$H145,Options!$B$8)))","v":89.167901300400004},{"$f":"IF(AND(OR(Calculations!$E$2=\"Orkney Health Board\",Calculations!$E$2=\"Orkney Islands Local Authority\"),$F145=1),0,IF(AND(OR(Calculations!$E$2=\"Shetland Health Board\",Calculations!$E$2=\"Western Isles Health Board\",Calculations!$E$2=\"Shetland Islands Local Authority\",Calculations!$E$2=\"Eilean Siar Local Authority\"),OR($F145=1,$F145=5)),0,new_ci(VALUE(LEFT(Options!$B$24,2)),$C145,$E145,$F145,2016,$I145+$J145,1,$H145,$G145*$H145,Options!$B$8)))","v":88.7814197724},{"$f":"IF(AND(OR(Calculations!$E$2=\"Orkney Health Board\",Calculations!$E$2=\"Orkney Islands Local Authority\"),$F145=1),0,IF(AND(OR(Calculations!$E$2=\"Shetland Health Board\",Calculations!$E$2=\"Western Isles Health Board\",Calculations!$E$2=\"Shetland Islands Local Authority\",Calculations!$E$2=\"Eilean Siar Local Authority\"),OR($F145=1,$F145=5)),0,new_yllv2(VALUE(LEFT(Options!$B$24,2)),$C145,$D145,$E145,$F145,2016,$I145,1,$H145,$G145*$H145,Options!$B$8)))","v":3081.6424906060001},{"$f":"IF(AND(OR(Calculations!$E$2=\"Orkney Health Board\",Calculations!$E$2=\"Orkney Islands Local Authority\"),$F145=1),0,IF(AND(OR(Calculations!$E$2=\"Shetland Health Board\",Calculations!$E$2=\"Western Isles Health Board\",Calculations!$E$2=\"Shetland Islands Local Authority\",Calculations!$E$2=\"Eilean Siar Local Authority\"),OR($F145=1,$F145=5)),0,new_yllv2(VALUE(LEFT(Options!$B$24,2)),$C145,$D145,$E145,$F145,2016,$I145+$J145,1,$H145,$G145*$H145,Options!$B$8)))","v":3068.2856897713},{"$f":"IF(AND(OR(Calculations!$E$2=\"Orkney Health Board\",Calculations!$E$2=\"Orkney Islands Local Authority\"),$F145=1),0,IF(AND(OR(Calculations!$E$2=\"Shetland Health Board\",Calculations!$E$2=\"Western Isles Health Board\",Calculations!$E$2=\"Shetland Islands Local Authority\",Calculations!$E$2=\"Eilean Siar Local Authority\"),OR($F145=1,$F145=5)),0,hosp_count(VALUE(LEFT(Options!$B$24,2)),$C145,$E145,$F145,2016,$I145,1,$H145,$G145*$H145, Options!$B$8)))","v":8509.3209577487996},{"$f":"IF(AND(OR(Calculations!$E$2=\"Orkney Health Board\",Calculations!$E$2=\"Orkney Islands Local Authority\"),$F145=1),0,IF(AND(OR(Calculations!$E$2=\"Shetland Health Board\",Calculations!$E$2=\"Western Isles Health Board\",Calculations!$E$2=\"Shetland Islands Local Authority\",Calculations!$E$2=\"Eilean Siar Local Authority\"),OR($F145=1,$F145=5)),0,hosp_count(VALUE(LEFT(Options!$B$24,2)),$C145,$E145,$F145,2016,$I145+$J145,1,$H145,$G145*$H145, Options!$B$8)))","v":8486.8149528646009},{"$f":"IF(AND(OR(Calculations!$E$2=\"Orkney Health Board\",Calculations!$E$2=\"Orkney Islands Local Authority\"),$F145=1),0,IF(AND(OR(Calculations!$E$2=\"Shetland Health Board\",Calculations!$E$2=\"Western Isles Health Board\",Calculations!$E$2=\"Shetland Islands Local Authority\",Calculations!$E$2=\"Eilean Siar Local Authority\"),OR($F145=1,$F145=5)),0,prem_mort(VALUE(LEFT(Options!$B$24,2)),$C145,$E145,$F145,2016,$I145,1,$H145,$G145*$H145,Options!$B$8)))","v":89.167901300400004},{"$f":"IF(AND(OR(Calculations!$E$2=\"Orkney Health Board\",Calculations!$E$2=\"Orkney Islands Local Authority\"),$F145=1),0,IF(AND(OR(Calculations!$E$2=\"Shetland Health Board\",Calculations!$E$2=\"Western Isles Health Board\",Calculations!$E$2=\"Shetland Islands Local Authority\",Calculations!$E$2=\"Eilean Siar Local Authority\"),OR($F145=1,$F145=5)),0,prem_mort(VALUE(LEFT(Options!$B$24,2)),$C145,$E145,$F145,2016,$I145+$J145,1,$H145,$G145*$H145,Options!$B$8)))","v":88.7814197724},220.2329117279194,219.27835351807943,7611.248988851019,7578.2594590281069,21016.896259999998,20961.309407391327,220.2329117279194,219.27835351807943,1541630.3820954359,1534948.474626556,53278742.921957135,53047816.213196747,147118273.81999999,146729165.85173929,1541630.3820954359,1534948.474626556,7000]
[null,"Female 50-54",51.990825999999998,82.980829999999997,"female",3,{"$f":"HLOOKUP(Calculations!$E$2,'Prevalence Rates'!$C$3:$BC$249,'Prevalence Rates'!$BD146,FALSE)","v":0.23120000000000002},{"$f":"HLOOKUP(Calculations!$E$2,'Population 2016'!$C$3:$BC$249,'Population 2016'!BD146,FALSE)","v":42537},0,{"$f":"HLOOKUP(Results!E$4,Targeting!$C$3:$F$249,Targeting!$G146,FALSE)","v":6554},{"$f":"IF(AND(OR(Calculations!$E$2=\"Orkney Health Board\",Calculations!$E$2=\"Orkney Islands Local Authority\"),$F146=1),0,IF(AND(OR(Calculations!$E$2=\"Shetland Health Board\",Calculations!$E$2=\"Western Isles Health Board\",Calculations!$E$2=\"Shetland Islands Local Authority\",Calculations!$E$2=\"Eilean Siar Local Authority\"),OR($F146=1,$F146=5)),0,new_ci(VALUE(LEFT(Options!$B$24,2)),$C146,$E146,$F146,2016,$I146,1,$H146,$G146*$H146,Options!$B$8)))","v":142.81688535059999},{"$f":"IF(AND(OR(Calculations!$E$2=\"Orkney Health Board\",Calculations!$E$2=\"Orkney Islands Local Authority\"),$F146=1),0,IF(AND(OR(Calculations!$E$2=\"Shetland Health Board\",Calculations!$E$2=\"Western Isles Health Board\",Calculations!$E$2=\"Shetland Islands Local Authority\",Calculations!$E$2=\"Eilean Siar Local Authority\"),OR($F146=1,$F146=5)),0,new_ci(VALUE(LEFT(Options!$B$24,2)),$C146,$E146,$F146,2016,$I146+$J146,1,$H146,$G146*$H146,Options!$B$8)))","v":142.1985344572},{"$f":"IF(AND(OR(Calculations!$E$2=\"Orkney Health Board\",Calculations!$E$2=\"Orkney Islands Local Authority\"),$F146=1),0,IF(AND(OR(Calculations!$E$2=\"Shetland Health Board\",Calculations!$E$2=\"Western Isles Health Board\",Calculations!$E$2=\"Shetland Islands Local Authority\",Calculations!$E$2=\"Eilean Siar Local Authority\"),OR($F146=1,$F146=5)),0,new_yllv2(VALUE(LEFT(Options!$B$24,2)),$C146,$D146,$E146,$F146,2016,$I146,1,$H146,$G146*$H146,Options!$B$8)))","v":4283.0789629319997},{"$f":"IF(AND(OR(Calculations!$E$2=\"Orkney Health Board\",Calculations!$E$2=\"Orkney Islands Local Authority\"),$F146=1),0,IF(AND(OR(Calculations!$E$2=\"Shetland Health Board\",Calculations!$E$2=\"Western Isles Health Board\",Calculations!$E$2=\"Shetland Islands Local Authority\",Calculations!$E$2=\"Eilean Siar Local Authority\"),OR($F146=1,$F146=5)),0,new_yllv2(VALUE(LEFT(Options!$B$24,2)),$C146,$D146,$E146,$F146,2016,$I146+$J146,1,$H146,$G146*$H146,Options!$B$8)))","v":4264.5346171656001},{"$f":"IF(AND(OR(Calculations!$E$2=\"Orkney Health Board\",Calculations!$E$2=\"Orkney Islands Local Authority\"),$F146=1),0,IF(AND(OR(Calculations!$E$2=\"Shetland Health Board\",Calculations!$E$2=\"Western Isles Health Board\",Calculations!$E$2=\"Shetland Islands Local Authority\",Calculations!$E$2=\"Eilean Siar Local Authority\"),OR($F146=1,$F146=5)),0,hosp_count(VALUE(LEFT(Options!$B$24,2)),$C146,$E146,$F146,2016,$I146,1,$H146,$G146*$H146, Options!$B$8)))","v":10129.178571979501},{"$f":"IF(AND(OR(Calculations!$E$2=\"Orkney Health Board\",Calculations!$E$2=\"Orkney Islands Local Authority\"),$F146=1),0,IF(AND(OR(Calculations!$E$2=\"Shetland Health Board\",Calculations!$E$2=\"Western Isles Health Board\",Calculations!$E$2=\"Shetland Islands Local Authority\",Calculations!$E$2=\"Eilean Siar Local Authority\"),OR($F146=1,$F146=5)),0,hosp_count(VALUE(LEFT(Options!$B$24,2)),$C146,$E146,$F146,2016,$I146+$J146,1,$H146,$G146*$H146, Options!$B$8)))","v":10102.386995229201},{"$f":"IF(AND(OR(Calculations!$E$2=\"Orkney Health Board\",Calculations!$E$2=\"Orkney Islands Local Authority\"),$F146=1),0,IF(AND(OR(Calculations!$E$2=\"Shetland Health Board\",Calculations!$E$2=\"Western Isles Health Board\",Calculations!$E$2=\"Shetland Islands Local Authority\",Calculations!$E$2=\"Eilean Siar Local Authority\"),OR($F146=1,$F146=5)),0,prem_mort(VALUE(LEFT(Options!$B$24,2)),$C146,$E146,$F146,2016,$I146,1,$H146,$G146*$H146,Options!$B$8)))","v":142.81688535059999},{"$f":"IF(AND(OR(Calculations!$E$2=\"Orkney Health Board\",Calculations!$E$2=\"Orkney Islands Local Authority\"),$F146=1),0,IF(AND(OR(Calculations!$E$2=\"Shetland Health Board\",Calculations!$E$2=\"Western Isles Health Board\",Calculations!$E$2=\"Shetland Islands Local Authority\",Calculations!$E$2=\"Eilean Siar Local Authority\"),OR($F146=1,$F146=5)),0,prem_mort(VALUE(LEFT(Options!$B$24,2)),$C146,$E146,$F146,2016,$I146+$J146,1,$H146,$G146*$H146,Options!$B$8)))","v":142.1985344572},335.74743247196557,334.29375474810166,10069.066842823893,10025.471042070669,23812.630350000003,23749.64617915979,335.74743247196557,334.29375474810166,2350232.027303759,2340056.2832367118,70483467.89976725,70178297.294494689,166688412.45000002,166247523.25411853,2350232.027303759,2340056.2832367118,7000]
[null,"Female 55-59",56.953040999999999,83.473039999999997,"female",3,{"$f":"HLOOKUP(Calculations!$E$2,'Prevalence Rates'!$C$3:$BC$249,'Prevalence Rates'!$BD147,FALSE)","v":0.18410000000000001},{"$f":"HLOOKUP(Calculations!$E$2,'Population 2016'!$C$3:$BC$249,'Population 2016'!BD147,FALSE)","v":39153},0,{"$f":"HLOOKUP(Results!E$4,Targeting!$C$3:$F$249,Targeting!$G147,FALSE)","v":6032},{"$f":"IF(AND(OR(Calculations!$E$2=\"Orkney Health Board\",Calculations!$E$2=\"Orkney Islands Local Authority\"),$F147=1),0,IF(AND(OR(Calculations!$E$2=\"Shetland Health Board\",Calculations!$E$2=\"Western Isles Health Board\",Calculations!$E$2=\"Shetland Islands Local Authority\",Calculations!$E$2=\"Eilean Siar Local Authority\"),OR($F147=1,$F147=5)),0,new_ci(VALUE(LEFT(Options!$B$24,2)),$C147,$E147,$F147,2016,$I147,1,$H147,$G147*$H147,Options!$B$8)))","v":200.2948881518},{"$f":"IF(AND(OR(Calculations!$E$2=\"Orkney Health Board\",Calculations!$E$2=\"Orkney Islands Local Authority\"),$F147=1),0,IF(AND(OR(Calculations!$E$2=\"Shetland Health Board\",Calculations!$E$2=\"Western Isles Health Board\",Calculations!$E$2=\"Shetland Islands Local Authority\",Calculations!$E$2=\"Eilean Siar Local Authority\"),OR($F147=1,$F147=5)),0,new_ci(VALUE(LEFT(Options!$B$24,2)),$C147,$E147,$F147,2016,$I147+$J147,1,$H147,$G147*$H147,Options!$B$8)))","v":199.40105432780001},{"$f":"IF(AND(OR(Calculations!$E$2=\"Orkney Health Board\",Calculations!$E$2=\"Orkney Islands Local Authority\"),$F147=1),0,IF(AND(OR(Calculations!$E$2=\"Shetland Health Board\",Calculations!$E$2=\"Western Isles Health Board\",Calculations!$E$2=\"Shetland Islands Local Authority\",Calculations!$E$2=\"Eilean Siar Local Authority\"),OR($F147=1,$F147=5)),0,new_yllv2(VALUE(LEFT(Options!$B$24,2)),$C147,$D147,$E147,$F147,2016,$I147,1,$H147,$G147*$H147,Options!$B$8)))","v":5111.5253453389996},{"$f":"IF(AND(OR(Calculations!$E$2=\"Orkney Health Board\",Calculations!$E$2=\"Orkney Islands Local Authority\"),$F147=1),0,IF(AND(OR(Calculations!$E$2=\"Shetland Health Board\",Calculations!$E$2=\"Western Isles Health Board\",Calculations!$E$2=\"Shetland Islands Local Authority\",Calculations!$E$2=\"Eilean Siar Local Authority\"),OR($F147=1,$F147=5)),0,new_yllv2(VALUE(LEFT(Options!$B$24,2)),$C147,$D147,$E147,$F147,2016,$I147+$J147,1,$H147,$G147*$H147,Options!$B$8)))","v":5088.7147070443998},{"$f":"IF(AND(OR(Calculations!$E$2=\"Orkney Health Board\",Calculations!$E$2=\"Orkney Islands Local Authority\"),$F147=1),0,IF(AND(OR(Calculations!$E$2=\"Shetland Health Board\",Calculations!$E$2=\"Western Isles Health Board\",Calculations!$E$2=\"Shetland Islands Local Authority\",Calculations!$E$2=\"Eilean Siar Local Authority\"),OR($F147=1,$F147=5)),0,hosp_count(VALUE(LEFT(Options!$B$24,2)),$C147,$E147,$F147,2016,$I147,1,$H147,$G147*$H147, Options!$B$8)))","v":10562.8275926019},{"$f":"IF(AND(OR(Calculations!$E$2=\"Orkney Health Board\",Calculations!$E$2=\"Orkney Islands Local Authority\"),$F147=1),0,IF(AND(OR(Calculations!$E$2=\"Shetland Health Board\",Calculations!$E$2=\"Western Isles Health Board\",Calculations!$E$2=\"Shetland Islands Local Authority\",Calculations!$E$2=\"Eilean Siar Local Authority\"),OR($F147=1,$F147=5)),0,hosp_count(VALUE(LEFT(Options!$B$24,2)),$C147,$E147,$F147,2016,$I147+$J147,1,$H147,$G147*$H147, Options!$B$8)))","v":10534.2346657569},{"$f":"IF(AND(OR(Calculations!$E$2=\"Orkney Health Board\",Calculations!$E$2=\"Orkney Islands Local Authority\"),$F147=1),0,IF(AND(OR(Calculations!$E$2=\"Shetland Health Board\",Calculations!$E$2=\"Western Isles Health Board\",Calculations!$E$2=\"Shetland Islands Local Authority\",Calculations!$E$2=\"Eilean Siar Local Authority\"),OR($F147=1,$F147=5)),0,prem_mort(VALUE(LEFT(Options!$B$24,2)),$C147,$E147,$F147,2016,$I147,1,$H147,$G147*$H147,Options!$B$8)))","v":200.2948881518},{"$f":"IF(AND(OR(Calculations!$E$2=\"Orkney Health Board\",Calculations!$E$2=\"Orkney Islands Local Authority\"),$F147=1),0,IF(AND(OR(Calculations!$E$2=\"Shetland Health Board\",Calculations!$E$2=\"Western Isles Health Board\",Calculations!$E$2=\"Shetland Islands Local Authority\",Calculations!$E$2=\"Eilean Siar Local Authority\"),OR($F147=1,$F147=5)),0,prem_mort(VALUE(LEFT(Options!$B$24,2)),$C147,$E147,$F147,2016,$I147+$J147,1,$H147,$G147*$H147,Options!$B$8)))","v":199.40105432780001},511.56970896687352,509.28678345924965,13055.258461264781,12996.998204593263,26978.335230000001,26905.306530168567,511.56970896687352,509.28678345924965,3325203.1082846778,3310364.0924851228,84859179.99822107,84480488.329856202,175359178.995,174884492.44609568,3325203.1082846778,3310364.0924851228,6500]
[null,"Female 60-64",61.947387999999997,84.167389999999997,"female",3,{"$f":"HLOOKUP(Calculations!$E$2,'Prevalence Rates'!$C$3:$BC$249,'Prevalence Rates'!$BD148,FALSE)","v":0.18410000000000001},{"$f":"HLOOKUP(Calculations!$E$2,'Population 2016'!$C$3:$BC$249,'Population 2016'!BD148,FALSE)","v":34585},0,{"$f":"HLOOKUP(Results!E$4,Targeting!$C$3:$F$249,Targeting!$G148,FALSE)","v":5329},{"$f":"IF(AND(OR(Calculations!$E$2=\"Orkney Health Board\",Calculations!$E$2=\"Orkney Islands Local Authority\"),$F148=1),0,IF(AND(OR(Calculations!$E$2=\"Shetland Health Board\",Calculations!$E$2=\"Western Isles Health Board\",Calculations!$E$2=\"Shetland Islands Local Authority\",Calculations!$E$2=\"Eilean Siar Local Authority\"),OR($F148=1,$F148=5)),0,new_ci(VALUE(LEFT(Options!$B$24,2)),$C148,$E148,$F148,2016,$I148,1,$H148,$G148*$H148,Options!$B$8)))","v":270.17507778449999},{"$f":"IF(AND(OR(Calculations!$E$2=\"Orkney Health Board\",Calculations!$E$2=\"Orkney Islands Local Authority\"),$F148=1),0,IF(AND(OR(Calculations!$E$2=\"Shetland Health Board\",Calculations!$E$2=\"Western Isles Health Board\",Calculations!$E$2=\"Shetland Islands Local Authority\",Calculations!$E$2=\"Eilean Siar Local Authority\"),OR($F148=1,$F148=5)),0,new_ci(VALUE(LEFT(Options!$B$24,2)),$C148,$E148,$F148,2016,$I148+$J148,1,$H148,$G148*$H148,Options!$B$8)))","v":268.97255696050001},{"$f":"IF(AND(OR(Calculations!$E$2=\"Orkney Health Board\",Calculations!$E$2=\"Orkney Islands Local Authority\"),$F148=1),0,IF(AND(OR(Calculations!$E$2=\"Shetland Health Board\",Calculations!$E$2=\"Western Isles Health Board\",Calculations!$E$2=\"Shetland Islands Local Authority\",Calculations!$E$2=\"Eilean Siar Local Authority\"),OR($F148=1,$F148=5)),0,new_yllv2(VALUE(LEFT(Options!$B$24,2)),$C148,$D148,$E148,$F148,2016,$I148,1,$H148,$G148*$H148,Options!$B$8)))","v":5733.1156909372003},{"$f":"IF(AND(OR(Calculations!$E$2=\"Orkney Health Board\",Calculations!$E$2=\"Orkney Islands Local Authority\"),$F148=1),0,IF(AND(OR(Calculations!$E$2=\"Shetland Health Board\",Calculations!$E$2=\"Western Isles Health Board\",Calculations!$E$2=\"Shetland Islands Local Authority\",Calculations!$E$2=\"Eilean Siar Local Authority\"),OR($F148=1,$F148=5)),0,new_yllv2(VALUE(LEFT(Options!$B$24,2)),$C148,$D148,$E148,$F148,2016,$I148+$J148,1,$H148,$G148*$H148,Options!$B$8)))","v":5707.5981966468999},{"$f":"IF(AND(OR(Calculations!$E$2=\"Orkney Health Board\",Calculations!$E$2=\"Orkney Islands Local Authority\"),$F148=1),0,IF(AND(OR(Calculations!$E$2=\"Shetland Health Board\",Calculations!$E$2=\"Western Isles Health Board\",Calculations!$E$2=\"Shetland Islands Local Authority\",Calculations!$E$2=\"Eilean Siar Local Authority\"),OR($F148=1,$F148=5)),0,hosp_count(VALUE(LEFT(Options!$B$24,2)),$C148,$E148,$F148,2016,$I148,1,$H148,$G148*$H148, Options!$B$8)))","v":10579.416535496001},{"$f":"IF(AND(OR(Calculations!$E$2=\"Orkney Health Board\",Calculations!$E$2=\"Orkney Islands Local Authority\"),$F148=1),0,IF(AND(OR(Calculations!$E$2=\"Shetland Health Board\",Calculations!$E$2=\"Western Isles Health Board\",Calculations!$E$2=\"Shetland Islands Local Authority\",Calculations!$E$2=\"Eilean Siar Local Authority\"),OR($F148=1,$F148=5)),0,hosp_count(VALUE(LEFT(Options!$B$24,2)),$C148,$E148,$F148,2016,$I148+$J148,1,$H148,$G148*$H148, Options!$B$8)))","v":10550.774637680801},{"$f":"IF(AND(OR(Calculations!$E$2=\"Orkney Health Board\",Calculations!$E$2=\"Orkney Islands Local Authority\"),$F148=1),0,IF(AND(OR(Calculations!$E$2=\"Shetland Health Board\",Calculations!$E$2=\"Western Isles Health Board\",Calculations!$E$2=\"Shetland Islands Local Authority\",Calculations!$E$2=\"Eilean Siar Local Authority\"),OR($F148=1,$F148=5)),0,prem_mort(VALUE(LEFT(Options!$B$24,2)),$C148,$E148,$F148,2016,$I148,1,$H148,$G148*$H148,Options!$B$8)))","v":270.17507778449999},{"$f":"IF(AND(OR(Calculations!$E$2=\"Orkney Health Board\",Calculations!$E$2=\"Orkney Islands Local Authority\"),$F148=1),0,IF(AND(OR(Calculations!$E$2=\"Shetland Health Board\",Calculations!$E$2=\"Western Isles Health Board\",Calculations!$E$2=\"Shetland Islands Local Authority\",Calculations!$E$2=\"Eilean Siar Local Authority\"),OR($F148=1,$F148=5)),0,prem_mort(VALUE(LEFT(Options!$B$24,2)),$C148,$E148,$F148,2016,$I148+$J148,1,$H148,$G148*$H148,Options!$B$8)))","v":268.97255696050001},781.19149279890121,777.71449171750771,16576.88503957554,16503.103069674427,30589.609759999999,30506.793805640598,781.19149279890121,777.71449171750771,4687148.956793407,4666286.9503050465,99461310.237453237,99018618.418046564,183537658.56,183040762.83384359,4687148.956793407,4666286.9503050465,6000]
[null,"Female 65-69",67.063927000000007,85.193929999999995,"female",3,{"$f":"HLOOKUP(Calculations!$E$2,'Prevalence Rates'!$C$3:$BC$249,'Prevalence Rates'!$BD149,FALSE)","v":0.1651},{"$f":"HLOOKUP(Calculations!$E$2,'Population 2016'!$C$3:$BC$249,'Population 2016'!BD149,FALSE)","v":35061},0,{"$f":"HLOOKUP(Results!E$4,Targeting!$C$3:$F$249,Targeting!$G149,FALSE)","v":5402},{"$f":"IF(AND(OR(Calculations!$E$2=\"Orkney Health Board\",Calculations!$E$2=\"Orkney Islands Local Authority\"),$F149=1),0,IF(AND(OR(Calculations!$E$2=\"Shetland Health Board\",Calculations!$E$2=\"Western Isles Health Board\",Calculations!$E$2=\"Shetland Islands Local Authority\",Calculations!$E$2=\"Eilean Siar Local Authority\"),OR($F149=1,$F149=5)),0,new_ci(VALUE(LEFT(Options!$B$24,2)),$C149,$E149,$F149,2016,$I149,1,$H149,$G149*$H149,Options!$B$8)))","v":422.27606625779998},{"$f":"IF(AND(OR(Calculations!$E$2=\"Orkney Health Board\",Calculations!$E$2=\"Orkney Islands Local Authority\"),$F149=1),0,IF(AND(OR(Calculations!$E$2=\"Shetland Health Board\",Calculations!$E$2=\"Western Isles Health Board\",Calculations!$E$2=\"Shetland Islands Local Authority\",Calculations!$E$2=\"Eilean Siar Local Authority\"),OR($F149=1,$F149=5)),0,new_ci(VALUE(LEFT(Options!$B$24,2)),$C149,$E149,$F149,2016,$I149+$J149,1,$H149,$G149*$H149,Options!$B$8)))","v":420.38025812659998},{"$f":"IF(AND(OR(Calculations!$E$2=\"Orkney Health Board\",Calculations!$E$2=\"Orkney Islands Local Authority\"),$F149=1),0,IF(AND(OR(Calculations!$E$2=\"Shetland Health Board\",Calculations!$E$2=\"Western Isles Health Board\",Calculations!$E$2=\"Shetland Islands Local Authority\",Calculations!$E$2=\"Eilean Siar Local Authority\"),OR($F149=1,$F149=5)),0,new_yllv2(VALUE(LEFT(Options!$B$24,2)),$C149,$D149,$E149,$F149,2016,$I149,1,$H149,$G149*$H149,Options!$B$8)))","v":7233.5902818243003},{"$f":"IF(AND(OR(Calculations!$E$2=\"Orkney Health Board\",Calculations!$E$2=\"Orkney Islands Local Authority\"),$F149=1),0,IF(AND(OR(Calculations!$E$2=\"Shetland Health Board\",Calculations!$E$2=\"Western Isles Health Board\",Calculations!$E$2=\"Shetland Islands Local Authority\",Calculations!$E$2=\"Eilean Siar Local Authority\"),OR($F149=1,$F149=5)),0,new_yllv2(VALUE(LEFT(Options!$B$24,2)),$C149,$D149,$E149,$F149,2016,$I149+$J149,1,$H149,$G149*$H149,Options!$B$8)))","v":7201.1150828494001},{"$f":"IF(AND(OR(Calculations!$E$2=\"Orkney Health Board\",Calculations!$E$2=\"Orkney Islands Local Authority\"),$F149=1),0,IF(AND(OR(Calculations!$E$2=\"Shetland Health Board\",Calculations!$E$2=\"Western Isles Health Board\",Calculations!$E$2=\"Shetland Islands Local Authority\",Calculations!$E$2=\"Eilean Siar Local Authority\"),OR($F149=1,$F149=5)),0,hosp_count(VALUE(LEFT(Options!$B$24,2)),$C149,$E149,$F149,2016,$I149,1,$H149,$G149*$H149, Options!$B$8)))","v":12198.090860927399},{"$f":"IF(AND(OR(Calculations!$E$2=\"Orkney Health Board\",Calculations!$E$2=\"Orkney Islands Local Authority\"),$F149=1),0,IF(AND(OR(Calculations!$E$2=\"Shetland Health Board\",Calculations!$E$2=\"Western Isles Health Board\",Calculations!$E$2=\"Shetland Islands Local Authority\",Calculations!$E$2=\"Eilean Siar Local Authority\"),OR($F149=1,$F149=5)),0,hosp_count(VALUE(LEFT(Options!$B$24,2)),$C149,$E149,$F149,2016,$I149+$J149,1,$H149,$G149*$H149, Options!$B$8)))","v":12164.7524376004},{"$f":"IF(AND(OR(Calculations!$E$2=\"Orkney Health Board\",Calculations!$E$2=\"Orkney Islands Local Authority\"),$F149=1),0,IF(AND(OR(Calculations!$E$2=\"Shetland Health Board\",Calculations!$E$2=\"Western Isles Health Board\",Calculations!$E$2=\"Shetland Islands Local Authority\",Calculations!$E$2=\"Eilean Siar Local Authority\"),OR($F149=1,$F149=5)),0,prem_mort(VALUE(LEFT(Options!$B$24,2)),$C149,$E149,$F149,2016,$I149,1,$H149,$G149*$H149,Options!$B$8)))","v":422.27606625779998},{"$f":"IF(AND(OR(Calculations!$E$2=\"Orkney Health Board\",Calculations!$E$2=\"Orkney Islands Local Authority\"),$F149=1),0,IF(AND(OR(Calculations!$E$2=\"Shetland Health Board\",Calculations!$E$2=\"Western Isles Health Board\",Calculations!$E$2=\"Shetland Islands Local Authority\",Calculations!$E$2=\"Eilean Siar Local Authority\"),OR($F149=1,$F149=5)),0,prem_mort(VALUE(LEFT(Options!$B$24,2)),$C149,$E149,$F149,2016,$I149+$J149,1,$H149,$G149*$H149,Options!$B$8)))","v":420.38025812659998},1204.4039424368957,1198.9967717024615,20631.443147155816,20538.818296253387,34791.052339999995,34695.965424832153,1204.4039424368957,1198.9967717024615,6624221.6834029267,6594482.244363538,113472937.30935699,112963500.62939362,191350787.86999997,190827809.83657685,6624221.6834029267,6594482.244363538,5500]
[null,"Female 70-74",71.938164,86.248159999999999,"female",3,{"$f":"HLOOKUP(Calculations!$E$2,'Prevalence Rates'!$C$3:$BC$249,'Prevalence Rates'!$BD150,FALSE)","v":0.1651},{"$f":"HLOOKUP(Calculations!$E$2,'Population 2016'!$C$3:$BC$249,'Population 2016'!BD150,FALSE)","v":27558},0,{"$f":"HLOOKUP(Results!E$4,Targeting!$C$3:$F$249,Targeting!$G150,FALSE)","v":4246},{"$f":"IF(AND(OR(Calculations!$E$2=\"Orkney Health Board\",Calculations!$E$2=\"Orkney Islands Local Authority\"),$F150=1),0,IF(AND(OR(Calculations!$E$2=\"Shetland Health Board\",Calculations!$E$2=\"Western Isles Health Board\",Calculations!$E$2=\"Shetland Islands Local Authority\",Calculations!$E$2=\"Eilean Siar Local Authority\"),OR($F150=1,$F150=5)),0,new_ci(VALUE(LEFT(Options!$B$24,2)),$C150,$E150,$F150,2016,$I150,1,$H150,$G150*$H150,Options!$B$8)))","v":500.75737554569997},{"$f":"IF(AND(OR(Calculations!$E$2=\"Orkney Health Board\",Calculations!$E$2=\"Orkney Islands Local Authority\"),$F150=1),0,IF(AND(OR(Calculations!$E$2=\"Shetland Health Board\",Calculations!$E$2=\"Western Isles Health Board\",Calculations!$E$2=\"Shetland Islands Local Authority\",Calculations!$E$2=\"Eilean Siar Local Authority\"),OR($F150=1,$F150=5)),0,new_ci(VALUE(LEFT(Options!$B$24,2)),$C150,$E150,$F150,2016,$I150+$J150,1,$H150,$G150*$H150,Options!$B$8)))","v":498.52376639649998},{"$f":"IF(AND(OR(Calculations!$E$2=\"Orkney Health Board\",Calculations!$E$2=\"Orkney Islands Local Authority\"),$F150=1),0,IF(AND(OR(Calculations!$E$2=\"Shetland Health Board\",Calculations!$E$2=\"Western Isles Health Board\",Calculations!$E$2=\"Shetland Islands Local Authority\",Calculations!$E$2=\"Eilean Siar Local Authority\"),OR($F150=1,$F150=5)),0,new_yllv2(VALUE(LEFT(Options!$B$24,2)),$C150,$D150,$E150,$F150,2016,$I150,1,$H150,$G150*$H150,Options!$B$8)))","v":6665.0786654838003},{"$f":"IF(AND(OR(Calculations!$E$2=\"Orkney Health Board\",Calculations!$E$2=\"Orkney Islands Local Authority\"),$F150=1),0,IF(AND(OR(Calculations!$E$2=\"Shetland Health Board\",Calculations!$E$2=\"Western Isles Health Board\",Calculations!$E$2=\"Shetland Islands Local Authority\",Calculations!$E$2=\"Eilean Siar Local Authority\"),OR($F150=1,$F150=5)),0,new_yllv2(VALUE(LEFT(Options!$B$24,2)),$C150,$D150,$E150,$F150,2016,$I150+$J150,1,$H150,$G150*$H150,Options!$B$8)))","v":6635.3493366422999},{"$f":"IF(AND(OR(Calculations!$E$2=\"Orkney Health Board\",Calculations!$E$2=\"Orkney Islands Local Authority\"),$F150=1),0,IF(AND(OR(Calculations!$E$2=\"Shetland Health Board\",Calculations!$E$2=\"Western Isles Health Board\",Calculations!$E$2=\"Shetland Islands Local Authority\",Calculations!$E$2=\"Eilean Siar Local Authority\"),OR($F150=1,$F150=5)),0,hosp_count(VALUE(LEFT(Options!$B$24,2)),$C150,$E150,$F150,2016,$I150,1,$H150,$G150*$H150, Options!$B$8)))","v":10838.3196694914},{"$f":"IF(AND(OR(Calculations!$E$2=\"Orkney Health Board\",Calculations!$E$2=\"Orkney Islands Local Authority\"),$F150=1),0,IF(AND(OR(Calculations!$E$2=\"Shetland Health Board\",Calculations!$E$2=\"Western Isles Health Board\",Calculations!$E$2=\"Shetland Islands Local Authority\",Calculations!$E$2=\"Eilean Siar Local Authority\"),OR($F150=1,$F150=5)),0,hosp_count(VALUE(LEFT(Options!$B$24,2)),$C150,$E150,$F150,2016,$I150+$J150,1,$H150,$G150*$H150, Options!$B$8)))","v":10808.697479558899},{"$f":"IF(AND(OR(Calculations!$E$2=\"Orkney Health Board\",Calculations!$E$2=\"Orkney Islands Local Authority\"),$F150=1),0,IF(AND(OR(Calculations!$E$2=\"Shetland Health Board\",Calculations!$E$2=\"Western Isles Health Board\",Calculations!$E$2=\"Shetland Islands Local Authority\",Calculations!$E$2=\"Eilean Siar Local Authority\"),OR($F150=1,$F150=5)),0,prem_mort(VALUE(LEFT(Options!$B$24,2)),$C150,$E150,$F150,2016,$I150,1,$H150,$G150*$H150,Options!$B$8)))","v":500.75737554569997},{"$f":"IF(AND(OR(Calculations!$E$2=\"Orkney Health Board\",Calculations!$E$2=\"Orkney Islands Local Authority\"),$F150=1),0,IF(AND(OR(Calculations!$E$2=\"Shetland Health Board\",Calculations!$E$2=\"Western Isles Health Board\",Calculations!$E$2=\"Shetland Islands Local Authority\",Calculations!$E$2=\"Eilean Siar Local Authority\"),OR($F150=1,$F150=5)),0,prem_mort(VALUE(LEFT(Options!$B$24,2)),$C150,$E150,$F150,2016,$I150+$J150,1,$H150,$G150*$H150,Options!$B$8)))","v":498.52376639649998},1817.1034746559981,1808.9983540042817,24185.639979257565,24077.760855803397,39329.12283,39221.632482614485,1817.1034746559981,1808.9983540042817,9085517.3732799906,9044991.7700214088,120928199.89628783,120388804.27901699,196645614.15000001,196108162.41307244,9085517.3732799906,9044991.7700214088,5000]
[null,"Female 75-79",76.942824999999999,87.812830000000005,"female",3,{"$f":"HLOOKUP(Calculations!$E$2,'Prevalence Rates'!$C$3:$BC$249,'Prevalence Rates'!$BD151,FALSE)","v":7.3700000000000002E-2},{"$f":"HLOOKUP(Calculations!$E$2,'Population 2016'!$C$3:$BC$249,'Population 2016'!BD151,FALSE)","v":22028},0,{"$f":"HLOOKUP(Results!E$4,Targeting!$C$3:$F$249,Targeting!$G151,FALSE)","v":3394},{"$f":"IF(AND(OR(Calculations!$E$2=\"Orkney Health Board\",Calculations!$E$2=\"Orkney Islands Local Authority\"),$F151=1),0,IF(AND(OR(Calculations!$E$2=\"Shetland Health Board\",Calculations!$E$2=\"Western Isles Health Board\",Calculations!$E$2=\"Shetland Islands Local Authority\",Calculations!$E$2=\"Eilean Siar Local Authority\"),OR($F151=1,$F151=5)),0,new_ci(VALUE(LEFT(Options!$B$24,2)),$C151,$E151,$F151,2016,$I151,1,$H151,$G151*$H151,Options!$B$8)))","v":609.75034261919996},{"$f":"IF(AND(OR(Calculations!$E$2=\"Orkney Health Board\",Calculations!$E$2=\"Orkney Islands Local Authority\"),$F151=1),0,IF(AND(OR(Calculations!$E$2=\"Shetland Health Board\",Calculations!$E$2=\"Western Isles Health Board\",Calculations!$E$2=\"Shetland Islands Local Authority\",Calculations!$E$2=\"Eilean Siar Local Authority\"),OR($F151=1,$F151=5)),0,new_ci(VALUE(LEFT(Options!$B$24,2)),$C151,$E151,$F151,2016,$I151+$J151,1,$H151,$G151*$H151,Options!$B$8)))","v":606.88211123200006},{"$f":"IF(AND(OR(Calculations!$E$2=\"Orkney Health Board\",Calculations!$E$2=\"Orkney Islands Local Authority\"),$F151=1),0,IF(AND(OR(Calculations!$E$2=\"Shetland Health Board\",Calculations!$E$2=\"Western Isles Health Board\",Calculations!$E$2=\"Shetland Islands Local Authority\",Calculations!$E$2=\"Eilean Siar Local Authority\"),OR($F151=1,$F151=5)),0,new_yllv2(VALUE(LEFT(Options!$B$24,2)),$C151,$D151,$E151,$F151,2016,$I151,1,$H151,$G151*$H151,Options!$B$8)))","v":6018.2389304032004},{"$f":"IF(AND(OR(Calculations!$E$2=\"Orkney Health Board\",Calculations!$E$2=\"Orkney Islands Local Authority\"),$F151=1),0,IF(AND(OR(Calculations!$E$2=\"Shetland Health Board\",Calculations!$E$2=\"Western Isles Health Board\",Calculations!$E$2=\"Shetland Islands Local Authority\",Calculations!$E$2=\"Eilean Siar Local Authority\"),OR($F151=1,$F151=5)),0,new_yllv2(VALUE(LEFT(Options!$B$24,2)),$C151,$D151,$E151,$F151,2016,$I151+$J151,1,$H151,$G151*$H151,Options!$B$8)))","v":5989.9294722703999},{"$f":"IF(AND(OR(Calculations!$E$2=\"Orkney Health Board\",Calculations!$E$2=\"Orkney Islands Local Authority\"),$F151=1),0,IF(AND(OR(Calculations!$E$2=\"Shetland Health Board\",Calculations!$E$2=\"Western Isles Health Board\",Calculations!$E$2=\"Shetland Islands Local Authority\",Calculations!$E$2=\"Eilean Siar Local Authority\"),OR($F151=1,$F151=5)),0,hosp_count(VALUE(LEFT(Options!$B$24,2)),$C151,$E151,$F151,2016,$I151,1,$H151,$G151*$H151, Options!$B$8)))","v":9825.6386700275998},{"$f":"IF(AND(OR(Calculations!$E$2=\"Orkney Health Board\",Calculations!$E$2=\"Orkney Islands Local Authority\"),$F151=1),0,IF(AND(OR(Calculations!$E$2=\"Shetland Health Board\",Calculations!$E$2=\"Western Isles Health Board\",Calculations!$E$2=\"Shetland Islands Local Authority\",Calculations!$E$2=\"Eilean Siar Local Authority\"),OR($F151=1,$F151=5)),0,hosp_count(VALUE(LEFT(Options!$B$24,2)),$C151,$E151,$F151,2016,$I151+$J151,1,$H151,$G151*$H151, Options!$B$8)))","v":9797.4865635816004},{"$f":"IF(AND(OR(Calculations!$E$2=\"Orkney Health Board\",Calculations!$E$2=\"Orkney Islands Local Authority\"),$F151=1),0,IF(AND(OR(Calculations!$E$2=\"Shetland Health Board\",Calculations!$E$2=\"Western Isles Health Board\",Calculations!$E$2=\"Shetland Islands Local Authority\",Calculations!$E$2=\"Eilean Siar Local Authority\"),OR($F151=1,$F151=5)),0,prem_mort(VALUE(LEFT(Options!$B$24,2)),$C151,$E151,$F151,2016,$I151,1,$H151,$G151*$H151,Options!$B$8)))","v":0},{"$f":"IF(AND(OR(Calculations!$E$2=\"Orkney Health Board\",Calculations!$E$2=\"Orkney Islands Local Authority\"),$F151=1),0,IF(AND(OR(Calculations!$E$2=\"Shetland Health Board\",Calculations!$E$2=\"Western Isles Health Board\",Calculations!$E$2=\"Shetland Islands Local Authority\",Calculations!$E$2=\"Eilean Siar Local Authority\"),OR($F151=1,$F151=5)),0,prem_mort(VALUE(LEFT(Options!$B$24,2)),$C151,$E151,$F151,2016,$I151+$J151,1,$H151,$G151*$H151,Options!$B$8)))","v":0},2768.0694689449792,2755.0486255311425,27320.859498834212,27192.343709235516,44605.223669999999,44477.422206199386,0,0,11072277.875779917,11020194.50212457,109283437.99533685,108769374.83694206,178420894.68000001,177909688.82479754,0,0,4000]
[null,"Female 80-84",81.856712000000002,89.736710000000002,"female",3,{"$f":"HLOOKUP(Calculations!$E$2,'Prevalence Rates'!$C$3:$BC$249,'Prevalence Rates'!$BD152,FALSE)","v":7.3700000000000002E-2},{"$f":"HLOOKUP(Calculations!$E$2,'Population 2016'!$C$3:$BC$249,'Population 2016'!BD152,FALSE)","v":16697},0,{"$f":"HLOOKUP(Results!E$4,Targeting!$C$3:$F$249,Targeting!$G152,FALSE)","v":2573},{"$f":"IF(AND(OR(Calculations!$E$2=\"Orkney Health Board\",Calculations!$E$2=\"Orkney Islands Local Authority\"),$F152=1),0,IF(AND(OR(Calculations!$E$2=\"Shetland Health Board\",Calculations!$E$2=\"Western Isles Health Board\",Calculations!$E$2=\"Shetland Islands Local Authority\",Calculations!$E$2=\"Eilean Siar Local Authority\"),OR($F152=1,$F152=5)),0,new_ci(VALUE(LEFT(Options!$B$24,2)),$C152,$E152,$F152,2016,$I152,1,$H152,$G152*$H152,Options!$B$8)))","v":696.73037898220002},{"$f":"IF(AND(OR(Calculations!$E$2=\"Orkney Health Board\",Calculations!$E$2=\"Orkney Islands Local Authority\"),$F152=1),0,IF(AND(OR(Calculations!$E$2=\"Shetland Health Board\",Calculations!$E$2=\"Western Isles Health Board\",Calculations!$E$2=\"Shetland Islands Local Authority\",Calculations!$E$2=\"Eilean Siar Local Authority\"),OR($F152=1,$F152=5)),0,new_ci(VALUE(LEFT(Options!$B$24,2)),$C152,$E152,$F152,2016,$I152+$J152,1,$H152,$G152*$H152,Options!$B$8)))","v":693.50784983300002},{"$f":"IF(AND(OR(Calculations!$E$2=\"Orkney Health Board\",Calculations!$E$2=\"Orkney Islands Local Authority\"),$F152=1),0,IF(AND(OR(Calculations!$E$2=\"Shetland Health Board\",Calculations!$E$2=\"Western Isles Health Board\",Calculations!$E$2=\"Shetland Islands Local Authority\",Calculations!$E$2=\"Eilean Siar Local Authority\"),OR($F152=1,$F152=5)),0,new_yllv2(VALUE(LEFT(Options!$B$24,2)),$C152,$D152,$E152,$F152,2016,$I152,1,$H152,$G152*$H152,Options!$B$8)))","v":4793.5036139368003},{"$f":"IF(AND(OR(Calculations!$E$2=\"Orkney Health Board\",Calculations!$E$2=\"Orkney Islands Local Authority\"),$F152=1),0,IF(AND(OR(Calculations!$E$2=\"Shetland Health Board\",Calculations!$E$2=\"Western Isles Health Board\",Calculations!$E$2=\"Shetland Islands Local Authority\",Calculations!$E$2=\"Eilean Siar Local Authority\"),OR($F152=1,$F152=5)),0,new_yllv2(VALUE(LEFT(Options!$B$24,2)),$C152,$D152,$E152,$F152,2016,$I152+$J152,1,$H152,$G152*$H152,Options!$B$8)))","v":4771.3326198352997},{"$f":"IF(AND(OR(Calculations!$E$2=\"Orkney Health Board\",Calculations!$E$2=\"Orkney Islands Local Authority\"),$F152=1),0,IF(AND(OR(Calculations!$E$2=\"Shetland Health Board\",Calculations!$E$2=\"Western Isles Health Board\",Calculations!$E$2=\"Shetland Islands Local Authority\",Calculations!$E$2=\"Eilean Siar Local Authority\"),OR($F152=1,$F152=5)),0,hosp_count(VALUE(LEFT(Options!$B$24,2)),$C152,$E152,$F152,2016,$I152,1,$H152,$G152*$H152, Options!$B$8)))","v":8427.6017503116},{"$f":"IF(AND(OR(Calculations!$E$2=\"Orkney Health Board\",Calculations!$E$2=\"Orkney Islands Local Authority\"),$F152=1),0,IF(AND(OR(Calculations!$E$2=\"Shetland Health Board\",Calculations!$E$2=\"Western Isles Health Board\",Calculations!$E$2=\"Shetland Islands Local Authority\",Calculations!$E$2=\"Eilean Siar Local Authority\"),OR($F152=1,$F152=5)),0,hosp_count(VALUE(LEFT(Options!$B$24,2)),$C152,$E152,$F152,2016,$I152+$J152,1,$H152,$G152*$H152, Options!$B$8)))","v":8403.4516643356001},{"$f":"IF(AND(OR(Calculations!$E$2=\"Orkney Health Board\",Calculations!$E$2=\"Orkney Islands Local Authority\"),$F152=1),0,IF(AND(OR(Calculations!$E$2=\"Shetland Health Board\",Calculations!$E$2=\"Western Isles Health Board\",Calculations!$E$2=\"Shetland Islands Local Authority\",Calculations!$E$2=\"Eilean Siar Local Authority\"),OR($F152=1,$F152=5)),0,prem_mort(VALUE(LEFT(Options!$B$24,2)),$C152,$E152,$F152,2016,$I152,1,$H152,$G152*$H152,Options!$B$8)))","v":0},{"$f":"IF(AND(OR(Calculations!$E$2=\"Orkney Health Board\",Calculations!$E$2=\"Orkney Islands Local Authority\"),$F152=1),0,IF(AND(OR(Calculations!$E$2=\"Shetland Health Board\",Calculations!$E$2=\"Western Isles Health Board\",Calculations!$E$2=\"Shetland Islands Local Authority\",Calculations!$E$2=\"Eilean Siar Local Authority\"),OR($F152=1,$F152=5)),0,prem_mort(VALUE(LEFT(Options!$B$24,2)),$C152,$E152,$F152,2016,$I152+$J152,1,$H152,$G152*$H152,Options!$B$8)))","v":0},4172.7878000970231,4153.4877512906514,28708.771719092056,28575.987421903934,50473.74828,50329.111003986349,0,0,10431969.500242557,10383719.378226629,71771929.297730133,71439968.55475983,126184370.7,125822777.50996587,0,0,2500]
[null,"Female 85-89",86.730819999999994,92.220819999999989,"female",3,{"$f":"HLOOKUP(Calculations!$E$2,'Prevalence Rates'!$C$3:$BC$249,'Prevalence Rates'!$BD153,FALSE)","v":7.3700000000000002E-2},{"$f":"HLOOKUP(Calculations!$E$2,'Population 2016'!$C$3:$BC$249,'Population 2016'!BD153,FALSE)","v":10459},0,{"$f":"HLOOKUP(Results!E$4,Targeting!$C$3:$F$249,Targeting!$G153,FALSE)","v":1611},{"$f":"IF(AND(OR(Calculations!$E$2=\"Orkney Health Board\",Calculations!$E$2=\"Orkney Islands Local Authority\"),$F153=1),0,IF(AND(OR(Calculations!$E$2=\"Shetland Health Board\",Calculations!$E$2=\"Western Isles Health Board\",Calculations!$E$2=\"Shetland Islands Local Authority\",Calculations!$E$2=\"Eilean Siar Local Authority\"),OR($F153=1,$F153=5)),0,new_ci(VALUE(LEFT(Options!$B$24,2)),$C153,$E153,$F153,2016,$I153,1,$H153,$G153*$H153,Options!$B$8)))","v":653.23809431510006},{"$f":"IF(AND(OR(Calculations!$E$2=\"Orkney Health Board\",Calculations!$E$2=\"Orkney Islands Local Authority\"),$F153=1),0,IF(AND(OR(Calculations!$E$2=\"Shetland Health Board\",Calculations!$E$2=\"Western Isles Health Board\",Calculations!$E$2=\"Shetland Islands Local Authority\",Calculations!$E$2=\"Eilean Siar Local Authority\"),OR($F153=1,$F153=5)),0,new_ci(VALUE(LEFT(Options!$B$24,2)),$C153,$E153,$F153,2016,$I153+$J153,1,$H153,$G153*$H153,Options!$B$8)))","v":650.29456452559998},{"$f":"IF(AND(OR(Calculations!$E$2=\"Orkney Health Board\",Calculations!$E$2=\"Orkney Islands Local Authority\"),$F153=1),0,IF(AND(OR(Calculations!$E$2=\"Shetland Health Board\",Calculations!$E$2=\"Western Isles Health Board\",Calculations!$E$2=\"Shetland Islands Local Authority\",Calculations!$E$2=\"Eilean Siar Local Authority\"),OR($F153=1,$F153=5)),0,new_yllv2(VALUE(LEFT(Options!$B$24,2)),$C153,$D153,$E153,$F153,2016,$I153,1,$H153,$G153*$H153,Options!$B$8)))","v":2933.0390434748001},{"$f":"IF(AND(OR(Calculations!$E$2=\"Orkney Health Board\",Calculations!$E$2=\"Orkney Islands Local Authority\"),$F153=1),0,IF(AND(OR(Calculations!$E$2=\"Shetland Health Board\",Calculations!$E$2=\"Western Isles Health Board\",Calculations!$E$2=\"Shetland Islands Local Authority\",Calculations!$E$2=\"Eilean Siar Local Authority\"),OR($F153=1,$F153=5)),0,new_yllv2(VALUE(LEFT(Options!$B$24,2)),$C153,$D153,$E153,$F153,2016,$I153+$J153,1,$H153,$G153*$H153,Options!$B$8)))","v":2919.8225947198998},{"$f":"IF(AND(OR(Calculations!$E$2=\"Orkney Health Board\",Calculations!$E$2=\"Orkney Islands Local Authority\"),$F153=1),0,IF(AND(OR(Calculations!$E$2=\"Shetland Health Board\",Calculations!$E$2=\"Western Isles Health Board\",Calculations!$E$2=\"Shetland Islands Local Authority\",Calculations!$E$2=\"Eilean Siar Local Authority\"),OR($F153=1,$F153=5)),0,hosp_count(VALUE(LEFT(Options!$B$24,2)),$C153,$E153,$F153,2016,$I153,1,$H153,$G153*$H153, Options!$B$8)))","v":5967.6178789523001},{"$f":"IF(AND(OR(Calculations!$E$2=\"Orkney Health Board\",Calculations!$E$2=\"Orkney Islands Local Authority\"),$F153=1),0,IF(AND(OR(Calculations!$E$2=\"Shetland Health Board\",Calculations!$E$2=\"Western Isles Health Board\",Calculations!$E$2=\"Shetland Islands Local Authority\",Calculations!$E$2=\"Eilean Siar Local Authority\"),OR($F153=1,$F153=5)),0,hosp_count(VALUE(LEFT(Options!$B$24,2)),$C153,$E153,$F153,2016,$I153+$J153,1,$H153,$G153*$H153, Options!$B$8)))","v":5950.5248226724998},{"$f":"IF(AND(OR(Calculations!$E$2=\"Orkney Health Board\",Calculations!$E$2=\"Orkney Islands Local Authority\"),$F153=1),0,IF(AND(OR(Calculations!$E$2=\"Shetland Health Board\",Calculations!$E$2=\"Western Isles Health Board\",Calculations!$E$2=\"Shetland Islands Local Authority\",Calculations!$E$2=\"Eilean Siar Local Authority\"),OR($F153=1,$F153=5)),0,prem_mort(VALUE(LEFT(Options!$B$24,2)),$C153,$E153,$F153,2016,$I153,1,$H153,$G153*$H153,Options!$B$8)))","v":0},{"$f":"IF(AND(OR(Calculations!$E$2=\"Orkney Health Board\",Calculations!$E$2=\"Orkney Islands Local Authority\"),$F153=1),0,IF(AND(OR(Calculations!$E$2=\"Shetland Health Board\",Calculations!$E$2=\"Western Isles Health Board\",Calculations!$E$2=\"Shetland Islands Local Authority\",Calculations!$E$2=\"Eilean Siar Local Authority\"),OR($F153=1,$F153=5)),0,prem_mort(VALUE(LEFT(Options!$B$24,2)),$C153,$E153,$F153,2016,$I153+$J153,1,$H153,$G153*$H153,Options!$B$8)))","v":0},6245.7031677512196,6217.5596569997133,28043.207223202982,27916.842859928289,57057.250970000008,56893.821805837069,0,0,9368554.7516268287,9326339.4854995701,42064810.834804475,41875264.289892435,85585876.455000013,85340732.708755597,0,0,1500]
[null,"Female 90+",92.779342999999997,96.279340000000005,"female",3,{"$f":"HLOOKUP(Calculations!$E$2,'Prevalence Rates'!$C$3:$BC$249,'Prevalence Rates'!$BD154,FALSE)","v":7.3700000000000002E-2},{"$f":"HLOOKUP(Calculations!$E$2,'Population 2016'!$C$3:$BC$249,'Population 2016'!BD154,FALSE)","v":6278},0,{"$f":"HLOOKUP(Results!E$4,Targeting!$C$3:$F$249,Targeting!$G154,FALSE)","v":967},{"$f":"IF(AND(OR(Calculations!$E$2=\"Orkney Health Board\",Calculations!$E$2=\"Orkney Islands Local Authority\"),$F154=1),0,IF(AND(OR(Calculations!$E$2=\"Shetland Health Board\",Calculations!$E$2=\"Western Isles Health Board\",Calculations!$E$2=\"Shetland Islands Local Authority\",Calculations!$E$2=\"Eilean Siar Local Authority\"),OR($F154=1,$F154=5)),0,new_ci(VALUE(LEFT(Options!$B$24,2)),$C154,$E154,$F154,2016,$I154,1,$H154,$G154*$H154,Options!$B$8)))","v":641.51241200849995},{"$f":"IF(AND(OR(Calculations!$E$2=\"Orkney Health Board\",Calculations!$E$2=\"Orkney Islands Local Authority\"),$F154=1),0,IF(AND(OR(Calculations!$E$2=\"Shetland Health Board\",Calculations!$E$2=\"Western Isles Health Board\",Calculations!$E$2=\"Shetland Islands Local Authority\",Calculations!$E$2=\"Eilean Siar Local Authority\"),OR($F154=1,$F154=5)),0,new_ci(VALUE(LEFT(Options!$B$24,2)),$C154,$E154,$F154,2016,$I154+$J154,1,$H154,$G154*$H154,Options!$B$8)))","v":638.76544253750001},{"$f":"IF(AND(OR(Calculations!$E$2=\"Orkney Health Board\",Calculations!$E$2=\"Orkney Islands Local Authority\"),$F154=1),0,IF(AND(OR(Calculations!$E$2=\"Shetland Health Board\",Calculations!$E$2=\"Western Isles Health Board\",Calculations!$E$2=\"Shetland Islands Local Authority\",Calculations!$E$2=\"Eilean Siar Local Authority\"),OR($F154=1,$F154=5)),0,new_yllv2(VALUE(LEFT(Options!$B$24,2)),$C154,$D154,$E154,$F154,2016,$I154,1,$H154,$G154*$H154,Options!$B$8)))","v":1603.779105484},{"$f":"IF(AND(OR(Calculations!$E$2=\"Orkney Health Board\",Calculations!$E$2=\"Orkney Islands Local Authority\"),$F154=1),0,IF(AND(OR(Calculations!$E$2=\"Shetland Health Board\",Calculations!$E$2=\"Western Isles Health Board\",Calculations!$E$2=\"Shetland Islands Local Authority\",Calculations!$E$2=\"Eilean Siar Local Authority\"),OR($F154=1,$F154=5)),0,new_yllv2(VALUE(LEFT(Options!$B$24,2)),$C154,$D154,$E154,$F154,2016,$I154+$J154,1,$H154,$G154*$H154,Options!$B$8)))","v":1596.9116900474},{"$f":"IF(AND(OR(Calculations!$E$2=\"Orkney Health Board\",Calculations!$E$2=\"Orkney Islands Local Authority\"),$F154=1),0,IF(AND(OR(Calculations!$E$2=\"Shetland Health Board\",Calculations!$E$2=\"Western Isles Health Board\",Calculations!$E$2=\"Shetland Islands Local Authority\",Calculations!$E$2=\"Eilean Siar Local Authority\"),OR($F154=1,$F154=5)),0,hosp_count(VALUE(LEFT(Options!$B$24,2)),$C154,$E154,$F154,2016,$I154,1,$H154,$G154*$H154, Options!$B$8)))","v":4170.6800816340001},{"$f":"IF(AND(OR(Calculations!$E$2=\"Orkney Health Board\",Calculations!$E$2=\"Orkney Islands Local Authority\"),$F154=1),0,IF(AND(OR(Calculations!$E$2=\"Shetland Health Board\",Calculations!$E$2=\"Western Isles Health Board\",Calculations!$E$2=\"Shetland Islands Local Authority\",Calculations!$E$2=\"Eilean Siar Local Authority\"),OR($F154=1,$F154=5)),0,hosp_count(VALUE(LEFT(Options!$B$24,2)),$C154,$E154,$F154,2016,$I154+$J154,1,$H154,$G154*$H154, Options!$B$8)))","v":4158.7340026157999},{"$f":"IF(AND(OR(Calculations!$E$2=\"Orkney Health Board\",Calculations!$E$2=\"Orkney Islands Local Authority\"),$F154=1),0,IF(AND(OR(Calculations!$E$2=\"Shetland Health Board\",Calculations!$E$2=\"Western Isles Health Board\",Calculations!$E$2=\"Shetland Islands Local Authority\",Calculations!$E$2=\"Eilean Siar Local Authority\"),OR($F154=1,$F154=5)),0,prem_mort(VALUE(LEFT(Options!$B$24,2)),$C154,$E154,$F154,2016,$I154,1,$H154,$G154*$H154,Options!$B$8)))","v":0},{"$f":"IF(AND(OR(Calculations!$E$2=\"Orkney Health Board\",Calculations!$E$2=\"Orkney Islands Local Authority\"),$F154=1),0,IF(AND(OR(Calculations!$E$2=\"Shetland Health Board\",Calculations!$E$2=\"Western Isles Health Board\",Calculations!$E$2=\"Shetland Islands Local Authority\",Calculations!$E$2=\"Eilean Siar Local Authority\"),OR($F154=1,$F154=5)),0,prem_mort(VALUE(LEFT(Options!$B$24,2)),$C154,$E154,$F154,2016,$I154+$J154,1,$H154,$G154*$H154,Options!$B$8)))","v":0},10218.420070221408,10174.664583266964,25546.019520293084,25436.630934173303,66433.260299999994,66242.975511561002,0,0,10218420.070221407,10174664.583266964,25546019.520293083,25436630.934173305,66433260.299999997,66242975.511560999,0,0,1000]
[null,"Male 0-4",2.0320822999999999,77.402082000000007,"male",3,{"$f":"HLOOKUP(Calculations!$E$2,'Prevalence Rates'!$C$3:$BC$249,'Prevalence Rates'!$BD155,FALSE)","v":0},{"$f":"HLOOKUP(Calculations!$E$2,'Population 2016'!$C$3:$BC$249,'Population 2016'!BD155,FALSE)","v":0},0,{"$f":"HLOOKUP(Results!E$4,Targeting!$C$3:$F$249,Targeting!$G155,FALSE)","v":0},{"$f":"IF(AND(OR(Calculations!$E$2=\"Orkney Health Board\",Calculations!$E$2=\"Orkney Islands Local Authority\"),$F155=1),0,IF(AND(OR(Calculations!$E$2=\"Shetland Health Board\",Calculations!$E$2=\"Western Isles Health Board\",Calculations!$E$2=\"Shetland Islands Local Authority\",Calculations!$E$2=\"Eilean Siar Local Authority\"),OR($F155=1,$F155=5)),0,new_ci(VALUE(LEFT(Options!$B$24,2)),$C155,$E155,$F155,2016,$I155,1,$H155,$G155*$H155,Options!$B$8)))","v":{"$error":"#VALUE!"}},{"$f":"IF(AND(OR(Calculations!$E$2=\"Orkney Health Board\",Calculations!$E$2=\"Orkney Islands Local Authority\"),$F155=1),0,IF(AND(OR(Calculations!$E$2=\"Shetland Health Board\",Calculations!$E$2=\"Western Isles Health Board\",Calculations!$E$2=\"Shetland Islands Local Authority\",Calculations!$E$2=\"Eilean Siar Local Authority\"),OR($F155=1,$F155=5)),0,new_ci(VALUE(LEFT(Options!$B$24,2)),$C155,$E155,$F155,2016,$I155+$J155,1,$H155,$G155*$H155,Options!$B$8)))","v":{"$error":"#VALUE!"}},{"$f":"IF(AND(OR(Calculations!$E$2=\"Orkney Health Board\",Calculations!$E$2=\"Orkney Islands Local Authority\"),$F155=1),0,IF(AND(OR(Calculations!$E$2=\"Shetland Health Board\",Calculations!$E$2=\"Western Isles Health Board\",Calculations!$E$2=\"Shetland Islands Local Authority\",Calculations!$E$2=\"Eilean Siar Local Authority\"),OR($F155=1,$F155=5)),0,new_yllv2(VALUE(LEFT(Options!$B$24,2)),$C155,$D155,$E155,$F155,2016,$I155,1,$H155,$G155*$H155,Options!$B$8)))","v":{"$error":"#VALUE!"}},{"$f":"IF(AND(OR(Calculations!$E$2=\"Orkney Health Board\",Calculations!$E$2=\"Orkney Islands Local Authority\"),$F155=1),0,IF(AND(OR(Calculations!$E$2=\"Shetland Health Board\",Calculations!$E$2=\"Western Isles Health Board\",Calculations!$E$2=\"Shetland Islands Local Authority\",Calculations!$E$2=\"Eilean Siar Local Authority\"),OR($F155=1,$F155=5)),0,new_yllv2(VALUE(LEFT(Options!$B$24,2)),$C155,$D155,$E155,$F155,2016,$I155+$J155,1,$H155,$G155*$H155,Options!$B$8)))","v":{"$error":"#VALUE!"}},{"$f":"IF(AND(OR(Calculations!$E$2=\"Orkney Health Board\",Calculations!$E$2=\"Orkney Islands Local Authority\"),$F155=1),0,IF(AND(OR(Calculations!$E$2=\"Shetland Health Board\",Calculations!$E$2=\"Western Isles Health Board\",Calculations!$E$2=\"Shetland Islands Local Authority\",Calculations!$E$2=\"Eilean Siar Local Authority\"),OR($F155=1,$F155=5)),0,hosp_count(VALUE(LEFT(Options!$B$24,2)),$C155,$E155,$F155,2016,$I155,1,$H155,$G155*$H155, Options!$B$8)))","v":{"$error":"#VALUE!"}},{"$f":"IF(AND(OR(Calculations!$E$2=\"Orkney Health Board\",Calculations!$E$2=\"Orkney Islands Local Authority\"),$F155=1),0,IF(AND(OR(Calculations!$E$2=\"Shetland Health Board\",Calculations!$E$2=\"Western Isles Health Board\",Calculations!$E$2=\"Shetland Islands Local Authority\",Calculations!$E$2=\"Eilean Siar Local Authority\"),OR($F155=1,$F155=5)),0,hosp_count(VALUE(LEFT(Options!$B$24,2)),$C155,$E155,$F155,2016,$I155+$J155,1,$H155,$G155*$H155, Options!$B$8)))","v":{"$error":"#VALUE!"}},{"$f":"IF(AND(OR(Calculations!$E$2=\"Orkney Health Board\",Calculations!$E$2=\"Orkney Islands Local Authority\"),$F155=1),0,IF(AND(OR(Calculations!$E$2=\"Shetland Health Board\",Calculations!$E$2=\"Western Isles Health Board\",Calculations!$E$2=\"Shetland Islands Local Authority\",Calculations!$E$2=\"Eilean Siar Local Authority\"),OR($F155=1,$F155=5)),0,prem_mort(VALUE(LEFT(Options!$B$24,2)),$C155,$E155,$F155,2016,$I155,1,$H155,$G155*$H155,Options!$B$8)))","v":{"$error":"#VALUE!"}},{"$f":"IF(AND(OR(Calculations!$E$2=\"Orkney Health Board\",Calculations!$E$2=\"Orkney Islands Local Authority\"),$F155=1),0,IF(AND(OR(Calculations!$E$2=\"Shetland Health Board\",Calculations!$E$2=\"Western Isles Health Board\",Calculations!$E$2=\"Shetland Islands Local Authority\",Calculations!$E$2=\"Eilean Siar Local Authority\"),OR($F155=1,$F155=5)),0,prem_mort(VALUE(LEFT(Options!$B$24,2)),$C155,$E155,$F155,2016,$I155+$J155,1,$H155,$G155*$H155,Options!$B$8)))","v":{"$error":"#VALUE!"}},{"$error":"#VALUE!"},{"$error":"#VALUE!"},{"$error":"#VALUE!"},{"$error":"#VALUE!"},{"$error":"#VALUE!"},{"$error":"#VALUE!"},{"$error":"#VALUE!"},{"$error":"#VALUE!"},{"$error":"#VALUE!"},{"$error":"#VALUE!"},{"$error":"#VALUE!"},{"$error":"#VALUE!"},{"$error":"#VALUE!"},{"$error":"#VALUE!"},{"$error":"#VALUE!"},{"$error":"#VALUE!"},5000]
[null,"Male 5-9",6.9784756000000003,77.398476000000002,"male",3,{"$f":"HLOOKUP(Calculations!$E$2,'Prevalence Rates'!$C$3:$BC$249,'Prevalence Rates'!$BD156,FALSE)","v":0},{"$f":"HLOOKUP(Calculations!$E$2,'Population 2016'!$C$3:$BC$249,'Population 2016'!BD156,FALSE)","v":0},0,{"$f":"HLOOKUP(Results!E$4,Targeting!$C$3:$F$249,Targeting!$G156,FALSE)","v":0},{"$f":"IF(AND(OR(Calculations!$E$2=\"Orkney Health Board\",Calculations!$E$2=\"Orkney Islands Local Authority\"),$F156=1),0,IF(AND(OR(Calculations!$E$2=\"Shetland Health Board\",Calculations!$E$2=\"Western Isles Health Board\",Calculations!$E$2=\"Shetland Islands Local Authority\",Calculations!$E$2=\"Eilean Siar Local Authority\"),OR($F156=1,$F156=5)),0,new_ci(VALUE(LEFT(Options!$B$24,2)),$C156,$E156,$F156,2016,$I156,1,$H156,$G156*$H156,Options!$B$8)))","v":{"$error":"#VALUE!"}},{"$f":"IF(AND(OR(Calculations!$E$2=\"Orkney Health Board\",Calculations!$E$2=\"Orkney Islands Local Authority\"),$F156=1),0,IF(AND(OR(Calculations!$E$2=\"Shetland Health Board\",Calculations!$E$2=\"Western Isles Health Board\",Calculations!$E$2=\"Shetland Islands Local Authority\",Calculations!$E$2=\"Eilean Siar Local Authority\"),OR($F156=1,$F156=5)),0,new_ci(VALUE(LEFT(Options!$B$24,2)),$C156,$E156,$F156,2016,$I156+$J156,1,$H156,$G156*$H156,Options!$B$8)))","v":{"$error":"#VALUE!"}},{"$f":"IF(AND(OR(Calculations!$E$2=\"Orkney Health Board\",Calculations!$E$2=\"Orkney Islands Local Authority\"),$F156=1),0,IF(AND(OR(Calculations!$E$2=\"Shetland Health Board\",Calculations!$E$2=\"Western Isles Health Board\",Calculations!$E$2=\"Shetland Islands Local Authority\",Calculations!$E$2=\"Eilean Siar Local Authority\"),OR($F156=1,$F156=5)),0,new_yllv2(VALUE(LEFT(Options!$B$24,2)),$C156,$D156,$E156,$F156,2016,$I156,1,$H156,$G156*$H156,Options!$B$8)))","v":{"$error":"#VALUE!"}},{"$f":"IF(AND(OR(Calculations!$E$2=\"Orkney Health Board\",Calculations!$E$2=\"Orkney Islands Local Authority\"),$F156=1),0,IF(AND(OR(Calculations!$E$2=\"Shetland Health Board\",Calculations!$E$2=\"Western Isles Health Board\",Calculations!$E$2=\"Shetland Islands Local Authority\",Calculations!$E$2=\"Eilean Siar Local Authority\"),OR($F156=1,$F156=5)),0,new_yllv2(VALUE(LEFT(Options!$B$24,2)),$C156,$D156,$E156,$F156,2016,$I156+$J156,1,$H156,$G156*$H156,Options!$B$8)))","v":{"$error":"#VALUE!"}},{"$f":"IF(AND(OR(Calculations!$E$2=\"Orkney Health Board\",Calculations!$E$2=\"Orkney Islands Local Authority\"),$F156=1),0,IF(AND(OR(Calculations!$E$2=\"Shetland Health Board\",Calculations!$E$2=\"Western Isles Health Board\",Calculations!$E$2=\"Shetland Islands Local Authority\",Calculations!$E$2=\"Eilean Siar Local Authority\"),OR($F156=1,$F156=5)),0,hosp_count(VALUE(LEFT(Options!$B$24,2)),$C156,$E156,$F156,2016,$I156,1,$H156,$G156*$H156, Options!$B$8)))","v":{"$error":"#VALUE!"}},{"$f":"IF(AND(OR(Calculations!$E$2=\"Orkney Health Board\",Calculations!$E$2=\"Orkney Islands Local Authority\"),$F156=1),0,IF(AND(OR(Calculations!$E$2=\"Shetland Health Board\",Calculations!$E$2=\"Western Isles Health Board\",Calculations!$E$2=\"Shetland Islands Local Authority\",Calculations!$E$2=\"Eilean Siar Local Authority\"),OR($F156=1,$F156=5)),0,hosp_count(VALUE(LEFT(Options!$B$24,2)),$C156,$E156,$F156,2016,$I156+$J156,1,$H156,$G156*$H156, Options!$B$8)))","v":{"$error":"#VALUE!"}},{"$f":"IF(AND(OR(Calculations!$E$2=\"Orkney Health Board\",Calculations!$E$2=\"Orkney Islands Local Authority\"),$F156=1),0,IF(AND(OR(Calculations!$E$2=\"Shetland Health Board\",Calculations!$E$2=\"Western Isles Health Board\",Calculations!$E$2=\"Shetland Islands Local Authority\",Calculations!$E$2=\"Eilean Siar Local Authority\"),OR($F156=1,$F156=5)),0,prem_mort(VALUE(LEFT(Options!$B$24,2)),$C156,$E156,$F156,2016,$I156,1,$H156,$G156*$H156,Options!$B$8)))","v":{"$error":"#VALUE!"}},{"$f":"IF(AND(OR(Calculations!$E$2=\"Orkney Health Board\",Calculations!$E$2=\"Orkney Islands Local Authority\"),$F156=1),0,IF(AND(OR(Calculations!$E$2=\"Shetland Health Board\",Calculations!$E$2=\"Western Isles Health Board\",Calculations!$E$2=\"Shetland Islands Local Authority\",Calculations!$E$2=\"Eilean Siar Local Authority\"),OR($F156=1,$F156=5)),0,prem_mort(VALUE(LEFT(Options!$B$24,2)),$C156,$E156,$F156,2016,$I156+$J156,1,$H156,$G156*$H156,Options!$B$8)))","v":{"$error":"#VALUE!"}},{"$error":"#VALUE!"},{"$error":"#VALUE!"},{"$error":"#VALUE!"},{"$error":"#VALUE!"},{"$error":"#VALUE!"},{"$error":"#VALUE!"},{"$error":"#VALUE!"},{"$error":"#VALUE!"},{"$error":"#VALUE!"},{"$error":"#VALUE!"},{"$error":"#VALUE!"},{"$error":"#VALUE!"},{"$f":"W156*$AI156","v":{"$error":"#VALUE!"}},{"$f":"X156*$AI156","v":{"$error":"#VALUE!"}},{"$f":"Y156*$AI156","v":{"$error":"#VALUE!"}},{"$f":"Z156*$AI156","v":{"$error":"#VALUE!"}},5500]
[null,"Male 10-15",12.471144000000001,77.921140000000008,"male",3,{"$f":"HLOOKUP(Calculations!$E$2,'Prevalence Rates'!$C$3:$BC$249,'Prevalence Rates'!$BD157,FALSE)","v":0},{"$f":"HLOOKUP(Calculations!$E$2,'Population 2016'!$C$3:$BC$249,'Population 2016'!BD157,FALSE)","v":0},0,{"$f":"HLOOKUP(Results!E$4,Targeting!$C$3:$F$249,Targeting!$G157,FALSE)","v":0},{"$f":"IF(AND(OR(Calculations!$E$2=\"Orkney Health Board\",Calculations!$E$2=\"Orkney Islands Local Authority\"),$F157=1),0,IF(AND(OR(Calculations!$E$2=\"Shetland Health Board\",Calculations!$E$2=\"Western Isles Health Board\",Calculations!$E$2=\"Shetland Islands Local Authority\",Calculations!$E$2=\"Eilean Siar Local Authority\"),OR($F157=1,$F157=5)),0,new_ci(VALUE(LEFT(Options!$B$24,2)),$C157,$E157,$F157,2016,$I157,1,$H157,$G157*$H157,Options!$B$8)))","v":{"$error":"#VALUE!"}},{"$f":"IF(AND(OR(Calculations!$E$2=\"Orkney Health Board\",Calculations!$E$2=\"Orkney Islands Local Authority\"),$F157=1),0,IF(AND(OR(Calculations!$E$2=\"Shetland Health Board\",Calculations!$E$2=\"Western Isles Health Board\",Calculations!$E$2=\"Shetland Islands Local Authority\",Calculations!$E$2=\"Eilean Siar Local Authority\"),OR($F157=1,$F157=5)),0,new_ci(VALUE(LEFT(Options!$B$24,2)),$C157,$E157,$F157,2016,$I157+$J157,1,$H157,$G157*$H157,Options!$B$8)))","v":{"$error":"#VALUE!"}},{"$f":"IF(AND(OR(Calculations!$E$2=\"Orkney Health Board\",Calculations!$E$2=\"Orkney Islands Local Authority\"),$F157=1),0,IF(AND(OR(Calculations!$E$2=\"Shetland Health Board\",Calculations!$E$2=\"Western Isles Health Board\",Calculations!$E$2=\"Shetland Islands Local Authority\",Calculations!$E$2=\"Eilean Siar Local Authority\"),OR($F157=1,$F157=5)),0,new_yllv2(VALUE(LEFT(Options!$B$24,2)),$C157,$D157,$E157,$F157,2016,$I157,1,$H157,$G157*$H157,Options!$B$8)))","v":{"$error":"#VALUE!"}},{"$f":"IF(AND(OR(Calculations!$E$2=\"Orkney Health Board\",Calculations!$E$2=\"Orkney Islands Local Authority\"),$F157=1),0,IF(AND(OR(Calculations!$E$2=\"Shetland Health Board\",Calculations!$E$2=\"Western Isles Health Board\",Calculations!$E$2=\"Shetland Islands Local Authority\",Calculations!$E$2=\"Eilean Siar Local Authority\"),OR($F157=1,$F157=5)),0,new_yllv2(VALUE(LEFT(Options!$B$24,2)),$C157,$D157,$E157,$F157,2016,$I157+$J157,1,$H157,$G157*$H157,Options!$B$8)))","v":{"$error":"#VALUE!"}},{"$f":"IF(AND(OR(Calculations!$E$2=\"Orkney Health Board\",Calculations!$E$2=\"Orkney Islands Local Authority\"),$F157=1),0,IF(AND(OR(Calculations!$E$2=\"Shetland Health Board\",Calculations!$E$2=\"Western Isles Health Board\",Calculations!$E$2=\"Shetland Islands Local Authority\",Calculations!$E$2=\"Eilean Siar Local Authority\"),OR($F157=1,$F157=5)),0,hosp_count(VALUE(LEFT(Options!$B$24,2)),$C157,$E157,$F157,2016,$I157,1,$H157,$G157*$H157, Options!$B$8)))","v":{"$error":"#VALUE!"}},{"$f":"IF(AND(OR(Calculations!$E$2=\"Orkney Health Board\",Calculations!$E$2=\"Orkney Islands Local Authority\"),$F157=1),0,IF(AND(OR(Calculations!$E$2=\"Shetland Health Board\",Calculations!$E$2=\"Western Isles Health Board\",Calculations!$E$2=\"Shetland Islands Local Authority\",Calculations!$E$2=\"Eilean Siar Local Authority\"),OR($F157=1,$F157=5)),0,hosp_count(VALUE(LEFT(Options!$B$24,2)),$C157,$E157,$F157,2016,$I157+$J157,1,$H157,$G157*$H157, Options!$B$8)))","v":{"$error":"#VALUE!"}},{"$f":"IF(AND(OR(Calculations!$E$2=\"Orkney Health Board\",Calculations!$E$2=\"Orkney Islands Local Authority\"),$F157=1),0,IF(AND(OR(Calculations!$E$2=\"Shetland Health Board\",Calculations!$E$2=\"Western Isles Health Board\",Calculations!$E$2=\"Shetland Islands Local Authority\",Calculations!$E$2=\"Eilean Siar Local Authority\"),OR($F157=1,$F157=5)),0,prem_mort(VALUE(LEFT(Options!$B$24,2)),$C157,$E157,$F157,2016,$I157,1,$H157,$G157*$H157,Options!$B$8)))","v":{"$error":"#VALUE!"}},{"$f":"IF(AND(OR(Calculations!$E$2=\"Orkney Health Board\",Calculations!$E$2=\"Orkney Islands Local Authority\"),$F157=1),0,IF(AND(OR(Calculations!$E$2=\"Shetland Health Board\",Calculations!$E$2=\"Western Isles Health Board\",Calculations!$E$2=\"Shetland Islands Local Authority\",Calculations!$E$2=\"Eilean Siar Local Authority\"),OR($F157=1,$F157=5)),0,prem_mort(VALUE(LEFT(Options!$B$24,2)),$C157,$E157,$F157,2016,$I157+$J157,1,$H157,$G157*$H157,Options!$B$8)))","v":{"$error":"#VALUE!"}},{"$error":"#VALUE!"},{"$error":"#VALUE!"},{"$error":"#VALUE!"},{"$error":"#VALUE!"},{"$error":"#VALUE!"},{"$error":"#VALUE!"},{"$error":"#VALUE!"},{"$error":"#VALUE!"},{"$error":"#VALUE!"},{"$error":"#VALUE!"},{"$error":"#VALUE!"},{"$error":"#VALUE!"},{"$error":"#VALUE!"},{"$error":"#VALUE!"},{"$error":"#VALUE!"},{"$error":"#VALUE!"},6600]
[null,"Male 16-19",17.556318000000001,77.07632000000001,"male",3,{"$f":"HLOOKUP(Calculations!$E$2,'Prevalence Rates'!$C$3:$BC$249,'Prevalence Rates'!$BD158,FALSE)","v":0.2051},{"$f":"HLOOKUP(Calculations!$E$2,'Population 2016'!$C$3:$BC$249,'Population 2016'!BD158,FALSE)","v":23727},0,{"$f":"HLOOKUP(Results!E$4,Targeting!$C$3:$F$249,Targeting!$G158,FALSE)","v":3656},{"$f":"IF(AND(OR(Calculations!$E$2=\"Orkney Health Board\",Calculations!$E$2=\"Orkney Islands Local Authority\"),$F158=1),0,IF(AND(OR(Calculations!$E$2=\"Shetland Health Board\",Calculations!$E$2=\"Western Isles Health Board\",Calculations!$E$2=\"Shetland Islands Local Authority\",Calculations!$E$2=\"Eilean Siar Local Authority\"),OR($F158=1,$F158=5)),0,new_ci(VALUE(LEFT(Options!$B$24,2)),$C158,$E158,$F158,2016,$I158,1,$H158,$G158*$H158,Options!$B$8)))","v":10.1547576445},{"$f":"IF(AND(OR(Calculations!$E$2=\"Orkney Health Board\",Calculations!$E$2=\"Orkney Islands Local Authority\"),$F158=1),0,IF(AND(OR(Calculations!$E$2=\"Shetland Health Board\",Calculations!$E$2=\"Western Isles Health Board\",Calculations!$E$2=\"Shetland Islands Local Authority\",Calculations!$E$2=\"Eilean Siar Local Authority\"),OR($F158=1,$F158=5)),0,new_ci(VALUE(LEFT(Options!$B$24,2)),$C158,$E158,$F158,2016,$I158+$J158,1,$H158,$G158*$H158,Options!$B$8)))","v":10.123716376499999},{"$f":"IF(AND(OR(Calculations!$E$2=\"Orkney Health Board\",Calculations!$E$2=\"Orkney Islands Local Authority\"),$F158=1),0,IF(AND(OR(Calculations!$E$2=\"Shetland Health Board\",Calculations!$E$2=\"Western Isles Health Board\",Calculations!$E$2=\"Shetland Islands Local Authority\",Calculations!$E$2=\"Eilean Siar Local Authority\"),OR($F158=1,$F158=5)),0,new_yllv2(VALUE(LEFT(Options!$B$24,2)),$C158,$D158,$E158,$F158,2016,$I158,1,$H158,$G158*$H158,Options!$B$8)))","v":594.25643766569999},{"$f":"IF(AND(OR(Calculations!$E$2=\"Orkney Health Board\",Calculations!$E$2=\"Orkney Islands Local Authority\"),$F158=1),0,IF(AND(OR(Calculations!$E$2=\"Shetland Health Board\",Calculations!$E$2=\"Western Isles Health Board\",Calculations!$E$2=\"Shetland Islands Local Authority\",Calculations!$E$2=\"Eilean Siar Local Authority\"),OR($F158=1,$F158=5)),0,new_yllv2(VALUE(LEFT(Options!$B$24,2)),$C158,$D158,$E158,$F158,2016,$I158+$J158,1,$H158,$G158*$H158,Options!$B$8)))","v":592.43990260019996},{"$f":"IF(AND(OR(Calculations!$E$2=\"Orkney Health Board\",Calculations!$E$2=\"Orkney Islands Local Authority\"),$F158=1),0,IF(AND(OR(Calculations!$E$2=\"Shetland Health Board\",Calculations!$E$2=\"Western Isles Health Board\",Calculations!$E$2=\"Shetland Islands Local Authority\",Calculations!$E$2=\"Eilean Siar Local Authority\"),OR($F158=1,$F158=5)),0,hosp_count(VALUE(LEFT(Options!$B$24,2)),$C158,$E158,$F158,2016,$I158,1,$H158,$G158*$H158, Options!$B$8)))","v":1609.2337632294},{"$f":"IF(AND(OR(Calculations!$E$2=\"Orkney Health Board\",Calculations!$E$2=\"Orkney Islands Local Authority\"),$F158=1),0,IF(AND(OR(Calculations!$E$2=\"Shetland Health Board\",Calculations!$E$2=\"Western Isles Health Board\",Calculations!$E$2=\"Shetland Islands Local Authority\",Calculations!$E$2=\"Eilean Siar Local Authority\"),OR($F158=1,$F158=5)),0,hosp_count(VALUE(LEFT(Options!$B$24,2)),$C158,$E158,$F158,2016,$I158+$J158,1,$H158,$G158*$H158, Options!$B$8)))","v":1606.1056176868001},{"$f":"IF(AND(OR(Calculations!$E$2=\"Orkney Health Board\",Calculations!$E$2=\"Orkney Islands Local Authority\"),$F158=1),0,IF(AND(OR(Calculations!$E$2=\"Shetland Health Board\",Calculations!$E$2=\"Western Isles Health Board\",Calculations!$E$2=\"Shetland Islands Local Authority\",Calculations!$E$2=\"Eilean Siar Local Authority\"),OR($F158=1,$F158=5)),0,prem_mort(VALUE(LEFT(Options!$B$24,2)),$C158,$E158,$F158,2016,$I158,1,$H158,$G158*$H158,Options!$B$8)))","v":10.1547576445},{"$f":"IF(AND(OR(Calculations!$E$2=\"Orkney Health Board\",Calculations!$E$2=\"Orkney Islands Local Authority\"),$F158=1),0,IF(AND(OR(Calculations!$E$2=\"Shetland Health Board\",Calculations!$E$2=\"Western Isles Health Board\",Calculations!$E$2=\"Shetland Islands Local Authority\",Calculations!$E$2=\"Eilean Siar Local Authority\"),OR($F158=1,$F158=5)),0,prem_mort(VALUE(LEFT(Options!$B$24,2)),$C158,$E158,$F158,2016,$I158+$J158,1,$H158,$G158*$H158,Options!$B$8)))","v":10.123716376499999},42.798321087790285,42.667494316601335,2504.5578356543178,2496.901852742445,6782.2892199999997,6769.1053133004598,42.798321087790285,42.667494316601335,188312.61278627726,187736.97499304588,11020054.476878999,10986368.152066758,29842072.568,29784063.378522024,188312.61278627726,187736.97499304588,4400]
[null,"Male 20-24",22.054632000000002,77.704629999999995,"male",3,{"$f":"HLOOKUP(Calculations!$E$2,'Prevalence Rates'!$C$3:$BC$249,'Prevalence Rates'!$BD159,FALSE)","v":0.2051},{"$f":"HLOOKUP(Calculations!$E$2,'Population 2016'!$C$3:$BC$249,'Population 2016'!BD159,FALSE)","v":35247},0,{"$f":"HLOOKUP(Results!E$4,Targeting!$C$3:$F$249,Targeting!$G159,FALSE)","v":5431},{"$f":"IF(AND(OR(Calculations!$E$2=\"Orkney Health Board\",Calculations!$E$2=\"Orkney Islands Local Authority\"),$F159=1),0,IF(AND(OR(Calculations!$E$2=\"Shetland Health Board\",Calculations!$E$2=\"Western Isles Health Board\",Calculations!$E$2=\"Shetland Islands Local Authority\",Calculations!$E$2=\"Eilean Siar Local Authority\"),OR($F159=1,$F159=5)),0,new_ci(VALUE(LEFT(Options!$B$24,2)),$C159,$E159,$F159,2016,$I159,1,$H159,$G159*$H159,Options!$B$8)))","v":21.183587921000001},{"$f":"IF(AND(OR(Calculations!$E$2=\"Orkney Health Board\",Calculations!$E$2=\"Orkney Islands Local Authority\"),$F159=1),0,IF(AND(OR(Calculations!$E$2=\"Shetland Health Board\",Calculations!$E$2=\"Western Isles Health Board\",Calculations!$E$2=\"Shetland Islands Local Authority\",Calculations!$E$2=\"Eilean Siar Local Authority\"),OR($F159=1,$F159=5)),0,new_ci(VALUE(LEFT(Options!$B$24,2)),$C159,$E159,$F159,2016,$I159+$J159,1,$H159,$G159*$H159,Options!$B$8)))","v":21.1188471424},{"$f":"IF(AND(OR(Calculations!$E$2=\"Orkney Health Board\",Calculations!$E$2=\"Orkney Islands Local Authority\"),$F159=1),0,IF(AND(OR(Calculations!$E$2=\"Shetland Health Board\",Calculations!$E$2=\"Western Isles Health Board\",Calculations!$E$2=\"Shetland Islands Local Authority\",Calculations!$E$2=\"Eilean Siar Local Authority\"),OR($F159=1,$F159=5)),0,new_yllv2(VALUE(LEFT(Options!$B$24,2)),$C159,$D159,$E159,$F159,2016,$I159,1,$H159,$G159*$H159,Options!$B$8)))","v":1157.6830375155},{"$f":"IF(AND(OR(Calculations!$E$2=\"Orkney Health Board\",Calculations!$E$2=\"Orkney Islands Local Authority\"),$F159=1),0,IF(AND(OR(Calculations!$E$2=\"Shetland Health Board\",Calculations!$E$2=\"Western Isles Health Board\",Calculations!$E$2=\"Shetland Islands Local Authority\",Calculations!$E$2=\"Eilean Siar Local Authority\"),OR($F159=1,$F159=5)),0,new_yllv2(VALUE(LEFT(Options!$B$24,2)),$C159,$D159,$E159,$F159,2016,$I159+$J159,1,$H159,$G159*$H159,Options!$B$8)))","v":1154.1449540945},{"$f":"IF(AND(OR(Calculations!$E$2=\"Orkney Health Board\",Calculations!$E$2=\"Orkney Islands Local Authority\"),$F159=1),0,IF(AND(OR(Calculations!$E$2=\"Shetland Health Board\",Calculations!$E$2=\"Western Isles Health Board\",Calculations!$E$2=\"Shetland Islands Local Authority\",Calculations!$E$2=\"Eilean Siar Local Authority\"),OR($F159=1,$F159=5)),0,hosp_count(VALUE(LEFT(Options!$B$24,2)),$C159,$E159,$F159,2016,$I159,1,$H159,$G159*$H159, Options!$B$8)))","v":2804.4106752117},{"$f":"IF(AND(OR(Calculations!$E$2=\"Orkney Health Board\",Calculations!$E$2=\"Orkney Islands Local Authority\"),$F159=1),0,IF(AND(OR(Calculations!$E$2=\"Shetland Health Board\",Calculations!$E$2=\"Western Isles Health Board\",Calculations!$E$2=\"Shetland Islands Local Authority\",Calculations!$E$2=\"Eilean Siar Local Authority\"),OR($F159=1,$F159=5)),0,hosp_count(VALUE(LEFT(Options!$B$24,2)),$C159,$E159,$F159,2016,$I159+$J159,1,$H159,$G159*$H159, Options!$B$8)))","v":2798.9593296286998},{"$f":"IF(AND(OR(Calculations!$E$2=\"Orkney Health Board\",Calculations!$E$2=\"Orkney Islands Local Authority\"),$F159=1),0,IF(AND(OR(Calculations!$E$2=\"Shetland Health Board\",Calculations!$E$2=\"Western Isles Health Board\",Calculations!$E$2=\"Shetland Islands Local Authority\",Calculations!$E$2=\"Eilean Siar Local Authority\"),OR($F159=1,$F159=5)),0,prem_mort(VALUE(LEFT(Options!$B$24,2)),$C159,$E159,$F159,2016,$I159,1,$H159,$G159*$H159,Options!$B$8)))","v":21.183587921000001},{"$f":"IF(AND(OR(Calculations!$E$2=\"Orkney Health Board\",Calculations!$E$2=\"Orkney Islands Local Authority\"),$F159=1),0,IF(AND(OR(Calculations!$E$2=\"Shetland Health Board\",Calculations!$E$2=\"Western Isles Health Board\",Calculations!$E$2=\"Shetland Islands Local Authority\",Calculations!$E$2=\"Eilean Siar Local Authority\"),OR($F159=1,$F159=5)),0,prem_mort(VALUE(LEFT(Options!$B$24,2)),$C159,$E159,$F159,2016,$I159+$J159,1,$H159,$G159*$H159,Options!$B$8)))","v":21.1188471424},60.100399809912908,59.916722394530034,3284.486729411014,3274.4487590277186,7956.4521100000002,7940.9859835693815,60.100399809912908,59.916722394530034,360602.39885947743,359500.33436718018,19706920.376466084,19646692.55416631,47738712.660000004,47645915.901416287,360602.39885947743,359500.33436718018,6000]
[null,"Male 25-29",26.959762999999999,77.789760000000001,"male",3,{"$f":"HLOOKUP(Calculations!$E$2,'Prevalence Rates'!$C$3:$BC$249,'Prevalence Rates'!$BD160,FALSE)","v":0.2873},{"$f":"HLOOKUP(Calculations!$E$2,'Population 2016'!$C$3:$BC$249,'Population 2016'!BD160,FALSE)","v":35940},0,{"$f":"HLOOKUP(Results!E$4,Targeting!$C$3:$F$249,Targeting!$G160,FALSE)","v":5537},{"$f":"IF(AND(OR(Calculations!$E$2=\"Orkney Health Board\",Calculations!$E$2=\"Orkney Islands Local Authority\"),$F160=1),0,IF(AND(OR(Calculations!$E$2=\"Shetland Health Board\",Calculations!$E$2=\"Western Isles Health Board\",Calculations!$E$2=\"Shetland Islands Local Authority\",Calculations!$E$2=\"Eilean Siar Local Authority\"),OR($F160=1,$F160=5)),0,new_ci(VALUE(LEFT(Options!$B$24,2)),$C160,$E160,$F160,2016,$I160,1,$H160,$G160*$H160,Options!$B$8)))","v":31.276639905900002},{"$f":"IF(AND(OR(Calculations!$E$2=\"Orkney Health Board\",Calculations!$E$2=\"Orkney Islands Local Authority\"),$F160=1),0,IF(AND(OR(Calculations!$E$2=\"Shetland Health Board\",Calculations!$E$2=\"Western Isles Health Board\",Calculations!$E$2=\"Shetland Islands Local Authority\",Calculations!$E$2=\"Eilean Siar Local Authority\"),OR($F160=1,$F160=5)),0,new_ci(VALUE(LEFT(Options!$B$24,2)),$C160,$E160,$F160,2016,$I160+$J160,1,$H160,$G160*$H160,Options!$B$8)))","v":31.186701307500002},{"$f":"IF(AND(OR(Calculations!$E$2=\"Orkney Health Board\",Calculations!$E$2=\"Orkney Islands Local Authority\"),$F160=1),0,IF(AND(OR(Calculations!$E$2=\"Shetland Health Board\",Calculations!$E$2=\"Western Isles Health Board\",Calculations!$E$2=\"Shetland Islands Local Authority\",Calculations!$E$2=\"Eilean Siar Local Authority\"),OR($F160=1,$F160=5)),0,new_yllv2(VALUE(LEFT(Options!$B$24,2)),$C160,$D160,$E160,$F160,2016,$I160,1,$H160,$G160*$H160,Options!$B$8)))","v":1558.5148726811001},{"$f":"IF(AND(OR(Calculations!$E$2=\"Orkney Health Board\",Calculations!$E$2=\"Orkney Islands Local Authority\"),$F160=1),0,IF(AND(OR(Calculations!$E$2=\"Shetland Health Board\",Calculations!$E$2=\"Western Isles Health Board\",Calculations!$E$2=\"Shetland Islands Local Authority\",Calculations!$E$2=\"Eilean Siar Local Authority\"),OR($F160=1,$F160=5)),0,new_yllv2(VALUE(LEFT(Options!$B$24,2)),$C160,$D160,$E160,$F160,2016,$I160+$J160,1,$H160,$G160*$H160,Options!$B$8)))","v":1554.0332325925999},{"$f":"IF(AND(OR(Calculations!$E$2=\"Orkney Health Board\",Calculations!$E$2=\"Orkney Islands Local Authority\"),$F160=1),0,IF(AND(OR(Calculations!$E$2=\"Shetland Health Board\",Calculations!$E$2=\"Western Isles Health Board\",Calculations!$E$2=\"Shetland Islands Local Authority\",Calculations!$E$2=\"Eilean Siar Local Authority\"),OR($F160=1,$F160=5)),0,hosp_count(VALUE(LEFT(Options!$B$24,2)),$C160,$E160,$F160,2016,$I160,1,$H160,$G160*$H160, Options!$B$8)))","v":3403.3914588540001},{"$f":"IF(AND(OR(Calculations!$E$2=\"Orkney Health Board\",Calculations!$E$2=\"Orkney Islands Local Authority\"),$F160=1),0,IF(AND(OR(Calculations!$E$2=\"Shetland Health Board\",Calculations!$E$2=\"Western Isles Health Board\",Calculations!$E$2=\"Shetland Islands Local Authority\",Calculations!$E$2=\"Eilean Siar Local Authority\"),OR($F160=1,$F160=5)),0,hosp_count(VALUE(LEFT(Options!$B$24,2)),$C160,$E160,$F160,2016,$I160+$J160,1,$H160,$G160*$H160, Options!$B$8)))","v":3397.0060802341},{"$f":"IF(AND(OR(Calculations!$E$2=\"Orkney Health Board\",Calculations!$E$2=\"Orkney Islands Local Authority\"),$F160=1),0,IF(AND(OR(Calculations!$E$2=\"Shetland Health Board\",Calculations!$E$2=\"Western Isles Health Board\",Calculations!$E$2=\"Shetland Islands Local Authority\",Calculations!$E$2=\"Eilean Siar Local Authority\"),OR($F160=1,$F160=5)),0,prem_mort(VALUE(LEFT(Options!$B$24,2)),$C160,$E160,$F160,2016,$I160,1,$H160,$G160*$H160,Options!$B$8)))","v":31.276639905900002},{"$f":"IF(AND(OR(Calculations!$E$2=\"Orkney Health Board\",Calculations!$E$2=\"Orkney Islands Local Authority\"),$F160=1),0,IF(AND(OR(Calculations!$E$2=\"Shetland Health Board\",Calculations!$E$2=\"Western Isles Health Board\",Calculations!$E$2=\"Shetland Islands Local Authority\",Calculations!$E$2=\"Eilean Siar Local Authority\"),OR($F160=1,$F160=5)),0,prem_mort(VALUE(LEFT(Options!$B$24,2)),$C160,$E160,$F160,2016,$I160+$J160,1,$H160,$G160*$H160,Options!$B$8)))","v":31.186701307500002},87.024596287979975,86.774349770450755,4336.435371956316,4323.9655887384533,9469.6479099999997,9451.8811358767398,87.024596287979975,86.774349770450755,522147.57772787986,520646.09862270451,26018612.231737897,25943793.53243072,56817887.460000001,56711286.81526044,522147.57772787986,520646.09862270451,6000]
[null,"Male 30-34",31.981521999999998,78.061520000000002,"male",3,{"$f":"HLOOKUP(Calculations!$E$2,'Prevalence Rates'!$C$3:$BC$249,'Prevalence Rates'!$BD161,FALSE)","v":0.2873},{"$f":"HLOOKUP(Calculations!$E$2,'Population 2016'!$C$3:$BC$249,'Population 2016'!BD161,FALSE)","v":34643},0,{"$f":"HLOOKUP(Results!E$4,Targeting!$C$3:$F$249,Targeting!$G161,FALSE)","v":5338},{"$f":"IF(AND(OR(Calculations!$E$2=\"Orkney Health Board\",Calculations!$E$2=\"Orkney Islands Local Authority\"),$F161=1),0,IF(AND(OR(Calculations!$E$2=\"Shetland Health Board\",Calculations!$E$2=\"Western Isles Health Board\",Calculations!$E$2=\"Shetland Islands Local Authority\",Calculations!$E$2=\"Eilean Siar Local Authority\"),OR($F161=1,$F161=5)),0,new_ci(VALUE(LEFT(Options!$B$24,2)),$C161,$E161,$F161,2016,$I161,1,$H161,$G161*$H161,Options!$B$8)))","v":44.0368119197},{"$f":"IF(AND(OR(Calculations!$E$2=\"Orkney Health Board\",Calculations!$E$2=\"Orkney Islands Local Authority\"),$F161=1),0,IF(AND(OR(Calculations!$E$2=\"Shetland Health Board\",Calculations!$E$2=\"Western Isles Health Board\",Calculations!$E$2=\"Shetland Islands Local Authority\",Calculations!$E$2=\"Eilean Siar Local Authority\"),OR($F161=1,$F161=5)),0,new_ci(VALUE(LEFT(Options!$B$24,2)),$C161,$E161,$F161,2016,$I161+$J161,1,$H161,$G161*$H161,Options!$B$8)))","v":43.910209506100003},{"$f":"IF(AND(OR(Calculations!$E$2=\"Orkney Health Board\",Calculations!$E$2=\"Orkney Islands Local Authority\"),$F161=1),0,IF(AND(OR(Calculations!$E$2=\"Shetland Health Board\",Calculations!$E$2=\"Western Isles Health Board\",Calculations!$E$2=\"Shetland Islands Local Authority\",Calculations!$E$2=\"Eilean Siar Local Authority\"),OR($F161=1,$F161=5)),0,new_yllv2(VALUE(LEFT(Options!$B$24,2)),$C161,$D161,$E161,$F161,2016,$I161,1,$H161,$G161*$H161,Options!$B$8)))","v":1985.1793932665},{"$f":"IF(AND(OR(Calculations!$E$2=\"Orkney Health Board\",Calculations!$E$2=\"Orkney Islands Local Authority\"),$F161=1),0,IF(AND(OR(Calculations!$E$2=\"Shetland Health Board\",Calculations!$E$2=\"Western Isles Health Board\",Calculations!$E$2=\"Shetland Islands Local Authority\",Calculations!$E$2=\"Eilean Siar Local Authority\"),OR($F161=1,$F161=5)),0,new_yllv2(VALUE(LEFT(Options!$B$24,2)),$C161,$D161,$E161,$F161,2016,$I161+$J161,1,$H161,$G161*$H161,Options!$B$8)))","v":1979.4721567146},{"$f":"IF(AND(OR(Calculations!$E$2=\"Orkney Health Board\",Calculations!$E$2=\"Orkney Islands Local Authority\"),$F161=1),0,IF(AND(OR(Calculations!$E$2=\"Shetland Health Board\",Calculations!$E$2=\"Western Isles Health Board\",Calculations!$E$2=\"Shetland Islands Local Authority\",Calculations!$E$2=\"Eilean Siar Local Authority\"),OR($F161=1,$F161=5)),0,hosp_count(VALUE(LEFT(Options!$B$24,2)),$C161,$E161,$F161,2016,$I161,1,$H161,$G161*$H161, Options!$B$8)))","v":3920.6815400494002},{"$f":"IF(AND(OR(Calculations!$E$2=\"Orkney Health Board\",Calculations!$E$2=\"Orkney Islands Local Authority\"),$F161=1),0,IF(AND(OR(Calculations!$E$2=\"Shetland Health Board\",Calculations!$E$2=\"Western Isles Health Board\",Calculations!$E$2=\"Shetland Islands Local Authority\",Calculations!$E$2=\"Eilean Siar Local Authority\"),OR($F161=1,$F161=5)),0,hosp_count(VALUE(LEFT(Options!$B$24,2)),$C161,$E161,$F161,2016,$I161+$J161,1,$H161,$G161*$H161, Options!$B$8)))","v":3913.3245026459999},{"$f":"IF(AND(OR(Calculations!$E$2=\"Orkney Health Board\",Calculations!$E$2=\"Orkney Islands Local Authority\"),$F161=1),0,IF(AND(OR(Calculations!$E$2=\"Shetland Health Board\",Calculations!$E$2=\"Western Isles Health Board\",Calculations!$E$2=\"Shetland Islands Local Authority\",Calculations!$E$2=\"Eilean Siar Local Authority\"),OR($F161=1,$F161=5)),0,prem_mort(VALUE(LEFT(Options!$B$24,2)),$C161,$E161,$F161,2016,$I161,1,$H161,$G161*$H161,Options!$B$8)))","v":44.0368119197},{"$f":"IF(AND(OR(Calculations!$E$2=\"Orkney Health Board\",Calculations!$E$2=\"Orkney Islands Local Authority\"),$F161=1),0,IF(AND(OR(Calculations!$E$2=\"Shetland Health Board\",Calculations!$E$2=\"Western Isles Health Board\",Calculations!$E$2=\"Shetland Islands Local Authority\",Calculations!$E$2=\"Eilean Siar Local Authority\"),OR($F161=1,$F161=5)),0,prem_mort(VALUE(LEFT(Options!$B$24,2)),$C161,$E161,$F161,2016,$I161+$J161,1,$H161,$G161*$H161,Options!$B$8)))","v":43.910209506100003},127.11604629997402,126.75059754091737,5730.391112970874,5713.9166836434488,11317.384580000002,11296.147858574603,127.11604629997402,126.75059754091737,826254.30094983114,823878.88401596295,37247542.234310679,37140458.443682417,73562999.770000011,73424961.080734923,826254.30094983114,823878.88401596295,6500]
[null,"Male 35-39",36.926009999999998,78.336009999999987,"male",3,{"$f":"HLOOKUP(Calculations!$E$2,'Prevalence Rates'!$C$3:$BC$249,'Prevalence Rates'!$BD162,FALSE)","v":0.31010000000000004},{"$f":"HLOOKUP(Calculations!$E$2,'Population 2016'!$C$3:$BC$249,'Population 2016'!BD162,FALSE)","v":32007},0,{"$f":"HLOOKUP(Results!E$4,Targeting!$C$3:$F$249,Targeting!$G162,FALSE)","v":4931},{"$f":"IF(AND(OR(Calculations!$E$2=\"Orkney Health Board\",Calculations!$E$2=\"Orkney Islands Local Authority\"),$F162=1),0,IF(AND(OR(Calculations!$E$2=\"Shetland Health Board\",Calculations!$E$2=\"Western Isles Health Board\",Calculations!$E$2=\"Shetland Islands Local Authority\",Calculations!$E$2=\"Eilean Siar Local Authority\"),OR($F162=1,$F162=5)),0,new_ci(VALUE(LEFT(Options!$B$24,2)),$C162,$E162,$F162,2016,$I162,1,$H162,$G162*$H162,Options!$B$8)))","v":59.078282414500002},{"$f":"IF(AND(OR(Calculations!$E$2=\"Orkney Health Board\",Calculations!$E$2=\"Orkney Islands Local Authority\"),$F162=1),0,IF(AND(OR(Calculations!$E$2=\"Shetland Health Board\",Calculations!$E$2=\"Western Isles Health Board\",Calculations!$E$2=\"Shetland Islands Local Authority\",Calculations!$E$2=\"Eilean Siar Local Authority\"),OR($F162=1,$F162=5)),0,new_ci(VALUE(LEFT(Options!$B$24,2)),$C162,$E162,$F162,2016,$I162+$J162,1,$H162,$G162*$H162,Options!$B$8)))","v":58.9112733893},{"$f":"IF(AND(OR(Calculations!$E$2=\"Orkney Health Board\",Calculations!$E$2=\"Orkney Islands Local Authority\"),$F162=1),0,IF(AND(OR(Calculations!$E$2=\"Shetland Health Board\",Calculations!$E$2=\"Western Isles Health Board\",Calculations!$E$2=\"Shetland Islands Local Authority\",Calculations!$E$2=\"Eilean Siar Local Authority\"),OR($F162=1,$F162=5)),0,new_yllv2(VALUE(LEFT(Options!$B$24,2)),$C162,$D162,$E162,$F162,2016,$I162,1,$H162,$G162*$H162,Options!$B$8)))","v":2387.3533923699001},{"$f":"IF(AND(OR(Calculations!$E$2=\"Orkney Health Board\",Calculations!$E$2=\"Orkney Islands Local Authority\"),$F162=1),0,IF(AND(OR(Calculations!$E$2=\"Shetland Health Board\",Calculations!$E$2=\"Western Isles Health Board\",Calculations!$E$2=\"Shetland Islands Local Authority\",Calculations!$E$2=\"Eilean Siar Local Authority\"),OR($F162=1,$F162=5)),0,new_yllv2(VALUE(LEFT(Options!$B$24,2)),$C162,$D162,$E162,$F162,2016,$I162+$J162,1,$H162,$G162*$H162,Options!$B$8)))","v":2380.6045576616002},{"$f":"IF(AND(OR(Calculations!$E$2=\"Orkney Health Board\",Calculations!$E$2=\"Orkney Islands Local Authority\"),$F162=1),0,IF(AND(OR(Calculations!$E$2=\"Shetland Health Board\",Calculations!$E$2=\"Western Isles Health Board\",Calculations!$E$2=\"Shetland Islands Local Authority\",Calculations!$E$2=\"Eilean Siar Local Authority\"),OR($F162=1,$F162=5)),0,hosp_count(VALUE(LEFT(Options!$B$24,2)),$C162,$E162,$F162,2016,$I162,1,$H162,$G162*$H162, Options!$B$8)))","v":4317.2989802075999},{"$f":"IF(AND(OR(Calculations!$E$2=\"Orkney Health Board\",Calculations!$E$2=\"Orkney Islands Local Authority\"),$F162=1),0,IF(AND(OR(Calculations!$E$2=\"Shetland Health Board\",Calculations!$E$2=\"Western Isles Health Board\",Calculations!$E$2=\"Shetland Islands Local Authority\",Calculations!$E$2=\"Eilean Siar Local Authority\"),OR($F162=1,$F162=5)),0,hosp_count(VALUE(LEFT(Options!$B$24,2)),$C162,$E162,$F162,2016,$I162+$J162,1,$H162,$G162*$H162, Options!$B$8)))","v":4309.2762251120002},{"$f":"IF(AND(OR(Calculations!$E$2=\"Orkney Health Board\",Calculations!$E$2=\"Orkney Islands Local Authority\"),$F162=1),0,IF(AND(OR(Calculations!$E$2=\"Shetland Health Board\",Calculations!$E$2=\"Western Isles Health Board\",Calculations!$E$2=\"Shetland Islands Local Authority\",Calculations!$E$2=\"Eilean Siar Local Authority\"),OR($F162=1,$F162=5)),0,prem_mort(VALUE(LEFT(Options!$B$24,2)),$C162,$E162,$F162,2016,$I162,1,$H162,$G162*$H162,Options!$B$8)))","v":59.078282414500002},{"$f":"IF(AND(OR(Calculations!$E$2=\"Orkney Health Board\",Calculations!$E$2=\"Orkney Islands Local Authority\"),$F162=1),0,IF(AND(OR(Calculations!$E$2=\"Shetland Health Board\",Calculations!$E$2=\"Western Isles Health Board\",Calculations!$E$2=\"Shetland Islands Local Authority\",Calculations!$E$2=\"Eilean Siar Local Authority\"),OR($F162=1,$F162=5)),0,prem_mort(VALUE(LEFT(Options!$B$24,2)),$C162,$E162,$F162,2016,$I162+$J162,1,$H162,$G162*$H162,Options!$B$8)))","v":58.9112733893},184.57925583309904,184.05746677070638,7458.8477282153908,7437.7622322042052,13488.608679999999,13463.543053432062,184.57925583309904,184.05746677070638,1292054.7908316932,1288402.2673949448,52211934.097507738,52064335.625429437,94420260.75999999,94244801.374024436,1292054.7908316932,1288402.2673949448,7000]
[null,"Male 40-44",42.067703000000002,78.907700000000006,"male",3,{"$f":"HLOOKUP(Calculations!$E$2,'Prevalence Rates'!$C$3:$BC$249,'Prevalence Rates'!$BD163,FALSE)","v":0.31010000000000004},{"$f":"HLOOKUP(Calculations!$E$2,'Population 2016'!$C$3:$BC$249,'Population 2016'!BD163,FALSE)","v":31831},0,{"$f":"HLOOKUP(Results!E$4,Targeting!$C$3:$F$249,Targeting!$G163,FALSE)","v":4904},{"$f":"IF(AND(OR(Calculations!$E$2=\"Orkney Health Board\",Calculations!$E$2=\"Orkney Islands Local Authority\"),$F163=1),0,IF(AND(OR(Calculations!$E$2=\"Shetland Health Board\",Calculations!$E$2=\"Western Isles Health Board\",Calculations!$E$2=\"Shetland Islands Local Authority\",Calculations!$E$2=\"Eilean Siar Local Authority\"),OR($F163=1,$F163=5)),0,new_ci(VALUE(LEFT(Options!$B$24,2)),$C163,$E163,$F163,2016,$I163,1,$H163,$G163*$H163,Options!$B$8)))","v":86.578473210599995},{"$f":"IF(AND(OR(Calculations!$E$2=\"Orkney Health Board\",Calculations!$E$2=\"Orkney Islands Local Authority\"),$F163=1),0,IF(AND(OR(Calculations!$E$2=\"Shetland Health Board\",Calculations!$E$2=\"Western Isles Health Board\",Calculations!$E$2=\"Shetland Islands Local Authority\",Calculations!$E$2=\"Eilean Siar Local Authority\"),OR($F163=1,$F163=5)),0,new_ci(VALUE(LEFT(Options!$B$24,2)),$C163,$E163,$F163,2016,$I163+$J163,1,$H163,$G163*$H163,Options!$B$8)))","v":86.333915634600004},{"$f":"IF(AND(OR(Calculations!$E$2=\"Orkney Health Board\",Calculations!$E$2=\"Orkney Islands Local Authority\"),$F163=1),0,IF(AND(OR(Calculations!$E$2=\"Shetland Health Board\",Calculations!$E$2=\"Western Isles Health Board\",Calculations!$E$2=\"Shetland Islands Local Authority\",Calculations!$E$2=\"Eilean Siar Local Authority\"),OR($F163=1,$F163=5)),0,new_yllv2(VALUE(LEFT(Options!$B$24,2)),$C163,$D163,$E163,$F163,2016,$I163,1,$H163,$G163*$H163,Options!$B$8)))","v":3102.9722201324998},{"$f":"IF(AND(OR(Calculations!$E$2=\"Orkney Health Board\",Calculations!$E$2=\"Orkney Islands Local Authority\"),$F163=1),0,IF(AND(OR(Calculations!$E$2=\"Shetland Health Board\",Calculations!$E$2=\"Western Isles Health Board\",Calculations!$E$2=\"Shetland Islands Local Authority\",Calculations!$E$2=\"Eilean Siar Local Authority\"),OR($F163=1,$F163=5)),0,new_yllv2(VALUE(LEFT(Options!$B$24,2)),$C163,$D163,$E163,$F163,2016,$I163+$J163,1,$H163,$G163*$H163,Options!$B$8)))","v":3094.2072773423001},{"$f":"IF(AND(OR(Calculations!$E$2=\"Orkney Health Board\",Calculations!$E$2=\"Orkney Islands Local Authority\"),$F163=1),0,IF(AND(OR(Calculations!$E$2=\"Shetland Health Board\",Calculations!$E$2=\"Western Isles Health Board\",Calculations!$E$2=\"Shetland Islands Local Authority\",Calculations!$E$2=\"Eilean Siar Local Authority\"),OR($F163=1,$F163=5)),0,hosp_count(VALUE(LEFT(Options!$B$24,2)),$C163,$E163,$F163,2016,$I163,1,$H163,$G163*$H163, Options!$B$8)))","v":5153.2179005501002},{"$f":"IF(AND(OR(Calculations!$E$2=\"Orkney Health Board\",Calculations!$E$2=\"Orkney Islands Local Authority\"),$F163=1),0,IF(AND(OR(Calculations!$E$2=\"Shetland Health Board\",Calculations!$E$2=\"Western Isles Health Board\",Calculations!$E$2=\"Shetland Islands Local Authority\",Calculations!$E$2=\"Eilean Siar Local Authority\"),OR($F163=1,$F163=5)),0,hosp_count(VALUE(LEFT(Options!$B$24,2)),$C163,$E163,$F163,2016,$I163+$J163,1,$H163,$G163*$H163, Options!$B$8)))","v":5143.6415497865},{"$f":"IF(AND(OR(Calculations!$E$2=\"Orkney Health Board\",Calculations!$E$2=\"Orkney Islands Local Authority\"),$F163=1),0,IF(AND(OR(Calculations!$E$2=\"Shetland Health Board\",Calculations!$E$2=\"Western Isles Health Board\",Calculations!$E$2=\"Shetland Islands Local Authority\",Calculations!$E$2=\"Eilean Siar Local Authority\"),OR($F163=1,$F163=5)),0,prem_mort(VALUE(LEFT(Options!$B$24,2)),$C163,$E163,$F163,2016,$I163,1,$H163,$G163*$H163,Options!$B$8)))","v":86.578473210599995},{"$f":"IF(AND(OR(Calculations!$E$2=\"Orkney Health Board\",Calculations!$E$2=\"Orkney Islands Local Authority\"),$F163=1),0,IF(AND(OR(Calculations!$E$2=\"Shetland Health Board\",Calculations!$E$2=\"Western Isles Health Board\",Calculations!$E$2=\"Shetland Islands Local Authority\",Calculations!$E$2=\"Eilean Siar Local Authority\"),OR($F163=1,$F163=5)),0,prem_mort(VALUE(LEFT(Options!$B$24,2)),$C163,$E163,$F163,2016,$I163+$J163,1,$H163,$G163*$H163,Options!$B$8)))","v":86.333915634600004},271.99419814206277,271.22589813263801,9748.2712454289849,9720.7353753959997,16189.305710000001,16159.220727550186,271.99419814206277,271.22589813263801,1903959.3869944394,1898581.2869284661,68237898.7180029,68045147.627772003,113325139.97,113114545.0928513,1903959.3869944394,1898581.2869284661,7000]
[null,"Male 45-49",47.038155000000003,79.418149999999997,"male",3,{"$f":"HLOOKUP(Calculations!$E$2,'Prevalence Rates'!$C$3:$BC$249,'Prevalence Rates'!$BD164,FALSE)","v":0.24860000000000002},{"$f":"HLOOKUP(Calculations!$E$2,'Population 2016'!$C$3:$BC$249,'Population 2016'!BD164,FALSE)","v":37651},0,{"$f":"HLOOKUP(Results!E$4,Targeting!$C$3:$F$249,Targeting!$G164,FALSE)","v":5801},{"$f":"IF(AND(OR(Calculations!$E$2=\"Orkney Health Board\",Calculations!$E$2=\"Orkney Islands Local Authority\"),$F164=1),0,IF(AND(OR(Calculations!$E$2=\"Shetland Health Board\",Calculations!$E$2=\"Western Isles Health Board\",Calculations!$E$2=\"Shetland Islands Local Authority\",Calculations!$E$2=\"Eilean Siar Local Authority\"),OR($F164=1,$F164=5)),0,new_ci(VALUE(LEFT(Options!$B$24,2)),$C164,$E164,$F164,2016,$I164,1,$H164,$G164*$H164,Options!$B$8)))","v":148.94128032590001},{"$f":"IF(AND(OR(Calculations!$E$2=\"Orkney Health Board\",Calculations!$E$2=\"Orkney Islands Local Authority\"),$F164=1),0,IF(AND(OR(Calculations!$E$2=\"Shetland Health Board\",Calculations!$E$2=\"Western Isles Health Board\",Calculations!$E$2=\"Shetland Islands Local Authority\",Calculations!$E$2=\"Eilean Siar Local Authority\"),OR($F164=1,$F164=5)),0,new_ci(VALUE(LEFT(Options!$B$24,2)),$C164,$E164,$F164,2016,$I164+$J164,1,$H164,$G164*$H164,Options!$B$8)))","v":148.50213650449999},{"$f":"IF(AND(OR(Calculations!$E$2=\"Orkney Health Board\",Calculations!$E$2=\"Orkney Islands Local Authority\"),$F164=1),0,IF(AND(OR(Calculations!$E$2=\"Shetland Health Board\",Calculations!$E$2=\"Western Isles Health Board\",Calculations!$E$2=\"Shetland Islands Local Authority\",Calculations!$E$2=\"Eilean Siar Local Authority\"),OR($F164=1,$F164=5)),0,new_yllv2(VALUE(LEFT(Options!$B$24,2)),$C164,$D164,$E164,$F164,2016,$I164,1,$H164,$G164*$H164,Options!$B$8)))","v":4673.7766319203001},{"$f":"IF(AND(OR(Calculations!$E$2=\"Orkney Health Board\",Calculations!$E$2=\"Orkney Islands Local Authority\"),$F164=1),0,IF(AND(OR(Calculations!$E$2=\"Shetland Health Board\",Calculations!$E$2=\"Western Isles Health Board\",Calculations!$E$2=\"Shetland Islands Local Authority\",Calculations!$E$2=\"Eilean Siar Local Authority\"),OR($F164=1,$F164=5)),0,new_yllv2(VALUE(LEFT(Options!$B$24,2)),$C164,$D164,$E164,$F164,2016,$I164+$J164,1,$H164,$G164*$H164,Options!$B$8)))","v":4659.9963010005004},{"$f":"IF(AND(OR(Calculations!$E$2=\"Orkney Health Board\",Calculations!$E$2=\"Orkney Islands Local Authority\"),$F164=1),0,IF(AND(OR(Calculations!$E$2=\"Shetland Health Board\",Calculations!$E$2=\"Western Isles Health Board\",Calculations!$E$2=\"Shetland Islands Local Authority\",Calculations!$E$2=\"Eilean Siar Local Authority\"),OR($F164=1,$F164=5)),0,hosp_count(VALUE(LEFT(Options!$B$24,2)),$C164,$E164,$F164,2016,$I164,1,$H164,$G164*$H164, Options!$B$8)))","v":7271.5344409603003},{"$f":"IF(AND(OR(Calculations!$E$2=\"Orkney Health Board\",Calculations!$E$2=\"Orkney Islands Local Authority\"),$F164=1),0,IF(AND(OR(Calculations!$E$2=\"Shetland Health Board\",Calculations!$E$2=\"Western Isles Health Board\",Calculations!$E$2=\"Shetland Islands Local Authority\",Calculations!$E$2=\"Eilean Siar Local Authority\"),OR($F164=1,$F164=5)),0,hosp_count(VALUE(LEFT(Options!$B$24,2)),$C164,$E164,$F164,2016,$I164+$J164,1,$H164,$G164*$H164, Options!$B$8)))","v":7257.6643601210999},{"$f":"IF(AND(OR(Calculations!$E$2=\"Orkney Health Board\",Calculations!$E$2=\"Orkney Islands Local Authority\"),$F164=1),0,IF(AND(OR(Calculations!$E$2=\"Shetland Health Board\",Calculations!$E$2=\"Western Isles Health Board\",Calculations!$E$2=\"Shetland Islands Local Authority\",Calculations!$E$2=\"Eilean Siar Local Authority\"),OR($F164=1,$F164=5)),0,prem_mort(VALUE(LEFT(Options!$B$24,2)),$C164,$E164,$F164,2016,$I164,1,$H164,$G164*$H164,Options!$B$8)))","v":148.94128032590001},{"$f":"IF(AND(OR(Calculations!$E$2=\"Orkney Health Board\",Calculations!$E$2=\"Orkney Islands Local Authority\"),$F164=1),0,IF(AND(OR(Calculations!$E$2=\"Shetland Health Board\",Calculations!$E$2=\"Western Isles Health Board\",Calculations!$E$2=\"Shetland Islands Local Authority\",Calculations!$E$2=\"Eilean Siar Local Authority\"),OR($F164=1,$F164=5)),0,prem_mort(VALUE(LEFT(Options!$B$24,2)),$C164,$E164,$F164,2016,$I164+$J164,1,$H164,$G164*$H164,Options!$B$8)))","v":148.50213650449999},395.58386317999526,394.41750950705159,12413.419648668827,12376.81947624366,19312.991529999999,19276.152984306129,395.58386317999526,394.41750950705159,2769087.042259967,2760922.5665493612,86893937.540681794,86637736.333705619,135190940.71000001,134933070.89014289,2769087.042259967,2760922.5665493612,7000]
[null,"Male 50-54",51.998646000000001,79.988649999999993,"male",3,{"$f":"HLOOKUP(Calculations!$E$2,'Prevalence Rates'!$C$3:$BC$249,'Prevalence Rates'!$BD165,FALSE)","v":0.24860000000000002},{"$f":"HLOOKUP(Calculations!$E$2,'Population 2016'!$C$3:$BC$249,'Population 2016'!BD165,FALSE)","v":40386},0,{"$f":"HLOOKUP(Results!E$4,Targeting!$C$3:$F$249,Targeting!$G165,FALSE)","v":6222},{"$f":"IF(AND(OR(Calculations!$E$2=\"Orkney Health Board\",Calculations!$E$2=\"Orkney Islands Local Authority\"),$F165=1),0,IF(AND(OR(Calculations!$E$2=\"Shetland Health Board\",Calculations!$E$2=\"Western Isles Health Board\",Calculations!$E$2=\"Shetland Islands Local Authority\",Calculations!$E$2=\"Eilean Siar Local Authority\"),OR($F165=1,$F165=5)),0,new_ci(VALUE(LEFT(Options!$B$24,2)),$C165,$E165,$F165,2016,$I165,1,$H165,$G165*$H165,Options!$B$8)))","v":232.1053428356},{"$f":"IF(AND(OR(Calculations!$E$2=\"Orkney Health Board\",Calculations!$E$2=\"Orkney Islands Local Authority\"),$F165=1),0,IF(AND(OR(Calculations!$E$2=\"Shetland Health Board\",Calculations!$E$2=\"Western Isles Health Board\",Calculations!$E$2=\"Shetland Islands Local Authority\",Calculations!$E$2=\"Eilean Siar Local Authority\"),OR($F165=1,$F165=5)),0,new_ci(VALUE(LEFT(Options!$B$24,2)),$C165,$E165,$F165,2016,$I165+$J165,1,$H165,$G165*$H165,Options!$B$8)))","v":231.4222605656},{"$f":"IF(AND(OR(Calculations!$E$2=\"Orkney Health Board\",Calculations!$E$2=\"Orkney Islands Local Authority\"),$F165=1),0,IF(AND(OR(Calculations!$E$2=\"Shetland Health Board\",Calculations!$E$2=\"Western Isles Health Board\",Calculations!$E$2=\"Shetland Islands Local Authority\",Calculations!$E$2=\"Eilean Siar Local Authority\"),OR($F165=1,$F165=5)),0,new_yllv2(VALUE(LEFT(Options!$B$24,2)),$C165,$D165,$E165,$F165,2016,$I165,1,$H165,$G165*$H165,Options!$B$8)))","v":6264.5241315541998},{"$f":"IF(AND(OR(Calculations!$E$2=\"Orkney Health Board\",Calculations!$E$2=\"Orkney Islands Local Authority\"),$F165=1),0,IF(AND(OR(Calculations!$E$2=\"Shetland Health Board\",Calculations!$E$2=\"Western Isles Health Board\",Calculations!$E$2=\"Shetland Islands Local Authority\",Calculations!$E$2=\"Eilean Siar Local Authority\"),OR($F165=1,$F165=5)),0,new_yllv2(VALUE(LEFT(Options!$B$24,2)),$C165,$D165,$E165,$F165,2016,$I165+$J165,1,$H165,$G165*$H165,Options!$B$8)))","v":6246.0877383546003},{"$f":"IF(AND(OR(Calculations!$E$2=\"Orkney Health Board\",Calculations!$E$2=\"Orkney Islands Local Authority\"),$F165=1),0,IF(AND(OR(Calculations!$E$2=\"Shetland Health Board\",Calculations!$E$2=\"Western Isles Health Board\",Calculations!$E$2=\"Shetland Islands Local Authority\",Calculations!$E$2=\"Eilean Siar Local Authority\"),OR($F165=1,$F165=5)),0,hosp_count(VALUE(LEFT(Options!$B$24,2)),$C165,$E165,$F165,2016,$I165,1,$H165,$G165*$H165, Options!$B$8)))","v":9301.3966469789993},{"$f":"IF(AND(OR(Calculations!$E$2=\"Orkney Health Board\",Calculations!$E$2=\"Orkney Islands Local Authority\"),$F165=1),0,IF(AND(OR(Calculations!$E$2=\"Shetland Health Board\",Calculations!$E$2=\"Western Isles Health Board\",Calculations!$E$2=\"Shetland Islands Local Authority\",Calculations!$E$2=\"Eilean Siar Local Authority\"),OR($F165=1,$F165=5)),0,hosp_count(VALUE(LEFT(Options!$B$24,2)),$C165,$E165,$F165,2016,$I165+$J165,1,$H165,$G165*$H165, Options!$B$8)))","v":9283.6558188589006},{"$f":"IF(AND(OR(Calculations!$E$2=\"Orkney Health Board\",Calculations!$E$2=\"Orkney Islands Local Authority\"),$F165=1),0,IF(AND(OR(Calculations!$E$2=\"Shetland Health Board\",Calculations!$E$2=\"Western Isles Health Board\",Calculations!$E$2=\"Shetland Islands Local Authority\",Calculations!$E$2=\"Eilean Siar Local Authority\"),OR($F165=1,$F165=5)),0,prem_mort(VALUE(LEFT(Options!$B$24,2)),$C165,$E165,$F165,2016,$I165,1,$H165,$G165*$H165,Options!$B$8)))","v":232.1053428356},{"$f":"IF(AND(OR(Calculations!$E$2=\"Orkney Health Board\",Calculations!$E$2=\"Orkney Islands Local Authority\"),$F165=1),0,IF(AND(OR(Calculations!$E$2=\"Shetland Health Board\",Calculations!$E$2=\"Western Isles Health Board\",Calculations!$E$2=\"Shetland Islands Local Authority\",Calculations!$E$2=\"Eilean Siar Local Authority\"),OR($F165=1,$F165=5)),0,prem_mort(VALUE(LEFT(Options!$B$24,2)),$C165,$E165,$F165,2016,$I165+$J165,1,$H165,$G165*$H165,Options!$B$8)))","v":231.4222605656},574.71733480810178,573.02595098697566,15511.623165339968,15465.972709242313,23031.240149999998,22987.31198647774,574.71733480810178,573.02595098697566,4023021.3436567127,4011181.6569088297,108581362.15737978,108261808.96469618,161218681.04999998,160911183.90534419,4023021.3436567127,4011181.6569088297,7000]
[null,"Male 55-59",56.950867000000002,80.660870000000003,"male",3,{"$f":"HLOOKUP(Calculations!$E$2,'Prevalence Rates'!$C$3:$BC$249,'Prevalence Rates'!$BD166,FALSE)","v":0.20950000000000002},{"$f":"HLOOKUP(Calculations!$E$2,'Population 2016'!$C$3:$BC$249,'Population 2016'!BD166,FALSE)","v":37545},0,{"$f":"HLOOKUP(Results!E$4,Targeting!$C$3:$F$249,Targeting!$G166,FALSE)","v":5785},{"$f":"IF(AND(OR(Calculations!$E$2=\"Orkney Health Board\",Calculations!$E$2=\"Orkney Islands Local Authority\"),$F166=1),0,IF(AND(OR(Calculations!$E$2=\"Shetland Health Board\",Calculations!$E$2=\"Western Isles Health Board\",Calculations!$E$2=\"Shetland Islands Local Authority\",Calculations!$E$2=\"Eilean Siar Local Authority\"),OR($F166=1,$F166=5)),0,new_ci(VALUE(LEFT(Options!$B$24,2)),$C166,$E166,$F166,2016,$I166,1,$H166,$G166*$H166,Options!$B$8)))","v":313.16142862800001},{"$f":"IF(AND(OR(Calculations!$E$2=\"Orkney Health Board\",Calculations!$E$2=\"Orkney Islands Local Authority\"),$F166=1),0,IF(AND(OR(Calculations!$E$2=\"Shetland Health Board\",Calculations!$E$2=\"Western Isles Health Board\",Calculations!$E$2=\"Shetland Islands Local Authority\",Calculations!$E$2=\"Eilean Siar Local Authority\"),OR($F166=1,$F166=5)),0,new_ci(VALUE(LEFT(Options!$B$24,2)),$C166,$E166,$F166,2016,$I166+$J166,1,$H166,$G166*$H166,Options!$B$8)))","v":312.21524559800002},{"$f":"IF(AND(OR(Calculations!$E$2=\"Orkney Health Board\",Calculations!$E$2=\"Orkney Islands Local Authority\"),$F166=1),0,IF(AND(OR(Calculations!$E$2=\"Shetland Health Board\",Calculations!$E$2=\"Western Isles Health Board\",Calculations!$E$2=\"Shetland Islands Local Authority\",Calculations!$E$2=\"Eilean Siar Local Authority\"),OR($F166=1,$F166=5)),0,new_yllv2(VALUE(LEFT(Options!$B$24,2)),$C166,$D166,$E166,$F166,2016,$I166,1,$H166,$G166*$H166,Options!$B$8)))","v":7111.8969836262004},{"$f":"IF(AND(OR(Calculations!$E$2=\"Orkney Health Board\",Calculations!$E$2=\"Orkney Islands Local Authority\"),$F166=1),0,IF(AND(OR(Calculations!$E$2=\"Shetland Health Board\",Calculations!$E$2=\"Western Isles Health Board\",Calculations!$E$2=\"Shetland Islands Local Authority\",Calculations!$E$2=\"Eilean Siar Local Authority\"),OR($F166=1,$F166=5)),0,new_yllv2(VALUE(LEFT(Options!$B$24,2)),$C166,$D166,$E166,$F166,2016,$I166+$J166,1,$H166,$G166*$H166,Options!$B$8)))","v":7090.4091641762998},{"$f":"IF(AND(OR(Calculations!$E$2=\"Orkney Health Board\",Calculations!$E$2=\"Orkney Islands Local Authority\"),$F166=1),0,IF(AND(OR(Calculations!$E$2=\"Shetland Health Board\",Calculations!$E$2=\"Western Isles Health Board\",Calculations!$E$2=\"Shetland Islands Local Authority\",Calculations!$E$2=\"Eilean Siar Local Authority\"),OR($F166=1,$F166=5)),0,hosp_count(VALUE(LEFT(Options!$B$24,2)),$C166,$E166,$F166,2016,$I166,1,$H166,$G166*$H166, Options!$B$8)))","v":10308.838145089499},{"$f":"IF(AND(OR(Calculations!$E$2=\"Orkney Health Board\",Calculations!$E$2=\"Orkney Islands Local Authority\"),$F166=1),0,IF(AND(OR(Calculations!$E$2=\"Shetland Health Board\",Calculations!$E$2=\"Western Isles Health Board\",Calculations!$E$2=\"Shetland Islands Local Authority\",Calculations!$E$2=\"Eilean Siar Local Authority\"),OR($F166=1,$F166=5)),0,hosp_count(VALUE(LEFT(Options!$B$24,2)),$C166,$E166,$F166,2016,$I166+$J166,1,$H166,$G166*$H166, Options!$B$8)))","v":10288.838090380101},{"$f":"IF(AND(OR(Calculations!$E$2=\"Orkney Health Board\",Calculations!$E$2=\"Orkney Islands Local Authority\"),$F166=1),0,IF(AND(OR(Calculations!$E$2=\"Shetland Health Board\",Calculations!$E$2=\"Western Isles Health Board\",Calculations!$E$2=\"Shetland Islands Local Authority\",Calculations!$E$2=\"Eilean Siar Local Authority\"),OR($F166=1,$F166=5)),0,prem_mort(VALUE(LEFT(Options!$B$24,2)),$C166,$E166,$F166,2016,$I166,1,$H166,$G166*$H166,Options!$B$8)))","v":313.16142862800001},{"$f":"IF(AND(OR(Calculations!$E$2=\"Orkney Health Board\",Calculations!$E$2=\"Orkney Islands Local Authority\"),$F166=1),0,IF(AND(OR(Calculations!$E$2=\"Shetland Health Board\",Calculations!$E$2=\"Western Isles Health Board\",Calculations!$E$2=\"Shetland Islands Local Authority\",Calculations!$E$2=\"Eilean Siar Local Authority\"),OR($F166=1,$F166=5)),0,prem_mort(VALUE(LEFT(Options!$B$24,2)),$C166,$E166,$F166,2016,$I166+$J166,1,$H166,$G166*$H166,Options!$B$8)))","v":312.21524559800002},834.09622753495808,831.57609694499945,18942.327829607671,18885.095656349178,27457.28631,27404.016754241846,834.09622753495808,831.57609694499945,5421625.4789772276,5405244.630142496,123125130.89244987,122753121.76626965,178472361.01499999,178126108.90257201,5421625.4789772276,5405244.630142496,6500]
[null,"Male 60-64",61.942988999999997,81.612989999999996,"male",3,{"$f":"HLOOKUP(Calculations!$E$2,'Prevalence Rates'!$C$3:$BC$249,'Prevalence Rates'!$BD167,FALSE)","v":0.20950000000000002},{"$f":"HLOOKUP(Calculations!$E$2,'Population 2016'!$C$3:$BC$249,'Population 2016'!BD167,FALSE)","v":33247},0,{"$f":"HLOOKUP(Results!E$4,Targeting!$C$3:$F$249,Targeting!$G167,FALSE)","v":5123},{"$f":"IF(AND(OR(Calculations!$E$2=\"Orkney Health Board\",Calculations!$E$2=\"Orkney Islands Local Authority\"),$F167=1),0,IF(AND(OR(Calculations!$E$2=\"Shetland Health Board\",Calculations!$E$2=\"Western Isles Health Board\",Calculations!$E$2=\"Shetland Islands Local Authority\",Calculations!$E$2=\"Eilean Siar Local Authority\"),OR($F167=1,$F167=5)),0,new_ci(VALUE(LEFT(Options!$B$24,2)),$C167,$E167,$F167,2016,$I167,1,$H167,$G167*$H167,Options!$B$8)))","v":403.40564224590003},{"$f":"IF(AND(OR(Calculations!$E$2=\"Orkney Health Board\",Calculations!$E$2=\"Orkney Islands Local Authority\"),$F167=1),0,IF(AND(OR(Calculations!$E$2=\"Shetland Health Board\",Calculations!$E$2=\"Western Isles Health Board\",Calculations!$E$2=\"Shetland Islands Local Authority\",Calculations!$E$2=\"Eilean Siar Local Authority\"),OR($F167=1,$F167=5)),0,new_ci(VALUE(LEFT(Options!$B$24,2)),$C167,$E167,$F167,2016,$I167+$J167,1,$H167,$G167*$H167,Options!$B$8)))","v":402.19160343959999},{"$f":"IF(AND(OR(Calculations!$E$2=\"Orkney Health Board\",Calculations!$E$2=\"Orkney Islands Local Authority\"),$F167=1),0,IF(AND(OR(Calculations!$E$2=\"Shetland Health Board\",Calculations!$E$2=\"Western Isles Health Board\",Calculations!$E$2=\"Shetland Islands Local Authority\",Calculations!$E$2=\"Eilean Siar Local Authority\"),OR($F167=1,$F167=5)),0,new_yllv2(VALUE(LEFT(Options!$B$24,2)),$C167,$D167,$E167,$F167,2016,$I167,1,$H167,$G167*$H167,Options!$B$8)))","v":7531.5837441366002},{"$f":"IF(AND(OR(Calculations!$E$2=\"Orkney Health Board\",Calculations!$E$2=\"Orkney Islands Local Authority\"),$F167=1),0,IF(AND(OR(Calculations!$E$2=\"Shetland Health Board\",Calculations!$E$2=\"Western Isles Health Board\",Calculations!$E$2=\"Shetland Islands Local Authority\",Calculations!$E$2=\"Eilean Siar Local Authority\"),OR($F167=1,$F167=5)),0,new_yllv2(VALUE(LEFT(Options!$B$24,2)),$C167,$D167,$E167,$F167,2016,$I167+$J167,1,$H167,$G167*$H167,Options!$B$8)))","v":7508.9176384088996},{"$f":"IF(AND(OR(Calculations!$E$2=\"Orkney Health Board\",Calculations!$E$2=\"Orkney Islands Local Authority\"),$F167=1),0,IF(AND(OR(Calculations!$E$2=\"Shetland Health Board\",Calculations!$E$2=\"Western Isles Health Board\",Calculations!$E$2=\"Shetland Islands Local Authority\",Calculations!$E$2=\"Eilean Siar Local Authority\"),OR($F167=1,$F167=5)),0,hosp_count(VALUE(LEFT(Options!$B$24,2)),$C167,$E167,$F167,2016,$I167,1,$H167,$G167*$H167, Options!$B$8)))","v":10898.467983401801},{"$f":"IF(AND(OR(Calculations!$E$2=\"Orkney Health Board\",Calculations!$E$2=\"Orkney Islands Local Authority\"),$F167=1),0,IF(AND(OR(Calculations!$E$2=\"Shetland Health Board\",Calculations!$E$2=\"Western Isles Health Board\",Calculations!$E$2=\"Shetland Islands Local Authority\",Calculations!$E$2=\"Eilean Siar Local Authority\"),OR($F167=1,$F167=5)),0,hosp_count(VALUE(LEFT(Options!$B$24,2)),$C167,$E167,$F167,2016,$I167+$J167,1,$H167,$G167*$H167, Options!$B$8)))","v":10877.3229899653},{"$f":"IF(AND(OR(Calculations!$E$2=\"Orkney Health Board\",Calculations!$E$2=\"Orkney Islands Local Authority\"),$F167=1),0,IF(AND(OR(Calculations!$E$2=\"Shetland Health Board\",Calculations!$E$2=\"Western Isles Health Board\",Calculations!$E$2=\"Shetland Islands Local Authority\",Calculations!$E$2=\"Eilean Siar Local Authority\"),OR($F167=1,$F167=5)),0,prem_mort(VALUE(LEFT(Options!$B$24,2)),$C167,$E167,$F167,2016,$I167,1,$H167,$G167*$H167,Options!$B$8)))","v":403.40564224590003},{"$f":"IF(AND(OR(Calculations!$E$2=\"Orkney Health Board\",Calculations!$E$2=\"Orkney Islands Local Authority\"),$F167=1),0,IF(AND(OR(Calculations!$E$2=\"Shetland Health Board\",Calculations!$E$2=\"Western Isles Health Board\",Calculations!$E$2=\"Shetland Islands Local Authority\",Calculations!$E$2=\"Eilean Siar Local Authority\"),OR($F167=1,$F167=5)),0,prem_mort(VALUE(LEFT(Options!$B$24,2)),$C167,$E167,$F167,2016,$I167+$J167,1,$H167,$G167*$H167,Options!$B$8)))","v":402.19160343959999},1213.3595279149999,1209.7079539194515,22653.423599532591,22585.248709384003,32780.304940000002,32716.705236458329,1213.3595279149999,1209.7079539194515,7280157.1674899999,7258247.7235167092,135920541.59719554,135511492.25630403,196681829.64000002,196300231.41874996,7280157.1674899999,7258247.7235167092,6000]
[null,"Male 65-69",67.054419999999993,82.954419999999999,"male",3,{"$f":"HLOOKUP(Calculations!$E$2,'Prevalence Rates'!$C$3:$BC$249,'Prevalence Rates'!$BD168,FALSE)","v":0.16290000000000002},{"$f":"HLOOKUP(Calculations!$E$2,'Population 2016'!$C$3:$BC$249,'Population 2016'!BD168,FALSE)","v":33371},0,{"$f":"HLOOKUP(Results!E$4,Targeting!$C$3:$F$249,Targeting!$G168,FALSE)","v":5142},{"$f":"IF(AND(OR(Calculations!$E$2=\"Orkney Health Board\",Calculations!$E$2=\"Orkney Islands Local Authority\"),$F168=1),0,IF(AND(OR(Calculations!$E$2=\"Shetland Health Board\",Calculations!$E$2=\"Western Isles Health Board\",Calculations!$E$2=\"Shetland Islands Local Authority\",Calculations!$E$2=\"Eilean Siar Local Authority\"),OR($F168=1,$F168=5)),0,new_ci(VALUE(LEFT(Options!$B$24,2)),$C168,$E168,$F168,2016,$I168,1,$H168,$G168*$H168,Options!$B$8)))","v":593.79094326339998},{"$f":"IF(AND(OR(Calculations!$E$2=\"Orkney Health Board\",Calculations!$E$2=\"Orkney Islands Local Authority\"),$F168=1),0,IF(AND(OR(Calculations!$E$2=\"Shetland Health Board\",Calculations!$E$2=\"Western Isles Health Board\",Calculations!$E$2=\"Shetland Islands Local Authority\",Calculations!$E$2=\"Eilean Siar Local Authority\"),OR($F168=1,$F168=5)),0,new_ci(VALUE(LEFT(Options!$B$24,2)),$C168,$E168,$F168,2016,$I168+$J168,1,$H168,$G168*$H168,Options!$B$8)))","v":591.95180515180004},{"$f":"IF(AND(OR(Calculations!$E$2=\"Orkney Health Board\",Calculations!$E$2=\"Orkney Islands Local Authority\"),$F168=1),0,IF(AND(OR(Calculations!$E$2=\"Shetland Health Board\",Calculations!$E$2=\"Western Isles Health Board\",Calculations!$E$2=\"Shetland Islands Local Authority\",Calculations!$E$2=\"Eilean Siar Local Authority\"),OR($F168=1,$F168=5)),0,new_yllv2(VALUE(LEFT(Options!$B$24,2)),$C168,$D168,$E168,$F168,2016,$I168,1,$H168,$G168*$H168,Options!$B$8)))","v":8847.4850546246998},{"$f":"IF(AND(OR(Calculations!$E$2=\"Orkney Health Board\",Calculations!$E$2=\"Orkney Islands Local Authority\"),$F168=1),0,IF(AND(OR(Calculations!$E$2=\"Shetland Health Board\",Calculations!$E$2=\"Western Isles Health Board\",Calculations!$E$2=\"Shetland Islands Local Authority\",Calculations!$E$2=\"Eilean Siar Local Authority\"),OR($F168=1,$F168=5)),0,new_yllv2(VALUE(LEFT(Options!$B$24,2)),$C168,$D168,$E168,$F168,2016,$I168+$J168,1,$H168,$G168*$H168,Options!$B$8)))","v":8820.0818967617997},{"$f":"IF(AND(OR(Calculations!$E$2=\"Orkney Health Board\",Calculations!$E$2=\"Orkney Islands Local Authority\"),$F168=1),0,IF(AND(OR(Calculations!$E$2=\"Shetland Health Board\",Calculations!$E$2=\"Western Isles Health Board\",Calculations!$E$2=\"Shetland Islands Local Authority\",Calculations!$E$2=\"Eilean Siar Local Authority\"),OR($F168=1,$F168=5)),0,hosp_count(VALUE(LEFT(Options!$B$24,2)),$C168,$E168,$F168,2016,$I168,1,$H168,$G168*$H168, Options!$B$8)))","v":13115.2562048768},{"$f":"IF(AND(OR(Calculations!$E$2=\"Orkney Health Board\",Calculations!$E$2=\"Orkney Islands Local Authority\"),$F168=1),0,IF(AND(OR(Calculations!$E$2=\"Shetland Health Board\",Calculations!$E$2=\"Western Isles Health Board\",Calculations!$E$2=\"Shetland Islands Local Authority\",Calculations!$E$2=\"Eilean Siar Local Authority\"),OR($F168=1,$F168=5)),0,hosp_count(VALUE(LEFT(Options!$B$24,2)),$C168,$E168,$F168,2016,$I168+$J168,1,$H168,$G168*$H168, Options!$B$8)))","v":13089.282885462},{"$f":"IF(AND(OR(Calculations!$E$2=\"Orkney Health Board\",Calculations!$E$2=\"Orkney Islands Local Authority\"),$F168=1),0,IF(AND(OR(Calculations!$E$2=\"Shetland Health Board\",Calculations!$E$2=\"Western Isles Health Board\",Calculations!$E$2=\"Shetland Islands Local Authority\",Calculations!$E$2=\"Eilean Siar Local Authority\"),OR($F168=1,$F168=5)),0,prem_mort(VALUE(LEFT(Options!$B$24,2)),$C168,$E168,$F168,2016,$I168,1,$H168,$G168*$H168,Options!$B$8)))","v":593.79094326339998},{"$f":"IF(AND(OR(Calculations!$E$2=\"Orkney Health Board\",Calculations!$E$2=\"Orkney Islands Local Authority\"),$F168=1),0,IF(AND(OR(Calculations!$E$2=\"Shetland Health Board\",Calculations!$E$2=\"Western Isles Health Board\",Calculations!$E$2=\"Shetland Islands Local Authority\",Calculations!$E$2=\"Eilean Siar Local Authority\"),OR($F168=1,$F168=5)),0,prem_mort(VALUE(LEFT(Options!$B$24,2)),$C168,$E168,$F168,2016,$I168+$J168,1,$H168,$G168*$H168,Options!$B$8)))","v":591.95180515180004},1779.362150560067,1773.8509638662313,26512.49604334512,26430.379361606785,39301.358079999998,39223.526071924724,1779.362150560067,1773.8509638662313,9786491.8280803692,9756180.3012642711,145818728.23839816,145367086.48883733,216157469.44,215729393.39558598,9786491.8280803692,9756180.3012642711,5500]
[null,"Male 70-74",71.891098,84.341099999999997,"male",3,{"$f":"HLOOKUP(Calculations!$E$2,'Prevalence Rates'!$C$3:$BC$249,'Prevalence Rates'!$BD169,FALSE)","v":0.16290000000000002},{"$f":"HLOOKUP(Calculations!$E$2,'Population 2016'!$C$3:$BC$249,'Population 2016'!BD169,FALSE)","v":24436},0,{"$f":"HLOOKUP(Results!E$4,Targeting!$C$3:$F$249,Targeting!$G169,FALSE)","v":3765},{"$f":"IF(AND(OR(Calculations!$E$2=\"Orkney Health Board\",Calculations!$E$2=\"Orkney Islands Local Authority\"),$F169=1),0,IF(AND(OR(Calculations!$E$2=\"Shetland Health Board\",Calculations!$E$2=\"Western Isles Health Board\",Calculations!$E$2=\"Shetland Islands Local Authority\",Calculations!$E$2=\"Eilean Siar Local Authority\"),OR($F169=1,$F169=5)),0,new_ci(VALUE(LEFT(Options!$B$24,2)),$C169,$E169,$F169,2016,$I169,1,$H169,$G169*$H169,Options!$B$8)))","v":623.77357038299999},{"$f":"IF(AND(OR(Calculations!$E$2=\"Orkney Health Board\",Calculations!$E$2=\"Orkney Islands Local Authority\"),$F169=1),0,IF(AND(OR(Calculations!$E$2=\"Shetland Health Board\",Calculations!$E$2=\"Western Isles Health Board\",Calculations!$E$2=\"Shetland Islands Local Authority\",Calculations!$E$2=\"Eilean Siar Local Authority\"),OR($F169=1,$F169=5)),0,new_ci(VALUE(LEFT(Options!$B$24,2)),$C169,$E169,$F169,2016,$I169+$J169,1,$H169,$G169*$H169,Options!$B$8)))","v":621.85856525550003},{"$f":"IF(AND(OR(Calculations!$E$2=\"Orkney Health Board\",Calculations!$E$2=\"Orkney Islands Local Authority\"),$F169=1),0,IF(AND(OR(Calculations!$E$2=\"Shetland Health Board\",Calculations!$E$2=\"Western Isles Health Board\",Calculations!$E$2=\"Shetland Islands Local Authority\",Calculations!$E$2=\"Eilean Siar Local Authority\"),OR($F169=1,$F169=5)),0,new_yllv2(VALUE(LEFT(Options!$B$24,2)),$C169,$D169,$E169,$F169,2016,$I169,1,$H169,$G169*$H169,Options!$B$8)))","v":7142.2086284324996},{"$f":"IF(AND(OR(Calculations!$E$2=\"Orkney Health Board\",Calculations!$E$2=\"Orkney Islands Local Authority\"),$F169=1),0,IF(AND(OR(Calculations!$E$2=\"Shetland Health Board\",Calculations!$E$2=\"Western Isles Health Board\",Calculations!$E$2=\"Shetland Islands Local Authority\",Calculations!$E$2=\"Eilean Siar Local Authority\"),OR($F169=1,$F169=5)),0,new_yllv2(VALUE(LEFT(Options!$B$24,2)),$C169,$D169,$E169,$F169,2016,$I169+$J169,1,$H169,$G169*$H169,Options!$B$8)))","v":7120.2818158926002},{"$f":"IF(AND(OR(Calculations!$E$2=\"Orkney Health Board\",Calculations!$E$2=\"Orkney Islands Local Authority\"),$F169=1),0,IF(AND(OR(Calculations!$E$2=\"Shetland Health Board\",Calculations!$E$2=\"Western Isles Health Board\",Calculations!$E$2=\"Shetland Islands Local Authority\",Calculations!$E$2=\"Eilean Siar Local Authority\"),OR($F169=1,$F169=5)),0,hosp_count(VALUE(LEFT(Options!$B$24,2)),$C169,$E169,$F169,2016,$I169,1,$H169,$G169*$H169, Options!$B$8)))","v":11402.414531516401},{"$f":"IF(AND(OR(Calculations!$E$2=\"Orkney Health Board\",Calculations!$E$2=\"Orkney Islands Local Authority\"),$F169=1),0,IF(AND(OR(Calculations!$E$2=\"Shetland Health Board\",Calculations!$E$2=\"Western Isles Health Board\",Calculations!$E$2=\"Shetland Islands Local Authority\",Calculations!$E$2=\"Eilean Siar Local Authority\"),OR($F169=1,$F169=5)),0,hosp_count(VALUE(LEFT(Options!$B$24,2)),$C169,$E169,$F169,2016,$I169+$J169,1,$H169,$G169*$H169, Options!$B$8)))","v":11379.834761497499},{"$f":"IF(AND(OR(Calculations!$E$2=\"Orkney Health Board\",Calculations!$E$2=\"Orkney Islands Local Authority\"),$F169=1),0,IF(AND(OR(Calculations!$E$2=\"Shetland Health Board\",Calculations!$E$2=\"Western Isles Health Board\",Calculations!$E$2=\"Shetland Islands Local Authority\",Calculations!$E$2=\"Eilean Siar Local Authority\"),OR($F169=1,$F169=5)),0,prem_mort(VALUE(LEFT(Options!$B$24,2)),$C169,$E169,$F169,2016,$I169,1,$H169,$G169*$H169,Options!$B$8)))","v":623.77357038299999},{"$f":"IF(AND(OR(Calculations!$E$2=\"Orkney Health Board\",Calculations!$E$2=\"Orkney Islands Local Authority\"),$F169=1),0,IF(AND(OR(Calculations!$E$2=\"Shetland Health Board\",Calculations!$E$2=\"Western Isles Health Board\",Calculations!$E$2=\"Shetland Islands Local Authority\",Calculations!$E$2=\"Eilean Siar Local Authority\"),OR($F169=1,$F169=5)),0,prem_mort(VALUE(LEFT(Options!$B$24,2)),$C169,$E169,$F169,2016,$I169+$J169,1,$H169,$G169*$H169,Options!$B$8)))","v":621.85856525550003},2552.6828056269437,2544.8459864769193,29228.223229794152,29138.491634852675,46662.360990000001,46569.957282278199,2552.6828056269437,2544.8459864769193,12763414.028134719,12724229.932384597,146141116.14897075,145692458.17426339,233311804.95000002,232849786.41139099,12763414.028134719,12724229.932384597,5000]
[null,"Male 75-79",76.907700000000006,86.357700000000008,"male",3,{"$f":"HLOOKUP(Calculations!$E$2,'Prevalence Rates'!$C$3:$BC$249,'Prevalence Rates'!$BD170,FALSE)","v":7.400000000000001E-2},{"$f":"HLOOKUP(Calculations!$E$2,'Population 2016'!$C$3:$BC$249,'Population 2016'!BD170,FALSE)","v":18146},0,{"$f":"HLOOKUP(Results!E$4,Targeting!$C$3:$F$249,Targeting!$G170,FALSE)","v":2796},{"$f":"IF(AND(OR(Calculations!$E$2=\"Orkney Health Board\",Calculations!$E$2=\"Orkney Islands Local Authority\"),$F170=1),0,IF(AND(OR(Calculations!$E$2=\"Shetland Health Board\",Calculations!$E$2=\"Western Isles Health Board\",Calculations!$E$2=\"Shetland Islands Local Authority\",Calculations!$E$2=\"Eilean Siar Local Authority\"),OR($F170=1,$F170=5)),0,new_ci(VALUE(LEFT(Options!$B$24,2)),$C170,$E170,$F170,2016,$I170,1,$H170,$G170*$H170,Options!$B$8)))","v":672.61021953470004},{"$f":"IF(AND(OR(Calculations!$E$2=\"Orkney Health Board\",Calculations!$E$2=\"Orkney Islands Local Authority\"),$F170=1),0,IF(AND(OR(Calculations!$E$2=\"Shetland Health Board\",Calculations!$E$2=\"Western Isles Health Board\",Calculations!$E$2=\"Shetland Islands Local Authority\",Calculations!$E$2=\"Eilean Siar Local Authority\"),OR($F170=1,$F170=5)),0,new_ci(VALUE(LEFT(Options!$B$24,2)),$C170,$E170,$F170,2016,$I170+$J170,1,$H170,$G170*$H170,Options!$B$8)))","v":670.43106047269998},{"$f":"IF(AND(OR(Calculations!$E$2=\"Orkney Health Board\",Calculations!$E$2=\"Orkney Islands Local Authority\"),$F170=1),0,IF(AND(OR(Calculations!$E$2=\"Shetland Health Board\",Calculations!$E$2=\"Western Isles Health Board\",Calculations!$E$2=\"Shetland Islands Local Authority\",Calculations!$E$2=\"Eilean Siar Local Authority\"),OR($F170=1,$F170=5)),0,new_yllv2(VALUE(LEFT(Options!$B$24,2)),$C170,$D170,$E170,$F170,2016,$I170,1,$H170,$G170*$H170,Options!$B$8)))","v":5683.5563550682},{"$f":"IF(AND(OR(Calculations!$E$2=\"Orkney Health Board\",Calculations!$E$2=\"Orkney Islands Local Authority\"),$F170=1),0,IF(AND(OR(Calculations!$E$2=\"Shetland Health Board\",Calculations!$E$2=\"Western Isles Health Board\",Calculations!$E$2=\"Shetland Islands Local Authority\",Calculations!$E$2=\"Eilean Siar Local Authority\"),OR($F170=1,$F170=5)),0,new_yllv2(VALUE(LEFT(Options!$B$24,2)),$C170,$D170,$E170,$F170,2016,$I170+$J170,1,$H170,$G170*$H170,Options!$B$8)))","v":5665.1424609942997},{"$f":"IF(AND(OR(Calculations!$E$2=\"Orkney Health Board\",Calculations!$E$2=\"Orkney Islands Local Authority\"),$F170=1),0,IF(AND(OR(Calculations!$E$2=\"Shetland Health Board\",Calculations!$E$2=\"Western Isles Health Board\",Calculations!$E$2=\"Shetland Islands Local Authority\",Calculations!$E$2=\"Eilean Siar Local Authority\"),OR($F170=1,$F170=5)),0,hosp_count(VALUE(LEFT(Options!$B$24,2)),$C170,$E170,$F170,2016,$I170,1,$H170,$G170*$H170, Options!$B$8)))","v":10117.666517439},{"$f":"IF(AND(OR(Calculations!$E$2=\"Orkney Health Board\",Calculations!$E$2=\"Orkney Islands Local Authority\"),$F170=1),0,IF(AND(OR(Calculations!$E$2=\"Shetland Health Board\",Calculations!$E$2=\"Western Isles Health Board\",Calculations!$E$2=\"Shetland Islands Local Authority\",Calculations!$E$2=\"Eilean Siar Local Authority\"),OR($F170=1,$F170=5)),0,hosp_count(VALUE(LEFT(Options!$B$24,2)),$C170,$E170,$F170,2016,$I170+$J170,1,$H170,$G170*$H170, Options!$B$8)))","v":10096.8042231975},{"$f":"IF(AND(OR(Calculations!$E$2=\"Orkney Health Board\",Calculations!$E$2=\"Orkney Islands Local Authority\"),$F170=1),0,IF(AND(OR(Calculations!$E$2=\"Shetland Health Board\",Calculations!$E$2=\"Western Isles Health Board\",Calculations!$E$2=\"Shetland Islands Local Authority\",Calculations!$E$2=\"Eilean Siar Local Authority\"),OR($F170=1,$F170=5)),0,prem_mort(VALUE(LEFT(Options!$B$24,2)),$C170,$E170,$F170,2016,$I170,1,$H170,$G170*$H170,Options!$B$8)))","v":0},{"$f":"IF(AND(OR(Calculations!$E$2=\"Orkney Health Board\",Calculations!$E$2=\"Orkney Islands Local Authority\"),$F170=1),0,IF(AND(OR(Calculations!$E$2=\"Shetland Health Board\",Calculations!$E$2=\"Western Isles Health Board\",Calculations!$E$2=\"Shetland Islands Local Authority\",Calculations!$E$2=\"Eilean Siar Local Authority\"),OR($F170=1,$F170=5)),0,prem_mort(VALUE(LEFT(Options!$B$24,2)),$C170,$E170,$F170,2016,$I170+$J170,1,$H170,$G170*$H170,Options!$B$8)))","v":0},3706.6583243397999,3694.649291704508,31321.262840671221,31219.786514903008,55757.007150000005,55642.038042530032,0,0,14826633.2973592,14778597.166818032,125285051.36268489,124879146.05961204,223028028.60000002,222568152.17012012,0,0,4000]
[null,"Male 80-84",81.797089,88.627089999999995,"male",3,{"$f":"HLOOKUP(Calculations!$E$2,'Prevalence Rates'!$C$3:$BC$249,'Prevalence Rates'!$BD171,FALSE)","v":7.400000000000001E-2},{"$f":"HLOOKUP(Calculations!$E$2,'Population 2016'!$C$3:$BC$249,'Population 2016'!BD171,FALSE)","v":12096},0,{"$f":"HLOOKUP(Results!E$4,Targeting!$C$3:$F$249,Targeting!$G171,FALSE)","v":1864},{"$f":"IF(AND(OR(Calculations!$E$2=\"Orkney Health Board\",Calculations!$E$2=\"Orkney Islands Local Authority\"),$F171=1),0,IF(AND(OR(Calculations!$E$2=\"Shetland Health Board\",Calculations!$E$2=\"Western Isles Health Board\",Calculations!$E$2=\"Shetland Islands Local Authority\",Calculations!$E$2=\"Eilean Siar Local Authority\"),OR($F171=1,$F171=5)),0,new_ci(VALUE(LEFT(Options!$B$24,2)),$C171,$E171,$F171,2016,$I171,1,$H171,$G171*$H171,Options!$B$8)))","v":642.88692760480001},{"$f":"IF(AND(OR(Calculations!$E$2=\"Orkney Health Board\",Calculations!$E$2=\"Orkney Islands Local Authority\"),$F171=1),0,IF(AND(OR(Calculations!$E$2=\"Shetland Health Board\",Calculations!$E$2=\"Western Isles Health Board\",Calculations!$E$2=\"Shetland Islands Local Authority\",Calculations!$E$2=\"Eilean Siar Local Authority\"),OR($F171=1,$F171=5)),0,new_ci(VALUE(LEFT(Options!$B$24,2)),$C171,$E171,$F171,2016,$I171+$J171,1,$H171,$G171*$H171,Options!$B$8)))","v":640.84737832159999},{"$f":"IF(AND(OR(Calculations!$E$2=\"Orkney Health Board\",Calculations!$E$2=\"Orkney Islands Local Authority\"),$F171=1),0,IF(AND(OR(Calculations!$E$2=\"Shetland Health Board\",Calculations!$E$2=\"Western Isles Health Board\",Calculations!$E$2=\"Shetland Islands Local Authority\",Calculations!$E$2=\"Eilean Siar Local Authority\"),OR($F171=1,$F171=5)),0,new_yllv2(VALUE(LEFT(Options!$B$24,2)),$C171,$D171,$E171,$F171,2016,$I171,1,$H171,$G171*$H171,Options!$B$8)))","v":3748.0314308228999},{"$f":"IF(AND(OR(Calculations!$E$2=\"Orkney Health Board\",Calculations!$E$2=\"Orkney Islands Local Authority\"),$F171=1),0,IF(AND(OR(Calculations!$E$2=\"Shetland Health Board\",Calculations!$E$2=\"Western Isles Health Board\",Calculations!$E$2=\"Shetland Islands Local Authority\",Calculations!$E$2=\"Eilean Siar Local Authority\"),OR($F171=1,$F171=5)),0,new_yllv2(VALUE(LEFT(Options!$B$24,2)),$C171,$D171,$E171,$F171,2016,$I171+$J171,1,$H171,$G171*$H171,Options!$B$8)))","v":3736.1408564622998},{"$f":"IF(AND(OR(Calculations!$E$2=\"Orkney Health Board\",Calculations!$E$2=\"Orkney Islands Local Authority\"),$F171=1),0,IF(AND(OR(Calculations!$E$2=\"Shetland Health Board\",Calculations!$E$2=\"Western Isles Health Board\",Calculations!$E$2=\"Shetland Islands Local Authority\",Calculations!$E$2=\"Eilean Siar Local Authority\"),OR($F171=1,$F171=5)),0,hosp_count(VALUE(LEFT(Options!$B$24,2)),$C171,$E171,$F171,2016,$I171,1,$H171,$G171*$H171, Options!$B$8)))","v":8022.5594273664001},{"$f":"IF(AND(OR(Calculations!$E$2=\"Orkney Health Board\",Calculations!$E$2=\"Orkney Islands Local Authority\"),$F171=1),0,IF(AND(OR(Calculations!$E$2=\"Shetland Health Board\",Calculations!$E$2=\"Western Isles Health Board\",Calculations!$E$2=\"Shetland Islands Local Authority\",Calculations!$E$2=\"Eilean Siar Local Authority\"),OR($F171=1,$F171=5)),0,hosp_count(VALUE(LEFT(Options!$B$24,2)),$C171,$E171,$F171,2016,$I171+$J171,1,$H171,$G171*$H171, Options!$B$8)))","v":8006.0153513975001},{"$f":"IF(AND(OR(Calculations!$E$2=\"Orkney Health Board\",Calculations!$E$2=\"Orkney Islands Local Authority\"),$F171=1),0,IF(AND(OR(Calculations!$E$2=\"Shetland Health Board\",Calculations!$E$2=\"Western Isles Health Board\",Calculations!$E$2=\"Shetland Islands Local Authority\",Calculations!$E$2=\"Eilean Siar Local Authority\"),OR($F171=1,$F171=5)),0,prem_mort(VALUE(LEFT(Options!$B$24,2)),$C171,$E171,$F171,2016,$I171,1,$H171,$G171*$H171,Options!$B$8)))","v":0},{"$f":"IF(AND(OR(Calculations!$E$2=\"Orkney Health Board\",Calculations!$E$2=\"Orkney Islands Local Authority\"),$F171=1),0,IF(AND(OR(Calculations!$E$2=\"Shetland Health Board\",Calculations!$E$2=\"Western Isles Health Board\",Calculations!$E$2=\"Shetland Islands Local Authority\",Calculations!$E$2=\"Eilean Siar Local Authority\"),OR($F171=1,$F171=5)),0,prem_mort(VALUE(LEFT(Options!$B$24,2)),$C171,$E171,$F171,2016,$I171+$J171,1,$H171,$G171*$H171,Options!$B$8)))","v":0},5314.872086679894,5298.0107334788354,30985.709580215775,30887.407874192293,66324.069340000002,66187.29622517775,0,0,13287180.216699734,13245026.833697088,77464273.95053944,77218519.685480729,165810173.34999999,165468240.56294438,0,0,2500]
[null,"Male 85-89",86.630752999999999,91.420750000000012,"male",3,{"$f":"HLOOKUP(Calculations!$E$2,'Prevalence Rates'!$C$3:$BC$249,'Prevalence Rates'!$BD172,FALSE)","v":7.400000000000001E-2},{"$f":"HLOOKUP(Calculations!$E$2,'Population 2016'!$C$3:$BC$249,'Population 2016'!BD172,FALSE)","v":6019},0,{"$f":"HLOOKUP(Results!E$4,Targeting!$C$3:$F$249,Targeting!$G172,FALSE)","v":927},{"$f":"IF(AND(OR(Calculations!$E$2=\"Orkney Health Board\",Calculations!$E$2=\"Orkney Islands Local Authority\"),$F172=1),0,IF(AND(OR(Calculations!$E$2=\"Shetland Health Board\",Calculations!$E$2=\"Western Isles Health Board\",Calculations!$E$2=\"Shetland Islands Local Authority\",Calculations!$E$2=\"Eilean Siar Local Authority\"),OR($F172=1,$F172=5)),0,new_ci(VALUE(LEFT(Options!$B$24,2)),$C172,$E172,$F172,2016,$I172,1,$H172,$G172*$H172,Options!$B$8)))","v":455.09458112990001},{"$f":"IF(AND(OR(Calculations!$E$2=\"Orkney Health Board\",Calculations!$E$2=\"Orkney Islands Local Authority\"),$F172=1),0,IF(AND(OR(Calculations!$E$2=\"Shetland Health Board\",Calculations!$E$2=\"Western Isles Health Board\",Calculations!$E$2=\"Shetland Islands Local Authority\",Calculations!$E$2=\"Eilean Siar Local Authority\"),OR($F172=1,$F172=5)),0,new_ci(VALUE(LEFT(Options!$B$24,2)),$C172,$E172,$F172,2016,$I172+$J172,1,$H172,$G172*$H172,Options!$B$8)))","v":453.69454804729997},{"$f":"IF(AND(OR(Calculations!$E$2=\"Orkney Health Board\",Calculations!$E$2=\"Orkney Islands Local Authority\"),$F172=1),0,IF(AND(OR(Calculations!$E$2=\"Shetland Health Board\",Calculations!$E$2=\"Western Isles Health Board\",Calculations!$E$2=\"Shetland Islands Local Authority\",Calculations!$E$2=\"Eilean Siar Local Authority\"),OR($F172=1,$F172=5)),0,new_yllv2(VALUE(LEFT(Options!$B$24,2)),$C172,$D172,$E172,$F172,2016,$I172,1,$H172,$G172*$H172,Options!$B$8)))","v":1724.8070971986001},{"$f":"IF(AND(OR(Calculations!$E$2=\"Orkney Health Board\",Calculations!$E$2=\"Orkney Islands Local Authority\"),$F172=1),0,IF(AND(OR(Calculations!$E$2=\"Shetland Health Board\",Calculations!$E$2=\"Western Isles Health Board\",Calculations!$E$2=\"Shetland Islands Local Authority\",Calculations!$E$2=\"Eilean Siar Local Authority\"),OR($F172=1,$F172=5)),0,new_yllv2(VALUE(LEFT(Options!$B$24,2)),$C172,$D172,$E172,$F172,2016,$I172+$J172,1,$H172,$G172*$H172,Options!$B$8)))","v":1719.5009760155999},{"$f":"IF(AND(OR(Calculations!$E$2=\"Orkney Health Board\",Calculations!$E$2=\"Orkney Islands Local Authority\"),$F172=1),0,IF(AND(OR(Calculations!$E$2=\"Shetland Health Board\",Calculations!$E$2=\"Western Isles Health Board\",Calculations!$E$2=\"Shetland Islands Local Authority\",Calculations!$E$2=\"Eilean Siar Local Authority\"),OR($F172=1,$F172=5)),0,hosp_count(VALUE(LEFT(Options!$B$24,2)),$C172,$E172,$F172,2016,$I172,1,$H172,$G172*$H172, Options!$B$8)))","v":4739.2344881063},{"$f":"IF(AND(OR(Calculations!$E$2=\"Orkney Health Board\",Calculations!$E$2=\"Orkney Islands Local Authority\"),$F172=1),0,IF(AND(OR(Calculations!$E$2=\"Shetland Health Board\",Calculations!$E$2=\"Western Isles Health Board\",Calculations!$E$2=\"Shetland Islands Local Authority\",Calculations!$E$2=\"Eilean Siar Local Authority\"),OR($F172=1,$F172=5)),0,hosp_count(VALUE(LEFT(Options!$B$24,2)),$C172,$E172,$F172,2016,$I172+$J172,1,$H172,$G172*$H172, Options!$B$8)))","v":4729.4668619984996},{"$f":"IF(AND(OR(Calculations!$E$2=\"Orkney Health Board\",Calculations!$E$2=\"Orkney Islands Local Authority\"),$F172=1),0,IF(AND(OR(Calculations!$E$2=\"Shetland Health Board\",Calculations!$E$2=\"Western Isles Health Board\",Calculations!$E$2=\"Shetland Islands Local Authority\",Calculations!$E$2=\"Eilean Siar Local Authority\"),OR($F172=1,$F172=5)),0,prem_mort(VALUE(LEFT(Options!$B$24,2)),$C172,$E172,$F172,2016,$I172,1,$H172,$G172*$H172,Options!$B$8)))","v":0},{"$f":"IF(AND(OR(Calculations!$E$2=\"Orkney Health Board\",Calculations!$E$2=\"Orkney Islands Local Authority\"),$F172=1),0,IF(AND(OR(Calculations!$E$2=\"Shetland Health Board\",Calculations!$E$2=\"Western Isles Health Board\",Calculations!$E$2=\"Shetland Islands Local Authority\",Calculations!$E$2=\"Eilean Siar Local Authority\"),OR($F172=1,$F172=5)),0,prem_mort(VALUE(LEFT(Options!$B$24,2)),$C172,$E172,$F172,2016,$I172+$J172,1,$H172,$G172*$H172,Options!$B$8)))","v":0},7560.9666245206845,7537.7063971972084,28656.040824033895,28567.88463225785,78737.904770000008,78575.624887830199,0,0,11341449.936781026,11306559.595795812,42984061.236050844,42851826.948386773,118106857.15500002,117863437.3317453,0,0,1500]
[null,"Male 90+",92.215477000000007,95.515479999999997,"male",3,{"$f":"HLOOKUP(Calculations!$E$2,'Prevalence Rates'!$C$3:$BC$249,'Prevalence Rates'!$BD173,FALSE)","v":7.400000000000001E-2},{"$f":"HLOOKUP(Calculations!$E$2,'Population 2016'!$C$3:$BC$249,'Population 2016'!BD173,FALSE)","v":2593},0,{"$f":"HLOOKUP(Results!E$4,Targeting!$C$3:$F$249,Targeting!$G173,FALSE)","v":400},{"$f":"IF(AND(OR(Calculations!$E$2=\"Orkney Health Board\",Calculations!$E$2=\"Orkney Islands Local Authority\"),$F173=1),0,IF(AND(OR(Calculations!$E$2=\"Shetland Health Board\",Calculations!$E$2=\"Western Isles Health Board\",Calculations!$E$2=\"Shetland Islands Local Authority\",Calculations!$E$2=\"Eilean Siar Local Authority\"),OR($F173=1,$F173=5)),0,new_ci(VALUE(LEFT(Options!$B$24,2)),$C173,$E173,$F173,2016,$I173,1,$H173,$G173*$H173,Options!$B$8)))","v":292.61318337659998},{"$f":"IF(AND(OR(Calculations!$E$2=\"Orkney Health Board\",Calculations!$E$2=\"Orkney Islands Local Authority\"),$F173=1),0,IF(AND(OR(Calculations!$E$2=\"Shetland Health Board\",Calculations!$E$2=\"Western Isles Health Board\",Calculations!$E$2=\"Shetland Islands Local Authority\",Calculations!$E$2=\"Eilean Siar Local Authority\"),OR($F173=1,$F173=5)),0,new_ci(VALUE(LEFT(Options!$B$24,2)),$C173,$E173,$F173,2016,$I173+$J173,1,$H173,$G173*$H173,Options!$B$8)))","v":291.75719025659998},{"$f":"IF(AND(OR(Calculations!$E$2=\"Orkney Health Board\",Calculations!$E$2=\"Orkney Islands Local Authority\"),$F173=1),0,IF(AND(OR(Calculations!$E$2=\"Shetland Health Board\",Calculations!$E$2=\"Western Isles Health Board\",Calculations!$E$2=\"Shetland Islands Local Authority\",Calculations!$E$2=\"Eilean Siar Local Authority\"),OR($F173=1,$F173=5)),0,new_yllv2(VALUE(LEFT(Options!$B$24,2)),$C173,$D173,$E173,$F173,2016,$I173,1,$H173,$G173*$H173,Options!$B$8)))","v":673.01119960569997},{"$f":"IF(AND(OR(Calculations!$E$2=\"Orkney Health Board\",Calculations!$E$2=\"Orkney Islands Local Authority\"),$F173=1),0,IF(AND(OR(Calculations!$E$2=\"Shetland Health Board\",Calculations!$E$2=\"Western Isles Health Board\",Calculations!$E$2=\"Shetland Islands Local Authority\",Calculations!$E$2=\"Eilean Siar Local Authority\"),OR($F173=1,$F173=5)),0,new_yllv2(VALUE(LEFT(Options!$B$24,2)),$C173,$D173,$E173,$F173,2016,$I173+$J173,1,$H173,$G173*$H173,Options!$B$8)))","v":671.04241286169997},{"$f":"IF(AND(OR(Calculations!$E$2=\"Orkney Health Board\",Calculations!$E$2=\"Orkney Islands Local Authority\"),$F173=1),0,IF(AND(OR(Calculations!$E$2=\"Shetland Health Board\",Calculations!$E$2=\"Western Isles Health Board\",Calculations!$E$2=\"Shetland Islands Local Authority\",Calculations!$E$2=\"Eilean Siar Local Authority\"),OR($F173=1,$F173=5)),0,hosp_count(VALUE(LEFT(Options!$B$24,2)),$C173,$E173,$F173,2016,$I173,1,$H173,$G173*$H173, Options!$B$8)))","v":2489.2981891170998},{"$f":"IF(AND(OR(Calculations!$E$2=\"Orkney Health Board\",Calculations!$E$2=\"Orkney Islands Local Authority\"),$F173=1),0,IF(AND(OR(Calculations!$E$2=\"Shetland Health Board\",Calculations!$E$2=\"Western Isles Health Board\",Calculations!$E$2=\"Shetland Islands Local Authority\",Calculations!$E$2=\"Eilean Siar Local Authority\"),OR($F173=1,$F173=5)),0,hosp_count(VALUE(LEFT(Options!$B$24,2)),$C173,$E173,$F173,2016,$I173+$J173,1,$H173,$G173*$H173, Options!$B$8)))","v":2484.1594113019},{"$f":"IF(AND(OR(Calculations!$E$2=\"Orkney Health Board\",Calculations!$E$2=\"Orkney Islands Local Authority\"),$F173=1),0,IF(AND(OR(Calculations!$E$2=\"Shetland Health Board\",Calculations!$E$2=\"Western Isles Health Board\",Calculations!$E$2=\"Shetland Islands Local Authority\",Calculations!$E$2=\"Eilean Siar Local Authority\"),OR($F173=1,$F173=5)),0,prem_mort(VALUE(LEFT(Options!$B$24,2)),$C173,$E173,$F173,2016,$I173,1,$H173,$G173*$H173,Options!$B$8)))","v":0},{"$f":"IF(AND(OR(Calculations!$E$2=\"Orkney Health Board\",Calculations!$E$2=\"Orkney Islands Local Authority\"),$F173=1),0,IF(AND(OR(Calculations!$E$2=\"Shetland Health Board\",Calculations!$E$2=\"Western Isles Health Board\",Calculations!$E$2=\"Shetland Islands Local Authority\",Calculations!$E$2=\"Eilean Siar Local Authority\"),OR($F173=1,$F173=5)),0,prem_mort(VALUE(LEFT(Options!$B$24,2)),$C173,$E173,$F173,2016,$I173+$J173,1,$H173,$G173*$H173,Options!$B$8)))","v":0},11284.735186139606,11251.723496205166,25954.924782325488,25878.997796440417,96000.70147,95802.522610948712,0,0,11284735.186139606,11251723.496205166,25954924.782325488,25878997.796440419,96000701.469999999,95802522.610948712,0,0,1000]
[null,"Female 0-4",2.0384007,81.468401,"female",4,{"$f":"HLOOKUP(Calculations!$E$2,'Prevalence Rates'!$C$3:$BC$249,'Prevalence Rates'!$BD174,FALSE)","v":0},{"$f":"HLOOKUP(Calculations!$E$2,'Population 2016'!$C$3:$BC$249,'Population 2016'!BD174,FALSE)","v":0},0,{"$f":"HLOOKUP(Results!E$4,Targeting!$C$3:$F$249,Targeting!$G174,FALSE)","v":0},{"$f":"IF(AND(OR(Calculations!$E$2=\"Orkney Health Board\",Calculations!$E$2=\"Orkney Islands Local Authority\"),$F174=1),0,IF(AND(OR(Calculations!$E$2=\"Shetland Health Board\",Calculations!$E$2=\"Western Isles Health Board\",Calculations!$E$2=\"Shetland Islands Local Authority\",Calculations!$E$2=\"Eilean Siar Local Authority\"),OR($F174=1,$F174=5)),0,new_ci(VALUE(LEFT(Options!$B$24,2)),$C174,$E174,$F174,2016,$I174,1,$H174,$G174*$H174,Options!$B$8)))","v":{"$error":"#VALUE!"}},{"$f":"IF(AND(OR(Calculations!$E$2=\"Orkney Health Board\",Calculations!$E$2=\"Orkney Islands Local Authority\"),$F174=1),0,IF(AND(OR(Calculations!$E$2=\"Shetland Health Board\",Calculations!$E$2=\"Western Isles Health Board\",Calculations!$E$2=\"Shetland Islands Local Authority\",Calculations!$E$2=\"Eilean Siar Local Authority\"),OR($F174=1,$F174=5)),0,new_ci(VALUE(LEFT(Options!$B$24,2)),$C174,$E174,$F174,2016,$I174+$J174,1,$H174,$G174*$H174,Options!$B$8)))","v":{"$error":"#VALUE!"}},{"$f":"IF(AND(OR(Calculations!$E$2=\"Orkney Health Board\",Calculations!$E$2=\"Orkney Islands Local Authority\"),$F174=1),0,IF(AND(OR(Calculations!$E$2=\"Shetland Health Board\",Calculations!$E$2=\"Western Isles Health Board\",Calculations!$E$2=\"Shetland Islands Local Authority\",Calculations!$E$2=\"Eilean Siar Local Authority\"),OR($F174=1,$F174=5)),0,new_yllv2(VALUE(LEFT(Options!$B$24,2)),$C174,$D174,$E174,$F174,2016,$I174,1,$H174,$G174*$H174,Options!$B$8)))","v":{"$error":"#VALUE!"}},{"$f":"IF(AND(OR(Calculations!$E$2=\"Orkney Health Board\",Calculations!$E$2=\"Orkney Islands Local Authority\"),$F174=1),0,IF(AND(OR(Calculations!$E$2=\"Shetland Health Board\",Calculations!$E$2=\"Western Isles Health Board\",Calculations!$E$2=\"Shetland Islands Local Authority\",Calculations!$E$2=\"Eilean Siar Local Authority\"),OR($F174=1,$F174=5)),0,new_yllv2(VALUE(LEFT(Options!$B$24,2)),$C174,$D174,$E174,$F174,2016,$I174+$J174,1,$H174,$G174*$H174,Options!$B$8)))","v":{"$error":"#VALUE!"}},{"$f":"IF(AND(OR(Calculations!$E$2=\"Orkney Health Board\",Calculations!$E$2=\"Orkney Islands Local Authority\"),$F174=1),0,IF(AND(OR(Calculations!$E$2=\"Shetland Health Board\",Calculations!$E$2=\"Western Isles Health Board\",Calculations!$E$2=\"Shetland Islands Local Authority\",Calculations!$E$2=\"Eilean Siar Local Authority\"),OR($F174=1,$F174=5)),0,hosp_count(VALUE(LEFT(Options!$B$24,2)),$C174,$E174,$F174,2016,$I174,1,$H174,$G174*$H174, Options!$B$8)))","v":{"$error":"#VALUE!"}},{"$f":"IF(AND(OR(Calculations!$E$2=\"Orkney Health Board\",Calculations!$E$2=\"Orkney Islands Local Authority\"),$F174=1),0,IF(AND(OR(Calculations!$E$2=\"Shetland Health Board\",Calculations!$E$2=\"Western Isles Health Board\",Calculations!$E$2=\"Shetland Islands Local Authority\",Calculations!$E$2=\"Eilean Siar Local Authority\"),OR($F174=1,$F174=5)),0,hosp_count(VALUE(LEFT(Options!$B$24,2)),$C174,$E174,$F174,2016,$I174+$J174,1,$H174,$G174*$H174, Options!$B$8)))","v":{"$error":"#VALUE!"}},{"$f":"IF(AND(OR(Calculations!$E$2=\"Orkney Health Board\",Calculations!$E$2=\"Orkney Islands Local Authority\"),$F174=1),0,IF(AND(OR(Calculations!$E$2=\"Shetland Health Board\",Calculations!$E$2=\"Western Isles Health Board\",Calculations!$E$2=\"Shetland Islands Local Authority\",Calculations!$E$2=\"Eilean Siar Local Authority\"),OR($F174=1,$F174=5)),0,prem_mort(VALUE(LEFT(Options!$B$24,2)),$C174,$E174,$F174,2016,$I174,1,$H174,$G174*$H174,Options!$B$8)))","v":{"$error":"#VALUE!"}},{"$f":"IF(AND(OR(Calculations!$E$2=\"Orkney Health Board\",Calculations!$E$2=\"Orkney Islands Local Authority\"),$F174=1),0,IF(AND(OR(Calculations!$E$2=\"Shetland Health Board\",Calculations!$E$2=\"Western Isles Health Board\",Calculations!$E$2=\"Shetland Islands Local Authority\",Calculations!$E$2=\"Eilean Siar Local Authority\"),OR($F174=1,$F174=5)),0,prem_mort(VALUE(LEFT(Options!$B$24,2)),$C174,$E174,$F174,2016,$I174+$J174,1,$H174,$G174*$H174,Options!$B$8)))","v":{"$error":"#VALUE!"}},{"$error":"#VALUE!"},{"$error":"#VALUE!"},{"$error":"#VALUE!"},{"$error":"#VALUE!"},{"$error":"#VALUE!"},{"$error":"#VALUE!"},{"$error":"#VALUE!"},{"$error":"#VALUE!"},{"$error":"#VALUE!"},{"$error":"#VALUE!"},{"$error":"#VALUE!"},{"$error":"#VALUE!"},{"$error":"#VALUE!"},{"$error":"#VALUE!"},{"$error":"#VALUE!"},{"$error":"#VALUE!"},5000]
[null,"Female 5-9",6.9792794999999996,81.439279999999997,"female",4,{"$f":"HLOOKUP(Calculations!$E$2,'Prevalence Rates'!$C$3:$BC$249,'Prevalence Rates'!$BD175,FALSE)","v":0},{"$f":"HLOOKUP(Calculations!$E$2,'Population 2016'!$C$3:$BC$249,'Population 2016'!BD175,FALSE)","v":0},0,{"$f":"HLOOKUP(Results!E$4,Targeting!$C$3:$F$249,Targeting!$G175,FALSE)","v":0},{"$f":"IF(AND(OR(Calculations!$E$2=\"Orkney Health Board\",Calculations!$E$2=\"Orkney Islands Local Authority\"),$F175=1),0,IF(AND(OR(Calculations!$E$2=\"Shetland Health Board\",Calculations!$E$2=\"Western Isles Health Board\",Calculations!$E$2=\"Shetland Islands Local Authority\",Calculations!$E$2=\"Eilean Siar Local Authority\"),OR($F175=1,$F175=5)),0,new_ci(VALUE(LEFT(Options!$B$24,2)),$C175,$E175,$F175,2016,$I175,1,$H175,$G175*$H175,Options!$B$8)))","v":{"$error":"#VALUE!"}},{"$f":"IF(AND(OR(Calculations!$E$2=\"Orkney Health Board\",Calculations!$E$2=\"Orkney Islands Local Authority\"),$F175=1),0,IF(AND(OR(Calculations!$E$2=\"Shetland Health Board\",Calculations!$E$2=\"Western Isles Health Board\",Calculations!$E$2=\"Shetland Islands Local Authority\",Calculations!$E$2=\"Eilean Siar Local Authority\"),OR($F175=1,$F175=5)),0,new_ci(VALUE(LEFT(Options!$B$24,2)),$C175,$E175,$F175,2016,$I175+$J175,1,$H175,$G175*$H175,Options!$B$8)))","v":{"$error":"#VALUE!"}},{"$f":"IF(AND(OR(Calculations!$E$2=\"Orkney Health Board\",Calculations!$E$2=\"Orkney Islands Local Authority\"),$F175=1),0,IF(AND(OR(Calculations!$E$2=\"Shetland Health Board\",Calculations!$E$2=\"Western Isles Health Board\",Calculations!$E$2=\"Shetland Islands Local Authority\",Calculations!$E$2=\"Eilean Siar Local Authority\"),OR($F175=1,$F175=5)),0,new_yllv2(VALUE(LEFT(Options!$B$24,2)),$C175,$D175,$E175,$F175,2016,$I175,1,$H175,$G175*$H175,Options!$B$8)))","v":{"$error":"#VALUE!"}},{"$f":"IF(AND(OR(Calculations!$E$2=\"Orkney Health Board\",Calculations!$E$2=\"Orkney Islands Local Authority\"),$F175=1),0,IF(AND(OR(Calculations!$E$2=\"Shetland Health Board\",Calculations!$E$2=\"Western Isles Health Board\",Calculations!$E$2=\"Shetland Islands Local Authority\",Calculations!$E$2=\"Eilean Siar Local Authority\"),OR($F175=1,$F175=5)),0,new_yllv2(VALUE(LEFT(Options!$B$24,2)),$C175,$D175,$E175,$F175,2016,$I175+$J175,1,$H175,$G175*$H175,Options!$B$8)))","v":{"$error":"#VALUE!"}},{"$f":"IF(AND(OR(Calculations!$E$2=\"Orkney Health Board\",Calculations!$E$2=\"Orkney Islands Local Authority\"),$F175=1),0,IF(AND(OR(Calculations!$E$2=\"Shetland Health Board\",Calculations!$E$2=\"Western Isles Health Board\",Calculations!$E$2=\"Shetland Islands Local Authority\",Calculations!$E$2=\"Eilean Siar Local Authority\"),OR($F175=1,$F175=5)),0,hosp_count(VALUE(LEFT(Options!$B$24,2)),$C175,$E175,$F175,2016,$I175,1,$H175,$G175*$H175, Options!$B$8)))","v":{"$error":"#VALUE!"}},{"$f":"IF(AND(OR(Calculations!$E$2=\"Orkney Health Board\",Calculations!$E$2=\"Orkney Islands Local Authority\"),$F175=1),0,IF(AND(OR(Calculations!$E$2=\"Shetland Health Board\",Calculations!$E$2=\"Western Isles Health Board\",Calculations!$E$2=\"Shetland Islands Local Authority\",Calculations!$E$2=\"Eilean Siar Local Authority\"),OR($F175=1,$F175=5)),0,hosp_count(VALUE(LEFT(Options!$B$24,2)),$C175,$E175,$F175,2016,$I175+$J175,1,$H175,$G175*$H175, Options!$B$8)))","v":{"$error":"#VALUE!"}},{"$f":"IF(AND(OR(Calculations!$E$2=\"Orkney Health Board\",Calculations!$E$2=\"Orkney Islands Local Authority\"),$F175=1),0,IF(AND(OR(Calculations!$E$2=\"Shetland Health Board\",Calculations!$E$2=\"Western Isles Health Board\",Calculations!$E$2=\"Shetland Islands Local Authority\",Calculations!$E$2=\"Eilean Siar Local Authority\"),OR($F175=1,$F175=5)),0,prem_mort(VALUE(LEFT(Options!$B$24,2)),$C175,$E175,$F175,2016,$I175,1,$H175,$G175*$H175,Options!$B$8)))","v":{"$error":"#VALUE!"}},{"$f":"IF(AND(OR(Calculations!$E$2=\"Orkney Health Board\",Calculations!$E$2=\"Orkney Islands Local Authority\"),$F175=1),0,IF(AND(OR(Calculations!$E$2=\"Shetland Health Board\",Calculations!$E$2=\"Western Isles Health Board\",Calculations!$E$2=\"Shetland Islands Local Authority\",Calculations!$E$2=\"Eilean Siar Local Authority\"),OR($F175=1,$F175=5)),0,prem_mort(VALUE(LEFT(Options!$B$24,2)),$C175,$E175,$F175,2016,$I175+$J175,1,$H175,$G175*$H175,Options!$B$8)))","v":{"$error":"#VALUE!"}},{"$error":"#VALUE!"},{"$error":"#VALUE!"},{"$error":"#VALUE!"},{"$error":"#VALUE!"},{"$error":"#VALUE!"},{"$error":"#VALUE!"},{"$error":"#VALUE!"},{"$error":"#VALUE!"},{"$error":"#VALUE!"},{"$error":"#VALUE!"},{"$error":"#VALUE!"},{"$error":"#VALUE!"},{"$error":"#VALUE!"},{"$error":"#VALUE!"},{"$error":"#VALUE!"},{"$error":"#VALUE!"},5500]
[null,"Female 10-15",12.478312000000001,81.948309999999992,"female",4,{"$f":"HLOOKUP(Calculations!$E$2,'Prevalence Rates'!$C$3:$BC$249,'Prevalence Rates'!$BD176,FALSE)","v":0},{"$f":"HLOOKUP(Calculations!$E$2,'Population 2016'!$C$3:$BC$249,'Population 2016'!BD176,FALSE)","v":0},0,{"$f":"HLOOKUP(Results!E$4,Targeting!$C$3:$F$249,Targeting!$G176,FALSE)","v":0},{"$f":"IF(AND(OR(Calculations!$E$2=\"Orkney Health Board\",Calculations!$E$2=\"Orkney Islands Local Authority\"),$F176=1),0,IF(AND(OR(Calculations!$E$2=\"Shetland Health Board\",Calculations!$E$2=\"Western Isles Health Board\",Calculations!$E$2=\"Shetland Islands Local Authority\",Calculations!$E$2=\"Eilean Siar Local Authority\"),OR($F176=1,$F176=5)),0,new_ci(VALUE(LEFT(Options!$B$24,2)),$C176,$E176,$F176,2016,$I176,1,$H176,$G176*$H176,Options!$B$8)))","v":{"$error":"#VALUE!"}},{"$f":"IF(AND(OR(Calculations!$E$2=\"Orkney Health Board\",Calculations!$E$2=\"Orkney Islands Local Authority\"),$F176=1),0,IF(AND(OR(Calculations!$E$2=\"Shetland Health Board\",Calculations!$E$2=\"Western Isles Health Board\",Calculations!$E$2=\"Shetland Islands Local Authority\",Calculations!$E$2=\"Eilean Siar Local Authority\"),OR($F176=1,$F176=5)),0,new_ci(VALUE(LEFT(Options!$B$24,2)),$C176,$E176,$F176,2016,$I176+$J176,1,$H176,$G176*$H176,Options!$B$8)))","v":{"$error":"#VALUE!"}},{"$f":"IF(AND(OR(Calculations!$E$2=\"Orkney Health Board\",Calculations!$E$2=\"Orkney Islands Local Authority\"),$F176=1),0,IF(AND(OR(Calculations!$E$2=\"Shetland Health Board\",Calculations!$E$2=\"Western Isles Health Board\",Calculations!$E$2=\"Shetland Islands Local Authority\",Calculations!$E$2=\"Eilean Siar Local Authority\"),OR($F176=1,$F176=5)),0,new_yllv2(VALUE(LEFT(Options!$B$24,2)),$C176,$D176,$E176,$F176,2016,$I176,1,$H176,$G176*$H176,Options!$B$8)))","v":{"$error":"#VALUE!"}},{"$f":"IF(AND(OR(Calculations!$E$2=\"Orkney Health Board\",Calculations!$E$2=\"Orkney Islands Local Authority\"),$F176=1),0,IF(AND(OR(Calculations!$E$2=\"Shetland Health Board\",Calculations!$E$2=\"Western Isles Health Board\",Calculations!$E$2=\"Shetland Islands Local Authority\",Calculations!$E$2=\"Eilean Siar Local Authority\"),OR($F176=1,$F176=5)),0,new_yllv2(VALUE(LEFT(Options!$B$24,2)),$C176,$D176,$E176,$F176,2016,$I176+$J176,1,$H176,$G176*$H176,Options!$B$8)))","v":{"$error":"#VALUE!"}},{"$f":"IF(AND(OR(Calculations!$E$2=\"Orkney Health Board\",Calculations!$E$2=\"Orkney Islands Local Authority\"),$F176=1),0,IF(AND(OR(Calculations!$E$2=\"Shetland Health Board\",Calculations!$E$2=\"Western Isles Health Board\",Calculations!$E$2=\"Shetland Islands Local Authority\",Calculations!$E$2=\"Eilean Siar Local Authority\"),OR($F176=1,$F176=5)),0,hosp_count(VALUE(LEFT(Options!$B$24,2)),$C176,$E176,$F176,2016,$I176,1,$H176,$G176*$H176, Options!$B$8)))","v":{"$error":"#VALUE!"}},{"$f":"IF(AND(OR(Calculations!$E$2=\"Orkney Health Board\",Calculations!$E$2=\"Orkney Islands Local Authority\"),$F176=1),0,IF(AND(OR(Calculations!$E$2=\"Shetland Health Board\",Calculations!$E$2=\"Western Isles Health Board\",Calculations!$E$2=\"Shetland Islands Local Authority\",Calculations!$E$2=\"Eilean Siar Local Authority\"),OR($F176=1,$F176=5)),0,hosp_count(VALUE(LEFT(Options!$B$24,2)),$C176,$E176,$F176,2016,$I176+$J176,1,$H176,$G176*$H176, Options!$B$8)))","v":{"$error":"#VALUE!"}},{"$f":"IF(AND(OR(Calculations!$E$2=\"Orkney Health Board\",Calculations!$E$2=\"Orkney Islands Local Authority\"),$F176=1),0,IF(AND(OR(Calculations!$E$2=\"Shetland Health Board\",Calculations!$E$2=\"Western Isles Health Board\",Calculations!$E$2=\"Shetland Islands Local Authority\",Calculations!$E$2=\"Eilean Siar Local Authority\"),OR($F176=1,$F176=5)),0,prem_mort(VALUE(LEFT(Options!$B$24,2)),$C176,$E176,$F176,2016,$I176,1,$H176,$G176*$H176,Options!$B$8)))","v":{"$error":"#VALUE!"}},{"$f":"IF(AND(OR(Calculations!$E$2=\"Orkney Health Board\",Calculations!$E$2=\"Orkney Islands Local Authority\"),$F176=1),0,IF(AND(OR(Calculations!$E$2=\"Shetland Health Board\",Calculations!$E$2=\"Western Isles Health Board\",Calculations!$E$2=\"Shetland Islands Local Authority\",Calculations!$E$2=\"Eilean Siar Local Authority\"),OR($F176=1,$F176=5)),0,prem_mort(VALUE(LEFT(Options!$B$24,2)),$C176,$E176,$F176,2016,$I176+$J176,1,$H176,$G176*$H176,Options!$B$8)))","v":{"$error":"#VALUE!"}},{"$error":"#VALUE!"},{"$error":"#VALUE!"},{"$error":"#VALUE!"},{"$error":"#VALUE!"},{"$error":"#VALUE!"},{"$error":"#VALUE!"},{"$error":"#VALUE!"},{"$error":"#VALUE!"},{"$error":"#VALUE!"},{"$error":"#VALUE!"},{"$error":"#VALUE!"},{"$error":"#VALUE!"},{"$error":"#VALUE!"},{"$error":"#VALUE!"},{"$error":"#VALUE!"},{"$error":"#VALUE!"},6600]
["SIMD Q4","Female 16-19",17.570053000000001,81.100049999999996,"female",4,{"$f":"HLOOKUP(Calculations!$E$2,'Prevalence Rates'!$C$3:$BC$249,'Prevalence Rates'!$BD177,FALSE)","v":0.1918},{"$f":"HLOOKUP(Calculations!$E$2,'Population 2016'!$C$3:$BC$249,'Population 2016'!BD177,FALSE)","v":23408},0,{"$f":"HLOOKUP(Results!E$4,Targeting!$C$3:$F$249,Targeting!$G177,FALSE)","v":3607},{"$f":"IF(AND(OR(Calculations!$E$2=\"Orkney Health Board\",Calculations!$E$2=\"Orkney Islands Local Authority\"),$F177=1),0,IF(AND(OR(Calculations!$E$2=\"Shetland Health Board\",Calculations!$E$2=\"Western Isles Health Board\",Calculations!$E$2=\"Shetland Islands Local Authority\",Calculations!$E$2=\"Eilean Siar Local Authority\"),OR($F177=1,$F177=5)),0,new_ci(VALUE(LEFT(Options!$B$24,2)),$C177,$E177,$F177,2016,$I177,1,$H177,$G177*$H177,Options!$B$8)))","v":3.3423166773999999},{"$f":"IF(AND(OR(Calculations!$E$2=\"Orkney Health Board\",Calculations!$E$2=\"Orkney Islands Local Authority\"),$F177=1),0,IF(AND(OR(Calculations!$E$2=\"Shetland Health Board\",Calculations!$E$2=\"Western Isles Health Board\",Calculations!$E$2=\"Shetland Islands Local Authority\",Calculations!$E$2=\"Eilean Siar Local Authority\"),OR($F177=1,$F177=5)),0,new_ci(VALUE(LEFT(Options!$B$24,2)),$C177,$E177,$F177,2016,$I177+$J177,1,$H177,$G177*$H177,Options!$B$8)))","v":3.3274024538},{"$f":"IF(AND(OR(Calculations!$E$2=\"Orkney Health Board\",Calculations!$E$2=\"Orkney Islands Local Authority\"),$F177=1),0,IF(AND(OR(Calculations!$E$2=\"Shetland Health Board\",Calculations!$E$2=\"Western Isles Health Board\",Calculations!$E$2=\"Shetland Islands Local Authority\",Calculations!$E$2=\"Eilean Siar Local Authority\"),OR($F177=1,$F177=5)),0,new_yllv2(VALUE(LEFT(Options!$B$24,2)),$C177,$D177,$E177,$F177,2016,$I177,1,$H177,$G177*$H177,Options!$B$8)))","v":208.99505181090001},{"$f":"IF(AND(OR(Calculations!$E$2=\"Orkney Health Board\",Calculations!$E$2=\"Orkney Islands Local Authority\"),$F177=1),0,IF(AND(OR(Calculations!$E$2=\"Shetland Health Board\",Calculations!$E$2=\"Western Isles Health Board\",Calculations!$E$2=\"Shetland Islands Local Authority\",Calculations!$E$2=\"Eilean Siar Local Authority\"),OR($F177=1,$F177=5)),0,new_yllv2(VALUE(LEFT(Options!$B$24,2)),$C177,$D177,$E177,$F177,2016,$I177+$J177,1,$H177,$G177*$H177,Options!$B$8)))","v":208.06246545389999},{"$f":"IF(AND(OR(Calculations!$E$2=\"Orkney Health Board\",Calculations!$E$2=\"Orkney Islands Local Authority\"),$F177=1),0,IF(AND(OR(Calculations!$E$2=\"Shetland Health Board\",Calculations!$E$2=\"Western Isles Health Board\",Calculations!$E$2=\"Shetland Islands Local Authority\",Calculations!$E$2=\"Eilean Siar Local Authority\"),OR($F177=1,$F177=5)),0,hosp_count(VALUE(LEFT(Options!$B$24,2)),$C177,$E177,$F177,2016,$I177,1,$H177,$G177*$H177, Options!$B$8)))","v":2068.4330629423998},{"$f":"IF(AND(OR(Calculations!$E$2=\"Orkney Health Board\",Calculations!$E$2=\"Orkney Islands Local Authority\"),$F177=1),0,IF(AND(OR(Calculations!$E$2=\"Shetland Health Board\",Calculations!$E$2=\"Western Isles Health Board\",Calculations!$E$2=\"Shetland Islands Local Authority\",Calculations!$E$2=\"Eilean Siar Local Authority\"),OR($F177=1,$F177=5)),0,hosp_count(VALUE(LEFT(Options!$B$24,2)),$C177,$E177,$F177,2016,$I177+$J177,1,$H177,$G177*$H177, Options!$B$8)))","v":2062.8542919175002},{"$f":"IF(AND(OR(Calculations!$E$2=\"Orkney Health Board\",Calculations!$E$2=\"Orkney Islands Local Authority\"),$F177=1),0,IF(AND(OR(Calculations!$E$2=\"Shetland Health Board\",Calculations!$E$2=\"Western Isles Health Board\",Calculations!$E$2=\"Shetland Islands Local Authority\",Calculations!$E$2=\"Eilean Siar Local Authority\"),OR($F177=1,$F177=5)),0,prem_mort(VALUE(LEFT(Options!$B$24,2)),$C177,$E177,$F177,2016,$I177,1,$H177,$G177*$H177,Options!$B$8)))","v":3.3423166773999999},{"$f":"IF(AND(OR(Calculations!$E$2=\"Orkney Health Board\",Calculations!$E$2=\"Orkney Islands Local Authority\"),$F177=1),0,IF(AND(OR(Calculations!$E$2=\"Shetland Health Board\",Calculations!$E$2=\"Western Isles Health Board\",Calculations!$E$2=\"Shetland Islands Local Authority\",Calculations!$E$2=\"Eilean Siar Local Authority\"),OR($F177=1,$F177=5)),0,prem_mort(VALUE(LEFT(Options!$B$24,2)),$C177,$E177,$F177,2016,$I177+$J177,1,$H177,$G177*$H177,Options!$B$8)))","v":3.3274024538},14.278523057928913,14.214808842276144,892.83600397684552,888.85195426307234,8836.436529999999,8812.6037761342286,14.278523057928913,14.214808842276144,62825.50145488722,62545.158906015029,3928478.4174981201,3910948.5987575185,38880320.731999993,38775456.614990607,62825.50145488722,62545.158906015029,4400]
[null,"Female 20-24",22.077057,81.667060000000006,"female",4,{"$f":"HLOOKUP(Calculations!$E$2,'Prevalence Rates'!$C$3:$BC$249,'Prevalence Rates'!$BD178,FALSE)","v":0.1918},{"$f":"HLOOKUP(Calculations!$E$2,'Population 2016'!$C$3:$BC$249,'Population 2016'!BD178,FALSE)","v":34833},0,{"$f":"HLOOKUP(Results!E$4,Targeting!$C$3:$F$249,Targeting!$G178,FALSE)","v":5367},{"$f":"IF(AND(OR(Calculations!$E$2=\"Orkney Health Board\",Calculations!$E$2=\"Orkney Islands Local Authority\"),$F178=1),0,IF(AND(OR(Calculations!$E$2=\"Shetland Health Board\",Calculations!$E$2=\"Western Isles Health Board\",Calculations!$E$2=\"Shetland Islands Local Authority\",Calculations!$E$2=\"Eilean Siar Local Authority\"),OR($F178=1,$F178=5)),0,new_ci(VALUE(LEFT(Options!$B$24,2)),$C178,$E178,$F178,2016,$I178,1,$H178,$G178*$H178,Options!$B$8)))","v":7.2969458565999998},{"$f":"IF(AND(OR(Calculations!$E$2=\"Orkney Health Board\",Calculations!$E$2=\"Orkney Islands Local Authority\"),$F178=1),0,IF(AND(OR(Calculations!$E$2=\"Shetland Health Board\",Calculations!$E$2=\"Western Isles Health Board\",Calculations!$E$2=\"Shetland Islands Local Authority\",Calculations!$E$2=\"Eilean Siar Local Authority\"),OR($F178=1,$F178=5)),0,new_ci(VALUE(LEFT(Options!$B$24,2)),$C178,$E178,$F178,2016,$I178+$J178,1,$H178,$G178*$H178,Options!$B$8)))","v":7.2643901712999996},{"$f":"IF(AND(OR(Calculations!$E$2=\"Orkney Health Board\",Calculations!$E$2=\"Orkney Islands Local Authority\"),$F178=1),0,IF(AND(OR(Calculations!$E$2=\"Shetland Health Board\",Calculations!$E$2=\"Western Isles Health Board\",Calculations!$E$2=\"Shetland Islands Local Authority\",Calculations!$E$2=\"Eilean Siar Local Authority\"),OR($F178=1,$F178=5)),0,new_yllv2(VALUE(LEFT(Options!$B$24,2)),$C178,$D178,$E178,$F178,2016,$I178,1,$H178,$G178*$H178,Options!$B$8)))","v":427.52807962899999},{"$f":"IF(AND(OR(Calculations!$E$2=\"Orkney Health Board\",Calculations!$E$2=\"Orkney Islands Local Authority\"),$F178=1),0,IF(AND(OR(Calculations!$E$2=\"Shetland Health Board\",Calculations!$E$2=\"Western Isles Health Board\",Calculations!$E$2=\"Shetland Islands Local Authority\",Calculations!$E$2=\"Eilean Siar Local Authority\"),OR($F178=1,$F178=5)),0,new_yllv2(VALUE(LEFT(Options!$B$24,2)),$C178,$D178,$E178,$F178,2016,$I178+$J178,1,$H178,$G178*$H178,Options!$B$8)))","v":425.62064192960003},{"$f":"IF(AND(OR(Calculations!$E$2=\"Orkney Health Board\",Calculations!$E$2=\"Orkney Islands Local Authority\"),$F178=1),0,IF(AND(OR(Calculations!$E$2=\"Shetland Health Board\",Calculations!$E$2=\"Western Isles Health Board\",Calculations!$E$2=\"Shetland Islands Local Authority\",Calculations!$E$2=\"Eilean Siar Local Authority\"),OR($F178=1,$F178=5)),0,hosp_count(VALUE(LEFT(Options!$B$24,2)),$C178,$E178,$F178,2016,$I178,1,$H178,$G178*$H178, Options!$B$8)))","v":3447.4902269472},{"$f":"IF(AND(OR(Calculations!$E$2=\"Orkney Health Board\",Calculations!$E$2=\"Orkney Islands Local Authority\"),$F178=1),0,IF(AND(OR(Calculations!$E$2=\"Shetland Health Board\",Calculations!$E$2=\"Western Isles Health Board\",Calculations!$E$2=\"Shetland Islands Local Authority\",Calculations!$E$2=\"Eilean Siar Local Authority\"),OR($F178=1,$F178=5)),0,hosp_count(VALUE(LEFT(Options!$B$24,2)),$C178,$E178,$F178,2016,$I178+$J178,1,$H178,$G178*$H178, Options!$B$8)))","v":3438.1928817069002},{"$f":"IF(AND(OR(Calculations!$E$2=\"Orkney Health Board\",Calculations!$E$2=\"Orkney Islands Local Authority\"),$F178=1),0,IF(AND(OR(Calculations!$E$2=\"Shetland Health Board\",Calculations!$E$2=\"Western Isles Health Board\",Calculations!$E$2=\"Shetland Islands Local Authority\",Calculations!$E$2=\"Eilean Siar Local Authority\"),OR($F178=1,$F178=5)),0,prem_mort(VALUE(LEFT(Options!$B$24,2)),$C178,$E178,$F178,2016,$I178,1,$H178,$G178*$H178,Options!$B$8)))","v":7.2969458565999998},{"$f":"IF(AND(OR(Calculations!$E$2=\"Orkney Health Board\",Calculations!$E$2=\"Orkney Islands Local Authority\"),$F178=1),0,IF(AND(OR(Calculations!$E$2=\"Shetland Health Board\",Calculations!$E$2=\"Western Isles Health Board\",Calculations!$E$2=\"Shetland Islands Local Authority\",Calculations!$E$2=\"Eilean Siar Local Authority\"),OR($F178=1,$F178=5)),0,prem_mort(VALUE(LEFT(Options!$B$24,2)),$C178,$E178,$F178,2016,$I178+$J178,1,$H178,$G178*$H178,Options!$B$8)))","v":7.2643901712999996},20.948370386128097,20.854908194241091,1227.3650837682655,1221.8891336652025,9897.1958399999985,9870.5046413082418,20.948370386128097,20.854908194241091,125690.22231676859,125129.44916544654,7364190.5026095929,7331334.801991215,59383175.039999992,59223027.847849451,125690.22231676859,125129.44916544654,6000]
[null,"Female 25-29",26.975186999999998,81.645189999999999,"female",4,{"$f":"HLOOKUP(Calculations!$E$2,'Prevalence Rates'!$C$3:$BC$249,'Prevalence Rates'!$BD179,FALSE)","v":0.18720000000000001},{"$f":"HLOOKUP(Calculations!$E$2,'Population 2016'!$C$3:$BC$249,'Population 2016'!BD179,FALSE)","v":33433},0,{"$f":"HLOOKUP(Results!E$4,Targeting!$C$3:$F$249,Targeting!$G179,FALSE)","v":5151},{"$f":"IF(AND(OR(Calculations!$E$2=\"Orkney Health Board\",Calculations!$E$2=\"Orkney Islands Local Authority\"),$F179=1),0,IF(AND(OR(Calculations!$E$2=\"Shetland Health Board\",Calculations!$E$2=\"Western Isles Health Board\",Calculations!$E$2=\"Shetland Islands Local Authority\",Calculations!$E$2=\"Eilean Siar Local Authority\"),OR($F179=1,$F179=5)),0,new_ci(VALUE(LEFT(Options!$B$24,2)),$C179,$E179,$F179,2016,$I179,1,$H179,$G179*$H179,Options!$B$8)))","v":10.6225955701},{"$f":"IF(AND(OR(Calculations!$E$2=\"Orkney Health Board\",Calculations!$E$2=\"Orkney Islands Local Authority\"),$F179=1),0,IF(AND(OR(Calculations!$E$2=\"Shetland Health Board\",Calculations!$E$2=\"Western Isles Health Board\",Calculations!$E$2=\"Shetland Islands Local Authority\",Calculations!$E$2=\"Eilean Siar Local Authority\"),OR($F179=1,$F179=5)),0,new_ci(VALUE(LEFT(Options!$B$24,2)),$C179,$E179,$F179,2016,$I179+$J179,1,$H179,$G179*$H179,Options!$B$8)))","v":10.5750585364},{"$f":"IF(AND(OR(Calculations!$E$2=\"Orkney Health Board\",Calculations!$E$2=\"Orkney Islands Local Authority\"),$F179=1),0,IF(AND(OR(Calculations!$E$2=\"Shetland Health Board\",Calculations!$E$2=\"Western Isles Health Board\",Calculations!$E$2=\"Shetland Islands Local Authority\",Calculations!$E$2=\"Eilean Siar Local Authority\"),OR($F179=1,$F179=5)),0,new_yllv2(VALUE(LEFT(Options!$B$24,2)),$C179,$D179,$E179,$F179,2016,$I179,1,$H179,$G179*$H179,Options!$B$8)))","v":570.11473611509996},{"$f":"IF(AND(OR(Calculations!$E$2=\"Orkney Health Board\",Calculations!$E$2=\"Orkney Islands Local Authority\"),$F179=1),0,IF(AND(OR(Calculations!$E$2=\"Shetland Health Board\",Calculations!$E$2=\"Western Isles Health Board\",Calculations!$E$2=\"Shetland Islands Local Authority\",Calculations!$E$2=\"Eilean Siar Local Authority\"),OR($F179=1,$F179=5)),0,new_yllv2(VALUE(LEFT(Options!$B$24,2)),$C179,$D179,$E179,$F179,2016,$I179+$J179,1,$H179,$G179*$H179,Options!$B$8)))","v":567.56342337379999},{"$f":"IF(AND(OR(Calculations!$E$2=\"Orkney Health Board\",Calculations!$E$2=\"Orkney Islands Local Authority\"),$F179=1),0,IF(AND(OR(Calculations!$E$2=\"Shetland Health Board\",Calculations!$E$2=\"Western Isles Health Board\",Calculations!$E$2=\"Shetland Islands Local Authority\",Calculations!$E$2=\"Eilean Siar Local Authority\"),OR($F179=1,$F179=5)),0,hosp_count(VALUE(LEFT(Options!$B$24,2)),$C179,$E179,$F179,2016,$I179,1,$H179,$G179*$H179, Options!$B$8)))","v":3742.7879046867001},{"$f":"IF(AND(OR(Calculations!$E$2=\"Orkney Health Board\",Calculations!$E$2=\"Orkney Islands Local Authority\"),$F179=1),0,IF(AND(OR(Calculations!$E$2=\"Shetland Health Board\",Calculations!$E$2=\"Western Isles Health Board\",Calculations!$E$2=\"Shetland Islands Local Authority\",Calculations!$E$2=\"Eilean Siar Local Authority\"),OR($F179=1,$F179=5)),0,hosp_count(VALUE(LEFT(Options!$B$24,2)),$C179,$E179,$F179,2016,$I179+$J179,1,$H179,$G179*$H179, Options!$B$8)))","v":3732.6716045974999},{"$f":"IF(AND(OR(Calculations!$E$2=\"Orkney Health Board\",Calculations!$E$2=\"Orkney Islands Local Authority\"),$F179=1),0,IF(AND(OR(Calculations!$E$2=\"Shetland Health Board\",Calculations!$E$2=\"Western Isles Health Board\",Calculations!$E$2=\"Shetland Islands Local Authority\",Calculations!$E$2=\"Eilean Siar Local Authority\"),OR($F179=1,$F179=5)),0,prem_mort(VALUE(LEFT(Options!$B$24,2)),$C179,$E179,$F179,2016,$I179,1,$H179,$G179*$H179,Options!$B$8)))","v":10.6225955701},{"$f":"IF(AND(OR(Calculations!$E$2=\"Orkney Health Board\",Calculations!$E$2=\"Orkney Islands Local Authority\"),$F179=1),0,IF(AND(OR(Calculations!$E$2=\"Shetland Health Board\",Calculations!$E$2=\"Western Isles Health Board\",Calculations!$E$2=\"Shetland Islands Local Authority\",Calculations!$E$2=\"Eilean Siar Local Authority\"),OR($F179=1,$F179=5)),0,prem_mort(VALUE(LEFT(Options!$B$24,2)),$C179,$E179,$F179,2016,$I179+$J179,1,$H179,$G179*$H179,Options!$B$8)))","v":10.5750585364},31.772786079921033,31.630600114856581,1705.2455242278586,1697.6144030562618,11194.89099,11164.632562430832,31.772786079921033,31.630600114856581,190636.71647952619,189783.60068913948,10231473.145367151,10185686.418337571,67169345.939999998,66987795.374584995,190636.71647952619,189783.60068913948,6000]
[null,"Female 30-34",31.999904999999998,81.799899999999994,"female",4,{"$f":"HLOOKUP(Calculations!$E$2,'Prevalence Rates'!$C$3:$BC$249,'Prevalence Rates'!$BD180,FALSE)","v":0.18720000000000001},{"$f":"HLOOKUP(Calculations!$E$2,'Population 2016'!$C$3:$BC$249,'Population 2016'!BD180,FALSE)","v":33838},0,{"$f":"HLOOKUP(Results!E$4,Targeting!$C$3:$F$249,Targeting!$G180,FALSE)","v":5214},{"$f":"IF(AND(OR(Calculations!$E$2=\"Orkney Health Board\",Calculations!$E$2=\"Orkney Islands Local Authority\"),$F180=1),0,IF(AND(OR(Calculations!$E$2=\"Shetland Health Board\",Calculations!$E$2=\"Western Isles Health Board\",Calculations!$E$2=\"Shetland Islands Local Authority\",Calculations!$E$2=\"Eilean Siar Local Authority\"),OR($F180=1,$F180=5)),0,new_ci(VALUE(LEFT(Options!$B$24,2)),$C180,$E180,$F180,2016,$I180,1,$H180,$G180*$H180,Options!$B$8)))","v":16.482635503699999},{"$f":"IF(AND(OR(Calculations!$E$2=\"Orkney Health Board\",Calculations!$E$2=\"Orkney Islands Local Authority\"),$F180=1),0,IF(AND(OR(Calculations!$E$2=\"Shetland Health Board\",Calculations!$E$2=\"Western Isles Health Board\",Calculations!$E$2=\"Shetland Islands Local Authority\",Calculations!$E$2=\"Eilean Siar Local Authority\"),OR($F180=1,$F180=5)),0,new_ci(VALUE(LEFT(Options!$B$24,2)),$C180,$E180,$F180,2016,$I180+$J180,1,$H180,$G180*$H180,Options!$B$8)))","v":16.4088787811},{"$f":"IF(AND(OR(Calculations!$E$2=\"Orkney Health Board\",Calculations!$E$2=\"Orkney Islands Local Authority\"),$F180=1),0,IF(AND(OR(Calculations!$E$2=\"Shetland Health Board\",Calculations!$E$2=\"Western Isles Health Board\",Calculations!$E$2=\"Shetland Islands Local Authority\",Calculations!$E$2=\"Eilean Siar Local Authority\"),OR($F180=1,$F180=5)),0,new_yllv2(VALUE(LEFT(Options!$B$24,2)),$C180,$D180,$E180,$F180,2016,$I180,1,$H180,$G180*$H180,Options!$B$8)))","v":804.3525301674},{"$f":"IF(AND(OR(Calculations!$E$2=\"Orkney Health Board\",Calculations!$E$2=\"Orkney Islands Local Authority\"),$F180=1),0,IF(AND(OR(Calculations!$E$2=\"Shetland Health Board\",Calculations!$E$2=\"Western Isles Health Board\",Calculations!$E$2=\"Shetland Islands Local Authority\",Calculations!$E$2=\"Eilean Siar Local Authority\"),OR($F180=1,$F180=5)),0,new_yllv2(VALUE(LEFT(Options!$B$24,2)),$C180,$D180,$E180,$F180,2016,$I180+$J180,1,$H180,$G180*$H180,Options!$B$8)))","v":800.75320247330001},{"$f":"IF(AND(OR(Calculations!$E$2=\"Orkney Health Board\",Calculations!$E$2=\"Orkney Islands Local Authority\"),$F180=1),0,IF(AND(OR(Calculations!$E$2=\"Shetland Health Board\",Calculations!$E$2=\"Western Isles Health Board\",Calculations!$E$2=\"Shetland Islands Local Authority\",Calculations!$E$2=\"Eilean Siar Local Authority\"),OR($F180=1,$F180=5)),0,hosp_count(VALUE(LEFT(Options!$B$24,2)),$C180,$E180,$F180,2016,$I180,1,$H180,$G180*$H180, Options!$B$8)))","v":4298.4820839800004},{"$f":"IF(AND(OR(Calculations!$E$2=\"Orkney Health Board\",Calculations!$E$2=\"Orkney Islands Local Authority\"),$F180=1),0,IF(AND(OR(Calculations!$E$2=\"Shetland Health Board\",Calculations!$E$2=\"Western Isles Health Board\",Calculations!$E$2=\"Shetland Islands Local Authority\",Calculations!$E$2=\"Eilean Siar Local Authority\"),OR($F180=1,$F180=5)),0,hosp_count(VALUE(LEFT(Options!$B$24,2)),$C180,$E180,$F180,2016,$I180+$J180,1,$H180,$G180*$H180, Options!$B$8)))","v":4286.8624691560999},{"$f":"IF(AND(OR(Calculations!$E$2=\"Orkney Health Board\",Calculations!$E$2=\"Orkney Islands Local Authority\"),$F180=1),0,IF(AND(OR(Calculations!$E$2=\"Shetland Health Board\",Calculations!$E$2=\"Western Isles Health Board\",Calculations!$E$2=\"Shetland Islands Local Authority\",Calculations!$E$2=\"Eilean Siar Local Authority\"),OR($F180=1,$F180=5)),0,prem_mort(VALUE(LEFT(Options!$B$24,2)),$C180,$E180,$F180,2016,$I180,1,$H180,$G180*$H180,Options!$B$8)))","v":16.482635503699999},{"$f":"IF(AND(OR(Calculations!$E$2=\"Orkney Health Board\",Calculations!$E$2=\"Orkney Islands Local Authority\"),$F180=1),0,IF(AND(OR(Calculations!$E$2=\"Shetland Health Board\",Calculations!$E$2=\"Western Isles Health Board\",Calculations!$E$2=\"Shetland Islands Local Authority\",Calculations!$E$2=\"Eilean Siar Local Authority\"),OR($F180=1,$F180=5)),0,prem_mort(VALUE(LEFT(Options!$B$24,2)),$C180,$E180,$F180,2016,$I180+$J180,1,$H180,$G180*$H180,Options!$B$8)))","v":16.4088787811},48.710430591938056,48.492460491459305,2377.0687693344757,2366.4318295209528,12703.121000000001,12668.782047272593,48.710430591938056,48.492460491459305,316617.79884759738,315200.99319448549,15450947.000674093,15381806.891886193,82570286.5,82347083.307271853,316617.79884759738,315200.99319448549,6500]
[null,"Female 35-39",36.918118,81.898120000000006,"female",4,{"$f":"HLOOKUP(Calculations!$E$2,'Prevalence Rates'!$C$3:$BC$249,'Prevalence Rates'!$BD181,FALSE)","v":0.15670000000000001},{"$f":"HLOOKUP(Calculations!$E$2,'Population 2016'!$C$3:$BC$249,'Population 2016'!BD181,FALSE)","v":32800},0,{"$f":"HLOOKUP(Results!E$4,Targeting!$C$3:$F$249,Targeting!$G181,FALSE)","v":5054},{"$f":"IF(AND(OR(Calculations!$E$2=\"Orkney Health Board\",Calculations!$E$2=\"Orkney Islands Local Authority\"),$F181=1),0,IF(AND(OR(Calculations!$E$2=\"Shetland Health Board\",Calculations!$E$2=\"Western Isles Health Board\",Calculations!$E$2=\"Shetland Islands Local Authority\",Calculations!$E$2=\"Eilean Siar Local Authority\"),OR($F181=1,$F181=5)),0,new_ci(VALUE(LEFT(Options!$B$24,2)),$C181,$E181,$F181,2016,$I181,1,$H181,$G181*$H181,Options!$B$8)))","v":24.272249862199999},{"$f":"IF(AND(OR(Calculations!$E$2=\"Orkney Health Board\",Calculations!$E$2=\"Orkney Islands Local Authority\"),$F181=1),0,IF(AND(OR(Calculations!$E$2=\"Shetland Health Board\",Calculations!$E$2=\"Western Isles Health Board\",Calculations!$E$2=\"Shetland Islands Local Authority\",Calculations!$E$2=\"Eilean Siar Local Authority\"),OR($F181=1,$F181=5)),0,new_ci(VALUE(LEFT(Options!$B$24,2)),$C181,$E181,$F181,2016,$I181+$J181,1,$H181,$G181*$H181,Options!$B$8)))","v":24.161314562200001},{"$f":"IF(AND(OR(Calculations!$E$2=\"Orkney Health Board\",Calculations!$E$2=\"Orkney Islands Local Authority\"),$F181=1),0,IF(AND(OR(Calculations!$E$2=\"Shetland Health Board\",Calculations!$E$2=\"Western Isles Health Board\",Calculations!$E$2=\"Shetland Islands Local Authority\",Calculations!$E$2=\"Eilean Siar Local Authority\"),OR($F181=1,$F181=5)),0,new_yllv2(VALUE(LEFT(Options!$B$24,2)),$C181,$D181,$E181,$F181,2016,$I181,1,$H181,$G181*$H181,Options!$B$8)))","v":1067.4935974841001},{"$f":"IF(AND(OR(Calculations!$E$2=\"Orkney Health Board\",Calculations!$E$2=\"Orkney Islands Local Authority\"),$F181=1),0,IF(AND(OR(Calculations!$E$2=\"Shetland Health Board\",Calculations!$E$2=\"Western Isles Health Board\",Calculations!$E$2=\"Shetland Islands Local Authority\",Calculations!$E$2=\"Eilean Siar Local Authority\"),OR($F181=1,$F181=5)),0,new_yllv2(VALUE(LEFT(Options!$B$24,2)),$C181,$D181,$E181,$F181,2016,$I181+$J181,1,$H181,$G181*$H181,Options!$B$8)))","v":1062.6146627682001},{"$f":"IF(AND(OR(Calculations!$E$2=\"Orkney Health Board\",Calculations!$E$2=\"Orkney Islands Local Authority\"),$F181=1),0,IF(AND(OR(Calculations!$E$2=\"Shetland Health Board\",Calculations!$E$2=\"Western Isles Health Board\",Calculations!$E$2=\"Shetland Islands Local Authority\",Calculations!$E$2=\"Eilean Siar Local Authority\"),OR($F181=1,$F181=5)),0,hosp_count(VALUE(LEFT(Options!$B$24,2)),$C181,$E181,$F181,2016,$I181,1,$H181,$G181*$H181, Options!$B$8)))","v":4715.32218784},{"$f":"IF(AND(OR(Calculations!$E$2=\"Orkney Health Board\",Calculations!$E$2=\"Orkney Islands Local Authority\"),$F181=1),0,IF(AND(OR(Calculations!$E$2=\"Shetland Health Board\",Calculations!$E$2=\"Western Isles Health Board\",Calculations!$E$2=\"Shetland Islands Local Authority\",Calculations!$E$2=\"Eilean Siar Local Authority\"),OR($F181=1,$F181=5)),0,hosp_count(VALUE(LEFT(Options!$B$24,2)),$C181,$E181,$F181,2016,$I181+$J181,1,$H181,$G181*$H181, Options!$B$8)))","v":4702.3790671171},{"$f":"IF(AND(OR(Calculations!$E$2=\"Orkney Health Board\",Calculations!$E$2=\"Orkney Islands Local Authority\"),$F181=1),0,IF(AND(OR(Calculations!$E$2=\"Shetland Health Board\",Calculations!$E$2=\"Western Isles Health Board\",Calculations!$E$2=\"Shetland Islands Local Authority\",Calculations!$E$2=\"Eilean Siar Local Authority\"),OR($F181=1,$F181=5)),0,prem_mort(VALUE(LEFT(Options!$B$24,2)),$C181,$E181,$F181,2016,$I181,1,$H181,$G181*$H181,Options!$B$8)))","v":24.272249862199999},{"$f":"IF(AND(OR(Calculations!$E$2=\"Orkney Health Board\",Calculations!$E$2=\"Orkney Islands Local Authority\"),$F181=1),0,IF(AND(OR(Calculations!$E$2=\"Shetland Health Board\",Calculations!$E$2=\"Western Isles Health Board\",Calculations!$E$2=\"Shetland Islands Local Authority\",Calculations!$E$2=\"Eilean Siar Local Authority\"),OR($F181=1,$F181=5)),0,prem_mort(VALUE(LEFT(Options!$B$24,2)),$C181,$E181,$F181,2016,$I181+$J181,1,$H181,$G181*$H181,Options!$B$8)))","v":24.161314562200001},74.000761775000001,73.662544396951219,3254.5536508661585,3239.678849903049,14375.98228,14336.521546088719,74.000761775000001,73.662544396951219,518005.33242500003,515637.81077865855,22781875.556063108,22677751.949321344,100631875.96000001,100355650.82262103,518005.33242500003,515637.81077865855,7000]
[null,"Female 40-44",42.077438000000001,82.30744,"female",4,{"$f":"HLOOKUP(Calculations!$E$2,'Prevalence Rates'!$C$3:$BC$249,'Prevalence Rates'!$BD182,FALSE)","v":0.15670000000000001},{"$f":"HLOOKUP(Calculations!$E$2,'Population 2016'!$C$3:$BC$249,'Population 2016'!BD182,FALSE)","v":35805},0,{"$f":"HLOOKUP(Results!E$4,Targeting!$C$3:$F$249,Targeting!$G182,FALSE)","v":5517},{"$f":"IF(AND(OR(Calculations!$E$2=\"Orkney Health Board\",Calculations!$E$2=\"Orkney Islands Local Authority\"),$F182=1),0,IF(AND(OR(Calculations!$E$2=\"Shetland Health Board\",Calculations!$E$2=\"Western Isles Health Board\",Calculations!$E$2=\"Shetland Islands Local Authority\",Calculations!$E$2=\"Eilean Siar Local Authority\"),OR($F182=1,$F182=5)),0,new_ci(VALUE(LEFT(Options!$B$24,2)),$C182,$E182,$F182,2016,$I182,1,$H182,$G182*$H182,Options!$B$8)))","v":41.083136646299998},{"$f":"IF(AND(OR(Calculations!$E$2=\"Orkney Health Board\",Calculations!$E$2=\"Orkney Islands Local Authority\"),$F182=1),0,IF(AND(OR(Calculations!$E$2=\"Shetland Health Board\",Calculations!$E$2=\"Western Isles Health Board\",Calculations!$E$2=\"Shetland Islands Local Authority\",Calculations!$E$2=\"Eilean Siar Local Authority\"),OR($F182=1,$F182=5)),0,new_ci(VALUE(LEFT(Options!$B$24,2)),$C182,$E182,$F182,2016,$I182+$J182,1,$H182,$G182*$H182,Options!$B$8)))","v":40.895448306299997},{"$f":"IF(AND(OR(Calculations!$E$2=\"Orkney Health Board\",Calculations!$E$2=\"Orkney Islands Local Authority\"),$F182=1),0,IF(AND(OR(Calculations!$E$2=\"Shetland Health Board\",Calculations!$E$2=\"Western Isles Health Board\",Calculations!$E$2=\"Shetland Islands Local Authority\",Calculations!$E$2=\"Eilean Siar Local Authority\"),OR($F182=1,$F182=5)),0,new_yllv2(VALUE(LEFT(Options!$B$24,2)),$C182,$D182,$E182,$F182,2016,$I182,1,$H182,$G182*$H182,Options!$B$8)))","v":1611.6915328006},{"$f":"IF(AND(OR(Calculations!$E$2=\"Orkney Health Board\",Calculations!$E$2=\"Orkney Islands Local Authority\"),$F182=1),0,IF(AND(OR(Calculations!$E$2=\"Shetland Health Board\",Calculations!$E$2=\"Western Isles Health Board\",Calculations!$E$2=\"Shetland Islands Local Authority\",Calculations!$E$2=\"Eilean Siar Local Authority\"),OR($F182=1,$F182=5)),0,new_yllv2(VALUE(LEFT(Options!$B$24,2)),$C182,$D182,$E182,$F182,2016,$I182+$J182,1,$H182,$G182*$H182,Options!$B$8)))","v":1604.3285188469999},{"$f":"IF(AND(OR(Calculations!$E$2=\"Orkney Health Board\",Calculations!$E$2=\"Orkney Islands Local Authority\"),$F182=1),0,IF(AND(OR(Calculations!$E$2=\"Shetland Health Board\",Calculations!$E$2=\"Western Isles Health Board\",Calculations!$E$2=\"Shetland Islands Local Authority\",Calculations!$E$2=\"Eilean Siar Local Authority\"),OR($F182=1,$F182=5)),0,hosp_count(VALUE(LEFT(Options!$B$24,2)),$C182,$E182,$F182,2016,$I182,1,$H182,$G182*$H182, Options!$B$8)))","v":5860.6013343570003},{"$f":"IF(AND(OR(Calculations!$E$2=\"Orkney Health Board\",Calculations!$E$2=\"Orkney Islands Local Authority\"),$F182=1),0,IF(AND(OR(Calculations!$E$2=\"Shetland Health Board\",Calculations!$E$2=\"Western Isles Health Board\",Calculations!$E$2=\"Shetland Islands Local Authority\",Calculations!$E$2=\"Eilean Siar Local Authority\"),OR($F182=1,$F182=5)),0,hosp_count(VALUE(LEFT(Options!$B$24,2)),$C182,$E182,$F182,2016,$I182+$J182,1,$H182,$G182*$H182, Options!$B$8)))","v":5844.5146065529998},{"$f":"IF(AND(OR(Calculations!$E$2=\"Orkney Health Board\",Calculations!$E$2=\"Orkney Islands Local Authority\"),$F182=1),0,IF(AND(OR(Calculations!$E$2=\"Shetland Health Board\",Calculations!$E$2=\"Western Isles Health Board\",Calculations!$E$2=\"Shetland Islands Local Authority\",Calculations!$E$2=\"Eilean Siar Local Authority\"),OR($F182=1,$F182=5)),0,prem_mort(VALUE(LEFT(Options!$B$24,2)),$C182,$E182,$F182,2016,$I182,1,$H182,$G182*$H182,Options!$B$8)))","v":41.083136646299998},{"$f":"IF(AND(OR(Calculations!$E$2=\"Orkney Health Board\",Calculations!$E$2=\"Orkney Islands Local Authority\"),$F182=1),0,IF(AND(OR(Calculations!$E$2=\"Shetland Health Board\",Calculations!$E$2=\"Western Isles Health Board\",Calculations!$E$2=\"Shetland Islands Local Authority\",Calculations!$E$2=\"Eilean Siar Local Authority\"),OR($F182=1,$F182=5)),0,prem_mort(VALUE(LEFT(Options!$B$24,2)),$C182,$E182,$F182,2016,$I182+$J182,1,$H182,$G182*$H182,Options!$B$8)))","v":40.895448306299997},114.74133960703813,114.21714371260997,4501.3029822667222,4480.7387762798489,16368.108740000001,16323.18002109482,114.74133960703813,114.21714371260997,803189.37724926695,799520.00598826981,31509120.875867054,31365171.433958944,114576761.18000001,114262260.14766374,803189.37724926695,799520.00598826981,7000]
[null,"Female 45-49",47.025772000000003,82.585769999999997,"female",4,{"$f":"HLOOKUP(Calculations!$E$2,'Prevalence Rates'!$C$3:$BC$249,'Prevalence Rates'!$BD183,FALSE)","v":0.14949999999999999},{"$f":"HLOOKUP(Calculations!$E$2,'Population 2016'!$C$3:$BC$249,'Population 2016'!BD183,FALSE)","v":42189},0,{"$f":"HLOOKUP(Results!E$4,Targeting!$C$3:$F$249,Targeting!$G183,FALSE)","v":6500},{"$f":"IF(AND(OR(Calculations!$E$2=\"Orkney Health Board\",Calculations!$E$2=\"Orkney Islands Local Authority\"),$F183=1),0,IF(AND(OR(Calculations!$E$2=\"Shetland Health Board\",Calculations!$E$2=\"Western Isles Health Board\",Calculations!$E$2=\"Shetland Islands Local Authority\",Calculations!$E$2=\"Eilean Siar Local Authority\"),OR($F183=1,$F183=5)),0,new_ci(VALUE(LEFT(Options!$B$24,2)),$C183,$E183,$F183,2016,$I183,1,$H183,$G183*$H183,Options!$B$8)))","v":73.716616172100004},{"$f":"IF(AND(OR(Calculations!$E$2=\"Orkney Health Board\",Calculations!$E$2=\"Orkney Islands Local Authority\"),$F183=1),0,IF(AND(OR(Calculations!$E$2=\"Shetland Health Board\",Calculations!$E$2=\"Western Isles Health Board\",Calculations!$E$2=\"Shetland Islands Local Authority\",Calculations!$E$2=\"Eilean Siar Local Authority\"),OR($F183=1,$F183=5)),0,new_ci(VALUE(LEFT(Options!$B$24,2)),$C183,$E183,$F183,2016,$I183+$J183,1,$H183,$G183*$H183,Options!$B$8)))","v":73.378364622099994},{"$f":"IF(AND(OR(Calculations!$E$2=\"Orkney Health Board\",Calculations!$E$2=\"Orkney Islands Local Authority\"),$F183=1),0,IF(AND(OR(Calculations!$E$2=\"Shetland Health Board\",Calculations!$E$2=\"Western Isles Health Board\",Calculations!$E$2=\"Shetland Islands Local Authority\",Calculations!$E$2=\"Eilean Siar Local Authority\"),OR($F183=1,$F183=5)),0,new_yllv2(VALUE(LEFT(Options!$B$24,2)),$C183,$D183,$E183,$F183,2016,$I183,1,$H183,$G183*$H183,Options!$B$8)))","v":2547.6461074744998},{"$f":"IF(AND(OR(Calculations!$E$2=\"Orkney Health Board\",Calculations!$E$2=\"Orkney Islands Local Authority\"),$F183=1),0,IF(AND(OR(Calculations!$E$2=\"Shetland Health Board\",Calculations!$E$2=\"Western Isles Health Board\",Calculations!$E$2=\"Shetland Islands Local Authority\",Calculations!$E$2=\"Eilean Siar Local Authority\"),OR($F183=1,$F183=5)),0,new_yllv2(VALUE(LEFT(Options!$B$24,2)),$C183,$D183,$E183,$F183,2016,$I183+$J183,1,$H183,$G183*$H183,Options!$B$8)))","v":2535.9561345830002},{"$f":"IF(AND(OR(Calculations!$E$2=\"Orkney Health Board\",Calculations!$E$2=\"Orkney Islands Local Authority\"),$F183=1),0,IF(AND(OR(Calculations!$E$2=\"Shetland Health Board\",Calculations!$E$2=\"Western Isles Health Board\",Calculations!$E$2=\"Shetland Islands Local Authority\",Calculations!$E$2=\"Eilean Siar Local Authority\"),OR($F183=1,$F183=5)),0,hosp_count(VALUE(LEFT(Options!$B$24,2)),$C183,$E183,$F183,2016,$I183,1,$H183,$G183*$H183, Options!$B$8)))","v":7820.8484750382004},{"$f":"IF(AND(OR(Calculations!$E$2=\"Orkney Health Board\",Calculations!$E$2=\"Orkney Islands Local Authority\"),$F183=1),0,IF(AND(OR(Calculations!$E$2=\"Shetland Health Board\",Calculations!$E$2=\"Western Isles Health Board\",Calculations!$E$2=\"Shetland Islands Local Authority\",Calculations!$E$2=\"Eilean Siar Local Authority\"),OR($F183=1,$F183=5)),0,hosp_count(VALUE(LEFT(Options!$B$24,2)),$C183,$E183,$F183,2016,$I183+$J183,1,$H183,$G183*$H183, Options!$B$8)))","v":7799.3047666272996},{"$f":"IF(AND(OR(Calculations!$E$2=\"Orkney Health Board\",Calculations!$E$2=\"Orkney Islands Local Authority\"),$F183=1),0,IF(AND(OR(Calculations!$E$2=\"Shetland Health Board\",Calculations!$E$2=\"Western Isles Health Board\",Calculations!$E$2=\"Shetland Islands Local Authority\",Calculations!$E$2=\"Eilean Siar Local Authority\"),OR($F183=1,$F183=5)),0,prem_mort(VALUE(LEFT(Options!$B$24,2)),$C183,$E183,$F183,2016,$I183,1,$H183,$G183*$H183,Options!$B$8)))","v":73.716616172100004},{"$f":"IF(AND(OR(Calculations!$E$2=\"Orkney Health Board\",Calculations!$E$2=\"Orkney Islands Local Authority\"),$F183=1),0,IF(AND(OR(Calculations!$E$2=\"Shetland Health Board\",Calculations!$E$2=\"Western Isles Health Board\",Calculations!$E$2=\"Shetland Islands Local Authority\",Calculations!$E$2=\"Eilean Siar Local Authority\"),OR($F183=1,$F183=5)),0,prem_mort(VALUE(LEFT(Options!$B$24,2)),$C183,$E183,$F183,2016,$I183+$J183,1,$H183,$G183*$H183,Options!$B$8)))","v":73.378364622099994},174.72947017492714,173.92771722984662,6038.6501397864367,6010.9415596079552,18537.648380000002,18486.583627550546,174.72947017492714,173.92771722984662,1223106.2912244899,1217494.0206089264,42270550.97850506,42076590.917255685,129763538.66000001,129406085.39285383,1223106.2912244899,1217494.0206089264,7000]
[null,"Female 50-54",51.990825999999998,82.980829999999997,"female",4,{"$f":"HLOOKUP(Calculations!$E$2,'Prevalence Rates'!$C$3:$BC$249,'Prevalence Rates'!$BD184,FALSE)","v":0.14949999999999999},{"$f":"HLOOKUP(Calculations!$E$2,'Population 2016'!$C$3:$BC$249,'Population 2016'!BD184,FALSE)","v":44075},0,{"$f":"HLOOKUP(Results!E$4,Targeting!$C$3:$F$249,Targeting!$G184,FALSE)","v":6791},{"$f":"IF(AND(OR(Calculations!$E$2=\"Orkney Health Board\",Calculations!$E$2=\"Orkney Islands Local Authority\"),$F184=1),0,IF(AND(OR(Calculations!$E$2=\"Shetland Health Board\",Calculations!$E$2=\"Western Isles Health Board\",Calculations!$E$2=\"Shetland Islands Local Authority\",Calculations!$E$2=\"Eilean Siar Local Authority\"),OR($F184=1,$F184=5)),0,new_ci(VALUE(LEFT(Options!$B$24,2)),$C184,$E184,$F184,2016,$I184,1,$H184,$G184*$H184,Options!$B$8)))","v":117.4216952737},{"$f":"IF(AND(OR(Calculations!$E$2=\"Orkney Health Board\",Calculations!$E$2=\"Orkney Islands Local Authority\"),$F184=1),0,IF(AND(OR(Calculations!$E$2=\"Shetland Health Board\",Calculations!$E$2=\"Western Isles Health Board\",Calculations!$E$2=\"Shetland Islands Local Authority\",Calculations!$E$2=\"Eilean Siar Local Authority\"),OR($F184=1,$F184=5)),0,new_ci(VALUE(LEFT(Options!$B$24,2)),$C184,$E184,$F184,2016,$I184+$J184,1,$H184,$G184*$H184,Options!$B$8)))","v":116.88339239760001},{"$f":"IF(AND(OR(Calculations!$E$2=\"Orkney Health Board\",Calculations!$E$2=\"Orkney Islands Local Authority\"),$F184=1),0,IF(AND(OR(Calculations!$E$2=\"Shetland Health Board\",Calculations!$E$2=\"Western Isles Health Board\",Calculations!$E$2=\"Shetland Islands Local Authority\",Calculations!$E$2=\"Eilean Siar Local Authority\"),OR($F184=1,$F184=5)),0,new_yllv2(VALUE(LEFT(Options!$B$24,2)),$C184,$D184,$E184,$F184,2016,$I184,1,$H184,$G184*$H184,Options!$B$8)))","v":3521.4771109449998},{"$f":"IF(AND(OR(Calculations!$E$2=\"Orkney Health Board\",Calculations!$E$2=\"Orkney Islands Local Authority\"),$F184=1),0,IF(AND(OR(Calculations!$E$2=\"Shetland Health Board\",Calculations!$E$2=\"Western Isles Health Board\",Calculations!$E$2=\"Shetland Islands Local Authority\",Calculations!$E$2=\"Eilean Siar Local Authority\"),OR($F184=1,$F184=5)),0,new_yllv2(VALUE(LEFT(Options!$B$24,2)),$C184,$D184,$E184,$F184,2016,$I184+$J184,1,$H184,$G184*$H184,Options!$B$8)))","v":3505.3334055375999},{"$f":"IF(AND(OR(Calculations!$E$2=\"Orkney Health Board\",Calculations!$E$2=\"Orkney Islands Local Authority\"),$F184=1),0,IF(AND(OR(Calculations!$E$2=\"Shetland Health Board\",Calculations!$E$2=\"Western Isles Health Board\",Calculations!$E$2=\"Shetland Islands Local Authority\",Calculations!$E$2=\"Eilean Siar Local Authority\"),OR($F184=1,$F184=5)),0,hosp_count(VALUE(LEFT(Options!$B$24,2)),$C184,$E184,$F184,2016,$I184,1,$H184,$G184*$H184, Options!$B$8)))","v":9257.3301240100009},{"$f":"IF(AND(OR(Calculations!$E$2=\"Orkney Health Board\",Calculations!$E$2=\"Orkney Islands Local Authority\"),$F184=1),0,IF(AND(OR(Calculations!$E$2=\"Shetland Health Board\",Calculations!$E$2=\"Western Isles Health Board\",Calculations!$E$2=\"Shetland Islands Local Authority\",Calculations!$E$2=\"Eilean Siar Local Authority\"),OR($F184=1,$F184=5)),0,hosp_count(VALUE(LEFT(Options!$B$24,2)),$C184,$E184,$F184,2016,$I184+$J184,1,$H184,$G184*$H184, Options!$B$8)))","v":9231.8278078057992},{"$f":"IF(AND(OR(Calculations!$E$2=\"Orkney Health Board\",Calculations!$E$2=\"Orkney Islands Local Authority\"),$F184=1),0,IF(AND(OR(Calculations!$E$2=\"Shetland Health Board\",Calculations!$E$2=\"Western Isles Health Board\",Calculations!$E$2=\"Shetland Islands Local Authority\",Calculations!$E$2=\"Eilean Siar Local Authority\"),OR($F184=1,$F184=5)),0,prem_mort(VALUE(LEFT(Options!$B$24,2)),$C184,$E184,$F184,2016,$I184,1,$H184,$G184*$H184,Options!$B$8)))","v":117.4216952737},{"$f":"IF(AND(OR(Calculations!$E$2=\"Orkney Health Board\",Calculations!$E$2=\"Orkney Islands Local Authority\"),$F184=1),0,IF(AND(OR(Calculations!$E$2=\"Shetland Health Board\",Calculations!$E$2=\"Western Isles Health Board\",Calculations!$E$2=\"Shetland Islands Local Authority\",Calculations!$E$2=\"Eilean Siar Local Authority\"),OR($F184=1,$F184=5)),0,prem_mort(VALUE(LEFT(Options!$B$24,2)),$C184,$E184,$F184,2016,$I184+$J184,1,$H184,$G184*$H184,Options!$B$8)))","v":116.88339239760001},266.41337555008511,265.19204174157687,7989.7381984004542,7953.1103925980715,21003.585080000004,20945.723897460692,266.41337555008511,265.19204174157687,1864893.6288505958,1856344.2921910381,55928167.388803177,55671772.748186499,147025095.56000003,146620067.28222483,1864893.6288505958,1856344.2921910381,7000]
[null,"Female 55-59",56.953040999999999,83.473039999999997,"female",4,{"$f":"HLOOKUP(Calculations!$E$2,'Prevalence Rates'!$C$3:$BC$249,'Prevalence Rates'!$BD185,FALSE)","v":0.13770000000000002},{"$f":"HLOOKUP(Calculations!$E$2,'Population 2016'!$C$3:$BC$249,'Population 2016'!BD185,FALSE)","v":39814},0,{"$f":"HLOOKUP(Results!E$4,Targeting!$C$3:$F$249,Targeting!$G185,FALSE)","v":6134},{"$f":"IF(AND(OR(Calculations!$E$2=\"Orkney Health Board\",Calculations!$E$2=\"Orkney Islands Local Authority\"),$F185=1),0,IF(AND(OR(Calculations!$E$2=\"Shetland Health Board\",Calculations!$E$2=\"Western Isles Health Board\",Calculations!$E$2=\"Shetland Islands Local Authority\",Calculations!$E$2=\"Eilean Siar Local Authority\"),OR($F185=1,$F185=5)),0,new_ci(VALUE(LEFT(Options!$B$24,2)),$C185,$E185,$F185,2016,$I185,1,$H185,$G185*$H185,Options!$B$8)))","v":161.6472863027},{"$f":"IF(AND(OR(Calculations!$E$2=\"Orkney Health Board\",Calculations!$E$2=\"Orkney Islands Local Authority\"),$F185=1),0,IF(AND(OR(Calculations!$E$2=\"Shetland Health Board\",Calculations!$E$2=\"Western Isles Health Board\",Calculations!$E$2=\"Shetland Islands Local Authority\",Calculations!$E$2=\"Eilean Siar Local Authority\"),OR($F185=1,$F185=5)),0,new_ci(VALUE(LEFT(Options!$B$24,2)),$C185,$E185,$F185,2016,$I185+$J185,1,$H185,$G185*$H185,Options!$B$8)))","v":160.90114960970001},{"$f":"IF(AND(OR(Calculations!$E$2=\"Orkney Health Board\",Calculations!$E$2=\"Orkney Islands Local Authority\"),$F185=1),0,IF(AND(OR(Calculations!$E$2=\"Shetland Health Board\",Calculations!$E$2=\"Western Isles Health Board\",Calculations!$E$2=\"Shetland Islands Local Authority\",Calculations!$E$2=\"Eilean Siar Local Authority\"),OR($F185=1,$F185=5)),0,new_yllv2(VALUE(LEFT(Options!$B$24,2)),$C185,$D185,$E185,$F185,2016,$I185,1,$H185,$G185*$H185,Options!$B$8)))","v":4125.2385847976002},{"$f":"IF(AND(OR(Calculations!$E$2=\"Orkney Health Board\",Calculations!$E$2=\"Orkney Islands Local Authority\"),$F185=1),0,IF(AND(OR(Calculations!$E$2=\"Shetland Health Board\",Calculations!$E$2=\"Western Isles Health Board\",Calculations!$E$2=\"Shetland Islands Local Authority\",Calculations!$E$2=\"Eilean Siar Local Authority\"),OR($F185=1,$F185=5)),0,new_yllv2(VALUE(LEFT(Options!$B$24,2)),$C185,$D185,$E185,$F185,2016,$I185+$J185,1,$H185,$G185*$H185,Options!$B$8)))","v":4106.1971771383996},{"$f":"IF(AND(OR(Calculations!$E$2=\"Orkney Health Board\",Calculations!$E$2=\"Orkney Islands Local Authority\"),$F185=1),0,IF(AND(OR(Calculations!$E$2=\"Shetland Health Board\",Calculations!$E$2=\"Western Isles Health Board\",Calculations!$E$2=\"Shetland Islands Local Authority\",Calculations!$E$2=\"Eilean Siar Local Authority\"),OR($F185=1,$F185=5)),0,hosp_count(VALUE(LEFT(Options!$B$24,2)),$C185,$E185,$F185,2016,$I185,1,$H185,$G185*$H185, Options!$B$8)))","v":9474.0793686367997},{"$f":"IF(AND(OR(Calculations!$E$2=\"Orkney Health Board\",Calculations!$E$2=\"Orkney Islands Local Authority\"),$F185=1),0,IF(AND(OR(Calculations!$E$2=\"Shetland Health Board\",Calculations!$E$2=\"Western Isles Health Board\",Calculations!$E$2=\"Shetland Islands Local Authority\",Calculations!$E$2=\"Eilean Siar Local Authority\"),OR($F185=1,$F185=5)),0,hosp_count(VALUE(LEFT(Options!$B$24,2)),$C185,$E185,$F185,2016,$I185+$J185,1,$H185,$G185*$H185, Options!$B$8)))","v":9447.8245082613994},{"$f":"IF(AND(OR(Calculations!$E$2=\"Orkney Health Board\",Calculations!$E$2=\"Orkney Islands Local Authority\"),$F185=1),0,IF(AND(OR(Calculations!$E$2=\"Shetland Health Board\",Calculations!$E$2=\"Western Isles Health Board\",Calculations!$E$2=\"Shetland Islands Local Authority\",Calculations!$E$2=\"Eilean Siar Local Authority\"),OR($F185=1,$F185=5)),0,prem_mort(VALUE(LEFT(Options!$B$24,2)),$C185,$E185,$F185,2016,$I185,1,$H185,$G185*$H185,Options!$B$8)))","v":161.6472863027},{"$f":"IF(AND(OR(Calculations!$E$2=\"Orkney Health Board\",Calculations!$E$2=\"Orkney Islands Local Authority\"),$F185=1),0,IF(AND(OR(Calculations!$E$2=\"Shetland Health Board\",Calculations!$E$2=\"Western Isles Health Board\",Calculations!$E$2=\"Shetland Islands Local Authority\",Calculations!$E$2=\"Eilean Siar Local Authority\"),OR($F185=1,$F185=5)),0,prem_mort(VALUE(LEFT(Options!$B$24,2)),$C185,$E185,$F185,2016,$I185+$J185,1,$H185,$G185*$H185,Options!$B$8)))","v":160.90114960970001},406.00614432787461,404.13208823454067,10361.27639724117,10313.450487613401,23795.849119999999,23729.905330440044,406.00614432787461,404.13208823454067,2639039.9381311848,2626858.5735245142,67348296.582067609,67037428.169487111,154673019.28,154244384.64786029,2639039.9381311848,2626858.5735245142,6500]
[null,"Female 60-64",61.947387999999997,84.167389999999997,"female",4,{"$f":"HLOOKUP(Calculations!$E$2,'Prevalence Rates'!$C$3:$BC$249,'Prevalence Rates'!$BD186,FALSE)","v":0.13770000000000002},{"$f":"HLOOKUP(Calculations!$E$2,'Population 2016'!$C$3:$BC$249,'Population 2016'!BD186,FALSE)","v":35061},0,{"$f":"HLOOKUP(Results!E$4,Targeting!$C$3:$F$249,Targeting!$G186,FALSE)","v":5402},{"$f":"IF(AND(OR(Calculations!$E$2=\"Orkney Health Board\",Calculations!$E$2=\"Orkney Islands Local Authority\"),$F186=1),0,IF(AND(OR(Calculations!$E$2=\"Shetland Health Board\",Calculations!$E$2=\"Western Isles Health Board\",Calculations!$E$2=\"Shetland Islands Local Authority\",Calculations!$E$2=\"Eilean Siar Local Authority\"),OR($F186=1,$F186=5)),0,new_ci(VALUE(LEFT(Options!$B$24,2)),$C186,$E186,$F186,2016,$I186,1,$H186,$G186*$H186,Options!$B$8)))","v":217.44296402040001},{"$f":"IF(AND(OR(Calculations!$E$2=\"Orkney Health Board\",Calculations!$E$2=\"Orkney Islands Local Authority\"),$F186=1),0,IF(AND(OR(Calculations!$E$2=\"Shetland Health Board\",Calculations!$E$2=\"Western Isles Health Board\",Calculations!$E$2=\"Shetland Islands Local Authority\",Calculations!$E$2=\"Eilean Siar Local Authority\"),OR($F186=1,$F186=5)),0,new_ci(VALUE(LEFT(Options!$B$24,2)),$C186,$E186,$F186,2016,$I186+$J186,1,$H186,$G186*$H186,Options!$B$8)))","v":216.441556386},{"$f":"IF(AND(OR(Calculations!$E$2=\"Orkney Health Board\",Calculations!$E$2=\"Orkney Islands Local Authority\"),$F186=1),0,IF(AND(OR(Calculations!$E$2=\"Shetland Health Board\",Calculations!$E$2=\"Western Isles Health Board\",Calculations!$E$2=\"Shetland Islands Local Authority\",Calculations!$E$2=\"Eilean Siar Local Authority\"),OR($F186=1,$F186=5)),0,new_yllv2(VALUE(LEFT(Options!$B$24,2)),$C186,$D186,$E186,$F186,2016,$I186,1,$H186,$G186*$H186,Options!$B$8)))","v":4614.1401313987999},{"$f":"IF(AND(OR(Calculations!$E$2=\"Orkney Health Board\",Calculations!$E$2=\"Orkney Islands Local Authority\"),$F186=1),0,IF(AND(OR(Calculations!$E$2=\"Shetland Health Board\",Calculations!$E$2=\"Western Isles Health Board\",Calculations!$E$2=\"Shetland Islands Local Authority\",Calculations!$E$2=\"Eilean Siar Local Authority\"),OR($F186=1,$F186=5)),0,new_yllv2(VALUE(LEFT(Options!$B$24,2)),$C186,$D186,$E186,$F186,2016,$I186+$J186,1,$H186,$G186*$H186,Options!$B$8)))","v":4592.8902593940002},{"$f":"IF(AND(OR(Calculations!$E$2=\"Orkney Health Board\",Calculations!$E$2=\"Orkney Islands Local Authority\"),$F186=1),0,IF(AND(OR(Calculations!$E$2=\"Shetland Health Board\",Calculations!$E$2=\"Western Isles Health Board\",Calculations!$E$2=\"Shetland Islands Local Authority\",Calculations!$E$2=\"Eilean Siar Local Authority\"),OR($F186=1,$F186=5)),0,hosp_count(VALUE(LEFT(Options!$B$24,2)),$C186,$E186,$F186,2016,$I186,1,$H186,$G186*$H186, Options!$B$8)))","v":9459.8509845723001},{"$f":"IF(AND(OR(Calculations!$E$2=\"Orkney Health Board\",Calculations!$E$2=\"Orkney Islands Local Authority\"),$F186=1),0,IF(AND(OR(Calculations!$E$2=\"Shetland Health Board\",Calculations!$E$2=\"Western Isles Health Board\",Calculations!$E$2=\"Shetland Islands Local Authority\",Calculations!$E$2=\"Eilean Siar Local Authority\"),OR($F186=1,$F186=5)),0,hosp_count(VALUE(LEFT(Options!$B$24,2)),$C186,$E186,$F186,2016,$I186+$J186,1,$H186,$G186*$H186, Options!$B$8)))","v":9433.6342066826001},{"$f":"IF(AND(OR(Calculations!$E$2=\"Orkney Health Board\",Calculations!$E$2=\"Orkney Islands Local Authority\"),$F186=1),0,IF(AND(OR(Calculations!$E$2=\"Shetland Health Board\",Calculations!$E$2=\"Western Isles Health Board\",Calculations!$E$2=\"Shetland Islands Local Authority\",Calculations!$E$2=\"Eilean Siar Local Authority\"),OR($F186=1,$F186=5)),0,prem_mort(VALUE(LEFT(Options!$B$24,2)),$C186,$E186,$F186,2016,$I186,1,$H186,$G186*$H186,Options!$B$8)))","v":217.44296402040001},{"$f":"IF(AND(OR(Calculations!$E$2=\"Orkney Health Board\",Calculations!$E$2=\"Orkney Islands Local Authority\"),$F186=1),0,IF(AND(OR(Calculations!$E$2=\"Shetland Health Board\",Calculations!$E$2=\"Western Isles Health Board\",Calculations!$E$2=\"Shetland Islands Local Authority\",Calculations!$E$2=\"Eilean Siar Local Authority\"),OR($F186=1,$F186=5)),0,prem_mort(VALUE(LEFT(Options!$B$24,2)),$C186,$E186,$F186,2016,$I186+$J186,1,$H186,$G186*$H186,Options!$B$8)))","v":216.441556386},620.18471812098915,617.3285313767434,13160.32095889678,13099.712670471465,26981.121429999999,26906.346672036165,620.18471812098915,617.3285313767434,3721108.3087259349,3703971.1882604603,78961925.753380686,78598276.022828788,161886728.57999998,161438080.032217,3721108.3087259349,3703971.1882604603,6000]
[null,"Female 65-69",67.063927000000007,85.193929999999995,"female",4,{"$f":"HLOOKUP(Calculations!$E$2,'Prevalence Rates'!$C$3:$BC$249,'Prevalence Rates'!$BD187,FALSE)","v":0.11560000000000001},{"$f":"HLOOKUP(Calculations!$E$2,'Population 2016'!$C$3:$BC$249,'Population 2016'!BD187,FALSE)","v":34888},0,{"$f":"HLOOKUP(Results!E$4,Targeting!$C$3:$F$249,Targeting!$G187,FALSE)","v":5375},{"$f":"IF(AND(OR(Calculations!$E$2=\"Orkney Health Board\",Calculations!$E$2=\"Orkney Islands Local Authority\"),$F187=1),0,IF(AND(OR(Calculations!$E$2=\"Shetland Health Board\",Calculations!$E$2=\"Western Isles Health Board\",Calculations!$E$2=\"Shetland Islands Local Authority\",Calculations!$E$2=\"Eilean Siar Local Authority\"),OR($F187=1,$F187=5)),0,new_ci(VALUE(LEFT(Options!$B$24,2)),$C187,$E187,$F187,2016,$I187,1,$H187,$G187*$H187,Options!$B$8)))","v":333.75559501880002},{"$f":"IF(AND(OR(Calculations!$E$2=\"Orkney Health Board\",Calculations!$E$2=\"Orkney Islands Local Authority\"),$F187=1),0,IF(AND(OR(Calculations!$E$2=\"Shetland Health Board\",Calculations!$E$2=\"Western Isles Health Board\",Calculations!$E$2=\"Shetland Islands Local Authority\",Calculations!$E$2=\"Eilean Siar Local Authority\"),OR($F187=1,$F187=5)),0,new_ci(VALUE(LEFT(Options!$B$24,2)),$C187,$E187,$F187,2016,$I187+$J187,1,$H187,$G187*$H187,Options!$B$8)))","v":332.19988243130001},{"$f":"IF(AND(OR(Calculations!$E$2=\"Orkney Health Board\",Calculations!$E$2=\"Orkney Islands Local Authority\"),$F187=1),0,IF(AND(OR(Calculations!$E$2=\"Shetland Health Board\",Calculations!$E$2=\"Western Isles Health Board\",Calculations!$E$2=\"Shetland Islands Local Authority\",Calculations!$E$2=\"Eilean Siar Local Authority\"),OR($F187=1,$F187=5)),0,new_yllv2(VALUE(LEFT(Options!$B$24,2)),$C187,$D187,$E187,$F187,2016,$I187,1,$H187,$G187*$H187,Options!$B$8)))","v":5717.2343439387996},{"$f":"IF(AND(OR(Calculations!$E$2=\"Orkney Health Board\",Calculations!$E$2=\"Orkney Islands Local Authority\"),$F187=1),0,IF(AND(OR(Calculations!$E$2=\"Shetland Health Board\",Calculations!$E$2=\"Western Isles Health Board\",Calculations!$E$2=\"Shetland Islands Local Authority\",Calculations!$E$2=\"Eilean Siar Local Authority\"),OR($F187=1,$F187=5)),0,new_yllv2(VALUE(LEFT(Options!$B$24,2)),$C187,$D187,$E187,$F187,2016,$I187+$J187,1,$H187,$G187*$H187,Options!$B$8)))","v":5690.5849826477997},{"$f":"IF(AND(OR(Calculations!$E$2=\"Orkney Health Board\",Calculations!$E$2=\"Orkney Islands Local Authority\"),$F187=1),0,IF(AND(OR(Calculations!$E$2=\"Shetland Health Board\",Calculations!$E$2=\"Western Isles Health Board\",Calculations!$E$2=\"Shetland Islands Local Authority\",Calculations!$E$2=\"Eilean Siar Local Authority\"),OR($F187=1,$F187=5)),0,hosp_count(VALUE(LEFT(Options!$B$24,2)),$C187,$E187,$F187,2016,$I187,1,$H187,$G187*$H187, Options!$B$8)))","v":10706.0606319744},{"$f":"IF(AND(OR(Calculations!$E$2=\"Orkney Health Board\",Calculations!$E$2=\"Orkney Islands Local Authority\"),$F187=1),0,IF(AND(OR(Calculations!$E$2=\"Shetland Health Board\",Calculations!$E$2=\"Western Isles Health Board\",Calculations!$E$2=\"Shetland Islands Local Authority\",Calculations!$E$2=\"Eilean Siar Local Authority\"),OR($F187=1,$F187=5)),0,hosp_count(VALUE(LEFT(Options!$B$24,2)),$C187,$E187,$F187,2016,$I187+$J187,1,$H187,$G187*$H187, Options!$B$8)))","v":10676.0529833214},{"$f":"IF(AND(OR(Calculations!$E$2=\"Orkney Health Board\",Calculations!$E$2=\"Orkney Islands Local Authority\"),$F187=1),0,IF(AND(OR(Calculations!$E$2=\"Shetland Health Board\",Calculations!$E$2=\"Western Isles Health Board\",Calculations!$E$2=\"Shetland Islands Local Authority\",Calculations!$E$2=\"Eilean Siar Local Authority\"),OR($F187=1,$F187=5)),0,prem_mort(VALUE(LEFT(Options!$B$24,2)),$C187,$E187,$F187,2016,$I187,1,$H187,$G187*$H187,Options!$B$8)))","v":333.75559501880002},{"$f":"IF(AND(OR(Calculations!$E$2=\"Orkney Health Board\",Calculations!$E$2=\"Orkney Islands Local Authority\"),$F187=1),0,IF(AND(OR(Calculations!$E$2=\"Shetland Health Board\",Calculations!$E$2=\"Western Isles Health Board\",Calculations!$E$2=\"Shetland Islands Local Authority\",Calculations!$E$2=\"Eilean Siar Local Authority\"),OR($F187=1,$F187=5)),0,prem_mort(VALUE(LEFT(Options!$B$24,2)),$C187,$E187,$F187,2016,$I187+$J187,1,$H187,$G187*$H187,Options!$B$8)))","v":332.19988243130001},956.6486901479019,952.18952772099294,16387.394932179548,16311.009466429143,30686.942880000002,30600.93150459012,956.6486901479019,952.18952772099294,5261567.7958134608,5237042.4024654608,90130672.126987517,89710552.065360278,168778185.84,168305123.27524567,5261567.7958134608,5237042.4024654608,5500]
[null,"Female 70-74",71.938164,86.248159999999999,"female",4,{"$f":"HLOOKUP(Calculations!$E$2,'Prevalence Rates'!$C$3:$BC$249,'Prevalence Rates'!$BD188,FALSE)","v":0.11560000000000001},{"$f":"HLOOKUP(Calculations!$E$2,'Population 2016'!$C$3:$BC$249,'Population 2016'!BD188,FALSE)","v":26320},0,{"$f":"HLOOKUP(Results!E$4,Targeting!$C$3:$F$249,Targeting!$G188,FALSE)","v":4055},{"$f":"IF(AND(OR(Calculations!$E$2=\"Orkney Health Board\",Calculations!$E$2=\"Orkney Islands Local Authority\"),$F188=1),0,IF(AND(OR(Calculations!$E$2=\"Shetland Health Board\",Calculations!$E$2=\"Western Isles Health Board\",Calculations!$E$2=\"Shetland Islands Local Authority\",Calculations!$E$2=\"Eilean Siar Local Authority\"),OR($F188=1,$F188=5)),0,new_ci(VALUE(LEFT(Options!$B$24,2)),$C188,$E188,$F188,2016,$I188,1,$H188,$G188*$H188,Options!$B$8)))","v":380.15236666409999},{"$f":"IF(AND(OR(Calculations!$E$2=\"Orkney Health Board\",Calculations!$E$2=\"Orkney Islands Local Authority\"),$F188=1),0,IF(AND(OR(Calculations!$E$2=\"Shetland Health Board\",Calculations!$E$2=\"Western Isles Health Board\",Calculations!$E$2=\"Shetland Islands Local Authority\",Calculations!$E$2=\"Eilean Siar Local Authority\"),OR($F188=1,$F188=5)),0,new_ci(VALUE(LEFT(Options!$B$24,2)),$C188,$E188,$F188,2016,$I188+$J188,1,$H188,$G188*$H188,Options!$B$8)))","v":378.39003406260002},{"$f":"IF(AND(OR(Calculations!$E$2=\"Orkney Health Board\",Calculations!$E$2=\"Orkney Islands Local Authority\"),$F188=1),0,IF(AND(OR(Calculations!$E$2=\"Shetland Health Board\",Calculations!$E$2=\"Western Isles Health Board\",Calculations!$E$2=\"Shetland Islands Local Authority\",Calculations!$E$2=\"Eilean Siar Local Authority\"),OR($F188=1,$F188=5)),0,new_yllv2(VALUE(LEFT(Options!$B$24,2)),$C188,$D188,$E188,$F188,2016,$I188,1,$H188,$G188*$H188,Options!$B$8)))","v":5059.8264796897001},{"$f":"IF(AND(OR(Calculations!$E$2=\"Orkney Health Board\",Calculations!$E$2=\"Orkney Islands Local Authority\"),$F188=1),0,IF(AND(OR(Calculations!$E$2=\"Shetland Health Board\",Calculations!$E$2=\"Western Isles Health Board\",Calculations!$E$2=\"Shetland Islands Local Authority\",Calculations!$E$2=\"Eilean Siar Local Authority\"),OR($F188=1,$F188=5)),0,new_yllv2(VALUE(LEFT(Options!$B$24,2)),$C188,$D188,$E188,$F188,2016,$I188+$J188,1,$H188,$G188*$H188,Options!$B$8)))","v":5036.3698398131},{"$f":"IF(AND(OR(Calculations!$E$2=\"Orkney Health Board\",Calculations!$E$2=\"Orkney Islands Local Authority\"),$F188=1),0,IF(AND(OR(Calculations!$E$2=\"Shetland Health Board\",Calculations!$E$2=\"Western Isles Health Board\",Calculations!$E$2=\"Shetland Islands Local Authority\",Calculations!$E$2=\"Eilean Siar Local Authority\"),OR($F188=1,$F188=5)),0,hosp_count(VALUE(LEFT(Options!$B$24,2)),$C188,$E188,$F188,2016,$I188,1,$H188,$G188*$H188, Options!$B$8)))","v":9130.3243339839992},{"$f":"IF(AND(OR(Calculations!$E$2=\"Orkney Health Board\",Calculations!$E$2=\"Orkney Islands Local Authority\"),$F188=1),0,IF(AND(OR(Calculations!$E$2=\"Shetland Health Board\",Calculations!$E$2=\"Western Isles Health Board\",Calculations!$E$2=\"Shetland Islands Local Authority\",Calculations!$E$2=\"Eilean Siar Local Authority\"),OR($F188=1,$F188=5)),0,hosp_count(VALUE(LEFT(Options!$B$24,2)),$C188,$E188,$F188,2016,$I188+$J188,1,$H188,$G188*$H188, Options!$B$8)))","v":9104.7331105075991},{"$f":"IF(AND(OR(Calculations!$E$2=\"Orkney Health Board\",Calculations!$E$2=\"Orkney Islands Local Authority\"),$F188=1),0,IF(AND(OR(Calculations!$E$2=\"Shetland Health Board\",Calculations!$E$2=\"Western Isles Health Board\",Calculations!$E$2=\"Shetland Islands Local Authority\",Calculations!$E$2=\"Eilean Siar Local Authority\"),OR($F188=1,$F188=5)),0,prem_mort(VALUE(LEFT(Options!$B$24,2)),$C188,$E188,$F188,2016,$I188,1,$H188,$G188*$H188,Options!$B$8)))","v":380.15236666409999},{"$f":"IF(AND(OR(Calculations!$E$2=\"Orkney Health Board\",Calculations!$E$2=\"Orkney Islands Local Authority\"),$F188=1),0,IF(AND(OR(Calculations!$E$2=\"Shetland Health Board\",Calculations!$E$2=\"Western Isles Health Board\",Calculations!$E$2=\"Shetland Islands Local Authority\",Calculations!$E$2=\"Eilean Siar Local Authority\"),OR($F188=1,$F188=5)),0,prem_mort(VALUE(LEFT(Options!$B$24,2)),$C188,$E188,$F188,2016,$I188+$J188,1,$H188,$G188*$H188,Options!$B$8)))","v":378.39003406260002},1444.3478976599545,1437.6521051010639,19224.264740462386,19135.143768286853,34689.682119999998,34592.451027764437,1444.3478976599545,1437.6521051010639,7221739.4882997721,7188260.5255053192,{"$f":"U188*$AI188","v":96121323.702311933},{"$f":"V188*$AI188","v":95675718.84143427},{"$f":"W188*$AI188","v":173448410.59999999},{"$f":"X188*$AI188","v":172962255.1388222},{"$f":"Y188*$AI188","v":7221739.4882997721},{"$f":"Z188*$AI188","v":7188260.5255053192},5000]
[null,"Female 75-79",76.942824999999999,87.812830000000005,"female",4,{"$f":"HLOOKUP(Calculations!$E$2,'Prevalence Rates'!$C$3:$BC$249,'Prevalence Rates'!$BD189,FALSE)","v":6.1400000000000003E-2},{"$f":"HLOOKUP(Calculations!$E$2,'Population 2016'!$C$3:$BC$249,'Population 2016'!BD189,FALSE)","v":20708},0,{"$f":"HLOOKUP(Results!E$4,Targeting!$C$3:$F$249,Targeting!$G189,FALSE)","v":3191},{"$f":"IF(AND(OR(Calculations!$E$2=\"Orkney Health Board\",Calculations!$E$2=\"Orkney Islands Local Authority\"),$F189=1),0,IF(AND(OR(Calculations!$E$2=\"Shetland Health Board\",Calculations!$E$2=\"Western Isles Health Board\",Calculations!$E$2=\"Shetland Islands Local Authority\",Calculations!$E$2=\"Eilean Siar Local Authority\"),OR($F189=1,$F189=5)),0,new_ci(VALUE(LEFT(Options!$B$24,2)),$C189,$E189,$F189,2016,$I189,1,$H189,$G189*$H189,Options!$B$8)))","v":456.05314785780001},{"$f":"IF(AND(OR(Calculations!$E$2=\"Orkney Health Board\",Calculations!$E$2=\"Orkney Islands Local Authority\"),$F189=1),0,IF(AND(OR(Calculations!$E$2=\"Shetland Health Board\",Calculations!$E$2=\"Western Isles Health Board\",Calculations!$E$2=\"Shetland Islands Local Authority\",Calculations!$E$2=\"Eilean Siar Local Authority\"),OR($F189=1,$F189=5)),0,new_ci(VALUE(LEFT(Options!$B$24,2)),$C189,$E189,$F189,2016,$I189+$J189,1,$H189,$G189*$H189,Options!$B$8)))","v":453.87368305109999},{"$f":"IF(AND(OR(Calculations!$E$2=\"Orkney Health Board\",Calculations!$E$2=\"Orkney Islands Local Authority\"),$F189=1),0,IF(AND(OR(Calculations!$E$2=\"Shetland Health Board\",Calculations!$E$2=\"Western Isles Health Board\",Calculations!$E$2=\"Shetland Islands Local Authority\",Calculations!$E$2=\"Eilean Siar Local Authority\"),OR($F189=1,$F189=5)),0,new_yllv2(VALUE(LEFT(Options!$B$24,2)),$C189,$D189,$E189,$F189,2016,$I189,1,$H189,$G189*$H189,Options!$B$8)))","v":4501.2468496222},{"$f":"IF(AND(OR(Calculations!$E$2=\"Orkney Health Board\",Calculations!$E$2=\"Orkney Islands Local Authority\"),$F189=1),0,IF(AND(OR(Calculations!$E$2=\"Shetland Health Board\",Calculations!$E$2=\"Western Isles Health Board\",Calculations!$E$2=\"Shetland Islands Local Authority\",Calculations!$E$2=\"Eilean Siar Local Authority\"),OR($F189=1,$F189=5)),0,new_yllv2(VALUE(LEFT(Options!$B$24,2)),$C189,$D189,$E189,$F189,2016,$I189+$J189,1,$H189,$G189*$H189,Options!$B$8)))","v":4479.7355210828},{"$f":"IF(AND(OR(Calculations!$E$2=\"Orkney Health Board\",Calculations!$E$2=\"Orkney Islands Local Authority\"),$F189=1),0,IF(AND(OR(Calculations!$E$2=\"Shetland Health Board\",Calculations!$E$2=\"Western Isles Health Board\",Calculations!$E$2=\"Shetland Islands Local Authority\",Calculations!$E$2=\"Eilean Siar Local Authority\"),OR($F189=1,$F189=5)),0,hosp_count(VALUE(LEFT(Options!$B$24,2)),$C189,$E189,$F189,2016,$I189,1,$H189,$G189*$H189, Options!$B$8)))","v":8147.2292633240004},{"$f":"IF(AND(OR(Calculations!$E$2=\"Orkney Health Board\",Calculations!$E$2=\"Orkney Islands Local Authority\"),$F189=1),0,IF(AND(OR(Calculations!$E$2=\"Shetland Health Board\",Calculations!$E$2=\"Western Isles Health Board\",Calculations!$E$2=\"Shetland Islands Local Authority\",Calculations!$E$2=\"Eilean Siar Local Authority\"),OR($F189=1,$F189=5)),0,hosp_count(VALUE(LEFT(Options!$B$24,2)),$C189,$E189,$F189,2016,$I189+$J189,1,$H189,$G189*$H189, Options!$B$8)))","v":8123.7305169538004},{"$f":"IF(AND(OR(Calculations!$E$2=\"Orkney Health Board\",Calculations!$E$2=\"Orkney Islands Local Authority\"),$F189=1),0,IF(AND(OR(Calculations!$E$2=\"Shetland Health Board\",Calculations!$E$2=\"Western Isles Health Board\",Calculations!$E$2=\"Shetland Islands Local Authority\",Calculations!$E$2=\"Eilean Siar Local Authority\"),OR($F189=1,$F189=5)),0,prem_mort(VALUE(LEFT(Options!$B$24,2)),$C189,$E189,$F189,2016,$I189,1,$H189,$G189*$H189,Options!$B$8)))","v":0},{"$f":"IF(AND(OR(Calculations!$E$2=\"Orkney Health Board\",Calculations!$E$2=\"Orkney Islands Local Authority\"),$F189=1),0,IF(AND(OR(Calculations!$E$2=\"Shetland Health Board\",Calculations!$E$2=\"Western Isles Health Board\",Calculations!$E$2=\"Shetland Islands Local Authority\",Calculations!$E$2=\"Eilean Siar Local Authority\"),OR($F189=1,$F189=5)),0,prem_mort(VALUE(LEFT(Options!$B$24,2)),$C189,$E189,$F189,2016,$I189+$J189,1,$H189,$G189*$H189,Options!$B$8)))","v":0},{"$f":"K189*100000/$H189","v":2202.3041716138691},{"$f":"L189*100000/$H189","v":2191.7794236580066},{"$f":"M189*100000/$H189","v":21736.753185349626},{"$f":"N189*100000/$H189","v":21632.873870401778},{"$f":"O189*100000/$H189","v":39343.390300000006},{"$f":"P189*100000/$H189","v":39229.913641847597},{"$f":"Q189*100000/$H189","v":0},{"$f":"R189*100000/$H189","v":0},{"$f":"S189*$AI189","v":8809216.686455477},{"$f":"T189*$AI189","v":8767117.6946320273},86947012.741398498,86531495.481607109,157373561.20000002,156919654.56739038,0,0,4000]
[null,"Female 80-84",81.856712000000002,89.736710000000002,"female",4,{"$f":"HLOOKUP(Calculations!$E$2,'Prevalence Rates'!$C$3:$BC$249,'Prevalence Rates'!$BD190,FALSE)","v":6.1400000000000003E-2},{"$f":"HLOOKUP(Calculations!$E$2,'Population 2016'!$C$3:$BC$249,'Population 2016'!BD190,FALSE)","v":15634},0,{"$f":"HLOOKUP(Results!E$4,Targeting!$C$3:$F$249,Targeting!$G190,FALSE)","v":2409},{"$f":"IF(AND(OR(Calculations!$E$2=\"Orkney Health Board\",Calculations!$E$2=\"Orkney Islands Local Authority\"),$F190=1),0,IF(AND(OR(Calculations!$E$2=\"Shetland Health Board\",Calculations!$E$2=\"Western Isles Health Board\",Calculations!$E$2=\"Shetland Islands Local Authority\",Calculations!$E$2=\"Eilean Siar Local Authority\"),OR($F190=1,$F190=5)),0,new_ci(VALUE(LEFT(Options!$B$24,2)),$C190,$E190,$F190,2016,$I190,1,$H190,$G190*$H190,Options!$B$8)))","v":519.85319858219998},{"$f":"IF(AND(OR(Calculations!$E$2=\"Orkney Health Board\",Calculations!$E$2=\"Orkney Islands Local Authority\"),$F190=1),0,IF(AND(OR(Calculations!$E$2=\"Shetland Health Board\",Calculations!$E$2=\"Western Isles Health Board\",Calculations!$E$2=\"Shetland Islands Local Authority\",Calculations!$E$2=\"Eilean Siar Local Authority\"),OR($F190=1,$F190=5)),0,new_ci(VALUE(LEFT(Options!$B$24,2)),$C190,$E190,$F190,2016,$I190+$J190,1,$H190,$G190*$H190,Options!$B$8)))","v":517.40278449959999},{"$f":"IF(AND(OR(Calculations!$E$2=\"Orkney Health Board\",Calculations!$E$2=\"Orkney Islands Local Authority\"),$F190=1),0,IF(AND(OR(Calculations!$E$2=\"Shetland Health Board\",Calculations!$E$2=\"Western Isles Health Board\",Calculations!$E$2=\"Shetland Islands Local Authority\",Calculations!$E$2=\"Eilean Siar Local Authority\"),OR($F190=1,$F190=5)),0,new_yllv2(VALUE(LEFT(Options!$B$24,2)),$C190,$D190,$E190,$F190,2016,$I190,1,$H190,$G190*$H190,Options!$B$8)))","v":3576.5889665391001},{"$f":"IF(AND(OR(Calculations!$E$2=\"Orkney Health Board\",Calculations!$E$2=\"Orkney Islands Local Authority\"),$F190=1),0,IF(AND(OR(Calculations!$E$2=\"Shetland Health Board\",Calculations!$E$2=\"Western Isles Health Board\",Calculations!$E$2=\"Shetland Islands Local Authority\",Calculations!$E$2=\"Eilean Siar Local Authority\"),OR($F190=1,$F190=5)),0,new_yllv2(VALUE(LEFT(Options!$B$24,2)),$C190,$D190,$E190,$F190,2016,$I190+$J190,1,$H190,$G190*$H190,Options!$B$8)))","v":3559.7301225516999},{"$f":"IF(AND(OR(Calculations!$E$2=\"Orkney Health Board\",Calculations!$E$2=\"Orkney Islands Local Authority\"),$F190=1),0,IF(AND(OR(Calculations!$E$2=\"Shetland Health Board\",Calculations!$E$2=\"Western Isles Health Board\",Calculations!$E$2=\"Shetland Islands Local Authority\",Calculations!$E$2=\"Eilean Siar Local Authority\"),OR($F190=1,$F190=5)),0,hosp_count(VALUE(LEFT(Options!$B$24,2)),$C190,$E190,$F190,2016,$I190,1,$H190,$G190*$H190, Options!$B$8)))","v":6960.2000923551996},{"$f":"IF(AND(OR(Calculations!$E$2=\"Orkney Health Board\",Calculations!$E$2=\"Orkney Islands Local Authority\"),$F190=1),0,IF(AND(OR(Calculations!$E$2=\"Shetland Health Board\",Calculations!$E$2=\"Western Isles Health Board\",Calculations!$E$2=\"Shetland Islands Local Authority\",Calculations!$E$2=\"Eilean Siar Local Authority\"),OR($F190=1,$F190=5)),0,hosp_count(VALUE(LEFT(Options!$B$24,2)),$C190,$E190,$F190,2016,$I190+$J190,1,$H190,$G190*$H190, Options!$B$8)))","v":6940.1260644305003},{"$f":"IF(AND(OR(Calculations!$E$2=\"Orkney Health Board\",Calculations!$E$2=\"Orkney Islands Local Authority\"),$F190=1),0,IF(AND(OR(Calculations!$E$2=\"Shetland Health Board\",Calculations!$E$2=\"Western Isles Health Board\",Calculations!$E$2=\"Shetland Islands Local Authority\",Calculations!$E$2=\"Eilean Siar Local Authority\"),OR($F190=1,$F190=5)),0,prem_mort(VALUE(LEFT(Options!$B$24,2)),$C190,$E190,$F190,2016,$I190,1,$H190,$G190*$H190,Options!$B$8)))","v":0},{"$f":"IF(AND(OR(Calculations!$E$2=\"Orkney Health Board\",Calculations!$E$2=\"Orkney Islands Local Authority\"),$F190=1),0,IF(AND(OR(Calculations!$E$2=\"Shetland Health Board\",Calculations!$E$2=\"Western Isles Health Board\",Calculations!$E$2=\"Shetland Islands Local Authority\",Calculations!$E$2=\"Eilean Siar Local Authority\"),OR($F190=1,$F190=5)),0,prem_mort(VALUE(LEFT(Options!$B$24,2)),$C190,$E190,$F190,2016,$I190+$J190,1,$H190,$G190*$H190,Options!$B$8)))","v":0},3325.1451872981961,3309.4715651758988,22876.992238320967,22769.157749467187,44519.637280000003,44391.237459578486,0,0,8312862.9682454905,8273678.9129397469,57192480.595802419,56922894.37366797,111299093.2,110978093.64894621,0,0,2500]
[null,"Female 85-89",86.730819999999994,92.220819999999989,"female",4,{"$f":"HLOOKUP(Calculations!$E$2,'Prevalence Rates'!$C$3:$BC$249,'Prevalence Rates'!$BD191,FALSE)","v":6.1400000000000003E-2},{"$f":"HLOOKUP(Calculations!$E$2,'Population 2016'!$C$3:$BC$249,'Population 2016'!BD191,FALSE)","v":9988},0,{"$f":"HLOOKUP(Results!E$4,Targeting!$C$3:$F$249,Targeting!$G191,FALSE)","v":1539},{"$f":"IF(AND(OR(Calculations!$E$2=\"Orkney Health Board\",Calculations!$E$2=\"Orkney Islands Local Authority\"),$F191=1),0,IF(AND(OR(Calculations!$E$2=\"Shetland Health Board\",Calculations!$E$2=\"Western Isles Health Board\",Calculations!$E$2=\"Shetland Islands Local Authority\",Calculations!$E$2=\"Eilean Siar Local Authority\"),OR($F191=1,$F191=5)),0,new_ci(VALUE(LEFT(Options!$B$24,2)),$C191,$E191,$F191,2016,$I191,1,$H191,$G191*$H191,Options!$B$8)))","v":498.27074104040003},{"$f":"IF(AND(OR(Calculations!$E$2=\"Orkney Health Board\",Calculations!$E$2=\"Orkney Islands Local Authority\"),$F191=1),0,IF(AND(OR(Calculations!$E$2=\"Shetland Health Board\",Calculations!$E$2=\"Western Isles Health Board\",Calculations!$E$2=\"Shetland Islands Local Authority\",Calculations!$E$2=\"Eilean Siar Local Authority\"),OR($F191=1,$F191=5)),0,new_ci(VALUE(LEFT(Options!$B$24,2)),$C191,$E191,$F191,2016,$I191+$J191,1,$H191,$G191*$H191,Options!$B$8)))","v":495.97007978300002},{"$f":"IF(AND(OR(Calculations!$E$2=\"Orkney Health Board\",Calculations!$E$2=\"Orkney Islands Local Authority\"),$F191=1),0,IF(AND(OR(Calculations!$E$2=\"Shetland Health Board\",Calculations!$E$2=\"Western Isles Health Board\",Calculations!$E$2=\"Shetland Islands Local Authority\",Calculations!$E$2=\"Eilean Siar Local Authority\"),OR($F191=1,$F191=5)),0,new_yllv2(VALUE(LEFT(Options!$B$24,2)),$C191,$D191,$E191,$F191,2016,$I191,1,$H191,$G191*$H191,Options!$B$8)))","v":2237.2356272714001},{"$f":"IF(AND(OR(Calculations!$E$2=\"Orkney Health Board\",Calculations!$E$2=\"Orkney Islands Local Authority\"),$F191=1),0,IF(AND(OR(Calculations!$E$2=\"Shetland Health Board\",Calculations!$E$2=\"Western Isles Health Board\",Calculations!$E$2=\"Shetland Islands Local Authority\",Calculations!$E$2=\"Eilean Siar Local Authority\"),OR($F191=1,$F191=5)),0,new_yllv2(VALUE(LEFT(Options!$B$24,2)),$C191,$D191,$E191,$F191,2016,$I191+$J191,1,$H191,$G191*$H191,Options!$B$8)))","v":2226.9056582256999},{"$f":"IF(AND(OR(Calculations!$E$2=\"Orkney Health Board\",Calculations!$E$2=\"Orkney Islands Local Authority\"),$F191=1),0,IF(AND(OR(Calculations!$E$2=\"Shetland Health Board\",Calculations!$E$2=\"Western Isles Health Board\",Calculations!$E$2=\"Shetland Islands Local Authority\",Calculations!$E$2=\"Eilean Siar Local Authority\"),OR($F191=1,$F191=5)),0,hosp_count(VALUE(LEFT(Options!$B$24,2)),$C191,$E191,$F191,2016,$I191,1,$H191,$G191*$H191, Options!$B$8)))","v":5026.6128475639998},{"$f":"IF(AND(OR(Calculations!$E$2=\"Orkney Health Board\",Calculations!$E$2=\"Orkney Islands Local Authority\"),$F191=1),0,IF(AND(OR(Calculations!$E$2=\"Shetland Health Board\",Calculations!$E$2=\"Western Isles Health Board\",Calculations!$E$2=\"Shetland Islands Local Authority\",Calculations!$E$2=\"Eilean Siar Local Authority\"),OR($F191=1,$F191=5)),0,hosp_count(VALUE(LEFT(Options!$B$24,2)),$C191,$E191,$F191,2016,$I191+$J191,1,$H191,$G191*$H191, Options!$B$8)))","v":5012.1157310981998},{"$f":"IF(AND(OR(Calculations!$E$2=\"Orkney Health Board\",Calculations!$E$2=\"Orkney Islands Local Authority\"),$F191=1),0,IF(AND(OR(Calculations!$E$2=\"Shetland Health Board\",Calculations!$E$2=\"Western Isles Health Board\",Calculations!$E$2=\"Shetland Islands Local Authority\",Calculations!$E$2=\"Eilean Siar Local Authority\"),OR($F191=1,$F191=5)),0,prem_mort(VALUE(LEFT(Options!$B$24,2)),$C191,$E191,$F191,2016,$I191,1,$H191,$G191*$H191,Options!$B$8)))","v":0},{"$f":"IF(AND(OR(Calculations!$E$2=\"Orkney Health Board\",Calculations!$E$2=\"Orkney Islands Local Authority\"),$F191=1),0,IF(AND(OR(Calculations!$E$2=\"Shetland Health Board\",Calculations!$E$2=\"Western Isles Health Board\",Calculations!$E$2=\"Shetland Islands Local Authority\",Calculations!$E$2=\"Eilean Siar Local Authority\"),OR($F191=1,$F191=5)),0,prem_mort(VALUE(LEFT(Options!$B$24,2)),$C191,$E191,$F191,2016,$I191+$J191,1,$H191,$G191*$H191,Options!$B$8)))","v":0},4988.6938430156188,4965.659589337205,22399.235355140168,22295.81155612435,50326.520299999996,50181.374960935122,0,0,7483040.7645234279,7448489.3840058073,33598853.032710254,33443717.334186524,75489780.449999988,75272062.441402689,0,0,1500]
[null,"Female 90+",92.779342999999997,96.279340000000005,"female",4,{"$f":"HLOOKUP(Calculations!$E$2,'Prevalence Rates'!$C$3:$BC$249,'Prevalence Rates'!$BD192,FALSE)","v":6.1400000000000003E-2},{"$f":"HLOOKUP(Calculations!$E$2,'Population 2016'!$C$3:$BC$249,'Population 2016'!BD192,FALSE)","v":5998},0,{"$f":"HLOOKUP(Results!E$4,Targeting!$C$3:$F$249,Targeting!$G192,FALSE)","v":924},{"$f":"IF(AND(OR(Calculations!$E$2=\"Orkney Health Board\",Calculations!$E$2=\"Orkney Islands Local Authority\"),$F192=1),0,IF(AND(OR(Calculations!$E$2=\"Shetland Health Board\",Calculations!$E$2=\"Western Isles Health Board\",Calculations!$E$2=\"Shetland Islands Local Authority\",Calculations!$E$2=\"Eilean Siar Local Authority\"),OR($F192=1,$F192=5)),0,new_ci(VALUE(LEFT(Options!$B$24,2)),$C192,$E192,$F192,2016,$I192,1,$H192,$G192*$H192,Options!$B$8)))","v":491.8061077758},{"$f":"IF(AND(OR(Calculations!$E$2=\"Orkney Health Board\",Calculations!$E$2=\"Orkney Islands Local Authority\"),$F192=1),0,IF(AND(OR(Calculations!$E$2=\"Shetland Health Board\",Calculations!$E$2=\"Western Isles Health Board\",Calculations!$E$2=\"Shetland Islands Local Authority\",Calculations!$E$2=\"Eilean Siar Local Authority\"),OR($F192=1,$F192=5)),0,new_ci(VALUE(LEFT(Options!$B$24,2)),$C192,$E192,$F192,2016,$I192+$J192,1,$H192,$G192*$H192,Options!$B$8)))","v":489.62701981859999},{"$f":"IF(AND(OR(Calculations!$E$2=\"Orkney Health Board\",Calculations!$E$2=\"Orkney Islands Local Authority\"),$F192=1),0,IF(AND(OR(Calculations!$E$2=\"Shetland Health Board\",Calculations!$E$2=\"Western Isles Health Board\",Calculations!$E$2=\"Shetland Islands Local Authority\",Calculations!$E$2=\"Eilean Siar Local Authority\"),OR($F192=1,$F192=5)),0,new_yllv2(VALUE(LEFT(Options!$B$24,2)),$C192,$D192,$E192,$F192,2016,$I192,1,$H192,$G192*$H192,Options!$B$8)))","v":1229.5137940212001},{"$f":"IF(AND(OR(Calculations!$E$2=\"Orkney Health Board\",Calculations!$E$2=\"Orkney Islands Local Authority\"),$F192=1),0,IF(AND(OR(Calculations!$E$2=\"Shetland Health Board\",Calculations!$E$2=\"Western Isles Health Board\",Calculations!$E$2=\"Shetland Islands Local Authority\",Calculations!$E$2=\"Eilean Siar Local Authority\"),OR($F192=1,$F192=5)),0,new_yllv2(VALUE(LEFT(Options!$B$24,2)),$C192,$D192,$E192,$F192,2016,$I192+$J192,1,$H192,$G192*$H192,Options!$B$8)))","v":1224.0660806654},{"$f":"IF(AND(OR(Calculations!$E$2=\"Orkney Health Board\",Calculations!$E$2=\"Orkney Islands Local Authority\"),$F192=1),0,IF(AND(OR(Calculations!$E$2=\"Shetland Health Board\",Calculations!$E$2=\"Western Isles Health Board\",Calculations!$E$2=\"Shetland Islands Local Authority\",Calculations!$E$2=\"Eilean Siar Local Authority\"),OR($F192=1,$F192=5)),0,hosp_count(VALUE(LEFT(Options!$B$24,2)),$C192,$E192,$F192,2016,$I192,1,$H192,$G192*$H192, Options!$B$8)))","v":3514.6176669343999},{"$f":"IF(AND(OR(Calculations!$E$2=\"Orkney Health Board\",Calculations!$E$2=\"Orkney Islands Local Authority\"),$F192=1),0,IF(AND(OR(Calculations!$E$2=\"Shetland Health Board\",Calculations!$E$2=\"Western Isles Health Board\",Calculations!$E$2=\"Shetland Islands Local Authority\",Calculations!$E$2=\"Eilean Siar Local Authority\"),OR($F192=1,$F192=5)),0,hosp_count(VALUE(LEFT(Options!$B$24,2)),$C192,$E192,$F192,2016,$I192+$J192,1,$H192,$G192*$H192, Options!$B$8)))","v":3504.4834614631},{"$f":"IF(AND(OR(Calculations!$E$2=\"Orkney Health Board\",Calculations!$E$2=\"Orkney Islands Local Authority\"),$F192=1),0,IF(AND(OR(Calculations!$E$2=\"Shetland Health Board\",Calculations!$E$2=\"Western Isles Health Board\",Calculations!$E$2=\"Shetland Islands Local Authority\",Calculations!$E$2=\"Eilean Siar Local Authority\"),OR($F192=1,$F192=5)),0,prem_mort(VALUE(LEFT(Options!$B$24,2)),$C192,$E192,$F192,2016,$I192,1,$H192,$G192*$H192,Options!$B$8)))","v":0},{"$f":"IF(AND(OR(Calculations!$E$2=\"Orkney Health Board\",Calculations!$E$2=\"Orkney Islands Local Authority\"),$F192=1),0,IF(AND(OR(Calculations!$E$2=\"Shetland Health Board\",Calculations!$E$2=\"Western Isles Health Board\",Calculations!$E$2=\"Shetland Islands Local Authority\",Calculations!$E$2=\"Eilean Siar Local Authority\"),OR($F192=1,$F192=5)),0,prem_mort(VALUE(LEFT(Options!$B$24,2)),$C192,$E192,$F192,2016,$I192+$J192,1,$H192,$G192*$H192,Options!$B$8)))","v":0},8199.5016301400465,8163.1713874391462,20498.729476845616,20407.903979083028,58596.493280000002,58427.533535563518,0,0,8199501.6301400466,8163171.3874391466,20498729.476845615,20407903.979083028,58596493.280000001,58427533.535563521,0,0,1000]
[null,"Male 0-4",2.0320822999999999,77.402082000000007,"male",4,{"$f":"HLOOKUP(Calculations!$E$2,'Prevalence Rates'!$C$3:$BC$249,'Prevalence Rates'!$BD193,FALSE)","v":0},{"$f":"HLOOKUP(Calculations!$E$2,'Population 2016'!$C$3:$BC$249,'Population 2016'!BD193,FALSE)","v":0},0,{"$f":"HLOOKUP(Results!E$4,Targeting!$C$3:$F$249,Targeting!$G193,FALSE)","v":0},{"$f":"IF(AND(OR(Calculations!$E$2=\"Orkney Health Board\",Calculations!$E$2=\"Orkney Islands Local Authority\"),$F193=1),0,IF(AND(OR(Calculations!$E$2=\"Shetland Health Board\",Calculations!$E$2=\"Western Isles Health Board\",Calculations!$E$2=\"Shetland Islands Local Authority\",Calculations!$E$2=\"Eilean Siar Local Authority\"),OR($F193=1,$F193=5)),0,new_ci(VALUE(LEFT(Options!$B$24,2)),$C193,$E193,$F193,2016,$I193,1,$H193,$G193*$H193,Options!$B$8)))","v":{"$error":"#VALUE!"}},{"$f":"IF(AND(OR(Calculations!$E$2=\"Orkney Health Board\",Calculations!$E$2=\"Orkney Islands Local Authority\"),$F193=1),0,IF(AND(OR(Calculations!$E$2=\"Shetland Health Board\",Calculations!$E$2=\"Western Isles Health Board\",Calculations!$E$2=\"Shetland Islands Local Authority\",Calculations!$E$2=\"Eilean Siar Local Authority\"),OR($F193=1,$F193=5)),0,new_ci(VALUE(LEFT(Options!$B$24,2)),$C193,$E193,$F193,2016,$I193+$J193,1,$H193,$G193*$H193,Options!$B$8)))","v":{"$error":"#VALUE!"}},{"$f":"IF(AND(OR(Calculations!$E$2=\"Orkney Health Board\",Calculations!$E$2=\"Orkney Islands Local Authority\"),$F193=1),0,IF(AND(OR(Calculations!$E$2=\"Shetland Health Board\",Calculations!$E$2=\"Western Isles Health Board\",Calculations!$E$2=\"Shetland Islands Local Authority\",Calculations!$E$2=\"Eilean Siar Local Authority\"),OR($F193=1,$F193=5)),0,new_yllv2(VALUE(LEFT(Options!$B$24,2)),$C193,$D193,$E193,$F193,2016,$I193,1,$H193,$G193*$H193,Options!$B$8)))","v":{"$error":"#VALUE!"}},{"$f":"IF(AND(OR(Calculations!$E$2=\"Orkney Health Board\",Calculations!$E$2=\"Orkney Islands Local Authority\"),$F193=1),0,IF(AND(OR(Calculations!$E$2=\"Shetland Health Board\",Calculations!$E$2=\"Western Isles Health Board\",Calculations!$E$2=\"Shetland Islands Local Authority\",Calculations!$E$2=\"Eilean Siar Local Authority\"),OR($F193=1,$F193=5)),0,new_yllv2(VALUE(LEFT(Options!$B$24,2)),$C193,$D193,$E193,$F193,2016,$I193+$J193,1,$H193,$G193*$H193,Options!$B$8)))","v":{"$error":"#VALUE!"}},{"$f":"IF(AND(OR(Calculations!$E$2=\"Orkney Health Board\",Calculations!$E$2=\"Orkney Islands Local Authority\"),$F193=1),0,IF(AND(OR(Calculations!$E$2=\"Shetland Health Board\",Calculations!$E$2=\"Western Isles Health Board\",Calculations!$E$2=\"Shetland Islands Local Authority\",Calculations!$E$2=\"Eilean Siar Local Authority\"),OR($F193=1,$F193=5)),0,hosp_count(VALUE(LEFT(Options!$B$24,2)),$C193,$E193,$F193,2016,$I193,1,$H193,$G193*$H193, Options!$B$8)))","v":{"$error":"#VALUE!"}},{"$f":"IF(AND(OR(Calculations!$E$2=\"Orkney Health Board\",Calculations!$E$2=\"Orkney Islands Local Authority\"),$F193=1),0,IF(AND(OR(Calculations!$E$2=\"Shetland Health Board\",Calculations!$E$2=\"Western Isles Health Board\",Calculations!$E$2=\"Shetland Islands Local Authority\",Calculations!$E$2=\"Eilean Siar Local Authority\"),OR($F193=1,$F193=5)),0,hosp_count(VALUE(LEFT(Options!$B$24,2)),$C193,$E193,$F193,2016,$I193+$J193,1,$H193,$G193*$H193, Options!$B$8)))","v":{"$error":"#VALUE!"}},{"$f":"IF(AND(OR(Calculations!$E$2=\"Orkney Health Board\",Calculations!$E$2=\"Orkney Islands Local Authority\"),$F193=1),0,IF(AND(OR(Calculations!$E$2=\"Shetland Health Board\",Calculations!$E$2=\"Western Isles Health Board\",Calculations!$E$2=\"Shetland Islands Local Authority\",Calculations!$E$2=\"Eilean Siar Local Authority\"),OR($F193=1,$F193=5)),0,prem_mort(VALUE(LEFT(Options!$B$24,2)),$C193,$E193,$F193,2016,$I193,1,$H193,$G193*$H193,Options!$B$8)))","v":{"$error":"#VALUE!"}},{"$f":"IF(AND(OR(Calculations!$E$2=\"Orkney Health Board\",Calculations!$E$2=\"Orkney Islands Local Authority\"),$F193=1),0,IF(AND(OR(Calculations!$E$2=\"Shetland Health Board\",Calculations!$E$2=\"Western Isles Health Board\",Calculations!$E$2=\"Shetland Islands Local Authority\",Calculations!$E$2=\"Eilean Siar Local Authority\"),OR($F193=1,$F193=5)),0,prem_mort(VALUE(LEFT(Options!$B$24,2)),$C193,$E193,$F193,2016,$I193+$J193,1,$H193,$G193*$H193,Options!$B$8)))","v":{"$error":"#VALUE!"}},{"$error":"#VALUE!"},{"$error":"#VALUE!"},{"$error":"#VALUE!"},{"$error":"#VALUE!"},{"$error":"#VALUE!"},{"$error":"#VALUE!"},{"$error":"#VALUE!"},{"$error":"#VALUE!"},{"$error":"#VALUE!"},{"$error":"#VALUE!"},{"$error":"#VALUE!"},{"$error":"#VALUE!"},{"$error":"#VALUE!"},{"$error":"#VALUE!"},{"$error":"#VALUE!"},{"$error":"#VALUE!"},5000]
[null,"Male 5-9",6.9784756000000003,77.398476000000002,"male",4,{"$f":"HLOOKUP(Calculations!$E$2,'Prevalence Rates'!$C$3:$BC$249,'Prevalence Rates'!$BD194,FALSE)","v":0},{"$f":"HLOOKUP(Calculations!$E$2,'Population 2016'!$C$3:$BC$249,'Population 2016'!BD194,FALSE)","v":0},0,{"$f":"HLOOKUP(Results!E$4,Targeting!$C$3:$F$249,Targeting!$G194,FALSE)","v":0},{"$f":"IF(AND(OR(Calculations!$E$2=\"Orkney Health Board\",Calculations!$E$2=\"Orkney Islands Local Authority\"),$F194=1),0,IF(AND(OR(Calculations!$E$2=\"Shetland Health Board\",Calculations!$E$2=\"Western Isles Health Board\",Calculations!$E$2=\"Shetland Islands Local Authority\",Calculations!$E$2=\"Eilean Siar Local Authority\"),OR($F194=1,$F194=5)),0,new_ci(VALUE(LEFT(Options!$B$24,2)),$C194,$E194,$F194,2016,$I194,1,$H194,$G194*$H194,Options!$B$8)))","v":{"$error":"#VALUE!"}},{"$f":"IF(AND(OR(Calculations!$E$2=\"Orkney Health Board\",Calculations!$E$2=\"Orkney Islands Local Authority\"),$F194=1),0,IF(AND(OR(Calculations!$E$2=\"Shetland Health Board\",Calculations!$E$2=\"Western Isles Health Board\",Calculations!$E$2=\"Shetland Islands Local Authority\",Calculations!$E$2=\"Eilean Siar Local Authority\"),OR($F194=1,$F194=5)),0,new_ci(VALUE(LEFT(Options!$B$24,2)),$C194,$E194,$F194,2016,$I194+$J194,1,$H194,$G194*$H194,Options!$B$8)))","v":{"$error":"#VALUE!"}},{"$f":"IF(AND(OR(Calculations!$E$2=\"Orkney Health Board\",Calculations!$E$2=\"Orkney Islands Local Authority\"),$F194=1),0,IF(AND(OR(Calculations!$E$2=\"Shetland Health Board\",Calculations!$E$2=\"Western Isles Health Board\",Calculations!$E$2=\"Shetland Islands Local Authority\",Calculations!$E$2=\"Eilean Siar Local Authority\"),OR($F194=1,$F194=5)),0,new_yllv2(VALUE(LEFT(Options!$B$24,2)),$C194,$D194,$E194,$F194,2016,$I194,1,$H194,$G194*$H194,Options!$B$8)))","v":{"$error":"#VALUE!"}},{"$f":"IF(AND(OR(Calculations!$E$2=\"Orkney Health Board\",Calculations!$E$2=\"Orkney Islands Local Authority\"),$F194=1),0,IF(AND(OR(Calculations!$E$2=\"Shetland Health Board\",Calculations!$E$2=\"Western Isles Health Board\",Calculations!$E$2=\"Shetland Islands Local Authority\",Calculations!$E$2=\"Eilean Siar Local Authority\"),OR($F194=1,$F194=5)),0,new_yllv2(VALUE(LEFT(Options!$B$24,2)),$C194,$D194,$E194,$F194,2016,$I194+$J194,1,$H194,$G194*$H194,Options!$B$8)))","v":{"$error":"#VALUE!"}},{"$f":"IF(AND(OR(Calculations!$E$2=\"Orkney Health Board\",Calculations!$E$2=\"Orkney Islands Local Authority\"),$F194=1),0,IF(AND(OR(Calculations!$E$2=\"Shetland Health Board\",Calculations!$E$2=\"Western Isles Health Board\",Calculations!$E$2=\"Shetland Islands Local Authority\",Calculations!$E$2=\"Eilean Siar Local Authority\"),OR($F194=1,$F194=5)),0,hosp_count(VALUE(LEFT(Options!$B$24,2)),$C194,$E194,$F194,2016,$I194,1,$H194,$G194*$H194, Options!$B$8)))","v":{"$error":"#VALUE!"}},{"$f":"IF(AND(OR(Calculations!$E$2=\"Orkney Health Board\",Calculations!$E$2=\"Orkney Islands Local Authority\"),$F194=1),0,IF(AND(OR(Calculations!$E$2=\"Shetland Health Board\",Calculations!$E$2=\"Western Isles Health Board\",Calculations!$E$2=\"Shetland Islands Local Authority\",Calculations!$E$2=\"Eilean Siar Local Authority\"),OR($F194=1,$F194=5)),0,hosp_count(VALUE(LEFT(Options!$B$24,2)),$C194,$E194,$F194,2016,$I194+$J194,1,$H194,$G194*$H194, Options!$B$8)))","v":{"$error":"#VALUE!"}},{"$f":"IF(AND(OR(Calculations!$E$2=\"Orkney Health Board\",Calculations!$E$2=\"Orkney Islands Local Authority\"),$F194=1),0,IF(AND(OR(Calculations!$E$2=\"Shetland Health Board\",Calculations!$E$2=\"Western Isles Health Board\",Calculations!$E$2=\"Shetland Islands Local Authority\",Calculations!$E$2=\"Eilean Siar Local Authority\"),OR($F194=1,$F194=5)),0,prem_mort(VALUE(LEFT(Options!$B$24,2)),$C194,$E194,$F194,2016,$I194,1,$H194,$G194*$H194,Options!$B$8)))","v":{"$error":"#VALUE!"}},{"$f":"IF(AND(OR(Calculations!$E$2=\"Orkney Health Board\",Calculations!$E$2=\"Orkney Islands Local Authority\"),$F194=1),0,IF(AND(OR(Calculations!$E$2=\"Shetland Health Board\",Calculations!$E$2=\"Western Isles Health Board\",Calculations!$E$2=\"Shetland Islands Local Authority\",Calculations!$E$2=\"Eilean Siar Local Authority\"),OR($F194=1,$F194=5)),0,prem_mort(VALUE(LEFT(Options!$B$24,2)),$C194,$E194,$F194,2016,$I194+$J194,1,$H194,$G194*$H194,Options!$B$8)))","v":{"$error":"#VALUE!"}},{"$error":"#VALUE!"},{"$error":"#VALUE!"},{"$error":"#VALUE!"},{"$error":"#VALUE!"},{"$error":"#VALUE!"},{"$error":"#VALUE!"},{"$error":"#VALUE!"},{"$error":"#VALUE!"},{"$error":"#VALUE!"},{"$error":"#VALUE!"},{"$error":"#VALUE!"},{"$error":"#VALUE!"},{"$error":"#VALUE!"},{"$error":"#VALUE!"},{"$error":"#VALUE!"},{"$error":"#VALUE!"},5500]
[null,"Male 10-15",12.471144000000001,77.921140000000008,"male",4,{"$f":"HLOOKUP(Calculations!$E$2,'Prevalence Rates'!$C$3:$BC$249,'Prevalence Rates'!$BD195,FALSE)","v":0},{"$f":"HLOOKUP(Calculations!$E$2,'Population 2016'!$C$3:$BC$249,'Population 2016'!BD195,FALSE)","v":0},0,{"$f":"HLOOKUP(Results!E$4,Targeting!$C$3:$F$249,Targeting!$G195,FALSE)","v":0},{"$f":"IF(AND(OR(Calculations!$E$2=\"Orkney Health Board\",Calculations!$E$2=\"Orkney Islands Local Authority\"),$F195=1),0,IF(AND(OR(Calculations!$E$2=\"Shetland Health Board\",Calculations!$E$2=\"Western Isles Health Board\",Calculations!$E$2=\"Shetland Islands Local Authority\",Calculations!$E$2=\"Eilean Siar Local Authority\"),OR($F195=1,$F195=5)),0,new_ci(VALUE(LEFT(Options!$B$24,2)),$C195,$E195,$F195,2016,$I195,1,$H195,$G195*$H195,Options!$B$8)))","v":{"$error":"#VALUE!"}},{"$f":"IF(AND(OR(Calculations!$E$2=\"Orkney Health Board\",Calculations!$E$2=\"Orkney Islands Local Authority\"),$F195=1),0,IF(AND(OR(Calculations!$E$2=\"Shetland Health Board\",Calculations!$E$2=\"Western Isles Health Board\",Calculations!$E$2=\"Shetland Islands Local Authority\",Calculations!$E$2=\"Eilean Siar Local Authority\"),OR($F195=1,$F195=5)),0,new_ci(VALUE(LEFT(Options!$B$24,2)),$C195,$E195,$F195,2016,$I195+$J195,1,$H195,$G195*$H195,Options!$B$8)))","v":{"$error":"#VALUE!"}},{"$f":"IF(AND(OR(Calculations!$E$2=\"Orkney Health Board\",Calculations!$E$2=\"Orkney Islands Local Authority\"),$F195=1),0,IF(AND(OR(Calculations!$E$2=\"Shetland Health Board\",Calculations!$E$2=\"Western Isles Health Board\",Calculations!$E$2=\"Shetland Islands Local Authority\",Calculations!$E$2=\"Eilean Siar Local Authority\"),OR($F195=1,$F195=5)),0,new_yllv2(VALUE(LEFT(Options!$B$24,2)),$C195,$D195,$E195,$F195,2016,$I195,1,$H195,$G195*$H195,Options!$B$8)))","v":{"$error":"#VALUE!"}},{"$f":"IF(AND(OR(Calculations!$E$2=\"Orkney Health Board\",Calculations!$E$2=\"Orkney Islands Local Authority\"),$F195=1),0,IF(AND(OR(Calculations!$E$2=\"Shetland Health Board\",Calculations!$E$2=\"Western Isles Health Board\",Calculations!$E$2=\"Shetland Islands Local Authority\",Calculations!$E$2=\"Eilean Siar Local Authority\"),OR($F195=1,$F195=5)),0,new_yllv2(VALUE(LEFT(Options!$B$24,2)),$C195,$D195,$E195,$F195,2016,$I195+$J195,1,$H195,$G195*$H195,Options!$B$8)))","v":{"$error":"#VALUE!"}},{"$f":"IF(AND(OR(Calculations!$E$2=\"Orkney Health Board\",Calculations!$E$2=\"Orkney Islands Local Authority\"),$F195=1),0,IF(AND(OR(Calculations!$E$2=\"Shetland Health Board\",Calculations!$E$2=\"Western Isles Health Board\",Calculations!$E$2=\"Shetland Islands Local Authority\",Calculations!$E$2=\"Eilean Siar Local Authority\"),OR($F195=1,$F195=5)),0,hosp_count(VALUE(LEFT(Options!$B$24,2)),$C195,$E195,$F195,2016,$I195,1,$H195,$G195*$H195, Options!$B$8)))","v":{"$error":"#VALUE!"}},{"$f":"IF(AND(OR(Calculations!$E$2=\"Orkney Health Board\",Calculations!$E$2=\"Orkney Islands Local Authority\"),$F195=1),0,IF(AND(OR(Calculations!$E$2=\"Shetland Health Board\",Calculations!$E$2=\"Western Isles Health Board\",Calculations!$E$2=\"Shetland Islands Local Authority\",Calculations!$E$2=\"Eilean Siar Local Authority\"),OR($F195=1,$F195=5)),0,hosp_count(VALUE(LEFT(Options!$B$24,2)),$C195,$E195,$F195,2016,$I195+$J195,1,$H195,$G195*$H195, Options!$B$8)))","v":{"$error":"#VALUE!"}},{"$f":"IF(AND(OR(Calculations!$E$2=\"Orkney Health Board\",Calculations!$E$2=\"Orkney Islands Local Authority\"),$F195=1),0,IF(AND(OR(Calculations!$E$2=\"Shetland Health Board\",Calculations!$E$2=\"Western Isles Health Board\",Calculations!$E$2=\"Shetland Islands Local Authority\",Calculations!$E$2=\"Eilean Siar Local Authority\"),OR($F195=1,$F195=5)),0,prem_mort(VALUE(LEFT(Options!$B$24,2)),$C195,$E195,$F195,2016,$I195,1,$H195,$G195*$H195,Options!$B$8)))","v":{"$error":"#VALUE!"}},{"$f":"IF(AND(OR(Calculations!$E$2=\"Orkney Health Board\",Calculations!$E$2=\"Orkney Islands Local Authority\"),$F195=1),0,IF(AND(OR(Calculations!$E$2=\"Shetland Health Board\",Calculations!$E$2=\"Western Isles Health Board\",Calculations!$E$2=\"Shetland Islands Local Authority\",Calculations!$E$2=\"Eilean Siar Local Authority\"),OR($F195=1,$F195=5)),0,prem_mort(VALUE(LEFT(Options!$B$24,2)),$C195,$E195,$F195,2016,$I195+$J195,1,$H195,$G195*$H195,Options!$B$8)))","v":{"$error":"#VALUE!"}},{"$error":"#VALUE!"},{"$error":"#VALUE!"},{"$error":"#VALUE!"},{"$error":"#VALUE!"},{"$error":"#VALUE!"},{"$error":"#VALUE!"},{"$error":"#VALUE!"},{"$error":"#VALUE!"},{"$error":"#VALUE!"},{"$error":"#VALUE!"},{"$error":"#VALUE!"},{"$error":"#VALUE!"},{"$error":"#VALUE!"},{"$error":"#VALUE!"},{"$error":"#VALUE!"},{"$error":"#VALUE!"},6600]
[null,"Male 16-19",17.556318000000001,77.07632000000001,"male",4,{"$f":"HLOOKUP(Calculations!$E$2,'Prevalence Rates'!$C$3:$BC$249,'Prevalence Rates'!$BD196,FALSE)","v":0.2054},{"$f":"HLOOKUP(Calculations!$E$2,'Population 2016'!$C$3:$BC$249,'Population 2016'!BD196,FALSE)","v":24732},0,{"$f":"HLOOKUP(Results!E$4,Targeting!$C$3:$F$249,Targeting!$G196,FALSE)","v":3811},{"$f":"IF(AND(OR(Calculations!$E$2=\"Orkney Health Board\",Calculations!$E$2=\"Orkney Islands Local Authority\"),$F196=1),0,IF(AND(OR(Calculations!$E$2=\"Shetland Health Board\",Calculations!$E$2=\"Western Isles Health Board\",Calculations!$E$2=\"Shetland Islands Local Authority\",Calculations!$E$2=\"Eilean Siar Local Authority\"),OR($F196=1,$F196=5)),0,new_ci(VALUE(LEFT(Options!$B$24,2)),$C196,$E196,$F196,2016,$I196,1,$H196,$G196*$H196,Options!$B$8)))","v":8.3961033542999992},{"$f":"IF(AND(OR(Calculations!$E$2=\"Orkney Health Board\",Calculations!$E$2=\"Orkney Islands Local Authority\"),$F196=1),0,IF(AND(OR(Calculations!$E$2=\"Shetland Health Board\",Calculations!$E$2=\"Western Isles Health Board\",Calculations!$E$2=\"Shetland Islands Local Authority\",Calculations!$E$2=\"Eilean Siar Local Authority\"),OR($F196=1,$F196=5)),0,new_ci(VALUE(LEFT(Options!$B$24,2)),$C196,$E196,$F196,2016,$I196+$J196,1,$H196,$G196*$H196,Options!$B$8)))","v":8.3704408425000008},{"$f":"IF(AND(OR(Calculations!$E$2=\"Orkney Health Board\",Calculations!$E$2=\"Orkney Islands Local Authority\"),$F196=1),0,IF(AND(OR(Calculations!$E$2=\"Shetland Health Board\",Calculations!$E$2=\"Western Isles Health Board\",Calculations!$E$2=\"Shetland Islands Local Authority\",Calculations!$E$2=\"Eilean Siar Local Authority\"),OR($F196=1,$F196=5)),0,new_yllv2(VALUE(LEFT(Options!$B$24,2)),$C196,$D196,$E196,$F196,2016,$I196,1,$H196,$G196*$H196,Options!$B$8)))","v":491.33998508579998},{"$f":"IF(AND(OR(Calculations!$E$2=\"Orkney Health Board\",Calculations!$E$2=\"Orkney Islands Local Authority\"),$F196=1),0,IF(AND(OR(Calculations!$E$2=\"Shetland Health Board\",Calculations!$E$2=\"Western Isles Health Board\",Calculations!$E$2=\"Shetland Islands Local Authority\",Calculations!$E$2=\"Eilean Siar Local Authority\"),OR($F196=1,$F196=5)),0,new_yllv2(VALUE(LEFT(Options!$B$24,2)),$C196,$D196,$E196,$F196,2016,$I196+$J196,1,$H196,$G196*$H196,Options!$B$8)))","v":489.83821484399999},{"$f":"IF(AND(OR(Calculations!$E$2=\"Orkney Health Board\",Calculations!$E$2=\"Orkney Islands Local Authority\"),$F196=1),0,IF(AND(OR(Calculations!$E$2=\"Shetland Health Board\",Calculations!$E$2=\"Western Isles Health Board\",Calculations!$E$2=\"Shetland Islands Local Authority\",Calculations!$E$2=\"Eilean Siar Local Authority\"),OR($F196=1,$F196=5)),0,hosp_count(VALUE(LEFT(Options!$B$24,2)),$C196,$E196,$F196,2016,$I196,1,$H196,$G196*$H196, Options!$B$8)))","v":1479.5226009359999},{"$f":"IF(AND(OR(Calculations!$E$2=\"Orkney Health Board\",Calculations!$E$2=\"Orkney Islands Local Authority\"),$F196=1),0,IF(AND(OR(Calculations!$E$2=\"Shetland Health Board\",Calculations!$E$2=\"Western Isles Health Board\",Calculations!$E$2=\"Shetland Islands Local Authority\",Calculations!$E$2=\"Eilean Siar Local Authority\"),OR($F196=1,$F196=5)),0,hosp_count(VALUE(LEFT(Options!$B$24,2)),$C196,$E196,$F196,2016,$I196+$J196,1,$H196,$G196*$H196, Options!$B$8)))","v":1476.6468663459},{"$f":"IF(AND(OR(Calculations!$E$2=\"Orkney Health Board\",Calculations!$E$2=\"Orkney Islands Local Authority\"),$F196=1),0,IF(AND(OR(Calculations!$E$2=\"Shetland Health Board\",Calculations!$E$2=\"Western Isles Health Board\",Calculations!$E$2=\"Shetland Islands Local Authority\",Calculations!$E$2=\"Eilean Siar Local Authority\"),OR($F196=1,$F196=5)),0,prem_mort(VALUE(LEFT(Options!$B$24,2)),$C196,$E196,$F196,2016,$I196,1,$H196,$G196*$H196,Options!$B$8)))","v":8.3961033542999992},{"$f":"IF(AND(OR(Calculations!$E$2=\"Orkney Health Board\",Calculations!$E$2=\"Orkney Islands Local Authority\"),$F196=1),0,IF(AND(OR(Calculations!$E$2=\"Shetland Health Board\",Calculations!$E$2=\"Western Isles Health Board\",Calculations!$E$2=\"Shetland Islands Local Authority\",Calculations!$E$2=\"Eilean Siar Local Authority\"),OR($F196=1,$F196=5)),0,prem_mort(VALUE(LEFT(Options!$B$24,2)),$C196,$E196,$F196,2016,$I196+$J196,1,$H196,$G196*$H196,Options!$B$8)))","v":8.3704408425000008},33.948339617903926,33.844577237991267,1986.6569023362445,1980.5847276564773,5982.2197999999989,5970.5922139167878,33.948339617903926,33.844577237991267,149372.69431877727,148916.13984716157,8741290.370279476,8714572.8016884997,26321767.119999994,26270605.741233867,149372.69431877727,148916.13984716157,4400]
[null,"Male 20-24",22.054632000000002,77.704629999999995,"male",4,{"$f":"HLOOKUP(Calculations!$E$2,'Prevalence Rates'!$C$3:$BC$249,'Prevalence Rates'!$BD197,FALSE)","v":0.2054},{"$f":"HLOOKUP(Calculations!$E$2,'Population 2016'!$C$3:$BC$249,'Population 2016'!BD197,FALSE)","v":35228},0,{"$f":"HLOOKUP(Results!E$4,Targeting!$C$3:$F$249,Targeting!$G197,FALSE)","v":5428},{"$f":"IF(AND(OR(Calculations!$E$2=\"Orkney Health Board\",Calculations!$E$2=\"Orkney Islands Local Authority\"),$F197=1),0,IF(AND(OR(Calculations!$E$2=\"Shetland Health Board\",Calculations!$E$2=\"Western Isles Health Board\",Calculations!$E$2=\"Shetland Islands Local Authority\",Calculations!$E$2=\"Eilean Siar Local Authority\"),OR($F197=1,$F197=5)),0,new_ci(VALUE(LEFT(Options!$B$24,2)),$C197,$E197,$F197,2016,$I197,1,$H197,$G197*$H197,Options!$B$8)))","v":16.794447352599999},{"$f":"IF(AND(OR(Calculations!$E$2=\"Orkney Health Board\",Calculations!$E$2=\"Orkney Islands Local Authority\"),$F197=1),0,IF(AND(OR(Calculations!$E$2=\"Shetland Health Board\",Calculations!$E$2=\"Western Isles Health Board\",Calculations!$E$2=\"Shetland Islands Local Authority\",Calculations!$E$2=\"Eilean Siar Local Authority\"),OR($F197=1,$F197=5)),0,new_ci(VALUE(LEFT(Options!$B$24,2)),$C197,$E197,$F197,2016,$I197+$J197,1,$H197,$G197*$H197,Options!$B$8)))","v":16.743126698200001},{"$f":"IF(AND(OR(Calculations!$E$2=\"Orkney Health Board\",Calculations!$E$2=\"Orkney Islands Local Authority\"),$F197=1),0,IF(AND(OR(Calculations!$E$2=\"Shetland Health Board\",Calculations!$E$2=\"Western Isles Health Board\",Calculations!$E$2=\"Shetland Islands Local Authority\",Calculations!$E$2=\"Eilean Siar Local Authority\"),OR($F197=1,$F197=5)),0,new_yllv2(VALUE(LEFT(Options!$B$24,2)),$C197,$D197,$E197,$F197,2016,$I197,1,$H197,$G197*$H197,Options!$B$8)))","v":917.81651423070002},{"$f":"IF(AND(OR(Calculations!$E$2=\"Orkney Health Board\",Calculations!$E$2=\"Orkney Islands Local Authority\"),$F197=1),0,IF(AND(OR(Calculations!$E$2=\"Shetland Health Board\",Calculations!$E$2=\"Western Isles Health Board\",Calculations!$E$2=\"Shetland Islands Local Authority\",Calculations!$E$2=\"Eilean Siar Local Authority\"),OR($F197=1,$F197=5)),0,new_yllv2(VALUE(LEFT(Options!$B$24,2)),$C197,$D197,$E197,$F197,2016,$I197+$J197,1,$H197,$G197*$H197,Options!$B$8)))","v":915.01184057039995},{"$f":"IF(AND(OR(Calculations!$E$2=\"Orkney Health Board\",Calculations!$E$2=\"Orkney Islands Local Authority\"),$F197=1),0,IF(AND(OR(Calculations!$E$2=\"Shetland Health Board\",Calculations!$E$2=\"Western Isles Health Board\",Calculations!$E$2=\"Shetland Islands Local Authority\",Calculations!$E$2=\"Eilean Siar Local Authority\"),OR($F197=1,$F197=5)),0,hosp_count(VALUE(LEFT(Options!$B$24,2)),$C197,$E197,$F197,2016,$I197,1,$H197,$G197*$H197, Options!$B$8)))","v":2472.2563462364001},{"$f":"IF(AND(OR(Calculations!$E$2=\"Orkney Health Board\",Calculations!$E$2=\"Orkney Islands Local Authority\"),$F197=1),0,IF(AND(OR(Calculations!$E$2=\"Shetland Health Board\",Calculations!$E$2=\"Western Isles Health Board\",Calculations!$E$2=\"Shetland Islands Local Authority\",Calculations!$E$2=\"Eilean Siar Local Authority\"),OR($F197=1,$F197=5)),0,hosp_count(VALUE(LEFT(Options!$B$24,2)),$C197,$E197,$F197,2016,$I197+$J197,1,$H197,$G197*$H197, Options!$B$8)))","v":2467.4513525414},{"$f":"IF(AND(OR(Calculations!$E$2=\"Orkney Health Board\",Calculations!$E$2=\"Orkney Islands Local Authority\"),$F197=1),0,IF(AND(OR(Calculations!$E$2=\"Shetland Health Board\",Calculations!$E$2=\"Western Isles Health Board\",Calculations!$E$2=\"Shetland Islands Local Authority\",Calculations!$E$2=\"Eilean Siar Local Authority\"),OR($F197=1,$F197=5)),0,prem_mort(VALUE(LEFT(Options!$B$24,2)),$C197,$E197,$F197,2016,$I197,1,$H197,$G197*$H197,Options!$B$8)))","v":16.794447352599999},{"$f":"IF(AND(OR(Calculations!$E$2=\"Orkney Health Board\",Calculations!$E$2=\"Orkney Islands Local Authority\"),$F197=1),0,IF(AND(OR(Calculations!$E$2=\"Shetland Health Board\",Calculations!$E$2=\"Western Isles Health Board\",Calculations!$E$2=\"Shetland Islands Local Authority\",Calculations!$E$2=\"Eilean Siar Local Authority\"),OR($F197=1,$F197=5)),0,prem_mort(VALUE(LEFT(Options!$B$24,2)),$C197,$E197,$F197,2016,$I197+$J197,1,$H197,$G197*$H197,Options!$B$8)))","v":16.743126698200001},47.673575998069715,47.527894567389581,2605.3608329473714,2597.3993430521173,7017.8731299999999,7004.233429491881,47.673575998069715,47.527894567389581,286041.45598841831,285167.36740433751,15632164.997684227,15584396.058312703,42107238.780000001,42025400.576951288,286041.45598841831,285167.36740433751,6000]
[null,"Male 25-29",26.959762999999999,77.789760000000001,"male",4,{"$f":"HLOOKUP(Calculations!$E$2,'Prevalence Rates'!$C$3:$BC$249,'Prevalence Rates'!$BD198,FALSE)","v":0.23650000000000002},{"$f":"HLOOKUP(Calculations!$E$2,'Population 2016'!$C$3:$BC$249,'Population 2016'!BD198,FALSE)","v":33718},0,{"$f":"HLOOKUP(Results!E$4,Targeting!$C$3:$F$249,Targeting!$G198,FALSE)","v":5195},{"$f":"IF(AND(OR(Calculations!$E$2=\"Orkney Health Board\",Calculations!$E$2=\"Orkney Islands Local Authority\"),$F198=1),0,IF(AND(OR(Calculations!$E$2=\"Shetland Health Board\",Calculations!$E$2=\"Western Isles Health Board\",Calculations!$E$2=\"Shetland Islands Local Authority\",Calculations!$E$2=\"Eilean Siar Local Authority\"),OR($F198=1,$F198=5)),0,new_ci(VALUE(LEFT(Options!$B$24,2)),$C198,$E198,$F198,2016,$I198,1,$H198,$G198*$H198,Options!$B$8)))","v":23.276548504499999},{"$f":"IF(AND(OR(Calculations!$E$2=\"Orkney Health Board\",Calculations!$E$2=\"Orkney Islands Local Authority\"),$F198=1),0,IF(AND(OR(Calculations!$E$2=\"Shetland Health Board\",Calculations!$E$2=\"Western Isles Health Board\",Calculations!$E$2=\"Shetland Islands Local Authority\",Calculations!$E$2=\"Eilean Siar Local Authority\"),OR($F198=1,$F198=5)),0,new_ci(VALUE(LEFT(Options!$B$24,2)),$C198,$E198,$F198,2016,$I198+$J198,1,$H198,$G198*$H198,Options!$B$8)))","v":23.2070788865},{"$f":"IF(AND(OR(Calculations!$E$2=\"Orkney Health Board\",Calculations!$E$2=\"Orkney Islands Local Authority\"),$F198=1),0,IF(AND(OR(Calculations!$E$2=\"Shetland Health Board\",Calculations!$E$2=\"Western Isles Health Board\",Calculations!$E$2=\"Shetland Islands Local Authority\",Calculations!$E$2=\"Eilean Siar Local Authority\"),OR($F198=1,$F198=5)),0,new_yllv2(VALUE(LEFT(Options!$B$24,2)),$C198,$D198,$E198,$F198,2016,$I198,1,$H198,$G198*$H198,Options!$B$8)))","v":1159.8703421496},{"$f":"IF(AND(OR(Calculations!$E$2=\"Orkney Health Board\",Calculations!$E$2=\"Orkney Islands Local Authority\"),$F198=1),0,IF(AND(OR(Calculations!$E$2=\"Shetland Health Board\",Calculations!$E$2=\"Western Isles Health Board\",Calculations!$E$2=\"Shetland Islands Local Authority\",Calculations!$E$2=\"Eilean Siar Local Authority\"),OR($F198=1,$F198=5)),0,new_yllv2(VALUE(LEFT(Options!$B$24,2)),$C198,$D198,$E198,$F198,2016,$I198+$J198,1,$H198,$G198*$H198,Options!$B$8)))","v":1156.4086712931},{"$f":"IF(AND(OR(Calculations!$E$2=\"Orkney Health Board\",Calculations!$E$2=\"Orkney Islands Local Authority\"),$F198=1),0,IF(AND(OR(Calculations!$E$2=\"Shetland Health Board\",Calculations!$E$2=\"Western Isles Health Board\",Calculations!$E$2=\"Shetland Islands Local Authority\",Calculations!$E$2=\"Eilean Siar Local Authority\"),OR($F198=1,$F198=5)),0,hosp_count(VALUE(LEFT(Options!$B$24,2)),$C198,$E198,$F198,2016,$I198,1,$H198,$G198*$H198, Options!$B$8)))","v":2816.3180454054},{"$f":"IF(AND(OR(Calculations!$E$2=\"Orkney Health Board\",Calculations!$E$2=\"Orkney Islands Local Authority\"),$F198=1),0,IF(AND(OR(Calculations!$E$2=\"Shetland Health Board\",Calculations!$E$2=\"Western Isles Health Board\",Calculations!$E$2=\"Shetland Islands Local Authority\",Calculations!$E$2=\"Eilean Siar Local Authority\"),OR($F198=1,$F198=5)),0,hosp_count(VALUE(LEFT(Options!$B$24,2)),$C198,$E198,$F198,2016,$I198+$J198,1,$H198,$G198*$H198, Options!$B$8)))","v":2810.9180750736},{"$f":"IF(AND(OR(Calculations!$E$2=\"Orkney Health Board\",Calculations!$E$2=\"Orkney Islands Local Authority\"),$F198=1),0,IF(AND(OR(Calculations!$E$2=\"Shetland Health Board\",Calculations!$E$2=\"Western Isles Health Board\",Calculations!$E$2=\"Shetland Islands Local Authority\",Calculations!$E$2=\"Eilean Siar Local Authority\"),OR($F198=1,$F198=5)),0,prem_mort(VALUE(LEFT(Options!$B$24,2)),$C198,$E198,$F198,2016,$I198,1,$H198,$G198*$H198,Options!$B$8)))","v":23.276548504499999},{"$f":"IF(AND(OR(Calculations!$E$2=\"Orkney Health Board\",Calculations!$E$2=\"Orkney Islands Local Authority\"),$F198=1),0,IF(AND(OR(Calculations!$E$2=\"Shetland Health Board\",Calculations!$E$2=\"Western Isles Health Board\",Calculations!$E$2=\"Shetland Islands Local Authority\",Calculations!$E$2=\"Eilean Siar Local Authority\"),OR($F198=1,$F198=5)),0,prem_mort(VALUE(LEFT(Options!$B$24,2)),$C198,$E198,$F198,2016,$I198+$J198,1,$H198,$G198*$H198,Options!$B$8)))","v":23.2070788865},69.03300463995491,68.82697338661842,3439.9144141099709,3429.6478773743993,8352.5655299999999,8336.5504332214241,69.03300463995491,68.82697338661842,414198.02783972945,412961.84031971049,20639486.484659825,20577887.264246397,50115393.18,50019302.599328548,414198.02783972945,412961.84031971049,6000]
[null,"Male 30-34",31.981521999999998,78.061520000000002,"male",4,{"$f":"HLOOKUP(Calculations!$E$2,'Prevalence Rates'!$C$3:$BC$249,'Prevalence Rates'!$BD199,FALSE)","v":0.23650000000000002},{"$f":"HLOOKUP(Calculations!$E$2,'Population 2016'!$C$3:$BC$249,'Population 2016'!BD199,FALSE)","v":32346},0,{"$f":"HLOOKUP(Results!E$4,Targeting!$C$3:$F$249,Targeting!$G199,FALSE)","v":4984},{"$f":"IF(AND(OR(Calculations!$E$2=\"Orkney Health Board\",Calculations!$E$2=\"Orkney Islands Local Authority\"),$F199=1),0,IF(AND(OR(Calculations!$E$2=\"Shetland Health Board\",Calculations!$E$2=\"Western Isles Health Board\",Calculations!$E$2=\"Shetland Islands Local Authority\",Calculations!$E$2=\"Eilean Siar Local Authority\"),OR($F199=1,$F199=5)),0,new_ci(VALUE(LEFT(Options!$B$24,2)),$C199,$E199,$F199,2016,$I199,1,$H199,$G199*$H199,Options!$B$8)))","v":32.617901963900003},{"$f":"IF(AND(OR(Calculations!$E$2=\"Orkney Health Board\",Calculations!$E$2=\"Orkney Islands Local Authority\"),$F199=1),0,IF(AND(OR(Calculations!$E$2=\"Shetland Health Board\",Calculations!$E$2=\"Western Isles Health Board\",Calculations!$E$2=\"Shetland Islands Local Authority\",Calculations!$E$2=\"Eilean Siar Local Authority\"),OR($F199=1,$F199=5)),0,new_ci(VALUE(LEFT(Options!$B$24,2)),$C199,$E199,$F199,2016,$I199+$J199,1,$H199,$G199*$H199,Options!$B$8)))","v":32.520575907100003},{"$f":"IF(AND(OR(Calculations!$E$2=\"Orkney Health Board\",Calculations!$E$2=\"Orkney Islands Local Authority\"),$F199=1),0,IF(AND(OR(Calculations!$E$2=\"Shetland Health Board\",Calculations!$E$2=\"Western Isles Health Board\",Calculations!$E$2=\"Shetland Islands Local Authority\",Calculations!$E$2=\"Eilean Siar Local Authority\"),OR($F199=1,$F199=5)),0,new_yllv2(VALUE(LEFT(Options!$B$24,2)),$C199,$D199,$E199,$F199,2016,$I199,1,$H199,$G199*$H199,Options!$B$8)))","v":1470.4149552967999},{"$f":"IF(AND(OR(Calculations!$E$2=\"Orkney Health Board\",Calculations!$E$2=\"Orkney Islands Local Authority\"),$F199=1),0,IF(AND(OR(Calculations!$E$2=\"Shetland Health Board\",Calculations!$E$2=\"Western Isles Health Board\",Calculations!$E$2=\"Shetland Islands Local Authority\",Calculations!$E$2=\"Eilean Siar Local Authority\"),OR($F199=1,$F199=5)),0,new_yllv2(VALUE(LEFT(Options!$B$24,2)),$C199,$D199,$E199,$F199,2016,$I199+$J199,1,$H199,$G199*$H199,Options!$B$8)))","v":1466.0274968509},{"$f":"IF(AND(OR(Calculations!$E$2=\"Orkney Health Board\",Calculations!$E$2=\"Orkney Islands Local Authority\"),$F199=1),0,IF(AND(OR(Calculations!$E$2=\"Shetland Health Board\",Calculations!$E$2=\"Western Isles Health Board\",Calculations!$E$2=\"Shetland Islands Local Authority\",Calculations!$E$2=\"Eilean Siar Local Authority\"),OR($F199=1,$F199=5)),0,hosp_count(VALUE(LEFT(Options!$B$24,2)),$C199,$E199,$F199,2016,$I199,1,$H199,$G199*$H199, Options!$B$8)))","v":3228.8860305809999},{"$f":"IF(AND(OR(Calculations!$E$2=\"Orkney Health Board\",Calculations!$E$2=\"Orkney Islands Local Authority\"),$F199=1),0,IF(AND(OR(Calculations!$E$2=\"Shetland Health Board\",Calculations!$E$2=\"Western Isles Health Board\",Calculations!$E$2=\"Shetland Islands Local Authority\",Calculations!$E$2=\"Eilean Siar Local Authority\"),OR($F199=1,$F199=5)),0,hosp_count(VALUE(LEFT(Options!$B$24,2)),$C199,$E199,$F199,2016,$I199+$J199,1,$H199,$G199*$H199, Options!$B$8)))","v":3222.6945276751999},{"$f":"IF(AND(OR(Calculations!$E$2=\"Orkney Health Board\",Calculations!$E$2=\"Orkney Islands Local Authority\"),$F199=1),0,IF(AND(OR(Calculations!$E$2=\"Shetland Health Board\",Calculations!$E$2=\"Western Isles Health Board\",Calculations!$E$2=\"Shetland Islands Local Authority\",Calculations!$E$2=\"Eilean Siar Local Authority\"),OR($F199=1,$F199=5)),0,prem_mort(VALUE(LEFT(Options!$B$24,2)),$C199,$E199,$F199,2016,$I199,1,$H199,$G199*$H199,Options!$B$8)))","v":32.617901963900003},{"$f":"IF(AND(OR(Calculations!$E$2=\"Orkney Health Board\",Calculations!$E$2=\"Orkney Islands Local Authority\"),$F199=1),0,IF(AND(OR(Calculations!$E$2=\"Shetland Health Board\",Calculations!$E$2=\"Western Isles Health Board\",Calculations!$E$2=\"Shetland Islands Local Authority\",Calculations!$E$2=\"Eilean Siar Local Authority\"),OR($F199=1,$F199=5)),0,prem_mort(VALUE(LEFT(Options!$B$24,2)),$C199,$E199,$F199,2016,$I199+$J199,1,$H199,$G199*$H199,Options!$B$8)))","v":32.520575907100003},100.84060459995054,100.5397140515056,4545.8942536845352,4532.3301083623946,9982.3348499999993,9963.1933706646887,100.84060459995054,100.5397140515056,655463.92989967845,653508.14133478643,29548312.648949478,29460145.704355564,64885176.524999999,64760756.909320474,655463.92989967845,653508.14133478643,6500]
[null,"Male 35-39",36.926009999999998,78.336009999999987,"male",4,{"$f":"HLOOKUP(Calculations!$E$2,'Prevalence Rates'!$C$3:$BC$249,'Prevalence Rates'!$BD200,FALSE)","v":0.20830000000000001},{"$f":"HLOOKUP(Calculations!$E$2,'Population 2016'!$C$3:$BC$249,'Population 2016'!BD200,FALSE)","v":32021},0,{"$f":"HLOOKUP(Results!E$4,Targeting!$C$3:$F$249,Targeting!$G200,FALSE)","v":4934},{"$f":"IF(AND(OR(Calculations!$E$2=\"Orkney Health Board\",Calculations!$E$2=\"Orkney Islands Local Authority\"),$F200=1),0,IF(AND(OR(Calculations!$E$2=\"Shetland Health Board\",Calculations!$E$2=\"Western Isles Health Board\",Calculations!$E$2=\"Shetland Islands Local Authority\",Calculations!$E$2=\"Eilean Siar Local Authority\"),OR($F200=1,$F200=5)),0,new_ci(VALUE(LEFT(Options!$B$24,2)),$C200,$E200,$F200,2016,$I200,1,$H200,$G200*$H200,Options!$B$8)))","v":46.890394556499999},{"$f":"IF(AND(OR(Calculations!$E$2=\"Orkney Health Board\",Calculations!$E$2=\"Orkney Islands Local Authority\"),$F200=1),0,IF(AND(OR(Calculations!$E$2=\"Shetland Health Board\",Calculations!$E$2=\"Western Isles Health Board\",Calculations!$E$2=\"Shetland Islands Local Authority\",Calculations!$E$2=\"Eilean Siar Local Authority\"),OR($F200=1,$F200=5)),0,new_ci(VALUE(LEFT(Options!$B$24,2)),$C200,$E200,$F200,2016,$I200+$J200,1,$H200,$G200*$H200,Options!$B$8)))","v":46.747562657499998},{"$f":"IF(AND(OR(Calculations!$E$2=\"Orkney Health Board\",Calculations!$E$2=\"Orkney Islands Local Authority\"),$F200=1),0,IF(AND(OR(Calculations!$E$2=\"Shetland Health Board\",Calculations!$E$2=\"Western Isles Health Board\",Calculations!$E$2=\"Shetland Islands Local Authority\",Calculations!$E$2=\"Eilean Siar Local Authority\"),OR($F200=1,$F200=5)),0,new_yllv2(VALUE(LEFT(Options!$B$24,2)),$C200,$D200,$E200,$F200,2016,$I200,1,$H200,$G200*$H200,Options!$B$8)))","v":1894.8408440282001},{"$f":"IF(AND(OR(Calculations!$E$2=\"Orkney Health Board\",Calculations!$E$2=\"Orkney Islands Local Authority\"),$F200=1),0,IF(AND(OR(Calculations!$E$2=\"Shetland Health Board\",Calculations!$E$2=\"Western Isles Health Board\",Calculations!$E$2=\"Shetland Islands Local Authority\",Calculations!$E$2=\"Eilean Siar Local Authority\"),OR($F200=1,$F200=5)),0,new_yllv2(VALUE(LEFT(Options!$B$24,2)),$C200,$D200,$E200,$F200,2016,$I200+$J200,1,$H200,$G200*$H200,Options!$B$8)))","v":1889.0690069896},{"$f":"IF(AND(OR(Calculations!$E$2=\"Orkney Health Board\",Calculations!$E$2=\"Orkney Islands Local Authority\"),$F200=1),0,IF(AND(OR(Calculations!$E$2=\"Shetland Health Board\",Calculations!$E$2=\"Western Isles Health Board\",Calculations!$E$2=\"Shetland Islands Local Authority\",Calculations!$E$2=\"Eilean Siar Local Authority\"),OR($F200=1,$F200=5)),0,hosp_count(VALUE(LEFT(Options!$B$24,2)),$C200,$E200,$F200,2016,$I200,1,$H200,$G200*$H200, Options!$B$8)))","v":3809.6765630297},{"$f":"IF(AND(OR(Calculations!$E$2=\"Orkney Health Board\",Calculations!$E$2=\"Orkney Islands Local Authority\"),$F200=1),0,IF(AND(OR(Calculations!$E$2=\"Shetland Health Board\",Calculations!$E$2=\"Western Isles Health Board\",Calculations!$E$2=\"Shetland Islands Local Authority\",Calculations!$E$2=\"Eilean Siar Local Authority\"),OR($F200=1,$F200=5)),0,hosp_count(VALUE(LEFT(Options!$B$24,2)),$C200,$E200,$F200,2016,$I200+$J200,1,$H200,$G200*$H200, Options!$B$8)))","v":3802.2813628068002},{"$f":"IF(AND(OR(Calculations!$E$2=\"Orkney Health Board\",Calculations!$E$2=\"Orkney Islands Local Authority\"),$F200=1),0,IF(AND(OR(Calculations!$E$2=\"Shetland Health Board\",Calculations!$E$2=\"Western Isles Health Board\",Calculations!$E$2=\"Shetland Islands Local Authority\",Calculations!$E$2=\"Eilean Siar Local Authority\"),OR($F200=1,$F200=5)),0,prem_mort(VALUE(LEFT(Options!$B$24,2)),$C200,$E200,$F200,2016,$I200,1,$H200,$G200*$H200,Options!$B$8)))","v":46.890394556499999},{"$f":"IF(AND(OR(Calculations!$E$2=\"Orkney Health Board\",Calculations!$E$2=\"Orkney Islands Local Authority\"),$F200=1),0,IF(AND(OR(Calculations!$E$2=\"Shetland Health Board\",Calculations!$E$2=\"Western Isles Health Board\",Calculations!$E$2=\"Shetland Islands Local Authority\",Calculations!$E$2=\"Eilean Siar Local Authority\"),OR($F200=1,$F200=5)),0,prem_mort(VALUE(LEFT(Options!$B$24,2)),$C200,$E200,$F200,2016,$I200+$J200,1,$H200,$G200*$H200,Options!$B$8)))","v":46.747562657499998},146.43638411198901,145.99032715249365,5917.4942819655853,5899.4691202323474,11897.431570000001,11874.336725295276,146.43638411198901,145.99032715249365,1025054.688783923,1021932.2900674555,41422459.9737591,41296283.841626436,83282020.99000001,83120357.077066928,1025054.688783923,1021932.2900674555,7000]
[null,"Male 40-44",42.067703000000002,78.907700000000006,"male",4,{"$f":"HLOOKUP(Calculations!$E$2,'Prevalence Rates'!$C$3:$BC$249,'Prevalence Rates'!$BD201,FALSE)","v":0.20830000000000001},{"$f":"HLOOKUP(Calculations!$E$2,'Population 2016'!$C$3:$BC$249,'Population 2016'!BD201,FALSE)","v":34348},0,{"$f":"HLOOKUP(Results!E$4,Targeting!$C$3:$F$249,Targeting!$G201,FALSE)","v":5292},{"$f":"IF(AND(OR(Calculations!$E$2=\"Orkney Health Board\",Calculations!$E$2=\"Orkney Islands Local Authority\"),$F201=1),0,IF(AND(OR(Calculations!$E$2=\"Shetland Health Board\",Calculations!$E$2=\"Western Isles Health Board\",Calculations!$E$2=\"Shetland Islands Local Authority\",Calculations!$E$2=\"Eilean Siar Local Authority\"),OR($F201=1,$F201=5)),0,new_ci(VALUE(LEFT(Options!$B$24,2)),$C201,$E201,$F201,2016,$I201,1,$H201,$G201*$H201,Options!$B$8)))","v":74.126306714600005},{"$f":"IF(AND(OR(Calculations!$E$2=\"Orkney Health Board\",Calculations!$E$2=\"Orkney Islands Local Authority\"),$F201=1),0,IF(AND(OR(Calculations!$E$2=\"Shetland Health Board\",Calculations!$E$2=\"Western Isles Health Board\",Calculations!$E$2=\"Shetland Islands Local Authority\",Calculations!$E$2=\"Eilean Siar Local Authority\"),OR($F201=1,$F201=5)),0,new_ci(VALUE(LEFT(Options!$B$24,2)),$C201,$E201,$F201,2016,$I201+$J201,1,$H201,$G201*$H201,Options!$B$8)))","v":73.900698699800003},{"$f":"IF(AND(OR(Calculations!$E$2=\"Orkney Health Board\",Calculations!$E$2=\"Orkney Islands Local Authority\"),$F201=1),0,IF(AND(OR(Calculations!$E$2=\"Shetland Health Board\",Calculations!$E$2=\"Western Isles Health Board\",Calculations!$E$2=\"Shetland Islands Local Authority\",Calculations!$E$2=\"Eilean Siar Local Authority\"),OR($F201=1,$F201=5)),0,new_yllv2(VALUE(LEFT(Options!$B$24,2)),$C201,$D201,$E201,$F201,2016,$I201,1,$H201,$G201*$H201,Options!$B$8)))","v":2656.6866102723002},{"$f":"IF(AND(OR(Calculations!$E$2=\"Orkney Health Board\",Calculations!$E$2=\"Orkney Islands Local Authority\"),$F201=1),0,IF(AND(OR(Calculations!$E$2=\"Shetland Health Board\",Calculations!$E$2=\"Western Isles Health Board\",Calculations!$E$2=\"Shetland Islands Local Authority\",Calculations!$E$2=\"Eilean Siar Local Authority\"),OR($F201=1,$F201=5)),0,new_yllv2(VALUE(LEFT(Options!$B$24,2)),$C201,$D201,$E201,$F201,2016,$I201+$J201,1,$H201,$G201*$H201,Options!$B$8)))","v":2648.6008196987},{"$f":"IF(AND(OR(Calculations!$E$2=\"Orkney Health Board\",Calculations!$E$2=\"Orkney Islands Local Authority\"),$F201=1),0,IF(AND(OR(Calculations!$E$2=\"Shetland Health Board\",Calculations!$E$2=\"Western Isles Health Board\",Calculations!$E$2=\"Shetland Islands Local Authority\",Calculations!$E$2=\"Eilean Siar Local Authority\"),OR($F201=1,$F201=5)),0,hosp_count(VALUE(LEFT(Options!$B$24,2)),$C201,$E201,$F201,2016,$I201,1,$H201,$G201*$H201, Options!$B$8)))","v":4904.7371514212},{"$f":"IF(AND(OR(Calculations!$E$2=\"Orkney Health Board\",Calculations!$E$2=\"Orkney Islands Local Authority\"),$F201=1),0,IF(AND(OR(Calculations!$E$2=\"Shetland Health Board\",Calculations!$E$2=\"Western Isles Health Board\",Calculations!$E$2=\"Shetland Islands Local Authority\",Calculations!$E$2=\"Eilean Siar Local Authority\"),OR($F201=1,$F201=5)),0,hosp_count(VALUE(LEFT(Options!$B$24,2)),$C201,$E201,$F201,2016,$I201+$J201,1,$H201,$G201*$H201, Options!$B$8)))","v":4895.2172666911001},{"$f":"IF(AND(OR(Calculations!$E$2=\"Orkney Health Board\",Calculations!$E$2=\"Orkney Islands Local Authority\"),$F201=1),0,IF(AND(OR(Calculations!$E$2=\"Shetland Health Board\",Calculations!$E$2=\"Western Isles Health Board\",Calculations!$E$2=\"Shetland Islands Local Authority\",Calculations!$E$2=\"Eilean Siar Local Authority\"),OR($F201=1,$F201=5)),0,prem_mort(VALUE(LEFT(Options!$B$24,2)),$C201,$E201,$F201,2016,$I201,1,$H201,$G201*$H201,Options!$B$8)))","v":74.126306714600005},{"$f":"IF(AND(OR(Calculations!$E$2=\"Orkney Health Board\",Calculations!$E$2=\"Orkney Islands Local Authority\"),$F201=1),0,IF(AND(OR(Calculations!$E$2=\"Shetland Health Board\",Calculations!$E$2=\"Western Isles Health Board\",Calculations!$E$2=\"Shetland Islands Local Authority\",Calculations!$E$2=\"Eilean Siar Local Authority\"),OR($F201=1,$F201=5)),0,prem_mort(VALUE(LEFT(Options!$B$24,2)),$C201,$E201,$F201,2016,$I201+$J201,1,$H201,$G201*$H201,Options!$B$8)))","v":73.900698699800003},215.80967367707001,215.15284354198207,7734.6180571570403,7711.0772670860024,14279.54219,14251.826210233783,215.80967367707001,215.15284354198207,1510667.71573949,1506069.9047938744,54142326.400099285,53977540.869602017,99956795.329999998,99762783.471636474,1510667.71573949,1506069.9047938744,7000]
[null,"Male 45-49",47.038155000000003,79.418149999999997,"male",4,{"$f":"HLOOKUP(Calculations!$E$2,'Prevalence Rates'!$C$3:$BC$249,'Prevalence Rates'!$BD202,FALSE)","v":0.2069},{"$f":"HLOOKUP(Calculations!$E$2,'Population 2016'!$C$3:$BC$249,'Population 2016'!BD202,FALSE)","v":39846},0,{"$f":"HLOOKUP(Results!E$4,Targeting!$C$3:$F$249,Targeting!$G202,FALSE)","v":6139},{"$f":"IF(AND(OR(Calculations!$E$2=\"Orkney Health Board\",Calculations!$E$2=\"Orkney Islands Local Authority\"),$F202=1),0,IF(AND(OR(Calculations!$E$2=\"Shetland Health Board\",Calculations!$E$2=\"Western Isles Health Board\",Calculations!$E$2=\"Shetland Islands Local Authority\",Calculations!$E$2=\"Eilean Siar Local Authority\"),OR($F202=1,$F202=5)),0,new_ci(VALUE(LEFT(Options!$B$24,2)),$C202,$E202,$F202,2016,$I202,1,$H202,$G202*$H202,Options!$B$8)))","v":125.0818977317},{"$f":"IF(AND(OR(Calculations!$E$2=\"Orkney Health Board\",Calculations!$E$2=\"Orkney Islands Local Authority\"),$F202=1),0,IF(AND(OR(Calculations!$E$2=\"Shetland Health Board\",Calculations!$E$2=\"Western Isles Health Board\",Calculations!$E$2=\"Shetland Islands Local Authority\",Calculations!$E$2=\"Eilean Siar Local Authority\"),OR($F202=1,$F202=5)),0,new_ci(VALUE(LEFT(Options!$B$24,2)),$C202,$E202,$F202,2016,$I202+$J202,1,$H202,$G202*$H202,Options!$B$8)))","v":124.70119746909999},{"$f":"IF(AND(OR(Calculations!$E$2=\"Orkney Health Board\",Calculations!$E$2=\"Orkney Islands Local Authority\"),$F202=1),0,IF(AND(OR(Calculations!$E$2=\"Shetland Health Board\",Calculations!$E$2=\"Western Isles Health Board\",Calculations!$E$2=\"Shetland Islands Local Authority\",Calculations!$E$2=\"Eilean Siar Local Authority\"),OR($F202=1,$F202=5)),0,new_yllv2(VALUE(LEFT(Options!$B$24,2)),$C202,$D202,$E202,$F202,2016,$I202,1,$H202,$G202*$H202,Options!$B$8)))","v":3925.0693254112998},{"$f":"IF(AND(OR(Calculations!$E$2=\"Orkney Health Board\",Calculations!$E$2=\"Orkney Islands Local Authority\"),$F202=1),0,IF(AND(OR(Calculations!$E$2=\"Shetland Health Board\",Calculations!$E$2=\"Western Isles Health Board\",Calculations!$E$2=\"Shetland Islands Local Authority\",Calculations!$E$2=\"Eilean Siar Local Authority\"),OR($F202=1,$F202=5)),0,new_yllv2(VALUE(LEFT(Options!$B$24,2)),$C202,$D202,$E202,$F202,2016,$I202+$J202,1,$H202,$G202*$H202,Options!$B$8)))","v":3913.1229530743999},{"$f":"IF(AND(OR(Calculations!$E$2=\"Orkney Health Board\",Calculations!$E$2=\"Orkney Islands Local Authority\"),$F202=1),0,IF(AND(OR(Calculations!$E$2=\"Shetland Health Board\",Calculations!$E$2=\"Western Isles Health Board\",Calculations!$E$2=\"Shetland Islands Local Authority\",Calculations!$E$2=\"Eilean Siar Local Authority\"),OR($F202=1,$F202=5)),0,hosp_count(VALUE(LEFT(Options!$B$24,2)),$C202,$E202,$F202,2016,$I202,1,$H202,$G202*$H202, Options!$B$8)))","v":6787.6640703324001},{"$f":"IF(AND(OR(Calculations!$E$2=\"Orkney Health Board\",Calculations!$E$2=\"Orkney Islands Local Authority\"),$F202=1),0,IF(AND(OR(Calculations!$E$2=\"Shetland Health Board\",Calculations!$E$2=\"Western Isles Health Board\",Calculations!$E$2=\"Shetland Islands Local Authority\",Calculations!$E$2=\"Eilean Siar Local Authority\"),OR($F202=1,$F202=5)),0,hosp_count(VALUE(LEFT(Options!$B$24,2)),$C202,$E202,$F202,2016,$I202+$J202,1,$H202,$G202*$H202, Options!$B$8)))","v":6774.4816180349999},{"$f":"IF(AND(OR(Calculations!$E$2=\"Orkney Health Board\",Calculations!$E$2=\"Orkney Islands Local Authority\"),$F202=1),0,IF(AND(OR(Calculations!$E$2=\"Shetland Health Board\",Calculations!$E$2=\"Western Isles Health Board\",Calculations!$E$2=\"Shetland Islands Local Authority\",Calculations!$E$2=\"Eilean Siar Local Authority\"),OR($F202=1,$F202=5)),0,prem_mort(VALUE(LEFT(Options!$B$24,2)),$C202,$E202,$F202,2016,$I202,1,$H202,$G202*$H202,Options!$B$8)))","v":125.0818977317},{"$f":"IF(AND(OR(Calculations!$E$2=\"Orkney Health Board\",Calculations!$E$2=\"Orkney Islands Local Authority\"),$F202=1),0,IF(AND(OR(Calculations!$E$2=\"Shetland Health Board\",Calculations!$E$2=\"Western Isles Health Board\",Calculations!$E$2=\"Shetland Islands Local Authority\",Calculations!$E$2=\"Eilean Siar Local Authority\"),OR($F202=1,$F202=5)),0,prem_mort(VALUE(LEFT(Options!$B$24,2)),$C202,$E202,$F202,2016,$I202+$J202,1,$H202,$G202*$H202,Options!$B$8)))","v":124.70119746909999},313.91331057496359,312.95788151658888,9850.5981162759126,9820.6167572012237,17034.74394,17001.660437772924,313.91331057496359,312.95788151658888,2197393.1740247449,2190705.170616122,68954186.813931391,68744317.300408572,119243207.58,119011623.06441046,2197393.1740247449,2190705.170616122,7000]
[null,"Male 50-54",51.998646000000001,79.988649999999993,"male",4,{"$f":"HLOOKUP(Calculations!$E$2,'Prevalence Rates'!$C$3:$BC$249,'Prevalence Rates'!$BD203,FALSE)","v":0.2069},{"$f":"HLOOKUP(Calculations!$E$2,'Population 2016'!$C$3:$BC$249,'Population 2016'!BD203,FALSE)","v":42258},0,{"$f":"HLOOKUP(Results!E$4,Targeting!$C$3:$F$249,Targeting!$G203,FALSE)","v":6511},{"$f":"IF(AND(OR(Calculations!$E$2=\"Orkney Health Board\",Calculations!$E$2=\"Orkney Islands Local Authority\"),$F203=1),0,IF(AND(OR(Calculations!$E$2=\"Shetland Health Board\",Calculations!$E$2=\"Western Isles Health Board\",Calculations!$E$2=\"Shetland Islands Local Authority\",Calculations!$E$2=\"Eilean Siar Local Authority\"),OR($F203=1,$F203=5)),0,new_ci(VALUE(LEFT(Options!$B$24,2)),$C203,$E203,$F203,2016,$I203,1,$H203,$G203*$H203,Options!$B$8)))","v":192.763713395},{"$f":"IF(AND(OR(Calculations!$E$2=\"Orkney Health Board\",Calculations!$E$2=\"Orkney Islands Local Authority\"),$F203=1),0,IF(AND(OR(Calculations!$E$2=\"Shetland Health Board\",Calculations!$E$2=\"Western Isles Health Board\",Calculations!$E$2=\"Shetland Islands Local Authority\",Calculations!$E$2=\"Eilean Siar Local Authority\"),OR($F203=1,$F203=5)),0,new_ci(VALUE(LEFT(Options!$B$24,2)),$C203,$E203,$F203,2016,$I203+$J203,1,$H203,$G203*$H203,Options!$B$8)))","v":192.17785621940001},{"$f":"IF(AND(OR(Calculations!$E$2=\"Orkney Health Board\",Calculations!$E$2=\"Orkney Islands Local Authority\"),$F203=1),0,IF(AND(OR(Calculations!$E$2=\"Shetland Health Board\",Calculations!$E$2=\"Western Isles Health Board\",Calculations!$E$2=\"Shetland Islands Local Authority\",Calculations!$E$2=\"Eilean Siar Local Authority\"),OR($F203=1,$F203=5)),0,new_yllv2(VALUE(LEFT(Options!$B$24,2)),$C203,$D203,$E203,$F203,2016,$I203,1,$H203,$G203*$H203,Options!$B$8)))","v":5202.6933955859004},{"$f":"IF(AND(OR(Calculations!$E$2=\"Orkney Health Board\",Calculations!$E$2=\"Orkney Islands Local Authority\"),$F203=1),0,IF(AND(OR(Calculations!$E$2=\"Shetland Health Board\",Calculations!$E$2=\"Western Isles Health Board\",Calculations!$E$2=\"Shetland Islands Local Authority\",Calculations!$E$2=\"Eilean Siar Local Authority\"),OR($F203=1,$F203=5)),0,new_yllv2(VALUE(LEFT(Options!$B$24,2)),$C203,$D203,$E203,$F203,2016,$I203+$J203,1,$H203,$G203*$H203,Options!$B$8)))","v":5186.8811080730002},{"$f":"IF(AND(OR(Calculations!$E$2=\"Orkney Health Board\",Calculations!$E$2=\"Orkney Islands Local Authority\"),$F203=1),0,IF(AND(OR(Calculations!$E$2=\"Shetland Health Board\",Calculations!$E$2=\"Western Isles Health Board\",Calculations!$E$2=\"Shetland Islands Local Authority\",Calculations!$E$2=\"Eilean Siar Local Authority\"),OR($F203=1,$F203=5)),0,hosp_count(VALUE(LEFT(Options!$B$24,2)),$C203,$E203,$F203,2016,$I203,1,$H203,$G203*$H203, Options!$B$8)))","v":8584.4469732443995},{"$f":"IF(AND(OR(Calculations!$E$2=\"Orkney Health Board\",Calculations!$E$2=\"Orkney Islands Local Authority\"),$F203=1),0,IF(AND(OR(Calculations!$E$2=\"Shetland Health Board\",Calculations!$E$2=\"Western Isles Health Board\",Calculations!$E$2=\"Shetland Islands Local Authority\",Calculations!$E$2=\"Eilean Siar Local Authority\"),OR($F203=1,$F203=5)),0,hosp_count(VALUE(LEFT(Options!$B$24,2)),$C203,$E203,$F203,2016,$I203+$J203,1,$H203,$G203*$H203, Options!$B$8)))","v":8567.7739618354008},{"$f":"IF(AND(OR(Calculations!$E$2=\"Orkney Health Board\",Calculations!$E$2=\"Orkney Islands Local Authority\"),$F203=1),0,IF(AND(OR(Calculations!$E$2=\"Shetland Health Board\",Calculations!$E$2=\"Western Isles Health Board\",Calculations!$E$2=\"Shetland Islands Local Authority\",Calculations!$E$2=\"Eilean Siar Local Authority\"),OR($F203=1,$F203=5)),0,prem_mort(VALUE(LEFT(Options!$B$24,2)),$C203,$E203,$F203,2016,$I203,1,$H203,$G203*$H203,Options!$B$8)))","v":192.763713395},{"$f":"IF(AND(OR(Calculations!$E$2=\"Orkney Health Board\",Calculations!$E$2=\"Orkney Islands Local Authority\"),$F203=1),0,IF(AND(OR(Calculations!$E$2=\"Shetland Health Board\",Calculations!$E$2=\"Western Isles Health Board\",Calculations!$E$2=\"Shetland Islands Local Authority\",Calculations!$E$2=\"Eilean Siar Local Authority\"),OR($F203=1,$F203=5)),0,prem_mort(VALUE(LEFT(Options!$B$24,2)),$C203,$E203,$F203,2016,$I203+$J203,1,$H203,$G203*$H203,Options!$B$8)))","v":192.17785621940001},456.15910217000328,454.77272047754275,12311.735992204791,12274.317544779688,20314.371179999998,20274.915901924844,456.15910217000328,454.77272047754275,3193113.7151900232,3183409.0433427994,86182151.945433542,85920222.813457817,142200598.25999999,141924411.31347391,3193113.7151900232,3183409.0433427994,7000]
[null,"Male 55-59",56.950867000000002,80.660870000000003,"male",4,{"$f":"HLOOKUP(Calculations!$E$2,'Prevalence Rates'!$C$3:$BC$249,'Prevalence Rates'!$BD204,FALSE)","v":0.14940000000000001},{"$f":"HLOOKUP(Calculations!$E$2,'Population 2016'!$C$3:$BC$249,'Population 2016'!BD204,FALSE)","v":38483},0,{"$f":"HLOOKUP(Results!E$4,Targeting!$C$3:$F$249,Targeting!$G204,FALSE)","v":5929},{"$f":"IF(AND(OR(Calculations!$E$2=\"Orkney Health Board\",Calculations!$E$2=\"Orkney Islands Local Authority\"),$F204=1),0,IF(AND(OR(Calculations!$E$2=\"Shetland Health Board\",Calculations!$E$2=\"Western Isles Health Board\",Calculations!$E$2=\"Shetland Islands Local Authority\",Calculations!$E$2=\"Eilean Siar Local Authority\"),OR($F204=1,$F204=5)),0,new_ci(VALUE(LEFT(Options!$B$24,2)),$C204,$E204,$F204,2016,$I204,1,$H204,$G204*$H204,Options!$B$8)))","v":254.8523852811},{"$f":"IF(AND(OR(Calculations!$E$2=\"Orkney Health Board\",Calculations!$E$2=\"Orkney Islands Local Authority\"),$F204=1),0,IF(AND(OR(Calculations!$E$2=\"Shetland Health Board\",Calculations!$E$2=\"Western Isles Health Board\",Calculations!$E$2=\"Shetland Islands Local Authority\",Calculations!$E$2=\"Eilean Siar Local Authority\"),OR($F204=1,$F204=5)),0,new_ci(VALUE(LEFT(Options!$B$24,2)),$C204,$E204,$F204,2016,$I204+$J204,1,$H204,$G204*$H204,Options!$B$8)))","v":254.04472326440001},{"$f":"IF(AND(OR(Calculations!$E$2=\"Orkney Health Board\",Calculations!$E$2=\"Orkney Islands Local Authority\"),$F204=1),0,IF(AND(OR(Calculations!$E$2=\"Shetland Health Board\",Calculations!$E$2=\"Western Isles Health Board\",Calculations!$E$2=\"Shetland Islands Local Authority\",Calculations!$E$2=\"Eilean Siar Local Authority\"),OR($F204=1,$F204=5)),0,new_yllv2(VALUE(LEFT(Options!$B$24,2)),$C204,$D204,$E204,$F204,2016,$I204,1,$H204,$G204*$H204,Options!$B$8)))","v":5787.6984342909},{"$f":"IF(AND(OR(Calculations!$E$2=\"Orkney Health Board\",Calculations!$E$2=\"Orkney Islands Local Authority\"),$F204=1),0,IF(AND(OR(Calculations!$E$2=\"Shetland Health Board\",Calculations!$E$2=\"Western Isles Health Board\",Calculations!$E$2=\"Shetland Islands Local Authority\",Calculations!$E$2=\"Eilean Siar Local Authority\"),OR($F204=1,$F204=5)),0,new_yllv2(VALUE(LEFT(Options!$B$24,2)),$C204,$D204,$E204,$F204,2016,$I204+$J204,1,$H204,$G204*$H204,Options!$B$8)))","v":5769.3564274686996},{"$f":"IF(AND(OR(Calculations!$E$2=\"Orkney Health Board\",Calculations!$E$2=\"Orkney Islands Local Authority\"),$F204=1),0,IF(AND(OR(Calculations!$E$2=\"Shetland Health Board\",Calculations!$E$2=\"Western Isles Health Board\",Calculations!$E$2=\"Shetland Islands Local Authority\",Calculations!$E$2=\"Eilean Siar Local Authority\"),OR($F204=1,$F204=5)),0,hosp_count(VALUE(LEFT(Options!$B$24,2)),$C204,$E204,$F204,2016,$I204,1,$H204,$G204*$H204, Options!$B$8)))","v":9319.9287622851007},{"$f":"IF(AND(OR(Calculations!$E$2=\"Orkney Health Board\",Calculations!$E$2=\"Orkney Islands Local Authority\"),$F204=1),0,IF(AND(OR(Calculations!$E$2=\"Shetland Health Board\",Calculations!$E$2=\"Western Isles Health Board\",Calculations!$E$2=\"Shetland Islands Local Authority\",Calculations!$E$2=\"Eilean Siar Local Authority\"),OR($F204=1,$F204=5)),0,hosp_count(VALUE(LEFT(Options!$B$24,2)),$C204,$E204,$F204,2016,$I204+$J204,1,$H204,$G204*$H204, Options!$B$8)))","v":9301.3622228185995},{"$f":"IF(AND(OR(Calculations!$E$2=\"Orkney Health Board\",Calculations!$E$2=\"Orkney Islands Local Authority\"),$F204=1),0,IF(AND(OR(Calculations!$E$2=\"Shetland Health Board\",Calculations!$E$2=\"Western Isles Health Board\",Calculations!$E$2=\"Shetland Islands Local Authority\",Calculations!$E$2=\"Eilean Siar Local Authority\"),OR($F204=1,$F204=5)),0,prem_mort(VALUE(LEFT(Options!$B$24,2)),$C204,$E204,$F204,2016,$I204,1,$H204,$G204*$H204,Options!$B$8)))","v":254.8523852811},{"$f":"IF(AND(OR(Calculations!$E$2=\"Orkney Health Board\",Calculations!$E$2=\"Orkney Islands Local Authority\"),$F204=1),0,IF(AND(OR(Calculations!$E$2=\"Shetland Health Board\",Calculations!$E$2=\"Western Isles Health Board\",Calculations!$E$2=\"Shetland Islands Local Authority\",Calculations!$E$2=\"Eilean Siar Local Authority\"),OR($F204=1,$F204=5)),0,prem_mort(VALUE(LEFT(Options!$B$24,2)),$C204,$E204,$F204,2016,$I204+$J204,1,$H204,$G204*$H204,Options!$B$8)))","v":254.04472326440001},662.24666809006578,660.14791794922428,15039.623819065302,14991.961197070652,24218.30097,24170.054888700466,662.24666809006578,660.14791794922428,4304603.3425854277,4290961.4666699581,97757554.823924467,97447747.780959234,157418956.30500001,157105356.77655303,4304603.3425854277,4290961.4666699581,6500]
[null,"Male 60-64",61.942988999999997,81.612989999999996,"male",4,{"$f":"HLOOKUP(Calculations!$E$2,'Prevalence Rates'!$C$3:$BC$249,'Prevalence Rates'!$BD205,FALSE)","v":0.14940000000000001},{"$f":"HLOOKUP(Calculations!$E$2,'Population 2016'!$C$3:$BC$249,'Population 2016'!BD205,FALSE)","v":33820},0,{"$f":"HLOOKUP(Results!E$4,Targeting!$C$3:$F$249,Targeting!$G205,FALSE)","v":5211},{"$f":"IF(AND(OR(Calculations!$E$2=\"Orkney Health Board\",Calculations!$E$2=\"Orkney Islands Local Authority\"),$F205=1),0,IF(AND(OR(Calculations!$E$2=\"Shetland Health Board\",Calculations!$E$2=\"Western Isles Health Board\",Calculations!$E$2=\"Shetland Islands Local Authority\",Calculations!$E$2=\"Eilean Siar Local Authority\"),OR($F205=1,$F205=5)),0,new_ci(VALUE(LEFT(Options!$B$24,2)),$C205,$E205,$F205,2016,$I205,1,$H205,$G205*$H205,Options!$B$8)))","v":325.9599783187},{"$f":"IF(AND(OR(Calculations!$E$2=\"Orkney Health Board\",Calculations!$E$2=\"Orkney Islands Local Authority\"),$F205=1),0,IF(AND(OR(Calculations!$E$2=\"Shetland Health Board\",Calculations!$E$2=\"Western Isles Health Board\",Calculations!$E$2=\"Shetland Islands Local Authority\",Calculations!$E$2=\"Eilean Siar Local Authority\"),OR($F205=1,$F205=5)),0,new_ci(VALUE(LEFT(Options!$B$24,2)),$C205,$E205,$F205,2016,$I205+$J205,1,$H205,$G205*$H205,Options!$B$8)))","v":324.93041551480002},{"$f":"IF(AND(OR(Calculations!$E$2=\"Orkney Health Board\",Calculations!$E$2=\"Orkney Islands Local Authority\"),$F205=1),0,IF(AND(OR(Calculations!$E$2=\"Shetland Health Board\",Calculations!$E$2=\"Western Isles Health Board\",Calculations!$E$2=\"Shetland Islands Local Authority\",Calculations!$E$2=\"Eilean Siar Local Authority\"),OR($F205=1,$F205=5)),0,new_yllv2(VALUE(LEFT(Options!$B$24,2)),$C205,$D205,$E205,$F205,2016,$I205,1,$H205,$G205*$H205,Options!$B$8)))","v":6085.6731211700999},{"$f":"IF(AND(OR(Calculations!$E$2=\"Orkney Health Board\",Calculations!$E$2=\"Orkney Islands Local Authority\"),$F205=1),0,IF(AND(OR(Calculations!$E$2=\"Shetland Health Board\",Calculations!$E$2=\"Western Isles Health Board\",Calculations!$E$2=\"Shetland Islands Local Authority\",Calculations!$E$2=\"Eilean Siar Local Authority\"),OR($F205=1,$F205=5)),0,new_yllv2(VALUE(LEFT(Options!$B$24,2)),$C205,$D205,$E205,$F205,2016,$I205+$J205,1,$H205,$G205*$H205,Options!$B$8)))","v":6066.4511825916998},{"$f":"IF(AND(OR(Calculations!$E$2=\"Orkney Health Board\",Calculations!$E$2=\"Orkney Islands Local Authority\"),$F205=1),0,IF(AND(OR(Calculations!$E$2=\"Shetland Health Board\",Calculations!$E$2=\"Western Isles Health Board\",Calculations!$E$2=\"Shetland Islands Local Authority\",Calculations!$E$2=\"Eilean Siar Local Authority\"),OR($F205=1,$F205=5)),0,hosp_count(VALUE(LEFT(Options!$B$24,2)),$C205,$E205,$F205,2016,$I205,1,$H205,$G205*$H205, Options!$B$8)))","v":9778.5092826239998},{"$f":"IF(AND(OR(Calculations!$E$2=\"Orkney Health Board\",Calculations!$E$2=\"Orkney Islands Local Authority\"),$F205=1),0,IF(AND(OR(Calculations!$E$2=\"Shetland Health Board\",Calculations!$E$2=\"Western Isles Health Board\",Calculations!$E$2=\"Shetland Islands Local Authority\",Calculations!$E$2=\"Eilean Siar Local Authority\"),OR($F205=1,$F205=5)),0,hosp_count(VALUE(LEFT(Options!$B$24,2)),$C205,$E205,$F205,2016,$I205+$J205,1,$H205,$G205*$H205, Options!$B$8)))","v":9759.0276223018009},{"$f":"IF(AND(OR(Calculations!$E$2=\"Orkney Health Board\",Calculations!$E$2=\"Orkney Islands Local Authority\"),$F205=1),0,IF(AND(OR(Calculations!$E$2=\"Shetland Health Board\",Calculations!$E$2=\"Western Isles Health Board\",Calculations!$E$2=\"Shetland Islands Local Authority\",Calculations!$E$2=\"Eilean Siar Local Authority\"),OR($F205=1,$F205=5)),0,prem_mort(VALUE(LEFT(Options!$B$24,2)),$C205,$E205,$F205,2016,$I205,1,$H205,$G205*$H205,Options!$B$8)))","v":325.9599783187},{"$f":"IF(AND(OR(Calculations!$E$2=\"Orkney Health Board\",Calculations!$E$2=\"Orkney Islands Local Authority\"),$F205=1),0,IF(AND(OR(Calculations!$E$2=\"Shetland Health Board\",Calculations!$E$2=\"Western Isles Health Board\",Calculations!$E$2=\"Shetland Islands Local Authority\",Calculations!$E$2=\"Eilean Siar Local Authority\"),OR($F205=1,$F205=5)),0,prem_mort(VALUE(LEFT(Options!$B$24,2)),$C205,$E205,$F205,2016,$I205+$J205,1,$H205,$G205*$H205,Options!$B$8)))","v":324.93041551480002},963.80833329006509,960.76409081845065,17994.302546333827,17937.466536344469,28913.392320000003,28855.78835689474,963.80833329006509,960.76409081845065,5782849.9997403901,5764584.5449107038,107965815.27800296,107624799.21806681,173480353.92000002,173134730.14136845,5782849.9997403901,5764584.5449107038,6000]
[null,"Male 65-69",67.054419999999993,82.954419999999999,"male",4,{"$f":"HLOOKUP(Calculations!$E$2,'Prevalence Rates'!$C$3:$BC$249,'Prevalence Rates'!$BD206,FALSE)","v":0.11320000000000001},{"$f":"HLOOKUP(Calculations!$E$2,'Population 2016'!$C$3:$BC$249,'Population 2016'!BD206,FALSE)","v":33114},0,{"$f":"HLOOKUP(Results!E$4,Targeting!$C$3:$F$249,Targeting!$G206,FALSE)","v":5102},{"$f":"IF(AND(OR(Calculations!$E$2=\"Orkney Health Board\",Calculations!$E$2=\"Orkney Islands Local Authority\"),$F206=1),0,IF(AND(OR(Calculations!$E$2=\"Shetland Health Board\",Calculations!$E$2=\"Western Isles Health Board\",Calculations!$E$2=\"Shetland Islands Local Authority\",Calculations!$E$2=\"Eilean Siar Local Authority\"),OR($F206=1,$F206=5)),0,new_ci(VALUE(LEFT(Options!$B$24,2)),$C206,$E206,$F206,2016,$I206,1,$H206,$G206*$H206,Options!$B$8)))","v":468.34976528689998},{"$f":"IF(AND(OR(Calculations!$E$2=\"Orkney Health Board\",Calculations!$E$2=\"Orkney Islands Local Authority\"),$F206=1),0,IF(AND(OR(Calculations!$E$2=\"Shetland Health Board\",Calculations!$E$2=\"Western Isles Health Board\",Calculations!$E$2=\"Shetland Islands Local Authority\",Calculations!$E$2=\"Eilean Siar Local Authority\"),OR($F206=1,$F206=5)),0,new_ci(VALUE(LEFT(Options!$B$24,2)),$C206,$E206,$F206,2016,$I206+$J206,1,$H206,$G206*$H206,Options!$B$8)))","v":466.8357886233},{"$f":"IF(AND(OR(Calculations!$E$2=\"Orkney Health Board\",Calculations!$E$2=\"Orkney Islands Local Authority\"),$F206=1),0,IF(AND(OR(Calculations!$E$2=\"Shetland Health Board\",Calculations!$E$2=\"Western Isles Health Board\",Calculations!$E$2=\"Shetland Islands Local Authority\",Calculations!$E$2=\"Eilean Siar Local Authority\"),OR($F206=1,$F206=5)),0,new_yllv2(VALUE(LEFT(Options!$B$24,2)),$C206,$D206,$E206,$F206,2016,$I206,1,$H206,$G206*$H206,Options!$B$8)))","v":6978.4115027748003},{"$f":"IF(AND(OR(Calculations!$E$2=\"Orkney Health Board\",Calculations!$E$2=\"Orkney Islands Local Authority\"),$F206=1),0,IF(AND(OR(Calculations!$E$2=\"Shetland Health Board\",Calculations!$E$2=\"Western Isles Health Board\",Calculations!$E$2=\"Shetland Islands Local Authority\",Calculations!$E$2=\"Eilean Siar Local Authority\"),OR($F206=1,$F206=5)),0,new_yllv2(VALUE(LEFT(Options!$B$24,2)),$C206,$D206,$E206,$F206,2016,$I206+$J206,1,$H206,$G206*$H206,Options!$B$8)))","v":6955.8532504872001},{"$f":"IF(AND(OR(Calculations!$E$2=\"Orkney Health Board\",Calculations!$E$2=\"Orkney Islands Local Authority\"),$F206=1),0,IF(AND(OR(Calculations!$E$2=\"Shetland Health Board\",Calculations!$E$2=\"Western Isles Health Board\",Calculations!$E$2=\"Shetland Islands Local Authority\",Calculations!$E$2=\"Eilean Siar Local Authority\"),OR($F206=1,$F206=5)),0,hosp_count(VALUE(LEFT(Options!$B$24,2)),$C206,$E206,$F206,2016,$I206,1,$H206,$G206*$H206, Options!$B$8)))","v":11479.031884186799},{"$f":"IF(AND(OR(Calculations!$E$2=\"Orkney Health Board\",Calculations!$E$2=\"Orkney Islands Local Authority\"),$F206=1),0,IF(AND(OR(Calculations!$E$2=\"Shetland Health Board\",Calculations!$E$2=\"Western Isles Health Board\",Calculations!$E$2=\"Shetland Islands Local Authority\",Calculations!$E$2=\"Eilean Siar Local Authority\"),OR($F206=1,$F206=5)),0,hosp_count(VALUE(LEFT(Options!$B$24,2)),$C206,$E206,$F206,2016,$I206+$J206,1,$H206,$G206*$H206, Options!$B$8)))","v":11455.7863797029},{"$f":"IF(AND(OR(Calculations!$E$2=\"Orkney Health Board\",Calculations!$E$2=\"Orkney Islands Local Authority\"),$F206=1),0,IF(AND(OR(Calculations!$E$2=\"Shetland Health Board\",Calculations!$E$2=\"Western Isles Health Board\",Calculations!$E$2=\"Shetland Islands Local Authority\",Calculations!$E$2=\"Eilean Siar Local Authority\"),OR($F206=1,$F206=5)),0,prem_mort(VALUE(LEFT(Options!$B$24,2)),$C206,$E206,$F206,2016,$I206,1,$H206,$G206*$H206,Options!$B$8)))","v":468.34976528689998},{"$f":"IF(AND(OR(Calculations!$E$2=\"Orkney Health Board\",Calculations!$E$2=\"Orkney Islands Local Authority\"),$F206=1),0,IF(AND(OR(Calculations!$E$2=\"Shetland Health Board\",Calculations!$E$2=\"Western Isles Health Board\",Calculations!$E$2=\"Shetland Islands Local Authority\",Calculations!$E$2=\"Eilean Siar Local Authority\"),OR($F206=1,$F206=5)),0,prem_mort(VALUE(LEFT(Options!$B$24,2)),$C206,$E206,$F206,2016,$I206+$J206,1,$H206,$G206*$H206,Options!$B$8)))","v":466.8357886233},1414.3557567400494,1409.78374289817,21073.900775426708,21005.777769182823,34665.192620000002,34594.994200950954,1414.3557567400494,1409.78374289817,7778956.6620702716,7753810.5859399345,115906454.26484689,115531777.73050553,190658559.41,190272468.10523024,7778956.6620702716,7753810.5859399345,5500]
[null,"Male 70-74",71.891098,84.341099999999997,"male",4,{"$f":"HLOOKUP(Calculations!$E$2,'Prevalence Rates'!$C$3:$BC$249,'Prevalence Rates'!$BD207,FALSE)","v":0.11320000000000001},{"$f":"HLOOKUP(Calculations!$E$2,'Population 2016'!$C$3:$BC$249,'Population 2016'!BD207,FALSE)","v":24360},0,{"$f":"HLOOKUP(Results!E$4,Targeting!$C$3:$F$249,Targeting!$G207,FALSE)","v":3753},{"$f":"IF(AND(OR(Calculations!$E$2=\"Orkney Health Board\",Calculations!$E$2=\"Orkney Islands Local Authority\"),$F207=1),0,IF(AND(OR(Calculations!$E$2=\"Shetland Health Board\",Calculations!$E$2=\"Western Isles Health Board\",Calculations!$E$2=\"Shetland Islands Local Authority\",Calculations!$E$2=\"Eilean Siar Local Authority\"),OR($F207=1,$F207=5)),0,new_ci(VALUE(LEFT(Options!$B$24,2)),$C207,$E207,$F207,2016,$I207,1,$H207,$G207*$H207,Options!$B$8)))","v":494.73537380400001},{"$f":"IF(AND(OR(Calculations!$E$2=\"Orkney Health Board\",Calculations!$E$2=\"Orkney Islands Local Authority\"),$F207=1),0,IF(AND(OR(Calculations!$E$2=\"Shetland Health Board\",Calculations!$E$2=\"Western Isles Health Board\",Calculations!$E$2=\"Shetland Islands Local Authority\",Calculations!$E$2=\"Eilean Siar Local Authority\"),OR($F207=1,$F207=5)),0,new_ci(VALUE(LEFT(Options!$B$24,2)),$C207,$E207,$F207,2016,$I207+$J207,1,$H207,$G207*$H207,Options!$B$8)))","v":493.14803832569999},{"$f":"IF(AND(OR(Calculations!$E$2=\"Orkney Health Board\",Calculations!$E$2=\"Orkney Islands Local Authority\"),$F207=1),0,IF(AND(OR(Calculations!$E$2=\"Shetland Health Board\",Calculations!$E$2=\"Western Isles Health Board\",Calculations!$E$2=\"Shetland Islands Local Authority\",Calculations!$E$2=\"Eilean Siar Local Authority\"),OR($F207=1,$F207=5)),0,new_yllv2(VALUE(LEFT(Options!$B$24,2)),$C207,$D207,$E207,$F207,2016,$I207,1,$H207,$G207*$H207,Options!$B$8)))","v":5664.7210195264997},{"$f":"IF(AND(OR(Calculations!$E$2=\"Orkney Health Board\",Calculations!$E$2=\"Orkney Islands Local Authority\"),$F207=1),0,IF(AND(OR(Calculations!$E$2=\"Shetland Health Board\",Calculations!$E$2=\"Western Isles Health Board\",Calculations!$E$2=\"Shetland Islands Local Authority\",Calculations!$E$2=\"Eilean Siar Local Authority\"),OR($F207=1,$F207=5)),0,new_yllv2(VALUE(LEFT(Options!$B$24,2)),$C207,$D207,$E207,$F207,2016,$I207+$J207,1,$H207,$G207*$H207,Options!$B$8)))","v":5646.5460251252998},{"$f":"IF(AND(OR(Calculations!$E$2=\"Orkney Health Board\",Calculations!$E$2=\"Orkney Islands Local Authority\"),$F207=1),0,IF(AND(OR(Calculations!$E$2=\"Shetland Health Board\",Calculations!$E$2=\"Western Isles Health Board\",Calculations!$E$2=\"Shetland Islands Local Authority\",Calculations!$E$2=\"Eilean Siar Local Authority\"),OR($F207=1,$F207=5)),0,hosp_count(VALUE(LEFT(Options!$B$24,2)),$C207,$E207,$F207,2016,$I207,1,$H207,$G207*$H207, Options!$B$8)))","v":10026.054313548},{"$f":"IF(AND(OR(Calculations!$E$2=\"Orkney Health Board\",Calculations!$E$2=\"Orkney Islands Local Authority\"),$F207=1),0,IF(AND(OR(Calculations!$E$2=\"Shetland Health Board\",Calculations!$E$2=\"Western Isles Health Board\",Calculations!$E$2=\"Shetland Islands Local Authority\",Calculations!$E$2=\"Eilean Siar Local Authority\"),OR($F207=1,$F207=5)),0,hosp_count(VALUE(LEFT(Options!$B$24,2)),$C207,$E207,$F207,2016,$I207+$J207,1,$H207,$G207*$H207, Options!$B$8)))","v":10005.7524348604},{"$f":"IF(AND(OR(Calculations!$E$2=\"Orkney Health Board\",Calculations!$E$2=\"Orkney Islands Local Authority\"),$F207=1),0,IF(AND(OR(Calculations!$E$2=\"Shetland Health Board\",Calculations!$E$2=\"Western Isles Health Board\",Calculations!$E$2=\"Shetland Islands Local Authority\",Calculations!$E$2=\"Eilean Siar Local Authority\"),OR($F207=1,$F207=5)),0,prem_mort(VALUE(LEFT(Options!$B$24,2)),$C207,$E207,$F207,2016,$I207,1,$H207,$G207*$H207,Options!$B$8)))","v":494.73537380400001},{"$f":"IF(AND(OR(Calculations!$E$2=\"Orkney Health Board\",Calculations!$E$2=\"Orkney Islands Local Authority\"),$F207=1),0,IF(AND(OR(Calculations!$E$2=\"Shetland Health Board\",Calculations!$E$2=\"Western Isles Health Board\",Calculations!$E$2=\"Shetland Islands Local Authority\",Calculations!$E$2=\"Eilean Siar Local Authority\"),OR($F207=1,$F207=5)),0,prem_mort(VALUE(LEFT(Options!$B$24,2)),$C207,$E207,$F207,2016,$I207+$J207,1,$H207,$G207*$H207,Options!$B$8)))","v":493.14803832569999},2030.9333900000001,2024.4172345061577,23254.191377366584,23179.581383929803,41157.85843,41074.517384484403,2030.9333900000001,2024.4172345061577,10154666.950000001,10122086.172530789,116270956.88683292,115897906.91964902,205789292.15000001,205372586.92242202,10154666.950000001,10122086.172530789,5000]
[null,"Male 75-79",76.907700000000006,86.357700000000008,"male",4,{"$f":"HLOOKUP(Calculations!$E$2,'Prevalence Rates'!$C$3:$BC$249,'Prevalence Rates'!$BD208,FALSE)","v":4.07E-2},{"$f":"HLOOKUP(Calculations!$E$2,'Population 2016'!$C$3:$BC$249,'Population 2016'!BD208,FALSE)","v":17285},0,{"$f":"HLOOKUP(Results!E$4,Targeting!$C$3:$F$249,Targeting!$G208,FALSE)","v":2663},{"$f":"IF(AND(OR(Calculations!$E$2=\"Orkney Health Board\",Calculations!$E$2=\"Orkney Islands Local Authority\"),$F208=1),0,IF(AND(OR(Calculations!$E$2=\"Shetland Health Board\",Calculations!$E$2=\"Western Isles Health Board\",Calculations!$E$2=\"Shetland Islands Local Authority\",Calculations!$E$2=\"Eilean Siar Local Authority\"),OR($F208=1,$F208=5)),0,new_ci(VALUE(LEFT(Options!$B$24,2)),$C208,$E208,$F208,2016,$I208,1,$H208,$G208*$H208,Options!$B$8)))","v":510.40318023930001},{"$f":"IF(AND(OR(Calculations!$E$2=\"Orkney Health Board\",Calculations!$E$2=\"Orkney Islands Local Authority\"),$F208=1),0,IF(AND(OR(Calculations!$E$2=\"Shetland Health Board\",Calculations!$E$2=\"Western Isles Health Board\",Calculations!$E$2=\"Shetland Islands Local Authority\",Calculations!$E$2=\"Eilean Siar Local Authority\"),OR($F208=1,$F208=5)),0,new_ci(VALUE(LEFT(Options!$B$24,2)),$C208,$E208,$F208,2016,$I208+$J208,1,$H208,$G208*$H208,Options!$B$8)))","v":508.68836775300002},{"$f":"IF(AND(OR(Calculations!$E$2=\"Orkney Health Board\",Calculations!$E$2=\"Orkney Islands Local Authority\"),$F208=1),0,IF(AND(OR(Calculations!$E$2=\"Shetland Health Board\",Calculations!$E$2=\"Western Isles Health Board\",Calculations!$E$2=\"Shetland Islands Local Authority\",Calculations!$E$2=\"Eilean Siar Local Authority\"),OR($F208=1,$F208=5)),0,new_yllv2(VALUE(LEFT(Options!$B$24,2)),$C208,$D208,$E208,$F208,2016,$I208,1,$H208,$G208*$H208,Options!$B$8)))","v":4312.9068730220997},{"$f":"IF(AND(OR(Calculations!$E$2=\"Orkney Health Board\",Calculations!$E$2=\"Orkney Islands Local Authority\"),$F208=1),0,IF(AND(OR(Calculations!$E$2=\"Shetland Health Board\",Calculations!$E$2=\"Western Isles Health Board\",Calculations!$E$2=\"Shetland Islands Local Authority\",Calculations!$E$2=\"Eilean Siar Local Authority\"),OR($F208=1,$F208=5)),0,new_yllv2(VALUE(LEFT(Options!$B$24,2)),$C208,$D208,$E208,$F208,2016,$I208+$J208,1,$H208,$G208*$H208,Options!$B$8)))","v":4298.4167075128998},{"$f":"IF(AND(OR(Calculations!$E$2=\"Orkney Health Board\",Calculations!$E$2=\"Orkney Islands Local Authority\"),$F208=1),0,IF(AND(OR(Calculations!$E$2=\"Shetland Health Board\",Calculations!$E$2=\"Western Isles Health Board\",Calculations!$E$2=\"Shetland Islands Local Authority\",Calculations!$E$2=\"Eilean Siar Local Authority\"),OR($F208=1,$F208=5)),0,hosp_count(VALUE(LEFT(Options!$B$24,2)),$C208,$E208,$F208,2016,$I208,1,$H208,$G208*$H208, Options!$B$8)))","v":8500.7040771635002},{"$f":"IF(AND(OR(Calculations!$E$2=\"Orkney Health Board\",Calculations!$E$2=\"Orkney Islands Local Authority\"),$F208=1),0,IF(AND(OR(Calculations!$E$2=\"Shetland Health Board\",Calculations!$E$2=\"Western Isles Health Board\",Calculations!$E$2=\"Shetland Islands Local Authority\",Calculations!$E$2=\"Eilean Siar Local Authority\"),OR($F208=1,$F208=5)),0,hosp_count(VALUE(LEFT(Options!$B$24,2)),$C208,$E208,$F208,2016,$I208+$J208,1,$H208,$G208*$H208, Options!$B$8)))","v":8482.9033373719994},{"$f":"IF(AND(OR(Calculations!$E$2=\"Orkney Health Board\",Calculations!$E$2=\"Orkney Islands Local Authority\"),$F208=1),0,IF(AND(OR(Calculations!$E$2=\"Shetland Health Board\",Calculations!$E$2=\"Western Isles Health Board\",Calculations!$E$2=\"Shetland Islands Local Authority\",Calculations!$E$2=\"Eilean Siar Local Authority\"),OR($F208=1,$F208=5)),0,prem_mort(VALUE(LEFT(Options!$B$24,2)),$C208,$E208,$F208,2016,$I208,1,$H208,$G208*$H208,Options!$B$8)))","v":0},{"$f":"IF(AND(OR(Calculations!$E$2=\"Orkney Health Board\",Calculations!$E$2=\"Orkney Islands Local Authority\"),$F208=1),0,IF(AND(OR(Calculations!$E$2=\"Shetland Health Board\",Calculations!$E$2=\"Western Isles Health Board\",Calculations!$E$2=\"Shetland Islands Local Authority\",Calculations!$E$2=\"Eilean Siar Local Authority\"),OR($F208=1,$F208=5)),0,prem_mort(VALUE(LEFT(Options!$B$24,2)),$C208,$E208,$F208,2016,$I208+$J208,1,$H208,$G208*$H208,Options!$B$8)))","v":0},2952.8676901319063,2942.9468773676599,24951.731981614692,24867.901113757012,49179.659110000001,49076.675368076358,0,0,11811470.760527626,11771787.50947064,99806927.926458761,99471604.455028042,196718636.44,196306701.47230542,0,0,4000]
[null,"Male 80-84",81.797089,88.627089999999995,"male",4,{"$f":"HLOOKUP(Calculations!$E$2,'Prevalence Rates'!$C$3:$BC$249,'Prevalence Rates'!$BD209,FALSE)","v":4.07E-2},{"$f":"HLOOKUP(Calculations!$E$2,'Population 2016'!$C$3:$BC$249,'Population 2016'!BD209,FALSE)","v":11713},0,{"$f":"HLOOKUP(Results!E$4,Targeting!$C$3:$F$249,Targeting!$G209,FALSE)","v":1805},{"$f":"IF(AND(OR(Calculations!$E$2=\"Orkney Health Board\",Calculations!$E$2=\"Orkney Islands Local Authority\"),$F209=1),0,IF(AND(OR(Calculations!$E$2=\"Shetland Health Board\",Calculations!$E$2=\"Western Isles Health Board\",Calculations!$E$2=\"Shetland Islands Local Authority\",Calculations!$E$2=\"Eilean Siar Local Authority\"),OR($F209=1,$F209=5)),0,new_ci(VALUE(LEFT(Options!$B$24,2)),$C209,$E209,$F209,2016,$I209,1,$H209,$G209*$H209,Options!$B$8)))","v":496.88532565539998},{"$f":"IF(AND(OR(Calculations!$E$2=\"Orkney Health Board\",Calculations!$E$2=\"Orkney Islands Local Authority\"),$F209=1),0,IF(AND(OR(Calculations!$E$2=\"Shetland Health Board\",Calculations!$E$2=\"Western Isles Health Board\",Calculations!$E$2=\"Shetland Islands Local Authority\",Calculations!$E$2=\"Eilean Siar Local Authority\"),OR($F209=1,$F209=5)),0,new_ci(VALUE(LEFT(Options!$B$24,2)),$C209,$E209,$F209,2016,$I209+$J209,1,$H209,$G209*$H209,Options!$B$8)))","v":495.24456314690002},{"$f":"IF(AND(OR(Calculations!$E$2=\"Orkney Health Board\",Calculations!$E$2=\"Orkney Islands Local Authority\"),$F209=1),0,IF(AND(OR(Calculations!$E$2=\"Shetland Health Board\",Calculations!$E$2=\"Western Isles Health Board\",Calculations!$E$2=\"Shetland Islands Local Authority\",Calculations!$E$2=\"Eilean Siar Local Authority\"),OR($F209=1,$F209=5)),0,new_yllv2(VALUE(LEFT(Options!$B$24,2)),$C209,$D209,$E209,$F209,2016,$I209,1,$H209,$G209*$H209,Options!$B$8)))","v":2896.8419454563},{"$f":"IF(AND(OR(Calculations!$E$2=\"Orkney Health Board\",Calculations!$E$2=\"Orkney Islands Local Authority\"),$F209=1),0,IF(AND(OR(Calculations!$E$2=\"Shetland Health Board\",Calculations!$E$2=\"Western Isles Health Board\",Calculations!$E$2=\"Shetland Islands Local Authority\",Calculations!$E$2=\"Eilean Siar Local Authority\"),OR($F209=1,$F209=5)),0,new_yllv2(VALUE(LEFT(Options!$B$24,2)),$C209,$D209,$E209,$F209,2016,$I209+$J209,1,$H209,$G209*$H209,Options!$B$8)))","v":2887.2762983910002},{"$f":"IF(AND(OR(Calculations!$E$2=\"Orkney Health Board\",Calculations!$E$2=\"Orkney Islands Local Authority\"),$F209=1),0,IF(AND(OR(Calculations!$E$2=\"Shetland Health Board\",Calculations!$E$2=\"Western Isles Health Board\",Calculations!$E$2=\"Shetland Islands Local Authority\",Calculations!$E$2=\"Eilean Siar Local Authority\"),OR($F209=1,$F209=5)),0,hosp_count(VALUE(LEFT(Options!$B$24,2)),$C209,$E209,$F209,2016,$I209,1,$H209,$G209*$H209, Options!$B$8)))","v":6852.1264324473996},{"$f":"IF(AND(OR(Calculations!$E$2=\"Orkney Health Board\",Calculations!$E$2=\"Orkney Islands Local Authority\"),$F209=1),0,IF(AND(OR(Calculations!$E$2=\"Shetland Health Board\",Calculations!$E$2=\"Western Isles Health Board\",Calculations!$E$2=\"Shetland Islands Local Authority\",Calculations!$E$2=\"Eilean Siar Local Authority\"),OR($F209=1,$F209=5)),0,hosp_count(VALUE(LEFT(Options!$B$24,2)),$C209,$E209,$F209,2016,$I209+$J209,1,$H209,$G209*$H209, Options!$B$8)))","v":6837.7743209073997},{"$f":"IF(AND(OR(Calculations!$E$2=\"Orkney Health Board\",Calculations!$E$2=\"Orkney Islands Local Authority\"),$F209=1),0,IF(AND(OR(Calculations!$E$2=\"Shetland Health Board\",Calculations!$E$2=\"Western Isles Health Board\",Calculations!$E$2=\"Shetland Islands Local Authority\",Calculations!$E$2=\"Eilean Siar Local Authority\"),OR($F209=1,$F209=5)),0,prem_mort(VALUE(LEFT(Options!$B$24,2)),$C209,$E209,$F209,2016,$I209,1,$H209,$G209*$H209,Options!$B$8)))","v":0},{"$f":"IF(AND(OR(Calculations!$E$2=\"Orkney Health Board\",Calculations!$E$2=\"Orkney Islands Local Authority\"),$F209=1),0,IF(AND(OR(Calculations!$E$2=\"Shetland Health Board\",Calculations!$E$2=\"Western Isles Health Board\",Calculations!$E$2=\"Shetland Islands Local Authority\",Calculations!$E$2=\"Eilean Siar Local Authority\"),OR($F209=1,$F209=5)),0,prem_mort(VALUE(LEFT(Options!$B$24,2)),$C209,$E209,$F209,2016,$I209+$J209,1,$H209,$G209*$H209,Options!$B$8)))","v":0},4242.1696034781871,4228.1615567907456,24731.853030447364,24650.186104251687,58500.182979999998,58377.651506082126,0,0,10605424.008695468,10570403.891976865,61829632.57611841,61625465.260629214,146250457.44999999,145944128.76520532,0,0,2500]
[null,"Male 85-89",86.630752999999999,91.420750000000012,"male",4,{"$f":"HLOOKUP(Calculations!$E$2,'Prevalence Rates'!$C$3:$BC$249,'Prevalence Rates'!$BD210,FALSE)","v":4.07E-2},{"$f":"HLOOKUP(Calculations!$E$2,'Population 2016'!$C$3:$BC$249,'Population 2016'!BD210,FALSE)","v":6184},0,{"$f":"HLOOKUP(Results!E$4,Targeting!$C$3:$F$249,Targeting!$G210,FALSE)","v":953},{"$f":"IF(AND(OR(Calculations!$E$2=\"Orkney Health Board\",Calculations!$E$2=\"Orkney Islands Local Authority\"),$F210=1),0,IF(AND(OR(Calculations!$E$2=\"Shetland Health Board\",Calculations!$E$2=\"Western Isles Health Board\",Calculations!$E$2=\"Shetland Islands Local Authority\",Calculations!$E$2=\"Eilean Siar Local Authority\"),OR($F210=1,$F210=5)),0,new_ci(VALUE(LEFT(Options!$B$24,2)),$C210,$E210,$F210,2016,$I210,1,$H210,$G210*$H210,Options!$B$8)))","v":374.21458838130002},{"$f":"IF(AND(OR(Calculations!$E$2=\"Orkney Health Board\",Calculations!$E$2=\"Orkney Islands Local Authority\"),$F210=1),0,IF(AND(OR(Calculations!$E$2=\"Shetland Health Board\",Calculations!$E$2=\"Western Isles Health Board\",Calculations!$E$2=\"Shetland Islands Local Authority\",Calculations!$E$2=\"Eilean Siar Local Authority\"),OR($F210=1,$F210=5)),0,new_ci(VALUE(LEFT(Options!$B$24,2)),$C210,$E210,$F210,2016,$I210+$J210,1,$H210,$G210*$H210,Options!$B$8)))","v":373.00945040760001},{"$f":"IF(AND(OR(Calculations!$E$2=\"Orkney Health Board\",Calculations!$E$2=\"Orkney Islands Local Authority\"),$F210=1),0,IF(AND(OR(Calculations!$E$2=\"Shetland Health Board\",Calculations!$E$2=\"Western Isles Health Board\",Calculations!$E$2=\"Shetland Islands Local Authority\",Calculations!$E$2=\"Eilean Siar Local Authority\"),OR($F210=1,$F210=5)),0,new_yllv2(VALUE(LEFT(Options!$B$24,2)),$C210,$D210,$E210,$F210,2016,$I210,1,$H210,$G210*$H210,Options!$B$8)))","v":1418.2721673214},{"$f":"IF(AND(OR(Calculations!$E$2=\"Orkney Health Board\",Calculations!$E$2=\"Orkney Islands Local Authority\"),$F210=1),0,IF(AND(OR(Calculations!$E$2=\"Shetland Health Board\",Calculations!$E$2=\"Western Isles Health Board\",Calculations!$E$2=\"Shetland Islands Local Authority\",Calculations!$E$2=\"Eilean Siar Local Authority\"),OR($F210=1,$F210=5)),0,new_yllv2(VALUE(LEFT(Options!$B$24,2)),$C210,$D210,$E210,$F210,2016,$I210+$J210,1,$H210,$G210*$H210,Options!$B$8)))","v":1413.7046980165001},{"$f":"IF(AND(OR(Calculations!$E$2=\"Orkney Health Board\",Calculations!$E$2=\"Orkney Islands Local Authority\"),$F210=1),0,IF(AND(OR(Calculations!$E$2=\"Shetland Health Board\",Calculations!$E$2=\"Western Isles Health Board\",Calculations!$E$2=\"Shetland Islands Local Authority\",Calculations!$E$2=\"Eilean Siar Local Authority\"),OR($F210=1,$F210=5)),0,hosp_count(VALUE(LEFT(Options!$B$24,2)),$C210,$E210,$F210,2016,$I210,1,$H210,$G210*$H210, Options!$B$8)))","v":4294.7648959575999},{"$f":"IF(AND(OR(Calculations!$E$2=\"Orkney Health Board\",Calculations!$E$2=\"Orkney Islands Local Authority\"),$F210=1),0,IF(AND(OR(Calculations!$E$2=\"Shetland Health Board\",Calculations!$E$2=\"Western Isles Health Board\",Calculations!$E$2=\"Shetland Islands Local Authority\",Calculations!$E$2=\"Eilean Siar Local Authority\"),OR($F210=1,$F210=5)),0,hosp_count(VALUE(LEFT(Options!$B$24,2)),$C210,$E210,$F210,2016,$I210+$J210,1,$H210,$G210*$H210, Options!$B$8)))","v":4285.7690050625997},{"$f":"IF(AND(OR(Calculations!$E$2=\"Orkney Health Board\",Calculations!$E$2=\"Orkney Islands Local Authority\"),$F210=1),0,IF(AND(OR(Calculations!$E$2=\"Shetland Health Board\",Calculations!$E$2=\"Western Isles Health Board\",Calculations!$E$2=\"Shetland Islands Local Authority\",Calculations!$E$2=\"Eilean Siar Local Authority\"),OR($F210=1,$F210=5)),0,prem_mort(VALUE(LEFT(Options!$B$24,2)),$C210,$E210,$F210,2016,$I210,1,$H210,$G210*$H210,Options!$B$8)))","v":0},{"$f":"IF(AND(OR(Calculations!$E$2=\"Orkney Health Board\",Calculations!$E$2=\"Orkney Islands Local Authority\"),$F210=1),0,IF(AND(OR(Calculations!$E$2=\"Shetland Health Board\",Calculations!$E$2=\"Western Isles Health Board\",Calculations!$E$2=\"Shetland Islands Local Authority\",Calculations!$E$2=\"Eilean Siar Local Authority\"),OR($F210=1,$F210=5)),0,prem_mort(VALUE(LEFT(Options!$B$24,2)),$C210,$E210,$F210,2016,$I210+$J210,1,$H210,$G210*$H210,Options!$B$8)))","v":0},6051.3355171620315,6031.8475162936611,22934.543456038165,22860.683991211194,69449.626390000005,69304.15596802393,0,0,9077003.2757430468,9047771.2744404916,34401815.184057251,34291025.986816794,104174439.58500001,103956233.95203589,0,0,1500]
[null,"Male 90+",92.215477000000007,95.515479999999997,"male",4,{"$f":"HLOOKUP(Calculations!$E$2,'Prevalence Rates'!$C$3:$BC$249,'Prevalence Rates'!$BD211,FALSE)","v":4.07E-2},{"$f":"HLOOKUP(Calculations!$E$2,'Population 2016'!$C$3:$BC$249,'Population 2016'!BD211,FALSE)","v":2544},0,{"$f":"HLOOKUP(Results!E$4,Targeting!$C$3:$F$249,Targeting!$G211,FALSE)","v":392},{"$f":"IF(AND(OR(Calculations!$E$2=\"Orkney Health Board\",Calculations!$E$2=\"Orkney Islands Local Authority\"),$F211=1),0,IF(AND(OR(Calculations!$E$2=\"Shetland Health Board\",Calculations!$E$2=\"Western Isles Health Board\",Calculations!$E$2=\"Shetland Islands Local Authority\",Calculations!$E$2=\"Eilean Siar Local Authority\"),OR($F211=1,$F211=5)),0,new_ci(VALUE(LEFT(Options!$B$24,2)),$C211,$E211,$F211,2016,$I211,1,$H211,$G211*$H211,Options!$B$8)))","v":230.8205958126},{"$f":"IF(AND(OR(Calculations!$E$2=\"Orkney Health Board\",Calculations!$E$2=\"Orkney Islands Local Authority\"),$F211=1),0,IF(AND(OR(Calculations!$E$2=\"Shetland Health Board\",Calculations!$E$2=\"Western Isles Health Board\",Calculations!$E$2=\"Shetland Islands Local Authority\",Calculations!$E$2=\"Eilean Siar Local Authority\"),OR($F211=1,$F211=5)),0,new_ci(VALUE(LEFT(Options!$B$24,2)),$C211,$E211,$F211,2016,$I211+$J211,1,$H211,$G211*$H211,Options!$B$8)))","v":230.10869037500001},{"$f":"IF(AND(OR(Calculations!$E$2=\"Orkney Health Board\",Calculations!$E$2=\"Orkney Islands Local Authority\"),$F211=1),0,IF(AND(OR(Calculations!$E$2=\"Shetland Health Board\",Calculations!$E$2=\"Western Isles Health Board\",Calculations!$E$2=\"Shetland Islands Local Authority\",Calculations!$E$2=\"Eilean Siar Local Authority\"),OR($F211=1,$F211=5)),0,new_yllv2(VALUE(LEFT(Options!$B$24,2)),$C211,$D211,$E211,$F211,2016,$I211,1,$H211,$G211*$H211,Options!$B$8)))","v":530.88806283079998},{"$f":"IF(AND(OR(Calculations!$E$2=\"Orkney Health Board\",Calculations!$E$2=\"Orkney Islands Local Authority\"),$F211=1),0,IF(AND(OR(Calculations!$E$2=\"Shetland Health Board\",Calculations!$E$2=\"Western Isles Health Board\",Calculations!$E$2=\"Shetland Islands Local Authority\",Calculations!$E$2=\"Eilean Siar Local Authority\"),OR($F211=1,$F211=5)),0,new_yllv2(VALUE(LEFT(Options!$B$24,2)),$C211,$D211,$E211,$F211,2016,$I211+$J211,1,$H211,$G211*$H211,Options!$B$8)))","v":529.25067818859998},{"$f":"IF(AND(OR(Calculations!$E$2=\"Orkney Health Board\",Calculations!$E$2=\"Orkney Islands Local Authority\"),$F211=1),0,IF(AND(OR(Calculations!$E$2=\"Shetland Health Board\",Calculations!$E$2=\"Western Isles Health Board\",Calculations!$E$2=\"Shetland Islands Local Authority\",Calculations!$E$2=\"Eilean Siar Local Authority\"),OR($F211=1,$F211=5)),0,hosp_count(VALUE(LEFT(Options!$B$24,2)),$C211,$E211,$F211,2016,$I211,1,$H211,$G211*$H211, Options!$B$8)))","v":2154.1580945711999},{"$f":"IF(AND(OR(Calculations!$E$2=\"Orkney Health Board\",Calculations!$E$2=\"Orkney Islands Local Authority\"),$F211=1),0,IF(AND(OR(Calculations!$E$2=\"Shetland Health Board\",Calculations!$E$2=\"Western Isles Health Board\",Calculations!$E$2=\"Shetland Islands Local Authority\",Calculations!$E$2=\"Eilean Siar Local Authority\"),OR($F211=1,$F211=5)),0,hosp_count(VALUE(LEFT(Options!$B$24,2)),$C211,$E211,$F211,2016,$I211+$J211,1,$H211,$G211*$H211, Options!$B$8)))","v":2149.6465224996},{"$f":"IF(AND(OR(Calculations!$E$2=\"Orkney Health Board\",Calculations!$E$2=\"Orkney Islands Local Authority\"),$F211=1),0,IF(AND(OR(Calculations!$E$2=\"Shetland Health Board\",Calculations!$E$2=\"Western Isles Health Board\",Calculations!$E$2=\"Shetland Islands Local Authority\",Calculations!$E$2=\"Eilean Siar Local Authority\"),OR($F211=1,$F211=5)),0,prem_mort(VALUE(LEFT(Options!$B$24,2)),$C211,$E211,$F211,2016,$I211,1,$H211,$G211*$H211,Options!$B$8)))","v":0},{"$f":"IF(AND(OR(Calculations!$E$2=\"Orkney Health Board\",Calculations!$E$2=\"Orkney Islands Local Authority\"),$F211=1),0,IF(AND(OR(Calculations!$E$2=\"Shetland Health Board\",Calculations!$E$2=\"Western Isles Health Board\",Calculations!$E$2=\"Shetland Islands Local Authority\",Calculations!$E$2=\"Eilean Siar Local Authority\"),OR($F211=1,$F211=5)),0,prem_mort(VALUE(LEFT(Options!$B$24,2)),$C211,$E211,$F211,2016,$I211+$J211,1,$H211,$G211*$H211,Options!$B$8)))","v":0},9073.1366278537735,9045.1529235455982,20868.241463474842,20803.878859614779,84676.025729999994,84498.684060518877,0,0,9073136.6278537735,9045152.923545599,20868241.463474844,20803878.859614778,84676025.729999989,84498684.060518876,0,0,1000]
[null,"Female 0-4",2.0384007,81.468401,"female",5,{"$f":"HLOOKUP(Calculations!$E$2,'Prevalence Rates'!$C$3:$BC$249,'Prevalence Rates'!$BD212,FALSE)","v":0},{"$f":"HLOOKUP(Calculations!$E$2,'Population 2016'!$C$3:$BC$249,'Population 2016'!BD212,FALSE)","v":0},0,{"$f":"HLOOKUP(Results!E$4,Targeting!$C$3:$F$249,Targeting!$G212,FALSE)","v":0},{"$f":"IF(AND(OR(Calculations!$E$2=\"Orkney Health Board\",Calculations!$E$2=\"Orkney Islands Local Authority\"),$F212=1),0,IF(AND(OR(Calculations!$E$2=\"Shetland Health Board\",Calculations!$E$2=\"Western Isles Health Board\",Calculations!$E$2=\"Shetland Islands Local Authority\",Calculations!$E$2=\"Eilean Siar Local Authority\"),OR($F212=1,$F212=5)),0,new_ci(VALUE(LEFT(Options!$B$24,2)),$C212,$E212,$F212,2016,$I212,1,$H212,$G212*$H212,Options!$B$8)))","v":{"$error":"#VALUE!"}},{"$f":"IF(AND(OR(Calculations!$E$2=\"Orkney Health Board\",Calculations!$E$2=\"Orkney Islands Local Authority\"),$F212=1),0,IF(AND(OR(Calculations!$E$2=\"Shetland Health Board\",Calculations!$E$2=\"Western Isles Health Board\",Calculations!$E$2=\"Shetland Islands Local Authority\",Calculations!$E$2=\"Eilean Siar Local Authority\"),OR($F212=1,$F212=5)),0,new_ci(VALUE(LEFT(Options!$B$24,2)),$C212,$E212,$F212,2016,$I212+$J212,1,$H212,$G212*$H212,Options!$B$8)))","v":{"$error":"#VALUE!"}},{"$f":"IF(AND(OR(Calculations!$E$2=\"Orkney Health Board\",Calculations!$E$2=\"Orkney Islands Local Authority\"),$F212=1),0,IF(AND(OR(Calculations!$E$2=\"Shetland Health Board\",Calculations!$E$2=\"Western Isles Health Board\",Calculations!$E$2=\"Shetland Islands Local Authority\",Calculations!$E$2=\"Eilean Siar Local Authority\"),OR($F212=1,$F212=5)),0,new_yllv2(VALUE(LEFT(Options!$B$24,2)),$C212,$D212,$E212,$F212,2016,$I212,1,$H212,$G212*$H212,Options!$B$8)))","v":{"$error":"#VALUE!"}},{"$f":"IF(AND(OR(Calculations!$E$2=\"Orkney Health Board\",Calculations!$E$2=\"Orkney Islands Local Authority\"),$F212=1),0,IF(AND(OR(Calculations!$E$2=\"Shetland Health Board\",Calculations!$E$2=\"Western Isles Health Board\",Calculations!$E$2=\"Shetland Islands Local Authority\",Calculations!$E$2=\"Eilean Siar Local Authority\"),OR($F212=1,$F212=5)),0,new_yllv2(VALUE(LEFT(Options!$B$24,2)),$C212,$D212,$E212,$F212,2016,$I212+$J212,1,$H212,$G212*$H212,Options!$B$8)))","v":{"$error":"#VALUE!"}},{"$f":"IF(AND(OR(Calculations!$E$2=\"Orkney Health Board\",Calculations!$E$2=\"Orkney Islands Local Authority\"),$F212=1),0,IF(AND(OR(Calculations!$E$2=\"Shetland Health Board\",Calculations!$E$2=\"Western Isles Health Board\",Calculations!$E$2=\"Shetland Islands Local Authority\",Calculations!$E$2=\"Eilean Siar Local Authority\"),OR($F212=1,$F212=5)),0,hosp_count(VALUE(LEFT(Options!$B$24,2)),$C212,$E212,$F212,2016,$I212,1,$H212,$G212*$H212, Options!$B$8)))","v":{"$error":"#VALUE!"}},{"$f":"IF(AND(OR(Calculations!$E$2=\"Orkney Health Board\",Calculations!$E$2=\"Orkney Islands Local Authority\"),$F212=1),0,IF(AND(OR(Calculations!$E$2=\"Shetland Health Board\",Calculations!$E$2=\"Western Isles Health Board\",Calculations!$E$2=\"Shetland Islands Local Authority\",Calculations!$E$2=\"Eilean Siar Local Authority\"),OR($F212=1,$F212=5)),0,hosp_count(VALUE(LEFT(Options!$B$24,2)),$C212,$E212,$F212,2016,$I212+$J212,1,$H212,$G212*$H212, Options!$B$8)))","v":{"$error":"#VALUE!"}},{"$f":"IF(AND(OR(Calculations!$E$2=\"Orkney Health Board\",Calculations!$E$2=\"Orkney Islands Local Authority\"),$F212=1),0,IF(AND(OR(Calculations!$E$2=\"Shetland Health Board\",Calculations!$E$2=\"Western Isles Health Board\",Calculations!$E$2=\"Shetland Islands Local Authority\",Calculations!$E$2=\"Eilean Siar Local Authority\"),OR($F212=1,$F212=5)),0,prem_mort(VALUE(LEFT(Options!$B$24,2)),$C212,$E212,$F212,2016,$I212,1,$H212,$G212*$H212,Options!$B$8)))","v":{"$error":"#VALUE!"}},{"$f":"IF(AND(OR(Calculations!$E$2=\"Orkney Health Board\",Calculations!$E$2=\"Orkney Islands Local Authority\"),$F212=1),0,IF(AND(OR(Calculations!$E$2=\"Shetland Health Board\",Calculations!$E$2=\"Western Isles Health Board\",Calculations!$E$2=\"Shetland Islands Local Authority\",Calculations!$E$2=\"Eilean Siar Local Authority\"),OR($F212=1,$F212=5)),0,prem_mort(VALUE(LEFT(Options!$B$24,2)),$C212,$E212,$F212,2016,$I212+$J212,1,$H212,$G212*$H212,Options!$B$8)))","v":{"$error":"#VALUE!"}},{"$error":"#VALUE!"},{"$error":"#VALUE!"},{"$error":"#VALUE!"},{"$error":"#VALUE!"},{"$error":"#VALUE!"},{"$error":"#VALUE!"},{"$error":"#VALUE!"},{"$error":"#VALUE!"},{"$error":"#VALUE!"},{"$error":"#VALUE!"},{"$error":"#VALUE!"},{"$error":"#VALUE!"},{"$error":"#VALUE!"},{"$error":"#VALUE!"},{"$error":"#VALUE!"},{"$error":"#VALUE!"},5000]
[null,"Female 5-9",6.9792794999999996,81.439279999999997,"female",5,{"$f":"HLOOKUP(Calculations!$E$2,'Prevalence Rates'!$C$3:$BC$249,'Prevalence Rates'!$BD213,FALSE)","v":0},{"$f":"HLOOKUP(Calculations!$E$2,'Population 2016'!$C$3:$BC$249,'Population 2016'!BD213,FALSE)","v":0},0,{"$f":"HLOOKUP(Results!E$4,Targeting!$C$3:$F$249,Targeting!$G213,FALSE)","v":0},{"$f":"IF(AND(OR(Calculations!$E$2=\"Orkney Health Board\",Calculations!$E$2=\"Orkney Islands Local Authority\"),$F213=1),0,IF(AND(OR(Calculations!$E$2=\"Shetland Health Board\",Calculations!$E$2=\"Western Isles Health Board\",Calculations!$E$2=\"Shetland Islands Local Authority\",Calculations!$E$2=\"Eilean Siar Local Authority\"),OR($F213=1,$F213=5)),0,new_ci(VALUE(LEFT(Options!$B$24,2)),$C213,$E213,$F213,2016,$I213,1,$H213,$G213*$H213,Options!$B$8)))","v":{"$error":"#VALUE!"}},{"$f":"IF(AND(OR(Calculations!$E$2=\"Orkney Health Board\",Calculations!$E$2=\"Orkney Islands Local Authority\"),$F213=1),0,IF(AND(OR(Calculations!$E$2=\"Shetland Health Board\",Calculations!$E$2=\"Western Isles Health Board\",Calculations!$E$2=\"Shetland Islands Local Authority\",Calculations!$E$2=\"Eilean Siar Local Authority\"),OR($F213=1,$F213=5)),0,new_ci(VALUE(LEFT(Options!$B$24,2)),$C213,$E213,$F213,2016,$I213+$J213,1,$H213,$G213*$H213,Options!$B$8)))","v":{"$error":"#VALUE!"}},{"$f":"IF(AND(OR(Calculations!$E$2=\"Orkney Health Board\",Calculations!$E$2=\"Orkney Islands Local Authority\"),$F213=1),0,IF(AND(OR(Calculations!$E$2=\"Shetland Health Board\",Calculations!$E$2=\"Western Isles Health Board\",Calculations!$E$2=\"Shetland Islands Local Authority\",Calculations!$E$2=\"Eilean Siar Local Authority\"),OR($F213=1,$F213=5)),0,new_yllv2(VALUE(LEFT(Options!$B$24,2)),$C213,$D213,$E213,$F213,2016,$I213,1,$H213,$G213*$H213,Options!$B$8)))","v":{"$error":"#VALUE!"}},{"$f":"IF(AND(OR(Calculations!$E$2=\"Orkney Health Board\",Calculations!$E$2=\"Orkney Islands Local Authority\"),$F213=1),0,IF(AND(OR(Calculations!$E$2=\"Shetland Health Board\",Calculations!$E$2=\"Western Isles Health Board\",Calculations!$E$2=\"Shetland Islands Local Authority\",Calculations!$E$2=\"Eilean Siar Local Authority\"),OR($F213=1,$F213=5)),0,new_yllv2(VALUE(LEFT(Options!$B$24,2)),$C213,$D213,$E213,$F213,2016,$I213+$J213,1,$H213,$G213*$H213,Options!$B$8)))","v":{"$error":"#VALUE!"}},{"$f":"IF(AND(OR(Calculations!$E$2=\"Orkney Health Board\",Calculations!$E$2=\"Orkney Islands Local Authority\"),$F213=1),0,IF(AND(OR(Calculations!$E$2=\"Shetland Health Board\",Calculations!$E$2=\"Western Isles Health Board\",Calculations!$E$2=\"Shetland Islands Local Authority\",Calculations!$E$2=\"Eilean Siar Local Authority\"),OR($F213=1,$F213=5)),0,hosp_count(VALUE(LEFT(Options!$B$24,2)),$C213,$E213,$F213,2016,$I213,1,$H213,$G213*$H213, Options!$B$8)))","v":{"$error":"#VALUE!"}},{"$f":"IF(AND(OR(Calculations!$E$2=\"Orkney Health Board\",Calculations!$E$2=\"Orkney Islands Local Authority\"),$F213=1),0,IF(AND(OR(Calculations!$E$2=\"Shetland Health Board\",Calculations!$E$2=\"Western Isles Health Board\",Calculations!$E$2=\"Shetland Islands Local Authority\",Calculations!$E$2=\"Eilean Siar Local Authority\"),OR($F213=1,$F213=5)),0,hosp_count(VALUE(LEFT(Options!$B$24,2)),$C213,$E213,$F213,2016,$I213+$J213,1,$H213,$G213*$H213, Options!$B$8)))","v":{"$error":"#VALUE!"}},{"$f":"IF(AND(OR(Calculations!$E$2=\"Orkney Health Board\",Calculations!$E$2=\"Orkney Islands Local Authority\"),$F213=1),0,IF(AND(OR(Calculations!$E$2=\"Shetland Health Board\",Calculations!$E$2=\"Western Isles Health Board\",Calculations!$E$2=\"Shetland Islands Local Authority\",Calculations!$E$2=\"Eilean Siar Local Authority\"),OR($F213=1,$F213=5)),0,prem_mort(VALUE(LEFT(Options!$B$24,2)),$C213,$E213,$F213,2016,$I213,1,$H213,$G213*$H213,Options!$B$8)))","v":{"$error":"#VALUE!"}},{"$f":"IF(AND(OR(Calculations!$E$2=\"Orkney Health Board\",Calculations!$E$2=\"Orkney Islands Local Authority\"),$F213=1),0,IF(AND(OR(Calculations!$E$2=\"Shetland Health Board\",Calculations!$E$2=\"Western Isles Health Board\",Calculations!$E$2=\"Shetland Islands Local Authority\",Calculations!$E$2=\"Eilean Siar Local Authority\"),OR($F213=1,$F213=5)),0,prem_mort(VALUE(LEFT(Options!$B$24,2)),$C213,$E213,$F213,2016,$I213+$J213,1,$H213,$G213*$H213,Options!$B$8)))","v":{"$error":"#VALUE!"}},{"$error":"#VALUE!"},{"$error":"#VALUE!"},{"$error":"#VALUE!"},{"$error":"#VALUE!"},{"$error":"#VALUE!"},{"$error":"#VALUE!"},{"$error":"#VALUE!"},{"$error":"#VALUE!"},{"$error":"#VALUE!"},{"$error":"#VALUE!"},{"$error":"#VALUE!"},{"$error":"#VALUE!"},{"$error":"#VALUE!"},{"$error":"#VALUE!"},{"$error":"#VALUE!"},{"$error":"#VALUE!"},5500]
[null,"Female 10-15",12.478312000000001,81.948309999999992,"female",5,{"$f":"HLOOKUP(Calculations!$E$2,'Prevalence Rates'!$C$3:$BC$249,'Prevalence Rates'!$BD214,FALSE)","v":0},{"$f":"HLOOKUP(Calculations!$E$2,'Population 2016'!$C$3:$BC$249,'Population 2016'!BD214,FALSE)","v":0},0,{"$f":"HLOOKUP(Results!E$4,Targeting!$C$3:$F$249,Targeting!$G214,FALSE)","v":0},{"$f":"IF(AND(OR(Calculations!$E$2=\"Orkney Health Board\",Calculations!$E$2=\"Orkney Islands Local Authority\"),$F214=1),0,IF(AND(OR(Calculations!$E$2=\"Shetland Health Board\",Calculations!$E$2=\"Western Isles Health Board\",Calculations!$E$2=\"Shetland Islands Local Authority\",Calculations!$E$2=\"Eilean Siar Local Authority\"),OR($F214=1,$F214=5)),0,new_ci(VALUE(LEFT(Options!$B$24,2)),$C214,$E214,$F214,2016,$I214,1,$H214,$G214*$H214,Options!$B$8)))","v":{"$error":"#VALUE!"}},{"$f":"IF(AND(OR(Calculations!$E$2=\"Orkney Health Board\",Calculations!$E$2=\"Orkney Islands Local Authority\"),$F214=1),0,IF(AND(OR(Calculations!$E$2=\"Shetland Health Board\",Calculations!$E$2=\"Western Isles Health Board\",Calculations!$E$2=\"Shetland Islands Local Authority\",Calculations!$E$2=\"Eilean Siar Local Authority\"),OR($F214=1,$F214=5)),0,new_ci(VALUE(LEFT(Options!$B$24,2)),$C214,$E214,$F214,2016,$I214+$J214,1,$H214,$G214*$H214,Options!$B$8)))","v":{"$error":"#VALUE!"}},{"$f":"IF(AND(OR(Calculations!$E$2=\"Orkney Health Board\",Calculations!$E$2=\"Orkney Islands Local Authority\"),$F214=1),0,IF(AND(OR(Calculations!$E$2=\"Shetland Health Board\",Calculations!$E$2=\"Western Isles Health Board\",Calculations!$E$2=\"Shetland Islands Local Authority\",Calculations!$E$2=\"Eilean Siar Local Authority\"),OR($F214=1,$F214=5)),0,new_yllv2(VALUE(LEFT(Options!$B$24,2)),$C214,$D214,$E214,$F214,2016,$I214,1,$H214,$G214*$H214,Options!$B$8)))","v":{"$error":"#VALUE!"}},{"$f":"IF(AND(OR(Calculations!$E$2=\"Orkney Health Board\",Calculations!$E$2=\"Orkney Islands Local Authority\"),$F214=1),0,IF(AND(OR(Calculations!$E$2=\"Shetland Health Board\",Calculations!$E$2=\"Western Isles Health Board\",Calculations!$E$2=\"Shetland Islands Local Authority\",Calculations!$E$2=\"Eilean Siar Local Authority\"),OR($F214=1,$F214=5)),0,new_yllv2(VALUE(LEFT(Options!$B$24,2)),$C214,$D214,$E214,$F214,2016,$I214+$J214,1,$H214,$G214*$H214,Options!$B$8)))","v":{"$error":"#VALUE!"}},{"$f":"IF(AND(OR(Calculations!$E$2=\"Orkney Health Board\",Calculations!$E$2=\"Orkney Islands Local Authority\"),$F214=1),0,IF(AND(OR(Calculations!$E$2=\"Shetland Health Board\",Calculations!$E$2=\"Western Isles Health Board\",Calculations!$E$2=\"Shetland Islands Local Authority\",Calculations!$E$2=\"Eilean Siar Local Authority\"),OR($F214=1,$F214=5)),0,hosp_count(VALUE(LEFT(Options!$B$24,2)),$C214,$E214,$F214,2016,$I214,1,$H214,$G214*$H214, Options!$B$8)))","v":{"$error":"#VALUE!"}},{"$f":"IF(AND(OR(Calculations!$E$2=\"Orkney Health Board\",Calculations!$E$2=\"Orkney Islands Local Authority\"),$F214=1),0,IF(AND(OR(Calculations!$E$2=\"Shetland Health Board\",Calculations!$E$2=\"Western Isles Health Board\",Calculations!$E$2=\"Shetland Islands Local Authority\",Calculations!$E$2=\"Eilean Siar Local Authority\"),OR($F214=1,$F214=5)),0,hosp_count(VALUE(LEFT(Options!$B$24,2)),$C214,$E214,$F214,2016,$I214+$J214,1,$H214,$G214*$H214, Options!$B$8)))","v":{"$error":"#VALUE!"}},{"$f":"IF(AND(OR(Calculations!$E$2=\"Orkney Health Board\",Calculations!$E$2=\"Orkney Islands Local Authority\"),$F214=1),0,IF(AND(OR(Calculations!$E$2=\"Shetland Health Board\",Calculations!$E$2=\"Western Isles Health Board\",Calculations!$E$2=\"Shetland Islands Local Authority\",Calculations!$E$2=\"Eilean Siar Local Authority\"),OR($F214=1,$F214=5)),0,prem_mort(VALUE(LEFT(Options!$B$24,2)),$C214,$E214,$F214,2016,$I214,1,$H214,$G214*$H214,Options!$B$8)))","v":{"$error":"#VALUE!"}},{"$f":"IF(AND(OR(Calculations!$E$2=\"Orkney Health Board\",Calculations!$E$2=\"Orkney Islands Local Authority\"),$F214=1),0,IF(AND(OR(Calculations!$E$2=\"Shetland Health Board\",Calculations!$E$2=\"Western Isles Health Board\",Calculations!$E$2=\"Shetland Islands Local Authority\",Calculations!$E$2=\"Eilean Siar Local Authority\"),OR($F214=1,$F214=5)),0,prem_mort(VALUE(LEFT(Options!$B$24,2)),$C214,$E214,$F214,2016,$I214+$J214,1,$H214,$G214*$H214,Options!$B$8)))","v":{"$error":"#VALUE!"}},{"$error":"#VALUE!"},{"$error":"#VALUE!"},{"$error":"#VALUE!"},{"$error":"#VALUE!"},{"$error":"#VALUE!"},{"$error":"#VALUE!"},{"$error":"#VALUE!"},{"$error":"#VALUE!"},{"$error":"#VALUE!"},{"$error":"#VALUE!"},{"$error":"#VALUE!"},{"$error":"#VALUE!"},{"$error":"#VALUE!"},{"$error":"#VALUE!"},{"$error":"#VALUE!"},{"$error":"#VALUE!"},6600]
["SIMD Q5 (least deprived)","Female 16-19",17.570053000000001,81.100049999999996,"female",5,{"$f":"HLOOKUP(Calculations!$E$2,'Prevalence Rates'!$C$3:$BC$249,'Prevalence Rates'!$BD215,FALSE)","v":9.8299999999999998E-2},{"$f":"HLOOKUP(Calculations!$E$2,'Population 2016'!$C$3:$BC$249,'Population 2016'!BD215,FALSE)","v":25268},0,{"$f":"HLOOKUP(Results!E$4,Targeting!$C$3:$F$249,Targeting!$G215,FALSE)","v":3893},{"$f":"IF(AND(OR(Calculations!$E$2=\"Orkney Health Board\",Calculations!$E$2=\"Orkney Islands Local Authority\"),$F215=1),0,IF(AND(OR(Calculations!$E$2=\"Shetland Health Board\",Calculations!$E$2=\"Western Isles Health Board\",Calculations!$E$2=\"Shetland Islands Local Authority\",Calculations!$E$2=\"Eilean Siar Local Authority\"),OR($F215=1,$F215=5)),0,new_ci(VALUE(LEFT(Options!$B$24,2)),$C215,$E215,$F215,2016,$I215,1,$H215,$G215*$H215,Options!$B$8)))","v":2.6542100654},{"$f":"IF(AND(OR(Calculations!$E$2=\"Orkney Health Board\",Calculations!$E$2=\"Orkney Islands Local Authority\"),$F215=1),0,IF(AND(OR(Calculations!$E$2=\"Shetland Health Board\",Calculations!$E$2=\"Western Isles Health Board\",Calculations!$E$2=\"Shetland Islands Local Authority\",Calculations!$E$2=\"Eilean Siar Local Authority\"),OR($F215=1,$F215=5)),0,new_ci(VALUE(LEFT(Options!$B$24,2)),$C215,$E215,$F215,2016,$I215+$J215,1,$H215,$G215*$H215,Options!$B$8)))","v":2.6415469150000002},{"$f":"IF(AND(OR(Calculations!$E$2=\"Orkney Health Board\",Calculations!$E$2=\"Orkney Islands Local Authority\"),$F215=1),0,IF(AND(OR(Calculations!$E$2=\"Shetland Health Board\",Calculations!$E$2=\"Western Isles Health Board\",Calculations!$E$2=\"Shetland Islands Local Authority\",Calculations!$E$2=\"Eilean Siar Local Authority\"),OR($F215=1,$F215=5)),0,new_yllv2(VALUE(LEFT(Options!$B$24,2)),$C215,$D215,$E215,$F215,2016,$I215,1,$H215,$G215*$H215,Options!$B$8)))","v":165.9677474268},{"$f":"IF(AND(OR(Calculations!$E$2=\"Orkney Health Board\",Calculations!$E$2=\"Orkney Islands Local Authority\"),$F215=1),0,IF(AND(OR(Calculations!$E$2=\"Shetland Health Board\",Calculations!$E$2=\"Western Isles Health Board\",Calculations!$E$2=\"Shetland Islands Local Authority\",Calculations!$E$2=\"Eilean Siar Local Authority\"),OR($F215=1,$F215=5)),0,new_yllv2(VALUE(LEFT(Options!$B$24,2)),$C215,$D215,$E215,$F215,2016,$I215+$J215,1,$H215,$G215*$H215,Options!$B$8)))","v":165.1759206703},{"$f":"IF(AND(OR(Calculations!$E$2=\"Orkney Health Board\",Calculations!$E$2=\"Orkney Islands Local Authority\"),$F215=1),0,IF(AND(OR(Calculations!$E$2=\"Shetland Health Board\",Calculations!$E$2=\"Western Isles Health Board\",Calculations!$E$2=\"Shetland Islands Local Authority\",Calculations!$E$2=\"Eilean Siar Local Authority\"),OR($F215=1,$F215=5)),0,hosp_count(VALUE(LEFT(Options!$B$24,2)),$C215,$E215,$F215,2016,$I215,1,$H215,$G215*$H215, Options!$B$8)))","v":1985.9311626015999},{"$f":"IF(AND(OR(Calculations!$E$2=\"Orkney Health Board\",Calculations!$E$2=\"Orkney Islands Local Authority\"),$F215=1),0,IF(AND(OR(Calculations!$E$2=\"Shetland Health Board\",Calculations!$E$2=\"Western Isles Health Board\",Calculations!$E$2=\"Shetland Islands Local Authority\",Calculations!$E$2=\"Eilean Siar Local Authority\"),OR($F215=1,$F215=5)),0,hosp_count(VALUE(LEFT(Options!$B$24,2)),$C215,$E215,$F215,2016,$I215+$J215,1,$H215,$G215*$H215, Options!$B$8)))","v":1980.3144738942999},{"$f":"IF(AND(OR(Calculations!$E$2=\"Orkney Health Board\",Calculations!$E$2=\"Orkney Islands Local Authority\"),$F215=1),0,IF(AND(OR(Calculations!$E$2=\"Shetland Health Board\",Calculations!$E$2=\"Western Isles Health Board\",Calculations!$E$2=\"Shetland Islands Local Authority\",Calculations!$E$2=\"Eilean Siar Local Authority\"),OR($F215=1,$F215=5)),0,prem_mort(VALUE(LEFT(Options!$B$24,2)),$C215,$E215,$F215,2016,$I215,1,$H215,$G215*$H215,Options!$B$8)))","v":2.6542100654},{"$f":"IF(AND(OR(Calculations!$E$2=\"Orkney Health Board\",Calculations!$E$2=\"Orkney Islands Local Authority\"),$F215=1),0,IF(AND(OR(Calculations!$E$2=\"Shetland Health Board\",Calculations!$E$2=\"Western Isles Health Board\",Calculations!$E$2=\"Shetland Islands Local Authority\",Calculations!$E$2=\"Eilean Siar Local Authority\"),OR($F215=1,$F215=5)),0,prem_mort(VALUE(LEFT(Options!$B$24,2)),$C215,$E215,$F215,2016,$I215+$J215,1,$H215,$G215*$H215,Options!$B$8)))","v":2.6415469150000002},10.504234863859429,10.454119498971032,656.82977452429952,653.69606090826335,7859.4711200000002,7837.2426543228585,10.504234863859429,10.454119498971032,46218.633400981489,45998.125795472544,2890051.0079069179,2876262.6679963586,34581672.928000003,34483867.679020576,46218.633400981489,45998.125795472544,4400]
[null,"Female 20-24",22.077057,81.667060000000006,"female",5,{"$f":"HLOOKUP(Calculations!$E$2,'Prevalence Rates'!$C$3:$BC$249,'Prevalence Rates'!$BD216,FALSE)","v":9.8299999999999998E-2},{"$f":"HLOOKUP(Calculations!$E$2,'Population 2016'!$C$3:$BC$249,'Population 2016'!BD216,FALSE)","v":38013},0,{"$f":"HLOOKUP(Results!E$4,Targeting!$C$3:$F$249,Targeting!$G216,FALSE)","v":5857},{"$f":"IF(AND(OR(Calculations!$E$2=\"Orkney Health Board\",Calculations!$E$2=\"Orkney Islands Local Authority\"),$F216=1),0,IF(AND(OR(Calculations!$E$2=\"Shetland Health Board\",Calculations!$E$2=\"Western Isles Health Board\",Calculations!$E$2=\"Shetland Islands Local Authority\",Calculations!$E$2=\"Eilean Siar Local Authority\"),OR($F216=1,$F216=5)),0,new_ci(VALUE(LEFT(Options!$B$24,2)),$C216,$E216,$F216,2016,$I216,1,$H216,$G216*$H216,Options!$B$8)))","v":5.8582485121000003},{"$f":"IF(AND(OR(Calculations!$E$2=\"Orkney Health Board\",Calculations!$E$2=\"Orkney Islands Local Authority\"),$F216=1),0,IF(AND(OR(Calculations!$E$2=\"Shetland Health Board\",Calculations!$E$2=\"Western Isles Health Board\",Calculations!$E$2=\"Shetland Islands Local Authority\",Calculations!$E$2=\"Eilean Siar Local Authority\"),OR($F216=1,$F216=5)),0,new_ci(VALUE(LEFT(Options!$B$24,2)),$C216,$E216,$F216,2016,$I216+$J216,1,$H216,$G216*$H216,Options!$B$8)))","v":5.8302983224},{"$f":"IF(AND(OR(Calculations!$E$2=\"Orkney Health Board\",Calculations!$E$2=\"Orkney Islands Local Authority\"),$F216=1),0,IF(AND(OR(Calculations!$E$2=\"Shetland Health Board\",Calculations!$E$2=\"Western Isles Health Board\",Calculations!$E$2=\"Shetland Islands Local Authority\",Calculations!$E$2=\"Eilean Siar Local Authority\"),OR($F216=1,$F216=5)),0,new_yllv2(VALUE(LEFT(Options!$B$24,2)),$C216,$D216,$E216,$F216,2016,$I216,1,$H216,$G216*$H216,Options!$B$8)))","v":343.23479789869998},{"$f":"IF(AND(OR(Calculations!$E$2=\"Orkney Health Board\",Calculations!$E$2=\"Orkney Islands Local Authority\"),$F216=1),0,IF(AND(OR(Calculations!$E$2=\"Shetland Health Board\",Calculations!$E$2=\"Western Isles Health Board\",Calculations!$E$2=\"Shetland Islands Local Authority\",Calculations!$E$2=\"Eilean Siar Local Authority\"),OR($F216=1,$F216=5)),0,new_yllv2(VALUE(LEFT(Options!$B$24,2)),$C216,$D216,$E216,$F216,2016,$I216+$J216,1,$H216,$G216*$H216,Options!$B$8)))","v":341.5971962003},{"$f":"IF(AND(OR(Calculations!$E$2=\"Orkney Health Board\",Calculations!$E$2=\"Orkney Islands Local Authority\"),$F216=1),0,IF(AND(OR(Calculations!$E$2=\"Shetland Health Board\",Calculations!$E$2=\"Western Isles Health Board\",Calculations!$E$2=\"Shetland Islands Local Authority\",Calculations!$E$2=\"Eilean Siar Local Authority\"),OR($F216=1,$F216=5)),0,hosp_count(VALUE(LEFT(Options!$B$24,2)),$C216,$E216,$F216,2016,$I216,1,$H216,$G216*$H216, Options!$B$8)))","v":3346.2660715352999},{"$f":"IF(AND(OR(Calculations!$E$2=\"Orkney Health Board\",Calculations!$E$2=\"Orkney Islands Local Authority\"),$F216=1),0,IF(AND(OR(Calculations!$E$2=\"Shetland Health Board\",Calculations!$E$2=\"Western Isles Health Board\",Calculations!$E$2=\"Shetland Islands Local Authority\",Calculations!$E$2=\"Eilean Siar Local Authority\"),OR($F216=1,$F216=5)),0,hosp_count(VALUE(LEFT(Options!$B$24,2)),$C216,$E216,$F216,2016,$I216+$J216,1,$H216,$G216*$H216, Options!$B$8)))","v":3336.8013857716001},{"$f":"IF(AND(OR(Calculations!$E$2=\"Orkney Health Board\",Calculations!$E$2=\"Orkney Islands Local Authority\"),$F216=1),0,IF(AND(OR(Calculations!$E$2=\"Shetland Health Board\",Calculations!$E$2=\"Western Isles Health Board\",Calculations!$E$2=\"Shetland Islands Local Authority\",Calculations!$E$2=\"Eilean Siar Local Authority\"),OR($F216=1,$F216=5)),0,prem_mort(VALUE(LEFT(Options!$B$24,2)),$C216,$E216,$F216,2016,$I216,1,$H216,$G216*$H216,Options!$B$8)))","v":5.8582485121000003},{"$f":"IF(AND(OR(Calculations!$E$2=\"Orkney Health Board\",Calculations!$E$2=\"Orkney Islands Local Authority\"),$F216=1),0,IF(AND(OR(Calculations!$E$2=\"Shetland Health Board\",Calculations!$E$2=\"Western Isles Health Board\",Calculations!$E$2=\"Shetland Islands Local Authority\",Calculations!$E$2=\"Eilean Siar Local Authority\"),OR($F216=1,$F216=5)),0,prem_mort(VALUE(LEFT(Options!$B$24,2)),$C216,$E216,$F216,2016,$I216+$J216,1,$H216,$G216*$H216,Options!$B$8)))","v":5.8302983224},15.411171210112331,15.337643233630601,902.94056743403576,898.63256307131769,8802.9518100000005,8778.0532601257473,15.411171210112331,15.337643233630601,92467.027260673989,92025.8594017836,5417643.4046042142,5391795.378427906,52817710.859999999,52668319.560754485,92467.027260673989,92025.8594017836,6000]
[null,"Female 25-29",26.975186999999998,81.645189999999999,"female",5,{"$f":"HLOOKUP(Calculations!$E$2,'Prevalence Rates'!$C$3:$BC$249,'Prevalence Rates'!$BD217,FALSE)","v":0.1003},{"$f":"HLOOKUP(Calculations!$E$2,'Population 2016'!$C$3:$BC$249,'Population 2016'!BD217,FALSE)","v":32371},0,{"$f":"HLOOKUP(Results!E$4,Targeting!$C$3:$F$249,Targeting!$G217,FALSE)","v":4988},{"$f":"IF(AND(OR(Calculations!$E$2=\"Orkney Health Board\",Calculations!$E$2=\"Orkney Islands Local Authority\"),$F217=1),0,IF(AND(OR(Calculations!$E$2=\"Shetland Health Board\",Calculations!$E$2=\"Western Isles Health Board\",Calculations!$E$2=\"Shetland Islands Local Authority\",Calculations!$E$2=\"Eilean Siar Local Authority\"),OR($F217=1,$F217=5)),0,new_ci(VALUE(LEFT(Options!$B$24,2)),$C217,$E217,$F217,2016,$I217,1,$H217,$G217*$H217,Options!$B$8)))","v":7.5666501322000004},{"$f":"IF(AND(OR(Calculations!$E$2=\"Orkney Health Board\",Calculations!$E$2=\"Orkney Islands Local Authority\"),$F217=1),0,IF(AND(OR(Calculations!$E$2=\"Shetland Health Board\",Calculations!$E$2=\"Western Isles Health Board\",Calculations!$E$2=\"Shetland Islands Local Authority\",Calculations!$E$2=\"Eilean Siar Local Authority\"),OR($F217=1,$F217=5)),0,new_ci(VALUE(LEFT(Options!$B$24,2)),$C217,$E217,$F217,2016,$I217+$J217,1,$H217,$G217*$H217,Options!$B$8)))","v":7.5306038514000004},{"$f":"IF(AND(OR(Calculations!$E$2=\"Orkney Health Board\",Calculations!$E$2=\"Orkney Islands Local Authority\"),$F217=1),0,IF(AND(OR(Calculations!$E$2=\"Shetland Health Board\",Calculations!$E$2=\"Western Isles Health Board\",Calculations!$E$2=\"Shetland Islands Local Authority\",Calculations!$E$2=\"Eilean Siar Local Authority\"),OR($F217=1,$F217=5)),0,new_yllv2(VALUE(LEFT(Options!$B$24,2)),$C217,$D217,$E217,$F217,2016,$I217,1,$H217,$G217*$H217,Options!$B$8)))","v":406.10213529510003},{"$f":"IF(AND(OR(Calculations!$E$2=\"Orkney Health Board\",Calculations!$E$2=\"Orkney Islands Local Authority\"),$F217=1),0,IF(AND(OR(Calculations!$E$2=\"Shetland Health Board\",Calculations!$E$2=\"Western Isles Health Board\",Calculations!$E$2=\"Shetland Islands Local Authority\",Calculations!$E$2=\"Eilean Siar Local Authority\"),OR($F217=1,$F217=5)),0,new_yllv2(VALUE(LEFT(Options!$B$24,2)),$C217,$D217,$E217,$F217,2016,$I217+$J217,1,$H217,$G217*$H217,Options!$B$8)))","v":404.1675312964},{"$f":"IF(AND(OR(Calculations!$E$2=\"Orkney Health Board\",Calculations!$E$2=\"Orkney Islands Local Authority\"),$F217=1),0,IF(AND(OR(Calculations!$E$2=\"Shetland Health Board\",Calculations!$E$2=\"Western Isles Health Board\",Calculations!$E$2=\"Shetland Islands Local Authority\",Calculations!$E$2=\"Eilean Siar Local Authority\"),OR($F217=1,$F217=5)),0,hosp_count(VALUE(LEFT(Options!$B$24,2)),$C217,$E217,$F217,2016,$I217,1,$H217,$G217*$H217, Options!$B$8)))","v":3223.2362970265999},{"$f":"IF(AND(OR(Calculations!$E$2=\"Orkney Health Board\",Calculations!$E$2=\"Orkney Islands Local Authority\"),$F217=1),0,IF(AND(OR(Calculations!$E$2=\"Shetland Health Board\",Calculations!$E$2=\"Western Isles Health Board\",Calculations!$E$2=\"Shetland Islands Local Authority\",Calculations!$E$2=\"Eilean Siar Local Authority\"),OR($F217=1,$F217=5)),0,hosp_count(VALUE(LEFT(Options!$B$24,2)),$C217,$E217,$F217,2016,$I217+$J217,1,$H217,$G217*$H217, Options!$B$8)))","v":3214.1285251596},{"$f":"IF(AND(OR(Calculations!$E$2=\"Orkney Health Board\",Calculations!$E$2=\"Orkney Islands Local Authority\"),$F217=1),0,IF(AND(OR(Calculations!$E$2=\"Shetland Health Board\",Calculations!$E$2=\"Western Isles Health Board\",Calculations!$E$2=\"Shetland Islands Local Authority\",Calculations!$E$2=\"Eilean Siar Local Authority\"),OR($F217=1,$F217=5)),0,prem_mort(VALUE(LEFT(Options!$B$24,2)),$C217,$E217,$F217,2016,$I217,1,$H217,$G217*$H217,Options!$B$8)))","v":7.5666501322000004},{"$f":"IF(AND(OR(Calculations!$E$2=\"Orkney Health Board\",Calculations!$E$2=\"Orkney Islands Local Authority\"),$F217=1),0,IF(AND(OR(Calculations!$E$2=\"Shetland Health Board\",Calculations!$E$2=\"Western Isles Health Board\",Calculations!$E$2=\"Shetland Islands Local Authority\",Calculations!$E$2=\"Eilean Siar Local Authority\"),OR($F217=1,$F217=5)),0,prem_mort(VALUE(LEFT(Options!$B$24,2)),$C217,$E217,$F217,2016,$I217+$J217,1,$H217,$G217*$H217,Options!$B$8)))","v":7.5306038514000004},23.374780303975783,23.263426682524482,1254.5245290386458,1248.5481798412159,9957.1724599999998,9929.0368699131941,23.374780303975783,23.263426682524482,140248.68182385468,139580.56009514688,7527147.1742318748,7491289.0790472953,59743034.759999998,59574221.219479166,140248.68182385468,139580.56009514688,6000]
[null,"Female 30-34",31.999904999999998,81.799899999999994,"female",5,{"$f":"HLOOKUP(Calculations!$E$2,'Prevalence Rates'!$C$3:$BC$249,'Prevalence Rates'!$BD218,FALSE)","v":0.1003},{"$f":"HLOOKUP(Calculations!$E$2,'Population 2016'!$C$3:$BC$249,'Population 2016'!BD218,FALSE)","v":31633},0,{"$f":"HLOOKUP(Results!E$4,Targeting!$C$3:$F$249,Targeting!$G218,FALSE)","v":4874},{"$f":"IF(AND(OR(Calculations!$E$2=\"Orkney Health Board\",Calculations!$E$2=\"Orkney Islands Local Authority\"),$F218=1),0,IF(AND(OR(Calculations!$E$2=\"Shetland Health Board\",Calculations!$E$2=\"Western Isles Health Board\",Calculations!$E$2=\"Shetland Islands Local Authority\",Calculations!$E$2=\"Eilean Siar Local Authority\"),OR($F218=1,$F218=5)),0,new_ci(VALUE(LEFT(Options!$B$24,2)),$C218,$E218,$F218,2016,$I218,1,$H218,$G218*$H218,Options!$B$8)))","v":11.336153937600001},{"$f":"IF(AND(OR(Calculations!$E$2=\"Orkney Health Board\",Calculations!$E$2=\"Orkney Islands Local Authority\"),$F218=1),0,IF(AND(OR(Calculations!$E$2=\"Shetland Health Board\",Calculations!$E$2=\"Western Isles Health Board\",Calculations!$E$2=\"Shetland Islands Local Authority\",Calculations!$E$2=\"Eilean Siar Local Authority\"),OR($F218=1,$F218=5)),0,new_ci(VALUE(LEFT(Options!$B$24,2)),$C218,$E218,$F218,2016,$I218+$J218,1,$H218,$G218*$H218,Options!$B$8)))","v":11.282159765599999},{"$f":"IF(AND(OR(Calculations!$E$2=\"Orkney Health Board\",Calculations!$E$2=\"Orkney Islands Local Authority\"),$F218=1),0,IF(AND(OR(Calculations!$E$2=\"Shetland Health Board\",Calculations!$E$2=\"Western Isles Health Board\",Calculations!$E$2=\"Shetland Islands Local Authority\",Calculations!$E$2=\"Eilean Siar Local Authority\"),OR($F218=1,$F218=5)),0,new_yllv2(VALUE(LEFT(Options!$B$24,2)),$C218,$D218,$E218,$F218,2016,$I218,1,$H218,$G218*$H218,Options!$B$8)))","v":553.20425547410002},{"$f":"IF(AND(OR(Calculations!$E$2=\"Orkney Health Board\",Calculations!$E$2=\"Orkney Islands Local Authority\"),$F218=1),0,IF(AND(OR(Calculations!$E$2=\"Shetland Health Board\",Calculations!$E$2=\"Western Isles Health Board\",Calculations!$E$2=\"Shetland Islands Local Authority\",Calculations!$E$2=\"Eilean Siar Local Authority\"),OR($F218=1,$F218=5)),0,new_yllv2(VALUE(LEFT(Options!$B$24,2)),$C218,$D218,$E218,$F218,2016,$I218+$J218,1,$H218,$G218*$H218,Options!$B$8)))","v":550.56934015050001},{"$f":"IF(AND(OR(Calculations!$E$2=\"Orkney Health Board\",Calculations!$E$2=\"Orkney Islands Local Authority\"),$F218=1),0,IF(AND(OR(Calculations!$E$2=\"Shetland Health Board\",Calculations!$E$2=\"Western Isles Health Board\",Calculations!$E$2=\"Shetland Islands Local Authority\",Calculations!$E$2=\"Eilean Siar Local Authority\"),OR($F218=1,$F218=5)),0,hosp_count(VALUE(LEFT(Options!$B$24,2)),$C218,$E218,$F218,2016,$I218,1,$H218,$G218*$H218, Options!$B$8)))","v":3574.1022803198998},{"$f":"IF(AND(OR(Calculations!$E$2=\"Orkney Health Board\",Calculations!$E$2=\"Orkney Islands Local Authority\"),$F218=1),0,IF(AND(OR(Calculations!$E$2=\"Shetland Health Board\",Calculations!$E$2=\"Western Isles Health Board\",Calculations!$E$2=\"Shetland Islands Local Authority\",Calculations!$E$2=\"Eilean Siar Local Authority\"),OR($F218=1,$F218=5)),0,hosp_count(VALUE(LEFT(Options!$B$24,2)),$C218,$E218,$F218,2016,$I218+$J218,1,$H218,$G218*$H218, Options!$B$8)))","v":3564.0036662164998},{"$f":"IF(AND(OR(Calculations!$E$2=\"Orkney Health Board\",Calculations!$E$2=\"Orkney Islands Local Authority\"),$F218=1),0,IF(AND(OR(Calculations!$E$2=\"Shetland Health Board\",Calculations!$E$2=\"Western Isles Health Board\",Calculations!$E$2=\"Shetland Islands Local Authority\",Calculations!$E$2=\"Eilean Siar Local Authority\"),OR($F218=1,$F218=5)),0,prem_mort(VALUE(LEFT(Options!$B$24,2)),$C218,$E218,$F218,2016,$I218,1,$H218,$G218*$H218,Options!$B$8)))","v":11.336153937600001},{"$f":"IF(AND(OR(Calculations!$E$2=\"Orkney Health Board\",Calculations!$E$2=\"Orkney Islands Local Authority\"),$F218=1),0,IF(AND(OR(Calculations!$E$2=\"Shetland Health Board\",Calculations!$E$2=\"Western Isles Health Board\",Calculations!$E$2=\"Shetland Islands Local Authority\",Calculations!$E$2=\"Eilean Siar Local Authority\"),OR($F218=1,$F218=5)),0,prem_mort(VALUE(LEFT(Options!$B$24,2)),$C218,$E218,$F218,2016,$I218+$J218,1,$H218,$G218*$H218,Options!$B$8)))","v":11.282159765599999},35.836480692947241,35.665791311604963,1748.8200786333894,1740.4904376774255,11298.651029999999,11266.726729100938,35.836480692947241,35.665791311604963,232937.12450415705,231827.64352543227,11367330.51111703,11313187.844903266,73441231.694999993,73233723.739156097,232937.12450415705,231827.64352543227,6500]
[null,"Female 35-39",36.918118,81.898120000000006,"female",5,{"$f":"HLOOKUP(Calculations!$E$2,'Prevalence Rates'!$C$3:$BC$249,'Prevalence Rates'!$BD219,FALSE)","v":9.2200000000000004E-2},{"$f":"HLOOKUP(Calculations!$E$2,'Population 2016'!$C$3:$BC$249,'Population 2016'!BD219,FALSE)","v":33676},0,{"$f":"HLOOKUP(Results!E$4,Targeting!$C$3:$F$249,Targeting!$G219,FALSE)","v":5189},{"$f":"IF(AND(OR(Calculations!$E$2=\"Orkney Health Board\",Calculations!$E$2=\"Orkney Islands Local Authority\"),$F219=1),0,IF(AND(OR(Calculations!$E$2=\"Shetland Health Board\",Calculations!$E$2=\"Western Isles Health Board\",Calculations!$E$2=\"Shetland Islands Local Authority\",Calculations!$E$2=\"Eilean Siar Local Authority\"),OR($F219=1,$F219=5)),0,new_ci(VALUE(LEFT(Options!$B$24,2)),$C219,$E219,$F219,2016,$I219,1,$H219,$G219*$H219,Options!$B$8)))","v":18.334786159899998},{"$f":"IF(AND(OR(Calculations!$E$2=\"Orkney Health Board\",Calculations!$E$2=\"Orkney Islands Local Authority\"),$F219=1),0,IF(AND(OR(Calculations!$E$2=\"Shetland Health Board\",Calculations!$E$2=\"Western Isles Health Board\",Calculations!$E$2=\"Shetland Islands Local Authority\",Calculations!$E$2=\"Eilean Siar Local Authority\"),OR($F219=1,$F219=5)),0,new_ci(VALUE(LEFT(Options!$B$24,2)),$C219,$E219,$F219,2016,$I219+$J219,1,$H219,$G219*$H219,Options!$B$8)))","v":18.246946249000001},{"$f":"IF(AND(OR(Calculations!$E$2=\"Orkney Health Board\",Calculations!$E$2=\"Orkney Islands Local Authority\"),$F219=1),0,IF(AND(OR(Calculations!$E$2=\"Shetland Health Board\",Calculations!$E$2=\"Western Isles Health Board\",Calculations!$E$2=\"Shetland Islands Local Authority\",Calculations!$E$2=\"Eilean Siar Local Authority\"),OR($F219=1,$F219=5)),0,new_yllv2(VALUE(LEFT(Options!$B$24,2)),$C219,$D219,$E219,$F219,2016,$I219,1,$H219,$G219*$H219,Options!$B$8)))","v":806.36393198200005},{"$f":"IF(AND(OR(Calculations!$E$2=\"Orkney Health Board\",Calculations!$E$2=\"Orkney Islands Local Authority\"),$F219=1),0,IF(AND(OR(Calculations!$E$2=\"Shetland Health Board\",Calculations!$E$2=\"Western Isles Health Board\",Calculations!$E$2=\"Shetland Islands Local Authority\",Calculations!$E$2=\"Eilean Siar Local Authority\"),OR($F219=1,$F219=5)),0,new_yllv2(VALUE(LEFT(Options!$B$24,2)),$C219,$D219,$E219,$F219,2016,$I219+$J219,1,$H219,$G219*$H219,Options!$B$8)))","v":802.50073252489995},{"$f":"IF(AND(OR(Calculations!$E$2=\"Orkney Health Board\",Calculations!$E$2=\"Orkney Islands Local Authority\"),$F219=1),0,IF(AND(OR(Calculations!$E$2=\"Shetland Health Board\",Calculations!$E$2=\"Western Isles Health Board\",Calculations!$E$2=\"Shetland Islands Local Authority\",Calculations!$E$2=\"Eilean Siar Local Authority\"),OR($F219=1,$F219=5)),0,hosp_count(VALUE(LEFT(Options!$B$24,2)),$C219,$E219,$F219,2016,$I219,1,$H219,$G219*$H219, Options!$B$8)))","v":4306.0016290455997},{"$f":"IF(AND(OR(Calculations!$E$2=\"Orkney Health Board\",Calculations!$E$2=\"Orkney Islands Local Authority\"),$F219=1),0,IF(AND(OR(Calculations!$E$2=\"Shetland Health Board\",Calculations!$E$2=\"Western Isles Health Board\",Calculations!$E$2=\"Shetland Islands Local Authority\",Calculations!$E$2=\"Eilean Siar Local Authority\"),OR($F219=1,$F219=5)),0,hosp_count(VALUE(LEFT(Options!$B$24,2)),$C219,$E219,$F219,2016,$I219+$J219,1,$H219,$G219*$H219, Options!$B$8)))","v":4293.7829426973003},{"$f":"IF(AND(OR(Calculations!$E$2=\"Orkney Health Board\",Calculations!$E$2=\"Orkney Islands Local Authority\"),$F219=1),0,IF(AND(OR(Calculations!$E$2=\"Shetland Health Board\",Calculations!$E$2=\"Western Isles Health Board\",Calculations!$E$2=\"Shetland Islands Local Authority\",Calculations!$E$2=\"Eilean Siar Local Authority\"),OR($F219=1,$F219=5)),0,prem_mort(VALUE(LEFT(Options!$B$24,2)),$C219,$E219,$F219,2016,$I219,1,$H219,$G219*$H219,Options!$B$8)))","v":18.334786159899998},{"$f":"IF(AND(OR(Calculations!$E$2=\"Orkney Health Board\",Calculations!$E$2=\"Orkney Islands Local Authority\"),$F219=1),0,IF(AND(OR(Calculations!$E$2=\"Shetland Health Board\",Calculations!$E$2=\"Western Isles Health Board\",Calculations!$E$2=\"Shetland Islands Local Authority\",Calculations!$E$2=\"Eilean Siar Local Authority\"),OR($F219=1,$F219=5)),0,prem_mort(VALUE(LEFT(Options!$B$24,2)),$C219,$E219,$F219,2016,$I219+$J219,1,$H219,$G219*$H219,Options!$B$8)))","v":18.246946249000001},54.444667299857464,54.183828985033848,2394.4765767371423,2383.0049071294097,12786.55906,12750.275990905393,54.444667299857464,54.183828985033848,381112.67109900224,379286.80289523694,16761336.037159996,16681034.349905869,89505913.420000002,89251931.936337754,381112.67109900224,379286.80289523694,7000]
[null,"Female 40-44",42.077438000000001,82.30744,"female",5,{"$f":"HLOOKUP(Calculations!$E$2,'Prevalence Rates'!$C$3:$BC$249,'Prevalence Rates'!$BD220,FALSE)","v":9.2200000000000004E-2},{"$f":"HLOOKUP(Calculations!$E$2,'Population 2016'!$C$3:$BC$249,'Population 2016'!BD220,FALSE)","v":36508},0,{"$f":"HLOOKUP(Results!E$4,Targeting!$C$3:$F$249,Targeting!$G220,FALSE)","v":5625},{"$f":"IF(AND(OR(Calculations!$E$2=\"Orkney Health Board\",Calculations!$E$2=\"Orkney Islands Local Authority\"),$F220=1),0,IF(AND(OR(Calculations!$E$2=\"Shetland Health Board\",Calculations!$E$2=\"Western Isles Health Board\",Calculations!$E$2=\"Shetland Islands Local Authority\",Calculations!$E$2=\"Eilean Siar Local Authority\"),OR($F220=1,$F220=5)),0,new_ci(VALUE(LEFT(Options!$B$24,2)),$C220,$E220,$F220,2016,$I220,1,$H220,$G220*$H220,Options!$B$8)))","v":30.821471305700001},{"$f":"IF(AND(OR(Calculations!$E$2=\"Orkney Health Board\",Calculations!$E$2=\"Orkney Islands Local Authority\"),$F220=1),0,IF(AND(OR(Calculations!$E$2=\"Shetland Health Board\",Calculations!$E$2=\"Western Isles Health Board\",Calculations!$E$2=\"Shetland Islands Local Authority\",Calculations!$E$2=\"Eilean Siar Local Authority\"),OR($F220=1,$F220=5)),0,new_ci(VALUE(LEFT(Options!$B$24,2)),$C220,$E220,$F220,2016,$I220+$J220,1,$H220,$G220*$H220,Options!$B$8)))","v":30.673869618200001},{"$f":"IF(AND(OR(Calculations!$E$2=\"Orkney Health Board\",Calculations!$E$2=\"Orkney Islands Local Authority\"),$F220=1),0,IF(AND(OR(Calculations!$E$2=\"Shetland Health Board\",Calculations!$E$2=\"Western Isles Health Board\",Calculations!$E$2=\"Shetland Islands Local Authority\",Calculations!$E$2=\"Eilean Siar Local Authority\"),OR($F220=1,$F220=5)),0,new_yllv2(VALUE(LEFT(Options!$B$24,2)),$C220,$D220,$E220,$F220,2016,$I220,1,$H220,$G220*$H220,Options!$B$8)))","v":1209.1263809656},{"$f":"IF(AND(OR(Calculations!$E$2=\"Orkney Health Board\",Calculations!$E$2=\"Orkney Islands Local Authority\"),$F220=1),0,IF(AND(OR(Calculations!$E$2=\"Shetland Health Board\",Calculations!$E$2=\"Western Isles Health Board\",Calculations!$E$2=\"Shetland Islands Local Authority\",Calculations!$E$2=\"Eilean Siar Local Authority\"),OR($F220=1,$F220=5)),0,new_yllv2(VALUE(LEFT(Options!$B$24,2)),$C220,$D220,$E220,$F220,2016,$I220+$J220,1,$H220,$G220*$H220,Options!$B$8)))","v":1203.3359664697},{"$f":"IF(AND(OR(Calculations!$E$2=\"Orkney Health Board\",Calculations!$E$2=\"Orkney Islands Local Authority\"),$F220=1),0,IF(AND(OR(Calculations!$E$2=\"Shetland Health Board\",Calculations!$E$2=\"Western Isles Health Board\",Calculations!$E$2=\"Shetland Islands Local Authority\",Calculations!$E$2=\"Eilean Siar Local Authority\"),OR($F220=1,$F220=5)),0,hosp_count(VALUE(LEFT(Options!$B$24,2)),$C220,$E220,$F220,2016,$I220,1,$H220,$G220*$H220, Options!$B$8)))","v":5314.9930810692003},{"$f":"IF(AND(OR(Calculations!$E$2=\"Orkney Health Board\",Calculations!$E$2=\"Orkney Islands Local Authority\"),$F220=1),0,IF(AND(OR(Calculations!$E$2=\"Shetland Health Board\",Calculations!$E$2=\"Western Isles Health Board\",Calculations!$E$2=\"Shetland Islands Local Authority\",Calculations!$E$2=\"Eilean Siar Local Authority\"),OR($F220=1,$F220=5)),0,hosp_count(VALUE(LEFT(Options!$B$24,2)),$C220,$E220,$F220,2016,$I220+$J220,1,$H220,$G220*$H220, Options!$B$8)))","v":5299.9122823205998},{"$f":"IF(AND(OR(Calculations!$E$2=\"Orkney Health Board\",Calculations!$E$2=\"Orkney Islands Local Authority\"),$F220=1),0,IF(AND(OR(Calculations!$E$2=\"Shetland Health Board\",Calculations!$E$2=\"Western Isles Health Board\",Calculations!$E$2=\"Shetland Islands Local Authority\",Calculations!$E$2=\"Eilean Siar Local Authority\"),OR($F220=1,$F220=5)),0,prem_mort(VALUE(LEFT(Options!$B$24,2)),$C220,$E220,$F220,2016,$I220,1,$H220,$G220*$H220,Options!$B$8)))","v":30.821471305700001},{"$f":"IF(AND(OR(Calculations!$E$2=\"Orkney Health Board\",Calculations!$E$2=\"Orkney Islands Local Authority\"),$F220=1),0,IF(AND(OR(Calculations!$E$2=\"Shetland Health Board\",Calculations!$E$2=\"Western Isles Health Board\",Calculations!$E$2=\"Shetland Islands Local Authority\",Calculations!$E$2=\"Eilean Siar Local Authority\"),OR($F220=1,$F220=5)),0,prem_mort(VALUE(LEFT(Options!$B$24,2)),$C220,$E220,$F220,2016,$I220+$J220,1,$H220,$G220*$H220,Options!$B$8)))","v":30.673869618200001},84.423883274076914,84.019583702750097,3311.949109689931,3296.088436697984,14558.433990000001,14517.12578700723,84.423883274076914,84.019583702750097,590967.18291853846,588137.08591925073,23183643.767829519,23072619.056885887,{"$f":"W220*$AI220","v":101909037.93000001},{"$f":"X220*$AI220","v":101619880.50905061},{"$f":"Y220*$AI220","v":590967.18291853846},{"$f":"Z220*$AI220","v":588137.08591925073},7000]
[null,"Female 45-49",47.025772000000003,82.585769999999997,"female",5,{"$f":"HLOOKUP(Calculations!$E$2,'Prevalence Rates'!$C$3:$BC$249,'Prevalence Rates'!$BD221,FALSE)","v":9.98E-2},{"$f":"HLOOKUP(Calculations!$E$2,'Population 2016'!$C$3:$BC$249,'Population 2016'!BD221,FALSE)","v":41785},0,{"$f":"HLOOKUP(Results!E$4,Targeting!$C$3:$F$249,Targeting!$G221,FALSE)","v":6438},{"$f":"IF(AND(OR(Calculations!$E$2=\"Orkney Health Board\",Calculations!$E$2=\"Orkney Islands Local Authority\"),$F221=1),0,IF(AND(OR(Calculations!$E$2=\"Shetland Health Board\",Calculations!$E$2=\"Western Isles Health Board\",Calculations!$E$2=\"Shetland Islands Local Authority\",Calculations!$E$2=\"Eilean Siar Local Authority\"),OR($F221=1,$F221=5)),0,new_ci(VALUE(LEFT(Options!$B$24,2)),$C221,$E221,$F221,2016,$I221,1,$H221,$G221*$H221,Options!$B$8)))","v":53.7241065718},{"$f":"IF(AND(OR(Calculations!$E$2=\"Orkney Health Board\",Calculations!$E$2=\"Orkney Islands Local Authority\"),$F221=1),0,IF(AND(OR(Calculations!$E$2=\"Shetland Health Board\",Calculations!$E$2=\"Western Isles Health Board\",Calculations!$E$2=\"Shetland Islands Local Authority\",Calculations!$E$2=\"Eilean Siar Local Authority\"),OR($F221=1,$F221=5)),0,new_ci(VALUE(LEFT(Options!$B$24,2)),$C221,$E221,$F221,2016,$I221+$J221,1,$H221,$G221*$H221,Options!$B$8)))","v":53.468402087800001},{"$f":"IF(AND(OR(Calculations!$E$2=\"Orkney Health Board\",Calculations!$E$2=\"Orkney Islands Local Authority\"),$F221=1),0,IF(AND(OR(Calculations!$E$2=\"Shetland Health Board\",Calculations!$E$2=\"Western Isles Health Board\",Calculations!$E$2=\"Shetland Islands Local Authority\",Calculations!$E$2=\"Eilean Siar Local Authority\"),OR($F221=1,$F221=5)),0,new_yllv2(VALUE(LEFT(Options!$B$24,2)),$C221,$D221,$E221,$F221,2016,$I221,1,$H221,$G221*$H221,Options!$B$8)))","v":1856.7050156732},{"$f":"IF(AND(OR(Calculations!$E$2=\"Orkney Health Board\",Calculations!$E$2=\"Orkney Islands Local Authority\"),$F221=1),0,IF(AND(OR(Calculations!$E$2=\"Shetland Health Board\",Calculations!$E$2=\"Western Isles Health Board\",Calculations!$E$2=\"Shetland Islands Local Authority\",Calculations!$E$2=\"Eilean Siar Local Authority\"),OR($F221=1,$F221=5)),0,new_yllv2(VALUE(LEFT(Options!$B$24,2)),$C221,$D221,$E221,$F221,2016,$I221+$J221,1,$H221,$G221*$H221,Options!$B$8)))","v":1847.8678692175999},{"$f":"IF(AND(OR(Calculations!$E$2=\"Orkney Health Board\",Calculations!$E$2=\"Orkney Islands Local Authority\"),$F221=1),0,IF(AND(OR(Calculations!$E$2=\"Shetland Health Board\",Calculations!$E$2=\"Western Isles Health Board\",Calculations!$E$2=\"Shetland Islands Local Authority\",Calculations!$E$2=\"Eilean Siar Local Authority\"),OR($F221=1,$F221=5)),0,hosp_count(VALUE(LEFT(Options!$B$24,2)),$C221,$E221,$F221,2016,$I221,1,$H221,$G221*$H221, Options!$B$8)))","v":6889.5555642705003},{"$f":"IF(AND(OR(Calculations!$E$2=\"Orkney Health Board\",Calculations!$E$2=\"Orkney Islands Local Authority\"),$F221=1),0,IF(AND(OR(Calculations!$E$2=\"Shetland Health Board\",Calculations!$E$2=\"Western Isles Health Board\",Calculations!$E$2=\"Shetland Islands Local Authority\",Calculations!$E$2=\"Eilean Siar Local Authority\"),OR($F221=1,$F221=5)),0,hosp_count(VALUE(LEFT(Options!$B$24,2)),$C221,$E221,$F221,2016,$I221+$J221,1,$H221,$G221*$H221, Options!$B$8)))","v":6870.0847267200998},{"$f":"IF(AND(OR(Calculations!$E$2=\"Orkney Health Board\",Calculations!$E$2=\"Orkney Islands Local Authority\"),$F221=1),0,IF(AND(OR(Calculations!$E$2=\"Shetland Health Board\",Calculations!$E$2=\"Western Isles Health Board\",Calculations!$E$2=\"Shetland Islands Local Authority\",Calculations!$E$2=\"Eilean Siar Local Authority\"),OR($F221=1,$F221=5)),0,prem_mort(VALUE(LEFT(Options!$B$24,2)),$C221,$E221,$F221,2016,$I221,1,$H221,$G221*$H221,Options!$B$8)))","v":53.7241065718},{"$f":"IF(AND(OR(Calculations!$E$2=\"Orkney Health Board\",Calculations!$E$2=\"Orkney Islands Local Authority\"),$F221=1),0,IF(AND(OR(Calculations!$E$2=\"Shetland Health Board\",Calculations!$E$2=\"Western Isles Health Board\",Calculations!$E$2=\"Shetland Islands Local Authority\",Calculations!$E$2=\"Eilean Siar Local Authority\"),OR($F221=1,$F221=5)),0,prem_mort(VALUE(LEFT(Options!$B$24,2)),$C221,$E221,$F221,2016,$I221+$J221,1,$H221,$G221*$H221,Options!$B$8)))","v":53.468402087800001},128.57270927797057,127.96075646236687,4443.472575501256,4422.3234874179725,16488.10713,16441.509457269593,128.57270927797057,127.96075646236687,900008.96494579397,895725.29523656808,31104308.028508794,30956264.411925808,115416749.91,115090566.20088714,900008.96494579397,895725.29523656808,7000]
[null,"Female 50-54",51.990825999999998,82.980829999999997,"female",5,{"$f":"HLOOKUP(Calculations!$E$2,'Prevalence Rates'!$C$3:$BC$249,'Prevalence Rates'!$BD222,FALSE)","v":9.98E-2},{"$f":"HLOOKUP(Calculations!$E$2,'Population 2016'!$C$3:$BC$249,'Population 2016'!BD222,FALSE)","v":42428},0,{"$f":"HLOOKUP(Results!E$4,Targeting!$C$3:$F$249,Targeting!$G222,FALSE)","v":6537},{"$f":"IF(AND(OR(Calculations!$E$2=\"Orkney Health Board\",Calculations!$E$2=\"Orkney Islands Local Authority\"),$F222=1),0,IF(AND(OR(Calculations!$E$2=\"Shetland Health Board\",Calculations!$E$2=\"Western Isles Health Board\",Calculations!$E$2=\"Shetland Islands Local Authority\",Calculations!$E$2=\"Eilean Siar Local Authority\"),OR($F222=1,$F222=5)),0,new_ci(VALUE(LEFT(Options!$B$24,2)),$C222,$E222,$F222,2016,$I222,1,$H222,$G222*$H222,Options!$B$8)))","v":83.185885085999999},{"$f":"IF(AND(OR(Calculations!$E$2=\"Orkney Health Board\",Calculations!$E$2=\"Orkney Islands Local Authority\"),$F222=1),0,IF(AND(OR(Calculations!$E$2=\"Shetland Health Board\",Calculations!$E$2=\"Western Isles Health Board\",Calculations!$E$2=\"Shetland Islands Local Authority\",Calculations!$E$2=\"Eilean Siar Local Authority\"),OR($F222=1,$F222=5)),0,new_ci(VALUE(LEFT(Options!$B$24,2)),$C222,$E222,$F222,2016,$I222+$J222,1,$H222,$G222*$H222,Options!$B$8)))","v":82.790259962700006},{"$f":"IF(AND(OR(Calculations!$E$2=\"Orkney Health Board\",Calculations!$E$2=\"Orkney Islands Local Authority\"),$F222=1),0,IF(AND(OR(Calculations!$E$2=\"Shetland Health Board\",Calculations!$E$2=\"Western Isles Health Board\",Calculations!$E$2=\"Shetland Islands Local Authority\",Calculations!$E$2=\"Eilean Siar Local Authority\"),OR($F222=1,$F222=5)),0,new_yllv2(VALUE(LEFT(Options!$B$24,2)),$C222,$D222,$E222,$F222,2016,$I222,1,$H222,$G222*$H222,Options!$B$8)))","v":2494.7450264726999},{"$f":"IF(AND(OR(Calculations!$E$2=\"Orkney Health Board\",Calculations!$E$2=\"Orkney Islands Local Authority\"),$F222=1),0,IF(AND(OR(Calculations!$E$2=\"Shetland Health Board\",Calculations!$E$2=\"Western Isles Health Board\",Calculations!$E$2=\"Shetland Islands Local Authority\",Calculations!$E$2=\"Eilean Siar Local Authority\"),OR($F222=1,$F222=5)),0,new_yllv2(VALUE(LEFT(Options!$B$24,2)),$C222,$D222,$E222,$F222,2016,$I222+$J222,1,$H222,$G222*$H222,Options!$B$8)))","v":2482.8802274424002},{"$f":"IF(AND(OR(Calculations!$E$2=\"Orkney Health Board\",Calculations!$E$2=\"Orkney Islands Local Authority\"),$F222=1),0,IF(AND(OR(Calculations!$E$2=\"Shetland Health Board\",Calculations!$E$2=\"Western Isles Health Board\",Calculations!$E$2=\"Shetland Islands Local Authority\",Calculations!$E$2=\"Eilean Siar Local Authority\"),OR($F222=1,$F222=5)),0,hosp_count(VALUE(LEFT(Options!$B$24,2)),$C222,$E222,$F222,2016,$I222,1,$H222,$G222*$H222, Options!$B$8)))","v":7926.1475104580004},{"$f":"IF(AND(OR(Calculations!$E$2=\"Orkney Health Board\",Calculations!$E$2=\"Orkney Islands Local Authority\"),$F222=1),0,IF(AND(OR(Calculations!$E$2=\"Shetland Health Board\",Calculations!$E$2=\"Western Isles Health Board\",Calculations!$E$2=\"Shetland Islands Local Authority\",Calculations!$E$2=\"Eilean Siar Local Authority\"),OR($F222=1,$F222=5)),0,hosp_count(VALUE(LEFT(Options!$B$24,2)),$C222,$E222,$F222,2016,$I222+$J222,1,$H222,$G222*$H222, Options!$B$8)))","v":7903.7473597525996},{"$f":"IF(AND(OR(Calculations!$E$2=\"Orkney Health Board\",Calculations!$E$2=\"Orkney Islands Local Authority\"),$F222=1),0,IF(AND(OR(Calculations!$E$2=\"Shetland Health Board\",Calculations!$E$2=\"Western Isles Health Board\",Calculations!$E$2=\"Shetland Islands Local Authority\",Calculations!$E$2=\"Eilean Siar Local Authority\"),OR($F222=1,$F222=5)),0,prem_mort(VALUE(LEFT(Options!$B$24,2)),$C222,$E222,$F222,2016,$I222,1,$H222,$G222*$H222,Options!$B$8)))","v":83.185885085999999},{"$f":"IF(AND(OR(Calculations!$E$2=\"Orkney Health Board\",Calculations!$E$2=\"Orkney Islands Local Authority\"),$F222=1),0,IF(AND(OR(Calculations!$E$2=\"Shetland Health Board\",Calculations!$E$2=\"Western Isles Health Board\",Calculations!$E$2=\"Shetland Islands Local Authority\",Calculations!$E$2=\"Eilean Siar Local Authority\"),OR($F222=1,$F222=5)),0,prem_mort(VALUE(LEFT(Options!$B$24,2)),$C222,$E222,$F222,2016,$I222+$J222,1,$H222,$G222*$H222,Options!$B$8)))","v":82.790259962700006},196.06364920807016,195.13118686409919,5879.9496240046665,5851.9850745790518,18681.407350000001,18628.611670954557,196.06364920807016,195.13118686409919,1372445.544456491,1365918.3080486944,41159647.368032664,40963895.522053361,130769851.45,130400281.6966819,1372445.544456491,1365918.3080486944,7000]
[null,"Female 55-59",56.953040999999999,83.473039999999997,"female",5,{"$f":"HLOOKUP(Calculations!$E$2,'Prevalence Rates'!$C$3:$BC$249,'Prevalence Rates'!$BD223,FALSE)","v":0.10840000000000001},{"$f":"HLOOKUP(Calculations!$E$2,'Population 2016'!$C$3:$BC$249,'Population 2016'!BD223,FALSE)","v":38314},0,{"$f":"HLOOKUP(Results!E$4,Targeting!$C$3:$F$249,Targeting!$G223,FALSE)","v":5903},{"$f":"IF(AND(OR(Calculations!$E$2=\"Orkney Health Board\",Calculations!$E$2=\"Orkney Islands Local Authority\"),$F223=1),0,IF(AND(OR(Calculations!$E$2=\"Shetland Health Board\",Calculations!$E$2=\"Western Isles Health Board\",Calculations!$E$2=\"Shetland Islands Local Authority\",Calculations!$E$2=\"Eilean Siar Local Authority\"),OR($F223=1,$F223=5)),0,new_ci(VALUE(LEFT(Options!$B$24,2)),$C223,$E223,$F223,2016,$I223,1,$H223,$G223*$H223,Options!$B$8)))","v":114.5025891201},{"$f":"IF(AND(OR(Calculations!$E$2=\"Orkney Health Board\",Calculations!$E$2=\"Orkney Islands Local Authority\"),$F223=1),0,IF(AND(OR(Calculations!$E$2=\"Shetland Health Board\",Calculations!$E$2=\"Western Isles Health Board\",Calculations!$E$2=\"Shetland Islands Local Authority\",Calculations!$E$2=\"Eilean Siar Local Authority\"),OR($F223=1,$F223=5)),0,new_ci(VALUE(LEFT(Options!$B$24,2)),$C223,$E223,$F223,2016,$I223+$J223,1,$H223,$G223*$H223,Options!$B$8)))","v":113.96209391169999},{"$f":"IF(AND(OR(Calculations!$E$2=\"Orkney Health Board\",Calculations!$E$2=\"Orkney Islands Local Authority\"),$F223=1),0,IF(AND(OR(Calculations!$E$2=\"Shetland Health Board\",Calculations!$E$2=\"Western Isles Health Board\",Calculations!$E$2=\"Shetland Islands Local Authority\",Calculations!$E$2=\"Eilean Siar Local Authority\"),OR($F223=1,$F223=5)),0,new_yllv2(VALUE(LEFT(Options!$B$24,2)),$C223,$D223,$E223,$F223,2016,$I223,1,$H223,$G223*$H223,Options!$B$8)))","v":2922.1059598423999},{"$f":"IF(AND(OR(Calculations!$E$2=\"Orkney Health Board\",Calculations!$E$2=\"Orkney Islands Local Authority\"),$F223=1),0,IF(AND(OR(Calculations!$E$2=\"Shetland Health Board\",Calculations!$E$2=\"Western Isles Health Board\",Calculations!$E$2=\"Shetland Islands Local Authority\",Calculations!$E$2=\"Eilean Siar Local Authority\"),OR($F223=1,$F223=5)),0,new_yllv2(VALUE(LEFT(Options!$B$24,2)),$C223,$D223,$E223,$F223,2016,$I223+$J223,1,$H223,$G223*$H223,Options!$B$8)))","v":2908.3125226645002},{"$f":"IF(AND(OR(Calculations!$E$2=\"Orkney Health Board\",Calculations!$E$2=\"Orkney Islands Local Authority\"),$F223=1),0,IF(AND(OR(Calculations!$E$2=\"Shetland Health Board\",Calculations!$E$2=\"Western Isles Health Board\",Calculations!$E$2=\"Shetland Islands Local Authority\",Calculations!$E$2=\"Eilean Siar Local Authority\"),OR($F223=1,$F223=5)),0,hosp_count(VALUE(LEFT(Options!$B$24,2)),$C223,$E223,$F223,2016,$I223,1,$H223,$G223*$H223, Options!$B$8)))","v":8109.1411843690003},{"$f":"IF(AND(OR(Calculations!$E$2=\"Orkney Health Board\",Calculations!$E$2=\"Orkney Islands Local Authority\"),$F223=1),0,IF(AND(OR(Calculations!$E$2=\"Shetland Health Board\",Calculations!$E$2=\"Western Isles Health Board\",Calculations!$E$2=\"Shetland Islands Local Authority\",Calculations!$E$2=\"Eilean Siar Local Authority\"),OR($F223=1,$F223=5)),0,hosp_count(VALUE(LEFT(Options!$B$24,2)),$C223,$E223,$F223,2016,$I223+$J223,1,$H223,$G223*$H223, Options!$B$8)))","v":8086.3267330266999},{"$f":"IF(AND(OR(Calculations!$E$2=\"Orkney Health Board\",Calculations!$E$2=\"Orkney Islands Local Authority\"),$F223=1),0,IF(AND(OR(Calculations!$E$2=\"Shetland Health Board\",Calculations!$E$2=\"Western Isles Health Board\",Calculations!$E$2=\"Shetland Islands Local Authority\",Calculations!$E$2=\"Eilean Siar Local Authority\"),OR($F223=1,$F223=5)),0,prem_mort(VALUE(LEFT(Options!$B$24,2)),$C223,$E223,$F223,2016,$I223,1,$H223,$G223*$H223,Options!$B$8)))","v":114.5025891201},{"$f":"IF(AND(OR(Calculations!$E$2=\"Orkney Health Board\",Calculations!$E$2=\"Orkney Islands Local Authority\"),$F223=1),0,IF(AND(OR(Calculations!$E$2=\"Shetland Health Board\",Calculations!$E$2=\"Western Isles Health Board\",Calculations!$E$2=\"Shetland Islands Local Authority\",Calculations!$E$2=\"Eilean Siar Local Authority\"),OR($F223=1,$F223=5)),0,prem_mort(VALUE(LEFT(Options!$B$24,2)),$C223,$E223,$F223,2016,$I223+$J223,1,$H223,$G223*$H223,Options!$B$8)))","v":113.96209391169999},298.85313232786967,297.44243334473038,7626.7316381541996,7590.7306015151134,21164.955850000002,21105.409858085033,298.85313232786967,297.44243334473038,1942545.3601311529,1933375.8167407475,49573755.648002297,49339748.909848236,137572213.02500001,137185164.07755271,1942545.3601311529,1933375.8167407475,6500]
[null,"Female 60-64",61.947387999999997,84.167389999999997,"female",5,{"$f":"HLOOKUP(Calculations!$E$2,'Prevalence Rates'!$C$3:$BC$249,'Prevalence Rates'!$BD224,FALSE)","v":0.10840000000000001},{"$f":"HLOOKUP(Calculations!$E$2,'Population 2016'!$C$3:$BC$249,'Population 2016'!BD224,FALSE)","v":33644},0,{"$f":"HLOOKUP(Results!E$4,Targeting!$C$3:$F$249,Targeting!$G224,FALSE)","v":5184},{"$f":"IF(AND(OR(Calculations!$E$2=\"Orkney Health Board\",Calculations!$E$2=\"Orkney Islands Local Authority\"),$F224=1),0,IF(AND(OR(Calculations!$E$2=\"Shetland Health Board\",Calculations!$E$2=\"Western Isles Health Board\",Calculations!$E$2=\"Shetland Islands Local Authority\",Calculations!$E$2=\"Eilean Siar Local Authority\"),OR($F224=1,$F224=5)),0,new_ci(VALUE(LEFT(Options!$B$24,2)),$C224,$E224,$F224,2016,$I224,1,$H224,$G224*$H224,Options!$B$8)))","v":153.63424864640001},{"$f":"IF(AND(OR(Calculations!$E$2=\"Orkney Health Board\",Calculations!$E$2=\"Orkney Islands Local Authority\"),$F224=1),0,IF(AND(OR(Calculations!$E$2=\"Shetland Health Board\",Calculations!$E$2=\"Western Isles Health Board\",Calculations!$E$2=\"Shetland Islands Local Authority\",Calculations!$E$2=\"Eilean Siar Local Authority\"),OR($F224=1,$F224=5)),0,new_ci(VALUE(LEFT(Options!$B$24,2)),$C224,$E224,$F224,2016,$I224+$J224,1,$H224,$G224*$H224,Options!$B$8)))","v":152.91024757759999},{"$f":"IF(AND(OR(Calculations!$E$2=\"Orkney Health Board\",Calculations!$E$2=\"Orkney Islands Local Authority\"),$F224=1),0,IF(AND(OR(Calculations!$E$2=\"Shetland Health Board\",Calculations!$E$2=\"Western Isles Health Board\",Calculations!$E$2=\"Shetland Islands Local Authority\",Calculations!$E$2=\"Eilean Siar Local Authority\"),OR($F224=1,$F224=5)),0,new_yllv2(VALUE(LEFT(Options!$B$24,2)),$C224,$D224,$E224,$F224,2016,$I224,1,$H224,$G224*$H224,Options!$B$8)))","v":3260.1190635450998},{"$f":"IF(AND(OR(Calculations!$E$2=\"Orkney Health Board\",Calculations!$E$2=\"Orkney Islands Local Authority\"),$F224=1),0,IF(AND(OR(Calculations!$E$2=\"Shetland Health Board\",Calculations!$E$2=\"Western Isles Health Board\",Calculations!$E$2=\"Shetland Islands Local Authority\",Calculations!$E$2=\"Eilean Siar Local Authority\"),OR($F224=1,$F224=5)),0,new_yllv2(VALUE(LEFT(Options!$B$24,2)),$C224,$D224,$E224,$F224,2016,$I224+$J224,1,$H224,$G224*$H224,Options!$B$8)))","v":3244.7557594171999},{"$f":"IF(AND(OR(Calculations!$E$2=\"Orkney Health Board\",Calculations!$E$2=\"Orkney Islands Local Authority\"),$F224=1),0,IF(AND(OR(Calculations!$E$2=\"Shetland Health Board\",Calculations!$E$2=\"Western Isles Health Board\",Calculations!$E$2=\"Shetland Islands Local Authority\",Calculations!$E$2=\"Eilean Siar Local Authority\"),OR($F224=1,$F224=5)),0,hosp_count(VALUE(LEFT(Options!$B$24,2)),$C224,$E224,$F224,2016,$I224,1,$H224,$G224*$H224, Options!$B$8)))","v":8073.9077134924},{"$f":"IF(AND(OR(Calculations!$E$2=\"Orkney Health Board\",Calculations!$E$2=\"Orkney Islands Local Authority\"),$F224=1),0,IF(AND(OR(Calculations!$E$2=\"Shetland Health Board\",Calculations!$E$2=\"Western Isles Health Board\",Calculations!$E$2=\"Shetland Islands Local Authority\",Calculations!$E$2=\"Eilean Siar Local Authority\"),OR($F224=1,$F224=5)),0,hosp_count(VALUE(LEFT(Options!$B$24,2)),$C224,$E224,$F224,2016,$I224+$J224,1,$H224,$G224*$H224, Options!$B$8)))","v":8051.1901870504998},{"$f":"IF(AND(OR(Calculations!$E$2=\"Orkney Health Board\",Calculations!$E$2=\"Orkney Islands Local Authority\"),$F224=1),0,IF(AND(OR(Calculations!$E$2=\"Shetland Health Board\",Calculations!$E$2=\"Western Isles Health Board\",Calculations!$E$2=\"Shetland Islands Local Authority\",Calculations!$E$2=\"Eilean Siar Local Authority\"),OR($F224=1,$F224=5)),0,prem_mort(VALUE(LEFT(Options!$B$24,2)),$C224,$E224,$F224,2016,$I224,1,$H224,$G224*$H224,Options!$B$8)))","v":153.63424864640001},{"$f":"IF(AND(OR(Calculations!$E$2=\"Orkney Health Board\",Calculations!$E$2=\"Orkney Islands Local Authority\"),$F224=1),0,IF(AND(OR(Calculations!$E$2=\"Shetland Health Board\",Calculations!$E$2=\"Western Isles Health Board\",Calculations!$E$2=\"Shetland Islands Local Authority\",Calculations!$E$2=\"Eilean Siar Local Authority\"),OR($F224=1,$F224=5)),0,prem_mort(VALUE(LEFT(Options!$B$24,2)),$C224,$E224,$F224,2016,$I224+$J224,1,$H224,$G224*$H224,Options!$B$8)))","v":152.91024757759999},456.64679778385454,454.49485072405184,9690.0459622669714,9644.381641354179,23998.06121,23930.537947480978,456.64679778385454,454.49485072405184,2739880.7867031274,2726969.1043443112,58140275.77360183,57866289.84812507,143988367.25999999,143583227.68488586,2739880.7867031274,2726969.1043443112,6000]
[null,"Female 65-69",67.063927000000007,85.193929999999995,"female",5,{"$f":"HLOOKUP(Calculations!$E$2,'Prevalence Rates'!$C$3:$BC$249,'Prevalence Rates'!$BD225,FALSE)","v":7.2599999999999998E-2},{"$f":"HLOOKUP(Calculations!$E$2,'Population 2016'!$C$3:$BC$249,'Population 2016'!BD225,FALSE)","v":33766},0,{"$f":"HLOOKUP(Results!E$4,Targeting!$C$3:$F$249,Targeting!$G225,FALSE)","v":5202},{"$f":"IF(AND(OR(Calculations!$E$2=\"Orkney Health Board\",Calculations!$E$2=\"Orkney Islands Local Authority\"),$F225=1),0,IF(AND(OR(Calculations!$E$2=\"Shetland Health Board\",Calculations!$E$2=\"Western Isles Health Board\",Calculations!$E$2=\"Shetland Islands Local Authority\",Calculations!$E$2=\"Eilean Siar Local Authority\"),OR($F225=1,$F225=5)),0,new_ci(VALUE(LEFT(Options!$B$24,2)),$C225,$E225,$F225,2016,$I225,1,$H225,$G225*$H225,Options!$B$8)))","v":237.96308208569999},{"$f":"IF(AND(OR(Calculations!$E$2=\"Orkney Health Board\",Calculations!$E$2=\"Orkney Islands Local Authority\"),$F225=1),0,IF(AND(OR(Calculations!$E$2=\"Shetland Health Board\",Calculations!$E$2=\"Western Isles Health Board\",Calculations!$E$2=\"Shetland Islands Local Authority\",Calculations!$E$2=\"Eilean Siar Local Authority\"),OR($F225=1,$F225=5)),0,new_ci(VALUE(LEFT(Options!$B$24,2)),$C225,$E225,$F225,2016,$I225+$J225,1,$H225,$G225*$H225,Options!$B$8)))","v":236.8151218923},{"$f":"IF(AND(OR(Calculations!$E$2=\"Orkney Health Board\",Calculations!$E$2=\"Orkney Islands Local Authority\"),$F225=1),0,IF(AND(OR(Calculations!$E$2=\"Shetland Health Board\",Calculations!$E$2=\"Western Isles Health Board\",Calculations!$E$2=\"Shetland Islands Local Authority\",Calculations!$E$2=\"Eilean Siar Local Authority\"),OR($F225=1,$F225=5)),0,new_yllv2(VALUE(LEFT(Options!$B$24,2)),$C225,$D225,$E225,$F225,2016,$I225,1,$H225,$G225*$H225,Options!$B$8)))","v":4076.3083100172998},{"$f":"IF(AND(OR(Calculations!$E$2=\"Orkney Health Board\",Calculations!$E$2=\"Orkney Islands Local Authority\"),$F225=1),0,IF(AND(OR(Calculations!$E$2=\"Shetland Health Board\",Calculations!$E$2=\"Western Isles Health Board\",Calculations!$E$2=\"Shetland Islands Local Authority\",Calculations!$E$2=\"Eilean Siar Local Authority\"),OR($F225=1,$F225=5)),0,new_yllv2(VALUE(LEFT(Options!$B$24,2)),$C225,$D225,$E225,$F225,2016,$I225+$J225,1,$H225,$G225*$H225,Options!$B$8)))","v":4056.6437484604999},{"$f":"IF(AND(OR(Calculations!$E$2=\"Orkney Health Board\",Calculations!$E$2=\"Orkney Islands Local Authority\"),$F225=1),0,IF(AND(OR(Calculations!$E$2=\"Shetland Health Board\",Calculations!$E$2=\"Western Isles Health Board\",Calculations!$E$2=\"Shetland Islands Local Authority\",Calculations!$E$2=\"Eilean Siar Local Authority\"),OR($F225=1,$F225=5)),0,hosp_count(VALUE(LEFT(Options!$B$24,2)),$C225,$E225,$F225,2016,$I225,1,$H225,$G225*$H225, Options!$B$8)))","v":9216.1471731248002},{"$f":"IF(AND(OR(Calculations!$E$2=\"Orkney Health Board\",Calculations!$E$2=\"Orkney Islands Local Authority\"),$F225=1),0,IF(AND(OR(Calculations!$E$2=\"Shetland Health Board\",Calculations!$E$2=\"Western Isles Health Board\",Calculations!$E$2=\"Shetland Islands Local Authority\",Calculations!$E$2=\"Eilean Siar Local Authority\"),OR($F225=1,$F225=5)),0,hosp_count(VALUE(LEFT(Options!$B$24,2)),$C225,$E225,$F225,2016,$I225+$J225,1,$H225,$G225*$H225, Options!$B$8)))","v":9189.7288008179003},{"$f":"IF(AND(OR(Calculations!$E$2=\"Orkney Health Board\",Calculations!$E$2=\"Orkney Islands Local Authority\"),$F225=1),0,IF(AND(OR(Calculations!$E$2=\"Shetland Health Board\",Calculations!$E$2=\"Western Isles Health Board\",Calculations!$E$2=\"Shetland Islands Local Authority\",Calculations!$E$2=\"Eilean Siar Local Authority\"),OR($F225=1,$F225=5)),0,prem_mort(VALUE(LEFT(Options!$B$24,2)),$C225,$E225,$F225,2016,$I225,1,$H225,$G225*$H225,Options!$B$8)))","v":237.96308208569999},{"$f":"IF(AND(OR(Calculations!$E$2=\"Orkney Health Board\",Calculations!$E$2=\"Orkney Islands Local Authority\"),$F225=1),0,IF(AND(OR(Calculations!$E$2=\"Shetland Health Board\",Calculations!$E$2=\"Western Isles Health Board\",Calculations!$E$2=\"Shetland Islands Local Authority\",Calculations!$E$2=\"Eilean Siar Local Authority\"),OR($F225=1,$F225=5)),0,prem_mort(VALUE(LEFT(Options!$B$24,2)),$C225,$E225,$F225,2016,$I225+$J225,1,$H225,$G225*$H225,Options!$B$8)))","v":236.8151218923},704.74169900402774,701.34194720221524,12072.227418164128,12013.989659599893,27294.163280000001,27215.923712663331,704.74169900402774,701.34194720221524,3876079.3445221526,3857380.7096121837,66397250.7999027,66076943.127799407,150117898.03999999,149687580.41964832,3876079.3445221526,3857380.7096121837,5500]
[null,"Female 70-74",71.938164,86.248159999999999,"female",5,{"$f":"HLOOKUP(Calculations!$E$2,'Prevalence Rates'!$C$3:$BC$249,'Prevalence Rates'!$BD226,FALSE)","v":7.2599999999999998E-2},{"$f":"HLOOKUP(Calculations!$E$2,'Population 2016'!$C$3:$BC$249,'Population 2016'!BD226,FALSE)","v":25722},0,{"$f":"HLOOKUP(Results!E$4,Targeting!$C$3:$F$249,Targeting!$G226,FALSE)","v":3963},{"$f":"IF(AND(OR(Calculations!$E$2=\"Orkney Health Board\",Calculations!$E$2=\"Orkney Islands Local Authority\"),$F226=1),0,IF(AND(OR(Calculations!$E$2=\"Shetland Health Board\",Calculations!$E$2=\"Western Isles Health Board\",Calculations!$E$2=\"Shetland Islands Local Authority\",Calculations!$E$2=\"Eilean Siar Local Authority\"),OR($F226=1,$F226=5)),0,new_ci(VALUE(LEFT(Options!$B$24,2)),$C226,$E226,$F226,2016,$I226,1,$H226,$G226*$H226,Options!$B$8)))","v":273.88260188850001},{"$f":"IF(AND(OR(Calculations!$E$2=\"Orkney Health Board\",Calculations!$E$2=\"Orkney Islands Local Authority\"),$F226=1),0,IF(AND(OR(Calculations!$E$2=\"Shetland Health Board\",Calculations!$E$2=\"Western Isles Health Board\",Calculations!$E$2=\"Shetland Islands Local Authority\",Calculations!$E$2=\"Eilean Siar Local Authority\"),OR($F226=1,$F226=5)),0,new_ci(VALUE(LEFT(Options!$B$24,2)),$C226,$E226,$F226,2016,$I226+$J226,1,$H226,$G226*$H226,Options!$B$8)))","v":272.5668676587},{"$f":"IF(AND(OR(Calculations!$E$2=\"Orkney Health Board\",Calculations!$E$2=\"Orkney Islands Local Authority\"),$F226=1),0,IF(AND(OR(Calculations!$E$2=\"Shetland Health Board\",Calculations!$E$2=\"Western Isles Health Board\",Calculations!$E$2=\"Shetland Islands Local Authority\",Calculations!$E$2=\"Eilean Siar Local Authority\"),OR($F226=1,$F226=5)),0,new_yllv2(VALUE(LEFT(Options!$B$24,2)),$C226,$D226,$E226,$F226,2016,$I226,1,$H226,$G226*$H226,Options!$B$8)))","v":3645.3763356055001},{"$f":"IF(AND(OR(Calculations!$E$2=\"Orkney Health Board\",Calculations!$E$2=\"Orkney Islands Local Authority\"),$F226=1),0,IF(AND(OR(Calculations!$E$2=\"Shetland Health Board\",Calculations!$E$2=\"Western Isles Health Board\",Calculations!$E$2=\"Shetland Islands Local Authority\",Calculations!$E$2=\"Eilean Siar Local Authority\"),OR($F226=1,$F226=5)),0,new_yllv2(VALUE(LEFT(Options!$B$24,2)),$C226,$D226,$E226,$F226,2016,$I226+$J226,1,$H226,$G226*$H226,Options!$B$8)))","v":3627.8639182697998},{"$f":"IF(AND(OR(Calculations!$E$2=\"Orkney Health Board\",Calculations!$E$2=\"Orkney Islands Local Authority\"),$F226=1),0,IF(AND(OR(Calculations!$E$2=\"Shetland Health Board\",Calculations!$E$2=\"Western Isles Health Board\",Calculations!$E$2=\"Shetland Islands Local Authority\",Calculations!$E$2=\"Eilean Siar Local Authority\"),OR($F226=1,$F226=5)),0,hosp_count(VALUE(LEFT(Options!$B$24,2)),$C226,$E226,$F226,2016,$I226,1,$H226,$G226*$H226, Options!$B$8)))","v":7936.3573448597999},{"$f":"IF(AND(OR(Calculations!$E$2=\"Orkney Health Board\",Calculations!$E$2=\"Orkney Islands Local Authority\"),$F226=1),0,IF(AND(OR(Calculations!$E$2=\"Shetland Health Board\",Calculations!$E$2=\"Western Isles Health Board\",Calculations!$E$2=\"Shetland Islands Local Authority\",Calculations!$E$2=\"Eilean Siar Local Authority\"),OR($F226=1,$F226=5)),0,hosp_count(VALUE(LEFT(Options!$B$24,2)),$C226,$E226,$F226,2016,$I226+$J226,1,$H226,$G226*$H226, Options!$B$8)))","v":7913.6060314191},{"$f":"IF(AND(OR(Calculations!$E$2=\"Orkney Health Board\",Calculations!$E$2=\"Orkney Islands Local Authority\"),$F226=1),0,IF(AND(OR(Calculations!$E$2=\"Shetland Health Board\",Calculations!$E$2=\"Western Isles Health Board\",Calculations!$E$2=\"Shetland Islands Local Authority\",Calculations!$E$2=\"Eilean Siar Local Authority\"),OR($F226=1,$F226=5)),0,prem_mort(VALUE(LEFT(Options!$B$24,2)),$C226,$E226,$F226,2016,$I226,1,$H226,$G226*$H226,Options!$B$8)))","v":273.88260188850001},{"$f":"IF(AND(OR(Calculations!$E$2=\"Orkney Health Board\",Calculations!$E$2=\"Orkney Islands Local Authority\"),$F226=1),0,IF(AND(OR(Calculations!$E$2=\"Shetland Health Board\",Calculations!$E$2=\"Western Isles Health Board\",Calculations!$E$2=\"Shetland Islands Local Authority\",Calculations!$E$2=\"Eilean Siar Local Authority\"),OR($F226=1,$F226=5)),0,prem_mort(VALUE(LEFT(Options!$B$24,2)),$C226,$E226,$F226,2016,$I226+$J226,1,$H226,$G226*$H226,Options!$B$8)))","v":272.5668676587},1064.7795734721251,1059.6643638080243,14172.211863795585,14104.128443627245,30854.355590000003,30765.904795191273,1064.7795734721251,1059.6643638080243,5323897.8673606254,5298321.8190401215,70861059.318977922,70520642.218136221,154271777.95000002,153829523.97595635,5323897.8673606254,5298321.8190401215,5000]
[null,"Female 75-79",76.942824999999999,87.812830000000005,"female",5,{"$f":"HLOOKUP(Calculations!$E$2,'Prevalence Rates'!$C$3:$BC$249,'Prevalence Rates'!$BD227,FALSE)","v":5.0599999999999999E-2},{"$f":"HLOOKUP(Calculations!$E$2,'Population 2016'!$C$3:$BC$249,'Population 2016'!BD227,FALSE)","v":20290},0,{"$f":"HLOOKUP(Results!E$4,Targeting!$C$3:$F$249,Targeting!$G227,FALSE)","v":3126},{"$f":"IF(AND(OR(Calculations!$E$2=\"Orkney Health Board\",Calculations!$E$2=\"Orkney Islands Local Authority\"),$F227=1),0,IF(AND(OR(Calculations!$E$2=\"Shetland Health Board\",Calculations!$E$2=\"Western Isles Health Board\",Calculations!$E$2=\"Shetland Islands Local Authority\",Calculations!$E$2=\"Eilean Siar Local Authority\"),OR($F227=1,$F227=5)),0,new_ci(VALUE(LEFT(Options!$B$24,2)),$C227,$E227,$F227,2016,$I227,1,$H227,$G227*$H227,Options!$B$8)))","v":329.73504543069998},{"$f":"IF(AND(OR(Calculations!$E$2=\"Orkney Health Board\",Calculations!$E$2=\"Orkney Islands Local Authority\"),$F227=1),0,IF(AND(OR(Calculations!$E$2=\"Shetland Health Board\",Calculations!$E$2=\"Western Isles Health Board\",Calculations!$E$2=\"Shetland Islands Local Authority\",Calculations!$E$2=\"Eilean Siar Local Authority\"),OR($F227=1,$F227=5)),0,new_ci(VALUE(LEFT(Options!$B$24,2)),$C227,$E227,$F227,2016,$I227+$J227,1,$H227,$G227*$H227,Options!$B$8)))","v":328.13577539049999},{"$f":"IF(AND(OR(Calculations!$E$2=\"Orkney Health Board\",Calculations!$E$2=\"Orkney Islands Local Authority\"),$F227=1),0,IF(AND(OR(Calculations!$E$2=\"Shetland Health Board\",Calculations!$E$2=\"Western Isles Health Board\",Calculations!$E$2=\"Shetland Islands Local Authority\",Calculations!$E$2=\"Eilean Siar Local Authority\"),OR($F227=1,$F227=5)),0,new_yllv2(VALUE(LEFT(Options!$B$24,2)),$C227,$D227,$E227,$F227,2016,$I227,1,$H227,$G227*$H227,Options!$B$8)))","v":3254.4865470762002},{"$f":"IF(AND(OR(Calculations!$E$2=\"Orkney Health Board\",Calculations!$E$2=\"Orkney Islands Local Authority\"),$F227=1),0,IF(AND(OR(Calculations!$E$2=\"Shetland Health Board\",Calculations!$E$2=\"Western Isles Health Board\",Calculations!$E$2=\"Shetland Islands Local Authority\",Calculations!$E$2=\"Eilean Siar Local Authority\"),OR($F227=1,$F227=5)),0,new_yllv2(VALUE(LEFT(Options!$B$24,2)),$C227,$D227,$E227,$F227,2016,$I227+$J227,1,$H227,$G227*$H227,Options!$B$8)))","v":3238.7017437831},{"$f":"IF(AND(OR(Calculations!$E$2=\"Orkney Health Board\",Calculations!$E$2=\"Orkney Islands Local Authority\"),$F227=1),0,IF(AND(OR(Calculations!$E$2=\"Shetland Health Board\",Calculations!$E$2=\"Western Isles Health Board\",Calculations!$E$2=\"Shetland Islands Local Authority\",Calculations!$E$2=\"Eilean Siar Local Authority\"),OR($F227=1,$F227=5)),0,hosp_count(VALUE(LEFT(Options!$B$24,2)),$C227,$E227,$F227,2016,$I227,1,$H227,$G227*$H227, Options!$B$8)))","v":7100.1902926740004},{"$f":"IF(AND(OR(Calculations!$E$2=\"Orkney Health Board\",Calculations!$E$2=\"Orkney Islands Local Authority\"),$F227=1),0,IF(AND(OR(Calculations!$E$2=\"Shetland Health Board\",Calculations!$E$2=\"Western Isles Health Board\",Calculations!$E$2=\"Shetland Islands Local Authority\",Calculations!$E$2=\"Eilean Siar Local Authority\"),OR($F227=1,$F227=5)),0,hosp_count(VALUE(LEFT(Options!$B$24,2)),$C227,$E227,$F227,2016,$I227+$J227,1,$H227,$G227*$H227, Options!$B$8)))","v":7079.5970063457999},{"$f":"IF(AND(OR(Calculations!$E$2=\"Orkney Health Board\",Calculations!$E$2=\"Orkney Islands Local Authority\"),$F227=1),0,IF(AND(OR(Calculations!$E$2=\"Shetland Health Board\",Calculations!$E$2=\"Western Isles Health Board\",Calculations!$E$2=\"Shetland Islands Local Authority\",Calculations!$E$2=\"Eilean Siar Local Authority\"),OR($F227=1,$F227=5)),0,prem_mort(VALUE(LEFT(Options!$B$24,2)),$C227,$E227,$F227,2016,$I227,1,$H227,$G227*$H227,Options!$B$8)))","v":0},{"$f":"IF(AND(OR(Calculations!$E$2=\"Orkney Health Board\",Calculations!$E$2=\"Orkney Islands Local Authority\"),$F227=1),0,IF(AND(OR(Calculations!$E$2=\"Shetland Health Board\",Calculations!$E$2=\"Western Isles Health Board\",Calculations!$E$2=\"Shetland Islands Local Authority\",Calculations!$E$2=\"Eilean Siar Local Authority\"),OR($F227=1,$F227=5)),0,prem_mort(VALUE(LEFT(Options!$B$24,2)),$C227,$E227,$F227,2016,$I227+$J227,1,$H227,$G227*$H227,Options!$B$8)))","v":0},1625.1111159719073,1617.2290556456383,16039.854840198128,15962.05886536767,34993.545060000004,34892.050302345,0,0,6500444.4638876291,6468916.2225825526,64159419.36079251,63848235.461470678,139974180.24000001,139568201.20938,0,0,4000]
[null,"Female 80-84",81.856712000000002,89.736710000000002,"female",5,{"$f":"HLOOKUP(Calculations!$E$2,'Prevalence Rates'!$C$3:$BC$249,'Prevalence Rates'!$BD228,FALSE)","v":5.0599999999999999E-2},{"$f":"HLOOKUP(Calculations!$E$2,'Population 2016'!$C$3:$BC$249,'Population 2016'!BD228,FALSE)","v":15640},0,{"$f":"HLOOKUP(Results!E$4,Targeting!$C$3:$F$249,Targeting!$G228,FALSE)","v":2410},{"$f":"IF(AND(OR(Calculations!$E$2=\"Orkney Health Board\",Calculations!$E$2=\"Orkney Islands Local Authority\"),$F228=1),0,IF(AND(OR(Calculations!$E$2=\"Shetland Health Board\",Calculations!$E$2=\"Western Isles Health Board\",Calculations!$E$2=\"Shetland Islands Local Authority\",Calculations!$E$2=\"Eilean Siar Local Authority\"),OR($F228=1,$F228=5)),0,new_ci(VALUE(LEFT(Options!$B$24,2)),$C228,$E228,$F228,2016,$I228,1,$H228,$G228*$H228,Options!$B$8)))","v":384.36259439399998},{"$f":"IF(AND(OR(Calculations!$E$2=\"Orkney Health Board\",Calculations!$E$2=\"Orkney Islands Local Authority\"),$F228=1),0,IF(AND(OR(Calculations!$E$2=\"Shetland Health Board\",Calculations!$E$2=\"Western Isles Health Board\",Calculations!$E$2=\"Shetland Islands Local Authority\",Calculations!$E$2=\"Eilean Siar Local Authority\"),OR($F228=1,$F228=5)),0,new_ci(VALUE(LEFT(Options!$B$24,2)),$C228,$E228,$F228,2016,$I228+$J228,1,$H228,$G228*$H228,Options!$B$8)))","v":382.51701398400002},{"$f":"IF(AND(OR(Calculations!$E$2=\"Orkney Health Board\",Calculations!$E$2=\"Orkney Islands Local Authority\"),$F228=1),0,IF(AND(OR(Calculations!$E$2=\"Shetland Health Board\",Calculations!$E$2=\"Western Isles Health Board\",Calculations!$E$2=\"Shetland Islands Local Authority\",Calculations!$E$2=\"Eilean Siar Local Authority\"),OR($F228=1,$F228=5)),0,new_yllv2(VALUE(LEFT(Options!$B$24,2)),$C228,$D228,$E228,$F228,2016,$I228,1,$H228,$G228*$H228,Options!$B$8)))","v":2644.4138807055001},{"$f":"IF(AND(OR(Calculations!$E$2=\"Orkney Health Board\",Calculations!$E$2=\"Orkney Islands Local Authority\"),$F228=1),0,IF(AND(OR(Calculations!$E$2=\"Shetland Health Board\",Calculations!$E$2=\"Western Isles Health Board\",Calculations!$E$2=\"Shetland Islands Local Authority\",Calculations!$E$2=\"Eilean Siar Local Authority\"),OR($F228=1,$F228=5)),0,new_yllv2(VALUE(LEFT(Options!$B$24,2)),$C228,$D228,$E228,$F228,2016,$I228+$J228,1,$H228,$G228*$H228,Options!$B$8)))","v":2631.7162911759001},{"$f":"IF(AND(OR(Calculations!$E$2=\"Orkney Health Board\",Calculations!$E$2=\"Orkney Islands Local Authority\"),$F228=1),0,IF(AND(OR(Calculations!$E$2=\"Shetland Health Board\",Calculations!$E$2=\"Western Isles Health Board\",Calculations!$E$2=\"Shetland Islands Local Authority\",Calculations!$E$2=\"Eilean Siar Local Authority\"),OR($F228=1,$F228=5)),0,hosp_count(VALUE(LEFT(Options!$B$24,2)),$C228,$E228,$F228,2016,$I228,1,$H228,$G228*$H228, Options!$B$8)))","v":6193.0491423240001},{"$f":"IF(AND(OR(Calculations!$E$2=\"Orkney Health Board\",Calculations!$E$2=\"Orkney Islands Local Authority\"),$F228=1),0,IF(AND(OR(Calculations!$E$2=\"Shetland Health Board\",Calculations!$E$2=\"Western Isles Health Board\",Calculations!$E$2=\"Shetland Islands Local Authority\",Calculations!$E$2=\"Eilean Siar Local Authority\"),OR($F228=1,$F228=5)),0,hosp_count(VALUE(LEFT(Options!$B$24,2)),$C228,$E228,$F228,2016,$I228+$J228,1,$H228,$G228*$H228, Options!$B$8)))","v":6175.0838801287},{"$f":"IF(AND(OR(Calculations!$E$2=\"Orkney Health Board\",Calculations!$E$2=\"Orkney Islands Local Authority\"),$F228=1),0,IF(AND(OR(Calculations!$E$2=\"Shetland Health Board\",Calculations!$E$2=\"Western Isles Health Board\",Calculations!$E$2=\"Shetland Islands Local Authority\",Calculations!$E$2=\"Eilean Siar Local Authority\"),OR($F228=1,$F228=5)),0,prem_mort(VALUE(LEFT(Options!$B$24,2)),$C228,$E228,$F228,2016,$I228,1,$H228,$G228*$H228,Options!$B$8)))","v":0},{"$f":"IF(AND(OR(Calculations!$E$2=\"Orkney Health Board\",Calculations!$E$2=\"Orkney Islands Local Authority\"),$F228=1),0,IF(AND(OR(Calculations!$E$2=\"Shetland Health Board\",Calculations!$E$2=\"Western Isles Health Board\",Calculations!$E$2=\"Shetland Islands Local Authority\",Calculations!$E$2=\"Eilean Siar Local Authority\"),OR($F228=1,$F228=5)),0,prem_mort(VALUE(LEFT(Options!$B$24,2)),$C228,$E228,$F228,2016,$I228+$J228,1,$H228,$G228*$H228,Options!$B$8)))","v":0},2457.5613452301786,2445.7609589769822,16908.017140060743,16826.83050623977,39597.500910000002,39482.633504659207,0,0,6143903.3630754463,6114402.3974424554,42270042.850151859,42067076.265599422,98993752.275000006,98706583.761648014,0,0,2500]
[null,"Female 85-89",86.730819999999994,92.220819999999989,"female",5,{"$f":"HLOOKUP(Calculations!$E$2,'Prevalence Rates'!$C$3:$BC$249,'Prevalence Rates'!$BD229,FALSE)","v":5.0599999999999999E-2},{"$f":"HLOOKUP(Calculations!$E$2,'Population 2016'!$C$3:$BC$249,'Population 2016'!BD229,FALSE)","v":9964},0,{"$f":"HLOOKUP(Results!E$4,Targeting!$C$3:$F$249,Targeting!$G229,FALSE)","v":1535},{"$f":"IF(AND(OR(Calculations!$E$2=\"Orkney Health Board\",Calculations!$E$2=\"Orkney Islands Local Authority\"),$F229=1),0,IF(AND(OR(Calculations!$E$2=\"Shetland Health Board\",Calculations!$E$2=\"Western Isles Health Board\",Calculations!$E$2=\"Shetland Islands Local Authority\",Calculations!$E$2=\"Eilean Siar Local Authority\"),OR($F229=1,$F229=5)),0,new_ci(VALUE(LEFT(Options!$B$24,2)),$C229,$E229,$F229,2016,$I229,1,$H229,$G229*$H229,Options!$B$8)))","v":368.25056848790001},{"$f":"IF(AND(OR(Calculations!$E$2=\"Orkney Health Board\",Calculations!$E$2=\"Orkney Islands Local Authority\"),$F229=1),0,IF(AND(OR(Calculations!$E$2=\"Shetland Health Board\",Calculations!$E$2=\"Western Isles Health Board\",Calculations!$E$2=\"Shetland Islands Local Authority\",Calculations!$E$2=\"Eilean Siar Local Authority\"),OR($F229=1,$F229=5)),0,new_ci(VALUE(LEFT(Options!$B$24,2)),$C229,$E229,$F229,2016,$I229+$J229,1,$H229,$G229*$H229,Options!$B$8)))","v":366.50976689340001},{"$f":"IF(AND(OR(Calculations!$E$2=\"Orkney Health Board\",Calculations!$E$2=\"Orkney Islands Local Authority\"),$F229=1),0,IF(AND(OR(Calculations!$E$2=\"Shetland Health Board\",Calculations!$E$2=\"Western Isles Health Board\",Calculations!$E$2=\"Shetland Islands Local Authority\",Calculations!$E$2=\"Eilean Siar Local Authority\"),OR($F229=1,$F229=5)),0,new_yllv2(VALUE(LEFT(Options!$B$24,2)),$C229,$D229,$E229,$F229,2016,$I229,1,$H229,$G229*$H229,Options!$B$8)))","v":1653.4450525107},{"$f":"IF(AND(OR(Calculations!$E$2=\"Orkney Health Board\",Calculations!$E$2=\"Orkney Islands Local Authority\"),$F229=1),0,IF(AND(OR(Calculations!$E$2=\"Shetland Health Board\",Calculations!$E$2=\"Western Isles Health Board\",Calculations!$E$2=\"Shetland Islands Local Authority\",Calculations!$E$2=\"Eilean Siar Local Authority\"),OR($F229=1,$F229=5)),0,new_yllv2(VALUE(LEFT(Options!$B$24,2)),$C229,$D229,$E229,$F229,2016,$I229+$J229,1,$H229,$G229*$H229,Options!$B$8)))","v":1645.6288533514},{"$f":"IF(AND(OR(Calculations!$E$2=\"Orkney Health Board\",Calculations!$E$2=\"Orkney Islands Local Authority\"),$F229=1),0,IF(AND(OR(Calculations!$E$2=\"Shetland Health Board\",Calculations!$E$2=\"Western Isles Health Board\",Calculations!$E$2=\"Shetland Islands Local Authority\",Calculations!$E$2=\"Eilean Siar Local Authority\"),OR($F229=1,$F229=5)),0,hosp_count(VALUE(LEFT(Options!$B$24,2)),$C229,$E229,$F229,2016,$I229,1,$H229,$G229*$H229, Options!$B$8)))","v":4460.1224511456003},{"$f":"IF(AND(OR(Calculations!$E$2=\"Orkney Health Board\",Calculations!$E$2=\"Orkney Islands Local Authority\"),$F229=1),0,IF(AND(OR(Calculations!$E$2=\"Shetland Health Board\",Calculations!$E$2=\"Western Isles Health Board\",Calculations!$E$2=\"Shetland Islands Local Authority\",Calculations!$E$2=\"Eilean Siar Local Authority\"),OR($F229=1,$F229=5)),0,hosp_count(VALUE(LEFT(Options!$B$24,2)),$C229,$E229,$F229,2016,$I229+$J229,1,$H229,$G229*$H229, Options!$B$8)))","v":4447.1873392941998},{"$f":"IF(AND(OR(Calculations!$E$2=\"Orkney Health Board\",Calculations!$E$2=\"Orkney Islands Local Authority\"),$F229=1),0,IF(AND(OR(Calculations!$E$2=\"Shetland Health Board\",Calculations!$E$2=\"Western Isles Health Board\",Calculations!$E$2=\"Shetland Islands Local Authority\",Calculations!$E$2=\"Eilean Siar Local Authority\"),OR($F229=1,$F229=5)),0,prem_mort(VALUE(LEFT(Options!$B$24,2)),$C229,$E229,$F229,2016,$I229,1,$H229,$G229*$H229,Options!$B$8)))","v":0},{"$f":"IF(AND(OR(Calculations!$E$2=\"Orkney Health Board\",Calculations!$E$2=\"Orkney Islands Local Authority\"),$F229=1),0,IF(AND(OR(Calculations!$E$2=\"Shetland Health Board\",Calculations!$E$2=\"Western Isles Health Board\",Calculations!$E$2=\"Shetland Islands Local Authority\",Calculations!$E$2=\"Eilean Siar Local Authority\"),OR($F229=1,$F229=5)),0,prem_mort(VALUE(LEFT(Options!$B$24,2)),$C229,$E229,$F229,2016,$I229+$J229,1,$H229,$G229*$H229,Options!$B$8)))","v":0},3695.8106030499803,3678.3396918245689,16594.189607694701,16515.745216292653,44762.369039999998,44632.550575012043,0,0,5543715.9045749707,5517509.5377368536,24891284.411542051,24773617.824438978,67143553.560000002,66948825.862518065,0,0,1500]
[null,"Female 90+",92.779342999999997,96.279340000000005,"female",5,{"$f":"HLOOKUP(Calculations!$E$2,'Prevalence Rates'!$C$3:$BC$249,'Prevalence Rates'!$BD230,FALSE)","v":5.0599999999999999E-2},{"$f":"HLOOKUP(Calculations!$E$2,'Population 2016'!$C$3:$BC$249,'Population 2016'!BD230,FALSE)","v":6057},0,{"$f":"HLOOKUP(Results!E$4,Targeting!$C$3:$F$249,Targeting!$G230,FALSE)","v":933},{"$f":"IF(AND(OR(Calculations!$E$2=\"Orkney Health Board\",Calculations!$E$2=\"Orkney Islands Local Authority\"),$F230=1),0,IF(AND(OR(Calculations!$E$2=\"Shetland Health Board\",Calculations!$E$2=\"Western Isles Health Board\",Calculations!$E$2=\"Shetland Islands Local Authority\",Calculations!$E$2=\"Eilean Siar Local Authority\"),OR($F230=1,$F230=5)),0,new_ci(VALUE(LEFT(Options!$B$24,2)),$C230,$E230,$F230,2016,$I230,1,$H230,$G230*$H230,Options!$B$8)))","v":369.64798685220001},{"$f":"IF(AND(OR(Calculations!$E$2=\"Orkney Health Board\",Calculations!$E$2=\"Orkney Islands Local Authority\"),$F230=1),0,IF(AND(OR(Calculations!$E$2=\"Shetland Health Board\",Calculations!$E$2=\"Western Isles Health Board\",Calculations!$E$2=\"Shetland Islands Local Authority\",Calculations!$E$2=\"Eilean Siar Local Authority\"),OR($F230=1,$F230=5)),0,new_ci(VALUE(LEFT(Options!$B$24,2)),$C230,$E230,$F230,2016,$I230+$J230,1,$H230,$G230*$H230,Options!$B$8)))","v":367.95333799349999},{"$f":"IF(AND(OR(Calculations!$E$2=\"Orkney Health Board\",Calculations!$E$2=\"Orkney Islands Local Authority\"),$F230=1),0,IF(AND(OR(Calculations!$E$2=\"Shetland Health Board\",Calculations!$E$2=\"Western Isles Health Board\",Calculations!$E$2=\"Shetland Islands Local Authority\",Calculations!$E$2=\"Eilean Siar Local Authority\"),OR($F230=1,$F230=5)),0,new_yllv2(VALUE(LEFT(Options!$B$24,2)),$C230,$D230,$E230,$F230,2016,$I230,1,$H230,$G230*$H230,Options!$B$8)))","v":924.11885818650001},{"$f":"IF(AND(OR(Calculations!$E$2=\"Orkney Health Board\",Calculations!$E$2=\"Orkney Islands Local Authority\"),$F230=1),0,IF(AND(OR(Calculations!$E$2=\"Shetland Health Board\",Calculations!$E$2=\"Western Isles Health Board\",Calculations!$E$2=\"Shetland Islands Local Authority\",Calculations!$E$2=\"Eilean Siar Local Authority\"),OR($F230=1,$F230=5)),0,new_yllv2(VALUE(LEFT(Options!$B$24,2)),$C230,$D230,$E230,$F230,2016,$I230+$J230,1,$H230,$G230*$H230,Options!$B$8)))","v":919.88224112370006},{"$f":"IF(AND(OR(Calculations!$E$2=\"Orkney Health Board\",Calculations!$E$2=\"Orkney Islands Local Authority\"),$F230=1),0,IF(AND(OR(Calculations!$E$2=\"Shetland Health Board\",Calculations!$E$2=\"Western Isles Health Board\",Calculations!$E$2=\"Shetland Islands Local Authority\",Calculations!$E$2=\"Eilean Siar Local Authority\"),OR($F230=1,$F230=5)),0,hosp_count(VALUE(LEFT(Options!$B$24,2)),$C230,$E230,$F230,2016,$I230,1,$H230,$G230*$H230, Options!$B$8)))","v":3156.7875870779999},{"$f":"IF(AND(OR(Calculations!$E$2=\"Orkney Health Board\",Calculations!$E$2=\"Orkney Islands Local Authority\"),$F230=1),0,IF(AND(OR(Calculations!$E$2=\"Shetland Health Board\",Calculations!$E$2=\"Western Isles Health Board\",Calculations!$E$2=\"Shetland Islands Local Authority\",Calculations!$E$2=\"Eilean Siar Local Authority\"),OR($F230=1,$F230=5)),0,hosp_count(VALUE(LEFT(Options!$B$24,2)),$C230,$E230,$F230,2016,$I230+$J230,1,$H230,$G230*$H230, Options!$B$8)))","v":3147.6334339404998},{"$f":"IF(AND(OR(Calculations!$E$2=\"Orkney Health Board\",Calculations!$E$2=\"Orkney Islands Local Authority\"),$F230=1),0,IF(AND(OR(Calculations!$E$2=\"Shetland Health Board\",Calculations!$E$2=\"Western Isles Health Board\",Calculations!$E$2=\"Shetland Islands Local Authority\",Calculations!$E$2=\"Eilean Siar Local Authority\"),OR($F230=1,$F230=5)),0,prem_mort(VALUE(LEFT(Options!$B$24,2)),$C230,$E230,$F230,2016,$I230,1,$H230,$G230*$H230,Options!$B$8)))","v":0},{"$f":"IF(AND(OR(Calculations!$E$2=\"Orkney Health Board\",Calculations!$E$2=\"Orkney Islands Local Authority\"),$F230=1),0,IF(AND(OR(Calculations!$E$2=\"Shetland Health Board\",Calculations!$E$2=\"Western Isles Health Board\",Calculations!$E$2=\"Shetland Islands Local Authority\",Calculations!$E$2=\"Eilean Siar Local Authority\"),OR($F230=1,$F230=5)),0,prem_mort(VALUE(LEFT(Options!$B$24,2)),$C230,$E230,$F230,2016,$I230+$J230,1,$H230,$G230*$H230,Options!$B$8)))","v":0},6102.8229627241217,6074.844609435364,15257.039098340763,15187.093299053988,52118.005399999995,51966.8719488278,0,0,6102822.9627241213,6074844.6094353637,15257039.098340763,15187093.299053987,52118005.399999991,51966871.948827803,0,0,1000]
[null,"Male 0-4",2.0320822999999999,77.402082000000007,"male",5,{"$f":"HLOOKUP(Calculations!$E$2,'Prevalence Rates'!$C$3:$BC$249,'Prevalence Rates'!$BD231,FALSE)","v":0},{"$f":"HLOOKUP(Calculations!$E$2,'Population 2016'!$C$3:$BC$249,'Population 2016'!BD231,FALSE)","v":0},0,{"$f":"HLOOKUP(Results!E$4,Targeting!$C$3:$F$249,Targeting!$G231,FALSE)","v":0},{"$f":"IF(AND(OR(Calculations!$E$2=\"Orkney Health Board\",Calculations!$E$2=\"Orkney Islands Local Authority\"),$F231=1),0,IF(AND(OR(Calculations!$E$2=\"Shetland Health Board\",Calculations!$E$2=\"Western Isles Health Board\",Calculations!$E$2=\"Shetland Islands Local Authority\",Calculations!$E$2=\"Eilean Siar Local Authority\"),OR($F231=1,$F231=5)),0,new_ci(VALUE(LEFT(Options!$B$24,2)),$C231,$E231,$F231,2016,$I231,1,$H231,$G231*$H231,Options!$B$8)))","v":{"$error":"#VALUE!"}},{"$f":"IF(AND(OR(Calculations!$E$2=\"Orkney Health Board\",Calculations!$E$2=\"Orkney Islands Local Authority\"),$F231=1),0,IF(AND(OR(Calculations!$E$2=\"Shetland Health Board\",Calculations!$E$2=\"Western Isles Health Board\",Calculations!$E$2=\"Shetland Islands Local Authority\",Calculations!$E$2=\"Eilean Siar Local Authority\"),OR($F231=1,$F231=5)),0,new_ci(VALUE(LEFT(Options!$B$24,2)),$C231,$E231,$F231,2016,$I231+$J231,1,$H231,$G231*$H231,Options!$B$8)))","v":{"$error":"#VALUE!"}},{"$f":"IF(AND(OR(Calculations!$E$2=\"Orkney Health Board\",Calculations!$E$2=\"Orkney Islands Local Authority\"),$F231=1),0,IF(AND(OR(Calculations!$E$2=\"Shetland Health Board\",Calculations!$E$2=\"Western Isles Health Board\",Calculations!$E$2=\"Shetland Islands Local Authority\",Calculations!$E$2=\"Eilean Siar Local Authority\"),OR($F231=1,$F231=5)),0,new_yllv2(VALUE(LEFT(Options!$B$24,2)),$C231,$D231,$E231,$F231,2016,$I231,1,$H231,$G231*$H231,Options!$B$8)))","v":{"$error":"#VALUE!"}},{"$f":"IF(AND(OR(Calculations!$E$2=\"Orkney Health Board\",Calculations!$E$2=\"Orkney Islands Local Authority\"),$F231=1),0,IF(AND(OR(Calculations!$E$2=\"Shetland Health Board\",Calculations!$E$2=\"Western Isles Health Board\",Calculations!$E$2=\"Shetland Islands Local Authority\",Calculations!$E$2=\"Eilean Siar Local Authority\"),OR($F231=1,$F231=5)),0,new_yllv2(VALUE(LEFT(Options!$B$24,2)),$C231,$D231,$E231,$F231,2016,$I231+$J231,1,$H231,$G231*$H231,Options!$B$8)))","v":{"$error":"#VALUE!"}},{"$f":"IF(AND(OR(Calculations!$E$2=\"Orkney Health Board\",Calculations!$E$2=\"Orkney Islands Local Authority\"),$F231=1),0,IF(AND(OR(Calculations!$E$2=\"Shetland Health Board\",Calculations!$E$2=\"Western Isles Health Board\",Calculations!$E$2=\"Shetland Islands Local Authority\",Calculations!$E$2=\"Eilean Siar Local Authority\"),OR($F231=1,$F231=5)),0,hosp_count(VALUE(LEFT(Options!$B$24,2)),$C231,$E231,$F231,2016,$I231,1,$H231,$G231*$H231, Options!$B$8)))","v":{"$error":"#VALUE!"}},{"$f":"IF(AND(OR(Calculations!$E$2=\"Orkney Health Board\",Calculations!$E$2=\"Orkney Islands Local Authority\"),$F231=1),0,IF(AND(OR(Calculations!$E$2=\"Shetland Health Board\",Calculations!$E$2=\"Western Isles Health Board\",Calculations!$E$2=\"Shetland Islands Local Authority\",Calculations!$E$2=\"Eilean Siar Local Authority\"),OR($F231=1,$F231=5)),0,hosp_count(VALUE(LEFT(Options!$B$24,2)),$C231,$E231,$F231,2016,$I231+$J231,1,$H231,$G231*$H231, Options!$B$8)))","v":{"$error":"#VALUE!"}},{"$f":"IF(AND(OR(Calculations!$E$2=\"Orkney Health Board\",Calculations!$E$2=\"Orkney Islands Local Authority\"),$F231=1),0,IF(AND(OR(Calculations!$E$2=\"Shetland Health Board\",Calculations!$E$2=\"Western Isles Health Board\",Calculations!$E$2=\"Shetland Islands Local Authority\",Calculations!$E$2=\"Eilean Siar Local Authority\"),OR($F231=1,$F231=5)),0,prem_mort(VALUE(LEFT(Options!$B$24,2)),$C231,$E231,$F231,2016,$I231,1,$H231,$G231*$H231,Options!$B$8)))","v":{"$error":"#VALUE!"}},{"$f":"IF(AND(OR(Calculations!$E$2=\"Orkney Health Board\",Calculations!$E$2=\"Orkney Islands Local Authority\"),$F231=1),0,IF(AND(OR(Calculations!$E$2=\"Shetland Health Board\",Calculations!$E$2=\"Western Isles Health Board\",Calculations!$E$2=\"Shetland Islands Local Authority\",Calculations!$E$2=\"Eilean Siar Local Authority\"),OR($F231=1,$F231=5)),0,prem_mort(VALUE(LEFT(Options!$B$24,2)),$C231,$E231,$F231,2016,$I231+$J231,1,$H231,$G231*$H231,Options!$B$8)))","v":{"$error":"#VALUE!"}},{"$error":"#VALUE!"},{"$error":"#VALUE!"},{"$error":"#VALUE!"},{"$error":"#VALUE!"},{"$error":"#VALUE!"},{"$error":"#VALUE!"},{"$error":"#VALUE!"},{"$error":"#VALUE!"},{"$error":"#VALUE!"},{"$error":"#VALUE!"},{"$error":"#VALUE!"},{"$error":"#VALUE!"},{"$error":"#VALUE!"},{"$error":"#VALUE!"},{"$error":"#VALUE!"},{"$error":"#VALUE!"},5000]
[null,"Male 5-9",6.9784756000000003,77.398476000000002,"male",5,{"$f":"HLOOKUP(Calculations!$E$2,'Prevalence Rates'!$C$3:$BC$249,'Prevalence Rates'!$BD232,FALSE)","v":0},{"$f":"HLOOKUP(Calculations!$E$2,'Population 2016'!$C$3:$BC$249,'Population 2016'!BD232,FALSE)","v":0},0,{"$f":"HLOOKUP(Results!E$4,Targeting!$C$3:$F$249,Targeting!$G232,FALSE)","v":0},{"$f":"IF(AND(OR(Calculations!$E$2=\"Orkney Health Board\",Calculations!$E$2=\"Orkney Islands Local Authority\"),$F232=1),0,IF(AND(OR(Calculations!$E$2=\"Shetland Health Board\",Calculations!$E$2=\"Western Isles Health Board\",Calculations!$E$2=\"Shetland Islands Local Authority\",Calculations!$E$2=\"Eilean Siar Local Authority\"),OR($F232=1,$F232=5)),0,new_ci(VALUE(LEFT(Options!$B$24,2)),$C232,$E232,$F232,2016,$I232,1,$H232,$G232*$H232,Options!$B$8)))","v":{"$error":"#VALUE!"}},{"$f":"IF(AND(OR(Calculations!$E$2=\"Orkney Health Board\",Calculations!$E$2=\"Orkney Islands Local Authority\"),$F232=1),0,IF(AND(OR(Calculations!$E$2=\"Shetland Health Board\",Calculations!$E$2=\"Western Isles Health Board\",Calculations!$E$2=\"Shetland Islands Local Authority\",Calculations!$E$2=\"Eilean Siar Local Authority\"),OR($F232=1,$F232=5)),0,new_ci(VALUE(LEFT(Options!$B$24,2)),$C232,$E232,$F232,2016,$I232+$J232,1,$H232,$G232*$H232,Options!$B$8)))","v":{"$error":"#VALUE!"}},{"$f":"IF(AND(OR(Calculations!$E$2=\"Orkney Health Board\",Calculations!$E$2=\"Orkney Islands Local Authority\"),$F232=1),0,IF(AND(OR(Calculations!$E$2=\"Shetland Health Board\",Calculations!$E$2=\"Western Isles Health Board\",Calculations!$E$2=\"Shetland Islands Local Authority\",Calculations!$E$2=\"Eilean Siar Local Authority\"),OR($F232=1,$F232=5)),0,new_yllv2(VALUE(LEFT(Options!$B$24,2)),$C232,$D232,$E232,$F232,2016,$I232,1,$H232,$G232*$H232,Options!$B$8)))","v":{"$error":"#VALUE!"}},{"$f":"IF(AND(OR(Calculations!$E$2=\"Orkney Health Board\",Calculations!$E$2=\"Orkney Islands Local Authority\"),$F232=1),0,IF(AND(OR(Calculations!$E$2=\"Shetland Health Board\",Calculations!$E$2=\"Western Isles Health Board\",Calculations!$E$2=\"Shetland Islands Local Authority\",Calculations!$E$2=\"Eilean Siar Local Authority\"),OR($F232=1,$F232=5)),0,new_yllv2(VALUE(LEFT(Options!$B$24,2)),$C232,$D232,$E232,$F232,2016,$I232+$J232,1,$H232,$G232*$H232,Options!$B$8)))","v":{"$error":"#VALUE!"}},{"$f":"IF(AND(OR(Calculations!$E$2=\"Orkney Health Board\",Calculations!$E$2=\"Orkney Islands Local Authority\"),$F232=1),0,IF(AND(OR(Calculations!$E$2=\"Shetland Health Board\",Calculations!$E$2=\"Western Isles Health Board\",Calculations!$E$2=\"Shetland Islands Local Authority\",Calculations!$E$2=\"Eilean Siar Local Authority\"),OR($F232=1,$F232=5)),0,hosp_count(VALUE(LEFT(Options!$B$24,2)),$C232,$E232,$F232,2016,$I232,1,$H232,$G232*$H232, Options!$B$8)))","v":{"$error":"#VALUE!"}},{"$f":"IF(AND(OR(Calculations!$E$2=\"Orkney Health Board\",Calculations!$E$2=\"Orkney Islands Local Authority\"),$F232=1),0,IF(AND(OR(Calculations!$E$2=\"Shetland Health Board\",Calculations!$E$2=\"Western Isles Health Board\",Calculations!$E$2=\"Shetland Islands Local Authority\",Calculations!$E$2=\"Eilean Siar Local Authority\"),OR($F232=1,$F232=5)),0,hosp_count(VALUE(LEFT(Options!$B$24,2)),$C232,$E232,$F232,2016,$I232+$J232,1,$H232,$G232*$H232, Options!$B$8)))","v":{"$error":"#VALUE!"}},{"$f":"IF(AND(OR(Calculations!$E$2=\"Orkney Health Board\",Calculations!$E$2=\"Orkney Islands Local Authority\"),$F232=1),0,IF(AND(OR(Calculations!$E$2=\"Shetland Health Board\",Calculations!$E$2=\"Western Isles Health Board\",Calculations!$E$2=\"Shetland Islands Local Authority\",Calculations!$E$2=\"Eilean Siar Local Authority\"),OR($F232=1,$F232=5)),0,prem_mort(VALUE(LEFT(Options!$B$24,2)),$C232,$E232,$F232,2016,$I232,1,$H232,$G232*$H232,Options!$B$8)))","v":{"$error":"#VALUE!"}},{"$f":"IF(AND(OR(Calculations!$E$2=\"Orkney Health Board\",Calculations!$E$2=\"Orkney Islands Local Authority\"),$F232=1),0,IF(AND(OR(Calculations!$E$2=\"Shetland Health Board\",Calculations!$E$2=\"Western Isles Health Board\",Calculations!$E$2=\"Shetland Islands Local Authority\",Calculations!$E$2=\"Eilean Siar Local Authority\"),OR($F232=1,$F232=5)),0,prem_mort(VALUE(LEFT(Options!$B$24,2)),$C232,$E232,$F232,2016,$I232+$J232,1,$H232,$G232*$H232,Options!$B$8)))","v":{"$error":"#VALUE!"}},{"$error":"#VALUE!"},{"$error":"#VALUE!"},{"$error":"#VALUE!"},{"$error":"#VALUE!"},{"$error":"#VALUE!"},{"$error":"#VALUE!"},{"$error":"#VALUE!"},{"$error":"#VALUE!"},{"$error":"#VALUE!"},{"$error":"#VALUE!"},{"$error":"#VALUE!"},{"$error":"#VALUE!"},{"$error":"#VALUE!"},{"$error":"#VALUE!"},{"$error":"#VALUE!"},{"$error":"#VALUE!"},5500]
[null,"Male 10-15",12.471144000000001,77.921140000000008,"male",5,{"$f":"HLOOKUP(Calculations!$E$2,'Prevalence Rates'!$C$3:$BC$249,'Prevalence Rates'!$BD233,FALSE)","v":0},{"$f":"HLOOKUP(Calculations!$E$2,'Population 2016'!$C$3:$BC$249,'Population 2016'!BD233,FALSE)","v":0},0,{"$f":"HLOOKUP(Results!E$4,Targeting!$C$3:$F$249,Targeting!$G233,FALSE)","v":0},{"$f":"IF(AND(OR(Calculations!$E$2=\"Orkney Health Board\",Calculations!$E$2=\"Orkney Islands Local Authority\"),$F233=1),0,IF(AND(OR(Calculations!$E$2=\"Shetland Health Board\",Calculations!$E$2=\"Western Isles Health Board\",Calculations!$E$2=\"Shetland Islands Local Authority\",Calculations!$E$2=\"Eilean Siar Local Authority\"),OR($F233=1,$F233=5)),0,new_ci(VALUE(LEFT(Options!$B$24,2)),$C233,$E233,$F233,2016,$I233,1,$H233,$G233*$H233,Options!$B$8)))","v":{"$error":"#VALUE!"}},{"$f":"IF(AND(OR(Calculations!$E$2=\"Orkney Health Board\",Calculations!$E$2=\"Orkney Islands Local Authority\"),$F233=1),0,IF(AND(OR(Calculations!$E$2=\"Shetland Health Board\",Calculations!$E$2=\"Western Isles Health Board\",Calculations!$E$2=\"Shetland Islands Local Authority\",Calculations!$E$2=\"Eilean Siar Local Authority\"),OR($F233=1,$F233=5)),0,new_ci(VALUE(LEFT(Options!$B$24,2)),$C233,$E233,$F233,2016,$I233+$J233,1,$H233,$G233*$H233,Options!$B$8)))","v":{"$error":"#VALUE!"}},{"$f":"IF(AND(OR(Calculations!$E$2=\"Orkney Health Board\",Calculations!$E$2=\"Orkney Islands Local Authority\"),$F233=1),0,IF(AND(OR(Calculations!$E$2=\"Shetland Health Board\",Calculations!$E$2=\"Western Isles Health Board\",Calculations!$E$2=\"Shetland Islands Local Authority\",Calculations!$E$2=\"Eilean Siar Local Authority\"),OR($F233=1,$F233=5)),0,new_yllv2(VALUE(LEFT(Options!$B$24,2)),$C233,$D233,$E233,$F233,2016,$I233,1,$H233,$G233*$H233,Options!$B$8)))","v":{"$error":"#VALUE!"}},{"$f":"IF(AND(OR(Calculations!$E$2=\"Orkney Health Board\",Calculations!$E$2=\"Orkney Islands Local Authority\"),$F233=1),0,IF(AND(OR(Calculations!$E$2=\"Shetland Health Board\",Calculations!$E$2=\"Western Isles Health Board\",Calculations!$E$2=\"Shetland Islands Local Authority\",Calculations!$E$2=\"Eilean Siar Local Authority\"),OR($F233=1,$F233=5)),0,new_yllv2(VALUE(LEFT(Options!$B$24,2)),$C233,$D233,$E233,$F233,2016,$I233+$J233,1,$H233,$G233*$H233,Options!$B$8)))","v":{"$error":"#VALUE!"}},{"$f":"IF(AND(OR(Calculations!$E$2=\"Orkney Health Board\",Calculations!$E$2=\"Orkney Islands Local Authority\"),$F233=1),0,IF(AND(OR(Calculations!$E$2=\"Shetland Health Board\",Calculations!$E$2=\"Western Isles Health Board\",Calculations!$E$2=\"Shetland Islands Local Authority\",Calculations!$E$2=\"Eilean Siar Local Authority\"),OR($F233=1,$F233=5)),0,hosp_count(VALUE(LEFT(Options!$B$24,2)),$C233,$E233,$F233,2016,$I233,1,$H233,$G233*$H233, Options!$B$8)))","v":{"$error":"#VALUE!"}},{"$f":"IF(AND(OR(Calculations!$E$2=\"Orkney Health Board\",Calculations!$E$2=\"Orkney Islands Local Authority\"),$F233=1),0,IF(AND(OR(Calculations!$E$2=\"Shetland Health Board\",Calculations!$E$2=\"Western Isles Health Board\",Calculations!$E$2=\"Shetland Islands Local Authority\",Calculations!$E$2=\"Eilean Siar Local Authority\"),OR($F233=1,$F233=5)),0,hosp_count(VALUE(LEFT(Options!$B$24,2)),$C233,$E233,$F233,2016,$I233+$J233,1,$H233,$G233*$H233, Options!$B$8)))","v":{"$error":"#VALUE!"}},{"$f":"IF(AND(OR(Calculations!$E$2=\"Orkney Health Board\",Calculations!$E$2=\"Orkney Islands Local Authority\"),$F233=1),0,IF(AND(OR(Calculations!$E$2=\"Shetland Health Board\",Calculations!$E$2=\"Western Isles Health Board\",Calculations!$E$2=\"Shetland Islands Local Authority\",Calculations!$E$2=\"Eilean Siar Local Authority\"),OR($F233=1,$F233=5)),0,prem_mort(VALUE(LEFT(Options!$B$24,2)),$C233,$E233,$F233,2016,$I233,1,$H233,$G233*$H233,Options!$B$8)))","v":{"$error":"#VALUE!"}},{"$f":"IF(AND(OR(Calculations!$E$2=\"Orkney Health Board\",Calculations!$E$2=\"Orkney Islands Local Authority\"),$F233=1),0,IF(AND(OR(Calculations!$E$2=\"Shetland Health Board\",Calculations!$E$2=\"Western Isles Health Board\",Calculations!$E$2=\"Shetland Islands Local Authority\",Calculations!$E$2=\"Eilean Siar Local Authority\"),OR($F233=1,$F233=5)),0,prem_mort(VALUE(LEFT(Options!$B$24,2)),$C233,$E233,$F233,2016,$I233+$J233,1,$H233,$G233*$H233,Options!$B$8)))","v":{"$error":"#VALUE!"}},{"$error":"#VALUE!"},{"$error":"#VALUE!"},{"$error":"#VALUE!"},{"$error":"#VALUE!"},{"$error":"#VALUE!"},{"$error":"#VALUE!"},{"$error":"#VALUE!"},{"$error":"#VALUE!"},{"$error":"#VALUE!"},{"$error":"#VALUE!"},{"$error":"#VALUE!"},{"$error":"#VALUE!"},{"$error":"#VALUE!"},{"$error":"#VALUE!"},{"$error":"#VALUE!"},{"$error":"#VALUE!"},6600]
[null,"Male 16-19",17.556318000000001,77.07632000000001,"male",5,{"$f":"HLOOKUP(Calculations!$E$2,'Prevalence Rates'!$C$3:$BC$249,'Prevalence Rates'!$BD234,FALSE)","v":0.1351},{"$f":"HLOOKUP(Calculations!$E$2,'Population 2016'!$C$3:$BC$249,'Population 2016'!BD234,FALSE)","v":26907},0,{"$f":"HLOOKUP(Results!E$4,Targeting!$C$3:$F$249,Targeting!$G234,FALSE)","v":4146},{"$f":"IF(AND(OR(Calculations!$E$2=\"Orkney Health Board\",Calculations!$E$2=\"Orkney Islands Local Authority\"),$F234=1),0,IF(AND(OR(Calculations!$E$2=\"Shetland Health Board\",Calculations!$E$2=\"Western Isles Health Board\",Calculations!$E$2=\"Shetland Islands Local Authority\",Calculations!$E$2=\"Eilean Siar Local Authority\"),OR($F234=1,$F234=5)),0,new_ci(VALUE(LEFT(Options!$B$24,2)),$C234,$E234,$F234,2016,$I234,1,$H234,$G234*$H234,Options!$B$8)))","v":6.7201299437999999},{"$f":"IF(AND(OR(Calculations!$E$2=\"Orkney Health Board\",Calculations!$E$2=\"Orkney Islands Local Authority\"),$F234=1),0,IF(AND(OR(Calculations!$E$2=\"Shetland Health Board\",Calculations!$E$2=\"Western Isles Health Board\",Calculations!$E$2=\"Shetland Islands Local Authority\",Calculations!$E$2=\"Eilean Siar Local Authority\"),OR($F234=1,$F234=5)),0,new_ci(VALUE(LEFT(Options!$B$24,2)),$C234,$E234,$F234,2016,$I234+$J234,1,$H234,$G234*$H234,Options!$B$8)))","v":6.6984306089999999},{"$f":"IF(AND(OR(Calculations!$E$2=\"Orkney Health Board\",Calculations!$E$2=\"Orkney Islands Local Authority\"),$F234=1),0,IF(AND(OR(Calculations!$E$2=\"Shetland Health Board\",Calculations!$E$2=\"Western Isles Health Board\",Calculations!$E$2=\"Shetland Islands Local Authority\",Calculations!$E$2=\"Eilean Siar Local Authority\"),OR($F234=1,$F234=5)),0,new_yllv2(VALUE(LEFT(Options!$B$24,2)),$C234,$D234,$E234,$F234,2016,$I234,1,$H234,$G234*$H234,Options!$B$8)))","v":393.26201775139998},{"$f":"IF(AND(OR(Calculations!$E$2=\"Orkney Health Board\",Calculations!$E$2=\"Orkney Islands Local Authority\"),$F234=1),0,IF(AND(OR(Calculations!$E$2=\"Shetland Health Board\",Calculations!$E$2=\"Western Isles Health Board\",Calculations!$E$2=\"Shetland Islands Local Authority\",Calculations!$E$2=\"Eilean Siar Local Authority\"),OR($F234=1,$F234=5)),0,new_yllv2(VALUE(LEFT(Options!$B$24,2)),$C234,$D234,$E234,$F234,2016,$I234+$J234,1,$H234,$G234*$H234,Options!$B$8)))","v":391.99217263550003},{"$f":"IF(AND(OR(Calculations!$E$2=\"Orkney Health Board\",Calculations!$E$2=\"Orkney Islands Local Authority\"),$F234=1),0,IF(AND(OR(Calculations!$E$2=\"Shetland Health Board\",Calculations!$E$2=\"Western Isles Health Board\",Calculations!$E$2=\"Shetland Islands Local Authority\",Calculations!$E$2=\"Eilean Siar Local Authority\"),OR($F234=1,$F234=5)),0,hosp_count(VALUE(LEFT(Options!$B$24,2)),$C234,$E234,$F234,2016,$I234,1,$H234,$G234*$H234, Options!$B$8)))","v":1431.6729001742999},{"$f":"IF(AND(OR(Calculations!$E$2=\"Orkney Health Board\",Calculations!$E$2=\"Orkney Islands Local Authority\"),$F234=1),0,IF(AND(OR(Calculations!$E$2=\"Shetland Health Board\",Calculations!$E$2=\"Western Isles Health Board\",Calculations!$E$2=\"Shetland Islands Local Authority\",Calculations!$E$2=\"Eilean Siar Local Authority\"),OR($F234=1,$F234=5)),0,hosp_count(VALUE(LEFT(Options!$B$24,2)),$C234,$E234,$F234,2016,$I234+$J234,1,$H234,$G234*$H234, Options!$B$8)))","v":1428.8020921404},{"$f":"IF(AND(OR(Calculations!$E$2=\"Orkney Health Board\",Calculations!$E$2=\"Orkney Islands Local Authority\"),$F234=1),0,IF(AND(OR(Calculations!$E$2=\"Shetland Health Board\",Calculations!$E$2=\"Western Isles Health Board\",Calculations!$E$2=\"Shetland Islands Local Authority\",Calculations!$E$2=\"Eilean Siar Local Authority\"),OR($F234=1,$F234=5)),0,prem_mort(VALUE(LEFT(Options!$B$24,2)),$C234,$E234,$F234,2016,$I234,1,$H234,$G234*$H234,Options!$B$8)))","v":6.7201299437999999},{"$f":"IF(AND(OR(Calculations!$E$2=\"Orkney Health Board\",Calculations!$E$2=\"Orkney Islands Local Authority\"),$F234=1),0,IF(AND(OR(Calculations!$E$2=\"Shetland Health Board\",Calculations!$E$2=\"Western Isles Health Board\",Calculations!$E$2=\"Shetland Islands Local Authority\",Calculations!$E$2=\"Eilean Siar Local Authority\"),OR($F234=1,$F234=5)),0,prem_mort(VALUE(LEFT(Options!$B$24,2)),$C234,$E234,$F234,2016,$I234+$J234,1,$H234,$G234*$H234,Options!$B$8)))","v":6.6984306089999999},24.975396528041031,24.894750841788383,1461.5602547716205,1456.8408690508049,5320.819489999999,5310.1501175917056,24.975396528041031,24.894750841788383,109891.74472338054,109536.90370386888,6430865.1209951304,6410099.8238235414,23411605.755999994,23364660.517403506,109891.74472338054,109536.90370386888,4400]
[null,"Male 20-24",22.054632000000002,77.704629999999995,"male",5,{"$f":"HLOOKUP(Calculations!$E$2,'Prevalence Rates'!$C$3:$BC$249,'Prevalence Rates'!$BD235,FALSE)","v":0.1351},{"$f":"HLOOKUP(Calculations!$E$2,'Population 2016'!$C$3:$BC$249,'Population 2016'!BD235,FALSE)","v":38069},0,{"$f":"HLOOKUP(Results!E$4,Targeting!$C$3:$F$249,Targeting!$G235,FALSE)","v":5865},{"$f":"IF(AND(OR(Calculations!$E$2=\"Orkney Health Board\",Calculations!$E$2=\"Orkney Islands Local Authority\"),$F235=1),0,IF(AND(OR(Calculations!$E$2=\"Shetland Health Board\",Calculations!$E$2=\"Western Isles Health Board\",Calculations!$E$2=\"Shetland Islands Local Authority\",Calculations!$E$2=\"Eilean Siar Local Authority\"),OR($F235=1,$F235=5)),0,new_ci(VALUE(LEFT(Options!$B$24,2)),$C235,$E235,$F235,2016,$I235,1,$H235,$G235*$H235,Options!$B$8)))","v":13.352174465799999},{"$f":"IF(AND(OR(Calculations!$E$2=\"Orkney Health Board\",Calculations!$E$2=\"Orkney Islands Local Authority\"),$F235=1),0,IF(AND(OR(Calculations!$E$2=\"Shetland Health Board\",Calculations!$E$2=\"Western Isles Health Board\",Calculations!$E$2=\"Shetland Islands Local Authority\",Calculations!$E$2=\"Eilean Siar Local Authority\"),OR($F235=1,$F235=5)),0,new_ci(VALUE(LEFT(Options!$B$24,2)),$C235,$E235,$F235,2016,$I235+$J235,1,$H235,$G235*$H235,Options!$B$8)))","v":13.309071407799999},{"$f":"IF(AND(OR(Calculations!$E$2=\"Orkney Health Board\",Calculations!$E$2=\"Orkney Islands Local Authority\"),$F235=1),0,IF(AND(OR(Calculations!$E$2=\"Shetland Health Board\",Calculations!$E$2=\"Western Isles Health Board\",Calculations!$E$2=\"Shetland Islands Local Authority\",Calculations!$E$2=\"Eilean Siar Local Authority\"),OR($F235=1,$F235=5)),0,new_yllv2(VALUE(LEFT(Options!$B$24,2)),$C235,$D235,$E235,$F235,2016,$I235,1,$H235,$G235*$H235,Options!$B$8)))","v":729.69630785159995},{"$f":"IF(AND(OR(Calculations!$E$2=\"Orkney Health Board\",Calculations!$E$2=\"Orkney Islands Local Authority\"),$F235=1),0,IF(AND(OR(Calculations!$E$2=\"Shetland Health Board\",Calculations!$E$2=\"Western Isles Health Board\",Calculations!$E$2=\"Shetland Islands Local Authority\",Calculations!$E$2=\"Eilean Siar Local Authority\"),OR($F235=1,$F235=5)),0,new_yllv2(VALUE(LEFT(Options!$B$24,2)),$C235,$D235,$E235,$F235,2016,$I235+$J235,1,$H235,$G235*$H235,Options!$B$8)))","v":727.34072581810005},{"$f":"IF(AND(OR(Calculations!$E$2=\"Orkney Health Board\",Calculations!$E$2=\"Orkney Islands Local Authority\"),$F235=1),0,IF(AND(OR(Calculations!$E$2=\"Shetland Health Board\",Calculations!$E$2=\"Western Isles Health Board\",Calculations!$E$2=\"Shetland Islands Local Authority\",Calculations!$E$2=\"Eilean Siar Local Authority\"),OR($F235=1,$F235=5)),0,hosp_count(VALUE(LEFT(Options!$B$24,2)),$C235,$E235,$F235,2016,$I235,1,$H235,$G235*$H235, Options!$B$8)))","v":2376.2555364586001},{"$f":"IF(AND(OR(Calculations!$E$2=\"Orkney Health Board\",Calculations!$E$2=\"Orkney Islands Local Authority\"),$F235=1),0,IF(AND(OR(Calculations!$E$2=\"Shetland Health Board\",Calculations!$E$2=\"Western Isles Health Board\",Calculations!$E$2=\"Shetland Islands Local Authority\",Calculations!$E$2=\"Eilean Siar Local Authority\"),OR($F235=1,$F235=5)),0,hosp_count(VALUE(LEFT(Options!$B$24,2)),$C235,$E235,$F235,2016,$I235+$J235,1,$H235,$G235*$H235, Options!$B$8)))","v":2371.4913803601999},{"$f":"IF(AND(OR(Calculations!$E$2=\"Orkney Health Board\",Calculations!$E$2=\"Orkney Islands Local Authority\"),$F235=1),0,IF(AND(OR(Calculations!$E$2=\"Shetland Health Board\",Calculations!$E$2=\"Western Isles Health Board\",Calculations!$E$2=\"Shetland Islands Local Authority\",Calculations!$E$2=\"Eilean Siar Local Authority\"),OR($F235=1,$F235=5)),0,prem_mort(VALUE(LEFT(Options!$B$24,2)),$C235,$E235,$F235,2016,$I235,1,$H235,$G235*$H235,Options!$B$8)))","v":13.352174465799999},{"$f":"IF(AND(OR(Calculations!$E$2=\"Orkney Health Board\",Calculations!$E$2=\"Orkney Islands Local Authority\"),$F235=1),0,IF(AND(OR(Calculations!$E$2=\"Shetland Health Board\",Calculations!$E$2=\"Western Isles Health Board\",Calculations!$E$2=\"Shetland Islands Local Authority\",Calculations!$E$2=\"Eilean Siar Local Authority\"),OR($F235=1,$F235=5)),0,prem_mort(VALUE(LEFT(Options!$B$24,2)),$C235,$E235,$F235,2016,$I235+$J235,1,$H235,$G235*$H235,Options!$B$8)))","v":13.309071407799999},35.073614925004598,34.960391415062126,1916.7729855042157,1910.5853209122911,6241.9699400000009,6229.455410859754,35.073614925004598,34.960391415062126,210441.6895500276,209762.34849037277,11500637.913025295,11463511.925473746,37451819.640000008,37376732.465158522,210441.6895500276,209762.34849037277,6000]
[null,"Male 25-29",26.959762999999999,77.789760000000001,"male",5,{"$f":"HLOOKUP(Calculations!$E$2,'Prevalence Rates'!$C$3:$BC$249,'Prevalence Rates'!$BD236,FALSE)","v":0.19260000000000002},{"$f":"HLOOKUP(Calculations!$E$2,'Population 2016'!$C$3:$BC$249,'Population 2016'!BD236,FALSE)","v":34280},0,{"$f":"HLOOKUP(Results!E$4,Targeting!$C$3:$F$249,Targeting!$G236,FALSE)","v":5282},{"$f":"IF(AND(OR(Calculations!$E$2=\"Orkney Health Board\",Calculations!$E$2=\"Orkney Islands Local Authority\"),$F236=1),0,IF(AND(OR(Calculations!$E$2=\"Shetland Health Board\",Calculations!$E$2=\"Western Isles Health Board\",Calculations!$E$2=\"Shetland Islands Local Authority\",Calculations!$E$2=\"Eilean Siar Local Authority\"),OR($F236=1,$F236=5)),0,new_ci(VALUE(LEFT(Options!$B$24,2)),$C236,$E236,$F236,2016,$I236,1,$H236,$G236*$H236,Options!$B$8)))","v":17.410591729099998},{"$f":"IF(AND(OR(Calculations!$E$2=\"Orkney Health Board\",Calculations!$E$2=\"Orkney Islands Local Authority\"),$F236=1),0,IF(AND(OR(Calculations!$E$2=\"Shetland Health Board\",Calculations!$E$2=\"Western Isles Health Board\",Calculations!$E$2=\"Shetland Islands Local Authority\",Calculations!$E$2=\"Eilean Siar Local Authority\"),OR($F236=1,$F236=5)),0,new_ci(VALUE(LEFT(Options!$B$24,2)),$C236,$E236,$F236,2016,$I236+$J236,1,$H236,$G236*$H236,Options!$B$8)))","v":17.356866394299999},{"$f":"IF(AND(OR(Calculations!$E$2=\"Orkney Health Board\",Calculations!$E$2=\"Orkney Islands Local Authority\"),$F236=1),0,IF(AND(OR(Calculations!$E$2=\"Shetland Health Board\",Calculations!$E$2=\"Western Isles Health Board\",Calculations!$E$2=\"Shetland Islands Local Authority\",Calculations!$E$2=\"Eilean Siar Local Authority\"),OR($F236=1,$F236=5)),0,new_yllv2(VALUE(LEFT(Options!$B$24,2)),$C236,$D236,$E236,$F236,2016,$I236,1,$H236,$G236*$H236,Options!$B$8)))","v":867.5697336293},{"$f":"IF(AND(OR(Calculations!$E$2=\"Orkney Health Board\",Calculations!$E$2=\"Orkney Islands Local Authority\"),$F236=1),0,IF(AND(OR(Calculations!$E$2=\"Shetland Health Board\",Calculations!$E$2=\"Western Isles Health Board\",Calculations!$E$2=\"Shetland Islands Local Authority\",Calculations!$E$2=\"Eilean Siar Local Authority\"),OR($F236=1,$F236=5)),0,new_yllv2(VALUE(LEFT(Options!$B$24,2)),$C236,$D236,$E236,$F236,2016,$I236+$J236,1,$H236,$G236*$H236,Options!$B$8)))","v":864.89260035740006},{"$f":"IF(AND(OR(Calculations!$E$2=\"Orkney Health Board\",Calculations!$E$2=\"Orkney Islands Local Authority\"),$F236=1),0,IF(AND(OR(Calculations!$E$2=\"Shetland Health Board\",Calculations!$E$2=\"Western Isles Health Board\",Calculations!$E$2=\"Shetland Islands Local Authority\",Calculations!$E$2=\"Eilean Siar Local Authority\"),OR($F236=1,$F236=5)),0,hosp_count(VALUE(LEFT(Options!$B$24,2)),$C236,$E236,$F236,2016,$I236,1,$H236,$G236*$H236, Options!$B$8)))","v":2546.6945852919998},{"$f":"IF(AND(OR(Calculations!$E$2=\"Orkney Health Board\",Calculations!$E$2=\"Orkney Islands Local Authority\"),$F236=1),0,IF(AND(OR(Calculations!$E$2=\"Shetland Health Board\",Calculations!$E$2=\"Western Isles Health Board\",Calculations!$E$2=\"Shetland Islands Local Authority\",Calculations!$E$2=\"Eilean Siar Local Authority\"),OR($F236=1,$F236=5)),0,hosp_count(VALUE(LEFT(Options!$B$24,2)),$C236,$E236,$F236,2016,$I236+$J236,1,$H236,$G236*$H236, Options!$B$8)))","v":2541.7170127214999},{"$f":"IF(AND(OR(Calculations!$E$2=\"Orkney Health Board\",Calculations!$E$2=\"Orkney Islands Local Authority\"),$F236=1),0,IF(AND(OR(Calculations!$E$2=\"Shetland Health Board\",Calculations!$E$2=\"Western Isles Health Board\",Calculations!$E$2=\"Shetland Islands Local Authority\",Calculations!$E$2=\"Eilean Siar Local Authority\"),OR($F236=1,$F236=5)),0,prem_mort(VALUE(LEFT(Options!$B$24,2)),$C236,$E236,$F236,2016,$I236,1,$H236,$G236*$H236,Options!$B$8)))","v":17.410591729099998},{"$f":"IF(AND(OR(Calculations!$E$2=\"Orkney Health Board\",Calculations!$E$2=\"Orkney Islands Local Authority\"),$F236=1),0,IF(AND(OR(Calculations!$E$2=\"Shetland Health Board\",Calculations!$E$2=\"Western Isles Health Board\",Calculations!$E$2=\"Shetland Islands Local Authority\",Calculations!$E$2=\"Eilean Siar Local Authority\"),OR($F236=1,$F236=5)),0,prem_mort(VALUE(LEFT(Options!$B$24,2)),$C236,$E236,$F236,2016,$I236+$J236,1,$H236,$G236*$H236,Options!$B$8)))","v":17.356866394299999},50.789357436114344,50.632632422112017,2530.8335286735705,2523.0239216960326,7429.0973899999999,7414.5770499460323,50.789357436114344,50.632632422112017,304736.14461668604,303795.79453267209,15185001.172041424,15138143.530176196,44574584.339999996,44487462.299676195,304736.14461668604,303795.79453267209,6000]
[null,"Male 30-34",31.981521999999998,78.061520000000002,"male",5,{"$f":"HLOOKUP(Calculations!$E$2,'Prevalence Rates'!$C$3:$BC$249,'Prevalence Rates'!$BD237,FALSE)","v":0.19260000000000002},{"$f":"HLOOKUP(Calculations!$E$2,'Population 2016'!$C$3:$BC$249,'Population 2016'!BD237,FALSE)","v":30164},0,{"$f":"HLOOKUP(Results!E$4,Targeting!$C$3:$F$249,Targeting!$G237,FALSE)","v":4648},{"$f":"IF(AND(OR(Calculations!$E$2=\"Orkney Health Board\",Calculations!$E$2=\"Orkney Islands Local Authority\"),$F237=1),0,IF(AND(OR(Calculations!$E$2=\"Shetland Health Board\",Calculations!$E$2=\"Western Isles Health Board\",Calculations!$E$2=\"Shetland Islands Local Authority\",Calculations!$E$2=\"Eilean Siar Local Authority\"),OR($F237=1,$F237=5)),0,new_ci(VALUE(LEFT(Options!$B$24,2)),$C237,$E237,$F237,2016,$I237,1,$H237,$G237*$H237,Options!$B$8)))","v":22.380034970600001},{"$f":"IF(AND(OR(Calculations!$E$2=\"Orkney Health Board\",Calculations!$E$2=\"Orkney Islands Local Authority\"),$F237=1),0,IF(AND(OR(Calculations!$E$2=\"Shetland Health Board\",Calculations!$E$2=\"Western Isles Health Board\",Calculations!$E$2=\"Shetland Islands Local Authority\",Calculations!$E$2=\"Eilean Siar Local Authority\"),OR($F237=1,$F237=5)),0,new_ci(VALUE(LEFT(Options!$B$24,2)),$C237,$E237,$F237,2016,$I237+$J237,1,$H237,$G237*$H237,Options!$B$8)))","v":22.310988930600001},{"$f":"IF(AND(OR(Calculations!$E$2=\"Orkney Health Board\",Calculations!$E$2=\"Orkney Islands Local Authority\"),$F237=1),0,IF(AND(OR(Calculations!$E$2=\"Shetland Health Board\",Calculations!$E$2=\"Western Isles Health Board\",Calculations!$E$2=\"Shetland Islands Local Authority\",Calculations!$E$2=\"Eilean Siar Local Authority\"),OR($F237=1,$F237=5)),0,new_yllv2(VALUE(LEFT(Options!$B$24,2)),$C237,$D237,$E237,$F237,2016,$I237,1,$H237,$G237*$H237,Options!$B$8)))","v":1008.8919317146},{"$f":"IF(AND(OR(Calculations!$E$2=\"Orkney Health Board\",Calculations!$E$2=\"Orkney Islands Local Authority\"),$F237=1),0,IF(AND(OR(Calculations!$E$2=\"Shetland Health Board\",Calculations!$E$2=\"Western Isles Health Board\",Calculations!$E$2=\"Shetland Islands Local Authority\",Calculations!$E$2=\"Eilean Siar Local Authority\"),OR($F237=1,$F237=5)),0,new_yllv2(VALUE(LEFT(Options!$B$24,2)),$C237,$D237,$E237,$F237,2016,$I237+$J237,1,$H237,$G237*$H237,Options!$B$8)))","v":1005.7793363695},{"$f":"IF(AND(OR(Calculations!$E$2=\"Orkney Health Board\",Calculations!$E$2=\"Orkney Islands Local Authority\"),$F237=1),0,IF(AND(OR(Calculations!$E$2=\"Shetland Health Board\",Calculations!$E$2=\"Western Isles Health Board\",Calculations!$E$2=\"Shetland Islands Local Authority\",Calculations!$E$2=\"Eilean Siar Local Authority\"),OR($F237=1,$F237=5)),0,hosp_count(VALUE(LEFT(Options!$B$24,2)),$C237,$E237,$F237,2016,$I237,1,$H237,$G237*$H237, Options!$B$8)))","v":2678.1643595263999},{"$f":"IF(AND(OR(Calculations!$E$2=\"Orkney Health Board\",Calculations!$E$2=\"Orkney Islands Local Authority\"),$F237=1),0,IF(AND(OR(Calculations!$E$2=\"Shetland Health Board\",Calculations!$E$2=\"Western Isles Health Board\",Calculations!$E$2=\"Shetland Islands Local Authority\",Calculations!$E$2=\"Eilean Siar Local Authority\"),OR($F237=1,$F237=5)),0,hosp_count(VALUE(LEFT(Options!$B$24,2)),$C237,$E237,$F237,2016,$I237+$J237,1,$H237,$G237*$H237, Options!$B$8)))","v":2672.9295897245001},{"$f":"IF(AND(OR(Calculations!$E$2=\"Orkney Health Board\",Calculations!$E$2=\"Orkney Islands Local Authority\"),$F237=1),0,IF(AND(OR(Calculations!$E$2=\"Shetland Health Board\",Calculations!$E$2=\"Western Isles Health Board\",Calculations!$E$2=\"Shetland Islands Local Authority\",Calculations!$E$2=\"Eilean Siar Local Authority\"),OR($F237=1,$F237=5)),0,prem_mort(VALUE(LEFT(Options!$B$24,2)),$C237,$E237,$F237,2016,$I237,1,$H237,$G237*$H237,Options!$B$8)))","v":22.380034970600001},{"$f":"IF(AND(OR(Calculations!$E$2=\"Orkney Health Board\",Calculations!$E$2=\"Orkney Islands Local Authority\"),$F237=1),0,IF(AND(OR(Calculations!$E$2=\"Shetland Health Board\",Calculations!$E$2=\"Western Isles Health Board\",Calculations!$E$2=\"Shetland Islands Local Authority\",Calculations!$E$2=\"Eilean Siar Local Authority\"),OR($F237=1,$F237=5)),0,prem_mort(VALUE(LEFT(Options!$B$24,2)),$C237,$E237,$F237,2016,$I237+$J237,1,$H237,$G237*$H237,Options!$B$8)))","v":22.310988930600001},74.194519860098126,73.965617725102774,3344.688806904257,3334.3698991164965,8878.6777600000005,8861.3233978401404,74.194519860098126,73.965617725102774,482264.37909063784,480776.51521316805,21740477.24487767,21673404.344257228,57711405.440000005,57598602.08596091,482264.37909063784,480776.51521316805,6500]
[null,"Male 35-39",36.926009999999998,78.336009999999987,"male",5,{"$f":"HLOOKUP(Calculations!$E$2,'Prevalence Rates'!$C$3:$BC$249,'Prevalence Rates'!$BD238,FALSE)","v":0.12860000000000002},{"$f":"HLOOKUP(Calculations!$E$2,'Population 2016'!$C$3:$BC$249,'Population 2016'!BD238,FALSE)","v":31915},0,{"$f":"HLOOKUP(Results!E$4,Targeting!$C$3:$F$249,Targeting!$G238,FALSE)","v":4917},{"$f":"IF(AND(OR(Calculations!$E$2=\"Orkney Health Board\",Calculations!$E$2=\"Orkney Islands Local Authority\"),$F238=1),0,IF(AND(OR(Calculations!$E$2=\"Shetland Health Board\",Calculations!$E$2=\"Western Isles Health Board\",Calculations!$E$2=\"Shetland Islands Local Authority\",Calculations!$E$2=\"Eilean Siar Local Authority\"),OR($F238=1,$F238=5)),0,new_ci(VALUE(LEFT(Options!$B$24,2)),$C238,$E238,$F238,2016,$I238,1,$H238,$G238*$H238,Options!$B$8)))","v":34.3884371109},{"$f":"IF(AND(OR(Calculations!$E$2=\"Orkney Health Board\",Calculations!$E$2=\"Orkney Islands Local Authority\"),$F238=1),0,IF(AND(OR(Calculations!$E$2=\"Shetland Health Board\",Calculations!$E$2=\"Western Isles Health Board\",Calculations!$E$2=\"Shetland Islands Local Authority\",Calculations!$E$2=\"Eilean Siar Local Authority\"),OR($F238=1,$F238=5)),0,new_ci(VALUE(LEFT(Options!$B$24,2)),$C238,$E238,$F238,2016,$I238+$J238,1,$H238,$G238*$H238,Options!$B$8)))","v":34.276936268699998},{"$f":"IF(AND(OR(Calculations!$E$2=\"Orkney Health Board\",Calculations!$E$2=\"Orkney Islands Local Authority\"),$F238=1),0,IF(AND(OR(Calculations!$E$2=\"Shetland Health Board\",Calculations!$E$2=\"Western Isles Health Board\",Calculations!$E$2=\"Shetland Islands Local Authority\",Calculations!$E$2=\"Eilean Siar Local Authority\"),OR($F238=1,$F238=5)),0,new_yllv2(VALUE(LEFT(Options!$B$24,2)),$C238,$D238,$E238,$F238,2016,$I238,1,$H238,$G238*$H238,Options!$B$8)))","v":1389.6367436515},{"$f":"IF(AND(OR(Calculations!$E$2=\"Orkney Health Board\",Calculations!$E$2=\"Orkney Islands Local Authority\"),$F238=1),0,IF(AND(OR(Calculations!$E$2=\"Shetland Health Board\",Calculations!$E$2=\"Western Isles Health Board\",Calculations!$E$2=\"Shetland Islands Local Authority\",Calculations!$E$2=\"Eilean Siar Local Authority\"),OR($F238=1,$F238=5)),0,new_yllv2(VALUE(LEFT(Options!$B$24,2)),$C238,$D238,$E238,$F238,2016,$I238+$J238,1,$H238,$G238*$H238,Options!$B$8)))","v":1385.1309946182},{"$f":"IF(AND(OR(Calculations!$E$2=\"Orkney Health Board\",Calculations!$E$2=\"Orkney Islands Local Authority\"),$F238=1),0,IF(AND(OR(Calculations!$E$2=\"Shetland Health Board\",Calculations!$E$2=\"Western Isles Health Board\",Calculations!$E$2=\"Shetland Islands Local Authority\",Calculations!$E$2=\"Eilean Siar Local Authority\"),OR($F238=1,$F238=5)),0,hosp_count(VALUE(LEFT(Options!$B$24,2)),$C238,$E238,$F238,2016,$I238,1,$H238,$G238*$H238, Options!$B$8)))","v":3377.257887276},{"$f":"IF(AND(OR(Calculations!$E$2=\"Orkney Health Board\",Calculations!$E$2=\"Orkney Islands Local Authority\"),$F238=1),0,IF(AND(OR(Calculations!$E$2=\"Shetland Health Board\",Calculations!$E$2=\"Western Isles Health Board\",Calculations!$E$2=\"Shetland Islands Local Authority\",Calculations!$E$2=\"Eilean Siar Local Authority\"),OR($F238=1,$F238=5)),0,hosp_count(VALUE(LEFT(Options!$B$24,2)),$C238,$E238,$F238,2016,$I238+$J238,1,$H238,$G238*$H238, Options!$B$8)))","v":3370.4667851521999},{"$f":"IF(AND(OR(Calculations!$E$2=\"Orkney Health Board\",Calculations!$E$2=\"Orkney Islands Local Authority\"),$F238=1),0,IF(AND(OR(Calculations!$E$2=\"Shetland Health Board\",Calculations!$E$2=\"Western Isles Health Board\",Calculations!$E$2=\"Shetland Islands Local Authority\",Calculations!$E$2=\"Eilean Siar Local Authority\"),OR($F238=1,$F238=5)),0,prem_mort(VALUE(LEFT(Options!$B$24,2)),$C238,$E238,$F238,2016,$I238,1,$H238,$G238*$H238,Options!$B$8)))","v":34.3884371109},{"$f":"IF(AND(OR(Calculations!$E$2=\"Orkney Health Board\",Calculations!$E$2=\"Orkney Islands Local Authority\"),$F238=1),0,IF(AND(OR(Calculations!$E$2=\"Shetland Health Board\",Calculations!$E$2=\"Western Isles Health Board\",Calculations!$E$2=\"Shetland Islands Local Authority\",Calculations!$E$2=\"Eilean Siar Local Authority\"),OR($F238=1,$F238=5)),0,prem_mort(VALUE(LEFT(Options!$B$24,2)),$C238,$E238,$F238,2016,$I238+$J238,1,$H238,$G238*$H238,Options!$B$8)))","v":34.276936268699998},107.75007711389628,107.40070897289675,4354.1806161726463,4340.0626495948618,10582.039439999999,10560.760724274478,107.75007711389628,107.40070897289675,754250.53979727393,751804.96281027724,30479264.313208524,30380438.547164034,74074276.079999983,73925325.069921345,754250.53979727393,751804.96281027724,7000]
[null,"Male 40-44",42.067703000000002,78.907700000000006,"male",5,{"$f":"HLOOKUP(Calculations!$E$2,'Prevalence Rates'!$C$3:$BC$249,'Prevalence Rates'!$BD239,FALSE)","v":0.12860000000000002},{"$f":"HLOOKUP(Calculations!$E$2,'Population 2016'!$C$3:$BC$249,'Population 2016'!BD239,FALSE)","v":35113},0,{"$f":"HLOOKUP(Results!E$4,Targeting!$C$3:$F$249,Targeting!$G239,FALSE)","v":5410},{"$f":"IF(AND(OR(Calculations!$E$2=\"Orkney Health Board\",Calculations!$E$2=\"Orkney Islands Local Authority\"),$F239=1),0,IF(AND(OR(Calculations!$E$2=\"Shetland Health Board\",Calculations!$E$2=\"Western Isles Health Board\",Calculations!$E$2=\"Shetland Islands Local Authority\",Calculations!$E$2=\"Eilean Siar Local Authority\"),OR($F239=1,$F239=5)),0,new_ci(VALUE(LEFT(Options!$B$24,2)),$C239,$E239,$F239,2016,$I239,1,$H239,$G239*$H239,Options!$B$8)))","v":55.763946032299998},{"$f":"IF(AND(OR(Calculations!$E$2=\"Orkney Health Board\",Calculations!$E$2=\"Orkney Islands Local Authority\"),$F239=1),0,IF(AND(OR(Calculations!$E$2=\"Shetland Health Board\",Calculations!$E$2=\"Western Isles Health Board\",Calculations!$E$2=\"Shetland Islands Local Authority\",Calculations!$E$2=\"Eilean Siar Local Authority\"),OR($F239=1,$F239=5)),0,new_ci(VALUE(LEFT(Options!$B$24,2)),$C239,$E239,$F239,2016,$I239+$J239,1,$H239,$G239*$H239,Options!$B$8)))","v":55.583234720299998},{"$f":"IF(AND(OR(Calculations!$E$2=\"Orkney Health Board\",Calculations!$E$2=\"Orkney Islands Local Authority\"),$F239=1),0,IF(AND(OR(Calculations!$E$2=\"Shetland Health Board\",Calculations!$E$2=\"Western Isles Health Board\",Calculations!$E$2=\"Shetland Islands Local Authority\",Calculations!$E$2=\"Eilean Siar Local Authority\"),OR($F239=1,$F239=5)),0,new_yllv2(VALUE(LEFT(Options!$B$24,2)),$C239,$D239,$E239,$F239,2016,$I239,1,$H239,$G239*$H239,Options!$B$8)))","v":1998.5796585057999},{"$f":"IF(AND(OR(Calculations!$E$2=\"Orkney Health Board\",Calculations!$E$2=\"Orkney Islands Local Authority\"),$F239=1),0,IF(AND(OR(Calculations!$E$2=\"Shetland Health Board\",Calculations!$E$2=\"Western Isles Health Board\",Calculations!$E$2=\"Shetland Islands Local Authority\",Calculations!$E$2=\"Eilean Siar Local Authority\"),OR($F239=1,$F239=5)),0,new_yllv2(VALUE(LEFT(Options!$B$24,2)),$C239,$D239,$E239,$F239,2016,$I239+$J239,1,$H239,$G239*$H239,Options!$B$8)))","v":1992.1029656257999},{"$f":"IF(AND(OR(Calculations!$E$2=\"Orkney Health Board\",Calculations!$E$2=\"Orkney Islands Local Authority\"),$F239=1),0,IF(AND(OR(Calculations!$E$2=\"Shetland Health Board\",Calculations!$E$2=\"Western Isles Health Board\",Calculations!$E$2=\"Shetland Islands Local Authority\",Calculations!$E$2=\"Eilean Siar Local Authority\"),OR($F239=1,$F239=5)),0,hosp_count(VALUE(LEFT(Options!$B$24,2)),$C239,$E239,$F239,2016,$I239,1,$H239,$G239*$H239, Options!$B$8)))","v":4459.6254010723997},{"$f":"IF(AND(OR(Calculations!$E$2=\"Orkney Health Board\",Calculations!$E$2=\"Orkney Islands Local Authority\"),$F239=1),0,IF(AND(OR(Calculations!$E$2=\"Shetland Health Board\",Calculations!$E$2=\"Western Isles Health Board\",Calculations!$E$2=\"Shetland Islands Local Authority\",Calculations!$E$2=\"Eilean Siar Local Authority\"),OR($F239=1,$F239=5)),0,hosp_count(VALUE(LEFT(Options!$B$24,2)),$C239,$E239,$F239,2016,$I239+$J239,1,$H239,$G239*$H239, Options!$B$8)))","v":4450.6573436052004},{"$f":"IF(AND(OR(Calculations!$E$2=\"Orkney Health Board\",Calculations!$E$2=\"Orkney Islands Local Authority\"),$F239=1),0,IF(AND(OR(Calculations!$E$2=\"Shetland Health Board\",Calculations!$E$2=\"Western Isles Health Board\",Calculations!$E$2=\"Shetland Islands Local Authority\",Calculations!$E$2=\"Eilean Siar Local Authority\"),OR($F239=1,$F239=5)),0,prem_mort(VALUE(LEFT(Options!$B$24,2)),$C239,$E239,$F239,2016,$I239,1,$H239,$G239*$H239,Options!$B$8)))","v":55.763946032299998},{"$f":"IF(AND(OR(Calculations!$E$2=\"Orkney Health Board\",Calculations!$E$2=\"Orkney Islands Local Authority\"),$F239=1),0,IF(AND(OR(Calculations!$E$2=\"Shetland Health Board\",Calculations!$E$2=\"Western Isles Health Board\",Calculations!$E$2=\"Shetland Islands Local Authority\",Calculations!$E$2=\"Eilean Siar Local Authority\"),OR($F239=1,$F239=5)),0,prem_mort(VALUE(LEFT(Options!$B$24,2)),$C239,$E239,$F239,2016,$I239+$J239,1,$H239,$G239*$H239,Options!$B$8)))","v":55.583234720299998},158.81282155412524,158.29816512488253,5691.8510480614013,5673.4057631811575,12700.78148,12675.240918193263,158.81282155412524,158.29816512488253,1111689.7508788765,1108087.1558741778,39842957.336429812,39713840.342268102,88905470.359999999,88726686.427352846,1111689.7508788765,1108087.1558741778,7000]
[null,"Male 45-49",47.038155000000003,79.418149999999997,"male",5,{"$f":"HLOOKUP(Calculations!$E$2,'Prevalence Rates'!$C$3:$BC$249,'Prevalence Rates'!$BD240,FALSE)","v":0.12290000000000001},{"$f":"HLOOKUP(Calculations!$E$2,'Population 2016'!$C$3:$BC$249,'Population 2016'!BD240,FALSE)","v":39359},0,{"$f":"HLOOKUP(Results!E$4,Targeting!$C$3:$F$249,Targeting!$G240,FALSE)","v":6064},{"$f":"IF(AND(OR(Calculations!$E$2=\"Orkney Health Board\",Calculations!$E$2=\"Orkney Islands Local Authority\"),$F240=1),0,IF(AND(OR(Calculations!$E$2=\"Shetland Health Board\",Calculations!$E$2=\"Western Isles Health Board\",Calculations!$E$2=\"Shetland Islands Local Authority\",Calculations!$E$2=\"Eilean Siar Local Authority\"),OR($F240=1,$F240=5)),0,new_ci(VALUE(LEFT(Options!$B$24,2)),$C240,$E240,$F240,2016,$I240,1,$H240,$G240*$H240,Options!$B$8)))","v":90.935720677500001},{"$f":"IF(AND(OR(Calculations!$E$2=\"Orkney Health Board\",Calculations!$E$2=\"Orkney Islands Local Authority\"),$F240=1),0,IF(AND(OR(Calculations!$E$2=\"Shetland Health Board\",Calculations!$E$2=\"Western Isles Health Board\",Calculations!$E$2=\"Shetland Islands Local Authority\",Calculations!$E$2=\"Eilean Siar Local Authority\"),OR($F240=1,$F240=5)),0,new_ci(VALUE(LEFT(Options!$B$24,2)),$C240,$E240,$F240,2016,$I240+$J240,1,$H240,$G240*$H240,Options!$B$8)))","v":90.639932098299994},{"$f":"IF(AND(OR(Calculations!$E$2=\"Orkney Health Board\",Calculations!$E$2=\"Orkney Islands Local Authority\"),$F240=1),0,IF(AND(OR(Calculations!$E$2=\"Shetland Health Board\",Calculations!$E$2=\"Western Isles Health Board\",Calculations!$E$2=\"Shetland Islands Local Authority\",Calculations!$E$2=\"Eilean Siar Local Authority\"),OR($F240=1,$F240=5)),0,new_yllv2(VALUE(LEFT(Options!$B$24,2)),$C240,$D240,$E240,$F240,2016,$I240,1,$H240,$G240*$H240,Options!$B$8)))","v":2853.5624601813001},{"$f":"IF(AND(OR(Calculations!$E$2=\"Orkney Health Board\",Calculations!$E$2=\"Orkney Islands Local Authority\"),$F240=1),0,IF(AND(OR(Calculations!$E$2=\"Shetland Health Board\",Calculations!$E$2=\"Western Isles Health Board\",Calculations!$E$2=\"Shetland Islands Local Authority\",Calculations!$E$2=\"Eilean Siar Local Authority\"),OR($F240=1,$F240=5)),0,new_yllv2(VALUE(LEFT(Options!$B$24,2)),$C240,$D240,$E240,$F240,2016,$I240+$J240,1,$H240,$G240*$H240,Options!$B$8)))","v":2844.280616045},{"$f":"IF(AND(OR(Calculations!$E$2=\"Orkney Health Board\",Calculations!$E$2=\"Orkney Islands Local Authority\"),$F240=1),0,IF(AND(OR(Calculations!$E$2=\"Shetland Health Board\",Calculations!$E$2=\"Western Isles Health Board\",Calculations!$E$2=\"Shetland Islands Local Authority\",Calculations!$E$2=\"Eilean Siar Local Authority\"),OR($F240=1,$F240=5)),0,hosp_count(VALUE(LEFT(Options!$B$24,2)),$C240,$E240,$F240,2016,$I240,1,$H240,$G240*$H240, Options!$B$8)))","v":5963.4258802347003},{"$f":"IF(AND(OR(Calculations!$E$2=\"Orkney Health Board\",Calculations!$E$2=\"Orkney Islands Local Authority\"),$F240=1),0,IF(AND(OR(Calculations!$E$2=\"Shetland Health Board\",Calculations!$E$2=\"Western Isles Health Board\",Calculations!$E$2=\"Shetland Islands Local Authority\",Calculations!$E$2=\"Eilean Siar Local Authority\"),OR($F240=1,$F240=5)),0,hosp_count(VALUE(LEFT(Options!$B$24,2)),$C240,$E240,$F240,2016,$I240+$J240,1,$H240,$G240*$H240, Options!$B$8)))","v":5951.4031748373},{"$f":"IF(AND(OR(Calculations!$E$2=\"Orkney Health Board\",Calculations!$E$2=\"Orkney Islands Local Authority\"),$F240=1),0,IF(AND(OR(Calculations!$E$2=\"Shetland Health Board\",Calculations!$E$2=\"Western Isles Health Board\",Calculations!$E$2=\"Shetland Islands Local Authority\",Calculations!$E$2=\"Eilean Siar Local Authority\"),OR($F240=1,$F240=5)),0,prem_mort(VALUE(LEFT(Options!$B$24,2)),$C240,$E240,$F240,2016,$I240,1,$H240,$G240*$H240,Options!$B$8)))","v":90.935720677500001},{"$f":"IF(AND(OR(Calculations!$E$2=\"Orkney Health Board\",Calculations!$E$2=\"Orkney Islands Local Authority\"),$F240=1),0,IF(AND(OR(Calculations!$E$2=\"Shetland Health Board\",Calculations!$E$2=\"Western Isles Health Board\",Calculations!$E$2=\"Shetland Islands Local Authority\",Calculations!$E$2=\"Eilean Siar Local Authority\"),OR($F240=1,$F240=5)),0,prem_mort(VALUE(LEFT(Options!$B$24,2)),$C240,$E240,$F240,2016,$I240+$J240,1,$H240,$G240*$H240,Options!$B$8)))","v":90.639932098299994},231.04174566808098,230.29023120074186,7250.0888238555353,7226.5063036281408,15151.365330000001,15120.819062570949,231.04174566808098,230.29023120074186,1617292.2196765668,1612031.6184051931,50750621.766988747,50585544.125396989,106059557.31,105845733.43799664,1617292.2196765668,1612031.6184051931,7000]
[null,"Male 50-54",51.998646000000001,79.988649999999993,"male",5,{"$f":"HLOOKUP(Calculations!$E$2,'Prevalence Rates'!$C$3:$BC$249,'Prevalence Rates'!$BD241,FALSE)","v":0.12290000000000001},{"$f":"HLOOKUP(Calculations!$E$2,'Population 2016'!$C$3:$BC$249,'Population 2016'!BD241,FALSE)","v":40044},0,{"$f":"HLOOKUP(Results!E$4,Targeting!$C$3:$F$249,Targeting!$G241,FALSE)","v":6170},{"$f":"IF(AND(OR(Calculations!$E$2=\"Orkney Health Board\",Calculations!$E$2=\"Orkney Islands Local Authority\"),$F241=1),0,IF(AND(OR(Calculations!$E$2=\"Shetland Health Board\",Calculations!$E$2=\"Western Isles Health Board\",Calculations!$E$2=\"Shetland Islands Local Authority\",Calculations!$E$2=\"Eilean Siar Local Authority\"),OR($F241=1,$F241=5)),0,new_ci(VALUE(LEFT(Options!$B$24,2)),$C241,$E241,$F241,2016,$I241,1,$H241,$G241*$H241,Options!$B$8)))","v":134.47126508650001},{"$f":"IF(AND(OR(Calculations!$E$2=\"Orkney Health Board\",Calculations!$E$2=\"Orkney Islands Local Authority\"),$F241=1),0,IF(AND(OR(Calculations!$E$2=\"Shetland Health Board\",Calculations!$E$2=\"Western Isles Health Board\",Calculations!$E$2=\"Shetland Islands Local Authority\",Calculations!$E$2=\"Eilean Siar Local Authority\"),OR($F241=1,$F241=5)),0,new_ci(VALUE(LEFT(Options!$B$24,2)),$C241,$E241,$F241,2016,$I241+$J241,1,$H241,$G241*$H241,Options!$B$8)))","v":134.03436923749999},{"$f":"IF(AND(OR(Calculations!$E$2=\"Orkney Health Board\",Calculations!$E$2=\"Orkney Islands Local Authority\"),$F241=1),0,IF(AND(OR(Calculations!$E$2=\"Shetland Health Board\",Calculations!$E$2=\"Western Isles Health Board\",Calculations!$E$2=\"Shetland Islands Local Authority\",Calculations!$E$2=\"Eilean Siar Local Authority\"),OR($F241=1,$F241=5)),0,new_yllv2(VALUE(LEFT(Options!$B$24,2)),$C241,$D241,$E241,$F241,2016,$I241,1,$H241,$G241*$H241,Options!$B$8)))","v":3629.3799825697001},{"$f":"IF(AND(OR(Calculations!$E$2=\"Orkney Health Board\",Calculations!$E$2=\"Orkney Islands Local Authority\"),$F241=1),0,IF(AND(OR(Calculations!$E$2=\"Shetland Health Board\",Calculations!$E$2=\"Western Isles Health Board\",Calculations!$E$2=\"Shetland Islands Local Authority\",Calculations!$E$2=\"Eilean Siar Local Authority\"),OR($F241=1,$F241=5)),0,new_yllv2(VALUE(LEFT(Options!$B$24,2)),$C241,$D241,$E241,$F241,2016,$I241+$J241,1,$H241,$G241*$H241,Options!$B$8)))","v":3617.5881618576},{"$f":"IF(AND(OR(Calculations!$E$2=\"Orkney Health Board\",Calculations!$E$2=\"Orkney Islands Local Authority\"),$F241=1),0,IF(AND(OR(Calculations!$E$2=\"Shetland Health Board\",Calculations!$E$2=\"Western Isles Health Board\",Calculations!$E$2=\"Shetland Islands Local Authority\",Calculations!$E$2=\"Eilean Siar Local Authority\"),OR($F241=1,$F241=5)),0,hosp_count(VALUE(LEFT(Options!$B$24,2)),$C241,$E241,$F241,2016,$I241,1,$H241,$G241*$H241, Options!$B$8)))","v":7235.3075532060002},{"$f":"IF(AND(OR(Calculations!$E$2=\"Orkney Health Board\",Calculations!$E$2=\"Orkney Islands Local Authority\"),$F241=1),0,IF(AND(OR(Calculations!$E$2=\"Shetland Health Board\",Calculations!$E$2=\"Western Isles Health Board\",Calculations!$E$2=\"Shetland Islands Local Authority\",Calculations!$E$2=\"Eilean Siar Local Authority\"),OR($F241=1,$F241=5)),0,hosp_count(VALUE(LEFT(Options!$B$24,2)),$C241,$E241,$F241,2016,$I241+$J241,1,$H241,$G241*$H241, Options!$B$8)))","v":7220.7195464450997},{"$f":"IF(AND(OR(Calculations!$E$2=\"Orkney Health Board\",Calculations!$E$2=\"Orkney Islands Local Authority\"),$F241=1),0,IF(AND(OR(Calculations!$E$2=\"Shetland Health Board\",Calculations!$E$2=\"Western Isles Health Board\",Calculations!$E$2=\"Shetland Islands Local Authority\",Calculations!$E$2=\"Eilean Siar Local Authority\"),OR($F241=1,$F241=5)),0,prem_mort(VALUE(LEFT(Options!$B$24,2)),$C241,$E241,$F241,2016,$I241,1,$H241,$G241*$H241,Options!$B$8)))","v":134.47126508650001},{"$f":"IF(AND(OR(Calculations!$E$2=\"Orkney Health Board\",Calculations!$E$2=\"Orkney Islands Local Authority\"),$F241=1),0,IF(AND(OR(Calculations!$E$2=\"Shetland Health Board\",Calculations!$E$2=\"Western Isles Health Board\",Calculations!$E$2=\"Shetland Islands Local Authority\",Calculations!$E$2=\"Eilean Siar Local Authority\"),OR($F241=1,$F241=5)),0,prem_mort(VALUE(LEFT(Options!$B$24,2)),$C241,$E241,$F241,2016,$I241+$J241,1,$H241,$G241*$H241,Options!$B$8)))","v":134.03436923749999},335.80877306587757,334.71773358680446,9063.4801282831377,9034.0329683787841,18068.393650000002,18031.963706036109,335.80877306587757,334.71773358680446,2350661.4114611428,2343024.1351076313,63444360.897981964,63238230.778651491,126478755.55000001,126223745.94225277,2350661.4114611428,2343024.1351076313,7000]
[null,"Male 55-59",56.950867000000002,80.660870000000003,"male",5,{"$f":"HLOOKUP(Calculations!$E$2,'Prevalence Rates'!$C$3:$BC$249,'Prevalence Rates'!$BD242,FALSE)","v":0.11360000000000001},{"$f":"HLOOKUP(Calculations!$E$2,'Population 2016'!$C$3:$BC$249,'Population 2016'!BD242,FALSE)","v":36422},0,{"$f":"HLOOKUP(Results!E$4,Targeting!$C$3:$F$249,Targeting!$G242,FALSE)","v":5612},{"$f":"IF(AND(OR(Calculations!$E$2=\"Orkney Health Board\",Calculations!$E$2=\"Orkney Islands Local Authority\"),$F242=1),0,IF(AND(OR(Calculations!$E$2=\"Shetland Health Board\",Calculations!$E$2=\"Western Isles Health Board\",Calculations!$E$2=\"Shetland Islands Local Authority\",Calculations!$E$2=\"Eilean Siar Local Authority\"),OR($F242=1,$F242=5)),0,new_ci(VALUE(LEFT(Options!$B$24,2)),$C242,$E242,$F242,2016,$I242,1,$H242,$G242*$H242,Options!$B$8)))","v":177.61516113729999},{"$f":"IF(AND(OR(Calculations!$E$2=\"Orkney Health Board\",Calculations!$E$2=\"Orkney Islands Local Authority\"),$F242=1),0,IF(AND(OR(Calculations!$E$2=\"Shetland Health Board\",Calculations!$E$2=\"Western Isles Health Board\",Calculations!$E$2=\"Shetland Islands Local Authority\",Calculations!$E$2=\"Eilean Siar Local Authority\"),OR($F242=1,$F242=5)),0,new_ci(VALUE(LEFT(Options!$B$24,2)),$C242,$E242,$F242,2016,$I242+$J242,1,$H242,$G242*$H242,Options!$B$8)))","v":177.0347753929},{"$f":"IF(AND(OR(Calculations!$E$2=\"Orkney Health Board\",Calculations!$E$2=\"Orkney Islands Local Authority\"),$F242=1),0,IF(AND(OR(Calculations!$E$2=\"Shetland Health Board\",Calculations!$E$2=\"Western Isles Health Board\",Calculations!$E$2=\"Shetland Islands Local Authority\",Calculations!$E$2=\"Eilean Siar Local Authority\"),OR($F242=1,$F242=5)),0,new_yllv2(VALUE(LEFT(Options!$B$24,2)),$C242,$D242,$E242,$F242,2016,$I242,1,$H242,$G242*$H242,Options!$B$8)))","v":4033.6408422735999},{"$f":"IF(AND(OR(Calculations!$E$2=\"Orkney Health Board\",Calculations!$E$2=\"Orkney Islands Local Authority\"),$F242=1),0,IF(AND(OR(Calculations!$E$2=\"Shetland Health Board\",Calculations!$E$2=\"Western Isles Health Board\",Calculations!$E$2=\"Shetland Islands Local Authority\",Calculations!$E$2=\"Eilean Siar Local Authority\"),OR($F242=1,$F242=5)),0,new_yllv2(VALUE(LEFT(Options!$B$24,2)),$C242,$D242,$E242,$F242,2016,$I242+$J242,1,$H242,$G242*$H242,Options!$B$8)))","v":4020.4602802771001},{"$f":"IF(AND(OR(Calculations!$E$2=\"Orkney Health Board\",Calculations!$E$2=\"Orkney Islands Local Authority\"),$F242=1),0,IF(AND(OR(Calculations!$E$2=\"Shetland Health Board\",Calculations!$E$2=\"Western Isles Health Board\",Calculations!$E$2=\"Shetland Islands Local Authority\",Calculations!$E$2=\"Eilean Siar Local Authority\"),OR($F242=1,$F242=5)),0,hosp_count(VALUE(LEFT(Options!$B$24,2)),$C242,$E242,$F242,2016,$I242,1,$H242,$G242*$H242, Options!$B$8)))","v":7845.5541145777997},{"$f":"IF(AND(OR(Calculations!$E$2=\"Orkney Health Board\",Calculations!$E$2=\"Orkney Islands Local Authority\"),$F242=1),0,IF(AND(OR(Calculations!$E$2=\"Shetland Health Board\",Calculations!$E$2=\"Western Isles Health Board\",Calculations!$E$2=\"Shetland Islands Local Authority\",Calculations!$E$2=\"Eilean Siar Local Authority\"),OR($F242=1,$F242=5)),0,hosp_count(VALUE(LEFT(Options!$B$24,2)),$C242,$E242,$F242,2016,$I242+$J242,1,$H242,$G242*$H242, Options!$B$8)))","v":7829.6685262939},{"$f":"IF(AND(OR(Calculations!$E$2=\"Orkney Health Board\",Calculations!$E$2=\"Orkney Islands Local Authority\"),$F242=1),0,IF(AND(OR(Calculations!$E$2=\"Shetland Health Board\",Calculations!$E$2=\"Western Isles Health Board\",Calculations!$E$2=\"Shetland Islands Local Authority\",Calculations!$E$2=\"Eilean Siar Local Authority\"),OR($F242=1,$F242=5)),0,prem_mort(VALUE(LEFT(Options!$B$24,2)),$C242,$E242,$F242,2016,$I242,1,$H242,$G242*$H242,Options!$B$8)))","v":177.61516113729999},{"$f":"IF(AND(OR(Calculations!$E$2=\"Orkney Health Board\",Calculations!$E$2=\"Orkney Islands Local Authority\"),$F242=1),0,IF(AND(OR(Calculations!$E$2=\"Shetland Health Board\",Calculations!$E$2=\"Western Isles Health Board\",Calculations!$E$2=\"Shetland Islands Local Authority\",Calculations!$E$2=\"Eilean Siar Local Authority\"),OR($F242=1,$F242=5)),0,prem_mort(VALUE(LEFT(Options!$B$24,2)),$C242,$E242,$F242,2016,$I242+$J242,1,$H242,$G242*$H242,Options!$B$8)))","v":177.0347753929},487.65900043188179,486.06549720745704,11074.73736278513,11038.548899777881,21540.700990000001,21497.085624880292,487.65900043188179,486.06549720745704,3169783.5028072316,3159425.7318484709,71985792.85810335,71750567.848556221,140014556.435,139731056.56172189,3169783.5028072316,3159425.7318484709,6500]
[null,"Male 60-64",61.942988999999997,81.612989999999996,"male",5,{"$f":"HLOOKUP(Calculations!$E$2,'Prevalence Rates'!$C$3:$BC$249,'Prevalence Rates'!$BD243,FALSE)","v":0.11360000000000001},{"$f":"HLOOKUP(Calculations!$E$2,'Population 2016'!$C$3:$BC$249,'Population 2016'!BD243,FALSE)","v":32001},0,{"$f":"HLOOKUP(Results!E$4,Targeting!$C$3:$F$249,Targeting!$G243,FALSE)","v":4931},{"$f":"IF(AND(OR(Calculations!$E$2=\"Orkney Health Board\",Calculations!$E$2=\"Orkney Islands Local Authority\"),$F243=1),0,IF(AND(OR(Calculations!$E$2=\"Shetland Health Board\",Calculations!$E$2=\"Western Isles Health Board\",Calculations!$E$2=\"Shetland Islands Local Authority\",Calculations!$E$2=\"Eilean Siar Local Authority\"),OR($F243=1,$F243=5)),0,new_ci(VALUE(LEFT(Options!$B$24,2)),$C243,$E243,$F243,2016,$I243,1,$H243,$G243*$H243,Options!$B$8)))","v":227.21908882899999},{"$f":"IF(AND(OR(Calculations!$E$2=\"Orkney Health Board\",Calculations!$E$2=\"Orkney Islands Local Authority\"),$F243=1),0,IF(AND(OR(Calculations!$E$2=\"Shetland Health Board\",Calculations!$E$2=\"Western Isles Health Board\",Calculations!$E$2=\"Shetland Islands Local Authority\",Calculations!$E$2=\"Eilean Siar Local Authority\"),OR($F243=1,$F243=5)),0,new_ci(VALUE(LEFT(Options!$B$24,2)),$C243,$E243,$F243,2016,$I243+$J243,1,$H243,$G243*$H243,Options!$B$8)))","v":226.47854335939999},{"$f":"IF(AND(OR(Calculations!$E$2=\"Orkney Health Board\",Calculations!$E$2=\"Orkney Islands Local Authority\"),$F243=1),0,IF(AND(OR(Calculations!$E$2=\"Shetland Health Board\",Calculations!$E$2=\"Western Isles Health Board\",Calculations!$E$2=\"Shetland Islands Local Authority\",Calculations!$E$2=\"Eilean Siar Local Authority\"),OR($F243=1,$F243=5)),0,new_yllv2(VALUE(LEFT(Options!$B$24,2)),$C243,$D243,$E243,$F243,2016,$I243,1,$H243,$G243*$H243,Options!$B$8)))","v":4242.1806156564999},{"$f":"IF(AND(OR(Calculations!$E$2=\"Orkney Health Board\",Calculations!$E$2=\"Orkney Islands Local Authority\"),$F243=1),0,IF(AND(OR(Calculations!$E$2=\"Shetland Health Board\",Calculations!$E$2=\"Western Isles Health Board\",Calculations!$E$2=\"Shetland Islands Local Authority\",Calculations!$E$2=\"Eilean Siar Local Authority\"),OR($F243=1,$F243=5)),0,new_yllv2(VALUE(LEFT(Options!$B$24,2)),$C243,$D243,$E243,$F243,2016,$I243+$J243,1,$H243,$G243*$H243,Options!$B$8)))","v":4228.3546309985004},{"$f":"IF(AND(OR(Calculations!$E$2=\"Orkney Health Board\",Calculations!$E$2=\"Orkney Islands Local Authority\"),$F243=1),0,IF(AND(OR(Calculations!$E$2=\"Shetland Health Board\",Calculations!$E$2=\"Western Isles Health Board\",Calculations!$E$2=\"Shetland Islands Local Authority\",Calculations!$E$2=\"Eilean Siar Local Authority\"),OR($F243=1,$F243=5)),0,hosp_count(VALUE(LEFT(Options!$B$24,2)),$C243,$E243,$F243,2016,$I243,1,$H243,$G243*$H243, Options!$B$8)))","v":8229.6006133826995},{"$f":"IF(AND(OR(Calculations!$E$2=\"Orkney Health Board\",Calculations!$E$2=\"Orkney Islands Local Authority\"),$F243=1),0,IF(AND(OR(Calculations!$E$2=\"Shetland Health Board\",Calculations!$E$2=\"Western Isles Health Board\",Calculations!$E$2=\"Shetland Islands Local Authority\",Calculations!$E$2=\"Eilean Siar Local Authority\"),OR($F243=1,$F243=5)),0,hosp_count(VALUE(LEFT(Options!$B$24,2)),$C243,$E243,$F243,2016,$I243+$J243,1,$H243,$G243*$H243, Options!$B$8)))","v":8212.9367375500005},{"$f":"IF(AND(OR(Calculations!$E$2=\"Orkney Health Board\",Calculations!$E$2=\"Orkney Islands Local Authority\"),$F243=1),0,IF(AND(OR(Calculations!$E$2=\"Shetland Health Board\",Calculations!$E$2=\"Western Isles Health Board\",Calculations!$E$2=\"Shetland Islands Local Authority\",Calculations!$E$2=\"Eilean Siar Local Authority\"),OR($F243=1,$F243=5)),0,prem_mort(VALUE(LEFT(Options!$B$24,2)),$C243,$E243,$F243,2016,$I243,1,$H243,$G243*$H243,Options!$B$8)))","v":227.21908882899999},{"$f":"IF(AND(OR(Calculations!$E$2=\"Orkney Health Board\",Calculations!$E$2=\"Orkney Islands Local Authority\"),$F243=1),0,IF(AND(OR(Calculations!$E$2=\"Shetland Health Board\",Calculations!$E$2=\"Western Isles Health Board\",Calculations!$E$2=\"Shetland Islands Local Authority\",Calculations!$E$2=\"Eilean Siar Local Authority\"),OR($F243=1,$F243=5)),0,prem_mort(VALUE(LEFT(Options!$B$24,2)),$C243,$E243,$F243,2016,$I243+$J243,1,$H243,$G243*$H243,Options!$B$8)))","v":226.47854335939999},710.0374639198775,707.72333164401107,13256.400161421518,13213.195309516892,25716.698269999997,25664.625285303584,710.0374639198775,707.72333164401107,4260224.7835192652,4246339.9898640662,79538400.968529105,79279171.857101351,154300189.61999997,153987751.7118215,4260224.7835192652,4246339.9898640662,6000]
[null,"Male 65-69",67.054419999999993,82.954419999999999,"male",5,{"$f":"HLOOKUP(Calculations!$E$2,'Prevalence Rates'!$C$3:$BC$249,'Prevalence Rates'!$BD244,FALSE)","v":7.6200000000000004E-2},{"$f":"HLOOKUP(Calculations!$E$2,'Population 2016'!$C$3:$BC$249,'Population 2016'!BD244,FALSE)","v":31688},0,{"$f":"HLOOKUP(Results!E$4,Targeting!$C$3:$F$249,Targeting!$G244,FALSE)","v":4882},{"$f":"IF(AND(OR(Calculations!$E$2=\"Orkney Health Board\",Calculations!$E$2=\"Orkney Islands Local Authority\"),$F244=1),0,IF(AND(OR(Calculations!$E$2=\"Shetland Health Board\",Calculations!$E$2=\"Western Isles Health Board\",Calculations!$E$2=\"Shetland Islands Local Authority\",Calculations!$E$2=\"Eilean Siar Local Authority\"),OR($F244=1,$F244=5)),0,new_ci(VALUE(LEFT(Options!$B$24,2)),$C244,$E244,$F244,2016,$I244,1,$H244,$G244*$H244,Options!$B$8)))","v":330.39516888169999},{"$f":"IF(AND(OR(Calculations!$E$2=\"Orkney Health Board\",Calculations!$E$2=\"Orkney Islands Local Authority\"),$F244=1),0,IF(AND(OR(Calculations!$E$2=\"Shetland Health Board\",Calculations!$E$2=\"Western Isles Health Board\",Calculations!$E$2=\"Shetland Islands Local Authority\",Calculations!$E$2=\"Eilean Siar Local Authority\"),OR($F244=1,$F244=5)),0,new_ci(VALUE(LEFT(Options!$B$24,2)),$C244,$E244,$F244,2016,$I244+$J244,1,$H244,$G244*$H244,Options!$B$8)))","v":329.28972736949999},{"$f":"IF(AND(OR(Calculations!$E$2=\"Orkney Health Board\",Calculations!$E$2=\"Orkney Islands Local Authority\"),$F244=1),0,IF(AND(OR(Calculations!$E$2=\"Shetland Health Board\",Calculations!$E$2=\"Western Isles Health Board\",Calculations!$E$2=\"Shetland Islands Local Authority\",Calculations!$E$2=\"Eilean Siar Local Authority\"),OR($F244=1,$F244=5)),0,new_yllv2(VALUE(LEFT(Options!$B$24,2)),$C244,$D244,$E244,$F244,2016,$I244,1,$H244,$G244*$H244,Options!$B$8)))","v":4922.8880163372996},{"$f":"IF(AND(OR(Calculations!$E$2=\"Orkney Health Board\",Calculations!$E$2=\"Orkney Islands Local Authority\"),$F244=1),0,IF(AND(OR(Calculations!$E$2=\"Shetland Health Board\",Calculations!$E$2=\"Western Isles Health Board\",Calculations!$E$2=\"Shetland Islands Local Authority\",Calculations!$E$2=\"Eilean Siar Local Authority\"),OR($F244=1,$F244=5)),0,new_yllv2(VALUE(LEFT(Options!$B$24,2)),$C244,$D244,$E244,$F244,2016,$I244+$J244,1,$H244,$G244*$H244,Options!$B$8)))","v":4906.4169378056004},{"$f":"IF(AND(OR(Calculations!$E$2=\"Orkney Health Board\",Calculations!$E$2=\"Orkney Islands Local Authority\"),$F244=1),0,IF(AND(OR(Calculations!$E$2=\"Shetland Health Board\",Calculations!$E$2=\"Western Isles Health Board\",Calculations!$E$2=\"Shetland Islands Local Authority\",Calculations!$E$2=\"Eilean Siar Local Authority\"),OR($F244=1,$F244=5)),0,hosp_count(VALUE(LEFT(Options!$B$24,2)),$C244,$E244,$F244,2016,$I244,1,$H244,$G244*$H244, Options!$B$8)))","v":9770.2259477183998},{"$f":"IF(AND(OR(Calculations!$E$2=\"Orkney Health Board\",Calculations!$E$2=\"Orkney Islands Local Authority\"),$F244=1),0,IF(AND(OR(Calculations!$E$2=\"Shetland Health Board\",Calculations!$E$2=\"Western Isles Health Board\",Calculations!$E$2=\"Shetland Islands Local Authority\",Calculations!$E$2=\"Eilean Siar Local Authority\"),OR($F244=1,$F244=5)),0,hosp_count(VALUE(LEFT(Options!$B$24,2)),$C244,$E244,$F244,2016,$I244+$J244,1,$H244,$G244*$H244, Options!$B$8)))","v":9750.1030584492},{"$f":"IF(AND(OR(Calculations!$E$2=\"Orkney Health Board\",Calculations!$E$2=\"Orkney Islands Local Authority\"),$F244=1),0,IF(AND(OR(Calculations!$E$2=\"Shetland Health Board\",Calculations!$E$2=\"Western Isles Health Board\",Calculations!$E$2=\"Shetland Islands Local Authority\",Calculations!$E$2=\"Eilean Siar Local Authority\"),OR($F244=1,$F244=5)),0,prem_mort(VALUE(LEFT(Options!$B$24,2)),$C244,$E244,$F244,2016,$I244,1,$H244,$G244*$H244,Options!$B$8)))","v":330.39516888169999},{"$f":"IF(AND(OR(Calculations!$E$2=\"Orkney Health Board\",Calculations!$E$2=\"Orkney Islands Local Authority\"),$F244=1),0,IF(AND(OR(Calculations!$E$2=\"Shetland Health Board\",Calculations!$E$2=\"Western Isles Health Board\",Calculations!$E$2=\"Shetland Islands Local Authority\",Calculations!$E$2=\"Eilean Siar Local Authority\"),OR($F244=1,$F244=5)),0,prem_mort(VALUE(LEFT(Options!$B$24,2)),$C244,$E244,$F244,2016,$I244+$J244,1,$H244,$G244*$H244,Options!$B$8)))","v":329.28972736949999},1042.6507475438652,1039.1622297699444,15535.496138403494,15483.517223572331,30832.573679999998,30769.070494979806,1042.6507475438652,1039.1622297699444,5734579.1114912592,5715392.2637346936,85445228.761219218,85159344.729647815,169579155.23999998,169229887.72238892,5734579.1114912592,5715392.2637346936,5500]
[null,"Male 70-74",71.891098,84.341099999999997,"male",5,{"$f":"HLOOKUP(Calculations!$E$2,'Prevalence Rates'!$C$3:$BC$249,'Prevalence Rates'!$BD245,FALSE)","v":7.6200000000000004E-2},{"$f":"HLOOKUP(Calculations!$E$2,'Population 2016'!$C$3:$BC$249,'Population 2016'!BD245,FALSE)","v":22663},0,{"$f":"HLOOKUP(Results!E$4,Targeting!$C$3:$F$249,Targeting!$G245,FALSE)","v":3492},{"$f":"IF(AND(OR(Calculations!$E$2=\"Orkney Health Board\",Calculations!$E$2=\"Orkney Islands Local Authority\"),$F245=1),0,IF(AND(OR(Calculations!$E$2=\"Shetland Health Board\",Calculations!$E$2=\"Western Isles Health Board\",Calculations!$E$2=\"Shetland Islands Local Authority\",Calculations!$E$2=\"Eilean Siar Local Authority\"),OR($F245=1,$F245=5)),0,new_ci(VALUE(LEFT(Options!$B$24,2)),$C245,$E245,$F245,2016,$I245,1,$H245,$G245*$H245,Options!$B$8)))","v":339.61901220710001},{"$f":"IF(AND(OR(Calculations!$E$2=\"Orkney Health Board\",Calculations!$E$2=\"Orkney Islands Local Authority\"),$F245=1),0,IF(AND(OR(Calculations!$E$2=\"Shetland Health Board\",Calculations!$E$2=\"Western Isles Health Board\",Calculations!$E$2=\"Shetland Islands Local Authority\",Calculations!$E$2=\"Eilean Siar Local Authority\"),OR($F245=1,$F245=5)),0,new_ci(VALUE(LEFT(Options!$B$24,2)),$C245,$E245,$F245,2016,$I245+$J245,1,$H245,$G245*$H245,Options!$B$8)))","v":338.48907992630001},{"$f":"IF(AND(OR(Calculations!$E$2=\"Orkney Health Board\",Calculations!$E$2=\"Orkney Islands Local Authority\"),$F245=1),0,IF(AND(OR(Calculations!$E$2=\"Shetland Health Board\",Calculations!$E$2=\"Western Isles Health Board\",Calculations!$E$2=\"Shetland Islands Local Authority\",Calculations!$E$2=\"Eilean Siar Local Authority\"),OR($F245=1,$F245=5)),0,new_yllv2(VALUE(LEFT(Options!$B$24,2)),$C245,$D245,$E245,$F245,2016,$I245,1,$H245,$G245*$H245,Options!$B$8)))","v":3888.6383690092998},{"$f":"IF(AND(OR(Calculations!$E$2=\"Orkney Health Board\",Calculations!$E$2=\"Orkney Islands Local Authority\"),$F245=1),0,IF(AND(OR(Calculations!$E$2=\"Shetland Health Board\",Calculations!$E$2=\"Western Isles Health Board\",Calculations!$E$2=\"Shetland Islands Local Authority\",Calculations!$E$2=\"Eilean Siar Local Authority\"),OR($F245=1,$F245=5)),0,new_yllv2(VALUE(LEFT(Options!$B$24,2)),$C245,$D245,$E245,$F245,2016,$I245+$J245,1,$H245,$G245*$H245,Options!$B$8)))","v":3875.7006421342999},{"$f":"IF(AND(OR(Calculations!$E$2=\"Orkney Health Board\",Calculations!$E$2=\"Orkney Islands Local Authority\"),$F245=1),0,IF(AND(OR(Calculations!$E$2=\"Shetland Health Board\",Calculations!$E$2=\"Western Isles Health Board\",Calculations!$E$2=\"Shetland Islands Local Authority\",Calculations!$E$2=\"Eilean Siar Local Authority\"),OR($F245=1,$F245=5)),0,hosp_count(VALUE(LEFT(Options!$B$24,2)),$C245,$E245,$F245,2016,$I245,1,$H245,$G245*$H245, Options!$B$8)))","v":8296.3359118624994},{"$f":"IF(AND(OR(Calculations!$E$2=\"Orkney Health Board\",Calculations!$E$2=\"Orkney Islands Local Authority\"),$F245=1),0,IF(AND(OR(Calculations!$E$2=\"Shetland Health Board\",Calculations!$E$2=\"Western Isles Health Board\",Calculations!$E$2=\"Shetland Islands Local Authority\",Calculations!$E$2=\"Eilean Siar Local Authority\"),OR($F245=1,$F245=5)),0,hosp_count(VALUE(LEFT(Options!$B$24,2)),$C245,$E245,$F245,2016,$I245+$J245,1,$H245,$G245*$H245, Options!$B$8)))","v":8279.2465459488994},{"$f":"IF(AND(OR(Calculations!$E$2=\"Orkney Health Board\",Calculations!$E$2=\"Orkney Islands Local Authority\"),$F245=1),0,IF(AND(OR(Calculations!$E$2=\"Shetland Health Board\",Calculations!$E$2=\"Western Isles Health Board\",Calculations!$E$2=\"Shetland Islands Local Authority\",Calculations!$E$2=\"Eilean Siar Local Authority\"),OR($F245=1,$F245=5)),0,prem_mort(VALUE(LEFT(Options!$B$24,2)),$C245,$E245,$F245,2016,$I245,1,$H245,$G245*$H245,Options!$B$8)))","v":339.61901220710001},{"$f":"IF(AND(OR(Calculations!$E$2=\"Orkney Health Board\",Calculations!$E$2=\"Orkney Islands Local Authority\"),$F245=1),0,IF(AND(OR(Calculations!$E$2=\"Shetland Health Board\",Calculations!$E$2=\"Western Isles Health Board\",Calculations!$E$2=\"Shetland Islands Local Authority\",Calculations!$E$2=\"Eilean Siar Local Authority\"),OR($F245=1,$F245=5)),0,prem_mort(VALUE(LEFT(Options!$B$24,2)),$C245,$E245,$F245,2016,$I245+$J245,1,$H245,$G245*$H245,Options!$B$8)))","v":338.48907992630001},1498.5615858760978,1493.5757839928517,17158.533155404402,17101.445713869743,36607.403749999998,36531.997290512729,1498.5615858760978,1493.5757839928517,7492807.9293804886,7467878.9199642586,85792665.777022019,85507228.569348723,183037018.75,182659986.45256364,7492807.9293804886,7467878.9199642586,5000]
[null,"Male 75-79",76.907700000000006,86.357700000000008,"male",5,{"$f":"HLOOKUP(Calculations!$E$2,'Prevalence Rates'!$C$3:$BC$249,'Prevalence Rates'!$BD246,FALSE)","v":0.04},{"$f":"HLOOKUP(Calculations!$E$2,'Population 2016'!$C$3:$BC$249,'Population 2016'!BD246,FALSE)","v":16475},0,{"$f":"HLOOKUP(Results!E$4,Targeting!$C$3:$F$249,Targeting!$G246,FALSE)","v":2538},{"$f":"IF(AND(OR(Calculations!$E$2=\"Orkney Health Board\",Calculations!$E$2=\"Orkney Islands Local Authority\"),$F246=1),0,IF(AND(OR(Calculations!$E$2=\"Shetland Health Board\",Calculations!$E$2=\"Western Isles Health Board\",Calculations!$E$2=\"Shetland Islands Local Authority\",Calculations!$E$2=\"Eilean Siar Local Authority\"),OR($F246=1,$F246=5)),0,new_ci(VALUE(LEFT(Options!$B$24,2)),$C246,$E246,$F246,2016,$I246,1,$H246,$G246*$H246,Options!$B$8)))","v":359.33993635619998},{"$f":"IF(AND(OR(Calculations!$E$2=\"Orkney Health Board\",Calculations!$E$2=\"Orkney Islands Local Authority\"),$F246=1),0,IF(AND(OR(Calculations!$E$2=\"Shetland Health Board\",Calculations!$E$2=\"Western Isles Health Board\",Calculations!$E$2=\"Shetland Islands Local Authority\",Calculations!$E$2=\"Eilean Siar Local Authority\"),OR($F246=1,$F246=5)),0,new_ci(VALUE(LEFT(Options!$B$24,2)),$C246,$E246,$F246,2016,$I246+$J246,1,$H246,$G246*$H246,Options!$B$8)))","v":358.11945073380002},{"$f":"IF(AND(OR(Calculations!$E$2=\"Orkney Health Board\",Calculations!$E$2=\"Orkney Islands Local Authority\"),$F246=1),0,IF(AND(OR(Calculations!$E$2=\"Shetland Health Board\",Calculations!$E$2=\"Western Isles Health Board\",Calculations!$E$2=\"Shetland Islands Local Authority\",Calculations!$E$2=\"Eilean Siar Local Authority\"),OR($F246=1,$F246=5)),0,new_yllv2(VALUE(LEFT(Options!$B$24,2)),$C246,$D246,$E246,$F246,2016,$I246,1,$H246,$G246*$H246,Options!$B$8)))","v":3036.4224622099},{"$f":"IF(AND(OR(Calculations!$E$2=\"Orkney Health Board\",Calculations!$E$2=\"Orkney Islands Local Authority\"),$F246=1),0,IF(AND(OR(Calculations!$E$2=\"Shetland Health Board\",Calculations!$E$2=\"Western Isles Health Board\",Calculations!$E$2=\"Shetland Islands Local Authority\",Calculations!$E$2=\"Eilean Siar Local Authority\"),OR($F246=1,$F246=5)),0,new_yllv2(VALUE(LEFT(Options!$B$24,2)),$C246,$D246,$E246,$F246,2016,$I246+$J246,1,$H246,$G246*$H246,Options!$B$8)))","v":3026.1093587005998},{"$f":"IF(AND(OR(Calculations!$E$2=\"Orkney Health Board\",Calculations!$E$2=\"Orkney Islands Local Authority\"),$F246=1),0,IF(AND(OR(Calculations!$E$2=\"Shetland Health Board\",Calculations!$E$2=\"Western Isles Health Board\",Calculations!$E$2=\"Shetland Islands Local Authority\",Calculations!$E$2=\"Eilean Siar Local Authority\"),OR($F246=1,$F246=5)),0,hosp_count(VALUE(LEFT(Options!$B$24,2)),$C246,$E246,$F246,2016,$I246,1,$H246,$G246*$H246, Options!$B$8)))","v":7206.5449118525003},{"$f":"IF(AND(OR(Calculations!$E$2=\"Orkney Health Board\",Calculations!$E$2=\"Orkney Islands Local Authority\"),$F246=1),0,IF(AND(OR(Calculations!$E$2=\"Shetland Health Board\",Calculations!$E$2=\"Western Isles Health Board\",Calculations!$E$2=\"Shetland Islands Local Authority\",Calculations!$E$2=\"Eilean Siar Local Authority\"),OR($F246=1,$F246=5)),0,hosp_count(VALUE(LEFT(Options!$B$24,2)),$C246,$E246,$F246,2016,$I246+$J246,1,$H246,$G246*$H246, Options!$B$8)))","v":7191.4504437222004},{"$f":"IF(AND(OR(Calculations!$E$2=\"Orkney Health Board\",Calculations!$E$2=\"Orkney Islands Local Authority\"),$F246=1),0,IF(AND(OR(Calculations!$E$2=\"Shetland Health Board\",Calculations!$E$2=\"Western Isles Health Board\",Calculations!$E$2=\"Shetland Islands Local Authority\",Calculations!$E$2=\"Eilean Siar Local Authority\"),OR($F246=1,$F246=5)),0,prem_mort(VALUE(LEFT(Options!$B$24,2)),$C246,$E246,$F246,2016,$I246,1,$H246,$G246*$H246,Options!$B$8)))","v":0},{"$f":"IF(AND(OR(Calculations!$E$2=\"Orkney Health Board\",Calculations!$E$2=\"Orkney Islands Local Authority\"),$F246=1),0,IF(AND(OR(Calculations!$E$2=\"Shetland Health Board\",Calculations!$E$2=\"Western Isles Health Board\",Calculations!$E$2=\"Shetland Islands Local Authority\",Calculations!$E$2=\"Eilean Siar Local Authority\"),OR($F246=1,$F246=5)),0,prem_mort(VALUE(LEFT(Options!$B$24,2)),$C246,$E246,$F246,2016,$I246+$J246,1,$H246,$G246*$H246,Options!$B$8)))","v":0},2181.1225271999997,2173.7144202355084,18430.485354840061,18367.886850989984,43742.305990000001,43650.685546113506,0,0,8724490.1087999996,8694857.6809420343,73721941.419360235,73471547.40395993,174969223.96000001,174602742.18445402,0,0,4000]
[null,"Male 80-84",81.797089,88.627089999999995,"male",5,{"$f":"HLOOKUP(Calculations!$E$2,'Prevalence Rates'!$C$3:$BC$249,'Prevalence Rates'!$BD247,FALSE)","v":0.04},{"$f":"HLOOKUP(Calculations!$E$2,'Population 2016'!$C$3:$BC$249,'Population 2016'!BD247,FALSE)","v":11823},0,{"$f":"HLOOKUP(Results!E$4,Targeting!$C$3:$F$249,Targeting!$G247,FALSE)","v":1822},{"$f":"IF(AND(OR(Calculations!$E$2=\"Orkney Health Board\",Calculations!$E$2=\"Orkney Islands Local Authority\"),$F247=1),0,IF(AND(OR(Calculations!$E$2=\"Shetland Health Board\",Calculations!$E$2=\"Western Isles Health Board\",Calculations!$E$2=\"Shetland Islands Local Authority\",Calculations!$E$2=\"Eilean Siar Local Authority\"),OR($F247=1,$F247=5)),0,new_ci(VALUE(LEFT(Options!$B$24,2)),$C247,$E247,$F247,2016,$I247,1,$H247,$G247*$H247,Options!$B$8)))","v":371.13643777909999},{"$f":"IF(AND(OR(Calculations!$E$2=\"Orkney Health Board\",Calculations!$E$2=\"Orkney Islands Local Authority\"),$F247=1),0,IF(AND(OR(Calculations!$E$2=\"Shetland Health Board\",Calculations!$E$2=\"Western Isles Health Board\",Calculations!$E$2=\"Shetland Islands Local Authority\",Calculations!$E$2=\"Eilean Siar Local Authority\"),OR($F247=1,$F247=5)),0,new_ci(VALUE(LEFT(Options!$B$24,2)),$C247,$E247,$F247,2016,$I247+$J247,1,$H247,$G247*$H247,Options!$B$8)))","v":369.89161476530001},{"$f":"IF(AND(OR(Calculations!$E$2=\"Orkney Health Board\",Calculations!$E$2=\"Orkney Islands Local Authority\"),$F247=1),0,IF(AND(OR(Calculations!$E$2=\"Shetland Health Board\",Calculations!$E$2=\"Western Isles Health Board\",Calculations!$E$2=\"Shetland Islands Local Authority\",Calculations!$E$2=\"Eilean Siar Local Authority\"),OR($F247=1,$F247=5)),0,new_yllv2(VALUE(LEFT(Options!$B$24,2)),$C247,$D247,$E247,$F247,2016,$I247,1,$H247,$G247*$H247,Options!$B$8)))","v":2163.7258033886001},{"$f":"IF(AND(OR(Calculations!$E$2=\"Orkney Health Board\",Calculations!$E$2=\"Orkney Islands Local Authority\"),$F247=1),0,IF(AND(OR(Calculations!$E$2=\"Shetland Health Board\",Calculations!$E$2=\"Western Isles Health Board\",Calculations!$E$2=\"Shetland Islands Local Authority\",Calculations!$E$2=\"Eilean Siar Local Authority\"),OR($F247=1,$F247=5)),0,new_yllv2(VALUE(LEFT(Options!$B$24,2)),$C247,$D247,$E247,$F247,2016,$I247+$J247,1,$H247,$G247*$H247,Options!$B$8)))","v":2156.4684839733},{"$f":"IF(AND(OR(Calculations!$E$2=\"Orkney Health Board\",Calculations!$E$2=\"Orkney Islands Local Authority\"),$F247=1),0,IF(AND(OR(Calculations!$E$2=\"Shetland Health Board\",Calculations!$E$2=\"Western Isles Health Board\",Calculations!$E$2=\"Shetland Islands Local Authority\",Calculations!$E$2=\"Eilean Siar Local Authority\"),OR($F247=1,$F247=5)),0,hosp_count(VALUE(LEFT(Options!$B$24,2)),$C247,$E247,$F247,2016,$I247,1,$H247,$G247*$H247, Options!$B$8)))","v":6151.7839448121003},{"$f":"IF(AND(OR(Calculations!$E$2=\"Orkney Health Board\",Calculations!$E$2=\"Orkney Islands Local Authority\"),$F247=1),0,IF(AND(OR(Calculations!$E$2=\"Shetland Health Board\",Calculations!$E$2=\"Western Isles Health Board\",Calculations!$E$2=\"Shetland Islands Local Authority\",Calculations!$E$2=\"Eilean Siar Local Authority\"),OR($F247=1,$F247=5)),0,hosp_count(VALUE(LEFT(Options!$B$24,2)),$C247,$E247,$F247,2016,$I247+$J247,1,$H247,$G247*$H247, Options!$B$8)))","v":6138.8941419562998},{"$f":"IF(AND(OR(Calculations!$E$2=\"Orkney Health Board\",Calculations!$E$2=\"Orkney Islands Local Authority\"),$F247=1),0,IF(AND(OR(Calculations!$E$2=\"Shetland Health Board\",Calculations!$E$2=\"Western Isles Health Board\",Calculations!$E$2=\"Shetland Islands Local Authority\",Calculations!$E$2=\"Eilean Siar Local Authority\"),OR($F247=1,$F247=5)),0,prem_mort(VALUE(LEFT(Options!$B$24,2)),$C247,$E247,$F247,2016,$I247,1,$H247,$G247*$H247,Options!$B$8)))","v":0},{"$f":"IF(AND(OR(Calculations!$E$2=\"Orkney Health Board\",Calculations!$E$2=\"Orkney Islands Local Authority\"),$F247=1),0,IF(AND(OR(Calculations!$E$2=\"Shetland Health Board\",Calculations!$E$2=\"Western Isles Health Board\",Calculations!$E$2=\"Shetland Islands Local Authority\",Calculations!$E$2=\"Eilean Siar Local Authority\"),OR($F247=1,$F247=5)),0,prem_mort(VALUE(LEFT(Options!$B$24,2)),$C247,$E247,$F247,2016,$I247+$J247,1,$H247,$G247*$H247,Options!$B$8)))","v":0},3139.1054535997632,3128.576628311765,18300.987933592151,18239.604871634103,52032.343269999998,51923.320155259236,0,0,7847763.6339994082,7821441.570779413,45752469.833980374,45599012.179085255,130080858.175,129808300.38814808,0,0,2500]
[null,"Male 85-89",86.630752999999999,91.420750000000012,"male",5,{"$f":"HLOOKUP(Calculations!$E$2,'Prevalence Rates'!$C$3:$BC$249,'Prevalence Rates'!$BD248,FALSE)","v":0.04},{"$f":"HLOOKUP(Calculations!$E$2,'Population 2016'!$C$3:$BC$249,'Population 2016'!BD248,FALSE)","v":6067},0,{"$f":"HLOOKUP(Results!E$4,Targeting!$C$3:$F$249,Targeting!$G248,FALSE)","v":935},{"$f":"IF(AND(OR(Calculations!$E$2=\"Orkney Health Board\",Calculations!$E$2=\"Orkney Islands Local Authority\"),$F248=1),0,IF(AND(OR(Calculations!$E$2=\"Shetland Health Board\",Calculations!$E$2=\"Western Isles Health Board\",Calculations!$E$2=\"Shetland Islands Local Authority\",Calculations!$E$2=\"Eilean Siar Local Authority\"),OR($F248=1,$F248=5)),0,new_ci(VALUE(LEFT(Options!$B$24,2)),$C248,$E248,$F248,2016,$I248,1,$H248,$G248*$H248,Options!$B$8)))","v":272.36551425409999},{"$f":"IF(AND(OR(Calculations!$E$2=\"Orkney Health Board\",Calculations!$E$2=\"Orkney Islands Local Authority\"),$F248=1),0,IF(AND(OR(Calculations!$E$2=\"Shetland Health Board\",Calculations!$E$2=\"Western Isles Health Board\",Calculations!$E$2=\"Shetland Islands Local Authority\",Calculations!$E$2=\"Eilean Siar Local Authority\"),OR($F248=1,$F248=5)),0,new_ci(VALUE(LEFT(Options!$B$24,2)),$C248,$E248,$F248,2016,$I248+$J248,1,$H248,$G248*$H248,Options!$B$8)))","v":271.46863429759998},{"$f":"IF(AND(OR(Calculations!$E$2=\"Orkney Health Board\",Calculations!$E$2=\"Orkney Islands Local Authority\"),$F248=1),0,IF(AND(OR(Calculations!$E$2=\"Shetland Health Board\",Calculations!$E$2=\"Western Isles Health Board\",Calculations!$E$2=\"Shetland Islands Local Authority\",Calculations!$E$2=\"Eilean Siar Local Authority\"),OR($F248=1,$F248=5)),0,new_yllv2(VALUE(LEFT(Options!$B$24,2)),$C248,$D248,$E248,$F248,2016,$I248,1,$H248,$G248*$H248,Options!$B$8)))","v":1032.2644819264999},{"$f":"IF(AND(OR(Calculations!$E$2=\"Orkney Health Board\",Calculations!$E$2=\"Orkney Islands Local Authority\"),$F248=1),0,IF(AND(OR(Calculations!$E$2=\"Shetland Health Board\",Calculations!$E$2=\"Western Isles Health Board\",Calculations!$E$2=\"Shetland Islands Local Authority\",Calculations!$E$2=\"Eilean Siar Local Authority\"),OR($F248=1,$F248=5)),0,new_yllv2(VALUE(LEFT(Options!$B$24,2)),$C248,$D248,$E248,$F248,2016,$I248+$J248,1,$H248,$G248*$H248,Options!$B$8)))","v":1028.865309582},{"$f":"IF(AND(OR(Calculations!$E$2=\"Orkney Health Board\",Calculations!$E$2=\"Orkney Islands Local Authority\"),$F248=1),0,IF(AND(OR(Calculations!$E$2=\"Shetland Health Board\",Calculations!$E$2=\"Western Isles Health Board\",Calculations!$E$2=\"Shetland Islands Local Authority\",Calculations!$E$2=\"Eilean Siar Local Authority\"),OR($F248=1,$F248=5)),0,hosp_count(VALUE(LEFT(Options!$B$24,2)),$C248,$E248,$F248,2016,$I248,1,$H248,$G248*$H248, Options!$B$8)))","v":3747.6590122036},{"$f":"IF(AND(OR(Calculations!$E$2=\"Orkney Health Board\",Calculations!$E$2=\"Orkney Islands Local Authority\"),$F248=1),0,IF(AND(OR(Calculations!$E$2=\"Shetland Health Board\",Calculations!$E$2=\"Western Isles Health Board\",Calculations!$E$2=\"Shetland Islands Local Authority\",Calculations!$E$2=\"Eilean Siar Local Authority\"),OR($F248=1,$F248=5)),0,hosp_count(VALUE(LEFT(Options!$B$24,2)),$C248,$E248,$F248,2016,$I248+$J248,1,$H248,$G248*$H248, Options!$B$8)))","v":3739.8062544582999},{"$f":"IF(AND(OR(Calculations!$E$2=\"Orkney Health Board\",Calculations!$E$2=\"Orkney Islands Local Authority\"),$F248=1),0,IF(AND(OR(Calculations!$E$2=\"Shetland Health Board\",Calculations!$E$2=\"Western Isles Health Board\",Calculations!$E$2=\"Shetland Islands Local Authority\",Calculations!$E$2=\"Eilean Siar Local Authority\"),OR($F248=1,$F248=5)),0,prem_mort(VALUE(LEFT(Options!$B$24,2)),$C248,$E248,$F248,2016,$I248,1,$H248,$G248*$H248,Options!$B$8)))","v":0},{"$f":"IF(AND(OR(Calculations!$E$2=\"Orkney Health Board\",Calculations!$E$2=\"Orkney Islands Local Authority\"),$F248=1),0,IF(AND(OR(Calculations!$E$2=\"Shetland Health Board\",Calculations!$E$2=\"Western Isles Health Board\",Calculations!$E$2=\"Shetland Islands Local Authority\",Calculations!$E$2=\"Eilean Siar Local Authority\"),OR($F248=1,$F248=5)),0,prem_mort(VALUE(LEFT(Options!$B$24,2)),$C248,$E248,$F248,2016,$I248+$J248,1,$H248,$G248*$H248,Options!$B$8)))","v":0},4489.2947792005934,4474.5118559024222,17014.413745285972,16958.3865103346,61771.20508,61641.771130019777,0,0,6733942.1688008904,6711767.7838536333,25521620.617928959,25437579.765501898,92656807.620000005,92462656.695029661,0,0,1500]
[null,"Male 90+",92.215477000000007,95.515479999999997,"male",5,{"$f":"HLOOKUP(Calculations!$E$2,'Prevalence Rates'!$C$3:$BC$249,'Prevalence Rates'!$BD249,FALSE)","v":0.04},{"$f":"HLOOKUP(Calculations!$E$2,'Population 2016'!$C$3:$BC$249,'Population 2016'!BD249,FALSE)","v":2678},0,{"$f":"HLOOKUP(Results!E$4,Targeting!$C$3:$F$249,Targeting!$G249,FALSE)","v":413},{"$f":"IF(AND(OR(Calculations!$E$2=\"Orkney Health Board\",Calculations!$E$2=\"Orkney Islands Local Authority\"),$F249=1),0,IF(AND(OR(Calculations!$E$2=\"Shetland Health Board\",Calculations!$E$2=\"Western Isles Health Board\",Calculations!$E$2=\"Shetland Islands Local Authority\",Calculations!$E$2=\"Eilean Siar Local Authority\"),OR($F249=1,$F249=5)),0,new_ci(VALUE(LEFT(Options!$B$24,2)),$C249,$E249,$F249,2016,$I249,1,$H249,$G249*$H249,Options!$B$8)))","v":181.0420854187},{"$f":"IF(AND(OR(Calculations!$E$2=\"Orkney Health Board\",Calculations!$E$2=\"Orkney Islands Local Authority\"),$F249=1),0,IF(AND(OR(Calculations!$E$2=\"Shetland Health Board\",Calculations!$E$2=\"Western Isles Health Board\",Calculations!$E$2=\"Shetland Islands Local Authority\",Calculations!$E$2=\"Eilean Siar Local Authority\"),OR($F249=1,$F249=5)),0,new_ci(VALUE(LEFT(Options!$B$24,2)),$C249,$E249,$F249,2016,$I249+$J249,1,$H249,$G249*$H249,Options!$B$8)))","v":180.46411492280001},{"$f":"IF(AND(OR(Calculations!$E$2=\"Orkney Health Board\",Calculations!$E$2=\"Orkney Islands Local Authority\"),$F249=1),0,IF(AND(OR(Calculations!$E$2=\"Shetland Health Board\",Calculations!$E$2=\"Western Isles Health Board\",Calculations!$E$2=\"Shetland Islands Local Authority\",Calculations!$E$2=\"Eilean Siar Local Authority\"),OR($F249=1,$F249=5)),0,new_yllv2(VALUE(LEFT(Options!$B$24,2)),$C249,$D249,$E249,$F249,2016,$I249,1,$H249,$G249*$H249,Options!$B$8)))","v":416.39733958929997},{"$f":"IF(AND(OR(Calculations!$E$2=\"Orkney Health Board\",Calculations!$E$2=\"Orkney Islands Local Authority\"),$F249=1),0,IF(AND(OR(Calculations!$E$2=\"Shetland Health Board\",Calculations!$E$2=\"Western Isles Health Board\",Calculations!$E$2=\"Shetland Islands Local Authority\",Calculations!$E$2=\"Eilean Siar Local Authority\"),OR($F249=1,$F249=5)),0,new_yllv2(VALUE(LEFT(Options!$B$24,2)),$C249,$D249,$E249,$F249,2016,$I249+$J249,1,$H249,$G249*$H249,Options!$B$8)))","v":415.06800571479999},{"$f":"IF(AND(OR(Calculations!$E$2=\"Orkney Health Board\",Calculations!$E$2=\"Orkney Islands Local Authority\"),$F249=1),0,IF(AND(OR(Calculations!$E$2=\"Shetland Health Board\",Calculations!$E$2=\"Western Isles Health Board\",Calculations!$E$2=\"Shetland Islands Local Authority\",Calculations!$E$2=\"Eilean Siar Local Authority\"),OR($F249=1,$F249=5)),0,hosp_count(VALUE(LEFT(Options!$B$24,2)),$C249,$E249,$F249,2016,$I249,1,$H249,$G249*$H249, Options!$B$8)))","v":2016.9131573994},{"$f":"IF(AND(OR(Calculations!$E$2=\"Orkney Health Board\",Calculations!$E$2=\"Orkney Islands Local Authority\"),$F249=1),0,IF(AND(OR(Calculations!$E$2=\"Shetland Health Board\",Calculations!$E$2=\"Western Isles Health Board\",Calculations!$E$2=\"Shetland Islands Local Authority\",Calculations!$E$2=\"Eilean Siar Local Authority\"),OR($F249=1,$F249=5)),0,hosp_count(VALUE(LEFT(Options!$B$24,2)),$C249,$E249,$F249,2016,$I249+$J249,1,$H249,$G249*$H249, Options!$B$8)))","v":2012.684025862},{"$f":"IF(AND(OR(Calculations!$E$2=\"Orkney Health Board\",Calculations!$E$2=\"Orkney Islands Local Authority\"),$F249=1),0,IF(AND(OR(Calculations!$E$2=\"Shetland Health Board\",Calculations!$E$2=\"Western Isles Health Board\",Calculations!$E$2=\"Shetland Islands Local Authority\",Calculations!$E$2=\"Eilean Siar Local Authority\"),OR($F249=1,$F249=5)),0,prem_mort(VALUE(LEFT(Options!$B$24,2)),$C249,$E249,$F249,2016,$I249,1,$H249,$G249*$H249,Options!$B$8)))","v":0},{"$f":"IF(AND(OR(Calculations!$E$2=\"Orkney Health Board\",Calculations!$E$2=\"Orkney Islands Local Authority\"),$F249=1),0,IF(AND(OR(Calculations!$E$2=\"Shetland Health Board\",Calculations!$E$2=\"Western Isles Health Board\",Calculations!$E$2=\"Shetland Islands Local Authority\",Calculations!$E$2=\"Eilean Siar Local Authority\"),OR($F249=1,$F249=5)),0,prem_mort(VALUE(LEFT(Options!$B$24,2)),$C249,$E249,$F249,2016,$I249+$J249,1,$H249,$G249*$H249,Options!$B$8)))","v":0},6760.3467296004474,6738.7645602240473,15548.817759122479,15499.178704809559,75314.158230000001,75156.236962733383,0,0,6760346.7296004472,6738764.5602240469,15548817.75912248,15499178.70480956,75314158.230000004,75156236.962733388,0,0,1000]

{"sheet":"Inequalities","index":7,"n_rows":18,"n_cols":25,"rows_kept":18,"cut":false,"hidden":true,"merged":[]}
["Relative Index of Inequality calculation"]
["Area:",{"$f":"Options!$B$11","v":"Scotland"}]
["Years:",{"$f":"Options!B24","v":2},null,null,null,null,null,"STANDARDISED RATES"]
[null,null,null,null,null,null,null,"Hospital Stays",null,null,null,null,null,"Premature Death",null,null,null,null,null,"Years of Life Lost (YLL)"]
[null,null,null,null,null,null,null,"Without intervention",null,"With intervention",null,"Difference","% Difference","Without intervention",null,"With intervention",null,"Difference","% Difference","Without intervention",null,"With intervention",null,"Difference","% Difference"]
[null,null,"a",null,"b","√a","b*√a","Y","Y*√a","Y","Y*√a",null,null,"Y","Y*√a","Y","Y*√a",null,null,"Y","Y*√a","Y","Y*√a"]
["SIMD quintile","Population","Proportion of total population","Cumulative proportion","Relative rank"]
[null,null,null,0," "]
["Q1 (most dep)",{"$f":"Calculations!H7","v":872234},{"$f":"B9/$B$14","v":0.19431413815281337},{"$f":"D8+C9","v":0.19431413815281337},{"$f":"D8+(0.5*C9)","v":9.7157069076406685E-2},{"$f":"SQRT(C9)","v":0.44081077363514309},{"$f":"E9*SQRT(C9)","v":4.2827882783693871E-2},{"$f":"Calculations!AN7/($B$3-1)","v":29752.248162420005},{"$f":"SQRT($C9)*H9","v":13115.111529861128},{"$f":"Calculations!AO7/($B$3-1)","v":29687.10910379923},{"$f":"SQRT($C9)*J9","v":13086.397531036639},null,null,{"$f":"Calculations!AP7/($B$3-1)","v":679.04688967427819},{"$f":"SQRT($C9)*N9","v":299.33118477185621},{"$f":"Calculations!AQ7/($B$3-1)","v":676.88966311851436},{"$f":"SQRT($C9)*P9","v":298.38025606490368},null,null,{"$f":"Calculations!AL7/($B$3-1)","v":18736.000399906665},{"$f":"SQRT($C9)*T9","v":8259.0308311112076},{"$f":"Calculations!AM7/($B$3-1)","v":18675.145443830195},{"$f":"SQRT($C9)*V9","v":8232.2053108436066}]
["Q2",{"$f":"Calculations!H8","v":897032},{"$f":"B10/$B$14","v":0.19983857540005831},{"$f":"D9+C10","v":0.39415271355287168},{"$f":"D9+(0.5*C10)","v":0.29423342585284251},{"$f":"SQRT(C10)","v":0.44703308087887444},{"$f":"E10*SQRT(C10)","v":0.13153207485654206},{"$f":"Calculations!AN8/($B$3-1)","v":24186.305889039999},10812.078836656416,{"$f":"Calculations!AO8/($B$3-1)","v":24131.314121911793},10787.495697574121,null,null,{"$f":"Calculations!AP8/($B$3-1)","v":477.14651637672449},213.30027724650947,{"$f":"Calculations!AQ8/($B$3-1)","v":475.52459544962556},212.57522493752651,null,null,{"$f":"Calculations!AL8/($B$3-1)","v":13191.736303735894},5897.1425220007523,{"$f":"Calculations!AM8/($B$3-1)","v":13145.890669394879},5876.6480068364417]
["Q3",{"$f":"Calculations!H9","v":907978},{"$f":"B11/$B$14","v":0.2022770982691745},{"$f":"D10+C11","v":0.59642981182204613},{"$f":"D10+(0.5*C11)","v":0.49529126268745893},{"$f":"SQRT(C11)","v":0.44975226321740119},{"$f":"E11*SQRT(C11)","v":0.22275836634548904},{"$f":"Calculations!AN9/($B$3-1)","v":20910.862622785},9404.7077904257148,{"$f":"Calculations!AO9/($B$3-1)","v":20861.98717965098},9382.7259492604371,null,null,{"$f":"Calculations!AP9/($B$3-1)","v":386.46841723775498},173.8150453147272,{"$f":"Calculations!AQ9/($B$3-1)","v":385.08691704980328},173.19371247856066,null,null,{"$f":"Calculations!AL9/($B$3-1)","v":10694.068563656529},4809.6815395065869,{"$f":"Calculations!AM9/($B$3-1)","v":10655.134180230996},4792.170712443979]
["Q4",{"$f":"Calculations!H10","v":910792},{"$f":"B12/$B$14","v":0.20290399424521077},{"$f":"D11+C12","v":0.7993338060672569},{"$f":"D11+(0.5*C12)","v":0.69788180894465146},{"$f":"SQRT(C12)","v":0.45044865883384622},{"$f":"E12*SQRT(C12)","v":0.31435992486365677},{"$f":"Calculations!AN10/($B$3-1)","v":18444.122953785001},8308.1304478990114,{"$f":"Calculations!AO10/($B$3-1)","v":18400.053725132846},8288.2795229568073,null,null,{"$f":"Calculations!AP10/($B$3-1)","v":307.0040137799968},138.28954626380721,{"$f":"Calculations!AQ10/($B$3-1)","v":305.8595034452768},137.7740031185111,null,null,{"$f":"Calculations!AL10/($B$3-1)","v":8501.6693795770243},3829.565569879248,{"$f":"Calculations!AM10/($B$3-1)","v":8469.4931144615857},3815.0718144117163]
["Q5 (least dep)",{"$f":"Calculations!H11","v":900747},{"$f":"B13/$B$14","v":0.20066619393274301},{"$f":"D12+C13","v":0.99999999999999989},{"$f":"D12+(0.5*C13)","v":0.8996669030336284},{"$f":"SQRT(C13)","v":0.44795780374131561},{"$f":"E13*SQRT(C13)","v":0.40301280998169531},{"$f":"Calculations!AN11/($B$3-1)","v":16404.921966045004},7348.7128144571852,{"$f":"Calculations!AO11/($B$3-1)","v":16364.931692031843},7330.7988591392368,null,null,{"$f":"Calculations!AP11/($B$3-1)","v":226.18716198059693},101.3223043153094,{"$f":"Calculations!AQ11/($B$3-1)","v":225.31201735101897},100.93027644908766,null,null,{"$f":"Calculations!AL11/($B$3-1)","v":6268.2117916075858},2807.8943875539512,{"$f":"Calculations!AM11/($B$3-1)","v":6243.6641987041994},2796.8981017498145]
["Total",{"$f":"SUM(B9:B13)","v":4488783},null,null,null,null,{"$f":"E14*SQRT(D14)","v":0},{"$f":"IF(OR(Calculations!$E$2=\"Orkney Health Board\",Calculations!$E$2=\"Orkney Islands Local Authority\"),AVERAGE(H10:H13),IF(OR(Calculations!$E$2=\"Shetland Health Board\",Calculations!$E$2=\"Western Isles Health Board\",Calculations!$E$2=\"Shetland Islands Local Authority\",Calculations!$E$2=\"Eilean Siar Local Authority\"),AVERAGE(H10:H12),AVERAGE(H9:H13)))","v":21939.692318815003},0,{"$f":"IF(OR(Calculations!$E$2=\"Orkney Health Board\",Calculations!$E$2=\"Orkney Islands Local Authority\"),AVERAGE(J10:J13),IF(OR(Calculations!$E$2=\"Shetland Health Board\",Calculations!$E$2=\"Western Isles Health Board\",Calculations!$E$2=\"Shetland Islands Local Authority\",Calculations!$E$2=\"Eilean Siar Local Authority\"),AVERAGE(J10:J12),AVERAGE(J9:J13)))","v":21889.07916450534},0,null,null,{"$f":"IF(OR(Calculations!$E$2=\"Orkney Health Board\",Calculations!$E$2=\"Orkney Islands Local Authority\"),AVERAGE(N10:N13),IF(OR(Calculations!$E$2=\"Shetland Health Board\",Calculations!$E$2=\"Western Isles Health Board\",Calculations!$E$2=\"Shetland Islands Local Authority\",Calculations!$E$2=\"Eilean Siar Local Authority\"),AVERAGE(N10:N12),AVERAGE(N9:N13)))","v":415.17059980987023},0,{"$f":"IF(OR(Calculations!$E$2=\"Orkney Health Board\",Calculations!$E$2=\"Orkney Islands Local Authority\"),AVERAGE(P10:P13),IF(OR(Calculations!$E$2=\"Shetland Health Board\",Calculations!$E$2=\"Western Isles Health Board\",Calculations!$E$2=\"Shetland Islands Local Authority\",Calculations!$E$2=\"Eilean Siar Local Authority\"),AVERAGE(P10:P12),AVERAGE(P9:P13)))","v":413.73453928284778},0,null,null,{"$f":"IF(OR(Calculations!$E$2=\"Orkney Health Board\",Calculations!$E$2=\"Orkney Islands Local Authority\"),AVERAGE(T10:T13),IF(OR(Calculations!$E$2=\"Shetland Health Board\",Calculations!$E$2=\"Western Isles Health Board\",Calculations!$E$2=\"Shetland Islands Local Authority\",Calculations!$E$2=\"Eilean Siar Local Authority\"),AVERAGE(T10:T12),AVERAGE(T9:T13)))","v":11478.337287696741},0,{"$f":"IF(OR(Calculations!$E$2=\"Orkney Health Board\",Calculations!$E$2=\"Orkney Islands Local Authority\"),AVERAGE(V10:V13),IF(OR(Calculations!$E$2=\"Shetland Health Board\",Calculations!$E$2=\"Western Isles Health Board\",Calculations!$E$2=\"Shetland Islands Local Authority\",Calculations!$E$2=\"Eilean Siar Local Authority\"),AVERAGE(V10:V12),AVERAGE(V9:V13)))","v":11437.865521324373},0]
[null,null,null,null,"Slope Index of Inequality =",null,null,{"$f":"IF(OR(Calculations!$E$2=\"Orkney Health Board\",Calculations!$E$2=\"Orkney Islands Local Authority\"),-LINEST(I10:I13,$F10:$G13,0),IF(OR(Calculations!$E$2=\"Shetland Health Board\",Calculations!$E$2=\"Western Isles Health Board\",Calculations!$E$2=\"Shetland Islands Local Authority\",Calculations!$E$2=\"Eilean Siar Local Authority\"),-LINEST(I10:I12,$F10:$G12,0),-LINEST(I9:I13,$F9:$G13,0)))","v":16090.340555944245},null,{"$f":"IF(OR(Calculations!$E$2=\"Orkney Health Board\",Calculations!$E$2=\"Orkney Islands Local Authority\"),-LINEST(K10:K13,$F10:$G13,0),IF(OR(Calculations!$E$2=\"Shetland Health Board\",Calculations!$E$2=\"Western Isles Health Board\",Calculations!$E$2=\"Shetland Islands Local Authority\",Calculations!$E$2=\"Eilean Siar Local Authority\"),-LINEST(K10:K12,$F10:$G12,0),-LINEST(K9:K13,$F9:$G13,0)))","v":16059.96280322852},null,{"$f":"H15-J15","v":30.377752715725364},{"$f":"L15*100/H15","v":0.18879496434587847},{"$f":"IF(OR(Calculations!$E$2=\"Orkney Health Board\",Calculations!$E$2=\"Orkney Islands Local Authority\"),-LINEST(O10:O13,$F10:$G13,0),IF(OR(Calculations!$E$2=\"Shetland Health Board\",Calculations!$E$2=\"Western Isles Health Board\",Calculations!$E$2=\"Shetland Islands Local Authority\",Calculations!$E$2=\"Eilean Siar Local Authority\"),-LINEST(O10:O12,$F10:$G12,0),-LINEST(O9:O13,$F9:$G13,0)))","v":533.46848173714238},null,{"$f":"IF(OR(Calculations!$E$2=\"Orkney Health Board\",Calculations!$E$2=\"Orkney Islands Local Authority\"),-LINEST(Q10:Q13,$F10:$G13,0),IF(OR(Calculations!$E$2=\"Shetland Health Board\",Calculations!$E$2=\"Western Isles Health Board\",Calculations!$E$2=\"Shetland Islands Local Authority\",Calculations!$E$2=\"Eilean Siar Local Authority\"),-LINEST(Q10:Q12,$F10:$G12,0),-LINEST(Q9:Q13,$F9:$G13,0)))","v":531.95927060593908},null,{"$f":"N15-P15","v":1.5092111312033012},{"$f":"R15*100/N15","v":0.28290539795131509},{"$f":"IF(OR(Calculations!$E$2=\"Orkney Health Board\",Calculations!$E$2=\"Orkney Islands Local Authority\"),-LINEST(U10:U13,$F10:$G13,0),IF(OR(Calculations!$E$2=\"Shetland Health Board\",Calculations!$E$2=\"Western Isles Health Board\",Calculations!$E$2=\"Shetland Islands Local Authority\",Calculations!$E$2=\"Eilean Siar Local Authority\"),-LINEST(U10:U12,$F10:$G12,0),-LINEST(U9:U13,$F9:$G13,0)))","v":14690.304517187824},null,{"$f":"IF(OR(Calculations!$E$2=\"Orkney Health Board\",Calculations!$E$2=\"Orkney Islands Local Authority\"),-LINEST(W10:W13,$F10:$G13,0),IF(OR(Calculations!$E$2=\"Shetland Health Board\",Calculations!$E$2=\"Western Isles Health Board\",Calculations!$E$2=\"Shetland Islands Local Authority\",Calculations!$E$2=\"Eilean Siar Local Authority\"),-LINEST(W10:W12,$F10:$G12,0),-LINEST(W9:W13,$F9:$G13,0)))","v":14647.487628684054},null,{"$f":"T15-V15","v":42.816888503770315},{"$f":"X15*100/T15","v":0.29146358711403203}]
[null,null,null,null,"Relative Index of Inequality =",null,null,{"$f":"H15/H14","v":0.73338952625810161},null,{"$f":"J15/J14","v":0.73369750652968824},null,{"$f":"H16-J16","v":-3.0798027158662755E-4},{"$f":"L16*100/H16","v":-4.1994091892476812E-2},{"$f":"N15/N14","v":1.2849380037542335},null,{"$f":"P15/P14","v":1.285750209610292},null,{"$f":"N16-P16","v":-8.1220585605845663E-4},{"$f":"R16*100/N16","v":-6.3209731028688987E-2},{"$f":"T15/T14","v":1.2798286153286231},null,{"$f":"V15/V14","v":1.2806137300159517},null,{"$f":"T16-V16","v":-7.851146873285586E-4},{"$f":"X16*100/T16","v":-6.1345298731812131E-2}]
[null,null,null,null,"Absolute difference (Q1-Q5) =",null,null,{"$f":"IF(OR(Calculations!$E$2=\"Orkney Health Board\",Calculations!$E$2=\"Orkney Islands Local Authority\"),H10-H13,IF(OR(Calculations!$E$2=\"Shetland Health Board\",Calculations!$E$2=\"Western Isles Health Board\",Calculations!$E$2=\"Shetland Islands Local Authority\",Calculations!$E$2=\"Eilean Siar Local Authority\"),H10-H12,H9-H13))","v":13347.326196375001},null,{"$f":"IF(OR(Calculations!$E$2=\"Orkney Health Board\",Calculations!$E$2=\"Orkney Islands Local Authority\"),J10-J13,IF(OR(Calculations!$E$2=\"Shetland Health Board\",Calculations!$E$2=\"Western Isles Health Board\",Calculations!$E$2=\"Shetland Islands Local Authority\",Calculations!$E$2=\"Eilean Siar Local Authority\"),J10-J12,J9-J13))","v":13322.177411767387},null,{"$f":"H17-J17","v":25.148784607614289},{"$f":"L17*100/H17","v":0.18841814635836535},{"$f":"IF(OR(Calculations!$E$2=\"Orkney Health Board\",Calculations!$E$2=\"Orkney Islands Local Authority\"),N10-N13,IF(OR(Calculations!$E$2=\"Shetland Health Board\",Calculations!$E$2=\"Western Isles Health Board\",Calculations!$E$2=\"Shetland Islands Local Authority\",Calculations!$E$2=\"Eilean Siar Local Authority\"),N10-N12,N9-N13))","v":452.85972769368129},null,{"$f":"IF(OR(Calculations!$E$2=\"Orkney Health Board\",Calculations!$E$2=\"Orkney Islands Local Authority\"),P10-P13,IF(OR(Calculations!$E$2=\"Shetland Health Board\",Calculations!$E$2=\"Western Isles Health Board\",Calculations!$E$2=\"Shetland Islands Local Authority\",Calculations!$E$2=\"Eilean Siar Local Authority\"),P10-P12,P9-P13))","v":451.57764576749537},null,{"$f":"N17-P17","v":1.2820819261859242},{"$f":"R17*100/N17","v":0.28310795767053432},{"$f":"IF(OR(Calculations!$E$2=\"Orkney Health Board\",Calculations!$E$2=\"Orkney Islands Local Authority\"),T10-T13,IF(OR(Calculations!$E$2=\"Shetland Health Board\",Calculations!$E$2=\"Western Isles Health Board\",Calculations!$E$2=\"Shetland Islands Local Authority\",Calculations!$E$2=\"Eilean Siar Local Authority\"),T10-T12,T9-T13))","v":12467.788608299079},null,{"$f":"IF(OR(Calculations!$E$2=\"Orkney Health Board\",Calculations!$E$2=\"Orkney Islands Local Authority\"),V10-V13,IF(OR(Calculations!$E$2=\"Shetland Health Board\",Calculations!$E$2=\"Western Isles Health Board\",Calculations!$E$2=\"Shetland Islands Local Authority\",Calculations!$E$2=\"Eilean Siar Local Authority\"),V10-V12,V9-V13))","v":12431.481245125997},null,{"$f":"T17-V17","v":36.307363173082194},{"$f":"X17*100/T17","v":0.29120932599799215}]
[null,null,null,null,"Relative difference (Q1/Q5) =",null,null,{"$f":"IF(OR(Calculations!$E$2=\"Orkney Health Board\",Calculations!$E$2=\"Orkney Islands Local Authority\"),H10/H13,IF(OR(Calculations!$E$2=\"Shetland Health Board\",Calculations!$E$2=\"Western Isles Health Board\",Calculations!$E$2=\"Shetland Islands Local Authority\",Calculations!$E$2=\"Eilean Siar Local Authority\"),H10/H12,H9/H13))","v":1.8136171707492037},null,{"$f":"IF(OR(Calculations!$E$2=\"Orkney Health Board\",Calculations!$E$2=\"Orkney Islands Local Authority\"),J10/J13,IF(OR(Calculations!$E$2=\"Shetland Health Board\",Calculations!$E$2=\"Western Isles Health Board\",Calculations!$E$2=\"Shetland Islands Local Authority\",Calculations!$E$2=\"Eilean Siar Local Authority\"),J10/J12,J9/J13))","v":1.8140686232289018},null,{"$f":"H18-J18","v":-4.514524796981334E-4},{"$f":"L18*100/H18","v":-2.4892380099800156E-2},{"$f":"IF(OR(Calculations!$E$2=\"Orkney Health Board\",Calculations!$E$2=\"Orkney Islands Local Authority\"),N10/N13,IF(OR(Calculations!$E$2=\"Shetland Health Board\",Calculations!$E$2=\"Western Isles Health Board\",Calculations!$E$2=\"Shetland Islands Local Authority\",Calculations!$E$2=\"Eilean Siar Local Authority\"),N10/N12,N9/N13))","v":3.0021460268931137},null,{"$f":"IF(OR(Calculations!$E$2=\"Orkney Health Board\",Calculations!$E$2=\"Orkney Islands Local Authority\"),P10/P13,IF(OR(Calculations!$E$2=\"Shetland Health Board\",Calculations!$E$2=\"Western Isles Health Board\",Calculations!$E$2=\"Shetland Islands Local Authority\",Calculations!$E$2=\"Eilean Siar Local Authority\"),P10/P12,P9/P13))","v":3.0042324021446749},null,{"$f":"N18-P18","v":-2.08637525156119E-3},{"$f":"R18*100/N18","v":-6.9496128198679119E-2},{"$f":"IF(OR(Calculations!$E$2=\"Orkney Health Board\",Calculations!$E$2=\"Orkney Islands Local Authority\"),T10/T13,IF(OR(Calculations!$E$2=\"Shetland Health Board\",Calculations!$E$2=\"Western Isles Health Board\",Calculations!$E$2=\"Shetland Islands Local Authority\",Calculations!$E$2=\"Eilean Siar Local Authority\"),T10/T12,T9/T13))","v":2.9890503101685257},null,{"$f":"IF(OR(Calculations!$E$2=\"Orkney Health Board\",Calculations!$E$2=\"Orkney Islands Local Authority\"),V10/V13,IF(OR(Calculations!$E$2=\"Shetland Health Board\",Calculations!$E$2=\"Western Isles Health Board\",Calculations!$E$2=\"Shetland Islands Local Authority\",Calculations!$E$2=\"Eilean Siar Local Authority\"),V10/V12,V9/V13))","v":2.9910553882295603},null,{"$f":"T18-V18","v":-2.0050780610345598E-3},{"$f":"X18*100/T18","v":-6.7080773254750314E-2}]

{"sheet":"Health outcome totals 2016","index":8,"n_rows":17,"n_cols":56,"rows_kept":17,"cut":false,"hidden":true,"merged":[]}
["Health outcome totals, 2016"]
[]
[null,null,"Aberdeen City Local Authority","Aberdeen City Region Deal","Aberdeenshire Local Authority","Angus Local Authority","Argyll & Bute Local Authority","Ayrshire & Arran Health Board","Borders Health Board","Clackmannanshire & Stirling IJB","Clackmannanshire Local Authority","Dumfries & Galloway Health Board","Dumfries & Galloway Local Authority","Dundee City Local Authority","East Ayrshire Local Authority","East Dunbartonshire Local Authority","East Lothian Local Authority","East Renfrewshire Local Authority","Edinburgh & SE Scotland City Region Deal","Edinburgh, City of Local Authority","Eilean Siar Local Authority","Falkirk Local Authority","Fife Health Board","Fife Local Authority","Forth Valley Health Board","Glasgow City Local Authority","Glasgow City Region Deal","Grampian Health Board","Greater Glasgow & Clyde Health Board","Highland Health Board","Highland Local Authority","Inverclyde Local Authority","Inverness & Highland City Region Deal","Lanarkshire Health Board","Lothian Health Board","Midlothian Local Authority","Moray Local Authority","North Ayrshire Local Authority","North Lanarkshire Local Authority","Orkney Health Board","Orkney Islands Local Authority","Perth & Kinross Local Authority","Renfrewshire Local Authority","Scotland","Scottish Borders Local Authority","Shetland Health Board","Shetland Islands Local Authority","South Ayrshire Local Authority","South Lanarkshire Local Authority","Stirling Local Authority","Tay Cities Region Deal ","Tayside Health Board","West Dunbartonshire Local Authority","West Lothian Local Authority","Western Isles Health Board",1]
[null,null,"S12000033","Aber_deal","S12000034","S12000041","S12000035","S08000015","S08000016","ClacksStirIJB","S12000005","S08000017","S12000006","S12000042","S12000008","S12000045","S12000010","S12000011","EdinSE_deal","S12000036","S12000013","S12000014","S08000018","S12000015","S08000019","S12000046","GClyde_deal","S08000020","S08000021","S08000022","S12000017","S12000018","Inver_deal","S08000023","S08000024","S12000019","S12000020","S12000021","S12000044","S08000025","S12000023","S12000024","S12000038","S00000001","S12000026","S08000026","S12000027","S12000028","S12000029","S12000030","Tay_deal","S08000027","S12000039","S12000040","S08000028",2]
[null,null,null,null,null,null,null,null,null,null,null,null,null,null,null,null,null,null,null,null,null,null,null,null,null,null,null,null,null,null,null,null,null,null,null,null,null,null,null,null,null,null,null,null,null,null,null,null,null,null,null,null,null,null,null,3]
[null,"All hospital admissions (16+)",41626,84145,42519,18091,21023,90768,25209,20471,7651,34490,34490,23727,28249,28833,18105,21705,243108,77192,7253,24369,73148,73148,44840,155175,465272,101100,299797,63264,42241,21552,42241,165475,144751,16294,16955,33649,88230,4636,4636,23268,47578,1125093,25209,5276,5276,28870,77245,12820,138234,65086,24954,33160,7253,4]
[null,"All hospital admissions (SIMD Q1, 16+)",4722,5748,1026,1291,1909,30005,1818,4205,2064,3291,3291,9713,9944,1787,691,1667,41988,13947,0,4489,16974,16974,8694,88379,175909,5919,127063,5479,3570,10387,3570,48846,23196,1769,171,14603,30793,0,0,1429,14646,283718,1818,0,0,5458,18053,2141,29407,12433,10197,6789,0,5]
[null,"All hospital admissions (SIMD Q1 and Q2, 16+)",15717,21194,5477,4707,5862,52925,6550,8550,4153,13054,13054,14796,17671,7386,6437,3905,98104,26095,1759,12454,34033,34033,21004,114868,279835,24321,181891,18570,12708,13017,12708,97944,57521,8106,3127,21482,57322,758,758,4360,25069,534382,6550,189,189,13772,40622,4397,57896,23863,17646,16883,1759,6]
[null,"All deaths (16+)",2126,4486,2360,1434,1110,4492,1277,1445,546,1858,1858,1690,1454,1113,1001,883,13129,4361,359,1734,4091,4091,3179,6321,19540,5465,12443,3507,2397,1006,2397,7097,7761,848,979,1593,3569,223,223,1617,2070,56725,1277,232,232,1445,3528,899,8832,4741,1050,1551,359,7]
[null,"All deaths (SIMD Q1, 16+)",202,270,68,101,108,1512,66,296,141,153,153,703,542,54,27,76,2183,793,0,306,909,909,602,3747,7764,282,5491,286,178,495,178,2273,1208,86,12,699,1432,0,0,79,684,13665,66,0,0,271,841,155,1792,883,435,302,0,8]
[null,"All deaths (SIMD Q1 and Q2, 16+)",759,1068,309,366,335,2716,302,581,291,699,699,1072,985,270,354,152,5276,1482,88,941,1903,1903,1522,4890,12279,1233,7808,1019,684,593,684,4471,3071,440,165,1017,2551,35,35,252,1137,26567,302,10,10,714,1920,290,3593,1690,766,795,88,9]
[null,"Premature deaths (16+)",811,1608,797,476,393,1746,418,519,224,616,616,687,565,356,362,248,4764,1514,133,665,1511,1511,1184,2759,7841,1940,4946,1277,884,382,884,2895,2835,327,332,659,1546,66,66,520,784,21313,418,63,63,522,1349,295,3194,1683,417,632,133,10]
[null,"Premature deaths (SIMD Q1, 16+)",107,137,30,43,47,690,33,124,56,77,77,368,228,26,18,35,1042,380,0,144,431,431,268,1758,3631,142,2540,142,95,222,95,1091,578,43,5,329,672,0,0,40,308,6443,33,0,0,133,419,68,882,451,191,137,0,11]
[null,"Premature deaths (SIMD Q1 and Q2, 16+)",364,493,129,150,141,1182,114,247,124,288,288,516,405,100,145,71,2222,649,42,398,801,801,645,2232,5428,569,3464,449,308,273,308,1964,1307,173,76,469,1151,10,10,112,460,11618,114,5,5,308,813,123,1579,778,328,340,42,12]
[null,"Years of Life Lost (16+)",27478.849984764998,54444.2399408817,26965.3899561166,16090.8199598789,12686.9499692916,56848.409873366298,13994.529939413,17303.359948515801,7163.6299738883899,21118.8499506712,21118.8499506712,23122.199981927799,17993.719950675899,12374.2699501514,12200.3899704217,9172.4499734640103,160653.58962154301,53280.459909200603,4023.4899880886001,22452.289941430001,50451.919886112199,50451.919886112199,39755.649889945897,89197.719813108401,256885.999366998,65559.529895305604,162663.369581103,41357.789903044701,28670.839933752999,12320.2399550676,28670.839933752999,94222.629785895304,96207.1397960186,10264.6499630212,11115.289954423901,21125.3999617099,49180.329858660698,2374.0299997329698,2374.0299997329698,18424.4199427366,25842.089928984598,708624.04837918223,13994.529939413,2409.2700059413901,2409.2700059413901,17729.289960980401,45042.299927234599,10139.7299746275,108089.35977065501,57637.439884543397,13756.599960327099,20461.639953374801,4023.4899880886001,13]
[null,"Years of Life Lost (SIMD Q1, 16+)",3295.92993164062,4366.02978515625,1070.09997558593,1397.83996582031,1470.84997558593,22073.8203125,964.219970703125,4154.080078125,1917.78002929687,2255.6298828125,2255.6298828125,11311.849609375,7246.14013671875,801.34997558593705,506.52999877929602,1143.19995117187,33291.8515625,12423.990234375,0,4594.18994140625,13844.83984375,13844.83984375,8748.26953125,55460.6796875,114187.4921875,4533.0498046875,80170.8125,4432.89990234375,2962.05004882812,6832.72021484375,2962.05004882812,34016.6796875,18482.7890625,1343.33996582031,167.02000427246,10474.1796875,20828.01953125,0,0,1313.01000976562,9733.16015625,203545.71069335938,964.219970703125,0,0,4353.5,13188.66015625,2236.30004882812,27867.5390625,14022.7001953125,6199.7001953125,4208.93017578125,0,14]
[null,"Years of Life Lost (SIMD Q1 and Q2, 16+)",11539.6896972656,15803.310058593701,4263.6199951171802,4814.6199951171802,4330.8499755859302,37723.6103515625,3783.65991210937,8139.5300292968705,4124.93994140625,9004.40966796875,9004.40966796875,16525.039550781199,12834.580078125,3274.6199951171802,4628.5700378417896,2192.68994140625,71927.140625,21426.830078125,1201.05004882812,13288.649902343701,25972.349609375,25972.349609375,21428.1796875,71527.9296875,173737.29296875,18071.849609375,110859.11328125,13808.199707031201,9477.3498535156195,8312.5902099609302,9477.3498535156195,62878.1796875,42171.12890625,5422.7598876953098,2268.54002380371,14767.939453125,36228.279296875,369.36999511718699,369.36999511718699,3594.6298828125,14987.880371093701,372328.97050476068,3783.65991210937,123.58000183105401,123.58000183105401,10121.08984375,26649.900390625,4014.59008789062,50906.638671875,24934.2900390625,10563.400390625,10692.970214843701,1201.05004882812,15]

{"sheet":"Lists","index":9,"n_rows":85,"n_cols":12,"rows_kept":85,"cut":false,"hidden":true,"merged":[]}
["AREA LOOK-UP",null,null,"AREA name","Equivalent to",null,"AREA CODE LOOK-UP",null,"INTERVENTIONS",null,"TARGETING OPTIONS"]
[1,"Scotland",null,"Aberdeen City IJB","Aberdeen City Local Authority",null,"Scotland","S00000001",1,"Smoking cessation services",1,"Even distribution"]
[2,"Ayrshire & Arran Health Board",null,"Aberdeen City Local Authority","Aberdeen City Local Authority",null,"Ayrshire & Arran Health Board","S08000015",null,null,2,"Targeting to SIMD Q1"]
[3,"Borders Health Board",null,"Aberdeen City Region Deal","Aberdeen City Region Deal",null,"Borders Health Board","S08000016",null,null,3,"Targeting to SIMD Q1 & Q2"]
[4,"Dumfries & Galloway Health Board",null,"Aberdeenshire IJB","Aberdeenshire Local Authority",null,"Dumfries & Galloway Health Board","S08000017",null,null,4,"Proportionate to need"]
[5,"Fife Health Board",null,"Aberdeenshire Local Authority","Aberdeenshire Local Authority",null,"Fife Health Board","S08000018"]
[6,"Forth Valley Health Board",null,"Angus IJB","Angus Local Authority",null,"Forth Valley Health Board","S08000019"]
[7,"Grampian Health Board",null,"Angus Local Authority","Angus Local Authority",null,"Grampian Health Board","S08000020"]
[8,"Greater Glasgow & Clyde Health Board",null,"Argyll & Bute IJB","Argyll & Bute Local Authority",null,"Greater Glasgow & Clyde Health Board","S08000021"]
[9,"Highland Health Board",null,"Argyll & Bute Local Authority","Argyll & Bute Local Authority",null,"Highland Health Board","S08000022"]
[10,"Lanarkshire Health Board",null,"Ayrshire & Arran Health Board","Ayrshire & Arran Health Board",null,"Lanarkshire Health Board","S08000023"]
[11,"Lothian Health Board",null,"Borders Health Board","Borders Health Board",null,"Lothian Health Board","S08000024"]
[12,"Orkney Health Board",null,"Clackmannanshire & Stirling IJB","Clackmannanshire & Stirling IJB",null,"Orkney Health Board","S08000025"]
[13,"Shetland Health Board",null,"Clackmannanshire Local Authority","Clackmannanshire Local Authority",null,"Shetland Health Board","S08000026"]
[14,"Tayside Health Board",null,"Dumfries & Galloway Health Board","Dumfries & Galloway Health Board",null,"Tayside Health Board","S08000027"]
[15,"Western Isles Health Board",null,"Dumfries & Galloway IJB","Dumfries & Galloway Local Authority",null,"Western Isles Health Board","S08000028"]
[16,"Aberdeen City Local Authority",null,"Dumfries & Galloway Local Authority","Dumfries & Galloway Local Authority",null,"Clackmannanshire Local Authority","S12000005"]
[17,"Aberdeenshire Local Authority",null,"Dundee City IJB","Dundee City Local Authority",null,"Dumfries & Galloway Local Authority","S12000006"]
[18,"Angus Local Authority",null,"Dundee City Local Authority","Dundee City Local Authority",null,"East Ayrshire Local Authority","S12000008"]
[19,"Argyll & Bute Local Authority",null,"East Ayrshire IJB","East Ayrshire Local Authority",null,"East Lothian Local Authority","S12000010"]
[20,"Clackmannanshire Local Authority",null,"East Ayrshire Local Authority","East Ayrshire Local Authority",null,"East Renfrewshire Local Authority","S12000011"]
[21,"Dumfries & Galloway Local Authority",null,"East Dunbartonshire IJB","East Dunbartonshire Local Authority",null,"Eilean Siar Local Authority","S12000013"]
[22,"Dundee City Local Authority",null,"East Dunbartonshire Local Authority","East Dunbartonshire Local Authority",null,"Falkirk Local Authority","S12000014"]
[23,"East Ayrshire Local Authority",null,"East Lothian IJB","East Lothian Local Authority",null,"Fife Local Authority","S12000015"]
[24,"East Dunbartonshire Local Authority",null,"East Lothian Local Authority","East Lothian Local Authority",null,"Highland Local Authority","S12000017"]
[25,"East Lothian Local Authority",null,"East Renfrewshire IJB","East Renfrewshire Local Authority",null,"Inverclyde Local Authority","S12000018"]
[26,"East Renfrewshire Local Authority",null,"East Renfrewshire Local Authority","East Renfrewshire Local Authority",null,"Midlothian Local Authority","S12000019"]
[27,"Edinburgh, City of Local Authority",null,"Edinburgh & SE Scotland City Region Deal","Edinburgh & SE Scotland City Region Deal",null,"Moray Local Authority","S12000020"]
[28,"Eilean Siar Local Authority",null,"Edinburgh, City of Local Authority","Edinburgh, City of Local Authority",null,"North Ayrshire Local Authority","S12000021"]
[29,"Falkirk Local Authority",null,"Edinburgh, City of, IJB","Edinburgh, City of Local Authority",null,"Orkney Islands Local Authority","S12000023"]
[30,"Fife Local Authority",null,"Eilean Siar IJB","Eilean Siar Local Authority",null,"Perth & Kinross Local Authority","S12000024"]
[31,"Glasgow City Local Authority",null,"Eilean Siar Local Authority","Eilean Siar Local Authority",null,"Scottish Borders Local Authority","S12000026"]
[32,"Highland Local Authority",null,"Falkirk IJB","Falkirk Local Authority",null,"Shetland Islands Local Authority","S12000027"]
[33,"Inverclyde Local Authority",null,"Falkirk Local Authority","Falkirk Local Authority",null,"South Ayrshire Local Authority","S12000028"]
[34,"Midlothian Local Authority",null,"Fife Health Board","Fife Health Board",null,"South Lanarkshire Local Authority","S12000029"]
[35,"Moray Local Authority",null,"Fife IJB","Fife Local Authority",null,"Stirling Local Authority","S12000030"]
[36,"North Ayrshire Local Authority",null,"Fife Local Authority","Fife Local Authority",null,"Aberdeen City Local Authority","S12000033"]
[37,"North Lanarkshire Local Authority",null,"Forth Valley Health Board","Forth Valley Health Board",null,"Aberdeenshire Local Authority","S12000034"]
[38,"Orkney Islands Local Authority",null,"Glasgow City IJB","Glasgow City Local Authority",null,"Argyll & Bute Local Authority","S12000035"]
[39,"Perth & Kinross Local Authority",null,"Glasgow City Local Authority","Glasgow City Local Authority",null,"Edinburgh, City of Local Authority","S12000036"]
[40,"Renfrewshire Local Authority",null,"Glasgow City Region Deal","Glasgow City Region Deal",null,"Renfrewshire Local Authority","S12000038"]
[41,"Scottish Borders Local Authority",null,"Grampian Health Board","Grampian Health Board",null,"West Dunbartonshire Local Authority","S12000039"]
[42,"Shetland Islands Local Authority",null,"Greater Glasgow & Clyde Health Board","Greater Glasgow & Clyde Health Board",null,"West Lothian Local Authority","S12000040"]
[43,"South Ayrshire Local Authority",null,"Highland Health Board","Highland Health Board",null,"Angus Local Authority","S12000041"]
[44,"South Lanarkshire Local Authority",null,"Highland Local Authority","Highland Local Authority",null,"Dundee City Local Authority","S12000042"]
[45,"Stirling Local Authority",null,"Highland Partnership","Highland Local Authority",null,"North Lanarkshire Local Authority","S12000044"]
[46,"West Dunbartonshire Local Authority",null,"Inverclyde IJB","Inverclyde Local Authority",null,"East Dunbartonshire Local Authority","S12000045"]
[47,"West Lothian Local Authority",null,"Inverclyde Local Authority","Inverclyde Local Authority",null,"Glasgow City Local Authority","S12000046"]
[48,"Aberdeen City Region Deal",null,"Inverness & Highland City Region Deal","Inverness & Highland City Region Deal"]
[49,"Edinburgh & SE Scotland City Region Deal",null,"Lanarkshire Health Board","Lanarkshire Health Board"]
[50,"Glasgow City Region Deal",null,"Lothian Health Board","Lothian Health Board"]
[51,"Inverness & Highland City Region Deal",null,"Midlothian IJB","Midlothian Local Authority"]
[52,"Stirling & Clackmannanshire City Region Deal",null,"Midlothian Local Authority","Midlothian Local Authority"]
[53,"Tay Cities Region Deal ",null,"Moray IJB","Moray Local Authority"]
[54,"Aberdeen City IJB",null,"Moray Local Authority","Moray Local Authority"]
[55,"Aberdeenshire IJB",null,"North Ayrshire IJB","North Ayrshire Local Authority"]
[56,"Angus IJB",null,"North Ayrshire Local Authority","North Ayrshire Local Authority"]
[57,"Argyll & Bute IJB",null,"North Lanarkshire IJB","North Lanarkshire Local Authority"]
[58,"Clackmannanshire & Stirling IJB",null,"North Lanarkshire Local Authority","North Lanarkshire Local Authority"]
[59,"Dumfries & Galloway IJB",null,"Orkney Health Board","Orkney Health Board"]
[60,"Dundee City IJB",null,"Orkney Islands IJB","Orkney Islands Local Authority"]
[61,"East Ayrshire IJB",null,"Orkney Islands Local Authority","Orkney Islands Local Authority"]
[62,"East Dunbartonshire IJB",null,"Perth & Kinross IJB","Perth & Kinross Local Authority"]
[63,"East Lothian IJB",null,"Perth & Kinross Local Authority","Perth & Kinross Local Authority"]
[64,"East Renfrewshire IJB",null,"Renfrewshire IJB","Renfrewshire Local Authority"]
[65,"Edinburgh, City of, IJB",null,"Renfrewshire Local Authority","Renfrewshire Local Authority"]
[66,"Eilean Siar IJB",null,"Scotland","Scotland"]
[67,"Falkirk IJB",null,"Scottish Borders IJB","Scottish Borders Local Authority"]
[68,"Fife IJB",null,"Scottish Borders Local Authority","Scottish Borders Local Authority"]
[69,"Glasgow City IJB",null,"Shetland Health Board","Shetland Health Board"]
[70,"Highland Partnership",null,"Shetland Islands IJB","Shetland Islands Local Authority"]
[71,"Inverclyde IJB",null,"Shetland Islands Local Authority","Shetland Islands Local Authority"]
[72,"Midlothian IJB",null,"South Ayrshire IJB","South Ayrshire Local Authority"]
[73,"Moray IJB",null,"South Ayrshire Local Authority","South Ayrshire Local Authority"]
[74,"North Ayrshire IJB",null,"South Lanarkshire IJB","South Lanarkshire Local Authority"]
[75,"North Lanarkshire IJB",null,"South Lanarkshire Local Authority","South Lanarkshire Local Authority"]
[76,"Orkney Islands IJB",null,"Stirling & Clackmannanshire City Region Deal","Clackmannanshire & Stirling IJB"]
[77,"Perth & Kinross IJB",null,"Stirling Local Authority","Stirling Local Authority"]
[78,"Renfrewshire IJB",null,"Tay Cities Region Deal ","Tay Cities Region Deal "]
[79,"Scottish Borders IJB",null,"Tayside Health Board","Tayside Health Board"]
[80,"Shetland Islands IJB",null,"West Dunbartonshire IJB","West Dunbartonshire Local Authority"]
[81,"South Ayrshire IJB",null,"West Dunbartonshire Local Authority","West Dunbartonshire Local Authority"]
[82,"South Lanarkshire IJB",null,"West Lothian IJB","West Lothian Local Authority"]
[83,"West Dunbartonshire IJB",null,"West Lothian Local Authority","West Lothian Local Authority"]
[84,"West Lothian IJB",null,"Western Isles Health Board","Western Isles Health Board"]

{"sheet":"Demographic data","index":10,"n_rows":41,"n_cols":4,"rows_kept":41,"cut":false,"hidden":true,"merged":[]}
["Demographic data"]
[]
["sub group","European Standard Population (ESP 2013)","mean age (2016)","life expectancy (2014-2016)"]
["Female 0-4",5000,2.0384009999999999,81.468401]
["Female 5-9",5500,6.9792800000000002,81.439279999999997]
["Female 10-15",6600,12.47831,81.948309999999992]
["Female 16-19",4400,17.570049999999998,81.100049999999996]
["Female 20-24",6000,22.077059999999999,81.667060000000006]
["Female 25-29",6000,26.975190000000001,81.645189999999999]
["Female 30-34",6500,31.9999,81.799899999999994]
["Female 35-39",7000,36.918120000000002,81.898120000000006]
["Female 40-44",7000,42.077440000000003,82.30744]
["Female 45-49",7000,47.025770000000001,82.585769999999997]
["Female 50-54",7000,51.990830000000003,82.980829999999997]
["Female 55-59",6500,56.953040000000001,83.473039999999997]
["Female 60-64",6000,61.947389999999999,84.167389999999997]
["Female 65-69",5500,67.063929999999999,85.193929999999995]
["Female 70-74",5000,71.938159999999996,86.248159999999999]
["Female 75-79",4000,76.942830000000001,87.812830000000005]
["Female 80-84",2500,81.856710000000007,89.736710000000002]
["Female 85-89",1500,86.730819999999994,92.220819999999989]
["Female 90+",1000,92.779340000000005,96.279340000000005]
["Male 0-4",5000,2.0320819999999999,77.402082000000007]
["Male 5-9",5500,6.9784759999999997,77.398476000000002]
["Male 10-15",6600,12.47114,77.921140000000008]
["Male 16-19",4400,17.556319999999999,77.07632000000001]
["Male 20-24",6000,22.05463,77.704629999999995]
["Male 25-29",6000,26.959759999999999,77.789760000000001]
["Male 30-34",6500,31.98152,78.061520000000002]
["Male 35-39",7000,36.926009999999998,78.336009999999987]
["Male 40-44",7000,42.067700000000002,78.907700000000006]
["Male 45-49",7000,47.038150000000002,79.418149999999997]
["Male 50-54",7000,51.998649999999998,79.988649999999993]
["Male 55-59",6500,56.950870000000002,80.660870000000003]
["Male 60-64",6000,61.942990000000002,81.612989999999996]
["Male 65-69",5500,67.054419999999993,82.954419999999999]
["Male 70-74",5000,71.891099999999994,84.341099999999997]
["Male 75-79",4000,76.907700000000006,86.357700000000008]
["Male 80-84",2500,81.797089999999997,88.627089999999995]
["Male 85-89",1500,86.630750000000006,91.420750000000012]
["Male 90+",1000,92.215479999999999,95.515479999999997]

{"sheet":"Prevalence Rates","index":11,"n_rows":254,"n_cols":56,"rows_kept":254,"cut":false,"hidden":true,"merged":[]}
["Prevalence of smoking"]
[]
["SIMD","group","Aberdeen City Local Authority","Aberdeen City Region Deal","Aberdeenshire Local Authority","Angus Local Authority","Argyll & Bute Local Authority","Ayrshire & Arran Health Board","Borders Health Board","Clackmannanshire & Stirling IJB","Clackmannanshire Local Authority","Dumfries & Galloway Health Board","Dumfries & Galloway Local Authority","Dundee City Local Authority","East Ayrshire Local Authority","East Dunbartonshire Local Authority","East Lothian Local Authority","East Renfrewshire Local Authority","Edinburgh & SE Scotland City Region Deal","Edinburgh, City of Local Authority","Eilean Siar Local Authority","Falkirk Local Authority","Fife Health Board","Fife Local Authority","Forth Valley Health Board","Glasgow City Local Authority","Glasgow City Region Deal","Grampian Health Board","Greater Glasgow & Clyde Health Board","Highland Health Board","Highland Local Authority","Inverclyde Local Authority","Inverness & Highland City Region Deal","Lanarkshire Health Board","Lothian Health Board","Midlothian Local Authority","Moray Local Authority","North Ayrshire Local Authority","North Lanarkshire Local Authority","Orkney Health Board","Orkney Islands Local Authority","Perth & Kinross Local Authority","Renfrewshire Local Authority","Scotland","Scottish Borders Local Authority","Shetland Health Board","Shetland Islands Local Authority","South Ayrshire Local Authority","South Lanarkshire Local Authority","Stirling Local Authority","Tay Cities Region Deal ","Tayside Health Board","West Dunbartonshire Local Authority","West Lothian Local Authority","Western Isles Health Board",1]
[null,null,null,null,null,null,null,null,null,null,null,null,null,null,null,null,null,null,null,null,null,null,null,null,null,null,null,null,null,null,null,null,null,null,null,null,null,null,null,null,null,null,null,null,null,null,null,null,null,null,null,null,null,null,null,2]
["All quintiles","16+ Males and Females",null,null,null,null,null,null,null,null,null,null,null,null,null,null,null,null,null,null,null,null,null,null,null,null,null,null,null,null,null,null,null,null,null,null,null,null,null,null,null,null,null,null,null,null,null,null,null,null,null,null,null,null,null,3]
["Q1 and Q2","16+ Males and Females",null,null,null,null,null,null,null,null,null,null,null,null,null,null,null,null,null,null,null,null,null,null,null,null,null,null,null,null,null,null,null,null,null,null,null,null,null,null,null,null,null,null,null,null,null,null,null,null,null,null,null,null,null,4]
["SIMD Q1 (most deprived)","16+ Males and Females",null,null,null,null,null,null,null,null,null,null,null,null,null,null,null,null,null,null,null,null,null,null,null,null,null,null,null,null,null,null,null,null,null,null,null,null,null,null,null,null,null,null,null,null,null,null,null,null,null,null,null,null,null,5]
["SIMD Q2",null,null,null,null,null,null,null,null,null,null,null,null,null,null,null,null,null,null,null,null,null,null,null,null,null,null,null,null,null,null,null,null,null,null,null,null,null,null,null,null,null,null,null,null,null,null,null,null,null,null,null,null,null,null,6]
["SIMD Q3",null,null,null,null,null,null,null,null,null,null,null,null,null,null,null,null,null,null,null,null,null,null,null,null,null,null,null,null,null,null,null,null,null,null,null,null,null,null,null,null,null,null,null,null,null,null,null,null,null,null,null,null,null,null,7]
["SIMD Q4",null,null,null,null,null,null,null,null,null,null,null,null,null,null,null,null,null,null,null,null,null,null,null,null,null,null,null,null,null,null,null,null,null,null,null,null,null,null,null,null,null,null,null,null,null,null,null,null,null,null,null,null,null,null,8]
["SIMD Q5 (least deprived)",null,null,null,null,null,null,null,null,null,null,null,null,null,null,null,null,null,null,null,null,null,null,null,null,null,null,null,null,null,null,null,null,null,null,null,null,null,null,null,null,null,null,null,null,null,null,null,null,null,null,null,null,null,null,9]
["SIMD Q1 (most deprived)","16+ Females",null,null,null,null,null,null,null,null,null,null,null,null,null,null,null,null,null,null,null,null,null,null,null,null,null,null,null,null,null,null,null,null,null,null,null,null,null,null,null,null,null,null,null,null,null,null,null,null,null,null,null,null,null,10]
["SIMD Q2",null,null,null,null,null,null,null,null,null,null,null,null,null,null,null,null,null,null,null,null,null,null,null,null,null,null,null,null,null,null,null,null,null,null,null,null,null,null,null,null,null,null,null,null,null,null,null,null,null,null,null,null,null,null,11]
["SIMD Q3",null,null,null,null,null,null,null,null,null,null,null,null,null,null,null,null,null,null,null,null,null,null,null,null,null,null,null,null,null,null,null,null,null,null,null,null,null,null,null,null,null,null,null,null,null,null,null,null,null,null,null,null,null,null,12]
["SIMD Q4",null,null,null,null,null,null,null,null,null,null,null,null,null,null,null,null,null,null,null,null,null,null,null,null,null,null,null,null,null,null,null,null,null,null,null,null,null,null,null,null,null,null,null,null,null,null,null,null,null,null,null,null,null,null,13]
["SIMD Q5 (least deprived)",null,null,null,null,null,null,null,null,null,null,null,null,null,null,null,null,null,null,null,null,null,null,null,null,null,null,null,null,null,null,null,null,null,null,null,null,null,null,null,null,null,null,null,null,null,null,null,null,null,null,null,null,null,null,14]
["SIMD Q1 (most deprived)","16+ Males",null,null,null,null,null,null,null,null,null,null,null,null,null,null,null,null,null,null,null,null,null,null,null,null,null,null,null,null,null,null,null,null,null,null,null,null,null,null,null,null,null,null,null,null,null,null,null,null,null,null,null,null,null,15]
["SIMD Q2",null,null,null,null,null,null,null,null,null,null,null,null,null,null,null,null,null,null,null,null,null,null,null,null,null,null,null,null,null,null,null,null,null,null,null,null,null,null,null,null,null,null,null,null,null,null,null,null,null,null,null,null,null,null,16]
["SIMD Q3",null,null,null,null,null,null,null,null,null,null,null,null,null,null,null,null,null,null,null,null,null,null,null,null,null,null,null,null,null,null,null,null,null,null,null,null,null,null,null,null,null,null,null,null,null,null,null,null,null,null,null,null,null,null,17]
["SIMD Q4",null,null,null,null,null,null,null,null,null,null,null,null,null,null,null,null,null,null,null,null,null,null,null,null,null,null,null,null,null,null,null,null,null,null,null,null,null,null,null,null,null,null,null,null,null,null,null,null,null,null,null,null,null,null,18]
["SIMD Q5 (least deprived)",null,null,null,null,null,null,null,null,null,null,null,null,null,null,null,null,null,null,null,null,null,null,null,null,null,null,null,null,null,null,null,null,null,null,null,null,null,null,null,null,null,null,null,null,null,null,null,null,null,null,null,null,null,null,19]
["All quintiles","Female 0-4",null,null,null,null,null,null,null,null,null,null,null,null,null,null,null,null,null,null,null,null,null,null,null,null,null,null,null,null,null,null,null,null,null,null,null,null,null,null,null,null,null,null,null,null,null,null,null,null,null,null,null,null,null,20]
[null,"Female 5-9",null,null,null,null,null,null,null,null,null,null,null,null,null,null,null,null,null,null,null,null,null,null,null,null,null,null,null,null,null,null,null,null,null,null,null,null,null,null,null,null,null,null,null,null,null,null,null,null,null,null,null,null,null,21]
[null,"Female 10-15",null,null,null,null,null,null,null,null,null,null,null,null,null,null,null,null,null,null,null,null,null,null,null,null,null,null,null,null,null,null,null,null,null,null,null,null,null,null,null,null,null,null,null,null,null,null,null,null,null,null,null,null,null,22]
[null,"Female 16-19",null,null,null,null,null,null,null,null,null,null,null,null,null,null,null,null,null,null,null,null,null,null,null,null,null,null,null,null,null,null,null,null,null,null,null,null,null,null,null,null,null,null,null,null,null,null,null,null,null,null,null,null,null,23]
[null,"Female 20-24",null,null,null,null,null,null,null,null,null,null,null,null,null,null,null,null,null,null,null,null,null,null,null,null,null,null,null,null,null,null,null,null,null,null,null,null,null,null,null,null,null,null,null,null,null,null,null,null,null,null,null,null,null,24]
[null,"Female 25-29",null,null,null,null,null,null,null,null,null,null,null,null,null,null,null,null,null,null,null,null,null,null,null,null,null,null,null,null,null,null,null,null,null,null,null,null,null,null,null,null,null,null,null,null,null,null,null,null,null,null,null,null,null,25]
[null,"Female 30-34",null,null,null,null,null,null,null,null,null,null,null,null,null,null,null,null,null,null,null,null,null,null,null,null,null,null,null,null,null,null,null,null,null,null,null,null,null,null,null,null,null,null,null,null,null,null,null,null,null,null,null,null,null,26]
[null,"Female 35-39",null,null,null,null,null,null,null,null,null,null,null,null,null,null,null,null,null,null,null,null,null,null,null,null,null,null,null,null,null,null,null,null,null,null,null,null,null,null,null,null,null,null,null,null,null,null,null,null,null,null,null,null,null,27]
[null,"Female 40-44",null,null,null,null,null,null,null,null,null,null,null,null,null,null,null,null,null,null,null,null,null,null,null,null,null,null,null,null,null,null,null,null,null,null,null,null,null,null,null,null,null,null,null,null,null,null,null,null,null,null,null,null,null,28]
[null,"Female 45-49",null,null,null,null,null,null,null,null,null,null,null,null,null,null,null,null,null,null,null,null,null,null,null,null,null,null,null,null,null,null,null,null,null,null,null,null,null,null,null,null,null,null,null,null,null,null,null,null,null,null,null,null,null,29]
[null,"Female 50-54",null,null,null,null,null,null,null,null,null,null,null,null,null,null,null,null,null,null,null,null,null,null,null,null,null,null,null,null,null,null,null,null,null,null,null,null,null,null,null,null,null,null,null,null,null,null,null,null,null,null,null,null,null,30]
[null,"Female 55-59",null,null,null,null,null,null,null,null,null,null,null,null,null,null,null,null,null,null,null,null,null,null,null,null,null,null,null,null,null,null,null,null,null,null,null,null,null,null,null,null,null,null,null,null,null,null,null,null,null,null,null,null,null,31]
[null,"Female 60-64",null,null,null,null,null,null,null,null,null,null,null,null,null,null,null,null,null,null,null,null,null,null,null,null,null,null,null,null,null,null,null,null,null,null,null,null,null,null,null,null,null,null,null,null,null,null,null,null,null,null,null,null,null,32]
[null,"Female 65-69",null,null,null,null,null,null,null,null,null,null,null,null,null,null,null,null,null,null,null,null,null,null,null,null,null,null,null,null,null,null,null,null,null,null,null,null,null,null,null,null,null,null,null,null,null,null,null,null,null,null,null,null,null,33]
[null,"Female 70-74",null,null,null,null,null,null,null,null,null,null,null,null,null,null,null,null,null,null,null,null,null,null,null,null,null,null,null,null,null,null,null,null,null,null,null,null,null,null,null,null,null,null,null,null,null,null,null,null,null,null,null,null,null,34]
[null,"Female 75-79",null,null,null,null,null,null,null,null,null,null,null,null,null,null,null,null,null,null,null,null,null,null,null,null,null,null,null,null,null,null,null,null,null,null,null,null,null,null,null,null,null,null,null,null,null,null,null,null,null,null,null,null,null,35]
[null,"Female 80-84",null,null,null,null,null,null,null,null,null,null,null,null,null,null,null,null,null,null,null,null,null,null,null,null,null,null,null,null,null,null,null,null,null,null,null,null,null,null,null,null,null,null,null,null,null,null,null,null,null,null,null,null,null,36]
[null,"Female 85-89",null,null,null,null,null,null,null,null,null,null,null,null,null,null,null,null,null,null,null,null,null,null,null,null,null,null,null,null,null,null,null,null,null,null,null,null,null,null,null,null,null,null,null,null,null,null,null,null,null,null,null,null,null,37]
[null,"Female 90+",null,null,null,null,null,null,null,null,null,null,null,null,null,null,null,null,null,null,null,null,null,null,null,null,null,null,null,null,null,null,null,null,null,null,null,null,null,null,null,null,null,null,null,null,null,null,null,null,null,null,null,null,null,38]
[null,"Male 0-4",null,null,null,null,null,null,null,null,null,null,null,null,null,null,null,null,null,null,null,null,null,null,null,null,null,null,null,null,null,null,null,null,null,null,null,null,null,null,null,null,null,null,null,null,null,null,null,null,null,null,null,null,null,39]
[null,"Male 5-9",null,null,null,null,null,null,null,null,null,null,null,null,null,null,null,null,null,null,null,null,null,null,null,null,null,null,null,null,null,null,null,null,null,null,null,null,null,null,null,null,null,null,null,null,null,null,null,null,null,null,null,null,null,40]
[null,"Male 10-15",null,null,null,null,null,null,null,null,null,null,null,null,null,null,null,null,null,null,null,null,null,null,null,null,null,null,null,null,null,null,null,null,null,null,null,null,null,null,null,null,null,null,null,null,null,null,null,null,null,null,null,null,null,41]
[null,"Male 16-19",null,null,null,null,null,null,null,null,null,null,null,null,null,null,null,null,null,null,null,null,null,null,null,null,null,null,null,null,null,null,null,null,null,null,null,null,null,null,null,null,null,null,null,null,null,null,null,null,null,null,null,null,null,42]
[null,"Male 20-24",null,null,null,null,null,null,null,null,null,null,null,null,null,null,null,null,null,null,null,null,null,null,null,null,null,null,null,null,null,null,null,null,null,null,null,null,null,null,null,null,null,null,null,null,null,null,null,null,null,null,null,null,null,43]
[null,"Male 25-29",null,null,null,null,null,null,null,null,null,null,null,null,null,null,null,null,null,null,null,null,null,null,null,null,null,null,null,null,null,null,null,null,null,null,null,null,null,null,null,null,null,null,null,null,null,null,null,null,null,null,null,null,null,44]
[null,"Male 30-34",null,null,null,null,null,null,null,null,null,null,null,null,null,null,null,null,null,null,null,null,null,null,null,null,null,null,null,null,null,null,null,null,null,null,null,null,null,null,null,null,null,null,null,null,null,null,null,null,null,null,null,null,null,45]
[null,"Male 35-39",null,null,null,null,null,null,null,null,null,null,null,null,null,null,null,null,null,null,null,null,null,null,null,null,null,null,null,null,null,null,null,null,null,null,null,null,null,null,null,null,null,null,null,null,null,null,null,null,null,null,null,null,null,46]
[null,"Male 40-44",null,null,null,null,null,null,null,null,null,null,null,null,null,null,null,null,null,null,null,null,null,null,null,null,null,null,null,null,null,null,null,null,null,null,null,null,null,null,null,null,null,null,null,null,null,null,null,null,null,null,null,null,null,47]
[null,"Male 45-49",null,null,null,null,null,null,null,null,null,null,null,null,null,null,null,null,null,null,null,null,null,null,null,null,null,null,null,null,null,null,null,null,null,null,null,null,null,null,null,null,null,null,null,null,null,null,null,null,null,null,null,null,null,48]
[null,"Male 50-54",null,null,null,null,null,null,null,null,null,null,null,null,null,null,null,null,null,null,null,null,null,null,null,null,null,null,null,null,null,null,null,null,null,null,null,null,null,null,null,null,null,null,null,null,null,null,null,null,null,null,null,null,null,49]
[null,"Male 55-59",null,null,null,null,null,null,null,null,null,null,null,null,null,null,null,null,null,null,null,null,null,null,null,null,null,null,null,null,null,null,null,null,null,null,null,null,null,null,null,null,null,null,null,null,null,null,null,null,null,null,null,null,null,50]
[null,"Male 60-64",null,null,null,null,null,null,null,null,null,null,null,null,null,null,null,null,null,null,null,null,null,null,null,null,null,null,null,null,null,null,null,null,null,null,null,null,null,null,null,null,null,null,null,null,null,null,null,null,null,null,null,null,null,51]
[null,"Male 65-69",null,null,null,null,null,null,null,null,null,null,null,null,null,null,null,null,null,null,null,null,null,null,null,null,null,null,null,null,null,null,null,null,null,null,null,null,null,null,null,null,null,null,null,null,null,null,null,null,null,null,null,null,null,52]
[null,"Male 70-74",null,null,null,null,null,null,null,null,null,null,null,null,null,null,null,null,null,null,null,null,null,null,null,null,null,null,null,null,null,null,null,null,null,null,null,null,null,null,null,null,null,null,null,null,null,null,null,null,null,null,null,null,null,53]
[null,"Male 75-79",null,null,null,null,null,null,null,null,null,null,null,null,null,null,null,null,null,null,null,null,null,null,null,null,null,null,null,null,null,null,null,null,null,null,null,null,null,null,null,null,null,null,null,null,null,null,null,null,null,null,null,null,null,54]
[null,"Male 80-84",null,null,null,null,null,null,null,null,null,null,null,null,null,null,null,null,null,null,null,null,null,null,null,null,null,null,null,null,null,null,null,null,null,null,null,null,null,null,null,null,null,null,null,null,null,null,null,null,null,null,null,null,null,55]
[null,"Male 85-89",null,null,null,null,null,null,null,null,null,null,null,null,null,null,null,null,null,null,null,null,null,null,null,null,null,null,null,null,null,null,null,null,null,null,null,null,null,null,null,null,null,null,null,null,null,null,null,null,null,null,null,null,null,56]
[null,"Male 90+",null,null,null,null,null,null,null,null,null,null,null,null,null,null,null,null,null,null,null,null,null,null,null,null,null,null,null,null,null,null,null,null,null,null,null,null,null,null,null,null,null,null,null,null,null,null,null,null,null,null,null,null,null,57]
["SIMD Q1 (most deprived)","Female 0-4",null,null,null,null,null,null,null,null,null,null,null,null,null,null,null,null,null,null,null,null,null,null,null,null,null,null,null,null,null,null,null,null,null,null,null,null,null,null,null,null,null,null,null,null,null,null,null,null,null,null,null,null,null,58]
[null,"Female 5-9",null,null,null,null,null,null,null,null,null,null,null,null,null,null,null,null,null,null,null,null,null,null,null,null,null,null,null,null,null,null,null,null,null,null,null,null,null,null,null,null,null,null,null,null,null,null,null,null,null,null,null,null,null,59]
[null,"Female 10-15",null,null,null,null,null,null,null,null,null,null,null,null,null,null,null,null,null,null,null,null,null,null,null,null,null,null,null,null,null,null,null,null,null,null,null,null,null,null,null,null,null,null,null,null,null,null,null,null,null,null,null,null,null,60]
[null,"Female 16-19",{"$f":"$AR63*C$253","v":0.24529191489361701},0.1327531674763941,0.20833617021276596,0.14473106382978723,0.27679999999999999,0.27989191489361709,0.28283659574468084,0.27679999999999999,0.27679999999999999,0.32921531914893615,{"$f":"$AR63*M$253","v":0.32921531914893615},0.35969276595744676,0.28254212765957448,0.20980851063829783,0.31169446808510642,0.11999574468085106,0.1970074912320991,0.21025021276595743,0.27679999999999999,0.18374808510638299,{"$f":"$AR63*W$253","v":0.28533957446808511},0.28533957446808511,0.20391914893617019,0.33584085106382977,0.11654390305767216,0.24440851063829785,0.3091914893617021,0.26310723404255315,0.26001531914893616,0.27679999999999999,{"$f":"$AR63*AG$253","v":0.13891211840888068},0.32273702127659576,0.25162297872340422,0.27679999999999999,0.33907999999999999,0.27046893617021278,0.38074723404255317,0.27679999999999999,0.27679999999999999,0.21658127659574467,0.32008680851063825,0.27679999999999999,{"$f":"$AR63*AS$253","v":0.28283659574468084},0.27679999999999999,0.27679999999999999,0.28828425531914886,0.26178212765957448,0.27679999999999999,0.15781875994950301,0.24823659574468085,0.36911574468085107,0.29800170212765953,0.27679999999999999,61]
[null,"Female 20-24",0.24529191489361701,0.1327531674763941,0.20833617021276596,0.14473106382978723,0.27679999999999999,0.27989191489361709,0.28283659574468084,0.27679999999999999,0.27679999999999999,0.32921531914893615,0.32921531914893615,0.35969276595744676,0.28254212765957448,0.20980851063829783,0.31169446808510642,0.11999574468085106,0.1970074912320991,0.21025021276595743,0.27679999999999999,0.18374808510638299,0.28533957446808511,0.28533957446808511,0.20391914893617019,0.33584085106382977,0.11654390305767216,0.24440851063829785,0.3091914893617021,0.26310723404255315,0.26001531914893616,0.27679999999999999,0.13891211840888068,0.32273702127659576,0.25162297872340422,0.27679999999999999,0.33907999999999999,0.27046893617021278,0.38074723404255317,0.27679999999999999,0.27679999999999999,0.21658127659574467,0.32008680851063825,0.27679999999999999,0.28283659574468084,0.27679999999999999,0.27679999999999999,0.28828425531914886,0.26178212765957448,0.27679999999999999,0.15781875994950301,0.24823659574468085,0.36911574468085107,0.29800170212765953,0.27679999999999999,62]
[null,"Female 25-29",0.31786925531914895,0.17203237418274051,0.26997898936170217,0.18755430851063828,0.35870000000000002,0.36270675531914903,0.36652271276595749,0.35870000000000002,0.35870000000000002,0.42662404255319147,0.42662404255319147,0.46611920212765956,0.36614111702127661,0.27188696808510637,0.40391909574468099,0.15550026595744681,0.25529836381847526,0.27245936170212764,0.35870000000000002,0.23811574468085109,0.36976627659574468,0.36976627659574468,0.26425505319148934,0.43520994680851066,0.1510270882470629,0.3167244680851064,0.40067553191489358,0.34095579787234043,0.33694904255319152,0.35870000000000002,0.18001364477335802,0.41822893617021284,0.32607356382978725,0.35870000000000002,0.43940750000000006,0.35049569148936172,0.49340329787234044,0.35870000000000002,0.35870000000000002,0.28066367021276595,0.4147945744680851,0.35870000000000002,0.36652271276595749,0.35870000000000002,0.35870000000000002,0.37358223404255314,0.33923861702127661,0.35870000000000002,0.20451441182762548,0.32168521276595746,0.47833026595744682,0.38617489361702123,0.35870000000000002,63]
[null,"Female 30-34",0.31786925531914895,0.17203237418274051,0.26997898936170217,0.18755430851063828,0.35870000000000002,0.36270675531914903,0.36652271276595749,0.35870000000000002,0.35870000000000002,0.42662404255319147,0.42662404255319147,0.46611920212765956,0.36614111702127661,0.27188696808510637,0.40391909574468099,0.15550026595744681,0.25529836381847526,0.27245936170212764,0.35870000000000002,0.23811574468085109,0.36976627659574468,0.36976627659574468,0.26425505319148934,0.43520994680851066,0.1510270882470629,0.3167244680851064,0.40067553191489358,0.34095579787234043,0.33694904255319152,0.35870000000000002,0.18001364477335802,0.41822893617021284,0.32607356382978725,0.35870000000000002,0.43940750000000006,0.35049569148936172,0.49340329787234044,0.35870000000000002,0.35870000000000002,0.28066367021276595,0.4147945744680851,0.35870000000000002,0.36652271276595749,0.35870000000000002,0.35870000000000002,0.37358223404255314,0.33923861702127661,0.35870000000000002,0.20451441182762548,0.32168521276595746,0.47833026595744682,0.38617489361702123,0.35870000000000002,64]
[null,"Female 35-39",0.34817627659574468,0.18843468027989613,0.29571994680851071,0.20543654255319149,0.39290000000000003,0.3972887765957448,0.40146856382978729,0.39290000000000003,0.39290000000000003,0.46730021276595746,0.46730021276595746,0.51056101063829784,0.40105058510638303,0.29780984042553188,0.44243047872340441,0.17032632978723405,0.27963960731608289,0.29843680851063831,0.39290000000000003,0.26081872340425538,0.40502138297872342,0.40502138297872342,0.28945026595744683,0.4767047340425532,0.16542666008439089,0.34692234042553194,0.43887765957446806,0.37346398936170216,0.36907521276595745,0.39290000000000003,0.19717691951896396,0.45810468085106393,0.35716281914893616,0.39290000000000003,0.48130250000000008,0.38391345744680855,0.54044648936170214,0.39290000000000003,0.39290000000000003,0.30742335106382979,0.45434287234042553,0.39290000000000003,0.40146856382978729,0.39290000000000003,0.39290000000000003,0.40920117021276592,0.37158308510638305,0.39290000000000003,0.22401369502947882,0.35235606382978729,0.52393632978723403,0.42299446808510638,0.39290000000000003,65]
[null,"Female 40-44",0.34817627659574468,0.18843468027989613,0.29571994680851071,0.20543654255319149,0.39290000000000003,0.3972887765957448,0.40146856382978729,0.39290000000000003,0.39290000000000003,0.46730021276595746,0.46730021276595746,0.51056101063829784,0.40105058510638303,0.29780984042553188,0.44243047872340441,0.17032632978723405,0.27963960731608289,0.29843680851063831,0.39290000000000003,0.26081872340425538,0.40502138297872342,0.40502138297872342,0.28945026595744683,0.4767047340425532,0.16542666008439089,0.34692234042553194,0.43887765957446806,0.37346398936170216,0.36907521276595745,0.39290000000000003,0.19717691951896396,0.45810468085106393,0.35716281914893616,0.39290000000000003,0.48130250000000008,0.38391345744680855,0.54044648936170214,0.39290000000000003,0.39290000000000003,0.30742335106382979,0.45434287234042553,0.39290000000000003,0.40146856382978729,0.39290000000000003,0.39290000000000003,0.40920117021276592,0.37158308510638305,0.39290000000000003,0.22401369502947882,0.35235606382978729,0.52393632978723403,0.42299446808510638,0.39290000000000003,66]
[null,"Female 45-49",0.38238244680851063,0.20694722458838172,0.32477260638297872,0.225619414893617,0.43149999999999999,0.43631994680851072,0.44091037234042557,0.43149999999999999,0.43149999999999999,0.51320957446808502,0.51320957446808502,0.56072047872340425,0.44045132978723406,0.32706781914893612,0.48589654255319159,0.18705984042553192,0.30711247278414294,0.32775638297872339,0.43149999999999999,0.28644255319148937,0.44481223404255316,0.44481223404255316,0.31788696808510636,0.52353803191489356,0.1816788084154102,0.38100531914893615,0.48199468085106378,0.41015452127659574,0.40533457446808507,0.43149999999999999,0.21654833487511566,0.50311063829787239,0.39225186170212761,0.43149999999999999,0.52858749999999999,0.42163058510638302,0.59354202127659572,0.43149999999999999,0.43149999999999999,0.33762579787234043,0.49897925531914888,0.43149999999999999,0.44091037234042557,0.43149999999999999,0.43149999999999999,0.44940265957446801,0.40808882978723404,0.43149999999999999,0.2460216579415121,0.38697287234042554,0.57540984042553189,0.46455106382978717,0.43149999999999999,67]
[null,"Female 50-54",0.38238244680851063,0.20694722458838172,0.32477260638297872,0.225619414893617,0.43149999999999999,0.43631994680851072,0.44091037234042557,0.43149999999999999,0.43149999999999999,0.51320957446808502,0.51320957446808502,0.56072047872340425,0.44045132978723406,0.32706781914893612,0.48589654255319159,0.18705984042553192,0.30711247278414294,0.32775638297872339,0.43149999999999999,0.28644255319148937,0.44481223404255316,0.44481223404255316,0.31788696808510636,0.52353803191489356,0.1816788084154102,0.38100531914893615,0.48199468085106378,0.41015452127659574,0.40533457446808507,0.43149999999999999,0.21654833487511566,0.50311063829787239,0.39225186170212761,0.43149999999999999,0.52858749999999999,0.42163058510638302,0.59354202127659572,0.43149999999999999,0.43149999999999999,0.33762579787234043,0.49897925531914888,0.43149999999999999,0.44091037234042557,0.43149999999999999,0.43149999999999999,0.44940265957446801,0.40808882978723404,0.43149999999999999,0.2460216579415121,0.38697287234042554,0.57540984042553189,0.46455106382978717,0.43149999999999999,68]
[null,"Female 55-59",0.35030308510638303,0.18958571930425794,0.29752632978723409,0.20669143617021277,0.39530000000000004,0.39971558510638311,0.40392090425531924,0.39530000000000004,0.39530000000000004,0.47015468085106382,0.47015468085106382,0.51367973404255318,0.40350037234042557,0.29962898936170212,0.44513303191489378,0.17136675531914897,0.28134776475451151,0.30025978723404256,0.39530000000000004,0.26241191489361709,0.40749542553191492,0.40749542553191492,0.29121835106382982,0.47961664893617023,0.16643715635367706,0.34904148936170215,0.44155851063829787,0.37574526595744684,0.37132968085106388,0.39530000000000004,0.19838135985198893,0.46090297872340436,0.35934452127659577,0.39530000000000004,0.48424250000000008,0.38625856382978729,0.54374776595744678,0.39530000000000004,0.39530000000000004,0.30930122340425537,0.45711819148936167,0.39530000000000004,0.40392090425531924,0.39530000000000004,0.39530000000000004,0.41170074468085105,0.37385287234042558,0.39530000000000004,0.22538206578048608,0.35450840425531921,0.52713675531914894,0.42557829787234042,0.39530000000000004,69]
[null,"Female 60-64",0.35030308510638303,0.18958571930425794,0.29752632978723409,0.20669143617021277,0.39530000000000004,0.39971558510638311,0.40392090425531924,0.39530000000000004,0.39530000000000004,0.47015468085106382,0.47015468085106382,0.51367973404255318,0.40350037234042557,0.29962898936170212,0.44513303191489378,0.17136675531914897,0.28134776475451151,0.30025978723404256,0.39530000000000004,0.26241191489361709,0.40749542553191492,0.40749542553191492,0.29121835106382982,0.47961664893617023,0.16643715635367706,0.34904148936170215,0.44155851063829787,0.37574526595744684,0.37132968085106388,0.39530000000000004,0.19838135985198893,0.46090297872340436,0.35934452127659577,0.39530000000000004,0.48424250000000008,0.38625856382978729,0.54374776595744678,0.39530000000000004,0.39530000000000004,0.30930122340425537,0.45711819148936167,0.39530000000000004,0.40392090425531924,0.39530000000000004,0.39530000000000004,0.41170074468085105,0.37385287234042558,0.39530000000000004,0.22538206578048608,0.35450840425531921,0.52713675531914894,0.42557829787234042,0.39530000000000004,70]
[null,"Female 65-69",{"$f":"$AR73*C$253","v":0.24254478723404255},0.13126640873659345,0.2060029255319149,0.14311015957446807,0.2737,0.27675728723404258,0.27966898936170215,0.2737,0.2737,0.32552829787234039,{"$f":"$AR73*M$253","v":0.32552829787234039},0.355664414893617,0.27937781914893617,0.20745877659574466,0.30820367021276601,0.11865186170212766,0.19480112120746215,0.2078955319148936,0.2737,0.18169021276595745,{"$f":"$AR73*W$253","v":0.28214393617021277},0.28214393617021277,0.20163537234042553,0.33207962765957444,0.11523867870984419,0.24167127659574467,0.30572872340425528,0.26016058510638296,0.25710329787234043,0.2737,{"$f":"$AR73*AG$253","v":0.13735638297872341},0.31912255319148941,0.24880494680851062,0.2737,0.33528250000000004,0.26743984042553193,0.37648308510638295,0.2737,0.2737,0.2141556914893617,0.31650202127659571,0.2737,{"$f":"$AR73*AS$253","v":0.27966898936170215},0.2737,0.2737,0.28505563829787228,0.25885031914893619,0.2737,0.15605128106278532,0.24545648936170214,0.36498186170212765,0.29466425531914892,0.2737,71]
[null,"Female 70-74",0.24254478723404255,0.13126640873659345,0.2060029255319149,0.14311015957446807,0.2737,0.27675728723404258,0.27966898936170215,0.2737,0.2737,0.32552829787234039,0.32552829787234039,0.355664414893617,0.27937781914893617,0.20745877659574466,0.30820367021276601,0.11865186170212766,0.19480112120746215,0.2078955319148936,0.2737,0.18169021276595745,0.28214393617021277,0.28214393617021277,0.20163537234042553,0.33207962765957444,0.11523867870984419,0.24167127659574467,0.30572872340425528,0.26016058510638296,0.25710329787234043,0.2737,0.13735638297872341,0.31912255319148941,0.24880494680851062,0.2737,0.33528250000000004,0.26743984042553193,0.37648308510638295,0.2737,0.2737,0.2141556914893617,0.31650202127659571,0.2737,0.27966898936170215,0.2737,0.2737,0.28505563829787228,0.25885031914893619,0.2737,0.15605128106278532,0.24545648936170214,0.36498186170212765,0.29466425531914892,0.2737,72]
[null,"Female 75-79",0.13203936170212766,7.1460339429128328E-2,0.11214627659574469,7.7907978723404242E-2,0.14899999999999999,0.15066436170212769,0.15224946808510639,0.14899999999999999,0.14899999999999999,0.17721489361702125,0.17721489361702125,0.19362074468085105,0.15209095744680851,0.11293882978723402,0.16778351063829791,6.459308510638298E-2,0.10604810763577589,0.11317659574468084,0.14899999999999999,9.8910638297872347E-2,0.15359680851063828,0.15359680851063828,0.10976861702127659,0.1807813829787234,6.2734976718183358E-2,0.13156382978723405,0.16643617021276594,0.14162925531914894,0.13996489361702127,0.14899999999999999,7.4775670675300651E-2,0.17372765957446809,0.13544734042553189,0.14899999999999999,0.18252499999999999,0.14559202127659573,0.2049542553191489,0.14899999999999999,0.14899999999999999,0.11658457446808511,0.17230106382978722,0.14899999999999999,0.15224946808510639,0.14899999999999999,0.14899999999999999,0.15518191489361699,0.14091595744680852,0.14899999999999999,8.4953017458366864E-2,0.13362446808510639,0.19869308510638298,0.16041276595744677,0.14899999999999999,73]
[null,"Female 80-84",0.13203936170212766,7.1460339429128328E-2,0.11214627659574469,7.7907978723404242E-2,0.14899999999999999,0.15066436170212769,0.15224946808510639,0.14899999999999999,0.14899999999999999,0.17721489361702125,0.17721489361702125,0.19362074468085105,0.15209095744680851,0.11293882978723402,0.16778351063829791,6.459308510638298E-2,0.10604810763577589,0.11317659574468084,0.14899999999999999,9.8910638297872347E-2,0.15359680851063828,0.15359680851063828,0.10976861702127659,0.1807813829787234,6.2734976718183358E-2,0.13156382978723405,0.16643617021276594,0.14162925531914894,0.13996489361702127,0.14899999999999999,7.4775670675300651E-2,0.17372765957446809,0.13544734042553189,0.14899999999999999,0.18252499999999999,0.14559202127659573,0.2049542553191489,0.14899999999999999,0.14899999999999999,0.11658457446808511,0.17230106382978722,0.14899999999999999,0.15224946808510639,0.14899999999999999,0.14899999999999999,0.15518191489361699,0.14091595744680852,0.14899999999999999,8.4953017458366864E-2,0.13362446808510639,0.19869308510638298,0.16041276595744677,0.14899999999999999,74]
[null,"Female 85-89",0.13203936170212766,7.1460339429128328E-2,0.11214627659574469,7.7907978723404242E-2,0.14899999999999999,0.15066436170212769,0.15224946808510639,0.14899999999999999,0.14899999999999999,0.17721489361702125,0.17721489361702125,0.19362074468085105,0.15209095744680851,0.11293882978723402,0.16778351063829791,6.459308510638298E-2,0.10604810763577589,0.11317659574468084,0.14899999999999999,9.8910638297872347E-2,0.15359680851063828,0.15359680851063828,0.10976861702127659,0.1807813829787234,6.2734976718183358E-2,0.13156382978723405,0.16643617021276594,0.14162925531914894,0.13996489361702127,0.14899999999999999,7.4775670675300651E-2,0.17372765957446809,0.13544734042553189,0.14899999999999999,0.18252499999999999,0.14559202127659573,0.2049542553191489,0.14899999999999999,0.14899999999999999,0.11658457446808511,0.17230106382978722,0.14899999999999999,0.15224946808510639,0.14899999999999999,0.14899999999999999,0.15518191489361699,0.14091595744680852,0.14899999999999999,8.4953017458366864E-2,0.13362446808510639,0.19869308510638298,0.16041276595744677,0.14899999999999999,75]
[null,"Female 90+",0.13203936170212766,7.1460339429128328E-2,0.11214627659574469,7.7907978723404242E-2,0.14899999999999999,0.15066436170212769,0.15224946808510639,0.14899999999999999,0.14899999999999999,0.17721489361702125,0.17721489361702125,0.19362074468085105,0.15209095744680851,0.11293882978723402,0.16778351063829791,6.459308510638298E-2,0.10604810763577589,0.11317659574468084,0.14899999999999999,9.8910638297872347E-2,0.15359680851063828,0.15359680851063828,0.10976861702127659,0.1807813829787234,6.2734976718183358E-2,0.13156382978723405,0.16643617021276594,0.14162925531914894,0.13996489361702127,0.14899999999999999,7.4775670675300651E-2,0.17372765957446809,0.13544734042553189,0.14899999999999999,0.18252499999999999,0.14559202127659573,0.2049542553191489,0.14899999999999999,0.14899999999999999,0.11658457446808511,0.17230106382978722,0.14899999999999999,0.15224946808510639,0.14899999999999999,0.14899999999999999,0.15518191489361699,0.14091595744680852,0.14899999999999999,8.4953017458366864E-2,0.13362446808510639,0.19869308510638298,0.16041276595744677,0.14899999999999999,76]
[null,"Male 0-4",null,null,null,null,null,null,null,null,null,null,null,null,null,null,null,null,null,null,null,null,null,null,null,null,null,null,null,null,null,null,null,null,null,null,null,null,null,null,null,null,null,null,null,null,null,null,null,null,null,null,null,null,null,77]
[null,"Male 5-9",null,null,null,null,null,null,null,null,null,null,null,null,null,null,null,null,null,null,null,null,null,null,null,null,null,null,null,null,null,null,null,null,null,null,null,null,null,null,null,null,null,null,null,null,null,null,null,null,null,null,null,null,null,78]
[null,"Male 10-15",null,null,null,null,null,null,null,null,null,null,null,null,null,null,null,null,null,null,null,null,null,null,null,null,null,null,null,null,null,null,null,null,null,null,null,null,null,null,null,null,null,null,null,null,null,null,null,null,null,null,null,null,null,79]
[null,"Male 16-19",{"$f":"$AR82*C$254","v":0.37619320388349514},0.13234239656243388,0.3195367166813769,0.38411924095322164,0.33260000000000001,0.34595684024713153,0.24497325684024715,0.33260000000000001,0.33260000000000001,0.34360838481906447,{"$f":"$AR82*M$254","v":0.34360838481906447},0.37824810238305384,0.3384711385701677,0.28651156222418356,0.31836248896734337,0.19169267431597531,0.19639790165492524,0.2840163283318623,0.33260000000000001,0.30984933804060016,{"$f":"$AR82*W$254","v":0.36415736981465141},0.36415736981465141,0.2840163283318623,0.39013715798764342,0.11618328758999223,0.34874563106796119,0.35696522506619593,0.35256187113857018,0.3596072374227714,0.33260000000000001,{"$f":"$AR82*AG$254","v":0.1384822901876511},0.3176285966460724,0.29517149161518097,0.33260000000000001,0.35902012356575469,0.42301553398058256,0.32129805825242719,0.33260000000000001,0.33260000000000001,0.29458437775816415,0.3490391879964696,0.33260000000000001,{"$f":"$AR82*AS$254","v":0.24497325684024715},0.33260000000000001,0.33260000000000001,0.26273345101500439,0.31381235657546336,0.33260000000000001,0.15733042993450688,0.34947952338923211,0.38309179170344221,0.2690449249779347,0.33260000000000001,80]
[null,"Male 20-24",0.37619320388349514,0.13234239656243388,0.3195367166813769,0.38411924095322164,0.33260000000000001,0.34595684024713153,0.24497325684024715,0.33260000000000001,0.33260000000000001,0.34360838481906447,0.34360838481906447,0.37824810238305384,0.3384711385701677,0.28651156222418356,0.31836248896734337,0.19169267431597531,0.19639790165492524,0.2840163283318623,0.33260000000000001,0.30984933804060016,0.36415736981465141,0.36415736981465141,0.2840163283318623,0.39013715798764342,0.11618328758999223,0.34874563106796119,0.35696522506619593,0.35256187113857018,0.3596072374227714,0.33260000000000001,0.1384822901876511,0.3176285966460724,0.29517149161518097,0.33260000000000001,0.35902012356575469,0.42301553398058256,0.32129805825242719,0.33260000000000001,0.33260000000000001,0.29458437775816415,0.3490391879964696,0.33260000000000001,0.24497325684024715,0.33260000000000001,0.33260000000000001,0.26273345101500439,0.31381235657546336,0.33260000000000001,0.15733042993450688,0.34947952338923211,0.38309179170344221,0.2690449249779347,0.33260000000000001,81]
[null,"Male 25-29",0.46328543689320389,0.16298089486462092,0.39351244483671671,0.47304642541924108,0.40960000000000002,0.42604907325684027,0.30168684907325688,0.40960000000000002,0.40960000000000002,0.42315692850838488,0.42315692850838488,0.4658160635481024,0.41683036187113859,0.35284165931156225,0.39206637246248899,0.23607131509267434,0.24186584641568667,0.34976875551632836,0.40960000000000002,0.38158234774933802,0.44846319505736987,0.44846319505736987,0.34976875551632836,0.48045754633715798,0.14308080155400127,0.42948349514563106,0.43960600176522507,0.43418323036187112,0.44285966460723741,0.40960000000000002,0.17054223109098585,0.39116257722859671,0.36350644307149166,0.40960000000000002,0.44213662842012363,0.52094757281553405,0.39568155339805827,0.40960000000000002,0.40960000000000002,0.36278340688437777,0.42984501323918806,0.40960000000000002,0.30168684907325688,0.40960000000000002,0.40960000000000002,0.32355869373345103,0.38646284201235659,0.40960000000000002,0.1937538908634216,0.43038729037952339,0.47178111209179169,0.33133133274492499,0.40960000000000002,82]
[null,"Male 30-34",0.46328543689320389,0.16298089486462092,0.39351244483671671,0.47304642541924108,0.40960000000000002,0.42604907325684027,0.30168684907325688,0.40960000000000002,0.40960000000000002,0.42315692850838488,0.42315692850838488,0.4658160635481024,0.41683036187113859,0.35284165931156225,0.39206637246248899,0.23607131509267434,0.24186584641568667,0.34976875551632836,0.40960000000000002,0.38158234774933802,0.44846319505736987,0.44846319505736987,0.34976875551632836,0.48045754633715798,0.14308080155400127,0.42948349514563106,0.43960600176522507,0.43418323036187112,0.44285966460723741,0.40960000000000002,0.17054223109098585,0.39116257722859671,0.36350644307149166,0.40960000000000002,0.44213662842012363,0.52094757281553405,0.39568155339805827,0.40960000000000002,0.40960000000000002,0.36278340688437777,0.42984501323918806,0.40960000000000002,0.30168684907325688,0.40960000000000002,0.40960000000000002,0.32355869373345103,0.38646284201235659,0.40960000000000002,0.1937538908634216,0.43038729037952339,0.47178111209179169,0.33133133274492499,0.40960000000000002,83]
[null,"Male 35-39",0.53623932038834954,0.18864561097489446,0.45547912621359227,0.54753737864077678,0.47410000000000002,0.49313932038834957,0.34919368932038841,0.47410000000000002,0.47410000000000002,0.48979174757281563,0.48979174757281563,0.53916844660194174,0.48246893203883495,0.40840388349514561,0.45380533980582527,0.27324563106796118,0.2799526313126881,0.40484708737864078,0.47410000000000002,0.44167038834951455,0.51908300970873789,0.51908300970873789,0.40484708737864078,0.55611553398058255,0.16561183597839843,0.49711456310679614,0.50883106796116506,0.50255436893203886,0.51259708737864074,0.47410000000000002,0.19739763613338962,0.45275922330097096,0.42074805825242723,0.47410000000000002,0.51176019417475738,0.60298155339805837,0.45798980582524274,0.47410000000000002,0.47410000000000002,0.4199111650485437,0.49753300970873793,0.47410000000000002,0.34919368932038841,0.47410000000000002,0.47410000000000002,0.37450970873786404,0.44731941747572818,0.47410000000000002,0.22426445229088912,0.49816067961165045,0.54607281553398057,0.38350631067961166,0.47410000000000002,84]
[null,"Male 40-44",0.53623932038834954,0.18864561097489446,0.45547912621359227,0.54753737864077678,0.47410000000000002,0.49313932038834957,0.34919368932038841,0.47410000000000002,0.47410000000000002,0.48979174757281563,0.48979174757281563,0.53916844660194174,0.48246893203883495,0.40840388349514561,0.45380533980582527,0.27324563106796118,0.2799526313126881,0.40484708737864078,0.47410000000000002,0.44167038834951455,0.51908300970873789,0.51908300970873789,0.40484708737864078,0.55611553398058255,0.16561183597839843,0.49711456310679614,0.50883106796116506,0.50255436893203886,0.51259708737864074,0.47410000000000002,0.19739763613338962,0.45275922330097096,0.42074805825242723,0.47410000000000002,0.51176019417475738,0.60298155339805837,0.45798980582524274,0.47410000000000002,0.47410000000000002,0.4199111650485437,0.49753300970873793,0.47410000000000002,0.34919368932038841,0.47410000000000002,0.47410000000000002,0.37450970873786404,0.44731941747572818,0.47410000000000002,0.22426445229088912,0.49816067961165045,0.54607281553398057,0.38350631067961166,0.47410000000000002,85]
[null,"Male 45-49",0.49167524271844659,0.17296824950598319,0.41762661076787294,0.50203437775816429,0.43470000000000003,0.45215706090026481,0.32017400706090032,0.43470000000000003,0.43470000000000003,0.44908768755516337,0.44908768755516337,0.49436094439541045,0.44237343336275381,0.37446354810238308,0.4160919240953222,0.25053759929391001,0.2566872154221167,0.37120233892321275,0.43470000000000003,0.40496544571932924,0.47594470432480146,0.47594470432480146,0.37120233892321275,0.5098996469549868,0.15184869246954186,0.45580194174757283,0.46654474845542804,0.46078967343336275,0.46999779346866727,0.43470000000000003,0.18099293909973524,0.41513274492497798,0.38578186231244488,0.43470000000000003,0.46923045013239201,0.55287087378640787,0.41992864077669906,0.43470000000000003,0.43470000000000003,0.38501451897616945,0.45618561341571057,0.43470000000000003,0.32017400706090032,0.43470000000000003,0.43470000000000003,0.34338614298323034,0.41014501323918801,0.43470000000000003,0.20562699306232757,0.45676112091791704,0.50069152691968233,0.35163508384819064,0.43470000000000003,86]
[null,"Male 50-54",0.49167524271844659,0.17296824950598319,0.41762661076787294,0.50203437775816429,0.43470000000000003,0.45215706090026481,0.32017400706090032,0.43470000000000003,0.43470000000000003,0.44908768755516337,0.44908768755516337,0.49436094439541045,0.44237343336275381,0.37446354810238308,0.4160919240953222,0.25053759929391001,0.2566872154221167,0.37120233892321275,0.43470000000000003,0.40496544571932924,0.47594470432480146,0.47594470432480146,0.37120233892321275,0.5098996469549868,0.15184869246954186,0.45580194174757283,0.46654474845542804,0.46078967343336275,0.46999779346866727,0.43470000000000003,0.18099293909973524,0.41513274492497798,0.38578186231244488,0.43470000000000003,0.46923045013239201,0.55287087378640787,0.41992864077669906,0.43470000000000003,0.43470000000000003,0.38501451897616945,0.45618561341571057,0.43470000000000003,0.32017400706090032,0.43470000000000003,0.43470000000000003,0.34338614298323034,0.41014501323918801,0.43470000000000003,0.20562699306232757,0.45676112091791704,0.50069152691968233,0.35163508384819064,0.43470000000000003,87]
[null,"Male 55-59",0.48930000000000001,0.17213265409774173,0.41560909090909098,0.49960909090909106,0.43260000000000004,0.4499727272727273,0.31862727272727281,0.43260000000000004,0.43260000000000004,0.44691818181818188,0.44691818181818188,0.49197272727272728,0.4402363636363637,0.37265454545454546,0.41408181818181822,0.24932727272727276,0.25544718056500504,0.36940909090909096,0.43260000000000004,0.40300909090909093,0.47364545454545459,0.47364545454545459,0.36940909090909096,0.50743636363636369,0.15111512390688708,0.45360000000000006,0.46429090909090909,0.4585636363636364,0.46772727272727271,0.43260000000000004,0.18011857707509885,0.41312727272727279,0.38391818181818188,0.43260000000000004,0.46696363636363647,0.55020000000000013,0.41790000000000005,0.43260000000000004,0.43260000000000004,0.38315454545454547,0.45398181818181826,0.43260000000000004,0.31862727272727281,0.43260000000000004,0.43260000000000004,0.34172727272727271,0.4081636363636364,0.43260000000000004,0.20463362594608445,0.45455454545454543,0.49827272727272731,0.34993636363636366,0.43260000000000004,88]
[null,"Male 60-64",0.48930000000000001,0.17213265409774173,0.41560909090909098,0.49960909090909106,0.43260000000000004,0.4499727272727273,0.31862727272727281,0.43260000000000004,0.43260000000000004,0.44691818181818188,0.44691818181818188,0.49197272727272728,0.4402363636363637,0.37265454545454546,0.41408181818181822,0.24932727272727276,0.25544718056500504,0.36940909090909096,0.43260000000000004,0.40300909090909093,0.47364545454545459,0.47364545454545459,0.36940909090909096,0.50743636363636369,0.15111512390688708,0.45360000000000006,0.46429090909090909,0.4585636363636364,0.46772727272727271,0.43260000000000004,0.18011857707509885,0.41312727272727279,0.38391818181818188,0.43260000000000004,0.46696363636363647,0.55020000000000013,0.41790000000000005,0.43260000000000004,0.43260000000000004,0.38315454545454547,0.45398181818181826,0.43260000000000004,0.31862727272727281,0.43260000000000004,0.43260000000000004,0.34172727272727271,0.4081636363636364,0.43260000000000004,0.20463362594608445,0.45455454545454543,0.49827272727272731,0.34993636363636366,0.43260000000000004,89]
[null,"Male 65-69",{"$f":"$AR92*C$254","v":0.35006553398058249},0.12315084707177776,0.29734399823477498,0.35744108561341575,0.3095,0.32192917034421892,0.22795917917034425,0.3095,0.3095,0.31974382171226834,{"$f":"$AR92*M$254","v":0.31974382171226834},0.35197771403353928,0.31496337157987642,0.26661253309797001,0.29625132391879966,0.1783790820829656,0.18275751822669684,0.26429060017652251,0.3095,0.28832943512797882,{"$f":"$AR92*W$254","v":0.33886562224183586},0.33886562224183586,0.26429060017652251,0.36304104148278904,0.10811403340078952,0.32452427184466021,0.33217299205648715,0.32807546337157983,0.33463150926743157,0.3095,{"$f":"$AR92*AG$254","v":0.12886430791665068},0.29556840247131511,0.27467100617828777,0.3095,0.334085172109444,0.39363592233009709,0.29898300970873787,0.3095,0.3095,0.27412466902030008,0.32479744042365405,0.3095,{"$f":"$AR92*AS$254","v":0.22795917917034425},0.3095,0.3095,0.2444858781994704,0.29201721094439542,0.3095,0.14640339165583247,0.3252071932921447,0.3564849955869373,0.25035900264783761,0.3095,90]
[null,"Male 70-74",0.35006553398058249,0.12315084707177776,0.29734399823477498,0.35744108561341575,0.3095,0.32192917034421892,0.22795917917034425,0.3095,0.3095,0.31974382171226834,0.31974382171226834,0.35197771403353928,0.31496337157987642,0.26661253309797001,0.29625132391879966,0.1783790820829656,0.18275751822669684,0.26429060017652251,0.3095,0.28832943512797882,0.33886562224183586,0.33886562224183586,0.26429060017652251,0.36304104148278904,0.10811403340078952,0.32452427184466021,0.33217299205648715,0.32807546337157983,0.33463150926743157,0.3095,0.12886430791665068,0.29556840247131511,0.27467100617828777,0.3095,0.334085172109444,0.39363592233009709,0.29898300970873787,0.3095,0.3095,0.27412466902030008,0.32479744042365405,0.3095,0.22795917917034425,0.3095,0.3095,0.2444858781994704,0.29201721094439542,0.3095,0.14640339165583247,0.3252071932921447,0.3564849955869373,0.25035900264783761,0.3095,91]
[null,"Male 75-79",0.19284708737864079,6.7842389097699865E-2,0.16380339805825245,0.19691019417475733,0.17050000000000001,0.1773470873786408,0.12558009708737866,0.17050000000000001,0.17050000000000001,0.17614320388349516,0.17614320388349516,0.19390048543689323,0.17350970873786409,0.14687378640776699,0.16320145631067962,9.8266990291262152E-2,0.10067902054168598,0.14559466019417477,0.17050000000000001,0.15883737864077671,0.18667718446601944,0.18667718446601944,0.14559466019417477,0.19999514563106796,5.9558780920305705E-2,0.17877669902912621,0.18299029126213592,0.18073300970873787,0.18434466019417475,0.17050000000000001,7.0989869143098364E-2,0.16282524271844662,0.15131310679611654,0.17050000000000001,0.18404368932038839,0.21684951456310683,0.16470631067961167,0.17050000000000001,0.17050000000000001,0.15101213592233009,0.17892718446601943,0.17050000000000001,0.12558009708737866,0.17050000000000001,0.17050000000000001,0.13468446601941747,0.16086893203883496,0.17050000000000001,8.0651949199739711E-2,0.17915291262135921,0.19638349514563108,0.13791990291262138,0.17050000000000001,92]
[null,"Male 80-84",0.19284708737864079,6.7842389097699865E-2,0.16380339805825245,0.19691019417475733,0.17050000000000001,0.1773470873786408,0.12558009708737866,0.17050000000000001,0.17050000000000001,0.17614320388349516,0.17614320388349516,0.19390048543689323,0.17350970873786409,0.14687378640776699,0.16320145631067962,9.8266990291262152E-2,0.10067902054168598,0.14559466019417477,0.17050000000000001,0.15883737864077671,0.18667718446601944,0.18667718446601944,0.14559466019417477,0.19999514563106796,5.9558780920305705E-2,0.17877669902912621,0.18299029126213592,0.18073300970873787,0.18434466019417475,0.17050000000000001,7.0989869143098364E-2,0.16282524271844662,0.15131310679611654,0.17050000000000001,0.18404368932038839,0.21684951456310683,0.16470631067961167,0.17050000000000001,0.17050000000000001,0.15101213592233009,0.17892718446601943,0.17050000000000001,0.12558009708737866,0.17050000000000001,0.17050000000000001,0.13468446601941747,0.16086893203883496,0.17050000000000001,8.0651949199739711E-2,0.17915291262135921,0.19638349514563108,0.13791990291262138,0.17050000000000001,93]
[null,"Male 85-89",0.19284708737864079,6.7842389097699865E-2,0.16380339805825245,0.19691019417475733,0.17050000000000001,0.1773470873786408,0.12558009708737866,0.17050000000000001,0.17050000000000001,0.17614320388349516,0.17614320388349516,0.19390048543689323,0.17350970873786409,0.14687378640776699,0.16320145631067962,9.8266990291262152E-2,0.10067902054168598,0.14559466019417477,0.17050000000000001,0.15883737864077671,0.18667718446601944,0.18667718446601944,0.14559466019417477,0.19999514563106796,5.9558780920305705E-2,0.17877669902912621,0.18299029126213592,0.18073300970873787,0.18434466019417475,0.17050000000000001,7.0989869143098364E-2,0.16282524271844662,0.15131310679611654,0.17050000000000001,0.18404368932038839,0.21684951456310683,0.16470631067961167,0.17050000000000001,0.17050000000000001,0.15101213592233009,0.17892718446601943,0.17050000000000001,0.12558009708737866,0.17050000000000001,0.17050000000000001,0.13468446601941747,0.16086893203883496,0.17050000000000001,8.0651949199739711E-2,0.17915291262135921,0.19638349514563108,0.13791990291262138,0.17050000000000001,94]
[null,"Male 90+",0.19284708737864079,6.7842389097699865E-2,0.16380339805825245,0.19691019417475733,0.17050000000000001,0.1773470873786408,0.12558009708737866,0.17050000000000001,0.17050000000000001,0.17614320388349516,0.17614320388349516,0.19390048543689323,0.17350970873786409,0.14687378640776699,0.16320145631067962,9.8266990291262152E-2,0.10067902054168598,0.14559466019417477,0.17050000000000001,0.15883737864077671,0.18667718446601944,0.18667718446601944,0.14559466019417477,0.19999514563106796,5.9558780920305705E-2,0.17877669902912621,0.18299029126213592,0.18073300970873787,0.18434466019417475,0.17050000000000001,7.0989869143098364E-2,0.16282524271844662,0.15131310679611654,0.17050000000000001,0.18404368932038839,0.21684951456310683,0.16470631067961167,0.17050000000000001,0.17050000000000001,0.15101213592233009,0.17892718446601943,0.17050000000000001,0.12558009708737866,0.17050000000000001,0.17050000000000001,0.13468446601941747,0.16086893203883496,0.17050000000000001,8.0651949199739711E-2,0.17915291262135921,0.19638349514563108,0.13791990291262138,0.17050000000000001,95]
["SIMD Q2","Female 0-4",null,null,null,null,null,null,null,null,null,null,null,null,null,null,null,null,null,null,null,null,null,null,null,null,null,null,null,null,null,null,null,null,null,null,null,null,null,null,null,null,null,null,null,null,null,null,null,null,null,null,null,null,null,96]
[null,"Female 5-9",null,null,null,null,null,null,null,null,null,null,null,null,null,null,null,null,null,null,null,null,null,null,null,null,null,null,null,null,null,null,null,null,null,null,null,null,null,null,null,null,null,null,null,null,null,null,null,null,null,null,null,null,null,97]
[null,"Female 10-15",null,null,null,null,null,null,null,null,null,null,null,null,null,null,null,null,null,null,null,null,null,null,null,null,null,null,null,null,null,null,null,null,null,null,null,null,null,null,null,null,null,null,null,null,null,null,null,null,null,null,null,null,null,98]
[null,"Female 16-19",{"$f":"$AR101*C$253","v":0.23368308510638297},0.12647041280175261,0.19847632978723406,0.13788143617021276,0.26369999999999999,0.26664558510638303,0.26945090425531915,0.26369999999999999,0.26369999999999999,0.31363468085106377,{"$f":"$AR101*M$253","v":0.31363468085106377},0.34266973404255313,0.26917037234042551,0.19987898936170209,0.29694303191489368,0.11431675531914894,0.18768379854734296,0.20029978723404251,0.26369999999999999,0.17505191489361704,{"$f":"$AR101*W$253","v":0.27183542553191486},0.27183542553191486,0.19426835106382978,0.3199466489361702,0.11102827758781846,0.23284148936170213,0.29455851063829785,0.2506552659574468,0.24770968085106382,0.26369999999999999,{"$f":"$AR101*AG$253","v":0.13233788159111934},0.30746297872340428,0.23971452127659573,0.26369999999999999,0.3230325,0.25766856382978726,0.36272776595744677,0.26369999999999999,0.26369999999999999,0.2063312234042553,0.30493819148936163,0.26369999999999999,{"$f":"$AR101*AS$253","v":0.26945090425531915},0.26369999999999999,0.26369999999999999,0.27464074468085098,0.24939287234042554,0.26369999999999999,0.15034973626692175,0.23648840425531914,0.35164675531914891,0.28389829787234039,0.26369999999999999,99]
[null,"Female 20-24",0.23368308510638297,0.12647041280175261,0.19847632978723406,0.13788143617021276,0.26369999999999999,0.26664558510638303,0.26945090425531915,0.26369999999999999,0.26369999999999999,0.31363468085106377,0.31363468085106377,0.34266973404255313,0.26917037234042551,0.19987898936170209,0.29694303191489368,0.11431675531914894,0.18768379854734296,0.20029978723404251,0.26369999999999999,0.17505191489361704,0.27183542553191486,0.27183542553191486,0.19426835106382978,0.3199466489361702,0.11102827758781846,0.23284148936170213,0.29455851063829785,0.2506552659574468,0.24770968085106382,0.26369999999999999,0.13233788159111934,0.30746297872340428,0.23971452127659573,0.26369999999999999,0.3230325,0.25766856382978726,0.36272776595744677,0.26369999999999999,0.26369999999999999,0.2063312234042553,0.30493819148936163,0.26369999999999999,0.26945090425531915,0.26369999999999999,0.26369999999999999,0.27464074468085098,0.24939287234042554,0.26369999999999999,0.15034973626692175,0.23648840425531914,0.35164675531914891,0.28389829787234039,0.26369999999999999,100]
[null,"Female 25-29",0.24821627659574469,0.13433584613489158,0.21081994680851068,0.14645654255319149,0.28010000000000002,0.28322877659574475,0.28620856382978727,0.28010000000000002,0.28010000000000002,0.33314021276595746,0.33314021276595746,0.36398101063829785,0.28591058510638301,0.21230984042553189,0.31541047872340433,0.12142632978723406,0.19935620770993845,0.2127568085106383,0.28010000000000002,0.18593872340425535,0.28874138297872343,0.28874138297872343,0.20635026595744682,0.33984473404255322,0.11793333542794067,0.24732234042553192,0.31287765957446806,0.26624398936170213,0.26311521276595745,0.28010000000000002,0.14056822386679002,0.3265846808510639,0.25462281914893614,0.28010000000000002,0.34312250000000005,0.27369345744680856,0.38528648936170212,0.28010000000000002,0.28010000000000002,0.21916335106382981,0.32390287234042553,0.28010000000000002,0.28620856382978727,0.28010000000000002,0.28010000000000002,0.29172117021276595,0.264903085106383,0.28010000000000002,0.15970026973213799,0.25119606382978726,0.37351632978723404,0.30155446808510639,0.28010000000000002,101]
[null,"Female 30-34",0.24821627659574469,0.13433584613489158,0.21081994680851068,0.14645654255319149,0.28010000000000002,0.28322877659574475,0.28620856382978727,0.28010000000000002,0.28010000000000002,0.33314021276595746,0.33314021276595746,0.36398101063829785,0.28591058510638301,0.21230984042553189,0.31541047872340433,0.12142632978723406,0.19935620770993845,0.2127568085106383,0.28010000000000002,0.18593872340425535,0.28874138297872343,0.28874138297872343,0.20635026595744682,0.33984473404255322,0.11793333542794067,0.24732234042553192,0.31287765957446806,0.26624398936170213,0.26311521276595745,0.28010000000000002,0.14056822386679002,0.3265846808510639,0.25462281914893614,0.28010000000000002,0.34312250000000005,0.27369345744680856,0.38528648936170212,0.28010000000000002,0.28010000000000002,0.21916335106382981,0.32390287234042553,0.28010000000000002,0.28620856382978727,0.28010000000000002,0.28010000000000002,0.29172117021276595,0.264903085106383,0.28010000000000002,0.15970026973213799,0.25119606382978726,0.37351632978723404,0.30155446808510639,0.28010000000000002,102]
[null,"Female 35-39",0.2685095744680851,0.14531867682567706,0.22805585106382981,0.15843031914893616,0.30299999999999999,0.30638457446808515,0.30960797872340429,0.30299999999999999,0.30299999999999999,0.36037659574468078,0.36037659574468078,0.39373882978723401,0.30928563829787231,0.22966755319148932,0.34119734042553196,0.13135372340425533,0.21565487660161137,0.2301510638297872,0.30299999999999999,0.20114042553191491,0.31234787234042549,0.31234787234042549,0.22322074468085104,0.36762925531914892,0.12757515399737956,0.26754255319148934,0.33845744680851059,0.28801117021276595,0.28462659574468085,0.30299999999999999,0.15206059204440334,0.35328510638297878,0.27543989361702126,0.30299999999999999,0.37117500000000003,0.29606968085106383,0.41678617021276593,0.30299999999999999,0.30299999999999999,0.23708138297872339,0.35038404255319144,0.30299999999999999,0.30960797872340429,0.30299999999999999,0.30299999999999999,0.31557127659574463,0.28656063829787237,0.30299999999999999,0.1727568073146655,0.27173297872340424,0.40405372340425527,0.32620851063829781,0.30299999999999999,103]
[null,"Female 40-44",0.2685095744680851,0.14531867682567706,0.22805585106382981,0.15843031914893616,0.30299999999999999,0.30638457446808515,0.30960797872340429,0.30299999999999999,0.30299999999999999,0.36037659574468078,0.36037659574468078,0.39373882978723401,0.30928563829787231,0.22966755319148932,0.34119734042553196,0.13135372340425533,0.21565487660161137,0.2301510638297872,0.30299999999999999,0.20114042553191491,0.31234787234042549,0.31234787234042549,0.22322074468085104,0.36762925531914892,0.12757515399737956,0.26754255319148934,0.33845744680851059,0.28801117021276595,0.28462659574468085,0.30299999999999999,0.15206059204440334,0.35328510638297878,0.27543989361702126,0.30299999999999999,0.37117500000000003,0.29606968085106383,0.41678617021276593,0.30299999999999999,0.30299999999999999,0.23708138297872339,0.35038404255319144,0.30299999999999999,0.30960797872340429,0.30299999999999999,0.30299999999999999,0.31557127659574463,0.28656063829787237,0.30299999999999999,0.1727568073146655,0.27173297872340424,0.40405372340425527,0.32620851063829781,0.30299999999999999,104]
[null,"Female 45-49",0.27719404255319152,0.15001875284182109,0.23543191489361706,0.16355446808510637,0.31280000000000002,0.3162940425531916,0.31962170212765961,0.31280000000000002,0.31280000000000002,0.3720323404255319,0.3720323404255319,0.4064736170212766,0.31928893617021281,0.23709574468085104,0.3522327659574469,0.13560212765957447,0.22262985280852821,0.23759489361702127,0.31280000000000002,0.20764595744680855,0.32245021276595748,0.32245021276595748,0.23044042553191491,0.37951957446808515,0.13170134709696479,0.27619574468085106,0.34940425531914893,0.29732638297872344,0.29383234042553191,0.31280000000000002,0.15697872340425534,0.36471148936170217,0.28434851063829786,0.31280000000000002,0.38318000000000008,0.30564553191489363,0.43026638297872338,0.31280000000000002,0.31280000000000002,0.24474936170212769,0.36171659574468085,0.31280000000000002,0.31962170212765961,0.31280000000000002,0.31280000000000002,0.32577787234042549,0.29582893617021283,0.31280000000000002,0.1783443212146118,0.28052170212765959,0.41712212765957452,0.33675914893617021,0.31280000000000002,105]
[null,"Female 50-54",0.27719404255319152,0.15001875284182109,0.23543191489361706,0.16355446808510637,0.31280000000000002,0.3162940425531916,0.31962170212765961,0.31280000000000002,0.31280000000000002,0.3720323404255319,0.3720323404255319,0.4064736170212766,0.31928893617021281,0.23709574468085104,0.3522327659574469,0.13560212765957447,0.22262985280852821,0.23759489361702127,0.31280000000000002,0.20764595744680855,0.32245021276595748,0.32245021276595748,0.23044042553191491,0.37951957446808515,0.13170134709696479,0.27619574468085106,0.34940425531914893,0.29732638297872344,0.29383234042553191,0.31280000000000002,0.15697872340425534,0.36471148936170217,0.28434851063829786,0.31280000000000002,0.38318000000000008,0.30564553191489363,0.43026638297872338,0.31280000000000002,0.31280000000000002,0.24474936170212769,0.36171659574468085,0.31280000000000002,0.31962170212765961,0.31280000000000002,0.31280000000000002,0.32577787234042549,0.29582893617021283,0.31280000000000002,0.1783443212146118,0.28052170212765959,0.41712212765957452,0.33675914893617021,0.31280000000000002,106]
[null,"Female 55-59",0.25964787234042558,0.14052268089083628,0.22052925531914899,0.15320159574468087,0.29300000000000004,0.29627287234042565,0.29938989361702134,0.29300000000000004,0.29300000000000004,0.34848297872340428,0.34848297872340428,0.38074414893617026,0.29907819148936177,0.22208776595744681,0.32993670212765969,0.12701861702127662,0.20853755394149223,0.22255531914893617,0.29300000000000004,0.1945021276595745,0.3020393617021277,0.3020393617021277,0.21585372340425535,0.35549627659574473,0.12336475287535387,0.25871276595744686,0.32728723404255322,0.2785058510638298,0.2752329787234043,0.29300000000000004,0.1470420906567993,0.3416255319148937,0.2663494680851064,0.29300000000000004,0.35892500000000005,0.28629840425531922,0.4030308510638298,0.29300000000000004,0.29300000000000004,0.22925691489361705,0.33882021276595747,0.29300000000000004,0.29938989361702134,0.29300000000000004,0.29300000000000004,0.30515638297872338,0.27710319148936174,0.29300000000000004,0.16705526251880198,0.26276489361702132,0.39071861702127664,0.31544255319148939,0.29300000000000004,107]
[null,"Female 60-64",0.25964787234042558,0.14052268089083628,0.22052925531914899,0.15320159574468087,0.29300000000000004,0.29627287234042565,0.29938989361702134,0.29300000000000004,0.29300000000000004,0.34848297872340428,0.34848297872340428,0.38074414893617026,0.29907819148936177,0.22208776595744681,0.32993670212765969,0.12701861702127662,0.20853755394149223,0.22255531914893617,0.29300000000000004,0.1945021276595745,0.3020393617021277,0.3020393617021277,0.21585372340425535,0.35549627659574473,0.12336475287535387,0.25871276595744686,0.32728723404255322,0.2785058510638298,0.2752329787234043,0.29300000000000004,0.1470420906567993,0.3416255319148937,0.2663494680851064,0.29300000000000004,0.35892500000000005,0.28629840425531922,0.4030308510638298,0.29300000000000004,0.29300000000000004,0.22925691489361705,0.33882021276595747,0.29300000000000004,0.29938989361702134,0.29300000000000004,0.29300000000000004,0.30515638297872338,0.27710319148936174,0.29300000000000004,0.16705526251880198,0.26276489361702132,0.39071861702127664,0.31544255319148939,0.29300000000000004,108]
[null,"Female 65-69",{"$f":"$AR111*C$253","v":0.18698191489361704},0.10119551422514148,0.158811170212766,0.11032606382978724,0.21100000000000002,0.21335691489361708,0.21560159574468088,0.21100000000000002,0.21100000000000002,0.25095531914893615,{"$f":"$AR111*M$253","v":0.25095531914893615},0.27418776595744682,0.21537712765957448,0.15993351063829786,0.23759946808510646,9.1470744680851077E-2,0.15017550812851488,0.16027021276595746,0.21100000000000002,0.14006808510638299,{"$f":"$AR111*W$253","v":0.21750957446808511},0.21750957446808511,0.15544414893617023,0.25600585106382984,8.883946367474288E-2,0.1863085106382979,0.23569148936170212,0.20056223404255322,0.19820531914893619,0.21100000000000002,{"$f":"$AR111*AG$253","v":0.1058903792784459},0.2460170212765958,0.19180797872340427,0.21100000000000002,0.25847500000000007,0.20617393617021279,0.29023723404255319,0.21100000000000002,0.21100000000000002,0.16509627659574469,0.24399680851063829,0.21100000000000002,{"$f":"$AR111*AS$253","v":0.21560159574468088},0.21100000000000002,0.21100000000000002,0.21975425531914891,0.1995521276595745,0.21100000000000002,0.12030259519272088,0.18922659574468087,0.2813707446808511,0.22716170212765957,0.21100000000000002,109]
[null,"Female 70-74",0.18698191489361704,0.10119551422514148,0.158811170212766,0.11032606382978724,0.21100000000000002,0.21335691489361708,0.21560159574468088,0.21100000000000002,0.21100000000000002,0.25095531914893615,0.25095531914893615,0.27418776595744682,0.21537712765957448,0.15993351063829786,0.23759946808510646,9.1470744680851077E-2,0.15017550812851488,0.16027021276595746,0.21100000000000002,0.14006808510638299,0.21750957446808511,0.21750957446808511,0.15544414893617023,0.25600585106382984,8.883946367474288E-2,0.1863085106382979,0.23569148936170212,0.20056223404255322,0.19820531914893619,0.21100000000000002,0.1058903792784459,0.2460170212765958,0.19180797872340427,0.21100000000000002,0.25847500000000007,0.20617393617021279,0.29023723404255319,0.21100000000000002,0.21100000000000002,0.16509627659574469,0.24399680851063829,0.21100000000000002,0.21560159574468088,0.21100000000000002,0.21100000000000002,0.21975425531914891,0.1995521276595745,0.21100000000000002,0.12030259519272088,0.18922659574468087,0.2813707446808511,0.22716170212765957,0.21100000000000002,110]
[null,"Female 75-79",8.5515425531914893E-2,4.6281360771213989E-2,7.2631648936170218E-2,5.0457180851063828E-2,9.6500000000000002E-2,9.7577925531914911E-2,9.8604521276595747E-2,9.6500000000000002E-2,9.6500000000000002E-2,0.11477340425531914,0.11477340425531914,0.12539867021276596,9.8501861702127658E-2,7.3144946808510636E-2,0.10866515957446811,4.1833776595744679E-2,6.8682163670150162E-2,7.3298936170212756E-2,9.6500000000000002E-2,6.405957446808512E-2,9.9477127659574463E-2,9.9477127659574463E-2,7.1091755319148936E-2,0.11708324468085106,4.0630370827548286E-2,8.520744680851064E-2,0.10779255319148935,9.1726329787234037E-2,9.0648404255319157E-2,9.6500000000000002E-2,4.8428538390379285E-2,0.11251489361702129,8.7722606382978713E-2,9.6500000000000002E-2,0.11821250000000001,9.4292819148936183E-2,0.13273882978723403,9.6500000000000002E-2,9.6500000000000002E-2,7.5506117021276603E-2,0.1115909574468085,9.6500000000000002E-2,9.8604521276595747E-2,9.6500000000000002E-2,9.6500000000000002E-2,0.1005037234042553,9.1264361702127664E-2,9.6500000000000002E-2,5.5019907280083241E-2,8.6542021276595757E-2,0.12868377659574468,0.10389148936170212,9.6500000000000002E-2,111]
[null,"Female 80-84",8.5515425531914893E-2,4.6281360771213989E-2,7.2631648936170218E-2,5.0457180851063828E-2,9.6500000000000002E-2,9.7577925531914911E-2,9.8604521276595747E-2,9.6500000000000002E-2,9.6500000000000002E-2,0.11477340425531914,0.11477340425531914,0.12539867021276596,9.8501861702127658E-2,7.3144946808510636E-2,0.10866515957446811,4.1833776595744679E-2,6.8682163670150162E-2,7.3298936170212756E-2,9.6500000000000002E-2,6.405957446808512E-2,9.9477127659574463E-2,9.9477127659574463E-2,7.1091755319148936E-2,0.11708324468085106,4.0630370827548286E-2,8.520744680851064E-2,0.10779255319148935,9.1726329787234037E-2,9.0648404255319157E-2,9.6500000000000002E-2,4.8428538390379285E-2,0.11251489361702129,8.7722606382978713E-2,9.6500000000000002E-2,0.11821250000000001,9.4292819148936183E-2,0.13273882978723403,9.6500000000000002E-2,9.6500000000000002E-2,7.5506117021276603E-2,0.1115909574468085,9.6500000000000002E-2,9.8604521276595747E-2,9.6500000000000002E-2,9.6500000000000002E-2,0.1005037234042553,9.1264361702127664E-2,9.6500000000000002E-2,5.5019907280083241E-2,8.6542021276595757E-2,0.12868377659574468,0.10389148936170212,9.6500000000000002E-2,112]
[null,"Female 85-89",8.5515425531914893E-2,4.6281360771213989E-2,7.2631648936170218E-2,5.0457180851063828E-2,9.6500000000000002E-2,9.7577925531914911E-2,9.8604521276595747E-2,9.6500000000000002E-2,9.6500000000000002E-2,0.11477340425531914,0.11477340425531914,0.12539867021276596,9.8501861702127658E-2,7.3144946808510636E-2,0.10866515957446811,4.1833776595744679E-2,6.8682163670150162E-2,7.3298936170212756E-2,9.6500000000000002E-2,6.405957446808512E-2,9.9477127659574463E-2,9.9477127659574463E-2,7.1091755319148936E-2,0.11708324468085106,4.0630370827548286E-2,8.520744680851064E-2,0.10779255319148935,9.1726329787234037E-2,9.0648404255319157E-2,9.6500000000000002E-2,4.8428538390379285E-2,0.11251489361702129,8.7722606382978713E-2,9.6500000000000002E-2,0.11821250000000001,9.4292819148936183E-2,0.13273882978723403,9.6500000000000002E-2,9.6500000000000002E-2,7.5506117021276603E-2,0.1115909574468085,9.6500000000000002E-2,9.8604521276595747E-2,9.6500000000000002E-2,9.6500000000000002E-2,0.1005037234042553,9.1264361702127664E-2,9.6500000000000002E-2,5.5019907280083241E-2,8.6542021276595757E-2,0.12868377659574468,0.10389148936170212,9.6500000000000002E-2,113]
[null,"Female 90+",8.5515425531914893E-2,4.6281360771213989E-2,7.2631648936170218E-2,5.0457180851063828E-2,9.6500000000000002E-2,9.7577925531914911E-2,9.8604521276595747E-2,9.6500000000000002E-2,9.6500000000000002E-2,0.11477340425531914,0.11477340425531914,0.12539867021276596,9.8501861702127658E-2,7.3144946808510636E-2,0.10866515957446811,4.1833776595744679E-2,6.8682163670150162E-2,7.3298936170212756E-2,9.6500000000000002E-2,6.405957446808512E-2,9.9477127659574463E-2,9.9477127659574463E-2,7.1091755319148936E-2,0.11708324468085106,4.0630370827548286E-2,8.520744680851064E-2,0.10779255319148935,9.1726329787234037E-2,9.0648404255319157E-2,9.6500000000000002E-2,4.8428538390379285E-2,0.11251489361702129,8.7722606382978713E-2,9.6500000000000002E-2,0.11821250000000001,9.4292819148936183E-2,0.13273882978723403,9.6500000000000002E-2,9.6500000000000002E-2,7.5506117021276603E-2,0.1115909574468085,9.6500000000000002E-2,9.8604521276595747E-2,9.6500000000000002E-2,9.6500000000000002E-2,0.1005037234042553,9.1264361702127664E-2,9.6500000000000002E-2,5.5019907280083241E-2,8.6542021276595757E-2,0.12868377659574468,0.10389148936170212,9.6500000000000002E-2,114]
[null,"Male 0-4",null,null,null,null,null,null,null,null,null,null,null,null,null,null,null,null,null,null,null,null,null,null,null,null,null,null,null,null,null,null,null,null,null,null,null,null,null,null,null,null,null,null,null,null,null,null,null,null,null,null,null,null,null,115]
[null,"Male 5-9",null,null,null,null,null,null,null,null,null,null,null,null,null,null,null,null,null,null,null,null,null,null,null,null,null,null,null,null,null,null,null,null,null,null,null,null,null,null,null,null,null,null,null,null,null,null,null,null,null,null,null,null,null,116]
[null,"Male 10-15",null,null,null,null,null,null,null,null,null,null,null,null,null,null,null,null,null,null,null,null,null,null,null,null,null,null,null,null,null,null,null,null,null,null,null,null,null,null,null,null,null,null,null,null,null,null,null,null,null,null,null,null,null,117]
[null,"Male 16-19",{"$f":"$AR120*C$254","v":0.32325922330097084},0.1137205560359098,0.27457484554280676,0.33006999117387475,0.2858,0.29727740511915268,0.21050317740511917,0.2858,0.2858,0.29525939982347754,{"$f":"$AR120*M$254","v":0.29525939982347754},0.32502497793468665,0.29084501323918799,0.24619664607237421,0.2735658428949691,0.1647196822594881,0.16876283912500792,0.24405251544571932,0.2858,0.26625057369814653,{"$f":"$AR120*W$254","v":0.31291694616063548},0.31291694616063548,0.24405251544571932,0.33524112974404235,9.9835188193685448E-2,0.29967378640776698,0.30673680494263017,0.30295304501323916,0.30900706090026475,0.2858,{"$f":"$AR120*AG$254","v":0.11899650792432558},0.27293521624007061,0.25363804060017653,0.2858,0.30850255957634604,0.36349320388349515,0.27608834951456313,0.2858,0.2858,0.2531335392762577,0.29992603706972643,0.2858,{"$f":"$AR120*AS$254","v":0.21050317740511917},0.2858,0.2858,0.22576434245366284,0.26965595763459843,0.2858,0.13519253420108859,0.30030441306266548,0.32918711385701677,0.23118773168578993,0.2858,118]
[null,"Male 20-24",0.32325922330097084,0.1137205560359098,0.27457484554280676,0.33006999117387475,0.2858,0.29727740511915268,0.21050317740511917,0.2858,0.2858,0.29525939982347754,0.29525939982347754,0.32502497793468665,0.29084501323918799,0.24619664607237421,0.2735658428949691,0.1647196822594881,0.16876283912500792,0.24405251544571932,0.2858,0.26625057369814653,0.31291694616063548,0.31291694616063548,0.24405251544571932,0.33524112974404235,9.9835188193685448E-2,0.29967378640776698,0.30673680494263017,0.30295304501323916,0.30900706090026475,0.2858,0.11899650792432558,0.27293521624007061,0.25363804060017653,0.2858,0.30850255957634604,0.36349320388349515,0.27608834951456313,0.2858,0.2858,0.2531335392762577,0.29992603706972643,0.2858,0.21050317740511917,0.2858,0.2858,0.22576434245366284,0.26965595763459843,0.2858,0.13519253420108859,0.30030441306266548,0.32918711385701677,0.23118773168578993,0.2858,119]
[null,"Male 25-29",0.36171553398058254,0.12724924359791448,0.30723945278022952,0.36933654015887035,0.31980000000000003,0.33264280670785529,0.23554554280670789,0.31980000000000003,0.31980000000000003,0.33038473080317748,0.33038473080317748,0.36369135039717565,0.32544518976169468,0.27548526037069726,0.30611041482789059,0.18431544571932923,0.18883959395443506,0.27308605472197706,0.31980000000000003,0.29792488967343339,0.35014289496910861,0.35014289496910861,0.27308605472197706,0.37512285966460723,0.11171201254142971,0.33532427184466024,0.34322753751103263,0.33899364518976172,0.34576787290379524,0.31980000000000003,0.1331528454660578,0.3054047661076788,0.28381191526919686,0.31980000000000003,0.34520335392762586,0.40673592233009714,0.30893300970873788,0.31980000000000003,0.31980000000000003,0.28324739629302736,0.33560653133274498,0.31980000000000003,0.23554554280670789,0.31980000000000003,0.31980000000000003,0.25262224183583409,0.30173539276257727,0.31980000000000003,0.15127562084502497,0.33602992056487202,0.36834863195057371,0.25869082082965578,0.31980000000000003,120]
[null,"Male 30-34",0.36171553398058254,0.12724924359791448,0.30723945278022952,0.36933654015887035,0.31980000000000003,0.33264280670785529,0.23554554280670789,0.31980000000000003,0.31980000000000003,0.33038473080317748,0.33038473080317748,0.36369135039717565,0.32544518976169468,0.27548526037069726,0.30611041482789059,0.18431544571932923,0.18883959395443506,0.27308605472197706,0.31980000000000003,0.29792488967343339,0.35014289496910861,0.35014289496910861,0.27308605472197706,0.37512285966460723,0.11171201254142971,0.33532427184466024,0.34322753751103263,0.33899364518976172,0.34576787290379524,0.31980000000000003,0.1331528454660578,0.3054047661076788,0.28381191526919686,0.31980000000000003,0.34520335392762586,0.40673592233009714,0.30893300970873788,0.31980000000000003,0.31980000000000003,0.28324739629302736,0.33560653133274498,0.31980000000000003,0.23554554280670789,0.31980000000000003,0.31980000000000003,0.25262224183583409,0.30173539276257727,0.31980000000000003,0.15127562084502497,0.33602992056487202,0.36834863195057371,0.25869082082965578,0.31980000000000003,121]
[null,"Male 35-39",0.38558106796116509,0.13564498793786445,0.32751072374227719,0.39370489849955881,0.34090000000000004,0.35459015887025602,0.25108654015887033,0.34090000000000004,0.34090000000000004,0.35218309796999125,0.35218309796999125,0.38768724624889678,0.34691765225066201,0.29366142983230364,0.3263071932921448,0.19647634598411301,0.2012989918044619,0.29110392762577231,0.34090000000000004,0.31758159752868492,0.37324488084730806,0.37324488084730806,0.29110392762577231,0.39987299205648724,0.11908263000429452,0.35744854368932044,0.36587325684024713,0.36136001765225068,0.36858120035304504,0.34090000000000004,0.14193810199930929,0.32555498676081207,0.30253746690203004,0.34090000000000004,0.36797943512797893,0.43357184466019427,0.32931601941747579,0.34090000000000004,0.34090000000000004,0.30193570167696382,0.35774942630185352,0.34090000000000004,0.25108654015887033,0.34090000000000004,0.34090000000000004,0.26928993821712272,0.32164351279788178,0.34090000000000004,0.16125659520346783,0.35820075022065312,0.39265180935569288,0.27575891438658434,0.34090000000000004,122]
[null,"Male 40-44",0.38558106796116509,0.13564498793786445,0.32751072374227719,0.39370489849955881,0.34090000000000004,0.35459015887025602,0.25108654015887033,0.34090000000000004,0.34090000000000004,0.35218309796999125,0.35218309796999125,0.38768724624889678,0.34691765225066201,0.29366142983230364,0.3263071932921448,0.19647634598411301,0.2012989918044619,0.29110392762577231,0.34090000000000004,0.31758159752868492,0.37324488084730806,0.37324488084730806,0.29110392762577231,0.39987299205648724,0.11908263000429452,0.35744854368932044,0.36587325684024713,0.36136001765225068,0.36858120035304504,0.34090000000000004,0.14193810199930929,0.32555498676081207,0.30253746690203004,0.34090000000000004,0.36797943512797893,0.43357184466019427,0.32931601941747579,0.34090000000000004,0.34090000000000004,0.30193570167696382,0.35774942630185352,0.34090000000000004,0.25108654015887033,0.34090000000000004,0.34090000000000004,0.26928993821712272,0.32164351279788178,0.34090000000000004,0.16125659520346783,0.35820075022065312,0.39265180935569288,0.27575891438658434,0.34090000000000004,123]
[null,"Male 45-49",0.41510194174757281,0.14603024515457977,0.35258561341571054,0.42384774933804065,0.36699999999999999,0.38173830538393644,0.27031023830538398,0.36699999999999999,0.36699999999999999,0.37914695498676082,0.37914695498676082,0.41736937334510149,0.37347837599293909,0.31614474845542806,0.35128993821712268,0.21151897616946161,0.21671085359999268,0.31339143865842894,0.36699999999999999,0.34189629302736096,0.40182127096204767,0.40182127096204767,0.31339143865842894,0.43048808473080313,0.12819983928300405,0.38481553398058249,0.39388526037069721,0.38902647837599291,0.39680052956751982,0.36699999999999999,0.15280517287693313,0.3504801412180053,0.32570035304501327,0.36699999999999999,0.396152691968226,0.46676699029126217,0.35452912621359223,0.36699999999999999,0.36699999999999999,0.32505251544571934,0.38513945278022949,0.36699999999999999,0.27031023830538398,0.36699999999999999,0.36699999999999999,0.28990732568402466,0.34626919682259488,0.36699999999999999,0.17360272936248955,0.38562533097969987,0.42271403353927622,0.29687157987643426,0.36699999999999999,124]
[null,"Male 50-54",0.41510194174757281,0.14603024515457977,0.35258561341571054,0.42384774933804065,0.36699999999999999,0.38173830538393644,0.27031023830538398,0.36699999999999999,0.36699999999999999,0.37914695498676082,0.37914695498676082,0.41736937334510149,0.37347837599293909,0.31614474845542806,0.35128993821712268,0.21151897616946161,0.21671085359999268,0.31339143865842894,0.36699999999999999,0.34189629302736096,0.40182127096204767,0.40182127096204767,0.31339143865842894,0.43048808473080313,0.12819983928300405,0.38481553398058249,0.39388526037069721,0.38902647837599291,0.39680052956751982,0.36699999999999999,0.15280517287693313,0.3504801412180053,0.32570035304501327,0.36699999999999999,0.396152691968226,0.46676699029126217,0.35452912621359223,0.36699999999999999,0.36699999999999999,0.32505251544571934,0.38513945278022949,0.36699999999999999,0.27031023830538398,0.36699999999999999,0.36699999999999999,0.28990732568402466,0.34626919682259488,0.36699999999999999,0.17360272936248955,0.38562533097969987,0.42271403353927622,0.29687157987643426,0.36699999999999999,125]
[null,"Male 55-59",0.32099708737864074,0.11292475088520364,0.27265339805825245,0.32776019417475732,0.2838,0.29519708737864075,0.20903009708737866,0.2838,0.2838,0.29319320388349518,0.29319320388349518,0.32275048543689322,0.2888097087378641,0.24447378640776699,0.27165145631067961,0.16356699029126215,0.16758185354680633,0.24234466019417475,0.2838,0.26438737864077672,0.31072718446601943,0.31072718446601943,0.24234466019417475,0.33289514563106792,9.9136551467347553E-2,0.2975766990291262,0.30459029126213588,0.30083300970873783,0.30684466019417472,0.2838,0.11816378218657661,0.27102524271844664,0.25186310679611651,0.2838,0.30634368932038841,0.36094951456310681,0.27415631067961166,0.2838,0.2838,0.25136213592233009,0.29782718446601941,0.2838,0.20903009708737866,0.2838,0.2838,0.22418446601941747,0.26776893203883495,0.2838,0.13424647028085704,0.29820291262135917,0.32688349514563103,0.22956990291262136,0.2838,126]
[null,"Male 60-64",0.32099708737864074,0.11292475088520364,0.27265339805825245,0.32776019417475732,0.2838,0.29519708737864075,0.20903009708737866,0.2838,0.2838,0.29319320388349518,0.29319320388349518,0.32275048543689322,0.2888097087378641,0.24447378640776699,0.27165145631067961,0.16356699029126215,0.16758185354680633,0.24234466019417475,0.2838,0.26438737864077672,0.31072718446601943,0.31072718446601943,0.24234466019417475,0.33289514563106792,9.9136551467347553E-2,0.2975766990291262,0.30459029126213588,0.30083300970873783,0.30684466019417472,0.2838,0.11816378218657661,0.27102524271844664,0.25186310679611651,0.2838,0.30634368932038841,0.36094951456310681,0.27415631067961166,0.2838,0.2838,0.25136213592233009,0.29782718446601941,0.2838,0.20903009708737866,0.2838,0.2838,0.22418446601941747,0.26776893203883495,0.2838,0.13424647028085704,0.29820291262135917,0.32688349514563103,0.22956990291262136,0.2838,127]
[null,"Male 65-69",{"$f":"$AR130*C$254","v":0.24702524271844661},8.6901922457112327E-2,0.20982206531332748,0.25222983230361878,0.21840000000000001,0.22717069726390116,0.16086037069726392,0.21840000000000001,0.21840000000000001,0.2256285966460724,{"$f":"$AR130*M$254","v":0.2256285966460724},0.24837458075904678,0.22225525154457196,0.18813627537511032,0.20905101500441309,0.12587396293027361,0.12896362513961418,0.18649779346866727,0.21840000000000001,0.20346090026478378,{"$f":"$AR130*W$254","v":0.23912197705207416},0.23912197705207416,0.18649779346866727,0.25618146513680495,7.6291130516098329E-2,0.22900194174757282,0.23439929390997352,0.23150785525154458,0.23613415710503088,0.21840000000000001,{"$f":"$AR130*AG$254","v":9.0933650562185817E-2},0.20856910856134159,0.19382277140335394,0.21840000000000001,0.23574863195057374,0.2777708737864078,0.21097864077669903,0.21840000000000001,0.21840000000000001,0.19343724624889674,0.22919470432480143,0.21840000000000001,{"$f":"$AR130*AS$254","v":0.16086037069726392},0.21840000000000001,0.21840000000000001,0.17252250661959401,0.20606319505736984,0.21840000000000001,0.10331018008928534,0.2294838481906443,0.25155516328331862,0.17666690203000884,0.21840000000000001,128]
[null,"Male 70-74",0.24702524271844661,8.6901922457112327E-2,0.20982206531332748,0.25222983230361878,0.21840000000000001,0.22717069726390116,0.16086037069726392,0.21840000000000001,0.21840000000000001,0.2256285966460724,0.2256285966460724,0.24837458075904678,0.22225525154457196,0.18813627537511032,0.20905101500441309,0.12587396293027361,0.12896362513961418,0.18649779346866727,0.21840000000000001,0.20346090026478378,0.23912197705207416,0.23912197705207416,0.18649779346866727,0.25618146513680495,7.6291130516098329E-2,0.22900194174757282,0.23439929390997352,0.23150785525154458,0.23613415710503088,0.21840000000000001,9.0933650562185817E-2,0.20856910856134159,0.19382277140335394,0.21840000000000001,0.23574863195057374,0.2777708737864078,0.21097864077669903,0.21840000000000001,0.21840000000000001,0.19343724624889674,0.22919470432480143,0.21840000000000001,0.16086037069726392,0.21840000000000001,0.21840000000000001,0.17252250661959401,0.20606319505736984,0.21840000000000001,0.10331018008928534,0.2294838481906443,0.25155516328331862,0.17666690203000884,0.21840000000000001,129]
[null,"Male 75-79",0.11367233009708738,3.998920882298438E-2,9.6552736098852621E-2,0.11606729920564875,0.10050000000000001,0.10453596646072374,7.4022285966460738E-2,0.10050000000000001,0.10050000000000001,0.10382634598411299,0.10382634598411299,0.1142932480141218,0.10227405119152692,8.6573698146513681E-2,9.619792586054722E-2,5.7922771403353931E-2,5.934452530463015E-2,8.5819726390114745E-2,0.10050000000000001,9.362555163283319E-2,0.11003552515445721,0.11003552515445721,8.5819726390114745E-2,0.11788570167696381,3.5106495498479315E-2,0.10537864077669903,0.10786231244483671,0.10653177405119153,0.10866063548102382,0.10050000000000001,4.1844468321884959E-2,9.5976169461606364E-2,8.9190423654015902E-2,0.10050000000000001,0.10848323036187116,0.12782038834951459,9.7084951456310686E-2,0.10050000000000001,0.10050000000000001,8.9013018534863195E-2,0.10546734333627539,0.10050000000000001,7.4022285966460738E-2,0.10050000000000001,0.10050000000000001,7.9388790820829655E-2,9.4823036187113866E-2,0.10050000000000001,4.7539711991635425E-2,0.10560039717563989,0.11575684024713151,8.1295895851721103E-2,0.10050000000000001,130]
[null,"Male 80-84",0.11367233009708738,3.998920882298438E-2,9.6552736098852621E-2,0.11606729920564875,0.10050000000000001,0.10453596646072374,7.4022285966460738E-2,0.10050000000000001,0.10050000000000001,0.10382634598411299,0.10382634598411299,0.1142932480141218,0.10227405119152692,8.6573698146513681E-2,9.619792586054722E-2,5.7922771403353931E-2,5.934452530463015E-2,8.5819726390114745E-2,0.10050000000000001,9.362555163283319E-2,0.11003552515445721,0.11003552515445721,8.5819726390114745E-2,0.11788570167696381,3.5106495498479315E-2,0.10537864077669903,0.10786231244483671,0.10653177405119153,0.10866063548102382,0.10050000000000001,4.1844468321884959E-2,9.5976169461606364E-2,8.9190423654015902E-2,0.10050000000000001,0.10848323036187116,0.12782038834951459,9.7084951456310686E-2,0.10050000000000001,0.10050000000000001,8.9013018534863195E-2,0.10546734333627539,0.10050000000000001,7.4022285966460738E-2,0.10050000000000001,0.10050000000000001,7.9388790820829655E-2,9.4823036187113866E-2,0.10050000000000001,4.7539711991635425E-2,0.10560039717563989,0.11575684024713151,8.1295895851721103E-2,0.10050000000000001,131]
[null,"Male 85-89",0.11367233009708738,3.998920882298438E-2,9.6552736098852621E-2,0.11606729920564875,0.10050000000000001,0.10453596646072374,7.4022285966460738E-2,0.10050000000000001,0.10050000000000001,0.10382634598411299,0.10382634598411299,0.1142932480141218,0.10227405119152692,8.6573698146513681E-2,9.619792586054722E-2,5.7922771403353931E-2,5.934452530463015E-2,8.5819726390114745E-2,0.10050000000000001,9.362555163283319E-2,0.11003552515445721,0.11003552515445721,8.5819726390114745E-2,0.11788570167696381,3.5106495498479315E-2,0.10537864077669903,0.10786231244483671,0.10653177405119153,0.10866063548102382,0.10050000000000001,4.1844468321884959E-2,9.5976169461606364E-2,8.9190423654015902E-2,0.10050000000000001,0.10848323036187116,0.12782038834951459,9.7084951456310686E-2,0.10050000000000001,0.10050000000000001,8.9013018534863195E-2,0.10546734333627539,0.10050000000000001,7.4022285966460738E-2,0.10050000000000001,0.10050000000000001,7.9388790820829655E-2,9.4823036187113866E-2,0.10050000000000001,4.7539711991635425E-2,0.10560039717563989,0.11575684024713151,8.1295895851721103E-2,0.10050000000000001,132]
[null,"Male 90+",0.11367233009708738,3.998920882298438E-2,9.6552736098852621E-2,0.11606729920564875,0.10050000000000001,0.10453596646072374,7.4022285966460738E-2,0.10050000000000001,0.10050000000000001,0.10382634598411299,0.10382634598411299,0.1142932480141218,0.10227405119152692,8.6573698146513681E-2,9.619792586054722E-2,5.7922771403353931E-2,5.934452530463015E-2,8.5819726390114745E-2,0.10050000000000001,9.362555163283319E-2,0.11003552515445721,0.11003552515445721,8.5819726390114745E-2,0.11788570167696381,3.5106495498479315E-2,0.10537864077669903,0.10786231244483671,0.10653177405119153,0.10866063548102382,0.10050000000000001,4.1844468321884959E-2,9.5976169461606364E-2,8.9190423654015902E-2,0.10050000000000001,0.10848323036187116,0.12782038834951459,9.7084951456310686E-2,0.10050000000000001,0.10050000000000001,8.9013018534863195E-2,0.10546734333627539,0.10050000000000001,7.4022285966460738E-2,0.10050000000000001,0.10050000000000001,7.9388790820829655E-2,9.4823036187113866E-2,0.10050000000000001,4.7539711991635425E-2,0.10560039717563989,0.11575684024713151,8.1295895851721103E-2,0.10050000000000001,133]
["SIMD Q3","Female 0-4",null,null,null,null,null,null,null,null,null,null,null,null,null,null,null,null,null,null,null,null,null,null,null,null,null,null,null,null,null,null,null,null,null,null,null,null,null,null,null,null,null,null,null,null,null,null,null,null,null,null,null,null,null,134]
[null,"Female 5-9",null,null,null,null,null,null,null,null,null,null,null,null,null,null,null,null,null,null,null,null,null,null,null,null,null,null,null,null,null,null,null,null,null,null,null,null,null,null,null,null,null,null,null,null,null,null,null,null,null,null,null,null,null,135]
[null,"Female 10-15",null,null,null,null,null,null,null,null,null,null,null,null,null,null,null,null,null,null,null,null,null,null,null,null,null,null,null,null,null,null,null,null,null,null,null,null,null,null,null,null,null,null,null,null,null,null,null,null,null,null,null,null,null,136]
[null,"Female 16-19",{"$f":"$AR139*C$253","v":0.17599340425531915},9.5248479265938837E-2,0.14947819148936173,0.10384244680851062,0.1986,0.20081840425531919,0.20293117021276597,0.1986,0.1986,0.23620723404255317,{"$f":"$AR139*M$253","v":0.23620723404255317},0.25807436170212766,0.20271989361702128,0.15053457446808508,0.22363627659574473,8.6095212765957441E-2,0.14135002802996707,0.15085148936170212,0.1986,0.13183659574468087,{"$f":"$AR139*W$253","v":0.20472702127659573},0.20472702127659573,0.14630904255319149,0.24096095744680851,8.3618566283430965E-2,0.17535957446808512,0.22184042553191488,0.18877563829787233,0.1865572340425532,0.1986,{"$f":"$AR139*AG$253","v":9.9667437557816846E-2},0.23155914893617024,0.18053585106382977,0.1986,0.24328500000000003,0.19405755319148937,0.27318063829787231,0.1986,0.1986,0.15539393617021277,0.22965765957446807,0.1986,{"$f":"$AR139*AS$253","v":0.20293117021276597},0.1986,0.1986,0.2068397872340425,0.18782489361702129,0.1986,0.11323267964585006,0.17810617021276595,0.26483521276595745,0.21381191489361701,0.1986,137]
[null,"Female 20-24",0.17599340425531915,9.5248479265938837E-2,0.14947819148936173,0.10384244680851062,0.1986,0.20081840425531919,0.20293117021276597,0.1986,0.1986,0.23620723404255317,0.23620723404255317,0.25807436170212766,0.20271989361702128,0.15053457446808508,0.22363627659574473,8.6095212765957441E-2,0.14135002802996707,0.15085148936170212,0.1986,0.13183659574468087,0.20472702127659573,0.20472702127659573,0.14630904255319149,0.24096095744680851,8.3618566283430965E-2,0.17535957446808512,0.22184042553191488,0.18877563829787233,0.1865572340425532,0.1986,9.9667437557816846E-2,0.23155914893617024,0.18053585106382977,0.1986,0.24328500000000003,0.19405755319148937,0.27318063829787231,0.1986,0.1986,0.15539393617021277,0.22965765957446807,0.1986,0.20293117021276597,0.1986,0.1986,0.2068397872340425,0.18782489361702129,0.1986,0.11323267964585006,0.17810617021276595,0.26483521276595745,0.21381191489361701,0.1986,138]
[null,"Female 25-29",0.20488255319148937,0.11088342601351994,0.1740148936170213,0.12088808510638298,0.23120000000000002,0.23378255319148941,0.2362421276595745,0.23120000000000002,0.23120000000000002,0.27498042553191487,0.27498042553191487,0.30043702127659577,0.23599617021276598,0.17524468085106382,0.26034595744680861,0.10022765957446809,0.16455249990195561,0.17561361702127659,0.23120000000000002,0.15347744680851066,0.23833276595744682,0.23833276595744682,0.17032553191489364,0.28051446808510638,9.7344473941234855E-2,0.20414468085106385,0.25825531914893618,0.21976297872340425,0.21718042553191491,0.23120000000000002,0.11602775208140613,0.2695693617021277,0.21017063829787233,0.23120000000000002,0.28322000000000003,0.22591191489361703,0.31802297872340424,0.23120000000000002,0.23120000000000002,0.18090170212765957,0.26735574468085105,0.23120000000000002,0.2362421276595745,0.23120000000000002,0.23120000000000002,0.24079234042553188,0.21865617021276598,0.23120000000000002,0.13181971568036524,0.20734212765957449,0.3083076595744681,0.24890893617021276,0.23120000000000002,139]
[null,"Female 30-34",0.20488255319148937,0.11088342601351994,0.1740148936170213,0.12088808510638298,0.23120000000000002,0.23378255319148941,0.2362421276595745,0.23120000000000002,0.23120000000000002,0.27498042553191487,0.27498042553191487,0.30043702127659577,0.23599617021276598,0.17524468085106382,0.26034595744680861,0.10022765957446809,0.16455249990195561,0.17561361702127659,0.23120000000000002,0.15347744680851066,0.23833276595744682,0.23833276595744682,0.17032553191489364,0.28051446808510638,9.7344473941234855E-2,0.20414468085106385,0.25825531914893618,0.21976297872340425,0.21718042553191491,0.23120000000000002,0.11602775208140613,0.2695693617021277,0.21017063829787233,0.23120000000000002,0.28322000000000003,0.22591191489361703,0.31802297872340424,0.23120000000000002,0.23120000000000002,0.18090170212765957,0.26735574468085105,0.23120000000000002,0.2362421276595745,0.23120000000000002,0.23120000000000002,0.24079234042553188,0.21865617021276598,0.23120000000000002,0.13181971568036524,0.20734212765957449,0.3083076595744681,0.24890893617021276,0.23120000000000002,140]
[null,"Female 35-39",0.19690702127659573,0.10656702967216319,0.16724095744680853,0.11618223404255319,0.22220000000000001,0.22468202127659578,0.2270458510638298,0.22220000000000001,0.22220000000000001,0.26427617021276595,0.26427617021276595,0.2887418085106383,0.22680946808510641,0.16842287234042552,0.25021138297872347,9.6326063829787242E-2,0.15814690950784835,0.16877744680851062,0.22220000000000001,0.14750297872340429,0.22905510638297871,0.22905510638297871,0.16369521276595744,0.26959478723404257,9.3555112931411694E-2,0.19619787234042554,0.24820212765957445,0.21120819148936171,0.20872617021276596,0.22220000000000001,0.11151110083256245,0.25907574468085109,0.20198925531914894,0.22220000000000001,0.27219500000000002,0.21711776595744683,0.3056431914893617,0.22220000000000001,0.22220000000000001,0.17385968085106385,0.25694829787234041,0.22220000000000001,0.2270458510638298,0.22220000000000001,0.22220000000000001,0.23141893617021272,0.2101444680851064,0.22220000000000001,0.12668832536408803,0.1992708510638298,0.29630606382978725,0.23921957446808509,0.22220000000000001,141]
[null,"Female 40-44",0.19690702127659573,0.10656702967216319,0.16724095744680853,0.11618223404255319,0.22220000000000001,0.22468202127659578,0.2270458510638298,0.22220000000000001,0.22220000000000001,0.26427617021276595,0.26427617021276595,0.2887418085106383,0.22680946808510641,0.16842287234042552,0.25021138297872347,9.6326063829787242E-2,0.15814690950784835,0.16877744680851062,0.22220000000000001,0.14750297872340429,0.22905510638297871,0.22905510638297871,0.16369521276595744,0.26959478723404257,9.3555112931411694E-2,0.19619787234042554,0.24820212765957445,0.21120819148936171,0.20872617021276596,0.22220000000000001,0.11151110083256245,0.25907574468085109,0.20198925531914894,0.22220000000000001,0.27219500000000002,0.21711776595744683,0.3056431914893617,0.22220000000000001,0.22220000000000001,0.17385968085106385,0.25694829787234041,0.22220000000000001,0.2270458510638298,0.22220000000000001,0.22220000000000001,0.23141893617021272,0.2101444680851064,0.22220000000000001,0.12668832536408803,0.1992708510638298,0.29630606382978725,0.23921957446808509,0.22220000000000001,142]
[null,"Female 45-49",0.20488255319148937,0.11088342601351994,0.1740148936170213,0.12088808510638298,0.23120000000000002,0.23378255319148941,0.2362421276595745,0.23120000000000002,0.23120000000000002,0.27498042553191487,0.27498042553191487,0.30043702127659577,0.23599617021276598,0.17524468085106382,0.26034595744680861,0.10022765957446809,0.16455249990195561,0.17561361702127659,0.23120000000000002,0.15347744680851066,0.23833276595744682,0.23833276595744682,0.17032553191489364,0.28051446808510638,9.7344473941234855E-2,0.20414468085106385,0.25825531914893618,0.21976297872340425,0.21718042553191491,0.23120000000000002,0.11602775208140613,0.2695693617021277,0.21017063829787233,0.23120000000000002,0.28322000000000003,0.22591191489361703,0.31802297872340424,0.23120000000000002,0.23120000000000002,0.18090170212765957,0.26735574468085105,0.23120000000000002,0.2362421276595745,0.23120000000000002,0.23120000000000002,0.24079234042553188,0.21865617021276598,0.23120000000000002,0.13181971568036524,0.20734212765957449,0.3083076595744681,0.24890893617021276,0.23120000000000002,143]
[null,"Female 50-54",0.20488255319148937,0.11088342601351994,0.1740148936170213,0.12088808510638298,0.23120000000000002,0.23378255319148941,0.2362421276595745,0.23120000000000002,0.23120000000000002,0.27498042553191487,0.27498042553191487,0.30043702127659577,0.23599617021276598,0.17524468085106382,0.26034595744680861,0.10022765957446809,0.16455249990195561,0.17561361702127659,0.23120000000000002,0.15347744680851066,0.23833276595744682,0.23833276595744682,0.17032553191489364,0.28051446808510638,9.7344473941234855E-2,0.20414468085106385,0.25825531914893618,0.21976297872340425,0.21718042553191491,0.23120000000000002,0.11602775208140613,0.2695693617021277,0.21017063829787233,0.23120000000000002,0.28322000000000003,0.22591191489361703,0.31802297872340424,0.23120000000000002,0.23120000000000002,0.18090170212765957,0.26735574468085105,0.23120000000000002,0.2362421276595745,0.23120000000000002,0.23120000000000002,0.24079234042553188,0.21865617021276598,0.23120000000000002,0.13181971568036524,0.20734212765957449,0.3083076595744681,0.24890893617021276,0.23120000000000002,144]
[null,"Female 55-59",0.16314393617021278,8.829428516041965E-2,0.1385646276595745,9.6260797872340431E-2,0.18410000000000001,0.18615643617021282,0.18811494680851065,0.18410000000000001,0.18410000000000001,0.21896148936170212,0.21896148936170212,0.23923207446808512,0.18791909574468088,0.13954388297872339,0.20730835106382986,7.9809308510638305E-2,0.13102991017279425,0.13983765957446809,0.18410000000000001,0.12221106382978726,0.18977968085106384,0.18977968085106384,0.13562686170212768,0.22336813829787236,7.7513484656493672E-2,0.16255638297872341,0.20564361702127659,0.17499292553191489,0.17293648936170214,0.18410000000000001,9.2390610545790952E-2,0.21465276595744684,0.16735473404255319,0.18410000000000001,0.22552250000000004,0.1798892021276596,0.25323542553191491,0.18410000000000001,0.18410000000000001,0.14404845744680853,0.21289010638297873,0.18410000000000001,0.18811494680851065,0.18410000000000001,0.18410000000000001,0.19173819148936169,0.17411159574468088,0.18410000000000001,0.10496543969184792,0.16510244680851066,0.24549930851063831,0.19820127659574469,0.18410000000000001,145]
[null,"Female 60-64",0.16314393617021278,8.829428516041965E-2,0.1385646276595745,9.6260797872340431E-2,0.18410000000000001,0.18615643617021282,0.18811494680851065,0.18410000000000001,0.18410000000000001,0.21896148936170212,0.21896148936170212,0.23923207446808512,0.18791909574468088,0.13954388297872339,0.20730835106382986,7.9809308510638305E-2,0.13102991017279425,0.13983765957446809,0.18410000000000001,0.12221106382978726,0.18977968085106384,0.18977968085106384,0.13562686170212768,0.22336813829787236,7.7513484656493672E-2,0.16255638297872341,0.20564361702127659,0.17499292553191489,0.17293648936170214,0.18410000000000001,9.2390610545790952E-2,0.21465276595744684,0.16735473404255319,0.18410000000000001,0.22552250000000004,0.1798892021276596,0.25323542553191491,0.18410000000000001,0.18410000000000001,0.14404845744680853,0.21289010638297873,0.18410000000000001,0.18811494680851065,0.18410000000000001,0.18410000000000001,0.19173819148936169,0.17411159574468088,0.18410000000000001,0.10496543969184792,0.16510244680851066,0.24549930851063831,0.19820127659574469,0.18410000000000001,146]
[null,"Female 65-69",{"$f":"$AR149*C$253","v":0.14630670212765956},7.918189288422206E-2,0.12426409574468086,8.6326223404255317E-2,0.1651,0.16694420212765959,0.16870058510638297,0.1651,0.1651,0.19636361702127658,{"$f":"$AR149*M$253","v":0.19636361702127658},0.2145421808510638,0.16852494680851063,0.12514228723404253,0.18591313829787237,7.1572606382978729E-2,0.11750699711856778,0.12540574468085106,0.1651,0.10959829787234043,{"$f":"$AR149*W$253","v":0.17019351063829785},0.17019351063829785,0.12162952127659574,0.20031547872340424,6.9513722524644786E-2,0.14577978723404256,0.18442021276595744,0.15693281914893617,0.1550886170212766,0.1651,{"$f":"$AR149*AG$253","v":8.2855457909343205E-2},0.19249957446808513,0.15008292553191488,0.1651,0.20224750000000002,0.16132377659574468,0.22710031914893614,0.1651,0.1651,0.12918196808510637,0.19091882978723401,0.1651,{"$f":"$AR149*AS$253","v":0.16870058510638297},0.1651,0.1651,0.17194989361702123,0.15614244680851064,0.1651,9.4132504579707177E-2,0.148063085106383,0.22016260638297871,0.17774595744680849,0.1651,147]
[null,"Female 70-74",0.14630670212765956,7.918189288422206E-2,0.12426409574468086,8.6326223404255317E-2,0.1651,0.16694420212765959,0.16870058510638297,0.1651,0.1651,0.19636361702127658,0.19636361702127658,0.2145421808510638,0.16852494680851063,0.12514228723404253,0.18591313829787237,7.1572606382978729E-2,0.11750699711856778,0.12540574468085106,0.1651,0.10959829787234043,0.17019351063829785,0.17019351063829785,0.12162952127659574,0.20031547872340424,6.9513722524644786E-2,0.14577978723404256,0.18442021276595744,0.15693281914893617,0.1550886170212766,0.1651,8.2855457909343205E-2,0.19249957446808513,0.15008292553191488,0.1651,0.20224750000000002,0.16132377659574468,0.22710031914893614,0.1651,0.1651,0.12918196808510637,0.19091882978723401,0.1651,0.16870058510638297,0.1651,0.1651,0.17194989361702123,0.15614244680851064,0.1651,9.4132504579707177E-2,0.148063085106383,0.22016260638297871,0.17774595744680849,0.1651,148]
[null,"Female 75-79",6.531074468085106E-2,3.5346490039776898E-2,5.5471010638297881E-2,3.8535691489361701E-2,7.3700000000000002E-2,7.4523244680851086E-2,7.5307287234042564E-2,7.3700000000000002E-2,7.3700000000000002E-2,8.76559574468085E-2,8.76559574468085E-2,9.5770797872340427E-2,7.5228882978723405E-2,5.5863031914893613E-2,8.2990904255319173E-2,3.1949734042553191E-2,5.2454668005078413E-2,5.5980638297872337E-2,7.3700000000000002E-2,4.8924255319148943E-2,7.5973723404255317E-2,7.5973723404255317E-2,5.4294946808510637E-2,8.9420053191489365E-2,3.1030656269329621E-2,6.5075531914893625E-2,8.2324468085106378E-2,7.0054202127659573E-2,6.9230957446808516E-2,7.3700000000000002E-2,3.6986355226642002E-2,8.5931063829787241E-2,6.6996436170212767E-2,7.3700000000000002E-2,9.0282500000000002E-2,7.2014308510638309E-2,0.10137670212765958,7.3700000000000002E-2,7.3700000000000002E-2,5.7666329787234044E-2,8.5225425531914881E-2,7.3700000000000002E-2,7.5307287234042564E-2,7.3700000000000002E-2,7.3700000000000002E-2,7.6757765957446794E-2,6.9701382978723414E-2,7.3700000000000002E-2,4.2020385145514351E-2,6.6094787234042551E-2,9.8279734042553191E-2,7.9345106382978717E-2,7.3700000000000002E-2,149]
[null,"Female 80-84",6.531074468085106E-2,3.5346490039776898E-2,5.5471010638297881E-2,3.8535691489361701E-2,7.3700000000000002E-2,7.4523244680851086E-2,7.5307287234042564E-2,7.3700000000000002E-2,7.3700000000000002E-2,8.76559574468085E-2,8.76559574468085E-2,9.5770797872340427E-2,7.5228882978723405E-2,5.5863031914893613E-2,8.2990904255319173E-2,3.1949734042553191E-2,5.2454668005078413E-2,5.5980638297872337E-2,7.3700000000000002E-2,4.8924255319148943E-2,7.5973723404255317E-2,7.5973723404255317E-2,5.4294946808510637E-2,8.9420053191489365E-2,3.1030656269329621E-2,6.5075531914893625E-2,8.2324468085106378E-2,7.0054202127659573E-2,6.9230957446808516E-2,7.3700000000000002E-2,3.6986355226642002E-2,8.5931063829787241E-2,6.6996436170212767E-2,7.3700000000000002E-2,9.0282500000000002E-2,7.2014308510638309E-2,0.10137670212765958,7.3700000000000002E-2,7.3700000000000002E-2,5.7666329787234044E-2,8.5225425531914881E-2,7.3700000000000002E-2,7.5307287234042564E-2,7.3700000000000002E-2,7.3700000000000002E-2,7.6757765957446794E-2,6.9701382978723414E-2,7.3700000000000002E-2,4.2020385145514351E-2,6.6094787234042551E-2,9.8279734042553191E-2,7.9345106382978717E-2,7.3700000000000002E-2,150]
[null,"Female 85-89",6.531074468085106E-2,3.5346490039776898E-2,5.5471010638297881E-2,3.8535691489361701E-2,7.3700000000000002E-2,7.4523244680851086E-2,7.5307287234042564E-2,7.3700000000000002E-2,7.3700000000000002E-2,8.76559574468085E-2,8.76559574468085E-2,9.5770797872340427E-2,7.5228882978723405E-2,5.5863031914893613E-2,8.2990904255319173E-2,3.1949734042553191E-2,5.2454668005078413E-2,5.5980638297872337E-2,7.3700000000000002E-2,4.8924255319148943E-2,7.5973723404255317E-2,7.5973723404255317E-2,5.4294946808510637E-2,8.9420053191489365E-2,3.1030656269329621E-2,6.5075531914893625E-2,8.2324468085106378E-2,7.0054202127659573E-2,6.9230957446808516E-2,7.3700000000000002E-2,3.6986355226642002E-2,8.5931063829787241E-2,6.6996436170212767E-2,7.3700000000000002E-2,9.0282500000000002E-2,7.2014308510638309E-2,0.10137670212765958,7.3700000000000002E-2,7.3700000000000002E-2,5.7666329787234044E-2,8.5225425531914881E-2,7.3700000000000002E-2,7.5307287234042564E-2,7.3700000000000002E-2,7.3700000000000002E-2,7.6757765957446794E-2,6.9701382978723414E-2,7.3700000000000002E-2,4.2020385145514351E-2,6.6094787234042551E-2,9.8279734042553191E-2,7.9345106382978717E-2,7.3700000000000002E-2,151]
[null,"Female 90+",6.531074468085106E-2,3.5346490039776898E-2,5.5471010638297881E-2,3.8535691489361701E-2,7.3700000000000002E-2,7.4523244680851086E-2,7.5307287234042564E-2,7.3700000000000002E-2,7.3700000000000002E-2,8.76559574468085E-2,8.76559574468085E-2,9.5770797872340427E-2,7.5228882978723405E-2,5.5863031914893613E-2,8.2990904255319173E-2,3.1949734042553191E-2,5.2454668005078413E-2,5.5980638297872337E-2,7.3700000000000002E-2,4.8924255319148943E-2,7.5973723404255317E-2,7.5973723404255317E-2,5.4294946808510637E-2,8.9420053191489365E-2,3.1030656269329621E-2,6.5075531914893625E-2,8.2324468085106378E-2,7.0054202127659573E-2,6.9230957446808516E-2,7.3700000000000002E-2,3.6986355226642002E-2,8.5931063829787241E-2,6.6996436170212767E-2,7.3700000000000002E-2,9.0282500000000002E-2,7.2014308510638309E-2,0.10137670212765958,7.3700000000000002E-2,7.3700000000000002E-2,5.7666329787234044E-2,8.5225425531914881E-2,7.3700000000000002E-2,7.5307287234042564E-2,7.3700000000000002E-2,7.3700000000000002E-2,7.6757765957446794E-2,6.9701382978723414E-2,7.3700000000000002E-2,4.2020385145514351E-2,6.6094787234042551E-2,9.8279734042553191E-2,7.9345106382978717E-2,7.3700000000000002E-2,152]
[null,"Male 0-4",null,null,null,null,null,null,null,null,null,null,null,null,null,null,null,null,null,null,null,null,null,null,null,null,null,null,null,null,null,null,null,null,null,null,null,null,null,null,null,null,null,null,null,null,null,null,null,null,null,null,null,null,null,153]
[null,"Male 5-9",null,null,null,null,null,null,null,null,null,null,null,null,null,null,null,null,null,null,null,null,null,null,null,null,null,null,null,null,null,null,null,null,null,null,null,null,null,null,null,null,null,null,null,null,null,null,null,null,null,null,null,null,null,154]
[null,"Male 10-15",null,null,null,null,null,null,null,null,null,null,null,null,null,null,null,null,null,null,null,null,null,null,null,null,null,null,null,null,null,null,null,null,null,null,null,null,null,null,null,null,null,null,null,null,null,null,null,null,null,null,null,null,null,155]
[null,"Male 16-19",{"$f":"$AR158*C$254","v":0.23198203883495144},8.1609818204916376E-2,0.19704443954104151,0.23686968225948812,0.2051,0.21333658428949692,0.15106438658428953,0.2051,0.2051,0.2118883936451898,{"$f":"$AR158*M$254","v":0.2118883936451898},0.2332492056487202,0.20872047661076787,0.17667925860547221,0.19632034421888792,0.11820856134157107,0.12111007104457357,0.17514055604589585,0.2051,0.19107065313327448,{"$f":"$AR158*W$254","v":0.22456006178287732},0.22456006178287732,0.17514055604589585,0.24058067078552514,7.1645196285951313E-2,0.21505631067961165,0.22012497793468666,0.21740962047661078,0.2217541924095322,0.2051,{"$f":"$AR158*AG$254","v":8.5396024406155263E-2},0.19586778464254195,0.18201946160635482,0.2051,0.22139214474845548,0.26085533980582526,0.19813058252427185,0.2051,0.2051,0.18165741394527801,0.21523733451015006,0.2051,{"$f":"$AR158*AS$254","v":0.15106438658428953},0.2051,0.2051,0.1620163283318623,0.19351447484554282,0.2051,9.7018855019745526E-2,0.21550887025595761,0.23623609885260372,0.16590834068843777,0.2051,156]
[null,"Male 20-24",0.23198203883495144,8.1609818204916376E-2,0.19704443954104151,0.23686968225948812,0.2051,0.21333658428949692,0.15106438658428953,0.2051,0.2051,0.2118883936451898,0.2118883936451898,0.2332492056487202,0.20872047661076787,0.17667925860547221,0.19632034421888792,0.11820856134157107,0.12111007104457357,0.17514055604589585,0.2051,0.19107065313327448,0.22456006178287732,0.22456006178287732,0.17514055604589585,0.24058067078552514,7.1645196285951313E-2,0.21505631067961165,0.22012497793468666,0.21740962047661078,0.2217541924095322,0.2051,8.5396024406155263E-2,0.19586778464254195,0.18201946160635482,0.2051,0.22139214474845548,0.26085533980582526,0.19813058252427185,0.2051,0.2051,0.18165741394527801,0.21523733451015006,0.2051,0.15106438658428953,0.2051,0.2051,0.1620163283318623,0.19351447484554282,0.2051,9.7018855019745526E-2,0.21550887025595761,0.23623609885260372,0.16590834068843777,0.2051,157]
[null,"Male 25-29",0.32495582524271843,0.11431740989893942,0.27601593115622242,0.33180233892321276,0.2873,0.29883764342453661,0.21160798764342456,0.2873,0.2873,0.29680904677846426,0.29680904677846426,0.32673084730803176,0.29237149161518095,0.24748879082082964,0.27500163283318624,0.16558420123565756,0.16964857830865912,0.24533340688437777,0.2873,0.26764796999117385,0.31455926743159757,0.31455926743159757,0.24533340688437777,0.33700061782877316,0.10035916573843887,0.30124660194174757,0.30834669020300087,0.30454307149161519,0.31062886142983226,0.2873,0.11962105222763729,0.27436769638128866,0.25496924095322154,0.2873,0.31012171226831425,0.36540097087378642,0.27753737864077671,0.2873,0.2873,0.25446209179170343,0.30150017652250666,0.2873,0.21160798764342456,0.2873,0.2873,0.22694924977934686,0.27107122683142099,0.2873,0.13590208214126226,0.30188053839364515,0.33091482789055604,0.23240110326566638,0.2873,158]
[null,"Male 30-34",0.32495582524271843,0.11431740989893942,0.27601593115622242,0.33180233892321276,0.2873,0.29883764342453661,0.21160798764342456,0.2873,0.2873,0.29680904677846426,0.29680904677846426,0.32673084730803176,0.29237149161518095,0.24748879082082964,0.27500163283318624,0.16558420123565756,0.16964857830865912,0.24533340688437777,0.2873,0.26764796999117385,0.31455926743159757,0.31455926743159757,0.24533340688437777,0.33700061782877316,0.10035916573843887,0.30124660194174757,0.30834669020300087,0.30454307149161519,0.31062886142983226,0.2873,0.11962105222763729,0.27436769638128866,0.25496924095322154,0.2873,0.31012171226831425,0.36540097087378642,0.27753737864077671,0.2873,0.2873,0.25446209179170343,0.30150017652250666,0.2873,0.21160798764342456,0.2873,0.2873,0.22694924977934686,0.27107122683142099,0.2873,0.13590208214126226,0.30188053839364515,0.33091482789055604,0.23240110326566638,0.2873,159]
[null,"Male 35-39",0.35074417475728159,0.12338958861698962,0.29792043248014127,0.35813402471315103,0.31010000000000004,0.32255326566637249,0.22840110326566643,0.31010000000000004,0.31010000000000004,0.32036368049426311,0.32036368049426311,0.35266006178287734,0.31557396293027368,0.26712939099735217,0.29682563989408656,0.17872488967343339,0.18311181390015732,0.2648029567519859,0.31010000000000004,0.28888839364518981,0.3395225507502207,0.3395225507502207,0.2648029567519859,0.3637448367166814,0.10832362441869091,0.32515339805825244,0.33281694616063551,0.32871147396293032,0.33528022947925862,0.31010000000000004,0.12911412563797539,0.29614139452780236,0.27520348631950581,0.31010000000000004,0.33473283318623132,0.39439902912621366,0.29956262135922335,0.31010000000000004,0.31010000000000004,0.27465609002647839,0.32542709620476618,0.31010000000000004,0.22840110326566643,0.31010000000000004,0.31010000000000004,0.24495984112974406,0.29258331862312448,0.31010000000000004,0.14668721083190195,0.32583764342453664,0.3571760812003531,0.25084435127978821,0.31010000000000004,160]
[null,"Male 40-44",0.35074417475728159,0.12338958861698962,0.29792043248014127,0.35813402471315103,0.31010000000000004,0.32255326566637249,0.22840110326566643,0.31010000000000004,0.31010000000000004,0.32036368049426311,0.32036368049426311,0.35266006178287734,0.31557396293027368,0.26712939099735217,0.29682563989408656,0.17872488967343339,0.18311181390015732,0.2648029567519859,0.31010000000000004,0.28888839364518981,0.3395225507502207,0.3395225507502207,0.2648029567519859,0.3637448367166814,0.10832362441869091,0.32515339805825244,0.33281694616063551,0.32871147396293032,0.33528022947925862,0.31010000000000004,0.12911412563797539,0.29614139452780236,0.27520348631950581,0.31010000000000004,0.33473283318623132,0.39439902912621366,0.29956262135922335,0.31010000000000004,0.31010000000000004,0.27465609002647839,0.32542709620476618,0.31010000000000004,0.22840110326566643,0.31010000000000004,0.31010000000000004,0.24495984112974406,0.29258331862312448,0.31010000000000004,0.14668721083190195,0.32583764342453664,0.3571760812003531,0.25084435127978821,0.31010000000000004,161]
[null,"Male 45-49",0.28118349514563107,9.8918580232775291E-2,0.23883592233009712,0.28710776699029134,0.24860000000000002,0.25858349514563111,0.18310388349514567,0.24860000000000002,0.24860000000000002,0.25682815533980585,0.25682815533980585,0.28271941747572815,0.25298834951456312,0.21415145631067961,0.23795825242718449,0.14327961165048544,0.14679650737045827,0.21228640776699031,0.24860000000000002,0.23159514563106798,0.27218737864077674,0.27218737864077674,0.21228640776699031,0.29160582524271844,8.6840545083800569E-2,0.26066796116504853,0.26681165048543687,0.26352038834951458,0.26878640776699031,0.24860000000000002,0.10350780920219503,0.23740970873786413,0.22062427184466021,0.24860000000000002,0.26834757281553406,0.31618058252427189,0.24015242718446603,0.24860000000000002,0.24860000000000002,0.22018543689320388,0.26088737864077671,0.24860000000000002,0.18310388349514567,0.24860000000000002,0.24860000000000002,0.19637864077669903,0.23455728155339808,0.24860000000000002,0.11759574528478177,0.26121650485436892,0.28633980582524271,0.20109611650485437,0.24860000000000002,162]
[null,"Male 50-54",0.28118349514563107,9.8918580232775291E-2,0.23883592233009712,0.28710776699029134,0.24860000000000002,0.25858349514563111,0.18310388349514567,0.24860000000000002,0.24860000000000002,0.25682815533980585,0.25682815533980585,0.28271941747572815,0.25298834951456312,0.21415145631067961,0.23795825242718449,0.14327961165048544,0.14679650737045827,0.21228640776699031,0.24860000000000002,0.23159514563106798,0.27218737864077674,0.27218737864077674,0.21228640776699031,0.29160582524271844,8.6840545083800569E-2,0.26066796116504853,0.26681165048543687,0.26352038834951458,0.26878640776699031,0.24860000000000002,0.10350780920219503,0.23740970873786413,0.22062427184466021,0.24860000000000002,0.26834757281553406,0.31618058252427189,0.24015242718446603,0.24860000000000002,0.24860000000000002,0.22018543689320388,0.26088737864077671,0.24860000000000002,0.18310388349514567,0.24860000000000002,0.24860000000000002,0.19637864077669903,0.23455728155339808,0.24860000000000002,0.11759574528478177,0.26121650485436892,0.28633980582524271,0.20109611650485437,0.24860000000000002,163]
[null,"Male 55-59",0.23695873786407767,8.3360589536469923E-2,0.20127162400706095,0.24195123565754639,0.20950000000000002,0.21791328331862314,0.15430516328331864,0.20950000000000002,0.20950000000000002,0.21643402471315096,0.21643402471315096,0.23825308914386586,0.21319814651368052,0.18046954986760813,0.20053199470432481,0.12074448367166815,0.12370823931661709,0.17889783759929392,0.20950000000000002,0.19516968225948811,0.22937753751103268,0.22937753751103268,0.17889783759929392,0.24574183583406886,7.3182197083894687E-2,0.21966990291262137,0.22484730803177405,0.2220736981465137,0.22651147396293028,0.20950000000000002,8.7228021029202976E-2,0.20006972639011478,0.18592431597528689,0.20950000000000002,0.22614165931156227,0.26645145631067968,0.20238106796116506,0.20950000000000002,0.20950000000000002,0.18555450132391882,0.21985481023830541,0.20950000000000002,0.15430516328331864,0.20950000000000002,0.20950000000000002,0.16549205648720211,0.19766593115622244,0.20950000000000002,9.9100195644254943E-2,0.22013217122683143,0.24130406001765226,0.16946756398940865,0.20950000000000002,164]
[null,"Male 60-64",0.23695873786407767,8.3360589536469923E-2,0.20127162400706095,0.24195123565754639,0.20950000000000002,0.21791328331862314,0.15430516328331864,0.20950000000000002,0.20950000000000002,0.21643402471315096,0.21643402471315096,0.23825308914386586,0.21319814651368052,0.18046954986760813,0.20053199470432481,0.12074448367166815,0.12370823931661709,0.17889783759929392,0.20950000000000002,0.19516968225948811,0.22937753751103268,0.22937753751103268,0.17889783759929392,0.24574183583406886,7.3182197083894687E-2,0.21966990291262137,0.22484730803177405,0.2220736981465137,0.22651147396293028,0.20950000000000002,8.7228021029202976E-2,0.20006972639011478,0.18592431597528689,0.20950000000000002,0.22614165931156227,0.26645145631067968,0.20238106796116506,0.20950000000000002,0.20950000000000002,0.18555450132391882,0.21985481023830541,0.20950000000000002,0.15430516328331864,0.20950000000000002,0.20950000000000002,0.16549205648720211,0.19766593115622244,0.20950000000000002,9.9100195644254943E-2,0.22013217122683143,0.24130406001765226,0.16946756398940865,0.20950000000000002,165]
[null,"Male 65-69",{"$f":"$AR168*C$254","v":0.18425097087378642},6.4818329525016469E-2,0.15650189761694619,0.18813296557811127,0.16290000000000002,0.16944187996469551,0.11998239187996472,0.16290000000000002,0.16290000000000002,0.16829165931156226,{"$f":"$AR168*M$254","v":0.16829165931156226},0.18525741394527803,0.1657755516328332,0.14032691968225949,0.15592678729037954,9.3886760812003547E-2,9.6191275344519919E-2,0.1391048102383054,0.16290000000000002,0.15175723742277142,{"$f":"$AR168*W$254","v":0.1783560900264784},0.1783560900264784,0.1391048102383054,0.19108040600176524,5.6903961360221696E-2,0.17080776699029127,0.17483353927625772,0.17267687555163283,0.17612753751103266,0.16290000000000002,{"$f":"$AR168*AG$254","v":6.7825511339652339E-2},0.15556734333627539,0.14456835834068846,0.16290000000000002,0.17583998234774939,0.20718349514563111,0.15736456310679614,0.16290000000000002,0.16290000000000002,0.14428080317740513,0.17095154457193296,0.16290000000000002,{"$f":"$AR168*AS$254","v":0.11998239187996472},0.16290000000000002,0.16290000000000002,0.12868093556928509,0.15369823477493383,0.16290000000000002,7.7056906302859815E-2,0.17116721094439541,0.1876297440423654,0.13177215357458077,0.16290000000000002,166]
[null,"Male 70-74",0.18425097087378642,6.4818329525016469E-2,0.15650189761694619,0.18813296557811127,0.16290000000000002,0.16944187996469551,0.11998239187996472,0.16290000000000002,0.16290000000000002,0.16829165931156226,0.16829165931156226,0.18525741394527803,0.1657755516328332,0.14032691968225949,0.15592678729037954,9.3886760812003547E-2,9.6191275344519919E-2,0.1391048102383054,0.16290000000000002,0.15175723742277142,0.1783560900264784,0.1783560900264784,0.1391048102383054,0.19108040600176524,5.6903961360221696E-2,0.17080776699029127,0.17483353927625772,0.17267687555163283,0.17612753751103266,0.16290000000000002,6.7825511339652339E-2,0.15556734333627539,0.14456835834068846,0.16290000000000002,0.17583998234774939,0.20718349514563111,0.15736456310679614,0.16290000000000002,0.16290000000000002,0.14428080317740513,0.17095154457193296,0.16290000000000002,0.11998239187996472,0.16290000000000002,0.16290000000000002,0.12868093556928509,0.15369823477493383,0.16290000000000002,7.7056906302859815E-2,0.17116721094439541,0.1876297440423654,0.13177215357458077,0.16290000000000002,167]
[null,"Male 75-79",8.3699029126213603E-2,2.9444790576127804E-2,7.1093556928508397E-2,8.5462488967343361E-2,7.400000000000001E-2,7.6971756398940883E-2,5.4503971756398956E-2,7.400000000000001E-2,7.400000000000001E-2,7.6449249779346889E-2,7.6449249779346889E-2,8.4156222418358351E-2,7.5306266548985007E-2,6.3745807590467787E-2,7.0832303618711401E-2,4.2649602824360117E-2,4.3696466393459019E-2,6.3190644307149171E-2,7.400000000000001E-2,6.8938217122683151E-2,8.1021182700794364E-2,8.1021182700794364E-2,6.3190644307149171E-2,8.6801412180052967E-2,2.5849558874502184E-2,7.7592233009708744E-2,7.9421006178287734E-2,7.8441306266548994E-2,8.0008826125330987E-2,7.400000000000001E-2,3.0810852296711315E-2,7.0669020300088273E-2,6.5672550750220673E-2,7.400000000000001E-2,7.9878199470432509E-2,9.4116504854368954E-2,7.1485436893203899E-2,7.400000000000001E-2,7.400000000000001E-2,6.5541924095322154E-2,7.7657546337158004E-2,7.400000000000001E-2,5.4503971756398956E-2,7.400000000000001E-2,7.400000000000001E-2,5.8455428067078555E-2,6.9819947043248023E-2,7.400000000000001E-2,3.5004365048567382E-2,7.7755516328331872E-2,8.5233892321270974E-2,5.9859664607237434E-2,7.400000000000001E-2,168]
[null,"Male 80-84",8.3699029126213603E-2,2.9444790576127804E-2,7.1093556928508397E-2,8.5462488967343361E-2,7.400000000000001E-2,7.6971756398940883E-2,5.4503971756398956E-2,7.400000000000001E-2,7.400000000000001E-2,7.6449249779346889E-2,7.6449249779346889E-2,8.4156222418358351E-2,7.5306266548985007E-2,6.3745807590467787E-2,7.0832303618711401E-2,4.2649602824360117E-2,4.3696466393459019E-2,6.3190644307149171E-2,7.400000000000001E-2,6.8938217122683151E-2,8.1021182700794364E-2,8.1021182700794364E-2,6.3190644307149171E-2,8.6801412180052967E-2,2.5849558874502184E-2,7.7592233009708744E-2,7.9421006178287734E-2,7.8441306266548994E-2,8.0008826125330987E-2,7.400000000000001E-2,3.0810852296711315E-2,7.0669020300088273E-2,6.5672550750220673E-2,7.400000000000001E-2,7.9878199470432509E-2,9.4116504854368954E-2,7.1485436893203899E-2,7.400000000000001E-2,7.400000000000001E-2,6.5541924095322154E-2,7.7657546337158004E-2,7.400000000000001E-2,5.4503971756398956E-2,7.400000000000001E-2,7.400000000000001E-2,5.8455428067078555E-2,6.9819947043248023E-2,7.400000000000001E-2,3.5004365048567382E-2,7.7755516328331872E-2,8.5233892321270974E-2,5.9859664607237434E-2,7.400000000000001E-2,169]
[null,"Male 85-89",8.3699029126213603E-2,2.9444790576127804E-2,7.1093556928508397E-2,8.5462488967343361E-2,7.400000000000001E-2,7.6971756398940883E-2,5.4503971756398956E-2,7.400000000000001E-2,7.400000000000001E-2,7.6449249779346889E-2,7.6449249779346889E-2,8.4156222418358351E-2,7.5306266548985007E-2,6.3745807590467787E-2,7.0832303618711401E-2,4.2649602824360117E-2,4.3696466393459019E-2,6.3190644307149171E-2,7.400000000000001E-2,6.8938217122683151E-2,8.1021182700794364E-2,8.1021182700794364E-2,6.3190644307149171E-2,8.6801412180052967E-2,2.5849558874502184E-2,7.7592233009708744E-2,7.9421006178287734E-2,7.8441306266548994E-2,8.0008826125330987E-2,7.400000000000001E-2,3.0810852296711315E-2,7.0669020300088273E-2,6.5672550750220673E-2,7.400000000000001E-2,7.9878199470432509E-2,9.4116504854368954E-2,7.1485436893203899E-2,7.400000000000001E-2,7.400000000000001E-2,6.5541924095322154E-2,7.7657546337158004E-2,7.400000000000001E-2,5.4503971756398956E-2,7.400000000000001E-2,7.400000000000001E-2,5.8455428067078555E-2,6.9819947043248023E-2,7.400000000000001E-2,3.5004365048567382E-2,7.7755516328331872E-2,8.5233892321270974E-2,5.9859664607237434E-2,7.400000000000001E-2,170]
[null,"Male 90+",8.3699029126213603E-2,2.9444790576127804E-2,7.1093556928508397E-2,8.5462488967343361E-2,7.400000000000001E-2,7.6971756398940883E-2,5.4503971756398956E-2,7.400000000000001E-2,7.400000000000001E-2,7.6449249779346889E-2,7.6449249779346889E-2,8.4156222418358351E-2,7.5306266548985007E-2,6.3745807590467787E-2,7.0832303618711401E-2,4.2649602824360117E-2,4.3696466393459019E-2,6.3190644307149171E-2,7.400000000000001E-2,6.8938217122683151E-2,8.1021182700794364E-2,8.1021182700794364E-2,6.3190644307149171E-2,8.6801412180052967E-2,2.5849558874502184E-2,7.7592233009708744E-2,7.9421006178287734E-2,7.8441306266548994E-2,8.0008826125330987E-2,7.400000000000001E-2,3.0810852296711315E-2,7.0669020300088273E-2,6.5672550750220673E-2,7.400000000000001E-2,7.9878199470432509E-2,9.4116504854368954E-2,7.1485436893203899E-2,7.400000000000001E-2,7.400000000000001E-2,6.5541924095322154E-2,7.7657546337158004E-2,7.400000000000001E-2,5.4503971756398956E-2,7.400000000000001E-2,7.400000000000001E-2,5.8455428067078555E-2,6.9819947043248023E-2,7.400000000000001E-2,3.5004365048567382E-2,7.7755516328331872E-2,8.5233892321270974E-2,5.9859664607237434E-2,7.400000000000001E-2,171]
["SIMD Q4","Female 0-4",null,null,null,null,null,null,null,null,null,null,null,null,null,null,null,null,null,null,null,null,null,null,null,null,null,null,null,null,null,null,null,null,null,null,null,null,null,null,null,null,null,null,null,null,null,null,null,null,null,null,null,null,null,172]
[null,"Female 5-9",null,null,null,null,null,null,null,null,null,null,null,null,null,null,null,null,null,null,null,null,null,null,null,null,null,null,null,null,null,null,null,null,null,null,null,null,null,null,null,null,null,null,null,null,null,null,null,null,null,null,null,null,null,173]
[null,"Female 10-15",null,null,null,null,null,null,null,null,null,null,null,null,null,null,null,null,null,null,null,null,null,null,null,null,null,null,null,null,null,null,null,null,null,null,null,null,null,null,null,null,null,null,null,null,null,null,null,null,null,null,null,null,null,174]
[null,"Female 16-19",{"$f":"$AR177*C$253","v":0.16996744680851064},9.1987202030247073E-2,0.14436010638297875,0.10028691489361702,0.1918,0.19394244680851067,0.19598287234042555,0.1918,0.1918,0.22811957446808509,{"$f":"$AR177*M$253","v":0.22811957446808509},0.24923797872340422,0.19577882978723404,0.14538031914893615,0.21597904255319153,8.3147340425531915E-2,0.13651024862108602,0.14568638297872338,0.1918,0.12732255319148938,{"$f":"$AR177*W$253","v":0.19771723404255317},0.19771723404255317,0.14129946808510638,0.2327105319148936,8.075549352045347E-2,0.16935531914893617,0.2142446808510638,0.18231202127659574,0.1801695744680851,0.1918,{"$f":"$AR177*AG$253","v":9.625485661424607E-2},0.22363063829787236,0.17435436170212765,0.1918,0.23495500000000002,0.18741308510638299,0.26382702127659574,0.1918,0.1918,0.15007329787234042,0.2217942553191489,0.1918,{"$f":"$AR177*AS$253","v":0.19598287234042555},0.1918,0.1918,0.19975765957446806,0.18139382978723406,0.1918,0.10935562918466285,0.17200787234042553,0.2557673404255319,0.20649106382978721,0.1918,175]
[null,"Female 20-24",0.16996744680851064,9.1987202030247073E-2,0.14436010638297875,0.10028691489361702,0.1918,0.19394244680851067,0.19598287234042555,0.1918,0.1918,0.22811957446808509,0.22811957446808509,0.24923797872340422,0.19577882978723404,0.14538031914893615,0.21597904255319153,8.3147340425531915E-2,0.13651024862108602,0.14568638297872338,0.1918,0.12732255319148938,0.19771723404255317,0.19771723404255317,0.14129946808510638,0.2327105319148936,8.075549352045347E-2,0.16935531914893617,0.2142446808510638,0.18231202127659574,0.1801695744680851,0.1918,9.625485661424607E-2,0.22363063829787236,0.17435436170212765,0.1918,0.23495500000000002,0.18741308510638299,0.26382702127659574,0.1918,0.1918,0.15007329787234042,0.2217942553191489,0.1918,0.19598287234042555,0.1918,0.1918,0.19975765957446806,0.18139382978723406,0.1918,0.10935562918466285,0.17200787234042553,0.2557673404255319,0.20649106382978721,0.1918,176]
[null,"Female 25-29",0.16589106382978724,8.9781043900220292E-2,0.14089787234042556,9.7881702127659564E-2,0.18720000000000001,0.18929106382978728,0.19128255319148937,0.18720000000000001,0.18720000000000001,0.22264851063829785,0.22264851063829785,0.24326042553191488,0.19108340425531917,0.14189361702127659,0.21079914893617027,8.1153191489361703E-2,0.13323628019743119,0.14219234042553192,0.18720000000000001,0.12426893617021278,0.19297531914893618,0.19297531914893618,0.13791063829787234,0.22712936170212766,7.8818709004321641E-2,0.1652936170212766,0.20910638297872339,0.17793957446808512,0.17584851063829787,0.18720000000000001,9.3946345975948212E-2,0.21826723404255322,0.17017276595744679,0.18720000000000001,0.22932000000000002,0.18291829787234043,0.25749957446808508,0.18720000000000001,0.18720000000000001,0.14647404255319149,0.21647489361702127,0.18720000000000001,0.19128255319148937,0.18720000000000001,0.18720000000000001,0.19496680851063827,0.17704340425531917,0.18720000000000001,0.10673291857856562,0.16788255319148937,0.24963319148936169,0.2015387234042553,0.18720000000000001,177]
[null,"Female 30-34",0.16589106382978724,8.9781043900220292E-2,0.14089787234042556,9.7881702127659564E-2,0.18720000000000001,0.18929106382978728,0.19128255319148937,0.18720000000000001,0.18720000000000001,0.22264851063829785,0.22264851063829785,0.24326042553191488,0.19108340425531917,0.14189361702127659,0.21079914893617027,8.1153191489361703E-2,0.13323628019743119,0.14219234042553192,0.18720000000000001,0.12426893617021278,0.19297531914893618,0.19297531914893618,0.13791063829787234,0.22712936170212766,7.8818709004321641E-2,0.1652936170212766,0.20910638297872339,0.17793957446808512,0.17584851063829787,0.18720000000000001,9.3946345975948212E-2,0.21826723404255322,0.17017276595744679,0.18720000000000001,0.22932000000000002,0.18291829787234043,0.25749957446808508,0.18720000000000001,0.18720000000000001,0.14647404255319149,0.21647489361702127,0.18720000000000001,0.19128255319148937,0.18720000000000001,0.18720000000000001,0.19496680851063827,0.17704340425531917,0.18720000000000001,0.10673291857856562,0.16788255319148937,0.24963319148936169,0.2015387234042553,0.18720000000000001,178]
[null,"Female 35-39",0.13886287234042552,7.5153256298955778E-2,0.11794175531914895,8.1934095744680843E-2,0.15670000000000001,0.15845037234042558,0.16011739361702129,0.15670000000000001,0.15670000000000001,0.18637297872340425,0.18637297872340425,0.20362664893617022,0.15995069148936172,0.11877526595744679,0.17645420212765961,6.7931117021276605E-2,0.11152844608406767,0.11902531914893616,0.15670000000000001,0.10402212765957448,0.16153436170212765,0.16153436170212765,0.11544122340425532,0.1901237765957447,6.5976985582143169E-2,0.13836276595744681,0.17503723404255317,0.14894835106382978,0.14719797872340426,0.15670000000000001,7.8639916743755797E-2,0.18270553191489364,0.14244696808510637,0.15670000000000001,0.19195750000000003,0.15311590425531915,0.21554585106382979,0.15670000000000001,0.15670000000000001,0.12260941489361703,0.18120521276595744,0.15670000000000001,0.16011739361702129,0.15670000000000001,0.15670000000000001,0.16320138297872339,0.14819819148936172,0.15670000000000001,8.9343206951181794E-2,0.14052989361702128,0.20896111702127659,0.16870255319148936,0.15670000000000001,179]
[null,"Female 40-44",0.13886287234042552,7.5153256298955778E-2,0.11794175531914895,8.1934095744680843E-2,0.15670000000000001,0.15845037234042558,0.16011739361702129,0.15670000000000001,0.15670000000000001,0.18637297872340425,0.18637297872340425,0.20362664893617022,0.15995069148936172,0.11877526595744679,0.17645420212765961,6.7931117021276605E-2,0.11152844608406767,0.11902531914893616,0.15670000000000001,0.10402212765957448,0.16153436170212765,0.16153436170212765,0.11544122340425532,0.1901237765957447,6.5976985582143169E-2,0.13836276595744681,0.17503723404255317,0.14894835106382978,0.14719797872340426,0.15670000000000001,7.8639916743755797E-2,0.18270553191489364,0.14244696808510637,0.15670000000000001,0.19195750000000003,0.15311590425531915,0.21554585106382979,0.15670000000000001,0.15670000000000001,0.12260941489361703,0.18120521276595744,0.15670000000000001,0.16011739361702129,0.15670000000000001,0.15670000000000001,0.16320138297872339,0.14819819148936172,0.15670000000000001,8.9343206951181794E-2,0.14052989361702128,0.20896111702127659,0.16870255319148936,0.15670000000000001,180]
[null,"Female 45-49",0.13248244680851062,7.1700139225870374E-2,0.11252260638297873,7.8169414893617006E-2,0.14949999999999999,0.15116994680851067,0.15276037234042553,0.14949999999999999,0.14949999999999999,0.17780957446808507,0.17780957446808507,0.19427047872340422,0.15260132978723404,0.11331781914893616,0.16834654255319151,6.4809840425531909E-2,0.10640397376878184,0.11355638297872339,0.14949999999999999,9.9242553191489363E-2,0.15411223404255317,0.15411223404255317,0.11013696808510637,0.18138803191489361,6.294549677428464E-2,0.13200531914893615,0.16699468085106381,0.14210452127659573,0.1404345744680851,0.14949999999999999,7.502659574468086E-2,0.17431063829787236,0.13590186170212765,0.14949999999999999,0.18313750000000001,0.14608058510638297,0.20564202127659573,0.14949999999999999,0.14949999999999999,0.11697579787234043,0.17287925531914891,0.14949999999999999,0.15276037234042553,0.14949999999999999,0.14949999999999999,0.15570265957446805,0.14138882978723405,0.14949999999999999,8.5238094698160044E-2,0.13407287234042553,0.1993598404255319,0.16095106382978722,0.14949999999999999,181]
[null,"Female 50-54",0.13248244680851062,7.1700139225870374E-2,0.11252260638297873,7.8169414893617006E-2,0.14949999999999999,0.15116994680851067,0.15276037234042553,0.14949999999999999,0.14949999999999999,0.17780957446808507,0.17780957446808507,0.19427047872340422,0.15260132978723404,0.11331781914893616,0.16834654255319151,6.4809840425531909E-2,0.10640397376878184,0.11355638297872339,0.14949999999999999,9.9242553191489363E-2,0.15411223404255317,0.15411223404255317,0.11013696808510637,0.18138803191489361,6.294549677428464E-2,0.13200531914893615,0.16699468085106381,0.14210452127659573,0.1404345744680851,0.14949999999999999,7.502659574468086E-2,0.17431063829787236,0.13590186170212765,0.14949999999999999,0.18313750000000001,0.14608058510638297,0.20564202127659573,0.14949999999999999,0.14949999999999999,0.11697579787234043,0.17287925531914891,0.14949999999999999,0.15276037234042553,0.14949999999999999,0.14949999999999999,0.15570265957446805,0.14138882978723405,0.14949999999999999,8.5238094698160044E-2,0.13407287234042553,0.1993598404255319,0.16095106382978722,0.14949999999999999,182]
[null,"Female 55-59",0.12202563829787236,6.6040864022758203E-2,0.10364122340425534,7.1999521276595743E-2,0.13770000000000002,0.13923813829787238,0.14070303191489364,0.13770000000000002,0.13770000000000002,0.16377510638297874,0.16377510638297874,0.17893675531914896,0.1405565425531915,0.10437367021276596,0.15505898936170218,5.9694414893617029E-2,9.8005533029841219E-2,0.10459340425531916,0.13770000000000002,9.1409361702127684E-2,0.14194819148936172,0.14194819148936172,0.10144388297872341,0.16707111702127661,5.7977223450294289E-2,0.12158617021276598,0.15381382978723404,0.13088824468085108,0.12935010638297875,0.13770000000000002,6.9104764107308064E-2,0.16055234042553196,0.12517515957446809,0.13770000000000002,0.16868250000000004,0.13455047872340428,0.18941074468085106,0.13770000000000002,0.13770000000000002,0.1077429255319149,0.15923393617021275,0.13770000000000002,0.14070303191489364,0.13770000000000002,0.13770000000000002,0.14341308510638298,0.13022904255319151,0.13770000000000002,7.8510271839041065E-2,0.12349053191489363,0.18362441489361703,0.14824723404255319,0.13770000000000002,183]
[null,"Female 60-64",0.12202563829787236,6.6040864022758203E-2,0.10364122340425534,7.1999521276595743E-2,0.13770000000000002,0.13923813829787238,0.14070303191489364,0.13770000000000002,0.13770000000000002,0.16377510638297874,0.16377510638297874,0.17893675531914896,0.1405565425531915,0.10437367021276596,0.15505898936170218,5.9694414893617029E-2,9.8005533029841219E-2,0.10459340425531916,0.13770000000000002,9.1409361702127684E-2,0.14194819148936172,0.14194819148936172,0.10144388297872341,0.16707111702127661,5.7977223450294289E-2,0.12158617021276598,0.15381382978723404,0.13088824468085108,0.12935010638297875,0.13770000000000002,6.9104764107308064E-2,0.16055234042553196,0.12517515957446809,0.13770000000000002,0.16868250000000004,0.13455047872340428,0.18941074468085106,0.13770000000000002,0.13770000000000002,0.1077429255319149,0.15923393617021275,0.13770000000000002,0.14070303191489364,0.13770000000000002,0.13770000000000002,0.14341308510638298,0.13022904255319151,0.13770000000000002,7.8510271839041065E-2,0.12349053191489363,0.18362441489361703,0.14824723404255319,0.13770000000000002,184]
[null,"Female 65-69",{"$f":"$AR187*C$253","v":0.10244127659574469},5.5441713006759971E-2,8.7007446808510649E-2,6.0444042553191489E-2,0.11560000000000001,0.11689127659574471,0.11812106382978725,0.11560000000000001,0.11560000000000001,0.13749021276595744,{"$f":"$AR187*M$253","v":0.13749021276595744},0.15021851063829789,0.11799808510638299,8.7622340425531908E-2,0.1301729787234043,5.0113829787234047E-2,8.2276249950977806E-2,8.7806808510638296E-2,0.11560000000000001,7.6738723404255332E-2,{"$f":"$AR187*W$253","v":0.11916638297872341},0.11916638297872341,8.5162765957446818E-2,0.14025723404255319,4.8672236970617427E-2,0.10207234042553193,0.12912765957446809,0.10988148936170213,0.10859021276595746,0.11560000000000001,{"$f":"$AR187*AG$253","v":5.8013876040703065E-2},0.13478468085106385,0.10508531914893617,0.11560000000000001,0.14161000000000001,0.11295595744680852,0.15901148936170212,0.11560000000000001,0.11560000000000001,9.0450851063829787E-2,0.13367787234042552,0.11560000000000001,{"$f":"$AR187*AS$253","v":0.11812106382978725},0.11560000000000001,0.11560000000000001,0.12039617021276594,0.10932808510638299,0.11560000000000001,6.590985784018262E-2,0.10367106382978725,0.15415382978723405,0.12445446808510638,0.11560000000000001,185]
[null,"Female 70-74",0.10244127659574469,5.5441713006759971E-2,8.7007446808510649E-2,6.0444042553191489E-2,0.11560000000000001,0.11689127659574471,0.11812106382978725,0.11560000000000001,0.11560000000000001,0.13749021276595744,0.13749021276595744,0.15021851063829789,0.11799808510638299,8.7622340425531908E-2,0.1301729787234043,5.0113829787234047E-2,8.2276249950977806E-2,8.7806808510638296E-2,0.11560000000000001,7.6738723404255332E-2,0.11916638297872341,0.11916638297872341,8.5162765957446818E-2,0.14025723404255319,4.8672236970617427E-2,0.10207234042553193,0.12912765957446809,0.10988148936170213,0.10859021276595746,0.11560000000000001,5.8013876040703065E-2,0.13478468085106385,0.10508531914893617,0.11560000000000001,0.14161000000000001,0.11295595744680852,0.15901148936170212,0.11560000000000001,0.11560000000000001,9.0450851063829787E-2,0.13367787234042552,0.11560000000000001,0.11812106382978725,0.11560000000000001,0.11560000000000001,0.12039617021276594,0.10932808510638299,0.11560000000000001,6.590985784018262E-2,0.10367106382978725,0.15415382978723405,0.12445446808510638,0.11560000000000001,186]
[null,"Female 75-79",5.4410851063829792E-2,2.9447415039922684E-2,4.6213297872340429E-2,3.2104361702127659E-2,6.1400000000000003E-2,6.20858510638298E-2,6.2739042553191501E-2,6.1400000000000003E-2,6.1400000000000003E-2,7.3026808510638294E-2,7.3026808510638294E-2,7.9787340425531914E-2,6.2673723404255324E-2,4.6539893617021273E-2,6.9140319148936188E-2,2.6617553191489365E-2,4.3700361133131811E-2,4.6637872340425532E-2,6.1400000000000003E-2,4.075914893617022E-2,6.3294255319148937E-2,6.3294255319148937E-2,4.523351063829787E-2,7.4496489361702126E-2,2.5851862889237975E-2,5.4214893617021281E-2,6.8585106382978725E-2,5.8362659574468088E-2,5.7676808510638299E-2,6.1400000000000003E-2,3.0813598519888998E-2,7.1589787234042565E-2,5.5815212765957446E-2,6.1400000000000003E-2,7.5215000000000004E-2,5.9995638297872349E-2,8.4457659574468089E-2,6.1400000000000003E-2,6.1400000000000003E-2,4.8042234042553193E-2,7.1001914893617013E-2,6.1400000000000003E-2,6.2739042553191501E-2,6.1400000000000003E-2,6.1400000000000003E-2,6.3947446808510625E-2,5.8068723404255326E-2,6.1400000000000003E-2,3.5007485046602185E-2,5.5064042553191493E-2,8.1877553191489358E-2,6.6102978723404246E-2,6.1400000000000003E-2,187]
[null,"Female 80-84",5.4410851063829792E-2,2.9447415039922684E-2,4.6213297872340429E-2,3.2104361702127659E-2,6.1400000000000003E-2,6.20858510638298E-2,6.2739042553191501E-2,6.1400000000000003E-2,6.1400000000000003E-2,7.3026808510638294E-2,7.3026808510638294E-2,7.9787340425531914E-2,6.2673723404255324E-2,4.6539893617021273E-2,6.9140319148936188E-2,2.6617553191489365E-2,4.3700361133131811E-2,4.6637872340425532E-2,6.1400000000000003E-2,4.075914893617022E-2,6.3294255319148937E-2,6.3294255319148937E-2,4.523351063829787E-2,7.4496489361702126E-2,2.5851862889237975E-2,5.4214893617021281E-2,6.8585106382978725E-2,5.8362659574468088E-2,5.7676808510638299E-2,6.1400000000000003E-2,3.0813598519888998E-2,7.1589787234042565E-2,5.5815212765957446E-2,6.1400000000000003E-2,7.5215000000000004E-2,5.9995638297872349E-2,8.4457659574468089E-2,6.1400000000000003E-2,6.1400000000000003E-2,4.8042234042553193E-2,7.1001914893617013E-2,6.1400000000000003E-2,6.2739042553191501E-2,6.1400000000000003E-2,6.1400000000000003E-2,6.3947446808510625E-2,5.8068723404255326E-2,6.1400000000000003E-2,3.5007485046602185E-2,5.5064042553191493E-2,8.1877553191489358E-2,6.6102978723404246E-2,6.1400000000000003E-2,188]
[null,"Female 85-89",5.4410851063829792E-2,2.9447415039922684E-2,4.6213297872340429E-2,3.2104361702127659E-2,6.1400000000000003E-2,6.20858510638298E-2,6.2739042553191501E-2,6.1400000000000003E-2,6.1400000000000003E-2,7.3026808510638294E-2,7.3026808510638294E-2,7.9787340425531914E-2,6.2673723404255324E-2,4.6539893617021273E-2,6.9140319148936188E-2,2.6617553191489365E-2,4.3700361133131811E-2,4.6637872340425532E-2,6.1400000000000003E-2,4.075914893617022E-2,6.3294255319148937E-2,6.3294255319148937E-2,4.523351063829787E-2,7.4496489361702126E-2,2.5851862889237975E-2,5.4214893617021281E-2,6.8585106382978725E-2,5.8362659574468088E-2,5.7676808510638299E-2,6.1400000000000003E-2,3.0813598519888998E-2,7.1589787234042565E-2,5.5815212765957446E-2,6.1400000000000003E-2,7.5215000000000004E-2,5.9995638297872349E-2,8.4457659574468089E-2,6.1400000000000003E-2,6.1400000000000003E-2,4.8042234042553193E-2,7.1001914893617013E-2,6.1400000000000003E-2,6.2739042553191501E-2,6.1400000000000003E-2,6.1400000000000003E-2,6.3947446808510625E-2,5.8068723404255326E-2,6.1400000000000003E-2,3.5007485046602185E-2,5.5064042553191493E-2,8.1877553191489358E-2,6.6102978723404246E-2,6.1400000000000003E-2,189]
[null,"Female 90+",5.4410851063829792E-2,2.9447415039922684E-2,4.6213297872340429E-2,3.2104361702127659E-2,6.1400000000000003E-2,6.20858510638298E-2,6.2739042553191501E-2,6.1400000000000003E-2,6.1400000000000003E-2,7.3026808510638294E-2,7.3026808510638294E-2,7.9787340425531914E-2,6.2673723404255324E-2,4.6539893617021273E-2,6.9140319148936188E-2,2.6617553191489365E-2,4.3700361133131811E-2,4.6637872340425532E-2,6.1400000000000003E-2,4.075914893617022E-2,6.3294255319148937E-2,6.3294255319148937E-2,4.523351063829787E-2,7.4496489361702126E-2,2.5851862889237975E-2,5.4214893617021281E-2,6.8585106382978725E-2,5.8362659574468088E-2,5.7676808510638299E-2,6.1400000000000003E-2,3.0813598519888998E-2,7.1589787234042565E-2,5.5815212765957446E-2,6.1400000000000003E-2,7.5215000000000004E-2,5.9995638297872349E-2,8.4457659574468089E-2,6.1400000000000003E-2,6.1400000000000003E-2,4.8042234042553193E-2,7.1001914893617013E-2,6.1400000000000003E-2,6.2739042553191501E-2,6.1400000000000003E-2,6.1400000000000003E-2,6.3947446808510625E-2,5.8068723404255326E-2,6.1400000000000003E-2,3.5007485046602185E-2,5.5064042553191493E-2,8.1877553191489358E-2,6.6102978723404246E-2,6.1400000000000003E-2,190]
[null,"Male 0-4",null,null,null,null,null,null,null,null,null,null,null,null,null,null,null,null,null,null,null,null,null,null,null,null,null,null,null,null,null,null,null,null,null,null,null,null,null,null,null,null,null,null,null,null,null,null,null,null,null,null,null,null,null,191]
[null,"Male 5-9",null,null,null,null,null,null,null,null,null,null,null,null,null,null,null,null,null,null,null,null,null,null,null,null,null,null,null,null,null,null,null,null,null,null,null,null,null,null,null,null,null,null,null,null,null,null,null,null,null,null,null,null,null,192]
[null,"Male 10-15",null,null,null,null,null,null,null,null,null,null,null,null,null,null,null,null,null,null,null,null,null,null,null,null,null,null,null,null,null,null,null,null,null,null,null,null,null,null,null,null,null,null,null,null,null,null,null,null,null,null,null,null,null,193]
[null,"Male 16-19",{"$f":"$AR196*C$254","v":0.23232135922330097},8.1729188977522294E-2,0.19733265666372465,0.23721615180935574,0.2054,0.21364863195057371,0.15128534863195059,0.2054,0.2054,0.21219832303618713,{"$f":"$AR196*M$254","v":0.21219832303618713},0.23359037952338924,0.20902577228596647,0.17693768755516329,0.19660750220653134,0.11838146513680495,0.12128721888130381,0.17539673433362754,0.2054,0.19135013239187995,{"$f":"$AR196*W$254","v":0.22488852603706974},0.22488852603706974,0.17539673433362754,0.24093256840247129,7.1749991794901991E-2,0.21537087378640776,0.22044695498676078,0.21772762577228597,0.2220785525154457,0.2054,{"$f":"$AR196*AG$254","v":8.5520933266817603E-2},0.19615428067078555,0.18228570167696381,0.2054,0.22171597528684911,0.26123689320388349,0.19842038834951456,0.2054,0.2054,0.18192312444836717,0.2155521624007061,0.2054,{"$f":"$AR196*AS$254","v":0.15128534863195059},0.2054,0.2054,0.16225330979699912,0.19379752868490732,0.2054,9.7160764607780253E-2,0.21582409532215355,0.23658164165931156,0.16615101500441307,0.2054,194]
[null,"Male 20-24",0.23232135922330097,8.1729188977522294E-2,0.19733265666372465,0.23721615180935574,0.2054,0.21364863195057371,0.15128534863195059,0.2054,0.2054,0.21219832303618713,0.21219832303618713,0.23359037952338924,0.20902577228596647,0.17693768755516329,0.19660750220653134,0.11838146513680495,0.12128721888130381,0.17539673433362754,0.2054,0.19135013239187995,0.22488852603706974,0.22488852603706974,0.17539673433362754,0.24093256840247129,7.1749991794901991E-2,0.21537087378640776,0.22044695498676078,0.21772762577228597,0.2220785525154457,0.2054,8.5520933266817603E-2,0.19615428067078555,0.18228570167696381,0.2054,0.22171597528684911,0.26123689320388349,0.19842038834951456,0.2054,0.2054,0.18192312444836717,0.2155521624007061,0.2054,0.15128534863195059,0.2054,0.2054,0.16225330979699912,0.19379752868490732,0.2054,9.7160764607780253E-2,0.21582409532215355,0.23658164165931156,0.16615101500441307,0.2054,195]
[null,"Male 25-29",0.26749757281553399,9.4103959071003038E-2,0.22721116504854372,0.27313349514563112,0.23650000000000002,0.245997572815534,0.17419174757281555,0.23650000000000002,0.23650000000000002,0.24432766990291266,0.24432766990291266,0.2689587378640777,0.24067475728155341,0.20372815533980584,0.22637621359223303,0.13630582524271848,0.13965154462233861,0.20195388349514565,0.23650000000000002,0.22032281553398059,0.25893932038834955,0.25893932038834955,0.20195388349514565,0.27741262135922329,8.2613792889456292E-2,0.24798058252427185,0.25382524271844659,0.25069417475728156,0.25570388349514561,0.23650000000000002,9.8469818488813851E-2,0.22585436893203886,0.20988592233009712,0.23650000000000002,0.25528640776699035,0.30079126213592239,0.22846359223300972,0.23650000000000002,0.23650000000000002,0.20946844660194175,0.24818932038834954,0.23650000000000002,0.17419174757281555,0.23650000000000002,0.23650000000000002,0.18682038834951456,0.22314077669902915,0.23650000000000002,0.11187205856738087,0.24850242718446602,0.27240291262135924,0.19130825242718447,0.23650000000000002,196]
[null,"Male 30-34",0.26749757281553399,9.4103959071003038E-2,0.22721116504854372,0.27313349514563112,0.23650000000000002,0.245997572815534,0.17419174757281555,0.23650000000000002,0.23650000000000002,0.24432766990291266,0.24432766990291266,0.2689587378640777,0.24067475728155341,0.20372815533980584,0.22637621359223303,0.13630582524271848,0.13965154462233861,0.20195388349514565,0.23650000000000002,0.22032281553398059,0.25893932038834955,0.25893932038834955,0.20195388349514565,0.27741262135922329,8.2613792889456292E-2,0.24798058252427185,0.25382524271844659,0.25069417475728156,0.25570388349514561,0.23650000000000002,9.8469818488813851E-2,0.22585436893203886,0.20988592233009712,0.23650000000000002,0.25528640776699035,0.30079126213592239,0.22846359223300972,0.23650000000000002,0.23650000000000002,0.20946844660194175,0.24818932038834954,0.23650000000000002,0.17419174757281555,0.23650000000000002,0.23650000000000002,0.18682038834951456,0.22314077669902915,0.23650000000000002,0.11187205856738087,0.24850242718446602,0.27240291262135924,0.19130825242718447,0.23650000000000002,197]
[null,"Male 35-39",0.23560145631067961,8.2883106446046226E-2,0.20011875551632835,0.24056535745807597,0.20830000000000001,0.216665092674316,0.15342131509267434,0.20830000000000001,0.20830000000000001,0.21519430714916155,0.21519430714916155,0.23688839364518977,0.21197696381288617,0.17943583406884378,0.19938336275375113,0.12005286849073259,0.12299964796969613,0.17787312444836717,0.20830000000000001,0.1940517652250662,0.22806368049426304,0.22806368049426304,0.17787312444836717,0.2443342453662842,7.2763015048091947E-2,0.2184116504854369,0.2235593998234775,0.22080167696381289,0.22521403353927624,0.20830000000000001,8.6728385586553602E-2,0.19892374227714035,0.18485935569285086,0.20830000000000001,0.22484633715798769,0.26492524271844664,0.20122184466019419,0.20830000000000001,0.20830000000000001,0.18449165931156222,0.21859549867608122,0.20830000000000001,0.15342131509267434,0.20830000000000001,0.20830000000000001,0.16454413062665491,0.19653371579876436,0.20830000000000001,9.8532557292116019E-2,0.21887127096204764,0.23992188879082083,0.16849686672550751,0.20830000000000001,198]
[null,"Male 40-44",0.23560145631067961,8.2883106446046226E-2,0.20011875551632835,0.24056535745807597,0.20830000000000001,0.216665092674316,0.15342131509267434,0.20830000000000001,0.20830000000000001,0.21519430714916155,0.21519430714916155,0.23688839364518977,0.21197696381288617,0.17943583406884378,0.19938336275375113,0.12005286849073259,0.12299964796969613,0.17787312444836717,0.20830000000000001,0.1940517652250662,0.22806368049426304,0.22806368049426304,0.17787312444836717,0.2443342453662842,7.2763015048091947E-2,0.2184116504854369,0.2235593998234775,0.22080167696381289,0.22521403353927624,0.20830000000000001,8.6728385586553602E-2,0.19892374227714035,0.18485935569285086,0.20830000000000001,0.22484633715798769,0.26492524271844664,0.20122184466019419,0.20830000000000001,0.20830000000000001,0.18449165931156222,0.21859549867608122,0.20830000000000001,0.15342131509267434,0.20830000000000001,0.20830000000000001,0.16454413062665491,0.19653371579876436,0.20830000000000001,9.8532557292116019E-2,0.21887127096204764,0.23992188879082083,0.16849686672550751,0.20830000000000001,199]
[null,"Male 45-49",0.23401796116504853,8.2326042840551922E-2,0.19877374227714034,0.23894849955869377,0.2069,0.21520887025595764,0.15239015887025598,0.2069,0.2069,0.2137479699911739,0.2137479699911739,0.23529624889673434,0.2105522506619594,0.17822983230361872,0.19804329214474845,0.11924598411297441,0.122172958064955,0.17667762577228596,0.2069,0.19274752868490733,0.22653084730803177,0.22653084730803177,0.17667762577228596,0.2426920564872021,7.2273969339655422E-2,0.21694368932038835,0.22205684024713149,0.21931765225066194,0.22370035304501323,0.2069,8.6145477570129317E-2,0.19758676081200355,0.18361690203000883,0.2069,0.22333512797881733,0.26314466019417476,0.19986941747572817,0.2069,0.2069,0.18325167696381289,0.21712630185348633,0.2069,0.15239015887025598,0.2069,0.2069,0.16343821712268314,0.19521279788172993,0.2069,9.7870312547953919E-2,0.21740022065313325,0.23830935569285083,0.16736438658428951,0.2069,200]
[null,"Male 50-54",0.23401796116504853,8.2326042840551922E-2,0.19877374227714034,0.23894849955869377,0.2069,0.21520887025595764,0.15239015887025598,0.2069,0.2069,0.2137479699911739,0.2137479699911739,0.23529624889673434,0.2105522506619594,0.17822983230361872,0.19804329214474845,0.11924598411297441,0.122172958064955,0.17667762577228596,0.2069,0.19274752868490733,0.22653084730803177,0.22653084730803177,0.17667762577228596,0.2426920564872021,7.2273969339655422E-2,0.21694368932038835,0.22205684024713149,0.21931765225066194,0.22370035304501323,0.2069,8.6145477570129317E-2,0.19758676081200355,0.18361690203000883,0.2069,0.22333512797881733,0.26314466019417476,0.19986941747572817,0.2069,0.2069,0.18325167696381289,0.21712630185348633,0.2069,0.15239015887025598,0.2069,0.2069,0.16343821712268314,0.19521279788172993,0.2069,9.7870312547953919E-2,0.21740022065313325,0.23830935569285083,0.16736438658428951,0.2069,201]
[null,"Male 55-59",0.16898155339805826,5.9446644757749911E-2,0.14353212709620478,0.17254183583406887,0.14940000000000001,0.15539973521624009,0.11003909973521625,0.14940000000000001,0.14940000000000001,0.15434483671668139,0.15434483671668139,0.1699045895851721,0.15203724624889675,0.12869761694616064,0.14300467784642543,8.6106090026478385E-2,8.8219622691659144E-2,0.12757678729037952,0.14940000000000001,0.13918067078552515,0.16357519858781996,0.16357519858781996,0.12757678729037952,0.17524501323918801,5.2188163457440886E-2,0.15665242718446601,0.16034457193292143,0.15836663724624889,0.16153133274492498,0.14940000000000001,6.2204612609846888E-2,0.14267502206531335,0.13258755516328333,0.14940000000000001,0.16126760812003532,0.19001359223300973,0.14432330097087379,0.14940000000000001,0.14940000000000001,0.13232383053839364,0.15678428949691087,0.14940000000000001,0.11003909973521625,0.14940000000000001,0.14940000000000001,0.11801676963812886,0.14096081200353044,0.14940000000000001,7.0670974841296835E-2,0.15698208296557811,0.17208031774051191,0.12085180935569285,0.14940000000000001,202]
[null,"Male 60-64",0.16898155339805826,5.9446644757749911E-2,0.14353212709620478,0.17254183583406887,0.14940000000000001,0.15539973521624009,0.11003909973521625,0.14940000000000001,0.14940000000000001,0.15434483671668139,0.15434483671668139,0.1699045895851721,0.15203724624889675,0.12869761694616064,0.14300467784642543,8.6106090026478385E-2,8.8219622691659144E-2,0.12757678729037952,0.14940000000000001,0.13918067078552515,0.16357519858781996,0.16357519858781996,0.12757678729037952,0.17524501323918801,5.2188163457440886E-2,0.15665242718446601,0.16034457193292143,0.15836663724624889,0.16153133274492498,0.14940000000000001,6.2204612609846888E-2,0.14267502206531335,0.13258755516328333,0.14940000000000001,0.16126760812003532,0.19001359223300973,0.14432330097087379,0.14940000000000001,0.14940000000000001,0.13232383053839364,0.15678428949691087,0.14940000000000001,0.11003909973521625,0.14940000000000001,0.14940000000000001,0.11801676963812886,0.14096081200353044,0.14940000000000001,7.0670974841296835E-2,0.15698208296557811,0.17208031774051191,0.12085180935569285,0.14940000000000001,203]
[null,"Male 65-69",{"$f":"$AR206*C$254","v":0.12803689320388351},4.5042571529968475E-2,0.10875392762577231,0.13073451015004417,0.11320000000000001,0.11774598411297442,8.337634598411299E-2,0.11320000000000001,0.11320000000000001,0.1169466902030009,{"$f":"$AR206*M$254","v":0.1169466902030009},0.12873627537511034,0.11519823477493381,9.7513857016769651E-2,0.10835428067078554,6.5242365401588717E-2,6.6843783726210276E-2,9.6664607237422775E-2,0.11320000000000001,0.10545684024713152,{"$f":"$AR206*W$254","v":0.12394051191526921},0.12394051191526921,9.6664607237422775E-2,0.13278270079435128,3.9542838710724962E-2,0.11869514563106796,0.12149267431597528,0.11999399823477494,0.1223918799646955,0.11320000000000001,{"$f":"$AR206*AG$254","v":4.7132276756590819E-2},0.10810450132391881,0.10046125330979701,0.11320000000000001,0.12219205648720215,0.14397281553398061,0.10935339805825244,0.11320000000000001,0.11320000000000001,0.10026142983230363,0.11879505736981467,0.11320000000000001,{"$f":"$AR206*AS$254","v":8.337634598411299E-2},0.11320000000000001,0.11320000000000001,8.9421006178287729E-2,0.10680564872021184,0.11320000000000001,5.3547217885105775E-2,0.11894492497793469,0.13038481906443072,9.1569108561341581E-2,0.11320000000000001,204]
[null,"Male 70-74",0.12803689320388351,4.5042571529968475E-2,0.10875392762577231,0.13073451015004417,0.11320000000000001,0.11774598411297442,8.337634598411299E-2,0.11320000000000001,0.11320000000000001,0.1169466902030009,0.1169466902030009,0.12873627537511034,0.11519823477493381,9.7513857016769651E-2,0.10835428067078554,6.5242365401588717E-2,6.6843783726210276E-2,9.6664607237422775E-2,0.11320000000000001,0.10545684024713152,0.12394051191526921,0.12394051191526921,9.6664607237422775E-2,0.13278270079435128,3.9542838710724962E-2,0.11869514563106796,0.12149267431597528,0.11999399823477494,0.1223918799646955,0.11320000000000001,4.7132276756590819E-2,0.10810450132391881,0.10046125330979701,0.11320000000000001,0.12219205648720215,0.14397281553398061,0.10935339805825244,0.11320000000000001,0.11320000000000001,0.10026142983230363,0.11879505736981467,0.11320000000000001,8.337634598411299E-2,0.11320000000000001,0.11320000000000001,8.9421006178287729E-2,0.10680564872021184,0.11320000000000001,5.3547217885105775E-2,0.11894492497793469,0.13038481906443072,9.1569108561341581E-2,0.11320000000000001,205]
[null,"Male 75-79",4.6034466019417471E-2,1.619463481687029E-2,3.9101456310679614E-2,4.7004368932038847E-2,4.07E-2,4.2334466019417476E-2,2.9977184466019421E-2,4.07E-2,4.07E-2,4.2047087378640782E-2,4.2047087378640782E-2,4.6285922330097089E-2,4.1418446601941751E-2,3.5060194174757281E-2,3.8957766990291263E-2,2.345728155339806E-2,2.403305651640246E-2,3.4754854368932039E-2,4.07E-2,3.791601941747573E-2,4.4561650485436893E-2,4.4561650485436893E-2,3.4754854368932039E-2,4.7740776699029125E-2,1.4217257380976199E-2,4.2675728155339807E-2,4.3681553398058251E-2,4.3142718446601939E-2,4.4004854368932034E-2,4.07E-2,1.6945968763191221E-2,3.8867961165048551E-2,3.6119902912621363E-2,4.07E-2,4.3933009708737869E-2,5.1764077669902916E-2,3.9316990291262136E-2,4.07E-2,4.07E-2,3.6048058252427184E-2,4.2711650485436896E-2,4.07E-2,2.9977184466019421E-2,4.07E-2,4.07E-2,3.2150485436893202E-2,3.8400970873786411E-2,4.07E-2,1.9252400776712059E-2,4.2765533980582519E-2,4.6878640776699031E-2,3.2922815533980583E-2,4.07E-2,206]
[null,"Male 80-84",4.6034466019417471E-2,1.619463481687029E-2,3.9101456310679614E-2,4.7004368932038847E-2,4.07E-2,4.2334466019417476E-2,2.9977184466019421E-2,4.07E-2,4.07E-2,4.2047087378640782E-2,4.2047087378640782E-2,4.6285922330097089E-2,4.1418446601941751E-2,3.5060194174757281E-2,3.8957766990291263E-2,2.345728155339806E-2,2.403305651640246E-2,3.4754854368932039E-2,4.07E-2,3.791601941747573E-2,4.4561650485436893E-2,4.4561650485436893E-2,3.4754854368932039E-2,4.7740776699029125E-2,1.4217257380976199E-2,4.2675728155339807E-2,4.3681553398058251E-2,4.3142718446601939E-2,4.4004854368932034E-2,4.07E-2,1.6945968763191221E-2,3.8867961165048551E-2,3.6119902912621363E-2,4.07E-2,4.3933009708737869E-2,5.1764077669902916E-2,3.9316990291262136E-2,4.07E-2,4.07E-2,3.6048058252427184E-2,4.2711650485436896E-2,4.07E-2,2.9977184466019421E-2,4.07E-2,4.07E-2,3.2150485436893202E-2,3.8400970873786411E-2,4.07E-2,1.9252400776712059E-2,4.2765533980582519E-2,4.6878640776699031E-2,3.2922815533980583E-2,4.07E-2,207]
[null,"Male 85-89",4.6034466019417471E-2,1.619463481687029E-2,3.9101456310679614E-2,4.7004368932038847E-2,4.07E-2,4.2334466019417476E-2,2.9977184466019421E-2,4.07E-2,4.07E-2,4.2047087378640782E-2,4.2047087378640782E-2,4.6285922330097089E-2,4.1418446601941751E-2,3.5060194174757281E-2,3.8957766990291263E-2,2.345728155339806E-2,2.403305651640246E-2,3.4754854368932039E-2,4.07E-2,3.791601941747573E-2,4.4561650485436893E-2,4.4561650485436893E-2,3.4754854368932039E-2,4.7740776699029125E-2,1.4217257380976199E-2,4.2675728155339807E-2,4.3681553398058251E-2,4.3142718446601939E-2,4.4004854368932034E-2,4.07E-2,1.6945968763191221E-2,3.8867961165048551E-2,3.6119902912621363E-2,4.07E-2,4.3933009708737869E-2,5.1764077669902916E-2,3.9316990291262136E-2,4.07E-2,4.07E-2,3.6048058252427184E-2,4.2711650485436896E-2,4.07E-2,2.9977184466019421E-2,4.07E-2,4.07E-2,3.2150485436893202E-2,3.8400970873786411E-2,4.07E-2,1.9252400776712059E-2,4.2765533980582519E-2,4.6878640776699031E-2,3.2922815533980583E-2,4.07E-2,208]
[null,"Male 90+",4.6034466019417471E-2,1.619463481687029E-2,3.9101456310679614E-2,4.7004368932038847E-2,4.07E-2,4.2334466019417476E-2,2.9977184466019421E-2,4.07E-2,4.07E-2,4.2047087378640782E-2,4.2047087378640782E-2,4.6285922330097089E-2,4.1418446601941751E-2,3.5060194174757281E-2,3.8957766990291263E-2,2.345728155339806E-2,2.403305651640246E-2,3.4754854368932039E-2,4.07E-2,3.791601941747573E-2,4.4561650485436893E-2,4.4561650485436893E-2,3.4754854368932039E-2,4.7740776699029125E-2,1.4217257380976199E-2,4.2675728155339807E-2,4.3681553398058251E-2,4.3142718446601939E-2,4.4004854368932034E-2,4.07E-2,1.6945968763191221E-2,3.8867961165048551E-2,3.6119902912621363E-2,4.07E-2,4.3933009708737869E-2,5.1764077669902916E-2,3.9316990291262136E-2,4.07E-2,4.07E-2,3.6048058252427184E-2,4.2711650485436896E-2,4.07E-2,2.9977184466019421E-2,4.07E-2,4.07E-2,3.2150485436893202E-2,3.8400970873786411E-2,4.07E-2,1.9252400776712059E-2,4.2765533980582519E-2,4.6878640776699031E-2,3.2922815533980583E-2,4.07E-2,209]
["SIMD Q5 (least deprived)","Female 0-4",null,null,null,null,null,null,null,null,null,null,null,null,null,null,null,null,null,null,null,null,null,null,null,null,null,null,null,null,null,null,null,null,null,null,null,null,null,null,null,null,null,null,null,null,null,null,null,null,null,null,null,null,null,210]
[null,"Female 5-9",null,null,null,null,null,null,null,null,null,null,null,null,null,null,null,null,null,null,null,null,null,null,null,null,null,null,null,null,null,null,null,null,null,null,null,null,null,null,null,null,null,null,null,null,null,null,null,null,null,null,null,null,null,211]
[null,"Female 10-15",null,null,null,null,null,null,null,null,null,null,null,null,null,null,null,null,null,null,null,null,null,null,null,null,null,null,null,null,null,null,null,null,null,null,null,null,null,null,null,null,null,null,null,null,null,null,null,null,null,null,null,null,null,212]
[null,"Female 16-19",{"$f":"$AR215*C$253","v":8.711053191489361E-2},4.7144640039485333E-2,7.3986436170212777E-2,5.1398351063829784E-2,9.8299999999999998E-2,9.9398031914893631E-2,0.10044377659574469,9.8299999999999998E-2,9.8299999999999998E-2,0.11691425531914892,{"$f":"$AR215*M$253","v":0.11691425531914892},0.12773771276595744,0.10033920212765958,7.4509308510638292E-2,0.11069207446808513,4.2614095744680849E-2,6.9963281748971609E-2,7.4666170212765948E-2,9.8299999999999998E-2,6.525446808510639E-2,{"$f":"$AR215*W$253","v":0.10133265957446808},0.10133265957446808,7.2417819148936163E-2,0.11926718085106383,4.1388243029512911E-2,8.6796808510638299E-2,0.10980319148936168,9.3437287234042543E-2,9.2339255319148938E-2,9.8299999999999998E-2,{"$f":"$AR215*AG$253","v":4.9331868640148012E-2},0.11461361702127661,8.9358882978723395E-2,9.8299999999999998E-2,0.12041750000000001,9.6051648936170214E-2,0.13521478723404254,9.8299999999999998E-2,9.8299999999999998E-2,7.6914521276595746E-2,0.11367244680851063,9.8299999999999998E-2,{"$f":"$AR215*AS$253","v":0.10044377659574469},9.8299999999999998E-2,9.8299999999999998E-2,0.10237840425531913,9.2966702127659576E-2,9.8299999999999998E-2,5.6046185343338675E-2,8.8156276595744681E-2,0.13108409574468086,0.10582936170212764,9.8299999999999998E-2,213]
[null,"Female 20-24",8.711053191489361E-2,4.7144640039485333E-2,7.3986436170212777E-2,5.1398351063829784E-2,9.8299999999999998E-2,9.9398031914893631E-2,0.10044377659574469,9.8299999999999998E-2,9.8299999999999998E-2,0.11691425531914892,0.11691425531914892,0.12773771276595744,0.10033920212765958,7.4509308510638292E-2,0.11069207446808513,4.2614095744680849E-2,6.9963281748971609E-2,7.4666170212765948E-2,9.8299999999999998E-2,6.525446808510639E-2,0.10133265957446808,0.10133265957446808,7.2417819148936163E-2,0.11926718085106383,4.1388243029512911E-2,8.6796808510638299E-2,0.10980319148936168,9.3437287234042543E-2,9.2339255319148938E-2,9.8299999999999998E-2,4.9331868640148012E-2,0.11461361702127661,8.9358882978723395E-2,9.8299999999999998E-2,0.12041750000000001,9.6051648936170214E-2,0.13521478723404254,9.8299999999999998E-2,9.8299999999999998E-2,7.6914521276595746E-2,0.11367244680851063,9.8299999999999998E-2,0.10044377659574469,9.8299999999999998E-2,9.8299999999999998E-2,0.10237840425531913,9.2966702127659576E-2,9.8299999999999998E-2,5.6046185343338675E-2,8.8156276595744681E-2,0.13108409574468086,0.10582936170212764,9.8299999999999998E-2,214]
[null,"Female 25-29",8.8882872340425523E-2,4.8103839226453504E-2,7.5491755319148937E-2,5.2444095744680848E-2,0.1003,0.10142037234042556,0.10248739361702128,0.1003,0.1003,0.11929297872340425,0.11929297872340425,0.1303366489361702,0.1023806914893617,7.6025265957446797E-2,0.1129442021276596,4.3481117021276598E-2,7.138674628099545E-2,7.618531914893617E-2,0.1003,6.6582127659574469E-2,0.10339436170212765,0.10339436170212765,7.3891223404255316E-2,0.12169377659574468,4.223032325391806E-2,8.8562765957446804E-2,0.11203723404255318,9.533835106382979E-2,9.4217978723404261E-2,0.1003,5.0335568917668827E-2,0.11694553191489362,9.1176968085106377E-2,0.1003,0.1228675,9.800590425531916E-2,0.13796585106382978,0.1003,0.1003,7.8479414893617025E-2,0.11598521276595743,0.1003,0.10248739361702128,0.1003,0.1003,0.10446138297872339,9.4858191489361712E-2,0.1003,5.7186494302511388E-2,8.9949893617021284E-2,0.13375111702127659,0.10798255319148935,0.1003,215]
[null,"Female 30-34",8.8882872340425523E-2,4.8103839226453504E-2,7.5491755319148937E-2,5.2444095744680848E-2,0.1003,0.10142037234042556,0.10248739361702128,0.1003,0.1003,0.11929297872340425,0.11929297872340425,0.1303366489361702,0.1023806914893617,7.6025265957446797E-2,0.1129442021276596,4.3481117021276598E-2,7.138674628099545E-2,7.618531914893617E-2,0.1003,6.6582127659574469E-2,0.10339436170212765,0.10339436170212765,7.3891223404255316E-2,0.12169377659574468,4.223032325391806E-2,8.8562765957446804E-2,0.11203723404255318,9.533835106382979E-2,9.4217978723404261E-2,0.1003,5.0335568917668827E-2,0.11694553191489362,9.1176968085106377E-2,0.1003,0.1228675,9.800590425531916E-2,0.13796585106382978,0.1003,0.1003,7.8479414893617025E-2,0.11598521276595743,0.1003,0.10248739361702128,0.1003,0.1003,0.10446138297872339,9.4858191489361712E-2,0.1003,5.7186494302511388E-2,8.9949893617021284E-2,0.13375111702127659,0.10798255319148935,0.1003,216]
[null,"Female 35-39",8.1704893617021282E-2,4.4219082519232435E-2,6.9395212765957462E-2,4.8208829787234043E-2,9.2200000000000004E-2,9.3229893617021303E-2,9.4210744680851069E-2,9.2200000000000004E-2,9.2200000000000004E-2,0.10965914893617021,0.10965914893617021,0.1198109574468085,9.4112659574468085E-2,6.9885638297872338E-2,0.10382308510638301,3.9969680851063831E-2,6.562171492629891E-2,7.0032765957446799E-2,9.2200000000000004E-2,6.1205106382978734E-2,9.5044468085106387E-2,9.5044468085106387E-2,6.7923936170212765E-2,0.11186606382978724,3.8819898345077222E-2,8.1410638297872345E-2,0.10298936170212765,8.7639042553191493E-2,8.6609148936170222E-2,9.2200000000000004E-2,4.6270582793709533E-2,0.1075012765957447,8.3813723404255316E-2,9.2200000000000004E-2,0.11294500000000002,9.009117021276597E-2,0.12682404255319149,9.2200000000000004E-2,9.2200000000000004E-2,7.2141595744680861E-2,0.10661851063829786,9.2200000000000004E-2,9.4210744680851069E-2,9.2200000000000004E-2,9.2200000000000004E-2,9.6025319148936153E-2,8.7197659574468095E-2,9.2200000000000004E-2,5.2568243017861914E-2,8.2685744680851075E-2,0.12294968085106384,9.9262127659574456E-2,9.2200000000000004E-2,217]
[null,"Female 40-44",8.1704893617021282E-2,4.4219082519232435E-2,6.9395212765957462E-2,4.8208829787234043E-2,9.2200000000000004E-2,9.3229893617021303E-2,9.4210744680851069E-2,9.2200000000000004E-2,9.2200000000000004E-2,0.10965914893617021,0.10965914893617021,0.1198109574468085,9.4112659574468085E-2,6.9885638297872338E-2,0.10382308510638301,3.9969680851063831E-2,6.562171492629891E-2,7.0032765957446799E-2,9.2200000000000004E-2,6.1205106382978734E-2,9.5044468085106387E-2,9.5044468085106387E-2,6.7923936170212765E-2,0.11186606382978724,3.8819898345077222E-2,8.1410638297872345E-2,0.10298936170212765,8.7639042553191493E-2,8.6609148936170222E-2,9.2200000000000004E-2,4.6270582793709533E-2,0.1075012765957447,8.3813723404255316E-2,9.2200000000000004E-2,0.11294500000000002,9.009117021276597E-2,0.12682404255319149,9.2200000000000004E-2,9.2200000000000004E-2,7.2141595744680861E-2,0.10661851063829786,9.2200000000000004E-2,9.4210744680851069E-2,9.2200000000000004E-2,9.2200000000000004E-2,9.6025319148936153E-2,8.7197659574468095E-2,9.2200000000000004E-2,5.2568243017861914E-2,8.2685744680851075E-2,0.12294968085106384,9.9262127659574456E-2,9.2200000000000004E-2,218]
[null,"Female 45-49",8.8439787234042555E-2,4.7864039429711458E-2,7.5115425531914901E-2,5.2182659574468084E-2,9.98E-2,0.10091478723404257,0.10197648936170213,9.98E-2,9.98E-2,0.11869829787234042,0.11869829787234042,0.129686914893617,0.10187031914893617,7.5646276595744674E-2,0.11238117021276599,4.3264361702127663E-2,7.1030880147989486E-2,7.5805531914893615E-2,9.98E-2,6.6250212765957453E-2,0.10287893617021276,0.10287893617021276,7.3522872340425524E-2,0.12108712765957447,4.2019803197816771E-2,8.8121276595744674E-2,0.11147872340425531,9.4863085106382972E-2,9.374829787234043E-2,9.98E-2,5.0084643848288625E-2,0.11636255319148937,9.0722446808510632E-2,9.98E-2,0.122255,9.7517340425531923E-2,0.13727808510638298,9.98E-2,9.98E-2,7.8088191489361705E-2,0.11540702127659573,9.98E-2,0.10197648936170213,9.98E-2,9.98E-2,0.10394063829787233,9.4385319148936178E-2,9.98E-2,5.6901417062718208E-2,8.950148936170213E-2,0.13308436170212765,0.10744425531914892,9.98E-2,219]
[null,"Female 50-54",8.8439787234042555E-2,4.7864039429711458E-2,7.5115425531914901E-2,5.2182659574468084E-2,9.98E-2,0.10091478723404257,0.10197648936170213,9.98E-2,9.98E-2,0.11869829787234042,0.11869829787234042,0.129686914893617,0.10187031914893617,7.5646276595744674E-2,0.11238117021276599,4.3264361702127663E-2,7.1030880147989486E-2,7.5805531914893615E-2,9.98E-2,6.6250212765957453E-2,0.10287893617021276,0.10287893617021276,7.3522872340425524E-2,0.12108712765957447,4.2019803197816771E-2,8.8121276595744674E-2,0.11147872340425531,9.4863085106382972E-2,9.374829787234043E-2,9.98E-2,5.0084643848288625E-2,0.11636255319148937,9.0722446808510632E-2,9.98E-2,0.122255,9.7517340425531923E-2,0.13727808510638298,9.98E-2,9.98E-2,7.8088191489361705E-2,0.11540702127659573,9.98E-2,0.10197648936170213,9.98E-2,9.98E-2,0.10394063829787233,9.4385319148936178E-2,9.98E-2,5.6901417062718208E-2,8.950148936170213E-2,0.13308436170212765,0.10744425531914892,9.98E-2,220]
[null,"Female 55-59",9.6060851063829791E-2,5.1988595933674574E-2,8.158829787234044E-2,5.6679361702127659E-2,0.10840000000000001,0.10961085106382983,0.1107640425531915,0.10840000000000001,0.10840000000000001,0.12892680851063829,0.12892680851063829,0.14086234042553192,0.11064872340425533,8.216489361702127E-2,0.1220653191489362,4.6992553191489365E-2,7.7151777635692004E-2,8.2337872340425527E-2,0.10840000000000001,7.1959148936170225E-2,0.11174425531914894,0.11174425531914894,7.985851063829788E-2,0.13152148936170213,4.5640748162758905E-2,9.5714893617021291E-2,0.12108510638297873,0.10303765957446809,0.1018268085106383,0.10840000000000001,5.4400555041628135E-2,0.12638978723404257,9.8540212765957452E-2,0.10840000000000001,0.13279000000000002,0.10592063829787235,0.14910765957446809,0.10840000000000001,0.10840000000000001,8.4817234042553202E-2,0.12535191489361702,0.10840000000000001,0.1107640425531915,0.10840000000000001,0.10840000000000001,0.11289744680851063,0.10251872340425533,0.10840000000000001,6.1804745587160863E-2,9.7214042553191507E-2,0.14455255319148938,0.11670297872340425,0.10840000000000001,221]
[null,"Female 60-64",9.6060851063829791E-2,5.1988595933674574E-2,8.158829787234044E-2,5.6679361702127659E-2,0.10840000000000001,0.10961085106382983,0.1107640425531915,0.10840000000000001,0.10840000000000001,0.12892680851063829,0.12892680851063829,0.14086234042553192,0.11064872340425533,8.216489361702127E-2,0.1220653191489362,4.6992553191489365E-2,7.7151777635692004E-2,8.2337872340425527E-2,0.10840000000000001,7.1959148936170225E-2,0.11174425531914894,0.11174425531914894,7.985851063829788E-2,0.13152148936170213,4.5640748162758905E-2,9.5714893617021291E-2,0.12108510638297873,0.10303765957446809,0.1018268085106383,0.10840000000000001,5.4400555041628135E-2,0.12638978723404257,9.8540212765957452E-2,0.10840000000000001,0.13279000000000002,0.10592063829787235,0.14910765957446809,0.10840000000000001,0.10840000000000001,8.4817234042553202E-2,0.12535191489361702,0.10840000000000001,0.1107640425531915,0.10840000000000001,0.10840000000000001,0.11289744680851063,0.10251872340425533,0.10840000000000001,6.1804745587160863E-2,9.7214042553191507E-2,0.14455255319148938,0.11670297872340425,0.10840000000000001,222]
[null,"Female 65-69",{"$f":"$AR225*C$253","v":6.4335957446808506E-2},3.4818930486944406E-2,5.464308510638298E-2,3.7960531914893611E-2,7.2599999999999998E-2,7.341095744680852E-2,7.4183297872340431E-2,7.2599999999999998E-2,7.2599999999999998E-2,8.6347659574468077E-2,{"$f":"$AR225*M$253","v":8.6347659574468077E-2},9.4341382978723395E-2,7.4106063829787239E-2,5.5029255319148929E-2,8.1752234042553204E-2,3.1472872340425534E-2,5.1671762512465302E-2,5.5145106382978717E-2,7.2599999999999998E-2,4.8194042553191492E-2,{"$f":"$AR225*W$253","v":7.4839787234042554E-2},7.4839787234042554E-2,5.3484574468085105E-2,8.8085425531914896E-2,3.0567512145906788E-2,6.4104255319148928E-2,8.1095744680851053E-2,6.9008617021276586E-2,6.8197659574468078E-2,7.2599999999999998E-2,{"$f":"$AR225*AG$253","v":3.6434320074005551E-2},8.4648510638297883E-2,6.5996489361702118E-2,7.2599999999999998E-2,8.8935E-2,7.0939468085106386E-2,9.9863617021276579E-2,7.2599999999999998E-2,7.2599999999999998E-2,5.6805638297872336E-2,8.3953404255319136E-2,7.2599999999999998E-2,{"$f":"$AR225*AS$253","v":7.4183297872340431E-2},7.2599999999999998E-2,7.2599999999999998E-2,7.5612127659574452E-2,6.8661063829787233E-2,7.2599999999999998E-2,4.1393215217969355E-2,6.5108297872340432E-2,9.6812872340425529E-2,7.8160851063829778E-2,7.2599999999999998E-2,223]
[null,"Female 70-74",6.4335957446808506E-2,3.4818930486944406E-2,5.464308510638298E-2,3.7960531914893611E-2,7.2599999999999998E-2,7.341095744680852E-2,7.4183297872340431E-2,7.2599999999999998E-2,7.2599999999999998E-2,8.6347659574468077E-2,8.6347659574468077E-2,9.4341382978723395E-2,7.4106063829787239E-2,5.5029255319148929E-2,8.1752234042553204E-2,3.1472872340425534E-2,5.1671762512465302E-2,5.5145106382978717E-2,7.2599999999999998E-2,4.8194042553191492E-2,7.4839787234042554E-2,7.4839787234042554E-2,5.3484574468085105E-2,8.8085425531914896E-2,3.0567512145906788E-2,6.4104255319148928E-2,8.1095744680851053E-2,6.9008617021276586E-2,6.8197659574468078E-2,7.2599999999999998E-2,3.6434320074005551E-2,8.4648510638297883E-2,6.5996489361702118E-2,7.2599999999999998E-2,8.8935E-2,7.0939468085106386E-2,9.9863617021276579E-2,7.2599999999999998E-2,7.2599999999999998E-2,5.6805638297872336E-2,8.3953404255319136E-2,7.2599999999999998E-2,7.4183297872340431E-2,7.2599999999999998E-2,7.2599999999999998E-2,7.5612127659574452E-2,6.8661063829787233E-2,7.2599999999999998E-2,4.1393215217969355E-2,6.5108297872340432E-2,9.6812872340425529E-2,7.8160851063829778E-2,7.2599999999999998E-2,224]
[null,"Female 75-79",4.4840212765957448E-2,2.4267739430294588E-2,3.8084574468085108E-2,2.6457340425531911E-2,5.0599999999999999E-2,5.1165212765957459E-2,5.1703510638297874E-2,5.0599999999999999E-2,5.0599999999999999E-2,6.0181702127659567E-2,6.0181702127659567E-2,6.5753085106382975E-2,5.1649680851063827E-2,3.8353723404255316E-2,5.6978829787234057E-2,2.1935638297872342E-2,3.6013652660203087E-2,3.843446808510638E-2,5.0599999999999999E-2,3.3589787234042559E-2,5.2161063829787233E-2,5.2161063829787233E-2,3.7277127659574465E-2,6.1392872340425529E-2,2.1304629677450188E-2,4.467872340425532E-2,5.6521276595744671E-2,4.8096914893617018E-2,4.7531702127659572E-2,5.0599999999999999E-2,2.5393617021276599E-2,5.8997446808510642E-2,4.5997553191489356E-2,5.0599999999999999E-2,6.1985000000000005E-2,4.9442659574468084E-2,6.9601914893617015E-2,5.0599999999999999E-2,5.0599999999999999E-2,3.9591808510638295E-2,5.8512978723404246E-2,5.0599999999999999E-2,5.1703510638297874E-2,5.0599999999999999E-2,5.0599999999999999E-2,5.2699361702127648E-2,4.7854680851063834E-2,5.0599999999999999E-2,2.8849816667069553E-2,4.5378510638297877E-2,6.7475638297872342E-2,5.4475744680851056E-2,5.0599999999999999E-2,225]
[null,"Female 80-84",4.4840212765957448E-2,2.4267739430294588E-2,3.8084574468085108E-2,2.6457340425531911E-2,5.0599999999999999E-2,5.1165212765957459E-2,5.1703510638297874E-2,5.0599999999999999E-2,5.0599999999999999E-2,6.0181702127659567E-2,6.0181702127659567E-2,6.5753085106382975E-2,5.1649680851063827E-2,3.8353723404255316E-2,5.6978829787234057E-2,2.1935638297872342E-2,3.6013652660203087E-2,3.843446808510638E-2,5.0599999999999999E-2,3.3589787234042559E-2,5.2161063829787233E-2,5.2161063829787233E-2,3.7277127659574465E-2,6.1392872340425529E-2,2.1304629677450188E-2,4.467872340425532E-2,5.6521276595744671E-2,4.8096914893617018E-2,4.7531702127659572E-2,5.0599999999999999E-2,2.5393617021276599E-2,5.8997446808510642E-2,4.5997553191489356E-2,5.0599999999999999E-2,6.1985000000000005E-2,4.9442659574468084E-2,6.9601914893617015E-2,5.0599999999999999E-2,5.0599999999999999E-2,3.9591808510638295E-2,5.8512978723404246E-2,5.0599999999999999E-2,5.1703510638297874E-2,5.0599999999999999E-2,5.0599999999999999E-2,5.2699361702127648E-2,4.7854680851063834E-2,5.0599999999999999E-2,2.8849816667069553E-2,4.5378510638297877E-2,6.7475638297872342E-2,5.4475744680851056E-2,5.0599999999999999E-2,226]
[null,"Female 85-89",4.4840212765957448E-2,2.4267739430294588E-2,3.8084574468085108E-2,2.6457340425531911E-2,5.0599999999999999E-2,5.1165212765957459E-2,5.1703510638297874E-2,5.0599999999999999E-2,5.0599999999999999E-2,6.0181702127659567E-2,6.0181702127659567E-2,6.5753085106382975E-2,5.1649680851063827E-2,3.8353723404255316E-2,5.6978829787234057E-2,2.1935638297872342E-2,3.6013652660203087E-2,3.843446808510638E-2,5.0599999999999999E-2,3.3589787234042559E-2,5.2161063829787233E-2,5.2161063829787233E-2,3.7277127659574465E-2,6.1392872340425529E-2,2.1304629677450188E-2,4.467872340425532E-2,5.6521276595744671E-2,4.8096914893617018E-2,4.7531702127659572E-2,5.0599999999999999E-2,2.5393617021276599E-2,5.8997446808510642E-2,4.5997553191489356E-2,5.0599999999999999E-2,6.1985000000000005E-2,4.9442659574468084E-2,6.9601914893617015E-2,5.0599999999999999E-2,5.0599999999999999E-2,3.9591808510638295E-2,5.8512978723404246E-2,5.0599999999999999E-2,5.1703510638297874E-2,5.0599999999999999E-2,5.0599999999999999E-2,5.2699361702127648E-2,4.7854680851063834E-2,5.0599999999999999E-2,2.8849816667069553E-2,4.5378510638297877E-2,6.7475638297872342E-2,5.4475744680851056E-2,5.0599999999999999E-2,227]
[null,"Female 90+",4.4840212765957448E-2,2.4267739430294588E-2,3.8084574468085108E-2,2.6457340425531911E-2,5.0599999999999999E-2,5.1165212765957459E-2,5.1703510638297874E-2,5.0599999999999999E-2,5.0599999999999999E-2,6.0181702127659567E-2,6.0181702127659567E-2,6.5753085106382975E-2,5.1649680851063827E-2,3.8353723404255316E-2,5.6978829787234057E-2,2.1935638297872342E-2,3.6013652660203087E-2,3.843446808510638E-2,5.0599999999999999E-2,3.3589787234042559E-2,5.2161063829787233E-2,5.2161063829787233E-2,3.7277127659574465E-2,6.1392872340425529E-2,2.1304629677450188E-2,4.467872340425532E-2,5.6521276595744671E-2,4.8096914893617018E-2,4.7531702127659572E-2,5.0599999999999999E-2,2.5393617021276599E-2,5.8997446808510642E-2,4.5997553191489356E-2,5.0599999999999999E-2,6.1985000000000005E-2,4.9442659574468084E-2,6.9601914893617015E-2,5.0599999999999999E-2,5.0599999999999999E-2,3.9591808510638295E-2,5.8512978723404246E-2,5.0599999999999999E-2,5.1703510638297874E-2,5.0599999999999999E-2,5.0599999999999999E-2,5.2699361702127648E-2,4.7854680851063834E-2,5.0599999999999999E-2,2.8849816667069553E-2,4.5378510638297877E-2,6.7475638297872342E-2,5.4475744680851056E-2,5.0599999999999999E-2,228]
[null,"Male 0-4",null,null,null,null,null,null,null,null,null,null,null,null,null,null,null,null,null,null,null,null,null,null,null,null,null,null,null,null,null,null,null,null,null,null,null,null,null,null,null,null,null,null,null,null,null,null,null,null,null,null,null,null,null,229]
[null,"Male 5-9",null,null,null,null,null,null,null,null,null,null,null,null,null,null,null,null,null,null,null,null,null,null,null,null,null,null,null,null,null,null,null,null,null,null,null,null,null,null,null,null,null,null,null,null,null,null,null,null,null,null,null,null,null,230]
[null,"Male 10-15",null,null,null,null,null,null,null,null,null,null,null,null,null,null,null,null,null,null,null,null,null,null,null,null,null,null,null,null,null,null,null,null,null,null,null,null,null,null,null,null,null,null,null,null,null,null,null,null,null,null,null,null,null,231]
[null,"Male 16-19",{"$f":"$AR234*C$254","v":0.15280728155339804},5.3756637930200891E-2,0.12979377758164168,0.15602678729037955,0.1351,0.14052546337157987,9.9506575463371591E-2,0.1351,0.1351,0.13957153574580761,{"$f":"$AR234*M$254","v":0.13957153574580761},0.15364196822594881,0.13748481906443072,0.11637917034421888,0.12931681376875551,7.7864342453662846E-2,7.9775575807517735E-2,0.11536562224183583,0.1351,0.12585882612533097,{"$f":"$AR234*W$254","v":0.1479184024713151},0.1479184024713151,0.11536562224183583,0.15847122683142101,4.7192910864124922E-2,0.14165825242718447,0.14499699911738745,0.14320838481906442,0.14607016769638129,0.1351,{"$f":"$AR234*AG$254","v":5.6250623584941865E-2},0.1290187113857017,0.1198967784642542,0.1351,0.14583168578993824,0.17182621359223302,0.13050922330097087,0.1351,0.1351,0.11965829655781111,0.14177749338040602,0.1351,{"$f":"$AR234*AS$254","v":9.9506575463371591E-2},0.1351,0.1351,0.10672065313327449,0.12746857899382172,0.1351,6.3906617811641253E-2,0.1419563548102383,0.15560944395410414,0.10928433362753751,0.1351,232]
[null,"Male 20-24",0.15280728155339804,5.3756637930200891E-2,0.12979377758164168,0.15602678729037955,0.1351,0.14052546337157987,9.9506575463371591E-2,0.1351,0.1351,0.13957153574580761,0.13957153574580761,0.15364196822594881,0.13748481906443072,0.11637917034421888,0.12931681376875551,7.7864342453662846E-2,7.9775575807517735E-2,0.11536562224183583,0.1351,0.12585882612533097,0.1479184024713151,0.1479184024713151,0.11536562224183583,0.15847122683142101,4.7192910864124922E-2,0.14165825242718447,0.14499699911738745,0.14320838481906442,0.14607016769638129,0.1351,5.6250623584941865E-2,0.1290187113857017,0.1198967784642542,0.1351,0.14583168578993824,0.17182621359223302,0.13050922330097087,0.1351,0.1351,0.11965829655781111,0.14177749338040602,0.1351,9.9506575463371591E-2,0.1351,0.1351,0.10672065313327449,0.12746857899382172,0.1351,6.3906617811641253E-2,0.1419563548102383,0.15560944395410414,0.10928433362753751,0.1351,233]
[null,"Male 25-29",0.21784368932038836,7.6636036013002909E-2,0.18503539276257727,0.22243345101500447,0.19260000000000002,0.20033459841129747,0.14185763459841133,0.19260000000000002,0.19260000000000002,0.19897466902030014,0.19897466902030014,0.21903362753751104,0.1959998234774934,0.16591138570167699,0.18435542806707858,0.1110042365401589,0.11372891118081362,0.1644664607237423,0.19260000000000002,0.17942568402471318,0.21087405119152694,0.21087405119152694,0.1644664607237423,0.22591827007943513,6.7278716746339465E-2,0.20194951456310681,0.20670926743159754,0.2041593998234775,0.20823918799646957,0.19260000000000002,8.0191488545224315E-2,0.18393045013239193,0.17092612533097973,0.19260000000000002,0.20789920564872028,0.2449572815533981,0.18605533980582525,0.19260000000000002,0.19260000000000002,0.17058614298323038,0.20211950573698151,0.19260000000000002,0.14185763459841133,0.19260000000000002,0.19260000000000002,0.15214210061782879,0.18172056487202121,0.19260000000000002,9.1105955518298351E-2,0.20237449249779346,0.22183848190644309,0.15579691085613417,0.19260000000000002,234]
[null,"Male 30-34",0.21784368932038836,7.6636036013002909E-2,0.18503539276257727,0.22243345101500447,0.19260000000000002,0.20033459841129747,0.14185763459841133,0.19260000000000002,0.19260000000000002,0.19897466902030014,0.19897466902030014,0.21903362753751104,0.1959998234774934,0.16591138570167699,0.18435542806707858,0.1110042365401589,0.11372891118081362,0.1644664607237423,0.19260000000000002,0.17942568402471318,0.21087405119152694,0.21087405119152694,0.1644664607237423,0.22591827007943513,6.7278716746339465E-2,0.20194951456310681,0.20670926743159754,0.2041593998234775,0.20823918799646957,0.19260000000000002,8.0191488545224315E-2,0.18393045013239193,0.17092612533097973,0.19260000000000002,0.20789920564872028,0.2449572815533981,0.18605533980582525,0.19260000000000002,0.19260000000000002,0.17058614298323038,0.20211950573698151,0.19260000000000002,0.14185763459841133,0.19260000000000002,0.19260000000000002,0.15214210061782879,0.18172056487202121,0.19260000000000002,9.1105955518298351E-2,0.20237449249779346,0.22183848190644309,0.15579691085613417,0.19260000000000002,235]
[null,"Male 35-39",0.14545533980582526,5.1170271190405889E-2,0.12354907325684028,0.14851994704324806,0.12860000000000002,0.13376443071491617,9.4719064430714942E-2,0.12860000000000002,0.12860000000000002,0.13285639894086498,0.13285639894086498,0.14624986760812006,0.13087007943512799,0.11077987643424538,0.12309505736981467,7.4118093556928527E-2,7.5937372678362564E-2,0.10981509267431599,0.12860000000000002,0.1198034421888791,0.14080167696381291,0.14080167696381291,0.10981509267431599,0.15084677846425421,4.4922341503526766E-2,0.13484271844660195,0.13802082965578111,0.13631827007943514,0.13904236540158871,0.12860000000000002,5.3544264937257773E-2,0.12281129744042368,0.11412824360105916,0.12860000000000002,0.13881535745807594,0.16355922330097092,0.12423009708737866,0.12860000000000002,0.12860000000000002,0.11390123565754635,0.13495622241835836,0.12860000000000002,9.4719064430714942E-2,0.12860000000000002,0.12860000000000002,0.10158605472197706,0.12133574580759049,0.12860000000000002,6.0831910070888721E-2,0.13512647837599295,0.14812268314210064,0.10402639011473964,0.12860000000000002,236]
[null,"Male 40-44",0.14545533980582526,5.1170271190405889E-2,0.12354907325684028,0.14851994704324806,0.12860000000000002,0.13376443071491617,9.4719064430714942E-2,0.12860000000000002,0.12860000000000002,0.13285639894086498,0.13285639894086498,0.14624986760812006,0.13087007943512799,0.11077987643424538,0.12309505736981467,7.4118093556928527E-2,7.5937372678362564E-2,0.10981509267431599,0.12860000000000002,0.1198034421888791,0.14080167696381291,0.14080167696381291,0.10981509267431599,0.15084677846425421,4.4922341503526766E-2,0.13484271844660195,0.13802082965578111,0.13631827007943514,0.13904236540158871,0.12860000000000002,5.3544264937257773E-2,0.12281129744042368,0.11412824360105916,0.12860000000000002,0.13881535745807594,0.16355922330097092,0.12423009708737866,0.12860000000000002,0.12860000000000002,0.11390123565754635,0.13495622241835836,0.12860000000000002,9.4719064430714942E-2,0.12860000000000002,0.12860000000000002,0.10158605472197706,0.12133574580759049,0.12860000000000002,6.0831910070888721E-2,0.13512647837599295,0.14812268314210064,0.10402639011473964,0.12860000000000002,237]
[null,"Male 45-49",0.13900825242718448,4.8902226510893335E-2,0.11807294792586057,0.14193702559576349,0.12290000000000001,0.1278355251544572,9.0520785525154468E-2,0.12290000000000001,0.12290000000000001,0.12696774051191528,0.12696774051191528,0.13976756398940865,0.12506946160635482,0.10586972639011474,0.11763905560458959,7.083292144748457E-2,7.2571563780488013E-2,0.10494770520741395,0.12290000000000001,0.11449333627537511,0.13456085613415711,0.13456085613415711,0.10494770520741395,0.14416072374227715,4.2931226833463759E-2,0.12886601941747575,0.13190326566637245,0.13027616946160636,0.13287952338923212,0.12290000000000001,5.1170996584673244E-2,0.11736787290379526,0.1090696822594881,0.12290000000000001,0.13266257722859667,0.15630970873786409,0.118723786407767,0.12290000000000001,0.12290000000000001,0.10885273609885261,0.1289744924977935,0.12290000000000001,9.0520785525154468E-2,0.12290000000000001,0.12290000000000001,9.7083406884377763E-2,0.11595772285966462,0.12290000000000001,5.8135627898228799E-2,0.12913720211827007,0.14155736981465136,9.9415578111209185E-2,0.12290000000000001,238]
[null,"Male 50-54",0.13900825242718448,4.8902226510893335E-2,0.11807294792586057,0.14193702559576349,0.12290000000000001,0.1278355251544572,9.0520785525154468E-2,0.12290000000000001,0.12290000000000001,0.12696774051191528,0.12696774051191528,0.13976756398940865,0.12506946160635482,0.10586972639011474,0.11763905560458959,7.083292144748457E-2,7.2571563780488013E-2,0.10494770520741395,0.12290000000000001,0.11449333627537511,0.13456085613415711,0.13456085613415711,0.10494770520741395,0.14416072374227715,4.2931226833463759E-2,0.12886601941747575,0.13190326566637245,0.13027616946160636,0.13287952338923212,0.12290000000000001,5.1170996584673244E-2,0.11736787290379526,0.1090696822594881,0.12290000000000001,0.13266257722859667,0.15630970873786409,0.118723786407767,0.12290000000000001,0.12290000000000001,0.10885273609885261,0.1289744924977935,0.12290000000000001,9.0520785525154468E-2,0.12290000000000001,0.12290000000000001,9.7083406884377763E-2,0.11595772285966462,0.12290000000000001,5.8135627898228799E-2,0.12913720211827007,0.14155736981465136,9.9415578111209185E-2,0.12290000000000001,239]
[null,"Male 55-59",0.12848932038834951,4.520173256010971E-2,0.10913821712268315,0.13119646954986763,0.11360000000000001,0.1181620476610768,8.3670962047661085E-2,0.11360000000000001,0.11360000000000001,0.11735992939099738,0.11735992939099738,0.12919117387466902,0.1156052956751986,9.7858428949691087E-2,0.10873715798764343,6.5472903795233905E-2,6.7079980841850601E-2,9.7006178287731698E-2,0.11360000000000001,0.10582947925860547,0.12437846425419243,0.12437846425419243,9.7006178287731698E-2,0.13325189761694617,3.9682566055992539E-2,0.11911456310679612,0.12192197705207414,0.1204180052956752,0.12282436010591351,0.11360000000000001,4.7298821904140607E-2,0.10848649602824362,0.10081624007060902,0.11360000000000001,0.12262383053839367,0.14448155339805827,0.10973980582524273,0.11360000000000001,0.11360000000000001,0.10061571050308915,0.11921482789055605,0.11360000000000001,8.3670962047661085E-2,0.11360000000000001,0.11360000000000001,8.9736981465136798E-2,0.10718305383936452,0.11360000000000001,5.3736430669152083E-2,0.11936522506619593,0.13084554280670785,9.1892674315975295E-2,0.11360000000000001,240]
[null,"Male 60-64",0.12848932038834951,4.520173256010971E-2,0.10913821712268315,0.13119646954986763,0.11360000000000001,0.1181620476610768,8.3670962047661085E-2,0.11360000000000001,0.11360000000000001,0.11735992939099738,0.11735992939099738,0.12919117387466902,0.1156052956751986,9.7858428949691087E-2,0.10873715798764343,6.5472903795233905E-2,6.7079980841850601E-2,9.7006178287731698E-2,0.11360000000000001,0.10582947925860547,0.12437846425419243,0.12437846425419243,9.7006178287731698E-2,0.13325189761694617,3.9682566055992539E-2,0.11911456310679612,0.12192197705207414,0.1204180052956752,0.12282436010591351,0.11360000000000001,4.7298821904140607E-2,0.10848649602824362,0.10081624007060902,0.11360000000000001,0.12262383053839367,0.14448155339805827,0.10973980582524273,0.11360000000000001,0.11360000000000001,0.10061571050308915,0.11921482789055605,0.11360000000000001,8.3670962047661085E-2,0.11360000000000001,0.11360000000000001,8.9736981465136798E-2,0.10718305383936452,0.11360000000000001,5.3736430669152083E-2,0.11936522506619593,0.13084554280670785,9.1892674315975295E-2,0.11360000000000001,241]
[null,"Male 65-69",{"$f":"$AR244*C$254","v":8.6187378640776705E-2},3.0320176241904574E-2,7.3207149161518104E-2,8.8003265666372482E-2,7.6200000000000004E-2,7.9260105913503978E-2,5.6124360105913512E-2,7.6200000000000004E-2,7.6200000000000004E-2,7.8722065313327455E-2,{"$f":"$AR244*M$254","v":7.8722065313327455E-2},8.6658164165931154E-2,7.7545101500441305E-2,6.564095322153575E-2,7.2938128861429835E-2,4.3917563989408652E-2,4.4995550529480774E-2,6.5069285083848197E-2,7.6200000000000004E-2,7.0987731685789937E-2,{"$f":"$AR244*W$254","v":8.3429920564872029E-2},8.3429920564872029E-2,6.5069285083848197E-2,8.9381994704324799E-2,2.6618059273473868E-2,7.9899029126213592E-2,8.1782171226831415E-2,8.0773345101500443E-2,8.2387466902030013E-2,7.6200000000000004E-2,{"$f":"$AR244*AG$254","v":3.1726850608235158E-2},7.2769991173874685E-2,6.7624977934686678E-2,7.6200000000000004E-2,8.2252956751985892E-2,9.6914563106796123E-2,7.3610679611650492E-2,7.6200000000000004E-2,7.6200000000000004E-2,6.7490467784642544E-2,7.9966284201235666E-2,7.6200000000000004E-2,{"$f":"$AR244*AS$254","v":5.6124360105913512E-2},7.6200000000000004E-2,7.6200000000000004E-2,6.0193292144748452E-2,7.1895675198587819E-2,7.6200000000000004E-2,3.6045035360822084E-2,8.0067166813768756E-2,8.776787290379523E-2,6.1639276257722864E-2,7.6200000000000004E-2,242]
[null,"Male 70-74",8.6187378640776705E-2,3.0320176241904574E-2,7.3207149161518104E-2,8.8003265666372482E-2,7.6200000000000004E-2,7.9260105913503978E-2,5.6124360105913512E-2,7.6200000000000004E-2,7.6200000000000004E-2,7.8722065313327455E-2,7.8722065313327455E-2,8.6658164165931154E-2,7.7545101500441305E-2,6.564095322153575E-2,7.2938128861429835E-2,4.3917563989408652E-2,4.4995550529480774E-2,6.5069285083848197E-2,7.6200000000000004E-2,7.0987731685789937E-2,8.3429920564872029E-2,8.3429920564872029E-2,6.5069285083848197E-2,8.9381994704324799E-2,2.6618059273473868E-2,7.9899029126213592E-2,8.1782171226831415E-2,8.0773345101500443E-2,8.2387466902030013E-2,7.6200000000000004E-2,3.1726850608235158E-2,7.2769991173874685E-2,6.7624977934686678E-2,7.6200000000000004E-2,8.2252956751985892E-2,9.6914563106796123E-2,7.3610679611650492E-2,7.6200000000000004E-2,7.6200000000000004E-2,6.7490467784642544E-2,7.9966284201235666E-2,7.6200000000000004E-2,5.6124360105913512E-2,7.6200000000000004E-2,7.6200000000000004E-2,6.0193292144748452E-2,7.1895675198587819E-2,7.6200000000000004E-2,3.6045035360822084E-2,8.0067166813768756E-2,8.776787290379523E-2,6.1639276257722864E-2,7.6200000000000004E-2,243]
[null,"Male 75-79",4.5242718446601937E-2,1.5916103014123134E-2,3.8428949691085616E-2,4.6195939982347757E-2,0.04,4.1606354810238305E-2,2.9461606354810242E-2,0.04,0.04,4.1323918799646961E-2,4.1323918799646961E-2,4.5489849955869376E-2,4.0706090026478375E-2,3.445719329214475E-2,3.8287731685789937E-2,2.3053839364518977E-2,2.3619711564031899E-2,3.4157105030891442E-2,0.04,3.7263901147396292E-2,4.3795233892321275E-2,4.3795233892321275E-2,3.4157105030891442E-2,4.6919682259488081E-2,1.3972734526757935E-2,4.1941747572815533E-2,4.2930273609885258E-2,4.2400706090026476E-2,4.3248014121800529E-2,0.04,1.6654514754979085E-2,3.8199470432480148E-2,3.5498676081200359E-2,0.04,4.3177405119152697E-2,5.0873786407766998E-2,3.8640776699029128E-2,0.04,0.04,3.5428067078552512E-2,4.1977052074139459E-2,0.04,2.9461606354810242E-2,0.04,0.04,3.1597528684907325E-2,3.7740511915269198E-2,0.04,1.8921278404631016E-2,4.2030008826125329E-2,4.6072374227714034E-2,3.2356575463371583E-2,0.04,244]
[null,"Male 80-84",4.5242718446601937E-2,1.5916103014123134E-2,3.8428949691085616E-2,4.6195939982347757E-2,0.04,4.1606354810238305E-2,2.9461606354810242E-2,0.04,0.04,4.1323918799646961E-2,4.1323918799646961E-2,4.5489849955869376E-2,4.0706090026478375E-2,3.445719329214475E-2,3.8287731685789937E-2,2.3053839364518977E-2,2.3619711564031899E-2,3.4157105030891442E-2,0.04,3.7263901147396292E-2,4.3795233892321275E-2,4.3795233892321275E-2,3.4157105030891442E-2,4.6919682259488081E-2,1.3972734526757935E-2,4.1941747572815533E-2,4.2930273609885258E-2,4.2400706090026476E-2,4.3248014121800529E-2,0.04,1.6654514754979085E-2,3.8199470432480148E-2,3.5498676081200359E-2,0.04,4.3177405119152697E-2,5.0873786407766998E-2,3.8640776699029128E-2,0.04,0.04,3.5428067078552512E-2,4.1977052074139459E-2,0.04,2.9461606354810242E-2,0.04,0.04,3.1597528684907325E-2,3.7740511915269198E-2,0.04,1.8921278404631016E-2,4.2030008826125329E-2,4.6072374227714034E-2,3.2356575463371583E-2,0.04,245]
[null,"Male 85-89",4.5242718446601937E-2,1.5916103014123134E-2,3.8428949691085616E-2,4.6195939982347757E-2,0.04,4.1606354810238305E-2,2.9461606354810242E-2,0.04,0.04,4.1323918799646961E-2,4.1323918799646961E-2,4.5489849955869376E-2,4.0706090026478375E-2,3.445719329214475E-2,3.8287731685789937E-2,2.3053839364518977E-2,2.3619711564031899E-2,3.4157105030891442E-2,0.04,3.7263901147396292E-2,4.3795233892321275E-2,4.3795233892321275E-2,3.4157105030891442E-2,4.6919682259488081E-2,1.3972734526757935E-2,4.1941747572815533E-2,4.2930273609885258E-2,4.2400706090026476E-2,4.3248014121800529E-2,0.04,1.6654514754979085E-2,3.8199470432480148E-2,3.5498676081200359E-2,0.04,4.3177405119152697E-2,5.0873786407766998E-2,3.8640776699029128E-2,0.04,0.04,3.5428067078552512E-2,4.1977052074139459E-2,0.04,2.9461606354810242E-2,0.04,0.04,3.1597528684907325E-2,3.7740511915269198E-2,0.04,1.8921278404631016E-2,4.2030008826125329E-2,4.6072374227714034E-2,3.2356575463371583E-2,0.04,246]
[null,"Male 90+",4.5242718446601937E-2,1.5916103014123134E-2,3.8428949691085616E-2,4.6195939982347757E-2,0.04,4.1606354810238305E-2,2.9461606354810242E-2,0.04,0.04,4.1323918799646961E-2,4.1323918799646961E-2,4.5489849955869376E-2,4.0706090026478375E-2,3.445719329214475E-2,3.8287731685789937E-2,2.3053839364518977E-2,2.3619711564031899E-2,3.4157105030891442E-2,0.04,3.7263901147396292E-2,4.3795233892321275E-2,4.3795233892321275E-2,3.4157105030891442E-2,4.6919682259488081E-2,1.3972734526757935E-2,4.1941747572815533E-2,4.2930273609885258E-2,4.2400706090026476E-2,4.3248014121800529E-2,0.04,1.6654514754979085E-2,3.8199470432480148E-2,3.5498676081200359E-2,0.04,4.3177405119152697E-2,5.0873786407766998E-2,3.8640776699029128E-2,0.04,0.04,3.5428067078552512E-2,4.1977052074139459E-2,0.04,2.9461606354810242E-2,0.04,0.04,3.1597528684907325E-2,3.7740511915269198E-2,0.04,1.8921278404631016E-2,4.2030008826125329E-2,4.6072374227714034E-2,3.2356575463371583E-2,0.04,247]
[null,null,"Aberdeen City Local Authority","Aberdeen City Deal","Aberdeenshire Local Authority","Angus Local Authority","Argyll & Bute Local Authority","Ayrshire & Arran Health Board","Borders Health Board","Clacks & Stirling IJB","Clackmannanshire Local Authority","Dumfries & Galloway Health Board","Dumfries & Galloway Local Authority","Dundee City Local Authority","East Ayrshire Local Authority","East Dunbartonshire Local Authority","East Lothian Local Authority","East Renfrewshire Local Authority","Edinburgh & Southeast City Deal","Edinburgh, City of Local Authority","Eilean Siar Local Authority","Falkirk Local Authority","Fife Health Board","Fife Local Authority","Forth Valley Health Board","Glasgow City Local Authority","Glasgow & Clyde City Deal","Grampian Health Board","Greater Glasgow & Clyde Health Board","Highland Health Board","Highland Local Authority","Inverclyde Local Authority","Inverness City Deal","Lanarkshire Health Board","Lothian Health Board","Midlothian Local Authority","Moray Local Authority","North Ayrshire Local Authority","North Lanarkshire Local Authority","Orkney Health Board","Orkney Islands Local Authority","Perth & Kinross Local Authority","Renfrewshire Local Authority","Scotland","Scottish Borders Local Authority","Shetland Health Board","Shetland Islands Local Authority","South Ayrshire Local Authority","South Lanarkshire Local Authority","Stirling Local Authority","Tay Cities Deal ","Tayside Health Board","West Dunbartonshire Local Authority","West Lothian Local Authority","Western Isles Health Board",248]
["Overall prevalence","Female",0.1666,9.0164723575007558E-2,0.14150000000000001,9.8299999999999998E-2,0.188,0.19010000000000002,0.19210000000000002,0.188,0.188,0.22359999999999999,0.22359999999999999,0.24429999999999999,0.19190000000000002,0.14249999999999999,0.21170000000000003,8.1500000000000003E-2,0.13380566601024071,0.14279999999999998,0.188,0.12480000000000001,0.1938,0.1938,0.13849999999999998,0.2281,7.9155541094083695E-2,0.16600000000000001,0.21,0.1787,0.17660000000000001,0.188,9.4347826086956521E-2,0.21920000000000001,0.1709,0.188,0.2303,0.1837,0.2586,0.188,0.188,0.14710000000000001,0.21739999999999998,0.188,0.19210000000000002,0.188,0.188,0.19579999999999997,0.17780000000000001,0.188,0.1071890421622347,0.1686,0.25069999999999998,0.2024,0.188,249]
[null,"Male",0.25629999999999997,9.0164723575007558E-2,0.2177,0.26170000000000004,0.2266,0.23569999999999999,0.16690000000000002,0.2266,0.2266,0.2341,0.2341,0.25769999999999998,0.2306,0.19519999999999998,0.21690000000000001,0.13059999999999999,0.13380566601024071,0.19350000000000001,0.2266,0.21109999999999998,0.24809999999999999,0.24809999999999999,0.19350000000000001,0.26579999999999998,7.9155541094083695E-2,0.23760000000000001,0.2432,0.2402,0.245,0.2266,9.4347826086956521E-2,0.21640000000000001,0.2011,0.2266,0.24460000000000001,0.28820000000000001,0.21890000000000001,0.2266,0.2266,0.20069999999999999,0.23780000000000001,0.2266,0.16690000000000002,0.2266,0.2266,0.17899999999999999,0.21379999999999999,0.2266,0.1071890421622347,0.23809999999999998,0.26100000000000001,0.18329999999999999,0.2266,250]
["Crude weights","Female",{"$f":"C251/$AR251","v":0.88617021276595742},0.47959959348408276,0.75265957446808518,0.52287234042553188,1,1.0111702127659576,1.0218085106382979,1,1,1.1893617021276595,1.1893617021276595,1.2994680851063829,1.0207446808510638,0.75797872340425521,1.1260638297872343,0.43351063829787234,0.71173226601191875,0.75957446808510631,1,0.66382978723404262,1.0308510638297872,1.0308510638297872,0.73670212765957444,1.2132978723404255,0.42104011220257287,0.88297872340425532,1.1170212765957446,0.95053191489361699,0.93936170212765957,1,0.50185013876040707,1.1659574468085108,0.9090425531914893,1,1.2250000000000001,0.97712765957446812,1.3755319148936169,1,1,0.7824468085106383,1.1563829787234041,"n/a",{"$f":"AS251/$AR251","v":1.0218085106382979},1,1,1.0414893617021275,0.94574468085106389,1,0.57015447958635479,0.89680851063829792,1.3335106382978723,1.076595744680851,1,251]
[null,"Male",{"$f":"C252/$AR252","v":1.1310679611650485},0.39790257535307838,0.96072374227714041,1.1548984995586939,1,1.0401588702559577,0.73654015887025603,1,1,1.033097969991174,1.033097969991174,1.1372462488967343,1.0176522506619594,0.86142983230361869,0.95719329214474846,0.57634598411297444,0.5904927891007975,0.85392762577228598,1,0.93159752868490731,1.0948808473080318,1.0948808473080318,0.85392762577228598,1.1729920564872021,0.34931836316894838,1.0485436893203883,1.0732568402471314,1.0600176522506619,1.0812003530450132,1,0.41636286887447715,0.95498676081200362,0.88746690203000889,1,1.0794351279788175,1.2718446601941749,0.96601941747572817,1,1,0.88570167696381286,1.0494263018534864,"n/a",{"$f":"AS252/$AR252","v":0.73654015887025603},1,1,0.78993821712268308,0.94351279788172993,1,0.47303196011577536,1.0507502206531332,1.1518093556928508,0.80891438658428949,1,252]

{"sheet":"Population 2016","index":12,"n_rows":249,"n_cols":56,"rows_kept":249,"cut":false,"hidden":true,"merged":[]}
["Population 2016 (16+ only)"]
[]
["SIMD","group","Aberdeen City Local Authority","Aberdeen City Region Deal","Aberdeenshire Local Authority","Angus Local Authority","Argyll & Bute Local Authority","Ayrshire & Arran Health Board","Borders Health Board","Clackmannanshire & Stirling IJB","Clackmannanshire Local Authority","Dumfries & Galloway Health Board","Dumfries & Galloway Local Authority","Dundee City Local Authority","East Ayrshire Local Authority","East Dunbartonshire Local Authority","East Lothian Local Authority","East Renfrewshire Local Authority","Edinburgh & SE Scotland City Region Deal","Edinburgh, City of Local Authority","Eilean Siar Local Authority","Falkirk Local Authority","Fife Health Board","Fife Local Authority","Forth Valley Health Board","Glasgow City Local Authority","Glasgow City Region Deal","Grampian Health Board","Greater Glasgow & Clyde Health Board","Highland Health Board","Highland Local Authority","Inverclyde Local Authority","Inverness & Highland City Region Deal","Lanarkshire Health Board","Lothian Health Board","Midlothian Local Authority","Moray Local Authority","North Ayrshire Local Authority","North Lanarkshire Local Authority","Orkney Health Board","Orkney Islands Local Authority","Perth & Kinross Local Authority","Renfrewshire Local Authority","Scotland","Scottish Borders Local Authority","Shetland Health Board","Shetland Islands Local Authority","South Ayrshire Local Authority","South Lanarkshire Local Authority","Stirling Local Authority","Tay Cities Region Deal ","Tayside Health Board","West Dunbartonshire Local Authority","West Lothian Local Authority","Western Isles Health Board",1]
[null,null,"popS12000033","Aber_deal","popS12000034","popS12000041","popS12000035","popS08000015","popS08000016","ClacksStirIJB","popS12000005","popS08000017","popS12000006","popS12000042","popS12000008","popS12000045","popS12000010","popS12000011","EdinSE_deal","popS12000036","popS12000013","popS12000014","popS08000018","popS12000015","popS08000019","popS12000046","GClyde_deal","popS08000020","popS08000021","popS08000022","popS12000017","popS12000018","Inver_deal","popS08000023","popS08000024","popS12000019","popS12000020","popS12000021","popS12000044","popS08000025","popS12000023","popS12000024","popS12000038","popS00000001","popS12000026","popS08000026","popS12000027","popS12000028","popS12000029","popS12000030","Tay_deal","popS08000027","popS12000039","popS12000040","popS08000028",2]
["All quintiles","16+ Males and Females",195653,408972,213319,97075,73892,308413,95528,120583,42326,125906,125906,124421,100941,88730,85101,75148,1132942,429806,22593,131021,305958,305958,251604,516583,1505157,488515,966842,268690,194798,66309,194798,538315,731456,71726,79543,112762,276091,18334,18334,126166,145976,4488783,95528,18967,18967,94710,262224,78257,653620,347662,74096,144823,22593,3]
["Q1 and Q2","16+ Males and Females",55772,76466,20694,23106,17866,167717,20594,42609,21032,44748,44748,68009,58204,18917,25984,11714,380156,118643,5432,56576,120625,120625,99185,329151,800085,89168,514066,67593,49727,36156,49727,286019,238937,32594,12702,67548,163920,2601,2601,20837,67935,1769266,20594,629,629,41965,122099,21577,232577,111952,50193,61716,5432,4]
["SIMD Q1 (most deprived)","16+ Males and Females",15706,20077,4371,6722,5398,92567,5141,19886,9977,9984,9984,43099,31424,4139,2919,4928,153150,55966,0,19042,59089,59089,38928,237443,481887,20712,343232,18565,13167,27666,13167,138655,88920,7071,635,44986,86094,0,0,6620,40910,872234,5141,0,0,16157,52561,9909,115530,56441,28146,22964,0,5]
["SIMD Q2",null,40066,56389,16323,16384,12468,75150,15453,22723,11055,34764,34764,24910,26780,14778,23065,6786,227006,62677,5432,37534,61536,61536,60257,91708,318198,68456,170834,49028,36560,8490,36560,147364,150017,25523,12067,22562,77826,2601,2601,14217,27025,897032,15453,629,629,25808,69538,11668,117047,55511,22047,38752,5432,6]
["SIMD Q3",null,30458,73451,42993,31913,30426,53711,31989,20856,8000,46905,46905,15883,17462,5452,18382,8332,231265,65662,15862,24167,66386,66386,45023,73726,236775,95627,135271,92816,62390,10471,62390,101504,132890,16953,22176,16287,50065,5744,5744,30213,25960,907978,31989,6241,6241,19962,51439,12856,144395,78009,11330,31893,15862,7]
["SIMD Q4",null,33670,111128,77458,24649,18051,45109,34098,29073,7505,22879,22879,21569,13653,16324,26540,11252,219384,69016,1299,25092,52998,52998,54165,60616,224957,141579,135338,82327,64276,11701,64276,89619,132288,11108,30451,18431,37360,8622,8622,52156,25824,910792,34098,12097,12097,13025,52259,21568,151372,98374,9621,25624,1299,8]
["SIMD Q5 (least deprived)",null,75753,147927,72174,17407,7549,41876,8847,28045,5789,11374,11374,18960,11622,48037,14195,43850,302137,176485,0,25186,65949,65949,53231,53090,243340,162141,182167,25954,18405,7981,18405,61173,227341,11071,14214,10496,24746,1367,1367,22960,26257,900747,8847,0,0,19758,36427,22256,125276,59327,2952,25590,0,9]
["SIMD Q1 (most deprived)","16+ Females",7940,10084,2144,3486,2800,49250,2661,10561,5216,5227,5227,22625,16592,2201,1560,2687,79990,29099,0,9861,30881,30881,20422,124184,253184,10434,180380,9647,6847,14769,6847,72804,46448,3734,350,24175,45017,0,0,3368,21320,457633,2661,0,0,8483,27787,5345,60360,29479,15219,12055,0,10]
["SIMD Q2",null,20589,29017,8428,8582,6570,39721,7980,11880,5783,18133,18133,12948,14006,7886,12341,3614,118897,32276,2752,19564,32365,32365,31444,46945,166820,35348,89074,25793,19223,4529,19223,77746,78552,13662,6331,12037,41225,1291,1291,7061,14478,469079,7980,289,289,13678,36521,6097,60956,28591,11622,20273,2752,11]
["SIMD Q3",null,14775,36682,21907,16368,15775,28008,16557,10891,4166,24265,24265,8282,8844,2911,9630,4472,119474,33598,8104,12476,34614,34614,23367,37875,123784,48192,70410,47689,31914,5526,31914,53374,68303,8881,11510,8619,26311,2915,2915,15578,13674,469093,16557,3067,3067,10545,27063,6725,74842,40228,5952,16194,8104,12]
["SIMD Q4",null,17048,56213,39165,12745,9303,23680,17825,14853,3589,11799,11799,11465,7065,8598,14037,6065,113758,35609,688,12801,27274,27274,27654,31260,116221,71636,70387,42063,32760,6043,32760,45834,68659,5845,15423,9678,18881,4382,4382,26672,13379,468792,17825,6029,6029,6937,26953,11264,78156,50882,5042,13168,688,13]
["SIMD Q5 (least deprived)",null,38569,74964,36395,9014,2838,21882,4614,14673,3026,6007,6007,9920,6015,24782,7409,23171,157070,92126,0,12867,34322,34322,27540,27520,126501,81756,94858,12542,9704,4256,9704,31643,118134,5603,6792,5410,12785,683,683,12164,13607,465079,4614,0,0,10457,18858,11647,65420,31098,1522,12996,0,14]
["SIMD Q1 (most deprived)","16+ Males",7766,9993,2227,3236,2598,43317,2480,9325,4761,4757,4757,20474,14832,1938,1359,2241,73160,26867,0,9181,28208,28208,18506,113259,228703,10278,162852,8918,6320,12897,6320,65851,42472,3337,285,20811,41077,0,0,3252,19590,414601,2480,0,0,7674,24774,4564,55170,26962,12927,10909,0,15]
["SIMD Q2",null,19477,27372,7895,7802,5898,35429,7473,10843,5272,16631,16631,11962,12774,6892,10724,3172,108109,30401,2680,17970,29171,29171,28813,44763,151378,33108,81760,23235,17337,3961,17337,69618,71465,11861,5736,10525,36601,1310,1310,7156,12547,427953,7473,340,340,12130,33017,5571,56091,26920,10425,18479,2680,16]
["SIMD Q3",null,15683,36769,21086,15545,14651,25703,15432,9965,3834,22640,22640,7601,8618,2541,8752,3860,111791,32064,7758,11691,31772,31772,21656,35851,112991,47435,64861,45127,30476,4945,30476,48130,64587,8072,10666,7668,23754,2829,2829,14635,12286,438885,15432,3174,3174,9417,24376,6131,69553,37781,5378,15699,7758,17]
["SIMD Q4",null,16622,54915,38293,11904,8748,21429,16273,14220,3916,11080,11080,10104,6588,7726,12503,5187,105626,33407,611,12291,25724,25724,26511,29356,108736,69943,64951,40264,31516,5658,31516,43785,63629,5263,15028,8753,18479,4240,4240,25484,12445,442000,16273,6068,6068,6088,25306,10304,73216,47492,4579,12456,611,18]
["SIMD Q5 (least deprived)",null,37184,72963,35779,8393,4711,19994,4233,13372,2763,5367,5367,9040,5607,23255,6786,20679,145067,84359,0,12319,31627,31627,25691,25570,116839,80385,87309,13412,8701,3725,8701,29530,109207,5468,7422,5086,11961,684,684,10796,12650,435668,4233,0,0,9301,17569,10609,59856,28229,1430,12594,0,19]
["All quintiles","Female 0-4",null,null,null,null,null,null,null,null,null,null,null,null,null,null,null,null,null,null,null,null,null,null,null,null,null,null,null,null,null,null,null,null,null,null,null,null,null,null,null,null,null,null,null,null,null,null,null,null,null,null,null,null,null,20]
[null,"Female 5-9",null,null,null,null,null,null,null,null,null,null,null,null,null,null,null,null,null,null,null,null,null,null,null,null,null,null,null,null,null,null,null,null,null,null,null,null,null,null,null,null,null,null,null,null,null,null,null,null,null,null,null,null,null,21]
[null,"Female 10-15",null,null,null,null,null,null,null,null,null,null,null,null,null,null,null,null,null,null,null,null,null,null,null,null,null,null,null,null,null,null,null,null,null,null,null,null,null,null,null,null,null,null,null,null,null,null,null,null,null,null,null,null,null,22]
[null,"Female 16-19",5132,10449,5317,2420,1755,8055,2394,3878,1120,3007,3007,3946,2632,2319,2320,2269,29879,10481,506,3283,8533,8533,7161,13662,40734,12500,25770,6512,4757,1715,4757,14964,18952,2013,2051,3036,8055,395,395,3162,3858,118803,2394,526,526,2387,6909,2758,18061,9528,1947,4138,506,23]
[null,"Female 20-24",11186,17539,6353,3023,1897,10449,2757,5440,1411,3797,3797,7387,3516,2847,3144,2491,50597,24791,559,4465,12368,12368,9905,28898,64015,20059,44900,7538,5641,2383,5641,19115,35472,2476,2520,3967,10067,534,534,3854,5454,182279,2757,562,562,2966,9048,4029,26632,14264,2827,5061,559,24]
[null,"Female 25-29",11646,18412,6766,2919,1880,10393,2483,4660,1408,3846,3846,6884,3706,2469,2796,2248,52083,27486,611,4641,11146,11146,9301,32603,67710,21019,48136,8030,6150,2297,6150,19574,38454,2653,2607,3823,10607,595,595,3890,5624,187975,2483,694,694,2864,8967,3252,24839,13693,2895,5519,611,25]
[null,"Female 30-34",9712,17943,8231,3238,1920,10174,2828,3996,1462,3753,3753,5361,3622,2437,2969,2196,48660,22996,664,5214,10880,10880,9210,26708,63296,20877,42021,8755,6835,2230,6835,21275,34952,2878,2934,3676,11344,594,594,4385,5477,179608,2828,641,641,2876,9931,2534,23864,12984,2973,6109,664,26]
[null,"Female 35-39",7583,16085,8502,3276,2083,10193,2805,4130,1504,3612,3612,4328,3547,3044,3171,2902,44086,18399,746,5111,10973,10973,9241,21043,58299,18652,37236,8759,6676,2249,6676,21063,30308,2893,2567,3679,11088,587,587,4006,5318,166485,2805,700,700,2967,9975,2626,22583,11610,2680,5845,746,27]
[null,"Female 40-44",6824,15898,9074,3662,2531,11821,3657,4700,1736,4255,4255,3957,4002,3415,3457,3182,44368,16077,826,5798,11795,11795,10498,18545,58315,19026,36123,9983,7452,2474,7452,22192,28916,2880,3128,4405,11655,679,679,4598,5707,172709,3657,721,721,3414,10537,2964,24012,12217,2800,6502,826,28]
[null,"Female 45-49",7059,17560,10501,4288,3168,14637,4591,5736,2106,5713,5713,4585,4999,4300,4361,3828,50032,16115,994,6395,13972,13972,12131,21204,69713,21168,43438,12131,8963,3245,8963,26275,31469,3511,3608,5391,13605,825,825,5763,7211,202829,4591,849,849,4247,12670,3630,28608,14636,3650,7482,994,29]
[null,"Female 50-54",7514,18002,10488,4561,3606,15343,4773,5816,2099,6247,6247,5222,5016,4541,4176,3870,50162,16086,1055,6308,14461,14461,12124,22092,71857,21705,45100,13200,9594,3438,9594,26757,30928,3468,3703,5694,13668,884,884,6032,7332,209262,4773,870,870,4633,13089,3717,30276,15815,3827,7198,1055,30]
[null,"Female 55-59",6840,15898,9058,4348,3443,14228,4541,5068,1864,5813,5813,4949,4484,4332,3915,3436,45797,14875,972,5503,13155,13155,10571,19421,64733,19238,40548,12373,8930,3211,8930,24185,28101,3217,3340,5208,12011,805,805,5481,6630,190084,4541,776,776,4536,12174,3204,27933,14778,3518,6094,972,31]
[null,"Female 60-64",5820,14164,8344,3966,3221,12941,4117,4397,1655,5644,5644,3904,3948,3656,3310,2999,39293,12299,979,4825,11746,11746,9222,15156,53781,17262,32864,11540,8319,2621,8319,20917,23430,2702,3098,4810,10348,750,750,5122,5470,165146,4117,742,742,4183,10569,2742,24738,12992,2962,5119,979,32]
[null,"Female 65-69",5622,13715,8093,4306,3532,13256,4447,4573,1787,5665,5665,4107,4031,3622,3350,2876,40441,12277,1002,4943,12418,12418,9516,13288,50288,16937,30723,11757,8225,2639,8225,19565,23576,2896,3222,4928,9706,779,779,5320,5474,164057,4447,683,683,4297,9859,2786,26151,13733,2824,5053,1002,33]
[null,"Female 70-74",4129,10057,5928,3313,2739,10604,3466,3610,1346,4801,4801,3099,3110,2935,2627,2330,30842,9152,794,3713,9547,9547,7323,10260,39137,12629,23856,9093,6354,2076,6354,15281,17829,2151,2572,3901,7638,666,666,4272,4201,127150,3466,577,577,3593,7643,2264,20231,10684,2054,3899,794,34]
[null,"Female 75-79",3695,8281,4586,2642,2245,8316,2800,2850,983,3660,3660,2766,2449,2597,2148,1948,24775,7867,713,3109,7370,7370,5959,9530,33698,10254,21120,7233,4988,1746,4988,12578,14605,1653,1973,3062,6233,498,498,3398,3509,104331,2800,419,419,2805,6345,1867,16176,8806,1790,2937,713,35]
[null,"Female 80-84",3033,6388,3355,2034,1632,6246,2000,2054,662,2870,2870,2379,1804,1951,1635,1685,18839,6454,553,2196,5495,5495,4250,7853,26368,7981,16925,5426,3794,1382,3794,9443,11344,1238,1593,2273,4548,327,327,2633,2732,80217,2000,311,311,2169,4895,1392,12541,7046,1322,2017,553,36]
[null,"Female 85-89",2017,4180,2163,1315,1000,3632,1227,1203,412,1757,1757,1526,1048,1203,1030,1082,12103,4595,330,1285,3473,3473,2488,4753,15785,5134,10347,3415,2415,892,2415,5438,7403,693,954,1283,2478,219,219,1798,1579,49691,1227,189,189,1301,2960,791,8112,4639,838,1085,330,37]
[null,"Female 90+",1109,2389,1280,884,634,2253,751,747,225,991,991,840,608,710,568,667,7232,2758,240,780,2124,2124,1527,2768,8781,2925,6002,1989,1355,525,1355,2779,4357,403,536,783,1168,134,134,1129,882,29050,751,125,125,862,1611,522,4977,2853,450,628,240,38]
[null,"Male 0-4",null,null,null,null,null,null,null,null,null,null,null,null,null,null,null,null,null,null,null,null,null,null,null,null,null,null,null,null,null,null,null,null,null,null,null,null,null,null,null,null,null,null,null,null,null,null,null,null,null,null,null,null,null,39]
[null,"Male 5-9",null,null,null,null,null,null,null,null,null,null,null,null,null,null,null,null,null,null,null,null,null,null,null,null,null,null,null,null,null,null,null,null,null,null,null,null,null,null,null,null,null,null,null,null,null,null,null,null,null,null,null,null,null,40]
[null,"Male 10-15",null,null,null,null,null,null,null,null,null,null,null,null,null,null,null,null,null,null,null,null,null,null,null,null,null,null,null,null,null,null,null,null,null,null,null,null,null,null,null,null,null,null,null,null,null,null,null,null,null,null,null,null,null,41]
[null,"Male 16-19",4618,10741,6123,2762,2139,8596,2478,3910,1252,3221,3221,3524,2828,2623,2309,2475,30158,10532,556,3747,8648,8648,7657,13791,42639,13104,26871,7596,5457,1848,5457,15768,19032,1961,2363,3245,8401,494,494,3562,4118,124418,2478,549,549,2523,7367,2658,18496,9848,2016,4230,556,42]
[null,"Male 20-24",10055,17241,7186,3297,2955,10847,2809,5494,1591,3996,3996,6850,3689,3335,2990,2815,46618,20799,650,4670,12020,12020,10164,27102,64147,20259,44004,9133,6178,2412,6178,20143,31789,2508,3018,4148,10761,577,577,4430,5464,181688,2809,720,720,3010,9382,3903,26597,14577,2876,5492,650,43]
[null,"Male 25-29",13084,20153,7069,3008,2486,9915,2465,4320,1326,3672,3672,7015,3552,2823,2551,2235,49299,25953,613,4538,10466,10466,8858,31828,66712,23042,47795,8662,6176,2322,6176,18917,36368,2460,2889,3564,10197,605,605,4041,5719,186149,2465,707,707,2799,8720,2994,24530,14064,2868,5404,613,44]
[null,"Male 30-34",10533,18196,7663,3098,1993,9097,2438,3686,1379,3519,3519,5275,3358,2430,2530,1892,45742,22449,618,4657,10197,10197,8343,27904,61765,21010,42551,8457,6464,2227,6464,19214,33107,2518,2814,3224,10357,540,540,4186,5418,172305,2438,655,655,2515,8857,2307,22756,12559,2680,5610,618,45]
[null,"Male 35-39",8518,16872,8354,2990,2111,9060,2607,3767,1433,3252,3252,4008,3246,2566,2713,2396,42754,18925,687,4994,10280,10280,8761,22182,56216,19515,36499,8592,6481,2010,6481,19717,29867,2614,2643,3157,10380,536,536,4185,4942,161268,2607,712,712,2657,9337,2334,21463,11183,2403,5615,687,46]
[null,"Male 40-44",7308,16431,9123,3389,2439,10458,3273,4276,1613,3894,3894,3685,3714,3061,3382,2856,43545,16766,816,5398,11190,11190,9674,18717,55295,19411,34216,9153,6714,2118,6714,21079,29082,2717,2980,3700,11022,622,622,4187,5030,164929,3273,800,800,3044,10057,2663,22451,11261,2434,6217,816,47]
[null,"Male 45-49",7281,17228,9947,4018,3009,12866,4231,5337,2056,5061,5061,4514,4466,3704,3741,3208,47799,16303,1062,6279,13408,13408,11616,19948,63590,20910,38936,11193,8184,2694,8184,24654,30160,3128,3682,4645,12690,795,795,5184,6312,189422,4231,814,814,3755,11964,3281,27124,13716,3070,6988,1062,48]
[null,"Male 50-54",7284,17410,10126,4570,3357,13909,4657,5491,2021,5884,5884,4693,4685,4160,4090,3473,48325,16177,1035,6186,13327,13327,11677,19976,66121,21027,41191,12412,9055,3256,9055,24930,30341,3186,3617,5069,12858,908,908,5940,6814,197429,4657,928,928,4155,12072,3470,28530,15203,3512,6888,1035,49]
[null,"Male 55-59",6797,15936,9139,4032,3246,13173,4341,4964,1828,5552,5552,4632,4283,3876,3744,3233,44067,14276,1018,5421,12779,12779,10385,17580,59729,19197,37212,11962,8716,2965,8716,22517,26947,2942,3261,4790,11103,876,876,5288,6350,180737,4341,826,826,4100,11414,3136,26731,13952,3208,5985,1018,50]
[null,"Male 60-64",6027,14211,8184,3723,3097,11857,4040,4209,1579,5261,5261,3735,3731,3387,3034,2791,37412,12088,987,4431,10956,10956,8640,14433,50045,17177,30858,11077,7980,2425,7980,19187,22416,2609,2966,4304,9377,766,766,4954,5063,156406,4040,772,772,3822,9810,2630,23368,12412,2759,4685,987,51]
[null,"Male 65-69",5436,13667,8231,4139,3351,12280,4344,4311,1637,5663,5663,3703,3787,3321,3001,2478,37322,11191,1050,4682,11517,11517,8993,12473,45785,16610,27887,11360,8009,2361,8009,17898,21461,2602,2943,4478,8878,770,770,5018,4816,153467,4344,774,774,4015,9020,2674,24377,12860,2438,4667,1050,52]
[null,"Male 70-74",3551,9080,5529,2968,2599,9328,3194,3112,1185,4333,4333,2650,2773,2472,2305,1844,27189,7692,741,3266,8633,8633,6378,8760,33436,11338,20327,8593,5994,1795,5994,13109,15362,1939,2258,3391,6342,611,611,3766,3632,111869,3194,538,538,3164,6767,1927,18017,9384,1824,3426,741,53]
[null,"Male 75-79",2734,6713,3979,2218,1841,6859,2310,2318,810,3339,3339,2157,2086,2013,1690,1519,19727,5881,580,2408,6060,6060,4726,6503,24796,8457,15290,5897,4056,1293,4056,9506,11357,1321,1744,2461,4679,467,467,2901,2725,82515,2310,391,391,2312,4827,1508,13336,7276,1237,2465,580,54]
[null,"Male 80-84",2016,4681,2665,1505,1171,4512,1523,1512,486,2250,2250,1534,1329,1495,1188,1102,13669,4490,355,1683,4105,4105,3195,4488,16812,5789,10574,3989,2818,847,2818,6238,8041,862,1108,1620,2981,282,282,2077,1771,56201,1523,232,232,1563,3257,1026,9221,5116,871,1501,355,55]
[null,"Male 85-89",1046,2394,1348,820,580,2206,872,732,249,1098,1098,852,643,749,598,561,7057,2411,210,763,2030,2030,1495,2162,8120,2993,5207,2040,1460,423,1460,2913,4155,460,599,748,1326,147,147,1130,930,28287,872,119,119,815,1587,483,4832,2802,382,686,210,56]
[null,"Male 90+",444,1058,614,343,232,909,309,286,101,480,480,354,249,337,258,261,3070,1165,71,329,886,886,615,952,3439,1310,2315,840,608,190,608,1124,1875,174,252,299,520,67,67,474,414,12017,309,45,45,361,604,185,2057,1171,161,278,71,57]
["SIMD Q1 (most deprived)","Female 0-4",null,null,null,null,null,null,null,null,null,null,null,null,null,null,null,null,null,null,null,null,null,null,null,null,null,null,null,null,null,null,null,null,null,null,null,null,null,null,null,null,null,null,null,null,null,null,null,null,null,null,null,null,null,58]
[null,"Female 5-9",null,null,null,null,null,null,null,null,null,null,null,null,null,null,null,null,null,null,null,null,null,null,null,null,null,null,null,null,null,null,null,null,null,null,null,null,null,null,null,null,null,null,null,null,null,null,null,null,null,null,null,null,null,59]
[null,"Female 10-15",null,null,null,null,null,null,null,null,null,null,null,null,null,null,null,null,null,null,null,null,null,null,null,null,null,null,null,null,null,null,null,null,null,null,null,null,null,null,null,null,null,null,null,null,null,null,null,null,null,null,null,null,null,60]
[null,"Female 16-19",367,479,112,222,146,2710,169,594,274,315,315,1259,870,113,83,167,4509,1504,0,474,1829,1829,1068,6019,12832,495,8838,549,403,688,403,3994,2511,205,16,1351,2539,0,0,183,1046,24142,169,0,0,489,1455,320,3493,1664,805,719,0,61]
[null,"Female 20-24",782,982,200,320,208,4057,217,957,442,502,502,2144,1363,177,120,229,6262,2376,0,776,2248,2248,1733,10248,20452,1017,14969,811,603,1133,603,5483,3797,326,35,1946,3424,0,0,326,1925,37624,217,0,0,748,2059,515,5038,2790,1257,975,0,62]
[null,"Female 25-29",1031,1269,238,299,172,4063,204,1014,428,504,504,2793,1402,192,137,220,8045,3578,0,892,2758,2758,1906,14159,25059,1292,19205,767,595,1143,595,5854,5083,337,23,1950,3719,0,0,401,2185,45129,204,0,0,711,2135,586,6251,3493,1306,1031,0,63]
[null,"Female 30-34",906,1141,235,332,201,3606,207,887,409,430,430,2239,1246,165,124,214,7688,3523,0,874,2433,2433,1761,11989,22794,1174,16689,856,655,1118,655,6105,5048,296,33,1693,3760,0,0,360,1864,41240,207,0,0,667,2345,478,5364,2931,1339,1105,0,64]
[null,"Female 35-39",648,820,172,298,177,3239,192,774,422,361,361,1753,1095,151,145,215,6597,2822,0,690,2211,2211,1464,9938,19487,844,14051,699,522,993,522,5436,4194,280,24,1582,3365,0,0,296,1645,35038,192,0,0,562,2071,352,4558,2347,1109,947,0,65]
[null,"Female 40-44",661,829,168,255,208,3677,233,774,407,365,365,1449,1232,176,106,201,6089,2185,0,792,2275,2275,1566,8898,18428,857,12865,734,526,999,526,5563,3581,284,28,1837,3465,0,0,243,1486,33663,233,0,0,608,2098,367,4222,1947,1105,1006,0,66]
[null,"Female 45-49",594,790,196,304,239,4383,227,982,472,458,458,1647,1527,211,153,246,6820,2329,0,789,2760,2760,1771,10444,21908,818,15496,849,610,1343,610,6412,3833,312,28,2122,3984,0,0,239,1877,39197,227,0,0,734,2428,510,4950,2190,1375,1039,0,67]
[null,"Female 50-54",627,812,185,279,233,4464,220,905,457,473,473,1866,1566,212,125,258,6559,2093,0,840,2766,2766,1745,10956,22425,839,15965,795,562,1323,562,6460,3573,317,27,2202,4042,0,0,259,1798,39704,220,0,0,696,2418,448,5170,2404,1418,1038,0,68]
[null,"Female 55-59",541,700,159,260,223,3913,195,835,419,384,384,1669,1268,212,137,195,6082,2063,0,766,2446,2446,1601,9487,19924,723,14043,739,516,1263,516,5881,3441,310,23,1961,3571,0,0,233,1653,35528,195,0,0,684,2310,416,4608,2162,1233,931,0,69]
[null,"Female 60-64",440,565,125,209,200,3543,186,639,338,345,345,1330,1151,163,97,172,4925,1543,0,649,2086,2086,1288,7302,16077,602,10991,681,481,1042,481,5086,2653,232,37,1762,3061,0,0,212,1259,29212,186,0,0,630,2025,301,3837,1751,1053,781,0,70]
[null,"Female 65-69",408,525,117,187,225,3388,193,684,372,298,298,1327,1122,147,102,173,4911,1493,0,654,2098,2098,1338,6552,14944,557,10089,630,405,1045,405,4855,2620,261,32,1726,2902,0,0,182,1213,27762,193,0,0,540,1953,312,3794,1696,959,764,0,71]
[null,"Female 70-74",287,367,80,161,166,2652,149,528,279,311,311,958,867,102,87,124,3786,1086,0,473,1663,1663,1001,5396,11902,381,8053,483,317,788,317,3849,1974,198,14,1345,2379,0,0,151,960,21786,149,0,0,440,1470,249,2933,1270,683,603,0,72]
[null,"Female 75-79",243,297,54,166,144,2288,104,412,213,189,189,839,739,86,75,109,3115,962,0,508,1365,1365,920,5115,10810,307,7609,409,265,751,265,3201,1646,130,10,1167,1967,0,0,95,958,19138,104,0,0,382,1234,199,2465,1100,590,479,0,73]
[null,"Female 80-84",189,239,50,97,117,1672,82,311,140,151,151,671,560,56,42,94,2364,762,0,363,986,986,674,4049,8473,249,6032,316,199,598,199,2441,1296,136,10,821,1481,0,0,109,787,14776,82,0,0,291,960,171,1863,877,448,356,0,74]
[null,"Female 85-89",145,180,35,60,86,1027,59,165,88,101,101,442,381,33,21,44,1424,509,0,217,605,605,382,2360,4985,188,3577,208,122,361,122,1408,760,72,8,453,894,0,0,52,453,8869,59,0,0,193,514,77,1159,554,326,158,0,75]
[null,"Female 90+",71,89,18,37,55,568,24,100,56,40,40,239,203,5,6,26,814,271,0,104,352,352,204,1272,2684,91,1908,121,66,181,66,776,438,38,2,257,464,0,0,27,211,4825,24,0,0,108,312,44,655,303,213,123,0,76]
[null,"Male 0-4",null,null,null,null,null,null,null,null,null,null,null,null,null,null,null,null,null,null,null,null,null,null,null,null,null,null,null,null,null,null,null,null,null,null,null,null,null,null,null,null,null,null,null,null,null,null,null,null,null,null,null,null,null,77]
[null,"Male 5-9",null,null,null,null,null,null,null,null,null,null,null,null,null,null,null,null,null,null,null,null,null,null,null,null,null,null,null,null,null,null,null,null,null,null,null,null,null,null,null,null,null,null,null,null,null,null,null,null,null,null,null,null,null,78]
[null,"Male 10-15",null,null,null,null,null,null,null,null,null,null,null,null,null,null,null,null,null,null,null,null,null,null,null,null,null,null,null,null,null,null,null,null,null,null,null,null,null,null,null,null,null,null,null,null,null,null,null,null,null,null,null,null,null,79]
[null,"Male 16-19",377,466,89,241,178,2741,177,694,342,294,294,1171,940,136,88,163,4493,1501,0,502,1784,1784,1196,6797,13975,489,9777,588,410,774,410,4198,2532,207,23,1370,2730,0,0,171,1068,25359,177,0,0,431,1468,352,3367,1583,839,736,0,80]
[null,"Male 20-24",616,848,232,340,279,3842,211,887,427,439,439,1933,1299,169,119,194,6147,2198,0,737,2299,2299,1624,10608,20829,872,15004,845,566,1102,566,5825,3637,331,24,1872,3747,0,0,309,1746,37180,211,0,0,671,2078,460,4881,2582,1185,989,0,81]
[null,"Male 25-29",1034,1297,263,314,225,3699,158,865,346,496,496,2715,1282,163,105,196,7309,3335,0,832,2441,2441,1697,13525,23796,1309,18229,822,597,1111,597,5567,4710,255,12,1707,3574,0,0,443,2064,42600,158,0,0,710,1993,519,5913,3472,1170,1015,0,82]
[null,"Male 30-34",867,1140,273,258,176,3261,174,759,363,346,346,2130,1116,134,110,184,6619,2881,0,764,2287,2287,1523,11843,21614,1149,16292,796,620,1046,620,5322,4158,281,9,1550,3370,0,0,310,1941,38006,174,0,0,595,1952,396,4985,2698,1144,886,0,83]
[null,"Male 35-39",826,1033,207,256,150,2914,187,657,362,298,298,1533,948,136,86,165,6118,2620,0,721,2123,2123,1378,9660,18511,1059,13358,612,462,831,462,5153,3808,238,26,1384,3174,0,0,305,1610,32984,187,0,0,582,1979,295,4217,2094,956,864,0,84]
[null,"Male 40-44",675,887,212,251,167,3182,190,633,352,341,341,1296,1123,136,133,169,5949,2370,0,754,2102,2102,1387,8680,17348,917,12125,700,533,854,533,5223,3657,267,30,1491,3200,0,0,252,1408,31623,190,0,0,568,2023,281,3901,1799,878,887,0,85]
[null,"Male 45-49",626,815,189,277,203,3604,252,780,425,406,406,1626,1280,185,94,183,6621,2305,0,851,2635,2635,1631,9474,19864,854,13826,738,535,1118,535,6038,3734,309,39,1724,3787,0,0,257,1813,35878,252,0,0,600,2251,355,4795,2160,1053,1026,0,86]
[null,"Male 50-54",615,772,157,292,263,3880,260,861,454,437,437,1665,1353,189,143,241,6530,2390,0,858,2439,2439,1719,9703,20490,797,14561,815,552,1285,552,5929,3831,305,25,1895,3785,0,0,297,1800,36922,260,0,0,632,2144,407,4693,2254,1343,993,0,87]
[null,"Male 55-59",562,744,182,232,213,3779,197,814,428,389,389,1605,1264,173,112,193,5690,1884,0,727,2413,2413,1541,8490,18264,771,12759,747,534,1125,534,5505,3080,269,27,1860,3387,0,0,233,1675,33251,197,0,0,655,2118,386,4483,2070,1103,815,0,88]
[null,"Male 60-64",506,607,101,196,207,3230,154,635,333,322,322,1294,1045,160,87,146,4762,1610,0,623,2018,2018,1258,6842,14830,627,10291,645,438,964,438,4539,2590,244,20,1575,2722,0,0,194,1196,27358,154,0,0,610,1817,302,3702,1684,983,649,0,89]
[null,"Male 65-69",435,554,119,205,171,3104,200,620,337,371,371,1230,1089,127,101,136,4456,1314,0,644,1949,1949,1264,6096,13626,573,9229,577,406,978,406,4397,2307,203,19,1490,2667,0,0,161,1075,25567,200,0,0,525,1730,283,3545,1596,817,689,0,90]
[null,"Male 70-74",253,320,67,135,156,2302,139,445,245,226,226,875,747,88,64,87,3277,894,0,406,1490,1490,851,4417,9819,335,6634,419,263,674,263,3185,1648,152,15,1143,1879,0,0,119,770,18358,139,0,0,412,1306,200,2619,1129,598,538,0,91]
[null,"Male 75-79",167,225,58,122,90,1795,73,356,182,183,183,664,635,67,61,101,2383,725,0,350,1000,1000,706,3313,7452,232,5066,281,191,506,191,2386,1310,116,7,852,1478,0,0,96,679,13914,73,0,0,308,908,174,1882,882,400,408,0,92]
[null,"Male 80-84",120,162,42,69,69,1204,56,170,81,116,116,422,422,43,39,48,1646,496,0,256,725,725,426,2264,4928,165,3371,196,127,325,127,1557,865,74,3,555,970,0,0,64,425,9236,56,0,0,227,587,89,1280,555,266,256,0,93]
[null,"Male 85-89",62,83,21,37,39,565,38,104,55,67,67,224,208,23,10,24,789,234,0,104,347,347,208,1083,2336,87,1617,104,65,141,65,719,404,56,4,251,419,0,0,32,226,4449,38,0,0,106,300,49,640,293,120,104,0,94]
[null,"Male 90+",25,40,15,11,12,215,14,45,29,26,26,91,81,9,7,11,371,110,0,52,156,156,97,464,1021,42,713,33,21,63,21,308,201,30,2,92,188,0,0,9,94,1916,14,0,0,42,120,16,267,111,72,54,0,95]
["SIMD Q2","Female 0-4",null,null,null,null,null,null,null,null,null,null,null,null,null,null,null,null,null,null,null,null,null,null,null,null,null,null,null,null,null,null,null,null,null,null,null,null,null,null,null,null,null,null,null,null,null,null,null,null,null,null,null,null,null,96]
[null,"Female 5-9",null,null,null,null,null,null,null,null,null,null,null,null,null,null,null,null,null,null,null,null,null,null,null,null,null,null,null,null,null,null,null,null,null,null,null,null,null,null,null,null,null,null,null,null,null,null,null,null,null,null,null,null,null,97]
[null,"Female 10-15",null,null,null,null,null,null,null,null,null,null,null,null,null,null,null,null,null,null,null,null,null,null,null,null,null,null,null,null,null,null,null,null,null,null,null,null,null,null,null,null,null,null,null,null,null,null,null,null,null,null,null,null,null,98]
[null,"Female 16-19",959,1342,383,387,281,1847,362,646,329,884,884,668,690,359,552,215,5913,1606,118,929,1557,1557,1575,2401,8450,1616,4538,1238,957,231,957,3912,3994,760,274,561,2196,49,49,362,755,23121,362,14,14,596,1716,317,2974,1417,577,1076,118,99]
[null,"Female 20-24",2193,2788,595,753,365,2502,553,1032,376,1105,1105,1621,894,514,929,273,10080,4104,144,1303,2106,2106,2335,4568,12732,3344,7386,1593,1228,289,1228,5346,7421,953,556,762,2801,88,88,576,960,36899,553,26,26,846,2545,656,5056,2950,782,1435,144,100]
[null,"Female 25-29",2497,3162,665,776,428,2689,560,1019,434,1072,1072,1497,1016,584,927,254,11158,4643,157,1414,2393,2393,2433,5944,14679,3657,9066,1727,1299,357,1299,5613,8205,1001,495,763,3033,100,100,642,1074,40610,560,23,23,910,2580,585,5308,2915,853,1634,157,101]
[null,"Female 30-34",2127,2745,618,706,356,2556,474,846,403,1091,1091,1106,966,516,953,246,10451,3896,150,1505,2371,2371,2351,4938,13925,3276,7994,1718,1362,379,1362,5931,7606,1060,531,786,3202,62,62,694,1031,38102,474,16,16,804,2729,443,4877,2506,884,1697,150,102]
[null,"Female 35-39",1590,2207,617,566,373,2574,455,848,407,1065,1065,862,960,578,899,269,8704,2632,153,1467,2235,2235,2315,3687,11871,2646,6545,1625,1252,248,1252,5326,6014,1025,439,770,2945,71,71,528,956,33014,455,34,34,844,2381,441,4191,1956,807,1458,153,103]
[null,"Female 40-44",1433,2044,611,626,439,2816,494,905,462,1197,1197,767,1025,550,873,266,8657,2320,200,1535,2390,2390,2440,3234,11853,2501,6289,1806,1367,291,1367,5564,5773,971,457,916,3066,105,105,460,1112,33442,494,14,14,875,2498,443,4243,1853,836,1609,200,104]
[null,"Female 45-49",1498,2184,686,665,520,3587,664,1040,545,1566,1566,799,1328,754,1094,385,9718,2170,233,1758,2735,2735,2798,3645,14257,2712,7483,2134,1614,400,1614,6774,6319,1216,528,1140,3608,95,95,583,1267,39170,664,23,23,1119,3166,495,4782,2047,1032,1839,233,105]
[null,"Female 50-54",1562,2295,733,620,577,3706,713,1090,562,1695,1695,953,1254,740,1112,363,9801,2060,270,1752,2947,2947,2842,3735,14788,2808,7726,2331,1754,480,1754,7062,6141,1207,513,1189,3723,122,122,562,1315,40518,713,20,20,1263,3339,528,5082,2135,1093,1762,270,106]
[null,"Female 55-59",1390,2044,654,671,587,3484,693,936,471,1582,1582,900,1188,700,1053,288,9078,1871,231,1530,2660,2660,2466,3343,13419,2553,6938,2259,1672,438,1672,6481,5725,1183,509,1060,3369,109,109,509,1159,37275,693,14,14,1236,3112,465,4740,2080,1010,1618,231,107]
[null,"Female 60-64",1242,1852,610,563,526,3066,629,796,418,1556,1556,775,1040,528,882,251,7802,1536,248,1426,2425,2425,2222,2630,11399,2340,5533,2041,1515,318,1515,5866,4748,969,488,923,3059,104,104,498,941,32644,629,30,30,1103,2807,378,4261,1836,865,1361,248,108]
[null,"Female 65-69",1175,1846,671,601,577,3156,684,825,459,1539,1539,799,1047,523,858,247,8027,1507,236,1421,2498,2498,2246,2289,10956,2299,5323,2117,1540,360,1540,5633,4845,1041,453,976,2936,119,119,460,1056,32580,684,25,25,1133,2697,366,4358,1860,848,1439,236,109]
[null,"Female 70-74",810,1333,523,485,476,2542,547,672,353,1252,1252,642,854,468,694,146,6254,1136,173,1160,1922,1922,1832,1748,8804,1687,4127,1602,1126,274,1126,4677,3785,756,354,747,2486,103,103,369,855,25764,547,19,19,941,2191,319,3418,1496,636,1199,173,110]
[null,"Female 75-79",804,1228,424,427,440,2066,442,534,240,981,981,617,730,380,613,158,5240,1088,166,962,1578,1578,1496,1715,7811,1536,3868,1472,1032,202,1032,3943,3220,601,308,568,2070,63,63,282,805,22167,442,10,10,768,1873,294,2904,1326,608,918,166,111]
[null,"Female 80-84",713,1051,338,330,334,1620,350,357,161,817,817,502,541,350,483,151,4031,815,153,693,1257,1257,1050,1545,6306,1272,3305,1078,744,156,744,3001,2424,473,221,478,1529,60,60,236,671,17470,350,15,15,601,1472,196,2325,1068,432,653,153,112]
[null,"Female 85-89",401,587,186,245,187,890,213,208,102,455,455,275,289,203,272,67,2527,556,63,433,809,809,641,960,3673,728,1920,676,489,80,489,1753,1505,307,141,244,842,29,29,204,353,10411,213,5,5,357,911,106,1533,724,257,370,63,113]
[null,"Female 90+",195,309,114,161,104,620,147,126,61,276,276,165,184,139,147,35,1456,336,57,276,482,482,402,563,1897,373,1033,376,272,26,272,864,827,139,64,154,360,12,12,96,168,5892,147,1,1,282,504,65,904,422,102,205,57,114]
[null,"Male 0-4",null,null,null,null,null,null,null,null,null,null,null,null,null,null,null,null,null,null,null,null,null,null,null,null,null,null,null,null,null,null,null,null,null,null,null,null,null,null,null,null,null,null,null,null,null,null,null,null,null,null,null,null,null,115]
[null,"Male 5-9",null,null,null,null,null,null,null,null,null,null,null,null,null,null,null,null,null,null,null,null,null,null,null,null,null,null,null,null,null,null,null,null,null,null,null,null,null,null,null,null,null,null,null,null,null,null,null,null,null,null,null,null,null,116]
[null,"Male 10-15",null,null,null,null,null,null,null,null,null,null,null,null,null,null,null,null,null,null,null,null,null,null,null,null,null,null,null,null,null,null,null,null,null,null,null,null,null,null,null,null,null,null,null,null,null,null,null,null,null,null,null,null,null,117]
[null,"Male 16-19",925,1350,425,390,304,2032,365,621,306,904,904,564,727,419,608,218,5932,1517,140,1094,1635,1635,1715,2329,8547,1696,4487,1318,1014,213,1014,4060,3932,717,346,663,2211,67,67,380,725,23693,365,8,8,642,1849,315,2969,1334,583,1090,140,118]
[null,"Male 20-24",2227,2839,612,608,398,2609,540,1032,406,1220,1220,1679,978,616,853,295,8771,2929,156,1315,2030,2030,2347,4391,12741,3325,7435,1706,1308,322,1308,5306,6201,886,486,832,2832,91,91,669,976,35964,540,42,42,799,2474,626,4986,2956,835,1533,156,119]
[null,"Male 25-29",2659,3378,719,711,364,2551,568,1041,387,993,993,1555,940,580,850,258,10315,4305,177,1333,2157,2157,2374,6039,14465,3910,9057,1655,1291,320,1291,5408,7590,932,532,776,2896,104,104,755,1016,39611,568,46,46,835,2512,654,5178,3021,844,1503,177,120]
[null,"Male 30-34",2113,2753,640,719,387,2429,483,825,367,997,997,1196,961,508,831,220,9827,3889,146,1335,2107,2107,2160,5603,13940,3248,8561,1637,1250,319,1250,5379,7237,902,495,704,2963,71,71,752,1092,37146,483,24,24,764,2416,458,4774,2667,819,1615,146,121]
[null,"Male 35-39",1642,2265,623,614,377,2151,472,729,384,940,940,817,848,442,798,199,8615,2981,142,1335,2065,2065,2064,4380,11927,2731,6999,1557,1180,307,1180,4928,6078,886,466,603,2651,72,72,678,866,32341,472,33,33,700,2277,345,4174,2109,805,1413,142,122]
[null,"Male 40-44",1429,2014,585,580,360,2509,514,785,417,1122,1122,767,944,496,822,265,8563,2552,199,1446,2265,2265,2231,3379,11460,2417,6072,1530,1170,261,1170,5388,5784,883,403,743,2932,102,102,505,918,32014,514,29,29,822,2456,368,4117,1852,753,1527,199,123]
[null,"Male 45-49",1517,2140,623,666,498,3221,612,967,533,1351,1351,912,1179,566,936,284,9183,2341,235,1710,2595,2595,2677,3570,13124,2662,6727,1928,1430,319,1430,6397,5976,1025,522,992,3316,105,105,611,1061,36688,612,13,13,1050,3081,434,4784,2189,927,1674,235,124]
[null,"Male 50-54",1408,2065,657,667,512,3406,693,977,498,1582,1582,848,1234,726,1012,342,9438,2254,259,1662,2706,2706,2639,3451,13528,2570,7034,2125,1613,419,1613,6494,6039,1112,505,1006,3378,119,119,602,1120,37819,693,36,36,1166,3116,479,4823,2117,976,1661,259,125]
[null,"Male 55-59",1385,2032,647,563,542,3150,671,911,448,1530,1530,788,1136,622,950,282,8618,1937,257,1517,2522,2522,2428,3099,12461,2499,6391,2091,1549,381,1549,6070,5425,1049,467,914,3042,110,110,515,1055,35036,671,26,26,1100,3028,463,4388,1866,952,1489,257,126]
[null,"Male 60-64",1133,1677,544,560,505,2766,642,766,412,1384,1384,655,953,492,749,257,7336,1534,259,1249,2270,2270,2015,2467,10473,2051,5204,1879,1374,287,1374,5269,4424,921,374,847,2728,109,109,472,923,29980,642,21,21,966,2541,354,3957,1687,778,1220,259,127]
[null,"Male 65-69",1034,1670,636,598,547,2950,661,800,404,1537,1537,728,959,443,765,202,7355,1418,255,1398,2351,2351,2198,2048,9471,2054,4509,2003,1456,271,1456,4962,4343,881,384,883,2561,121,121,434,842,29727,661,23,23,1108,2401,396,4111,1760,703,1279,255,128]
[null,"Male 70-74",672,1103,431,406,433,2179,474,531,287,1161,1161,498,722,319,546,121,5419,1031,163,980,1692,1692,1511,1516,7393,1401,3466,1508,1075,216,1075,3927,3253,680,298,610,2005,98,98,291,704,22052,474,24,24,847,1922,244,2887,1195,590,996,163,129]
[null,"Male 75-79",558,884,326,303,321,1673,350,423,214,919,919,446,575,282,463,98,4030,750,145,725,1276,1276,1148,1131,5554,1091,2681,1066,745,152,745,2873,2404,472,207,468,1489,81,81,231,589,16695,350,8,8,630,1384,209,2256,980,429,719,145,130]
[null,"Male 80-84",451,719,268,227,211,1039,221,271,127,583,583,297,357,202,324,82,2740,546,89,525,878,878,796,800,3807,867,1869,697,486,107,486,1938,1641,294,148,292,1002,35,35,150,413,11333,221,6,6,390,936,144,1552,674,265,477,89,131]
[null,"Male 85-89",231,334,103,122,104,550,151,127,62,284,284,145,191,115,150,32,1369,272,49,253,430,430,380,396,1801,406,894,364,260,49,260,907,788,157,72,136,447,16,16,81,174,5568,151,1,1,223,460,65,778,348,128,209,49,132]
[null,"Male 90+",93,149,56,68,35,214,56,37,20,124,124,67,70,64,67,17,598,145,9,93,192,192,130,164,686,180,374,171,136,18,136,312,350,64,31,56,148,9,9,30,73,2286,56,0,0,88,164,17,357,165,38,74,9,133]
["SIMD Q3","Female 0-4",null,null,null,null,null,null,null,null,null,null,null,null,null,null,null,null,null,null,null,null,null,null,null,null,null,null,null,null,null,null,null,null,null,null,null,null,null,null,null,null,null,null,null,null,null,null,null,null,null,null,null,null,null,134]
[null,"Female 5-9",null,null,null,null,null,null,null,null,null,null,null,null,null,null,null,null,null,null,null,null,null,null,null,null,null,null,null,null,null,null,null,null,null,null,null,null,null,null,null,null,null,null,null,null,null,null,null,null,null,null,null,null,null,135]
[null,"Female 10-15",null,null,null,null,null,null,null,null,null,null,null,null,null,null,null,null,null,null,null,null,null,null,null,null,null,null,null,null,null,null,null,null,null,null,null,null,null,null,null,null,null,null,null,null,null,null,null,null,null,null,null,null,null,136]
[null,"Female 16-19",686,1739,1053,783,761,1343,778,521,175,1068,1068,476,417,164,454,231,5612,1436,359,598,1613,1613,1119,2366,6658,2309,3947,2204,1443,276,1443,2711,3221,478,570,407,1401,123,123,661,662,22864,778,149,149,519,1310,346,3533,1920,248,853,359,137]
[null,"Female 20-24",2047,3366,1319,892,679,1536,944,908,256,1258,1258,856,496,216,627,258,9979,4577,365,780,2249,2249,1688,5281,10715,4056,7340,2329,1650,319,1650,3375,6786,516,690,475,1711,169,169,894,872,34910,944,173,173,565,1664,652,4891,2642,394,1066,365,138]
[null,"Female 25-29",2001,3419,1418,811,728,1569,769,843,265,1309,1309,957,535,200,591,266,11165,5634,413,789,2483,2483,1632,4977,10596,4149,7016,2509,1781,307,1781,3580,7913,581,730,430,1886,184,184,928,883,36432,769,210,210,604,1694,578,5179,2696,383,1107,413,139]
[null,"Female 30-34",1580,3122,1542,1001,825,1684,948,690,274,1254,1254,616,555,161,607,281,10090,4317,453,918,2372,2372,1608,3952,9993,3968,6020,2744,1919,269,1919,3973,6770,615,846,465,2153,203,203,993,973,34795,948,188,188,664,1820,416,4982,2610,384,1231,453,140]
[null,"Female 35-39",986,2487,1501,1074,844,1712,901,700,237,1233,1233,481,545,195,619,295,8723,2948,547,934,2446,2446,1634,2996,9211,3196,5164,2899,2055,373,2055,4047,5376,619,709,499,2218,142,142,915,930,31957,901,190,190,668,1829,463,4916,2470,375,1190,547,141]
[null,"Female 40-44",869,2490,1621,1248,1048,1991,1201,773,293,1568,1568,422,658,213,683,311,8627,2347,574,1000,2434,2434,1773,2508,9074,3339,4878,3250,2202,415,2202,4196,4992,659,849,586,2292,193,193,1034,1027,33291,1201,198,198,747,1904,480,5138,2704,404,1303,574,142]
[null,"Female 45-49",895,2978,2083,1415,1294,2544,1550,940,393,2162,2162,536,868,310,942,357,10109,2094,709,1129,3028,3028,2069,2734,10876,3978,5847,4181,2887,489,2887,5029,5531,869,1000,744,2502,260,260,1369,1377,40488,1550,280,280,932,2527,547,6348,3320,580,1626,709,143]
[null,"Female 50-54",996,3074,2078,1588,1612,2825,1593,997,405,2340,2340,660,926,266,849,404,10273,2070,719,1196,3271,3271,2193,2861,10969,4168,5977,4739,3127,546,3127,4992,5409,875,1094,798,2428,284,284,1497,1329,42537,1593,282,282,1101,2564,592,7016,3745,571,1615,719,144]
[null,"Female 55-59",906,2768,1862,1542,1487,2500,1570,898,386,2173,2173,638,808,279,836,395,9353,1821,683,1070,2987,2987,1968,2555,10187,3724,5518,4507,3020,571,3020,4669,4796,764,956,764,2144,244,244,1372,1172,39153,1570,262,262,928,2525,512,6539,3552,546,1375,683,145]
[null,"Female 60-64",841,2642,1801,1362,1473,2298,1415,833,326,2131,2131,526,666,240,729,343,8015,1486,693,970,2581,2581,1803,1882,8296,3506,4371,4238,2765,397,2765,3925,4019,649,864,762,1815,221,221,1235,1017,34585,1415,261,261,870,2110,507,5704,3123,492,1155,693,146]
[null,"Female 65-69",794,2604,1810,1443,1556,2476,1515,823,359,2297,2297,548,770,211,739,327,8396,1422,707,1016,2823,2823,1839,1598,7763,3496,4058,4342,2786,395,2786,3705,4058,720,892,784,1794,227,227,1293,1042,35061,1515,234,234,922,1911,464,6107,3284,485,1177,707,147]
[null,"Female 70-74",599,1937,1338,1085,1160,1997,1143,657,279,1869,1869,415,608,162,589,261,6421,1066,575,729,2149,2149,1386,1242,6160,2692,3141,3394,2234,329,2234,3019,3129,545,755,653,1406,229,229,1119,795,27558,1143,216,216,736,1613,378,4768,2619,352,929,575,148]
[null,"Female 75-79",553,1598,1045,818,954,1479,921,537,217,1422,1422,400,433,119,501,257,5125,892,509,604,1689,1689,1141,1038,5134,2207,2637,2589,1635,296,1635,2497,2515,430,609,517,1087,185,185,851,639,22028,921,168,168,529,1410,320,3758,2069,288,692,509,149]
[null,"Female 80-84",501,1179,678,624,676,1081,680,386,148,1051,1051,397,318,78,390,250,3774,707,381,419,1223,1223,805,937,4117,1687,2178,1879,1203,216,1203,1939,1871,297,508,359,834,106,106,671,454,16697,680,124,124,404,1105,238,2915,1692,243,477,381,150]
[null,"Female 85-89",331,820,489,408,407,610,397,243,108,717,717,222,144,50,302,154,2406,491,245,220,815,815,463,565,2472,1088,1337,1219,812,175,812,1135,1194,155,268,227,441,78,78,458,259,10459,397,73,73,239,694,135,1903,1088,134,246,245,151]
[null,"Female 90+",190,459,269,274,271,363,232,142,45,413,413,132,97,47,172,82,1406,290,172,104,451,451,246,383,1563,629,981,666,395,153,395,582,723,109,170,149,199,67,67,288,243,6278,232,59,59,117,383,97,1145,694,73,152,172,152]
[null,"Male 0-4",null,null,null,null,null,null,null,null,null,null,null,null,null,null,null,null,null,null,null,null,null,null,null,null,null,null,null,null,null,null,null,null,null,null,null,null,null,null,null,null,null,null,null,null,null,null,null,null,null,null,null,null,null,153]
[null,"Male 5-9",null,null,null,null,null,null,null,null,null,null,null,null,null,null,null,null,null,null,null,null,null,null,null,null,null,null,null,null,null,null,null,null,null,null,null,null,null,null,null,null,null,null,null,null,null,null,null,null,null,null,null,null,null,154]
[null,"Male 10-15",null,null,null,null,null,null,null,null,null,null,null,null,null,null,null,null,null,null,null,null,null,null,null,null,null,null,null,null,null,null,null,null,null,null,null,null,null,null,null,null,null,null,null,null,null,null,null,null,null,null,null,null,null,155]
[null,"Male 16-19",619,1851,1232,925,815,1444,794,512,217,1208,1208,389,465,160,516,246,5571,1311,381,626,1656,1656,1138,2054,6634,2408,3768,2505,1690,260,1690,2866,3121,412,557,383,1487,150,150,807,785,23727,794,167,167,596,1379,295,3777,2121,263,882,381,156]
[null,"Male 20-24",2020,3535,1515,983,822,1804,938,931,293,1382,1382,762,629,221,635,326,9367,3675,447,830,2293,2293,1761,4734,10454,4210,6922,2598,1776,386,1776,3532,6136,599,675,528,1746,180,180,1070,864,35247,938,229,229,647,1786,638,5108,2815,391,1227,447,157]
[null,"Male 25-29",2507,3861,1354,874,741,1601,868,783,228,1315,1315,898,628,208,597,252,10586,5065,411,773,2284,2284,1556,4871,10361,4548,7046,2522,1781,364,1781,3315,7434,568,687,422,1654,203,203,863,916,35940,868,202,202,551,1661,555,4919,2635,435,1204,411,158]
[null,"Male 30-34",1901,3336,1435,977,702,1491,885,655,220,1233,1233,736,532,179,525,254,9969,4483,449,775,2265,2265,1430,4492,10217,4128,6576,2653,1951,323,1951,3641,6819,567,792,394,1927,175,175,963,950,34643,885,222,222,565,1714,435,4941,2676,378,1244,449,159]
[null,"Male 35-39",1378,2828,1450,967,788,1594,835,642,222,1144,1144,528,598,158,540,263,8852,3418,495,936,2232,2232,1578,3444,9199,3551,5375,2770,1982,347,1982,3824,5785,586,723,417,2112,162,162,942,831,32007,835,225,225,579,1712,420,4669,2437,332,1241,495,160]
[null,"Male 40-44",1063,2661,1598,1136,943,1780,1098,717,292,1367,1367,478,609,188,701,265,8689,2555,562,954,2385,2385,1671,2499,8483,3466,4552,2890,1947,349,1947,3931,5206,640,805,515,2101,166,166,923,847,31831,1098,220,220,656,1830,425,4922,2537,404,1310,562,161]
[null,"Male 45-49",1045,3055,2010,1368,1251,2296,1359,882,370,1886,1886,501,798,236,802,305,9492,2240,755,1160,2847,2847,2042,2602,9794,4032,5135,3799,2548,402,2548,4659,5286,743,977,674,2351,216,216,1207,1096,37651,1359,263,263,824,2308,512,5923,3076,494,1501,755,162]
[null,"Male 50-54",1068,3059,1991,1592,1399,2568,1561,946,380,2194,2194,642,905,242,819,388,9822,2201,720,1203,2967,2967,2149,2611,10234,4060,5533,4402,3003,479,3003,4701,5294,749,1001,756,2320,284,284,1419,1267,40386,1561,300,300,907,2381,566,6620,3653,546,1525,720,163]
[null,"Male 55-59",947,2791,1844,1476,1413,2249,1530,888,376,2106,2106,596,713,231,839,380,9193,1854,709,1022,2906,2906,1910,2317,9276,3753,5061,4380,2967,511,2967,4215,4757,692,962,722,1919,303,303,1324,1096,37545,1530,270,270,814,2296,512,6302,3396,526,1372,709,164]
[null,"Male 60-64",850,2574,1724,1256,1370,2167,1350,778,308,2038,2038,500,680,204,739,296,7823,1524,683,847,2431,2431,1625,1935,7810,3410,4163,4178,2808,383,2808,3647,4042,658,836,641,1637,242,242,1249,882,33247,1350,266,266,846,2010,470,5436,3005,463,1121,683,165]
[null,"Male 65-69",802,2600,1798,1465,1569,2320,1462,797,326,2190,2190,503,709,222,691,261,7857,1374,743,911,2594,2594,1708,1535,7064,3469,3692,4333,2764,358,2764,3372,3801,662,869,763,1649,234,234,1208,918,33371,1462,277,277,848,1723,471,5770,3176,398,1074,743,166]
[null,"Male 70-74",496,1770,1274,957,1133,1761,1079,571,249,1755,1755,354,545,123,526,217,5596,815,536,687,1900,1900,1258,1089,5184,2408,2713,3255,2122,301,2122,2471,2617,470,638,574,1160,195,195,970,679,24436,1079,207,207,642,1311,322,4181,2281,304,806,536,167]
[null,"Male 75-79",449,1329,880,715,851,1302,799,400,165,1317,1317,308,407,68,349,172,4159,651,413,488,1438,1438,888,776,3820,1893,1896,2293,1442,214,1442,1924,1922,344,564,429,846,140,140,742,479,18146,799,156,156,466,1078,235,3203,1765,187,578,413,168]
[null,"Male 80-84",317,916,599,470,508,803,522,283,105,892,892,210,259,69,274,129,2829,545,245,290,910,910,573,535,2594,1232,1373,1521,1013,141,1013,1221,1397,223,316,274,511,105,105,529,335,12096,522,93,93,270,710,178,2119,1209,164,355,245,169]
[null,"Male 85-89",158,417,259,267,245,374,259,124,56,413,413,144,106,20,140,71,1413,248,149,125,467,467,249,237,1267,607,694,740,495,89,495,573,687,121,190,117,244,53,53,286,208,6019,259,57,57,151,329,68,1164,697,69,178,149,170]
[null,"Male 90+",63,186,123,117,101,149,93,56,27,200,200,52,35,12,59,35,573,105,60,64,197,197,120,120,600,260,362,288,187,38,187,238,283,38,74,59,90,21,21,133,133,2593,93,20,20,55,148,29,499,302,24,81,60,171]
["SIMD Q4","Female 0-4",null,null,null,null,null,null,null,null,null,null,null,null,null,null,null,null,null,null,null,null,null,null,null,null,null,null,null,null,null,null,null,null,null,null,null,null,null,null,null,null,null,null,null,null,null,null,null,null,null,null,null,null,null,172]
[null,"Female 5-9",null,null,null,null,null,null,null,null,null,null,null,null,null,null,null,null,null,null,null,null,null,null,null,null,null,null,null,null,null,null,null,null,null,null,null,null,null,null,null,null,null,null,null,null,null,null,null,null,null,null,null,null,null,173]
[null,"Female 10-15",null,null,null,null,null,null,null,null,null,null,null,null,null,null,null,null,null,null,null,null,null,null,null,null,null,null,null,null,null,null,null,null,null,null,null,null,null,null,null,null,null,null,null,null,null,null,null,null,null,null,null,null,null,174]
[null,"Female 16-19",1082,2976,1894,569,433,1093,875,880,179,481,481,911,337,362,874,347,5276,1328,29,605,1236,1236,1485,1386,5855,3751,3282,1946,1513,325,1513,2573,3165,287,775,461,1132,197,197,1452,647,23408,875,363,363,295,1441,701,4168,2932,215,676,29,175]
[null,"Female 20-24",2572,4756,2184,634,461,1319,840,1254,191,624,624,1990,445,550,1110,357,8161,3456,50,805,1598,1598,2059,4937,10228,5560,7331,2129,1668,397,1668,2897,5723,332,804,535,1272,233,233,1483,814,34833,840,363,363,339,1625,1063,5705,4107,276,825,50,176]
[null,"Female 25-29",2096,4458,2362,631,406,1203,792,987,175,607,607,998,412,436,777,382,9342,4806,41,776,1580,1580,1763,4096,9115,5351,6268,2277,1871,319,1871,2847,6970,385,893,498,1234,257,257,1387,750,33433,792,461,461,293,1613,812,4596,3016,285,1002,41,177]
[null,"Female 30-34",1659,4533,2874,707,426,1307,920,894,235,624,624,781,461,467,863,341,9182,4054,61,882,1666,1666,1776,3266,8788,5547,5502,2667,2241,285,2241,3286,6596,481,1014,469,1365,290,290,1671,859,33838,920,437,437,377,1921,659,4825,3159,284,1198,61,178]
[null,"Female 35-39",1289,4279,2990,763,521,1435,946,980,244,605,605,660,543,502,958,404,8414,3028,46,941,1788,1788,1921,2401,8648,5267,4827,2670,2149,403,2149,3821,5680,492,988,512,1524,315,315,1580,853,32800,946,476,476,380,2297,736,4791,3003,264,1202,46,179]
[null,"Female 40-44",1032,4278,3246,824,642,1765,1248,1195,324,749,749,647,559,597,1156,463,8792,2583,52,1157,2062,2062,2352,2023,9050,5535,4898,3193,2551,466,2551,4152,5482,472,1257,661,1717,338,338,1999,1017,35805,1248,509,509,545,2435,871,5532,3470,332,1271,52,180]
[null,"Female 45-49",1060,4916,3856,1089,851,2127,1657,1405,401,1025,1025,749,671,762,1391,564,9998,2440,52,1304,2558,2558,2709,2256,10779,6352,5996,3821,2970,619,2970,4783,5783,552,1436,848,2076,395,395,2547,1313,42189,1657,546,546,608,2707,1004,6943,4385,482,1400,52,181]
[null,"Female 50-54",1120,5059,3939,1238,908,2293,1803,1481,361,1135,1135,834,692,853,1356,566,10326,2652,66,1218,2674,2674,2699,2381,11241,6550,6431,4130,3222,690,3222,4810,5849,539,1491,986,2063,411,411,2584,1401,44075,1803,568,568,615,2747,1120,7330,4656,540,1302,66,182]
[null,"Female 55-59",1037,4423,3386,1097,848,2195,1691,1228,322,1139,1139,841,660,914,1271,522,9310,2379,58,1067,2469,2469,2295,2093,10126,5775,5988,3761,2913,591,2913,4138,5150,462,1352,889,1694,399,399,2318,1309,39814,1691,500,500,646,2444,906,6725,4256,559,1038,58,183]
[null,"Female 60-64",959,3995,3036,1106,803,2041,1524,1023,264,1097,1097,601,589,730,1062,466,8119,1996,38,888,2250,2250,1911,1635,8356,5199,4848,3583,2780,464,2780,3508,4345,422,1204,891,1445,369,369,2190,1135,35061,1524,451,451,561,2063,759,6147,3897,418,865,38,184]
[null,"Female 65-69",988,3965,2977,1187,921,2080,1655,1061,293,1044,1044,664,582,714,1063,425,8269,1919,59,987,2316,2316,2048,1431,7576,5290,4498,3646,2725,434,2725,3078,4298,459,1325,914,1206,382,382,2219,1057,34888,1655,424,424,584,1872,768,6386,4070,437,857,59,185]
[null,"Female 70-74",696,2869,2173,943,729,1752,1324,844,227,900,900,466,431,507,761,332,6267,1445,46,739,1793,1793,1583,1025,5385,3866,3323,2793,2064,363,2064,2062,3150,354,997,745,790,289,289,1688,760,26320,1324,342,342,576,1272,617,4890,3097,336,590,46,186]
[null,"Female 75-79",592,2298,1706,734,561,1235,1068,619,149,709,709,407,305,480,570,302,4862,1182,38,582,1309,1309,1201,920,4486,3022,2785,2157,1596,242,1596,1701,2485,263,724,512,677,227,227,1389,570,20708,1068,241,241,418,1024,470,3839,2530,271,470,38,187]
[null,"Female 80-84",457,1728,1271,591,383,941,729,486,110,561,561,405,191,337,443,257,3631,1013,19,423,976,976,909,691,3303,2317,2127,1636,1253,226,1253,1176,1926,178,589,381,429,134,134,1015,439,15634,729,172,172,369,747,376,2987,2011,177,292,19,188]
[null,"Female 85-89",280,1087,807,349,250,552,474,299,69,328,328,324,116,258,253,169,2389,835,22,254,592,592,553,445,2100,1464,1421,1002,752,144,752,679,1323,96,377,226,178,98,98,696,294,9988,474,111,111,210,501,230,1961,1369,111,139,22,189]
[null,"Female 90+",129,593,464,283,160,342,279,217,45,171,171,187,71,129,129,168,1420,493,11,173,407,407,390,274,1185,790,862,652,492,75,492,323,734,71,197,150,79,48,48,454,161,5998,279,65,65,121,244,172,1331,924,55,41,11,190]
[null,"Male 0-4",null,null,null,null,null,null,null,null,null,null,null,null,null,null,null,null,null,null,null,null,null,null,null,null,null,null,null,null,null,null,null,null,null,null,null,null,null,null,null,null,null,null,null,null,null,null,null,null,null,null,null,null,null,191]
[null,"Male 5-9",null,null,null,null,null,null,null,null,null,null,null,null,null,null,null,null,null,null,null,null,null,null,null,null,null,null,null,null,null,null,null,null,null,null,null,null,null,null,null,null,null,null,null,null,null,null,null,null,null,null,null,null,null,192]
[null,"Male 10-15",null,null,null,null,null,null,null,null,null,null,null,null,null,null,null,null,null,null,null,null,null,null,null,null,null,null,null,null,null,null,null,null,null,null,null,null,null,null,null,null,null,null,null,null,null,null,null,null,null,null,null,null,null,193]
[null,"Male 16-19",864,3036,2172,703,506,1224,850,887,230,530,530,764,360,450,741,351,5165,1255,35,817,1393,1393,1704,1295,6138,3869,3424,2351,1845,396,1845,2714,2922,275,833,516,1150,247,247,1628,709,24732,850,374,374,348,1564,657,4488,3095,223,651,35,194]
[null,"Male 20-24",2141,4587,2446,841,566,1330,880,1289,301,642,642,1669,402,597,931,359,7703,2963,47,956,1822,1822,2245,4227,10081,5633,6841,2612,2046,415,2046,3240,5001,299,1046,586,1511,259,259,1717,915,35228,880,449,449,342,1729,988,6049,4227,328,808,47,195]
[null,"Male 25-29",2425,4870,2445,698,460,1183,705,923,250,607,607,1097,396,471,656,379,8535,4394,25,783,1592,1592,1706,4060,9419,5814,6535,2476,2016,329,2016,2884,6238,329,944,447,1294,253,253,1446,969,33718,705,459,459,340,1590,673,4833,3241,327,859,25,196]
[null,"Male 30-34",1793,4435,2642,681,400,1120,711,862,311,641,641,696,421,426,691,297,8655,4162,23,811,1593,1593,1673,3364,8697,5396,5455,2509,2109,350,2109,3242,6351,386,961,379,1407,253,253,1593,763,32346,711,409,409,320,1835,551,4563,2970,255,1112,23,197]
[null,"Male 35-39",1410,4392,2982,650,500,1313,843,1016,315,547,547,567,468,424,839,355,8327,3277,50,937,1744,1744,1953,2491,8318,5349,4664,2650,2150,338,2150,3654,5740,473,957,472,1527,241,241,1602,833,32021,843,454,454,373,2127,701,4563,2819,223,1151,50,198]
[null,"Male 40-44",1182,4472,3290,768,626,1567,1096,1129,340,713,713,578,556,506,1115,431,8523,2736,55,1029,1858,1858,2158,2165,8703,5637,4733,2996,2370,409,2370,3970,5569,453,1165,599,1714,308,308,1791,917,34348,1096,551,551,412,2256,789,4995,3137,305,1265,55,199]
[null,"Male 45-49",1108,4649,3541,985,767,1992,1507,1411,427,944,944,692,628,668,1232,447,9571,2552,72,1240,2496,2496,2651,2237,10048,6126,5484,3583,2816,566,2816,4564,5568,471,1477,782,1991,406,406,2238,1135,39846,1507,538,538,582,2573,984,6411,3915,431,1313,72,200]
[null,"Male 50-54",1144,4977,3833,1168,865,2145,1729,1457,400,1119,1119,765,662,716,1335,559,9927,2528,56,1183,2559,2559,2640,2180,10501,6471,5827,3900,3035,645,3035,4674,5639,485,1494,887,2030,442,442,2532,1256,42258,1729,592,592,596,2644,1057,7024,4465,471,1291,56,201]
[null,"Male 55-59",1038,4504,3466,1025,803,2055,1594,1286,335,1032,1032,828,629,765,1249,420,9120,2326,52,1095,2389,2389,2381,1892,9235,5816,5354,3697,2894,566,2894,3881,5137,464,1312,830,1589,390,390,2322,1225,38483,1594,530,530,596,2292,951,6564,4175,486,1098,52,202]
[null,"Male 60-64",999,4067,3068,1028,788,1873,1526,1018,257,1046,1046,623,584,688,957,435,7736,2022,45,849,2043,2043,1867,1603,7844,5335,4598,3435,2647,474,2647,3246,4167,392,1268,767,1323,361,361,2142,1002,33820,1526,485,485,522,1923,761,5836,3793,396,796,45,203]
[null,"Male 65-69",920,4039,3119,1056,822,1882,1618,974,265,1053,1053,585,538,687,936,388,7692,1704,52,891,2202,2202,1865,1386,7242,5241,4231,3458,2636,403,2636,3011,3872,430,1202,837,1159,352,352,2162,944,33114,1618,474,474,507,1852,709,6005,3803,423,802,52,204]
[null,"Male 70-74",663,2714,2051,866,675,1555,1242,803,207,826,826,410,439,479,744,277,5750,1199,42,643,1652,1652,1446,896,4974,3647,2962,2680,2005,307,2005,2012,2856,353,933,678,793,277,277,1580,720,24360,1242,307,307,438,1219,596,4508,2856,283,560,42,205]
[null,"Male 75-79",448,1947,1499,681,453,1024,911,527,128,609,609,317,253,373,491,207,4096,953,22,475,1142,1142,1002,699,3473,2624,2183,1770,1317,221,1317,1290,2043,207,677,461,506,224,224,1216,494,17285,911,227,227,310,784,399,3356,2214,189,392,22,206]
[null,"Male 80-84",305,1272,967,409,307,702,594,362,92,456,456,278,156,270,327,157,2720,696,21,341,720,720,703,501,2361,1719,1523,1230,923,133,923,838,1406,158,447,309,302,126,126,855,307,11713,594,133,133,237,536,270,2262,1542,155,225,21,207]
[null,"Male 85-89",141,684,543,250,140,324,344,200,42,229,229,152,63,144,197,76,1510,429,12,171,360,360,371,256,1204,898,792,639,499,77,499,412,806,70,214,153,129,68,68,466,180,6184,344,61,61,108,283,158,1228,868,59,110,12,208]
[null,"Male 90+",41,270,229,95,70,140,123,76,16,86,86,83,33,62,62,49,596,211,2,70,159,159,146,104,498,368,345,278,208,29,208,153,314,18,98,50,54,33,33,194,76,2544,123,25,25,57,99,60,531,372,25,23,2,209]
["SIMD Q5 (least deprived)","Female 0-4",null,null,null,null,null,null,null,null,null,null,null,null,null,null,null,null,null,null,null,null,null,null,null,null,null,null,null,null,null,null,null,null,null,null,null,null,null,null,null,null,null,null,null,null,null,null,null,null,null,null,null,null,null,210]
[null,"Female 5-9",null,null,null,null,null,null,null,null,null,null,null,null,null,null,null,null,null,null,null,null,null,null,null,null,null,null,null,null,null,null,null,null,null,null,null,null,null,null,null,null,null,null,null,null,null,null,null,null,null,null,null,null,null,211]
[null,"Female 10-15",null,null,null,null,null,null,null,null,null,null,null,null,null,null,null,null,null,null,null,null,null,null,null,null,null,null,null,null,null,null,null,null,null,null,null,null,null,null,null,null,null,null,null,null,null,null,null,null,null,null,null,null,null,212]
[null,"Female 16-19",2038,3913,1875,459,134,1062,210,1237,163,259,259,632,318,1321,357,1309,8569,4607,0,677,2298,2298,1914,1490,6939,4329,5165,575,441,195,441,1774,6061,283,416,256,787,26,26,504,748,25268,210,0,0,488,987,1074,3893,1595,102,814,0,213]
[null,"Female 20-24",3592,5647,2055,424,184,1035,203,1289,146,308,308,776,318,1390,358,1374,16115,10278,0,801,4167,4167,2090,3864,9888,6082,7874,676,492,245,492,2014,11745,349,435,249,859,44,44,575,883,38013,203,0,0,468,1155,1143,5942,1775,118,760,0,214]
[null,"Female 25-29",4021,6104,2083,402,146,869,158,797,106,354,354,639,341,1057,364,1126,12373,8825,0,770,1932,1932,1567,3427,8261,6570,6581,750,604,171,604,1680,10283,349,466,182,735,54,54,532,732,32371,158,0,0,346,945,691,3505,1573,68,745,0,215]
[null,"Female 30-34",3440,6402,2962,492,112,1021,279,679,141,354,354,619,394,1128,422,1114,11249,7206,0,1035,2038,2038,1714,2563,7796,6912,5816,770,658,179,658,1980,8932,426,510,263,864,39,39,667,750,31633,279,0,0,364,1116,538,3816,1778,82,878,0,216]
[null,"Female 35-39",3070,6292,3222,575,168,1233,311,828,194,348,348,572,404,1618,550,1719,11648,6969,0,1079,2293,2293,1907,2021,9082,6699,6649,866,698,232,698,2433,9044,477,407,316,1036,59,59,687,934,33676,311,0,0,513,1397,634,4127,1834,125,1048,0,217]
[null,"Female 40-44",2829,6257,3428,709,194,1572,481,1053,250,376,376,672,528,1879,639,1941,12203,6642,0,1314,2634,2634,2367,1882,9910,6794,7193,1000,806,303,806,2717,9088,494,537,405,1115,43,43,862,1065,36508,481,0,0,639,1602,803,4877,2243,123,1313,0,218]
[null,"Female 45-49",3012,6692,3680,815,264,1996,493,1369,295,502,502,854,605,2263,781,2276,13387,7082,0,1415,2891,2891,2784,2125,11893,7308,8616,1146,882,394,882,3277,10003,562,616,537,1435,75,75,1025,1377,41785,493,0,0,854,1842,1074,5585,2694,181,1578,0,219]
[null,"Female 50-54",3209,6762,3553,836,276,2055,444,1343,314,604,604,909,578,2470,734,2279,13203,7211,0,1302,2803,2803,2645,2159,12434,7340,9001,1205,929,399,929,3433,9956,530,578,519,1412,67,67,1130,1489,42428,444,0,0,958,2021,1029,5678,2875,205,1481,0,220]
[null,"Female 55-59",2966,5963,2997,778,298,2136,392,1171,266,535,535,901,560,2227,618,2036,11974,6741,0,1070,2593,2593,2241,1943,11077,6463,8061,1107,809,348,809,3016,8989,498,500,534,1233,53,53,1049,1337,38314,392,0,0,1042,1783,905,5321,2728,170,1132,0,221]
[null,"Female 60-64",2338,5110,2772,726,219,1993,363,1106,309,515,515,672,502,1995,540,1767,10432,5738,0,892,2404,2404,1998,1707,9653,5615,7121,997,778,400,778,2532,7665,430,505,472,968,56,56,987,1118,33644,363,0,0,1019,1564,797,4789,2385,134,957,0,222]
[null,"Female 65-69",2257,4775,2518,888,253,2156,400,1180,304,487,487,769,510,2027,588,1704,10838,5936,0,865,2683,2683,2045,1418,9049,5295,6755,1022,769,405,769,2294,7755,415,520,528,868,51,51,1166,1106,33766,400,0,0,1118,1426,876,5506,2823,95,816,0,223]
[null,"Female 70-74",1737,3551,1814,639,208,1661,303,909,208,469,469,618,350,1696,496,1467,8114,4419,0,612,2020,2020,1521,849,6886,4003,5212,821,613,322,613,1674,5791,298,452,411,577,45,45,945,831,25722,303,0,0,900,1097,701,4222,2202,47,578,0,224]
[null,"Female 75-79",1503,2860,1357,497,146,1248,265,748,164,359,359,503,242,1532,389,1122,6433,3743,0,453,1429,1429,1201,742,5457,3182,4221,606,460,255,460,1236,4739,229,322,298,432,23,23,781,537,20290,265,0,0,708,804,584,3210,1781,33,378,0,225]
[null,"Female 80-84",1173,2191,1018,392,122,932,159,514,103,290,290,404,194,1130,277,933,5039,3157,0,298,1053,1053,812,631,4169,2456,3283,517,395,186,395,886,3827,154,265,234,275,27,27,602,381,15640,159,0,0,504,611,411,2451,1398,22,239,0,226]
[null,"Female 85-89",860,1506,646,253,70,553,84,288,45,156,156,263,118,659,182,648,3357,2204,0,161,652,652,449,423,2555,1666,2092,310,240,132,240,463,2621,63,160,133,123,14,14,388,220,9964,84,0,0,302,340,243,1556,904,10,172,0,227]
[null,"Female 90+",524,939,415,129,44,360,69,162,18,91,91,117,53,390,114,356,2136,1368,0,123,432,432,285,276,1452,1042,1218,174,130,90,130,234,1635,46,103,73,66,7,7,264,99,6057,69,0,0,234,168,144,942,510,7,107,0,228]
[null,"Male 0-4",null,null,null,null,null,null,null,null,null,null,null,null,null,null,null,null,null,null,null,null,null,null,null,null,null,null,null,null,null,null,null,null,null,null,null,null,null,null,null,null,null,null,null,null,null,null,null,null,null,null,null,null,null,229]
[null,"Male 5-9",null,null,null,null,null,null,null,null,null,null,null,null,null,null,null,null,null,null,null,null,null,null,null,null,null,null,null,null,null,null,null,null,null,null,null,null,null,null,null,null,null,null,null,null,null,null,null,null,null,null,null,null,null,230]
[null,"Male 10-15",null,null,null,null,null,null,null,null,null,null,null,null,null,null,null,null,null,null,null,null,null,null,null,null,null,null,null,null,null,null,null,null,null,null,null,null,null,null,null,null,null,null,null,null,null,null,null,null,null,null,null,null,null,231]
[null,"Male 16-19",1833,4038,2205,503,336,1155,292,1196,157,285,285,636,336,1458,356,1497,8997,4948,0,708,2180,2180,1904,1316,7345,4642,5415,834,498,205,498,1930,6525,350,604,313,823,30,30,576,831,26907,292,0,0,506,1107,1039,3895,1715,108,871,0,232]
[null,"Male 20-24",3051,5432,2381,525,890,1262,240,1355,164,313,313,807,381,1732,452,1641,14630,9034,0,832,3576,3576,2187,3142,10042,6219,7802,1372,482,187,482,2240,10814,393,787,330,925,47,47,665,963,38069,240,0,0,551,1315,1191,5573,1997,137,935,0,233]
[null,"Male 25-29",4459,6747,2288,411,696,881,166,708,115,261,261,750,306,1401,343,1150,12554,8854,0,817,1992,1992,1525,3333,8671,7461,6928,1187,491,198,491,1743,10396,376,714,212,779,45,45,534,754,34280,166,0,0,363,964,593,3687,1695,92,823,0,234]
[null,"Male 30-34",3859,6532,2673,463,328,796,185,585,118,302,302,517,328,1183,373,937,10672,7034,0,972,1945,1945,1557,2602,7297,7089,5667,862,534,189,534,1630,8542,382,557,197,690,41,41,568,672,30164,185,0,0,271,940,467,3493,1548,84,753,0,235]
[null,"Male 35-39",3262,6354,3092,503,296,1088,270,723,150,323,323,563,384,1406,450,1414,10842,6629,0,1065,2116,2116,1788,2207,8261,6825,6103,1003,707,187,707,2158,8456,431,471,281,916,61,61,658,802,31915,270,0,0,423,1242,573,3840,1724,87,946,0,236]
[null,"Male 40-44",2959,6397,3438,654,343,1420,375,1012,212,351,351,566,482,1735,611,1726,11821,6553,0,1215,2580,2580,2227,1994,9301,6974,6734,1037,694,245,694,2567,8866,474,577,352,1075,46,46,716,940,35113,375,0,0,586,1492,800,4516,1936,94,1228,0,237]
[null,"Male 45-49",2985,6569,3584,722,290,1753,501,1297,301,474,474,783,581,2049,677,1989,12932,6865,0,1318,2835,2835,2615,2065,10760,7236,7764,1145,855,289,855,2996,9596,580,667,473,1245,68,68,871,1207,39359,501,0,0,699,1751,996,5211,2376,165,1474,0,238]
[null,"Male 50-54",3049,6537,3488,851,318,1910,414,1250,289,552,552,773,531,2287,781,1943,12608,6804,0,1280,2656,2656,2530,2031,11368,7129,8236,1170,852,428,852,3132,9538,535,592,525,1345,63,63,1090,1371,40044,414,0,0,854,1787,961,5370,2714,176,1418,0,239]
[null,"Male 55-59",2865,5865,3000,736,275,1940,349,1065,241,495,495,815,541,2085,594,1958,11446,6275,0,1060,2549,2549,2125,1782,10493,6358,7647,1047,772,382,772,2846,8548,468,493,464,1166,73,73,894,1299,36422,349,0,0,935,1680,824,4994,2445,141,1211,0,240]
[null,"Male 60-64",2539,5286,2747,683,227,1821,368,1012,269,471,471,663,469,1843,502,1657,9755,5398,0,863,2194,2194,1875,1586,9088,5754,6602,940,713,317,713,2486,7193,394,468,474,967,54,54,897,1060,32001,368,0,0,878,1519,743,4437,2243,139,899,0,241]
[null,"Male 65-69",2245,4804,2559,815,242,2024,403,1120,305,512,512,657,492,1842,508,1491,9962,5381,0,838,2421,2421,1958,1408,8382,5273,6226,989,747,351,747,2156,7138,426,469,505,842,63,63,1053,1037,31688,403,0,0,1027,1314,815,4946,2525,97,823,0,242]
[null,"Male 70-74",1467,3173,1706,604,202,1531,260,762,197,365,365,513,320,1463,425,1142,7147,3753,0,550,1899,1899,1312,842,6066,3547,4552,731,529,297,529,1514,4988,284,374,386,505,41,41,806,759,22663,260,0,0,825,1009,565,3822,1923,49,526,0,243]
[null,"Male 75-79",1112,2328,1216,397,126,1065,177,612,121,311,311,422,216,1223,326,941,5059,2802,0,370,1204,1204,982,584,4497,2617,3464,487,361,200,361,1033,3678,182,289,251,360,22,22,616,484,16475,177,0,0,598,673,491,2639,1435,32,368,0,244]
[null,"Male 80-84",823,1612,789,330,76,764,130,426,81,203,203,327,135,911,224,686,3734,2207,0,271,872,872,697,388,3122,1806,2438,345,269,141,269,684,2732,113,194,190,196,16,16,479,291,11823,130,0,0,439,488,345,2008,1136,21,188,0,245]
[null,"Male 85-89",454,876,422,144,52,393,80,177,34,105,105,187,75,447,101,358,1976,1228,0,110,426,426,287,190,1512,995,1210,193,141,67,141,302,1470,56,119,91,87,10,10,265,142,6067,80,0,0,227,215,143,1022,596,6,85,0,246]
[null,"Male 90+",222,413,191,52,14,191,23,72,9,44,44,61,30,190,63,149,932,594,0,50,182,182,122,100,634,460,521,70,56,42,56,113,727,24,47,42,40,4,4,108,38,2678,23,0,0,119,73,63,403,221,2,46,0,247]

{"sheet":"Population at Risk","index":13,"n_rows":257,"n_cols":56,"rows_kept":257,"cut":false,"hidden":true,"merged":[]}
["Population at Risk "]
["(=prevalence*population in 2016)"]
["SIMD","group","Aberdeen City Local Authority","Aberdeen City Region Deal","Aberdeenshire Local Authority","Angus Local Authority","Argyll & Bute Local Authority","Ayrshire & Arran Health Board","Borders Health Board","Clackmannanshire & Stirling IJB","Clackmannanshire Local Authority","Dumfries & Galloway Health Board","Dumfries & Galloway Local Authority","Dundee City Local Authority","East Ayrshire Local Authority","East Dunbartonshire Local Authority","East Lothian Local Authority","East Renfrewshire Local Authority","Edinburgh & SE Scotland City Region Deal","Edinburgh, City of Local Authority","Eilean Siar Local Authority","Falkirk Local Authority","Fife Health Board","Fife Local Authority","Forth Valley Health Board","Glasgow City Local Authority","Glasgow City Region Deal","Grampian Health Board","Greater Glasgow & Clyde Health Board","Highland Health Board","Highland Local Authority","Inverclyde Local Authority","Inverness & Highland City Region Deal","Lanarkshire Health Board","Lothian Health Board","Midlothian Local Authority","Moray Local Authority","North Ayrshire Local Authority","North Lanarkshire Local Authority","Orkney Health Board","Orkney Islands Local Authority","Perth & Kinross Local Authority","Renfrewshire Local Authority","Scotland","Scottish Borders Local Authority","Shetland Health Board","Shetland Islands Local Authority","South Ayrshire Local Authority","South Lanarkshire Local Authority","Stirling Local Authority","Tay Cities Region Deal ","Tayside Health Board","West Dunbartonshire Local Authority","West Lothian Local Authority","Western Isles Health Board",1]
[null,null,"popS12000033","Aber_deal","popS12000034","popS12000041","popS12000035","popS08000015","popS08000016","ClacksStirIJB","popS12000005","popS08000017","popS12000006","popS12000042","popS12000008","popS12000045","popS12000010","popS12000011","EdinSE_deal","popS12000036","popS12000013","popS12000014","popS08000018","popS12000015","popS08000019","popS12000046","GClyde_deal","popS08000020","popS08000021","popS08000022","popS12000017","popS12000018","Inver_deal","popS08000023","popS08000024","popS12000019","popS12000020","popS12000021","popS12000044","popS08000025","popS12000023","popS12000024","popS12000038","popS00000001","popS12000026","popS08000026","popS12000027","popS12000028","popS12000029","popS12000030","Tay_deal","popS08000027","popS12000039","popS12000040","popS08000028",2]
["All quintiles","16+ Males and Females",{"$f":"SUM(C7:C11)","v":38501.644480168361},31650.587444437882,30230.076571870486,16025.675174002699,14766.830599999999,77225.713446203226,16052.327776050264,25283.411300000003,10093.963000000002,29519.798412005788,29519.798412005788,37955.409689162545,25984.396673343181,11376.610908842085,17404.856903376934,5865.7758528548775,152028.06058807109,67839.05193405287,4803.0752000000002,23187.038770003943,71067.760408106798,71067.760408106798,43175.52841651965,173181.25354788156,144079.47332649602,84670.091681894235,265387.28703555051,54374.447202856652,39709.05370530131,16980.833500000001,17917.859663439674,140272.13308747558,{"$f":"SUM(AI7:AI11)","v":133992.39156131336},15977.620599999998,16471.624755264787,32901.982880498865,83854.895560381119,3325.9813000000004,3325.9813000000004,19042.439949079595,37780.774683167168,990842.21130000008,16052.327776050264,3405.3119999999999,3405.3119999999999,18758.630063021166,57315.669842809541,15189.4483,72531.178122679878,71073.815175826734,25317.820538799791,30726.75309481662,4803.0752000000002,3]
["Q1 and Q2","16+ Males and Females",{"$f":"SUM(C7:C8)","v":17226.873234261519},10063.722584842899,5198.4665110908718,5794.4722147159227,5180.1660999999995,54729.429950146667,5224.8817124317393,13438.219300000001,6661.4721000000009,14229.38287298248,14229.38287298248,27244.924746810386,18879.168518195809,4466.0830985441571,7645.5166681717255,1841.9926222941824,76813.96533349852,30996.499949763383,1440.9021,13692.540355329853,40372.073170344876,40372.073170344876,24313.150268444726,134131.33554629196,100959.83381588917,25743.507299700468,188520.10040902236,19944.489904899016,14808.650488871572,12217.448400000001,6717.504087349248,95648.534995937749,{"$f":"SUM(AI7:AI8)","v":66645.422778914202},9525.8901000000005,4077.8034700198591,24933.503135780833,61272.801925700274,694.58400000000006,694.58400000000006,5338.3966498105201,24366.633211712739,561679.87490000005,5224.8817124317393,175.53950000000003,175.53950000000003,11556.694541084298,35753.121240297369,6776.7471999999998,38314.511245447473,34764.28946059764,20184.601083044407,17889.648432685957,1440.9021,4]
["SIMD Q1 (most deprived)","16+ Males and Females",{"$f":"SUM(C12,C17)","v":5922.8542925480269},3247.81699516145,1403.7102476674145,2056.1600662913379,1908.6546000000001,33969.491143299565,1620.6537048400974,7182.7689,3611.7577000000001,3988.1386513034499,3988.1386513034499,18973.622413131066,11463.837156502037,1223.5756752725297,1099.9693800470886,893.91943176278392,36222.180534083222,16686.255726125521,0,5501.6257774622063,22669.011695195397,22669.011695195397,11179.457901275799,103336.68586064287,67289.432941993451,7459.0303499999991,136676.76351807572,6751.8004062134523,4855.539252524366,9885.0972000000002,2196.7339380409676,53075.245851851811,{"$f":"SUM(AI12,AI17)","v":29253.857128672797},2546.6169,267.0522579766108,18064.899602207188,36337.82187548028,0,0,2032.0903873461527,16331.641951197347,316301.97120000003,1620.6537048400974,0,0,5283.1636135385252,17929.569123792324,3571.0111999999999,21739.544640120032,19945.791781234439,12691.642710892473,7839.3835779333731,0,5]
["SIMD Q2",null,{"$f":"SUM(C13,C18)","v":11304.01894171349},6815.9055896814489,3794.7562634234573,3738.3121484245844,3271.5114999999996,20759.938806847102,3604.2280075916415,6255.4503999999997,3049.7144000000003,10241.24422167903,10241.24422167903,8271.3023336793194,7415.3313616937712,3242.5074232716279,6545.5472881246369,948.0731905313985,40591.784799415298,14310.244223637863,1440.9021,8190.9145778676466,17703.06147514948,17703.06147514948,13133.692367168926,30794.649685649092,33670.40087389572,18284.476949700471,51843.336890946637,13192.689498685562,9953.1112363472057,2332.3512000000005,4520.7701493082805,42573.289144085938,{"$f":"SUM(AI13,AI18)","v":37391.565650241406},6979.2732000000015,3810.7512120432484,6868.6035335736433,24934.980050219994,694.58400000000006,694.58400000000006,3306.3062624643671,8034.9912605153895,245377.9037,3604.2280075916415,175.53950000000003,175.53950000000003,6273.530927545773,17823.552116505045,3205.7360000000003,16574.966605327438,14818.497679363203,7492.9583721519321,10050.264854752586,1440.9021,6]
["SIMD Q3",null,{"$f":"SUM(C14,C19)","v":6801.548632651311},6752.295956830174,7658.1673829599458,5525.2790251462902,5996.0144,11148.084709649491,5601.913381528846,4293.4882999999991,1629.3069,10242.58322244897,10242.58322244897,3991.952346769544,3667.2629647291133,921.22322390095974,3883.3469397079871,845.2144935881488,31617.363102803873,11934.045154769487,3160.0437000000002,4051.9430063602572,14524.668777392162,14524.668777392162,7445.0011666731616,19383.374626132747,19212.366319790934,19475.694187616195,31606.008534308272,18756.220585261028,12791.148067239112,2120.4009999999998,5766.1521614556332,22391.959142310196,{"$f":"SUM(AI14,AI19)","v":25785.660041330164},3508.6166999999996,5190.6407999470439,3632.2045889242936,12370.655687878538,1150.6635000000001,1150.6635000000001,5062.8754920668634,5905.13459738249,188329.30210000003,5601.913381528846,1270.1935999999996,1270.1935999999996,3693.9415028774106,9971.3375092769165,2664.1813999999995,15304.342747294268,15448.545609729303,2896.2323502951585,6304.2648025180742,3160.0437000000002,7]
["SIMD Q4",null,{"$f":"SUM(C15,C20)","v":5904.5576825893422},7886.684504486142,10663.741708488342,3185.1715178478812,2716.0707000000002,7080.7869640635863,4447.5532625078877,4665.4991000000009,1216.8255000000001,3789.4573140784214,3789.4573140784214,4340.4759656083452,2204.5413663648569,2020.8785332120519,4376.4137920165831,889.09854537496983,22841.5511388624,9469.8408083491395,202.1294,3235.0209137473475,8805.3880058608302,8805.3880058608302,6932.0386199815493,12556.147716827338,14117.78179322022,22256.267357054327,24282.465853711663,12865.560533431013,10188.582239042553,1850.7936,4572.3841658186875,15446.751706690953,{"$f":"SUM(AI15,AI20)","v":19670.657543319612},1760.6819000000003,5460.8126185260389,3145.2874076704193,7153.8831979208826,1337.3127000000002,1337.3127000000002,6746.760606069558,4489.9963229086779,145604.97149999999,4447.5532625078877,1959.5789,1959.5789,1779.2024937973933,8000.77738229038,3448.6736000000001,12244.963334511389,15001.045347932715,1839.1637707775913,3970.5793279985351,202.1294,8]
["SIMD Q5 (least deprived)",null,{"$f":"SUM(C16,C21)","v":8568.6649306661839},6947.8843982786675,6709.7009693313285,1520.7524162926049,874.57939999999985,4267.411822343478,777.97941958179194,2886.2046,586.35849999999994,1258.3750024959159,1258.3750024959159,2378.0566299742727,1233.4238240533982,3968.4260531849168,1499.5795034806392,2289.4701915975766,20755.18101290628,15438.666021170873,0,2207.5344945664874,7365.6304545089288,7365.6304545089288,4485.3383614202085,7110.395658629508,9789.4913975957079,17194.622837523242,20978.712238508197,2808.1761792656007,1920.6729101480723,792.19049999999993,861.81924881610723,6784.8872425366681,{"$f":"SUM(AI16,AI21)","v":21890.65119774939},1182.4319,1742.367866771845,1190.9877481233216,3057.5547488814295,143.42110000000002,143.42110000000002,1894.4072011326548,3019.0105511632646,95228.0628,777.97941958179194,0,0,1728.7915252620608,3590.4337109448652,2299.8461000000002,6667.3607954267545,5859.9347575670872,397.82333468263511,2562.2605316140539,0,9]
["SIMD Q1 (most deprived)","16+ Females",{"$f":"SUM(C60:C78)","v":2417.9823313829788},1665.2497857889286,559.67111143617024,616.72102361702127,920.84339999999997,16772.232389680852,918.02260276595769,3595.2638000000002,1776.4721,2110.7236993617021,2110.7236993617021,9951.615467499998,5714.1560793617018,577.98871675531893,601.398598670213,395.90445744680846,19404.296122227373,7596.4101440425538,0,2197.3249889361696,10773.755371276597,10773.755371276597,5087.1762390957447,51359.166953670217,36209.09968087999,3171.0523499999999,68503.399515957441,3093.0592719680858,2191.706042021277,4942.7268999999997,1170.9099687789083,28766.870453617023,{"$f":"SUM(AI60:AI78)","v":14466.254659255319},1262.9519,145.9532375,7956.4783041489363,20994.929313829791,0,0,899.61008063829786,8320.737765319147,155362.39509999999,918.02260276595769,0,0,2964.2916038297872,8898.6827873404272,1818.7917,11653.256101688856,8956.8289937234058,6911.0887722340422,4431.0819417021276,0,10]
["SIMD Q2",null,{"$f":"SUM(C98:C116)","v":4779.4857562765965},3621.6485620755411,1624.226641755319,1140.7964410106383,1630.1906999999999,10266.631807553193,2051.2157002659574,3103.8535999999999,1516.1638,5456.9888044680847,5456.9888044680847,4313.7034697340423,3678.9420518085103,1530.9504933510634,3586.181109042554,409.80909441489365,21974.095431621834,6491.8873123404246,688.38700000000017,3354.0327268085116,8555.7732328723396,8555.7732328723396,6008.8393704787231,14989.999168085104,18194.049031866554,8112.8048021276572,25908.251808510635,6216.4085741489353,4612.0174962765959,1181.9166000000002,2463.9514419518969,23340.249617872341,{"$f":"SUM(AI98:AI116)","v":18696.231466702124},3548.0896000000007,2004.8293650000003,3034.9948597872344,14676.024145851065,327.78570000000002,327.78570000000002,1430.3058804255322,4263.9784847872334,121132.14059999998,2051.2157002659574,74.633800000000008,74.633800000000008,3585.8545378723402,8841.5330440425532,1587.6898000000003,8910.9949341574757,6573.0419317021278,4007.1107896276599,5692.404828936169,688.38700000000017,11]
["SIMD Q3",null,{"$f":"SUM(C136:C154)","v":2559.0519447872343},3393.5849990256879,3152.217778723405,1605.4112341489363,2900.7543999999994,5329.0375045744704,3152.6991164361707,2072.7887000000001,787.06659999999999,5308.6777789361713,5308.6777789361713,2031.7014579787233,1722.3951836170213,425.64901595744686,2030.3129038297877,356.29454707446814,16482.68954659357,5187.2193427659568,1484.5510999999999,1592.223227234043,6787.1219610638291,6787.1219610638291,3294.0383981382984,9222.0254896808492,10106.870594026183,8160.8285138297888,15365.057154255317,8458.5396041489348,5634.2811563829782,1025.3730000000003,3010.0916119333951,11950.069151489362,{"$f":"SUM(AI136:AI154)","v":12262.205629414892},1703.1295,2653.9781799999996,1553.7739782446811,7069.8428412765952,540.7007000000001,540.7007000000001,2264.375008351064,3027.4884628723394,89636.196500000005,3152.6991164361707,573.9428999999999,573.9428999999999,2075.3065920212762,4832.2174741489362,1285.7221,8045.9183573789296,6751.0158226595759,1503.8155488829784,3395.458416595744,1484.5510999999999,12]
["SIMD Q4",null,{"$f":"SUM(C174:C192)","v":2350.4997607446812},3979.6093249825476,4249.0266534574484,913.72950632978711,1273.6505000000002,3346.4657968085112,2507.6622622872342,2163.4140000000002,514.34900000000005,1925.2366761702128,1925.2366761702128,2262.8022408510637,1042.0694662765959,908.87030585106368,2305.3240409574473,370.10446196808527,11825.577718422239,4120.1514319148937,98.127400000000023,1223.6142791489362,3982.3175460638299,3982.3175460638299,2951.7290178191488,5966.6486570744692,7252.2619162162746,9256.479108510639,11682.544851063829,5612.4835594680835,4350.1097390425539,863.00469999999996,2324.0282962534693,7888.8389361702129,{"$f":"SUM(AI174:AI192)","v":9361.2552162234024},848.04350000000011,2677.1968300000008,1314.0904261170213,3880.2810328723394,622.14550000000008,622.14550000000008,2937.2433493617018,2216.4047951063831,68009.497999999992,2507.6622622872342,883.91179999999997,883.91179999999997,982.91214648936159,3731.0040949999998,1649.0650000000001,6332.081713672289,6495.3775075531912,944.7444142021277,2129.8885744680847,98.127400000000023,13]
["SIMD Q5 (least deprived)",null,{"$f":"SUM(C212:C230)","v":3134.2643209574467},3298.6405379420594,2514.6659704787235,417.16224590425531,253.24579999999997,1961.4846630319157,422.04778723404252,1325.5498,273.06299999999999,633.26766957446807,633.26766957446807,1158.5532461702128,559.8826425000002,1664.6386117021275,746.40679271276622,900.70379601063837,10186.04358340539,6370.4448753191491,0,790.22437276595747,3216.0319337234041,3216.0319337234041,1853.507117819149,3129.8018374468079,4857.6875595604661,6611.8934627659573,9630.1567659574484,1069.6277655851063,819.16858755319151,374.23660000000007,437.63745999074933,3400.0109668085111,{"$f":"SUM(AI212:AI230)","v":9798.3872360106398},515.62009999999998,747.57254250000005,469.70976074468081,1641.6523605319146,62.162700000000001,62.162700000000001,830.28889265957446,1443.9140215957448,42263.342299999997,422.04778723404252,0,0,948.38833638297865,1629.140260106383,1052.4867999999999,3346.9865078638672,2466.7004167021282,193.3129030851064,1306.4199757446806,0,14]
["SIMD Q1 (most deprived)","16+ Males",{"$f":"SUM(C79:C97)","v":3504.8719611650481},1582.5672093725216,844.03913623124436,1439.4390426743164,987.8112000000001,17197.258753618713,702.63110207413956,3587.5050999999999,1835.2856000000004,1877.4149519417479,1877.4149519417479,9022.0069456310684,5749.6810771403352,645.58695851721086,498.57078137687563,498.01497431597539,16817.884411855845,9089.8455820829658,0,3304.3007885260372,11895.256323918802,11895.256323918802,6092.2816621800539,51977.518906972648,31080.333261113457,4287.9779999999992,68173.36400211828,3658.7411342453665,2663.833210503089,4942.3703000000014,1025.8239692620593,24308.375398234788,{"$f":"SUM(AI79:AI97)","v":14787.602469417478},1283.6650000000002,121.09902047661079,10108.421298058252,15342.892561650489,0,0,1132.4803067078549,8010.9041858782002,160939.57610000003,702.63110207413956,0,0,2318.872009708738,9030.8863364518984,1752.2195000000002,10086.288538431174,10988.962787511031,5780.5539386584305,3408.3016362312451,0,15]
["SIMD Q2",null,{"$f":"SUM(C117:C135)","v":6524.5331854368942},3194.2570276059078,2170.5296216681381,2597.5157074139461,1641.3208,10493.306999293911,1553.0123073256841,3151.5968000000003,1533.5506000000003,4784.255417210944,4784.255417210944,3957.598863945278,3736.3893098852609,1711.5569299205645,2959.3661790820834,538.2640961165049,18617.689367793468,7818.3569112974392,752.51509999999985,4836.8818510591354,9147.2882422771399,9147.2882422771399,7124.8529966902033,15804.65051756399,15476.351842029162,10171.672147572814,25935.085082436006,6976.280924536627,5341.0937400706089,1150.4346000000003,2056.818707356384,19233.039526213593,{"$f":"SUM(AI117:AI135)","v":18695.334183539278},3431.1836000000003,1805.9218470432484,3833.6086737864084,10258.955904368931,366.79829999999998,366.79829999999998,1876.0003820388349,3771.0127757281557,124245.76310000001,1553.0123073256841,100.90570000000001,100.90570000000001,2687.6763896734333,8982.0190724624899,1618.0462,7663.9716711699612,8245.4557476610753,3485.8475825242717,4357.8600258164161,752.51509999999985,16]
["SIMD Q3",null,{"$f":"SUM(C155:C173)","v":4242.4966878640771},3358.710957804486,4505.9496042365408,3919.8677909973544,3095.2600000000007,5819.0472050750204,2449.2142650926749,2220.6995999999995,842.24030000000016,4933.9054435127982,4933.9054435127982,1960.2508887908207,1944.867781112092,495.57420794351287,1853.0340358781996,488.9199465136806,15134.6735562103,6746.8258120035298,1675.4926,2459.7197791262142,7737.5468163283322,7737.5468163283322,4150.9627685348632,10161.349136451898,9105.4957257647529,11314.865673786406,16240.951380052955,10297.680981112091,7156.8669108561335,1095.0279999999998,2756.060549522238,10441.889990820833,{"$f":"SUM(AI155:AI173)","v":13523.454411915271},1805.4871999999998,2536.6626199470443,2078.4306106796125,5300.8128466019425,609.96280000000002,609.96280000000002,2798.5004837157994,2877.6461345101507,98693.10560000001,2449.2142650926749,696.25069999999982,696.25069999999982,1618.6349108561344,5139.1200351279804,1378.4592999999998,7258.4243899153389,8697.5297870697268,1392.4168014121801,2908.8063859223303,1675.4926,17]
["SIMD Q4",null,{"$f":"SUM(C193:C211)","v":3554.0579218446605},3907.075179503594,6414.7150550308934,2271.4420115180942,1442.4202000000002,3734.3211672550751,1939.8910002206535,2502.0851000000002,702.4765000000001,1864.2206379082086,1864.2206379082086,2077.6737247572814,1162.4719000882612,1112.0082273609883,2071.0897510591353,518.99408340688456,11015.973420440161,5349.6893764342458,104.00199999999998,2011.4066345984115,4823.0704597969998,4823.0704597969998,3980.3096021624001,6589.4990597528695,6865.5198770039451,12999.788248543688,12599.921002647836,7253.0769739629295,5838.4724999999999,987.78890000000001,2248.3558695652182,7557.9127705207402,{"$f":"SUM(AI193:AI211)","v":10309.402327096208},912.63840000000016,2783.6157885260382,1831.1969815533982,3273.6021650485432,715.16720000000009,715.16720000000009,3809.5172567078557,2273.5915278022949,77595.473500000007,1939.8910002206535,1075.6671000000001,1075.6671000000001,796.29034730803176,4269.7732872903807,1799.6086,5912.8816208390999,8505.6678403795231,894.41935657546355,1840.6907535304504,104.00199999999998,18]
["SIMD Q5 (least deprived)",null,{"$f":"SUM(C231:C249)","v":5434.4006097087376},3649.2438603366081,4195.034998852605,1103.5901703883496,621.33359999999982,2305.9271593115627,355.93163234774948,1560.6547999999998,313.29549999999995,625.10733292144766,625.10733292144766,1219.5033838040599,673.54118155339813,2303.7874414827893,753.17271076787301,1388.766395586938,10569.137429500892,9068.2211458517231,0,1417.3101218005297,4149.5985207855247,4149.5985207855247,2631.8312436010592,3980.5938211827006,4931.8038380352418,10582.729374757284,11348.55547255075,1738.5484136804944,1101.5043225948809,417.95389999999992,424.1817888253579,3384.8762757281565,{"$f":"SUM(AI231:AI249)","v":12092.26396173875},666.81180000000006,994.79532427184495,721.27798737864089,1415.9023883495149,81.258400000000009,81.258400000000009,1064.1183084730803,1575.0965295675198,52964.720500000003,355.93163234774948,0,0,780.40318887908211,1961.2934508384824,1247.3593000000003,3320.3742875628873,3393.2343408649594,204.51043159752871,1255.8405558693732,0,19]
["All quintiles","Female 0-4",{"$f":"SUM(C60,C98,C136,C174,C212)","v":0},0,0,0,0,0,0,0,0,0,0,0,0,0,0,0,0,0,0,0,0,0,0,0,0,0,0,0,0,0,0,0,{"$f":"SUM(AI60,AI98,AI136,AI174,AI212)","v":0},0,0,0,0,0,0,0,0,0,0,0,0,0,0,0,0,0,0,0,0,20]
[null,"Female 5-9",{"$f":"SUM(C61,C99,C137,C175,C213)","v":0},0,0,0,0,0,0,0,0,0,0,0,0,0,0,0,0,0,0,0,0,0,0,0,0,0,0,0,0,0,0,0,{"$f":"SUM(AI61,AI99,AI137,AI175,AI213)","v":0},0,0,0,0,0,0,0,0,0,0,0,0,0,0,0,0,0,0,0,0,21]
[null,"Female 10-15",{"$f":"SUM(C62,C100,C138,C176,C214)","v":0},0,0,0,0,0,0,0,0,0,0,0,0,0,0,0,0,0,0,0,0,0,0,0,0,0,0,0,0,0,0,0,{"$f":"SUM(AI62,AI100,AI138,AI176,AI214)","v":0},0,0,0,0,0,0,0,0,0,0,0,0,0,0,0,0,0,0,0,0,22]
[null,"Female 16-19",{"$f":"SUM(C63,C101,C139,C177,C215)","v":796.29172819148937},857.18005636113389,668.8932303191491,247.45414553191489,361.86869999999999,1838.2404062234048,495.79926882978731,728.62109999999996,247.7106,773.23151680851049,773.23151680851049,1112.3860039361703,613.95873553191495,271.20706117021274,519.59681781914901,149.13936436170212,4111.0808691119364,1391.9790797872338,107.97619999999999,449.76552510638311,1752.5994775531913,1752.5994775531913,1035.9155385638298,3859.9765086702123,3750.4291569122433,1913.1545031914893,6215.2295904255316,1279.3242311170211,924.36460468085102,387.67019999999997,493.83800092506937,3898.289877446809,{"$f":"SUM(AI63,AI101,AI139,AI177,AI215)","v":3264.1868183510633},434.95230000000004,464.79244000000006,699.92367558510637,2551.0597011702125,77.68950000000001,77.68950000000001,473.71301553191489,945.60038031914883,24293.802499999998,495.79926882978731,102.9066,102.9066,520.89590510638288,1408.0484190425534,480.91050000000001,2072.4341633335198,1735.069953829787,634.07804101063834,927.85241531914892,107.97619999999999,23]
[null,"Female 20-24",{"$f":"SUM(C64,C102,C140,C178,C216)","v":1814.6010854255319},1507.286417721084,824.24698351063842,328.14092930851069,395.18130000000002,2469.8128719680853,586.96461542553197,1084.5907,323.32400000000001,987.33731808510629,987.33731808510629,2142.6686254787228,845.3217456382979,355.91648936170208,732.84785813829808,169.13543271276595,6777.5639535450237,3282.9431361702123,120.05180000000001,628.27718808510645,2412.5651728723406,2412.5651728723406,1496.2669954787234,7785.4684331914896,5928.3550081135991,3207.9575936170213,10867.423372340425,1503.6381665425531,1114.7499255319149,553.40519999999992,595.55057816836268,5073.4660834042561,{"$f":"SUM(AI64,AI102,AI140,AI178,AI216)","v":6006.8002905319145},542.00479999999993,600.62595249999993,939.03619430851063,3238.8285472340422,105.78360000000001,105.78360000000001,595.15901026595736,1390.0825437234041,37495.362800000003,586.96461542553197,110.8374,110.8374,680.47811255319141,1888.3963982978723,761.2666999999999,3065.9805131476251,2723.6911190425531,929.37103680851044,1176.6546608510637,120.05180000000001,24]
[null,"Female 25-29",{"$f":"SUM(C65,C103,C141,C179,C217)","v":2062.5949332978721},1716.0591902021038,941.25348404255328,350.61513281914898,440.53980000000001,2917.9360064361708,584.40641563829797,1108.7508000000003,379.74680000000001,1109.4715629787233,1109.4715629787233,2460.3277571808508,1043.7111299468083,353.46450398936167,706.48951904255341,171.67316063829787,8243.4821052916195,4307.8084059574467,147.13649999999998,744.11123744680867,2807.2126892553192,2807.2126892553192,1642.61559893617,10925.661681595744,7614.490513986224,3627.0056095744681,14391.437617021274,1749.3739545744681,1314.9899021276597,657.83630000000005,702.52796484736359,6064.3656297872358,{"$f":"SUM(AI65,AI103,AI141,AI179,AI217)","v":7533.3693584574467},642.66590000000008,648.74162500000011,1098.3672167553191,4022.4915003191491,124.07740000000001,124.07740000000001,666.03632845744676,1737.5302986170211,45491.1806,584.40641563829797,141.29349999999999,141.29349999999999,769.79072031914882,2153.3399612765957,729.00400000000013,3499.7860838986767,3062.7023135106388,1141.6311257978723,1448.8173114893616,147.13649999999998,25]
[null,"Female 30-34",{"$f":"SUM(C66,C104,C142,C180,C218)","v":1720.6303554255321},1626.1571433244474,1090.6098199468088,381.68018117021279,453.53510000000006,2776.4967528191496,640.06452957446811,950.12,381.07170000000002,1072.8921491489364,1072.8921491489364,1901.9378744680848,991.80677329787238,334.64844015957442,738.284269095745,167.42310904255322,7732.9453055114673,3672.3379997872344,158.1678,807.36093957446826,2681.7870817021276,2681.7870817021276,1595.9449297872341,9058.1841715957453,7079.3828882499101,3521.138138297872,12544.826856382977,1900.2703257446808,1451.9057215957446,640.68300000000011,775.67468015726195,6510.0387557446811,{"$f":"SUM(AI66,AI104,AI142,AI180,AI218)","v":6942.3879771276606},678.04020000000003,731.49552000000006,1025.1255381914893,4244.2766265957443,122.49950000000001,122.49950000000001,729.87757196808502,1640.1989309574469,43017.025700000006,640.06452957446811,129.75360000000001,129.75360000000001,755.13571521276594,2362.3514272340431,569.04830000000004,3265.8093384465619,2803.7915441489367,1170.9262209042554,1581.1201625531912,158.1678,26]
[null,"Female 35-39",{"$f":"SUM(C67,C105,C143,C181,C219)","v":1276.5270394680849},1340.074211292696,1018.8401920212768,365.90716186170209,467.22940000000006,2802.4366056382987,603.29250234042559,946.49620000000004,397.90780000000007,1029.2660051063829,1029.2660051063829,1576.2265887765957,984.55050351063824,383.25973803191482,751.91549696808534,196.52255398936174,6804.12010785446,2793.9691991489358,175.11060000000001,776.73083744680866,2660.6289667021274,2660.6289667021274,1559.2827273936171,7583.2151964361701,6522.9814114630162,2901.8950053191484,11193.270765957446,1814.9495354787234,1354.7236809574467,632.71479999999997,723.75557331174844,6380.0015038297879,{"$f":"SUM(AI67,AI105,AI143,AI181,AI219)","v":5807.4407135106385},679.20460000000003,603.10596500000008,1050.5306619148937,4183.8358918085105,107.8657,107.8657,618.54204191489373,1575.4728221276594,39115.2048,603.29250234042559,127.10920000000002,127.10920000000002,762.17857872340414,2298.4300574468089,548.58840000000009,3012.8704523278125,2424.3453165957449,1088.7659634574466,1467.6662421276594,175.11060000000001,27]
[null,"Female 40-44",{"$f":"SUM(C68,C106,C144,C182,C220)","v":1160.4805688297872},1316.7800590371744,1080.8463952127661,398.25288143617024,566.09400000000005,3197.1739975531923,764.31245941489362,1034.4233000000002,438.82170000000002,1197.145598723404,1197.145598723404,1375.9090353191486,1099.4566509042554,416.8297061170212,785.98129255319157,208.16634627659579,6715.3231092287342,2354.7555931914894,196.2912,863.59907234042566,2808.88617287234,2808.88617287234,1720.463060106383,6701.9277937765955,6391.3467992238366,2940.4828531914891,10583.584803191488,2043.9284914361704,1488.1421628723406,673.8519,795.03385037002784,6651.8708331914904,{"$f":"SUM(AI68,AI106,AI144,AI182,AI220)","v":5420.038321117022},671.73559999999998,716.13904250000007,1241.3763964893617,4362.5487121276592,131.62880000000001,131.62880000000001,670.81449638297875,1626.5008807446807,39733.060000000005,764.31245941489362,127.9979,127.9979,848.09405648936149,2396.0781011702129,595.60160000000008,3080.33951162332,2401.4897032978724,1120.9441085638298,1606.8571527659572,196.2912,28]
[null,"Female 45-49",{"$f":"SUM(C69,C107,C145,C183,C221)","v":1232.5537670212766},1494.1241425976291,1297.9466840425534,476.0640242021276,718.52900000000011,4164.6442650000008,981.88910882978723,1313.0466999999999,554.39610000000005,1654.001669574468,1654.001669574468,1665.5745057446807,1465.4565989361704,559.64305452127655,1026.8704435106386,269.0272515957447,7936.2025177714158,2460.5928006382978,244.5772,987.47714553191508,3522.8968123404256,3522.8968123404256,2063.2023797872339,8284.6281562765962,8094.8349680727533,3355.2808276595742,13555.401255319146,2553.2391752127655,1848.276061276596,949.54299999999989,987.43390934320087,8267.2132314893624,{"$f":"SUM(AI69,AI107,AI145,AI183,AI221)","v":6156.170526702128},854.5172,838.63402000000008,1587.4576206382978,5336.6729036170209,156.3655,156.3655,849.01362723404247,2148.9337799999998,49004.105599999995,981.88910882978723,153.5574,153.5574,1102.2579746808508,3036.5755528723407,758.65060000000005,3817.0438117823232,2939.1009360638295,1520.6567214361705,1901.5730846808508,244.5772,29]
[null,"Female 50-54",{"$f":"SUM(C70,C108,C146,C184,C222)","v":1308.9775292553193},1539.5774746706929,1304.3691281914894,496.72030515957448,817.01030000000003,4334.3662528191498,1021.9287775000001,1317.4068,551.93180000000007,1790.3047804255316,1790.3047804255316,1911.8691892553193,1473.1487267021275,574.91071675531907,984.21931207446823,273.25883563829791,7923.3418715907155,2386.7449959574469,260.55580000000003,995.10169531914903,3660.6636657446811,3660.6636657446811,2074.8760143617023,8649.2521940957449,8319.5628964482821,3457.5411542553193,14015.497180851064,2761.7990897340424,1961.8755142553191,990.22889999999995,1048.1239514338577,8409.2843302127676,{"$f":"SUM(AI70,AI108,AI146,AI184,AI222)","v":5982.6357577659564},850.1096,864.40728500000012,1666.7677505319148,5391.2145322340421,171.95350000000002,171.95350000000002,886.30918909574473,2142.1827005319146,50464.387700000007,1021.9287775000001,156.37040000000002,156.37040000000002,1184.6863377659572,3114.3138741489365,765.47500000000002,4051.0064174033446,3187.2529627659578,1582.825920851064,1846.2447838297871,260.55580000000003,30]
[null,"Female 55-59",{"$f":"SUM(C71,C109,C147,C185,C223)","v":1109.6899889361705},1266.4436837030526,1044.9894672872342,428.05221271276599,682.97240000000011,3601.4493536170226,862.93057074468106,1065.6773000000001,447.87010000000009,1463.158474893617,1463.158474893617,1630.0340536170213,1173.5125961702129,536.2942779255319,854.23269691489384,228.35987872340428,6666.030667681548,2094.3486274468082,201.40990000000002,803.89169872340437,3007.2533585106385,3007.2533585106385,1677.2261595744685,6914.4788962234052,6853.7953222772976,2838.9761489361708,11503.370728723405,2301.8469618617023,1633.238601595745,851.82290000000012,872.55102798334894,6972.416437446811,{"$f":"SUM(AI71,AI109,AI147,AI185,AI223)","v":5094.418551329788},727.41499999999996,703.88365250000015,1374.5416990425535,4347.1825075531915,137.54490000000004,137.54490000000004,725.11481824468103,1773.8489344680852,41809.486100000002,862.93057074468106,121.18620000000001,121.18620000000001,1046.9936329787233,2666.6477101063829,617.80719999999997,3373.6161429874287,2690.217651702128,1305.8480269148938,1465.1146025531916,201.40990000000002,31]
[null,"Female 60-64",{"$f":"SUM(C72,C110,C148,C186,C224)","v":955.43292212765971},1130.1324148025592,962.08604734042569,381.33890239361705,638.66999999999996,3254.9919013829794,784.26694909574485,899.93750000000011,385.95040000000006,1417.1084117021278,1417.1084117021278,1306.3073155851066,1038.9578281914896,439.70413962765952,715.89778234042581,199.58478643617025,5663.4067342672579,1694.1677304255318,205.47790000000003,711.56917276595755,2660.3188867021281,2660.3188867021281,1452.668005851064,5355.1632729255325,5650.1246706002667,2554.9991542553198,9170.8545957446804,2137.6341138297871,1512.5714851063833,685.41710000000012,808.08511563367267,6073.8765778723418,{"$f":"SUM(AI72,AI110,AI148,AI186,AI224)","v":4189.7637647340425},599.82890000000009,658.07649250000009,1251.7956064361704,3774.9403228723404,128.03980000000001,128.03980000000001,677.31326484042563,1431.724819893617,35954.203400000006,784.26694909574485,118.94280000000001,118.94280000000001,958.26842521276603,2331.2579902127663,513.98710000000005,2953.9218956061395,2331.8935962765959,1109.9573144148937,1230.5350480851064,205.47790000000003,32]
[null,"Female 65-69",{"$f":"SUM(C73,C111,C149,C187,C225)","v":681.24778191489372},847.99821806379975,752.19510824468091,323.09233542553193,565.06050000000005,2425.7698365957449,682.19267265957455,705.48270000000002,313.8775,1119.8659895744679,1119.8659895744679,980.90543324468081,775.19495287234042,314.65334042553189,559.13111718085122,141.45244042553193,4389.0767307596652,1226.0848257446808,173.34210000000002,546.64298553191497,2092.5176677659574,2092.5176677659574,1126.3816757978725,3407.5004838297868,3880.4332913169201,1951.9750159574467,6216.078079787233,1741.0484356382979,1189.7922441489363,506.76440000000002,635.64162927844598,4257.4157310638302,{"$f":"SUM(AI73,AI111,AI149,AI187,AI225)","v":3153.6746060638297},493.14810000000006,542.10243500000013,930.0025513829786,2630.5578804255315,110.44850000000001,110.44850000000001,548.89872058510639,1074.6649784042552,26745.874900000003,682.19267265957455,92.922799999999995,92.922799999999995,716.29513999999983,1644.687829787234,391.60520000000002,2340.0158708279023,1860.236800212766,771.96130744680852,931.65290595744682,173.34210000000002,33]
[null,"Female 70-74",{"$f":"SUM(C74,C112,C150,C188,C226)","v":491.75410617021271},619.14801576071545,553.99357446808517,251.4683410638298,436.75940000000003,1936.4302919680854,531.29934882978728,558.33609999999999,238.25020000000001,946.677204255319,946.677204255319,734.09486090425537,605.41010090425516,254.0368723404255,440.82133351063845,109.5565050531915,3366.1170406944293,912.0910965957446,136.75309999999999,414.52027914893625,1617.8463172340425,1617.8463172340425,871.35190132978732,2706.7399142553195,3054.5058076723026,1450.0394031914893,4865.758308510638,1343.1433240957447,917.08426968085121,393.14750000000004,489.94851179463467,3379.708149787235,{"$f":"SUM(AI74,AI112,AI150,AI188,AI226)","v":2399.9480636702128},366.24529999999999,430.27475750000008,732.37125148936184,2119.7264556382975,96.21629999999999,96.21629999999999,444.17502255319141,835.60014329787236,20858.867200000001,531.29934882978728,79.205800000000011,79.205800000000011,596.16746574468073,1283.9729588297873,320.08590000000004,1814.7778190506729,1447.0277052127663,562.07753441489365,733.78052936170207,136.75309999999999,34]
[null,"Female 75-79",{"$f":"SUM(C75,C113,C151,C189,C227)","v":236.56287244680851},271.61681745345021,225.33957792553193,102.7140360106383,176.05879999999999,797.06614420212782,209.48188239361704,228.35129999999998,88.3369,344.11433425531908,344.11433425531908,343.67435281914891,248.49039132978726,125.25257313829786,182.34869585106387,54.511751861702123,1403.2115498354287,437.54603617021269,55.865500000000004,180.36016340425533,652.34451031914898,652.34451031914898,368.38620452127662,1332.4028352659575,1387.0711352152471,620.89553936170216,2330.0298670212765,529.35283930851062,357.74923478723406,180.96899999999999,191.12606221091585,1409.0134025531916,{"$f":"SUM(AI75,AI113,AI151,AI189,AI227)","v":1030.5923601595744},136.79310000000001,167.6315725,306.1472869680851,875.35673585106372,34.815600000000003,34.815600000000003,179.09417175531914,381.24674787234039,8912.2862999999998,209.48188239361704,28.144000000000002,28.144000000000002,241.11239010638292,541.04492712765955,140.01440000000002,754.10125274827806,618.62290499999995,248.18873276595744,278.7771472340425,55.865500000000004,35]
[null,"Female 80-84",{"$f":"SUM(C76,C114,C152,C190,C228)","v":196.1119493617021},211.44999333176639,165.27335478723404,77.599170319148925,129.1746,596.65544377659592,152.16261436170214,165.0865,59.269900000000007,271.07646468085107,271.07646468085107,289.76877813829788,184.37394739361702,95.3062739361702,138.31092941489365,47.682745478723405,1065.6682522856804,354.13929063829784,44.010800000000003,128.04798638297873,486.10585978723407,486.10585978723407,263.72411196808514,1086.8799991489361,1089.7294922809601,486.27254148936174,1870.9399308510638,395.61509005319152,269.62433180851065,143.36319999999998,144.04569403330251,1064.8080731914895,{"$f":"SUM(AI76,AI114,AI152,AI190,AI228)","v":797.0624189893615},106.51900000000001,134.5413825,224.88407430851066,646.41595499999994,23.195999999999998,23.195999999999998,141.81840579787234,302.63409840425527,6869.3594999999996,152.16261436170214,21.147100000000002,21.147100000000002,186.72789861702122,419.25703414893621,105.81659999999999,583.9564371354935,495.62086468085107,184.4646599468085,195.11747574468086,44.010800000000003,36]
[null,"Female 85-89",{"$f":"SUM(C77,C115,C153,C191,C229)","v":128.85287085106381},137.57069743298237,106.4566970744681,50.657179521276589,79.747399999999999,349.60158489361709,93.963875744680863,95.497500000000002,37.428200000000004,166.31106340425529,166.31106340425529,184.47028026595743,110.61146622340425,58.650953457446803,86.006277978723418,29.277877925531918,676.07625881538661,249.49978021276593,25.486799999999999,75.725520000000003,306.80086276595739,306.80086276595739,154.39154893617021,648.68643154255324,647.39923418079684,311.37255744680851,1128.0736436170214,250.25138494680849,172.39889265957447,89.927299999999988,92.103401711378368,615.30419404255315,{"$f":"SUM(AI77,AI115,AI153,AI191,AI229)","v":509.35935952127653},60.859200000000001,80.597527500000012,125.4427695212766,363.29682351063832,15.272699999999999,15.272699999999999,96.675841382978732,173.26479340425527,4214.4124000000002,93.963875744680863,12.678000000000001,12.678000000000001,113.5192159574468,249.30841734042554,58.069299999999998,376.31085093687574,325.00035510638304,120.7783254787234,101.86210638297869,25.486799999999999,37]
[null,"Female 90+",{"$f":"SUM(C78,C116,C154,C192,C230)","v":68.974615425531908},77.134674059475913,62.468411436170214,34.063512074468086,50.254099999999994,212.78044675531919,56.691877606382981,59.045400000000001,21.220800000000001,92.932084893617002,92.932084893617002,102.2212275,63.483276010638299,34.319002659574465,46.669602819148949,18.044316755319148,399.05532802564142,147.10450851063828,18.8523,44.238148085106388,184.57254287234042,184.57254287234042,92.593290957446811,367.47613712765957,355.52618653583011,174.0721914893617,637.63350000000003,144.70365574468087,95.79638819148937,49.9131,51.178827705827949,318.96631489361704,{"$f":"SUM(AI78,AI116,AI154,AI192,AI230)","v":296.48531957446801},33.7958,44.480485000000002,75.277035478723406,174.32459840425531,9.3973000000000013,9.3973000000000013,59.267685425531916,93.036676914893604,2424.9529999999995,56.691877606382981,8.4358000000000004,8.4358000000000004,74.151647127659558,138.86700159574468,37.824599999999997,227.26705350544651,196.90094489361704,67.597387819148935,61.628108510638292,18.8523,38]
[null,"Male 0-4",{"$f":"SUM(C79,C117,C155,C193,C231)","v":0},0,0,0,0,0,0,0,0,0,0,0,0,0,0,0,0,0,0,0,0,0,0,0,0,0,0,0,0,0,0,0,{"$f":"SUM(AI79,AI117,AI155,AI193,AI231)","v":0},0,0,0,0,0,0,0,0,0,0,0,0,0,0,0,0,0,0,0,0,39]
[null,"Male 5-9",{"$f":"SUM(C80,C118,C156,C194,C232)","v":0},0,0,0,0,0,0,0,0,0,0,0,0,0,0,0,0,0,0,0,0,0,0,0,0,0,0,0,0,0,0,0,{"$f":"SUM(AI80,AI118,AI156,AI194,AI232)","v":0},0,0,0,0,0,0,0,0,0,0,0,0,0,0,0,0,0,0,0,0,40]
[null,"Male 10-15",{"$f":"SUM(C81,C119,C157,C195,C233)","v":0},0,0,0,0,0,0,0,0,0,0,0,0,0,0,0,0,0,0,0,0,0,0,0,0,0,0,0,0,0,0,0,{"$f":"SUM(AI81,AI119,AI157,AI195,AI233)","v":0},0,0,0,0,0,0,0,0,0,0,0,0,0,0,0,0,0,0,0,0,41]
[null,"Male 16-19",{"$f":"SUM(C82,C120,C158,C196,C234)","v":1065.2579029126214},831.45320264178144,1102.6936364960284,685.64891844660201,462.56849999999997,2284.2062497352158,397.78751553398064,857.08680000000004,314.16339999999997,776.13954099735224,776.13954099735224,993.15589819064439,748.106393733451,419.69343830538389,487.36817396293031,254.34891765225069,3902.4104806766172,1817.0974441747571,125.3441,811.87383124448365,2168.8792511915271,2168.8792511915271,1476.0757255075023,4447.2473624007062,3739.2804096566779,2687.4864699029126,7235.7770902029997,1782.5230339805823,1318.0145851721095,480.66770000000002,507.55841168118502,3784.2477281553402,{"$f":"SUM(AI82,AI120,AI158,AI196,AI234)","v":3627.7270318623127},462.03800000000001,511.08651871138579,1109.0147126213592,2117.7877533980582,104.7004,104.7004,658.25623199470442,1029.8251173874671,28787.358999999997,397.78751553398064,113.35769999999999,113.35769999999999,465.20535922330095,1670.3339177405121,542.9233999999999,1982.532194978156,2322.3572098852601,645.02372065313318,799.69381416593103,125.3441,42]
[null,"Male 20-24",{"$f":"SUM(C83,C121,C159,C197,C235)","v":2383.8520684466021},1390.4675653020172,1332.4093122683144,845.53884121800547,611.63139999999999,2951.1179435127979,464.07215251544579,1228.7310000000002,402.13110000000006,983.80752281553407,983.80752281553407,1968.4578263459841,991.81568826125329,546.32422665489844,637.39300313327453,294.59100803177409,5923.3069200194586,3544.6528060458954,145.91829999999999,1024.7123785525155,2926.0385172550755,2926.0385172550755,1988.526574580759,8265.8662294792593,5638.1835901429795,4300.065401941747,11799.543685083849,2144.7693323918797,1526.3329170344216,648.22609999999997,587.78037798841092,4914.7276310679617,{"$f":"SUM(AI83,AI121,AI159,AI197,AI235)","v":5971.394177581642},600.67319999999995,654.6728714916153,1441.8305145631068,2752.2562655339807,122.47409999999999,122.47409999999999,846.68111531332738,1421.8772461606357,42252.691999999995,464.07215251544579,151.1961,151.1961,575.79813150926748,2167.5448766990289,826.59989999999993,2881.4491616545556,3592.4887356575459,920.12060017652254,1060.4966295675199,145.91829999999999,43]
[null,"Male 25-29",{"$f":"SUM(C84,C122,C160,C198,C236)","v":3875.5496252427188},2057.9633007884891,1677.0167875110328,983.19742983230367,664.29610000000002,3370.476298852604,511.48567312444845,1266.8220000000001,412.26260000000002,1128.5010549867611,1128.5010549867611,2582.9579193733448,1179.1874488967344,597.17012250661969,677.27350445719344,314.86536125330986,8131.2564173833107,5928.2993784201244,180.59739999999999,1240.6058204766109,3400.7027584289499,3400.7027584289499,2218.9473309796999,12284.366110061783,7421.9993995400591,6191.8857786407771,16385.630158517211,2549.0467087378643,1881.7480163283317,777.92210000000011,724.64830442457503,5710.7147306266552,{"$f":"SUM(AI84,AI122,AI160,AI198,AI236)","v":8847.905503442189},715.91410000000008,791.43784192409544,1545.4684300970878,3208.4516902912624,160.08259999999999,160.08259999999999,988.14999280670781,1897.244063636364,55018.754800000002,511.48567312444845,181.2989,181.2989,684.46179567519857,2508.4015180052957,854.55939999999998,3474.0595805159383,4453.3274121800523,1116.3029894086496,1297.4791812444837,180.59739999999999,44]
[null,"Male 30-34",{"$f":"SUM(C85,C123,C161,C199,C237)","v":3103.9963660194176},1835.4159129104219,1795.0365113415712,1000.7604332744927,555.30960000000005,3077.8859536187115,503.62907290379525,1079.4369000000002,425.53570000000002,1058.4758150044131,1058.4758150044131,1968.0726410414827,1099.0891596646072,514.58915163283325,667.07145119152688,270.5387068843778,7570.26246320267,5166.9342623565753,181.12800000000001,1249.7693864077671,3298.5035144748463,3298.5035144748463,2067.333591129744,10826.734276257721,6884.6084488229844,5595.8790757281558,14684.15788172992,2513.4723043248009,1963.2989585172108,742.43209999999999,756.05301508116202,5755.5387532215364,{"$f":"SUM(AI85,AI123,AI161,AI199,AI237)","v":8097.0783304501347},731.31850000000009,781.60138137687579,1400.0352825242721,3233.4563300970872,140.71440000000004,140.71440000000004,1001.0880571932921,1812.4294299205651,50858.897700000001,503.62907290379525,168.18430000000001,168.18430000000001,614.76017519858783,2528.2649155339805,653.90120000000002,3188.2504535966577,3916.5369514563104,1054.5781019417475,1330.5020594880848,181.12800000000001,45]
[null,"Male 35-39",{"$f":"SUM(C86,C124,C162,C200,C238)","v":2366.0566368932041},1540.2110770800496,1709.0758505736985,959.29299421888811,586.20870000000002,3143.8982841129746,529.43530410414837,1063.6946,456.27650000000006,1004.1300062224186,1004.1300062224186,1546.1446161076788,1089.7392760812004,459.38502383053844,682.38166218005301,278.61072056487205,6915.3778526331243,4144.4311615180941,212.32230000000001,1322.2324890997354,3326.2576490732577,3326.2576490732577,2120.3124565313328,9317.8124263901154,6458.7544672155555,4745.8414834951454,13031.62558022948,2502.5832729920567,1918.7842100617829,700.69169999999997,738.91068958900973,6061.7420792586063,{"$f":"SUM(AI86,AI124,AI162,AI200,AI238)","v":7059.2446275816428},750.54430000000013,707.35599823477503,1431.4395436893208,3380.413193203884,132.82590000000002,132.82590000000002,962.0139991615182,1671.5940065313328,47362.375300000007,529.43530410414837,175.59040000000002,175.59040000000002,652.64521712268311,2687.2562571050312,607.41810000000009,2986.8894046602427,3442.6163439099732,1023.1020317740512,1324.6434970432483,212.32230000000001,46]
[null,"Male 40-44",{"$f":"SUM(C87,C125,C163,C201,C239)","v":1994.6812169902917},1466.8468347831449,1847.3846187555166,1054.5072151368054,668.82860000000005,3562.4405308031774,649.85910450132405,1155.3674000000001,497.67290000000003,1200.1717101059137,1200.1717101059137,1384.3888507943514,1242.4259879964698,534.4169405119153,834.17892616946165,325.27745489849963,6926.2017035558993,3585.2355456751984,253.57180000000002,1413.0824390556047,3533.284069991174,3533.284069991174,2281.8699274051191,7917.024139541043,6207.7095946340723,4618.3684543689324,11893.680759752868,2657.5289152691967,1987.4975198587824,718.78290000000015,765.37171572201555,6387.9673712268323,{"$f":"SUM(AI87,AI125,AI163,AI201,AI239)","v":6762.6044669902931},781.37970000000007,775.1508929391,1640.5679436893206,3538.9446111650491,156.32040000000003,156.32040000000003,923.78056059135042,1631.8881228596649,47447.050199999998,649.85910450132405,192.88140000000001,192.88140000000001,722.09310944395406,2854.7241176522507,657.69450000000006,3027.6305121083096,3334.4329925419242,1006.5175895851721,1430.7530034863198,253.57180000000002,47]
[null,"Male 45-49",{"$f":"SUM(C88,C126,C164,C202,C240)","v":1905.5666344660192},1459.6426097050899,1905.6837372462492,1151.9523534863197,776.34199999999998,4105.6525791262129,769.9547762577231,1364.5574000000001,597.67970000000003,1440.8958309796999,1440.8958309796999,1598.3771990732566,1413.3458735216241,634.73802506619597,882.39351804942623,343.80968711385708,7190.7871143279135,3236.1395997352165,288.83479999999997,1587.8277770962047,4018.6589830538396,4018.6589830538396,2620.6793757722862,7966.9840999117387,6737.482261168795,4726.118586407767,12712.048330450132,3026.2011466902031,2247.2935304501325,855.62830000000008,865.41738439694541,7108.1049338040611,{"$f":"SUM(AI88,AI126,AI164,AI202,AI240)","v":6622.1262661076789},863.93899999999996,905.61919443954127,1909.0015699029129,3876.2378257281557,184.59119999999999,184.59119999999999,1068.247626831421,1923.7406085613418,51502.059699999998,769.9547762577231,181.465,181.465,835.23272153574578,3236.7745277140339,766.8777,3443.407819048376,3792.1916957193293,1186.6042493380407,1525.8738933362756,288.83479999999997,48]
[null,"Male 50-54",{"$f":"SUM(C89,C127,C165,C203,C241)","v":1878.7004902912622},1467.0864517140226,1946.4766437775816,1286.25630842895,868.07220000000007,4424.4013597087378,857.35358901147413,1423.0896,592.86590000000001,1668.8129462488969,1668.8129462488969,1646.5880244042366,1494.1555016769639,721.85597458075904,966.15826879964698,392.59841209179172,7291.113079230995,3221.5055004413066,285.63140000000004,1568.8727484995586,3992.8235176522512,3992.8235176522512,2653.2869437334512,8016.4125775816428,6981.3844115875436,4733.0904582524272,13420.496369991173,3370.0035619593996,2498.7875441306264,1017.4936,962.26601078322278,7144.519820476612,{"$f":"SUM(AI89,AI127,AI165,AI203,AI241)","v":6688.5419816416597},892.98689999999999,892.60271800529586,2071.7623291262134,3909.6013349514565,213.46790000000001,213.46790000000001,1205.1167898058254,2032.5692643424536,53634.113800000006,857.35358901147413,210.27680000000001,210.27680000000001,913.4858181818181,3240.1657014121806,830.22370000000001,3580.4066730923628,4121.3026362312448,1378.4969549867608,1505.9876229479257,285.63140000000004,49]
[null,"Male 55-59",{"$f":"SUM(C90,C128,C166,C204,C242)","v":1487.4922461165047},1123.0450432976902,1448.0894816416594,930.97430556045924,693.19510000000014,3668.985564121801,643.71915842894975,1109.8266000000001,468.49379999999996,1295.6238672550751,1295.6238672550751,1431.9142578111209,1194.7307640776701,560.70889885260374,715.89510516328323,304.48946213592239,5607.3251349826705,2402.5223009708739,229.24090000000001,1158.1087602824362,3300.9534198587826,3300.9534198587826,2009.2655732568403,6478.1790638128869,5572.4921061752066,3586.2118252427185,10799.298683142099,2655.8307669902911,1959.4203684907325,829.81290000000001,754.55939656164867,5625.157084730803,{"$f":"SUM(AI90,AI128,AI166,AI204,AI242)","v":4976.1468164607249},681.53600000000006,645.25544766107691,1770.4085300970876,2995.0664053398059,161.25530000000001,161.25530000000001,861.6070485436893,1662.5089131509269,42080.176299999999,643.71915842894975,143.1258,143.1258,759.3868826125331,2632.2855975286852,641.33280000000002,2863.21950327881,3192.1915691968225,1089.7940970873788,1103.514534863195,229.24090000000001,50]
[null,"Male 60-64",{"$f":"SUM(C91,C129,C167,C205,C243)","v":1307.7373834951454},989.13534828119816,1277.4514948808473,852.34003848190673,663.39660000000003,3248.3819305825241,590.28847299205654,922.13520000000005,394.46160000000003,1207.5008170344222,1207.5008170344222,1158.645129214475,1023.2660275375111,485.61866337157994,579.12673305383942,260.12361624007065,4750.4217218987487,2020.7452639011476,223.31570000000002,956.09845052956769,2825.8545109885263,2825.8545109885263,1663.8225589143867,5260.8976424536631,4620.8464647589108,3164.9372737864078,8841.3381987643425,2446.0450054721973,1777.6605339805824,685.54230000000007,684.5649261291685,4765.6915376875559,{"$f":"SUM(AI91,AI129,AI167,AI205,AI243)","v":4137.7601177405122},608.10840000000007,574.8415195057371,1557.3093038834954,2513.7781432038837,141.70099999999999,141.70099999999999,798.4224194616063,1295.2342640776701,35996.662900000003,590.28847299205654,134.14580000000001,134.14580000000001,705.41593380406005,2253.2214054721976,527.67360000000008,2478.3399817287618,2793.204583186231,942.17256619594002,875.96667524271857,223.31570000000002,51]
[null,"Male 65-69",{"$f":"SUM(C92,C130,C168,C206,C244)","v":866.75649368932045},709.46450962183758,976.76177621359238,709.50196107678755,539.47019999999998,2444.5472596646073,484.8558427184467,692.04210000000012,298.87950000000001,997.42540701676978,997.42540701676978,839.17889721977065,773.80160423654013,336.25939346866727,436.06299638128866,164.98566593115623,3481.0778732986132,1317.7160428067082,182.61310000000003,761.82310189761699,2160.181408252427,2160.181408252427,1289.2616372462489,3340.952924536628,3107.1665100590603,2292.2433786407769,5791.2276900264778,1896.0427624007064,1350.6566725507503,492.56139999999994,520.12865651022673,3341.5020185348635,{"$f":"SUM(AI92,AI130,AI168,AI206,AI244)","v":2896.6357028243601},444.21590000000003,435.13152621359234,1159.3173135922332,1785.9189310679612,109.19200000000001,109.19200000000001,590.20972069726406,894.14027828773169,26004.6296,484.8558427184467,103.80330000000001,103.80330000000001,535.78641791703444,1557.0445434245366,393.16260000000005,1888.1563114291653,2121.0664611650482,606.43442144748451,664.145162886143,182.61310000000003,52]
[null,"Male 70-74",{"$f":"SUM(C93,C131,C169,C207,C245)","v":557.28136941747562},468.44099314034054,657.6844776257725,497.07316478376009,419.21730000000002,1838.9152775375114,355.54089779346873,495.67780000000005,217.51420000000002,754.90028645189773,754.90028645189773,594.48967665489852,561.48006337157994,243.47943795233897,326.73371862312445,119.34915004413064,2541.9716047482962,902.03133296557814,127.66800000000001,527.56265573698147,1611.5638781994705,1611.5638781994705,906.85124205648731,2394.2428829655778,2278.7333848592953,1557.1355067961167,4222.5207187996466,1429.26992533098,1004.5736297440423,362.19409999999999,386.85444126789213,2472.5231798764348,{"$f":"SUM(AI93,AI131,AI169,AI207,AI245)","v":2085.7294167255077},333.71940000000001,332.21807316857905,873.31200873786418,1291.2347810679612,87.649300000000011,87.649300000000011,441.67382952338926,673.75005075022091,18963.054800000002,355.54089779346873,73.714300000000009,73.714300000000009,418.29377228596644,1181.6651462488969,278.16360000000003,1383.0168812917677,1525.5003954986762,459.83454545454543,500.56269373345106,127.66800000000001,53]
[null,"Male 75-79",{"$f":"SUM(C94,C132,C170,C208,C246)","v":204.14883155339805},158.33076662749963,208.88180498676084,170.646878375993,134.0566,681.10518164165933,111.14773998234777,178.73840000000001,74.797600000000003,266.79269518976173,266.79269518976173,239.51418150926744,218.90727740511915,93.807641306266561,110.82546659311562,49.48644942630186,878.74166695251517,339.88761738746695,46.029900000000005,188.9112100617829,547.20984174757291,547.20984174757291,325.79080935569283,924.04243927625771,849.77074836823135,525.06905242718449,1610.857201765225,441.22651765225066,305.10165710503094,134.37970000000001,117.49256360566409,889.80748190644306,{"$f":"SUM(AI94,AI132,AI170,AI208,AI246)","v":743.21368318623138},108.3749,111.01655666372466,321.58426893203887,482.27717621359233,28.497299999999999,28.497299999999999,149.34940816416591,262.2262367166814,6755.4880000000003,111.14773998234777,21.5869,21.5869,147.59995586937333,408.07570097087387,103.94080000000001,485.69985061406788,553.73569938217122,154.48619947043247,174.13491910856138,46.029900000000005,54]
[null,"Male 80-84",{"$f":"SUM(C95,C133,C171,C209,C247)","v":152.21573300970874},112.97046989111172,143.47246615180936,114.57089721977054,86.096900000000019,445.45313296557822,73.478940291262163,108.9359,41.328400000000002,176.71832952338923,176.71832952338923,161.18657356575466,141.19385622241839,69.05867608120036,78.256677669902913,34.466008561341575,605.50488727810716,253.08553265666376,27.929200000000002,132.83574633715799,375.9552583848191,375.9552583848191,214.7842314651368,635.65929240953221,571.3996783274589,365.56144077669904,1098.6909881729921,296.67933053839369,209.51997793468666,87.653099999999995,80.684711999693008,584.5073823477494,{"$f":"SUM(AI95,AI133,AI171,AI209,AI247)","v":516.7588425419242},69.616600000000005,69.863632127096224,209.12407572815539,313.02062427184472,17.055700000000002,17.055700000000002,105.47954126213591,170.94514307149163,4558.4476000000004,73.478940291262163,12.898099999999999,12.898099999999999,98.808947925860565,271.75687758164167,67.607500000000002,332.73323511802107,378.30149686672547,105.12563989408652,108.82648808473083,27.929200000000002,55]
[null,"Male 85-89",{"$f":"SUM(C96,C134,C172,C210,C248)","v":78.470328155339814},56.285428167342317,69.247141968225947,62.667679832303634,43.009500000000003,216.55098724624889,42.735017519858793,54.891500000000008,22.821900000000003,86.829611562224187,86.829611562224187,87.666787864077676,69.269146337157977,35.060021888790821,37.519966946160636,17.276086142983232,305.38397475368123,129.93815335392765,16.4389,59.40629752868491,184.62811496028246,184.62811496028246,101.32679589585173,304.98579373345103,273.35185420774297,185.49062912621361,533.98380794351272,151.37189876434246,107.89492939099733,41.364899999999999,41.549600138148058,272.16492391879967,{"$f":"SUM(AI96,AI134,AI172,AI210,AI248)","v":257.82528693733457},39.369500000000009,38.263600529567533,95.373850485436904,138.28500339805828,8.6976000000000013,8.6976000000000013,56.9742660635481,88.590469549867606,2257.9132999999997,42.735017519858793,6.8012000000000015,6.8012000000000015,51.451914827890555,133.83172365401589,32.069600000000001,172.32771901719352,205.60670525154458,47.306307590467789,48.361351059135046,16.4389,56]
[null,"Male 90+",{"$f":"SUM(C97,C135,C173,C211,C249)","v":32.597039320388348},25.094720671080267,32.902674580759054,26.925303618711389,16.4465,85.842751323918804,15.337049382171228,21.508199999999999,9.9636999999999993,38.17834210061784,38.17834210061784,36.29532775816417,26.437180759046779,16.348129214474845,16.594285789938215,8.1427889673433373,134.21529085803994,62.716885260370695,5.4259000000000004,25.896082303618712,81.26566959399824,81.26566959399824,42.103499338040606,132.20418111209179,116.34121442198092,81.648629126213592,236.99979523389234,61.733944042365401,45.185633274492496,18.222799999999999,17.400678652289042,107.17730467784642,{"$f":"SUM(AI97,AI135,AI173,AI211,AI249)","v":117.3651016328332},16.051600000000001,15.976827272727276,37.385873786407771,55.435797087378653,3.9616000000000007,3.9616000000000007,23.566130229479256,39.68793848190645,958.96380000000011,15.337049382171228,2.4975000000000005,2.4975000000000005,21.450693292144749,51.745355428067086,11.544500000000001,73.821225786079879,85.989615357458078,21.848095763459842,20.557831112091794,5.4259000000000004,57]
["SIMD Q1 (most deprived)","Female 0-4",{"$f":"'Population 2016'!C60*'Prevalence Rates'!C60","v":0},{"$f":"'Population 2016'!D60*'Prevalence Rates'!D60","v":0},{"$f":"'Population 2016'!E60*'Prevalence Rates'!E60","v":0},{"$f":"'Population 2016'!F60*'Prevalence Rates'!F60","v":0},{"$f":"'Population 2016'!G60*'Prevalence Rates'!G60","v":0},{"$f":"'Population 2016'!H60*'Prevalence Rates'!H60","v":0},{"$f":"'Population 2016'!I60*'Prevalence Rates'!I60","v":0},{"$f":"'Population 2016'!J60*'Prevalence Rates'!J60","v":0},{"$f":"'Population 2016'!K60*'Prevalence Rates'!K60","v":0},{"$f":"'Population 2016'!L60*'Prevalence Rates'!L60","v":0},{"$f":"'Population 2016'!M60*'Prevalence Rates'!M60","v":0},{"$f":"'Population 2016'!N60*'Prevalence Rates'!N60","v":0},{"$f":"'Population 2016'!O60*'Prevalence Rates'!O60","v":0},{"$f":"'Population 2016'!P60*'Prevalence Rates'!P60","v":0},{"$f":"'Population 2016'!Q60*'Prevalence Rates'!Q60","v":0},{"$f":"'Population 2016'!R60*'Prevalence Rates'!R60","v":0},{"$f":"'Population 2016'!S60*'Prevalence Rates'!S60","v":0},{"$f":"'Population 2016'!T60*'Prevalence Rates'!T60","v":0},{"$f":"'Population 2016'!U60*'Prevalence Rates'!U60","v":0},{"$f":"'Population 2016'!V60*'Prevalence Rates'!V60","v":0},{"$f":"'Population 2016'!W60*'Prevalence Rates'!W60","v":0},{"$f":"'Population 2016'!X60*'Prevalence Rates'!X60","v":0},{"$f":"'Population 2016'!Y60*'Prevalence Rates'!Y60","v":0},{"$f":"'Population 2016'!Z60*'Prevalence Rates'!Z60","v":0},{"$f":"'Population 2016'!AA60*'Prevalence Rates'!AA60","v":0},{"$f":"'Population 2016'!AB60*'Prevalence Rates'!AB60","v":0},{"$f":"'Population 2016'!AC60*'Prevalence Rates'!AC60","v":0},{"$f":"'Population 2016'!AD60*'Prevalence Rates'!AD60","v":0},{"$f":"'Population 2016'!AE60*'Prevalence Rates'!AE60","v":0},{"$f":"'Population 2016'!AF60*'Prevalence Rates'!AF60","v":0},{"$f":"'Population 2016'!AG60*'Prevalence Rates'!AG60","v":0},{"$f":"'Population 2016'!AH60*'Prevalence Rates'!AH60","v":0},{"$f":"'Population 2016'!AI60*'Prevalence Rates'!AI60","v":0},{"$f":"'Population 2016'!AJ60*'Prevalence Rates'!AJ60","v":0},{"$f":"'Population 2016'!AK60*'Prevalence Rates'!AK60","v":0},{"$f":"'Population 2016'!AL60*'Prevalence Rates'!AL60","v":0},{"$f":"'Population 2016'!AM60*'Prevalence Rates'!AM60","v":0},{"$f":"'Population 2016'!AN60*'Prevalence Rates'!AN60","v":0},{"$f":"'Population 2016'!AO60*'Prevalence Rates'!AO60","v":0},{"$f":"'Population 2016'!AP60*'Prevalence Rates'!AP60","v":0},{"$f":"'Population 2016'!AQ60*'Prevalence Rates'!AQ60","v":0},{"$f":"'Population 2016'!AR60*'Prevalence Rates'!AR60","v":0},{"$f":"'Population 2016'!AS60*'Prevalence Rates'!AS60","v":0},{"$f":"'Population 2016'!AT60*'Prevalence Rates'!AT60","v":0},{"$f":"'Population 2016'!AU60*'Prevalence Rates'!AU60","v":0},{"$f":"'Population 2016'!AV60*'Prevalence Rates'!AV60","v":0},{"$f":"'Population 2016'!AW60*'Prevalence Rates'!AW60","v":0},{"$f":"'Population 2016'!AX60*'Prevalence Rates'!AX60","v":0},{"$f":"'Population 2016'!AY60*'Prevalence Rates'!AY60","v":0},{"$f":"'Population 2016'!AZ60*'Prevalence Rates'!AZ60","v":0},{"$f":"'Population 2016'!BA60*'Prevalence Rates'!BA60","v":0},{"$f":"'Population 2016'!BB60*'Prevalence Rates'!BB60","v":0},{"$f":"'Population 2016'!BC60*'Prevalence Rates'!BC60","v":0},58]
[null,"Female 5-9",{"$f":"'Population 2016'!C61*'Prevalence Rates'!C61","v":0},{"$f":"'Population 2016'!D61*'Prevalence Rates'!D61","v":0},{"$f":"'Population 2016'!E61*'Prevalence Rates'!E61","v":0},{"$f":"'Population 2016'!F61*'Prevalence Rates'!F61","v":0},{"$f":"'Population 2016'!G61*'Prevalence Rates'!G61","v":0},{"$f":"'Population 2016'!H61*'Prevalence Rates'!H61","v":0},{"$f":"'Population 2016'!I61*'Prevalence Rates'!I61","v":0},{"$f":"'Population 2016'!J61*'Prevalence Rates'!J61","v":0},{"$f":"'Population 2016'!K61*'Prevalence Rates'!K61","v":0},{"$f":"'Population 2016'!L61*'Prevalence Rates'!L61","v":0},{"$f":"'Population 2016'!M61*'Prevalence Rates'!M61","v":0},{"$f":"'Population 2016'!N61*'Prevalence Rates'!N61","v":0},{"$f":"'Population 2016'!O61*'Prevalence Rates'!O61","v":0},{"$f":"'Population 2016'!P61*'Prevalence Rates'!P61","v":0},{"$f":"'Population 2016'!Q61*'Prevalence Rates'!Q61","v":0},{"$f":"'Population 2016'!R61*'Prevalence Rates'!R61","v":0},{"$f":"'Population 2016'!S61*'Prevalence Rates'!S61","v":0},{"$f":"'Population 2016'!T61*'Prevalence Rates'!T61","v":0},{"$f":"'Population 2016'!U61*'Prevalence Rates'!U61","v":0},{"$f":"'Population 2016'!V61*'Prevalence Rates'!V61","v":0},{"$f":"'Population 2016'!W61*'Prevalence Rates'!W61","v":0},{"$f":"'Population 2016'!X61*'Prevalence Rates'!X61","v":0},{"$f":"'Population 2016'!Y61*'Prevalence Rates'!Y61","v":0},{"$f":"'Population 2016'!Z61*'Prevalence Rates'!Z61","v":0},{"$f":"'Population 2016'!AA61*'Prevalence Rates'!AA61","v":0},{"$f":"'Population 2016'!AB61*'Prevalence Rates'!AB61","v":0},{"$f":"'Population 2016'!AC61*'Prevalence Rates'!AC61","v":0},{"$f":"'Population 2016'!AD61*'Prevalence Rates'!AD61","v":0},{"$f":"'Population 2016'!AE61*'Prevalence Rates'!AE61","v":0},{"$f":"'Population 2016'!AF61*'Prevalence Rates'!AF61","v":0},{"$f":"'Population 2016'!AG61*'Prevalence Rates'!AG61","v":0},{"$f":"'Population 2016'!AH61*'Prevalence Rates'!AH61","v":0},{"$f":"'Population 2016'!AI61*'Prevalence Rates'!AI61","v":0},{"$f":"'Population 2016'!AJ61*'Prevalence Rates'!AJ61","v":0},{"$f":"'Population 2016'!AK61*'Prevalence Rates'!AK61","v":0},{"$f":"'Population 2016'!AL61*'Prevalence Rates'!AL61","v":0},{"$f":"'Population 2016'!AM61*'Prevalence Rates'!AM61","v":0},{"$f":"'Population 2016'!AN61*'Prevalence Rates'!AN61","v":0},{"$f":"'Population 2016'!AO61*'Prevalence Rates'!AO61","v":0},{"$f":"'Population 2016'!AP61*'Prevalence Rates'!AP61","v":0},{"$f":"'Population 2016'!AQ61*'Prevalence Rates'!AQ61","v":0},{"$f":"'Population 2016'!AR61*'Prevalence Rates'!AR61","v":0},{"$f":"'Population 2016'!AS61*'Prevalence Rates'!AS61","v":0},{"$f":"'Population 2016'!AT61*'Prevalence Rates'!AT61","v":0},{"$f":"'Population 2016'!AU61*'Prevalence Rates'!AU61","v":0},{"$f":"'Population 2016'!AV61*'Prevalence Rates'!AV61","v":0},{"$f":"'Population 2016'!AW61*'Prevalence Rates'!AW61","v":0},{"$f":"'Population 2016'!AX61*'Prevalence Rates'!AX61","v":0},{"$f":"'Population 2016'!AY61*'Prevalence Rates'!AY61","v":0},{"$f":"'Population 2016'!AZ61*'Prevalence Rates'!AZ61","v":0},{"$f":"'Population 2016'!BA61*'Prevalence Rates'!BA61","v":0},{"$f":"'Population 2016'!BB61*'Prevalence Rates'!BB61","v":0},{"$f":"'Population 2016'!BC61*'Prevalence Rates'!BC61","v":0},59]
[null,"Female 10-15",{"$f":"'Population 2016'!C62*'Prevalence Rates'!C62","v":0},{"$f":"'Population 2016'!D62*'Prevalence Rates'!D62","v":0},{"$f":"'Population 2016'!E62*'Prevalence Rates'!E62","v":0},{"$f":"'Population 2016'!F62*'Prevalence Rates'!F62","v":0},{"$f":"'Population 2016'!G62*'Prevalence Rates'!G62","v":0},{"$f":"'Population 2016'!H62*'Prevalence Rates'!H62","v":0},{"$f":"'Population 2016'!I62*'Prevalence Rates'!I62","v":0},{"$f":"'Population 2016'!J62*'Prevalence Rates'!J62","v":0},{"$f":"'Population 2016'!K62*'Prevalence Rates'!K62","v":0},{"$f":"'Population 2016'!L62*'Prevalence Rates'!L62","v":0},{"$f":"'Population 2016'!M62*'Prevalence Rates'!M62","v":0},{"$f":"'Population 2016'!N62*'Prevalence Rates'!N62","v":0},{"$f":"'Population 2016'!O62*'Prevalence Rates'!O62","v":0},{"$f":"'Population 2016'!P62*'Prevalence Rates'!P62","v":0},{"$f":"'Population 2016'!Q62*'Prevalence Rates'!Q62","v":0},{"$f":"'Population 2016'!R62*'Prevalence Rates'!R62","v":0},{"$f":"'Population 2016'!S62*'Prevalence Rates'!S62","v":0},{"$f":"'Population 2016'!T62*'Prevalence Rates'!T62","v":0},{"$f":"'Population 2016'!U62*'Prevalence Rates'!U62","v":0},{"$f":"'Population 2016'!V62*'Prevalence Rates'!V62","v":0},{"$f":"'Population 2016'!W62*'Prevalence Rates'!W62","v":0},{"$f":"'Population 2016'!X62*'Prevalence Rates'!X62","v":0},{"$f":"'Population 2016'!Y62*'Prevalence Rates'!Y62","v":0},{"$f":"'Population 2016'!Z62*'Prevalence Rates'!Z62","v":0},{"$f":"'Population 2016'!AA62*'Prevalence Rates'!AA62","v":0},{"$f":"'Population 2016'!AB62*'Prevalence Rates'!AB62","v":0},{"$f":"'Population 2016'!AC62*'Prevalence Rates'!AC62","v":0},{"$f":"'Population 2016'!AD62*'Prevalence Rates'!AD62","v":0},{"$f":"'Population 2016'!AE62*'Prevalence Rates'!AE62","v":0},{"$f":"'Population 2016'!AF62*'Prevalence Rates'!AF62","v":0},{"$f":"'Population 2016'!AG62*'Prevalence Rates'!AG62","v":0},{"$f":"'Population 2016'!AH62*'Prevalence Rates'!AH62","v":0},{"$f":"'Population 2016'!AI62*'Prevalence Rates'!AI62","v":0},{"$f":"'Population 2016'!AJ62*'Prevalence Rates'!AJ62","v":0},{"$f":"'Population 2016'!AK62*'Prevalence Rates'!AK62","v":0},{"$f":"'Population 2016'!AL62*'Prevalence Rates'!AL62","v":0},{"$f":"'Population 2016'!AM62*'Prevalence Rates'!AM62","v":0},{"$f":"'Population 2016'!AN62*'Prevalence Rates'!AN62","v":0},{"$f":"'Population 2016'!AO62*'Prevalence Rates'!AO62","v":0},{"$f":"'Population 2016'!AP62*'Prevalence Rates'!AP62","v":0},{"$f":"'Population 2016'!AQ62*'Prevalence Rates'!AQ62","v":0},{"$f":"'Population 2016'!AR62*'Prevalence Rates'!AR62","v":0},{"$f":"'Population 2016'!AS62*'Prevalence Rates'!AS62","v":0},{"$f":"'Population 2016'!AT62*'Prevalence Rates'!AT62","v":0},{"$f":"'Population 2016'!AU62*'Prevalence Rates'!AU62","v":0},{"$f":"'Population 2016'!AV62*'Prevalence Rates'!AV62","v":0},{"$f":"'Population 2016'!AW62*'Prevalence Rates'!AW62","v":0},{"$f":"'Population 2016'!AX62*'Prevalence Rates'!AX62","v":0},{"$f":"'Population 2016'!AY62*'Prevalence Rates'!AY62","v":0},{"$f":"'Population 2016'!AZ62*'Prevalence Rates'!AZ62","v":0},{"$f":"'Population 2016'!BA62*'Prevalence Rates'!BA62","v":0},{"$f":"'Population 2016'!BB62*'Prevalence Rates'!BB62","v":0},{"$f":"'Population 2016'!BC62*'Prevalence Rates'!BC62","v":0},60]
[null,"Female 16-19",{"$f":"'Population 2016'!C63*'Prevalence Rates'!C63","v":90.022132765957437},{"$f":"'Population 2016'!D63*'Prevalence Rates'!D63","v":63.588767221192775},{"$f":"'Population 2016'!E63*'Prevalence Rates'!E63","v":23.333651063829787},{"$f":"'Population 2016'!F63*'Prevalence Rates'!F63","v":32.130296170212766},{"$f":"'Population 2016'!G63*'Prevalence Rates'!G63","v":40.412799999999997},{"$f":"'Population 2016'!H63*'Prevalence Rates'!H63","v":758.50708936170236},{"$f":"'Population 2016'!I63*'Prevalence Rates'!I63","v":47.799384680851063},{"$f":"'Population 2016'!J63*'Prevalence Rates'!J63","v":164.41919999999999},{"$f":"'Population 2016'!K63*'Prevalence Rates'!K63","v":75.843199999999996},{"$f":"'Population 2016'!L63*'Prevalence Rates'!L63","v":103.70282553191488},{"$f":"'Population 2016'!M63*'Prevalence Rates'!M63","v":103.70282553191488},{"$f":"'Population 2016'!N63*'Prevalence Rates'!N63","v":452.85319234042549},{"$f":"'Population 2016'!O63*'Prevalence Rates'!O63","v":245.8116510638298},{"$f":"'Population 2016'!P63*'Prevalence Rates'!P63","v":23.708361702127654},{"$f":"'Population 2016'!Q63*'Prevalence Rates'!Q63","v":25.870640851063833},{"$f":"'Population 2016'!R63*'Prevalence Rates'!R63","v":20.039289361702128},{"$f":"'Population 2016'!S63*'Prevalence Rates'!S63","v":888.30677796553482},{"$f":"'Population 2016'!T63*'Prevalence Rates'!T63","v":316.21632},{"$f":"'Population 2016'!U63*'Prevalence Rates'!U63","v":0},{"$f":"'Population 2016'!V63*'Prevalence Rates'!V63","v":87.096592340425545},{"$f":"'Population 2016'!W63*'Prevalence Rates'!W63","v":521.88608170212763},{"$f":"'Population 2016'!X63*'Prevalence Rates'!X63","v":521.88608170212763},{"$f":"'Population 2016'!Y63*'Prevalence Rates'!Y63","v":217.78565106382976},{"$f":"'Population 2016'!Z63*'Prevalence Rates'!Z63","v":2021.4260825531915},{"$f":"'Population 2016'!AA63*'Prevalence Rates'!AA63","v":1495.4913640360492},{"$f":"'Population 2016'!AB63*'Prevalence Rates'!AB63","v":120.98221276595744},{"$f":"'Population 2016'!AC63*'Prevalence Rates'!AC63","v":2732.6343829787234},{"$f":"'Population 2016'!AD63*'Prevalence Rates'!AD63","v":144.44587148936168},{"$f":"'Population 2016'!AE63*'Prevalence Rates'!AE63","v":104.78617361702128},{"$f":"'Population 2016'!AF63*'Prevalence Rates'!AF63","v":190.4384},{"$f":"'Population 2016'!AG63*'Prevalence Rates'!AG63","v":55.981583718778914},{"$f":"'Population 2016'!AH63*'Prevalence Rates'!AH63","v":1289.0116629787235},{"$f":"'Population 2016'!AI63*'Prevalence Rates'!AI63","v":631.82529957446798},{"$f":"'Population 2016'!AJ63*'Prevalence Rates'!AJ63","v":56.744},{"$f":"'Population 2016'!AK63*'Prevalence Rates'!AK63","v":5.4252799999999999},{"$f":"'Population 2016'!AL63*'Prevalence Rates'!AL63","v":365.40353276595749},{"$f":"'Population 2016'!AM63*'Prevalence Rates'!AM63","v":966.71722723404253},{"$f":"'Population 2016'!AN63*'Prevalence Rates'!AN63","v":0},{"$f":"'Population 2016'!AO63*'Prevalence Rates'!AO63","v":0},{"$f":"'Population 2016'!AP63*'Prevalence Rates'!AP63","v":39.634373617021275},{"$f":"'Population 2016'!AQ63*'Prevalence Rates'!AQ63","v":334.81080170212761},{"$f":"'Population 2016'!AR63*'Prevalence Rates'!AR63","v":6682.5055999999995},{"$f":"'Population 2016'!AS63*'Prevalence Rates'!AS63","v":47.799384680851063},{"$f":"'Population 2016'!AT63*'Prevalence Rates'!AT63","v":0},{"$f":"'Population 2016'!AU63*'Prevalence Rates'!AU63","v":0},{"$f":"'Population 2016'!AV63*'Prevalence Rates'!AV63","v":140.97100085106379},{"$f":"'Population 2016'!AW63*'Prevalence Rates'!AW63","v":380.89299574468089},{"$f":"'Population 2016'!AX63*'Prevalence Rates'!AX63","v":88.575999999999993},{"$f":"'Population 2016'!AY63*'Prevalence Rates'!AY63","v":551.26092850361397},{"$f":"'Population 2016'!AZ63*'Prevalence Rates'!AZ63","v":413.06569531914892},{"$f":"'Population 2016'!BA63*'Prevalence Rates'!BA63","v":297.13817446808508},{"$f":"'Population 2016'!BB63*'Prevalence Rates'!BB63","v":214.26322382978719},{"$f":"'Population 2016'!BC63*'Prevalence Rates'!BC63","v":0},61]
[null,"Female 20-24",{"$f":"'Population 2016'!C64*'Prevalence Rates'!C64","v":191.81827744680851},{"$f":"'Population 2016'!D64*'Prevalence Rates'!D64","v":130.36361046181901},{"$f":"'Population 2016'!E64*'Prevalence Rates'!E64","v":41.66723404255319},{"$f":"'Population 2016'!F64*'Prevalence Rates'!F64","v":46.313940425531911},{"$f":"'Population 2016'!G64*'Prevalence Rates'!G64","v":57.574399999999997},{"$f":"'Population 2016'!H64*'Prevalence Rates'!H64","v":1135.5214987234044},{"$f":"'Population 2016'!I64*'Prevalence Rates'!I64","v":61.37554127659574},{"$f":"'Population 2016'!J64*'Prevalence Rates'!J64","v":264.89760000000001},{"$f":"'Population 2016'!K64*'Prevalence Rates'!K64","v":122.34559999999999},{"$f":"'Population 2016'!L64*'Prevalence Rates'!L64","v":165.26609021276596},{"$f":"'Population 2016'!M64*'Prevalence Rates'!M64","v":165.26609021276596},{"$f":"'Population 2016'!N64*'Prevalence Rates'!N64","v":771.18129021276582},{"$f":"'Population 2016'!O64*'Prevalence Rates'!O64","v":385.10491999999999},{"$f":"'Population 2016'!P64*'Prevalence Rates'!P64","v":37.136106382978717},{"$f":"'Population 2016'!Q64*'Prevalence Rates'!Q64","v":37.403336170212768},{"$f":"'Population 2016'!R64*'Prevalence Rates'!R64","v":27.479025531914893},{"$f":"'Population 2016'!S64*'Prevalence Rates'!S64","v":1233.6609100954045},{"$f":"'Population 2016'!T64*'Prevalence Rates'!T64","v":499.55450553191486},{"$f":"'Population 2016'!U64*'Prevalence Rates'!U64","v":0},{"$f":"'Population 2016'!V64*'Prevalence Rates'!V64","v":142.58851404255321},{"$f":"'Population 2016'!W64*'Prevalence Rates'!W64","v":641.44336340425536},{"$f":"'Population 2016'!X64*'Prevalence Rates'!X64","v":641.44336340425536},{"$f":"'Population 2016'!Y64*'Prevalence Rates'!Y64","v":353.39188510638292},{"$f":"'Population 2016'!Z64*'Prevalence Rates'!Z64","v":3441.6970417021275},{"$f":"'Population 2016'!AA64*'Prevalence Rates'!AA64","v":2383.5559053355109},{"$f":"'Population 2016'!AB64*'Prevalence Rates'!AB64","v":248.56345531914891},{"$f":"'Population 2016'!AC64*'Prevalence Rates'!AC64","v":4628.2874042553185},{"$f":"'Population 2016'!AD64*'Prevalence Rates'!AD64","v":213.3799668085106},{"$f":"'Population 2016'!AE64*'Prevalence Rates'!AE64","v":156.7892374468085},{"$f":"'Population 2016'!AF64*'Prevalence Rates'!AF64","v":313.61439999999999},{"$f":"'Population 2016'!AG64*'Prevalence Rates'!AG64","v":83.764007400555045},{"$f":"'Population 2016'!AH64*'Prevalence Rates'!AH64","v":1769.5670876595746},{"$f":"'Population 2016'!AI64*'Prevalence Rates'!AI64","v":955.41245021276586},{"$f":"'Population 2016'!AJ64*'Prevalence Rates'!AJ64","v":90.236800000000002},{"$f":"'Population 2016'!AK64*'Prevalence Rates'!AK64","v":11.867799999999999},{"$f":"'Population 2016'!AL64*'Prevalence Rates'!AL64","v":526.33254978723403},{"$f":"'Population 2016'!AM64*'Prevalence Rates'!AM64","v":1303.678529361702},{"$f":"'Population 2016'!AN64*'Prevalence Rates'!AN64","v":0},{"$f":"'Population 2016'!AO64*'Prevalence Rates'!AO64","v":0},{"$f":"'Population 2016'!AP64*'Prevalence Rates'!AP64","v":70.60549617021276},{"$f":"'Population 2016'!AQ64*'Prevalence Rates'!AQ64","v":616.16710638297866},{"$f":"'Population 2016'!AR64*'Prevalence Rates'!AR64","v":10414.323199999999},{"$f":"'Population 2016'!AS64*'Prevalence Rates'!AS64","v":61.37554127659574},{"$f":"'Population 2016'!AT64*'Prevalence Rates'!AT64","v":0},{"$f":"'Population 2016'!AU64*'Prevalence Rates'!AU64","v":0},{"$f":"'Population 2016'!AV64*'Prevalence Rates'!AV64","v":215.63662297872335},{"$f":"'Population 2016'!AW64*'Prevalence Rates'!AW64","v":539.0094008510639},{"$f":"'Population 2016'!AX64*'Prevalence Rates'!AX64","v":142.55199999999999},{"$f":"'Population 2016'!AY64*'Prevalence Rates'!AY64","v":795.09091262559616},{"$f":"'Population 2016'!AZ64*'Prevalence Rates'!AZ64","v":692.58010212765953},{"$f":"'Population 2016'!BA64*'Prevalence Rates'!BA64","v":463.97849106382978},{"$f":"'Population 2016'!BB64*'Prevalence Rates'!BB64","v":290.55165957446803},{"$f":"'Population 2016'!BC64*'Prevalence Rates'!BC64","v":0},62]
[null,"Female 25-29",{"$f":"'Population 2016'!C65*'Prevalence Rates'!C65","v":327.72320223404256},{"$f":"'Population 2016'!D65*'Prevalence Rates'!D65","v":218.30908283789771},{"$f":"'Population 2016'!E65*'Prevalence Rates'!E65","v":64.254999468085117},{"$f":"'Population 2016'!F65*'Prevalence Rates'!F65","v":56.078738244680849},{"$f":"'Population 2016'!G65*'Prevalence Rates'!G65","v":61.696400000000004},{"$f":"'Population 2016'!H65*'Prevalence Rates'!H65","v":1473.6775468617025},{"$f":"'Population 2016'!I65*'Prevalence Rates'!I65","v":74.770633404255335},{"$f":"'Population 2016'!J65*'Prevalence Rates'!J65","v":363.72180000000003},{"$f":"'Population 2016'!K65*'Prevalence Rates'!K65","v":153.52360000000002},{"$f":"'Population 2016'!L65*'Prevalence Rates'!L65","v":215.01851744680852},{"$f":"'Population 2016'!M65*'Prevalence Rates'!M65","v":215.01851744680852},{"$f":"'Population 2016'!N65*'Prevalence Rates'!N65","v":1301.8709315425531},{"$f":"'Population 2016'!O65*'Prevalence Rates'!O65","v":513.32984606382979},{"$f":"'Population 2016'!P65*'Prevalence Rates'!P65","v":52.202297872340424},{"$f":"'Population 2016'!Q65*'Prevalence Rates'!Q65","v":55.336916117021296},{"$f":"'Population 2016'!R65*'Prevalence Rates'!R65","v":34.210058510638298},{"$f":"'Population 2016'!S65*'Prevalence Rates'!S65","v":2053.8753369196334},{"$f":"'Population 2016'!T65*'Prevalence Rates'!T65","v":974.85959617021274},{"$f":"'Population 2016'!U65*'Prevalence Rates'!U65","v":0},{"$f":"'Population 2016'!V65*'Prevalence Rates'!V65","v":212.39924425531916},{"$f":"'Population 2016'!W65*'Prevalence Rates'!W65","v":1019.8153908510639},{"$f":"'Population 2016'!X65*'Prevalence Rates'!X65","v":1019.8153908510639},{"$f":"'Population 2016'!Y65*'Prevalence Rates'!Y65","v":503.6701313829787},{"$f":"'Population 2016'!Z65*'Prevalence Rates'!Z65","v":6162.137636861702},{"$f":"'Population 2016'!AA65*'Prevalence Rates'!AA65","v":3784.5878043831494},{"$f":"'Population 2016'!AB65*'Prevalence Rates'!AB65","v":409.20801276595745},{"$f":"'Population 2016'!AC65*'Prevalence Rates'!AC65","v":7694.9735904255313},{"$f":"'Population 2016'!AD65*'Prevalence Rates'!AD65","v":261.51309696808511},{"$f":"'Population 2016'!AE65*'Prevalence Rates'!AE65","v":200.48468031914896},{"$f":"'Population 2016'!AF65*'Prevalence Rates'!AF65","v":409.9941},{"$f":"'Population 2016'!AG65*'Prevalence Rates'!AG65","v":107.10811864014802},{"$f":"'Population 2016'!AH65*'Prevalence Rates'!AH65","v":2448.312192340426},{"$f":"'Population 2016'!AI65*'Prevalence Rates'!AI65","v":1657.4319249468085},{"$f":"'Population 2016'!AJ65*'Prevalence Rates'!AJ65","v":120.8819},{"$f":"'Population 2016'!AK65*'Prevalence Rates'!AK65","v":10.106372500000001},{"$f":"'Population 2016'!AL65*'Prevalence Rates'!AL65","v":683.46659840425536},{"$f":"'Population 2016'!AM65*'Prevalence Rates'!AM65","v":1834.966864787234},{"$f":"'Population 2016'!AN65*'Prevalence Rates'!AN65","v":0},{"$f":"'Population 2016'!AO65*'Prevalence Rates'!AO65","v":0},{"$f":"'Population 2016'!AP65*'Prevalence Rates'!AP65","v":112.54613175531915},{"$f":"'Population 2016'!AQ65*'Prevalence Rates'!AQ65","v":906.32614521276594},{"$f":"'Population 2016'!AR65*'Prevalence Rates'!AR65","v":16187.772300000001},{"$f":"'Population 2016'!AS65*'Prevalence Rates'!AS65","v":74.770633404255335},{"$f":"'Population 2016'!AT65*'Prevalence Rates'!AT65","v":0},{"$f":"'Population 2016'!AU65*'Prevalence Rates'!AU65","v":0},{"$f":"'Population 2016'!AV65*'Prevalence Rates'!AV65","v":265.61696840425526},{"$f":"'Population 2016'!AW65*'Prevalence Rates'!AW65","v":724.27444734042558},{"$f":"'Population 2016'!AX65*'Prevalence Rates'!AX65","v":210.19820000000001},{"$f":"'Population 2016'!AY65*'Prevalence Rates'!AY65","v":1278.4195883344869},{"$f":"'Population 2016'!AZ65*'Prevalence Rates'!AZ65","v":1123.6464481914895},{"$f":"'Population 2016'!BA65*'Prevalence Rates'!BA65","v":624.6993273404255},{"$f":"'Population 2016'!BB65*'Prevalence Rates'!BB65","v":398.14631531914887},{"$f":"'Population 2016'!BC65*'Prevalence Rates'!BC65","v":0},63]
[null,"Female 30-34",{"$f":"'Population 2016'!C66*'Prevalence Rates'!C66","v":287.98954531914893},{"$f":"'Population 2016'!D66*'Prevalence Rates'!D66","v":196.28893894250692},{"$f":"'Population 2016'!E66*'Prevalence Rates'!E66","v":63.445062500000013},{"$f":"'Population 2016'!F66*'Prevalence Rates'!F66","v":62.268030425531911},{"$f":"'Population 2016'!G66*'Prevalence Rates'!G66","v":72.098700000000008},{"$f":"'Population 2016'!H66*'Prevalence Rates'!H66","v":1307.9205596808515},{"$f":"'Population 2016'!I66*'Prevalence Rates'!I66","v":75.870201542553204},{"$f":"'Population 2016'!J66*'Prevalence Rates'!J66","v":318.1669},{"$f":"'Population 2016'!K66*'Prevalence Rates'!K66","v":146.70830000000001},{"$f":"'Population 2016'!L66*'Prevalence Rates'!L66","v":183.44833829787234},{"$f":"'Population 2016'!M66*'Prevalence Rates'!M66","v":183.44833829787234},{"$f":"'Population 2016'!N66*'Prevalence Rates'!N66","v":1043.6408935638296},{"$f":"'Population 2016'!O66*'Prevalence Rates'!O66","v":456.21183180851068},{"$f":"'Population 2016'!P66*'Prevalence Rates'!P66","v":44.861349734042548},{"$f":"'Population 2016'!Q66*'Prevalence Rates'!Q66","v":50.08596787234044},{"$f":"'Population 2016'!R66*'Prevalence Rates'!R66","v":33.27705691489362},{"$f":"'Population 2016'!S66*'Prevalence Rates'!S66","v":1962.7338210364378},{"$f":"'Population 2016'!T66*'Prevalence Rates'!T66","v":959.87433127659574},{"$f":"'Population 2016'!U66*'Prevalence Rates'!U66","v":0},{"$f":"'Population 2016'!V66*'Prevalence Rates'!V66","v":208.11316085106384},{"$f":"'Population 2016'!W66*'Prevalence Rates'!W66","v":899.64135095744678},{"$f":"'Population 2016'!X66*'Prevalence Rates'!X66","v":899.64135095744678},{"$f":"'Population 2016'!Y66*'Prevalence Rates'!Y66","v":465.3531486702127},{"$f":"'Population 2016'!Z66*'Prevalence Rates'!Z66","v":5217.7320522872342},{"$f":"'Population 2016'!AA66*'Prevalence Rates'!AA66","v":3442.5114495035518},{"$f":"'Population 2016'!AB66*'Prevalence Rates'!AB66","v":371.83452553191489},{"$f":"'Population 2016'!AC66*'Prevalence Rates'!AC66","v":6686.8739521276593},{"$f":"'Population 2016'!AD66*'Prevalence Rates'!AD66","v":291.85816297872339},{"$f":"'Population 2016'!AE66*'Prevalence Rates'!AE66","v":220.70162287234044},{"$f":"'Population 2016'!AF66*'Prevalence Rates'!AF66","v":401.02660000000003},{"$f":"'Population 2016'!AG66*'Prevalence Rates'!AG66","v":117.90893732654951},{"$f":"'Population 2016'!AH66*'Prevalence Rates'!AH66","v":2553.2876553191495},{"$f":"'Population 2016'!AI66*'Prevalence Rates'!AI66","v":1646.0193502127661},{"$f":"'Population 2016'!AJ66*'Prevalence Rates'!AJ66","v":106.1752},{"$f":"'Population 2016'!AK66*'Prevalence Rates'!AK66","v":14.500447500000002},{"$f":"'Population 2016'!AL66*'Prevalence Rates'!AL66","v":593.38920569148934},{"$f":"'Population 2016'!AM66*'Prevalence Rates'!AM66","v":1855.1964},{"$f":"'Population 2016'!AN66*'Prevalence Rates'!AN66","v":0},{"$f":"'Population 2016'!AO66*'Prevalence Rates'!AO66","v":0},{"$f":"'Population 2016'!AP66*'Prevalence Rates'!AP66","v":101.03892127659574},{"$f":"'Population 2016'!AQ66*'Prevalence Rates'!AQ66","v":773.17708680851058},{"$f":"'Population 2016'!AR66*'Prevalence Rates'!AR66","v":14792.788},{"$f":"'Population 2016'!AS66*'Prevalence Rates'!AS66","v":75.870201542553204},{"$f":"'Population 2016'!AT66*'Prevalence Rates'!AT66","v":0},{"$f":"'Population 2016'!AU66*'Prevalence Rates'!AU66","v":0},{"$f":"'Population 2016'!AV66*'Prevalence Rates'!AV66","v":249.17935010638294},{"$f":"'Population 2016'!AW66*'Prevalence Rates'!AW66","v":795.51455691489366},{"$f":"'Population 2016'!AX66*'Prevalence Rates'!AX66","v":171.45860000000002},{"$f":"'Population 2016'!AY66*'Prevalence Rates'!AY66","v":1097.015305043383},{"$f":"'Population 2016'!AZ66*'Prevalence Rates'!AZ66","v":942.85935861702137},{"$f":"'Population 2016'!BA66*'Prevalence Rates'!BA66","v":640.48422611702131},{"$f":"'Population 2016'!BB66*'Prevalence Rates'!BB66","v":426.72325744680847},{"$f":"'Population 2016'!BC66*'Prevalence Rates'!BC66","v":0},64]
[null,"Female 35-39",{"$f":"'Population 2016'!C67*'Prevalence Rates'!C67","v":225.61822723404256},{"$f":"'Population 2016'!D67*'Prevalence Rates'!D67","v":154.51643782951481},{"$f":"'Population 2016'!E67*'Prevalence Rates'!E67","v":50.863830851063845},{"$f":"'Population 2016'!F67*'Prevalence Rates'!F67","v":61.220089680851068},{"$f":"'Population 2016'!G67*'Prevalence Rates'!G67","v":69.543300000000002},{"$f":"'Population 2016'!H67*'Prevalence Rates'!H67","v":1286.8183473936174},{"$f":"'Population 2016'!I67*'Prevalence Rates'!I67","v":77.081964255319164},{"$f":"'Population 2016'!J67*'Prevalence Rates'!J67","v":304.1046},{"$f":"'Population 2016'!K67*'Prevalence Rates'!K67","v":165.80380000000002},{"$f":"'Population 2016'!L67*'Prevalence Rates'!L67","v":168.69537680851064},{"$f":"'Population 2016'!M67*'Prevalence Rates'!M67","v":168.69537680851064},{"$f":"'Population 2016'!N67*'Prevalence Rates'!N67","v":895.0134516489361},{"$f":"'Population 2016'!O67*'Prevalence Rates'!O67","v":439.15039069148941},{"$f":"'Population 2016'!P67*'Prevalence Rates'!P67","v":44.969285904255315},{"$f":"'Population 2016'!Q67*'Prevalence Rates'!Q67","v":64.152419414893643},{"$f":"'Population 2016'!R67*'Prevalence Rates'!R67","v":36.620160904255322},{"$f":"'Population 2016'!S67*'Prevalence Rates'!S67","v":1844.7824894641988},{"$f":"'Population 2016'!T67*'Prevalence Rates'!T67","v":842.18867361702132},{"$f":"'Population 2016'!U67*'Prevalence Rates'!U67","v":0},{"$f":"'Population 2016'!V67*'Prevalence Rates'!V67","v":179.96491914893622},{"$f":"'Population 2016'!W67*'Prevalence Rates'!W67","v":895.5022777659575},{"$f":"'Population 2016'!X67*'Prevalence Rates'!X67","v":895.5022777659575},{"$f":"'Population 2016'!Y67*'Prevalence Rates'!Y67","v":423.75518936170215},{"$f":"'Population 2016'!Z67*'Prevalence Rates'!Z67","v":4737.4916469148939},{"$f":"'Population 2016'!AA67*'Prevalence Rates'!AA67","v":3223.6693250645253},{"$f":"'Population 2016'!AB67*'Prevalence Rates'!AB67","v":292.80245531914898},{"$f":"'Population 2016'!AC67*'Prevalence Rates'!AC67","v":6166.6699946808503},{"$f":"'Population 2016'!AD67*'Prevalence Rates'!AD67","v":261.05132856382983},{"$f":"'Population 2016'!AE67*'Prevalence Rates'!AE67","v":192.65726106382979},{"$f":"'Population 2016'!AF67*'Prevalence Rates'!AF67","v":390.14970000000005},{"$f":"'Population 2016'!AG67*'Prevalence Rates'!AG67","v":102.92635198889919},{"$f":"'Population 2016'!AH67*'Prevalence Rates'!AH67","v":2490.2570451063834},{"$f":"'Population 2016'!AI67*'Prevalence Rates'!AI67","v":1497.9408635106383},{"$f":"'Population 2016'!AJ67*'Prevalence Rates'!AJ67","v":110.012},{"$f":"'Population 2016'!AK67*'Prevalence Rates'!AK67","v":11.551260000000003},{"$f":"'Population 2016'!AL67*'Prevalence Rates'!AL67","v":607.35108968085115},{"$f":"'Population 2016'!AM67*'Prevalence Rates'!AM67","v":1818.6024367021278},{"$f":"'Population 2016'!AN67*'Prevalence Rates'!AN67","v":0},{"$f":"'Population 2016'!AO67*'Prevalence Rates'!AO67","v":0},{"$f":"'Population 2016'!AP67*'Prevalence Rates'!AP67","v":90.997311914893615},{"$f":"'Population 2016'!AQ67*'Prevalence Rates'!AQ67","v":747.39402499999994},{"$f":"'Population 2016'!AR67*'Prevalence Rates'!AR67","v":13766.430200000001},{"$f":"'Population 2016'!AS67*'Prevalence Rates'!AS67","v":77.081964255319164},{"$f":"'Population 2016'!AT67*'Prevalence Rates'!AT67","v":0},{"$f":"'Population 2016'!AU67*'Prevalence Rates'!AU67","v":0},{"$f":"'Population 2016'!AV67*'Prevalence Rates'!AV67","v":229.97105765957446},{"$f":"'Population 2016'!AW67*'Prevalence Rates'!AW67","v":769.54856925531931},{"$f":"'Population 2016'!AX67*'Prevalence Rates'!AX67","v":138.30080000000001},{"$f":"'Population 2016'!AY67*'Prevalence Rates'!AY67","v":1021.0544219443644},{"$f":"'Population 2016'!AZ67*'Prevalence Rates'!AZ67","v":826.9796818085108},{"$f":"'Population 2016'!BA67*'Prevalence Rates'!BA67","v":581.04538973404249},{"$f":"'Population 2016'!BB67*'Prevalence Rates'!BB67","v":400.57576127659576},{"$f":"'Population 2016'!BC67*'Prevalence Rates'!BC67","v":0},65]
[null,"Female 40-44",{"$f":"'Population 2016'!C68*'Prevalence Rates'!C68","v":230.14451882978724},{"$f":"'Population 2016'!D68*'Prevalence Rates'!D68","v":156.21234995203389},{"$f":"'Population 2016'!E68*'Prevalence Rates'!E68","v":49.680951063829802},{"$f":"'Population 2016'!F68*'Prevalence Rates'!F68","v":52.386318351063828},{"$f":"'Population 2016'!G68*'Prevalence Rates'!G68","v":81.723200000000006},{"$f":"'Population 2016'!H68*'Prevalence Rates'!H68","v":1460.8308315425536},{"$f":"'Population 2016'!I68*'Prevalence Rates'!I68","v":93.542175372340438},{"$f":"'Population 2016'!J68*'Prevalence Rates'!J68","v":304.1046},{"$f":"'Population 2016'!K68*'Prevalence Rates'!K68","v":159.91030000000001},{"$f":"'Population 2016'!L68*'Prevalence Rates'!L68","v":170.56457765957447},{"$f":"'Population 2016'!M68*'Prevalence Rates'!M68","v":170.56457765957447},{"$f":"'Population 2016'!N68*'Prevalence Rates'!N68","v":739.80290441489353},{"$f":"'Population 2016'!O68*'Prevalence Rates'!O68","v":494.09432085106391},{"$f":"'Population 2016'!P68*'Prevalence Rates'!P68","v":52.414531914893608},{"$f":"'Population 2016'!Q68*'Prevalence Rates'!Q68","v":46.897630744680868},{"$f":"'Population 2016'!R68*'Prevalence Rates'!R68","v":34.235592287234041},{"$f":"'Population 2016'!S68*'Prevalence Rates'!S68","v":1702.7255689476287},{"$f":"'Population 2016'!T68*'Prevalence Rates'!T68","v":652.08442659574473},{"$f":"'Population 2016'!U68*'Prevalence Rates'!U68","v":0},{"$f":"'Population 2016'!V68*'Prevalence Rates'!V68","v":206.56842893617025},{"$f":"'Population 2016'!W68*'Prevalence Rates'!W68","v":921.42364627659583},{"$f":"'Population 2016'!X68*'Prevalence Rates'!X68","v":921.42364627659583},{"$f":"'Population 2016'!Y68*'Prevalence Rates'!Y68","v":453.27911648936174},{"$f":"'Population 2016'!Z68*'Prevalence Rates'!Z68","v":4241.7187235106385},{"$f":"'Population 2016'!AA68*'Prevalence Rates'!AA68","v":3048.4824920351552},{"$f":"'Population 2016'!AB68*'Prevalence Rates'!AB68","v":297.31244574468087},{"$f":"'Population 2016'!AC68*'Prevalence Rates'!AC68","v":5646.1610904255313},{"$f":"'Population 2016'!AD68*'Prevalence Rates'!AD68","v":274.12256819148939},{"$f":"'Population 2016'!AE68*'Prevalence Rates'!AE68","v":194.13356191489362},{"$f":"'Population 2016'!AF68*'Prevalence Rates'!AF68","v":392.50710000000004},{"$f":"'Population 2016'!AG68*'Prevalence Rates'!AG68","v":103.71505966697504},{"$f":"'Population 2016'!AH68*'Prevalence Rates'!AH68","v":2548.4363395744685},{"$f":"'Population 2016'!AI68*'Prevalence Rates'!AI68","v":1279.0000553723403},{"$f":"'Population 2016'!AJ68*'Prevalence Rates'!AJ68","v":111.5836},{"$f":"'Population 2016'!AK68*'Prevalence Rates'!AK68","v":13.476470000000003},{"$f":"'Population 2016'!AL68*'Prevalence Rates'!AL68","v":705.2490213297873},{"$f":"'Population 2016'!AM68*'Prevalence Rates'!AM68","v":1872.647085638298},{"$f":"'Population 2016'!AN68*'Prevalence Rates'!AN68","v":0},{"$f":"'Population 2016'!AO68*'Prevalence Rates'!AO68","v":0},{"$f":"'Population 2016'!AP68*'Prevalence Rates'!AP68","v":74.703874308510635},{"$f":"'Population 2016'!AQ68*'Prevalence Rates'!AQ68","v":675.15350829787235},{"$f":"'Population 2016'!AR68*'Prevalence Rates'!AR68","v":13226.192700000001},{"$f":"'Population 2016'!AS68*'Prevalence Rates'!AS68","v":93.542175372340438},{"$f":"'Population 2016'!AT68*'Prevalence Rates'!AT68","v":0},{"$f":"'Population 2016'!AU68*'Prevalence Rates'!AU68","v":0},{"$f":"'Population 2016'!AV68*'Prevalence Rates'!AV68","v":248.79431148936169},{"$f":"'Population 2016'!AW68*'Prevalence Rates'!AW68","v":779.58131255319165},{"$f":"'Population 2016'!AX68*'Prevalence Rates'!AX68","v":144.1943},{"$f":"'Population 2016'!AY68*'Prevalence Rates'!AY68","v":945.78582041445964},{"$f":"'Population 2016'!AZ68*'Prevalence Rates'!AZ68","v":686.03725627659583},{"$f":"'Population 2016'!BA68*'Prevalence Rates'!BA68","v":578.94964441489356},{"$f":"'Population 2016'!BB68*'Prevalence Rates'!BB68","v":425.53243489361699},{"$f":"'Population 2016'!BC68*'Prevalence Rates'!BC68","v":0},66]
[null,"Female 45-49",{"$f":"'Population 2016'!C69*'Prevalence Rates'!C69","v":227.13517340425531},{"$f":"'Population 2016'!D69*'Prevalence Rates'!D69","v":163.48830742482156},{"$f":"'Population 2016'!E69*'Prevalence Rates'!E69","v":63.655430851063826},{"$f":"'Population 2016'!F69*'Prevalence Rates'!F69","v":68.588302127659574},{"$f":"'Population 2016'!G69*'Prevalence Rates'!G69","v":103.1285},{"$f":"'Population 2016'!H69*'Prevalence Rates'!H69","v":1912.3903268617025},{"$f":"'Population 2016'!I69*'Prevalence Rates'!I69","v":100.0866545212766},{"$f":"'Population 2016'!J69*'Prevalence Rates'!J69","v":423.733},{"$f":"'Population 2016'!K69*'Prevalence Rates'!K69","v":203.66800000000001},{"$f":"'Population 2016'!L69*'Prevalence Rates'!L69","v":235.04998510638293},{"$f":"'Population 2016'!M69*'Prevalence Rates'!M69","v":235.04998510638293},{"$f":"'Population 2016'!N69*'Prevalence Rates'!N69","v":923.50662845744682},{"$f":"'Population 2016'!O69*'Prevalence Rates'!O69","v":672.56918058510644},{"$f":"'Population 2016'!P69*'Prevalence Rates'!P69","v":69.011309840425525},{"$f":"'Population 2016'!Q69*'Prevalence Rates'!Q69","v":74.34217101063831},{"$f":"'Population 2016'!R69*'Prevalence Rates'!R69","v":46.016720744680853},{"$f":"'Population 2016'!S69*'Prevalence Rates'!S69","v":2094.5070643878548},{"$f":"'Population 2016'!T69*'Prevalence Rates'!T69","v":763.34461595744676},{"$f":"'Population 2016'!U69*'Prevalence Rates'!U69","v":0},{"$f":"'Population 2016'!V69*'Prevalence Rates'!V69","v":226.00317446808512},{"$f":"'Population 2016'!W69*'Prevalence Rates'!W69","v":1227.6817659574467},{"$f":"'Population 2016'!X69*'Prevalence Rates'!X69","v":1227.6817659574467},{"$f":"'Population 2016'!Y69*'Prevalence Rates'!Y69","v":562.9778204787234},{"$f":"'Population 2016'!Z69*'Prevalence Rates'!Z69","v":5467.8312053191485},{"$f":"'Population 2016'!AA69*'Prevalence Rates'!AA69","v":3980.2193347648067},{"$f":"'Population 2016'!AB69*'Prevalence Rates'!AB69","v":311.66235106382976},{"$f":"'Population 2016'!AC69*'Prevalence Rates'!AC69","v":7468.9895744680844},{"$f":"'Population 2016'!AD69*'Prevalence Rates'!AD69","v":348.2211885638298},{"$f":"'Population 2016'!AE69*'Prevalence Rates'!AE69","v":247.2540904255319},{"$f":"'Population 2016'!AF69*'Prevalence Rates'!AF69","v":579.50450000000001},{"$f":"'Population 2016'!AG69*'Prevalence Rates'!AG69","v":132.09448427382054},{"$f":"'Population 2016'!AH69*'Prevalence Rates'!AH69","v":3225.9454127659578},{"$f":"'Population 2016'!AI69*'Prevalence Rates'!AI69","v":1503.5013859042551},{"$f":"'Population 2016'!AJ69*'Prevalence Rates'!AJ69","v":134.62799999999999},{"$f":"'Population 2016'!AK69*'Prevalence Rates'!AK69","v":14.80045},{"$f":"'Population 2016'!AL69*'Prevalence Rates'!AL69","v":894.70010159574474},{"$f":"'Population 2016'!AM69*'Prevalence Rates'!AM69","v":2364.6714127659575},{"$f":"'Population 2016'!AN69*'Prevalence Rates'!AN69","v":0},{"$f":"'Population 2016'!AO69*'Prevalence Rates'!AO69","v":0},{"$f":"'Population 2016'!AP69*'Prevalence Rates'!AP69","v":80.692565691489364},{"$f":"'Population 2016'!AQ69*'Prevalence Rates'!AQ69","v":936.58406223404245},{"$f":"'Population 2016'!AR69*'Prevalence Rates'!AR69","v":16913.505499999999},{"$f":"'Population 2016'!AS69*'Prevalence Rates'!AS69","v":100.0866545212766},{"$f":"'Population 2016'!AT69*'Prevalence Rates'!AT69","v":0},{"$f":"'Population 2016'!AU69*'Prevalence Rates'!AU69","v":0},{"$f":"'Population 2016'!AV69*'Prevalence Rates'!AV69","v":329.86155212765954},{"$f":"'Population 2016'!AW69*'Prevalence Rates'!AW69","v":990.83967872340429},{"$f":"'Population 2016'!AX69*'Prevalence Rates'!AX69","v":220.065},{"$f":"'Population 2016'!AY69*'Prevalence Rates'!AY69","v":1217.8072068104848},{"$f":"'Population 2016'!AZ69*'Prevalence Rates'!AZ69","v":847.4705904255319},{"$f":"'Population 2016'!BA69*'Prevalence Rates'!BA69","v":791.18853058510638},{"$f":"'Population 2016'!BB69*'Prevalence Rates'!BB69","v":482.66855531914888},{"$f":"'Population 2016'!BC69*'Prevalence Rates'!BC69","v":0},67]
[null,"Female 50-54",{"$f":"'Population 2016'!C70*'Prevalence Rates'!C70","v":239.75379414893618},{"$f":"'Population 2016'!D70*'Prevalence Rates'!D70","v":168.04114636576597},{"$f":"'Population 2016'!E70*'Prevalence Rates'!E70","v":60.082932180851067},{"$f":"'Population 2016'!F70*'Prevalence Rates'!F70","v":62.947816755319145},{"$f":"'Population 2016'!G70*'Prevalence Rates'!G70","v":100.5395},{"$f":"'Population 2016'!H70*'Prevalence Rates'!H70","v":1947.7322425531918},{"$f":"'Population 2016'!I70*'Prevalence Rates'!I70","v":97.00028191489362},{"$f":"'Population 2016'!J70*'Prevalence Rates'!J70","v":390.50749999999999},{"$f":"'Population 2016'!K70*'Prevalence Rates'!K70","v":197.19550000000001},{"$f":"'Population 2016'!L70*'Prevalence Rates'!L70","v":242.74812872340422},{"$f":"'Population 2016'!M70*'Prevalence Rates'!M70","v":242.74812872340422},{"$f":"'Population 2016'!N70*'Prevalence Rates'!N70","v":1046.3044132978723},{"$f":"'Population 2016'!O70*'Prevalence Rates'!O70","v":689.74678244680854},{"$f":"'Population 2016'!P70*'Prevalence Rates'!P70","v":69.338377659574462},{"$f":"'Population 2016'!Q70*'Prevalence Rates'!Q70","v":60.737067819148947},{"$f":"'Population 2016'!R70*'Prevalence Rates'!R70","v":48.261438829787238},{"$f":"'Population 2016'!S70*'Prevalence Rates'!S70","v":2014.3507089911936},{"$f":"'Population 2016'!T70*'Prevalence Rates'!T70","v":685.9941095744681},{"$f":"'Population 2016'!U70*'Prevalence Rates'!U70","v":0},{"$f":"'Population 2016'!V70*'Prevalence Rates'!V70","v":240.61174468085107},{"$f":"'Population 2016'!W70*'Prevalence Rates'!W70","v":1230.350639361702},{"$f":"'Population 2016'!X70*'Prevalence Rates'!X70","v":1230.350639361702},{"$f":"'Population 2016'!Y70*'Prevalence Rates'!Y70","v":554.71275930851061},{"$f":"'Population 2016'!Z70*'Prevalence Rates'!Z70","v":5735.8826776595743},{"$f":"'Population 2016'!AA70*'Prevalence Rates'!AA70","v":4074.147278715574},{"$f":"'Population 2016'!AB70*'Prevalence Rates'!AB70","v":319.66346276595743},{"$f":"'Population 2016'!AC70*'Prevalence Rates'!AC70","v":7695.0450797872336},{"$f":"'Population 2016'!AD70*'Prevalence Rates'!AD70","v":326.07284441489361},{"$f":"'Population 2016'!AE70*'Prevalence Rates'!AE70","v":227.7980308510638},{"$f":"'Population 2016'!AF70*'Prevalence Rates'!AF70","v":570.87450000000001},{"$f":"'Population 2016'!AG70*'Prevalence Rates'!AG70","v":121.70016419981499},{"$f":"'Population 2016'!AH70*'Prevalence Rates'!AH70","v":3250.0947234042555},{"$f":"'Population 2016'!AI70*'Prevalence Rates'!AI70","v":1401.5159018617019},{"$f":"'Population 2016'!AJ70*'Prevalence Rates'!AJ70","v":136.78549999999998},{"$f":"'Population 2016'!AK70*'Prevalence Rates'!AK70","v":14.271862499999999},{"$f":"'Population 2016'!AL70*'Prevalence Rates'!AL70","v":928.43054840425543},{"$f":"'Population 2016'!AM70*'Prevalence Rates'!AM70","v":2399.0968499999999},{"$f":"'Population 2016'!AN70*'Prevalence Rates'!AN70","v":0},{"$f":"'Population 2016'!AO70*'Prevalence Rates'!AO70","v":0},{"$f":"'Population 2016'!AP70*'Prevalence Rates'!AP70","v":87.445081648936167},{"$f":"'Population 2016'!AQ70*'Prevalence Rates'!AQ70","v":897.16470106382974},{"$f":"'Population 2016'!AR70*'Prevalence Rates'!AR70","v":17132.275999999998},{"$f":"'Population 2016'!AS70*'Prevalence Rates'!AS70","v":97.00028191489362},{"$f":"'Population 2016'!AT70*'Prevalence Rates'!AT70","v":0},{"$f":"'Population 2016'!AU70*'Prevalence Rates'!AU70","v":0},{"$f":"'Population 2016'!AV70*'Prevalence Rates'!AV70","v":312.78425106382974},{"$f":"'Population 2016'!AW70*'Prevalence Rates'!AW70","v":986.75879042553197},{"$f":"'Population 2016'!AX70*'Prevalence Rates'!AX70","v":193.31200000000001},{"$f":"'Population 2016'!AY70*'Prevalence Rates'!AY70","v":1271.9319715576175},{"$f":"'Population 2016'!AZ70*'Prevalence Rates'!AZ70","v":930.28278510638302},{"$f":"'Population 2016'!BA70*'Prevalence Rates'!BA70","v":815.93115372340424},{"$f":"'Population 2016'!BB70*'Prevalence Rates'!BB70","v":482.20400425531909},{"$f":"'Population 2016'!BC70*'Prevalence Rates'!BC70","v":0},68]
[null,"Female 55-59",{"$f":"'Population 2016'!C71*'Prevalence Rates'!C71","v":189.51396904255321},{"$f":"'Population 2016'!D71*'Prevalence Rates'!D71","v":132.71000351298056},{"$f":"'Population 2016'!E71*'Prevalence Rates'!E71","v":47.306686436170217},{"$f":"'Population 2016'!F71*'Prevalence Rates'!F71","v":53.739773404255317},{"$f":"'Population 2016'!G71*'Prevalence Rates'!G71","v":88.151900000000012},{"$f":"'Population 2016'!H71*'Prevalence Rates'!H71","v":1564.0870845212771},{"$f":"'Population 2016'!I71*'Prevalence Rates'!I71","v":78.764576329787246},{"$f":"'Population 2016'!J71*'Prevalence Rates'!J71","v":330.07550000000003},{"$f":"'Population 2016'!K71*'Prevalence Rates'!K71","v":165.63070000000002},{"$f":"'Population 2016'!L71*'Prevalence Rates'!L71","v":180.53939744680849},{"$f":"'Population 2016'!M71*'Prevalence Rates'!M71","v":180.53939744680849},{"$f":"'Population 2016'!N71*'Prevalence Rates'!N71","v":857.33147611702123},{"$f":"'Population 2016'!O71*'Prevalence Rates'!O71","v":511.63847212765961},{"$f":"'Population 2016'!P71*'Prevalence Rates'!P71","v":63.52134574468085},{"$f":"'Population 2016'!Q71*'Prevalence Rates'!Q71","v":60.983225372340449},{"$f":"'Population 2016'!R71*'Prevalence Rates'!R71","v":33.416517287234051},{"$f":"'Population 2016'!S71*'Prevalence Rates'!S71","v":1711.1571052369391},{"$f":"'Population 2016'!T71*'Prevalence Rates'!T71","v":619.43594106382977},{"$f":"'Population 2016'!U71*'Prevalence Rates'!U71","v":0},{"$f":"'Population 2016'!V71*'Prevalence Rates'!V71","v":201.0075268085107},{"$f":"'Population 2016'!W71*'Prevalence Rates'!W71","v":996.73381085106394},{"$f":"'Population 2016'!X71*'Prevalence Rates'!X71","v":996.73381085106394},{"$f":"'Population 2016'!Y71*'Prevalence Rates'!Y71","v":466.24058005319154},{"$f":"'Population 2016'!Z71*'Prevalence Rates'!Z71","v":4550.1231484574473},{"$f":"'Population 2016'!AA71*'Prevalence Rates'!AA71","v":3316.0939031906619},{"$f":"'Population 2016'!AB71*'Prevalence Rates'!AB71","v":252.35699680851064},{"$f":"'Population 2016'!AC71*'Prevalence Rates'!AC71","v":6200.8061648936173},{"$f":"'Population 2016'!AD71*'Prevalence Rates'!AD71","v":277.6757515425532},{"$f":"'Population 2016'!AE71*'Prevalence Rates'!AE71","v":191.60611531914896},{"$f":"'Population 2016'!AF71*'Prevalence Rates'!AF71","v":499.26390000000004},{"$f":"'Population 2016'!AG71*'Prevalence Rates'!AG71","v":102.36478168362629},{"$f":"'Population 2016'!AH71*'Prevalence Rates'!AH71","v":2710.5704178723408},{"$f":"'Population 2016'!AI71*'Prevalence Rates'!AI71","v":1236.5044977127661},{"$f":"'Population 2016'!AJ71*'Prevalence Rates'!AJ71","v":122.54300000000001},{"$f":"'Population 2016'!AK71*'Prevalence Rates'!AK71","v":11.137577500000003},{"$f":"'Population 2016'!AL71*'Prevalence Rates'!AL71","v":757.45304367021288},{"$f":"'Population 2016'!AM71*'Prevalence Rates'!AM71","v":1941.7232722340425},{"$f":"'Population 2016'!AN71*'Prevalence Rates'!AN71","v":0},{"$f":"'Population 2016'!AO71*'Prevalence Rates'!AO71","v":0},{"$f":"'Population 2016'!AP71*'Prevalence Rates'!AP71","v":72.067185053191494},{"$f":"'Population 2016'!AQ71*'Prevalence Rates'!AQ71","v":755.61637053191487},{"$f":"'Population 2016'!AR71*'Prevalence Rates'!AR71","v":14044.218400000002},{"$f":"'Population 2016'!AS71*'Prevalence Rates'!AS71","v":78.764576329787246},{"$f":"'Population 2016'!AT71*'Prevalence Rates'!AT71","v":0},{"$f":"'Population 2016'!AU71*'Prevalence Rates'!AU71","v":0},{"$f":"'Population 2016'!AV71*'Prevalence Rates'!AV71","v":281.60330936170214},{"$f":"'Population 2016'!AW71*'Prevalence Rates'!AW71","v":863.60013510638305},{"$f":"'Population 2016'!AX71*'Prevalence Rates'!AX71","v":164.44480000000001},{"$f":"'Population 2016'!AY71*'Prevalence Rates'!AY71","v":1038.5605591164799},{"$f":"'Population 2016'!AZ71*'Prevalence Rates'!AZ71","v":766.44717000000014},{"$f":"'Population 2016'!BA71*'Prevalence Rates'!BA71","v":649.9596193085107},{"$f":"'Population 2016'!BB71*'Prevalence Rates'!BB71","v":396.2133953191489},{"$f":"'Population 2016'!BC71*'Prevalence Rates'!BC71","v":0},69]
[null,"Female 60-64",{"$f":"'Population 2016'!C72*'Prevalence Rates'!C72","v":154.13335744680853},{"$f":"'Population 2016'!D72*'Prevalence Rates'!D72","v":107.11593140690573},{"$f":"'Population 2016'!E72*'Prevalence Rates'!E72","v":37.190791223404261},{"$f":"'Population 2016'!F72*'Prevalence Rates'!F72","v":43.198510159574468},{"$f":"'Population 2016'!G72*'Prevalence Rates'!G72","v":79.06},{"$f":"'Population 2016'!H72*'Prevalence Rates'!H72","v":1416.1923180319154},{"$f":"'Population 2016'!I72*'Prevalence Rates'!I72","v":75.12928819148938},{"$f":"'Population 2016'!J72*'Prevalence Rates'!J72","v":252.59670000000003},{"$f":"'Population 2016'!K72*'Prevalence Rates'!K72","v":133.6114},{"$f":"'Population 2016'!L72*'Prevalence Rates'!L72","v":162.20336489361702},{"$f":"'Population 2016'!M72*'Prevalence Rates'!M72","v":162.20336489361702},{"$f":"'Population 2016'!N72*'Prevalence Rates'!N72","v":683.19404627659571},{"$f":"'Population 2016'!O72*'Prevalence Rates'!O72","v":464.42892856382986},{"$f":"'Population 2016'!P72*'Prevalence Rates'!P72","v":48.839525265957448},{"$f":"'Population 2016'!Q72*'Prevalence Rates'!Q72","v":43.177904095744694},{"$f":"'Population 2016'!R72*'Prevalence Rates'!R72","v":29.475081914893622},{"$f":"'Population 2016'!S72*'Prevalence Rates'!S72","v":1385.6377414159692},{"$f":"'Population 2016'!T72*'Prevalence Rates'!T72","v":463.30085170212766},{"$f":"'Population 2016'!U72*'Prevalence Rates'!U72","v":0},{"$f":"'Population 2016'!V72*'Prevalence Rates'!V72","v":170.3053327659575},{"$f":"'Population 2016'!W72*'Prevalence Rates'!W72","v":850.03545765957449},{"$f":"'Population 2016'!X72*'Prevalence Rates'!X72","v":850.03545765957449},{"$f":"'Population 2016'!Y72*'Prevalence Rates'!Y72","v":375.08923617021281},{"$f":"'Population 2016'!Z72*'Prevalence Rates'!Z72","v":3502.1607705319152},{"$f":"'Population 2016'!AA72*'Prevalence Rates'!AA72","v":2675.8101626980661},{"$f":"'Population 2016'!AB72*'Prevalence Rates'!AB72","v":210.12297659574469},{"$f":"'Population 2016'!AC72*'Prevalence Rates'!AC72","v":4853.1695904255321},{"$f":"'Population 2016'!AD72*'Prevalence Rates'!AD72","v":255.88252611702129},{"$f":"'Population 2016'!AE72*'Prevalence Rates'!AE72","v":178.60957648936173},{"$f":"'Population 2016'!AF72*'Prevalence Rates'!AF72","v":411.90260000000006},{"$f":"'Population 2016'!AG72*'Prevalence Rates'!AG72","v":95.421434088806677},{"$f":"'Population 2016'!AH72*'Prevalence Rates'!AH72","v":2344.1525497872344},{"$f":"'Population 2016'!AI72*'Prevalence Rates'!AI72","v":953.34101494680863},{"$f":"'Population 2016'!AJ72*'Prevalence Rates'!AJ72","v":91.709600000000009},{"$f":"'Population 2016'!AK72*'Prevalence Rates'!AK72","v":17.916972500000004},{"$f":"'Population 2016'!AL72*'Prevalence Rates'!AL72","v":680.58758946808518},{"$f":"'Population 2016'!AM72*'Prevalence Rates'!AM72","v":1664.4119115957446},{"$f":"'Population 2016'!AN72*'Prevalence Rates'!AN72","v":0},{"$f":"'Population 2016'!AO72*'Prevalence Rates'!AO72","v":0},{"$f":"'Population 2016'!AP72*'Prevalence Rates'!AP72","v":65.571859361702138},{"$f":"'Population 2016'!AQ72*'Prevalence Rates'!AQ72","v":575.51180308510629},{"$f":"'Population 2016'!AR72*'Prevalence Rates'!AR72","v":11547.503600000002},{"$f":"'Population 2016'!AS72*'Prevalence Rates'!AS72","v":75.12928819148938},{"$f":"'Population 2016'!AT72*'Prevalence Rates'!AT72","v":0},{"$f":"'Population 2016'!AU72*'Prevalence Rates'!AU72","v":0},{"$f":"'Population 2016'!AV72*'Prevalence Rates'!AV72","v":259.37146914893617},{"$f":"'Population 2016'!AW72*'Prevalence Rates'!AW72","v":757.05206648936178},{"$f":"'Population 2016'!AX72*'Prevalence Rates'!AX72","v":118.98530000000001},{"$f":"'Population 2016'!AY72*'Prevalence Rates'!AY72","v":864.79098639972506},{"$f":"'Population 2016'!AZ72*'Prevalence Rates'!AZ72","v":620.74421585106393},{"$f":"'Population 2016'!BA72*'Prevalence Rates'!BA72","v":555.07500335106386},{"$f":"'Population 2016'!BB72*'Prevalence Rates'!BB72","v":332.37665063829786},{"$f":"'Population 2016'!BC72*'Prevalence Rates'!BC72","v":0},70]
[null,"Female 65-69",{"$f":"'Population 2016'!C73*'Prevalence Rates'!C73","v":98.958273191489354},{"$f":"'Population 2016'!D73*'Prevalence Rates'!D73","v":68.914864586711559},{"$f":"'Population 2016'!E73*'Prevalence Rates'!E73","v":24.102342287234045},{"$f":"'Population 2016'!F73*'Prevalence Rates'!F73","v":26.761599840425529},{"$f":"'Population 2016'!G73*'Prevalence Rates'!G73","v":61.582500000000003},{"$f":"'Population 2016'!H73*'Prevalence Rates'!H73","v":937.65368914893622},{"$f":"'Population 2016'!I73*'Prevalence Rates'!I73","v":53.976114946808515},{"$f":"'Population 2016'!J73*'Prevalence Rates'!J73","v":187.21080000000001},{"$f":"'Population 2016'!K73*'Prevalence Rates'!K73","v":101.8164},{"$f":"'Population 2016'!L73*'Prevalence Rates'!L73","v":97.007432765957432},{"$f":"'Population 2016'!M73*'Prevalence Rates'!M73","v":97.007432765957432},{"$f":"'Population 2016'!N73*'Prevalence Rates'!N73","v":471.96667856382976},{"$f":"'Population 2016'!O73*'Prevalence Rates'!O73","v":313.4619130851064},{"$f":"'Population 2016'!P73*'Prevalence Rates'!P73","v":30.496440159574465},{"$f":"'Population 2016'!Q73*'Prevalence Rates'!Q73","v":31.436774361702135},{"$f":"'Population 2016'!R73*'Prevalence Rates'!R73","v":20.526772074468084},{"$f":"'Population 2016'!S73*'Prevalence Rates'!S73","v":956.66830624984664},{"$f":"'Population 2016'!T73*'Prevalence Rates'!T73","v":310.38802914893614},{"$f":"'Population 2016'!U73*'Prevalence Rates'!U73","v":0},{"$f":"'Population 2016'!V73*'Prevalence Rates'!V73","v":118.82539914893617},{"$f":"'Population 2016'!W73*'Prevalence Rates'!W73","v":591.93797808510635},{"$f":"'Population 2016'!X73*'Prevalence Rates'!X73","v":591.93797808510635},{"$f":"'Population 2016'!Y73*'Prevalence Rates'!Y73","v":269.78812819148936},{"$f":"'Population 2016'!Z73*'Prevalence Rates'!Z73","v":2175.7857204255315},{"$f":"'Population 2016'!AA73*'Prevalence Rates'!AA73","v":1722.1268146399116},{"$f":"'Population 2016'!AB73*'Prevalence Rates'!AB73","v":134.61090106382977},{"$f":"'Population 2016'!AC73*'Prevalence Rates'!AC73","v":3084.4970904255315},{"$f":"'Population 2016'!AD73*'Prevalence Rates'!AD73","v":163.90116861702126},{"$f":"'Population 2016'!AE73*'Prevalence Rates'!AE73","v":104.12683563829788},{"$f":"'Population 2016'!AF73*'Prevalence Rates'!AF73","v":286.01650000000001},{"$f":"'Population 2016'!AG73*'Prevalence Rates'!AG73","v":55.629335106382982},{"$f":"'Population 2016'!AH73*'Prevalence Rates'!AH73","v":1549.3399957446811},{"$f":"'Population 2016'!AI73*'Prevalence Rates'!AI73","v":651.86896063829784},{"$f":"'Population 2016'!AJ73*'Prevalence Rates'!AJ73","v":71.435699999999997},{"$f":"'Population 2016'!AK73*'Prevalence Rates'!AK73","v":10.729040000000001},{"$f":"'Population 2016'!AL73*'Prevalence Rates'!AL73","v":461.6011645744681},{"$f":"'Population 2016'!AM73*'Prevalence Rates'!AM73","v":1092.5539129787232},{"$f":"'Population 2016'!AN73*'Prevalence Rates'!AN73","v":0},{"$f":"'Population 2016'!AO73*'Prevalence Rates'!AO73","v":0},{"$f":"'Population 2016'!AP73*'Prevalence Rates'!AP73","v":38.97633585106383},{"$f":"'Population 2016'!AQ73*'Prevalence Rates'!AQ73","v":383.91695180851059},{"$f":"'Population 2016'!AR73*'Prevalence Rates'!AR73","v":7598.4593999999997},{"$f":"'Population 2016'!AS73*'Prevalence Rates'!AS73","v":53.976114946808515},{"$f":"'Population 2016'!AT73*'Prevalence Rates'!AT73","v":0},{"$f":"'Population 2016'!AU73*'Prevalence Rates'!AU73","v":0},{"$f":"'Population 2016'!AV73*'Prevalence Rates'!AV73","v":153.93004468085104},{"$f":"'Population 2016'!AW73*'Prevalence Rates'!AW73","v":505.53467329787236},{"$f":"'Population 2016'!AX73*'Prevalence Rates'!AX73","v":85.394400000000005},{"$f":"'Population 2016'!AY73*'Prevalence Rates'!AY73","v":592.05856035220745},{"$f":"'Population 2016'!AZ73*'Prevalence Rates'!AZ73","v":416.29420595744682},{"$f":"'Population 2016'!BA73*'Prevalence Rates'!BA73","v":350.01760537234043},{"$f":"'Population 2016'!BB73*'Prevalence Rates'!BB73","v":225.12349106382976},{"$f":"'Population 2016'!BC73*'Prevalence Rates'!BC73","v":0},71]
[null,"Female 70-74",{"$f":"'Population 2016'!C74*'Prevalence Rates'!C74","v":69.610353936170213},{"$f":"'Population 2016'!D74*'Prevalence Rates'!D74","v":48.174772006329796},{"$f":"'Population 2016'!E74*'Prevalence Rates'!E74","v":16.480234042553192},{"$f":"'Population 2016'!F74*'Prevalence Rates'!F74","v":23.04073569148936},{"$f":"'Population 2016'!G74*'Prevalence Rates'!G74","v":45.434199999999997},{"$f":"'Population 2016'!H74*'Prevalence Rates'!H74","v":733.96032574468097},{"$f":"'Population 2016'!I74*'Prevalence Rates'!I74","v":41.67067941489362},{"$f":"'Population 2016'!J74*'Prevalence Rates'!J74","v":144.5136},{"$f":"'Population 2016'!K74*'Prevalence Rates'!K74","v":76.362300000000005},{"$f":"'Population 2016'!L74*'Prevalence Rates'!L74","v":101.23930063829786},{"$f":"'Population 2016'!M74*'Prevalence Rates'!M74","v":101.23930063829786},{"$f":"'Population 2016'!N74*'Prevalence Rates'!N74","v":340.72650946808511},{"$f":"'Population 2016'!O74*'Prevalence Rates'!O74","v":242.22056920212765},{"$f":"'Population 2016'!P74*'Prevalence Rates'!P74","v":21.160795212765954},{"$f":"'Population 2016'!Q74*'Prevalence Rates'!Q74","v":26.813719308510642},{"$f":"'Population 2016'!R74*'Prevalence Rates'!R74","v":14.712830851063829},{"$f":"'Population 2016'!S74*'Prevalence Rates'!S74","v":737.51704489145175},{"$f":"'Population 2016'!T74*'Prevalence Rates'!T74","v":225.77454765957444},{"$f":"'Population 2016'!U74*'Prevalence Rates'!U74","v":0},{"$f":"'Population 2016'!V74*'Prevalence Rates'!V74","v":85.939470638297877},{"$f":"'Population 2016'!W74*'Prevalence Rates'!W74","v":469.20536585106385},{"$f":"'Population 2016'!X74*'Prevalence Rates'!X74","v":469.20536585106385},{"$f":"'Population 2016'!Y74*'Prevalence Rates'!Y74","v":201.83700771276597},{"$f":"'Population 2016'!Z74*'Prevalence Rates'!Z74","v":1791.9016708510637},{"$f":"'Population 2016'!AA74*'Prevalence Rates'!AA74","v":1371.5707540045655},{"$f":"'Population 2016'!AB74*'Prevalence Rates'!AB74","v":92.076756382978715},{"$f":"'Population 2016'!AC74*'Prevalence Rates'!AC74","v":2462.0334095744679},{"$f":"'Population 2016'!AD74*'Prevalence Rates'!AD74","v":125.65756260638297},{"$f":"'Population 2016'!AE74*'Prevalence Rates'!AE74","v":81.501745425531922},{"$f":"'Population 2016'!AF74*'Prevalence Rates'!AF74","v":215.6756},{"$f":"'Population 2016'!AG74*'Prevalence Rates'!AG74","v":43.541973404255323},{"$f":"'Population 2016'!AH74*'Prevalence Rates'!AH74","v":1228.3027072340428},{"$f":"'Population 2016'!AI74*'Prevalence Rates'!AI74","v":491.14096499999994},{"$f":"'Population 2016'!AJ74*'Prevalence Rates'!AJ74","v":54.192599999999999},{"$f":"'Population 2016'!AK74*'Prevalence Rates'!AK74","v":4.6939550000000008},{"$f":"'Population 2016'!AL74*'Prevalence Rates'!AL74","v":359.70658537234044},{"$f":"'Population 2016'!AM74*'Prevalence Rates'!AM74","v":895.65325946808503},{"$f":"'Population 2016'!AN74*'Prevalence Rates'!AN74","v":0},{"$f":"'Population 2016'!AO74*'Prevalence Rates'!AO74","v":0},{"$f":"'Population 2016'!AP74*'Prevalence Rates'!AP74","v":32.337509414893617},{"$f":"'Population 2016'!AQ74*'Prevalence Rates'!AQ74","v":303.8419404255319},{"$f":"'Population 2016'!AR74*'Prevalence Rates'!AR74","v":5962.8281999999999},{"$f":"'Population 2016'!AS74*'Prevalence Rates'!AS74","v":41.67067941489362},{"$f":"'Population 2016'!AT74*'Prevalence Rates'!AT74","v":0},{"$f":"'Population 2016'!AU74*'Prevalence Rates'!AU74","v":0},{"$f":"'Population 2016'!AV74*'Prevalence Rates'!AV74","v":125.42448085106381},{"$f":"'Population 2016'!AW74*'Prevalence Rates'!AW74","v":380.50996914893619},{"$f":"'Population 2016'!AX74*'Prevalence Rates'!AX74","v":68.151300000000006},{"$f":"'Population 2016'!AY74*'Prevalence Rates'!AY74","v":457.69840735714934},{"$f":"'Population 2016'!AZ74*'Prevalence Rates'!AZ74","v":311.72974148936174},{"$f":"'Population 2016'!BA74*'Prevalence Rates'!BA74","v":249.28261154255318},{"$f":"'Population 2016'!BB74*'Prevalence Rates'!BB74","v":177.68254595744679},{"$f":"'Population 2016'!BC74*'Prevalence Rates'!BC74","v":0},72]
[null,"Female 75-79",{"$f":"'Population 2016'!C75*'Prevalence Rates'!C75","v":32.085564893617018},{"$f":"'Population 2016'!D75*'Prevalence Rates'!D75","v":21.223720810451113},{"$f":"'Population 2016'!E75*'Prevalence Rates'!E75","v":6.0558989361702134},{"$f":"'Population 2016'!F75*'Prevalence Rates'!F75","v":12.932724468085103},{"$f":"'Population 2016'!G75*'Prevalence Rates'!G75","v":21.456},{"$f":"'Population 2016'!H75*'Prevalence Rates'!H75","v":344.72005957446817},{"$f":"'Population 2016'!I75*'Prevalence Rates'!I75","v":15.833944680851065},{"$f":"'Population 2016'!J75*'Prevalence Rates'!J75","v":61.387999999999998},{"$f":"'Population 2016'!K75*'Prevalence Rates'!K75","v":31.736999999999998},{"$f":"'Population 2016'!L75*'Prevalence Rates'!L75","v":33.493614893617014},{"$f":"'Population 2016'!M75*'Prevalence Rates'!M75","v":33.493614893617014},{"$f":"'Population 2016'!N75*'Prevalence Rates'!N75","v":162.44780478723402},{"$f":"'Population 2016'!O75*'Prevalence Rates'!O75","v":112.39521755319149},{"$f":"'Population 2016'!P75*'Prevalence Rates'!P75","v":9.7127393617021252},{"$f":"'Population 2016'!Q75*'Prevalence Rates'!Q75","v":12.583763297872343},{"$f":"'Population 2016'!R75*'Prevalence Rates'!R75","v":7.0406462765957452},{"$f":"'Population 2016'!S75*'Prevalence Rates'!S75","v":330.3398552854419},{"$f":"'Population 2016'!T75*'Prevalence Rates'!T75","v":108.87588510638297},{"$f":"'Population 2016'!U75*'Prevalence Rates'!U75","v":0},{"$f":"'Population 2016'!V75*'Prevalence Rates'!V75","v":50.246604255319156},{"$f":"'Population 2016'!W75*'Prevalence Rates'!W75","v":209.65964361702126},{"$f":"'Population 2016'!X75*'Prevalence Rates'!X75","v":209.65964361702126},{"$f":"'Population 2016'!Y75*'Prevalence Rates'!Y75","v":100.98712765957447},{"$f":"'Population 2016'!Z75*'Prevalence Rates'!Z75","v":924.69677393617019},{"$f":"'Population 2016'!AA75*'Prevalence Rates'!AA75","v":678.16509832356212},{"$f":"'Population 2016'!AB75*'Prevalence Rates'!AB75","v":40.390095744680856},{"$f":"'Population 2016'!AC75*'Prevalence Rates'!AC75","v":1266.412819148936},{"$f":"'Population 2016'!AD75*'Prevalence Rates'!AD75","v":57.926365425531912},{"$f":"'Population 2016'!AE75*'Prevalence Rates'!AE75","v":37.090696808510636},{"$f":"'Population 2016'!AF75*'Prevalence Rates'!AF75","v":111.899},{"$f":"'Population 2016'!AG75*'Prevalence Rates'!AG75","v":19.815552728954671},{"$f":"'Population 2016'!AH75*'Prevalence Rates'!AH75","v":556.1022382978723},{"$f":"'Population 2016'!AI75*'Prevalence Rates'!AI75","v":222.9463223404255},{"$f":"'Population 2016'!AJ75*'Prevalence Rates'!AJ75","v":19.369999999999997},{"$f":"'Population 2016'!AK75*'Prevalence Rates'!AK75","v":1.82525},{"$f":"'Population 2016'!AL75*'Prevalence Rates'!AL75","v":169.90588882978722},{"$f":"'Population 2016'!AM75*'Prevalence Rates'!AM75","v":403.14502021276587},{"$f":"'Population 2016'!AN75*'Prevalence Rates'!AN75","v":0},{"$f":"'Population 2016'!AO75*'Prevalence Rates'!AO75","v":0},{"$f":"'Population 2016'!AP75*'Prevalence Rates'!AP75","v":11.075534574468085},{"$f":"'Population 2016'!AQ75*'Prevalence Rates'!AQ75","v":165.06441914893614},{"$f":"'Population 2016'!AR75*'Prevalence Rates'!AR75","v":2851.5619999999999},{"$f":"'Population 2016'!AS75*'Prevalence Rates'!AS75","v":15.833944680851065},{"$f":"'Population 2016'!AT75*'Prevalence Rates'!AT75","v":0},{"$f":"'Population 2016'!AU75*'Prevalence Rates'!AU75","v":0},{"$f":"'Population 2016'!AV75*'Prevalence Rates'!AV75","v":59.279491489361689},{"$f":"'Population 2016'!AW75*'Prevalence Rates'!AW75","v":173.89029148936172},{"$f":"'Population 2016'!AX75*'Prevalence Rates'!AX75","v":29.651},{"$f":"'Population 2016'!AY75*'Prevalence Rates'!AY75","v":209.40918803487432},{"$f":"'Population 2016'!AZ75*'Prevalence Rates'!AZ75","v":146.98691489361704},{"$f":"'Population 2016'!BA75*'Prevalence Rates'!BA75","v":117.22892021276596},{"$f":"'Population 2016'!BB75*'Prevalence Rates'!BB75","v":76.837714893617004},{"$f":"'Population 2016'!BC75*'Prevalence Rates'!BC75","v":0},73]
[null,"Female 80-84",{"$f":"'Population 2016'!C76*'Prevalence Rates'!C76","v":24.955439361702126},{"$f":"'Population 2016'!D76*'Prevalence Rates'!D76","v":17.07902112356167},{"$f":"'Population 2016'!E76*'Prevalence Rates'!E76","v":5.6073138297872349},{"$f":"'Population 2016'!F76*'Prevalence Rates'!F76","v":7.5570739361702115},{"$f":"'Population 2016'!G76*'Prevalence Rates'!G76","v":17.433},{"$f":"'Population 2016'!H76*'Prevalence Rates'!H76","v":251.9108127659575},{"$f":"'Population 2016'!I76*'Prevalence Rates'!I76","v":12.484456382978724},{"$f":"'Population 2016'!J76*'Prevalence Rates'!J76","v":46.338999999999999},{"$f":"'Population 2016'!K76*'Prevalence Rates'!K76","v":20.86},{"$f":"'Population 2016'!L76*'Prevalence Rates'!L76","v":26.759448936170209},{"$f":"'Population 2016'!M76*'Prevalence Rates'!M76","v":26.759448936170209},{"$f":"'Population 2016'!N76*'Prevalence Rates'!N76","v":129.91951968085107},{"$f":"'Population 2016'!O76*'Prevalence Rates'!O76","v":85.170936170212769},{"$f":"'Population 2016'!P76*'Prevalence Rates'!P76","v":6.324574468085105},{"$f":"'Population 2016'!Q76*'Prevalence Rates'!Q76","v":7.046907446808512},{"$f":"'Population 2016'!R76*'Prevalence Rates'!R76","v":6.0717499999999998},{"$f":"'Population 2016'!S76*'Prevalence Rates'!S76","v":250.69772645097422},{"$f":"'Population 2016'!T76*'Prevalence Rates'!T76","v":86.24056595744679},{"$f":"'Population 2016'!U76*'Prevalence Rates'!U76","v":0},{"$f":"'Population 2016'!V76*'Prevalence Rates'!V76","v":35.904561702127658},{"$f":"'Population 2016'!W76*'Prevalence Rates'!W76","v":151.44645319148935},{"$f":"'Population 2016'!X76*'Prevalence Rates'!X76","v":151.44645319148935},{"$f":"'Population 2016'!Y76*'Prevalence Rates'!Y76","v":73.984047872340426},{"$f":"'Population 2016'!Z76*'Prevalence Rates'!Z76","v":731.98381968085107},{"$f":"'Population 2016'!AA76*'Prevalence Rates'!AA76","v":531.55345773316765},{"$f":"'Population 2016'!AB76*'Prevalence Rates'!AB76","v":32.759393617021281},{"$f":"'Population 2016'!AC76*'Prevalence Rates'!AC76","v":1003.9429787234042},{"$f":"'Population 2016'!AD76*'Prevalence Rates'!AD76","v":44.754844680851065},{"$f":"'Population 2016'!AE76*'Prevalence Rates'!AE76","v":27.853013829787233},{"$f":"'Population 2016'!AF76*'Prevalence Rates'!AF76","v":89.10199999999999},{"$f":"'Population 2016'!AG76*'Prevalence Rates'!AG76","v":14.88035846438483},{"$f":"'Population 2016'!AH76*'Prevalence Rates'!AH76","v":424.06921702127659},{"$f":"'Population 2016'!AI76*'Prevalence Rates'!AI76","v":175.53975319148932},{"$f":"'Population 2016'!AJ76*'Prevalence Rates'!AJ76","v":20.263999999999999},{"$f":"'Population 2016'!AK76*'Prevalence Rates'!AK76","v":1.82525},{"$f":"'Population 2016'!AL76*'Prevalence Rates'!AL76","v":119.5310494680851},{"$f":"'Population 2016'!AM76*'Prevalence Rates'!AM76","v":303.53725212765954},{"$f":"'Population 2016'!AN76*'Prevalence Rates'!AN76","v":0},{"$f":"'Population 2016'!AO76*'Prevalence Rates'!AO76","v":0},{"$f":"'Population 2016'!AP76*'Prevalence Rates'!AP76","v":12.707718617021277},{"$f":"'Population 2016'!AQ76*'Prevalence Rates'!AQ76","v":135.60093723404253},{"$f":"'Population 2016'!AR76*'Prevalence Rates'!AR76","v":2201.6239999999998},{"$f":"'Population 2016'!AS76*'Prevalence Rates'!AS76","v":12.484456382978724},{"$f":"'Population 2016'!AT76*'Prevalence Rates'!AT76","v":0},{"$f":"'Population 2016'!AU76*'Prevalence Rates'!AU76","v":0},{"$f":"'Population 2016'!AV76*'Prevalence Rates'!AV76","v":45.157937234042542},{"$f":"'Population 2016'!AW76*'Prevalence Rates'!AW76","v":135.27931914893617},{"$f":"'Population 2016'!AX76*'Prevalence Rates'!AX76","v":25.478999999999999},{"$f":"'Population 2016'!AY76*'Prevalence Rates'!AY76","v":158.26747152493746},{"$f":"'Population 2016'!AZ76*'Prevalence Rates'!AZ76","v":117.18865851063831},{"$f":"'Population 2016'!BA76*'Prevalence Rates'!BA76","v":89.014502127659568},{"$f":"'Population 2016'!BB76*'Prevalence Rates'!BB76","v":57.106944680851051},{"$f":"'Population 2016'!BC76*'Prevalence Rates'!BC76","v":0},74]
[null,"Female 85-89",{"$f":"'Population 2016'!C77*'Prevalence Rates'!C77","v":19.145707446808512},{"$f":"'Population 2016'!D77*'Prevalence Rates'!D77","v":12.862861097243099},{"$f":"'Population 2016'!E77*'Prevalence Rates'!E77","v":3.9251196808510644},{"$f":"'Population 2016'!F77*'Prevalence Rates'!F77","v":4.6744787234042544},{"$f":"'Population 2016'!G77*'Prevalence Rates'!G77","v":12.814},{"$f":"'Population 2016'!H77*'Prevalence Rates'!H77","v":154.73229946808513},{"$f":"'Population 2016'!I77*'Prevalence Rates'!I77","v":8.9827186170212769},{"$f":"'Population 2016'!J77*'Prevalence Rates'!J77","v":24.584999999999997},{"$f":"'Population 2016'!K77*'Prevalence Rates'!K77","v":13.112},{"$f":"'Population 2016'!L77*'Prevalence Rates'!L77","v":17.898704255319146},{"$f":"'Population 2016'!M77*'Prevalence Rates'!M77","v":17.898704255319146},{"$f":"'Population 2016'!N77*'Prevalence Rates'!N77","v":85.580369148936171},{"$f":"'Population 2016'!O77*'Prevalence Rates'!O77","v":57.946654787234039},{"$f":"'Population 2016'!P77*'Prevalence Rates'!P77","v":3.7269813829787228},{"$f":"'Population 2016'!Q77*'Prevalence Rates'!Q77","v":3.523453723404256},{"$f":"'Population 2016'!R77*'Prevalence Rates'!R77","v":2.8420957446808512},{"$f":"'Population 2016'!S77*'Prevalence Rates'!S77","v":151.01250527334489},{"$f":"'Population 2016'!T77*'Prevalence Rates'!T77","v":57.606887234042546},{"$f":"'Population 2016'!U77*'Prevalence Rates'!U77","v":0},{"$f":"'Population 2016'!V77*'Prevalence Rates'!V77","v":21.463608510638299},{"$f":"'Population 2016'!W77*'Prevalence Rates'!W77","v":92.926069148936165},{"$f":"'Population 2016'!X77*'Prevalence Rates'!X77","v":92.926069148936165},{"$f":"'Population 2016'!Y77*'Prevalence Rates'!Y77","v":41.931611702127661},{"$f":"'Population 2016'!Z77*'Prevalence Rates'!Z77","v":426.64406382978723},{"$f":"'Population 2016'!AA77*'Prevalence Rates'!AA77","v":312.73385894014405},{"$f":"'Population 2016'!AB77*'Prevalence Rates'!AB77","v":24.734000000000002},{"$f":"'Population 2016'!AC77*'Prevalence Rates'!AC77","v":595.34218085106374},{"$f":"'Population 2016'!AD77*'Prevalence Rates'!AD77","v":29.458885106382979},{"$f":"'Population 2016'!AE77*'Prevalence Rates'!AE77","v":17.075717021276596},{"$f":"'Population 2016'!AF77*'Prevalence Rates'!AF77","v":53.788999999999994},{"$f":"'Population 2016'!AG77*'Prevalence Rates'!AG77","v":9.1226318223866798},{"$f":"'Population 2016'!AH77*'Prevalence Rates'!AH77","v":244.60854468085108},{"$f":"'Population 2016'!AI77*'Prevalence Rates'!AI77","v":102.93997872340424},{"$f":"'Population 2016'!AJ77*'Prevalence Rates'!AJ77","v":10.728},{"$f":"'Population 2016'!AK77*'Prevalence Rates'!AK77","v":1.4601999999999999},{"$f":"'Population 2016'!AL77*'Prevalence Rates'!AL77","v":65.953185638297867},{"$f":"'Population 2016'!AM77*'Prevalence Rates'!AM77","v":183.22910425531913},{"$f":"'Population 2016'!AN77*'Prevalence Rates'!AN77","v":0},{"$f":"'Population 2016'!AO77*'Prevalence Rates'!AO77","v":0},{"$f":"'Population 2016'!AP77*'Prevalence Rates'!AP77","v":6.0623978723404255},{"$f":"'Population 2016'!AQ77*'Prevalence Rates'!AQ77","v":78.052381914893616},{"$f":"'Population 2016'!AR77*'Prevalence Rates'!AR77","v":1321.481},{"$f":"'Population 2016'!AS77*'Prevalence Rates'!AS77","v":8.9827186170212769},{"$f":"'Population 2016'!AT77*'Prevalence Rates'!AT77","v":0},{"$f":"'Population 2016'!AU77*'Prevalence Rates'!AU77","v":0},{"$f":"'Population 2016'!AV77*'Prevalence Rates'!AV77","v":29.95010957446808},{"$f":"'Population 2016'!AW77*'Prevalence Rates'!AW77","v":72.430802127659575},{"$f":"'Population 2016'!AX77*'Prevalence Rates'!AX77","v":11.472999999999999},{"$f":"'Population 2016'!AY77*'Prevalence Rates'!AY77","v":98.460547234247201},{"$f":"'Population 2016'!AZ77*'Prevalence Rates'!AZ77","v":74.027955319148944},{"$f":"'Population 2016'!BA77*'Prevalence Rates'!BA77","v":64.773945744680844},{"$f":"'Population 2016'!BB77*'Prevalence Rates'!BB77","v":25.345217021276589},{"$f":"'Population 2016'!BC77*'Prevalence Rates'!BC77","v":0},75]
[null,"Female 90+",{"$f":"'Population 2016'!C78*'Prevalence Rates'!C78","v":9.374794680851064},{"$f":"'Population 2016'!D78*'Prevalence Rates'!D78","v":6.3599702091924213},{"$f":"'Population 2016'!E78*'Prevalence Rates'!E78","v":2.0186329787234043},{"$f":"'Population 2016'!F78*'Prevalence Rates'!F78","v":2.8825952127659571},{"$f":"'Population 2016'!G78*'Prevalence Rates'!G78","v":8.1950000000000003},{"$f":"'Population 2016'!H78*'Prevalence Rates'!H78","v":85.57735744680852},{"$f":"'Population 2016'!I78*'Prevalence Rates'!I78","v":3.6539872340425532},{"$f":"'Population 2016'!J78*'Prevalence Rates'!J78","v":14.899999999999999},{"$f":"'Population 2016'!K78*'Prevalence Rates'!K78","v":8.3439999999999994},{"$f":"'Population 2016'!L78*'Prevalence Rates'!L78","v":7.0885957446808501},{"$f":"'Population 2016'!M78*'Prevalence Rates'!M78","v":7.0885957446808501},{"$f":"'Population 2016'!N78*'Prevalence Rates'!N78","v":46.275357978723399},{"$f":"'Population 2016'!O78*'Prevalence Rates'!O78","v":30.874464361702127},{"$f":"'Population 2016'!P78*'Prevalence Rates'!P78","v":0.56469414893617009},{"$f":"'Population 2016'!Q78*'Prevalence Rates'!Q78","v":1.0067010638297875},{"$f":"'Population 2016'!R78*'Prevalence Rates'!R78","v":1.6794202127659574},{"$f":"'Population 2016'!S78*'Prevalence Rates'!S78","v":86.323159615521575},{"$f":"'Population 2016'!T78*'Prevalence Rates'!T78","v":30.670857446808508},{"$f":"'Population 2016'!U78*'Prevalence Rates'!U78","v":0},{"$f":"'Population 2016'!V78*'Prevalence Rates'!V78","v":10.286706382978725},{"$f":"'Population 2016'!W78*'Prevalence Rates'!W78","v":54.066076595744676},{"$f":"'Population 2016'!X78*'Prevalence Rates'!X78","v":54.066076595744676},{"$f":"'Population 2016'!Y78*'Prevalence Rates'!Y78","v":22.392797872340424},{"$f":"'Population 2016'!Z78*'Prevalence Rates'!Z78","v":229.95391914893617},{"$f":"'Population 2016'!AA78*'Prevalence Rates'!AA78","v":168.38067751160412},{"$f":"'Population 2016'!AB78*'Prevalence Rates'!AB78","v":11.972308510638298},{"$f":"'Population 2016'!AC78*'Prevalence Rates'!AC78","v":317.56021276595743},{"$f":"'Population 2016'!AD78*'Prevalence Rates'!AD78","v":17.137139893617022},{"$f":"'Population 2016'!AE78*'Prevalence Rates'!AE78","v":9.237682978723404},{"$f":"'Population 2016'!AF78*'Prevalence Rates'!AF78","v":26.968999999999998},{"$f":"'Population 2016'!AG78*'Prevalence Rates'!AG78","v":4.9351942645698426},{"$f":"'Population 2016'!AH78*'Prevalence Rates'!AH78","v":134.81266382978723},{"$f":"'Population 2016'!AI78*'Prevalence Rates'!AI78","v":59.325935106382964},{"$f":"'Population 2016'!AJ78*'Prevalence Rates'!AJ78","v":5.6619999999999999},{"$f":"'Population 2016'!AK78*'Prevalence Rates'!AK78","v":0.36504999999999999},{"$f":"'Population 2016'!AL78*'Prevalence Rates'!AL78","v":37.417149468085107},{"$f":"'Population 2016'!AM78*'Prevalence Rates'!AM78","v":95.098774468085097},{"$f":"'Population 2016'!AN78*'Prevalence Rates'!AN78","v":0},{"$f":"'Population 2016'!AO78*'Prevalence Rates'!AO78","v":0},{"$f":"'Population 2016'!AP78*'Prevalence Rates'!AP78","v":3.1477835106382979},{"$f":"'Population 2016'!AQ78*'Prevalence Rates'!AQ78","v":36.3555244680851},{"$f":"'Population 2016'!AR78*'Prevalence Rates'!AR78","v":718.92499999999995},{"$f":"'Population 2016'!AS78*'Prevalence Rates'!AS78","v":3.6539872340425532},{"$f":"'Population 2016'!AT78*'Prevalence Rates'!AT78","v":0},{"$f":"'Population 2016'!AU78*'Prevalence Rates'!AU78","v":0},{"$f":"'Population 2016'!AV78*'Prevalence Rates'!AV78","v":16.759646808510634},{"$f":"'Population 2016'!AW78*'Prevalence Rates'!AW78","v":43.965778723404256},{"$f":"'Population 2016'!AX78*'Prevalence Rates'!AX78","v":6.556},{"$f":"'Population 2016'!AY78*'Prevalence Rates'!AY78","v":55.644226435230294},{"$f":"'Population 2016'!AZ78*'Prevalence Rates'!AZ78","v":40.488213829787234},{"$f":"'Population 2016'!BA78*'Prevalence Rates'!BA78","v":42.321627127659575},{"$f":"'Population 2016'!BB78*'Prevalence Rates'!BB78","v":19.730770212765954},{"$f":"'Population 2016'!BC78*'Prevalence Rates'!BC78","v":0},76]
[null,"Male 0-4",{"$f":"'Population 2016'!C79*'Prevalence Rates'!C79","v":0},{"$f":"'Population 2016'!D79*'Prevalence Rates'!D79","v":0},{"$f":"'Population 2016'!E79*'Prevalence Rates'!E79","v":0},{"$f":"'Population 2016'!F79*'Prevalence Rates'!F79","v":0},{"$f":"'Population 2016'!G79*'Prevalence Rates'!G79","v":0},{"$f":"'Population 2016'!H79*'Prevalence Rates'!H79","v":0},{"$f":"'Population 2016'!I79*'Prevalence Rates'!I79","v":0},{"$f":"'Population 2016'!J79*'Prevalence Rates'!J79","v":0},{"$f":"'Population 2016'!K79*'Prevalence Rates'!K79","v":0},{"$f":"'Population 2016'!L79*'Prevalence Rates'!L79","v":0},{"$f":"'Population 2016'!M79*'Prevalence Rates'!M79","v":0},{"$f":"'Population 2016'!N79*'Prevalence Rates'!N79","v":0},{"$f":"'Population 2016'!O79*'Prevalence Rates'!O79","v":0},{"$f":"'Population 2016'!P79*'Prevalence Rates'!P79","v":0},{"$f":"'Population 2016'!Q79*'Prevalence Rates'!Q79","v":0},{"$f":"'Population 2016'!R79*'Prevalence Rates'!R79","v":0},{"$f":"'Population 2016'!S79*'Prevalence Rates'!S79","v":0},{"$f":"'Population 2016'!T79*'Prevalence Rates'!T79","v":0},{"$f":"'Population 2016'!U79*'Prevalence Rates'!U79","v":0},{"$f":"'Population 2016'!V79*'Prevalence Rates'!V79","v":0},{"$f":"'Population 2016'!W79*'Prevalence Rates'!W79","v":0},{"$f":"'Population 2016'!X79*'Prevalence Rates'!X79","v":0},{"$f":"'Population 2016'!Y79*'Prevalence Rates'!Y79","v":0},{"$f":"'Population 2016'!Z79*'Prevalence Rates'!Z79","v":0},{"$f":"'Population 2016'!AA79*'Prevalence Rates'!AA79","v":0},{"$f":"'Population 2016'!AB79*'Prevalence Rates'!AB79","v":0},{"$f":"'Population 2016'!AC79*'Prevalence Rates'!AC79","v":0},{"$f":"'Population 2016'!AD79*'Prevalence Rates'!AD79","v":0},{"$f":"'Population 2016'!AE79*'Prevalence Rates'!AE79","v":0},{"$f":"'Population 2016'!AF79*'Prevalence Rates'!AF79","v":0},{"$f":"'Population 2016'!AG79*'Prevalence Rates'!AG79","v":0},{"$f":"'Population 2016'!AH79*'Prevalence Rates'!AH79","v":0},{"$f":"'Population 2016'!AI79*'Prevalence Rates'!AI79","v":0},{"$f":"'Population 2016'!AJ79*'Prevalence Rates'!AJ79","v":0},{"$f":"'Population 2016'!AK79*'Prevalence Rates'!AK79","v":0},{"$f":"'Population 2016'!AL79*'Prevalence Rates'!AL79","v":0},{"$f":"'Population 2016'!AM79*'Prevalence Rates'!AM79","v":0},{"$f":"'Population 2016'!AN79*'Prevalence Rates'!AN79","v":0},{"$f":"'Population 2016'!AO79*'Prevalence Rates'!AO79","v":0},{"$f":"'Population 2016'!AP79*'Prevalence Rates'!AP79","v":0},{"$f":"'Population 2016'!AQ79*'Prevalence Rates'!AQ79","v":0},{"$f":"'Population 2016'!AR79*'Prevalence Rates'!AR79","v":0},{"$f":"'Population 2016'!AS79*'Prevalence Rates'!AS79","v":0},{"$f":"'Population 2016'!AT79*'Prevalence Rates'!AT79","v":0},{"$f":"'Population 2016'!AU79*'Prevalence Rates'!AU79","v":0},{"$f":"'Population 2016'!AV79*'Prevalence Rates'!AV79","v":0},{"$f":"'Population 2016'!AW79*'Prevalence Rates'!AW79","v":0},{"$f":"'Population 2016'!AX79*'Prevalence Rates'!AX79","v":0},{"$f":"'Population 2016'!AY79*'Prevalence Rates'!AY79","v":0},{"$f":"'Population 2016'!AZ79*'Prevalence Rates'!AZ79","v":0},{"$f":"'Population 2016'!BA79*'Prevalence Rates'!BA79","v":0},{"$f":"'Population 2016'!BB79*'Prevalence Rates'!BB79","v":0},{"$f":"'Population 2016'!BC79*'Prevalence Rates'!BC79","v":0},77]
[null,"Male 5-9",{"$f":"'Population 2016'!C80*'Prevalence Rates'!C80","v":0},{"$f":"'Population 2016'!D80*'Prevalence Rates'!D80","v":0},{"$f":"'Population 2016'!E80*'Prevalence Rates'!E80","v":0},{"$f":"'Population 2016'!F80*'Prevalence Rates'!F80","v":0},{"$f":"'Population 2016'!G80*'Prevalence Rates'!G80","v":0},{"$f":"'Population 2016'!H80*'Prevalence Rates'!H80","v":0},{"$f":"'Population 2016'!I80*'Prevalence Rates'!I80","v":0},{"$f":"'Population 2016'!J80*'Prevalence Rates'!J80","v":0},{"$f":"'Population 2016'!K80*'Prevalence Rates'!K80","v":0},{"$f":"'Population 2016'!L80*'Prevalence Rates'!L80","v":0},{"$f":"'Population 2016'!M80*'Prevalence Rates'!M80","v":0},{"$f":"'Population 2016'!N80*'Prevalence Rates'!N80","v":0},{"$f":"'Population 2016'!O80*'Prevalence Rates'!O80","v":0},{"$f":"'Population 2016'!P80*'Prevalence Rates'!P80","v":0},{"$f":"'Population 2016'!Q80*'Prevalence Rates'!Q80","v":0},{"$f":"'Population 2016'!R80*'Prevalence Rates'!R80","v":0},{"$f":"'Population 2016'!S80*'Prevalence Rates'!S80","v":0},{"$f":"'Population 2016'!T80*'Prevalence Rates'!T80","v":0},{"$f":"'Population 2016'!U80*'Prevalence Rates'!U80","v":0},{"$f":"'Population 2016'!V80*'Prevalence Rates'!V80","v":0},{"$f":"'Population 2016'!W80*'Prevalence Rates'!W80","v":0},{"$f":"'Population 2016'!X80*'Prevalence Rates'!X80","v":0},{"$f":"'Population 2016'!Y80*'Prevalence Rates'!Y80","v":0},{"$f":"'Population 2016'!Z80*'Prevalence Rates'!Z80","v":0},{"$f":"'Population 2016'!AA80*'Prevalence Rates'!AA80","v":0},{"$f":"'Population 2016'!AB80*'Prevalence Rates'!AB80","v":0},{"$f":"'Population 2016'!AC80*'Prevalence Rates'!AC80","v":0},{"$f":"'Population 2016'!AD80*'Prevalence Rates'!AD80","v":0},{"$f":"'Population 2016'!AE80*'Prevalence Rates'!AE80","v":0},{"$f":"'Population 2016'!AF80*'Prevalence Rates'!AF80","v":0},{"$f":"'Population 2016'!AG80*'Prevalence Rates'!AG80","v":0},{"$f":"'Population 2016'!AH80*'Prevalence Rates'!AH80","v":0},{"$f":"'Population 2016'!AI80*'Prevalence Rates'!AI80","v":0},{"$f":"'Population 2016'!AJ80*'Prevalence Rates'!AJ80","v":0},{"$f":"'Population 2016'!AK80*'Prevalence Rates'!AK80","v":0},{"$f":"'Population 2016'!AL80*'Prevalence Rates'!AL80","v":0},{"$f":"'Population 2016'!AM80*'Prevalence Rates'!AM80","v":0},{"$f":"'Population 2016'!AN80*'Prevalence Rates'!AN80","v":0},{"$f":"'Population 2016'!AO80*'Prevalence Rates'!AO80","v":0},{"$f":"'Population 2016'!AP80*'Prevalence Rates'!AP80","v":0},{"$f":"'Population 2016'!AQ80*'Prevalence Rates'!AQ80","v":0},{"$f":"'Population 2016'!AR80*'Prevalence Rates'!AR80","v":0},{"$f":"'Population 2016'!AS80*'Prevalence Rates'!AS80","v":0},{"$f":"'Population 2016'!AT80*'Prevalence Rates'!AT80","v":0},{"$f":"'Population 2016'!AU80*'Prevalence Rates'!AU80","v":0},{"$f":"'Population 2016'!AV80*'Prevalence Rates'!AV80","v":0},{"$f":"'Population 2016'!AW80*'Prevalence Rates'!AW80","v":0},{"$f":"'Population 2016'!AX80*'Prevalence Rates'!AX80","v":0},{"$f":"'Population 2016'!AY80*'Prevalence Rates'!AY80","v":0},{"$f":"'Population 2016'!AZ80*'Prevalence Rates'!AZ80","v":0},{"$f":"'Population 2016'!BA80*'Prevalence Rates'!BA80","v":0},{"$f":"'Population 2016'!BB80*'Prevalence Rates'!BB80","v":0},{"$f":"'Population 2016'!BC80*'Prevalence Rates'!BC80","v":0},78]
[null,"Male 10-15",{"$f":"'Population 2016'!C81*'Prevalence Rates'!C81","v":0},{"$f":"'Population 2016'!D81*'Prevalence Rates'!D81","v":0},{"$f":"'Population 2016'!E81*'Prevalence Rates'!E81","v":0},{"$f":"'Population 2016'!F81*'Prevalence Rates'!F81","v":0},{"$f":"'Population 2016'!G81*'Prevalence Rates'!G81","v":0},{"$f":"'Population 2016'!H81*'Prevalence Rates'!H81","v":0},{"$f":"'Population 2016'!I81*'Prevalence Rates'!I81","v":0},{"$f":"'Population 2016'!J81*'Prevalence Rates'!J81","v":0},{"$f":"'Population 2016'!K81*'Prevalence Rates'!K81","v":0},{"$f":"'Population 2016'!L81*'Prevalence Rates'!L81","v":0},{"$f":"'Population 2016'!M81*'Prevalence Rates'!M81","v":0},{"$f":"'Population 2016'!N81*'Prevalence Rates'!N81","v":0},{"$f":"'Population 2016'!O81*'Prevalence Rates'!O81","v":0},{"$f":"'Population 2016'!P81*'Prevalence Rates'!P81","v":0},{"$f":"'Population 2016'!Q81*'Prevalence Rates'!Q81","v":0},{"$f":"'Population 2016'!R81*'Prevalence Rates'!R81","v":0},{"$f":"'Population 2016'!S81*'Prevalence Rates'!S81","v":0},{"$f":"'Population 2016'!T81*'Prevalence Rates'!T81","v":0},{"$f":"'Population 2016'!U81*'Prevalence Rates'!U81","v":0},{"$f":"'Population 2016'!V81*'Prevalence Rates'!V81","v":0},{"$f":"'Population 2016'!W81*'Prevalence Rates'!W81","v":0},{"$f":"'Population 2016'!X81*'Prevalence Rates'!X81","v":0},{"$f":"'Population 2016'!Y81*'Prevalence Rates'!Y81","v":0},{"$f":"'Population 2016'!Z81*'Prevalence Rates'!Z81","v":0},{"$f":"'Population 2016'!AA81*'Prevalence Rates'!AA81","v":0},{"$f":"'Population 2016'!AB81*'Prevalence Rates'!AB81","v":0},{"$f":"'Population 2016'!AC81*'Prevalence Rates'!AC81","v":0},{"$f":"'Population 2016'!AD81*'Prevalence Rates'!AD81","v":0},{"$f":"'Population 2016'!AE81*'Prevalence Rates'!AE81","v":0},{"$f":"'Population 2016'!AF81*'Prevalence Rates'!AF81","v":0},{"$f":"'Population 2016'!AG81*'Prevalence Rates'!AG81","v":0},{"$f":"'Population 2016'!AH81*'Prevalence Rates'!AH81","v":0},{"$f":"'Population 2016'!AI81*'Prevalence Rates'!AI81","v":0},{"$f":"'Population 2016'!AJ81*'Prevalence Rates'!AJ81","v":0},{"$f":"'Population 2016'!AK81*'Prevalence Rates'!AK81","v":0},{"$f":"'Population 2016'!AL81*'Prevalence Rates'!AL81","v":0},{"$f":"'Population 2016'!AM81*'Prevalence Rates'!AM81","v":0},{"$f":"'Population 2016'!AN81*'Prevalence Rates'!AN81","v":0},{"$f":"'Population 2016'!AO81*'Prevalence Rates'!AO81","v":0},{"$f":"'Population 2016'!AP81*'Prevalence Rates'!AP81","v":0},{"$f":"'Population 2016'!AQ81*'Prevalence Rates'!AQ81","v":0},{"$f":"'Population 2016'!AR81*'Prevalence Rates'!AR81","v":0},{"$f":"'Population 2016'!AS81*'Prevalence Rates'!AS81","v":0},{"$f":"'Population 2016'!AT81*'Prevalence Rates'!AT81","v":0},{"$f":"'Population 2016'!AU81*'Prevalence Rates'!AU81","v":0},{"$f":"'Population 2016'!AV81*'Prevalence Rates'!AV81","v":0},{"$f":"'Population 2016'!AW81*'Prevalence Rates'!AW81","v":0},{"$f":"'Population 2016'!AX81*'Prevalence Rates'!AX81","v":0},{"$f":"'Population 2016'!AY81*'Prevalence Rates'!AY81","v":0},{"$f":"'Population 2016'!AZ81*'Prevalence Rates'!AZ81","v":0},{"$f":"'Population 2016'!BA81*'Prevalence Rates'!BA81","v":0},{"$f":"'Population 2016'!BB81*'Prevalence Rates'!BB81","v":0},{"$f":"'Population 2016'!BC81*'Prevalence Rates'!BC81","v":0},79]
[null,"Male 16-19",{"$f":"'Population 2016'!C82*'Prevalence Rates'!C82","v":141.82483786407767},{"$f":"'Population 2016'!D82*'Prevalence Rates'!D82","v":61.671556798094187},{"$f":"'Population 2016'!E82*'Prevalence Rates'!E82","v":28.438767784642543},{"$f":"'Population 2016'!F82*'Prevalence Rates'!F82","v":92.572737069726415},{"$f":"'Population 2016'!G82*'Prevalence Rates'!G82","v":59.202800000000003},{"$f":"'Population 2016'!H82*'Prevalence Rates'!H82","v":948.26769911738756},{"$f":"'Population 2016'!I82*'Prevalence Rates'!I82","v":43.360266460723743},{"$f":"'Population 2016'!J82*'Prevalence Rates'!J82","v":230.8244},{"$f":"'Population 2016'!K82*'Prevalence Rates'!K82","v":113.7492},{"$f":"'Population 2016'!L82*'Prevalence Rates'!L82","v":101.02086513680496},{"$f":"'Population 2016'!M82*'Prevalence Rates'!M82","v":101.02086513680496},{"$f":"'Population 2016'!N82*'Prevalence Rates'!N82","v":442.92852789055604},{"$f":"'Population 2016'!O82*'Prevalence Rates'!O82","v":318.16287025595761},{"$f":"'Population 2016'!P82*'Prevalence Rates'!P82","v":38.965572462488964},{"$f":"'Population 2016'!Q82*'Prevalence Rates'!Q82","v":28.015899029126217},{"$f":"'Population 2016'!R82*'Prevalence Rates'!R82","v":31.245905913503975},{"$f":"'Population 2016'!S82*'Prevalence Rates'!S82","v":882.41577213557912},{"$f":"'Population 2016'!T82*'Prevalence Rates'!T82","v":426.30850882612532},{"$f":"'Population 2016'!U82*'Prevalence Rates'!U82","v":0},{"$f":"'Population 2016'!V82*'Prevalence Rates'!V82","v":155.54436769638127},{"$f":"'Population 2016'!W82*'Prevalence Rates'!W82","v":649.65674774933814},{"$f":"'Population 2016'!X82*'Prevalence Rates'!X82","v":649.65674774933814},{"$f":"'Population 2016'!Y82*'Prevalence Rates'!Y82","v":339.68352868490729},{"$f":"'Population 2016'!Z82*'Prevalence Rates'!Z82","v":2651.7622628420122},{"$f":"'Population 2016'!AA82*'Prevalence Rates'!AA82","v":1623.6614440701414},{"$f":"'Population 2016'!AB82*'Prevalence Rates'!AB82","v":170.53661359223301},{"$f":"'Population 2016'!AC82*'Prevalence Rates'!AC82","v":3490.0490054721977},{"$f":"'Population 2016'!AD82*'Prevalence Rates'!AD82","v":207.30638022947926},{"$f":"'Population 2016'!AE82*'Prevalence Rates'!AE82","v":147.43896734333626},{"$f":"'Population 2016'!AF82*'Prevalence Rates'!AF82","v":257.43240000000003},{"$f":"'Population 2016'!AG82*'Prevalence Rates'!AG82","v":56.777738976936952},{"$f":"'Population 2016'!AH82*'Prevalence Rates'!AH82","v":1333.4048487202119},{"$f":"'Population 2016'!AI82*'Prevalence Rates'!AI82","v":747.37421676963822},{"$f":"'Population 2016'!AJ82*'Prevalence Rates'!AJ82","v":68.848200000000006},{"$f":"'Population 2016'!AK82*'Prevalence Rates'!AK82","v":8.257462842012357},{"$f":"'Population 2016'!AL82*'Prevalence Rates'!AL82","v":579.53128155339812},{"$f":"'Population 2016'!AM82*'Prevalence Rates'!AM82","v":877.1436990291262},{"$f":"'Population 2016'!AN82*'Prevalence Rates'!AN82","v":0},{"$f":"'Population 2016'!AO82*'Prevalence Rates'!AO82","v":0},{"$f":"'Population 2016'!AP82*'Prevalence Rates'!AP82","v":50.373928596646067},{"$f":"'Population 2016'!AQ82*'Prevalence Rates'!AQ82","v":372.77385278022956},{"$f":"'Population 2016'!AR82*'Prevalence Rates'!AR82","v":8434.4034000000011},{"$f":"'Population 2016'!AS82*'Prevalence Rates'!AS82","v":43.360266460723743},{"$f":"'Population 2016'!AT82*'Prevalence Rates'!AT82","v":0},{"$f":"'Population 2016'!AU82*'Prevalence Rates'!AU82","v":0},{"$f":"'Population 2016'!AV82*'Prevalence Rates'!AV82","v":113.2381173874669},{"$f":"'Population 2016'!AW82*'Prevalence Rates'!AW82","v":460.67653945278022},{"$f":"'Population 2016'!AX82*'Prevalence Rates'!AX82","v":117.0752},{"$f":"'Population 2016'!AY82*'Prevalence Rates'!AY82","v":529.73155758948462},{"$f":"'Population 2016'!AZ82*'Prevalence Rates'!AZ82","v":553.22608552515442},{"$f":"'Population 2016'!BA82*'Prevalence Rates'!BA82","v":321.41401323918802},{"$f":"'Population 2016'!BB82*'Prevalence Rates'!BB82","v":198.01706478375993},{"$f":"'Population 2016'!BC82*'Prevalence Rates'!BC82","v":0},80]
[null,"Male 20-24",{"$f":"'Population 2016'!C83*'Prevalence Rates'!C83","v":231.735013592233},{"$f":"'Population 2016'!D83*'Prevalence Rates'!D83","v":112.22635228494393},{"$f":"'Population 2016'!E83*'Prevalence Rates'!E83","v":74.132518270079444},{"$f":"'Population 2016'!F83*'Prevalence Rates'!F83","v":130.60054192409535},{"$f":"'Population 2016'!G83*'Prevalence Rates'!G83","v":92.795400000000001},{"$f":"'Population 2016'!H83*'Prevalence Rates'!H83","v":1329.1661802294793},{"$f":"'Population 2016'!I83*'Prevalence Rates'!I83","v":51.689357193292146},{"$f":"'Population 2016'!J83*'Prevalence Rates'!J83","v":295.01620000000003},{"$f":"'Population 2016'!K83*'Prevalence Rates'!K83","v":142.02020000000002},{"$f":"'Population 2016'!L83*'Prevalence Rates'!L83","v":150.84408093556931},{"$f":"'Population 2016'!M83*'Prevalence Rates'!M83","v":150.84408093556931},{"$f":"'Population 2016'!N83*'Prevalence Rates'!N83","v":731.15358190644304},{"$f":"'Population 2016'!O83*'Prevalence Rates'!O83","v":439.67400900264784},{"$f":"'Population 2016'!P83*'Prevalence Rates'!P83","v":48.420454015887024},{"$f":"'Population 2016'!Q83*'Prevalence Rates'!Q83","v":37.885136187113858},{"$f":"'Population 2016'!R83*'Prevalence Rates'!R83","v":37.18837881729921},{"$f":"'Population 2016'!S83*'Prevalence Rates'!S83","v":1207.2579014728256},{"$f":"'Population 2016'!T83*'Prevalence Rates'!T83","v":624.26788967343339},{"$f":"'Population 2016'!U83*'Prevalence Rates'!U83","v":0},{"$f":"'Population 2016'!V83*'Prevalence Rates'!V83","v":228.35896213592233},{"$f":"'Population 2016'!W83*'Prevalence Rates'!W83","v":837.19779320388363},{"$f":"'Population 2016'!X83*'Prevalence Rates'!X83","v":837.19779320388363},{"$f":"'Population 2016'!Y83*'Prevalence Rates'!Y83","v":461.24251721094436},{"$f":"'Population 2016'!Z83*'Prevalence Rates'!Z83","v":4138.5749719329215},{"$f":"'Population 2016'!AA83*'Prevalence Rates'!AA83","v":2419.9816972119484},{"$f":"'Population 2016'!AB83*'Prevalence Rates'!AB83","v":304.10619029126218},{"$f":"'Population 2016'!AC83*'Prevalence Rates'!AC83","v":5355.9062368932036},{"$f":"'Population 2016'!AD83*'Prevalence Rates'!AD83","v":297.91478111209182},{"$f":"'Population 2016'!AE83*'Prevalence Rates'!AE83","v":203.53769638128861},{"$f":"'Population 2016'!AF83*'Prevalence Rates'!AF83","v":366.52519999999998},{"$f":"'Population 2016'!AG83*'Prevalence Rates'!AG83","v":78.380976246210523},{"$f":"'Population 2016'!AH83*'Prevalence Rates'!AH83","v":1850.1865754633718},{"$f":"'Population 2016'!AI83*'Prevalence Rates'!AI83","v":1073.5387150044132},{"$f":"'Population 2016'!AJ83*'Prevalence Rates'!AJ83","v":110.09060000000001},{"$f":"'Population 2016'!AK83*'Prevalence Rates'!AK83","v":8.616482965578113},{"$f":"'Population 2016'!AL83*'Prevalence Rates'!AL83","v":791.88507961165055},{"$f":"'Population 2016'!AM83*'Prevalence Rates'!AM83","v":1203.9038242718448},{"$f":"'Population 2016'!AN83*'Prevalence Rates'!AN83","v":0},{"$f":"'Population 2016'!AO83*'Prevalence Rates'!AO83","v":0},{"$f":"'Population 2016'!AP83*'Prevalence Rates'!AP83","v":91.026572727272722},{"$f":"'Population 2016'!AQ83*'Prevalence Rates'!AQ83","v":609.42242224183587},{"$f":"'Population 2016'!AR83*'Prevalence Rates'!AR83","v":12366.068000000001},{"$f":"'Population 2016'!AS83*'Prevalence Rates'!AS83","v":51.689357193292146},{"$f":"'Population 2016'!AT83*'Prevalence Rates'!AT83","v":0},{"$f":"'Population 2016'!AU83*'Prevalence Rates'!AU83","v":0},{"$f":"'Population 2016'!AV83*'Prevalence Rates'!AV83","v":176.29414563106795},{"$f":"'Population 2016'!AW83*'Prevalence Rates'!AW83","v":652.10207696381281},{"$f":"'Population 2016'!AX83*'Prevalence Rates'!AX83","v":152.99600000000001},{"$f":"'Population 2016'!AY83*'Prevalence Rates'!AY83","v":767.92982851032809},{"$f":"'Population 2016'!AZ83*'Prevalence Rates'!AZ83","v":902.35612939099724},{"$f":"'Population 2016'!BA83*'Prevalence Rates'!BA83","v":453.963773168579},{"$f":"'Population 2016'!BB83*'Prevalence Rates'!BB83","v":266.08543080317742},{"$f":"'Population 2016'!BC83*'Prevalence Rates'!BC83","v":0},81]
[null,"Male 25-29",{"$f":"'Population 2016'!C84*'Prevalence Rates'!C84","v":479.03714174757283},{"$f":"'Population 2016'!D84*'Prevalence Rates'!D84","v":211.38622063941332},{"$f":"'Population 2016'!E84*'Prevalence Rates'!E84","v":103.49377299205649},{"$f":"'Population 2016'!F84*'Prevalence Rates'!F84","v":148.53657758164169},{"$f":"'Population 2016'!G84*'Prevalence Rates'!G84","v":92.160000000000011},{"$f":"'Population 2016'!H84*'Prevalence Rates'!H84","v":1575.9555219770521},{"$f":"'Population 2016'!I84*'Prevalence Rates'!I84","v":47.66652215357459},{"$f":"'Population 2016'!J84*'Prevalence Rates'!J84","v":354.30400000000003},{"$f":"'Population 2016'!K84*'Prevalence Rates'!K84","v":141.7216},{"$f":"'Population 2016'!L84*'Prevalence Rates'!L84","v":209.88583654015889},{"$f":"'Population 2016'!M84*'Prevalence Rates'!M84","v":209.88583654015889},{"$f":"'Population 2016'!N84*'Prevalence Rates'!N84","v":1264.6906125330979},{"$f":"'Population 2016'!O84*'Prevalence Rates'!O84","v":534.37652391879965},{"$f":"'Population 2016'!P84*'Prevalence Rates'!P84","v":57.513190467784646},{"$f":"'Population 2016'!Q84*'Prevalence Rates'!Q84","v":41.166969108561347},{"$f":"'Population 2016'!R84*'Prevalence Rates'!R84","v":46.269977758164174},{"$f":"'Population 2016'!S84*'Prevalence Rates'!S84","v":1767.7974714522538},{"$f":"'Population 2016'!T84*'Prevalence Rates'!T84","v":1166.4787996469552},{"$f":"'Population 2016'!U84*'Prevalence Rates'!U84","v":0},{"$f":"'Population 2016'!V84*'Prevalence Rates'!V84","v":317.47651332744925},{"$f":"'Population 2016'!W84*'Prevalence Rates'!W84","v":1094.6986591350399},{"$f":"'Population 2016'!X84*'Prevalence Rates'!X84","v":1094.6986591350399},{"$f":"'Population 2016'!Y84*'Prevalence Rates'!Y84","v":593.55757811120918},{"$f":"'Population 2016'!Z84*'Prevalence Rates'!Z84","v":6498.1883142100614},{"$f":"'Population 2016'!AA84*'Prevalence Rates'!AA84","v":3404.7507537790143},{"$f":"'Population 2016'!AB84*'Prevalence Rates'!AB84","v":562.19389514563102},{"$f":"'Population 2016'!AC84*'Prevalence Rates'!AC84","v":8013.5778061782876},{"$f":"'Population 2016'!AD84*'Prevalence Rates'!AD84","v":356.89861535745808},{"$f":"'Population 2016'!AE84*'Prevalence Rates'!AE84","v":264.38721977052074},{"$f":"'Population 2016'!AF84*'Prevalence Rates'!AF84","v":455.06560000000002},{"$f":"'Population 2016'!AG84*'Prevalence Rates'!AG84","v":101.81371196131855},{"$f":"'Population 2016'!AH84*'Prevalence Rates'!AH84","v":2177.6020674315978},{"$f":"'Population 2016'!AI84*'Prevalence Rates'!AI84","v":1712.1153468667258},{"$f":"'Population 2016'!AJ84*'Prevalence Rates'!AJ84","v":104.44800000000001},{"$f":"'Population 2016'!AK84*'Prevalence Rates'!AK84","v":5.3056395410414838},{"$f":"'Population 2016'!AL84*'Prevalence Rates'!AL84","v":889.25750679611667},{"$f":"'Population 2016'!AM84*'Prevalence Rates'!AM84","v":1414.1658718446602},{"$f":"'Population 2016'!AN84*'Prevalence Rates'!AN84","v":0},{"$f":"'Population 2016'!AO84*'Prevalence Rates'!AO84","v":0},{"$f":"'Population 2016'!AP84*'Prevalence Rates'!AP84","v":160.71304924977935},{"$f":"'Population 2016'!AQ84*'Prevalence Rates'!AQ84","v":887.20010732568414},{"$f":"'Population 2016'!AR84*'Prevalence Rates'!AR84","v":17448.96},{"$f":"'Population 2016'!AS84*'Prevalence Rates'!AS84","v":47.66652215357459},{"$f":"'Population 2016'!AT84*'Prevalence Rates'!AT84","v":0},{"$f":"'Population 2016'!AU84*'Prevalence Rates'!AU84","v":0},{"$f":"'Population 2016'!AV84*'Prevalence Rates'!AV84","v":229.72667255075024},{"$f":"'Population 2016'!AW84*'Prevalence Rates'!AW84","v":770.22044413062667},{"$f":"'Population 2016'!AX84*'Prevalence Rates'!AX84","v":212.58240000000001},{"$f":"'Population 2016'!AY84*'Prevalence Rates'!AY84","v":1145.666756675412},{"$f":"'Population 2016'!AZ84*'Prevalence Rates'!AZ84","v":1494.3046721977053},{"$f":"'Population 2016'!BA84*'Prevalence Rates'!BA84","v":551.9839011473963},{"$f":"'Population 2016'!BB84*'Prevalence Rates'!BB84","v":336.30130273609888},{"$f":"'Population 2016'!BC84*'Prevalence Rates'!BC84","v":0},82]
[null,"Male 30-34",{"$f":"'Population 2016'!C85*'Prevalence Rates'!C85","v":401.66847378640779},{"$f":"'Population 2016'!D85*'Prevalence Rates'!D85","v":185.79822014566784},{"$f":"'Population 2016'!E85*'Prevalence Rates'!E85","v":107.42889744042367},{"$f":"'Population 2016'!F85*'Prevalence Rates'!F85","v":122.0459777581642},{"$f":"'Population 2016'!G85*'Prevalence Rates'!G85","v":72.089600000000004},{"$f":"'Population 2016'!H85*'Prevalence Rates'!H85","v":1389.3460278905561},{"$f":"'Population 2016'!I85*'Prevalence Rates'!I85","v":52.493511738746697},{"$f":"'Population 2016'!J85*'Prevalence Rates'!J85","v":310.88640000000004},{"$f":"'Population 2016'!K85*'Prevalence Rates'!K85","v":148.6848},{"$f":"'Population 2016'!L85*'Prevalence Rates'!L85","v":146.41229726390117},{"$f":"'Population 2016'!M85*'Prevalence Rates'!M85","v":146.41229726390117},{"$f":"'Population 2016'!N85*'Prevalence Rates'!N85","v":992.18821535745815},{"$f":"'Population 2016'!O85*'Prevalence Rates'!O85","v":465.18268384819066},{"$f":"'Population 2016'!P85*'Prevalence Rates'!P85","v":47.280782347749344},{"$f":"'Population 2016'!Q85*'Prevalence Rates'!Q85","v":43.12730097087379},{"$f":"'Population 2016'!R85*'Prevalence Rates'!R85","v":43.43712197705208},{"$f":"'Population 2016'!S85*'Prevalence Rates'!S85","v":1600.9100374254301},{"$f":"'Population 2016'!T85*'Prevalence Rates'!T85","v":1007.683784642542},{"$f":"'Population 2016'!U85*'Prevalence Rates'!U85","v":0},{"$f":"'Population 2016'!V85*'Prevalence Rates'!V85","v":291.52891368049427},{"$f":"'Population 2016'!W85*'Prevalence Rates'!W85","v":1025.6353270962049},{"$f":"'Population 2016'!X85*'Prevalence Rates'!X85","v":1025.6353270962049},{"$f":"'Population 2016'!Y85*'Prevalence Rates'!Y85","v":532.69781465136805},{"$f":"'Population 2016'!Z85*'Prevalence Rates'!Z85","v":5690.0587212709615},{"$f":"'Population 2016'!AA85*'Prevalence Rates'!AA85","v":3092.5484447881836},{"$f":"'Population 2016'!AB85*'Prevalence Rates'!AB85","v":493.47653592233007},{"$f":"'Population 2016'!AC85*'Prevalence Rates'!AC85","v":7162.0609807590472},{"$f":"'Population 2016'!AD85*'Prevalence Rates'!AD85","v":345.60985136804942},{"$f":"'Population 2016'!AE85*'Prevalence Rates'!AE85","v":274.57299205648718},{"$f":"'Population 2016'!AF85*'Prevalence Rates'!AF85","v":428.44159999999999},{"$f":"'Population 2016'!AG85*'Prevalence Rates'!AG85","v":105.73618327641123},{"$f":"'Population 2016'!AH85*'Prevalence Rates'!AH85","v":2081.7672360105917},{"$f":"'Population 2016'!AI85*'Prevalence Rates'!AI85","v":1511.4597902912624},{"$f":"'Population 2016'!AJ85*'Prevalence Rates'!AJ85","v":115.0976},{"$f":"'Population 2016'!AK85*'Prevalence Rates'!AK85","v":3.9792296557811127},{"$f":"'Population 2016'!AL85*'Prevalence Rates'!AL85","v":807.46873786407775},{"$f":"'Population 2016'!AM85*'Prevalence Rates'!AM85","v":1333.4468349514564},{"$f":"'Population 2016'!AN85*'Prevalence Rates'!AN85","v":0},{"$f":"'Population 2016'!AO85*'Prevalence Rates'!AO85","v":0},{"$f":"'Population 2016'!AP85*'Prevalence Rates'!AP85","v":112.46285613415711},{"$f":"'Population 2016'!AQ85*'Prevalence Rates'!AQ85","v":834.32917069726398},{"$f":"'Population 2016'!AR85*'Prevalence Rates'!AR85","v":15567.257600000001},{"$f":"'Population 2016'!AS85*'Prevalence Rates'!AS85","v":52.493511738746697},{"$f":"'Population 2016'!AT85*'Prevalence Rates'!AT85","v":0},{"$f":"'Population 2016'!AU85*'Prevalence Rates'!AU85","v":0},{"$f":"'Population 2016'!AV85*'Prevalence Rates'!AV85","v":192.51742277140337},{"$f":"'Population 2016'!AW85*'Prevalence Rates'!AW85","v":754.37546760812006},{"$f":"'Population 2016'!AX85*'Prevalence Rates'!AX85","v":162.20160000000001},{"$f":"'Population 2016'!AY85*'Prevalence Rates'!AY85","v":965.86314595415661},{"$f":"'Population 2016'!AZ85*'Prevalence Rates'!AZ85","v":1161.1849094439542},{"$f":"'Population 2016'!BA85*'Prevalence Rates'!BA85","v":539.71759223300967},{"$f":"'Population 2016'!BB85*'Prevalence Rates'!BB85","v":293.55956081200355},{"$f":"'Population 2016'!BC85*'Prevalence Rates'!BC85","v":0},83]
[null,"Male 35-39",{"$f":"'Population 2016'!C86*'Prevalence Rates'!C86","v":442.93367864077669},{"$f":"'Population 2016'!D86*'Prevalence Rates'!D86","v":194.87091613706599},{"$f":"'Population 2016'!E86*'Prevalence Rates'!E86","v":94.284179126213601},{"$f":"'Population 2016'!F86*'Prevalence Rates'!F86","v":140.16956893203886},{"$f":"'Population 2016'!G86*'Prevalence Rates'!G86","v":71.115000000000009},{"$f":"'Population 2016'!H86*'Prevalence Rates'!H86","v":1437.0079796116506},{"$f":"'Population 2016'!I86*'Prevalence Rates'!I86","v":65.29921990291264},{"$f":"'Population 2016'!J86*'Prevalence Rates'!J86","v":311.4837},{"$f":"'Population 2016'!K86*'Prevalence Rates'!K86","v":171.6242},{"$f":"'Population 2016'!L86*'Prevalence Rates'!L86","v":145.95794077669905},{"$f":"'Population 2016'!M86*'Prevalence Rates'!M86","v":145.95794077669905},{"$f":"'Population 2016'!N86*'Prevalence Rates'!N86","v":826.54522864077671},{"$f":"'Population 2016'!O86*'Prevalence Rates'!O86","v":457.38054757281554},{"$f":"'Population 2016'!P86*'Prevalence Rates'!P86","v":55.542928155339801},{"$f":"'Population 2016'!Q86*'Prevalence Rates'!Q86","v":39.027259223300973},{"$f":"'Population 2016'!R86*'Prevalence Rates'!R86","v":45.085529126213594},{"$f":"'Population 2016'!S86*'Prevalence Rates'!S86","v":1712.7501983710258},{"$f":"'Population 2016'!T86*'Prevalence Rates'!T86","v":1060.6993689320389},{"$f":"'Population 2016'!U86*'Prevalence Rates'!U86","v":0},{"$f":"'Population 2016'!V86*'Prevalence Rates'!V86","v":318.44434999999999},{"$f":"'Population 2016'!W86*'Prevalence Rates'!W86","v":1102.0132296116506},{"$f":"'Population 2016'!X86*'Prevalence Rates'!X86","v":1102.0132296116506},{"$f":"'Population 2016'!Y86*'Prevalence Rates'!Y86","v":557.87928640776704},{"$f":"'Population 2016'!Z86*'Prevalence Rates'!Z86","v":5372.0760582524272},{"$f":"'Population 2016'!AA86*'Prevalence Rates'!AA86","v":3065.6406957961335},{"$f":"'Population 2016'!AB86*'Prevalence Rates'!AB86","v":526.44432233009707},{"$f":"'Population 2016'!AC86*'Prevalence Rates'!AC86","v":6796.9654058252427},{"$f":"'Population 2016'!AD86*'Prevalence Rates'!AD86","v":307.56327378640776},{"$f":"'Population 2016'!AE86*'Prevalence Rates'!AE86","v":236.81985436893203},{"$f":"'Population 2016'!AF86*'Prevalence Rates'!AF86","v":393.97710000000001},{"$f":"'Population 2016'!AG86*'Prevalence Rates'!AG86","v":91.197707893626003},{"$f":"'Population 2016'!AH86*'Prevalence Rates'!AH86","v":2333.0682776699032},{"$f":"'Population 2016'!AI86*'Prevalence Rates'!AI86","v":1602.2086058252428},{"$f":"'Population 2016'!AJ86*'Prevalence Rates'!AJ86","v":112.83580000000001},{"$f":"'Population 2016'!AK86*'Prevalence Rates'!AK86","v":13.305765048543691},{"$f":"'Population 2016'!AL86*'Prevalence Rates'!AL86","v":834.52646990291282},{"$f":"'Population 2016'!AM86*'Prevalence Rates'!AM86","v":1453.6596436893205},{"$f":"'Population 2016'!AN86*'Prevalence Rates'!AN86","v":0},{"$f":"'Population 2016'!AO86*'Prevalence Rates'!AO86","v":0},{"$f":"'Population 2016'!AP86*'Prevalence Rates'!AP86","v":128.07290533980583},{"$f":"'Population 2016'!AQ86*'Prevalence Rates'!AQ86","v":801.02814563106801},{"$f":"'Population 2016'!AR86*'Prevalence Rates'!AR86","v":15637.714400000001},{"$f":"'Population 2016'!AS86*'Prevalence Rates'!AS86","v":65.29921990291264},{"$f":"'Population 2016'!AT86*'Prevalence Rates'!AT86","v":0},{"$f":"'Population 2016'!AU86*'Prevalence Rates'!AU86","v":0},{"$f":"'Population 2016'!AV86*'Prevalence Rates'!AV86","v":217.96465048543686},{"$f":"'Population 2016'!AW86*'Prevalence Rates'!AW86","v":885.24512718446601},{"$f":"'Population 2016'!AX86*'Prevalence Rates'!AX86","v":139.8595},{"$f":"'Population 2016'!AY86*'Prevalence Rates'!AY86","v":945.72319531067944},{"$f":"'Population 2016'!AZ86*'Prevalence Rates'!AZ86","v":1043.148463106796},{"$f":"'Population 2016'!BA86*'Prevalence Rates'!BA86","v":522.0456116504854},{"$f":"'Population 2016'!BB86*'Prevalence Rates'!BB86","v":331.34945242718447},{"$f":"'Population 2016'!BC86*'Prevalence Rates'!BC86","v":0},84]
[null,"Male 40-44",{"$f":"'Population 2016'!C87*'Prevalence Rates'!C87","v":361.96154126213594},{"$f":"'Population 2016'!D87*'Prevalence Rates'!D87","v":167.32865693473138},{"$f":"'Population 2016'!E87*'Prevalence Rates'!E87","v":96.561574757281562},{"$f":"'Population 2016'!F87*'Prevalence Rates'!F87","v":137.43188203883497},{"$f":"'Population 2016'!G87*'Prevalence Rates'!G87","v":79.174700000000001},{"$f":"'Population 2016'!H87*'Prevalence Rates'!H87","v":1569.1693174757283},{"$f":"'Population 2016'!I87*'Prevalence Rates'!I87","v":66.346800970873801},{"$f":"'Population 2016'!J87*'Prevalence Rates'!J87","v":300.1053},{"$f":"'Population 2016'!K87*'Prevalence Rates'!K87","v":166.88320000000002},{"$f":"'Population 2016'!L87*'Prevalence Rates'!L87","v":167.01898592233013},{"$f":"'Population 2016'!M87*'Prevalence Rates'!M87","v":167.01898592233013},{"$f":"'Population 2016'!N87*'Prevalence Rates'!N87","v":698.76230679611649},{"$f":"'Population 2016'!O87*'Prevalence Rates'!O87","v":541.81261067961168},{"$f":"'Population 2016'!P87*'Prevalence Rates'!P87","v":55.542928155339801},{"$f":"'Population 2016'!Q87*'Prevalence Rates'!Q87","v":60.356110194174761},{"$f":"'Population 2016'!R87*'Prevalence Rates'!R87","v":46.17851165048544},{"$f":"'Population 2016'!S87*'Prevalence Rates'!S87","v":1665.4382036791815},{"$f":"'Population 2016'!T87*'Prevalence Rates'!T87","v":959.48759708737862},{"$f":"'Population 2016'!U87*'Prevalence Rates'!U87","v":0},{"$f":"'Population 2016'!V87*'Prevalence Rates'!V87","v":333.01947281553396},{"$f":"'Population 2016'!W87*'Prevalence Rates'!W87","v":1091.1124864077669},{"$f":"'Population 2016'!X87*'Prevalence Rates'!X87","v":1091.1124864077669},{"$f":"'Population 2016'!Y87*'Prevalence Rates'!Y87","v":561.52291019417476},{"$f":"'Population 2016'!Z87*'Prevalence Rates'!Z87","v":4827.0828349514568},{"$f":"'Population 2016'!AA87*'Prevalence Rates'!AA87","v":2873.0341305532561},{"$f":"'Population 2016'!AB87*'Prevalence Rates'!AB87","v":455.85405436893205},{"$f":"'Population 2016'!AC87*'Prevalence Rates'!AC87","v":6169.5766990291268},{"$f":"'Population 2016'!AD87*'Prevalence Rates'!AD87","v":351.78805825242722},{"$f":"'Population 2016'!AE87*'Prevalence Rates'!AE87","v":273.21424757281551},{"$f":"'Population 2016'!AF87*'Prevalence Rates'!AF87","v":404.88140000000004},{"$f":"'Population 2016'!AG87*'Prevalence Rates'!AG87","v":105.21294005909667},{"$f":"'Population 2016'!AH87*'Prevalence Rates'!AH87","v":2364.7614233009713},{"$f":"'Population 2016'!AI87*'Prevalence Rates'!AI87","v":1538.6756490291264},{"$f":"'Population 2016'!AJ87*'Prevalence Rates'!AJ87","v":126.58470000000001},{"$f":"'Population 2016'!AK87*'Prevalence Rates'!AK87","v":15.352805825242722},{"$f":"'Population 2016'!AL87*'Prevalence Rates'!AL87","v":899.04549611650498},{"$f":"'Population 2016'!AM87*'Prevalence Rates'!AM87","v":1465.5673786407767},{"$f":"'Population 2016'!AN87*'Prevalence Rates'!AN87","v":0},{"$f":"'Population 2016'!AO87*'Prevalence Rates'!AO87","v":0},{"$f":"'Population 2016'!AP87*'Prevalence Rates'!AP87","v":105.81761359223302},{"$f":"'Population 2016'!AQ87*'Prevalence Rates'!AQ87","v":700.52647766990299},{"$f":"'Population 2016'!AR87*'Prevalence Rates'!AR87","v":14992.464300000001},{"$f":"'Population 2016'!AS87*'Prevalence Rates'!AS87","v":66.346800970873801},{"$f":"'Population 2016'!AT87*'Prevalence Rates'!AT87","v":0},{"$f":"'Population 2016'!AU87*'Prevalence Rates'!AU87","v":0},{"$f":"'Population 2016'!AV87*'Prevalence Rates'!AV87","v":212.72151456310678},{"$f":"'Population 2016'!AW87*'Prevalence Rates'!AW87","v":904.9271815533981},{"$f":"'Population 2016'!AX87*'Prevalence Rates'!AX87","v":133.22210000000001},{"$f":"'Population 2016'!AY87*'Prevalence Rates'!AY87","v":874.85562838675844},{"$f":"'Population 2016'!AZ87*'Prevalence Rates'!AZ87","v":896.19106262135915},{"$f":"'Population 2016'!BA87*'Prevalence Rates'!BA87","v":479.45193203883497},{"$f":"'Population 2016'!BB87*'Prevalence Rates'!BB87","v":340.17009757281556},{"$f":"'Population 2016'!BC87*'Prevalence Rates'!BC87","v":0},85]
[null,"Male 45-49",{"$f":"'Population 2016'!C88*'Prevalence Rates'!C88","v":307.78870194174755},{"$f":"'Population 2016'!D88*'Prevalence Rates'!D88","v":140.9691233473763},{"$f":"'Population 2016'!E88*'Prevalence Rates'!E88","v":78.931429435127981},{"$f":"'Population 2016'!F88*'Prevalence Rates'!F88","v":139.0635226390115},{"$f":"'Population 2016'!G88*'Prevalence Rates'!G88","v":88.244100000000003},{"$f":"'Population 2016'!H88*'Prevalence Rates'!H88","v":1629.5740474845543},{"$f":"'Population 2016'!I88*'Prevalence Rates'!I88","v":80.683849779346886},{"$f":"'Population 2016'!J88*'Prevalence Rates'!J88","v":339.06600000000003},{"$f":"'Population 2016'!K88*'Prevalence Rates'!K88","v":184.7475},{"$f":"'Population 2016'!L88*'Prevalence Rates'!L88","v":182.32960114739632},{"$f":"'Population 2016'!M88*'Prevalence Rates'!M88","v":182.32960114739632},{"$f":"'Population 2016'!N88*'Prevalence Rates'!N88","v":803.83089558693734},{"$f":"'Population 2016'!O88*'Prevalence Rates'!O88","v":566.23799470432482},{"$f":"'Population 2016'!P88*'Prevalence Rates'!P88","v":69.275756398940871},{"$f":"'Population 2016'!Q88*'Prevalence Rates'!Q88","v":39.112640864960284},{"$f":"'Population 2016'!R88*'Prevalence Rates'!R88","v":45.848380670785531},{"$f":"'Population 2016'!S88*'Prevalence Rates'!S88","v":1699.5260533098347},{"$f":"'Population 2016'!T88*'Prevalence Rates'!T88","v":855.62139121800544},{"$f":"'Population 2016'!U88*'Prevalence Rates'!U88","v":0},{"$f":"'Population 2016'!V88*'Prevalence Rates'!V88","v":344.62559430714919},{"$f":"'Population 2016'!W88*'Prevalence Rates'!W88","v":1254.1142958958519},{"$f":"'Population 2016'!X88*'Prevalence Rates'!X88","v":1254.1142958958519},{"$f":"'Population 2016'!Y88*'Prevalence Rates'!Y88","v":605.43101478376002},{"$f":"'Population 2016'!Z88*'Prevalence Rates'!Z88","v":4830.789255251545},{"$f":"'Population 2016'!AA88*'Prevalence Rates'!AA88","v":3016.3224272149796},{"$f":"'Population 2016'!AB88*'Prevalence Rates'!AB88","v":389.2548582524272},{"$f":"'Population 2016'!AC88*'Prevalence Rates'!AC88","v":6450.4476921447476},{"$f":"'Population 2016'!AD88*'Prevalence Rates'!AD88","v":340.06277899382172},{"$f":"'Population 2016'!AE88*'Prevalence Rates'!AE88","v":251.44881950573699},{"$f":"'Population 2016'!AF88*'Prevalence Rates'!AF88","v":485.99460000000005},{"$f":"'Population 2016'!AG88*'Prevalence Rates'!AG88","v":96.831222418358351},{"$f":"'Population 2016'!AH88*'Prevalence Rates'!AH88","v":2506.5715138570172},{"$f":"'Population 2016'!AI88*'Prevalence Rates'!AI88","v":1440.5094738746691},{"$f":"'Population 2016'!AJ88*'Prevalence Rates'!AJ88","v":134.32230000000001},{"$f":"'Population 2016'!AK88*'Prevalence Rates'!AK88","v":18.299987555163288},{"$f":"'Population 2016'!AL88*'Prevalence Rates'!AL88","v":953.14938640776711},{"$f":"'Population 2016'!AM88*'Prevalence Rates'!AM88","v":1590.2697626213594},{"$f":"'Population 2016'!AN88*'Prevalence Rates'!AN88","v":0},{"$f":"'Population 2016'!AO88*'Prevalence Rates'!AO88","v":0},{"$f":"'Population 2016'!AP88*'Prevalence Rates'!AP88","v":98.948731376875543},{"$f":"'Population 2016'!AQ88*'Prevalence Rates'!AQ88","v":827.06451712268324},{"$f":"'Population 2016'!AR88*'Prevalence Rates'!AR88","v":15596.1666},{"$f":"'Population 2016'!AS88*'Prevalence Rates'!AS88","v":80.683849779346886},{"$f":"'Population 2016'!AT88*'Prevalence Rates'!AT88","v":0},{"$f":"'Population 2016'!AU88*'Prevalence Rates'!AU88","v":0},{"$f":"'Population 2016'!AV88*'Prevalence Rates'!AV88","v":206.03168578993819},{"$f":"'Population 2016'!AW88*'Prevalence Rates'!AW88","v":923.23642480141223},{"$f":"'Population 2016'!AX88*'Prevalence Rates'!AX88","v":154.3185},{"$f":"'Population 2016'!AY88*'Prevalence Rates'!AY88","v":985.98143173386063},{"$f":"'Population 2016'!AZ88*'Prevalence Rates'!AZ88","v":986.60402118270076},{"$f":"'Population 2016'!BA88*'Prevalence Rates'!BA88","v":527.22817784642552},{"$f":"'Population 2016'!BB88*'Prevalence Rates'!BB88","v":360.77759602824358},{"$f":"'Population 2016'!BC88*'Prevalence Rates'!BC88","v":0},86]
[null,"Male 50-54",{"$f":"'Population 2016'!C89*'Prevalence Rates'!C89","v":302.38027427184466},{"$f":"'Population 2016'!D89*'Prevalence Rates'!D89","v":133.53148861861902},{"$f":"'Population 2016'!E89*'Prevalence Rates'!E89","v":65.567377890556045},{"$f":"'Population 2016'!F89*'Prevalence Rates'!F89","v":146.59403830538398},{"$f":"'Population 2016'!G89*'Prevalence Rates'!G89","v":114.32610000000001},{"$f":"'Population 2016'!H89*'Prevalence Rates'!H89","v":1754.3693962930274},{"$f":"'Population 2016'!I89*'Prevalence Rates'!I89","v":83.245241835834079},{"$f":"'Population 2016'!J89*'Prevalence Rates'!J89","v":374.27670000000001},{"$f":"'Population 2016'!K89*'Prevalence Rates'!K89","v":197.35380000000001},{"$f":"'Population 2016'!L89*'Prevalence Rates'!L89","v":196.25131946160639},{"$f":"'Population 2016'!M89*'Prevalence Rates'!M89","v":196.25131946160639},{"$f":"'Population 2016'!N89*'Prevalence Rates'!N89","v":823.11097241835841},{"$f":"'Population 2016'!O89*'Prevalence Rates'!O89","v":598.53125533980585},{"$f":"'Population 2016'!P89*'Prevalence Rates'!P89","v":70.773610591350405},{"$f":"'Population 2016'!Q89*'Prevalence Rates'!Q89","v":59.501145145631071},{"$f":"'Population 2016'!R89*'Prevalence Rates'!R89","v":60.379561429832314},{"$f":"'Population 2016'!S89*'Prevalence Rates'!S89","v":1676.167516706422},{"$f":"'Population 2016'!T89*'Prevalence Rates'!T89","v":887.17359002647845},{"$f":"'Population 2016'!U89*'Prevalence Rates'!U89","v":0},{"$f":"'Population 2016'!V89*'Prevalence Rates'!V89","v":347.46035242718449},{"$f":"'Population 2016'!W89*'Prevalence Rates'!W89","v":1160.8291338481908},{"$f":"'Population 2016'!X89*'Prevalence Rates'!X89","v":1160.8291338481908},{"$f":"'Population 2016'!Y89*'Prevalence Rates'!Y89","v":638.09682060900275},{"$f":"'Population 2016'!Z89*'Prevalence Rates'!Z89","v":4947.5562744042372},{"$f":"'Population 2016'!AA89*'Prevalence Rates'!AA89","v":3111.3797087009125},{"$f":"'Population 2016'!AB89*'Prevalence Rates'!AB89","v":363.27414757281554},{"$f":"'Population 2016'!AC89*'Prevalence Rates'!AC89","v":6793.3580822594877},{"$f":"'Population 2016'!AD89*'Prevalence Rates'!AD89","v":375.54358384819062},{"$f":"'Population 2016'!AE89*'Prevalence Rates'!AE89","v":259.43878199470436},{"$f":"'Population 2016'!AF89*'Prevalence Rates'!AF89","v":558.58950000000004},{"$f":"'Population 2016'!AG89*'Prevalence Rates'!AG89","v":99.908102383053858},{"$f":"'Population 2016'!AH89*'Prevalence Rates'!AH89","v":2461.3220446601945},{"$f":"'Population 2016'!AI89*'Prevalence Rates'!AI89","v":1477.9303145189763},{"$f":"'Population 2016'!AJ89*'Prevalence Rates'!AJ89","v":132.58350000000002},{"$f":"'Population 2016'!AK89*'Prevalence Rates'!AK89","v":11.730761253309801},{"$f":"'Population 2016'!AL89*'Prevalence Rates'!AL89","v":1047.6903058252428},{"$f":"'Population 2016'!AM89*'Prevalence Rates'!AM89","v":1589.4299053398058},{"$f":"'Population 2016'!AN89*'Prevalence Rates'!AN89","v":0},{"$f":"'Population 2016'!AO89*'Prevalence Rates'!AO89","v":0},{"$f":"'Population 2016'!AP89*'Prevalence Rates'!AP89","v":114.34931213592233},{"$f":"'Population 2016'!AQ89*'Prevalence Rates'!AQ89","v":821.13410414827899},{"$f":"'Population 2016'!AR89*'Prevalence Rates'!AR89","v":16049.993400000001},{"$f":"'Population 2016'!AS89*'Prevalence Rates'!AS89","v":83.245241835834079},{"$f":"'Population 2016'!AT89*'Prevalence Rates'!AT89","v":0},{"$f":"'Population 2016'!AU89*'Prevalence Rates'!AU89","v":0},{"$f":"'Population 2016'!AV89*'Prevalence Rates'!AV89","v":217.02004236540157},{"$f":"'Population 2016'!AW89*'Prevalence Rates'!AW89","v":879.35090838481904},{"$f":"'Population 2016'!AX89*'Prevalence Rates'!AX89","v":176.9229},{"$f":"'Population 2016'!AY89*'Prevalence Rates'!AY89","v":965.00747844150328},{"$f":"'Population 2016'!AZ89*'Prevalence Rates'!AZ89","v":1029.539566548985},{"$f":"'Population 2016'!BA89*'Prevalence Rates'!BA89","v":672.42872065313338},{"$f":"'Population 2016'!BB89*'Prevalence Rates'!BB89","v":349.1736382612533},{"$f":"'Population 2016'!BC89*'Prevalence Rates'!BC89","v":0},87]
[null,"Male 55-59",{"$f":"'Population 2016'!C90*'Prevalence Rates'!C90","v":274.98660000000001},{"$f":"'Population 2016'!D90*'Prevalence Rates'!D90","v":128.06669464871985},{"$f":"'Population 2016'!E90*'Prevalence Rates'!E90","v":75.640854545454559},{"$f":"'Population 2016'!F90*'Prevalence Rates'!F90","v":115.90930909090912},{"$f":"'Population 2016'!G90*'Prevalence Rates'!G90","v":92.143800000000013},{"$f":"'Population 2016'!H90*'Prevalence Rates'!H90","v":1700.4469363636365},{"$f":"'Population 2016'!I90*'Prevalence Rates'!I90","v":62.769572727272745},{"$f":"'Population 2016'!J90*'Prevalence Rates'!J90","v":352.13640000000004},{"$f":"'Population 2016'!K90*'Prevalence Rates'!K90","v":185.15280000000001},{"$f":"'Population 2016'!L90*'Prevalence Rates'!L90","v":173.85117272727274},{"$f":"'Population 2016'!M90*'Prevalence Rates'!M90","v":173.85117272727274},{"$f":"'Population 2016'!N90*'Prevalence Rates'!N90","v":789.61622727272731},{"$f":"'Population 2016'!O90*'Prevalence Rates'!O90","v":556.45876363636376},{"$f":"'Population 2016'!P90*'Prevalence Rates'!P90","v":64.469236363636369},{"$f":"'Population 2016'!Q90*'Prevalence Rates'!Q90","v":46.37716363636364},{"$f":"'Population 2016'!R90*'Prevalence Rates'!R90","v":48.120163636363642},{"$f":"'Population 2016'!S90*'Prevalence Rates'!S90","v":1453.4944574148788},{"$f":"'Population 2016'!T90*'Prevalence Rates'!T90","v":695.96672727272733},{"$f":"'Population 2016'!U90*'Prevalence Rates'!U90","v":0},{"$f":"'Population 2016'!V90*'Prevalence Rates'!V90","v":292.98760909090913},{"$f":"'Population 2016'!W90*'Prevalence Rates'!W90","v":1142.9064818181819},{"$f":"'Population 2016'!X90*'Prevalence Rates'!X90","v":1142.9064818181819},{"$f":"'Population 2016'!Y90*'Prevalence Rates'!Y90","v":569.25940909090923},{"$f":"'Population 2016'!Z90*'Prevalence Rates'!Z90","v":4308.134727272728},{"$f":"'Population 2016'!AA90*'Prevalence Rates'!AA90","v":2759.9666230353855},{"$f":"'Population 2016'!AB90*'Prevalence Rates'!AB90","v":349.72560000000004},{"$f":"'Population 2016'!AC90*'Prevalence Rates'!AC90","v":5923.8877090909091},{"$f":"'Population 2016'!AD90*'Prevalence Rates'!AD90","v":342.54703636363638},{"$f":"'Population 2016'!AE90*'Prevalence Rates'!AE90","v":249.76636363636362},{"$f":"'Population 2016'!AF90*'Prevalence Rates'!AF90","v":486.67500000000007},{"$f":"'Population 2016'!AG90*'Prevalence Rates'!AG90","v":96.183320158102788},{"$f":"'Population 2016'!AH90*'Prevalence Rates'!AH90","v":2274.2656363636365},{"$f":"'Population 2016'!AI90*'Prevalence Rates'!AI90","v":1182.4680000000003},{"$f":"'Population 2016'!AJ90*'Prevalence Rates'!AJ90","v":116.36940000000001},{"$f":"'Population 2016'!AK90*'Prevalence Rates'!AK90","v":12.608018181818185},{"$f":"'Population 2016'!AL90*'Prevalence Rates'!AL90","v":1023.3720000000003},{"$f":"'Population 2016'!AM90*'Prevalence Rates'!AM90","v":1415.4273000000001},{"$f":"'Population 2016'!AN90*'Prevalence Rates'!AN90","v":0},{"$f":"'Population 2016'!AO90*'Prevalence Rates'!AO90","v":0},{"$f":"'Population 2016'!AP90*'Prevalence Rates'!AP90","v":89.275009090909094},{"$f":"'Population 2016'!AQ90*'Prevalence Rates'!AQ90","v":760.41954545454564},{"$f":"'Population 2016'!AR90*'Prevalence Rates'!AR90","v":14384.382600000001},{"$f":"'Population 2016'!AS90*'Prevalence Rates'!AS90","v":62.769572727272745},{"$f":"'Population 2016'!AT90*'Prevalence Rates'!AT90","v":0},{"$f":"'Population 2016'!AU90*'Prevalence Rates'!AU90","v":0},{"$f":"'Population 2016'!AV90*'Prevalence Rates'!AV90","v":223.83136363636362},{"$f":"'Population 2016'!AW90*'Prevalence Rates'!AW90","v":864.49058181818191},{"$f":"'Population 2016'!AX90*'Prevalence Rates'!AX90","v":166.98360000000002},{"$f":"'Population 2016'!AY90*'Prevalence Rates'!AY90","v":917.37254511629658},{"$f":"'Population 2016'!AZ90*'Prevalence Rates'!AZ90","v":940.927909090909},{"$f":"'Population 2016'!BA90*'Prevalence Rates'!BA90","v":549.59481818181825},{"$f":"'Population 2016'!BB90*'Prevalence Rates'!BB90","v":285.19813636363637},{"$f":"'Population 2016'!BC90*'Prevalence Rates'!BC90","v":0},88]
[null,"Male 60-64",{"$f":"'Population 2016'!C91*'Prevalence Rates'!C91","v":247.58580000000001},{"$f":"'Population 2016'!D91*'Prevalence Rates'!D91","v":104.48452103732923},{"$f":"'Population 2016'!E91*'Prevalence Rates'!E91","v":41.976518181818186},{"$f":"'Population 2016'!F91*'Prevalence Rates'!F91","v":97.923381818181852},{"$f":"'Population 2016'!G91*'Prevalence Rates'!G91","v":89.548200000000008},{"$f":"'Population 2016'!H91*'Prevalence Rates'!H91","v":1453.4119090909091},{"$f":"'Population 2016'!I91*'Prevalence Rates'!I91","v":49.068600000000011},{"$f":"'Population 2016'!J91*'Prevalence Rates'!J91","v":274.70100000000002},{"$f":"'Population 2016'!K91*'Prevalence Rates'!K91","v":144.0558},{"$f":"'Population 2016'!L91*'Prevalence Rates'!L91","v":143.90765454545456},{"$f":"'Population 2016'!M91*'Prevalence Rates'!M91","v":143.90765454545456},{"$f":"'Population 2016'!N91*'Prevalence Rates'!N91","v":636.61270909090911},{"$f":"'Population 2016'!O91*'Prevalence Rates'!O91","v":460.04700000000008},{"$f":"'Population 2016'!P91*'Prevalence Rates'!P91","v":59.62472727272727},{"$f":"'Population 2016'!Q91*'Prevalence Rates'!Q91","v":36.025118181818186},{"$f":"'Population 2016'!R91*'Prevalence Rates'!R91","v":36.401781818181824},{"$f":"'Population 2016'!S91*'Prevalence Rates'!S91","v":1216.4394738505539},{"$f":"'Population 2016'!T91*'Prevalence Rates'!T91","v":594.74863636363648},{"$f":"'Population 2016'!U91*'Prevalence Rates'!U91","v":0},{"$f":"'Population 2016'!V91*'Prevalence Rates'!V91","v":251.07466363636365},{"$f":"'Population 2016'!W91*'Prevalence Rates'!W91","v":955.8165272727274},{"$f":"'Population 2016'!X91*'Prevalence Rates'!X91","v":955.8165272727274},{"$f":"'Population 2016'!Y91*'Prevalence Rates'!Y91","v":464.71663636363644},{"$f":"'Population 2016'!Z91*'Prevalence Rates'!Z91","v":3471.8796000000002},{"$f":"'Population 2016'!AA91*'Prevalence Rates'!AA91","v":2241.0372875391354},{"$f":"'Population 2016'!AB91*'Prevalence Rates'!AB91","v":284.40720000000005},{"$f":"'Population 2016'!AC91*'Prevalence Rates'!AC91","v":4778.0177454545455},{"$f":"'Population 2016'!AD91*'Prevalence Rates'!AD91","v":295.77354545454546},{"$f":"'Population 2016'!AE91*'Prevalence Rates'!AE91","v":204.86454545454544},{"$f":"'Population 2016'!AF91*'Prevalence Rates'!AF91","v":417.02640000000002},{"$f":"'Population 2016'!AG91*'Prevalence Rates'!AG91","v":78.891936758893294},{"$f":"'Population 2016'!AH91*'Prevalence Rates'!AH91","v":1875.1846909090912},{"$f":"'Population 2016'!AI91*'Prevalence Rates'!AI91","v":994.34809090909107},{"$f":"'Population 2016'!AJ91*'Prevalence Rates'!AJ91","v":105.55440000000002},{"$f":"'Population 2016'!AK91*'Prevalence Rates'!AK91","v":9.3392727272727285},{"$f":"'Population 2016'!AL91*'Prevalence Rates'!AL91","v":866.56500000000017},{"$f":"'Population 2016'!AM91*'Prevalence Rates'!AM91","v":1137.5238000000002},{"$f":"'Population 2016'!AN91*'Prevalence Rates'!AN91","v":0},{"$f":"'Population 2016'!AO91*'Prevalence Rates'!AO91","v":0},{"$f":"'Population 2016'!AP91*'Prevalence Rates'!AP91","v":74.331981818181816},{"$f":"'Population 2016'!AQ91*'Prevalence Rates'!AQ91","v":542.9622545454547},{"$f":"'Population 2016'!AR91*'Prevalence Rates'!AR91","v":11835.070800000001},{"$f":"'Population 2016'!AS91*'Prevalence Rates'!AS91","v":49.068600000000011},{"$f":"'Population 2016'!AT91*'Prevalence Rates'!AT91","v":0},{"$f":"'Population 2016'!AU91*'Prevalence Rates'!AU91","v":0},{"$f":"'Population 2016'!AV91*'Prevalence Rates'!AV91","v":208.45363636363635},{"$f":"'Population 2016'!AW91*'Prevalence Rates'!AW91","v":741.63332727272734},{"$f":"'Population 2016'!AX91*'Prevalence Rates'!AX91","v":130.64520000000002},{"$f":"'Population 2016'!AY91*'Prevalence Rates'!AY91","v":757.55368325240465},{"$f":"'Population 2016'!AZ91*'Prevalence Rates'!AZ91","v":765.4698545454545},{"$f":"'Population 2016'!BA91*'Prevalence Rates'!BA91","v":489.80209090909096},{"$f":"'Population 2016'!BB91*'Prevalence Rates'!BB91","v":227.1087},{"$f":"'Population 2016'!BC91*'Prevalence Rates'!BC91","v":0},89]
[null,"Male 65-69",{"$f":"'Population 2016'!C92*'Prevalence Rates'!C92","v":152.27850728155337},{"$f":"'Population 2016'!D92*'Prevalence Rates'!D92","v":68.225569277764876},{"$f":"'Population 2016'!E92*'Prevalence Rates'!E92","v":35.383935789938221},{"$f":"'Population 2016'!F92*'Prevalence Rates'!F92","v":73.275422550750235},{"$f":"'Population 2016'!G92*'Prevalence Rates'!G92","v":52.924500000000002},{"$f":"'Population 2016'!H92*'Prevalence Rates'!H92","v":999.26814474845548},{"$f":"'Population 2016'!I92*'Prevalence Rates'!I92","v":45.591835834068853},{"$f":"'Population 2016'!J92*'Prevalence Rates'!J92","v":191.89},{"$f":"'Population 2016'!K92*'Prevalence Rates'!K92","v":104.3015},{"$f":"'Population 2016'!L92*'Prevalence Rates'!L92","v":118.62495785525155},{"$f":"'Population 2016'!M92*'Prevalence Rates'!M92","v":118.62495785525155},{"$f":"'Population 2016'!N92*'Prevalence Rates'!N92","v":432.93258826125333},{"$f":"'Population 2016'!O92*'Prevalence Rates'!O92","v":342.9951116504854},{"$f":"'Population 2016'!P92*'Prevalence Rates'!P92","v":33.859791703442191},{"$f":"'Population 2016'!Q92*'Prevalence Rates'!Q92","v":29.921383715798765},{"$f":"'Population 2016'!R92*'Prevalence Rates'!R92","v":24.259555163283324},{"$f":"'Population 2016'!S92*'Prevalence Rates'!S92","v":814.36750121816112},{"$f":"'Population 2016'!T92*'Prevalence Rates'!T92","v":347.27784863195058},{"$f":"'Population 2016'!U92*'Prevalence Rates'!U92","v":0},{"$f":"'Population 2016'!V92*'Prevalence Rates'!V92","v":185.68415622241835},{"$f":"'Population 2016'!W92*'Prevalence Rates'!W92","v":660.44909774933808},{"$f":"'Population 2016'!X92*'Prevalence Rates'!X92","v":660.44909774933808},{"$f":"'Population 2016'!Y92*'Prevalence Rates'!Y92","v":334.06331862312447},{"$f":"'Population 2016'!Z92*'Prevalence Rates'!Z92","v":2213.098188879082},{"$f":"'Population 2016'!AA92*'Prevalence Rates'!AA92","v":1473.1618191191581},{"$f":"'Population 2016'!AB92*'Prevalence Rates'!AB92","v":185.95240776699029},{"$f":"'Population 2016'!AC92*'Prevalence Rates'!AC92","v":3065.62454368932},{"$f":"'Population 2016'!AD92*'Prevalence Rates'!AD92","v":189.29954236540158},{"$f":"'Population 2016'!AE92*'Prevalence Rates'!AE92","v":135.86039276257722},{"$f":"'Population 2016'!AF92*'Prevalence Rates'!AF92","v":302.69099999999997},{"$f":"'Population 2016'!AG92*'Prevalence Rates'!AG92","v":52.318909014160177},{"$f":"'Population 2016'!AH92*'Prevalence Rates'!AH92","v":1299.6142656663726},{"$f":"'Population 2016'!AI92*'Prevalence Rates'!AI92","v":633.66601125330988},{"$f":"'Population 2016'!AJ92*'Prevalence Rates'!AJ92","v":62.828499999999998},{"$f":"'Population 2016'!AK92*'Prevalence Rates'!AK92","v":6.3476182700794359},{"$f":"'Population 2016'!AL92*'Prevalence Rates'!AL92","v":586.51752427184465},{"$f":"'Population 2016'!AM92*'Prevalence Rates'!AM92","v":797.38768689320386},{"$f":"'Population 2016'!AN92*'Prevalence Rates'!AN92","v":0},{"$f":"'Population 2016'!AO92*'Prevalence Rates'!AO92","v":0},{"$f":"'Population 2016'!AP92*'Prevalence Rates'!AP92","v":44.134071712268316},{"$f":"'Population 2016'!AQ92*'Prevalence Rates'!AQ92","v":349.15724845542809},{"$f":"'Population 2016'!AR92*'Prevalence Rates'!AR92","v":7912.9865},{"$f":"'Population 2016'!AS92*'Prevalence Rates'!AS92","v":45.591835834068853},{"$f":"'Population 2016'!AT92*'Prevalence Rates'!AT92","v":0},{"$f":"'Population 2016'!AU92*'Prevalence Rates'!AU92","v":0},{"$f":"'Population 2016'!AV92*'Prevalence Rates'!AV92","v":128.35508605472197},{"$f":"'Population 2016'!AW92*'Prevalence Rates'!AW92","v":505.18977493380407},{"$f":"'Population 2016'!AX92*'Prevalence Rates'!AX92","v":87.588499999999996},{"$f":"'Population 2016'!AY92*'Prevalence Rates'!AY92","v":519.00002341992604},{"$f":"'Population 2016'!AZ92*'Prevalence Rates'!AZ92","v":519.03068049426292},{"$f":"'Population 2016'!BA92*'Prevalence Rates'!BA92","v":291.24824139452778},{"$f":"'Population 2016'!BB92*'Prevalence Rates'!BB92","v":172.49735282436012},{"$f":"'Population 2016'!BC92*'Prevalence Rates'!BC92","v":0},90]
[null,"Male 70-74",{"$f":"'Population 2016'!C93*'Prevalence Rates'!C93","v":88.566580097087368},{"$f":"'Population 2016'!D93*'Prevalence Rates'!D93","v":39.408271062968879},{"$f":"'Population 2016'!E93*'Prevalence Rates'!E93","v":19.922047881729924},{"$f":"'Population 2016'!F93*'Prevalence Rates'!F93","v":48.254546557811125},{"$f":"'Population 2016'!G93*'Prevalence Rates'!G93","v":48.281999999999996},{"$f":"'Population 2016'!H93*'Prevalence Rates'!H93","v":741.08095013239199},{"$f":"'Population 2016'!I93*'Prevalence Rates'!I93","v":31.686325904677851},{"$f":"'Population 2016'!J93*'Prevalence Rates'!J93","v":137.72749999999999},{"$f":"'Population 2016'!K93*'Prevalence Rates'!K93","v":75.827500000000001},{"$f":"'Population 2016'!L93*'Prevalence Rates'!L93","v":72.262103706972638},{"$f":"'Population 2016'!M93*'Prevalence Rates'!M93","v":72.262103706972638},{"$f":"'Population 2016'!N93*'Prevalence Rates'!N93","v":307.98049977934687},{"$f":"'Population 2016'!O93*'Prevalence Rates'!O93","v":235.27763857016768},{"$f":"'Population 2016'!P93*'Prevalence Rates'!P93","v":23.461902912621362},{"$f":"'Population 2016'!Q93*'Prevalence Rates'!Q93","v":18.960084730803178},{"$f":"'Population 2016'!R93*'Prevalence Rates'!R93","v":15.518980141218007},{"$f":"'Population 2016'!S93*'Prevalence Rates'!S93","v":598.89638722888549},{"$f":"'Population 2016'!T93*'Prevalence Rates'!T93","v":236.27579655781113},{"$f":"'Population 2016'!U93*'Prevalence Rates'!U93","v":0},{"$f":"'Population 2016'!V93*'Prevalence Rates'!V93","v":117.06175066195939},{"$f":"'Population 2016'!W93*'Prevalence Rates'!W93","v":504.90977714033545},{"$f":"'Population 2016'!X93*'Prevalence Rates'!X93","v":504.90977714033545},{"$f":"'Population 2016'!Y93*'Prevalence Rates'!Y93","v":224.91130075022065},{"$f":"'Population 2016'!Z93*'Prevalence Rates'!Z93","v":1603.5522802294793},{"$f":"'Population 2016'!AA93*'Prevalence Rates'!AA93","v":1061.5716939623524},{"$f":"'Population 2016'!AB93*'Prevalence Rates'!AB93","v":108.71563106796117},{"$f":"'Population 2016'!AC93*'Prevalence Rates'!AC93","v":2203.6356293027357},{"$f":"'Population 2016'!AD93*'Prevalence Rates'!AD93","v":137.46361915269196},{"$f":"'Population 2016'!AE93*'Prevalence Rates'!AE93","v":88.008086937334497},{"$f":"'Population 2016'!AF93*'Prevalence Rates'!AF93","v":208.60300000000001},{"$f":"'Population 2016'!AG93*'Prevalence Rates'!AG93","v":33.891312982079128},{"$f":"'Population 2016'!AH93*'Prevalence Rates'!AH93","v":941.38536187113857},{"$f":"'Population 2016'!AI93*'Prevalence Rates'!AI93","v":452.65781818181824},{"$f":"'Population 2016'!AJ93*'Prevalence Rates'!AJ93","v":47.043999999999997},{"$f":"'Population 2016'!AK93*'Prevalence Rates'!AK93","v":5.0112775816416599},{"$f":"'Population 2016'!AL93*'Prevalence Rates'!AL93","v":449.92585922330096},{"$f":"'Population 2016'!AM93*'Prevalence Rates'!AM93","v":561.78907524271847},{"$f":"'Population 2016'!AN93*'Prevalence Rates'!AN93","v":0},{"$f":"'Population 2016'!AO93*'Prevalence Rates'!AO93","v":0},{"$f":"'Population 2016'!AP93*'Prevalence Rates'!AP93","v":32.620835613415707},{"$f":"'Population 2016'!AQ93*'Prevalence Rates'!AQ93","v":250.09402912621363},{"$f":"'Population 2016'!AR93*'Prevalence Rates'!AR93","v":5681.8010000000004},{"$f":"'Population 2016'!AS93*'Prevalence Rates'!AS93","v":31.686325904677851},{"$f":"'Population 2016'!AT93*'Prevalence Rates'!AT93","v":0},{"$f":"'Population 2016'!AU93*'Prevalence Rates'!AU93","v":0},{"$f":"'Population 2016'!AV93*'Prevalence Rates'!AV93","v":100.72818181818181},{"$f":"'Population 2016'!AW93*'Prevalence Rates'!AW93","v":381.37447749338043},{"$f":"'Population 2016'!AX93*'Prevalence Rates'!AX93","v":61.9},{"$f":"'Population 2016'!AY93*'Prevalence Rates'!AY93","v":383.43048274662522},{"$f":"'Population 2016'!AZ93*'Prevalence Rates'!AZ93","v":367.15892122683135},{"$f":"'Population 2016'!BA93*'Prevalence Rates'!BA93","v":213.17802736098849},{"$f":"'Population 2016'!BB93*'Prevalence Rates'!BB93","v":134.69314342453663},{"$f":"'Population 2016'!BC93*'Prevalence Rates'!BC93","v":0},91]
[null,"Male 75-79",{"$f":"'Population 2016'!C94*'Prevalence Rates'!C94","v":32.205463592233009},{"$f":"'Population 2016'!D94*'Prevalence Rates'!D94","v":15.264537546982469},{"$f":"'Population 2016'!E94*'Prevalence Rates'!E94","v":9.5005970873786421},{"$f":"'Population 2016'!F94*'Prevalence Rates'!F94","v":24.023043689320396},{"$f":"'Population 2016'!G94*'Prevalence Rates'!G94","v":15.345000000000001},{"$f":"'Population 2016'!H94*'Prevalence Rates'!H94","v":318.33802184466026},{"$f":"'Population 2016'!I94*'Prevalence Rates'!I94","v":9.1673470873786425},{"$f":"'Population 2016'!J94*'Prevalence Rates'!J94","v":60.698000000000008},{"$f":"'Population 2016'!K94*'Prevalence Rates'!K94","v":31.031000000000002},{"$f":"'Population 2016'!L94*'Prevalence Rates'!L94","v":32.234206310679618},{"$f":"'Population 2016'!M94*'Prevalence Rates'!M94","v":32.234206310679618},{"$f":"'Population 2016'!N94*'Prevalence Rates'!N94","v":128.74992233009709},{"$f":"'Population 2016'!O94*'Prevalence Rates'!O94","v":110.17866504854369},{"$f":"'Population 2016'!P94*'Prevalence Rates'!P94","v":9.8405436893203877},{"$f":"'Population 2016'!Q94*'Prevalence Rates'!Q94","v":9.9552888349514568},{"$f":"'Population 2016'!R94*'Prevalence Rates'!R94","v":9.9249660194174769},{"$f":"'Population 2016'!S94*'Prevalence Rates'!S94","v":239.91810595083768},{"$f":"'Population 2016'!T94*'Prevalence Rates'!T94","v":105.55612864077671},{"$f":"'Population 2016'!U94*'Prevalence Rates'!U94","v":0},{"$f":"'Population 2016'!V94*'Prevalence Rates'!V94","v":55.59308252427185},{"$f":"'Population 2016'!W94*'Prevalence Rates'!W94","v":186.67718446601944},{"$f":"'Population 2016'!X94*'Prevalence Rates'!X94","v":186.67718446601944},{"$f":"'Population 2016'!Y94*'Prevalence Rates'!Y94","v":102.78983009708739},{"$f":"'Population 2016'!Z94*'Prevalence Rates'!Z94","v":662.58391747572819},{"$f":"'Population 2016'!AA94*'Prevalence Rates'!AA94","v":443.8320354181181},{"$f":"'Population 2016'!AB94*'Prevalence Rates'!AB94","v":41.476194174757282},{"$f":"'Population 2016'!AC94*'Prevalence Rates'!AC94","v":927.02881553398061},{"$f":"'Population 2016'!AD94*'Prevalence Rates'!AD94","v":50.785975728155343},{"$f":"'Population 2016'!AE94*'Prevalence Rates'!AE94","v":35.209830097087377},{"$f":"'Population 2016'!AF94*'Prevalence Rates'!AF94","v":86.27300000000001},{"$f":"'Population 2016'!AG94*'Prevalence Rates'!AG94","v":13.559065006331787},{"$f":"'Population 2016'!AH94*'Prevalence Rates'!AH94","v":388.50102912621361},{"$f":"'Population 2016'!AI94*'Prevalence Rates'!AI94","v":198.22016990291266},{"$f":"'Population 2016'!AJ94*'Prevalence Rates'!AJ94","v":19.778000000000002},{"$f":"'Population 2016'!AK94*'Prevalence Rates'!AK94","v":1.2883058252427189},{"$f":"'Population 2016'!AL94*'Prevalence Rates'!AL94","v":184.75578640776703},{"$f":"'Population 2016'!AM94*'Prevalence Rates'!AM94","v":243.43592718446604},{"$f":"'Population 2016'!AN94*'Prevalence Rates'!AN94","v":0},{"$f":"'Population 2016'!AO94*'Prevalence Rates'!AO94","v":0},{"$f":"'Population 2016'!AP94*'Prevalence Rates'!AP94","v":14.497165048543689},{"$f":"'Population 2016'!AQ94*'Prevalence Rates'!AQ94","v":121.4915582524272},{"$f":"'Population 2016'!AR94*'Prevalence Rates'!AR94","v":2372.337},{"$f":"'Population 2016'!AS94*'Prevalence Rates'!AS94","v":9.1673470873786425},{"$f":"'Population 2016'!AT94*'Prevalence Rates'!AT94","v":0},{"$f":"'Population 2016'!AU94*'Prevalence Rates'!AU94","v":0},{"$f":"'Population 2016'!AV94*'Prevalence Rates'!AV94","v":41.482815533980578},{"$f":"'Population 2016'!AW94*'Prevalence Rates'!AW94","v":146.06899029126214},{"$f":"'Population 2016'!AX94*'Prevalence Rates'!AX94","v":29.667000000000002},{"$f":"'Population 2016'!AY94*'Prevalence Rates'!AY94","v":151.78696839391014},{"$f":"'Population 2016'!AZ94*'Prevalence Rates'!AZ94","v":158.01286893203883},{"$f":"'Population 2016'!BA94*'Prevalence Rates'!BA94","v":78.553398058252426},{"$f":"'Population 2016'!BB94*'Prevalence Rates'!BB94","v":56.271320388349523},{"$f":"'Population 2016'!BC94*'Prevalence Rates'!BC94","v":0},92]
[null,"Male 80-84",{"$f":"'Population 2016'!C95*'Prevalence Rates'!C95","v":23.141650485436895},{"$f":"'Population 2016'!D95*'Prevalence Rates'!D95","v":10.990467033827379},{"$f":"'Population 2016'!E95*'Prevalence Rates'!E95","v":6.8797427184466029},{"$f":"'Population 2016'!F95*'Prevalence Rates'!F95","v":13.586803398058256},{"$f":"'Population 2016'!G95*'Prevalence Rates'!G95","v":11.764500000000002},{"$f":"'Population 2016'!H95*'Prevalence Rates'!H95","v":213.52589320388353},{"$f":"'Population 2016'!I95*'Prevalence Rates'!I95","v":7.0324854368932055},{"$f":"'Population 2016'!J95*'Prevalence Rates'!J95","v":28.985000000000003},{"$f":"'Population 2016'!K95*'Prevalence Rates'!K95","v":13.810500000000001},{"$f":"'Population 2016'!L95*'Prevalence Rates'!L95","v":20.432611650485438},{"$f":"'Population 2016'!M95*'Prevalence Rates'!M95","v":20.432611650485438},{"$f":"'Population 2016'!N95*'Prevalence Rates'!N95","v":81.826004854368946},{"$f":"'Population 2016'!O95*'Prevalence Rates'!O95","v":73.221097087378638},{"$f":"'Population 2016'!P95*'Prevalence Rates'!P95","v":6.3155728155339803},{"$f":"'Population 2016'!Q95*'Prevalence Rates'!Q95","v":6.3648567961165048},{"$f":"'Population 2016'!R95*'Prevalence Rates'!R95","v":4.7168155339805828},{"$f":"'Population 2016'!S95*'Prevalence Rates'!S95","v":165.71766781161512},{"$f":"'Population 2016'!T95*'Prevalence Rates'!T95","v":72.214951456310686},{"$f":"'Population 2016'!U95*'Prevalence Rates'!U95","v":0},{"$f":"'Population 2016'!V95*'Prevalence Rates'!V95","v":40.662368932038838},{"$f":"'Population 2016'!W95*'Prevalence Rates'!W95","v":135.3409587378641},{"$f":"'Population 2016'!X95*'Prevalence Rates'!X95","v":135.3409587378641},{"$f":"'Population 2016'!Y95*'Prevalence Rates'!Y95","v":62.023325242718457},{"$f":"'Population 2016'!Z95*'Prevalence Rates'!Z95","v":452.78900970873786},{"$f":"'Population 2016'!AA95*'Prevalence Rates'!AA95","v":293.5056723752665},{"$f":"'Population 2016'!AB95*'Prevalence Rates'!AB95","v":29.498155339805827},{"$f":"'Population 2016'!AC95*'Prevalence Rates'!AC95","v":616.86027184466025},{"$f":"'Population 2016'!AD95*'Prevalence Rates'!AD95","v":35.423669902912621},{"$f":"'Population 2016'!AE95*'Prevalence Rates'!AE95","v":23.411771844660194},{"$f":"'Population 2016'!AF95*'Prevalence Rates'!AF95","v":55.412500000000001},{"$f":"'Population 2016'!AG95*'Prevalence Rates'!AG95","v":9.0157133811734926},{"$f":"'Population 2016'!AH95*'Prevalence Rates'!AH95","v":253.51890291262137},{"$f":"'Population 2016'!AI95*'Prevalence Rates'!AI95","v":130.88583737864082},{"$f":"'Population 2016'!AJ95*'Prevalence Rates'!AJ95","v":12.617000000000001},{"$f":"'Population 2016'!AK95*'Prevalence Rates'!AK95","v":0.55213106796116518},{"$f":"'Population 2016'!AL95*'Prevalence Rates'!AL95","v":120.35148058252429},{"$f":"'Population 2016'!AM95*'Prevalence Rates'!AM95","v":159.76512135922331},{"$f":"'Population 2016'!AN95*'Prevalence Rates'!AN95","v":0},{"$f":"'Population 2016'!AO95*'Prevalence Rates'!AO95","v":0},{"$f":"'Population 2016'!AP95*'Prevalence Rates'!AP95","v":9.664776699029126},{"$f":"'Population 2016'!AQ95*'Prevalence Rates'!AQ95","v":76.044053398058253},{"$f":"'Population 2016'!AR95*'Prevalence Rates'!AR95","v":1574.7380000000001},{"$f":"'Population 2016'!AS95*'Prevalence Rates'!AS95","v":7.0324854368932055},{"$f":"'Population 2016'!AT95*'Prevalence Rates'!AT95","v":0},{"$f":"'Population 2016'!AU95*'Prevalence Rates'!AU95","v":0},{"$f":"'Population 2016'!AV95*'Prevalence Rates'!AV95","v":30.573373786407767},{"$f":"'Population 2016'!AW95*'Prevalence Rates'!AW95","v":94.430063106796112},{"$f":"'Population 2016'!AX95*'Prevalence Rates'!AX95","v":15.174500000000002},{"$f":"'Population 2016'!AY95*'Prevalence Rates'!AY95","v":103.23449497566683},{"$f":"'Population 2016'!AZ95*'Prevalence Rates'!AZ95","v":99.42986650485436},{"$f":"'Population 2016'!BA95*'Prevalence Rates'!BA95","v":52.23800970873787},{"$f":"'Population 2016'!BB95*'Prevalence Rates'!BB95","v":35.307495145631073},{"$f":"'Population 2016'!BC95*'Prevalence Rates'!BC95","v":0},93]
[null,"Male 85-89",{"$f":"'Population 2016'!C96*'Prevalence Rates'!C96","v":11.956519417475729},{"$f":"'Population 2016'!D96*'Prevalence Rates'!D96","v":5.6309182951090886},{"$f":"'Population 2016'!E96*'Prevalence Rates'!E96","v":3.4398713592233015},{"$f":"'Population 2016'!F96*'Prevalence Rates'!F96","v":7.2856771844660209},{"$f":"'Population 2016'!G96*'Prevalence Rates'!G96","v":6.6495000000000006},{"$f":"'Population 2016'!H96*'Prevalence Rates'!H96","v":100.20110436893205},{"$f":"'Population 2016'!I96*'Prevalence Rates'!I96","v":4.7720436893203892},{"$f":"'Population 2016'!J96*'Prevalence Rates'!J96","v":17.732000000000003},{"$f":"'Population 2016'!K96*'Prevalence Rates'!K96","v":9.3775000000000013},{"$f":"'Population 2016'!L96*'Prevalence Rates'!L96","v":11.801594660194176},{"$f":"'Population 2016'!M96*'Prevalence Rates'!M96","v":11.801594660194176},{"$f":"'Population 2016'!N96*'Prevalence Rates'!N96","v":43.43370873786408},{"$f":"'Population 2016'!O96*'Prevalence Rates'!O96","v":36.09001941747573},{"$f":"'Population 2016'!P96*'Prevalence Rates'!P96","v":3.3780970873786407},{"$f":"'Population 2016'!Q96*'Prevalence Rates'!Q96","v":1.6320145631067962},{"$f":"'Population 2016'!R96*'Prevalence Rates'!R96","v":2.3584077669902914},{"$f":"'Population 2016'!S96*'Prevalence Rates'!S96","v":79.435747207390236},{"$f":"'Population 2016'!T96*'Prevalence Rates'!T96","v":34.0691504854369},{"$f":"'Population 2016'!U96*'Prevalence Rates'!U96","v":0},{"$f":"'Population 2016'!V96*'Prevalence Rates'!V96","v":16.519087378640776},{"$f":"'Population 2016'!W96*'Prevalence Rates'!W96","v":64.776983009708744},{"$f":"'Population 2016'!X96*'Prevalence Rates'!X96","v":64.776983009708744},{"$f":"'Population 2016'!Y96*'Prevalence Rates'!Y96","v":30.283689320388355},{"$f":"'Population 2016'!Z96*'Prevalence Rates'!Z96","v":216.59474271844661},{"$f":"'Population 2016'!AA96*'Prevalence Rates'!AA96","v":139.12931222983414},{"$f":"'Population 2016'!AB96*'Prevalence Rates'!AB96","v":15.553572815533981},{"$f":"'Population 2016'!AC96*'Prevalence Rates'!AC96","v":295.89530097087379},{"$f":"'Population 2016'!AD96*'Prevalence Rates'!AD96","v":18.79623300970874},{"$f":"'Population 2016'!AE96*'Prevalence Rates'!AE96","v":11.982402912621358},{"$f":"'Population 2016'!AF96*'Prevalence Rates'!AF96","v":24.040500000000002},{"$f":"'Population 2016'!AG96*'Prevalence Rates'!AG96","v":4.6143414943013941},{"$f":"'Population 2016'!AH96*'Prevalence Rates'!AH96","v":117.07134951456312},{"$f":"'Population 2016'!AI96*'Prevalence Rates'!AI96","v":61.13049514563108},{"$f":"'Population 2016'!AJ96*'Prevalence Rates'!AJ96","v":9.548},{"$f":"'Population 2016'!AK96*'Prevalence Rates'!AK96","v":0.73617475728155357},{"$f":"'Population 2016'!AL96*'Prevalence Rates'!AL96","v":54.429228155339814},{"$f":"'Population 2016'!AM96*'Prevalence Rates'!AM96","v":69.011944174757289},{"$f":"'Population 2016'!AN96*'Prevalence Rates'!AN96","v":0},{"$f":"'Population 2016'!AO96*'Prevalence Rates'!AO96","v":0},{"$f":"'Population 2016'!AP96*'Prevalence Rates'!AP96","v":4.832388349514563},{"$f":"'Population 2016'!AQ96*'Prevalence Rates'!AQ96","v":40.437543689320393},{"$f":"'Population 2016'!AR96*'Prevalence Rates'!AR96","v":758.55450000000008},{"$f":"'Population 2016'!AS96*'Prevalence Rates'!AS96","v":4.7720436893203892},{"$f":"'Population 2016'!AT96*'Prevalence Rates'!AT96","v":0},{"$f":"'Population 2016'!AU96*'Prevalence Rates'!AU96","v":0},{"$f":"'Population 2016'!AV96*'Prevalence Rates'!AV96","v":14.276553398058251},{"$f":"'Population 2016'!AW96*'Prevalence Rates'!AW96","v":48.260679611650488},{"$f":"'Population 2016'!AX96*'Prevalence Rates'!AX96","v":8.3544999999999998},{"$f":"'Population 2016'!AY96*'Prevalence Rates'!AY96","v":51.617247487833417},{"$f":"'Population 2016'!AZ96*'Prevalence Rates'!AZ96","v":52.491803398058252},{"$f":"'Population 2016'!BA96*'Prevalence Rates'!BA96","v":23.566019417475729},{"$f":"'Population 2016'!BB96*'Prevalence Rates'!BB96","v":14.343669902912623},{"$f":"'Population 2016'!BC96*'Prevalence Rates'!BC96","v":0},94]
[null,"Male 90+",{"$f":"'Population 2016'!C97*'Prevalence Rates'!C97","v":4.8211771844660198},{"$f":"'Population 2016'!D97*'Prevalence Rates'!D97","v":2.7136955639079945},{"$f":"'Population 2016'!E97*'Prevalence Rates'!E97","v":2.4570509708737869},{"$f":"'Population 2016'!F97*'Prevalence Rates'!F97","v":2.1660121359223306},{"$f":"'Population 2016'!G97*'Prevalence Rates'!G97","v":2.0460000000000003},{"$f":"'Population 2016'!H97*'Prevalence Rates'!H97","v":38.12962378640777},{"$f":"'Population 2016'!I97*'Prevalence Rates'!I97","v":1.7581213592233014},{"$f":"'Population 2016'!J97*'Prevalence Rates'!J97","v":7.6725000000000003},{"$f":"'Population 2016'!K97*'Prevalence Rates'!K97","v":4.9445000000000006},{"$f":"'Population 2016'!L97*'Prevalence Rates'!L97","v":4.5797233009708744},{"$f":"'Population 2016'!M97*'Prevalence Rates'!M97","v":4.5797233009708744},{"$f":"'Population 2016'!N97*'Prevalence Rates'!N97","v":17.644944174757285},{"$f":"'Population 2016'!O97*'Prevalence Rates'!O97","v":14.054286407766991},{"$f":"'Population 2016'!P97*'Prevalence Rates'!P97","v":1.3218640776699029},{"$f":"'Population 2016'!Q97*'Prevalence Rates'!Q97","v":1.1424101941747573},{"$f":"'Population 2016'!R97*'Prevalence Rates'!R97","v":1.0809368932038836},{"$f":"'Population 2016'!S97*'Prevalence Rates'!S97","v":37.351916620965497},{"$f":"'Population 2016'!T97*'Prevalence Rates'!T97","v":16.015412621359225},{"$f":"'Population 2016'!U97*'Prevalence Rates'!U97","v":0},{"$f":"'Population 2016'!V97*'Prevalence Rates'!V97","v":8.2595436893203882},{"$f":"'Population 2016'!W97*'Prevalence Rates'!W97","v":29.121640776699032},{"$f":"'Population 2016'!X97*'Prevalence Rates'!X97","v":29.121640776699032},{"$f":"'Population 2016'!Y97*'Prevalence Rates'!Y97","v":14.122682038834952},{"$f":"'Population 2016'!Z97*'Prevalence Rates'!Z97","v":92.797747572815538},{"$f":"'Population 2016'!AA97*'Prevalence Rates'!AA97","v":60.809515319632126},{"$f":"'Population 2016'!AB97*'Prevalence Rates'!AB97","v":7.5086213592233007},{"$f":"'Population 2016'!AC97*'Prevalence Rates'!AC97","v":130.47207766990292},{"$f":"'Population 2016'!AD97*'Prevalence Rates'!AD97","v":5.9641893203883498},{"$f":"'Population 2016'!AE97*'Prevalence Rates'!AE97","v":3.8712378640776697},{"$f":"'Population 2016'!AF97*'Prevalence Rates'!AF97","v":10.7415},{"$f":"'Population 2016'!AG97*'Prevalence Rates'!AG97","v":1.4907872520050656},{"$f":"'Population 2016'!AH97*'Prevalence Rates'!AH97","v":50.150174757281555},{"$f":"'Population 2016'!AI97*'Prevalence Rates'!AI97","v":30.413934466019423},{"$f":"'Population 2016'!AJ97*'Prevalence Rates'!AJ97","v":5.1150000000000002},{"$f":"'Population 2016'!AK97*'Prevalence Rates'!AK97","v":0.36808737864077679},{"$f":"'Population 2016'!AL97*'Prevalence Rates'!AL97","v":19.950155339805828},{"$f":"'Population 2016'!AM97*'Prevalence Rates'!AM97","v":30.964786407766994},{"$f":"'Population 2016'!AN97*'Prevalence Rates'!AN97","v":0},{"$f":"'Population 2016'!AO97*'Prevalence Rates'!AO97","v":0},{"$f":"'Population 2016'!AP97*'Prevalence Rates'!AP97","v":1.3591092233009707},{"$f":"'Population 2016'!AQ97*'Prevalence Rates'!AQ97","v":16.819155339805828},{"$f":"'Population 2016'!AR97*'Prevalence Rates'!AR97","v":326.678},{"$f":"'Population 2016'!AS97*'Prevalence Rates'!AS97","v":1.7581213592233014},{"$f":"'Population 2016'!AT97*'Prevalence Rates'!AT97","v":0},{"$f":"'Population 2016'!AU97*'Prevalence Rates'!AU97","v":0},{"$f":"'Population 2016'!AV97*'Prevalence Rates'!AV97","v":5.6567475728155339},{"$f":"'Population 2016'!AW97*'Prevalence Rates'!AW97","v":19.304271844660196},{"$f":"'Population 2016'!AX97*'Prevalence Rates'!AX97","v":2.7280000000000002},{"$f":"'Population 2016'!AY97*'Prevalence Rates'!AY97","v":21.534070436330502},{"$f":"'Population 2016'!AZ97*'Prevalence Rates'!AZ97","v":19.885973300970871},{"$f":"'Population 2016'!BA97*'Prevalence Rates'!BA97","v":14.139611650485438},{"$f":"'Population 2016'!BB97*'Prevalence Rates'!BB97","v":7.447674757281554},{"$f":"'Population 2016'!BC97*'Prevalence Rates'!BC97","v":0},95]
["SIMD Q2","Female 0-4",{"$f":"'Population 2016'!C98*'Prevalence Rates'!C98","v":0},{"$f":"'Population 2016'!D98*'Prevalence Rates'!D98","v":0},{"$f":"'Population 2016'!E98*'Prevalence Rates'!E98","v":0},{"$f":"'Population 2016'!F98*'Prevalence Rates'!F98","v":0},{"$f":"'Population 2016'!G98*'Prevalence Rates'!G98","v":0},{"$f":"'Population 2016'!H98*'Prevalence Rates'!H98","v":0},{"$f":"'Population 2016'!I98*'Prevalence Rates'!I98","v":0},{"$f":"'Population 2016'!J98*'Prevalence Rates'!J98","v":0},{"$f":"'Population 2016'!K98*'Prevalence Rates'!K98","v":0},{"$f":"'Population 2016'!L98*'Prevalence Rates'!L98","v":0},{"$f":"'Population 2016'!M98*'Prevalence Rates'!M98","v":0},{"$f":"'Population 2016'!N98*'Prevalence Rates'!N98","v":0},{"$f":"'Population 2016'!O98*'Prevalence Rates'!O98","v":0},{"$f":"'Population 2016'!P98*'Prevalence Rates'!P98","v":0},{"$f":"'Population 2016'!Q98*'Prevalence Rates'!Q98","v":0},{"$f":"'Population 2016'!R98*'Prevalence Rates'!R98","v":0},{"$f":"'Population 2016'!S98*'Prevalence Rates'!S98","v":0},{"$f":"'Population 2016'!T98*'Prevalence Rates'!T98","v":0},{"$f":"'Population 2016'!U98*'Prevalence Rates'!U98","v":0},{"$f":"'Population 2016'!V98*'Prevalence Rates'!V98","v":0},{"$f":"'Population 2016'!W98*'Prevalence Rates'!W98","v":0},{"$f":"'Population 2016'!X98*'Prevalence Rates'!X98","v":0},{"$f":"'Population 2016'!Y98*'Prevalence Rates'!Y98","v":0},{"$f":"'Population 2016'!Z98*'Prevalence Rates'!Z98","v":0},{"$f":"'Population 2016'!AA98*'Prevalence Rates'!AA98","v":0},{"$f":"'Population 2016'!AB98*'Prevalence Rates'!AB98","v":0},{"$f":"'Population 2016'!AC98*'Prevalence Rates'!AC98","v":0},{"$f":"'Population 2016'!AD98*'Prevalence Rates'!AD98","v":0},{"$f":"'Population 2016'!AE98*'Prevalence Rates'!AE98","v":0},{"$f":"'Population 2016'!AF98*'Prevalence Rates'!AF98","v":0},{"$f":"'Population 2016'!AG98*'Prevalence Rates'!AG98","v":0},{"$f":"'Population 2016'!AH98*'Prevalence Rates'!AH98","v":0},{"$f":"'Population 2016'!AI98*'Prevalence Rates'!AI98","v":0},{"$f":"'Population 2016'!AJ98*'Prevalence Rates'!AJ98","v":0},{"$f":"'Population 2016'!AK98*'Prevalence Rates'!AK98","v":0},{"$f":"'Population 2016'!AL98*'Prevalence Rates'!AL98","v":0},{"$f":"'Population 2016'!AM98*'Prevalence Rates'!AM98","v":0},{"$f":"'Population 2016'!AN98*'Prevalence Rates'!AN98","v":0},{"$f":"'Population 2016'!AO98*'Prevalence Rates'!AO98","v":0},{"$f":"'Population 2016'!AP98*'Prevalence Rates'!AP98","v":0},{"$f":"'Population 2016'!AQ98*'Prevalence Rates'!AQ98","v":0},{"$f":"'Population 2016'!AR98*'Prevalence Rates'!AR98","v":0},{"$f":"'Population 2016'!AS98*'Prevalence Rates'!AS98","v":0},{"$f":"'Population 2016'!AT98*'Prevalence Rates'!AT98","v":0},{"$f":"'Population 2016'!AU98*'Prevalence Rates'!AU98","v":0},{"$f":"'Population 2016'!AV98*'Prevalence Rates'!AV98","v":0},{"$f":"'Population 2016'!AW98*'Prevalence Rates'!AW98","v":0},{"$f":"'Population 2016'!AX98*'Prevalence Rates'!AX98","v":0},{"$f":"'Population 2016'!AY98*'Prevalence Rates'!AY98","v":0},{"$f":"'Population 2016'!AZ98*'Prevalence Rates'!AZ98","v":0},{"$f":"'Population 2016'!BA98*'Prevalence Rates'!BA98","v":0},{"$f":"'Population 2016'!BB98*'Prevalence Rates'!BB98","v":0},{"$f":"'Population 2016'!BC98*'Prevalence Rates'!BC98","v":0},96]
[null,"Female 5-9",{"$f":"'Population 2016'!C99*'Prevalence Rates'!C99","v":0},{"$f":"'Population 2016'!D99*'Prevalence Rates'!D99","v":0},{"$f":"'Population 2016'!E99*'Prevalence Rates'!E99","v":0},{"$f":"'Population 2016'!F99*'Prevalence Rates'!F99","v":0},{"$f":"'Population 2016'!G99*'Prevalence Rates'!G99","v":0},{"$f":"'Population 2016'!H99*'Prevalence Rates'!H99","v":0},{"$f":"'Population 2016'!I99*'Prevalence Rates'!I99","v":0},{"$f":"'Population 2016'!J99*'Prevalence Rates'!J99","v":0},{"$f":"'Population 2016'!K99*'Prevalence Rates'!K99","v":0},{"$f":"'Population 2016'!L99*'Prevalence Rates'!L99","v":0},{"$f":"'Population 2016'!M99*'Prevalence Rates'!M99","v":0},{"$f":"'Population 2016'!N99*'Prevalence Rates'!N99","v":0},{"$f":"'Population 2016'!O99*'Prevalence Rates'!O99","v":0},{"$f":"'Population 2016'!P99*'Prevalence Rates'!P99","v":0},{"$f":"'Population 2016'!Q99*'Prevalence Rates'!Q99","v":0},{"$f":"'Population 2016'!R99*'Prevalence Rates'!R99","v":0},{"$f":"'Population 2016'!S99*'Prevalence Rates'!S99","v":0},{"$f":"'Population 2016'!T99*'Prevalence Rates'!T99","v":0},{"$f":"'Population 2016'!U99*'Prevalence Rates'!U99","v":0},{"$f":"'Population 2016'!V99*'Prevalence Rates'!V99","v":0},{"$f":"'Population 2016'!W99*'Prevalence Rates'!W99","v":0},{"$f":"'Population 2016'!X99*'Prevalence Rates'!X99","v":0},{"$f":"'Population 2016'!Y99*'Prevalence Rates'!Y99","v":0},{"$f":"'Population 2016'!Z99*'Prevalence Rates'!Z99","v":0},{"$f":"'Population 2016'!AA99*'Prevalence Rates'!AA99","v":0},{"$f":"'Population 2016'!AB99*'Prevalence Rates'!AB99","v":0},{"$f":"'Population 2016'!AC99*'Prevalence Rates'!AC99","v":0},{"$f":"'Population 2016'!AD99*'Prevalence Rates'!AD99","v":0},{"$f":"'Population 2016'!AE99*'Prevalence Rates'!AE99","v":0},{"$f":"'Population 2016'!AF99*'Prevalence Rates'!AF99","v":0},{"$f":"'Population 2016'!AG99*'Prevalence Rates'!AG99","v":0},{"$f":"'Population 2016'!AH99*'Prevalence Rates'!AH99","v":0},{"$f":"'Population 2016'!AI99*'Prevalence Rates'!AI99","v":0},{"$f":"'Population 2016'!AJ99*'Prevalence Rates'!AJ99","v":0},{"$f":"'Population 2016'!AK99*'Prevalence Rates'!AK99","v":0},{"$f":"'Population 2016'!AL99*'Prevalence Rates'!AL99","v":0},{"$f":"'Population 2016'!AM99*'Prevalence Rates'!AM99","v":0},{"$f":"'Population 2016'!AN99*'Prevalence Rates'!AN99","v":0},{"$f":"'Population 2016'!AO99*'Prevalence Rates'!AO99","v":0},{"$f":"'Population 2016'!AP99*'Prevalence Rates'!AP99","v":0},{"$f":"'Population 2016'!AQ99*'Prevalence Rates'!AQ99","v":0},{"$f":"'Population 2016'!AR99*'Prevalence Rates'!AR99","v":0},{"$f":"'Population 2016'!AS99*'Prevalence Rates'!AS99","v":0},{"$f":"'Population 2016'!AT99*'Prevalence Rates'!AT99","v":0},{"$f":"'Population 2016'!AU99*'Prevalence Rates'!AU99","v":0},{"$f":"'Population 2016'!AV99*'Prevalence Rates'!AV99","v":0},{"$f":"'Population 2016'!AW99*'Prevalence Rates'!AW99","v":0},{"$f":"'Population 2016'!AX99*'Prevalence Rates'!AX99","v":0},{"$f":"'Population 2016'!AY99*'Prevalence Rates'!AY99","v":0},{"$f":"'Population 2016'!AZ99*'Prevalence Rates'!AZ99","v":0},{"$f":"'Population 2016'!BA99*'Prevalence Rates'!BA99","v":0},{"$f":"'Population 2016'!BB99*'Prevalence Rates'!BB99","v":0},{"$f":"'Population 2016'!BC99*'Prevalence Rates'!BC99","v":0},97]
[null,"Female 10-15",{"$f":"'Population 2016'!C100*'Prevalence Rates'!C100","v":0},{"$f":"'Population 2016'!D100*'Prevalence Rates'!D100","v":0},{"$f":"'Population 2016'!E100*'Prevalence Rates'!E100","v":0},{"$f":"'Population 2016'!F100*'Prevalence Rates'!F100","v":0},{"$f":"'Population 2016'!G100*'Prevalence Rates'!G100","v":0},{"$f":"'Population 2016'!H100*'Prevalence Rates'!H100","v":0},{"$f":"'Population 2016'!I100*'Prevalence Rates'!I100","v":0},{"$f":"'Population 2016'!J100*'Prevalence Rates'!J100","v":0},{"$f":"'Population 2016'!K100*'Prevalence Rates'!K100","v":0},{"$f":"'Population 2016'!L100*'Prevalence Rates'!L100","v":0},{"$f":"'Population 2016'!M100*'Prevalence Rates'!M100","v":0},{"$f":"'Population 2016'!N100*'Prevalence Rates'!N100","v":0},{"$f":"'Population 2016'!O100*'Prevalence Rates'!O100","v":0},{"$f":"'Population 2016'!P100*'Prevalence Rates'!P100","v":0},{"$f":"'Population 2016'!Q100*'Prevalence Rates'!Q100","v":0},{"$f":"'Population 2016'!R100*'Prevalence Rates'!R100","v":0},{"$f":"'Population 2016'!S100*'Prevalence Rates'!S100","v":0},{"$f":"'Population 2016'!T100*'Prevalence Rates'!T100","v":0},{"$f":"'Population 2016'!U100*'Prevalence Rates'!U100","v":0},{"$f":"'Population 2016'!V100*'Prevalence Rates'!V100","v":0},{"$f":"'Population 2016'!W100*'Prevalence Rates'!W100","v":0},{"$f":"'Population 2016'!X100*'Prevalence Rates'!X100","v":0},{"$f":"'Population 2016'!Y100*'Prevalence Rates'!Y100","v":0},{"$f":"'Population 2016'!Z100*'Prevalence Rates'!Z100","v":0},{"$f":"'Population 2016'!AA100*'Prevalence Rates'!AA100","v":0},{"$f":"'Population 2016'!AB100*'Prevalence Rates'!AB100","v":0},{"$f":"'Population 2016'!AC100*'Prevalence Rates'!AC100","v":0},{"$f":"'Population 2016'!AD100*'Prevalence Rates'!AD100","v":0},{"$f":"'Population 2016'!AE100*'Prevalence Rates'!AE100","v":0},{"$f":"'Population 2016'!AF100*'Prevalence Rates'!AF100","v":0},{"$f":"'Population 2016'!AG100*'Prevalence Rates'!AG100","v":0},{"$f":"'Population 2016'!AH100*'Prevalence Rates'!AH100","v":0},{"$f":"'Population 2016'!AI100*'Prevalence Rates'!AI100","v":0},{"$f":"'Population 2016'!AJ100*'Prevalence Rates'!AJ100","v":0},{"$f":"'Population 2016'!AK100*'Prevalence Rates'!AK100","v":0},{"$f":"'Population 2016'!AL100*'Prevalence Rates'!AL100","v":0},{"$f":"'Population 2016'!AM100*'Prevalence Rates'!AM100","v":0},{"$f":"'Population 2016'!AN100*'Prevalence Rates'!AN100","v":0},{"$f":"'Population 2016'!AO100*'Prevalence Rates'!AO100","v":0},{"$f":"'Population 2016'!AP100*'Prevalence Rates'!AP100","v":0},{"$f":"'Population 2016'!AQ100*'Prevalence Rates'!AQ100","v":0},{"$f":"'Population 2016'!AR100*'Prevalence Rates'!AR100","v":0},{"$f":"'Population 2016'!AS100*'Prevalence Rates'!AS100","v":0},{"$f":"'Population 2016'!AT100*'Prevalence Rates'!AT100","v":0},{"$f":"'Population 2016'!AU100*'Prevalence Rates'!AU100","v":0},{"$f":"'Population 2016'!AV100*'Prevalence Rates'!AV100","v":0},{"$f":"'Population 2016'!AW100*'Prevalence Rates'!AW100","v":0},{"$f":"'Population 2016'!AX100*'Prevalence Rates'!AX100","v":0},{"$f":"'Population 2016'!AY100*'Prevalence Rates'!AY100","v":0},{"$f":"'Population 2016'!AZ100*'Prevalence Rates'!AZ100","v":0},{"$f":"'Population 2016'!BA100*'Prevalence Rates'!BA100","v":0},{"$f":"'Population 2016'!BB100*'Prevalence Rates'!BB100","v":0},{"$f":"'Population 2016'!BC100*'Prevalence Rates'!BC100","v":0},98]
[null,"Female 16-19",{"$f":"'Population 2016'!C101*'Prevalence Rates'!C101","v":224.10207861702128},{"$f":"'Population 2016'!D101*'Prevalence Rates'!D101","v":169.72329397995202},{"$f":"'Population 2016'!E101*'Prevalence Rates'!E101","v":76.01643430851064},{"$f":"'Population 2016'!F101*'Prevalence Rates'!F101","v":53.360115797872339},{"$f":"'Population 2016'!G101*'Prevalence Rates'!G101","v":74.099699999999999},{"$f":"'Population 2016'!H101*'Prevalence Rates'!H101","v":492.49439569148944},{"$f":"'Population 2016'!I101*'Prevalence Rates'!I101","v":97.541227340425536},{"$f":"'Population 2016'!J101*'Prevalence Rates'!J101","v":170.3502},{"$f":"'Population 2016'!K101*'Prevalence Rates'!K101","v":86.757300000000001},{"$f":"'Population 2016'!L101*'Prevalence Rates'!L101","v":277.25305787234038},{"$f":"'Population 2016'!M101*'Prevalence Rates'!M101","v":277.25305787234038},{"$f":"'Population 2016'!N101*'Prevalence Rates'!N101","v":228.90338234042548},{"$f":"'Population 2016'!O101*'Prevalence Rates'!O101","v":185.7275569148936},{"$f":"'Population 2016'!P101*'Prevalence Rates'!P101","v":71.756557180851047},{"$f":"'Population 2016'!Q101*'Prevalence Rates'!Q101","v":163.9125536170213},{"$f":"'Population 2016'!R101*'Prevalence Rates'!R101","v":24.578102393617023},{"$f":"'Population 2016'!S101*'Prevalence Rates'!S101","v":1109.7743008104389},{"$f":"'Population 2016'!T101*'Prevalence Rates'!T101","v":321.68145829787227},{"$f":"'Population 2016'!U101*'Prevalence Rates'!U101","v":31.116599999999998},{"$f":"'Population 2016'!V101*'Prevalence Rates'!V101","v":162.62322893617022},{"$f":"'Population 2016'!W101*'Prevalence Rates'!W101","v":423.24775755319143},{"$f":"'Population 2016'!X101*'Prevalence Rates'!X101","v":423.24775755319143},{"$f":"'Population 2016'!Y101*'Prevalence Rates'!Y101","v":305.97265292553192},{"$f":"'Population 2016'!Z101*'Prevalence Rates'!Z101","v":768.19190409574469},{"$f":"'Population 2016'!AA101*'Prevalence Rates'!AA101","v":938.188945617066},{"$f":"'Population 2016'!AB101*'Prevalence Rates'!AB101","v":376.27184680851065},{"$f":"'Population 2016'!AC101*'Prevalence Rates'!AC101","v":1336.7065212765956},{"$f":"'Population 2016'!AD101*'Prevalence Rates'!AD101","v":310.31121925531914},{"$f":"'Population 2016'!AE101*'Prevalence Rates'!AE101","v":237.05816457446807},{"$f":"'Population 2016'!AF101*'Prevalence Rates'!AF101","v":60.914699999999996},{"$f":"'Population 2016'!AG101*'Prevalence Rates'!AG101","v":126.64735268270121},{"$f":"'Population 2016'!AH101*'Prevalence Rates'!AH101","v":1202.7951727659574},{"$f":"'Population 2016'!AI101*'Prevalence Rates'!AI101","v":957.41979797872341},{"$f":"'Population 2016'!AJ101*'Prevalence Rates'!AJ101","v":200.41200000000001},{"$f":"'Population 2016'!AK101*'Prevalence Rates'!AK101","v":88.510904999999994},{"$f":"'Population 2016'!AL101*'Prevalence Rates'!AL101","v":144.55206430851064},{"$f":"'Population 2016'!AM101*'Prevalence Rates'!AM101","v":796.55017404255307},{"$f":"'Population 2016'!AN101*'Prevalence Rates'!AN101","v":12.921299999999999},{"$f":"'Population 2016'!AO101*'Prevalence Rates'!AO101","v":12.921299999999999},{"$f":"'Population 2016'!AP101*'Prevalence Rates'!AP101","v":74.691902872340421},{"$f":"'Population 2016'!AQ101*'Prevalence Rates'!AQ101","v":230.22833457446802},{"$f":"'Population 2016'!AR101*'Prevalence Rates'!AR101","v":6097.0077000000001},{"$f":"'Population 2016'!AS101*'Prevalence Rates'!AS101","v":97.541227340425536},{"$f":"'Population 2016'!AT101*'Prevalence Rates'!AT101","v":3.6917999999999997},{"$f":"'Population 2016'!AU101*'Prevalence Rates'!AU101","v":3.6917999999999997},{"$f":"'Population 2016'!AV101*'Prevalence Rates'!AV101","v":163.68588382978717},{"$f":"'Population 2016'!AW101*'Prevalence Rates'!AW101","v":427.95816893617024},{"$f":"'Population 2016'!AX101*'Prevalence Rates'!AX101","v":83.5929},{"$f":"'Population 2016'!AY101*'Prevalence Rates'!AY101","v":447.14011565782528},{"$f":"'Population 2016'!AZ101*'Prevalence Rates'!AZ101","v":335.1040688297872},{"$f":"'Population 2016'!BA101*'Prevalence Rates'!BA101","v":202.90017781914892},{"$f":"'Population 2016'!BB101*'Prevalence Rates'!BB101","v":305.47456851063828},{"$f":"'Population 2016'!BC101*'Prevalence Rates'!BC101","v":31.116599999999998},99]
[null,"Female 20-24",{"$f":"'Population 2016'!C102*'Prevalence Rates'!C102","v":512.46700563829791},{"$f":"'Population 2016'!D102*'Prevalence Rates'!D102","v":352.59951089128629},{"$f":"'Population 2016'!E102*'Prevalence Rates'!E102","v":118.09341622340426},{"$f":"'Population 2016'!F102*'Prevalence Rates'!F102","v":103.82472143617021},{"$f":"'Population 2016'!G102*'Prevalence Rates'!G102","v":96.250500000000002},{"$f":"'Population 2016'!H102*'Prevalence Rates'!H102","v":667.14725393617039},{"$f":"'Population 2016'!I102*'Prevalence Rates'!I102","v":149.00635005319148},{"$f":"'Population 2016'!J102*'Prevalence Rates'!J102","v":272.13839999999999},{"$f":"'Population 2016'!K102*'Prevalence Rates'!K102","v":99.151200000000003},{"$f":"'Population 2016'!L102*'Prevalence Rates'!L102","v":346.56632234042547},{"$f":"'Population 2016'!M102*'Prevalence Rates'!M102","v":346.56632234042547},{"$f":"'Population 2016'!N102*'Prevalence Rates'!N102","v":555.46763888297858},{"$f":"'Population 2016'!O102*'Prevalence Rates'!O102","v":240.63831287234041},{"$f":"'Population 2016'!P102*'Prevalence Rates'!P102","v":102.73780053191487},{"$f":"'Population 2016'!Q102*'Prevalence Rates'!Q102","v":275.86007664893623},{"$f":"'Population 2016'!R102*'Prevalence Rates'!R102","v":31.208474202127661},{"$f":"'Population 2016'!S102*'Prevalence Rates'!S102","v":1891.8526893572171},{"$f":"'Population 2016'!T102*'Prevalence Rates'!T102","v":822.03032680851049},{"$f":"'Population 2016'!U102*'Prevalence Rates'!U102","v":37.972799999999999},{"$f":"'Population 2016'!V102*'Prevalence Rates'!V102","v":228.092645106383},{"$f":"'Population 2016'!W102*'Prevalence Rates'!W102","v":572.48540617021274},{"$f":"'Population 2016'!X102*'Prevalence Rates'!X102","v":572.48540617021274},{"$f":"'Population 2016'!Y102*'Prevalence Rates'!Y102","v":453.61659973404255},{"$f":"'Population 2016'!Z102*'Prevalence Rates'!Z102","v":1461.5162923404255},{"$f":"'Population 2016'!AA102*'Prevalence Rates'!AA102","v":1413.6120302481045},{"$f":"'Population 2016'!AB102*'Prevalence Rates'!AB102","v":778.62194042553188},{"$f":"'Population 2016'!AC102*'Prevalence Rates'!AC102","v":2175.6091595744679},{"$f":"'Population 2016'!AD102*'Prevalence Rates'!AD102","v":399.29383867021278},{"$f":"'Population 2016'!AE102*'Prevalence Rates'!AE102","v":304.18748808510639},{"$f":"'Population 2016'!AF102*'Prevalence Rates'!AF102","v":76.209299999999999},{"$f":"'Population 2016'!AG102*'Prevalence Rates'!AG102","v":162.51091859389456},{"$f":"'Population 2016'!AH102*'Prevalence Rates'!AH102","v":1643.6970842553192},{"$f":"'Population 2016'!AI102*'Prevalence Rates'!AI102","v":1778.9214623936168},{"$f":"'Population 2016'!AJ102*'Prevalence Rates'!AJ102","v":251.30609999999999},{"$f":"'Population 2016'!AK102*'Prevalence Rates'!AK102","v":179.60606999999999},{"$f":"'Population 2016'!AL102*'Prevalence Rates'!AL102","v":196.34344563829788},{"$f":"'Population 2016'!AM102*'Prevalence Rates'!AM102","v":1016.0004724468084},{"$f":"'Population 2016'!AN102*'Prevalence Rates'!AN102","v":23.2056},{"$f":"'Population 2016'!AO102*'Prevalence Rates'!AO102","v":23.2056},{"$f":"'Population 2016'!AP102*'Prevalence Rates'!AP102","v":118.84678468085106},{"$f":"'Population 2016'!AQ102*'Prevalence Rates'!AQ102","v":292.7406638297872},{"$f":"'Population 2016'!AR102*'Prevalence Rates'!AR102","v":9730.2662999999993},{"$f":"'Population 2016'!AS102*'Prevalence Rates'!AS102","v":149.00635005319148},{"$f":"'Population 2016'!AT102*'Prevalence Rates'!AT102","v":6.8561999999999994},{"$f":"'Population 2016'!AU102*'Prevalence Rates'!AU102","v":6.8561999999999994},{"$f":"'Population 2016'!AV102*'Prevalence Rates'!AV102","v":232.34606999999994},{"$f":"'Population 2016'!AW102*'Prevalence Rates'!AW102","v":634.70486010638297},{"$f":"'Population 2016'!AX102*'Prevalence Rates'!AX102","v":172.9872},{"$f":"'Population 2016'!AY102*'Prevalence Rates'!AY102","v":760.16826656555634},{"$f":"'Population 2016'!AZ102*'Prevalence Rates'!AZ102","v":697.64079255319143},{"$f":"'Population 2016'!BA102*'Prevalence Rates'!BA102","v":274.98776265957446},{"$f":"'Population 2016'!BB102*'Prevalence Rates'!BB102","v":407.39405744680846},{"$f":"'Population 2016'!BC102*'Prevalence Rates'!BC102","v":37.972799999999999},100]
[null,"Female 25-29",{"$f":"'Population 2016'!C103*'Prevalence Rates'!C103","v":619.79604265957448},{"$f":"'Population 2016'!D103*'Prevalence Rates'!D103","v":424.76994547852718},{"$f":"'Population 2016'!E103*'Prevalence Rates'!E103","v":140.19526462765961},{"$f":"'Population 2016'!F103*'Prevalence Rates'!F103","v":113.65027702127659},{"$f":"'Population 2016'!G103*'Prevalence Rates'!G103","v":119.8828},{"$f":"'Population 2016'!H103*'Prevalence Rates'!H103","v":761.6021802659576},{"$f":"'Population 2016'!I103*'Prevalence Rates'!I103","v":160.27679574468087},{"$f":"'Population 2016'!J103*'Prevalence Rates'!J103","v":285.42189999999999},{"$f":"'Population 2016'!K103*'Prevalence Rates'!K103","v":121.5634},{"$f":"'Population 2016'!L103*'Prevalence Rates'!L103","v":357.12630808510642},{"$f":"'Population 2016'!M103*'Prevalence Rates'!M103","v":357.12630808510642},{"$f":"'Population 2016'!N103*'Prevalence Rates'!N103","v":544.87957292553187},{"$f":"'Population 2016'!O103*'Prevalence Rates'!O103","v":290.48515446808511},{"$f":"'Population 2016'!P103*'Prevalence Rates'!P103","v":123.98894680851062},{"$f":"'Population 2016'!Q103*'Prevalence Rates'!Q103","v":292.38551377659581},{"$f":"'Population 2016'!R103*'Prevalence Rates'!R103","v":30.842287765957451},{"$f":"'Population 2016'!S103*'Prevalence Rates'!S103","v":2224.4165656274931},{"$f":"'Population 2016'!T103*'Prevalence Rates'!T103","v":987.82986191489363},{"$f":"'Population 2016'!U103*'Prevalence Rates'!U103","v":43.975700000000003},{"$f":"'Population 2016'!V103*'Prevalence Rates'!V103","v":262.91735489361707},{"$f":"'Population 2016'!W103*'Prevalence Rates'!W103","v":690.95812946808519},{"$f":"'Population 2016'!X103*'Prevalence Rates'!X103","v":690.95812946808519},{"$f":"'Population 2016'!Y103*'Prevalence Rates'!Y103","v":502.05019707446814},{"$f":"'Population 2016'!Z103*'Prevalence Rates'!Z103","v":2020.0370991489362},{"$f":"'Population 2016'!AA103*'Prevalence Rates'!AA103","v":1731.1434307467412},{"$f":"'Population 2016'!AB103*'Prevalence Rates'!AB103","v":904.45779893617021},{"$f":"'Population 2016'!AC103*'Prevalence Rates'!AC103","v":2836.5488617021274},{"$f":"'Population 2016'!AD103*'Prevalence Rates'!AD103","v":459.80336962765955},{"$f":"'Population 2016'!AE103*'Prevalence Rates'!AE103","v":341.78666138297871},{"$f":"'Population 2016'!AF103*'Prevalence Rates'!AF103","v":99.995699999999999},{"$f":"'Population 2016'!AG103*'Prevalence Rates'!AG103","v":182.59812280296023},{"$f":"'Population 2016'!AH103*'Prevalence Rates'!AH103","v":1833.1198136170217},{"$f":"'Population 2016'!AI103*'Prevalence Rates'!AI103","v":2089.1802311170209},{"$f":"'Population 2016'!AJ103*'Prevalence Rates'!AJ103","v":280.38010000000003},{"$f":"'Population 2016'!AK103*'Prevalence Rates'!AK103","v":169.84563750000004},{"$f":"'Population 2016'!AL103*'Prevalence Rates'!AL103","v":208.82810803191492},{"$f":"'Population 2016'!AM103*'Prevalence Rates'!AM103","v":1168.5739222340426},{"$f":"'Population 2016'!AN103*'Prevalence Rates'!AN103","v":28.01},{"$f":"'Population 2016'!AO103*'Prevalence Rates'!AO103","v":28.01},{"$f":"'Population 2016'!AP103*'Prevalence Rates'!AP103","v":140.70287138297874},{"$f":"'Population 2016'!AQ103*'Prevalence Rates'!AQ103","v":347.87168489361704},{"$f":"'Population 2016'!AR103*'Prevalence Rates'!AR103","v":11374.861000000001},{"$f":"'Population 2016'!AS103*'Prevalence Rates'!AS103","v":160.27679574468087},{"$f":"'Population 2016'!AT103*'Prevalence Rates'!AT103","v":6.4423000000000004},{"$f":"'Population 2016'!AU103*'Prevalence Rates'!AU103","v":6.4423000000000004},{"$f":"'Population 2016'!AV103*'Prevalence Rates'!AV103","v":265.46626489361699},{"$f":"'Population 2016'!AW103*'Prevalence Rates'!AW103","v":683.44995957446815},{"$f":"'Population 2016'!AX103*'Prevalence Rates'!AX103","v":163.85850000000002},{"$f":"'Population 2016'!AY103*'Prevalence Rates'!AY103","v":847.68903173818853},{"$f":"'Population 2016'!AZ103*'Prevalence Rates'!AZ103","v":732.23652606382984},{"$f":"'Population 2016'!BA103*'Prevalence Rates'!BA103","v":318.60942930851064},{"$f":"'Population 2016'!BB103*'Prevalence Rates'!BB103","v":492.74000085106383},{"$f":"'Population 2016'!BC103*'Prevalence Rates'!BC103","v":43.975700000000003},101]
[null,"Female 30-34",{"$f":"'Population 2016'!C104*'Prevalence Rates'!C104","v":527.95602031914893},{"$f":"'Population 2016'!D104*'Prevalence Rates'!D104","v":368.75189764027738},{"$f":"'Population 2016'!E104*'Prevalence Rates'!E104","v":130.28672712765959},{"$f":"'Population 2016'!F104*'Prevalence Rates'!F104","v":103.3983190425532},{"$f":"'Population 2016'!G104*'Prevalence Rates'!G104","v":99.715600000000009},{"$f":"'Population 2016'!H104*'Prevalence Rates'!H104","v":723.93275297872356},{"$f":"'Population 2016'!I104*'Prevalence Rates'!I104","v":135.66285925531918},{"$f":"'Population 2016'!J104*'Prevalence Rates'!J104","v":236.96460000000002},{"$f":"'Population 2016'!K104*'Prevalence Rates'!K104","v":112.88030000000001},{"$f":"'Population 2016'!L104*'Prevalence Rates'!L104","v":363.45597212765961},{"$f":"'Population 2016'!M104*'Prevalence Rates'!M104","v":363.45597212765961},{"$f":"'Population 2016'!N104*'Prevalence Rates'!N104","v":402.56299776595745},{"$f":"'Population 2016'!O104*'Prevalence Rates'!O104","v":276.18962521276597},{"$f":"'Population 2016'!P104*'Prevalence Rates'!P104","v":109.55187765957446},{"$f":"'Population 2016'!Q104*'Prevalence Rates'!Q104","v":300.58618622340435},{"$f":"'Population 2016'!R104*'Prevalence Rates'!R104","v":29.870877127659579},{"$f":"'Population 2016'!S104*'Prevalence Rates'!S104","v":2083.4717267765668},{"$f":"'Population 2016'!T104*'Prevalence Rates'!T104","v":828.9005259574468},{"$f":"'Population 2016'!U104*'Prevalence Rates'!U104","v":42.015000000000001},{"$f":"'Population 2016'!V104*'Prevalence Rates'!V104","v":279.83777872340431},{"$f":"'Population 2016'!W104*'Prevalence Rates'!W104","v":684.60581904255321},{"$f":"'Population 2016'!X104*'Prevalence Rates'!X104","v":684.60581904255321},{"$f":"'Population 2016'!Y104*'Prevalence Rates'!Y104","v":485.12947526595747},{"$f":"'Population 2016'!Z104*'Prevalence Rates'!Z104","v":1678.1532967021278},{"$f":"'Population 2016'!AA104*'Prevalence Rates'!AA104","v":1642.2216958340739},{"$f":"'Population 2016'!AB104*'Prevalence Rates'!AB104","v":810.22798723404253},{"$f":"'Population 2016'!AC104*'Prevalence Rates'!AC104","v":2501.1440106382975},{"$f":"'Population 2016'!AD104*'Prevalence Rates'!AD104","v":457.40717372340424},{"$f":"'Population 2016'!AE104*'Prevalence Rates'!AE104","v":358.36291978723403},{"$f":"'Population 2016'!AF104*'Prevalence Rates'!AF104","v":106.15790000000001},{"$f":"'Population 2016'!AG104*'Prevalence Rates'!AG104","v":191.45392090656802},{"$f":"'Population 2016'!AH104*'Prevalence Rates'!AH104","v":1936.97374212766},{"$f":"'Population 2016'!AI104*'Prevalence Rates'!AI104","v":1936.6611624468082},{"$f":"'Population 2016'!AJ104*'Prevalence Rates'!AJ104","v":296.90600000000001},{"$f":"'Population 2016'!AK104*'Prevalence Rates'!AK104","v":182.19804750000003},{"$f":"'Population 2016'!AL104*'Prevalence Rates'!AL104","v":215.12305755319153},{"$f":"'Population 2016'!AM104*'Prevalence Rates'!AM104","v":1233.6873389361701},{"$f":"'Population 2016'!AN104*'Prevalence Rates'!AN104","v":17.366199999999999},{"$f":"'Population 2016'!AO104*'Prevalence Rates'!AO104","v":17.366199999999999},{"$f":"'Population 2016'!AP104*'Prevalence Rates'!AP104","v":152.09936563829788},{"$f":"'Population 2016'!AQ104*'Prevalence Rates'!AQ104","v":333.9438613829787},{"$f":"'Population 2016'!AR104*'Prevalence Rates'!AR104","v":10672.370200000001},{"$f":"'Population 2016'!AS104*'Prevalence Rates'!AS104","v":135.66285925531918},{"$f":"'Population 2016'!AT104*'Prevalence Rates'!AT104","v":4.4816000000000003},{"$f":"'Population 2016'!AU104*'Prevalence Rates'!AU104","v":4.4816000000000003},{"$f":"'Population 2016'!AV104*'Prevalence Rates'!AV104","v":234.54382085106383},{"$f":"'Population 2016'!AW104*'Prevalence Rates'!AW104","v":722.92051925531916},{"$f":"'Population 2016'!AX104*'Prevalence Rates'!AX104","v":124.08430000000001},{"$f":"'Population 2016'!AY104*'Prevalence Rates'!AY104","v":778.85821548363697},{"$f":"'Population 2016'!AZ104*'Prevalence Rates'!AZ104","v":629.49733595744692},{"$f":"'Population 2016'!BA104*'Prevalence Rates'!BA104","v":330.18843553191488},{"$f":"'Population 2016'!BB104*'Prevalence Rates'!BB104","v":511.73793234042552},{"$f":"'Population 2016'!BC104*'Prevalence Rates'!BC104","v":42.015000000000001},102]
[null,"Female 35-39",{"$f":"'Population 2016'!C105*'Prevalence Rates'!C105","v":426.93022340425529},{"$f":"'Population 2016'!D105*'Prevalence Rates'!D105","v":320.71831975426926},{"$f":"'Population 2016'!E105*'Prevalence Rates'!E105","v":140.71046010638298},{"$f":"'Population 2016'!F105*'Prevalence Rates'!F105","v":89.671560638297862},{"$f":"'Population 2016'!G105*'Prevalence Rates'!G105","v":113.01899999999999},{"$f":"'Population 2016'!H105*'Prevalence Rates'!H105","v":788.6338946808512},{"$f":"'Population 2016'!I105*'Prevalence Rates'!I105","v":140.87163031914895},{"$f":"'Population 2016'!J105*'Prevalence Rates'!J105","v":256.94400000000002},{"$f":"'Population 2016'!K105*'Prevalence Rates'!K105","v":123.321},{"$f":"'Population 2016'!L105*'Prevalence Rates'!L105","v":383.80107446808506},{"$f":"'Population 2016'!M105*'Prevalence Rates'!M105","v":383.80107446808506},{"$f":"'Population 2016'!N105*'Prevalence Rates'!N105","v":339.4028712765957},{"$f":"'Population 2016'!O105*'Prevalence Rates'!O105","v":296.91421276595742},{"$f":"'Population 2016'!P105*'Prevalence Rates'!P105","v":132.74784574468083},{"$f":"'Population 2016'!Q105*'Prevalence Rates'!Q105","v":306.73640904255325},{"$f":"'Population 2016'!R105*'Prevalence Rates'!R105","v":35.334151595744686},{"$f":"'Population 2016'!S105*'Prevalence Rates'!S105","v":1877.0600459404254},{"$f":"'Population 2016'!T105*'Prevalence Rates'!T105","v":605.75759999999991},{"$f":"'Population 2016'!U105*'Prevalence Rates'!U105","v":46.359000000000002},{"$f":"'Population 2016'!V105*'Prevalence Rates'!V105","v":295.07300425531918},{"$f":"'Population 2016'!W105*'Prevalence Rates'!W105","v":698.09749468085101},{"$f":"'Population 2016'!X105*'Prevalence Rates'!X105","v":698.09749468085101},{"$f":"'Population 2016'!Y105*'Prevalence Rates'!Y105","v":516.75602393617021},{"$f":"'Population 2016'!Z105*'Prevalence Rates'!Z105","v":1355.4490643617021},{"$f":"'Population 2016'!AA105*'Prevalence Rates'!AA105","v":1514.4446531028927},{"$f":"'Population 2016'!AB105*'Prevalence Rates'!AB105","v":707.91759574468074},{"$f":"'Population 2016'!AC105*'Prevalence Rates'!AC105","v":2215.2039893617016},{"$f":"'Population 2016'!AD105*'Prevalence Rates'!AD105","v":468.01815159574465},{"$f":"'Population 2016'!AE105*'Prevalence Rates'!AE105","v":356.35249787234045},{"$f":"'Population 2016'!AF105*'Prevalence Rates'!AF105","v":75.143999999999991},{"$f":"'Population 2016'!AG105*'Prevalence Rates'!AG105","v":190.37986123959297},{"$f":"'Population 2016'!AH105*'Prevalence Rates'!AH105","v":1881.5964765957449},{"$f":"'Population 2016'!AI105*'Prevalence Rates'!AI105","v":1656.4955202127658},{"$f":"'Population 2016'!AJ105*'Prevalence Rates'!AJ105","v":310.57499999999999},{"$f":"'Population 2016'!AK105*'Prevalence Rates'!AK105","v":162.94582500000001},{"$f":"'Population 2016'!AL105*'Prevalence Rates'!AL105","v":227.97365425531916},{"$f":"'Population 2016'!AM105*'Prevalence Rates'!AM105","v":1227.4352712765956},{"$f":"'Population 2016'!AN105*'Prevalence Rates'!AN105","v":21.512999999999998},{"$f":"'Population 2016'!AO105*'Prevalence Rates'!AO105","v":21.512999999999998},{"$f":"'Population 2016'!AP105*'Prevalence Rates'!AP105","v":125.17897021276595},{"$f":"'Population 2016'!AQ105*'Prevalence Rates'!AQ105","v":334.96714468085099},{"$f":"'Population 2016'!AR105*'Prevalence Rates'!AR105","v":10003.242},{"$f":"'Population 2016'!AS105*'Prevalence Rates'!AS105","v":140.87163031914895},{"$f":"'Population 2016'!AT105*'Prevalence Rates'!AT105","v":10.302},{"$f":"'Population 2016'!AU105*'Prevalence Rates'!AU105","v":10.302},{"$f":"'Population 2016'!AV105*'Prevalence Rates'!AV105","v":266.34215744680847},{"$f":"'Population 2016'!AW105*'Prevalence Rates'!AW105","v":682.30087978723407},{"$f":"'Population 2016'!AX105*'Prevalence Rates'!AX105","v":133.62299999999999},{"$f":"'Population 2016'!AY105*'Prevalence Rates'!AY105","v":724.02377945576313},{"$f":"'Population 2016'!AZ105*'Prevalence Rates'!AZ105","v":531.50970638297872},{"$f":"'Population 2016'!BA105*'Prevalence Rates'!BA105","v":326.07135478723399},{"$f":"'Population 2016'!BB105*'Prevalence Rates'!BB105","v":475.61200851063819},{"$f":"'Population 2016'!BC105*'Prevalence Rates'!BC105","v":46.359000000000002},103]
[null,"Female 40-44",{"$f":"'Population 2016'!C106*'Prevalence Rates'!C106","v":384.77422021276595},{"$f":"'Population 2016'!D106*'Prevalence Rates'!D106","v":297.0313754316839},{"$f":"'Population 2016'!E106*'Prevalence Rates'!E106","v":139.34212500000001},{"$f":"'Population 2016'!F106*'Prevalence Rates'!F106","v":99.177379787234031},{"$f":"'Population 2016'!G106*'Prevalence Rates'!G106","v":133.017},{"$f":"'Population 2016'!H106*'Prevalence Rates'!H106","v":862.77896170212773},{"$f":"'Population 2016'!I106*'Prevalence Rates'!I106","v":152.94634148936171},{"$f":"'Population 2016'!J106*'Prevalence Rates'!J106","v":274.21499999999997},{"$f":"'Population 2016'!K106*'Prevalence Rates'!K106","v":139.98599999999999},{"$f":"'Population 2016'!L106*'Prevalence Rates'!L106","v":431.37078510638293},{"$f":"'Population 2016'!M106*'Prevalence Rates'!M106","v":431.37078510638293},{"$f":"'Population 2016'!N106*'Prevalence Rates'!N106","v":301.99768244680848},{"$f":"'Population 2016'!O106*'Prevalence Rates'!O106","v":317.01777925531911},{"$f":"'Population 2016'!P106*'Prevalence Rates'!P106","v":126.31715425531912},{"$f":"'Population 2016'!Q106*'Prevalence Rates'!Q106","v":297.86527819148938},{"$f":"'Population 2016'!R106*'Prevalence Rates'!R106","v":34.94009042553192},{"$f":"'Population 2016'!S106*'Prevalence Rates'!S106","v":1866.9242667401495},{"$f":"'Population 2016'!T106*'Prevalence Rates'!T106","v":533.95046808510631},{"$f":"'Population 2016'!U106*'Prevalence Rates'!U106","v":60.6},{"$f":"'Population 2016'!V106*'Prevalence Rates'!V106","v":308.75055319148942},{"$f":"'Population 2016'!W106*'Prevalence Rates'!W106","v":746.51141489361692},{"$f":"'Population 2016'!X106*'Prevalence Rates'!X106","v":746.51141489361692},{"$f":"'Population 2016'!Y106*'Prevalence Rates'!Y106","v":544.65861702127654},{"$f":"'Population 2016'!Z106*'Prevalence Rates'!Z106","v":1188.9130117021275},{"$f":"'Population 2016'!AA106*'Prevalence Rates'!AA106","v":1512.1483003309399},{"$f":"'Population 2016'!AB106*'Prevalence Rates'!AB106","v":669.12392553191489},{"$f":"'Population 2016'!AC106*'Prevalence Rates'!AC106","v":2128.558882978723},{"$f":"'Population 2016'!AD106*'Prevalence Rates'!AD106","v":520.14817340425532},{"$f":"'Population 2016'!AE106*'Prevalence Rates'!AE106","v":389.08455638297875},{"$f":"'Population 2016'!AF106*'Prevalence Rates'!AF106","v":88.173000000000002},{"$f":"'Population 2016'!AG106*'Prevalence Rates'!AG106","v":207.86682932469935},{"$f":"'Population 2016'!AH106*'Prevalence Rates'!AH106","v":1965.678331914894},{"$f":"'Population 2016'!AI106*'Prevalence Rates'!AI106","v":1590.1145058510638},{"$f":"'Population 2016'!AJ106*'Prevalence Rates'!AJ106","v":294.21299999999997},{"$f":"'Population 2016'!AK106*'Prevalence Rates'!AK106","v":169.62697500000002},{"$f":"'Population 2016'!AL106*'Prevalence Rates'!AL106","v":271.19982765957445},{"$f":"'Population 2016'!AM106*'Prevalence Rates'!AM106","v":1277.8663978723403},{"$f":"'Population 2016'!AN106*'Prevalence Rates'!AN106","v":31.814999999999998},{"$f":"'Population 2016'!AO106*'Prevalence Rates'!AO106","v":31.814999999999998},{"$f":"'Population 2016'!AP106*'Prevalence Rates'!AP106","v":109.05743617021275},{"$f":"'Population 2016'!AQ106*'Prevalence Rates'!AQ106","v":389.62705531914889},{"$f":"'Population 2016'!AR106*'Prevalence Rates'!AR106","v":10132.925999999999},{"$f":"'Population 2016'!AS106*'Prevalence Rates'!AS106","v":152.94634148936171},{"$f":"'Population 2016'!AT106*'Prevalence Rates'!AT106","v":4.242},{"$f":"'Population 2016'!AU106*'Prevalence Rates'!AU106","v":4.242},{"$f":"'Population 2016'!AV106*'Prevalence Rates'!AV106","v":276.12486702127654},{"$f":"'Population 2016'!AW106*'Prevalence Rates'!AW106","v":715.82847446808523},{"$f":"'Population 2016'!AX106*'Prevalence Rates'!AX106","v":134.22899999999998},{"$f":"'Population 2016'!AY106*'Prevalence Rates'!AY106","v":733.00713343612574},{"$f":"'Population 2016'!AZ106*'Prevalence Rates'!AZ106","v":503.52120957446806},{"$f":"'Population 2016'!BA106*'Prevalence Rates'!BA106","v":337.78891276595743},{"$f":"'Population 2016'!BB106*'Prevalence Rates'!BB106","v":524.86949361702113},{"$f":"'Population 2016'!BC106*'Prevalence Rates'!BC106","v":60.6},104]
[null,"Female 45-49",{"$f":"'Population 2016'!C107*'Prevalence Rates'!C107","v":415.23667574468089},{"$f":"'Population 2016'!D107*'Prevalence Rates'!D107","v":327.64095620653728},{"$f":"'Population 2016'!E107*'Prevalence Rates'!E107","v":161.5062936170213},{"$f":"'Population 2016'!F107*'Prevalence Rates'!F107","v":108.76372127659575},{"$f":"'Population 2016'!G107*'Prevalence Rates'!G107","v":162.65600000000001},{"$f":"'Population 2016'!H107*'Prevalence Rates'!H107","v":1134.5467306382982},{"$f":"'Population 2016'!I107*'Prevalence Rates'!I107","v":212.22881021276598},{"$f":"'Population 2016'!J107*'Prevalence Rates'!J107","v":325.31200000000001},{"$f":"'Population 2016'!K107*'Prevalence Rates'!K107","v":170.476},{"$f":"'Population 2016'!L107*'Prevalence Rates'!L107","v":582.60264510638297},{"$f":"'Population 2016'!M107*'Prevalence Rates'!M107","v":582.60264510638297},{"$f":"'Population 2016'!N107*'Prevalence Rates'!N107","v":324.77242000000001},{"$f":"'Population 2016'!O107*'Prevalence Rates'!O107","v":424.01570723404262},{"$f":"'Population 2016'!P107*'Prevalence Rates'!P107","v":178.77019148936168},{"$f":"'Population 2016'!Q107*'Prevalence Rates'!Q107","v":385.3426459574469},{"$f":"'Population 2016'!R107*'Prevalence Rates'!R107","v":52.206819148936169},{"$f":"'Population 2016'!S107*'Prevalence Rates'!S107","v":2163.516909593277},{"$f":"'Population 2016'!T107*'Prevalence Rates'!T107","v":515.58091914893612},{"$f":"'Population 2016'!U107*'Prevalence Rates'!U107","v":72.882400000000004},{"$f":"'Population 2016'!V107*'Prevalence Rates'!V107","v":365.04159319148943},{"$f":"'Population 2016'!W107*'Prevalence Rates'!W107","v":881.90133191489372},{"$f":"'Population 2016'!X107*'Prevalence Rates'!X107","v":881.90133191489372},{"$f":"'Population 2016'!Y107*'Prevalence Rates'!Y107","v":644.77231063829788},{"$f":"'Population 2016'!Z107*'Prevalence Rates'!Z107","v":1383.3488489361703},{"$f":"'Population 2016'!AA107*'Prevalence Rates'!AA107","v":1877.666105561427},{"$f":"'Population 2016'!AB107*'Prevalence Rates'!AB107","v":749.04285957446814},{"$f":"'Population 2016'!AC107*'Prevalence Rates'!AC107","v":2614.5920425531913},{"$f":"'Population 2016'!AD107*'Prevalence Rates'!AD107","v":634.49450127659577},{"$f":"'Population 2016'!AE107*'Prevalence Rates'!AE107","v":474.24539744680851},{"$f":"'Population 2016'!AF107*'Prevalence Rates'!AF107","v":125.12},{"$f":"'Population 2016'!AG107*'Prevalence Rates'!AG107","v":253.3636595744681},{"$f":"'Population 2016'!AH107*'Prevalence Rates'!AH107","v":2470.5556289361707},{"$f":"'Population 2016'!AI107*'Prevalence Rates'!AI107","v":1796.7982387234042},{"$f":"'Population 2016'!AJ107*'Prevalence Rates'!AJ107","v":380.3648},{"$f":"'Population 2016'!AK107*'Prevalence Rates'!AK107","v":202.31904000000003},{"$f":"'Population 2016'!AL107*'Prevalence Rates'!AL107","v":348.43590638297871},{"$f":"'Population 2016'!AM107*'Prevalence Rates'!AM107","v":1552.401109787234},{"$f":"'Population 2016'!AN107*'Prevalence Rates'!AN107","v":29.716000000000001},{"$f":"'Population 2016'!AO107*'Prevalence Rates'!AO107","v":29.716000000000001},{"$f":"'Population 2016'!AP107*'Prevalence Rates'!AP107","v":142.68887787234044},{"$f":"'Population 2016'!AQ107*'Prevalence Rates'!AQ107","v":458.29492680851064},{"$f":"'Population 2016'!AR107*'Prevalence Rates'!AR107","v":12252.376},{"$f":"'Population 2016'!AS107*'Prevalence Rates'!AS107","v":212.22881021276598},{"$f":"'Population 2016'!AT107*'Prevalence Rates'!AT107","v":7.1944000000000008},{"$f":"'Population 2016'!AU107*'Prevalence Rates'!AU107","v":7.1944000000000008},{"$f":"'Population 2016'!AV107*'Prevalence Rates'!AV107","v":364.54543914893611},{"$f":"'Population 2016'!AW107*'Prevalence Rates'!AW107","v":936.59441191489384},{"$f":"'Population 2016'!AX107*'Prevalence Rates'!AX107","v":154.83600000000001},{"$f":"'Population 2016'!AY107*'Prevalence Rates'!AY107","v":852.84254404827368},{"$f":"'Population 2016'!AZ107*'Prevalence Rates'!AZ107","v":574.22792425531918},{"$f":"'Population 2016'!BA107*'Prevalence Rates'!BA107","v":430.4700357446809},{"$f":"'Population 2016'!BB107*'Prevalence Rates'!BB107","v":619.30007489361697},{"$f":"'Population 2016'!BC107*'Prevalence Rates'!BC107","v":72.882400000000004},105]
[null,"Female 50-54",{"$f":"'Population 2016'!C108*'Prevalence Rates'!C108","v":432.97709446808517},{"$f":"'Population 2016'!D108*'Prevalence Rates'!D108","v":344.29303777197941},{"$f":"'Population 2016'!E108*'Prevalence Rates'!E108","v":172.57159361702131},{"$f":"'Population 2016'!F108*'Prevalence Rates'!F108","v":101.40377021276595},{"$f":"'Population 2016'!G108*'Prevalence Rates'!G108","v":180.48560000000001},{"$f":"'Population 2016'!H108*'Prevalence Rates'!H108","v":1172.1857217021281},{"$f":"'Population 2016'!I108*'Prevalence Rates'!I108","v":227.89027361702131},{"$f":"'Population 2016'!J108*'Prevalence Rates'!J108","v":340.952},{"$f":"'Population 2016'!K108*'Prevalence Rates'!K108","v":175.79360000000003},{"$f":"'Population 2016'!L108*'Prevalence Rates'!L108","v":630.59481702127653},{"$f":"'Population 2016'!M108*'Prevalence Rates'!M108","v":630.59481702127653},{"$f":"'Population 2016'!N108*'Prevalence Rates'!N108","v":387.36935702127658},{"$f":"'Population 2016'!O108*'Prevalence Rates'!O108","v":400.38832595744685},{"$f":"'Population 2016'!P108*'Prevalence Rates'!P108","v":175.45085106382976},{"$f":"'Population 2016'!Q108*'Prevalence Rates'!Q108","v":391.68283574468097},{"$f":"'Population 2016'!R108*'Prevalence Rates'!R108","v":49.223572340425534},{"$f":"'Population 2016'!S108*'Prevalence Rates'!S108","v":2181.9951873763848},{"$f":"'Population 2016'!T108*'Prevalence Rates'!T108","v":489.44548085106379},{"$f":"'Population 2016'!U108*'Prevalence Rates'!U108","v":84.456000000000003},{"$f":"'Population 2016'!V108*'Prevalence Rates'!V108","v":363.79571744680857},{"$f":"'Population 2016'!W108*'Prevalence Rates'!W108","v":950.26077702127668},{"$f":"'Population 2016'!X108*'Prevalence Rates'!X108","v":950.26077702127668},{"$f":"'Population 2016'!Y108*'Prevalence Rates'!Y108","v":654.9116893617022},{"$f":"'Population 2016'!Z108*'Prevalence Rates'!Z108","v":1417.5056106382981},{"$f":"'Population 2016'!AA108*'Prevalence Rates'!AA108","v":1947.5995208699153},{"$f":"'Population 2016'!AB108*'Prevalence Rates'!AB108","v":775.55765106382978},{"$f":"'Population 2016'!AC108*'Prevalence Rates'!AC108","v":2699.4972765957446},{"$f":"'Population 2016'!AD108*'Prevalence Rates'!AD108","v":693.06779872340428},{"$f":"'Population 2016'!AE108*'Prevalence Rates'!AE108","v":515.38192510638294},{"$f":"'Population 2016'!AF108*'Prevalence Rates'!AF108","v":150.14400000000001},{"$f":"'Population 2016'!AG108*'Prevalence Rates'!AG108","v":275.34068085106384},{"$f":"'Population 2016'!AH108*'Prevalence Rates'!AH108","v":2575.5925378723409},{"$f":"'Population 2016'!AI108*'Prevalence Rates'!AI108","v":1746.1842038297871},{"$f":"'Population 2016'!AJ108*'Prevalence Rates'!AJ108","v":377.54960000000005},{"$f":"'Population 2016'!AK108*'Prevalence Rates'!AK108","v":196.57134000000005},{"$f":"'Population 2016'!AL108*'Prevalence Rates'!AL108","v":363.41253744680853},{"$f":"'Population 2016'!AM108*'Prevalence Rates'!AM108","v":1601.8817438297872},{"$f":"'Population 2016'!AN108*'Prevalence Rates'!AN108","v":38.1616},{"$f":"'Population 2016'!AO108*'Prevalence Rates'!AO108","v":38.1616},{"$f":"'Population 2016'!AP108*'Prevalence Rates'!AP108","v":137.54914127659575},{"$f":"'Population 2016'!AQ108*'Prevalence Rates'!AQ108","v":475.65732340425529},{"$f":"'Population 2016'!AR108*'Prevalence Rates'!AR108","v":12674.030400000001},{"$f":"'Population 2016'!AS108*'Prevalence Rates'!AS108","v":227.89027361702131},{"$f":"'Population 2016'!AT108*'Prevalence Rates'!AT108","v":6.2560000000000002},{"$f":"'Population 2016'!AU108*'Prevalence Rates'!AU108","v":6.2560000000000002},{"$f":"'Population 2016'!AV108*'Prevalence Rates'!AV108","v":411.45745276595738},{"$f":"'Population 2016'!AW108*'Prevalence Rates'!AW108","v":987.77281787234062},{"$f":"'Population 2016'!AX108*'Prevalence Rates'!AX108","v":165.1584},{"$f":"'Population 2016'!AY108*'Prevalence Rates'!AY108","v":906.34584041265714},{"$f":"'Population 2016'!AZ108*'Prevalence Rates'!AZ108","v":598.91383404255328},{"$f":"'Population 2016'!BA108*'Prevalence Rates'!BA108","v":455.91448553191492},{"$f":"'Population 2016'!BB108*'Prevalence Rates'!BB108","v":593.36962042553193},{"$f":"'Population 2016'!BC108*'Prevalence Rates'!BC108","v":84.456000000000003},106]
[null,"Female 55-59",{"$f":"'Population 2016'!C109*'Prevalence Rates'!C109","v":360.91054255319153},{"$f":"'Population 2016'!D109*'Prevalence Rates'!D109","v":287.22835974086934},{"$f":"'Population 2016'!E109*'Prevalence Rates'!E109","v":144.22613297872343},{"$f":"'Population 2016'!F109*'Prevalence Rates'!F109","v":102.79827074468086},{"$f":"'Population 2016'!G109*'Prevalence Rates'!G109","v":171.99100000000001},{"$f":"'Population 2016'!H109*'Prevalence Rates'!H109","v":1032.2146872340429},{"$f":"'Population 2016'!I109*'Prevalence Rates'!I109","v":207.47719627659578},{"$f":"'Population 2016'!J109*'Prevalence Rates'!J109","v":274.24800000000005},{"$f":"'Population 2016'!K109*'Prevalence Rates'!K109","v":138.00300000000001},{"$f":"'Population 2016'!L109*'Prevalence Rates'!L109","v":551.30007234042557},{"$f":"'Population 2016'!M109*'Prevalence Rates'!M109","v":551.30007234042557},{"$f":"'Population 2016'!N109*'Prevalence Rates'!N109","v":342.66973404255322},{"$f":"'Population 2016'!O109*'Prevalence Rates'!O109","v":355.30489148936175},{"$f":"'Population 2016'!P109*'Prevalence Rates'!P109","v":155.46143617021278},{"$f":"'Population 2016'!Q109*'Prevalence Rates'!Q109","v":347.42334734042566},{"$f":"'Population 2016'!R109*'Prevalence Rates'!R109","v":36.581361702127666},{"$f":"'Population 2016'!S109*'Prevalence Rates'!S109","v":1893.1039146808664},{"$f":"'Population 2016'!T109*'Prevalence Rates'!T109","v":416.40100212765958},{"$f":"'Population 2016'!U109*'Prevalence Rates'!U109","v":67.683000000000007},{"$f":"'Population 2016'!V109*'Prevalence Rates'!V109","v":297.58825531914897},{"$f":"'Population 2016'!W109*'Prevalence Rates'!W109","v":803.42470212765966},{"$f":"'Population 2016'!X109*'Prevalence Rates'!X109","v":803.42470212765966},{"$f":"'Population 2016'!Y109*'Prevalence Rates'!Y109","v":532.29528191489374},{"$f":"'Population 2016'!Z109*'Prevalence Rates'!Z109","v":1188.4240526595747},{"$f":"'Population 2016'!AA109*'Prevalence Rates'!AA109","v":1655.4316188343735},{"$f":"'Population 2016'!AB109*'Prevalence Rates'!AB109","v":660.49369148936182},{"$f":"'Population 2016'!AC109*'Prevalence Rates'!AC109","v":2270.7188297872344},{"$f":"'Population 2016'!AD109*'Prevalence Rates'!AD109","v":629.14471755319153},{"$f":"'Population 2016'!AE109*'Prevalence Rates'!AE109","v":460.18954042553196},{"$f":"'Population 2016'!AF109*'Prevalence Rates'!AF109","v":128.334},{"$f":"'Population 2016'!AG109*'Prevalence Rates'!AG109","v":245.85437557816843},{"$f":"'Population 2016'!AH109*'Prevalence Rates'!AH109","v":2214.0750723404262},{"$f":"'Population 2016'!AI109*'Prevalence Rates'!AI109","v":1524.8507047872342},{"$f":"'Population 2016'!AJ109*'Prevalence Rates'!AJ109","v":346.61900000000003},{"$f":"'Population 2016'!AK109*'Prevalence Rates'!AK109","v":182.69282500000003},{"$f":"'Population 2016'!AL109*'Prevalence Rates'!AL109","v":303.47630851063838},{"$f":"'Population 2016'!AM109*'Prevalence Rates'!AM109","v":1357.8109372340425},{"$f":"'Population 2016'!AN109*'Prevalence Rates'!AN109","v":31.937000000000005},{"$f":"'Population 2016'!AO109*'Prevalence Rates'!AO109","v":31.937000000000005},{"$f":"'Population 2016'!AP109*'Prevalence Rates'!AP109","v":116.69176968085108},{"$f":"'Population 2016'!AQ109*'Prevalence Rates'!AQ109","v":392.69262659574468},{"$f":"'Population 2016'!AR109*'Prevalence Rates'!AR109","v":10921.575000000001},{"$f":"'Population 2016'!AS109*'Prevalence Rates'!AS109","v":207.47719627659578},{"$f":"'Population 2016'!AT109*'Prevalence Rates'!AT109","v":4.1020000000000003},{"$f":"'Population 2016'!AU109*'Prevalence Rates'!AU109","v":4.1020000000000003},{"$f":"'Population 2016'!AV109*'Prevalence Rates'!AV109","v":377.17328936170207},{"$f":"'Population 2016'!AW109*'Prevalence Rates'!AW109","v":862.34513191489373},{"$f":"'Population 2016'!AX109*'Prevalence Rates'!AX109","v":136.245},{"$f":"'Population 2016'!AY109*'Prevalence Rates'!AY109","v":791.84194433912137},{"$f":"'Population 2016'!AZ109*'Prevalence Rates'!AZ109","v":546.55097872340434},{"$f":"'Population 2016'!BA109*'Prevalence Rates'!BA109","v":394.62580319148941},{"$f":"'Population 2016'!BB109*'Prevalence Rates'!BB109","v":510.38605106382983},{"$f":"'Population 2016'!BC109*'Prevalence Rates'!BC109","v":67.683000000000007},107]
[null,"Female 60-64",{"$f":"'Population 2016'!C110*'Prevalence Rates'!C110","v":322.48265744680856},{"$f":"'Population 2016'!D110*'Prevalence Rates'!D110","v":260.24800500982877},{"$f":"'Population 2016'!E110*'Prevalence Rates'!E110","v":134.52284574468089},{"$f":"'Population 2016'!F110*'Prevalence Rates'!F110","v":86.252498404255334},{"$f":"'Population 2016'!G110*'Prevalence Rates'!G110","v":154.11800000000002},{"$f":"'Population 2016'!H110*'Prevalence Rates'!H110","v":908.37262659574503},{"$f":"'Population 2016'!I110*'Prevalence Rates'!I110","v":188.31624308510644},{"$f":"'Population 2016'!J110*'Prevalence Rates'!J110","v":233.22800000000004},{"$f":"'Population 2016'!K110*'Prevalence Rates'!K110","v":122.47400000000002},{"$f":"'Population 2016'!L110*'Prevalence Rates'!L110","v":542.23951489361707},{"$f":"'Population 2016'!M110*'Prevalence Rates'!M110","v":542.23951489361707},{"$f":"'Population 2016'!N110*'Prevalence Rates'!N110","v":295.07671542553197},{"$f":"'Population 2016'!O110*'Prevalence Rates'!O110","v":311.04131914893622},{"$f":"'Population 2016'!P110*'Prevalence Rates'!P110","v":117.26234042553192},{"$f":"'Population 2016'!Q110*'Prevalence Rates'!Q110","v":291.00417127659586},{"$f":"'Population 2016'!R110*'Prevalence Rates'!R110","v":31.881672872340431},{"$f":"'Population 2016'!S110*'Prevalence Rates'!S110","v":1627.0099958515225},{"$f":"'Population 2016'!T110*'Prevalence Rates'!T110","v":341.84497021276593},{"$f":"'Population 2016'!U110*'Prevalence Rates'!U110","v":72.664000000000016},{"$f":"'Population 2016'!V110*'Prevalence Rates'!V110","v":277.36003404255325},{"$f":"'Population 2016'!W110*'Prevalence Rates'!W110","v":732.44545212765968},{"$f":"'Population 2016'!X110*'Prevalence Rates'!X110","v":732.44545212765968},{"$f":"'Population 2016'!Y110*'Prevalence Rates'!Y110","v":479.62697340425541},{"$f":"'Population 2016'!Z110*'Prevalence Rates'!Z110","v":934.95520744680869},{"$f":"'Population 2016'!AA110*'Prevalence Rates'!AA110","v":1406.2348180261588},{"$f":"'Population 2016'!AB110*'Prevalence Rates'!AB110","v":605.38787234042559},{"$f":"'Population 2016'!AC110*'Prevalence Rates'!AC110","v":1810.8802659574469},{"$f":"'Population 2016'!AD110*'Prevalence Rates'!AD110","v":568.43044202127658},{"$f":"'Population 2016'!AE110*'Prevalence Rates'!AE110","v":416.9779627659575},{"$f":"'Population 2016'!AF110*'Prevalence Rates'!AF110","v":93.174000000000007},{"$f":"'Population 2016'!AG110*'Prevalence Rates'!AG110","v":222.76876734505095},{"$f":"'Population 2016'!AH110*'Prevalence Rates'!AH110","v":2003.9753702127664},{"$f":"'Population 2016'!AI110*'Prevalence Rates'!AI110","v":1264.6272744680853},{"$f":"'Population 2016'!AJ110*'Prevalence Rates'!AJ110","v":283.91700000000003},{"$f":"'Population 2016'!AK110*'Prevalence Rates'!AK110","v":175.15540000000001},{"$f":"'Population 2016'!AL110*'Prevalence Rates'!AL110","v":264.25342712765962},{"$f":"'Population 2016'!AM110*'Prevalence Rates'!AM110","v":1232.8713734042553},{"$f":"'Population 2016'!AN110*'Prevalence Rates'!AN110","v":30.472000000000005},{"$f":"'Population 2016'!AO110*'Prevalence Rates'!AO110","v":30.472000000000005},{"$f":"'Population 2016'!AP110*'Prevalence Rates'!AP110","v":114.16994361702129},{"$f":"'Population 2016'!AQ110*'Prevalence Rates'!AQ110","v":318.82982021276598},{"$f":"'Population 2016'!AR110*'Prevalence Rates'!AR110","v":9564.6920000000009},{"$f":"'Population 2016'!AS110*'Prevalence Rates'!AS110","v":188.31624308510644},{"$f":"'Population 2016'!AT110*'Prevalence Rates'!AT110","v":8.7900000000000009},{"$f":"'Population 2016'!AU110*'Prevalence Rates'!AU110","v":8.7900000000000009},{"$f":"'Population 2016'!AV110*'Prevalence Rates'!AV110","v":336.58749042553188},{"$f":"'Population 2016'!AW110*'Prevalence Rates'!AW110","v":777.82865851063843},{"$f":"'Population 2016'!AX110*'Prevalence Rates'!AX110","v":110.75400000000002},{"$f":"'Population 2016'!AY110*'Prevalence Rates'!AY110","v":711.82247359261521},{"$f":"'Population 2016'!AZ110*'Prevalence Rates'!AZ110","v":482.43634468085116},{"$f":"'Population 2016'!BA110*'Prevalence Rates'!BA110","v":337.97160372340431},{"$f":"'Population 2016'!BB110*'Prevalence Rates'!BB110","v":429.31731489361704},{"$f":"'Population 2016'!BC110*'Prevalence Rates'!BC110","v":72.664000000000016},108]
[null,"Female 65-69",{"$f":"'Population 2016'!C111*'Prevalence Rates'!C111","v":219.70375000000001},{"$f":"'Population 2016'!D111*'Prevalence Rates'!D111","v":186.80691925961116},{"$f":"'Population 2016'!E111*'Prevalence Rates'!E111","v":106.56229521276599},{"$f":"'Population 2016'!F111*'Prevalence Rates'!F111","v":66.305964361702138},{"$f":"'Population 2016'!G111*'Prevalence Rates'!G111","v":121.74700000000001},{"$f":"'Population 2016'!H111*'Prevalence Rates'!H111","v":673.3544234042555},{"$f":"'Population 2016'!I111*'Prevalence Rates'!I111","v":147.47149148936171},{"$f":"'Population 2016'!J111*'Prevalence Rates'!J111","v":174.07500000000002},{"$f":"'Population 2016'!K111*'Prevalence Rates'!K111","v":96.849000000000004},{"$f":"'Population 2016'!L111*'Prevalence Rates'!L111","v":386.22023617021273},{"$f":"'Population 2016'!M111*'Prevalence Rates'!M111","v":386.22023617021273},{"$f":"'Population 2016'!N111*'Prevalence Rates'!N111","v":219.07602500000002},{"$f":"'Population 2016'!O111*'Prevalence Rates'!O111","v":225.49985265957449},{"$f":"'Population 2016'!P111*'Prevalence Rates'!P111","v":83.645226063829782},{"$f":"'Population 2016'!Q111*'Prevalence Rates'!Q111","v":203.86034361702133},{"$f":"'Population 2016'!R111*'Prevalence Rates'!R111","v":22.593273936170217},{"$f":"'Population 2016'!S111*'Prevalence Rates'!S111","v":1205.4588037475889},{"$f":"'Population 2016'!T111*'Prevalence Rates'!T111","v":241.5272106382979},{"$f":"'Population 2016'!U111*'Prevalence Rates'!U111","v":49.796000000000006},{"$f":"'Population 2016'!V111*'Prevalence Rates'!V111","v":199.03674893617023},{"$f":"'Population 2016'!W111*'Prevalence Rates'!W111","v":543.33891702127664},{"$f":"'Population 2016'!X111*'Prevalence Rates'!X111","v":543.33891702127664},{"$f":"'Population 2016'!Y111*'Prevalence Rates'!Y111","v":349.12755851063832},{"$f":"'Population 2016'!Z111*'Prevalence Rates'!Z111","v":585.99739308510652},{"$f":"'Population 2016'!AA111*'Prevalence Rates'!AA111","v":973.32516402048304},{"$f":"'Population 2016'!AB111*'Prevalence Rates'!AB111","v":428.32326595744689},{"$f":"'Population 2016'!AC111*'Prevalence Rates'!AC111","v":1254.5857978723404},{"$f":"'Population 2016'!AD111*'Prevalence Rates'!AD111","v":424.59024946808518},{"$f":"'Population 2016'!AE111*'Prevalence Rates'!AE111","v":305.23619148936172},{"$f":"'Population 2016'!AF111*'Prevalence Rates'!AF111","v":75.960000000000008},{"$f":"'Population 2016'!AG111*'Prevalence Rates'!AG111","v":163.07118408880669},{"$f":"'Population 2016'!AH111*'Prevalence Rates'!AH111","v":1385.8138808510641},{"$f":"'Population 2016'!AI111*'Prevalence Rates'!AI111","v":929.30965691489371},{"$f":"'Population 2016'!AJ111*'Prevalence Rates'!AJ111","v":219.65100000000001},{"$f":"'Population 2016'!AK111*'Prevalence Rates'!AK111","v":117.08917500000003},{"$f":"'Population 2016'!AL111*'Prevalence Rates'!AL111","v":201.22576170212767},{"$f":"'Population 2016'!AM111*'Prevalence Rates'!AM111","v":852.13651914893615},{"$f":"'Population 2016'!AN111*'Prevalence Rates'!AN111","v":25.109000000000002},{"$f":"'Population 2016'!AO111*'Prevalence Rates'!AO111","v":25.109000000000002},{"$f":"'Population 2016'!AP111*'Prevalence Rates'!AP111","v":75.944287234042562},{"$f":"'Population 2016'!AQ111*'Prevalence Rates'!AQ111","v":257.66062978723403},{"$f":"'Population 2016'!AR111*'Prevalence Rates'!AR111","v":6874.380000000001},{"$f":"'Population 2016'!AS111*'Prevalence Rates'!AS111","v":147.47149148936171},{"$f":"'Population 2016'!AT111*'Prevalence Rates'!AT111","v":5.2750000000000004},{"$f":"'Population 2016'!AU111*'Prevalence Rates'!AU111","v":5.2750000000000004},{"$f":"'Population 2016'!AV111*'Prevalence Rates'!AV111","v":248.98157127659573},{"$f":"'Population 2016'!AW111*'Prevalence Rates'!AW111","v":538.19208829787249},{"$f":"'Population 2016'!AX111*'Prevalence Rates'!AX111","v":77.226000000000013},{"$f":"'Population 2016'!AY111*'Prevalence Rates'!AY111","v":524.2787098498776},{"$f":"'Population 2016'!AZ111*'Prevalence Rates'!AZ111","v":351.96146808510645},{"$f":"'Population 2016'!BA111*'Prevalence Rates'!BA111","v":238.60239148936174},{"$f":"'Population 2016'!BB111*'Prevalence Rates'!BB111","v":326.88568936170213},{"$f":"'Population 2016'!BC111*'Prevalence Rates'!BC111","v":49.796000000000006},109]
[null,"Female 70-74",{"$f":"'Population 2016'!C112*'Prevalence Rates'!C112","v":151.4553510638298},{"$f":"'Population 2016'!D112*'Prevalence Rates'!D112","v":134.89362046211357},{"$f":"'Population 2016'!E112*'Prevalence Rates'!E112","v":83.058242021276612},{"$f":"'Population 2016'!F112*'Prevalence Rates'!F112","v":53.508140957446813},{"$f":"'Population 2016'!G112*'Prevalence Rates'!G112","v":100.43600000000001},{"$f":"'Population 2016'!H112*'Prevalence Rates'!H112","v":542.35327765957459},{"$f":"'Population 2016'!I112*'Prevalence Rates'!I112","v":117.93407287234044},{"$f":"'Population 2016'!J112*'Prevalence Rates'!J112","v":141.792},{"$f":"'Population 2016'!K112*'Prevalence Rates'!K112","v":74.483000000000004},{"$f":"'Population 2016'!L112*'Prevalence Rates'!L112","v":314.19605957446805},{"$f":"'Population 2016'!M112*'Prevalence Rates'!M112","v":314.19605957446805},{"$f":"'Population 2016'!N112*'Prevalence Rates'!N112","v":176.02854574468086},{"$f":"'Population 2016'!O112*'Prevalence Rates'!O112","v":183.93206702127659},{"$f":"'Population 2016'!P112*'Prevalence Rates'!P112","v":74.848882978723395},{"$f":"'Population 2016'!Q112*'Prevalence Rates'!Q112","v":164.89403085106389},{"$f":"'Population 2016'!R112*'Prevalence Rates'!R112","v":13.354728723404257},{"$f":"'Population 2016'!S112*'Prevalence Rates'!S112","v":939.19762783573208},{"$f":"'Population 2016'!T112*'Prevalence Rates'!T112","v":182.06696170212768},{"$f":"'Population 2016'!U112*'Prevalence Rates'!U112","v":36.503},{"$f":"'Population 2016'!V112*'Prevalence Rates'!V112","v":162.47897872340428},{"$f":"'Population 2016'!W112*'Prevalence Rates'!W112","v":418.05340212765958},{"$f":"'Population 2016'!X112*'Prevalence Rates'!X112","v":418.05340212765958},{"$f":"'Population 2016'!Y112*'Prevalence Rates'!Y112","v":284.77368085106389},{"$f":"'Population 2016'!Z112*'Prevalence Rates'!Z112","v":447.49822765957458},{"$f":"'Population 2016'!AA112*'Prevalence Rates'!AA112","v":782.14263819243627},{"$f":"'Population 2016'!AB112*'Prevalence Rates'!AB112","v":314.30245744680855},{"$f":"'Population 2016'!AC112*'Prevalence Rates'!AC112","v":972.69877659574468},{"$f":"'Population 2016'!AD112*'Prevalence Rates'!AD112","v":321.30069893617025},{"$f":"'Population 2016'!AE112*'Prevalence Rates'!AE112","v":223.17918936170216},{"$f":"'Population 2016'!AF112*'Prevalence Rates'!AF112","v":57.814000000000007},{"$f":"'Population 2016'!AG112*'Prevalence Rates'!AG112","v":119.23256706753008},{"$f":"'Population 2016'!AH112*'Prevalence Rates'!AH112","v":1150.6216085106387},{"$f":"'Population 2016'!AI112*'Prevalence Rates'!AI112","v":725.99319946808521},{"$f":"'Population 2016'!AJ112*'Prevalence Rates'!AJ112","v":159.51600000000002},{"$f":"'Population 2016'!AK112*'Prevalence Rates'!AK112","v":91.500150000000019},{"$f":"'Population 2016'!AL112*'Prevalence Rates'!AL112","v":154.01193031914895},{"$f":"'Population 2016'!AM112*'Prevalence Rates'!AM112","v":721.52976382978727},{"$f":"'Population 2016'!AN112*'Prevalence Rates'!AN112","v":21.733000000000001},{"$f":"'Population 2016'!AO112*'Prevalence Rates'!AO112","v":21.733000000000001},{"$f":"'Population 2016'!AP112*'Prevalence Rates'!AP112","v":60.92052606382979},{"$f":"'Population 2016'!AQ112*'Prevalence Rates'!AQ112","v":208.61727127659574},{"$f":"'Population 2016'!AR112*'Prevalence Rates'!AR112","v":5436.2040000000006},{"$f":"'Population 2016'!AS112*'Prevalence Rates'!AS112","v":117.93407287234044},{"$f":"'Population 2016'!AT112*'Prevalence Rates'!AT112","v":4.0090000000000003},{"$f":"'Population 2016'!AU112*'Prevalence Rates'!AU112","v":4.0090000000000003},{"$f":"'Population 2016'!AV112*'Prevalence Rates'!AV112","v":206.78875425531913},{"$f":"'Population 2016'!AW112*'Prevalence Rates'!AW112","v":437.21871170212773},{"$f":"'Population 2016'!AX112*'Prevalence Rates'!AX112","v":67.309000000000012},{"$f":"'Population 2016'!AY112*'Prevalence Rates'!AY112","v":411.19427036871997},{"$f":"'Population 2016'!AZ112*'Prevalence Rates'!AZ112","v":283.0829872340426},{"$f":"'Population 2016'!BA112*'Prevalence Rates'!BA112","v":178.95179361702131},{"$f":"'Population 2016'!BB112*'Prevalence Rates'!BB112","v":272.3668808510638},{"$f":"'Population 2016'!BC112*'Prevalence Rates'!BC112","v":36.503},110]
[null,"Female 75-79",{"$f":"'Population 2016'!C113*'Prevalence Rates'!C113","v":68.754402127659574},{"$f":"'Population 2016'!D113*'Prevalence Rates'!D113","v":56.833511027050776},{"$f":"'Population 2016'!E113*'Prevalence Rates'!E113","v":30.795819148936172},{"$f":"'Population 2016'!F113*'Prevalence Rates'!F113","v":21.545216223404253},{"$f":"'Population 2016'!G113*'Prevalence Rates'!G113","v":42.46},{"$f":"'Population 2016'!H113*'Prevalence Rates'!H113","v":201.5959941489362},{"$f":"'Population 2016'!I113*'Prevalence Rates'!I113","v":43.58319840425532},{"$f":"'Population 2016'!J113*'Prevalence Rates'!J113","v":51.530999999999999},{"$f":"'Population 2016'!K113*'Prevalence Rates'!K113","v":23.16},{"$f":"'Population 2016'!L113*'Prevalence Rates'!L113","v":112.59270957446807},{"$f":"'Population 2016'!M113*'Prevalence Rates'!M113","v":112.59270957446807},{"$f":"'Population 2016'!N113*'Prevalence Rates'!N113","v":77.370979521276595},{"$f":"'Population 2016'!O113*'Prevalence Rates'!O113","v":71.906359042553191},{"$f":"'Population 2016'!P113*'Prevalence Rates'!P113","v":27.795079787234041},{"$f":"'Population 2016'!Q113*'Prevalence Rates'!Q113","v":66.611742819148958},{"$f":"'Population 2016'!R113*'Prevalence Rates'!R113","v":6.609736702127659},{"$f":"'Population 2016'!S113*'Prevalence Rates'!S113","v":359.89453763158684},{"$f":"'Population 2016'!T113*'Prevalence Rates'!T113","v":79.749242553191479},{"$f":"'Population 2016'!U113*'Prevalence Rates'!U113","v":16.019000000000002},{"$f":"'Population 2016'!V113*'Prevalence Rates'!V113","v":61.625310638297883},{"$f":"'Population 2016'!W113*'Prevalence Rates'!W113","v":156.97490744680852},{"$f":"'Population 2016'!X113*'Prevalence Rates'!X113","v":156.97490744680852},{"$f":"'Population 2016'!Y113*'Prevalence Rates'!Y113","v":106.35326595744681},{"$f":"'Population 2016'!Z113*'Prevalence Rates'!Z113","v":200.79776462765957},{"$f":"'Population 2016'!AA113*'Prevalence Rates'!AA113","v":317.36382653397965},{"$f":"'Population 2016'!AB113*'Prevalence Rates'!AB113","v":130.87863829787233},{"$f":"'Population 2016'!AC113*'Prevalence Rates'!AC113","v":416.9415957446808},{"$f":"'Population 2016'!AD113*'Prevalence Rates'!AD113","v":135.0211574468085},{"$f":"'Population 2016'!AE113*'Prevalence Rates'!AE113","v":93.549153191489367},{"$f":"'Population 2016'!AF113*'Prevalence Rates'!AF113","v":19.493000000000002},{"$f":"'Population 2016'!AG113*'Prevalence Rates'!AG113","v":49.978251618871418},{"$f":"'Population 2016'!AH113*'Prevalence Rates'!AH113","v":443.64622553191492},{"$f":"'Population 2016'!AI113*'Prevalence Rates'!AI113","v":282.46679255319145},{"$f":"'Population 2016'!AJ113*'Prevalence Rates'!AJ113","v":57.996500000000005},{"$f":"'Population 2016'!AK113*'Prevalence Rates'!AK113","v":36.409450000000007},{"$f":"'Population 2016'!AL113*'Prevalence Rates'!AL113","v":53.558321276595748},{"$f":"'Population 2016'!AM113*'Prevalence Rates'!AM113","v":274.76937765957445},{"$f":"'Population 2016'!AN113*'Prevalence Rates'!AN113","v":6.0795000000000003},{"$f":"'Population 2016'!AO113*'Prevalence Rates'!AO113","v":6.0795000000000003},{"$f":"'Population 2016'!AP113*'Prevalence Rates'!AP113","v":21.292725000000001},{"$f":"'Population 2016'!AQ113*'Prevalence Rates'!AQ113","v":89.830720744680846},{"$f":"'Population 2016'!AR113*'Prevalence Rates'!AR113","v":2139.1154999999999},{"$f":"'Population 2016'!AS113*'Prevalence Rates'!AS113","v":43.58319840425532},{"$f":"'Population 2016'!AT113*'Prevalence Rates'!AT113","v":0.96500000000000008},{"$f":"'Population 2016'!AU113*'Prevalence Rates'!AU113","v":0.96500000000000008},{"$f":"'Population 2016'!AV113*'Prevalence Rates'!AV113","v":77.186859574468073},{"$f":"'Population 2016'!AW113*'Prevalence Rates'!AW113","v":170.9381494680851},{"$f":"'Population 2016'!AX113*'Prevalence Rates'!AX113","v":28.371000000000002},{"$f":"'Population 2016'!AY113*'Prevalence Rates'!AY113","v":159.77781074136172},{"$f":"'Population 2016'!AZ113*'Prevalence Rates'!AZ113","v":114.75472021276597},{"$f":"'Population 2016'!BA113*'Prevalence Rates'!BA113","v":78.239736170212765},{"$f":"'Population 2016'!BB113*'Prevalence Rates'!BB113","v":95.372387234042549},{"$f":"'Population 2016'!BC113*'Prevalence Rates'!BC113","v":16.019000000000002},111]
[null,"Female 80-84",{"$f":"'Population 2016'!C114*'Prevalence Rates'!C114","v":60.972498404255319},{"$f":"'Population 2016'!D114*'Prevalence Rates'!D114","v":48.641710170545899},{"$f":"'Population 2016'!E114*'Prevalence Rates'!E114","v":24.549497340425532},{"$f":"'Population 2016'!F114*'Prevalence Rates'!F114","v":16.650869680851063},{"$f":"'Population 2016'!G114*'Prevalence Rates'!G114","v":32.231000000000002},{"$f":"'Population 2016'!H114*'Prevalence Rates'!H114","v":158.07623936170216},{"$f":"'Population 2016'!I114*'Prevalence Rates'!I114","v":34.511582446808511},{"$f":"'Population 2016'!J114*'Prevalence Rates'!J114","v":34.450499999999998},{"$f":"'Population 2016'!K114*'Prevalence Rates'!K114","v":15.5365},{"$f":"'Population 2016'!L114*'Prevalence Rates'!L114","v":93.769871276595737},{"$f":"'Population 2016'!M114*'Prevalence Rates'!M114","v":93.769871276595737},{"$f":"'Population 2016'!N114*'Prevalence Rates'!N114","v":62.95013244680851},{"$f":"'Population 2016'!O114*'Prevalence Rates'!O114","v":53.289507180851061},{"$f":"'Population 2016'!P114*'Prevalence Rates'!P114","v":25.600731382978722},{"$f":"'Population 2016'!Q114*'Prevalence Rates'!Q114","v":52.485272074468099},{"$f":"'Population 2016'!R114*'Prevalence Rates'!R114","v":6.3169002659574467},{"$f":"'Population 2016'!S114*'Prevalence Rates'!S114","v":276.85780175437532},{"$f":"'Population 2016'!T114*'Prevalence Rates'!T114","v":59.738632978723395},{"$f":"'Population 2016'!U114*'Prevalence Rates'!U114","v":14.7645},{"$f":"'Population 2016'!V114*'Prevalence Rates'!V114","v":44.39328510638299},{"$f":"'Population 2016'!W114*'Prevalence Rates'!W114","v":125.04274946808511},{"$f":"'Population 2016'!X114*'Prevalence Rates'!X114","v":125.04274946808511},{"$f":"'Population 2016'!Y114*'Prevalence Rates'!Y114","v":74.64634308510638},{"$f":"'Population 2016'!Z114*'Prevalence Rates'!Z114","v":180.8936130319149},{"$f":"'Population 2016'!AA114*'Prevalence Rates'!AA114","v":256.21511843851948},{"$f":"'Population 2016'!AB114*'Prevalence Rates'!AB114","v":108.38387234042554},{"$f":"'Population 2016'!AC114*'Prevalence Rates'!AC114","v":356.25438829787231},{"$f":"'Population 2016'!AD114*'Prevalence Rates'!AD114","v":98.880983510638288},{"$f":"'Population 2016'!AE114*'Prevalence Rates'!AE114","v":67.442412765957457},{"$f":"'Population 2016'!AF114*'Prevalence Rates'!AF114","v":15.054},{"$f":"'Population 2016'!AG114*'Prevalence Rates'!AG114","v":36.030832562442185},{"$f":"'Population 2016'!AH114*'Prevalence Rates'!AH114","v":337.65719574468091},{"$f":"'Population 2016'!AI114*'Prevalence Rates'!AI114","v":212.6395978723404},{"$f":"'Population 2016'!AJ114*'Prevalence Rates'!AJ114","v":45.644500000000001},{"$f":"'Population 2016'!AK114*'Prevalence Rates'!AK114","v":26.124962500000002},{"$f":"'Population 2016'!AL114*'Prevalence Rates'!AL114","v":45.071967553191499},{"$f":"'Population 2016'!AM114*'Prevalence Rates'!AM114","v":202.95767074468083},{"$f":"'Population 2016'!AN114*'Prevalence Rates'!AN114","v":5.79},{"$f":"'Population 2016'!AO114*'Prevalence Rates'!AO114","v":5.79},{"$f":"'Population 2016'!AP114*'Prevalence Rates'!AP114","v":17.819443617021278},{"$f":"'Population 2016'!AQ114*'Prevalence Rates'!AQ114","v":74.877532446808502},{"$f":"'Population 2016'!AR114*'Prevalence Rates'!AR114","v":1685.855},{"$f":"'Population 2016'!AS114*'Prevalence Rates'!AS114","v":34.511582446808511},{"$f":"'Population 2016'!AT114*'Prevalence Rates'!AT114","v":1.4475},{"$f":"'Population 2016'!AU114*'Prevalence Rates'!AU114","v":1.4475},{"$f":"'Population 2016'!AV114*'Prevalence Rates'!AV114","v":60.402737765957433},{"$f":"'Population 2016'!AW114*'Prevalence Rates'!AW114","v":134.34114042553193},{"$f":"'Population 2016'!AX114*'Prevalence Rates'!AX114","v":18.914000000000001},{"$f":"'Population 2016'!AY114*'Prevalence Rates'!AY114","v":127.92128442619354},{"$f":"'Population 2016'!AZ114*'Prevalence Rates'!AZ114","v":92.426878723404272},{"$f":"'Population 2016'!BA114*'Prevalence Rates'!BA114","v":55.591391489361698},{"$f":"'Population 2016'!BB114*'Prevalence Rates'!BB114","v":67.841142553191489},{"$f":"'Population 2016'!BC114*'Prevalence Rates'!BC114","v":14.7645},112]
[null,"Female 85-89",{"$f":"'Population 2016'!C115*'Prevalence Rates'!C115","v":34.291685638297871},{"$f":"'Population 2016'!D115*'Prevalence Rates'!D115","v":27.16715877270261},{"$f":"'Population 2016'!E115*'Prevalence Rates'!E115","v":13.50948670212766},{"$f":"'Population 2016'!F115*'Prevalence Rates'!F115","v":12.362009308510638},{"$f":"'Population 2016'!G115*'Prevalence Rates'!G115","v":18.045500000000001},{"$f":"'Population 2016'!H115*'Prevalence Rates'!H115","v":86.844353723404268},{"$f":"'Population 2016'!I115*'Prevalence Rates'!I115","v":21.002763031914895},{"$f":"'Population 2016'!J115*'Prevalence Rates'!J115","v":20.071999999999999},{"$f":"'Population 2016'!K115*'Prevalence Rates'!K115","v":9.843},{"$f":"'Population 2016'!L115*'Prevalence Rates'!L115","v":52.221898936170206},{"$f":"'Population 2016'!M115*'Prevalence Rates'!M115","v":52.221898936170206},{"$f":"'Population 2016'!N115*'Prevalence Rates'!N115","v":34.484634308510643},{"$f":"'Population 2016'!O115*'Prevalence Rates'!O115","v":28.467038031914893},{"$f":"'Population 2016'!P115*'Prevalence Rates'!P115","v":14.848424202127658},{"$f":"'Population 2016'!Q115*'Prevalence Rates'!Q115","v":29.556923404255325},{"$f":"'Population 2016'!R115*'Prevalence Rates'!R115","v":2.8028630319148933},{"$f":"'Population 2016'!S115*'Prevalence Rates'!S115","v":173.55982759446945},{"$f":"'Population 2016'!T115*'Prevalence Rates'!T115","v":40.754208510638293},{"$f":"'Population 2016'!U115*'Prevalence Rates'!U115","v":6.0795000000000003},{"$f":"'Population 2016'!V115*'Prevalence Rates'!V115","v":27.737795744680856},{"$f":"'Population 2016'!W115*'Prevalence Rates'!W115","v":80.476996276595742},{"$f":"'Population 2016'!X115*'Prevalence Rates'!X115","v":80.476996276595742},{"$f":"'Population 2016'!Y115*'Prevalence Rates'!Y115","v":45.569815159574468},{"$f":"'Population 2016'!Z115*'Prevalence Rates'!Z115","v":112.39991489361702},{"$f":"'Population 2016'!AA115*'Prevalence Rates'!AA115","v":149.23535204958486},{"$f":"'Population 2016'!AB115*'Prevalence Rates'!AB115","v":62.031021276595744},{"$f":"'Population 2016'!AC115*'Prevalence Rates'!AC115","v":206.96170212765955},{"$f":"'Population 2016'!AD115*'Prevalence Rates'!AD115","v":62.006998936170206},{"$f":"'Population 2016'!AE115*'Prevalence Rates'!AE115","v":44.327069680851068},{"$f":"'Population 2016'!AF115*'Prevalence Rates'!AF115","v":7.7200000000000006},{"$f":"'Population 2016'!AG115*'Prevalence Rates'!AG115","v":23.681555272895469},{"$f":"'Population 2016'!AH115*'Prevalence Rates'!AH115","v":197.2386085106383},{"$f":"'Population 2016'!AI115*'Prevalence Rates'!AI115","v":132.02252260638295},{"$f":"'Population 2016'!AJ115*'Prevalence Rates'!AJ115","v":29.625500000000002},{"$f":"'Population 2016'!AK115*'Prevalence Rates'!AK115","v":16.667962500000002},{"$f":"'Population 2016'!AL115*'Prevalence Rates'!AL115","v":23.007447872340428},{"$f":"'Population 2016'!AM115*'Prevalence Rates'!AM115","v":111.76609468085105},{"$f":"'Population 2016'!AN115*'Prevalence Rates'!AN115","v":2.7985000000000002},{"$f":"'Population 2016'!AO115*'Prevalence Rates'!AO115","v":2.7985000000000002},{"$f":"'Population 2016'!AP115*'Prevalence Rates'!AP115","v":15.403247872340428},{"$f":"'Population 2016'!AQ115*'Prevalence Rates'!AQ115","v":39.3916079787234},{"$f":"'Population 2016'!AR115*'Prevalence Rates'!AR115","v":1004.6615},{"$f":"'Population 2016'!AS115*'Prevalence Rates'!AS115","v":21.002763031914895},{"$f":"'Population 2016'!AT115*'Prevalence Rates'!AT115","v":0.48250000000000004},{"$f":"'Population 2016'!AU115*'Prevalence Rates'!AU115","v":0.48250000000000004},{"$f":"'Population 2016'!AV115*'Prevalence Rates'!AV115","v":35.879829255319144},{"$f":"'Population 2016'!AW115*'Prevalence Rates'!AW115","v":83.141833510638307},{"$f":"'Population 2016'!AX115*'Prevalence Rates'!AX115","v":10.229000000000001},{"$f":"'Population 2016'!AY115*'Prevalence Rates'!AY115","v":84.345517860367607},{"$f":"'Population 2016'!AZ115*'Prevalence Rates'!AZ115","v":62.656423404255328},{"$f":"'Population 2016'!BA115*'Prevalence Rates'!BA115","v":33.07173058510638},{"$f":"'Population 2016'!BB115*'Prevalence Rates'!BB115","v":38.439851063829785},{"$f":"'Population 2016'!BC115*'Prevalence Rates'!BC115","v":6.0795000000000003},113]
[null,"Female 90+",{"$f":"'Population 2016'!C116*'Prevalence Rates'!C116","v":16.675507978723402},{"$f":"'Population 2016'!D116*'Prevalence Rates'!D116","v":14.300940478305122},{"$f":"'Population 2016'!E116*'Prevalence Rates'!E116","v":8.280007978723404},{"$f":"'Population 2016'!F116*'Prevalence Rates'!F116","v":8.1236061170212768},{"$f":"'Population 2016'!G116*'Prevalence Rates'!G116","v":10.036},{"$f":"'Population 2016'!H116*'Prevalence Rates'!H116","v":60.498313829787243},{"$f":"'Population 2016'!I116*'Prevalence Rates'!I116","v":14.494864627659576},{"$f":"'Population 2016'!J116*'Prevalence Rates'!J116","v":12.159000000000001},{"$f":"'Population 2016'!K116*'Prevalence Rates'!K116","v":5.8864999999999998},{"$f":"'Population 2016'!L116*'Prevalence Rates'!L116","v":31.677459574468081},{"$f":"'Population 2016'!M116*'Prevalence Rates'!M116","v":31.677459574468081},{"$f":"'Population 2016'!N116*'Prevalence Rates'!N116","v":20.690780585106385},{"$f":"'Population 2016'!O116*'Prevalence Rates'!O116","v":18.124342553191489},{"$f":"'Population 2016'!P116*'Prevalence Rates'!P116","v":10.167147606382978},{"$f":"'Population 2016'!Q116*'Prevalence Rates'!Q116","v":15.973778457446812},{"$f":"'Population 2016'!R116*'Prevalence Rates'!R116","v":1.4641821808510638},{"$f":"'Population 2016'!S116*'Prevalence Rates'!S116","v":100.00123030373864},{"$f":"'Population 2016'!T116*'Prevalence Rates'!T116","v":24.628442553191487},{"$f":"'Population 2016'!U116*'Prevalence Rates'!U116","v":5.5004999999999997},{"$f":"'Population 2016'!V116*'Prevalence Rates'!V116","v":17.680442553191494},{"$f":"'Population 2016'!W116*'Prevalence Rates'!W116","v":47.947975531914892},{"$f":"'Population 2016'!X116*'Prevalence Rates'!X116","v":47.947975531914892},{"$f":"'Population 2016'!Y116*'Prevalence Rates'!Y116","v":28.578885638297873},{"$f":"'Population 2016'!Z116*'Prevalence Rates'!Z116","v":65.917866755319153},{"$f":"'Population 2016'!AA116*'Prevalence Rates'!AA116","v":77.075813459859091},{"$f":"'Population 2016'!AB116*'Prevalence Rates'!AB116","v":31.782377659574468},{"$f":"'Population 2016'!AC116*'Prevalence Rates'!AC116","v":111.34970744680849},{"$f":"'Population 2016'!AD116*'Prevalence Rates'!AD116","v":34.489100000000001},{"$f":"'Population 2016'!AE116*'Prevalence Rates'!AE116","v":24.656365957446809},{"$f":"'Population 2016'!AF116*'Prevalence Rates'!AF116","v":2.5089999999999999},{"$f":"'Population 2016'!AG116*'Prevalence Rates'!AG116","v":13.172562442183166},{"$f":"'Population 2016'!AH116*'Prevalence Rates'!AH116","v":97.212868085106393},{"$f":"'Population 2016'!AI116*'Prevalence Rates'!AI116","v":72.54659547872339},{"$f":"'Population 2016'!AJ116*'Prevalence Rates'!AJ116","v":13.413500000000001},{"$f":"'Population 2016'!AK116*'Prevalence Rates'!AK116","v":7.5656000000000008},{"$f":"'Population 2016'!AL116*'Prevalence Rates'!AL116","v":14.521094148936172},{"$f":"'Population 2016'!AM116*'Prevalence Rates'!AM116","v":47.785978723404249},{"$f":"'Population 2016'!AN116*'Prevalence Rates'!AN116","v":1.1579999999999999},{"$f":"'Population 2016'!AO116*'Prevalence Rates'!AO116","v":1.1579999999999999},{"$f":"'Population 2016'!AP116*'Prevalence Rates'!AP116","v":7.2485872340425539},{"$f":"'Population 2016'!AQ116*'Prevalence Rates'!AQ116","v":18.747280851063827},{"$f":"'Population 2016'!AR116*'Prevalence Rates'!AR116","v":568.57799999999997},{"$f":"'Population 2016'!AS116*'Prevalence Rates'!AS116","v":14.494864627659576},{"$f":"'Population 2016'!AT116*'Prevalence Rates'!AT116","v":9.6500000000000002E-2},{"$f":"'Population 2016'!AU116*'Prevalence Rates'!AU116","v":9.6500000000000002E-2},{"$f":"'Population 2016'!AV116*'Prevalence Rates'!AV116","v":28.342049999999993},{"$f":"'Population 2016'!AW116*'Prevalence Rates'!AW116","v":45.997238297872343},{"$f":"'Population 2016'!AX116*'Prevalence Rates'!AX116","v":6.2725},{"$f":"'Population 2016'!AY116*'Prevalence Rates'!AY116","v":49.73799618119525},{"$f":"'Population 2016'!AZ116*'Prevalence Rates'!AZ116","v":36.520732978723409},{"$f":"'Population 2016'!BA116*'Prevalence Rates'!BA116","v":13.125745212765956},{"$f":"'Population 2016'!BB116*'Prevalence Rates'!BB116","v":21.297755319148933},{"$f":"'Population 2016'!BC116*'Prevalence Rates'!BC116","v":5.5004999999999997},114]
[null,"Male 0-4",{"$f":"'Population 2016'!C117*'Prevalence Rates'!C117","v":0},{"$f":"'Population 2016'!D117*'Prevalence Rates'!D117","v":0},{"$f":"'Population 2016'!E117*'Prevalence Rates'!E117","v":0},{"$f":"'Population 2016'!F117*'Prevalence Rates'!F117","v":0},{"$f":"'Population 2016'!G117*'Prevalence Rates'!G117","v":0},{"$f":"'Population 2016'!H117*'Prevalence Rates'!H117","v":0},{"$f":"'Population 2016'!I117*'Prevalence Rates'!I117","v":0},{"$f":"'Population 2016'!J117*'Prevalence Rates'!J117","v":0},{"$f":"'Population 2016'!K117*'Prevalence Rates'!K117","v":0},{"$f":"'Population 2016'!L117*'Prevalence Rates'!L117","v":0},{"$f":"'Population 2016'!M117*'Prevalence Rates'!M117","v":0},{"$f":"'Population 2016'!N117*'Prevalence Rates'!N117","v":0},{"$f":"'Population 2016'!O117*'Prevalence Rates'!O117","v":0},{"$f":"'Population 2016'!P117*'Prevalence Rates'!P117","v":0},{"$f":"'Population 2016'!Q117*'Prevalence Rates'!Q117","v":0},{"$f":"'Population 2016'!R117*'Prevalence Rates'!R117","v":0},{"$f":"'Population 2016'!S117*'Prevalence Rates'!S117","v":0},{"$f":"'Population 2016'!T117*'Prevalence Rates'!T117","v":0},{"$f":"'Population 2016'!U117*'Prevalence Rates'!U117","v":0},{"$f":"'Population 2016'!V117*'Prevalence Rates'!V117","v":0},{"$f":"'Population 2016'!W117*'Prevalence Rates'!W117","v":0},{"$f":"'Population 2016'!X117*'Prevalence Rates'!X117","v":0},{"$f":"'Population 2016'!Y117*'Prevalence Rates'!Y117","v":0},{"$f":"'Population 2016'!Z117*'Prevalence Rates'!Z117","v":0},{"$f":"'Population 2016'!AA117*'Prevalence Rates'!AA117","v":0},{"$f":"'Population 2016'!AB117*'Prevalence Rates'!AB117","v":0},{"$f":"'Population 2016'!AC117*'Prevalence Rates'!AC117","v":0},{"$f":"'Population 2016'!AD117*'Prevalence Rates'!AD117","v":0},{"$f":"'Population 2016'!AE117*'Prevalence Rates'!AE117","v":0},{"$f":"'Population 2016'!AF117*'Prevalence Rates'!AF117","v":0},{"$f":"'Population 2016'!AG117*'Prevalence Rates'!AG117","v":0},{"$f":"'Population 2016'!AH117*'Prevalence Rates'!AH117","v":0},{"$f":"'Population 2016'!AI117*'Prevalence Rates'!AI117","v":0},{"$f":"'Population 2016'!AJ117*'Prevalence Rates'!AJ117","v":0},{"$f":"'Population 2016'!AK117*'Prevalence Rates'!AK117","v":0},{"$f":"'Population 2016'!AL117*'Prevalence Rates'!AL117","v":0},{"$f":"'Population 2016'!AM117*'Prevalence Rates'!AM117","v":0},{"$f":"'Population 2016'!AN117*'Prevalence Rates'!AN117","v":0},{"$f":"'Population 2016'!AO117*'Prevalence Rates'!AO117","v":0},{"$f":"'Population 2016'!AP117*'Prevalence Rates'!AP117","v":0},{"$f":"'Population 2016'!AQ117*'Prevalence Rates'!AQ117","v":0},{"$f":"'Population 2016'!AR117*'Prevalence Rates'!AR117","v":0},{"$f":"'Population 2016'!AS117*'Prevalence Rates'!AS117","v":0},{"$f":"'Population 2016'!AT117*'Prevalence Rates'!AT117","v":0},{"$f":"'Population 2016'!AU117*'Prevalence Rates'!AU117","v":0},{"$f":"'Population 2016'!AV117*'Prevalence Rates'!AV117","v":0},{"$f":"'Population 2016'!AW117*'Prevalence Rates'!AW117","v":0},{"$f":"'Population 2016'!AX117*'Prevalence Rates'!AX117","v":0},{"$f":"'Population 2016'!AY117*'Prevalence Rates'!AY117","v":0},{"$f":"'Population 2016'!AZ117*'Prevalence Rates'!AZ117","v":0},{"$f":"'Population 2016'!BA117*'Prevalence Rates'!BA117","v":0},{"$f":"'Population 2016'!BB117*'Prevalence Rates'!BB117","v":0},{"$f":"'Population 2016'!BC117*'Prevalence Rates'!BC117","v":0},115]
[null,"Male 5-9",{"$f":"'Population 2016'!C118*'Prevalence Rates'!C118","v":0},{"$f":"'Population 2016'!D118*'Prevalence Rates'!D118","v":0},{"$f":"'Population 2016'!E118*'Prevalence Rates'!E118","v":0},{"$f":"'Population 2016'!F118*'Prevalence Rates'!F118","v":0},{"$f":"'Population 2016'!G118*'Prevalence Rates'!G118","v":0},{"$f":"'Population 2016'!H118*'Prevalence Rates'!H118","v":0},{"$f":"'Population 2016'!I118*'Prevalence Rates'!I118","v":0},{"$f":"'Population 2016'!J118*'Prevalence Rates'!J118","v":0},{"$f":"'Population 2016'!K118*'Prevalence Rates'!K118","v":0},{"$f":"'Population 2016'!L118*'Prevalence Rates'!L118","v":0},{"$f":"'Population 2016'!M118*'Prevalence Rates'!M118","v":0},{"$f":"'Population 2016'!N118*'Prevalence Rates'!N118","v":0},{"$f":"'Population 2016'!O118*'Prevalence Rates'!O118","v":0},{"$f":"'Population 2016'!P118*'Prevalence Rates'!P118","v":0},{"$f":"'Population 2016'!Q118*'Prevalence Rates'!Q118","v":0},{"$f":"'Population 2016'!R118*'Prevalence Rates'!R118","v":0},{"$f":"'Population 2016'!S118*'Prevalence Rates'!S118","v":0},{"$f":"'Population 2016'!T118*'Prevalence Rates'!T118","v":0},{"$f":"'Population 2016'!U118*'Prevalence Rates'!U118","v":0},{"$f":"'Population 2016'!V118*'Prevalence Rates'!V118","v":0},{"$f":"'Population 2016'!W118*'Prevalence Rates'!W118","v":0},{"$f":"'Population 2016'!X118*'Prevalence Rates'!X118","v":0},{"$f":"'Population 2016'!Y118*'Prevalence Rates'!Y118","v":0},{"$f":"'Population 2016'!Z118*'Prevalence Rates'!Z118","v":0},{"$f":"'Population 2016'!AA118*'Prevalence Rates'!AA118","v":0},{"$f":"'Population 2016'!AB118*'Prevalence Rates'!AB118","v":0},{"$f":"'Population 2016'!AC118*'Prevalence Rates'!AC118","v":0},{"$f":"'Population 2016'!AD118*'Prevalence Rates'!AD118","v":0},{"$f":"'Population 2016'!AE118*'Prevalence Rates'!AE118","v":0},{"$f":"'Population 2016'!AF118*'Prevalence Rates'!AF118","v":0},{"$f":"'Population 2016'!AG118*'Prevalence Rates'!AG118","v":0},{"$f":"'Population 2016'!AH118*'Prevalence Rates'!AH118","v":0},{"$f":"'Population 2016'!AI118*'Prevalence Rates'!AI118","v":0},{"$f":"'Population 2016'!AJ118*'Prevalence Rates'!AJ118","v":0},{"$f":"'Population 2016'!AK118*'Prevalence Rates'!AK118","v":0},{"$f":"'Population 2016'!AL118*'Prevalence Rates'!AL118","v":0},{"$f":"'Population 2016'!AM118*'Prevalence Rates'!AM118","v":0},{"$f":"'Population 2016'!AN118*'Prevalence Rates'!AN118","v":0},{"$f":"'Population 2016'!AO118*'Prevalence Rates'!AO118","v":0},{"$f":"'Population 2016'!AP118*'Prevalence Rates'!AP118","v":0},{"$f":"'Population 2016'!AQ118*'Prevalence Rates'!AQ118","v":0},{"$f":"'Population 2016'!AR118*'Prevalence Rates'!AR118","v":0},{"$f":"'Population 2016'!AS118*'Prevalence Rates'!AS118","v":0},{"$f":"'Population 2016'!AT118*'Prevalence Rates'!AT118","v":0},{"$f":"'Population 2016'!AU118*'Prevalence Rates'!AU118","v":0},{"$f":"'Population 2016'!AV118*'Prevalence Rates'!AV118","v":0},{"$f":"'Population 2016'!AW118*'Prevalence Rates'!AW118","v":0},{"$f":"'Population 2016'!AX118*'Prevalence Rates'!AX118","v":0},{"$f":"'Population 2016'!AY118*'Prevalence Rates'!AY118","v":0},{"$f":"'Population 2016'!AZ118*'Prevalence Rates'!AZ118","v":0},{"$f":"'Population 2016'!BA118*'Prevalence Rates'!BA118","v":0},{"$f":"'Population 2016'!BB118*'Prevalence Rates'!BB118","v":0},{"$f":"'Population 2016'!BC118*'Prevalence Rates'!BC118","v":0},116]
[null,"Male 10-15",{"$f":"'Population 2016'!C119*'Prevalence Rates'!C119","v":0},{"$f":"'Population 2016'!D119*'Prevalence Rates'!D119","v":0},{"$f":"'Population 2016'!E119*'Prevalence Rates'!E119","v":0},{"$f":"'Population 2016'!F119*'Prevalence Rates'!F119","v":0},{"$f":"'Population 2016'!G119*'Prevalence Rates'!G119","v":0},{"$f":"'Population 2016'!H119*'Prevalence Rates'!H119","v":0},{"$f":"'Population 2016'!I119*'Prevalence Rates'!I119","v":0},{"$f":"'Population 2016'!J119*'Prevalence Rates'!J119","v":0},{"$f":"'Population 2016'!K119*'Prevalence Rates'!K119","v":0},{"$f":"'Population 2016'!L119*'Prevalence Rates'!L119","v":0},{"$f":"'Population 2016'!M119*'Prevalence Rates'!M119","v":0},{"$f":"'Population 2016'!N119*'Prevalence Rates'!N119","v":0},{"$f":"'Population 2016'!O119*'Prevalence Rates'!O119","v":0},{"$f":"'Population 2016'!P119*'Prevalence Rates'!P119","v":0},{"$f":"'Population 2016'!Q119*'Prevalence Rates'!Q119","v":0},{"$f":"'Population 2016'!R119*'Prevalence Rates'!R119","v":0},{"$f":"'Population 2016'!S119*'Prevalence Rates'!S119","v":0},{"$f":"'Population 2016'!T119*'Prevalence Rates'!T119","v":0},{"$f":"'Population 2016'!U119*'Prevalence Rates'!U119","v":0},{"$f":"'Population 2016'!V119*'Prevalence Rates'!V119","v":0},{"$f":"'Population 2016'!W119*'Prevalence Rates'!W119","v":0},{"$f":"'Population 2016'!X119*'Prevalence Rates'!X119","v":0},{"$f":"'Population 2016'!Y119*'Prevalence Rates'!Y119","v":0},{"$f":"'Population 2016'!Z119*'Prevalence Rates'!Z119","v":0},{"$f":"'Population 2016'!AA119*'Prevalence Rates'!AA119","v":0},{"$f":"'Population 2016'!AB119*'Prevalence Rates'!AB119","v":0},{"$f":"'Population 2016'!AC119*'Prevalence Rates'!AC119","v":0},{"$f":"'Population 2016'!AD119*'Prevalence Rates'!AD119","v":0},{"$f":"'Population 2016'!AE119*'Prevalence Rates'!AE119","v":0},{"$f":"'Population 2016'!AF119*'Prevalence Rates'!AF119","v":0},{"$f":"'Population 2016'!AG119*'Prevalence Rates'!AG119","v":0},{"$f":"'Population 2016'!AH119*'Prevalence Rates'!AH119","v":0},{"$f":"'Population 2016'!AI119*'Prevalence Rates'!AI119","v":0},{"$f":"'Population 2016'!AJ119*'Prevalence Rates'!AJ119","v":0},{"$f":"'Population 2016'!AK119*'Prevalence Rates'!AK119","v":0},{"$f":"'Population 2016'!AL119*'Prevalence Rates'!AL119","v":0},{"$f":"'Population 2016'!AM119*'Prevalence Rates'!AM119","v":0},{"$f":"'Population 2016'!AN119*'Prevalence Rates'!AN119","v":0},{"$f":"'Population 2016'!AO119*'Prevalence Rates'!AO119","v":0},{"$f":"'Population 2016'!AP119*'Prevalence Rates'!AP119","v":0},{"$f":"'Population 2016'!AQ119*'Prevalence Rates'!AQ119","v":0},{"$f":"'Population 2016'!AR119*'Prevalence Rates'!AR119","v":0},{"$f":"'Population 2016'!AS119*'Prevalence Rates'!AS119","v":0},{"$f":"'Population 2016'!AT119*'Prevalence Rates'!AT119","v":0},{"$f":"'Population 2016'!AU119*'Prevalence Rates'!AU119","v":0},{"$f":"'Population 2016'!AV119*'Prevalence Rates'!AV119","v":0},{"$f":"'Population 2016'!AW119*'Prevalence Rates'!AW119","v":0},{"$f":"'Population 2016'!AX119*'Prevalence Rates'!AX119","v":0},{"$f":"'Population 2016'!AY119*'Prevalence Rates'!AY119","v":0},{"$f":"'Population 2016'!AZ119*'Prevalence Rates'!AZ119","v":0},{"$f":"'Population 2016'!BA119*'Prevalence Rates'!BA119","v":0},{"$f":"'Population 2016'!BB119*'Prevalence Rates'!BB119","v":0},{"$f":"'Population 2016'!BC119*'Prevalence Rates'!BC119","v":0},117]
[null,"Male 16-19",{"$f":"'Population 2016'!C120*'Prevalence Rates'!C120","v":299.01478155339805},{"$f":"'Population 2016'!D120*'Prevalence Rates'!D120","v":153.52275064847822},{"$f":"'Population 2016'!E120*'Prevalence Rates'!E120","v":116.69430935569287},{"$f":"'Population 2016'!F120*'Prevalence Rates'!F120","v":128.72729655781114},{"$f":"'Population 2016'!G120*'Prevalence Rates'!G120","v":86.883200000000002},{"$f":"'Population 2016'!H120*'Prevalence Rates'!H120","v":604.06768720211824},{"$f":"'Population 2016'!I120*'Prevalence Rates'!I120","v":76.833659752868499},{"$f":"'Population 2016'!J120*'Prevalence Rates'!J120","v":177.48179999999999},{"$f":"'Population 2016'!K120*'Prevalence Rates'!K120","v":87.454800000000006},{"$f":"'Population 2016'!L120*'Prevalence Rates'!L120","v":266.9144974404237},{"$f":"'Population 2016'!M120*'Prevalence Rates'!M120","v":266.9144974404237},{"$f":"'Population 2016'!N120*'Prevalence Rates'!N120","v":183.31408755516327},{"$f":"'Population 2016'!O120*'Prevalence Rates'!O120","v":211.44432462488967},{"$f":"'Population 2016'!P120*'Prevalence Rates'!P120","v":103.1563947043248},{"$f":"'Population 2016'!Q120*'Prevalence Rates'!Q120","v":166.32803248014122},{"$f":"'Population 2016'!R120*'Prevalence Rates'!R120","v":35.908890732568409},{"$f":"'Population 2016'!S120*'Prevalence Rates'!S120","v":1001.101161689547},{"$f":"'Population 2016'!T120*'Prevalence Rates'!T120","v":370.2276659311562},{"$f":"'Population 2016'!U120*'Prevalence Rates'!U120","v":40.012},{"$f":"'Population 2016'!V120*'Prevalence Rates'!V120","v":291.2781276257723},{"$f":"'Population 2016'!W120*'Prevalence Rates'!W120","v":511.61920697263901},{"$f":"'Population 2016'!X120*'Prevalence Rates'!X120","v":511.61920697263901},{"$f":"'Population 2016'!Y120*'Prevalence Rates'!Y120","v":418.55006398940861},{"$f":"'Population 2016'!Z120*'Prevalence Rates'!Z120","v":780.77659117387464},{"$f":"'Population 2016'!AA120*'Prevalence Rates'!AA120","v":853.2913534914295},{"$f":"'Population 2016'!AB120*'Prevalence Rates'!AB120","v":508.2467417475728},{"$f":"'Population 2016'!AC120*'Prevalence Rates'!AC120","v":1376.3280437775816},{"$f":"'Population 2016'!AD120*'Prevalence Rates'!AD120","v":399.29211332744921},{"$f":"'Population 2016'!AE120*'Prevalence Rates'!AE120","v":313.33315975286848},{"$f":"'Population 2016'!AF120*'Prevalence Rates'!AF120","v":60.875399999999999},{"$f":"'Population 2016'!AG120*'Prevalence Rates'!AG120","v":120.66245903526614},{"$f":"'Population 2016'!AH120*'Prevalence Rates'!AH120","v":1108.1169779346867},{"$f":"'Population 2016'!AI120*'Prevalence Rates'!AI120","v":997.30477563989416},{"$f":"'Population 2016'!AJ120*'Prevalence Rates'!AJ120","v":204.9186},{"$f":"'Population 2016'!AK120*'Prevalence Rates'!AK120","v":106.74188561341573},{"$f":"'Population 2016'!AL120*'Prevalence Rates'!AL120","v":240.9959941747573},{"$f":"'Population 2016'!AM120*'Prevalence Rates'!AM120","v":610.43134077669902},{"$f":"'Population 2016'!AN120*'Prevalence Rates'!AN120","v":19.148599999999998},{"$f":"'Population 2016'!AO120*'Prevalence Rates'!AO120","v":19.148599999999998},{"$f":"'Population 2016'!AP120*'Prevalence Rates'!AP120","v":96.190744924977921},{"$f":"'Population 2016'!AQ120*'Prevalence Rates'!AQ120","v":217.44637687555166},{"$f":"'Population 2016'!AR120*'Prevalence Rates'!AR120","v":6771.4593999999997},{"$f":"'Population 2016'!AS120*'Prevalence Rates'!AS120","v":76.833659752868499},{"$f":"'Population 2016'!AT120*'Prevalence Rates'!AT120","v":2.2864},{"$f":"'Population 2016'!AU120*'Prevalence Rates'!AU120","v":2.2864},{"$f":"'Population 2016'!AV120*'Prevalence Rates'!AV120","v":144.94070785525153},{"$f":"'Population 2016'!AW120*'Prevalence Rates'!AW120","v":498.59386566637249},{"$f":"'Population 2016'!AX120*'Prevalence Rates'!AX120","v":90.027000000000001},{"$f":"'Population 2016'!AY120*'Prevalence Rates'!AY120","v":401.38663404303202},{"$f":"'Population 2016'!AZ120*'Prevalence Rates'!AZ120","v":400.60608702559574},{"$f":"'Population 2016'!BA120*'Prevalence Rates'!BA120","v":191.91608737864078},{"$f":"'Population 2016'!BB120*'Prevalence Rates'!BB120","v":251.99462753751104},{"$f":"'Population 2016'!BC120*'Prevalence Rates'!BC120","v":40.012},118]
[null,"Male 20-24",{"$f":"'Population 2016'!C121*'Prevalence Rates'!C121","v":719.89829029126201},{"$f":"'Population 2016'!D121*'Prevalence Rates'!D121","v":322.85265858594795},{"$f":"'Population 2016'!E121*'Prevalence Rates'!E121","v":168.03980547219774},{"$f":"'Population 2016'!F121*'Prevalence Rates'!F121","v":200.68255463371585},{"$f":"'Population 2016'!G121*'Prevalence Rates'!G121","v":113.7484},{"$f":"'Population 2016'!H121*'Prevalence Rates'!H121","v":775.59674995586931},{"$f":"'Population 2016'!I121*'Prevalence Rates'!I121","v":113.67171579876435},{"$f":"'Population 2016'!J121*'Prevalence Rates'!J121","v":294.94560000000001},{"$f":"'Population 2016'!K121*'Prevalence Rates'!K121","v":116.0348},{"$f":"'Population 2016'!L121*'Prevalence Rates'!L121","v":360.21646778464259},{"$f":"'Population 2016'!M121*'Prevalence Rates'!M121","v":360.21646778464259},{"$f":"'Population 2016'!N121*'Prevalence Rates'!N121","v":545.71693795233887},{"$f":"'Population 2016'!O121*'Prevalence Rates'!O121","v":284.44642294792584},{"$f":"'Population 2016'!P121*'Prevalence Rates'!P121","v":151.6571339805825},{"$f":"'Population 2016'!Q121*'Prevalence Rates'!Q121","v":233.35166398940865},{"$f":"'Population 2016'!R121*'Prevalence Rates'!R121","v":48.592306266548988},{"$f":"'Population 2016'!S121*'Prevalence Rates'!S121","v":1480.2188619654444},{"$f":"'Population 2016'!T121*'Prevalence Rates'!T121","v":714.82981774051188},{"$f":"'Population 2016'!U121*'Prevalence Rates'!U121","v":44.584800000000001},{"$f":"'Population 2016'!V121*'Prevalence Rates'!V121","v":350.11950441306271},{"$f":"'Population 2016'!W121*'Prevalence Rates'!W121","v":635.22140070608998},{"$f":"'Population 2016'!X121*'Prevalence Rates'!X121","v":635.22140070608998},{"$f":"'Population 2016'!Y121*'Prevalence Rates'!Y121","v":572.79125375110323},{"$f":"'Population 2016'!Z121*'Prevalence Rates'!Z121","v":1472.04380070609},{"$f":"'Population 2016'!AA121*'Prevalence Rates'!AA121","v":1272.0001327757464},{"$f":"'Population 2016'!AB121*'Prevalence Rates'!AB121","v":996.41533980582517},{"$f":"'Population 2016'!AC121*'Prevalence Rates'!AC121","v":2280.5881447484553},{"$f":"'Population 2016'!AD121*'Prevalence Rates'!AD121","v":516.83789479258598},{"$f":"'Population 2016'!AE121*'Prevalence Rates'!AE121","v":404.18123565754627},{"$f":"'Population 2016'!AF121*'Prevalence Rates'!AF121","v":92.027599999999993},{"$f":"'Population 2016'!AG121*'Prevalence Rates'!AG121","v":155.64743236501786},{"$f":"'Population 2016'!AH121*'Prevalence Rates'!AH121","v":1448.1942573698147},{"$f":"'Population 2016'!AI121*'Prevalence Rates'!AI121","v":1572.8094897616947},{"$f":"'Population 2016'!AJ121*'Prevalence Rates'!AJ121","v":253.21879999999999},{"$f":"'Population 2016'!AK121*'Prevalence Rates'!AK121","v":149.93224395410417},{"$f":"'Population 2016'!AL121*'Prevalence Rates'!AL121","v":302.42634563106799},{"$f":"'Population 2016'!AM121*'Prevalence Rates'!AM121","v":781.88220582524275},{"$f":"'Population 2016'!AN121*'Prevalence Rates'!AN121","v":26.0078},{"$f":"'Population 2016'!AO121*'Prevalence Rates'!AO121","v":26.0078},{"$f":"'Population 2016'!AP121*'Prevalence Rates'!AP121","v":169.34633777581641},{"$f":"'Population 2016'!AQ121*'Prevalence Rates'!AQ121","v":292.72781218005298},{"$f":"'Population 2016'!AR121*'Prevalence Rates'!AR121","v":10278.511200000001},{"$f":"'Population 2016'!AS121*'Prevalence Rates'!AS121","v":113.67171579876435},{"$f":"'Population 2016'!AT121*'Prevalence Rates'!AT121","v":12.0036},{"$f":"'Population 2016'!AU121*'Prevalence Rates'!AU121","v":12.0036},{"$f":"'Population 2016'!AV121*'Prevalence Rates'!AV121","v":180.3857096204766},{"$f":"'Population 2016'!AW121*'Prevalence Rates'!AW121","v":667.1288391879965},{"$f":"'Population 2016'!AX121*'Prevalence Rates'!AX121","v":178.91079999999999},{"$f":"'Population 2016'!AY121*'Prevalence Rates'!AY121","v":674.06997552662767},{"$f":"'Population 2016'!AZ121*'Prevalence Rates'!AZ121","v":887.69984501323916},{"$f":"'Population 2016'!BA121*'Prevalence Rates'!BA121","v":274.87124007060902},{"$f":"'Population 2016'!BB121*'Prevalence Rates'!BB121","v":354.41079267431599},{"$f":"'Population 2016'!BC121*'Prevalence Rates'!BC121","v":44.584800000000001},119]
[null,"Male 25-29",{"$f":"'Population 2016'!C122*'Prevalence Rates'!C122","v":961.80160485436897},{"$f":"'Population 2016'!D122*'Prevalence Rates'!D122","v":429.84794487375513},{"$f":"'Population 2016'!E122*'Prevalence Rates'!E122","v":220.90516654898502},{"$f":"'Population 2016'!F122*'Prevalence Rates'!F122","v":262.5982800529568},{"$f":"'Population 2016'!G122*'Prevalence Rates'!G122","v":116.40720000000002},{"$f":"'Population 2016'!H122*'Prevalence Rates'!H122","v":848.57179991173882},{"$f":"'Population 2016'!I122*'Prevalence Rates'!I122","v":133.78986831421008},{"$f":"'Population 2016'!J122*'Prevalence Rates'!J122","v":332.91180000000003},{"$f":"'Population 2016'!K122*'Prevalence Rates'!K122","v":123.76260000000001},{"$f":"'Population 2016'!L122*'Prevalence Rates'!L122","v":328.07203768755522},{"$f":"'Population 2016'!M122*'Prevalence Rates'!M122","v":328.07203768755522},{"$f":"'Population 2016'!N122*'Prevalence Rates'!N122","v":565.5400498676081},{"$f":"'Population 2016'!O122*'Prevalence Rates'!O122","v":305.918478375993},{"$f":"'Population 2016'!P122*'Prevalence Rates'!P122","v":159.78145101500442},{"$f":"'Population 2016'!Q122*'Prevalence Rates'!Q122","v":260.193852603707},{"$f":"'Population 2016'!R122*'Prevalence Rates'!R122","v":47.553384995586939},{"$f":"'Population 2016'!S122*'Prevalence Rates'!S122","v":1947.8804116399976},{"$f":"'Population 2016'!T122*'Prevalence Rates'!T122","v":1175.6354655781113},{"$f":"'Population 2016'!U122*'Prevalence Rates'!U122","v":56.604600000000005},{"$f":"'Population 2016'!V122*'Prevalence Rates'!V122","v":397.13387793468672},{"$f":"'Population 2016'!W122*'Prevalence Rates'!W122","v":755.25822444836729},{"$f":"'Population 2016'!X122*'Prevalence Rates'!X122","v":755.25822444836729},{"$f":"'Population 2016'!Y122*'Prevalence Rates'!Y122","v":648.30629390997353},{"$f":"'Population 2016'!Z122*'Prevalence Rates'!Z122","v":2265.3669495145632},{"$f":"'Population 2016'!AA122*'Prevalence Rates'!AA122","v":1615.9142614117807},{"$f":"'Population 2016'!AB122*'Prevalence Rates'!AB122","v":1311.1179029126215},{"$f":"'Population 2016'!AC122*'Prevalence Rates'!AC122","v":3108.6118072374225},{"$f":"'Population 2016'!AD122*'Prevalence Rates'!AD122","v":561.03448278905569},{"$f":"'Population 2016'!AE122*'Prevalence Rates'!AE122","v":446.38632391879963},{"$f":"'Population 2016'!AF122*'Prevalence Rates'!AF122","v":102.33600000000001},{"$f":"'Population 2016'!AG122*'Prevalence Rates'!AG122","v":171.90032349668061},{"$f":"'Population 2016'!AH122*'Prevalence Rates'!AH122","v":1651.628975110327},{"$f":"'Population 2016'!AI122*'Prevalence Rates'!AI122","v":2154.1324368932042},{"$f":"'Population 2016'!AJ122*'Prevalence Rates'!AJ122","v":298.05360000000002},{"$f":"'Population 2016'!AK122*'Prevalence Rates'!AK122","v":183.64818428949695},{"$f":"'Population 2016'!AL122*'Prevalence Rates'!AL122","v":315.62707572815538},{"$f":"'Population 2016'!AM122*'Prevalence Rates'!AM122","v":894.66999611650488},{"$f":"'Population 2016'!AN122*'Prevalence Rates'!AN122","v":33.2592},{"$f":"'Population 2016'!AO122*'Prevalence Rates'!AO122","v":33.2592},{"$f":"'Population 2016'!AP122*'Prevalence Rates'!AP122","v":213.85178420123566},{"$f":"'Population 2016'!AQ122*'Prevalence Rates'!AQ122","v":340.97623583406892},{"$f":"'Population 2016'!AR122*'Prevalence Rates'!AR122","v":12667.597800000001},{"$f":"'Population 2016'!AS122*'Prevalence Rates'!AS122","v":133.78986831421008},{"$f":"'Population 2016'!AT122*'Prevalence Rates'!AT122","v":14.710800000000001},{"$f":"'Population 2016'!AU122*'Prevalence Rates'!AU122","v":14.710800000000001},{"$f":"'Population 2016'!AV122*'Prevalence Rates'!AV122","v":210.93957193292147},{"$f":"'Population 2016'!AW122*'Prevalence Rates'!AW122","v":757.95930661959414},{"$f":"'Population 2016'!AX122*'Prevalence Rates'!AX122","v":209.14920000000001},{"$f":"'Population 2016'!AY122*'Prevalence Rates'!AY122","v":783.30516473553928},{"$f":"'Population 2016'!AZ122*'Prevalence Rates'!AZ122","v":1015.1463900264783},{"$f":"'Population 2016'!BA122*'Prevalence Rates'!BA122","v":310.88624536628419},{"$f":"'Population 2016'!BB122*'Prevalence Rates'!BB122","v":388.81230370697261},{"$f":"'Population 2016'!BC122*'Prevalence Rates'!BC122","v":56.604600000000005},120]
[null,"Male 30-34",{"$f":"'Population 2016'!C123*'Prevalence Rates'!C123","v":764.30492330097093},{"$f":"'Population 2016'!D123*'Prevalence Rates'!D123","v":350.31716762505857},{"$f":"'Population 2016'!E123*'Prevalence Rates'!E123","v":196.6332497793469},{"$f":"'Population 2016'!F123*'Prevalence Rates'!F123","v":265.55297237422781},{"$f":"'Population 2016'!G123*'Prevalence Rates'!G123","v":123.76260000000001},{"$f":"'Population 2016'!H123*'Prevalence Rates'!H123","v":807.98937749338052},{"$f":"'Population 2016'!I123*'Prevalence Rates'!I123","v":113.76849717563991},{"$f":"'Population 2016'!J123*'Prevalence Rates'!J123","v":263.83500000000004},{"$f":"'Population 2016'!K123*'Prevalence Rates'!K123","v":117.36660000000001},{"$f":"'Population 2016'!L123*'Prevalence Rates'!L123","v":329.39357661076798},{"$f":"'Population 2016'!M123*'Prevalence Rates'!M123","v":329.39357661076798},{"$f":"'Population 2016'!N123*'Prevalence Rates'!N123","v":434.97485507502211},{"$f":"'Population 2016'!O123*'Prevalence Rates'!O123","v":312.75282736098859},{"$f":"'Population 2016'!P123*'Prevalence Rates'!P123","v":139.94651226831419},{"$f":"'Population 2016'!Q123*'Prevalence Rates'!Q123","v":254.37775472197708},{"$f":"'Population 2016'!R123*'Prevalence Rates'!R123","v":40.549398058252429},{"$f":"'Population 2016'!S123*'Prevalence Rates'!S123","v":1855.7266897902334},{"$f":"'Population 2016'!T123*'Prevalence Rates'!T123","v":1062.0316668137689},{"$f":"'Population 2016'!U123*'Prevalence Rates'!U123","v":46.690800000000003},{"$f":"'Population 2016'!V123*'Prevalence Rates'!V123","v":397.72972771403357},{"$f":"'Population 2016'!W123*'Prevalence Rates'!W123","v":737.75107969991188},{"$f":"'Population 2016'!X123*'Prevalence Rates'!X123","v":737.75107969991188},{"$f":"'Population 2016'!Y123*'Prevalence Rates'!Y123","v":589.86587819947044},{"$f":"'Population 2016'!Z123*'Prevalence Rates'!Z123","v":2101.8133827007941},{"$f":"'Population 2016'!AA123*'Prevalence Rates'!AA123","v":1557.26545482753},{"$f":"'Population 2016'!AB123*'Prevalence Rates'!AB123","v":1089.1332349514564},{"$f":"'Population 2016'!AC123*'Prevalence Rates'!AC123","v":2938.3709486319503},{"$f":"'Population 2016'!AD123*'Prevalence Rates'!AD123","v":554.9325971756399},{"$f":"'Population 2016'!AE123*'Prevalence Rates'!AE123","v":432.20984112974406},{"$f":"'Population 2016'!AF123*'Prevalence Rates'!AF123","v":102.01620000000001},{"$f":"'Population 2016'!AG123*'Prevalence Rates'!AG123","v":166.44105683257226},{"$f":"'Population 2016'!AH123*'Prevalence Rates'!AH123","v":1642.7722368932043},{"$f":"'Population 2016'!AI123*'Prevalence Rates'!AI123","v":2053.9468308031778},{"$f":"'Population 2016'!AJ123*'Prevalence Rates'!AJ123","v":288.45960000000002},{"$f":"'Population 2016'!AK123*'Prevalence Rates'!AK123","v":170.8756601941748},{"$f":"'Population 2016'!AL123*'Prevalence Rates'!AL123","v":286.34208932038837},{"$f":"'Population 2016'!AM123*'Prevalence Rates'!AM123","v":915.36850776699032},{"$f":"'Population 2016'!AN123*'Prevalence Rates'!AN123","v":22.705800000000004},{"$f":"'Population 2016'!AO123*'Prevalence Rates'!AO123","v":22.705800000000004},{"$f":"'Population 2016'!AP123*'Prevalence Rates'!AP123","v":213.00204201235658},{"$f":"'Population 2016'!AQ123*'Prevalence Rates'!AQ123","v":366.48233221535753},{"$f":"'Population 2016'!AR123*'Prevalence Rates'!AR123","v":11879.290800000001},{"$f":"'Population 2016'!AS123*'Prevalence Rates'!AS123","v":113.76849717563991},{"$f":"'Population 2016'!AT123*'Prevalence Rates'!AT123","v":7.6752000000000002},{"$f":"'Population 2016'!AU123*'Prevalence Rates'!AU123","v":7.6752000000000002},{"$f":"'Population 2016'!AV123*'Prevalence Rates'!AV123","v":193.00339276257725},{"$f":"'Population 2016'!AW123*'Prevalence Rates'!AW123","v":728.99270891438664},{"$f":"'Population 2016'!AX123*'Prevalence Rates'!AX123","v":146.4684},{"$f":"'Population 2016'!AY123*'Prevalence Rates'!AY123","v":722.18981391414923},{"$f":"'Population 2016'!AZ123*'Prevalence Rates'!AZ123","v":896.19179814651363},{"$f":"'Population 2016'!BA123*'Prevalence Rates'!BA123","v":301.67752956751985},{"$f":"'Population 2016'!BB123*'Prevalence Rates'!BB123","v":417.78567563989407},{"$f":"'Population 2016'!BC123*'Prevalence Rates'!BC123","v":46.690800000000003},121]
[null,"Male 35-39",{"$f":"'Population 2016'!C124*'Prevalence Rates'!C124","v":633.12411359223313},{"$f":"'Population 2016'!D124*'Prevalence Rates'!D124","v":307.23589767926296},{"$f":"'Population 2016'!E124*'Prevalence Rates'!E124","v":204.03918089143869},{"$f":"'Population 2016'!F124*'Prevalence Rates'!F124","v":241.73480767872911},{"$f":"'Population 2016'!G124*'Prevalence Rates'!G124","v":128.51930000000002},{"$f":"'Population 2016'!H124*'Prevalence Rates'!H124","v":762.72343172992066},{"$f":"'Population 2016'!I124*'Prevalence Rates'!I124","v":118.5128469549868},{"$f":"'Population 2016'!J124*'Prevalence Rates'!J124","v":248.51610000000002},{"$f":"'Population 2016'!K124*'Prevalence Rates'!K124","v":130.90560000000002},{"$f":"'Population 2016'!L124*'Prevalence Rates'!L124","v":331.0521120917918},{"$f":"'Population 2016'!M124*'Prevalence Rates'!M124","v":331.0521120917918},{"$f":"'Population 2016'!N124*'Prevalence Rates'!N124","v":316.74048018534864},{"$f":"'Population 2016'!O124*'Prevalence Rates'!O124","v":294.18616910856139},{"$f":"'Population 2016'!P124*'Prevalence Rates'!P124","v":129.79835198587821},{"$f":"'Population 2016'!Q124*'Prevalence Rates'!Q124","v":260.39314024713156},{"$f":"'Population 2016'!R124*'Prevalence Rates'!R124","v":39.098792850838493},{"$f":"'Population 2016'!S124*'Prevalence Rates'!S124","v":1734.1908143954392},{"$f":"'Population 2016'!T124*'Prevalence Rates'!T124","v":867.78080825242728},{"$f":"'Population 2016'!U124*'Prevalence Rates'!U124","v":48.407800000000002},{"$f":"'Population 2016'!V124*'Prevalence Rates'!V124","v":423.97143270079437},{"$f":"'Population 2016'!W124*'Prevalence Rates'!W124","v":770.75067894969118},{"$f":"'Population 2016'!X124*'Prevalence Rates'!X124","v":770.75067894969118},{"$f":"'Population 2016'!Y124*'Prevalence Rates'!Y124","v":600.838506619594},{"$f":"'Population 2016'!Z124*'Prevalence Rates'!Z124","v":1751.443705207414},{"$f":"'Population 2016'!AA124*'Prevalence Rates'!AA124","v":1420.2985280612206},{"$f":"'Population 2016'!AB124*'Prevalence Rates'!AB124","v":976.19197281553409},{"$f":"'Population 2016'!AC124*'Prevalence Rates'!AC124","v":2560.7469246248897},{"$f":"'Population 2016'!AD124*'Prevalence Rates'!AD124","v":562.63754748455426},{"$f":"'Population 2016'!AE124*'Prevalence Rates'!AE124","v":434.92581641659314},{"$f":"'Population 2016'!AF124*'Prevalence Rates'!AF124","v":104.65630000000002},{"$f":"'Population 2016'!AG124*'Prevalence Rates'!AG124","v":167.48696035918496},{"$f":"'Population 2016'!AH124*'Prevalence Rates'!AH124","v":1604.334974757282},{"$f":"'Population 2016'!AI124*'Prevalence Rates'!AI124","v":1838.8227238305385},{"$f":"'Population 2016'!AJ124*'Prevalence Rates'!AJ124","v":302.03740000000005},{"$f":"'Population 2016'!AK124*'Prevalence Rates'!AK124","v":171.47841676963819},{"$f":"'Population 2016'!AL124*'Prevalence Rates'!AL124","v":261.44382233009713},{"$f":"'Population 2016'!AM124*'Prevalence Rates'!AM124","v":873.01676747572833},{"$f":"'Population 2016'!AN124*'Prevalence Rates'!AN124","v":24.544800000000002},{"$f":"'Population 2016'!AO124*'Prevalence Rates'!AO124","v":24.544800000000002},{"$f":"'Population 2016'!AP124*'Prevalence Rates'!AP124","v":204.71240573698148},{"$f":"'Population 2016'!AQ124*'Prevalence Rates'!AQ124","v":309.81100317740515},{"$f":"'Population 2016'!AR124*'Prevalence Rates'!AR124","v":11025.046900000001},{"$f":"'Population 2016'!AS124*'Prevalence Rates'!AS124","v":118.5128469549868},{"$f":"'Population 2016'!AT124*'Prevalence Rates'!AT124","v":11.249700000000001},{"$f":"'Population 2016'!AU124*'Prevalence Rates'!AU124","v":11.249700000000001},{"$f":"'Population 2016'!AV124*'Prevalence Rates'!AV124","v":188.50295675198589},{"$f":"'Population 2016'!AW124*'Prevalence Rates'!AW124","v":732.3822786407768},{"$f":"'Population 2016'!AX124*'Prevalence Rates'!AX124","v":117.61050000000002},{"$f":"'Population 2016'!AY124*'Prevalence Rates'!AY124","v":673.08502837927472},{"$f":"'Population 2016'!AZ124*'Prevalence Rates'!AZ124","v":755.44538221535743},{"$f":"'Population 2016'!BA124*'Prevalence Rates'!BA124","v":316.08470653133276},{"$f":"'Population 2016'!BB124*'Prevalence Rates'!BB124","v":389.6473460282437},{"$f":"'Population 2016'!BC124*'Prevalence Rates'!BC124","v":48.407800000000002},122]
[null,"Male 40-44",{"$f":"'Population 2016'!C125*'Prevalence Rates'!C125","v":550.99534611650495},{"$f":"'Population 2016'!D125*'Prevalence Rates'!D125","v":273.18900570685901},{"$f":"'Population 2016'!E125*'Prevalence Rates'!E125","v":191.59377338923215},{"$f":"'Population 2016'!F125*'Prevalence Rates'!F125","v":228.3488411297441},{"$f":"'Population 2016'!G125*'Prevalence Rates'!G125","v":122.72400000000002},{"$f":"'Population 2016'!H125*'Prevalence Rates'!H125","v":889.66670860547231},{"$f":"'Population 2016'!I125*'Prevalence Rates'!I125","v":129.05848164165934},{"$f":"'Population 2016'!J125*'Prevalence Rates'!J125","v":267.60650000000004},{"$f":"'Population 2016'!K125*'Prevalence Rates'!K125","v":142.15530000000001},{"$f":"'Population 2016'!L125*'Prevalence Rates'!L125","v":395.14943592233021},{"$f":"'Population 2016'!M125*'Prevalence Rates'!M125","v":395.14943592233021},{"$f":"'Population 2016'!N125*'Prevalence Rates'!N125","v":297.35611787290384},{"$f":"'Population 2016'!O125*'Prevalence Rates'!O125","v":327.49026372462492},{"$f":"'Population 2016'!P125*'Prevalence Rates'!P125","v":145.65606919682261},{"$f":"'Population 2016'!Q125*'Prevalence Rates'!Q125","v":268.22451288614303},{"$f":"'Population 2016'!R125*'Prevalence Rates'!R125","v":52.066231685789944},{"$f":"'Population 2016'!S125*'Prevalence Rates'!S125","v":1723.7232668216072},{"$f":"'Population 2016'!T125*'Prevalence Rates'!T125","v":742.89722330097095},{"$f":"'Population 2016'!U125*'Prevalence Rates'!U125","v":67.839100000000002},{"$f":"'Population 2016'!V125*'Prevalence Rates'!V125","v":459.22299002647839},{"$f":"'Population 2016'!W125*'Prevalence Rates'!W125","v":845.39965511915273},{"$f":"'Population 2016'!X125*'Prevalence Rates'!X125","v":845.39965511915273},{"$f":"'Population 2016'!Y125*'Prevalence Rates'!Y125","v":649.45286253309803},{"$f":"'Population 2016'!Z125*'Prevalence Rates'!Z125","v":1351.1708401588703},{"$f":"'Population 2016'!AA125*'Prevalence Rates'!AA125","v":1364.6869398492152},{"$f":"'Population 2016'!AB125*'Prevalence Rates'!AB125","v":863.95313009708752},{"$f":"'Population 2016'!AC125*'Prevalence Rates'!AC125","v":2221.5824155339806},{"$f":"'Population 2016'!AD125*'Prevalence Rates'!AD125","v":552.88082700794348},{"$f":"'Population 2016'!AE125*'Prevalence Rates'!AE125","v":431.24000441306271},{"$f":"'Population 2016'!AF125*'Prevalence Rates'!AF125","v":88.974900000000005},{"$f":"'Population 2016'!AG125*'Prevalence Rates'!AG125","v":166.06757933919187},{"$f":"'Population 2016'!AH125*'Prevalence Rates'!AH125","v":1754.0902686672555},{"$f":"'Population 2016'!AI125*'Prevalence Rates'!AI125","v":1749.8767085613417},{"$f":"'Population 2016'!AJ125*'Prevalence Rates'!AJ125","v":301.0147},{"$f":"'Population 2016'!AK125*'Prevalence Rates'!AK125","v":148.29571235657551},{"$f":"'Population 2016'!AL125*'Prevalence Rates'!AL125","v":322.14388058252433},{"$f":"'Population 2016'!AM125*'Prevalence Rates'!AM125","v":965.55456893203905},{"$f":"'Population 2016'!AN125*'Prevalence Rates'!AN125","v":34.771800000000006},{"$f":"'Population 2016'!AO125*'Prevalence Rates'!AO125","v":34.771800000000006},{"$f":"'Population 2016'!AP125*'Prevalence Rates'!AP125","v":152.47752934686673},{"$f":"'Population 2016'!AQ125*'Prevalence Rates'!AQ125","v":328.41397334510151},{"$f":"'Population 2016'!AR125*'Prevalence Rates'!AR125","v":10913.572600000001},{"$f":"'Population 2016'!AS125*'Prevalence Rates'!AS125","v":129.05848164165934},{"$f":"'Population 2016'!AT125*'Prevalence Rates'!AT125","v":9.8861000000000008},{"$f":"'Population 2016'!AU125*'Prevalence Rates'!AU125","v":9.8861000000000008},{"$f":"'Population 2016'!AV125*'Prevalence Rates'!AV125","v":221.35632921447487},{"$f":"'Population 2016'!AW125*'Prevalence Rates'!AW125","v":789.95646743159762},{"$f":"'Population 2016'!AX125*'Prevalence Rates'!AX125","v":125.45120000000001},{"$f":"'Population 2016'!AY125*'Prevalence Rates'!AY125","v":663.89340245267704},{"$f":"'Population 2016'!AZ125*'Prevalence Rates'!AZ125","v":663.38778940864961},{"$f":"'Population 2016'!BA125*'Prevalence Rates'!BA125","v":295.66681244483675},{"$f":"'Population 2016'!BB125*'Prevalence Rates'!BB125","v":421.08386226831431},{"$f":"'Population 2016'!BC125*'Prevalence Rates'!BC125","v":67.839100000000002},123]
[null,"Male 45-49",{"$f":"'Population 2016'!C126*'Prevalence Rates'!C126","v":629.70964563106793},{"$f":"'Population 2016'!D126*'Prevalence Rates'!D126","v":312.50472463080069},{"$f":"'Population 2016'!E126*'Prevalence Rates'!E126","v":219.66083715798766},{"$f":"'Population 2016'!F126*'Prevalence Rates'!F126","v":282.28260105913506},{"$f":"'Population 2016'!G126*'Prevalence Rates'!G126","v":182.76599999999999},{"$f":"'Population 2016'!H126*'Prevalence Rates'!H126","v":1229.5790816416593},{"$f":"'Population 2016'!I126*'Prevalence Rates'!I126","v":165.429865842895},{"$f":"'Population 2016'!J126*'Prevalence Rates'!J126","v":354.88900000000001},{"$f":"'Population 2016'!K126*'Prevalence Rates'!K126","v":195.61099999999999},{"$f":"'Population 2016'!L126*'Prevalence Rates'!L126","v":512.22753618711386},{"$f":"'Population 2016'!M126*'Prevalence Rates'!M126","v":512.22753618711386},{"$f":"'Population 2016'!N126*'Prevalence Rates'!N126","v":380.64086849073254},{"$f":"'Population 2016'!O126*'Prevalence Rates'!O126","v":440.3310052956752},{"$f":"'Population 2016'!P126*'Prevalence Rates'!P126","v":178.93792762577229},{"$f":"'Population 2016'!Q126*'Prevalence Rates'!Q126","v":328.80738217122683},{"$f":"'Population 2016'!R126*'Prevalence Rates'!R126","v":60.071389232127096},{"$f":"'Population 2016'!S126*'Prevalence Rates'!S126","v":1990.0557686087327},{"$f":"'Population 2016'!T126*'Prevalence Rates'!T126","v":733.64935789938215},{"$f":"'Population 2016'!U126*'Prevalence Rates'!U126","v":86.245000000000005},{"$f":"'Population 2016'!V126*'Prevalence Rates'!V126","v":584.64266107678725},{"$f":"'Population 2016'!W126*'Prevalence Rates'!W126","v":1042.7261981465138},{"$f":"'Population 2016'!X126*'Prevalence Rates'!X126","v":1042.7261981465138},{"$f":"'Population 2016'!Y126*'Prevalence Rates'!Y126","v":838.9488812886143},{"$f":"'Population 2016'!Z126*'Prevalence Rates'!Z126","v":1536.8424624889672},{"$f":"'Population 2016'!AA126*'Prevalence Rates'!AA126","v":1682.4946907501451},{"$f":"'Population 2016'!AB126*'Prevalence Rates'!AB126","v":1024.3789514563107},{"$f":"'Population 2016'!AC126*'Prevalence Rates'!AC126","v":2649.6661465136799},{"$f":"'Population 2016'!AD126*'Prevalence Rates'!AD126","v":750.0430503089143},{"$f":"'Population 2016'!AE126*'Prevalence Rates'!AE126","v":567.4247572815533},{"$f":"'Population 2016'!AF126*'Prevalence Rates'!AF126","v":117.07299999999999},{"$f":"'Population 2016'!AG126*'Prevalence Rates'!AG126","v":218.51139721401438},{"$f":"'Population 2016'!AH126*'Prevalence Rates'!AH126","v":2242.02146337158},{"$f":"'Population 2016'!AI126*'Prevalence Rates'!AI126","v":1946.3853097969993},{"$f":"'Population 2016'!AJ126*'Prevalence Rates'!AJ126","v":376.17500000000001},{"$f":"'Population 2016'!AK126*'Prevalence Rates'!AK126","v":206.79170520741397},{"$f":"'Population 2016'!AL126*'Prevalence Rates'!AL126","v":463.03285436893208},{"$f":"'Population 2016'!AM126*'Prevalence Rates'!AM126","v":1175.6185825242719},{"$f":"'Population 2016'!AN126*'Prevalence Rates'!AN126","v":38.534999999999997},{"$f":"'Population 2016'!AO126*'Prevalence Rates'!AO126","v":38.534999999999997},{"$f":"'Population 2016'!AP126*'Prevalence Rates'!AP126","v":198.60708693733451},{"$f":"'Population 2016'!AQ126*'Prevalence Rates'!AQ126","v":408.63295939982351},{"$f":"'Population 2016'!AR126*'Prevalence Rates'!AR126","v":13464.495999999999},{"$f":"'Population 2016'!AS126*'Prevalence Rates'!AS126","v":165.429865842895},{"$f":"'Population 2016'!AT126*'Prevalence Rates'!AT126","v":4.7709999999999999},{"$f":"'Population 2016'!AU126*'Prevalence Rates'!AU126","v":4.7709999999999999},{"$f":"'Population 2016'!AV126*'Prevalence Rates'!AV126","v":304.40269196822589},{"$f":"'Population 2016'!AW126*'Prevalence Rates'!AW126","v":1066.8553954104148},{"$f":"'Population 2016'!AX126*'Prevalence Rates'!AX126","v":159.27799999999999},{"$f":"'Population 2016'!AY126*'Prevalence Rates'!AY126","v":830.51545727015002},{"$f":"'Population 2016'!AZ126*'Prevalence Rates'!AZ126","v":844.13384951456305},{"$f":"'Population 2016'!BA126*'Prevalence Rates'!BA126","v":391.85590909090905},{"$f":"'Population 2016'!BB126*'Prevalence Rates'!BB126","v":496.96302471315096},{"$f":"'Population 2016'!BC126*'Prevalence Rates'!BC126","v":86.245000000000005},124]
[null,"Male 50-54",{"$f":"'Population 2016'!C127*'Prevalence Rates'!C127","v":584.4635339805825},{"$f":"'Population 2016'!D127*'Prevalence Rates'!D127","v":301.55245624420724},{"$f":"'Population 2016'!E127*'Prevalence Rates'!E127","v":231.64874801412182},{"$f":"'Population 2016'!F127*'Prevalence Rates'!F127","v":282.70644880847311},{"$f":"'Population 2016'!G127*'Prevalence Rates'!G127","v":187.904},{"$f":"'Population 2016'!H127*'Prevalence Rates'!H127","v":1300.2006681376874},{"$f":"'Population 2016'!I127*'Prevalence Rates'!I127","v":187.32499514563111},{"$f":"'Population 2016'!J127*'Prevalence Rates'!J127","v":358.55899999999997},{"$f":"'Population 2016'!K127*'Prevalence Rates'!K127","v":182.76599999999999},{"$f":"'Population 2016'!L127*'Prevalence Rates'!L127","v":599.81048278905564},{"$f":"'Population 2016'!M127*'Prevalence Rates'!M127","v":599.81048278905564},{"$f":"'Population 2016'!N127*'Prevalence Rates'!N127","v":353.92922859664606},{"$f":"'Population 2016'!O127*'Prevalence Rates'!O127","v":460.87231597528682},{"$f":"'Population 2016'!P127*'Prevalence Rates'!P127","v":229.52108737864077},{"$f":"'Population 2016'!Q127*'Prevalence Rates'!Q127","v":355.50541747572817},{"$f":"'Population 2016'!R127*'Prevalence Rates'!R127","v":72.339489849955868},{"$f":"'Population 2016'!S127*'Prevalence Rates'!S127","v":2045.317036276731},{"$f":"'Population 2016'!T127*'Prevalence Rates'!T127","v":706.38430273609879},{"$f":"'Population 2016'!U127*'Prevalence Rates'!U127","v":95.052999999999997},{"$f":"'Population 2016'!V127*'Prevalence Rates'!V127","v":568.23163901147393},{"$f":"'Population 2016'!W127*'Prevalence Rates'!W127","v":1087.328359223301},{"$f":"'Population 2016'!X127*'Prevalence Rates'!X127","v":1087.328359223301},{"$f":"'Population 2016'!Y127*'Prevalence Rates'!Y127","v":827.04000661959401},{"$f":"'Population 2016'!Z127*'Prevalence Rates'!Z127","v":1485.6143804060016},{"$f":"'Population 2016'!AA127*'Prevalence Rates'!AA127","v":1734.2874258204788},{"$f":"'Population 2016'!AB127*'Prevalence Rates'!AB127","v":988.97592233009698},{"$f":"'Population 2016'!AC127*'Prevalence Rates'!AC127","v":2770.5889214474842},{"$f":"'Population 2016'!AD127*'Prevalence Rates'!AD127","v":826.68126654898492},{"$f":"'Population 2016'!AE127*'Prevalence Rates'!AE127","v":640.03925419240943},{"$f":"'Population 2016'!AF127*'Prevalence Rates'!AF127","v":153.773},{"$f":"'Population 2016'!AG127*'Prevalence Rates'!AG127","v":246.47474385049313},{"$f":"'Population 2016'!AH127*'Prevalence Rates'!AH127","v":2276.0180370697262},{"$f":"'Population 2016'!AI127*'Prevalence Rates'!AI127","v":1966.9044320388352},{"$f":"'Population 2016'!AJ127*'Prevalence Rates'!AJ127","v":408.10399999999998},{"$f":"'Population 2016'!AK127*'Prevalence Rates'!AK127","v":200.05710944395412},{"$f":"'Population 2016'!AL127*'Prevalence Rates'!AL127","v":469.56759223300975},{"$f":"'Population 2016'!AM127*'Prevalence Rates'!AM127","v":1197.5993883495146},{"$f":"'Population 2016'!AN127*'Prevalence Rates'!AN127","v":43.673000000000002},{"$f":"'Population 2016'!AO127*'Prevalence Rates'!AO127","v":43.673000000000002},{"$f":"'Population 2016'!AP127*'Prevalence Rates'!AP127","v":195.68161429832304},{"$f":"'Population 2016'!AQ127*'Prevalence Rates'!AQ127","v":431.356187113857},{"$f":"'Population 2016'!AR127*'Prevalence Rates'!AR127","v":13879.573},{"$f":"'Population 2016'!AS127*'Prevalence Rates'!AS127","v":187.32499514563111},{"$f":"'Population 2016'!AT127*'Prevalence Rates'!AT127","v":13.212},{"$f":"'Population 2016'!AU127*'Prevalence Rates'!AU127","v":13.212},{"$f":"'Population 2016'!AV127*'Prevalence Rates'!AV127","v":338.03194174757277},{"$f":"'Population 2016'!AW127*'Prevalence Rates'!AW127","v":1078.9748172992056},{"$f":"'Population 2016'!AX127*'Prevalence Rates'!AX127","v":175.79300000000001},{"$f":"'Population 2016'!AY127*'Prevalence Rates'!AY127","v":837.28596371528715},{"$f":"'Population 2016'!AZ127*'Prevalence Rates'!AZ127","v":816.36882568402461},{"$f":"'Population 2016'!BA127*'Prevalence Rates'!BA127","v":412.56889673433358},{"$f":"'Population 2016'!BB127*'Prevalence Rates'!BB127","v":493.10369417475732},{"$f":"'Population 2016'!BC127*'Prevalence Rates'!BC127","v":95.052999999999997},125]
[null,"Male 55-59",{"$f":"'Population 2016'!C128*'Prevalence Rates'!C128","v":444.58096601941742},{"$f":"'Population 2016'!D128*'Prevalence Rates'!D128","v":229.46309379873378},{"$f":"'Population 2016'!E128*'Prevalence Rates'!E128","v":176.40674854368933},{"$f":"'Population 2016'!F128*'Prevalence Rates'!F128","v":184.52898932038838},{"$f":"'Population 2016'!G128*'Prevalence Rates'!G128","v":153.81960000000001},{"$f":"'Population 2016'!H128*'Prevalence Rates'!H128","v":929.87082524271841},{"$f":"'Population 2016'!I128*'Prevalence Rates'!I128","v":140.25919514563108},{"$f":"'Population 2016'!J128*'Prevalence Rates'!J128","v":258.54180000000002},{"$f":"'Population 2016'!K128*'Prevalence Rates'!K128","v":127.14239999999999},{"$f":"'Population 2016'!L128*'Prevalence Rates'!L128","v":448.5856019417476},{"$f":"'Population 2016'!M128*'Prevalence Rates'!M128","v":448.5856019417476},{"$f":"'Population 2016'!N128*'Prevalence Rates'!N128","v":254.32738252427185},{"$f":"'Population 2016'!O128*'Prevalence Rates'!O128","v":328.08782912621359},{"$f":"'Population 2016'!P128*'Prevalence Rates'!P128","v":152.06269514563107},{"$f":"'Population 2016'!Q128*'Prevalence Rates'!Q128","v":258.0688834951456},{"$f":"'Population 2016'!R128*'Prevalence Rates'!R128","v":46.125891262135923},{"$f":"'Population 2016'!S128*'Prevalence Rates'!S128","v":1444.2204138663769},{"$f":"'Population 2016'!T128*'Prevalence Rates'!T128","v":469.42160679611646},{"$f":"'Population 2016'!U128*'Prevalence Rates'!U128","v":72.936599999999999},{"$f":"'Population 2016'!V128*'Prevalence Rates'!V128","v":401.07565339805825},{"$f":"'Population 2016'!W128*'Prevalence Rates'!W128","v":783.65395922330106},{"$f":"'Population 2016'!X128*'Prevalence Rates'!X128","v":783.65395922330106},{"$f":"'Population 2016'!Y128*'Prevalence Rates'!Y128","v":588.41283495145626},{"$f":"'Population 2016'!Z128*'Prevalence Rates'!Z128","v":1031.6420563106794},{"$f":"'Population 2016'!AA128*'Prevalence Rates'!AA128","v":1235.3405678346178},{"$f":"'Population 2016'!AB128*'Prevalence Rates'!AB128","v":743.64417087378638},{"$f":"'Population 2016'!AC128*'Prevalence Rates'!AC128","v":1946.6365514563104},{"$f":"'Population 2016'!AD128*'Prevalence Rates'!AD128","v":629.0418233009708},{"$f":"'Population 2016'!AE128*'Prevalence Rates'!AE128","v":475.30237864077662},{"$f":"'Population 2016'!AF128*'Prevalence Rates'!AF128","v":108.12779999999999},{"$f":"'Population 2016'!AG128*'Prevalence Rates'!AG128","v":183.03569860700716},{"$f":"'Population 2016'!AH128*'Prevalence Rates'!AH128","v":1645.1232233009712},{"$f":"'Population 2016'!AI128*'Prevalence Rates'!AI128","v":1366.357354368932},{"$f":"'Population 2016'!AJ128*'Prevalence Rates'!AJ128","v":297.70620000000002},{"$f":"'Population 2016'!AK128*'Prevalence Rates'!AK128","v":143.0625029126214},{"$f":"'Population 2016'!AL128*'Prevalence Rates'!AL128","v":329.90785631067962},{"$f":"'Population 2016'!AM128*'Prevalence Rates'!AM128","v":833.98349708737862},{"$f":"'Population 2016'!AN128*'Prevalence Rates'!AN128","v":31.218},{"$f":"'Population 2016'!AO128*'Prevalence Rates'!AO128","v":31.218},{"$f":"'Population 2016'!AP128*'Prevalence Rates'!AP128","v":129.45149999999998},{"$f":"'Population 2016'!AQ128*'Prevalence Rates'!AQ128","v":314.20767961165046},{"$f":"'Population 2016'!AR128*'Prevalence Rates'!AR128","v":9943.2168000000001},{"$f":"'Population 2016'!AS128*'Prevalence Rates'!AS128","v":140.25919514563108},{"$f":"'Population 2016'!AT128*'Prevalence Rates'!AT128","v":7.3788},{"$f":"'Population 2016'!AU128*'Prevalence Rates'!AU128","v":7.3788},{"$f":"'Population 2016'!AV128*'Prevalence Rates'!AV128","v":246.60291262135922},{"$f":"'Population 2016'!AW128*'Prevalence Rates'!AW128","v":810.80432621359228},{"$f":"'Population 2016'!AX128*'Prevalence Rates'!AX128","v":131.39939999999999},{"$f":"'Population 2016'!AY128*'Prevalence Rates'!AY128","v":589.07351159240068},{"$f":"'Population 2016'!AZ128*'Prevalence Rates'!AZ128","v":556.44663495145619},{"$f":"'Population 2016'!BA128*'Prevalence Rates'!BA128","v":311.19308737864077},{"$f":"'Population 2016'!BB128*'Prevalence Rates'!BB128","v":341.82958543689318},{"$f":"'Population 2016'!BC128*'Prevalence Rates'!BC128","v":72.936599999999999},126]
[null,"Male 60-64",{"$f":"'Population 2016'!C129*'Prevalence Rates'!C129","v":363.68969999999996},{"$f":"'Population 2016'!D129*'Prevalence Rates'!D129","v":189.3748072344865},{"$f":"'Population 2016'!E129*'Prevalence Rates'!E129","v":148.32344854368932},{"$f":"'Population 2016'!F129*'Prevalence Rates'!F129","v":183.54570873786409},{"$f":"'Population 2016'!G129*'Prevalence Rates'!G129","v":143.31899999999999},{"$f":"'Population 2016'!H129*'Prevalence Rates'!H129","v":816.51514368932033},{"$f":"'Population 2016'!I129*'Prevalence Rates'!I129","v":134.19732233009711},{"$f":"'Population 2016'!J129*'Prevalence Rates'!J129","v":217.39079999999998},{"$f":"'Population 2016'!K129*'Prevalence Rates'!K129","v":116.9256},{"$f":"'Population 2016'!L129*'Prevalence Rates'!L129","v":405.77939417475733},{"$f":"'Population 2016'!M129*'Prevalence Rates'!M129","v":405.77939417475733},{"$f":"'Population 2016'!N129*'Prevalence Rates'!N129","v":211.40156796116506},{"$f":"'Population 2016'!O129*'Prevalence Rates'!O129","v":275.2356524271845},{"$f":"'Population 2016'!P129*'Prevalence Rates'!P129","v":120.28110291262135},{"$f":"'Population 2016'!Q129*'Prevalence Rates'!Q129","v":203.46694077669903},{"$f":"'Population 2016'!R129*'Prevalence Rates'!R129","v":42.036716504854375},{"$f":"'Population 2016'!S129*'Prevalence Rates'!S129","v":1229.3804776193713},{"$f":"'Population 2016'!T129*'Prevalence Rates'!T129","v":371.75670873786407},{"$f":"'Population 2016'!U129*'Prevalence Rates'!U129","v":73.504199999999997},{"$f":"'Population 2016'!V129*'Prevalence Rates'!V129","v":330.21983592233011},{"$f":"'Population 2016'!W129*'Prevalence Rates'!W129","v":705.35070873786412},{"$f":"'Population 2016'!X129*'Prevalence Rates'!X129","v":705.35070873786412},{"$f":"'Population 2016'!Y129*'Prevalence Rates'!Y129","v":488.32449029126212},{"$f":"'Population 2016'!Z129*'Prevalence Rates'!Z129","v":821.2523242718446},{"$f":"'Population 2016'!AA129*'Prevalence Rates'!AA129","v":1038.2571035175308},{"$f":"'Population 2016'!AB129*'Prevalence Rates'!AB129","v":610.3298097087378},{"$f":"'Population 2016'!AC129*'Prevalence Rates'!AC129","v":1585.087875728155},{"$f":"'Population 2016'!AD129*'Prevalence Rates'!AD129","v":565.26522524271843},{"$f":"'Population 2016'!AE129*'Prevalence Rates'!AE129","v":421.60456310679609},{"$f":"'Population 2016'!AF129*'Prevalence Rates'!AF129","v":81.450599999999994},{"$f":"'Population 2016'!AG129*'Prevalence Rates'!AG129","v":162.35703672435625},{"$f":"'Population 2016'!AH129*'Prevalence Rates'!AH129","v":1428.0320038834952},{"$f":"'Population 2016'!AI129*'Prevalence Rates'!AI129","v":1114.2423844660195},{"$f":"'Population 2016'!AJ129*'Prevalence Rates'!AJ129","v":261.37979999999999},{"$f":"'Population 2016'!AK129*'Prevalence Rates'!AK129","v":114.57253980582527},{"$f":"'Population 2016'!AL129*'Prevalence Rates'!AL129","v":305.72423883495145},{"$f":"'Population 2016'!AM129*'Prevalence Rates'!AM129","v":747.8984155339806},{"$f":"'Population 2016'!AN129*'Prevalence Rates'!AN129","v":30.934200000000001},{"$f":"'Population 2016'!AO129*'Prevalence Rates'!AO129","v":30.934200000000001},{"$f":"'Population 2016'!AP129*'Prevalence Rates'!AP129","v":118.6429281553398},{"$f":"'Population 2016'!AQ129*'Prevalence Rates'!AQ129","v":274.89449126213594},{"$f":"'Population 2016'!AR129*'Prevalence Rates'!AR129","v":8508.3240000000005},{"$f":"'Population 2016'!AS129*'Prevalence Rates'!AS129","v":134.19732233009711},{"$f":"'Population 2016'!AT129*'Prevalence Rates'!AT129","v":5.9597999999999995},{"$f":"'Population 2016'!AU129*'Prevalence Rates'!AU129","v":5.9597999999999995},{"$f":"'Population 2016'!AV129*'Prevalence Rates'!AV129","v":216.56219417475728},{"$f":"'Population 2016'!AW129*'Prevalence Rates'!AW129","v":680.40085631067961},{"$f":"'Population 2016'!AX129*'Prevalence Rates'!AX129","v":100.4652},{"$f":"'Population 2016'!AY129*'Prevalence Rates'!AY129","v":531.21328290135125},{"$f":"'Population 2016'!AZ129*'Prevalence Rates'!AZ129","v":503.06831359223293},{"$f":"'Population 2016'!BA129*'Prevalence Rates'!BA129","v":254.31535922330093},{"$f":"'Population 2016'!BB129*'Prevalence Rates'!BB129","v":280.07528155339804},{"$f":"'Population 2016'!BC129*'Prevalence Rates'!BC129","v":73.504199999999997},127]
[null,"Male 65-69",{"$f":"'Population 2016'!C130*'Prevalence Rates'!C130","v":255.42410097087381},{"$f":"'Population 2016'!D130*'Prevalence Rates'!D130","v":145.12621050337759},{"$f":"'Population 2016'!E130*'Prevalence Rates'!E130","v":133.44683353927627},{"$f":"'Population 2016'!F130*'Prevalence Rates'!F130","v":150.83343971756403},{"$f":"'Population 2016'!G130*'Prevalence Rates'!G130","v":119.46480000000001},{"$f":"'Population 2016'!H130*'Prevalence Rates'!H130","v":670.15355692850846},{"$f":"'Population 2016'!I130*'Prevalence Rates'!I130","v":106.32870503089144},{"$f":"'Population 2016'!J130*'Prevalence Rates'!J130","v":174.72},{"$f":"'Population 2016'!K130*'Prevalence Rates'!K130","v":88.23360000000001},{"$f":"'Population 2016'!L130*'Prevalence Rates'!L130","v":346.79115304501329},{"$f":"'Population 2016'!M130*'Prevalence Rates'!M130","v":346.79115304501329},{"$f":"'Population 2016'!N130*'Prevalence Rates'!N130","v":180.81669479258605},{"$f":"'Population 2016'!O130*'Prevalence Rates'!O130","v":213.14278623124451},{"$f":"'Population 2016'!P130*'Prevalence Rates'!P130","v":83.344369991173878},{"$f":"'Population 2016'!Q130*'Prevalence Rates'!Q130","v":159.92402647837602},{"$f":"'Population 2016'!R130*'Prevalence Rates'!R130","v":25.42654051191527},{"$f":"'Population 2016'!S130*'Prevalence Rates'!S130","v":948.52746290186224},{"$f":"'Population 2016'!T130*'Prevalence Rates'!T130","v":264.45387113857021},{"$f":"'Population 2016'!U130*'Prevalence Rates'!U130","v":55.692},{"$f":"'Population 2016'!V130*'Prevalence Rates'!V130","v":284.43833857016773},{"$f":"'Population 2016'!W130*'Prevalence Rates'!W130","v":562.17576804942632},{"$f":"'Population 2016'!X130*'Prevalence Rates'!X130","v":562.17576804942632},{"$f":"'Population 2016'!Y130*'Prevalence Rates'!Y130","v":409.92215004413066},{"$f":"'Population 2016'!Z130*'Prevalence Rates'!Z130","v":524.65964060017654},{"$f":"'Population 2016'!AA130*'Prevalence Rates'!AA130","v":722.5532971179673},{"$f":"'Population 2016'!AB130*'Prevalence Rates'!AB130","v":470.36998834951459},{"$f":"'Population 2016'!AC130*'Prevalence Rates'!AC130","v":1056.9064162400707},{"$f":"'Population 2016'!AD130*'Prevalence Rates'!AD130","v":463.71023406884376},{"$f":"'Population 2016'!AE130*'Prevalence Rates'!AE130","v":343.81133274492498},{"$f":"'Population 2016'!AF130*'Prevalence Rates'!AF130","v":59.186400000000006},{"$f":"'Population 2016'!AG130*'Prevalence Rates'!AG130","v":132.39939521854254},{"$f":"'Population 2016'!AH130*'Prevalence Rates'!AH130","v":1034.9199166813769},{"$f":"'Population 2016'!AI130*'Prevalence Rates'!AI130","v":841.77229620476612},{"$f":"'Population 2016'!AJ130*'Prevalence Rates'!AJ130","v":192.41040000000001},{"$f":"'Population 2016'!AK130*'Prevalence Rates'!AK130","v":90.527474669020322},{"$f":"'Population 2016'!AL130*'Prevalence Rates'!AL130","v":245.27168155339808},{"$f":"'Population 2016'!AM130*'Prevalence Rates'!AM130","v":540.31629902912618},{"$f":"'Population 2016'!AN130*'Prevalence Rates'!AN130","v":26.426400000000001},{"$f":"'Population 2016'!AO130*'Prevalence Rates'!AO130","v":26.426400000000001},{"$f":"'Population 2016'!AP130*'Prevalence Rates'!AP130","v":83.951764872021187},{"$f":"'Population 2016'!AQ130*'Prevalence Rates'!AQ130","v":192.9819410414828},{"$f":"'Population 2016'!AR130*'Prevalence Rates'!AR130","v":6492.3768},{"$f":"'Population 2016'!AS130*'Prevalence Rates'!AS130","v":106.32870503089144},{"$f":"'Population 2016'!AT130*'Prevalence Rates'!AT130","v":5.0232000000000001},{"$f":"'Population 2016'!AU130*'Prevalence Rates'!AU130","v":5.0232000000000001},{"$f":"'Population 2016'!AV130*'Prevalence Rates'!AV130","v":191.15493733451015},{"$f":"'Population 2016'!AW130*'Prevalence Rates'!AW130","v":494.75773133274498},{"$f":"'Population 2016'!AX130*'Prevalence Rates'!AX130","v":86.486400000000003},{"$f":"'Population 2016'!AY130*'Prevalence Rates'!AY130","v":424.70815034705203},{"$f":"'Population 2016'!AZ130*'Prevalence Rates'!AZ130","v":403.89157281553395},{"$f":"'Population 2016'!BA130*'Prevalence Rates'!BA130","v":176.84327978817299},{"$f":"'Population 2016'!BB130*'Prevalence Rates'!BB130","v":225.9569676963813},{"$f":"'Population 2016'!BC130*'Prevalence Rates'!BC130","v":55.692},128]
[null,"Male 70-74",{"$f":"'Population 2016'!C131*'Prevalence Rates'!C131","v":166.00096310679612},{"$f":"'Population 2016'!D131*'Prevalence Rates'!D131","v":95.852820470194899},{"$f":"'Population 2016'!E131*'Prevalence Rates'!E131","v":90.433310150044136},{"$f":"'Population 2016'!F131*'Prevalence Rates'!F131","v":102.40531191526922},{"$f":"'Population 2016'!G131*'Prevalence Rates'!G131","v":94.5672},{"$f":"'Population 2016'!H131*'Prevalence Rates'!H131","v":495.0049493380406},{"$f":"'Population 2016'!I131*'Prevalence Rates'!I131","v":76.24781571050309},{"$f":"'Population 2016'!J131*'Prevalence Rates'!J131","v":115.97040000000001},{"$f":"'Population 2016'!K131*'Prevalence Rates'!K131","v":62.680800000000005},{"$f":"'Population 2016'!L131*'Prevalence Rates'!L131","v":261.95480070609005},{"$f":"'Population 2016'!M131*'Prevalence Rates'!M131","v":261.95480070609005},{"$f":"'Population 2016'!N131*'Prevalence Rates'!N131","v":123.69054121800529},{"$f":"'Population 2016'!O131*'Prevalence Rates'!O131","v":160.46829161518096},{"$f":"'Population 2016'!P131*'Prevalence Rates'!P131","v":60.01547184466019},{"$f":"'Population 2016'!Q131*'Prevalence Rates'!Q131","v":114.14185419240954},{"$f":"'Population 2016'!R131*'Prevalence Rates'!R131","v":15.230749514563108},{"$f":"'Population 2016'!S131*'Prevalence Rates'!S131","v":698.85388463156926},{"$f":"'Population 2016'!T131*'Prevalence Rates'!T131","v":192.27922506619595},{"$f":"'Population 2016'!U131*'Prevalence Rates'!U131","v":35.599200000000003},{"$f":"'Population 2016'!V131*'Prevalence Rates'!V131","v":199.39168225948811},{"$f":"'Population 2016'!W131*'Prevalence Rates'!W131","v":404.59438517210947},{"$f":"'Population 2016'!X131*'Prevalence Rates'!X131","v":404.59438517210947},{"$f":"'Population 2016'!Y131*'Prevalence Rates'!Y131","v":281.79816593115623},{"$f":"'Population 2016'!Z131*'Prevalence Rates'!Z131","v":388.3711011473963},{"$f":"'Population 2016'!AA131*'Prevalence Rates'!AA131","v":564.02032790551493},{"$f":"'Population 2016'!AB131*'Prevalence Rates'!AB131","v":320.83172038834954},{"$f":"'Population 2016'!AC131*'Prevalence Rates'!AC131","v":812.42795269196824},{"$f":"'Population 2016'!AD131*'Prevalence Rates'!AD131","v":349.11384571932922},{"$f":"'Population 2016'!AE131*'Prevalence Rates'!AE131","v":253.8442188879082},{"$f":"'Population 2016'!AF131*'Prevalence Rates'!AF131","v":47.174400000000006},{"$f":"'Population 2016'!AG131*'Prevalence Rates'!AG131","v":97.753674354349755},{"$f":"'Population 2016'!AH131*'Prevalence Rates'!AH131","v":819.05088932038836},{"$f":"'Population 2016'!AI131*'Prevalence Rates'!AI131","v":630.50547537511034},{"$f":"'Population 2016'!AJ131*'Prevalence Rates'!AJ131","v":148.512},{"$f":"'Population 2016'!AK131*'Prevalence Rates'!AK131","v":70.253092321270969},{"$f":"'Population 2016'!AL131*'Prevalence Rates'!AL131","v":169.44023300970875},{"$f":"'Population 2016'!AM131*'Prevalence Rates'!AM131","v":423.01217475728157},{"$f":"'Population 2016'!AN131*'Prevalence Rates'!AN131","v":21.403200000000002},{"$f":"'Population 2016'!AO131*'Prevalence Rates'!AO131","v":21.403200000000002},{"$f":"'Population 2016'!AP131*'Prevalence Rates'!AP131","v":56.290238658428954},{"$f":"'Population 2016'!AQ131*'Prevalence Rates'!AQ131","v":161.35307184466021},{"$f":"'Population 2016'!AR131*'Prevalence Rates'!AR131","v":4816.1568000000007},{"$f":"'Population 2016'!AS131*'Prevalence Rates'!AS131","v":76.24781571050309},{"$f":"'Population 2016'!AT131*'Prevalence Rates'!AT131","v":5.2416},{"$f":"'Population 2016'!AU131*'Prevalence Rates'!AU131","v":5.2416},{"$f":"'Population 2016'!AV131*'Prevalence Rates'!AV131","v":146.12656310679611},{"$f":"'Population 2016'!AW131*'Prevalence Rates'!AW131","v":396.05346090026484},{"$f":"'Population 2016'!AX131*'Prevalence Rates'!AX131","v":53.2896},{"$f":"'Population 2016'!AY131*'Prevalence Rates'!AY131","v":298.25648991776677},{"$f":"'Population 2016'!AZ131*'Prevalence Rates'!AZ131","v":274.23319858781991},{"$f":"'Population 2016'!BA131*'Prevalence Rates'!BA131","v":148.41754633715797},{"$f":"'Population 2016'!BB131*'Prevalence Rates'!BB131","v":175.9602344218888},{"$f":"'Population 2016'!BC131*'Prevalence Rates'!BC131","v":35.599200000000003},129]
[null,"Male 75-79",{"$f":"'Population 2016'!C132*'Prevalence Rates'!C132","v":63.429160194174756},{"$f":"'Population 2016'!D132*'Prevalence Rates'!D132","v":35.350460599518193},{"$f":"'Population 2016'!E132*'Prevalence Rates'!E132","v":31.476191968225955},{"$f":"'Population 2016'!F132*'Prevalence Rates'!F132","v":35.168391659311567},{"$f":"'Population 2016'!G132*'Prevalence Rates'!G132","v":32.2605},{"$f":"'Population 2016'!H132*'Prevalence Rates'!H132","v":174.88867188879084},{"$f":"'Population 2016'!I132*'Prevalence Rates'!I132","v":25.907800088261258},{"$f":"'Population 2016'!J132*'Prevalence Rates'!J132","v":42.511500000000005},{"$f":"'Population 2016'!K132*'Prevalence Rates'!K132","v":21.507000000000001},{"$f":"'Population 2016'!L132*'Prevalence Rates'!L132","v":95.416411959399838},{"$f":"'Population 2016'!M132*'Prevalence Rates'!M132","v":95.416411959399838},{"$f":"'Population 2016'!N132*'Prevalence Rates'!N132","v":50.974788614298326},{"$f":"'Population 2016'!O132*'Prevalence Rates'!O132","v":58.807579435127984},{"$f":"'Population 2016'!P132*'Prevalence Rates'!P132","v":24.413782877316859},{"$f":"'Population 2016'!Q132*'Prevalence Rates'!Q132","v":44.539639673433363},{"$f":"'Population 2016'!R132*'Prevalence Rates'!R132","v":5.6764315975286852},{"$f":"'Population 2016'!S132*'Prevalence Rates'!S132","v":239.15843697765951},{"$f":"'Population 2016'!T132*'Prevalence Rates'!T132","v":64.364794792586054},{"$f":"'Population 2016'!U132*'Prevalence Rates'!U132","v":14.572500000000002},{"$f":"'Population 2016'!V132*'Prevalence Rates'!V132","v":67.878524933804059},{"$f":"'Population 2016'!W132*'Prevalence Rates'!W132","v":140.40533009708739},{"$f":"'Population 2016'!X132*'Prevalence Rates'!X132","v":140.40533009708739},{"$f":"'Population 2016'!Y132*'Prevalence Rates'!Y132","v":98.521045895851728},{"$f":"'Population 2016'!Z132*'Prevalence Rates'!Z132","v":133.32872859664607},{"$f":"'Population 2016'!AA132*'Prevalence Rates'!AA132","v":194.98147599855412},{"$f":"'Population 2016'!AB132*'Prevalence Rates'!AB132","v":114.96809708737865},{"$f":"'Population 2016'!AC132*'Prevalence Rates'!AC132","v":289.17885966460722},{"$f":"'Population 2016'!AD132*'Prevalence Rates'!AD132","v":113.56287113857017},{"$f":"'Population 2016'!AE132*'Prevalence Rates'!AE132","v":80.952173433362745},{"$f":"'Population 2016'!AF132*'Prevalence Rates'!AF132","v":15.276000000000002},{"$f":"'Population 2016'!AG132*'Prevalence Rates'!AG132","v":31.174128899804295},{"$f":"'Population 2016'!AH132*'Prevalence Rates'!AH132","v":275.7395348631951},{"$f":"'Population 2016'!AI132*'Prevalence Rates'!AI132","v":214.41377846425422},{"$f":"'Population 2016'!AJ132*'Prevalence Rates'!AJ132","v":47.436},{"$f":"'Population 2016'!AK132*'Prevalence Rates'!AK132","v":22.456028684907331},{"$f":"'Population 2016'!AL132*'Prevalence Rates'!AL132","v":59.819941747572827},{"$f":"'Population 2016'!AM132*'Prevalence Rates'!AM132","v":144.55949271844662},{"$f":"'Population 2016'!AN132*'Prevalence Rates'!AN132","v":8.1405000000000012},{"$f":"'Population 2016'!AO132*'Prevalence Rates'!AO132","v":8.1405000000000012},{"$f":"'Population 2016'!AP132*'Prevalence Rates'!AP132","v":20.562007281553399},{"$f":"'Population 2016'!AQ132*'Prevalence Rates'!AQ132","v":62.120265225066206},{"$f":"'Population 2016'!AR132*'Prevalence Rates'!AR132","v":1677.8475000000001},{"$f":"'Population 2016'!AS132*'Prevalence Rates'!AS132","v":25.907800088261258},{"$f":"'Population 2016'!AT132*'Prevalence Rates'!AT132","v":0.80400000000000005},{"$f":"'Population 2016'!AU132*'Prevalence Rates'!AU132","v":0.80400000000000005},{"$f":"'Population 2016'!AV132*'Prevalence Rates'!AV132","v":50.014938217122683},{"$f":"'Population 2016'!AW132*'Prevalence Rates'!AW132","v":131.23508208296559},{"$f":"'Population 2016'!AX132*'Prevalence Rates'!AX132","v":21.0045},{"$f":"'Population 2016'!AY132*'Prevalence Rates'!AY132","v":107.24959025312953},{"$f":"'Population 2016'!AZ132*'Prevalence Rates'!AZ132","v":103.48838923212709},{"$f":"'Population 2016'!BA132*'Prevalence Rates'!BA132","v":49.659684466019421},{"$f":"'Population 2016'!BB132*'Prevalence Rates'!BB132","v":58.451749117387472},{"$f":"'Population 2016'!BC132*'Prevalence Rates'!BC132","v":14.572500000000002},130]
[null,"Male 80-84",{"$f":"'Population 2016'!C133*'Prevalence Rates'!C133","v":51.266220873786409},{"$f":"'Population 2016'!D133*'Prevalence Rates'!D133","v":28.752241143725769},{"$f":"'Population 2016'!E133*'Prevalence Rates'!E133","v":25.876133274492503},{"$f":"'Population 2016'!F133*'Prevalence Rates'!F133","v":26.347276919682265},{"$f":"'Population 2016'!G133*'Prevalence Rates'!G133","v":21.205500000000001},{"$f":"'Population 2016'!H133*'Prevalence Rates'!H133","v":108.61286915269197},{"$f":"'Population 2016'!I133*'Prevalence Rates'!I133","v":16.358925198587823},{"$f":"'Population 2016'!J133*'Prevalence Rates'!J133","v":27.235500000000002},{"$f":"'Population 2016'!K133*'Prevalence Rates'!K133","v":12.763500000000001},{"$f":"'Population 2016'!L133*'Prevalence Rates'!L133","v":60.530759708737868},{"$f":"'Population 2016'!M133*'Prevalence Rates'!M133","v":60.530759708737868},{"$f":"'Population 2016'!N133*'Prevalence Rates'!N133","v":33.945094660194172},{"$f":"'Population 2016'!O133*'Prevalence Rates'!O133","v":36.51183627537511},{"$f":"'Population 2016'!P133*'Prevalence Rates'!P133","v":17.487887025595764},{"$f":"'Population 2016'!Q133*'Prevalence Rates'!Q133","v":31.168127978817299},{"$f":"'Population 2016'!R133*'Prevalence Rates'!R133","v":4.7496672550750221},{"$f":"'Population 2016'!S133*'Prevalence Rates'!S133","v":162.60399933468662},{"$f":"'Population 2016'!T133*'Prevalence Rates'!T133","v":46.85757060900265},{"$f":"'Population 2016'!U133*'Prevalence Rates'!U133","v":8.9444999999999997},{"$f":"'Population 2016'!V133*'Prevalence Rates'!V133","v":49.153414607237423},{"$f":"'Population 2016'!W133*'Prevalence Rates'!W133","v":96.611191085613427},{"$f":"'Population 2016'!X133*'Prevalence Rates'!X133","v":96.611191085613427},{"$f":"'Population 2016'!Y133*'Prevalence Rates'!Y133","v":68.312502206531335},{"$f":"'Population 2016'!Z133*'Prevalence Rates'!Z133","v":94.30856134157105},{"$f":"'Population 2016'!AA133*'Prevalence Rates'!AA133","v":133.65042836271076},{"$f":"'Population 2016'!AB133*'Prevalence Rates'!AB133","v":91.363281553398068},{"$f":"'Population 2016'!AC133*'Prevalence Rates'!AC133","v":201.59466195939982},{"$f":"'Population 2016'!AD133*'Prevalence Rates'!AD133","v":74.252646513680503},{"$f":"'Population 2016'!AE133*'Prevalence Rates'!AE133","v":52.809068843777581},{"$f":"'Population 2016'!AF133*'Prevalence Rates'!AF133","v":10.753500000000001},{"$f":"'Population 2016'!AG133*'Prevalence Rates'!AG133","v":20.336411604436091},{"$f":"'Population 2016'!AH133*'Prevalence Rates'!AH133","v":186.00181641659313},{"$f":"'Population 2016'!AI133*'Prevalence Rates'!AI133","v":146.36148521624008},{"$f":"'Population 2016'!AJ133*'Prevalence Rates'!AJ133","v":29.547000000000001},{"$f":"'Population 2016'!AK133*'Prevalence Rates'!AK133","v":16.05551809355693},{"$f":"'Population 2016'!AL133*'Prevalence Rates'!AL133","v":37.323553398058259},{"$f":"'Population 2016'!AM133*'Prevalence Rates'!AM133","v":97.279121359223311},{"$f":"'Population 2016'!AN133*'Prevalence Rates'!AN133","v":3.5175000000000001},{"$f":"'Population 2016'!AO133*'Prevalence Rates'!AO133","v":3.5175000000000001},{"$f":"'Population 2016'!AP133*'Prevalence Rates'!AP133","v":13.35195278022948},{"$f":"'Population 2016'!AQ133*'Prevalence Rates'!AQ133","v":43.558012797881737},{"$f":"'Population 2016'!AR133*'Prevalence Rates'!AR133","v":1138.9665},{"$f":"'Population 2016'!AS133*'Prevalence Rates'!AS133","v":16.358925198587823},{"$f":"'Population 2016'!AT133*'Prevalence Rates'!AT133","v":0.60299999999999998},{"$f":"'Population 2016'!AU133*'Prevalence Rates'!AU133","v":0.60299999999999998},{"$f":"'Population 2016'!AV133*'Prevalence Rates'!AV133","v":30.961628420123567},{"$f":"'Population 2016'!AW133*'Prevalence Rates'!AW133","v":88.754361871138585},{"$f":"'Population 2016'!AX133*'Prevalence Rates'!AX133","v":14.472000000000001},{"$f":"'Population 2016'!AY133*'Prevalence Rates'!AY133","v":73.781633011018187},{"$f":"'Population 2016'!AZ133*'Prevalence Rates'!AZ133","v":71.174667696381292},{"$f":"'Population 2016'!BA133*'Prevalence Rates'!BA133","v":30.675562665489849},{"$f":"'Population 2016'!BB133*'Prevalence Rates'!BB133","v":38.77814232127097},{"$f":"'Population 2016'!BC133*'Prevalence Rates'!BC133","v":8.9444999999999997},131]
[null,"Male 85-89",{"$f":"'Population 2016'!C134*'Prevalence Rates'!C134","v":26.258308252427184},{"$f":"'Population 2016'!D134*'Prevalence Rates'!D134","v":13.356395746876784},{"$f":"'Population 2016'!E134*'Prevalence Rates'!E134","v":9.9449318181818196},{"$f":"'Population 2016'!F134*'Prevalence Rates'!F134","v":14.160210503089147},{"$f":"'Population 2016'!G134*'Prevalence Rates'!G134","v":10.452},{"$f":"'Population 2016'!H134*'Prevalence Rates'!H134","v":57.494781553398063},{"$f":"'Population 2016'!I134*'Prevalence Rates'!I134","v":11.177365180935572},{"$f":"'Population 2016'!J134*'Prevalence Rates'!J134","v":12.763500000000001},{"$f":"'Population 2016'!K134*'Prevalence Rates'!K134","v":6.2310000000000008},{"$f":"'Population 2016'!L134*'Prevalence Rates'!L134","v":29.486682259488088},{"$f":"'Population 2016'!M134*'Prevalence Rates'!M134","v":29.486682259488088},{"$f":"'Population 2016'!N134*'Prevalence Rates'!N134","v":16.572520962047662},{"$f":"'Population 2016'!O134*'Prevalence Rates'!O134","v":19.534343777581643},{"$f":"'Population 2016'!P134*'Prevalence Rates'!P134","v":9.955975286849073},{"$f":"'Population 2016'!Q134*'Prevalence Rates'!Q134","v":14.429688879082082},{"$f":"'Population 2016'!R134*'Prevalence Rates'!R134","v":1.8535286849073258},{"$f":"'Population 2016'!S134*'Prevalence Rates'!S134","v":81.242655142038672},{"$f":"'Population 2016'!T134*'Prevalence Rates'!T134","v":23.342965578111212},{"$f":"'Population 2016'!U134*'Prevalence Rates'!U134","v":4.9245000000000001},{"$f":"'Population 2016'!V134*'Prevalence Rates'!V134","v":23.687264563106798},{"$f":"'Population 2016'!W134*'Prevalence Rates'!W134","v":47.315275816416602},{"$f":"'Population 2016'!X134*'Prevalence Rates'!X134","v":47.315275816416602},{"$f":"'Population 2016'!Y134*'Prevalence Rates'!Y134","v":32.6114960282436},{"$f":"'Population 2016'!Z134*'Prevalence Rates'!Z134","v":46.682737864077673},{"$f":"'Population 2016'!AA134*'Prevalence Rates'!AA134","v":63.226798392761246},{"$f":"'Population 2016'!AB134*'Prevalence Rates'!AB134","v":42.783728155339809},{"$f":"'Population 2016'!AC134*'Prevalence Rates'!AC134","v":96.428907325684023},{"$f":"'Population 2016'!AD134*'Prevalence Rates'!AD134","v":38.77756575463372},{"$f":"'Population 2016'!AE134*'Prevalence Rates'!AE134","v":28.251765225066194},{"$f":"'Population 2016'!AF134*'Prevalence Rates'!AF134","v":4.9245000000000001},{"$f":"'Population 2016'!AG134*'Prevalence Rates'!AG134","v":10.87956176369009},{"$f":"'Population 2016'!AH134*'Prevalence Rates'!AH134","v":87.050385701676973},{"$f":"'Population 2016'!AI134*'Prevalence Rates'!AI134","v":70.282053839364536},{"$f":"'Population 2016'!AJ134*'Prevalence Rates'!AJ134","v":15.778500000000001},{"$f":"'Population 2016'!AK134*'Prevalence Rates'!AK134","v":7.8107925860547232},{"$f":"'Population 2016'!AL134*'Prevalence Rates'!AL134","v":17.383572815533984},{"$f":"'Population 2016'!AM134*'Prevalence Rates'!AM134","v":43.396973300970878},{"$f":"'Population 2016'!AN134*'Prevalence Rates'!AN134","v":1.6080000000000001},{"$f":"'Population 2016'!AO134*'Prevalence Rates'!AO134","v":1.6080000000000001},{"$f":"'Population 2016'!AP134*'Prevalence Rates'!AP134","v":7.2100545013239188},{"$f":"'Population 2016'!AQ134*'Prevalence Rates'!AQ134","v":18.351317740511917},{"$f":"'Population 2016'!AR134*'Prevalence Rates'!AR134","v":559.58400000000006},{"$f":"'Population 2016'!AS134*'Prevalence Rates'!AS134","v":11.177365180935572},{"$f":"'Population 2016'!AT134*'Prevalence Rates'!AT134","v":0.10050000000000001},{"$f":"'Population 2016'!AU134*'Prevalence Rates'!AU134","v":0.10050000000000001},{"$f":"'Population 2016'!AV134*'Prevalence Rates'!AV134","v":17.703700353045011},{"$f":"'Population 2016'!AW134*'Prevalence Rates'!AW134","v":43.618596646072376},{"$f":"'Population 2016'!AX134*'Prevalence Rates'!AX134","v":6.5325000000000006},{"$f":"'Population 2016'!AY134*'Prevalence Rates'!AY134","v":36.985895929492358},{"$f":"'Population 2016'!AZ134*'Prevalence Rates'!AZ134","v":36.748938217122685},{"$f":"'Population 2016'!BA134*'Prevalence Rates'!BA134","v":14.816875551632833},{"$f":"'Population 2016'!BB134*'Prevalence Rates'!BB134","v":16.990842233009712},{"$f":"'Population 2016'!BC134*'Prevalence Rates'!BC134","v":4.9245000000000001},132]
[null,"Male 90+",{"$f":"'Population 2016'!C135*'Prevalence Rates'!C135","v":10.571526699029127},{"$f":"'Population 2016'!D135*'Prevalence Rates'!D135","v":5.9583921146246723},{"$f":"'Population 2016'!E135*'Prevalence Rates'!E135","v":5.4069532215357468},{"$f":"'Population 2016'!F135*'Prevalence Rates'!F135","v":7.8925763459841152},{"$f":"'Population 2016'!G135*'Prevalence Rates'!G135","v":3.5175000000000001},{"$f":"'Population 2016'!H135*'Prevalence Rates'!H135","v":22.37069682259488},{"$f":"'Population 2016'!I135*'Prevalence Rates'!I135","v":4.1452480141218011},{"$f":"'Population 2016'!J135*'Prevalence Rates'!J135","v":3.7185000000000001},{"$f":"'Population 2016'!K135*'Prevalence Rates'!K135","v":2.0100000000000002},{"$f":"'Population 2016'!L135*'Prevalence Rates'!L135","v":12.87446690203001},{"$f":"'Population 2016'!M135*'Prevalence Rates'!M135","v":12.87446690203001},{"$f":"'Population 2016'!N135*'Prevalence Rates'!N135","v":7.6576476169461607},{"$f":"'Population 2016'!O135*'Prevalence Rates'!O135","v":7.1591835834068851},{"$f":"'Population 2016'!P135*'Prevalence Rates'!P135","v":5.5407166813768756},{"$f":"'Population 2016'!Q135*'Prevalence Rates'!Q135","v":6.4452610326566635},{"$f":"'Population 2016'!R135*'Prevalence Rates'!R135","v":0.98468711385701679},{"$f":"'Population 2016'!S135*'Prevalence Rates'!S135","v":35.488026132168827},{"$f":"'Population 2016'!T135*'Prevalence Rates'!T135","v":12.443860326566638},{"$f":"'Population 2016'!U135*'Prevalence Rates'!U135","v":0.90450000000000008},{"$f":"'Population 2016'!V135*'Prevalence Rates'!V135","v":8.7071763018534867},{"$f":"'Population 2016'!W135*'Prevalence Rates'!W135","v":21.126820829655784},{"$f":"'Population 2016'!X135*'Prevalence Rates'!X135","v":21.126820829655784},{"$f":"'Population 2016'!Y135*'Prevalence Rates'!Y135","v":11.156564430714917},{"$f":"'Population 2016'!Z135*'Prevalence Rates'!Z135","v":19.333255075022066},{"$f":"'Population 2016'!AA135*'Prevalence Rates'!AA135","v":24.083055911956809},{"$f":"'Population 2016'!AB135*'Prevalence Rates'!AB135","v":18.968155339805826},{"$f":"'Population 2016'!AC135*'Prevalence Rates'!AC135","v":40.34050485436893},{"$f":"'Population 2016'!AD135*'Prevalence Rates'!AD135","v":18.216933362753753},{"$f":"'Population 2016'!AE135*'Prevalence Rates'!AE135","v":14.77784642541924},{"$f":"'Population 2016'!AF135*'Prevalence Rates'!AF135","v":1.8090000000000002},{"$f":"'Population 2016'!AG135*'Prevalence Rates'!AG135","v":5.6908476917763542},{"$f":"'Population 2016'!AH135*'Prevalence Rates'!AH135","v":29.944564872021186},{"$f":"'Population 2016'!AI135*'Prevalence Rates'!AI135","v":31.216648278905566},{"$f":"'Population 2016'!AJ135*'Prevalence Rates'!AJ135","v":6.4320000000000004},{"$f":"'Population 2016'!AK135*'Prevalence Rates'!AK135","v":3.362980141218006},{"$f":"'Population 2016'!AL135*'Prevalence Rates'!AL135","v":7.1579417475728171},{"$f":"'Population 2016'!AM135*'Prevalence Rates'!AM135","v":14.368572815533982},{"$f":"'Population 2016'!AN135*'Prevalence Rates'!AN135","v":0.90450000000000008},{"$f":"'Population 2016'!AO135*'Prevalence Rates'!AO135","v":0.90450000000000008},{"$f":"'Population 2016'!AP135*'Prevalence Rates'!AP135","v":2.6703905560458958},{"$f":"'Population 2016'!AQ135*'Prevalence Rates'!AQ135","v":7.6991160635481037},{"$f":"'Population 2016'!AR135*'Prevalence Rates'!AR135","v":229.74300000000002},{"$f":"'Population 2016'!AS135*'Prevalence Rates'!AS135","v":4.1452480141218011},{"$f":"'Population 2016'!AT135*'Prevalence Rates'!AT135","v":0},{"$f":"'Population 2016'!AU135*'Prevalence Rates'!AU135","v":0},{"$f":"'Population 2016'!AV135*'Prevalence Rates'!AV135","v":6.9862135922330095},{"$f":"'Population 2016'!AW135*'Prevalence Rates'!AW135","v":15.550977934686674},{"$f":"'Population 2016'!AX135*'Prevalence Rates'!AX135","v":1.7085000000000001},{"$f":"'Population 2016'!AY135*'Prevalence Rates'!AY135","v":16.971677181013845},{"$f":"'Population 2016'!AZ135*'Prevalence Rates'!AZ135","v":17.424065533980581},{"$f":"'Population 2016'!BA135*'Prevalence Rates'!BA135","v":4.3987599293909971},{"$f":"'Population 2016'!BB135*'Prevalence Rates'!BB135","v":6.0158962930273621},{"$f":"'Population 2016'!BC135*'Prevalence Rates'!BC135","v":0.90450000000000008},133]
["SIMD Q3","Female 0-4",{"$f":"'Population 2016'!C136*'Prevalence Rates'!C136","v":0},{"$f":"'Population 2016'!D136*'Prevalence Rates'!D136","v":0},{"$f":"'Population 2016'!E136*'Prevalence Rates'!E136","v":0},{"$f":"'Population 2016'!F136*'Prevalence Rates'!F136","v":0},{"$f":"'Population 2016'!G136*'Prevalence Rates'!G136","v":0},{"$f":"'Population 2016'!H136*'Prevalence Rates'!H136","v":0},{"$f":"'Population 2016'!I136*'Prevalence Rates'!I136","v":0},{"$f":"'Population 2016'!J136*'Prevalence Rates'!J136","v":0},{"$f":"'Population 2016'!K136*'Prevalence Rates'!K136","v":0},{"$f":"'Population 2016'!L136*'Prevalence Rates'!L136","v":0},{"$f":"'Population 2016'!M136*'Prevalence Rates'!M136","v":0},{"$f":"'Population 2016'!N136*'Prevalence Rates'!N136","v":0},{"$f":"'Population 2016'!O136*'Prevalence Rates'!O136","v":0},{"$f":"'Population 2016'!P136*'Prevalence Rates'!P136","v":0},{"$f":"'Population 2016'!Q136*'Prevalence Rates'!Q136","v":0},{"$f":"'Population 2016'!R136*'Prevalence Rates'!R136","v":0},{"$f":"'Population 2016'!S136*'Prevalence Rates'!S136","v":0},{"$f":"'Population 2016'!T136*'Prevalence Rates'!T136","v":0},{"$f":"'Population 2016'!U136*'Prevalence Rates'!U136","v":0},{"$f":"'Population 2016'!V136*'Prevalence Rates'!V136","v":0},{"$f":"'Population 2016'!W136*'Prevalence Rates'!W136","v":0},{"$f":"'Population 2016'!X136*'Prevalence Rates'!X136","v":0},{"$f":"'Population 2016'!Y136*'Prevalence Rates'!Y136","v":0},{"$f":"'Population 2016'!Z136*'Prevalence Rates'!Z136","v":0},{"$f":"'Population 2016'!AA136*'Prevalence Rates'!AA136","v":0},{"$f":"'Population 2016'!AB136*'Prevalence Rates'!AB136","v":0},{"$f":"'Population 2016'!AC136*'Prevalence Rates'!AC136","v":0},{"$f":"'Population 2016'!AD136*'Prevalence Rates'!AD136","v":0},{"$f":"'Population 2016'!AE136*'Prevalence Rates'!AE136","v":0},{"$f":"'Population 2016'!AF136*'Prevalence Rates'!AF136","v":0},{"$f":"'Population 2016'!AG136*'Prevalence Rates'!AG136","v":0},{"$f":"'Population 2016'!AH136*'Prevalence Rates'!AH136","v":0},{"$f":"'Population 2016'!AI136*'Prevalence Rates'!AI136","v":0},{"$f":"'Population 2016'!AJ136*'Prevalence Rates'!AJ136","v":0},{"$f":"'Population 2016'!AK136*'Prevalence Rates'!AK136","v":0},{"$f":"'Population 2016'!AL136*'Prevalence Rates'!AL136","v":0},{"$f":"'Population 2016'!AM136*'Prevalence Rates'!AM136","v":0},{"$f":"'Population 2016'!AN136*'Prevalence Rates'!AN136","v":0},{"$f":"'Population 2016'!AO136*'Prevalence Rates'!AO136","v":0},{"$f":"'Population 2016'!AP136*'Prevalence Rates'!AP136","v":0},{"$f":"'Population 2016'!AQ136*'Prevalence Rates'!AQ136","v":0},{"$f":"'Population 2016'!AR136*'Prevalence Rates'!AR136","v":0},{"$f":"'Population 2016'!AS136*'Prevalence Rates'!AS136","v":0},{"$f":"'Population 2016'!AT136*'Prevalence Rates'!AT136","v":0},{"$f":"'Population 2016'!AU136*'Prevalence Rates'!AU136","v":0},{"$f":"'Population 2016'!AV136*'Prevalence Rates'!AV136","v":0},{"$f":"'Population 2016'!AW136*'Prevalence Rates'!AW136","v":0},{"$f":"'Population 2016'!AX136*'Prevalence Rates'!AX136","v":0},{"$f":"'Population 2016'!AY136*'Prevalence Rates'!AY136","v":0},{"$f":"'Population 2016'!AZ136*'Prevalence Rates'!AZ136","v":0},{"$f":"'Population 2016'!BA136*'Prevalence Rates'!BA136","v":0},{"$f":"'Population 2016'!BB136*'Prevalence Rates'!BB136","v":0},{"$f":"'Population 2016'!BC136*'Prevalence Rates'!BC136","v":0},134]
[null,"Female 5-9",{"$f":"'Population 2016'!C137*'Prevalence Rates'!C137","v":0},{"$f":"'Population 2016'!D137*'Prevalence Rates'!D137","v":0},{"$f":"'Population 2016'!E137*'Prevalence Rates'!E137","v":0},{"$f":"'Population 2016'!F137*'Prevalence Rates'!F137","v":0},{"$f":"'Population 2016'!G137*'Prevalence Rates'!G137","v":0},{"$f":"'Population 2016'!H137*'Prevalence Rates'!H137","v":0},{"$f":"'Population 2016'!I137*'Prevalence Rates'!I137","v":0},{"$f":"'Population 2016'!J137*'Prevalence Rates'!J137","v":0},{"$f":"'Population 2016'!K137*'Prevalence Rates'!K137","v":0},{"$f":"'Population 2016'!L137*'Prevalence Rates'!L137","v":0},{"$f":"'Population 2016'!M137*'Prevalence Rates'!M137","v":0},{"$f":"'Population 2016'!N137*'Prevalence Rates'!N137","v":0},{"$f":"'Population 2016'!O137*'Prevalence Rates'!O137","v":0},{"$f":"'Population 2016'!P137*'Prevalence Rates'!P137","v":0},{"$f":"'Population 2016'!Q137*'Prevalence Rates'!Q137","v":0},{"$f":"'Population 2016'!R137*'Prevalence Rates'!R137","v":0},{"$f":"'Population 2016'!S137*'Prevalence Rates'!S137","v":0},{"$f":"'Population 2016'!T137*'Prevalence Rates'!T137","v":0},{"$f":"'Population 2016'!U137*'Prevalence Rates'!U137","v":0},{"$f":"'Population 2016'!V137*'Prevalence Rates'!V137","v":0},{"$f":"'Population 2016'!W137*'Prevalence Rates'!W137","v":0},{"$f":"'Population 2016'!X137*'Prevalence Rates'!X137","v":0},{"$f":"'Population 2016'!Y137*'Prevalence Rates'!Y137","v":0},{"$f":"'Population 2016'!Z137*'Prevalence Rates'!Z137","v":0},{"$f":"'Population 2016'!AA137*'Prevalence Rates'!AA137","v":0},{"$f":"'Population 2016'!AB137*'Prevalence Rates'!AB137","v":0},{"$f":"'Population 2016'!AC137*'Prevalence Rates'!AC137","v":0},{"$f":"'Population 2016'!AD137*'Prevalence Rates'!AD137","v":0},{"$f":"'Population 2016'!AE137*'Prevalence Rates'!AE137","v":0},{"$f":"'Population 2016'!AF137*'Prevalence Rates'!AF137","v":0},{"$f":"'Population 2016'!AG137*'Prevalence Rates'!AG137","v":0},{"$f":"'Population 2016'!AH137*'Prevalence Rates'!AH137","v":0},{"$f":"'Population 2016'!AI137*'Prevalence Rates'!AI137","v":0},{"$f":"'Population 2016'!AJ137*'Prevalence Rates'!AJ137","v":0},{"$f":"'Population 2016'!AK137*'Prevalence Rates'!AK137","v":0},{"$f":"'Population 2016'!AL137*'Prevalence Rates'!AL137","v":0},{"$f":"'Population 2016'!AM137*'Prevalence Rates'!AM137","v":0},{"$f":"'Population 2016'!AN137*'Prevalence Rates'!AN137","v":0},{"$f":"'Population 2016'!AO137*'Prevalence Rates'!AO137","v":0},{"$f":"'Population 2016'!AP137*'Prevalence Rates'!AP137","v":0},{"$f":"'Population 2016'!AQ137*'Prevalence Rates'!AQ137","v":0},{"$f":"'Population 2016'!AR137*'Prevalence Rates'!AR137","v":0},{"$f":"'Population 2016'!AS137*'Prevalence Rates'!AS137","v":0},{"$f":"'Population 2016'!AT137*'Prevalence Rates'!AT137","v":0},{"$f":"'Population 2016'!AU137*'Prevalence Rates'!AU137","v":0},{"$f":"'Population 2016'!AV137*'Prevalence Rates'!AV137","v":0},{"$f":"'Population 2016'!AW137*'Prevalence Rates'!AW137","v":0},{"$f":"'Population 2016'!AX137*'Prevalence Rates'!AX137","v":0},{"$f":"'Population 2016'!AY137*'Prevalence Rates'!AY137","v":0},{"$f":"'Population 2016'!AZ137*'Prevalence Rates'!AZ137","v":0},{"$f":"'Population 2016'!BA137*'Prevalence Rates'!BA137","v":0},{"$f":"'Population 2016'!BB137*'Prevalence Rates'!BB137","v":0},{"$f":"'Population 2016'!BC137*'Prevalence Rates'!BC137","v":0},135]
[null,"Female 10-15",{"$f":"'Population 2016'!C138*'Prevalence Rates'!C138","v":0},{"$f":"'Population 2016'!D138*'Prevalence Rates'!D138","v":0},{"$f":"'Population 2016'!E138*'Prevalence Rates'!E138","v":0},{"$f":"'Population 2016'!F138*'Prevalence Rates'!F138","v":0},{"$f":"'Population 2016'!G138*'Prevalence Rates'!G138","v":0},{"$f":"'Population 2016'!H138*'Prevalence Rates'!H138","v":0},{"$f":"'Population 2016'!I138*'Prevalence Rates'!I138","v":0},{"$f":"'Population 2016'!J138*'Prevalence Rates'!J138","v":0},{"$f":"'Population 2016'!K138*'Prevalence Rates'!K138","v":0},{"$f":"'Population 2016'!L138*'Prevalence Rates'!L138","v":0},{"$f":"'Population 2016'!M138*'Prevalence Rates'!M138","v":0},{"$f":"'Population 2016'!N138*'Prevalence Rates'!N138","v":0},{"$f":"'Population 2016'!O138*'Prevalence Rates'!O138","v":0},{"$f":"'Population 2016'!P138*'Prevalence Rates'!P138","v":0},{"$f":"'Population 2016'!Q138*'Prevalence Rates'!Q138","v":0},{"$f":"'Population 2016'!R138*'Prevalence Rates'!R138","v":0},{"$f":"'Population 2016'!S138*'Prevalence Rates'!S138","v":0},{"$f":"'Population 2016'!T138*'Prevalence Rates'!T138","v":0},{"$f":"'Population 2016'!U138*'Prevalence Rates'!U138","v":0},{"$f":"'Population 2016'!V138*'Prevalence Rates'!V138","v":0},{"$f":"'Population 2016'!W138*'Prevalence Rates'!W138","v":0},{"$f":"'Population 2016'!X138*'Prevalence Rates'!X138","v":0},{"$f":"'Population 2016'!Y138*'Prevalence Rates'!Y138","v":0},{"$f":"'Population 2016'!Z138*'Prevalence Rates'!Z138","v":0},{"$f":"'Population 2016'!AA138*'Prevalence Rates'!AA138","v":0},{"$f":"'Population 2016'!AB138*'Prevalence Rates'!AB138","v":0},{"$f":"'Population 2016'!AC138*'Prevalence Rates'!AC138","v":0},{"$f":"'Population 2016'!AD138*'Prevalence Rates'!AD138","v":0},{"$f":"'Population 2016'!AE138*'Prevalence Rates'!AE138","v":0},{"$f":"'Population 2016'!AF138*'Prevalence Rates'!AF138","v":0},{"$f":"'Population 2016'!AG138*'Prevalence Rates'!AG138","v":0},{"$f":"'Population 2016'!AH138*'Prevalence Rates'!AH138","v":0},{"$f":"'Population 2016'!AI138*'Prevalence Rates'!AI138","v":0},{"$f":"'Population 2016'!AJ138*'Prevalence Rates'!AJ138","v":0},{"$f":"'Population 2016'!AK138*'Prevalence Rates'!AK138","v":0},{"$f":"'Population 2016'!AL138*'Prevalence Rates'!AL138","v":0},{"$f":"'Population 2016'!AM138*'Prevalence Rates'!AM138","v":0},{"$f":"'Population 2016'!AN138*'Prevalence Rates'!AN138","v":0},{"$f":"'Population 2016'!AO138*'Prevalence Rates'!AO138","v":0},{"$f":"'Population 2016'!AP138*'Prevalence Rates'!AP138","v":0},{"$f":"'Population 2016'!AQ138*'Prevalence Rates'!AQ138","v":0},{"$f":"'Population 2016'!AR138*'Prevalence Rates'!AR138","v":0},{"$f":"'Population 2016'!AS138*'Prevalence Rates'!AS138","v":0},{"$f":"'Population 2016'!AT138*'Prevalence Rates'!AT138","v":0},{"$f":"'Population 2016'!AU138*'Prevalence Rates'!AU138","v":0},{"$f":"'Population 2016'!AV138*'Prevalence Rates'!AV138","v":0},{"$f":"'Population 2016'!AW138*'Prevalence Rates'!AW138","v":0},{"$f":"'Population 2016'!AX138*'Prevalence Rates'!AX138","v":0},{"$f":"'Population 2016'!AY138*'Prevalence Rates'!AY138","v":0},{"$f":"'Population 2016'!AZ138*'Prevalence Rates'!AZ138","v":0},{"$f":"'Population 2016'!BA138*'Prevalence Rates'!BA138","v":0},{"$f":"'Population 2016'!BB138*'Prevalence Rates'!BB138","v":0},{"$f":"'Population 2016'!BC138*'Prevalence Rates'!BC138","v":0},136]
[null,"Female 16-19",{"$f":"'Population 2016'!C139*'Prevalence Rates'!C139","v":120.73147531914894},{"$f":"'Population 2016'!D139*'Prevalence Rates'!D139","v":165.63710544346765},{"$f":"'Population 2016'!E139*'Prevalence Rates'!E139","v":157.4005356382979},{"$f":"'Population 2016'!F139*'Prevalence Rates'!F139","v":81.308635851063812},{"$f":"'Population 2016'!G139*'Prevalence Rates'!G139","v":151.13460000000001},{"$f":"'Population 2016'!H139*'Prevalence Rates'!H139","v":269.69911691489369},{"$f":"'Population 2016'!I139*'Prevalence Rates'!I139","v":157.88045042553193},{"$f":"'Population 2016'!J139*'Prevalence Rates'!J139","v":103.4706},{"$f":"'Population 2016'!K139*'Prevalence Rates'!K139","v":34.755000000000003},{"$f":"'Population 2016'!L139*'Prevalence Rates'!L139","v":252.2693259574468},{"$f":"'Population 2016'!M139*'Prevalence Rates'!M139","v":252.2693259574468},{"$f":"'Population 2016'!N139*'Prevalence Rates'!N139","v":122.84339617021277},{"$f":"'Population 2016'!O139*'Prevalence Rates'!O139","v":84.534195638297874},{"$f":"'Population 2016'!P139*'Prevalence Rates'!P139","v":24.687670212765951},{"$f":"'Population 2016'!Q139*'Prevalence Rates'!Q139","v":101.5308695744681},{"$f":"'Population 2016'!R139*'Prevalence Rates'!R139","v":19.887994148936169},{"$f":"'Population 2016'!S139*'Prevalence Rates'!S139","v":793.25635730417525},{"$f":"'Population 2016'!T139*'Prevalence Rates'!T139","v":216.62273872340424},{"$f":"'Population 2016'!U139*'Prevalence Rates'!U139","v":71.297399999999996},{"$f":"'Population 2016'!V139*'Prevalence Rates'!V139","v":78.838284255319167},{"$f":"'Population 2016'!W139*'Prevalence Rates'!W139","v":330.22468531914893},{"$f":"'Population 2016'!X139*'Prevalence Rates'!X139","v":330.22468531914893},{"$f":"'Population 2016'!Y139*'Prevalence Rates'!Y139","v":163.71981861702128},{"$f":"'Population 2016'!Z139*'Prevalence Rates'!Z139","v":570.11362531914892},{"$f":"'Population 2016'!AA139*'Prevalence Rates'!AA139","v":556.73241431508336},{"$f":"'Population 2016'!AB139*'Prevalence Rates'!AB139","v":404.90525744680855},{"$f":"'Population 2016'!AC139*'Prevalence Rates'!AC139","v":875.60415957446799},{"$f":"'Population 2016'!AD139*'Prevalence Rates'!AD139","v":416.06150680851061},{"$f":"'Population 2016'!AE139*'Prevalence Rates'!AE139","v":269.20208872340424},{"$f":"'Population 2016'!AF139*'Prevalence Rates'!AF139","v":54.813600000000001},{"$f":"'Population 2016'!AG139*'Prevalence Rates'!AG139","v":143.8201123959297},{"$f":"'Population 2016'!AH139*'Prevalence Rates'!AH139","v":627.75685276595755},{"$f":"'Population 2016'!AI139*'Prevalence Rates'!AI139","v":581.50597627659567},{"$f":"'Population 2016'!AJ139*'Prevalence Rates'!AJ139","v":94.930800000000005},{"$f":"'Population 2016'!AK139*'Prevalence Rates'!AK139","v":138.67245000000003},{"$f":"'Population 2016'!AL139*'Prevalence Rates'!AL139","v":78.981424148936171},{"$f":"'Population 2016'!AM139*'Prevalence Rates'!AM139","v":382.72607425531913},{"$f":"'Population 2016'!AN139*'Prevalence Rates'!AN139","v":24.427800000000001},{"$f":"'Population 2016'!AO139*'Prevalence Rates'!AO139","v":24.427800000000001},{"$f":"'Population 2016'!AP139*'Prevalence Rates'!AP139","v":102.71539180851065},{"$f":"'Population 2016'!AQ139*'Prevalence Rates'!AQ139","v":152.03337063829787},{"$f":"'Population 2016'!AR139*'Prevalence Rates'!AR139","v":4540.7903999999999},{"$f":"'Population 2016'!AS139*'Prevalence Rates'!AS139","v":157.88045042553193},{"$f":"'Population 2016'!AT139*'Prevalence Rates'!AT139","v":29.5914},{"$f":"'Population 2016'!AU139*'Prevalence Rates'!AU139","v":29.5914},{"$f":"'Population 2016'!AV139*'Prevalence Rates'!AV139","v":107.34984957446807},{"$f":"'Population 2016'!AW139*'Prevalence Rates'!AW139","v":246.05061063829788},{"$f":"'Population 2016'!AX139*'Prevalence Rates'!AX139","v":68.715599999999995},{"$f":"'Population 2016'!AY139*'Prevalence Rates'!AY139","v":400.05105718878826},{"$f":"'Population 2016'!AZ139*'Prevalence Rates'!AZ139","v":341.96384680851065},{"$f":"'Population 2016'!BA139*'Prevalence Rates'!BA139","v":65.679132765957448},{"$f":"'Population 2016'!BB139*'Prevalence Rates'!BB139","v":182.3815634042553},{"$f":"'Population 2016'!BC139*'Prevalence Rates'!BC139","v":71.297399999999996},137]
[null,"Female 20-24",{"$f":"'Population 2016'!C140*'Prevalence Rates'!C140","v":360.25849851063828},{"$f":"'Population 2016'!D140*'Prevalence Rates'!D140","v":320.60638120915013},{"$f":"'Population 2016'!E140*'Prevalence Rates'!E140","v":197.16173457446811},{"$f":"'Population 2016'!F140*'Prevalence Rates'!F140","v":92.627462553191478},{"$f":"'Population 2016'!G140*'Prevalence Rates'!G140","v":134.8494},{"$f":"'Population 2016'!H140*'Prevalence Rates'!H140","v":308.45706893617029},{"$f":"'Population 2016'!I140*'Prevalence Rates'!I140","v":191.56702468085106},{"$f":"'Population 2016'!J140*'Prevalence Rates'!J140","v":180.3288},{"$f":"'Population 2016'!K140*'Prevalence Rates'!K140","v":50.8416},{"$f":"'Population 2016'!L140*'Prevalence Rates'!L140","v":297.1487004255319},{"$f":"'Population 2016'!M140*'Prevalence Rates'!M140","v":297.1487004255319},{"$f":"'Population 2016'!N140*'Prevalence Rates'!N140","v":220.91165361702127},{"$f":"'Population 2016'!O140*'Prevalence Rates'!O140","v":100.54906723404255},{"$f":"'Population 2016'!P140*'Prevalence Rates'!P140","v":32.515468085106377},{"$f":"'Population 2016'!Q140*'Prevalence Rates'!Q140","v":140.21994542553193},{"$f":"'Population 2016'!R140*'Prevalence Rates'!R140","v":22.212564893617021},{"$f":"'Population 2016'!S140*'Prevalence Rates'!S140","v":1410.5319297110414},{"$f":"'Population 2016'!T140*'Prevalence Rates'!T140","v":690.44726680851056},{"$f":"'Population 2016'!U140*'Prevalence Rates'!U140","v":72.489000000000004},{"$f":"'Population 2016'!V140*'Prevalence Rates'!V140","v":102.83254468085109},{"$f":"'Population 2016'!W140*'Prevalence Rates'!W140","v":460.43107085106379},{"$f":"'Population 2016'!X140*'Prevalence Rates'!X140","v":460.43107085106379},{"$f":"'Population 2016'!Y140*'Prevalence Rates'!Y140","v":246.96966382978724},{"$f":"'Population 2016'!Z140*'Prevalence Rates'!Z140","v":1272.5148162765956},{"$f":"'Population 2016'!AA140*'Prevalence Rates'!AA140","v":895.97293772696275},{"$f":"'Population 2016'!AB140*'Prevalence Rates'!AB140","v":711.25843404255318},{"$f":"'Population 2016'!AC140*'Prevalence Rates'!AC140","v":1628.3087234042553},{"$f":"'Population 2016'!AD140*'Prevalence Rates'!AD140","v":439.65846159574465},{"$f":"'Population 2016'!AE140*'Prevalence Rates'!AE140","v":307.81943617021278},{"$f":"'Population 2016'!AF140*'Prevalence Rates'!AF140","v":63.353400000000001},{"$f":"'Population 2016'!AG140*'Prevalence Rates'!AG140","v":164.45127197039778},{"$f":"'Population 2016'!AH140*'Prevalence Rates'!AH140","v":781.51212765957462},{"$f":"'Population 2016'!AI140*'Prevalence Rates'!AI140","v":1225.1162853191488},{"$f":"'Population 2016'!AJ140*'Prevalence Rates'!AJ140","v":102.4776},{"$f":"'Population 2016'!AK140*'Prevalence Rates'!AK140","v":167.86665000000002},{"$f":"'Population 2016'!AL140*'Prevalence Rates'!AL140","v":92.177337765957446},{"$f":"'Population 2016'!AM140*'Prevalence Rates'!AM140","v":467.41207212765954},{"$f":"'Population 2016'!AN140*'Prevalence Rates'!AN140","v":33.563400000000001},{"$f":"'Population 2016'!AO140*'Prevalence Rates'!AO140","v":33.563400000000001},{"$f":"'Population 2016'!AP140*'Prevalence Rates'!AP140","v":138.92217893617021},{"$f":"'Population 2016'!AQ140*'Prevalence Rates'!AQ140","v":200.26147914893616},{"$f":"'Population 2016'!AR140*'Prevalence Rates'!AR140","v":6933.1260000000002},{"$f":"'Population 2016'!AS140*'Prevalence Rates'!AS140","v":191.56702468085106},{"$f":"'Population 2016'!AT140*'Prevalence Rates'!AT140","v":34.357799999999997},{"$f":"'Population 2016'!AU140*'Prevalence Rates'!AU140","v":34.357799999999997},{"$f":"'Population 2016'!AV140*'Prevalence Rates'!AV140","v":116.86447978723402},{"$f":"'Population 2016'!AW140*'Prevalence Rates'!AW140","v":312.54062297872343},{"$f":"'Population 2016'!AX140*'Prevalence Rates'!AX140","v":129.4872},{"$f":"'Population 2016'!AY140*'Prevalence Rates'!AY140","v":553.82103614785262},{"$f":"'Population 2016'!AZ140*'Prevalence Rates'!AZ140","v":470.55650170212766},{"$f":"'Population 2016'!BA140*'Prevalence Rates'!BA140","v":104.34507382978724},{"$f":"'Population 2016'!BB140*'Prevalence Rates'!BB140","v":227.92350127659572},{"$f":"'Population 2016'!BC140*'Prevalence Rates'!BC140","v":72.489000000000004},138]
[null,"Female 25-29",{"$f":"'Population 2016'!C141*'Prevalence Rates'!C141","v":409.96998893617024},{"$f":"'Population 2016'!D141*'Prevalence Rates'!D141","v":379.11043354022468},{"$f":"'Population 2016'!E141*'Prevalence Rates'!E141","v":246.75311914893621},{"$f":"'Population 2016'!F141*'Prevalence Rates'!F141","v":98.040237021276596},{"$f":"'Population 2016'!G141*'Prevalence Rates'!G141","v":168.31360000000001},{"$f":"'Population 2016'!H141*'Prevalence Rates'!H141","v":366.80482595744689},{"$f":"'Population 2016'!I141*'Prevalence Rates'!I141","v":181.67019617021279},{"$f":"'Population 2016'!J141*'Prevalence Rates'!J141","v":194.9016},{"$f":"'Population 2016'!K141*'Prevalence Rates'!K141","v":61.268000000000008},{"$f":"'Population 2016'!L141*'Prevalence Rates'!L141","v":359.94937702127658},{"$f":"'Population 2016'!M141*'Prevalence Rates'!M141","v":359.94937702127658},{"$f":"'Population 2016'!N141*'Prevalence Rates'!N141","v":287.51822936170214},{"$f":"'Population 2016'!O141*'Prevalence Rates'!O141","v":126.25795106382979},{"$f":"'Population 2016'!P141*'Prevalence Rates'!P141","v":35.048936170212762},{"$f":"'Population 2016'!Q141*'Prevalence Rates'!Q141","v":153.86446085106388},{"$f":"'Population 2016'!R141*'Prevalence Rates'!R141","v":26.660557446808514},{"$f":"'Population 2016'!S141*'Prevalence Rates'!S141","v":1837.2286614053344},{"$f":"'Population 2016'!T141*'Prevalence Rates'!T141","v":989.40711829787233},{"$f":"'Population 2016'!U141*'Prevalence Rates'!U141","v":95.485600000000005},{"$f":"'Population 2016'!V141*'Prevalence Rates'!V141","v":121.09370553191492},{"$f":"'Population 2016'!W141*'Prevalence Rates'!W141","v":591.78025787234048},{"$f":"'Population 2016'!X141*'Prevalence Rates'!X141","v":591.78025787234048},{"$f":"'Population 2016'!Y141*'Prevalence Rates'!Y141","v":277.97126808510643},{"$f":"'Population 2016'!Z141*'Prevalence Rates'!Z141","v":1396.1205076595745},{"$f":"'Population 2016'!AA141*'Prevalence Rates'!AA141","v":1031.4620458813245},{"$f":"'Population 2016'!AB141*'Prevalence Rates'!AB141","v":846.99628085106394},{"$f":"'Population 2016'!AC141*'Prevalence Rates'!AC141","v":1811.9193191489362},{"$f":"'Population 2016'!AD141*'Prevalence Rates'!AD141","v":551.38531361702121},{"$f":"'Population 2016'!AE141*'Prevalence Rates'!AE141","v":386.79833787234048},{"$f":"'Population 2016'!AF141*'Prevalence Rates'!AF141","v":70.978400000000008},{"$f":"'Population 2016'!AG141*'Prevalence Rates'!AG141","v":206.64542645698432},{"$f":"'Population 2016'!AH141*'Prevalence Rates'!AH141","v":965.05831489361719},{"$f":"'Population 2016'!AI141*'Prevalence Rates'!AI141","v":1663.0802608510637},{"$f":"'Population 2016'!AJ141*'Prevalence Rates'!AJ141","v":134.3272},{"$f":"'Population 2016'!AK141*'Prevalence Rates'!AK141","v":206.75060000000002},{"$f":"'Population 2016'!AL141*'Prevalence Rates'!AL141","v":97.142123404255329},{"$f":"'Population 2016'!AM141*'Prevalence Rates'!AM141","v":599.79133787234036},{"$f":"'Population 2016'!AN141*'Prevalence Rates'!AN141","v":42.540800000000004},{"$f":"'Population 2016'!AO141*'Prevalence Rates'!AO141","v":42.540800000000004},{"$f":"'Population 2016'!AP141*'Prevalence Rates'!AP141","v":167.87677957446809},{"$f":"'Population 2016'!AQ141*'Prevalence Rates'!AQ141","v":236.07512255319148},{"$f":"'Population 2016'!AR141*'Prevalence Rates'!AR141","v":8423.0784000000003},{"$f":"'Population 2016'!AS141*'Prevalence Rates'!AS141","v":181.67019617021279},{"$f":"'Population 2016'!AT141*'Prevalence Rates'!AT141","v":48.552000000000007},{"$f":"'Population 2016'!AU141*'Prevalence Rates'!AU141","v":48.552000000000007},{"$f":"'Population 2016'!AV141*'Prevalence Rates'!AV141","v":145.43857361702126},{"$f":"'Population 2016'!AW141*'Prevalence Rates'!AW141","v":370.40355234042556},{"$f":"'Population 2016'!AX141*'Prevalence Rates'!AX141","v":133.6336},{"$f":"'Population 2016'!AY141*'Prevalence Rates'!AY141","v":682.69430750861159},{"$f":"'Population 2016'!AZ141*'Prevalence Rates'!AZ141","v":558.99437617021283},{"$f":"'Population 2016'!BA141*'Prevalence Rates'!BA141","v":118.08183361702127},{"$f":"'Population 2016'!BB141*'Prevalence Rates'!BB141","v":275.54219234042552},{"$f":"'Population 2016'!BC141*'Prevalence Rates'!BC141","v":95.485600000000005},139]
[null,"Female 30-34",{"$f":"'Population 2016'!C142*'Prevalence Rates'!C142","v":323.71443404255319},{"$f":"'Population 2016'!D142*'Prevalence Rates'!D142","v":346.17805601420923},{"$f":"'Population 2016'!E142*'Prevalence Rates'!E142","v":268.33096595744684},{"$f":"'Population 2016'!F142*'Prevalence Rates'!F142","v":121.00897319148936},{"$f":"'Population 2016'!G142*'Prevalence Rates'!G142","v":190.74},{"$f":"'Population 2016'!H142*'Prevalence Rates'!H142","v":393.68981957446817},{"$f":"'Population 2016'!I142*'Prevalence Rates'!I142","v":223.95753702127664},{"$f":"'Population 2016'!J142*'Prevalence Rates'!J142","v":159.52800000000002},{"$f":"'Population 2016'!K142*'Prevalence Rates'!K142","v":63.348800000000004},{"$f":"'Population 2016'!L142*'Prevalence Rates'!L142","v":344.82545361702125},{"$f":"'Population 2016'!M142*'Prevalence Rates'!M142","v":344.82545361702125},{"$f":"'Population 2016'!N142*'Prevalence Rates'!N142","v":185.06920510638301},{"$f":"'Population 2016'!O142*'Prevalence Rates'!O142","v":130.9778744680851},{"$f":"'Population 2016'!P142*'Prevalence Rates'!P142","v":28.214393617021276},{"$f":"'Population 2016'!Q142*'Prevalence Rates'!Q142","v":158.02999617021283},{"$f":"'Population 2016'!R142*'Prevalence Rates'!R142","v":28.163972340425534},{"$f":"'Population 2016'!S142*'Prevalence Rates'!S142","v":1660.3347240107321},{"$f":"'Population 2016'!T142*'Prevalence Rates'!T142","v":758.12398468085109},{"$f":"'Population 2016'!U142*'Prevalence Rates'!U142","v":104.73360000000001},{"$f":"'Population 2016'!V142*'Prevalence Rates'!V142","v":140.8922961702128},{"$f":"'Population 2016'!W142*'Prevalence Rates'!W142","v":565.32532085106391},{"$f":"'Population 2016'!X142*'Prevalence Rates'!X142","v":565.32532085106391},{"$f":"'Population 2016'!Y142*'Prevalence Rates'!Y142","v":273.88345531914899},{"$f":"'Population 2016'!Z142*'Prevalence Rates'!Z142","v":1108.5931778723404},{"$f":"'Population 2016'!AA142*'Prevalence Rates'!AA142","v":972.76332809475991},{"$f":"'Population 2016'!AB142*'Prevalence Rates'!AB142","v":810.04609361702137},{"$f":"'Population 2016'!AC142*'Prevalence Rates'!AC142","v":1554.6970212765957},{"$f":"'Population 2016'!AD142*'Prevalence Rates'!AD142","v":603.02961361702125},{"$f":"'Population 2016'!AE142*'Prevalence Rates'!AE142","v":416.7692365957447},{"$f":"'Population 2016'!AF142*'Prevalence Rates'!AF142","v":62.192800000000005},{"$f":"'Population 2016'!AG142*'Prevalence Rates'!AG142","v":222.65725624421836},{"$f":"'Population 2016'!AH142*'Prevalence Rates'!AH142","v":1070.9990740425533},{"$f":"'Population 2016'!AI142*'Prevalence Rates'!AI142","v":1422.8552212765958},{"$f":"'Population 2016'!AJ142*'Prevalence Rates'!AJ142","v":142.18800000000002},{"$f":"'Population 2016'!AK142*'Prevalence Rates'!AK142","v":239.60412000000002},{"$f":"'Population 2016'!AL142*'Prevalence Rates'!AL142","v":105.04904042553191},{"$f":"'Population 2016'!AM142*'Prevalence Rates'!AM142","v":684.70347319148937},{"$f":"'Population 2016'!AN142*'Prevalence Rates'!AN142","v":46.933600000000006},{"$f":"'Population 2016'!AO142*'Prevalence Rates'!AO142","v":46.933600000000006},{"$f":"'Population 2016'!AP142*'Prevalence Rates'!AP142","v":179.63539021276597},{"$f":"'Population 2016'!AQ142*'Prevalence Rates'!AQ142","v":260.13713957446805},{"$f":"'Population 2016'!AR142*'Prevalence Rates'!AR142","v":8044.6040000000003},{"$f":"'Population 2016'!AS142*'Prevalence Rates'!AS142","v":223.95753702127664},{"$f":"'Population 2016'!AT142*'Prevalence Rates'!AT142","v":43.465600000000002},{"$f":"'Population 2016'!AU142*'Prevalence Rates'!AU142","v":43.465600000000002},{"$f":"'Population 2016'!AV142*'Prevalence Rates'!AV142","v":159.88611404255317},{"$f":"'Population 2016'!AW142*'Prevalence Rates'!AW142","v":397.95422978723411},{"$f":"'Population 2016'!AX142*'Prevalence Rates'!AX142","v":96.179200000000009},{"$f":"'Population 2016'!AY142*'Prevalence Rates'!AY142","v":656.72582351957965},{"$f":"'Population 2016'!AZ142*'Prevalence Rates'!AZ142","v":541.16295319148946},{"$f":"'Population 2016'!BA142*'Prevalence Rates'!BA142","v":118.39014127659576},{"$f":"'Population 2016'!BB142*'Prevalence Rates'!BB142","v":306.40690042553189},{"$f":"'Population 2016'!BC142*'Prevalence Rates'!BC142","v":104.73360000000001},140]
[null,"Female 35-39",{"$f":"'Population 2016'!C143*'Prevalence Rates'!C143","v":194.15032297872338},{"$f":"'Population 2016'!D143*'Prevalence Rates'!D143","v":265.03220279466984},{"$f":"'Population 2016'!E143*'Prevalence Rates'!E143","v":251.02867712765959},{"$f":"'Population 2016'!F143*'Prevalence Rates'!F143","v":124.77971936170213},{"$f":"'Population 2016'!G143*'Prevalence Rates'!G143","v":187.5368},{"$f":"'Population 2016'!H143*'Prevalence Rates'!H143","v":384.65562042553199},{"$f":"'Population 2016'!I143*'Prevalence Rates'!I143","v":204.56831180851066},{"$f":"'Population 2016'!J143*'Prevalence Rates'!J143","v":155.54},{"$f":"'Population 2016'!K143*'Prevalence Rates'!K143","v":52.6614},{"$f":"'Population 2016'!L143*'Prevalence Rates'!L143","v":325.8525178723404},{"$f":"'Population 2016'!M143*'Prevalence Rates'!M143","v":325.8525178723404},{"$f":"'Population 2016'!N143*'Prevalence Rates'!N143","v":138.88480989361702},{"$f":"'Population 2016'!O143*'Prevalence Rates'!O143","v":123.611160106383},{"$f":"'Population 2016'!P143*'Prevalence Rates'!P143","v":32.84246010638298},{"$f":"'Population 2016'!Q143*'Prevalence Rates'!Q143","v":154.88084606382984},{"$f":"'Population 2016'!R143*'Prevalence Rates'!R143","v":28.416188829787238},{"$f":"'Population 2016'!S143*'Prevalence Rates'!S143","v":1379.5154916369611},{"$f":"'Population 2016'!T143*'Prevalence Rates'!T143","v":497.55591319148931},{"$f":"'Population 2016'!U143*'Prevalence Rates'!U143","v":121.54340000000001},{"$f":"'Population 2016'!V143*'Prevalence Rates'!V143","v":137.76778212765961},{"$f":"'Population 2016'!W143*'Prevalence Rates'!W143","v":560.26879021276591},{"$f":"'Population 2016'!X143*'Prevalence Rates'!X143","v":560.26879021276591},{"$f":"'Population 2016'!Y143*'Prevalence Rates'!Y143","v":267.47797765957444},{"$f":"'Population 2016'!Z143*'Prevalence Rates'!Z143","v":807.70598255319157},{"$f":"'Population 2016'!AA143*'Prevalence Rates'!AA143","v":861.73614521123307},{"$f":"'Population 2016'!AB143*'Prevalence Rates'!AB143","v":627.04840000000002},{"$f":"'Population 2016'!AC143*'Prevalence Rates'!AC143","v":1281.7157872340424},{"$f":"'Population 2016'!AD143*'Prevalence Rates'!AD143","v":612.29254712765965},{"$f":"'Population 2016'!AE143*'Prevalence Rates'!AE143","v":428.93227978723405},{"$f":"'Population 2016'!AF143*'Prevalence Rates'!AF143","v":82.880600000000001},{"$f":"'Population 2016'!AG143*'Prevalence Rates'!AG143","v":229.15531221091584},{"$f":"'Population 2016'!AH143*'Prevalence Rates'!AH143","v":1048.4795387234044},{"$f":"'Population 2016'!AI143*'Prevalence Rates'!AI143","v":1085.8942365957446},{"$f":"'Population 2016'!AJ143*'Prevalence Rates'!AJ143","v":137.54179999999999},{"$f":"'Population 2016'!AK143*'Prevalence Rates'!AK143","v":192.98625500000003},{"$f":"'Population 2016'!AL143*'Prevalence Rates'!AL143","v":108.34176521276596},{"$f":"'Population 2016'!AM143*'Prevalence Rates'!AM143","v":677.91659872340426},{"$f":"'Population 2016'!AN143*'Prevalence Rates'!AN143","v":31.552400000000002},{"$f":"'Population 2016'!AO143*'Prevalence Rates'!AO143","v":31.552400000000002},{"$f":"'Population 2016'!AP143*'Prevalence Rates'!AP143","v":159.08160797872341},{"$f":"'Population 2016'!AQ143*'Prevalence Rates'!AQ143","v":238.96191702127658},{"$f":"'Population 2016'!AR143*'Prevalence Rates'!AR143","v":7100.8454000000002},{"$f":"'Population 2016'!AS143*'Prevalence Rates'!AS143","v":204.56831180851066},{"$f":"'Population 2016'!AT143*'Prevalence Rates'!AT143","v":42.218000000000004},{"$f":"'Population 2016'!AU143*'Prevalence Rates'!AU143","v":42.218000000000004},{"$f":"'Population 2016'!AV143*'Prevalence Rates'!AV143","v":154.5878493617021},{"$f":"'Population 2016'!AW143*'Prevalence Rates'!AW143","v":384.3542321276596},{"$f":"'Population 2016'!AX143*'Prevalence Rates'!AX143","v":102.87860000000001},{"$f":"'Population 2016'!AY143*'Prevalence Rates'!AY143","v":622.79980748985679},{"$f":"'Population 2016'!AZ143*'Prevalence Rates'!AZ143","v":492.19900212765958},{"$f":"'Population 2016'!BA143*'Prevalence Rates'!BA143","v":111.11477393617022},{"$f":"'Population 2016'!BB143*'Prevalence Rates'!BB143","v":284.67129361702126},{"$f":"'Population 2016'!BC143*'Prevalence Rates'!BC143","v":121.54340000000001},141]
[null,"Female 40-44",{"$f":"'Population 2016'!C144*'Prevalence Rates'!C144","v":171.11220148936169},{"$f":"'Population 2016'!D144*'Prevalence Rates'!D144","v":265.35190388368636},{"$f":"'Population 2016'!E144*'Prevalence Rates'!E144","v":271.09759202127663},{"$f":"'Population 2016'!F144*'Prevalence Rates'!F144","v":144.9954280851064},{"$f":"'Population 2016'!G144*'Prevalence Rates'!G144","v":232.8656},{"$f":"'Population 2016'!H144*'Prevalence Rates'!H144","v":447.34190436170218},{"$f":"'Population 2016'!I144*'Prevalence Rates'!I144","v":272.68206712765959},{"$f":"'Population 2016'!J144*'Prevalence Rates'!J144","v":171.76060000000001},{"$f":"'Population 2016'!K144*'Prevalence Rates'!K144","v":65.104600000000005},{"$f":"'Population 2016'!L144*'Prevalence Rates'!L144","v":414.38503489361699},{"$f":"'Population 2016'!M144*'Prevalence Rates'!M144","v":414.38503489361699},{"$f":"'Population 2016'!N144*'Prevalence Rates'!N144","v":121.84904319148936},{"$f":"'Population 2016'!O144*'Prevalence Rates'!O144","v":149.24063000000001},{"$f":"'Population 2016'!P144*'Prevalence Rates'!P144","v":35.874071808510635},{"$f":"'Population 2016'!Q144*'Prevalence Rates'!Q144","v":170.89437457446815},{"$f":"'Population 2016'!R144*'Prevalence Rates'!R144","v":29.957405851063832},{"$f":"'Population 2016'!S144*'Prevalence Rates'!S144","v":1364.3333883242078},{"$f":"'Population 2016'!T144*'Prevalence Rates'!T144","v":396.12066765957439},{"$f":"'Population 2016'!U144*'Prevalence Rates'!U144","v":127.5428},{"$f":"'Population 2016'!V144*'Prevalence Rates'!V144","v":147.50297872340428},{"$f":"'Population 2016'!W144*'Prevalence Rates'!W144","v":557.52012893617018},{"$f":"'Population 2016'!X144*'Prevalence Rates'!X144","v":557.52012893617018},{"$f":"'Population 2016'!Y144*'Prevalence Rates'!Y144","v":290.23161223404253},{"$f":"'Population 2016'!Z144*'Prevalence Rates'!Z144","v":676.1437263829788},{"$f":"'Population 2016'!AA144*'Prevalence Rates'!AA144","v":848.91909473962971},{"$f":"'Population 2016'!AB144*'Prevalence Rates'!AB144","v":655.10469574468084},{"$f":"'Population 2016'!AC144*'Prevalence Rates'!AC144","v":1210.7299787234042},{"$f":"'Population 2016'!AD144*'Prevalence Rates'!AD144","v":686.42662234042552},{"$f":"'Population 2016'!AE144*'Prevalence Rates'!AE144","v":459.61502680851066},{"$f":"'Population 2016'!AF144*'Prevalence Rates'!AF144","v":92.213000000000008},{"$f":"'Population 2016'!AG144*'Prevalence Rates'!AG144","v":245.54744403330253},{"$f":"'Population 2016'!AH144*'Prevalence Rates'!AH144","v":1087.0818246808512},{"$f":"'Population 2016'!AI144*'Prevalence Rates'!AI144","v":1008.3303625531914},{"$f":"'Population 2016'!AJ144*'Prevalence Rates'!AJ144","v":146.4298},{"$f":"'Population 2016'!AK144*'Prevalence Rates'!AK144","v":231.09355500000001},{"$f":"'Population 2016'!AL144*'Prevalence Rates'!AL144","v":127.23101085106384},{"$f":"'Population 2016'!AM144*'Prevalence Rates'!AM144","v":700.53419489361704},{"$f":"'Population 2016'!AN144*'Prevalence Rates'!AN144","v":42.884599999999999},{"$f":"'Population 2016'!AO144*'Prevalence Rates'!AO144","v":42.884599999999999},{"$f":"'Population 2016'!AP144*'Prevalence Rates'!AP144","v":179.77091000000001},{"$f":"'Population 2016'!AQ144*'Prevalence Rates'!AQ144","v":263.88590191489362},{"$f":"'Population 2016'!AR144*'Prevalence Rates'!AR144","v":7397.2602000000006},{"$f":"'Population 2016'!AS144*'Prevalence Rates'!AS144","v":272.68206712765959},{"$f":"'Population 2016'!AT144*'Prevalence Rates'!AT144","v":43.995600000000003},{"$f":"'Population 2016'!AU144*'Prevalence Rates'!AU144","v":43.995600000000003},{"$f":"'Population 2016'!AV144*'Prevalence Rates'!AV144","v":172.86994531914891},{"$f":"'Population 2016'!AW144*'Prevalence Rates'!AW144","v":400.11506723404256},{"$f":"'Population 2016'!AX144*'Prevalence Rates'!AX144","v":106.65600000000001},{"$f":"'Population 2016'!AY144*'Prevalence Rates'!AY144","v":650.9246157206843},{"$f":"'Population 2016'!AZ144*'Prevalence Rates'!AZ144","v":538.82838127659579},{"$f":"'Population 2016'!BA144*'Prevalence Rates'!BA144","v":119.70764978723405},{"$f":"'Population 2016'!BB144*'Prevalence Rates'!BB144","v":311.70310553191484},{"$f":"'Population 2016'!BC144*'Prevalence Rates'!BC144","v":127.5428},142]
[null,"Female 45-49",{"$f":"'Population 2016'!C145*'Prevalence Rates'!C145","v":183.36988510638298},{"$f":"'Population 2016'!D145*'Prevalence Rates'!D145","v":330.21084266826239},{"$f":"'Population 2016'!E145*'Prevalence Rates'!E145","v":362.47302340425534},{"$f":"'Population 2016'!F145*'Prevalence Rates'!F145","v":171.05664042553192},{"$f":"'Population 2016'!G145*'Prevalence Rates'!G145","v":299.1728},{"$f":"'Population 2016'!H145*'Prevalence Rates'!H145","v":594.74281531914903},{"$f":"'Population 2016'!I145*'Prevalence Rates'!I145","v":366.17529787234048},{"$f":"'Population 2016'!J145*'Prevalence Rates'!J145","v":217.328},{"$f":"'Population 2016'!K145*'Prevalence Rates'!K145","v":90.86160000000001},{"$f":"'Population 2016'!L145*'Prevalence Rates'!L145","v":594.50767999999994},{"$f":"'Population 2016'!M145*'Prevalence Rates'!M145","v":594.50767999999994},{"$f":"'Population 2016'!N145*'Prevalence Rates'!N145","v":161.03424340425534},{"$f":"'Population 2016'!O145*'Prevalence Rates'!O145","v":204.84467574468087},{"$f":"'Population 2016'!P145*'Prevalence Rates'!P145","v":54.325851063829781},{"$f":"'Population 2016'!Q145*'Prevalence Rates'!Q145","v":245.24589191489372},{"$f":"'Population 2016'!R145*'Prevalence Rates'!R145","v":35.781274468085108},{"$f":"'Population 2016'!S145*'Prevalence Rates'!S145","v":1663.4612215088694},{"$f":"'Population 2016'!T145*'Prevalence Rates'!T145","v":367.73491404255316},{"$f":"'Population 2016'!U145*'Prevalence Rates'!U145","v":163.92080000000001},{"$f":"'Population 2016'!V145*'Prevalence Rates'!V145","v":173.27603744680854},{"$f":"'Population 2016'!W145*'Prevalence Rates'!W145","v":721.67161531914894},{"$f":"'Population 2016'!X145*'Prevalence Rates'!X145","v":721.67161531914894},{"$f":"'Population 2016'!Y145*'Prevalence Rates'!Y145","v":352.40352553191491},{"$f":"'Population 2016'!Z145*'Prevalence Rates'!Z145","v":766.92655574468085},{"$f":"'Population 2016'!AA145*'Prevalence Rates'!AA145","v":1058.7184985848703},{"$f":"'Population 2016'!AB145*'Prevalence Rates'!AB145","v":812.08754042553198},{"$f":"'Population 2016'!AC145*'Prevalence Rates'!AC145","v":1510.0188510638297},{"$f":"'Population 2016'!AD145*'Prevalence Rates'!AD145","v":918.82901404255313},{"$f":"'Population 2016'!AE145*'Prevalence Rates'!AE145","v":626.99988851063836},{"$f":"'Population 2016'!AF145*'Prevalence Rates'!AF145","v":113.05680000000001},{"$f":"'Population 2016'!AG145*'Prevalence Rates'!AG145","v":334.9721202590195},{"$f":"'Population 2016'!AH145*'Prevalence Rates'!AH145","v":1355.6643200000001},{"$f":"'Population 2016'!AI145*'Prevalence Rates'!AI145","v":1162.4538004255319},{"$f":"'Population 2016'!AJ145*'Prevalence Rates'!AJ145","v":200.9128},{"$f":"'Population 2016'!AK145*'Prevalence Rates'!AK145","v":283.22000000000003},{"$f":"'Population 2016'!AL145*'Prevalence Rates'!AL145","v":168.07846468085108},{"$f":"'Population 2016'!AM145*'Prevalence Rates'!AM145","v":795.69349276595744},{"$f":"'Population 2016'!AN145*'Prevalence Rates'!AN145","v":60.112000000000002},{"$f":"'Population 2016'!AO145*'Prevalence Rates'!AO145","v":60.112000000000002},{"$f":"'Population 2016'!AP145*'Prevalence Rates'!AP145","v":247.65443021276596},{"$f":"'Population 2016'!AQ145*'Prevalence Rates'!AQ145","v":368.14886042553189},{"$f":"'Population 2016'!AR145*'Prevalence Rates'!AR145","v":9360.8256000000001},{"$f":"'Population 2016'!AS145*'Prevalence Rates'!AS145","v":366.17529787234048},{"$f":"'Population 2016'!AT145*'Prevalence Rates'!AT145","v":64.736000000000004},{"$f":"'Population 2016'!AU145*'Prevalence Rates'!AU145","v":64.736000000000004},{"$f":"'Population 2016'!AV145*'Prevalence Rates'!AV145","v":224.41846127659571},{"$f":"'Population 2016'!AW145*'Prevalence Rates'!AW145","v":552.5441421276596},{"$f":"'Population 2016'!AX145*'Prevalence Rates'!AX145","v":126.46640000000001},{"$f":"'Population 2016'!AY145*'Prevalence Rates'!AY145","v":836.79155513895853},{"$f":"'Population 2016'!AZ145*'Prevalence Rates'!AZ145","v":688.37586382978736},{"$f":"'Population 2016'!BA145*'Prevalence Rates'!BA145","v":178.81844255319149},{"$f":"'Population 2016'!BB145*'Prevalence Rates'!BB145","v":404.72593021276595},{"$f":"'Population 2016'!BC145*'Prevalence Rates'!BC145","v":163.92080000000001},143]
[null,"Female 50-54",{"$f":"'Population 2016'!C146*'Prevalence Rates'!C146","v":204.06302297872341},{"$f":"'Population 2016'!D146*'Prevalence Rates'!D146","v":340.85565156556032},{"$f":"'Population 2016'!E146*'Prevalence Rates'!E146","v":361.60294893617026},{"$f":"'Population 2016'!F146*'Prevalence Rates'!F146","v":191.97027914893616},{"$f":"'Population 2016'!G146*'Prevalence Rates'!G146","v":372.69440000000003},{"$f":"'Population 2016'!H146*'Prevalence Rates'!H146","v":660.43571276595753},{"$f":"'Population 2016'!I146*'Prevalence Rates'!I146","v":376.33370936170218},{"$f":"'Population 2016'!J146*'Prevalence Rates'!J146","v":230.50640000000001},{"$f":"'Population 2016'!K146*'Prevalence Rates'!K146","v":93.63600000000001},{"$f":"'Population 2016'!L146*'Prevalence Rates'!L146","v":643.45419574468076},{"$f":"'Population 2016'!M146*'Prevalence Rates'!M146","v":643.45419574468076},{"$f":"'Population 2016'!N146*'Prevalence Rates'!N146","v":198.28843404255321},{"$f":"'Population 2016'!O146*'Prevalence Rates'!O146","v":218.5324536170213},{"$f":"'Population 2016'!P146*'Prevalence Rates'!P146","v":46.615085106382978},{"$f":"'Population 2016'!Q146*'Prevalence Rates'!Q146","v":221.0337178723405},{"$f":"'Population 2016'!R146*'Prevalence Rates'!R146","v":40.491974468085111},{"$f":"'Population 2016'!S146*'Prevalence Rates'!S146","v":1690.4478314927901},{"$f":"'Population 2016'!T146*'Prevalence Rates'!T146","v":363.52018723404257},{"$f":"'Population 2016'!U146*'Prevalence Rates'!U146","v":166.23280000000003},{"$f":"'Population 2016'!V146*'Prevalence Rates'!V146","v":183.55902638297874},{"$f":"'Population 2016'!W146*'Prevalence Rates'!W146","v":779.58647744680854},{"$f":"'Population 2016'!X146*'Prevalence Rates'!X146","v":779.58647744680854},{"$f":"'Population 2016'!Y146*'Prevalence Rates'!Y146","v":373.52389148936174},{"$f":"'Population 2016'!Z146*'Prevalence Rates'!Z146","v":802.5518931914894},{"$f":"'Population 2016'!AA146*'Prevalence Rates'!AA146","v":1067.7715346614052},{"$f":"'Population 2016'!AB146*'Prevalence Rates'!AB146","v":850.8750297872341},{"$f":"'Population 2016'!AC146*'Prevalence Rates'!AC146","v":1543.5920425531915},{"$f":"'Population 2016'!AD146*'Prevalence Rates'!AD146","v":1041.4567561702127},{"$f":"'Population 2016'!AE146*'Prevalence Rates'!AE146","v":679.12319063829796},{"$f":"'Population 2016'!AF146*'Prevalence Rates'!AF146","v":126.23520000000001},{"$f":"'Population 2016'!AG146*'Prevalence Rates'!AG146","v":362.81878075855695},{"$f":"'Population 2016'!AH146*'Prevalence Rates'!AH146","v":1345.6902536170214},{"$f":"'Population 2016'!AI146*'Prevalence Rates'!AI146","v":1136.8129825531914},{"$f":"'Population 2016'!AJ146*'Prevalence Rates'!AJ146","v":202.3},{"$f":"'Population 2016'!AK146*'Prevalence Rates'!AK146","v":309.84268000000003},{"$f":"'Population 2016'!AL146*'Prevalence Rates'!AL146","v":180.27770808510638},{"$f":"'Population 2016'!AM146*'Prevalence Rates'!AM146","v":772.1597923404255},{"$f":"'Population 2016'!AN146*'Prevalence Rates'!AN146","v":65.660800000000009},{"$f":"'Population 2016'!AO146*'Prevalence Rates'!AO146","v":65.660800000000009},{"$f":"'Population 2016'!AP146*'Prevalence Rates'!AP146","v":270.80984808510641},{"$f":"'Population 2016'!AQ146*'Prevalence Rates'!AQ146","v":355.31578468085104},{"$f":"'Population 2016'!AR146*'Prevalence Rates'!AR146","v":9834.5544000000009},{"$f":"'Population 2016'!AS146*'Prevalence Rates'!AS146","v":376.33370936170218},{"$f":"'Population 2016'!AT146*'Prevalence Rates'!AT146","v":65.198400000000007},{"$f":"'Population 2016'!AU146*'Prevalence Rates'!AU146","v":65.198400000000007},{"$f":"'Population 2016'!AV146*'Prevalence Rates'!AV146","v":265.11236680851061},{"$f":"'Population 2016'!AW146*'Prevalence Rates'!AW146","v":560.63442042553197},{"$f":"'Population 2016'!AX146*'Prevalence Rates'!AX146","v":136.87040000000002},{"$f":"'Population 2016'!AY146*'Prevalence Rates'!AY146","v":924.8471252134425},{"$f":"'Population 2016'!AZ146*'Prevalence Rates'!AZ146","v":776.49626808510652},{"$f":"'Population 2016'!BA146*'Prevalence Rates'!BA146","v":176.04367361702128},{"$f":"'Population 2016'!BB146*'Prevalence Rates'!BB146","v":401.98793191489358},{"$f":"'Population 2016'!BC146*'Prevalence Rates'!BC146","v":166.23280000000003},144]
[null,"Female 55-59",{"$f":"'Population 2016'!C147*'Prevalence Rates'!C147","v":147.80840617021278},{"$f":"'Population 2016'!D147*'Prevalence Rates'!D147","v":244.3985813240416},{"$f":"'Population 2016'!E147*'Prevalence Rates'!E147","v":258.0073367021277},{"$f":"'Population 2016'!F147*'Prevalence Rates'!F147","v":148.43415031914896},{"$f":"'Population 2016'!G147*'Prevalence Rates'!G147","v":273.75670000000002},{"$f":"'Population 2016'!H147*'Prevalence Rates'!H147","v":465.39109042553207},{"$f":"'Population 2016'!I147*'Prevalence Rates'!I147","v":295.34046648936175},{"$f":"'Population 2016'!J147*'Prevalence Rates'!J147","v":165.32180000000002},{"$f":"'Population 2016'!K147*'Prevalence Rates'!K147","v":71.062600000000003},{"$f":"'Population 2016'!L147*'Prevalence Rates'!L147","v":475.80331638297872},{"$f":"'Population 2016'!M147*'Prevalence Rates'!M147","v":475.80331638297872},{"$f":"'Population 2016'!N147*'Prevalence Rates'!N147","v":152.63006351063831},{"$f":"'Population 2016'!O147*'Prevalence Rates'!O147","v":151.83862936170215},{"$f":"'Population 2016'!P147*'Prevalence Rates'!P147","v":38.932743351063827},{"$f":"'Population 2016'!Q147*'Prevalence Rates'!Q147","v":173.30978148936177},{"$f":"'Population 2016'!R147*'Prevalence Rates'!R147","v":31.52467686170213},{"$f":"'Population 2016'!S147*'Prevalence Rates'!S147","v":1225.5227498461447},{"$f":"'Population 2016'!T147*'Prevalence Rates'!T147","v":254.64437808510638},{"$f":"'Population 2016'!U147*'Prevalence Rates'!U147","v":125.7403},{"$f":"'Population 2016'!V147*'Prevalence Rates'!V147","v":130.76583829787236},{"$f":"'Population 2016'!W147*'Prevalence Rates'!W147","v":566.87190670212772},{"$f":"'Population 2016'!X147*'Prevalence Rates'!X147","v":566.87190670212772},{"$f":"'Population 2016'!Y147*'Prevalence Rates'!Y147","v":266.91366382978725},{"$f":"'Population 2016'!Z147*'Prevalence Rates'!Z147","v":570.70559335106384},{"$f":"'Population 2016'!AA147*'Prevalence Rates'!AA147","v":789.62986819570108},{"$f":"'Population 2016'!AB147*'Prevalence Rates'!AB147","v":605.35997021276592},{"$f":"'Population 2016'!AC147*'Prevalence Rates'!AC147","v":1134.7414787234043},{"$f":"'Population 2016'!AD147*'Prevalence Rates'!AD147","v":788.69311537234046},{"$f":"'Population 2016'!AE147*'Prevalence Rates'!AE147","v":522.26819787234047},{"$f":"'Population 2016'!AF147*'Prevalence Rates'!AF147","v":105.12110000000001},{"$f":"'Population 2016'!AG147*'Prevalence Rates'!AG147","v":279.01964384828869},{"$f":"'Population 2016'!AH147*'Prevalence Rates'!AH147","v":1002.2137642553193},{"$f":"'Population 2016'!AI147*'Prevalence Rates'!AI147","v":802.63330446808504},{"$f":"'Population 2016'!AJ147*'Prevalence Rates'!AJ147","v":140.6524},{"$f":"'Population 2016'!AK147*'Prevalence Rates'!AK147","v":215.59951000000004},{"$f":"'Population 2016'!AL147*'Prevalence Rates'!AL147","v":137.43535042553194},{"$f":"'Population 2016'!AM147*'Prevalence Rates'!AM147","v":542.93675234042553},{"$f":"'Population 2016'!AN147*'Prevalence Rates'!AN147","v":44.920400000000001},{"$f":"'Population 2016'!AO147*'Prevalence Rates'!AO147","v":44.920400000000001},{"$f":"'Population 2016'!AP147*'Prevalence Rates'!AP147","v":197.63448361702129},{"$f":"'Population 2016'!AQ147*'Prevalence Rates'!AQ147","v":249.50720468085106},{"$f":"'Population 2016'!AR147*'Prevalence Rates'!AR147","v":7208.0673000000006},{"$f":"'Population 2016'!AS147*'Prevalence Rates'!AS147","v":295.34046648936175},{"$f":"'Population 2016'!AT147*'Prevalence Rates'!AT147","v":48.234200000000001},{"$f":"'Population 2016'!AU147*'Prevalence Rates'!AU147","v":48.234200000000001},{"$f":"'Population 2016'!AV147*'Prevalence Rates'!AV147","v":177.93304170212764},{"$f":"'Population 2016'!AW147*'Prevalence Rates'!AW147","v":439.6317792553192},{"$f":"'Population 2016'!AX147*'Prevalence Rates'!AX147","v":94.259200000000007},{"$f":"'Population 2016'!AY147*'Prevalence Rates'!AY147","v":686.36901014499358},{"$f":"'Population 2016'!AZ147*'Prevalence Rates'!AZ147","v":586.44389106382982},{"$f":"'Population 2016'!BA147*'Prevalence Rates'!BA147","v":134.04262244680851},{"$f":"'Population 2016'!BB147*'Prevalence Rates'!BB147","v":272.52675531914895},{"$f":"'Population 2016'!BC147*'Prevalence Rates'!BC147","v":125.7403},145]
[null,"Female 60-64",{"$f":"'Population 2016'!C148*'Prevalence Rates'!C148","v":137.20405031914893},{"$f":"'Population 2016'!D148*'Prevalence Rates'!D148","v":233.27350139382872},{"$f":"'Population 2016'!E148*'Prevalence Rates'!E148","v":249.55489441489368},{"$f":"'Population 2016'!F148*'Prevalence Rates'!F148","v":131.10720670212766},{"$f":"'Population 2016'!G148*'Prevalence Rates'!G148","v":271.17930000000001},{"$f":"'Population 2016'!H148*'Prevalence Rates'!H148","v":427.78749031914907},{"$f":"'Population 2016'!I148*'Prevalence Rates'!I148","v":266.18264973404257},{"$f":"'Population 2016'!J148*'Prevalence Rates'!J148","v":153.3553},{"$f":"'Population 2016'!K148*'Prevalence Rates'!K148","v":60.016600000000004},{"$f":"'Population 2016'!L148*'Prevalence Rates'!L148","v":466.60693382978724},{"$f":"'Population 2016'!M148*'Prevalence Rates'!M148","v":466.60693382978724},{"$f":"'Population 2016'!N148*'Prevalence Rates'!N148","v":125.83607117021278},{"$f":"'Population 2016'!O148*'Prevalence Rates'!O148","v":125.15411776595747},{"$f":"'Population 2016'!P148*'Prevalence Rates'!P148","v":33.490531914893616},{"$f":"'Population 2016'!Q148*'Prevalence Rates'!Q148","v":151.12778792553198},{"$f":"'Population 2016'!R148*'Prevalence Rates'!R148","v":27.374592819148937},{"$f":"'Population 2016'!S148*'Prevalence Rates'!S148","v":1050.2047300349459},{"$f":"'Population 2016'!T148*'Prevalence Rates'!T148","v":207.79876212765959},{"$f":"'Population 2016'!U148*'Prevalence Rates'!U148","v":127.58130000000001},{"$f":"'Population 2016'!V148*'Prevalence Rates'!V148","v":118.54473191489365},{"$f":"'Population 2016'!W148*'Prevalence Rates'!W148","v":489.82135627659574},{"$f":"'Population 2016'!X148*'Prevalence Rates'!X148","v":489.82135627659574},{"$f":"'Population 2016'!Y148*'Prevalence Rates'!Y148","v":244.53523164893619},{"$f":"'Population 2016'!Z148*'Prevalence Rates'!Z148","v":420.37883627659579},{"$f":"'Population 2016'!AA148*'Prevalence Rates'!AA148","v":643.05186871027149},{"$f":"'Population 2016'!AB148*'Prevalence Rates'!AB148","v":569.92267872340426},{"$f":"'Population 2016'!AC148*'Prevalence Rates'!AC148","v":898.86824999999999},{"$f":"'Population 2016'!AD148*'Prevalence Rates'!AD148","v":741.62001840425535},{"$f":"'Population 2016'!AE148*'Prevalence Rates'!AE148","v":478.16939308510644},{"$f":"'Population 2016'!AF148*'Prevalence Rates'!AF148","v":73.087700000000012},{"$f":"'Population 2016'!AG148*'Prevalence Rates'!AG148","v":255.46003815911197},{"$f":"'Population 2016'!AH148*'Prevalence Rates'!AH148","v":842.5121063829788},{"$f":"'Population 2016'!AI148*'Prevalence Rates'!AI148","v":672.59867611702123},{"$f":"'Population 2016'!AJ148*'Prevalence Rates'!AJ148","v":119.48090000000001},{"$f":"'Population 2016'!AK148*'Prevalence Rates'!AK148","v":194.85144000000003},{"$f":"'Population 2016'!AL148*'Prevalence Rates'!AL148","v":137.07557202127663},{"$f":"'Population 2016'!AM148*'Prevalence Rates'!AM148","v":459.62229734042558},{"$f":"'Population 2016'!AN148*'Prevalence Rates'!AN148","v":40.686100000000003},{"$f":"'Population 2016'!AO148*'Prevalence Rates'!AO148","v":40.686100000000003},{"$f":"'Population 2016'!AP148*'Prevalence Rates'!AP148","v":177.89984494680854},{"$f":"'Population 2016'!AQ148*'Prevalence Rates'!AQ148","v":216.50923819148937},{"$f":"'Population 2016'!AR148*'Prevalence Rates'!AR148","v":6367.0985000000001},{"$f":"'Population 2016'!AS148*'Prevalence Rates'!AS148","v":266.18264973404257},{"$f":"'Population 2016'!AT148*'Prevalence Rates'!AT148","v":48.0501},{"$f":"'Population 2016'!AU148*'Prevalence Rates'!AU148","v":48.0501},{"$f":"'Population 2016'!AV148*'Prevalence Rates'!AV148","v":166.81222659574468},{"$f":"'Population 2016'!AW148*'Prevalence Rates'!AW148","v":367.37546702127668},{"$f":"'Population 2016'!AX148*'Prevalence Rates'!AX148","v":93.338700000000003},{"$f":"'Population 2016'!AY148*'Prevalence Rates'!AY148","v":598.72286800230052},{"$f":"'Population 2016'!AZ148*'Prevalence Rates'!AZ148","v":515.61494138297883},{"$f":"'Population 2016'!BA148*'Prevalence Rates'!BA148","v":120.78565978723405},{"$f":"'Population 2016'!BB148*'Prevalence Rates'!BB148","v":228.92247446808511},{"$f":"'Population 2016'!BC148*'Prevalence Rates'!BC148","v":127.58130000000001},146]
[null,"Female 65-69",{"$f":"'Population 2016'!C149*'Prevalence Rates'!C149","v":116.16752148936169},{"$f":"'Population 2016'!D149*'Prevalence Rates'!D149","v":206.18964907051424},{"$f":"'Population 2016'!E149*'Prevalence Rates'!E149","v":224.91801329787236},{"$f":"'Population 2016'!F149*'Prevalence Rates'!F149","v":124.56874037234043},{"$f":"'Population 2016'!G149*'Prevalence Rates'!G149","v":256.8956},{"$f":"'Population 2016'!H149*'Prevalence Rates'!H149","v":413.35384446808513},{"$f":"'Population 2016'!I149*'Prevalence Rates'!I149","v":255.58138643617019},{"$f":"'Population 2016'!J149*'Prevalence Rates'!J149","v":135.87729999999999},{"$f":"'Population 2016'!K149*'Prevalence Rates'!K149","v":59.270899999999997},{"$f":"'Population 2016'!L149*'Prevalence Rates'!L149","v":451.04722829787232},{"$f":"'Population 2016'!M149*'Prevalence Rates'!M149","v":451.04722829787232},{"$f":"'Population 2016'!N149*'Prevalence Rates'!N149","v":117.56911510638297},{"$f":"'Population 2016'!O149*'Prevalence Rates'!O149","v":129.76420904255318},{"$f":"'Population 2016'!P149*'Prevalence Rates'!P149","v":26.405022606382975},{"$f":"'Population 2016'!Q149*'Prevalence Rates'!Q149","v":137.38980920212768},{"$f":"'Population 2016'!R149*'Prevalence Rates'!R149","v":23.404242287234045},{"$f":"'Population 2016'!S149*'Prevalence Rates'!S149","v":986.58874780749511},{"$f":"'Population 2016'!T149*'Prevalence Rates'!T149","v":178.3269689361702},{"$f":"'Population 2016'!U149*'Prevalence Rates'!U149","v":116.7257},{"$f":"'Population 2016'!V149*'Prevalence Rates'!V149","v":111.35187063829788},{"$f":"'Population 2016'!W149*'Prevalence Rates'!W149","v":480.45628053191484},{"$f":"'Population 2016'!X149*'Prevalence Rates'!X149","v":480.45628053191484},{"$f":"'Population 2016'!Y149*'Prevalence Rates'!Y149","v":223.67668962765956},{"$f":"'Population 2016'!Z149*'Prevalence Rates'!Z149","v":320.10413499999999},{"$f":"'Population 2016'!AA149*'Prevalence Rates'!AA149","v":539.63502795881743},{"$f":"'Population 2016'!AB149*'Prevalence Rates'!AB149","v":509.6461361702128},{"$f":"'Population 2016'!AC149*'Prevalence Rates'!AC149","v":748.37722340425523},{"$f":"'Population 2016'!AD149*'Prevalence Rates'!AD149","v":681.40230074468082},{"$f":"'Population 2016'!AE149*'Prevalence Rates'!AE149","v":432.0768870212766},{"$f":"'Population 2016'!AF149*'Prevalence Rates'!AF149","v":65.214500000000001},{"$f":"'Population 2016'!AG149*'Prevalence Rates'!AG149","v":230.83530573543018},{"$f":"'Population 2016'!AH149*'Prevalence Rates'!AH149","v":713.21092340425537},{"$f":"'Population 2016'!AI149*'Prevalence Rates'!AI149","v":609.03651180851057},{"$f":"'Population 2016'!AJ149*'Prevalence Rates'!AJ149","v":118.872},{"$f":"'Population 2016'!AK149*'Prevalence Rates'!AK149","v":180.40477000000001},{"$f":"'Population 2016'!AL149*'Prevalence Rates'!AL149","v":126.47784085106383},{"$f":"'Population 2016'!AM149*'Prevalence Rates'!AM149","v":407.41797255319142},{"$f":"'Population 2016'!AN149*'Prevalence Rates'!AN149","v":37.477699999999999},{"$f":"'Population 2016'!AO149*'Prevalence Rates'!AO149","v":37.477699999999999},{"$f":"'Population 2016'!AP149*'Prevalence Rates'!AP149","v":167.03228473404255},{"$f":"'Population 2016'!AQ149*'Prevalence Rates'!AQ149","v":198.93742063829785},{"$f":"'Population 2016'!AR149*'Prevalence Rates'!AR149","v":5788.5711000000001},{"$f":"'Population 2016'!AS149*'Prevalence Rates'!AS149","v":255.58138643617019},{"$f":"'Population 2016'!AT149*'Prevalence Rates'!AT149","v":38.633400000000002},{"$f":"'Population 2016'!AU149*'Prevalence Rates'!AU149","v":38.633400000000002},{"$f":"'Population 2016'!AV149*'Prevalence Rates'!AV149","v":158.53780191489358},{"$f":"'Population 2016'!AW149*'Prevalence Rates'!AW149","v":298.38821585106382},{"$f":"'Population 2016'!AX149*'Prevalence Rates'!AX149","v":76.606399999999994},{"$f":"'Population 2016'!AY149*'Prevalence Rates'!AY149","v":574.86720546827178},{"$f":"'Population 2016'!AZ149*'Prevalence Rates'!AZ149","v":486.23917148936175},{"$f":"'Population 2016'!BA149*'Prevalence Rates'!BA149","v":106.77886409574468},{"$f":"'Population 2016'!BB149*'Prevalence Rates'!BB149","v":209.20699191489359},{"$f":"'Population 2016'!BC149*'Prevalence Rates'!BC149","v":116.7257},147]
[null,"Female 70-74",{"$f":"'Population 2016'!C150*'Prevalence Rates'!C150","v":87.637714574468077},{"$f":"'Population 2016'!D150*'Prevalence Rates'!D150","v":153.37532651673814},{"$f":"'Population 2016'!E150*'Prevalence Rates'!E150","v":166.26536010638299},{"$f":"'Population 2016'!F150*'Prevalence Rates'!F150","v":93.663952393617024},{"$f":"'Population 2016'!G150*'Prevalence Rates'!G150","v":191.51599999999999},{"$f":"'Population 2016'!H150*'Prevalence Rates'!H150","v":333.38757164893622},{"$f":"'Population 2016'!I150*'Prevalence Rates'!I150","v":192.82476877659573},{"$f":"'Population 2016'!J150*'Prevalence Rates'!J150","v":108.47069999999999},{"$f":"'Population 2016'!K150*'Prevalence Rates'!K150","v":46.062899999999999},{"$f":"'Population 2016'!L150*'Prevalence Rates'!L150","v":367.00360021276595},{"$f":"'Population 2016'!M150*'Prevalence Rates'!M150","v":367.00360021276595},{"$f":"'Population 2016'!N150*'Prevalence Rates'!N150","v":89.035005053191483},{"$f":"'Population 2016'!O150*'Prevalence Rates'!O150","v":102.46316765957447},{"$f":"'Population 2016'!P150*'Prevalence Rates'!P150","v":20.27305053191489},{"$f":"'Population 2016'!Q150*'Prevalence Rates'!Q150","v":109.50283845744683},{"$f":"'Population 2016'!R150*'Prevalence Rates'!R150","v":18.680450265957447},{"$f":"'Population 2016'!S150*'Prevalence Rates'!S150","v":754.51242849832374},{"$f":"'Population 2016'!T150*'Prevalence Rates'!T150","v":133.68252382978721},{"$f":"'Population 2016'!U150*'Prevalence Rates'!U150","v":94.932500000000005},{"$f":"'Population 2016'!V150*'Prevalence Rates'!V150","v":79.897159148936183},{"$f":"'Population 2016'!W150*'Prevalence Rates'!W150","v":365.74585436170207},{"$f":"'Population 2016'!X150*'Prevalence Rates'!X150","v":365.74585436170207},{"$f":"'Population 2016'!Y150*'Prevalence Rates'!Y150","v":168.5785164893617},{"$f":"'Population 2016'!Z150*'Prevalence Rates'!Z150","v":248.79182457446808},{"$f":"'Population 2016'!AA150*'Prevalence Rates'!AA150","v":428.20453075181189},{"$f":"'Population 2016'!AB150*'Prevalence Rates'!AB150","v":392.43918723404255},{"$f":"'Population 2016'!AC150*'Prevalence Rates'!AC150","v":579.26388829787231},{"$f":"'Population 2016'!AD150*'Prevalence Rates'!AD150","v":532.62998819148936},{"$f":"'Population 2016'!AE150*'Prevalence Rates'!AE150","v":346.46797042553192},{"$f":"'Population 2016'!AF150*'Prevalence Rates'!AF150","v":54.317900000000002},{"$f":"'Population 2016'!AG150*'Prevalence Rates'!AG150","v":185.09909296947271},{"$f":"'Population 2016'!AH150*'Prevalence Rates'!AH150","v":581.15621531914906},{"$f":"'Population 2016'!AI150*'Prevalence Rates'!AI150","v":469.60947398936167},{"$f":"'Population 2016'!AJ150*'Prevalence Rates'!AJ150","v":89.979500000000002},{"$f":"'Population 2016'!AK150*'Prevalence Rates'!AK150","v":152.69686250000001},{"$f":"'Population 2016'!AL150*'Prevalence Rates'!AL150","v":105.34442611702127},{"$f":"'Population 2016'!AM150*'Prevalence Rates'!AM150","v":319.30304872340423},{"$f":"'Population 2016'!AN150*'Prevalence Rates'!AN150","v":37.807899999999997},{"$f":"'Population 2016'!AO150*'Prevalence Rates'!AO150","v":37.807899999999997},{"$f":"'Population 2016'!AP150*'Prevalence Rates'!AP150","v":144.55462228723403},{"$f":"'Population 2016'!AQ150*'Prevalence Rates'!AQ150","v":151.78046968085104},{"$f":"'Population 2016'!AR150*'Prevalence Rates'!AR150","v":4549.8257999999996},{"$f":"'Population 2016'!AS150*'Prevalence Rates'!AS150","v":192.82476877659573},{"$f":"'Population 2016'!AT150*'Prevalence Rates'!AT150","v":35.6616},{"$f":"'Population 2016'!AU150*'Prevalence Rates'!AU150","v":35.6616},{"$f":"'Population 2016'!AV150*'Prevalence Rates'!AV150","v":126.55512170212762},{"$f":"'Population 2016'!AW150*'Prevalence Rates'!AW150","v":251.85776670212766},{"$f":"'Population 2016'!AX150*'Prevalence Rates'!AX150","v":62.407800000000002},{"$f":"'Population 2016'!AY150*'Prevalence Rates'!AY150","v":448.82378183604379},{"$f":"'Population 2016'!AZ150*'Prevalence Rates'!AZ150","v":387.77721989361709},{"$f":"'Population 2016'!BA150*'Prevalence Rates'!BA150","v":77.497237446808512},{"$f":"'Population 2016'!BB150*'Prevalence Rates'!BB150","v":165.12599446808508},{"$f":"'Population 2016'!BC150*'Prevalence Rates'!BC150","v":94.932500000000005},148]
[null,"Female 75-79",{"$f":"'Population 2016'!C151*'Prevalence Rates'!C151","v":36.116841808510635},{"$f":"'Population 2016'!D151*'Prevalence Rates'!D151","v":56.483691083563485},{"$f":"'Population 2016'!E151*'Prevalence Rates'!E151","v":57.967206117021284},{"$f":"'Population 2016'!F151*'Prevalence Rates'!F151","v":31.52219563829787},{"$f":"'Population 2016'!G151*'Prevalence Rates'!G151","v":70.309799999999996},{"$f":"'Population 2016'!H151*'Prevalence Rates'!H151","v":110.21987888297876},{"$f":"'Population 2016'!I151*'Prevalence Rates'!I151","v":69.3580115425532},{"$f":"'Population 2016'!J151*'Prevalence Rates'!J151","v":39.576900000000002},{"$f":"'Population 2016'!K151*'Prevalence Rates'!K151","v":15.992900000000001},{"$f":"'Population 2016'!L151*'Prevalence Rates'!L151","v":124.64677148936168},{"$f":"'Population 2016'!M151*'Prevalence Rates'!M151","v":124.64677148936168},{"$f":"'Population 2016'!N151*'Prevalence Rates'!N151","v":38.308319148936171},{"$f":"'Population 2016'!O151*'Prevalence Rates'!O151","v":32.574106329787234},{"$f":"'Population 2016'!P151*'Prevalence Rates'!P151","v":6.6477007978723401},{"$f":"'Population 2016'!Q151*'Prevalence Rates'!Q151","v":41.578443031914908},{"$f":"'Population 2016'!R151*'Prevalence Rates'!R151","v":8.2110816489361707},{"$f":"'Population 2016'!S151*'Prevalence Rates'!S151","v":268.83017352602684},{"$f":"'Population 2016'!T151*'Prevalence Rates'!T151","v":49.934729361702125},{"$f":"'Population 2016'!U151*'Prevalence Rates'!U151","v":37.513300000000001},{"$f":"'Population 2016'!V151*'Prevalence Rates'!V151","v":29.550250212765963},{"$f":"'Population 2016'!W151*'Prevalence Rates'!W151","v":128.31961882978723},{"$f":"'Population 2016'!X151*'Prevalence Rates'!X151","v":128.31961882978723},{"$f":"'Population 2016'!Y151*'Prevalence Rates'!Y151","v":61.95053430851064},{"$f":"'Population 2016'!Z151*'Prevalence Rates'!Z151","v":92.818015212765957},{"$f":"'Population 2016'!AA151*'Prevalence Rates'!AA151","v":159.31138928673826},{"$f":"'Population 2016'!AB151*'Prevalence Rates'!AB151","v":143.62169893617022},{"$f":"'Population 2016'!AC151*'Prevalence Rates'!AC151","v":217.08962234042551},{"$f":"'Population 2016'!AD151*'Prevalence Rates'!AD151","v":181.37032930851063},{"$f":"'Population 2016'!AE151*'Prevalence Rates'!AE151","v":113.19261542553193},{"$f":"'Population 2016'!AF151*'Prevalence Rates'!AF151","v":21.815200000000001},{"$f":"'Population 2016'!AG151*'Prevalence Rates'!AG151","v":60.472690795559672},{"$f":"'Population 2016'!AH151*'Prevalence Rates'!AH151","v":214.56986638297874},{"$f":"'Population 2016'!AI151*'Prevalence Rates'!AI151","v":168.49603696808512},{"$f":"'Population 2016'!AJ151*'Prevalence Rates'!AJ151","v":31.690999999999999},{"$f":"'Population 2016'!AK151*'Prevalence Rates'!AK151","v":54.982042499999999},{"$f":"'Population 2016'!AL151*'Prevalence Rates'!AL151","v":37.231397500000007},{"$f":"'Population 2016'!AM151*'Prevalence Rates'!AM151","v":110.19647521276596},{"$f":"'Population 2016'!AN151*'Prevalence Rates'!AN151","v":13.634500000000001},{"$f":"'Population 2016'!AO151*'Prevalence Rates'!AO151","v":13.634500000000001},{"$f":"'Population 2016'!AP151*'Prevalence Rates'!AP151","v":49.074046648936175},{"$f":"'Population 2016'!AQ151*'Prevalence Rates'!AQ151","v":54.459046914893612},{"$f":"'Population 2016'!AR151*'Prevalence Rates'!AR151","v":1623.4636},{"$f":"'Population 2016'!AS151*'Prevalence Rates'!AS151","v":69.3580115425532},{"$f":"'Population 2016'!AT151*'Prevalence Rates'!AT151","v":12.381600000000001},{"$f":"'Population 2016'!AU151*'Prevalence Rates'!AU151","v":12.381600000000001},{"$f":"'Population 2016'!AV151*'Prevalence Rates'!AV151","v":40.604858191489356},{"$f":"'Population 2016'!AW151*'Prevalence Rates'!AW151","v":98.278950000000009},{"$f":"'Population 2016'!AX151*'Prevalence Rates'!AX151","v":23.584},{"$f":"'Population 2016'!AY151*'Prevalence Rates'!AY151","v":157.91260737684294},{"$f":"'Population 2016'!AZ151*'Prevalence Rates'!AZ151","v":136.75011478723403},{"$f":"'Population 2016'!BA151*'Prevalence Rates'!BA151","v":28.304563404255319},{"$f":"'Population 2016'!BB151*'Prevalence Rates'!BB151","v":54.906813617021271},{"$f":"'Population 2016'!BC151*'Prevalence Rates'!BC151","v":37.513300000000001},149]
[null,"Female 80-84",{"$f":"'Population 2016'!C152*'Prevalence Rates'!C152","v":32.72068308510638},{"$f":"'Population 2016'!D152*'Prevalence Rates'!D152","v":41.673511756896964},{"$f":"'Population 2016'!E152*'Prevalence Rates'!E152","v":37.609345212765966},{"$f":"'Population 2016'!F152*'Prevalence Rates'!F152","v":24.0462714893617},{"$f":"'Population 2016'!G152*'Prevalence Rates'!G152","v":49.821200000000005},{"$f":"'Population 2016'!H152*'Prevalence Rates'!H152","v":80.559627500000019},{"$f":"'Population 2016'!I152*'Prevalence Rates'!I152","v":51.208955319148941},{"$f":"'Population 2016'!J152*'Prevalence Rates'!J152","v":28.4482},{"$f":"'Population 2016'!K152*'Prevalence Rates'!K152","v":10.9076},{"$f":"'Population 2016'!L152*'Prevalence Rates'!L152","v":92.126411276595732},{"$f":"'Population 2016'!M152*'Prevalence Rates'!M152","v":92.126411276595732},{"$f":"'Population 2016'!N152*'Prevalence Rates'!N152","v":38.021006755319149},{"$f":"'Population 2016'!O152*'Prevalence Rates'!O152","v":23.922784787234043},{"$f":"'Population 2016'!P152*'Prevalence Rates'!P152","v":4.3573164893617022},{"$f":"'Population 2016'!Q152*'Prevalence Rates'!Q152","v":32.366452659574477},{"$f":"'Population 2016'!R152*'Prevalence Rates'!R152","v":7.9874335106382972},{"$f":"'Population 2016'!S152*'Prevalence Rates'!S152","v":197.96391705116594},{"$f":"'Population 2016'!T152*'Prevalence Rates'!T152","v":39.578311276595741},{"$f":"'Population 2016'!U152*'Prevalence Rates'!U152","v":28.079699999999999},{"$f":"'Population 2016'!V152*'Prevalence Rates'!V152","v":20.499262978723408},{"$f":"'Population 2016'!W152*'Prevalence Rates'!W152","v":92.915863723404257},{"$f":"'Population 2016'!X152*'Prevalence Rates'!X152","v":92.915863723404257},{"$f":"'Population 2016'!Y152*'Prevalence Rates'!Y152","v":43.707432180851065},{"$f":"'Population 2016'!Z152*'Prevalence Rates'!Z152","v":83.786589840425535},{"$f":"'Population 2016'!AA152*'Prevalence Rates'!AA152","v":127.75321186083005},{"$f":"'Population 2016'!AB152*'Prevalence Rates'!AB152","v":109.78242234042554},{"$f":"'Population 2016'!AC152*'Prevalence Rates'!AC152","v":179.30269148936168},{"$f":"'Population 2016'!AD152*'Prevalence Rates'!AD152","v":131.63184579787233},{"$f":"'Population 2016'!AE152*'Prevalence Rates'!AE152","v":83.284841808510649},{"$f":"'Population 2016'!AF152*'Prevalence Rates'!AF152","v":15.9192},{"$f":"'Population 2016'!AG152*'Prevalence Rates'!AG152","v":44.494585337650328},{"$f":"'Population 2016'!AH152*'Prevalence Rates'!AH152","v":166.62033276595747},{"$f":"'Population 2016'!AI152*'Prevalence Rates'!AI152","v":125.35033207446808},{"$f":"'Population 2016'!AJ152*'Prevalence Rates'!AJ152","v":21.8889},{"$f":"'Population 2016'!AK152*'Prevalence Rates'!AK152","v":45.863509999999998},{"$f":"'Population 2016'!AL152*'Prevalence Rates'!AL152","v":25.853136755319152},{"$f":"'Population 2016'!AM152*'Prevalence Rates'!AM152","v":84.548169574468091},{"$f":"'Population 2016'!AN152*'Prevalence Rates'!AN152","v":7.8121999999999998},{"$f":"'Population 2016'!AO152*'Prevalence Rates'!AO152","v":7.8121999999999998},{"$f":"'Population 2016'!AP152*'Prevalence Rates'!AP152","v":38.694107287234047},{"$f":"'Population 2016'!AQ152*'Prevalence Rates'!AQ152","v":38.692343191489357},{"$f":"'Population 2016'!AR152*'Prevalence Rates'!AR152","v":1230.5689},{"$f":"'Population 2016'!AS152*'Prevalence Rates'!AS152","v":51.208955319148941},{"$f":"'Population 2016'!AT152*'Prevalence Rates'!AT152","v":9.1387999999999998},{"$f":"'Population 2016'!AU152*'Prevalence Rates'!AU152","v":9.1387999999999998},{"$f":"'Population 2016'!AV152*'Prevalence Rates'!AV152","v":31.010137446808503},{"$f":"'Population 2016'!AW152*'Prevalence Rates'!AW152","v":77.020028191489374},{"$f":"'Population 2016'!AX152*'Prevalence Rates'!AX152","v":17.540600000000001},{"$f":"'Population 2016'!AY152*'Prevalence Rates'!AY152","v":122.48942269917433},{"$f":"'Population 2016'!AZ152*'Prevalence Rates'!AZ152","v":111.83238},{"$f":"'Population 2016'!BA152*'Prevalence Rates'!BA152","v":23.881975372340424},{"$f":"'Population 2016'!BB152*'Prevalence Rates'!BB152","v":37.847615744680851},{"$f":"'Population 2016'!BC152*'Prevalence Rates'!BC152","v":28.079699999999999},150]
[null,"Female 85-89",{"$f":"'Population 2016'!C153*'Prevalence Rates'!C153","v":21.617856489361699},{"$f":"'Population 2016'!D153*'Prevalence Rates'!D153","v":28.984121832617056},{"$f":"'Population 2016'!E153*'Prevalence Rates'!E153","v":27.125324202127665},{"$f":"'Population 2016'!F153*'Prevalence Rates'!F153","v":15.722562127659574},{"$f":"'Population 2016'!G153*'Prevalence Rates'!G153","v":29.995899999999999},{"$f":"'Population 2016'!H153*'Prevalence Rates'!H153","v":45.459179255319164},{"$f":"'Population 2016'!I153*'Prevalence Rates'!I153","v":29.896993031914899},{"$f":"'Population 2016'!J153*'Prevalence Rates'!J153","v":17.909099999999999},{"$f":"'Population 2016'!K153*'Prevalence Rates'!K153","v":7.9596},{"$f":"'Population 2016'!L153*'Prevalence Rates'!L153","v":62.849321489361692},{"$f":"'Population 2016'!M153*'Prevalence Rates'!M153","v":62.849321489361692},{"$f":"'Population 2016'!N153*'Prevalence Rates'!N153","v":21.261117127659574},{"$f":"'Population 2016'!O153*'Prevalence Rates'!O153","v":10.832959148936171},{"$f":"'Population 2016'!P153*'Prevalence Rates'!P153","v":2.7931515957446806},{"$f":"'Population 2016'!Q153*'Prevalence Rates'!Q153","v":25.063253085106389},{"$f":"'Population 2016'!R153*'Prevalence Rates'!R153","v":4.9202590425531909},{"$f":"'Population 2016'!S153*'Prevalence Rates'!S153","v":126.20593122021866},{"$f":"'Population 2016'!T153*'Prevalence Rates'!T153","v":27.486493404255317},{"$f":"'Population 2016'!U153*'Prevalence Rates'!U153","v":18.0565},{"$f":"'Population 2016'!V153*'Prevalence Rates'!V153","v":10.763336170212767},{"$f":"'Population 2016'!W153*'Prevalence Rates'!W153","v":61.918584574468085},{"$f":"'Population 2016'!X153*'Prevalence Rates'!X153","v":61.918584574468085},{"$f":"'Population 2016'!Y153*'Prevalence Rates'!Y153","v":25.138560372340425},{"$f":"'Population 2016'!Z153*'Prevalence Rates'!Z153","v":50.522330053191489},{"$f":"'Population 2016'!AA153*'Prevalence Rates'!AA153","v":76.707782297782828},{"$f":"'Population 2016'!AB153*'Prevalence Rates'!AB153","v":70.802178723404268},{"$f":"'Population 2016'!AC153*'Prevalence Rates'!AC153","v":110.06781382978723},{"$f":"'Population 2016'!AD153*'Prevalence Rates'!AD153","v":85.396072393617018},{"$f":"'Population 2016'!AE153*'Prevalence Rates'!AE153","v":56.215537446808518},{"$f":"'Population 2016'!AF153*'Prevalence Rates'!AF153","v":12.897500000000001},{"$f":"'Population 2016'!AG153*'Prevalence Rates'!AG153","v":30.032920444033305},{"$f":"'Population 2016'!AH153*'Prevalence Rates'!AH153","v":97.531757446808513},{"$f":"'Population 2016'!AI153*'Prevalence Rates'!AI153","v":79.99374478723405},{"$f":"'Population 2016'!AJ153*'Prevalence Rates'!AJ153","v":11.423500000000001},{"$f":"'Population 2016'!AK153*'Prevalence Rates'!AK153","v":24.195710000000002},{"$f":"'Population 2016'!AL153*'Prevalence Rates'!AL153","v":16.347248031914894},{"$f":"'Population 2016'!AM153*'Prevalence Rates'!AM153","v":44.707125638297875},{"$f":"'Population 2016'!AN153*'Prevalence Rates'!AN153","v":5.7485999999999997},{"$f":"'Population 2016'!AO153*'Prevalence Rates'!AO153","v":5.7485999999999997},{"$f":"'Population 2016'!AP153*'Prevalence Rates'!AP153","v":26.411179042553194},{"$f":"'Population 2016'!AQ153*'Prevalence Rates'!AQ153","v":22.073385212765952},{"$f":"'Population 2016'!AR153*'Prevalence Rates'!AR153","v":770.82830000000001},{"$f":"'Population 2016'!AS153*'Prevalence Rates'!AS153","v":29.896993031914899},{"$f":"'Population 2016'!AT153*'Prevalence Rates'!AT153","v":5.3801000000000005},{"$f":"'Population 2016'!AU153*'Prevalence Rates'!AU153","v":5.3801000000000005},{"$f":"'Population 2016'!AV153*'Prevalence Rates'!AV153","v":18.345106063829785},{"$f":"'Population 2016'!AW153*'Prevalence Rates'!AW153","v":48.372759787234052},{"$f":"'Population 2016'!AX153*'Prevalence Rates'!AX153","v":9.9495000000000005},{"$f":"'Population 2016'!AY153*'Prevalence Rates'!AY153","v":79.964792931913806},{"$f":"'Population 2016'!AZ153*'Prevalence Rates'!AZ153","v":71.911128510638292},{"$f":"'Population 2016'!BA153*'Prevalence Rates'!BA153","v":13.169484361702128},{"$f":"'Population 2016'!BB153*'Prevalence Rates'!BB153","v":19.518896170212763},{"$f":"'Population 2016'!BC153*'Prevalence Rates'!BC153","v":18.0565},151]
[null,"Female 90+",{"$f":"'Population 2016'!C154*'Prevalence Rates'!C154","v":12.409041489361702},{"$f":"'Population 2016'!D154*'Prevalence Rates'!D154","v":16.224038928257595},{"$f":"'Population 2016'!E154*'Prevalence Rates'!E154","v":14.921701861702131},{"$f":"'Population 2016'!F154*'Prevalence Rates'!F154","v":10.558779468085106},{"$f":"'Population 2016'!G154*'Prevalence Rates'!G154","v":19.9727},{"$f":"'Population 2016'!H154*'Prevalence Rates'!H154","v":27.051937819148943},{"$f":"'Population 2016'!I154*'Prevalence Rates'!I154","v":17.471290638297873},{"$f":"'Population 2016'!J154*'Prevalence Rates'!J154","v":10.465400000000001},{"$f":"'Population 2016'!K154*'Prevalence Rates'!K154","v":3.3165},{"$f":"'Population 2016'!L154*'Prevalence Rates'!L154","v":36.201910425531914},{"$f":"'Population 2016'!M154*'Prevalence Rates'!M154","v":36.201910425531914},{"$f":"'Population 2016'!N154*'Prevalence Rates'!N154","v":12.641745319148937},{"$f":"'Population 2016'!O154*'Prevalence Rates'!O154","v":7.29720164893617},{"$f":"'Population 2016'!P154*'Prevalence Rates'!P154","v":2.6255625},{"$f":"'Population 2016'!Q154*'Prevalence Rates'!Q154","v":14.274435531914898},{"$f":"'Population 2016'!R154*'Prevalence Rates'!R154","v":2.6198781914893616},{"$f":"'Population 2016'!S154*'Prevalence Rates'!S154","v":73.751263215140241},{"$f":"'Population 2016'!T154*'Prevalence Rates'!T154","v":16.234385106382977},{"$f":"'Population 2016'!U154*'Prevalence Rates'!U154","v":12.676400000000001},{"$f":"'Population 2016'!V154*'Prevalence Rates'!V154","v":5.0881225531914902},{"$f":"'Population 2016'!W154*'Prevalence Rates'!W154","v":34.264149255319147},{"$f":"'Population 2016'!X154*'Prevalence Rates'!X154","v":34.264149255319147},{"$f":"'Population 2016'!Y154*'Prevalence Rates'!Y154","v":13.356556914893616},{"$f":"'Population 2016'!Z154*'Prevalence Rates'!Z154","v":34.247880372340425},{"$f":"'Population 2016'!AA154*'Prevalence Rates'!AA154","v":48.5009157489622},{"$f":"'Population 2016'!AB154*'Prevalence Rates'!AB154","v":40.932509574468092},{"$f":"'Population 2016'!AC154*'Prevalence Rates'!AC154","v":80.760303191489356},{"$f":"'Population 2016'!AD154*'Prevalence Rates'!AD154","v":46.656098617021279},{"$f":"'Population 2016'!AE154*'Prevalence Rates'!AE154","v":27.346228191489363},{"$f":"'Population 2016'!AF154*'Prevalence Rates'!AF154","v":11.2761},{"$f":"'Population 2016'!AG154*'Prevalence Rates'!AG154","v":14.609610314523591},{"$f":"'Population 2016'!AH154*'Prevalence Rates'!AH154","v":50.011879148936174},{"$f":"'Population 2016'!AI154*'Prevalence Rates'!AI154","v":48.438423351063832},{"$f":"'Population 2016'!AJ154*'Prevalence Rates'!AJ154","v":8.0333000000000006},{"$f":"'Population 2016'!AK154*'Prevalence Rates'!AK154","v":15.348025},{"$f":"'Population 2016'!AL154*'Prevalence Rates'!AL154","v":10.730131968085107},{"$f":"'Population 2016'!AM154*'Prevalence Rates'!AM154","v":20.173963723404256},{"$f":"'Population 2016'!AN154*'Prevalence Rates'!AN154","v":4.9379},{"$f":"'Population 2016'!AO154*'Prevalence Rates'!AO154","v":4.9379},{"$f":"'Population 2016'!AP154*'Prevalence Rates'!AP154","v":16.607902978723406},{"$f":"'Population 2016'!AQ154*'Prevalence Rates'!AQ154","v":20.709778404255317},{"$f":"'Population 2016'!AR154*'Prevalence Rates'!AR154","v":462.68860000000001},{"$f":"'Population 2016'!AS154*'Prevalence Rates'!AS154","v":17.471290638297873},{"$f":"'Population 2016'!AT154*'Prevalence Rates'!AT154","v":4.3483000000000001},{"$f":"'Population 2016'!AU154*'Prevalence Rates'!AU154","v":4.3483000000000001},{"$f":"'Population 2016'!AV154*'Prevalence Rates'!AV154","v":8.980658617021275},{"$f":"'Population 2016'!AW154*'Prevalence Rates'!AW154","v":26.695629680851066},{"$f":"'Population 2016'!AX154*'Prevalence Rates'!AX154","v":7.1489000000000003},{"$f":"'Population 2016'!AY154*'Prevalence Rates'!AY154","v":48.113340991613931},{"$f":"'Population 2016'!AZ154*'Prevalence Rates'!AZ154","v":45.86978234042553},{"$f":"'Population 2016'!BA154*'Prevalence Rates'!BA154","v":7.1744205851063825},{"$f":"'Population 2016'!BB154*'Prevalence Rates'!BB154","v":12.060456170212765},{"$f":"'Population 2016'!BC154*'Prevalence Rates'!BC154","v":12.676400000000001},152]
[null,"Male 0-4",{"$f":"'Population 2016'!C155*'Prevalence Rates'!C155","v":0},{"$f":"'Population 2016'!D155*'Prevalence Rates'!D155","v":0},{"$f":"'Population 2016'!E155*'Prevalence Rates'!E155","v":0},{"$f":"'Population 2016'!F155*'Prevalence Rates'!F155","v":0},{"$f":"'Population 2016'!G155*'Prevalence Rates'!G155","v":0},{"$f":"'Population 2016'!H155*'Prevalence Rates'!H155","v":0},{"$f":"'Population 2016'!I155*'Prevalence Rates'!I155","v":0},{"$f":"'Population 2016'!J155*'Prevalence Rates'!J155","v":0},{"$f":"'Population 2016'!K155*'Prevalence Rates'!K155","v":0},{"$f":"'Population 2016'!L155*'Prevalence Rates'!L155","v":0},{"$f":"'Population 2016'!M155*'Prevalence Rates'!M155","v":0},{"$f":"'Population 2016'!N155*'Prevalence Rates'!N155","v":0},{"$f":"'Population 2016'!O155*'Prevalence Rates'!O155","v":0},{"$f":"'Population 2016'!P155*'Prevalence Rates'!P155","v":0},{"$f":"'Population 2016'!Q155*'Prevalence Rates'!Q155","v":0},{"$f":"'Population 2016'!R155*'Prevalence Rates'!R155","v":0},{"$f":"'Population 2016'!S155*'Prevalence Rates'!S155","v":0},{"$f":"'Population 2016'!T155*'Prevalence Rates'!T155","v":0},{"$f":"'Population 2016'!U155*'Prevalence Rates'!U155","v":0},{"$f":"'Population 2016'!V155*'Prevalence Rates'!V155","v":0},{"$f":"'Population 2016'!W155*'Prevalence Rates'!W155","v":0},{"$f":"'Population 2016'!X155*'Prevalence Rates'!X155","v":0},{"$f":"'Population 2016'!Y155*'Prevalence Rates'!Y155","v":0},{"$f":"'Population 2016'!Z155*'Prevalence Rates'!Z155","v":0},{"$f":"'Population 2016'!AA155*'Prevalence Rates'!AA155","v":0},{"$f":"'Population 2016'!AB155*'Prevalence Rates'!AB155","v":0},{"$f":"'Population 2016'!AC155*'Prevalence Rates'!AC155","v":0},{"$f":"'Population 2016'!AD155*'Prevalence Rates'!AD155","v":0},{"$f":"'Population 2016'!AE155*'Prevalence Rates'!AE155","v":0},{"$f":"'Population 2016'!AF155*'Prevalence Rates'!AF155","v":0},{"$f":"'Population 2016'!AG155*'Prevalence Rates'!AG155","v":0},{"$f":"'Population 2016'!AH155*'Prevalence Rates'!AH155","v":0},{"$f":"'Population 2016'!AI155*'Prevalence Rates'!AI155","v":0},{"$f":"'Population 2016'!AJ155*'Prevalence Rates'!AJ155","v":0},{"$f":"'Population 2016'!AK155*'Prevalence Rates'!AK155","v":0},{"$f":"'Population 2016'!AL155*'Prevalence Rates'!AL155","v":0},{"$f":"'Population 2016'!AM155*'Prevalence Rates'!AM155","v":0},{"$f":"'Population 2016'!AN155*'Prevalence Rates'!AN155","v":0},{"$f":"'Population 2016'!AO155*'Prevalence Rates'!AO155","v":0},{"$f":"'Population 2016'!AP155*'Prevalence Rates'!AP155","v":0},{"$f":"'Population 2016'!AQ155*'Prevalence Rates'!AQ155","v":0},{"$f":"'Population 2016'!AR155*'Prevalence Rates'!AR155","v":0},{"$f":"'Population 2016'!AS155*'Prevalence Rates'!AS155","v":0},{"$f":"'Population 2016'!AT155*'Prevalence Rates'!AT155","v":0},{"$f":"'Population 2016'!AU155*'Prevalence Rates'!AU155","v":0},{"$f":"'Population 2016'!AV155*'Prevalence Rates'!AV155","v":0},{"$f":"'Population 2016'!AW155*'Prevalence Rates'!AW155","v":0},{"$f":"'Population 2016'!AX155*'Prevalence Rates'!AX155","v":0},{"$f":"'Population 2016'!AY155*'Prevalence Rates'!AY155","v":0},{"$f":"'Population 2016'!AZ155*'Prevalence Rates'!AZ155","v":0},{"$f":"'Population 2016'!BA155*'Prevalence Rates'!BA155","v":0},{"$f":"'Population 2016'!BB155*'Prevalence Rates'!BB155","v":0},{"$f":"'Population 2016'!BC155*'Prevalence Rates'!BC155","v":0},153]
[null,"Male 5-9",{"$f":"'Population 2016'!C156*'Prevalence Rates'!C156","v":0},{"$f":"'Population 2016'!D156*'Prevalence Rates'!D156","v":0},{"$f":"'Population 2016'!E156*'Prevalence Rates'!E156","v":0},{"$f":"'Population 2016'!F156*'Prevalence Rates'!F156","v":0},{"$f":"'Population 2016'!G156*'Prevalence Rates'!G156","v":0},{"$f":"'Population 2016'!H156*'Prevalence Rates'!H156","v":0},{"$f":"'Population 2016'!I156*'Prevalence Rates'!I156","v":0},{"$f":"'Population 2016'!J156*'Prevalence Rates'!J156","v":0},{"$f":"'Population 2016'!K156*'Prevalence Rates'!K156","v":0},{"$f":"'Population 2016'!L156*'Prevalence Rates'!L156","v":0},{"$f":"'Population 2016'!M156*'Prevalence Rates'!M156","v":0},{"$f":"'Population 2016'!N156*'Prevalence Rates'!N156","v":0},{"$f":"'Population 2016'!O156*'Prevalence Rates'!O156","v":0},{"$f":"'Population 2016'!P156*'Prevalence Rates'!P156","v":0},{"$f":"'Population 2016'!Q156*'Prevalence Rates'!Q156","v":0},{"$f":"'Population 2016'!R156*'Prevalence Rates'!R156","v":0},{"$f":"'Population 2016'!S156*'Prevalence Rates'!S156","v":0},{"$f":"'Population 2016'!T156*'Prevalence Rates'!T156","v":0},{"$f":"'Population 2016'!U156*'Prevalence Rates'!U156","v":0},{"$f":"'Population 2016'!V156*'Prevalence Rates'!V156","v":0},{"$f":"'Population 2016'!W156*'Prevalence Rates'!W156","v":0},{"$f":"'Population 2016'!X156*'Prevalence Rates'!X156","v":0},{"$f":"'Population 2016'!Y156*'Prevalence Rates'!Y156","v":0},{"$f":"'Population 2016'!Z156*'Prevalence Rates'!Z156","v":0},{"$f":"'Population 2016'!AA156*'Prevalence Rates'!AA156","v":0},{"$f":"'Population 2016'!AB156*'Prevalence Rates'!AB156","v":0},{"$f":"'Population 2016'!AC156*'Prevalence Rates'!AC156","v":0},{"$f":"'Population 2016'!AD156*'Prevalence Rates'!AD156","v":0},{"$f":"'Population 2016'!AE156*'Prevalence Rates'!AE156","v":0},{"$f":"'Population 2016'!AF156*'Prevalence Rates'!AF156","v":0},{"$f":"'Population 2016'!AG156*'Prevalence Rates'!AG156","v":0},{"$f":"'Population 2016'!AH156*'Prevalence Rates'!AH156","v":0},{"$f":"'Population 2016'!AI156*'Prevalence Rates'!AI156","v":0},{"$f":"'Population 2016'!AJ156*'Prevalence Rates'!AJ156","v":0},{"$f":"'Population 2016'!AK156*'Prevalence Rates'!AK156","v":0},{"$f":"'Population 2016'!AL156*'Prevalence Rates'!AL156","v":0},{"$f":"'Population 2016'!AM156*'Prevalence Rates'!AM156","v":0},{"$f":"'Population 2016'!AN156*'Prevalence Rates'!AN156","v":0},{"$f":"'Population 2016'!AO156*'Prevalence Rates'!AO156","v":0},{"$f":"'Population 2016'!AP156*'Prevalence Rates'!AP156","v":0},{"$f":"'Population 2016'!AQ156*'Prevalence Rates'!AQ156","v":0},{"$f":"'Population 2016'!AR156*'Prevalence Rates'!AR156","v":0},{"$f":"'Population 2016'!AS156*'Prevalence Rates'!AS156","v":0},{"$f":"'Population 2016'!AT156*'Prevalence Rates'!AT156","v":0},{"$f":"'Population 2016'!AU156*'Prevalence Rates'!AU156","v":0},{"$f":"'Population 2016'!AV156*'Prevalence Rates'!AV156","v":0},{"$f":"'Population 2016'!AW156*'Prevalence Rates'!AW156","v":0},{"$f":"'Population 2016'!AX156*'Prevalence Rates'!AX156","v":0},{"$f":"'Population 2016'!AY156*'Prevalence Rates'!AY156","v":0},{"$f":"'Population 2016'!AZ156*'Prevalence Rates'!AZ156","v":0},{"$f":"'Population 2016'!BA156*'Prevalence Rates'!BA156","v":0},{"$f":"'Population 2016'!BB156*'Prevalence Rates'!BB156","v":0},{"$f":"'Population 2016'!BC156*'Prevalence Rates'!BC156","v":0},154]
[null,"Male 10-15",{"$f":"'Population 2016'!C157*'Prevalence Rates'!C157","v":0},{"$f":"'Population 2016'!D157*'Prevalence Rates'!D157","v":0},{"$f":"'Population 2016'!E157*'Prevalence Rates'!E157","v":0},{"$f":"'Population 2016'!F157*'Prevalence Rates'!F157","v":0},{"$f":"'Population 2016'!G157*'Prevalence Rates'!G157","v":0},{"$f":"'Population 2016'!H157*'Prevalence Rates'!H157","v":0},{"$f":"'Population 2016'!I157*'Prevalence Rates'!I157","v":0},{"$f":"'Population 2016'!J157*'Prevalence Rates'!J157","v":0},{"$f":"'Population 2016'!K157*'Prevalence Rates'!K157","v":0},{"$f":"'Population 2016'!L157*'Prevalence Rates'!L157","v":0},{"$f":"'Population 2016'!M157*'Prevalence Rates'!M157","v":0},{"$f":"'Population 2016'!N157*'Prevalence Rates'!N157","v":0},{"$f":"'Population 2016'!O157*'Prevalence Rates'!O157","v":0},{"$f":"'Population 2016'!P157*'Prevalence Rates'!P157","v":0},{"$f":"'Population 2016'!Q157*'Prevalence Rates'!Q157","v":0},{"$f":"'Population 2016'!R157*'Prevalence Rates'!R157","v":0},{"$f":"'Population 2016'!S157*'Prevalence Rates'!S157","v":0},{"$f":"'Population 2016'!T157*'Prevalence Rates'!T157","v":0},{"$f":"'Population 2016'!U157*'Prevalence Rates'!U157","v":0},{"$f":"'Population 2016'!V157*'Prevalence Rates'!V157","v":0},{"$f":"'Population 2016'!W157*'Prevalence Rates'!W157","v":0},{"$f":"'Population 2016'!X157*'Prevalence Rates'!X157","v":0},{"$f":"'Population 2016'!Y157*'Prevalence Rates'!Y157","v":0},{"$f":"'Population 2016'!Z157*'Prevalence Rates'!Z157","v":0},{"$f":"'Population 2016'!AA157*'Prevalence Rates'!AA157","v":0},{"$f":"'Population 2016'!AB157*'Prevalence Rates'!AB157","v":0},{"$f":"'Population 2016'!AC157*'Prevalence Rates'!AC157","v":0},{"$f":"'Population 2016'!AD157*'Prevalence Rates'!AD157","v":0},{"$f":"'Population 2016'!AE157*'Prevalence Rates'!AE157","v":0},{"$f":"'Population 2016'!AF157*'Prevalence Rates'!AF157","v":0},{"$f":"'Population 2016'!AG157*'Prevalence Rates'!AG157","v":0},{"$f":"'Population 2016'!AH157*'Prevalence Rates'!AH157","v":0},{"$f":"'Population 2016'!AI157*'Prevalence Rates'!AI157","v":0},{"$f":"'Population 2016'!AJ157*'Prevalence Rates'!AJ157","v":0},{"$f":"'Population 2016'!AK157*'Prevalence Rates'!AK157","v":0},{"$f":"'Population 2016'!AL157*'Prevalence Rates'!AL157","v":0},{"$f":"'Population 2016'!AM157*'Prevalence Rates'!AM157","v":0},{"$f":"'Population 2016'!AN157*'Prevalence Rates'!AN157","v":0},{"$f":"'Population 2016'!AO157*'Prevalence Rates'!AO157","v":0},{"$f":"'Population 2016'!AP157*'Prevalence Rates'!AP157","v":0},{"$f":"'Population 2016'!AQ157*'Prevalence Rates'!AQ157","v":0},{"$f":"'Population 2016'!AR157*'Prevalence Rates'!AR157","v":0},{"$f":"'Population 2016'!AS157*'Prevalence Rates'!AS157","v":0},{"$f":"'Population 2016'!AT157*'Prevalence Rates'!AT157","v":0},{"$f":"'Population 2016'!AU157*'Prevalence Rates'!AU157","v":0},{"$f":"'Population 2016'!AV157*'Prevalence Rates'!AV157","v":0},{"$f":"'Population 2016'!AW157*'Prevalence Rates'!AW157","v":0},{"$f":"'Population 2016'!AX157*'Prevalence Rates'!AX157","v":0},{"$f":"'Population 2016'!AY157*'Prevalence Rates'!AY157","v":0},{"$f":"'Population 2016'!AZ157*'Prevalence Rates'!AZ157","v":0},{"$f":"'Population 2016'!BA157*'Prevalence Rates'!BA157","v":0},{"$f":"'Population 2016'!BB157*'Prevalence Rates'!BB157","v":0},{"$f":"'Population 2016'!BC157*'Prevalence Rates'!BC157","v":0},155]
[null,"Male 16-19",{"$f":"'Population 2016'!C158*'Prevalence Rates'!C158","v":143.59688203883493},{"$f":"'Population 2016'!D158*'Prevalence Rates'!D158","v":151.0597734973002},{"$f":"'Population 2016'!E158*'Prevalence Rates'!E158","v":242.75874951456314},{"$f":"'Population 2016'!F158*'Prevalence Rates'!F158","v":219.1044560900265},{"$f":"'Population 2016'!G158*'Prevalence Rates'!G158","v":167.15649999999999},{"$f":"'Population 2016'!H158*'Prevalence Rates'!H158","v":308.05802771403353},{"$f":"'Population 2016'!I158*'Prevalence Rates'!I158","v":119.94512294792588},{"$f":"'Population 2016'!J158*'Prevalence Rates'!J158","v":105.0112},{"$f":"'Population 2016'!K158*'Prevalence Rates'!K158","v":44.506700000000002},{"$f":"'Population 2016'!L158*'Prevalence Rates'!L158","v":255.96117952338929},{"$f":"'Population 2016'!M158*'Prevalence Rates'!M158","v":255.96117952338929},{"$f":"'Population 2016'!N158*'Prevalence Rates'!N158","v":90.733940997352164},{"$f":"'Population 2016'!O158*'Prevalence Rates'!O158","v":97.055021624007054},{"$f":"'Population 2016'!P158*'Prevalence Rates'!P158","v":28.268681376875552},{"$f":"'Population 2016'!Q158*'Prevalence Rates'!Q158","v":101.30129761694616},{"$f":"'Population 2016'!R158*'Prevalence Rates'!R158","v":29.079306090026481},{"$f":"'Population 2016'!S158*'Prevalence Rates'!S158","v":674.7042057893193},{"$f":"'Population 2016'!T158*'Prevalence Rates'!T158","v":229.60926897616946},{"$f":"'Population 2016'!U158*'Prevalence Rates'!U158","v":78.143100000000004},{"$f":"'Population 2016'!V158*'Prevalence Rates'!V158","v":119.61022886142983},{"$f":"'Population 2016'!W158*'Prevalence Rates'!W158","v":371.87146231244486},{"$f":"'Population 2016'!X158*'Prevalence Rates'!X158","v":371.87146231244486},{"$f":"'Population 2016'!Y158*'Prevalence Rates'!Y158","v":199.30995278022948},{"$f":"'Population 2016'!Z158*'Prevalence Rates'!Z158","v":494.15269779346863},{"$f":"'Population 2016'!AA158*'Prevalence Rates'!AA158","v":475.29423216100099},{"$f":"'Population 2016'!AB158*'Prevalence Rates'!AB158","v":517.8555961165049},{"$f":"'Population 2016'!AC158*'Prevalence Rates'!AC158","v":829.43091685789932},{"$f":"'Population 2016'!AD158*'Prevalence Rates'!AD158","v":544.61109929391},{"$f":"'Population 2016'!AE158*'Prevalence Rates'!AE158","v":374.76458517210943},{"$f":"'Population 2016'!AF158*'Prevalence Rates'!AF158","v":53.326000000000001},{"$f":"'Population 2016'!AG158*'Prevalence Rates'!AG158","v":144.3192812464024},{"$f":"'Population 2016'!AH158*'Prevalence Rates'!AH158","v":561.35707078552525},{"$f":"'Population 2016'!AI158*'Prevalence Rates'!AI158","v":568.08273967343337},{"$f":"'Population 2016'!AJ158*'Prevalence Rates'!AJ158","v":84.501199999999997},{"$f":"'Population 2016'!AK158*'Prevalence Rates'!AK158","v":123.3154246248897},{"$f":"'Population 2016'!AL158*'Prevalence Rates'!AL158","v":99.907595145631078},{"$f":"'Population 2016'!AM158*'Prevalence Rates'!AM158","v":294.62017621359223},{"$f":"'Population 2016'!AN158*'Prevalence Rates'!AN158","v":30.765000000000001},{"$f":"'Population 2016'!AO158*'Prevalence Rates'!AO158","v":30.765000000000001},{"$f":"'Population 2016'!AP158*'Prevalence Rates'!AP158","v":146.59753305383936},{"$f":"'Population 2016'!AQ158*'Prevalence Rates'!AQ158","v":168.96130759046781},{"$f":"'Population 2016'!AR158*'Prevalence Rates'!AR158","v":4866.4076999999997},{"$f":"'Population 2016'!AS158*'Prevalence Rates'!AS158","v":119.94512294792588},{"$f":"'Population 2016'!AT158*'Prevalence Rates'!AT158","v":34.2517},{"$f":"'Population 2016'!AU158*'Prevalence Rates'!AU158","v":34.2517},{"$f":"'Population 2016'!AV158*'Prevalence Rates'!AV158","v":96.561731685789937},{"$f":"'Population 2016'!AW158*'Prevalence Rates'!AW158","v":266.85646081200355},{"$f":"'Population 2016'!AX158*'Prevalence Rates'!AX158","v":60.5045},{"$f":"'Population 2016'!AY158*'Prevalence Rates'!AY158","v":366.44021540957885},{"$f":"'Population 2016'!AZ158*'Prevalence Rates'!AZ158","v":457.09431381288607},{"$f":"'Population 2016'!BA158*'Prevalence Rates'!BA158","v":62.130093998234777},{"$f":"'Population 2016'!BB158*'Prevalence Rates'!BB158","v":146.33115648720212},{"$f":"'Population 2016'!BC158*'Prevalence Rates'!BC158","v":78.143100000000004},156]
[null,"Male 20-24",{"$f":"'Population 2016'!C159*'Prevalence Rates'!C159","v":468.60371844660193},{"$f":"'Population 2016'!D159*'Prevalence Rates'!D159","v":288.49070735437937},{"$f":"'Population 2016'!E159*'Prevalence Rates'!E159","v":298.52232590467787},{"$f":"'Population 2016'!F159*'Prevalence Rates'!F159","v":232.84289766107682},{"$f":"'Population 2016'!G159*'Prevalence Rates'!G159","v":168.59219999999999},{"$f":"'Population 2016'!H159*'Prevalence Rates'!H159","v":384.85919805825245},{"$f":"'Population 2016'!I159*'Prevalence Rates'!I159","v":141.69839461606358},{"$f":"'Population 2016'!J159*'Prevalence Rates'!J159","v":190.94810000000001},{"$f":"'Population 2016'!K159*'Prevalence Rates'!K159","v":60.094300000000004},{"$f":"'Population 2016'!L159*'Prevalence Rates'!L159","v":292.82976001765229},{"$f":"'Population 2016'!M159*'Prevalence Rates'!M159","v":292.82976001765229},{"$f":"'Population 2016'!N159*'Prevalence Rates'!N159","v":177.73589470432481},{"$f":"'Population 2016'!O159*'Prevalence Rates'!O159","v":131.285179788173},{"$f":"'Population 2016'!P159*'Prevalence Rates'!P159","v":39.046116151809358},{"$f":"'Population 2016'!Q159*'Prevalence Rates'!Q159","v":124.66341857899383},{"$f":"'Population 2016'!R159*'Prevalence Rates'!R159","v":38.535990997352165},{"$f":"'Population 2016'!S159*'Prevalence Rates'!S159","v":1134.4380354745206},{"$f":"'Population 2016'!T159*'Prevalence Rates'!T159","v":643.64154346866724},{"$f":"'Population 2016'!U159*'Prevalence Rates'!U159","v":91.679699999999997},{"$f":"'Population 2016'!V159*'Prevalence Rates'!V159","v":158.58864210061782},{"$f":"'Population 2016'!W159*'Prevalence Rates'!W159","v":514.91622166813772},{"$f":"'Population 2016'!X159*'Prevalence Rates'!X159","v":514.91622166813772},{"$f":"'Population 2016'!Y159*'Prevalence Rates'!Y159","v":308.42251919682258},{"$f":"'Population 2016'!Z159*'Prevalence Rates'!Z159","v":1138.908895498676},{"$f":"'Population 2016'!AA159*'Prevalence Rates'!AA159","v":748.97888197333498},{"$f":"'Population 2016'!AB159*'Prevalence Rates'!AB159","v":905.38706796116503},{"$f":"'Population 2016'!AC159*'Prevalence Rates'!AC159","v":1523.7050972639011},{"$f":"'Population 2016'!AD159*'Prevalence Rates'!AD159","v":564.83019399823479},{"$f":"'Population 2016'!AE159*'Prevalence Rates'!AE159","v":393.83544571932919},{"$f":"'Population 2016'!AF159*'Prevalence Rates'!AF159","v":79.168599999999998},{"$f":"'Population 2016'!AG159*'Prevalence Rates'!AG159","v":151.66333934533174},{"$f":"'Population 2016'!AH159*'Prevalence Rates'!AH159","v":691.80501535745816},{"$f":"'Population 2016'!AI159*'Prevalence Rates'!AI159","v":1116.8714164165931},{"$f":"'Population 2016'!AJ159*'Prevalence Rates'!AJ159","v":122.8549},{"$f":"'Population 2016'!AK159*'Prevalence Rates'!AK159","v":149.43969770520744},{"$f":"'Population 2016'!AL159*'Prevalence Rates'!AL159","v":137.73161941747574},{"$f":"'Population 2016'!AM159*'Prevalence Rates'!AM159","v":345.93599708737867},{"$f":"'Population 2016'!AN159*'Prevalence Rates'!AN159","v":36.917999999999999},{"$f":"'Population 2016'!AO159*'Prevalence Rates'!AO159","v":36.917999999999999},{"$f":"'Population 2016'!AP159*'Prevalence Rates'!AP159","v":194.37343292144746},{"$f":"'Population 2016'!AQ159*'Prevalence Rates'!AQ159","v":185.96505701676966},{"$f":"'Population 2016'!AR159*'Prevalence Rates'!AR159","v":7229.1597000000002},{"$f":"'Population 2016'!AS159*'Prevalence Rates'!AS159","v":141.69839461606358},{"$f":"'Population 2016'!AT159*'Prevalence Rates'!AT159","v":46.9679},{"$f":"'Population 2016'!AU159*'Prevalence Rates'!AU159","v":46.9679},{"$f":"'Population 2016'!AV159*'Prevalence Rates'!AV159","v":104.82456443071491},{"$f":"'Population 2016'!AW159*'Prevalence Rates'!AW159","v":345.6168520741395},{"$f":"'Population 2016'!AX159*'Prevalence Rates'!AX159","v":130.85380000000001},{"$f":"'Population 2016'!AY159*'Prevalence Rates'!AY159","v":495.57231144086012},{"$f":"'Population 2016'!AZ159*'Prevalence Rates'!AZ159","v":606.65746977052072},{"$f":"'Population 2016'!BA159*'Prevalence Rates'!BA159","v":92.368314651368053},{"$f":"'Population 2016'!BB159*'Prevalence Rates'!BB159","v":203.56953402471314},{"$f":"'Population 2016'!BC159*'Prevalence Rates'!BC159","v":91.679699999999997},157]
[null,"Male 25-29",{"$f":"'Population 2016'!C160*'Prevalence Rates'!C160","v":814.66425388349512},{"$f":"'Population 2016'!D160*'Prevalence Rates'!D160","v":441.37951961980508},{"$f":"'Population 2016'!E160*'Prevalence Rates'!E160","v":373.72557078552518},{"$f":"'Population 2016'!F160*'Prevalence Rates'!F160","v":289.99524421888793},{"$f":"'Population 2016'!G160*'Prevalence Rates'!G160","v":212.88929999999999},{"$f":"'Population 2016'!H160*'Prevalence Rates'!H160","v":478.43906712268313},{"$f":"'Population 2016'!I160*'Prevalence Rates'!I160","v":183.67573327449253},{"$f":"'Population 2016'!J160*'Prevalence Rates'!J160","v":224.95590000000001},{"$f":"'Population 2016'!K160*'Prevalence Rates'!K160","v":65.504400000000004},{"$f":"'Population 2016'!L160*'Prevalence Rates'!L160","v":390.30389651368051},{"$f":"'Population 2016'!M160*'Prevalence Rates'!M160","v":390.30389651368051},{"$f":"'Population 2016'!N160*'Prevalence Rates'!N160","v":293.40430088261252},{"$f":"'Population 2016'!O160*'Prevalence Rates'!O160","v":183.60929673433364},{"$f":"'Population 2016'!P160*'Prevalence Rates'!P160","v":51.477668490732569},{"$f":"'Population 2016'!Q160*'Prevalence Rates'!Q160","v":164.1759748014122},{"$f":"'Population 2016'!R160*'Prevalence Rates'!R160","v":41.727218711385703},{"$f":"'Population 2016'!S160*'Prevalence Rates'!S160","v":1795.8998499754655},{"$f":"'Population 2016'!T160*'Prevalence Rates'!T160","v":1242.6137058693735},{"$f":"'Population 2016'!U160*'Prevalence Rates'!U160","v":118.08029999999999},{"$f":"'Population 2016'!V160*'Prevalence Rates'!V160","v":206.8918808031774},{"$f":"'Population 2016'!W160*'Prevalence Rates'!W160","v":718.45336681376887},{"$f":"'Population 2016'!X160*'Prevalence Rates'!X160","v":718.45336681376887},{"$f":"'Population 2016'!Y160*'Prevalence Rates'!Y160","v":381.73878111209183},{"$f":"'Population 2016'!Z160*'Prevalence Rates'!Z160","v":1641.530009443954},{"$f":"'Population 2016'!AA160*'Prevalence Rates'!AA160","v":1039.821316215965},{"$f":"'Population 2016'!AB160*'Prevalence Rates'!AB160","v":1370.069545631068},{"$f":"'Population 2016'!AC160*'Prevalence Rates'!AC160","v":2172.6107791703444},{"$f":"'Population 2016'!AD160*'Prevalence Rates'!AD160","v":768.05762630185347},{"$f":"'Population 2016'!AE160*'Prevalence Rates'!AE160","v":553.23000220653125},{"$f":"'Population 2016'!AF160*'Prevalence Rates'!AF160","v":104.5772},{"$f":"'Population 2016'!AG160*'Prevalence Rates'!AG160","v":213.045094017422},{"$f":"'Population 2016'!AH160*'Prevalence Rates'!AH160","v":909.52891350397192},{"$f":"'Population 2016'!AI160*'Prevalence Rates'!AI160","v":1895.4413372462488},{"$f":"'Population 2016'!AJ160*'Prevalence Rates'!AJ160","v":163.18639999999999},{"$f":"'Population 2016'!AK160*'Prevalence Rates'!AK160","v":213.05361632833188},{"$f":"'Population 2016'!AL160*'Prevalence Rates'!AL160","v":154.19920970873787},{"$f":"'Population 2016'!AM160*'Prevalence Rates'!AM160","v":459.04682427184468},{"$f":"'Population 2016'!AN160*'Prevalence Rates'!AN160","v":58.321899999999999},{"$f":"'Population 2016'!AO160*'Prevalence Rates'!AO160","v":58.321899999999999},{"$f":"'Population 2016'!AP160*'Prevalence Rates'!AP160","v":219.60078521624007},{"$f":"'Population 2016'!AQ160*'Prevalence Rates'!AQ160","v":276.17416169461609},{"$f":"'Population 2016'!AR160*'Prevalence Rates'!AR160","v":10325.562},{"$f":"'Population 2016'!AS160*'Prevalence Rates'!AS160","v":183.67573327449253},{"$f":"'Population 2016'!AT160*'Prevalence Rates'!AT160","v":58.034599999999998},{"$f":"'Population 2016'!AU160*'Prevalence Rates'!AU160","v":58.034599999999998},{"$f":"'Population 2016'!AV160*'Prevalence Rates'!AV160","v":125.04903662842011},{"$f":"'Population 2016'!AW160*'Prevalence Rates'!AW160","v":450.24930776699028},{"$f":"'Population 2016'!AX160*'Prevalence Rates'!AX160","v":159.45150000000001},{"$f":"'Population 2016'!AY160*'Prevalence Rates'!AY160","v":668.50234205286904},{"$f":"'Population 2016'!AZ160*'Prevalence Rates'!AZ160","v":795.45521866725494},{"$f":"'Population 2016'!BA160*'Prevalence Rates'!BA160","v":143.94795013239187},{"$f":"'Population 2016'!BB160*'Prevalence Rates'!BB160","v":279.81092833186233},{"$f":"'Population 2016'!BC160*'Prevalence Rates'!BC160","v":118.08029999999999},158]
[null,"Male 30-34",{"$f":"'Population 2016'!C161*'Prevalence Rates'!C161","v":617.74102378640771},{"$f":"'Population 2016'!D161*'Prevalence Rates'!D161","v":381.36287942286191},{"$f":"'Population 2016'!E161*'Prevalence Rates'!E161","v":396.08286120917916},{"$f":"'Population 2016'!F161*'Prevalence Rates'!F161","v":324.17088512797886},{"$f":"'Population 2016'!G161*'Prevalence Rates'!G161","v":201.68459999999999},{"$f":"'Population 2016'!H161*'Prevalence Rates'!H161","v":445.56692634598409},{"$f":"'Population 2016'!I161*'Prevalence Rates'!I161","v":187.27306906443073},{"$f":"'Population 2016'!J161*'Prevalence Rates'!J161","v":188.1815},{"$f":"'Population 2016'!K161*'Prevalence Rates'!K161","v":63.206000000000003},{"$f":"'Population 2016'!L161*'Prevalence Rates'!L161","v":365.96555467784646},{"$f":"'Population 2016'!M161*'Prevalence Rates'!M161","v":365.96555467784646},{"$f":"'Population 2016'!N161*'Prevalence Rates'!N161","v":240.47390361871138},{"$f":"'Population 2016'!O161*'Prevalence Rates'!O161","v":155.54163353927626},{"$f":"'Population 2016'!P161*'Prevalence Rates'!P161","v":44.300493556928508},{"$f":"'Population 2016'!Q161*'Prevalence Rates'!Q161","v":144.37585723742276},{"$f":"'Population 2016'!R161*'Prevalence Rates'!R161","v":42.058387113857023},{"$f":"'Population 2016'!S161*'Prevalence Rates'!S161","v":1691.2266771590228},{"$f":"'Population 2016'!T161*'Prevalence Rates'!T161","v":1099.8296630626655},{"$f":"'Population 2016'!U161*'Prevalence Rates'!U161","v":128.99770000000001},{"$f":"'Population 2016'!V161*'Prevalence Rates'!V161","v":207.42717674315975},{"$f":"'Population 2016'!W161*'Prevalence Rates'!W161","v":712.47674073256849},{"$f":"'Population 2016'!X161*'Prevalence Rates'!X161","v":712.47674073256849},{"$f":"'Population 2016'!Y161*'Prevalence Rates'!Y161","v":350.82677184466019},{"$f":"'Population 2016'!Z161*'Prevalence Rates'!Z161","v":1513.806775286849},{"$f":"'Population 2016'!AA161*'Prevalence Rates'!AA161","v":1025.36959634963},{"$f":"'Population 2016'!AB161*'Prevalence Rates'!AB161","v":1243.545972815534},{"$f":"'Population 2016'!AC161*'Prevalence Rates'!AC161","v":2027.6878347749337},{"$f":"'Population 2016'!AD161*'Prevalence Rates'!AD161","v":807.9527686672551},{"$f":"'Population 2016'!AE161*'Prevalence Rates'!AE161","v":606.03690864960276},{"$f":"'Population 2016'!AF161*'Prevalence Rates'!AF161","v":92.797899999999998},{"$f":"'Population 2016'!AG161*'Prevalence Rates'!AG161","v":233.38067289612036},{"$f":"'Population 2016'!AH161*'Prevalence Rates'!AH161","v":998.97278252427202},{"$f":"'Population 2016'!AI161*'Prevalence Rates'!AI161","v":1738.6352540600178},{"$f":"'Population 2016'!AJ161*'Prevalence Rates'!AJ161","v":162.8991},{"$f":"'Population 2016'!AK161*'Prevalence Rates'!AK161","v":245.61639611650489},{"$f":"'Population 2016'!AL161*'Prevalence Rates'!AL161","v":143.96798252427186},{"$f":"'Population 2016'!AM161*'Prevalence Rates'!AM161","v":534.81452864077676},{"$f":"'Population 2016'!AN161*'Prevalence Rates'!AN161","v":50.277500000000003},{"$f":"'Population 2016'!AO161*'Prevalence Rates'!AO161","v":50.277500000000003},{"$f":"'Population 2016'!AP161*'Prevalence Rates'!AP161","v":245.04699439541039},{"$f":"'Population 2016'!AQ161*'Prevalence Rates'!AQ161","v":286.42516769638132},{"$f":"'Population 2016'!AR161*'Prevalence Rates'!AR161","v":9952.9339},{"$f":"'Population 2016'!AS161*'Prevalence Rates'!AS161","v":187.27306906443073},{"$f":"'Population 2016'!AT161*'Prevalence Rates'!AT161","v":63.7806},{"$f":"'Population 2016'!AU161*'Prevalence Rates'!AU161","v":63.7806},{"$f":"'Population 2016'!AV161*'Prevalence Rates'!AV161","v":128.22632612533098},{"$f":"'Population 2016'!AW161*'Prevalence Rates'!AW161","v":464.61608278905555},{"$f":"'Population 2016'!AX161*'Prevalence Rates'!AX161","v":124.9755},{"$f":"'Population 2016'!AY161*'Prevalence Rates'!AY161","v":671.49218785997687},{"$f":"'Population 2016'!AZ161*'Prevalence Rates'!AZ161","v":807.83232074139437},{"$f":"'Population 2016'!BA161*'Prevalence Rates'!BA161","v":125.08580494263018},{"$f":"'Population 2016'!BB161*'Prevalence Rates'!BB161","v":289.10697246248895},{"$f":"'Population 2016'!BC161*'Prevalence Rates'!BC161","v":128.99770000000001},159]
[null,"Male 35-39",{"$f":"'Population 2016'!C162*'Prevalence Rates'!C162","v":483.32547281553406},{"$f":"'Population 2016'!D162*'Prevalence Rates'!D162","v":348.94575660884664},{"$f":"'Population 2016'!E162*'Prevalence Rates'!E162","v":431.98462709620486},{"$f":"'Population 2016'!F162*'Prevalence Rates'!F162","v":346.31560189761706},{"$f":"'Population 2016'!G162*'Prevalence Rates'!G162","v":244.35880000000003},{"$f":"'Population 2016'!H162*'Prevalence Rates'!H162","v":514.1499054721977},{"$f":"'Population 2016'!I162*'Prevalence Rates'!I162","v":190.71492122683148},{"$f":"'Population 2016'!J162*'Prevalence Rates'!J162","v":199.08420000000004},{"$f":"'Population 2016'!K162*'Prevalence Rates'!K162","v":68.842200000000005},{"$f":"'Population 2016'!L162*'Prevalence Rates'!L162","v":366.49605048543702},{"$f":"'Population 2016'!M162*'Prevalence Rates'!M162","v":366.49605048543702},{"$f":"'Population 2016'!N162*'Prevalence Rates'!N162","v":186.20451262135924},{"$f":"'Population 2016'!O162*'Prevalence Rates'!O162","v":188.71322983230365},{"$f":"'Population 2016'!P162*'Prevalence Rates'!P162","v":42.20644377758164},{"$f":"'Population 2016'!Q162*'Prevalence Rates'!Q162","v":160.28584554280675},{"$f":"'Population 2016'!R162*'Prevalence Rates'!R162","v":47.004645984112983},{"$f":"'Population 2016'!S162*'Prevalence Rates'!S162","v":1620.9057766441927},{"$f":"'Population 2016'!T162*'Prevalence Rates'!T162","v":905.09650617828777},{"$f":"'Population 2016'!U162*'Prevalence Rates'!U162","v":153.49950000000001},{"$f":"'Population 2016'!V162*'Prevalence Rates'!V162","v":270.39953645189769},{"$f":"'Population 2016'!W162*'Prevalence Rates'!W162","v":757.81433327449258},{"$f":"'Population 2016'!X162*'Prevalence Rates'!X162","v":757.81433327449258},{"$f":"'Population 2016'!Y162*'Prevalence Rates'!Y162","v":417.85906575463372},{"$f":"'Population 2016'!Z162*'Prevalence Rates'!Z162","v":1252.7372176522508},{"$f":"'Population 2016'!AA162*'Prevalence Rates'!AA162","v":996.46902102753768},{"$f":"'Population 2016'!AB162*'Prevalence Rates'!AB162","v":1154.6197165048545},{"$f":"'Population 2016'!AC162*'Prevalence Rates'!AC162","v":1788.891085613416},{"$f":"'Population 2016'!AD162*'Prevalence Rates'!AD162","v":910.53078287731694},{"$f":"'Population 2016'!AE162*'Prevalence Rates'!AE162","v":664.52541482789059},{"$f":"'Population 2016'!AF162*'Prevalence Rates'!AF162","v":107.60470000000001},{"$f":"'Population 2016'!AG162*'Prevalence Rates'!AG162","v":255.90419701446723},{"$f":"'Population 2016'!AH162*'Prevalence Rates'!AH162","v":1132.4446926743162},{"$f":"'Population 2016'!AI162*'Prevalence Rates'!AI162","v":1592.0521683583411},{"$f":"'Population 2016'!AJ162*'Prevalence Rates'!AJ162","v":181.71860000000004},{"$f":"'Population 2016'!AK162*'Prevalence Rates'!AK162","v":242.01183839364523},{"$f":"'Population 2016'!AL162*'Prevalence Rates'!AL162","v":164.4643951456311},{"$f":"'Population 2016'!AM162*'Prevalence Rates'!AM162","v":632.67625631067972},{"$f":"'Population 2016'!AN162*'Prevalence Rates'!AN162","v":50.236200000000004},{"$f":"'Population 2016'!AO162*'Prevalence Rates'!AO162","v":50.236200000000004},{"$f":"'Population 2016'!AP162*'Prevalence Rates'!AP162","v":258.72603680494262},{"$f":"'Population 2016'!AQ162*'Prevalence Rates'!AQ162","v":270.42991694616069},{"$f":"'Population 2016'!AR162*'Prevalence Rates'!AR162","v":9925.3707000000013},{"$f":"'Population 2016'!AS162*'Prevalence Rates'!AS162","v":190.71492122683148},{"$f":"'Population 2016'!AT162*'Prevalence Rates'!AT162","v":69.772500000000008},{"$f":"'Population 2016'!AU162*'Prevalence Rates'!AU162","v":69.772500000000008},{"$f":"'Population 2016'!AV162*'Prevalence Rates'!AV162","v":141.83174801412181},{"$f":"'Population 2016'!AW162*'Prevalence Rates'!AW162","v":500.90264148278908},{"$f":"'Population 2016'!AX162*'Prevalence Rates'!AX162","v":130.24200000000002},{"$f":"'Population 2016'!AY162*'Prevalence Rates'!AY162","v":684.88258737415015},{"$f":"'Population 2016'!AZ162*'Prevalence Rates'!AZ162","v":794.06633702559577},{"$f":"'Population 2016'!BA162*'Prevalence Rates'!BA162","v":118.58245895851724},{"$f":"'Population 2016'!BB162*'Prevalence Rates'!BB162","v":311.29783993821718},{"$f":"'Population 2016'!BC162*'Prevalence Rates'!BC162","v":153.49950000000001},160]
[null,"Male 40-44",{"$f":"'Population 2016'!C163*'Prevalence Rates'!C163","v":372.84105776699033},{"$f":"'Population 2016'!D163*'Prevalence Rates'!D163","v":328.33969530980937},{"$f":"'Population 2016'!E163*'Prevalence Rates'!E163","v":476.07685110326577},{"$f":"'Population 2016'!F163*'Prevalence Rates'!F163","v":406.84025207413958},{"$f":"'Population 2016'!G163*'Prevalence Rates'!G163","v":292.42430000000002},{"$f":"'Population 2016'!H163*'Prevalence Rates'!H163","v":574.14481288614309},{"$f":"'Population 2016'!I163*'Prevalence Rates'!I163","v":250.78441138570173},{"$f":"'Population 2016'!J163*'Prevalence Rates'!J163","v":222.34170000000003},{"$f":"'Population 2016'!K163*'Prevalence Rates'!K163","v":90.549200000000013},{"$f":"'Population 2016'!L163*'Prevalence Rates'!L163","v":437.93715123565767},{"$f":"'Population 2016'!M163*'Prevalence Rates'!M163","v":437.93715123565767},{"$f":"'Population 2016'!N163*'Prevalence Rates'!N163","v":168.57150953221537},{"$f":"'Population 2016'!O163*'Prevalence Rates'!O163","v":192.18454342453666},{"$f":"'Population 2016'!P163*'Prevalence Rates'!P163","v":50.22032550750221},{"$f":"'Population 2016'!Q163*'Prevalence Rates'!Q163","v":208.07477356575467},{"$f":"'Population 2016'!R163*'Prevalence Rates'!R163","v":47.362095763459848},{"$f":"'Population 2016'!S163*'Prevalence Rates'!S163","v":1591.0585509784669},{"$f":"'Population 2016'!T163*'Prevalence Rates'!T163","v":676.57155450132393},{"$f":"'Population 2016'!U163*'Prevalence Rates'!U163","v":174.27620000000002},{"$f":"'Population 2016'!V163*'Prevalence Rates'!V163","v":275.59952753751111},{"$f":"'Population 2016'!W163*'Prevalence Rates'!W163","v":809.76128353927641},{"$f":"'Population 2016'!X163*'Prevalence Rates'!X163","v":809.76128353927641},{"$f":"'Population 2016'!Y163*'Prevalence Rates'!Y163","v":442.48574073256844},{"$f":"'Population 2016'!Z163*'Prevalence Rates'!Z163","v":908.9983469549868},{"$f":"'Population 2016'!AA163*'Prevalence Rates'!AA163","v":918.90930594375493},{"$f":"'Population 2016'!AB163*'Prevalence Rates'!AB163","v":1126.9816776699029},{"$f":"'Population 2016'!AC163*'Prevalence Rates'!AC163","v":1514.9827389232128},{"$f":"'Population 2016'!AD163*'Prevalence Rates'!AD163","v":949.97615975286863},{"$f":"'Population 2016'!AE163*'Prevalence Rates'!AE163","v":652.79060679611655},{"$f":"'Population 2016'!AF163*'Prevalence Rates'!AF163","v":108.22490000000002},{"$f":"'Population 2016'!AG163*'Prevalence Rates'!AG163","v":251.38520261713808},{"$f":"'Population 2016'!AH163*'Prevalence Rates'!AH163","v":1164.1318218887911},{"$f":"'Population 2016'!AI163*'Prevalence Rates'!AI163","v":1432.7093497793473},{"$f":"'Population 2016'!AJ163*'Prevalence Rates'!AJ163","v":198.46400000000003},{"$f":"'Population 2016'!AK163*'Prevalence Rates'!AK163","v":269.4599307149162},{"$f":"'Population 2016'!AL163*'Prevalence Rates'!AL163","v":203.11550000000003},{"$f":"'Population 2016'!AM163*'Prevalence Rates'!AM163","v":629.38106747572829},{"$f":"'Population 2016'!AN163*'Prevalence Rates'!AN163","v":51.476600000000005},{"$f":"'Population 2016'!AO163*'Prevalence Rates'!AO163","v":51.476600000000005},{"$f":"'Population 2016'!AP163*'Prevalence Rates'!AP163","v":253.50757109443956},{"$f":"'Population 2016'!AQ163*'Prevalence Rates'!AQ163","v":275.63675048543695},{"$f":"'Population 2016'!AR163*'Prevalence Rates'!AR163","v":9870.7931000000008},{"$f":"'Population 2016'!AS163*'Prevalence Rates'!AS163","v":250.78441138570173},{"$f":"'Population 2016'!AT163*'Prevalence Rates'!AT163","v":68.222000000000008},{"$f":"'Population 2016'!AU163*'Prevalence Rates'!AU163","v":68.222000000000008},{"$f":"'Population 2016'!AV163*'Prevalence Rates'!AV163","v":160.69365578111211},{"$f":"'Population 2016'!AW163*'Prevalence Rates'!AW163","v":535.42747308031778},{"$f":"'Population 2016'!AX163*'Prevalence Rates'!AX163","v":131.79250000000002},{"$f":"'Population 2016'!AY163*'Prevalence Rates'!AY163","v":721.99445171462139},{"$f":"'Population 2016'!AZ163*'Prevalence Rates'!AZ163","v":826.65010136804949},{"$f":"'Population 2016'!BA163*'Prevalence Rates'!BA163","v":144.29913680494266},{"$f":"'Population 2016'!BB163*'Prevalence Rates'!BB163","v":328.60610017652255},{"$f":"'Population 2016'!BC163*'Prevalence Rates'!BC163","v":174.27620000000002},161]
[null,"Male 45-49",{"$f":"'Population 2016'!C164*'Prevalence Rates'!C164","v":293.83675242718448},{"$f":"'Population 2016'!D164*'Prevalence Rates'!D164","v":302.19626261112853},{"$f":"'Population 2016'!E164*'Prevalence Rates'!E164","v":480.06020388349521},{"$f":"'Population 2016'!F164*'Prevalence Rates'!F164","v":392.76342524271854},{"$f":"'Population 2016'!G164*'Prevalence Rates'!G164","v":310.99860000000001},{"$f":"'Population 2016'!H164*'Prevalence Rates'!H164","v":593.70770485436901},{"$f":"'Population 2016'!I164*'Prevalence Rates'!I164","v":248.83817766990296},{"$f":"'Population 2016'!J164*'Prevalence Rates'!J164","v":219.26520000000002},{"$f":"'Population 2016'!K164*'Prevalence Rates'!K164","v":91.981999999999999},{"$f":"'Population 2016'!L164*'Prevalence Rates'!L164","v":484.37790097087384},{"$f":"'Population 2016'!M164*'Prevalence Rates'!M164","v":484.37790097087384},{"$f":"'Population 2016'!N164*'Prevalence Rates'!N164","v":141.64242815533981},{"$f":"'Population 2016'!O164*'Prevalence Rates'!O164","v":201.88470291262138},{"$f":"'Population 2016'!P164*'Prevalence Rates'!P164","v":50.539743689320389},{"$f":"'Population 2016'!Q164*'Prevalence Rates'!Q164","v":190.84251844660196},{"$f":"'Population 2016'!R164*'Prevalence Rates'!R164","v":43.700281553398064},{"$f":"'Population 2016'!S164*'Prevalence Rates'!S164","v":1393.39244796039},{"$f":"'Population 2016'!T164*'Prevalence Rates'!T164","v":475.5215533980583},{"$f":"'Population 2016'!U164*'Prevalence Rates'!U164","v":187.69300000000001},{"$f":"'Population 2016'!V164*'Prevalence Rates'!V164","v":268.65036893203887},{"$f":"'Population 2016'!W164*'Prevalence Rates'!W164","v":774.91746699029136},{"$f":"'Population 2016'!X164*'Prevalence Rates'!X164","v":774.91746699029136},{"$f":"'Population 2016'!Y164*'Prevalence Rates'!Y164","v":433.48884466019422},{"$f":"'Population 2016'!Z164*'Prevalence Rates'!Z164","v":758.75835728155334},{"$f":"'Population 2016'!AA164*'Prevalence Rates'!AA164","v":850.51629855074282},{"$f":"'Population 2016'!AB164*'Prevalence Rates'!AB164","v":1051.0132194174757},{"$f":"'Population 2016'!AC164*'Prevalence Rates'!AC164","v":1370.0778252427183},{"$f":"'Population 2016'!AD164*'Prevalence Rates'!AD164","v":1001.1139553398059},{"$f":"'Population 2016'!AE164*'Prevalence Rates'!AE164","v":684.86776699029133},{"$f":"'Population 2016'!AF164*'Prevalence Rates'!AF164","v":99.937200000000004},{"$f":"'Population 2016'!AG164*'Prevalence Rates'!AG164","v":263.73789784719293},{"$f":"'Population 2016'!AH164*'Prevalence Rates'!AH164","v":1106.091833009709},{"$f":"'Population 2016'!AI164*'Prevalence Rates'!AI164","v":1166.2199009708738},{"$f":"'Population 2016'!AJ164*'Prevalence Rates'!AJ164","v":184.7098},{"$f":"'Population 2016'!AK164*'Prevalence Rates'!AK164","v":262.17557864077679},{"$f":"'Population 2016'!AL164*'Prevalence Rates'!AL164","v":213.10571262135926},{"$f":"'Population 2016'!AM164*'Prevalence Rates'!AM164","v":564.59835631067961},{"$f":"'Population 2016'!AN164*'Prevalence Rates'!AN164","v":53.697600000000001},{"$f":"'Population 2016'!AO164*'Prevalence Rates'!AO164","v":53.697600000000001},{"$f":"'Population 2016'!AP164*'Prevalence Rates'!AP164","v":265.76382233009707},{"$f":"'Population 2016'!AQ164*'Prevalence Rates'!AQ164","v":285.93256699029126},{"$f":"'Population 2016'!AR164*'Prevalence Rates'!AR164","v":9360.0385999999999},{"$f":"'Population 2016'!AS164*'Prevalence Rates'!AS164","v":248.83817766990296},{"$f":"'Population 2016'!AT164*'Prevalence Rates'!AT164","v":65.381799999999998},{"$f":"'Population 2016'!AU164*'Prevalence Rates'!AU164","v":65.381799999999998},{"$f":"'Population 2016'!AV164*'Prevalence Rates'!AV164","v":161.816},{"$f":"'Population 2016'!AW164*'Prevalence Rates'!AW164","v":541.35820582524275},{"$f":"'Population 2016'!AX164*'Prevalence Rates'!AX164","v":127.28320000000001},{"$f":"'Population 2016'!AY164*'Prevalence Rates'!AY164","v":696.51959932176237},{"$f":"'Population 2016'!AZ164*'Prevalence Rates'!AZ164","v":803.50196893203884},{"$f":"'Population 2016'!BA164*'Prevalence Rates'!BA164","v":141.45186407766991},{"$f":"'Population 2016'!BB164*'Prevalence Rates'!BB164","v":301.84527087378643},{"$f":"'Population 2016'!BC164*'Prevalence Rates'!BC164","v":187.69300000000001},162]
[null,"Male 50-54",{"$f":"'Population 2016'!C165*'Prevalence Rates'!C165","v":300.303972815534},{"$f":"'Population 2016'!D165*'Prevalence Rates'!D165","v":302.59193693205964},{"$f":"'Population 2016'!E165*'Prevalence Rates'!E165","v":475.52232135922338},{"$f":"'Population 2016'!F165*'Prevalence Rates'!F165","v":457.07556504854381},{"$f":"'Population 2016'!G165*'Prevalence Rates'!G165","v":347.79140000000001},{"$f":"'Population 2016'!H165*'Prevalence Rates'!H165","v":664.04241553398072},{"$f":"'Population 2016'!I165*'Prevalence Rates'!I165","v":285.82516213592237},{"$f":"'Population 2016'!J165*'Prevalence Rates'!J165","v":235.1756},{"$f":"'Population 2016'!K165*'Prevalence Rates'!K165","v":94.468000000000004},{"$f":"'Population 2016'!L165*'Prevalence Rates'!L165","v":563.48097281553407},{"$f":"'Population 2016'!M165*'Prevalence Rates'!M165","v":563.48097281553407},{"$f":"'Population 2016'!N165*'Prevalence Rates'!N165","v":181.50586601941748},{"$f":"'Population 2016'!O165*'Prevalence Rates'!O165","v":228.95445631067963},{"$f":"'Population 2016'!P165*'Prevalence Rates'!P165","v":51.824652427184468},{"$f":"'Population 2016'!Q165*'Prevalence Rates'!Q165","v":194.88780873786411},{"$f":"'Population 2016'!R165*'Prevalence Rates'!R165","v":55.592489320388353},{"$f":"'Population 2016'!S165*'Prevalence Rates'!S165","v":1441.835295392641},{"$f":"'Population 2016'!T165*'Prevalence Rates'!T165","v":467.2423834951457},{"$f":"'Population 2016'!U165*'Prevalence Rates'!U165","v":178.99200000000002},{"$f":"'Population 2016'!V165*'Prevalence Rates'!V165","v":278.60896019417476},{"$f":"'Population 2016'!W165*'Prevalence Rates'!W165","v":807.57995242718459},{"$f":"'Population 2016'!X165*'Prevalence Rates'!X165","v":807.57995242718459},{"$f":"'Population 2016'!Y165*'Prevalence Rates'!Y165","v":456.2034902912622},{"$f":"'Population 2016'!Z165*'Prevalence Rates'!Z165","v":761.3828097087378},{"$f":"'Population 2016'!AA165*'Prevalence Rates'!AA165","v":888.72613838761504},{"$f":"'Population 2016'!AB165*'Prevalence Rates'!AB165","v":1058.3119223300971},{"$f":"'Population 2016'!AC165*'Prevalence Rates'!AC165","v":1476.2688621359223},{"$f":"'Population 2016'!AD165*'Prevalence Rates'!AD165","v":1160.0167495145631},{"$f":"'Population 2016'!AE165*'Prevalence Rates'!AE165","v":807.16558252427194},{"$f":"'Population 2016'!AF165*'Prevalence Rates'!AF165","v":119.07940000000001},{"$f":"'Population 2016'!AG165*'Prevalence Rates'!AG165","v":310.83395103419167},{"$f":"'Population 2016'!AH165*'Prevalence Rates'!AH165","v":1116.0630407766992},{"$f":"'Population 2016'!AI165*'Prevalence Rates'!AI165","v":1167.9848951456311},{"$f":"'Population 2016'!AJ165*'Prevalence Rates'!AJ165","v":186.20140000000001},{"$f":"'Population 2016'!AK165*'Prevalence Rates'!AK165","v":268.61592038834959},{"$f":"'Population 2016'!AL165*'Prevalence Rates'!AL165","v":239.03252038834955},{"$f":"'Population 2016'!AM165*'Prevalence Rates'!AM165","v":557.15363106796121},{"$f":"'Population 2016'!AN165*'Prevalence Rates'!AN165","v":70.602400000000003},{"$f":"'Population 2016'!AO165*'Prevalence Rates'!AO165","v":70.602400000000003},{"$f":"'Population 2016'!AP165*'Prevalence Rates'!AP165","v":312.44313495145633},{"$f":"'Population 2016'!AQ165*'Prevalence Rates'!AQ165","v":330.54430873786407},{"$f":"'Population 2016'!AR165*'Prevalence Rates'!AR165","v":10039.9596},{"$f":"'Population 2016'!AS165*'Prevalence Rates'!AS165","v":285.82516213592237},{"$f":"'Population 2016'!AT165*'Prevalence Rates'!AT165","v":74.58},{"$f":"'Population 2016'!AU165*'Prevalence Rates'!AU165","v":74.58},{"$f":"'Population 2016'!AV165*'Prevalence Rates'!AV165","v":178.11542718446603},{"$f":"'Population 2016'!AW165*'Prevalence Rates'!AW165","v":558.48088737864089},{"$f":"'Population 2016'!AX165*'Prevalence Rates'!AX165","v":140.70760000000001},{"$f":"'Population 2016'!AY165*'Prevalence Rates'!AY165","v":778.48383378525534},{"$f":"'Population 2016'!AZ165*'Prevalence Rates'!AZ165","v":954.22389223300968},{"$f":"'Population 2016'!BA165*'Prevalence Rates'!BA165","v":156.34153398058251},{"$f":"'Population 2016'!BB165*'Prevalence Rates'!BB165","v":306.67157766990294},{"$f":"'Population 2016'!BC165*'Prevalence Rates'!BC165","v":178.99200000000002},163]
[null,"Male 55-59",{"$f":"'Population 2016'!C166*'Prevalence Rates'!C166","v":224.39992475728155},{"$f":"'Population 2016'!D166*'Prevalence Rates'!D166","v":232.65940539628755},{"$f":"'Population 2016'!E166*'Prevalence Rates'!E166","v":371.1448746690204},{"$f":"'Population 2016'!F166*'Prevalence Rates'!F166","v":357.12002383053846},{"$f":"'Population 2016'!G166*'Prevalence Rates'!G166","v":296.02350000000001},{"$f":"'Population 2016'!H166*'Prevalence Rates'!H166","v":490.08697418358344},{"$f":"'Population 2016'!I166*'Prevalence Rates'!I166","v":236.08689982347752},{"$f":"'Population 2016'!J166*'Prevalence Rates'!J166","v":186.03600000000003},{"$f":"'Population 2016'!K166*'Prevalence Rates'!K166","v":78.772000000000006},{"$f":"'Population 2016'!L166*'Prevalence Rates'!L166","v":455.81005604589592},{"$f":"'Population 2016'!M166*'Prevalence Rates'!M166","v":455.81005604589592},{"$f":"'Population 2016'!N166*'Prevalence Rates'!N166","v":141.99884112974405},{"$f":"'Population 2016'!O166*'Prevalence Rates'!O166","v":152.01027846425421},{"$f":"'Population 2016'!P166*'Prevalence Rates'!P166","v":41.688466019417476},{"$f":"'Population 2016'!Q166*'Prevalence Rates'!Q166","v":168.24634355692851},{"$f":"'Population 2016'!R166*'Prevalence Rates'!R166","v":45.882903795233901},{"$f":"'Population 2016'!S166*'Prevalence Rates'!S166","v":1137.249844037661},{"$f":"'Population 2016'!T166*'Prevalence Rates'!T166","v":331.67659090909092},{"$f":"'Population 2016'!U166*'Prevalence Rates'!U166","v":148.53550000000001},{"$f":"'Population 2016'!V166*'Prevalence Rates'!V166","v":199.46341526919684},{"$f":"'Population 2016'!W166*'Prevalence Rates'!W166","v":666.57112400706092},{"$f":"'Population 2016'!X166*'Prevalence Rates'!X166","v":666.57112400706092},{"$f":"'Population 2016'!Y166*'Prevalence Rates'!Y166","v":341.69486981465138},{"$f":"'Population 2016'!Z166*'Prevalence Rates'!Z166","v":569.38383362753757},{"$f":"'Population 2016'!AA166*'Prevalence Rates'!AA166","v":678.83806015020707},{"$f":"'Population 2016'!AB166*'Prevalence Rates'!AB166","v":824.42114563106804},{"$f":"'Population 2016'!AC166*'Prevalence Rates'!AC166","v":1137.9522259488085},{"$f":"'Population 2016'!AD166*'Prevalence Rates'!AD166","v":972.68279788173004},{"$f":"'Population 2016'!AE166*'Prevalence Rates'!AE166","v":672.05954324801417},{"$f":"'Population 2016'!AF166*'Prevalence Rates'!AF166","v":107.0545},{"$f":"'Population 2016'!AG166*'Prevalence Rates'!AG166","v":258.80553839364524},{"$f":"'Population 2016'!AH166*'Prevalence Rates'!AH166","v":843.29389673433377},{"$f":"'Population 2016'!AI166*'Prevalence Rates'!AI166","v":884.44197109443974},{"$f":"'Population 2016'!AJ166*'Prevalence Rates'!AJ166","v":144.97400000000002},{"$f":"'Population 2016'!AK166*'Prevalence Rates'!AK166","v":217.5482762577229},{"$f":"'Population 2016'!AL166*'Prevalence Rates'!AL166","v":192.37795145631074},{"$f":"'Population 2016'!AM166*'Prevalence Rates'!AM166","v":388.36926941747578},{"$f":"'Population 2016'!AN166*'Prevalence Rates'!AN166","v":63.478500000000004},{"$f":"'Population 2016'!AO166*'Prevalence Rates'!AO166","v":63.478500000000004},{"$f":"'Population 2016'!AP166*'Prevalence Rates'!AP166","v":245.67415975286852},{"$f":"'Population 2016'!AQ166*'Prevalence Rates'!AQ166","v":240.96087202118272},{"$f":"'Population 2016'!AR166*'Prevalence Rates'!AR166","v":7865.6775000000007},{"$f":"'Population 2016'!AS166*'Prevalence Rates'!AS166","v":236.08689982347752},{"$f":"'Population 2016'!AT166*'Prevalence Rates'!AT166","v":56.565000000000005},{"$f":"'Population 2016'!AU166*'Prevalence Rates'!AU166","v":56.565000000000005},{"$f":"'Population 2016'!AV166*'Prevalence Rates'!AV166","v":134.71053398058251},{"$f":"'Population 2016'!AW166*'Prevalence Rates'!AW166","v":453.84097793468675},{"$f":"'Population 2016'!AX166*'Prevalence Rates'!AX166","v":107.26400000000001},{"$f":"'Population 2016'!AY166*'Prevalence Rates'!AY166","v":624.5294329500947},{"$f":"'Population 2016'!AZ166*'Prevalence Rates'!AZ166","v":747.56885348631954},{"$f":"'Population 2016'!BA166*'Prevalence Rates'!BA166","v":126.92593556928509},{"$f":"'Population 2016'!BB166*'Prevalence Rates'!BB166","v":232.50949779346868},{"$f":"'Population 2016'!BC166*'Prevalence Rates'!BC166","v":148.53550000000001},164]
[null,"Male 60-64",{"$f":"'Population 2016'!C167*'Prevalence Rates'!C167","v":201.41492718446602},{"$f":"'Population 2016'!D167*'Prevalence Rates'!D167","v":214.57015746687358},{"$f":"'Population 2016'!E167*'Prevalence Rates'!E167","v":346.99227978817305},{"$f":"'Population 2016'!F167*'Prevalence Rates'!F167","v":303.8907519858783},{"$f":"'Population 2016'!G167*'Prevalence Rates'!G167","v":287.01500000000004},{"$f":"'Population 2016'!H167*'Prevalence Rates'!H167","v":472.21808495145632},{"$f":"'Population 2016'!I167*'Prevalence Rates'!I167","v":208.31197043248017},{"$f":"'Population 2016'!J167*'Prevalence Rates'!J167","v":162.99100000000001},{"$f":"'Population 2016'!K167*'Prevalence Rates'!K167","v":64.52600000000001},{"$f":"'Population 2016'!L167*'Prevalence Rates'!L167","v":441.09254236540164},{"$f":"'Population 2016'!M167*'Prevalence Rates'!M167","v":441.09254236540164},{"$f":"'Population 2016'!N167*'Prevalence Rates'!N167","v":119.12654457193294},{"$f":"'Population 2016'!O167*'Prevalence Rates'!O167","v":144.97473962930275},{"$f":"'Population 2016'!P167*'Prevalence Rates'!P167","v":36.815788172992058},{"$f":"'Population 2016'!Q167*'Prevalence Rates'!Q167","v":148.19314408649603},{"$f":"'Population 2016'!R167*'Prevalence Rates'!R167","v":35.740367166813776},{"$f":"'Population 2016'!S167*'Prevalence Rates'!S167","v":967.76955617389547},{"$f":"'Population 2016'!T167*'Prevalence Rates'!T167","v":272.64030450132395},{"$f":"'Population 2016'!U167*'Prevalence Rates'!U167","v":143.08850000000001},{"$f":"'Population 2016'!V167*'Prevalence Rates'!V167","v":165.30872087378643},{"$f":"'Population 2016'!W167*'Prevalence Rates'!W167","v":557.6167936893205},{"$f":"'Population 2016'!X167*'Prevalence Rates'!X167","v":557.6167936893205},{"$f":"'Population 2016'!Y167*'Prevalence Rates'!Y167","v":290.70898609885262},{"$f":"'Population 2016'!Z167*'Prevalence Rates'!Z167","v":475.51045233892324},{"$f":"'Population 2016'!AA167*'Prevalence Rates'!AA167","v":571.55295922521748},{"$f":"'Population 2016'!AB167*'Prevalence Rates'!AB167","v":749.07436893203885},{"$f":"'Population 2016'!AC167*'Prevalence Rates'!AC167","v":936.03934333627535},{"$f":"'Population 2016'!AD167*'Prevalence Rates'!AD167","v":927.82391085613426},{"$f":"'Population 2016'!AE167*'Prevalence Rates'!AE167","v":636.04421888790819},{"$f":"'Population 2016'!AF167*'Prevalence Rates'!AF167","v":80.238500000000002},{"$f":"'Population 2016'!AG167*'Prevalence Rates'!AG167","v":244.93628305000195},{"$f":"'Population 2016'!AH167*'Prevalence Rates'!AH167","v":729.65429214474864},{"$f":"'Population 2016'!AI167*'Prevalence Rates'!AI167","v":751.50608517210958},{"$f":"'Population 2016'!AJ167*'Prevalence Rates'!AJ167","v":137.851},{"$f":"'Population 2016'!AK167*'Prevalence Rates'!AK167","v":189.05442718446605},{"$f":"'Population 2016'!AL167*'Prevalence Rates'!AL167","v":170.79538349514567},{"$f":"'Population 2016'!AM167*'Prevalence Rates'!AM167","v":331.29780825242722},{"$f":"'Population 2016'!AN167*'Prevalence Rates'!AN167","v":50.699000000000005},{"$f":"'Population 2016'!AO167*'Prevalence Rates'!AO167","v":50.699000000000005},{"$f":"'Population 2016'!AP167*'Prevalence Rates'!AP167","v":231.75757215357461},{"$f":"'Population 2016'!AQ167*'Prevalence Rates'!AQ167","v":193.91194263018537},{"$f":"'Population 2016'!AR167*'Prevalence Rates'!AR167","v":6965.2465000000002},{"$f":"'Population 2016'!AS167*'Prevalence Rates'!AS167","v":208.31197043248017},{"$f":"'Population 2016'!AT167*'Prevalence Rates'!AT167","v":55.727000000000004},{"$f":"'Population 2016'!AU167*'Prevalence Rates'!AU167","v":55.727000000000004},{"$f":"'Population 2016'!AV167*'Prevalence Rates'!AV167","v":140.00627978817298},{"$f":"'Population 2016'!AW167*'Prevalence Rates'!AW167","v":397.30852162400708},{"$f":"'Population 2016'!AX167*'Prevalence Rates'!AX167","v":98.465000000000003},{"$f":"'Population 2016'!AY167*'Prevalence Rates'!AY167","v":538.7086635221699},{"$f":"'Population 2016'!AZ167*'Prevalence Rates'!AZ167","v":661.49717453662845},{"$f":"'Population 2016'!BA167*'Prevalence Rates'!BA167","v":111.72377978817299},{"$f":"'Population 2016'!BB167*'Prevalence Rates'!BB167","v":189.9731392321271},{"$f":"'Population 2016'!BC167*'Prevalence Rates'!BC167","v":143.08850000000001},165]
[null,"Male 65-69",{"$f":"'Population 2016'!C168*'Prevalence Rates'!C168","v":147.76927864077672},{"$f":"'Population 2016'!D168*'Prevalence Rates'!D168","v":168.52765676504282},{"$f":"'Population 2016'!E168*'Prevalence Rates'!E168","v":281.39041191526923},{"$f":"'Population 2016'!F168*'Prevalence Rates'!F168","v":275.61479457193303},{"$f":"'Population 2016'!G168*'Prevalence Rates'!G168","v":255.59010000000004},{"$f":"'Population 2016'!H168*'Prevalence Rates'!H168","v":393.10516151809355},{"$f":"'Population 2016'!I168*'Prevalence Rates'!I168","v":175.41425692850842},{"$f":"'Population 2016'!J168*'Prevalence Rates'!J168","v":129.83130000000003},{"$f":"'Population 2016'!K168*'Prevalence Rates'!K168","v":53.105400000000003},{"$f":"'Population 2016'!L168*'Prevalence Rates'!L168","v":368.55873389232136},{"$f":"'Population 2016'!M168*'Prevalence Rates'!M168","v":368.55873389232136},{"$f":"'Population 2016'!N168*'Prevalence Rates'!N168","v":93.184479214474848},{"$f":"'Population 2016'!O168*'Prevalence Rates'!O168","v":117.53486610767874},{"$f":"'Population 2016'!P168*'Prevalence Rates'!P168","v":31.152576169461607},{"$f":"'Population 2016'!Q168*'Prevalence Rates'!Q168","v":107.74541001765226},{"$f":"'Population 2016'!R168*'Prevalence Rates'!R168","v":24.504444571932925},{"$f":"'Population 2016'!S168*'Prevalence Rates'!S168","v":755.77485038189297},{"$f":"'Population 2016'!T168*'Prevalence Rates'!T168","v":191.13000926743163},{"$f":"'Population 2016'!U168*'Prevalence Rates'!U168","v":121.03470000000002},{"$f":"'Population 2016'!V168*'Prevalence Rates'!V168","v":138.25084329214476},{"$f":"'Population 2016'!W168*'Prevalence Rates'!W168","v":462.65569752868498},{"$f":"'Population 2016'!X168*'Prevalence Rates'!X168","v":462.65569752868498},{"$f":"'Population 2016'!Y168*'Prevalence Rates'!Y168","v":237.59101588702563},{"$f":"'Population 2016'!Z168*'Prevalence Rates'!Z168","v":293.30842321270961},{"$f":"'Population 2016'!AA168*'Prevalence Rates'!AA168","v":401.96958304860607},{"$f":"'Population 2016'!AB168*'Prevalence Rates'!AB168","v":592.53214368932038},{"$f":"'Population 2016'!AC168*'Prevalence Rates'!AC168","v":645.48542700794349},{"$f":"'Population 2016'!AD168*'Prevalence Rates'!AD168","v":748.20890176522505},{"$f":"'Population 2016'!AE168*'Prevalence Rates'!AE168","v":486.81651368049427},{"$f":"'Population 2016'!AF168*'Prevalence Rates'!AF168","v":58.318200000000004},{"$f":"'Population 2016'!AG168*'Prevalence Rates'!AG168","v":187.46971334279905},{"$f":"'Population 2016'!AH168*'Prevalence Rates'!AH168","v":524.57308172992066},{"$f":"'Population 2016'!AI168*'Prevalence Rates'!AI168","v":549.50433005295679},{"$f":"'Population 2016'!AJ168*'Prevalence Rates'!AJ168","v":107.83980000000001},{"$f":"'Population 2016'!AK168*'Prevalence Rates'!AK168","v":152.80494466019422},{"$f":"'Population 2016'!AL168*'Prevalence Rates'!AL168","v":158.08100679611653},{"$f":"'Population 2016'!AM168*'Prevalence Rates'!AM168","v":259.49416456310684},{"$f":"'Population 2016'!AN168*'Prevalence Rates'!AN168","v":38.118600000000001},{"$f":"'Population 2016'!AO168*'Prevalence Rates'!AO168","v":38.118600000000001},{"$f":"'Population 2016'!AP168*'Prevalence Rates'!AP168","v":174.29121023830541},{"$f":"'Population 2016'!AQ168*'Prevalence Rates'!AQ168","v":156.93351791703446},{"$f":"'Population 2016'!AR168*'Prevalence Rates'!AR168","v":5436.1359000000002},{"$f":"'Population 2016'!AS168*'Prevalence Rates'!AS168","v":175.41425692850842},{"$f":"'Population 2016'!AT168*'Prevalence Rates'!AT168","v":45.123300000000008},{"$f":"'Population 2016'!AU168*'Prevalence Rates'!AU168","v":45.123300000000008},{"$f":"'Population 2016'!AV168*'Prevalence Rates'!AV168","v":109.12143336275375},{"$f":"'Population 2016'!AW168*'Prevalence Rates'!AW168","v":264.82205851721096},{"$f":"'Population 2016'!AX168*'Prevalence Rates'!AX168","v":76.72590000000001},{"$f":"'Population 2016'!AY168*'Prevalence Rates'!AY168","v":444.61834936750114},{"$f":"'Population 2016'!AZ168*'Prevalence Rates'!AZ168","v":543.62706195939984},{"$f":"'Population 2016'!BA168*'Prevalence Rates'!BA168","v":74.676638128861427},{"$f":"'Population 2016'!BB168*'Prevalence Rates'!BB168","v":141.52329293909975},{"$f":"'Population 2016'!BC168*'Prevalence Rates'!BC168","v":121.03470000000002},166]
[null,"Male 70-74",{"$f":"'Population 2016'!C169*'Prevalence Rates'!C169","v":91.388481553398066},{"$f":"'Population 2016'!D169*'Prevalence Rates'!D169","v":114.72844325927915},{"$f":"'Population 2016'!E169*'Prevalence Rates'!E169","v":199.38341756398944},{"$f":"'Population 2016'!F169*'Prevalence Rates'!F169","v":180.04324805825249},{"$f":"'Population 2016'!G169*'Prevalence Rates'!G169","v":184.56570000000002},{"$f":"'Population 2016'!H169*'Prevalence Rates'!H169","v":298.38715061782881},{"$f":"'Population 2016'!I169*'Prevalence Rates'!I169","v":129.46100083848194},{"$f":"'Population 2016'!J169*'Prevalence Rates'!J169","v":93.015900000000016},{"$f":"'Population 2016'!K169*'Prevalence Rates'!K169","v":40.562100000000001},{"$f":"'Population 2016'!L169*'Prevalence Rates'!L169","v":295.35186209179176},{"$f":"'Population 2016'!M169*'Prevalence Rates'!M169","v":295.35186209179176},{"$f":"'Population 2016'!N169*'Prevalence Rates'!N169","v":65.581124536628423},{"$f":"'Population 2016'!O169*'Prevalence Rates'!O169","v":90.347675639894092},{"$f":"'Population 2016'!P169*'Prevalence Rates'!P169","v":17.260211120917919},{"$f":"'Population 2016'!Q169*'Prevalence Rates'!Q169","v":82.01749011473963},{"$f":"'Population 2016'!R169*'Prevalence Rates'!R169","v":20.373427096204768},{"$f":"'Population 2016'!S169*'Prevalence Rates'!S169","v":538.28637682793351},{"$f":"'Population 2016'!T169*'Prevalence Rates'!T169","v":113.3704203442189},{"$f":"'Population 2016'!U169*'Prevalence Rates'!U169","v":87.314400000000006},{"$f":"'Population 2016'!V169*'Prevalence Rates'!V169","v":104.25722210944396},{"$f":"'Population 2016'!W169*'Prevalence Rates'!W169","v":338.87657105030894},{"$f":"'Population 2016'!X169*'Prevalence Rates'!X169","v":338.87657105030894},{"$f":"'Population 2016'!Y169*'Prevalence Rates'!Y169","v":174.9938512797882},{"$f":"'Population 2016'!Z169*'Prevalence Rates'!Z169","v":208.08656213592235},{"$f":"'Population 2016'!AA169*'Prevalence Rates'!AA169","v":294.9901356913893},{"$f":"'Population 2016'!AB169*'Prevalence Rates'!AB169","v":411.30510291262135},{"$f":"'Population 2016'!AC169*'Prevalence Rates'!AC169","v":474.32339205648719},{"$f":"'Population 2016'!AD169*'Prevalence Rates'!AD169","v":562.06322992056482},{"$f":"'Population 2016'!AE169*'Prevalence Rates'!AE169","v":373.74263459841131},{"$f":"'Population 2016'!AF169*'Prevalence Rates'!AF169","v":49.032900000000005},{"$f":"'Population 2016'!AG169*'Prevalence Rates'!AG169","v":143.92573506274226},{"$f":"'Population 2016'!AH169*'Prevalence Rates'!AH169","v":384.40690538393648},{"$f":"'Population 2016'!AI169*'Prevalence Rates'!AI169","v":378.33539377758171},{"$f":"'Population 2016'!AJ169*'Prevalence Rates'!AJ169","v":76.563000000000002},{"$f":"'Population 2016'!AK169*'Prevalence Rates'!AK169","v":112.18590873786411},{"$f":"'Population 2016'!AL169*'Prevalence Rates'!AL169","v":118.92332621359226},{"$f":"'Population 2016'!AM169*'Prevalence Rates'!AM169","v":182.54289320388352},{"$f":"'Population 2016'!AN169*'Prevalence Rates'!AN169","v":31.765500000000003},{"$f":"'Population 2016'!AO169*'Prevalence Rates'!AO169","v":31.765500000000003},{"$f":"'Population 2016'!AP169*'Prevalence Rates'!AP169","v":139.95237908208298},{"$f":"'Population 2016'!AQ169*'Prevalence Rates'!AQ169","v":116.07609876434248},{"$f":"'Population 2016'!AR169*'Prevalence Rates'!AR169","v":3980.6244000000006},{"$f":"'Population 2016'!AS169*'Prevalence Rates'!AS169","v":129.46100083848194},{"$f":"'Population 2016'!AT169*'Prevalence Rates'!AT169","v":33.720300000000002},{"$f":"'Population 2016'!AU169*'Prevalence Rates'!AU169","v":33.720300000000002},{"$f":"'Population 2016'!AV169*'Prevalence Rates'!AV169","v":82.613160635481023},{"$f":"'Population 2016'!AW169*'Prevalence Rates'!AW169","v":201.49838578993825},{"$f":"'Population 2016'!AX169*'Prevalence Rates'!AX169","v":52.453800000000008},{"$f":"'Population 2016'!AY169*'Prevalence Rates'!AY169","v":322.17492525225691},{"$f":"'Population 2016'!AZ169*'Prevalence Rates'!AZ169","v":390.43240816416591},{"$f":"'Population 2016'!BA169*'Prevalence Rates'!BA169","v":57.039442188879086},{"$f":"'Population 2016'!BB169*'Prevalence Rates'!BB169","v":106.2083557811121},{"$f":"'Population 2016'!BC169*'Prevalence Rates'!BC169","v":87.314400000000006},167]
[null,"Male 75-79",{"$f":"'Population 2016'!C170*'Prevalence Rates'!C170","v":37.580864077669908},{"$f":"'Population 2016'!D170*'Prevalence Rates'!D170","v":39.132126675673852},{"$f":"'Population 2016'!E170*'Prevalence Rates'!E170","v":62.56233009708739},{"$f":"'Population 2016'!F170*'Prevalence Rates'!F170","v":61.105679611650501},{"$f":"'Population 2016'!G170*'Prevalence Rates'!G170","v":62.974000000000011},{"$f":"'Population 2016'!H170*'Prevalence Rates'!H170","v":100.21722683142103},{"$f":"'Population 2016'!I170*'Prevalence Rates'!I170","v":43.548673433362765},{"$f":"'Population 2016'!J170*'Prevalence Rates'!J170","v":29.600000000000005},{"$f":"'Population 2016'!K170*'Prevalence Rates'!K170","v":12.21},{"$f":"'Population 2016'!L170*'Prevalence Rates'!L170","v":100.68366195939986},{"$f":"'Population 2016'!M170*'Prevalence Rates'!M170","v":100.68366195939986},{"$f":"'Population 2016'!N170*'Prevalence Rates'!N170","v":25.920116504854374},{"$f":"'Population 2016'!O170*'Prevalence Rates'!O170","v":30.649650485436897},{"$f":"'Population 2016'!P170*'Prevalence Rates'!P170","v":4.3347149161518095},{"$f":"'Population 2016'!Q170*'Prevalence Rates'!Q170","v":24.720473962930278},{"$f":"'Population 2016'!R170*'Prevalence Rates'!R170","v":7.3357316857899404},{"$f":"'Population 2016'!S170*'Prevalence Rates'!S170","v":181.73360373039606},{"$f":"'Population 2016'!T170*'Prevalence Rates'!T170","v":41.13710944395411},{"$f":"'Population 2016'!U170*'Prevalence Rates'!U170","v":30.562000000000005},{"$f":"'Population 2016'!V170*'Prevalence Rates'!V170","v":33.641849955869375},{"$f":"'Population 2016'!W170*'Prevalence Rates'!W170","v":116.50846072374229},{"$f":"'Population 2016'!X170*'Prevalence Rates'!X170","v":116.50846072374229},{"$f":"'Population 2016'!Y170*'Prevalence Rates'!Y170","v":56.113292144748463},{"$f":"'Population 2016'!Z170*'Prevalence Rates'!Z170","v":67.357895851721096},{"$f":"'Population 2016'!AA170*'Prevalence Rates'!AA170","v":98.745314900598345},{"$f":"'Population 2016'!AB170*'Prevalence Rates'!AB170","v":146.88209708737864},{"$f":"'Population 2016'!AC170*'Prevalence Rates'!AC170","v":150.58222771403354},{"$f":"'Population 2016'!AD170*'Prevalence Rates'!AD170","v":179.86591526919685},{"$f":"'Population 2016'!AE170*'Prevalence Rates'!AE170","v":115.37272727272729},{"$f":"'Population 2016'!AF170*'Prevalence Rates'!AF170","v":15.836000000000002},{"$f":"'Population 2016'!AG170*'Prevalence Rates'!AG170","v":44.429249011857713},{"$f":"'Population 2016'!AH170*'Prevalence Rates'!AH170","v":135.96719505736985},{"$f":"'Population 2016'!AI170*'Prevalence Rates'!AI170","v":126.22264254192413},{"$f":"'Population 2016'!AJ170*'Prevalence Rates'!AJ170","v":25.456000000000003},{"$f":"'Population 2016'!AK170*'Prevalence Rates'!AK170","v":45.051304501323933},{"$f":"'Population 2016'!AL170*'Prevalence Rates'!AL170","v":40.375980582524278},{"$f":"'Population 2016'!AM170*'Prevalence Rates'!AM170","v":60.476679611650496},{"$f":"'Population 2016'!AN170*'Prevalence Rates'!AN170","v":10.360000000000001},{"$f":"'Population 2016'!AO170*'Prevalence Rates'!AO170","v":10.360000000000001},{"$f":"'Population 2016'!AP170*'Prevalence Rates'!AP170","v":48.632107678729035},{"$f":"'Population 2016'!AQ170*'Prevalence Rates'!AQ170","v":37.197964695498683},{"$f":"'Population 2016'!AR170*'Prevalence Rates'!AR170","v":1342.8040000000001},{"$f":"'Population 2016'!AS170*'Prevalence Rates'!AS170","v":43.548673433362765},{"$f":"'Population 2016'!AT170*'Prevalence Rates'!AT170","v":11.544000000000002},{"$f":"'Population 2016'!AU170*'Prevalence Rates'!AU170","v":11.544000000000002},{"$f":"'Population 2016'!AV170*'Prevalence Rates'!AV170","v":27.240229479258605},{"$f":"'Population 2016'!AW170*'Prevalence Rates'!AW170","v":75.265902912621371},{"$f":"'Population 2016'!AX170*'Prevalence Rates'!AX170","v":17.390000000000004},{"$f":"'Population 2016'!AY170*'Prevalence Rates'!AY170","v":112.11898125056132},{"$f":"'Population 2016'!AZ170*'Prevalence Rates'!AZ170","v":137.23848631950577},{"$f":"'Population 2016'!BA170*'Prevalence Rates'!BA170","v":15.938737864077671},{"$f":"'Population 2016'!BB170*'Prevalence Rates'!BB170","v":34.59888614298324},{"$f":"'Population 2016'!BC170*'Prevalence Rates'!BC170","v":30.562000000000005},168]
[null,"Male 80-84",{"$f":"'Population 2016'!C171*'Prevalence Rates'!C171","v":26.532592233009712},{"$f":"'Population 2016'!D171*'Prevalence Rates'!D171","v":26.97142816773307},{"$f":"'Population 2016'!E171*'Prevalence Rates'!E171","v":42.585040600176526},{"$f":"'Population 2016'!F171*'Prevalence Rates'!F171","v":40.16736981465138},{"$f":"'Population 2016'!G171*'Prevalence Rates'!G171","v":37.592000000000006},{"$f":"'Population 2016'!H171*'Prevalence Rates'!H171","v":61.808320388349529},{"$f":"'Population 2016'!I171*'Prevalence Rates'!I171","v":28.451073256840253},{"$f":"'Population 2016'!J171*'Prevalence Rates'!J171","v":20.942000000000004},{"$f":"'Population 2016'!K171*'Prevalence Rates'!K171","v":7.7700000000000014},{"$f":"'Population 2016'!L171*'Prevalence Rates'!L171","v":68.192730803177426},{"$f":"'Population 2016'!M171*'Prevalence Rates'!M171","v":68.192730803177426},{"$f":"'Population 2016'!N171*'Prevalence Rates'!N171","v":17.672806707855255},{"$f":"'Population 2016'!O171*'Prevalence Rates'!O171","v":19.504323036187117},{"$f":"'Population 2016'!P171*'Prevalence Rates'!P171","v":4.3984607237422777},{"$f":"'Population 2016'!Q171*'Prevalence Rates'!Q171","v":19.408051191526923},{"$f":"'Population 2016'!R171*'Prevalence Rates'!R171","v":5.5017987643424551},{"$f":"'Population 2016'!S171*'Prevalence Rates'!S171","v":123.61730342709556},{"$f":"'Population 2016'!T171*'Prevalence Rates'!T171","v":34.438901147396301},{"$f":"'Population 2016'!U171*'Prevalence Rates'!U171","v":18.130000000000003},{"$f":"'Population 2016'!V171*'Prevalence Rates'!V171","v":19.992082965578113},{"$f":"'Population 2016'!W171*'Prevalence Rates'!W171","v":73.729276257722873},{"$f":"'Population 2016'!X171*'Prevalence Rates'!X171","v":73.729276257722873},{"$f":"'Population 2016'!Y171*'Prevalence Rates'!Y171","v":36.208239187996476},{"$f":"'Population 2016'!Z171*'Prevalence Rates'!Z171","v":46.438755516328335},{"$f":"'Population 2016'!AA171*'Prevalence Rates'!AA171","v":67.053755720458668},{"$f":"'Population 2016'!AB171*'Prevalence Rates'!AB171","v":95.593631067961169},{"$f":"'Population 2016'!AC171*'Prevalence Rates'!AC171","v":109.04504148278906},{"$f":"'Population 2016'!AD171*'Prevalence Rates'!AD171","v":119.30922683142101},{"$f":"'Population 2016'!AE171*'Prevalence Rates'!AE171","v":81.048940864960286},{"$f":"'Population 2016'!AF171*'Prevalence Rates'!AF171","v":10.434000000000001},{"$f":"'Population 2016'!AG171*'Prevalence Rates'!AG171","v":31.211393376568562},{"$f":"'Population 2016'!AH171*'Prevalence Rates'!AH171","v":86.286873786407781},{"$f":"'Population 2016'!AI171*'Prevalence Rates'!AI171","v":91.744553398058287},{"$f":"'Population 2016'!AJ171*'Prevalence Rates'!AJ171","v":16.502000000000002},{"$f":"'Population 2016'!AK171*'Prevalence Rates'!AK171","v":25.241511032656675},{"$f":"'Population 2016'!AL171*'Prevalence Rates'!AL171","v":25.787922330097093},{"$f":"'Population 2016'!AM171*'Prevalence Rates'!AM171","v":36.529058252427191},{"$f":"'Population 2016'!AN171*'Prevalence Rates'!AN171","v":7.7700000000000014},{"$f":"'Population 2016'!AO171*'Prevalence Rates'!AO171","v":7.7700000000000014},{"$f":"'Population 2016'!AP171*'Prevalence Rates'!AP171","v":34.671677846425418},{"$f":"'Population 2016'!AQ171*'Prevalence Rates'!AQ171","v":26.015278022947932},{"$f":"'Population 2016'!AR171*'Prevalence Rates'!AR171","v":895.10400000000016},{"$f":"'Population 2016'!AS171*'Prevalence Rates'!AS171","v":28.451073256840253},{"$f":"'Population 2016'!AT171*'Prevalence Rates'!AT171","v":6.8820000000000006},{"$f":"'Population 2016'!AU171*'Prevalence Rates'!AU171","v":6.8820000000000006},{"$f":"'Population 2016'!AV171*'Prevalence Rates'!AV171","v":15.782965578111209},{"$f":"'Population 2016'!AW171*'Prevalence Rates'!AW171","v":49.572162400706098},{"$f":"'Population 2016'!AX171*'Prevalence Rates'!AX171","v":13.172000000000002},{"$f":"'Population 2016'!AY171*'Prevalence Rates'!AY171","v":74.174249537914278},{"$f":"'Population 2016'!AZ171*'Prevalence Rates'!AZ171","v":94.006419240953235},{"$f":"'Population 2016'!BA171*'Prevalence Rates'!BA171","v":13.978358340688439},{"$f":"'Population 2016'!BB171*'Prevalence Rates'!BB171","v":21.25018093556929},{"$f":"'Population 2016'!BC171*'Prevalence Rates'!BC171","v":18.130000000000003},169]
[null,"Male 85-89",{"$f":"'Population 2016'!C172*'Prevalence Rates'!C172","v":13.22444660194175},{"$f":"'Population 2016'!D172*'Prevalence Rates'!D172","v":12.278477670245294},{"$f":"'Population 2016'!E172*'Prevalence Rates'!E172","v":18.413231244483676},{"$f":"'Population 2016'!F172*'Prevalence Rates'!F172","v":22.818484554280676},{"$f":"'Population 2016'!G172*'Prevalence Rates'!G172","v":18.130000000000003},{"$f":"'Population 2016'!H172*'Prevalence Rates'!H172","v":28.787436893203889},{"$f":"'Population 2016'!I172*'Prevalence Rates'!I172","v":14.11652868490733},{"$f":"'Population 2016'!J172*'Prevalence Rates'!J172","v":9.1760000000000019},{"$f":"'Population 2016'!K172*'Prevalence Rates'!K172","v":4.1440000000000001},{"$f":"'Population 2016'!L172*'Prevalence Rates'!L172","v":31.573540158870266},{"$f":"'Population 2016'!M172*'Prevalence Rates'!M172","v":31.573540158870266},{"$f":"'Population 2016'!N172*'Prevalence Rates'!N172","v":12.118496028243602},{"$f":"'Population 2016'!O172*'Prevalence Rates'!O172","v":7.9824642541924105},{"$f":"'Population 2016'!P172*'Prevalence Rates'!P172","v":1.2749161518093557},{"$f":"'Population 2016'!Q172*'Prevalence Rates'!Q172","v":9.9165225066195966},{"$f":"'Population 2016'!R172*'Prevalence Rates'!R172","v":3.0281218005295685},{"$f":"'Population 2016'!S172*'Prevalence Rates'!S172","v":61.743107013957591},{"$f":"'Population 2016'!T172*'Prevalence Rates'!T172","v":15.671279788172994},{"$f":"'Population 2016'!U172*'Prevalence Rates'!U172","v":11.026000000000002},{"$f":"'Population 2016'!V172*'Prevalence Rates'!V172","v":8.6172771403353945},{"$f":"'Population 2016'!W172*'Prevalence Rates'!W172","v":37.836892321270966},{"$f":"'Population 2016'!X172*'Prevalence Rates'!X172","v":37.836892321270966},{"$f":"'Population 2016'!Y172*'Prevalence Rates'!Y172","v":15.734470432480144},{"$f":"'Population 2016'!Z172*'Prevalence Rates'!Z172","v":20.571934686672552},{"$f":"'Population 2016'!AA172*'Prevalence Rates'!AA172","v":32.751391093994265},{"$f":"'Population 2016'!AB172*'Prevalence Rates'!AB172","v":47.098485436893206},{"$f":"'Population 2016'!AC172*'Prevalence Rates'!AC172","v":55.118178287731688},{"$f":"'Population 2016'!AD172*'Prevalence Rates'!AD172","v":58.046566637246258},{"$f":"'Population 2016'!AE172*'Prevalence Rates'!AE172","v":39.604368932038838},{"$f":"'Population 2016'!AF172*'Prevalence Rates'!AF172","v":6.5860000000000012},{"$f":"'Population 2016'!AG172*'Prevalence Rates'!AG172","v":15.251371886872102},{"$f":"'Population 2016'!AH172*'Prevalence Rates'!AH172","v":40.493348631950582},{"$f":"'Population 2016'!AI172*'Prevalence Rates'!AI172","v":45.117042365401602},{"$f":"'Population 2016'!AJ172*'Prevalence Rates'!AJ172","v":8.9540000000000006},{"$f":"'Population 2016'!AK172*'Prevalence Rates'!AK172","v":15.176857899382178},{"$f":"'Population 2016'!AL172*'Prevalence Rates'!AL172","v":11.011631067961167},{"$f":"'Population 2016'!AM172*'Prevalence Rates'!AM172","v":17.44244660194175},{"$f":"'Population 2016'!AN172*'Prevalence Rates'!AN172","v":3.9220000000000006},{"$f":"'Population 2016'!AO172*'Prevalence Rates'!AO172","v":3.9220000000000006},{"$f":"'Population 2016'!AP172*'Prevalence Rates'!AP172","v":18.744990291262138},{"$f":"'Population 2016'!AQ172*'Prevalence Rates'!AQ172","v":16.152769638128866},{"$f":"'Population 2016'!AR172*'Prevalence Rates'!AR172","v":445.40600000000006},{"$f":"'Population 2016'!AS172*'Prevalence Rates'!AS172","v":14.11652868490733},{"$f":"'Population 2016'!AT172*'Prevalence Rates'!AT172","v":4.2180000000000009},{"$f":"'Population 2016'!AU172*'Prevalence Rates'!AU172","v":4.2180000000000009},{"$f":"'Population 2016'!AV172*'Prevalence Rates'!AV172","v":8.8267696381288623},{"$f":"'Population 2016'!AW172*'Prevalence Rates'!AW172","v":22.970762577228601},{"$f":"'Population 2016'!AX172*'Prevalence Rates'!AX172","v":5.0320000000000009},{"$f":"'Population 2016'!AY172*'Prevalence Rates'!AY172","v":40.74508091653243},{"$f":"'Population 2016'!AZ172*'Prevalence Rates'!AZ172","v":54.195594880847317},{"$f":"'Population 2016'!BA172*'Prevalence Rates'!BA172","v":5.881138570167697},{"$f":"'Population 2016'!BB172*'Prevalence Rates'!BB172","v":10.655020300088264},{"$f":"'Population 2016'!BC172*'Prevalence Rates'!BC172","v":11.026000000000002},170]
[null,"Male 90+",{"$f":"'Population 2016'!C173*'Prevalence Rates'!C173","v":5.273038834951457},{"$f":"'Population 2016'!D173*'Prevalence Rates'!D173","v":5.4767310471597712},{"$f":"'Population 2016'!E173*'Prevalence Rates'!E173","v":8.7445075022065328},{"$f":"'Population 2016'!F173*'Prevalence Rates'!F173","v":9.9991112091791727},{"$f":"'Population 2016'!G173*'Prevalence Rates'!G173","v":7.4740000000000011},{"$f":"'Population 2016'!H173*'Prevalence Rates'!H173","v":11.468791703442191},{"$f":"'Population 2016'!I173*'Prevalence Rates'!I173","v":5.0688693733451027},{"$f":"'Population 2016'!J173*'Prevalence Rates'!J173","v":4.1440000000000001},{"$f":"'Population 2016'!K173*'Prevalence Rates'!K173","v":1.9980000000000002},{"$f":"'Population 2016'!L173*'Prevalence Rates'!L173","v":15.289849955869379},{"$f":"'Population 2016'!M173*'Prevalence Rates'!M173","v":15.289849955869379},{"$f":"'Population 2016'!N173*'Prevalence Rates'!N173","v":4.376123565754634},{"$f":"'Population 2016'!O173*'Prevalence Rates'!O173","v":2.6357193292144752},{"$f":"'Population 2016'!P173*'Prevalence Rates'!P173","v":0.7649496910856135},{"$f":"'Population 2016'!Q173*'Prevalence Rates'!Q173","v":4.1791059135039728},{"$f":"'Population 2016'!R173*'Prevalence Rates'!R173","v":1.4927360988526042},{"$f":"'Population 2016'!S173*'Prevalence Rates'!S173","v":25.038075243452017},{"$f":"'Population 2016'!T173*'Prevalence Rates'!T173","v":6.6350176522506628},{"$f":"'Population 2016'!U173*'Prevalence Rates'!U173","v":4.4400000000000004},{"$f":"'Population 2016'!V173*'Prevalence Rates'!V173","v":4.4120458958517217},{"$f":"'Population 2016'!W173*'Prevalence Rates'!W173","v":15.96117299205649},{"$f":"'Population 2016'!X173*'Prevalence Rates'!X173","v":15.96117299205649},{"$f":"'Population 2016'!Y173*'Prevalence Rates'!Y173","v":7.5828773168579007},{"$f":"'Population 2016'!Z173*'Prevalence Rates'!Z173","v":10.416169461606357},{"$f":"'Population 2016'!AA173*'Prevalence Rates'!AA173","v":15.50973532470131},{"$f":"'Population 2016'!AB173*'Prevalence Rates'!AB173","v":20.173980582524273},{"$f":"'Population 2016'!AC173*'Prevalence Rates'!AC173","v":28.75040423654016},{"$f":"'Population 2016'!AD173*'Prevalence Rates'!AD173","v":22.59109620476611},{"$f":"'Population 2016'!AE173*'Prevalence Rates'!AE173","v":14.961650485436895},{"$f":"'Population 2016'!AF173*'Prevalence Rates'!AF173","v":2.8120000000000003},{"$f":"'Population 2016'!AG173*'Prevalence Rates'!AG173","v":5.761629379485016},{"$f":"'Population 2016'!AH173*'Prevalence Rates'!AH173","v":16.819226831421009},{"$f":"'Population 2016'!AI173*'Prevalence Rates'!AI173","v":18.585331862312451},{"$f":"'Population 2016'!AJ173*'Prevalence Rates'!AJ173","v":2.8120000000000003},{"$f":"'Population 2016'!AK173*'Prevalence Rates'!AK173","v":5.9109867608120057},{"$f":"'Population 2016'!AL173*'Prevalence Rates'!AL173","v":5.5528737864077682},{"$f":"'Population 2016'!AM173*'Prevalence Rates'!AM173","v":6.4336893203883507},{"$f":"'Population 2016'!AN173*'Prevalence Rates'!AN173","v":1.5540000000000003},{"$f":"'Population 2016'!AO173*'Prevalence Rates'!AO173","v":1.5540000000000003},{"$f":"'Population 2016'!AP173*'Prevalence Rates'!AP173","v":8.7170759046778468},{"$f":"'Population 2016'!AQ173*'Prevalence Rates'!AQ173","v":10.328453662842014},{"$f":"'Population 2016'!AR173*'Prevalence Rates'!AR173","v":191.88200000000003},{"$f":"'Population 2016'!AS173*'Prevalence Rates'!AS173","v":5.0688693733451027},{"$f":"'Population 2016'!AT173*'Prevalence Rates'!AT173","v":1.4800000000000002},{"$f":"'Population 2016'!AU173*'Prevalence Rates'!AU173","v":1.4800000000000002},{"$f":"'Population 2016'!AV173*'Prevalence Rates'!AV173","v":3.2150485436893206},{"$f":"'Population 2016'!AW173*'Prevalence Rates'!AW173","v":10.333352162400708},{"$f":"'Population 2016'!AX173*'Prevalence Rates'!AX173","v":2.1460000000000004},{"$f":"'Population 2016'!AY173*'Prevalence Rates'!AY173","v":17.467178159235125},{"$f":"'Population 2016'!AZ173*'Prevalence Rates'!AZ173","v":23.482165931156224},{"$f":"'Population 2016'!BA173*'Prevalence Rates'!BA173","v":2.0456134157105033},{"$f":"'Population 2016'!BB173*'Prevalence Rates'!BB173","v":4.8486328331862323},{"$f":"'Population 2016'!BC173*'Prevalence Rates'!BC173","v":4.4400000000000004},171]
["SIMD Q4","Female 0-4",{"$f":"'Population 2016'!C174*'Prevalence Rates'!C174","v":0},{"$f":"'Population 2016'!D174*'Prevalence Rates'!D174","v":0},{"$f":"'Population 2016'!E174*'Prevalence Rates'!E174","v":0},{"$f":"'Population 2016'!F174*'Prevalence Rates'!F174","v":0},{"$f":"'Population 2016'!G174*'Prevalence Rates'!G174","v":0},{"$f":"'Population 2016'!H174*'Prevalence Rates'!H174","v":0},{"$f":"'Population 2016'!I174*'Prevalence Rates'!I174","v":0},{"$f":"'Population 2016'!J174*'Prevalence Rates'!J174","v":0},{"$f":"'Population 2016'!K174*'Prevalence Rates'!K174","v":0},{"$f":"'Population 2016'!L174*'Prevalence Rates'!L174","v":0},{"$f":"'Population 2016'!M174*'Prevalence Rates'!M174","v":0},{"$f":"'Population 2016'!N174*'Prevalence Rates'!N174","v":0},{"$f":"'Population 2016'!O174*'Prevalence Rates'!O174","v":0},{"$f":"'Population 2016'!P174*'Prevalence Rates'!P174","v":0},{"$f":"'Population 2016'!Q174*'Prevalence Rates'!Q174","v":0},{"$f":"'Population 2016'!R174*'Prevalence Rates'!R174","v":0},{"$f":"'Population 2016'!S174*'Prevalence Rates'!S174","v":0},{"$f":"'Population 2016'!T174*'Prevalence Rates'!T174","v":0},{"$f":"'Population 2016'!U174*'Prevalence Rates'!U174","v":0},{"$f":"'Population 2016'!V174*'Prevalence Rates'!V174","v":0},{"$f":"'Population 2016'!W174*'Prevalence Rates'!W174","v":0},{"$f":"'Population 2016'!X174*'Prevalence Rates'!X174","v":0},{"$f":"'Population 2016'!Y174*'Prevalence Rates'!Y174","v":0},{"$f":"'Population 2016'!Z174*'Prevalence Rates'!Z174","v":0},{"$f":"'Population 2016'!AA174*'Prevalence Rates'!AA174","v":0},{"$f":"'Population 2016'!AB174*'Prevalence Rates'!AB174","v":0},{"$f":"'Population 2016'!AC174*'Prevalence Rates'!AC174","v":0},{"$f":"'Population 2016'!AD174*'Prevalence Rates'!AD174","v":0},{"$f":"'Population 2016'!AE174*'Prevalence Rates'!AE174","v":0},{"$f":"'Population 2016'!AF174*'Prevalence Rates'!AF174","v":0},{"$f":"'Population 2016'!AG174*'Prevalence Rates'!AG174","v":0},{"$f":"'Population 2016'!AH174*'Prevalence Rates'!AH174","v":0},{"$f":"'Population 2016'!AI174*'Prevalence Rates'!AI174","v":0},{"$f":"'Population 2016'!AJ174*'Prevalence Rates'!AJ174","v":0},{"$f":"'Population 2016'!AK174*'Prevalence Rates'!AK174","v":0},{"$f":"'Population 2016'!AL174*'Prevalence Rates'!AL174","v":0},{"$f":"'Population 2016'!AM174*'Prevalence Rates'!AM174","v":0},{"$f":"'Population 2016'!AN174*'Prevalence Rates'!AN174","v":0},{"$f":"'Population 2016'!AO174*'Prevalence Rates'!AO174","v":0},{"$f":"'Population 2016'!AP174*'Prevalence Rates'!AP174","v":0},{"$f":"'Population 2016'!AQ174*'Prevalence Rates'!AQ174","v":0},{"$f":"'Population 2016'!AR174*'Prevalence Rates'!AR174","v":0},{"$f":"'Population 2016'!AS174*'Prevalence Rates'!AS174","v":0},{"$f":"'Population 2016'!AT174*'Prevalence Rates'!AT174","v":0},{"$f":"'Population 2016'!AU174*'Prevalence Rates'!AU174","v":0},{"$f":"'Population 2016'!AV174*'Prevalence Rates'!AV174","v":0},{"$f":"'Population 2016'!AW174*'Prevalence Rates'!AW174","v":0},{"$f":"'Population 2016'!AX174*'Prevalence Rates'!AX174","v":0},{"$f":"'Population 2016'!AY174*'Prevalence Rates'!AY174","v":0},{"$f":"'Population 2016'!AZ174*'Prevalence Rates'!AZ174","v":0},{"$f":"'Population 2016'!BA174*'Prevalence Rates'!BA174","v":0},{"$f":"'Population 2016'!BB174*'Prevalence Rates'!BB174","v":0},{"$f":"'Population 2016'!BC174*'Prevalence Rates'!BC174","v":0},172]
[null,"Female 5-9",{"$f":"'Population 2016'!C175*'Prevalence Rates'!C175","v":0},{"$f":"'Population 2016'!D175*'Prevalence Rates'!D175","v":0},{"$f":"'Population 2016'!E175*'Prevalence Rates'!E175","v":0},{"$f":"'Population 2016'!F175*'Prevalence Rates'!F175","v":0},{"$f":"'Population 2016'!G175*'Prevalence Rates'!G175","v":0},{"$f":"'Population 2016'!H175*'Prevalence Rates'!H175","v":0},{"$f":"'Population 2016'!I175*'Prevalence Rates'!I175","v":0},{"$f":"'Population 2016'!J175*'Prevalence Rates'!J175","v":0},{"$f":"'Population 2016'!K175*'Prevalence Rates'!K175","v":0},{"$f":"'Population 2016'!L175*'Prevalence Rates'!L175","v":0},{"$f":"'Population 2016'!M175*'Prevalence Rates'!M175","v":0},{"$f":"'Population 2016'!N175*'Prevalence Rates'!N175","v":0},{"$f":"'Population 2016'!O175*'Prevalence Rates'!O175","v":0},{"$f":"'Population 2016'!P175*'Prevalence Rates'!P175","v":0},{"$f":"'Population 2016'!Q175*'Prevalence Rates'!Q175","v":0},{"$f":"'Population 2016'!R175*'Prevalence Rates'!R175","v":0},{"$f":"'Population 2016'!S175*'Prevalence Rates'!S175","v":0},{"$f":"'Population 2016'!T175*'Prevalence Rates'!T175","v":0},{"$f":"'Population 2016'!U175*'Prevalence Rates'!U175","v":0},{"$f":"'Population 2016'!V175*'Prevalence Rates'!V175","v":0},{"$f":"'Population 2016'!W175*'Prevalence Rates'!W175","v":0},{"$f":"'Population 2016'!X175*'Prevalence Rates'!X175","v":0},{"$f":"'Population 2016'!Y175*'Prevalence Rates'!Y175","v":0},{"$f":"'Population 2016'!Z175*'Prevalence Rates'!Z175","v":0},{"$f":"'Population 2016'!AA175*'Prevalence Rates'!AA175","v":0},{"$f":"'Population 2016'!AB175*'Prevalence Rates'!AB175","v":0},{"$f":"'Population 2016'!AC175*'Prevalence Rates'!AC175","v":0},{"$f":"'Population 2016'!AD175*'Prevalence Rates'!AD175","v":0},{"$f":"'Population 2016'!AE175*'Prevalence Rates'!AE175","v":0},{"$f":"'Population 2016'!AF175*'Prevalence Rates'!AF175","v":0},{"$f":"'Population 2016'!AG175*'Prevalence Rates'!AG175","v":0},{"$f":"'Population 2016'!AH175*'Prevalence Rates'!AH175","v":0},{"$f":"'Population 2016'!AI175*'Prevalence Rates'!AI175","v":0},{"$f":"'Population 2016'!AJ175*'Prevalence Rates'!AJ175","v":0},{"$f":"'Population 2016'!AK175*'Prevalence Rates'!AK175","v":0},{"$f":"'Population 2016'!AL175*'Prevalence Rates'!AL175","v":0},{"$f":"'Population 2016'!AM175*'Prevalence Rates'!AM175","v":0},{"$f":"'Population 2016'!AN175*'Prevalence Rates'!AN175","v":0},{"$f":"'Population 2016'!AO175*'Prevalence Rates'!AO175","v":0},{"$f":"'Population 2016'!AP175*'Prevalence Rates'!AP175","v":0},{"$f":"'Population 2016'!AQ175*'Prevalence Rates'!AQ175","v":0},{"$f":"'Population 2016'!AR175*'Prevalence Rates'!AR175","v":0},{"$f":"'Population 2016'!AS175*'Prevalence Rates'!AS175","v":0},{"$f":"'Population 2016'!AT175*'Prevalence Rates'!AT175","v":0},{"$f":"'Population 2016'!AU175*'Prevalence Rates'!AU175","v":0},{"$f":"'Population 2016'!AV175*'Prevalence Rates'!AV175","v":0},{"$f":"'Population 2016'!AW175*'Prevalence Rates'!AW175","v":0},{"$f":"'Population 2016'!AX175*'Prevalence Rates'!AX175","v":0},{"$f":"'Population 2016'!AY175*'Prevalence Rates'!AY175","v":0},{"$f":"'Population 2016'!AZ175*'Prevalence Rates'!AZ175","v":0},{"$f":"'Population 2016'!BA175*'Prevalence Rates'!BA175","v":0},{"$f":"'Population 2016'!BB175*'Prevalence Rates'!BB175","v":0},{"$f":"'Population 2016'!BC175*'Prevalence Rates'!BC175","v":0},173]
[null,"Female 10-15",{"$f":"'Population 2016'!C176*'Prevalence Rates'!C176","v":0},{"$f":"'Population 2016'!D176*'Prevalence Rates'!D176","v":0},{"$f":"'Population 2016'!E176*'Prevalence Rates'!E176","v":0},{"$f":"'Population 2016'!F176*'Prevalence Rates'!F176","v":0},{"$f":"'Population 2016'!G176*'Prevalence Rates'!G176","v":0},{"$f":"'Population 2016'!H176*'Prevalence Rates'!H176","v":0},{"$f":"'Population 2016'!I176*'Prevalence Rates'!I176","v":0},{"$f":"'Population 2016'!J176*'Prevalence Rates'!J176","v":0},{"$f":"'Population 2016'!K176*'Prevalence Rates'!K176","v":0},{"$f":"'Population 2016'!L176*'Prevalence Rates'!L176","v":0},{"$f":"'Population 2016'!M176*'Prevalence Rates'!M176","v":0},{"$f":"'Population 2016'!N176*'Prevalence Rates'!N176","v":0},{"$f":"'Population 2016'!O176*'Prevalence Rates'!O176","v":0},{"$f":"'Population 2016'!P176*'Prevalence Rates'!P176","v":0},{"$f":"'Population 2016'!Q176*'Prevalence Rates'!Q176","v":0},{"$f":"'Population 2016'!R176*'Prevalence Rates'!R176","v":0},{"$f":"'Population 2016'!S176*'Prevalence Rates'!S176","v":0},{"$f":"'Population 2016'!T176*'Prevalence Rates'!T176","v":0},{"$f":"'Population 2016'!U176*'Prevalence Rates'!U176","v":0},{"$f":"'Population 2016'!V176*'Prevalence Rates'!V176","v":0},{"$f":"'Population 2016'!W176*'Prevalence Rates'!W176","v":0},{"$f":"'Population 2016'!X176*'Prevalence Rates'!X176","v":0},{"$f":"'Population 2016'!Y176*'Prevalence Rates'!Y176","v":0},{"$f":"'Population 2016'!Z176*'Prevalence Rates'!Z176","v":0},{"$f":"'Population 2016'!AA176*'Prevalence Rates'!AA176","v":0},{"$f":"'Population 2016'!AB176*'Prevalence Rates'!AB176","v":0},{"$f":"'Population 2016'!AC176*'Prevalence Rates'!AC176","v":0},{"$f":"'Population 2016'!AD176*'Prevalence Rates'!AD176","v":0},{"$f":"'Population 2016'!AE176*'Prevalence Rates'!AE176","v":0},{"$f":"'Population 2016'!AF176*'Prevalence Rates'!AF176","v":0},{"$f":"'Population 2016'!AG176*'Prevalence Rates'!AG176","v":0},{"$f":"'Population 2016'!AH176*'Prevalence Rates'!AH176","v":0},{"$f":"'Population 2016'!AI176*'Prevalence Rates'!AI176","v":0},{"$f":"'Population 2016'!AJ176*'Prevalence Rates'!AJ176","v":0},{"$f":"'Population 2016'!AK176*'Prevalence Rates'!AK176","v":0},{"$f":"'Population 2016'!AL176*'Prevalence Rates'!AL176","v":0},{"$f":"'Population 2016'!AM176*'Prevalence Rates'!AM176","v":0},{"$f":"'Population 2016'!AN176*'Prevalence Rates'!AN176","v":0},{"$f":"'Population 2016'!AO176*'Prevalence Rates'!AO176","v":0},{"$f":"'Population 2016'!AP176*'Prevalence Rates'!AP176","v":0},{"$f":"'Population 2016'!AQ176*'Prevalence Rates'!AQ176","v":0},{"$f":"'Population 2016'!AR176*'Prevalence Rates'!AR176","v":0},{"$f":"'Population 2016'!AS176*'Prevalence Rates'!AS176","v":0},{"$f":"'Population 2016'!AT176*'Prevalence Rates'!AT176","v":0},{"$f":"'Population 2016'!AU176*'Prevalence Rates'!AU176","v":0},{"$f":"'Population 2016'!AV176*'Prevalence Rates'!AV176","v":0},{"$f":"'Population 2016'!AW176*'Prevalence Rates'!AW176","v":0},{"$f":"'Population 2016'!AX176*'Prevalence Rates'!AX176","v":0},{"$f":"'Population 2016'!AY176*'Prevalence Rates'!AY176","v":0},{"$f":"'Population 2016'!AZ176*'Prevalence Rates'!AZ176","v":0},{"$f":"'Population 2016'!BA176*'Prevalence Rates'!BA176","v":0},{"$f":"'Population 2016'!BB176*'Prevalence Rates'!BB176","v":0},{"$f":"'Population 2016'!BC176*'Prevalence Rates'!BC176","v":0},174]
[null,"Female 16-19",{"$f":"'Population 2016'!C177*'Prevalence Rates'!C177","v":183.90477744680851},{"$f":"'Population 2016'!D177*'Prevalence Rates'!D177","v":273.7539132420153},{"$f":"'Population 2016'!E177*'Prevalence Rates'!E177","v":273.41804148936177},{"$f":"'Population 2016'!F177*'Prevalence Rates'!F177","v":57.063254574468083},{"$f":"'Population 2016'!G177*'Prevalence Rates'!G177","v":83.049400000000006},{"$f":"'Population 2016'!H177*'Prevalence Rates'!H177","v":211.97909436170215},{"$f":"'Population 2016'!I177*'Prevalence Rates'!I177","v":171.48501329787237},{"$f":"'Population 2016'!J177*'Prevalence Rates'!J177","v":168.78399999999999},{"$f":"'Population 2016'!K177*'Prevalence Rates'!K177","v":34.3322},{"$f":"'Population 2016'!L177*'Prevalence Rates'!L177","v":109.72551531914893},{"$f":"'Population 2016'!M177*'Prevalence Rates'!M177","v":109.72551531914893},{"$f":"'Population 2016'!N177*'Prevalence Rates'!N177","v":227.05579861702125},{"$f":"'Population 2016'!O177*'Prevalence Rates'!O177","v":65.977465638297872},{"$f":"'Population 2016'!P177*'Prevalence Rates'!P177","v":52.627675531914889},{"$f":"'Population 2016'!Q177*'Prevalence Rates'!Q177","v":188.76568319148939},{"$f":"'Population 2016'!R177*'Prevalence Rates'!R177","v":28.852127127659575},{"$f":"'Population 2016'!S177*'Prevalence Rates'!S177","v":720.22807172484977},{"$f":"'Population 2016'!T177*'Prevalence Rates'!T177","v":193.47151659574465},{"$f":"'Population 2016'!U177*'Prevalence Rates'!U177","v":5.5621999999999998},{"$f":"'Population 2016'!V177*'Prevalence Rates'!V177","v":77.03014468085108},{"$f":"'Population 2016'!W177*'Prevalence Rates'!W177","v":244.37850127659573},{"$f":"'Population 2016'!X177*'Prevalence Rates'!X177","v":244.37850127659573},{"$f":"'Population 2016'!Y177*'Prevalence Rates'!Y177","v":209.82971010638298},{"$f":"'Population 2016'!Z177*'Prevalence Rates'!Z177","v":322.53679723404252},{"$f":"'Population 2016'!AA177*'Prevalence Rates'!AA177","v":472.82341456225504},{"$f":"'Population 2016'!AB177*'Prevalence Rates'!AB177","v":635.25180212765963},{"$f":"'Population 2016'!AC177*'Prevalence Rates'!AC177","v":703.15104255319136},{"$f":"'Population 2016'!AD177*'Prevalence Rates'!AD177","v":354.7791934042553},{"$f":"'Population 2016'!AE177*'Prevalence Rates'!AE177","v":272.59656617021272},{"$f":"'Population 2016'!AF177*'Prevalence Rates'!AF177","v":62.335000000000001},{"$f":"'Population 2016'!AG177*'Prevalence Rates'!AG177","v":145.63359805735431},{"$f":"'Population 2016'!AH177*'Prevalence Rates'!AH177","v":575.40163234042552},{"$f":"'Population 2016'!AI177*'Prevalence Rates'!AI177","v":551.83155478723404},{"$f":"'Population 2016'!AJ177*'Prevalence Rates'!AJ177","v":55.046599999999998},{"$f":"'Population 2016'!AK177*'Prevalence Rates'!AK177","v":182.09012500000003},{"$f":"'Population 2016'!AL177*'Prevalence Rates'!AL177","v":86.397432234042554},{"$f":"'Population 2016'!AM177*'Prevalence Rates'!AM177","v":298.65218808510639},{"$f":"'Population 2016'!AN177*'Prevalence Rates'!AN177","v":37.784599999999998},{"$f":"'Population 2016'!AO177*'Prevalence Rates'!AO177","v":37.784599999999998},{"$f":"'Population 2016'!AP177*'Prevalence Rates'!AP177","v":217.90642851063828},{"$f":"'Population 2016'!AQ177*'Prevalence Rates'!AQ177","v":143.50088319148935},{"$f":"'Population 2016'!AR177*'Prevalence Rates'!AR177","v":4489.6544000000004},{"$f":"'Population 2016'!AS177*'Prevalence Rates'!AS177","v":171.48501329787237},{"$f":"'Population 2016'!AT177*'Prevalence Rates'!AT177","v":69.623400000000004},{"$f":"'Population 2016'!AU177*'Prevalence Rates'!AU177","v":69.623400000000004},{"$f":"'Population 2016'!AV177*'Prevalence Rates'!AV177","v":58.92850957446808},{"$f":"'Population 2016'!AW177*'Prevalence Rates'!AW177","v":261.3885087234043},{"$f":"'Population 2016'!AX177*'Prevalence Rates'!AX177","v":134.45179999999999},{"$f":"'Population 2016'!AY177*'Prevalence Rates'!AY177","v":455.79426244167473},{"$f":"'Population 2016'!AZ177*'Prevalence Rates'!AZ177","v":504.32708170212766},{"$f":"'Population 2016'!BA177*'Prevalence Rates'!BA177","v":54.989978191489357},{"$f":"'Population 2016'!BB177*'Prevalence Rates'!BB177","v":139.58795914893616},{"$f":"'Population 2016'!BC177*'Prevalence Rates'!BC177","v":5.5621999999999998},175]
[null,"Female 20-24",{"$f":"'Population 2016'!C178*'Prevalence Rates'!C178","v":437.15627319148939},{"$f":"'Population 2016'!D178*'Prevalence Rates'!D178","v":437.49113285585508},{"$f":"'Population 2016'!E178*'Prevalence Rates'!E178","v":315.28247234042561},{"$f":"'Population 2016'!F178*'Prevalence Rates'!F178","v":63.581904042553191},{"$f":"'Population 2016'!G178*'Prevalence Rates'!G178","v":88.419799999999995},{"$f":"'Population 2016'!H178*'Prevalence Rates'!H178","v":255.81008734042558},{"$f":"'Population 2016'!I178*'Prevalence Rates'!I178","v":164.62561276595747},{"$f":"'Population 2016'!J178*'Prevalence Rates'!J178","v":240.5172},{"$f":"'Population 2016'!K178*'Prevalence Rates'!K178","v":36.633800000000001},{"$f":"'Population 2016'!L178*'Prevalence Rates'!L178","v":142.34661446808511},{"$f":"'Population 2016'!M178*'Prevalence Rates'!M178","v":142.34661446808511},{"$f":"'Population 2016'!N178*'Prevalence Rates'!N178","v":495.98357765957439},{"$f":"'Population 2016'!O178*'Prevalence Rates'!O178","v":87.121579255319148},{"$f":"'Population 2016'!P178*'Prevalence Rates'!P178","v":79.95917553191488},{"$f":"'Population 2016'!Q178*'Prevalence Rates'!Q178","v":239.73673723404261},{"$f":"'Population 2016'!R178*'Prevalence Rates'!R178","v":29.683600531914895},{"$f":"'Population 2016'!S178*'Prevalence Rates'!S178","v":1114.060138996683},{"$f":"'Population 2016'!T178*'Prevalence Rates'!T178","v":503.49213957446801},{"$f":"'Population 2016'!U178*'Prevalence Rates'!U178","v":9.59},{"$f":"'Population 2016'!V178*'Prevalence Rates'!V178","v":102.49465531914896},{"$f":"'Population 2016'!W178*'Prevalence Rates'!W178","v":315.95213999999999},{"$f":"'Population 2016'!X178*'Prevalence Rates'!X178","v":315.95213999999999},{"$f":"'Population 2016'!Y178*'Prevalence Rates'!Y178","v":290.93560478723401},{"$f":"'Population 2016'!Z178*'Prevalence Rates'!Z178","v":1148.8918960638298},{"$f":"'Population 2016'!AA178*'Prevalence Rates'!AA178","v":825.96718772719805},{"$f":"'Population 2016'!AB178*'Prevalence Rates'!AB178","v":941.61557446808513},{"$f":"'Population 2016'!AC178*'Prevalence Rates'!AC178","v":1570.6277553191487},{"$f":"'Population 2016'!AD178*'Prevalence Rates'!AD178","v":388.1422932978723},{"$f":"'Population 2016'!AE178*'Prevalence Rates'!AE178","v":300.52285021276595},{"$f":"'Population 2016'!AF178*'Prevalence Rates'!AF178","v":76.144599999999997},{"$f":"'Population 2016'!AG178*'Prevalence Rates'!AG178","v":160.55310083256245},{"$f":"'Population 2016'!AH178*'Prevalence Rates'!AH178","v":647.85795914893617},{"$f":"'Population 2016'!AI178*'Prevalence Rates'!AI178","v":997.8300120212765},{"$f":"'Population 2016'!AJ178*'Prevalence Rates'!AJ178","v":63.677599999999998},{"$f":"'Population 2016'!AK178*'Prevalence Rates'!AK178","v":188.90382000000002},{"$f":"'Population 2016'!AL178*'Prevalence Rates'!AL178","v":100.2660005319149},{"$f":"'Population 2016'!AM178*'Prevalence Rates'!AM178","v":335.5879710638298},{"$f":"'Population 2016'!AN178*'Prevalence Rates'!AN178","v":44.689399999999999},{"$f":"'Population 2016'!AO178*'Prevalence Rates'!AO178","v":44.689399999999999},{"$f":"'Population 2016'!AP178*'Prevalence Rates'!AP178","v":222.55870074468083},{"$f":"'Population 2016'!AQ178*'Prevalence Rates'!AQ178","v":180.54052382978719},{"$f":"'Population 2016'!AR178*'Prevalence Rates'!AR178","v":6680.9694},{"$f":"'Population 2016'!AS178*'Prevalence Rates'!AS178","v":164.62561276595747},{"$f":"'Population 2016'!AT178*'Prevalence Rates'!AT178","v":69.623400000000004},{"$f":"'Population 2016'!AU178*'Prevalence Rates'!AU178","v":69.623400000000004},{"$f":"'Population 2016'!AV178*'Prevalence Rates'!AV178","v":67.717846595744675},{"$f":"'Population 2016'!AW178*'Prevalence Rates'!AW178","v":294.76497340425533},{"$f":"'Population 2016'!AX178*'Prevalence Rates'!AX178","v":203.88339999999999},{"$f":"'Population 2016'!AY178*'Prevalence Rates'!AY178","v":623.87386449850158},{"$f":"'Population 2016'!AZ178*'Prevalence Rates'!AZ178","v":706.43633170212763},{"$f":"'Population 2016'!BA178*'Prevalence Rates'!BA178","v":70.591785957446803},{"$f":"'Population 2016'!BB178*'Prevalence Rates'!BB178","v":170.35512765957446},{"$f":"'Population 2016'!BC178*'Prevalence Rates'!BC178","v":9.59},176]
[null,"Female 25-29",{"$f":"'Population 2016'!C179*'Prevalence Rates'!C179","v":347.70766978723407},{"$f":"'Population 2016'!D179*'Prevalence Rates'!D179","v":400.24389370718205},{"$f":"'Population 2016'!E179*'Prevalence Rates'!E179","v":332.80077446808514},{"$f":"'Population 2016'!F179*'Prevalence Rates'!F179","v":61.763354042553182},{"$f":"'Population 2016'!G179*'Prevalence Rates'!G179","v":76.003200000000007},{"$f":"'Population 2016'!H179*'Prevalence Rates'!H179","v":227.71714978723409},{"$f":"'Population 2016'!I179*'Prevalence Rates'!I179","v":151.4957821276596},{"$f":"'Population 2016'!J179*'Prevalence Rates'!J179","v":184.7664},{"$f":"'Population 2016'!K179*'Prevalence Rates'!K179","v":32.76},{"$f":"'Population 2016'!L179*'Prevalence Rates'!L179","v":135.1476459574468},{"$f":"'Population 2016'!M179*'Prevalence Rates'!M179","v":135.1476459574468},{"$f":"'Population 2016'!N179*'Prevalence Rates'!N179","v":242.77390468085105},{"$f":"'Population 2016'!O179*'Prevalence Rates'!O179","v":78.726362553191493},{"$f":"'Population 2016'!P179*'Prevalence Rates'!P179","v":61.865617021276591},{"$f":"'Population 2016'!Q179*'Prevalence Rates'!Q179","v":163.79093872340431},{"$f":"'Population 2016'!R179*'Prevalence Rates'!R179","v":31.000519148936171},{"$f":"'Population 2016'!S179*'Prevalence Rates'!S179","v":1244.6933296044022},{"$f":"'Population 2016'!T179*'Prevalence Rates'!T179","v":683.37638808510644},{"$f":"'Population 2016'!U179*'Prevalence Rates'!U179","v":7.6752000000000002},{"$f":"'Population 2016'!V179*'Prevalence Rates'!V179","v":96.432694468085117},{"$f":"'Population 2016'!W179*'Prevalence Rates'!W179","v":304.90100425531915},{"$f":"'Population 2016'!X179*'Prevalence Rates'!X179","v":304.90100425531915},{"$f":"'Population 2016'!Y179*'Prevalence Rates'!Y179","v":243.13645531914892},{"$f":"'Population 2016'!Z179*'Prevalence Rates'!Z179","v":930.32186553191491},{"$f":"'Population 2016'!AA179*'Prevalence Rates'!AA179","v":718.43253257439176},{"$f":"'Population 2016'!AB179*'Prevalence Rates'!AB179","v":884.48614468085111},{"$f":"'Population 2016'!AC179*'Prevalence Rates'!AC179","v":1310.6788085106382},{"$f":"'Population 2016'!AD179*'Prevalence Rates'!AD179","v":405.16841106382981},{"$f":"'Population 2016'!AE179*'Prevalence Rates'!AE179","v":329.01256340425533},{"$f":"'Population 2016'!AF179*'Prevalence Rates'!AF179","v":59.716799999999999},{"$f":"'Population 2016'!AG179*'Prevalence Rates'!AG179","v":175.77361332099912},{"$f":"'Population 2016'!AH179*'Prevalence Rates'!AH179","v":621.40681531914902},{"$f":"'Population 2016'!AI179*'Prevalence Rates'!AI179","v":1186.1041787234042},{"$f":"'Population 2016'!AJ179*'Prevalence Rates'!AJ179","v":72.072000000000003},{"$f":"'Population 2016'!AK179*'Prevalence Rates'!AK179","v":204.78276000000002},{"$f":"'Population 2016'!AL179*'Prevalence Rates'!AL179","v":91.093312340425527},{"$f":"'Population 2016'!AM179*'Prevalence Rates'!AM179","v":317.75447489361699},{"$f":"'Population 2016'!AN179*'Prevalence Rates'!AN179","v":48.110399999999998},{"$f":"'Population 2016'!AO179*'Prevalence Rates'!AO179","v":48.110399999999998},{"$f":"'Population 2016'!AP179*'Prevalence Rates'!AP179","v":203.15949702127659},{"$f":"'Population 2016'!AQ179*'Prevalence Rates'!AQ179","v":162.35617021276596},{"$f":"'Population 2016'!AR179*'Prevalence Rates'!AR179","v":6258.6576000000005},{"$f":"'Population 2016'!AS179*'Prevalence Rates'!AS179","v":151.4957821276596},{"$f":"'Population 2016'!AT179*'Prevalence Rates'!AT179","v":86.299199999999999},{"$f":"'Population 2016'!AU179*'Prevalence Rates'!AU179","v":86.299199999999999},{"$f":"'Population 2016'!AV179*'Prevalence Rates'!AV179","v":57.125274893617011},{"$f":"'Population 2016'!AW179*'Prevalence Rates'!AW179","v":285.57101106382981},{"$f":"'Population 2016'!AX179*'Prevalence Rates'!AX179","v":152.00640000000001},{"$f":"'Population 2016'!AY179*'Prevalence Rates'!AY179","v":490.54449378708762},{"$f":"'Population 2016'!AZ179*'Prevalence Rates'!AZ179","v":506.33378042553193},{"$f":"'Population 2016'!BA179*'Prevalence Rates'!BA179","v":71.145459574468077},{"$f":"'Population 2016'!BB179*'Prevalence Rates'!BB179","v":201.94180085106382},{"$f":"'Population 2016'!BC179*'Prevalence Rates'!BC179","v":7.6752000000000002},177]
[null,"Female 30-34",{"$f":"'Population 2016'!C180*'Prevalence Rates'!C180","v":275.21327489361704},{"$f":"'Population 2016'!D180*'Prevalence Rates'!D180","v":406.97747199969859},{"$f":"'Population 2016'!E180*'Prevalence Rates'!E180","v":404.94048510638305},{"$f":"'Population 2016'!F180*'Prevalence Rates'!F180","v":69.202363404255308},{"$f":"'Population 2016'!G180*'Prevalence Rates'!G180","v":79.747200000000007},{"$f":"'Population 2016'!H180*'Prevalence Rates'!H180","v":247.40342042553198},{"$f":"'Population 2016'!I180*'Prevalence Rates'!I180","v":175.97994893617022},{"$f":"'Population 2016'!J180*'Prevalence Rates'!J180","v":167.35679999999999},{"$f":"'Population 2016'!K180*'Prevalence Rates'!K180","v":43.992000000000004},{"$f":"'Population 2016'!L180*'Prevalence Rates'!L180","v":138.93267063829785},{"$f":"'Population 2016'!M180*'Prevalence Rates'!M180","v":138.93267063829785},{"$f":"'Population 2016'!N180*'Prevalence Rates'!N180","v":189.98639234042551},{"$f":"'Population 2016'!O180*'Prevalence Rates'!O180","v":88.089449361702137},{"$f":"'Population 2016'!P180*'Prevalence Rates'!P180","v":66.264319148936167},{"$f":"'Population 2016'!Q180*'Prevalence Rates'!Q180","v":181.91966553191494},{"$f":"'Population 2016'!R180*'Prevalence Rates'!R180","v":27.673238297872341},{"$f":"'Population 2016'!S180*'Prevalence Rates'!S180","v":1223.3755247728132},{"$f":"'Population 2016'!T180*'Prevalence Rates'!T180","v":576.44774808510635},{"$f":"'Population 2016'!U180*'Prevalence Rates'!U180","v":11.4192},{"$f":"'Population 2016'!V180*'Prevalence Rates'!V180","v":109.60520170212767},{"$f":"'Population 2016'!W180*'Prevalence Rates'!W180","v":321.49688170212767},{"$f":"'Population 2016'!X180*'Prevalence Rates'!X180","v":321.49688170212767},{"$f":"'Population 2016'!Y180*'Prevalence Rates'!Y180","v":244.92929361702127},{"$f":"'Population 2016'!Z180*'Prevalence Rates'!Z180","v":741.80449531914894},{"$f":"'Population 2016'!AA180*'Prevalence Rates'!AA180","v":692.65881472997853},{"$f":"'Population 2016'!AB180*'Prevalence Rates'!AB180","v":916.88369361702132},{"$f":"'Population 2016'!AC180*'Prevalence Rates'!AC180","v":1150.503319148936},{"$f":"'Population 2016'!AD180*'Prevalence Rates'!AD180","v":474.56484510638302},{"$f":"'Population 2016'!AE180*'Prevalence Rates'!AE180","v":394.07651234042555},{"$f":"'Population 2016'!AF180*'Prevalence Rates'!AF180","v":53.352000000000004},{"$f":"'Population 2016'!AG180*'Prevalence Rates'!AG180","v":210.53376133209994},{"$f":"'Population 2016'!AH180*'Prevalence Rates'!AH180","v":717.22613106382983},{"$f":"'Population 2016'!AI180*'Prevalence Rates'!AI180","v":1122.459564255319},{"$f":"'Population 2016'!AJ180*'Prevalence Rates'!AJ180","v":90.043199999999999},{"$f":"'Population 2016'!AK180*'Prevalence Rates'!AK180","v":232.53048000000001},{"$f":"'Population 2016'!AL180*'Prevalence Rates'!AL180","v":85.788681702127661},{"$f":"'Population 2016'!AM180*'Prevalence Rates'!AM180","v":351.48691914893612},{"$f":"'Population 2016'!AN180*'Prevalence Rates'!AN180","v":54.288000000000004},{"$f":"'Population 2016'!AO180*'Prevalence Rates'!AO180","v":54.288000000000004},{"$f":"'Population 2016'!AP180*'Prevalence Rates'!AP180","v":244.75812510638298},{"$f":"'Population 2016'!AQ180*'Prevalence Rates'!AQ180","v":185.95193361702127},{"$f":"'Population 2016'!AR180*'Prevalence Rates'!AR180","v":6334.4736000000003},{"$f":"'Population 2016'!AS180*'Prevalence Rates'!AS180","v":175.97994893617022},{"$f":"'Population 2016'!AT180*'Prevalence Rates'!AT180","v":81.806399999999996},{"$f":"'Population 2016'!AU180*'Prevalence Rates'!AU180","v":81.806399999999996},{"$f":"'Population 2016'!AV180*'Prevalence Rates'!AV180","v":73.502486808510625},{"$f":"'Population 2016'!AW180*'Prevalence Rates'!AW180","v":340.10037957446815},{"$f":"'Population 2016'!AX180*'Prevalence Rates'!AX180","v":123.3648},{"$f":"'Population 2016'!AY180*'Prevalence Rates'!AY180","v":514.98633214157917},{"$f":"'Population 2016'!AZ180*'Prevalence Rates'!AZ180","v":530.34098553191495},{"$f":"'Population 2016'!BA180*'Prevalence Rates'!BA180","v":70.895826382978726},{"$f":"'Population 2016'!BB180*'Prevalence Rates'!BB180","v":241.44339063829784},{"$f":"'Population 2016'!BC180*'Prevalence Rates'!BC180","v":11.4192},178]
[null,"Female 35-39",{"$f":"'Population 2016'!C181*'Prevalence Rates'!C181","v":178.9942424468085},{"$f":"'Population 2016'!D181*'Prevalence Rates'!D181","v":321.58078370323176},{"$f":"'Population 2016'!E181*'Prevalence Rates'!E181","v":352.64584840425539},{"$f":"'Population 2016'!F181*'Prevalence Rates'!F181","v":62.515715053191485},{"$f":"'Population 2016'!G181*'Prevalence Rates'!G181","v":81.64070000000001},{"$f":"'Population 2016'!H181*'Prevalence Rates'!H181","v":227.37628430851072},{"$f":"'Population 2016'!I181*'Prevalence Rates'!I181","v":151.47105436170213},{"$f":"'Population 2016'!J181*'Prevalence Rates'!J181","v":153.566},{"$f":"'Population 2016'!K181*'Prevalence Rates'!K181","v":38.2348},{"$f":"'Population 2016'!L181*'Prevalence Rates'!L181","v":112.75565212765957},{"$f":"'Population 2016'!M181*'Prevalence Rates'!M181","v":112.75565212765957},{"$f":"'Population 2016'!N181*'Prevalence Rates'!N181","v":134.39358829787236},{"$f":"'Population 2016'!O181*'Prevalence Rates'!O181","v":86.853225478723417},{"$f":"'Population 2016'!P181*'Prevalence Rates'!P181","v":59.625183510638287},{"$f":"'Population 2016'!Q181*'Prevalence Rates'!Q181","v":169.04312563829791},{"$f":"'Population 2016'!R181*'Prevalence Rates'!R181","v":27.44417127659575},{"$f":"'Population 2016'!S181*'Prevalence Rates'!S181","v":938.40034535134544},{"$f":"'Population 2016'!T181*'Prevalence Rates'!T181","v":360.40866638297871},{"$f":"'Population 2016'!U181*'Prevalence Rates'!U181","v":7.2082000000000006},{"$f":"'Population 2016'!V181*'Prevalence Rates'!V181","v":97.884822127659589},{"$f":"'Population 2016'!W181*'Prevalence Rates'!W181","v":288.82343872340425},{"$f":"'Population 2016'!X181*'Prevalence Rates'!X181","v":288.82343872340425},{"$f":"'Population 2016'!Y181*'Prevalence Rates'!Y181","v":221.76259015957447},{"$f":"'Population 2016'!Z181*'Prevalence Rates'!Z181","v":456.48718760638303},{"$f":"'Population 2016'!AA181*'Prevalence Rates'!AA181","v":570.56897131437415},{"$f":"'Population 2016'!AB181*'Prevalence Rates'!AB181","v":728.75668829787242},{"$f":"'Population 2016'!AC181*'Prevalence Rates'!AC181","v":844.90472872340411},{"$f":"'Population 2016'!AD181*'Prevalence Rates'!AD181","v":397.69209734042551},{"$f":"'Population 2016'!AE181*'Prevalence Rates'!AE181","v":316.32845627659577},{"$f":"'Population 2016'!AF181*'Prevalence Rates'!AF181","v":63.150100000000002},{"$f":"'Population 2016'!AG181*'Prevalence Rates'!AG181","v":168.9971810823312},{"$f":"'Population 2016'!AH181*'Prevalence Rates'!AH181","v":698.11783744680861},{"$f":"'Population 2016'!AI181*'Prevalence Rates'!AI181","v":809.09877872340417},{"$f":"'Population 2016'!AJ181*'Prevalence Rates'!AJ181","v":77.096400000000003},{"$f":"'Population 2016'!AK181*'Prevalence Rates'!AK181","v":189.65401000000003},{"$f":"'Population 2016'!AL181*'Prevalence Rates'!AL181","v":78.395342978723406},{"$f":"'Population 2016'!AM181*'Prevalence Rates'!AM181","v":328.49187702127659},{"$f":"'Population 2016'!AN181*'Prevalence Rates'!AN181","v":49.360500000000002},{"$f":"'Population 2016'!AO181*'Prevalence Rates'!AO181","v":49.360500000000002},{"$f":"'Population 2016'!AP181*'Prevalence Rates'!AP181","v":193.72287553191489},{"$f":"'Population 2016'!AQ181*'Prevalence Rates'!AQ181","v":154.56804648936171},{"$f":"'Population 2016'!AR181*'Prevalence Rates'!AR181","v":5139.76},{"$f":"'Population 2016'!AS181*'Prevalence Rates'!AS181","v":151.47105436170213},{"$f":"'Population 2016'!AT181*'Prevalence Rates'!AT181","v":74.589200000000005},{"$f":"'Population 2016'!AU181*'Prevalence Rates'!AU181","v":74.589200000000005},{"$f":"'Population 2016'!AV181*'Prevalence Rates'!AV181","v":62.016525531914887},{"$f":"'Population 2016'!AW181*'Prevalence Rates'!AW181","v":340.41124585106388},{"$f":"'Population 2016'!AX181*'Prevalence Rates'!AX181","v":115.33120000000001},{"$f":"'Population 2016'!AY181*'Prevalence Rates'!AY181","v":428.04330450311198},{"$f":"'Population 2016'!AZ181*'Prevalence Rates'!AZ181","v":422.01127053191493},{"$f":"'Population 2016'!BA181*'Prevalence Rates'!BA181","v":55.165734893617021},{"$f":"'Population 2016'!BB181*'Prevalence Rates'!BB181","v":202.78046893617019},{"$f":"'Population 2016'!BC181*'Prevalence Rates'!BC181","v":7.2082000000000006},179]
[null,"Female 40-44",{"$f":"'Population 2016'!C182*'Prevalence Rates'!C182","v":143.30648425531913},{"$f":"'Population 2016'!D182*'Prevalence Rates'!D182","v":321.5056304469328},{"$f":"'Population 2016'!E182*'Prevalence Rates'!E182","v":382.8389377659575},{"$f":"'Population 2016'!F182*'Prevalence Rates'!F182","v":67.513694893617014},{"$f":"'Population 2016'!G182*'Prevalence Rates'!G182","v":100.6014},{"$f":"'Population 2016'!H182*'Prevalence Rates'!H182","v":279.66490718085117},{"$f":"'Population 2016'!I182*'Prevalence Rates'!I182","v":199.82650723404257},{"$f":"'Population 2016'!J182*'Prevalence Rates'!J182","v":187.25650000000002},{"$f":"'Population 2016'!K182*'Prevalence Rates'!K182","v":50.770800000000001},{"$f":"'Population 2016'!L182*'Prevalence Rates'!L182","v":139.59336106382978},{"$f":"'Population 2016'!M182*'Prevalence Rates'!M182","v":139.59336106382978},{"$f":"'Population 2016'!N182*'Prevalence Rates'!N182","v":131.74644186170212},{"$f":"'Population 2016'!O182*'Prevalence Rates'!O182","v":89.412436542553209},{"$f":"'Population 2016'!P182*'Prevalence Rates'!P182","v":70.908833776595742},{"$f":"'Population 2016'!Q182*'Prevalence Rates'!Q182","v":203.9810576595745},{"$f":"'Population 2016'!R182*'Prevalence Rates'!R182","v":31.452107180851069},{"$f":"'Population 2016'!S182*'Prevalence Rates'!S182","v":980.55809797112295},{"$f":"'Population 2016'!T182*'Prevalence Rates'!T182","v":307.44239936170209},{"$f":"'Population 2016'!U182*'Prevalence Rates'!U182","v":8.1484000000000005},{"$f":"'Population 2016'!V182*'Prevalence Rates'!V182","v":120.35360170212768},{"$f":"'Population 2016'!W182*'Prevalence Rates'!W182","v":333.08385382978719},{"$f":"'Population 2016'!X182*'Prevalence Rates'!X182","v":333.08385382978719},{"$f":"'Population 2016'!Y182*'Prevalence Rates'!Y182","v":271.5177574468085},{"$f":"'Population 2016'!Z182*'Prevalence Rates'!Z182","v":384.62040005319153},{"$f":"'Population 2016'!AA182*'Prevalence Rates'!AA182","v":597.09171951839573},{"$f":"'Population 2016'!AB182*'Prevalence Rates'!AB182","v":765.83790957446809},{"$f":"'Population 2016'!AC182*'Prevalence Rates'!AC182","v":857.33237234042542},{"$f":"'Population 2016'!AD182*'Prevalence Rates'!AD182","v":475.59208494680848},{"$f":"'Population 2016'!AE182*'Prevalence Rates'!AE182","v":375.50204372340426},{"$f":"'Population 2016'!AF182*'Prevalence Rates'!AF182","v":73.022199999999998},{"$f":"'Population 2016'!AG182*'Prevalence Rates'!AG182","v":200.61042761332104},{"$f":"'Population 2016'!AH182*'Prevalence Rates'!AH182","v":758.59336851063836},{"$f":"'Population 2016'!AI182*'Prevalence Rates'!AI182","v":780.89427904255319},{"$f":"'Population 2016'!AJ182*'Prevalence Rates'!AJ182","v":73.962400000000002},{"$f":"'Population 2016'!AK182*'Prevalence Rates'!AK182","v":241.29057750000004},{"$f":"'Population 2016'!AL182*'Prevalence Rates'!AL182","v":101.20961271276596},{"$f":"'Population 2016'!AM182*'Prevalence Rates'!AM182","v":370.09222627659574},{"$f":"'Population 2016'!AN182*'Prevalence Rates'!AN182","v":52.964600000000004},{"$f":"'Population 2016'!AO182*'Prevalence Rates'!AO182","v":52.964600000000004},{"$f":"'Population 2016'!AP182*'Prevalence Rates'!AP182","v":245.09622037234044},{"$f":"'Population 2016'!AQ182*'Prevalence Rates'!AQ182","v":184.28570138297871},{"$f":"'Population 2016'!AR182*'Prevalence Rates'!AR182","v":5610.6435000000001},{"$f":"'Population 2016'!AS182*'Prevalence Rates'!AS182","v":199.82650723404257},{"$f":"'Population 2016'!AT182*'Prevalence Rates'!AT182","v":79.760300000000001},{"$f":"'Population 2016'!AU182*'Prevalence Rates'!AU182","v":79.760300000000001},{"$f":"'Population 2016'!AV182*'Prevalence Rates'!AV182","v":88.944753723404247},{"$f":"'Population 2016'!AW182*'Prevalence Rates'!AW182","v":360.86259627659581},{"$f":"'Population 2016'!AX182*'Prevalence Rates'!AX182","v":136.48570000000001},{"$f":"'Population 2016'!AY182*'Prevalence Rates'!AY182","v":494.24662085393771},{"$f":"'Population 2016'!AZ182*'Prevalence Rates'!AZ182","v":487.63873085106388},{"$f":"'Population 2016'!BA182*'Prevalence Rates'!BA182","v":69.375090851063831},{"$f":"'Population 2016'!BB182*'Prevalence Rates'!BB182","v":214.42094510638296},{"$f":"'Population 2016'!BC182*'Prevalence Rates'!BC182","v":8.1484000000000005},180]
[null,"Female 45-49",{"$f":"'Population 2016'!C183*'Prevalence Rates'!C183","v":140.43139361702126},{"$f":"'Population 2016'!D183*'Prevalence Rates'!D183","v":352.47788443437878},{"$f":"'Population 2016'!E183*'Prevalence Rates'!E183","v":433.88717021276597},{"$f":"'Population 2016'!F183*'Prevalence Rates'!F183","v":85.126492819148922},{"$f":"'Population 2016'!G183*'Prevalence Rates'!G183","v":127.22449999999999},{"$f":"'Population 2016'!H183*'Prevalence Rates'!H183","v":321.53847686170218},{"$f":"'Population 2016'!I183*'Prevalence Rates'!I183","v":253.1239369680851},{"$f":"'Population 2016'!J183*'Prevalence Rates'!J183","v":210.04749999999999},{"$f":"'Population 2016'!K183*'Prevalence Rates'!K183","v":59.9495},{"$f":"'Population 2016'!L183*'Prevalence Rates'!L183","v":182.2548138297872},{"$f":"'Population 2016'!M183*'Prevalence Rates'!M183","v":182.2548138297872},{"$f":"'Population 2016'!N183*'Prevalence Rates'!N183","v":145.50858856382976},{"$f":"'Population 2016'!O183*'Prevalence Rates'!O183","v":102.39549228723403},{"$f":"'Population 2016'!P183*'Prevalence Rates'!P183","v":86.348178191489353},{"$f":"'Population 2016'!Q183*'Prevalence Rates'!Q183","v":234.17004069148939},{"$f":"'Population 2016'!R183*'Prevalence Rates'!R183","v":36.552749999999996},{"$f":"'Population 2016'!S183*'Prevalence Rates'!S183","v":1063.8269297402808},{"$f":"'Population 2016'!T183*'Prevalence Rates'!T183","v":277.07757446808506},{"$f":"'Population 2016'!U183*'Prevalence Rates'!U183","v":7.774},{"$f":"'Population 2016'!V183*'Prevalence Rates'!V183","v":129.41228936170214},{"$f":"'Population 2016'!W183*'Prevalence Rates'!W183","v":394.21909468085101},{"$f":"'Population 2016'!X183*'Prevalence Rates'!X183","v":394.21909468085101},{"$f":"'Population 2016'!Y183*'Prevalence Rates'!Y183","v":298.36104654255314},{"$f":"'Population 2016'!Z183*'Prevalence Rates'!Z183","v":409.21139999999997},{"$f":"'Population 2016'!AA183*'Prevalence Rates'!AA183","v":678.48950973001411},{"$f":"'Population 2016'!AB183*'Prevalence Rates'!AB183","v":838.49778723404245},{"$f":"'Population 2016'!AC183*'Prevalence Rates'!AC183","v":1001.3001063829786},{"$f":"'Population 2016'!AD183*'Prevalence Rates'!AD183","v":542.98137579787226},{"$f":"'Population 2016'!AE183*'Prevalence Rates'!AE183","v":417.09068617021273},{"$f":"'Population 2016'!AF183*'Prevalence Rates'!AF183","v":92.540499999999994},{"$f":"'Population 2016'!AG183*'Prevalence Rates'!AG183","v":222.82898936170216},{"$f":"'Population 2016'!AH183*'Prevalence Rates'!AH183","v":833.72778297872344},{"$f":"'Population 2016'!AI183*'Prevalence Rates'!AI183","v":785.92046622340422},{"$f":"'Population 2016'!AJ183*'Prevalence Rates'!AJ183","v":82.524000000000001},{"$f":"'Population 2016'!AK183*'Prevalence Rates'!AK183","v":262.98545000000001},{"$f":"'Population 2016'!AL183*'Prevalence Rates'!AL183","v":123.87633617021275},{"$f":"'Population 2016'!AM183*'Prevalence Rates'!AM183","v":426.91283617021276},{"$f":"'Population 2016'!AN183*'Prevalence Rates'!AN183","v":59.052499999999995},{"$f":"'Population 2016'!AO183*'Prevalence Rates'!AO183","v":59.052499999999995},{"$f":"'Population 2016'!AP183*'Prevalence Rates'!AP183","v":297.93735718085105},{"$f":"'Population 2016'!AQ183*'Prevalence Rates'!AQ183","v":226.99046223404252},{"$f":"'Population 2016'!AR183*'Prevalence Rates'!AR183","v":6307.2554999999993},{"$f":"'Population 2016'!AS183*'Prevalence Rates'!AS183","v":253.1239369680851},{"$f":"'Population 2016'!AT183*'Prevalence Rates'!AT183","v":81.626999999999995},{"$f":"'Population 2016'!AU183*'Prevalence Rates'!AU183","v":81.626999999999995},{"$f":"'Population 2016'!AV183*'Prevalence Rates'!AV183","v":94.667217021276571},{"$f":"'Population 2016'!AW183*'Prevalence Rates'!AW183","v":382.73956223404258},{"$f":"'Population 2016'!AX183*'Prevalence Rates'!AX183","v":150.09799999999998},{"$f":"'Population 2016'!AY183*'Prevalence Rates'!AY183","v":591.80809148932519},{"$f":"'Population 2016'!AZ183*'Prevalence Rates'!AZ183","v":587.90954521276592},{"$f":"'Population 2016'!BA183*'Prevalence Rates'!BA183","v":96.091443085106377},{"$f":"'Population 2016'!BB183*'Prevalence Rates'!BB183","v":225.3314893617021},{"$f":"'Population 2016'!BC183*'Prevalence Rates'!BC183","v":7.774},181]
[null,"Female 50-54",{"$f":"'Population 2016'!C184*'Prevalence Rates'!C184","v":148.3803404255319},{"$f":"'Population 2016'!D184*'Prevalence Rates'!D184","v":362.73100434367819},{"$f":"'Population 2016'!E184*'Prevalence Rates'!E184","v":443.22654654255319},{"$f":"'Population 2016'!F184*'Prevalence Rates'!F184","v":96.77373563829785},{"$f":"'Population 2016'!G184*'Prevalence Rates'!G184","v":135.74599999999998},{"$f":"'Population 2016'!H184*'Prevalence Rates'!H184","v":346.632688031915},{"$f":"'Population 2016'!I184*'Prevalence Rates'!I184","v":275.42695132978724},{"$f":"'Population 2016'!J184*'Prevalence Rates'!J184","v":221.40949999999998},{"$f":"'Population 2016'!K184*'Prevalence Rates'!K184","v":53.969499999999996},{"$f":"'Population 2016'!L184*'Prevalence Rates'!L184","v":201.81386702127656},{"$f":"'Population 2016'!M184*'Prevalence Rates'!M184","v":201.81386702127656},{"$f":"'Population 2016'!N184*'Prevalence Rates'!N184","v":162.02157925531912},{"$f":"'Population 2016'!O184*'Prevalence Rates'!O184","v":105.60012021276596},{"$f":"'Population 2016'!P184*'Prevalence Rates'!P184","v":96.660099734042547},{"$f":"'Population 2016'!Q184*'Prevalence Rates'!Q184","v":228.27791170212768},{"$f":"'Population 2016'!R184*'Prevalence Rates'!R184","v":36.68236968085106},{"$f":"'Population 2016'!S184*'Prevalence Rates'!S184","v":1098.7274331364413},{"$f":"'Population 2016'!T184*'Prevalence Rates'!T184","v":301.15152765957441},{"$f":"'Population 2016'!U184*'Prevalence Rates'!U184","v":9.8669999999999991},{"$f":"'Population 2016'!V184*'Prevalence Rates'!V184","v":120.87742978723405},{"$f":"'Population 2016'!W184*'Prevalence Rates'!W184","v":412.09611382978716},{"$f":"'Population 2016'!X184*'Prevalence Rates'!X184","v":412.09611382978716},{"$f":"'Population 2016'!Y184*'Prevalence Rates'!Y184","v":297.25967686170208},{"$f":"'Population 2016'!Z184*'Prevalence Rates'!Z184","v":431.8849039893617},{"$f":"'Population 2016'!AA184*'Prevalence Rates'!AA184","v":707.57032923973361},{"$f":"'Population 2016'!AB184*'Prevalence Rates'!AB184","v":864.63484042553182},{"$f":"'Population 2016'!AC184*'Prevalence Rates'!AC184","v":1073.9427925531913},{"$f":"'Population 2016'!AD184*'Prevalence Rates'!AD184","v":586.89167287234034},{"$f":"'Population 2016'!AE184*'Prevalence Rates'!AE184","v":452.48019893617021},{"$f":"'Population 2016'!AF184*'Prevalence Rates'!AF184","v":103.155},{"$f":"'Population 2016'!AG184*'Prevalence Rates'!AG184","v":241.73569148936173},{"$f":"'Population 2016'!AH184*'Prevalence Rates'!AH184","v":838.43417021276605},{"$f":"'Population 2016'!AI184*'Prevalence Rates'!AI184","v":794.88998909574457},{"$f":"'Population 2016'!AJ184*'Prevalence Rates'!AJ184","v":80.580500000000001},{"$f":"'Population 2016'!AK184*'Prevalence Rates'!AK184","v":273.05801250000002},{"$f":"'Population 2016'!AL184*'Prevalence Rates'!AL184","v":144.03545691489362},{"$f":"'Population 2016'!AM184*'Prevalence Rates'!AM184","v":424.23948989361696},{"$f":"'Population 2016'!AN184*'Prevalence Rates'!AN184","v":61.444499999999998},{"$f":"'Population 2016'!AO184*'Prevalence Rates'!AO184","v":61.444499999999998},{"$f":"'Population 2016'!AP184*'Prevalence Rates'!AP184","v":302.26546170212765},{"$f":"'Population 2016'!AQ184*'Prevalence Rates'!AQ184","v":242.20383670212763},{"$f":"'Population 2016'!AR184*'Prevalence Rates'!AR184","v":6589.2124999999996},{"$f":"'Population 2016'!AS184*'Prevalence Rates'!AS184","v":275.42695132978724},{"$f":"'Population 2016'!AT184*'Prevalence Rates'!AT184","v":84.915999999999997},{"$f":"'Population 2016'!AU184*'Prevalence Rates'!AU184","v":84.915999999999997},{"$f":"'Population 2016'!AV184*'Prevalence Rates'!AV184","v":95.757135638297854},{"$f":"'Population 2016'!AW184*'Prevalence Rates'!AW184","v":388.39511542553191},{"$f":"'Population 2016'!AX184*'Prevalence Rates'!AX184","v":167.44},{"$f":"'Population 2016'!AY184*'Prevalence Rates'!AY184","v":624.79523413751315},{"$f":"'Population 2016'!AZ184*'Prevalence Rates'!AZ184","v":624.24329361702132},{"$f":"'Population 2016'!BA184*'Prevalence Rates'!BA184","v":107.65431382978723},{"$f":"'Population 2016'!BB184*'Prevalence Rates'!BB184","v":209.55828510638295},{"$f":"'Population 2016'!BC184*'Prevalence Rates'!BC184","v":9.8669999999999991},182]
[null,"Female 55-59",{"$f":"'Population 2016'!C185*'Prevalence Rates'!C185","v":126.54058691489364},{"$f":"'Population 2016'!D185*'Prevalence Rates'!D185","v":292.09874157265955},{"$f":"'Population 2016'!E185*'Prevalence Rates'!E185","v":350.92918244680857},{"$f":"'Population 2016'!F185*'Prevalence Rates'!F185","v":78.983474840425529},{"$f":"'Population 2016'!G185*'Prevalence Rates'!G185","v":116.76960000000001},{"$f":"'Population 2016'!H185*'Prevalence Rates'!H185","v":305.62771356382984},{"$f":"'Population 2016'!I185*'Prevalence Rates'!I185","v":237.92882696808513},{"$f":"'Population 2016'!J185*'Prevalence Rates'!J185","v":169.09560000000002},{"$f":"'Population 2016'!K185*'Prevalence Rates'!K185","v":44.339400000000005},{"$f":"'Population 2016'!L185*'Prevalence Rates'!L185","v":186.53984617021277},{"$f":"'Population 2016'!M185*'Prevalence Rates'!M185","v":186.53984617021277},{"$f":"'Population 2016'!N185*'Prevalence Rates'!N185","v":150.48581122340428},{"$f":"'Population 2016'!O185*'Prevalence Rates'!O185","v":92.767318085106396},{"$f":"'Population 2016'!P185*'Prevalence Rates'!P185","v":95.397534574468082},{"$f":"'Population 2016'!Q185*'Prevalence Rates'!Q185","v":197.07997547872347},{"$f":"'Population 2016'!R185*'Prevalence Rates'!R185","v":31.160484574468089},{"$f":"'Population 2016'!S185*'Prevalence Rates'!S185","v":912.43151250782171},{"$f":"'Population 2016'!T185*'Prevalence Rates'!T185","v":248.82770872340427},{"$f":"'Population 2016'!U185*'Prevalence Rates'!U185","v":7.986600000000001},{"$f":"'Population 2016'!V185*'Prevalence Rates'!V185","v":97.533788936170239},{"$f":"'Population 2016'!W185*'Prevalence Rates'!W185","v":350.4700847872341},{"$f":"'Population 2016'!X185*'Prevalence Rates'!X185","v":350.4700847872341},{"$f":"'Population 2016'!Y185*'Prevalence Rates'!Y185","v":232.81371143617022},{"$f":"'Population 2016'!Z185*'Prevalence Rates'!Z185","v":349.67984792553193},{"$f":"'Population 2016'!AA185*'Prevalence Rates'!AA185","v":587.07736465767994},{"$f":"'Population 2016'!AB185*'Prevalence Rates'!AB185","v":702.16013297872348},{"$f":"'Population 2016'!AC185*'Prevalence Rates'!AC185","v":921.03721276595741},{"$f":"'Population 2016'!AD185*'Prevalence Rates'!AD185","v":492.27068824468091},{"$f":"'Population 2016'!AE185*'Prevalence Rates'!AE185","v":376.79685989361712},{"$f":"'Population 2016'!AF185*'Prevalence Rates'!AF185","v":81.380700000000004},{"$f":"'Population 2016'!AG185*'Prevalence Rates'!AG185","v":201.30217784458839},{"$f":"'Population 2016'!AH185*'Prevalence Rates'!AH185","v":664.36558468085127},{"$f":"'Population 2016'!AI185*'Prevalence Rates'!AI185","v":644.65207180851064},{"$f":"'Population 2016'!AJ185*'Prevalence Rates'!AJ185","v":63.617400000000011},{"$f":"'Population 2016'!AK185*'Prevalence Rates'!AK185","v":228.05874000000006},{"$f":"'Population 2016'!AL185*'Prevalence Rates'!AL185","v":119.61537558510641},{"$f":"'Population 2016'!AM185*'Prevalence Rates'!AM185","v":320.86180148936171},{"$f":"'Population 2016'!AN185*'Prevalence Rates'!AN185","v":54.94230000000001},{"$f":"'Population 2016'!AO185*'Prevalence Rates'!AO185","v":54.94230000000001},{"$f":"'Population 2016'!AP185*'Prevalence Rates'!AP185","v":249.74810138297875},{"$f":"'Population 2016'!AQ185*'Prevalence Rates'!AQ185","v":208.43722244680851},{"$f":"'Population 2016'!AR185*'Prevalence Rates'!AR185","v":5482.3878000000004},{"$f":"'Population 2016'!AS185*'Prevalence Rates'!AS185","v":237.92882696808513},{"$f":"'Population 2016'!AT185*'Prevalence Rates'!AT185","v":68.850000000000009},{"$f":"'Population 2016'!AU185*'Prevalence Rates'!AU185","v":68.850000000000009},{"$f":"'Population 2016'!AV185*'Prevalence Rates'!AV185","v":92.644852978723407},{"$f":"'Population 2016'!AW185*'Prevalence Rates'!AW185","v":318.27978000000007},{"$f":"'Population 2016'!AX185*'Prevalence Rates'!AX185","v":124.75620000000002},{"$f":"'Population 2016'!AY185*'Prevalence Rates'!AY185","v":527.98157811755118},{"$f":"'Population 2016'!AZ185*'Prevalence Rates'!AZ185","v":525.57570382978736},{"$f":"'Population 2016'!BA185*'Prevalence Rates'!BA185","v":102.64604792553192},{"$f":"'Population 2016'!BB185*'Prevalence Rates'!BB185","v":153.88062893617021},{"$f":"'Population 2016'!BC185*'Prevalence Rates'!BC185","v":7.986600000000001},183]
[null,"Female 60-64",{"$f":"'Population 2016'!C186*'Prevalence Rates'!C186","v":117.02258712765959},{"$f":"'Population 2016'!D186*'Prevalence Rates'!D186","v":263.83325177091905},{"$f":"'Population 2016'!E186*'Prevalence Rates'!E186","v":314.65475425531923},{"$f":"'Population 2016'!F186*'Prevalence Rates'!F186","v":79.631470531914886},{"$f":"'Population 2016'!G186*'Prevalence Rates'!G186","v":110.57310000000001},{"$f":"'Population 2016'!H186*'Prevalence Rates'!H186","v":284.18504026595753},{"$f":"'Population 2016'!I186*'Prevalence Rates'!I186","v":214.43142063829791},{"$f":"'Population 2016'!J186*'Prevalence Rates'!J186","v":140.86710000000002},{"$f":"'Population 2016'!K186*'Prevalence Rates'!K186","v":36.352800000000002},{"$f":"'Population 2016'!L186*'Prevalence Rates'!L186","v":179.66129170212767},{"$f":"'Population 2016'!M186*'Prevalence Rates'!M186","v":179.66129170212767},{"$f":"'Population 2016'!N186*'Prevalence Rates'!N186","v":107.54098994680852},{"$f":"'Population 2016'!O186*'Prevalence Rates'!O186","v":82.787803563829797},{"$f":"'Population 2016'!P186*'Prevalence Rates'!P186","v":76.192779255319152},{"$f":"'Population 2016'!Q186*'Prevalence Rates'!Q186","v":164.67264670212771},{"$f":"'Population 2016'!R186*'Prevalence Rates'!R186","v":27.817597340425536},{"$f":"'Population 2016'!S186*'Prevalence Rates'!S186","v":795.70692266928086},{"$f":"'Population 2016'!T186*'Prevalence Rates'!T186","v":208.76843489361704},{"$f":"'Population 2016'!U186*'Prevalence Rates'!U186","v":5.2326000000000006},{"$f":"'Population 2016'!V186*'Prevalence Rates'!V186","v":81.171513191489382},{"$f":"'Population 2016'!W186*'Prevalence Rates'!W186","v":319.38343085106385},{"$f":"'Population 2016'!X186*'Prevalence Rates'!X186","v":319.38343085106385},{"$f":"'Population 2016'!Y186*'Prevalence Rates'!Y186","v":193.85926037234043},{"$f":"'Population 2016'!Z186*'Prevalence Rates'!Z186","v":273.16127632978726},{"$f":"'Population 2016'!AA186*'Prevalence Rates'!AA186","v":484.45767915065909},{"$f":"'Population 2016'!AB186*'Prevalence Rates'!AB186","v":632.12649893617038},{"$f":"'Population 2016'!AC186*'Prevalence Rates'!AC186","v":745.68944680851064},{"$f":"'Population 2016'!AD186*'Prevalence Rates'!AD186","v":468.97258069148944},{"$f":"'Population 2016'!AE186*'Prevalence Rates'!AE186","v":359.59329574468092},{"$f":"'Population 2016'!AF186*'Prevalence Rates'!AF186","v":63.892800000000008},{"$f":"'Population 2016'!AG186*'Prevalence Rates'!AG186","v":192.11124421831641},{"$f":"'Population 2016'!AH186*'Prevalence Rates'!AH186","v":563.21761021276609},{"$f":"'Population 2016'!AI186*'Prevalence Rates'!AI186","v":543.88606835106384},{"$f":"'Population 2016'!AJ186*'Prevalence Rates'!AJ186","v":58.109400000000008},{"$f":"'Population 2016'!AK186*'Prevalence Rates'!AK186","v":203.09373000000005},{"$f":"'Population 2016'!AL186*'Prevalence Rates'!AL186","v":119.88447654255322},{"$f":"'Population 2016'!AM186*'Prevalence Rates'!AM186","v":273.69852606382977},{"$f":"'Population 2016'!AN186*'Prevalence Rates'!AN186","v":50.811300000000003},{"$f":"'Population 2016'!AO186*'Prevalence Rates'!AO186","v":50.811300000000003},{"$f":"'Population 2016'!AP186*'Prevalence Rates'!AP186","v":235.95700691489364},{"$f":"'Population 2016'!AQ186*'Prevalence Rates'!AQ186","v":180.73051755319148},{"$f":"'Population 2016'!AR186*'Prevalence Rates'!AR186","v":4827.8997000000008},{"$f":"'Population 2016'!AS186*'Prevalence Rates'!AS186","v":214.43142063829791},{"$f":"'Population 2016'!AT186*'Prevalence Rates'!AT186","v":62.102700000000006},{"$f":"'Population 2016'!AU186*'Prevalence Rates'!AU186","v":62.102700000000006},{"$f":"'Population 2016'!AV186*'Prevalence Rates'!AV186","v":80.454740744680848},{"$f":"'Population 2016'!AW186*'Prevalence Rates'!AW186","v":268.6625147872341},{"$f":"'Population 2016'!AX186*'Prevalence Rates'!AX186","v":104.51430000000001},{"$f":"'Population 2016'!AY186*'Prevalence Rates'!AY186","v":482.60264099458544},{"$f":"'Population 2016'!AZ186*'Prevalence Rates'!AZ186","v":481.24260287234051},{"$f":"'Population 2016'!BA186*'Prevalence Rates'!BA186","v":76.75500542553192},{"$f":"'Population 2016'!BB186*'Prevalence Rates'!BB186","v":128.23385744680851},{"$f":"'Population 2016'!BC186*'Prevalence Rates'!BC186","v":5.2326000000000006},184]
[null,"Female 65-69",{"$f":"'Population 2016'!C187*'Prevalence Rates'!C187","v":101.21198127659575},{"$f":"'Population 2016'!D187*'Prevalence Rates'!D187","v":219.8263920718033},{"$f":"'Population 2016'!E187*'Prevalence Rates'!E187","v":259.02116914893622},{"$f":"'Population 2016'!F187*'Prevalence Rates'!F187","v":71.747078510638303},{"$f":"'Population 2016'!G187*'Prevalence Rates'!G187","v":106.4676},{"$f":"'Population 2016'!H187*'Prevalence Rates'!H187","v":243.13385531914898},{"$f":"'Population 2016'!I187*'Prevalence Rates'!I187","v":195.49036063829791},{"$f":"'Population 2016'!J187*'Prevalence Rates'!J187","v":122.6516},{"$f":"'Population 2016'!K187*'Prevalence Rates'!K187","v":33.870800000000003},{"$f":"'Population 2016'!L187*'Prevalence Rates'!L187","v":143.53978212765958},{"$f":"'Population 2016'!M187*'Prevalence Rates'!M187","v":143.53978212765958},{"$f":"'Population 2016'!N187*'Prevalence Rates'!N187","v":99.74509106382979},{"$f":"'Population 2016'!O187*'Prevalence Rates'!O187","v":68.674885531914896},{"$f":"'Population 2016'!P187*'Prevalence Rates'!P187","v":62.56235106382978},{"$f":"'Population 2016'!Q187*'Prevalence Rates'!Q187","v":138.37387638297878},{"$f":"'Population 2016'!R187*'Prevalence Rates'!R187","v":21.29837765957447},{"$f":"'Population 2016'!S187*'Prevalence Rates'!S187","v":680.34231084463545},{"$f":"'Population 2016'!T187*'Prevalence Rates'!T187","v":168.5012655319149},{"$f":"'Population 2016'!U187*'Prevalence Rates'!U187","v":6.8204000000000002},{"$f":"'Population 2016'!V187*'Prevalence Rates'!V187","v":75.741120000000009},{"$f":"'Population 2016'!W187*'Prevalence Rates'!W187","v":275.98934297872341},{"$f":"'Population 2016'!X187*'Prevalence Rates'!X187","v":275.98934297872341},{"$f":"'Population 2016'!Y187*'Prevalence Rates'!Y187","v":174.41334468085108},{"$f":"'Population 2016'!Z187*'Prevalence Rates'!Z187","v":200.7081019148936},{"$f":"'Population 2016'!AA187*'Prevalence Rates'!AA187","v":368.74086728939761},{"$f":"'Population 2016'!AB187*'Prevalence Rates'!AB187","v":539.96268085106385},{"$f":"'Population 2016'!AC187*'Prevalence Rates'!AC187","v":580.81621276595752},{"$f":"'Population 2016'!AD187*'Prevalence Rates'!AD187","v":400.62791021276593},{"$f":"'Population 2016'!AE187*'Prevalence Rates'!AE187","v":295.90832978723409},{"$f":"'Population 2016'!AF187*'Prevalence Rates'!AF187","v":50.170400000000001},{"$f":"'Population 2016'!AG187*'Prevalence Rates'!AG187","v":158.08781221091584},{"$f":"'Population 2016'!AH187*'Prevalence Rates'!AH187","v":414.8672476595745},{"$f":"'Population 2016'!AI187*'Prevalence Rates'!AI187","v":451.65670170212763},{"$f":"'Population 2016'!AJ187*'Prevalence Rates'!AJ187","v":53.060400000000001},{"$f":"'Population 2016'!AK187*'Prevalence Rates'!AK187","v":187.63325000000003},{"$f":"'Population 2016'!AL187*'Prevalence Rates'!AL187","v":103.24174510638298},{"$f":"'Population 2016'!AM187*'Prevalence Rates'!AM187","v":191.76785617021275},{"$f":"'Population 2016'!AN187*'Prevalence Rates'!AN187","v":44.159200000000006},{"$f":"'Population 2016'!AO187*'Prevalence Rates'!AO187","v":44.159200000000006},{"$f":"'Population 2016'!AP187*'Prevalence Rates'!AP187","v":200.71043851063831},{"$f":"'Population 2016'!AQ187*'Prevalence Rates'!AQ187","v":141.29751106382977},{"$f":"'Population 2016'!AR187*'Prevalence Rates'!AR187","v":4033.0528000000004},{"$f":"'Population 2016'!AS187*'Prevalence Rates'!AS187","v":195.49036063829791},{"$f":"'Population 2016'!AT187*'Prevalence Rates'!AT187","v":49.014400000000002},{"$f":"'Population 2016'!AU187*'Prevalence Rates'!AU187","v":49.014400000000002},{"$f":"'Population 2016'!AV187*'Prevalence Rates'!AV187","v":70.311363404255303},{"$f":"'Population 2016'!AW187*'Prevalence Rates'!AW187","v":204.66217531914896},{"$f":"'Population 2016'!AX187*'Prevalence Rates'!AX187","v":88.780799999999999},{"$f":"'Population 2016'!AY187*'Prevalence Rates'!AY187","v":420.9003521674062},{"$f":"'Population 2016'!AZ187*'Prevalence Rates'!AZ187","v":421.94122978723408},{"$f":"'Population 2016'!BA187*'Prevalence Rates'!BA187","v":67.365223617021286},{"$f":"'Population 2016'!BB187*'Prevalence Rates'!BB187","v":106.65747914893616},{"$f":"'Population 2016'!BC187*'Prevalence Rates'!BC187","v":6.8204000000000002},185]
[null,"Female 70-74",{"$f":"'Population 2016'!C188*'Prevalence Rates'!C188","v":71.299128510638297},{"$f":"'Population 2016'!D188*'Prevalence Rates'!D188","v":159.06227461639435},{"$f":"'Population 2016'!E188*'Prevalence Rates'!E188","v":189.06718191489364},{"$f":"'Population 2016'!F188*'Prevalence Rates'!F188","v":56.998732127659572},{"$f":"'Population 2016'!G188*'Prevalence Rates'!G188","v":84.272400000000005},{"$f":"'Population 2016'!H188*'Prevalence Rates'!H188","v":204.79351659574473},{"$f":"'Population 2016'!I188*'Prevalence Rates'!I188","v":156.39228851063831},{"$f":"'Population 2016'!J188*'Prevalence Rates'!J188","v":97.566400000000002},{"$f":"'Population 2016'!K188*'Prevalence Rates'!K188","v":26.241200000000003},{"$f":"'Population 2016'!L188*'Prevalence Rates'!L188","v":123.7411914893617},{"$f":"'Population 2016'!M188*'Prevalence Rates'!M188","v":123.7411914893617},{"$f":"'Population 2016'!N188*'Prevalence Rates'!N188","v":70.001825957446812},{"$f":"'Population 2016'!O188*'Prevalence Rates'!O188","v":50.857174680851067},{"$f":"'Population 2016'!P188*'Prevalence Rates'!P188","v":44.42452659574468},{"$f":"'Population 2016'!Q188*'Prevalence Rates'!Q188","v":99.06163680851067},{"$f":"'Population 2016'!R188*'Prevalence Rates'!R188","v":16.637791489361703},{"$f":"'Population 2016'!S188*'Prevalence Rates'!S188","v":515.62525844277786},{"$f":"'Population 2016'!T188*'Prevalence Rates'!T188","v":126.88083829787233},{"$f":"'Population 2016'!U188*'Prevalence Rates'!U188","v":5.3176000000000005},{"$f":"'Population 2016'!V188*'Prevalence Rates'!V188","v":56.709916595744687},{"$f":"'Population 2016'!W188*'Prevalence Rates'!W188","v":213.66532468085109},{"$f":"'Population 2016'!X188*'Prevalence Rates'!X188","v":213.66532468085109},{"$f":"'Population 2016'!Y188*'Prevalence Rates'!Y188","v":134.8126585106383},{"$f":"'Population 2016'!Z188*'Prevalence Rates'!Z188","v":143.76366489361703},{"$f":"'Population 2016'!AA188*'Prevalence Rates'!AA188","v":262.09999608677487},{"$f":"'Population 2016'!AB188*'Prevalence Rates'!AB188","v":394.61166808510643},{"$f":"'Population 2016'!AC188*'Prevalence Rates'!AC188","v":429.09121276595744},{"$f":"'Population 2016'!AD188*'Prevalence Rates'!AD188","v":306.89899978723406},{"$f":"'Population 2016'!AE188*'Prevalence Rates'!AE188","v":224.13019914893619},{"$f":"'Population 2016'!AF188*'Prevalence Rates'!AF188","v":41.962800000000001},{"$f":"'Population 2016'!AG188*'Prevalence Rates'!AG188","v":119.74064014801112},{"$f":"'Population 2016'!AH188*'Prevalence Rates'!AH188","v":277.92601191489365},{"$f":"'Population 2016'!AI188*'Prevalence Rates'!AI188","v":331.01875531914891},{"$f":"'Population 2016'!AJ188*'Prevalence Rates'!AJ188","v":40.922400000000003},{"$f":"'Population 2016'!AK188*'Prevalence Rates'!AK188","v":141.18517000000003},{"$f":"'Population 2016'!AL188*'Prevalence Rates'!AL188","v":84.152188297872343},{"$f":"'Population 2016'!AM188*'Prevalence Rates'!AM188","v":125.61907659574467},{"$f":"'Population 2016'!AN188*'Prevalence Rates'!AN188","v":33.4084},{"$f":"'Population 2016'!AO188*'Prevalence Rates'!AO188","v":33.4084},{"$f":"'Population 2016'!AP188*'Prevalence Rates'!AP188","v":152.68103659574467},{"$f":"'Population 2016'!AQ188*'Prevalence Rates'!AQ188","v":101.5951829787234},{"$f":"'Population 2016'!AR188*'Prevalence Rates'!AR188","v":3042.5920000000001},{"$f":"'Population 2016'!AS188*'Prevalence Rates'!AS188","v":156.39228851063831},{"$f":"'Population 2016'!AT188*'Prevalence Rates'!AT188","v":39.535200000000003},{"$f":"'Population 2016'!AU188*'Prevalence Rates'!AU188","v":39.535200000000003},{"$f":"'Population 2016'!AV188*'Prevalence Rates'!AV188","v":69.348194042553189},{"$f":"'Population 2016'!AW188*'Prevalence Rates'!AW188","v":139.06532425531915},{"$f":"'Population 2016'!AX188*'Prevalence Rates'!AX188","v":71.325200000000009},{"$f":"'Population 2016'!AY188*'Prevalence Rates'!AY188","v":322.29920483849304},{"$f":"'Population 2016'!AZ188*'Prevalence Rates'!AZ188","v":321.06928468085113},{"$f":"'Population 2016'!BA188*'Prevalence Rates'!BA188","v":51.795686808510638},{"$f":"'Population 2016'!BB188*'Prevalence Rates'!BB188","v":73.428136170212767},{"$f":"'Population 2016'!BC188*'Prevalence Rates'!BC188","v":5.3176000000000005},186]
[null,"Female 75-79",{"$f":"'Population 2016'!C189*'Prevalence Rates'!C189","v":32.211223829787237},{"$f":"'Population 2016'!D189*'Prevalence Rates'!D189","v":67.670159761742326},{"$f":"'Population 2016'!E189*'Prevalence Rates'!E189","v":78.839886170212779},{"$f":"'Population 2016'!F189*'Prevalence Rates'!F189","v":23.564601489361703},{"$f":"'Population 2016'!G189*'Prevalence Rates'!G189","v":34.445399999999999},{"$f":"'Population 2016'!H189*'Prevalence Rates'!H189","v":76.676026063829809},{"$f":"'Population 2016'!I189*'Prevalence Rates'!I189","v":67.005297446808527},{"$f":"'Population 2016'!J189*'Prevalence Rates'!J189","v":38.006599999999999},{"$f":"'Population 2016'!K189*'Prevalence Rates'!K189","v":9.1486000000000001},{"$f":"'Population 2016'!L189*'Prevalence Rates'!L189","v":51.776007234042552},{"$f":"'Population 2016'!M189*'Prevalence Rates'!M189","v":51.776007234042552},{"$f":"'Population 2016'!N189*'Prevalence Rates'!N189","v":32.473447553191491},{"$f":"'Population 2016'!O189*'Prevalence Rates'!O189","v":19.115485638297873},{"$f":"'Population 2016'!P189*'Prevalence Rates'!P189","v":22.339148936170211},{"$f":"'Population 2016'!Q189*'Prevalence Rates'!Q189","v":39.409981914893628},{"$f":"'Population 2016'!R189*'Prevalence Rates'!R189","v":8.0385010638297878},{"$f":"'Population 2016'!S189*'Prevalence Rates'!S189","v":212.47115582928686},{"$f":"'Population 2016'!T189*'Prevalence Rates'!T189","v":55.125965106382978},{"$f":"'Population 2016'!U189*'Prevalence Rates'!U189","v":2.3332000000000002},{"$f":"'Population 2016'!V189*'Prevalence Rates'!V189","v":23.721824680851068},{"$f":"'Population 2016'!W189*'Prevalence Rates'!W189","v":82.852180212765958},{"$f":"'Population 2016'!X189*'Prevalence Rates'!X189","v":82.852180212765958},{"$f":"'Population 2016'!Y189*'Prevalence Rates'!Y189","v":54.325446276595741},{"$f":"'Population 2016'!Z189*'Prevalence Rates'!Z189","v":68.536770212765958},{"$f":"'Population 2016'!AA189*'Prevalence Rates'!AA189","v":115.97145692112156},{"$f":"'Population 2016'!AB189*'Prevalence Rates'!AB189","v":163.83740851063831},{"$f":"'Population 2016'!AC189*'Prevalence Rates'!AC189","v":191.00952127659576},{"$f":"'Population 2016'!AD189*'Prevalence Rates'!AD189","v":125.88825670212766},{"$f":"'Population 2016'!AE189*'Prevalence Rates'!AE189","v":92.052186382978718},{"$f":"'Population 2016'!AF189*'Prevalence Rates'!AF189","v":14.8588},{"$f":"'Population 2016'!AG189*'Prevalence Rates'!AG189","v":49.178503237742838},{"$f":"'Population 2016'!AH189*'Prevalence Rates'!AH189","v":121.7742280851064},{"$f":"'Population 2016'!AI189*'Prevalence Rates'!AI189","v":138.70080372340425},{"$f":"'Population 2016'!AJ189*'Prevalence Rates'!AJ189","v":16.148199999999999},{"$f":"'Population 2016'!AK189*'Prevalence Rates'!AK189","v":54.455660000000002},{"$f":"'Population 2016'!AL189*'Prevalence Rates'!AL189","v":30.717766808510643},{"$f":"'Population 2016'!AM189*'Prevalence Rates'!AM189","v":57.177835531914894},{"$f":"'Population 2016'!AN189*'Prevalence Rates'!AN189","v":13.937800000000001},{"$f":"'Population 2016'!AO189*'Prevalence Rates'!AO189","v":13.937800000000001},{"$f":"'Population 2016'!AP189*'Prevalence Rates'!AP189","v":66.730663085106386},{"$f":"'Population 2016'!AQ189*'Prevalence Rates'!AQ189","v":40.471091489361697},{"$f":"'Population 2016'!AR189*'Prevalence Rates'!AR189","v":1271.4712},{"$f":"'Population 2016'!AS189*'Prevalence Rates'!AS189","v":67.005297446808527},{"$f":"'Population 2016'!AT189*'Prevalence Rates'!AT189","v":14.797400000000001},{"$f":"'Population 2016'!AU189*'Prevalence Rates'!AU189","v":14.797400000000001},{"$f":"'Population 2016'!AV189*'Prevalence Rates'!AV189","v":26.730032765957443},{"$f":"'Population 2016'!AW189*'Prevalence Rates'!AW189","v":59.462372765957454},{"$f":"'Population 2016'!AX189*'Prevalence Rates'!AX189","v":28.858000000000001},{"$f":"'Population 2016'!AY189*'Prevalence Rates'!AY189","v":134.3937350939058},{"$f":"'Population 2016'!AZ189*'Prevalence Rates'!AZ189","v":139.31202765957448},{"$f":"'Population 2016'!BA189*'Prevalence Rates'!BA189","v":22.188816914893614},{"$f":"'Population 2016'!BB189*'Prevalence Rates'!BB189","v":31.068399999999997},{"$f":"'Population 2016'!BC189*'Prevalence Rates'!BC189","v":2.3332000000000002},187]
[null,"Female 80-84",{"$f":"'Population 2016'!C190*'Prevalence Rates'!C190","v":24.865758936170216},{"$f":"'Population 2016'!D190*'Prevalence Rates'!D190","v":50.885133188986401},{"$f":"'Population 2016'!E190*'Prevalence Rates'!E190","v":58.737101595744683},{"$f":"'Population 2016'!F190*'Prevalence Rates'!F190","v":18.973677765957447},{"$f":"'Population 2016'!G190*'Prevalence Rates'!G190","v":23.516200000000001},{"$f":"'Population 2016'!H190*'Prevalence Rates'!H190","v":58.422785851063843},{"$f":"'Population 2016'!I190*'Prevalence Rates'!I190","v":45.736762021276604},{"$f":"'Population 2016'!J190*'Prevalence Rates'!J190","v":29.840400000000002},{"$f":"'Population 2016'!K190*'Prevalence Rates'!K190","v":6.7540000000000004},{"$f":"'Population 2016'!L190*'Prevalence Rates'!L190","v":40.968039574468087},{"$f":"'Population 2016'!M190*'Prevalence Rates'!M190","v":40.968039574468087},{"$f":"'Population 2016'!N190*'Prevalence Rates'!N190","v":32.313872872340426},{"$f":"'Population 2016'!O190*'Prevalence Rates'!O190","v":11.970681170212767},{"$f":"'Population 2016'!P190*'Prevalence Rates'!P190","v":15.683944148936169},{"$f":"'Population 2016'!Q190*'Prevalence Rates'!Q190","v":30.629161382978733},{"$f":"'Population 2016'!R190*'Prevalence Rates'!R190","v":6.8407111702127663},{"$f":"'Population 2016'!S190*'Prevalence Rates'!S190","v":158.67601127440162},{"$f":"'Population 2016'!T190*'Prevalence Rates'!T190","v":47.244164680851064},{"$f":"'Population 2016'!U190*'Prevalence Rates'!U190","v":1.1666000000000001},{"$f":"'Population 2016'!V190*'Prevalence Rates'!V190","v":17.241120000000002},{"$f":"'Population 2016'!W190*'Prevalence Rates'!W190","v":61.775193191489365},{"$f":"'Population 2016'!X190*'Prevalence Rates'!X190","v":61.775193191489365},{"$f":"'Population 2016'!Y190*'Prevalence Rates'!Y190","v":41.117261170212764},{"$f":"'Population 2016'!Z190*'Prevalence Rates'!Z190","v":51.477074148936168},{"$f":"'Population 2016'!AA190*'Prevalence Rates'!AA190","v":85.388703123153036},{"$f":"'Population 2016'!AB190*'Prevalence Rates'!AB190","v":125.61590851063831},{"$f":"'Population 2016'!AC190*'Prevalence Rates'!AC190","v":145.88052127659574},{"$f":"'Population 2016'!AD190*'Prevalence Rates'!AD190","v":95.481311063829793},{"$f":"'Population 2016'!AE190*'Prevalence Rates'!AE190","v":72.269041063829789},{"$f":"'Population 2016'!AF190*'Prevalence Rates'!AF190","v":13.8764},{"$f":"'Population 2016'!AG190*'Prevalence Rates'!AG190","v":38.609438945420912},{"$f":"'Population 2016'!AH190*'Prevalence Rates'!AH190","v":84.189589787234056},{"$f":"'Population 2016'!AI190*'Prevalence Rates'!AI190","v":107.50009978723403},{"$f":"'Population 2016'!AJ190*'Prevalence Rates'!AJ190","v":10.9292},{"$f":"'Population 2016'!AK190*'Prevalence Rates'!AK190","v":44.301635000000005},{"$f":"'Population 2016'!AL190*'Prevalence Rates'!AL190","v":22.858338191489366},{"$f":"'Population 2016'!AM190*'Prevalence Rates'!AM190","v":36.232335957446807},{"$f":"'Population 2016'!AN190*'Prevalence Rates'!AN190","v":8.2276000000000007},{"$f":"'Population 2016'!AO190*'Prevalence Rates'!AO190","v":8.2276000000000007},{"$f":"'Population 2016'!AP190*'Prevalence Rates'!AP190","v":48.762867553191491},{"$f":"'Population 2016'!AQ190*'Prevalence Rates'!AQ190","v":31.16984063829787},{"$f":"'Population 2016'!AR190*'Prevalence Rates'!AR190","v":959.9276000000001},{"$f":"'Population 2016'!AS190*'Prevalence Rates'!AS190","v":45.736762021276604},{"$f":"'Population 2016'!AT190*'Prevalence Rates'!AT190","v":10.5608},{"$f":"'Population 2016'!AU190*'Prevalence Rates'!AU190","v":10.5608},{"$f":"'Population 2016'!AV190*'Prevalence Rates'!AV190","v":23.596607872340421},{"$f":"'Population 2016'!AW190*'Prevalence Rates'!AW190","v":43.377336382978726},{"$f":"'Population 2016'!AX190*'Prevalence Rates'!AX190","v":23.086400000000001},{"$f":"'Population 2016'!AY190*'Prevalence Rates'!AY190","v":104.56735783420072},{"$f":"'Population 2016'!AZ190*'Prevalence Rates'!AZ190","v":110.73378957446809},{"$f":"'Population 2016'!BA190*'Prevalence Rates'!BA190","v":14.492326914893617},{"$f":"'Population 2016'!BB190*'Prevalence Rates'!BB190","v":19.302069787234039},{"$f":"'Population 2016'!BC190*'Prevalence Rates'!BC190","v":1.1666000000000001},188]
[null,"Female 85-89",{"$f":"'Population 2016'!C191*'Prevalence Rates'!C191","v":15.235038297872341},{"$f":"'Population 2016'!D191*'Prevalence Rates'!D191","v":32.009340148395957},{"$f":"'Population 2016'!E191*'Prevalence Rates'!E191","v":37.294131382978726},{"$f":"'Population 2016'!F191*'Prevalence Rates'!F191","v":11.204422234042553},{"$f":"'Population 2016'!G191*'Prevalence Rates'!G191","v":15.350000000000001},{"$f":"'Population 2016'!H191*'Prevalence Rates'!H191","v":34.27138978723405},{"$f":"'Population 2016'!I191*'Prevalence Rates'!I191","v":29.738306170212773},{"$f":"'Population 2016'!J191*'Prevalence Rates'!J191","v":18.358600000000003},{"$f":"'Population 2016'!K191*'Prevalence Rates'!K191","v":4.2366000000000001},{"$f":"'Population 2016'!L191*'Prevalence Rates'!L191","v":23.952793191489359},{"$f":"'Population 2016'!M191*'Prevalence Rates'!M191","v":23.952793191489359},{"$f":"'Population 2016'!N191*'Prevalence Rates'!N191","v":25.85109829787234},{"$f":"'Population 2016'!O191*'Prevalence Rates'!O191","v":7.270151914893618},{"$f":"'Population 2016'!P191*'Prevalence Rates'!P191","v":12.007292553191489},{"$f":"'Population 2016'!Q191*'Prevalence Rates'!Q191","v":17.492500744680857},{"$f":"'Population 2016'!R191*'Prevalence Rates'!R191","v":4.498366489361703},{"$f":"'Population 2016'!S191*'Prevalence Rates'!S191","v":104.40016274705189},{"$f":"'Population 2016'!T191*'Prevalence Rates'!T191","v":38.942623404255322},{"$f":"'Population 2016'!U191*'Prevalence Rates'!U191","v":1.3508},{"$f":"'Population 2016'!V191*'Prevalence Rates'!V191","v":10.352823829787235},{"$f":"'Population 2016'!W191*'Prevalence Rates'!W191","v":37.470199148936167},{"$f":"'Population 2016'!X191*'Prevalence Rates'!X191","v":37.470199148936167},{"$f":"'Population 2016'!Y191*'Prevalence Rates'!Y191","v":25.014131382978722},{"$f":"'Population 2016'!Z191*'Prevalence Rates'!Z191","v":33.150937765957444},{"$f":"'Population 2016'!AA191*'Prevalence Rates'!AA191","v":54.28891206739975},{"$f":"'Population 2016'!AB191*'Prevalence Rates'!AB191","v":79.370604255319151},{"$f":"'Population 2016'!AC191*'Prevalence Rates'!AC191","v":97.459436170212769},{"$f":"'Population 2016'!AD191*'Prevalence Rates'!AD191","v":58.479384893617024},{"$f":"'Population 2016'!AE191*'Prevalence Rates'!AE191","v":43.372959999999999},{"$f":"'Population 2016'!AF191*'Prevalence Rates'!AF191","v":8.8415999999999997},{"$f":"'Population 2016'!AG191*'Prevalence Rates'!AG191","v":23.171826086956525},{"$f":"'Population 2016'!AH191*'Prevalence Rates'!AH191","v":48.6094655319149},{"$f":"'Population 2016'!AI191*'Prevalence Rates'!AI191","v":73.843526489361707},{"$f":"'Population 2016'!AJ191*'Prevalence Rates'!AJ191","v":5.8944000000000001},{"$f":"'Population 2016'!AK191*'Prevalence Rates'!AK191","v":28.356055000000001},{"$f":"'Population 2016'!AL191*'Prevalence Rates'!AL191","v":13.55901425531915},{"$f":"'Population 2016'!AM191*'Prevalence Rates'!AM191","v":15.03346340425532},{"$f":"'Population 2016'!AN191*'Prevalence Rates'!AN191","v":6.0171999999999999},{"$f":"'Population 2016'!AO191*'Prevalence Rates'!AO191","v":6.0171999999999999},{"$f":"'Population 2016'!AP191*'Prevalence Rates'!AP191","v":33.437394893617025},{"$f":"'Population 2016'!AQ191*'Prevalence Rates'!AQ191","v":20.8745629787234},{"$f":"'Population 2016'!AR191*'Prevalence Rates'!AR191","v":613.26319999999998},{"$f":"'Population 2016'!AS191*'Prevalence Rates'!AS191","v":29.738306170212773},{"$f":"'Population 2016'!AT191*'Prevalence Rates'!AT191","v":6.8154000000000003},{"$f":"'Population 2016'!AU191*'Prevalence Rates'!AU191","v":6.8154000000000003},{"$f":"'Population 2016'!AV191*'Prevalence Rates'!AV191","v":13.42896382978723},{"$f":"'Population 2016'!AW191*'Prevalence Rates'!AW191","v":29.092430425531919},{"$f":"'Population 2016'!AX191*'Prevalence Rates'!AX191","v":14.122},{"$f":"'Population 2016'!AY191*'Prevalence Rates'!AY191","v":68.649678176386885},{"$f":"'Population 2016'!AZ191*'Prevalence Rates'!AZ191","v":75.382674255319159},{"$f":"'Population 2016'!BA191*'Prevalence Rates'!BA191","v":9.0884084042553184},{"$f":"'Population 2016'!BB191*'Prevalence Rates'!BB191","v":9.1883140425531895},{"$f":"'Population 2016'!BC191*'Prevalence Rates'!BC191","v":1.3508},189]
[null,"Female 90+",{"$f":"'Population 2016'!C192*'Prevalence Rates'!C192","v":7.0189997872340433},{"$f":"'Population 2016'!D192*'Prevalence Rates'!D192","v":17.46231711867415},{"$f":"'Population 2016'!E192*'Prevalence Rates'!E192","v":21.44297021276596},{"$f":"'Population 2016'!F192*'Prevalence Rates'!F192","v":9.0855343617021269},{"$f":"'Population 2016'!G192*'Prevalence Rates'!G192","v":9.8239999999999998},{"$f":"'Population 2016'!H192*'Prevalence Rates'!H192","v":21.23336106382979},{"$f":"'Population 2016'!I192*'Prevalence Rates'!I192","v":17.504192872340429},{"$f":"'Population 2016'!J192*'Prevalence Rates'!J192","v":13.3238},{"$f":"'Population 2016'!K192*'Prevalence Rates'!K192","v":2.7630000000000003},{"$f":"'Population 2016'!L192*'Prevalence Rates'!L192","v":12.487584255319149},{"$f":"'Population 2016'!M192*'Prevalence Rates'!M192","v":12.487584255319149},{"$f":"'Population 2016'!N192*'Prevalence Rates'!N192","v":14.920232659574468},{"$f":"'Population 2016'!O192*'Prevalence Rates'!O192","v":4.4498343617021279},{"$f":"'Population 2016'!P192*'Prevalence Rates'!P192","v":6.0036462765957443},{"$f":"'Population 2016'!Q192*'Prevalence Rates'!Q192","v":8.9191011702127678},{"$f":"'Population 2016'!R192*'Prevalence Rates'!R192","v":4.4717489361702132},{"$f":"'Population 2016'!S192*'Prevalence Rates'!S192","v":62.054512809047175},{"$f":"'Population 2016'!T192*'Prevalence Rates'!T192","v":22.992471063829786},{"$f":"'Population 2016'!U192*'Prevalence Rates'!U192","v":0.6754},{"$f":"'Population 2016'!V192*'Prevalence Rates'!V192","v":7.0513327659574481},{"$f":"'Population 2016'!W192*'Prevalence Rates'!W192","v":25.760761914893617},{"$f":"'Population 2016'!X192*'Prevalence Rates'!X192","v":25.760761914893617},{"$f":"'Population 2016'!Y192*'Prevalence Rates'!Y192","v":17.641069148936168},{"$f":"'Population 2016'!Z192*'Prevalence Rates'!Z192","v":20.412038085106381},{"$f":"'Population 2016'!AA192*'Prevalence Rates'!AA192","v":30.634457523746999},{"$f":"'Population 2016'!AB192*'Prevalence Rates'!AB192","v":42.82976595744681},{"$f":"'Population 2016'!AC192*'Prevalence Rates'!AC192","v":59.12036170212766},{"$f":"'Population 2016'!AD192*'Prevalence Rates'!AD192","v":38.052454042553194},{"$f":"'Population 2016'!AE192*'Prevalence Rates'!AE192","v":28.376989787234042},{"$f":"'Population 2016'!AF192*'Prevalence Rates'!AF192","v":4.6050000000000004},{"$f":"'Population 2016'!AG192*'Prevalence Rates'!AG192","v":15.160290471785387},{"$f":"'Population 2016'!AH192*'Prevalence Rates'!AH192","v":23.12350127659575},{"$f":"'Population 2016'!AI192*'Prevalence Rates'!AI192","v":40.968366170212768},{"$f":"'Population 2016'!AJ192*'Prevalence Rates'!AJ192","v":4.3593999999999999},{"$f":"'Population 2016'!AK192*'Prevalence Rates'!AK192","v":14.817355000000001},{"$f":"'Population 2016'!AL192*'Prevalence Rates'!AL192","v":8.999345744680852},{"$f":"'Population 2016'!AM192*'Prevalence Rates'!AM192","v":6.6721551063829789},{"$f":"'Population 2016'!AN192*'Prevalence Rates'!AN192","v":2.9472},{"$f":"'Population 2016'!AO192*'Prevalence Rates'!AO192","v":2.9472},{"$f":"'Population 2016'!AP192*'Prevalence Rates'!AP192","v":21.811174255319148},{"$f":"'Population 2016'!AQ192*'Prevalence Rates'!AQ192","v":11.43130829787234},{"$f":"'Population 2016'!AR192*'Prevalence Rates'!AR192","v":368.27719999999999},{"$f":"'Population 2016'!AS192*'Prevalence Rates'!AS192","v":17.504192872340429},{"$f":"'Population 2016'!AT192*'Prevalence Rates'!AT192","v":3.9910000000000001},{"$f":"'Population 2016'!AU192*'Prevalence Rates'!AU192","v":3.9910000000000001},{"$f":"'Population 2016'!AV192*'Prevalence Rates'!AV192","v":7.7376410638297859},{"$f":"'Population 2016'!AW192*'Prevalence Rates'!AW192","v":14.1687685106383},{"$f":"'Population 2016'!AX192*'Prevalence Rates'!AX192","v":10.5608},{"$f":"'Population 2016'!AY192*'Prevalence Rates'!AY192","v":46.594962597027511},{"$f":"'Population 2016'!AZ192*'Prevalence Rates'!AZ192","v":50.879175319148942},{"$f":"'Population 2016'!BA192*'Prevalence Rates'!BA192","v":4.5032654255319144},{"$f":"'Population 2016'!BB192*'Prevalence Rates'!BB192","v":2.7102221276595739},{"$f":"'Population 2016'!BC192*'Prevalence Rates'!BC192","v":0.6754},190]
[null,"Male 0-4",{"$f":"'Population 2016'!C193*'Prevalence Rates'!C193","v":0},{"$f":"'Population 2016'!D193*'Prevalence Rates'!D193","v":0},{"$f":"'Population 2016'!E193*'Prevalence Rates'!E193","v":0},{"$f":"'Population 2016'!F193*'Prevalence Rates'!F193","v":0},{"$f":"'Population 2016'!G193*'Prevalence Rates'!G193","v":0},{"$f":"'Population 2016'!H193*'Prevalence Rates'!H193","v":0},{"$f":"'Population 2016'!I193*'Prevalence Rates'!I193","v":0},{"$f":"'Population 2016'!J193*'Prevalence Rates'!J193","v":0},{"$f":"'Population 2016'!K193*'Prevalence Rates'!K193","v":0},{"$f":"'Population 2016'!L193*'Prevalence Rates'!L193","v":0},{"$f":"'Population 2016'!M193*'Prevalence Rates'!M193","v":0},{"$f":"'Population 2016'!N193*'Prevalence Rates'!N193","v":0},{"$f":"'Population 2016'!O193*'Prevalence Rates'!O193","v":0},{"$f":"'Population 2016'!P193*'Prevalence Rates'!P193","v":0},{"$f":"'Population 2016'!Q193*'Prevalence Rates'!Q193","v":0},{"$f":"'Population 2016'!R193*'Prevalence Rates'!R193","v":0},{"$f":"'Population 2016'!S193*'Prevalence Rates'!S193","v":0},{"$f":"'Population 2016'!T193*'Prevalence Rates'!T193","v":0},{"$f":"'Population 2016'!U193*'Prevalence Rates'!U193","v":0},{"$f":"'Population 2016'!V193*'Prevalence Rates'!V193","v":0},{"$f":"'Population 2016'!W193*'Prevalence Rates'!W193","v":0},{"$f":"'Population 2016'!X193*'Prevalence Rates'!X193","v":0},{"$f":"'Population 2016'!Y193*'Prevalence Rates'!Y193","v":0},{"$f":"'Population 2016'!Z193*'Prevalence Rates'!Z193","v":0},{"$f":"'Population 2016'!AA193*'Prevalence Rates'!AA193","v":0},{"$f":"'Population 2016'!AB193*'Prevalence Rates'!AB193","v":0},{"$f":"'Population 2016'!AC193*'Prevalence Rates'!AC193","v":0},{"$f":"'Population 2016'!AD193*'Prevalence Rates'!AD193","v":0},{"$f":"'Population 2016'!AE193*'Prevalence Rates'!AE193","v":0},{"$f":"'Population 2016'!AF193*'Prevalence Rates'!AF193","v":0},{"$f":"'Population 2016'!AG193*'Prevalence Rates'!AG193","v":0},{"$f":"'Population 2016'!AH193*'Prevalence Rates'!AH193","v":0},{"$f":"'Population 2016'!AI193*'Prevalence Rates'!AI193","v":0},{"$f":"'Population 2016'!AJ193*'Prevalence Rates'!AJ193","v":0},{"$f":"'Population 2016'!AK193*'Prevalence Rates'!AK193","v":0},{"$f":"'Population 2016'!AL193*'Prevalence Rates'!AL193","v":0},{"$f":"'Population 2016'!AM193*'Prevalence Rates'!AM193","v":0},{"$f":"'Population 2016'!AN193*'Prevalence Rates'!AN193","v":0},{"$f":"'Population 2016'!AO193*'Prevalence Rates'!AO193","v":0},{"$f":"'Population 2016'!AP193*'Prevalence Rates'!AP193","v":0},{"$f":"'Population 2016'!AQ193*'Prevalence Rates'!AQ193","v":0},{"$f":"'Population 2016'!AR193*'Prevalence Rates'!AR193","v":0},{"$f":"'Population 2016'!AS193*'Prevalence Rates'!AS193","v":0},{"$f":"'Population 2016'!AT193*'Prevalence Rates'!AT193","v":0},{"$f":"'Population 2016'!AU193*'Prevalence Rates'!AU193","v":0},{"$f":"'Population 2016'!AV193*'Prevalence Rates'!AV193","v":0},{"$f":"'Population 2016'!AW193*'Prevalence Rates'!AW193","v":0},{"$f":"'Population 2016'!AX193*'Prevalence Rates'!AX193","v":0},{"$f":"'Population 2016'!AY193*'Prevalence Rates'!AY193","v":0},{"$f":"'Population 2016'!AZ193*'Prevalence Rates'!AZ193","v":0},{"$f":"'Population 2016'!BA193*'Prevalence Rates'!BA193","v":0},{"$f":"'Population 2016'!BB193*'Prevalence Rates'!BB193","v":0},{"$f":"'Population 2016'!BC193*'Prevalence Rates'!BC193","v":0},191]
[null,"Male 5-9",{"$f":"'Population 2016'!C194*'Prevalence Rates'!C194","v":0},{"$f":"'Population 2016'!D194*'Prevalence Rates'!D194","v":0},{"$f":"'Population 2016'!E194*'Prevalence Rates'!E194","v":0},{"$f":"'Population 2016'!F194*'Prevalence Rates'!F194","v":0},{"$f":"'Population 2016'!G194*'Prevalence Rates'!G194","v":0},{"$f":"'Population 2016'!H194*'Prevalence Rates'!H194","v":0},{"$f":"'Population 2016'!I194*'Prevalence Rates'!I194","v":0},{"$f":"'Population 2016'!J194*'Prevalence Rates'!J194","v":0},{"$f":"'Population 2016'!K194*'Prevalence Rates'!K194","v":0},{"$f":"'Population 2016'!L194*'Prevalence Rates'!L194","v":0},{"$f":"'Population 2016'!M194*'Prevalence Rates'!M194","v":0},{"$f":"'Population 2016'!N194*'Prevalence Rates'!N194","v":0},{"$f":"'Population 2016'!O194*'Prevalence Rates'!O194","v":0},{"$f":"'Population 2016'!P194*'Prevalence Rates'!P194","v":0},{"$f":"'Population 2016'!Q194*'Prevalence Rates'!Q194","v":0},{"$f":"'Population 2016'!R194*'Prevalence Rates'!R194","v":0},{"$f":"'Population 2016'!S194*'Prevalence Rates'!S194","v":0},{"$f":"'Population 2016'!T194*'Prevalence Rates'!T194","v":0},{"$f":"'Population 2016'!U194*'Prevalence Rates'!U194","v":0},{"$f":"'Population 2016'!V194*'Prevalence Rates'!V194","v":0},{"$f":"'Population 2016'!W194*'Prevalence Rates'!W194","v":0},{"$f":"'Population 2016'!X194*'Prevalence Rates'!X194","v":0},{"$f":"'Population 2016'!Y194*'Prevalence Rates'!Y194","v":0},{"$f":"'Population 2016'!Z194*'Prevalence Rates'!Z194","v":0},{"$f":"'Population 2016'!AA194*'Prevalence Rates'!AA194","v":0},{"$f":"'Population 2016'!AB194*'Prevalence Rates'!AB194","v":0},{"$f":"'Population 2016'!AC194*'Prevalence Rates'!AC194","v":0},{"$f":"'Population 2016'!AD194*'Prevalence Rates'!AD194","v":0},{"$f":"'Population 2016'!AE194*'Prevalence Rates'!AE194","v":0},{"$f":"'Population 2016'!AF194*'Prevalence Rates'!AF194","v":0},{"$f":"'Population 2016'!AG194*'Prevalence Rates'!AG194","v":0},{"$f":"'Population 2016'!AH194*'Prevalence Rates'!AH194","v":0},{"$f":"'Population 2016'!AI194*'Prevalence Rates'!AI194","v":0},{"$f":"'Population 2016'!AJ194*'Prevalence Rates'!AJ194","v":0},{"$f":"'Population 2016'!AK194*'Prevalence Rates'!AK194","v":0},{"$f":"'Population 2016'!AL194*'Prevalence Rates'!AL194","v":0},{"$f":"'Population 2016'!AM194*'Prevalence Rates'!AM194","v":0},{"$f":"'Population 2016'!AN194*'Prevalence Rates'!AN194","v":0},{"$f":"'Population 2016'!AO194*'Prevalence Rates'!AO194","v":0},{"$f":"'Population 2016'!AP194*'Prevalence Rates'!AP194","v":0},{"$f":"'Population 2016'!AQ194*'Prevalence Rates'!AQ194","v":0},{"$f":"'Population 2016'!AR194*'Prevalence Rates'!AR194","v":0},{"$f":"'Population 2016'!AS194*'Prevalence Rates'!AS194","v":0},{"$f":"'Population 2016'!AT194*'Prevalence Rates'!AT194","v":0},{"$f":"'Population 2016'!AU194*'Prevalence Rates'!AU194","v":0},{"$f":"'Population 2016'!AV194*'Prevalence Rates'!AV194","v":0},{"$f":"'Population 2016'!AW194*'Prevalence Rates'!AW194","v":0},{"$f":"'Population 2016'!AX194*'Prevalence Rates'!AX194","v":0},{"$f":"'Population 2016'!AY194*'Prevalence Rates'!AY194","v":0},{"$f":"'Population 2016'!AZ194*'Prevalence Rates'!AZ194","v":0},{"$f":"'Population 2016'!BA194*'Prevalence Rates'!BA194","v":0},{"$f":"'Population 2016'!BB194*'Prevalence Rates'!BB194","v":0},{"$f":"'Population 2016'!BC194*'Prevalence Rates'!BC194","v":0},192]
[null,"Male 10-15",{"$f":"'Population 2016'!C195*'Prevalence Rates'!C195","v":0},{"$f":"'Population 2016'!D195*'Prevalence Rates'!D195","v":0},{"$f":"'Population 2016'!E195*'Prevalence Rates'!E195","v":0},{"$f":"'Population 2016'!F195*'Prevalence Rates'!F195","v":0},{"$f":"'Population 2016'!G195*'Prevalence Rates'!G195","v":0},{"$f":"'Population 2016'!H195*'Prevalence Rates'!H195","v":0},{"$f":"'Population 2016'!I195*'Prevalence Rates'!I195","v":0},{"$f":"'Population 2016'!J195*'Prevalence Rates'!J195","v":0},{"$f":"'Population 2016'!K195*'Prevalence Rates'!K195","v":0},{"$f":"'Population 2016'!L195*'Prevalence Rates'!L195","v":0},{"$f":"'Population 2016'!M195*'Prevalence Rates'!M195","v":0},{"$f":"'Population 2016'!N195*'Prevalence Rates'!N195","v":0},{"$f":"'Population 2016'!O195*'Prevalence Rates'!O195","v":0},{"$f":"'Population 2016'!P195*'Prevalence Rates'!P195","v":0},{"$f":"'Population 2016'!Q195*'Prevalence Rates'!Q195","v":0},{"$f":"'Population 2016'!R195*'Prevalence Rates'!R195","v":0},{"$f":"'Population 2016'!S195*'Prevalence Rates'!S195","v":0},{"$f":"'Population 2016'!T195*'Prevalence Rates'!T195","v":0},{"$f":"'Population 2016'!U195*'Prevalence Rates'!U195","v":0},{"$f":"'Population 2016'!V195*'Prevalence Rates'!V195","v":0},{"$f":"'Population 2016'!W195*'Prevalence Rates'!W195","v":0},{"$f":"'Population 2016'!X195*'Prevalence Rates'!X195","v":0},{"$f":"'Population 2016'!Y195*'Prevalence Rates'!Y195","v":0},{"$f":"'Population 2016'!Z195*'Prevalence Rates'!Z195","v":0},{"$f":"'Population 2016'!AA195*'Prevalence Rates'!AA195","v":0},{"$f":"'Population 2016'!AB195*'Prevalence Rates'!AB195","v":0},{"$f":"'Population 2016'!AC195*'Prevalence Rates'!AC195","v":0},{"$f":"'Population 2016'!AD195*'Prevalence Rates'!AD195","v":0},{"$f":"'Population 2016'!AE195*'Prevalence Rates'!AE195","v":0},{"$f":"'Population 2016'!AF195*'Prevalence Rates'!AF195","v":0},{"$f":"'Population 2016'!AG195*'Prevalence Rates'!AG195","v":0},{"$f":"'Population 2016'!AH195*'Prevalence Rates'!AH195","v":0},{"$f":"'Population 2016'!AI195*'Prevalence Rates'!AI195","v":0},{"$f":"'Population 2016'!AJ195*'Prevalence Rates'!AJ195","v":0},{"$f":"'Population 2016'!AK195*'Prevalence Rates'!AK195","v":0},{"$f":"'Population 2016'!AL195*'Prevalence Rates'!AL195","v":0},{"$f":"'Population 2016'!AM195*'Prevalence Rates'!AM195","v":0},{"$f":"'Population 2016'!AN195*'Prevalence Rates'!AN195","v":0},{"$f":"'Population 2016'!AO195*'Prevalence Rates'!AO195","v":0},{"$f":"'Population 2016'!AP195*'Prevalence Rates'!AP195","v":0},{"$f":"'Population 2016'!AQ195*'Prevalence Rates'!AQ195","v":0},{"$f":"'Population 2016'!AR195*'Prevalence Rates'!AR195","v":0},{"$f":"'Population 2016'!AS195*'Prevalence Rates'!AS195","v":0},{"$f":"'Population 2016'!AT195*'Prevalence Rates'!AT195","v":0},{"$f":"'Population 2016'!AU195*'Prevalence Rates'!AU195","v":0},{"$f":"'Population 2016'!AV195*'Prevalence Rates'!AV195","v":0},{"$f":"'Population 2016'!AW195*'Prevalence Rates'!AW195","v":0},{"$f":"'Population 2016'!AX195*'Prevalence Rates'!AX195","v":0},{"$f":"'Population 2016'!AY195*'Prevalence Rates'!AY195","v":0},{"$f":"'Population 2016'!AZ195*'Prevalence Rates'!AZ195","v":0},{"$f":"'Population 2016'!BA195*'Prevalence Rates'!BA195","v":0},{"$f":"'Population 2016'!BB195*'Prevalence Rates'!BB195","v":0},{"$f":"'Population 2016'!BC195*'Prevalence Rates'!BC195","v":0},193]
[null,"Male 16-19",{"$f":"'Population 2016'!C196*'Prevalence Rates'!C196","v":200.72565436893203},{"$f":"'Population 2016'!D196*'Prevalence Rates'!D196","v":248.12981773575768},{"$f":"'Population 2016'!E196*'Prevalence Rates'!E196","v":428.60653027360996},{"$f":"'Population 2016'!F196*'Prevalence Rates'!F196","v":166.76295472197708},{"$f":"'Population 2016'!G196*'Prevalence Rates'!G196","v":103.9324},{"$f":"'Population 2016'!H196*'Prevalence Rates'!H196","v":261.50592550750224},{"$f":"'Population 2016'!I196*'Prevalence Rates'!I196","v":128.59254633715801},{"$f":"'Population 2016'!J196*'Prevalence Rates'!J196","v":182.18979999999999},{"$f":"'Population 2016'!K196*'Prevalence Rates'!K196","v":47.241999999999997},{"$f":"'Population 2016'!L196*'Prevalence Rates'!L196","v":112.46511120917918},{"$f":"'Population 2016'!M196*'Prevalence Rates'!M196","v":112.46511120917918},{"$f":"'Population 2016'!N196*'Prevalence Rates'!N196","v":178.46304995586937},{"$f":"'Population 2016'!O196*'Prevalence Rates'!O196","v":75.249278022947934},{"$f":"'Population 2016'!P196*'Prevalence Rates'!P196","v":79.621959399823481},{"$f":"'Population 2016'!Q196*'Prevalence Rates'!Q196","v":145.68615913503973},{"$f":"'Population 2016'!R196*'Prevalence Rates'!R196","v":41.551894263018539},{"$f":"'Population 2016'!S196*'Prevalence Rates'!S196","v":626.44848552193423},{"$f":"'Population 2016'!T196*'Prevalence Rates'!T196","v":220.12290158870258},{"$f":"'Population 2016'!U196*'Prevalence Rates'!U196","v":7.1890000000000001},{"$f":"'Population 2016'!V196*'Prevalence Rates'!V196","v":156.33305816416592},{"$f":"'Population 2016'!W196*'Prevalence Rates'!W196","v":313.26971676963814},{"$f":"'Population 2016'!X196*'Prevalence Rates'!X196","v":313.26971676963814},{"$f":"'Population 2016'!Y196*'Prevalence Rates'!Y196","v":298.87603530450133},{"$f":"'Population 2016'!Z196*'Prevalence Rates'!Z196","v":312.00767608120032},{"$f":"'Population 2016'!AA196*'Prevalence Rates'!AA196","v":440.40144963710844},{"$f":"'Population 2016'!AB196*'Prevalence Rates'!AB196","v":833.2699106796116},{"$f":"'Population 2016'!AC196*'Prevalence Rates'!AC196","v":754.81037387466893},{"$f":"'Population 2016'!AD196*'Prevalence Rates'!AD196","v":511.87764819064432},{"$f":"'Population 2016'!AE196*'Prevalence Rates'!AE196","v":409.73492939099731},{"$f":"'Population 2016'!AF196*'Prevalence Rates'!AF196","v":81.338399999999993},{"$f":"'Population 2016'!AG196*'Prevalence Rates'!AG196","v":157.78612187727848},{"$f":"'Population 2016'!AH196*'Prevalence Rates'!AH196","v":532.36271774051204},{"$f":"'Population 2016'!AI196*'Prevalence Rates'!AI196","v":532.63882030008824},{"$f":"'Population 2016'!AJ196*'Prevalence Rates'!AJ196","v":56.484999999999999},{"$f":"'Population 2016'!AK196*'Prevalence Rates'!AK196","v":184.6894074139453},{"$f":"'Population 2016'!AL196*'Prevalence Rates'!AL196","v":134.79823689320389},{"$f":"'Population 2016'!AM196*'Prevalence Rates'!AM196","v":228.18344660194174},{"$f":"'Population 2016'!AN196*'Prevalence Rates'!AN196","v":50.733800000000002},{"$f":"'Population 2016'!AO196*'Prevalence Rates'!AO196","v":50.733800000000002},{"$f":"'Population 2016'!AP196*'Prevalence Rates'!AP196","v":296.17084660194178},{"$f":"'Population 2016'!AQ196*'Prevalence Rates'!AQ196","v":152.82648314210061},{"$f":"'Population 2016'!AR196*'Prevalence Rates'!AR196","v":5079.9528},{"$f":"'Population 2016'!AS196*'Prevalence Rates'!AS196","v":128.59254633715801},{"$f":"'Population 2016'!AT196*'Prevalence Rates'!AT196","v":76.819599999999994},{"$f":"'Population 2016'!AU196*'Prevalence Rates'!AU196","v":76.819599999999994},{"$f":"'Population 2016'!AV196*'Prevalence Rates'!AV196","v":56.464151809355691},{"$f":"'Population 2016'!AW196*'Prevalence Rates'!AW196","v":303.09933486319505},{"$f":"'Population 2016'!AX196*'Prevalence Rates'!AX196","v":134.9478},{"$f":"'Population 2016'!AY196*'Prevalence Rates'!AY196","v":436.0575115597178},{"$f":"'Population 2016'!AZ196*'Prevalence Rates'!AZ196","v":667.97557502206519},{"$f":"'Population 2016'!BA196*'Prevalence Rates'!BA196","v":52.757706090026481},{"$f":"'Population 2016'!BB196*'Prevalence Rates'!BB196","v":108.16431076787291},{"$f":"'Population 2016'!BC196*'Prevalence Rates'!BC196","v":7.1890000000000001},194]
[null,"Male 20-24",{"$f":"'Population 2016'!C197*'Prevalence Rates'!C197","v":497.40003009708738},{"$f":"'Population 2016'!D197*'Prevalence Rates'!D197","v":374.89178983989478},{"$f":"'Population 2016'!E197*'Prevalence Rates'!E197","v":482.6756781994705},{"$f":"'Population 2016'!F197*'Prevalence Rates'!F197","v":199.49878367166818},{"$f":"'Population 2016'!G197*'Prevalence Rates'!G197","v":116.2564},{"$f":"'Population 2016'!H197*'Prevalence Rates'!H197","v":284.15268049426305},{"$f":"'Population 2016'!I197*'Prevalence Rates'!I197","v":133.13110679611651},{"$f":"'Population 2016'!J197*'Prevalence Rates'!J197","v":264.76060000000001},{"$f":"'Population 2016'!K197*'Prevalence Rates'!K197","v":61.825400000000002},{"$f":"'Population 2016'!L197*'Prevalence Rates'!L197","v":136.23132338923213},{"$f":"'Population 2016'!M197*'Prevalence Rates'!M197","v":136.23132338923213},{"$f":"'Population 2016'!N197*'Prevalence Rates'!N197","v":389.86234342453662},{"$f":"'Population 2016'!O197*'Prevalence Rates'!O197","v":84.028360458958517},{"$f":"'Population 2016'!P197*'Prevalence Rates'!P197","v":105.63179947043248},{"$f":"'Population 2016'!Q197*'Prevalence Rates'!Q197","v":183.04158455428066},{"$f":"'Population 2016'!R197*'Prevalence Rates'!R197","v":42.498945984112979},{"$f":"'Population 2016'!S197*'Prevalence Rates'!S197","v":934.27544704268325},{"$f":"'Population 2016'!T197*'Prevalence Rates'!T197","v":519.70052383053837},{"$f":"'Population 2016'!U197*'Prevalence Rates'!U197","v":9.6538000000000004},{"$f":"'Population 2016'!V197*'Prevalence Rates'!V197","v":182.93072656663725},{"$f":"'Population 2016'!W197*'Prevalence Rates'!W197","v":409.74689443954105},{"$f":"'Population 2016'!X197*'Prevalence Rates'!X197","v":409.74689443954105},{"$f":"'Population 2016'!Y197*'Prevalence Rates'!Y197","v":393.76566857899383},{"$f":"'Population 2016'!Z197*'Prevalence Rates'!Z197","v":1018.4219666372461},{"$f":"'Population 2016'!AA197*'Prevalence Rates'!AA197","v":723.31166728440701},{"$f":"'Population 2016'!AB197*'Prevalence Rates'!AB197","v":1213.1841320388348},{"$f":"'Population 2016'!AC197*'Prevalence Rates'!AC197","v":1508.0776190644306},{"$f":"'Population 2016'!AD197*'Prevalence Rates'!AD197","v":568.7045585172109},{"$f":"'Population 2016'!AE197*'Prevalence Rates'!AE197","v":454.37271844660188},{"$f":"'Population 2016'!AF197*'Prevalence Rates'!AF197","v":85.241},{"$f":"'Population 2016'!AG197*'Prevalence Rates'!AG197","v":174.97582946390881},{"$f":"'Population 2016'!AH197*'Prevalence Rates'!AH197","v":635.53986937334514},{"$f":"'Population 2016'!AI197*'Prevalence Rates'!AI197","v":911.61079408649607},{"$f":"'Population 2016'!AJ197*'Prevalence Rates'!AJ197","v":61.4146},{"$f":"'Population 2016'!AK197*'Prevalence Rates'!AK197","v":231.91491015004416},{"$f":"'Population 2016'!AL197*'Prevalence Rates'!AL197","v":153.08481941747573},{"$f":"'Population 2016'!AM197*'Prevalence Rates'!AM197","v":299.8132067961165},{"$f":"'Population 2016'!AN197*'Prevalence Rates'!AN197","v":53.198599999999999},{"$f":"'Population 2016'!AO197*'Prevalence Rates'!AO197","v":53.198599999999999},{"$f":"'Population 2016'!AP197*'Prevalence Rates'!AP197","v":312.36200467784641},{"$f":"'Population 2016'!AQ197*'Prevalence Rates'!AQ197","v":197.23022859664607},{"$f":"'Population 2016'!AR197*'Prevalence Rates'!AR197","v":7235.8311999999996},{"$f":"'Population 2016'!AS197*'Prevalence Rates'!AS197","v":133.13110679611651},{"$f":"'Population 2016'!AT197*'Prevalence Rates'!AT197","v":92.224599999999995},{"$f":"'Population 2016'!AU197*'Prevalence Rates'!AU197","v":92.224599999999995},{"$f":"'Population 2016'!AV197*'Prevalence Rates'!AV197","v":55.4906319505737},{"$f":"'Population 2016'!AW197*'Prevalence Rates'!AW197","v":335.07592709620474},{"$f":"'Population 2016'!AX197*'Prevalence Rates'!AX197","v":202.93520000000001},{"$f":"'Population 2016'!AY197*'Prevalence Rates'!AY197","v":587.72546511246276},{"$f":"'Population 2016'!AZ197*'Prevalence Rates'!AZ197","v":912.28845092674305},{"$f":"'Population 2016'!BA197*'Prevalence Rates'!BA197","v":77.598778464254195},{"$f":"'Population 2016'!BB197*'Prevalence Rates'!BB197","v":134.25002012356575},{"$f":"'Population 2016'!BC197*'Prevalence Rates'!BC197","v":9.6538000000000004},195]
[null,"Male 25-29",{"$f":"'Population 2016'!C198*'Prevalence Rates'!C198","v":648.68161407766991},{"$f":"'Population 2016'!D198*'Prevalence Rates'!D198","v":458.28628067578478},{"$f":"'Population 2016'!E198*'Prevalence Rates'!E198","v":555.53129854368945},{"$f":"'Population 2016'!F198*'Prevalence Rates'!F198","v":190.64717961165053},{"$f":"'Population 2016'!G198*'Prevalence Rates'!G198","v":108.79},{"$f":"'Population 2016'!H198*'Prevalence Rates'!H198","v":291.01512864077671},{"$f":"'Population 2016'!I198*'Prevalence Rates'!I198","v":122.80518203883497},{"$f":"'Population 2016'!J198*'Prevalence Rates'!J198","v":218.2895},{"$f":"'Population 2016'!K198*'Prevalence Rates'!K198","v":59.125000000000007},{"$f":"'Population 2016'!L198*'Prevalence Rates'!L198","v":148.30689563106799},{"$f":"'Population 2016'!M198*'Prevalence Rates'!M198","v":148.30689563106799},{"$f":"'Population 2016'!N198*'Prevalence Rates'!N198","v":295.04773543689322},{"$f":"'Population 2016'!O198*'Prevalence Rates'!O198","v":95.307203883495148},{"$f":"'Population 2016'!P198*'Prevalence Rates'!P198","v":95.955961165048549},{"$f":"'Population 2016'!Q198*'Prevalence Rates'!Q198","v":148.50279611650487},{"$f":"'Population 2016'!R198*'Prevalence Rates'!R198","v":51.659907766990301},{"$f":"'Population 2016'!S198*'Prevalence Rates'!S198","v":1191.92593335166},{"$f":"'Population 2016'!T198*'Prevalence Rates'!T198","v":887.38536407766992},{"$f":"'Population 2016'!U198*'Prevalence Rates'!U198","v":5.9125000000000005},{"$f":"'Population 2016'!V198*'Prevalence Rates'!V198","v":172.5127645631068},{"$f":"'Population 2016'!W198*'Prevalence Rates'!W198","v":412.23139805825247},{"$f":"'Population 2016'!X198*'Prevalence Rates'!X198","v":412.23139805825247},{"$f":"'Population 2016'!Y198*'Prevalence Rates'!Y198","v":344.53332524271849},{"$f":"'Population 2016'!Z198*'Prevalence Rates'!Z198","v":1126.2952427184466},{"$f":"'Population 2016'!AA198*'Prevalence Rates'!AA198","v":778.13931522578878},{"$f":"'Population 2016'!AB198*'Prevalence Rates'!AB198","v":1441.7591067961166},{"$f":"'Population 2016'!AC198*'Prevalence Rates'!AC198","v":1658.7479611650485},{"$f":"'Population 2016'!AD198*'Prevalence Rates'!AD198","v":620.71877669902915},{"$f":"'Population 2016'!AE198*'Prevalence Rates'!AE198","v":515.4990291262136},{"$f":"'Population 2016'!AF198*'Prevalence Rates'!AF198","v":77.808500000000009},{"$f":"'Population 2016'!AG198*'Prevalence Rates'!AG198","v":198.51515407344871},{"$f":"'Population 2016'!AH198*'Prevalence Rates'!AH198","v":651.36400000000003},{"$f":"'Population 2016'!AI198*'Prevalence Rates'!AI198","v":1309.2683834951458},{"$f":"'Population 2016'!AJ198*'Prevalence Rates'!AJ198","v":77.808500000000009},{"$f":"'Population 2016'!AK198*'Prevalence Rates'!AK198","v":240.9903689320389},{"$f":"'Population 2016'!AL198*'Prevalence Rates'!AL198","v":134.45369417475732},{"$f":"'Population 2016'!AM198*'Prevalence Rates'!AM198","v":295.63188834951455},{"$f":"'Population 2016'!AN198*'Prevalence Rates'!AN198","v":59.834500000000006},{"$f":"'Population 2016'!AO198*'Prevalence Rates'!AO198","v":59.834500000000006},{"$f":"'Population 2016'!AP198*'Prevalence Rates'!AP198","v":302.89137378640777},{"$f":"'Population 2016'!AQ198*'Prevalence Rates'!AQ198","v":240.49545145631069},{"$f":"'Population 2016'!AR198*'Prevalence Rates'!AR198","v":7974.3070000000007},{"$f":"'Population 2016'!AS198*'Prevalence Rates'!AS198","v":122.80518203883497},{"$f":"'Population 2016'!AT198*'Prevalence Rates'!AT198","v":108.55350000000001},{"$f":"'Population 2016'!AU198*'Prevalence Rates'!AU198","v":108.55350000000001},{"$f":"'Population 2016'!AV198*'Prevalence Rates'!AV198","v":63.518932038834947},{"$f":"'Population 2016'!AW198*'Prevalence Rates'!AW198","v":354.79383495145635},{"$f":"'Population 2016'!AX198*'Prevalence Rates'!AX198","v":159.1645},{"$f":"'Population 2016'!AY198*'Prevalence Rates'!AY198","v":540.67765905615181},{"$f":"'Population 2016'!AZ198*'Prevalence Rates'!AZ198","v":805.39636650485443},{"$f":"'Population 2016'!BA198*'Prevalence Rates'!BA198","v":89.075752427184469},{"$f":"'Population 2016'!BB198*'Prevalence Rates'!BB198","v":164.33378883495146},{"$f":"'Population 2016'!BC198*'Prevalence Rates'!BC198","v":5.9125000000000005},196]
[null,"Male 30-34",{"$f":"'Population 2016'!C199*'Prevalence Rates'!C199","v":479.62314805825247},{"$f":"'Population 2016'!D199*'Prevalence Rates'!D199","v":417.35105847989848},{"$f":"'Population 2016'!E199*'Prevalence Rates'!E199","v":600.29189805825251},{"$f":"'Population 2016'!F199*'Prevalence Rates'!F199","v":186.00391019417481},{"$f":"'Population 2016'!G199*'Prevalence Rates'!G199","v":94.600000000000009},{"$f":"'Population 2016'!H199*'Prevalence Rates'!H199","v":275.51728155339811},{"$f":"'Population 2016'!I199*'Prevalence Rates'!I199","v":123.85033252427186},{"$f":"'Population 2016'!J199*'Prevalence Rates'!J199","v":203.863},{"$f":"'Population 2016'!K199*'Prevalence Rates'!K199","v":73.551500000000004},{"$f":"'Population 2016'!L199*'Prevalence Rates'!L199","v":156.614036407767},{"$f":"'Population 2016'!M199*'Prevalence Rates'!M199","v":156.614036407767},{"$f":"'Population 2016'!N199*'Prevalence Rates'!N199","v":187.19528155339808},{"$f":"'Population 2016'!O199*'Prevalence Rates'!O199","v":101.32407281553398},{"$f":"'Population 2016'!P199*'Prevalence Rates'!P199","v":86.788194174757294},{"$f":"'Population 2016'!Q199*'Prevalence Rates'!Q199","v":156.42596359223302},{"$f":"'Population 2016'!R199*'Prevalence Rates'!R199","v":40.482830097087387},{"$f":"'Population 2016'!S199*'Prevalence Rates'!S199","v":1208.6841187063408},{"$f":"'Population 2016'!T199*'Prevalence Rates'!T199","v":840.53206310679616},{"$f":"'Population 2016'!U199*'Prevalence Rates'!U199","v":5.4395000000000007},{"$f":"'Population 2016'!V199*'Prevalence Rates'!V199","v":178.68180339805826},{"$f":"'Population 2016'!W199*'Prevalence Rates'!W199","v":412.49033737864085},{"$f":"'Population 2016'!X199*'Prevalence Rates'!X199","v":412.49033737864085},{"$f":"'Population 2016'!Y199*'Prevalence Rates'!Y199","v":337.86884708737864},{"$f":"'Population 2016'!Z199*'Prevalence Rates'!Z199","v":933.21605825242716},{"$f":"'Population 2016'!AA199*'Prevalence Rates'!AA199","v":718.49215675960136},{"$f":"'Population 2016'!AB199*'Prevalence Rates'!AB199","v":1338.103223300971},{"$f":"'Population 2016'!AC199*'Prevalence Rates'!AC199","v":1384.616699029126},{"$f":"'Population 2016'!AD199*'Prevalence Rates'!AD199","v":628.99168446601948},{"$f":"'Population 2016'!AE199*'Prevalence Rates'!AE199","v":539.27949029126205},{"$f":"'Population 2016'!AF199*'Prevalence Rates'!AF199","v":82.775000000000006},{"$f":"'Population 2016'!AG199*'Prevalence Rates'!AG199","v":207.67284719290842},{"$f":"'Population 2016'!AH199*'Prevalence Rates'!AH199","v":732.21986407766997},{"$f":"'Population 2016'!AI199*'Prevalence Rates'!AI199","v":1332.9854927184467},{"$f":"'Population 2016'!AJ199*'Prevalence Rates'!AJ199","v":91.289000000000001},{"$f":"'Population 2016'!AK199*'Prevalence Rates'!AK199","v":245.33023786407773},{"$f":"'Population 2016'!AL199*'Prevalence Rates'!AL199","v":113.99988834951459},{"$f":"'Population 2016'!AM199*'Prevalence Rates'!AM199","v":321.4482742718447},{"$f":"'Population 2016'!AN199*'Prevalence Rates'!AN199","v":59.834500000000006},{"$f":"'Population 2016'!AO199*'Prevalence Rates'!AO199","v":59.834500000000006},{"$f":"'Population 2016'!AP199*'Prevalence Rates'!AP199","v":333.6832354368932},{"$f":"'Population 2016'!AQ199*'Prevalence Rates'!AQ199","v":189.36845145631071},{"$f":"'Population 2016'!AR199*'Prevalence Rates'!AR199","v":7649.8290000000006},{"$f":"'Population 2016'!AS199*'Prevalence Rates'!AS199","v":123.85033252427186},{"$f":"'Population 2016'!AT199*'Prevalence Rates'!AT199","v":96.728500000000011},{"$f":"'Population 2016'!AU199*'Prevalence Rates'!AU199","v":96.728500000000011},{"$f":"'Population 2016'!AV199*'Prevalence Rates'!AV199","v":59.782524271844657},{"$f":"'Population 2016'!AW199*'Prevalence Rates'!AW199","v":409.4633252427185},{"$f":"'Population 2016'!AX199*'Prevalence Rates'!AX199","v":130.3115},{"$f":"'Population 2016'!AY199*'Prevalence Rates'!AY199","v":510.47220324295893},{"$f":"'Population 2016'!AZ199*'Prevalence Rates'!AZ199","v":738.05220873786413},{"$f":"'Population 2016'!BA199*'Prevalence Rates'!BA199","v":69.462742718446606},{"$f":"'Population 2016'!BB199*'Prevalence Rates'!BB199","v":212.73477669902914},{"$f":"'Population 2016'!BC199*'Prevalence Rates'!BC199","v":5.4395000000000007},197]
[null,"Male 35-39",{"$f":"'Population 2016'!C200*'Prevalence Rates'!C200","v":332.19805339805822},{"$f":"'Population 2016'!D200*'Prevalence Rates'!D200","v":364.02260351103502},{"$f":"'Population 2016'!E200*'Prevalence Rates'!E200","v":596.75412894969111},{"$f":"'Population 2016'!F200*'Prevalence Rates'!F200","v":156.36748234774939},{"$f":"'Population 2016'!G200*'Prevalence Rates'!G200","v":104.15},{"$f":"'Population 2016'!H200*'Prevalence Rates'!H200","v":284.48126668137689},{"$f":"'Population 2016'!I200*'Prevalence Rates'!I200","v":129.33416862312447},{"$f":"'Population 2016'!J200*'Prevalence Rates'!J200","v":211.6328},{"$f":"'Population 2016'!K200*'Prevalence Rates'!K200","v":65.614500000000007},{"$f":"'Population 2016'!L200*'Prevalence Rates'!L200","v":117.71128601059137},{"$f":"'Population 2016'!M200*'Prevalence Rates'!M200","v":117.71128601059137},{"$f":"'Population 2016'!N200*'Prevalence Rates'!N200","v":134.31571919682258},{"$f":"'Population 2016'!O200*'Prevalence Rates'!O200","v":99.205219064430722},{"$f":"'Population 2016'!P200*'Prevalence Rates'!P200","v":76.080793645189758},{"$f":"'Population 2016'!Q200*'Prevalence Rates'!Q200","v":167.2826413503972},{"$f":"'Population 2016'!R200*'Prevalence Rates'!R200","v":42.618768314210065},{"$f":"'Population 2016'!S200*'Prevalence Rates'!S200","v":1024.2180686436598},{"$f":"'Population 2016'!T200*'Prevalence Rates'!T200","v":582.8902288172992},{"$f":"'Population 2016'!U200*'Prevalence Rates'!U200","v":10.415000000000001},{"$f":"'Population 2016'!V200*'Prevalence Rates'!V200","v":181.82650401588702},{"$f":"'Population 2016'!W200*'Prevalence Rates'!W200","v":397.74305878199476},{"$f":"'Population 2016'!X200*'Prevalence Rates'!X200","v":397.74305878199476},{"$f":"'Population 2016'!Y200*'Prevalence Rates'!Y200","v":347.3862120476611},{"$f":"'Population 2016'!Z200*'Prevalence Rates'!Z200","v":608.63660520741394},{"$f":"'Population 2016'!AA200*'Prevalence Rates'!AA200","v":605.24275917002876},{"$f":"'Population 2016'!AB200*'Prevalence Rates'!AB200","v":1168.283918446602},{"$f":"'Population 2016'!AC200*'Prevalence Rates'!AC200","v":1042.6810407766991},{"$f":"'Population 2016'!AD200*'Prevalence Rates'!AD200","v":585.12444395410421},{"$f":"'Population 2016'!AE200*'Prevalence Rates'!AE200","v":484.21017210944393},{"$f":"'Population 2016'!AF200*'Prevalence Rates'!AF200","v":70.4054},{"$f":"'Population 2016'!AG200*'Prevalence Rates'!AG200","v":186.46602901109026},{"$f":"'Population 2016'!AH200*'Prevalence Rates'!AH200","v":726.86735428067084},{"$f":"'Population 2016'!AI200*'Prevalence Rates'!AI200","v":1061.092701676964},{"$f":"'Population 2016'!AJ200*'Prevalence Rates'!AJ200","v":98.525900000000007},{"$f":"'Population 2016'!AK200*'Prevalence Rates'!AK200","v":215.17794466019421},{"$f":"'Population 2016'!AL200*'Prevalence Rates'!AL200","v":125.04471456310681},{"$f":"'Population 2016'!AM200*'Prevalence Rates'!AM200","v":307.26575679611653},{"$f":"'Population 2016'!AN200*'Prevalence Rates'!AN200","v":50.200300000000006},{"$f":"'Population 2016'!AO200*'Prevalence Rates'!AO200","v":50.200300000000006},{"$f":"'Population 2016'!AP200*'Prevalence Rates'!AP200","v":295.55563821712269},{"$f":"'Population 2016'!AQ200*'Prevalence Rates'!AQ200","v":182.09005039717565},{"$f":"'Population 2016'!AR200*'Prevalence Rates'!AR200","v":6669.9743000000008},{"$f":"'Population 2016'!AS200*'Prevalence Rates'!AS200","v":129.33416862312447},{"$f":"'Population 2016'!AT200*'Prevalence Rates'!AT200","v":94.568200000000004},{"$f":"'Population 2016'!AU200*'Prevalence Rates'!AU200","v":94.568200000000004},{"$f":"'Population 2016'!AV200*'Prevalence Rates'!AV200","v":61.374960723742277},{"$f":"'Population 2016'!AW200*'Prevalence Rates'!AW200","v":418.02721350397178},{"$f":"'Population 2016'!AX200*'Prevalence Rates'!AX200","v":146.01830000000001},{"$f":"'Population 2016'!AY200*'Prevalence Rates'!AY200","v":449.60405892392538},{"$f":"'Population 2016'!AZ200*'Prevalence Rates'!AZ200","v":616.99811284201235},{"$f":"'Population 2016'!BA200*'Prevalence Rates'!BA200","v":53.502581200353042},{"$f":"'Population 2016'!BB200*'Prevalence Rates'!BB200","v":193.93989360105914},{"$f":"'Population 2016'!BC200*'Prevalence Rates'!BC200","v":10.415000000000001},198]
[null,"Male 40-44",{"$f":"'Population 2016'!C201*'Prevalence Rates'!C201","v":278.48092135922332},{"$f":"'Population 2016'!D201*'Prevalence Rates'!D201","v":370.65325202671875},{"$f":"'Population 2016'!E201*'Prevalence Rates'!E201","v":658.39070564872031},{"$f":"'Population 2016'!F201*'Prevalence Rates'!F201","v":184.75419452780235},{"$f":"'Population 2016'!G201*'Prevalence Rates'!G201","v":130.39580000000001},{"$f":"'Population 2016'!H201*'Prevalence Rates'!H201","v":339.51420022065315},{"$f":"'Population 2016'!I201*'Prevalence Rates'!I201","v":168.14976134157109},{"$f":"'Population 2016'!J201*'Prevalence Rates'!J201","v":235.17070000000001},{"$f":"'Population 2016'!K201*'Prevalence Rates'!K201","v":70.822000000000003},{"$f":"'Population 2016'!L201*'Prevalence Rates'!L201","v":153.43354099735217},{"$f":"'Population 2016'!M201*'Prevalence Rates'!M201","v":153.43354099735217},{"$f":"'Population 2016'!N201*'Prevalence Rates'!N201","v":136.92149152691968},{"$f":"'Population 2016'!O201*'Prevalence Rates'!O201","v":117.85919187996471},{"$f":"'Population 2016'!P201*'Prevalence Rates'!P201","v":90.794532038834959},{"$f":"'Population 2016'!Q201*'Prevalence Rates'!Q201","v":222.31244947043251},{"$f":"'Population 2016'!R201*'Prevalence Rates'!R201","v":51.742786319505747},{"$f":"'Population 2016'!S201*'Prevalence Rates'!S201","v":1048.3259996457202},{"$f":"'Population 2016'!T201*'Prevalence Rates'!T201","v":486.66086849073258},{"$f":"'Population 2016'!U201*'Prevalence Rates'!U201","v":11.4565},{"$f":"'Population 2016'!V201*'Prevalence Rates'!V201","v":199.67926641659312},{"$f":"'Population 2016'!W201*'Prevalence Rates'!W201","v":423.7423183583407},{"$f":"'Population 2016'!X201*'Prevalence Rates'!X201","v":423.7423183583407},{"$f":"'Population 2016'!Y201*'Prevalence Rates'!Y201","v":383.85020255957636},{"$f":"'Population 2016'!Z201*'Prevalence Rates'!Z201","v":528.98364121800535},{"$f":"'Population 2016'!AA201*'Prevalence Rates'!AA201","v":633.25651996354418},{"$f":"'Population 2016'!AB201*'Prevalence Rates'!AB201","v":1231.1864737864078},{"$f":"'Population 2016'!AC201*'Prevalence Rates'!AC201","v":1058.106639364519},{"$f":"'Population 2016'!AD201*'Prevalence Rates'!AD201","v":661.52182418358348},{"$f":"'Population 2016'!AE201*'Prevalence Rates'!AE201","v":533.75725948808474},{"$f":"'Population 2016'!AF201*'Prevalence Rates'!AF201","v":85.194700000000012},{"$f":"'Population 2016'!AG201*'Prevalence Rates'!AG201","v":205.54627384013205},{"$f":"'Population 2016'!AH201*'Prevalence Rates'!AH201","v":789.72725684024715},{"$f":"'Population 2016'!AI201*'Prevalence Rates'!AI201","v":1029.4817518534865},{"$f":"'Population 2016'!AJ201*'Prevalence Rates'!AJ201","v":94.35990000000001},{"$f":"'Population 2016'!AK201*'Prevalence Rates'!AK201","v":261.94598278905568},{"$f":"'Population 2016'!AL201*'Prevalence Rates'!AL201","v":158.69022038834953},{"$f":"'Population 2016'!AM201*'Prevalence Rates'!AM201","v":344.89424174757283},{"$f":"'Population 2016'!AN201*'Prevalence Rates'!AN201","v":64.156400000000005},{"$f":"'Population 2016'!AO201*'Prevalence Rates'!AO201","v":64.156400000000005},{"$f":"'Population 2016'!AP201*'Prevalence Rates'!AP201","v":330.42456182700795},{"$f":"'Population 2016'!AQ201*'Prevalence Rates'!AQ201","v":200.45207228596647},{"$f":"'Population 2016'!AR201*'Prevalence Rates'!AR201","v":7154.6884},{"$f":"'Population 2016'!AS201*'Prevalence Rates'!AS201","v":168.14976134157109},{"$f":"'Population 2016'!AT201*'Prevalence Rates'!AT201","v":114.77330000000001},{"$f":"'Population 2016'!AU201*'Prevalence Rates'!AU201","v":114.77330000000001},{"$f":"'Population 2016'!AV201*'Prevalence Rates'!AV201","v":67.792181818181817},{"$f":"'Population 2016'!AW201*'Prevalence Rates'!AW201","v":443.38006284201236},{"$f":"'Population 2016'!AX201*'Prevalence Rates'!AX201","v":164.34870000000001},{"$f":"'Population 2016'!AY201*'Prevalence Rates'!AY201","v":492.17012367411951},{"$f":"'Population 2016'!AZ201*'Prevalence Rates'!AZ201","v":686.59917700794347},{"$f":"'Population 2016'!BA201*'Prevalence Rates'!BA201","v":73.176176081200353},{"$f":"'Population 2016'!BB201*'Prevalence Rates'!BB201","v":213.14853640776701},{"$f":"'Population 2016'!BC201*'Prevalence Rates'!BC201","v":11.4565},199]
[null,"Male 45-49",{"$f":"'Population 2016'!C202*'Prevalence Rates'!C202","v":259.29190097087377},{"$f":"'Population 2016'!D202*'Prevalence Rates'!D202","v":382.73377316572589},{"$f":"'Population 2016'!E202*'Prevalence Rates'!E202","v":703.85782140335391},{"$f":"'Population 2016'!F202*'Prevalence Rates'!F202","v":235.36427206531337},{"$f":"'Population 2016'!G202*'Prevalence Rates'!G202","v":158.69229999999999},{"$f":"'Population 2016'!H202*'Prevalence Rates'!H202","v":428.69606954986762},{"$f":"'Population 2016'!I202*'Prevalence Rates'!I202","v":229.65196941747575},{"$f":"'Population 2016'!J202*'Prevalence Rates'!J202","v":291.9359},{"$f":"'Population 2016'!K202*'Prevalence Rates'!K202","v":88.346299999999999},{"$f":"'Population 2016'!L202*'Prevalence Rates'!L202","v":201.77808367166816},{"$f":"'Population 2016'!M202*'Prevalence Rates'!M202","v":201.77808367166816},{"$f":"'Population 2016'!N202*'Prevalence Rates'!N202","v":162.82500423654017},{"$f":"'Population 2016'!O202*'Prevalence Rates'!O202","v":132.2268134157105},{"$f":"'Population 2016'!P202*'Prevalence Rates'!P202","v":119.0575279788173},{"$f":"'Population 2016'!Q202*'Prevalence Rates'!Q202","v":243.98933592233007},{"$f":"'Population 2016'!R202*'Prevalence Rates'!R202","v":53.302954898499557},{"$f":"'Population 2016'!S202*'Prevalence Rates'!S202","v":1169.3173816396843},{"$f":"'Population 2016'!T202*'Prevalence Rates'!T202","v":450.88130097087378},{"$f":"'Population 2016'!U202*'Prevalence Rates'!U202","v":14.896800000000001},{"$f":"'Population 2016'!V202*'Prevalence Rates'!V202","v":239.00693556928508},{"$f":"'Population 2016'!W202*'Prevalence Rates'!W202","v":565.42099488084727},{"$f":"'Population 2016'!X202*'Prevalence Rates'!X202","v":565.42099488084727},{"$f":"'Population 2016'!Y202*'Prevalence Rates'!Y202","v":468.37238592233007},{"$f":"'Population 2016'!Z202*'Prevalence Rates'!Z202","v":542.90213036187106},{"$f":"'Population 2016'!AA202*'Prevalence Rates'!AA202","v":726.20884392485766},{"$f":"'Population 2016'!AB202*'Prevalence Rates'!AB202","v":1328.9970407766991},{"$f":"'Population 2016'!AC202*'Prevalence Rates'!AC202","v":1217.759711915269},{"$f":"'Population 2016'!AD202*'Prevalence Rates'!AD202","v":785.81514801412175},{"$f":"'Population 2016'!AE202*'Prevalence Rates'!AE202","v":629.94019417475727},{"$f":"'Population 2016'!AF202*'Prevalence Rates'!AF202","v":117.1054},{"$f":"'Population 2016'!AG202*'Prevalence Rates'!AG202","v":242.58566483748416},{"$f":"'Population 2016'!AH202*'Prevalence Rates'!AH202","v":901.78597634598418},{"$f":"'Population 2016'!AI202*'Prevalence Rates'!AI202","v":1022.3789105030892},{"$f":"'Population 2016'!AJ202*'Prevalence Rates'!AJ202","v":97.4499},{"$f":"'Population 2016'!AK202*'Prevalence Rates'!AK202","v":329.86598402471321},{"$f":"'Population 2016'!AL202*'Prevalence Rates'!AL202","v":205.77912427184467},{"$f":"'Population 2016'!AM202*'Prevalence Rates'!AM202","v":397.94001019417482},{"$f":"'Population 2016'!AN202*'Prevalence Rates'!AN202","v":84.001400000000004},{"$f":"'Population 2016'!AO202*'Prevalence Rates'!AO202","v":84.001400000000004},{"$f":"'Population 2016'!AP202*'Prevalence Rates'!AP202","v":410.11725304501323},{"$f":"'Population 2016'!AQ202*'Prevalence Rates'!AQ202","v":246.43835260370699},{"$f":"'Population 2016'!AR202*'Prevalence Rates'!AR202","v":8244.1373999999996},{"$f":"'Population 2016'!AS202*'Prevalence Rates'!AS202","v":229.65196941747575},{"$f":"'Population 2016'!AT202*'Prevalence Rates'!AT202","v":111.3122},{"$f":"'Population 2016'!AU202*'Prevalence Rates'!AU202","v":111.3122},{"$f":"'Population 2016'!AV202*'Prevalence Rates'!AV202","v":95.121042365401593},{"$f":"'Population 2016'!AW202*'Prevalence Rates'!AW202","v":502.28252894969114},{"$f":"'Population 2016'!AX202*'Prevalence Rates'!AX202","v":203.58959999999999},{"$f":"'Population 2016'!AY202*'Prevalence Rates'!AY202","v":627.44657374493261},{"$f":"'Population 2016'!AZ202*'Prevalence Rates'!AZ202","v":851.12186385701671},{"$f":"'Population 2016'!BA202*'Prevalence Rates'!BA202","v":102.7113323036187},{"$f":"'Population 2016'!BB202*'Prevalence Rates'!BB202","v":219.74943958517213},{"$f":"'Population 2016'!BC202*'Prevalence Rates'!BC202","v":14.896800000000001},200]
[null,"Male 50-54",{"$f":"'Population 2016'!C203*'Prevalence Rates'!C203","v":267.7165475728155},{"$f":"'Population 2016'!D203*'Prevalence Rates'!D203","v":409.73671521742693},{"$f":"'Population 2016'!E203*'Prevalence Rates'!E203","v":761.89975414827893},{"$f":"'Population 2016'!F203*'Prevalence Rates'!F203","v":279.09184748455431},{"$f":"'Population 2016'!G203*'Prevalence Rates'!G203","v":178.96850000000001},{"$f":"'Population 2016'!H203*'Prevalence Rates'!H203","v":461.62302669902914},{"$f":"'Population 2016'!I203*'Prevalence Rates'!I203","v":263.48258468667257},{"$f":"'Population 2016'!J203*'Prevalence Rates'!J203","v":301.45330000000001},{"$f":"'Population 2016'!K203*'Prevalence Rates'!K203","v":82.76},{"$f":"'Population 2016'!L203*'Prevalence Rates'!L203","v":239.18397842012359},{"$f":"'Population 2016'!M203*'Prevalence Rates'!M203","v":239.18397842012359},{"$f":"'Population 2016'!N203*'Prevalence Rates'!N203","v":180.00163040600177},{"$f":"'Population 2016'!O203*'Prevalence Rates'!O203","v":139.38558993821712},{"$f":"'Population 2016'!P203*'Prevalence Rates'!P203","v":127.612559929391},{"$f":"'Population 2016'!Q203*'Prevalence Rates'!Q203","v":264.38779501323916},{"$f":"'Population 2016'!R203*'Prevalence Rates'!R203","v":66.658505119152693},{"$f":"'Population 2016'!S203*'Prevalence Rates'!S203","v":1212.8109547108083},{"$f":"'Population 2016'!T203*'Prevalence Rates'!T203","v":446.64103795233893},{"$f":"'Population 2016'!U203*'Prevalence Rates'!U203","v":11.586399999999999},{"$f":"'Population 2016'!V203*'Prevalence Rates'!V203","v":228.02032643424536},{"$f":"'Population 2016'!W203*'Prevalence Rates'!W203","v":579.6924382612533},{"$f":"'Population 2016'!X203*'Prevalence Rates'!X203","v":579.6924382612533},{"$f":"'Population 2016'!Y203*'Prevalence Rates'!Y203","v":466.42893203883494},{"$f":"'Population 2016'!Z203*'Prevalence Rates'!Z203","v":529.06868314210055},{"$f":"'Population 2016'!AA203*'Prevalence Rates'!AA203","v":758.94895203572162},{"$f":"'Population 2016'!AB203*'Prevalence Rates'!AB203","v":1403.842613592233},{"$f":"'Population 2016'!AC203*'Prevalence Rates'!AC203","v":1293.9252081200352},{"$f":"'Population 2016'!AD203*'Prevalence Rates'!AD203","v":855.33884377758159},{"$f":"'Population 2016'!AE203*'Prevalence Rates'!AE203","v":678.93057149161518},{"$f":"'Population 2016'!AF203*'Prevalence Rates'!AF203","v":133.45050000000001},{"$f":"'Population 2016'!AG203*'Prevalence Rates'!AG203","v":261.45152442534248},{"$f":"'Population 2016'!AH203*'Prevalence Rates'!AH203","v":923.52052003530457},{"$f":"'Population 2016'!AI203*'Prevalence Rates'!AI203","v":1035.4157105472198},{"$f":"'Population 2016'!AJ203*'Prevalence Rates'!AJ203","v":100.34650000000001},{"$f":"'Population 2016'!AK203*'Prevalence Rates'!AK203","v":333.66268120035306},{"$f":"'Population 2016'!AL203*'Prevalence Rates'!AL203","v":233.40931359223302},{"$f":"'Population 2016'!AM203*'Prevalence Rates'!AM203","v":405.7349174757282},{"$f":"'Population 2016'!AN203*'Prevalence Rates'!AN203","v":91.449799999999996},{"$f":"'Population 2016'!AO203*'Prevalence Rates'!AO203","v":91.449799999999996},{"$f":"'Population 2016'!AP203*'Prevalence Rates'!AP203","v":463.99324607237423},{"$f":"'Population 2016'!AQ203*'Prevalence Rates'!AQ203","v":272.71063512797883},{"$f":"'Population 2016'!AR203*'Prevalence Rates'!AR203","v":8743.1802000000007},{"$f":"'Population 2016'!AS203*'Prevalence Rates'!AS203","v":263.48258468667257},{"$f":"'Population 2016'!AT203*'Prevalence Rates'!AT203","v":122.48480000000001},{"$f":"'Population 2016'!AU203*'Prevalence Rates'!AU203","v":122.48480000000001},{"$f":"'Population 2016'!AV203*'Prevalence Rates'!AV203","v":97.409177405119152},{"$f":"'Population 2016'!AW203*'Prevalence Rates'!AW203","v":516.14263759929395},{"$f":"'Population 2016'!AX203*'Prevalence Rates'!AX203","v":218.69329999999999},{"$f":"'Population 2016'!AY203*'Prevalence Rates'!AY203","v":687.44107533682836},{"$f":"'Population 2016'!AZ203*'Prevalence Rates'!AZ203","v":970.69198521623991},{"$f":"'Population 2016'!BA203*'Prevalence Rates'!BA203","v":112.24370653133275},{"$f":"'Population 2016'!BB203*'Prevalence Rates'!BB203","v":216.06742308031775},{"$f":"'Population 2016'!BC203*'Prevalence Rates'!BC203","v":11.586399999999999},201]
[null,"Male 55-59",{"$f":"'Population 2016'!C204*'Prevalence Rates'!C204","v":175.40285242718448},{"$f":"'Population 2016'!D204*'Prevalence Rates'!D204","v":267.74768798890562},{"$f":"'Population 2016'!E204*'Prevalence Rates'!E204","v":497.48235251544577},{"$f":"'Population 2016'!F204*'Prevalence Rates'!F204","v":176.85538172992059},{"$f":"'Population 2016'!G204*'Prevalence Rates'!G204","v":119.96820000000001},{"$f":"'Population 2016'!H204*'Prevalence Rates'!H204","v":319.34645586937341},{"$f":"'Population 2016'!I204*'Prevalence Rates'!I204","v":175.40232497793471},{"$f":"'Population 2016'!J204*'Prevalence Rates'!J204","v":192.1284},{"$f":"'Population 2016'!K204*'Prevalence Rates'!K204","v":50.048999999999999},{"$f":"'Population 2016'!L204*'Prevalence Rates'!L204","v":159.2838714916152},{"$f":"'Population 2016'!M204*'Prevalence Rates'!M204","v":159.2838714916152},{"$f":"'Population 2016'!N204*'Prevalence Rates'!N204","v":140.6810001765225},{"$f":"'Population 2016'!O204*'Prevalence Rates'!O204","v":95.631427890556054},{"$f":"'Population 2016'!P204*'Prevalence Rates'!P204","v":98.453676963812882},{"$f":"'Population 2016'!Q204*'Prevalence Rates'!Q204","v":178.61284263018536},{"$f":"'Population 2016'!R204*'Prevalence Rates'!R204","v":36.164557811120922},{"$f":"'Population 2016'!S204*'Prevalence Rates'!S204","v":804.56295894793141},{"$f":"'Population 2016'!T204*'Prevalence Rates'!T204","v":296.74360723742279},{"$f":"'Population 2016'!U204*'Prevalence Rates'!U204","v":7.7688000000000006},{"$f":"'Population 2016'!V204*'Prevalence Rates'!V204","v":152.40283451015003},{"$f":"'Population 2016'!W204*'Prevalence Rates'!W204","v":390.78114942630191},{"$f":"'Population 2016'!X204*'Prevalence Rates'!X204","v":390.78114942630191},{"$f":"'Population 2016'!Y204*'Prevalence Rates'!Y204","v":303.76033053839365},{"$f":"'Population 2016'!Z204*'Prevalence Rates'!Z204","v":331.56356504854369},{"$f":"'Population 2016'!AA204*'Prevalence Rates'!AA204","v":481.95768952946656},{"$f":"'Population 2016'!AB204*'Prevalence Rates'!AB204","v":911.09051650485435},{"$f":"'Population 2016'!AC204*'Prevalence Rates'!AC204","v":858.48483812886127},{"$f":"'Population 2016'!AD204*'Prevalence Rates'!AD204","v":585.48145789938212},{"$f":"'Population 2016'!AE204*'Prevalence Rates'!AE204","v":467.47167696381291},{"$f":"'Population 2016'!AF204*'Prevalence Rates'!AF204","v":84.560400000000001},{"$f":"'Population 2016'!AG204*'Prevalence Rates'!AG204","v":180.02014889289688},{"$f":"'Population 2016'!AH204*'Prevalence Rates'!AH204","v":553.72176063548113},{"$f":"'Population 2016'!AI204*'Prevalence Rates'!AI204","v":681.10227087378644},{"$f":"'Population 2016'!AJ204*'Prevalence Rates'!AJ204","v":69.321600000000004},{"$f":"'Population 2016'!AK204*'Prevalence Rates'!AK204","v":211.58310185348634},{"$f":"'Population 2016'!AL204*'Prevalence Rates'!AL204","v":157.71128155339807},{"$f":"'Population 2016'!AM204*'Prevalence Rates'!AM204","v":229.32972524271844},{"$f":"'Population 2016'!AN204*'Prevalence Rates'!AN204","v":58.266000000000005},{"$f":"'Population 2016'!AO204*'Prevalence Rates'!AO204","v":58.266000000000005},{"$f":"'Population 2016'!AP204*'Prevalence Rates'!AP204","v":307.25593451015004},{"$f":"'Population 2016'!AQ204*'Prevalence Rates'!AQ204","v":192.06075463371582},{"$f":"'Population 2016'!AR204*'Prevalence Rates'!AR204","v":5749.3602000000001},{"$f":"'Population 2016'!AS204*'Prevalence Rates'!AS204","v":175.40232497793471},{"$f":"'Population 2016'!AT204*'Prevalence Rates'!AT204","v":79.182000000000002},{"$f":"'Population 2016'!AU204*'Prevalence Rates'!AU204","v":79.182000000000002},{"$f":"'Population 2016'!AV204*'Prevalence Rates'!AV204","v":70.337994704324799},{"$f":"'Population 2016'!AW204*'Prevalence Rates'!AW204","v":323.0821811120918},{"$f":"'Population 2016'!AX204*'Prevalence Rates'!AX204","v":142.07939999999999},{"$f":"'Population 2016'!AY204*'Prevalence Rates'!AY204","v":463.88427885827241},{"$f":"'Population 2016'!AZ204*'Prevalence Rates'!AZ204","v":655.40019638128865},{"$f":"'Population 2016'!BA204*'Prevalence Rates'!BA204","v":83.631034421888785},{"$f":"'Population 2016'!BB204*'Prevalence Rates'!BB204","v":132.69528667255076},{"$f":"'Population 2016'!BC204*'Prevalence Rates'!BC204","v":7.7688000000000006},202]
[null,"Male 60-64",{"$f":"'Population 2016'!C205*'Prevalence Rates'!C205","v":168.8125718446602},{"$f":"'Population 2016'!D205*'Prevalence Rates'!D205","v":241.7695042297689},{"$f":"'Population 2016'!E205*'Prevalence Rates'!E205","v":440.35656593115624},{"$f":"'Population 2016'!F205*'Prevalence Rates'!F205","v":177.3730072374228},{"$f":"'Population 2016'!G205*'Prevalence Rates'!G205","v":117.72720000000001},{"$f":"'Population 2016'!H205*'Prevalence Rates'!H205","v":291.0637040600177},{"$f":"'Population 2016'!I205*'Prevalence Rates'!I205","v":167.91966619594001},{"$f":"'Population 2016'!J205*'Prevalence Rates'!J205","v":152.08920000000001},{"$f":"'Population 2016'!K205*'Prevalence Rates'!K205","v":38.395800000000001},{"$f":"'Population 2016'!L205*'Prevalence Rates'!L205","v":161.44469920564873},{"$f":"'Population 2016'!M205*'Prevalence Rates'!M205","v":161.44469920564873},{"$f":"'Population 2016'!N205*'Prevalence Rates'!N205","v":105.85055931156222},{"$f":"'Population 2016'!O205*'Prevalence Rates'!O205","v":88.789751809355707},{"$f":"'Population 2016'!P205*'Prevalence Rates'!P205","v":88.543960458958523},{"$f":"'Population 2016'!Q205*'Prevalence Rates'!Q205","v":136.85547669902914},{"$f":"'Population 2016'!R205*'Prevalence Rates'!R205","v":37.456149161518098},{"$f":"'Population 2016'!S205*'Prevalence Rates'!S205","v":682.46700114267514},{"$f":"'Population 2016'!T205*'Prevalence Rates'!T205","v":257.96026390114741},{"$f":"'Population 2016'!U205*'Prevalence Rates'!U205","v":6.7229999999999999},{"$f":"'Population 2016'!V205*'Prevalence Rates'!V205","v":118.16438949691086},{"$f":"'Population 2016'!W205*'Prevalence Rates'!W205","v":334.18413071491619},{"$f":"'Population 2016'!X205*'Prevalence Rates'!X205","v":334.18413071491619},{"$f":"'Population 2016'!Y205*'Prevalence Rates'!Y205","v":238.18586187113857},{"$f":"'Population 2016'!Z205*'Prevalence Rates'!Z205","v":280.9177562224184},{"$f":"'Population 2016'!AA205*'Prevalence Rates'!AA205","v":409.36395416016632},{"$f":"'Population 2016'!AB205*'Prevalence Rates'!AB205","v":835.74069902912618},{"$f":"'Population 2016'!AC205*'Prevalence Rates'!AC205","v":737.26434174757276},{"$f":"'Population 2016'!AD205*'Prevalence Rates'!AD205","v":543.98939894086493},{"$f":"'Population 2016'!AE205*'Prevalence Rates'!AE205","v":427.57343777581644},{"$f":"'Population 2016'!AF205*'Prevalence Rates'!AF205","v":70.815600000000003},{"$f":"'Population 2016'!AG205*'Prevalence Rates'!AG205","v":164.65560957826472},{"$f":"'Population 2016'!AH205*'Prevalence Rates'!AH205","v":463.12312162400713},{"$f":"'Population 2016'!AI205*'Prevalence Rates'!AI205","v":552.49234236540167},{"$f":"'Population 2016'!AJ205*'Prevalence Rates'!AJ205","v":58.564800000000005},{"$f":"'Population 2016'!AK205*'Prevalence Rates'!AK205","v":204.48732709620478},{"$f":"'Population 2016'!AL205*'Prevalence Rates'!AL205","v":145.74042524271846},{"$f":"'Population 2016'!AM205*'Prevalence Rates'!AM205","v":190.93972718446602},{"$f":"'Population 2016'!AN205*'Prevalence Rates'!AN205","v":53.933399999999999},{"$f":"'Population 2016'!AO205*'Prevalence Rates'!AO205","v":53.933399999999999},{"$f":"'Population 2016'!AP205*'Prevalence Rates'!AP205","v":283.43764501323915},{"$f":"'Population 2016'!AQ205*'Prevalence Rates'!AQ205","v":157.0978580759047},{"$f":"'Population 2016'!AR205*'Prevalence Rates'!AR205","v":5052.7080000000005},{"$f":"'Population 2016'!AS205*'Prevalence Rates'!AS205","v":167.91966619594001},{"$f":"'Population 2016'!AT205*'Prevalence Rates'!AT205","v":72.459000000000003},{"$f":"'Population 2016'!AU205*'Prevalence Rates'!AU205","v":72.459000000000003},{"$f":"'Population 2016'!AV205*'Prevalence Rates'!AV205","v":61.604753751103267},{"$f":"'Population 2016'!AW205*'Prevalence Rates'!AW205","v":271.06764148278904},{"$f":"'Population 2016'!AX205*'Prevalence Rates'!AX205","v":113.6934},{"$f":"'Population 2016'!AY205*'Prevalence Rates'!AY205","v":412.43580917380831},{"$f":"'Population 2016'!AZ205*'Prevalence Rates'!AZ205","v":595.43304068843781},{"$f":"'Population 2016'!BA205*'Prevalence Rates'!BA205","v":68.143805825242723},{"$f":"'Population 2016'!BB205*'Prevalence Rates'!BB205","v":96.198040247131516},{"$f":"'Population 2016'!BC205*'Prevalence Rates'!BC205","v":6.7229999999999999},203]
[null,"Male 65-69",{"$f":"'Population 2016'!C206*'Prevalence Rates'!C206","v":117.79394174757283},{"$f":"'Population 2016'!D206*'Prevalence Rates'!D206","v":181.92694640954267},{"$f":"'Population 2016'!E206*'Prevalence Rates'!E206","v":339.20350026478383},{"$f":"'Population 2016'!F206*'Prevalence Rates'!F206","v":138.05564271844665},{"$f":"'Population 2016'!G206*'Prevalence Rates'!G206","v":93.05040000000001},{"$f":"'Population 2016'!H206*'Prevalence Rates'!H206","v":221.59794210061787},{"$f":"'Population 2016'!I206*'Prevalence Rates'!I206","v":134.90292780229481},{"$f":"'Population 2016'!J206*'Prevalence Rates'!J206","v":110.25680000000001},{"$f":"'Population 2016'!K206*'Prevalence Rates'!K206","v":29.998000000000001},{"$f":"'Population 2016'!L206*'Prevalence Rates'!L206","v":123.14486478375994},{"$f":"'Population 2016'!M206*'Prevalence Rates'!M206","v":123.14486478375994},{"$f":"'Population 2016'!N206*'Prevalence Rates'!N206","v":75.310721094439558},{"$f":"'Population 2016'!O206*'Prevalence Rates'!O206","v":61.976650308914387},{"$f":"'Population 2016'!P206*'Prevalence Rates'!P206","v":66.992019770520756},{"$f":"'Population 2016'!Q206*'Prevalence Rates'!Q206","v":101.41960670785527},{"$f":"'Population 2016'!R206*'Prevalence Rates'!R206","v":25.314037775816423},{"$f":"'Population 2016'!S206*'Prevalence Rates'!S206","v":514.1623844220095},{"$f":"'Population 2016'!T206*'Prevalence Rates'!T206","v":164.71649073256842},{"$f":"'Population 2016'!U206*'Prevalence Rates'!U206","v":5.8864000000000001},{"$f":"'Population 2016'!V206*'Prevalence Rates'!V206","v":93.962044660194181},{"$f":"'Population 2016'!W206*'Prevalence Rates'!W206","v":272.91700723742281},{"$f":"'Population 2016'!X206*'Prevalence Rates'!X206","v":272.91700723742281},{"$f":"'Population 2016'!Y206*'Prevalence Rates'!Y206","v":180.27949249779348},{"$f":"'Population 2016'!Z206*'Prevalence Rates'!Z206","v":184.03682330097087},{"$f":"'Population 2016'!AA206*'Prevalence Rates'!AA206","v":286.36923794307017},{"$f":"'Population 2016'!AB206*'Prevalence Rates'!AB206","v":622.08125825242723},{"$f":"'Population 2016'!AC206*'Prevalence Rates'!AC206","v":514.03550503089139},{"$f":"'Population 2016'!AD206*'Prevalence Rates'!AD206","v":414.93924589585174},{"$f":"'Population 2016'!AE206*'Prevalence Rates'!AE206","v":322.62499558693736},{"$f":"'Population 2016'!AF206*'Prevalence Rates'!AF206","v":45.619600000000005},{"$f":"'Population 2016'!AG206*'Prevalence Rates'!AG206","v":124.24068153037339},{"$f":"'Population 2016'!AH206*'Prevalence Rates'!AH206","v":325.50265348631956},{"$f":"'Population 2016'!AI206*'Prevalence Rates'!AI206","v":388.98597281553401},{"$f":"'Population 2016'!AJ206*'Prevalence Rates'!AJ206","v":48.676000000000002},{"$f":"'Population 2016'!AK206*'Prevalence Rates'!AK206","v":146.87485189761699},{"$f":"'Population 2016'!AL206*'Prevalence Rates'!AL206","v":120.50524660194178},{"$f":"'Population 2016'!AM206*'Prevalence Rates'!AM206","v":126.74058834951457},{"$f":"'Population 2016'!AN206*'Prevalence Rates'!AN206","v":39.846400000000003},{"$f":"'Population 2016'!AO206*'Prevalence Rates'!AO206","v":39.846400000000003},{"$f":"'Population 2016'!AP206*'Prevalence Rates'!AP206","v":216.76521129744043},{"$f":"'Population 2016'!AQ206*'Prevalence Rates'!AQ206","v":112.14253415710505},{"$f":"'Population 2016'!AR206*'Prevalence Rates'!AR206","v":3748.5048000000002},{"$f":"'Population 2016'!AS206*'Prevalence Rates'!AS206","v":134.90292780229481},{"$f":"'Population 2016'!AT206*'Prevalence Rates'!AT206","v":53.656800000000004},{"$f":"'Population 2016'!AU206*'Prevalence Rates'!AU206","v":53.656800000000004},{"$f":"'Population 2016'!AV206*'Prevalence Rates'!AV206","v":45.336450132391882},{"$f":"'Population 2016'!AW206*'Prevalence Rates'!AW206","v":197.80406142983233},{"$f":"'Population 2016'!AX206*'Prevalence Rates'!AX206","v":80.258800000000008},{"$f":"'Population 2016'!AY206*'Prevalence Rates'!AY206","v":321.55104340006017},{"$f":"'Population 2016'!AZ206*'Prevalence Rates'!AZ206","v":452.34754969108559},{"$f":"'Population 2016'!BA206*'Prevalence Rates'!BA206","v":55.152778464254197},{"$f":"'Population 2016'!BB206*'Prevalence Rates'!BB206","v":73.438425066195947},{"$f":"'Population 2016'!BC206*'Prevalence Rates'!BC206","v":5.8864000000000001},204]
[null,"Male 70-74",{"$f":"'Population 2016'!C207*'Prevalence Rates'!C207","v":84.888460194174769},{"$f":"'Population 2016'!D207*'Prevalence Rates'!D207","v":122.24553913233444},{"$f":"'Population 2016'!E207*'Prevalence Rates'!E207","v":223.054305560459},{"$f":"'Population 2016'!F207*'Prevalence Rates'!F207","v":113.21608578993825},{"$f":"'Population 2016'!G207*'Prevalence Rates'!G207","v":76.410000000000011},{"$f":"'Population 2016'!H207*'Prevalence Rates'!H207","v":183.09500529567524},{"$f":"'Population 2016'!I207*'Prevalence Rates'!I207","v":103.55342171226833},{"$f":"'Population 2016'!J207*'Prevalence Rates'!J207","v":90.899600000000007},{"$f":"'Population 2016'!K207*'Prevalence Rates'!K207","v":23.432400000000001},{"$f":"'Population 2016'!L207*'Prevalence Rates'!L207","v":96.597966107678744},{"$f":"'Population 2016'!M207*'Prevalence Rates'!M207","v":96.597966107678744},{"$f":"'Population 2016'!N207*'Prevalence Rates'!N207","v":52.781872903795239},{"$f":"'Population 2016'!O207*'Prevalence Rates'!O207","v":50.572025066195941},{"$f":"'Population 2016'!P207*'Prevalence Rates'!P207","v":46.709137511032665},{"$f":"'Population 2016'!Q207*'Prevalence Rates'!Q207","v":80.615584819064438},{"$f":"'Population 2016'!R207*'Prevalence Rates'!R207","v":18.072135216240074},{"$f":"'Population 2016'!S207*'Prevalence Rates'!S207","v":384.35175642570908},{"$f":"'Population 2016'!T207*'Prevalence Rates'!T207","v":115.90086407766991},{"$f":"'Population 2016'!U207*'Prevalence Rates'!U207","v":4.7544000000000004},{"$f":"'Population 2016'!V207*'Prevalence Rates'!V207","v":67.808748278905568},{"$f":"'Population 2016'!W207*'Prevalence Rates'!W207","v":204.74972568402472},{"$f":"'Population 2016'!X207*'Prevalence Rates'!X207","v":204.74972568402472},{"$f":"'Population 2016'!Y207*'Prevalence Rates'!Y207","v":139.77702206531333},{"$f":"'Population 2016'!Z207*'Prevalence Rates'!Z207","v":118.97329991173875},{"$f":"'Population 2016'!AA207*'Prevalence Rates'!AA207","v":196.68607974714595},{"$f":"'Population 2016'!AB207*'Prevalence Rates'!AB207","v":432.88119611650484},{"$f":"'Population 2016'!AC207*'Prevalence Rates'!AC207","v":359.86130132391878},{"$f":"'Population 2016'!AD207*'Prevalence Rates'!AD207","v":321.58391526919684},{"$f":"'Population 2016'!AE207*'Prevalence Rates'!AE207","v":245.39571932921447},{"$f":"'Population 2016'!AF207*'Prevalence Rates'!AF207","v":34.752400000000002},{"$f":"'Population 2016'!AG207*'Prevalence Rates'!AG207","v":94.500214896964593},{"$f":"'Population 2016'!AH207*'Prevalence Rates'!AH207","v":217.50625666372466},{"$f":"'Population 2016'!AI207*'Prevalence Rates'!AI207","v":286.91733945278025},{"$f":"'Population 2016'!AJ207*'Prevalence Rates'!AJ207","v":39.959600000000002},{"$f":"'Population 2016'!AK207*'Prevalence Rates'!AK207","v":114.00518870255961},{"$f":"'Population 2016'!AL207*'Prevalence Rates'!AL207","v":97.613568932038859},{"$f":"'Population 2016'!AM207*'Prevalence Rates'!AM207","v":86.717244660194183},{"$f":"'Population 2016'!AN207*'Prevalence Rates'!AN207","v":31.356400000000001},{"$f":"'Population 2016'!AO207*'Prevalence Rates'!AO207","v":31.356400000000001},{"$f":"'Population 2016'!AP207*'Prevalence Rates'!AP207","v":158.41305913503973},{"$f":"'Population 2016'!AQ207*'Prevalence Rates'!AQ207","v":85.532441306266563},{"$f":"'Population 2016'!AR207*'Prevalence Rates'!AR207","v":2757.5520000000001},{"$f":"'Population 2016'!AS207*'Prevalence Rates'!AS207","v":103.55342171226833},{"$f":"'Population 2016'!AT207*'Prevalence Rates'!AT207","v":34.752400000000002},{"$f":"'Population 2016'!AU207*'Prevalence Rates'!AU207","v":34.752400000000002},{"$f":"'Population 2016'!AV207*'Prevalence Rates'!AV207","v":39.166400706090023},{"$f":"'Population 2016'!AW207*'Prevalence Rates'!AW207","v":130.19608578993822},{"$f":"'Population 2016'!AX207*'Prevalence Rates'!AX207","v":67.467200000000005},{"$f":"'Population 2016'!AY207*'Prevalence Rates'!AY207","v":241.39085822605682},{"$f":"'Population 2016'!AZ207*'Prevalence Rates'!AZ207","v":339.70670573698146},{"$f":"'Population 2016'!BA207*'Prevalence Rates'!BA207","v":36.898903795233892},{"$f":"'Population 2016'!BB207*'Prevalence Rates'!BB207","v":51.278700794351288},{"$f":"'Population 2016'!BC207*'Prevalence Rates'!BC207","v":4.7544000000000004},205]
[null,"Male 75-79",{"$f":"'Population 2016'!C208*'Prevalence Rates'!C208","v":20.623440776699027},{"$f":"'Population 2016'!D208*'Prevalence Rates'!D208","v":31.530953988446456},{"$f":"'Population 2016'!E208*'Prevalence Rates'!E208","v":58.613083009708738},{"$f":"'Population 2016'!F208*'Prevalence Rates'!F208","v":32.009975242718454},{"$f":"'Population 2016'!G208*'Prevalence Rates'!G208","v":18.437100000000001},{"$f":"'Population 2016'!H208*'Prevalence Rates'!H208","v":43.350493203883495},{"$f":"'Population 2016'!I208*'Prevalence Rates'!I208","v":27.309215048543692},{"$f":"'Population 2016'!J208*'Prevalence Rates'!J208","v":21.448899999999998},{"$f":"'Population 2016'!K208*'Prevalence Rates'!K208","v":5.2096},{"$f":"'Population 2016'!L208*'Prevalence Rates'!L208","v":25.606676213592237},{"$f":"'Population 2016'!M208*'Prevalence Rates'!M208","v":25.606676213592237},{"$f":"'Population 2016'!N208*'Prevalence Rates'!N208","v":14.672637378640777},{"$f":"'Population 2016'!O208*'Prevalence Rates'!O208","v":10.478866990291262},{"$f":"'Population 2016'!P208*'Prevalence Rates'!P208","v":13.077452427184467},{"$f":"'Population 2016'!Q208*'Prevalence Rates'!Q208","v":19.128263592233012},{"$f":"'Population 2016'!R208*'Prevalence Rates'!R208","v":4.8556572815533983},{"$f":"'Population 2016'!S208*'Prevalence Rates'!S208","v":98.439399491184474},{"$f":"'Population 2016'!T208*'Prevalence Rates'!T208","v":33.121376213592235},{"$f":"'Population 2016'!U208*'Prevalence Rates'!U208","v":0.89539999999999997},{"$f":"'Population 2016'!V208*'Prevalence Rates'!V208","v":18.010109223300972},{"$f":"'Population 2016'!W208*'Prevalence Rates'!W208","v":50.889404854368934},{"$f":"'Population 2016'!X208*'Prevalence Rates'!X208","v":50.889404854368934},{"$f":"'Population 2016'!Y208*'Prevalence Rates'!Y208","v":34.824364077669905},{"$f":"'Population 2016'!Z208*'Prevalence Rates'!Z208","v":33.370802912621357},{"$f":"'Population 2016'!AA208*'Prevalence Rates'!AA208","v":49.376534884130336},{"$f":"'Population 2016'!AB208*'Prevalence Rates'!AB208","v":111.98111067961165},{"$f":"'Population 2016'!AC208*'Prevalence Rates'!AC208","v":95.356831067961167},{"$f":"'Population 2016'!AD208*'Prevalence Rates'!AD208","v":76.362611650485434},{"$f":"'Population 2016'!AE208*'Prevalence Rates'!AE208","v":57.954393203883491},{"$f":"'Population 2016'!AF208*'Prevalence Rates'!AF208","v":8.9946999999999999},{"$f":"'Population 2016'!AG208*'Prevalence Rates'!AG208","v":22.317840861122839},{"$f":"'Population 2016'!AH208*'Prevalence Rates'!AH208","v":50.13966990291263},{"$f":"'Population 2016'!AI208*'Prevalence Rates'!AI208","v":73.792961650485438},{"$f":"'Population 2016'!AJ208*'Prevalence Rates'!AJ208","v":8.4248999999999992},{"$f":"'Population 2016'!AK208*'Prevalence Rates'!AK208","v":29.742647572815539},{"$f":"'Population 2016'!AL208*'Prevalence Rates'!AL208","v":23.863239805825245},{"$f":"'Population 2016'!AM208*'Prevalence Rates'!AM208","v":19.894397087378639},{"$f":"'Population 2016'!AN208*'Prevalence Rates'!AN208","v":9.1167999999999996},{"$f":"'Population 2016'!AO208*'Prevalence Rates'!AO208","v":9.1167999999999996},{"$f":"'Population 2016'!AP208*'Prevalence Rates'!AP208","v":43.834438834951456},{"$f":"'Population 2016'!AQ208*'Prevalence Rates'!AQ208","v":21.099555339805825},{"$f":"'Population 2016'!AR208*'Prevalence Rates'!AR208","v":703.49950000000001},{"$f":"'Population 2016'!AS208*'Prevalence Rates'!AS208","v":27.309215048543692},{"$f":"'Population 2016'!AT208*'Prevalence Rates'!AT208","v":9.2388999999999992},{"$f":"'Population 2016'!AU208*'Prevalence Rates'!AU208","v":9.2388999999999992},{"$f":"'Population 2016'!AV208*'Prevalence Rates'!AV208","v":9.966650485436892},{"$f":"'Population 2016'!AW208*'Prevalence Rates'!AW208","v":30.106361165048547},{"$f":"'Population 2016'!AX208*'Prevalence Rates'!AX208","v":16.2393},{"$f":"'Population 2016'!AY208*'Prevalence Rates'!AY208","v":64.611057006645666},{"$f":"'Population 2016'!AZ208*'Prevalence Rates'!AZ208","v":94.682892233009696},{"$f":"'Population 2016'!BA208*'Prevalence Rates'!BA208","v":8.8600631067961171},{"$f":"'Population 2016'!BB208*'Prevalence Rates'!BB208","v":12.905743689320389},{"$f":"'Population 2016'!BC208*'Prevalence Rates'!BC208","v":0.89539999999999997},206]
[null,"Male 80-84",{"$f":"'Population 2016'!C209*'Prevalence Rates'!C209","v":14.040512135922329},{"$f":"'Population 2016'!D209*'Prevalence Rates'!D209","v":20.59957548705901},{"$f":"'Population 2016'!E209*'Prevalence Rates'!E209","v":37.811108252427189},{"$f":"'Population 2016'!F209*'Prevalence Rates'!F209","v":19.224786893203888},{"$f":"'Population 2016'!G209*'Prevalence Rates'!G209","v":12.494899999999999},{"$f":"'Population 2016'!H209*'Prevalence Rates'!H209","v":29.718795145631066},{"$f":"'Population 2016'!I209*'Prevalence Rates'!I209","v":17.806447572815536},{"$f":"'Population 2016'!J209*'Prevalence Rates'!J209","v":14.7334},{"$f":"'Population 2016'!K209*'Prevalence Rates'!K209","v":3.7444000000000002},{"$f":"'Population 2016'!L209*'Prevalence Rates'!L209","v":19.173471844660195},{"$f":"'Population 2016'!M209*'Prevalence Rates'!M209","v":19.173471844660195},{"$f":"'Population 2016'!N209*'Prevalence Rates'!N209","v":12.867486407766991},{"$f":"'Population 2016'!O209*'Prevalence Rates'!O209","v":6.4612776699029135},{"$f":"'Population 2016'!P209*'Prevalence Rates'!P209","v":9.4662524271844664},{"$f":"'Population 2016'!Q209*'Prevalence Rates'!Q209","v":12.739189805825243},{"$f":"'Population 2016'!R209*'Prevalence Rates'!R209","v":3.6827932038834956},{"$f":"'Population 2016'!S209*'Prevalence Rates'!S209","v":65.36991372461469},{"$f":"'Population 2016'!T209*'Prevalence Rates'!T209","v":24.189378640776699},{"$f":"'Population 2016'!U209*'Prevalence Rates'!U209","v":0.85470000000000002},{"$f":"'Population 2016'!V209*'Prevalence Rates'!V209","v":12.929362621359223},{"$f":"'Population 2016'!W209*'Prevalence Rates'!W209","v":32.084388349514562},{"$f":"'Population 2016'!X209*'Prevalence Rates'!X209","v":32.084388349514562},{"$f":"'Population 2016'!Y209*'Prevalence Rates'!Y209","v":24.432662621359224},{"$f":"'Population 2016'!Z209*'Prevalence Rates'!Z209","v":23.918129126213593},{"$f":"'Population 2016'!AA209*'Prevalence Rates'!AA209","v":33.566944676484809},{"$f":"'Population 2016'!AB209*'Prevalence Rates'!AB209","v":73.359576699029134},{"$f":"'Population 2016'!AC209*'Prevalence Rates'!AC209","v":66.527005825242711},{"$f":"'Population 2016'!AD209*'Prevalence Rates'!AD209","v":53.065543689320386},{"$f":"'Population 2016'!AE209*'Prevalence Rates'!AE209","v":40.616480582524268},{"$f":"'Population 2016'!AF209*'Prevalence Rates'!AF209","v":5.4131},{"$f":"'Population 2016'!AG209*'Prevalence Rates'!AG209","v":15.641129168425497},{"$f":"'Population 2016'!AH209*'Prevalence Rates'!AH209","v":32.571351456310687},{"$f":"'Population 2016'!AI209*'Prevalence Rates'!AI209","v":50.784583495145633},{"$f":"'Population 2016'!AJ209*'Prevalence Rates'!AJ209","v":6.4306000000000001},{"$f":"'Population 2016'!AK209*'Prevalence Rates'!AK209","v":19.638055339805828},{"$f":"'Population 2016'!AL209*'Prevalence Rates'!AL209","v":15.995100000000001},{"$f":"'Population 2016'!AM209*'Prevalence Rates'!AM209","v":11.873731067961165},{"$f":"'Population 2016'!AN209*'Prevalence Rates'!AN209","v":5.1281999999999996},{"$f":"'Population 2016'!AO209*'Prevalence Rates'!AO209","v":5.1281999999999996},{"$f":"'Population 2016'!AP209*'Prevalence Rates'!AP209","v":30.821089805825242},{"$f":"'Population 2016'!AQ209*'Prevalence Rates'!AQ209","v":13.112476699029127},{"$f":"'Population 2016'!AR209*'Prevalence Rates'!AR209","v":476.71910000000003},{"$f":"'Population 2016'!AS209*'Prevalence Rates'!AS209","v":17.806447572815536},{"$f":"'Population 2016'!AT209*'Prevalence Rates'!AT209","v":5.4131},{"$f":"'Population 2016'!AU209*'Prevalence Rates'!AU209","v":5.4131},{"$f":"'Population 2016'!AV209*'Prevalence Rates'!AV209","v":7.6196650485436885},{"$f":"'Population 2016'!AW209*'Prevalence Rates'!AW209","v":20.582920388349518},{"$f":"'Population 2016'!AX209*'Prevalence Rates'!AX209","v":10.989000000000001},{"$f":"'Population 2016'!AY209*'Prevalence Rates'!AY209","v":43.548930556922677},{"$f":"'Population 2016'!AZ209*'Prevalence Rates'!AZ209","v":65.944453398058243},{"$f":"'Population 2016'!BA209*'Prevalence Rates'!BA209","v":7.2661893203883494},{"$f":"'Population 2016'!BB209*'Prevalence Rates'!BB209","v":7.4076334951456309},{"$f":"'Population 2016'!BC209*'Prevalence Rates'!BC209","v":0.85470000000000002},207]
[null,"Male 85-89",{"$f":"'Population 2016'!C210*'Prevalence Rates'!C210","v":6.4908597087378634},{"$f":"'Population 2016'!D210*'Prevalence Rates'!D210","v":11.077130214739277},{"$f":"'Population 2016'!E210*'Prevalence Rates'!E210","v":21.232090776699032},{"$f":"'Population 2016'!F210*'Prevalence Rates'!F210","v":11.751092233009711},{"$f":"'Population 2016'!G210*'Prevalence Rates'!G210","v":5.6980000000000004},{"$f":"'Population 2016'!H210*'Prevalence Rates'!H210","v":13.716366990291261},{"$f":"'Population 2016'!I210*'Prevalence Rates'!I210","v":10.312151456310682},{"$f":"'Population 2016'!J210*'Prevalence Rates'!J210","v":8.14},{"$f":"'Population 2016'!K210*'Prevalence Rates'!K210","v":1.7094},{"$f":"'Population 2016'!L210*'Prevalence Rates'!L210","v":9.628783009708739},{"$f":"'Population 2016'!M210*'Prevalence Rates'!M210","v":9.628783009708739},{"$f":"'Population 2016'!N210*'Prevalence Rates'!N210","v":7.0354601941747577},{"$f":"'Population 2016'!O210*'Prevalence Rates'!O210","v":2.6093621359223302},{"$f":"'Population 2016'!P210*'Prevalence Rates'!P210","v":5.048667961165048},{"$f":"'Population 2016'!Q210*'Prevalence Rates'!Q210","v":7.6746800970873785},{"$f":"'Population 2016'!R210*'Prevalence Rates'!R210","v":1.7827533980582526},{"$f":"'Population 2016'!S210*'Prevalence Rates'!S210","v":36.289915339767717},{"$f":"'Population 2016'!T210*'Prevalence Rates'!T210","v":14.909832524271845},{"$f":"'Population 2016'!U210*'Prevalence Rates'!U210","v":0.4884},{"$f":"'Population 2016'!V210*'Prevalence Rates'!V210","v":6.4836393203883498},{"$f":"'Population 2016'!W210*'Prevalence Rates'!W210","v":16.042194174757281},{"$f":"'Population 2016'!X210*'Prevalence Rates'!X210","v":16.042194174757281},{"$f":"'Population 2016'!Y210*'Prevalence Rates'!Y210","v":12.894050970873787},{"$f":"'Population 2016'!Z210*'Prevalence Rates'!Z210","v":12.221638834951456},{"$f":"'Population 2016'!AA210*'Prevalence Rates'!AA210","v":17.117577886695344},{"$f":"'Population 2016'!AB210*'Prevalence Rates'!AB210","v":38.322803883495148},{"$f":"'Population 2016'!AC210*'Prevalence Rates'!AC210","v":34.595790291262134},{"$f":"'Population 2016'!AD210*'Prevalence Rates'!AD210","v":27.568197087378639},{"$f":"'Population 2016'!AE210*'Prevalence Rates'!AE210","v":21.958422330097086},{"$f":"'Population 2016'!AF210*'Prevalence Rates'!AF210","v":3.1339000000000001},{"$f":"'Population 2016'!AG210*'Prevalence Rates'!AG210","v":8.4560384128324184},{"$f":"'Population 2016'!AH210*'Prevalence Rates'!AH210","v":16.013600000000004},{"$f":"'Population 2016'!AI210*'Prevalence Rates'!AI210","v":29.11264174757282},{"$f":"'Population 2016'!AJ210*'Prevalence Rates'!AJ210","v":2.8490000000000002},{"$f":"'Population 2016'!AK210*'Prevalence Rates'!AK210","v":9.4016640776699045},{"$f":"'Population 2016'!AL210*'Prevalence Rates'!AL210","v":7.9199038834951461},{"$f":"'Population 2016'!AM210*'Prevalence Rates'!AM210","v":5.0718917475728151},{"$f":"'Population 2016'!AN210*'Prevalence Rates'!AN210","v":2.7675999999999998},{"$f":"'Population 2016'!AO210*'Prevalence Rates'!AO210","v":2.7675999999999998},{"$f":"'Population 2016'!AP210*'Prevalence Rates'!AP210","v":16.798395145631069},{"$f":"'Population 2016'!AQ210*'Prevalence Rates'!AQ210","v":7.6880970873786412},{"$f":"'Population 2016'!AR210*'Prevalence Rates'!AR210","v":251.68879999999999},{"$f":"'Population 2016'!AS210*'Prevalence Rates'!AS210","v":10.312151456310682},{"$f":"'Population 2016'!AT210*'Prevalence Rates'!AT210","v":2.4826999999999999},{"$f":"'Population 2016'!AU210*'Prevalence Rates'!AU210","v":2.4826999999999999},{"$f":"'Population 2016'!AV210*'Prevalence Rates'!AV210","v":3.4722524271844657},{"$f":"'Population 2016'!AW210*'Prevalence Rates'!AW210","v":10.867474757281554},{"$f":"'Population 2016'!AX210*'Prevalence Rates'!AX210","v":6.4306000000000001},{"$f":"'Population 2016'!AY210*'Prevalence Rates'!AY210","v":23.641948153802407},{"$f":"'Population 2016'!AZ210*'Prevalence Rates'!AZ210","v":37.120483495145628},{"$f":"'Population 2016'!BA210*'Prevalence Rates'!BA210","v":2.7658398058252427},{"$f":"'Population 2016'!BB210*'Prevalence Rates'!BB210","v":3.621509708737864},{"$f":"'Population 2016'!BC210*'Prevalence Rates'!BC210","v":0.4884},208]
[null,"Male 90+",{"$f":"'Population 2016'!C211*'Prevalence Rates'!C211","v":1.8874131067961164},{"$f":"'Population 2016'!D211*'Prevalence Rates'!D211","v":4.3725514005549782},{"$f":"'Population 2016'!E211*'Prevalence Rates'!E211","v":8.9542334951456315},{"$f":"'Population 2016'!F211*'Prevalence Rates'!F211","v":4.4654150485436901},{"$f":"'Population 2016'!G211*'Prevalence Rates'!G211","v":2.8490000000000002},{"$f":"'Population 2016'!H211*'Prevalence Rates'!H211","v":5.9268252427184462},{"$f":"'Population 2016'!I211*'Prevalence Rates'!I211","v":3.6871936893203889},{"$f":"'Population 2016'!J211*'Prevalence Rates'!J211","v":3.0931999999999999},{"$f":"'Population 2016'!K211*'Prevalence Rates'!K211","v":0.6512},{"$f":"'Population 2016'!L211*'Prevalence Rates'!L211","v":3.6160495145631071},{"$f":"'Population 2016'!M211*'Prevalence Rates'!M211","v":3.6160495145631071},{"$f":"'Population 2016'!N211*'Prevalence Rates'!N211","v":3.8417315533980583},{"$f":"'Population 2016'!O211*'Prevalence Rates'!O211","v":1.3668087378640779},{"$f":"'Population 2016'!P211*'Prevalence Rates'!P211","v":2.1737320388349515},{"$f":"'Population 2016'!Q211*'Prevalence Rates'!Q211","v":2.4153815533980585},{"$f":"'Population 2016'!R211*'Prevalence Rates'!R211","v":1.1494067961165049},{"$f":"'Population 2016'!S211*'Prevalence Rates'!S211","v":14.323701683775866},{"$f":"'Population 2016'!T211*'Prevalence Rates'!T211","v":7.33327427184466},{"$f":"'Population 2016'!U211*'Prevalence Rates'!U211","v":8.14E-2},{"$f":"'Population 2016'!V211*'Prevalence Rates'!V211","v":2.6541213592233013},{"$f":"'Population 2016'!W211*'Prevalence Rates'!W211","v":7.085302427184466},{"$f":"'Population 2016'!X211*'Prevalence Rates'!X211","v":7.085302427184466},{"$f":"'Population 2016'!Y211*'Prevalence Rates'!Y211","v":5.0742087378640779},{"$f":"'Population 2016'!Z211*'Prevalence Rates'!Z211","v":4.9650407766990288},{"$f":"'Population 2016'!AA211*'Prevalence Rates'!AA211","v":7.0801941757261471},{"$f":"'Population 2016'!AB211*'Prevalence Rates'!AB211","v":15.704667961165049},{"$f":"'Population 2016'!AC211*'Prevalence Rates'!AC211","v":15.070135922330097},{"$f":"'Population 2016'!AD211*'Prevalence Rates'!AD211","v":11.993675728155338},{"$f":"'Population 2016'!AE211*'Prevalence Rates'!AE211","v":9.1530097087378621},{"$f":"'Population 2016'!AF211*'Prevalence Rates'!AF211","v":1.1802999999999999},{"$f":"'Population 2016'!AG211*'Prevalence Rates'!AG211","v":3.524761502743774},{"$f":"'Population 2016'!AH211*'Prevalence Rates'!AH211","v":5.946798058252428},{"$f":"'Population 2016'!AI211*'Prevalence Rates'!AI211","v":11.341649514563107},{"$f":"'Population 2016'!AJ211*'Prevalence Rates'!AJ211","v":0.73260000000000003},{"$f":"'Population 2016'!AK211*'Prevalence Rates'!AK211","v":4.3054349514563111},{"$f":"'Population 2016'!AL211*'Prevalence Rates'!AL211","v":2.588203883495146},{"$f":"'Population 2016'!AM211*'Prevalence Rates'!AM211","v":2.1231174757281552},{"$f":"'Population 2016'!AN211*'Prevalence Rates'!AN211","v":1.3431},{"$f":"'Population 2016'!AO211*'Prevalence Rates'!AO211","v":1.3431},{"$f":"'Population 2016'!AP211*'Prevalence Rates'!AP211","v":6.9933233009708733},{"$f":"'Population 2016'!AQ211*'Prevalence Rates'!AQ211","v":3.2460854368932042},{"$f":"'Population 2016'!AR211*'Prevalence Rates'!AR211","v":103.5408},{"$f":"'Population 2016'!AS211*'Prevalence Rates'!AS211","v":3.6871936893203889},{"$f":"'Population 2016'!AT211*'Prevalence Rates'!AT211","v":1.0175000000000001},{"$f":"'Population 2016'!AU211*'Prevalence Rates'!AU211","v":1.0175000000000001},{"$f":"'Population 2016'!AV211*'Prevalence Rates'!AV211","v":1.8325776699029126},{"$f":"'Population 2016'!AW211*'Prevalence Rates'!AW211","v":3.8016961165048548},{"$f":"'Population 2016'!AX211*'Prevalence Rates'!AX211","v":2.4420000000000002},{"$f":"'Population 2016'!AY211*'Prevalence Rates'!AY211","v":10.223024812434103},{"$f":"'Population 2016'!AZ211*'Prevalence Rates'!AZ211","v":15.908778640776697},{"$f":"'Population 2016'!BA211*'Prevalence Rates'!BA211","v":1.1719660194174757},{"$f":"'Population 2016'!BB211*'Prevalence Rates'!BB211","v":0.75722475728155336},{"$f":"'Population 2016'!BC211*'Prevalence Rates'!BC211","v":8.14E-2},209]
["SIMD Q5 (least deprived)","Female 0-4",{"$f":"'Population 2016'!C212*'Prevalence Rates'!C212","v":0},{"$f":"'Population 2016'!D212*'Prevalence Rates'!D212","v":0},{"$f":"'Population 2016'!E212*'Prevalence Rates'!E212","v":0},{"$f":"'Population 2016'!F212*'Prevalence Rates'!F212","v":0},{"$f":"'Population 2016'!G212*'Prevalence Rates'!G212","v":0},{"$f":"'Population 2016'!H212*'Prevalence Rates'!H212","v":0},{"$f":"'Population 2016'!I212*'Prevalence Rates'!I212","v":0},{"$f":"'Population 2016'!J212*'Prevalence Rates'!J212","v":0},{"$f":"'Population 2016'!K212*'Prevalence Rates'!K212","v":0},{"$f":"'Population 2016'!L212*'Prevalence Rates'!L212","v":0},{"$f":"'Population 2016'!M212*'Prevalence Rates'!M212","v":0},{"$f":"'Population 2016'!N212*'Prevalence Rates'!N212","v":0},{"$f":"'Population 2016'!O212*'Prevalence Rates'!O212","v":0},{"$f":"'Population 2016'!P212*'Prevalence Rates'!P212","v":0},{"$f":"'Population 2016'!Q212*'Prevalence Rates'!Q212","v":0},{"$f":"'Population 2016'!R212*'Prevalence Rates'!R212","v":0},{"$f":"'Population 2016'!S212*'Prevalence Rates'!S212","v":0},{"$f":"'Population 2016'!T212*'Prevalence Rates'!T212","v":0},{"$f":"'Population 2016'!U212*'Prevalence Rates'!U212","v":0},{"$f":"'Population 2016'!V212*'Prevalence Rates'!V212","v":0},{"$f":"'Population 2016'!W212*'Prevalence Rates'!W212","v":0},{"$f":"'Population 2016'!X212*'Prevalence Rates'!X212","v":0},{"$f":"'Population 2016'!Y212*'Prevalence Rates'!Y212","v":0},{"$f":"'Population 2016'!Z212*'Prevalence Rates'!Z212","v":0},{"$f":"'Population 2016'!AA212*'Prevalence Rates'!AA212","v":0},{"$f":"'Population 2016'!AB212*'Prevalence Rates'!AB212","v":0},{"$f":"'Population 2016'!AC212*'Prevalence Rates'!AC212","v":0},{"$f":"'Population 2016'!AD212*'Prevalence Rates'!AD212","v":0},{"$f":"'Population 2016'!AE212*'Prevalence Rates'!AE212","v":0},{"$f":"'Population 2016'!AF212*'Prevalence Rates'!AF212","v":0},{"$f":"'Population 2016'!AG212*'Prevalence Rates'!AG212","v":0},{"$f":"'Population 2016'!AH212*'Prevalence Rates'!AH212","v":0},{"$f":"'Population 2016'!AI212*'Prevalence Rates'!AI212","v":0},{"$f":"'Population 2016'!AJ212*'Prevalence Rates'!AJ212","v":0},{"$f":"'Population 2016'!AK212*'Prevalence Rates'!AK212","v":0},{"$f":"'Population 2016'!AL212*'Prevalence Rates'!AL212","v":0},{"$f":"'Population 2016'!AM212*'Prevalence Rates'!AM212","v":0},{"$f":"'Population 2016'!AN212*'Prevalence Rates'!AN212","v":0},{"$f":"'Population 2016'!AO212*'Prevalence Rates'!AO212","v":0},{"$f":"'Population 2016'!AP212*'Prevalence Rates'!AP212","v":0},{"$f":"'Population 2016'!AQ212*'Prevalence Rates'!AQ212","v":0},{"$f":"'Population 2016'!AR212*'Prevalence Rates'!AR212","v":0},{"$f":"'Population 2016'!AS212*'Prevalence Rates'!AS212","v":0},{"$f":"'Population 2016'!AT212*'Prevalence Rates'!AT212","v":0},{"$f":"'Population 2016'!AU212*'Prevalence Rates'!AU212","v":0},{"$f":"'Population 2016'!AV212*'Prevalence Rates'!AV212","v":0},{"$f":"'Population 2016'!AW212*'Prevalence Rates'!AW212","v":0},{"$f":"'Population 2016'!AX212*'Prevalence Rates'!AX212","v":0},{"$f":"'Population 2016'!AY212*'Prevalence Rates'!AY212","v":0},{"$f":"'Population 2016'!AZ212*'Prevalence Rates'!AZ212","v":0},{"$f":"'Population 2016'!BA212*'Prevalence Rates'!BA212","v":0},{"$f":"'Population 2016'!BB212*'Prevalence Rates'!BB212","v":0},{"$f":"'Population 2016'!BC212*'Prevalence Rates'!BC212","v":0},210]
[null,"Female 5-9",{"$f":"'Population 2016'!C213*'Prevalence Rates'!C213","v":0},{"$f":"'Population 2016'!D213*'Prevalence Rates'!D213","v":0},{"$f":"'Population 2016'!E213*'Prevalence Rates'!E213","v":0},{"$f":"'Population 2016'!F213*'Prevalence Rates'!F213","v":0},{"$f":"'Population 2016'!G213*'Prevalence Rates'!G213","v":0},{"$f":"'Population 2016'!H213*'Prevalence Rates'!H213","v":0},{"$f":"'Population 2016'!I213*'Prevalence Rates'!I213","v":0},{"$f":"'Population 2016'!J213*'Prevalence Rates'!J213","v":0},{"$f":"'Population 2016'!K213*'Prevalence Rates'!K213","v":0},{"$f":"'Population 2016'!L213*'Prevalence Rates'!L213","v":0},{"$f":"'Population 2016'!M213*'Prevalence Rates'!M213","v":0},{"$f":"'Population 2016'!N213*'Prevalence Rates'!N213","v":0},{"$f":"'Population 2016'!O213*'Prevalence Rates'!O213","v":0},{"$f":"'Population 2016'!P213*'Prevalence Rates'!P213","v":0},{"$f":"'Population 2016'!Q213*'Prevalence Rates'!Q213","v":0},{"$f":"'Population 2016'!R213*'Prevalence Rates'!R213","v":0},{"$f":"'Population 2016'!S213*'Prevalence Rates'!S213","v":0},{"$f":"'Population 2016'!T213*'Prevalence Rates'!T213","v":0},{"$f":"'Population 2016'!U213*'Prevalence Rates'!U213","v":0},{"$f":"'Population 2016'!V213*'Prevalence Rates'!V213","v":0},{"$f":"'Population 2016'!W213*'Prevalence Rates'!W213","v":0},{"$f":"'Population 2016'!X213*'Prevalence Rates'!X213","v":0},{"$f":"'Population 2016'!Y213*'Prevalence Rates'!Y213","v":0},{"$f":"'Population 2016'!Z213*'Prevalence Rates'!Z213","v":0},{"$f":"'Population 2016'!AA213*'Prevalence Rates'!AA213","v":0},{"$f":"'Population 2016'!AB213*'Prevalence Rates'!AB213","v":0},{"$f":"'Population 2016'!AC213*'Prevalence Rates'!AC213","v":0},{"$f":"'Population 2016'!AD213*'Prevalence Rates'!AD213","v":0},{"$f":"'Population 2016'!AE213*'Prevalence Rates'!AE213","v":0},{"$f":"'Population 2016'!AF213*'Prevalence Rates'!AF213","v":0},{"$f":"'Population 2016'!AG213*'Prevalence Rates'!AG213","v":0},{"$f":"'Population 2016'!AH213*'Prevalence Rates'!AH213","v":0},{"$f":"'Population 2016'!AI213*'Prevalence Rates'!AI213","v":0},{"$f":"'Population 2016'!AJ213*'Prevalence Rates'!AJ213","v":0},{"$f":"'Population 2016'!AK213*'Prevalence Rates'!AK213","v":0},{"$f":"'Population 2016'!AL213*'Prevalence Rates'!AL213","v":0},{"$f":"'Population 2016'!AM213*'Prevalence Rates'!AM213","v":0},{"$f":"'Population 2016'!AN213*'Prevalence Rates'!AN213","v":0},{"$f":"'Population 2016'!AO213*'Prevalence Rates'!AO213","v":0},{"$f":"'Population 2016'!AP213*'Prevalence Rates'!AP213","v":0},{"$f":"'Population 2016'!AQ213*'Prevalence Rates'!AQ213","v":0},{"$f":"'Population 2016'!AR213*'Prevalence Rates'!AR213","v":0},{"$f":"'Population 2016'!AS213*'Prevalence Rates'!AS213","v":0},{"$f":"'Population 2016'!AT213*'Prevalence Rates'!AT213","v":0},{"$f":"'Population 2016'!AU213*'Prevalence Rates'!AU213","v":0},{"$f":"'Population 2016'!AV213*'Prevalence Rates'!AV213","v":0},{"$f":"'Population 2016'!AW213*'Prevalence Rates'!AW213","v":0},{"$f":"'Population 2016'!AX213*'Prevalence Rates'!AX213","v":0},{"$f":"'Population 2016'!AY213*'Prevalence Rates'!AY213","v":0},{"$f":"'Population 2016'!AZ213*'Prevalence Rates'!AZ213","v":0},{"$f":"'Population 2016'!BA213*'Prevalence Rates'!BA213","v":0},{"$f":"'Population 2016'!BB213*'Prevalence Rates'!BB213","v":0},{"$f":"'Population 2016'!BC213*'Prevalence Rates'!BC213","v":0},211]
[null,"Female 10-15",{"$f":"'Population 2016'!C214*'Prevalence Rates'!C214","v":0},{"$f":"'Population 2016'!D214*'Prevalence Rates'!D214","v":0},{"$f":"'Population 2016'!E214*'Prevalence Rates'!E214","v":0},{"$f":"'Population 2016'!F214*'Prevalence Rates'!F214","v":0},{"$f":"'Population 2016'!G214*'Prevalence Rates'!G214","v":0},{"$f":"'Population 2016'!H214*'Prevalence Rates'!H214","v":0},{"$f":"'Population 2016'!I214*'Prevalence Rates'!I214","v":0},{"$f":"'Population 2016'!J214*'Prevalence Rates'!J214","v":0},{"$f":"'Population 2016'!K214*'Prevalence Rates'!K214","v":0},{"$f":"'Population 2016'!L214*'Prevalence Rates'!L214","v":0},{"$f":"'Population 2016'!M214*'Prevalence Rates'!M214","v":0},{"$f":"'Population 2016'!N214*'Prevalence Rates'!N214","v":0},{"$f":"'Population 2016'!O214*'Prevalence Rates'!O214","v":0},{"$f":"'Population 2016'!P214*'Prevalence Rates'!P214","v":0},{"$f":"'Population 2016'!Q214*'Prevalence Rates'!Q214","v":0},{"$f":"'Population 2016'!R214*'Prevalence Rates'!R214","v":0},{"$f":"'Population 2016'!S214*'Prevalence Rates'!S214","v":0},{"$f":"'Population 2016'!T214*'Prevalence Rates'!T214","v":0},{"$f":"'Population 2016'!U214*'Prevalence Rates'!U214","v":0},{"$f":"'Population 2016'!V214*'Prevalence Rates'!V214","v":0},{"$f":"'Population 2016'!W214*'Prevalence Rates'!W214","v":0},{"$f":"'Population 2016'!X214*'Prevalence Rates'!X214","v":0},{"$f":"'Population 2016'!Y214*'Prevalence Rates'!Y214","v":0},{"$f":"'Population 2016'!Z214*'Prevalence Rates'!Z214","v":0},{"$f":"'Population 2016'!AA214*'Prevalence Rates'!AA214","v":0},{"$f":"'Population 2016'!AB214*'Prevalence Rates'!AB214","v":0},{"$f":"'Population 2016'!AC214*'Prevalence Rates'!AC214","v":0},{"$f":"'Population 2016'!AD214*'Prevalence Rates'!AD214","v":0},{"$f":"'Population 2016'!AE214*'Prevalence Rates'!AE214","v":0},{"$f":"'Population 2016'!AF214*'Prevalence Rates'!AF214","v":0},{"$f":"'Population 2016'!AG214*'Prevalence Rates'!AG214","v":0},{"$f":"'Population 2016'!AH214*'Prevalence Rates'!AH214","v":0},{"$f":"'Population 2016'!AI214*'Prevalence Rates'!AI214","v":0},{"$f":"'Population 2016'!AJ214*'Prevalence Rates'!AJ214","v":0},{"$f":"'Population 2016'!AK214*'Prevalence Rates'!AK214","v":0},{"$f":"'Population 2016'!AL214*'Prevalence Rates'!AL214","v":0},{"$f":"'Population 2016'!AM214*'Prevalence Rates'!AM214","v":0},{"$f":"'Population 2016'!AN214*'Prevalence Rates'!AN214","v":0},{"$f":"'Population 2016'!AO214*'Prevalence Rates'!AO214","v":0},{"$f":"'Population 2016'!AP214*'Prevalence Rates'!AP214","v":0},{"$f":"'Population 2016'!AQ214*'Prevalence Rates'!AQ214","v":0},{"$f":"'Population 2016'!AR214*'Prevalence Rates'!AR214","v":0},{"$f":"'Population 2016'!AS214*'Prevalence Rates'!AS214","v":0},{"$f":"'Population 2016'!AT214*'Prevalence Rates'!AT214","v":0},{"$f":"'Population 2016'!AU214*'Prevalence Rates'!AU214","v":0},{"$f":"'Population 2016'!AV214*'Prevalence Rates'!AV214","v":0},{"$f":"'Population 2016'!AW214*'Prevalence Rates'!AW214","v":0},{"$f":"'Population 2016'!AX214*'Prevalence Rates'!AX214","v":0},{"$f":"'Population 2016'!AY214*'Prevalence Rates'!AY214","v":0},{"$f":"'Population 2016'!AZ214*'Prevalence Rates'!AZ214","v":0},{"$f":"'Population 2016'!BA214*'Prevalence Rates'!BA214","v":0},{"$f":"'Population 2016'!BB214*'Prevalence Rates'!BB214","v":0},{"$f":"'Population 2016'!BC214*'Prevalence Rates'!BC214","v":0},212]
[null,"Female 16-19",{"$f":"'Population 2016'!C215*'Prevalence Rates'!C215","v":177.53126404255318},{"$f":"'Population 2016'!D215*'Prevalence Rates'!D215","v":184.4769764745061},{"$f":"'Population 2016'!E215*'Prevalence Rates'!E215","v":138.72456781914894},{"$f":"'Population 2016'!F215*'Prevalence Rates'!F215","v":23.591843138297872},{"$f":"'Population 2016'!G215*'Prevalence Rates'!G215","v":13.1722},{"$f":"'Population 2016'!H215*'Prevalence Rates'!H215","v":105.56070989361703},{"$f":"'Population 2016'!I215*'Prevalence Rates'!I215","v":21.093193085106385},{"$f":"'Population 2016'!J215*'Prevalence Rates'!J215","v":121.5971},{"$f":"'Population 2016'!K215*'Prevalence Rates'!K215","v":16.0229},{"$f":"'Population 2016'!L215*'Prevalence Rates'!L215","v":30.28079212765957},{"$f":"'Population 2016'!M215*'Prevalence Rates'!M215","v":30.28079212765957},{"$f":"'Population 2016'!N215*'Prevalence Rates'!N215","v":80.730234468085101},{"$f":"'Population 2016'!O215*'Prevalence Rates'!O215","v":31.907866276595747},{"$f":"'Population 2016'!P215*'Prevalence Rates'!P215","v":98.426796542553177},{"$f":"'Population 2016'!Q215*'Prevalence Rates'!Q215","v":39.517070585106389},{"$f":"'Population 2016'!R215*'Prevalence Rates'!R215","v":55.78185132978723},{"$f":"'Population 2016'!S215*'Prevalence Rates'!S215","v":599.51536130693773},{"$f":"'Population 2016'!T215*'Prevalence Rates'!T215","v":343.98704617021269},{"$f":"'Population 2016'!U215*'Prevalence Rates'!U215","v":0},{"$f":"'Population 2016'!V215*'Prevalence Rates'!V215","v":44.177274893617025},{"$f":"'Population 2016'!W215*'Prevalence Rates'!W215","v":232.86245170212763},{"$f":"'Population 2016'!X215*'Prevalence Rates'!X215","v":232.86245170212763},{"$f":"'Population 2016'!Y215*'Prevalence Rates'!Y215","v":138.60770585106383},{"$f":"'Population 2016'!Z215*'Prevalence Rates'!Z215","v":177.70809946808509},{"$f":"'Population 2016'!AA215*'Prevalence Rates'!AA215","v":287.19301838179007},{"$f":"'Population 2016'!AB215*'Prevalence Rates'!AB215","v":375.7433840425532},{"$f":"'Population 2016'!AC215*'Prevalence Rates'!AC215","v":567.13348404255305},{"$f":"'Population 2016'!AD215*'Prevalence Rates'!AD215","v":53.726440159574466},{"$f":"'Population 2016'!AE215*'Prevalence Rates'!AE215","v":40.721611595744683},{"$f":"'Population 2016'!AF215*'Prevalence Rates'!AF215","v":19.168499999999998},{"$f":"'Population 2016'!AG215*'Prevalence Rates'!AG215","v":21.755354070305273},{"$f":"'Population 2016'!AH215*'Prevalence Rates'!AH215","v":203.3245565957447},{"$f":"'Population 2016'!AI215*'Prevalence Rates'!AI215","v":541.60418973404251},{"$f":"'Population 2016'!AJ215*'Prevalence Rates'!AJ215","v":27.818899999999999},{"$f":"'Population 2016'!AK215*'Prevalence Rates'!AK215","v":50.093680000000006},{"$f":"'Population 2016'!AL215*'Prevalence Rates'!AL215","v":24.589222127659575},{"$f":"'Population 2016'!AM215*'Prevalence Rates'!AM215","v":106.41403755319148},{"$f":"'Population 2016'!AN215*'Prevalence Rates'!AN215","v":2.5558000000000001},{"$f":"'Population 2016'!AO215*'Prevalence Rates'!AO215","v":2.5558000000000001},{"$f":"'Population 2016'!AP215*'Prevalence Rates'!AP215","v":38.764918723404257},{"$f":"'Population 2016'!AQ215*'Prevalence Rates'!AQ215","v":85.026990212765952},{"$f":"'Population 2016'!AR215*'Prevalence Rates'!AR215","v":2483.8444},{"$f":"'Population 2016'!AS215*'Prevalence Rates'!AS215","v":21.093193085106385},{"$f":"'Population 2016'!AT215*'Prevalence Rates'!AT215","v":0},{"$f":"'Population 2016'!AU215*'Prevalence Rates'!AU215","v":0},{"$f":"'Population 2016'!AV215*'Prevalence Rates'!AV215","v":49.960661276595737},{"$f":"'Population 2016'!AW215*'Prevalence Rates'!AW215","v":91.758134999999996},{"$f":"'Population 2016'!AX215*'Prevalence Rates'!AX215","v":105.5742},{"$f":"'Population 2016'!AY215*'Prevalence Rates'!AY215","v":218.18779954161747},{"$f":"'Population 2016'!AZ215*'Prevalence Rates'!AZ215","v":140.60926117021276},{"$f":"'Population 2016'!BA215*'Prevalence Rates'!BA215","v":13.370577765957448},{"$f":"'Population 2016'!BB215*'Prevalence Rates'!BB215","v":86.145100425531908},{"$f":"'Population 2016'!BC215*'Prevalence Rates'!BC215","v":0},213]
[null,"Female 20-24",{"$f":"'Population 2016'!C216*'Prevalence Rates'!C216","v":312.90103063829787},{"$f":"'Population 2016'!D216*'Prevalence Rates'!D216","v":266.2257823029737},{"$f":"'Population 2016'!E216*'Prevalence Rates'!E216","v":152.04212632978727},{"$f":"'Population 2016'!F216*'Prevalence Rates'!F216","v":21.792900851063827},{"$f":"'Population 2016'!G216*'Prevalence Rates'!G216","v":18.087199999999999},{"$f":"'Population 2016'!H216*'Prevalence Rates'!H216","v":102.87696303191491},{"$f":"'Population 2016'!I216*'Prevalence Rates'!I216","v":20.390086648936173},{"$f":"'Population 2016'!J216*'Prevalence Rates'!J216","v":126.70869999999999},{"$f":"'Population 2016'!K216*'Prevalence Rates'!K216","v":14.351799999999999},{"$f":"'Population 2016'!L216*'Prevalence Rates'!L216","v":36.009590638297865},{"$f":"'Population 2016'!M216*'Prevalence Rates'!M216","v":36.009590638297865},{"$f":"'Population 2016'!N216*'Prevalence Rates'!N216","v":99.124465106382971},{"$f":"'Population 2016'!O216*'Prevalence Rates'!O216","v":31.907866276595747},{"$f":"'Population 2016'!P216*'Prevalence Rates'!P216","v":103.56793882978722},{"$f":"'Population 2016'!Q216*'Prevalence Rates'!Q216","v":39.627762659574479},{"$f":"'Population 2016'!R216*'Prevalence Rates'!R216","v":58.551767553191489},{"$f":"'Population 2016'!S216*'Prevalence Rates'!S216","v":1127.4582853846775},{"$f":"'Population 2016'!T216*'Prevalence Rates'!T216","v":767.41889744680839},{"$f":"'Population 2016'!U216*'Prevalence Rates'!U216","v":0},{"$f":"'Population 2016'!V216*'Prevalence Rates'!V216","v":52.268828936170216},{"$f":"'Population 2016'!W216*'Prevalence Rates'!W216","v":422.2531924468085},{"$f":"'Population 2016'!X216*'Prevalence Rates'!X216","v":422.2531924468085},{"$f":"'Population 2016'!Y216*'Prevalence Rates'!Y216","v":151.35324202127657},{"$f":"'Population 2016'!Z216*'Prevalence Rates'!Z216","v":460.84838680851067},{"$f":"'Population 2016'!AA216*'Prevalence Rates'!AA216","v":409.24694707582364},{"$f":"'Population 2016'!AB216*'Prevalence Rates'!AB216","v":527.89818936170218},{"$f":"'Population 2016'!AC216*'Prevalence Rates'!AC216","v":864.59032978723394},{"$f":"'Population 2016'!AD216*'Prevalence Rates'!AD216","v":63.163606170212759},{"$f":"'Population 2016'!AE216*'Prevalence Rates'!AE216","v":45.430913617021275},{"$f":"'Population 2016'!AF216*'Prevalence Rates'!AF216","v":24.083500000000001},{"$f":"'Population 2016'!AG216*'Prevalence Rates'!AG216","v":24.271279370952822},{"$f":"'Population 2016'!AH216*'Prevalence Rates'!AH216","v":230.8318246808511},{"$f":"'Population 2016'!AI216*'Prevalence Rates'!AI216","v":1049.5200805851064},{"$f":"'Population 2016'!AJ216*'Prevalence Rates'!AJ216","v":34.306699999999999},{"$f":"'Population 2016'!AK216*'Prevalence Rates'!AK216","v":52.381612500000003},{"$f":"'Population 2016'!AL216*'Prevalence Rates'!AL216","v":23.916860585106384},{"$f":"'Population 2016'!AM216*'Prevalence Rates'!AM216","v":116.14950223404254},{"$f":"'Population 2016'!AN216*'Prevalence Rates'!AN216","v":4.3251999999999997},{"$f":"'Population 2016'!AO216*'Prevalence Rates'!AO216","v":4.3251999999999997},{"$f":"'Population 2016'!AP216*'Prevalence Rates'!AP216","v":44.225849734042555},{"$f":"'Population 2016'!AQ216*'Prevalence Rates'!AQ216","v":100.37277053191488},{"$f":"'Population 2016'!AR216*'Prevalence Rates'!AR216","v":3736.6779000000001},{"$f":"'Population 2016'!AS216*'Prevalence Rates'!AS216","v":20.390086648936173},{"$f":"'Population 2016'!AT216*'Prevalence Rates'!AT216","v":0},{"$f":"'Population 2016'!AU216*'Prevalence Rates'!AU216","v":0},{"$f":"'Population 2016'!AV216*'Prevalence Rates'!AV216","v":47.913093191489352},{"$f":"'Population 2016'!AW216*'Prevalence Rates'!AW216","v":107.37654095744681},{"$f":"'Population 2016'!AX216*'Prevalence Rates'!AX216","v":112.3569},{"$f":"'Population 2016'!AY216*'Prevalence Rates'!AY216","v":333.02643331011842},{"$f":"'Population 2016'!AZ216*'Prevalence Rates'!AZ216","v":156.4773909574468},{"$f":"'Population 2016'!BA216*'Prevalence Rates'!BA216","v":15.467923297872341},{"$f":"'Population 2016'!BB216*'Prevalence Rates'!BB216","v":80.430314893617009},{"$f":"'Population 2016'!BC216*'Prevalence Rates'!BC216","v":0},214]
[null,"Female 25-29",{"$f":"'Population 2016'!C217*'Prevalence Rates'!C217","v":357.39802968085104},{"$f":"'Population 2016'!D217*'Prevalence Rates'!D217","v":293.62583463827218},{"$f":"'Population 2016'!E217*'Prevalence Rates'!E217","v":157.24932632978724},{"$f":"'Population 2016'!F217*'Prevalence Rates'!F217","v":21.082526489361701},{"$f":"'Population 2016'!G217*'Prevalence Rates'!G217","v":14.643800000000001},{"$f":"'Population 2016'!H217*'Prevalence Rates'!H217","v":88.134303563829803},{"$f":"'Population 2016'!I217*'Prevalence Rates'!I217","v":16.193008191489362},{"$f":"'Population 2016'!J217*'Prevalence Rates'!J217","v":79.939099999999996},{"$f":"'Population 2016'!K217*'Prevalence Rates'!K217","v":10.6318},{"$f":"'Population 2016'!L217*'Prevalence Rates'!L217","v":42.229714468085106},{"$f":"'Population 2016'!M217*'Prevalence Rates'!M217","v":42.229714468085106},{"$f":"'Population 2016'!N217*'Prevalence Rates'!N217","v":83.285118670212753},{"$f":"'Population 2016'!O217*'Prevalence Rates'!O217","v":34.911815797872343},{"$f":"'Population 2016'!P217*'Prevalence Rates'!P217","v":80.358706117021271},{"$f":"'Population 2016'!Q217*'Prevalence Rates'!Q217","v":41.111689574468095},{"$f":"'Population 2016'!R217*'Prevalence Rates'!R217","v":48.959737765957449},{"$f":"'Population 2016'!S217*'Prevalence Rates'!S217","v":883.26821173475673},{"$f":"'Population 2016'!T217*'Prevalence Rates'!T217","v":672.33544148936176},{"$f":"'Population 2016'!U217*'Prevalence Rates'!U217","v":0},{"$f":"'Population 2016'!V217*'Prevalence Rates'!V217","v":51.268238297872344},{"$f":"'Population 2016'!W217*'Prevalence Rates'!W217","v":199.75790680851063},{"$f":"'Population 2016'!X217*'Prevalence Rates'!X217","v":199.75790680851063},{"$f":"'Population 2016'!Y217*'Prevalence Rates'!Y217","v":115.78754707446808},{"$f":"'Population 2016'!Z217*'Prevalence Rates'!Z217","v":417.04457239361699},{"$f":"'Population 2016'!AA217*'Prevalence Rates'!AA217","v":348.8647004006171},{"$f":"'Population 2016'!AB217*'Prevalence Rates'!AB217","v":581.85737234042551},{"$f":"'Population 2016'!AC217*'Prevalence Rates'!AC217","v":737.31703723404246},{"$f":"'Population 2016'!AD217*'Prevalence Rates'!AD217","v":71.503763297872339},{"$f":"'Population 2016'!AE217*'Prevalence Rates'!AE217","v":56.907659148936176},{"$f":"'Population 2016'!AF217*'Prevalence Rates'!AF217","v":17.151299999999999},{"$f":"'Population 2016'!AG217*'Prevalence Rates'!AG217","v":30.402683626271973},{"$f":"'Population 2016'!AH217*'Prevalence Rates'!AH217","v":196.46849361702129},{"$f":"'Population 2016'!AI217*'Prevalence Rates'!AI217","v":937.57276281914892},{"$f":"'Population 2016'!AJ217*'Prevalence Rates'!AJ217","v":35.0047},{"$f":"'Population 2016'!AK217*'Prevalence Rates'!AK217","v":57.256255000000003},{"$f":"'Population 2016'!AL217*'Prevalence Rates'!AL217","v":17.837074574468087},{"$f":"'Population 2016'!AM217*'Prevalence Rates'!AM217","v":101.40490053191489},{"$f":"'Population 2016'!AN217*'Prevalence Rates'!AN217","v":5.4161999999999999},{"$f":"'Population 2016'!AO217*'Prevalence Rates'!AO217","v":5.4161999999999999},{"$f":"'Population 2016'!AP217*'Prevalence Rates'!AP217","v":41.75104872340426},{"$f":"'Population 2016'!AQ217*'Prevalence Rates'!AQ217","v":84.901175744680842},{"$f":"'Population 2016'!AR217*'Prevalence Rates'!AR217","v":3246.8112999999998},{"$f":"'Population 2016'!AS217*'Prevalence Rates'!AS217","v":16.193008191489362},{"$f":"'Population 2016'!AT217*'Prevalence Rates'!AT217","v":0},{"$f":"'Population 2016'!AU217*'Prevalence Rates'!AU217","v":0},{"$f":"'Population 2016'!AV217*'Prevalence Rates'!AV217","v":36.14363851063829},{"$f":"'Population 2016'!AW217*'Prevalence Rates'!AW217","v":89.640990957446817},{"$f":"'Population 2016'!AX217*'Prevalence Rates'!AX217","v":69.307299999999998},{"$f":"'Population 2016'!AY217*'Prevalence Rates'!AY217","v":200.43866253030242},{"$f":"'Population 2016'!AZ217*'Prevalence Rates'!AZ217","v":141.49118265957449},{"$f":"'Population 2016'!BA217*'Prevalence Rates'!BA217","v":9.0950759574468076},{"$f":"'Population 2016'!BB217*'Prevalence Rates'!BB217","v":80.447002127659559},{"$f":"'Population 2016'!BC217*'Prevalence Rates'!BC217","v":0},215]
[null,"Female 30-34",{"$f":"'Population 2016'!C218*'Prevalence Rates'!C218","v":305.75708085106379},{"$f":"'Population 2016'!D218*'Prevalence Rates'!D218","v":307.96077872775533},{"$f":"'Population 2016'!E218*'Prevalence Rates'!E218","v":223.60657925531916},{"$f":"'Population 2016'!F218*'Prevalence Rates'!F218","v":25.802495106382977},{"$f":"'Population 2016'!G218*'Prevalence Rates'!G218","v":11.233599999999999},{"$f":"'Population 2016'!H218*'Prevalence Rates'!H218","v":103.55020015957449},{"$f":"'Population 2016'!I218*'Prevalence Rates'!I218","v":28.593982819148938},{"$f":"'Population 2016'!J218*'Prevalence Rates'!J218","v":68.103700000000003},{"$f":"'Population 2016'!K218*'Prevalence Rates'!K218","v":14.142300000000001},{"$f":"'Population 2016'!L218*'Prevalence Rates'!L218","v":42.229714468085106},{"$f":"'Population 2016'!M218*'Prevalence Rates'!M218","v":42.229714468085106},{"$f":"'Population 2016'!N218*'Prevalence Rates'!N218","v":80.678385691489353},{"$f":"'Population 2016'!O218*'Prevalence Rates'!O218","v":40.337992446808506},{"$f":"'Population 2016'!P218*'Prevalence Rates'!P218","v":85.756499999999988},{"$f":"'Population 2016'!Q218*'Prevalence Rates'!Q218","v":47.662453297872354},{"$f":"'Population 2016'!R218*'Prevalence Rates'!R218","v":48.437964361702129},{"$f":"'Population 2016'!S218*'Prevalence Rates'!S218","v":803.02950891491787},{"$f":"'Population 2016'!T218*'Prevalence Rates'!T218","v":548.99140978723403},{"$f":"'Population 2016'!U218*'Prevalence Rates'!U218","v":0},{"$f":"'Population 2016'!V218*'Prevalence Rates'!V218","v":68.912502127659579},{"$f":"'Population 2016'!W218*'Prevalence Rates'!W218","v":210.71770914893617},{"$f":"'Population 2016'!X218*'Prevalence Rates'!X218","v":210.71770914893617},{"$f":"'Population 2016'!Y218*'Prevalence Rates'!Y218","v":126.64955691489361},{"$f":"'Population 2016'!Z218*'Prevalence Rates'!Z218","v":311.90114941489361},{"$f":"'Population 2016'!AA218*'Prevalence Rates'!AA218","v":329.22760008754523},{"$f":"'Population 2016'!AB218*'Prevalence Rates'!AB218","v":612.14583829787227},{"$f":"'Population 2016'!AC218*'Prevalence Rates'!AC218","v":651.60855319148936},{"$f":"'Population 2016'!AD218*'Prevalence Rates'!AD218","v":73.410530319148933},{"$f":"'Population 2016'!AE218*'Prevalence Rates'!AE218","v":61.995430000000006},{"$f":"'Population 2016'!AF218*'Prevalence Rates'!AF218","v":17.953700000000001},{"$f":"'Population 2016'!AG218*'Prevalence Rates'!AG218","v":33.120804347826088},{"$f":"'Population 2016'!AH218*'Prevalence Rates'!AH218","v":231.55215319148937},{"$f":"'Population 2016'!AI218*'Prevalence Rates'!AI218","v":814.39267893617011},{"$f":"'Population 2016'!AJ218*'Prevalence Rates'!AJ218","v":42.727800000000002},{"$f":"'Population 2016'!AK218*'Prevalence Rates'!AK218","v":62.662424999999999},{"$f":"'Population 2016'!AL218*'Prevalence Rates'!AL218","v":25.775552819148938},{"$f":"'Population 2016'!AM218*'Prevalence Rates'!AM218","v":119.20249531914892},{"$f":"'Population 2016'!AN218*'Prevalence Rates'!AN218","v":3.9117000000000002},{"$f":"'Population 2016'!AO218*'Prevalence Rates'!AO218","v":3.9117000000000002},{"$f":"'Population 2016'!AP218*'Prevalence Rates'!AP218","v":52.345769734042555},{"$f":"'Population 2016'!AQ218*'Prevalence Rates'!AQ218","v":86.988909574468067},{"$f":"'Population 2016'!AR218*'Prevalence Rates'!AR218","v":3172.7899000000002},{"$f":"'Population 2016'!AS218*'Prevalence Rates'!AS218","v":28.593982819148938},{"$f":"'Population 2016'!AT218*'Prevalence Rates'!AT218","v":0},{"$f":"'Population 2016'!AU218*'Prevalence Rates'!AU218","v":0},{"$f":"'Population 2016'!AV218*'Prevalence Rates'!AV218","v":38.023943404255313},{"$f":"'Population 2016'!AW218*'Prevalence Rates'!AW218","v":105.86174170212767},{"$f":"'Population 2016'!AX218*'Prevalence Rates'!AX218","v":53.961399999999998},{"$f":"'Population 2016'!AY218*'Prevalence Rates'!AY218","v":218.22366225838346},{"$f":"'Population 2016'!AZ218*'Prevalence Rates'!AZ218","v":159.93091085106386},{"$f":"'Population 2016'!BA218*'Prevalence Rates'!BA218","v":10.967591595744681},{"$f":"'Population 2016'!BB218*'Prevalence Rates'!BB218","v":94.808681702127643},{"$f":"'Population 2016'!BC218*'Prevalence Rates'!BC218","v":0},216]
[null,"Female 35-39",{"$f":"'Population 2016'!C219*'Prevalence Rates'!C219","v":250.83402340425533},{"$f":"'Population 2016'!D219*'Prevalence Rates'!D219","v":278.22646721101046},{"$f":"'Population 2016'!E219*'Prevalence Rates'!E219","v":223.59137553191493},{"$f":"'Population 2016'!F219*'Prevalence Rates'!F219","v":27.720077127659575},{"$f":"'Population 2016'!G219*'Prevalence Rates'!G219","v":15.489600000000001},{"$f":"'Population 2016'!H219*'Prevalence Rates'!H219","v":114.95245882978726},{"$f":"'Population 2016'!I219*'Prevalence Rates'!I219","v":29.299541595744682},{"$f":"'Population 2016'!J219*'Prevalence Rates'!J219","v":76.3416},{"$f":"'Population 2016'!K219*'Prevalence Rates'!K219","v":17.886800000000001},{"$f":"'Population 2016'!L219*'Prevalence Rates'!L219","v":38.161383829787233},{"$f":"'Population 2016'!M219*'Prevalence Rates'!M219","v":38.161383829787233},{"$f":"'Population 2016'!N219*'Prevalence Rates'!N219","v":68.531867659574459},{"$f":"'Population 2016'!O219*'Prevalence Rates'!O219","v":38.021514468085108},{"$f":"'Population 2016'!P219*'Prevalence Rates'!P219","v":113.07496276595744},{"$f":"'Population 2016'!Q219*'Prevalence Rates'!Q219","v":57.102696808510657},{"$f":"'Population 2016'!R219*'Prevalence Rates'!R219","v":68.707881382978726},{"$f":"'Population 2016'!S219*'Prevalence Rates'!S219","v":764.36173546152975},{"$f":"'Population 2016'!T219*'Prevalence Rates'!T219","v":488.05834595744676},{"$f":"'Population 2016'!U219*'Prevalence Rates'!U219","v":0},{"$f":"'Population 2016'!V219*'Prevalence Rates'!V219","v":66.040309787234051},{"$f":"'Population 2016'!W219*'Prevalence Rates'!W219","v":217.93696531914895},{"$f":"'Population 2016'!X219*'Prevalence Rates'!X219","v":217.93696531914895},{"$f":"'Population 2016'!Y219*'Prevalence Rates'!Y219","v":129.53094627659576},{"$f":"'Population 2016'!Z219*'Prevalence Rates'!Z219","v":226.08131500000002},{"$f":"'Population 2016'!AA219*'Prevalence Rates'!AA219","v":352.56231676999136},{"$f":"'Population 2016'!AB219*'Prevalence Rates'!AB219","v":545.36986595744679},{"$f":"'Population 2016'!AC219*'Prevalence Rates'!AC219","v":684.77626595744675},{"$f":"'Population 2016'!AD219*'Prevalence Rates'!AD219","v":75.895410851063829},{"$f":"'Population 2016'!AE219*'Prevalence Rates'!AE219","v":60.453185957446813},{"$f":"'Population 2016'!AF219*'Prevalence Rates'!AF219","v":21.3904},{"$f":"'Population 2016'!AG219*'Prevalence Rates'!AG219","v":32.296866790009254},{"$f":"'Population 2016'!AH219*'Prevalence Rates'!AH219","v":261.55060595744686},{"$f":"'Population 2016'!AI219*'Prevalence Rates'!AI219","v":758.01131446808506},{"$f":"'Population 2016'!AJ219*'Prevalence Rates'!AJ219","v":43.979400000000005},{"$f":"'Population 2016'!AK219*'Prevalence Rates'!AK219","v":45.968615000000007},{"$f":"'Population 2016'!AL219*'Prevalence Rates'!AL219","v":28.468809787234047},{"$f":"'Population 2016'!AM219*'Prevalence Rates'!AM219","v":131.38970808510638},{"$f":"'Population 2016'!AN219*'Prevalence Rates'!AN219","v":5.4398},{"$f":"'Population 2016'!AO219*'Prevalence Rates'!AO219","v":5.4398},{"$f":"'Population 2016'!AP219*'Prevalence Rates'!AP219","v":49.561276276595748},{"$f":"'Population 2016'!AQ219*'Prevalence Rates'!AQ219","v":99.581688936170195},{"$f":"'Population 2016'!AR219*'Prevalence Rates'!AR219","v":3104.9272000000001},{"$f":"'Population 2016'!AS219*'Prevalence Rates'!AS219","v":29.299541595744682},{"$f":"'Population 2016'!AT219*'Prevalence Rates'!AT219","v":0},{"$f":"'Population 2016'!AU219*'Prevalence Rates'!AU219","v":0},{"$f":"'Population 2016'!AV219*'Prevalence Rates'!AV219","v":49.260988723404246},{"$f":"'Population 2016'!AW219*'Prevalence Rates'!AW219","v":121.81513042553193},{"$f":"'Population 2016'!AX219*'Prevalence Rates'!AX219","v":58.454800000000006},{"$f":"'Population 2016'!AY219*'Prevalence Rates'!AY219","v":216.94913893471613},{"$f":"'Population 2016'!AZ219*'Prevalence Rates'!AZ219","v":151.64565574468088},{"$f":"'Population 2016'!BA219*'Prevalence Rates'!BA219","v":15.368710106382979},{"$f":"'Population 2016'!BB219*'Prevalence Rates'!BB219","v":104.02670978723403},{"$f":"'Population 2016'!BC219*'Prevalence Rates'!BC219","v":0},217]
[null,"Female 40-44",{"$f":"'Population 2016'!C220*'Prevalence Rates'!C220","v":231.14314404255322},{"$f":"'Population 2016'!D220*'Prevalence Rates'!D220","v":276.67879932283734},{"$f":"'Population 2016'!E220*'Prevalence Rates'!E220","v":237.88678936170217},{"$f":"'Population 2016'!F220*'Prevalence Rates'!F220","v":34.180060319148936},{"$f":"'Population 2016'!G220*'Prevalence Rates'!G220","v":17.886800000000001},{"$f":"'Population 2016'!H220*'Prevalence Rates'!H220","v":146.5573927659575},{"$f":"'Population 2016'!I220*'Prevalence Rates'!I220","v":45.315368191489362},{"$f":"'Population 2016'!J220*'Prevalence Rates'!J220","v":97.086600000000004},{"$f":"'Population 2016'!K220*'Prevalence Rates'!K220","v":23.05},{"$f":"'Population 2016'!L220*'Prevalence Rates'!L220","v":41.231839999999998},{"$f":"'Population 2016'!M220*'Prevalence Rates'!M220","v":41.231839999999998},{"$f":"'Population 2016'!N220*'Prevalence Rates'!N220","v":80.512963404255316},{"$f":"'Population 2016'!O220*'Prevalence Rates'!O220","v":49.691484255319146},{"$f":"'Population 2016'!P220*'Prevalence Rates'!P220","v":131.31511436170211},{"$f":"'Population 2016'!Q220*'Prevalence Rates'!Q220","v":66.34295138297874},{"$f":"'Population 2016'!R220*'Prevalence Rates'!R220","v":77.581150531914901},{"$f":"'Population 2016'!S220*'Prevalence Rates'!S220","v":800.78178724562565},{"$f":"'Population 2016'!T220*'Prevalence Rates'!T220","v":465.15763148936162},{"$f":"'Population 2016'!U220*'Prevalence Rates'!U220","v":0},{"$f":"'Population 2016'!V220*'Prevalence Rates'!V220","v":80.423509787234053},{"$f":"'Population 2016'!W220*'Prevalence Rates'!W220","v":250.34712893617024},{"$f":"'Population 2016'!X220*'Prevalence Rates'!X220","v":250.34712893617024},{"$f":"'Population 2016'!Y220*'Prevalence Rates'!Y220","v":160.77595691489361},{"$f":"'Population 2016'!Z220*'Prevalence Rates'!Z220","v":210.53193212765959},{"$f":"'Population 2016'!AA220*'Prevalence Rates'!AA220","v":384.70519259971525},{"$f":"'Population 2016'!AB220*'Prevalence Rates'!AB220","v":553.10387659574474},{"$f":"'Population 2016'!AC220*'Prevalence Rates'!AC220","v":740.80247872340419},{"$f":"'Population 2016'!AD220*'Prevalence Rates'!AD220","v":87.639042553191487},{"$f":"'Population 2016'!AE220*'Prevalence Rates'!AE220","v":69.806974042553193},{"$f":"'Population 2016'!AF220*'Prevalence Rates'!AF220","v":27.936600000000002},{"$f":"'Population 2016'!AG220*'Prevalence Rates'!AG220","v":37.294089731729883},{"$f":"'Population 2016'!AH220*'Prevalence Rates'!AH220","v":292.08096851063834},{"$f":"'Population 2016'!AI220*'Prevalence Rates'!AI220","v":761.69911829787236},{"$f":"'Population 2016'!AJ220*'Prevalence Rates'!AJ220","v":45.546800000000005},{"$f":"'Population 2016'!AK220*'Prevalence Rates'!AK220","v":60.651465000000009},{"$f":"'Population 2016'!AL220*'Prevalence Rates'!AL220","v":36.486923936170214},{"$f":"'Population 2016'!AM220*'Prevalence Rates'!AM220","v":141.40880744680851},{"$f":"'Population 2016'!AN220*'Prevalence Rates'!AN220","v":3.9646000000000003},{"$f":"'Population 2016'!AO220*'Prevalence Rates'!AO220","v":3.9646000000000003},{"$f":"'Population 2016'!AP220*'Prevalence Rates'!AP220","v":62.186055531914903},{"$f":"'Population 2016'!AQ220*'Prevalence Rates'!AQ220","v":113.54871382978722},{"$f":"'Population 2016'!AR220*'Prevalence Rates'!AR220","v":3366.0376000000001},{"$f":"'Population 2016'!AS220*'Prevalence Rates'!AS220","v":45.315368191489362},{"$f":"'Population 2016'!AT220*'Prevalence Rates'!AT220","v":0},{"$f":"'Population 2016'!AU220*'Prevalence Rates'!AU220","v":0},{"$f":"'Population 2016'!AV220*'Prevalence Rates'!AV220","v":61.3601789361702},{"$f":"'Population 2016'!AW220*'Prevalence Rates'!AW220","v":139.69065063829788},{"$f":"'Population 2016'!AX220*'Prevalence Rates'!AX220","v":74.036600000000007},{"$f":"'Population 2016'!AY220*'Prevalence Rates'!AY220","v":256.37532119811254},{"$f":"'Population 2016'!AZ220*'Prevalence Rates'!AZ220","v":185.46412531914896},{"$f":"'Population 2016'!BA220*'Prevalence Rates'!BA220","v":15.122810744680852},{"$f":"'Population 2016'!BB220*'Prevalence Rates'!BB220","v":130.33117361702125},{"$f":"'Population 2016'!BC220*'Prevalence Rates'!BC220","v":0},218]
[null,"Female 45-49",{"$f":"'Population 2016'!C221*'Prevalence Rates'!C221","v":266.38063914893615},{"$f":"'Population 2016'!D221*'Prevalence Rates'!D221","v":320.30615186362905},{"$f":"'Population 2016'!E221*'Prevalence Rates'!E221","v":276.42476595744682},{"$f":"'Population 2016'!F221*'Prevalence Rates'!F221","v":42.528867553191489},{"$f":"'Population 2016'!G221*'Prevalence Rates'!G221","v":26.347200000000001},{"$f":"'Population 2016'!H221*'Prevalence Rates'!H221","v":201.42591531914897},{"$f":"'Population 2016'!I221*'Prevalence Rates'!I221","v":50.274409255319149},{"$f":"'Population 2016'!J221*'Prevalence Rates'!J221","v":136.62620000000001},{"$f":"'Population 2016'!K221*'Prevalence Rates'!K221","v":29.440999999999999},{"$f":"'Population 2016'!L221*'Prevalence Rates'!L221","v":59.586545531914886},{"$f":"'Population 2016'!M221*'Prevalence Rates'!M221","v":59.586545531914886},{"$f":"'Population 2016'!N221*'Prevalence Rates'!N221","v":110.75262531914892},{"$f":"'Population 2016'!O221*'Prevalence Rates'!O221","v":61.631543085106379},{"$f":"'Population 2016'!P221*'Prevalence Rates'!P221","v":171.18752393617021},{"$f":"'Population 2016'!Q221*'Prevalence Rates'!Q221","v":87.769693936170242},{"$f":"'Population 2016'!R221*'Prevalence Rates'!R221","v":98.469687234042567},{"$f":"'Population 2016'!S221*'Prevalence Rates'!S221","v":950.89039254113527},{"$f":"'Population 2016'!T221*'Prevalence Rates'!T221","v":536.85477702127662},{"$f":"'Population 2016'!U221*'Prevalence Rates'!U221","v":0},{"$f":"'Population 2016'!V221*'Prevalence Rates'!V221","v":93.744051063829801},{"$f":"'Population 2016'!W221*'Prevalence Rates'!W221","v":297.42300446808508},{"$f":"'Population 2016'!X221*'Prevalence Rates'!X221","v":297.42300446808508},{"$f":"'Population 2016'!Y221*'Prevalence Rates'!Y221","v":204.68767659574465},{"$f":"'Population 2016'!Z221*'Prevalence Rates'!Z221","v":257.31014627659573},{"$f":"'Population 2016'!AA221*'Prevalence Rates'!AA221","v":499.74151943163486},{"$f":"'Population 2016'!AB221*'Prevalence Rates'!AB221","v":643.99028936170203},{"$f":"'Population 2016'!AC221*'Prevalence Rates'!AC221","v":960.50068085106375},{"$f":"'Population 2016'!AD221*'Prevalence Rates'!AD221","v":108.71309553191489},{"$f":"'Population 2016'!AE221*'Prevalence Rates'!AE221","v":82.685998723404253},{"$f":"'Population 2016'!AF221*'Prevalence Rates'!AF221","v":39.321199999999997},{"$f":"'Population 2016'!AG221*'Prevalence Rates'!AG221","v":44.17465587419057},{"$f":"'Population 2016'!AH221*'Prevalence Rates'!AH221","v":381.32008680851067},{"$f":"'Population 2016'!AI221*'Prevalence Rates'!AI221","v":907.49663542553185},{"$f":"'Population 2016'!AJ221*'Prevalence Rates'!AJ221","v":56.087600000000002},{"$f":"'Population 2016'!AK221*'Prevalence Rates'!AK221","v":75.309079999999994},{"$f":"'Population 2016'!AL221*'Prevalence Rates'!AL221","v":52.36681180851064},{"$f":"'Population 2016'!AM221*'Prevalence Rates'!AM221","v":196.99405212765959},{"$f":"'Population 2016'!AN221*'Prevalence Rates'!AN221","v":7.4850000000000003},{"$f":"'Population 2016'!AO221*'Prevalence Rates'!AO221","v":7.4850000000000003},{"$f":"'Population 2016'!AP221*'Prevalence Rates'!AP221","v":80.040396276595743},{"$f":"'Population 2016'!AQ221*'Prevalence Rates'!AQ221","v":158.91546829787231},{"$f":"'Population 2016'!AR221*'Prevalence Rates'!AR221","v":4170.143},{"$f":"'Population 2016'!AS221*'Prevalence Rates'!AS221","v":50.274409255319149},{"$f":"'Population 2016'!AT221*'Prevalence Rates'!AT221","v":0},{"$f":"'Population 2016'!AU221*'Prevalence Rates'!AU221","v":0},{"$f":"'Population 2016'!AV221*'Prevalence Rates'!AV221","v":88.765305106382968},{"$f":"'Population 2016'!AW221*'Prevalence Rates'!AW221","v":173.85775787234044},{"$f":"'Population 2016'!AX221*'Prevalence Rates'!AX221","v":107.18519999999999},{"$f":"'Population 2016'!AY221*'Prevalence Rates'!AY221","v":317.79441429528117},{"$f":"'Population 2016'!AZ221*'Prevalence Rates'!AZ221","v":241.11701234042553},{"$f":"'Population 2016'!BA221*'Prevalence Rates'!BA221","v":24.088269468085105},{"$f":"'Population 2016'!BB221*'Prevalence Rates'!BB221","v":169.547034893617},{"$f":"'Population 2016'!BC221*'Prevalence Rates'!BC221","v":0},219]
[null,"Female 50-54",{"$f":"'Population 2016'!C222*'Prevalence Rates'!C222","v":283.80327723404258},{"$f":"'Population 2016'!D222*'Prevalence Rates'!D222","v":323.6566346237089},{"$f":"'Population 2016'!E222*'Prevalence Rates'!E222","v":266.88510691489364},{"$f":"'Population 2016'!F222*'Prevalence Rates'!F222","v":43.624703404255321},{"$f":"'Population 2016'!G222*'Prevalence Rates'!G222","v":27.544799999999999},{"$f":"'Population 2016'!H222*'Prevalence Rates'!H222","v":207.37988776595748},{"$f":"'Population 2016'!I222*'Prevalence Rates'!I222","v":45.277561276595748},{"$f":"'Population 2016'!J222*'Prevalence Rates'!J222","v":134.03139999999999},{"$f":"'Population 2016'!K222*'Prevalence Rates'!K222","v":31.337199999999999},{"$f":"'Population 2016'!L222*'Prevalence Rates'!L222","v":71.693771914893617},{"$f":"'Population 2016'!M222*'Prevalence Rates'!M222","v":71.693771914893617},{"$f":"'Population 2016'!N222*'Prevalence Rates'!N222","v":117.88540563829785},{"$f":"'Population 2016'!O222*'Prevalence Rates'!O222","v":58.881044468085108},{"$f":"'Population 2016'!P222*'Prevalence Rates'!P222","v":186.84630319148934},{"$f":"'Population 2016'!Q222*'Prevalence Rates'!Q222","v":82.48777893617023},{"$f":"'Population 2016'!R222*'Prevalence Rates'!R222","v":98.599480319148938},{"$f":"'Population 2016'!S222*'Prevalence Rates'!S222","v":937.82071059390523},{"$f":"'Population 2016'!T222*'Prevalence Rates'!T222","v":546.63369063829782},{"$f":"'Population 2016'!U222*'Prevalence Rates'!U222","v":0},{"$f":"'Population 2016'!V222*'Prevalence Rates'!V222","v":86.25777702127661},{"$f":"'Population 2016'!W222*'Prevalence Rates'!W222","v":288.36965808510638},{"$f":"'Population 2016'!X222*'Prevalence Rates'!X222","v":288.36965808510638},{"$f":"'Population 2016'!Y222*'Prevalence Rates'!Y222","v":194.46799734042551},{"$f":"'Population 2016'!Z222*'Prevalence Rates'!Z222","v":261.42710861702125},{"$f":"'Population 2016'!AA222*'Prevalence Rates'!AA222","v":522.47423296165368},{"$f":"'Population 2016'!AB222*'Prevalence Rates'!AB222","v":646.81017021276591},{"$f":"'Population 2016'!AC222*'Prevalence Rates'!AC222","v":1003.4199893617021},{"$f":"'Population 2016'!AD222*'Prevalence Rates'!AD222","v":114.31001755319149},{"$f":"'Population 2016'!AE222*'Prevalence Rates'!AE222","v":87.092168723404257},{"$f":"'Population 2016'!AF222*'Prevalence Rates'!AF222","v":39.8202},{"$f":"'Population 2016'!AG222*'Prevalence Rates'!AG222","v":46.52863413506013},{"$f":"'Population 2016'!AH222*'Prevalence Rates'!AH222","v":399.47264510638303},{"$f":"'Population 2016'!AI222*'Prevalence Rates'!AI222","v":903.23268042553184},{"$f":"'Population 2016'!AJ222*'Prevalence Rates'!AJ222","v":52.893999999999998},{"$f":"'Population 2016'!AK222*'Prevalence Rates'!AK222","v":70.663390000000007},{"$f":"'Population 2016'!AL222*'Prevalence Rates'!AL222","v":50.611499680851068},{"$f":"'Population 2016'!AM222*'Prevalence Rates'!AM222","v":193.83665617021276},{"$f":"'Population 2016'!AN222*'Prevalence Rates'!AN222","v":6.6866000000000003},{"$f":"'Population 2016'!AO222*'Prevalence Rates'!AO222","v":6.6866000000000003},{"$f":"'Population 2016'!AP222*'Prevalence Rates'!AP222","v":88.239656382978723},{"$f":"'Population 2016'!AQ222*'Prevalence Rates'!AQ222","v":171.84105468085104},{"$f":"'Population 2016'!AR222*'Prevalence Rates'!AR222","v":4234.3144000000002},{"$f":"'Population 2016'!AS222*'Prevalence Rates'!AS222","v":45.277561276595748},{"$f":"'Population 2016'!AT222*'Prevalence Rates'!AT222","v":0},{"$f":"'Population 2016'!AU222*'Prevalence Rates'!AU222","v":0},{"$f":"'Population 2016'!AV222*'Prevalence Rates'!AV222","v":99.575131489361695},{"$f":"'Population 2016'!AW222*'Prevalence Rates'!AW222","v":190.75273000000001},{"$f":"'Population 2016'!AX222*'Prevalence Rates'!AX222","v":102.6942},{"$f":"'Population 2016'!AY222*'Prevalence Rates'!AY222","v":323.08624608211397},{"$f":"'Population 2016'!AZ222*'Prevalence Rates'!AZ222","v":257.31678191489362},{"$f":"'Population 2016'!BA222*'Prevalence Rates'!BA222","v":27.282294148936167},{"$f":"'Population 2016'!BB222*'Prevalence Rates'!BB222","v":159.12494212765955},{"$f":"'Population 2016'!BC222*'Prevalence Rates'!BC222","v":0},220]
[null,"Female 55-59",{"$f":"'Population 2016'!C223*'Prevalence Rates'!C223","v":284.91648425531918},{"$f":"'Population 2016'!D223*'Prevalence Rates'!D223","v":310.00799755250148},{"$f":"'Population 2016'!E223*'Prevalence Rates'!E223","v":244.5201287234043},{"$f":"'Population 2016'!F223*'Prevalence Rates'!F223","v":44.096543404255321},{"$f":"'Population 2016'!G223*'Prevalence Rates'!G223","v":32.303200000000004},{"$f":"'Population 2016'!H223*'Prevalence Rates'!H223","v":234.12877787234052},{"$f":"'Population 2016'!I223*'Prevalence Rates'!I223","v":43.41950468085107},{"$f":"'Population 2016'!J223*'Prevalence Rates'!J223","v":126.93640000000001},{"$f":"'Population 2016'!K223*'Prevalence Rates'!K223","v":28.834400000000002},{"$f":"'Population 2016'!L223*'Prevalence Rates'!L223","v":68.975842553191484},{"$f":"'Population 2016'!M223*'Prevalence Rates'!M223","v":68.975842553191484},{"$f":"'Population 2016'!N223*'Prevalence Rates'!N223","v":126.91696872340425},{"$f":"'Population 2016'!O223*'Prevalence Rates'!O223","v":61.963285106382983},{"$f":"'Population 2016'!P223*'Prevalence Rates'!P223","v":182.98121808510638},{"$f":"'Population 2016'!Q223*'Prevalence Rates'!Q223","v":75.436367234042578},{"$f":"'Population 2016'!R223*'Prevalence Rates'!R223","v":95.676838297872351},{"$f":"'Population 2016'!S223*'Prevalence Rates'!S223","v":923.81538540977601},{"$f":"'Population 2016'!T223*'Prevalence Rates'!T223","v":555.03959744680844},{"$f":"'Population 2016'!U223*'Prevalence Rates'!U223","v":0},{"$f":"'Population 2016'!V223*'Prevalence Rates'!V223","v":76.996289361702139},{"$f":"'Population 2016'!W223*'Prevalence Rates'!W223","v":289.75285404255322},{"$f":"'Population 2016'!X223*'Prevalence Rates'!X223","v":289.75285404255322},{"$f":"'Population 2016'!Y223*'Prevalence Rates'!Y223","v":178.96292234042556},{"$f":"'Population 2016'!Z223*'Prevalence Rates'!Z223","v":255.54625382978725},{"$f":"'Population 2016'!AA223*'Prevalence Rates'!AA223","v":505.56256739888039},{"$f":"'Population 2016'!AB223*'Prevalence Rates'!AB223","v":618.60535744680863},{"$f":"'Population 2016'!AC223*'Prevalence Rates'!AC223","v":976.06704255319153},{"$f":"'Population 2016'!AD223*'Prevalence Rates'!AD223","v":114.06268914893617},{"$f":"'Population 2016'!AE223*'Prevalence Rates'!AE223","v":82.377888085106392},{"$f":"'Population 2016'!AF223*'Prevalence Rates'!AF223","v":37.723200000000006},{"$f":"'Population 2016'!AG223*'Prevalence Rates'!AG223","v":44.010049028677159},{"$f":"'Population 2016'!AH223*'Prevalence Rates'!AH223","v":381.19159829787236},{"$f":"'Population 2016'!AI223*'Prevalence Rates'!AI223","v":885.77797255319149},{"$f":"'Population 2016'!AJ223*'Prevalence Rates'!AJ223","v":53.983200000000004},{"$f":"'Population 2016'!AK223*'Prevalence Rates'!AK223","v":66.39500000000001},{"$f":"'Population 2016'!AL223*'Prevalence Rates'!AL223","v":56.561620851063836},{"$f":"'Population 2016'!AM223*'Prevalence Rates'!AM223","v":183.84974425531917},{"$f":"'Population 2016'!AN223*'Prevalence Rates'!AN223","v":5.7452000000000005},{"$f":"'Population 2016'!AO223*'Prevalence Rates'!AO223","v":5.7452000000000005},{"$f":"'Population 2016'!AP223*'Prevalence Rates'!AP223","v":88.973278510638309},{"$f":"'Population 2016'!AQ223*'Prevalence Rates'!AQ223","v":167.59551021276596},{"$f":"'Population 2016'!AR223*'Prevalence Rates'!AR223","v":4153.2376000000004},{"$f":"'Population 2016'!AS223*'Prevalence Rates'!AS223","v":43.41950468085107},{"$f":"'Population 2016'!AT223*'Prevalence Rates'!AT223","v":0},{"$f":"'Population 2016'!AU223*'Prevalence Rates'!AU223","v":0},{"$f":"'Population 2016'!AV223*'Prevalence Rates'!AV223","v":117.63913957446808},{"$f":"'Population 2016'!AW223*'Prevalence Rates'!AW223","v":182.79088382978725},{"$f":"'Population 2016'!AX223*'Prevalence Rates'!AX223","v":98.102000000000004},{"$f":"'Population 2016'!AY223*'Prevalence Rates'!AY223","v":328.86305126928295},{"$f":"'Population 2016'!AZ223*'Prevalence Rates'!AZ223","v":265.19990808510642},{"$f":"'Population 2016'!BA223*'Prevalence Rates'!BA223","v":24.573934042553194},{"$f":"'Population 2016'!BB223*'Prevalence Rates'!BB223","v":132.10777191489362},{"$f":"'Population 2016'!BC223*'Prevalence Rates'!BC223","v":0},221]
[null,"Female 60-64",{"$f":"'Population 2016'!C224*'Prevalence Rates'!C224","v":224.59026978723406},{"$f":"'Population 2016'!D224*'Prevalence Rates'!D224","v":265.66172522107706},{"$f":"'Population 2016'!E224*'Prevalence Rates'!E224","v":226.16276170212771},{"$f":"'Population 2016'!F224*'Prevalence Rates'!F224","v":41.149216595744683},{"$f":"'Population 2016'!G224*'Prevalence Rates'!G224","v":23.739600000000003},{"$f":"'Population 2016'!H224*'Prevalence Rates'!H224","v":218.45442617021286},{"$f":"'Population 2016'!I224*'Prevalence Rates'!I224","v":40.207347446808512},{"$f":"'Population 2016'!J224*'Prevalence Rates'!J224","v":119.89040000000001},{"$f":"'Population 2016'!K224*'Prevalence Rates'!K224","v":33.495600000000003},{"$f":"'Population 2016'!L224*'Prevalence Rates'!L224","v":66.397306382978712},{"$f":"'Population 2016'!M224*'Prevalence Rates'!M224","v":66.397306382978712},{"$f":"'Population 2016'!N224*'Prevalence Rates'!N224","v":94.659492765957452},{"$f":"'Population 2016'!O224*'Prevalence Rates'!O224","v":55.545659148936174},{"$f":"'Population 2016'!P224*'Prevalence Rates'!P224","v":163.91896276595745},{"$f":"'Population 2016'!Q224*'Prevalence Rates'!Q224","v":65.915272340425545},{"$f":"'Population 2016'!R224*'Prevalence Rates'!R224","v":83.035841489361715},{"$f":"'Population 2016'!S224*'Prevalence Rates'!S224","v":804.84734429553896},{"$f":"'Population 2016'!T224*'Prevalence Rates'!T224","v":472.45471148936167},{"$f":"'Population 2016'!U224*'Prevalence Rates'!U224","v":0},{"$f":"'Population 2016'!V224*'Prevalence Rates'!V224","v":64.187560851063836},{"$f":"'Population 2016'!W224*'Prevalence Rates'!W224","v":268.63318978723407},{"$f":"'Population 2016'!X224*'Prevalence Rates'!X224","v":268.63318978723407},{"$f":"'Population 2016'!Y224*'Prevalence Rates'!Y224","v":159.55730425531917},{"$f":"'Population 2016'!Z224*'Prevalence Rates'!Z224","v":224.50718234042554},{"$f":"'Population 2016'!AA224*'Prevalence Rates'!AA224","v":440.57014201511174},{"$f":"'Population 2016'!AB224*'Prevalence Rates'!AB224","v":537.43912765957452},{"$f":"'Population 2016'!AC224*'Prevalence Rates'!AC224","v":862.24704255319159},{"$f":"'Population 2016'!AD224*'Prevalence Rates'!AD224","v":102.72854659574469},{"$f":"'Population 2016'!AE224*'Prevalence Rates'!AE224","v":79.2212570212766},{"$f":"'Population 2016'!AF224*'Prevalence Rates'!AF224","v":43.360000000000007},{"$f":"'Population 2016'!AG224*'Prevalence Rates'!AG224","v":42.323631822386687},{"$f":"'Population 2016'!AH224*'Prevalence Rates'!AH224","v":320.0189412765958},{"$f":"'Population 2016'!AI224*'Prevalence Rates'!AI224","v":755.31073085106391},{"$f":"'Population 2016'!AJ224*'Prevalence Rates'!AJ224","v":46.612000000000002},{"$f":"'Population 2016'!AK224*'Prevalence Rates'!AK224","v":67.05895000000001},{"$f":"'Population 2016'!AL224*'Prevalence Rates'!AL224","v":49.994541276595747},{"$f":"'Population 2016'!AM224*'Prevalence Rates'!AM224","v":144.3362144680851},{"$f":"'Population 2016'!AN224*'Prevalence Rates'!AN224","v":6.0704000000000002},{"$f":"'Population 2016'!AO224*'Prevalence Rates'!AO224","v":6.0704000000000002},{"$f":"'Population 2016'!AP224*'Prevalence Rates'!AP224","v":83.714610000000008},{"$f":"'Population 2016'!AQ224*'Prevalence Rates'!AQ224","v":140.14344085106384},{"$f":"'Population 2016'!AR224*'Prevalence Rates'!AR224","v":3647.0096000000003},{"$f":"'Population 2016'!AS224*'Prevalence Rates'!AS224","v":40.207347446808512},{"$f":"'Population 2016'!AT224*'Prevalence Rates'!AT224","v":0},{"$f":"'Population 2016'!AU224*'Prevalence Rates'!AU224","v":0},{"$f":"'Population 2016'!AV224*'Prevalence Rates'!AV224","v":115.04249829787233},{"$f":"'Population 2016'!AW224*'Prevalence Rates'!AW224","v":160.33928340425533},{"$f":"'Population 2016'!AX224*'Prevalence Rates'!AX224","v":86.394800000000004},{"$f":"'Population 2016'!AY224*'Prevalence Rates'!AY224","v":295.98292661691335},{"$f":"'Population 2016'!AZ224*'Prevalence Rates'!AZ224","v":231.85549148936175},{"$f":"'Population 2016'!BA224*'Prevalence Rates'!BA224","v":19.370042127659577},{"$f":"'Population 2016'!BB224*'Prevalence Rates'!BB224","v":111.68475063829787},{"$f":"'Population 2016'!BC224*'Prevalence Rates'!BC224","v":0},222]
[null,"Female 65-69",{"$f":"'Population 2016'!C225*'Prevalence Rates'!C225","v":145.20625595744679},{"$f":"'Population 2016'!D225*'Prevalence Rates'!D225","v":166.26039307515953},{"$f":"'Population 2016'!E225*'Prevalence Rates'!E225","v":137.59128829787235},{"$f":"'Population 2016'!F225*'Prevalence Rates'!F225","v":33.708952340425526},{"$f":"'Population 2016'!G225*'Prevalence Rates'!G225","v":18.367799999999999},{"$f":"'Population 2016'!H225*'Prevalence Rates'!H225","v":158.27402425531918},{"$f":"'Population 2016'!I225*'Prevalence Rates'!I225","v":29.673319148936173},{"$f":"'Population 2016'!J225*'Prevalence Rates'!J225","v":85.667999999999992},{"$f":"'Population 2016'!K225*'Prevalence Rates'!K225","v":22.070399999999999},{"$f":"'Population 2016'!L225*'Prevalence Rates'!L225","v":42.051310212765955},{"$f":"'Population 2016'!M225*'Prevalence Rates'!M225","v":42.051310212765955},{"$f":"'Population 2016'!N225*'Prevalence Rates'!N225","v":72.54852351063829},{"$f":"'Population 2016'!O225*'Prevalence Rates'!O225","v":37.79409255319149},{"$f":"'Population 2016'!P225*'Prevalence Rates'!P225","v":111.54430053191489},{"$f":"'Population 2016'!Q225*'Prevalence Rates'!Q225","v":48.070313617021284},{"$f":"'Population 2016'!R225*'Prevalence Rates'!R225","v":53.62977446808511},{"$f":"'Population 2016'!S225*'Prevalence Rates'!S225","v":560.01856211009897},{"$f":"'Population 2016'!T225*'Prevalence Rates'!T225","v":327.34135148936167},{"$f":"'Population 2016'!U225*'Prevalence Rates'!U225","v":0},{"$f":"'Population 2016'!V225*'Prevalence Rates'!V225","v":41.687846808510642},{"$f":"'Population 2016'!W225*'Prevalence Rates'!W225","v":200.79514914893616},{"$f":"'Population 2016'!X225*'Prevalence Rates'!X225","v":200.79514914893616},{"$f":"'Population 2016'!Y225*'Prevalence Rates'!Y225","v":109.37595478723404},{"$f":"'Population 2016'!Z225*'Prevalence Rates'!Z225","v":124.90513340425532},{"$f":"'Population 2016'!AA225*'Prevalence Rates'!AA225","v":276.60541740831053},{"$f":"'Population 2016'!AB225*'Prevalence Rates'!AB225","v":339.43203191489357},{"$f":"'Population 2016'!AC225*'Prevalence Rates'!AC225","v":547.80175531914881},{"$f":"'Population 2016'!AD225*'Prevalence Rates'!AD225","v":70.526806595744674},{"$f":"'Population 2016'!AE225*'Prevalence Rates'!AE225","v":52.44400021276595},{"$f":"'Population 2016'!AF225*'Prevalence Rates'!AF225","v":29.402999999999999},{"$f":"'Population 2016'!AG225*'Prevalence Rates'!AG225","v":28.017992136910269},{"$f":"'Population 2016'!AH225*'Prevalence Rates'!AH225","v":194.18368340425533},{"$f":"'Population 2016'!AI225*'Prevalence Rates'!AI225","v":511.80277499999994},{"$f":"'Population 2016'!AJ225*'Prevalence Rates'!AJ225","v":30.128999999999998},{"$f":"'Population 2016'!AK225*'Prevalence Rates'!AK225","v":46.246200000000002},{"$f":"'Population 2016'!AL225*'Prevalence Rates'!AL225","v":37.456039148936171},{"$f":"'Population 2016'!AM225*'Prevalence Rates'!AM225","v":86.681619574468073},{"$f":"'Population 2016'!AN225*'Prevalence Rates'!AN225","v":3.7025999999999999},{"$f":"'Population 2016'!AO225*'Prevalence Rates'!AO225","v":3.7025999999999999},{"$f":"'Population 2016'!AP225*'Prevalence Rates'!AP225","v":66.235374255319144},{"$f":"'Population 2016'!AQ225*'Prevalence Rates'!AQ225","v":92.852465106382965},{"$f":"'Population 2016'!AR225*'Prevalence Rates'!AR225","v":2451.4115999999999},{"$f":"'Population 2016'!AS225*'Prevalence Rates'!AS225","v":29.673319148936173},{"$f":"'Population 2016'!AT225*'Prevalence Rates'!AT225","v":0},{"$f":"'Population 2016'!AU225*'Prevalence Rates'!AU225","v":0},{"$f":"'Population 2016'!AV225*'Prevalence Rates'!AV225","v":84.534358723404239},{"$f":"'Population 2016'!AW225*'Prevalence Rates'!AW225","v":97.910677021276598},{"$f":"'Population 2016'!AX225*'Prevalence Rates'!AX225","v":63.5976},{"$f":"'Population 2016'!AY225*'Prevalence Rates'!AY225","v":227.91104299013926},{"$f":"'Population 2016'!AZ225*'Prevalence Rates'!AZ225","v":183.80072489361703},{"$f":"'Population 2016'!BA225*'Prevalence Rates'!BA225","v":9.1972228723404257},{"$f":"'Population 2016'!BB225*'Prevalence Rates'!BB225","v":63.779254468085099},{"$f":"'Population 2016'!BC225*'Prevalence Rates'!BC225","v":0},223]
[null,"Female 70-74",{"$f":"'Population 2016'!C226*'Prevalence Rates'!C226","v":111.75155808510638},{"$f":"'Population 2016'!D226*'Prevalence Rates'!D226","v":123.64202215913959},{"$f":"'Population 2016'!E226*'Prevalence Rates'!E226","v":99.122556382978729},{"$f":"'Population 2016'!F226*'Prevalence Rates'!F226","v":24.256779893617018},{"$f":"'Population 2016'!G226*'Prevalence Rates'!G226","v":15.1008},{"$f":"'Population 2016'!H226*'Prevalence Rates'!H226","v":121.93560031914895},{"$f":"'Population 2016'!I226*'Prevalence Rates'!I226","v":22.477539255319151},{"$f":"'Population 2016'!J226*'Prevalence Rates'!J226","v":65.993399999999994},{"$f":"'Population 2016'!K226*'Prevalence Rates'!K226","v":15.1008},{"$f":"'Population 2016'!L226*'Prevalence Rates'!L226","v":40.497052340425526},{"$f":"'Population 2016'!M226*'Prevalence Rates'!M226","v":40.497052340425526},{"$f":"'Population 2016'!N226*'Prevalence Rates'!N226","v":58.302974680851058},{"$f":"'Population 2016'!O226*'Prevalence Rates'!O226","v":25.937122340425532},{"$f":"'Population 2016'!P226*'Prevalence Rates'!P226","v":93.32961702127659},{"$f":"'Population 2016'!Q226*'Prevalence Rates'!Q226","v":40.54910808510639},{"$f":"'Population 2016'!R226*'Prevalence Rates'!R226","v":46.170703723404259},{"$f":"'Population 2016'!S226*'Prevalence Rates'!S226","v":419.26468102614348},{"$f":"'Population 2016'!T226*'Prevalence Rates'!T226","v":243.68622510638295},{"$f":"'Population 2016'!U226*'Prevalence Rates'!U226","v":0},{"$f":"'Population 2016'!V226*'Prevalence Rates'!V226","v":29.494754042553193},{"$f":"'Population 2016'!W226*'Prevalence Rates'!W226","v":151.17637021276596},{"$f":"'Population 2016'!X226*'Prevalence Rates'!X226","v":151.17637021276596},{"$f":"'Population 2016'!Y226*'Prevalence Rates'!Y226","v":81.350037765957438},{"$f":"'Population 2016'!Z226*'Prevalence Rates'!Z226","v":74.784526276595741},{"$f":"'Population 2016'!AA226*'Prevalence Rates'!AA226","v":210.48788863671413},{"$f":"'Population 2016'!AB226*'Prevalence Rates'!AB226","v":256.60933404255314},{"$f":"'Population 2016'!AC226*'Prevalence Rates'!AC226","v":422.6710212765957},{"$f":"'Population 2016'!AD226*'Prevalence Rates'!AD226","v":56.656074574468079},{"$f":"'Population 2016'!AE226*'Prevalence Rates'!AE226","v":41.805165319148934},{"$f":"'Population 2016'!AF226*'Prevalence Rates'!AF226","v":23.377199999999998},{"$f":"'Population 2016'!AG226*'Prevalence Rates'!AG226","v":22.334238205365402},{"$f":"'Population 2016'!AH226*'Prevalence Rates'!AH226","v":141.70160680851066},{"$f":"'Population 2016'!AI226*'Prevalence Rates'!AI226","v":382.18566989361699},{"$f":"'Population 2016'!AJ226*'Prevalence Rates'!AJ226","v":21.634799999999998},{"$f":"'Population 2016'!AK226*'Prevalence Rates'!AK226","v":40.198619999999998},{"$f":"'Population 2016'!AL226*'Prevalence Rates'!AL226","v":29.156121382978725},{"$f":"'Population 2016'!AM226*'Prevalence Rates'!AM226","v":57.621307021276586},{"$f":"'Population 2016'!AN226*'Prevalence Rates'!AN226","v":3.2669999999999999},{"$f":"'Population 2016'!AO226*'Prevalence Rates'!AO226","v":3.2669999999999999},{"$f":"'Population 2016'!AP226*'Prevalence Rates'!AP226","v":53.681328191489357},{"$f":"'Population 2016'!AQ226*'Prevalence Rates'!AQ226","v":69.765278936170205},{"$f":"'Population 2016'!AR226*'Prevalence Rates'!AR226","v":1867.4171999999999},{"$f":"'Population 2016'!AS226*'Prevalence Rates'!AS226","v":22.477539255319151},{"$f":"'Population 2016'!AT226*'Prevalence Rates'!AT226","v":0},{"$f":"'Population 2016'!AU226*'Prevalence Rates'!AU226","v":0},{"$f":"'Population 2016'!AV226*'Prevalence Rates'!AV226","v":68.050914893617005},{"$f":"'Population 2016'!AW226*'Prevalence Rates'!AW226","v":75.3211870212766},{"$f":"'Population 2016'!AX226*'Prevalence Rates'!AX226","v":50.892600000000002},{"$f":"'Population 2016'!AY226*'Prevalence Rates'!AY226","v":174.76215465026661},{"$f":"'Population 2016'!AZ226*'Prevalence Rates'!AZ226","v":143.36847191489363},{"$f":"'Population 2016'!BA226*'Prevalence Rates'!BA226","v":4.5502050000000001},{"$f":"'Population 2016'!BB226*'Prevalence Rates'!BB226","v":45.176971914893613},{"$f":"'Population 2016'!BC226*'Prevalence Rates'!BC226","v":0},224]
[null,"Female 75-79",{"$f":"'Population 2016'!C227*'Prevalence Rates'!C227","v":67.394839787234048},{"$f":"'Population 2016'!D227*'Prevalence Rates'!D227","v":69.405734770642525},{"$f":"'Population 2016'!E227*'Prevalence Rates'!E227","v":51.680767553191494},{"$f":"'Population 2016'!F227*'Prevalence Rates'!F227","v":13.149298191489359},{"$f":"'Population 2016'!G227*'Prevalence Rates'!G227","v":7.3875999999999999},{"$f":"'Population 2016'!H227*'Prevalence Rates'!H227","v":63.854185531914908},{"$f":"'Population 2016'!I227*'Prevalence Rates'!I227","v":13.701430319148937},{"$f":"'Population 2016'!J227*'Prevalence Rates'!J227","v":37.848799999999997},{"$f":"'Population 2016'!K227*'Prevalence Rates'!K227","v":8.2983999999999991},{"$f":"'Population 2016'!L227*'Prevalence Rates'!L227","v":21.605231063829784},{"$f":"'Population 2016'!M227*'Prevalence Rates'!M227","v":21.605231063829784},{"$f":"'Population 2016'!N227*'Prevalence Rates'!N227","v":33.073801808510638},{"$f":"'Population 2016'!O227*'Prevalence Rates'!O227","v":12.499222765957446},{"$f":"'Population 2016'!P227*'Prevalence Rates'!P227","v":58.757904255319147},{"$f":"'Population 2016'!Q227*'Prevalence Rates'!Q227","v":22.164764787234049},{"$f":"'Population 2016'!R227*'Prevalence Rates'!R227","v":24.611786170212767},{"$f":"'Population 2016'!S227*'Prevalence Rates'!S227","v":231.67582756308647},{"$f":"'Population 2016'!T227*'Prevalence Rates'!T227","v":143.86021404255317},{"$f":"'Population 2016'!U227*'Prevalence Rates'!U227","v":0},{"$f":"'Population 2016'!V227*'Prevalence Rates'!V227","v":15.21617361702128},{"$f":"'Population 2016'!W227*'Prevalence Rates'!W227","v":74.538160212765959},{"$f":"'Population 2016'!X227*'Prevalence Rates'!X227","v":74.538160212765959},{"$f":"'Population 2016'!Y227*'Prevalence Rates'!Y227","v":44.76983031914893},{"$f":"'Population 2016'!Z227*'Prevalence Rates'!Z227","v":45.553511276595742},{"$f":"'Population 2016'!AA227*'Prevalence Rates'!AA227","v":116.25936414984568},{"$f":"'Population 2016'!AB227*'Prevalence Rates'!AB227","v":142.16769787234043},{"$f":"'Population 2016'!AC227*'Prevalence Rates'!AC227","v":238.57630851063826},{"$f":"'Population 2016'!AD227*'Prevalence Rates'!AD227","v":29.146730425531914},{"$f":"'Population 2016'!AE227*'Prevalence Rates'!AE227","v":21.864582978723405},{"$f":"'Population 2016'!AF227*'Prevalence Rates'!AF227","v":12.903},{"$f":"'Population 2016'!AG227*'Prevalence Rates'!AG227","v":11.681063829787236},{"$f":"'Population 2016'!AH227*'Prevalence Rates'!AH227","v":72.920844255319153},{"$f":"'Population 2016'!AI227*'Prevalence Rates'!AI227","v":217.98240457446806},{"$f":"'Population 2016'!AJ227*'Prevalence Rates'!AJ227","v":11.587400000000001},{"$f":"'Population 2016'!AK227*'Prevalence Rates'!AK227","v":19.95917},{"$f":"'Population 2016'!AL227*'Prevalence Rates'!AL227","v":14.733912553191489},{"$f":"'Population 2016'!AM227*'Prevalence Rates'!AM227","v":30.06802723404255},{"$f":"'Population 2016'!AN227*'Prevalence Rates'!AN227","v":1.1637999999999999},{"$f":"'Population 2016'!AO227*'Prevalence Rates'!AO227","v":1.1637999999999999},{"$f":"'Population 2016'!AP227*'Prevalence Rates'!AP227","v":30.921202446808508},{"$f":"'Population 2016'!AQ227*'Prevalence Rates'!AQ227","v":31.42146957446808},{"$f":"'Population 2016'!AR227*'Prevalence Rates'!AR227","v":1026.674},{"$f":"'Population 2016'!AS227*'Prevalence Rates'!AS227","v":13.701430319148937},{"$f":"'Population 2016'!AT227*'Prevalence Rates'!AT227","v":0},{"$f":"'Population 2016'!AU227*'Prevalence Rates'!AU227","v":0},{"$f":"'Population 2016'!AV227*'Prevalence Rates'!AV227","v":37.311148085106375},{"$f":"'Population 2016'!AW227*'Prevalence Rates'!AW227","v":38.475163404255319},{"$f":"'Population 2016'!AX227*'Prevalence Rates'!AX227","v":29.5504},{"$f":"'Population 2016'!AY227*'Prevalence Rates'!AY227","v":92.607911501293259},{"$f":"'Population 2016'!AZ227*'Prevalence Rates'!AZ227","v":80.819127446808523},{"$f":"'Population 2016'!BA227*'Prevalence Rates'!BA227","v":2.2266960638297872},{"$f":"'Population 2016'!BB227*'Prevalence Rates'!BB227","v":20.591831489361699},{"$f":"'Population 2016'!BC227*'Prevalence Rates'!BC227","v":0},225]
[null,"Female 80-84",{"$f":"'Population 2016'!C228*'Prevalence Rates'!C228","v":52.597569574468089},{"$f":"'Population 2016'!D228*'Prevalence Rates'!D228","v":53.170617091775441},{"$f":"'Population 2016'!E228*'Prevalence Rates'!E228","v":38.770096808510644},{"$f":"'Population 2016'!F228*'Prevalence Rates'!F228","v":10.371277446808509},{"$f":"'Population 2016'!G228*'Prevalence Rates'!G228","v":6.1731999999999996},{"$f":"'Population 2016'!H228*'Prevalence Rates'!H228","v":47.685978297872353},{"$f":"'Population 2016'!I228*'Prevalence Rates'!I228","v":8.2208581914893628},{"$f":"'Population 2016'!J228*'Prevalence Rates'!J228","v":26.008399999999998},{"$f":"'Population 2016'!K228*'Prevalence Rates'!K228","v":5.2118000000000002},{"$f":"'Population 2016'!L228*'Prevalence Rates'!L228","v":17.452693617021275},{"$f":"'Population 2016'!M228*'Prevalence Rates'!M228","v":17.452693617021275},{"$f":"'Population 2016'!N228*'Prevalence Rates'!N228","v":26.564246382978723},{"$f":"'Population 2016'!O228*'Prevalence Rates'!O228","v":10.020038085106382},{"$f":"'Population 2016'!P228*'Prevalence Rates'!P228","v":43.339707446808504},{"$f":"'Population 2016'!Q228*'Prevalence Rates'!Q228","v":15.783135851063834},{"$f":"'Population 2016'!R228*'Prevalence Rates'!R228","v":20.465950531914896},{"$f":"'Population 2016'!S228*'Prevalence Rates'!S228","v":181.47279575476335},{"$f":"'Population 2016'!T228*'Prevalence Rates'!T228","v":121.33761574468085},{"$f":"'Population 2016'!U228*'Prevalence Rates'!U228","v":0},{"$f":"'Population 2016'!V228*'Prevalence Rates'!V228","v":10.009756595744683},{"$f":"'Population 2016'!W228*'Prevalence Rates'!W228","v":54.925600212765957},{"$f":"'Population 2016'!X228*'Prevalence Rates'!X228","v":54.925600212765957},{"$f":"'Population 2016'!Y228*'Prevalence Rates'!Y228","v":30.269027659574466},{"$f":"'Population 2016'!Z228*'Prevalence Rates'!Z228","v":38.73890244680851},{"$f":"'Population 2016'!AA228*'Prevalence Rates'!AA228","v":88.81900112528983},{"$f":"'Population 2016'!AB228*'Prevalence Rates'!AB228","v":109.73094468085107},{"$f":"'Population 2016'!AC228*'Prevalence Rates'!AC228","v":185.55935106382975},{"$f":"'Population 2016'!AD228*'Prevalence Rates'!AD228","v":24.866104999999997},{"$f":"'Population 2016'!AE228*'Prevalence Rates'!AE228","v":18.775022340425529},{"$f":"'Population 2016'!AF228*'Prevalence Rates'!AF228","v":9.4116},{"$f":"'Population 2016'!AG228*'Prevalence Rates'!AG228","v":10.030478723404256},{"$f":"'Population 2016'!AH228*'Prevalence Rates'!AH228","v":52.271737872340431},{"$f":"'Population 2016'!AI228*'Prevalence Rates'!AI228","v":176.03263606382976},{"$f":"'Population 2016'!AJ228*'Prevalence Rates'!AJ228","v":7.7923999999999998},{"$f":"'Population 2016'!AK228*'Prevalence Rates'!AK228","v":16.426025000000003},{"$f":"'Population 2016'!AL228*'Prevalence Rates'!AL228","v":11.569582340425532},{"$f":"'Population 2016'!AM228*'Prevalence Rates'!AM228","v":19.140526595744678},{"$f":"'Population 2016'!AN228*'Prevalence Rates'!AN228","v":1.3662000000000001},{"$f":"'Population 2016'!AO228*'Prevalence Rates'!AO228","v":1.3662000000000001},{"$f":"'Population 2016'!AP228*'Prevalence Rates'!AP228","v":23.834268723404254},{"$f":"'Population 2016'!AQ228*'Prevalence Rates'!AQ228","v":22.293444893617018},{"$f":"'Population 2016'!AR228*'Prevalence Rates'!AR228","v":791.38400000000001},{"$f":"'Population 2016'!AS228*'Prevalence Rates'!AS228","v":8.2208581914893628},{"$f":"'Population 2016'!AT228*'Prevalence Rates'!AT228","v":0},{"$f":"'Population 2016'!AU228*'Prevalence Rates'!AU228","v":0},{"$f":"'Population 2016'!AV228*'Prevalence Rates'!AV228","v":26.560478297872333},{"$f":"'Population 2016'!AW228*'Prevalence Rates'!AW228","v":29.239210000000003},{"$f":"'Population 2016'!AX228*'Prevalence Rates'!AX228","v":20.796599999999998},{"$f":"'Population 2016'!AY228*'Prevalence Rates'!AY228","v":70.710900650987469},{"$f":"'Population 2016'!AZ228*'Prevalence Rates'!AZ228","v":63.439157872340431},{"$f":"'Population 2016'!BA228*'Prevalence Rates'!BA228","v":1.4844640425531916},{"$f":"'Population 2016'!BB228*'Prevalence Rates'!BB228","v":13.019702978723402},{"$f":"'Population 2016'!BC228*'Prevalence Rates'!BC228","v":0},226]
[null,"Female 85-89",{"$f":"'Population 2016'!C229*'Prevalence Rates'!C229","v":38.562582978723405},{"$f":"'Population 2016'!D229*'Prevalence Rates'!D229","v":36.547215582023647},{"$f":"'Population 2016'!E229*'Prevalence Rates'!E229","v":24.60263510638298},{"$f":"'Population 2016'!F229*'Prevalence Rates'!F229","v":6.6937071276595734},{"$f":"'Population 2016'!G229*'Prevalence Rates'!G229","v":3.5419999999999998},{"$f":"'Population 2016'!H229*'Prevalence Rates'!H229","v":28.294362659574475},{"$f":"'Population 2016'!I229*'Prevalence Rates'!I229","v":4.3430948936170211},{"$f":"'Population 2016'!J229*'Prevalence Rates'!J229","v":14.572799999999999},{"$f":"'Population 2016'!K229*'Prevalence Rates'!K229","v":2.2770000000000001},{"$f":"'Population 2016'!L229*'Prevalence Rates'!L229","v":9.3883455319148919},{"$f":"'Population 2016'!M229*'Prevalence Rates'!M229","v":9.3883455319148919},{"$f":"'Population 2016'!N229*'Prevalence Rates'!N229","v":17.293061382978724},{"$f":"'Population 2016'!O229*'Prevalence Rates'!O229","v":6.0946623404255318},{"$f":"'Population 2016'!P229*'Prevalence Rates'!P229","v":25.275103723404253},{"$f":"'Population 2016'!Q229*'Prevalence Rates'!Q229","v":10.370147021276598},{"$f":"'Population 2016'!R229*'Prevalence Rates'!R229","v":14.214293617021278},{"$f":"'Population 2016'!S229*'Prevalence Rates'!S229","v":120.89783198030176},{"$f":"'Population 2016'!T229*'Prevalence Rates'!T229","v":84.709567659574461},{"$f":"'Population 2016'!U229*'Prevalence Rates'!U229","v":0},{"$f":"'Population 2016'!V229*'Prevalence Rates'!V229","v":5.4079557446808524},{"$f":"'Population 2016'!W229*'Prevalence Rates'!W229","v":34.009013617021274},{"$f":"'Population 2016'!X229*'Prevalence Rates'!X229","v":34.009013617021274},{"$f":"'Population 2016'!Y229*'Prevalence Rates'!Y229","v":16.737430319148935},{"$f":"'Population 2016'!Z229*'Prevalence Rates'!Z229","v":25.969185},{"$f":"'Population 2016'!AA229*'Prevalence Rates'!AA229","v":54.433328825885233},{"$f":"'Population 2016'!AB229*'Prevalence Rates'!AB229","v":74.434753191489364},{"$f":"'Population 2016'!AC229*'Prevalence Rates'!AC229","v":118.24251063829786},{"$f":"'Population 2016'!AD229*'Prevalence Rates'!AD229","v":14.910043617021275},{"$f":"'Population 2016'!AE229*'Prevalence Rates'!AE229","v":11.407608510638298},{"$f":"'Population 2016'!AF229*'Prevalence Rates'!AF229","v":6.6791999999999998},{"$f":"'Population 2016'!AG229*'Prevalence Rates'!AG229","v":6.0944680851063833},{"$f":"'Population 2016'!AH229*'Prevalence Rates'!AH229","v":27.315817872340428},{"$f":"'Population 2016'!AI229*'Prevalence Rates'!AI229","v":120.5595869148936},{"$f":"'Population 2016'!AJ229*'Prevalence Rates'!AJ229","v":3.1877999999999997},{"$f":"'Population 2016'!AK229*'Prevalence Rates'!AK229","v":9.9176000000000002},{"$f":"'Population 2016'!AL229*'Prevalence Rates'!AL229","v":6.5758737234042552},{"$f":"'Population 2016'!AM229*'Prevalence Rates'!AM229","v":8.561035531914893},{"$f":"'Population 2016'!AN229*'Prevalence Rates'!AN229","v":0.70840000000000003},{"$f":"'Population 2016'!AO229*'Prevalence Rates'!AO229","v":0.70840000000000003},{"$f":"'Population 2016'!AP229*'Prevalence Rates'!AP229","v":15.361621702127659},{"$f":"'Population 2016'!AQ229*'Prevalence Rates'!AQ229","v":12.872855319148934},{"$f":"'Population 2016'!AR229*'Prevalence Rates'!AR229","v":504.17840000000001},{"$f":"'Population 2016'!AS229*'Prevalence Rates'!AS229","v":4.3430948936170211},{"$f":"'Population 2016'!AT229*'Prevalence Rates'!AT229","v":0},{"$f":"'Population 2016'!AU229*'Prevalence Rates'!AU229","v":0},{"$f":"'Population 2016'!AV229*'Prevalence Rates'!AV229","v":15.915207234042549},{"$f":"'Population 2016'!AW229*'Prevalence Rates'!AW229","v":16.270591489361703},{"$f":"'Population 2016'!AX229*'Prevalence Rates'!AX229","v":12.2958},{"$f":"'Population 2016'!AY229*'Prevalence Rates'!AY229","v":44.890314733960224},{"$f":"'Population 2016'!AZ229*'Prevalence Rates'!AZ229","v":41.022173617021281},{"$f":"'Population 2016'!BA229*'Prevalence Rates'!BA229","v":0.67475638297872342},{"$f":"'Population 2016'!BB229*'Prevalence Rates'!BB229","v":9.3698280851063824},{"$f":"'Population 2016'!BC229*'Prevalence Rates'!BC229","v":0},227]
[null,"Female 90+",{"$f":"'Population 2016'!C230*'Prevalence Rates'!C230","v":23.496271489361703},{"$f":"'Population 2016'!D230*'Prevalence Rates'!D230","v":22.787407325046619},{"$f":"'Population 2016'!E230*'Prevalence Rates'!E230","v":15.80509840425532},{"$f":"'Population 2016'!F230*'Prevalence Rates'!F230","v":3.4129969148936166},{"$f":"'Population 2016'!G230*'Prevalence Rates'!G230","v":2.2263999999999999},{"$f":"'Population 2016'!H230*'Prevalence Rates'!H230","v":18.419476595744687},{"$f":"'Population 2016'!I230*'Prevalence Rates'!I230","v":3.5675422340425533},{"$f":"'Population 2016'!J230*'Prevalence Rates'!J230","v":8.1972000000000005},{"$f":"'Population 2016'!K230*'Prevalence Rates'!K230","v":0.91079999999999994},{"$f":"'Population 2016'!L230*'Prevalence Rates'!L230","v":5.4765348936170204},{"$f":"'Population 2016'!M230*'Prevalence Rates'!M230","v":5.4765348936170204},{"$f":"'Population 2016'!N230*'Prevalence Rates'!N230","v":7.693110957446808},{"$f":"'Population 2016'!O230*'Prevalence Rates'!O230","v":2.7374330851063826},{"$f":"'Population 2016'!P230*'Prevalence Rates'!P230","v":14.957952127659572},{"$f":"'Population 2016'!Q230*'Prevalence Rates'!Q230","v":6.4955865957446823},{"$f":"'Population 2016'!R230*'Prevalence Rates'!R230","v":7.8090872340425532},{"$f":"'Population 2016'!S230*'Prevalence Rates'!S230","v":76.925162082193793},{"$f":"'Population 2016'!T230*'Prevalence Rates'!T230","v":52.578352340425525},{"$f":"'Population 2016'!U230*'Prevalence Rates'!U230","v":0},{"$f":"'Population 2016'!V230*'Prevalence Rates'!V230","v":4.1315438297872351},{"$f":"'Population 2016'!W230*'Prevalence Rates'!W230","v":22.533579574468085},{"$f":"'Population 2016'!X230*'Prevalence Rates'!X230","v":22.533579574468085},{"$f":"'Population 2016'!Y230*'Prevalence Rates'!Y230","v":10.623981382978723},{"$f":"'Population 2016'!Z230*'Prevalence Rates'!Z230","v":16.944432765957448},{"$f":"'Population 2016'!AA230*'Prevalence Rates'!AA230","v":30.934322291657672},{"$f":"'Population 2016'!AB230*'Prevalence Rates'!AB230","v":46.55522978723404},{"$f":"'Population 2016'!AC230*'Prevalence Rates'!AC230","v":68.842914893617007},{"$f":"'Population 2016'!AD230*'Prevalence Rates'!AD230","v":8.3688631914893605},{"$f":"'Population 2016'!AE230*'Prevalence Rates'!AE230","v":6.1791212765957448},{"$f":"'Population 2016'!AF230*'Prevalence Rates'!AF230","v":4.5540000000000003},{"$f":"'Population 2016'!AG230*'Prevalence Rates'!AG230","v":3.3011702127659577},{"$f":"'Population 2016'!AH230*'Prevalence Rates'!AH230","v":13.80540255319149},{"$f":"'Population 2016'!AI230*'Prevalence Rates'!AI230","v":75.205999468085096},{"$f":"'Population 2016'!AJ230*'Prevalence Rates'!AJ230","v":2.3275999999999999},{"$f":"'Population 2016'!AK230*'Prevalence Rates'!AK230","v":6.3844550000000009},{"$f":"'Population 2016'!AL230*'Prevalence Rates'!AL230","v":3.60931414893617},{"$f":"'Population 2016'!AM230*'Prevalence Rates'!AM230","v":4.5937263829787227},{"$f":"'Population 2016'!AN230*'Prevalence Rates'!AN230","v":0.35420000000000001},{"$f":"'Population 2016'!AO230*'Prevalence Rates'!AO230","v":0.35420000000000001},{"$f":"'Population 2016'!AP230*'Prevalence Rates'!AP230","v":10.45223744680851},{"$f":"'Population 2016'!AQ230*'Prevalence Rates'!AQ230","v":5.7927848936170205},{"$f":"'Population 2016'!AR230*'Prevalence Rates'!AR230","v":306.48419999999999},{"$f":"'Population 2016'!AS230*'Prevalence Rates'!AS230","v":3.5675422340425533},{"$f":"'Population 2016'!AT230*'Prevalence Rates'!AT230","v":0},{"$f":"'Population 2016'!AU230*'Prevalence Rates'!AU230","v":0},{"$f":"'Population 2016'!AV230*'Prevalence Rates'!AV230","v":12.331650638297869},{"$f":"'Population 2016'!AW230*'Prevalence Rates'!AW230","v":8.0395863829787242},{"$f":"'Population 2016'!AX230*'Prevalence Rates'!AX230","v":7.2863999999999995},{"$f":"'Population 2016'!AY230*'Prevalence Rates'!AY230","v":27.176527300379519},{"$f":"'Population 2016'!AZ230*'Prevalence Rates'!AZ230","v":23.143040425531918},{"$f":"'Population 2016'!BA230*'Prevalence Rates'!BA230","v":0.4723294680851064},{"$f":"'Population 2016'!BB230*'Prevalence Rates'!BB230","v":5.8289046808510632},{"$f":"'Population 2016'!BC230*'Prevalence Rates'!BC230","v":0},228]
[null,"Male 0-4",{"$f":"'Population 2016'!C231*'Prevalence Rates'!C231","v":0},{"$f":"'Population 2016'!D231*'Prevalence Rates'!D231","v":0},{"$f":"'Population 2016'!E231*'Prevalence Rates'!E231","v":0},{"$f":"'Population 2016'!F231*'Prevalence Rates'!F231","v":0},{"$f":"'Population 2016'!G231*'Prevalence Rates'!G231","v":0},{"$f":"'Population 2016'!H231*'Prevalence Rates'!H231","v":0},{"$f":"'Population 2016'!I231*'Prevalence Rates'!I231","v":0},{"$f":"'Population 2016'!J231*'Prevalence Rates'!J231","v":0},{"$f":"'Population 2016'!K231*'Prevalence Rates'!K231","v":0},{"$f":"'Population 2016'!L231*'Prevalence Rates'!L231","v":0},{"$f":"'Population 2016'!M231*'Prevalence Rates'!M231","v":0},{"$f":"'Population 2016'!N231*'Prevalence Rates'!N231","v":0},{"$f":"'Population 2016'!O231*'Prevalence Rates'!O231","v":0},{"$f":"'Population 2016'!P231*'Prevalence Rates'!P231","v":0},{"$f":"'Population 2016'!Q231*'Prevalence Rates'!Q231","v":0},{"$f":"'Population 2016'!R231*'Prevalence Rates'!R231","v":0},{"$f":"'Population 2016'!S231*'Prevalence Rates'!S231","v":0},{"$f":"'Population 2016'!T231*'Prevalence Rates'!T231","v":0},{"$f":"'Population 2016'!U231*'Prevalence Rates'!U231","v":0},{"$f":"'Population 2016'!V231*'Prevalence Rates'!V231","v":0},{"$f":"'Population 2016'!W231*'Prevalence Rates'!W231","v":0},{"$f":"'Population 2016'!X231*'Prevalence Rates'!X231","v":0},{"$f":"'Population 2016'!Y231*'Prevalence Rates'!Y231","v":0},{"$f":"'Population 2016'!Z231*'Prevalence Rates'!Z231","v":0},{"$f":"'Population 2016'!AA231*'Prevalence Rates'!AA231","v":0},{"$f":"'Population 2016'!AB231*'Prevalence Rates'!AB231","v":0},{"$f":"'Population 2016'!AC231*'Prevalence Rates'!AC231","v":0},{"$f":"'Population 2016'!AD231*'Prevalence Rates'!AD231","v":0},{"$f":"'Population 2016'!AE231*'Prevalence Rates'!AE231","v":0},{"$f":"'Population 2016'!AF231*'Prevalence Rates'!AF231","v":0},{"$f":"'Population 2016'!AG231*'Prevalence Rates'!AG231","v":0},{"$f":"'Population 2016'!AH231*'Prevalence Rates'!AH231","v":0},{"$f":"'Population 2016'!AI231*'Prevalence Rates'!AI231","v":0},{"$f":"'Population 2016'!AJ231*'Prevalence Rates'!AJ231","v":0},{"$f":"'Population 2016'!AK231*'Prevalence Rates'!AK231","v":0},{"$f":"'Population 2016'!AL231*'Prevalence Rates'!AL231","v":0},{"$f":"'Population 2016'!AM231*'Prevalence Rates'!AM231","v":0},{"$f":"'Population 2016'!AN231*'Prevalence Rates'!AN231","v":0},{"$f":"'Population 2016'!AO231*'Prevalence Rates'!AO231","v":0},{"$f":"'Population 2016'!AP231*'Prevalence Rates'!AP231","v":0},{"$f":"'Population 2016'!AQ231*'Prevalence Rates'!AQ231","v":0},{"$f":"'Population 2016'!AR231*'Prevalence Rates'!AR231","v":0},{"$f":"'Population 2016'!AS231*'Prevalence Rates'!AS231","v":0},{"$f":"'Population 2016'!AT231*'Prevalence Rates'!AT231","v":0},{"$f":"'Population 2016'!AU231*'Prevalence Rates'!AU231","v":0},{"$f":"'Population 2016'!AV231*'Prevalence Rates'!AV231","v":0},{"$f":"'Population 2016'!AW231*'Prevalence Rates'!AW231","v":0},{"$f":"'Population 2016'!AX231*'Prevalence Rates'!AX231","v":0},{"$f":"'Population 2016'!AY231*'Prevalence Rates'!AY231","v":0},{"$f":"'Population 2016'!AZ231*'Prevalence Rates'!AZ231","v":0},{"$f":"'Population 2016'!BA231*'Prevalence Rates'!BA231","v":0},{"$f":"'Population 2016'!BB231*'Prevalence Rates'!BB231","v":0},{"$f":"'Population 2016'!BC231*'Prevalence Rates'!BC231","v":0},229]
[null,"Male 5-9",{"$f":"'Population 2016'!C232*'Prevalence Rates'!C232","v":0},{"$f":"'Population 2016'!D232*'Prevalence Rates'!D232","v":0},{"$f":"'Population 2016'!E232*'Prevalence Rates'!E232","v":0},{"$f":"'Population 2016'!F232*'Prevalence Rates'!F232","v":0},{"$f":"'Population 2016'!G232*'Prevalence Rates'!G232","v":0},{"$f":"'Population 2016'!H232*'Prevalence Rates'!H232","v":0},{"$f":"'Population 2016'!I232*'Prevalence Rates'!I232","v":0},{"$f":"'Population 2016'!J232*'Prevalence Rates'!J232","v":0},{"$f":"'Population 2016'!K232*'Prevalence Rates'!K232","v":0},{"$f":"'Population 2016'!L232*'Prevalence Rates'!L232","v":0},{"$f":"'Population 2016'!M232*'Prevalence Rates'!M232","v":0},{"$f":"'Population 2016'!N232*'Prevalence Rates'!N232","v":0},{"$f":"'Population 2016'!O232*'Prevalence Rates'!O232","v":0},{"$f":"'Population 2016'!P232*'Prevalence Rates'!P232","v":0},{"$f":"'Population 2016'!Q232*'Prevalence Rates'!Q232","v":0},{"$f":"'Population 2016'!R232*'Prevalence Rates'!R232","v":0},{"$f":"'Population 2016'!S232*'Prevalence Rates'!S232","v":0},{"$f":"'Population 2016'!T232*'Prevalence Rates'!T232","v":0},{"$f":"'Population 2016'!U232*'Prevalence Rates'!U232","v":0},{"$f":"'Population 2016'!V232*'Prevalence Rates'!V232","v":0},{"$f":"'Population 2016'!W232*'Prevalence Rates'!W232","v":0},{"$f":"'Population 2016'!X232*'Prevalence Rates'!X232","v":0},{"$f":"'Population 2016'!Y232*'Prevalence Rates'!Y232","v":0},{"$f":"'Population 2016'!Z232*'Prevalence Rates'!Z232","v":0},{"$f":"'Population 2016'!AA232*'Prevalence Rates'!AA232","v":0},{"$f":"'Population 2016'!AB232*'Prevalence Rates'!AB232","v":0},{"$f":"'Population 2016'!AC232*'Prevalence Rates'!AC232","v":0},{"$f":"'Population 2016'!AD232*'Prevalence Rates'!AD232","v":0},{"$f":"'Population 2016'!AE232*'Prevalence Rates'!AE232","v":0},{"$f":"'Population 2016'!AF232*'Prevalence Rates'!AF232","v":0},{"$f":"'Population 2016'!AG232*'Prevalence Rates'!AG232","v":0},{"$f":"'Population 2016'!AH232*'Prevalence Rates'!AH232","v":0},{"$f":"'Population 2016'!AI232*'Prevalence Rates'!AI232","v":0},{"$f":"'Population 2016'!AJ232*'Prevalence Rates'!AJ232","v":0},{"$f":"'Population 2016'!AK232*'Prevalence Rates'!AK232","v":0},{"$f":"'Population 2016'!AL232*'Prevalence Rates'!AL232","v":0},{"$f":"'Population 2016'!AM232*'Prevalence Rates'!AM232","v":0},{"$f":"'Population 2016'!AN232*'Prevalence Rates'!AN232","v":0},{"$f":"'Population 2016'!AO232*'Prevalence Rates'!AO232","v":0},{"$f":"'Population 2016'!AP232*'Prevalence Rates'!AP232","v":0},{"$f":"'Population 2016'!AQ232*'Prevalence Rates'!AQ232","v":0},{"$f":"'Population 2016'!AR232*'Prevalence Rates'!AR232","v":0},{"$f":"'Population 2016'!AS232*'Prevalence Rates'!AS232","v":0},{"$f":"'Population 2016'!AT232*'Prevalence Rates'!AT232","v":0},{"$f":"'Population 2016'!AU232*'Prevalence Rates'!AU232","v":0},{"$f":"'Population 2016'!AV232*'Prevalence Rates'!AV232","v":0},{"$f":"'Population 2016'!AW232*'Prevalence Rates'!AW232","v":0},{"$f":"'Population 2016'!AX232*'Prevalence Rates'!AX232","v":0},{"$f":"'Population 2016'!AY232*'Prevalence Rates'!AY232","v":0},{"$f":"'Population 2016'!AZ232*'Prevalence Rates'!AZ232","v":0},{"$f":"'Population 2016'!BA232*'Prevalence Rates'!BA232","v":0},{"$f":"'Population 2016'!BB232*'Prevalence Rates'!BB232","v":0},{"$f":"'Population 2016'!BC232*'Prevalence Rates'!BC232","v":0},230]
[null,"Male 10-15",{"$f":"'Population 2016'!C233*'Prevalence Rates'!C233","v":0},{"$f":"'Population 2016'!D233*'Prevalence Rates'!D233","v":0},{"$f":"'Population 2016'!E233*'Prevalence Rates'!E233","v":0},{"$f":"'Population 2016'!F233*'Prevalence Rates'!F233","v":0},{"$f":"'Population 2016'!G233*'Prevalence Rates'!G233","v":0},{"$f":"'Population 2016'!H233*'Prevalence Rates'!H233","v":0},{"$f":"'Population 2016'!I233*'Prevalence Rates'!I233","v":0},{"$f":"'Population 2016'!J233*'Prevalence Rates'!J233","v":0},{"$f":"'Population 2016'!K233*'Prevalence Rates'!K233","v":0},{"$f":"'Population 2016'!L233*'Prevalence Rates'!L233","v":0},{"$f":"'Population 2016'!M233*'Prevalence Rates'!M233","v":0},{"$f":"'Population 2016'!N233*'Prevalence Rates'!N233","v":0},{"$f":"'Population 2016'!O233*'Prevalence Rates'!O233","v":0},{"$f":"'Population 2016'!P233*'Prevalence Rates'!P233","v":0},{"$f":"'Population 2016'!Q233*'Prevalence Rates'!Q233","v":0},{"$f":"'Population 2016'!R233*'Prevalence Rates'!R233","v":0},{"$f":"'Population 2016'!S233*'Prevalence Rates'!S233","v":0},{"$f":"'Population 2016'!T233*'Prevalence Rates'!T233","v":0},{"$f":"'Population 2016'!U233*'Prevalence Rates'!U233","v":0},{"$f":"'Population 2016'!V233*'Prevalence Rates'!V233","v":0},{"$f":"'Population 2016'!W233*'Prevalence Rates'!W233","v":0},{"$f":"'Population 2016'!X233*'Prevalence Rates'!X233","v":0},{"$f":"'Population 2016'!Y233*'Prevalence Rates'!Y233","v":0},{"$f":"'Population 2016'!Z233*'Prevalence Rates'!Z233","v":0},{"$f":"'Population 2016'!AA233*'Prevalence Rates'!AA233","v":0},{"$f":"'Population 2016'!AB233*'Prevalence Rates'!AB233","v":0},{"$f":"'Population 2016'!AC233*'Prevalence Rates'!AC233","v":0},{"$f":"'Population 2016'!AD233*'Prevalence Rates'!AD233","v":0},{"$f":"'Population 2016'!AE233*'Prevalence Rates'!AE233","v":0},{"$f":"'Population 2016'!AF233*'Prevalence Rates'!AF233","v":0},{"$f":"'Population 2016'!AG233*'Prevalence Rates'!AG233","v":0},{"$f":"'Population 2016'!AH233*'Prevalence Rates'!AH233","v":0},{"$f":"'Population 2016'!AI233*'Prevalence Rates'!AI233","v":0},{"$f":"'Population 2016'!AJ233*'Prevalence Rates'!AJ233","v":0},{"$f":"'Population 2016'!AK233*'Prevalence Rates'!AK233","v":0},{"$f":"'Population 2016'!AL233*'Prevalence Rates'!AL233","v":0},{"$f":"'Population 2016'!AM233*'Prevalence Rates'!AM233","v":0},{"$f":"'Population 2016'!AN233*'Prevalence Rates'!AN233","v":0},{"$f":"'Population 2016'!AO233*'Prevalence Rates'!AO233","v":0},{"$f":"'Population 2016'!AP233*'Prevalence Rates'!AP233","v":0},{"$f":"'Population 2016'!AQ233*'Prevalence Rates'!AQ233","v":0},{"$f":"'Population 2016'!AR233*'Prevalence Rates'!AR233","v":0},{"$f":"'Population 2016'!AS233*'Prevalence Rates'!AS233","v":0},{"$f":"'Population 2016'!AT233*'Prevalence Rates'!AT233","v":0},{"$f":"'Population 2016'!AU233*'Prevalence Rates'!AU233","v":0},{"$f":"'Population 2016'!AV233*'Prevalence Rates'!AV233","v":0},{"$f":"'Population 2016'!AW233*'Prevalence Rates'!AW233","v":0},{"$f":"'Population 2016'!AX233*'Prevalence Rates'!AX233","v":0},{"$f":"'Population 2016'!AY233*'Prevalence Rates'!AY233","v":0},{"$f":"'Population 2016'!AZ233*'Prevalence Rates'!AZ233","v":0},{"$f":"'Population 2016'!BA233*'Prevalence Rates'!BA233","v":0},{"$f":"'Population 2016'!BB233*'Prevalence Rates'!BB233","v":0},{"$f":"'Population 2016'!BC233*'Prevalence Rates'!BC233","v":0},231]
[null,"Male 16-19",{"$f":"'Population 2016'!C234*'Prevalence Rates'!C234","v":280.09574708737858},{"$f":"'Population 2016'!D234*'Prevalence Rates'!D234","v":217.0693039621512},{"$f":"'Population 2016'!E234*'Prevalence Rates'!E234","v":286.19527956751989},{"$f":"'Population 2016'!F234*'Prevalence Rates'!F234","v":78.48147400706091},{"$f":"'Population 2016'!G234*'Prevalence Rates'!G234","v":45.393599999999999},{"$f":"'Population 2016'!H234*'Prevalence Rates'!H234","v":162.30691019417475},{"$f":"'Population 2016'!I234*'Prevalence Rates'!I234","v":29.055920035304503},{"$f":"'Population 2016'!J234*'Prevalence Rates'!J234","v":161.5796},{"$f":"'Population 2016'!K234*'Prevalence Rates'!K234","v":21.210699999999999},{"$f":"'Population 2016'!L234*'Prevalence Rates'!L234","v":39.777887687555165},{"$f":"'Population 2016'!M234*'Prevalence Rates'!M234","v":39.777887687555165},{"$f":"'Population 2016'!N234*'Prevalence Rates'!N234","v":97.716291791703441},{"$f":"'Population 2016'!O234*'Prevalence Rates'!O234","v":46.194899205648724},{"$f":"'Population 2016'!P234*'Prevalence Rates'!P234","v":169.68083036187113},{"$f":"'Population 2016'!Q234*'Prevalence Rates'!Q234","v":46.036785701676962},{"$f":"'Population 2016'!R234*'Prevalence Rates'!R234","v":116.56292065313328},{"$f":"'Population 2016'!S234*'Prevalence Rates'!S234","v":717.74085554023702},{"$f":"'Population 2016'!T234*'Prevalence Rates'!T234","v":570.82909885260369},{"$f":"'Population 2016'!U234*'Prevalence Rates'!U234","v":0},{"$f":"'Population 2016'!V234*'Prevalence Rates'!V234","v":89.108048896734331},{"$f":"'Population 2016'!W234*'Prevalence Rates'!W234","v":322.46211738746695},{"$f":"'Population 2016'!X234*'Prevalence Rates'!X234","v":322.46211738746695},{"$f":"'Population 2016'!Y234*'Prevalence Rates'!Y234","v":219.65614474845543},{"$f":"'Population 2016'!Z234*'Prevalence Rates'!Z234","v":208.54813451015005},{"$f":"'Population 2016'!AA234*'Prevalence Rates'!AA234","v":346.63193029699755},{"$f":"'Population 2016'!AB234*'Prevalence Rates'!AB234","v":657.57760776699024},{"$f":"'Population 2016'!AC234*'Prevalence Rates'!AC234","v":785.15875022065302},{"$f":"'Population 2016'!AD234*'Prevalence Rates'!AD234","v":119.43579293909973},{"$f":"'Population 2016'!AE234*'Prevalence Rates'!AE234","v":72.742943512797879},{"$f":"'Population 2016'!AF234*'Prevalence Rates'!AF234","v":27.695499999999999},{"$f":"'Population 2016'!AG234*'Prevalence Rates'!AG234","v":28.012810545301051},{"$f":"'Population 2016'!AH234*'Prevalence Rates'!AH234","v":249.00611297440429},{"$f":"'Population 2016'!AI234*'Prevalence Rates'!AI234","v":782.32647947925864},{"$f":"'Population 2016'!AJ234*'Prevalence Rates'!AJ234","v":47.284999999999997},{"$f":"'Population 2016'!AK234*'Prevalence Rates'!AK234","v":88.082338217122697},{"$f":"'Population 2016'!AL234*'Prevalence Rates'!AL234","v":53.781604854368936},{"$f":"'Population 2016'!AM234*'Prevalence Rates'!AM234","v":107.40909077669902},{"$f":"'Population 2016'!AN234*'Prevalence Rates'!AN234","v":4.0529999999999999},{"$f":"'Population 2016'!AO234*'Prevalence Rates'!AO234","v":4.0529999999999999},{"$f":"'Population 2016'!AP234*'Prevalence Rates'!AP234","v":68.923178817299203},{"$f":"'Population 2016'!AQ234*'Prevalence Rates'!AQ234","v":117.8170969991174},{"$f":"'Population 2016'!AR234*'Prevalence Rates'!AR234","v":3635.1356999999998},{"$f":"'Population 2016'!AS234*'Prevalence Rates'!AS234","v":29.055920035304503},{"$f":"'Population 2016'!AT234*'Prevalence Rates'!AT234","v":0},{"$f":"'Population 2016'!AU234*'Prevalence Rates'!AU234","v":0},{"$f":"'Population 2016'!AV234*'Prevalence Rates'!AV234","v":54.000650485436893},{"$f":"'Population 2016'!AW234*'Prevalence Rates'!AW234","v":141.10771694616065},{"$f":"'Population 2016'!AX234*'Prevalence Rates'!AX234","v":140.3689},{"$f":"'Population 2016'!AY234*'Prevalence Rates'!AY234","v":248.91627637634269},{"$f":"'Population 2016'!AZ234*'Prevalence Rates'!AZ234","v":243.45514849955867},{"$f":"'Population 2016'!BA234*'Prevalence Rates'!BA234","v":16.805819947043247},{"$f":"'Population 2016'!BB234*'Prevalence Rates'!BB234","v":95.186654589585174},{"$f":"'Population 2016'!BC234*'Prevalence Rates'!BC234","v":0},232]
[null,"Male 20-24",{"$f":"'Population 2016'!C235*'Prevalence Rates'!C235","v":466.21501601941742},{"$f":"'Population 2016'!D235*'Prevalence Rates'!D235","v":292.00605723685123},{"$f":"'Population 2016'!E235*'Prevalence Rates'!E235","v":309.03898442188881},{"$f":"'Population 2016'!F235*'Prevalence Rates'!F235","v":81.91406332744927},{"$f":"'Population 2016'!G235*'Prevalence Rates'!G235","v":120.239},{"$f":"'Population 2016'!H235*'Prevalence Rates'!H235","v":177.34313477493379},{"$f":"'Population 2016'!I235*'Prevalence Rates'!I235","v":23.881578111209183},{"$f":"'Population 2016'!J235*'Prevalence Rates'!J235","v":183.06049999999999},{"$f":"'Population 2016'!K235*'Prevalence Rates'!K235","v":22.156399999999998},{"$f":"'Population 2016'!L235*'Prevalence Rates'!L235","v":43.68589068843778},{"$f":"'Population 2016'!M235*'Prevalence Rates'!M235","v":43.68589068843778},{"$f":"'Population 2016'!N235*'Prevalence Rates'!N235","v":123.98906835834069},{"$f":"'Population 2016'!O235*'Prevalence Rates'!O235","v":52.381716063548105},{"$f":"'Population 2016'!P235*'Prevalence Rates'!P235","v":201.56872303618709},{"$f":"'Population 2016'!Q235*'Prevalence Rates'!Q235","v":58.451199823477488},{"$f":"'Population 2016'!R235*'Prevalence Rates'!R235","v":127.77538596646073},{"$f":"'Population 2016'!S235*'Prevalence Rates'!S235","v":1167.1166740639844},{"$f":"'Population 2016'!T235*'Prevalence Rates'!T235","v":1042.2130313327448},{"$f":"'Population 2016'!U235*'Prevalence Rates'!U235","v":0},{"$f":"'Population 2016'!V235*'Prevalence Rates'!V235","v":104.71454333627537},{"$f":"'Population 2016'!W235*'Prevalence Rates'!W235","v":528.95620723742286},{"$f":"'Population 2016'!X235*'Prevalence Rates'!X235","v":528.95620723742286},{"$f":"'Population 2016'!Y235*'Prevalence Rates'!Y235","v":252.30461584289495},{"$f":"'Population 2016'!Z235*'Prevalence Rates'!Z235","v":497.91659470432478},{"$f":"'Population 2016'!AA235*'Prevalence Rates'!AA235","v":473.91121089754245},{"$f":"'Population 2016'!AB235*'Prevalence Rates'!AB235","v":880.97267184466023},{"$f":"'Population 2016'!AC235*'Prevalence Rates'!AC235","v":1131.266587113857},{"$f":"'Population 2016'!AD235*'Prevalence Rates'!AD235","v":196.4819039717564},{"$f":"'Population 2016'!AE235*'Prevalence Rates'!AE235","v":70.405820829655781},{"$f":"'Population 2016'!AF235*'Prevalence Rates'!AF235","v":25.2637},{"$f":"'Population 2016'!AG235*'Prevalence Rates'!AG235","v":27.112800567941978},{"$f":"'Population 2016'!AH235*'Prevalence Rates'!AH235","v":289.00191350397182},{"$f":"'Population 2016'!AI235*'Prevalence Rates'!AI235","v":1296.5637623124449},{"$f":"'Population 2016'!AJ235*'Prevalence Rates'!AJ235","v":53.094299999999997},{"$f":"'Population 2016'!AK235*'Prevalence Rates'!AK235","v":114.7695367166814},{"$f":"'Population 2016'!AL235*'Prevalence Rates'!AL235","v":56.702650485436898},{"$f":"'Population 2016'!AM235*'Prevalence Rates'!AM235","v":120.72103155339805},{"$f":"'Population 2016'!AN235*'Prevalence Rates'!AN235","v":6.3497000000000003},{"$f":"'Population 2016'!AO235*'Prevalence Rates'!AO235","v":6.3497000000000003},{"$f":"'Population 2016'!AP235*'Prevalence Rates'!AP235","v":79.572767210944392},{"$f":"'Population 2016'!AQ235*'Prevalence Rates'!AQ235","v":136.53172612533101},{"$f":"'Population 2016'!AR235*'Prevalence Rates'!AR235","v":5143.1219000000001},{"$f":"'Population 2016'!AS235*'Prevalence Rates'!AS235","v":23.881578111209183},{"$f":"'Population 2016'!AT235*'Prevalence Rates'!AT235","v":0},{"$f":"'Population 2016'!AU235*'Prevalence Rates'!AU235","v":0},{"$f":"'Population 2016'!AV235*'Prevalence Rates'!AV235","v":58.803079876434239},{"$f":"'Population 2016'!AW235*'Prevalence Rates'!AW235","v":167.62118137687557},{"$f":"'Population 2016'!AX235*'Prevalence Rates'!AX235","v":160.9041},{"$f":"'Population 2016'!AY235*'Prevalence Rates'!AY235","v":356.15158106427668},{"$f":"'Population 2016'!AZ235*'Prevalence Rates'!AZ235","v":283.48684055604588},{"$f":"'Population 2016'!BA235*'Prevalence Rates'!BA235","v":21.318493821712266},{"$f":"'Population 2016'!BB235*'Prevalence Rates'!BB235","v":102.18085194174756},{"$f":"'Population 2016'!BC235*'Prevalence Rates'!BC235","v":0},233]
[null,"Male 25-29",{"$f":"'Population 2016'!C236*'Prevalence Rates'!C236","v":971.36501067961171},{"$f":"'Population 2016'!D236*'Prevalence Rates'!D236","v":517.0633349797306},{"$f":"'Population 2016'!E236*'Prevalence Rates'!E236","v":423.36097864077681},{"$f":"'Population 2016'!F236*'Prevalence Rates'!F236","v":91.420148367166846},{"$f":"'Population 2016'!G236*'Prevalence Rates'!G236","v":134.04960000000003},{"$f":"'Population 2016'!H236*'Prevalence Rates'!H236","v":176.49478120035306},{"$f":"'Population 2016'!I236*'Prevalence Rates'!I236","v":23.548367343336281},{"$f":"'Population 2016'!J236*'Prevalence Rates'!J236","v":136.36080000000001},{"$f":"'Population 2016'!K236*'Prevalence Rates'!K236","v":22.149000000000001},{"$f":"'Population 2016'!L236*'Prevalence Rates'!L236","v":51.93238861429834},{"$f":"'Population 2016'!M236*'Prevalence Rates'!M236","v":51.93238861429834},{"$f":"'Population 2016'!N236*'Prevalence Rates'!N236","v":164.27522065313329},{"$f":"'Population 2016'!O236*'Prevalence Rates'!O236","v":59.975945984112983},{"$f":"'Population 2016'!P236*'Prevalence Rates'!P236","v":232.44185136804947},{"$f":"'Population 2016'!Q236*'Prevalence Rates'!Q236","v":63.233911827007951},{"$f":"'Population 2016'!R236*'Prevalence Rates'!R236","v":127.65487202118273},{"$f":"'Population 2016'!S236*'Prevalence Rates'!S236","v":1427.7527509639342},{"$f":"'Population 2016'!T236*'Prevalence Rates'!T236","v":1456.1860432480144},{"$f":"'Population 2016'!U236*'Prevalence Rates'!U236","v":0},{"$f":"'Population 2016'!V236*'Prevalence Rates'!V236","v":146.59078384819065},{"$f":"'Population 2016'!W236*'Prevalence Rates'!W236","v":420.06110997352164},{"$f":"'Population 2016'!X236*'Prevalence Rates'!X236","v":420.06110997352164},{"$f":"'Population 2016'!Y236*'Prevalence Rates'!Y236","v":250.81135260370701},{"$f":"'Population 2016'!Z236*'Prevalence Rates'!Z236","v":752.98559417475724},{"$f":"'Population 2016'!AA236*'Prevalence Rates'!AA236","v":583.37375290750947},{"$f":"'Population 2016'!AB236*'Prevalence Rates'!AB236","v":1506.7453281553398},{"$f":"'Population 2016'!AC236*'Prevalence Rates'!AC236","v":1432.0818047661078},{"$f":"'Population 2016'!AD236*'Prevalence Rates'!AD236","v":242.33720759046778},{"$f":"'Population 2016'!AE236*'Prevalence Rates'!AE236","v":102.24544130626656},{"$f":"'Population 2016'!AF236*'Prevalence Rates'!AF236","v":38.134800000000006},{"$f":"'Population 2016'!AG236*'Prevalence Rates'!AG236","v":39.374020875705142},{"$f":"'Population 2016'!AH236*'Prevalence Rates'!AH236","v":320.5907745807591},{"$f":"'Population 2016'!AI236*'Prevalence Rates'!AI236","v":1776.9479989408653},{"$f":"'Population 2016'!AJ236*'Prevalence Rates'!AJ236","v":72.417600000000007},{"$f":"'Population 2016'!AK236*'Prevalence Rates'!AK236","v":148.44003283318628},{"$f":"'Population 2016'!AL236*'Prevalence Rates'!AL236","v":51.930943689320401},{"$f":"'Population 2016'!AM236*'Prevalence Rates'!AM236","v":144.93710970873786},{"$f":"'Population 2016'!AN236*'Prevalence Rates'!AN236","v":8.6670000000000016},{"$f":"'Population 2016'!AO236*'Prevalence Rates'!AO236","v":8.6670000000000016},{"$f":"'Population 2016'!AP236*'Prevalence Rates'!AP236","v":91.093000353045028},{"$f":"'Population 2016'!AQ236*'Prevalence Rates'!AQ236","v":152.39810732568407},{"$f":"'Population 2016'!AR236*'Prevalence Rates'!AR236","v":6602.3280000000004},{"$f":"'Population 2016'!AS236*'Prevalence Rates'!AS236","v":23.548367343336281},{"$f":"'Population 2016'!AT236*'Prevalence Rates'!AT236","v":0},{"$f":"'Population 2016'!AU236*'Prevalence Rates'!AU236","v":0},{"$f":"'Population 2016'!AV236*'Prevalence Rates'!AV236","v":55.227582524271853},{"$f":"'Population 2016'!AW236*'Prevalence Rates'!AW236","v":175.17862453662843},{"$f":"'Population 2016'!AX236*'Prevalence Rates'!AX236","v":114.21180000000001},{"$f":"'Population 2016'!AY236*'Prevalence Rates'!AY236","v":335.90765799596602},{"$f":"'Population 2016'!AZ236*'Prevalence Rates'!AZ236","v":343.02476478375991},{"$f":"'Population 2016'!BA236*'Prevalence Rates'!BA236","v":20.409140335392763},{"$f":"'Population 2016'!BB236*'Prevalence Rates'!BB236","v":128.22085763459842},{"$f":"'Population 2016'!BC236*'Prevalence Rates'!BC236","v":0},234]
[null,"Male 30-34",{"$f":"'Population 2016'!C237*'Prevalence Rates'!C237","v":840.65879708737873},{"$f":"'Population 2016'!D237*'Prevalence Rates'!D237","v":500.58658723693497},{"$f":"'Population 2016'!E237*'Prevalence Rates'!E237","v":494.59960485436903},{"$f":"'Population 2016'!F237*'Prevalence Rates'!F237","v":102.98668781994706},{"$f":"'Population 2016'!G237*'Prevalence Rates'!G237","v":63.172800000000009},{"$f":"'Population 2016'!H237*'Prevalence Rates'!H237","v":159.4663403353928},{"$f":"'Population 2016'!I237*'Prevalence Rates'!I237","v":26.243662400706096},{"$f":"'Population 2016'!J237*'Prevalence Rates'!J237","v":112.67100000000001},{"$f":"'Population 2016'!K237*'Prevalence Rates'!K237","v":22.726800000000001},{"$f":"'Population 2016'!L237*'Prevalence Rates'!L237","v":60.090350044130645},{"$f":"'Population 2016'!M237*'Prevalence Rates'!M237","v":60.090350044130645},{"$f":"'Population 2016'!N237*'Prevalence Rates'!N237","v":113.24038543689321},{"$f":"'Population 2016'!O237*'Prevalence Rates'!O237","v":64.28794210061784},{"$f":"'Population 2016'!P237*'Prevalence Rates'!P237","v":196.27316928508387},{"$f":"'Population 2016'!Q237*'Prevalence Rates'!Q237","v":68.764574669020305},{"$f":"'Population 2016'!R237*'Prevalence Rates'!R237","v":104.01096963812888},{"$f":"'Population 2016'!S237*'Prevalence Rates'!S237","v":1213.7149401216429},{"$f":"'Population 2016'!T237*'Prevalence Rates'!T237","v":1156.8570847308033},{"$f":"'Population 2016'!U237*'Prevalence Rates'!U237","v":0},{"$f":"'Population 2016'!V237*'Prevalence Rates'!V237","v":174.4017648720212},{"$f":"'Population 2016'!W237*'Prevalence Rates'!W237","v":410.15002956751988},{"$f":"'Population 2016'!X237*'Prevalence Rates'!X237","v":410.15002956751988},{"$f":"'Population 2016'!Y237*'Prevalence Rates'!Y237","v":256.07427934686677},{"$f":"'Population 2016'!Z237*'Prevalence Rates'!Z237","v":587.83933874669026},{"$f":"'Population 2016'!AA237*'Prevalence Rates'!AA237","v":490.93279609803909},{"$f":"'Population 2016'!AB237*'Prevalence Rates'!AB237","v":1431.6201087378643},{"$f":"'Population 2016'!AC237*'Prevalence Rates'!AC237","v":1171.4214185348633},{"$f":"'Population 2016'!AD237*'Prevalence Rates'!AD237","v":175.98540264783762},{"$f":"'Population 2016'!AE237*'Prevalence Rates'!AE237","v":111.19972639011475},{"$f":"'Population 2016'!AF237*'Prevalence Rates'!AF237","v":36.401400000000002},{"$f":"'Population 2016'!AG237*'Prevalence Rates'!AG237","v":42.822254883149782},{"$f":"'Population 2016'!AH237*'Prevalence Rates'!AH237","v":299.80663371579885},{"$f":"'Population 2016'!AI237*'Prevalence Rates'!AI237","v":1460.0509625772288},{"$f":"'Population 2016'!AJ237*'Prevalence Rates'!AJ237","v":73.573200000000014},{"$f":"'Population 2016'!AK237*'Prevalence Rates'!AK237","v":115.79985754633719},{"$f":"'Population 2016'!AL237*'Prevalence Rates'!AL237","v":48.256584466019426},{"$f":"'Population 2016'!AM237*'Prevalence Rates'!AM237","v":128.37818446601943},{"$f":"'Population 2016'!AN237*'Prevalence Rates'!AN237","v":7.8966000000000012},{"$f":"'Population 2016'!AO237*'Prevalence Rates'!AO237","v":7.8966000000000012},{"$f":"'Population 2016'!AP237*'Prevalence Rates'!AP237","v":96.892929214474862},{"$f":"'Population 2016'!AQ237*'Prevalence Rates'!AQ237","v":135.82430785525156},{"$f":"'Population 2016'!AR237*'Prevalence Rates'!AR237","v":5809.586400000001},{"$f":"'Population 2016'!AS237*'Prevalence Rates'!AS237","v":26.243662400706096},{"$f":"'Population 2016'!AT237*'Prevalence Rates'!AT237","v":0},{"$f":"'Population 2016'!AU237*'Prevalence Rates'!AU237","v":0},{"$f":"'Population 2016'!AV237*'Prevalence Rates'!AV237","v":41.2305092674316},{"$f":"'Population 2016'!AW237*'Prevalence Rates'!AW237","v":170.81733097969993},{"$f":"'Population 2016'!AX237*'Prevalence Rates'!AX237","v":89.944200000000009},{"$f":"'Population 2016'!AY237*'Prevalence Rates'!AY237","v":318.23310262541617},{"$f":"'Population 2016'!AZ237*'Prevalence Rates'!AZ237","v":313.2757143865843},{"$f":"'Population 2016'!BA237*'Prevalence Rates'!BA237","v":18.634432480141221},{"$f":"'Population 2016'!BB237*'Prevalence Rates'!BB237","v":117.31507387466904},{"$f":"'Population 2016'!BC237*'Prevalence Rates'!BC237","v":0},235]
[null,"Male 35-39",{"$f":"'Population 2016'!C238*'Prevalence Rates'!C238","v":474.47531844660199},{"$f":"'Population 2016'!D238*'Prevalence Rates'!D238","v":325.13590314383902},{"$f":"'Population 2016'!E238*'Prevalence Rates'!E238","v":382.01373451015013},{"$f":"'Population 2016'!F238*'Prevalence Rates'!F238","v":74.705533362753769},{"$f":"'Population 2016'!G238*'Prevalence Rates'!G238","v":38.065600000000003},{"$f":"'Population 2016'!H238*'Prevalence Rates'!H238","v":145.53570061782881},{"$f":"'Population 2016'!I238*'Prevalence Rates'!I238","v":25.574147396293036},{"$f":"'Population 2016'!J238*'Prevalence Rates'!J238","v":92.977800000000016},{"$f":"'Population 2016'!K238*'Prevalence Rates'!K238","v":19.290000000000003},{"$f":"'Population 2016'!L238*'Prevalence Rates'!L238","v":42.912616857899387},{"$f":"'Population 2016'!M238*'Prevalence Rates'!M238","v":42.912616857899387},{"$f":"'Population 2016'!N238*'Prevalence Rates'!N238","v":82.338675463371587},{"$f":"'Population 2016'!O238*'Prevalence Rates'!O238","v":50.254110503089152},{"$f":"'Population 2016'!P238*'Prevalence Rates'!P238","v":155.756506266549},{"$f":"'Population 2016'!Q238*'Prevalence Rates'!Q238","v":55.392775816416602},{"$f":"'Population 2016'!R238*'Prevalence Rates'!R238","v":104.80298428949693},{"$f":"'Population 2016'!S238*'Prevalence Rates'!S238","v":823.31299457880687},{"$f":"'Population 2016'!T238*'Prevalence Rates'!T238","v":727.96424933804076},{"$f":"'Population 2016'!U238*'Prevalence Rates'!U238","v":0},{"$f":"'Population 2016'!V238*'Prevalence Rates'!V238","v":127.59066593115624},{"$f":"'Population 2016'!W238*'Prevalence Rates'!W238","v":297.93634845542812},{"$f":"'Population 2016'!X238*'Prevalence Rates'!X238","v":297.93634845542812},{"$f":"'Population 2016'!Y238*'Prevalence Rates'!Y238","v":196.34938570167699},{"$f":"'Population 2016'!Z238*'Prevalence Rates'!Z238","v":332.91884007060901},{"$f":"'Population 2016'!AA238*'Prevalence Rates'!AA238","v":371.10346316063459},{"$f":"'Population 2016'!AB238*'Prevalence Rates'!AB238","v":920.30155339805833},{"$f":"'Population 2016'!AC238*'Prevalence Rates'!AC238","v":842.34112338923205},{"$f":"'Population 2016'!AD238*'Prevalence Rates'!AD238","v":136.72722488967344},{"$f":"'Population 2016'!AE238*'Prevalence Rates'!AE238","v":98.30295233892322},{"$f":"'Population 2016'!AF238*'Prevalence Rates'!AF238","v":24.048200000000005},{"$f":"'Population 2016'!AG238*'Prevalence Rates'!AG238","v":37.855795310641248},{"$f":"'Population 2016'!AH238*'Prevalence Rates'!AH238","v":265.02677987643432},{"$f":"'Population 2016'!AI238*'Prevalence Rates'!AI238","v":965.06842789055634},{"$f":"'Population 2016'!AJ238*'Prevalence Rates'!AJ238","v":55.426600000000008},{"$f":"'Population 2016'!AK238*'Prevalence Rates'!AK238","v":65.382033362753774},{"$f":"'Population 2016'!AL238*'Prevalence Rates'!AL238","v":45.960141747572827},{"$f":"'Population 2016'!AM238*'Prevalence Rates'!AM238","v":113.79476893203885},{"$f":"'Population 2016'!AN238*'Prevalence Rates'!AN238","v":7.8446000000000016},{"$f":"'Population 2016'!AO238*'Prevalence Rates'!AO238","v":7.8446000000000016},{"$f":"'Population 2016'!AP238*'Prevalence Rates'!AP238","v":74.947013062665505},{"$f":"'Population 2016'!AQ238*'Prevalence Rates'!AQ238","v":108.23489037952341},{"$f":"'Population 2016'!AR238*'Prevalence Rates'!AR238","v":4104.2690000000002},{"$f":"'Population 2016'!AS238*'Prevalence Rates'!AS238","v":25.574147396293036},{"$f":"'Population 2016'!AT238*'Prevalence Rates'!AT238","v":0},{"$f":"'Population 2016'!AU238*'Prevalence Rates'!AU238","v":0},{"$f":"'Population 2016'!AV238*'Prevalence Rates'!AV238","v":42.970901147396297},{"$f":"'Population 2016'!AW238*'Prevalence Rates'!AW238","v":150.69899629302739},{"$f":"'Population 2016'!AX238*'Prevalence Rates'!AX238","v":73.68780000000001},{"$f":"'Population 2016'!AY238*'Prevalence Rates'!AY238","v":233.59453467221269},{"$f":"'Population 2016'!AZ238*'Prevalence Rates'!AZ238","v":232.95804872021185},{"$f":"'Population 2016'!BA238*'Prevalence Rates'!BA238","v":12.886673433362756},{"$f":"'Population 2016'!BB238*'Prevalence Rates'!BB238","v":98.408965048543706},{"$f":"'Population 2016'!BC238*'Prevalence Rates'!BC238","v":0},236]
[null,"Male 40-44",{"$f":"'Population 2016'!C239*'Prevalence Rates'!C239","v":430.40235048543695},{"$f":"'Population 2016'!D239*'Prevalence Rates'!D239","v":327.33622480502646},{"$f":"'Population 2016'!E239*'Prevalence Rates'!E239","v":424.7617138570169},{"$f":"'Population 2016'!F239*'Prevalence Rates'!F239","v":97.132045366284231},{"$f":"'Population 2016'!G239*'Prevalence Rates'!G239","v":44.109800000000007},{"$f":"'Population 2016'!H239*'Prevalence Rates'!H239","v":189.94549161518097},{"$f":"'Population 2016'!I239*'Prevalence Rates'!I239","v":35.519649161518103},{"$f":"'Population 2016'!J239*'Prevalence Rates'!J239","v":130.14320000000001},{"$f":"'Population 2016'!K239*'Prevalence Rates'!K239","v":27.263200000000005},{"$f":"'Population 2016'!L239*'Prevalence Rates'!L239","v":46.632596028243611},{"$f":"'Population 2016'!M239*'Prevalence Rates'!M239","v":46.632596028243611},{"$f":"'Population 2016'!N239*'Prevalence Rates'!N239","v":82.77742506619596},{"$f":"'Population 2016'!O239*'Prevalence Rates'!O239","v":63.079378287731693},{"$f":"'Population 2016'!P239*'Prevalence Rates'!P239","v":192.20308561341574},{"$f":"'Population 2016'!Q239*'Prevalence Rates'!Q239","v":75.21108005295676},{"$f":"'Population 2016'!R239*'Prevalence Rates'!R239","v":127.92782947925863},{"$f":"'Population 2016'!S239*'Prevalence Rates'!S239","v":897.65568243092389},{"$f":"'Population 2016'!T239*'Prevalence Rates'!T239","v":719.61830229479267},{"$f":"'Population 2016'!U239*'Prevalence Rates'!U239","v":0},{"$f":"'Population 2016'!V239*'Prevalence Rates'!V239","v":145.56118225948811},{"$f":"'Population 2016'!W239*'Prevalence Rates'!W239","v":363.26832656663731},{"$f":"'Population 2016'!X239*'Prevalence Rates'!X239","v":363.26832656663731},{"$f":"'Population 2016'!Y239*'Prevalence Rates'!Y239","v":244.55821138570172},{"$f":"'Population 2016'!Z239*'Prevalence Rates'!Z239","v":300.78847625772289},{"$f":"'Population 2016'!AA239*'Prevalence Rates'!AA239","v":417.82269832430245},{"$f":"'Population 2016'!AB239*'Prevalence Rates'!AB239","v":940.39311844660199},{"$f":"'Population 2016'!AC239*'Prevalence Rates'!AC239","v":929.43226690202994},{"$f":"'Population 2016'!AD239*'Prevalence Rates'!AD239","v":141.36204607237426},{"$f":"'Population 2016'!AE239*'Prevalence Rates'!AE239","v":96.495401588702563},{"$f":"'Population 2016'!AF239*'Prevalence Rates'!AF239","v":31.507000000000005},{"$f":"'Population 2016'!AG239*'Prevalence Rates'!AG239","v":37.159719866456896},{"$f":"'Population 2016'!AH239*'Prevalence Rates'!AH239","v":315.25660052956761},{"$f":"'Population 2016'!AI239*'Prevalence Rates'!AI239","v":1011.8610077669906},{"$f":"'Population 2016'!AJ239*'Prevalence Rates'!AJ239","v":60.956400000000009},{"$f":"'Population 2016'!AK239*'Prevalence Rates'!AK239","v":80.096461253309812},{"$f":"'Population 2016'!AL239*'Prevalence Rates'!AL239","v":57.572846601941762},{"$f":"'Population 2016'!AM239*'Prevalence Rates'!AM239","v":133.54735436893205},{"$f":"'Population 2016'!AN239*'Prevalence Rates'!AN239","v":5.9156000000000013},{"$f":"'Population 2016'!AO239*'Prevalence Rates'!AO239","v":5.9156000000000013},{"$f":"'Population 2016'!AP239*'Prevalence Rates'!AP239","v":81.553284730803185},{"$f":"'Population 2016'!AQ239*'Prevalence Rates'!AQ239","v":126.85884907325686},{"$f":"'Population 2016'!AR239*'Prevalence Rates'!AR239","v":4515.5318000000007},{"$f":"'Population 2016'!AS239*'Prevalence Rates'!AS239","v":35.519649161518103},{"$f":"'Population 2016'!AT239*'Prevalence Rates'!AT239","v":0},{"$f":"'Population 2016'!AU239*'Prevalence Rates'!AU239","v":0},{"$f":"'Population 2016'!AV239*'Prevalence Rates'!AV239","v":59.529428067078555},{"$f":"'Population 2016'!AW239*'Prevalence Rates'!AW239","v":181.03293274492501},{"$f":"'Population 2016'!AX239*'Prevalence Rates'!AX239","v":102.88000000000001},{"$f":"'Population 2016'!AY239*'Prevalence Rates'!AY239","v":274.71690588013348},{"$f":"'Population 2016'!AZ239*'Prevalence Rates'!AZ239","v":261.60486213592236},{"$f":"'Population 2016'!BA239*'Prevalence Rates'!BA239","v":13.92353221535746},{"$f":"'Population 2016'!BB239*'Prevalence Rates'!BB239","v":127.74440706090029},{"$f":"'Population 2016'!BC239*'Prevalence Rates'!BC239","v":0},237]
[null,"Male 45-49",{"$f":"'Population 2016'!C240*'Prevalence Rates'!C240","v":414.9396334951457},{"$f":"'Population 2016'!D240*'Prevalence Rates'!D240","v":321.23872595005832},{"$f":"'Population 2016'!E240*'Prevalence Rates'!E240","v":423.17344536628428},{"$f":"'Population 2016'!F240*'Prevalence Rates'!F240","v":102.47853248014124},{"$f":"'Population 2016'!G240*'Prevalence Rates'!G240","v":35.641000000000005},{"$f":"'Population 2016'!H240*'Prevalence Rates'!H240","v":224.09567559576348},{"$f":"'Population 2016'!I240*'Prevalence Rates'!I240","v":45.35091354810239},{"$f":"'Population 2016'!J240*'Prevalence Rates'!J240","v":159.40130000000002},{"$f":"'Population 2016'!K240*'Prevalence Rates'!K240","v":36.992900000000006},{"$f":"'Population 2016'!L240*'Prevalence Rates'!L240","v":60.182709002647847},{"$f":"'Population 2016'!M240*'Prevalence Rates'!M240","v":60.182709002647847},{"$f":"'Population 2016'!N240*'Prevalence Rates'!N240","v":109.43800260370698},{"$f":"'Population 2016'!O240*'Prevalence Rates'!O240","v":72.665357193292152},{"$f":"'Population 2016'!P240*'Prevalence Rates'!P240","v":216.92706937334512},{"$f":"'Population 2016'!Q240*'Prevalence Rates'!Q240","v":79.641640644307159},{"$f":"'Population 2016'!R240*'Prevalence Rates'!R240","v":140.88668075904681},{"$f":"'Population 2016'!S240*'Prevalence Rates'!S240","v":938.49546280927098},{"$f":"'Population 2016'!T240*'Prevalence Rates'!T240","v":720.46599624889677},{"$f":"'Population 2016'!U240*'Prevalence Rates'!U240","v":0},{"$f":"'Population 2016'!V240*'Prevalence Rates'!V240","v":150.9022172109444},{"$f":"'Population 2016'!W240*'Prevalence Rates'!W240","v":381.48002714033538},{"$f":"'Population 2016'!X240*'Prevalence Rates'!X240","v":381.48002714033538},{"$f":"'Population 2016'!Y240*'Prevalence Rates'!Y240","v":274.4382491173875},{"$f":"'Population 2016'!Z240*'Prevalence Rates'!Z240","v":297.69189452780233},{"$f":"'Population 2016'!AA240*'Prevalence Rates'!AA240","v":461.94000072807006},{"$f":"'Population 2016'!AB240*'Prevalence Rates'!AB240","v":932.47451650485448},{"$f":"'Population 2016'!AC240*'Prevalence Rates'!AC240","v":1024.0969546337158},{"$f":"'Population 2016'!AD240*'Prevalence Rates'!AD240","v":149.16621403353929},{"$f":"'Population 2016'!AE240*'Prevalence Rates'!AE240","v":113.61199249779347},{"$f":"'Population 2016'!AF240*'Prevalence Rates'!AF240","v":35.518100000000004},{"$f":"'Population 2016'!AG240*'Prevalence Rates'!AG240","v":43.75120207989562},{"$f":"'Population 2016'!AH240*'Prevalence Rates'!AH240","v":351.63414721977057},{"$f":"'Population 2016'!AI240*'Prevalence Rates'!AI240","v":1046.6326709620478},{"$f":"'Population 2016'!AJ240*'Prevalence Rates'!AJ240","v":71.282000000000011},{"$f":"'Population 2016'!AK240*'Prevalence Rates'!AK240","v":88.485939011473974},{"$f":"'Population 2016'!AL240*'Prevalence Rates'!AL240","v":73.934492233009721},{"$f":"'Population 2016'!AM240*'Prevalence Rates'!AM240","v":147.81111407766991},{"$f":"'Population 2016'!AN240*'Prevalence Rates'!AN240","v":8.3572000000000006},{"$f":"'Population 2016'!AO240*'Prevalence Rates'!AO240","v":8.3572000000000006},{"$f":"'Population 2016'!AP240*'Prevalence Rates'!AP240","v":94.810733142100631},{"$f":"'Population 2016'!AQ240*'Prevalence Rates'!AQ240","v":155.67221244483676},{"$f":"'Population 2016'!AR240*'Prevalence Rates'!AR240","v":4837.2211000000007},{"$f":"'Population 2016'!AS240*'Prevalence Rates'!AS240","v":45.35091354810239},{"$f":"'Population 2016'!AT240*'Prevalence Rates'!AT240","v":0},{"$f":"'Population 2016'!AU240*'Prevalence Rates'!AU240","v":0},{"$f":"'Population 2016'!AV240*'Prevalence Rates'!AV240","v":67.861301412180055},{"$f":"'Population 2016'!AW240*'Prevalence Rates'!AW240","v":203.04197272727274},{"$f":"'Population 2016'!AX240*'Prevalence Rates'!AX240","v":122.40840000000001},{"$f":"'Population 2016'!AY240*'Prevalence Rates'!AY240","v":302.94475697767029},{"$f":"'Population 2016'!AZ240*'Prevalence Rates'!AZ240","v":306.8299922330097},{"$f":"'Population 2016'!BA240*'Prevalence Rates'!BA240","v":23.356966019417474},{"$f":"'Population 2016'!BB240*'Prevalence Rates'!BB240","v":146.53856213592235},{"$f":"'Population 2016'!BC240*'Prevalence Rates'!BC240","v":0},238]
[null,"Male 50-54",{"$f":"'Population 2016'!C241*'Prevalence Rates'!C241","v":423.83616165048551},{"$f":"'Population 2016'!D241*'Prevalence Rates'!D241","v":319.67385470170973},{"$f":"'Population 2016'!E241*'Prevalence Rates'!E241","v":411.83844236540165},{"$f":"'Population 2016'!F241*'Prevalence Rates'!F241","v":120.78840878199473},{"$f":"'Population 2016'!G241*'Prevalence Rates'!G241","v":39.0822},{"$f":"'Population 2016'!H241*'Prevalence Rates'!H241","v":244.16585304501325},{"$f":"'Population 2016'!I241*'Prevalence Rates'!I241","v":37.475605207413949},{"$f":"'Population 2016'!J241*'Prevalence Rates'!J241","v":153.625},{"$f":"'Population 2016'!K241*'Prevalence Rates'!K241","v":35.518100000000004},{"$f":"'Population 2016'!L241*'Prevalence Rates'!L241","v":70.086192762577241},{"$f":"'Population 2016'!M241*'Prevalence Rates'!M241","v":70.086192762577241},{"$f":"'Population 2016'!N241*'Prevalence Rates'!N241","v":108.04032696381289},{"$f":"'Population 2016'!O241*'Prevalence Rates'!O241","v":66.411884112974406},{"$f":"'Population 2016'!P241*'Prevalence Rates'!P241","v":242.1240642541924},{"$f":"'Population 2016'!Q241*'Prevalence Rates'!Q241","v":91.876102427184478},{"$f":"'Population 2016'!R241*'Prevalence Rates'!R241","v":137.62836637246252},{"$f":"'Population 2016'!S241*'Prevalence Rates'!S241","v":914.98227614439293},{"$f":"'Population 2016'!T241*'Prevalence Rates'!T241","v":714.06418623124455},{"$f":"'Population 2016'!U241*'Prevalence Rates'!U241","v":0},{"$f":"'Population 2016'!V241*'Prevalence Rates'!V241","v":146.55147043248013},{"$f":"'Population 2016'!W241*'Prevalence Rates'!W241","v":357.3936338923213},{"$f":"'Population 2016'!X241*'Prevalence Rates'!X241","v":357.3936338923213},{"$f":"'Population 2016'!Y241*'Prevalence Rates'!Y241","v":265.51769417475731},{"$f":"'Population 2016'!Z241*'Prevalence Rates'!Z241","v":292.79042992056486},{"$f":"'Population 2016'!AA241*'Prevalence Rates'!AA241","v":488.04218664281603},{"$f":"'Population 2016'!AB241*'Prevalence Rates'!AB241","v":918.68585242718461},{"$f":"'Population 2016'!AC241*'Prevalence Rates'!AC241","v":1086.3552960282434},{"$f":"'Population 2016'!AD241*'Prevalence Rates'!AD241","v":152.42311827007944},{"$f":"'Population 2016'!AE241*'Prevalence Rates'!AE241","v":113.21335392762576},{"$f":"'Population 2016'!AF241*'Prevalence Rates'!AF241","v":52.601200000000006},{"$f":"'Population 2016'!AG241*'Prevalence Rates'!AG241","v":43.597689090141607},{"$f":"'Population 2016'!AH241*'Prevalence Rates'!AH241","v":367.59617793468675},{"$f":"'Population 2016'!AI241*'Prevalence Rates'!AI241","v":1040.3066293909974},{"$f":"'Population 2016'!AJ241*'Prevalence Rates'!AJ241","v":65.751500000000007},{"$f":"'Population 2016'!AK241*'Prevalence Rates'!AK241","v":78.53624571932923},{"$f":"'Population 2016'!AL241*'Prevalence Rates'!AL241","v":82.062597087378649},{"$f":"'Population 2016'!AM241*'Prevalence Rates'!AM241","v":159.68349271844662},{"$f":"'Population 2016'!AN241*'Prevalence Rates'!AN241","v":7.742700000000001},{"$f":"'Population 2016'!AO241*'Prevalence Rates'!AO241","v":7.742700000000001},{"$f":"'Population 2016'!AP241*'Prevalence Rates'!AP241","v":118.64948234774934},{"$f":"'Population 2016'!AQ241*'Prevalence Rates'!AQ241","v":176.82402921447488},{"$f":"'Population 2016'!AR241*'Prevalence Rates'!AR241","v":4921.4076000000005},{"$f":"'Population 2016'!AS241*'Prevalence Rates'!AS241","v":37.475605207413949},{"$f":"'Population 2016'!AT241*'Prevalence Rates'!AT241","v":0},{"$f":"'Population 2016'!AU241*'Prevalence Rates'!AU241","v":0},{"$f":"'Population 2016'!AV241*'Prevalence Rates'!AV241","v":82.909229479258613},{"$f":"'Population 2016'!AW241*'Prevalence Rates'!AW241","v":207.21645075022067},{"$f":"'Population 2016'!AX241*'Prevalence Rates'!AX241","v":118.10690000000001},{"$f":"'Population 2016'!AY241*'Prevalence Rates'!AY241","v":312.18832181348864},{"$f":"'Population 2016'!AZ241*'Prevalence Rates'!AZ241","v":350.47836654898498},{"$f":"'Population 2016'!BA241*'Prevalence Rates'!BA241","v":24.914097087378639},{"$f":"'Population 2016'!BB241*'Prevalence Rates'!BB241","v":140.97128976169463},{"$f":"'Population 2016'!BC241*'Prevalence Rates'!BC241","v":0},239]
[null,"Male 55-59",{"$f":"'Population 2016'!C242*'Prevalence Rates'!C242","v":368.12190291262135},{"$f":"'Population 2016'!D242*'Prevalence Rates'!D242","v":265.10816146504345},{"$f":"'Population 2016'!E242*'Prevalence Rates'!E242","v":327.41465136804948},{"$f":"'Population 2016'!F242*'Prevalence Rates'!F242","v":96.560601588702582},{"$f":"'Population 2016'!G242*'Prevalence Rates'!G242","v":31.240000000000002},{"$f":"'Population 2016'!H242*'Prevalence Rates'!H242","v":229.23437246248898},{"$f":"'Population 2016'!I242*'Prevalence Rates'!I242","v":29.201165754633717},{"$f":"'Population 2016'!J242*'Prevalence Rates'!J242","v":120.98400000000001},{"$f":"'Population 2016'!K242*'Prevalence Rates'!K242","v":27.377600000000001},{"$f":"'Population 2016'!L242*'Prevalence Rates'!L242","v":58.093165048543703},{"$f":"'Population 2016'!M242*'Prevalence Rates'!M242","v":58.093165048543703},{"$f":"'Population 2016'!N242*'Prevalence Rates'!N242","v":105.29080670785525},{"$f":"'Population 2016'!O242*'Prevalence Rates'!O242","v":62.542464960282445},{"$f":"'Population 2016'!P242*'Prevalence Rates'!P242","v":204.03482436010592},{"$f":"'Population 2016'!Q242*'Prevalence Rates'!Q242","v":64.589871844660195},{"$f":"'Population 2016'!R242*'Prevalence Rates'!R242","v":128.19594563106799},{"$f":"'Population 2016'!S242*'Prevalence Rates'!S242","v":767.79746071582201},{"$f":"'Population 2016'!T242*'Prevalence Rates'!T242","v":608.71376875551641},{"$f":"'Population 2016'!U242*'Prevalence Rates'!U242","v":0},{"$f":"'Population 2016'!V242*'Prevalence Rates'!V242","v":112.1792480141218},{"$f":"'Population 2016'!W242*'Prevalence Rates'!W242","v":317.04070538393648},{"$f":"'Population 2016'!X242*'Prevalence Rates'!X242","v":317.04070538393648},{"$f":"'Population 2016'!Y242*'Prevalence Rates'!Y242","v":206.13812886142986},{"$f":"'Population 2016'!Z242*'Prevalence Rates'!Z242","v":237.45488155339808},{"$f":"'Population 2016'!AA242*'Prevalence Rates'!AA242","v":416.3891656255297},{"$f":"'Population 2016'!AB242*'Prevalence Rates'!AB242","v":757.33039223300977},{"$f":"'Population 2016'!AC242*'Prevalence Rates'!AC242","v":932.33735851721087},{"$f":"'Population 2016'!AD242*'Prevalence Rates'!AD242","v":126.07765154457194},{"$f":"'Population 2016'!AE242*'Prevalence Rates'!AE242","v":94.820406001765221},{"$f":"'Population 2016'!AF242*'Prevalence Rates'!AF242","v":43.395200000000003},{"$f":"'Population 2016'!AG242*'Prevalence Rates'!AG242","v":36.514690509996548},{"$f":"'Population 2016'!AH242*'Prevalence Rates'!AH242","v":308.75256769638133},{"$f":"'Population 2016'!AI242*'Prevalence Rates'!AI242","v":861.77722012356594},{"$f":"'Population 2016'!AJ242*'Prevalence Rates'!AJ242","v":53.1648},{"$f":"'Population 2016'!AK242*'Prevalence Rates'!AK242","v":60.453548455428077},{"$f":"'Population 2016'!AL242*'Prevalence Rates'!AL242","v":67.039440776699038},{"$f":"'Population 2016'!AM242*'Prevalence Rates'!AM242","v":127.95661359223303},{"$f":"'Population 2016'!AN242*'Prevalence Rates'!AN242","v":8.2927999999999997},{"$f":"'Population 2016'!AO242*'Prevalence Rates'!AO242","v":8.2927999999999997},{"$f":"'Population 2016'!AP242*'Prevalence Rates'!AP242","v":89.950445189761695},{"$f":"'Population 2016'!AQ242*'Prevalence Rates'!AQ242","v":154.86006142983231},{"$f":"'Population 2016'!AR242*'Prevalence Rates'!AR242","v":4137.5392000000002},{"$f":"'Population 2016'!AS242*'Prevalence Rates'!AS242","v":29.201165754633717},{"$f":"'Population 2016'!AT242*'Prevalence Rates'!AT242","v":0},{"$f":"'Population 2016'!AU242*'Prevalence Rates'!AU242","v":0},{"$f":"'Population 2016'!AV242*'Prevalence Rates'!AV242","v":83.904077669902904},{"$f":"'Population 2016'!AW242*'Prevalence Rates'!AW242","v":180.06753045013241},{"$f":"'Population 2016'!AX242*'Prevalence Rates'!AX242","v":93.606400000000008},{"$f":"'Population 2016'!AY242*'Prevalence Rates'!AY242","v":268.35973476174553},{"$f":"'Population 2016'!AZ242*'Prevalence Rates'!AZ242","v":291.84797528684902},{"$f":"'Population 2016'!BA242*'Prevalence Rates'!BA242","v":18.449221535745806},{"$f":"'Population 2016'!BB242*'Prevalence Rates'!BB242","v":111.28202859664609},{"$f":"'Population 2016'!BC242*'Prevalence Rates'!BC242","v":0},240]
[null,"Male 60-64",{"$f":"'Population 2016'!C243*'Prevalence Rates'!C243","v":326.23438446601938},{"$f":"'Population 2016'!D243*'Prevalence Rates'!D243","v":238.93635831273994},{"$f":"'Population 2016'!E243*'Prevalence Rates'!E243","v":299.80268243601063},{"$f":"'Population 2016'!F243*'Prevalence Rates'!F243","v":89.607188702559597},{"$f":"'Population 2016'!G243*'Prevalence Rates'!G243","v":25.787200000000002},{"$f":"'Population 2016'!H243*'Prevalence Rates'!H243","v":215.17308879082086},{"$f":"'Population 2016'!I243*'Prevalence Rates'!I243","v":30.790914033539281},{"$f":"'Population 2016'!J243*'Prevalence Rates'!J243","v":114.9632},{"$f":"'Population 2016'!K243*'Prevalence Rates'!K243","v":30.558400000000002},{"$f":"'Population 2016'!L243*'Prevalence Rates'!L243","v":55.276526743159764},{"$f":"'Population 2016'!M243*'Prevalence Rates'!M243","v":55.276526743159764},{"$f":"'Population 2016'!N243*'Prevalence Rates'!N243","v":85.653748278905567},{"$f":"'Population 2016'!O243*'Prevalence Rates'!O243","v":54.218883671668145},{"$f":"'Population 2016'!P243*'Prevalence Rates'!P243","v":180.35308455428068},{"$f":"'Population 2016'!Q243*'Prevalence Rates'!Q243","v":54.586053309797002},{"$f":"'Population 2016'!R243*'Prevalence Rates'!R243","v":108.48860158870258},{"$f":"'Population 2016'!S243*'Prevalence Rates'!S243","v":654.3652131122526},{"$f":"'Population 2016'!T243*'Prevalence Rates'!T243","v":523.63935039717569},{"$f":"'Population 2016'!U243*'Prevalence Rates'!U243","v":0},{"$f":"'Population 2016'!V243*'Prevalence Rates'!V243","v":91.330840600176529},{"$f":"'Population 2016'!W243*'Prevalence Rates'!W243","v":272.88635057369817},{"$f":"'Population 2016'!X243*'Prevalence Rates'!X243","v":272.88635057369817},{"$f":"'Population 2016'!Y243*'Prevalence Rates'!Y243","v":181.88658428949694},{"$f":"'Population 2016'!Z243*'Prevalence Rates'!Z243","v":211.33750962047662},{"$f":"'Population 2016'!AA243*'Prevalence Rates'!AA243","v":360.63516031686021},{"$f":"'Population 2016'!AB243*'Prevalence Rates'!AB243","v":685.38519611650486},{"$f":"'Population 2016'!AC243*'Prevalence Rates'!AC243","v":804.92889249779341},{"$f":"'Population 2016'!AD243*'Prevalence Rates'!AD243","v":113.19292497793469},{"$f":"'Population 2016'!AE243*'Prevalence Rates'!AE243","v":87.573768755516326},{"$f":"'Population 2016'!AF243*'Prevalence Rates'!AF243","v":36.011200000000002},{"$f":"'Population 2016'!AG243*'Prevalence Rates'!AG243","v":33.724060017652256},{"$f":"'Population 2016'!AH243*'Prevalence Rates'!AH243","v":269.69742912621365},{"$f":"'Population 2016'!AI243*'Prevalence Rates'!AI243","v":725.17121482789071},{"$f":"'Population 2016'!AJ243*'Prevalence Rates'!AJ243","v":44.758400000000002},{"$f":"'Population 2016'!AK243*'Prevalence Rates'!AK243","v":57.387952691968238},{"$f":"'Population 2016'!AL243*'Prevalence Rates'!AL243","v":68.484256310679612},{"$f":"'Population 2016'!AM243*'Prevalence Rates'!AM243","v":106.11839223300971},{"$f":"'Population 2016'!AN243*'Prevalence Rates'!AN243","v":6.1344000000000003},{"$f":"'Population 2016'!AO243*'Prevalence Rates'!AO243","v":6.1344000000000003},{"$f":"'Population 2016'!AP243*'Prevalence Rates'!AP243","v":90.252292321270971},{"$f":"'Population 2016'!AQ243*'Prevalence Rates'!AQ243","v":126.36771756398942},{"$f":"'Population 2016'!AR243*'Prevalence Rates'!AR243","v":3635.3136000000004},{"$f":"'Population 2016'!AS243*'Prevalence Rates'!AS243","v":30.790914033539281},{"$f":"'Population 2016'!AT243*'Prevalence Rates'!AT243","v":0},{"$f":"'Population 2016'!AU243*'Prevalence Rates'!AU243","v":0},{"$f":"'Population 2016'!AV243*'Prevalence Rates'!AV243","v":78.78906972639011},{"$f":"'Population 2016'!AW243*'Prevalence Rates'!AW243","v":162.81105878199472},{"$f":"'Population 2016'!AX243*'Prevalence Rates'!AX243","v":84.404800000000009},{"$f":"'Population 2016'!AY243*'Prevalence Rates'!AY243","v":238.42854287902779},{"$f":"'Population 2016'!AZ243*'Prevalence Rates'!AZ243","v":267.73619982347748},{"$f":"'Population 2016'!BA243*'Prevalence Rates'!BA243","v":18.187530450132392},{"$f":"'Population 2016'!BB243*'Prevalence Rates'!BB243","v":82.611514210061785},{"$f":"'Population 2016'!BC243*'Prevalence Rates'!BC243","v":0},241]
[null,"Male 65-69",{"$f":"'Population 2016'!C244*'Prevalence Rates'!C244","v":193.49066504854369},{"$f":"'Population 2016'!D244*'Prevalence Rates'!D244","v":145.65812666610958},{"$f":"'Population 2016'!E244*'Prevalence Rates'!E244","v":187.33709470432484},{"$f":"'Population 2016'!F244*'Prevalence Rates'!F244","v":71.722661518093574},{"$f":"'Population 2016'!G244*'Prevalence Rates'!G244","v":18.4404},{"$f":"'Population 2016'!H244*'Prevalence Rates'!H244","v":160.42245436893205},{"$f":"'Population 2016'!I244*'Prevalence Rates'!I244","v":22.618117122683145},{"$f":"'Population 2016'!J244*'Prevalence Rates'!J244","v":85.344000000000008},{"$f":"'Population 2016'!K244*'Prevalence Rates'!K244","v":23.241},{"$f":"'Population 2016'!L244*'Prevalence Rates'!L244","v":40.305697440423657},{"$f":"'Population 2016'!M244*'Prevalence Rates'!M244","v":40.305697440423657},{"$f":"'Population 2016'!N244*'Prevalence Rates'!N244","v":56.934413857016764},{"$f":"'Population 2016'!O244*'Prevalence Rates'!O244","v":38.15218993821712},{"$f":"'Population 2016'!P244*'Prevalence Rates'!P244","v":120.91063583406886},{"$f":"'Population 2016'!Q244*'Prevalence Rates'!Q244","v":37.052569461606353},{"$f":"'Population 2016'!R244*'Prevalence Rates'!R244","v":65.481087908208295},{"$f":"'Population 2016'!S244*'Prevalence Rates'!S244","v":448.2456743746875},{"$f":"'Population 2016'!T244*'Prevalence Rates'!T244","v":350.13782303618717},{"$f":"'Population 2016'!U244*'Prevalence Rates'!U244","v":0},{"$f":"'Population 2016'!V244*'Prevalence Rates'!V244","v":59.487719152691966},{"$f":"'Population 2016'!W244*'Prevalence Rates'!W244","v":201.98383768755519},{"$f":"'Population 2016'!X244*'Prevalence Rates'!X244","v":201.98383768755519},{"$f":"'Population 2016'!Y244*'Prevalence Rates'!Y244","v":127.40566019417477},{"$f":"'Population 2016'!Z244*'Prevalence Rates'!Z244","v":125.84984854368932},{"$f":"'Population 2016'!AA244*'Prevalence Rates'!AA244","v":223.11257283025796},{"$f":"'Population 2016'!AB244*'Prevalence Rates'!AB244","v":421.30758058252428},{"$f":"'Population 2016'!AC244*'Prevalence Rates'!AC244","v":509.17579805825238},{"$f":"'Population 2016'!AD244*'Prevalence Rates'!AD244","v":79.884838305383937},{"$f":"'Population 2016'!AE244*'Prevalence Rates'!AE244","v":61.543437775816422},{"$f":"'Population 2016'!AF244*'Prevalence Rates'!AF244","v":26.746200000000002},{"$f":"'Population 2016'!AG244*'Prevalence Rates'!AG244","v":23.699957404351661},{"$f":"'Population 2016'!AH244*'Prevalence Rates'!AH244","v":156.89210097087383},{"$f":"'Population 2016'!AI244*'Prevalence Rates'!AI244","v":482.7070924977935},{"$f":"'Population 2016'!AJ244*'Prevalence Rates'!AJ244","v":32.461200000000005},{"$f":"'Population 2016'!AK244*'Prevalence Rates'!AK244","v":38.576636716681385},{"$f":"'Population 2016'!AL244*'Prevalence Rates'!AL244","v":48.941854368932042},{"$f":"'Population 2016'!AM244*'Prevalence Rates'!AM244","v":61.980192233009717},{"$f":"'Population 2016'!AN244*'Prevalence Rates'!AN244","v":4.8006000000000002},{"$f":"'Population 2016'!AO244*'Prevalence Rates'!AO244","v":4.8006000000000002},{"$f":"'Population 2016'!AP244*'Prevalence Rates'!AP244","v":71.067462577228596},{"$f":"'Population 2016'!AQ244*'Prevalence Rates'!AQ244","v":82.92503671668139},{"$f":"'Population 2016'!AR244*'Prevalence Rates'!AR244","v":2414.6256000000003},{"$f":"'Population 2016'!AS244*'Prevalence Rates'!AS244","v":22.618117122683145},{"$f":"'Population 2016'!AT244*'Prevalence Rates'!AT244","v":0},{"$f":"'Population 2016'!AU244*'Prevalence Rates'!AU244","v":0},{"$f":"'Population 2016'!AV244*'Prevalence Rates'!AV244","v":61.818511032656659},{"$f":"'Population 2016'!AW244*'Prevalence Rates'!AW244","v":94.470917210944393},{"$f":"'Population 2016'!AX244*'Prevalence Rates'!AX244","v":62.103000000000002},{"$f":"'Population 2016'!AY244*'Prevalence Rates'!AY244","v":178.27874489462602},{"$f":"'Population 2016'!AZ244*'Prevalence Rates'!AZ244","v":202.16959620476612},{"$f":"'Population 2016'!BA244*'Prevalence Rates'!BA244","v":8.513483671668137},{"$f":"'Population 2016'!BB244*'Prevalence Rates'!BB244","v":50.729124360105914},{"$f":"'Population 2016'!BC244*'Prevalence Rates'!BC244","v":0},242]
[null,"Male 70-74",{"$f":"'Population 2016'!C245*'Prevalence Rates'!C245","v":126.43688446601942},{"$f":"'Population 2016'!D245*'Prevalence Rates'!D245","v":96.205919215563213},{"$f":"'Population 2016'!E245*'Prevalence Rates'!E245","v":124.89139646954989},{"$f":"'Population 2016'!F245*'Prevalence Rates'!F245","v":53.15397246248898},{"$f":"'Population 2016'!G245*'Prevalence Rates'!G245","v":15.3924},{"$f":"'Population 2016'!H245*'Prevalence Rates'!H245","v":121.34722215357459},{"$f":"'Population 2016'!I245*'Prevalence Rates'!I245","v":14.592333627537514},{"$f":"'Population 2016'!J245*'Prevalence Rates'!J245","v":58.064400000000006},{"$f":"'Population 2016'!K245*'Prevalence Rates'!K245","v":15.0114},{"$f":"'Population 2016'!L245*'Prevalence Rates'!L245","v":28.733553839364522},{"$f":"'Population 2016'!M245*'Prevalence Rates'!M245","v":28.733553839364522},{"$f":"'Population 2016'!N245*'Prevalence Rates'!N245","v":44.455638217122683},{"$f":"'Population 2016'!O245*'Prevalence Rates'!O245","v":24.814432480141217},{"$f":"'Population 2016'!P245*'Prevalence Rates'!P245","v":96.032714563106808},{"$f":"'Population 2016'!Q245*'Prevalence Rates'!Q245","v":30.998704766107679},{"$f":"'Population 2016'!R245*'Prevalence Rates'!R245","v":50.153858075904679},{"$f":"'Population 2016'!S245*'Prevalence Rates'!S245","v":321.5831996341991},{"$f":"'Population 2016'!T245*'Prevalence Rates'!T245","v":244.20502691968227},{"$f":"'Population 2016'!U245*'Prevalence Rates'!U245","v":0},{"$f":"'Population 2016'!V245*'Prevalence Rates'!V245","v":39.043252427184463},{"$f":"'Population 2016'!W245*'Prevalence Rates'!W245","v":158.43341915269198},{"$f":"'Population 2016'!X245*'Prevalence Rates'!X245","v":158.43341915269198},{"$f":"'Population 2016'!Y245*'Prevalence Rates'!Y245","v":85.370902030008835},{"$f":"'Population 2016'!Z245*'Prevalence Rates'!Z245","v":75.25963954104148},{"$f":"'Population 2016'!AA245*'Prevalence Rates'!AA245","v":161.46514755289249},{"$f":"'Population 2016'!AB245*'Prevalence Rates'!AB245","v":283.40185631067959},{"$f":"'Population 2016'!AC245*'Prevalence Rates'!AC245","v":372.27244342453662},{"$f":"'Population 2016'!AD245*'Prevalence Rates'!AD245","v":59.045315269196827},{"$f":"'Population 2016'!AE245*'Prevalence Rates'!AE245","v":43.582969991173876},{"$f":"'Population 2016'!AF245*'Prevalence Rates'!AF245","v":22.631400000000003},{"$f":"'Population 2016'!AG245*'Prevalence Rates'!AG245","v":16.783503971756399},{"$f":"'Population 2016'!AH245*'Prevalence Rates'!AH245","v":110.17376663724627},{"$f":"'Population 2016'!AI245*'Prevalence Rates'!AI245","v":337.31338993821714},{"$f":"'Population 2016'!AJ245*'Prevalence Rates'!AJ245","v":21.640800000000002},{"$f":"'Population 2016'!AK245*'Prevalence Rates'!AK245","v":30.762605825242723},{"$f":"'Population 2016'!AL245*'Prevalence Rates'!AL245","v":37.409021359223303},{"$f":"'Population 2016'!AM245*'Prevalence Rates'!AM245","v":37.173393203883499},{"$f":"'Population 2016'!AN245*'Prevalence Rates'!AN245","v":3.1242000000000001},{"$f":"'Population 2016'!AO245*'Prevalence Rates'!AO245","v":3.1242000000000001},{"$f":"'Population 2016'!AP245*'Prevalence Rates'!AP245","v":54.397317034421889},{"$f":"'Population 2016'!AQ245*'Prevalence Rates'!AQ245","v":60.694409708737872},{"$f":"'Population 2016'!AR245*'Prevalence Rates'!AR245","v":1726.9206000000001},{"$f":"'Population 2016'!AS245*'Prevalence Rates'!AS245","v":14.592333627537514},{"$f":"'Population 2016'!AT245*'Prevalence Rates'!AT245","v":0},{"$f":"'Population 2016'!AU245*'Prevalence Rates'!AU245","v":0},{"$f":"'Population 2016'!AV245*'Prevalence Rates'!AV245","v":49.659466019417472},{"$f":"'Population 2016'!AW245*'Prevalence Rates'!AW245","v":72.542736275375105},{"$f":"'Population 2016'!AX245*'Prevalence Rates'!AX245","v":43.053000000000004},{"$f":"'Population 2016'!AY245*'Prevalence Rates'!AY245","v":137.76412514906201},{"$f":"'Population 2016'!AZ245*'Prevalence Rates'!AZ245","v":153.96916178287731},{"$f":"'Population 2016'!BA245*'Prevalence Rates'!BA245","v":4.300625772285966},{"$f":"'Population 2016'!BB245*'Prevalence Rates'!BB245","v":32.422259311562229},{"$f":"'Population 2016'!BC245*'Prevalence Rates'!BC245","v":0},243]
[null,"Male 75-79",{"$f":"'Population 2016'!C246*'Prevalence Rates'!C246","v":50.309902912621354},{"$f":"'Population 2016'!D246*'Prevalence Rates'!D246","v":37.05268781687866},{"$f":"'Population 2016'!E246*'Prevalence Rates'!E246","v":46.729602824360107},{"$f":"'Population 2016'!F246*'Prevalence Rates'!F246","v":18.339788172992058},{"$f":"'Population 2016'!G246*'Prevalence Rates'!G246","v":5.04},{"$f":"'Population 2016'!H246*'Prevalence Rates'!H246","v":44.310767872903796},{"$f":"'Population 2016'!I246*'Prevalence Rates'!I246","v":5.2147043248014127},{"$f":"'Population 2016'!J246*'Prevalence Rates'!J246","v":24.48},{"$f":"'Population 2016'!K246*'Prevalence Rates'!K246","v":4.84},{"$f":"'Population 2016'!L246*'Prevalence Rates'!L246","v":12.851738746690204},{"$f":"'Population 2016'!M246*'Prevalence Rates'!M246","v":12.851738746690204},{"$f":"'Population 2016'!N246*'Prevalence Rates'!N246","v":19.196716681376877},{"$f":"'Population 2016'!O246*'Prevalence Rates'!O246","v":8.7925154457193297},{"$f":"'Population 2016'!P246*'Prevalence Rates'!P246","v":42.141147396293029},{"$f":"'Population 2016'!Q246*'Prevalence Rates'!Q246","v":12.48180052956752},{"$f":"'Population 2016'!R246*'Prevalence Rates'!R246","v":21.693662842012358},{"$f":"'Population 2016'!S246*'Prevalence Rates'!S246","v":119.49212080243738},{"$f":"'Population 2016'!T246*'Prevalence Rates'!T246","v":95.708208296557828},{"$f":"'Population 2016'!U246*'Prevalence Rates'!U246","v":0},{"$f":"'Population 2016'!V246*'Prevalence Rates'!V246","v":13.787643424536627},{"$f":"'Population 2016'!W246*'Prevalence Rates'!W246","v":52.729461606354818},{"$f":"'Population 2016'!X246*'Prevalence Rates'!X246","v":52.729461606354818},{"$f":"'Population 2016'!Y246*'Prevalence Rates'!Y246","v":33.542277140335393},{"$f":"'Population 2016'!Z246*'Prevalence Rates'!Z246","v":27.401094439541041},{"$f":"'Population 2016'!AA246*'Prevalence Rates'!AA246","v":62.835387166830429},{"$f":"'Population 2016'!AB246*'Prevalence Rates'!AB246","v":109.76155339805825},{"$f":"'Population 2016'!AC246*'Prevalence Rates'!AC246","v":148.71046778464253},{"$f":"'Population 2016'!AD246*'Prevalence Rates'!AD246","v":20.649143865842895},{"$f":"'Population 2016'!AE246*'Prevalence Rates'!AE246","v":15.61253309796999},{"$f":"'Population 2016'!AF246*'Prevalence Rates'!AF246","v":8},{"$f":"'Population 2016'!AG246*'Prevalence Rates'!AG246","v":6.0122798265474495},{"$f":"'Population 2016'!AH246*'Prevalence Rates'!AH246","v":39.460052956751994},{"$f":"'Population 2016'!AI246*'Prevalence Rates'!AI246","v":130.56413062665493},{"$f":"'Population 2016'!AJ246*'Prevalence Rates'!AJ246","v":7.28},{"$f":"'Population 2016'!AK246*'Prevalence Rates'!AK246","v":12.478270079435129},{"$f":"'Population 2016'!AL246*'Prevalence Rates'!AL246","v":12.769320388349517},{"$f":"'Population 2016'!AM246*'Prevalence Rates'!AM246","v":13.910679611650487},{"$f":"'Population 2016'!AN246*'Prevalence Rates'!AN246","v":0.88},{"$f":"'Population 2016'!AO246*'Prevalence Rates'!AO246","v":0.88},{"$f":"'Population 2016'!AP246*'Prevalence Rates'!AP246","v":21.823689320388347},{"$f":"'Population 2016'!AQ246*'Prevalence Rates'!AQ246","v":20.316893203883499},{"$f":"'Population 2016'!AR246*'Prevalence Rates'!AR246","v":659},{"$f":"'Population 2016'!AS246*'Prevalence Rates'!AS246","v":5.2147043248014127},{"$f":"'Population 2016'!AT246*'Prevalence Rates'!AT246","v":0},{"$f":"'Population 2016'!AU246*'Prevalence Rates'!AU246","v":0},{"$f":"'Population 2016'!AV246*'Prevalence Rates'!AV246","v":18.895322153574579},{"$f":"'Population 2016'!AW246*'Prevalence Rates'!AW246","v":25.399364518976171},{"$f":"'Population 2016'!AX246*'Prevalence Rates'!AX246","v":19.64},{"$f":"'Population 2016'!AY246*'Prevalence Rates'!AY246","v":49.933253709821251},{"$f":"'Population 2016'!AZ246*'Prevalence Rates'!AZ246","v":60.313062665489845},{"$f":"'Population 2016'!BA246*'Prevalence Rates'!BA246","v":1.4743159752868491},{"$f":"'Population 2016'!BB246*'Prevalence Rates'!BB246","v":11.907219770520742},{"$f":"'Population 2016'!BC246*'Prevalence Rates'!BC246","v":0},244]
[null,"Male 80-84",{"$f":"'Population 2016'!C247*'Prevalence Rates'!C247","v":37.234757281553392},{"$f":"'Population 2016'!D247*'Prevalence Rates'!D247","v":25.656758058766492},{"$f":"'Population 2016'!E247*'Prevalence Rates'!E247","v":30.320441306266552},{"$f":"'Population 2016'!F247*'Prevalence Rates'!F247","v":15.244660194174759},{"$f":"'Population 2016'!G247*'Prevalence Rates'!G247","v":3.04},{"$f":"'Population 2016'!H247*'Prevalence Rates'!H247","v":31.787255075022067},{"$f":"'Population 2016'!I247*'Prevalence Rates'!I247","v":3.8300088261253316},{"$f":"'Population 2016'!J247*'Prevalence Rates'!J247","v":17.04},{"$f":"'Population 2016'!K247*'Prevalence Rates'!K247","v":3.24},{"$f":"'Population 2016'!L247*'Prevalence Rates'!L247","v":8.3887555163283327},{"$f":"'Population 2016'!M247*'Prevalence Rates'!M247","v":8.3887555163283327},{"$f":"'Population 2016'!N247*'Prevalence Rates'!N247","v":14.875180935569286},{"$f":"'Population 2016'!O247*'Prevalence Rates'!O247","v":5.4953221535745804},{"$f":"'Population 2016'!P247*'Prevalence Rates'!P247","v":31.390503089143866},{"$f":"'Population 2016'!Q247*'Prevalence Rates'!Q247","v":8.5764518976169466},{"$f":"'Population 2016'!R247*'Prevalence Rates'!R247","v":15.814933804060018},{"$f":"'Population 2016'!S247*'Prevalence Rates'!S247","v":88.196002980095116},{"$f":"'Population 2016'!T247*'Prevalence Rates'!T247","v":75.384730803177419},{"$f":"'Population 2016'!U247*'Prevalence Rates'!U247","v":0},{"$f":"'Population 2016'!V247*'Prevalence Rates'!V247","v":10.098517210944395},{"$f":"'Population 2016'!W247*'Prevalence Rates'!W247","v":38.189443954104149},{"$f":"'Population 2016'!X247*'Prevalence Rates'!X247","v":38.189443954104149},{"$f":"'Population 2016'!Y247*'Prevalence Rates'!Y247","v":23.807502206531336},{"$f":"'Population 2016'!Z247*'Prevalence Rates'!Z247","v":18.204836716681374},{"$f":"'Population 2016'!AA247*'Prevalence Rates'!AA247","v":43.622877192538269},{"$f":"'Population 2016'!AB247*'Prevalence Rates'!AB247","v":75.746796116504854},{"$f":"'Population 2016'!AC247*'Prevalence Rates'!AC247","v":104.66400706090026},{"$f":"'Population 2016'!AD247*'Prevalence Rates'!AD247","v":14.628243601059134},{"$f":"'Population 2016'!AE247*'Prevalence Rates'!AE247","v":11.633715798764342},{"$f":"'Population 2016'!AF247*'Prevalence Rates'!AF247","v":5.64},{"$f":"'Population 2016'!AG247*'Prevalence Rates'!AG247","v":4.4800644690893741},{"$f":"'Population 2016'!AH247*'Prevalence Rates'!AH247","v":26.128437775816423},{"$f":"'Population 2016'!AI247*'Prevalence Rates'!AI247","v":96.982383053839385},{"$f":"'Population 2016'!AJ247*'Prevalence Rates'!AJ247","v":4.5200000000000005},{"$f":"'Population 2016'!AK247*'Prevalence Rates'!AK247","v":8.3764165931156231},{"$f":"'Population 2016'!AL247*'Prevalence Rates'!AL247","v":9.666019417475729},{"$f":"'Population 2016'!AM247*'Prevalence Rates'!AM247","v":7.573592233009709},{"$f":"'Population 2016'!AN247*'Prevalence Rates'!AN247","v":0.64},{"$f":"'Population 2016'!AO247*'Prevalence Rates'!AO247","v":0.64},{"$f":"'Population 2016'!AP247*'Prevalence Rates'!AP247","v":16.970044130626654},{"$f":"'Population 2016'!AQ247*'Prevalence Rates'!AQ247","v":12.215322153574583},{"$f":"'Population 2016'!AR247*'Prevalence Rates'!AR247","v":472.92},{"$f":"'Population 2016'!AS247*'Prevalence Rates'!AS247","v":3.8300088261253316},{"$f":"'Population 2016'!AT247*'Prevalence Rates'!AT247","v":0},{"$f":"'Population 2016'!AU247*'Prevalence Rates'!AU247","v":0},{"$f":"'Population 2016'!AV247*'Prevalence Rates'!AV247","v":13.871315092674315},{"$f":"'Population 2016'!AW247*'Prevalence Rates'!AW247","v":18.417369814651369},{"$f":"'Population 2016'!AX247*'Prevalence Rates'!AX247","v":13.8},{"$f":"'Population 2016'!AY247*'Prevalence Rates'!AY247","v":37.99392703649908},{"$f":"'Population 2016'!AZ247*'Prevalence Rates'!AZ247","v":47.74609002647837},{"$f":"'Population 2016'!BA247*'Prevalence Rates'!BA247","v":0.96751985878199476},{"$f":"'Population 2016'!BB247*'Prevalence Rates'!BB247","v":6.0830361871138576},{"$f":"'Population 2016'!BC247*'Prevalence Rates'!BC247","v":0},245]
[null,"Male 85-89",{"$f":"'Population 2016'!C248*'Prevalence Rates'!C248","v":20.540194174757278},{"$f":"'Population 2016'!D248*'Prevalence Rates'!D248","v":13.942506240371866},{"$f":"'Population 2016'!E248*'Prevalence Rates'!E248","v":16.217016769638128},{"$f":"'Population 2016'!F248*'Prevalence Rates'!F248","v":6.6522153574580773},{"$f":"'Population 2016'!G248*'Prevalence Rates'!G248","v":2.08},{"$f":"'Population 2016'!H248*'Prevalence Rates'!H248","v":16.351297440423654},{"$f":"'Population 2016'!I248*'Prevalence Rates'!I248","v":2.3569285083848195},{"$f":"'Population 2016'!J248*'Prevalence Rates'!J248","v":7.08},{"$f":"'Population 2016'!K248*'Prevalence Rates'!K248","v":1.36},{"$f":"'Population 2016'!L248*'Prevalence Rates'!L248","v":4.3390114739629313},{"$f":"'Population 2016'!M248*'Prevalence Rates'!M248","v":4.3390114739629313},{"$f":"'Population 2016'!N248*'Prevalence Rates'!N248","v":8.506601941747574},{"$f":"'Population 2016'!O248*'Prevalence Rates'!O248","v":3.052956751985878},{"$f":"'Population 2016'!P248*'Prevalence Rates'!P248","v":15.402365401588703},{"$f":"'Population 2016'!Q248*'Prevalence Rates'!Q248","v":3.8670609002647836},{"$f":"'Population 2016'!R248*'Prevalence Rates'!R248","v":8.253274492497793},{"$f":"'Population 2016'!S248*'Prevalence Rates'!S248","v":46.672550050527036},{"$f":"'Population 2016'!T248*'Prevalence Rates'!T248","v":41.94492497793469},{"$f":"'Population 2016'!U248*'Prevalence Rates'!U248","v":0},{"$f":"'Population 2016'!V248*'Prevalence Rates'!V248","v":4.0990291262135923},{"$f":"'Population 2016'!W248*'Prevalence Rates'!W248","v":18.656769638128864},{"$f":"'Population 2016'!X248*'Prevalence Rates'!X248","v":18.656769638128864},{"$f":"'Population 2016'!Y248*'Prevalence Rates'!Y248","v":9.8030891438658436},{"$f":"'Population 2016'!Z248*'Prevalence Rates'!Z248","v":8.9147396293027352},{"$f":"'Population 2016'!AA248*'Prevalence Rates'!AA248","v":21.126774604457996},{"$f":"'Population 2016'!AB248*'Prevalence Rates'!AB248","v":41.732038834951453},{"$f":"'Population 2016'!AC248*'Prevalence Rates'!AC248","v":51.945631067961159},{"$f":"'Population 2016'!AD248*'Prevalence Rates'!AD248","v":8.18333627537511},{"$f":"'Population 2016'!AE248*'Prevalence Rates'!AE248","v":6.0979699911738745},{"$f":"'Population 2016'!AF248*'Prevalence Rates'!AF248","v":2.68},{"$f":"'Population 2016'!AG248*'Prevalence Rates'!AG248","v":2.3482865804520512},{"$f":"'Population 2016'!AH248*'Prevalence Rates'!AH248","v":11.536240070609004},{"$f":"'Population 2016'!AI248*'Prevalence Rates'!AI248","v":52.183053839364526},{"$f":"'Population 2016'!AJ248*'Prevalence Rates'!AJ248","v":2.2400000000000002},{"$f":"'Population 2016'!AK248*'Prevalence Rates'!AK248","v":5.1381112091791712},{"$f":"'Population 2016'!AL248*'Prevalence Rates'!AL248","v":4.6295145631067971},{"$f":"'Population 2016'!AM248*'Prevalence Rates'!AM248","v":3.3617475728155339},{"$f":"'Population 2016'!AN248*'Prevalence Rates'!AN248","v":0.4},{"$f":"'Population 2016'!AO248*'Prevalence Rates'!AO248","v":0.4},{"$f":"'Population 2016'!AP248*'Prevalence Rates'!AP248","v":9.3884377758164153},{"$f":"'Population 2016'!AQ248*'Prevalence Rates'!AQ248","v":5.9607413945278029},{"$f":"'Population 2016'!AR248*'Prevalence Rates'!AR248","v":242.68},{"$f":"'Population 2016'!AS248*'Prevalence Rates'!AS248","v":2.3569285083848195},{"$f":"'Population 2016'!AT248*'Prevalence Rates'!AT248","v":0},{"$f":"'Population 2016'!AU248*'Prevalence Rates'!AU248","v":0},{"$f":"'Population 2016'!AV248*'Prevalence Rates'!AV248","v":7.1726390114739624},{"$f":"'Population 2016'!AW248*'Prevalence Rates'!AW248","v":8.1142100617828774},{"$f":"'Population 2016'!AX248*'Prevalence Rates'!AX248","v":5.72},{"$f":"'Population 2016'!AY248*'Prevalence Rates'!AY248","v":19.337546529532897},{"$f":"'Population 2016'!AZ248*'Prevalence Rates'!AZ248","v":25.049885260370697},{"$f":"'Population 2016'!BA248*'Prevalence Rates'!BA248","v":0.27643424536628419},{"$f":"'Population 2016'!BB248*'Prevalence Rates'!BB248","v":2.7503089143865846},{"$f":"'Population 2016'!BC248*'Prevalence Rates'!BC248","v":0},246]
[null,"Male 90+",{"$f":"'Population 2016'!C249*'Prevalence Rates'!C249","v":10.04388349514563},{"$f":"'Population 2016'!D249*'Prevalence Rates'!D249","v":6.573350544832854},{"$f":"'Population 2016'!E249*'Prevalence Rates'!E249","v":7.3399293909973524},{"$f":"'Population 2016'!F249*'Prevalence Rates'!F249","v":2.4021888790820833},{"$f":"'Population 2016'!G249*'Prevalence Rates'!G249","v":0.56000000000000005},{"$f":"'Population 2016'!H249*'Prevalence Rates'!H249","v":7.9468137687555167},{"$f":"'Population 2016'!I249*'Prevalence Rates'!I249","v":0.6776169461606355},{"$f":"'Population 2016'!J249*'Prevalence Rates'!J249","v":2.88},{"$f":"'Population 2016'!K249*'Prevalence Rates'!K249","v":0.36},{"$f":"'Population 2016'!L249*'Prevalence Rates'!L249","v":1.8182524271844662},{"$f":"'Population 2016'!M249*'Prevalence Rates'!M249","v":1.8182524271844662},{"$f":"'Population 2016'!N249*'Prevalence Rates'!N249","v":2.7748808473080318},{"$f":"'Population 2016'!O249*'Prevalence Rates'!O249","v":1.2211827007943512},{"$f":"'Population 2016'!P249*'Prevalence Rates'!P249","v":6.5468667255075026},{"$f":"'Population 2016'!Q249*'Prevalence Rates'!Q249","v":2.4121270962047658},{"$f":"'Population 2016'!R249*'Prevalence Rates'!R249","v":3.4350220653133277},{"$f":"'Population 2016'!S249*'Prevalence Rates'!S249","v":22.013571177677729},{"$f":"'Population 2016'!T249*'Prevalence Rates'!T249","v":20.289320388349516},{"$f":"'Population 2016'!U249*'Prevalence Rates'!U249","v":0},{"$f":"'Population 2016'!V249*'Prevalence Rates'!V249","v":1.8631950573698146},{"$f":"'Population 2016'!W249*'Prevalence Rates'!W249","v":7.9707325684024717},{"$f":"'Population 2016'!X249*'Prevalence Rates'!X249","v":7.9707325684024717},{"$f":"'Population 2016'!Y249*'Prevalence Rates'!Y249","v":4.1671668137687563},{"$f":"'Population 2016'!Z249*'Prevalence Rates'!Z249","v":4.6919682259488082},{"$f":"'Population 2016'!AA249*'Prevalence Rates'!AA249","v":8.8587136899645298},{"$f":"'Population 2016'!AB249*'Prevalence Rates'!AB249","v":19.293203883495146},{"$f":"'Population 2016'!AC249*'Prevalence Rates'!AC249","v":22.36667255075022},{"$f":"'Population 2016'!AD249*'Prevalence Rates'!AD249","v":2.9680494263018531},{"$f":"'Population 2016'!AE249*'Prevalence Rates'!AE249","v":2.4218887908208298},{"$f":"'Population 2016'!AF249*'Prevalence Rates'!AF249","v":1.68},{"$f":"'Population 2016'!AG249*'Prevalence Rates'!AG249","v":0.93265282627882873},{"$f":"'Population 2016'!AH249*'Prevalence Rates'!AH249","v":4.3165401588702563},{"$f":"'Population 2016'!AI249*'Prevalence Rates'!AI249","v":25.80753751103266},{"$f":"'Population 2016'!AJ249*'Prevalence Rates'!AJ249","v":0.96},{"$f":"'Population 2016'!AK249*'Prevalence Rates'!AK249","v":2.0293380406001766},{"$f":"'Population 2016'!AL249*'Prevalence Rates'!AL249","v":2.136699029126214},{"$f":"'Population 2016'!AM249*'Prevalence Rates'!AM249","v":1.5456310679611651},{"$f":"'Population 2016'!AN249*'Prevalence Rates'!AN249","v":0.16},{"$f":"'Population 2016'!AO249*'Prevalence Rates'!AO249","v":0.16},{"$f":"'Population 2016'!AP249*'Prevalence Rates'!AP249","v":3.8262312444836715},{"$f":"'Population 2016'!AQ249*'Prevalence Rates'!AQ249","v":1.5951279788172994},{"$f":"'Population 2016'!AR249*'Prevalence Rates'!AR249","v":107.12},{"$f":"'Population 2016'!AS249*'Prevalence Rates'!AS249","v":0.6776169461606355},{"$f":"'Population 2016'!AT249*'Prevalence Rates'!AT249","v":0},{"$f":"'Population 2016'!AU249*'Prevalence Rates'!AU249","v":0},{"$f":"'Population 2016'!AV249*'Prevalence Rates'!AV249","v":3.7601059135039718},{"$f":"'Population 2016'!AW249*'Prevalence Rates'!AW249","v":2.7550573698146517},{"$f":"'Population 2016'!AX249*'Prevalence Rates'!AX249","v":2.52},{"$f":"'Population 2016'!AY249*'Prevalence Rates'!AY249","v":7.6252751970662995},{"$f":"'Population 2016'!AZ249*'Prevalence Rates'!AZ249","v":9.2886319505736967},{"$f":"'Population 2016'!BA249*'Prevalence Rates'!BA249","v":9.2144748455428069E-2},{"$f":"'Population 2016'!BB249*'Prevalence Rates'!BB249","v":1.4884024713150927},{"$f":"'Population 2016'!BC249*'Prevalence Rates'!BC249","v":0},247]
["Estimated number of smokers",null,null,null,null,null,null,null,null,null,null,null,null,null,null,null,null,null,null,null,null,null,null,null,null,null,null,null,null,null,null,null,null,null,null,null,null,null,null,null,null,null,null,null,null,null,null,null,null,null,null,null,null,null,null,248]
[null,"Total at risk",{"$f":"C5","v":38501.644480168361},31650.587444437882,30230.076571870486,16025.675174002699,14766.830599999999,77225.713446203226,16052.327776050264,25283.411300000003,10093.963000000002,29519.798412005788,29519.798412005788,37955.409689162545,25984.396673343181,11376.610908842085,17404.856903376934,5865.7758528548775,152028.06058807109,67839.05193405287,4803.0752000000002,23187.038770003943,71067.760408106798,71067.760408106798,43175.52841651965,173181.25354788156,144079.47332649602,84670.091681894235,265387.28703555051,54374.447202856652,39709.05370530131,16980.833500000001,17917.859663439674,140272.13308747558,{"$f":"AI5","v":133992.39156131336},15977.620599999998,16471.624755264787,32901.982880498865,83854.895560381119,3325.9813000000004,3325.9813000000004,19042.439949079595,37780.774683167168,990842.21130000008,16052.327776050264,3405.3119999999999,3405.3119999999999,18758.630063021166,57315.669842809541,15189.4483,72531.178122679878,71073.815175826734,25317.820538799791,30726.75309481662,4803.0752000000002,249]
[null,"Q1 only",{"$f":"C7","v":5922.8542925480269},3247.81699516145,1403.7102476674145,2056.1600662913379,1908.6546000000001,33969.491143299565,1620.6537048400974,7182.7689,3611.7577000000001,3988.1386513034499,3988.1386513034499,18973.622413131066,11463.837156502037,1223.5756752725297,1099.9693800470886,893.91943176278392,36222.180534083222,16686.255726125521,0,5501.6257774622063,22669.011695195397,22669.011695195397,11179.457901275799,103336.68586064287,67289.432941993451,7459.0303499999991,136676.76351807572,6751.8004062134523,4855.539252524366,9885.0972000000002,2196.7339380409676,53075.245851851811,{"$f":"AI7","v":29253.857128672797},2546.6169,267.0522579766108,18064.899602207188,36337.82187548028,0,0,2032.0903873461527,16331.641951197347,316301.97120000003,1620.6537048400974,0,0,5283.1636135385252,17929.569123792324,3571.0111999999999,21739.544640120032,19945.791781234439,12691.642710892473,7839.3835779333731,0,250]
[null,"Q1 & Q2",{"$f":"SUM(C7:C8)","v":17226.873234261519},10063.722584842899,5198.4665110908718,5794.4722147159227,5180.1660999999995,54729.429950146667,5224.8817124317393,13438.219300000001,6661.4721000000009,14229.38287298248,14229.38287298248,27244.924746810386,18879.168518195809,4466.0830985441571,7645.5166681717255,1841.9926222941824,76813.96533349852,30996.499949763383,1440.9021,13692.540355329853,40372.073170344876,40372.073170344876,24313.150268444726,134131.33554629196,100959.83381588917,25743.507299700468,188520.10040902236,19944.489904899016,14808.650488871572,12217.448400000001,6717.504087349248,95648.534995937749,{"$f":"SUM(AI7:AI8)","v":66645.422778914202},9525.8901000000005,4077.8034700198591,24933.503135780833,61272.801925700274,694.58400000000006,694.58400000000006,5338.3966498105201,24366.633211712739,561679.87490000005,5224.8817124317393,175.53950000000003,175.53950000000003,11556.694541084298,35753.121240297369,6776.7471999999998,38314.511245447473,34764.28946059764,20184.601083044407,17889.648432685957,1440.9021,251]
["Estimated no. of smokers who want to quit (estimated at 69.8%)",null,null,null,null,null,null,null,null,null,null,null,null,null,null,null,null,null,null,null,null,null,null,null,null,null,null,null,null,null,null,null,null,null,null,null,null,null,null,null,null,null,null,null,null,null,null,null,null,null,null,null,null,null,null,252]
[null,"Eligible at risk",{"$f":"0.698*C251","v":26874.147847157514},22092.11003621764,21100.593447165596,11185.921271453883,10307.247758799998,53903.547985449848,11204.524787683084,17647.8210874,7045.5861740000009,20604.819291580039,20604.819291580039,26492.875963035454,18137.108877993538,7940.8744143717749,12148.5901185571,4094.3115452927041,106115.58629047361,47351.658249968903,3352.5464895999999,16184.553061462751,49605.29676485854,49605.29676485854,30136.518834730712,120880.51497642131,100567.47238189421,59099.723993962172,185240.32635081426,37953.364147593944,27716.919486300314,11852.621783000001,12506.666045080892,97909.948895057954,{"$f":"0.698*AI251","v":93526.689309796711},11152.379178799998,11497.19407917482,22965.584050588204,58530.717101146016,2321.5349474,2321.5349474,13291.623084457557,26370.980728850682,691607.8634874,11204.524787683084,2376.9077759999996,2376.9077759999996,13093.523783988774,40006.33755028106,10602.2349134,50626.762329630554,49609.522992727056,17671.838736082253,21447.273660182,3352.5464895999999,253]
[null,"Q1",{"$f":"0.698*C252","v":4134.1522961985229},2266.976262622692,979.78975287185528,1435.1997262713537,1332.2409107999999,23710.704818023096,1131.216285978388,5013.5726921999994,2521.0068745999997,2783.7207786098079,2783.7207786098079,13243.588444365483,8001.7583352384218,854.05582134022563,767.77862727286777,623.95576337042314,25283.082012790088,11647.006496835613,0,3840.1347926686199,15822.970163246386,15822.970163246386,7803.2616150905069,72129.006730728725,46968.024193511425,5206.4031842999993,95400.380935616849,4712.7566835369898,3389.1663982620071,6899.7978456000001,1533.3202887525952,37046.521604592563,{"$f":"0.698*AI252","v":20419.19227581361},1777.5385961999998,186.40247606767434,12609.299922340617,25363.799669085234,0,0,1418.3990903676145,11399.486081935747,220778.77589760002,1131.216285978388,0,0,3687.6482022498903,12514.839248407041,2492.5658175999997,15174.202158803781,13922.162663301637,8858.7666122029459,5471.8897373974942,0,254]
[null,"Q1 & Q2",{"$f":"0.698*C253","v":12024.35751751454},7024.4783642203429,3628.5296247414281,4044.5416058717137,3615.7559377999992,38201.142105202372,3646.9674352773536,9379.8770714000002,4649.7075258000004,9932.1092453417696,9932.1092453417696,19016.957473273647,13177.659625700673,3117.3260027838214,5336.5706343838638,1285.7108503613392,53616.147802781961,21635.55696493484,1005.7496658,9557.3931680202368,28179.707072900721,28179.707072900721,16970.578887374417,93623.672211311787,70469.964003490633,17968.968095190925,131587.03008549759,13921.253953619513,10336.438041232357,8527.7789831999999,4688.8178529697752,66762.677427164541,{"$f":"0.698*AI253","v":46518.505099682108},6649.0712898000002,2846.3068220738614,17403.585188775021,42768.415744138787,484.81963200000001,484.81963200000001,3726.2008615677428,17007.90998177549,392052.55268020002,3646.9674352773536,122.52657100000002,122.52657100000002,8066.5727896768394,24955.678625727563,4730.1695455999998,26743.528849322334,24265.47404349715,14088.851555964995,12486.974606014797,1005.7496658,255]

{"sheet":"Pop2016fraction","index":14,"n_rows":249,"n_cols":56,"rows_kept":249,"cut":false,"hidden":true,"merged":[]}
["Subgroup's fraction of area's 2016 population (16+ only)"]
[]
["SIMD","group","Aberdeen City Local Authority","Aberdeen City Region Deal","Aberdeenshire Local Authority","Angus Local Authority","Argyll & Bute Local Authority","Ayrshire & Arran Health Board","Borders Health Board","Clackmannanshire & Stirling IJB","Clackmannanshire Local Authority","Dumfries & Galloway Health Board","Dumfries & Galloway Local Authority","Dundee City Local Authority","East Ayrshire Local Authority","East Dunbartonshire Local Authority","East Lothian Local Authority","East Renfrewshire Local Authority","Edinburgh & SE Scotland City Region Deal","Edinburgh, City of Local Authority","Eilean Siar Local Authority","Falkirk Local Authority","Fife Health Board","Fife Local Authority","Forth Valley Health Board","Glasgow City Local Authority","Glasgow City Region Deal","Grampian Health Board","Greater Glasgow & Clyde Health Board","Highland Health Board","Highland Local Authority","Inverclyde Local Authority","Inverness & Highland City Region Deal","Lanarkshire Health Board","Lothian Health Board","Midlothian Local Authority","Moray Local Authority","North Ayrshire Local Authority","North Lanarkshire Local Authority","Orkney Health Board","Orkney Islands Local Authority","Perth & Kinross Local Authority","Renfrewshire Local Authority","Scotland","Scottish Borders Local Authority","Shetland Health Board","Shetland Islands Local Authority","South Ayrshire Local Authority","South Lanarkshire Local Authority","Stirling Local Authority","Tay Cities Region Deal ","Tayside Health Board","West Dunbartonshire Local Authority","West Lothian Local Authority","Western Isles Health Board",1]
[null,null,"popS12000033","Aber_deal","popS12000034","popS12000041","popS12000035","popS08000015","popS08000016","ClacksStirIJB","popS12000005","popS08000017","popS12000006","popS12000042","popS12000008","popS12000045","popS12000010","popS12000011","EdinSE_deal","popS12000036","popS12000013","popS12000014","popS08000018","popS12000015","popS08000019","popS12000046","GClyde_deal","popS08000020","popS08000021","popS08000022","popS12000017","popS12000018","Inver_deal","popS08000023","popS08000024","popS12000019","popS12000020","popS12000021","popS12000044","popS08000025","popS12000023","popS12000024","popS12000038","popS00000001","popS12000026","popS08000026","popS12000027","popS12000028","popS12000029","popS12000030","Tay_deal","popS08000027","popS12000039","popS12000040","popS08000028",2]
["All quintiles","16+ Males and Females",{"$f":"'Population 2016'!C5/'Population 2016'!C$5","v":1},{"$f":"'Population 2016'!D5/'Population 2016'!D$5","v":1},{"$f":"'Population 2016'!E5/'Population 2016'!E$5","v":1},{"$f":"'Population 2016'!F5/'Population 2016'!F$5","v":1},{"$f":"'Population 2016'!G5/'Population 2016'!G$5","v":1},{"$f":"'Population 2016'!H5/'Population 2016'!H$5","v":1},{"$f":"'Population 2016'!I5/'Population 2016'!I$5","v":1},{"$f":"'Population 2016'!J5/'Population 2016'!J$5","v":1},{"$f":"'Population 2016'!K5/'Population 2016'!K$5","v":1},{"$f":"'Population 2016'!L5/'Population 2016'!L$5","v":1},{"$f":"'Population 2016'!M5/'Population 2016'!M$5","v":1},{"$f":"'Population 2016'!N5/'Population 2016'!N$5","v":1},{"$f":"'Population 2016'!O5/'Population 2016'!O$5","v":1},{"$f":"'Population 2016'!P5/'Population 2016'!P$5","v":1},{"$f":"'Population 2016'!Q5/'Population 2016'!Q$5","v":1},{"$f":"'Population 2016'!R5/'Population 2016'!R$5","v":1},{"$f":"'Population 2016'!S5/'Population 2016'!S$5","v":1},{"$f":"'Population 2016'!T5/'Population 2016'!T$5","v":1},{"$f":"'Population 2016'!U5/'Population 2016'!U$5","v":1},{"$f":"'Population 2016'!V5/'Population 2016'!V$5","v":1},{"$f":"'Population 2016'!W5/'Population 2016'!W$5","v":1},{"$f":"'Population 2016'!X5/'Population 2016'!X$5","v":1},{"$f":"'Population 2016'!Y5/'Population 2016'!Y$5","v":1},{"$f":"'Population 2016'!Z5/'Population 2016'!Z$5","v":1},{"$f":"'Population 2016'!AA5/'Population 2016'!AA$5","v":1},{"$f":"'Population 2016'!AB5/'Population 2016'!AB$5","v":1},{"$f":"'Population 2016'!AC5/'Population 2016'!AC$5","v":1},{"$f":"'Population 2016'!AD5/'Population 2016'!AD$5","v":1},{"$f":"'Population 2016'!AE5/'Population 2016'!AE$5","v":1},{"$f":"'Population 2016'!AF5/'Population 2016'!AF$5","v":1},{"$f":"'Population 2016'!AG5/'Population 2016'!AG$5","v":1},{"$f":"'Population 2016'!AH5/'Population 2016'!AH$5","v":1},{"$f":"'Population 2016'!AI5/'Population 2016'!AI$5","v":1},{"$f":"'Population 2016'!AJ5/'Population 2016'!AJ$5","v":1},{"$f":"'Population 2016'!AK5/'Population 2016'!AK$5","v":1},{"$f":"'Population 2016'!AL5/'Population 2016'!AL$5","v":1},{"$f":"'Population 2016'!AM5/'Population 2016'!AM$5","v":1},{"$f":"'Population 2016'!AN5/'Population 2016'!AN$5","v":1},{"$f":"'Population 2016'!AO5/'Population 2016'!AO$5","v":1},{"$f":"'Population 2016'!AP5/'Population 2016'!AP$5","v":1},{"$f":"'Population 2016'!AQ5/'Population 2016'!AQ$5","v":1},{"$f":"'Population 2016'!AR5/'Population 2016'!AR$5","v":1},{"$f":"'Population 2016'!AS5/'Population 2016'!AS$5","v":1},{"$f":"'Population 2016'!AT5/'Population 2016'!AT$5","v":1},{"$f":"'Population 2016'!AU5/'Population 2016'!AU$5","v":1},{"$f":"'Population 2016'!AV5/'Population 2016'!AV$5","v":1},{"$f":"'Population 2016'!AW5/'Population 2016'!AW$5","v":1},{"$f":"'Population 2016'!AX5/'Population 2016'!AX$5","v":1},{"$f":"'Population 2016'!AY5/'Population 2016'!AY$5","v":1},{"$f":"'Population 2016'!AZ5/'Population 2016'!AZ$5","v":1},{"$f":"'Population 2016'!BA5/'Population 2016'!BA$5","v":1},{"$f":"'Population 2016'!BB5/'Population 2016'!BB$5","v":1},{"$f":"'Population 2016'!BC5/'Population 2016'!BC$5","v":1},3]
["Q1 and Q2","16+ Males and Females",{"$f":"'Population 2016'!C6/'Population 2016'!C$5","v":0.28505568532043973},{"$f":"'Population 2016'!D6/'Population 2016'!D$5","v":0.18697123519458544},{"$f":"'Population 2016'!E6/'Population 2016'!E$5","v":9.7009642835377996E-2},{"$f":"'Population 2016'!F6/'Population 2016'!F$5","v":0.23802214782384754},{"$f":"'Population 2016'!G6/'Population 2016'!G$5","v":0.24178530828777134},{"$f":"'Population 2016'!H6/'Population 2016'!H$5","v":0.54380651918044964},{"$f":"'Population 2016'!I6/'Population 2016'!I$5","v":0.21558077212963739},{"$f":"'Population 2016'!J6/'Population 2016'!J$5","v":0.35335826774918522},{"$f":"'Population 2016'!K6/'Population 2016'!K$5","v":0.49690497566507585},{"$f":"'Population 2016'!L6/'Population 2016'!L$5","v":0.35540800279573648},{"$f":"'Population 2016'!M6/'Population 2016'!M$5","v":0.35540800279573648},{"$f":"'Population 2016'!N6/'Population 2016'!N$5","v":0.54660386912177206},{"$f":"'Population 2016'!O6/'Population 2016'!O$5","v":0.57661406167959506},{"$f":"'Population 2016'!P6/'Population 2016'!P$5","v":0.21319734024568918},{"$f":"'Population 2016'!Q6/'Population 2016'!Q$5","v":0.30533131220549697},{"$f":"'Population 2016'!R6/'Population 2016'!R$5","v":0.15587906531111939},{"$f":"'Population 2016'!S6/'Population 2016'!S$5","v":0.33554762732778909},{"$f":"'Population 2016'!T6/'Population 2016'!T$5","v":0.27603849178466566},{"$f":"'Population 2016'!U6/'Population 2016'!U$5","v":0.24042845129022264},{"$f":"'Population 2016'!V6/'Population 2016'!V$5","v":0.43180864136283498},{"$f":"'Population 2016'!W6/'Population 2016'!W$5","v":0.39425345962517733},{"$f":"'Population 2016'!X6/'Population 2016'!X$5","v":0.39425345962517733},{"$f":"'Population 2016'!Y6/'Population 2016'!Y$5","v":0.39421074386734711},{"$f":"'Population 2016'!Z6/'Population 2016'!Z$5","v":0.63716963198556664},{"$f":"'Population 2016'!AA6/'Population 2016'!AA$5","v":0.53156248816568641},{"$f":"'Population 2016'!AB6/'Population 2016'!AB$5","v":0.1825286838684585},{"$f":"'Population 2016'!AC6/'Population 2016'!AC$5","v":0.53169597514381872},{"$f":"'Population 2016'!AD6/'Population 2016'!AD$5","v":0.2515650005582642},{"$f":"'Population 2016'!AE6/'Population 2016'!AE$5","v":0.25527469481206172},{"$f":"'Population 2016'!AF6/'Population 2016'!AF$5","v":0.54526534859521336},{"$f":"'Population 2016'!AG6/'Population 2016'!AG$5","v":0.25527469481206172},{"$f":"'Population 2016'!AH6/'Population 2016'!AH$5","v":0.53132273854527556},{"$f":"'Population 2016'!AI6/'Population 2016'!AI$5","v":0.32665942995887653},{"$f":"'Population 2016'!AJ6/'Population 2016'!AJ$5","v":0.45442377938265066},{"$f":"'Population 2016'!AK6/'Population 2016'!AK$5","v":0.15968721320543605},{"$f":"'Population 2016'!AL6/'Population 2016'!AL$5","v":0.59903158865575279},{"$f":"'Population 2016'!AM6/'Population 2016'!AM$5","v":0.59371728886490327},{"$f":"'Population 2016'!AN6/'Population 2016'!AN$5","v":0.14186756845205628},{"$f":"'Population 2016'!AO6/'Population 2016'!AO$5","v":0.14186756845205628},{"$f":"'Population 2016'!AP6/'Population 2016'!AP$5","v":0.16515543014758335},{"$f":"'Population 2016'!AQ6/'Population 2016'!AQ$5","v":0.465384720776018},{"$f":"'Population 2016'!AR6/'Population 2016'!AR$5","v":0.39415271355287168},{"$f":"'Population 2016'!AS6/'Population 2016'!AS$5","v":0.21558077212963739},{"$f":"'Population 2016'!AT6/'Population 2016'!AT$5","v":3.3162861812621923E-2},{"$f":"'Population 2016'!AU6/'Population 2016'!AU$5","v":3.3162861812621923E-2},{"$f":"'Population 2016'!AV6/'Population 2016'!AV$5","v":0.44308943089430897},{"$f":"'Population 2016'!AW6/'Population 2016'!AW$5","v":0.46562862285679418},{"$f":"'Population 2016'!AX6/'Population 2016'!AX$5","v":0.27571974392067161},{"$f":"'Population 2016'!AY6/'Population 2016'!AY$5","v":0.35582907499770511},{"$f":"'Population 2016'!AZ6/'Population 2016'!AZ$5","v":0.32201391006207181},{"$f":"'Population 2016'!BA6/'Population 2016'!BA$5","v":0.67740498812351546},{"$f":"'Population 2016'!BB6/'Population 2016'!BB$5","v":0.4261477803939982},{"$f":"'Population 2016'!BC6/'Population 2016'!BC$5","v":0.24042845129022264},4]
["SIMD Q1 (most deprived)","16+ Males and Females",{"$f":"'Population 2016'!C7/'Population 2016'!C$5","v":8.0274772173184156E-2},{"$f":"'Population 2016'!D7/'Population 2016'!D$5","v":4.9091380338996314E-2},{"$f":"'Population 2016'!E7/'Population 2016'!E$5","v":2.0490439201383843E-2},{"$f":"'Population 2016'!F7/'Population 2016'!F$5","v":6.9245428792171007E-2},{"$f":"'Population 2016'!G7/'Population 2016'!G$5","v":7.3052563200346449E-2},{"$f":"'Population 2016'!H7/'Population 2016'!H$5","v":0.30013974767600587},{"$f":"'Population 2016'!I7/'Population 2016'!I$5","v":5.3816682019931332E-2},{"$f":"'Population 2016'!J7/'Population 2016'!J$5","v":0.16491545242695901},{"$f":"'Population 2016'!K7/'Population 2016'!K$5","v":0.23571799839342247},{"$f":"'Population 2016'!L7/'Population 2016'!L$5","v":7.9297253506584273E-2},{"$f":"'Population 2016'!M7/'Population 2016'!M$5","v":7.9297253506584273E-2},{"$f":"'Population 2016'!N7/'Population 2016'!N$5","v":0.34639650862796473},{"$f":"'Population 2016'!O7/'Population 2016'!O$5","v":0.31131056755926728},{"$f":"'Population 2016'!P7/'Population 2016'!P$5","v":4.6647131747999553E-2},{"$f":"'Population 2016'!Q7/'Population 2016'!Q$5","v":3.4300419501533473E-2},{"$f":"'Population 2016'!R7/'Population 2016'!R$5","v":6.5577260871879497E-2},{"$f":"'Population 2016'!S7/'Population 2016'!S$5","v":0.13517902946487992},{"$f":"'Population 2016'!T7/'Population 2016'!T$5","v":0.13021223528754833},{"$f":"'Population 2016'!U7/'Population 2016'!U$5","v":0},{"$f":"'Population 2016'!V7/'Population 2016'!V$5","v":0.14533548057181672},{"$f":"'Population 2016'!W7/'Population 2016'!W$5","v":0.19312781492884645},{"$f":"'Population 2016'!X7/'Population 2016'!X$5","v":0.19312781492884645},{"$f":"'Population 2016'!Y7/'Population 2016'!Y$5","v":0.15471932083750656},{"$f":"'Population 2016'!Z7/'Population 2016'!Z$5","v":0.45964152904760708},{"$f":"'Population 2016'!AA7/'Population 2016'!AA$5","v":0.32015729920533209},{"$f":"'Population 2016'!AB7/'Population 2016'!AB$5","v":4.2397879287227616E-2},{"$f":"'Population 2016'!AC7/'Population 2016'!AC$5","v":0.35500319597204094},{"$f":"'Population 2016'!AD7/'Population 2016'!AD$5","v":6.9094495515277826E-2},{"$f":"'Population 2016'!AE7/'Population 2016'!AE$5","v":6.7593096438361797E-2},{"$f":"'Population 2016'!AF7/'Population 2016'!AF$5","v":0.41722843052979236},{"$f":"'Population 2016'!AG7/'Population 2016'!AG$5","v":6.7593096438361797E-2},{"$f":"'Population 2016'!AH7/'Population 2016'!AH$5","v":0.25757223930226725},{"$f":"'Population 2016'!AI7/'Population 2016'!AI$5","v":0.12156575378423309},{"$f":"'Population 2016'!AJ7/'Population 2016'!AJ$5","v":9.858349831302457E-2},{"$f":"'Population 2016'!AK7/'Population 2016'!AK$5","v":7.9831034786216268E-3},{"$f":"'Population 2016'!AL7/'Population 2016'!AL$5","v":0.39894645359252229},{"$f":"'Population 2016'!AM7/'Population 2016'!AM$5","v":0.31183196844518657},{"$f":"'Population 2016'!AN7/'Population 2016'!AN$5","v":0},{"$f":"'Population 2016'!AO7/'Population 2016'!AO$5","v":0},{"$f":"'Population 2016'!AP7/'Population 2016'!AP$5","v":5.2470554666074851E-2},{"$f":"'Population 2016'!AQ7/'Population 2016'!AQ$5","v":0.28025154819970405},{"$f":"'Population 2016'!AR7/'Population 2016'!AR$5","v":0.19431413815281337},{"$f":"'Population 2016'!AS7/'Population 2016'!AS$5","v":5.3816682019931332E-2},{"$f":"'Population 2016'!AT7/'Population 2016'!AT$5","v":0},{"$f":"'Population 2016'!AU7/'Population 2016'!AU$5","v":0},{"$f":"'Population 2016'!AV7/'Population 2016'!AV$5","v":0.1705944462042023},{"$f":"'Population 2016'!AW7/'Population 2016'!AW$5","v":0.20044313258893159},{"$f":"'Population 2016'!AX7/'Population 2016'!AX$5","v":0.12662126071789104},{"$f":"'Population 2016'!AY7/'Population 2016'!AY$5","v":0.1767540772926165},{"$f":"'Population 2016'!AZ7/'Population 2016'!AZ$5","v":0.1623444609994765},{"$f":"'Population 2016'!BA7/'Population 2016'!BA$5","v":0.37985856186568778},{"$f":"'Population 2016'!BB7/'Population 2016'!BB$5","v":0.15856597363678421},{"$f":"'Population 2016'!BC7/'Population 2016'!BC$5","v":0},5]
["SIMD Q2",null,{"$f":"'Population 2016'!C8/'Population 2016'!C$5","v":0.20478091314725561},{"$f":"'Population 2016'!D8/'Population 2016'!D$5","v":0.13787985485558912},{"$f":"'Population 2016'!E8/'Population 2016'!E$5","v":7.6519203633994157E-2},{"$f":"'Population 2016'!F8/'Population 2016'!F$5","v":0.16877671903167654},{"$f":"'Population 2016'!G8/'Population 2016'!G$5","v":0.16873274508742489},{"$f":"'Population 2016'!H8/'Population 2016'!H$5","v":0.24366677150444371},{"$f":"'Population 2016'!I8/'Population 2016'!I$5","v":0.16176409010970605},{"$f":"'Population 2016'!J8/'Population 2016'!J$5","v":0.18844281532222618},{"$f":"'Population 2016'!K8/'Population 2016'!K$5","v":0.26118697727165335},{"$f":"'Population 2016'!L8/'Population 2016'!L$5","v":0.27611074928915225},{"$f":"'Population 2016'!M8/'Population 2016'!M$5","v":0.27611074928915225},{"$f":"'Population 2016'!N8/'Population 2016'!N$5","v":0.20020736049380733},{"$f":"'Population 2016'!O8/'Population 2016'!O$5","v":0.26530349412032772},{"$f":"'Population 2016'!P8/'Population 2016'!P$5","v":0.16655020849768962},{"$f":"'Population 2016'!Q8/'Population 2016'!Q$5","v":0.27103089270396352},{"$f":"'Population 2016'!R8/'Population 2016'!R$5","v":9.0301804439239894E-2},{"$f":"'Population 2016'!S8/'Population 2016'!S$5","v":0.20036859786290914},{"$f":"'Population 2016'!T8/'Population 2016'!T$5","v":0.14582625649711731},{"$f":"'Population 2016'!U8/'Population 2016'!U$5","v":0.24042845129022264},{"$f":"'Population 2016'!V8/'Population 2016'!V$5","v":0.28647316079101826},{"$f":"'Population 2016'!W8/'Population 2016'!W$5","v":0.20112564469633087},{"$f":"'Population 2016'!X8/'Population 2016'!X$5","v":0.20112564469633087},{"$f":"'Population 2016'!Y8/'Population 2016'!Y$5","v":0.23949142302984056},{"$f":"'Population 2016'!Z8/'Population 2016'!Z$5","v":0.17752810293795962},{"$f":"'Population 2016'!AA8/'Population 2016'!AA$5","v":0.21140518896035429},{"$f":"'Population 2016'!AB8/'Population 2016'!AB$5","v":0.14013080458123087},{"$f":"'Population 2016'!AC8/'Population 2016'!AC$5","v":0.17669277917177781},{"$f":"'Population 2016'!AD8/'Population 2016'!AD$5","v":0.18247050504298634},{"$f":"'Population 2016'!AE8/'Population 2016'!AE$5","v":0.18768159837369994},{"$f":"'Population 2016'!AF8/'Population 2016'!AF$5","v":0.12803691806542097},{"$f":"'Population 2016'!AG8/'Population 2016'!AG$5","v":0.18768159837369994},{"$f":"'Population 2016'!AH8/'Population 2016'!AH$5","v":0.27375049924300826},{"$f":"'Population 2016'!AI8/'Population 2016'!AI$5","v":0.20509367617464344},{"$f":"'Population 2016'!AJ8/'Population 2016'!AJ$5","v":0.35584028106962606},{"$f":"'Population 2016'!AK8/'Population 2016'!AK$5","v":0.15170410972681442},{"$f":"'Population 2016'!AL8/'Population 2016'!AL$5","v":0.20008513506323053},{"$f":"'Population 2016'!AM8/'Population 2016'!AM$5","v":0.2818853204197167},{"$f":"'Population 2016'!AN8/'Population 2016'!AN$5","v":0.14186756845205628},{"$f":"'Population 2016'!AO8/'Population 2016'!AO$5","v":0.14186756845205628},{"$f":"'Population 2016'!AP8/'Population 2016'!AP$5","v":0.11268487548150849},{"$f":"'Population 2016'!AQ8/'Population 2016'!AQ$5","v":0.18513317257631393},{"$f":"'Population 2016'!AR8/'Population 2016'!AR$5","v":0.19983857540005831},{"$f":"'Population 2016'!AS8/'Population 2016'!AS$5","v":0.16176409010970605},{"$f":"'Population 2016'!AT8/'Population 2016'!AT$5","v":3.3162861812621923E-2},{"$f":"'Population 2016'!AU8/'Population 2016'!AU$5","v":3.3162861812621923E-2},{"$f":"'Population 2016'!AV8/'Population 2016'!AV$5","v":0.27249498469010663},{"$f":"'Population 2016'!AW8/'Population 2016'!AW$5","v":0.26518549026786259},{"$f":"'Population 2016'!AX8/'Population 2016'!AX$5","v":0.14909848320278057},{"$f":"'Population 2016'!AY8/'Population 2016'!AY$5","v":0.17907499770508858},{"$f":"'Population 2016'!AZ8/'Population 2016'!AZ$5","v":0.15966944906259528},{"$f":"'Population 2016'!BA8/'Population 2016'!BA$5","v":0.29754642625782768},{"$f":"'Population 2016'!BB8/'Population 2016'!BB$5","v":0.26758180675721399},{"$f":"'Population 2016'!BC8/'Population 2016'!BC$5","v":0.24042845129022264},6]
["SIMD Q3",null,{"$f":"'Population 2016'!C9/'Population 2016'!C$5","v":0.15567356493383694},{"$f":"'Population 2016'!D9/'Population 2016'!D$5","v":0.17959909235840107},{"$f":"'Population 2016'!E9/'Population 2016'!E$5","v":0.20154322868567731},{"$f":"'Population 2016'!F9/'Population 2016'!F$5","v":0.32874581509142414},{"$f":"'Population 2016'!G9/'Population 2016'!G$5","v":0.41176311373355706},{"$f":"'Population 2016'!H9/'Population 2016'!H$5","v":0.17415284050931706},{"$f":"'Population 2016'!I9/'Population 2016'!I$5","v":0.33486517042123776},{"$f":"'Population 2016'!J9/'Population 2016'!J$5","v":0.17295970410422695},{"$f":"'Population 2016'!K9/'Population 2016'!K$5","v":0.18900911969002504},{"$f":"'Population 2016'!L9/'Population 2016'!L$5","v":0.37253983130271789},{"$f":"'Population 2016'!M9/'Population 2016'!M$5","v":0.37253983130271789},{"$f":"'Population 2016'!N9/'Population 2016'!N$5","v":0.12765529934657333},{"$f":"'Population 2016'!O9/'Population 2016'!O$5","v":0.17299214392565954},{"$f":"'Population 2016'!P9/'Population 2016'!P$5","v":6.1444832638341038E-2},{"$f":"'Population 2016'!Q9/'Population 2016'!Q$5","v":0.21600216213675516},{"$f":"'Population 2016'!R9/'Population 2016'!R$5","v":0.1108745409059456},{"$f":"'Population 2016'!S9/'Population 2016'!S$5","v":0.2041278370825691},{"$f":"'Population 2016'!T9/'Population 2016'!T$5","v":0.15277125028501232},{"$f":"'Population 2016'!U9/'Population 2016'!U$5","v":0.70207586420572743},{"$f":"'Population 2016'!V9/'Population 2016'!V$5","v":0.18445134749391318},{"$f":"'Population 2016'!W9/'Population 2016'!W$5","v":0.2169774936429183},{"$f":"'Population 2016'!X9/'Population 2016'!X$5","v":0.2169774936429183},{"$f":"'Population 2016'!Y9/'Population 2016'!Y$5","v":0.17894389596349819},{"$f":"'Population 2016'!Z9/'Population 2016'!Z$5","v":0.14271859507571871},{"$f":"'Population 2016'!AA9/'Population 2016'!AA$5","v":0.15730917106986181},{"$f":"'Population 2016'!AB9/'Population 2016'!AB$5","v":0.19575038637503453},{"$f":"'Population 2016'!AC9/'Population 2016'!AC$5","v":0.13991014043659666},{"$f":"'Population 2016'!AD9/'Population 2016'!AD$5","v":0.34543898172615284},{"$f":"'Population 2016'!AE9/'Population 2016'!AE$5","v":0.32028049569297429},{"$f":"'Population 2016'!AF9/'Population 2016'!AF$5","v":0.15791219894735253},{"$f":"'Population 2016'!AG9/'Population 2016'!AG$5","v":0.32028049569297429},{"$f":"'Population 2016'!AH9/'Population 2016'!AH$5","v":0.1885587434866203},{"$f":"'Population 2016'!AI9/'Population 2016'!AI$5","v":0.18167873392247791},{"$f":"'Population 2016'!AJ9/'Population 2016'!AJ$5","v":0.23635780609541868},{"$f":"'Population 2016'!AK9/'Population 2016'!AK$5","v":0.27879260274317036},{"$f":"'Population 2016'!AL9/'Population 2016'!AL$5","v":0.14443695571203066},{"$f":"'Population 2016'!AM9/'Population 2016'!AM$5","v":0.18133513950110652},{"$f":"'Population 2016'!AN9/'Population 2016'!AN$5","v":0.31329769826551762},{"$f":"'Population 2016'!AO9/'Population 2016'!AO$5","v":0.31329769826551762},{"$f":"'Population 2016'!AP9/'Population 2016'!AP$5","v":0.23947022177131716},{"$f":"'Population 2016'!AQ9/'Population 2016'!AQ$5","v":0.17783745273195595},{"$f":"'Population 2016'!AR9/'Population 2016'!AR$5","v":0.2022770982691745},{"$f":"'Population 2016'!AS9/'Population 2016'!AS$5","v":0.33486517042123776},{"$f":"'Population 2016'!AT9/'Population 2016'!AT$5","v":0.32904518374018032},{"$f":"'Population 2016'!AU9/'Population 2016'!AU$5","v":0.32904518374018032},{"$f":"'Population 2016'!AV9/'Population 2016'!AV$5","v":0.21076971808679126},{"$f":"'Population 2016'!AW9/'Population 2016'!AW$5","v":0.19616434803831839},{"$f":"'Population 2016'!AX9/'Population 2016'!AX$5","v":0.16427923380656043},{"$f":"'Population 2016'!AY9/'Population 2016'!AY$5","v":0.22091582264924575},{"$f":"'Population 2016'!AZ9/'Population 2016'!AZ$5","v":0.22438172707974988},{"$f":"'Population 2016'!BA9/'Population 2016'!BA$5","v":0.15290973871733968},{"$f":"'Population 2016'!BB9/'Population 2016'!BB$5","v":0.22022054507916561},{"$f":"'Population 2016'!BC9/'Population 2016'!BC$5","v":0.70207586420572743},7]
["SIMD Q4",null,{"$f":"'Population 2016'!C10/'Population 2016'!C$5","v":0.17209038450726541},{"$f":"'Population 2016'!D10/'Population 2016'!D$5","v":0.27172520368142561},{"$f":"'Population 2016'!E10/'Population 2016'!E$5","v":0.36310877137057646},{"$f":"'Population 2016'!F10/'Population 2016'!F$5","v":0.25391707442698946},{"$f":"'Population 2016'!G10/'Population 2016'!G$5","v":0.24428896226925784},{"$f":"'Population 2016'!H10/'Population 2016'!H$5","v":0.14626166860670595},{"$f":"'Population 2016'!I10/'Population 2016'!I$5","v":0.35694246713005612},{"$f":"'Population 2016'!J10/'Population 2016'!J$5","v":0.2411036381579493},{"$f":"'Population 2016'!K10/'Population 2016'!K$5","v":0.17731418040920474},{"$f":"'Population 2016'!L10/'Population 2016'!L$5","v":0.18171493018601179},{"$f":"'Population 2016'!M10/'Population 2016'!M$5","v":0.18171493018601179},{"$f":"'Population 2016'!N10/'Population 2016'!N$5","v":0.17335498026860419},{"$f":"'Population 2016'!O10/'Population 2016'!O$5","v":0.13525722947068089},{"$f":"'Population 2016'!P10/'Population 2016'!P$5","v":0.1839738532627071},{"$f":"'Population 2016'!Q10/'Population 2016'!Q$5","v":0.31186472544388433},{"$f":"'Population 2016'!R10/'Population 2016'!R$5","v":0.14973119710438068},{"$f":"'Population 2016'!S10/'Population 2016'!S$5","v":0.19364098073864328},{"$f":"'Population 2016'!T10/'Population 2016'!T$5","v":0.16057477094316971},{"$f":"'Population 2016'!U10/'Population 2016'!U$5","v":5.7495684504049925E-2},{"$f":"'Population 2016'!V10/'Population 2016'!V$5","v":0.19151128445058427},{"$f":"'Population 2016'!W10/'Population 2016'!W$5","v":0.17321985370541054},{"$f":"'Population 2016'!X10/'Population 2016'!X$5","v":0.17321985370541054},{"$f":"'Population 2016'!Y10/'Population 2016'!Y$5","v":0.2152787714026804},{"$f":"'Population 2016'!Z10/'Population 2016'!Z$5","v":0.11734029187952372},{"$f":"'Population 2016'!AA10/'Population 2016'!AA$5","v":0.1494574984536497},{"$f":"'Population 2016'!AB10/'Population 2016'!AB$5","v":0.28981505173843175},{"$f":"'Population 2016'!AC10/'Population 2016'!AC$5","v":0.13997943821224151},{"$f":"'Population 2016'!AD10/'Population 2016'!AD$5","v":0.30640142915627677},{"$f":"'Population 2016'!AE10/'Population 2016'!AE$5","v":0.32996231994168318},{"$f":"'Population 2016'!AF10/'Population 2016'!AF$5","v":0.17646171711230754},{"$f":"'Population 2016'!AG10/'Population 2016'!AG$5","v":0.32996231994168318},{"$f":"'Population 2016'!AH10/'Population 2016'!AH$5","v":0.16648059221831085},{"$f":"'Population 2016'!AI10/'Population 2016'!AI$5","v":0.18085571791057836},{"$f":"'Population 2016'!AJ10/'Population 2016'!AJ$5","v":0.15486713325711737},{"$f":"'Population 2016'!AK10/'Population 2016'!AK$5","v":0.38282438429528681},{"$f":"'Population 2016'!AL10/'Population 2016'!AL$5","v":0.16345045316684698},{"$f":"'Population 2016'!AM10/'Population 2016'!AM$5","v":0.13531770322103945},{"$f":"'Population 2016'!AN10/'Population 2016'!AN$5","v":0.47027380822515547},{"$f":"'Population 2016'!AO10/'Population 2016'!AO$5","v":0.47027380822515547},{"$f":"'Population 2016'!AP10/'Population 2016'!AP$5","v":0.41339188053833836},{"$f":"'Population 2016'!AQ10/'Population 2016'!AQ$5","v":0.17690579273305201},{"$f":"'Population 2016'!AR10/'Population 2016'!AR$5","v":0.20290399424521077},{"$f":"'Population 2016'!AS10/'Population 2016'!AS$5","v":0.35694246713005612},{"$f":"'Population 2016'!AT10/'Population 2016'!AT$5","v":0.63779195444719772},{"$f":"'Population 2016'!AU10/'Population 2016'!AU$5","v":0.63779195444719772},{"$f":"'Population 2016'!AV10/'Population 2016'!AV$5","v":0.1375250765494668},{"$f":"'Population 2016'!AW10/'Population 2016'!AW$5","v":0.19929144548172556},{"$f":"'Population 2016'!AX10/'Population 2016'!AX$5","v":0.27560473823427933},{"$f":"'Population 2016'!AY10/'Population 2016'!AY$5","v":0.23159022061748416},{"$f":"'Population 2016'!AZ10/'Population 2016'!AZ$5","v":0.28295873578360592},{"$f":"'Population 2016'!BA10/'Population 2016'!BA$5","v":0.12984506586050529},{"$f":"'Population 2016'!BB10/'Population 2016'!BB$5","v":0.17693322193298025},{"$f":"'Population 2016'!BC10/'Population 2016'!BC$5","v":5.7495684504049925E-2},8]
["SIMD Q5 (least deprived)",null,{"$f":"'Population 2016'!C11/'Population 2016'!C$5","v":0.38718036523845789},{"$f":"'Population 2016'!D11/'Population 2016'!D$5","v":0.36170446876558787},{"$f":"'Population 2016'!E11/'Population 2016'!E$5","v":0.33833835710836824},{"$f":"'Population 2016'!F11/'Population 2016'!F$5","v":0.17931496265773886},{"$f":"'Population 2016'!G11/'Population 2016'!G$5","v":0.10216261570941373},{"$f":"'Population 2016'!H11/'Population 2016'!H$5","v":0.1357789717035274},{"$f":"'Population 2016'!I11/'Population 2016'!I$5","v":9.2611590319068751E-2},{"$f":"'Population 2016'!J11/'Population 2016'!J$5","v":0.23257838998863853},{"$f":"'Population 2016'!K11/'Population 2016'!K$5","v":0.13677172423569436},{"$f":"'Population 2016'!L11/'Population 2016'!L$5","v":9.0337235715533815E-2},{"$f":"'Population 2016'!M11/'Population 2016'!M$5","v":9.0337235715533815E-2},{"$f":"'Population 2016'!N11/'Population 2016'!N$5","v":0.15238585126305046},{"$f":"'Population 2016'!O11/'Population 2016'!O$5","v":0.11513656492406456},{"$f":"'Population 2016'!P11/'Population 2016'!P$5","v":0.54138397385326276},{"$f":"'Population 2016'!Q11/'Population 2016'!Q$5","v":0.16680180021386354},{"$f":"'Population 2016'!R11/'Population 2016'!R$5","v":0.58351519667855434},{"$f":"'Population 2016'!S11/'Population 2016'!S$5","v":0.26668355485099854},{"$f":"'Population 2016'!T11/'Population 2016'!T$5","v":0.41061548698715233},{"$f":"'Population 2016'!U11/'Population 2016'!U$5","v":0},{"$f":"'Population 2016'!V11/'Population 2016'!V$5","v":0.19222872669266758},{"$f":"'Population 2016'!W11/'Population 2016'!W$5","v":0.21554919302649383},{"$f":"'Population 2016'!X11/'Population 2016'!X$5","v":0.21554919302649383},{"$f":"'Population 2016'!Y11/'Population 2016'!Y$5","v":0.2115665887664743},{"$f":"'Population 2016'!Z11/'Population 2016'!Z$5","v":0.10277148105919087},{"$f":"'Population 2016'!AA11/'Population 2016'!AA$5","v":0.16167084231080212},{"$f":"'Population 2016'!AB11/'Population 2016'!AB$5","v":0.3319058780180752},{"$f":"'Population 2016'!AC11/'Population 2016'!AC$5","v":0.18841444620734307},{"$f":"'Population 2016'!AD11/'Population 2016'!AD$5","v":9.6594588559306263E-2},{"$f":"'Population 2016'!AE11/'Population 2016'!AE$5","v":9.4482489553280841E-2},{"$f":"'Population 2016'!AF11/'Population 2016'!AF$5","v":0.1203607353451266},{"$f":"'Population 2016'!AG11/'Population 2016'!AG$5","v":9.4482489553280841E-2},{"$f":"'Population 2016'!AH11/'Population 2016'!AH$5","v":0.11363792574979334},{"$f":"'Population 2016'!AI11/'Population 2016'!AI$5","v":0.31080611820806719},{"$f":"'Population 2016'!AJ11/'Population 2016'!AJ$5","v":0.15435128126481332},{"$f":"'Population 2016'!AK11/'Population 2016'!AK$5","v":0.17869579975610675},{"$f":"'Population 2016'!AL11/'Population 2016'!AL$5","v":9.3081002465369544E-2},{"$f":"'Population 2016'!AM11/'Population 2016'!AM$5","v":8.96298684129508E-2},{"$f":"'Population 2016'!AN11/'Population 2016'!AN$5","v":7.4560925057270647E-2},{"$f":"'Population 2016'!AO11/'Population 2016'!AO$5","v":7.4560925057270647E-2},{"$f":"'Population 2016'!AP11/'Population 2016'!AP$5","v":0.18198246754276112},{"$f":"'Population 2016'!AQ11/'Population 2016'!AQ$5","v":0.17987203375897406},{"$f":"'Population 2016'!AR11/'Population 2016'!AR$5","v":0.20066619393274301},{"$f":"'Population 2016'!AS11/'Population 2016'!AS$5","v":9.2611590319068751E-2},{"$f":"'Population 2016'!AT11/'Population 2016'!AT$5","v":0},{"$f":"'Population 2016'!AU11/'Population 2016'!AU$5","v":0},{"$f":"'Population 2016'!AV11/'Population 2016'!AV$5","v":0.208615774469433},{"$f":"'Population 2016'!AW11/'Population 2016'!AW$5","v":0.13891558362316186},{"$f":"'Population 2016'!AX11/'Population 2016'!AX$5","v":0.28439628403848854},{"$f":"'Population 2016'!AY11/'Population 2016'!AY$5","v":0.19166488173556501},{"$f":"'Population 2016'!AZ11/'Population 2016'!AZ$5","v":0.17064562707457243},{"$f":"'Population 2016'!BA11/'Population 2016'!BA$5","v":3.9840207298639602E-2},{"$f":"'Population 2016'!BB11/'Population 2016'!BB$5","v":0.17669845259385594},{"$f":"'Population 2016'!BC11/'Population 2016'!BC$5","v":0},9]
["SIMD Q1 (most deprived)","16+ Females",{"$f":"'Population 2016'!C12/'Population 2016'!C$5","v":4.0582050875785189E-2},{"$f":"'Population 2016'!D12/'Population 2016'!D$5","v":2.4656944729712547E-2},{"$f":"'Population 2016'!E12/'Population 2016'!E$5","v":1.0050675279745357E-2},{"$f":"'Population 2016'!F12/'Population 2016'!F$5","v":3.5910378573268092E-2},{"$f":"'Population 2016'!G12/'Population 2016'!G$5","v":3.7893141341417205E-2},{"$f":"'Population 2016'!H12/'Population 2016'!H$5","v":0.1596884696818876},{"$f":"'Population 2016'!I12/'Population 2016'!I$5","v":2.7855707227200401E-2},{"$f":"'Population 2016'!J12/'Population 2016'!J$5","v":8.7582826766625474E-2},{"$f":"'Population 2016'!K12/'Population 2016'!K$5","v":0.12323394603789632},{"$f":"'Population 2016'!L12/'Population 2016'!L$5","v":4.1515098565596556E-2},{"$f":"'Population 2016'!M12/'Population 2016'!M$5","v":4.1515098565596556E-2},{"$f":"'Population 2016'!N12/'Population 2016'!N$5","v":0.18184229350350825},{"$f":"'Population 2016'!O12/'Population 2016'!O$5","v":0.16437324773877809},{"$f":"'Population 2016'!P12/'Population 2016'!P$5","v":2.48055899921109E-2},{"$f":"'Population 2016'!Q12/'Population 2016'!Q$5","v":1.8331159445834948E-2},{"$f":"'Population 2016'!R12/'Population 2016'!R$5","v":3.5756107946984618E-2},{"$f":"'Population 2016'!S12/'Population 2016'!S$5","v":7.060379083836596E-2},{"$f":"'Population 2016'!T12/'Population 2016'!T$5","v":6.7702637934323864E-2},{"$f":"'Population 2016'!U12/'Population 2016'!U$5","v":0},{"$f":"'Population 2016'!V12/'Population 2016'!V$5","v":7.526274414025233E-2},{"$f":"'Population 2016'!W12/'Population 2016'!W$5","v":0.1009321540865086},{"$f":"'Population 2016'!X12/'Population 2016'!X$5","v":0.1009321540865086},{"$f":"'Population 2016'!Y12/'Population 2016'!Y$5","v":8.1167231045611354E-2},{"$f":"'Population 2016'!Z12/'Population 2016'!Z$5","v":0.24039505752221813},{"$f":"'Population 2016'!AA12/'Population 2016'!AA$5","v":0.16821102383339412},{"$f":"'Population 2016'!AB12/'Population 2016'!AB$5","v":2.1358607207557598E-2},{"$f":"'Population 2016'!AC12/'Population 2016'!AC$5","v":0.18656616075842797},{"$f":"'Population 2016'!AD12/'Population 2016'!AD$5","v":3.5903829692210357E-2},{"$f":"'Population 2016'!AE12/'Population 2016'!AE$5","v":3.5149231511617161E-2},{"$f":"'Population 2016'!AF12/'Population 2016'!AF$5","v":0.2227299461611546},{"$f":"'Population 2016'!AG12/'Population 2016'!AG$5","v":3.5149231511617161E-2},{"$f":"'Population 2016'!AH12/'Population 2016'!AH$5","v":0.13524423432376953},{"$f":"'Population 2016'!AI12/'Population 2016'!AI$5","v":6.3500743722110425E-2},{"$f":"'Population 2016'!AJ12/'Population 2016'!AJ$5","v":5.2059225385494796E-2},{"$f":"'Population 2016'!AK12/'Population 2016'!AK$5","v":4.4001357756182193E-3},{"$f":"'Population 2016'!AL12/'Population 2016'!AL$5","v":0.21438959933310867},{"$f":"'Population 2016'!AM12/'Population 2016'!AM$5","v":0.16305131279179691},{"$f":"'Population 2016'!AN12/'Population 2016'!AN$5","v":0},{"$f":"'Population 2016'!AO12/'Population 2016'!AO$5","v":0},{"$f":"'Population 2016'!AP12/'Population 2016'!AP$5","v":2.6694989141290048E-2},{"$f":"'Population 2016'!AQ12/'Population 2016'!AQ$5","v":0.14605140571052777},{"$f":"'Population 2016'!AR12/'Population 2016'!AR$5","v":0.10195035046247501},{"$f":"'Population 2016'!AS12/'Population 2016'!AS$5","v":2.7855707227200401E-2},{"$f":"'Population 2016'!AT12/'Population 2016'!AT$5","v":0},{"$f":"'Population 2016'!AU12/'Population 2016'!AU$5","v":0},{"$f":"'Population 2016'!AV12/'Population 2016'!AV$5","v":8.9568155421813955E-2},{"$f":"'Population 2016'!AW12/'Population 2016'!AW$5","v":0.10596665446335957},{"$f":"'Population 2016'!AX12/'Population 2016'!AX$5","v":6.8300599307410198E-2},{"$f":"'Population 2016'!AY12/'Population 2016'!AY$5","v":9.2347235396713689E-2},{"$f":"'Population 2016'!AZ12/'Population 2016'!AZ$5","v":8.4792125685292041E-2},{"$f":"'Population 2016'!BA12/'Population 2016'!BA$5","v":0.20539570287194991},{"$f":"'Population 2016'!BB12/'Population 2016'!BB$5","v":8.3239540680692989E-2},{"$f":"'Population 2016'!BC12/'Population 2016'!BC$5","v":0},10]
["SIMD Q2",null,{"$f":"'Population 2016'!C13/'Population 2016'!C$5","v":0.10523222235283895},{"$f":"'Population 2016'!D13/'Population 2016'!D$5","v":7.0951067554747019E-2},{"$f":"'Population 2016'!E13/'Population 2016'!E$5","v":3.9508904504521394E-2},{"$f":"'Population 2016'!F13/'Population 2016'!F$5","v":8.8405871748647946E-2},{"$f":"'Population 2016'!G13/'Population 2016'!G$5","v":8.8913549504682513E-2},{"$f":"'Population 2016'!H13/'Population 2016'!H$5","v":0.12879158790323364},{"$f":"'Population 2016'!I13/'Population 2016'!I$5","v":8.3535717276609994E-2},{"$f":"'Population 2016'!J13/'Population 2016'!J$5","v":9.8521350439116626E-2},{"$f":"'Population 2016'!K13/'Population 2016'!K$5","v":0.13662996739592687},{"$f":"'Population 2016'!L13/'Population 2016'!L$5","v":0.1440201420107064},{"$f":"'Population 2016'!M13/'Population 2016'!M$5","v":0.1440201420107064},{"$f":"'Population 2016'!N13/'Population 2016'!N$5","v":0.10406603386888065},{"$f":"'Population 2016'!O13/'Population 2016'!O$5","v":0.13875432183156497},{"$f":"'Population 2016'!P13/'Population 2016'!P$5","v":8.887636650512791E-2},{"$f":"'Population 2016'!Q13/'Population 2016'!Q$5","v":0.14501592225708276},{"$f":"'Population 2016'!R13/'Population 2016'!R$5","v":4.8091765582583698E-2},{"$f":"'Population 2016'!S13/'Population 2016'!S$5","v":0.10494535466069754},{"$f":"'Population 2016'!T13/'Population 2016'!T$5","v":7.509434489048547E-2},{"$f":"'Population 2016'!U13/'Population 2016'!U$5","v":0.12180763953436906},{"$f":"'Population 2016'!V13/'Population 2016'!V$5","v":0.14931957472466245},{"$f":"'Population 2016'!W13/'Population 2016'!W$5","v":0.10578249302191804},{"$f":"'Population 2016'!X13/'Population 2016'!X$5","v":0.10578249302191804},{"$f":"'Population 2016'!Y13/'Population 2016'!Y$5","v":0.12497416575253176},{"$f":"'Population 2016'!Z13/'Population 2016'!Z$5","v":9.0876006372644855E-2},{"$f":"'Population 2016'!AA13/'Population 2016'!AA$5","v":0.11083229191373392},{"$f":"'Population 2016'!AB13/'Population 2016'!AB$5","v":7.2358064747244197E-2},{"$f":"'Population 2016'!AC13/'Population 2016'!AC$5","v":9.2128806981906036E-2},{"$f":"'Population 2016'!AD13/'Population 2016'!AD$5","v":9.5995385016189663E-2},{"$f":"'Population 2016'!AE13/'Population 2016'!AE$5","v":9.8681711311204429E-2},{"$f":"'Population 2016'!AF13/'Population 2016'!AF$5","v":6.8301437210635058E-2},{"$f":"'Population 2016'!AG13/'Population 2016'!AG$5","v":9.8681711311204429E-2},{"$f":"'Population 2016'!AH13/'Population 2016'!AH$5","v":0.14442473273083603},{"$f":"'Population 2016'!AI13/'Population 2016'!AI$5","v":0.10739128532680024},{"$f":"'Population 2016'!AJ13/'Population 2016'!AJ$5","v":0.19047486267183447},{"$f":"'Population 2016'!AK13/'Population 2016'!AK$5","v":7.95921702726827E-2},{"$f":"'Population 2016'!AL13/'Population 2016'!AL$5","v":0.10674695376101878},{"$f":"'Population 2016'!AM13/'Population 2016'!AM$5","v":0.1493167107946293},{"$f":"'Population 2016'!AN13/'Population 2016'!AN$5","v":7.0415621250136354E-2},{"$f":"'Population 2016'!AO13/'Population 2016'!AO$5","v":7.0415621250136354E-2},{"$f":"'Population 2016'!AP13/'Population 2016'!AP$5","v":5.5965949621926671E-2},{"$f":"'Population 2016'!AQ13/'Population 2016'!AQ$5","v":9.9180687236258017E-2},{"$f":"'Population 2016'!AR13/'Population 2016'!AR$5","v":0.10450026209776681},{"$f":"'Population 2016'!AS13/'Population 2016'!AS$5","v":8.3535717276609994E-2},{"$f":"'Population 2016'!AT13/'Population 2016'!AT$5","v":1.5236990562556018E-2},{"$f":"'Population 2016'!AU13/'Population 2016'!AU$5","v":1.5236990562556018E-2},{"$f":"'Population 2016'!AV13/'Population 2016'!AV$5","v":0.14441980783444197},{"$f":"'Population 2016'!AW13/'Population 2016'!AW$5","v":0.13927405576911342},{"$f":"'Population 2016'!AX13/'Population 2016'!AX$5","v":7.7909963325964449E-2},{"$f":"'Population 2016'!AY13/'Population 2016'!AY$5","v":9.3259080199504296E-2},{"$f":"'Population 2016'!AZ13/'Population 2016'!AZ$5","v":8.2237920739108669E-2},{"$f":"'Population 2016'!BA13/'Population 2016'!BA$5","v":0.15685057223061974},{"$f":"'Population 2016'!BB13/'Population 2016'!BB$5","v":0.13998467094315128},{"$f":"'Population 2016'!BC13/'Population 2016'!BC$5","v":0.12180763953436906},11]
["SIMD Q3",null,{"$f":"'Population 2016'!C14/'Population 2016'!C$5","v":7.5516347819864757E-2},{"$f":"'Population 2016'!D14/'Population 2016'!D$5","v":8.9693181929325239E-2},{"$f":"'Population 2016'!E14/'Population 2016'!E$5","v":0.10269596238497274},{"$f":"'Population 2016'!F14/'Population 2016'!F$5","v":0.16861189801699716},{"$f":"'Population 2016'!G14/'Population 2016'!G$5","v":0.21348725166459157},{"$f":"'Population 2016'!H14/'Population 2016'!H$5","v":9.0813292565488479E-2},{"$f":"'Population 2016'!I14/'Population 2016'!I$5","v":0.17332091114647014},{"$f":"'Population 2016'!J14/'Population 2016'!J$5","v":9.0319530945489834E-2},{"$f":"'Population 2016'!K14/'Population 2016'!K$5","v":9.8426499078580545E-2},{"$f":"'Population 2016'!L14/'Population 2016'!L$5","v":0.19272314266198592},{"$f":"'Population 2016'!M14/'Population 2016'!M$5","v":0.19272314266198592},{"$f":"'Population 2016'!N14/'Population 2016'!N$5","v":6.6564325957836706E-2},{"$f":"'Population 2016'!O14/'Population 2016'!O$5","v":8.7615537789401732E-2},{"$f":"'Population 2016'!P14/'Population 2016'!P$5","v":3.2807393215372481E-2},{"$f":"'Population 2016'!Q14/'Population 2016'!Q$5","v":0.11315965734832728},{"$f":"'Population 2016'!R14/'Population 2016'!R$5","v":5.9509235109384148E-2},{"$f":"'Population 2016'!S14/'Population 2016'!S$5","v":0.10545464816380715},{"$f":"'Population 2016'!T14/'Population 2016'!T$5","v":7.817015118448789E-2},{"$f":"'Population 2016'!U14/'Population 2016'!U$5","v":0.3586951710706856},{"$f":"'Population 2016'!V14/'Population 2016'!V$5","v":9.5221376725868376E-2},{"$f":"'Population 2016'!W14/'Population 2016'!W$5","v":0.11313317514168611},{"$f":"'Population 2016'!X14/'Population 2016'!X$5","v":0.11313317514168611},{"$f":"'Population 2016'!Y14/'Population 2016'!Y$5","v":9.2872132398531024E-2},{"$f":"'Population 2016'!Z14/'Population 2016'!Z$5","v":7.3318324451249847E-2},{"$f":"'Population 2016'!AA14/'Population 2016'!AA$5","v":8.2239925801760219E-2},{"$f":"'Population 2016'!AB14/'Population 2016'!AB$5","v":9.8649990276654762E-2},{"$f":"'Population 2016'!AC14/'Population 2016'!AC$5","v":7.2824722136605569E-2},{"$f":"'Population 2016'!AD14/'Population 2016'!AD$5","v":0.17748706688004764},{"$f":"'Population 2016'!AE14/'Population 2016'!AE$5","v":0.16383125083419747},{"$f":"'Population 2016'!AF14/'Population 2016'!AF$5","v":8.3337103560602629E-2},{"$f":"'Population 2016'!AG14/'Population 2016'!AG$5","v":0.16383125083419747},{"$f":"'Population 2016'!AH14/'Population 2016'!AH$5","v":9.9150125855679297E-2},{"$f":"'Population 2016'!AI14/'Population 2016'!AI$5","v":9.3379506081021968E-2},{"$f":"'Population 2016'!AJ14/'Population 2016'!AJ$5","v":0.12381842009870897},{"$f":"'Population 2016'!AK14/'Population 2016'!AK$5","v":0.14470160793533057},{"$f":"'Population 2016'!AL14/'Population 2016'!AL$5","v":7.6435323956652063E-2},{"$f":"'Population 2016'!AM14/'Population 2016'!AM$5","v":9.529828933214049E-2},{"$f":"'Population 2016'!AN14/'Population 2016'!AN$5","v":0.15899421839205846},{"$f":"'Population 2016'!AO14/'Population 2016'!AO$5","v":0.15899421839205846},{"$f":"'Population 2016'!AP14/'Population 2016'!AP$5","v":0.123472250844126},{"$f":"'Population 2016'!AQ14/'Population 2016'!AQ$5","v":9.367293253685538E-2},{"$f":"'Population 2016'!AR14/'Population 2016'!AR$5","v":0.10450338098321973},{"$f":"'Population 2016'!AS14/'Population 2016'!AS$5","v":0.17332091114647014},{"$f":"'Population 2016'!AT14/'Population 2016'!AT$5","v":0.16170190330574155},{"$f":"'Population 2016'!AU14/'Population 2016'!AU$5","v":0.16170190330574155},{"$f":"'Population 2016'!AV14/'Population 2016'!AV$5","v":0.11133987963256256},{"$f":"'Population 2016'!AW14/'Population 2016'!AW$5","v":0.1032056562328391},{"$f":"'Population 2016'!AX14/'Population 2016'!AX$5","v":8.5934804554225183E-2},{"$f":"'Population 2016'!AY14/'Population 2016'!AY$5","v":0.11450384015177015},{"$f":"'Population 2016'!AZ14/'Population 2016'!AZ$5","v":0.11571008623318051},{"$f":"'Population 2016'!BA14/'Population 2016'!BA$5","v":8.0328222846037578E-2},{"$f":"'Population 2016'!BB14/'Population 2016'!BB$5","v":0.11181925522879653},{"$f":"'Population 2016'!BC14/'Population 2016'!BC$5","v":0.3586951710706856},12]
["SIMD Q4",null,{"$f":"'Population 2016'!C15/'Population 2016'!C$5","v":8.7133854323726195E-2},{"$f":"'Population 2016'!D15/'Population 2016'!D$5","v":0.13744950754574886},{"$f":"'Population 2016'!E15/'Population 2016'!E$5","v":0.18359827300896778},{"$f":"'Population 2016'!F15/'Population 2016'!F$5","v":0.13129023950553695},{"$f":"'Population 2016'!G15/'Population 2016'!G$5","v":0.12589996210685866},{"$f":"'Population 2016'!H15/'Population 2016'!H$5","v":7.6780161666337027E-2},{"$f":"'Population 2016'!I15/'Population 2016'!I$5","v":0.18659450632275354},{"$f":"'Population 2016'!J15/'Population 2016'!J$5","v":0.12317656717779454},{"$f":"'Population 2016'!K15/'Population 2016'!K$5","v":8.4794216320937491E-2},{"$f":"'Population 2016'!L15/'Population 2016'!L$5","v":9.3712769844169458E-2},{"$f":"'Population 2016'!M15/'Population 2016'!M$5","v":9.3712769844169458E-2},{"$f":"'Population 2016'!N15/'Population 2016'!N$5","v":9.2146824089181081E-2},{"$f":"'Population 2016'!O15/'Population 2016'!O$5","v":6.9991381103813116E-2},{"$f":"'Population 2016'!P15/'Population 2016'!P$5","v":9.6900710019159245E-2},{"$f":"'Population 2016'!Q15/'Population 2016'!Q$5","v":0.16494518278281101},{"$f":"'Population 2016'!R15/'Population 2016'!R$5","v":8.0707404055996163E-2},{"$f":"'Population 2016'!S15/'Population 2016'!S$5","v":0.10040937664946661},{"$f":"'Population 2016'!T15/'Population 2016'!T$5","v":8.2849006295863711E-2},{"$f":"'Population 2016'!U15/'Population 2016'!U$5","v":3.0451909883592265E-2},{"$f":"'Population 2016'!V15/'Population 2016'!V$5","v":9.7701895116050097E-2},{"$f":"'Population 2016'!W15/'Population 2016'!W$5","v":8.914295426169605E-2},{"$f":"'Population 2016'!X15/'Population 2016'!X$5","v":8.914295426169605E-2},{"$f":"'Population 2016'!Y15/'Population 2016'!Y$5","v":0.1099108122287404},{"$f":"'Population 2016'!Z15/'Population 2016'!Z$5","v":6.05130250124375E-2},{"$f":"'Population 2016'!AA15/'Population 2016'!AA$5","v":7.7215200806294626E-2},{"$f":"'Population 2016'!AB15/'Population 2016'!AB$5","v":0.1466403283420161},{"$f":"'Population 2016'!AC15/'Population 2016'!AC$5","v":7.2800933347951374E-2},{"$f":"'Population 2016'!AD15/'Population 2016'!AD$5","v":0.15654843872120286},{"$f":"'Population 2016'!AE15/'Population 2016'!AE$5","v":0.16817421123420159},{"$f":"'Population 2016'!AF15/'Population 2016'!AF$5","v":9.1133933553514609E-2},{"$f":"'Population 2016'!AG15/'Population 2016'!AG$5","v":0.16817421123420159},{"$f":"'Population 2016'!AH15/'Population 2016'!AH$5","v":8.5143456897912931E-2},{"$f":"'Population 2016'!AI15/'Population 2016'!AI$5","v":9.3866206579753253E-2},{"$f":"'Population 2016'!AJ15/'Population 2016'!AJ$5","v":8.1490672838301317E-2},{"$f":"'Population 2016'!AK15/'Population 2016'!AK$5","v":0.19389512590674227},{"$f":"'Population 2016'!AL15/'Population 2016'!AL$5","v":8.5826785619268903E-2},{"$f":"'Population 2016'!AM15/'Population 2016'!AM$5","v":6.8386872444230348E-2},{"$f":"'Population 2016'!AN15/'Population 2016'!AN$5","v":0.23900949056397949},{"$f":"'Population 2016'!AO15/'Population 2016'!AO$5","v":0.23900949056397949},{"$f":"'Population 2016'!AP15/'Population 2016'!AP$5","v":0.21140402327092878},{"$f":"'Population 2016'!AQ15/'Population 2016'!AQ$5","v":9.1652052392174055E-2},{"$f":"'Population 2016'!AR15/'Population 2016'!AR$5","v":0.10443632494598201},{"$f":"'Population 2016'!AS15/'Population 2016'!AS$5","v":0.18659450632275354},{"$f":"'Population 2016'!AT15/'Population 2016'!AT$5","v":0.31786787578425685},{"$f":"'Population 2016'!AU15/'Population 2016'!AU$5","v":0.31786787578425685},{"$f":"'Population 2016'!AV15/'Population 2016'!AV$5","v":7.3244641537324462E-2},{"$f":"'Population 2016'!AW15/'Population 2016'!AW$5","v":0.10278616755140643},{"$f":"'Population 2016'!AX15/'Population 2016'!AX$5","v":0.14393600572472751},{"$f":"'Population 2016'!AY15/'Population 2016'!AY$5","v":0.11957406444111257},{"$f":"'Population 2016'!AZ15/'Population 2016'!AZ$5","v":0.14635479287353809},{"$f":"'Population 2016'!BA15/'Population 2016'!BA$5","v":6.8046858129993518E-2},{"$f":"'Population 2016'!BB15/'Population 2016'!BB$5","v":9.0924784046732904E-2},{"$f":"'Population 2016'!BC15/'Population 2016'!BC$5","v":3.0451909883592265E-2},13]
["SIMD Q5 (least deprived)",null,{"$f":"'Population 2016'!C16/'Population 2016'!C$5","v":0.19712961211941549},{"$f":"'Population 2016'!D16/'Population 2016'!D$5","v":0.18329861212992576},{"$f":"'Population 2016'!E16/'Population 2016'!E$5","v":0.17061302556265498},{"$f":"'Population 2016'!F16/'Population 2016'!F$5","v":9.2856039144990993E-2},{"$f":"'Population 2016'!G16/'Population 2016'!G$5","v":3.8407405402479292E-2},{"$f":"'Population 2016'!H16/'Population 2016'!H$5","v":7.095031662089471E-2},{"$f":"'Population 2016'!I16/'Population 2016'!I$5","v":4.8299974876476005E-2},{"$f":"'Population 2016'!J16/'Population 2016'!J$5","v":0.12168381944386854},{"$f":"'Population 2016'!K16/'Population 2016'!K$5","v":7.1492699522751973E-2},{"$f":"'Population 2016'!L16/'Population 2016'!L$5","v":4.7710196495798454E-2},{"$f":"'Population 2016'!M16/'Population 2016'!M$5","v":4.7710196495798454E-2},{"$f":"'Population 2016'!N16/'Population 2016'!N$5","v":7.9729306146068588E-2},{"$f":"'Population 2016'!O16/'Population 2016'!O$5","v":5.958926501619758E-2},{"$f":"'Population 2016'!P16/'Population 2016'!P$5","v":0.27929674292798379},{"$f":"'Population 2016'!Q16/'Population 2016'!Q$5","v":8.7061256624481498E-2},{"$f":"'Population 2016'!R16/'Population 2016'!R$5","v":0.30833821259381489},{"$f":"'Population 2016'!S16/'Population 2016'!S$5","v":0.13863904771824154},{"$f":"'Population 2016'!T16/'Population 2016'!T$5","v":0.21434321531109385},{"$f":"'Population 2016'!U16/'Population 2016'!U$5","v":0},{"$f":"'Population 2016'!V16/'Population 2016'!V$5","v":9.8205631158363921E-2},{"$f":"'Population 2016'!W16/'Population 2016'!W$5","v":0.11217879578242765},{"$f":"'Population 2016'!X16/'Population 2016'!X$5","v":0.11217879578242765},{"$f":"'Population 2016'!Y16/'Population 2016'!Y$5","v":0.10945771927314352},{"$f":"'Population 2016'!Z16/'Population 2016'!Z$5","v":5.3273142941211771E-2},{"$f":"'Population 2016'!AA16/'Population 2016'!AA$5","v":8.4045053107416695E-2},{"$f":"'Population 2016'!AB16/'Population 2016'!AB$5","v":0.16735617125369742},{"$f":"'Population 2016'!AC16/'Population 2016'!AC$5","v":9.8111170180856855E-2},{"$f":"'Population 2016'!AD16/'Population 2016'!AD$5","v":4.6678328184897096E-2},{"$f":"'Population 2016'!AE16/'Population 2016'!AE$5","v":4.9815706526761053E-2},{"$f":"'Population 2016'!AF16/'Population 2016'!AF$5","v":6.4184349032559679E-2},{"$f":"'Population 2016'!AG16/'Population 2016'!AG$5","v":4.9815706526761053E-2},{"$f":"'Population 2016'!AH16/'Population 2016'!AH$5","v":5.8781568412546559E-2},{"$f":"'Population 2016'!AI16/'Population 2016'!AI$5","v":0.1615052716773121},{"$f":"'Population 2016'!AJ16/'Population 2016'!AJ$5","v":7.8116721969718098E-2},{"$f":"'Population 2016'!AK16/'Population 2016'!AK$5","v":8.5387777679996987E-2},{"$f":"'Population 2016'!AL16/'Population 2016'!AL$5","v":4.7977155424699811E-2},{"$f":"'Population 2016'!AM16/'Population 2016'!AM$5","v":4.6307195815872303E-2},{"$f":"'Population 2016'!AN16/'Population 2016'!AN$5","v":3.7253190793062073E-2},{"$f":"'Population 2016'!AO16/'Population 2016'!AO$5","v":3.7253190793062073E-2},{"$f":"'Population 2016'!AP16/'Population 2016'!AP$5","v":9.6412662682497666E-2},{"$f":"'Population 2016'!AQ16/'Population 2016'!AQ$5","v":9.3213952978571823E-2},{"$f":"'Population 2016'!AR16/'Population 2016'!AR$5","v":0.10360915196836203},{"$f":"'Population 2016'!AS16/'Population 2016'!AS$5","v":4.8299974876476005E-2},{"$f":"'Population 2016'!AT16/'Population 2016'!AT$5","v":0},{"$f":"'Population 2016'!AU16/'Population 2016'!AU$5","v":0},{"$f":"'Population 2016'!AV16/'Population 2016'!AV$5","v":0.11041072748389821},{"$f":"'Population 2016'!AW16/'Population 2016'!AW$5","v":7.191561413142962E-2},{"$f":"'Population 2016'!AX16/'Population 2016'!AX$5","v":0.14883013660119862},{"$f":"'Population 2016'!AY16/'Population 2016'!AY$5","v":0.10008873657476822},{"$f":"'Population 2016'!AZ16/'Population 2016'!AZ$5","v":8.9448947541002466E-2},{"$f":"'Population 2016'!BA16/'Population 2016'!BA$5","v":2.0540919887713237E-2},{"$f":"'Population 2016'!BB16/'Population 2016'!BB$5","v":8.973712738998639E-2},{"$f":"'Population 2016'!BC16/'Population 2016'!BC$5","v":0},14]
["SIMD Q1 (most deprived)","16+ Males",{"$f":"'Population 2016'!C17/'Population 2016'!C$5","v":3.9692721297398967E-2},{"$f":"'Population 2016'!D17/'Population 2016'!D$5","v":2.4434435609283767E-2},{"$f":"'Population 2016'!E17/'Population 2016'!E$5","v":1.0439763921638485E-2},{"$f":"'Population 2016'!F17/'Population 2016'!F$5","v":3.3335050218902908E-2},{"$f":"'Population 2016'!G17/'Population 2016'!G$5","v":3.515942185892925E-2},{"$f":"'Population 2016'!H17/'Population 2016'!H$5","v":0.14045127799411827},{"$f":"'Population 2016'!I17/'Population 2016'!I$5","v":2.5960974792730927E-2},{"$f":"'Population 2016'!J17/'Population 2016'!J$5","v":7.733262566033354E-2},{"$f":"'Population 2016'!K17/'Population 2016'!K$5","v":0.11248405235552615},{"$f":"'Population 2016'!L17/'Population 2016'!L$5","v":3.7782154940987724E-2},{"$f":"'Population 2016'!M17/'Population 2016'!M$5","v":3.7782154940987724E-2},{"$f":"'Population 2016'!N17/'Population 2016'!N$5","v":0.16455421512445648},{"$f":"'Population 2016'!O17/'Population 2016'!O$5","v":0.14693731982048919},{"$f":"'Population 2016'!P17/'Population 2016'!P$5","v":2.1841541755888649E-2},{"$f":"'Population 2016'!Q17/'Population 2016'!Q$5","v":1.5969260055698525E-2},{"$f":"'Population 2016'!R17/'Population 2016'!R$5","v":2.9821152924894873E-2},{"$f":"'Population 2016'!S17/'Population 2016'!S$5","v":6.4575238626513973E-2},{"$f":"'Population 2016'!T17/'Population 2016'!T$5","v":6.2509597353224478E-2},{"$f":"'Population 2016'!U17/'Population 2016'!U$5","v":0},{"$f":"'Population 2016'!V17/'Population 2016'!V$5","v":7.0072736431564406E-2},{"$f":"'Population 2016'!W17/'Population 2016'!W$5","v":9.2195660842337837E-2},{"$f":"'Population 2016'!X17/'Population 2016'!X$5","v":9.2195660842337837E-2},{"$f":"'Population 2016'!Y17/'Population 2016'!Y$5","v":7.3552089791895203E-2},{"$f":"'Population 2016'!Z17/'Population 2016'!Z$5","v":0.21924647152538895},{"$f":"'Population 2016'!AA17/'Population 2016'!AA$5","v":0.15194627537193794},{"$f":"'Population 2016'!AB17/'Population 2016'!AB$5","v":2.1039272079670022E-2},{"$f":"'Population 2016'!AC17/'Population 2016'!AC$5","v":0.16843703521361297},{"$f":"'Population 2016'!AD17/'Population 2016'!AD$5","v":3.3190665823067476E-2},{"$f":"'Population 2016'!AE17/'Population 2016'!AE$5","v":3.2443864926744628E-2},{"$f":"'Population 2016'!AF17/'Population 2016'!AF$5","v":0.19449848436863773},{"$f":"'Population 2016'!AG17/'Population 2016'!AG$5","v":3.2443864926744628E-2},{"$f":"'Population 2016'!AH17/'Population 2016'!AH$5","v":0.12232800497849772},{"$f":"'Population 2016'!AI17/'Population 2016'!AI$5","v":5.8065010062122668E-2},{"$f":"'Population 2016'!AJ17/'Population 2016'!AJ$5","v":4.6524272927529767E-2},{"$f":"'Population 2016'!AK17/'Population 2016'!AK$5","v":3.5829677030034071E-3},{"$f":"'Population 2016'!AL17/'Population 2016'!AL$5","v":0.18455685425941362},{"$f":"'Population 2016'!AM17/'Population 2016'!AM$5","v":0.14878065565338963},{"$f":"'Population 2016'!AN17/'Population 2016'!AN$5","v":0},{"$f":"'Population 2016'!AO17/'Population 2016'!AO$5","v":0},{"$f":"'Population 2016'!AP17/'Population 2016'!AP$5","v":2.5775565524784806E-2},{"$f":"'Population 2016'!AQ17/'Population 2016'!AQ$5","v":0.13420014248917631},{"$f":"'Population 2016'!AR17/'Population 2016'!AR$5","v":9.2363787690338345E-2},{"$f":"'Population 2016'!AS17/'Population 2016'!AS$5","v":2.5960974792730927E-2},{"$f":"'Population 2016'!AT17/'Population 2016'!AT$5","v":0},{"$f":"'Population 2016'!AU17/'Population 2016'!AU$5","v":0},{"$f":"'Population 2016'!AV17/'Population 2016'!AV$5","v":8.1026290782388349E-2},{"$f":"'Population 2016'!AW17/'Population 2016'!AW$5","v":9.4476478125572028E-2},{"$f":"'Population 2016'!AX17/'Population 2016'!AX$5","v":5.8320661410480854E-2},{"$f":"'Population 2016'!AY17/'Population 2016'!AY$5","v":8.440684189590282E-2},{"$f":"'Population 2016'!AZ17/'Population 2016'!AZ$5","v":7.755233531418447E-2},{"$f":"'Population 2016'!BA17/'Population 2016'!BA$5","v":0.17446285899373784},{"$f":"'Population 2016'!BB17/'Population 2016'!BB$5","v":7.5326432956091233E-2},{"$f":"'Population 2016'!BC17/'Population 2016'!BC$5","v":0},15]
["SIMD Q2",null,{"$f":"'Population 2016'!C18/'Population 2016'!C$5","v":9.9548690794416653E-2},{"$f":"'Population 2016'!D18/'Population 2016'!D$5","v":6.6928787300842105E-2},{"$f":"'Population 2016'!E18/'Population 2016'!E$5","v":3.7010299129472762E-2},{"$f":"'Population 2016'!F18/'Population 2016'!F$5","v":8.0370847283028582E-2},{"$f":"'Population 2016'!G18/'Population 2016'!G$5","v":7.9819195582742378E-2},{"$f":"'Population 2016'!H18/'Population 2016'!H$5","v":0.11487518360121006},{"$f":"'Population 2016'!I18/'Population 2016'!I$5","v":7.8228372833096055E-2},{"$f":"'Population 2016'!J18/'Population 2016'!J$5","v":8.9921464883109564E-2},{"$f":"'Population 2016'!K18/'Population 2016'!K$5","v":0.1245570098757265},{"$f":"'Population 2016'!L18/'Population 2016'!L$5","v":0.13209060727844582},{"$f":"'Population 2016'!M18/'Population 2016'!M$5","v":0.13209060727844582},{"$f":"'Population 2016'!N18/'Population 2016'!N$5","v":9.6141326624926665E-2},{"$f":"'Population 2016'!O18/'Population 2016'!O$5","v":0.12654917228876275},{"$f":"'Population 2016'!P18/'Population 2016'!P$5","v":7.7673841992561707E-2},{"$f":"'Population 2016'!Q18/'Population 2016'!Q$5","v":0.12601497044688076},{"$f":"'Population 2016'!R18/'Population 2016'!R$5","v":4.2210038856656196E-2},{"$f":"'Population 2016'!S18/'Population 2016'!S$5","v":9.5423243202211586E-2},{"$f":"'Population 2016'!T18/'Population 2016'!T$5","v":7.0731911606631823E-2},{"$f":"'Population 2016'!U18/'Population 2016'!U$5","v":0.11862081175585358},{"$f":"'Population 2016'!V18/'Population 2016'!V$5","v":0.13715358606635578},{"$f":"'Population 2016'!W18/'Population 2016'!W$5","v":9.5343151674412832E-2},{"$f":"'Population 2016'!X18/'Population 2016'!X$5","v":9.5343151674412832E-2},{"$f":"'Population 2016'!Y18/'Population 2016'!Y$5","v":0.11451725727730878},{"$f":"'Population 2016'!Z18/'Population 2016'!Z$5","v":8.6652096565314765E-2},{"$f":"'Population 2016'!AA18/'Population 2016'!AA$5","v":0.10057289704662038},{"$f":"'Population 2016'!AB18/'Population 2016'!AB$5","v":6.777273983398667E-2},{"$f":"'Population 2016'!AC18/'Population 2016'!AC$5","v":8.4563972189871772E-2},{"$f":"'Population 2016'!AD18/'Population 2016'!AD$5","v":8.6475120026796679E-2},{"$f":"'Population 2016'!AE18/'Population 2016'!AE$5","v":8.8999887062495509E-2},{"$f":"'Population 2016'!AF18/'Population 2016'!AF$5","v":5.9735480854785923E-2},{"$f":"'Population 2016'!AG18/'Population 2016'!AG$5","v":8.8999887062495509E-2},{"$f":"'Population 2016'!AH18/'Population 2016'!AH$5","v":0.12932576651217223},{"$f":"'Population 2016'!AI18/'Population 2016'!AI$5","v":9.7702390847843212E-2},{"$f":"'Population 2016'!AJ18/'Population 2016'!AJ$5","v":0.16536541839779159},{"$f":"'Population 2016'!AK18/'Population 2016'!AK$5","v":7.2111939454131732E-2},{"$f":"'Population 2016'!AL18/'Population 2016'!AL$5","v":9.3338181302211734E-2},{"$f":"'Population 2016'!AM18/'Population 2016'!AM$5","v":0.13256860962508737},{"$f":"'Population 2016'!AN18/'Population 2016'!AN$5","v":7.1451947201919927E-2},{"$f":"'Population 2016'!AO18/'Population 2016'!AO$5","v":7.1451947201919927E-2},{"$f":"'Population 2016'!AP18/'Population 2016'!AP$5","v":5.6718925859581819E-2},{"$f":"'Population 2016'!AQ18/'Population 2016'!AQ$5","v":8.5952485340055895E-2},{"$f":"'Population 2016'!AR18/'Population 2016'!AR$5","v":9.5338313302291505E-2},{"$f":"'Population 2016'!AS18/'Population 2016'!AS$5","v":7.8228372833096055E-2},{"$f":"'Population 2016'!AT18/'Population 2016'!AT$5","v":1.7925871250065905E-2},{"$f":"'Population 2016'!AU18/'Population 2016'!AU$5","v":1.7925871250065905E-2},{"$f":"'Population 2016'!AV18/'Population 2016'!AV$5","v":0.12807517685566466},{"$f":"'Population 2016'!AW18/'Population 2016'!AW$5","v":0.12591143449874917},{"$f":"'Population 2016'!AX18/'Population 2016'!AX$5","v":7.1188519876816125E-2},{"$f":"'Population 2016'!AY18/'Population 2016'!AY$5","v":8.5815917505584288E-2},{"$f":"'Population 2016'!AZ18/'Population 2016'!AZ$5","v":7.7431528323486598E-2},{"$f":"'Population 2016'!BA18/'Population 2016'!BA$5","v":0.14069585402720794},{"$f":"'Population 2016'!BB18/'Population 2016'!BB$5","v":0.12759713581406268},{"$f":"'Population 2016'!BC18/'Population 2016'!BC$5","v":0.11862081175585358},16]
["SIMD Q3",null,{"$f":"'Population 2016'!C19/'Population 2016'!C$5","v":8.0157217113972182E-2},{"$f":"'Population 2016'!D19/'Population 2016'!D$5","v":8.9905910429075836E-2},{"$f":"'Population 2016'!E19/'Population 2016'!E$5","v":9.8847266300704575E-2},{"$f":"'Population 2016'!F19/'Population 2016'!F$5","v":0.16013391707442698},{"$f":"'Population 2016'!G19/'Population 2016'!G$5","v":0.19827586206896552},{"$f":"'Population 2016'!H19/'Population 2016'!H$5","v":8.3339547943828571E-2},{"$f":"'Population 2016'!I19/'Population 2016'!I$5","v":0.16154425927476762},{"$f":"'Population 2016'!J19/'Population 2016'!J$5","v":8.2640173158737132E-2},{"$f":"'Population 2016'!K19/'Population 2016'!K$5","v":9.0582620611444509E-2},{"$f":"'Population 2016'!L19/'Population 2016'!L$5","v":0.17981668864073197},{"$f":"'Population 2016'!M19/'Population 2016'!M$5","v":0.17981668864073197},{"$f":"'Population 2016'!N19/'Population 2016'!N$5","v":6.1090973388736626E-2},{"$f":"'Population 2016'!O19/'Population 2016'!O$5","v":8.5376606136257818E-2},{"$f":"'Population 2016'!P19/'Population 2016'!P$5","v":2.8637439422968557E-2},{"$f":"'Population 2016'!Q19/'Population 2016'!Q$5","v":0.10284250478842787},{"$f":"'Population 2016'!R19/'Population 2016'!R$5","v":5.1365305796561449E-2},{"$f":"'Population 2016'!S19/'Population 2016'!S$5","v":9.867318891876195E-2},{"$f":"'Population 2016'!T19/'Population 2016'!T$5","v":7.4601099100524426E-2},{"$f":"'Population 2016'!U19/'Population 2016'!U$5","v":0.34338069313504183},{"$f":"'Population 2016'!V19/'Population 2016'!V$5","v":8.9229970768044814E-2},{"$f":"'Population 2016'!W19/'Population 2016'!W$5","v":0.1038443185012322},{"$f":"'Population 2016'!X19/'Population 2016'!X$5","v":0.1038443185012322},{"$f":"'Population 2016'!Y19/'Population 2016'!Y$5","v":8.6071763564967166E-2},{"$f":"'Population 2016'!Z19/'Population 2016'!Z$5","v":6.9400270624468866E-2},{"$f":"'Population 2016'!AA19/'Population 2016'!AA$5","v":7.5069245268101603E-2},{"$f":"'Population 2016'!AB19/'Population 2016'!AB$5","v":9.7100396098379782E-2},{"$f":"'Population 2016'!AC19/'Population 2016'!AC$5","v":6.7085418299991109E-2},{"$f":"'Population 2016'!AD19/'Population 2016'!AD$5","v":0.16795191484610517},{"$f":"'Population 2016'!AE19/'Population 2016'!AE$5","v":0.15644924485877679},{"$f":"'Population 2016'!AF19/'Population 2016'!AF$5","v":7.4575095386749918E-2},{"$f":"'Population 2016'!AG19/'Population 2016'!AG$5","v":0.15644924485877679},{"$f":"'Population 2016'!AH19/'Population 2016'!AH$5","v":8.940861763094099E-2},{"$f":"'Population 2016'!AI19/'Population 2016'!AI$5","v":8.8299227841455941E-2},{"$f":"'Population 2016'!AJ19/'Population 2016'!AJ$5","v":0.11253938599670971},{"$f":"'Population 2016'!AK19/'Population 2016'!AK$5","v":0.13409099480783979},{"$f":"'Population 2016'!AL19/'Population 2016'!AL$5","v":6.8001631755378586E-2},{"$f":"'Population 2016'!AM19/'Population 2016'!AM$5","v":8.6036850168966034E-2},{"$f":"'Population 2016'!AN19/'Population 2016'!AN$5","v":0.15430347987345916},{"$f":"'Population 2016'!AO19/'Population 2016'!AO$5","v":0.15430347987345916},{"$f":"'Population 2016'!AP19/'Population 2016'!AP$5","v":0.11599797092719116},{"$f":"'Population 2016'!AQ19/'Population 2016'!AQ$5","v":8.4164520195100567E-2},{"$f":"'Population 2016'!AR19/'Population 2016'!AR$5","v":9.7773717285954784E-2},{"$f":"'Population 2016'!AS19/'Population 2016'!AS$5","v":0.16154425927476762},{"$f":"'Population 2016'!AT19/'Population 2016'!AT$5","v":0.16734328043443877},{"$f":"'Population 2016'!AU19/'Population 2016'!AU$5","v":0.16734328043443877},{"$f":"'Population 2016'!AV19/'Population 2016'!AV$5","v":9.9429838454228703E-2},{"$f":"'Population 2016'!AW19/'Population 2016'!AW$5","v":9.295869180547929E-2},{"$f":"'Population 2016'!AX19/'Population 2016'!AX$5","v":7.8344429252335257E-2},{"$f":"'Population 2016'!AY19/'Population 2016'!AY$5","v":0.10641198249747559},{"$f":"'Population 2016'!AZ19/'Population 2016'!AZ$5","v":0.10867164084656937},{"$f":"'Population 2016'!BA19/'Population 2016'!BA$5","v":7.2581515871302099E-2},{"$f":"'Population 2016'!BB19/'Population 2016'!BB$5","v":0.10840128985036906},{"$f":"'Population 2016'!BC19/'Population 2016'!BC$5","v":0.34338069313504183},17]
["SIMD Q4",null,{"$f":"'Population 2016'!C20/'Population 2016'!C$5","v":8.4956530183539228E-2},{"$f":"'Population 2016'!D20/'Population 2016'!D$5","v":0.13427569613567678},{"$f":"'Population 2016'!E20/'Population 2016'!E$5","v":0.17951049836160868},{"$f":"'Population 2016'!F20/'Population 2016'!F$5","v":0.12262683492145249},{"$f":"'Population 2016'!G20/'Population 2016'!G$5","v":0.11838900016239917},{"$f":"'Population 2016'!H20/'Population 2016'!H$5","v":6.948150694036892E-2},{"$f":"'Population 2016'!I20/'Population 2016'!I$5","v":0.17034796080730258},{"$f":"'Population 2016'!J20/'Population 2016'!J$5","v":0.11792707098015474},{"$f":"'Population 2016'!K20/'Population 2016'!K$5","v":9.2519964088267265E-2},{"$f":"'Population 2016'!L20/'Population 2016'!L$5","v":8.8002160341842328E-2},{"$f":"'Population 2016'!M20/'Population 2016'!M$5","v":8.8002160341842328E-2},{"$f":"'Population 2016'!N20/'Population 2016'!N$5","v":8.1208156179423091E-2},{"$f":"'Population 2016'!O20/'Population 2016'!O$5","v":6.5265848366867774E-2},{"$f":"'Population 2016'!P20/'Population 2016'!P$5","v":8.707314324354784E-2},{"$f":"'Population 2016'!Q20/'Population 2016'!Q$5","v":0.14691954266107332},{"$f":"'Population 2016'!R20/'Population 2016'!R$5","v":6.9023793048384519E-2},{"$f":"'Population 2016'!S20/'Population 2016'!S$5","v":9.3231604089176676E-2},{"$f":"'Population 2016'!T20/'Population 2016'!T$5","v":7.7725764647305989E-2},{"$f":"'Population 2016'!U20/'Population 2016'!U$5","v":2.7043774620457664E-2},{"$f":"'Population 2016'!V20/'Population 2016'!V$5","v":9.3809389334534157E-2},{"$f":"'Population 2016'!W20/'Population 2016'!W$5","v":8.4076899443714492E-2},{"$f":"'Population 2016'!X20/'Population 2016'!X$5","v":8.4076899443714492E-2},{"$f":"'Population 2016'!Y20/'Population 2016'!Y$5","v":0.10536795917394},{"$f":"'Population 2016'!Z20/'Population 2016'!Z$5","v":5.6827266867086217E-2},{"$f":"'Population 2016'!AA20/'Population 2016'!AA$5","v":7.2242297647355055E-2},{"$f":"'Population 2016'!AB20/'Population 2016'!AB$5","v":0.14317472339641565},{"$f":"'Population 2016'!AC20/'Population 2016'!AC$5","v":6.7178504864290126E-2},{"$f":"'Population 2016'!AD20/'Population 2016'!AD$5","v":0.14985299043507389},{"$f":"'Population 2016'!AE20/'Population 2016'!AE$5","v":0.16178810870748159},{"$f":"'Population 2016'!AF20/'Population 2016'!AF$5","v":8.5327783558792919E-2},{"$f":"'Population 2016'!AG20/'Population 2016'!AG$5","v":0.16178810870748159},{"$f":"'Population 2016'!AH20/'Population 2016'!AH$5","v":8.1337135320397908E-2},{"$f":"'Population 2016'!AI20/'Population 2016'!AI$5","v":8.6989511330825095E-2},{"$f":"'Population 2016'!AJ20/'Population 2016'!AJ$5","v":7.3376460418816056E-2},{"$f":"'Population 2016'!AK20/'Population 2016'!AK$5","v":0.18892925838854457},{"$f":"'Population 2016'!AL20/'Population 2016'!AL$5","v":7.7623667547578087E-2},{"$f":"'Population 2016'!AM20/'Population 2016'!AM$5","v":6.69308307768091E-2},{"$f":"'Population 2016'!AN20/'Population 2016'!AN$5","v":0.23126431766117594},{"$f":"'Population 2016'!AO20/'Population 2016'!AO$5","v":0.23126431766117594},{"$f":"'Population 2016'!AP20/'Population 2016'!AP$5","v":0.20198785726740962},{"$f":"'Population 2016'!AQ20/'Population 2016'!AQ$5","v":8.5253740340877959E-2},{"$f":"'Population 2016'!AR20/'Population 2016'!AR$5","v":9.8467669299228761E-2},{"$f":"'Population 2016'!AS20/'Population 2016'!AS$5","v":0.17034796080730258},{"$f":"'Population 2016'!AT20/'Population 2016'!AT$5","v":0.31992407866294092},{"$f":"'Population 2016'!AU20/'Population 2016'!AU$5","v":0.31992407866294092},{"$f":"'Population 2016'!AV20/'Population 2016'!AV$5","v":6.4280435012142326E-2},{"$f":"'Population 2016'!AW20/'Population 2016'!AW$5","v":9.6505277930319114E-2},{"$f":"'Population 2016'!AX20/'Population 2016'!AX$5","v":0.13166873250955186},{"$f":"'Population 2016'!AY20/'Population 2016'!AY$5","v":0.11201615617637159},{"$f":"'Population 2016'!AZ20/'Population 2016'!AZ$5","v":0.13660394291006783},{"$f":"'Population 2016'!BA20/'Population 2016'!BA$5","v":6.179820773051177E-2},{"$f":"'Population 2016'!BB20/'Population 2016'!BB$5","v":8.6008437886247346E-2},{"$f":"'Population 2016'!BC20/'Population 2016'!BC$5","v":2.7043774620457664E-2},18]
["SIMD Q5 (least deprived)",null,{"$f":"'Population 2016'!C21/'Population 2016'!C$5","v":0.19005075311904238},{"$f":"'Population 2016'!D21/'Population 2016'!D$5","v":0.17840585663566211},{"$f":"'Population 2016'!E21/'Population 2016'!E$5","v":0.16772533154571323},{"$f":"'Population 2016'!F21/'Population 2016'!F$5","v":8.6458923512747879E-2},{"$f":"'Population 2016'!G21/'Population 2016'!G$5","v":6.3755210306934443E-2},{"$f":"'Population 2016'!H21/'Population 2016'!H$5","v":6.4828655082632705E-2},{"$f":"'Population 2016'!I21/'Population 2016'!I$5","v":4.4311615442592746E-2},{"$f":"'Population 2016'!J21/'Population 2016'!J$5","v":0.11089457054476999},{"$f":"'Population 2016'!K21/'Population 2016'!K$5","v":6.5279024712942404E-2},{"$f":"'Population 2016'!L21/'Population 2016'!L$5","v":4.262703921973536E-2},{"$f":"'Population 2016'!M21/'Population 2016'!M$5","v":4.262703921973536E-2},{"$f":"'Population 2016'!N21/'Population 2016'!N$5","v":7.2656545116981858E-2},{"$f":"'Population 2016'!O21/'Population 2016'!O$5","v":5.554729990786697E-2},{"$f":"'Population 2016'!P21/'Population 2016'!P$5","v":0.26208723092527891},{"$f":"'Population 2016'!Q21/'Population 2016'!Q$5","v":7.9740543589382026E-2},{"$f":"'Population 2016'!R21/'Population 2016'!R$5","v":0.27517698408473945},{"$f":"'Population 2016'!S21/'Population 2016'!S$5","v":0.12804450713275703},{"$f":"'Population 2016'!T21/'Population 2016'!T$5","v":0.19627227167605851},{"$f":"'Population 2016'!U21/'Population 2016'!U$5","v":0},{"$f":"'Population 2016'!V21/'Population 2016'!V$5","v":9.4023095534303658E-2},{"$f":"'Population 2016'!W21/'Population 2016'!W$5","v":0.10337039724406617},{"$f":"'Population 2016'!X21/'Population 2016'!X$5","v":0.10337039724406617},{"$f":"'Population 2016'!Y21/'Population 2016'!Y$5","v":0.10210886949333078},{"$f":"'Population 2016'!Z21/'Population 2016'!Z$5","v":4.9498338117979102E-2},{"$f":"'Population 2016'!AA21/'Population 2016'!AA$5","v":7.7625789203385434E-2},{"$f":"'Population 2016'!AB21/'Population 2016'!AB$5","v":0.16454970676437775},{"$f":"'Population 2016'!AC21/'Population 2016'!AC$5","v":9.0303276026486232E-2},{"$f":"'Population 2016'!AD21/'Population 2016'!AD$5","v":4.9916260374409167E-2},{"$f":"'Population 2016'!AE21/'Population 2016'!AE$5","v":4.4666783026519781E-2},{"$f":"'Population 2016'!AF21/'Population 2016'!AF$5","v":5.6176386312566919E-2},{"$f":"'Population 2016'!AG21/'Population 2016'!AG$5","v":4.4666783026519781E-2},{"$f":"'Population 2016'!AH21/'Population 2016'!AH$5","v":5.4856357337246781E-2},{"$f":"'Population 2016'!AI21/'Population 2016'!AI$5","v":0.14930084653075509},{"$f":"'Population 2016'!AJ21/'Population 2016'!AJ$5","v":7.6234559295095219E-2},{"$f":"'Population 2016'!AK21/'Population 2016'!AK$5","v":9.3308022076109776E-2},{"$f":"'Population 2016'!AL21/'Population 2016'!AL$5","v":4.5103847040669727E-2},{"$f":"'Population 2016'!AM21/'Population 2016'!AM$5","v":4.3322672597078497E-2},{"$f":"'Population 2016'!AN21/'Population 2016'!AN$5","v":3.7307734264208574E-2},{"$f":"'Population 2016'!AO21/'Population 2016'!AO$5","v":3.7307734264208574E-2},{"$f":"'Population 2016'!AP21/'Population 2016'!AP$5","v":8.5569804860263457E-2},{"$f":"'Population 2016'!AQ21/'Population 2016'!AQ$5","v":8.6658080780402255E-2},{"$f":"'Population 2016'!AR21/'Population 2016'!AR$5","v":9.7057041964380988E-2},{"$f":"'Population 2016'!AS21/'Population 2016'!AS$5","v":4.4311615442592746E-2},{"$f":"'Population 2016'!AT21/'Population 2016'!AT$5","v":0},{"$f":"'Population 2016'!AU21/'Population 2016'!AU$5","v":0},{"$f":"'Population 2016'!AV21/'Population 2016'!AV$5","v":9.8205046985534797E-2},{"$f":"'Population 2016'!AW21/'Population 2016'!AW$5","v":6.6999969491732259E-2},{"$f":"'Population 2016'!AX21/'Population 2016'!AX$5","v":0.13556614743728995},{"$f":"'Population 2016'!AY21/'Population 2016'!AY$5","v":9.157614516079679E-2},{"$f":"'Population 2016'!AZ21/'Population 2016'!AZ$5","v":8.119667953356996E-2},{"$f":"'Population 2016'!BA21/'Population 2016'!BA$5","v":1.9299287410926364E-2},{"$f":"'Population 2016'!BB21/'Population 2016'!BB$5","v":8.6961325203869552E-2},{"$f":"'Population 2016'!BC21/'Population 2016'!BC$5","v":0},19]
["All quintiles","Female 0-4",{"$f":"'Population 2016'!C22/'Population 2016'!C$5","v":0},{"$f":"'Population 2016'!D22/'Population 2016'!D$5","v":0},{"$f":"'Population 2016'!E22/'Population 2016'!E$5","v":0},{"$f":"'Population 2016'!F22/'Population 2016'!F$5","v":0},{"$f":"'Population 2016'!G22/'Population 2016'!G$5","v":0},{"$f":"'Population 2016'!H22/'Population 2016'!H$5","v":0},{"$f":"'Population 2016'!I22/'Population 2016'!I$5","v":0},{"$f":"'Population 2016'!J22/'Population 2016'!J$5","v":0},{"$f":"'Population 2016'!K22/'Population 2016'!K$5","v":0},{"$f":"'Population 2016'!L22/'Population 2016'!L$5","v":0},{"$f":"'Population 2016'!M22/'Population 2016'!M$5","v":0},{"$f":"'Population 2016'!N22/'Population 2016'!N$5","v":0},{"$f":"'Population 2016'!O22/'Population 2016'!O$5","v":0},{"$f":"'Population 2016'!P22/'Population 2016'!P$5","v":0},{"$f":"'Population 2016'!Q22/'Population 2016'!Q$5","v":0},{"$f":"'Population 2016'!R22/'Population 2016'!R$5","v":0},{"$f":"'Population 2016'!S22/'Population 2016'!S$5","v":0},{"$f":"'Population 2016'!T22/'Population 2016'!T$5","v":0},{"$f":"'Population 2016'!U22/'Population 2016'!U$5","v":0},{"$f":"'Population 2016'!V22/'Population 2016'!V$5","v":0},{"$f":"'Population 2016'!W22/'Population 2016'!W$5","v":0},{"$f":"'Population 2016'!X22/'Population 2016'!X$5","v":0},{"$f":"'Population 2016'!Y22/'Population 2016'!Y$5","v":0},{"$f":"'Population 2016'!Z22/'Population 2016'!Z$5","v":0},{"$f":"'Population 2016'!AA22/'Population 2016'!AA$5","v":0},{"$f":"'Population 2016'!AB22/'Population 2016'!AB$5","v":0},{"$f":"'Population 2016'!AC22/'Population 2016'!AC$5","v":0},{"$f":"'Population 2016'!AD22/'Population 2016'!AD$5","v":0},{"$f":"'Population 2016'!AE22/'Population 2016'!AE$5","v":0},{"$f":"'Population 2016'!AF22/'Population 2016'!AF$5","v":0},{"$f":"'Population 2016'!AG22/'Population 2016'!AG$5","v":0},{"$f":"'Population 2016'!AH22/'Population 2016'!AH$5","v":0},{"$f":"'Population 2016'!AI22/'Population 2016'!AI$5","v":0},{"$f":"'Population 2016'!AJ22/'Population 2016'!AJ$5","v":0},{"$f":"'Population 2016'!AK22/'Population 2016'!AK$5","v":0},{"$f":"'Population 2016'!AL22/'Population 2016'!AL$5","v":0},{"$f":"'Population 2016'!AM22/'Population 2016'!AM$5","v":0},{"$f":"'Population 2016'!AN22/'Population 2016'!AN$5","v":0},{"$f":"'Population 2016'!AO22/'Population 2016'!AO$5","v":0},{"$f":"'Population 2016'!AP22/'Population 2016'!AP$5","v":0},{"$f":"'Population 2016'!AQ22/'Population 2016'!AQ$5","v":0},{"$f":"'Population 2016'!AR22/'Population 2016'!AR$5","v":0},{"$f":"'Population 2016'!AS22/'Population 2016'!AS$5","v":0},{"$f":"'Population 2016'!AT22/'Population 2016'!AT$5","v":0},{"$f":"'Population 2016'!AU22/'Population 2016'!AU$5","v":0},{"$f":"'Population 2016'!AV22/'Population 2016'!AV$5","v":0},{"$f":"'Population 2016'!AW22/'Population 2016'!AW$5","v":0},{"$f":"'Population 2016'!AX22/'Population 2016'!AX$5","v":0},{"$f":"'Population 2016'!AY22/'Population 2016'!AY$5","v":0},{"$f":"'Population 2016'!AZ22/'Population 2016'!AZ$5","v":0},{"$f":"'Population 2016'!BA22/'Population 2016'!BA$5","v":0},{"$f":"'Population 2016'!BB22/'Population 2016'!BB$5","v":0},{"$f":"'Population 2016'!BC22/'Population 2016'!BC$5","v":0},20]
[null,"Female 5-9",{"$f":"'Population 2016'!C23/'Population 2016'!C$5","v":0},{"$f":"'Population 2016'!D23/'Population 2016'!D$5","v":0},{"$f":"'Population 2016'!E23/'Population 2016'!E$5","v":0},{"$f":"'Population 2016'!F23/'Population 2016'!F$5","v":0},{"$f":"'Population 2016'!G23/'Population 2016'!G$5","v":0},{"$f":"'Population 2016'!H23/'Population 2016'!H$5","v":0},{"$f":"'Population 2016'!I23/'Population 2016'!I$5","v":0},{"$f":"'Population 2016'!J23/'Population 2016'!J$5","v":0},{"$f":"'Population 2016'!K23/'Population 2016'!K$5","v":0},{"$f":"'Population 2016'!L23/'Population 2016'!L$5","v":0},{"$f":"'Population 2016'!M23/'Population 2016'!M$5","v":0},{"$f":"'Population 2016'!N23/'Population 2016'!N$5","v":0},{"$f":"'Population 2016'!O23/'Population 2016'!O$5","v":0},{"$f":"'Population 2016'!P23/'Population 2016'!P$5","v":0},{"$f":"'Population 2016'!Q23/'Population 2016'!Q$5","v":0},{"$f":"'Population 2016'!R23/'Population 2016'!R$5","v":0},{"$f":"'Population 2016'!S23/'Population 2016'!S$5","v":0},{"$f":"'Population 2016'!T23/'Population 2016'!T$5","v":0},{"$f":"'Population 2016'!U23/'Population 2016'!U$5","v":0},{"$f":"'Population 2016'!V23/'Population 2016'!V$5","v":0},{"$f":"'Population 2016'!W23/'Population 2016'!W$5","v":0},{"$f":"'Population 2016'!X23/'Population 2016'!X$5","v":0},{"$f":"'Population 2016'!Y23/'Population 2016'!Y$5","v":0},{"$f":"'Population 2016'!Z23/'Population 2016'!Z$5","v":0},{"$f":"'Population 2016'!AA23/'Population 2016'!AA$5","v":0},{"$f":"'Population 2016'!AB23/'Population 2016'!AB$5","v":0},{"$f":"'Population 2016'!AC23/'Population 2016'!AC$5","v":0},{"$f":"'Population 2016'!AD23/'Population 2016'!AD$5","v":0},{"$f":"'Population 2016'!AE23/'Population 2016'!AE$5","v":0},{"$f":"'Population 2016'!AF23/'Population 2016'!AF$5","v":0},{"$f":"'Population 2016'!AG23/'Population 2016'!AG$5","v":0},{"$f":"'Population 2016'!AH23/'Population 2016'!AH$5","v":0},{"$f":"'Population 2016'!AI23/'Population 2016'!AI$5","v":0},{"$f":"'Population 2016'!AJ23/'Population 2016'!AJ$5","v":0},{"$f":"'Population 2016'!AK23/'Population 2016'!AK$5","v":0},{"$f":"'Population 2016'!AL23/'Population 2016'!AL$5","v":0},{"$f":"'Population 2016'!AM23/'Population 2016'!AM$5","v":0},{"$f":"'Population 2016'!AN23/'Population 2016'!AN$5","v":0},{"$f":"'Population 2016'!AO23/'Population 2016'!AO$5","v":0},{"$f":"'Population 2016'!AP23/'Population 2016'!AP$5","v":0},{"$f":"'Population 2016'!AQ23/'Population 2016'!AQ$5","v":0},{"$f":"'Population 2016'!AR23/'Population 2016'!AR$5","v":0},{"$f":"'Population 2016'!AS23/'Population 2016'!AS$5","v":0},{"$f":"'Population 2016'!AT23/'Population 2016'!AT$5","v":0},{"$f":"'Population 2016'!AU23/'Population 2016'!AU$5","v":0},{"$f":"'Population 2016'!AV23/'Population 2016'!AV$5","v":0},{"$f":"'Population 2016'!AW23/'Population 2016'!AW$5","v":0},{"$f":"'Population 2016'!AX23/'Population 2016'!AX$5","v":0},{"$f":"'Population 2016'!AY23/'Population 2016'!AY$5","v":0},{"$f":"'Population 2016'!AZ23/'Population 2016'!AZ$5","v":0},{"$f":"'Population 2016'!BA23/'Population 2016'!BA$5","v":0},{"$f":"'Population 2016'!BB23/'Population 2016'!BB$5","v":0},{"$f":"'Population 2016'!BC23/'Population 2016'!BC$5","v":0},21]
[null,"Female 10-15",{"$f":"'Population 2016'!C24/'Population 2016'!C$5","v":0},{"$f":"'Population 2016'!D24/'Population 2016'!D$5","v":0},{"$f":"'Population 2016'!E24/'Population 2016'!E$5","v":0},{"$f":"'Population 2016'!F24/'Population 2016'!F$5","v":0},{"$f":"'Population 2016'!G24/'Population 2016'!G$5","v":0},{"$f":"'Population 2016'!H24/'Population 2016'!H$5","v":0},{"$f":"'Population 2016'!I24/'Population 2016'!I$5","v":0},{"$f":"'Population 2016'!J24/'Population 2016'!J$5","v":0},{"$f":"'Population 2016'!K24/'Population 2016'!K$5","v":0},{"$f":"'Population 2016'!L24/'Population 2016'!L$5","v":0},{"$f":"'Population 2016'!M24/'Population 2016'!M$5","v":0},{"$f":"'Population 2016'!N24/'Population 2016'!N$5","v":0},{"$f":"'Population 2016'!O24/'Population 2016'!O$5","v":0},{"$f":"'Population 2016'!P24/'Population 2016'!P$5","v":0},{"$f":"'Population 2016'!Q24/'Population 2016'!Q$5","v":0},{"$f":"'Population 2016'!R24/'Population 2016'!R$5","v":0},{"$f":"'Population 2016'!S24/'Population 2016'!S$5","v":0},{"$f":"'Population 2016'!T24/'Population 2016'!T$5","v":0},{"$f":"'Population 2016'!U24/'Population 2016'!U$5","v":0},{"$f":"'Population 2016'!V24/'Population 2016'!V$5","v":0},{"$f":"'Population 2016'!W24/'Population 2016'!W$5","v":0},{"$f":"'Population 2016'!X24/'Population 2016'!X$5","v":0},{"$f":"'Population 2016'!Y24/'Population 2016'!Y$5","v":0},{"$f":"'Population 2016'!Z24/'Population 2016'!Z$5","v":0},{"$f":"'Population 2016'!AA24/'Population 2016'!AA$5","v":0},{"$f":"'Population 2016'!AB24/'Population 2016'!AB$5","v":0},{"$f":"'Population 2016'!AC24/'Population 2016'!AC$5","v":0},{"$f":"'Population 2016'!AD24/'Population 2016'!AD$5","v":0},{"$f":"'Population 2016'!AE24/'Population 2016'!AE$5","v":0},{"$f":"'Population 2016'!AF24/'Population 2016'!AF$5","v":0},{"$f":"'Population 2016'!AG24/'Population 2016'!AG$5","v":0},{"$f":"'Population 2016'!AH24/'Population 2016'!AH$5","v":0},{"$f":"'Population 2016'!AI24/'Population 2016'!AI$5","v":0},{"$f":"'Population 2016'!AJ24/'Population 2016'!AJ$5","v":0},{"$f":"'Population 2016'!AK24/'Population 2016'!AK$5","v":0},{"$f":"'Population 2016'!AL24/'Population 2016'!AL$5","v":0},{"$f":"'Population 2016'!AM24/'Population 2016'!AM$5","v":0},{"$f":"'Population 2016'!AN24/'Population 2016'!AN$5","v":0},{"$f":"'Population 2016'!AO24/'Population 2016'!AO$5","v":0},{"$f":"'Population 2016'!AP24/'Population 2016'!AP$5","v":0},{"$f":"'Population 2016'!AQ24/'Population 2016'!AQ$5","v":0},{"$f":"'Population 2016'!AR24/'Population 2016'!AR$5","v":0},{"$f":"'Population 2016'!AS24/'Population 2016'!AS$5","v":0},{"$f":"'Population 2016'!AT24/'Population 2016'!AT$5","v":0},{"$f":"'Population 2016'!AU24/'Population 2016'!AU$5","v":0},{"$f":"'Population 2016'!AV24/'Population 2016'!AV$5","v":0},{"$f":"'Population 2016'!AW24/'Population 2016'!AW$5","v":0},{"$f":"'Population 2016'!AX24/'Population 2016'!AX$5","v":0},{"$f":"'Population 2016'!AY24/'Population 2016'!AY$5","v":0},{"$f":"'Population 2016'!AZ24/'Population 2016'!AZ$5","v":0},{"$f":"'Population 2016'!BA24/'Population 2016'!BA$5","v":0},{"$f":"'Population 2016'!BB24/'Population 2016'!BB$5","v":0},{"$f":"'Population 2016'!BC24/'Population 2016'!BC$5","v":0},22]
[null,"Female 16-19",{"$f":"'Population 2016'!C25/'Population 2016'!C$5","v":2.623011147286267E-2},{"$f":"'Population 2016'!D25/'Population 2016'!D$5","v":2.5549426366597225E-2},{"$f":"'Population 2016'!E25/'Population 2016'!E$5","v":2.492511215597298E-2},{"$f":"'Population 2016'!F25/'Population 2016'!F$5","v":2.4929178470254956E-2},{"$f":"'Population 2016'!G25/'Population 2016'!G$5","v":2.3750879662209713E-2},{"$f":"'Population 2016'!H25/'Population 2016'!H$5","v":2.6117576107362529E-2},{"$f":"'Population 2016'!I25/'Population 2016'!I$5","v":2.5060715182983001E-2},{"$f":"'Population 2016'!J25/'Population 2016'!J$5","v":3.2160420623139251E-2},{"$f":"'Population 2016'!K25/'Population 2016'!K$5","v":2.6461276756603504E-2},{"$f":"'Population 2016'!L25/'Population 2016'!L$5","v":2.3882896764252697E-2},{"$f":"'Population 2016'!M25/'Population 2016'!M$5","v":2.3882896764252697E-2},{"$f":"'Population 2016'!N25/'Population 2016'!N$5","v":3.1714903432700267E-2},{"$f":"'Population 2016'!O25/'Population 2016'!O$5","v":2.6074637659622948E-2},{"$f":"'Population 2016'!P25/'Population 2016'!P$5","v":2.6135467147526202E-2},{"$f":"'Population 2016'!Q25/'Population 2016'!Q$5","v":2.7261724304062231E-2},{"$f":"'Population 2016'!R25/'Population 2016'!R$5","v":3.0193750998030552E-2},{"$f":"'Population 2016'!S25/'Population 2016'!S$5","v":2.6372929946987578E-2},{"$f":"'Population 2016'!T25/'Population 2016'!T$5","v":2.4385420398970698E-2},{"$f":"'Population 2016'!U25/'Population 2016'!U$5","v":2.2396317443455938E-2},{"$f":"'Population 2016'!V25/'Population 2016'!V$5","v":2.505705192297418E-2},{"$f":"'Population 2016'!W25/'Population 2016'!W$5","v":2.7889448878604253E-2},{"$f":"'Population 2016'!X25/'Population 2016'!X$5","v":2.7889448878604253E-2},{"$f":"'Population 2016'!Y25/'Population 2016'!Y$5","v":2.8461391710783612E-2},{"$f":"'Population 2016'!Z25/'Population 2016'!Z$5","v":2.644686333077163E-2},{"$f":"'Population 2016'!AA25/'Population 2016'!AA$5","v":2.7062957551936443E-2},{"$f":"'Population 2016'!AB25/'Population 2016'!AB$5","v":2.5587750632017441E-2},{"$f":"'Population 2016'!AC25/'Population 2016'!AC$5","v":2.6653786244288106E-2},{"$f":"'Population 2016'!AD25/'Population 2016'!AD$5","v":2.4236108526554764E-2},{"$f":"'Population 2016'!AE25/'Population 2016'!AE$5","v":2.4420168584893067E-2},{"$f":"'Population 2016'!AF25/'Population 2016'!AF$5","v":2.5863759067396581E-2},{"$f":"'Population 2016'!AG25/'Population 2016'!AG$5","v":2.4420168584893067E-2},{"$f":"'Population 2016'!AH25/'Population 2016'!AH$5","v":2.779785070079786E-2},{"$f":"'Population 2016'!AI25/'Population 2016'!AI$5","v":2.5909965876279639E-2},{"$f":"'Population 2016'!AJ25/'Population 2016'!AJ$5","v":2.8065136770487688E-2},{"$f":"'Population 2016'!AK25/'Population 2016'!AK$5","v":2.5784795645122763E-2},{"$f":"'Population 2016'!AL25/'Population 2016'!AL$5","v":2.6923963746652242E-2},{"$f":"'Population 2016'!AM25/'Population 2016'!AM$5","v":2.9175163261388457E-2},{"$f":"'Population 2016'!AN25/'Population 2016'!AN$5","v":2.1544671102868986E-2},{"$f":"'Population 2016'!AO25/'Population 2016'!AO$5","v":2.1544671102868986E-2},{"$f":"'Population 2016'!AP25/'Population 2016'!AP$5","v":2.5062219615427293E-2},{"$f":"'Population 2016'!AQ25/'Population 2016'!AQ$5","v":2.6429002027730585E-2},{"$f":"'Population 2016'!AR25/'Population 2016'!AR$5","v":2.6466639175919175E-2},{"$f":"'Population 2016'!AS25/'Population 2016'!AS$5","v":2.5060715182983001E-2},{"$f":"'Population 2016'!AT25/'Population 2016'!AT$5","v":2.7732377286866665E-2},{"$f":"'Population 2016'!AU25/'Population 2016'!AU$5","v":2.7732377286866665E-2},{"$f":"'Population 2016'!AV25/'Population 2016'!AV$5","v":2.5203252032520326E-2},{"$f":"'Population 2016'!AW25/'Population 2016'!AW$5","v":2.6347702727439137E-2},{"$f":"'Population 2016'!AX25/'Population 2016'!AX$5","v":3.5242853674431682E-2},{"$f":"'Population 2016'!AY25/'Population 2016'!AY$5","v":2.7632263394632966E-2},{"$f":"'Population 2016'!AZ25/'Population 2016'!AZ$5","v":2.7405928746886344E-2},{"$f":"'Population 2016'!BA25/'Population 2016'!BA$5","v":2.6276722090261283E-2},{"$f":"'Population 2016'!BB25/'Population 2016'!BB$5","v":2.8572809567541067E-2},{"$f":"'Population 2016'!BC25/'Population 2016'!BC$5","v":2.2396317443455938E-2},23]
[null,"Female 20-24",{"$f":"'Population 2016'!C26/'Population 2016'!C$5","v":5.7172647493266136E-2},{"$f":"'Population 2016'!D26/'Population 2016'!D$5","v":4.2885576518685874E-2},{"$f":"'Population 2016'!E26/'Population 2016'!E$5","v":2.9781688457193218E-2},{"$f":"'Population 2016'!F26/'Population 2016'!F$5","v":3.1140870460983777E-2},{"$f":"'Population 2016'!G26/'Population 2016'!G$5","v":2.5672603258810156E-2},{"$f":"'Population 2016'!H26/'Population 2016'!H$5","v":3.3879894816366364E-2},{"$f":"'Population 2016'!I26/'Population 2016'!I$5","v":2.8860648186919018E-2},{"$f":"'Population 2016'!J26/'Population 2016'!J$5","v":4.5114153736430511E-2},{"$f":"'Population 2016'!K26/'Population 2016'!K$5","v":3.3336483485328167E-2},{"$f":"'Population 2016'!L26/'Population 2016'!L$5","v":3.0157419026893079E-2},{"$f":"'Population 2016'!M26/'Population 2016'!M$5","v":3.0157419026893079E-2},{"$f":"'Population 2016'!N26/'Population 2016'!N$5","v":5.937100650211781E-2},{"$f":"'Population 2016'!O26/'Population 2016'!O$5","v":3.4832228727672603E-2},{"$f":"'Population 2016'!P26/'Population 2016'!P$5","v":3.2086103910740446E-2},{"$f":"'Population 2016'!Q26/'Population 2016'!Q$5","v":3.694433672929813E-2},{"$f":"'Population 2016'!R26/'Population 2016'!R$5","v":3.3147921435034866E-2},{"$f":"'Population 2016'!S26/'Population 2016'!S$5","v":4.4659832542177799E-2},{"$f":"'Population 2016'!T26/'Population 2016'!T$5","v":5.7679511221341719E-2},{"$f":"'Population 2016'!U26/'Population 2016'!U$5","v":2.4742176780418713E-2},{"$f":"'Population 2016'!V26/'Population 2016'!V$5","v":3.4078506498958182E-2},{"$f":"'Population 2016'!W26/'Population 2016'!W$5","v":4.042384902502958E-2},{"$f":"'Population 2016'!X26/'Population 2016'!X$5","v":4.042384902502958E-2},{"$f":"'Population 2016'!Y26/'Population 2016'!Y$5","v":3.9367418641992974E-2},{"$f":"'Population 2016'!Z26/'Population 2016'!Z$5","v":5.5940671682962857E-2},{"$f":"'Population 2016'!AA26/'Population 2016'!AA$5","v":4.2530446989915337E-2},{"$f":"'Population 2016'!AB26/'Population 2016'!AB$5","v":4.1061175194211028E-2},{"$f":"'Population 2016'!AC26/'Population 2016'!AC$5","v":4.643985263362576E-2},{"$f":"'Population 2016'!AD26/'Population 2016'!AD$5","v":2.8054635453496596E-2},{"$f":"'Population 2016'!AE26/'Population 2016'!AE$5","v":2.8958202856292158E-2},{"$f":"'Population 2016'!AF26/'Population 2016'!AF$5","v":3.5937806330965633E-2},{"$f":"'Population 2016'!AG26/'Population 2016'!AG$5","v":2.8958202856292158E-2},{"$f":"'Population 2016'!AH26/'Population 2016'!AH$5","v":3.5508949221180905E-2},{"$f":"'Population 2016'!AI26/'Population 2016'!AI$5","v":4.8495056435383675E-2},{"$f":"'Population 2016'!AJ26/'Population 2016'!AJ$5","v":3.4520257647157236E-2},{"$f":"'Population 2016'!AK26/'Population 2016'!AK$5","v":3.1680977584451174E-2},{"$f":"'Population 2016'!AL26/'Population 2016'!AL$5","v":3.5180291232862135E-2},{"$f":"'Population 2016'!AM26/'Population 2016'!AM$5","v":3.6462615586889832E-2},{"$f":"'Population 2016'!AN26/'Population 2016'!AN$5","v":2.9126213592233011E-2},{"$f":"'Population 2016'!AO26/'Population 2016'!AO$5","v":2.9126213592233011E-2},{"$f":"'Population 2016'!AP26/'Population 2016'!AP$5","v":3.0547057051820616E-2},{"$f":"'Population 2016'!AQ26/'Population 2016'!AQ$5","v":3.7362306132514934E-2},{"$f":"'Population 2016'!AR26/'Population 2016'!AR$5","v":4.0607665819443708E-2},{"$f":"'Population 2016'!AS26/'Population 2016'!AS$5","v":2.8860648186919018E-2},{"$f":"'Population 2016'!AT26/'Population 2016'!AT$5","v":2.963041071334423E-2},{"$f":"'Population 2016'!AU26/'Population 2016'!AU$5","v":2.963041071334423E-2},{"$f":"'Population 2016'!AV26/'Population 2016'!AV$5","v":3.1316650828845952E-2},{"$f":"'Population 2016'!AW26/'Population 2016'!AW$5","v":3.4504850814570748E-2},{"$f":"'Population 2016'!AX26/'Population 2016'!AX$5","v":5.1484212274940259E-2},{"$f":"'Population 2016'!AY26/'Population 2016'!AY$5","v":4.0745387228052994E-2},{"$f":"'Population 2016'!AZ26/'Population 2016'!AZ$5","v":4.1028355126530941E-2},{"$f":"'Population 2016'!BA26/'Population 2016'!BA$5","v":3.8153206650831356E-2},{"$f":"'Population 2016'!BB26/'Population 2016'!BB$5","v":3.4946106626709848E-2},{"$f":"'Population 2016'!BC26/'Population 2016'!BC$5","v":2.4742176780418713E-2},24]
[null,"Female 25-29",{"$f":"'Population 2016'!C27/'Population 2016'!C$5","v":5.9523748677505581E-2},{"$f":"'Population 2016'!D27/'Population 2016'!D$5","v":4.5020196981700455E-2},{"$f":"'Population 2016'!E27/'Population 2016'!E$5","v":3.171775603673372E-2},{"$f":"'Population 2016'!F27/'Population 2016'!F$5","v":3.0069533865567859E-2},{"$f":"'Population 2016'!G27/'Population 2016'!G$5","v":2.5442537757808695E-2},{"$f":"'Population 2016'!H27/'Population 2016'!H$5","v":3.3698320109722998E-2},{"$f":"'Population 2016'!I27/'Population 2016'!I$5","v":2.5992379197722133E-2},{"$f":"'Population 2016'!J27/'Population 2016'!J$5","v":3.8645580222751136E-2},{"$f":"'Population 2016'!K27/'Population 2016'!K$5","v":3.326560506544441E-2},{"$f":"'Population 2016'!L27/'Population 2016'!L$5","v":3.0546598255841658E-2},{"$f":"'Population 2016'!M27/'Population 2016'!M$5","v":3.0546598255841658E-2},{"$f":"'Population 2016'!N27/'Population 2016'!N$5","v":5.532828059571937E-2},{"$f":"'Population 2016'!O27/'Population 2016'!O$5","v":3.6714516400669701E-2},{"$f":"'Population 2016'!P27/'Population 2016'!P$5","v":2.7825988955257522E-2},{"$f":"'Population 2016'!Q27/'Population 2016'!Q$5","v":3.2855078083688795E-2},{"$f":"'Population 2016'!R27/'Population 2016'!R$5","v":2.9914302443178793E-2},{"$f":"'Population 2016'!S27/'Population 2016'!S$5","v":4.5971461910671509E-2},{"$f":"'Population 2016'!T27/'Population 2016'!T$5","v":6.394978199466736E-2},{"$f":"'Population 2016'!U27/'Population 2016'!U$5","v":2.7043774620457664E-2},{"$f":"'Population 2016'!V27/'Population 2016'!V$5","v":3.5421802611795054E-2},{"$f":"'Population 2016'!W27/'Population 2016'!W$5","v":3.642983677498219E-2},{"$f":"'Population 2016'!X27/'Population 2016'!X$5","v":3.642983677498219E-2},{"$f":"'Population 2016'!Y27/'Population 2016'!Y$5","v":3.6966820877251554E-2},{"$f":"'Population 2016'!Z27/'Population 2016'!Z$5","v":6.3112800847104925E-2},{"$f":"'Population 2016'!AA27/'Population 2016'!AA$5","v":4.4985340399705809E-2},{"$f":"'Population 2016'!AB27/'Population 2016'!AB$5","v":4.3026314442749965E-2},{"$f":"'Population 2016'!AC27/'Population 2016'!AC$5","v":4.9786831767755231E-2},{"$f":"'Population 2016'!AD27/'Population 2016'!AD$5","v":2.9885741933082736E-2},{"$f":"'Population 2016'!AE27/'Population 2016'!AE$5","v":3.1571166028398649E-2},{"$f":"'Population 2016'!AF27/'Population 2016'!AF$5","v":3.4640848150326503E-2},{"$f":"'Population 2016'!AG27/'Population 2016'!AG$5","v":3.1571166028398649E-2},{"$f":"'Population 2016'!AH27/'Population 2016'!AH$5","v":3.6361609838105942E-2},{"$f":"'Population 2016'!AI27/'Population 2016'!AI$5","v":5.2571856680374486E-2},{"$f":"'Population 2016'!AJ27/'Population 2016'!AJ$5","v":3.6987982042773891E-2},{"$f":"'Population 2016'!AK27/'Population 2016'!AK$5","v":3.2774725620104847E-2},{"$f":"'Population 2016'!AL27/'Population 2016'!AL$5","v":3.3903265284404321E-2},{"$f":"'Population 2016'!AM27/'Population 2016'!AM$5","v":3.8418492453575093E-2},{"$f":"'Population 2016'!AN27/'Population 2016'!AN$5","v":3.2453365332169741E-2},{"$f":"'Population 2016'!AO27/'Population 2016'!AO$5","v":3.2453365332169741E-2},{"$f":"'Population 2016'!AP27/'Population 2016'!AP$5","v":3.0832395415563624E-2},{"$f":"'Population 2016'!AQ27/'Population 2016'!AQ$5","v":3.8526881131144844E-2},{"$f":"'Population 2016'!AR27/'Population 2016'!AR$5","v":4.1876606643716126E-2},{"$f":"'Population 2016'!AS27/'Population 2016'!AS$5","v":2.5992379197722133E-2},{"$f":"'Population 2016'!AT27/'Population 2016'!AT$5","v":3.6589866610428637E-2},{"$f":"'Population 2016'!AU27/'Population 2016'!AU$5","v":3.6589866610428637E-2},{"$f":"'Population 2016'!AV27/'Population 2016'!AV$5","v":3.0239679020166825E-2},{"$f":"'Population 2016'!AW27/'Population 2016'!AW$5","v":3.4195954603697599E-2},{"$f":"'Population 2016'!AX27/'Population 2016'!AX$5","v":4.1555388016407478E-2},{"$f":"'Population 2016'!AY27/'Population 2016'!AY$5","v":3.8002203114959762E-2},{"$f":"'Population 2016'!AZ27/'Population 2016'!AZ$5","v":3.93859553244243E-2},{"$f":"'Population 2016'!BA27/'Population 2016'!BA$5","v":3.9070935003239042E-2},{"$f":"'Population 2016'!BB27/'Population 2016'!BB$5","v":3.8108587724325557E-2},{"$f":"'Population 2016'!BC27/'Population 2016'!BC$5","v":2.7043774620457664E-2},25]
[null,"Female 30-34",{"$f":"'Population 2016'!C28/'Population 2016'!C$5","v":4.9638901524638006E-2},{"$f":"'Population 2016'!D28/'Population 2016'!D$5","v":4.3873419207182886E-2},{"$f":"'Population 2016'!E28/'Population 2016'!E$5","v":3.8585404956895539E-2},{"$f":"'Population 2016'!F28/'Population 2016'!F$5","v":3.3355652845737833E-2},{"$f":"'Population 2016'!G28/'Population 2016'!G$5","v":2.5983868348400368E-2},{"$f":"'Population 2016'!H28/'Population 2016'!H$5","v":3.2988233310528414E-2},{"$f":"'Population 2016'!I28/'Population 2016'!I$5","v":2.960388577171091E-2},{"$f":"'Population 2016'!J28/'Population 2016'!J$5","v":3.3138999693157409E-2},{"$f":"'Population 2016'!K28/'Population 2016'!K$5","v":3.4541416623352077E-2},{"$f":"'Population 2016'!L28/'Population 2016'!L$5","v":2.9807951964163741E-2},{"$f":"'Population 2016'!M28/'Population 2016'!M$5","v":2.9807951964163741E-2},{"$f":"'Population 2016'!N28/'Population 2016'!N$5","v":4.3087581678334042E-2},{"$f":"'Population 2016'!O28/'Population 2016'!O$5","v":3.5882347113660458E-2},{"$f":"'Population 2016'!P28/'Population 2016'!P$5","v":2.7465344302941508E-2},{"$f":"'Population 2016'!Q28/'Population 2016'!Q$5","v":3.4887956663258952E-2},{"$f":"'Population 2016'!R28/'Population 2016'!R$5","v":2.9222334593069676E-2},{"$f":"'Population 2016'!S28/'Population 2016'!S$5","v":4.2950124543003967E-2},{"$f":"'Population 2016'!T28/'Population 2016'!T$5","v":5.3503208424265834E-2},{"$f":"'Population 2016'!U28/'Population 2016'!U$5","v":2.938963395742044E-2},{"$f":"'Population 2016'!V28/'Population 2016'!V$5","v":3.9795147342792374E-2},{"$f":"'Population 2016'!W28/'Population 2016'!W$5","v":3.556043639976729E-2},{"$f":"'Population 2016'!X28/'Population 2016'!X$5","v":3.556043639976729E-2},{"$f":"'Population 2016'!Y28/'Population 2016'!Y$5","v":3.6605141412696142E-2},{"$f":"'Population 2016'!Z28/'Population 2016'!Z$5","v":5.1701275496870785E-2},{"$f":"'Population 2016'!AA28/'Population 2016'!AA$5","v":4.205275595834853E-2},{"$f":"'Population 2016'!AB28/'Population 2016'!AB$5","v":4.2735637595570246E-2},{"$f":"'Population 2016'!AC28/'Population 2016'!AC$5","v":4.3462116871215775E-2},{"$f":"'Population 2016'!AD28/'Population 2016'!AD$5","v":3.2584018757676129E-2},{"$f":"'Population 2016'!AE28/'Population 2016'!AE$5","v":3.50876292364398E-2},{"$f":"'Population 2016'!AF28/'Population 2016'!AF$5","v":3.3630427242154155E-2},{"$f":"'Population 2016'!AG28/'Population 2016'!AG$5","v":3.50876292364398E-2},{"$f":"'Population 2016'!AH28/'Population 2016'!AH$5","v":3.9521469771416365E-2},{"$f":"'Population 2016'!AI28/'Population 2016'!AI$5","v":4.7784145594540202E-2},{"$f":"'Population 2016'!AJ28/'Population 2016'!AJ$5","v":4.0124919833812007E-2},{"$f":"'Population 2016'!AK28/'Population 2016'!AK$5","v":3.6885709616182441E-2},{"$f":"'Population 2016'!AL28/'Population 2016'!AL$5","v":3.2599634628686966E-2},{"$f":"'Population 2016'!AM28/'Population 2016'!AM$5","v":4.108790217718071E-2},{"$f":"'Population 2016'!AN28/'Population 2016'!AN$5","v":3.2398821861023233E-2},{"$f":"'Population 2016'!AO28/'Population 2016'!AO$5","v":3.2398821861023233E-2},{"$f":"'Population 2016'!AP28/'Population 2016'!AP$5","v":3.4755797917029943E-2},{"$f":"'Population 2016'!AQ28/'Population 2016'!AQ$5","v":3.7519866279388393E-2},{"$f":"'Population 2016'!AR28/'Population 2016'!AR$5","v":4.0012627030533668E-2},{"$f":"'Population 2016'!AS28/'Population 2016'!AS$5","v":2.960388577171091E-2},{"$f":"'Population 2016'!AT28/'Population 2016'!AT$5","v":3.3795539621447775E-2},{"$f":"'Population 2016'!AU28/'Population 2016'!AU$5","v":3.3795539621447775E-2},{"$f":"'Population 2016'!AV28/'Population 2016'!AV$5","v":3.0366381585893783E-2},{"$f":"'Population 2016'!AW28/'Population 2016'!AW$5","v":3.7872200866434801E-2},{"$f":"'Population 2016'!AX28/'Population 2016'!AX$5","v":3.2380489924224029E-2},{"$f":"'Population 2016'!AY28/'Population 2016'!AY$5","v":3.65105106942872E-2},{"$f":"'Population 2016'!AZ28/'Population 2016'!AZ$5","v":3.7346618267167536E-2},{"$f":"'Population 2016'!BA28/'Population 2016'!BA$5","v":4.0123623407471387E-2},{"$f":"'Population 2016'!BB28/'Population 2016'!BB$5","v":4.2182526256188589E-2},{"$f":"'Population 2016'!BC28/'Population 2016'!BC$5","v":2.938963395742044E-2},26]
[null,"Female 35-39",{"$f":"'Population 2016'!C29/'Population 2016'!C$5","v":3.8757391913234143E-2},{"$f":"'Population 2016'!D29/'Population 2016'!D$5","v":3.9330320902164449E-2},{"$f":"'Population 2016'!E29/'Population 2016'!E$5","v":3.9855802811751412E-2},{"$f":"'Population 2016'!F29/'Population 2016'!F$5","v":3.3747102755601339E-2},{"$f":"'Population 2016'!G29/'Population 2016'!G$5","v":2.818979050506144E-2},{"$f":"'Population 2016'!H29/'Population 2016'!H$5","v":3.3049839014568129E-2},{"$f":"'Population 2016'!I29/'Population 2016'!I$5","v":2.9363118666778328E-2},{"$f":"'Population 2016'!J29/'Population 2016'!J$5","v":3.4250267450635662E-2},{"$f":"'Population 2016'!K29/'Population 2016'!K$5","v":3.5533714501724711E-2},{"$f":"'Population 2016'!L29/'Population 2016'!L$5","v":2.8688068876781089E-2},{"$f":"'Population 2016'!M29/'Population 2016'!M$5","v":2.8688068876781089E-2},{"$f":"'Population 2016'!N29/'Population 2016'!N$5","v":3.4785124697599278E-2},{"$f":"'Population 2016'!O29/'Population 2016'!O$5","v":3.5139338821687918E-2},{"$f":"'Population 2016'!P29/'Population 2016'!P$5","v":3.4306322551560915E-2},{"$f":"'Population 2016'!Q29/'Population 2016'!Q$5","v":3.726160679662989E-2},{"$f":"'Population 2016'!R29/'Population 2016'!R$5","v":3.8617128865705008E-2},{"$f":"'Population 2016'!S29/'Population 2016'!S$5","v":3.89128481422703E-2},{"$f":"'Population 2016'!T29/'Population 2016'!T$5","v":4.2807685327799057E-2},{"$f":"'Population 2016'!U29/'Population 2016'!U$5","v":3.301907670517417E-2},{"$f":"'Population 2016'!V29/'Population 2016'!V$5","v":3.9009013822211704E-2},{"$f":"'Population 2016'!W29/'Population 2016'!W$5","v":3.586439968884618E-2},{"$f":"'Population 2016'!X29/'Population 2016'!X$5","v":3.586439968884618E-2},{"$f":"'Population 2016'!Y29/'Population 2016'!Y$5","v":3.6728350900621612E-2},{"$f":"'Population 2016'!Z29/'Population 2016'!Z$5","v":4.073498353604358E-2},{"$f":"'Population 2016'!AA29/'Population 2016'!AA$5","v":3.8732836508085206E-2},{"$f":"'Population 2016'!AB29/'Population 2016'!AB$5","v":3.8181017983071143E-2},{"$f":"'Population 2016'!AC29/'Population 2016'!AC$5","v":3.8513014535984165E-2},{"$f":"'Population 2016'!AD29/'Population 2016'!AD$5","v":3.259890580222561E-2},{"$f":"'Population 2016'!AE29/'Population 2016'!AE$5","v":3.4271399090339737E-2},{"$f":"'Population 2016'!AF29/'Population 2016'!AF$5","v":3.3916964514620944E-2},{"$f":"'Population 2016'!AG29/'Population 2016'!AG$5","v":3.4271399090339737E-2},{"$f":"'Population 2016'!AH29/'Population 2016'!AH$5","v":3.9127648310004363E-2},{"$f":"'Population 2016'!AI29/'Population 2016'!AI$5","v":4.1435164931315077E-2},{"$f":"'Population 2016'!AJ29/'Population 2016'!AJ$5","v":4.0334049019881212E-2},{"$f":"'Population 2016'!AK29/'Population 2016'!AK$5","v":3.2271852960034195E-2},{"$f":"'Population 2016'!AL29/'Population 2016'!AL$5","v":3.2626239335946508E-2},{"$f":"'Population 2016'!AM29/'Population 2016'!AM$5","v":4.0160671662603994E-2},{"$f":"'Population 2016'!AN29/'Population 2016'!AN$5","v":3.2017017562997706E-2},{"$f":"'Population 2016'!AO29/'Population 2016'!AO$5","v":3.2017017562997706E-2},{"$f":"'Population 2016'!AP29/'Population 2016'!AP$5","v":3.1751819032068862E-2},{"$f":"'Population 2016'!AQ29/'Population 2016'!AQ$5","v":3.6430646133611001E-2},{"$f":"'Population 2016'!AR29/'Population 2016'!AR$5","v":3.708911747348892E-2},{"$f":"'Population 2016'!AS29/'Population 2016'!AS$5","v":2.9363118666778328E-2},{"$f":"'Population 2016'!AT29/'Population 2016'!AT$5","v":3.690620551484157E-2},{"$f":"'Population 2016'!AU29/'Population 2016'!AU$5","v":3.690620551484157E-2},{"$f":"'Population 2016'!AV29/'Population 2016'!AV$5","v":3.1327209375989866E-2},{"$f":"'Population 2016'!AW29/'Population 2016'!AW$5","v":3.803999633900787E-2},{"$f":"'Population 2016'!AX29/'Population 2016'!AX$5","v":3.3556103607345032E-2},{"$f":"'Population 2016'!AY29/'Population 2016'!AY$5","v":3.4550656344665094E-2},{"$f":"'Population 2016'!AZ29/'Population 2016'!AZ$5","v":3.3394503857194634E-2},{"$f":"'Population 2016'!BA29/'Population 2016'!BA$5","v":3.6169293889008851E-2},{"$f":"'Population 2016'!BB29/'Population 2016'!BB$5","v":4.0359611387693943E-2},{"$f":"'Population 2016'!BC29/'Population 2016'!BC$5","v":3.301907670517417E-2},27]
[null,"Female 40-44",{"$f":"'Population 2016'!C30/'Population 2016'!C$5","v":3.4878074959239058E-2},{"$f":"'Population 2016'!D30/'Population 2016'!D$5","v":3.887307688545915E-2},{"$f":"'Population 2016'!E30/'Population 2016'!E$5","v":4.2537232970340191E-2},{"$f":"'Population 2016'!F30/'Population 2016'!F$5","v":3.7723409734741177E-2},{"$f":"'Population 2016'!G30/'Population 2016'!G$5","v":3.4252693119688191E-2},{"$f":"'Population 2016'!H30/'Population 2016'!H$5","v":3.8328475129128799E-2},{"$f":"'Population 2016'!I30/'Population 2016'!I$5","v":3.8281969684281048E-2},{"$f":"'Population 2016'!J30/'Population 2016'!J$5","v":3.8977301941401359E-2},{"$f":"'Population 2016'!K30/'Population 2016'!K$5","v":4.1014978972735434E-2},{"$f":"'Population 2016'!L30/'Population 2016'!L$5","v":3.3795053452575732E-2},{"$f":"'Population 2016'!M30/'Population 2016'!M$5","v":3.3795053452575732E-2},{"$f":"'Population 2016'!N30/'Population 2016'!N$5","v":3.180331294556385E-2},{"$f":"'Population 2016'!O30/'Population 2016'!O$5","v":3.9646922459654649E-2},{"$f":"'Population 2016'!P30/'Population 2016'!P$5","v":3.8487546489349711E-2},{"$f":"'Population 2016'!Q30/'Population 2016'!Q$5","v":4.0622319361699626E-2},{"$f":"'Population 2016'!R30/'Population 2016'!R$5","v":4.23431095970618E-2},{"$f":"'Population 2016'!S30/'Population 2016'!S$5","v":3.9161757618660087E-2},{"$f":"'Population 2016'!T30/'Population 2016'!T$5","v":3.7405247949074696E-2},{"$f":"'Population 2016'!U30/'Population 2016'!U$5","v":3.6559996459080243E-2},{"$f":"'Population 2016'!V30/'Population 2016'!V$5","v":4.4252448080842E-2},{"$f":"'Population 2016'!W30/'Population 2016'!W$5","v":3.8551042953608013E-2},{"$f":"'Population 2016'!X30/'Population 2016'!X$5","v":3.8551042953608013E-2},{"$f":"'Population 2016'!Y30/'Population 2016'!Y$5","v":4.17242969110189E-2},{"$f":"'Population 2016'!Z30/'Population 2016'!Z$5","v":3.5899361767615275E-2},{"$f":"'Population 2016'!AA30/'Population 2016'!AA$5","v":3.8743466628398233E-2},{"$f":"'Population 2016'!AB30/'Population 2016'!AB$5","v":3.8946603481981104E-2},{"$f":"'Population 2016'!AC30/'Population 2016'!AC$5","v":3.7361844024152858E-2},{"$f":"'Population 2016'!AD30/'Population 2016'!AD$5","v":3.7154341434366744E-2},{"$f":"'Population 2016'!AE30/'Population 2016'!AE$5","v":3.8255012885142561E-2},{"$f":"'Population 2016'!AF30/'Population 2016'!AF$5","v":3.7310169056990757E-2},{"$f":"'Population 2016'!AG30/'Population 2016'!AG$5","v":3.8255012885142561E-2},{"$f":"'Population 2016'!AH30/'Population 2016'!AH$5","v":4.1224933356863544E-2},{"$f":"'Population 2016'!AI30/'Population 2016'!AI$5","v":3.9532111295826407E-2},{"$f":"'Population 2016'!AJ30/'Population 2016'!AJ$5","v":4.01528037252879E-2},{"$f":"'Population 2016'!AK30/'Population 2016'!AK$5","v":3.9324642017525113E-2},{"$f":"'Population 2016'!AL30/'Population 2016'!AL$5","v":3.9064578492754652E-2},{"$f":"'Population 2016'!AM30/'Population 2016'!AM$5","v":4.2214342372623517E-2},{"$f":"'Population 2016'!AN30/'Population 2016'!AN$5","v":3.7035016908476055E-2},{"$f":"'Population 2016'!AO30/'Population 2016'!AO$5","v":3.7035016908476055E-2},{"$f":"'Population 2016'!AP30/'Population 2016'!AP$5","v":3.6444049902509393E-2},{"$f":"'Population 2016'!AQ30/'Population 2016'!AQ$5","v":3.9095467748122982E-2},{"$f":"'Population 2016'!AR30/'Population 2016'!AR$5","v":3.847568483484276E-2},{"$f":"'Population 2016'!AS30/'Population 2016'!AS$5","v":3.8281969684281048E-2},{"$f":"'Population 2016'!AT30/'Population 2016'!AT$5","v":3.8013391680286814E-2},{"$f":"'Population 2016'!AU30/'Population 2016'!AU$5","v":3.8013391680286814E-2},{"$f":"'Population 2016'!AV30/'Population 2016'!AV$5","v":3.6046879949318975E-2},{"$f":"'Population 2016'!AW30/'Population 2016'!AW$5","v":4.0183202147782052E-2},{"$f":"'Population 2016'!AX30/'Population 2016'!AX$5","v":3.7875206051854786E-2},{"$f":"'Population 2016'!AY30/'Population 2016'!AY$5","v":3.6736941954040571E-2},{"$f":"'Population 2016'!AZ30/'Population 2016'!AZ$5","v":3.5140452508470872E-2},{"$f":"'Population 2016'!BA30/'Population 2016'!BA$5","v":3.7788814510904774E-2},{"$f":"'Population 2016'!BB30/'Population 2016'!BB$5","v":4.4896183617243117E-2},{"$f":"'Population 2016'!BC30/'Population 2016'!BC$5","v":3.6559996459080243E-2},28]
[null,"Female 45-49",{"$f":"'Population 2016'!C31/'Population 2016'!C$5","v":3.6079180999013562E-2},{"$f":"'Population 2016'!D31/'Population 2016'!D$5","v":4.2936924777246366E-2},{"$f":"'Population 2016'!E31/'Population 2016'!E$5","v":4.9226744921924442E-2},{"$f":"'Population 2016'!F31/'Population 2016'!F$5","v":4.4172031934071591E-2},{"$f":"'Population 2016'!G31/'Population 2016'!G$5","v":4.2873382774860608E-2},{"$f":"'Population 2016'!H31/'Population 2016'!H$5","v":4.745908894890942E-2},{"$f":"'Population 2016'!I31/'Population 2016'!I$5","v":4.8059207771543419E-2},{"$f":"'Population 2016'!J31/'Population 2016'!J$5","v":4.7568894454442172E-2},{"$f":"'Population 2016'!K31/'Population 2016'!K$5","v":4.9756650758399093E-2},{"$f":"'Population 2016'!L31/'Population 2016'!L$5","v":4.5375121122106968E-2},{"$f":"'Population 2016'!M31/'Population 2016'!M$5","v":4.5375121122106968E-2},{"$f":"'Population 2016'!N31/'Population 2016'!N$5","v":3.6850692407230289E-2},{"$f":"'Population 2016'!O31/'Population 2016'!O$5","v":4.9523979354276264E-2},{"$f":"'Population 2016'!P31/'Population 2016'!P$5","v":4.8461625154964501E-2},{"$f":"'Population 2016'!Q31/'Population 2016'!Q$5","v":5.1244991245696293E-2},{"$f":"'Population 2016'!R31/'Population 2016'!R$5","v":5.0939479427263533E-2},{"$f":"'Population 2016'!S31/'Population 2016'!S$5","v":4.4161130931680524E-2},{"$f":"'Population 2016'!T31/'Population 2016'!T$5","v":3.7493659930294132E-2},{"$f":"'Population 2016'!U31/'Population 2016'!U$5","v":4.3995927942283006E-2},{"$f":"'Population 2016'!V31/'Population 2016'!V$5","v":4.8808969554498899E-2},{"$f":"'Population 2016'!W31/'Population 2016'!W$5","v":4.5666398656024683E-2},{"$f":"'Population 2016'!X31/'Population 2016'!X$5","v":4.5666398656024683E-2},{"$f":"'Population 2016'!Y31/'Population 2016'!Y$5","v":4.8214654774963832E-2},{"$f":"'Population 2016'!Z31/'Population 2016'!Z$5","v":4.1046646908628429E-2},{"$f":"'Population 2016'!AA31/'Population 2016'!AA$5","v":4.6316098586393316E-2},{"$f":"'Population 2016'!AB31/'Population 2016'!AB$5","v":4.3331320430283614E-2},{"$f":"'Population 2016'!AC31/'Population 2016'!AC$5","v":4.492771311134601E-2},{"$f":"'Population 2016'!AD31/'Population 2016'!AD$5","v":4.5148684357437942E-2},{"$f":"'Population 2016'!AE31/'Population 2016'!AE$5","v":4.6011766034558879E-2},{"$f":"'Population 2016'!AF31/'Population 2016'!AF$5","v":4.893754995551132E-2},{"$f":"'Population 2016'!AG31/'Population 2016'!AG$5","v":4.6011766034558879E-2},{"$f":"'Population 2016'!AH31/'Population 2016'!AH$5","v":4.8809711785850293E-2},{"$f":"'Population 2016'!AI31/'Population 2016'!AI$5","v":4.3022410097121357E-2},{"$f":"'Population 2016'!AJ31/'Population 2016'!AJ$5","v":4.895017148593258E-2},{"$f":"'Population 2016'!AK31/'Population 2016'!AK$5","v":4.5359113938372955E-2},{"$f":"'Population 2016'!AL31/'Population 2016'!AL$5","v":4.7808658945389403E-2},{"$f":"'Population 2016'!AM31/'Population 2016'!AM$5","v":4.9277231057875848E-2},{"$f":"'Population 2016'!AN31/'Population 2016'!AN$5","v":4.4998363695865608E-2},{"$f":"'Population 2016'!AO31/'Population 2016'!AO$5","v":4.4998363695865608E-2},{"$f":"'Population 2016'!AP31/'Population 2016'!AP$5","v":4.5677916395859421E-2},{"$f":"'Population 2016'!AQ31/'Population 2016'!AQ$5","v":4.9398531265413492E-2},{"$f":"'Population 2016'!AR31/'Population 2016'!AR$5","v":4.5185744109260795E-2},{"$f":"'Population 2016'!AS31/'Population 2016'!AS$5","v":4.8059207771543419E-2},{"$f":"'Population 2016'!AT31/'Population 2016'!AT$5","v":4.4761954974429273E-2},{"$f":"'Population 2016'!AU31/'Population 2016'!AU$5","v":4.4761954974429273E-2},{"$f":"'Population 2016'!AV31/'Population 2016'!AV$5","v":4.4842149720198503E-2},{"$f":"'Population 2016'!AW31/'Population 2016'!AW$5","v":4.8317469034108246E-2},{"$f":"'Population 2016'!AX31/'Population 2016'!AX$5","v":4.6385626844882885E-2},{"$f":"'Population 2016'!AY31/'Population 2016'!AY$5","v":4.3768550533949388E-2},{"$f":"'Population 2016'!AZ31/'Population 2016'!AZ$5","v":4.2098359901283432E-2},{"$f":"'Population 2016'!BA31/'Population 2016'!BA$5","v":4.9260418916000866E-2},{"$f":"'Population 2016'!BB31/'Population 2016'!BB$5","v":5.1663064568473242E-2},{"$f":"'Population 2016'!BC31/'Population 2016'!BC$5","v":4.3995927942283006E-2},29]
[null,"Female 50-54",{"$f":"'Population 2016'!C32/'Population 2016'!C$5","v":3.8404726735598228E-2},{"$f":"'Population 2016'!D32/'Population 2016'!D$5","v":4.4017683362186165E-2},{"$f":"'Population 2016'!E32/'Population 2016'!E$5","v":4.9165803327411058E-2},{"$f":"'Population 2016'!F32/'Population 2016'!F$5","v":4.6984290497038374E-2},{"$f":"'Population 2016'!G32/'Population 2016'!G$5","v":4.8800952741839439E-2},{"$f":"'Population 2016'!H32/'Population 2016'!H$5","v":4.9748227214806123E-2},{"$f":"'Population 2016'!I32/'Population 2016'!I$5","v":4.9964408341009965E-2},{"$f":"'Population 2016'!J32/'Population 2016'!J$5","v":4.8232337891742617E-2},{"$f":"'Population 2016'!K32/'Population 2016'!K$5","v":4.9591267778670324E-2},{"$f":"'Population 2016'!L32/'Population 2016'!L$5","v":4.9616380474322111E-2},{"$f":"'Population 2016'!M32/'Population 2016'!M$5","v":4.9616380474322111E-2},{"$f":"'Population 2016'!N32/'Population 2016'!N$5","v":4.1970406924876025E-2},{"$f":"'Population 2016'!O32/'Population 2016'!O$5","v":4.969239456712337E-2},{"$f":"'Population 2016'!P32/'Population 2016'!P$5","v":5.1177730192719484E-2},{"$f":"'Population 2016'!Q32/'Population 2016'!Q$5","v":4.9071103747312016E-2},{"$f":"'Population 2016'!R32/'Population 2016'!R$5","v":5.1498376536967053E-2},{"$f":"'Population 2016'!S32/'Population 2016'!S$5","v":4.4275876434980786E-2},{"$f":"'Population 2016'!T32/'Population 2016'!T$5","v":3.7426187628837197E-2},{"$f":"'Population 2016'!U32/'Population 2016'!U$5","v":4.6695879254636391E-2},{"$f":"'Population 2016'!V32/'Population 2016'!V$5","v":4.8144953862357939E-2},{"$f":"'Population 2016'!W32/'Population 2016'!W$5","v":4.726465724053628E-2},{"$f":"'Population 2016'!X32/'Population 2016'!X$5","v":4.726465724053628E-2},{"$f":"'Population 2016'!Y32/'Population 2016'!Y$5","v":4.8186833277690341E-2},{"$f":"'Population 2016'!Z32/'Population 2016'!Z$5","v":4.2765634951208227E-2},{"$f":"'Population 2016'!AA32/'Population 2016'!AA$5","v":4.7740534708339395E-2},{"$f":"'Population 2016'!AB32/'Population 2016'!AB$5","v":4.4430570197435085E-2},{"$f":"'Population 2016'!AC32/'Population 2016'!AC$5","v":4.664671166540138E-2},{"$f":"'Population 2016'!AD32/'Population 2016'!AD$5","v":4.912724701328669E-2},{"$f":"'Population 2016'!AE32/'Population 2016'!AE$5","v":4.9251019004301892E-2},{"$f":"'Population 2016'!AF32/'Population 2016'!AF$5","v":5.184816540741076E-2},{"$f":"'Population 2016'!AG32/'Population 2016'!AG$5","v":4.9251019004301892E-2},{"$f":"'Population 2016'!AH32/'Population 2016'!AH$5","v":4.9705098316041724E-2},{"$f":"'Population 2016'!AI32/'Population 2016'!AI$5","v":4.2282789395397674E-2},{"$f":"'Population 2016'!AJ32/'Population 2016'!AJ$5","v":4.8350667819200846E-2},{"$f":"'Population 2016'!AK32/'Population 2016'!AK$5","v":4.6553436506040755E-2},{"$f":"'Population 2016'!AL32/'Population 2016'!AL$5","v":5.0495734378602719E-2},{"$f":"'Population 2016'!AM32/'Population 2016'!AM$5","v":4.950541669232246E-2},{"$f":"'Population 2016'!AN32/'Population 2016'!AN$5","v":4.8216428493509329E-2},{"$f":"'Population 2016'!AO32/'Population 2016'!AO$5","v":4.8216428493509329E-2},{"$f":"'Population 2016'!AP32/'Population 2016'!AP$5","v":4.7810028058272433E-2},{"$f":"'Population 2016'!AQ32/'Population 2016'!AQ$5","v":5.0227434646791254E-2},{"$f":"'Population 2016'!AR32/'Population 2016'!AR$5","v":4.661887197487604E-2},{"$f":"'Population 2016'!AS32/'Population 2016'!AS$5","v":4.9964408341009965E-2},{"$f":"'Population 2016'!AT32/'Population 2016'!AT$5","v":4.5869141139874517E-2},{"$f":"'Population 2016'!AU32/'Population 2016'!AU$5","v":4.5869141139874517E-2},{"$f":"'Population 2016'!AV32/'Population 2016'!AV$5","v":4.8917748917748916E-2},{"$f":"'Population 2016'!AW32/'Population 2016'!AW$5","v":4.9915339557019954E-2},{"$f":"'Population 2016'!AX32/'Population 2016'!AX$5","v":4.7497348480008181E-2},{"$f":"'Population 2016'!AY32/'Population 2016'!AY$5","v":4.6320492029007683E-2},{"$f":"'Population 2016'!AZ32/'Population 2016'!AZ$5","v":4.5489584711587691E-2},{"$f":"'Population 2016'!BA32/'Population 2016'!BA$5","v":5.1649211833297341E-2},{"$f":"'Population 2016'!BB32/'Population 2016'!BB$5","v":4.9702050088729001E-2},{"$f":"'Population 2016'!BC32/'Population 2016'!BC$5","v":4.6695879254636391E-2},30]
[null,"Female 55-59",{"$f":"'Population 2016'!C33/'Population 2016'!C$5","v":3.4959852391734346E-2},{"$f":"'Population 2016'!D33/'Population 2016'!D$5","v":3.887307688545915E-2},{"$f":"'Population 2016'!E33/'Population 2016'!E$5","v":4.2462227930939109E-2},{"$f":"'Population 2016'!F33/'Population 2016'!F$5","v":4.4790110739119239E-2},{"$f":"'Population 2016'!G33/'Population 2016'!G$5","v":4.6595030585178367E-2},{"$f":"'Population 2016'!H33/'Population 2016'!H$5","v":4.6132945109317702E-2},{"$f":"'Population 2016'!I33/'Population 2016'!I$5","v":4.7535801021689979E-2},{"$f":"'Population 2016'!J33/'Population 2016'!J$5","v":4.2029141752983425E-2},{"$f":"'Population 2016'!K33/'Population 2016'!K$5","v":4.4039124887775838E-2},{"$f":"'Population 2016'!L33/'Population 2016'!L$5","v":4.6169364446491827E-2},{"$f":"'Population 2016'!M33/'Population 2016'!M$5","v":4.6169364446491827E-2},{"$f":"'Population 2016'!N33/'Population 2016'!N$5","v":3.9776243560170711E-2},{"$f":"'Population 2016'!O33/'Population 2016'!O$5","v":4.4421989082731497E-2},{"$f":"'Population 2016'!P33/'Population 2016'!P$5","v":4.8822269807280515E-2},{"$f":"'Population 2016'!Q33/'Population 2016'!Q$5","v":4.6004159763105019E-2},{"$f":"'Population 2016'!R33/'Population 2016'!R$5","v":4.5723106403364029E-2},{"$f":"'Population 2016'!S33/'Population 2016'!S$5","v":4.0423075497245227E-2},{"$f":"'Population 2016'!T33/'Population 2016'!T$5","v":3.4608637385238922E-2},{"$f":"'Population 2016'!U33/'Population 2016'!U$5","v":4.3022175009958835E-2},{"$f":"'Population 2016'!V33/'Population 2016'!V$5","v":4.2000900618984746E-2},{"$f":"'Population 2016'!W33/'Population 2016'!W$5","v":4.2996097503578926E-2},{"$f":"'Population 2016'!X33/'Population 2016'!X$5","v":4.2996097503578926E-2},{"$f":"'Population 2016'!Y33/'Population 2016'!Y$5","v":4.2014435382585334E-2},{"$f":"'Population 2016'!Z33/'Population 2016'!Z$5","v":3.7595120242052103E-2},{"$f":"'Population 2016'!AA33/'Population 2016'!AA$5","v":4.3007473638962582E-2},{"$f":"'Population 2016'!AB33/'Population 2016'!AB$5","v":3.9380571732700119E-2},{"$f":"'Population 2016'!AC33/'Population 2016'!AC$5","v":4.1938600102188361E-2},{"$f":"'Population 2016'!AD33/'Population 2016'!AD$5","v":4.6049350552681528E-2},{"$f":"'Population 2016'!AE33/'Population 2016'!AE$5","v":4.5842359777821126E-2},{"$f":"'Population 2016'!AF33/'Population 2016'!AF$5","v":4.8424799046886548E-2},{"$f":"'Population 2016'!AG33/'Population 2016'!AG$5","v":4.5842359777821126E-2},{"$f":"'Population 2016'!AH33/'Population 2016'!AH$5","v":4.4927226623816909E-2},{"$f":"'Population 2016'!AI33/'Population 2016'!AI$5","v":3.8417895266427506E-2},{"$f":"'Population 2016'!AJ33/'Population 2016'!AJ$5","v":4.4851239438976107E-2},{"$f":"'Population 2016'!AK33/'Population 2016'!AK$5","v":4.1989867115899575E-2},{"$f":"'Population 2016'!AL33/'Population 2016'!AL$5","v":4.6185771802557597E-2},{"$f":"'Population 2016'!AM33/'Population 2016'!AM$5","v":4.3503772306956762E-2},{"$f":"'Population 2016'!AN33/'Population 2016'!AN$5","v":4.3907494272935527E-2},{"$f":"'Population 2016'!AO33/'Population 2016'!AO$5","v":4.3907494272935527E-2},{"$f":"'Population 2016'!AP33/'Population 2016'!AP$5","v":4.3442765879872551E-2},{"$f":"'Population 2016'!AQ33/'Population 2016'!AQ$5","v":4.541842494656656E-2},{"$f":"'Population 2016'!AR33/'Population 2016'!AR$5","v":4.2346444459444799E-2},{"$f":"'Population 2016'!AS33/'Population 2016'!AS$5","v":4.7535801021689979E-2},{"$f":"'Population 2016'!AT33/'Population 2016'!AT$5","v":4.0913164970738651E-2},{"$f":"'Population 2016'!AU33/'Population 2016'!AU$5","v":4.0913164970738651E-2},{"$f":"'Population 2016'!AV33/'Population 2016'!AV$5","v":4.789356984478936E-2},{"$f":"'Population 2016'!AW33/'Population 2016'!AW$5","v":4.6425956434193665E-2},{"$f":"'Population 2016'!AX33/'Population 2016'!AX$5","v":4.0942024355648698E-2},{"$f":"'Population 2016'!AY33/'Population 2016'!AY$5","v":4.2735840396560691E-2},{"$f":"'Population 2016'!AZ33/'Population 2016'!AZ$5","v":4.2506802584119055E-2},{"$f":"'Population 2016'!BA33/'Population 2016'!BA$5","v":4.7478946231915356E-2},{"$f":"'Population 2016'!BB33/'Population 2016'!BB$5","v":4.2078951547751396E-2},{"$f":"'Population 2016'!BC33/'Population 2016'!BC$5","v":4.3022175009958835E-2},31]
[null,"Female 60-64",{"$f":"'Population 2016'!C34/'Population 2016'!C$5","v":2.9746541070159924E-2},{"$f":"'Population 2016'!D34/'Population 2016'!D$5","v":3.463317782146455E-2},{"$f":"'Population 2016'!E34/'Population 2016'!E$5","v":3.9115128047665704E-2},{"$f":"'Population 2016'!F34/'Population 2016'!F$5","v":4.0855009013649239E-2},{"$f":"'Population 2016'!G34/'Population 2016'!G$5","v":4.3590645807394579E-2},{"$f":"'Population 2016'!H34/'Population 2016'!H$5","v":4.1959969261996091E-2},{"$f":"'Population 2016'!I34/'Population 2016'!I$5","v":4.3097311782932753E-2},{"$f":"'Population 2016'!J34/'Population 2016'!J$5","v":3.6464509922625912E-2},{"$f":"'Population 2016'!K34/'Population 2016'!K$5","v":3.9101261635873928E-2},{"$f":"'Population 2016'!L34/'Population 2016'!L$5","v":4.4827093228281413E-2},{"$f":"'Population 2016'!M34/'Population 2016'!M$5","v":4.4827093228281413E-2},{"$f":"'Population 2016'!N34/'Population 2016'!N$5","v":3.1377339838130222E-2},{"$f":"'Population 2016'!O34/'Population 2016'!O$5","v":3.911195648943442E-2},{"$f":"'Population 2016'!P34/'Population 2016'!P$5","v":4.1203651527104701E-2},{"$f":"'Population 2016'!Q34/'Population 2016'!Q$5","v":3.8894960106226721E-2},{"$f":"'Population 2016'!R34/'Population 2016'!R$5","v":3.9907915047639325E-2},{"$f":"'Population 2016'!S34/'Population 2016'!S$5","v":3.4682269701361589E-2},{"$f":"'Population 2016'!T34/'Population 2016'!T$5","v":2.8615235710995193E-2},{"$f":"'Population 2016'!U34/'Population 2016'!U$5","v":4.3332005488425619E-2},{"$f":"'Population 2016'!V34/'Population 2016'!V$5","v":3.6826157638851789E-2},{"$f":"'Population 2016'!W34/'Population 2016'!W$5","v":3.839089025291053E-2},{"$f":"'Population 2016'!X34/'Population 2016'!X$5","v":3.839089025291053E-2},{"$f":"'Population 2016'!Y34/'Population 2016'!Y$5","v":3.6652835408022132E-2},{"$f":"'Population 2016'!Z34/'Population 2016'!Z$5","v":2.9338944564571423E-2},{"$f":"'Population 2016'!AA34/'Population 2016'!AA$5","v":3.5731156284693227E-2},{"$f":"'Population 2016'!AB34/'Population 2016'!AB$5","v":3.5335660112790802E-2},{"$f":"'Population 2016'!AC34/'Population 2016'!AC$5","v":3.39910761013692E-2},{"$f":"'Population 2016'!AD34/'Population 2016'!AD$5","v":4.2949123525252146E-2},{"$f":"'Population 2016'!AE34/'Population 2016'!AE$5","v":4.2705777266707053E-2},{"$f":"'Population 2016'!AF34/'Population 2016'!AF$5","v":3.9527062691339036E-2},{"$f":"'Population 2016'!AG34/'Population 2016'!AG$5","v":4.2705777266707053E-2},{"$f":"'Population 2016'!AH34/'Population 2016'!AH$5","v":3.8856431643182893E-2},{"$f":"'Population 2016'!AI34/'Population 2016'!AI$5","v":3.2032001924927812E-2},{"$f":"'Population 2016'!AJ34/'Population 2016'!AJ$5","v":3.7671137383933302E-2},{"$f":"'Population 2016'!AK34/'Population 2016'!AK$5","v":3.8947487522472124E-2},{"$f":"'Population 2016'!AL34/'Population 2016'!AL$5","v":4.2656213972792255E-2},{"$f":"'Population 2016'!AM34/'Population 2016'!AM$5","v":3.7480395956405677E-2},{"$f":"'Population 2016'!AN34/'Population 2016'!AN$5","v":4.0907603359877823E-2},{"$f":"'Population 2016'!AO34/'Population 2016'!AO$5","v":4.0907603359877823E-2},{"$f":"'Population 2016'!AP34/'Population 2016'!AP$5","v":4.0597308308102022E-2},{"$f":"'Population 2016'!AQ34/'Population 2016'!AQ$5","v":3.7471913191209516E-2},{"$f":"'Population 2016'!AR34/'Population 2016'!AR$5","v":3.6790818357670667E-2},{"$f":"'Population 2016'!AS34/'Population 2016'!AS$5","v":4.3097311782932753E-2},{"$f":"'Population 2016'!AT34/'Population 2016'!AT$5","v":3.9120577845732064E-2},{"$f":"'Population 2016'!AU34/'Population 2016'!AU$5","v":3.9120577845732064E-2},{"$f":"'Population 2016'!AV34/'Population 2016'!AV$5","v":4.4166402702988071E-2},{"$f":"'Population 2016'!AW34/'Population 2016'!AW$5","v":4.0305235218744281E-2},{"$f":"'Population 2016'!AX34/'Population 2016'!AX$5","v":3.5038399120845422E-2},{"$f":"'Population 2016'!AY34/'Population 2016'!AY$5","v":3.7847679079587526E-2},{"$f":"'Population 2016'!AZ34/'Population 2016'!AZ$5","v":3.7369629122538557E-2},{"$f":"'Population 2016'!BA34/'Population 2016'!BA$5","v":3.9975167350464261E-2},{"$f":"'Population 2016'!BB34/'Population 2016'!BB$5","v":3.5346595499333666E-2},{"$f":"'Population 2016'!BC34/'Population 2016'!BC$5","v":4.3332005488425619E-2},32]
[null,"Female 65-69",{"$f":"'Population 2016'!C35/'Population 2016'!C$5","v":2.8734545343030774E-2},{"$f":"'Population 2016'!D35/'Population 2016'!D$5","v":3.3535303150337918E-2},{"$f":"'Population 2016'!E35/'Population 2016'!E$5","v":3.7938486492061184E-2},{"$f":"'Population 2016'!F35/'Population 2016'!F$5","v":4.4357455575585888E-2},{"$f":"'Population 2016'!G35/'Population 2016'!G$5","v":4.7799491149244845E-2},{"$f":"'Population 2016'!H35/'Population 2016'!H$5","v":4.2981326986865014E-2},{"$f":"'Population 2016'!I35/'Population 2016'!I$5","v":4.6551796331965496E-2},{"$f":"'Population 2016'!J35/'Population 2016'!J$5","v":3.7924085484686898E-2},{"$f":"'Population 2016'!K35/'Population 2016'!K$5","v":4.2219912110759344E-2},{"$f":"'Population 2016'!L35/'Population 2016'!L$5","v":4.4993884326402236E-2},{"$f":"'Population 2016'!M35/'Population 2016'!M$5","v":4.4993884326402236E-2},{"$f":"'Population 2016'!N35/'Population 2016'!N$5","v":3.3008897211885456E-2},{"$f":"'Population 2016'!O35/'Population 2016'!O$5","v":3.9934218999217362E-2},{"$f":"'Population 2016'!P35/'Population 2016'!P$5","v":4.0820466584018937E-2},{"$f":"'Population 2016'!Q35/'Population 2016'!Q$5","v":3.93649898356071E-2},{"$f":"'Population 2016'!R35/'Population 2016'!R$5","v":3.8271144940650446E-2},{"$f":"'Population 2016'!S35/'Population 2016'!S$5","v":3.5695560761274628E-2},{"$f":"'Population 2016'!T35/'Population 2016'!T$5","v":2.8564049827131309E-2},{"$f":"'Population 2016'!U35/'Population 2016'!U$5","v":4.4350019917673615E-2},{"$f":"'Population 2016'!V35/'Population 2016'!V$5","v":3.7726776623594693E-2},{"$f":"'Population 2016'!W35/'Population 2016'!W$5","v":4.0587270148190274E-2},{"$f":"'Population 2016'!X35/'Population 2016'!X$5","v":4.0587270148190274E-2},{"$f":"'Population 2016'!Y35/'Population 2016'!Y$5","v":3.7821338293508845E-2},{"$f":"'Population 2016'!Z35/'Population 2016'!Z$5","v":2.5722875123649055E-2},{"$f":"'Population 2016'!AA35/'Population 2016'!AA$5","v":3.341046814385476E-2},{"$f":"'Population 2016'!AB35/'Population 2016'!AB$5","v":3.4670378596358353E-2},{"$f":"'Population 2016'!AC35/'Population 2016'!AC$5","v":3.1776650166211229E-2},{"$f":"'Population 2016'!AD35/'Population 2016'!AD$5","v":4.3756745692061484E-2},{"$f":"'Population 2016'!AE35/'Population 2016'!AE$5","v":4.2223226111151035E-2},{"$f":"'Population 2016'!AF35/'Population 2016'!AF$5","v":3.9798519054728622E-2},{"$f":"'Population 2016'!AG35/'Population 2016'!AG$5","v":4.2223226111151035E-2},{"$f":"'Population 2016'!AH35/'Population 2016'!AH$5","v":3.6344891002479958E-2},{"$f":"'Population 2016'!AI35/'Population 2016'!AI$5","v":3.2231603814856943E-2},{"$f":"'Population 2016'!AJ35/'Population 2016'!AJ$5","v":4.0375874857095054E-2},{"$f":"'Population 2016'!AK35/'Population 2016'!AK$5","v":4.0506392768691148E-2},{"$f":"'Population 2016'!AL35/'Population 2016'!AL$5","v":4.3702665791667407E-2},{"$f":"'Population 2016'!AM35/'Population 2016'!AM$5","v":3.5155075681568761E-2},{"$f":"'Population 2016'!AN35/'Population 2016'!AN$5","v":4.2489364023126433E-2},{"$f":"'Population 2016'!AO35/'Population 2016'!AO$5","v":4.2489364023126433E-2},{"$f":"'Population 2016'!AP35/'Population 2016'!AP$5","v":4.2166669308688551E-2},{"$f":"'Population 2016'!AQ35/'Population 2016'!AQ$5","v":3.7499314955883156E-2},{"$f":"'Population 2016'!AR35/'Population 2016'!AR$5","v":3.6548213624940214E-2},{"$f":"'Population 2016'!AS35/'Population 2016'!AS$5","v":4.6551796331965496E-2},{"$f":"'Population 2016'!AT35/'Population 2016'!AT$5","v":3.6009911952338269E-2},{"$f":"'Population 2016'!AU35/'Population 2016'!AU$5","v":3.6009911952338269E-2},{"$f":"'Population 2016'!AV35/'Population 2016'!AV$5","v":4.5370077077394148E-2},{"$f":"'Population 2016'!AW35/'Population 2016'!AW$5","v":3.7597626456769784E-2},{"$f":"'Population 2016'!AX35/'Population 2016'!AX$5","v":3.5600649143207638E-2},{"$f":"'Population 2016'!AY35/'Population 2016'!AY$5","v":4.0009485633854536E-2},{"$f":"'Population 2016'!AZ35/'Population 2016'!AZ$5","v":3.9501009601279405E-2},{"$f":"'Population 2016'!BA35/'Population 2016'!BA$5","v":3.8112718635283954E-2},{"$f":"'Population 2016'!BB35/'Population 2016'!BB$5","v":3.4890866782210005E-2},{"$f":"'Population 2016'!BC35/'Population 2016'!BC$5","v":4.4350019917673615E-2},33]
[null,"Female 70-74",{"$f":"'Population 2016'!C36/'Population 2016'!C$5","v":2.110368867331449E-2},{"$f":"'Population 2016'!D36/'Population 2016'!D$5","v":2.4590925540134777E-2},{"$f":"'Population 2016'!E36/'Population 2016'!E$5","v":2.7789367098101904E-2},{"$f":"'Population 2016'!F36/'Population 2016'!F$5","v":3.4128251352047383E-2},{"$f":"'Population 2016'!G36/'Population 2016'!G$5","v":3.7067612190764897E-2},{"$f":"'Population 2016'!H36/'Population 2016'!H$5","v":3.4382467665111389E-2},{"$f":"'Population 2016'!I36/'Population 2016'!I$5","v":3.6282555899840883E-2},{"$f":"'Population 2016'!J36/'Population 2016'!J$5","v":2.9937885108182745E-2},{"$f":"'Population 2016'!K36/'Population 2016'!K$5","v":3.1800784387846712E-2},{"$f":"'Population 2016'!L36/'Population 2016'!L$5","v":3.8131622003717058E-2},{"$f":"'Population 2016'!M36/'Population 2016'!M$5","v":3.8131622003717058E-2},{"$f":"'Population 2016'!N36/'Population 2016'!N$5","v":2.4907370942204292E-2},{"$f":"'Population 2016'!O36/'Population 2016'!O$5","v":3.0810077173794592E-2},{"$f":"'Population 2016'!P36/'Population 2016'!P$5","v":3.3077876704609488E-2},{"$f":"'Population 2016'!Q36/'Population 2016'!Q$5","v":3.0869202477056674E-2},{"$f":"'Population 2016'!R36/'Population 2016'!R$5","v":3.1005482514504711E-2},{"$f":"'Population 2016'!S36/'Population 2016'!S$5","v":2.7222929329127177E-2},{"$f":"'Population 2016'!T36/'Population 2016'!T$5","v":2.1293327687375234E-2},{"$f":"'Population 2016'!U36/'Population 2016'!U$5","v":3.5143628557517813E-2},{"$f":"'Population 2016'!V36/'Population 2016'!V$5","v":2.8338968562291542E-2},{"$f":"'Population 2016'!W36/'Population 2016'!W$5","v":3.1203629256303152E-2},{"$f":"'Population 2016'!X36/'Population 2016'!X$5","v":3.1203629256303152E-2},{"$f":"'Population 2016'!Y36/'Population 2016'!Y$5","v":2.9105260647684456E-2},{"$f":"'Population 2016'!Z36/'Population 2016'!Z$5","v":1.9861280762239562E-2},{"$f":"'Population 2016'!AA36/'Population 2016'!AA$5","v":2.6001938668192087E-2},{"$f":"'Population 2016'!AB36/'Population 2016'!AB$5","v":2.585181621853986E-2},{"$f":"'Population 2016'!AC36/'Population 2016'!AC$5","v":2.4674145310195461E-2},{"$f":"'Population 2016'!AD36/'Population 2016'!AD$5","v":3.3841974022107264E-2},{"$f":"'Population 2016'!AE36/'Population 2016'!AE$5","v":3.2618404706413827E-2},{"$f":"'Population 2016'!AF36/'Population 2016'!AF$5","v":3.1307967244265482E-2},{"$f":"'Population 2016'!AG36/'Population 2016'!AG$5","v":3.2618404706413827E-2},{"$f":"'Population 2016'!AH36/'Population 2016'!AH$5","v":2.838672524451297E-2},{"$f":"'Population 2016'!AI36/'Population 2016'!AI$5","v":2.4374671887304227E-2},{"$f":"'Population 2016'!AJ36/'Population 2016'!AJ$5","v":2.9989125282324402E-2},{"$f":"'Population 2016'!AK36/'Population 2016'!AK$5","v":3.2334712042543026E-2},{"$f":"'Population 2016'!AL36/'Population 2016'!AL$5","v":3.4594987673152305E-2},{"$f":"'Population 2016'!AM36/'Population 2016'!AM$5","v":2.7664791681003727E-2},{"$f":"'Population 2016'!AN36/'Population 2016'!AN$5","v":3.6325951783571508E-2},{"$f":"'Population 2016'!AO36/'Population 2016'!AO$5","v":3.6325951783571508E-2},{"$f":"'Population 2016'!AP36/'Population 2016'!AP$5","v":3.3860152497503286E-2},{"$f":"'Population 2016'!AQ36/'Population 2016'!AQ$5","v":2.8778703348495645E-2},{"$f":"'Population 2016'!AR36/'Population 2016'!AR$5","v":2.8326163238454612E-2},{"$f":"'Population 2016'!AS36/'Population 2016'!AS$5","v":3.6282555899840883E-2},{"$f":"'Population 2016'!AT36/'Population 2016'!AT$5","v":3.0421257974376548E-2},{"$f":"'Population 2016'!AU36/'Population 2016'!AU$5","v":3.0421257974376548E-2},{"$f":"'Population 2016'!AV36/'Population 2016'!AV$5","v":3.7936859888079398E-2},{"$f":"'Population 2016'!AW36/'Population 2016'!AW$5","v":2.9146836292635304E-2},{"$f":"'Population 2016'!AX36/'Population 2016'!AX$5","v":2.8930319332455882E-2},{"$f":"'Population 2016'!AY36/'Population 2016'!AY$5","v":3.0952235243719591E-2},{"$f":"'Population 2016'!AZ36/'Population 2016'!AZ$5","v":3.0730997347998917E-2},{"$f":"'Population 2016'!BA36/'Population 2016'!BA$5","v":2.7720794644785142E-2},{"$f":"'Population 2016'!BB36/'Population 2016'!BB$5","v":2.6922519213108415E-2},{"$f":"'Population 2016'!BC36/'Population 2016'!BC$5","v":3.5143628557517813E-2},34]
[null,"Female 75-79",{"$f":"'Population 2016'!C37/'Population 2016'!C$5","v":1.8885475816879885E-2},{"$f":"'Population 2016'!D37/'Population 2016'!D$5","v":2.02483299590192E-2},{"$f":"'Population 2016'!E37/'Population 2016'!E$5","v":2.149831941833592E-2},{"$f":"'Population 2016'!F37/'Population 2016'!F$5","v":2.7216070048931239E-2},{"$f":"'Population 2016'!G37/'Population 2016'!G$5","v":3.0382179396957722E-2},{"$f":"'Population 2016'!H37/'Population 2016'!H$5","v":2.6963843936539639E-2},{"$f":"'Population 2016'!I37/'Population 2016'!I$5","v":2.9310777991792981E-2},{"$f":"'Population 2016'!J37/'Population 2016'!J$5","v":2.3635172453828485E-2},{"$f":"'Population 2016'!K37/'Population 2016'!K$5","v":2.3224495581911826E-2},{"$f":"'Population 2016'!L37/'Population 2016'!L$5","v":2.9069305672485824E-2},{"$f":"'Population 2016'!M37/'Population 2016'!M$5","v":2.9069305672485824E-2},{"$f":"'Population 2016'!N37/'Population 2016'!N$5","v":2.2230973870970335E-2},{"$f":"'Population 2016'!O37/'Population 2016'!O$5","v":2.4261697427209954E-2},{"$f":"'Population 2016'!P37/'Population 2016'!P$5","v":2.9268567564521581E-2},{"$f":"'Population 2016'!Q37/'Population 2016'!Q$5","v":2.5240596467726584E-2},{"$f":"'Population 2016'!R37/'Population 2016'!R$5","v":2.5922180231010804E-2},{"$f":"'Population 2016'!S37/'Population 2016'!S$5","v":2.1867844955875942E-2},{"$f":"'Population 2016'!T37/'Population 2016'!T$5","v":1.8303606743507537E-2},{"$f":"'Population 2016'!U37/'Population 2016'!U$5","v":3.1558447306687915E-2},{"$f":"'Population 2016'!V37/'Population 2016'!V$5","v":2.3729020538692271E-2},{"$f":"'Population 2016'!W37/'Population 2016'!W$5","v":2.4088273553886482E-2},{"$f":"'Population 2016'!X37/'Population 2016'!X$5","v":2.4088273553886482E-2},{"$f":"'Population 2016'!Y37/'Population 2016'!Y$5","v":2.3684043178963769E-2},{"$f":"'Population 2016'!Z37/'Population 2016'!Z$5","v":1.8448148700208871E-2},{"$f":"'Population 2016'!AA37/'Population 2016'!AA$5","v":2.2388362144281294E-2},{"$f":"'Population 2016'!AB37/'Population 2016'!AB$5","v":2.0990143598456548E-2},{"$f":"'Population 2016'!AC37/'Population 2016'!AC$5","v":2.1844313755505038E-2},{"$f":"'Population 2016'!AD37/'Population 2016'!AD$5","v":2.6919498306598684E-2},{"$f":"'Population 2016'!AE37/'Population 2016'!AE$5","v":2.560601238205731E-2},{"$f":"'Population 2016'!AF37/'Population 2016'!AF$5","v":2.6331267248789758E-2},{"$f":"'Population 2016'!AG37/'Population 2016'!AG$5","v":2.560601238205731E-2},{"$f":"'Population 2016'!AH37/'Population 2016'!AH$5","v":2.3365501611509989E-2},{"$f":"'Population 2016'!AI37/'Population 2016'!AI$5","v":1.9967024674074723E-2},{"$f":"'Population 2016'!AJ37/'Population 2016'!AJ$5","v":2.3046036304826701E-2},{"$f":"'Population 2016'!AK37/'Population 2016'!AK$5","v":2.4804193957984989E-2},{"$f":"'Population 2016'!AL37/'Population 2016'!AL$5","v":2.7154537876234904E-2},{"$f":"'Population 2016'!AM37/'Population 2016'!AM$5","v":2.2575889833424487E-2},{"$f":"'Population 2016'!AN37/'Population 2016'!AN$5","v":2.7162648630958873E-2},{"$f":"'Population 2016'!AO37/'Population 2016'!AO$5","v":2.7162648630958873E-2},{"$f":"'Population 2016'!AP37/'Population 2016'!AP$5","v":2.6932771111075886E-2},{"$f":"'Population 2016'!AQ37/'Population 2016'!AQ$5","v":2.4038198059955062E-2},{"$f":"'Population 2016'!AR37/'Population 2016'!AR$5","v":2.324260272773266E-2},{"$f":"'Population 2016'!AS37/'Population 2016'!AS$5","v":2.9310777991792981E-2},{"$f":"'Population 2016'!AT37/'Population 2016'!AT$5","v":2.2091000158169453E-2},{"$f":"'Population 2016'!AU37/'Population 2016'!AU$5","v":2.2091000158169453E-2},{"$f":"'Population 2016'!AV37/'Population 2016'!AV$5","v":2.9616724738675958E-2},{"$f":"'Population 2016'!AW37/'Population 2016'!AW$5","v":2.4196869851729818E-2},{"$f":"'Population 2016'!AX37/'Population 2016'!AX$5","v":2.3857290721596789E-2},{"$f":"'Population 2016'!AY37/'Population 2016'!AY$5","v":2.4748324714666012E-2},{"$f":"'Population 2016'!AZ37/'Population 2016'!AZ$5","v":2.5329199049651672E-2},{"$f":"'Population 2016'!BA37/'Population 2016'!BA$5","v":2.4157849276614123E-2},{"$f":"'Population 2016'!BB37/'Population 2016'!BB$5","v":2.0279927912002928E-2},{"$f":"'Population 2016'!BC37/'Population 2016'!BC$5","v":3.1558447306687915E-2},35]
[null,"Female 80-84",{"$f":"'Population 2016'!C38/'Population 2016'!C$5","v":1.5501934547387467E-2},{"$f":"'Population 2016'!D38/'Population 2016'!D$5","v":1.5619651223066616E-2},{"$f":"'Population 2016'!E38/'Population 2016'!E$5","v":1.5727619199414962E-2},{"$f":"'Population 2016'!F38/'Population 2016'!F$5","v":2.0952871491115119E-2},{"$f":"'Population 2016'!G38/'Population 2016'!G$5","v":2.2086288096140314E-2},{"$f":"'Population 2016'!H38/'Population 2016'!H$5","v":2.0252064601686701E-2},{"$f":"'Population 2016'!I38/'Population 2016'!I$5","v":2.0936269994137845E-2},{"$f":"'Population 2016'!J38/'Population 2016'!J$5","v":1.7033910252689018E-2},{"$f":"'Population 2016'!K38/'Population 2016'!K$5","v":1.5640504654349574E-2},{"$f":"'Population 2016'!L38/'Population 2016'!L$5","v":2.2794783409845441E-2},{"$f":"'Population 2016'!M38/'Population 2016'!M$5","v":2.2794783409845441E-2},{"$f":"'Population 2016'!N38/'Population 2016'!N$5","v":1.9120566463860601E-2},{"$f":"'Population 2016'!O38/'Population 2016'!O$5","v":1.7871826116246124E-2},{"$f":"'Population 2016'!P38/'Population 2016'!P$5","v":2.1988053645892031E-2},{"$f":"'Population 2016'!Q38/'Population 2016'!Q$5","v":1.9212465188423167E-2},{"$f":"'Population 2016'!R38/'Population 2016'!R$5","v":2.2422419758343536E-2},{"$f":"'Population 2016'!S38/'Population 2016'!S$5","v":1.6628388743642659E-2},{"$f":"'Population 2016'!T38/'Population 2016'!T$5","v":1.5016077020795429E-2},{"$f":"'Population 2016'!U38/'Population 2016'!U$5","v":2.4476607798875758E-2},{"$f":"'Population 2016'!V38/'Population 2016'!V$5","v":1.676067195335099E-2},{"$f":"'Population 2016'!W38/'Population 2016'!W$5","v":1.7959981435360407E-2},{"$f":"'Population 2016'!X38/'Population 2016'!X$5","v":1.7959981435360407E-2},{"$f":"'Population 2016'!Y38/'Population 2016'!Y$5","v":1.6891623344620913E-2},{"$f":"'Population 2016'!Z38/'Population 2016'!Z$5","v":1.520181655222878E-2},{"$f":"'Population 2016'!AA38/'Population 2016'!AA$5","v":1.751843827587421E-2},{"$f":"'Population 2016'!AB38/'Population 2016'!AB$5","v":1.6337267023530496E-2},{"$f":"'Population 2016'!AC38/'Population 2016'!AC$5","v":1.7505445564011492E-2},{"$f":"'Population 2016'!AD38/'Population 2016'!AD$5","v":2.0194275931370725E-2},{"$f":"'Population 2016'!AE38/'Population 2016'!AE$5","v":1.9476586001909671E-2},{"$f":"'Population 2016'!AF38/'Population 2016'!AF$5","v":2.0841816344689259E-2},{"$f":"'Population 2016'!AG38/'Population 2016'!AG$5","v":1.9476586001909671E-2},{"$f":"'Population 2016'!AH38/'Population 2016'!AH$5","v":1.7541773868459915E-2},{"$f":"'Population 2016'!AI38/'Population 2016'!AI$5","v":1.550879342024674E-2},{"$f":"'Population 2016'!AJ38/'Population 2016'!AJ$5","v":1.7260128823578618E-2},{"$f":"'Population 2016'!AK38/'Population 2016'!AK$5","v":2.0026903687313781E-2},{"$f":"'Population 2016'!AL38/'Population 2016'!AL$5","v":2.0157499866976465E-2},{"$f":"'Population 2016'!AM38/'Population 2016'!AM$5","v":1.6472829610526964E-2},{"$f":"'Population 2016'!AN38/'Population 2016'!AN$5","v":1.7835715064906731E-2},{"$f":"'Population 2016'!AO38/'Population 2016'!AO$5","v":1.7835715064906731E-2},{"$f":"'Population 2016'!AP38/'Population 2016'!AP$5","v":2.0869330881537022E-2},{"$f":"'Population 2016'!AQ38/'Population 2016'!AQ$5","v":1.8715405272099524E-2},{"$f":"'Population 2016'!AR38/'Population 2016'!AR$5","v":1.7870545312615914E-2},{"$f":"'Population 2016'!AS38/'Population 2016'!AS$5","v":2.0936269994137845E-2},{"$f":"'Population 2016'!AT38/'Population 2016'!AT$5","v":1.6396899878736753E-2},{"$f":"'Population 2016'!AU38/'Population 2016'!AU$5","v":1.6396899878736753E-2},{"$f":"'Population 2016'!AV38/'Population 2016'!AV$5","v":2.2901488755147293E-2},{"$f":"'Population 2016'!AW38/'Population 2016'!AW$5","v":1.8667246323753738E-2},{"$f":"'Population 2016'!AX38/'Population 2016'!AX$5","v":1.7787546162004678E-2},{"$f":"'Population 2016'!AY38/'Population 2016'!AY$5","v":1.9186989382209845E-2},{"$f":"'Population 2016'!AZ38/'Population 2016'!AZ$5","v":2.026681086802699E-2},{"$f":"'Population 2016'!BA38/'Population 2016'!BA$5","v":1.7841718851220038E-2},{"$f":"'Population 2016'!BB38/'Population 2016'!BB$5","v":1.3927345794521588E-2},{"$f":"'Population 2016'!BC38/'Population 2016'!BC$5","v":2.4476607798875758E-2},36]
[null,"Female 85-89",{"$f":"'Population 2016'!C39/'Population 2016'!C$5","v":1.0309067583936867E-2},{"$f":"'Population 2016'!D39/'Population 2016'!D$5","v":1.0220748608706708E-2},{"$f":"'Population 2016'!E39/'Population 2016'!E$5","v":1.0139743764034146E-2},{"$f":"'Population 2016'!F39/'Population 2016'!F$5","v":1.3546227143960855E-2},{"$f":"'Population 2016'!G39/'Population 2016'!G$5","v":1.3533264764791858E-2},{"$f":"'Population 2016'!H39/'Population 2016'!H$5","v":1.1776416688012502E-2},{"$f":"'Population 2016'!I39/'Population 2016'!I$5","v":1.2844401641403567E-2},{"$f":"'Population 2016'!J39/'Population 2016'!J$5","v":9.9765306884054966E-3},{"$f":"'Population 2016'!K39/'Population 2016'!K$5","v":9.7339696640362898E-3},{"$f":"'Population 2016'!L39/'Population 2016'!L$5","v":1.3954855209441964E-2},{"$f":"'Population 2016'!M39/'Population 2016'!M$5","v":1.3954855209441964E-2},{"$f":"'Population 2016'!N39/'Population 2016'!N$5","v":1.2264810602711762E-2},{"$f":"'Population 2016'!O39/'Population 2016'!O$5","v":1.0382302533162937E-2},{"$f":"'Population 2016'!P39/'Population 2016'!P$5","v":1.3557984898005184E-2},{"$f":"'Population 2016'!Q39/'Population 2016'!Q$5","v":1.2103265531544871E-2},{"$f":"'Population 2016'!R39/'Population 2016'!R$5","v":1.4398254111885878E-2},{"$f":"'Population 2016'!S39/'Population 2016'!S$5","v":1.0682806357253946E-2},{"$f":"'Population 2016'!T39/'Population 2016'!T$5","v":1.0690869834297335E-2},{"$f":"'Population 2016'!U39/'Population 2016'!U$5","v":1.4606293984862568E-2},{"$f":"'Population 2016'!V39/'Population 2016'!V$5","v":9.8075880965646737E-3},{"$f":"'Population 2016'!W39/'Population 2016'!W$5","v":1.1351231214741892E-2},{"$f":"'Population 2016'!X39/'Population 2016'!X$5","v":1.1351231214741892E-2},{"$f":"'Population 2016'!Y39/'Population 2016'!Y$5","v":9.8885550309216075E-3},{"$f":"'Population 2016'!Z39/'Population 2016'!Z$5","v":9.2008447819614658E-3},{"$f":"'Population 2016'!AA39/'Population 2016'!AA$5","v":1.0487278071324121E-2},{"$f":"'Population 2016'!AB39/'Population 2016'!AB$5","v":1.0509400939582204E-2},{"$f":"'Population 2016'!AC39/'Population 2016'!AC$5","v":1.0701852008911487E-2},{"$f":"'Population 2016'!AD39/'Population 2016'!AD$5","v":1.2709814284119245E-2},{"$f":"'Population 2016'!AE39/'Population 2016'!AE$5","v":1.2397457879444348E-2},{"$f":"'Population 2016'!AF39/'Population 2016'!AF$5","v":1.3452170896861662E-2},{"$f":"'Population 2016'!AG39/'Population 2016'!AG$5","v":1.2397457879444348E-2},{"$f":"'Population 2016'!AH39/'Population 2016'!AH$5","v":1.0101892014898341E-2},{"$f":"'Population 2016'!AI39/'Population 2016'!AI$5","v":1.0120909528392685E-2},{"$f":"'Population 2016'!AJ39/'Population 2016'!AJ$5","v":9.6617683963974004E-3},{"$f":"'Population 2016'!AK39/'Population 2016'!AK$5","v":1.1993512942685089E-2},{"$f":"'Population 2016'!AL39/'Population 2016'!AL$5","v":1.1377946471328993E-2},{"$f":"'Population 2016'!AM39/'Population 2016'!AM$5","v":8.975301621566803E-3},{"$f":"'Population 2016'!AN39/'Population 2016'!AN$5","v":1.1945020181084324E-2},{"$f":"'Population 2016'!AO39/'Population 2016'!AO$5","v":1.1945020181084324E-2},{"$f":"'Population 2016'!AP39/'Population 2016'!AP$5","v":1.4251066055831206E-2},{"$f":"'Population 2016'!AQ39/'Population 2016'!AQ$5","v":1.0816846604921358E-2},{"$f":"'Population 2016'!AR39/'Population 2016'!AR$5","v":1.1070038360063296E-2},{"$f":"'Population 2016'!AS39/'Population 2016'!AS$5","v":1.2844401641403567E-2},{"$f":"'Population 2016'!AT39/'Population 2016'!AT$5","v":9.9646754890072228E-3},{"$f":"'Population 2016'!AU39/'Population 2016'!AU$5","v":9.9646754890072228E-3},{"$f":"'Population 2016'!AV39/'Population 2016'!AV$5","v":1.3736669834230809E-2},{"$f":"'Population 2016'!AW39/'Population 2016'!AW$5","v":1.1288059064006345E-2},{"$f":"'Population 2016'!AX39/'Population 2016'!AX$5","v":1.0107721992920761E-2},{"$f":"'Population 2016'!AY39/'Population 2016'!AY$5","v":1.2410880939995716E-2},{"$f":"'Population 2016'!AZ39/'Population 2016'!AZ$5","v":1.3343419758270964E-2},{"$f":"'Population 2016'!BA39/'Population 2016'!BA$5","v":1.13096523429065E-2},{"$f":"'Population 2016'!BB39/'Population 2016'!BB$5","v":7.4919039102904926E-3},{"$f":"'Population 2016'!BC39/'Population 2016'!BC$5","v":1.4606293984862568E-2},37]
[null,"Female 90+",{"$f":"'Population 2016'!C40/'Population 2016'!C$5","v":5.6681982898294427E-3},{"$f":"'Population 2016'!D40/'Population 2016'!D$5","v":5.8414757000479246E-3},{"$f":"'Population 2016'!E40/'Population 2016'!E$5","v":6.0004031520867812E-3},{"$f":"'Population 2016'!F40/'Population 2016'!F$5","v":9.1063610610352813E-3},{"$f":"'Population 2016'!G40/'Population 2016'!G$5","v":8.5800898608780381E-3},{"$f":"'Population 2016'!H40/'Population 2016'!H$5","v":7.3051395369196498E-3},{"$f":"'Population 2016'!I40/'Population 2016'!I$5","v":7.8615693827987602E-3},{"$f":"'Population 2016'!J40/'Population 2016'!J$5","v":6.1949030957929394E-3},{"$f":"'Population 2016'!K40/'Population 2016'!K$5","v":5.3158814912819541E-3},{"$f":"'Population 2016'!L40/'Population 2016'!L$5","v":7.8709513446539488E-3},{"$f":"'Population 2016'!M40/'Population 2016'!M$5","v":7.8709513446539488E-3},{"$f":"'Population 2016'!N40/'Population 2016'!N$5","v":6.7512718914009692E-3},{"$f":"'Population 2016'!O40/'Population 2016'!O$5","v":6.023320553590711E-3},{"$f":"'Population 2016'!P40/'Population 2016'!P$5","v":8.0018032232615794E-3},{"$f":"'Population 2016'!Q40/'Population 2016'!Q$5","v":6.674422157201443E-3},{"$f":"'Population 2016'!R40/'Population 2016'!R$5","v":8.8758183850534949E-3},{"$f":"'Population 2016'!S40/'Population 2016'!S$5","v":6.383380614365078E-3},{"$f":"'Population 2016'!T40/'Population 2016'!T$5","v":6.4168485316631226E-3},{"$f":"'Population 2016'!U40/'Population 2016'!U$5","v":1.0622759261718231E-2},{"$f":"'Population 2016'!V40/'Population 2016'!V$5","v":5.9532441364361435E-3},{"$f":"'Population 2016'!W40/'Population 2016'!W$5","v":6.9421293118663348E-3},{"$f":"'Population 2016'!X40/'Population 2016'!X$5","v":6.9421293118663348E-3},{"$f":"'Population 2016'!Y40/'Population 2016'!Y$5","v":6.0690609052320311E-3},{"$f":"'Population 2016'!Z40/'Population 2016'!Z$5","v":5.3582870516451376E-3},{"$f":"'Population 2016'!AA40/'Population 2016'!AA$5","v":5.8339429042950338E-3},{"$f":"'Population 2016'!AB40/'Population 2016'!AB$5","v":5.9875336478920809E-3},{"$f":"'Population 2016'!AC40/'Population 2016'!AC$5","v":6.2078395435862322E-3},{"$f":"'Population 2016'!AD40/'Population 2016'!AD$5","v":7.4025829022293351E-3},{"$f":"'Population 2016'!AE40/'Population 2016'!AE$5","v":6.9559235721105969E-3},{"$f":"'Population 2016'!AF40/'Population 2016'!AF$5","v":7.9174772655295662E-3},{"$f":"'Population 2016'!AG40/'Population 2016'!AG$5","v":6.9559235721105969E-3},{"$f":"'Population 2016'!AH40/'Population 2016'!AH$5","v":5.1624049116223772E-3},{"$f":"'Population 2016'!AI40/'Population 2016'!AI$5","v":5.95661256452883E-3},{"$f":"'Population 2016'!AJ40/'Population 2016'!AJ$5","v":5.6186041323927167E-3},{"$f":"'Population 2016'!AK40/'Population 2016'!AK$5","v":6.7384936449467582E-3},{"$f":"'Population 2016'!AL40/'Population 2016'!AL$5","v":6.9438285947393628E-3},{"$f":"'Population 2016'!AM40/'Population 2016'!AM$5","v":4.2304892227562653E-3},{"$f":"'Population 2016'!AN40/'Population 2016'!AN$5","v":7.308825133631504E-3},{"$f":"'Population 2016'!AO40/'Population 2016'!AO$5","v":7.308825133631504E-3},{"$f":"'Population 2016'!AP40/'Population 2016'!AP$5","v":8.9485281296070255E-3},{"$f":"'Population 2016'!AQ40/'Population 2016'!AQ$5","v":6.0420891105387184E-3},{"$f":"'Population 2016'!AR40/'Population 2016'!AR$5","v":6.4716873148022522E-3},{"$f":"'Population 2016'!AS40/'Population 2016'!AS$5","v":7.8615693827987602E-3},{"$f":"'Population 2016'!AT40/'Population 2016'!AT$5","v":6.590393841935994E-3},{"$f":"'Population 2016'!AU40/'Population 2016'!AU$5","v":6.590393841935994E-3},{"$f":"'Population 2016'!AV40/'Population 2016'!AV$5","v":9.1014676380530048E-3},{"$f":"'Population 2016'!AW40/'Population 2016'!AW$5","v":6.1436024162548047E-3},{"$f":"'Population 2016'!AX40/'Population 2016'!AX$5","v":6.6703298107517539E-3},{"$f":"'Population 2016'!AY40/'Population 2016'!AY$5","v":7.6145160796793248E-3},{"$f":"'Population 2016'!AZ40/'Population 2016'!AZ$5","v":8.2062462966904642E-3},{"$f":"'Population 2016'!BA40/'Population 2016'!BA$5","v":6.0732023321096954E-3},{"$f":"'Population 2016'!BB40/'Population 2016'!BB$5","v":4.3363277932372624E-3},{"$f":"'Population 2016'!BC40/'Population 2016'!BC$5","v":1.0622759261718231E-2},38]
[null,"Male 0-4",{"$f":"'Population 2016'!C41/'Population 2016'!C$5","v":0},{"$f":"'Population 2016'!D41/'Population 2016'!D$5","v":0},{"$f":"'Population 2016'!E41/'Population 2016'!E$5","v":0},{"$f":"'Population 2016'!F41/'Population 2016'!F$5","v":0},{"$f":"'Population 2016'!G41/'Population 2016'!G$5","v":0},{"$f":"'Population 2016'!H41/'Population 2016'!H$5","v":0},{"$f":"'Population 2016'!I41/'Population 2016'!I$5","v":0},{"$f":"'Population 2016'!J41/'Population 2016'!J$5","v":0},{"$f":"'Population 2016'!K41/'Population 2016'!K$5","v":0},{"$f":"'Population 2016'!L41/'Population 2016'!L$5","v":0},{"$f":"'Population 2016'!M41/'Population 2016'!M$5","v":0},{"$f":"'Population 2016'!N41/'Population 2016'!N$5","v":0},{"$f":"'Population 2016'!O41/'Population 2016'!O$5","v":0},{"$f":"'Population 2016'!P41/'Population 2016'!P$5","v":0},{"$f":"'Population 2016'!Q41/'Population 2016'!Q$5","v":0},{"$f":"'Population 2016'!R41/'Population 2016'!R$5","v":0},{"$f":"'Population 2016'!S41/'Population 2016'!S$5","v":0},{"$f":"'Population 2016'!T41/'Population 2016'!T$5","v":0},{"$f":"'Population 2016'!U41/'Population 2016'!U$5","v":0},{"$f":"'Population 2016'!V41/'Population 2016'!V$5","v":0},{"$f":"'Population 2016'!W41/'Population 2016'!W$5","v":0},{"$f":"'Population 2016'!X41/'Population 2016'!X$5","v":0},{"$f":"'Population 2016'!Y41/'Population 2016'!Y$5","v":0},{"$f":"'Population 2016'!Z41/'Population 2016'!Z$5","v":0},{"$f":"'Population 2016'!AA41/'Population 2016'!AA$5","v":0},{"$f":"'Population 2016'!AB41/'Population 2016'!AB$5","v":0},{"$f":"'Population 2016'!AC41/'Population 2016'!AC$5","v":0},{"$f":"'Population 2016'!AD41/'Population 2016'!AD$5","v":0},{"$f":"'Population 2016'!AE41/'Population 2016'!AE$5","v":0},{"$f":"'Population 2016'!AF41/'Population 2016'!AF$5","v":0},{"$f":"'Population 2016'!AG41/'Population 2016'!AG$5","v":0},{"$f":"'Population 2016'!AH41/'Population 2016'!AH$5","v":0},{"$f":"'Population 2016'!AI41/'Population 2016'!AI$5","v":0},{"$f":"'Population 2016'!AJ41/'Population 2016'!AJ$5","v":0},{"$f":"'Population 2016'!AK41/'Population 2016'!AK$5","v":0},{"$f":"'Population 2016'!AL41/'Population 2016'!AL$5","v":0},{"$f":"'Population 2016'!AM41/'Population 2016'!AM$5","v":0},{"$f":"'Population 2016'!AN41/'Population 2016'!AN$5","v":0},{"$f":"'Population 2016'!AO41/'Population 2016'!AO$5","v":0},{"$f":"'Population 2016'!AP41/'Population 2016'!AP$5","v":0},{"$f":"'Population 2016'!AQ41/'Population 2016'!AQ$5","v":0},{"$f":"'Population 2016'!AR41/'Population 2016'!AR$5","v":0},{"$f":"'Population 2016'!AS41/'Population 2016'!AS$5","v":0},{"$f":"'Population 2016'!AT41/'Population 2016'!AT$5","v":0},{"$f":"'Population 2016'!AU41/'Population 2016'!AU$5","v":0},{"$f":"'Population 2016'!AV41/'Population 2016'!AV$5","v":0},{"$f":"'Population 2016'!AW41/'Population 2016'!AW$5","v":0},{"$f":"'Population 2016'!AX41/'Population 2016'!AX$5","v":0},{"$f":"'Population 2016'!AY41/'Population 2016'!AY$5","v":0},{"$f":"'Population 2016'!AZ41/'Population 2016'!AZ$5","v":0},{"$f":"'Population 2016'!BA41/'Population 2016'!BA$5","v":0},{"$f":"'Population 2016'!BB41/'Population 2016'!BB$5","v":0},{"$f":"'Population 2016'!BC41/'Population 2016'!BC$5","v":0},39]
[null,"Male 5-9",{"$f":"'Population 2016'!C42/'Population 2016'!C$5","v":0},{"$f":"'Population 2016'!D42/'Population 2016'!D$5","v":0},{"$f":"'Population 2016'!E42/'Population 2016'!E$5","v":0},{"$f":"'Population 2016'!F42/'Population 2016'!F$5","v":0},{"$f":"'Population 2016'!G42/'Population 2016'!G$5","v":0},{"$f":"'Population 2016'!H42/'Population 2016'!H$5","v":0},{"$f":"'Population 2016'!I42/'Population 2016'!I$5","v":0},{"$f":"'Population 2016'!J42/'Population 2016'!J$5","v":0},{"$f":"'Population 2016'!K42/'Population 2016'!K$5","v":0},{"$f":"'Population 2016'!L42/'Population 2016'!L$5","v":0},{"$f":"'Population 2016'!M42/'Population 2016'!M$5","v":0},{"$f":"'Population 2016'!N42/'Population 2016'!N$5","v":0},{"$f":"'Population 2016'!O42/'Population 2016'!O$5","v":0},{"$f":"'Population 2016'!P42/'Population 2016'!P$5","v":0},{"$f":"'Population 2016'!Q42/'Population 2016'!Q$5","v":0},{"$f":"'Population 2016'!R42/'Population 2016'!R$5","v":0},{"$f":"'Population 2016'!S42/'Population 2016'!S$5","v":0},{"$f":"'Population 2016'!T42/'Population 2016'!T$5","v":0},{"$f":"'Population 2016'!U42/'Population 2016'!U$5","v":0},{"$f":"'Population 2016'!V42/'Population 2016'!V$5","v":0},{"$f":"'Population 2016'!W42/'Population 2016'!W$5","v":0},{"$f":"'Population 2016'!X42/'Population 2016'!X$5","v":0},{"$f":"'Population 2016'!Y42/'Population 2016'!Y$5","v":0},{"$f":"'Population 2016'!Z42/'Population 2016'!Z$5","v":0},{"$f":"'Population 2016'!AA42/'Population 2016'!AA$5","v":0},{"$f":"'Population 2016'!AB42/'Population 2016'!AB$5","v":0},{"$f":"'Population 2016'!AC42/'Population 2016'!AC$5","v":0},{"$f":"'Population 2016'!AD42/'Population 2016'!AD$5","v":0},{"$f":"'Population 2016'!AE42/'Population 2016'!AE$5","v":0},{"$f":"'Population 2016'!AF42/'Population 2016'!AF$5","v":0},{"$f":"'Population 2016'!AG42/'Population 2016'!AG$5","v":0},{"$f":"'Population 2016'!AH42/'Population 2016'!AH$5","v":0},{"$f":"'Population 2016'!AI42/'Population 2016'!AI$5","v":0},{"$f":"'Population 2016'!AJ42/'Population 2016'!AJ$5","v":0},{"$f":"'Population 2016'!AK42/'Population 2016'!AK$5","v":0},{"$f":"'Population 2016'!AL42/'Population 2016'!AL$5","v":0},{"$f":"'Population 2016'!AM42/'Population 2016'!AM$5","v":0},{"$f":"'Population 2016'!AN42/'Population 2016'!AN$5","v":0},{"$f":"'Population 2016'!AO42/'Population 2016'!AO$5","v":0},{"$f":"'Population 2016'!AP42/'Population 2016'!AP$5","v":0},{"$f":"'Population 2016'!AQ42/'Population 2016'!AQ$5","v":0},{"$f":"'Population 2016'!AR42/'Population 2016'!AR$5","v":0},{"$f":"'Population 2016'!AS42/'Population 2016'!AS$5","v":0},{"$f":"'Population 2016'!AT42/'Population 2016'!AT$5","v":0},{"$f":"'Population 2016'!AU42/'Population 2016'!AU$5","v":0},{"$f":"'Population 2016'!AV42/'Population 2016'!AV$5","v":0},{"$f":"'Population 2016'!AW42/'Population 2016'!AW$5","v":0},{"$f":"'Population 2016'!AX42/'Population 2016'!AX$5","v":0},{"$f":"'Population 2016'!AY42/'Population 2016'!AY$5","v":0},{"$f":"'Population 2016'!AZ42/'Population 2016'!AZ$5","v":0},{"$f":"'Population 2016'!BA42/'Population 2016'!BA$5","v":0},{"$f":"'Population 2016'!BB42/'Population 2016'!BB$5","v":0},{"$f":"'Population 2016'!BC42/'Population 2016'!BC$5","v":0},40]
[null,"Male 10-15",{"$f":"'Population 2016'!C43/'Population 2016'!C$5","v":0},{"$f":"'Population 2016'!D43/'Population 2016'!D$5","v":0},{"$f":"'Population 2016'!E43/'Population 2016'!E$5","v":0},{"$f":"'Population 2016'!F43/'Population 2016'!F$5","v":0},{"$f":"'Population 2016'!G43/'Population 2016'!G$5","v":0},{"$f":"'Population 2016'!H43/'Population 2016'!H$5","v":0},{"$f":"'Population 2016'!I43/'Population 2016'!I$5","v":0},{"$f":"'Population 2016'!J43/'Population 2016'!J$5","v":0},{"$f":"'Population 2016'!K43/'Population 2016'!K$5","v":0},{"$f":"'Population 2016'!L43/'Population 2016'!L$5","v":0},{"$f":"'Population 2016'!M43/'Population 2016'!M$5","v":0},{"$f":"'Population 2016'!N43/'Population 2016'!N$5","v":0},{"$f":"'Population 2016'!O43/'Population 2016'!O$5","v":0},{"$f":"'Population 2016'!P43/'Population 2016'!P$5","v":0},{"$f":"'Population 2016'!Q43/'Population 2016'!Q$5","v":0},{"$f":"'Population 2016'!R43/'Population 2016'!R$5","v":0},{"$f":"'Population 2016'!S43/'Population 2016'!S$5","v":0},{"$f":"'Population 2016'!T43/'Population 2016'!T$5","v":0},{"$f":"'Population 2016'!U43/'Population 2016'!U$5","v":0},{"$f":"'Population 2016'!V43/'Population 2016'!V$5","v":0},{"$f":"'Population 2016'!W43/'Population 2016'!W$5","v":0},{"$f":"'Population 2016'!X43/'Population 2016'!X$5","v":0},{"$f":"'Population 2016'!Y43/'Population 2016'!Y$5","v":0},{"$f":"'Population 2016'!Z43/'Population 2016'!Z$5","v":0},{"$f":"'Population 2016'!AA43/'Population 2016'!AA$5","v":0},{"$f":"'Population 2016'!AB43/'Population 2016'!AB$5","v":0},{"$f":"'Population 2016'!AC43/'Population 2016'!AC$5","v":0},{"$f":"'Population 2016'!AD43/'Population 2016'!AD$5","v":0},{"$f":"'Population 2016'!AE43/'Population 2016'!AE$5","v":0},{"$f":"'Population 2016'!AF43/'Population 2016'!AF$5","v":0},{"$f":"'Population 2016'!AG43/'Population 2016'!AG$5","v":0},{"$f":"'Population 2016'!AH43/'Population 2016'!AH$5","v":0},{"$f":"'Population 2016'!AI43/'Population 2016'!AI$5","v":0},{"$f":"'Population 2016'!AJ43/'Population 2016'!AJ$5","v":0},{"$f":"'Population 2016'!AK43/'Population 2016'!AK$5","v":0},{"$f":"'Population 2016'!AL43/'Population 2016'!AL$5","v":0},{"$f":"'Population 2016'!AM43/'Population 2016'!AM$5","v":0},{"$f":"'Population 2016'!AN43/'Population 2016'!AN$5","v":0},{"$f":"'Population 2016'!AO43/'Population 2016'!AO$5","v":0},{"$f":"'Population 2016'!AP43/'Population 2016'!AP$5","v":0},{"$f":"'Population 2016'!AQ43/'Population 2016'!AQ$5","v":0},{"$f":"'Population 2016'!AR43/'Population 2016'!AR$5","v":0},{"$f":"'Population 2016'!AS43/'Population 2016'!AS$5","v":0},{"$f":"'Population 2016'!AT43/'Population 2016'!AT$5","v":0},{"$f":"'Population 2016'!AU43/'Population 2016'!AU$5","v":0},{"$f":"'Population 2016'!AV43/'Population 2016'!AV$5","v":0},{"$f":"'Population 2016'!AW43/'Population 2016'!AW$5","v":0},{"$f":"'Population 2016'!AX43/'Population 2016'!AX$5","v":0},{"$f":"'Population 2016'!AY43/'Population 2016'!AY$5","v":0},{"$f":"'Population 2016'!AZ43/'Population 2016'!AZ$5","v":0},{"$f":"'Population 2016'!BA43/'Population 2016'!BA$5","v":0},{"$f":"'Population 2016'!BB43/'Population 2016'!BB$5","v":0},{"$f":"'Population 2016'!BC43/'Population 2016'!BC$5","v":0},41]
[null,"Male 16-19",{"$f":"'Population 2016'!C44/'Population 2016'!C$5","v":2.360301145395164E-2},{"$f":"'Population 2016'!D44/'Population 2016'!D$5","v":2.6263411676104964E-2},{"$f":"'Population 2016'!E44/'Population 2016'!E$5","v":2.8703491015802624E-2},{"$f":"'Population 2016'!F44/'Population 2016'!F$5","v":2.8452227659026524E-2},{"$f":"'Population 2016'!G44/'Population 2016'!G$5","v":2.8947653331889787E-2},{"$f":"'Population 2016'!H44/'Population 2016'!H$5","v":2.7871717469756464E-2},{"$f":"'Population 2016'!I44/'Population 2016'!I$5","v":2.594003852273679E-2},{"$f":"'Population 2016'!J44/'Population 2016'!J$5","v":3.2425797998059426E-2},{"$f":"'Population 2016'!K44/'Population 2016'!K$5","v":2.9579927231488921E-2},{"$f":"'Population 2016'!L44/'Population 2016'!L$5","v":2.5582577478436293E-2},{"$f":"'Population 2016'!M44/'Population 2016'!M$5","v":2.5582577478436293E-2},{"$f":"'Population 2016'!N44/'Population 2016'!N$5","v":2.8323193030115493E-2},{"$f":"'Population 2016'!O44/'Population 2016'!O$5","v":2.8016365995977847E-2},{"$f":"'Population 2016'!P44/'Population 2016'!P$5","v":2.9561591344528345E-2},{"$f":"'Population 2016'!Q44/'Population 2016'!Q$5","v":2.7132466128482628E-2},{"$f":"'Population 2016'!R44/'Population 2016'!R$5","v":3.2935008250385908E-2},{"$f":"'Population 2016'!S44/'Population 2016'!S$5","v":2.6619191450224282E-2},{"$f":"'Population 2016'!T44/'Population 2016'!T$5","v":2.4504078584291517E-2},{"$f":"'Population 2016'!U44/'Population 2016'!U$5","v":2.4609392289647238E-2},{"$f":"'Population 2016'!V44/'Population 2016'!V$5","v":2.8598468947725938E-2},{"$f":"'Population 2016'!W44/'Population 2016'!W$5","v":2.8265317461873853E-2},{"$f":"'Population 2016'!X44/'Population 2016'!X$5","v":2.8265317461873853E-2},{"$f":"'Population 2016'!Y44/'Population 2016'!Y$5","v":3.0432743517591135E-2},{"$f":"'Population 2016'!Z44/'Population 2016'!Z$5","v":2.6696581188308557E-2},{"$f":"'Population 2016'!AA44/'Population 2016'!AA$5","v":2.8328606251706634E-2},{"$f":"'Population 2016'!AB44/'Population 2016'!AB$5","v":2.6824150742556525E-2},{"$f":"'Population 2016'!AC44/'Population 2016'!AC$5","v":2.7792545214212871E-2},{"$f":"'Population 2016'!AD44/'Population 2016'!AD$5","v":2.8270497599464067E-2},{"$f":"'Population 2016'!AE44/'Population 2016'!AE$5","v":2.8013634636905923E-2},{"$f":"'Population 2016'!AF44/'Population 2016'!AF$5","v":2.7869519974664074E-2},{"$f":"'Population 2016'!AG44/'Population 2016'!AG$5","v":2.8013634636905923E-2},{"$f":"'Population 2016'!AH44/'Population 2016'!AH$5","v":2.9291400016718837E-2},{"$f":"'Population 2016'!AI44/'Population 2016'!AI$5","v":2.6019336774870942E-2},{"$f":"'Population 2016'!AJ44/'Population 2016'!AJ$5","v":2.7340155592114435E-2},{"$f":"'Population 2016'!AK44/'Population 2016'!AK$5","v":2.9707202393673863E-2},{"$f":"'Population 2016'!AL44/'Population 2016'!AL$5","v":2.8777425019066705E-2},{"$f":"'Population 2016'!AM44/'Population 2016'!AM$5","v":3.0428373253746047E-2},{"$f":"'Population 2016'!AN44/'Population 2016'!AN$5","v":2.6944474746372859E-2},{"$f":"'Population 2016'!AO44/'Population 2016'!AO$5","v":2.6944474746372859E-2},{"$f":"'Population 2016'!AP44/'Population 2016'!AP$5","v":2.8232645879238464E-2},{"$f":"'Population 2016'!AQ44/'Population 2016'!AQ$5","v":2.821011673151751E-2},{"$f":"'Population 2016'!AR44/'Population 2016'!AR$5","v":2.7717535020071141E-2},{"$f":"'Population 2016'!AS44/'Population 2016'!AS$5","v":2.594003852273679E-2},{"$f":"'Population 2016'!AT44/'Population 2016'!AT$5","v":2.8945009753782888E-2},{"$f":"'Population 2016'!AU44/'Population 2016'!AU$5","v":2.8945009753782888E-2},{"$f":"'Population 2016'!AV44/'Population 2016'!AV$5","v":2.6639214444092493E-2},{"$f":"'Population 2016'!AW44/'Population 2016'!AW$5","v":2.8094301055586062E-2},{"$f":"'Population 2016'!AX44/'Population 2016'!AX$5","v":3.3965012714517552E-2},{"$f":"'Population 2016'!AY44/'Population 2016'!AY$5","v":2.829778770539457E-2},{"$f":"'Population 2016'!AZ44/'Population 2016'!AZ$5","v":2.8326362961727195E-2},{"$f":"'Population 2016'!BA44/'Population 2016'!BA$5","v":2.7207946447851437E-2},{"$f":"'Population 2016'!BB44/'Population 2016'!BB$5","v":2.92080677792892E-2},{"$f":"'Population 2016'!BC44/'Population 2016'!BC$5","v":2.4609392289647238E-2},42]
[null,"Male 20-24",{"$f":"'Population 2016'!C45/'Population 2016'!C$5","v":5.1392005233755679E-2},{"$f":"'Population 2016'!D45/'Population 2016'!D$5","v":4.2156920278160849E-2},{"$f":"'Population 2016'!E45/'Population 2016'!E$5","v":3.3686638321012194E-2},{"$f":"'Population 2016'!F45/'Population 2016'!F$5","v":3.3963430337368011E-2},{"$f":"'Population 2016'!G45/'Population 2016'!G$5","v":3.999079737995994E-2},{"$f":"'Population 2016'!H45/'Population 2016'!H$5","v":3.5170372195724567E-2},{"$f":"'Population 2016'!I45/'Population 2016'!I$5","v":2.9404991206766602E-2},{"$f":"'Population 2016'!J45/'Population 2016'!J$5","v":4.5561978056608311E-2},{"$f":"'Population 2016'!K45/'Population 2016'!K$5","v":3.758918867835373E-2},{"$f":"'Population 2016'!L45/'Population 2016'!L$5","v":3.1737963242418947E-2},{"$f":"'Population 2016'!M45/'Population 2016'!M$5","v":3.1737963242418947E-2},{"$f":"'Population 2016'!N45/'Population 2016'!N$5","v":5.5055014828686473E-2},{"$f":"'Population 2016'!O45/'Population 2016'!O$5","v":3.6546101187822588E-2},{"$f":"'Population 2016'!P45/'Population 2016'!P$5","v":3.7585934858559676E-2},{"$f":"'Population 2016'!Q45/'Population 2016'!Q$5","v":3.5134722271183652E-2},{"$f":"'Population 2016'!R45/'Population 2016'!R$5","v":3.7459413424176295E-2},{"$f":"'Population 2016'!S45/'Population 2016'!S$5","v":4.1147737483472231E-2},{"$f":"'Population 2016'!T45/'Population 2016'!T$5","v":4.8391599931131721E-2},{"$f":"'Population 2016'!U45/'Population 2016'!U$5","v":2.8769973000486875E-2},{"$f":"'Population 2016'!V45/'Population 2016'!V$5","v":3.5643141175842039E-2},{"$f":"'Population 2016'!W45/'Population 2016'!W$5","v":3.9286438007831138E-2},{"$f":"'Population 2016'!X45/'Population 2016'!X$5","v":3.9286438007831138E-2},{"$f":"'Population 2016'!Y45/'Population 2016'!Y$5","v":4.0396814041112221E-2},{"$f":"'Population 2016'!Z45/'Population 2016'!Z$5","v":5.2463979650898308E-2},{"$f":"'Population 2016'!AA45/'Population 2016'!AA$5","v":4.2618145482497836E-2},{"$f":"'Population 2016'!AB45/'Population 2016'!AB$5","v":4.1470579204323309E-2},{"$f":"'Population 2016'!AC45/'Population 2016'!AC$5","v":4.5513124171271006E-2},{"$f":"'Population 2016'!AD45/'Population 2016'!AD$5","v":3.3990844467602067E-2},{"$f":"'Population 2016'!AE45/'Population 2016'!AE$5","v":3.171490467047916E-2},{"$f":"'Population 2016'!AF45/'Population 2016'!AF$5","v":3.637515269420441E-2},{"$f":"'Population 2016'!AG45/'Population 2016'!AG$5","v":3.171490467047916E-2},{"$f":"'Population 2016'!AH45/'Population 2016'!AH$5","v":3.7418611779348521E-2},{"$f":"'Population 2016'!AI45/'Population 2016'!AI$5","v":4.3459893691486569E-2},{"$f":"'Population 2016'!AJ45/'Population 2016'!AJ$5","v":3.4966399910771551E-2},{"$f":"'Population 2016'!AK45/'Population 2016'!AK$5","v":3.7941742202330812E-2},{"$f":"'Population 2016'!AL45/'Population 2016'!AL$5","v":3.6785441904187581E-2},{"$f":"'Population 2016'!AM45/'Population 2016'!AM$5","v":3.8976279560000146E-2},{"$f":"'Population 2016'!AN45/'Population 2016'!AN$5","v":3.1471582851532669E-2},{"$f":"'Population 2016'!AO45/'Population 2016'!AO$5","v":3.1471582851532669E-2},{"$f":"'Population 2016'!AP45/'Population 2016'!AP$5","v":3.5112470871708698E-2},{"$f":"'Population 2016'!AQ45/'Population 2016'!AQ$5","v":3.7430810544199049E-2},{"$f":"'Population 2016'!AR45/'Population 2016'!AR$5","v":4.0476004297824157E-2},{"$f":"'Population 2016'!AS45/'Population 2016'!AS$5","v":2.9404991206766602E-2},{"$f":"'Population 2016'!AT45/'Population 2016'!AT$5","v":3.7960668529551329E-2},{"$f":"'Population 2016'!AU45/'Population 2016'!AU$5","v":3.7960668529551329E-2},{"$f":"'Population 2016'!AV45/'Population 2016'!AV$5","v":3.1781226903178125E-2},{"$f":"'Population 2016'!AW45/'Population 2016'!AW$5","v":3.5778570992739032E-2},{"$f":"'Population 2016'!AX45/'Population 2016'!AX$5","v":4.9874132665448455E-2},{"$f":"'Population 2016'!AY45/'Population 2016'!AY$5","v":4.069183929500321E-2},{"$f":"'Population 2016'!AZ45/'Population 2016'!AZ$5","v":4.1928654842922151E-2},{"$f":"'Population 2016'!BA45/'Population 2016'!BA$5","v":3.8814510904772184E-2},{"$f":"'Population 2016'!BB45/'Population 2016'!BB$5","v":3.7922153249138606E-2},{"$f":"'Population 2016'!BC45/'Population 2016'!BC$5","v":2.8769973000486875E-2},43]
[null,"Male 25-29",{"$f":"'Population 2016'!C46/'Population 2016'!C$5","v":6.6873495423019319E-2},{"$f":"'Population 2016'!D46/'Population 2016'!D$5","v":4.9277212131881888E-2},{"$f":"'Population 2016'!E46/'Population 2016'!E$5","v":3.3138163970391758E-2},{"$f":"'Population 2016'!F46/'Population 2016'!F$5","v":3.0986350759721865E-2},{"$f":"'Population 2016'!G46/'Population 2016'!G$5","v":3.3643696205272557E-2},{"$f":"'Population 2016'!H46/'Population 2016'!H$5","v":3.2148450292302851E-2},{"$f":"'Population 2016'!I46/'Population 2016'!I$5","v":2.5803952767774894E-2},{"$f":"'Population 2016'!J46/'Population 2016'!J$5","v":3.5825945614224225E-2},{"$f":"'Population 2016'!K46/'Population 2016'!K$5","v":3.1328261588621648E-2},{"$f":"'Population 2016'!L46/'Population 2016'!L$5","v":2.9164614871412007E-2},{"$f":"'Population 2016'!M46/'Population 2016'!M$5","v":2.9164614871412007E-2},{"$f":"'Population 2016'!N46/'Population 2016'!N$5","v":5.6381157521640239E-2},{"$f":"'Population 2016'!O46/'Population 2016'!O$5","v":3.5188872707819417E-2},{"$f":"'Population 2016'!P46/'Population 2016'!P$5","v":3.1815620421503439E-2},{"$f":"'Population 2016'!Q46/'Population 2016'!Q$5","v":2.9976145991233945E-2},{"$f":"'Population 2016'!R46/'Population 2016'!R$5","v":2.9741310480651515E-2},{"$f":"'Population 2016'!S46/'Population 2016'!S$5","v":4.3514142824610615E-2},{"$f":"'Population 2016'!T46/'Population 2016'!T$5","v":6.0383056541788618E-2},{"$f":"'Population 2016'!U46/'Population 2016'!U$5","v":2.7132297614305315E-2},{"$f":"'Population 2016'!V46/'Population 2016'!V$5","v":3.4635669091214384E-2},{"$f":"'Population 2016'!W46/'Population 2016'!W$5","v":3.420730949999673E-2},{"$f":"'Population 2016'!X46/'Population 2016'!X$5","v":3.420730949999673E-2},{"$f":"'Population 2016'!Y46/'Population 2016'!Y$5","v":3.5206117549800478E-2},{"$f":"'Population 2016'!Z46/'Population 2016'!Z$5","v":6.1612557904538089E-2},{"$f":"'Population 2016'!AA46/'Population 2016'!AA$5","v":4.4322286645180536E-2},{"$f":"'Population 2016'!AB46/'Population 2016'!AB$5","v":4.7167436005035666E-2},{"$f":"'Population 2016'!AC46/'Population 2016'!AC$5","v":4.9434137118577803E-2},{"$f":"'Population 2016'!AD46/'Population 2016'!AD$5","v":3.2237894971900702E-2},{"$f":"'Population 2016'!AE46/'Population 2016'!AE$5","v":3.1704637624616269E-2},{"$f":"'Population 2016'!AF46/'Population 2016'!AF$5","v":3.5017870877256482E-2},{"$f":"'Population 2016'!AG46/'Population 2016'!AG$5","v":3.1704637624616269E-2},{"$f":"'Population 2016'!AH46/'Population 2016'!AH$5","v":3.5141134837409327E-2},{"$f":"'Population 2016'!AI46/'Population 2016'!AI$5","v":4.9720010499606268E-2},{"$f":"'Population 2016'!AJ46/'Population 2016'!AJ$5","v":3.4297186515350082E-2},{"$f":"'Population 2016'!AK46/'Population 2016'!AK$5","v":3.6319977873602957E-2},{"$f":"'Population 2016'!AL46/'Population 2016'!AL$5","v":3.1606392224330891E-2},{"$f":"'Population 2016'!AM46/'Population 2016'!AM$5","v":3.6933474832573317E-2},{"$f":"'Population 2016'!AN46/'Population 2016'!AN$5","v":3.2998800043634778E-2},{"$f":"'Population 2016'!AO46/'Population 2016'!AO$5","v":3.2998800043634778E-2},{"$f":"'Population 2016'!AP46/'Population 2016'!AP$5","v":3.2029231330152341E-2},{"$f":"'Population 2016'!AQ46/'Population 2016'!AQ$5","v":3.9177673042143916E-2},{"$f":"'Population 2016'!AR46/'Population 2016'!AR$5","v":4.1469814869642838E-2},{"$f":"'Population 2016'!AS46/'Population 2016'!AS$5","v":2.5803952767774894E-2},{"$f":"'Population 2016'!AT46/'Population 2016'!AT$5","v":3.727526756998998E-2},{"$f":"'Population 2016'!AU46/'Population 2016'!AU$5","v":3.727526756998998E-2},{"$f":"'Population 2016'!AV46/'Population 2016'!AV$5","v":2.9553373455812479E-2},{"$f":"'Population 2016'!AW46/'Population 2016'!AW$5","v":3.3254011837207886E-2},{"$f":"'Population 2016'!AX46/'Population 2016'!AX$5","v":3.8258558339829024E-2},{"$f":"'Population 2016'!AY46/'Population 2016'!AY$5","v":3.7529451363177382E-2},{"$f":"'Population 2016'!AZ46/'Population 2016'!AZ$5","v":4.0453083742255411E-2},{"$f":"'Population 2016'!BA46/'Population 2016'!BA$5","v":3.870654286331246E-2},{"$f":"'Population 2016'!BB46/'Population 2016'!BB$5","v":3.7314514959640388E-2},{"$f":"'Population 2016'!BC46/'Population 2016'!BC$5","v":2.7132297614305315E-2},44]
[null,"Male 30-34",{"$f":"'Population 2016'!C47/'Population 2016'!C$5","v":5.383510602955232E-2},{"$f":"'Population 2016'!D47/'Population 2016'!D$5","v":4.4492043465078297E-2},{"$f":"'Population 2016'!E47/'Population 2016'!E$5","v":3.592272605815703E-2},{"$f":"'Population 2016'!F47/'Population 2016'!F$5","v":3.1913468967293329E-2},{"$f":"'Population 2016'!G47/'Population 2016'!G$5","v":2.6971796676230175E-2},{"$f":"'Population 2016'!H47/'Population 2016'!H$5","v":2.9496162613119423E-2},{"$f":"'Population 2016'!I47/'Population 2016'!I$5","v":2.5521313122854033E-2},{"$f":"'Population 2016'!J47/'Population 2016'!J$5","v":3.056815637361817E-2},{"$f":"'Population 2016'!K47/'Population 2016'!K$5","v":3.2580447006568064E-2},{"$f":"'Population 2016'!L47/'Population 2016'!L$5","v":2.7949422585103172E-2},{"$f":"'Population 2016'!M47/'Population 2016'!M$5","v":2.7949422585103172E-2},{"$f":"'Population 2016'!N47/'Population 2016'!N$5","v":4.2396380032309659E-2},{"$f":"'Population 2016'!O47/'Population 2016'!O$5","v":3.3266957925917121E-2},{"$f":"'Population 2016'!P47/'Population 2016'!P$5","v":2.7386453285247379E-2},{"$f":"'Population 2016'!Q47/'Population 2016'!Q$5","v":2.9729380383309245E-2},{"$f":"'Population 2016'!R47/'Population 2016'!R$5","v":2.5176984084739448E-2},{"$f":"'Population 2016'!S47/'Population 2016'!S$5","v":4.0374529322772038E-2},{"$f":"'Population 2016'!T47/'Population 2016'!T$5","v":5.2230541220922931E-2},{"$f":"'Population 2016'!U47/'Population 2016'!U$5","v":2.7353605098924445E-2},{"$f":"'Population 2016'!V47/'Population 2016'!V$5","v":3.5543920440234772E-2},{"$f":"'Population 2016'!W47/'Population 2016'!W$5","v":3.332810385739219E-2},{"$f":"'Population 2016'!X47/'Population 2016'!X$5","v":3.332810385739219E-2},{"$f":"'Population 2016'!Y47/'Population 2016'!Y$5","v":3.3159250250393478E-2},{"$f":"'Population 2016'!Z47/'Population 2016'!Z$5","v":5.4016489121786818E-2},{"$f":"'Population 2016'!AA47/'Population 2016'!AA$5","v":4.1035586320895427E-2},{"$f":"'Population 2016'!AB47/'Population 2016'!AB$5","v":4.3007891262294914E-2},{"$f":"'Population 2016'!AC47/'Population 2016'!AC$5","v":4.4010293305421153E-2},{"$f":"'Population 2016'!AD47/'Population 2016'!AD$5","v":3.1474933938739812E-2},{"$f":"'Population 2016'!AE47/'Population 2016'!AE$5","v":3.3183092228872987E-2},{"$f":"'Population 2016'!AF47/'Population 2016'!AF$5","v":3.358518451492256E-2},{"$f":"'Population 2016'!AG47/'Population 2016'!AG$5","v":3.3183092228872987E-2},{"$f":"'Population 2016'!AH47/'Population 2016'!AH$5","v":3.5692856413066701E-2},{"$f":"'Population 2016'!AI47/'Population 2016'!AI$5","v":4.5261779245778282E-2},{"$f":"'Population 2016'!AJ47/'Population 2016'!AJ$5","v":3.510581936815102E-2},{"$f":"'Population 2016'!AK47/'Population 2016'!AK$5","v":3.5377091635970484E-2},{"$f":"'Population 2016'!AL47/'Population 2016'!AL$5","v":2.8591192068249942E-2},{"$f":"'Population 2016'!AM47/'Population 2016'!AM$5","v":3.7512993904183764E-2},{"$f":"'Population 2016'!AN47/'Population 2016'!AN$5","v":2.9453474419112034E-2},{"$f":"'Population 2016'!AO47/'Population 2016'!AO$5","v":2.9453474419112034E-2},{"$f":"'Population 2016'!AP47/'Population 2016'!AP$5","v":3.3178510850783889E-2},{"$f":"'Population 2016'!AQ47/'Population 2016'!AQ$5","v":3.7115690250452131E-2},{"$f":"'Population 2016'!AR47/'Population 2016'!AR$5","v":3.8385682711772881E-2},{"$f":"'Population 2016'!AS47/'Population 2016'!AS$5","v":2.5521313122854033E-2},{"$f":"'Population 2016'!AT47/'Population 2016'!AT$5","v":3.4533663731744609E-2},{"$f":"'Population 2016'!AU47/'Population 2016'!AU$5","v":3.4533663731744609E-2},{"$f":"'Population 2016'!AV47/'Population 2016'!AV$5","v":2.6554746066941189E-2},{"$f":"'Population 2016'!AW47/'Population 2016'!AW$5","v":3.3776465922264937E-2},{"$f":"'Population 2016'!AX47/'Population 2016'!AX$5","v":2.9479790945218957E-2},{"$f":"'Population 2016'!AY47/'Population 2016'!AY$5","v":3.4815336128025461E-2},{"$f":"'Population 2016'!AZ47/'Population 2016'!AZ$5","v":3.6124166575582033E-2},{"$f":"'Population 2016'!BA47/'Population 2016'!BA$5","v":3.6169293889008851E-2},{"$f":"'Population 2016'!BB47/'Population 2016'!BB$5","v":3.8736940955511209E-2},{"$f":"'Population 2016'!BC47/'Population 2016'!BC$5","v":2.7353605098924445E-2},45]
[null,"Male 35-39",{"$f":"'Population 2016'!C48/'Population 2016'!C$5","v":4.3536260624677366E-2},{"$f":"'Population 2016'!D48/'Population 2016'!D$5","v":4.1254658020597988E-2},{"$f":"'Population 2016'!E48/'Population 2016'!E$5","v":3.9162006197291384E-2},{"$f":"'Population 2016'!F48/'Population 2016'!F$5","v":3.0800927118207571E-2},{"$f":"'Population 2016'!G48/'Population 2016'!G$5","v":2.8568721918475613E-2},{"$f":"'Population 2016'!H48/'Population 2016'!H$5","v":2.9376193610515768E-2},{"$f":"'Population 2016'!I48/'Population 2016'!I$5","v":2.7290427937358679E-2},{"$f":"'Population 2016'!J48/'Population 2016'!J$5","v":3.1239892853884874E-2},{"$f":"'Population 2016'!K48/'Population 2016'!K$5","v":3.3856258564475737E-2},{"$f":"'Population 2016'!L48/'Population 2016'!L$5","v":2.5828792908995601E-2},{"$f":"'Population 2016'!M48/'Population 2016'!M$5","v":2.5828792908995601E-2},{"$f":"'Population 2016'!N48/'Population 2016'!N$5","v":3.2213211596113199E-2},{"$f":"'Population 2016'!O48/'Population 2016'!O$5","v":3.2157398876571465E-2},{"$f":"'Population 2016'!P48/'Population 2016'!P$5","v":2.8919193057590442E-2},{"$f":"'Population 2016'!Q48/'Population 2016'!Q$5","v":3.1879766395224496E-2},{"$f":"'Population 2016'!R48/'Population 2016'!R$5","v":3.1883749401181667E-2},{"$f":"'Population 2016'!S48/'Population 2016'!S$5","v":3.7737148062301509E-2},{"$f":"'Population 2016'!T48/'Population 2016'!T$5","v":4.4031493278362796E-2},{"$f":"'Population 2016'!U48/'Population 2016'!U$5","v":3.0407648386668436E-2},{"$f":"'Population 2016'!V48/'Population 2016'!V$5","v":3.8116027201746283E-2},{"$f":"'Population 2016'!W48/'Population 2016'!W$5","v":3.3599382921838943E-2},{"$f":"'Population 2016'!X48/'Population 2016'!X$5","v":3.3599382921838943E-2},{"$f":"'Population 2016'!Y48/'Population 2016'!Y$5","v":3.4820591087582071E-2},{"$f":"'Population 2016'!Z48/'Population 2016'!Z$5","v":4.2939856712280504E-2},{"$f":"'Population 2016'!AA48/'Population 2016'!AA$5","v":3.7348927719832552E-2},{"$f":"'Population 2016'!AB48/'Population 2016'!AB$5","v":3.9947596286705626E-2},{"$f":"'Population 2016'!AC48/'Population 2016'!AC$5","v":3.7750739003891018E-2},{"$f":"'Population 2016'!AD48/'Population 2016'!AD$5","v":3.1977371692284789E-2},{"$f":"'Population 2016'!AE48/'Population 2016'!AE$5","v":3.3270362118707583E-2},{"$f":"'Population 2016'!AF48/'Population 2016'!AF$5","v":3.0312627245170341E-2},{"$f":"'Population 2016'!AG48/'Population 2016'!AG$5","v":3.3270362118707583E-2},{"$f":"'Population 2016'!AH48/'Population 2016'!AH$5","v":3.6627253559718749E-2},{"$f":"'Population 2016'!AI48/'Population 2016'!AI$5","v":4.0832257852830518E-2},{"$f":"'Population 2016'!AJ48/'Population 2016'!AJ$5","v":3.644424615899395E-2},{"$f":"'Population 2016'!AK48/'Population 2016'!AK$5","v":3.322731101416844E-2},{"$f":"'Population 2016'!AL48/'Population 2016'!AL$5","v":2.7997020272786933E-2},{"$f":"'Population 2016'!AM48/'Population 2016'!AM$5","v":3.7596299770727766E-2},{"$f":"'Population 2016'!AN48/'Population 2016'!AN$5","v":2.9235300534526016E-2},{"$f":"'Population 2016'!AO48/'Population 2016'!AO$5","v":2.9235300534526016E-2},{"$f":"'Population 2016'!AP48/'Population 2016'!AP$5","v":3.3170584785124357E-2},{"$f":"'Population 2016'!AQ48/'Population 2016'!AQ$5","v":3.3854880254288379E-2},{"$f":"'Population 2016'!AR48/'Population 2016'!AR$5","v":3.5926887087212728E-2},{"$f":"'Population 2016'!AS48/'Population 2016'!AS$5","v":2.7290427937358679E-2},{"$f":"'Population 2016'!AT48/'Population 2016'!AT$5","v":3.7538883323667421E-2},{"$f":"'Population 2016'!AU48/'Population 2016'!AU$5","v":3.7538883323667421E-2},{"$f":"'Population 2016'!AV48/'Population 2016'!AV$5","v":2.8054059761376836E-2},{"$f":"'Population 2016'!AW48/'Population 2016'!AW$5","v":3.5606961986698396E-2},{"$f":"'Population 2016'!AX48/'Population 2016'!AX$5","v":2.9824808004395773E-2},{"$f":"'Population 2016'!AY48/'Population 2016'!AY$5","v":3.2837122487071997E-2},{"$f":"'Population 2016'!AZ48/'Population 2016'!AZ$5","v":3.216629945176637E-2},{"$f":"'Population 2016'!BA48/'Population 2016'!BA$5","v":3.2430900453465777E-2},{"$f":"'Population 2016'!BB48/'Population 2016'!BB$5","v":3.8771465858323612E-2},{"$f":"'Population 2016'!BC48/'Population 2016'!BC$5","v":3.0407648386668436E-2},46]
[null,"Male 40-44",{"$f":"'Population 2016'!C49/'Population 2016'!C$5","v":3.7351842292221431E-2},{"$f":"'Population 2016'!D49/'Population 2016'!D$5","v":4.0176344590827737E-2},{"$f":"'Population 2016'!E49/'Population 2016'!E$5","v":4.2766935903506019E-2},{"$f":"'Population 2016'!F49/'Population 2016'!F$5","v":3.4911151171774402E-2},{"$f":"'Population 2016'!G49/'Population 2016'!G$5","v":3.3007632761327343E-2},{"$f":"'Population 2016'!H49/'Population 2016'!H$5","v":3.3909076465648336E-2},{"$f":"'Population 2016'!I49/'Population 2016'!I$5","v":3.4262205845406582E-2},{"$f":"'Population 2016'!J49/'Population 2016'!J$5","v":3.5461051723708982E-2},{"$f":"'Population 2016'!K49/'Population 2016'!K$5","v":3.81089637575013E-2},{"$f":"'Population 2016'!L49/'Population 2016'!L$5","v":3.0927835051546393E-2},{"$f":"'Population 2016'!M49/'Population 2016'!M$5","v":3.0927835051546393E-2},{"$f":"'Population 2016'!N49/'Population 2016'!N$5","v":2.9617186809300682E-2},{"$f":"'Population 2016'!O49/'Population 2016'!O$5","v":3.6793770618480104E-2},{"$f":"'Population 2016'!P49/'Population 2016'!P$5","v":3.4497915023103801E-2},{"$f":"'Population 2016'!Q49/'Population 2016'!Q$5","v":3.9741013619111407E-2},{"$f":"'Population 2016'!R49/'Population 2016'!R$5","v":3.8005003459839252E-2},{"$f":"'Population 2016'!S49/'Population 2016'!S$5","v":3.8435330316997696E-2},{"$f":"'Population 2016'!T49/'Population 2016'!T$5","v":3.9008296766448118E-2},{"$f":"'Population 2016'!U49/'Population 2016'!U$5","v":3.6117381489841983E-2},{"$f":"'Population 2016'!V49/'Population 2016'!V$5","v":4.1199502369849109E-2},{"$f":"'Population 2016'!W49/'Population 2016'!W$5","v":3.6573647363363597E-2},{"$f":"'Population 2016'!X49/'Population 2016'!X$5","v":3.6573647363363597E-2},{"$f":"'Population 2016'!Y49/'Population 2016'!Y$5","v":3.8449309231967696E-2},{"$f":"'Population 2016'!Z49/'Population 2016'!Z$5","v":3.6232318910997846E-2},{"$f":"'Population 2016'!AA49/'Population 2016'!AA$5","v":3.6737031419313733E-2},{"$f":"'Population 2016'!AB49/'Population 2016'!AB$5","v":3.9734706201447242E-2},{"$f":"'Population 2016'!AC49/'Population 2016'!AC$5","v":3.5389443156172366E-2},{"$f":"'Population 2016'!AD49/'Population 2016'!AD$5","v":3.4065279690349476E-2},{"$f":"'Population 2016'!AE49/'Population 2016'!AE$5","v":3.4466472961734718E-2},{"$f":"'Population 2016'!AF49/'Population 2016'!AF$5","v":3.1941365425507851E-2},{"$f":"'Population 2016'!AG49/'Population 2016'!AG$5","v":3.4466472961734718E-2},{"$f":"'Population 2016'!AH49/'Population 2016'!AH$5","v":3.9157370684450556E-2},{"$f":"'Population 2016'!AI49/'Population 2016'!AI$5","v":3.9759055910403358E-2},{"$f":"'Population 2016'!AJ49/'Population 2016'!AJ$5","v":3.7880266570002506E-2},{"$f":"'Population 2016'!AK49/'Population 2016'!AK$5","v":3.7464013175263697E-2},{"$f":"'Population 2016'!AL49/'Population 2016'!AL$5","v":3.2812472286763268E-2},{"$f":"'Population 2016'!AM49/'Population 2016'!AM$5","v":3.9921620045564689E-2},{"$f":"'Population 2016'!AN49/'Population 2016'!AN$5","v":3.3926039053125343E-2},{"$f":"'Population 2016'!AO49/'Population 2016'!AO$5","v":3.3926039053125343E-2},{"$f":"'Population 2016'!AP49/'Population 2016'!AP$5","v":3.3186436916443414E-2},{"$f":"'Population 2016'!AQ49/'Population 2016'!AQ$5","v":3.4457719077108567E-2},{"$f":"'Population 2016'!AR49/'Population 2016'!AR$5","v":3.6742475633150452E-2},{"$f":"'Population 2016'!AS49/'Population 2016'!AS$5","v":3.4262205845406582E-2},{"$f":"'Population 2016'!AT49/'Population 2016'!AT$5","v":4.2178520588390361E-2},{"$f":"'Population 2016'!AU49/'Population 2016'!AU$5","v":4.2178520588390361E-2},{"$f":"'Population 2016'!AV49/'Population 2016'!AV$5","v":3.2140217506071163E-2},{"$f":"'Population 2016'!AW49/'Population 2016'!AW$5","v":3.8352706083348585E-2},{"$f":"'Population 2016'!AX49/'Population 2016'!AX$5","v":3.402890476251326E-2},{"$f":"'Population 2016'!AY49/'Population 2016'!AY$5","v":3.4348704140020198E-2},{"$f":"'Population 2016'!AZ49/'Population 2016'!AZ$5","v":3.2390655291633826E-2},{"$f":"'Population 2016'!BA49/'Population 2016'!BA$5","v":3.2849276614122222E-2},{"$f":"'Population 2016'!BB49/'Population 2016'!BB$5","v":4.2928264156936395E-2},{"$f":"'Population 2016'!BC49/'Population 2016'!BC$5","v":3.6117381489841983E-2},47]
[null,"Male 45-49",{"$f":"'Population 2016'!C50/'Population 2016'!C$5","v":3.721384287488564E-2},{"$f":"'Population 2016'!D50/'Population 2016'!D$5","v":4.2125133260956737E-2},{"$f":"'Population 2016'!E50/'Population 2016'!E$5","v":4.6629695432661884E-2},{"$f":"'Population 2016'!F50/'Population 2016'!F$5","v":4.1390677311357198E-2},{"$f":"'Population 2016'!G50/'Population 2016'!G$5","v":4.0721593677258701E-2},{"$f":"'Population 2016'!H50/'Population 2016'!H$5","v":4.1716788851313011E-2},{"$f":"'Population 2016'!I50/'Population 2016'!I$5","v":4.4290679172598608E-2},{"$f":"'Population 2016'!J50/'Population 2016'!J$5","v":4.4259970310906178E-2},{"$f":"'Population 2016'!K50/'Population 2016'!K$5","v":4.857534376033644E-2},{"$f":"'Population 2016'!L50/'Population 2016'!L$5","v":4.0196654647117691E-2},{"$f":"'Population 2016'!M50/'Population 2016'!M$5","v":4.0196654647117691E-2},{"$f":"'Population 2016'!N50/'Population 2016'!N$5","v":3.6280049187838066E-2},{"$f":"'Population 2016'!O50/'Population 2016'!O$5","v":4.424366709265809E-2},{"$f":"'Population 2016'!P50/'Population 2016'!P$5","v":4.1744618505578722E-2},{"$f":"'Population 2016'!Q50/'Population 2016'!Q$5","v":4.3959530440300348E-2},{"$f":"'Population 2016'!R50/'Population 2016'!R$5","v":4.2689093522116354E-2},{"$f":"'Population 2016'!S50/'Population 2016'!S$5","v":4.219015624806919E-2},{"$f":"'Population 2016'!T50/'Population 2016'!T$5","v":3.7931066574221857E-2},{"$f":"'Population 2016'!U50/'Population 2016'!U$5","v":4.7005709733103175E-2},{"$f":"'Population 2016'!V50/'Population 2016'!V$5","v":4.7923615298310955E-2},{"$f":"'Population 2016'!W50/'Population 2016'!W$5","v":4.3823008386772042E-2},{"$f":"'Population 2016'!X50/'Population 2016'!X$5","v":4.3823008386772042E-2},{"$f":"'Population 2016'!Y50/'Population 2016'!Y$5","v":4.6167787475556825E-2},{"$f":"'Population 2016'!Z50/'Population 2016'!Z$5","v":3.8615285442997541E-2},{"$f":"'Population 2016'!AA50/'Population 2016'!AA$5","v":4.2248084419100468E-2},{"$f":"'Population 2016'!AB50/'Population 2016'!AB$5","v":4.2803189257238777E-2},{"$f":"'Population 2016'!AC50/'Population 2016'!AC$5","v":4.0271316306076894E-2},{"$f":"'Population 2016'!AD50/'Population 2016'!AD$5","v":4.1657672410584691E-2},{"$f":"'Population 2016'!AE50/'Population 2016'!AE$5","v":4.2012751670961711E-2},{"$f":"'Population 2016'!AF50/'Population 2016'!AF$5","v":4.0627969053974575E-2},{"$f":"'Population 2016'!AG50/'Population 2016'!AG$5","v":4.2012751670961711E-2},{"$f":"'Population 2016'!AH50/'Population 2016'!AH$5","v":4.579846372477081E-2},{"$f":"'Population 2016'!AI50/'Population 2016'!AI$5","v":4.1232828768921162E-2},{"$f":"'Population 2016'!AJ50/'Population 2016'!AJ$5","v":4.3610406268298804E-2},{"$f":"'Population 2016'!AK50/'Population 2016'!AK$5","v":4.6289428359503663E-2},{"$f":"'Population 2016'!AL50/'Population 2016'!AL$5","v":4.1192955073517674E-2},{"$f":"'Population 2016'!AM50/'Population 2016'!AM$5","v":4.5963106367103601E-2},{"$f":"'Population 2016'!AN50/'Population 2016'!AN$5","v":4.336205956147049E-2},{"$f":"'Population 2016'!AO50/'Population 2016'!AO$5","v":4.336205956147049E-2},{"$f":"'Population 2016'!AP50/'Population 2016'!AP$5","v":4.1088724378992754E-2},{"$f":"'Population 2016'!AQ50/'Population 2016'!AQ$5","v":4.3239984655011783E-2},{"$f":"'Population 2016'!AR50/'Population 2016'!AR$5","v":4.219896573302831E-2},{"$f":"'Population 2016'!AS50/'Population 2016'!AS$5","v":4.4290679172598608E-2},{"$f":"'Population 2016'!AT50/'Population 2016'!AT$5","v":4.2916644698687195E-2},{"$f":"'Population 2016'!AU50/'Population 2016'!AU$5","v":4.2916644698687195E-2},{"$f":"'Population 2016'!AV50/'Population 2016'!AV$5","v":3.9647344525393306E-2},{"$f":"'Population 2016'!AW50/'Population 2016'!AW$5","v":4.562511440600403E-2},{"$f":"'Population 2016'!AX50/'Population 2016'!AX$5","v":4.1925961894782572E-2},{"$f":"'Population 2016'!AY50/'Population 2016'!AY$5","v":4.1498118172638536E-2},{"$f":"'Population 2016'!AZ50/'Population 2016'!AZ$5","v":3.9452111533615983E-2},{"$f":"'Population 2016'!BA50/'Population 2016'!BA$5","v":4.143273591017059E-2},{"$f":"'Population 2016'!BB50/'Population 2016'!BB$5","v":4.8252004170608258E-2},{"$f":"'Population 2016'!BC50/'Population 2016'!BC$5","v":4.7005709733103175E-2},48]
[null,"Male 50-54",{"$f":"'Population 2016'!C51/'Population 2016'!C$5","v":3.7229176143478503E-2},{"$f":"'Population 2016'!D51/'Population 2016'!D$5","v":4.2570151501814306E-2},{"$f":"'Population 2016'!E51/'Population 2016'!E$5","v":4.7468814310961518E-2},{"$f":"'Population 2016'!F51/'Population 2016'!F$5","v":4.7077002317795519E-2},{"$f":"'Population 2016'!G51/'Population 2016'!G$5","v":4.5431169815406271E-2},{"$f":"'Population 2016'!H51/'Population 2016'!H$5","v":4.509861776254568E-2},{"$f":"'Population 2016'!I51/'Population 2016'!I$5","v":4.8750104681349972E-2},{"$f":"'Population 2016'!J51/'Population 2016'!J$5","v":4.5537098927709546E-2},{"$f":"'Population 2016'!K51/'Population 2016'!K$5","v":4.7748428861692574E-2},{"$f":"'Population 2016'!L51/'Population 2016'!L$5","v":4.6733277206805077E-2},{"$f":"'Population 2016'!M51/'Population 2016'!M$5","v":4.6733277206805077E-2},{"$f":"'Population 2016'!N51/'Population 2016'!N$5","v":3.7718713078981843E-2},{"$f":"'Population 2016'!O51/'Population 2016'!O$5","v":4.6413251305217902E-2},{"$f":"'Population 2016'!P51/'Population 2016'!P$5","v":4.6883804801081931E-2},{"$f":"'Population 2016'!Q51/'Population 2016'!Q$5","v":4.806053982914419E-2},{"$f":"'Population 2016'!R51/'Population 2016'!R$5","v":4.6215468142864743E-2},{"$f":"'Population 2016'!S51/'Population 2016'!S$5","v":4.2654434207576378E-2},{"$f":"'Population 2016'!T51/'Population 2016'!T$5","v":3.7637911057546894E-2},{"$f":"'Population 2016'!U51/'Population 2016'!U$5","v":4.5810649316159871E-2},{"$f":"'Population 2016'!V51/'Population 2016'!V$5","v":4.7213805420505107E-2},{"$f":"'Population 2016'!W51/'Population 2016'!W$5","v":4.3558266167251718E-2},{"$f":"'Population 2016'!X51/'Population 2016'!X$5","v":4.3558266167251718E-2},{"$f":"'Population 2016'!Y51/'Population 2016'!Y$5","v":4.6410231951797269E-2},{"$f":"'Population 2016'!Z51/'Population 2016'!Z$5","v":3.8669487768664475E-2},{"$f":"'Population 2016'!AA51/'Population 2016'!AA$5","v":4.3929636576117974E-2},{"$f":"'Population 2016'!AB51/'Population 2016'!AB$5","v":4.3042690603154458E-2},{"$f":"'Population 2016'!AC51/'Population 2016'!AC$5","v":4.2603651889346963E-2},{"$f":"'Population 2016'!AD51/'Population 2016'!AD$5","v":4.6194499237038965E-2},{"$f":"'Population 2016'!AE51/'Population 2016'!AE$5","v":4.6484050144251991E-2},{"$f":"'Population 2016'!AF51/'Population 2016'!AF$5","v":4.9103439955360512E-2},{"$f":"'Population 2016'!AG51/'Population 2016'!AG$5","v":4.6484050144251991E-2},{"$f":"'Population 2016'!AH51/'Population 2016'!AH$5","v":4.6311174683967567E-2},{"$f":"'Population 2016'!AI51/'Population 2016'!AI$5","v":4.1480280426983991E-2},{"$f":"'Population 2016'!AJ51/'Population 2016'!AJ$5","v":4.4419039121099742E-2},{"$f":"'Population 2016'!AK51/'Population 2016'!AK$5","v":4.5472260286888853E-2},{"$f":"'Population 2016'!AL51/'Population 2016'!AL$5","v":4.4953087032865685E-2},{"$f":"'Population 2016'!AM51/'Population 2016'!AM$5","v":4.6571601392294569E-2},{"$f":"'Population 2016'!AN51/'Population 2016'!AN$5","v":4.9525471801025414E-2},{"$f":"'Population 2016'!AO51/'Population 2016'!AO$5","v":4.9525471801025414E-2},{"$f":"'Population 2016'!AP51/'Population 2016'!AP$5","v":4.7080830017595866E-2},{"$f":"'Population 2016'!AQ51/'Population 2016'!AQ$5","v":4.6678906121554231E-2},{"$f":"'Population 2016'!AR51/'Population 2016'!AR$5","v":4.3982745434564333E-2},{"$f":"'Population 2016'!AS51/'Population 2016'!AS$5","v":4.8750104681349972E-2},{"$f":"'Population 2016'!AT51/'Population 2016'!AT$5","v":4.8927083882532821E-2},{"$f":"'Population 2016'!AU51/'Population 2016'!AU$5","v":4.8927083882532821E-2},{"$f":"'Population 2016'!AV51/'Population 2016'!AV$5","v":4.3870763382958505E-2},{"$f":"'Population 2016'!AW51/'Population 2016'!AW$5","v":4.6036976020501559E-2},{"$f":"'Population 2016'!AX51/'Population 2016'!AX$5","v":4.4341081309020279E-2},{"$f":"'Population 2016'!AY51/'Population 2016'!AY$5","v":4.3649215140295586E-2},{"$f":"'Population 2016'!AZ51/'Population 2016'!AZ$5","v":4.3729254275704565E-2},{"$f":"'Population 2016'!BA51/'Population 2016'!BA$5","v":4.7397970200820559E-2},{"$f":"'Population 2016'!BB51/'Population 2016'!BB$5","v":4.7561506114360289E-2},{"$f":"'Population 2016'!BC51/'Population 2016'!BC$5","v":4.5810649316159871E-2},49]
[null,"Male 55-59",{"$f":"'Population 2016'!C52/'Population 2016'!C$5","v":3.4740075541903268E-2},{"$f":"'Population 2016'!D52/'Population 2016'!D$5","v":3.8965992781901937E-2},{"$f":"'Population 2016'!E52/'Population 2016'!E$5","v":4.2841940942907102E-2},{"$f":"'Population 2016'!F52/'Population 2016'!F$5","v":4.153489569920165E-2},{"$f":"'Population 2016'!G52/'Population 2016'!G$5","v":4.3928977426514373E-2},{"$f":"'Population 2016'!H52/'Population 2016'!H$5","v":4.271220733237574E-2},{"$f":"'Population 2016'!I52/'Population 2016'!I$5","v":4.544217402227619E-2},{"$f":"'Population 2016'!J52/'Population 2016'!J$5","v":4.1166665284492837E-2},{"$f":"'Population 2016'!K52/'Population 2016'!K$5","v":4.3188583849170722E-2},{"$f":"'Population 2016'!L52/'Population 2016'!L$5","v":4.4096389369847347E-2},{"$f":"'Population 2016'!M52/'Population 2016'!M$5","v":4.4096389369847347E-2},{"$f":"'Population 2016'!N52/'Population 2016'!N$5","v":3.722844214401106E-2},{"$f":"'Population 2016'!O52/'Population 2016'!O$5","v":4.2430726860245092E-2},{"$f":"'Population 2016'!P52/'Population 2016'!P$5","v":4.3683083511777299E-2},{"$f":"'Population 2016'!Q52/'Population 2016'!Q$5","v":4.3994782670003875E-2},{"$f":"'Population 2016'!R52/'Population 2016'!R$5","v":4.3021770373130354E-2},{"$f":"'Population 2016'!S52/'Population 2016'!S$5","v":3.889607764563411E-2},{"$f":"'Population 2016'!T52/'Population 2016'!T$5","v":3.3214985365490474E-2},{"$f":"'Population 2016'!U52/'Population 2016'!U$5","v":4.5058203868454834E-2},{"$f":"'Population 2016'!V52/'Population 2016'!V$5","v":4.1375046748231198E-2},{"$f":"'Population 2016'!W52/'Population 2016'!W$5","v":4.1767170657410493E-2},{"$f":"'Population 2016'!X52/'Population 2016'!X$5","v":4.1767170657410493E-2},{"$f":"'Population 2016'!Y52/'Population 2016'!Y$5","v":4.1275178455032514E-2},{"$f":"'Population 2016'!Z52/'Population 2016'!Z$5","v":3.4031317329451416E-2},{"$f":"'Population 2016'!AA52/'Population 2016'!AA$5","v":3.9682903511062302E-2},{"$f":"'Population 2016'!AB52/'Population 2016'!AB$5","v":3.9296643910627108E-2},{"$f":"'Population 2016'!AC52/'Population 2016'!AC$5","v":3.848819145217109E-2},{"$f":"'Population 2016'!AD52/'Population 2016'!AD$5","v":4.4519706725222374E-2},{"$f":"'Population 2016'!AE52/'Population 2016'!AE$5","v":4.4743785870491486E-2},{"$f":"'Population 2016'!AF52/'Population 2016'!AF$5","v":4.4714895413895547E-2},{"$f":"'Population 2016'!AG52/'Population 2016'!AG$5","v":4.4743785870491486E-2},{"$f":"'Population 2016'!AH52/'Population 2016'!AH$5","v":4.1828669087801751E-2},{"$f":"'Population 2016'!AI52/'Population 2016'!AI$5","v":3.6840220054247967E-2},{"$f":"'Population 2016'!AJ52/'Population 2016'!AJ$5","v":4.101720436104063E-2},{"$f":"'Population 2016'!AK52/'Population 2016'!AK$5","v":4.0996693612260035E-2},{"$f":"'Population 2016'!AL52/'Population 2016'!AL$5","v":4.2478849257728671E-2},{"$f":"'Population 2016'!AM52/'Population 2016'!AM$5","v":4.0215001575567476E-2},{"$f":"'Population 2016'!AN52/'Population 2016'!AN$5","v":4.7780080724337294E-2},{"$f":"'Population 2016'!AO52/'Population 2016'!AO$5","v":4.7780080724337294E-2},{"$f":"'Population 2016'!AP52/'Population 2016'!AP$5","v":4.191303520758366E-2},{"$f":"'Population 2016'!AQ52/'Population 2016'!AQ$5","v":4.3500301419411413E-2},{"$f":"'Population 2016'!AR52/'Population 2016'!AR$5","v":4.0264142864558164E-2},{"$f":"'Population 2016'!AS52/'Population 2016'!AS$5","v":4.544217402227619E-2},{"$f":"'Population 2016'!AT52/'Population 2016'!AT$5","v":4.3549322507513047E-2},{"$f":"'Population 2016'!AU52/'Population 2016'!AU$5","v":4.3549322507513047E-2},{"$f":"'Population 2016'!AV52/'Population 2016'!AV$5","v":4.3290043290043288E-2},{"$f":"'Population 2016'!AW52/'Population 2016'!AW$5","v":4.3527670998840688E-2},{"$f":"'Population 2016'!AX52/'Population 2016'!AX$5","v":4.0073092502907089E-2},{"$f":"'Population 2016'!AY52/'Population 2016'!AY$5","v":4.0896851381536675E-2},{"$f":"'Population 2016'!AZ52/'Population 2016'!AZ$5","v":4.0130931767061111E-2},{"$f":"'Population 2016'!BA52/'Population 2016'!BA$5","v":4.3295184625350897E-2},{"$f":"'Population 2016'!BB52/'Population 2016'!BB$5","v":4.1326308666441103E-2},{"$f":"'Population 2016'!BC52/'Population 2016'!BC$5","v":4.5058203868454834E-2},50]
[null,"Male 60-64",{"$f":"'Population 2016'!C53/'Population 2016'!C$5","v":3.0804536603067676E-2},{"$f":"'Population 2016'!D53/'Population 2016'!D$5","v":3.4748100114433259E-2},{"$f":"'Population 2016'!E53/'Population 2016'!E$5","v":3.8365077653654857E-2},{"$f":"'Population 2016'!F53/'Population 2016'!F$5","v":3.8351789853206281E-2},{"$f":"'Population 2016'!G53/'Population 2016'!G$5","v":4.1912520976560383E-2},{"$f":"'Population 2016'!H53/'Population 2016'!H$5","v":3.8445201726256678E-2},{"$f":"'Population 2016'!I53/'Population 2016'!I$5","v":4.2291265388158444E-2},{"$f":"'Population 2016'!J53/'Population 2016'!J$5","v":3.4905417844969852E-2},{"$f":"'Population 2016'!K53/'Population 2016'!K$5","v":3.7305674998818691E-2},{"$f":"'Population 2016'!L53/'Population 2016'!L$5","v":4.178514129588741E-2},{"$f":"'Population 2016'!M53/'Population 2016'!M$5","v":4.178514129588741E-2},{"$f":"'Population 2016'!N53/'Population 2016'!N$5","v":3.0019048231407882E-2},{"$f":"'Population 2016'!O53/'Population 2016'!O$5","v":3.696218583132721E-2},{"$f":"'Population 2016'!P53/'Population 2016'!P$5","v":3.8171982418573197E-2},{"$f":"'Population 2016'!Q53/'Population 2016'!Q$5","v":3.5651754973502071E-2},{"$f":"'Population 2016'!R53/'Population 2016'!R$5","v":3.7140043647202851E-2},{"$f":"'Population 2016'!S53/'Population 2016'!S$5","v":3.3021990534378633E-2},{"$f":"'Population 2016'!T53/'Population 2016'!T$5","v":2.8124316552118864E-2},{"$f":"'Population 2016'!U53/'Population 2016'!U$5","v":4.3686097463816229E-2},{"$f":"'Population 2016'!V53/'Population 2016'!V$5","v":3.3819006113523786E-2},{"$f":"'Population 2016'!W53/'Population 2016'!W$5","v":3.5808836506971545E-2},{"$f":"'Population 2016'!X53/'Population 2016'!X$5","v":3.5808836506971545E-2},{"$f":"'Population 2016'!Y53/'Population 2016'!Y$5","v":3.4339676634711692E-2},{"$f":"'Population 2016'!Z53/'Population 2016'!Z$5","v":2.7939363083957468E-2},{"$f":"'Population 2016'!AA53/'Population 2016'!AA$5","v":3.3249023191600613E-2},{"$f":"'Population 2016'!AB53/'Population 2016'!AB$5","v":3.5161663408493089E-2},{"$f":"'Population 2016'!AC53/'Population 2016'!AC$5","v":3.1916280012659774E-2},{"$f":"'Population 2016'!AD53/'Population 2016'!AD$5","v":4.1225948118649748E-2},{"$f":"'Population 2016'!AE53/'Population 2016'!AE$5","v":4.096551299294654E-2},{"$f":"'Population 2016'!AF53/'Population 2016'!AF$5","v":3.6571204512207994E-2},{"$f":"'Population 2016'!AG53/'Population 2016'!AG$5","v":4.096551299294654E-2},{"$f":"'Population 2016'!AH53/'Population 2016'!AH$5","v":3.5642699906188756E-2},{"$f":"'Population 2016'!AI53/'Population 2016'!AI$5","v":3.0645725785283053E-2},{"$f":"'Population 2016'!AJ53/'Population 2016'!AJ$5","v":3.6374536430304215E-2},{"$f":"'Population 2016'!AK53/'Population 2016'!AK$5","v":3.7288007744238967E-2},{"$f":"'Population 2016'!AL53/'Population 2016'!AL$5","v":3.8168886681683549E-2},{"$f":"'Population 2016'!AM53/'Population 2016'!AM$5","v":3.3963439590569779E-2},{"$f":"'Population 2016'!AN53/'Population 2016'!AN$5","v":4.1780298898221886E-2},{"$f":"'Population 2016'!AO53/'Population 2016'!AO$5","v":4.1780298898221886E-2},{"$f":"'Population 2016'!AP53/'Population 2016'!AP$5","v":3.9265729277301334E-2},{"$f":"'Population 2016'!AQ53/'Population 2016'!AQ$5","v":3.4683783635666134E-2},{"$f":"'Population 2016'!AR53/'Population 2016'!AR$5","v":3.484374272492121E-2},{"$f":"'Population 2016'!AS53/'Population 2016'!AS$5","v":4.2291265388158444E-2},{"$f":"'Population 2016'!AT53/'Population 2016'!AT$5","v":4.07022723677967E-2},{"$f":"'Population 2016'!AU53/'Population 2016'!AU$5","v":4.07022723677967E-2},{"$f":"'Population 2016'!AV53/'Population 2016'!AV$5","v":4.0354767184035474E-2},{"$f":"'Population 2016'!AW53/'Population 2016'!AW$5","v":3.7410763316858872E-2},{"$f":"'Population 2016'!AX53/'Population 2016'!AX$5","v":3.3607217245741595E-2},{"$f":"'Population 2016'!AY53/'Population 2016'!AY$5","v":3.5751659985924542E-2},{"$f":"'Population 2016'!AZ53/'Population 2016'!AZ$5","v":3.5701342108139515E-2},{"$f":"'Population 2016'!BA53/'Population 2016'!BA$5","v":3.7235478298423663E-2},{"$f":"'Population 2016'!BB53/'Population 2016'!BB$5","v":3.2349833935217474E-2},{"$f":"'Population 2016'!BC53/'Population 2016'!BC$5","v":4.3686097463816229E-2},51]
[null,"Male 65-69",{"$f":"'Population 2016'!C54/'Population 2016'!C$5","v":2.7783882690273085E-2},{"$f":"'Population 2016'!D54/'Population 2016'!D$5","v":3.3417935702199662E-2},{"$f":"'Population 2016'!E54/'Population 2016'!E$5","v":3.8585404956895539E-2},{"$f":"'Population 2016'!F54/'Population 2016'!F$5","v":4.2637136234869949E-2},{"$f":"'Population 2016'!G54/'Population 2016'!G$5","v":4.5349970226817519E-2},{"$f":"'Population 2016'!H54/'Population 2016'!H$5","v":3.9816739242509232E-2},{"$f":"'Population 2016'!I54/'Population 2016'!I$5","v":4.5473578427267396E-2},{"$f":"'Population 2016'!J54/'Population 2016'!J$5","v":3.575130822752793E-2},{"$f":"'Population 2016'!K54/'Population 2016'!K$5","v":3.8675991116571377E-2},{"$f":"'Population 2016'!L54/'Population 2016'!L$5","v":4.4977999459914542E-2},{"$f":"'Population 2016'!M54/'Population 2016'!M$5","v":4.4977999459914542E-2},{"$f":"'Population 2016'!N54/'Population 2016'!N$5","v":2.9761856921259273E-2},{"$f":"'Population 2016'!O54/'Population 2016'!O$5","v":3.7516965356000041E-2},{"$f":"'Population 2016'!P54/'Population 2016'!P$5","v":3.7428152823171419E-2},{"$f":"'Population 2016'!Q54/'Population 2016'!Q$5","v":3.5263980446763259E-2},{"$f":"'Population 2016'!R54/'Population 2016'!R$5","v":3.2974929472507582E-2},{"$f":"'Population 2016'!S54/'Population 2016'!S$5","v":3.2942551339786151E-2},{"$f":"'Population 2016'!T54/'Population 2016'!T$5","v":2.603732846912328E-2},{"$f":"'Population 2016'!U54/'Population 2016'!U$5","v":4.6474571770017264E-2},{"$f":"'Population 2016'!V54/'Population 2016'!V$5","v":3.5734729547171828E-2},{"$f":"'Population 2016'!W54/'Population 2016'!W$5","v":3.7642421508834546E-2},{"$f":"'Population 2016'!X54/'Population 2016'!X$5","v":3.7642421508834546E-2},{"$f":"'Population 2016'!Y54/'Population 2016'!Y$5","v":3.5742674997217852E-2},{"$f":"'Population 2016'!Z54/'Population 2016'!Z$5","v":2.4145200287272326E-2},{"$f":"'Population 2016'!AA54/'Population 2016'!AA$5","v":3.0418753658256248E-2},{"$f":"'Population 2016'!AB54/'Population 2016'!AB$5","v":3.4001003039824777E-2},{"$f":"'Population 2016'!AC54/'Population 2016'!AC$5","v":2.8843389095632999E-2},{"$f":"'Population 2016'!AD54/'Population 2016'!AD$5","v":4.2279206520525511E-2},{"$f":"'Population 2016'!AE54/'Population 2016'!AE$5","v":4.1114385157958504E-2},{"$f":"'Population 2016'!AF54/'Population 2016'!AF$5","v":3.5606026331267249E-2},{"$f":"'Population 2016'!AG54/'Population 2016'!AG$5","v":4.1114385157958504E-2},{"$f":"'Population 2016'!AH54/'Population 2016'!AH$5","v":3.3248191114867688E-2},{"$f":"'Population 2016'!AI54/'Population 2016'!AI$5","v":2.9340110683349373E-2},{"$f":"'Population 2016'!AJ54/'Population 2016'!AJ$5","v":3.6276942810138581E-2},{"$f":"'Population 2016'!AK54/'Population 2016'!AK$5","v":3.6998855964698339E-2},{"$f":"'Population 2016'!AL54/'Population 2016'!AL$5","v":3.9711959702736735E-2},{"$f":"'Population 2016'!AM54/'Population 2016'!AM$5","v":3.2156064485984695E-2},{"$f":"'Population 2016'!AN54/'Population 2016'!AN$5","v":4.1998472782807897E-2},{"$f":"'Population 2016'!AO54/'Population 2016'!AO$5","v":4.1998472782807897E-2},{"$f":"'Population 2016'!AP54/'Population 2016'!AP$5","v":3.9772997479511123E-2},{"$f":"'Population 2016'!AQ54/'Population 2016'!AQ$5","v":3.299172466706856E-2},{"$f":"'Population 2016'!AR54/'Population 2016'!AR$5","v":3.4188999557341046E-2},{"$f":"'Population 2016'!AS54/'Population 2016'!AS$5","v":4.5473578427267396E-2},{"$f":"'Population 2016'!AT54/'Population 2016'!AT$5","v":4.0807718669267676E-2},{"$f":"'Population 2016'!AU54/'Population 2016'!AU$5","v":4.0807718669267676E-2},{"$f":"'Population 2016'!AV54/'Population 2016'!AV$5","v":4.2392566782810684E-2},{"$f":"'Population 2016'!AW54/'Population 2016'!AW$5","v":3.4398071877478793E-2},{"$f":"'Population 2016'!AX54/'Population 2016'!AX$5","v":3.4169467268103812E-2},{"$f":"'Population 2016'!AY54/'Population 2016'!AY$5","v":3.7295370398702607E-2},{"$f":"'Population 2016'!AZ54/'Population 2016'!AZ$5","v":3.6989950008916708E-2},{"$f":"'Population 2016'!BA54/'Population 2016'!BA$5","v":3.2903260634852084E-2},{"$f":"'Population 2016'!BB54/'Population 2016'!BB$5","v":3.222554428509284E-2},{"$f":"'Population 2016'!BC54/'Population 2016'!BC$5","v":4.6474571770017264E-2},52]
[null,"Male 70-74",{"$f":"'Population 2016'!C55/'Population 2016'!C$5","v":1.814947892442232E-2},{"$f":"'Population 2016'!D55/'Population 2016'!D$5","v":2.2202008939487299E-2},{"$f":"'Population 2016'!E55/'Population 2016'!E$5","v":2.5918928928037353E-2},{"$f":"'Population 2016'!F55/'Population 2016'!F$5","v":3.0574298223023436E-2},{"$f":"'Population 2016'!G55/'Population 2016'!G$5","v":3.517295512369404E-2},{"$f":"'Population 2016'!H55/'Population 2016'!H$5","v":3.02451582780233E-2},{"$f":"'Population 2016'!I55/'Population 2016'!I$5","v":3.3435223180638136E-2},{"$f":"'Population 2016'!J55/'Population 2016'!J$5","v":2.5807949710987453E-2},{"$f":"'Population 2016'!K55/'Population 2016'!K$5","v":2.7996975854084959E-2},{"$f":"'Population 2016'!L55/'Population 2016'!L$5","v":3.4414563245595921E-2},{"$f":"'Population 2016'!M55/'Population 2016'!M$5","v":3.4414563245595921E-2},{"$f":"'Population 2016'!N55/'Population 2016'!N$5","v":2.129865537168163E-2},{"$f":"'Population 2016'!O55/'Population 2016'!O$5","v":2.747149324853132E-2},{"$f":"'Population 2016'!P55/'Population 2016'!P$5","v":2.785979939141215E-2},{"$f":"'Population 2016'!Q55/'Population 2016'!Q$5","v":2.7085463155544588E-2},{"$f":"'Population 2016'!R55/'Population 2016'!R$5","v":2.453824453079257E-2},{"$f":"'Population 2016'!S55/'Population 2016'!S$5","v":2.3998580686389947E-2},{"$f":"'Population 2016'!T55/'Population 2016'!T$5","v":1.7896446303681195E-2},{"$f":"'Population 2016'!U55/'Population 2016'!U$5","v":3.2797769220555037E-2},{"$f":"'Population 2016'!V55/'Population 2016'!V$5","v":2.4927301730256982E-2},{"$f":"'Population 2016'!W55/'Population 2016'!W$5","v":2.8216291124925644E-2},{"$f":"'Population 2016'!X55/'Population 2016'!X$5","v":2.8216291124925644E-2},{"$f":"'Population 2016'!Y55/'Population 2016'!Y$5","v":2.5349358515762865E-2},{"$f":"'Population 2016'!Z55/'Population 2016'!Z$5","v":1.695758474436828E-2},{"$f":"'Population 2016'!AA55/'Population 2016'!AA$5","v":2.2214293924155422E-2},{"$f":"'Population 2016'!AB55/'Population 2016'!AB$5","v":2.32091133332651E-2},{"$f":"'Population 2016'!AC55/'Population 2016'!AC$5","v":2.1024117694514718E-2},{"$f":"'Population 2016'!AD55/'Population 2016'!AD$5","v":3.1981093453422156E-2},{"$f":"'Population 2016'!AE55/'Population 2016'!AE$5","v":3.0770336451092926E-2},{"$f":"'Population 2016'!AF55/'Population 2016'!AF$5","v":2.7070231793572517E-2},{"$f":"'Population 2016'!AG55/'Population 2016'!AG$5","v":3.0770336451092926E-2},{"$f":"'Population 2016'!AH55/'Population 2016'!AH$5","v":2.4351912913442873E-2},{"$f":"'Population 2016'!AI55/'Population 2016'!AI$5","v":2.1001946801994926E-2},{"$f":"'Population 2016'!AJ55/'Population 2016'!AJ$5","v":2.7033432785879597E-2},{"$f":"'Population 2016'!AK55/'Population 2016'!AK$5","v":2.8387161660988397E-2},{"$f":"'Population 2016'!AL55/'Population 2016'!AL$5","v":3.0072187439030878E-2},{"$f":"'Population 2016'!AM55/'Population 2016'!AM$5","v":2.2970687200959104E-2},{"$f":"'Population 2016'!AN55/'Population 2016'!AN$5","v":3.3326060870513798E-2},{"$f":"'Population 2016'!AO55/'Population 2016'!AO$5","v":3.3326060870513798E-2},{"$f":"'Population 2016'!AP55/'Population 2016'!AP$5","v":2.9849563273782159E-2},{"$f":"'Population 2016'!AQ55/'Population 2016'!AQ$5","v":2.4880802323669644E-2},{"$f":"'Population 2016'!AR55/'Population 2016'!AR$5","v":2.4921899766595978E-2},{"$f":"'Population 2016'!AS55/'Population 2016'!AS$5","v":3.3435223180638136E-2},{"$f":"'Population 2016'!AT55/'Population 2016'!AT$5","v":2.836505509569252E-2},{"$f":"'Population 2016'!AU55/'Population 2016'!AU$5","v":2.836505509569252E-2},{"$f":"'Population 2016'!AV55/'Population 2016'!AV$5","v":3.3407243163340726E-2},{"$f":"'Population 2016'!AW55/'Population 2016'!AW$5","v":2.5806180975044238E-2},{"$f":"'Population 2016'!AX55/'Population 2016'!AX$5","v":2.4623995297545269E-2},{"$f":"'Population 2016'!AY55/'Population 2016'!AY$5","v":2.7564945993084667E-2},{"$f":"'Population 2016'!AZ55/'Population 2016'!AZ$5","v":2.699173335020796E-2},{"$f":"'Population 2016'!BA55/'Population 2016'!BA$5","v":2.4616713452817966E-2},{"$f":"'Population 2016'!BB55/'Population 2016'!BB$5","v":2.365646340705551E-2},{"$f":"'Population 2016'!BC55/'Population 2016'!BC$5","v":3.2797769220555037E-2},53]
[null,"Male 75-79",{"$f":"'Population 2016'!C56/'Population 2016'!C$5","v":1.3973718777631828E-2},{"$f":"'Population 2016'!D56/'Population 2016'!D$5","v":1.6414326653169411E-2},{"$f":"'Population 2016'!E56/'Population 2016'!E$5","v":1.8652815736057267E-2},{"$f":"'Population 2016'!F56/'Population 2016'!F$5","v":2.2848313159927892E-2},{"$f":"'Population 2016'!G56/'Population 2016'!G$5","v":2.4914740431981813E-2},{"$f":"'Population 2016'!H56/'Population 2016'!H$5","v":2.2239659158336388E-2},{"$f":"'Population 2016'!I56/'Population 2016'!I$5","v":2.4181391843229209E-2},{"$f":"'Population 2016'!J56/'Population 2016'!J$5","v":1.92232735957805E-2},{"$f":"'Population 2016'!K56/'Population 2016'!K$5","v":1.9137173368615035E-2},{"$f":"'Population 2016'!L56/'Population 2016'!L$5","v":2.6519784601210426E-2},{"$f":"'Population 2016'!M56/'Population 2016'!M$5","v":2.6519784601210426E-2},{"$f":"'Population 2016'!N56/'Population 2016'!N$5","v":1.7336301749704634E-2},{"$f":"'Population 2016'!O56/'Population 2016'!O$5","v":2.0665537294062869E-2},{"$f":"'Population 2016'!P56/'Population 2016'!P$5","v":2.2686802659754309E-2},{"$f":"'Population 2016'!Q56/'Population 2016'!Q$5","v":1.9858756066321193E-2},{"$f":"'Population 2016'!R56/'Population 2016'!R$5","v":2.0213445467610582E-2},{"$f":"'Population 2016'!S56/'Population 2016'!S$5","v":1.7412188796955184E-2},{"$f":"'Population 2016'!T56/'Population 2016'!T$5","v":1.3682917409249755E-2},{"$f":"'Population 2016'!U56/'Population 2016'!U$5","v":2.5671668215819059E-2},{"$f":"'Population 2016'!V56/'Population 2016'!V$5","v":1.8378733180177225E-2},{"$f":"'Population 2016'!W56/'Population 2016'!W$5","v":1.9806640127076267E-2},{"$f":"'Population 2016'!X56/'Population 2016'!X$5","v":1.9806640127076267E-2},{"$f":"'Population 2016'!Y56/'Population 2016'!Y$5","v":1.8783485159218453E-2},{"$f":"'Population 2016'!Z56/'Population 2016'!Z$5","v":1.2588490136144628E-2},{"$f":"'Population 2016'!AA56/'Population 2016'!AA$5","v":1.6474028955118968E-2},{"$f":"'Population 2016'!AB56/'Population 2016'!AB$5","v":1.7311648567597721E-2},{"$f":"'Population 2016'!AC56/'Population 2016'!AC$5","v":1.5814372979245834E-2},{"$f":"'Population 2016'!AD56/'Population 2016'!AD$5","v":2.194722542707209E-2},{"$f":"'Population 2016'!AE56/'Population 2016'!AE$5","v":2.0821569009948769E-2},{"$f":"'Population 2016'!AF56/'Population 2016'!AF$5","v":1.9499615436818531E-2},{"$f":"'Population 2016'!AG56/'Population 2016'!AG$5","v":2.0821569009948769E-2},{"$f":"'Population 2016'!AH56/'Population 2016'!AH$5","v":1.7658805717841786E-2},{"$f":"'Population 2016'!AI56/'Population 2016'!AI$5","v":1.5526566191267828E-2},{"$f":"'Population 2016'!AJ56/'Population 2016'!AJ$5","v":1.8417310319828236E-2},{"$f":"'Population 2016'!AK56/'Population 2016'!AK$5","v":2.1925247979080496E-2},{"$f":"'Population 2016'!AL56/'Population 2016'!AL$5","v":2.1824728188574165E-2},{"$f":"'Population 2016'!AM56/'Population 2016'!AM$5","v":1.6947310850408018E-2},{"$f":"'Population 2016'!AN56/'Population 2016'!AN$5","v":2.5471801025417257E-2},{"$f":"'Population 2016'!AO56/'Population 2016'!AO$5","v":2.5471801025417257E-2},{"$f":"'Population 2016'!AP56/'Population 2016'!AP$5","v":2.2993516478290506E-2},{"$f":"'Population 2016'!AQ56/'Population 2016'!AQ$5","v":1.8667452183920644E-2},{"$f":"'Population 2016'!AR56/'Population 2016'!AR$5","v":1.8382488081958963E-2},{"$f":"'Population 2016'!AS56/'Population 2016'!AS$5","v":2.4181391843229209E-2},{"$f":"'Population 2016'!AT56/'Population 2016'!AT$5","v":2.0614751937575788E-2},{"$f":"'Population 2016'!AU56/'Population 2016'!AU$5","v":2.0614751937575788E-2},{"$f":"'Population 2016'!AV56/'Population 2016'!AV$5","v":2.441136099672685E-2},{"$f":"'Population 2016'!AW56/'Population 2016'!AW$5","v":1.8407926047958996E-2},{"$f":"'Population 2016'!AX56/'Population 2016'!AX$5","v":1.9269841675505068E-2},{"$f":"'Population 2016'!AY56/'Population 2016'!AY$5","v":2.0403292432912088E-2},{"$f":"'Population 2016'!AZ56/'Population 2016'!AZ$5","v":2.0928372959943854E-2},{"$f":"'Population 2016'!BA56/'Population 2016'!BA$5","v":1.6694558410710429E-2},{"$f":"'Population 2016'!BB56/'Population 2016'!BB$5","v":1.7020777086512503E-2},{"$f":"'Population 2016'!BC56/'Population 2016'!BC$5","v":2.5671668215819059E-2},54]
[null,"Male 80-84",{"$f":"'Population 2016'!C57/'Population 2016'!C$5","v":1.0303956494405913E-2},{"$f":"'Population 2016'!D57/'Population 2016'!D$5","v":1.1445771348649785E-2},{"$f":"'Population 2016'!E57/'Population 2016'!E$5","v":1.2493026875243181E-2},{"$f":"'Population 2016'!F57/'Population 2016'!F$5","v":1.5503476693278393E-2},{"$f":"'Population 2016'!G57/'Population 2016'!G$5","v":1.5847453039571267E-2},{"$f":"'Population 2016'!H57/'Population 2016'!H$5","v":1.4629733506693946E-2},{"$f":"'Population 2016'!I57/'Population 2016'!I$5","v":1.5942969600535969E-2},{"$f":"'Population 2016'!J57/'Population 2016'!J$5","v":1.253908096497848E-2},{"$f":"'Population 2016'!K57/'Population 2016'!K$5","v":1.1482304021169022E-2},{"$f":"'Population 2016'!L57/'Population 2016'!L$5","v":1.7870474798659317E-2},{"$f":"'Population 2016'!M57/'Population 2016'!M$5","v":1.7870474798659317E-2},{"$f":"'Population 2016'!N57/'Population 2016'!N$5","v":1.2329108430248913E-2},{"$f":"'Population 2016'!O57/'Population 2016'!O$5","v":1.3166106933753381E-2},{"$f":"'Population 2016'!P57/'Population 2016'!P$5","v":1.6848867350388819E-2},{"$f":"'Population 2016'!Q57/'Population 2016'!Q$5","v":1.3959882962597384E-2},{"$f":"'Population 2016'!R57/'Population 2016'!R$5","v":1.4664395592697077E-2},{"$f":"'Population 2016'!S57/'Population 2016'!S$5","v":1.2065048343163198E-2},{"$f":"'Population 2016'!T57/'Population 2016'!T$5","v":1.044657357040153E-2},{"$f":"'Population 2016'!U57/'Population 2016'!U$5","v":1.5712831407958216E-2},{"$f":"'Population 2016'!V57/'Population 2016'!V$5","v":1.2845269079002603E-2},{"$f":"'Population 2016'!W57/'Population 2016'!W$5","v":1.3416874211493081E-2},{"$f":"'Population 2016'!X57/'Population 2016'!X$5","v":1.3416874211493081E-2},{"$f":"'Population 2016'!Y57/'Population 2016'!Y$5","v":1.2698526255544428E-2},{"$f":"'Population 2016'!Z57/'Population 2016'!Z$5","v":8.6878584854708733E-3},{"$f":"'Population 2016'!AA57/'Population 2016'!AA$5","v":1.1169598918916765E-2},{"$f":"'Population 2016'!AB57/'Population 2016'!AB$5","v":1.1850199072699918E-2},{"$f":"'Population 2016'!AC57/'Population 2016'!AC$5","v":1.0936637009976812E-2},{"$f":"'Population 2016'!AD57/'Population 2016'!AD$5","v":1.4846105176969743E-2},{"$f":"'Population 2016'!AE57/'Population 2016'!AE$5","v":1.4466267620817461E-2},{"$f":"'Population 2016'!AF57/'Population 2016'!AF$5","v":1.27735299883877E-2},{"$f":"'Population 2016'!AG57/'Population 2016'!AG$5","v":1.4466267620817461E-2},{"$f":"'Population 2016'!AH57/'Population 2016'!AH$5","v":1.1588010737207768E-2},{"$f":"'Population 2016'!AI57/'Population 2016'!AI$5","v":1.0993142444658325E-2},{"$f":"'Population 2016'!AJ57/'Population 2016'!AJ$5","v":1.2017957226110477E-2},{"$f":"'Population 2016'!AK57/'Population 2016'!AK$5","v":1.3929572683957106E-2},{"$f":"'Population 2016'!AL57/'Population 2016'!AL$5","v":1.4366541920150406E-2},{"$f":"'Population 2016'!AM57/'Population 2016'!AM$5","v":1.0797164702942145E-2},{"$f":"'Population 2016'!AN57/'Population 2016'!AN$5","v":1.5381258863314061E-2},{"$f":"'Population 2016'!AO57/'Population 2016'!AO$5","v":1.5381258863314061E-2},{"$f":"'Population 2016'!AP57/'Population 2016'!AP$5","v":1.6462438374839496E-2},{"$f":"'Population 2016'!AQ57/'Population 2016'!AQ$5","v":1.2132131309256316E-2},{"$f":"'Population 2016'!AR57/'Population 2016'!AR$5","v":1.2520320095669583E-2},{"$f":"'Population 2016'!AS57/'Population 2016'!AS$5","v":1.5942969600535969E-2},{"$f":"'Population 2016'!AT57/'Population 2016'!AT$5","v":1.2231770970633205E-2},{"$f":"'Population 2016'!AU57/'Population 2016'!AU$5","v":1.2231770970633205E-2},{"$f":"'Population 2016'!AV57/'Population 2016'!AV$5","v":1.6503009185936016E-2},{"$f":"'Population 2016'!AW57/'Population 2016'!AW$5","v":1.2420678503874551E-2},{"$f":"'Population 2016'!AX57/'Population 2016'!AX$5","v":1.3110648248718965E-2},{"$f":"'Population 2016'!AY57/'Population 2016'!AY$5","v":1.4107585447201738E-2},{"$f":"'Population 2016'!AZ57/'Population 2016'!AZ$5","v":1.4715442009768109E-2},{"$f":"'Population 2016'!BA57/'Population 2016'!BA$5","v":1.1755020513927877E-2},{"$f":"'Population 2016'!BB57/'Population 2016'!BB$5","v":1.0364375824282054E-2},{"$f":"'Population 2016'!BC57/'Population 2016'!BC$5","v":1.5712831407958216E-2},55]
[null,"Male 85-89",{"$f":"'Population 2016'!C58/'Population 2016'!C$5","v":5.3461996493792581E-3},{"$f":"'Population 2016'!D58/'Population 2016'!D$5","v":5.8537014758956608E-3},{"$f":"'Population 2016'!E58/'Population 2016'!E$5","v":6.3191745695413909E-3},{"$f":"'Population 2016'!F58/'Population 2016'!F$5","v":8.447077002317796E-3},{"$f":"'Population 2016'!G58/'Population 2016'!G$5","v":7.8492935635792772E-3},{"$f":"'Population 2016'!H58/'Population 2016'!H$5","v":7.1527464795582548E-3},{"$f":"'Population 2016'!I58/'Population 2016'!I$5","v":9.1282137174441003E-3},{"$f":"'Population 2016'!J58/'Population 2016'!J$5","v":6.070507451299105E-3},{"$f":"'Population 2016'!K58/'Population 2016'!K$5","v":5.8829088503520293E-3},{"$f":"'Population 2016'!L58/'Population 2016'!L$5","v":8.7207917017457469E-3},{"$f":"'Population 2016'!M58/'Population 2016'!M$5","v":8.7207917017457469E-3},{"$f":"'Population 2016'!N58/'Population 2016'!N$5","v":6.8477186327066978E-3},{"$f":"'Population 2016'!O58/'Population 2016'!O$5","v":6.3700577565112297E-3},{"$f":"'Population 2016'!P58/'Population 2016'!P$5","v":8.4413388932717236E-3},{"$f":"'Population 2016'!Q58/'Population 2016'!Q$5","v":7.0269444542367301E-3},{"$f":"'Population 2016'!R58/'Population 2016'!R$5","v":7.4652685367541383E-3},{"$f":"'Population 2016'!S58/'Population 2016'!S$5","v":6.2289155137685778E-3},{"$f":"'Population 2016'!T58/'Population 2016'!T$5","v":5.6095075452646075E-3},{"$f":"'Population 2016'!U58/'Population 2016'!U$5","v":9.2949143540034529E-3},{"$f":"'Population 2016'!V58/'Population 2016'!V$5","v":5.8234939437189458E-3},{"$f":"'Population 2016'!W58/'Population 2016'!W$5","v":6.6348976003242277E-3},{"$f":"'Population 2016'!X58/'Population 2016'!X$5","v":6.6348976003242277E-3},{"$f":"'Population 2016'!Y58/'Population 2016'!Y$5","v":5.941876917696062E-3},{"$f":"'Population 2016'!Z58/'Population 2016'!Z$5","v":4.1851938604251402E-3},{"$f":"'Population 2016'!AA58/'Population 2016'!AA$5","v":5.3947860588629626E-3},{"$f":"'Population 2016'!AB58/'Population 2016'!AB$5","v":6.126731011330256E-3},{"$f":"'Population 2016'!AC58/'Population 2016'!AC$5","v":5.3855748922781591E-3},{"$f":"'Population 2016'!AD58/'Population 2016'!AD$5","v":7.5923927202352151E-3},{"$f":"'Population 2016'!AE58/'Population 2016'!AE$5","v":7.4949434799125251E-3},{"$f":"'Population 2016'!AF58/'Population 2016'!AF$5","v":6.3792245396552504E-3},{"$f":"'Population 2016'!AG58/'Population 2016'!AG$5","v":7.4949434799125251E-3},{"$f":"'Population 2016'!AH58/'Population 2016'!AH$5","v":5.4113297976092064E-3},{"$f":"'Population 2016'!AI58/'Population 2016'!AI$5","v":5.6804510455857908E-3},{"$f":"'Population 2016'!AJ58/'Population 2016'!AJ$5","v":6.4132950394557063E-3},{"$f":"'Population 2016'!AK58/'Population 2016'!AK$5","v":7.5305180845580376E-3},{"$f":"'Population 2016'!AL58/'Population 2016'!AL$5","v":6.6334403433780881E-3},{"$f":"'Population 2016'!AM58/'Population 2016'!AM$5","v":4.8027643059715816E-3},{"$f":"'Population 2016'!AN58/'Population 2016'!AN$5","v":8.0178902585360534E-3},{"$f":"'Population 2016'!AO58/'Population 2016'!AO$5","v":8.0178902585360534E-3},{"$f":"'Population 2016'!AP58/'Population 2016'!AP$5","v":8.9564541952665538E-3},{"$f":"'Population 2016'!AQ58/'Population 2016'!AQ$5","v":6.3709102866224589E-3},{"$f":"'Population 2016'!AR58/'Population 2016'!AR$5","v":6.30170805761829E-3},{"$f":"'Population 2016'!AS58/'Population 2016'!AS$5","v":9.1282137174441003E-3},{"$f":"'Population 2016'!AT58/'Population 2016'!AT$5","v":6.2740549375230664E-3},{"$f":"'Population 2016'!AU58/'Population 2016'!AU$5","v":6.2740549375230664E-3},{"$f":"'Population 2016'!AV58/'Population 2016'!AV$5","v":8.6052159222890934E-3},{"$f":"'Population 2016'!AW58/'Population 2016'!AW$5","v":6.0520776130331324E-3},{"$f":"'Population 2016'!AX58/'Population 2016'!AX$5","v":6.1719718363852432E-3},{"$f":"'Population 2016'!AY58/'Population 2016'!AY$5","v":7.3926746427587899E-3},{"$f":"'Population 2016'!AZ58/'Population 2016'!AZ$5","v":8.0595520937002032E-3},{"$f":"'Population 2016'!BA58/'Population 2016'!BA$5","v":5.1554739797020086E-3},{"$f":"'Population 2016'!BB58/'Population 2016'!BB$5","v":4.7368166658610855E-3},{"$f":"'Population 2016'!BC58/'Population 2016'!BC$5","v":9.2949143540034529E-3},56]
[null,"Male 90+",{"$f":"'Population 2016'!C59/'Population 2016'!C$5","v":2.2693237517441593E-3},{"$f":"'Population 2016'!D59/'Population 2016'!D$5","v":2.586974169380789E-3},{"$f":"'Population 2016'!E59/'Population 2016'!E$5","v":2.8783183870166279E-3},{"$f":"'Population 2016'!F59/'Population 2016'!F$5","v":3.5333505021890293E-3},{"$f":"'Population 2016'!G59/'Population 2016'!G$5","v":3.1397174254317113E-3},{"$f":"'Population 2016'!H59/'Population 2016'!H$5","v":2.9473465774789002E-3},{"$f":"'Population 2016'!I59/'Population 2016'!I$5","v":3.2346537140942968E-3},{"$f":"'Population 2016'!J59/'Population 2016'!J$5","v":2.3718102883491039E-3},{"$f":"'Population 2016'!K59/'Population 2016'!K$5","v":2.386240136086566E-3},{"$f":"'Population 2016'!L59/'Population 2016'!L$5","v":3.8123679570473208E-3},{"$f":"'Population 2016'!M59/'Population 2016'!M$5","v":3.8123679570473208E-3},{"$f":"'Population 2016'!N59/'Population 2016'!N$5","v":2.8451788685189801E-3},{"$f":"'Population 2016'!O59/'Population 2016'!O$5","v":2.4667875293488276E-3},{"$f":"'Population 2016'!P59/'Population 2016'!P$5","v":3.7980389947030319E-3},{"$f":"'Population 2016'!Q59/'Population 2016'!Q$5","v":3.0316917545034723E-3},{"$f":"'Population 2016'!R59/'Population 2016'!R$5","v":3.4731463245861499E-3},{"$f":"'Population 2016'!S59/'Population 2016'!S$5","v":2.7097591933214586E-3},{"$f":"'Population 2016'!T59/'Population 2016'!T$5","v":2.7105252137010652E-3},{"$f":"'Population 2016'!U59/'Population 2016'!U$5","v":3.1425662815916435E-3},{"$f":"'Population 2016'!V59/'Population 2016'!V$5","v":2.5110478472916554E-3},{"$f":"'Population 2016'!W59/'Population 2016'!W$5","v":2.8958223024075202E-3},{"$f":"'Population 2016'!X59/'Population 2016'!X$5","v":2.8958223024075202E-3},{"$f":"'Population 2016'!Y59/'Population 2016'!Y$5","v":2.4443172604569083E-3},{"$f":"'Population 2016'!Z59/'Population 2016'!Z$5","v":1.8428790726756398E-3},{"$f":"'Population 2016'!AA59/'Population 2016'!AA$5","v":2.2848114847819861E-3},{"$f":"'Population 2016'!AB59/'Population 2016'!AB$5","v":2.6815962662354279E-3},{"$f":"'Population 2016'!AC59/'Population 2016'!AC$5","v":2.3943932928027537E-3},{"$f":"'Population 2016'!AD59/'Population 2016'!AD$5","v":3.126279355390971E-3},{"$f":"'Population 2016'!AE59/'Population 2016'!AE$5","v":3.1211819423197363E-3},{"$f":"'Population 2016'!AF59/'Population 2016'!AF$5","v":2.8653727246678428E-3},{"$f":"'Population 2016'!AG59/'Population 2016'!AG$5","v":3.1211819423197363E-3},{"$f":"'Population 2016'!AH59/'Population 2016'!AH$5","v":2.0879968048447472E-3},{"$f":"'Population 2016'!AI59/'Population 2016'!AI$5","v":2.5633804357336602E-3},{"$f":"'Population 2016'!AJ59/'Population 2016'!AJ$5","v":2.4258985584028107E-3},{"$f":"'Population 2016'!AK59/'Population 2016'!AK$5","v":3.1680977584451178E-3},{"$f":"'Population 2016'!AL59/'Population 2016'!AL$5","v":2.6516024902005996E-3},{"$f":"'Population 2016'!AM59/'Population 2016'!AM$5","v":1.8834369827339537E-3},{"$f":"'Population 2016'!AN59/'Population 2016'!AN$5","v":3.654412566815752E-3},{"$f":"'Population 2016'!AO59/'Population 2016'!AO$5","v":3.654412566815752E-3},{"$f":"'Population 2016'!AP59/'Population 2016'!AP$5","v":3.7569551226162359E-3},{"$f":"'Population 2016'!AQ59/'Population 2016'!AQ$5","v":2.8360826437222558E-3},{"$f":"'Population 2016'!AR59/'Population 2016'!AR$5","v":2.6771176062643262E-3},{"$f":"'Population 2016'!AS59/'Population 2016'!AS$5","v":3.2346537140942968E-3},{"$f":"'Population 2016'!AT59/'Population 2016'!AT$5","v":2.3725417830969581E-3},{"$f":"'Population 2016'!AU59/'Population 2016'!AU$5","v":2.3725417830969581E-3},{"$f":"'Population 2016'!AV59/'Population 2016'!AV$5","v":3.8116355189525921E-3},{"$f":"'Population 2016'!AW59/'Population 2016'!AW$5","v":2.3033742144121057E-3},{"$f":"'Population 2016'!AX59/'Population 2016'!AX$5","v":2.3640057758411389E-3},{"$f":"'Population 2016'!AY59/'Population 2016'!AY$5","v":3.1470885223830358E-3},{"$f":"'Population 2016'!AZ59/'Population 2016'!AZ$5","v":3.3682139549332398E-3},{"$f":"'Population 2016'!BA59/'Population 2016'!BA$5","v":2.1728568343770244E-3},{"$f":"'Population 2016'!BB59/'Population 2016'!BB$5","v":1.9195845963693612E-3},{"$f":"'Population 2016'!BC59/'Population 2016'!BC$5","v":3.1425662815916435E-3},57]
["SIMD Q1 (most deprived)","Female 0-4",{"$f":"'Population 2016'!C60/'Population 2016'!C$5","v":0},{"$f":"'Population 2016'!D60/'Population 2016'!D$5","v":0},{"$f":"'Population 2016'!E60/'Population 2016'!E$5","v":0},{"$f":"'Population 2016'!F60/'Population 2016'!F$5","v":0},{"$f":"'Population 2016'!G60/'Population 2016'!G$5","v":0},{"$f":"'Population 2016'!H60/'Population 2016'!H$5","v":0},{"$f":"'Population 2016'!I60/'Population 2016'!I$5","v":0},{"$f":"'Population 2016'!J60/'Population 2016'!J$5","v":0},{"$f":"'Population 2016'!K60/'Population 2016'!K$5","v":0},{"$f":"'Population 2016'!L60/'Population 2016'!L$5","v":0},{"$f":"'Population 2016'!M60/'Population 2016'!M$5","v":0},{"$f":"'Population 2016'!N60/'Population 2016'!N$5","v":0},{"$f":"'Population 2016'!O60/'Population 2016'!O$5","v":0},{"$f":"'Population 2016'!P60/'Population 2016'!P$5","v":0},{"$f":"'Population 2016'!Q60/'Population 2016'!Q$5","v":0},{"$f":"'Population 2016'!R60/'Population 2016'!R$5","v":0},{"$f":"'Population 2016'!S60/'Population 2016'!S$5","v":0},{"$f":"'Population 2016'!T60/'Population 2016'!T$5","v":0},{"$f":"'Population 2016'!U60/'Population 2016'!U$5","v":0},{"$f":"'Population 2016'!V60/'Population 2016'!V$5","v":0},{"$f":"'Population 2016'!W60/'Population 2016'!W$5","v":0},{"$f":"'Population 2016'!X60/'Population 2016'!X$5","v":0},{"$f":"'Population 2016'!Y60/'Population 2016'!Y$5","v":0},{"$f":"'Population 2016'!Z60/'Population 2016'!Z$5","v":0},{"$f":"'Population 2016'!AA60/'Population 2016'!AA$5","v":0},{"$f":"'Population 2016'!AB60/'Population 2016'!AB$5","v":0},{"$f":"'Population 2016'!AC60/'Population 2016'!AC$5","v":0},{"$f":"'Population 2016'!AD60/'Population 2016'!AD$5","v":0},{"$f":"'Population 2016'!AE60/'Population 2016'!AE$5","v":0},{"$f":"'Population 2016'!AF60/'Population 2016'!AF$5","v":0},{"$f":"'Population 2016'!AG60/'Population 2016'!AG$5","v":0},{"$f":"'Population 2016'!AH60/'Population 2016'!AH$5","v":0},{"$f":"'Population 2016'!AI60/'Population 2016'!AI$5","v":0},{"$f":"'Population 2016'!AJ60/'Population 2016'!AJ$5","v":0},{"$f":"'Population 2016'!AK60/'Population 2016'!AK$5","v":0},{"$f":"'Population 2016'!AL60/'Population 2016'!AL$5","v":0},{"$f":"'Population 2016'!AM60/'Population 2016'!AM$5","v":0},{"$f":"'Population 2016'!AN60/'Population 2016'!AN$5","v":0},{"$f":"'Population 2016'!AO60/'Population 2016'!AO$5","v":0},{"$f":"'Population 2016'!AP60/'Population 2016'!AP$5","v":0},{"$f":"'Population 2016'!AQ60/'Population 2016'!AQ$5","v":0},{"$f":"'Population 2016'!AR60/'Population 2016'!AR$5","v":0},{"$f":"'Population 2016'!AS60/'Population 2016'!AS$5","v":0},{"$f":"'Population 2016'!AT60/'Population 2016'!AT$5","v":0},{"$f":"'Population 2016'!AU60/'Population 2016'!AU$5","v":0},{"$f":"'Population 2016'!AV60/'Population 2016'!AV$5","v":0},{"$f":"'Population 2016'!AW60/'Population 2016'!AW$5","v":0},{"$f":"'Population 2016'!AX60/'Population 2016'!AX$5","v":0},{"$f":"'Population 2016'!AY60/'Population 2016'!AY$5","v":0},{"$f":"'Population 2016'!AZ60/'Population 2016'!AZ$5","v":0},{"$f":"'Population 2016'!BA60/'Population 2016'!BA$5","v":0},{"$f":"'Population 2016'!BB60/'Population 2016'!BB$5","v":0},{"$f":"'Population 2016'!BC60/'Population 2016'!BC$5","v":0},58]
[null,"Female 5-9",{"$f":"'Population 2016'!C61/'Population 2016'!C$5","v":0},{"$f":"'Population 2016'!D61/'Population 2016'!D$5","v":0},{"$f":"'Population 2016'!E61/'Population 2016'!E$5","v":0},{"$f":"'Population 2016'!F61/'Population 2016'!F$5","v":0},{"$f":"'Population 2016'!G61/'Population 2016'!G$5","v":0},{"$f":"'Population 2016'!H61/'Population 2016'!H$5","v":0},{"$f":"'Population 2016'!I61/'Population 2016'!I$5","v":0},{"$f":"'Population 2016'!J61/'Population 2016'!J$5","v":0},{"$f":"'Population 2016'!K61/'Population 2016'!K$5","v":0},{"$f":"'Population 2016'!L61/'Population 2016'!L$5","v":0},{"$f":"'Population 2016'!M61/'Population 2016'!M$5","v":0},{"$f":"'Population 2016'!N61/'Population 2016'!N$5","v":0},{"$f":"'Population 2016'!O61/'Population 2016'!O$5","v":0},{"$f":"'Population 2016'!P61/'Population 2016'!P$5","v":0},{"$f":"'Population 2016'!Q61/'Population 2016'!Q$5","v":0},{"$f":"'Population 2016'!R61/'Population 2016'!R$5","v":0},{"$f":"'Population 2016'!S61/'Population 2016'!S$5","v":0},{"$f":"'Population 2016'!T61/'Population 2016'!T$5","v":0},{"$f":"'Population 2016'!U61/'Population 2016'!U$5","v":0},{"$f":"'Population 2016'!V61/'Population 2016'!V$5","v":0},{"$f":"'Population 2016'!W61/'Population 2016'!W$5","v":0},{"$f":"'Population 2016'!X61/'Population 2016'!X$5","v":0},{"$f":"'Population 2016'!Y61/'Population 2016'!Y$5","v":0},{"$f":"'Population 2016'!Z61/'Population 2016'!Z$5","v":0},{"$f":"'Population 2016'!AA61/'Population 2016'!AA$5","v":0},{"$f":"'Population 2016'!AB61/'Population 2016'!AB$5","v":0},{"$f":"'Population 2016'!AC61/'Population 2016'!AC$5","v":0},{"$f":"'Population 2016'!AD61/'Population 2016'!AD$5","v":0},{"$f":"'Population 2016'!AE61/'Population 2016'!AE$5","v":0},{"$f":"'Population 2016'!AF61/'Population 2016'!AF$5","v":0},{"$f":"'Population 2016'!AG61/'Population 2016'!AG$5","v":0},{"$f":"'Population 2016'!AH61/'Population 2016'!AH$5","v":0},{"$f":"'Population 2016'!AI61/'Population 2016'!AI$5","v":0},{"$f":"'Population 2016'!AJ61/'Population 2016'!AJ$5","v":0},{"$f":"'Population 2016'!AK61/'Population 2016'!AK$5","v":0},{"$f":"'Population 2016'!AL61/'Population 2016'!AL$5","v":0},{"$f":"'Population 2016'!AM61/'Population 2016'!AM$5","v":0},{"$f":"'Population 2016'!AN61/'Population 2016'!AN$5","v":0},{"$f":"'Population 2016'!AO61/'Population 2016'!AO$5","v":0},{"$f":"'Population 2016'!AP61/'Population 2016'!AP$5","v":0},{"$f":"'Population 2016'!AQ61/'Population 2016'!AQ$5","v":0},{"$f":"'Population 2016'!AR61/'Population 2016'!AR$5","v":0},{"$f":"'Population 2016'!AS61/'Population 2016'!AS$5","v":0},{"$f":"'Population 2016'!AT61/'Population 2016'!AT$5","v":0},{"$f":"'Population 2016'!AU61/'Population 2016'!AU$5","v":0},{"$f":"'Population 2016'!AV61/'Population 2016'!AV$5","v":0},{"$f":"'Population 2016'!AW61/'Population 2016'!AW$5","v":0},{"$f":"'Population 2016'!AX61/'Population 2016'!AX$5","v":0},{"$f":"'Population 2016'!AY61/'Population 2016'!AY$5","v":0},{"$f":"'Population 2016'!AZ61/'Population 2016'!AZ$5","v":0},{"$f":"'Population 2016'!BA61/'Population 2016'!BA$5","v":0},{"$f":"'Population 2016'!BB61/'Population 2016'!BB$5","v":0},{"$f":"'Population 2016'!BC61/'Population 2016'!BC$5","v":0},59]
[null,"Female 10-15",{"$f":"'Population 2016'!C62/'Population 2016'!C$5","v":0},{"$f":"'Population 2016'!D62/'Population 2016'!D$5","v":0},{"$f":"'Population 2016'!E62/'Population 2016'!E$5","v":0},{"$f":"'Population 2016'!F62/'Population 2016'!F$5","v":0},{"$f":"'Population 2016'!G62/'Population 2016'!G$5","v":0},{"$f":"'Population 2016'!H62/'Population 2016'!H$5","v":0},{"$f":"'Population 2016'!I62/'Population 2016'!I$5","v":0},{"$f":"'Population 2016'!J62/'Population 2016'!J$5","v":0},{"$f":"'Population 2016'!K62/'Population 2016'!K$5","v":0},{"$f":"'Population 2016'!L62/'Population 2016'!L$5","v":0},{"$f":"'Population 2016'!M62/'Population 2016'!M$5","v":0},{"$f":"'Population 2016'!N62/'Population 2016'!N$5","v":0},{"$f":"'Population 2016'!O62/'Population 2016'!O$5","v":0},{"$f":"'Population 2016'!P62/'Population 2016'!P$5","v":0},{"$f":"'Population 2016'!Q62/'Population 2016'!Q$5","v":0},{"$f":"'Population 2016'!R62/'Population 2016'!R$5","v":0},{"$f":"'Population 2016'!S62/'Population 2016'!S$5","v":0},{"$f":"'Population 2016'!T62/'Population 2016'!T$5","v":0},{"$f":"'Population 2016'!U62/'Population 2016'!U$5","v":0},{"$f":"'Population 2016'!V62/'Population 2016'!V$5","v":0},{"$f":"'Population 2016'!W62/'Population 2016'!W$5","v":0},{"$f":"'Population 2016'!X62/'Population 2016'!X$5","v":0},{"$f":"'Population 2016'!Y62/'Population 2016'!Y$5","v":0},{"$f":"'Population 2016'!Z62/'Population 2016'!Z$5","v":0},{"$f":"'Population 2016'!AA62/'Population 2016'!AA$5","v":0},{"$f":"'Population 2016'!AB62/'Population 2016'!AB$5","v":0},{"$f":"'Population 2016'!AC62/'Population 2016'!AC$5","v":0},{"$f":"'Population 2016'!AD62/'Population 2016'!AD$5","v":0},{"$f":"'Population 2016'!AE62/'Population 2016'!AE$5","v":0},{"$f":"'Population 2016'!AF62/'Population 2016'!AF$5","v":0},{"$f":"'Population 2016'!AG62/'Population 2016'!AG$5","v":0},{"$f":"'Population 2016'!AH62/'Population 2016'!AH$5","v":0},{"$f":"'Population 2016'!AI62/'Population 2016'!AI$5","v":0},{"$f":"'Population 2016'!AJ62/'Population 2016'!AJ$5","v":0},{"$f":"'Population 2016'!AK62/'Population 2016'!AK$5","v":0},{"$f":"'Population 2016'!AL62/'Population 2016'!AL$5","v":0},{"$f":"'Population 2016'!AM62/'Population 2016'!AM$5","v":0},{"$f":"'Population 2016'!AN62/'Population 2016'!AN$5","v":0},{"$f":"'Population 2016'!AO62/'Population 2016'!AO$5","v":0},{"$f":"'Population 2016'!AP62/'Population 2016'!AP$5","v":0},{"$f":"'Population 2016'!AQ62/'Population 2016'!AQ$5","v":0},{"$f":"'Population 2016'!AR62/'Population 2016'!AR$5","v":0},{"$f":"'Population 2016'!AS62/'Population 2016'!AS$5","v":0},{"$f":"'Population 2016'!AT62/'Population 2016'!AT$5","v":0},{"$f":"'Population 2016'!AU62/'Population 2016'!AU$5","v":0},{"$f":"'Population 2016'!AV62/'Population 2016'!AV$5","v":0},{"$f":"'Population 2016'!AW62/'Population 2016'!AW$5","v":0},{"$f":"'Population 2016'!AX62/'Population 2016'!AX$5","v":0},{"$f":"'Population 2016'!AY62/'Population 2016'!AY$5","v":0},{"$f":"'Population 2016'!AZ62/'Population 2016'!AZ$5","v":0},{"$f":"'Population 2016'!BA62/'Population 2016'!BA$5","v":0},{"$f":"'Population 2016'!BB62/'Population 2016'!BB$5","v":0},{"$f":"'Population 2016'!BC62/'Population 2016'!BC$5","v":0},60]
[null,"Female 16-19",{"$f":"'Population 2016'!C63/'Population 2016'!C$5","v":1.8757698578606001E-3},{"$f":"'Population 2016'!D63/'Population 2016'!D$5","v":1.1712293262130416E-3},{"$f":"'Population 2016'!E63/'Population 2016'!E$5","v":5.2503527580759332E-4},{"$f":"'Population 2016'!F63/'Population 2016'!F$5","v":2.286891578676281E-3},{"$f":"'Population 2016'!G63/'Population 2016'!G$5","v":1.9758566556596115E-3},{"$f":"'Population 2016'!H63/'Population 2016'!H$5","v":8.7869188393485363E-3},{"$f":"'Population 2016'!I63/'Population 2016'!I$5","v":1.7691148145046478E-3},{"$f":"'Population 2016'!J63/'Population 2016'!J$5","v":4.9260675219558311E-3},{"$f":"'Population 2016'!K63/'Population 2016'!K$5","v":6.4735623493833577E-3},{"$f":"'Population 2016'!L63/'Population 2016'!L$5","v":2.5018664718123042E-3},{"$f":"'Population 2016'!M63/'Population 2016'!M$5","v":2.5018664718123042E-3},{"$f":"'Population 2016'!N63/'Population 2016'!N$5","v":1.0118870608659311E-2},{"$f":"'Population 2016'!O63/'Population 2016'!O$5","v":8.6188961868814452E-3},{"$f":"'Population 2016'!P63/'Population 2016'!P$5","v":1.2735264284909275E-3},{"$f":"'Population 2016'!Q63/'Population 2016'!Q$5","v":9.7531168846429542E-4},{"$f":"'Population 2016'!R63/'Population 2016'!R$5","v":2.2222813647735135E-3},{"$f":"'Population 2016'!S63/'Population 2016'!S$5","v":3.9799036490835368E-3},{"$f":"'Population 2016'!T63/'Population 2016'!T$5","v":3.4992531514218043E-3},{"$f":"'Population 2016'!U63/'Population 2016'!U$5","v":0},{"$f":"'Population 2016'!V63/'Population 2016'!V$5","v":3.6177406675265795E-3},{"$f":"'Population 2016'!W63/'Population 2016'!W$5","v":5.9779446852182326E-3},{"$f":"'Population 2016'!X63/'Population 2016'!X$5","v":5.9779446852182326E-3},{"$f":"'Population 2016'!Y63/'Population 2016'!Y$5","v":4.2447655840129727E-3},{"$f":"'Population 2016'!Z63/'Population 2016'!Z$5","v":1.1651564221044828E-2},{"$f":"'Population 2016'!AA63/'Population 2016'!AA$5","v":8.525356491050436E-3},{"$f":"'Population 2016'!AB63/'Population 2016'!AB$5","v":1.0132749250278906E-3},{"$f":"'Population 2016'!AC63/'Population 2016'!AC$5","v":9.141100614164465E-3},{"$f":"'Population 2016'!AD63/'Population 2016'!AD$5","v":2.0432468644162416E-3},{"$f":"'Population 2016'!AE63/'Population 2016'!AE$5","v":2.0688097413731148E-3},{"$f":"'Population 2016'!AF63/'Population 2016'!AF$5","v":1.0375665445113031E-2},{"$f":"'Population 2016'!AG63/'Population 2016'!AG$5","v":2.0688097413731148E-3},{"$f":"'Population 2016'!AH63/'Population 2016'!AH$5","v":7.4194477211298217E-3},{"$f":"'Population 2016'!AI63/'Population 2016'!AI$5","v":3.4328790795345177E-3},{"$f":"'Population 2016'!AJ63/'Population 2016'!AJ$5","v":2.8580988762791737E-3},{"$f":"'Population 2016'!AK63/'Population 2016'!AK$5","v":2.0114906402826145E-4},{"$f":"'Population 2016'!AL63/'Population 2016'!AL$5","v":1.1980986502545183E-2},{"$f":"'Population 2016'!AM63/'Population 2016'!AM$5","v":9.196243267618285E-3},{"$f":"'Population 2016'!AN63/'Population 2016'!AN$5","v":0},{"$f":"'Population 2016'!AO63/'Population 2016'!AO$5","v":0},{"$f":"'Population 2016'!AP63/'Population 2016'!AP$5","v":1.45047001569361E-3},{"$f":"'Population 2016'!AQ63/'Population 2016'!AQ$5","v":7.1655614621581633E-3},{"$f":"'Population 2016'!AR63/'Population 2016'!AR$5","v":5.378295186022581E-3},{"$f":"'Population 2016'!AS63/'Population 2016'!AS$5","v":1.7691148145046478E-3},{"$f":"'Population 2016'!AT63/'Population 2016'!AT$5","v":0},{"$f":"'Population 2016'!AU63/'Population 2016'!AU$5","v":0},{"$f":"'Population 2016'!AV63/'Population 2016'!AV$5","v":5.1631295533734562E-3},{"$f":"'Population 2016'!AW63/'Population 2016'!AW$5","v":5.5486911953139297E-3},{"$f":"'Population 2016'!AX63/'Population 2016'!AX$5","v":4.089091071725213E-3},{"$f":"'Population 2016'!AY63/'Population 2016'!AY$5","v":5.344083718368471E-3},{"$f":"'Population 2016'!AZ63/'Population 2016'!AZ$5","v":4.786257917172426E-3},{"$f":"'Population 2016'!BA63/'Population 2016'!BA$5","v":1.0864284171885123E-2},{"$f":"'Population 2016'!BB63/'Population 2016'!BB$5","v":4.9646810244229162E-3},{"$f":"'Population 2016'!BC63/'Population 2016'!BC$5","v":0},61]
[null,"Female 20-24",{"$f":"'Population 2016'!C64/'Population 2016'!C$5","v":3.9968720132070555E-3},{"$f":"'Population 2016'!D64/'Population 2016'!D$5","v":2.4011423764952124E-3},{"$f":"'Population 2016'!E64/'Population 2016'!E$5","v":9.3756299251355948E-4},{"$f":"'Population 2016'!F64/'Population 2016'!F$5","v":3.2964202935874326E-3},{"$f":"'Population 2016'!G64/'Population 2016'!G$5","v":2.8149190710767065E-3},{"$f":"'Population 2016'!H64/'Population 2016'!H$5","v":1.315443901521661E-2},{"$f":"'Population 2016'!I64/'Population 2016'!I$5","v":2.271585294363956E-3},{"$f":"'Population 2016'!J64/'Population 2016'!J$5","v":7.9364421187066176E-3},{"$f":"'Population 2016'!K64/'Population 2016'!K$5","v":1.0442753862873884E-2},{"$f":"'Population 2016'!L64/'Population 2016'!L$5","v":3.9871014884119895E-3},{"$f":"'Population 2016'!M64/'Population 2016'!M$5","v":3.9871014884119895E-3},{"$f":"'Population 2016'!N64/'Population 2016'!N$5","v":1.7231817779956759E-2},{"$f":"'Population 2016'!O64/'Population 2016'!O$5","v":1.3502937359447598E-2},{"$f":"'Population 2016'!P64/'Population 2016'!P$5","v":1.9948157331229573E-3},{"$f":"'Population 2016'!Q64/'Population 2016'!Q$5","v":1.41008918814115E-3},{"$f":"'Population 2016'!R64/'Population 2016'!R$5","v":3.0473199552882311E-3},{"$f":"'Population 2016'!S64/'Population 2016'!S$5","v":5.5272026282016202E-3},{"$f":"'Population 2016'!T64/'Population 2016'!T$5","v":5.5280754572993394E-3},{"$f":"'Population 2016'!U64/'Population 2016'!U$5","v":0},{"$f":"'Population 2016'!V64/'Population 2016'!V$5","v":5.922714679326215E-3},{"$f":"'Population 2016'!W64/'Population 2016'!W$5","v":7.3474136973048585E-3},{"$f":"'Population 2016'!X64/'Population 2016'!X$5","v":7.3474136973048585E-3},{"$f":"'Population 2016'!Y64/'Population 2016'!Y$5","v":6.887807824994833E-3},{"$f":"'Population 2016'!Z64/'Population 2016'!Z$5","v":1.9838051194096592E-2},{"$f":"'Population 2016'!AA64/'Population 2016'!AA$5","v":1.3587951290131196E-2},{"$f":"'Population 2016'!AB64/'Population 2016'!AB$5","v":2.081819391420939E-3},{"$f":"'Population 2016'!AC64/'Population 2016'!AC$5","v":1.548236423324597E-2},{"$f":"'Population 2016'!AD64/'Population 2016'!AD$5","v":3.0183482824072353E-3},{"$f":"'Population 2016'!AE64/'Population 2016'!AE$5","v":3.0955143276625015E-3},{"$f":"'Population 2016'!AF64/'Population 2016'!AF$5","v":1.7086669984466663E-2},{"$f":"'Population 2016'!AG64/'Population 2016'!AG$5","v":3.0955143276625015E-3},{"$f":"'Population 2016'!AH64/'Population 2016'!AH$5","v":1.0185486193028245E-2},{"$f":"'Population 2016'!AI64/'Population 2016'!AI$5","v":5.1910162743897103E-3},{"$f":"'Population 2016'!AJ64/'Population 2016'!AJ$5","v":4.5450743105707831E-3},{"$f":"'Population 2016'!AK64/'Population 2016'!AK$5","v":4.4001357756182189E-4},{"$f":"'Population 2016'!AL64/'Population 2016'!AL$5","v":1.7257586775686846E-2},{"$f":"'Population 2016'!AM64/'Population 2016'!AM$5","v":1.2401708132463572E-2},{"$f":"'Population 2016'!AN64/'Population 2016'!AN$5","v":0},{"$f":"'Population 2016'!AO64/'Population 2016'!AO$5","v":0},{"$f":"'Population 2016'!AP64/'Population 2016'!AP$5","v":2.5838974050061032E-3},{"$f":"'Population 2016'!AQ64/'Population 2016'!AQ$5","v":1.3187099249191647E-2},{"$f":"'Population 2016'!AR64/'Population 2016'!AR$5","v":8.3817818771814104E-3},{"$f":"'Population 2016'!AS64/'Population 2016'!AS$5","v":2.271585294363956E-3},{"$f":"'Population 2016'!AT64/'Population 2016'!AT$5","v":0},{"$f":"'Population 2016'!AU64/'Population 2016'!AU$5","v":0},{"$f":"'Population 2016'!AV64/'Population 2016'!AV$5","v":7.8977932636469222E-3},{"$f":"'Population 2016'!AW64/'Population 2016'!AW$5","v":7.8520654097260362E-3},{"$f":"'Population 2016'!AX64/'Population 2016'!AX$5","v":6.5808809435577648E-3},{"$f":"'Population 2016'!AY64/'Population 2016'!AY$5","v":7.707842477280377E-3},{"$f":"'Population 2016'!AZ64/'Population 2016'!AZ$5","v":8.0250358106436718E-3},{"$f":"'Population 2016'!BA64/'Population 2016'!BA$5","v":1.6964478514359751E-2},{"$f":"'Population 2016'!BB64/'Population 2016'!BB$5","v":6.7323560484177239E-3},{"$f":"'Population 2016'!BC64/'Population 2016'!BC$5","v":0},62]
[null,"Female 25-29",{"$f":"'Population 2016'!C65/'Population 2016'!C$5","v":5.2695333064149289E-3},{"$f":"'Population 2016'!D65/'Population 2016'!D$5","v":3.1029019101552185E-3},{"$f":"'Population 2016'!E65/'Population 2016'!E$5","v":1.1156999610911359E-3},{"$f":"'Population 2016'!F65/'Population 2016'!F$5","v":3.0800927118207573E-3},{"$f":"'Population 2016'!G65/'Population 2016'!G$5","v":2.3277215395441997E-3},{"$f":"'Population 2016'!H65/'Population 2016'!H$5","v":1.3173893448071254E-2},{"$f":"'Population 2016'!I65/'Population 2016'!I$5","v":2.1354995394020602E-3},{"$f":"'Population 2016'!J65/'Population 2016'!J$5","v":8.4091455677831866E-3},{"$f":"'Population 2016'!K65/'Population 2016'!K$5","v":1.0111987903416339E-2},{"$f":"'Population 2016'!L65/'Population 2016'!L$5","v":4.0029863548996869E-3},{"$f":"'Population 2016'!M65/'Population 2016'!M$5","v":4.0029863548996869E-3},{"$f":"'Population 2016'!N65/'Population 2016'!N$5","v":2.2447979038908224E-2},{"$f":"'Population 2016'!O65/'Population 2016'!O$5","v":1.3889301671273318E-2},{"$f":"'Population 2016'!P65/'Population 2016'!P$5","v":2.1638679138960893E-3},{"$f":"'Population 2016'!Q65/'Population 2016'!Q$5","v":1.6098518231278129E-3},{"$f":"'Population 2016'!R65/'Population 2016'!R$5","v":2.9275562889231914E-3},{"$f":"'Population 2016'!S65/'Population 2016'!S$5","v":7.1009813388505328E-3},{"$f":"'Population 2016'!T65/'Population 2016'!T$5","v":8.3246860211351175E-3},{"$f":"'Population 2016'!U65/'Population 2016'!U$5","v":0},{"$f":"'Population 2016'!V65/'Population 2016'!V$5","v":6.8080689355141544E-3},{"$f":"'Population 2016'!W65/'Population 2016'!W$5","v":9.01430915354395E-3},{"$f":"'Population 2016'!X65/'Population 2016'!X$5","v":9.01430915354395E-3},{"$f":"'Population 2016'!Y65/'Population 2016'!Y$5","v":7.5753962576111666E-3},{"$f":"'Population 2016'!Z65/'Population 2016'!Z$5","v":2.7408954611359646E-2},{"$f":"'Population 2016'!AA65/'Population 2016'!AA$5","v":1.6648761557764406E-2},{"$f":"'Population 2016'!AB65/'Population 2016'!AB$5","v":2.6447499053253226E-3},{"$f":"'Population 2016'!AC65/'Population 2016'!AC$5","v":1.9863638526253512E-2},{"$f":"'Population 2016'!AD65/'Population 2016'!AD$5","v":2.8545907923629463E-3},{"$f":"'Population 2016'!AE65/'Population 2016'!AE$5","v":3.0544461442109263E-3},{"$f":"'Population 2016'!AF65/'Population 2016'!AF$5","v":1.7237479075238656E-2},{"$f":"'Population 2016'!AG65/'Population 2016'!AG$5","v":3.0544461442109263E-3},{"$f":"'Population 2016'!AH65/'Population 2016'!AH$5","v":1.0874673750499242E-2},{"$f":"'Population 2016'!AI65/'Population 2016'!AI$5","v":6.9491534692449029E-3},{"$f":"'Population 2016'!AJ65/'Population 2016'!AJ$5","v":4.6984357136882022E-3},{"$f":"'Population 2016'!AK65/'Population 2016'!AK$5","v":2.8915177954062581E-4},{"$f":"'Population 2016'!AL65/'Population 2016'!AL$5","v":1.7293059718699561E-2},{"$f":"'Population 2016'!AM65/'Population 2016'!AM$5","v":1.3470196420745335E-2},{"$f":"'Population 2016'!AN65/'Population 2016'!AN$5","v":0},{"$f":"'Population 2016'!AO65/'Population 2016'!AO$5","v":0},{"$f":"'Population 2016'!AP65/'Population 2016'!AP$5","v":3.1783523294706974E-3},{"$f":"'Population 2016'!AQ65/'Population 2016'!AQ$5","v":1.4968213952978572E-2},{"$f":"'Population 2016'!AR65/'Population 2016'!AR$5","v":1.0053727257477139E-2},{"$f":"'Population 2016'!AS65/'Population 2016'!AS$5","v":2.1354995394020602E-3},{"$f":"'Population 2016'!AT65/'Population 2016'!AT$5","v":0},{"$f":"'Population 2016'!AU65/'Population 2016'!AU$5","v":0},{"$f":"'Population 2016'!AV65/'Population 2016'!AV$5","v":7.5071270193221417E-3},{"$f":"'Population 2016'!AW65/'Population 2016'!AW$5","v":8.1418939532613335E-3},{"$f":"'Population 2016'!AX65/'Population 2016'!AX$5","v":7.4881480250967962E-3},{"$f":"'Population 2016'!AY65/'Population 2016'!AY$5","v":9.563660842691472E-3},{"$f":"'Population 2016'!AZ65/'Population 2016'!AZ$5","v":1.0047114726372167E-2},{"$f":"'Population 2016'!BA65/'Population 2016'!BA$5","v":1.7625782768300582E-2},{"$f":"'Population 2016'!BB65/'Population 2016'!BB$5","v":7.1190349599165878E-3},{"$f":"'Population 2016'!BC65/'Population 2016'!BC$5","v":0},63]
[null,"Female 30-34",{"$f":"'Population 2016'!C66/'Population 2016'!C$5","v":4.6306471150455147E-3},{"$f":"'Population 2016'!D66/'Population 2016'!D$5","v":2.7899220484531948E-3},{"$f":"'Population 2016'!E66/'Population 2016'!E$5","v":1.1016365162034325E-3},{"$f":"'Population 2016'!F66/'Population 2016'!F$5","v":3.4200360545969611E-3},{"$f":"'Population 2016'!G66/'Population 2016'!G$5","v":2.7201862177231636E-3},{"$f":"'Population 2016'!H66/'Population 2016'!H$5","v":1.169211414564237E-2},{"$f":"'Population 2016'!I66/'Population 2016'!I$5","v":2.1669039443932667E-3},{"$f":"'Population 2016'!J66/'Population 2016'!J$5","v":7.3559291110687243E-3},{"$f":"'Population 2016'!K66/'Population 2016'!K$5","v":9.6630912441525302E-3},{"$f":"'Population 2016'!L66/'Population 2016'!L$5","v":3.4152462948548916E-3},{"$f":"'Population 2016'!M66/'Population 2016'!M$5","v":3.4152462948548916E-3},{"$f":"'Population 2016'!N66/'Population 2016'!N$5","v":1.7995354481960442E-2},{"$f":"'Population 2016'!O66/'Population 2016'!O$5","v":1.2343844423970438E-2},{"$f":"'Population 2016'!P66/'Population 2016'!P$5","v":1.8595739885044517E-3},{"$f":"'Population 2016'!Q66/'Population 2016'!Q$5","v":1.4570921610791883E-3},{"$f":"'Population 2016'!R66/'Population 2016'!R$5","v":2.8477138446798317E-3},{"$f":"'Population 2016'!S66/'Population 2016'!S$5","v":6.7858725336336721E-3},{"$f":"'Population 2016'!T66/'Population 2016'!T$5","v":8.1967213114754103E-3},{"$f":"'Population 2016'!U66/'Population 2016'!U$5","v":0},{"$f":"'Population 2016'!V66/'Population 2016'!V$5","v":6.6706863785194739E-3},{"$f":"'Population 2016'!W66/'Population 2016'!W$5","v":7.9520718529994313E-3},{"$f":"'Population 2016'!X66/'Population 2016'!X$5","v":7.9520718529994313E-3},{"$f":"'Population 2016'!Y66/'Population 2016'!Y$5","v":6.9990938140888064E-3},{"$f":"'Population 2016'!Z66/'Population 2016'!Z$5","v":2.3208274372172526E-2},{"$f":"'Population 2016'!AA66/'Population 2016'!AA$5","v":1.514393515095103E-2},{"$f":"'Population 2016'!AB66/'Population 2016'!AB$5","v":2.403201539359078E-3},{"$f":"'Population 2016'!AC66/'Population 2016'!AC$5","v":1.7261351906516266E-2},{"$f":"'Population 2016'!AD66/'Population 2016'!AD$5","v":3.1858275335888944E-3},{"$f":"'Population 2016'!AE66/'Population 2016'!AE$5","v":3.3624575200977423E-3},{"$f":"'Population 2016'!AF66/'Population 2016'!AF$5","v":1.6860456348308676E-2},{"$f":"'Population 2016'!AG66/'Population 2016'!AG$5","v":3.3624575200977423E-3},{"$f":"'Population 2016'!AH66/'Population 2016'!AH$5","v":1.1340943499623826E-2},{"$f":"'Population 2016'!AI66/'Population 2016'!AI$5","v":6.9013037011112083E-3},{"$f":"'Population 2016'!AJ66/'Population 2016'!AJ$5","v":4.1268159384323672E-3},{"$f":"'Population 2016'!AK66/'Population 2016'!AK$5","v":4.1486994455828922E-4},{"$f":"'Population 2016'!AL66/'Population 2016'!AL$5","v":1.5013923130132492E-2},{"$f":"'Population 2016'!AM66/'Population 2016'!AM$5","v":1.3618698182845512E-2},{"$f":"'Population 2016'!AN66/'Population 2016'!AN$5","v":0},{"$f":"'Population 2016'!AO66/'Population 2016'!AO$5","v":0},{"$f":"'Population 2016'!AP66/'Population 2016'!AP$5","v":2.8533836374300525E-3},{"$f":"'Population 2016'!AQ66/'Population 2016'!AQ$5","v":1.2769222337918561E-2},{"$f":"'Population 2016'!AR66/'Population 2016'!AR$5","v":9.187345434163335E-3},{"$f":"'Population 2016'!AS66/'Population 2016'!AS$5","v":2.1669039443932667E-3},{"$f":"'Population 2016'!AT66/'Population 2016'!AT$5","v":0},{"$f":"'Population 2016'!AU66/'Population 2016'!AU$5","v":0},{"$f":"'Population 2016'!AV66/'Population 2016'!AV$5","v":7.0425509449899698E-3},{"$f":"'Population 2016'!AW66/'Population 2016'!AW$5","v":8.9427359814509728E-3},{"$f":"'Population 2016'!AX66/'Population 2016'!AX$5","v":6.1080797883895374E-3},{"$f":"'Population 2016'!AY66/'Population 2016'!AY$5","v":8.2066032251155111E-3},{"$f":"'Population 2016'!AZ66/'Population 2016'!AZ$5","v":8.4306021365579218E-3},{"$f":"'Population 2016'!BA66/'Population 2016'!BA$5","v":1.8071150939321962E-2},{"$f":"'Population 2016'!BB66/'Population 2016'!BB$5","v":7.6300035215400869E-3},{"$f":"'Population 2016'!BC66/'Population 2016'!BC$5","v":0},64]
[null,"Female 35-39",{"$f":"'Population 2016'!C67/'Population 2016'!C$5","v":3.3119860160590433E-3},{"$f":"'Population 2016'!D67/'Population 2016'!D$5","v":2.005027239028589E-3},{"$f":"'Population 2016'!E67/'Population 2016'!E$5","v":8.0630417356166112E-4},{"$f":"'Population 2016'!F67/'Population 2016'!F$5","v":3.0697913984032966E-3},{"$f":"'Population 2016'!G67/'Population 2016'!G$5","v":2.3953878633681588E-3},{"$f":"'Population 2016'!H67/'Population 2016'!H$5","v":1.0502151336033176E-2},{"$f":"'Population 2016'!I67/'Population 2016'!I$5","v":2.0098819194372332E-3},{"$f":"'Population 2016'!J67/'Population 2016'!J$5","v":6.4188152558818405E-3},{"$f":"'Population 2016'!K67/'Population 2016'!K$5","v":9.9702310636488219E-3},{"$f":"'Population 2016'!L67/'Population 2016'!L$5","v":2.8672184010293394E-3},{"$f":"'Population 2016'!M67/'Population 2016'!M$5","v":2.8672184010293394E-3},{"$f":"'Population 2016'!N67/'Population 2016'!N$5","v":1.4089261459078451E-2},{"$f":"'Population 2016'!O67/'Population 2016'!O$5","v":1.0847921062799061E-2},{"$f":"'Population 2016'!P67/'Population 2016'!P$5","v":1.7017919531161952E-3},{"$f":"'Population 2016'!Q67/'Population 2016'!Q$5","v":1.7038577690038895E-3},{"$f":"'Population 2016'!R67/'Population 2016'!R$5","v":2.8610209187203916E-3},{"$f":"'Population 2016'!S67/'Population 2016'!S$5","v":5.8228929636292065E-3},{"$f":"'Population 2016'!T67/'Population 2016'!T$5","v":6.5657529210853272E-3},{"$f":"'Population 2016'!U67/'Population 2016'!U$5","v":0},{"$f":"'Population 2016'!V67/'Population 2016'!V$5","v":5.2663313514627426E-3},{"$f":"'Population 2016'!W67/'Population 2016'!W$5","v":7.2264820661659445E-3},{"$f":"'Population 2016'!X67/'Population 2016'!X$5","v":7.2264820661659445E-3},{"$f":"'Population 2016'!Y67/'Population 2016'!Y$5","v":5.818667429770592E-3},{"$f":"'Population 2016'!Z67/'Population 2016'!Z$5","v":1.9237954017069861E-2},{"$f":"'Population 2016'!AA67/'Population 2016'!AA$5","v":1.2946822158751545E-2},{"$f":"'Population 2016'!AB67/'Population 2016'!AB$5","v":1.7276849226738175E-3},{"$f":"'Population 2016'!AC67/'Population 2016'!AC$5","v":1.4532881277395894E-2},{"$f":"'Population 2016'!AD67/'Population 2016'!AD$5","v":2.6015110350217723E-3},{"$f":"'Population 2016'!AE67/'Population 2016'!AE$5","v":2.6796989702152999E-3},{"$f":"'Population 2016'!AF67/'Population 2016'!AF$5","v":1.4975342713658779E-2},{"$f":"'Population 2016'!AG67/'Population 2016'!AG$5","v":2.6796989702152999E-3},{"$f":"'Population 2016'!AH67/'Population 2016'!AH$5","v":1.0098176718092567E-2},{"$f":"'Population 2016'!AI67/'Population 2016'!AI$5","v":5.7337693586490502E-3},{"$f":"'Population 2016'!AJ67/'Population 2016'!AJ$5","v":3.9037448066252126E-3},{"$f":"'Population 2016'!AK67/'Population 2016'!AK$5","v":3.0172359604239214E-4},{"$f":"'Population 2016'!AL67/'Population 2016'!AL$5","v":1.4029548961529593E-2},{"$f":"'Population 2016'!AM67/'Population 2016'!AM$5","v":1.2188010474807219E-2},{"$f":"'Population 2016'!AN67/'Population 2016'!AN$5","v":0},{"$f":"'Population 2016'!AO67/'Population 2016'!AO$5","v":0},{"$f":"'Population 2016'!AP67/'Population 2016'!AP$5","v":2.3461154352202654E-3},{"$f":"'Population 2016'!AQ67/'Population 2016'!AQ$5","v":1.1268975722036499E-2},{"$f":"'Population 2016'!AR67/'Population 2016'!AR$5","v":7.8056791785212163E-3},{"$f":"'Population 2016'!AS67/'Population 2016'!AS$5","v":2.0098819194372332E-3},{"$f":"'Population 2016'!AT67/'Population 2016'!AT$5","v":0},{"$f":"'Population 2016'!AU67/'Population 2016'!AU$5","v":0},{"$f":"'Population 2016'!AV67/'Population 2016'!AV$5","v":5.9339034948791046E-3},{"$f":"'Population 2016'!AW67/'Population 2016'!AW$5","v":7.8978278113368723E-3},{"$f":"'Population 2016'!AX67/'Population 2016'!AX$5","v":4.4980001788977346E-3},{"$f":"'Population 2016'!AY67/'Population 2016'!AY$5","v":6.9734708240261926E-3},{"$f":"'Population 2016'!AZ67/'Population 2016'!AZ$5","v":6.7508096944733677E-3},{"$f":"'Population 2016'!BA67/'Population 2016'!BA$5","v":1.4967069747354783E-2},{"$f":"'Population 2016'!BB67/'Population 2016'!BB$5","v":6.539016592668292E-3},{"$f":"'Population 2016'!BC67/'Population 2016'!BC$5","v":0},65]
[null,"Female 40-44",{"$f":"'Population 2016'!C68/'Population 2016'!C$5","v":3.3784301799614624E-3},{"$f":"'Population 2016'!D68/'Population 2016'!D$5","v":2.0270336355545124E-3},{"$f":"'Population 2016'!E68/'Population 2016'!E$5","v":7.8755291371139003E-4},{"$f":"'Population 2016'!F68/'Population 2016'!F$5","v":2.6268349214524853E-3},{"$f":"'Population 2016'!G68/'Population 2016'!G$5","v":2.8149190710767065E-3},{"$f":"'Population 2016'!H68/'Population 2016'!H$5","v":1.192232493442235E-2},{"$f":"'Population 2016'!I68/'Population 2016'!I$5","v":2.439075454317059E-3},{"$f":"'Population 2016'!J68/'Population 2016'!J$5","v":6.4188152558818405E-3},{"$f":"'Population 2016'!K68/'Population 2016'!K$5","v":9.6158389642300238E-3},{"$f":"'Population 2016'!L68/'Population 2016'!L$5","v":2.8989881340047339E-3},{"$f":"'Population 2016'!M68/'Population 2016'!M$5","v":2.8989881340047339E-3},{"$f":"'Population 2016'!N68/'Population 2016'!N$5","v":1.1645944012666672E-2},{"$f":"'Population 2016'!O68/'Population 2016'!O$5","v":1.220514954280223E-2},{"$f":"'Population 2016'!P68/'Population 2016'!P$5","v":1.9835455877380819E-3},{"$f":"'Population 2016'!Q68/'Population 2016'!Q$5","v":1.2455787828580158E-3},{"$f":"'Population 2016'!R68/'Population 2016'!R$5","v":2.6747218821525521E-3},{"$f":"'Population 2016'!S68/'Population 2016'!S$5","v":5.3745028430405087E-3},{"$f":"'Population 2016'!T68/'Population 2016'!T$5","v":5.0836889201174486E-3},{"$f":"'Population 2016'!U68/'Population 2016'!U$5","v":0},{"$f":"'Population 2016'!V68/'Population 2016'!V$5","v":6.0448325077659308E-3},{"$f":"'Population 2016'!W68/'Population 2016'!W$5","v":7.4356611038116343E-3},{"$f":"'Population 2016'!X68/'Population 2016'!X$5","v":7.4356611038116343E-3},{"$f":"'Population 2016'!Y68/'Population 2016'!Y$5","v":6.2240663900414933E-3},{"$f":"'Population 2016'!Z68/'Population 2016'!Z$5","v":1.7224724778012439E-2},{"$f":"'Population 2016'!AA68/'Population 2016'!AA$5","v":1.2243241070532842E-2},{"$f":"'Population 2016'!AB68/'Population 2016'!AB$5","v":1.7542961833311157E-3},{"$f":"'Population 2016'!AC68/'Population 2016'!AC$5","v":1.3306207218966491E-2},{"$f":"'Population 2016'!AD68/'Population 2016'!AD$5","v":2.7317726748297294E-3},{"$f":"'Population 2016'!AE68/'Population 2016'!AE$5","v":2.7002330619410875E-3},{"$f":"'Population 2016'!AF68/'Population 2016'!AF$5","v":1.5065828168121975E-2},{"$f":"'Population 2016'!AG68/'Population 2016'!AG$5","v":2.7002330619410875E-3},{"$f":"'Population 2016'!AH68/'Population 2016'!AH$5","v":1.0334098065259189E-2},{"$f":"'Population 2016'!AI68/'Population 2016'!AI$5","v":4.8957148481931926E-3},{"$f":"'Population 2016'!AJ68/'Population 2016'!AJ$5","v":3.959512589577001E-3},{"$f":"'Population 2016'!AK68/'Population 2016'!AK$5","v":3.5201086204945752E-4},{"$f":"'Population 2016'!AL68/'Population 2016'!AL$5","v":1.6290949078590307E-2},{"$f":"'Population 2016'!AM68/'Population 2016'!AM$5","v":1.2550209894563749E-2},{"$f":"'Population 2016'!AN68/'Population 2016'!AN$5","v":0},{"$f":"'Population 2016'!AO68/'Population 2016'!AO$5","v":0},{"$f":"'Population 2016'!AP68/'Population 2016'!AP$5","v":1.9260339552652854E-3},{"$f":"'Population 2016'!AQ68/'Population 2016'!AQ$5","v":1.017975557625911E-2},{"$f":"'Population 2016'!AR68/'Population 2016'!AR$5","v":7.4993600715383213E-3},{"$f":"'Population 2016'!AS68/'Population 2016'!AS$5","v":2.439075454317059E-3},{"$f":"'Population 2016'!AT68/'Population 2016'!AT$5","v":0},{"$f":"'Population 2016'!AU68/'Population 2016'!AU$5","v":0},{"$f":"'Population 2016'!AV68/'Population 2016'!AV$5","v":6.4195966634991025E-3},{"$f":"'Population 2016'!AW68/'Population 2016'!AW$5","v":8.0007932149612545E-3},{"$f":"'Population 2016'!AX68/'Population 2016'!AX$5","v":4.6896763228848537E-3},{"$f":"'Population 2016'!AY68/'Population 2016'!AY$5","v":6.4594106667482639E-3},{"$f":"'Population 2016'!AZ68/'Population 2016'!AZ$5","v":5.6002669259223037E-3},{"$f":"'Population 2016'!BA68/'Population 2016'!BA$5","v":1.4913085726624919E-2},{"$f":"'Population 2016'!BB68/'Population 2016'!BB$5","v":6.9464104458545946E-3},{"$f":"'Population 2016'!BC68/'Population 2016'!BC$5","v":0},66]
[null,"Female 45-49",{"$f":"'Population 2016'!C69/'Population 2016'!C$5","v":3.0359871813874562E-3},{"$f":"'Population 2016'!D69/'Population 2016'!D$5","v":1.9316725839421769E-3},{"$f":"'Population 2016'!E69/'Population 2016'!E$5","v":9.1881173266328828E-4},{"$f":"'Population 2016'!F69/'Population 2016'!F$5","v":3.1315992789080608E-3},{"$f":"'Population 2016'!G69/'Population 2016'!G$5","v":3.2344502787852543E-3},{"$f":"'Population 2016'!H69/'Population 2016'!H$5","v":1.4211463200319052E-2},{"$f":"'Population 2016'!I69/'Population 2016'!I$5","v":2.3762666443346452E-3},{"$f":"'Population 2016'!J69/'Population 2016'!J$5","v":8.1437681928630077E-3},{"$f":"'Population 2016'!K69/'Population 2016'!K$5","v":1.1151538061711477E-2},{"$f":"'Population 2016'!L69/'Population 2016'!L$5","v":3.6376344256826522E-3},{"$f":"'Population 2016'!M69/'Population 2016'!M$5","v":3.6376344256826522E-3},{"$f":"'Population 2016'!N69/'Population 2016'!N$5","v":1.3237315244211185E-2},{"$f":"'Population 2016'!O69/'Population 2016'!O$5","v":1.5127648824560882E-2},{"$f":"'Population 2016'!P69/'Population 2016'!P$5","v":2.378000676208723E-3},{"$f":"'Population 2016'!Q69/'Population 2016'!Q$5","v":1.7978637148799662E-3},{"$f":"'Population 2016'!R69/'Population 2016'!R$5","v":3.2735402139777506E-3},{"$f":"'Population 2016'!S69/'Population 2016'!S$5","v":6.0197256346750322E-3},{"$f":"'Population 2016'!T69/'Population 2016'!T$5","v":5.4187237963174081E-3},{"$f":"'Population 2016'!U69/'Population 2016'!U$5","v":0},{"$f":"'Population 2016'!V69/'Population 2016'!V$5","v":6.0219354149334842E-3},{"$f":"'Population 2016'!W69/'Population 2016'!W$5","v":9.0208459984703789E-3},{"$f":"'Population 2016'!X69/'Population 2016'!X$5","v":9.0208459984703789E-3},{"$f":"'Population 2016'!Y69/'Population 2016'!Y$5","v":7.038838810193797E-3},{"$f":"'Population 2016'!Z69/'Population 2016'!Z$5","v":2.0217467473765106E-2},{"$f":"'Population 2016'!AA69/'Population 2016'!AA$5","v":1.4555292238616967E-2},{"$f":"'Population 2016'!AB69/'Population 2016'!AB$5","v":1.6744624013592213E-3},{"$f":"'Population 2016'!AC69/'Population 2016'!AC$5","v":1.6027437781974716E-2},{"$f":"'Population 2016'!AD69/'Population 2016'!AD$5","v":3.159775205627303E-3},{"$f":"'Population 2016'!AE69/'Population 2016'!AE$5","v":3.1314489881826301E-3},{"$f":"'Population 2016'!AF69/'Population 2016'!AF$5","v":2.0253660890678489E-2},{"$f":"'Population 2016'!AG69/'Population 2016'!AG$5","v":3.1314489881826301E-3},{"$f":"'Population 2016'!AH69/'Population 2016'!AH$5","v":1.191124155931007E-2},{"$f":"'Population 2016'!AI69/'Population 2016'!AI$5","v":5.240233178755797E-3},{"$f":"'Population 2016'!AJ69/'Population 2016'!AJ$5","v":4.3498870702395227E-3},{"$f":"'Population 2016'!AK69/'Population 2016'!AK$5","v":3.5201086204945752E-4},{"$f":"'Population 2016'!AL69/'Population 2016'!AL$5","v":1.8818396268246395E-2},{"$f":"'Population 2016'!AM69/'Population 2016'!AM$5","v":1.4430024883100138E-2},{"$f":"'Population 2016'!AN69/'Population 2016'!AN$5","v":0},{"$f":"'Population 2016'!AO69/'Population 2016'!AO$5","v":0},{"$f":"'Population 2016'!AP69/'Population 2016'!AP$5","v":1.8943296926271736E-3},{"$f":"'Population 2016'!AQ69/'Population 2016'!AQ$5","v":1.2858278073107908E-2},{"$f":"'Population 2016'!AR69/'Population 2016'!AR$5","v":8.732210935569841E-3},{"$f":"'Population 2016'!AS69/'Population 2016'!AS$5","v":2.3762666443346452E-3},{"$f":"'Population 2016'!AT69/'Population 2016'!AT$5","v":0},{"$f":"'Population 2016'!AU69/'Population 2016'!AU$5","v":0},{"$f":"'Population 2016'!AV69/'Population 2016'!AV$5","v":7.7499736036321402E-3},{"$f":"'Population 2016'!AW69/'Population 2016'!AW$5","v":9.2592592592592587E-3},{"$f":"'Population 2016'!AX69/'Population 2016'!AX$5","v":6.5169888955620581E-3},{"$f":"'Population 2016'!AY69/'Population 2016'!AY$5","v":7.5732076741837767E-3},{"$f":"'Population 2016'!AZ69/'Population 2016'!AZ$5","v":6.2992216578170749E-3},{"$f":"'Population 2016'!BA69/'Population 2016'!BA$5","v":1.8557007125890736E-2},{"$f":"'Population 2016'!BB69/'Population 2016'!BB$5","v":7.1742748044164254E-3},{"$f":"'Population 2016'!BC69/'Population 2016'!BC$5","v":0},67]
[null,"Female 50-54",{"$f":"'Population 2016'!C70/'Population 2016'!C$5","v":3.2046531359089816E-3},{"$f":"'Population 2016'!D70/'Population 2016'!D$5","v":1.9854659976722123E-3},{"$f":"'Population 2016'!E70/'Population 2016'!E$5","v":8.6724576807504258E-4},{"$f":"'Population 2016'!F70/'Population 2016'!F$5","v":2.8740664434715427E-3},{"$f":"'Population 2016'!G70/'Population 2016'!G$5","v":3.1532506901965031E-3},{"$f":"'Population 2016'!H70/'Population 2016'!H$5","v":1.4474098043856777E-2},{"$f":"'Population 2016'!I70/'Population 2016'!I$5","v":2.3029896993551628E-3},{"$f":"'Population 2016'!J70/'Population 2016'!J$5","v":7.5052038844613256E-3},{"$f":"'Population 2016'!K70/'Population 2016'!K$5","v":1.0797145962292681E-2},{"$f":"'Population 2016'!L70/'Population 2016'!L$5","v":3.7567709243403811E-3},{"$f":"'Population 2016'!M70/'Population 2016'!M$5","v":3.7567709243403811E-3},{"$f":"'Population 2016'!N70/'Population 2016'!N$5","v":1.4997468273040725E-2},{"$f":"'Population 2016'!O70/'Population 2016'!O$5","v":1.5514013136386602E-2},{"$f":"'Population 2016'!P70/'Population 2016'!P$5","v":2.3892708215935985E-3},{"$f":"'Population 2016'!Q70/'Population 2016'!Q$5","v":1.4688429043136979E-3},{"$f":"'Population 2016'!R70/'Population 2016'!R$5","v":3.4332251024644703E-3},{"$f":"'Population 2016'!S70/'Population 2016'!S$5","v":5.7893519703568234E-3},{"$f":"'Population 2016'!T70/'Population 2016'!T$5","v":4.8696388603230297E-3},{"$f":"'Population 2016'!U70/'Population 2016'!U$5","v":0},{"$f":"'Population 2016'!V70/'Population 2016'!V$5","v":6.4111859930850784E-3},{"$f":"'Population 2016'!W70/'Population 2016'!W$5","v":9.040456533249662E-3},{"$f":"'Population 2016'!X70/'Population 2016'!X$5","v":9.040456533249662E-3},{"$f":"'Population 2016'!Y70/'Population 2016'!Y$5","v":6.9355018203208219E-3},{"$f":"'Population 2016'!Z70/'Population 2016'!Z$5","v":2.1208595714531837E-2},{"$f":"'Population 2016'!AA70/'Population 2016'!AA$5","v":1.4898778001231764E-2},{"$f":"'Population 2016'!AB70/'Population 2016'!AB$5","v":1.7174498224210106E-3},{"$f":"'Population 2016'!AC70/'Population 2016'!AC$5","v":1.6512522211488537E-2},{"$f":"'Population 2016'!AD70/'Population 2016'!AD$5","v":2.9588001042093119E-3},{"$f":"'Population 2016'!AE70/'Population 2016'!AE$5","v":2.8850398874731772E-3},{"$f":"'Population 2016'!AF70/'Population 2016'!AF$5","v":1.9952042709134508E-2},{"$f":"'Population 2016'!AG70/'Population 2016'!AG$5","v":2.8850398874731772E-3},{"$f":"'Population 2016'!AH70/'Population 2016'!AH$5","v":1.2000408682648634E-2},{"$f":"'Population 2016'!AI70/'Population 2016'!AI$5","v":4.8847777583340621E-3},{"$f":"'Population 2016'!AJ70/'Population 2016'!AJ$5","v":4.4195967989292583E-3},{"$f":"'Population 2016'!AK70/'Population 2016'!AK$5","v":3.3943904554769119E-4},{"$f":"'Population 2016'!AL70/'Population 2016'!AL$5","v":1.9527855128500735E-2},{"$f":"'Population 2016'!AM70/'Population 2016'!AM$5","v":1.4640100546558924E-2},{"$f":"'Population 2016'!AN70/'Population 2016'!AN$5","v":0},{"$f":"'Population 2016'!AO70/'Population 2016'!AO$5","v":0},{"$f":"'Population 2016'!AP70/'Population 2016'!AP$5","v":2.0528510058177322E-3},{"$f":"'Population 2016'!AQ70/'Population 2016'!AQ$5","v":1.231709322080342E-2},{"$f":"'Population 2016'!AR70/'Population 2016'!AR$5","v":8.845159144471898E-3},{"$f":"'Population 2016'!AS70/'Population 2016'!AS$5","v":2.3029896993551628E-3},{"$f":"'Population 2016'!AT70/'Population 2016'!AT$5","v":0},{"$f":"'Population 2016'!AU70/'Population 2016'!AU$5","v":0},{"$f":"'Population 2016'!AV70/'Population 2016'!AV$5","v":7.3487488121634463E-3},{"$f":"'Population 2016'!AW70/'Population 2016'!AW$5","v":9.221123924583562E-3},{"$f":"'Population 2016'!AX70/'Population 2016'!AX$5","v":5.7247275004152984E-3},{"$f":"'Population 2016'!AY70/'Population 2016'!AY$5","v":7.9097946819252779E-3},{"$f":"'Population 2016'!AZ70/'Population 2016'!AZ$5","v":6.9147620389918944E-3},{"$f":"'Population 2016'!BA70/'Population 2016'!BA$5","v":1.9137335348736774E-2},{"$f":"'Population 2016'!BB70/'Population 2016'!BB$5","v":7.1673698238539458E-3},{"$f":"'Population 2016'!BC70/'Population 2016'!BC$5","v":0},68]
[null,"Female 55-59",{"$f":"'Population 2016'!C71/'Population 2016'!C$5","v":2.7650994362468247E-3},{"$f":"'Population 2016'!D71/'Population 2016'!D$5","v":1.7116086186829416E-3},{"$f":"'Population 2016'!E71/'Population 2016'!E$5","v":7.4536257904827977E-4},{"$f":"'Population 2016'!F71/'Population 2016'!F$5","v":2.6783414885397888E-3},{"$f":"'Population 2016'!G71/'Population 2016'!G$5","v":3.0179180425485845E-3},{"$f":"'Population 2016'!H71/'Population 2016'!H$5","v":1.2687532626705101E-2},{"$f":"'Population 2016'!I71/'Population 2016'!I$5","v":2.0412863244284396E-3},{"$f":"'Population 2016'!J71/'Population 2016'!J$5","v":6.9246908768234331E-3},{"$f":"'Population 2016'!K71/'Population 2016'!K$5","v":9.8993526437650622E-3},{"$f":"'Population 2016'!L71/'Population 2016'!L$5","v":3.0498943656378568E-3},{"$f":"'Population 2016'!M71/'Population 2016'!M$5","v":3.0498943656378568E-3},{"$f":"'Population 2016'!N71/'Population 2016'!N$5","v":1.3414134269938354E-2},{"$f":"'Population 2016'!O71/'Population 2016'!O$5","v":1.256179352294905E-2},{"$f":"'Population 2016'!P71/'Population 2016'!P$5","v":2.3892708215935985E-3},{"$f":"'Population 2016'!Q71/'Population 2016'!Q$5","v":1.6098518231278129E-3},{"$f":"'Population 2016'!R71/'Population 2016'!R$5","v":2.5948794379091924E-3},{"$f":"'Population 2016'!S71/'Population 2016'!S$5","v":5.3683242390166483E-3},{"$f":"'Population 2016'!T71/'Population 2016'!T$5","v":4.799839927781371E-3},{"$f":"'Population 2016'!U71/'Population 2016'!U$5","v":0},{"$f":"'Population 2016'!V71/'Population 2016'!V$5","v":5.8463910365513924E-3},{"$f":"'Population 2016'!W71/'Population 2016'!W$5","v":7.994561345021212E-3},{"$f":"'Population 2016'!X71/'Population 2016'!X$5","v":7.994561345021212E-3},{"$f":"'Population 2016'!Y71/'Population 2016'!Y$5","v":6.3631738764089599E-3},{"$f":"'Population 2016'!Z71/'Population 2016'!Z$5","v":1.836490941436323E-2},{"$f":"'Population 2016'!AA71/'Population 2016'!AA$5","v":1.323715731980119E-2},{"$f":"'Population 2016'!AB71/'Population 2016'!AB$5","v":1.4799954965558889E-3},{"$f":"'Population 2016'!AC71/'Population 2016'!AC$5","v":1.4524606916124868E-2},{"$f":"'Population 2016'!AD71/'Population 2016'!AD$5","v":2.7503814805165806E-3},{"$f":"'Population 2016'!AE71/'Population 2016'!AE$5","v":2.6488978326266181E-3},{"$f":"'Population 2016'!AF71/'Population 2016'!AF$5","v":1.9047188164502557E-2},{"$f":"'Population 2016'!AG71/'Population 2016'!AG$5","v":2.6488978326266181E-3},{"$f":"'Population 2016'!AH71/'Population 2016'!AH$5","v":1.0924830257377185E-2},{"$f":"'Population 2016'!AI71/'Population 2016'!AI$5","v":4.7043157756584131E-3},{"$f":"'Population 2016'!AJ71/'Population 2016'!AJ$5","v":4.3220031787636285E-3},{"$f":"'Population 2016'!AK71/'Population 2016'!AK$5","v":2.8915177954062581E-4},{"$f":"'Population 2016'!AL71/'Population 2016'!AL$5","v":1.7390610311984533E-2},{"$f":"'Population 2016'!AM71/'Population 2016'!AM$5","v":1.293414127950567E-2},{"$f":"'Population 2016'!AN71/'Population 2016'!AN$5","v":0},{"$f":"'Population 2016'!AO71/'Population 2016'!AO$5","v":0},{"$f":"'Population 2016'!AP71/'Population 2016'!AP$5","v":1.8467732986700062E-3},{"$f":"'Population 2016'!AQ71/'Population 2016'!AQ$5","v":1.132377925138379E-2},{"$f":"'Population 2016'!AR71/'Population 2016'!AR$5","v":7.914840169373303E-3},{"$f":"'Population 2016'!AS71/'Population 2016'!AS$5","v":2.0412863244284396E-3},{"$f":"'Population 2016'!AT71/'Population 2016'!AT$5","v":0},{"$f":"'Population 2016'!AU71/'Population 2016'!AU$5","v":0},{"$f":"'Population 2016'!AV71/'Population 2016'!AV$5","v":7.2220462464364903E-3},{"$f":"'Population 2016'!AW71/'Population 2016'!AW$5","v":8.8092623100860332E-3},{"$f":"'Population 2016'!AX71/'Population 2016'!AX$5","v":5.3158183932427768E-3},{"$f":"'Population 2016'!AY71/'Population 2016'!AY$5","v":7.0499678712401702E-3},{"$f":"'Population 2016'!AZ71/'Population 2016'!AZ$5","v":6.2186836640185008E-3},{"$f":"'Population 2016'!BA71/'Population 2016'!BA$5","v":1.6640574389980567E-2},{"$f":"'Population 2016'!BB71/'Population 2016'!BB$5","v":6.428536903668616E-3},{"$f":"'Population 2016'!BC71/'Population 2016'!BC$5","v":0},69]
[null,"Female 60-64",{"$f":"'Population 2016'!C72/'Population 2016'!C$5","v":2.2488793936203382E-3},{"$f":"'Population 2016'!D72/'Population 2016'!D$5","v":1.3815126707940886E-3},{"$f":"'Population 2016'!E72/'Population 2016'!E$5","v":5.8597687032097467E-4},{"$f":"'Population 2016'!F72/'Population 2016'!F$5","v":2.1529745042492918E-3},{"$f":"'Population 2016'!G72/'Population 2016'!G$5","v":2.7066529529583719E-3},{"$f":"'Population 2016'!H72/'Population 2016'!H$5","v":1.1487842600668584E-2},{"$f":"'Population 2016'!I72/'Population 2016'!I$5","v":1.9470731094548195E-3},{"$f":"'Population 2016'!J72/'Population 2016'!J$5","v":5.2992544554373334E-3},{"$f":"'Population 2016'!K72/'Population 2016'!K$5","v":7.9856353069035577E-3},{"$f":"'Population 2016'!L72/'Population 2016'!L$5","v":2.7401394691277622E-3},{"$f":"'Population 2016'!M72/'Population 2016'!M$5","v":2.7401394691277622E-3},{"$f":"'Population 2016'!N72/'Population 2016'!N$5","v":1.0689513828051535E-2},{"$f":"'Population 2016'!O72/'Population 2016'!O$5","v":1.1402700587471889E-2},{"$f":"'Population 2016'!P72/'Population 2016'!P$5","v":1.8370336977347008E-3},{"$f":"'Population 2016'!Q72/'Population 2016'!Q$5","v":1.1398220937474295E-3},{"$f":"'Population 2016'!R72/'Population 2016'!R$5","v":2.2888167349763133E-3},{"$f":"'Population 2016'!S72/'Population 2016'!S$5","v":4.3470892596443591E-3},{"$f":"'Population 2016'!T72/'Population 2016'!T$5","v":3.5899917637259599E-3},{"$f":"'Population 2016'!U72/'Population 2016'!U$5","v":0},{"$f":"'Population 2016'!V72/'Population 2016'!V$5","v":4.953404416085971E-3},{"$f":"'Population 2016'!W72/'Population 2016'!W$5","v":6.8179292582642064E-3},{"$f":"'Population 2016'!X72/'Population 2016'!X$5","v":6.8179292582642064E-3},{"$f":"'Population 2016'!Y72/'Population 2016'!Y$5","v":5.1191554983227609E-3},{"$f":"'Population 2016'!Z72/'Population 2016'!Z$5","v":1.4135192214997396E-2},{"$f":"'Population 2016'!AA72/'Population 2016'!AA$5","v":1.0681277767036926E-2},{"$f":"'Population 2016'!AB72/'Population 2016'!AB$5","v":1.23230607043796E-3},{"$f":"'Population 2016'!AC72/'Population 2016'!AC$5","v":1.136793809122897E-2},{"$f":"'Population 2016'!AD72/'Population 2016'!AD$5","v":2.5345193345491087E-3},{"$f":"'Population 2016'!AE72/'Population 2016'!AE$5","v":2.4692245300259757E-3},{"$f":"'Population 2016'!AF72/'Population 2016'!AF$5","v":1.5714307258441539E-2},{"$f":"'Population 2016'!AG72/'Population 2016'!AG$5","v":2.4692245300259757E-3},{"$f":"'Population 2016'!AH72/'Population 2016'!AH$5","v":9.4479997770821923E-3},{"$f":"'Population 2016'!AI72/'Population 2016'!AI$5","v":3.62701242453408E-3},{"$f":"'Population 2016'!AJ72/'Population 2016'!AJ$5","v":3.2345314112037474E-3},{"$f":"'Population 2016'!AK72/'Population 2016'!AK$5","v":4.651572105653546E-4},{"$f":"'Population 2016'!AL72/'Population 2016'!AL$5","v":1.5625831397101862E-2},{"$f":"'Population 2016'!AM72/'Population 2016'!AM$5","v":1.1086924238747369E-2},{"$f":"'Population 2016'!AN72/'Population 2016'!AN$5","v":0},{"$f":"'Population 2016'!AO72/'Population 2016'!AO$5","v":0},{"$f":"'Population 2016'!AP72/'Population 2016'!AP$5","v":1.6803259198199198E-3},{"$f":"'Population 2016'!AQ72/'Population 2016'!AQ$5","v":8.6247054310297586E-3},{"$f":"'Population 2016'!AR72/'Population 2016'!AR$5","v":6.5077772750431464E-3},{"$f":"'Population 2016'!AS72/'Population 2016'!AS$5","v":1.9470731094548195E-3},{"$f":"'Population 2016'!AT72/'Population 2016'!AT$5","v":0},{"$f":"'Population 2016'!AU72/'Population 2016'!AU$5","v":0},{"$f":"'Population 2016'!AV72/'Population 2016'!AV$5","v":6.6518847006651885E-3},{"$f":"'Population 2016'!AW72/'Population 2016'!AW$5","v":7.7224052718286654E-3},{"$f":"'Population 2016'!AX72/'Population 2016'!AX$5","v":3.8463012893415285E-3},{"$f":"'Population 2016'!AY72/'Population 2016'!AY$5","v":5.8703834032006368E-3},{"$f":"'Population 2016'!AZ72/'Population 2016'!AZ$5","v":5.0365009693322822E-3},{"$f":"'Population 2016'!BA72/'Population 2016'!BA$5","v":1.4211293457136688E-2},{"$f":"'Population 2016'!BB72/'Population 2016'!BB$5","v":5.3927898192966586E-3},{"$f":"'Population 2016'!BC72/'Population 2016'!BC$5","v":0},70]
[null,"Female 65-69",{"$f":"'Population 2016'!C73/'Population 2016'!C$5","v":2.0853245286297679E-3},{"$f":"'Population 2016'!D73/'Population 2016'!D$5","v":1.2837064640122062E-3},{"$f":"'Population 2016'!E73/'Population 2016'!E$5","v":5.4847435062043229E-4},{"$f":"'Population 2016'!F73/'Population 2016'!F$5","v":1.9263456090651558E-3},{"$f":"'Population 2016'!G73/'Population 2016'!G$5","v":3.044984572078168E-3},{"$f":"'Population 2016'!H73/'Population 2016'!H$5","v":1.0985269751923557E-2},{"$f":"'Population 2016'!I73/'Population 2016'!I$5","v":2.0203500544343019E-3},{"$f":"'Population 2016'!J73/'Population 2016'!J$5","v":5.6724413889188358E-3},{"$f":"'Population 2016'!K73/'Population 2016'!K$5","v":8.788924065586165E-3},{"$f":"'Population 2016'!L73/'Population 2016'!L$5","v":2.3668451066668783E-3},{"$f":"'Population 2016'!M73/'Population 2016'!M$5","v":2.3668451066668783E-3},{"$f":"'Population 2016'!N73/'Population 2016'!N$5","v":1.0665402142725103E-2},{"$f":"'Population 2016'!O73/'Population 2016'!O$5","v":1.1115404047909175E-2},{"$f":"'Population 2016'!P73/'Population 2016'!P$5","v":1.6567113715766934E-3},{"$f":"'Population 2016'!Q73/'Population 2016'!Q$5","v":1.1985758099199773E-3},{"$f":"'Population 2016'!R73/'Population 2016'!R$5","v":2.3021238090168736E-3},{"$f":"'Population 2016'!S73/'Population 2016'!S$5","v":4.3347320515966393E-3},{"$f":"'Population 2016'!T73/'Population 2016'!T$5","v":3.4736602094898629E-3},{"$f":"'Population 2016'!U73/'Population 2016'!U$5","v":0},{"$f":"'Population 2016'!V73/'Population 2016'!V$5","v":4.9915662374733823E-3},{"$f":"'Population 2016'!W73/'Population 2016'!W$5","v":6.8571503278227735E-3},{"$f":"'Population 2016'!X73/'Population 2016'!X$5","v":6.8571503278227735E-3},{"$f":"'Population 2016'!Y73/'Population 2016'!Y$5","v":5.3178804788477129E-3},{"$f":"'Population 2016'!Z73/'Population 2016'!Z$5","v":1.2683344206061755E-2},{"$f":"'Population 2016'!AA73/'Population 2016'!AA$5","v":9.9285323723704577E-3},{"$f":"'Population 2016'!AB73/'Population 2016'!AB$5","v":1.1401901681626972E-3},{"$f":"'Population 2016'!AC73/'Population 2016'!AC$5","v":1.0435003857920943E-2},{"$f":"'Population 2016'!AD73/'Population 2016'!AD$5","v":2.3447095165432283E-3},{"$f":"'Population 2016'!AE73/'Population 2016'!AE$5","v":2.0790767872360086E-3},{"$f":"'Population 2016'!AF73/'Population 2016'!AF$5","v":1.5759549985673138E-2},{"$f":"'Population 2016'!AG73/'Population 2016'!AG$5","v":2.0790767872360086E-3},{"$f":"'Population 2016'!AH73/'Population 2016'!AH$5","v":9.0188829960153438E-3},{"$f":"'Population 2016'!AI73/'Population 2016'!AI$5","v":3.5818969288651677E-3},{"$f":"'Population 2016'!AJ73/'Population 2016'!AJ$5","v":3.6388478376042162E-3},{"$f":"'Population 2016'!AK73/'Population 2016'!AK$5","v":4.0229812805652289E-4},{"$f":"'Population 2016'!AL73/'Population 2016'!AL$5","v":1.5306574909987406E-2},{"$f":"'Population 2016'!AM73/'Population 2016'!AM$5","v":1.0511027161334488E-2},{"$f":"'Population 2016'!AN73/'Population 2016'!AN$5","v":0},{"$f":"'Population 2016'!AO73/'Population 2016'!AO$5","v":0},{"$f":"'Population 2016'!AP73/'Population 2016'!AP$5","v":1.4425439500340821E-3},{"$f":"'Population 2016'!AQ73/'Population 2016'!AQ$5","v":8.3095851372828409E-3},{"$f":"'Population 2016'!AR73/'Population 2016'!AR$5","v":6.1847498531339114E-3},{"$f":"'Population 2016'!AS73/'Population 2016'!AS$5","v":2.0203500544343019E-3},{"$f":"'Population 2016'!AT73/'Population 2016'!AT$5","v":0},{"$f":"'Population 2016'!AU73/'Population 2016'!AU$5","v":0},{"$f":"'Population 2016'!AV73/'Population 2016'!AV$5","v":5.7016154577130187E-3},{"$f":"'Population 2016'!AW73/'Population 2016'!AW$5","v":7.4478308621636459E-3},{"$f":"'Population 2016'!AX73/'Population 2016'!AX$5","v":3.986863794932083E-3},{"$f":"'Population 2016'!AY73/'Population 2016'!AY$5","v":5.8045959425966154E-3},{"$f":"'Population 2016'!AZ73/'Population 2016'!AZ$5","v":4.8783013386565115E-3},{"$f":"'Population 2016'!BA73/'Population 2016'!BA$5","v":1.2942668969984885E-2},{"$f":"'Population 2016'!BB73/'Population 2016'!BB$5","v":5.2754051497345038E-3},{"$f":"'Population 2016'!BC73/'Population 2016'!BC$5","v":0},71]
[null,"Female 70-74",{"$f":"'Population 2016'!C74/'Population 2016'!C$5","v":1.466882695384175E-3},{"$f":"'Population 2016'!D74/'Population 2016'!D$5","v":8.9737194722377077E-4},{"$f":"'Population 2016'!E74/'Population 2016'!E$5","v":3.7502519700542382E-4},{"$f":"'Population 2016'!F74/'Population 2016'!F$5","v":1.658511460211177E-3},{"$f":"'Population 2016'!G74/'Population 2016'!G$5","v":2.2465219509554485E-3},{"$f":"'Population 2016'!H74/'Population 2016'!H$5","v":8.5988593217536224E-3},{"$f":"'Population 2016'!I74/'Population 2016'!I$5","v":1.5597521145632694E-3},{"$f":"'Population 2016'!J74/'Population 2016'!J$5","v":4.3787266861829615E-3},{"$f":"'Population 2016'!K74/'Population 2016'!K$5","v":6.5916930491896238E-3},{"$f":"'Population 2016'!L74/'Population 2016'!L$5","v":2.4700967388369102E-3},{"$f":"'Population 2016'!M74/'Population 2016'!M$5","v":2.4700967388369102E-3},{"$f":"'Population 2016'!N74/'Population 2016'!N$5","v":7.6996648475739626E-3},{"$f":"'Population 2016'!O74/'Population 2016'!O$5","v":8.5891758552025434E-3},{"$f":"'Population 2016'!P74/'Population 2016'!P$5","v":1.1495548292572975E-3},{"$f":"'Population 2016'!Q74/'Population 2016'!Q$5","v":1.0223146614023338E-3},{"$f":"'Population 2016'!R74/'Population 2016'!R$5","v":1.6500771810294352E-3},{"$f":"'Population 2016'!S74/'Population 2016'!S$5","v":3.3417421191905675E-3},{"$f":"'Population 2016'!T74/'Population 2016'!T$5","v":2.5267213580080316E-3},{"$f":"'Population 2016'!U74/'Population 2016'!U$5","v":0},{"$f":"'Population 2016'!V74/'Population 2016'!V$5","v":3.6101083032490976E-3},{"$f":"'Population 2016'!W74/'Population 2016'!W$5","v":5.4353865563247245E-3},{"$f":"'Population 2016'!X74/'Population 2016'!X$5","v":5.4353865563247245E-3},{"$f":"'Population 2016'!Y74/'Population 2016'!Y$5","v":3.978474110109537E-3},{"$f":"'Population 2016'!Z74/'Population 2016'!Z$5","v":1.0445562474955622E-2},{"$f":"'Population 2016'!AA74/'Population 2016'!AA$5","v":7.9074807478555394E-3},{"$f":"'Population 2016'!AB74/'Population 2016'!AB$5","v":7.7991463926389154E-4},{"$f":"'Population 2016'!AC74/'Population 2016'!AC$5","v":8.3291789144451737E-3},{"$f":"'Population 2016'!AD74/'Population 2016'!AD$5","v":1.7976106293498084E-3},{"$f":"'Population 2016'!AE74/'Population 2016'!AE$5","v":1.6273267692686784E-3},{"$f":"'Population 2016'!AF74/'Population 2016'!AF$5","v":1.1883756352832949E-2},{"$f":"'Population 2016'!AG74/'Population 2016'!AG$5","v":1.6273267692686784E-3},{"$f":"'Population 2016'!AH74/'Population 2016'!AH$5","v":7.1500887027112379E-3},{"$f":"'Population 2016'!AI74/'Population 2016'!AI$5","v":2.6987269227403974E-3},{"$f":"'Population 2016'!AJ74/'Population 2016'!AJ$5","v":2.760505256113543E-3},{"$f":"'Population 2016'!AK74/'Population 2016'!AK$5","v":1.7600543102472876E-4},{"$f":"'Population 2016'!AL74/'Population 2016'!AL$5","v":1.1927777088026108E-2},{"$f":"'Population 2016'!AM74/'Population 2016'!AM$5","v":8.6167241960078376E-3},{"$f":"'Population 2016'!AN74/'Population 2016'!AN$5","v":0},{"$f":"'Population 2016'!AO74/'Population 2016'!AO$5","v":0},{"$f":"'Population 2016'!AP74/'Population 2016'!AP$5","v":1.1968359145887164E-3},{"$f":"'Population 2016'!AQ74/'Population 2016'!AQ$5","v":6.5764235216747959E-3},{"$f":"'Population 2016'!AR74/'Population 2016'!AR$5","v":4.8534313198031623E-3},{"$f":"'Population 2016'!AS74/'Population 2016'!AS$5","v":1.5597521145632694E-3},{"$f":"'Population 2016'!AT74/'Population 2016'!AT$5","v":0},{"$f":"'Population 2016'!AU74/'Population 2016'!AU$5","v":0},{"$f":"'Population 2016'!AV74/'Population 2016'!AV$5","v":4.6457607433217189E-3},{"$f":"'Population 2016'!AW74/'Population 2016'!AW$5","v":5.6058941973274757E-3},{"$f":"'Population 2016'!AX74/'Population 2016'!AX$5","v":3.1818239901861816E-3},{"$f":"'Population 2016'!AY74/'Population 2016'!AY$5","v":4.4873167895719225E-3},{"$f":"'Population 2016'!AZ74/'Population 2016'!AZ$5","v":3.6529732901496282E-3},{"$f":"'Population 2016'!BA74/'Population 2016'!BA$5","v":9.217771539624272E-3},{"$f":"'Population 2016'!BB74/'Population 2016'!BB$5","v":4.1637032791752692E-3},{"$f":"'Population 2016'!BC74/'Population 2016'!BC$5","v":0},72]
[null,"Female 75-79",{"$f":"'Population 2016'!C75/'Population 2016'!C$5","v":1.2419947560221413E-3},{"$f":"'Population 2016'!D75/'Population 2016'!D$5","v":7.2621108535547664E-4},{"$f":"'Population 2016'!E75/'Population 2016'!E$5","v":2.5314200797866106E-4},{"$f":"'Population 2016'!F75/'Population 2016'!F$5","v":1.7100180272984805E-3},{"$f":"'Population 2016'!G75/'Population 2016'!G$5","v":1.9487901261300276E-3},{"$f":"'Population 2016'!H75/'Population 2016'!H$5","v":7.4186237285717525E-3},{"$f":"'Population 2016'!I75/'Population 2016'!I$5","v":1.0886860396951679E-3},{"$f":"'Population 2016'!J75/'Population 2016'!J$5","v":3.4167337020973108E-3},{"$f":"'Population 2016'!K75/'Population 2016'!K$5","v":5.0323678117469165E-3},{"$f":"'Population 2016'!L75/'Population 2016'!L$5","v":1.5011198830873827E-3},{"$f":"'Population 2016'!M75/'Population 2016'!M$5","v":1.5011198830873827E-3},{"$f":"'Population 2016'!N75/'Population 2016'!N$5","v":6.7432346629588249E-3},{"$f":"'Population 2016'!O75/'Population 2016'!O$5","v":7.3211083702360786E-3},{"$f":"'Population 2016'!P75/'Population 2016'!P$5","v":9.6923250309928998E-4},{"$f":"'Population 2016'!Q75/'Population 2016'!Q$5","v":8.8130574258821865E-4},{"$f":"'Population 2016'!R75/'Population 2016'!R$5","v":1.4504710704210358E-3},{"$f":"'Population 2016'!S75/'Population 2016'!S$5","v":2.7494787906177016E-3},{"$f":"'Population 2016'!T75/'Population 2016'!T$5","v":2.2382191035025104E-3},{"$f":"'Population 2016'!U75/'Population 2016'!U$5","v":0},{"$f":"'Population 2016'!V75/'Population 2016'!V$5","v":3.8772410529609759E-3},{"$f":"'Population 2016'!W75/'Population 2016'!W$5","v":4.4613966622869808E-3},{"$f":"'Population 2016'!X75/'Population 2016'!X$5","v":4.4613966622869808E-3},{"$f":"'Population 2016'!Y75/'Population 2016'!Y$5","v":3.656539641659115E-3},{"$f":"'Population 2016'!Z75/'Population 2016'!Z$5","v":9.9016034209410686E-3},{"$f":"'Population 2016'!AA75/'Population 2016'!AA$5","v":7.1819750364912095E-3},{"$f":"'Population 2016'!AB75/'Population 2016'!AB$5","v":6.2843515552234836E-4},{"$f":"'Population 2016'!AC75/'Population 2016'!AC$5","v":7.8699518639033066E-3},{"$f":"'Population 2016'!AD75/'Population 2016'!AD$5","v":1.5222003051844134E-3},{"$f":"'Population 2016'!AE75/'Population 2016'!AE$5","v":1.3603835768334377E-3},{"$f":"'Population 2016'!AF75/'Population 2016'!AF$5","v":1.132576271697658E-2},{"$f":"'Population 2016'!AG75/'Population 2016'!AG$5","v":1.3603835768334377E-3},{"$f":"'Population 2016'!AH75/'Population 2016'!AH$5","v":5.9463325376406008E-3},{"$f":"'Population 2016'!AI75/'Population 2016'!AI$5","v":2.2503062385160555E-3},{"$f":"'Population 2016'!AJ75/'Population 2016'!AJ$5","v":1.8124529459331343E-3},{"$f":"'Population 2016'!AK75/'Population 2016'!AK$5","v":1.2571816501766341E-4},{"$f":"'Population 2016'!AL75/'Population 2016'!AL$5","v":1.03492311239602E-2},{"$f":"'Population 2016'!AM75/'Population 2016'!AM$5","v":7.1244625866109359E-3},{"$f":"'Population 2016'!AN75/'Population 2016'!AN$5","v":0},{"$f":"'Population 2016'!AO75/'Population 2016'!AO$5","v":0},{"$f":"'Population 2016'!AP75/'Population 2016'!AP$5","v":7.5297623765515275E-4},{"$f":"'Population 2016'!AQ75/'Population 2016'!AQ$5","v":6.5627226393379732E-3},{"$f":"'Population 2016'!AR75/'Population 2016'!AR$5","v":4.2635164141371952E-3},{"$f":"'Population 2016'!AS75/'Population 2016'!AS$5","v":1.0886860396951679E-3},{"$f":"'Population 2016'!AT75/'Population 2016'!AT$5","v":0},{"$f":"'Population 2016'!AU75/'Population 2016'!AU$5","v":0},{"$f":"'Population 2016'!AV75/'Population 2016'!AV$5","v":4.0333650089747651E-3},{"$f":"'Population 2016'!AW75/'Population 2016'!AW$5","v":4.7059002989810238E-3},{"$f":"'Population 2016'!AX75/'Population 2016'!AX$5","v":2.5429035102291168E-3},{"$f":"'Population 2016'!AY75/'Population 2016'!AY$5","v":3.7713044276490928E-3},{"$f":"'Population 2016'!AZ75/'Population 2016'!AZ$5","v":3.163992613515426E-3},{"$f":"'Population 2016'!BA75/'Population 2016'!BA$5","v":7.9626430576549348E-3},{"$f":"'Population 2016'!BB75/'Population 2016'!BB$5","v":3.3074856894277842E-3},{"$f":"'Population 2016'!BC75/'Population 2016'!BC$5","v":0},73]
[null,"Female 80-84",{"$f":"'Population 2016'!C76/'Population 2016'!C$5","v":9.6599592135055432E-4},{"$f":"'Population 2016'!D76/'Population 2016'!D$5","v":5.8439208552174722E-4},{"$f":"'Population 2016'!E76/'Population 2016'!E$5","v":2.3439074812838987E-4},{"$f":"'Population 2016'!F76/'Population 2016'!F$5","v":9.9922740149369039E-4},{"$f":"'Population 2016'!G76/'Population 2016'!G$5","v":1.5833919774806474E-3},{"$f":"'Population 2016'!H76/'Population 2016'!H$5","v":5.4213019554947423E-3},{"$f":"'Population 2016'!I76/'Population 2016'!I$5","v":8.5838706975965157E-4},{"$f":"'Population 2016'!J76/'Population 2016'!J$5","v":2.579136362505494E-3},{"$f":"'Population 2016'!K76/'Population 2016'!K$5","v":3.307659594575438E-3},{"$f":"'Population 2016'!L76/'Population 2016'!L$5","v":1.1993074198211363E-3},{"$f":"'Population 2016'!M76/'Population 2016'!M$5","v":1.1993074198211363E-3},{"$f":"'Population 2016'!N76/'Population 2016'!N$5","v":5.3929802846786317E-3},{"$f":"'Population 2016'!O76/'Population 2016'!O$5","v":5.5477952467282866E-3},{"$f":"'Population 2016'!P76/'Population 2016'!P$5","v":6.3112814155302603E-4},{"$f":"'Population 2016'!Q76/'Population 2016'!Q$5","v":4.9353121584940244E-4},{"$f":"'Population 2016'!R76/'Population 2016'!R$5","v":1.2508649598126365E-3},{"$f":"'Population 2016'!S76/'Population 2016'!S$5","v":2.0866028446292926E-3},{"$f":"'Population 2016'!T76/'Population 2016'!T$5","v":1.7728928865581215E-3},{"$f":"'Population 2016'!U76/'Population 2016'!U$5","v":0},{"$f":"'Population 2016'!V76/'Population 2016'!V$5","v":2.7705482327260514E-3},{"$f":"'Population 2016'!W76/'Population 2016'!W$5","v":3.2226645487289105E-3},{"$f":"'Population 2016'!X76/'Population 2016'!X$5","v":3.2226645487289105E-3},{"$f":"'Population 2016'!Y76/'Population 2016'!Y$5","v":2.6788127374763517E-3},{"$f":"'Population 2016'!Z76/'Population 2016'!Z$5","v":7.838043450907212E-3},{"$f":"'Population 2016'!AA76/'Population 2016'!AA$5","v":5.629313088269197E-3},{"$f":"'Population 2016'!AB76/'Population 2016'!AB$5","v":5.0970799258978747E-4},{"$f":"'Population 2016'!AC76/'Population 2016'!AC$5","v":6.2388683983525747E-3},{"$f":"'Population 2016'!AD76/'Population 2016'!AD$5","v":1.1760765194089844E-3},{"$f":"'Population 2016'!AE76/'Population 2016'!AE$5","v":1.02157106335794E-3},{"$f":"'Population 2016'!AF76/'Population 2016'!AF$5","v":9.0183836281651063E-3},{"$f":"'Population 2016'!AG76/'Population 2016'!AG$5","v":1.02157106335794E-3},{"$f":"'Population 2016'!AH76/'Population 2016'!AH$5","v":4.5345197514466435E-3},{"$f":"'Population 2016'!AI76/'Population 2016'!AI$5","v":1.7718085571791057E-3},{"$f":"'Population 2016'!AJ76/'Population 2016'!AJ$5","v":1.8961046203608176E-3},{"$f":"'Population 2016'!AK76/'Population 2016'!AK$5","v":1.2571816501766341E-4},{"$f":"'Population 2016'!AL76/'Population 2016'!AL$5","v":7.2808215533601743E-3},{"$f":"'Population 2016'!AM76/'Population 2016'!AM$5","v":5.3641734065942026E-3},{"$f":"'Population 2016'!AN76/'Population 2016'!AN$5","v":0},{"$f":"'Population 2016'!AO76/'Population 2016'!AO$5","v":0},{"$f":"'Population 2016'!AP76/'Population 2016'!AP$5","v":8.6394115688854362E-4},{"$f":"'Population 2016'!AQ76/'Population 2016'!AQ$5","v":5.3912971995396502E-3},{"$f":"'Population 2016'!AR76/'Population 2016'!AR$5","v":3.2917608180212765E-3},{"$f":"'Population 2016'!AS76/'Population 2016'!AS$5","v":8.5838706975965157E-4},{"$f":"'Population 2016'!AT76/'Population 2016'!AT$5","v":0},{"$f":"'Population 2016'!AU76/'Population 2016'!AU$5","v":0},{"$f":"'Population 2016'!AV76/'Population 2016'!AV$5","v":3.0725372188786823E-3},{"$f":"'Population 2016'!AW76/'Population 2016'!AW$5","v":3.6609921288669228E-3},{"$f":"'Population 2016'!AX76/'Population 2016'!AX$5","v":2.1851080414531606E-3},{"$f":"'Population 2016'!AY76/'Population 2016'!AY$5","v":2.8502799791928031E-3},{"$f":"'Population 2016'!AZ76/'Population 2016'!AZ$5","v":2.5225650200482079E-3},{"$f":"'Population 2016'!BA76/'Population 2016'!BA$5","v":6.0462103217447634E-3},{"$f":"'Population 2016'!BB76/'Population 2016'!BB$5","v":2.4581730802427791E-3},{"$f":"'Population 2016'!BC76/'Population 2016'!BC$5","v":0},74]
[null,"Female 85-89",{"$f":"'Population 2016'!C77/'Population 2016'!C$5","v":7.4110798198852052E-4},{"$f":"'Population 2016'!D77/'Population 2016'!D$5","v":4.4012793051847072E-4},{"$f":"'Population 2016'!E77/'Population 2016'!E$5","v":1.6407352368987292E-4},{"$f":"'Population 2016'!F77/'Population 2016'!F$5","v":6.1807880504764355E-4},{"$f":"'Population 2016'!G77/'Population 2016'!G$5","v":1.1638607697720999E-3},{"$f":"'Population 2016'!H77/'Population 2016'!H$5","v":3.3299504236202755E-3},{"$f":"'Population 2016'!I77/'Population 2016'!I$5","v":6.1761996482706646E-4},{"$f":"'Population 2016'!J77/'Population 2016'!J$5","v":1.3683520894321754E-3},{"$f":"'Population 2016'!K77/'Population 2016'!K$5","v":2.0791003165902757E-3},{"$f":"'Population 2016'!L77/'Population 2016'!L$5","v":8.0218575762870713E-4},{"$f":"'Population 2016'!M77/'Population 2016'!M$5","v":8.0218575762870713E-4},{"$f":"'Population 2016'!N77/'Population 2016'!N$5","v":3.5524549714276528E-3},{"$f":"'Population 2016'!O77/'Population 2016'!O$5","v":3.774482123220495E-3},{"$f":"'Population 2016'!P77/'Population 2016'!P$5","v":3.7191479770089036E-4},{"$f":"'Population 2016'!Q77/'Population 2016'!Q$5","v":2.4676560792470122E-4},{"$f":"'Population 2016'!R77/'Population 2016'!R$5","v":5.8551125778463829E-4},{"$f":"'Population 2016'!S77/'Population 2016'!S$5","v":1.2569045899966636E-3},{"$f":"'Population 2016'!T77/'Population 2016'!T$5","v":1.1842552221234697E-3},{"$f":"'Population 2016'!U77/'Population 2016'!U$5","v":0},{"$f":"'Population 2016'!V77/'Population 2016'!V$5","v":1.6562230482136452E-3},{"$f":"'Population 2016'!W77/'Population 2016'!W$5","v":1.9773955902444127E-3},{"$f":"'Population 2016'!X77/'Population 2016'!X$5","v":1.9773955902444127E-3},{"$f":"'Population 2016'!Y77/'Population 2016'!Y$5","v":1.5182588512106326E-3},{"$f":"'Population 2016'!Z77/'Population 2016'!Z$5","v":4.5684817347841486E-3},{"$f":"'Population 2016'!AA77/'Population 2016'!AA$5","v":3.311946860028555E-3},{"$f":"'Population 2016'!AB77/'Population 2016'!AB$5","v":3.8483976950554229E-4},{"$f":"'Population 2016'!AC77/'Population 2016'!AC$5","v":3.6996737833068899E-3},{"$f":"'Population 2016'!AD77/'Population 2016'!AD$5","v":7.7412631657300239E-4},{"$f":"'Population 2016'!AE77/'Population 2016'!AE$5","v":6.2628979763652609E-4},{"$f":"'Population 2016'!AF77/'Population 2016'!AF$5","v":5.4442081768689013E-3},{"$f":"'Population 2016'!AG77/'Population 2016'!AG$5","v":6.2628979763652609E-4},{"$f":"'Population 2016'!AH77/'Population 2016'!AH$5","v":2.615568951264594E-3},{"$f":"'Population 2016'!AI77/'Population 2016'!AI$5","v":1.0390235366173769E-3},{"$f":"'Population 2016'!AJ77/'Population 2016'!AJ$5","v":1.0038200931321976E-3},{"$f":"'Population 2016'!AK77/'Population 2016'!AK$5","v":1.0057453201413072E-4},{"$f":"'Population 2016'!AL77/'Population 2016'!AL$5","v":4.0173107961902063E-3},{"$f":"'Population 2016'!AM77/'Population 2016'!AM$5","v":3.2380628126233743E-3},{"$f":"'Population 2016'!AN77/'Population 2016'!AN$5","v":0},{"$f":"'Population 2016'!AO77/'Population 2016'!AO$5","v":0},{"$f":"'Population 2016'!AP77/'Population 2016'!AP$5","v":4.1215541429545204E-4},{"$f":"'Population 2016'!AQ77/'Population 2016'!AQ$5","v":3.1032498492902941E-3},{"$f":"'Population 2016'!AR77/'Population 2016'!AR$5","v":1.97581393442276E-3},{"$f":"'Population 2016'!AS77/'Population 2016'!AS$5","v":6.1761996482706646E-4},{"$f":"'Population 2016'!AT77/'Population 2016'!AT$5","v":0},{"$f":"'Population 2016'!AU77/'Population 2016'!AU$5","v":0},{"$f":"'Population 2016'!AV77/'Population 2016'!AV$5","v":2.0377995987752085E-3},{"$f":"'Population 2016'!AW77/'Population 2016'!AW$5","v":1.9601562023308316E-3},{"$f":"'Population 2016'!AX77/'Population 2016'!AX$5","v":9.839375391338793E-4},{"$f":"'Population 2016'!AY77/'Population 2016'!AY$5","v":1.7732015544199994E-3},{"$f":"'Population 2016'!AZ77/'Population 2016'!AZ$5","v":1.5935017344432237E-3},{"$f":"'Population 2016'!BA77/'Population 2016'!BA$5","v":4.3996976894839128E-3},{"$f":"'Population 2016'!BB77/'Population 2016'!BB$5","v":1.0909869288717952E-3},{"$f":"'Population 2016'!BC77/'Population 2016'!BC$5","v":0},75]
[null,"Female 90+",{"$f":"'Population 2016'!C78/'Population 2016'!C$5","v":3.6288735669782725E-4},{"$f":"'Population 2016'!D78/'Population 2016'!D$5","v":2.176188100896883E-4},{"$f":"'Population 2016'!E78/'Population 2016'!E$5","v":8.4380669326220359E-5},{"$f":"'Population 2016'!F78/'Population 2016'!F$5","v":3.8114859644604689E-4},{"$f":"'Population 2016'!G78/'Population 2016'!G$5","v":7.4432956206355223E-4},{"$f":"'Population 2016'!H78/'Population 2016'!H$5","v":1.8416863102398407E-3},{"$f":"'Population 2016'!I78/'Population 2016'!I$5","v":2.5123523992965415E-4},{"$f":"'Population 2016'!J78/'Population 2016'!J$5","v":8.2930429662556081E-4},{"$f":"'Population 2016'!K78/'Population 2016'!K$5","v":1.3230638378301752E-3},{"$f":"'Population 2016'!L78/'Population 2016'!L$5","v":3.1769732975394342E-4},{"$f":"'Population 2016'!M78/'Population 2016'!M$5","v":3.1769732975394342E-4},{"$f":"'Population 2016'!N78/'Population 2016'!N$5","v":1.9208975976724187E-3},{"$f":"'Population 2016'!O78/'Population 2016'!O$5","v":2.0110757769390038E-3},{"$f":"'Population 2016'!P78/'Population 2016'!P$5","v":5.6350726924377322E-5},{"$f":"'Population 2016'!Q78/'Population 2016'!Q$5","v":7.0504459407057495E-5},{"$f":"'Population 2016'!R78/'Population 2016'!R$5","v":3.4598392505455901E-4},{"$f":"'Population 2016'!S78/'Population 2016'!S$5","v":7.1848338220314892E-4},{"$f":"'Population 2016'!T78/'Population 2016'!T$5","v":6.3051702395964691E-4},{"$f":"'Population 2016'!U78/'Population 2016'!U$5","v":0},{"$f":"'Population 2016'!V78/'Population 2016'!V$5","v":7.9376588485815256E-4},{"$f":"'Population 2016'!W78/'Population 2016'!W$5","v":1.1504847070512947E-3},{"$f":"'Population 2016'!X78/'Population 2016'!X$5","v":1.1504847070512947E-3},{"$f":"'Population 2016'!Y78/'Population 2016'!Y$5","v":8.1079792054180374E-4},{"$f":"'Population 2016'!Z78/'Population 2016'!Z$5","v":2.4623342231548462E-3},{"$f":"'Population 2016'!AA78/'Population 2016'!AA$5","v":1.783202682510861E-3},{"$f":"'Population 2016'!AB78/'Population 2016'!AB$5","v":1.8627882460108696E-4},{"$f":"'Population 2016'!AC78/'Population 2016'!AC$5","v":1.9734351631393752E-3},{"$f":"'Population 2016'!AD78/'Population 2016'!AD$5","v":4.5033309762179463E-4},{"$f":"'Population 2016'!AE78/'Population 2016'!AE$5","v":3.3881251347549771E-4},{"$f":"'Population 2016'!AF78/'Population 2016'!AF$5","v":2.7296445429730505E-3},{"$f":"'Population 2016'!AG78/'Population 2016'!AG$5","v":3.3881251347549771E-4},{"$f":"'Population 2016'!AH78/'Population 2016'!AH$5","v":1.4415351606401456E-3},{"$f":"'Population 2016'!AI78/'Population 2016'!AI$5","v":5.98805669787383E-4},{"$f":"'Population 2016'!AJ78/'Population 2016'!AJ$5","v":5.2979393804199312E-4},{"$f":"'Population 2016'!AK78/'Population 2016'!AK$5","v":2.5143633003532681E-5},{"$f":"'Population 2016'!AL78/'Population 2016'!AL$5","v":2.2791365885670703E-3},{"$f":"'Population 2016'!AM78/'Population 2016'!AM$5","v":1.6806053076702972E-3},{"$f":"'Population 2016'!AN78/'Population 2016'!AN$5","v":0},{"$f":"'Population 2016'!AO78/'Population 2016'!AO$5","v":0},{"$f":"'Population 2016'!AP78/'Population 2016'!AP$5","v":2.1400377280725394E-4},{"$f":"'Population 2016'!AQ78/'Population 2016'!AQ$5","v":1.4454430865347729E-3},{"$f":"'Population 2016'!AR78/'Population 2016'!AR$5","v":1.0749015935945221E-3},{"$f":"'Population 2016'!AS78/'Population 2016'!AS$5","v":2.5123523992965415E-4},{"$f":"'Population 2016'!AT78/'Population 2016'!AT$5","v":0},{"$f":"'Population 2016'!AU78/'Population 2016'!AU$5","v":0},{"$f":"'Population 2016'!AV78/'Population 2016'!AV$5","v":1.1403230915426037E-3},{"$f":"'Population 2016'!AW78/'Population 2016'!AW$5","v":1.18982244188175E-3},{"$f":"'Population 2016'!AX78/'Population 2016'!AX$5","v":5.6225002236221682E-4},{"$f":"'Population 2016'!AY78/'Population 2016'!AY$5","v":1.0021113185031058E-3},{"$f":"'Population 2016'!AZ78/'Population 2016'!AZ$5","v":8.7153614717743095E-4},{"$f":"'Population 2016'!BA78/'Population 2016'!BA$5","v":2.8746491038652558E-3},{"$f":"'Population 2016'!BB78/'Population 2016'!BB$5","v":8.4931260918500514E-4},{"$f":"'Population 2016'!BC78/'Population 2016'!BC$5","v":0},76]
[null,"Male 0-4",{"$f":"'Population 2016'!C79/'Population 2016'!C$5","v":0},{"$f":"'Population 2016'!D79/'Population 2016'!D$5","v":0},{"$f":"'Population 2016'!E79/'Population 2016'!E$5","v":0},{"$f":"'Population 2016'!F79/'Population 2016'!F$5","v":0},{"$f":"'Population 2016'!G79/'Population 2016'!G$5","v":0},{"$f":"'Population 2016'!H79/'Population 2016'!H$5","v":0},{"$f":"'Population 2016'!I79/'Population 2016'!I$5","v":0},{"$f":"'Population 2016'!J79/'Population 2016'!J$5","v":0},{"$f":"'Population 2016'!K79/'Population 2016'!K$5","v":0},{"$f":"'Population 2016'!L79/'Population 2016'!L$5","v":0},{"$f":"'Population 2016'!M79/'Population 2016'!M$5","v":0},{"$f":"'Population 2016'!N79/'Population 2016'!N$5","v":0},{"$f":"'Population 2016'!O79/'Population 2016'!O$5","v":0},{"$f":"'Population 2016'!P79/'Population 2016'!P$5","v":0},{"$f":"'Population 2016'!Q79/'Population 2016'!Q$5","v":0},{"$f":"'Population 2016'!R79/'Population 2016'!R$5","v":0},{"$f":"'Population 2016'!S79/'Population 2016'!S$5","v":0},{"$f":"'Population 2016'!T79/'Population 2016'!T$5","v":0},{"$f":"'Population 2016'!U79/'Population 2016'!U$5","v":0},{"$f":"'Population 2016'!V79/'Population 2016'!V$5","v":0},{"$f":"'Population 2016'!W79/'Population 2016'!W$5","v":0},{"$f":"'Population 2016'!X79/'Population 2016'!X$5","v":0},{"$f":"'Population 2016'!Y79/'Population 2016'!Y$5","v":0},{"$f":"'Population 2016'!Z79/'Population 2016'!Z$5","v":0},{"$f":"'Population 2016'!AA79/'Population 2016'!AA$5","v":0},{"$f":"'Population 2016'!AB79/'Population 2016'!AB$5","v":0},{"$f":"'Population 2016'!AC79/'Population 2016'!AC$5","v":0},{"$f":"'Population 2016'!AD79/'Population 2016'!AD$5","v":0},{"$f":"'Population 2016'!AE79/'Population 2016'!AE$5","v":0},{"$f":"'Population 2016'!AF79/'Population 2016'!AF$5","v":0},{"$f":"'Population 2016'!AG79/'Population 2016'!AG$5","v":0},{"$f":"'Population 2016'!AH79/'Population 2016'!AH$5","v":0},{"$f":"'Population 2016'!AI79/'Population 2016'!AI$5","v":0},{"$f":"'Population 2016'!AJ79/'Population 2016'!AJ$5","v":0},{"$f":"'Population 2016'!AK79/'Population 2016'!AK$5","v":0},{"$f":"'Population 2016'!AL79/'Population 2016'!AL$5","v":0},{"$f":"'Population 2016'!AM79/'Population 2016'!AM$5","v":0},{"$f":"'Population 2016'!AN79/'Population 2016'!AN$5","v":0},{"$f":"'Population 2016'!AO79/'Population 2016'!AO$5","v":0},{"$f":"'Population 2016'!AP79/'Population 2016'!AP$5","v":0},{"$f":"'Population 2016'!AQ79/'Population 2016'!AQ$5","v":0},{"$f":"'Population 2016'!AR79/'Population 2016'!AR$5","v":0},{"$f":"'Population 2016'!AS79/'Population 2016'!AS$5","v":0},{"$f":"'Population 2016'!AT79/'Population 2016'!AT$5","v":0},{"$f":"'Population 2016'!AU79/'Population 2016'!AU$5","v":0},{"$f":"'Population 2016'!AV79/'Population 2016'!AV$5","v":0},{"$f":"'Population 2016'!AW79/'Population 2016'!AW$5","v":0},{"$f":"'Population 2016'!AX79/'Population 2016'!AX$5","v":0},{"$f":"'Population 2016'!AY79/'Population 2016'!AY$5","v":0},{"$f":"'Population 2016'!AZ79/'Population 2016'!AZ$5","v":0},{"$f":"'Population 2016'!BA79/'Population 2016'!BA$5","v":0},{"$f":"'Population 2016'!BB79/'Population 2016'!BB$5","v":0},{"$f":"'Population 2016'!BC79/'Population 2016'!BC$5","v":0},77]
[null,"Male 5-9",{"$f":"'Population 2016'!C80/'Population 2016'!C$5","v":0},{"$f":"'Population 2016'!D80/'Population 2016'!D$5","v":0},{"$f":"'Population 2016'!E80/'Population 2016'!E$5","v":0},{"$f":"'Population 2016'!F80/'Population 2016'!F$5","v":0},{"$f":"'Population 2016'!G80/'Population 2016'!G$5","v":0},{"$f":"'Population 2016'!H80/'Population 2016'!H$5","v":0},{"$f":"'Population 2016'!I80/'Population 2016'!I$5","v":0},{"$f":"'Population 2016'!J80/'Population 2016'!J$5","v":0},{"$f":"'Population 2016'!K80/'Population 2016'!K$5","v":0},{"$f":"'Population 2016'!L80/'Population 2016'!L$5","v":0},{"$f":"'Population 2016'!M80/'Population 2016'!M$5","v":0},{"$f":"'Population 2016'!N80/'Population 2016'!N$5","v":0},{"$f":"'Population 2016'!O80/'Population 2016'!O$5","v":0},{"$f":"'Population 2016'!P80/'Population 2016'!P$5","v":0},{"$f":"'Population 2016'!Q80/'Population 2016'!Q$5","v":0},{"$f":"'Population 2016'!R80/'Population 2016'!R$5","v":0},{"$f":"'Population 2016'!S80/'Population 2016'!S$5","v":0},{"$f":"'Population 2016'!T80/'Population 2016'!T$5","v":0},{"$f":"'Population 2016'!U80/'Population 2016'!U$5","v":0},{"$f":"'Population 2016'!V80/'Population 2016'!V$5","v":0},{"$f":"'Population 2016'!W80/'Population 2016'!W$5","v":0},{"$f":"'Population 2016'!X80/'Population 2016'!X$5","v":0},{"$f":"'Population 2016'!Y80/'Population 2016'!Y$5","v":0},{"$f":"'Population 2016'!Z80/'Population 2016'!Z$5","v":0},{"$f":"'Population 2016'!AA80/'Population 2016'!AA$5","v":0},{"$f":"'Population 2016'!AB80/'Population 2016'!AB$5","v":0},{"$f":"'Population 2016'!AC80/'Population 2016'!AC$5","v":0},{"$f":"'Population 2016'!AD80/'Population 2016'!AD$5","v":0},{"$f":"'Population 2016'!AE80/'Population 2016'!AE$5","v":0},{"$f":"'Population 2016'!AF80/'Population 2016'!AF$5","v":0},{"$f":"'Population 2016'!AG80/'Population 2016'!AG$5","v":0},{"$f":"'Population 2016'!AH80/'Population 2016'!AH$5","v":0},{"$f":"'Population 2016'!AI80/'Population 2016'!AI$5","v":0},{"$f":"'Population 2016'!AJ80/'Population 2016'!AJ$5","v":0},{"$f":"'Population 2016'!AK80/'Population 2016'!AK$5","v":0},{"$f":"'Population 2016'!AL80/'Population 2016'!AL$5","v":0},{"$f":"'Population 2016'!AM80/'Population 2016'!AM$5","v":0},{"$f":"'Population 2016'!AN80/'Population 2016'!AN$5","v":0},{"$f":"'Population 2016'!AO80/'Population 2016'!AO$5","v":0},{"$f":"'Population 2016'!AP80/'Population 2016'!AP$5","v":0},{"$f":"'Population 2016'!AQ80/'Population 2016'!AQ$5","v":0},{"$f":"'Population 2016'!AR80/'Population 2016'!AR$5","v":0},{"$f":"'Population 2016'!AS80/'Population 2016'!AS$5","v":0},{"$f":"'Population 2016'!AT80/'Population 2016'!AT$5","v":0},{"$f":"'Population 2016'!AU80/'Population 2016'!AU$5","v":0},{"$f":"'Population 2016'!AV80/'Population 2016'!AV$5","v":0},{"$f":"'Population 2016'!AW80/'Population 2016'!AW$5","v":0},{"$f":"'Population 2016'!AX80/'Population 2016'!AX$5","v":0},{"$f":"'Population 2016'!AY80/'Population 2016'!AY$5","v":0},{"$f":"'Population 2016'!AZ80/'Population 2016'!AZ$5","v":0},{"$f":"'Population 2016'!BA80/'Population 2016'!BA$5","v":0},{"$f":"'Population 2016'!BB80/'Population 2016'!BB$5","v":0},{"$f":"'Population 2016'!BC80/'Population 2016'!BC$5","v":0},78]
[null,"Male 10-15",{"$f":"'Population 2016'!C81/'Population 2016'!C$5","v":0},{"$f":"'Population 2016'!D81/'Population 2016'!D$5","v":0},{"$f":"'Population 2016'!E81/'Population 2016'!E$5","v":0},{"$f":"'Population 2016'!F81/'Population 2016'!F$5","v":0},{"$f":"'Population 2016'!G81/'Population 2016'!G$5","v":0},{"$f":"'Population 2016'!H81/'Population 2016'!H$5","v":0},{"$f":"'Population 2016'!I81/'Population 2016'!I$5","v":0},{"$f":"'Population 2016'!J81/'Population 2016'!J$5","v":0},{"$f":"'Population 2016'!K81/'Population 2016'!K$5","v":0},{"$f":"'Population 2016'!L81/'Population 2016'!L$5","v":0},{"$f":"'Population 2016'!M81/'Population 2016'!M$5","v":0},{"$f":"'Population 2016'!N81/'Population 2016'!N$5","v":0},{"$f":"'Population 2016'!O81/'Population 2016'!O$5","v":0},{"$f":"'Population 2016'!P81/'Population 2016'!P$5","v":0},{"$f":"'Population 2016'!Q81/'Population 2016'!Q$5","v":0},{"$f":"'Population 2016'!R81/'Population 2016'!R$5","v":0},{"$f":"'Population 2016'!S81/'Population 2016'!S$5","v":0},{"$f":"'Population 2016'!T81/'Population 2016'!T$5","v":0},{"$f":"'Population 2016'!U81/'Population 2016'!U$5","v":0},{"$f":"'Population 2016'!V81/'Population 2016'!V$5","v":0},{"$f":"'Population 2016'!W81/'Population 2016'!W$5","v":0},{"$f":"'Population 2016'!X81/'Population 2016'!X$5","v":0},{"$f":"'Population 2016'!Y81/'Population 2016'!Y$5","v":0},{"$f":"'Population 2016'!Z81/'Population 2016'!Z$5","v":0},{"$f":"'Population 2016'!AA81/'Population 2016'!AA$5","v":0},{"$f":"'Population 2016'!AB81/'Population 2016'!AB$5","v":0},{"$f":"'Population 2016'!AC81/'Population 2016'!AC$5","v":0},{"$f":"'Population 2016'!AD81/'Population 2016'!AD$5","v":0},{"$f":"'Population 2016'!AE81/'Population 2016'!AE$5","v":0},{"$f":"'Population 2016'!AF81/'Population 2016'!AF$5","v":0},{"$f":"'Population 2016'!AG81/'Population 2016'!AG$5","v":0},{"$f":"'Population 2016'!AH81/'Population 2016'!AH$5","v":0},{"$f":"'Population 2016'!AI81/'Population 2016'!AI$5","v":0},{"$f":"'Population 2016'!AJ81/'Population 2016'!AJ$5","v":0},{"$f":"'Population 2016'!AK81/'Population 2016'!AK$5","v":0},{"$f":"'Population 2016'!AL81/'Population 2016'!AL$5","v":0},{"$f":"'Population 2016'!AM81/'Population 2016'!AM$5","v":0},{"$f":"'Population 2016'!AN81/'Population 2016'!AN$5","v":0},{"$f":"'Population 2016'!AO81/'Population 2016'!AO$5","v":0},{"$f":"'Population 2016'!AP81/'Population 2016'!AP$5","v":0},{"$f":"'Population 2016'!AQ81/'Population 2016'!AQ$5","v":0},{"$f":"'Population 2016'!AR81/'Population 2016'!AR$5","v":0},{"$f":"'Population 2016'!AS81/'Population 2016'!AS$5","v":0},{"$f":"'Population 2016'!AT81/'Population 2016'!AT$5","v":0},{"$f":"'Population 2016'!AU81/'Population 2016'!AU$5","v":0},{"$f":"'Population 2016'!AV81/'Population 2016'!AV$5","v":0},{"$f":"'Population 2016'!AW81/'Population 2016'!AW$5","v":0},{"$f":"'Population 2016'!AX81/'Population 2016'!AX$5","v":0},{"$f":"'Population 2016'!AY81/'Population 2016'!AY$5","v":0},{"$f":"'Population 2016'!AZ81/'Population 2016'!AZ$5","v":0},{"$f":"'Population 2016'!BA81/'Population 2016'!BA$5","v":0},{"$f":"'Population 2016'!BB81/'Population 2016'!BB$5","v":0},{"$f":"'Population 2016'!BC81/'Population 2016'!BC$5","v":0},79]
[null,"Male 16-19",{"$f":"'Population 2016'!C82/'Population 2016'!C$5","v":1.9268807531701534E-3},{"$f":"'Population 2016'!D82/'Population 2016'!D$5","v":1.1394423090089296E-3},{"$f":"'Population 2016'!E82/'Population 2016'!E$5","v":4.1721553166853398E-4},{"$f":"'Population 2016'!F82/'Population 2016'!F$5","v":2.4826165336080349E-3},{"$f":"'Population 2016'!G82/'Population 2016'!G$5","v":2.4089211281329509E-3},{"$f":"'Population 2016'!H82/'Population 2016'!H$5","v":8.8874334090975407E-3},{"$f":"'Population 2016'!I82/'Population 2016'!I$5","v":1.8528598944811993E-3},{"$f":"'Population 2016'!J82/'Population 2016'!J$5","v":5.7553718185813924E-3},{"$f":"'Population 2016'!K82/'Population 2016'!K$5","v":8.0801398667485706E-3},{"$f":"'Population 2016'!L82/'Population 2016'!L$5","v":2.3350753736914843E-3},{"$f":"'Population 2016'!M82/'Population 2016'!M$5","v":2.3350753736914843E-3},{"$f":"'Population 2016'!N82/'Population 2016'!N$5","v":9.4115945057506364E-3},{"$f":"'Population 2016'!O82/'Population 2016'!O$5","v":9.3123705927224808E-3},{"$f":"'Population 2016'!P82/'Population 2016'!P$5","v":1.5327397723430632E-3},{"$f":"'Population 2016'!Q82/'Population 2016'!Q$5","v":1.0340654046368434E-3},{"$f":"'Population 2016'!R82/'Population 2016'!R$5","v":2.1690530686112736E-3},{"$f":"'Population 2016'!S82/'Population 2016'!S$5","v":3.9657811256004283E-3},{"$f":"'Population 2016'!T82/'Population 2016'!T$5","v":3.4922732581676385E-3},{"$f":"'Population 2016'!U82/'Population 2016'!U$5","v":0},{"$f":"'Population 2016'!V82/'Population 2016'!V$5","v":3.8314468672960822E-3},{"$f":"'Population 2016'!W82/'Population 2016'!W$5","v":5.8308656743736066E-3},{"$f":"'Population 2016'!X82/'Population 2016'!X$5","v":5.8308656743736066E-3},{"$f":"'Population 2016'!Y82/'Population 2016'!Y$5","v":4.7535015341568501E-3},{"$f":"'Population 2016'!Z82/'Population 2016'!Z$5","v":1.3157614555647398E-2},{"$f":"'Population 2016'!AA82/'Population 2016'!AA$5","v":9.2847457109125498E-3},{"$f":"'Population 2016'!AB82/'Population 2016'!AB$5","v":1.0009928047245223E-3},{"$f":"'Population 2016'!AC82/'Population 2016'!AC$5","v":1.0112303768350981E-2},{"$f":"'Population 2016'!AD82/'Population 2016'!AD$5","v":2.1883955487736798E-3},{"$f":"'Population 2016'!AE82/'Population 2016'!AE$5","v":2.104744401893243E-3},{"$f":"'Population 2016'!AF82/'Population 2016'!AF$5","v":1.167262362575216E-2},{"$f":"'Population 2016'!AG82/'Population 2016'!AG$5","v":2.104744401893243E-3},{"$f":"'Population 2016'!AH82/'Population 2016'!AH$5","v":7.7984079953187261E-3},{"$f":"'Population 2016'!AI82/'Population 2016'!AI$5","v":3.4615889404147346E-3},{"$f":"'Population 2016'!AJ82/'Population 2016'!AJ$5","v":2.8859827677550679E-3},{"$f":"'Population 2016'!AK82/'Population 2016'!AK$5","v":2.8915177954062581E-4},{"$f":"'Population 2016'!AL82/'Population 2016'!AL$5","v":1.214948298185559E-2},{"$f":"'Population 2016'!AM82/'Population 2016'!AM$5","v":9.8880441593532566E-3},{"$f":"'Population 2016'!AN82/'Population 2016'!AN$5","v":0},{"$f":"'Population 2016'!AO82/'Population 2016'!AO$5","v":0},{"$f":"'Population 2016'!AP82/'Population 2016'!AP$5","v":1.355357227779275E-3},{"$f":"'Population 2016'!AQ82/'Population 2016'!AQ$5","v":7.3162711678632104E-3},{"$f":"'Population 2016'!AR82/'Population 2016'!AR$5","v":5.6494154428939868E-3},{"$f":"'Population 2016'!AS82/'Population 2016'!AS$5","v":1.8528598944811993E-3},{"$f":"'Population 2016'!AT82/'Population 2016'!AT$5","v":0},{"$f":"'Population 2016'!AU82/'Population 2016'!AU$5","v":0},{"$f":"'Population 2016'!AV82/'Population 2016'!AV$5","v":4.5507338190265024E-3},{"$f":"'Population 2016'!AW82/'Population 2016'!AW$5","v":5.5982671303923363E-3},{"$f":"'Population 2016'!AX82/'Population 2016'!AX$5","v":4.4980001788977346E-3},{"$f":"'Population 2016'!AY82/'Population 2016'!AY$5","v":5.1513111593892479E-3},{"$f":"'Population 2016'!AZ82/'Population 2016'!AZ$5","v":4.5532730065408356E-3},{"$f":"'Population 2016'!BA82/'Population 2016'!BA$5","v":1.1323148348088966E-2},{"$f":"'Population 2016'!BB82/'Population 2016'!BB$5","v":5.0820656939850719E-3},{"$f":"'Population 2016'!BC82/'Population 2016'!BC$5","v":0},80]
[null,"Male 20-24",{"$f":"'Population 2016'!C83/'Population 2016'!C$5","v":3.1484311510684734E-3},{"$f":"'Population 2016'!D83/'Population 2016'!D$5","v":2.0734915837759063E-3},{"$f":"'Population 2016'!E83/'Population 2016'!E$5","v":1.087573071315729E-3},{"$f":"'Population 2016'!F83/'Population 2016'!F$5","v":3.5024465619366467E-3},{"$f":"'Population 2016'!G83/'Population 2016'!G$5","v":3.7757808693769284E-3},{"$f":"'Population 2016'!H83/'Population 2016'!H$5","v":1.245732183792512E-2},{"$f":"'Population 2016'!I83/'Population 2016'!I$5","v":2.2087764843815427E-3},{"$f":"'Population 2016'!J83/'Population 2016'!J$5","v":7.3559291110687243E-3},{"$f":"'Population 2016'!K83/'Population 2016'!K$5","v":1.0088361763455086E-2},{"$f":"'Population 2016'!L83/'Population 2016'!L$5","v":3.4867281940495292E-3},{"$f":"'Population 2016'!M83/'Population 2016'!M$5","v":3.4867281940495292E-3},{"$f":"'Population 2016'!N83/'Population 2016'!N$5","v":1.5535962578664374E-2},{"$f":"'Population 2016'!O83/'Population 2016'!O$5","v":1.2868903616964366E-2},{"$f":"'Population 2016'!P83/'Population 2016'!P$5","v":1.9046545700439536E-3},{"$f":"'Population 2016'!Q83/'Population 2016'!Q$5","v":1.3983384449066404E-3},{"$f":"'Population 2016'!R83/'Population 2016'!R$5","v":2.5815723638686326E-3},{"$f":"'Population 2016'!S83/'Population 2016'!S$5","v":5.4256969906667776E-3},{"$f":"'Population 2016'!T83/'Population 2016'!T$5","v":5.113935124218834E-3},{"$f":"'Population 2016'!U83/'Population 2016'!U$5","v":0},{"$f":"'Population 2016'!V83/'Population 2016'!V$5","v":5.6250524725044073E-3},{"$f":"'Population 2016'!W83/'Population 2016'!W$5","v":7.5141032429287677E-3},{"$f":"'Population 2016'!X83/'Population 2016'!X$5","v":7.5141032429287677E-3},{"$f":"'Population 2016'!Y83/'Population 2016'!Y$5","v":6.4545873674504376E-3},{"$f":"'Population 2016'!Z83/'Population 2016'!Z$5","v":2.0534938238385699E-2},{"$f":"'Population 2016'!AA83/'Population 2016'!AA$5","v":1.3838423500006976E-2},{"$f":"'Population 2016'!AB83/'Population 2016'!AB$5","v":1.7850014840895367E-3},{"$f":"'Population 2016'!AC83/'Population 2016'!AC$5","v":1.5518564563806703E-2},{"$f":"'Population 2016'!AD83/'Population 2016'!AD$5","v":3.1448881610778219E-3},{"$f":"'Population 2016'!AE83/'Population 2016'!AE$5","v":2.9055739791989652E-3},{"$f":"'Population 2016'!AF83/'Population 2016'!AF$5","v":1.661916180307349E-2},{"$f":"'Population 2016'!AG83/'Population 2016'!AG$5","v":2.9055739791989652E-3},{"$f":"'Population 2016'!AH83/'Population 2016'!AH$5","v":1.0820801946815527E-2},{"$f":"'Population 2016'!AI83/'Population 2016'!AI$5","v":4.972274477207105E-3},{"$f":"'Population 2016'!AJ83/'Population 2016'!AJ$5","v":4.6147840392605196E-3},{"$f":"'Population 2016'!AK83/'Population 2016'!AK$5","v":3.0172359604239214E-4},{"$f":"'Population 2016'!AL83/'Population 2016'!AL$5","v":1.6601337329951581E-2},{"$f":"'Population 2016'!AM83/'Population 2016'!AM$5","v":1.3571612258277162E-2},{"$f":"'Population 2016'!AN83/'Population 2016'!AN$5","v":0},{"$f":"'Population 2016'!AO83/'Population 2016'!AO$5","v":0},{"$f":"'Population 2016'!AP83/'Population 2016'!AP$5","v":2.4491542887941282E-3},{"$f":"'Population 2016'!AQ83/'Population 2016'!AQ$5","v":1.1960870280046035E-2},{"$f":"'Population 2016'!AR83/'Population 2016'!AR$5","v":8.2828686528174794E-3},{"$f":"'Population 2016'!AS83/'Population 2016'!AS$5","v":2.2087764843815427E-3},{"$f":"'Population 2016'!AT83/'Population 2016'!AT$5","v":0},{"$f":"'Population 2016'!AU83/'Population 2016'!AU$5","v":0},{"$f":"'Population 2016'!AV83/'Population 2016'!AV$5","v":7.0847851335656218E-3},{"$f":"'Population 2016'!AW83/'Population 2016'!AW$5","v":7.9245225456098609E-3},{"$f":"'Population 2016'!AX83/'Population 2016'!AX$5","v":5.8780684156049942E-3},{"$f":"'Population 2016'!AY83/'Population 2016'!AY$5","v":7.4676417490284874E-3},{"$f":"'Population 2016'!AZ83/'Population 2016'!AZ$5","v":7.426753570997118E-3},{"$f":"'Population 2016'!BA83/'Population 2016'!BA$5","v":1.5992766141222199E-2},{"$f":"'Population 2016'!BB83/'Population 2016'!BB$5","v":6.8290257762924399E-3},{"$f":"'Population 2016'!BC83/'Population 2016'!BC$5","v":0},81]
[null,"Male 25-29",{"$f":"'Population 2016'!C84/'Population 2016'!C$5","v":5.284866575007794E-3},{"$f":"'Population 2016'!D84/'Population 2016'!D$5","v":3.1713662549025363E-3},{"$f":"'Population 2016'!E84/'Population 2016'!E$5","v":1.2328953351553307E-3},{"$f":"'Population 2016'!F84/'Population 2016'!F$5","v":3.2346124130826679E-3},{"$f":"'Population 2016'!G84/'Population 2016'!G$5","v":3.044984572078168E-3},{"$f":"'Population 2016'!H84/'Population 2016'!H$5","v":1.1993657854889385E-2},{"$f":"'Population 2016'!I84/'Population 2016'!I$5","v":1.6539653295368896E-3},{"$f":"'Population 2016'!J84/'Population 2016'!J$5","v":7.1734821658111011E-3},{"$f":"'Population 2016'!K84/'Population 2016'!K$5","v":8.1746444265935834E-3},{"$f":"'Population 2016'!L84/'Population 2016'!L$5","v":3.9394468889488981E-3},{"$f":"'Population 2016'!M84/'Population 2016'!M$5","v":3.9394468889488981E-3},{"$f":"'Population 2016'!N84/'Population 2016'!N$5","v":2.1821075220420989E-2},{"$f":"'Population 2016'!O84/'Population 2016'!O$5","v":1.2700488404117256E-2},{"$f":"'Population 2016'!P84/'Population 2016'!P$5","v":1.8370336977347008E-3},{"$f":"'Population 2016'!Q84/'Population 2016'!Q$5","v":1.2338280396235063E-3},{"$f":"'Population 2016'!R84/'Population 2016'!R$5","v":2.6081865119497523E-3},{"$f":"'Population 2016'!S84/'Population 2016'!S$5","v":6.4513452586275376E-3},{"$f":"'Population 2016'!T84/'Population 2016'!T$5","v":7.7593146675476845E-3},{"$f":"'Population 2016'!U84/'Population 2016'!U$5","v":0},{"$f":"'Population 2016'!V84/'Population 2016'!V$5","v":6.3501270788652205E-3},{"$f":"'Population 2016'!W84/'Population 2016'!W$5","v":7.9782192327051433E-3},{"$f":"'Population 2016'!X84/'Population 2016'!X$5","v":7.9782192327051433E-3},{"$f":"'Population 2016'!Y84/'Population 2016'!Y$5","v":6.7447258390168682E-3},{"$f":"'Population 2016'!Z84/'Population 2016'!Z$5","v":2.6181659094472717E-2},{"$f":"'Population 2016'!AA84/'Population 2016'!AA$5","v":1.5809646435554565E-2},{"$f":"'Population 2016'!AB84/'Population 2016'!AB$5","v":2.6795492461848666E-3},{"$f":"'Population 2016'!AC84/'Population 2016'!AC$5","v":1.8854166451188509E-2},{"$f":"'Population 2016'!AD84/'Population 2016'!AD$5","v":3.0592876549183075E-3},{"$f":"'Population 2016'!AE84/'Population 2016'!AE$5","v":3.0647131900738201E-3},{"$f":"'Population 2016'!AF84/'Population 2016'!AF$5","v":1.6754889984768283E-2},{"$f":"'Population 2016'!AG84/'Population 2016'!AG$5","v":3.0647131900738201E-3},{"$f":"'Population 2016'!AH84/'Population 2016'!AH$5","v":1.0341528658870735E-2},{"$f":"'Population 2016'!AI84/'Population 2016'!AI$5","v":6.4392116545629536E-3},{"$f":"'Population 2016'!AJ84/'Population 2016'!AJ$5","v":3.5551961631765331E-3},{"$f":"'Population 2016'!AK84/'Population 2016'!AK$5","v":1.5086179802119607E-4},{"$f":"'Population 2016'!AL84/'Population 2016'!AL$5","v":1.5138078430677E-2},{"$f":"'Population 2016'!AM84/'Population 2016'!AM$5","v":1.2945007262098365E-2},{"$f":"'Population 2016'!AN84/'Population 2016'!AN$5","v":0},{"$f":"'Population 2016'!AO84/'Population 2016'!AO$5","v":0},{"$f":"'Population 2016'!AP84/'Population 2016'!AP$5","v":3.5112470871708702E-3},{"$f":"'Population 2016'!AQ84/'Population 2016'!AQ$5","v":1.4139310571600811E-2},{"$f":"'Population 2016'!AR84/'Population 2016'!AR$5","v":9.490322878160963E-3},{"$f":"'Population 2016'!AS84/'Population 2016'!AS$5","v":1.6539653295368896E-3},{"$f":"'Population 2016'!AT84/'Population 2016'!AT$5","v":0},{"$f":"'Population 2016'!AU84/'Population 2016'!AU$5","v":0},{"$f":"'Population 2016'!AV84/'Population 2016'!AV$5","v":7.4965684721782283E-3},{"$f":"'Population 2016'!AW84/'Population 2016'!AW$5","v":7.6003722008664348E-3},{"$f":"'Population 2016'!AX84/'Population 2016'!AX$5","v":6.6319945819543298E-3},{"$f":"'Population 2016'!AY84/'Population 2016'!AY$5","v":9.0465408035249831E-3},{"$f":"'Population 2016'!AZ84/'Population 2016'!AZ$5","v":9.9867112310232358E-3},{"$f":"'Population 2016'!BA84/'Population 2016'!BA$5","v":1.5790326063485207E-2},{"$f":"'Population 2016'!BB84/'Population 2016'!BB$5","v":7.0085552709169127E-3},{"$f":"'Population 2016'!BC84/'Population 2016'!BC$5","v":0},82]
[null,"Male 30-34",{"$f":"'Population 2016'!C85/'Population 2016'!C$5","v":4.4313146233382573E-3},{"$f":"'Population 2016'!D85/'Population 2016'!D$5","v":2.7874768932836477E-3},{"$f":"'Population 2016'!E85/'Population 2016'!E$5","v":1.2797734847810086E-3},{"$f":"'Population 2016'!F85/'Population 2016'!F$5","v":2.6577388617048674E-3},{"$f":"'Population 2016'!G85/'Population 2016'!G$5","v":2.3818545986033671E-3},{"$f":"'Population 2016'!H85/'Population 2016'!H$5","v":1.0573484256500213E-2},{"$f":"'Population 2016'!I85/'Population 2016'!I$5","v":1.8214554894899924E-3},{"$f":"'Population 2016'!J85/'Population 2016'!J$5","v":6.2944196113880069E-3},{"$f":"'Population 2016'!K85/'Population 2016'!K$5","v":8.5762888059348862E-3},{"$f":"'Population 2016'!L85/'Population 2016'!L$5","v":2.7480819023716105E-3},{"$f":"'Population 2016'!M85/'Population 2016'!M$5","v":2.7480819023716105E-3},{"$f":"'Population 2016'!N85/'Population 2016'!N$5","v":1.7119296581766745E-2},{"$f":"'Population 2016'!O85/'Population 2016'!O$5","v":1.1055963384551372E-2},{"$f":"'Population 2016'!P85/'Population 2016'!P$5","v":1.5101994815733123E-3},{"$f":"'Population 2016'!Q85/'Population 2016'!Q$5","v":1.2925817557960541E-3},{"$f":"'Population 2016'!R85/'Population 2016'!R$5","v":2.448501623463033E-3},{"$f":"'Population 2016'!S85/'Population 2016'!S$5","v":5.8423114334184801E-3},{"$f":"'Population 2016'!T85/'Population 2016'!T$5","v":6.7030241550839215E-3},{"$f":"'Population 2016'!U85/'Population 2016'!U$5","v":0},{"$f":"'Population 2016'!V85/'Population 2016'!V$5","v":5.8311263079964277E-3},{"$f":"'Population 2016'!W85/'Population 2016'!W$5","v":7.4748821733702014E-3},{"$f":"'Population 2016'!X85/'Population 2016'!X$5","v":7.4748821733702014E-3},{"$f":"'Population 2016'!Y85/'Population 2016'!Y$5","v":6.0531629067900354E-3},{"$f":"'Population 2016'!Z85/'Population 2016'!Z$5","v":2.2925647959766388E-2},{"$f":"'Population 2016'!AA85/'Population 2016'!AA$5","v":1.4359963777865033E-2},{"$f":"'Population 2016'!AB85/'Population 2016'!AB$5","v":2.3520260380950433E-3},{"$f":"'Population 2016'!AC85/'Population 2016'!AC$5","v":1.685073672844167E-2},{"$f":"'Population 2016'!AD85/'Population 2016'!AD$5","v":2.962521865346682E-3},{"$f":"'Population 2016'!AE85/'Population 2016'!AE$5","v":3.1827842174970995E-3},{"$f":"'Population 2016'!AF85/'Population 2016'!AF$5","v":1.5774630894750334E-2},{"$f":"'Population 2016'!AG85/'Population 2016'!AG$5","v":3.1827842174970995E-3},{"$f":"'Population 2016'!AH85/'Population 2016'!AH$5","v":9.8864048001634734E-3},{"$f":"'Population 2016'!AI85/'Population 2016'!AI$5","v":5.6845524542829644E-3},{"$f":"'Population 2016'!AJ85/'Population 2016'!AJ$5","v":3.9176867523631597E-3},{"$f":"'Population 2016'!AK85/'Population 2016'!AK$5","v":1.1314634851589707E-4},{"$f":"'Population 2016'!AL85/'Population 2016'!AL$5","v":1.3745765417427856E-2},{"$f":"'Population 2016'!AM85/'Population 2016'!AM$5","v":1.2206120445795046E-2},{"$f":"'Population 2016'!AN85/'Population 2016'!AN$5","v":0},{"$f":"'Population 2016'!AO85/'Population 2016'!AO$5","v":0},{"$f":"'Population 2016'!AP85/'Population 2016'!AP$5","v":2.4570803544536565E-3},{"$f":"'Population 2016'!AQ85/'Population 2016'!AQ$5","v":1.3296706307886227E-2},{"$f":"'Population 2016'!AR85/'Population 2016'!AR$5","v":8.4668828945395659E-3},{"$f":"'Population 2016'!AS85/'Population 2016'!AS$5","v":1.8214554894899924E-3},{"$f":"'Population 2016'!AT85/'Population 2016'!AT$5","v":0},{"$f":"'Population 2016'!AU85/'Population 2016'!AU$5","v":0},{"$f":"'Population 2016'!AV85/'Population 2016'!AV$5","v":6.282335550628234E-3},{"$f":"'Population 2016'!AW85/'Population 2016'!AW$5","v":7.4440173286960763E-3},{"$f":"'Population 2016'!AX85/'Population 2016'!AX$5","v":5.0602502012599511E-3},{"$f":"'Population 2016'!AY85/'Population 2016'!AY$5","v":7.626755607233561E-3},{"$f":"'Population 2016'!AZ85/'Population 2016'!AZ$5","v":7.7604109738769267E-3},{"$f":"'Population 2016'!BA85/'Population 2016'!BA$5","v":1.5439429928741092E-2},{"$f":"'Population 2016'!BB85/'Population 2016'!BB$5","v":6.1178127783570293E-3},{"$f":"'Population 2016'!BC85/'Population 2016'!BC$5","v":0},83]
[null,"Male 35-39",{"$f":"'Population 2016'!C86/'Population 2016'!C$5","v":4.221759952569089E-3},{"$f":"'Population 2016'!D86/'Population 2016'!D$5","v":2.5258452901421122E-3},{"$f":"'Population 2016'!E86/'Population 2016'!E$5","v":9.7037769725153409E-4},{"$f":"'Population 2016'!F86/'Population 2016'!F$5","v":2.637136234869946E-3},{"$f":"'Population 2016'!G86/'Population 2016'!G$5","v":2.0299897147187788E-3},{"$f":"'Population 2016'!H86/'Population 2016'!H$5","v":9.4483695564065075E-3},{"$f":"'Population 2016'!I86/'Population 2016'!I$5","v":1.9575412444518886E-3},{"$f":"'Population 2016'!J86/'Population 2016'!J$5","v":5.4485292288299347E-3},{"$f":"'Population 2016'!K86/'Population 2016'!K$5","v":8.5526626659736329E-3},{"$f":"'Population 2016'!L86/'Population 2016'!L$5","v":2.3668451066668783E-3},{"$f":"'Population 2016'!M86/'Population 2016'!M$5","v":2.3668451066668783E-3},{"$f":"'Population 2016'!N86/'Population 2016'!N$5","v":1.2321071201806769E-2},{"$f":"'Population 2016'!O86/'Population 2016'!O$5","v":9.3916248105328851E-3},{"$f":"'Population 2016'!P86/'Population 2016'!P$5","v":1.5327397723430632E-3},{"$f":"'Population 2016'!Q86/'Population 2016'!Q$5","v":1.010563918167824E-3},{"$f":"'Population 2016'!R86/'Population 2016'!R$5","v":2.1956672166923937E-3},{"$f":"'Population 2016'!S86/'Population 2016'!S$5","v":5.4000999168536427E-3},{"$f":"'Population 2016'!T86/'Population 2016'!T$5","v":6.0957734419714938E-3},{"$f":"'Population 2016'!U86/'Population 2016'!U$5","v":0},{"$f":"'Population 2016'!V86/'Population 2016'!V$5","v":5.5029346440646923E-3},{"$f":"'Population 2016'!W86/'Population 2016'!W$5","v":6.9388608894031204E-3},{"$f":"'Population 2016'!X86/'Population 2016'!X$5","v":6.9388608894031204E-3},{"$f":"'Population 2016'!Y86/'Population 2016'!Y$5","v":5.4768604632676743E-3},{"$f":"'Population 2016'!Z86/'Population 2016'!Z$5","v":1.8699802355091052E-2},{"$f":"'Population 2016'!AA86/'Population 2016'!AA$5","v":1.2298384819656687E-2},{"$f":"'Population 2016'!AB86/'Population 2016'!AB$5","v":2.1677942335445177E-3},{"$f":"'Population 2016'!AC86/'Population 2016'!AC$5","v":1.3816114732293385E-2},{"$f":"'Population 2016'!AD86/'Population 2016'!AD$5","v":2.2777178160705647E-3},{"$f":"'Population 2016'!AE86/'Population 2016'!AE$5","v":2.3716875943284839E-3},{"$f":"'Population 2016'!AF86/'Population 2016'!AF$5","v":1.2532235443152514E-2},{"$f":"'Population 2016'!AG86/'Population 2016'!AG$5","v":2.3716875943284839E-3},{"$f":"'Population 2016'!AH86/'Population 2016'!AH$5","v":9.5724622200756056E-3},{"$f":"'Population 2016'!AI86/'Population 2016'!AI$5","v":5.2060547729460144E-3},{"$f":"'Population 2016'!AJ86/'Population 2016'!AJ$5","v":3.3181830856314309E-3},{"$f":"'Population 2016'!AK86/'Population 2016'!AK$5","v":3.2686722904592486E-4},{"$f":"'Population 2016'!AL86/'Population 2016'!AL$5","v":1.22736382824001E-2},{"$f":"'Population 2016'!AM86/'Population 2016'!AM$5","v":1.1496209583072249E-2},{"$f":"'Population 2016'!AN86/'Population 2016'!AN$5","v":0},{"$f":"'Population 2016'!AO86/'Population 2016'!AO$5","v":0},{"$f":"'Population 2016'!AP86/'Population 2016'!AP$5","v":2.4174500261560168E-3},{"$f":"'Population 2016'!AQ86/'Population 2016'!AQ$5","v":1.1029210281142105E-2},{"$f":"'Population 2016'!AR86/'Population 2016'!AR$5","v":7.3480941270718586E-3},{"$f":"'Population 2016'!AS86/'Population 2016'!AS$5","v":1.9575412444518886E-3},{"$f":"'Population 2016'!AT86/'Population 2016'!AT$5","v":0},{"$f":"'Population 2016'!AU86/'Population 2016'!AU$5","v":0},{"$f":"'Population 2016'!AV86/'Population 2016'!AV$5","v":6.1450744377573646E-3},{"$f":"'Population 2016'!AW86/'Population 2016'!AW$5","v":7.5469827323204584E-3},{"$f":"'Population 2016'!AX86/'Population 2016'!AX$5","v":3.769630831746681E-3},{"$f":"'Population 2016'!AY86/'Population 2016'!AY$5","v":6.4517609620268661E-3},{"$f":"'Population 2016'!AZ86/'Population 2016'!AZ$5","v":6.0230913933648203E-3},{"$f":"'Population 2016'!BA86/'Population 2016'!BA$5","v":1.2902180954437487E-2},{"$f":"'Population 2016'!BB86/'Population 2016'!BB$5","v":5.9659032059824748E-3},{"$f":"'Population 2016'!BC86/'Population 2016'!BC$5","v":0},84]
[null,"Male 40-44",{"$f":"'Population 2016'!C87/'Population 2016'!C$5","v":3.449985433394837E-3},{"$f":"'Population 2016'!D87/'Population 2016'!D$5","v":2.1688526353882418E-3},{"$f":"'Population 2016'!E87/'Population 2016'!E$5","v":9.9381677206437317E-4},{"$f":"'Population 2016'!F87/'Population 2016'!F$5","v":2.5856296677826424E-3},{"$f":"'Population 2016'!G87/'Population 2016'!G$5","v":2.2600552157202402E-3},{"$f":"'Population 2016'!H87/'Population 2016'!H$5","v":1.0317334223914038E-2},{"$f":"'Population 2016'!I87/'Population 2016'!I$5","v":1.9889456494430954E-3},{"$f":"'Population 2016'!J87/'Population 2016'!J$5","v":5.2494961976397997E-3},{"$f":"'Population 2016'!K87/'Population 2016'!K$5","v":8.3164012663611026E-3},{"$f":"'Population 2016'!L87/'Population 2016'!L$5","v":2.7083697361523678E-3},{"$f":"'Population 2016'!M87/'Population 2016'!M$5","v":2.7083697361523678E-3},{"$f":"'Population 2016'!N87/'Population 2016'!N$5","v":1.0416248061018638E-2},{"$f":"'Population 2016'!O87/'Population 2016'!O$5","v":1.1125310825135475E-2},{"$f":"'Population 2016'!P87/'Population 2016'!P$5","v":1.5327397723430632E-3},{"$f":"'Population 2016'!Q87/'Population 2016'!Q$5","v":1.5628488501897744E-3},{"$f":"'Population 2016'!R87/'Population 2016'!R$5","v":2.2488955128546336E-3},{"$f":"'Population 2016'!S87/'Population 2016'!S$5","v":5.2509307625633085E-3},{"$f":"'Population 2016'!T87/'Population 2016'!T$5","v":5.5141156707910078E-3},{"$f":"'Population 2016'!U87/'Population 2016'!U$5","v":0},{"$f":"'Population 2016'!V87/'Population 2016'!V$5","v":5.7548026652216059E-3},{"$f":"'Population 2016'!W87/'Population 2016'!W$5","v":6.8702240176756286E-3},{"$f":"'Population 2016'!X87/'Population 2016'!X$5","v":6.8702240176756286E-3},{"$f":"'Population 2016'!Y87/'Population 2016'!Y$5","v":5.5126309597621657E-3},{"$f":"'Population 2016'!Z87/'Population 2016'!Z$5","v":1.6802720956748479E-2},{"$f":"'Population 2016'!AA87/'Population 2016'!AA$5","v":1.1525707949403285E-2},{"$f":"'Population 2016'!AB87/'Population 2016'!AB$5","v":1.8771173863647995E-3},{"$f":"'Population 2016'!AC87/'Population 2016'!AC$5","v":1.2540828801396712E-2},{"$f":"'Population 2016'!AD87/'Population 2016'!AD$5","v":2.6052327961591424E-3},{"$f":"'Population 2016'!AE87/'Population 2016'!AE$5","v":2.7361677224612161E-3},{"$f":"'Population 2016'!AF87/'Population 2016'!AF$5","v":1.2879096351928094E-2},{"$f":"'Population 2016'!AG87/'Population 2016'!AG$5","v":2.7361677224612161E-3},{"$f":"'Population 2016'!AH87/'Population 2016'!AH$5","v":9.7024976082776809E-3},{"$f":"'Population 2016'!AI87/'Population 2016'!AI$5","v":4.9996172018549308E-3},{"$f":"'Population 2016'!AJ87/'Population 2016'!AJ$5","v":3.7224995120318993E-3},{"$f":"'Population 2016'!AK87/'Population 2016'!AK$5","v":3.7715449505299018E-4},{"$f":"'Population 2016'!AL87/'Population 2016'!AL$5","v":1.322253950799028E-2},{"$f":"'Population 2016'!AM87/'Population 2016'!AM$5","v":1.1590381432208946E-2},{"$f":"'Population 2016'!AN87/'Population 2016'!AN$5","v":0},{"$f":"'Population 2016'!AO87/'Population 2016'!AO$5","v":0},{"$f":"'Population 2016'!AP87/'Population 2016'!AP$5","v":1.9973685462010369E-3},{"$f":"'Population 2016'!AQ87/'Population 2016'!AQ$5","v":9.6454211651230345E-3},{"$f":"'Population 2016'!AR87/'Population 2016'!AR$5","v":7.0448939055418811E-3},{"$f":"'Population 2016'!AS87/'Population 2016'!AS$5","v":1.9889456494430954E-3},{"$f":"'Population 2016'!AT87/'Population 2016'!AT$5","v":0},{"$f":"'Population 2016'!AU87/'Population 2016'!AU$5","v":0},{"$f":"'Population 2016'!AV87/'Population 2016'!AV$5","v":5.9972547777425826E-3},{"$f":"'Population 2016'!AW87/'Population 2016'!AW$5","v":7.714778204893526E-3},{"$f":"'Population 2016'!AX87/'Population 2016'!AX$5","v":3.5907330973587027E-3},{"$f":"'Population 2016'!AY87/'Population 2016'!AY$5","v":5.9682996236345275E-3},{"$f":"'Population 2016'!AZ87/'Population 2016'!AZ$5","v":5.1745661015584104E-3},{"$f":"'Population 2016'!BA87/'Population 2016'!BA$5","v":1.184949255020514E-2},{"$f":"'Population 2016'!BB87/'Population 2016'!BB$5","v":6.1247177589195088E-3},{"$f":"'Population 2016'!BC87/'Population 2016'!BC$5","v":0},85]
[null,"Male 45-49",{"$f":"'Population 2016'!C88/'Population 2016'!C$5","v":3.1995420463780265E-3},{"$f":"'Population 2016'!D88/'Population 2016'!D$5","v":1.9928014631808533E-3},{"$f":"'Population 2016'!E88/'Population 2016'!E$5","v":8.8599702792531378E-4},{"$f":"'Population 2016'!F88/'Population 2016'!F$5","v":2.8534638166366213E-3},{"$f":"'Population 2016'!G88/'Population 2016'!G$5","v":2.7472527472527475E-3},{"$f":"'Population 2016'!H88/'Population 2016'!H$5","v":1.168562933469082E-2},{"$f":"'Population 2016'!I88/'Population 2016'!I$5","v":2.6379700192613684E-3},{"$f":"'Population 2016'!J88/'Population 2016'!J$5","v":6.4685735136793742E-3},{"$f":"'Population 2016'!K88/'Population 2016'!K$5","v":1.004110948353258E-2},{"$f":"'Population 2016'!L88/'Population 2016'!L$5","v":3.2246278970025255E-3},{"$f":"'Population 2016'!M88/'Population 2016'!M$5","v":3.2246278970025255E-3},{"$f":"'Population 2016'!N88/'Population 2016'!N$5","v":1.3068533446926161E-2},{"$f":"'Population 2016'!O88/'Population 2016'!O$5","v":1.2680674849664656E-2},{"$f":"'Population 2016'!P88/'Population 2016'!P$5","v":2.0849768962019608E-3},{"$f":"'Population 2016'!Q88/'Population 2016'!Q$5","v":1.1045698640439008E-3},{"$f":"'Population 2016'!R88/'Population 2016'!R$5","v":2.4351945494224731E-3},{"$f":"'Population 2016'!S88/'Population 2016'!S$5","v":5.8440767488538688E-3},{"$f":"'Population 2016'!T88/'Population 2016'!T$5","v":5.3628846502840818E-3},{"$f":"'Population 2016'!U88/'Population 2016'!U$5","v":0},{"$f":"'Population 2016'!V88/'Population 2016'!V$5","v":6.4951420001373829E-3},{"$f":"'Population 2016'!W88/'Population 2016'!W$5","v":8.6122931905686408E-3},{"$f":"'Population 2016'!X88/'Population 2016'!X$5","v":8.6122931905686408E-3},{"$f":"'Population 2016'!Y88/'Population 2016'!Y$5","v":6.4824088647239316E-3},{"$f":"'Population 2016'!Z88/'Population 2016'!Z$5","v":1.833974404887501E-2},{"$f":"'Population 2016'!AA88/'Population 2016'!AA$5","v":1.3197294368627327E-2},{"$f":"'Population 2016'!AB88/'Population 2016'!AB$5","v":1.7481551231794317E-3},{"$f":"'Population 2016'!AC88/'Population 2016'!AC$5","v":1.4300164866648325E-2},{"$f":"'Population 2016'!AD88/'Population 2016'!AD$5","v":2.7466597193792101E-3},{"$f":"'Population 2016'!AE88/'Population 2016'!AE$5","v":2.7464347683241099E-3},{"$f":"'Population 2016'!AF88/'Population 2016'!AF$5","v":1.6860456348308676E-2},{"$f":"'Population 2016'!AG88/'Population 2016'!AG$5","v":2.7464347683241099E-3},{"$f":"'Population 2016'!AH88/'Population 2016'!AH$5","v":1.1216481056630411E-2},{"$f":"'Population 2016'!AI88/'Population 2016'!AI$5","v":5.1048866917490594E-3},{"$f":"'Population 2016'!AJ88/'Population 2016'!AJ$5","v":4.3080612330256814E-3},{"$f":"'Population 2016'!AK88/'Population 2016'!AK$5","v":4.9030084356888731E-4},{"$f":"'Population 2016'!AL88/'Population 2016'!AL$5","v":1.5288838438481049E-2},{"$f":"'Population 2016'!AM88/'Population 2016'!AM$5","v":1.3716492026179774E-2},{"$f":"'Population 2016'!AN88/'Population 2016'!AN$5","v":0},{"$f":"'Population 2016'!AO88/'Population 2016'!AO$5","v":0},{"$f":"'Population 2016'!AP88/'Population 2016'!AP$5","v":2.0369988744986765E-3},{"$f":"'Population 2016'!AQ88/'Population 2016'!AQ$5","v":1.2419849838329588E-2},{"$f":"'Population 2016'!AR88/'Population 2016'!AR$5","v":7.9928123056962203E-3},{"$f":"'Population 2016'!AS88/'Population 2016'!AS$5","v":2.6379700192613684E-3},{"$f":"'Population 2016'!AT88/'Population 2016'!AT$5","v":0},{"$f":"'Population 2016'!AU88/'Population 2016'!AU$5","v":0},{"$f":"'Population 2016'!AV88/'Population 2016'!AV$5","v":6.3351282863477985E-3},{"$f":"'Population 2016'!AW88/'Population 2016'!AW$5","v":8.5842638354994196E-3},{"$f":"'Population 2016'!AX88/'Population 2016'!AX$5","v":4.5363354076951579E-3},{"$f":"'Population 2016'!AY88/'Population 2016'!AY$5","v":7.3360668278204463E-3},{"$f":"'Population 2016'!AZ88/'Population 2016'!AZ$5","v":6.2129309501757456E-3},{"$f":"'Population 2016'!BA88/'Population 2016'!BA$5","v":1.4211293457136688E-2},{"$f":"'Population 2016'!BB88/'Population 2016'!BB$5","v":7.084510057104189E-3},{"$f":"'Population 2016'!BC88/'Population 2016'!BC$5","v":0},86]
[null,"Male 50-54",{"$f":"'Population 2016'!C89/'Population 2016'!C$5","v":3.1433200615375179E-3},{"$f":"'Population 2016'!D89/'Population 2016'!D$5","v":1.8876597908903299E-3},{"$f":"'Population 2016'!E89/'Population 2016'!E$5","v":7.3598694912314422E-4},{"$f":"'Population 2016'!F89/'Population 2016'!F$5","v":3.0079835178985319E-3},{"$f":"'Population 2016'!G89/'Population 2016'!G$5","v":3.5592486331402586E-3},{"$f":"'Population 2016'!H89/'Population 2016'!H$5","v":1.2580533246004546E-2},{"$f":"'Population 2016'!I89/'Population 2016'!I$5","v":2.7217150992379199E-3},{"$f":"'Population 2016'!J89/'Population 2016'!J$5","v":7.1403099939460783E-3},{"$f":"'Population 2016'!K89/'Population 2016'!K$5","v":1.0726267542408921E-2},{"$f":"'Population 2016'!L89/'Population 2016'!L$5","v":3.4708433275618318E-3},{"$f":"'Population 2016'!M89/'Population 2016'!M$5","v":3.4708433275618318E-3},{"$f":"'Population 2016'!N89/'Population 2016'!N$5","v":1.3381985356169778E-2},{"$f":"'Population 2016'!O89/'Population 2016'!O$5","v":1.3403869587184593E-2},{"$f":"'Population 2016'!P89/'Population 2016'!P$5","v":2.130057477741463E-3},{"$f":"'Population 2016'!Q89/'Population 2016'!Q$5","v":1.6803562825348703E-3},{"$f":"'Population 2016'!R89/'Population 2016'!R$5","v":3.2070048437749508E-3},{"$f":"'Population 2016'!S89/'Population 2016'!S$5","v":5.7637548965436885E-3},{"$f":"'Population 2016'!T89/'Population 2016'!T$5","v":5.560648292485447E-3},{"$f":"'Population 2016'!U89/'Population 2016'!U$5","v":0},{"$f":"'Population 2016'!V89/'Population 2016'!V$5","v":6.5485685500797581E-3},{"$f":"'Population 2016'!W89/'Population 2016'!W$5","v":7.9716823877787144E-3},{"$f":"'Population 2016'!X89/'Population 2016'!X$5","v":7.9716823877787144E-3},{"$f":"'Population 2016'!Y89/'Population 2016'!Y$5","v":6.8321648304478467E-3},{"$f":"'Population 2016'!Z89/'Population 2016'!Z$5","v":1.8783041640936693E-2},{"$f":"'Population 2016'!AA89/'Population 2016'!AA$5","v":1.3613197825874643E-2},{"$f":"'Population 2016'!AB89/'Population 2016'!AB$5","v":1.6314749802974319E-3},{"$f":"'Population 2016'!AC89/'Population 2016'!AC$5","v":1.5060371808423713E-2},{"$f":"'Population 2016'!AD89/'Population 2016'!AD$5","v":3.0332353269567161E-3},{"$f":"'Population 2016'!AE89/'Population 2016'!AE$5","v":2.8337046581587079E-3},{"$f":"'Population 2016'!AF89/'Population 2016'!AF$5","v":1.9378968164200937E-2},{"$f":"'Population 2016'!AG89/'Population 2016'!AG$5","v":2.8337046581587079E-3},{"$f":"'Population 2016'!AH89/'Population 2016'!AH$5","v":1.1013997380715752E-2},{"$f":"'Population 2016'!AI89/'Population 2016'!AI$5","v":5.2374989062910137E-3},{"$f":"'Population 2016'!AJ89/'Population 2016'!AJ$5","v":4.2522934500738921E-3},{"$f":"'Population 2016'!AK89/'Population 2016'!AK$5","v":3.1429541254415853E-4},{"$f":"'Population 2016'!AL89/'Population 2016'!AL$5","v":1.6805306752274703E-2},{"$f":"'Population 2016'!AM89/'Population 2016'!AM$5","v":1.3709248037784644E-2},{"$f":"'Population 2016'!AN89/'Population 2016'!AN$5","v":0},{"$f":"'Population 2016'!AO89/'Population 2016'!AO$5","v":0},{"$f":"'Population 2016'!AP89/'Population 2016'!AP$5","v":2.3540415008797932E-3},{"$f":"'Population 2016'!AQ89/'Population 2016'!AQ$5","v":1.2330794103140242E-2},{"$f":"'Population 2016'!AR89/'Population 2016'!AR$5","v":8.2253920494708699E-3},{"$f":"'Population 2016'!AS89/'Population 2016'!AS$5","v":2.7217150992379199E-3},{"$f":"'Population 2016'!AT89/'Population 2016'!AT$5","v":0},{"$f":"'Population 2016'!AU89/'Population 2016'!AU$5","v":0},{"$f":"'Population 2016'!AV89/'Population 2016'!AV$5","v":6.6730017949530145E-3},{"$f":"'Population 2016'!AW89/'Population 2016'!AW$5","v":8.1762157544694614E-3},{"$f":"'Population 2016'!AX89/'Population 2016'!AX$5","v":5.2008127068505052E-3},{"$f":"'Population 2016'!AY89/'Population 2016'!AY$5","v":7.180012851503932E-3},{"$f":"'Population 2016'!AZ89/'Population 2016'!AZ$5","v":6.4833085007852459E-3},{"$f":"'Population 2016'!BA89/'Population 2016'!BA$5","v":1.8125134960051824E-2},{"$f":"'Population 2016'!BB89/'Population 2016'!BB$5","v":6.8566456985423583E-3},{"$f":"'Population 2016'!BC89/'Population 2016'!BC$5","v":0},87]
[null,"Male 55-59",{"$f":"'Population 2016'!C90/'Population 2016'!C$5","v":2.8724323163968864E-3},{"$f":"'Population 2016'!D90/'Population 2016'!D$5","v":1.8191954461430123E-3},{"$f":"'Population 2016'!E90/'Population 2016'!E$5","v":8.5318232318733916E-4},{"$f":"'Population 2016'!F90/'Population 2016'!F$5","v":2.3899047128508885E-3},{"$f":"'Population 2016'!G90/'Population 2016'!G$5","v":2.882585394900666E-3},{"$f":"'Population 2016'!H90/'Population 2016'!H$5","v":1.2253050292951335E-2},{"$f":"'Population 2016'!I90/'Population 2016'!I$5","v":2.0622225944225778E-3},{"$f":"'Population 2016'!J90/'Population 2016'!J$5","v":6.750536974532065E-3},{"$f":"'Population 2016'!K90/'Population 2016'!K$5","v":1.0111987903416339E-2},{"$f":"'Population 2016'!L90/'Population 2016'!L$5","v":3.0896065318570995E-3},{"$f":"'Population 2016'!M90/'Population 2016'!M$5","v":3.0896065318570995E-3},{"$f":"'Population 2016'!N90/'Population 2016'!N$5","v":1.2899751649641137E-2},{"$f":"'Population 2016'!O90/'Population 2016'!O$5","v":1.2522166414043847E-2},{"$f":"'Population 2016'!P90/'Population 2016'!P$5","v":1.9497351515834554E-3},{"$f":"'Population 2016'!Q90/'Population 2016'!Q$5","v":1.3160832422650732E-3},{"$f":"'Population 2016'!R90/'Population 2016'!R$5","v":2.5682652898280727E-3},{"$f":"'Population 2016'!S90/'Population 2016'!S$5","v":5.0223224136804884E-3},{"$f":"'Population 2016'!T90/'Population 2016'!T$5","v":4.3833729636161434E-3},{"$f":"'Population 2016'!U90/'Population 2016'!U$5","v":0},{"$f":"'Population 2016'!V90/'Population 2016'!V$5","v":5.5487288297295856E-3},{"$f":"'Population 2016'!W90/'Population 2016'!W$5","v":7.8867034037351531E-3},{"$f":"'Population 2016'!X90/'Population 2016'!X$5","v":7.8867034037351531E-3},{"$f":"'Population 2016'!Y90/'Population 2016'!Y$5","v":6.1247038997790182E-3},{"$f":"'Population 2016'!Z90/'Population 2016'!Z$5","v":1.643491946115145E-2},{"$f":"'Population 2016'!AA90/'Population 2016'!AA$5","v":1.2134282337324279E-2},{"$f":"'Population 2016'!AB90/'Population 2016'!AB$5","v":1.5782524589828357E-3},{"$f":"'Population 2016'!AC90/'Population 2016'!AC$5","v":1.3196571932125414E-2},{"$f":"'Population 2016'!AD90/'Population 2016'!AD$5","v":2.7801555696155421E-3},{"$f":"'Population 2016'!AE90/'Population 2016'!AE$5","v":2.741301245392663E-3},{"$f":"'Population 2016'!AF90/'Population 2016'!AF$5","v":1.696602271184907E-2},{"$f":"'Population 2016'!AG90/'Population 2016'!AG$5","v":2.741301245392663E-3},{"$f":"'Population 2016'!AH90/'Population 2016'!AH$5","v":1.0226354457891754E-2},{"$f":"'Population 2016'!AI90/'Population 2016'!AI$5","v":4.210779595765159E-3},{"$f":"'Population 2016'!AJ90/'Population 2016'!AJ$5","v":3.7503834035077935E-3},{"$f":"'Population 2016'!AK90/'Population 2016'!AK$5","v":3.3943904554769119E-4},{"$f":"'Population 2016'!AL90/'Population 2016'!AL$5","v":1.649491850091343E-2},{"$f":"'Population 2016'!AM90/'Population 2016'!AM$5","v":1.2267694347153656E-2},{"$f":"'Population 2016'!AN90/'Population 2016'!AN$5","v":0},{"$f":"'Population 2016'!AO90/'Population 2016'!AO$5","v":0},{"$f":"'Population 2016'!AP90/'Population 2016'!AP$5","v":1.8467732986700062E-3},{"$f":"'Population 2016'!AQ90/'Population 2016'!AQ$5","v":1.1474488957088837E-2},{"$f":"'Population 2016'!AR90/'Population 2016'!AR$5","v":7.4075757282096285E-3},{"$f":"'Population 2016'!AS90/'Population 2016'!AS$5","v":2.0622225944225778E-3},{"$f":"'Population 2016'!AT90/'Population 2016'!AT$5","v":0},{"$f":"'Population 2016'!AU90/'Population 2016'!AU$5","v":0},{"$f":"'Population 2016'!AV90/'Population 2016'!AV$5","v":6.9158483792630138E-3},{"$f":"'Population 2016'!AW90/'Population 2016'!AW$5","v":8.0770638843126481E-3},{"$f":"'Population 2016'!AX90/'Population 2016'!AX$5","v":4.9324661052685386E-3},{"$f":"'Population 2016'!AY90/'Population 2016'!AY$5","v":6.8587252532052263E-3},{"$f":"'Population 2016'!AZ90/'Population 2016'!AZ$5","v":5.9540588272517557E-3},{"$f":"'Population 2016'!BA90/'Population 2016'!BA$5","v":1.4886093716259987E-2},{"$f":"'Population 2016'!BB90/'Population 2016'!BB$5","v":5.6275591584209689E-3},{"$f":"'Population 2016'!BC90/'Population 2016'!BC$5","v":0},88]
[null,"Male 60-64",{"$f":"'Population 2016'!C91/'Population 2016'!C$5","v":2.5862113026633889E-3},{"$f":"'Population 2016'!D91/'Population 2016'!D$5","v":1.484209187915065E-3},{"$f":"'Population 2016'!E91/'Population 2016'!E$5","v":4.7346931121934756E-4},{"$f":"'Population 2016'!F91/'Population 2016'!F$5","v":2.0190574298223022E-3},{"$f":"'Population 2016'!G91/'Population 2016'!G$5","v":2.8013858063119148E-3},{"$f":"'Population 2016'!H91/'Population 2016'!H$5","v":1.0472969686751207E-2},{"$f":"'Population 2016'!I91/'Population 2016'!I$5","v":1.6120927895486141E-3},{"$f":"'Population 2016'!J91/'Population 2016'!J$5","v":5.2660822835723115E-3},{"$f":"'Population 2016'!K91/'Population 2016'!K$5","v":7.8675046070972917E-3},{"$f":"'Population 2016'!L91/'Population 2016'!L$5","v":2.5574635045192444E-3},{"$f":"'Population 2016'!M91/'Population 2016'!M$5","v":2.5574635045192444E-3},{"$f":"'Population 2016'!N91/'Population 2016'!N$5","v":1.0400173604134351E-2},{"$f":"'Population 2016'!O91/'Population 2016'!O$5","v":1.0352582201484035E-2},{"$f":"'Population 2016'!P91/'Population 2016'!P$5","v":1.8032232615800743E-3},{"$f":"'Population 2016'!Q91/'Population 2016'!Q$5","v":1.0223146614023338E-3},{"$f":"'Population 2016'!R91/'Population 2016'!R$5","v":1.9428328099217545E-3},{"$f":"'Population 2016'!S91/'Population 2016'!S$5","v":4.203216051660191E-3},{"$f":"'Population 2016'!T91/'Population 2016'!T$5","v":3.7458760464023303E-3},{"$f":"'Population 2016'!U91/'Population 2016'!U$5","v":0},{"$f":"'Population 2016'!V91/'Population 2016'!V$5","v":4.7549629448714326E-3},{"$f":"'Population 2016'!W91/'Population 2016'!W$5","v":6.5956765307656606E-3},{"$f":"'Population 2016'!X91/'Population 2016'!X$5","v":6.5956765307656606E-3},{"$f":"'Population 2016'!Y91/'Population 2016'!Y$5","v":4.9999205100077901E-3},{"$f":"'Population 2016'!Z91/'Population 2016'!Z$5","v":1.3244725436183536E-2},{"$f":"'Population 2016'!AA91/'Population 2016'!AA$5","v":9.8527927651401153E-3},{"$f":"'Population 2016'!AB91/'Population 2016'!AB$5","v":1.2834815717019947E-3},{"$f":"'Population 2016'!AC91/'Population 2016'!AC$5","v":1.0643931480014315E-2},{"$f":"'Population 2016'!AD91/'Population 2016'!AD$5","v":2.4005359336037812E-3},{"$f":"'Population 2016'!AE91/'Population 2016'!AE$5","v":2.2484830439737573E-3},{"$f":"'Population 2016'!AF91/'Population 2016'!AF$5","v":1.4537996350420003E-2},{"$f":"'Population 2016'!AG91/'Population 2016'!AG$5","v":2.2484830439737573E-3},{"$f":"'Population 2016'!AH91/'Population 2016'!AH$5","v":8.4318661007031191E-3},{"$f":"'Population 2016'!AI91/'Population 2016'!AI$5","v":3.5408828418934291E-3},{"$f":"'Population 2016'!AJ91/'Population 2016'!AJ$5","v":3.401834760059114E-3},{"$f":"'Population 2016'!AK91/'Population 2016'!AK$5","v":2.5143633003532682E-4},{"$f":"'Population 2016'!AL91/'Population 2016'!AL$5","v":1.3967471311257338E-2},{"$f":"'Population 2016'!AM91/'Population 2016'!AM$5","v":9.8590682057727343E-3},{"$f":"'Population 2016'!AN91/'Population 2016'!AN$5","v":0},{"$f":"'Population 2016'!AO91/'Population 2016'!AO$5","v":0},{"$f":"'Population 2016'!AP91/'Population 2016'!AP$5","v":1.5376567379484171E-3},{"$f":"'Population 2016'!AQ91/'Population 2016'!AQ$5","v":8.1931276374198492E-3},{"$f":"'Population 2016'!AR91/'Population 2016'!AR$5","v":6.0947477300640285E-3},{"$f":"'Population 2016'!AS91/'Population 2016'!AS$5","v":1.6120927895486141E-3},{"$f":"'Population 2016'!AT91/'Population 2016'!AT$5","v":0},{"$f":"'Population 2016'!AU91/'Population 2016'!AU$5","v":0},{"$f":"'Population 2016'!AV91/'Population 2016'!AV$5","v":6.4407137577869285E-3},{"$f":"'Population 2016'!AW91/'Population 2016'!AW$5","v":6.9291903105741653E-3},{"$f":"'Population 2016'!AX91/'Population 2016'!AX$5","v":3.8590796989406697E-3},{"$f":"'Population 2016'!AY91/'Population 2016'!AY$5","v":5.6638413757228974E-3},{"$f":"'Population 2016'!AZ91/'Population 2016'!AZ$5","v":4.8437850555999792E-3},{"$f":"'Population 2016'!BA91/'Population 2016'!BA$5","v":1.3266573094364069E-2},{"$f":"'Population 2016'!BB91/'Population 2016'!BB$5","v":4.4813323850493364E-3},{"$f":"'Population 2016'!BC91/'Population 2016'!BC$5","v":0},89]
[null,"Male 65-69",{"$f":"'Population 2016'!C92/'Population 2016'!C$5","v":2.2233239459655617E-3},{"$f":"'Population 2016'!D92/'Population 2016'!D$5","v":1.3546159639290709E-3},{"$f":"'Population 2016'!E92/'Population 2016'!E$5","v":5.5784998054556794E-4},{"$f":"'Population 2016'!F92/'Population 2016'!F$5","v":2.111769250579449E-3},{"$f":"'Population 2016'!G92/'Population 2016'!G$5","v":2.3141882747794076E-3},{"$f":"'Population 2016'!H92/'Population 2016'!H$5","v":1.0064426596803637E-2},{"$f":"'Population 2016'!I92/'Population 2016'!I$5","v":2.0936269994137843E-3},{"$f":"'Population 2016'!J92/'Population 2016'!J$5","v":5.1416866390784771E-3},{"$f":"'Population 2016'!K92/'Population 2016'!K$5","v":7.9620091669423045E-3},{"$f":"'Population 2016'!L92/'Population 2016'!L$5","v":2.9466427334678253E-3},{"$f":"'Population 2016'!M92/'Population 2016'!M$5","v":2.9466427334678253E-3},{"$f":"'Population 2016'!N92/'Population 2016'!N$5","v":9.8857909838371335E-3},{"$f":"'Population 2016'!O92/'Population 2016'!O$5","v":1.0788480399441257E-2},{"$f":"'Population 2016'!P92/'Population 2016'!P$5","v":1.431308463879184E-3},{"$f":"'Population 2016'!Q92/'Population 2016'!Q$5","v":1.1868250666854678E-3},{"$f":"'Population 2016'!R92/'Population 2016'!R$5","v":1.8097620695161547E-3},{"$f":"'Population 2016'!S92/'Population 2016'!S$5","v":3.9331227900457396E-3},{"$f":"'Population 2016'!T92/'Population 2016'!T$5","v":3.0571932453246349E-3},{"$f":"'Population 2016'!U92/'Population 2016'!U$5","v":0},{"$f":"'Population 2016'!V92/'Population 2016'!V$5","v":4.9152425946985597E-3},{"$f":"'Population 2016'!W92/'Population 2016'!W$5","v":6.3701553808039012E-3},{"$f":"'Population 2016'!X92/'Population 2016'!X$5","v":6.3701553808039012E-3},{"$f":"'Population 2016'!Y92/'Population 2016'!Y$5","v":5.023767507670784E-3},{"$f":"'Population 2016'!Z92/'Population 2016'!Z$5","v":1.1800620616628886E-2},{"$f":"'Population 2016'!AA92/'Population 2016'!AA$5","v":9.0528762115845724E-3},{"$f":"'Population 2016'!AB92/'Population 2016'!AB$5","v":1.1729424889716795E-3},{"$f":"'Population 2016'!AC92/'Population 2016'!AC$5","v":9.5455100212857944E-3},{"$f":"'Population 2016'!AD92/'Population 2016'!AD$5","v":2.1474561762626077E-3},{"$f":"'Population 2016'!AE92/'Population 2016'!AE$5","v":2.0842103101674555E-3},{"$f":"'Population 2016'!AF92/'Population 2016'!AF$5","v":1.4749129077500792E-2},{"$f":"'Population 2016'!AG92/'Population 2016'!AG$5","v":2.0842103101674555E-3},{"$f":"'Population 2016'!AH92/'Population 2016'!AH$5","v":8.1680800274931964E-3},{"$f":"'Population 2016'!AI92/'Population 2016'!AI$5","v":3.1539832881266952E-3},{"$f":"'Population 2016'!AJ92/'Population 2016'!AJ$5","v":2.830214984803279E-3},{"$f":"'Population 2016'!AK92/'Population 2016'!AK$5","v":2.3886451353356047E-4},{"$f":"'Population 2016'!AL92/'Population 2016'!AL$5","v":1.3213671272237101E-2},{"$f":"'Population 2016'!AM92/'Population 2016'!AM$5","v":9.6598585249066428E-3},{"$f":"'Population 2016'!AN92/'Population 2016'!AN$5","v":0},{"$f":"'Population 2016'!AO92/'Population 2016'!AO$5","v":0},{"$f":"'Population 2016'!AP92/'Population 2016'!AP$5","v":1.2760965711839957E-3},{"$f":"'Population 2016'!AQ92/'Population 2016'!AQ$5","v":7.3642242560420894E-3},{"$f":"'Population 2016'!AR92/'Population 2016'!AR$5","v":5.6957531696230357E-3},{"$f":"'Population 2016'!AS92/'Population 2016'!AS$5","v":2.0936269994137843E-3},{"$f":"'Population 2016'!AT92/'Population 2016'!AT$5","v":0},{"$f":"'Population 2016'!AU92/'Population 2016'!AU$5","v":0},{"$f":"'Population 2016'!AV92/'Population 2016'!AV$5","v":5.5432372505543242E-3},{"$f":"'Population 2016'!AW92/'Population 2016'!AW$5","v":6.5974128988956007E-3},{"$f":"'Population 2016'!AX92/'Population 2016'!AX$5","v":3.6162899165569852E-3},{"$f":"'Population 2016'!AY92/'Population 2016'!AY$5","v":5.4236406474710078E-3},{"$f":"'Population 2016'!AZ92/'Population 2016'!AZ$5","v":4.5906656465187455E-3},{"$f":"'Population 2016'!BA92/'Population 2016'!BA$5","v":1.1026236234074714E-2},{"$f":"'Population 2016'!BB92/'Population 2016'!BB$5","v":4.7575316075485251E-3},{"$f":"'Population 2016'!BC92/'Population 2016'!BC$5","v":0},90]
[null,"Male 70-74",{"$f":"'Population 2016'!C93/'Population 2016'!C$5","v":1.2931056513316944E-3},{"$f":"'Population 2016'!D93/'Population 2016'!D$5","v":7.8244965425505904E-4},{"$f":"'Population 2016'!E93/'Population 2016'!E$5","v":3.1408360249204242E-4},{"$f":"'Population 2016'!F93/'Population 2016'!F$5","v":1.3906773113571979E-3},{"$f":"'Population 2016'!G93/'Population 2016'!G$5","v":2.11118930330753E-3},{"$f":"'Population 2016'!H93/'Population 2016'!H$5","v":7.4640174052325939E-3},{"$f":"'Population 2016'!I93/'Population 2016'!I$5","v":1.4550707645925802E-3},{"$f":"'Population 2016'!J93/'Population 2016'!J$5","v":3.6904041199837456E-3},{"$f":"'Population 2016'!K93/'Population 2016'!K$5","v":5.7884042905070173E-3},{"$f":"'Population 2016'!L93/'Population 2016'!L$5","v":1.7949899131097804E-3},{"$f":"'Population 2016'!M93/'Population 2016'!M$5","v":1.7949899131097804E-3},{"$f":"'Population 2016'!N93/'Population 2016'!N$5","v":7.0325748868760099E-3},{"$f":"'Population 2016'!O93/'Population 2016'!O$5","v":7.4003625880464828E-3},{"$f":"'Population 2016'!P93/'Population 2016'!P$5","v":9.9177279386904096E-4},{"$f":"'Population 2016'!Q93/'Population 2016'!Q$5","v":7.5204756700861328E-4},{"$f":"'Population 2016'!R93/'Population 2016'!R$5","v":1.1577154415287167E-3},{"$f":"'Population 2016'!S93/'Population 2016'!S$5","v":2.8924693408841759E-3},{"$f":"'Population 2016'!T93/'Population 2016'!T$5","v":2.0800081897414183E-3},{"$f":"'Population 2016'!U93/'Population 2016'!U$5","v":0},{"$f":"'Population 2016'!V93/'Population 2016'!V$5","v":3.0987398966577876E-3},{"$f":"'Population 2016'!W93/'Population 2016'!W$5","v":4.8699494701887188E-3},{"$f":"'Population 2016'!X93/'Population 2016'!X$5","v":4.8699494701887188E-3},{"$f":"'Population 2016'!Y93/'Population 2016'!Y$5","v":3.3822991685346815E-3},{"$f":"'Population 2016'!Z93/'Population 2016'!Z$5","v":8.5504168739582997E-3},{"$f":"'Population 2016'!AA93/'Population 2016'!AA$5","v":6.5235719596028856E-3},{"$f":"'Population 2016'!AB93/'Population 2016'!AB$5","v":6.8575171693806736E-4},{"$f":"'Population 2016'!AC93/'Population 2016'!AC$5","v":6.8615140839971781E-3},{"$f":"'Population 2016'!AD93/'Population 2016'!AD$5","v":1.5594179165581152E-3},{"$f":"'Population 2016'!AE93/'Population 2016'!AE$5","v":1.3501165309705437E-3},{"$f":"'Population 2016'!AF93/'Population 2016'!AF$5","v":1.0164532718032243E-2},{"$f":"'Population 2016'!AG93/'Population 2016'!AG$5","v":1.3501165309705437E-3},{"$f":"'Population 2016'!AH93/'Population 2016'!AH$5","v":5.9166101631944121E-3},{"$f":"'Population 2016'!AI93/'Population 2016'!AI$5","v":2.2530405109808384E-3},{"$f":"'Population 2016'!AJ93/'Population 2016'!AJ$5","v":2.1191757521679725E-3},{"$f":"'Population 2016'!AK93/'Population 2016'!AK$5","v":1.8857724752649509E-4},{"$f":"'Population 2016'!AL93/'Population 2016'!AL$5","v":1.0136393465883898E-2},{"$f":"'Population 2016'!AM93/'Population 2016'!AM$5","v":6.8057270972251898E-3},{"$f":"'Population 2016'!AN93/'Population 2016'!AN$5","v":0},{"$f":"'Population 2016'!AO93/'Population 2016'!AO$5","v":0},{"$f":"'Population 2016'!AP93/'Population 2016'!AP$5","v":9.432018134838229E-4},{"$f":"'Population 2016'!AQ93/'Population 2016'!AQ$5","v":5.2748396996766594E-3},{"$f":"'Population 2016'!AR93/'Population 2016'!AR$5","v":4.0897499389032617E-3},{"$f":"'Population 2016'!AS93/'Population 2016'!AS$5","v":1.4550707645925802E-3},{"$f":"'Population 2016'!AT93/'Population 2016'!AT$5","v":0},{"$f":"'Population 2016'!AU93/'Population 2016'!AU$5","v":0},{"$f":"'Population 2016'!AV93/'Population 2016'!AV$5","v":4.350121423292155E-3},{"$f":"'Population 2016'!AW93/'Population 2016'!AW$5","v":4.9804747086460432E-3},{"$f":"'Population 2016'!AX93/'Population 2016'!AX$5","v":2.555681919828258E-3},{"$f":"'Population 2016'!AY93/'Population 2016'!AY$5","v":4.0069153330681432E-3},{"$f":"'Population 2016'!AZ93/'Population 2016'!AZ$5","v":3.2474069642353782E-3},{"$f":"'Population 2016'!BA93/'Population 2016'!BA$5","v":8.0706110991146628E-3},{"$f":"'Population 2016'!BB93/'Population 2016'!BB$5","v":3.7148795426140877E-3},{"$f":"'Population 2016'!BC93/'Population 2016'!BC$5","v":0},91]
[null,"Male 75-79",{"$f":"'Population 2016'!C94/'Population 2016'!C$5","v":8.5355195166953736E-4},{"$f":"'Population 2016'!D94/'Population 2016'!D$5","v":5.5015991314808833E-4},{"$f":"'Population 2016'!E94/'Population 2016'!E$5","v":2.7189326782893226E-4},{"$f":"'Population 2016'!F94/'Population 2016'!F$5","v":1.2567602369302085E-3},{"$f":"'Population 2016'!G94/'Population 2016'!G$5","v":1.2179938288312672E-3},{"$f":"'Population 2016'!H94/'Population 2016'!H$5","v":5.82011782901499E-3},{"$f":"'Population 2016'!I94/'Population 2016'!I$5","v":7.6417385478603128E-4},{"$f":"'Population 2016'!J94/'Population 2016'!J$5","v":2.9523232959869964E-3},{"$f":"'Population 2016'!K94/'Population 2016'!K$5","v":4.2999574729480697E-3},{"$f":"'Population 2016'!L94/'Population 2016'!L$5","v":1.4534652836242911E-3},{"$f":"'Population 2016'!M94/'Population 2016'!M$5","v":1.4534652836242911E-3},{"$f":"'Population 2016'!N94/'Population 2016'!N$5","v":5.336719685583623E-3},{"$f":"'Population 2016'!O94/'Population 2016'!O$5","v":6.2908035387008255E-3},{"$f":"'Population 2016'!P94/'Population 2016'!P$5","v":7.5509974078665615E-4},{"$f":"'Population 2016'!Q94/'Population 2016'!Q$5","v":7.1679533730508458E-4},{"$f":"'Population 2016'!R94/'Population 2016'!R$5","v":1.3440144780965562E-3},{"$f":"'Population 2016'!S94/'Population 2016'!S$5","v":2.1033733412654841E-3},{"$f":"'Population 2016'!T94/'Population 2016'!T$5","v":1.6868075364234096E-3},{"$f":"'Population 2016'!U94/'Population 2016'!U$5","v":0},{"$f":"'Population 2016'!V94/'Population 2016'!V$5","v":2.6713274971187826E-3},{"$f":"'Population 2016'!W94/'Population 2016'!W$5","v":3.2684224632139052E-3},{"$f":"'Population 2016'!X94/'Population 2016'!X$5","v":3.2684224632139052E-3},{"$f":"'Population 2016'!Y94/'Population 2016'!Y$5","v":2.8059967250123208E-3},{"$f":"'Population 2016'!Z94/'Population 2016'!Z$5","v":6.4132966048050365E-3},{"$f":"'Population 2016'!AA94/'Population 2016'!AA$5","v":4.9509785357939404E-3},{"$f":"'Population 2016'!AB94/'Population 2016'!AB$5","v":4.7490865173024368E-4},{"$f":"'Population 2016'!AC94/'Population 2016'!AC$5","v":5.2397392748763502E-3},{"$f":"'Population 2016'!AD94/'Population 2016'!AD$5","v":1.0458148796010272E-3},{"$f":"'Population 2016'!AE94/'Population 2016'!AE$5","v":9.8050287990636463E-4},{"$f":"'Population 2016'!AF94/'Population 2016'!AF$5","v":7.630939993062782E-3},{"$f":"'Population 2016'!AG94/'Population 2016'!AG$5","v":9.8050287990636463E-4},{"$f":"'Population 2016'!AH94/'Population 2016'!AH$5","v":4.4323490892878709E-3},{"$f":"'Population 2016'!AI94/'Population 2016'!AI$5","v":1.7909484644325839E-3},{"$f":"'Population 2016'!AJ94/'Population 2016'!AJ$5","v":1.6172657056018737E-3},{"$f":"'Population 2016'!AK94/'Population 2016'!AK$5","v":8.800271551236438E-5},{"$f":"'Population 2016'!AL94/'Population 2016'!AL$5","v":7.5557368617087317E-3},{"$f":"'Population 2016'!AM94/'Population 2016'!AM$5","v":5.3533074240015065E-3},{"$f":"'Population 2016'!AN94/'Population 2016'!AN$5","v":0},{"$f":"'Population 2016'!AO94/'Population 2016'!AO$5","v":0},{"$f":"'Population 2016'!AP94/'Population 2016'!AP$5","v":7.609023033146807E-4},{"$f":"'Population 2016'!AQ94/'Population 2016'!AQ$5","v":4.6514495533512357E-3},{"$f":"'Population 2016'!AR94/'Population 2016'!AR$5","v":3.0997265851345455E-3},{"$f":"'Population 2016'!AS94/'Population 2016'!AS$5","v":7.6417385478603128E-4},{"$f":"'Population 2016'!AT94/'Population 2016'!AT$5","v":0},{"$f":"'Population 2016'!AU94/'Population 2016'!AU$5","v":0},{"$f":"'Population 2016'!AV94/'Population 2016'!AV$5","v":3.2520325203252032E-3},{"$f":"'Population 2016'!AW94/'Population 2016'!AW$5","v":3.4626883885532978E-3},{"$f":"'Population 2016'!AX94/'Population 2016'!AX$5","v":2.2234432702505848E-3},{"$f":"'Population 2016'!AY94/'Population 2016'!AY$5","v":2.8793488571341144E-3},{"$f":"'Population 2016'!AZ94/'Population 2016'!AZ$5","v":2.536946804655096E-3},{"$f":"'Population 2016'!BA94/'Population 2016'!BA$5","v":5.3984020729863956E-3},{"$f":"'Population 2016'!BB94/'Population 2016'!BB$5","v":2.8172320694917243E-3},{"$f":"'Population 2016'!BC94/'Population 2016'!BC$5","v":0},92]
[null,"Male 80-84",{"$f":"'Population 2016'!C95/'Population 2016'!C$5","v":6.1333074371463766E-4},{"$f":"'Population 2016'!D95/'Population 2016'!D$5","v":3.9611513746662364E-4},{"$f":"'Population 2016'!E95/'Population 2016'!E$5","v":1.9688822842784751E-4},{"$f":"'Population 2016'!F95/'Population 2016'!F$5","v":7.1079062580479014E-4},{"$f":"'Population 2016'!G95/'Population 2016'!G$5","v":9.3379526877063819E-4},{"$f":"'Population 2016'!H95/'Population 2016'!H$5","v":3.9038561928323385E-3},{"$f":"'Population 2016'!I95/'Population 2016'!I$5","v":5.8621555983585959E-4},{"$f":"'Population 2016'!J95/'Population 2016'!J$5","v":1.4098173042634535E-3},{"$f":"'Population 2016'!K95/'Population 2016'!K$5","v":1.9137173368615036E-3},{"$f":"'Population 2016'!L95/'Population 2016'!L$5","v":9.2132225628643589E-4},{"$f":"'Population 2016'!M95/'Population 2016'!M$5","v":9.2132225628643589E-4},{"$f":"'Population 2016'!N95/'Population 2016'!N$5","v":3.3917104025847728E-3},{"$f":"'Population 2016'!O95/'Population 2016'!O$5","v":4.180659989498816E-3},{"$f":"'Population 2016'!P95/'Population 2016'!P$5","v":4.8461625154964499E-4},{"$f":"'Population 2016'!Q95/'Population 2016'!Q$5","v":4.5827898614587373E-4},{"$f":"'Population 2016'!R95/'Population 2016'!R$5","v":6.3873955394687821E-4},{"$f":"'Population 2016'!S95/'Population 2016'!S$5","v":1.452854603324795E-3},{"$f":"'Population 2016'!T95/'Population 2016'!T$5","v":1.1540090180220844E-3},{"$f":"'Population 2016'!U95/'Population 2016'!U$5","v":0},{"$f":"'Population 2016'!V95/'Population 2016'!V$5","v":1.9538852550354522E-3},{"$f":"'Population 2016'!W95/'Population 2016'!W$5","v":2.3696062858300812E-3},{"$f":"'Population 2016'!X95/'Population 2016'!X$5","v":2.3696062858300812E-3},{"$f":"'Population 2016'!Y95/'Population 2016'!Y$5","v":1.6931368340725903E-3},{"$f":"'Population 2016'!Z95/'Population 2016'!Z$5","v":4.3826451896403868E-3},{"$f":"'Population 2016'!AA95/'Population 2016'!AA$5","v":3.2740770564133842E-3},{"$f":"'Population 2016'!AB95/'Population 2016'!AB$5","v":3.377583083426302E-4},{"$f":"'Population 2016'!AC95/'Population 2016'!AC$5","v":3.4866089805780055E-3},{"$f":"'Population 2016'!AD95/'Population 2016'!AD$5","v":7.2946518292455994E-4},{"$f":"'Population 2016'!AE95/'Population 2016'!AE$5","v":6.5195741229376076E-4},{"$f":"'Population 2016'!AF95/'Population 2016'!AF$5","v":4.9012954500897311E-3},{"$f":"'Population 2016'!AG95/'Population 2016'!AG$5","v":6.5195741229376076E-4},{"$f":"'Population 2016'!AH95/'Population 2016'!AH$5","v":2.8923585632947254E-3},{"$f":"'Population 2016'!AI95/'Population 2016'!AI$5","v":1.1825728410184619E-3},{"$f":"'Population 2016'!AJ95/'Population 2016'!AJ$5","v":1.0317039846080918E-3},{"$f":"'Population 2016'!AK95/'Population 2016'!AK$5","v":3.7715449505299018E-5},{"$f":"'Population 2016'!AL95/'Population 2016'!AL$5","v":4.9218708430144907E-3},{"$f":"'Population 2016'!AM95/'Population 2016'!AM$5","v":3.5133343716383368E-3},{"$f":"'Population 2016'!AN95/'Population 2016'!AN$5","v":0},{"$f":"'Population 2016'!AO95/'Population 2016'!AO$5","v":0},{"$f":"'Population 2016'!AP95/'Population 2016'!AP$5","v":5.0726820220978706E-4},{"$f":"'Population 2016'!AQ95/'Population 2016'!AQ$5","v":2.9114374965747794E-3},{"$f":"'Population 2016'!AR95/'Population 2016'!AR$5","v":2.0575732887956489E-3},{"$f":"'Population 2016'!AS95/'Population 2016'!AS$5","v":5.8621555983585959E-4},{"$f":"'Population 2016'!AT95/'Population 2016'!AT$5","v":0},{"$f":"'Population 2016'!AU95/'Population 2016'!AU$5","v":0},{"$f":"'Population 2016'!AV95/'Population 2016'!AV$5","v":2.3967902016682504E-3},{"$f":"'Population 2016'!AW95/'Population 2016'!AW$5","v":2.2385441454634207E-3},{"$f":"'Population 2016'!AX95/'Population 2016'!AX$5","v":1.1372784543235749E-3},{"$f":"'Population 2016'!AY95/'Population 2016'!AY$5","v":1.9583244086778251E-3},{"$f":"'Population 2016'!AZ95/'Population 2016'!AZ$5","v":1.5963780913646013E-3},{"$f":"'Population 2016'!BA95/'Population 2016'!BA$5","v":3.5899373785359535E-3},{"$f":"'Population 2016'!BB95/'Population 2016'!BB$5","v":1.7676750239948075E-3},{"$f":"'Population 2016'!BC95/'Population 2016'!BC$5","v":0},93]
[null,"Male 85-89",{"$f":"'Population 2016'!C96/'Population 2016'!C$5","v":3.1688755091922947E-4},{"$f":"'Population 2016'!D96/'Population 2016'!D$5","v":2.0294787907240594E-4},{"$f":"'Population 2016'!E96/'Population 2016'!E$5","v":9.8444114213923754E-5},{"$f":"'Population 2016'!F96/'Population 2016'!F$5","v":3.8114859644604689E-4},{"$f":"'Population 2016'!G96/'Population 2016'!G$5","v":5.277973258268825E-4},{"$f":"'Population 2016'!H96/'Population 2016'!H$5","v":1.8319590938125176E-3},{"$f":"'Population 2016'!I96/'Population 2016'!I$5","v":3.9778912988861902E-4},{"$f":"'Population 2016'!J96/'Population 2016'!J$5","v":8.6247646849058328E-4},{"$f":"'Population 2016'!K96/'Population 2016'!K$5","v":1.2994376978689222E-3},{"$f":"'Population 2016'!L96/'Population 2016'!L$5","v":5.3214302733785518E-4},{"$f":"'Population 2016'!M96/'Population 2016'!M$5","v":5.3214302733785518E-4},{"$f":"'Population 2016'!N96/'Population 2016'!N$5","v":1.8003391710402585E-3},{"$f":"'Population 2016'!O96/'Population 2016'!O$5","v":2.0606096630705066E-3},{"$f":"'Population 2016'!P96/'Population 2016'!P$5","v":2.5921334385213568E-4},{"$f":"'Population 2016'!Q96/'Population 2016'!Q$5","v":1.1750743234509583E-4},{"$f":"'Population 2016'!R96/'Population 2016'!R$5","v":3.193697769734391E-4},{"$f":"'Population 2016'!S96/'Population 2016'!S$5","v":6.9641693926079181E-4},{"$f":"'Population 2016'!T96/'Population 2016'!T$5","v":5.4443167382493493E-4},{"$f":"'Population 2016'!U96/'Population 2016'!U$5","v":0},{"$f":"'Population 2016'!V96/'Population 2016'!V$5","v":7.9376588485815256E-4},{"$f":"'Population 2016'!W96/'Population 2016'!W$5","v":1.1341425947352251E-3},{"$f":"'Population 2016'!X96/'Population 2016'!X$5","v":1.1341425947352251E-3},{"$f":"'Population 2016'!Y96/'Population 2016'!Y$5","v":8.2669591898379999E-4},{"$f":"'Population 2016'!Z96/'Population 2016'!Z$5","v":2.0964685249030648E-3},{"$f":"'Population 2016'!AA96/'Population 2016'!AA$5","v":1.5519975657024483E-3},{"$f":"'Population 2016'!AB96/'Population 2016'!AB$5","v":1.7809074439884139E-4},{"$f":"'Population 2016'!AC96/'Population 2016'!AC$5","v":1.6724552719058544E-3},{"$f":"'Population 2016'!AD96/'Population 2016'!AD$5","v":3.8706315828650119E-4},{"$f":"'Population 2016'!AE96/'Population 2016'!AE$5","v":3.3367899054405077E-4},{"$f":"'Population 2016'!AF96/'Population 2016'!AF$5","v":2.1264081798850836E-3},{"$f":"'Population 2016'!AG96/'Population 2016'!AG$5","v":3.3367899054405077E-4},{"$f":"'Population 2016'!AH96/'Population 2016'!AH$5","v":1.3356492016755989E-3},{"$f":"'Population 2016'!AI96/'Population 2016'!AI$5","v":5.5232303788607922E-4},{"$f":"'Population 2016'!AJ96/'Population 2016'!AJ$5","v":7.8074896132504252E-4},{"$f":"'Population 2016'!AK96/'Population 2016'!AK$5","v":5.0287266007065362E-5},{"$f":"'Population 2016'!AL96/'Population 2016'!AL$5","v":2.2259271740479947E-3},{"$f":"'Population 2016'!AM96/'Population 2016'!AM$5","v":1.5176155687798589E-3},{"$f":"'Population 2016'!AN96/'Population 2016'!AN$5","v":0},{"$f":"'Population 2016'!AO96/'Population 2016'!AO$5","v":0},{"$f":"'Population 2016'!AP96/'Population 2016'!AP$5","v":2.5363410110489353E-4},{"$f":"'Population 2016'!AQ96/'Population 2016'!AQ$5","v":1.5481997040609416E-3},{"$f":"'Population 2016'!AR96/'Population 2016'!AR$5","v":9.9113724143047241E-4},{"$f":"'Population 2016'!AS96/'Population 2016'!AS$5","v":3.9778912988861902E-4},{"$f":"'Population 2016'!AT96/'Population 2016'!AT$5","v":0},{"$f":"'Population 2016'!AU96/'Population 2016'!AU$5","v":0},{"$f":"'Population 2016'!AV96/'Population 2016'!AV$5","v":1.1192059972547777E-3},{"$f":"'Population 2016'!AW96/'Population 2016'!AW$5","v":1.1440600402709135E-3},{"$f":"'Population 2016'!AX96/'Population 2016'!AX$5","v":6.2614207035792326E-4},{"$f":"'Population 2016'!AY96/'Population 2016'!AY$5","v":9.7916220433891255E-4},{"$f":"'Population 2016'!AZ96/'Population 2016'!AZ$5","v":8.4277257796365435E-4},{"$f":"'Population 2016'!BA96/'Population 2016'!BA$5","v":1.6195206218959188E-3},{"$f":"'Population 2016'!BB96/'Population 2016'!BB$5","v":7.1811797849789057E-4},{"$f":"'Population 2016'!BC96/'Population 2016'!BC$5","v":0},94]
[null,"Male 90+",{"$f":"'Population 2016'!C97/'Population 2016'!C$5","v":1.2777723827388284E-4},{"$f":"'Population 2016'!D97/'Population 2016'!D$5","v":9.780620678188238E-5},{"$f":"'Population 2016'!E97/'Population 2016'!E$5","v":7.0317224438516964E-5},{"$f":"'Population 2016'!F97/'Population 2016'!F$5","v":1.1331444759206799E-4},{"$f":"'Population 2016'!G97/'Population 2016'!G$5","v":1.623991771775023E-4},{"$f":"'Population 2016'!H97/'Population 2016'!H$5","v":6.9711717729148903E-4},{"$f":"'Population 2016'!I97/'Population 2016'!I$5","v":1.465538899589649E-4},{"$f":"'Population 2016'!J97/'Population 2016'!J$5","v":3.7318693348150234E-4},{"$f":"'Population 2016'!K97/'Population 2016'!K$5","v":6.8515805887634082E-4},{"$f":"'Population 2016'!L97/'Population 2016'!L$5","v":2.0650326434006321E-4},{"$f":"'Population 2016'!M97/'Population 2016'!M$5","v":2.0650326434006321E-4},{"$f":"'Population 2016'!N97/'Population 2016'!N$5","v":7.3138778823510502E-4},{"$f":"'Population 2016'!O97/'Population 2016'!O$5","v":8.0244895533034151E-4},{"$f":"'Population 2016'!P97/'Population 2016'!P$5","v":1.0143130846387918E-4},{"$f":"'Population 2016'!Q97/'Population 2016'!Q$5","v":8.2255202641567078E-5},{"$f":"'Population 2016'!R97/'Population 2016'!R$5","v":1.4637781444615957E-4},{"$f":"'Population 2016'!S97/'Population 2016'!S$5","v":3.2746601326458019E-4},{"$f":"'Population 2016'!T97/'Population 2016'!T$5","v":2.5592941931941389E-4},{"$f":"'Population 2016'!U97/'Population 2016'!U$5","v":0},{"$f":"'Population 2016'!V97/'Population 2016'!V$5","v":3.9688294242907628E-4},{"$f":"'Population 2016'!W97/'Population 2016'!W$5","v":5.0987390426136922E-4},{"$f":"'Population 2016'!X97/'Population 2016'!X$5","v":5.0987390426136922E-4},{"$f":"'Population 2016'!Y97/'Population 2016'!Y$5","v":3.8552646221840669E-4},{"$f":"'Population 2016'!Z97/'Population 2016'!Z$5","v":8.9820996819484967E-4},{"$f":"'Population 2016'!AA97/'Population 2016'!AA$5","v":6.7833455247525679E-4},{"$f":"'Population 2016'!AB97/'Population 2016'!AB$5","v":8.5974842123578594E-5},{"$f":"'Population 2016'!AC97/'Population 2016'!AC$5","v":7.374524482800706E-4},{"$f":"'Population 2016'!AD97/'Population 2016'!AD$5","v":1.2281811753321671E-4},{"$f":"'Population 2016'!AE97/'Population 2016'!AE$5","v":1.0780398156038564E-4},{"$f":"'Population 2016'!AF97/'Population 2016'!AF$5","v":9.5009727186354796E-4},{"$f":"'Population 2016'!AG97/'Population 2016'!AG$5","v":1.0780398156038564E-4},{"$f":"'Population 2016'!AH97/'Population 2016'!AH$5","v":5.7215570808912995E-4},{"$f":"'Population 2016'!AI97/'Population 2016'!AI$5","v":2.7479438271064835E-4},{"$f":"'Population 2016'!AJ97/'Population 2016'!AJ$5","v":4.1825837213841564E-4},{"$f":"'Population 2016'!AK97/'Population 2016'!AK$5","v":2.5143633003532681E-5},{"$f":"'Population 2016'!AL97/'Population 2016'!AL$5","v":8.1587768929249212E-4},{"$f":"'Population 2016'!AM97/'Population 2016'!AM$5","v":6.8093490914227558E-4},{"$f":"'Population 2016'!AN97/'Population 2016'!AN$5","v":0},{"$f":"'Population 2016'!AO97/'Population 2016'!AO$5","v":0},{"$f":"'Population 2016'!AP97/'Population 2016'!AP$5","v":7.1334590935751306E-5},{"$f":"'Population 2016'!AQ97/'Population 2016'!AQ$5","v":6.4394146983065711E-4},{"$f":"'Population 2016'!AR97/'Population 2016'!AR$5","v":4.2684175198489212E-4},{"$f":"'Population 2016'!AS97/'Population 2016'!AS$5","v":1.465538899589649E-4},{"$f":"'Population 2016'!AT97/'Population 2016'!AT$5","v":0},{"$f":"'Population 2016'!AU97/'Population 2016'!AU$5","v":0},{"$f":"'Population 2016'!AV97/'Population 2016'!AV$5","v":4.434589800443459E-4},{"$f":"'Population 2016'!AW97/'Population 2016'!AW$5","v":4.5762401610836536E-4},{"$f":"'Population 2016'!AX97/'Population 2016'!AX$5","v":2.0445455358626064E-4},{"$f":"'Population 2016'!AY97/'Population 2016'!AY$5","v":4.0849423212264009E-4},{"$f":"'Population 2016'!AZ97/'Population 2016'!AZ$5","v":3.1927561827292027E-4},{"$f":"'Population 2016'!BA97/'Population 2016'!BA$5","v":9.7171237313755125E-4},{"$f":"'Population 2016'!BB97/'Population 2016'!BB$5","v":3.7286895037390468E-4},{"$f":"'Population 2016'!BC97/'Population 2016'!BC$5","v":0},95]
["SIMD Q2","Female 0-4",{"$f":"'Population 2016'!C98/'Population 2016'!C$5","v":0},{"$f":"'Population 2016'!D98/'Population 2016'!D$5","v":0},{"$f":"'Population 2016'!E98/'Population 2016'!E$5","v":0},{"$f":"'Population 2016'!F98/'Population 2016'!F$5","v":0},{"$f":"'Population 2016'!G98/'Population 2016'!G$5","v":0},{"$f":"'Population 2016'!H98/'Population 2016'!H$5","v":0},{"$f":"'Population 2016'!I98/'Population 2016'!I$5","v":0},{"$f":"'Population 2016'!J98/'Population 2016'!J$5","v":0},{"$f":"'Population 2016'!K98/'Population 2016'!K$5","v":0},{"$f":"'Population 2016'!L98/'Population 2016'!L$5","v":0},{"$f":"'Population 2016'!M98/'Population 2016'!M$5","v":0},{"$f":"'Population 2016'!N98/'Population 2016'!N$5","v":0},{"$f":"'Population 2016'!O98/'Population 2016'!O$5","v":0},{"$f":"'Population 2016'!P98/'Population 2016'!P$5","v":0},{"$f":"'Population 2016'!Q98/'Population 2016'!Q$5","v":0},{"$f":"'Population 2016'!R98/'Population 2016'!R$5","v":0},{"$f":"'Population 2016'!S98/'Population 2016'!S$5","v":0},{"$f":"'Population 2016'!T98/'Population 2016'!T$5","v":0},{"$f":"'Population 2016'!U98/'Population 2016'!U$5","v":0},{"$f":"'Population 2016'!V98/'Population 2016'!V$5","v":0},{"$f":"'Population 2016'!W98/'Population 2016'!W$5","v":0},{"$f":"'Population 2016'!X98/'Population 2016'!X$5","v":0},{"$f":"'Population 2016'!Y98/'Population 2016'!Y$5","v":0},{"$f":"'Population 2016'!Z98/'Population 2016'!Z$5","v":0},{"$f":"'Population 2016'!AA98/'Population 2016'!AA$5","v":0},{"$f":"'Population 2016'!AB98/'Population 2016'!AB$5","v":0},{"$f":"'Population 2016'!AC98/'Population 2016'!AC$5","v":0},{"$f":"'Population 2016'!AD98/'Population 2016'!AD$5","v":0},{"$f":"'Population 2016'!AE98/'Population 2016'!AE$5","v":0},{"$f":"'Population 2016'!AF98/'Population 2016'!AF$5","v":0},{"$f":"'Population 2016'!AG98/'Population 2016'!AG$5","v":0},{"$f":"'Population 2016'!AH98/'Population 2016'!AH$5","v":0},{"$f":"'Population 2016'!AI98/'Population 2016'!AI$5","v":0},{"$f":"'Population 2016'!AJ98/'Population 2016'!AJ$5","v":0},{"$f":"'Population 2016'!AK98/'Population 2016'!AK$5","v":0},{"$f":"'Population 2016'!AL98/'Population 2016'!AL$5","v":0},{"$f":"'Population 2016'!AM98/'Population 2016'!AM$5","v":0},{"$f":"'Population 2016'!AN98/'Population 2016'!AN$5","v":0},{"$f":"'Population 2016'!AO98/'Population 2016'!AO$5","v":0},{"$f":"'Population 2016'!AP98/'Population 2016'!AP$5","v":0},{"$f":"'Population 2016'!AQ98/'Population 2016'!AQ$5","v":0},{"$f":"'Population 2016'!AR98/'Population 2016'!AR$5","v":0},{"$f":"'Population 2016'!AS98/'Population 2016'!AS$5","v":0},{"$f":"'Population 2016'!AT98/'Population 2016'!AT$5","v":0},{"$f":"'Population 2016'!AU98/'Population 2016'!AU$5","v":0},{"$f":"'Population 2016'!AV98/'Population 2016'!AV$5","v":0},{"$f":"'Population 2016'!AW98/'Population 2016'!AW$5","v":0},{"$f":"'Population 2016'!AX98/'Population 2016'!AX$5","v":0},{"$f":"'Population 2016'!AY98/'Population 2016'!AY$5","v":0},{"$f":"'Population 2016'!AZ98/'Population 2016'!AZ$5","v":0},{"$f":"'Population 2016'!BA98/'Population 2016'!BA$5","v":0},{"$f":"'Population 2016'!BB98/'Population 2016'!BB$5","v":0},{"$f":"'Population 2016'!BC98/'Population 2016'!BC$5","v":0},96]
[null,"Female 5-9",{"$f":"'Population 2016'!C99/'Population 2016'!C$5","v":0},{"$f":"'Population 2016'!D99/'Population 2016'!D$5","v":0},{"$f":"'Population 2016'!E99/'Population 2016'!E$5","v":0},{"$f":"'Population 2016'!F99/'Population 2016'!F$5","v":0},{"$f":"'Population 2016'!G99/'Population 2016'!G$5","v":0},{"$f":"'Population 2016'!H99/'Population 2016'!H$5","v":0},{"$f":"'Population 2016'!I99/'Population 2016'!I$5","v":0},{"$f":"'Population 2016'!J99/'Population 2016'!J$5","v":0},{"$f":"'Population 2016'!K99/'Population 2016'!K$5","v":0},{"$f":"'Population 2016'!L99/'Population 2016'!L$5","v":0},{"$f":"'Population 2016'!M99/'Population 2016'!M$5","v":0},{"$f":"'Population 2016'!N99/'Population 2016'!N$5","v":0},{"$f":"'Population 2016'!O99/'Population 2016'!O$5","v":0},{"$f":"'Population 2016'!P99/'Population 2016'!P$5","v":0},{"$f":"'Population 2016'!Q99/'Population 2016'!Q$5","v":0},{"$f":"'Population 2016'!R99/'Population 2016'!R$5","v":0},{"$f":"'Population 2016'!S99/'Population 2016'!S$5","v":0},{"$f":"'Population 2016'!T99/'Population 2016'!T$5","v":0},{"$f":"'Population 2016'!U99/'Population 2016'!U$5","v":0},{"$f":"'Population 2016'!V99/'Population 2016'!V$5","v":0},{"$f":"'Population 2016'!W99/'Population 2016'!W$5","v":0},{"$f":"'Population 2016'!X99/'Population 2016'!X$5","v":0},{"$f":"'Population 2016'!Y99/'Population 2016'!Y$5","v":0},{"$f":"'Population 2016'!Z99/'Population 2016'!Z$5","v":0},{"$f":"'Population 2016'!AA99/'Population 2016'!AA$5","v":0},{"$f":"'Population 2016'!AB99/'Population 2016'!AB$5","v":0},{"$f":"'Population 2016'!AC99/'Population 2016'!AC$5","v":0},{"$f":"'Population 2016'!AD99/'Population 2016'!AD$5","v":0},{"$f":"'Population 2016'!AE99/'Population 2016'!AE$5","v":0},{"$f":"'Population 2016'!AF99/'Population 2016'!AF$5","v":0},{"$f":"'Population 2016'!AG99/'Population 2016'!AG$5","v":0},{"$f":"'Population 2016'!AH99/'Population 2016'!AH$5","v":0},{"$f":"'Population 2016'!AI99/'Population 2016'!AI$5","v":0},{"$f":"'Population 2016'!AJ99/'Population 2016'!AJ$5","v":0},{"$f":"'Population 2016'!AK99/'Population 2016'!AK$5","v":0},{"$f":"'Population 2016'!AL99/'Population 2016'!AL$5","v":0},{"$f":"'Population 2016'!AM99/'Population 2016'!AM$5","v":0},{"$f":"'Population 2016'!AN99/'Population 2016'!AN$5","v":0},{"$f":"'Population 2016'!AO99/'Population 2016'!AO$5","v":0},{"$f":"'Population 2016'!AP99/'Population 2016'!AP$5","v":0},{"$f":"'Population 2016'!AQ99/'Population 2016'!AQ$5","v":0},{"$f":"'Population 2016'!AR99/'Population 2016'!AR$5","v":0},{"$f":"'Population 2016'!AS99/'Population 2016'!AS$5","v":0},{"$f":"'Population 2016'!AT99/'Population 2016'!AT$5","v":0},{"$f":"'Population 2016'!AU99/'Population 2016'!AU$5","v":0},{"$f":"'Population 2016'!AV99/'Population 2016'!AV$5","v":0},{"$f":"'Population 2016'!AW99/'Population 2016'!AW$5","v":0},{"$f":"'Population 2016'!AX99/'Population 2016'!AX$5","v":0},{"$f":"'Population 2016'!AY99/'Population 2016'!AY$5","v":0},{"$f":"'Population 2016'!AZ99/'Population 2016'!AZ$5","v":0},{"$f":"'Population 2016'!BA99/'Population 2016'!BA$5","v":0},{"$f":"'Population 2016'!BB99/'Population 2016'!BB$5","v":0},{"$f":"'Population 2016'!BC99/'Population 2016'!BC$5","v":0},97]
[null,"Female 10-15",{"$f":"'Population 2016'!C100/'Population 2016'!C$5","v":0},{"$f":"'Population 2016'!D100/'Population 2016'!D$5","v":0},{"$f":"'Population 2016'!E100/'Population 2016'!E$5","v":0},{"$f":"'Population 2016'!F100/'Population 2016'!F$5","v":0},{"$f":"'Population 2016'!G100/'Population 2016'!G$5","v":0},{"$f":"'Population 2016'!H100/'Population 2016'!H$5","v":0},{"$f":"'Population 2016'!I100/'Population 2016'!I$5","v":0},{"$f":"'Population 2016'!J100/'Population 2016'!J$5","v":0},{"$f":"'Population 2016'!K100/'Population 2016'!K$5","v":0},{"$f":"'Population 2016'!L100/'Population 2016'!L$5","v":0},{"$f":"'Population 2016'!M100/'Population 2016'!M$5","v":0},{"$f":"'Population 2016'!N100/'Population 2016'!N$5","v":0},{"$f":"'Population 2016'!O100/'Population 2016'!O$5","v":0},{"$f":"'Population 2016'!P100/'Population 2016'!P$5","v":0},{"$f":"'Population 2016'!Q100/'Population 2016'!Q$5","v":0},{"$f":"'Population 2016'!R100/'Population 2016'!R$5","v":0},{"$f":"'Population 2016'!S100/'Population 2016'!S$5","v":0},{"$f":"'Population 2016'!T100/'Population 2016'!T$5","v":0},{"$f":"'Population 2016'!U100/'Population 2016'!U$5","v":0},{"$f":"'Population 2016'!V100/'Population 2016'!V$5","v":0},{"$f":"'Population 2016'!W100/'Population 2016'!W$5","v":0},{"$f":"'Population 2016'!X100/'Population 2016'!X$5","v":0},{"$f":"'Population 2016'!Y100/'Population 2016'!Y$5","v":0},{"$f":"'Population 2016'!Z100/'Population 2016'!Z$5","v":0},{"$f":"'Population 2016'!AA100/'Population 2016'!AA$5","v":0},{"$f":"'Population 2016'!AB100/'Population 2016'!AB$5","v":0},{"$f":"'Population 2016'!AC100/'Population 2016'!AC$5","v":0},{"$f":"'Population 2016'!AD100/'Population 2016'!AD$5","v":0},{"$f":"'Population 2016'!AE100/'Population 2016'!AE$5","v":0},{"$f":"'Population 2016'!AF100/'Population 2016'!AF$5","v":0},{"$f":"'Population 2016'!AG100/'Population 2016'!AG$5","v":0},{"$f":"'Population 2016'!AH100/'Population 2016'!AH$5","v":0},{"$f":"'Population 2016'!AI100/'Population 2016'!AI$5","v":0},{"$f":"'Population 2016'!AJ100/'Population 2016'!AJ$5","v":0},{"$f":"'Population 2016'!AK100/'Population 2016'!AK$5","v":0},{"$f":"'Population 2016'!AL100/'Population 2016'!AL$5","v":0},{"$f":"'Population 2016'!AM100/'Population 2016'!AM$5","v":0},{"$f":"'Population 2016'!AN100/'Population 2016'!AN$5","v":0},{"$f":"'Population 2016'!AO100/'Population 2016'!AO$5","v":0},{"$f":"'Population 2016'!AP100/'Population 2016'!AP$5","v":0},{"$f":"'Population 2016'!AQ100/'Population 2016'!AQ$5","v":0},{"$f":"'Population 2016'!AR100/'Population 2016'!AR$5","v":0},{"$f":"'Population 2016'!AS100/'Population 2016'!AS$5","v":0},{"$f":"'Population 2016'!AT100/'Population 2016'!AT$5","v":0},{"$f":"'Population 2016'!AU100/'Population 2016'!AU$5","v":0},{"$f":"'Population 2016'!AV100/'Population 2016'!AV$5","v":0},{"$f":"'Population 2016'!AW100/'Population 2016'!AW$5","v":0},{"$f":"'Population 2016'!AX100/'Population 2016'!AX$5","v":0},{"$f":"'Population 2016'!AY100/'Population 2016'!AY$5","v":0},{"$f":"'Population 2016'!AZ100/'Population 2016'!AZ$5","v":0},{"$f":"'Population 2016'!BA100/'Population 2016'!BA$5","v":0},{"$f":"'Population 2016'!BB100/'Population 2016'!BB$5","v":0},{"$f":"'Population 2016'!BC100/'Population 2016'!BC$5","v":0},98]
[null,"Female 16-19",{"$f":"'Population 2016'!C101/'Population 2016'!C$5","v":4.9015348601861462E-3},{"$f":"'Population 2016'!D101/'Population 2016'!D$5","v":3.2813982375321537E-3},{"$f":"'Population 2016'!E101/'Population 2016'!E$5","v":1.7954331306634665E-3},{"$f":"'Population 2016'!F101/'Population 2016'!F$5","v":3.9866082925573013E-3},{"$f":"'Population 2016'!G101/'Population 2016'!G$5","v":3.8028473989065122E-3},{"$f":"'Population 2016'!H101/'Population 2016'!H$5","v":5.9887229137552565E-3},{"$f":"'Population 2016'!I101/'Population 2016'!I$5","v":3.7894648689389496E-3},{"$f":"'Population 2016'!J101/'Population 2016'!J$5","v":5.3573057562011231E-3},{"$f":"'Population 2016'!K101/'Population 2016'!K$5","v":7.7730000472522797E-3},{"$f":"'Population 2016'!L101/'Population 2016'!L$5","v":7.0211109875621498E-3},{"$f":"'Population 2016'!M101/'Population 2016'!M$5","v":7.0211109875621498E-3},{"$f":"'Population 2016'!N101/'Population 2016'!N$5","v":5.3688685993521995E-3},{"$f":"'Population 2016'!O101/'Population 2016'!O$5","v":6.8356762861473538E-3},{"$f":"'Population 2016'!P101/'Population 2016'!P$5","v":4.0459821931702923E-3},{"$f":"'Population 2016'!Q101/'Population 2016'!Q$5","v":6.4864102654492899E-3},{"$f":"'Population 2016'!R101/'Population 2016'!R$5","v":2.8610209187203916E-3},{"$f":"'Population 2016'!S101/'Population 2016'!S$5","v":5.2191550847263141E-3},{"$f":"'Population 2016'!T101/'Population 2016'!T$5","v":3.7365695220634427E-3},{"$f":"'Population 2016'!U101/'Population 2016'!U$5","v":5.2228566370114641E-3},{"$f":"'Population 2016'!V101/'Population 2016'!V$5","v":7.0904664137809966E-3},{"$f":"'Population 2016'!W101/'Population 2016'!W$5","v":5.0889337752240502E-3},{"$f":"'Population 2016'!X101/'Population 2016'!X$5","v":5.0889337752240502E-3},{"$f":"'Population 2016'!Y101/'Population 2016'!Y$5","v":6.2598368865359848E-3},{"$f":"'Population 2016'!Z101/'Population 2016'!Z$5","v":4.6478494259392976E-3},{"$f":"'Population 2016'!AA101/'Population 2016'!AA$5","v":5.6140322903192163E-3},{"$f":"'Population 2016'!AB101/'Population 2016'!AB$5","v":3.3079844017072147E-3},{"$f":"'Population 2016'!AC101/'Population 2016'!AC$5","v":4.6936314309887241E-3},{"$f":"'Population 2016'!AD101/'Population 2016'!AD$5","v":4.6075402880643122E-3},{"$f":"'Population 2016'!AE101/'Population 2016'!AE$5","v":4.9127814453947165E-3},{"$f":"'Population 2016'!AF101/'Population 2016'!AF$5","v":3.4836899968330092E-3},{"$f":"'Population 2016'!AG101/'Population 2016'!AG$5","v":4.9127814453947165E-3},{"$f":"'Population 2016'!AH101/'Population 2016'!AH$5","v":7.2671205520931049E-3},{"$f":"'Population 2016'!AI101/'Population 2016'!AI$5","v":5.4603421121707935E-3},{"$f":"'Population 2016'!AJ101/'Population 2016'!AJ$5","v":1.0595878760839863E-2},{"$f":"'Population 2016'!AK101/'Population 2016'!AK$5","v":3.4446777214839773E-3},{"$f":"'Population 2016'!AL101/'Population 2016'!AL$5","v":4.9750802575335663E-3},{"$f":"'Population 2016'!AM101/'Population 2016'!AM$5","v":7.9538992578533883E-3},{"$f":"'Population 2016'!AN101/'Population 2016'!AN$5","v":2.6726300861786845E-3},{"$f":"'Population 2016'!AO101/'Population 2016'!AO$5","v":2.6726300861786845E-3},{"$f":"'Population 2016'!AP101/'Population 2016'!AP$5","v":2.8692357687491081E-3},{"$f":"'Population 2016'!AQ101/'Population 2016'!AQ$5","v":5.1720830821504905E-3},{"$f":"'Population 2016'!AR101/'Population 2016'!AR$5","v":5.15083932549201E-3},{"$f":"'Population 2016'!AS101/'Population 2016'!AS$5","v":3.7894648689389496E-3},{"$f":"'Population 2016'!AT101/'Population 2016'!AT$5","v":7.3812411029683129E-4},{"$f":"'Population 2016'!AU101/'Population 2016'!AU$5","v":7.3812411029683129E-4},{"$f":"'Population 2016'!AV101/'Population 2016'!AV$5","v":6.2928940977721465E-3},{"$f":"'Population 2016'!AW101/'Population 2016'!AW$5","v":6.5440234303496244E-3},{"$f":"'Population 2016'!AX101/'Population 2016'!AX$5","v":4.0507558429277888E-3},{"$f":"'Population 2016'!AY101/'Population 2016'!AY$5","v":4.5500443682873837E-3},{"$f":"'Population 2016'!AZ101/'Population 2016'!AZ$5","v":4.0757977575921443E-3},{"$f":"'Population 2016'!BA101/'Population 2016'!BA$5","v":7.7871949902828764E-3},{"$f":"'Population 2016'!BB101/'Population 2016'!BB$5","v":7.4297590852281754E-3},{"$f":"'Population 2016'!BC101/'Population 2016'!BC$5","v":5.2228566370114641E-3},99]
[null,"Female 20-24",{"$f":"'Population 2016'!C102/'Population 2016'!C$5","v":1.1208619341385003E-2},{"$f":"'Population 2016'!D102/'Population 2016'!D$5","v":6.8170926126972014E-3},{"$f":"'Population 2016'!E102/'Population 2016'!E$5","v":2.7892499027278397E-3},{"$f":"'Population 2016'!F102/'Population 2016'!F$5","v":7.7568890033479273E-3},{"$f":"'Population 2016'!G102/'Population 2016'!G$5","v":4.9396416391490287E-3},{"$f":"'Population 2016'!H102/'Population 2016'!H$5","v":8.1124985003874668E-3},{"$f":"'Population 2016'!I102/'Population 2016'!I$5","v":5.7888786533791137E-3},{"$f":"'Population 2016'!J102/'Population 2016'!J$5","v":8.5584203411757879E-3},{"$f":"'Population 2016'!K102/'Population 2016'!K$5","v":8.8834286254311778E-3},{"$f":"'Population 2016'!L102/'Population 2016'!L$5","v":8.7763887344526875E-3},{"$f":"'Population 2016'!M102/'Population 2016'!M$5","v":8.7763887344526875E-3},{"$f":"'Population 2016'!N102/'Population 2016'!N$5","v":1.3028347304715441E-2},{"$f":"'Population 2016'!O102/'Population 2016'!O$5","v":8.8566588403126579E-3},{"$f":"'Population 2016'!P102/'Population 2016'!P$5","v":5.7928547278259888E-3},{"$f":"'Population 2016'!Q102/'Population 2016'!Q$5","v":1.0916440464859402E-2},{"$f":"'Population 2016'!R102/'Population 2016'!R$5","v":3.6328312130728697E-3},{"$f":"'Population 2016'!S102/'Population 2016'!S$5","v":8.8971897943584052E-3},{"$f":"'Population 2016'!T102/'Population 2016'!T$5","v":9.5484939716988602E-3},{"$f":"'Population 2016'!U102/'Population 2016'!U$5","v":6.3736555570309385E-3},{"$f":"'Population 2016'!V102/'Population 2016'!V$5","v":9.9449706535593534E-3},{"$f":"'Population 2016'!W102/'Population 2016'!W$5","v":6.8832977075284846E-3},{"$f":"'Population 2016'!X102/'Population 2016'!X$5","v":6.8832977075284846E-3},{"$f":"'Population 2016'!Y102/'Population 2016'!Y$5","v":9.2804565905152542E-3},{"$f":"'Population 2016'!Z102/'Population 2016'!Z$5","v":8.8427222730906741E-3},{"$f":"'Population 2016'!AA102/'Population 2016'!AA$5","v":8.4589182390939956E-3},{"$f":"'Population 2016'!AB102/'Population 2016'!AB$5","v":6.8452350490773054E-3},{"$f":"'Population 2016'!AC102/'Population 2016'!AC$5","v":7.6393040434734943E-3},{"$f":"'Population 2016'!AD102/'Population 2016'!AD$5","v":5.928765491830734E-3},{"$f":"'Population 2016'!AE102/'Population 2016'!AE$5","v":6.3039661598168362E-3},{"$f":"'Population 2016'!AF102/'Population 2016'!AF$5","v":4.3583827233105608E-3},{"$f":"'Population 2016'!AG102/'Population 2016'!AG$5","v":6.3039661598168362E-3},{"$f":"'Population 2016'!AH102/'Population 2016'!AH$5","v":9.9309883618327564E-3},{"$f":"'Population 2016'!AI102/'Population 2016'!AI$5","v":1.0145517980575728E-2},{"$f":"'Population 2016'!AJ102/'Population 2016'!AJ$5","v":1.328667428826367E-2},{"$f":"'Population 2016'!AK102/'Population 2016'!AK$5","v":6.9899299749820853E-3},{"$f":"'Population 2016'!AL102/'Population 2016'!AL$5","v":6.7575956439225983E-3},{"$f":"'Population 2016'!AM102/'Population 2016'!AM$5","v":1.0145205747380393E-2},{"$f":"'Population 2016'!AN102/'Population 2016'!AN$5","v":4.799825460892331E-3},{"$f":"'Population 2016'!AO102/'Population 2016'!AO$5","v":4.799825460892331E-3},{"$f":"'Population 2016'!AP102/'Population 2016'!AP$5","v":4.5654138198880836E-3},{"$f":"'Population 2016'!AQ102/'Population 2016'!AQ$5","v":6.5764235216747959E-3},{"$f":"'Population 2016'!AR102/'Population 2016'!AR$5","v":8.2202681662267921E-3},{"$f":"'Population 2016'!AS102/'Population 2016'!AS$5","v":5.7888786533791137E-3},{"$f":"'Population 2016'!AT102/'Population 2016'!AT$5","v":1.3708019191226869E-3},{"$f":"'Population 2016'!AU102/'Population 2016'!AU$5","v":1.3708019191226869E-3},{"$f":"'Population 2016'!AV102/'Population 2016'!AV$5","v":8.9325308837503968E-3},{"$f":"'Population 2016'!AW102/'Population 2016'!AW$5","v":9.7054426749649154E-3},{"$f":"'Population 2016'!AX102/'Population 2016'!AX$5","v":8.3826366970366877E-3},{"$f":"'Population 2016'!AY102/'Population 2016'!AY$5","v":7.7353814142774088E-3},{"$f":"'Population 2016'!AZ102/'Population 2016'!AZ$5","v":8.4852529180640974E-3},{"$f":"'Population 2016'!BA102/'Population 2016'!BA$5","v":1.0553876052688404E-2},{"$f":"'Population 2016'!BB102/'Population 2016'!BB$5","v":9.9086471071583929E-3},{"$f":"'Population 2016'!BC102/'Population 2016'!BC$5","v":6.3736555570309385E-3},100]
[null,"Female 25-29",{"$f":"'Population 2016'!C103/'Population 2016'!C$5","v":1.2762390558795418E-2},{"$f":"'Population 2016'!D103/'Population 2016'!D$5","v":7.7315806461078019E-3},{"$f":"'Population 2016'!E103/'Population 2016'!E$5","v":3.1173969501075852E-3},{"$f":"'Population 2016'!F103/'Population 2016'!F$5","v":7.9938192119495231E-3},{"$f":"'Population 2016'!G103/'Population 2016'!G$5","v":5.7922373193309154E-3},{"$f":"'Population 2016'!H103/'Population 2016'!H$5","v":8.7188283243572733E-3},{"$f":"'Population 2016'!I103/'Population 2016'!I$5","v":5.8621555983585961E-3},{"$f":"'Population 2016'!J103/'Population 2016'!J$5","v":8.4506107826144653E-3},{"$f":"'Population 2016'!K103/'Population 2016'!K$5","v":1.0253744743183859E-2},{"$f":"'Population 2016'!L103/'Population 2016'!L$5","v":8.5142884374056829E-3},{"$f":"'Population 2016'!M103/'Population 2016'!M$5","v":8.5142884374056829E-3},{"$f":"'Population 2016'!N103/'Population 2016'!N$5","v":1.2031730977889584E-2},{"$f":"'Population 2016'!O103/'Population 2016'!O$5","v":1.006528566192132E-2},{"$f":"'Population 2016'!P103/'Population 2016'!P$5","v":6.5817649047672719E-3},{"$f":"'Population 2016'!Q103/'Population 2016'!Q$5","v":1.0892938978390384E-2},{"$f":"'Population 2016'!R103/'Population 2016'!R$5","v":3.3799968063022304E-3},{"$f":"'Population 2016'!S103/'Population 2016'!S$5","v":9.8486948140328462E-3},{"$f":"'Population 2016'!T103/'Population 2016'!T$5","v":1.0802548126363987E-2},{"$f":"'Population 2016'!U103/'Population 2016'!U$5","v":6.9490550170406762E-3},{"$f":"'Population 2016'!V103/'Population 2016'!V$5","v":1.0792163088359881E-2},{"$f":"'Population 2016'!W103/'Population 2016'!W$5","v":7.8213349544708748E-3},{"$f":"'Population 2016'!X103/'Population 2016'!X$5","v":7.8213349544708748E-3},{"$f":"'Population 2016'!Y103/'Population 2016'!Y$5","v":9.6699575523441599E-3},{"$f":"'Population 2016'!Z103/'Population 2016'!Z$5","v":1.1506379420151263E-2},{"$f":"'Population 2016'!AA103/'Population 2016'!AA$5","v":9.7524710046858892E-3},{"$f":"'Population 2016'!AB103/'Population 2016'!AB$5","v":7.4859523249030226E-3},{"$f":"'Population 2016'!AC103/'Population 2016'!AC$5","v":9.3769199103886682E-3},{"$f":"'Population 2016'!AD103/'Population 2016'!AD$5","v":6.4274814842383418E-3},{"$f":"'Population 2016'!AE103/'Population 2016'!AE$5","v":6.6684462879495685E-3},{"$f":"'Population 2016'!AF103/'Population 2016'!AF$5","v":5.3838845405601047E-3},{"$f":"'Population 2016'!AG103/'Population 2016'!AG$5","v":6.6684462879495685E-3},{"$f":"'Population 2016'!AH103/'Population 2016'!AH$5","v":1.0426980485403527E-2},{"$f":"'Population 2016'!AI103/'Population 2016'!AI$5","v":1.1217352786770496E-2},{"$f":"'Population 2016'!AJ103/'Population 2016'!AJ$5","v":1.3955887683685135E-2},{"$f":"'Population 2016'!AK103/'Population 2016'!AK$5","v":6.2230491683743384E-3},{"$f":"'Population 2016'!AL103/'Population 2016'!AL$5","v":6.766463879675777E-3},{"$f":"'Population 2016'!AM103/'Population 2016'!AM$5","v":1.0985508401215541E-2},{"$f":"'Population 2016'!AN103/'Population 2016'!AN$5","v":5.454347114650376E-3},{"$f":"'Population 2016'!AO103/'Population 2016'!AO$5","v":5.454347114650376E-3},{"$f":"'Population 2016'!AP103/'Population 2016'!AP$5","v":5.0885341534169272E-3},{"$f":"'Population 2016'!AQ103/'Population 2016'!AQ$5","v":7.3573738148736776E-3},{"$f":"'Population 2016'!AR103/'Population 2016'!AR$5","v":9.0469955887820825E-3},{"$f":"'Population 2016'!AS103/'Population 2016'!AS$5","v":5.8621555983585961E-3},{"$f":"'Population 2016'!AT103/'Population 2016'!AT$5","v":1.2126324669162229E-3},{"$f":"'Population 2016'!AU103/'Population 2016'!AU$5","v":1.2126324669162229E-3},{"$f":"'Population 2016'!AV103/'Population 2016'!AV$5","v":9.6082779009608286E-3},{"$f":"'Population 2016'!AW103/'Population 2016'!AW$5","v":9.8389163463298551E-3},{"$f":"'Population 2016'!AX103/'Population 2016'!AX$5","v":7.4753696154976554E-3},{"$f":"'Population 2016'!AY103/'Population 2016'!AY$5","v":8.1209265322358549E-3},{"$f":"'Population 2016'!AZ103/'Population 2016'!AZ$5","v":8.3845804258158782E-3},{"$f":"'Population 2016'!BA103/'Population 2016'!BA$5","v":1.151209242064349E-2},{"$f":"'Population 2016'!BB103/'Population 2016'!BB$5","v":1.1282738239091856E-2},{"$f":"'Population 2016'!BC103/'Population 2016'!BC$5","v":6.9490550170406762E-3},101]
[null,"Female 30-34",{"$f":"'Population 2016'!C104/'Population 2016'!C$5","v":1.0871287432341952E-2},{"$f":"'Population 2016'!D104/'Population 2016'!D$5","v":6.7119509404066783E-3},{"$f":"'Population 2016'!E104/'Population 2016'!E$5","v":2.897069646866899E-3},{"$f":"'Population 2016'!F104/'Population 2016'!F$5","v":7.2727272727272727E-3},{"$f":"'Population 2016'!G104/'Population 2016'!G$5","v":4.8178422562659019E-3},{"$f":"'Population 2016'!H104/'Population 2016'!H$5","v":8.2875883960792825E-3},{"$f":"'Population 2016'!I104/'Population 2016'!I$5","v":4.961895988610669E-3},{"$f":"'Population 2016'!J104/'Population 2016'!J$5","v":7.0159143494522447E-3},{"$f":"'Population 2016'!K104/'Population 2016'!K$5","v":9.5213344043850109E-3},{"$f":"'Population 2016'!L104/'Population 2016'!L$5","v":8.6651946690388063E-3},{"$f":"'Population 2016'!M104/'Population 2016'!M$5","v":8.6651946690388063E-3},{"$f":"'Population 2016'!N104/'Population 2016'!N$5","v":8.8891746570112767E-3},{"$f":"'Population 2016'!O104/'Population 2016'!O$5","v":9.5699468006062941E-3},{"$f":"'Population 2016'!P104/'Population 2016'!P$5","v":5.8153950185957396E-3},{"$f":"'Population 2016'!Q104/'Population 2016'!Q$5","v":1.1198458302487632E-2},{"$f":"'Population 2016'!R104/'Population 2016'!R$5","v":3.2735402139777506E-3},{"$f":"'Population 2016'!S104/'Population 2016'!S$5","v":9.2246558076229859E-3},{"$f":"'Population 2016'!T104/'Population 2016'!T$5","v":9.0645547060766943E-3},{"$f":"'Population 2016'!U104/'Population 2016'!U$5","v":6.6392245385738947E-3},{"$f":"'Population 2016'!V104/'Population 2016'!V$5","v":1.1486708237610764E-2},{"$f":"'Population 2016'!W104/'Population 2016'!W$5","v":7.7494296602801695E-3},{"$f":"'Population 2016'!X104/'Population 2016'!X$5","v":7.7494296602801695E-3},{"$f":"'Population 2016'!Y104/'Population 2016'!Y$5","v":9.3440485842832387E-3},{"$f":"'Population 2016'!Z104/'Population 2016'!Z$5","v":9.5589672908322574E-3},{"$f":"'Population 2016'!AA104/'Population 2016'!AA$5","v":9.2515265849343296E-3},{"$f":"'Population 2016'!AB104/'Population 2016'!AB$5","v":6.7060376856391312E-3},{"$f":"'Population 2016'!AC104/'Population 2016'!AC$5","v":8.2681555000713655E-3},{"$f":"'Population 2016'!AD104/'Population 2016'!AD$5","v":6.3939856340020093E-3},{"$f":"'Population 2016'!AE104/'Population 2016'!AE$5","v":6.9918582326307255E-3},{"$f":"'Population 2016'!AF104/'Population 2016'!AF$5","v":5.7156645402584869E-3},{"$f":"'Population 2016'!AG104/'Population 2016'!AG$5","v":6.9918582326307255E-3},{"$f":"'Population 2016'!AH104/'Population 2016'!AH$5","v":1.1017712677521526E-2},{"$f":"'Population 2016'!AI104/'Population 2016'!AI$5","v":1.0398438183568117E-2},{"$f":"'Population 2016'!AJ104/'Population 2016'!AJ$5","v":1.4778462482224019E-2},{"$f":"'Population 2016'!AK104/'Population 2016'!AK$5","v":6.6756345624379267E-3},{"$f":"'Population 2016'!AL104/'Population 2016'!AL$5","v":6.9704333019989006E-3},{"$f":"'Population 2016'!AM104/'Population 2016'!AM$5","v":1.1597625420604076E-2},{"$f":"'Population 2016'!AN104/'Population 2016'!AN$5","v":3.3816952110832335E-3},{"$f":"'Population 2016'!AO104/'Population 2016'!AO$5","v":3.3816952110832335E-3},{"$f":"'Population 2016'!AP104/'Population 2016'!AP$5","v":5.5006895677123793E-3},{"$f":"'Population 2016'!AQ104/'Population 2016'!AQ$5","v":7.0628048446319943E-3},{"$f":"'Population 2016'!AR104/'Population 2016'!AR$5","v":8.4882695376452821E-3},{"$f":"'Population 2016'!AS104/'Population 2016'!AS$5","v":4.961895988610669E-3},{"$f":"'Population 2016'!AT104/'Population 2016'!AT$5","v":8.4357041176780722E-4},{"$f":"'Population 2016'!AU104/'Population 2016'!AU$5","v":8.4357041176780722E-4},{"$f":"'Population 2016'!AV104/'Population 2016'!AV$5","v":8.48907190370605E-3},{"$f":"'Population 2016'!AW104/'Population 2016'!AW$5","v":1.0407132832997743E-2},{"$f":"'Population 2016'!AX104/'Population 2016'!AX$5","v":5.6608354524195917E-3},{"$f":"'Population 2016'!AY104/'Population 2016'!AY$5","v":7.4615219852513697E-3},{"$f":"'Population 2016'!AZ104/'Population 2016'!AZ$5","v":7.2081504449724157E-3},{"$f":"'Population 2016'!BA104/'Population 2016'!BA$5","v":1.1930468581299935E-2},{"$f":"'Population 2016'!BB104/'Population 2016'!BB$5","v":1.171775201452808E-2},{"$f":"'Population 2016'!BC104/'Population 2016'!BC$5","v":6.6392245385738947E-3},102]
[null,"Female 35-39",{"$f":"'Population 2016'!C105/'Population 2016'!C$5","v":8.1266323542189493E-3},{"$f":"'Population 2016'!D105/'Population 2016'!D$5","v":5.3964574591903606E-3},{"$f":"'Population 2016'!E105/'Population 2016'!E$5","v":2.8923818319043309E-3},{"$f":"'Population 2016'!F105/'Population 2016'!F$5","v":5.830543394282771E-3},{"$f":"'Population 2016'!G105/'Population 2016'!G$5","v":5.0479077572673633E-3},{"$f":"'Population 2016'!H105/'Population 2016'!H$5","v":8.3459516946432222E-3},{"$f":"'Population 2016'!I105/'Population 2016'!I$5","v":4.76300142366636E-3},{"$f":"'Population 2016'!J105/'Population 2016'!J$5","v":7.0325004353847557E-3},{"$f":"'Population 2016'!K105/'Population 2016'!K$5","v":9.6158389642300238E-3},{"$f":"'Population 2016'!L105/'Population 2016'!L$5","v":8.4586914046987441E-3},{"$f":"'Population 2016'!M105/'Population 2016'!M$5","v":8.4586914046987441E-3},{"$f":"'Population 2016'!N105/'Population 2016'!N$5","v":6.9280909171281378E-3},{"$f":"'Population 2016'!O105/'Population 2016'!O$5","v":9.5105061372484923E-3},{"$f":"'Population 2016'!P105/'Population 2016'!P$5","v":6.5141440324580184E-3},{"$f":"'Population 2016'!Q105/'Population 2016'!Q$5","v":1.0563918167824114E-2},{"$f":"'Population 2016'!R105/'Population 2016'!R$5","v":3.5796029169106298E-3},{"$f":"'Population 2016'!S105/'Population 2016'!S$5","v":7.6826527748110668E-3},{"$f":"'Population 2016'!T105/'Population 2016'!T$5","v":6.1236930149881578E-3},{"$f":"'Population 2016'!U105/'Population 2016'!U$5","v":6.7720090293453723E-3},{"$f":"'Population 2016'!V105/'Population 2016'!V$5","v":1.1196678395066439E-2},{"$f":"'Population 2016'!W105/'Population 2016'!W$5","v":7.3049242052830778E-3},{"$f":"'Population 2016'!X105/'Population 2016'!X$5","v":7.3049242052830778E-3},{"$f":"'Population 2016'!Y105/'Population 2016'!Y$5","v":9.200966598305273E-3},{"$f":"'Population 2016'!Z105/'Population 2016'!Z$5","v":7.1372848119276092E-3},{"$f":"'Population 2016'!AA105/'Population 2016'!AA$5","v":7.8868848897490421E-3},{"$f":"'Population 2016'!AB105/'Population 2016'!AB$5","v":5.4164150537854517E-3},{"$f":"'Population 2016'!AC105/'Population 2016'!AC$5","v":6.7694618148570291E-3},{"$f":"'Population 2016'!AD105/'Population 2016'!AD$5","v":6.0478618482265808E-3},{"$f":"'Population 2016'!AE105/'Population 2016'!AE$5","v":6.4271707101715625E-3},{"$f":"'Population 2016'!AF105/'Population 2016'!AF$5","v":3.7400654511453952E-3},{"$f":"'Population 2016'!AG105/'Population 2016'!AG$5","v":6.4271707101715625E-3},{"$f":"'Population 2016'!AH105/'Population 2016'!AH$5","v":9.8938353937750197E-3},{"$f":"'Population 2016'!AI105/'Population 2016'!AI$5","v":8.2219573016011904E-3},{"$f":"'Population 2016'!AJ105/'Population 2016'!AJ$5","v":1.4290494381395867E-2},{"$f":"'Population 2016'!AK105/'Population 2016'!AK$5","v":5.519027444275423E-3},{"$f":"'Population 2016'!AL105/'Population 2016'!AL$5","v":6.8285415299480321E-3},{"$f":"'Population 2016'!AM105/'Population 2016'!AM$5","v":1.0666772911829795E-2},{"$f":"'Population 2016'!AN105/'Population 2016'!AN$5","v":3.872586451401767E-3},{"$f":"'Population 2016'!AO105/'Population 2016'!AO$5","v":3.872586451401767E-3},{"$f":"'Population 2016'!AP105/'Population 2016'!AP$5","v":4.1849626682307437E-3},{"$f":"'Population 2016'!AQ105/'Population 2016'!AQ$5","v":6.5490217570011505E-3},{"$f":"'Population 2016'!AR105/'Population 2016'!AR$5","v":7.3547774530423951E-3},{"$f":"'Population 2016'!AS105/'Population 2016'!AS$5","v":4.76300142366636E-3},{"$f":"'Population 2016'!AT105/'Population 2016'!AT$5","v":1.7925871250065904E-3},{"$f":"'Population 2016'!AU105/'Population 2016'!AU$5","v":1.7925871250065904E-3},{"$f":"'Population 2016'!AV105/'Population 2016'!AV$5","v":8.9114137894625699E-3},{"$f":"'Population 2016'!AW105/'Population 2016'!AW$5","v":9.080023186283483E-3},{"$f":"'Population 2016'!AX105/'Population 2016'!AX$5","v":5.6352786332213092E-3},{"$f":"'Population 2016'!AY105/'Population 2016'!AY$5","v":6.4119824974755973E-3},{"$f":"'Population 2016'!AZ105/'Population 2016'!AZ$5","v":5.6261541382147031E-3},{"$f":"'Population 2016'!BA105/'Population 2016'!BA$5","v":1.0891276182250054E-2},{"$f":"'Population 2016'!BB105/'Population 2016'!BB$5","v":1.0067461660095426E-2},{"$f":"'Population 2016'!BC105/'Population 2016'!BC$5","v":6.7720090293453723E-3},103]
[null,"Female 40-44",{"$f":"'Population 2016'!C106/'Population 2016'!C$5","v":7.3241912978589648E-3},{"$f":"'Population 2016'!D106/'Population 2016'!D$5","v":4.9978971665541891E-3},{"$f":"'Population 2016'!E106/'Population 2016'!E$5","v":2.8642549421289245E-3},{"$f":"'Population 2016'!F106/'Population 2016'!F$5","v":6.4486221993304144E-3},{"$f":"'Population 2016'!G106/'Population 2016'!G$5","v":5.9411032317436257E-3},{"$f":"'Population 2016'!H106/'Population 2016'!H$5","v":9.1306138197806194E-3},{"$f":"'Population 2016'!I106/'Population 2016'!I$5","v":5.1712586885520476E-3},{"$f":"'Population 2016'!J106/'Population 2016'!J$5","v":7.5052038844613256E-3},{"$f":"'Population 2016'!K106/'Population 2016'!K$5","v":1.0915276662098947E-2},{"$f":"'Population 2016'!L106/'Population 2016'!L$5","v":9.507092592886757E-3},{"$f":"'Population 2016'!M106/'Population 2016'!M$5","v":9.507092592886757E-3},{"$f":"'Population 2016'!N106/'Population 2016'!N$5","v":6.1645542151244565E-3},{"$f":"'Population 2016'!O106/'Population 2016'!O$5","v":1.0154446656958025E-2},{"$f":"'Population 2016'!P106/'Population 2016'!P$5","v":6.1985799616815053E-3},{"$f":"'Population 2016'!Q106/'Population 2016'!Q$5","v":1.0258398843726866E-2},{"$f":"'Population 2016'!R106/'Population 2016'!R$5","v":3.5396816947889497E-3},{"$f":"'Population 2016'!S106/'Population 2016'!S$5","v":7.6411678620794355E-3},{"$f":"'Population 2016'!T106/'Population 2016'!T$5","v":5.3977841165549108E-3},{"$f":"'Population 2016'!U106/'Population 2016'!U$5","v":8.8522993847651929E-3},{"$f":"'Population 2016'!V106/'Population 2016'!V$5","v":1.1715679165935232E-2},{"$f":"'Population 2016'!W106/'Population 2016'!W$5","v":7.8115296870812333E-3},{"$f":"'Population 2016'!X106/'Population 2016'!X$5","v":7.8115296870812333E-3},{"$f":"'Population 2016'!Y106/'Population 2016'!Y$5","v":9.6977790496176539E-3},{"$f":"'Population 2016'!Z106/'Population 2016'!Z$5","v":6.2603686145304817E-3},{"$f":"'Population 2016'!AA106/'Population 2016'!AA$5","v":7.874926004396883E-3},{"$f":"'Population 2016'!AB106/'Population 2016'!AB$5","v":5.1195971464540494E-3},{"$f":"'Population 2016'!AC106/'Population 2016'!AC$5","v":6.5046822541842408E-3},{"$f":"'Population 2016'!AD106/'Population 2016'!AD$5","v":6.7215006140905875E-3},{"$f":"'Population 2016'!AE106/'Population 2016'!AE$5","v":7.0175258472879596E-3},{"$f":"'Population 2016'!AF106/'Population 2016'!AF$5","v":4.3885445414649591E-3},{"$f":"'Population 2016'!AG106/'Population 2016'!AG$5","v":7.0175258472879596E-3},{"$f":"'Population 2016'!AH106/'Population 2016'!AH$5","v":1.0335955713662075E-2},{"$f":"'Population 2016'!AI106/'Population 2016'!AI$5","v":7.8924774695948909E-3},{"$f":"'Population 2016'!AJ106/'Population 2016'!AJ$5","v":1.353762931154672E-2},{"$f":"'Population 2016'!AK106/'Population 2016'!AK$5","v":5.7453201413072176E-3},{"$f":"'Population 2016'!AL106/'Population 2016'!AL$5","v":8.1233039499122046E-3},{"$f":"'Population 2016'!AM106/'Population 2016'!AM$5","v":1.1105034209735196E-2},{"$f":"'Population 2016'!AN106/'Population 2016'!AN$5","v":5.7270644703828954E-3},{"$f":"'Population 2016'!AO106/'Population 2016'!AO$5","v":5.7270644703828954E-3},{"$f":"'Population 2016'!AP106/'Population 2016'!AP$5","v":3.6459902033828448E-3},{"$f":"'Population 2016'!AQ106/'Population 2016'!AQ$5","v":7.6176905792733054E-3},{"$f":"'Population 2016'!AR106/'Population 2016'!AR$5","v":7.4501262368887071E-3},{"$f":"'Population 2016'!AS106/'Population 2016'!AS$5","v":5.1712586885520476E-3},{"$f":"'Population 2016'!AT106/'Population 2016'!AT$5","v":7.3812411029683129E-4},{"$f":"'Population 2016'!AU106/'Population 2016'!AU$5","v":7.3812411029683129E-4},{"$f":"'Population 2016'!AV106/'Population 2016'!AV$5","v":9.2387287509238733E-3},{"$f":"'Population 2016'!AW106/'Population 2016'!AW$5","v":9.5262066019891397E-3},{"$f":"'Population 2016'!AX106/'Population 2016'!AX$5","v":5.6608354524195917E-3},{"$f":"'Population 2016'!AY106/'Population 2016'!AY$5","v":6.4915394265781341E-3},{"$f":"'Population 2016'!AZ106/'Population 2016'!AZ$5","v":5.3298893753128034E-3},{"$f":"'Population 2016'!BA106/'Population 2016'!BA$5","v":1.1282660332541567E-2},{"$f":"'Population 2016'!BB106/'Population 2016'!BB$5","v":1.1110113725029864E-2},{"$f":"'Population 2016'!BC106/'Population 2016'!BC$5","v":8.8522993847651929E-3},104]
[null,"Female 45-49",{"$f":"'Population 2016'!C107/'Population 2016'!C$5","v":7.6564121173710604E-3},{"$f":"'Population 2016'!D107/'Population 2016'!D$5","v":5.3402188902907776E-3},{"$f":"'Population 2016'!E107/'Population 2016'!E$5","v":3.2158410643215092E-3},{"$f":"'Population 2016'!F107/'Population 2016'!F$5","v":6.8503734226113833E-3},{"$f":"'Population 2016'!G107/'Population 2016'!G$5","v":7.0372976776917661E-3},{"$f":"'Population 2016'!H107/'Population 2016'!H$5","v":1.1630508441602657E-2},{"$f":"'Population 2016'!I107/'Population 2016'!I$5","v":6.9508416380537645E-3},{"$f":"'Population 2016'!J107/'Population 2016'!J$5","v":8.6247646849058317E-3},{"$f":"'Population 2016'!K107/'Population 2016'!K$5","v":1.2876246278882956E-2},{"$f":"'Population 2016'!L107/'Population 2016'!L$5","v":1.2437850459866884E-2},{"$f":"'Population 2016'!M107/'Population 2016'!M$5","v":1.2437850459866884E-2},{"$f":"'Population 2016'!N107/'Population 2016'!N$5","v":6.421745525273065E-3},{"$f":"'Population 2016'!O107/'Population 2016'!O$5","v":1.3156200156527079E-2},{"$f":"'Population 2016'!P107/'Population 2016'!P$5","v":8.4976896201961003E-3},{"$f":"'Population 2016'!Q107/'Population 2016'!Q$5","v":1.2855313098553483E-2},{"$f":"'Population 2016'!R107/'Population 2016'!R$5","v":5.1232235056155855E-3},{"$f":"'Population 2016'!S107/'Population 2016'!S$5","v":8.5776677005530728E-3},{"$f":"'Population 2016'!T107/'Population 2016'!T$5","v":5.0487894538466188E-3},{"$f":"'Population 2016'!U107/'Population 2016'!U$5","v":1.0312928783251449E-2},{"$f":"'Population 2016'!V107/'Population 2016'!V$5","v":1.341769639981377E-2},{"$f":"'Population 2016'!W107/'Population 2016'!W$5","v":8.9391354368900302E-3},{"$f":"'Population 2016'!X107/'Population 2016'!X$5","v":8.9391354368900302E-3},{"$f":"'Population 2016'!Y107/'Population 2016'!Y$5","v":1.1120649910176309E-2},{"$f":"'Population 2016'!Z107/'Population 2016'!Z$5","v":7.0559813234272132E-3},{"$f":"'Population 2016'!AA107/'Population 2016'!AA$5","v":9.4721015814297118E-3},{"$f":"'Population 2016'!AB107/'Population 2016'!AB$5","v":5.5515183771225043E-3},{"$f":"'Population 2016'!AC107/'Population 2016'!AC$5","v":7.7396306738846676E-3},{"$f":"'Population 2016'!AD107/'Population 2016'!AD$5","v":7.9422382671480145E-3},{"$f":"'Population 2016'!AE107/'Population 2016'!AE$5","v":8.2855060113553522E-3},{"$f":"'Population 2016'!AF107/'Population 2016'!AF$5","v":6.0323636308796695E-3},{"$f":"'Population 2016'!AG107/'Population 2016'!AG$5","v":8.2855060113553522E-3},{"$f":"'Population 2016'!AH107/'Population 2016'!AH$5","v":1.2583710281155085E-2},{"$f":"'Population 2016'!AI107/'Population 2016'!AI$5","v":8.638933852480532E-3},{"$f":"'Population 2016'!AJ107/'Population 2016'!AJ$5","v":1.695340601734378E-2},{"$f":"'Population 2016'!AK107/'Population 2016'!AK$5","v":6.6379191129326276E-3},{"$f":"'Population 2016'!AL107/'Population 2016'!AL$5","v":1.0109788758624359E-2},{"$f":"'Population 2016'!AM107/'Population 2016'!AM$5","v":1.3068155064815587E-2},{"$f":"'Population 2016'!AN107/'Population 2016'!AN$5","v":5.1816297589178575E-3},{"$f":"'Population 2016'!AO107/'Population 2016'!AO$5","v":5.1816297589178575E-3},{"$f":"'Population 2016'!AP107/'Population 2016'!AP$5","v":4.6208962795047798E-3},{"$f":"'Population 2016'!AQ107/'Population 2016'!AQ$5","v":8.6795089603770477E-3},{"$f":"'Population 2016'!AR107/'Population 2016'!AR$5","v":8.72619594219636E-3},{"$f":"'Population 2016'!AS107/'Population 2016'!AS$5","v":6.9508416380537645E-3},{"$f":"'Population 2016'!AT107/'Population 2016'!AT$5","v":1.2126324669162229E-3},{"$f":"'Population 2016'!AU107/'Population 2016'!AU$5","v":1.2126324669162229E-3},{"$f":"'Population 2016'!AV107/'Population 2016'!AV$5","v":1.1815014254038645E-2},{"$f":"'Population 2016'!AW107/'Population 2016'!AW$5","v":1.2073646958325706E-2},{"$f":"'Population 2016'!AX107/'Population 2016'!AX$5","v":6.325312751574939E-3},{"$f":"'Population 2016'!AY107/'Population 2016'!AY$5","v":7.3161775955448123E-3},{"$f":"'Population 2016'!AZ107/'Population 2016'!AZ$5","v":5.8879026180600697E-3},{"$f":"'Population 2016'!BA107/'Population 2016'!BA$5","v":1.3927877348304902E-2},{"$f":"'Population 2016'!BB107/'Population 2016'!BB$5","v":1.2698259254400199E-2},{"$f":"'Population 2016'!BC107/'Population 2016'!BC$5","v":1.0312928783251449E-2},105]
[null,"Female 50-54",{"$f":"'Population 2016'!C108/'Population 2016'!C$5","v":7.9835218473522009E-3},{"$f":"'Population 2016'!D108/'Population 2016'!D$5","v":5.6116311141105012E-3},{"$f":"'Population 2016'!E108/'Population 2016'!E$5","v":3.4361683675621954E-3},{"$f":"'Population 2016'!F108/'Population 2016'!F$5","v":6.3868143188256501E-3},{"$f":"'Population 2016'!G108/'Population 2016'!G$5","v":7.8086937692849025E-3},{"$f":"'Population 2016'!H108/'Population 2016'!H$5","v":1.2016354693219806E-2},{"$f":"'Population 2016'!I108/'Population 2016'!I$5","v":7.4637802529101413E-3},{"$f":"'Population 2016'!J108/'Population 2016'!J$5","v":9.0394168332186137E-3},{"$f":"'Population 2016'!K108/'Population 2016'!K$5","v":1.3277890658224259E-2},{"$f":"'Population 2016'!L108/'Population 2016'!L$5","v":1.3462424348323352E-2},{"$f":"'Population 2016'!M108/'Population 2016'!M$5","v":1.3462424348323352E-2},{"$f":"'Population 2016'!N108/'Population 2016'!N$5","v":7.6594787053632426E-3},{"$f":"'Population 2016'!O108/'Population 2016'!O$5","v":1.2423098641780842E-2},{"$f":"'Population 2016'!P108/'Population 2016'!P$5","v":8.3399075848078433E-3},{"$f":"'Population 2016'!Q108/'Population 2016'!Q$5","v":1.3066826476774656E-2},{"$f":"'Population 2016'!R108/'Population 2016'!R$5","v":4.8304678767232658E-3},{"$f":"'Population 2016'!S108/'Population 2016'!S$5","v":8.6509282911216984E-3},{"$f":"'Population 2016'!T108/'Population 2016'!T$5","v":4.7928600345272052E-3},{"$f":"'Population 2016'!U108/'Population 2016'!U$5","v":1.1950604169433009E-2},{"$f":"'Population 2016'!V108/'Population 2016'!V$5","v":1.3371902214148877E-2},{"$f":"'Population 2016'!W108/'Population 2016'!W$5","v":9.6320409990913788E-3},{"$f":"'Population 2016'!X108/'Population 2016'!X$5","v":9.6320409990913788E-3},{"$f":"'Population 2016'!Y108/'Population 2016'!Y$5","v":1.1295527893038266E-2},{"$f":"'Population 2016'!Z108/'Population 2016'!Z$5","v":7.23020308449949E-3},{"$f":"'Population 2016'!AA108/'Population 2016'!AA$5","v":9.8248886993184091E-3},{"$f":"'Population 2016'!AB108/'Population 2016'!AB$5","v":5.748032301976398E-3},{"$f":"'Population 2016'!AC108/'Population 2016'!AC$5","v":7.9909643974920407E-3},{"$f":"'Population 2016'!AD108/'Population 2016'!AD$5","v":8.6754252112099441E-3},{"$f":"'Population 2016'!AE108/'Population 2016'!AE$5","v":9.0041992217579237E-3},{"$f":"'Population 2016'!AF108/'Population 2016'!AF$5","v":7.2388363570556032E-3},{"$f":"'Population 2016'!AG108/'Population 2016'!AG$5","v":9.0041992217579237E-3},{"$f":"'Population 2016'!AH108/'Population 2016'!AH$5","v":1.311871302118648E-2},{"$f":"'Population 2016'!AI108/'Population 2016'!AI$5","v":8.3955836031148826E-3},{"$f":"'Population 2016'!AJ108/'Population 2016'!AJ$5","v":1.6827928505702257E-2},{"$f":"'Population 2016'!AK108/'Population 2016'!AK$5","v":6.4493418654061321E-3},{"$f":"'Population 2016'!AL108/'Population 2016'!AL$5","v":1.0544332310530143E-2},{"$f":"'Population 2016'!AM108/'Population 2016'!AM$5","v":1.3484684397535595E-2},{"$f":"'Population 2016'!AN108/'Population 2016'!AN$5","v":6.654303479873459E-3},{"$f":"'Population 2016'!AO108/'Population 2016'!AO$5","v":6.654303479873459E-3},{"$f":"'Population 2016'!AP108/'Population 2016'!AP$5","v":4.4544489006546929E-3},{"$f":"'Population 2016'!AQ108/'Population 2016'!AQ$5","v":9.0083301364607873E-3},{"$f":"'Population 2016'!AR108/'Population 2016'!AR$5","v":9.0265000558057713E-3},{"$f":"'Population 2016'!AS108/'Population 2016'!AS$5","v":7.4637802529101413E-3},{"$f":"'Population 2016'!AT108/'Population 2016'!AT$5","v":1.0544630147097591E-3},{"$f":"'Population 2016'!AU108/'Population 2016'!AU$5","v":1.0544630147097591E-3},{"$f":"'Population 2016'!AV108/'Population 2016'!AV$5","v":1.3335445042762116E-2},{"$f":"'Population 2016'!AW108/'Population 2016'!AW$5","v":1.2733388248215266E-2},{"$f":"'Population 2016'!AX108/'Population 2016'!AX$5","v":6.7470002683466014E-3},{"$f":"'Population 2016'!AY108/'Population 2016'!AY$5","v":7.7751598788286776E-3},{"$f":"'Population 2016'!AZ108/'Population 2016'!AZ$5","v":6.1410220271413043E-3},{"$f":"'Population 2016'!BA108/'Population 2016'!BA$5","v":1.4751133664435328E-2},{"$f":"'Population 2016'!BB108/'Population 2016'!BB$5","v":1.2166575751089261E-2},{"$f":"'Population 2016'!BC108/'Population 2016'!BC$5","v":1.1950604169433009E-2},106]
[null,"Female 55-59",{"$f":"'Population 2016'!C109/'Population 2016'!C$5","v":7.1044144480278864E-3},{"$f":"'Population 2016'!D109/'Population 2016'!D$5","v":4.9978971665541891E-3},{"$f":"'Population 2016'!E109/'Population 2016'!E$5","v":3.0658309855193396E-3},{"$f":"'Population 2016'!F109/'Population 2016'!F$5","v":6.9121813031161475E-3},{"$f":"'Population 2016'!G109/'Population 2016'!G$5","v":7.9440264169328215E-3},{"$f":"'Population 2016'!H109/'Population 2016'!H$5","v":1.1296540677597897E-2},{"$f":"'Population 2016'!I109/'Population 2016'!I$5","v":7.2544175529687628E-3},{"$f":"'Population 2016'!J109/'Population 2016'!J$5","v":7.7622882164152494E-3},{"$f":"'Population 2016'!K109/'Population 2016'!K$5","v":1.1127911921750224E-2},{"$f":"'Population 2016'!L109/'Population 2016'!L$5","v":1.2564929391768462E-2},{"$f":"'Population 2016'!M109/'Population 2016'!M$5","v":1.2564929391768462E-2},{"$f":"'Population 2016'!N109/'Population 2016'!N$5","v":7.2335055979296098E-3},{"$f":"'Population 2016'!O109/'Population 2016'!O$5","v":1.1769251344845008E-2},{"$f":"'Population 2016'!P109/'Population 2016'!P$5","v":7.8891017694128259E-3},{"$f":"'Population 2016'!Q109/'Population 2016'!Q$5","v":1.237353262593859E-2},{"$f":"'Population 2016'!R109/'Population 2016'!R$5","v":3.832437323681269E-3},{"$f":"'Population 2016'!S109/'Population 2016'!S$5","v":8.0127667612287304E-3},{"$f":"'Population 2016'!T109/'Population 2016'!T$5","v":4.3531267595147581E-3},{"$f":"'Population 2016'!U109/'Population 2016'!U$5","v":1.0224405789403798E-2},{"$f":"'Population 2016'!V109/'Population 2016'!V$5","v":1.1677517344547821E-2},{"$f":"'Population 2016'!W109/'Population 2016'!W$5","v":8.6940037521489877E-3},{"$f":"'Population 2016'!X109/'Population 2016'!X$5","v":8.6940037521489877E-3},{"$f":"'Population 2016'!Y109/'Population 2016'!Y$5","v":9.8011160394906281E-3},{"$f":"'Population 2016'!Z109/'Population 2016'!Z$5","v":6.4713705251624619E-3},{"$f":"'Population 2016'!AA109/'Population 2016'!AA$5","v":8.9153490300347398E-3},{"$f":"'Population 2016'!AB109/'Population 2016'!AB$5","v":5.2260421890832423E-3},{"$f":"'Population 2016'!AC109/'Population 2016'!AC$5","v":7.1759398122961142E-3},{"$f":"'Population 2016'!AD109/'Population 2016'!AD$5","v":8.4074584093192899E-3},{"$f":"'Population 2016'!AE109/'Population 2016'!AE$5","v":8.5832503413792744E-3},{"$f":"'Population 2016'!AF109/'Population 2016'!AF$5","v":6.605438175813238E-3},{"$f":"'Population 2016'!AG109/'Population 2016'!AG$5","v":8.5832503413792744E-3},{"$f":"'Population 2016'!AH109/'Population 2016'!AH$5","v":1.2039419299109257E-2},{"$f":"'Population 2016'!AI109/'Population 2016'!AI$5","v":7.826854930440108E-3},{"$f":"'Population 2016'!AJ109/'Population 2016'!AJ$5","v":1.6493321807991523E-2},{"$f":"'Population 2016'!AK109/'Population 2016'!AK$5","v":6.3990545993990672E-3},{"$f":"'Population 2016'!AL109/'Population 2016'!AL$5","v":9.4003298983700179E-3},{"$f":"'Population 2016'!AM109/'Population 2016'!AM$5","v":1.2202498451597481E-2},{"$f":"'Population 2016'!AN109/'Population 2016'!AN$5","v":5.9452383549689104E-3},{"$f":"'Population 2016'!AO109/'Population 2016'!AO$5","v":5.9452383549689104E-3},{"$f":"'Population 2016'!AP109/'Population 2016'!AP$5","v":4.0343674206997134E-3},{"$f":"'Population 2016'!AQ109/'Population 2016'!AQ$5","v":7.9396613141886341E-3},{"$f":"'Population 2016'!AR109/'Population 2016'!AR$5","v":8.3040325183908418E-3},{"$f":"'Population 2016'!AS109/'Population 2016'!AS$5","v":7.2544175529687628E-3},{"$f":"'Population 2016'!AT109/'Population 2016'!AT$5","v":7.3812411029683129E-4},{"$f":"'Population 2016'!AU109/'Population 2016'!AU$5","v":7.3812411029683129E-4},{"$f":"'Population 2016'!AV109/'Population 2016'!AV$5","v":1.3050364269876465E-2},{"$f":"'Population 2016'!AW109/'Population 2016'!AW$5","v":1.1867716151076941E-2},{"$f":"'Population 2016'!AX109/'Population 2016'!AX$5","v":5.9419604636007E-3},{"$f":"'Population 2016'!AY109/'Population 2016'!AY$5","v":7.251920075885071E-3},{"$f":"'Population 2016'!AZ109/'Population 2016'!AZ$5","v":5.9828223964655328E-3},{"$f":"'Population 2016'!BA109/'Population 2016'!BA$5","v":1.3630965234290649E-2},{"$f":"'Population 2016'!BB109/'Population 2016'!BB$5","v":1.1172258550092181E-2},{"$f":"'Population 2016'!BC109/'Population 2016'!BC$5","v":1.0224405789403798E-2},107]
[null,"Female 60-64",{"$f":"'Population 2016'!C110/'Population 2016'!C$5","v":6.3479731974464999E-3},{"$f":"'Population 2016'!D110/'Population 2016'!D$5","v":4.5284273740011545E-3},{"$f":"'Population 2016'!E110/'Population 2016'!E$5","v":2.8595671271663564E-3},{"$f":"'Population 2016'!F110/'Population 2016'!F$5","v":5.7996394540303885E-3},{"$f":"'Population 2016'!G110/'Population 2016'!G$5","v":7.1184972662805173E-3},{"$f":"'Population 2016'!H110/'Population 2016'!H$5","v":9.9412151887242114E-3},{"$f":"'Population 2016'!I110/'Population 2016'!I$5","v":6.5844569131563524E-3},{"$f":"'Population 2016'!J110/'Population 2016'!J$5","v":6.6012622011394637E-3},{"$f":"'Population 2016'!K110/'Population 2016'!K$5","v":9.875726503803809E-3},{"$f":"'Population 2016'!L110/'Population 2016'!L$5","v":1.2358426127428398E-2},{"$f":"'Population 2016'!M110/'Population 2016'!M$5","v":1.2358426127428398E-2},{"$f":"'Population 2016'!N110/'Population 2016'!N$5","v":6.2288520426616086E-3},{"$f":"'Population 2016'!O110/'Population 2016'!O$5","v":1.0303048315352533E-2},{"$f":"'Population 2016'!P110/'Population 2016'!P$5","v":5.9506367632142457E-3},{"$f":"'Population 2016'!Q110/'Population 2016'!Q$5","v":1.0364155532837451E-2},{"$f":"'Population 2016'!R110/'Population 2016'!R$5","v":3.3400755841805504E-3},{"$f":"'Population 2016'!S110/'Population 2016'!S$5","v":6.8864955134508212E-3},{"$f":"'Population 2016'!T110/'Population 2016'!T$5","v":3.5737053461329066E-3},{"$f":"'Population 2016'!U110/'Population 2016'!U$5","v":1.0976851237108839E-2},{"$f":"'Population 2016'!V110/'Population 2016'!V$5","v":1.0883751459689669E-2},{"$f":"'Population 2016'!W110/'Population 2016'!W$5","v":7.9259244732937193E-3},{"$f":"'Population 2016'!X110/'Population 2016'!X$5","v":7.9259244732937193E-3},{"$f":"'Population 2016'!Y110/'Population 2016'!Y$5","v":8.8313381345288631E-3},{"$f":"'Population 2016'!Z110/'Population 2016'!Z$5","v":5.0911470180009799E-3},{"$f":"'Population 2016'!AA110/'Population 2016'!AA$5","v":7.5732963405146436E-3},{"$f":"'Population 2016'!AB110/'Population 2016'!AB$5","v":4.7900269183136649E-3},{"$f":"'Population 2016'!AC110/'Population 2016'!AC$5","v":5.7227551140724134E-3},{"$f":"'Population 2016'!AD110/'Population 2016'!AD$5","v":7.5961144813725852E-3},{"$f":"'Population 2016'!AE110/'Population 2016'!AE$5","v":7.7772872411421062E-3},{"$f":"'Population 2016'!AF110/'Population 2016'!AF$5","v":4.7957290865493375E-3},{"$f":"'Population 2016'!AG110/'Population 2016'!AG$5","v":7.7772872411421062E-3},{"$f":"'Population 2016'!AH110/'Population 2016'!AH$5","v":1.0896965531333885E-2},{"$f":"'Population 2016'!AI110/'Population 2016'!AI$5","v":6.4911628313938227E-3},{"$f":"'Population 2016'!AJ110/'Population 2016'!AJ$5","v":1.3509745420070825E-2},{"$f":"'Population 2016'!AK110/'Population 2016'!AK$5","v":6.1350464528619744E-3},{"$f":"'Population 2016'!AL110/'Population 2016'!AL$5","v":8.1853816001844597E-3},{"$f":"'Population 2016'!AM110/'Population 2016'!AM$5","v":1.1079680250352239E-2},{"$f":"'Population 2016'!AN110/'Population 2016'!AN$5","v":5.672520999236391E-3},{"$f":"'Population 2016'!AO110/'Population 2016'!AO$5","v":5.672520999236391E-3},{"$f":"'Population 2016'!AP110/'Population 2016'!AP$5","v":3.9471806984449059E-3},{"$f":"'Population 2016'!AQ110/'Population 2016'!AQ$5","v":6.4462651394749824E-3},{"$f":"'Population 2016'!AR110/'Population 2016'!AR$5","v":7.272349766072452E-3},{"$f":"'Population 2016'!AS110/'Population 2016'!AS$5","v":6.5844569131563524E-3},{"$f":"'Population 2016'!AT110/'Population 2016'!AT$5","v":1.5816945220646385E-3},{"$f":"'Population 2016'!AU110/'Population 2016'!AU$5","v":1.5816945220646385E-3},{"$f":"'Population 2016'!AV110/'Population 2016'!AV$5","v":1.1646077499736037E-2},{"$f":"'Population 2016'!AW110/'Population 2016'!AW$5","v":1.070458844346818E-2},{"$f":"'Population 2016'!AX110/'Population 2016'!AX$5","v":4.8302388284754078E-3},{"$f":"'Population 2016'!AY110/'Population 2016'!AY$5","v":6.5190783635751658E-3},{"$f":"'Population 2016'!AZ110/'Population 2016'!AZ$5","v":5.2809913076493839E-3},{"$f":"'Population 2016'!BA110/'Population 2016'!BA$5","v":1.1674044482833081E-2},{"$f":"'Population 2016'!BB110/'Population 2016'!BB$5","v":9.3976785455348946E-3},{"$f":"'Population 2016'!BC110/'Population 2016'!BC$5","v":1.0976851237108839E-2},108]
[null,"Female 65-69",{"$f":"'Population 2016'!C111/'Population 2016'!C$5","v":6.0055301988724934E-3},{"$f":"'Population 2016'!D111/'Population 2016'!D$5","v":4.5137564429838717E-3},{"$f":"'Population 2016'!E111/'Population 2016'!E$5","v":3.145523839882992E-3},{"$f":"'Population 2016'!F111/'Population 2016'!F$5","v":6.1910893638938962E-3},{"$f":"'Population 2016'!G111/'Population 2016'!G$5","v":7.8086937692849025E-3},{"$f":"'Population 2016'!H111/'Population 2016'!H$5","v":1.0233031681543903E-2},{"$f":"'Population 2016'!I111/'Population 2016'!I$5","v":7.160204337995143E-3},{"$f":"'Population 2016'!J111/'Population 2016'!J$5","v":6.8417604471608766E-3},{"$f":"'Population 2016'!K111/'Population 2016'!K$5","v":1.0844398242215187E-2},{"$f":"'Population 2016'!L111/'Population 2016'!L$5","v":1.2223404762282973E-2},{"$f":"'Population 2016'!M111/'Population 2016'!M$5","v":1.2223404762282973E-2},{"$f":"'Population 2016'!N111/'Population 2016'!N$5","v":6.421745525273065E-3},{"$f":"'Population 2016'!O111/'Population 2016'!O$5","v":1.0372395755936636E-2},{"$f":"'Population 2016'!P111/'Population 2016'!P$5","v":5.8942860362898681E-3},{"$f":"'Population 2016'!Q111/'Population 2016'!Q$5","v":1.0082137695209221E-2},{"$f":"'Population 2016'!R111/'Population 2016'!R$5","v":3.2868472880183104E-3},{"$f":"'Population 2016'!S111/'Population 2016'!S$5","v":7.0850934999320356E-3},{"$f":"'Population 2016'!T111/'Population 2016'!T$5","v":3.50623304467597E-3},{"$f":"'Population 2016'!U111/'Population 2016'!U$5","v":1.0445713274022928E-2},{"$f":"'Population 2016'!V111/'Population 2016'!V$5","v":1.0845589638302258E-2},{"$f":"'Population 2016'!W111/'Population 2016'!W$5","v":8.1645193131083347E-3},{"$f":"'Population 2016'!X111/'Population 2016'!X$5","v":8.1645193131083347E-3},{"$f":"'Population 2016'!Y111/'Population 2016'!Y$5","v":8.9267261251808391E-3},{"$f":"'Population 2016'!Z111/'Population 2016'!Z$5","v":4.431040123271575E-3},{"$f":"'Population 2016'!AA111/'Population 2016'!AA$5","v":7.2789748843476131E-3},{"$f":"'Population 2016'!AB111/'Population 2016'!AB$5","v":4.7060990962406474E-3},{"$f":"'Population 2016'!AC111/'Population 2016'!AC$5","v":5.5055531307080163E-3},{"$f":"'Population 2016'!AD111/'Population 2016'!AD$5","v":7.8789683278127215E-3},{"$f":"'Population 2016'!AE111/'Population 2016'!AE$5","v":7.9056253144282797E-3},{"$f":"'Population 2016'!AF111/'Population 2016'!AF$5","v":5.4291272677917026E-3},{"$f":"'Population 2016'!AG111/'Population 2016'!AG$5","v":7.9056253144282797E-3},{"$f":"'Population 2016'!AH111/'Population 2016'!AH$5","v":1.0464133453461264E-2},{"$f":"'Population 2016'!AI111/'Population 2016'!AI$5","v":6.623775045935777E-3},{"$f":"'Population 2016'!AJ111/'Population 2016'!AJ$5","v":1.4513565513203023E-2},{"$f":"'Population 2016'!AK111/'Population 2016'!AK$5","v":5.6950328753001518E-3},{"$f":"'Population 2016'!AL111/'Population 2016'!AL$5","v":8.6553980951029601E-3},{"$f":"'Population 2016'!AM111/'Population 2016'!AM$5","v":1.0634174964051708E-2},{"$f":"'Population 2016'!AN111/'Population 2016'!AN$5","v":6.4906730664339475E-3},{"$f":"'Population 2016'!AO111/'Population 2016'!AO$5","v":6.4906730664339475E-3},{"$f":"'Population 2016'!AP111/'Population 2016'!AP$5","v":3.6459902033828448E-3},{"$f":"'Population 2016'!AQ111/'Population 2016'!AQ$5","v":7.234065873842275E-3},{"$f":"'Population 2016'!AR111/'Population 2016'!AR$5","v":7.2580920040019757E-3},{"$f":"'Population 2016'!AS111/'Population 2016'!AS$5","v":7.160204337995143E-3},{"$f":"'Population 2016'!AT111/'Population 2016'!AT$5","v":1.3180787683871988E-3},{"$f":"'Population 2016'!AU111/'Population 2016'!AU$5","v":1.3180787683871988E-3},{"$f":"'Population 2016'!AV111/'Population 2016'!AV$5","v":1.1962833914053426E-2},{"$f":"'Population 2016'!AW111/'Population 2016'!AW$5","v":1.0285099762035512E-2},{"$f":"'Population 2016'!AX111/'Population 2016'!AX$5","v":4.6768979132857129E-3},{"$f":"'Population 2016'!AY111/'Population 2016'!AY$5","v":6.6674826351702824E-3},{"$f":"'Population 2016'!AZ111/'Population 2016'!AZ$5","v":5.3500238737624476E-3},{"$f":"'Population 2016'!BA111/'Population 2016'!BA$5","v":1.1444612394731159E-2},{"$f":"'Population 2016'!BB111/'Population 2016'!BB$5","v":9.936267029408313E-3},{"$f":"'Population 2016'!BC111/'Population 2016'!BC$5","v":1.0445713274022928E-2},109]
[null,"Female 70-74",{"$f":"'Population 2016'!C112/'Population 2016'!C$5","v":4.1399825200738039E-3},{"$f":"'Population 2016'!D112/'Population 2016'!D$5","v":3.2593918410062303E-3},{"$f":"'Population 2016'!E112/'Population 2016'!E$5","v":2.451727225422958E-3},{"$f":"'Population 2016'!F112/'Population 2016'!F$5","v":4.9961370074684524E-3},{"$f":"'Population 2016'!G112/'Population 2016'!G$5","v":6.4418340280409242E-3},{"$f":"'Population 2016'!H112/'Population 2016'!H$5","v":8.2421947194184428E-3},{"$f":"'Population 2016'!I112/'Population 2016'!I$5","v":5.7260698433967009E-3},{"$f":"'Population 2016'!J112/'Population 2016'!J$5","v":5.5729248733237683E-3},{"$f":"'Population 2016'!K112/'Population 2016'!K$5","v":8.3400274063223558E-3},{"$f":"'Population 2016'!L112/'Population 2016'!L$5","v":9.9439264212984289E-3},{"$f":"'Population 2016'!M112/'Population 2016'!M$5","v":9.9439264212984289E-3},{"$f":"'Population 2016'!N112/'Population 2016'!N$5","v":5.1599006598564553E-3},{"$f":"'Population 2016'!O112/'Population 2016'!O$5","v":8.4603877512606368E-3},{"$f":"'Population 2016'!P112/'Population 2016'!P$5","v":5.2744280401217179E-3},{"$f":"'Population 2016'!Q112/'Population 2016'!Q$5","v":8.1550158047496504E-3},{"$f":"'Population 2016'!R112/'Population 2016'!R$5","v":1.9428328099217545E-3},{"$f":"'Population 2016'!S112/'Population 2016'!S$5","v":5.5201413664600655E-3},{"$f":"'Population 2016'!T112/'Population 2016'!T$5","v":2.6430529122441287E-3},{"$f":"'Population 2016'!U112/'Population 2016'!U$5","v":7.6572389678218914E-3},{"$f":"'Population 2016'!V112/'Population 2016'!V$5","v":8.8535425618793927E-3},{"$f":"'Population 2016'!W112/'Population 2016'!W$5","v":6.2819079742971254E-3},{"$f":"'Population 2016'!X112/'Population 2016'!X$5","v":6.2819079742971254E-3},{"$f":"'Population 2016'!Y112/'Population 2016'!Y$5","v":7.2812832864342378E-3},{"$f":"'Population 2016'!Z112/'Population 2016'!Z$5","v":3.3837737594926663E-3},{"$f":"'Population 2016'!AA112/'Population 2016'!AA$5","v":5.8492237022450154E-3},{"$f":"'Population 2016'!AB112/'Population 2016'!AB$5","v":3.4533228252970737E-3},{"$f":"'Population 2016'!AC112/'Population 2016'!AC$5","v":4.2685361206898339E-3},{"$f":"'Population 2016'!AD112/'Population 2016'!AD$5","v":5.9622613420670665E-3},{"$f":"'Population 2016'!AE112/'Population 2016'!AE$5","v":5.7803468208092483E-3},{"$f":"'Population 2016'!AF112/'Population 2016'!AF$5","v":4.1321690871525731E-3},{"$f":"'Population 2016'!AG112/'Population 2016'!AG$5","v":5.7803468208092483E-3},{"$f":"'Population 2016'!AH112/'Population 2016'!AH$5","v":8.6882215803014955E-3},{"$f":"'Population 2016'!AI112/'Population 2016'!AI$5","v":5.174610639601015E-3},{"$f":"'Population 2016'!AJ112/'Population 2016'!AJ$5","v":1.0540110977888074E-2},{"$f":"'Population 2016'!AK112/'Population 2016'!AK$5","v":4.4504230416252842E-3},{"$f":"'Population 2016'!AL112/'Population 2016'!AL$5","v":6.6245721076249094E-3},{"$f":"'Population 2016'!AM112/'Population 2016'!AM$5","v":9.0042775751473254E-3},{"$f":"'Population 2016'!AN112/'Population 2016'!AN$5","v":5.6179775280898875E-3},{"$f":"'Population 2016'!AO112/'Population 2016'!AO$5","v":5.6179775280898875E-3},{"$f":"'Population 2016'!AP112/'Population 2016'!AP$5","v":2.9247182283658039E-3},{"$f":"'Population 2016'!AQ112/'Population 2016'!AQ$5","v":5.857127198991615E-3},{"$f":"'Population 2016'!AR112/'Population 2016'!AR$5","v":5.7396403434962218E-3},{"$f":"'Population 2016'!AS112/'Population 2016'!AS$5","v":5.7260698433967009E-3},{"$f":"'Population 2016'!AT112/'Population 2016'!AT$5","v":1.001739863974271E-3},{"$f":"'Population 2016'!AU112/'Population 2016'!AU$5","v":1.001739863974271E-3},{"$f":"'Population 2016'!AV112/'Population 2016'!AV$5","v":9.9355928624221303E-3},{"$f":"'Population 2016'!AW112/'Population 2016'!AW$5","v":8.3554518274452372E-3},{"$f":"'Population 2016'!AX112/'Population 2016'!AX$5","v":4.0763126621260722E-3},{"$f":"'Population 2016'!AY112/'Population 2016'!AY$5","v":5.2293381475475046E-3},{"$f":"'Population 2016'!AZ112/'Population 2016'!AZ$5","v":4.3030299543809795E-3},{"$f":"'Population 2016'!BA112/'Population 2016'!BA$5","v":8.5834592960483697E-3},{"$f":"'Population 2016'!BB112/'Population 2016'!BB$5","v":8.2790716944131804E-3},{"$f":"'Population 2016'!BC112/'Population 2016'!BC$5","v":7.6572389678218914E-3},110]
[null,"Female 75-79",{"$f":"'Population 2016'!C113/'Population 2016'!C$5","v":4.1093159828880718E-3},{"$f":"'Population 2016'!D113/'Population 2016'!D$5","v":3.0026505482037892E-3},{"$f":"'Population 2016'!E113/'Population 2016'!E$5","v":1.9876335441287463E-3},{"$f":"'Population 2016'!F113/'Population 2016'!F$5","v":4.3986608292557305E-3},{"$f":"'Population 2016'!G113/'Population 2016'!G$5","v":5.9546364965084178E-3},{"$f":"'Population 2016'!H113/'Population 2016'!H$5","v":6.6988097129498433E-3},{"$f":"'Population 2016'!I113/'Population 2016'!I$5","v":4.6269156687044639E-3},{"$f":"'Population 2016'!J113/'Population 2016'!J$5","v":4.4284849439804944E-3},{"$f":"'Population 2016'!K113/'Population 2016'!K$5","v":5.6702735907007513E-3},{"$f":"'Population 2016'!L113/'Population 2016'!L$5","v":7.7915270122154625E-3},{"$f":"'Population 2016'!M113/'Population 2016'!M$5","v":7.7915270122154625E-3},{"$f":"'Population 2016'!N113/'Population 2016'!N$5","v":4.9589699488028546E-3},{"$f":"'Population 2016'!O113/'Population 2016'!O$5","v":7.231947375199374E-3},{"$f":"'Population 2016'!P113/'Population 2016'!P$5","v":4.2826552462526769E-3},{"$f":"'Population 2016'!Q113/'Population 2016'!Q$5","v":7.203205602754374E-3},{"$f":"'Population 2016'!R113/'Population 2016'!R$5","v":2.1025176984084738E-3},{"$f":"'Population 2016'!S113/'Population 2016'!S$5","v":4.6251264407180595E-3},{"$f":"'Population 2016'!T113/'Population 2016'!T$5","v":2.5313746201774752E-3},{"$f":"'Population 2016'!U113/'Population 2016'!U$5","v":7.34740848935511E-3},{"$f":"'Population 2016'!V113/'Population 2016'!V$5","v":7.342334434937911E-3},{"$f":"'Population 2016'!W113/'Population 2016'!W$5","v":5.157570646951542E-3},{"$f":"'Population 2016'!X113/'Population 2016'!X$5","v":5.157570646951542E-3},{"$f":"'Population 2016'!Y113/'Population 2016'!Y$5","v":5.9458514173065611E-3},{"$f":"'Population 2016'!Z113/'Population 2016'!Z$5","v":3.3198924470994981E-3},{"$f":"'Population 2016'!AA113/'Population 2016'!AA$5","v":5.1894918603175612E-3},{"$f":"'Population 2016'!AB113/'Population 2016'!AB$5","v":3.1442227976623033E-3},{"$f":"'Population 2016'!AC113/'Population 2016'!AC$5","v":4.0006536745404112E-3},{"$f":"'Population 2016'!AD113/'Population 2016'!AD$5","v":5.4784323942089399E-3},{"$f":"'Population 2016'!AE113/'Population 2016'!AE$5","v":5.2977956652532363E-3},{"$f":"'Population 2016'!AF113/'Population 2016'!AF$5","v":3.046343633594233E-3},{"$f":"'Population 2016'!AG113/'Population 2016'!AG$5","v":5.2977956652532363E-3},{"$f":"'Population 2016'!AH113/'Population 2016'!AH$5","v":7.3247076525825953E-3},{"$f":"'Population 2016'!AI113/'Population 2016'!AI$5","v":4.4021786682999385E-3},{"$f":"'Population 2016'!AJ113/'Population 2016'!AJ$5","v":8.3791093885062593E-3},{"$f":"'Population 2016'!AK113/'Population 2016'!AK$5","v":3.8721194825440328E-3},{"$f":"'Population 2016'!AL113/'Population 2016'!AL$5","v":5.0371579078058214E-3},{"$f":"'Population 2016'!AM113/'Population 2016'!AM$5","v":7.4975279889601615E-3},{"$f":"'Population 2016'!AN113/'Population 2016'!AN$5","v":3.436238682229737E-3},{"$f":"'Population 2016'!AO113/'Population 2016'!AO$5","v":3.436238682229737E-3},{"$f":"'Population 2016'!AP113/'Population 2016'!AP$5","v":2.2351505159868743E-3},{"$f":"'Population 2016'!AQ113/'Population 2016'!AQ$5","v":5.5146051405710527E-3},{"$f":"'Population 2016'!AR113/'Population 2016'!AR$5","v":4.9383095596289683E-3},{"$f":"'Population 2016'!AS113/'Population 2016'!AS$5","v":4.6269156687044639E-3},{"$f":"'Population 2016'!AT113/'Population 2016'!AT$5","v":5.2723150735487954E-4},{"$f":"'Population 2016'!AU113/'Population 2016'!AU$5","v":5.2723150735487954E-4},{"$f":"'Population 2016'!AV113/'Population 2016'!AV$5","v":8.1089642065251821E-3},{"$f":"'Population 2016'!AW113/'Population 2016'!AW$5","v":7.1427481847580691E-3},{"$f":"'Population 2016'!AX113/'Population 2016'!AX$5","v":3.7568524221475393E-3},{"$f":"'Population 2016'!AY113/'Population 2016'!AY$5","v":4.4429485021878152E-3},{"$f":"'Population 2016'!AZ113/'Population 2016'!AZ$5","v":3.8140492777467769E-3},{"$f":"'Population 2016'!BA113/'Population 2016'!BA$5","v":8.2055711509393219E-3},{"$f":"'Population 2016'!BB113/'Population 2016'!BB$5","v":6.3387721563563796E-3},{"$f":"'Population 2016'!BC113/'Population 2016'!BC$5","v":7.34740848935511E-3},111]
[null,"Female 80-84",{"$f":"'Population 2016'!C114/'Population 2016'!C$5","v":3.6442068355711388E-3},{"$f":"'Population 2016'!D114/'Population 2016'!D$5","v":2.5698580831939595E-3},{"$f":"'Population 2016'!E114/'Population 2016'!E$5","v":1.5844814573479156E-3},{"$f":"'Population 2016'!F114/'Population 2016'!F$5","v":3.3994334277620396E-3},{"$f":"'Population 2016'!G114/'Population 2016'!G$5","v":4.5201104314404805E-3},{"$f":"'Population 2016'!H114/'Population 2016'!H$5","v":5.2526968707544757E-3},{"$f":"'Population 2016'!I114/'Population 2016'!I$5","v":3.6638472489741226E-3},{"$f":"'Population 2016'!J114/'Population 2016'!J$5","v":2.9606163389532523E-3},{"$f":"'Population 2016'!K114/'Population 2016'!K$5","v":3.8038085337617541E-3},{"$f":"'Population 2016'!L114/'Population 2016'!L$5","v":6.4889679602242942E-3},{"$f":"'Population 2016'!M114/'Population 2016'!M$5","v":6.4889679602242942E-3},{"$f":"'Population 2016'!N114/'Population 2016'!N$5","v":4.0346886779562934E-3},{"$f":"'Population 2016'!O114/'Population 2016'!O$5","v":5.3595664794285772E-3},{"$f":"'Population 2016'!P114/'Population 2016'!P$5","v":3.944550884706413E-3},{"$f":"'Population 2016'!Q114/'Population 2016'!Q$5","v":5.6756089822681283E-3},{"$f":"'Population 2016'!R114/'Population 2016'!R$5","v":2.0093681801245543E-3},{"$f":"'Population 2016'!S114/'Population 2016'!S$5","v":3.5579932600256678E-3},{"$f":"'Population 2016'!T114/'Population 2016'!T$5","v":1.8962043340483845E-3},{"$f":"'Population 2016'!U114/'Population 2016'!U$5","v":6.7720090293453723E-3},{"$f":"'Population 2016'!V114/'Population 2016'!V$5","v":5.2892284442951892E-3},{"$f":"'Population 2016'!W114/'Population 2016'!W$5","v":4.1084070362598785E-3},{"$f":"'Population 2016'!X114/'Population 2016'!X$5","v":4.1084070362598785E-3},{"$f":"'Population 2016'!Y114/'Population 2016'!Y$5","v":4.1732245910239898E-3},{"$f":"'Population 2016'!Z114/'Population 2016'!Z$5","v":2.9908068984074196E-3},{"$f":"'Population 2016'!AA114/'Population 2016'!AA$5","v":4.1895961683731334E-3},{"$f":"'Population 2016'!AB114/'Population 2016'!AB$5","v":2.6038095043140947E-3},{"$f":"'Population 2016'!AC114/'Population 2016'!AC$5","v":3.4183455000920521E-3},{"$f":"'Population 2016'!AD114/'Population 2016'!AD$5","v":4.0120585060850799E-3},{"$f":"'Population 2016'!AE114/'Population 2016'!AE$5","v":3.8193410609965194E-3},{"$f":"'Population 2016'!AF114/'Population 2016'!AF$5","v":2.3526218160430713E-3},{"$f":"'Population 2016'!AG114/'Population 2016'!AG$5","v":3.8193410609965194E-3},{"$f":"'Population 2016'!AH114/'Population 2016'!AH$5","v":5.5748028570632435E-3},{"$f":"'Population 2016'!AI114/'Population 2016'!AI$5","v":3.3139382273164758E-3},{"$f":"'Population 2016'!AJ114/'Population 2016'!AJ$5","v":6.5945403340490196E-3},{"$f":"'Population 2016'!AK114/'Population 2016'!AK$5","v":2.7783714468903611E-3},{"$f":"'Population 2016'!AL114/'Population 2016'!AL$5","v":4.2390166900196872E-3},{"$f":"'Population 2016'!AM114/'Population 2016'!AM$5","v":5.5380291280773368E-3},{"$f":"'Population 2016'!AN114/'Population 2016'!AN$5","v":3.272608268790226E-3},{"$f":"'Population 2016'!AO114/'Population 2016'!AO$5","v":3.272608268790226E-3},{"$f":"'Population 2016'!AP114/'Population 2016'!AP$5","v":1.8705514956485899E-3},{"$f":"'Population 2016'!AQ114/'Population 2016'!AQ$5","v":4.5966460240039458E-3},{"$f":"'Population 2016'!AR114/'Population 2016'!AR$5","v":3.8919234901753992E-3},{"$f":"'Population 2016'!AS114/'Population 2016'!AS$5","v":3.6638472489741226E-3},{"$f":"'Population 2016'!AT114/'Population 2016'!AT$5","v":7.9084726103231925E-4},{"$f":"'Population 2016'!AU114/'Population 2016'!AU$5","v":7.9084726103231925E-4},{"$f":"'Population 2016'!AV114/'Population 2016'!AV$5","v":6.345686833491712E-3},{"$f":"'Population 2016'!AW114/'Population 2016'!AW$5","v":5.6135212642626151E-3},{"$f":"'Population 2016'!AX114/'Population 2016'!AX$5","v":2.504568281431693E-3},{"$f":"'Population 2016'!AY114/'Population 2016'!AY$5","v":3.5571126954499557E-3},{"$f":"'Population 2016'!AZ114/'Population 2016'!AZ$5","v":3.0719491920313409E-3},{"$f":"'Population 2016'!BA114/'Population 2016'!BA$5","v":5.8302742388253075E-3},{"$f":"'Population 2016'!BB114/'Population 2016'!BB$5","v":4.5089523072992547E-3},{"$f":"'Population 2016'!BC114/'Population 2016'!BC$5","v":6.7720090293453723E-3},112]
[null,"Female 85-89",{"$f":"'Population 2016'!C115/'Population 2016'!C$5","v":2.0495469019130809E-3},{"$f":"'Population 2016'!D115/'Population 2016'!D$5","v":1.4353060845241239E-3},{"$f":"'Population 2016'!E115/'Population 2016'!E$5","v":8.7193358303761035E-4},{"$f":"'Population 2016'!F115/'Population 2016'!F$5","v":2.5238217872778777E-3},{"$f":"'Population 2016'!G115/'Population 2016'!G$5","v":2.5307205110160777E-3},{"$f":"'Population 2016'!H115/'Population 2016'!H$5","v":2.8857408734391872E-3},{"$f":"'Population 2016'!I115/'Population 2016'!I$5","v":2.2297127543756804E-3},{"$f":"'Population 2016'!J115/'Population 2016'!J$5","v":1.7249529369811666E-3},{"$f":"'Population 2016'!K115/'Population 2016'!K$5","v":2.4098662760478192E-3},{"$f":"'Population 2016'!L115/'Population 2016'!L$5","v":3.6138071259511064E-3},{"$f":"'Population 2016'!M115/'Population 2016'!M$5","v":3.6138071259511064E-3},{"$f":"'Population 2016'!N115/'Population 2016'!N$5","v":2.2102378215896031E-3},{"$f":"'Population 2016'!O115/'Population 2016'!O$5","v":2.8630586184008478E-3},{"$f":"'Population 2016'!P115/'Population 2016'!P$5","v":2.2878395131297195E-3},{"$f":"'Population 2016'!Q115/'Population 2016'!Q$5","v":3.1962021597866067E-3},{"$f":"'Population 2016'!R115/'Population 2016'!R$5","v":8.9157396071751747E-4},{"$f":"'Population 2016'!S115/'Population 2016'!S$5","v":2.2304760526134612E-3},{"$f":"'Population 2016'!T115/'Population 2016'!T$5","v":1.293606883105401E-3},{"$f":"'Population 2016'!U115/'Population 2016'!U$5","v":2.7884743062010359E-3},{"$f":"'Population 2016'!V115/'Population 2016'!V$5","v":3.304813732149808E-3},{"$f":"'Population 2016'!W115/'Population 2016'!W$5","v":2.6441537727400492E-3},{"$f":"'Population 2016'!X115/'Population 2016'!X$5","v":2.6441537727400492E-3},{"$f":"'Population 2016'!Y115/'Population 2016'!Y$5","v":2.5476542503298834E-3},{"$f":"'Population 2016'!Z115/'Population 2016'!Z$5","v":1.85836545143762E-3},{"$f":"'Population 2016'!AA115/'Population 2016'!AA$5","v":2.4402769943600569E-3},{"$f":"'Population 2016'!AB115/'Population 2016'!AB$5","v":1.4902305968086957E-3},{"$f":"'Population 2016'!AC115/'Population 2016'!AC$5","v":1.9858467050459122E-3},{"$f":"'Population 2016'!AD115/'Population 2016'!AD$5","v":2.5159105288622575E-3},{"$f":"'Population 2016'!AE115/'Population 2016'!AE$5","v":2.5102927134775513E-3},{"$f":"'Population 2016'!AF115/'Population 2016'!AF$5","v":1.2064727261759339E-3},{"$f":"'Population 2016'!AG115/'Population 2016'!AG$5","v":2.5102927134775513E-3},{"$f":"'Population 2016'!AH115/'Population 2016'!AH$5","v":3.256457650260535E-3},{"$f":"'Population 2016'!AI115/'Population 2016'!AI$5","v":2.0575400297488844E-3},{"$f":"'Population 2016'!AJ115/'Population 2016'!AJ$5","v":4.2801773415497863E-3},{"$f":"'Population 2016'!AK115/'Population 2016'!AK$5","v":1.772626126749054E-3},{"$f":"'Population 2016'!AL115/'Population 2016'!AL$5","v":2.16384952377574E-3},{"$f":"'Population 2016'!AM115/'Population 2016'!AM$5","v":3.0497191143499789E-3},{"$f":"'Population 2016'!AN115/'Population 2016'!AN$5","v":1.5817606632486092E-3},{"$f":"'Population 2016'!AO115/'Population 2016'!AO$5","v":1.5817606632486092E-3},{"$f":"'Population 2016'!AP115/'Population 2016'!AP$5","v":1.6169173945436964E-3},{"$f":"'Population 2016'!AQ115/'Population 2016'!AQ$5","v":2.4182057324491696E-3},{"$f":"'Population 2016'!AR115/'Population 2016'!AR$5","v":2.3193368893083049E-3},{"$f":"'Population 2016'!AS115/'Population 2016'!AS$5","v":2.2297127543756804E-3},{"$f":"'Population 2016'!AT115/'Population 2016'!AT$5","v":2.6361575367743977E-4},{"$f":"'Population 2016'!AU115/'Population 2016'!AU$5","v":2.6361575367743977E-4},{"$f":"'Population 2016'!AV115/'Population 2016'!AV$5","v":3.7694013303769401E-3},{"$f":"'Population 2016'!AW115/'Population 2016'!AW$5","v":3.4741289889560069E-3},{"$f":"'Population 2016'!AX115/'Population 2016'!AX$5","v":1.3545114175089769E-3},{"$f":"'Population 2016'!AY115/'Population 2016'!AY$5","v":2.3453994675805513E-3},{"$f":"'Population 2016'!AZ115/'Population 2016'!AZ$5","v":2.0824824110774257E-3},{"$f":"'Population 2016'!BA115/'Population 2016'!BA$5","v":3.4684733318937596E-3},{"$f":"'Population 2016'!BB115/'Population 2016'!BB$5","v":2.5548428081174951E-3},{"$f":"'Population 2016'!BC115/'Population 2016'!BC$5","v":2.7884743062010359E-3},113]
[null,"Female 90+",{"$f":"'Population 2016'!C116/'Population 2016'!C$5","v":9.9666245853628614E-4},{"$f":"'Population 2016'!D116/'Population 2016'!D$5","v":7.5555294739004136E-4},{"$f":"'Population 2016'!E116/'Population 2016'!E$5","v":5.3441090573272897E-4},{"$f":"'Population 2016'!F116/'Population 2016'!F$5","v":1.658511460211177E-3},{"$f":"'Population 2016'!G116/'Population 2016'!G$5","v":1.4074595355383533E-3},{"$f":"'Population 2016'!H116/'Population 2016'!H$5","v":2.0102913949801076E-3},{"$f":"'Population 2016'!I116/'Population 2016'!I$5","v":1.5388158445691317E-3},{"$f":"'Population 2016'!J116/'Population 2016'!J$5","v":1.0449234137482066E-3},{"$f":"'Population 2016'!K116/'Population 2016'!K$5","v":1.441194537636441E-3},{"$f":"'Population 2016'!L116/'Population 2016'!L$5","v":2.1921115753022096E-3},{"$f":"'Population 2016'!M116/'Population 2016'!M$5","v":2.1921115753022096E-3},{"$f":"'Population 2016'!N116/'Population 2016'!N$5","v":1.3261426929537619E-3},{"$f":"'Population 2016'!O116/'Population 2016'!O$5","v":1.8228470096392942E-3},{"$f":"'Population 2016'!P116/'Population 2016'!P$5","v":1.5665502084976897E-3},{"$f":"'Population 2016'!Q116/'Population 2016'!Q$5","v":1.7273592554729086E-3},{"$f":"'Population 2016'!R116/'Population 2016'!R$5","v":4.6574759141959865E-4},{"$f":"'Population 2016'!S116/'Population 2016'!S$5","v":1.2851496369628806E-3},{"$f":"'Population 2016'!T116/'Population 2016'!T$5","v":7.817480444665733E-4},{"$f":"'Population 2016'!U116/'Population 2016'!U$5","v":2.5229053246580801E-3},{"$f":"'Population 2016'!V116/'Population 2016'!V$5","v":2.106532540585097E-3},{"$f":"'Population 2016'!W116/'Population 2016'!W$5","v":1.5753796272691023E-3},{"$f":"'Population 2016'!X116/'Population 2016'!X$5","v":1.5753796272691023E-3},{"$f":"'Population 2016'!Y116/'Population 2016'!Y$5","v":1.5977488434206133E-3},{"$f":"'Population 2016'!Z116/'Population 2016'!Z$5","v":1.0898539053743543E-3},{"$f":"'Population 2016'!AA116/'Population 2016'!AA$5","v":1.2603336396136749E-3},{"$f":"'Population 2016'!AB116/'Population 2016'!AB$5","v":7.635384788594004E-4},{"$f":"'Population 2016'!AC116/'Population 2016'!AC$5","v":1.068426899121056E-3},{"$f":"'Population 2016'!AD116/'Population 2016'!AD$5","v":1.3993821876511965E-3},{"$f":"'Population 2016'!AE116/'Population 2016'!AE$5","v":1.3963182373535662E-3},{"$f":"'Population 2016'!AF116/'Population 2016'!AF$5","v":3.9210363600717849E-4},{"$f":"'Population 2016'!AG116/'Population 2016'!AG$5","v":1.3963182373535662E-3},{"$f":"'Population 2016'!AH116/'Population 2016'!AH$5","v":1.6050082200941827E-3},{"$f":"'Population 2016'!AI116/'Population 2016'!AI$5","v":1.130621664187593E-3},{"$f":"'Population 2016'!AJ116/'Population 2016'!AJ$5","v":1.9379304575746592E-3},{"$f":"'Population 2016'!AK116/'Population 2016'!AK$5","v":8.0459625611304579E-4},{"$f":"'Population 2016'!AL116/'Population 2016'!AL$5","v":1.3657083059896065E-3},{"$f":"'Population 2016'!AM116/'Population 2016'!AM$5","v":1.3039179111235064E-3},{"$f":"'Population 2016'!AN116/'Population 2016'!AN$5","v":6.5452165375804513E-4},{"$f":"'Population 2016'!AO116/'Population 2016'!AO$5","v":6.5452165375804513E-4},{"$f":"'Population 2016'!AP116/'Population 2016'!AP$5","v":7.609023033146807E-4},{"$f":"'Population 2016'!AQ116/'Population 2016'!AQ$5","v":1.1508741162930892E-3},{"$f":"'Population 2016'!AR116/'Population 2016'!AR$5","v":1.3126052206132487E-3},{"$f":"'Population 2016'!AS116/'Population 2016'!AS$5","v":1.5388158445691317E-3},{"$f":"'Population 2016'!AT116/'Population 2016'!AT$5","v":5.2723150735487951E-5},{"$f":"'Population 2016'!AU116/'Population 2016'!AU$5","v":5.2723150735487951E-5},{"$f":"'Population 2016'!AV116/'Population 2016'!AV$5","v":2.9775102945834653E-3},{"$f":"'Population 2016'!AW116/'Population 2016'!AW$5","v":1.9220208676551346E-3},{"$f":"'Population 2016'!AX116/'Population 2016'!AX$5","v":8.3059662394418393E-4},{"$f":"'Population 2016'!AY116/'Population 2016'!AY$5","v":1.3830666136287139E-3},{"$f":"'Population 2016'!AZ116/'Population 2016'!AZ$5","v":1.2138226208213724E-3},{"$f":"'Population 2016'!BA116/'Population 2016'!BA$5","v":1.3765925286115309E-3},{"$f":"'Population 2016'!BB116/'Population 2016'!BB$5","v":1.4155210153083419E-3},{"$f":"'Population 2016'!BC116/'Population 2016'!BC$5","v":2.5229053246580801E-3},114]
[null,"Male 0-4",{"$f":"'Population 2016'!C117/'Population 2016'!C$5","v":0},{"$f":"'Population 2016'!D117/'Population 2016'!D$5","v":0},{"$f":"'Population 2016'!E117/'Population 2016'!E$5","v":0},{"$f":"'Population 2016'!F117/'Population 2016'!F$5","v":0},{"$f":"'Population 2016'!G117/'Population 2016'!G$5","v":0},{"$f":"'Population 2016'!H117/'Population 2016'!H$5","v":0},{"$f":"'Population 2016'!I117/'Population 2016'!I$5","v":0},{"$f":"'Population 2016'!J117/'Population 2016'!J$5","v":0},{"$f":"'Population 2016'!K117/'Population 2016'!K$5","v":0},{"$f":"'Population 2016'!L117/'Population 2016'!L$5","v":0},{"$f":"'Population 2016'!M117/'Population 2016'!M$5","v":0},{"$f":"'Population 2016'!N117/'Population 2016'!N$5","v":0},{"$f":"'Population 2016'!O117/'Population 2016'!O$5","v":0},{"$f":"'Population 2016'!P117/'Population 2016'!P$5","v":0},{"$f":"'Population 2016'!Q117/'Population 2016'!Q$5","v":0},{"$f":"'Population 2016'!R117/'Population 2016'!R$5","v":0},{"$f":"'Population 2016'!S117/'Population 2016'!S$5","v":0},{"$f":"'Population 2016'!T117/'Population 2016'!T$5","v":0},{"$f":"'Population 2016'!U117/'Population 2016'!U$5","v":0},{"$f":"'Population 2016'!V117/'Population 2016'!V$5","v":0},{"$f":"'Population 2016'!W117/'Population 2016'!W$5","v":0},{"$f":"'Population 2016'!X117/'Population 2016'!X$5","v":0},{"$f":"'Population 2016'!Y117/'Population 2016'!Y$5","v":0},{"$f":"'Population 2016'!Z117/'Population 2016'!Z$5","v":0},{"$f":"'Population 2016'!AA117/'Population 2016'!AA$5","v":0},{"$f":"'Population 2016'!AB117/'Population 2016'!AB$5","v":0},{"$f":"'Population 2016'!AC117/'Population 2016'!AC$5","v":0},{"$f":"'Population 2016'!AD117/'Population 2016'!AD$5","v":0},{"$f":"'Population 2016'!AE117/'Population 2016'!AE$5","v":0},{"$f":"'Population 2016'!AF117/'Population 2016'!AF$5","v":0},{"$f":"'Population 2016'!AG117/'Population 2016'!AG$5","v":0},{"$f":"'Population 2016'!AH117/'Population 2016'!AH$5","v":0},{"$f":"'Population 2016'!AI117/'Population 2016'!AI$5","v":0},{"$f":"'Population 2016'!AJ117/'Population 2016'!AJ$5","v":0},{"$f":"'Population 2016'!AK117/'Population 2016'!AK$5","v":0},{"$f":"'Population 2016'!AL117/'Population 2016'!AL$5","v":0},{"$f":"'Population 2016'!AM117/'Population 2016'!AM$5","v":0},{"$f":"'Population 2016'!AN117/'Population 2016'!AN$5","v":0},{"$f":"'Population 2016'!AO117/'Population 2016'!AO$5","v":0},{"$f":"'Population 2016'!AP117/'Population 2016'!AP$5","v":0},{"$f":"'Population 2016'!AQ117/'Population 2016'!AQ$5","v":0},{"$f":"'Population 2016'!AR117/'Population 2016'!AR$5","v":0},{"$f":"'Population 2016'!AS117/'Population 2016'!AS$5","v":0},{"$f":"'Population 2016'!AT117/'Population 2016'!AT$5","v":0},{"$f":"'Population 2016'!AU117/'Population 2016'!AU$5","v":0},{"$f":"'Population 2016'!AV117/'Population 2016'!AV$5","v":0},{"$f":"'Population 2016'!AW117/'Population 2016'!AW$5","v":0},{"$f":"'Population 2016'!AX117/'Population 2016'!AX$5","v":0},{"$f":"'Population 2016'!AY117/'Population 2016'!AY$5","v":0},{"$f":"'Population 2016'!AZ117/'Population 2016'!AZ$5","v":0},{"$f":"'Population 2016'!BA117/'Population 2016'!BA$5","v":0},{"$f":"'Population 2016'!BB117/'Population 2016'!BB$5","v":0},{"$f":"'Population 2016'!BC117/'Population 2016'!BC$5","v":0},115]
[null,"Male 5-9",{"$f":"'Population 2016'!C118/'Population 2016'!C$5","v":0},{"$f":"'Population 2016'!D118/'Population 2016'!D$5","v":0},{"$f":"'Population 2016'!E118/'Population 2016'!E$5","v":0},{"$f":"'Population 2016'!F118/'Population 2016'!F$5","v":0},{"$f":"'Population 2016'!G118/'Population 2016'!G$5","v":0},{"$f":"'Population 2016'!H118/'Population 2016'!H$5","v":0},{"$f":"'Population 2016'!I118/'Population 2016'!I$5","v":0},{"$f":"'Population 2016'!J118/'Population 2016'!J$5","v":0},{"$f":"'Population 2016'!K118/'Population 2016'!K$5","v":0},{"$f":"'Population 2016'!L118/'Population 2016'!L$5","v":0},{"$f":"'Population 2016'!M118/'Population 2016'!M$5","v":0},{"$f":"'Population 2016'!N118/'Population 2016'!N$5","v":0},{"$f":"'Population 2016'!O118/'Population 2016'!O$5","v":0},{"$f":"'Population 2016'!P118/'Population 2016'!P$5","v":0},{"$f":"'Population 2016'!Q118/'Population 2016'!Q$5","v":0},{"$f":"'Population 2016'!R118/'Population 2016'!R$5","v":0},{"$f":"'Population 2016'!S118/'Population 2016'!S$5","v":0},{"$f":"'Population 2016'!T118/'Population 2016'!T$5","v":0},{"$f":"'Population 2016'!U118/'Population 2016'!U$5","v":0},{"$f":"'Population 2016'!V118/'Population 2016'!V$5","v":0},{"$f":"'Population 2016'!W118/'Population 2016'!W$5","v":0},{"$f":"'Population 2016'!X118/'Population 2016'!X$5","v":0},{"$f":"'Population 2016'!Y118/'Population 2016'!Y$5","v":0},{"$f":"'Population 2016'!Z118/'Population 2016'!Z$5","v":0},{"$f":"'Population 2016'!AA118/'Population 2016'!AA$5","v":0},{"$f":"'Population 2016'!AB118/'Population 2016'!AB$5","v":0},{"$f":"'Population 2016'!AC118/'Population 2016'!AC$5","v":0},{"$f":"'Population 2016'!AD118/'Population 2016'!AD$5","v":0},{"$f":"'Population 2016'!AE118/'Population 2016'!AE$5","v":0},{"$f":"'Population 2016'!AF118/'Population 2016'!AF$5","v":0},{"$f":"'Population 2016'!AG118/'Population 2016'!AG$5","v":0},{"$f":"'Population 2016'!AH118/'Population 2016'!AH$5","v":0},{"$f":"'Population 2016'!AI118/'Population 2016'!AI$5","v":0},{"$f":"'Population 2016'!AJ118/'Population 2016'!AJ$5","v":0},{"$f":"'Population 2016'!AK118/'Population 2016'!AK$5","v":0},{"$f":"'Population 2016'!AL118/'Population 2016'!AL$5","v":0},{"$f":"'Population 2016'!AM118/'Population 2016'!AM$5","v":0},{"$f":"'Population 2016'!AN118/'Population 2016'!AN$5","v":0},{"$f":"'Population 2016'!AO118/'Population 2016'!AO$5","v":0},{"$f":"'Population 2016'!AP118/'Population 2016'!AP$5","v":0},{"$f":"'Population 2016'!AQ118/'Population 2016'!AQ$5","v":0},{"$f":"'Population 2016'!AR118/'Population 2016'!AR$5","v":0},{"$f":"'Population 2016'!AS118/'Population 2016'!AS$5","v":0},{"$f":"'Population 2016'!AT118/'Population 2016'!AT$5","v":0},{"$f":"'Population 2016'!AU118/'Population 2016'!AU$5","v":0},{"$f":"'Population 2016'!AV118/'Population 2016'!AV$5","v":0},{"$f":"'Population 2016'!AW118/'Population 2016'!AW$5","v":0},{"$f":"'Population 2016'!AX118/'Population 2016'!AX$5","v":0},{"$f":"'Population 2016'!AY118/'Population 2016'!AY$5","v":0},{"$f":"'Population 2016'!AZ118/'Population 2016'!AZ$5","v":0},{"$f":"'Population 2016'!BA118/'Population 2016'!BA$5","v":0},{"$f":"'Population 2016'!BB118/'Population 2016'!BB$5","v":0},{"$f":"'Population 2016'!BC118/'Population 2016'!BC$5","v":0},116]
[null,"Male 10-15",{"$f":"'Population 2016'!C119/'Population 2016'!C$5","v":0},{"$f":"'Population 2016'!D119/'Population 2016'!D$5","v":0},{"$f":"'Population 2016'!E119/'Population 2016'!E$5","v":0},{"$f":"'Population 2016'!F119/'Population 2016'!F$5","v":0},{"$f":"'Population 2016'!G119/'Population 2016'!G$5","v":0},{"$f":"'Population 2016'!H119/'Population 2016'!H$5","v":0},{"$f":"'Population 2016'!I119/'Population 2016'!I$5","v":0},{"$f":"'Population 2016'!J119/'Population 2016'!J$5","v":0},{"$f":"'Population 2016'!K119/'Population 2016'!K$5","v":0},{"$f":"'Population 2016'!L119/'Population 2016'!L$5","v":0},{"$f":"'Population 2016'!M119/'Population 2016'!M$5","v":0},{"$f":"'Population 2016'!N119/'Population 2016'!N$5","v":0},{"$f":"'Population 2016'!O119/'Population 2016'!O$5","v":0},{"$f":"'Population 2016'!P119/'Population 2016'!P$5","v":0},{"$f":"'Population 2016'!Q119/'Population 2016'!Q$5","v":0},{"$f":"'Population 2016'!R119/'Population 2016'!R$5","v":0},{"$f":"'Population 2016'!S119/'Population 2016'!S$5","v":0},{"$f":"'Population 2016'!T119/'Population 2016'!T$5","v":0},{"$f":"'Population 2016'!U119/'Population 2016'!U$5","v":0},{"$f":"'Population 2016'!V119/'Population 2016'!V$5","v":0},{"$f":"'Population 2016'!W119/'Population 2016'!W$5","v":0},{"$f":"'Population 2016'!X119/'Population 2016'!X$5","v":0},{"$f":"'Population 2016'!Y119/'Population 2016'!Y$5","v":0},{"$f":"'Population 2016'!Z119/'Population 2016'!Z$5","v":0},{"$f":"'Population 2016'!AA119/'Population 2016'!AA$5","v":0},{"$f":"'Population 2016'!AB119/'Population 2016'!AB$5","v":0},{"$f":"'Population 2016'!AC119/'Population 2016'!AC$5","v":0},{"$f":"'Population 2016'!AD119/'Population 2016'!AD$5","v":0},{"$f":"'Population 2016'!AE119/'Population 2016'!AE$5","v":0},{"$f":"'Population 2016'!AF119/'Population 2016'!AF$5","v":0},{"$f":"'Population 2016'!AG119/'Population 2016'!AG$5","v":0},{"$f":"'Population 2016'!AH119/'Population 2016'!AH$5","v":0},{"$f":"'Population 2016'!AI119/'Population 2016'!AI$5","v":0},{"$f":"'Population 2016'!AJ119/'Population 2016'!AJ$5","v":0},{"$f":"'Population 2016'!AK119/'Population 2016'!AK$5","v":0},{"$f":"'Population 2016'!AL119/'Population 2016'!AL$5","v":0},{"$f":"'Population 2016'!AM119/'Population 2016'!AM$5","v":0},{"$f":"'Population 2016'!AN119/'Population 2016'!AN$5","v":0},{"$f":"'Population 2016'!AO119/'Population 2016'!AO$5","v":0},{"$f":"'Population 2016'!AP119/'Population 2016'!AP$5","v":0},{"$f":"'Population 2016'!AQ119/'Population 2016'!AQ$5","v":0},{"$f":"'Population 2016'!AR119/'Population 2016'!AR$5","v":0},{"$f":"'Population 2016'!AS119/'Population 2016'!AS$5","v":0},{"$f":"'Population 2016'!AT119/'Population 2016'!AT$5","v":0},{"$f":"'Population 2016'!AU119/'Population 2016'!AU$5","v":0},{"$f":"'Population 2016'!AV119/'Population 2016'!AV$5","v":0},{"$f":"'Population 2016'!AW119/'Population 2016'!AW$5","v":0},{"$f":"'Population 2016'!AX119/'Population 2016'!AX$5","v":0},{"$f":"'Population 2016'!AY119/'Population 2016'!AY$5","v":0},{"$f":"'Population 2016'!AZ119/'Population 2016'!AZ$5","v":0},{"$f":"'Population 2016'!BA119/'Population 2016'!BA$5","v":0},{"$f":"'Population 2016'!BB119/'Population 2016'!BB$5","v":0},{"$f":"'Population 2016'!BC119/'Population 2016'!BC$5","v":0},117]
[null,"Male 16-19",{"$f":"'Population 2016'!C120/'Population 2016'!C$5","v":4.727757816133665E-3},{"$f":"'Population 2016'!D120/'Population 2016'!D$5","v":3.3009594788885304E-3},{"$f":"'Population 2016'!E120/'Population 2016'!E$5","v":1.992321359091314E-3},{"$f":"'Population 2016'!F120/'Population 2016'!F$5","v":4.017512232809683E-3},{"$f":"'Population 2016'!G120/'Population 2016'!G$5","v":4.1141124884967253E-3},{"$f":"'Population 2016'!H120/'Population 2016'!H$5","v":6.5885679267735147E-3},{"$f":"'Population 2016'!I120/'Population 2016'!I$5","v":3.8208692739301565E-3},{"$f":"'Population 2016'!J120/'Population 2016'!J$5","v":5.149979682044733E-3},{"$f":"'Population 2016'!K120/'Population 2016'!K$5","v":7.2295988281434577E-3},{"$f":"'Population 2016'!L120/'Population 2016'!L$5","v":7.1799596524391215E-3},{"$f":"'Population 2016'!M120/'Population 2016'!M$5","v":7.1799596524391215E-3},{"$f":"'Population 2016'!N120/'Population 2016'!N$5","v":4.5329968413692226E-3},{"$f":"'Population 2016'!O120/'Population 2016'!O$5","v":7.2022270435204722E-3},{"$f":"'Population 2016'!P120/'Population 2016'!P$5","v":4.7221909162628202E-3},{"$f":"'Population 2016'!Q120/'Population 2016'!Q$5","v":7.1444518865818266E-3},{"$f":"'Population 2016'!R120/'Population 2016'!R$5","v":2.9009421408420716E-3},{"$f":"'Population 2016'!S120/'Population 2016'!S$5","v":5.2359255813625057E-3},{"$f":"'Population 2016'!T120/'Population 2016'!T$5","v":3.5294993555231896E-3},{"$f":"'Population 2016'!U120/'Population 2016'!U$5","v":6.1966095693356347E-3},{"$f":"'Population 2016'!V120/'Population 2016'!V$5","v":8.3498065195655655E-3},{"$f":"'Population 2016'!W120/'Population 2016'!W$5","v":5.3438707273547352E-3},{"$f":"'Population 2016'!X120/'Population 2016'!X$5","v":5.3438707273547352E-3},{"$f":"'Population 2016'!Y120/'Population 2016'!Y$5","v":6.8162668320058501E-3},{"$f":"'Population 2016'!Z120/'Population 2016'!Z$5","v":4.5084720170814755E-3},{"$f":"'Population 2016'!AA120/'Population 2016'!AA$5","v":5.6784773947169635E-3},{"$f":"'Population 2016'!AB120/'Population 2016'!AB$5","v":3.4717460057521262E-3},{"$f":"'Population 2016'!AC120/'Population 2016'!AC$5","v":4.640882377885942E-3},{"$f":"'Population 2016'!AD120/'Population 2016'!AD$5","v":4.905281179053928E-3},{"$f":"'Population 2016'!AE120/'Population 2016'!AE$5","v":5.2053922524871923E-3},{"$f":"'Population 2016'!AF120/'Population 2016'!AF$5","v":3.2122336334434241E-3},{"$f":"'Population 2016'!AG120/'Population 2016'!AG$5","v":5.2053922524871923E-3},{"$f":"'Population 2016'!AH120/'Population 2016'!AH$5","v":7.5420525157203497E-3},{"$f":"'Population 2016'!AI120/'Population 2016'!AI$5","v":5.3755796657625338E-3},{"$f":"'Population 2016'!AJ120/'Population 2016'!AJ$5","v":9.9963750941081345E-3},{"$f":"'Population 2016'!AK120/'Population 2016'!AK$5","v":4.3498485096111535E-3},{"$f":"'Population 2016'!AL120/'Population 2016'!AL$5","v":5.8796403043578508E-3},{"$f":"'Population 2016'!AM120/'Population 2016'!AM$5","v":8.008229170816868E-3},{"$f":"'Population 2016'!AN120/'Population 2016'!AN$5","v":3.654412566815752E-3},{"$f":"'Population 2016'!AO120/'Population 2016'!AO$5","v":3.654412566815752E-3},{"$f":"'Population 2016'!AP120/'Population 2016'!AP$5","v":3.011904950620611E-3},{"$f":"'Population 2016'!AQ120/'Population 2016'!AQ$5","v":4.9665698470981534E-3},{"$f":"'Population 2016'!AR120/'Population 2016'!AR$5","v":5.2782680739968937E-3},{"$f":"'Population 2016'!AS120/'Population 2016'!AS$5","v":3.8208692739301565E-3},{"$f":"'Population 2016'!AT120/'Population 2016'!AT$5","v":4.2178520588390361E-4},{"$f":"'Population 2016'!AU120/'Population 2016'!AU$5","v":4.2178520588390361E-4},{"$f":"'Population 2016'!AV120/'Population 2016'!AV$5","v":6.7785872663921444E-3},{"$f":"'Population 2016'!AW120/'Population 2016'!AW$5","v":7.0512233815363968E-3},{"$f":"'Population 2016'!AX120/'Population 2016'!AX$5","v":4.0251990237295063E-3},{"$f":"'Population 2016'!AY120/'Population 2016'!AY$5","v":4.542394663565986E-3},{"$f":"'Population 2016'!AZ120/'Population 2016'!AZ$5","v":3.8370601331177982E-3},{"$f":"'Population 2016'!BA120/'Population 2016'!BA$5","v":7.8681710213776724E-3},{"$f":"'Population 2016'!BB120/'Population 2016'!BB$5","v":7.5264288131028914E-3},{"$f":"'Population 2016'!BC120/'Population 2016'!BC$5","v":6.1966095693356347E-3},118]
[null,"Male 20-24",{"$f":"'Population 2016'!C121/'Population 2016'!C$5","v":1.1382396385437483E-2},{"$f":"'Population 2016'!D121/'Population 2016'!D$5","v":6.9417955263441017E-3},{"$f":"'Population 2016'!E121/'Population 2016'!E$5","v":2.8689427570914921E-3},{"$f":"'Population 2016'!F121/'Population 2016'!F$5","v":6.2631985578161216E-3},{"$f":"'Population 2016'!G121/'Population 2016'!G$5","v":5.3862393763871594E-3},{"$f":"'Population 2016'!H121/'Population 2016'!H$5","v":8.4594358862953248E-3},{"$f":"'Population 2016'!I121/'Population 2016'!I$5","v":5.6527928984172176E-3},{"$f":"'Population 2016'!J121/'Population 2016'!J$5","v":8.5584203411757879E-3},{"$f":"'Population 2016'!K121/'Population 2016'!K$5","v":9.5922128242687706E-3},{"$f":"'Population 2016'!L121/'Population 2016'!L$5","v":9.6897685574952735E-3},{"$f":"'Population 2016'!M121/'Population 2016'!M$5","v":9.6897685574952735E-3},{"$f":"'Population 2016'!N121/'Population 2016'!N$5","v":1.3494506554359794E-2},{"$f":"'Population 2016'!O121/'Population 2016'!O$5","v":9.6888281273219013E-3},{"$f":"'Population 2016'!P121/'Population 2016'!P$5","v":6.9424095570832867E-3},{"$f":"'Population 2016'!Q121/'Population 2016'!Q$5","v":1.0023383979036673E-2},{"$f":"'Population 2016'!R121/'Population 2016'!R$5","v":3.9255868419651885E-3},{"$f":"'Population 2016'!S121/'Population 2016'!S$5","v":7.7417908418965847E-3},{"$f":"'Population 2016'!T121/'Population 2016'!T$5","v":6.814702447150575E-3},{"$f":"'Population 2016'!U121/'Population 2016'!U$5","v":6.90479352011685E-3},{"$f":"'Population 2016'!V121/'Population 2016'!V$5","v":1.003655902488914E-2},{"$f":"'Population 2016'!W121/'Population 2016'!W$5","v":6.6348976003242277E-3},{"$f":"'Population 2016'!X121/'Population 2016'!X$5","v":6.6348976003242277E-3},{"$f":"'Population 2016'!Y121/'Population 2016'!Y$5","v":9.3281505858412422E-3},{"$f":"'Population 2016'!Z121/'Population 2016'!Z$5","v":8.5000861429818629E-3},{"$f":"'Population 2016'!AA121/'Population 2016'!AA$5","v":8.4648976817700752E-3},{"$f":"'Population 2016'!AB121/'Population 2016'!AB$5","v":6.8063416681166389E-3},{"$f":"'Population 2016'!AC121/'Population 2016'!AC$5","v":7.6899845062585199E-3},{"$f":"'Population 2016'!AD121/'Population 2016'!AD$5","v":6.3493245003535675E-3},{"$f":"'Population 2016'!AE121/'Population 2016'!AE$5","v":6.7146479943325909E-3},{"$f":"'Population 2016'!AF121/'Population 2016'!AF$5","v":4.8560527228581341E-3},{"$f":"'Population 2016'!AG121/'Population 2016'!AG$5","v":6.7146479943325909E-3},{"$f":"'Population 2016'!AH121/'Population 2016'!AH$5","v":9.8566824257172846E-3},{"$f":"'Population 2016'!AI121/'Population 2016'!AI$5","v":8.4776117770583598E-3},{"$f":"'Population 2016'!AJ121/'Population 2016'!AJ$5","v":1.2352563923821209E-2},{"$f":"'Population 2016'!AK121/'Population 2016'!AK$5","v":6.1099028198584411E-3},{"$f":"'Population 2016'!AL121/'Population 2016'!AL$5","v":7.3783721466451468E-3},{"$f":"'Population 2016'!AM121/'Population 2016'!AM$5","v":1.0257487567504917E-2},{"$f":"'Population 2016'!AN121/'Population 2016'!AN$5","v":4.9634558743318425E-3},{"$f":"'Population 2016'!AO121/'Population 2016'!AO$5","v":4.9634558743318425E-3},{"$f":"'Population 2016'!AP121/'Population 2016'!AP$5","v":5.3025379262241811E-3},{"$f":"'Population 2016'!AQ121/'Population 2016'!AQ$5","v":6.6860305803693757E-3},{"$f":"'Population 2016'!AR121/'Population 2016'!AR$5","v":8.011971173478424E-3},{"$f":"'Population 2016'!AS121/'Population 2016'!AS$5","v":5.6527928984172176E-3},{"$f":"'Population 2016'!AT121/'Population 2016'!AT$5","v":2.2143723308904939E-3},{"$f":"'Population 2016'!AU121/'Population 2016'!AU$5","v":2.2143723308904939E-3},{"$f":"'Population 2016'!AV121/'Population 2016'!AV$5","v":8.4362791679864855E-3},{"$f":"'Population 2016'!AW121/'Population 2016'!AW$5","v":9.4346817987674657E-3},{"$f":"'Population 2016'!AX121/'Population 2016'!AX$5","v":7.9992844090624477E-3},{"$f":"'Population 2016'!AY121/'Population 2016'!AY$5","v":7.6282855481778402E-3},{"$f":"'Population 2016'!AZ121/'Population 2016'!AZ$5","v":8.5025110595923631E-3},{"$f":"'Population 2016'!BA121/'Population 2016'!BA$5","v":1.1269164327359102E-2},{"$f":"'Population 2016'!BB121/'Population 2016'!BB$5","v":1.0585335202281406E-2},{"$f":"'Population 2016'!BC121/'Population 2016'!BC$5","v":6.90479352011685E-3},119]
[null,"Male 25-29",{"$f":"'Population 2016'!C122/'Population 2016'!C$5","v":1.359038706281018E-2},{"$f":"'Population 2016'!D122/'Population 2016'!D$5","v":8.2597341627299661E-3},{"$f":"'Population 2016'!E122/'Population 2016'!E$5","v":3.3705389580862464E-3},{"$f":"'Population 2016'!F122/'Population 2016'!F$5","v":7.3242338398145767E-3},{"$f":"'Population 2016'!G122/'Population 2016'!G$5","v":4.9261083743842365E-3},{"$f":"'Population 2016'!H122/'Population 2016'!H$5","v":8.2713763687004109E-3},{"$f":"'Population 2016'!I122/'Population 2016'!I$5","v":5.9459006783351481E-3},{"$f":"'Population 2016'!J122/'Population 2016'!J$5","v":8.6330577278720885E-3},{"$f":"'Population 2016'!K122/'Population 2016'!K$5","v":9.1433161650049614E-3},{"$f":"'Population 2016'!L122/'Population 2016'!L$5","v":7.8868362111416453E-3},{"$f":"'Population 2016'!M122/'Population 2016'!M$5","v":7.8868362111416453E-3},{"$f":"'Population 2016'!N122/'Population 2016'!N$5","v":1.2497890227533937E-2},{"$f":"'Population 2016'!O122/'Population 2016'!O$5","v":9.3123705927224808E-3},{"$f":"'Population 2016'!P122/'Population 2016'!P$5","v":6.5366843232277693E-3},{"$f":"'Population 2016'!Q122/'Population 2016'!Q$5","v":9.9881317493331449E-3},{"$f":"'Population 2016'!R122/'Population 2016'!R$5","v":3.4332251024644703E-3},{"$f":"'Population 2016'!S122/'Population 2016'!S$5","v":9.104614358016563E-3},{"$f":"'Population 2016'!T122/'Population 2016'!T$5","v":1.001614681972797E-2},{"$f":"'Population 2016'!U122/'Population 2016'!U$5","v":7.8342849555171953E-3},{"$f":"'Population 2016'!V122/'Population 2016'!V$5","v":1.0173941581883819E-2},{"$f":"'Population 2016'!W122/'Population 2016'!W$5","v":7.0499872531523938E-3},{"$f":"'Population 2016'!X122/'Population 2016'!X$5","v":7.0499872531523938E-3},{"$f":"'Population 2016'!Y122/'Population 2016'!Y$5","v":9.4354620753247173E-3},{"$f":"'Population 2016'!Z122/'Population 2016'!Z$5","v":1.1690280167949778E-2},{"$f":"'Population 2016'!AA122/'Population 2016'!AA$5","v":9.6102931454991082E-3},{"$f":"'Population 2016'!AB122/'Population 2016'!AB$5","v":8.0038483976950549E-3},{"$f":"'Population 2016'!AC122/'Population 2016'!AC$5","v":9.3676112539587651E-3},{"$f":"'Population 2016'!AD122/'Population 2016'!AD$5","v":6.1595146823476866E-3},{"$f":"'Population 2016'!AE122/'Population 2016'!AE$5","v":6.6273781044979925E-3},{"$f":"'Population 2016'!AF122/'Population 2016'!AF$5","v":4.8258909047037358E-3},{"$f":"'Population 2016'!AG122/'Population 2016'!AG$5","v":6.6273781044979925E-3},{"$f":"'Population 2016'!AH122/'Population 2016'!AH$5","v":1.0046162562811737E-2},{"$f":"'Population 2016'!AI122/'Population 2016'!AI$5","v":1.0376564003849856E-2},{"$f":"'Population 2016'!AJ122/'Population 2016'!AJ$5","v":1.299389342776678E-2},{"$f":"'Population 2016'!AK122/'Population 2016'!AK$5","v":6.6882063789396934E-3},{"$f":"'Population 2016'!AL122/'Population 2016'!AL$5","v":6.8817509444671077E-3},{"$f":"'Population 2016'!AM122/'Population 2016'!AM$5","v":1.0489295196149096E-2},{"$f":"'Population 2016'!AN122/'Population 2016'!AN$5","v":5.672520999236391E-3},{"$f":"'Population 2016'!AO122/'Population 2016'!AO$5","v":5.672520999236391E-3},{"$f":"'Population 2016'!AP122/'Population 2016'!AP$5","v":5.9841795729435824E-3},{"$f":"'Population 2016'!AQ122/'Population 2016'!AQ$5","v":6.9600482271058254E-3},{"$f":"'Population 2016'!AR122/'Population 2016'!AR$5","v":8.8244408339632364E-3},{"$f":"'Population 2016'!AS122/'Population 2016'!AS$5","v":5.9459006783351481E-3},{"$f":"'Population 2016'!AT122/'Population 2016'!AT$5","v":2.4252649338324457E-3},{"$f":"'Population 2016'!AU122/'Population 2016'!AU$5","v":2.4252649338324457E-3},{"$f":"'Population 2016'!AV122/'Population 2016'!AV$5","v":8.8163868651673534E-3},{"$f":"'Population 2016'!AW122/'Population 2016'!AW$5","v":9.5795960705351152E-3},{"$f":"'Population 2016'!AX122/'Population 2016'!AX$5","v":8.3570798778384043E-3},{"$f":"'Population 2016'!AY122/'Population 2016'!AY$5","v":7.9220342094795133E-3},{"$f":"'Population 2016'!AZ122/'Population 2016'!AZ$5","v":8.6894742594819108E-3},{"$f":"'Population 2016'!BA122/'Population 2016'!BA$5","v":1.1390628374001295E-2},{"$f":"'Population 2016'!BB122/'Population 2016'!BB$5","v":1.0378185785407014E-2},{"$f":"'Population 2016'!BC122/'Population 2016'!BC$5","v":7.8342849555171953E-3},120]
[null,"Male 30-34",{"$f":"'Population 2016'!C123/'Population 2016'!C$5","v":1.0799732178908578E-2},{"$f":"'Population 2016'!D123/'Population 2016'!D$5","v":6.7315121817630545E-3},{"$f":"'Population 2016'!E123/'Population 2016'!E$5","v":3.0002015760433906E-3},{"$f":"'Population 2016'!F123/'Population 2016'!F$5","v":7.4066443471542624E-3},{"$f":"'Population 2016'!G123/'Population 2016'!G$5","v":5.2373734639744492E-3},{"$f":"'Population 2016'!H123/'Population 2016'!H$5","v":7.8758029006559382E-3},{"$f":"'Population 2016'!I123/'Population 2016'!I$5","v":5.0561092035842897E-3},{"$f":"'Population 2016'!J123/'Population 2016'!J$5","v":6.8417604471608766E-3},{"$f":"'Population 2016'!K123/'Population 2016'!K$5","v":8.670793365779899E-3},{"$f":"'Population 2016'!L123/'Population 2016'!L$5","v":7.9186059441170402E-3},{"$f":"'Population 2016'!M123/'Population 2016'!M$5","v":7.9186059441170402E-3},{"$f":"'Population 2016'!N123/'Population 2016'!N$5","v":9.612525216804238E-3},{"$f":"'Population 2016'!O123/'Population 2016'!O$5","v":9.5204129144747917E-3},{"$f":"'Population 2016'!P123/'Population 2016'!P$5","v":5.7252338555167362E-3},{"$f":"'Population 2016'!Q123/'Population 2016'!Q$5","v":9.7648676278774636E-3},{"$f":"'Population 2016'!R123/'Population 2016'!R$5","v":2.9275562889231914E-3},{"$f":"'Population 2016'!S123/'Population 2016'!S$5","v":8.6738773917817511E-3},{"$f":"'Population 2016'!T123/'Population 2016'!T$5","v":9.0482682884836414E-3},{"$f":"'Population 2016'!U123/'Population 2016'!U$5","v":6.4621785508785909E-3},{"$f":"'Population 2016'!V123/'Population 2016'!V$5","v":1.0189206310438785E-2},{"$f":"'Population 2016'!W123/'Population 2016'!W$5","v":6.8865661299916982E-3},{"$f":"'Population 2016'!X123/'Population 2016'!X$5","v":6.8865661299916982E-3},{"$f":"'Population 2016'!Y123/'Population 2016'!Y$5","v":8.5849191586779231E-3},{"$f":"'Population 2016'!Z123/'Population 2016'!Z$5","v":1.0846272525421859E-2},{"$f":"'Population 2016'!AA123/'Population 2016'!AA$5","v":9.2614923227277955E-3},{"$f":"'Population 2016'!AB123/'Population 2016'!AB$5","v":6.6487211242234117E-3},{"$f":"'Population 2016'!AC123/'Population 2016'!AC$5","v":8.8546008551552372E-3},{"$f":"'Population 2016'!AD123/'Population 2016'!AD$5","v":6.0925229818750235E-3},{"$f":"'Population 2016'!AE123/'Population 2016'!AE$5","v":6.4169036643086687E-3},{"$f":"'Population 2016'!AF123/'Population 2016'!AF$5","v":4.8108099956265362E-3},{"$f":"'Population 2016'!AG123/'Population 2016'!AG$5","v":6.4169036643086687E-3},{"$f":"'Population 2016'!AH123/'Population 2016'!AH$5","v":9.99229075912802E-3},{"$f":"'Population 2016'!AI123/'Population 2016'!AI$5","v":9.8939649138157313E-3},{"$f":"'Population 2016'!AJ123/'Population 2016'!AJ$5","v":1.2575635055628363E-2},{"$f":"'Population 2016'!AK123/'Population 2016'!AK$5","v":6.2230491683743384E-3},{"$f":"'Population 2016'!AL123/'Population 2016'!AL$5","v":6.243237970238201E-3},{"$f":"'Population 2016'!AM123/'Population 2016'!AM$5","v":1.073196880738597E-2},{"$f":"'Population 2016'!AN123/'Population 2016'!AN$5","v":3.872586451401767E-3},{"$f":"'Population 2016'!AO123/'Population 2016'!AO$5","v":3.872586451401767E-3},{"$f":"'Population 2016'!AP123/'Population 2016'!AP$5","v":5.9604013759649984E-3},{"$f":"'Population 2016'!AQ123/'Population 2016'!AQ$5","v":7.4806817559050802E-3},{"$f":"'Population 2016'!AR123/'Population 2016'!AR$5","v":8.2752942167175388E-3},{"$f":"'Population 2016'!AS123/'Population 2016'!AS$5","v":5.0561092035842897E-3},{"$f":"'Population 2016'!AT123/'Population 2016'!AT$5","v":1.2653556176517109E-3},{"$f":"'Population 2016'!AU123/'Population 2016'!AU$5","v":1.2653556176517109E-3},{"$f":"'Population 2016'!AV123/'Population 2016'!AV$5","v":8.0667300179495301E-3},{"$f":"'Population 2016'!AW123/'Population 2016'!AW$5","v":9.2134968576484226E-3},{"$f":"'Population 2016'!AX123/'Population 2016'!AX$5","v":5.8525115964067108E-3},{"$f":"'Population 2016'!AY123/'Population 2016'!AY$5","v":7.3039380679905752E-3},{"$f":"'Population 2016'!AZ123/'Population 2016'!AZ$5","v":7.6712439093142189E-3},{"$f":"'Population 2016'!BA123/'Population 2016'!BA$5","v":1.1053228244439646E-2},{"$f":"'Population 2016'!BB123/'Population 2016'!BB$5","v":1.1151543608404743E-2},{"$f":"'Population 2016'!BC123/'Population 2016'!BC$5","v":6.4621785508785909E-3},121]
[null,"Male 35-39",{"$f":"'Population 2016'!C124/'Population 2016'!C$5","v":8.3924090098286257E-3},{"$f":"'Population 2016'!D124/'Population 2016'!D$5","v":5.5382764590240895E-3},{"$f":"'Population 2016'!E124/'Population 2016'!E$5","v":2.9205087216797377E-3},{"$f":"'Population 2016'!F124/'Population 2016'!F$5","v":6.3250064383208859E-3},{"$f":"'Population 2016'!G124/'Population 2016'!G$5","v":5.1020408163265302E-3},{"$f":"'Population 2016'!H124/'Population 2016'!H$5","v":6.9744141783906642E-3},{"$f":"'Population 2016'!I124/'Population 2016'!I$5","v":4.9409597186165317E-3},{"$f":"'Population 2016'!J124/'Population 2016'!J$5","v":6.0456283224003381E-3},{"$f":"'Population 2016'!K124/'Population 2016'!K$5","v":9.0724377451212018E-3},{"$f":"'Population 2016'!L124/'Population 2016'!L$5","v":7.46588724921767E-3},{"$f":"'Population 2016'!M124/'Population 2016'!M$5","v":7.46588724921767E-3},{"$f":"'Population 2016'!N124/'Population 2016'!N$5","v":6.5664156372316571E-3},{"$f":"'Population 2016'!O124/'Population 2016'!O$5","v":8.4009470879028349E-3},{"$f":"'Population 2016'!P124/'Population 2016'!P$5","v":4.9814042601149557E-3},{"$f":"'Population 2016'!Q124/'Population 2016'!Q$5","v":9.3770931011386473E-3},{"$f":"'Population 2016'!R124/'Population 2016'!R$5","v":2.6481077340714324E-3},{"$f":"'Population 2016'!S124/'Population 2016'!S$5","v":7.604096237936276E-3},{"$f":"'Population 2016'!T124/'Population 2016'!T$5","v":6.9356872635561164E-3},{"$f":"'Population 2016'!U124/'Population 2016'!U$5","v":6.285132563183287E-3},{"$f":"'Population 2016'!V124/'Population 2016'!V$5","v":1.0189206310438785E-2},{"$f":"'Population 2016'!W124/'Population 2016'!W$5","v":6.7492923865367146E-3},{"$f":"'Population 2016'!X124/'Population 2016'!X$5","v":6.7492923865367146E-3},{"$f":"'Population 2016'!Y124/'Population 2016'!Y$5","v":8.203367196070014E-3},{"$f":"'Population 2016'!Z124/'Population 2016'!Z$5","v":8.47879237218414E-3},{"$f":"'Population 2016'!AA124/'Population 2016'!AA$5","v":7.9240903108446486E-3},{"$f":"'Population 2016'!AB124/'Population 2016'!AB$5","v":5.59041175808317E-3},{"$f":"'Population 2016'!AC124/'Population 2016'!AC$5","v":7.2390318169876771E-3},{"$f":"'Population 2016'!AD124/'Population 2016'!AD$5","v":5.7947820908854069E-3},{"$f":"'Population 2016'!AE124/'Population 2016'!AE$5","v":6.0575570591073829E-3},{"$f":"'Population 2016'!AF124/'Population 2016'!AF$5","v":4.6298390867001464E-3},{"$f":"'Population 2016'!AG124/'Population 2016'!AG$5","v":6.0575570591073829E-3},{"$f":"'Population 2016'!AH124/'Population 2016'!AH$5","v":9.1544913294260791E-3},{"$f":"'Population 2016'!AI124/'Population 2016'!AI$5","v":8.3094540204742325E-3},{"$f":"'Population 2016'!AJ124/'Population 2016'!AJ$5","v":1.2352563923821209E-2},{"$f":"'Population 2016'!AK124/'Population 2016'!AK$5","v":5.8584664898231149E-3},{"$f":"'Population 2016'!AL124/'Population 2016'!AL$5","v":5.3475461591670952E-3},{"$f":"'Population 2016'!AM124/'Population 2016'!AM$5","v":9.6019066177455981E-3},{"$f":"'Population 2016'!AN124/'Population 2016'!AN$5","v":3.927129922548271E-3},{"$f":"'Population 2016'!AO124/'Population 2016'!AO$5","v":3.927129922548271E-3},{"$f":"'Population 2016'!AP124/'Population 2016'!AP$5","v":5.3738725171599321E-3},{"$f":"'Population 2016'!AQ124/'Population 2016'!AQ$5","v":5.9324820518441386E-3},{"$f":"'Population 2016'!AR124/'Population 2016'!AR$5","v":7.2048481737700398E-3},{"$f":"'Population 2016'!AS124/'Population 2016'!AS$5","v":4.9409597186165317E-3},{"$f":"'Population 2016'!AT124/'Population 2016'!AT$5","v":1.7398639742711025E-3},{"$f":"'Population 2016'!AU124/'Population 2016'!AU$5","v":1.7398639742711025E-3},{"$f":"'Population 2016'!AV124/'Population 2016'!AV$5","v":7.3909830007390983E-3},{"$f":"'Population 2016'!AW124/'Population 2016'!AW$5","v":8.683415705656233E-3},{"$f":"'Population 2016'!AX124/'Population 2016'!AX$5","v":4.4085513117037454E-3},{"$f":"'Population 2016'!AY124/'Population 2016'!AY$5","v":6.3859735014228447E-3},{"$f":"'Population 2016'!AZ124/'Population 2016'!AZ$5","v":6.0662367471854845E-3},{"$f":"'Population 2016'!BA124/'Population 2016'!BA$5","v":1.0864284171885123E-2},{"$f":"'Population 2016'!BB124/'Population 2016'!BB$5","v":9.7567375347838402E-3},{"$f":"'Population 2016'!BC124/'Population 2016'!BC$5","v":6.285132563183287E-3},122]
[null,"Male 40-44",{"$f":"'Population 2016'!C125/'Population 2016'!C$5","v":7.3037469397351437E-3},{"$f":"'Population 2016'!D125/'Population 2016'!D$5","v":4.9245425114677775E-3},{"$f":"'Population 2016'!E125/'Population 2016'!E$5","v":2.7423717531021618E-3},{"$f":"'Population 2016'!F125/'Population 2016'!F$5","v":5.9747617821272209E-3},{"$f":"'Population 2016'!G125/'Population 2016'!G$5","v":4.8719753153250688E-3},{"$f":"'Population 2016'!H125/'Population 2016'!H$5","v":8.1351953387178884E-3},{"$f":"'Population 2016'!I125/'Population 2016'!I$5","v":5.3806213884934262E-3},{"$f":"'Population 2016'!J125/'Population 2016'!J$5","v":6.5100387285106521E-3},{"$f":"'Population 2016'!K125/'Population 2016'!K$5","v":9.8521003638425558E-3},{"$f":"'Population 2016'!L125/'Population 2016'!L$5","v":8.9114100995981126E-3},{"$f":"'Population 2016'!M125/'Population 2016'!M$5","v":8.9114100995981126E-3},{"$f":"'Population 2016'!N125/'Population 2016'!N$5","v":6.1645542151244565E-3},{"$f":"'Population 2016'!O125/'Population 2016'!O$5","v":9.3519977016276838E-3},{"$f":"'Population 2016'!P125/'Population 2016'!P$5","v":5.5899921108982309E-3},{"$f":"'Population 2016'!Q125/'Population 2016'!Q$5","v":9.659110938766877E-3},{"$f":"'Population 2016'!R125/'Population 2016'!R$5","v":3.5263746207483898E-3},{"$f":"'Population 2016'!S125/'Population 2016'!S$5","v":7.5581980366161731E-3},{"$f":"'Population 2016'!T125/'Population 2016'!T$5","v":5.937562528210402E-3},{"$f":"'Population 2016'!U125/'Population 2016'!U$5","v":8.8080378878413676E-3},{"$f":"'Population 2016'!V125/'Population 2016'!V$5","v":1.1036398745239312E-2},{"$f":"'Population 2016'!W125/'Population 2016'!W$5","v":7.4029768791794952E-3},{"$f":"'Population 2016'!X125/'Population 2016'!X$5","v":7.4029768791794952E-3},{"$f":"'Population 2016'!Y125/'Population 2016'!Y$5","v":8.8671086310233536E-3},{"$f":"'Population 2016'!Z125/'Population 2016'!Z$5","v":6.5410592295913729E-3},{"$f":"'Population 2016'!AA125/'Population 2016'!AA$5","v":7.6138236742080726E-3},{"$f":"'Population 2016'!AB125/'Population 2016'!AB$5","v":4.947647462206892E-3},{"$f":"'Population 2016'!AC125/'Population 2016'!AC$5","v":6.2802402047076981E-3},{"$f":"'Population 2016'!AD125/'Population 2016'!AD$5","v":5.6942945401764113E-3},{"$f":"'Population 2016'!AE125/'Population 2016'!AE$5","v":6.006221829792914E-3},{"$f":"'Population 2016'!AF125/'Population 2016'!AF$5","v":3.9361172691489846E-3},{"$f":"'Population 2016'!AG125/'Population 2016'!AG$5","v":6.006221829792914E-3},{"$f":"'Population 2016'!AH125/'Population 2016'!AH$5","v":1.0009009594754001E-2},{"$f":"'Population 2016'!AI125/'Population 2016'!AI$5","v":7.907515968151195E-3},{"$f":"'Population 2016'!AJ125/'Population 2016'!AJ$5","v":1.2310738086607367E-2},{"$f":"'Population 2016'!AK125/'Population 2016'!AK$5","v":5.0664420502118347E-3},{"$f":"'Population 2016'!AL125/'Population 2016'!AL$5","v":6.5890991646121921E-3},{"$f":"'Population 2016'!AM125/'Population 2016'!AM$5","v":1.0619686987261446E-2},{"$f":"'Population 2016'!AN125/'Population 2016'!AN$5","v":5.5634340569433839E-3},{"$f":"'Population 2016'!AO125/'Population 2016'!AO$5","v":5.5634340569433839E-3},{"$f":"'Population 2016'!AP125/'Population 2016'!AP$5","v":4.0026631580616012E-3},{"$f":"'Population 2016'!AQ125/'Population 2016'!AQ$5","v":6.2887049926015235E-3},{"$f":"'Population 2016'!AR125/'Population 2016'!AR$5","v":7.1319999206911986E-3},{"$f":"'Population 2016'!AS125/'Population 2016'!AS$5","v":5.3806213884934262E-3},{"$f":"'Population 2016'!AT125/'Population 2016'!AT$5","v":1.5289713713291507E-3},{"$f":"'Population 2016'!AU125/'Population 2016'!AU$5","v":1.5289713713291507E-3},{"$f":"'Population 2016'!AV125/'Population 2016'!AV$5","v":8.6791257522964849E-3},{"$f":"'Population 2016'!AW125/'Population 2016'!AW$5","v":9.3660381963512115E-3},{"$f":"'Population 2016'!AX125/'Population 2016'!AX$5","v":4.7024547324839953E-3},{"$f":"'Population 2016'!AY125/'Population 2016'!AY$5","v":6.298766867598911E-3},{"$f":"'Population 2016'!AZ125/'Population 2016'!AZ$5","v":5.3270130183914258E-3},{"$f":"'Population 2016'!BA125/'Population 2016'!BA$5","v":1.0162491902396891E-2},{"$f":"'Population 2016'!BB125/'Population 2016'!BB$5","v":1.0543905318906527E-2},{"$f":"'Population 2016'!BC125/'Population 2016'!BC$5","v":8.8080378878413676E-3},123]
[null,"Male 45-49",{"$f":"'Population 2016'!C126/'Population 2016'!C$5","v":7.7535228184592107E-3},{"$f":"'Population 2016'!D126/'Population 2016'!D$5","v":5.2326320628307069E-3},{"$f":"'Population 2016'!E126/'Population 2016'!E$5","v":2.9205087216797377E-3},{"$f":"'Population 2016'!F126/'Population 2016'!F$5","v":6.8606747360288435E-3},{"$f":"'Population 2016'!G126/'Population 2016'!G$5","v":6.7395658528663456E-3},{"$f":"'Population 2016'!H126/'Population 2016'!H$5","v":1.0443788037469239E-2},{"$f":"'Population 2016'!I126/'Population 2016'!I$5","v":6.4064986182061807E-3},{"$f":"'Population 2016'!J126/'Population 2016'!J$5","v":8.0193725483691733E-3},{"$f":"'Population 2016'!K126/'Population 2016'!K$5","v":1.2592732599347919E-2},{"$f":"'Population 2016'!L126/'Population 2016'!L$5","v":1.0730227312439439E-2},{"$f":"'Population 2016'!M126/'Population 2016'!M$5","v":1.0730227312439439E-2},{"$f":"'Population 2016'!N126/'Population 2016'!N$5","v":7.3299523392353384E-3},{"$f":"'Population 2016'!O126/'Population 2016'!O$5","v":1.1680090349808304E-2},{"$f":"'Population 2016'!P126/'Population 2016'!P$5","v":6.3789022878395132E-3},{"$f":"'Population 2016'!Q126/'Population 2016'!Q$5","v":1.0998695667500969E-2},{"$f":"'Population 2016'!R126/'Population 2016'!R$5","v":3.7792090275190291E-3},{"$f":"'Population 2016'!S126/'Population 2016'!S$5","v":8.1054458215866296E-3},{"$f":"'Population 2016'!T126/'Population 2016'!T$5","v":5.4466433693340713E-3},{"$f":"'Population 2016'!U126/'Population 2016'!U$5","v":1.0401451777099101E-2},{"$f":"'Population 2016'!V126/'Population 2016'!V$5","v":1.3051342914494623E-2},{"$f":"'Population 2016'!W126/'Population 2016'!W$5","v":8.4815562920400843E-3},{"$f":"'Population 2016'!X126/'Population 2016'!X$5","v":8.4815562920400843E-3},{"$f":"'Population 2016'!Y126/'Population 2016'!Y$5","v":1.0639735457305925E-2},{"$f":"'Population 2016'!Z126/'Population 2016'!Z$5","v":6.9107965225336486E-3},{"$f":"'Population 2016'!AA126/'Population 2016'!AA$5","v":8.7193561867632413E-3},{"$f":"'Population 2016'!AB126/'Population 2016'!AB$5","v":5.449167374594434E-3},{"$f":"'Population 2016'!AC126/'Population 2016'!AC$5","v":6.9577035337728401E-3},{"$f":"'Population 2016'!AD126/'Population 2016'!AD$5","v":7.1755554728497525E-3},{"$f":"'Population 2016'!AE126/'Population 2016'!AE$5","v":7.3409377919691167E-3},{"$f":"'Population 2016'!AF126/'Population 2016'!AF$5","v":4.8108099956265362E-3},{"$f":"'Population 2016'!AG126/'Population 2016'!AG$5","v":7.3409377919691167E-3},{"$f":"'Population 2016'!AH126/'Population 2016'!AH$5","v":1.1883376833266767E-2},{"$f":"'Population 2016'!AI126/'Population 2016'!AI$5","v":8.1700061247703213E-3},{"$f":"'Population 2016'!AJ126/'Population 2016'!AJ$5","v":1.4290494381395867E-2},{"$f":"'Population 2016'!AK126/'Population 2016'!AK$5","v":6.5624882139220294E-3},{"$f":"'Population 2016'!AL126/'Population 2016'!AL$5","v":8.7972898671538277E-3},{"$f":"'Population 2016'!AM126/'Population 2016'!AM$5","v":1.2010532759126519E-2},{"$f":"'Population 2016'!AN126/'Population 2016'!AN$5","v":5.7270644703828954E-3},{"$f":"'Population 2016'!AO126/'Population 2016'!AO$5","v":5.7270644703828954E-3},{"$f":"'Population 2016'!AP126/'Population 2016'!AP$5","v":4.8428261179715611E-3},{"$f":"'Population 2016'!AQ126/'Population 2016'!AQ$5","v":7.2683180796843314E-3},{"$f":"'Population 2016'!AR126/'Population 2016'!AR$5","v":8.1732621069006903E-3},{"$f":"'Population 2016'!AS126/'Population 2016'!AS$5","v":6.4064986182061807E-3},{"$f":"'Population 2016'!AT126/'Population 2016'!AT$5","v":6.8540095956134343E-4},{"$f":"'Population 2016'!AU126/'Population 2016'!AU$5","v":6.8540095956134343E-4},{"$f":"'Population 2016'!AV126/'Population 2016'!AV$5","v":1.1086474501108648E-2},{"$f":"'Population 2016'!AW126/'Population 2016'!AW$5","v":1.174949661358228E-2},{"$f":"'Population 2016'!AX126/'Population 2016'!AX$5","v":5.5458297660273201E-3},{"$f":"'Population 2016'!AY126/'Population 2016'!AY$5","v":7.3192374774333708E-3},{"$f":"'Population 2016'!AZ126/'Population 2016'!AZ$5","v":6.2963453008956973E-3},{"$f":"'Population 2016'!BA126/'Population 2016'!BA$5","v":1.2510796804145973E-2},{"$f":"'Population 2016'!BB126/'Population 2016'!BB$5","v":1.1558937461591045E-2},{"$f":"'Population 2016'!BC126/'Population 2016'!BC$5","v":1.0401451777099101E-2},124]
[null,"Male 50-54",{"$f":"'Population 2016'!C127/'Population 2016'!C$5","v":7.1964140595850816E-3},{"$f":"'Population 2016'!D127/'Population 2016'!D$5","v":5.0492454251146778E-3},{"$f":"'Population 2016'!E127/'Population 2016'!E$5","v":3.079894430407043E-3},{"$f":"'Population 2016'!F127/'Population 2016'!F$5","v":6.8709760494463047E-3},{"$f":"'Population 2016'!G127/'Population 2016'!G$5","v":6.9290315595734314E-3},{"$f":"'Population 2016'!H127/'Population 2016'!H$5","v":1.1043633050487495E-2},{"$f":"'Population 2016'!I127/'Population 2016'!I$5","v":7.2544175529687628E-3},{"$f":"'Population 2016'!J127/'Population 2016'!J$5","v":8.102302978031729E-3},{"$f":"'Population 2016'!K127/'Population 2016'!K$5","v":1.1765817700704059E-2},{"$f":"'Population 2016'!L127/'Population 2016'!L$5","v":1.2564929391768462E-2},{"$f":"'Population 2016'!M127/'Population 2016'!M$5","v":1.2564929391768462E-2},{"$f":"'Population 2016'!N127/'Population 2016'!N$5","v":6.8155697189381213E-3},{"$f":"'Population 2016'!O127/'Population 2016'!O$5","v":1.2224963097254833E-2},{"$f":"'Population 2016'!P127/'Population 2016'!P$5","v":8.1821255494195881E-3},{"$f":"'Population 2016'!Q127/'Population 2016'!Q$5","v":1.1891752153323698E-2},{"$f":"'Population 2016'!R127/'Population 2016'!R$5","v":4.5510193218715068E-3},{"$f":"'Population 2016'!S127/'Population 2016'!S$5","v":8.3305235395986724E-3},{"$f":"'Population 2016'!T127/'Population 2016'!T$5","v":5.2442264649632626E-3},{"$f":"'Population 2016'!U127/'Population 2016'!U$5","v":1.1463727703270924E-2},{"$f":"'Population 2016'!V127/'Population 2016'!V$5","v":1.2684989429175475E-2},{"$f":"'Population 2016'!W127/'Population 2016'!W$5","v":8.8443511854568273E-3},{"$f":"'Population 2016'!X127/'Population 2016'!X$5","v":8.8443511854568273E-3},{"$f":"'Population 2016'!Y127/'Population 2016'!Y$5","v":1.0488704472106961E-2},{"$f":"'Population 2016'!Z127/'Population 2016'!Z$5","v":6.6804366384491942E-3},{"$f":"'Population 2016'!AA127/'Population 2016'!AA$5","v":8.9877667246672614E-3},{"$f":"'Population 2016'!AB127/'Population 2016'!AB$5","v":5.2608415299427854E-3},{"$f":"'Population 2016'!AC127/'Population 2016'!AC$5","v":7.2752321475484105E-3},{"$f":"'Population 2016'!AD127/'Population 2016'!AD$5","v":7.9087424169116821E-3},{"$f":"'Population 2016'!AE127/'Population 2016'!AE$5","v":8.2803724884239066E-3},{"$f":"'Population 2016'!AF127/'Population 2016'!AF$5","v":6.3189009033464538E-3},{"$f":"'Population 2016'!AG127/'Population 2016'!AG$5","v":8.2803724884239066E-3},{"$f":"'Population 2016'!AH127/'Population 2016'!AH$5","v":1.2063568728346786E-2},{"$f":"'Population 2016'!AI127/'Population 2016'!AI$5","v":8.2561357074109713E-3},{"$f":"'Population 2016'!AJ127/'Population 2016'!AJ$5","v":1.5503443660597273E-2},{"$f":"'Population 2016'!AK127/'Population 2016'!AK$5","v":6.3487673333920015E-3},{"$f":"'Population 2016'!AL127/'Population 2016'!AL$5","v":8.9214451676983379E-3},{"$f":"'Population 2016'!AM127/'Population 2016'!AM$5","v":1.2235096399375568E-2},{"$f":"'Population 2016'!AN127/'Population 2016'!AN$5","v":6.4906730664339475E-3},{"$f":"'Population 2016'!AO127/'Population 2016'!AO$5","v":6.4906730664339475E-3},{"$f":"'Population 2016'!AP127/'Population 2016'!AP$5","v":4.7714915270358101E-3},{"$f":"'Population 2016'!AQ127/'Population 2016'!AQ$5","v":7.6724941086205953E-3},{"$f":"'Population 2016'!AR127/'Population 2016'!AR$5","v":8.4252234959898923E-3},{"$f":"'Population 2016'!AS127/'Population 2016'!AS$5","v":7.2544175529687628E-3},{"$f":"'Population 2016'!AT127/'Population 2016'!AT$5","v":1.8980334264775663E-3},{"$f":"'Population 2016'!AU127/'Population 2016'!AU$5","v":1.8980334264775663E-3},{"$f":"'Population 2016'!AV127/'Population 2016'!AV$5","v":1.2311265969802556E-2},{"$f":"'Population 2016'!AW127/'Population 2016'!AW$5","v":1.188297028494722E-2},{"$f":"'Population 2016'!AX127/'Population 2016'!AX$5","v":6.1208581979886783E-3},{"$f":"'Population 2016'!AY127/'Population 2016'!AY$5","v":7.3789051742602736E-3},{"$f":"'Population 2016'!AZ127/'Population 2016'!AZ$5","v":6.0892476025565063E-3},{"$f":"'Population 2016'!BA127/'Population 2016'!BA$5","v":1.3172101058086806E-2},{"$f":"'Population 2016'!BB127/'Population 2016'!BB$5","v":1.1469172714278809E-2},{"$f":"'Population 2016'!BC127/'Population 2016'!BC$5","v":1.1463727703270924E-2},125]
[null,"Male 55-59",{"$f":"'Population 2016'!C128/'Population 2016'!C$5","v":7.0788590003731094E-3},{"$f":"'Population 2016'!D128/'Population 2016'!D$5","v":4.9685553045196252E-3},{"$f":"'Population 2016'!E128/'Population 2016'!E$5","v":3.0330162807813651E-3},{"$f":"'Population 2016'!F128/'Population 2016'!F$5","v":5.7996394540303885E-3},{"$f":"'Population 2016'!G128/'Population 2016'!G$5","v":7.3350295025171874E-3},{"$f":"'Population 2016'!H128/'Population 2016'!H$5","v":1.0213577248689258E-2},{"$f":"'Population 2016'!I128/'Population 2016'!I$5","v":7.0241185830332469E-3},{"$f":"'Population 2016'!J128/'Population 2016'!J$5","v":7.5549621422588593E-3},{"$f":"'Population 2016'!K128/'Population 2016'!K$5","v":1.0584510702641402E-2},{"$f":"'Population 2016'!L128/'Population 2016'!L$5","v":1.2151922863088336E-2},{"$f":"'Population 2016'!M128/'Population 2016'!M$5","v":1.2151922863088336E-2},{"$f":"'Population 2016'!N128/'Population 2016'!N$5","v":6.3333360124094807E-3},{"$f":"'Population 2016'!O128/'Population 2016'!O$5","v":1.1254098929077382E-2},{"$f":"'Population 2016'!P128/'Population 2016'!P$5","v":7.0100304293925393E-3},{"$f":"'Population 2016'!Q128/'Population 2016'!Q$5","v":1.1163206072784104E-2},{"$f":"'Population 2016'!R128/'Population 2016'!R$5","v":3.7525948794379094E-3},{"$f":"'Population 2016'!S128/'Population 2016'!S$5","v":7.6067442110893582E-3},{"$f":"'Population 2016'!T128/'Population 2016'!T$5","v":4.5066844111064062E-3},{"$f":"'Population 2016'!U128/'Population 2016'!U$5","v":1.1375204709423273E-2},{"$f":"'Population 2016'!V128/'Population 2016'!V$5","v":1.1578296608940551E-2},{"$f":"'Population 2016'!W128/'Population 2016'!W$5","v":8.2429614522254689E-3},{"$f":"'Population 2016'!X128/'Population 2016'!X$5","v":8.2429614522254689E-3},{"$f":"'Population 2016'!Y128/'Population 2016'!Y$5","v":9.6500850542916641E-3},{"$f":"'Population 2016'!Z128/'Population 2016'!Z$5","v":5.9990359729220665E-3},{"$f":"'Population 2016'!AA128/'Population 2016'!AA$5","v":8.2788705762920408E-3},{"$f":"'Population 2016'!AB128/'Population 2016'!AB$5","v":5.1155031063529269E-3},{"$f":"'Population 2016'!AC128/'Population 2016'!AC$5","v":6.610180360389805E-3},{"$f":"'Population 2016'!AD128/'Population 2016'!AD$5","v":7.782202538241096E-3},{"$f":"'Population 2016'!AE128/'Population 2016'!AE$5","v":7.9518270208113022E-3},{"$f":"'Population 2016'!AF128/'Population 2016'!AF$5","v":5.7458263584128852E-3},{"$f":"'Population 2016'!AG128/'Population 2016'!AG$5","v":7.9518270208113022E-3},{"$f":"'Population 2016'!AH128/'Population 2016'!AH$5","v":1.1275925805522788E-2},{"$f":"'Population 2016'!AI128/'Population 2016'!AI$5","v":7.4167140607227233E-3},{"$f":"'Population 2016'!AJ128/'Population 2016'!AJ$5","v":1.4625101079106599E-2},{"$f":"'Population 2016'!AK128/'Population 2016'!AK$5","v":5.8710383063248807E-3},{"$f":"'Population 2016'!AL128/'Population 2016'!AL$5","v":8.1055674784058455E-3},{"$f":"'Population 2016'!AM128/'Population 2016'!AM$5","v":1.1018106348993629E-2},{"$f":"'Population 2016'!AN128/'Population 2016'!AN$5","v":5.999781826115414E-3},{"$f":"'Population 2016'!AO128/'Population 2016'!AO$5","v":5.999781826115414E-3},{"$f":"'Population 2016'!AP128/'Population 2016'!AP$5","v":4.0819238146568805E-3},{"$f":"'Population 2016'!AQ128/'Population 2016'!AQ$5","v":7.2272154326738641E-3},{"$f":"'Population 2016'!AR128/'Population 2016'!AR$5","v":7.8052336234565138E-3},{"$f":"'Population 2016'!AS128/'Population 2016'!AS$5","v":7.0241185830332469E-3},{"$f":"'Population 2016'!AT128/'Population 2016'!AT$5","v":1.3708019191226869E-3},{"$f":"'Population 2016'!AU128/'Population 2016'!AU$5","v":1.3708019191226869E-3},{"$f":"'Population 2016'!AV128/'Population 2016'!AV$5","v":1.1614401858304297E-2},{"$f":"'Population 2016'!AW128/'Population 2016'!AW$5","v":1.1547379339801087E-2},{"$f":"'Population 2016'!AX128/'Population 2016'!AX$5","v":5.9164036444024175E-3},{"$f":"'Population 2016'!AY128/'Population 2016'!AY$5","v":6.713380863498669E-3},{"$f":"'Population 2016'!AZ128/'Population 2016'!AZ$5","v":5.3672820152907133E-3},{"$f":"'Population 2016'!BA128/'Population 2016'!BA$5","v":1.2848196933707623E-2},{"$f":"'Population 2016'!BB128/'Population 2016'!BB$5","v":1.0281516057532298E-2},{"$f":"'Population 2016'!BC128/'Population 2016'!BC$5","v":1.1375204709423273E-2},126]
[null,"Male 60-64",{"$f":"'Population 2016'!C129/'Population 2016'!C$5","v":5.7908644385723709E-3},{"$f":"'Population 2016'!D129/'Population 2016'!D$5","v":4.1005252193304191E-3},{"$f":"'Population 2016'!E129/'Population 2016'!E$5","v":2.5501713396368819E-3},{"$f":"'Population 2016'!F129/'Population 2016'!F$5","v":5.7687355137780068E-3},{"$f":"'Population 2016'!G129/'Population 2016'!G$5","v":6.8342987062198881E-3},{"$f":"'Population 2016'!H129/'Population 2016'!H$5","v":8.9684935459919003E-3},{"$f":"'Population 2016'!I129/'Population 2016'!I$5","v":6.7205426681182477E-3},{"$f":"'Population 2016'!J129/'Population 2016'!J$5","v":6.3524709121517958E-3},{"$f":"'Population 2016'!K129/'Population 2016'!K$5","v":9.7339696640362898E-3},{"$f":"'Population 2016'!L129/'Population 2016'!L$5","v":1.0992327609486442E-2},{"$f":"'Population 2016'!M129/'Population 2016'!M$5","v":1.0992327609486442E-2},{"$f":"'Population 2016'!N129/'Population 2016'!N$5","v":5.2643846296043274E-3},{"$f":"'Population 2016'!O129/'Population 2016'!O$5","v":9.4411586966643875E-3},{"$f":"'Population 2016'!P129/'Population 2016'!P$5","v":5.5449115293587283E-3},{"$f":"'Population 2016'!Q129/'Population 2016'!Q$5","v":8.801306682647678E-3},{"$f":"'Population 2016'!R129/'Population 2016'!R$5","v":3.41991802842391E-3},{"$f":"'Population 2016'!S129/'Population 2016'!S$5","v":6.4751770170052838E-3},{"$f":"'Population 2016'!T129/'Population 2016'!T$5","v":3.5690520839634626E-3},{"$f":"'Population 2016'!U129/'Population 2016'!U$5","v":1.1463727703270924E-2},{"$f":"'Population 2016'!V129/'Population 2016'!V$5","v":9.5328229825753126E-3},{"$f":"'Population 2016'!W129/'Population 2016'!W$5","v":7.4193189914955647E-3},{"$f":"'Population 2016'!X129/'Population 2016'!X$5","v":7.4193189914955647E-3},{"$f":"'Population 2016'!Y129/'Population 2016'!Y$5","v":8.0086167151555612E-3},{"$f":"'Population 2016'!Z129/'Population 2016'!Z$5","v":4.775612050725634E-3},{"$f":"'Population 2016'!AA129/'Population 2016'!AA$5","v":6.9580781273980057E-3},{"$f":"'Population 2016'!AB129/'Population 2016'!AB$5","v":4.198438123701422E-3},{"$f":"'Population 2016'!AC129/'Population 2016'!AC$5","v":5.3824720068015247E-3},{"$f":"'Population 2016'!AD129/'Population 2016'!AD$5","v":6.9931891771186127E-3},{"$f":"'Population 2016'!AE129/'Population 2016'!AE$5","v":7.0534605078080882E-3},{"$f":"'Population 2016'!AF129/'Population 2016'!AF$5","v":4.3282209051561625E-3},{"$f":"'Population 2016'!AG129/'Population 2016'!AG$5","v":7.0534605078080882E-3},{"$f":"'Population 2016'!AH129/'Population 2016'!AH$5","v":9.787949434810473E-3},{"$f":"'Population 2016'!AI129/'Population 2016'!AI$5","v":6.0482106920990465E-3},{"$f":"'Population 2016'!AJ129/'Population 2016'!AJ$5","v":1.2840532024649361E-2},{"$f":"'Population 2016'!AK129/'Population 2016'!AK$5","v":4.7018593716606112E-3},{"$f":"'Population 2016'!AL129/'Population 2016'!AL$5","v":7.5113956829428357E-3},{"$f":"'Population 2016'!AM129/'Population 2016'!AM$5","v":9.8808001709581265E-3},{"$f":"'Population 2016'!AN129/'Population 2016'!AN$5","v":5.9452383549689104E-3},{"$f":"'Population 2016'!AO129/'Population 2016'!AO$5","v":5.9452383549689104E-3},{"$f":"'Population 2016'!AP129/'Population 2016'!AP$5","v":3.7411029912971798E-3},{"$f":"'Population 2016'!AQ129/'Population 2016'!AQ$5","v":6.3229571984435799E-3},{"$f":"'Population 2016'!AR129/'Population 2016'!AR$5","v":6.6788704198888649E-3},{"$f":"'Population 2016'!AS129/'Population 2016'!AS$5","v":6.7205426681182477E-3},{"$f":"'Population 2016'!AT129/'Population 2016'!AT$5","v":1.1071861654452469E-3},{"$f":"'Population 2016'!AU129/'Population 2016'!AU$5","v":1.1071861654452469E-3},{"$f":"'Population 2016'!AV129/'Population 2016'!AV$5","v":1.0199556541019957E-2},{"$f":"'Population 2016'!AW129/'Population 2016'!AW$5","v":9.6901885410946367E-3},{"$f":"'Population 2016'!AX129/'Population 2016'!AX$5","v":4.5235569980960171E-3},{"$f":"'Population 2016'!AY129/'Population 2016'!AY$5","v":6.0539763165141829E-3},{"$f":"'Population 2016'!AZ129/'Population 2016'!AZ$5","v":4.8524141263641121E-3},{"$f":"'Population 2016'!BA129/'Population 2016'!BA$5","v":1.049989203195854E-2},{"$f":"'Population 2016'!BB129/'Population 2016'!BB$5","v":8.4240762862252544E-3},{"$f":"'Population 2016'!BC129/'Population 2016'!BC$5","v":1.1463727703270924E-2},127]
[null,"Male 65-69",{"$f":"'Population 2016'!C130/'Population 2016'!C$5","v":5.284866575007794E-3},{"$f":"'Population 2016'!D130/'Population 2016'!D$5","v":4.0834091331435896E-3},{"$f":"'Population 2016'!E130/'Population 2016'!E$5","v":2.9814503161931191E-3},{"$f":"'Population 2016'!F130/'Population 2016'!F$5","v":6.1601854236415145E-3},{"$f":"'Population 2016'!G130/'Population 2016'!G$5","v":7.4026958263411465E-3},{"$f":"'Population 2016'!H130/'Population 2016'!H$5","v":9.5650961535343835E-3},{"$f":"'Population 2016'!I130/'Population 2016'!I$5","v":6.9194372330625576E-3},{"$f":"'Population 2016'!J130/'Population 2016'!J$5","v":6.6344343730044865E-3},{"$f":"'Population 2016'!K130/'Population 2016'!K$5","v":9.5449605443462641E-3},{"$f":"'Population 2016'!L130/'Population 2016'!L$5","v":1.2207519895795277E-2},{"$f":"'Population 2016'!M130/'Population 2016'!M$5","v":1.2207519895795277E-2},{"$f":"'Population 2016'!N130/'Population 2016'!N$5","v":5.8511023058808401E-3},{"$f":"'Population 2016'!O130/'Population 2016'!O$5","v":9.5005993600221911E-3},{"$f":"'Population 2016'!P130/'Population 2016'!P$5","v":4.9926744054998307E-3},{"$f":"'Population 2016'!Q130/'Population 2016'!Q$5","v":8.9893185743998311E-3},{"$f":"'Population 2016'!R130/'Population 2016'!R$5","v":2.6880289561931124E-3},{"$f":"'Population 2016'!S130/'Population 2016'!S$5","v":6.4919475136414754E-3},{"$f":"'Population 2016'!T130/'Population 2016'!T$5","v":3.2991628781357169E-3},{"$f":"'Population 2016'!U130/'Population 2016'!U$5","v":1.1286681715575621E-2},{"$f":"'Population 2016'!V130/'Population 2016'!V$5","v":1.0670045259920165E-2},{"$f":"'Population 2016'!W130/'Population 2016'!W$5","v":7.6840612110158912E-3},{"$f":"'Population 2016'!X130/'Population 2016'!X$5","v":7.6840612110158912E-3},{"$f":"'Population 2016'!Y130/'Population 2016'!Y$5","v":8.7359501438768854E-3},{"$f":"'Population 2016'!Z130/'Population 2016'!Z$5","v":3.9645129630669221E-3},{"$f":"'Population 2016'!AA130/'Population 2016'!AA$5","v":6.2923668427944729E-3},{"$f":"'Population 2016'!AB130/'Population 2016'!AB$5","v":4.2045791838531054E-3},{"$f":"'Population 2016'!AC130/'Population 2016'!AC$5","v":4.6636368713812602E-3},{"$f":"'Population 2016'!AD130/'Population 2016'!AD$5","v":7.4546875581525179E-3},{"$f":"'Population 2016'!AE130/'Population 2016'!AE$5","v":7.4744093881867367E-3},{"$f":"'Population 2016'!AF130/'Population 2016'!AF$5","v":4.0869263599209761E-3},{"$f":"'Population 2016'!AG130/'Population 2016'!AG$5","v":7.4744093881867367E-3},{"$f":"'Population 2016'!AH130/'Population 2016'!AH$5","v":9.2176513751242306E-3},{"$f":"'Population 2016'!AI130/'Population 2016'!AI$5","v":5.9374726572753523E-3},{"$f":"'Population 2016'!AJ130/'Population 2016'!AJ$5","v":1.2282854195131473E-2},{"$f":"'Population 2016'!AK130/'Population 2016'!AK$5","v":4.8275775366782743E-3},{"$f":"'Population 2016'!AL130/'Population 2016'!AL$5","v":7.8306521700572881E-3},{"$f":"'Population 2016'!AM130/'Population 2016'!AM$5","v":9.2759271399647219E-3},{"$f":"'Population 2016'!AN130/'Population 2016'!AN$5","v":6.5997600087269554E-3},{"$f":"'Population 2016'!AO130/'Population 2016'!AO$5","v":6.5997600087269554E-3},{"$f":"'Population 2016'!AP130/'Population 2016'!AP$5","v":3.4399124962351188E-3},{"$f":"'Population 2016'!AQ130/'Population 2016'!AQ$5","v":5.7680714638022688E-3},{"$f":"'Population 2016'!AR130/'Population 2016'!AR$5","v":6.6225077042040125E-3},{"$f":"'Population 2016'!AS130/'Population 2016'!AS$5","v":6.9194372330625576E-3},{"$f":"'Population 2016'!AT130/'Population 2016'!AT$5","v":1.2126324669162229E-3},{"$f":"'Population 2016'!AU130/'Population 2016'!AU$5","v":1.2126324669162229E-3},{"$f":"'Population 2016'!AV130/'Population 2016'!AV$5","v":1.1698870235455601E-2},{"$f":"'Population 2016'!AW130/'Population 2016'!AW$5","v":9.1562938556348766E-3},{"$f":"'Population 2016'!AX130/'Population 2016'!AX$5","v":5.0602502012599511E-3},{"$f":"'Population 2016'!AY130/'Population 2016'!AY$5","v":6.2895872219332332E-3},{"$f":"'Population 2016'!AZ130/'Population 2016'!AZ$5","v":5.0623881816246816E-3},{"$f":"'Population 2016'!BA130/'Population 2016'!BA$5","v":9.4876916432735919E-3},{"$f":"'Population 2016'!BB130/'Population 2016'!BB$5","v":8.8314701394115579E-3},{"$f":"'Population 2016'!BC130/'Population 2016'!BC$5","v":1.1286681715575621E-2},128]
[null,"Male 70-74",{"$f":"'Population 2016'!C131/'Population 2016'!C$5","v":3.434652164801971E-3},{"$f":"'Population 2016'!D131/'Population 2016'!D$5","v":2.6970061520104065E-3},{"$f":"'Population 2016'!E131/'Population 2016'!E$5","v":2.0204482488667208E-3},{"$f":"'Population 2016'!F131/'Population 2016'!F$5","v":4.1823332474890552E-3},{"$f":"'Population 2016'!G131/'Population 2016'!G$5","v":5.8599036431548745E-3},{"$f":"'Population 2016'!H131/'Population 2016'!H$5","v":7.065201531712347E-3},{"$f":"'Population 2016'!I131/'Population 2016'!I$5","v":4.961895988610669E-3},{"$f":"'Population 2016'!J131/'Population 2016'!J$5","v":4.4036058150817283E-3},{"$f":"'Population 2016'!K131/'Population 2016'!K$5","v":6.7807021688796485E-3},{"$f":"'Population 2016'!L131/'Population 2016'!L$5","v":9.2211649961082085E-3},{"$f":"'Population 2016'!M131/'Population 2016'!M$5","v":9.2211649961082085E-3},{"$f":"'Population 2016'!N131/'Population 2016'!N$5","v":4.0025397641877177E-3},{"$f":"'Population 2016'!O131/'Population 2016'!O$5","v":7.1526931573889698E-3},{"$f":"'Population 2016'!P131/'Population 2016'!P$5","v":3.5951763777752731E-3},{"$f":"'Population 2016'!Q131/'Population 2016'!Q$5","v":6.4159058060422325E-3},{"$f":"'Population 2016'!R131/'Population 2016'!R$5","v":1.6101559589077553E-3},{"$f":"'Population 2016'!S131/'Population 2016'!S$5","v":4.7831221721853371E-3},{"$f":"'Population 2016'!T131/'Population 2016'!T$5","v":2.3987566483483244E-3},{"$f":"'Population 2016'!U131/'Population 2016'!U$5","v":7.2146239985836323E-3},{"$f":"'Population 2016'!V131/'Population 2016'!V$5","v":7.4797169919325907E-3},{"$f":"'Population 2016'!W131/'Population 2016'!W$5","v":5.5301708077579274E-3},{"$f":"'Population 2016'!X131/'Population 2016'!X$5","v":5.5301708077579274E-3},{"$f":"'Population 2016'!Y131/'Population 2016'!Y$5","v":6.0054689114640465E-3},{"$f":"'Population 2016'!Z131/'Population 2016'!Z$5","v":2.9346687753952416E-3},{"$f":"'Population 2016'!AA131/'Population 2016'!AA$5","v":4.9117799671396407E-3},{"$f":"'Population 2016'!AB131/'Population 2016'!AB$5","v":2.8678750908365147E-3},{"$f":"'Population 2016'!AC131/'Population 2016'!AC$5","v":3.5848670206714232E-3},{"$f":"'Population 2016'!AD131/'Population 2016'!AD$5","v":5.612415795154267E-3},{"$f":"'Population 2016'!AE131/'Population 2016'!AE$5","v":5.5185371513054547E-3},{"$f":"'Population 2016'!AF131/'Population 2016'!AF$5","v":3.2574763606750216E-3},{"$f":"'Population 2016'!AG131/'Population 2016'!AG$5","v":5.5185371513054547E-3},{"$f":"'Population 2016'!AH131/'Population 2016'!AH$5","v":7.2949852781364075E-3},{"$f":"'Population 2016'!AI131/'Population 2016'!AI$5","v":4.4472941639688516E-3},{"$f":"'Population 2016'!AJ131/'Population 2016'!AJ$5","v":9.4805231018040871E-3},{"$f":"'Population 2016'!AK131/'Population 2016'!AK$5","v":3.7464013175263692E-3},{"$f":"'Population 2016'!AL131/'Population 2016'!AL$5","v":5.4096238094393503E-3},{"$f":"'Population 2016'!AM131/'Population 2016'!AM$5","v":7.2620983661184175E-3},{"$f":"'Population 2016'!AN131/'Population 2016'!AN$5","v":5.3452601723573689E-3},{"$f":"'Population 2016'!AO131/'Population 2016'!AO$5","v":5.3452601723573689E-3},{"$f":"'Population 2016'!AP131/'Population 2016'!AP$5","v":2.3064851069226257E-3},{"$f":"'Population 2016'!AQ131/'Population 2016'!AQ$5","v":4.8227105825615173E-3},{"$f":"'Population 2016'!AR131/'Population 2016'!AR$5","v":4.912690143408581E-3},{"$f":"'Population 2016'!AS131/'Population 2016'!AS$5","v":4.961895988610669E-3},{"$f":"'Population 2016'!AT131/'Population 2016'!AT$5","v":1.2653556176517109E-3},{"$f":"'Population 2016'!AU131/'Population 2016'!AU$5","v":1.2653556176517109E-3},{"$f":"'Population 2016'!AV131/'Population 2016'!AV$5","v":8.9430894308943094E-3},{"$f":"'Population 2016'!AW131/'Population 2016'!AW$5","v":7.329611324668985E-3},{"$f":"'Population 2016'!AX131/'Population 2016'!AX$5","v":3.1179319421904749E-3},{"$f":"'Population 2016'!AY131/'Population 2016'!AY$5","v":4.4169395061350635E-3},{"$f":"'Population 2016'!AZ131/'Population 2016'!AZ$5","v":3.4372465210463035E-3},{"$f":"'Population 2016'!BA131/'Population 2016'!BA$5","v":7.9626430576549348E-3},{"$f":"'Population 2016'!BB131/'Population 2016'!BB$5","v":6.8773606402297979E-3},{"$f":"'Population 2016'!BC131/'Population 2016'!BC$5","v":7.2146239985836323E-3},129]
[null,"Male 75-79",{"$f":"'Population 2016'!C132/'Population 2016'!C$5","v":2.8519879582730649E-3},{"$f":"'Population 2016'!D132/'Population 2016'!D$5","v":2.1615171698796004E-3},{"$f":"'Population 2016'!E132/'Population 2016'!E$5","v":1.5282276777971019E-3},{"$f":"'Population 2016'!F132/'Population 2016'!F$5","v":3.1212979654906001E-3},{"$f":"'Population 2016'!G132/'Population 2016'!G$5","v":4.3441779894981868E-3},{"$f":"'Population 2016'!H132/'Population 2016'!H$5","v":5.4245443609705164E-3},{"$f":"'Population 2016'!I132/'Population 2016'!I$5","v":3.6638472489741226E-3},{"$f":"'Population 2016'!J132/'Population 2016'!J$5","v":3.5079571747261224E-3},{"$f":"'Population 2016'!K132/'Population 2016'!K$5","v":5.0559939517081697E-3},{"$f":"'Population 2016'!L132/'Population 2016'!L$5","v":7.29909615109685E-3},{"$f":"'Population 2016'!M132/'Population 2016'!M$5","v":7.29909615109685E-3},{"$f":"'Population 2016'!N132/'Population 2016'!N$5","v":3.5846038851962288E-3},{"$f":"'Population 2016'!O132/'Population 2016'!O$5","v":5.6963969051227947E-3},{"$f":"'Population 2016'!P132/'Population 2016'!P$5","v":3.1781809985348811E-3},{"$f":"'Population 2016'!Q132/'Population 2016'!Q$5","v":5.440594117577937E-3},{"$f":"'Population 2016'!R132/'Population 2016'!R$5","v":1.3040932559748762E-3},{"$f":"'Population 2016'!S132/'Population 2016'!S$5","v":3.5571106023079735E-3},{"$f":"'Population 2016'!T132/'Population 2016'!T$5","v":1.7449733135414583E-3},{"$f":"'Population 2016'!U132/'Population 2016'!U$5","v":6.4179170539547647E-3},{"$f":"'Population 2016'!V132/'Population 2016'!V$5","v":5.5334641011746209E-3},{"$f":"'Population 2016'!W132/'Population 2016'!W$5","v":4.1705070630609431E-3},{"$f":"'Population 2016'!X132/'Population 2016'!X$5","v":4.1705070630609431E-3},{"$f":"'Population 2016'!Y132/'Population 2016'!Y$5","v":4.5627255528528955E-3},{"$f":"'Population 2016'!Z132/'Population 2016'!Z$5","v":2.1893867974749461E-3},{"$f":"'Population 2016'!AA132/'Population 2016'!AA$5","v":3.689980513660701E-3},{"$f":"'Population 2016'!AB132/'Population 2016'!AB$5","v":2.2332988751624823E-3},{"$f":"'Population 2016'!AC132/'Population 2016'!AC$5","v":2.7729453209521309E-3},{"$f":"'Population 2016'!AD132/'Population 2016'!AD$5","v":3.9673973724366372E-3},{"$f":"'Population 2016'!AE132/'Population 2016'!AE$5","v":3.8244745839279663E-3},{"$f":"'Population 2016'!AF132/'Population 2016'!AF$5","v":2.2922981797342742E-3},{"$f":"'Population 2016'!AG132/'Population 2016'!AG$5","v":3.8244745839279663E-3},{"$f":"'Population 2016'!AH132/'Population 2016'!AH$5","v":5.3370238614937355E-3},{"$f":"'Population 2016'!AI132/'Population 2016'!AI$5","v":3.28659550266865E-3},{"$f":"'Population 2016'!AJ132/'Population 2016'!AJ$5","v":6.5805983883110725E-3},{"$f":"'Population 2016'!AK132/'Population 2016'!AK$5","v":2.6023660158656322E-3},{"$f":"'Population 2016'!AL132/'Population 2016'!AL$5","v":4.1503343324878952E-3},{"$f":"'Population 2016'!AM132/'Population 2016'!AM$5","v":5.393149360174725E-3},{"$f":"'Population 2016'!AN132/'Population 2016'!AN$5","v":4.4180211628668045E-3},{"$f":"'Population 2016'!AO132/'Population 2016'!AO$5","v":4.4180211628668045E-3},{"$f":"'Population 2016'!AP132/'Population 2016'!AP$5","v":1.8309211673509503E-3},{"$f":"'Population 2016'!AQ132/'Population 2016'!AQ$5","v":4.0349098481942238E-3},{"$f":"'Population 2016'!AR132/'Population 2016'!AR$5","v":3.7192709026032224E-3},{"$f":"'Population 2016'!AS132/'Population 2016'!AS$5","v":3.6638472489741226E-3},{"$f":"'Population 2016'!AT132/'Population 2016'!AT$5","v":4.2178520588390361E-4},{"$f":"'Population 2016'!AU132/'Population 2016'!AU$5","v":4.2178520588390361E-4},{"$f":"'Population 2016'!AV132/'Population 2016'!AV$5","v":6.6518847006651885E-3},{"$f":"'Population 2016'!AW132/'Population 2016'!AW$5","v":5.2779303191164808E-3},{"$f":"'Population 2016'!AX132/'Population 2016'!AX$5","v":2.6706876062205297E-3},{"$f":"'Population 2016'!AY132/'Population 2016'!AY$5","v":3.4515467702946668E-3},{"$f":"'Population 2016'!AZ132/'Population 2016'!AZ$5","v":2.8188297829501068E-3},{"$f":"'Population 2016'!BA132/'Population 2016'!BA$5","v":5.7897862232779099E-3},{"$f":"'Population 2016'!BB132/'Population 2016'!BB$5","v":4.9646810244229162E-3},{"$f":"'Population 2016'!BC132/'Population 2016'!BC$5","v":6.4179170539547647E-3},130]
[null,"Male 80-84",{"$f":"'Population 2016'!C133/'Population 2016'!C$5","v":2.3051013784608464E-3},{"$f":"'Population 2016'!D133/'Population 2016'!D$5","v":1.7580665669043357E-3},{"$f":"'Population 2016'!E133/'Population 2016'!E$5","v":1.2563344099681697E-3},{"$f":"'Population 2016'!F133/'Population 2016'!F$5","v":2.338398145763585E-3},{"$f":"'Population 2016'!G133/'Population 2016'!G$5","v":2.8555188653710821E-3},{"$f":"'Population 2016'!H133/'Population 2016'!H$5","v":3.3688592893295678E-3},{"$f":"'Population 2016'!I133/'Population 2016'!I$5","v":2.3134578343522319E-3},{"$f":"'Population 2016'!J133/'Population 2016'!J$5","v":2.24741464385527E-3},{"$f":"'Population 2016'!K133/'Population 2016'!K$5","v":3.0005197750791477E-3},{"$f":"'Population 2016'!L133/'Population 2016'!L$5","v":4.6304385811637254E-3},{"$f":"'Population 2016'!M133/'Population 2016'!M$5","v":4.6304385811637254E-3},{"$f":"'Population 2016'!N133/'Population 2016'!N$5","v":2.3870568473167712E-3},{"$f":"'Population 2016'!O133/'Population 2016'!O$5","v":3.5367194697892828E-3},{"$f":"'Population 2016'!P133/'Population 2016'!P$5","v":2.2765693677448441E-3},{"$f":"'Population 2016'!Q133/'Population 2016'!Q$5","v":3.8072408079811047E-3},{"$f":"'Population 2016'!R133/'Population 2016'!R$5","v":1.0911800713259169E-3},{"$f":"'Population 2016'!S133/'Population 2016'!S$5","v":2.4184821464823441E-3},{"$f":"'Population 2016'!T133/'Population 2016'!T$5","v":1.2703405722581816E-3},{"$f":"'Population 2016'!U133/'Population 2016'!U$5","v":3.9392732262205112E-3},{"$f":"'Population 2016'!V133/'Population 2016'!V$5","v":4.0069912456781737E-3},{"$f":"'Population 2016'!W133/'Population 2016'!W$5","v":2.8696749227018086E-3},{"$f":"'Population 2016'!X133/'Population 2016'!X$5","v":2.8696749227018086E-3},{"$f":"'Population 2016'!Y133/'Population 2016'!Y$5","v":3.1637016899572342E-3},{"$f":"'Population 2016'!Z133/'Population 2016'!Z$5","v":1.5486378761980165E-3},{"$f":"'Population 2016'!AA133/'Population 2016'!AA$5","v":2.5293042519816868E-3},{"$f":"'Population 2016'!AB133/'Population 2016'!AB$5","v":1.7747663838367296E-3},{"$f":"'Population 2016'!AC133/'Population 2016'!AC$5","v":1.9330976519431303E-3},{"$f":"'Population 2016'!AD133/'Population 2016'!AD$5","v":2.5940675127470317E-3},{"$f":"'Population 2016'!AE133/'Population 2016'!AE$5","v":2.4948921446832101E-3},{"$f":"'Population 2016'!AF133/'Population 2016'!AF$5","v":1.6136572712603116E-3},{"$f":"'Population 2016'!AG133/'Population 2016'!AG$5","v":2.4948921446832101E-3},{"$f":"'Population 2016'!AH133/'Population 2016'!AH$5","v":3.6001226047945906E-3},{"$f":"'Population 2016'!AI133/'Population 2016'!AI$5","v":2.2434705573540991E-3},{"$f":"'Population 2016'!AJ133/'Population 2016'!AJ$5","v":4.098932046956473E-3},{"$f":"'Population 2016'!AK133/'Population 2016'!AK$5","v":1.8606288422614184E-3},{"$f":"'Population 2016'!AL133/'Population 2016'!AL$5","v":2.5895248399283445E-3},{"$f":"'Population 2016'!AM133/'Population 2016'!AM$5","v":3.6292381859604262E-3},{"$f":"'Population 2016'!AN133/'Population 2016'!AN$5","v":1.9090214901276317E-3},{"$f":"'Population 2016'!AO133/'Population 2016'!AO$5","v":1.9090214901276317E-3},{"$f":"'Population 2016'!AP133/'Population 2016'!AP$5","v":1.1889098489291886E-3},{"$f":"'Population 2016'!AQ133/'Population 2016'!AQ$5","v":2.8292322025538445E-3},{"$f":"'Population 2016'!AR133/'Population 2016'!AR$5","v":2.5247377741361076E-3},{"$f":"'Population 2016'!AS133/'Population 2016'!AS$5","v":2.3134578343522319E-3},{"$f":"'Population 2016'!AT133/'Population 2016'!AT$5","v":3.1633890441292773E-4},{"$f":"'Population 2016'!AU133/'Population 2016'!AU$5","v":3.1633890441292773E-4},{"$f":"'Population 2016'!AV133/'Population 2016'!AV$5","v":4.117833386126069E-3},{"$f":"'Population 2016'!AW133/'Population 2016'!AW$5","v":3.5694673256452497E-3},{"$f":"'Population 2016'!AX133/'Population 2016'!AX$5","v":1.8400909822763459E-3},{"$f":"'Population 2016'!AY133/'Population 2016'!AY$5","v":2.3744683455218627E-3},{"$f":"'Population 2016'!AZ133/'Population 2016'!AZ$5","v":1.9386645650085429E-3},{"$f":"'Population 2016'!BA133/'Population 2016'!BA$5","v":3.5764413733534875E-3},{"$f":"'Population 2016'!BB133/'Population 2016'!BB$5","v":3.293675728302825E-3},{"$f":"'Population 2016'!BC133/'Population 2016'!BC$5","v":3.9392732262205112E-3},131]
[null,"Male 85-89",{"$f":"'Population 2016'!C134/'Population 2016'!C$5","v":1.1806616816506775E-3},{"$f":"'Population 2016'!D134/'Population 2016'!D$5","v":8.1668182662871782E-4},{"$f":"'Population 2016'!E134/'Population 2016'!E$5","v":4.8284494114448316E-4},{"$f":"'Population 2016'!F134/'Population 2016'!F$5","v":1.2567602369302085E-3},{"$f":"'Population 2016'!G134/'Population 2016'!G$5","v":1.4074595355383533E-3},{"$f":"'Population 2016'!H134/'Population 2016'!H$5","v":1.7833230116759021E-3},{"$f":"'Population 2016'!I134/'Population 2016'!I$5","v":1.5806883845574072E-3},{"$f":"'Population 2016'!J134/'Population 2016'!J$5","v":1.0532164567144623E-3},{"$f":"'Population 2016'!K134/'Population 2016'!K$5","v":1.464820677597694E-3},{"$f":"'Population 2016'!L134/'Population 2016'!L$5","v":2.2556510412529984E-3},{"$f":"'Population 2016'!M134/'Population 2016'!M$5","v":2.2556510412529984E-3},{"$f":"'Population 2016'!N134/'Population 2016'!N$5","v":1.1653981241108815E-3},{"$f":"'Population 2016'!O134/'Population 2016'!O$5","v":1.8921944502233979E-3},{"$f":"'Population 2016'!P134/'Population 2016'!P$5","v":1.2960667192606784E-3},{"$f":"'Population 2016'!Q134/'Population 2016'!Q$5","v":1.7626114851764373E-3},{"$f":"'Population 2016'!R134/'Population 2016'!R$5","v":4.2582636929791877E-4},{"$f":"'Population 2016'!S134/'Population 2016'!S$5","v":1.2083584155234779E-3},{"$f":"'Population 2016'!T134/'Population 2016'!T$5","v":6.328436550443688E-4},{"$f":"'Population 2016'!U134/'Population 2016'!U$5","v":2.1688133492674721E-3},{"$f":"'Population 2016'!V134/'Population 2016'!V$5","v":1.9309881622030056E-3},{"$f":"'Population 2016'!W134/'Population 2016'!W$5","v":1.4054216591819792E-3},{"$f":"'Population 2016'!X134/'Population 2016'!X$5","v":1.4054216591819792E-3},{"$f":"'Population 2016'!Y134/'Population 2016'!Y$5","v":1.5103098519896345E-3},{"$f":"'Population 2016'!Z134/'Population 2016'!Z$5","v":7.6657574871801817E-4},{"$f":"'Population 2016'!AA134/'Population 2016'!AA$5","v":1.196552917735492E-3},{"$f":"'Population 2016'!AB134/'Population 2016'!AB$5","v":8.3109014052792647E-4},{"$f":"'Population 2016'!AC134/'Population 2016'!AC$5","v":9.2465987203700292E-4},{"$f":"'Population 2016'!AD134/'Population 2016'!AD$5","v":1.354721054002754E-3},{"$f":"'Population 2016'!AE134/'Population 2016'!AE$5","v":1.3347159621762031E-3},{"$f":"'Population 2016'!AF134/'Population 2016'!AF$5","v":7.3896454478275953E-4},{"$f":"'Population 2016'!AG134/'Population 2016'!AG$5","v":1.3347159621762031E-3},{"$f":"'Population 2016'!AH134/'Population 2016'!AH$5","v":1.6848871014183146E-3},{"$f":"'Population 2016'!AI134/'Population 2016'!AI$5","v":1.0773033511243329E-3},{"$f":"'Population 2016'!AJ134/'Population 2016'!AJ$5","v":2.1888854808577085E-3},{"$f":"'Population 2016'!AK134/'Population 2016'!AK$5","v":9.0517078812717654E-4},{"$f":"'Population 2016'!AL134/'Population 2016'!AL$5","v":1.2060800624323798E-3},{"$f":"'Population 2016'!AM134/'Population 2016'!AM$5","v":1.6190314063116871E-3},{"$f":"'Population 2016'!AN134/'Population 2016'!AN$5","v":8.7269553834406024E-4},{"$f":"'Population 2016'!AO134/'Population 2016'!AO$5","v":8.7269553834406024E-4},{"$f":"'Population 2016'!AP134/'Population 2016'!AP$5","v":6.4201131842176178E-4},{"$f":"'Population 2016'!AQ134/'Population 2016'!AQ$5","v":1.1919767633035568E-3},{"$f":"'Population 2016'!AR134/'Population 2016'!AR$5","v":1.240425300131461E-3},{"$f":"'Population 2016'!AS134/'Population 2016'!AS$5","v":1.5806883845574072E-3},{"$f":"'Population 2016'!AT134/'Population 2016'!AT$5","v":5.2723150735487951E-5},{"$f":"'Population 2016'!AU134/'Population 2016'!AU$5","v":5.2723150735487951E-5},{"$f":"'Population 2016'!AV134/'Population 2016'!AV$5","v":2.3545560130925985E-3},{"$f":"'Population 2016'!AW134/'Population 2016'!AW$5","v":1.7542253950820672E-3},{"$f":"'Population 2016'!AX134/'Population 2016'!AX$5","v":8.3059662394418393E-4},{"$f":"'Population 2016'!AY134/'Population 2016'!AY$5","v":1.1902940546494906E-3},{"$f":"'Population 2016'!AZ134/'Population 2016'!AZ$5","v":1.0009722086394255E-3},{"$f":"'Population 2016'!BA134/'Population 2016'!BA$5","v":1.7274886633556468E-3},{"$f":"'Population 2016'!BB134/'Population 2016'!BB$5","v":1.4431409375582607E-3},{"$f":"'Population 2016'!BC134/'Population 2016'!BC$5","v":2.1688133492674721E-3},132]
[null,"Male 90+",{"$f":"'Population 2016'!C135/'Population 2016'!C$5","v":4.753313263788442E-4},{"$f":"'Population 2016'!D135/'Population 2016'!D$5","v":3.6432812026251183E-4},{"$f":"'Population 2016'!E135/'Population 2016'!E$5","v":2.6251763790379666E-4},{"$f":"'Population 2016'!F135/'Population 2016'!F$5","v":7.0048931238732943E-4},{"$f":"'Population 2016'!G135/'Population 2016'!G$5","v":4.7366426676771507E-4},{"$f":"'Population 2016'!H135/'Population 2016'!H$5","v":6.9387477181571467E-4},{"$f":"'Population 2016'!I135/'Population 2016'!I$5","v":5.8621555983585959E-4},{"$f":"'Population 2016'!J135/'Population 2016'!J$5","v":3.0684258975145751E-4},{"$f":"'Population 2016'!K135/'Population 2016'!K$5","v":4.7252279922506261E-4},{"$f":"'Population 2016'!L135/'Population 2016'!L$5","v":9.8486172223722452E-4},{"$f":"'Population 2016'!M135/'Population 2016'!M$5","v":9.8486172223722452E-4},{"$f":"'Population 2016'!N135/'Population 2016'!N$5","v":5.3849430562364871E-4},{"$f":"'Population 2016'!O135/'Population 2016'!O$5","v":6.9347440584103582E-4},{"$f":"'Population 2016'!P135/'Population 2016'!P$5","v":7.2128930463202974E-4},{"$f":"'Population 2016'!Q135/'Population 2016'!Q$5","v":7.8729979671214199E-4},{"$f":"'Population 2016'!R135/'Population 2016'!R$5","v":2.2622025868951934E-4},{"$f":"'Population 2016'!S135/'Population 2016'!S$5","v":5.2782931518118319E-4},{"$f":"'Population 2016'!T135/'Population 2016'!T$5","v":3.3736150728468192E-4},{"$f":"'Population 2016'!U135/'Population 2016'!U$5","v":3.9835347231443366E-4},{"$f":"'Population 2016'!V135/'Population 2016'!V$5","v":7.0980987780584791E-4},{"$f":"'Population 2016'!W135/'Population 2016'!W$5","v":6.275371129370698E-4},{"$f":"'Population 2016'!X135/'Population 2016'!X$5","v":6.275371129370698E-4},{"$f":"'Population 2016'!Y135/'Population 2016'!Y$5","v":5.1668494936487491E-4},{"$f":"'Population 2016'!Z135/'Population 2016'!Z$5","v":3.1747076462059338E-4},{"$f":"'Population 2016'!AA135/'Population 2016'!AA$5","v":4.5576640842118129E-4},{"$f":"'Population 2016'!AB135/'Population 2016'!AB$5","v":3.6846360910105114E-4},{"$f":"'Population 2016'!AC135/'Population 2016'!AC$5","v":3.8682638942040169E-4},{"$f":"'Population 2016'!AD135/'Population 2016'!AD$5","v":6.3642115449030485E-4},{"$f":"'Population 2016'!AE135/'Population 2016'!AE$5","v":6.9815911867678309E-4},{"$f":"'Population 2016'!AF135/'Population 2016'!AF$5","v":2.7145636338958513E-4},{"$f":"'Population 2016'!AG135/'Population 2016'!AG$5","v":6.9815911867678309E-4},{"$f":"'Population 2016'!AH135/'Population 2016'!AH$5","v":5.7958630170067713E-4},{"$f":"'Population 2016'!AI135/'Population 2016'!AI$5","v":4.7849768133694984E-4},{"$f":"'Population 2016'!AJ135/'Population 2016'!AJ$5","v":8.9228452722862005E-4},{"$f":"'Population 2016'!AK135/'Population 2016'!AK$5","v":3.8972631155475656E-4},{"$f":"'Population 2016'!AL135/'Population 2016'!AL$5","v":4.9662120217803868E-4},{"$f":"'Population 2016'!AM135/'Population 2016'!AM$5","v":5.3605514123966375E-4},{"$f":"'Population 2016'!AN135/'Population 2016'!AN$5","v":4.9089124031853387E-4},{"$f":"'Population 2016'!AO135/'Population 2016'!AO$5","v":4.9089124031853387E-4},{"$f":"'Population 2016'!AP135/'Population 2016'!AP$5","v":2.3778196978583771E-4},{"$f":"'Population 2016'!AQ135/'Population 2016'!AQ$5","v":5.0008220529402093E-4},{"$f":"'Population 2016'!AR135/'Population 2016'!AR$5","v":5.0926943895483474E-4},{"$f":"'Population 2016'!AS135/'Population 2016'!AS$5","v":5.8621555983585959E-4},{"$f":"'Population 2016'!AT135/'Population 2016'!AT$5","v":0},{"$f":"'Population 2016'!AU135/'Population 2016'!AU$5","v":0},{"$f":"'Population 2016'!AV135/'Population 2016'!AV$5","v":9.2915214866434379E-4},{"$f":"'Population 2016'!AW135/'Population 2016'!AW$5","v":6.2541948868143266E-4},{"$f":"'Population 2016'!AX135/'Population 2016'!AX$5","v":2.1723296318540194E-4},{"$f":"'Population 2016'!AY135/'Population 2016'!AY$5","v":5.4618891710779961E-4},{"$f":"'Population 2016'!AZ135/'Population 2016'!AZ$5","v":4.745988920273139E-4},{"$f":"'Population 2016'!BA135/'Population 2016'!BA$5","v":5.1284819693370762E-4},{"$f":"'Population 2016'!BB135/'Population 2016'!BB$5","v":5.10968561623499E-4},{"$f":"'Population 2016'!BC135/'Population 2016'!BC$5","v":3.9835347231443366E-4},133]
["SIMD Q3","Female 0-4",{"$f":"'Population 2016'!C136/'Population 2016'!C$5","v":0},{"$f":"'Population 2016'!D136/'Population 2016'!D$5","v":0},{"$f":"'Population 2016'!E136/'Population 2016'!E$5","v":0},{"$f":"'Population 2016'!F136/'Population 2016'!F$5","v":0},{"$f":"'Population 2016'!G136/'Population 2016'!G$5","v":0},{"$f":"'Population 2016'!H136/'Population 2016'!H$5","v":0},{"$f":"'Population 2016'!I136/'Population 2016'!I$5","v":0},{"$f":"'Population 2016'!J136/'Population 2016'!J$5","v":0},{"$f":"'Population 2016'!K136/'Population 2016'!K$5","v":0},{"$f":"'Population 2016'!L136/'Population 2016'!L$5","v":0},{"$f":"'Population 2016'!M136/'Population 2016'!M$5","v":0},{"$f":"'Population 2016'!N136/'Population 2016'!N$5","v":0},{"$f":"'Population 2016'!O136/'Population 2016'!O$5","v":0},{"$f":"'Population 2016'!P136/'Population 2016'!P$5","v":0},{"$f":"'Population 2016'!Q136/'Population 2016'!Q$5","v":0},{"$f":"'Population 2016'!R136/'Population 2016'!R$5","v":0},{"$f":"'Population 2016'!S136/'Population 2016'!S$5","v":0},{"$f":"'Population 2016'!T136/'Population 2016'!T$5","v":0},{"$f":"'Population 2016'!U136/'Population 2016'!U$5","v":0},{"$f":"'Population 2016'!V136/'Population 2016'!V$5","v":0},{"$f":"'Population 2016'!W136/'Population 2016'!W$5","v":0},{"$f":"'Population 2016'!X136/'Population 2016'!X$5","v":0},{"$f":"'Population 2016'!Y136/'Population 2016'!Y$5","v":0},{"$f":"'Population 2016'!Z136/'Population 2016'!Z$5","v":0},{"$f":"'Population 2016'!AA136/'Population 2016'!AA$5","v":0},{"$f":"'Population 2016'!AB136/'Population 2016'!AB$5","v":0},{"$f":"'Population 2016'!AC136/'Population 2016'!AC$5","v":0},{"$f":"'Population 2016'!AD136/'Population 2016'!AD$5","v":0},{"$f":"'Population 2016'!AE136/'Population 2016'!AE$5","v":0},{"$f":"'Population 2016'!AF136/'Population 2016'!AF$5","v":0},{"$f":"'Population 2016'!AG136/'Population 2016'!AG$5","v":0},{"$f":"'Population 2016'!AH136/'Population 2016'!AH$5","v":0},{"$f":"'Population 2016'!AI136/'Population 2016'!AI$5","v":0},{"$f":"'Population 2016'!AJ136/'Population 2016'!AJ$5","v":0},{"$f":"'Population 2016'!AK136/'Population 2016'!AK$5","v":0},{"$f":"'Population 2016'!AL136/'Population 2016'!AL$5","v":0},{"$f":"'Population 2016'!AM136/'Population 2016'!AM$5","v":0},{"$f":"'Population 2016'!AN136/'Population 2016'!AN$5","v":0},{"$f":"'Population 2016'!AO136/'Population 2016'!AO$5","v":0},{"$f":"'Population 2016'!AP136/'Population 2016'!AP$5","v":0},{"$f":"'Population 2016'!AQ136/'Population 2016'!AQ$5","v":0},{"$f":"'Population 2016'!AR136/'Population 2016'!AR$5","v":0},{"$f":"'Population 2016'!AS136/'Population 2016'!AS$5","v":0},{"$f":"'Population 2016'!AT136/'Population 2016'!AT$5","v":0},{"$f":"'Population 2016'!AU136/'Population 2016'!AU$5","v":0},{"$f":"'Population 2016'!AV136/'Population 2016'!AV$5","v":0},{"$f":"'Population 2016'!AW136/'Population 2016'!AW$5","v":0},{"$f":"'Population 2016'!AX136/'Population 2016'!AX$5","v":0},{"$f":"'Population 2016'!AY136/'Population 2016'!AY$5","v":0},{"$f":"'Population 2016'!AZ136/'Population 2016'!AZ$5","v":0},{"$f":"'Population 2016'!BA136/'Population 2016'!BA$5","v":0},{"$f":"'Population 2016'!BB136/'Population 2016'!BB$5","v":0},{"$f":"'Population 2016'!BC136/'Population 2016'!BC$5","v":0},134]
[null,"Female 5-9",{"$f":"'Population 2016'!C137/'Population 2016'!C$5","v":0},{"$f":"'Population 2016'!D137/'Population 2016'!D$5","v":0},{"$f":"'Population 2016'!E137/'Population 2016'!E$5","v":0},{"$f":"'Population 2016'!F137/'Population 2016'!F$5","v":0},{"$f":"'Population 2016'!G137/'Population 2016'!G$5","v":0},{"$f":"'Population 2016'!H137/'Population 2016'!H$5","v":0},{"$f":"'Population 2016'!I137/'Population 2016'!I$5","v":0},{"$f":"'Population 2016'!J137/'Population 2016'!J$5","v":0},{"$f":"'Population 2016'!K137/'Population 2016'!K$5","v":0},{"$f":"'Population 2016'!L137/'Population 2016'!L$5","v":0},{"$f":"'Population 2016'!M137/'Population 2016'!M$5","v":0},{"$f":"'Population 2016'!N137/'Population 2016'!N$5","v":0},{"$f":"'Population 2016'!O137/'Population 2016'!O$5","v":0},{"$f":"'Population 2016'!P137/'Population 2016'!P$5","v":0},{"$f":"'Population 2016'!Q137/'Population 2016'!Q$5","v":0},{"$f":"'Population 2016'!R137/'Population 2016'!R$5","v":0},{"$f":"'Population 2016'!S137/'Population 2016'!S$5","v":0},{"$f":"'Population 2016'!T137/'Population 2016'!T$5","v":0},{"$f":"'Population 2016'!U137/'Population 2016'!U$5","v":0},{"$f":"'Population 2016'!V137/'Population 2016'!V$5","v":0},{"$f":"'Population 2016'!W137/'Population 2016'!W$5","v":0},{"$f":"'Population 2016'!X137/'Population 2016'!X$5","v":0},{"$f":"'Population 2016'!Y137/'Population 2016'!Y$5","v":0},{"$f":"'Population 2016'!Z137/'Population 2016'!Z$5","v":0},{"$f":"'Population 2016'!AA137/'Population 2016'!AA$5","v":0},{"$f":"'Population 2016'!AB137/'Population 2016'!AB$5","v":0},{"$f":"'Population 2016'!AC137/'Population 2016'!AC$5","v":0},{"$f":"'Population 2016'!AD137/'Population 2016'!AD$5","v":0},{"$f":"'Population 2016'!AE137/'Population 2016'!AE$5","v":0},{"$f":"'Population 2016'!AF137/'Population 2016'!AF$5","v":0},{"$f":"'Population 2016'!AG137/'Population 2016'!AG$5","v":0},{"$f":"'Population 2016'!AH137/'Population 2016'!AH$5","v":0},{"$f":"'Population 2016'!AI137/'Population 2016'!AI$5","v":0},{"$f":"'Population 2016'!AJ137/'Population 2016'!AJ$5","v":0},{"$f":"'Population 2016'!AK137/'Population 2016'!AK$5","v":0},{"$f":"'Population 2016'!AL137/'Population 2016'!AL$5","v":0},{"$f":"'Population 2016'!AM137/'Population 2016'!AM$5","v":0},{"$f":"'Population 2016'!AN137/'Population 2016'!AN$5","v":0},{"$f":"'Population 2016'!AO137/'Population 2016'!AO$5","v":0},{"$f":"'Population 2016'!AP137/'Population 2016'!AP$5","v":0},{"$f":"'Population 2016'!AQ137/'Population 2016'!AQ$5","v":0},{"$f":"'Population 2016'!AR137/'Population 2016'!AR$5","v":0},{"$f":"'Population 2016'!AS137/'Population 2016'!AS$5","v":0},{"$f":"'Population 2016'!AT137/'Population 2016'!AT$5","v":0},{"$f":"'Population 2016'!AU137/'Population 2016'!AU$5","v":0},{"$f":"'Population 2016'!AV137/'Population 2016'!AV$5","v":0},{"$f":"'Population 2016'!AW137/'Population 2016'!AW$5","v":0},{"$f":"'Population 2016'!AX137/'Population 2016'!AX$5","v":0},{"$f":"'Population 2016'!AY137/'Population 2016'!AY$5","v":0},{"$f":"'Population 2016'!AZ137/'Population 2016'!AZ$5","v":0},{"$f":"'Population 2016'!BA137/'Population 2016'!BA$5","v":0},{"$f":"'Population 2016'!BB137/'Population 2016'!BB$5","v":0},{"$f":"'Population 2016'!BC137/'Population 2016'!BC$5","v":0},135]
[null,"Female 10-15",{"$f":"'Population 2016'!C138/'Population 2016'!C$5","v":0},{"$f":"'Population 2016'!D138/'Population 2016'!D$5","v":0},{"$f":"'Population 2016'!E138/'Population 2016'!E$5","v":0},{"$f":"'Population 2016'!F138/'Population 2016'!F$5","v":0},{"$f":"'Population 2016'!G138/'Population 2016'!G$5","v":0},{"$f":"'Population 2016'!H138/'Population 2016'!H$5","v":0},{"$f":"'Population 2016'!I138/'Population 2016'!I$5","v":0},{"$f":"'Population 2016'!J138/'Population 2016'!J$5","v":0},{"$f":"'Population 2016'!K138/'Population 2016'!K$5","v":0},{"$f":"'Population 2016'!L138/'Population 2016'!L$5","v":0},{"$f":"'Population 2016'!M138/'Population 2016'!M$5","v":0},{"$f":"'Population 2016'!N138/'Population 2016'!N$5","v":0},{"$f":"'Population 2016'!O138/'Population 2016'!O$5","v":0},{"$f":"'Population 2016'!P138/'Population 2016'!P$5","v":0},{"$f":"'Population 2016'!Q138/'Population 2016'!Q$5","v":0},{"$f":"'Population 2016'!R138/'Population 2016'!R$5","v":0},{"$f":"'Population 2016'!S138/'Population 2016'!S$5","v":0},{"$f":"'Population 2016'!T138/'Population 2016'!T$5","v":0},{"$f":"'Population 2016'!U138/'Population 2016'!U$5","v":0},{"$f":"'Population 2016'!V138/'Population 2016'!V$5","v":0},{"$f":"'Population 2016'!W138/'Population 2016'!W$5","v":0},{"$f":"'Population 2016'!X138/'Population 2016'!X$5","v":0},{"$f":"'Population 2016'!Y138/'Population 2016'!Y$5","v":0},{"$f":"'Population 2016'!Z138/'Population 2016'!Z$5","v":0},{"$f":"'Population 2016'!AA138/'Population 2016'!AA$5","v":0},{"$f":"'Population 2016'!AB138/'Population 2016'!AB$5","v":0},{"$f":"'Population 2016'!AC138/'Population 2016'!AC$5","v":0},{"$f":"'Population 2016'!AD138/'Population 2016'!AD$5","v":0},{"$f":"'Population 2016'!AE138/'Population 2016'!AE$5","v":0},{"$f":"'Population 2016'!AF138/'Population 2016'!AF$5","v":0},{"$f":"'Population 2016'!AG138/'Population 2016'!AG$5","v":0},{"$f":"'Population 2016'!AH138/'Population 2016'!AH$5","v":0},{"$f":"'Population 2016'!AI138/'Population 2016'!AI$5","v":0},{"$f":"'Population 2016'!AJ138/'Population 2016'!AJ$5","v":0},{"$f":"'Population 2016'!AK138/'Population 2016'!AK$5","v":0},{"$f":"'Population 2016'!AL138/'Population 2016'!AL$5","v":0},{"$f":"'Population 2016'!AM138/'Population 2016'!AM$5","v":0},{"$f":"'Population 2016'!AN138/'Population 2016'!AN$5","v":0},{"$f":"'Population 2016'!AO138/'Population 2016'!AO$5","v":0},{"$f":"'Population 2016'!AP138/'Population 2016'!AP$5","v":0},{"$f":"'Population 2016'!AQ138/'Population 2016'!AQ$5","v":0},{"$f":"'Population 2016'!AR138/'Population 2016'!AR$5","v":0},{"$f":"'Population 2016'!AS138/'Population 2016'!AS$5","v":0},{"$f":"'Population 2016'!AT138/'Population 2016'!AT$5","v":0},{"$f":"'Population 2016'!AU138/'Population 2016'!AU$5","v":0},{"$f":"'Population 2016'!AV138/'Population 2016'!AV$5","v":0},{"$f":"'Population 2016'!AW138/'Population 2016'!AW$5","v":0},{"$f":"'Population 2016'!AX138/'Population 2016'!AX$5","v":0},{"$f":"'Population 2016'!AY138/'Population 2016'!AY$5","v":0},{"$f":"'Population 2016'!AZ138/'Population 2016'!AZ$5","v":0},{"$f":"'Population 2016'!BA138/'Population 2016'!BA$5","v":0},{"$f":"'Population 2016'!BB138/'Population 2016'!BB$5","v":0},{"$f":"'Population 2016'!BC138/'Population 2016'!BC$5","v":0},136]
[null,"Female 16-19",{"$f":"'Population 2016'!C139/'Population 2016'!C$5","v":3.5062074182353451E-3},{"$f":"'Population 2016'!D139/'Population 2016'!D$5","v":4.2521248398423367E-3},{"$f":"'Population 2016'!E139/'Population 2016'!E$5","v":4.9362691555838905E-3},{"$f":"'Population 2016'!F139/'Population 2016'!F$5","v":8.0659284058717494E-3},{"$f":"'Population 2016'!G139/'Population 2016'!G$5","v":1.0298814486006605E-2},{"$f":"'Population 2016'!H139/'Population 2016'!H$5","v":4.3545505539649759E-3},{"$f":"'Population 2016'!I139/'Population 2016'!I$5","v":8.1442090277196212E-3},{"$f":"'Population 2016'!J139/'Population 2016'!J$5","v":4.3206753854191718E-3},{"$f":"'Population 2016'!K139/'Population 2016'!K$5","v":4.1345744932192981E-3},{"$f":"'Population 2016'!L139/'Population 2016'!L$5","v":8.4825187044302898E-3},{"$f":"'Population 2016'!M139/'Population 2016'!M$5","v":8.4825187044302898E-3},{"$f":"'Population 2016'!N139/'Population 2016'!N$5","v":3.8257207384605491E-3},{"$f":"'Population 2016'!O139/'Population 2016'!O$5","v":4.1311261033673136E-3},{"$f":"'Population 2016'!P139/'Population 2016'!P$5","v":1.8483038431195763E-3},{"$f":"'Population 2016'!Q139/'Population 2016'!Q$5","v":5.3348374284673504E-3},{"$f":"'Population 2016'!R139/'Population 2016'!R$5","v":3.0739341033693512E-3},{"$f":"'Population 2016'!S139/'Population 2016'!S$5","v":4.9534751117003345E-3},{"$f":"'Population 2016'!T139/'Population 2016'!T$5","v":3.3410422376607121E-3},{"$f":"'Population 2016'!U139/'Population 2016'!U$5","v":1.5889877395653521E-2},{"$f":"'Population 2016'!V139/'Population 2016'!V$5","v":4.5641538379343769E-3},{"$f":"'Population 2016'!W139/'Population 2016'!W$5","v":5.2719654331640289E-3},{"$f":"'Population 2016'!X139/'Population 2016'!X$5","v":5.2719654331640289E-3},{"$f":"'Population 2016'!Y139/'Population 2016'!Y$5","v":4.4474650641484238E-3},{"$f":"'Population 2016'!Z139/'Population 2016'!Z$5","v":4.5800965188556343E-3},{"$f":"'Population 2016'!AA139/'Population 2016'!AA$5","v":4.4234588152598031E-3},{"$f":"'Population 2016'!AB139/'Population 2016'!AB$5","v":4.726569296746262E-3},{"$f":"'Population 2016'!AC139/'Population 2016'!AC$5","v":4.0823629920917794E-3},{"$f":"'Population 2016'!AD139/'Population 2016'!AD$5","v":8.2027615467639287E-3},{"$f":"'Population 2016'!AE139/'Population 2016'!AE$5","v":7.4076735900779267E-3},{"$f":"'Population 2016'!AF139/'Population 2016'!AF$5","v":4.1623309053069723E-3},{"$f":"'Population 2016'!AG139/'Population 2016'!AG$5","v":7.4076735900779267E-3},{"$f":"'Population 2016'!AH139/'Population 2016'!AH$5","v":5.036084820226076E-3},{"$f":"'Population 2016'!AI139/'Population 2016'!AI$5","v":4.4035458045323297E-3},{"$f":"'Population 2016'!AJ139/'Population 2016'!AJ$5","v":6.6642500627387561E-3},{"$f":"'Population 2016'!AK139/'Population 2016'!AK$5","v":7.1659354060068141E-3},{"$f":"'Population 2016'!AL139/'Population 2016'!AL$5","v":3.6093719515439601E-3},{"$f":"'Population 2016'!AM139/'Population 2016'!AM$5","v":5.074413870788979E-3},{"$f":"'Population 2016'!AN139/'Population 2016'!AN$5","v":6.7088469510199625E-3},{"$f":"'Population 2016'!AO139/'Population 2016'!AO$5","v":6.7088469510199625E-3},{"$f":"'Population 2016'!AP139/'Population 2016'!AP$5","v":5.2391294009479575E-3},{"$f":"'Population 2016'!AQ139/'Population 2016'!AQ$5","v":4.5349920534882449E-3},{"$f":"'Population 2016'!AR139/'Population 2016'!AR$5","v":5.0935854996777526E-3},{"$f":"'Population 2016'!AS139/'Population 2016'!AS$5","v":8.1442090277196212E-3},{"$f":"'Population 2016'!AT139/'Population 2016'!AT$5","v":7.8557494595877051E-3},{"$f":"'Population 2016'!AU139/'Population 2016'!AU$5","v":7.8557494595877051E-3},{"$f":"'Population 2016'!AV139/'Population 2016'!AV$5","v":5.4798859676908462E-3},{"$f":"'Population 2016'!AW139/'Population 2016'!AW$5","v":4.995728842516322E-3},{"$f":"'Population 2016'!AX139/'Population 2016'!AX$5","v":4.4213297213028862E-3},{"$f":"'Population 2016'!AY139/'Population 2016'!AY$5","v":5.405281356139653E-3},{"$f":"'Population 2016'!AZ139/'Population 2016'!AZ$5","v":5.5226052890451072E-3},{"$f":"'Population 2016'!BA139/'Population 2016'!BA$5","v":3.3470092852515656E-3},{"$f":"'Population 2016'!BB139/'Population 2016'!BB$5","v":5.8899484197951985E-3},{"$f":"'Population 2016'!BC139/'Population 2016'!BC$5","v":1.5889877395653521E-2},137]
[null,"Female 20-24",{"$f":"'Population 2016'!C140/'Population 2016'!C$5","v":1.0462400269865528E-2},{"$f":"'Population 2016'!D140/'Population 2016'!D$5","v":8.2303923006954022E-3},{"$f":"'Population 2016'!E140/'Population 2016'!E$5","v":6.1832279356269252E-3},{"$f":"'Population 2016'!F140/'Population 2016'!F$5","v":9.188771568374967E-3},{"$f":"'Population 2016'!G140/'Population 2016'!G$5","v":9.1890867752936721E-3},{"$f":"'Population 2016'!H140/'Population 2016'!H$5","v":4.9803348107894281E-3},{"$f":"'Population 2016'!I140/'Population 2016'!I$5","v":9.8819194372330634E-3},{"$f":"'Population 2016'!J140/'Population 2016'!J$5","v":7.5300830133600925E-3},{"$f":"'Population 2016'!K140/'Population 2016'!K$5","v":6.0482918300808017E-3},{"$f":"'Population 2016'!L140/'Population 2016'!L$5","v":9.9915810207615204E-3},{"$f":"'Population 2016'!M140/'Population 2016'!M$5","v":9.9915810207615204E-3},{"$f":"'Population 2016'!N140/'Population 2016'!N$5","v":6.8798675464752735E-3},{"$f":"'Population 2016'!O140/'Population 2016'!O$5","v":4.9137615042450537E-3},{"$f":"'Population 2016'!P140/'Population 2016'!P$5","v":2.4343514031331002E-3},{"$f":"'Population 2016'!Q140/'Population 2016'!Q$5","v":7.367716008037508E-3},{"$f":"'Population 2016'!R140/'Population 2016'!R$5","v":3.4332251024644703E-3},{"$f":"'Population 2016'!S140/'Population 2016'!S$5","v":8.8080413648712816E-3},{"$f":"'Population 2016'!T140/'Population 2016'!T$5","v":1.0648990474772338E-2},{"$f":"'Population 2016'!U140/'Population 2016'!U$5","v":1.6155446377196476E-2},{"$f":"'Population 2016'!V140/'Population 2016'!V$5","v":5.9532441364361435E-3},{"$f":"'Population 2016'!W140/'Population 2016'!W$5","v":7.3506821197680729E-3},{"$f":"'Population 2016'!X140/'Population 2016'!X$5","v":7.3506821197680729E-3},{"$f":"'Population 2016'!Y140/'Population 2016'!Y$5","v":6.7089553425223767E-3},{"$f":"'Population 2016'!Z140/'Population 2016'!Z$5","v":1.0222945780252157E-2},{"$f":"'Population 2016'!AA140/'Population 2016'!AA$5","v":7.1188586971325917E-3},{"$f":"'Population 2016'!AB140/'Population 2016'!AB$5","v":8.3027133250770189E-3},{"$f":"'Population 2016'!AC140/'Population 2016'!AC$5","v":7.5917264661651022E-3},{"$f":"'Population 2016'!AD140/'Population 2016'!AD$5","v":8.667981688935204E-3},{"$f":"'Population 2016'!AE140/'Population 2016'!AE$5","v":8.470312836887442E-3},{"$f":"'Population 2016'!AF140/'Population 2016'!AF$5","v":4.8108099956265362E-3},{"$f":"'Population 2016'!AG140/'Population 2016'!AG$5","v":8.470312836887442E-3},{"$f":"'Population 2016'!AH140/'Population 2016'!AH$5","v":6.2695633597429018E-3},{"$f":"'Population 2016'!AI140/'Population 2016'!AI$5","v":9.2773864730072621E-3},{"$f":"'Population 2016'!AJ140/'Population 2016'!AJ$5","v":7.1940440007807489E-3},{"$f":"'Population 2016'!AK140/'Population 2016'!AK$5","v":8.6745533862187755E-3},{"$f":"'Population 2016'!AL140/'Population 2016'!AL$5","v":4.2124119827601494E-3},{"$f":"'Population 2016'!AM140/'Population 2016'!AM$5","v":6.1972320720342202E-3},{"$f":"'Population 2016'!AN140/'Population 2016'!AN$5","v":9.2178466237591364E-3},{"$f":"'Population 2016'!AO140/'Population 2016'!AO$5","v":9.2178466237591364E-3},{"$f":"'Population 2016'!AP140/'Population 2016'!AP$5","v":7.0859026996179632E-3},{"$f":"'Population 2016'!AQ140/'Population 2016'!AQ$5","v":5.9735846988546067E-3},{"$f":"'Population 2016'!AR140/'Population 2016'!AR$5","v":7.7771636543802628E-3},{"$f":"'Population 2016'!AS140/'Population 2016'!AS$5","v":9.8819194372330634E-3},{"$f":"'Population 2016'!AT140/'Population 2016'!AT$5","v":9.1211050772394154E-3},{"$f":"'Population 2016'!AU140/'Population 2016'!AU$5","v":9.1211050772394154E-3},{"$f":"'Population 2016'!AV140/'Population 2016'!AV$5","v":5.9655791363108441E-3},{"$f":"'Population 2016'!AW140/'Population 2016'!AW$5","v":6.3457196900359994E-3},{"$f":"'Population 2016'!AX140/'Population 2016'!AX$5","v":8.3315230586401209E-3},{"$f":"'Population 2016'!AY140/'Population 2016'!AY$5","v":7.4829411584712829E-3},{"$f":"'Population 2016'!AZ140/'Population 2016'!AZ$5","v":7.5993349862797776E-3},{"$f":"'Population 2016'!BA140/'Population 2016'!BA$5","v":5.3174260418915997E-3},{"$f":"'Population 2016'!BB140/'Population 2016'!BB$5","v":7.3607092796033778E-3},{"$f":"'Population 2016'!BC140/'Population 2016'!BC$5","v":1.6155446377196476E-2},138]
[null,"Female 25-29",{"$f":"'Population 2016'!C141/'Population 2016'!C$5","v":1.0227290151441583E-2},{"$f":"'Population 2016'!D141/'Population 2016'!D$5","v":8.3599855246813959E-3},{"$f":"'Population 2016'!E141/'Population 2016'!E$5","v":6.6473216169211369E-3},{"$f":"'Population 2016'!F141/'Population 2016'!F$5","v":8.3543651815606492E-3},{"$f":"'Population 2016'!G141/'Population 2016'!G$5","v":9.852216748768473E-3},{"$f":"'Population 2016'!H141/'Population 2016'!H$5","v":5.0873341914899825E-3},{"$f":"'Population 2016'!I141/'Population 2016'!I$5","v":8.0499958127460015E-3},{"$f":"'Population 2016'!J141/'Population 2016'!J$5","v":6.9910352205534779E-3},{"$f":"'Population 2016'!K141/'Population 2016'!K$5","v":6.2609270897320797E-3},{"$f":"'Population 2016'!L141/'Population 2016'!L$5","v":1.0396645116197799E-2},{"$f":"'Population 2016'!M141/'Population 2016'!M$5","v":1.0396645116197799E-2},{"$f":"'Population 2016'!N141/'Population 2016'!N$5","v":7.6916276191318182E-3},{"$f":"'Population 2016'!O141/'Population 2016'!O$5","v":5.3001258160707736E-3},{"$f":"'Population 2016'!P141/'Population 2016'!P$5","v":2.2540290769750928E-3},{"$f":"'Population 2016'!Q141/'Population 2016'!Q$5","v":6.9446892515951635E-3},{"$f":"'Population 2016'!R141/'Population 2016'!R$5","v":3.5396816947889497E-3},{"$f":"'Population 2016'!S141/'Population 2016'!S$5","v":9.8548734180567057E-3},{"$f":"'Population 2016'!T141/'Population 2016'!T$5","v":1.3108239531323434E-2},{"$f":"'Population 2016'!U141/'Population 2016'!U$5","v":1.8279998229540122E-2},{"$f":"'Population 2016'!V141/'Population 2016'!V$5","v":6.0219354149334842E-3},{"$f":"'Population 2016'!W141/'Population 2016'!W$5","v":8.1154929761601269E-3},{"$f":"'Population 2016'!X141/'Population 2016'!X$5","v":8.1154929761601269E-3},{"$f":"'Population 2016'!Y141/'Population 2016'!Y$5","v":6.4863833643344299E-3},{"$f":"'Population 2016'!Z141/'Population 2016'!Z$5","v":9.6344633872969109E-3},{"$f":"'Population 2016'!AA141/'Population 2016'!AA$5","v":7.0397971773044276E-3},{"$f":"'Population 2016'!AB141/'Population 2016'!AB$5","v":8.4930861897792292E-3},{"$f":"'Population 2016'!AC141/'Population 2016'!AC$5","v":7.2566148346886045E-3},{"$f":"'Population 2016'!AD141/'Population 2016'!AD$5","v":9.3378986936618405E-3},{"$f":"'Population 2016'!AE141/'Population 2016'!AE$5","v":9.142804340906991E-3},{"$f":"'Population 2016'!AF141/'Population 2016'!AF$5","v":4.6298390867001464E-3},{"$f":"'Population 2016'!AG141/'Population 2016'!AG$5","v":9.142804340906991E-3},{"$f":"'Population 2016'!AH141/'Population 2016'!AH$5","v":6.6503812823346924E-3},{"$f":"'Population 2016'!AI141/'Population 2016'!AI$5","v":1.0818149006912241E-2},{"$f":"'Population 2016'!AJ141/'Population 2016'!AJ$5","v":8.1002704737473154E-3},{"$f":"'Population 2016'!AK141/'Population 2016'!AK$5","v":9.1774260462894278E-3},{"$f":"'Population 2016'!AL141/'Population 2016'!AL$5","v":3.8133413738670827E-3},{"$f":"'Population 2016'!AM141/'Population 2016'!AM$5","v":6.8310810566081471E-3},{"$f":"'Population 2016'!AN141/'Population 2016'!AN$5","v":1.0035998690956692E-2},{"$f":"'Population 2016'!AO141/'Population 2016'!AO$5","v":1.0035998690956692E-2},{"$f":"'Population 2016'!AP141/'Population 2016'!AP$5","v":7.3553889320419133E-3},{"$f":"'Population 2016'!AQ141/'Population 2016'!AQ$5","v":6.0489395517071302E-3},{"$f":"'Population 2016'!AR141/'Population 2016'!AR$5","v":8.1162310586187832E-3},{"$f":"'Population 2016'!AS141/'Population 2016'!AS$5","v":8.0499958127460015E-3},{"$f":"'Population 2016'!AT141/'Population 2016'!AT$5","v":1.107186165445247E-2},{"$f":"'Population 2016'!AU141/'Population 2016'!AU$5","v":1.107186165445247E-2},{"$f":"'Population 2016'!AV141/'Population 2016'!AV$5","v":6.3773624749234505E-3},{"$f":"'Population 2016'!AW141/'Population 2016'!AW$5","v":6.4601256940630914E-3},{"$f":"'Population 2016'!AX141/'Population 2016'!AX$5","v":7.3859207483036662E-3},{"$f":"'Population 2016'!AY141/'Population 2016'!AY$5","v":7.9235641504237942E-3},{"$f":"'Population 2016'!AZ141/'Population 2016'!AZ$5","v":7.7546582600341715E-3},{"$f":"'Population 2016'!BA141/'Population 2016'!BA$5","v":5.1689699848844741E-3},{"$f":"'Population 2016'!BB141/'Population 2016'!BB$5","v":7.6438134826650461E-3},{"$f":"'Population 2016'!BC141/'Population 2016'!BC$5","v":1.8279998229540122E-2},139]
[null,"Female 30-34",{"$f":"'Population 2016'!C142/'Population 2016'!C$5","v":8.0755214589093953E-3},{"$f":"'Population 2016'!D142/'Population 2016'!D$5","v":7.6337744393259197E-3},{"$f":"'Population 2016'!E142/'Population 2016'!E$5","v":7.2286106722795436E-3},{"$f":"'Population 2016'!F142/'Population 2016'!F$5","v":1.0311614730878186E-2},{"$f":"'Population 2016'!G142/'Population 2016'!G$5","v":1.1164943430953284E-2},{"$f":"'Population 2016'!H142/'Population 2016'!H$5","v":5.4602108212040345E-3},{"$f":"'Population 2016'!I142/'Population 2016'!I$5","v":9.9237919772213381E-3},{"$f":"'Population 2016'!J142/'Population 2016'!J$5","v":5.7221996467163696E-3},{"$f":"'Population 2016'!K142/'Population 2016'!K$5","v":6.4735623493833577E-3},{"$f":"'Population 2016'!L142/'Population 2016'!L$5","v":9.9598112877861255E-3},{"$f":"'Population 2016'!M142/'Population 2016'!M$5","v":9.9598112877861255E-3},{"$f":"'Population 2016'!N142/'Population 2016'!N$5","v":4.9509327203607111E-3},{"$f":"'Population 2016'!O142/'Population 2016'!O$5","v":5.4982613605967842E-3},{"$f":"'Population 2016'!P142/'Population 2016'!P$5","v":1.8144934069649499E-3},{"$f":"'Population 2016'!Q142/'Population 2016'!Q$5","v":7.1327011433473166E-3},{"$f":"'Population 2016'!R142/'Population 2016'!R$5","v":3.7392878053973491E-3},{"$f":"'Population 2016'!S142/'Population 2016'!S$5","v":8.9060163715353486E-3},{"$f":"'Population 2016'!T142/'Population 2016'!T$5","v":1.0044066392744634E-2},{"$f":"'Population 2016'!U142/'Population 2016'!U$5","v":2.0050458106493162E-2},{"$f":"'Population 2016'!V142/'Population 2016'!V$5","v":7.006510406728692E-3},{"$f":"'Population 2016'!W142/'Population 2016'!W$5","v":7.752698082743383E-3},{"$f":"'Population 2016'!X142/'Population 2016'!X$5","v":7.752698082743383E-3},{"$f":"'Population 2016'!Y142/'Population 2016'!Y$5","v":6.390995373682453E-3},{"$f":"'Population 2016'!Z142/'Population 2016'!Z$5","v":7.6502711084182017E-3},{"$f":"'Population 2016'!AA142/'Population 2016'!AA$5","v":6.6391745180070915E-3},{"$f":"'Population 2016'!AB142/'Population 2016'!AB$5","v":8.1225755606276172E-3},{"$f":"'Population 2016'!AC142/'Population 2016'!AC$5","v":6.2264568564460374E-3},{"$f":"'Population 2016'!AD142/'Population 2016'!AD$5","v":1.0212512560943838E-2},{"$f":"'Population 2016'!AE142/'Population 2016'!AE$5","v":9.8512305054466679E-3},{"$f":"'Population 2016'!AF142/'Population 2016'!AF$5","v":4.0567645417665778E-3},{"$f":"'Population 2016'!AG142/'Population 2016'!AG$5","v":9.8512305054466679E-3},{"$f":"'Population 2016'!AH142/'Population 2016'!AH$5","v":7.3804371046691996E-3},{"$f":"'Population 2016'!AI142/'Population 2016'!AI$5","v":9.2555122932890012E-3},{"$f":"'Population 2016'!AJ142/'Population 2016'!AJ$5","v":8.5742966288375206E-3},{"$f":"'Population 2016'!AK142/'Population 2016'!AK$5","v":1.0635756760494323E-2},{"$f":"'Population 2016'!AL142/'Population 2016'!AL$5","v":4.1237296252283574E-3},{"$f":"'Population 2016'!AM142/'Population 2016'!AM$5","v":7.7981535073580813E-3},{"$f":"'Population 2016'!AN142/'Population 2016'!AN$5","v":1.1072324642740263E-2},{"$f":"'Population 2016'!AO142/'Population 2016'!AO$5","v":1.1072324642740263E-2},{"$f":"'Population 2016'!AP142/'Population 2016'!AP$5","v":7.8705831999112286E-3},{"$f":"'Population 2016'!AQ142/'Population 2016'!AQ$5","v":6.6654792568641421E-3},{"$f":"'Population 2016'!AR142/'Population 2016'!AR$5","v":7.7515442381598755E-3},{"$f":"'Population 2016'!AS142/'Population 2016'!AS$5","v":9.9237919772213381E-3},{"$f":"'Population 2016'!AT142/'Population 2016'!AT$5","v":9.9119523382717352E-3},{"$f":"'Population 2016'!AU142/'Population 2016'!AU$5","v":9.9119523382717352E-3},{"$f":"'Population 2016'!AV142/'Population 2016'!AV$5","v":7.0108753035582304E-3},{"$f":"'Population 2016'!AW142/'Population 2016'!AW$5","v":6.9406309109768744E-3},{"$f":"'Population 2016'!AX142/'Population 2016'!AX$5","v":5.3158183932427768E-3},{"$f":"'Population 2016'!AY142/'Population 2016'!AY$5","v":7.6221657844007225E-3},{"$f":"'Population 2016'!AZ142/'Population 2016'!AZ$5","v":7.5072915647956921E-3},{"$f":"'Population 2016'!BA142/'Population 2016'!BA$5","v":5.1824659900669406E-3},{"$f":"'Population 2016'!BB142/'Population 2016'!BB$5","v":8.5000310724125307E-3},{"$f":"'Population 2016'!BC142/'Population 2016'!BC$5","v":2.0050458106493162E-2},140]
[null,"Female 35-39",{"$f":"'Population 2016'!C143/'Population 2016'!C$5","v":5.0395342775219395E-3},{"$f":"'Population 2016'!D143/'Population 2016'!D$5","v":6.0811009066635367E-3},{"$f":"'Population 2016'!E143/'Population 2016'!E$5","v":7.0364102588142642E-3},{"$f":"'Population 2016'!F143/'Population 2016'!F$5","v":1.106361061035282E-2},{"$f":"'Population 2016'!G143/'Population 2016'!G$5","v":1.1422075461484328E-2},{"$f":"'Population 2016'!H143/'Population 2016'!H$5","v":5.5509981745257174E-3},{"$f":"'Population 2016'!I143/'Population 2016'!I$5","v":9.4317896323590986E-3},{"$f":"'Population 2016'!J143/'Population 2016'!J$5","v":5.8051300763789261E-3},{"$f":"'Population 2016'!K143/'Population 2016'!K$5","v":5.5993951708169917E-3},{"$f":"'Population 2016'!L143/'Population 2016'!L$5","v":9.7930201896653055E-3},{"$f":"'Population 2016'!M143/'Population 2016'!M$5","v":9.7930201896653055E-3},{"$f":"'Population 2016'!N143/'Population 2016'!N$5","v":3.8659068806712695E-3},{"$f":"'Population 2016'!O143/'Population 2016'!O$5","v":5.3991935883337793E-3},{"$f":"'Population 2016'!P143/'Population 2016'!P$5","v":2.1976783500507156E-3},{"$f":"'Population 2016'!Q143/'Population 2016'!Q$5","v":7.2737100621614315E-3},{"$f":"'Population 2016'!R143/'Population 2016'!R$5","v":3.9255868419651885E-3},{"$f":"'Population 2016'!S143/'Population 2016'!S$5","v":7.6994232714472583E-3},{"$f":"'Population 2016'!T143/'Population 2016'!T$5","v":6.8589084377602919E-3},{"$f":"'Population 2016'!U143/'Population 2016'!U$5","v":2.4211038817332803E-2},{"$f":"'Population 2016'!V143/'Population 2016'!V$5","v":7.1286282351684079E-3},{"$f":"'Population 2016'!W143/'Population 2016'!W$5","v":7.994561345021212E-3},{"$f":"'Population 2016'!X143/'Population 2016'!X$5","v":7.994561345021212E-3},{"$f":"'Population 2016'!Y143/'Population 2016'!Y$5","v":6.4943323635554282E-3},{"$f":"'Population 2016'!Z143/'Population 2016'!Z$5","v":5.7996488463615721E-3},{"$f":"'Population 2016'!AA143/'Population 2016'!AA$5","v":6.1196273877077278E-3},{"$f":"'Population 2016'!AB143/'Population 2016'!AB$5","v":6.5422760815942189E-3},{"$f":"'Population 2016'!AC143/'Population 2016'!AC$5","v":5.3411002004464022E-3},{"$f":"'Population 2016'!AD143/'Population 2016'!AD$5","v":1.0789385537236219E-2},{"$f":"'Population 2016'!AE143/'Population 2016'!AE$5","v":1.054938962412345E-2},{"$f":"'Population 2016'!AF143/'Population 2016'!AF$5","v":5.625179085795292E-3},{"$f":"'Population 2016'!AG143/'Population 2016'!AG$5","v":1.054938962412345E-2},{"$f":"'Population 2016'!AH143/'Population 2016'!AH$5","v":7.5179030864828212E-3},{"$f":"'Population 2016'!AI143/'Population 2016'!AI$5","v":7.3497243853355501E-3},{"$f":"'Population 2016'!AJ143/'Population 2016'!AJ$5","v":8.630064411789309E-3},{"$f":"'Population 2016'!AK143/'Population 2016'!AK$5","v":8.913417899752335E-3},{"$f":"'Population 2016'!AL143/'Population 2016'!AL$5","v":4.4252496408364516E-3},{"$f":"'Population 2016'!AM143/'Population 2016'!AM$5","v":8.0335831301998253E-3},{"$f":"'Population 2016'!AN143/'Population 2016'!AN$5","v":7.745172902803534E-3},{"$f":"'Population 2016'!AO143/'Population 2016'!AO$5","v":7.745172902803534E-3},{"$f":"'Population 2016'!AP143/'Population 2016'!AP$5","v":7.2523500784680501E-3},{"$f":"'Population 2016'!AQ143/'Population 2016'!AQ$5","v":6.3709102866224589E-3},{"$f":"'Population 2016'!AR143/'Population 2016'!AR$5","v":7.1193016013471801E-3},{"$f":"'Population 2016'!AS143/'Population 2016'!AS$5","v":9.4317896323590986E-3},{"$f":"'Population 2016'!AT143/'Population 2016'!AT$5","v":1.001739863974271E-2},{"$f":"'Population 2016'!AU143/'Population 2016'!AU$5","v":1.001739863974271E-2},{"$f":"'Population 2016'!AV143/'Population 2016'!AV$5","v":7.0531094921338824E-3},{"$f":"'Population 2016'!AW143/'Population 2016'!AW$5","v":6.9749527121850024E-3},{"$f":"'Population 2016'!AX143/'Population 2016'!AX$5","v":5.9164036444024175E-3},{"$f":"'Population 2016'!AY143/'Population 2016'!AY$5","v":7.5211896820782716E-3},{"$f":"'Population 2016'!AZ143/'Population 2016'!AZ$5","v":7.1046015958028197E-3},{"$f":"'Population 2016'!BA143/'Population 2016'!BA$5","v":5.0610019434247462E-3},{"$f":"'Population 2016'!BB143/'Population 2016'!BB$5","v":8.2169268693508633E-3},{"$f":"'Population 2016'!BC143/'Population 2016'!BC$5","v":2.4211038817332803E-2},141]
[null,"Female 40-44",{"$f":"'Population 2016'!C144/'Population 2016'!C$5","v":4.4415368024001674E-3},{"$f":"'Population 2016'!D144/'Population 2016'!D$5","v":6.0884363721721776E-3},{"$f":"'Population 2016'!E144/'Population 2016'!E$5","v":7.5989480543224002E-3},{"$f":"'Population 2016'!F144/'Population 2016'!F$5","v":1.2856039144990986E-2},{"$f":"'Population 2016'!G144/'Population 2016'!G$5","v":1.4182861473501868E-2},{"$f":"'Population 2016'!H144/'Population 2016'!H$5","v":6.4556293022667655E-3},{"$f":"'Population 2016'!I144/'Population 2016'!I$5","v":1.2572230131479775E-2},{"$f":"'Population 2016'!J144/'Population 2016'!J$5","v":6.4105222129155854E-3},{"$f":"'Population 2016'!K144/'Population 2016'!K$5","v":6.9224590086471669E-3},{"$f":"'Population 2016'!L144/'Population 2016'!L$5","v":1.2453735326354583E-2},{"$f":"'Population 2016'!M144/'Population 2016'!M$5","v":1.2453735326354583E-2},{"$f":"'Population 2016'!N144/'Population 2016'!N$5","v":3.3917104025847728E-3},{"$f":"'Population 2016'!O144/'Population 2016'!O$5","v":6.5186594149057369E-3},{"$f":"'Population 2016'!P144/'Population 2016'!P$5","v":2.4005409669784739E-3},{"$f":"'Population 2016'!Q144/'Population 2016'!Q$5","v":8.0257576291700456E-3},{"$f":"'Population 2016'!R144/'Population 2016'!R$5","v":4.1385000266141482E-3},{"$f":"'Population 2016'!S144/'Population 2016'!S$5","v":7.6146881305486072E-3},{"$f":"'Population 2016'!T144/'Population 2016'!T$5","v":5.4606031558424037E-3},{"$f":"'Population 2016'!U144/'Population 2016'!U$5","v":2.5406099234276103E-2},{"$f":"'Population 2016'!V144/'Population 2016'!V$5","v":7.632364277482236E-3},{"$f":"'Population 2016'!W144/'Population 2016'!W$5","v":7.9553402754626457E-3},{"$f":"'Population 2016'!X144/'Population 2016'!X$5","v":7.9553402754626457E-3},{"$f":"'Population 2016'!Y144/'Population 2016'!Y$5","v":7.0467878094147944E-3},{"$f":"'Population 2016'!Z144/'Population 2016'!Z$5","v":4.8549797418807822E-3},{"$f":"'Population 2016'!AA144/'Population 2016'!AA$5","v":6.0286069825274038E-3},{"$f":"'Population 2016'!AB144/'Population 2016'!AB$5","v":6.8349999488244986E-3},{"$f":"'Population 2016'!AC144/'Population 2016'!AC$5","v":5.0452917850072714E-3},{"$f":"'Population 2016'!AD144/'Population 2016'!AD$5","v":1.2095723696453162E-2},{"$f":"'Population 2016'!AE144/'Population 2016'!AE$5","v":1.1304017495046151E-2},{"$f":"'Population 2016'!AF144/'Population 2016'!AF$5","v":6.2585772670376572E-3},{"$f":"'Population 2016'!AG144/'Population 2016'!AG$5","v":1.1304017495046151E-2},{"$f":"'Population 2016'!AH144/'Population 2016'!AH$5","v":7.7946926985129521E-3},{"$f":"'Population 2016'!AI144/'Population 2016'!AI$5","v":6.8247440720972967E-3},{"$f":"'Population 2016'!AJ144/'Population 2016'!AJ$5","v":9.1877422413071969E-3},{"$f":"'Population 2016'!AK144/'Population 2016'!AK$5","v":1.0673472209999623E-2},{"$f":"'Population 2016'!AL144/'Population 2016'!AL$5","v":5.1967861513630481E-3},{"$f":"'Population 2016'!AM144/'Population 2016'!AM$5","v":8.3016107008196567E-3},{"$f":"'Population 2016'!AN144/'Population 2016'!AN$5","v":1.0526889931275226E-2},{"$f":"'Population 2016'!AO144/'Population 2016'!AO$5","v":1.0526889931275226E-2},{"$f":"'Population 2016'!AP144/'Population 2016'!AP$5","v":8.1955518919518723E-3},{"$f":"'Population 2016'!AQ144/'Population 2016'!AQ$5","v":7.0354030799583489E-3},{"$f":"'Population 2016'!AR144/'Population 2016'!AR$5","v":7.4164868295036766E-3},{"$f":"'Population 2016'!AS144/'Population 2016'!AS$5","v":1.2572230131479775E-2},{"$f":"'Population 2016'!AT144/'Population 2016'!AT$5","v":1.0439183845626615E-2},{"$f":"'Population 2016'!AU144/'Population 2016'!AU$5","v":1.0439183845626615E-2},{"$f":"'Population 2016'!AV144/'Population 2016'!AV$5","v":7.8872347165030096E-3},{"$f":"'Population 2016'!AW144/'Population 2016'!AW$5","v":7.2609677222527308E-3},{"$f":"'Population 2016'!AX144/'Population 2016'!AX$5","v":6.1336366075878199E-3},{"$f":"'Population 2016'!AY144/'Population 2016'!AY$5","v":7.8608365717083312E-3},{"$f":"'Population 2016'!AZ144/'Population 2016'!AZ$5","v":7.7776691154051924E-3},{"$f":"'Population 2016'!BA144/'Population 2016'!BA$5","v":5.4523860937162596E-3},{"$f":"'Population 2016'!BB144/'Population 2016'!BB$5","v":8.9971896729110715E-3},{"$f":"'Population 2016'!BC144/'Population 2016'!BC$5","v":2.5406099234276103E-2},142]
[null,"Female 45-49",{"$f":"'Population 2016'!C145/'Population 2016'!C$5","v":4.5744251302050057E-3},{"$f":"'Population 2016'!D145/'Population 2016'!D$5","v":7.2816720949111426E-3},{"$f":"'Population 2016'!E145/'Population 2016'!E$5","v":9.7647185670287229E-3},{"$f":"'Population 2016'!F145/'Population 2016'!F$5","v":1.4576358485706927E-2},{"$f":"'Population 2016'!G145/'Population 2016'!G$5","v":1.7512044605640664E-2},{"$f":"'Population 2016'!H145/'Population 2016'!H$5","v":8.2486795303699911E-3},{"$f":"'Population 2016'!I145/'Population 2016'!I$5","v":1.622560924545683E-2},{"$f":"'Population 2016'!J145/'Population 2016'!J$5","v":7.7954603882802714E-3},{"$f":"'Population 2016'!K145/'Population 2016'!K$5","v":9.2850730047724806E-3},{"$f":"'Population 2016'!L145/'Population 2016'!L$5","v":1.717154067320064E-2},{"$f":"'Population 2016'!M145/'Population 2016'!M$5","v":1.717154067320064E-2},{"$f":"'Population 2016'!N145/'Population 2016'!N$5","v":4.3079544449891897E-3},{"$f":"'Population 2016'!O145/'Population 2016'!O$5","v":8.5990826324288446E-3},{"$f":"'Population 2016'!P145/'Population 2016'!P$5","v":3.4937450693113942E-3},{"$f":"'Population 2016'!Q145/'Population 2016'!Q$5","v":1.1069200126908027E-2},{"$f":"'Population 2016'!R145/'Population 2016'!R$5","v":4.7506254324799066E-3},{"$f":"'Population 2016'!S145/'Population 2016'!S$5","v":8.9227868681715384E-3},{"$f":"'Population 2016'!T145/'Population 2016'!T$5","v":4.8719654914077511E-3},{"$f":"'Population 2016'!U145/'Population 2016'!U$5","v":3.1381401318992606E-2},{"$f":"'Population 2016'!V145/'Population 2016'!V$5","v":8.6169392692774446E-3},{"$f":"'Population 2016'!W145/'Population 2016'!W$5","v":9.8967832186117044E-3},{"$f":"'Population 2016'!X145/'Population 2016'!X$5","v":9.8967832186117044E-3},{"$f":"'Population 2016'!Y145/'Population 2016'!Y$5","v":8.2232396941225097E-3},{"$f":"'Population 2016'!Z145/'Population 2016'!Z$5","v":5.2924699419067221E-3},{"$f":"'Population 2016'!AA145/'Population 2016'!AA$5","v":7.2258242827824603E-3},{"$f":"'Population 2016'!AB145/'Population 2016'!AB$5","v":8.1430457611332309E-3},{"$f":"'Population 2016'!AC145/'Population 2016'!AC$5","v":6.0475237939601302E-3},{"$f":"'Population 2016'!AD145/'Population 2016'!AD$5","v":1.5560683315344822E-2},{"$f":"'Population 2016'!AE145/'Population 2016'!AE$5","v":1.4820480703087301E-2},{"$f":"'Population 2016'!AF145/'Population 2016'!AF$5","v":7.374564538750396E-3},{"$f":"'Population 2016'!AG145/'Population 2016'!AG$5","v":1.4820480703087301E-2},{"$f":"'Population 2016'!AH145/'Population 2016'!AH$5","v":9.3421138181176457E-3},{"$f":"'Population 2016'!AI145/'Population 2016'!AI$5","v":7.5616305013561994E-3},{"$f":"'Population 2016'!AJ145/'Population 2016'!AJ$5","v":1.2115550846276106E-2},{"$f":"'Population 2016'!AK145/'Population 2016'!AK$5","v":1.257181650176634E-2},{"$f":"'Population 2016'!AL145/'Population 2016'!AL$5","v":6.5979674003653717E-3},{"$f":"'Population 2016'!AM145/'Population 2016'!AM$5","v":9.0622294823083701E-3},{"$f":"'Population 2016'!AN145/'Population 2016'!AN$5","v":1.4181302498090978E-2},{"$f":"'Population 2016'!AO145/'Population 2016'!AO$5","v":1.4181302498090978E-2},{"$f":"'Population 2016'!AP145/'Population 2016'!AP$5","v":1.0850783887893727E-2},{"$f":"'Population 2016'!AQ145/'Population 2016'!AQ$5","v":9.4330574889022849E-3},{"$f":"'Population 2016'!AR145/'Population 2016'!AR$5","v":9.0198167298352356E-3},{"$f":"'Population 2016'!AS145/'Population 2016'!AS$5","v":1.622560924545683E-2},{"$f":"'Population 2016'!AT145/'Population 2016'!AT$5","v":1.4762482205936628E-2},{"$f":"'Population 2016'!AU145/'Population 2016'!AU$5","v":1.4762482205936628E-2},{"$f":"'Population 2016'!AV145/'Population 2016'!AV$5","v":9.8405659381269137E-3},{"$f":"'Population 2016'!AW145/'Population 2016'!AW$5","v":9.6367990725486612E-3},{"$f":"'Population 2016'!AX145/'Population 2016'!AX$5","v":6.9897900507302864E-3},{"$f":"'Population 2016'!AY145/'Population 2016'!AY$5","v":9.7120651142865878E-3},{"$f":"'Population 2016'!AZ145/'Population 2016'!AZ$5","v":9.5495049789738311E-3},{"$f":"'Population 2016'!BA145/'Population 2016'!BA$5","v":7.827683005830274E-3},{"$f":"'Population 2016'!BB145/'Population 2016'!BB$5","v":1.1227498394592019E-2},{"$f":"'Population 2016'!BC145/'Population 2016'!BC$5","v":3.1381401318992606E-2},143]
[null,"Female 50-54",{"$f":"'Population 2016'!C146/'Population 2016'!C$5","v":5.0906451728314926E-3},{"$f":"'Population 2016'!D146/'Population 2016'!D$5","v":7.5164069911876604E-3},{"$f":"'Population 2016'!E146/'Population 2016'!E$5","v":9.7412794922158829E-3},{"$f":"'Population 2016'!F146/'Population 2016'!F$5","v":1.6358485706927633E-2},{"$f":"'Population 2016'!G146/'Population 2016'!G$5","v":2.1815622800844477E-2},{"$f":"'Population 2016'!H146/'Population 2016'!H$5","v":9.1597954690625875E-3},{"$f":"'Population 2016'!I146/'Population 2016'!I$5","v":1.6675739050330794E-2},{"$f":"'Population 2016'!J146/'Population 2016'!J$5","v":8.2681638373568421E-3},{"$f":"'Population 2016'!K146/'Population 2016'!K$5","v":9.5685866843075174E-3},{"$f":"'Population 2016'!L146/'Population 2016'!L$5","v":1.8585293790605691E-2},{"$f":"'Population 2016'!M146/'Population 2016'!M$5","v":1.8585293790605691E-2},{"$f":"'Population 2016'!N146/'Population 2016'!N$5","v":5.3045707718150474E-3},{"$f":"'Population 2016'!O146/'Population 2016'!O$5","v":9.1736757115542748E-3},{"$f":"'Population 2016'!P146/'Population 2016'!P$5","v":2.9978586723768737E-3},{"$f":"'Population 2016'!Q146/'Population 2016'!Q$5","v":9.9763810060986349E-3},{"$f":"'Population 2016'!R146/'Population 2016'!R$5","v":5.3760579123862248E-3},{"$f":"'Population 2016'!S146/'Population 2016'!S$5","v":9.0675427338734026E-3},{"$f":"'Population 2016'!T146/'Population 2016'!T$5","v":4.8161263453744248E-3},{"$f":"'Population 2016'!U146/'Population 2016'!U$5","v":3.1824016288230866E-2},{"$f":"'Population 2016'!V146/'Population 2016'!V$5","v":9.1283076758687538E-3},{"$f":"'Population 2016'!W146/'Population 2016'!W$5","v":1.0691009877172683E-2},{"$f":"'Population 2016'!X146/'Population 2016'!X$5","v":1.0691009877172683E-2},{"$f":"'Population 2016'!Y146/'Population 2016'!Y$5","v":8.7160776458243914E-3},{"$f":"'Population 2016'!Z146/'Population 2016'!Z$5","v":5.5383162047531569E-3},{"$f":"'Population 2016'!AA146/'Population 2016'!AA$5","v":7.2876118571019504E-3},{"$f":"'Population 2016'!AB146/'Population 2016'!AB$5","v":8.5319795707398949E-3},{"$f":"'Population 2016'!AC146/'Population 2016'!AC$5","v":6.1819821646142805E-3},{"$f":"'Population 2016'!AD146/'Population 2016'!AD$5","v":1.7637426029997395E-2},{"$f":"'Population 2016'!AE146/'Population 2016'!AE$5","v":1.6052526206634565E-2},{"$f":"'Population 2016'!AF146/'Population 2016'!AF$5","v":8.2341763561507488E-3},{"$f":"'Population 2016'!AG146/'Population 2016'!AG$5","v":1.6052526206634565E-2},{"$f":"'Population 2016'!AH146/'Population 2016'!AH$5","v":9.273380827210834E-3},{"$f":"'Population 2016'!AI146/'Population 2016'!AI$5","v":7.3948398810044624E-3},{"$f":"'Population 2016'!AJ146/'Population 2016'!AJ$5","v":1.219920252070379E-2},{"$f":"'Population 2016'!AK146/'Population 2016'!AK$5","v":1.3753567252932376E-2},{"$f":"'Population 2016'!AL146/'Population 2016'!AL$5","v":7.0768521310370517E-3},{"$f":"'Population 2016'!AM146/'Population 2016'!AM$5","v":8.7942019116885369E-3},{"$f":"'Population 2016'!AN146/'Population 2016'!AN$5","v":1.5490345805607068E-2},{"$f":"'Population 2016'!AO146/'Population 2016'!AO$5","v":1.5490345805607068E-2},{"$f":"'Population 2016'!AP146/'Population 2016'!AP$5","v":1.1865320292313301E-2},{"$f":"'Population 2016'!AQ146/'Population 2016'!AQ$5","v":9.1042363128185453E-3},{"$f":"'Population 2016'!AR146/'Population 2016'!AR$5","v":9.4762878936228371E-3},{"$f":"'Population 2016'!AS146/'Population 2016'!AS$5","v":1.6675739050330794E-2},{"$f":"'Population 2016'!AT146/'Population 2016'!AT$5","v":1.4867928507407603E-2},{"$f":"'Population 2016'!AU146/'Population 2016'!AU$5","v":1.4867928507407603E-2},{"$f":"'Population 2016'!AV146/'Population 2016'!AV$5","v":1.162496040544821E-2},{"$f":"'Population 2016'!AW146/'Population 2016'!AW$5","v":9.7778998108487402E-3},{"$f":"'Population 2016'!AX146/'Population 2016'!AX$5","v":7.5648184826916445E-3},{"$f":"'Population 2016'!AY146/'Population 2016'!AY$5","v":1.0734065665065328E-2},{"$f":"'Population 2016'!AZ146/'Population 2016'!AZ$5","v":1.0771956670559336E-2},{"$f":"'Population 2016'!BA146/'Population 2016'!BA$5","v":7.7062189591880804E-3},{"$f":"'Population 2016'!BB146/'Population 2016'!BB$5","v":1.1151543608404743E-2},{"$f":"'Population 2016'!BC146/'Population 2016'!BC$5","v":3.1824016288230866E-2},144]
[null,"Female 55-59",{"$f":"'Population 2016'!C147/'Population 2016'!C$5","v":4.6306471150455147E-3},{"$f":"'Population 2016'!D147/'Population 2016'!D$5","v":6.7681895093062603E-3},{"$f":"'Population 2016'!E147/'Population 2016'!E$5","v":8.7287114603012382E-3},{"$f":"'Population 2016'!F147/'Population 2016'!F$5","v":1.5884625289724438E-2},{"$f":"'Population 2016'!G147/'Population 2016'!G$5","v":2.0123964705245495E-2},{"$f":"'Population 2016'!H147/'Population 2016'!H$5","v":8.1060136894359185E-3},{"$f":"'Population 2016'!I147/'Population 2016'!I$5","v":1.6434971945398207E-2},{"$f":"'Population 2016'!J147/'Population 2016'!J$5","v":7.4471525836975359E-3},{"$f":"'Population 2016'!K147/'Population 2016'!K$5","v":9.1196900250437082E-3},{"$f":"'Population 2016'!L147/'Population 2016'!L$5","v":1.7258907438882976E-2},{"$f":"'Population 2016'!M147/'Population 2016'!M$5","v":1.7258907438882976E-2},{"$f":"'Population 2016'!N147/'Population 2016'!N$5","v":5.1277517460878788E-3},{"$f":"'Population 2016'!O147/'Population 2016'!O$5","v":8.0046759988508139E-3},{"$f":"'Population 2016'!P147/'Population 2016'!P$5","v":3.1443705623802548E-3},{"$f":"'Population 2016'!Q147/'Population 2016'!Q$5","v":9.8236213440500118E-3},{"$f":"'Population 2016'!R147/'Population 2016'!R$5","v":5.2562942460211851E-3},{"$f":"'Population 2016'!S147/'Population 2016'!S$5","v":8.2554976335946582E-3},{"$f":"'Population 2016'!T147/'Population 2016'!T$5","v":4.2367952052786602E-3},{"$f":"'Population 2016'!U147/'Population 2016'!U$5","v":3.0230602398973135E-2},{"$f":"'Population 2016'!V147/'Population 2016'!V$5","v":8.1666297769059926E-3},{"$f":"'Population 2016'!W147/'Population 2016'!W$5","v":9.7627778976199352E-3},{"$f":"'Population 2016'!X147/'Population 2016'!X$5","v":9.7627778976199352E-3},{"$f":"'Population 2016'!Y147/'Population 2016'!Y$5","v":7.8218152334621066E-3},{"$f":"'Population 2016'!Z147/'Population 2016'!Z$5","v":4.9459622171074153E-3},{"$f":"'Population 2016'!AA147/'Population 2016'!AA$5","v":6.7680647268025858E-3},{"$f":"'Population 2016'!AB147/'Population 2016'!AB$5","v":7.623102668290636E-3},{"$f":"'Population 2016'!AC147/'Population 2016'!AC$5","v":5.7072406866892416E-3},{"$f":"'Population 2016'!AD147/'Population 2016'!AD$5","v":1.6773977446127509E-2},{"$f":"'Population 2016'!AE147/'Population 2016'!AE$5","v":1.5503239252969743E-2},{"$f":"'Population 2016'!AF147/'Population 2016'!AF$5","v":8.611199083080728E-3},{"$f":"'Population 2016'!AG147/'Population 2016'!AG$5","v":1.5503239252969743E-2},{"$f":"'Population 2016'!AH147/'Population 2016'!AH$5","v":8.6733603930784029E-3},{"$f":"'Population 2016'!AI147/'Population 2016'!AI$5","v":6.5567853705486047E-3},{"$f":"'Population 2016'!AJ147/'Population 2016'!AJ$5","v":1.0651646543791651E-2},{"$f":"'Population 2016'!AK147/'Population 2016'!AK$5","v":1.2018656575688621E-2},{"$f":"'Population 2016'!AL147/'Population 2016'!AL$5","v":6.7753321154289566E-3},{"$f":"'Population 2016'!AM147/'Population 2016'!AM$5","v":7.7655555595799938E-3},{"$f":"'Population 2016'!AN147/'Population 2016'!AN$5","v":1.3308606959746918E-2},{"$f":"'Population 2016'!AO147/'Population 2016'!AO$5","v":1.3308606959746918E-2},{"$f":"'Population 2016'!AP147/'Population 2016'!AP$5","v":1.0874562084872311E-2},{"$f":"'Population 2016'!AQ147/'Population 2016'!AQ$5","v":8.0287170493779803E-3},{"$f":"'Population 2016'!AR147/'Population 2016'!AR$5","v":8.7224087241463896E-3},{"$f":"'Population 2016'!AS147/'Population 2016'!AS$5","v":1.6434971945398207E-2},{"$f":"'Population 2016'!AT147/'Population 2016'!AT$5","v":1.3813465492697843E-2},{"$f":"'Population 2016'!AU147/'Population 2016'!AU$5","v":1.3813465492697843E-2},{"$f":"'Population 2016'!AV147/'Population 2016'!AV$5","v":9.7983317495512617E-3},{"$f":"'Population 2016'!AW147/'Population 2016'!AW$5","v":9.6291720056135219E-3},{"$f":"'Population 2016'!AX147/'Population 2016'!AX$5","v":6.5425457147603406E-3},{"$f":"'Population 2016'!AY147/'Population 2016'!AY$5","v":1.0004283834643983E-2},{"$f":"'Population 2016'!AZ147/'Population 2016'!AZ$5","v":1.0216819784733449E-2},{"$f":"'Population 2016'!BA147/'Population 2016'!BA$5","v":7.368818829626431E-3},{"$f":"'Population 2016'!BB147/'Population 2016'!BB$5","v":9.4943482734096106E-3},{"$f":"'Population 2016'!BC147/'Population 2016'!BC$5","v":3.0230602398973135E-2},145]
[null,"Female 60-64",{"$f":"'Population 2016'!C148/'Population 2016'!C$5","v":4.2984262955334191E-3},{"$f":"'Population 2016'!D148/'Population 2016'!D$5","v":6.460099957943331E-3},{"$f":"'Population 2016'!E148/'Population 2016'!E$5","v":8.4427547475846038E-3},{"$f":"'Population 2016'!F148/'Population 2016'!F$5","v":1.4030388874581509E-2},{"$f":"'Population 2016'!G148/'Population 2016'!G$5","v":1.9934498998538407E-2},{"$f":"'Population 2016'!H148/'Population 2016'!H$5","v":7.4510477833294965E-3},{"$f":"'Population 2016'!I148/'Population 2016'!I$5","v":1.4812411020852526E-2},{"$f":"'Population 2016'!J148/'Population 2016'!J$5","v":6.9081047908909213E-3},{"$f":"'Population 2016'!K148/'Population 2016'!K$5","v":7.7021216273685201E-3},{"$f":"'Population 2016'!L148/'Population 2016'!L$5","v":1.6925325242641336E-2},{"$f":"'Population 2016'!M148/'Population 2016'!M$5","v":1.6925325242641336E-2},{"$f":"'Population 2016'!N148/'Population 2016'!N$5","v":4.2275821605677498E-3},{"$f":"'Population 2016'!O148/'Population 2016'!O$5","v":6.5979136327161412E-3},{"$f":"'Population 2016'!P148/'Population 2016'!P$5","v":2.7048348923701115E-3},{"$f":"'Population 2016'!Q148/'Population 2016'!Q$5","v":8.5662918179574866E-3},{"$f":"'Population 2016'!R148/'Population 2016'!R$5","v":4.5643263959120666E-3},{"$f":"'Population 2016'!S148/'Population 2016'!S$5","v":7.0745016073197036E-3},{"$f":"'Population 2016'!T148/'Population 2016'!T$5","v":3.4573737918968091E-3},{"$f":"'Population 2016'!U148/'Population 2016'!U$5","v":3.0673217368211395E-2},{"$f":"'Population 2016'!V148/'Population 2016'!V$5","v":7.403393349157769E-3},{"$f":"'Population 2016'!W148/'Population 2016'!W$5","v":8.4357983775550892E-3},{"$f":"'Population 2016'!X148/'Population 2016'!X$5","v":8.4357983775550892E-3},{"$f":"'Population 2016'!Y148/'Population 2016'!Y$5","v":7.1660227977297661E-3},{"$f":"'Population 2016'!Z148/'Population 2016'!Z$5","v":3.6431706037558342E-3},{"$f":"'Population 2016'!AA148/'Population 2016'!AA$5","v":5.5117173823062979E-3},{"$f":"'Population 2016'!AB148/'Population 2016'!AB$5","v":7.1768522972682517E-3},{"$f":"'Population 2016'!AC148/'Population 2016'!AC$5","v":4.5209041394560848E-3},{"$f":"'Population 2016'!AD148/'Population 2016'!AD$5","v":1.5772823700174923E-2},{"$f":"'Population 2016'!AE148/'Population 2016'!AE$5","v":1.4194190905450774E-2},{"$f":"'Population 2016'!AF148/'Population 2016'!AF$5","v":5.9871209036480716E-3},{"$f":"'Population 2016'!AG148/'Population 2016'!AG$5","v":1.4194190905450774E-2},{"$f":"'Population 2016'!AH148/'Population 2016'!AH$5","v":7.2912699813306335E-3},{"$f":"'Population 2016'!AI148/'Population 2016'!AI$5","v":5.4945205179805761E-3},{"$f":"'Population 2016'!AJ148/'Population 2016'!AJ$5","v":9.0483227839277258E-3},{"$f":"'Population 2016'!AK148/'Population 2016'!AK$5","v":1.0862049457526118E-2},{"$f":"'Population 2016'!AL148/'Population 2016'!AL$5","v":6.7575956439225983E-3},{"$f":"'Population 2016'!AM148/'Population 2016'!AM$5","v":6.5739194685810109E-3},{"$f":"'Population 2016'!AN148/'Population 2016'!AN$5","v":1.2054107123377332E-2},{"$f":"'Population 2016'!AO148/'Population 2016'!AO$5","v":1.2054107123377332E-2},{"$f":"'Population 2016'!AP148/'Population 2016'!AP$5","v":9.7886910895169862E-3},{"$f":"'Population 2016'!AQ148/'Population 2016'!AQ$5","v":6.9668986682742372E-3},{"$f":"'Population 2016'!AR148/'Population 2016'!AR$5","v":7.704760956366124E-3},{"$f":"'Population 2016'!AS148/'Population 2016'!AS$5","v":1.4812411020852526E-2},{"$f":"'Population 2016'!AT148/'Population 2016'!AT$5","v":1.3760742341962355E-2},{"$f":"'Population 2016'!AU148/'Population 2016'!AU$5","v":1.3760742341962355E-2},{"$f":"'Population 2016'!AV148/'Population 2016'!AV$5","v":9.1859360152043087E-3},{"$f":"'Population 2016'!AW148/'Population 2016'!AW$5","v":8.0465556165720906E-3},{"$f":"'Population 2016'!AX148/'Population 2016'!AX$5","v":6.4786536667646348E-3},{"$f":"'Population 2016'!AY148/'Population 2016'!AY$5","v":8.7267831461705584E-3},{"$f":"'Population 2016'!AZ148/'Population 2016'!AZ$5","v":8.9828626654624311E-3},{"$f":"'Population 2016'!BA148/'Population 2016'!BA$5","v":6.6400345497732672E-3},{"$f":"'Population 2016'!BB148/'Population 2016'!BB$5","v":7.9752525496640733E-3},{"$f":"'Population 2016'!BC148/'Population 2016'!BC$5","v":3.0673217368211395E-2},146]
[null,"Female 65-69",{"$f":"'Population 2016'!C149/'Population 2016'!C$5","v":4.0582050875785187E-3},{"$f":"'Population 2016'!D149/'Population 2016'!D$5","v":6.3671840615005431E-3},{"$f":"'Population 2016'!E149/'Population 2016'!E$5","v":8.4849450822477128E-3},{"$f":"'Population 2016'!F149/'Population 2016'!F$5","v":1.4864795261395829E-2},{"$f":"'Population 2016'!G149/'Population 2016'!G$5","v":2.105775997401613E-2},{"$f":"'Population 2016'!H149/'Population 2016'!H$5","v":8.028195958017334E-3},{"$f":"'Population 2016'!I149/'Population 2016'!I$5","v":1.5859224520559417E-2},{"$f":"'Population 2016'!J149/'Population 2016'!J$5","v":6.8251743612283656E-3},{"$f":"'Population 2016'!K149/'Population 2016'!K$5","v":8.4817842460898733E-3},{"$f":"'Population 2016'!L149/'Population 2016'!L$5","v":1.82437691611202E-2},{"$f":"'Population 2016'!M149/'Population 2016'!M$5","v":1.82437691611202E-2},{"$f":"'Population 2016'!N149/'Population 2016'!N$5","v":4.4044011862949184E-3},{"$f":"'Population 2016'!O149/'Population 2016'!O$5","v":7.6282184642513942E-3},{"$f":"'Population 2016'!P149/'Population 2016'!P$5","v":2.378000676208723E-3},{"$f":"'Population 2016'!Q149/'Population 2016'!Q$5","v":8.6837992503025815E-3},{"$f":"'Population 2016'!R149/'Population 2016'!R$5","v":4.3514132112631079E-3},{"$f":"'Population 2016'!S149/'Population 2016'!S$5","v":7.4107941977612267E-3},{"$f":"'Population 2016'!T149/'Population 2016'!T$5","v":3.3084694024746049E-3},{"$f":"'Population 2016'!U149/'Population 2016'!U$5","v":3.1292878325144956E-2},{"$f":"'Population 2016'!V149/'Population 2016'!V$5","v":7.7544821059219518E-3},{"$f":"'Population 2016'!W149/'Population 2016'!W$5","v":9.2267566136528551E-3},{"$f":"'Population 2016'!X149/'Population 2016'!X$5","v":9.2267566136528551E-3},{"$f":"'Population 2016'!Y149/'Population 2016'!Y$5","v":7.309104783707731E-3},{"$f":"'Population 2016'!Z149/'Population 2016'!Z$5","v":3.093404157705538E-3},{"$f":"'Population 2016'!AA149/'Population 2016'!AA$5","v":5.1576014993784704E-3},{"$f":"'Population 2016'!AB149/'Population 2016'!AB$5","v":7.156382096762638E-3},{"$f":"'Population 2016'!AC149/'Population 2016'!AC$5","v":4.1971697547272457E-3},{"$f":"'Population 2016'!AD149/'Population 2016'!AD$5","v":1.6159886858461425E-2},{"$f":"'Population 2016'!AE149/'Population 2016'!AE$5","v":1.4301994887011161E-2},{"$f":"'Population 2016'!AF149/'Population 2016'!AF$5","v":5.9569590854936733E-3},{"$f":"'Population 2016'!AG149/'Population 2016'!AG$5","v":1.4301994887011161E-2},{"$f":"'Population 2016'!AH149/'Population 2016'!AH$5","v":6.8825873326955403E-3},{"$f":"'Population 2016'!AI149/'Population 2016'!AI$5","v":5.5478388310438356E-3},{"$f":"'Population 2016'!AJ149/'Population 2016'!AJ$5","v":1.0038200931321975E-2},{"$f":"'Population 2016'!AK149/'Population 2016'!AK$5","v":1.1214060319575576E-2},{"$f":"'Population 2016'!AL149/'Population 2016'!AL$5","v":6.9526968304925415E-3},{"$f":"'Population 2016'!AM149/'Population 2016'!AM$5","v":6.4978575904321399E-3},{"$f":"'Population 2016'!AN149/'Population 2016'!AN$5","v":1.2381367950256354E-2},{"$f":"'Population 2016'!AO149/'Population 2016'!AO$5","v":1.2381367950256354E-2},{"$f":"'Population 2016'!AP149/'Population 2016'!AP$5","v":1.0248402897769605E-2},{"$f":"'Population 2016'!AQ149/'Population 2016'!AQ$5","v":7.1381596974845179E-3},{"$f":"'Population 2016'!AR149/'Population 2016'!AR$5","v":7.8108030617652932E-3},{"$f":"'Population 2016'!AS149/'Population 2016'!AS$5","v":1.5859224520559417E-2},{"$f":"'Population 2016'!AT149/'Population 2016'!AT$5","v":1.233721727210418E-2},{"$f":"'Population 2016'!AU149/'Population 2016'!AU$5","v":1.233721727210418E-2},{"$f":"'Population 2016'!AV149/'Population 2016'!AV$5","v":9.7349804666877846E-3},{"$f":"'Population 2016'!AW149/'Population 2016'!AW$5","v":7.2876624565257186E-3},{"$f":"'Population 2016'!AX149/'Population 2016'!AX$5","v":5.9291820540015592E-3},{"$f":"'Population 2016'!AY149/'Population 2016'!AY$5","v":9.3433493467152164E-3},{"$f":"'Population 2016'!AZ149/'Population 2016'!AZ$5","v":9.4459561298042352E-3},{"$f":"'Population 2016'!BA149/'Population 2016'!BA$5","v":6.5455625134960048E-3},{"$f":"'Population 2016'!BB149/'Population 2016'!BB$5","v":8.127162122038626E-3},{"$f":"'Population 2016'!BC149/'Population 2016'!BC$5","v":3.1292878325144956E-2},147]
[null,"Female 70-74",{"$f":"'Population 2016'!C150/'Population 2016'!C$5","v":3.0615426290422328E-3},{"$f":"'Population 2016'!D150/'Population 2016'!D$5","v":4.7362655634126541E-3},{"$f":"'Population 2016'!E150/'Population 2016'!E$5","v":6.2722964199157134E-3},{"$f":"'Population 2016'!F150/'Population 2016'!F$5","v":1.1176925057944887E-2},{"$f":"'Population 2016'!G150/'Population 2016'!G$5","v":1.5698587127158554E-2},{"$f":"'Population 2016'!H150/'Population 2016'!H$5","v":6.4750837351214121E-3},{"$f":"'Population 2016'!I150/'Population 2016'!I$5","v":1.1965078301649779E-2},{"$f":"'Population 2016'!J150/'Population 2016'!J$5","v":5.4485292288299347E-3},{"$f":"'Population 2016'!K150/'Population 2016'!K$5","v":6.5916930491896238E-3},{"$f":"'Population 2016'!L150/'Population 2016'!L$5","v":1.4844407732753006E-2},{"$f":"'Population 2016'!M150/'Population 2016'!M$5","v":1.4844407732753006E-2},{"$f":"'Population 2016'!N150/'Population 2016'!N$5","v":3.3354498034897646E-3},{"$f":"'Population 2016'!O150/'Population 2016'!O$5","v":6.023320553590711E-3},{"$f":"'Population 2016'!P150/'Population 2016'!P$5","v":1.8257635523498254E-3},{"$f":"'Population 2016'!Q150/'Population 2016'!Q$5","v":6.9211877651261444E-3},{"$f":"'Population 2016'!R150/'Population 2016'!R$5","v":3.4731463245861499E-3},{"$f":"'Population 2016'!S150/'Population 2016'!S$5","v":5.6675452053150119E-3},{"$f":"'Population 2016'!T150/'Population 2016'!T$5","v":2.4801887363135925E-3},{"$f":"'Population 2016'!U150/'Population 2016'!U$5","v":2.5450360731199929E-2},{"$f":"'Population 2016'!V150/'Population 2016'!V$5","v":5.5639935582845494E-3},{"$f":"'Population 2016'!W150/'Population 2016'!W$5","v":7.0238398734466826E-3},{"$f":"'Population 2016'!X150/'Population 2016'!X$5","v":7.0238398734466826E-3},{"$f":"'Population 2016'!Y150/'Population 2016'!Y$5","v":5.5086564601516666E-3},{"$f":"'Population 2016'!Z150/'Population 2016'!Z$5","v":2.4042603027974209E-3},{"$f":"'Population 2016'!AA150/'Population 2016'!AA$5","v":4.0925963205167299E-3},{"$f":"'Population 2016'!AB150/'Population 2016'!AB$5","v":5.510577976111276E-3},{"$f":"'Population 2016'!AC150/'Population 2016'!AC$5","v":3.2487210940360472E-3},{"$f":"'Population 2016'!AD150/'Population 2016'!AD$5","v":1.263165730023447E-2},{"$f":"'Population 2016'!AE150/'Population 2016'!AE$5","v":1.1468290228852452E-2},{"$f":"'Population 2016'!AF150/'Population 2016'!AF$5","v":4.9616190863985285E-3},{"$f":"'Population 2016'!AG150/'Population 2016'!AG$5","v":1.1468290228852452E-2},{"$f":"'Population 2016'!AH150/'Population 2016'!AH$5","v":5.6082405283152054E-3},{"$f":"'Population 2016'!AI150/'Population 2016'!AI$5","v":4.2777692711523322E-3},{"$f":"'Population 2016'!AJ150/'Population 2016'!AJ$5","v":7.5983604271812177E-3},{"$f":"'Population 2016'!AK150/'Population 2016'!AK$5","v":9.4917214588335873E-3},{"$f":"'Population 2016'!AL150/'Population 2016'!AL$5","v":5.7909579468260588E-3},{"$f":"'Population 2016'!AM150/'Population 2016'!AM$5","v":5.0925238417768052E-3},{"$f":"'Population 2016'!AN150/'Population 2016'!AN$5","v":1.2490454892549362E-2},{"$f":"'Population 2016'!AO150/'Population 2016'!AO$5","v":1.2490454892549362E-2},{"$f":"'Population 2016'!AP150/'Population 2016'!AP$5","v":8.8692674730117462E-3},{"$f":"'Population 2016'!AQ150/'Population 2016'!AQ$5","v":5.4461007288869401E-3},{"$f":"'Population 2016'!AR150/'Population 2016'!AR$5","v":6.1393032365342675E-3},{"$f":"'Population 2016'!AS150/'Population 2016'!AS$5","v":1.1965078301649779E-2},{"$f":"'Population 2016'!AT150/'Population 2016'!AT$5","v":1.1388200558865398E-2},{"$f":"'Population 2016'!AU150/'Population 2016'!AU$5","v":1.1388200558865398E-2},{"$f":"'Population 2016'!AV150/'Population 2016'!AV$5","v":7.7710906979199662E-3},{"$f":"'Population 2016'!AW150/'Population 2016'!AW$5","v":6.1512294831899449E-3},{"$f":"'Population 2016'!AX150/'Population 2016'!AX$5","v":4.8302388284754078E-3},{"$f":"'Population 2016'!AY150/'Population 2016'!AY$5","v":7.2947584223248983E-3},{"$f":"'Population 2016'!AZ150/'Population 2016'!AZ$5","v":7.5331787770880915E-3},{"$f":"'Population 2016'!BA150/'Population 2016'!BA$5","v":4.7505938242280287E-3},{"$f":"'Population 2016'!BB150/'Population 2016'!BB$5","v":6.4147269425436568E-3},{"$f":"'Population 2016'!BC150/'Population 2016'!BC$5","v":2.5450360731199929E-2},148]
[null,"Female 75-79",{"$f":"'Population 2016'!C151/'Population 2016'!C$5","v":2.8264325106182884E-3},{"$f":"'Population 2016'!D151/'Population 2016'!D$5","v":3.9073579609362006E-3},{"$f":"'Population 2016'!E151/'Population 2016'!E$5","v":4.8987666358833483E-3},{"$f":"'Population 2016'!F151/'Population 2016'!F$5","v":8.4264743754828737E-3},{"$f":"'Population 2016'!G151/'Population 2016'!G$5","v":1.2910734585611433E-2},{"$f":"'Population 2016'!H151/'Population 2016'!H$5","v":4.7955176986702892E-3},{"$f":"'Population 2016'!I151/'Population 2016'!I$5","v":9.6411523323004771E-3},{"$f":"'Population 2016'!J151/'Population 2016'!J$5","v":4.4533640728792612E-3},{"$f":"'Population 2016'!K151/'Population 2016'!K$5","v":5.1268723715919293E-3},{"$f":"'Population 2016'!L151/'Population 2016'!L$5","v":1.1294140072752689E-2},{"$f":"'Population 2016'!M151/'Population 2016'!M$5","v":1.1294140072752689E-2},{"$f":"'Population 2016'!N151/'Population 2016'!N$5","v":3.2148913768576043E-3},{"$f":"'Population 2016'!O151/'Population 2016'!O$5","v":4.289634538988122E-3},{"$f":"'Population 2016'!P151/'Population 2016'!P$5","v":1.3411473008001803E-3},{"$f":"'Population 2016'!Q151/'Population 2016'!Q$5","v":5.8871223604893006E-3},{"$f":"'Population 2016'!R151/'Population 2016'!R$5","v":3.41991802842391E-3},{"$f":"'Population 2016'!S151/'Population 2016'!S$5","v":4.5236208031832169E-3},{"$f":"'Population 2016'!T151/'Population 2016'!T$5","v":2.0753549275719743E-3},{"$f":"'Population 2016'!U151/'Population 2016'!U$5","v":2.2529101934227417E-2},{"$f":"'Population 2016'!V151/'Population 2016'!V$5","v":4.6099480235992701E-3},{"$f":"'Population 2016'!W151/'Population 2016'!W$5","v":5.5203655403682859E-3},{"$f":"'Population 2016'!X151/'Population 2016'!X$5","v":5.5203655403682859E-3},{"$f":"'Population 2016'!Y151/'Population 2016'!Y$5","v":4.5349040555794024E-3},{"$f":"'Population 2016'!Z151/'Population 2016'!Z$5","v":2.0093576443669264E-3},{"$f":"'Population 2016'!AA151/'Population 2016'!AA$5","v":3.4109398554436512E-3},{"$f":"'Population 2016'!AB151/'Population 2016'!AB$5","v":4.5177732515889997E-3},{"$f":"'Population 2016'!AC151/'Population 2016'!AC$5","v":2.7274363339614954E-3},{"$f":"'Population 2016'!AD151/'Population 2016'!AD$5","v":9.6356395846514571E-3},{"$f":"'Population 2016'!AE151/'Population 2016'!AE$5","v":8.3933099929157391E-3},{"$f":"'Population 2016'!AF151/'Population 2016'!AF$5","v":4.4639490868509553E-3},{"$f":"'Population 2016'!AG151/'Population 2016'!AG$5","v":8.3933099929157391E-3},{"$f":"'Population 2016'!AH151/'Population 2016'!AH$5","v":4.638548062008304E-3},{"$f":"'Population 2016'!AI151/'Population 2016'!AI$5","v":3.4383476244640825E-3},{"$f":"'Population 2016'!AJ151/'Population 2016'!AJ$5","v":5.9950366673172904E-3},{"$f":"'Population 2016'!AK151/'Population 2016'!AK$5","v":7.6562362495757015E-3},{"$f":"'Population 2016'!AL151/'Population 2016'!AL$5","v":4.5848778843936783E-3},{"$f":"'Population 2016'!AM151/'Population 2016'!AM$5","v":3.9371076927534766E-3},{"$f":"'Population 2016'!AN151/'Population 2016'!AN$5","v":1.0090542162103196E-2},{"$f":"'Population 2016'!AO151/'Population 2016'!AO$5","v":1.0090542162103196E-2},{"$f":"'Population 2016'!AP151/'Population 2016'!AP$5","v":6.745081876258263E-3},{"$f":"'Population 2016'!AQ151/'Population 2016'!AQ$5","v":4.3774319066147861E-3},{"$f":"'Population 2016'!AR151/'Population 2016'!AR$5","v":4.9073434826321519E-3},{"$f":"'Population 2016'!AS151/'Population 2016'!AS$5","v":9.6411523323004771E-3},{"$f":"'Population 2016'!AT151/'Population 2016'!AT$5","v":8.8574893235619755E-3},{"$f":"'Population 2016'!AU151/'Population 2016'!AU$5","v":8.8574893235619755E-3},{"$f":"'Population 2016'!AV151/'Population 2016'!AV$5","v":5.5854714391299761E-3},{"$f":"'Population 2016'!AW151/'Population 2016'!AW$5","v":5.3770821892732933E-3},{"$f":"'Population 2016'!AX151/'Population 2016'!AX$5","v":4.089091071725213E-3},{"$f":"'Population 2016'!AY151/'Population 2016'!AY$5","v":5.7495180686025519E-3},{"$f":"'Population 2016'!AZ151/'Population 2016'!AZ$5","v":5.9511824703303781E-3},{"$f":"'Population 2016'!BA151/'Population 2016'!BA$5","v":3.886849492550205E-3},{"$f":"'Population 2016'!BB151/'Population 2016'!BB$5","v":4.7782465492359639E-3},{"$f":"'Population 2016'!BC151/'Population 2016'!BC$5","v":2.2529101934227417E-2},149]
[null,"Female 80-84",{"$f":"'Population 2016'!C152/'Population 2016'!C$5","v":2.5606558550086123E-3},{"$f":"'Population 2016'!D152/'Population 2016'!D$5","v":2.8828379448959831E-3},{"$f":"'Population 2016'!E152/'Population 2016'!E$5","v":3.1783385446209666E-3},{"$f":"'Population 2016'!F152/'Population 2016'!F$5","v":6.4280195724954929E-3},{"$f":"'Population 2016'!G152/'Population 2016'!G$5","v":9.1484869809992965E-3},{"$f":"'Population 2016'!H152/'Population 2016'!H$5","v":3.5050403193120912E-3},{"$f":"'Population 2016'!I152/'Population 2016'!I$5","v":7.1183317980068675E-3},{"$f":"'Population 2016'!J152/'Population 2016'!J$5","v":3.2011145849746648E-3},{"$f":"'Population 2016'!K152/'Population 2016'!K$5","v":3.4966687142654633E-3},{"$f":"'Population 2016'!L152/'Population 2016'!L$5","v":8.347497339284863E-3},{"$f":"'Population 2016'!M152/'Population 2016'!M$5","v":8.347497339284863E-3},{"$f":"'Population 2016'!N152/'Population 2016'!N$5","v":3.1907796915311725E-3},{"$f":"'Population 2016'!O152/'Population 2016'!O$5","v":3.1503551579635629E-3},{"$f":"'Population 2016'!P152/'Population 2016'!P$5","v":8.7907134002028627E-4},{"$f":"'Population 2016'!Q152/'Population 2016'!Q$5","v":4.5827898614587371E-3},{"$f":"'Population 2016'!R152/'Population 2016'!R$5","v":3.3267685101399905E-3},{"$f":"'Population 2016'!S152/'Population 2016'!S$5","v":3.3311502265782359E-3},{"$f":"'Population 2016'!T152/'Population 2016'!T$5","v":1.6449281768984147E-3},{"$f":"'Population 2016'!U152/'Population 2016'!U$5","v":1.6863630327977691E-2},{"$f":"'Population 2016'!V152/'Population 2016'!V$5","v":3.1979606322650568E-3},{"$f":"'Population 2016'!W152/'Population 2016'!W$5","v":3.997280672510606E-3},{"$f":"'Population 2016'!X152/'Population 2016'!X$5","v":3.997280672510606E-3},{"$f":"'Population 2016'!Y152/'Population 2016'!Y$5","v":3.1994721864517257E-3},{"$f":"'Population 2016'!Z152/'Population 2016'!Z$5","v":1.8138421124969269E-3},{"$f":"'Population 2016'!AA152/'Population 2016'!AA$5","v":2.7352628330466521E-3},{"$f":"'Population 2016'!AB152/'Population 2016'!AB$5","v":3.4533228252970737E-3},{"$f":"'Population 2016'!AC152/'Population 2016'!AC$5","v":2.252694856036457E-3},{"$f":"'Population 2016'!AD152/'Population 2016'!AD$5","v":6.9931891771186127E-3},{"$f":"'Population 2016'!AE152/'Population 2016'!AE$5","v":6.1756280865306627E-3},{"$f":"'Population 2016'!AF152/'Population 2016'!AF$5","v":3.2574763606750216E-3},{"$f":"'Population 2016'!AG152/'Population 2016'!AG$5","v":6.1756280865306627E-3},{"$f":"'Population 2016'!AH152/'Population 2016'!AH$5","v":3.6019802531974772E-3},{"$f":"'Population 2016'!AI152/'Population 2016'!AI$5","v":2.5579118908040949E-3},{"$f":"'Population 2016'!AJ152/'Population 2016'!AJ$5","v":4.1407578841703152E-3},{"$f":"'Population 2016'!AK152/'Population 2016'!AK$5","v":6.3864827828973006E-3},{"$f":"'Population 2016'!AL152/'Population 2016'!AL$5","v":3.1836966353913552E-3},{"$f":"'Population 2016'!AM152/'Population 2016'!AM$5","v":3.0207431607694566E-3},{"$f":"'Population 2016'!AN152/'Population 2016'!AN$5","v":5.781607941529399E-3},{"$f":"'Population 2016'!AO152/'Population 2016'!AO$5","v":5.781607941529399E-3},{"$f":"'Population 2016'!AP152/'Population 2016'!AP$5","v":5.3183900575432368E-3},{"$f":"'Population 2016'!AQ152/'Population 2016'!AQ$5","v":3.1101002904587055E-3},{"$f":"'Population 2016'!AR152/'Population 2016'!AR$5","v":3.7197164576679249E-3},{"$f":"'Population 2016'!AS152/'Population 2016'!AS$5","v":7.1183317980068675E-3},{"$f":"'Population 2016'!AT152/'Population 2016'!AT$5","v":6.5376706912005063E-3},{"$f":"'Population 2016'!AU152/'Population 2016'!AU$5","v":6.5376706912005063E-3},{"$f":"'Population 2016'!AV152/'Population 2016'!AV$5","v":4.265653046140851E-3},{"$f":"'Population 2016'!AW152/'Population 2016'!AW$5","v":4.213954481664531E-3},{"$f":"'Population 2016'!AX152/'Population 2016'!AX$5","v":3.041261484595627E-3},{"$f":"'Population 2016'!AY152/'Population 2016'!AY$5","v":4.4597778525748907E-3},{"$f":"'Population 2016'!AZ152/'Population 2016'!AZ$5","v":4.8667959109710002E-3},{"$f":"'Population 2016'!BA152/'Population 2016'!BA$5","v":3.2795292593392356E-3},{"$f":"'Population 2016'!BB152/'Population 2016'!BB$5","v":3.293675728302825E-3},{"$f":"'Population 2016'!BC152/'Population 2016'!BC$5","v":1.6863630327977691E-2},150]
[null,"Female 85-89",{"$f":"'Population 2016'!C153/'Population 2016'!C$5","v":1.6917706347462089E-3},{"$f":"'Population 2016'!D153/'Population 2016'!D$5","v":2.005027239028589E-3},{"$f":"'Population 2016'!E153/'Population 2016'!E$5","v":2.2923415166956531E-3},{"$f":"'Population 2016'!F153/'Population 2016'!F$5","v":4.2029358743239766E-3},{"$f":"'Population 2016'!G153/'Population 2016'!G$5","v":5.5080387592702862E-3},{"$f":"'Population 2016'!H153/'Population 2016'!H$5","v":1.9778673402223641E-3},{"$f":"'Population 2016'!I153/'Population 2016'!I$5","v":4.1558495938363617E-3},{"$f":"'Population 2016'!J153/'Population 2016'!J$5","v":2.015209440800113E-3},{"$f":"'Population 2016'!K153/'Population 2016'!K$5","v":2.551623115815338E-3},{"$f":"'Population 2016'!L153/'Population 2016'!L$5","v":5.6947246358394358E-3},{"$f":"'Population 2016'!M153/'Population 2016'!M$5","v":5.6947246358394358E-3},{"$f":"'Population 2016'!N153/'Population 2016'!N$5","v":1.7842647141559705E-3},{"$f":"'Population 2016'!O153/'Population 2016'!O$5","v":1.4265759205872738E-3},{"$f":"'Population 2016'!P153/'Population 2016'!P$5","v":5.635072692437732E-4},{"$f":"'Population 2016'!Q153/'Population 2016'!Q$5","v":3.5487244568218942E-3},{"$f":"'Population 2016'!R153/'Population 2016'!R$5","v":2.0492894022462343E-3},{"$f":"'Population 2016'!S153/'Population 2016'!S$5","v":2.1236744687724526E-3},{"$f":"'Population 2016'!T153/'Population 2016'!T$5","v":1.1423758625984746E-3},{"$f":"'Population 2016'!U153/'Population 2016'!U$5","v":1.0844066746337361E-2},{"$f":"'Population 2016'!V153/'Population 2016'!V$5","v":1.6791201410460918E-3},{"$f":"'Population 2016'!W153/'Population 2016'!W$5","v":2.6637643075193328E-3},{"$f":"'Population 2016'!X153/'Population 2016'!X$5","v":2.6637643075193328E-3},{"$f":"'Population 2016'!Y153/'Population 2016'!Y$5","v":1.8401933196610547E-3},{"$f":"'Population 2016'!Z153/'Population 2016'!Z$5","v":1.0937255000648492E-3},{"$f":"'Population 2016'!AA153/'Population 2016'!AA$5","v":1.6423535883632074E-3},{"$f":"'Population 2016'!AB153/'Population 2016'!AB$5","v":2.227157815010798E-3},{"$f":"'Population 2016'!AC153/'Population 2016'!AC$5","v":1.382852627419992E-3},{"$f":"'Population 2016'!AD153/'Population 2016'!AD$5","v":4.5368268264542782E-3},{"$f":"'Population 2016'!AE153/'Population 2016'!AE$5","v":4.168420620334911E-3},{"$f":"'Population 2016'!AF153/'Population 2016'!AF$5","v":2.6391590885098556E-3},{"$f":"'Population 2016'!AG153/'Population 2016'!AG$5","v":4.168420620334911E-3},{"$f":"'Population 2016'!AH153/'Population 2016'!AH$5","v":2.1084309372765018E-3},{"$f":"'Population 2016'!AI153/'Population 2016'!AI$5","v":1.6323606614751947E-3},{"$f":"'Population 2016'!AJ153/'Population 2016'!AJ$5","v":2.1610015893818143E-3},{"$f":"'Population 2016'!AK153/'Population 2016'!AK$5","v":3.3692468224733791E-3},{"$f":"'Population 2016'!AL153/'Population 2016'!AL$5","v":2.0130895159716925E-3},{"$f":"'Population 2016'!AM153/'Population 2016'!AM$5","v":1.5972994411262954E-3},{"$f":"'Population 2016'!AN153/'Population 2016'!AN$5","v":4.2543907494272939E-3},{"$f":"'Population 2016'!AO153/'Population 2016'!AO$5","v":4.2543907494272939E-3},{"$f":"'Population 2016'!AP153/'Population 2016'!AP$5","v":3.6301380720637892E-3},{"$f":"'Population 2016'!AQ153/'Population 2016'!AQ$5","v":1.7742642626185127E-3},{"$f":"'Population 2016'!AR153/'Population 2016'!AR$5","v":2.3300302108611622E-3},{"$f":"'Population 2016'!AS153/'Population 2016'!AS$5","v":4.1558495938363617E-3},{"$f":"'Population 2016'!AT153/'Population 2016'!AT$5","v":3.8487900036906207E-3},{"$f":"'Population 2016'!AU153/'Population 2016'!AU$5","v":3.8487900036906207E-3},{"$f":"'Population 2016'!AV153/'Population 2016'!AV$5","v":2.5234927673952064E-3},{"$f":"'Population 2016'!AW153/'Population 2016'!AW$5","v":2.6465922264933797E-3},{"$f":"'Population 2016'!AX153/'Population 2016'!AX$5","v":1.7250852958840743E-3},{"$f":"'Population 2016'!AY153/'Population 2016'!AY$5","v":2.9114776169639851E-3},{"$f":"'Population 2016'!AZ153/'Population 2016'!AZ$5","v":3.1294763304588941E-3},{"$f":"'Population 2016'!BA153/'Population 2016'!BA$5","v":1.8084646944504428E-3},{"$f":"'Population 2016'!BB153/'Population 2016'!BB$5","v":1.6986252183700103E-3},{"$f":"'Population 2016'!BC153/'Population 2016'!BC$5","v":1.0844066746337361E-2},151]
[null,"Female 90+",{"$f":"'Population 2016'!C154/'Population 2016'!C$5","v":9.7110701088150959E-4},{"$f":"'Population 2016'!D154/'Population 2016'!D$5","v":1.1223262228221003E-3},{"$f":"'Population 2016'!E154/'Population 2016'!E$5","v":1.2610222249307375E-3},{"$f":"'Population 2016'!F154/'Population 2016'!F$5","v":2.8225598763842391E-3},{"$f":"'Population 2016'!G154/'Population 2016'!G$5","v":3.6675147512585937E-3},{"$f":"'Population 2016'!H154/'Population 2016'!H$5","v":1.1769931877060953E-3},{"$f":"'Population 2016'!I154/'Population 2016'!I$5","v":2.4286073193199899E-3},{"$f":"'Population 2016'!J154/'Population 2016'!J$5","v":1.1776121012082963E-3},{"$f":"'Population 2016'!K154/'Population 2016'!K$5","v":1.0631762982563908E-3},{"$f":"'Population 2016'!L154/'Population 2016'!L$5","v":3.2802249297094657E-3},{"$f":"'Population 2016'!M154/'Population 2016'!M$5","v":3.2802249297094657E-3},{"$f":"'Population 2016'!N154/'Population 2016'!N$5","v":1.0609141543630094E-3},{"$f":"'Population 2016'!O154/'Population 2016'!O$5","v":9.6095739095114973E-4},{"$f":"'Population 2016'!P154/'Population 2016'!P$5","v":5.2969683308914689E-4},{"$f":"'Population 2016'!Q154/'Population 2016'!Q$5","v":2.021127836335648E-3},{"$f":"'Population 2016'!R154/'Population 2016'!R$5","v":1.0911800713259169E-3},{"$f":"'Population 2016'!S154/'Population 2016'!S$5","v":1.2410167510781664E-3},{"$f":"'Population 2016'!T154/'Population 2016'!T$5","v":6.7472301456936385E-4},{"$f":"'Population 2016'!U154/'Population 2016'!U$5","v":7.6129774708980661E-3},{"$f":"'Population 2016'!V154/'Population 2016'!V$5","v":7.9376588485815256E-4},{"$f":"'Population 2016'!W154/'Population 2016'!W$5","v":1.4740585309094712E-3},{"$f":"'Population 2016'!X154/'Population 2016'!X$5","v":1.4740585309094712E-3},{"$f":"'Population 2016'!Y154/'Population 2016'!Y$5","v":9.7772690418276333E-4},{"$f":"'Population 2016'!Z154/'Population 2016'!Z$5","v":7.414103832298004E-4},{"$f":"'Population 2016'!AA154/'Population 2016'!AA$5","v":1.0384298780791639E-3},{"$f":"'Population 2016'!AB154/'Population 2016'!AB$5","v":1.2875756118031177E-3},{"$f":"'Population 2016'!AC154/'Population 2016'!AC$5","v":1.0146435508593958E-3},{"$f":"'Population 2016'!AD154/'Population 2016'!AD$5","v":2.4786929174885554E-3},{"$f":"'Population 2016'!AE154/'Population 2016'!AE$5","v":2.0277415579215393E-3},{"$f":"'Population 2016'!AF154/'Population 2016'!AF$5","v":2.3073790888114734E-3},{"$f":"'Population 2016'!AG154/'Population 2016'!AG$5","v":2.0277415579215393E-3},{"$f":"'Population 2016'!AH154/'Population 2016'!AH$5","v":1.0811513704801093E-3},{"$f":"'Population 2016'!AI154/'Population 2016'!AI$5","v":9.8843949601889938E-4},{"$f":"'Population 2016'!AJ154/'Population 2016'!AJ$5","v":1.5196720854362435E-3},{"$f":"'Population 2016'!AK154/'Population 2016'!AK$5","v":2.1372088053002777E-3},{"$f":"'Population 2016'!AL154/'Population 2016'!AL$5","v":1.32136712722371E-3},{"$f":"'Population 2016'!AM154/'Population 2016'!AM$5","v":7.2077684531549383E-4},{"$f":"'Population 2016'!AN154/'Population 2016'!AN$5","v":3.654412566815752E-3},{"$f":"'Population 2016'!AO154/'Population 2016'!AO$5","v":3.654412566815752E-3},{"$f":"'Population 2016'!AP154/'Population 2016'!AP$5","v":2.2827069099440418E-3},{"$f":"'Population 2016'!AQ154/'Population 2016'!AQ$5","v":1.6646572039239328E-3},{"$f":"'Population 2016'!AR154/'Population 2016'!AR$5","v":1.3985973481008105E-3},{"$f":"'Population 2016'!AS154/'Population 2016'!AS$5","v":2.4286073193199899E-3},{"$f":"'Population 2016'!AT154/'Population 2016'!AT$5","v":3.1106658933937894E-3},{"$f":"'Population 2016'!AU154/'Population 2016'!AU$5","v":3.1106658933937894E-3},{"$f":"'Population 2016'!AV154/'Population 2016'!AV$5","v":1.2353500158378207E-3},{"$f":"'Population 2016'!AW154/'Population 2016'!AW$5","v":1.4605833180791994E-3},{"$f":"'Population 2016'!AX154/'Population 2016'!AX$5","v":1.2395057311167053E-3},{"$f":"'Population 2016'!AY154/'Population 2016'!AY$5","v":1.7517823812000857E-3},{"$f":"'Population 2016'!AZ154/'Population 2016'!AZ$5","v":1.9961917034360959E-3},{"$f":"'Population 2016'!BA154/'Population 2016'!BA$5","v":9.8520837832001724E-4},{"$f":"'Population 2016'!BB154/'Population 2016'!BB$5","v":1.049557045496917E-3},{"$f":"'Population 2016'!BC154/'Population 2016'!BC$5","v":7.6129774708980661E-3},152]
[null,"Male 0-4",{"$f":"'Population 2016'!C155/'Population 2016'!C$5","v":0},{"$f":"'Population 2016'!D155/'Population 2016'!D$5","v":0},{"$f":"'Population 2016'!E155/'Population 2016'!E$5","v":0},{"$f":"'Population 2016'!F155/'Population 2016'!F$5","v":0},{"$f":"'Population 2016'!G155/'Population 2016'!G$5","v":0},{"$f":"'Population 2016'!H155/'Population 2016'!H$5","v":0},{"$f":"'Population 2016'!I155/'Population 2016'!I$5","v":0},{"$f":"'Population 2016'!J155/'Population 2016'!J$5","v":0},{"$f":"'Population 2016'!K155/'Population 2016'!K$5","v":0},{"$f":"'Population 2016'!L155/'Population 2016'!L$5","v":0},{"$f":"'Population 2016'!M155/'Population 2016'!M$5","v":0},{"$f":"'Population 2016'!N155/'Population 2016'!N$5","v":0},{"$f":"'Population 2016'!O155/'Population 2016'!O$5","v":0},{"$f":"'Population 2016'!P155/'Population 2016'!P$5","v":0},{"$f":"'Population 2016'!Q155/'Population 2016'!Q$5","v":0},{"$f":"'Population 2016'!R155/'Population 2016'!R$5","v":0},{"$f":"'Population 2016'!S155/'Population 2016'!S$5","v":0},{"$f":"'Population 2016'!T155/'Population 2016'!T$5","v":0},{"$f":"'Population 2016'!U155/'Population 2016'!U$5","v":0},{"$f":"'Population 2016'!V155/'Population 2016'!V$5","v":0},{"$f":"'Population 2016'!W155/'Population 2016'!W$5","v":0},{"$f":"'Population 2016'!X155/'Population 2016'!X$5","v":0},{"$f":"'Population 2016'!Y155/'Population 2016'!Y$5","v":0},{"$f":"'Population 2016'!Z155/'Population 2016'!Z$5","v":0},{"$f":"'Population 2016'!AA155/'Population 2016'!AA$5","v":0},{"$f":"'Population 2016'!AB155/'Population 2016'!AB$5","v":0},{"$f":"'Population 2016'!AC155/'Population 2016'!AC$5","v":0},{"$f":"'Population 2016'!AD155/'Population 2016'!AD$5","v":0},{"$f":"'Population 2016'!AE155/'Population 2016'!AE$5","v":0},{"$f":"'Population 2016'!AF155/'Population 2016'!AF$5","v":0},{"$f":"'Population 2016'!AG155/'Population 2016'!AG$5","v":0},{"$f":"'Population 2016'!AH155/'Population 2016'!AH$5","v":0},{"$f":"'Population 2016'!AI155/'Population 2016'!AI$5","v":0},{"$f":"'Population 2016'!AJ155/'Population 2016'!AJ$5","v":0},{"$f":"'Population 2016'!AK155/'Population 2016'!AK$5","v":0},{"$f":"'Population 2016'!AL155/'Population 2016'!AL$5","v":0},{"$f":"'Population 2016'!AM155/'Population 2016'!AM$5","v":0},{"$f":"'Population 2016'!AN155/'Population 2016'!AN$5","v":0},{"$f":"'Population 2016'!AO155/'Population 2016'!AO$5","v":0},{"$f":"'Population 2016'!AP155/'Population 2016'!AP$5","v":0},{"$f":"'Population 2016'!AQ155/'Population 2016'!AQ$5","v":0},{"$f":"'Population 2016'!AR155/'Population 2016'!AR$5","v":0},{"$f":"'Population 2016'!AS155/'Population 2016'!AS$5","v":0},{"$f":"'Population 2016'!AT155/'Population 2016'!AT$5","v":0},{"$f":"'Population 2016'!AU155/'Population 2016'!AU$5","v":0},{"$f":"'Population 2016'!AV155/'Population 2016'!AV$5","v":0},{"$f":"'Population 2016'!AW155/'Population 2016'!AW$5","v":0},{"$f":"'Population 2016'!AX155/'Population 2016'!AX$5","v":0},{"$f":"'Population 2016'!AY155/'Population 2016'!AY$5","v":0},{"$f":"'Population 2016'!AZ155/'Population 2016'!AZ$5","v":0},{"$f":"'Population 2016'!BA155/'Population 2016'!BA$5","v":0},{"$f":"'Population 2016'!BB155/'Population 2016'!BB$5","v":0},{"$f":"'Population 2016'!BC155/'Population 2016'!BC$5","v":0},153]
[null,"Male 5-9",{"$f":"'Population 2016'!C156/'Population 2016'!C$5","v":0},{"$f":"'Population 2016'!D156/'Population 2016'!D$5","v":0},{"$f":"'Population 2016'!E156/'Population 2016'!E$5","v":0},{"$f":"'Population 2016'!F156/'Population 2016'!F$5","v":0},{"$f":"'Population 2016'!G156/'Population 2016'!G$5","v":0},{"$f":"'Population 2016'!H156/'Population 2016'!H$5","v":0},{"$f":"'Population 2016'!I156/'Population 2016'!I$5","v":0},{"$f":"'Population 2016'!J156/'Population 2016'!J$5","v":0},{"$f":"'Population 2016'!K156/'Population 2016'!K$5","v":0},{"$f":"'Population 2016'!L156/'Population 2016'!L$5","v":0},{"$f":"'Population 2016'!M156/'Population 2016'!M$5","v":0},{"$f":"'Population 2016'!N156/'Population 2016'!N$5","v":0},{"$f":"'Population 2016'!O156/'Population 2016'!O$5","v":0},{"$f":"'Population 2016'!P156/'Population 2016'!P$5","v":0},{"$f":"'Population 2016'!Q156/'Population 2016'!Q$5","v":0},{"$f":"'Population 2016'!R156/'Population 2016'!R$5","v":0},{"$f":"'Population 2016'!S156/'Population 2016'!S$5","v":0},{"$f":"'Population 2016'!T156/'Population 2016'!T$5","v":0},{"$f":"'Population 2016'!U156/'Population 2016'!U$5","v":0},{"$f":"'Population 2016'!V156/'Population 2016'!V$5","v":0},{"$f":"'Population 2016'!W156/'Population 2016'!W$5","v":0},{"$f":"'Population 2016'!X156/'Population 2016'!X$5","v":0},{"$f":"'Population 2016'!Y156/'Population 2016'!Y$5","v":0},{"$f":"'Population 2016'!Z156/'Population 2016'!Z$5","v":0},{"$f":"'Population 2016'!AA156/'Population 2016'!AA$5","v":0},{"$f":"'Population 2016'!AB156/'Population 2016'!AB$5","v":0},{"$f":"'Population 2016'!AC156/'Population 2016'!AC$5","v":0},{"$f":"'Population 2016'!AD156/'Population 2016'!AD$5","v":0},{"$f":"'Population 2016'!AE156/'Population 2016'!AE$5","v":0},{"$f":"'Population 2016'!AF156/'Population 2016'!AF$5","v":0},{"$f":"'Population 2016'!AG156/'Population 2016'!AG$5","v":0},{"$f":"'Population 2016'!AH156/'Population 2016'!AH$5","v":0},{"$f":"'Population 2016'!AI156/'Population 2016'!AI$5","v":0},{"$f":"'Population 2016'!AJ156/'Population 2016'!AJ$5","v":0},{"$f":"'Population 2016'!AK156/'Population 2016'!AK$5","v":0},{"$f":"'Population 2016'!AL156/'Population 2016'!AL$5","v":0},{"$f":"'Population 2016'!AM156/'Population 2016'!AM$5","v":0},{"$f":"'Population 2016'!AN156/'Population 2016'!AN$5","v":0},{"$f":"'Population 2016'!AO156/'Population 2016'!AO$5","v":0},{"$f":"'Population 2016'!AP156/'Population 2016'!AP$5","v":0},{"$f":"'Population 2016'!AQ156/'Population 2016'!AQ$5","v":0},{"$f":"'Population 2016'!AR156/'Population 2016'!AR$5","v":0},{"$f":"'Population 2016'!AS156/'Population 2016'!AS$5","v":0},{"$f":"'Population 2016'!AT156/'Population 2016'!AT$5","v":0},{"$f":"'Population 2016'!AU156/'Population 2016'!AU$5","v":0},{"$f":"'Population 2016'!AV156/'Population 2016'!AV$5","v":0},{"$f":"'Population 2016'!AW156/'Population 2016'!AW$5","v":0},{"$f":"'Population 2016'!AX156/'Population 2016'!AX$5","v":0},{"$f":"'Population 2016'!AY156/'Population 2016'!AY$5","v":0},{"$f":"'Population 2016'!AZ156/'Population 2016'!AZ$5","v":0},{"$f":"'Population 2016'!BA156/'Population 2016'!BA$5","v":0},{"$f":"'Population 2016'!BB156/'Population 2016'!BB$5","v":0},{"$f":"'Population 2016'!BC156/'Population 2016'!BC$5","v":0},154]
[null,"Male 10-15",{"$f":"'Population 2016'!C157/'Population 2016'!C$5","v":0},{"$f":"'Population 2016'!D157/'Population 2016'!D$5","v":0},{"$f":"'Population 2016'!E157/'Population 2016'!E$5","v":0},{"$f":"'Population 2016'!F157/'Population 2016'!F$5","v":0},{"$f":"'Population 2016'!G157/'Population 2016'!G$5","v":0},{"$f":"'Population 2016'!H157/'Population 2016'!H$5","v":0},{"$f":"'Population 2016'!I157/'Population 2016'!I$5","v":0},{"$f":"'Population 2016'!J157/'Population 2016'!J$5","v":0},{"$f":"'Population 2016'!K157/'Population 2016'!K$5","v":0},{"$f":"'Population 2016'!L157/'Population 2016'!L$5","v":0},{"$f":"'Population 2016'!M157/'Population 2016'!M$5","v":0},{"$f":"'Population 2016'!N157/'Population 2016'!N$5","v":0},{"$f":"'Population 2016'!O157/'Population 2016'!O$5","v":0},{"$f":"'Population 2016'!P157/'Population 2016'!P$5","v":0},{"$f":"'Population 2016'!Q157/'Population 2016'!Q$5","v":0},{"$f":"'Population 2016'!R157/'Population 2016'!R$5","v":0},{"$f":"'Population 2016'!S157/'Population 2016'!S$5","v":0},{"$f":"'Population 2016'!T157/'Population 2016'!T$5","v":0},{"$f":"'Population 2016'!U157/'Population 2016'!U$5","v":0},{"$f":"'Population 2016'!V157/'Population 2016'!V$5","v":0},{"$f":"'Population 2016'!W157/'Population 2016'!W$5","v":0},{"$f":"'Population 2016'!X157/'Population 2016'!X$5","v":0},{"$f":"'Population 2016'!Y157/'Population 2016'!Y$5","v":0},{"$f":"'Population 2016'!Z157/'Population 2016'!Z$5","v":0},{"$f":"'Population 2016'!AA157/'Population 2016'!AA$5","v":0},{"$f":"'Population 2016'!AB157/'Population 2016'!AB$5","v":0},{"$f":"'Population 2016'!AC157/'Population 2016'!AC$5","v":0},{"$f":"'Population 2016'!AD157/'Population 2016'!AD$5","v":0},{"$f":"'Population 2016'!AE157/'Population 2016'!AE$5","v":0},{"$f":"'Population 2016'!AF157/'Population 2016'!AF$5","v":0},{"$f":"'Population 2016'!AG157/'Population 2016'!AG$5","v":0},{"$f":"'Population 2016'!AH157/'Population 2016'!AH$5","v":0},{"$f":"'Population 2016'!AI157/'Population 2016'!AI$5","v":0},{"$f":"'Population 2016'!AJ157/'Population 2016'!AJ$5","v":0},{"$f":"'Population 2016'!AK157/'Population 2016'!AK$5","v":0},{"$f":"'Population 2016'!AL157/'Population 2016'!AL$5","v":0},{"$f":"'Population 2016'!AM157/'Population 2016'!AM$5","v":0},{"$f":"'Population 2016'!AN157/'Population 2016'!AN$5","v":0},{"$f":"'Population 2016'!AO157/'Population 2016'!AO$5","v":0},{"$f":"'Population 2016'!AP157/'Population 2016'!AP$5","v":0},{"$f":"'Population 2016'!AQ157/'Population 2016'!AQ$5","v":0},{"$f":"'Population 2016'!AR157/'Population 2016'!AR$5","v":0},{"$f":"'Population 2016'!AS157/'Population 2016'!AS$5","v":0},{"$f":"'Population 2016'!AT157/'Population 2016'!AT$5","v":0},{"$f":"'Population 2016'!AU157/'Population 2016'!AU$5","v":0},{"$f":"'Population 2016'!AV157/'Population 2016'!AV$5","v":0},{"$f":"'Population 2016'!AW157/'Population 2016'!AW$5","v":0},{"$f":"'Population 2016'!AX157/'Population 2016'!AX$5","v":0},{"$f":"'Population 2016'!AY157/'Population 2016'!AY$5","v":0},{"$f":"'Population 2016'!AZ157/'Population 2016'!AZ$5","v":0},{"$f":"'Population 2016'!BA157/'Population 2016'!BA$5","v":0},{"$f":"'Population 2016'!BB157/'Population 2016'!BB$5","v":0},{"$f":"'Population 2016'!BC157/'Population 2016'!BC$5","v":0},155]
[null,"Male 16-19",{"$f":"'Population 2016'!C158/'Population 2016'!C$5","v":3.163764419661339E-3},{"$f":"'Population 2016'!D158/'Population 2016'!D$5","v":4.5259822188316069E-3},{"$f":"'Population 2016'!E158/'Population 2016'!E$5","v":5.7753880338835264E-3},{"$f":"'Population 2016'!F158/'Population 2016'!F$5","v":9.5287149111511725E-3},{"$f":"'Population 2016'!G158/'Population 2016'!G$5","v":1.1029610783305364E-2},{"$f":"'Population 2016'!H158/'Population 2016'!H$5","v":4.6820335070181865E-3},{"$f":"'Population 2016'!I158/'Population 2016'!I$5","v":8.3116991876727234E-3},{"$f":"'Population 2016'!J158/'Population 2016'!J$5","v":4.2460379987228711E-3},{"$f":"'Population 2016'!K158/'Population 2016'!K$5","v":5.1268723715919293E-3},{"$f":"'Population 2016'!L158/'Population 2016'!L$5","v":9.5944593585690907E-3},{"$f":"'Population 2016'!M158/'Population 2016'!M$5","v":9.5944593585690907E-3},{"$f":"'Population 2016'!N158/'Population 2016'!N$5","v":3.1264818639940204E-3},{"$f":"'Population 2016'!O158/'Population 2016'!O$5","v":4.606651410229738E-3},{"$f":"'Population 2016'!P158/'Population 2016'!P$5","v":1.8032232615800743E-3},{"$f":"'Population 2016'!Q158/'Population 2016'!Q$5","v":6.0633835090069445E-3},{"$f":"'Population 2016'!R158/'Population 2016'!R$5","v":3.2735402139777506E-3},{"$f":"'Population 2016'!S158/'Population 2016'!S$5","v":4.9172861452748684E-3},{"$f":"'Population 2016'!T158/'Population 2016'!T$5","v":3.0502133520704691E-3},{"$f":"'Population 2016'!U158/'Population 2016'!U$5","v":1.6863630327977691E-2},{"$f":"'Population 2016'!V158/'Population 2016'!V$5","v":4.7778600377038792E-3},{"$f":"'Population 2016'!W158/'Population 2016'!W$5","v":5.412507599082227E-3},{"$f":"'Population 2016'!X158/'Population 2016'!X$5","v":5.412507599082227E-3},{"$f":"'Population 2016'!Y158/'Population 2016'!Y$5","v":4.5229805567479058E-3},{"$f":"'Population 2016'!Z158/'Population 2016'!Z$5","v":3.9761277471384079E-3},{"$f":"'Population 2016'!AA158/'Population 2016'!AA$5","v":4.4075136347902577E-3},{"$f":"'Population 2016'!AB158/'Population 2016'!AB$5","v":4.92922428175184E-3},{"$f":"'Population 2016'!AC158/'Population 2016'!AC$5","v":3.8972241586526031E-3},{"$f":"'Population 2016'!AD158/'Population 2016'!AD$5","v":9.3230116491123602E-3},{"$f":"'Population 2016'!AE158/'Population 2016'!AE$5","v":8.6756537541453193E-3},{"$f":"'Population 2016'!AF158/'Population 2016'!AF$5","v":3.921036360071785E-3},{"$f":"'Population 2016'!AG158/'Population 2016'!AG$5","v":8.6756537541453193E-3},{"$f":"'Population 2016'!AH158/'Population 2016'!AH$5","v":5.3240203226735273E-3},{"$f":"'Population 2016'!AI158/'Population 2016'!AI$5","v":4.2668321812932017E-3},{"$f":"'Population 2016'!AJ158/'Population 2016'!AJ$5","v":5.7440816440342416E-3},{"$f":"'Population 2016'!AK158/'Population 2016'!AK$5","v":7.0025017914838519E-3},{"$f":"'Population 2016'!AL158/'Population 2016'!AL$5","v":3.3965342934676574E-3},{"$f":"'Population 2016'!AM158/'Population 2016'!AM$5","v":5.3859053717795948E-3},{"$f":"'Population 2016'!AN158/'Population 2016'!AN$5","v":8.1815206719755649E-3},{"$f":"'Population 2016'!AO158/'Population 2016'!AO$5","v":8.1815206719755649E-3},{"$f":"'Population 2016'!AP158/'Population 2016'!AP$5","v":6.3963349872390345E-3},{"$f":"'Population 2016'!AQ158/'Population 2016'!AQ$5","v":5.3775963172028275E-3},{"$f":"'Population 2016'!AR158/'Population 2016'!AR$5","v":5.2858425100968344E-3},{"$f":"'Population 2016'!AS158/'Population 2016'!AS$5","v":8.3116991876727234E-3},{"$f":"'Population 2016'!AT158/'Population 2016'!AT$5","v":8.8047661728264878E-3},{"$f":"'Population 2016'!AU158/'Population 2016'!AU$5","v":8.8047661728264878E-3},{"$f":"'Population 2016'!AV158/'Population 2016'!AV$5","v":6.2928940977721465E-3},{"$f":"'Population 2016'!AW158/'Population 2016'!AW$5","v":5.2588626517786324E-3},{"$f":"'Population 2016'!AX158/'Population 2016'!AX$5","v":3.769630831746681E-3},{"$f":"'Population 2016'!AY158/'Population 2016'!AY$5","v":5.7785869465438637E-3},{"$f":"'Population 2016'!AZ158/'Population 2016'!AZ$5","v":6.1007530302420168E-3},{"$f":"'Population 2016'!BA158/'Population 2016'!BA$5","v":3.5494493629885555E-3},{"$f":"'Population 2016'!BB158/'Population 2016'!BB$5","v":6.09019285610711E-3},{"$f":"'Population 2016'!BC158/'Population 2016'!BC$5","v":1.6863630327977691E-2},156]
[null,"Male 20-24",{"$f":"'Population 2016'!C159/'Population 2016'!C$5","v":1.0324400852529734E-2},{"$f":"'Population 2016'!D159/'Population 2016'!D$5","v":8.6436235243488556E-3},{"$f":"'Population 2016'!E159/'Population 2016'!E$5","v":7.1020396682902132E-3},{"$f":"'Population 2016'!F159/'Population 2016'!F$5","v":1.0126191089363894E-2},{"$f":"'Population 2016'!G159/'Population 2016'!G$5","v":1.1124343636658908E-2},{"$f":"'Population 2016'!H159/'Population 2016'!H$5","v":5.849299478296959E-3},{"$f":"'Population 2016'!I159/'Population 2016'!I$5","v":9.8191106272506497E-3},{"$f":"'Population 2016'!J159/'Population 2016'!J$5","v":7.7208230015839716E-3},{"$f":"'Population 2016'!K159/'Population 2016'!K$5","v":6.9224590086471669E-3},{"$f":"'Population 2016'!L159/'Population 2016'!L$5","v":1.0976442742998745E-2},{"$f":"'Population 2016'!M159/'Population 2016'!M$5","v":1.0976442742998745E-2},{"$f":"'Population 2016'!N159/'Population 2016'!N$5","v":6.1243680729137365E-3},{"$f":"'Population 2016'!O159/'Population 2016'!O$5","v":6.2313628753430219E-3},{"$f":"'Population 2016'!P159/'Population 2016'!P$5","v":2.4907021300574778E-3},{"$f":"'Population 2016'!Q159/'Population 2016'!Q$5","v":7.4617219539135854E-3},{"$f":"'Population 2016'!R159/'Population 2016'!R$5","v":4.3381061372225471E-3},{"$f":"'Population 2016'!S159/'Population 2016'!S$5","v":8.2678548416423789E-3},{"$f":"'Population 2016'!T159/'Population 2016'!T$5","v":8.5503692363531458E-3},{"$f":"'Population 2016'!U159/'Population 2016'!U$5","v":1.9784889124950206E-2},{"$f":"'Population 2016'!V159/'Population 2016'!V$5","v":6.3348623503102558E-3},{"$f":"'Population 2016'!W159/'Population 2016'!W$5","v":7.4944927081494845E-3},{"$f":"'Population 2016'!X159/'Population 2016'!X$5","v":7.4944927081494845E-3},{"$f":"'Population 2016'!Y159/'Population 2016'!Y$5","v":6.9990938140888064E-3},{"$f":"'Population 2016'!Z159/'Population 2016'!Z$5","v":9.1640646324017624E-3},{"$f":"'Population 2016'!AA159/'Population 2016'!AA$5","v":6.945454859526282E-3},{"$f":"'Population 2016'!AB159/'Population 2016'!AB$5","v":8.6179544128634732E-3},{"$f":"'Population 2016'!AC159/'Population 2016'!AC$5","v":7.1593910897540655E-3},{"$f":"'Population 2016'!AD159/'Population 2016'!AD$5","v":9.6691354348877896E-3},{"$f":"'Population 2016'!AE159/'Population 2016'!AE$5","v":9.1171367262497562E-3},{"$f":"'Population 2016'!AF159/'Population 2016'!AF$5","v":5.8212309037988814E-3},{"$f":"'Population 2016'!AG159/'Population 2016'!AG$5","v":9.1171367262497562E-3},{"$f":"'Population 2016'!AH159/'Population 2016'!AH$5","v":6.5612141589961271E-3},{"$f":"'Population 2016'!AI159/'Population 2016'!AI$5","v":8.3887479219529274E-3},{"$f":"'Population 2016'!AJ159/'Population 2016'!AJ$5","v":8.3512254970303651E-3},{"$f":"'Population 2016'!AK159/'Population 2016'!AK$5","v":8.4859761386922791E-3},{"$f":"'Population 2016'!AL159/'Population 2016'!AL$5","v":4.6824284776786507E-3},{"$f":"'Population 2016'!AM159/'Population 2016'!AM$5","v":6.3240018689490057E-3},{"$f":"'Population 2016'!AN159/'Population 2016'!AN$5","v":9.8178248063706779E-3},{"$f":"'Population 2016'!AO159/'Population 2016'!AO$5","v":9.8178248063706779E-3},{"$f":"'Population 2016'!AP159/'Population 2016'!AP$5","v":8.4808902556948781E-3},{"$f":"'Population 2016'!AQ159/'Population 2016'!AQ$5","v":5.9187811695073159E-3},{"$f":"'Population 2016'!AR159/'Population 2016'!AR$5","v":7.8522396827826156E-3},{"$f":"'Population 2016'!AS159/'Population 2016'!AS$5","v":9.8191106272506497E-3},{"$f":"'Population 2016'!AT159/'Population 2016'!AT$5","v":1.2073601518426741E-2},{"$f":"'Population 2016'!AU159/'Population 2016'!AU$5","v":1.2073601518426741E-2},{"$f":"'Population 2016'!AV159/'Population 2016'!AV$5","v":6.8313800021117099E-3},{"$f":"'Population 2016'!AW159/'Population 2016'!AW$5","v":6.8109707730795045E-3},{"$f":"'Population 2016'!AX159/'Population 2016'!AX$5","v":8.1526253242521444E-3},{"$f":"'Population 2016'!AY159/'Population 2016'!AY$5","v":7.8149383433799447E-3},{"$f":"'Population 2016'!AZ159/'Population 2016'!AZ$5","v":8.0969447336781131E-3},{"$f":"'Population 2016'!BA159/'Population 2016'!BA$5","v":5.2769380263442021E-3},{"$f":"'Population 2016'!BB159/'Population 2016'!BB$5","v":8.4724111501626124E-3},{"$f":"'Population 2016'!BC159/'Population 2016'!BC$5","v":1.9784889124950206E-2},157]
[null,"Male 25-29",{"$f":"'Population 2016'!C160/'Population 2016'!C$5","v":1.2813501454104972E-2},{"$f":"'Population 2016'!D160/'Population 2016'!D$5","v":9.4407441096211967E-3},{"$f":"'Population 2016'!E160/'Population 2016'!E$5","v":6.3473014593167978E-3},{"$f":"'Population 2016'!F160/'Population 2016'!F$5","v":9.0033479268606751E-3},{"$f":"'Population 2016'!G160/'Population 2016'!G$5","v":1.0028149190710767E-2},{"$f":"'Population 2016'!H160/'Population 2016'!H$5","v":5.1910911667147628E-3},{"$f":"'Population 2016'!I160/'Population 2016'!I$5","v":9.0863411774558239E-3},{"$f":"'Population 2016'!J160/'Population 2016'!J$5","v":6.4934526425781411E-3},{"$f":"'Population 2016'!K160/'Population 2016'!K$5","v":5.3867599111657137E-3},{"$f":"'Population 2016'!L160/'Population 2016'!L$5","v":1.0444299715660891E-2},{"$f":"'Population 2016'!M160/'Population 2016'!M$5","v":1.0444299715660891E-2},{"$f":"'Population 2016'!N160/'Population 2016'!N$5","v":7.217431141045322E-3},{"$f":"'Population 2016'!O160/'Population 2016'!O$5","v":6.2214560981167216E-3},{"$f":"'Population 2016'!P160/'Population 2016'!P$5","v":2.3441902400540967E-3},{"$f":"'Population 2016'!Q160/'Population 2016'!Q$5","v":7.0151937110022209E-3},{"$f":"'Population 2016'!R160/'Population 2016'!R$5","v":3.3533826582211102E-3},{"$f":"'Population 2016'!S160/'Population 2016'!S$5","v":9.3438145995117135E-3},{"$f":"'Population 2016'!T160/'Population 2016'!T$5","v":1.1784386444116649E-2},{"$f":"'Population 2016'!U160/'Population 2016'!U$5","v":1.8191475235692471E-2},{"$f":"'Population 2016'!V160/'Population 2016'!V$5","v":5.8998175864937684E-3},{"$f":"'Population 2016'!W160/'Population 2016'!W$5","v":7.4650769059805598E-3},{"$f":"'Population 2016'!X160/'Population 2016'!X$5","v":7.4650769059805598E-3},{"$f":"'Population 2016'!Y160/'Population 2016'!Y$5","v":6.1843213939365036E-3},{"$f":"'Population 2016'!Z160/'Population 2016'!Z$5","v":9.4292688687006732E-3},{"$f":"'Population 2016'!AA160/'Population 2016'!AA$5","v":6.8836672852067926E-3},{"$f":"'Population 2016'!AB160/'Population 2016'!AB$5","v":9.3098471899532263E-3},{"$f":"'Population 2016'!AC160/'Population 2016'!AC$5","v":7.287643689454947E-3},{"$f":"'Population 2016'!AD160/'Population 2016'!AD$5","v":9.3862815884476532E-3},{"$f":"'Population 2016'!AE160/'Population 2016'!AE$5","v":9.142804340906991E-3},{"$f":"'Population 2016'!AF160/'Population 2016'!AF$5","v":5.4894509041004992E-3},{"$f":"'Population 2016'!AG160/'Population 2016'!AG$5","v":9.142804340906991E-3},{"$f":"'Population 2016'!AH160/'Population 2016'!AH$5","v":6.1581044555696941E-3},{"$f":"'Population 2016'!AI160/'Population 2016'!AI$5","v":1.0163290751596814E-2},{"$f":"'Population 2016'!AJ160/'Population 2016'!AJ$5","v":7.9190251791540021E-3},{"$f":"'Population 2016'!AK160/'Population 2016'!AK$5","v":8.6368379367134755E-3},{"$f":"'Population 2016'!AL160/'Population 2016'!AL$5","v":3.7423954878416489E-3},{"$f":"'Population 2016'!AM160/'Population 2016'!AM$5","v":5.9907784027729985E-3},{"$f":"'Population 2016'!AN160/'Population 2016'!AN$5","v":1.1072324642740263E-2},{"$f":"'Population 2016'!AO160/'Population 2016'!AO$5","v":1.1072324642740263E-2},{"$f":"'Population 2016'!AP160/'Population 2016'!AP$5","v":6.840194664172598E-3},{"$f":"'Population 2016'!AQ160/'Population 2016'!AQ$5","v":6.2750041102647008E-3},{"$f":"'Population 2016'!AR160/'Population 2016'!AR$5","v":8.0066245127019958E-3},{"$f":"'Population 2016'!AS160/'Population 2016'!AS$5","v":9.0863411774558239E-3},{"$f":"'Population 2016'!AT160/'Population 2016'!AT$5","v":1.0650076448568566E-2},{"$f":"'Population 2016'!AU160/'Population 2016'!AU$5","v":1.0650076448568566E-2},{"$f":"'Population 2016'!AV160/'Population 2016'!AV$5","v":5.8177594762960621E-3},{"$f":"'Population 2016'!AW160/'Population 2016'!AW$5","v":6.3342790896332903E-3},{"$f":"'Population 2016'!AX160/'Population 2016'!AX$5","v":7.0920173275234163E-3},{"$f":"'Population 2016'!AY160/'Population 2016'!AY$5","v":7.5257795049111101E-3},{"$f":"'Population 2016'!AZ160/'Population 2016'!AZ$5","v":7.5792004878301343E-3},{"$f":"'Population 2016'!BA160/'Population 2016'!BA$5","v":5.8707622543727059E-3},{"$f":"'Population 2016'!BB160/'Population 2016'!BB$5","v":8.3135965972255792E-3},{"$f":"'Population 2016'!BC160/'Population 2016'!BC$5","v":1.8191475235692471E-2},158]
[null,"Male 30-34",{"$f":"'Population 2016'!C161/'Population 2016'!C$5","v":9.7161811983460522E-3},{"$f":"'Population 2016'!D161/'Population 2016'!D$5","v":8.1570376456089905E-3},{"$f":"'Population 2016'!E161/'Population 2016'!E$5","v":6.7270144712847897E-3},{"$f":"'Population 2016'!F161/'Population 2016'!F$5","v":1.0064383208859129E-2},{"$f":"'Population 2016'!G161/'Population 2016'!G$5","v":9.5003518648838839E-3},{"$f":"'Population 2016'!H161/'Population 2016'!H$5","v":4.8344265643795823E-3},{"$f":"'Population 2016'!I161/'Population 2016'!I$5","v":9.2642994724059964E-3},{"$f":"'Population 2016'!J161/'Population 2016'!J$5","v":5.4319431428974238E-3},{"$f":"'Population 2016'!K161/'Population 2016'!K$5","v":5.1977507914756889E-3},{"$f":"'Population 2016'!L161/'Population 2016'!L$5","v":9.7930201896653055E-3},{"$f":"'Population 2016'!M161/'Population 2016'!M$5","v":9.7930201896653055E-3},{"$f":"'Population 2016'!N161/'Population 2016'!N$5","v":5.9154001334179923E-3},{"$f":"'Population 2016'!O161/'Population 2016'!O$5","v":5.2704054843918727E-3},{"$f":"'Population 2016'!P161/'Population 2016'!P$5","v":2.0173560238927082E-3},{"$f":"'Population 2016'!Q161/'Population 2016'!Q$5","v":6.1691401981175311E-3},{"$f":"'Population 2016'!R161/'Population 2016'!R$5","v":3.3799968063022304E-3},{"$f":"'Population 2016'!S161/'Population 2016'!S$5","v":8.79921478769434E-3},{"$f":"'Population 2016'!T161/'Population 2016'!T$5","v":1.0430287152808476E-2},{"$f":"'Population 2016'!U161/'Population 2016'!U$5","v":1.9873412118797857E-2},{"$f":"'Population 2016'!V161/'Population 2016'!V$5","v":5.9150823150487322E-3},{"$f":"'Population 2016'!W161/'Population 2016'!W$5","v":7.4029768791794952E-3},{"$f":"'Population 2016'!X161/'Population 2016'!X$5","v":7.4029768791794952E-3},{"$f":"'Population 2016'!Y161/'Population 2016'!Y$5","v":5.6835344430136246E-3},{"$f":"'Population 2016'!Z161/'Population 2016'!Z$5","v":8.6956016748518626E-3},{"$f":"'Population 2016'!AA161/'Population 2016'!AA$5","v":6.7879962023895185E-3},{"$f":"'Population 2016'!AB161/'Population 2016'!AB$5","v":8.45009876871744E-3},{"$f":"'Population 2016'!AC161/'Population 2016'!AC$5","v":6.8015249647822495E-3},{"$f":"'Population 2016'!AD161/'Population 2016'!AD$5","v":9.8738322974431508E-3},{"$f":"'Population 2016'!AE161/'Population 2016'!AE$5","v":1.001550323925297E-2},{"$f":"'Population 2016'!AF161/'Population 2016'!AF$5","v":4.8711336319353328E-3},{"$f":"'Population 2016'!AG161/'Population 2016'!AG$5","v":1.001550323925297E-2},{"$f":"'Population 2016'!AH161/'Population 2016'!AH$5","v":6.7636978349107863E-3},{"$f":"'Population 2016'!AI161/'Population 2016'!AI$5","v":9.3225019686761744E-3},{"$f":"'Population 2016'!AJ161/'Population 2016'!AJ$5","v":7.9050832334160558E-3},{"$f":"'Population 2016'!AK161/'Population 2016'!AK$5","v":9.9568786693989414E-3},{"$f":"'Population 2016'!AL161/'Population 2016'!AL$5","v":3.4940848867526294E-3},{"$f":"'Population 2016'!AM161/'Population 2016'!AM$5","v":6.979582818708324E-3},{"$f":"'Population 2016'!AN161/'Population 2016'!AN$5","v":9.5451074506381593E-3},{"$f":"'Population 2016'!AO161/'Population 2016'!AO$5","v":9.5451074506381593E-3},{"$f":"'Population 2016'!AP161/'Population 2016'!AP$5","v":7.6328012301253908E-3},{"$f":"'Population 2016'!AQ161/'Population 2016'!AQ$5","v":6.5079191099906833E-3},{"$f":"'Population 2016'!AR161/'Population 2016'!AR$5","v":7.7176820532424938E-3},{"$f":"'Population 2016'!AS161/'Population 2016'!AS$5","v":9.2642994724059964E-3},{"$f":"'Population 2016'!AT161/'Population 2016'!AT$5","v":1.1704539463278325E-2},{"$f":"'Population 2016'!AU161/'Population 2016'!AU$5","v":1.1704539463278325E-2},{"$f":"'Population 2016'!AV161/'Population 2016'!AV$5","v":5.9655791363108441E-3},{"$f":"'Population 2016'!AW161/'Population 2016'!AW$5","v":6.536396363414485E-3},{"$f":"'Population 2016'!AX161/'Population 2016'!AX$5","v":5.5586081756264618E-3},{"$f":"'Population 2016'!AY161/'Population 2016'!AY$5","v":7.5594382056852604E-3},{"$f":"'Population 2016'!AZ161/'Population 2016'!AZ$5","v":7.6971311216066183E-3},{"$f":"'Population 2016'!BA161/'Population 2016'!BA$5","v":5.1014899589721446E-3},{"$f":"'Population 2016'!BB161/'Population 2016'!BB$5","v":8.589795819724768E-3},{"$f":"'Population 2016'!BC161/'Population 2016'!BC$5","v":1.9873412118797857E-2},159]
[null,"Male 35-39",{"$f":"'Population 2016'!C162/'Population 2016'!C$5","v":7.0430813736564223E-3},{"$f":"'Population 2016'!D162/'Population 2016'!D$5","v":6.9148988194790845E-3},{"$f":"'Population 2016'!E162/'Population 2016'!E$5","v":6.7973316957233064E-3},{"$f":"'Population 2016'!F162/'Population 2016'!F$5","v":9.9613700746845231E-3},{"$f":"'Population 2016'!G162/'Population 2016'!G$5","v":1.0664212634655985E-2},{"$f":"'Population 2016'!H162/'Population 2016'!H$5","v":5.1683943283843421E-3},{"$f":"'Population 2016'!I162/'Population 2016'!I$5","v":8.7408927225525509E-3},{"$f":"'Population 2016'!J162/'Population 2016'!J$5","v":5.3241335843361003E-3},{"$f":"'Population 2016'!K162/'Population 2016'!K$5","v":5.2450030713981953E-3},{"$f":"'Population 2016'!L162/'Population 2016'!L$5","v":9.0861436309627817E-3},{"$f":"'Population 2016'!M162/'Population 2016'!M$5","v":9.0861436309627817E-3},{"$f":"'Population 2016'!N162/'Population 2016'!N$5","v":4.2436566174520376E-3},{"$f":"'Population 2016'!O162/'Population 2016'!O$5","v":5.9242527813277062E-3},{"$f":"'Population 2016'!P162/'Population 2016'!P$5","v":1.7806829708103234E-3},{"$f":"'Population 2016'!Q162/'Population 2016'!Q$5","v":6.3454013466351751E-3},{"$f":"'Population 2016'!R162/'Population 2016'!R$5","v":3.4997604726672701E-3},{"$f":"'Population 2016'!S162/'Population 2016'!S$5","v":7.8132861170298207E-3},{"$f":"'Population 2016'!T162/'Population 2016'!T$5","v":7.952425047579606E-3},{"$f":"'Population 2016'!U162/'Population 2016'!U$5","v":2.1909440977293852E-2},{"$f":"'Population 2016'!V162/'Population 2016'!V$5","v":7.1438929637233726E-3},{"$f":"'Population 2016'!W162/'Population 2016'!W$5","v":7.2951189378934363E-3},{"$f":"'Population 2016'!X162/'Population 2016'!X$5","v":7.2951189378934363E-3},{"$f":"'Population 2016'!Y162/'Population 2016'!Y$5","v":6.2717603853674822E-3},{"$f":"'Population 2016'!Z162/'Population 2016'!Z$5","v":6.6668860570324616E-3},{"$f":"'Population 2016'!AA162/'Population 2016'!AA$5","v":6.1116547974729551E-3},{"$f":"'Population 2016'!AB162/'Population 2016'!AB$5","v":7.2689681995435143E-3},{"$f":"'Population 2016'!AC162/'Population 2016'!AC$5","v":5.5593364789696762E-3},{"$f":"'Population 2016'!AD162/'Population 2016'!AD$5","v":1.0309278350515464E-2},{"$f":"'Population 2016'!AE162/'Population 2016'!AE$5","v":1.0174642450127825E-2},{"$f":"'Population 2016'!AF162/'Population 2016'!AF$5","v":5.2330754497881132E-3},{"$f":"'Population 2016'!AG162/'Population 2016'!AG$5","v":1.0174642450127825E-2},{"$f":"'Population 2016'!AH162/'Population 2016'!AH$5","v":7.1036474926390678E-3},{"$f":"'Population 2016'!AI162/'Population 2016'!AI$5","v":7.9088831043835853E-3},{"$f":"'Population 2016'!AJ162/'Population 2016'!AJ$5","v":8.1699802024370518E-3},{"$f":"'Population 2016'!AK162/'Population 2016'!AK$5","v":9.0894233307770647E-3},{"$f":"'Population 2016'!AL162/'Population 2016'!AL$5","v":3.6980543090757525E-3},{"$f":"'Population 2016'!AM162/'Population 2016'!AM$5","v":7.6496517452579044E-3},{"$f":"'Population 2016'!AN162/'Population 2016'!AN$5","v":8.836042325733609E-3},{"$f":"'Population 2016'!AO162/'Population 2016'!AO$5","v":8.836042325733609E-3},{"$f":"'Population 2016'!AP162/'Population 2016'!AP$5","v":7.4663538512753039E-3},{"$f":"'Population 2016'!AQ162/'Population 2016'!AQ$5","v":5.6927166109497452E-3},{"$f":"'Population 2016'!AR162/'Population 2016'!AR$5","v":7.1304404779647399E-3},{"$f":"'Population 2016'!AS162/'Population 2016'!AS$5","v":8.7408927225525509E-3},{"$f":"'Population 2016'!AT162/'Population 2016'!AT$5","v":1.186270891548479E-2},{"$f":"'Population 2016'!AU162/'Population 2016'!AU$5","v":1.186270891548479E-2},{"$f":"'Population 2016'!AV162/'Population 2016'!AV$5","v":6.113398796325626E-3},{"$f":"'Population 2016'!AW162/'Population 2016'!AW$5","v":6.5287692964793457E-3},{"$f":"'Population 2016'!AX162/'Population 2016'!AX$5","v":5.3669320316393418E-3},{"$f":"'Population 2016'!AY162/'Population 2016'!AY$5","v":7.1432942688412224E-3},{"$f":"'Population 2016'!AZ162/'Population 2016'!AZ$5","v":7.0096818173973575E-3},{"$f":"'Population 2016'!BA162/'Population 2016'!BA$5","v":4.4806737205787088E-3},{"$f":"'Population 2016'!BB162/'Population 2016'!BB$5","v":8.5690808780373284E-3},{"$f":"'Population 2016'!BC162/'Population 2016'!BC$5","v":2.1909440977293852E-2},160]
[null,"Male 40-44",{"$f":"'Population 2016'!C163/'Population 2016'!C$5","v":5.4330881714054983E-3},{"$f":"'Population 2016'!D163/'Population 2016'!D$5","v":6.5065579061647253E-3},{"$f":"'Population 2016'!E163/'Population 2016'!E$5","v":7.4911283101833405E-3},{"$f":"'Population 2016'!F163/'Population 2016'!F$5","v":1.1702292042235385E-2},{"$f":"'Population 2016'!G163/'Population 2016'!G$5","v":1.2761868673198723E-2},{"$f":"'Population 2016'!H163/'Population 2016'!H$5","v":5.7714817468783744E-3},{"$f":"'Population 2016'!I163/'Population 2016'!I$5","v":1.1494012226781676E-2},{"$f":"'Population 2016'!J163/'Population 2016'!J$5","v":5.9461118068052715E-3},{"$f":"'Population 2016'!K163/'Population 2016'!K$5","v":6.8988328686859137E-3},{"$f":"'Population 2016'!L163/'Population 2016'!L$5","v":1.0857306244341017E-2},{"$f":"'Population 2016'!M163/'Population 2016'!M$5","v":1.0857306244341017E-2},{"$f":"'Population 2016'!N163/'Population 2016'!N$5","v":3.8417951953448374E-3},{"$f":"'Population 2016'!O163/'Population 2016'!O$5","v":6.0332273308170122E-3},{"$f":"'Population 2016'!P163/'Population 2016'!P$5","v":2.1187873323565876E-3},{"$f":"'Population 2016'!Q163/'Population 2016'!Q$5","v":8.237271007391217E-3},{"$f":"'Population 2016'!R163/'Population 2016'!R$5","v":3.5263746207483898E-3},{"$f":"'Population 2016'!S163/'Population 2016'!S$5","v":7.6694129090456526E-3},{"$f":"'Population 2016'!T163/'Population 2016'!T$5","v":5.9445424214645678E-3},{"$f":"'Population 2016'!U163/'Population 2016'!U$5","v":2.4874961271190193E-2},{"$f":"'Population 2016'!V163/'Population 2016'!V$5","v":7.2812755207180531E-3},{"$f":"'Population 2016'!W163/'Population 2016'!W$5","v":7.7951875747651637E-3},{"$f":"'Population 2016'!X163/'Population 2016'!X$5","v":7.7951875747651637E-3},{"$f":"'Population 2016'!Y163/'Population 2016'!Y$5","v":6.641388849143893E-3},{"$f":"'Population 2016'!Z163/'Population 2016'!Z$5","v":4.837557565773554E-3},{"$f":"'Population 2016'!AA163/'Population 2016'!AA$5","v":5.6359569134648412E-3},{"$f":"'Population 2016'!AB163/'Population 2016'!AB$5","v":7.094971495245796E-3},{"$f":"'Population 2016'!AC163/'Population 2016'!AC$5","v":4.7081115632130171E-3},{"$f":"'Population 2016'!AD163/'Population 2016'!AD$5","v":1.0755889686999889E-2},{"$f":"'Population 2016'!AE163/'Population 2016'!AE$5","v":9.9949691475271826E-3},{"$f":"'Population 2016'!AF163/'Population 2016'!AF$5","v":5.2632372679425115E-3},{"$f":"'Population 2016'!AG163/'Population 2016'!AG$5","v":9.9949691475271826E-3},{"$f":"'Population 2016'!AH163/'Population 2016'!AH$5","v":7.3024158717479547E-3},{"$f":"'Population 2016'!AI163/'Population 2016'!AI$5","v":7.1173112258290311E-3},{"$f":"'Population 2016'!AJ163/'Population 2016'!AJ$5","v":8.922845272286201E-3},{"$f":"'Population 2016'!AK163/'Population 2016'!AK$5","v":1.0120312283921904E-2},{"$f":"'Population 2016'!AL163/'Population 2016'!AL$5","v":4.5671414128873201E-3},{"$f":"'Population 2016'!AM163/'Population 2016'!AM$5","v":7.6098098090846859E-3},{"$f":"'Population 2016'!AN163/'Population 2016'!AN$5","v":9.0542162103196249E-3},{"$f":"'Population 2016'!AO163/'Population 2016'!AO$5","v":9.0542162103196249E-3},{"$f":"'Population 2016'!AP163/'Population 2016'!AP$5","v":7.3157586037442737E-3},{"$f":"'Population 2016'!AQ163/'Population 2016'!AQ$5","v":5.8023236696443251E-3},{"$f":"'Population 2016'!AR163/'Population 2016'!AR$5","v":7.09123163227093E-3},{"$f":"'Population 2016'!AS163/'Population 2016'!AS$5","v":1.1494012226781676E-2},{"$f":"'Population 2016'!AT163/'Population 2016'!AT$5","v":1.159909316180735E-2},{"$f":"'Population 2016'!AU163/'Population 2016'!AU$5","v":1.159909316180735E-2},{"$f":"'Population 2016'!AV163/'Population 2016'!AV$5","v":6.9264069264069264E-3},{"$f":"'Population 2016'!AW163/'Population 2016'!AW$5","v":6.978766245652572E-3},{"$f":"'Population 2016'!AX163/'Population 2016'!AX$5","v":5.4308240796350484E-3},{"$f":"'Population 2016'!AY163/'Population 2016'!AY$5","v":7.5303693277439495E-3},{"$f":"'Population 2016'!AZ163/'Population 2016'!AZ$5","v":7.2973175095351235E-3},{"$f":"'Population 2016'!BA163/'Population 2016'!BA$5","v":5.4523860937162596E-3},{"$f":"'Population 2016'!BB163/'Population 2016'!BB$5","v":9.0455245368484295E-3},{"$f":"'Population 2016'!BC163/'Population 2016'!BC$5","v":2.4874961271190193E-2},161]
[null,"Male 45-49",{"$f":"'Population 2016'!C164/'Population 2016'!C$5","v":5.341088559848303E-3},{"$f":"'Population 2016'!D164/'Population 2016'!D$5","v":7.4699490429662669E-3},{"$f":"'Population 2016'!E164/'Population 2016'!E$5","v":9.4225080747612731E-3},{"$f":"'Population 2016'!F164/'Population 2016'!F$5","v":1.4092196755086274E-2},{"$f":"'Population 2016'!G164/'Population 2016'!G$5","v":1.6930114220754616E-2},{"$f":"'Population 2016'!H164/'Population 2016'!H$5","v":7.4445629723779482E-3},{"$f":"'Population 2016'!I164/'Population 2016'!I$5","v":1.4226195461016665E-2},{"$f":"'Population 2016'!J164/'Population 2016'!J$5","v":7.3144638962374465E-3},{"$f":"'Population 2016'!K164/'Population 2016'!K$5","v":8.7416717856636586E-3},{"$f":"'Population 2016'!L164/'Population 2016'!L$5","v":1.4979429097898431E-2},{"$f":"'Population 2016'!M164/'Population 2016'!M$5","v":1.4979429097898431E-2},{"$f":"'Population 2016'!N164/'Population 2016'!N$5","v":4.0266514495141499E-3},{"$f":"'Population 2016'!O164/'Population 2016'!O$5","v":7.905608226587809E-3},{"$f":"'Population 2016'!P164/'Population 2016'!P$5","v":2.6597543108306098E-3},{"$f":"'Population 2016'!Q164/'Population 2016'!Q$5","v":9.4240960740766856E-3},{"$f":"'Population 2016'!R164/'Population 2016'!R$5","v":4.0586575823707881E-3},{"$f":"'Population 2016'!S164/'Population 2016'!S$5","v":8.3781870563541649E-3},{"$f":"'Population 2016'!T164/'Population 2016'!T$5","v":5.211653629777155E-3},{"$f":"'Population 2016'!U164/'Population 2016'!U$5","v":3.3417430177488605E-2},{"$f":"'Population 2016'!V164/'Population 2016'!V$5","v":8.8535425618793927E-3},{"$f":"'Population 2016'!W164/'Population 2016'!W$5","v":9.3051987527699876E-3},{"$f":"'Population 2016'!X164/'Population 2016'!X$5","v":9.3051987527699876E-3},{"$f":"'Population 2016'!Y164/'Population 2016'!Y$5","v":8.1159282046390363E-3},{"$f":"'Population 2016'!Z164/'Population 2016'!Z$5","v":5.0369446923340493E-3},{"$f":"'Population 2016'!AA164/'Population 2016'!AA$5","v":6.5069623966137755E-3},{"$f":"'Population 2016'!AB164/'Population 2016'!AB$5","v":8.2535848438635463E-3},{"$f":"'Population 2016'!AC164/'Population 2016'!AC$5","v":5.3111056408389375E-3},{"$f":"'Population 2016'!AD164/'Population 2016'!AD$5","v":1.4138970560869404E-2},{"$f":"'Population 2016'!AE164/'Population 2016'!AE$5","v":1.308021642932679E-2},{"$f":"'Population 2016'!AF164/'Population 2016'!AF$5","v":6.0625254490340678E-3},{"$f":"'Population 2016'!AG164/'Population 2016'!AG$5","v":1.308021642932679E-2},{"$f":"'Population 2016'!AH164/'Population 2016'!AH$5","v":8.6547839090495345E-3},{"$f":"'Population 2016'!AI164/'Population 2016'!AI$5","v":7.2266821244203342E-3},{"$f":"'Population 2016'!AJ164/'Population 2016'!AJ$5","v":1.0358865683294761E-2},{"$f":"'Population 2016'!AK164/'Population 2016'!AK$5","v":1.2282664722225714E-2},{"$f":"'Population 2016'!AL164/'Population 2016'!AL$5","v":5.9771908976428232E-3},{"$f":"'Population 2016'!AM164/'Population 2016'!AM$5","v":8.5153083584760102E-3},{"$f":"'Population 2016'!AN164/'Population 2016'!AN$5","v":1.1781389767644812E-2},{"$f":"'Population 2016'!AO164/'Population 2016'!AO$5","v":1.1781389767644812E-2},{"$f":"'Population 2016'!AP164/'Population 2016'!AP$5","v":9.5667612510502032E-3},{"$f":"'Population 2016'!AQ164/'Population 2016'!AQ$5","v":7.5080835205787256E-3},{"$f":"'Population 2016'!AR164/'Population 2016'!AR$5","v":8.3877968705548915E-3},{"$f":"'Population 2016'!AS164/'Population 2016'!AS$5","v":1.4226195461016665E-2},{"$f":"'Population 2016'!AT164/'Population 2016'!AT$5","v":1.3866188643433332E-2},{"$f":"'Population 2016'!AU164/'Population 2016'!AU$5","v":1.3866188643433332E-2},{"$f":"'Population 2016'!AV164/'Population 2016'!AV$5","v":8.70024284658431E-3},{"$f":"'Population 2016'!AW164/'Population 2016'!AW$5","v":8.8016352431508939E-3},{"$f":"'Population 2016'!AX164/'Population 2016'!AX$5","v":6.5425457147603406E-3},{"$f":"'Population 2016'!AY164/'Population 2016'!AY$5","v":9.0618402129677787E-3},{"$f":"'Population 2016'!AZ164/'Population 2016'!AZ$5","v":8.8476738901576823E-3},{"$f":"'Population 2016'!BA164/'Population 2016'!BA$5","v":6.6670265601381992E-3},{"$f":"'Population 2016'!BB164/'Population 2016'!BB$5","v":1.0364375824282054E-2},{"$f":"'Population 2016'!BC164/'Population 2016'!BC$5","v":3.3417430177488605E-2},162]
[null,"Male 50-54",{"$f":"'Population 2016'!C165/'Population 2016'!C$5","v":5.4586436190602753E-3},{"$f":"'Population 2016'!D165/'Population 2016'!D$5","v":7.4797296636444546E-3},{"$f":"'Population 2016'!E165/'Population 2016'!E$5","v":9.3334395904724841E-3},{"$f":"'Population 2016'!F165/'Population 2016'!F$5","v":1.6399690960597475E-2},{"$f":"'Population 2016'!G165/'Population 2016'!G$5","v":1.893303740594381E-2},{"$f":"'Population 2016'!H165/'Population 2016'!H$5","v":8.3264972617885756E-3},{"$f":"'Population 2016'!I165/'Population 2016'!I$5","v":1.6340758730424589E-2},{"$f":"'Population 2016'!J165/'Population 2016'!J$5","v":7.8452186460778051E-3},{"$f":"'Population 2016'!K165/'Population 2016'!K$5","v":8.9779331852761889E-3},{"$f":"'Population 2016'!L165/'Population 2016'!L$5","v":1.7425698537003795E-2},{"$f":"'Population 2016'!M165/'Population 2016'!M$5","v":1.7425698537003795E-2},{"$f":"'Population 2016'!N165/'Population 2016'!N$5","v":5.1599006598564553E-3},{"$f":"'Population 2016'!O165/'Population 2016'!O$5","v":8.9656333898019639E-3},{"$f":"'Population 2016'!P165/'Population 2016'!P$5","v":2.7273751831398624E-3},{"$f":"'Population 2016'!Q165/'Population 2016'!Q$5","v":9.6238587090633487E-3},{"$f":"'Population 2016'!R165/'Population 2016'!R$5","v":5.1631447277372651E-3},{"$f":"'Population 2016'!S165/'Population 2016'!S$5","v":8.6694641031932786E-3},{"$f":"'Population 2016'!T165/'Population 2016'!T$5","v":5.1209150174729998E-3},{"$f":"'Population 2016'!U165/'Population 2016'!U$5","v":3.1868277785154692E-2},{"$f":"'Population 2016'!V165/'Population 2016'!V$5","v":9.1817342258111289E-3},{"$f":"'Population 2016'!W165/'Population 2016'!W$5","v":9.697409448355657E-3},{"$f":"'Population 2016'!X165/'Population 2016'!X$5","v":9.697409448355657E-3},{"$f":"'Population 2016'!Y165/'Population 2016'!Y$5","v":8.5411996629624325E-3},{"$f":"'Population 2016'!Z165/'Population 2016'!Z$5","v":5.0543668684412766E-3},{"$f":"'Population 2016'!AA165/'Population 2016'!AA$5","v":6.7992907052221128E-3},{"$f":"'Population 2016'!AB165/'Population 2016'!AB$5","v":8.310901405279264E-3},{"$f":"'Population 2016'!AC165/'Population 2016'!AC$5","v":5.7227551140724134E-3},{"$f":"'Population 2016'!AD165/'Population 2016'!AD$5","v":1.6383192526703637E-2},{"$f":"'Population 2016'!AE165/'Population 2016'!AE$5","v":1.5415969363135145E-2},{"$f":"'Population 2016'!AF165/'Population 2016'!AF$5","v":7.2237554479784045E-3},{"$f":"'Population 2016'!AG165/'Population 2016'!AG$5","v":1.5415969363135145E-2},{"$f":"'Population 2016'!AH165/'Population 2016'!AH$5","v":8.7328051419707786E-3},{"$f":"'Population 2016'!AI165/'Population 2016'!AI$5","v":7.2376192142794647E-3},{"$f":"'Population 2016'!AJ165/'Population 2016'!AJ$5","v":1.0442517357722444E-2},{"$f":"'Population 2016'!AK165/'Population 2016'!AK$5","v":1.2584388318268106E-2},{"$f":"'Population 2016'!AL165/'Population 2016'!AL$5","v":6.7043862294035228E-3},{"$f":"'Population 2016'!AM165/'Population 2016'!AM$5","v":8.4030265383514859E-3},{"$f":"'Population 2016'!AN165/'Population 2016'!AN$5","v":1.5490345805607068E-2},{"$f":"'Population 2016'!AO165/'Population 2016'!AO$5","v":1.5490345805607068E-2},{"$f":"'Population 2016'!AP165/'Population 2016'!AP$5","v":1.1247087170870123E-2},{"$f":"'Population 2016'!AQ165/'Population 2016'!AQ$5","v":8.6795089603770477E-3},{"$f":"'Population 2016'!AR165/'Population 2016'!AR$5","v":8.9970934215354136E-3},{"$f":"'Population 2016'!AS165/'Population 2016'!AS$5","v":1.6340758730424589E-2},{"$f":"'Population 2016'!AT165/'Population 2016'!AT$5","v":1.5816945220646386E-2},{"$f":"'Population 2016'!AU165/'Population 2016'!AU$5","v":1.5816945220646386E-2},{"$f":"'Population 2016'!AV165/'Population 2016'!AV$5","v":9.5766022595290892E-3},{"$f":"'Population 2016'!AW165/'Population 2016'!AW$5","v":9.080023186283483E-3},{"$f":"'Population 2016'!AX165/'Population 2016'!AX$5","v":7.2325798331139704E-3},{"$f":"'Population 2016'!AY165/'Population 2016'!AY$5","v":1.0128209051130627E-2},{"$f":"'Population 2016'!AZ165/'Population 2016'!AZ$5","v":1.0507331833792592E-2},{"$f":"'Population 2016'!BA165/'Population 2016'!BA$5","v":7.368818829626431E-3},{"$f":"'Population 2016'!BB165/'Population 2016'!BB$5","v":1.0530095357781568E-2},{"$f":"'Population 2016'!BC165/'Population 2016'!BC$5","v":3.1868277785154692E-2},163]
[null,"Male 55-59",{"$f":"'Population 2016'!C166/'Population 2016'!C$5","v":4.8402017858146821E-3},{"$f":"'Population 2016'!D166/'Population 2016'!D$5","v":6.8244280782058433E-3},{"$f":"'Population 2016'!E166/'Population 2016'!E$5","v":8.6443307909750185E-3},{"$f":"'Population 2016'!F166/'Population 2016'!F$5","v":1.5204738604172032E-2},{"$f":"'Population 2016'!G166/'Population 2016'!G$5","v":1.9122503112650895E-2},{"$f":"'Population 2016'!H166/'Population 2016'!H$5","v":7.2921699150165524E-3},{"$f":"'Population 2016'!I166/'Population 2016'!I$5","v":1.601624654551545E-2},{"$f":"'Population 2016'!J166/'Population 2016'!J$5","v":7.3642221540349802E-3},{"$f":"'Population 2016'!K166/'Population 2016'!K$5","v":8.8834286254311778E-3},{"$f":"'Population 2016'!L166/'Population 2016'!L$5","v":1.6726764411545123E-2},{"$f":"'Population 2016'!M166/'Population 2016'!M$5","v":1.6726764411545123E-2},{"$f":"'Population 2016'!N166/'Population 2016'!N$5","v":4.7901881515178303E-3},{"$f":"'Population 2016'!O166/'Population 2016'!O$5","v":7.0635321623522653E-3},{"$f":"'Population 2016'!P166/'Population 2016'!P$5","v":2.6034035839062322E-3},{"$f":"'Population 2016'!Q166/'Population 2016'!Q$5","v":9.8588735737535401E-3},{"$f":"'Population 2016'!R166/'Population 2016'!R$5","v":5.0566881354127853E-3},{"$f":"'Population 2016'!S166/'Population 2016'!S$5","v":8.114272398763573E-3},{"$f":"'Population 2016'!T166/'Population 2016'!T$5","v":4.3135740310744847E-3},{"$f":"'Population 2016'!U166/'Population 2016'!U$5","v":3.1381401318992606E-2},{"$f":"'Population 2016'!V166/'Population 2016'!V$5","v":7.800276291586845E-3},{"$f":"'Population 2016'!W166/'Population 2016'!W$5","v":9.4980356780996079E-3},{"$f":"'Population 2016'!X166/'Population 2016'!X$5","v":9.4980356780996079E-3},{"$f":"'Population 2016'!Y166/'Population 2016'!Y$5","v":7.5912942560531632E-3},{"$f":"'Population 2016'!Z166/'Population 2016'!Z$5","v":4.4852424489385057E-3},{"$f":"'Population 2016'!AA166/'Population 2016'!AA$5","v":6.1628122514794138E-3},{"$f":"'Population 2016'!AB166/'Population 2016'!AB$5","v":7.6824662497569163E-3},{"$f":"'Population 2016'!AC166/'Population 2016'!AC$5","v":5.2345677990819593E-3},{"$f":"'Population 2016'!AD166/'Population 2016'!AD$5","v":1.6301313781681492E-2},{"$f":"'Population 2016'!AE166/'Population 2016'!AE$5","v":1.5231162537603055E-2},{"$f":"'Population 2016'!AF166/'Population 2016'!AF$5","v":7.7063445384487773E-3},{"$f":"'Population 2016'!AG166/'Population 2016'!AG$5","v":1.5231162537603055E-2},{"$f":"'Population 2016'!AH166/'Population 2016'!AH$5","v":7.8299880181678019E-3},{"$f":"'Population 2016'!AI166/'Population 2016'!AI$5","v":6.5034670574853444E-3},{"$f":"'Population 2016'!AJ166/'Population 2016'!AJ$5","v":9.6478264506594542E-3},{"$f":"'Population 2016'!AK166/'Population 2016'!AK$5","v":1.2094087474699219E-2},{"$f":"'Population 2016'!AL166/'Population 2016'!AL$5","v":6.4028662137954277E-3},{"$f":"'Population 2016'!AM166/'Population 2016'!AM$5","v":6.9506068651278017E-3},{"$f":"'Population 2016'!AN166/'Population 2016'!AN$5","v":1.652667175739064E-2},{"$f":"'Population 2016'!AO166/'Population 2016'!AO$5","v":1.652667175739064E-2},{"$f":"'Population 2016'!AP166/'Population 2016'!AP$5","v":1.0494110933214972E-2},{"$f":"'Population 2016'!AQ166/'Population 2016'!AQ$5","v":7.5080835205787256E-3},{"$f":"'Population 2016'!AR166/'Population 2016'!AR$5","v":8.3641824521256646E-3},{"$f":"'Population 2016'!AS166/'Population 2016'!AS$5","v":1.601624654551545E-2},{"$f":"'Population 2016'!AT166/'Population 2016'!AT$5","v":1.4235250698581748E-2},{"$f":"'Population 2016'!AU166/'Population 2016'!AU$5","v":1.4235250698581748E-2},{"$f":"'Population 2016'!AV166/'Population 2016'!AV$5","v":8.5946573751451809E-3},{"$f":"'Population 2016'!AW166/'Population 2016'!AW$5","v":8.7558728415400577E-3},{"$f":"'Population 2016'!AX166/'Population 2016'!AX$5","v":6.5425457147603406E-3},{"$f":"'Population 2016'!AY166/'Population 2016'!AY$5","v":9.6416878308497288E-3},{"$f":"'Population 2016'!AZ166/'Population 2016'!AZ$5","v":9.7681081049985335E-3},{"$f":"'Population 2016'!BA166/'Population 2016'!BA$5","v":7.0988987259771111E-3},{"$f":"'Population 2016'!BB166/'Population 2016'!BB$5","v":9.473633331722171E-3},{"$f":"'Population 2016'!BC166/'Population 2016'!BC$5","v":3.1381401318992606E-2},164]
[null,"Male 60-64",{"$f":"'Population 2016'!C167/'Population 2016'!C$5","v":4.3444261013120163E-3},{"$f":"'Population 2016'!D167/'Population 2016'!D$5","v":6.2938294064141314E-3},{"$f":"'Population 2016'!E167/'Population 2016'!E$5","v":8.0817929954668834E-3},{"$f":"'Population 2016'!F167/'Population 2016'!F$5","v":1.2938449652330672E-2},{"$f":"'Population 2016'!G167/'Population 2016'!G$5","v":1.8540572727764847E-2},{"$f":"'Population 2016'!H167/'Population 2016'!H$5","v":7.0262926660030547E-3},{"$f":"'Population 2016'!I167/'Population 2016'!I$5","v":1.4131982246043045E-2},{"$f":"'Population 2016'!J167/'Population 2016'!J$5","v":6.4519874277468633E-3},{"$f":"'Population 2016'!K167/'Population 2016'!K$5","v":7.2768511080659641E-3},{"$f":"'Population 2016'!L167/'Population 2016'!L$5","v":1.6186678950963419E-2},{"$f":"'Population 2016'!M167/'Population 2016'!M$5","v":1.6186678950963419E-2},{"$f":"'Population 2016'!N167/'Population 2016'!N$5","v":4.0186142210720055E-3},{"$f":"'Population 2016'!O167/'Population 2016'!O$5","v":6.7366085138843481E-3},{"$f":"'Population 2016'!P167/'Population 2016'!P$5","v":2.299109658514595E-3},{"$f":"'Population 2016'!Q167/'Population 2016'!Q$5","v":8.6837992503025815E-3},{"$f":"'Population 2016'!R167/'Population 2016'!R$5","v":3.9388939160057484E-3},{"$f":"'Population 2016'!S167/'Population 2016'!S$5","v":6.9050313255224005E-3},{"$f":"'Population 2016'!T167/'Population 2016'!T$5","v":3.545785773116243E-3},{"$f":"'Population 2016'!U167/'Population 2016'!U$5","v":3.0230602398973135E-2},{"$f":"'Population 2016'!V167/'Population 2016'!V$5","v":6.4646125430274535E-3},{"$f":"'Population 2016'!W167/'Population 2016'!W$5","v":7.9455350080730042E-3},{"$f":"'Population 2016'!X167/'Population 2016'!X$5","v":7.9455350080730042E-3},{"$f":"'Population 2016'!Y167/'Population 2016'!Y$5","v":6.4585618670609368E-3},{"$f":"'Population 2016'!Z167/'Population 2016'!Z$5","v":3.7457678630539526E-3},{"$f":"'Population 2016'!AA167/'Population 2016'!AA$5","v":5.1888274777979974E-3},{"$f":"'Population 2016'!AB167/'Population 2016'!AB$5","v":6.980338372414358E-3},{"$f":"'Population 2016'!AC167/'Population 2016'!AC$5","v":4.3057707464094442E-3},{"$f":"'Population 2016'!AD167/'Population 2016'!AD$5","v":1.554951803193271E-2},{"$f":"'Population 2016'!AE167/'Population 2016'!AE$5","v":1.4414932391502993E-2},{"$f":"'Population 2016'!AF167/'Population 2016'!AF$5","v":5.7759881765672835E-3},{"$f":"'Population 2016'!AG167/'Population 2016'!AG$5","v":1.4414932391502993E-2},{"$f":"'Population 2016'!AH167/'Population 2016'!AH$5","v":6.7748437253281075E-3},{"$f":"'Population 2016'!AI167/'Population 2016'!AI$5","v":5.5259646513255755E-3},{"$f":"'Population 2016'!AJ167/'Population 2016'!AJ$5","v":9.1738002955692489E-3},{"$f":"'Population 2016'!AK167/'Population 2016'!AK$5","v":1.051003859547666E-2},{"$f":"'Population 2016'!AL167/'Population 2016'!AL$5","v":5.6845391177879076E-3},{"$f":"'Population 2016'!AM167/'Population 2016'!AM$5","v":5.9292045014143887E-3},{"$f":"'Population 2016'!AN167/'Population 2016'!AN$5","v":1.3199520017453911E-2},{"$f":"'Population 2016'!AO167/'Population 2016'!AO$5","v":1.3199520017453911E-2},{"$f":"'Population 2016'!AP167/'Population 2016'!AP$5","v":9.8996560087503769E-3},{"$f":"'Population 2016'!AQ167/'Population 2016'!AQ$5","v":6.0420891105387184E-3},{"$f":"'Population 2016'!AR167/'Population 2016'!AR$5","v":7.4066846180802235E-3},{"$f":"'Population 2016'!AS167/'Population 2016'!AS$5","v":1.4131982246043045E-2},{"$f":"'Population 2016'!AT167/'Population 2016'!AT$5","v":1.4024358095639795E-2},{"$f":"'Population 2016'!AU167/'Population 2016'!AU$5","v":1.4024358095639795E-2},{"$f":"'Population 2016'!AV167/'Population 2016'!AV$5","v":8.9325308837503968E-3},{"$f":"'Population 2016'!AW167/'Population 2016'!AW$5","v":7.6652022698151202E-3},{"$f":"'Population 2016'!AX167/'Population 2016'!AX$5","v":6.0058525115964066E-3},{"$f":"'Population 2016'!AY167/'Population 2016'!AY$5","v":8.3167589731036381E-3},{"$f":"'Population 2016'!AZ167/'Population 2016'!AZ$5","v":8.6434525487398672E-3},{"$f":"'Population 2016'!BA167/'Population 2016'!BA$5","v":6.2486503994817538E-3},{"$f":"'Population 2016'!BB167/'Population 2016'!BB$5","v":7.7404832105397621E-3},{"$f":"'Population 2016'!BC167/'Population 2016'!BC$5","v":3.0230602398973135E-2},165]
[null,"Male 65-69",{"$f":"'Population 2016'!C168/'Population 2016'!C$5","v":4.0990938038261617E-3},{"$f":"'Population 2016'!D168/'Population 2016'!D$5","v":6.3574034408223545E-3},{"$f":"'Population 2016'!E168/'Population 2016'!E$5","v":8.4286913026968991E-3},{"$f":"'Population 2016'!F168/'Population 2016'!F$5","v":1.5091424156579963E-2},{"$f":"'Population 2016'!G168/'Population 2016'!G$5","v":2.1233692415958426E-2},{"$f":"'Population 2016'!H168/'Population 2016'!H$5","v":7.5223807037965327E-3},{"$f":"'Population 2016'!I168/'Population 2016'!I$5","v":1.5304413365714765E-2},{"$f":"'Population 2016'!J168/'Population 2016'!J$5","v":6.6095552441057196E-3},{"$f":"'Population 2016'!K168/'Population 2016'!K$5","v":7.7021216273685201E-3},{"$f":"'Population 2016'!L168/'Population 2016'!L$5","v":1.7393928804028402E-2},{"$f":"'Population 2016'!M168/'Population 2016'!M$5","v":1.7393928804028402E-2},{"$f":"'Population 2016'!N168/'Population 2016'!N$5","v":4.0427259063984377E-3},{"$f":"'Population 2016'!O168/'Population 2016'!O$5","v":7.0239050534470632E-3},{"$f":"'Population 2016'!P168/'Population 2016'!P$5","v":2.5019722754423533E-3},{"$f":"'Population 2016'!Q168/'Population 2016'!Q$5","v":8.1197635750461222E-3},{"$f":"'Population 2016'!R168/'Population 2016'!R$5","v":3.4731463245861499E-3},{"$f":"'Population 2016'!S168/'Population 2016'!S$5","v":6.9350416879240071E-3},{"$f":"'Population 2016'!T168/'Population 2016'!T$5","v":3.1967911104079515E-3},{"$f":"'Population 2016'!U168/'Population 2016'!U$5","v":3.2886292214402695E-2},{"$f":"'Population 2016'!V168/'Population 2016'!V$5","v":6.9530838567863169E-3},{"$f":"'Population 2016'!W168/'Population 2016'!W$5","v":8.4782878695768699E-3},{"$f":"'Population 2016'!X168/'Population 2016'!X$5","v":8.4782878695768699E-3},{"$f":"'Population 2016'!Y168/'Population 2016'!Y$5","v":6.788445334732357E-3},{"$f":"'Population 2016'!Z168/'Population 2016'!Z$5","v":2.9714489249549445E-3},{"$f":"'Population 2016'!AA168/'Population 2016'!AA$5","v":4.6931981182029518E-3},{"$f":"'Population 2016'!AB168/'Population 2016'!AB$5","v":7.1011125553974803E-3},{"$f":"'Population 2016'!AC168/'Population 2016'!AC$5","v":3.8186177265778689E-3},{"$f":"'Population 2016'!AD168/'Population 2016'!AD$5","v":1.6126391008225091E-2},{"$f":"'Population 2016'!AE168/'Population 2016'!AE$5","v":1.4189057382519328E-2},{"$f":"'Population 2016'!AF168/'Population 2016'!AF$5","v":5.3989654496373043E-3},{"$f":"'Population 2016'!AG168/'Population 2016'!AG$5","v":1.4189057382519328E-2},{"$f":"'Population 2016'!AH168/'Population 2016'!AH$5","v":6.2639904145342408E-3},{"$f":"'Population 2016'!AI168/'Population 2016'!AI$5","v":5.1964848193192751E-3},{"$f":"'Population 2016'!AJ168/'Population 2016'!AJ$5","v":9.2295680785210391E-3},{"$f":"'Population 2016'!AK168/'Population 2016'!AK$5","v":1.092490854003495E-2},{"$f":"'Population 2016'!AL168/'Population 2016'!AL$5","v":6.766463879675777E-3},{"$f":"'Population 2016'!AM168/'Population 2016'!AM$5","v":5.9726684317851723E-3},{"$f":"'Population 2016'!AN168/'Population 2016'!AN$5","v":1.2763172248281881E-2},{"$f":"'Population 2016'!AO168/'Population 2016'!AO$5","v":1.2763172248281881E-2},{"$f":"'Population 2016'!AP168/'Population 2016'!AP$5","v":9.5746873167097315E-3},{"$f":"'Population 2016'!AQ168/'Population 2016'!AQ$5","v":6.2887049926015235E-3},{"$f":"'Population 2016'!AR168/'Population 2016'!AR$5","v":7.434309032091772E-3},{"$f":"'Population 2016'!AS168/'Population 2016'!AS$5","v":1.5304413365714765E-2},{"$f":"'Population 2016'!AT168/'Population 2016'!AT$5","v":1.4604312753730163E-2},{"$f":"'Population 2016'!AU168/'Population 2016'!AU$5","v":1.4604312753730163E-2},{"$f":"'Population 2016'!AV168/'Population 2016'!AV$5","v":8.9536479780382219E-3},{"$f":"'Population 2016'!AW168/'Population 2016'!AW$5","v":6.570718164622613E-3},{"$f":"'Population 2016'!AX168/'Population 2016'!AX$5","v":6.0186309211955483E-3},{"$f":"'Population 2016'!AY168/'Population 2016'!AY$5","v":8.8277592484930084E-3},{"$f":"'Population 2016'!AZ168/'Population 2016'!AZ$5","v":9.1353095822954474E-3},{"$f":"'Population 2016'!BA168/'Population 2016'!BA$5","v":5.3714100626214636E-3},{"$f":"'Population 2016'!BB168/'Population 2016'!BB$5","v":7.4159491241032154E-3},{"$f":"'Population 2016'!BC168/'Population 2016'!BC$5","v":3.2886292214402695E-2},166]
[null,"Male 70-74",{"$f":"'Population 2016'!C169/'Population 2016'!C$5","v":2.5351004073538358E-3},{"$f":"'Population 2016'!D169/'Population 2016'!D$5","v":4.327924650098295E-3},{"$f":"'Population 2016'!E169/'Population 2016'!E$5","v":5.9722762623113743E-3},{"$f":"'Population 2016'!F169/'Population 2016'!F$5","v":9.8583569405099152E-3},{"$f":"'Population 2016'!G169/'Population 2016'!G$5","v":1.5333188978509176E-2},{"$f":"'Population 2016'!H169/'Population 2016'!H$5","v":5.7098760428386615E-3},{"$f":"'Population 2016'!I169/'Population 2016'!I$5","v":1.1295117661837367E-2},{"$f":"'Population 2016'!J169/'Population 2016'!J$5","v":4.735327533731952E-3},{"$f":"'Population 2016'!K169/'Population 2016'!K$5","v":5.8829088503520293E-3},{"$f":"'Population 2016'!L169/'Population 2016'!L$5","v":1.3938970342954268E-2},{"$f":"'Population 2016'!M169/'Population 2016'!M$5","v":1.3938970342954268E-2},{"$f":"'Population 2016'!N169/'Population 2016'!N$5","v":2.8451788685189801E-3},{"$f":"'Population 2016'!O169/'Population 2016'!O$5","v":5.3991935883337793E-3},{"$f":"'Population 2016'!P169/'Population 2016'!P$5","v":1.3862278823396821E-3},{"$f":"'Population 2016'!Q169/'Population 2016'!Q$5","v":6.1808909413520402E-3},{"$f":"'Population 2016'!R169/'Population 2016'!R$5","v":2.8876350668015117E-3},{"$f":"'Population 2016'!S169/'Population 2016'!S$5","v":4.9393525882172259E-3},{"$f":"'Population 2016'!T169/'Population 2016'!T$5","v":1.8962043340483845E-3},{"$f":"'Population 2016'!U169/'Population 2016'!U$5","v":2.3724162351170718E-2},{"$f":"'Population 2016'!V169/'Population 2016'!V$5","v":5.2434342586302959E-3},{"$f":"'Population 2016'!W169/'Population 2016'!W$5","v":6.21000268010642E-3},{"$f":"'Population 2016'!X169/'Population 2016'!X$5","v":6.21000268010642E-3},{"$f":"'Population 2016'!Y169/'Population 2016'!Y$5","v":4.9999205100077901E-3},{"$f":"'Population 2016'!Z169/'Population 2016'!Z$5","v":2.1080833089745501E-3},{"$f":"'Population 2016'!AA169/'Population 2016'!AA$5","v":3.4441589814218714E-3},{"$f":"'Population 2016'!AB169/'Population 2016'!AB$5","v":4.92922428175184E-3},{"$f":"'Population 2016'!AC169/'Population 2016'!AC$5","v":2.8060427660362292E-3},{"$f":"'Population 2016'!AD169/'Population 2016'!AD$5","v":1.2114332502140012E-2},{"$f":"'Population 2016'!AE169/'Population 2016'!AE$5","v":1.0893335660530395E-2},{"$f":"'Population 2016'!AF169/'Population 2016'!AF$5","v":4.5393536322369515E-3},{"$f":"'Population 2016'!AG169/'Population 2016'!AG$5","v":1.0893335660530395E-2},{"$f":"'Population 2016'!AH169/'Population 2016'!AH$5","v":4.5902492035332469E-3},{"$f":"'Population 2016'!AI169/'Population 2016'!AI$5","v":3.5777955201679937E-3},{"$f":"'Population 2016'!AJ169/'Population 2016'!AJ$5","v":6.5527144968351783E-3},{"$f":"'Population 2016'!AK169/'Population 2016'!AK$5","v":8.020818928126925E-3},{"$f":"'Population 2016'!AL169/'Population 2016'!AL$5","v":5.090367322324897E-3},{"$f":"'Population 2016'!AM169/'Population 2016'!AM$5","v":4.2015132691757429E-3},{"$f":"'Population 2016'!AN169/'Population 2016'!AN$5","v":1.0635976873568233E-2},{"$f":"'Population 2016'!AO169/'Population 2016'!AO$5","v":1.0635976873568233E-2},{"$f":"'Population 2016'!AP169/'Population 2016'!AP$5","v":7.6882836897420861E-3},{"$f":"'Population 2016'!AQ169/'Population 2016'!AQ$5","v":4.6514495533512357E-3},{"$f":"'Population 2016'!AR169/'Population 2016'!AR$5","v":5.4437917805338328E-3},{"$f":"'Population 2016'!AS169/'Population 2016'!AS$5","v":1.1295117661837367E-2},{"$f":"'Population 2016'!AT169/'Population 2016'!AT$5","v":1.0913692202246006E-2},{"$f":"'Population 2016'!AU169/'Population 2016'!AU$5","v":1.0913692202246006E-2},{"$f":"'Population 2016'!AV169/'Population 2016'!AV$5","v":6.7785872663921444E-3},{"$f":"'Population 2016'!AW169/'Population 2016'!AW$5","v":4.9995423759838916E-3},{"$f":"'Population 2016'!AX169/'Population 2016'!AX$5","v":4.1146478909234955E-3},{"$f":"'Population 2016'!AY169/'Population 2016'!AY$5","v":6.3966830880328018E-3},{"$f":"'Population 2016'!AZ169/'Population 2016'!AZ$5","v":6.5609701376624424E-3},{"$f":"'Population 2016'!BA169/'Population 2016'!BA$5","v":4.1027855754696609E-3},{"$f":"'Population 2016'!BB169/'Population 2016'!BB$5","v":5.5654143333586517E-3},{"$f":"'Population 2016'!BC169/'Population 2016'!BC$5","v":2.3724162351170718E-2},167]
[null,"Male 75-79",{"$f":"'Population 2016'!C170/'Population 2016'!C$5","v":2.2948791993989358E-3},{"$f":"'Population 2016'!D170/'Population 2016'!D$5","v":3.2496112203280422E-3},{"$f":"'Population 2016'!E170/'Population 2016'!E$5","v":4.1252771670596622E-3},{"$f":"'Population 2016'!F170/'Population 2016'!F$5","v":7.3654390934844195E-3},{"$f":"'Population 2016'!G170/'Population 2016'!G$5","v":1.1516808314837871E-2},{"$f":"'Population 2016'!H170/'Population 2016'!H$5","v":4.2216119294582266E-3},{"$f":"'Population 2016'!I170/'Population 2016'!I$5","v":8.3640398626580684E-3},{"$f":"'Population 2016'!J170/'Population 2016'!J$5","v":3.3172171865022432E-3},{"$f":"'Population 2016'!K170/'Population 2016'!K$5","v":3.8983130936067665E-3},{"$f":"'Population 2016'!L170/'Population 2016'!L$5","v":1.0460184582148587E-2},{"$f":"'Population 2016'!M170/'Population 2016'!M$5","v":1.0460184582148587E-2},{"$f":"'Population 2016'!N170/'Population 2016'!N$5","v":2.4754663601803555E-3},{"$f":"'Population 2016'!O170/'Population 2016'!O$5","v":4.0320583311043087E-3},{"$f":"'Population 2016'!P170/'Population 2016'!P$5","v":7.6636988617153159E-4},{"$f":"'Population 2016'!Q170/'Population 2016'!Q$5","v":4.1010093888438444E-3},{"$f":"'Population 2016'!R170/'Population 2016'!R$5","v":2.2888167349763133E-3},{"$f":"'Population 2016'!S170/'Population 2016'!S$5","v":3.6709734478905364E-3},{"$f":"'Population 2016'!T170/'Population 2016'!T$5","v":1.5146368361539857E-3},{"$f":"'Population 2016'!U170/'Population 2016'!U$5","v":1.8279998229540122E-2},{"$f":"'Population 2016'!V170/'Population 2016'!V$5","v":3.7245937674113311E-3},{"$f":"'Population 2016'!W170/'Population 2016'!W$5","v":4.6999915021015953E-3},{"$f":"'Population 2016'!X170/'Population 2016'!X$5","v":4.6999915021015953E-3},{"$f":"'Population 2016'!Y170/'Population 2016'!Y$5","v":3.5293556541231459E-3},{"$f":"'Population 2016'!Z170/'Population 2016'!Z$5","v":1.5021787399120761E-3},{"$f":"'Population 2016'!AA170/'Population 2016'!AA$5","v":2.5379412247360242E-3},{"$f":"'Population 2016'!AB170/'Population 2016'!AB$5","v":3.8750089557127213E-3},{"$f":"'Population 2016'!AC170/'Population 2016'!AC$5","v":1.9610236212328383E-3},{"$f":"'Population 2016'!AD170/'Population 2016'!AD$5","v":8.533998287989876E-3},{"$f":"'Population 2016'!AE170/'Population 2016'!AE$5","v":7.4025400671464802E-3},{"$f":"'Population 2016'!AF170/'Population 2016'!AF$5","v":3.2273145425206233E-3},{"$f":"'Population 2016'!AG170/'Population 2016'!AG$5","v":7.4025400671464802E-3},{"$f":"'Population 2016'!AH170/'Population 2016'!AH$5","v":3.5741155271541755E-3},{"$f":"'Population 2016'!AI170/'Population 2016'!AI$5","v":2.6276358386560505E-3},{"$f":"'Population 2016'!AJ170/'Population 2016'!AJ$5","v":4.7960293338538329E-3},{"$f":"'Population 2016'!AK170/'Population 2016'!AK$5","v":7.0905045069962159E-3},{"$f":"'Population 2016'!AL170/'Population 2016'!AL$5","v":3.8044731381139036E-3},{"$f":"'Population 2016'!AM170/'Population 2016'!AM$5","v":3.0642070911402401E-3},{"$f":"'Population 2016'!AN170/'Population 2016'!AN$5","v":7.6360859605105269E-3},{"$f":"'Population 2016'!AO170/'Population 2016'!AO$5","v":7.6360859605105269E-3},{"$f":"'Population 2016'!AP170/'Population 2016'!AP$5","v":5.8811407193697192E-3},{"$f":"'Population 2016'!AQ170/'Population 2016'!AQ$5","v":3.2813613196689866E-3},{"$f":"'Population 2016'!AR170/'Population 2016'!AR$5","v":4.0425211020448078E-3},{"$f":"'Population 2016'!AS170/'Population 2016'!AS$5","v":8.3640398626580684E-3},{"$f":"'Population 2016'!AT170/'Population 2016'!AT$5","v":8.2248115147361203E-3},{"$f":"'Population 2016'!AU170/'Population 2016'!AU$5","v":8.2248115147361203E-3},{"$f":"'Population 2016'!AV170/'Population 2016'!AV$5","v":4.9202829690634569E-3},{"$f":"'Population 2016'!AW170/'Population 2016'!AW$5","v":4.1109890780401488E-3},{"$f":"'Population 2016'!AX170/'Population 2016'!AX$5","v":3.0029262557982033E-3},{"$f":"'Population 2016'!AY170/'Population 2016'!AY$5","v":4.9004008445274012E-3},{"$f":"'Population 2016'!AZ170/'Population 2016'!AZ$5","v":5.0767699662315697E-3},{"$f":"'Population 2016'!BA170/'Population 2016'!BA$5","v":2.5237529691211403E-3},{"$f":"'Population 2016'!BB170/'Population 2016'!BB$5","v":3.991078765113276E-3},{"$f":"'Population 2016'!BC170/'Population 2016'!BC$5","v":1.8279998229540122E-2},168]
[null,"Male 80-84",{"$f":"'Population 2016'!C171/'Population 2016'!C$5","v":1.6202153813128345E-3},{"$f":"'Population 2016'!D171/'Population 2016'!D$5","v":2.2397621353051063E-3},{"$f":"'Population 2016'!E171/'Population 2016'!E$5","v":2.8080011625781108E-3},{"$f":"'Population 2016'!F171/'Population 2016'!F$5","v":4.8416173062065413E-3},{"$f":"'Population 2016'!G171/'Population 2016'!G$5","v":6.8748985005142637E-3},{"$f":"'Population 2016'!H171/'Population 2016'!H$5","v":2.6036515970468172E-3},{"$f":"'Population 2016'!I171/'Population 2016'!I$5","v":5.4643664684699772E-3},{"$f":"'Population 2016'!J171/'Population 2016'!J$5","v":2.3469311594503371E-3},{"$f":"'Population 2016'!K171/'Population 2016'!K$5","v":2.4807446959315789E-3},{"$f":"'Population 2016'!L171/'Population 2016'!L$5","v":7.0846504535129386E-3},{"$f":"'Population 2016'!M171/'Population 2016'!M$5","v":7.0846504535129386E-3},{"$f":"'Population 2016'!N171/'Population 2016'!N$5","v":1.6878179728502423E-3},{"$f":"'Population 2016'!O171/'Population 2016'!O$5","v":2.5658553016118329E-3},{"$f":"'Population 2016'!P171/'Population 2016'!P$5","v":7.7764003155640703E-4},{"$f":"'Population 2016'!Q171/'Population 2016'!Q$5","v":3.2197036462556258E-3},{"$f":"'Population 2016'!R171/'Population 2016'!R$5","v":1.7166125512322352E-3},{"$f":"'Population 2016'!S171/'Population 2016'!S$5","v":2.4970386833571357E-3},{"$f":"'Population 2016'!T171/'Population 2016'!T$5","v":1.2680139411734596E-3},{"$f":"'Population 2016'!U171/'Population 2016'!U$5","v":1.0844066746337361E-2},{"$f":"'Population 2016'!V171/'Population 2016'!V$5","v":2.2133856404698482E-3},{"$f":"'Population 2016'!W171/'Population 2016'!W$5","v":2.9742644415246535E-3},{"$f":"'Population 2016'!X171/'Population 2016'!X$5","v":2.9742644415246535E-3},{"$f":"'Population 2016'!Y171/'Population 2016'!Y$5","v":2.2773882768159491E-3},{"$f":"'Population 2016'!Z171/'Population 2016'!Z$5","v":1.0356515797074236E-3},{"$f":"'Population 2016'!AA171/'Population 2016'!AA$5","v":1.7234082557500646E-3},{"$f":"'Population 2016'!AB171/'Population 2016'!AB$5","v":2.521928702291639E-3},{"$f":"'Population 2016'!AC171/'Population 2016'!AC$5","v":1.420087253139603E-3},{"$f":"'Population 2016'!AD171/'Population 2016'!AD$5","v":5.6607986899400798E-3},{"$f":"'Population 2016'!AE171/'Population 2016'!AE$5","v":5.2002587295557449E-3},{"$f":"'Population 2016'!AF171/'Population 2016'!AF$5","v":2.1264081798850836E-3},{"$f":"'Population 2016'!AG171/'Population 2016'!AG$5","v":5.2002587295557449E-3},{"$f":"'Population 2016'!AH171/'Population 2016'!AH$5","v":2.2681886999247653E-3},{"$f":"'Population 2016'!AI171/'Population 2016'!AI$5","v":1.9098893166506255E-3},{"$f":"'Population 2016'!AJ171/'Population 2016'!AJ$5","v":3.109053899562223E-3},{"$f":"'Population 2016'!AK171/'Population 2016'!AK$5","v":3.9726940145581634E-3},{"$f":"'Population 2016'!AL171/'Population 2016'!AL$5","v":2.4298965963711178E-3},{"$f":"'Population 2016'!AM171/'Population 2016'!AM$5","v":1.8508390349558661E-3},{"$f":"'Population 2016'!AN171/'Population 2016'!AN$5","v":5.7270644703828954E-3},{"$f":"'Population 2016'!AO171/'Population 2016'!AO$5","v":5.7270644703828954E-3},{"$f":"'Population 2016'!AP171/'Population 2016'!AP$5","v":4.1928887338902711E-3},{"$f":"'Population 2016'!AQ171/'Population 2016'!AQ$5","v":2.2948977914177674E-3},{"$f":"'Population 2016'!AR171/'Population 2016'!AR$5","v":2.6947170313200704E-3},{"$f":"'Population 2016'!AS171/'Population 2016'!AS$5","v":5.4643664684699772E-3},{"$f":"'Population 2016'!AT171/'Population 2016'!AT$5","v":4.90325301840038E-3},{"$f":"'Population 2016'!AU171/'Population 2016'!AU$5","v":4.90325301840038E-3},{"$f":"'Population 2016'!AV171/'Population 2016'!AV$5","v":2.8508077288565093E-3},{"$f":"'Population 2016'!AW171/'Population 2016'!AW$5","v":2.707608761974495E-3},{"$f":"'Population 2016'!AX171/'Population 2016'!AX$5","v":2.2745569086471498E-3},{"$f":"'Population 2016'!AY171/'Population 2016'!AY$5","v":3.2419448609283682E-3},{"$f":"'Population 2016'!AZ171/'Population 2016'!AZ$5","v":3.477515517945591E-3},{"$f":"'Population 2016'!BA171/'Population 2016'!BA$5","v":2.2133448499244224E-3},{"$f":"'Population 2016'!BB171/'Population 2016'!BB$5","v":2.4512680996802995E-3},{"$f":"'Population 2016'!BC171/'Population 2016'!BC$5","v":1.0844066746337361E-2},169]
[null,"Male 85-89",{"$f":"'Population 2016'!C172/'Population 2016'!C$5","v":8.0755214589093953E-4},{"$f":"'Population 2016'!D172/'Population 2016'!D$5","v":1.0196297057011238E-3},{"$f":"'Population 2016'!E172/'Population 2016'!E$5","v":1.2141440753050596E-3},{"$f":"'Population 2016'!F172/'Population 2016'!F$5","v":2.7504506824620138E-3},{"$f":"'Population 2016'!G172/'Population 2016'!G$5","v":3.3156498673740055E-3},{"$f":"'Population 2016'!H172/'Population 2016'!H$5","v":1.2126596479396135E-3},{"$f":"'Population 2016'!I172/'Population 2016'!I$5","v":2.7112469642408508E-3},{"$f":"'Population 2016'!J172/'Population 2016'!J$5","v":1.0283373278156954E-3},{"$f":"'Population 2016'!K172/'Population 2016'!K$5","v":1.3230638378301752E-3},{"$f":"'Population 2016'!L172/'Population 2016'!L$5","v":3.2802249297094657E-3},{"$f":"'Population 2016'!M172/'Population 2016'!M$5","v":3.2802249297094657E-3},{"$f":"'Population 2016'!N172/'Population 2016'!N$5","v":1.1573608956687376E-3},{"$f":"'Population 2016'!O172/'Population 2016'!O$5","v":1.0501183859878544E-3},{"$f":"'Population 2016'!P172/'Population 2016'!P$5","v":2.2540290769750929E-4},{"$f":"'Population 2016'!Q172/'Population 2016'!Q$5","v":1.6451040528313416E-3},{"$f":"'Population 2016'!R172/'Population 2016'!R$5","v":9.4480225687975728E-4},{"$f":"'Population 2016'!S172/'Population 2016'!S$5","v":1.2471953551020263E-3},{"$f":"'Population 2016'!T172/'Population 2016'!T$5","v":5.7700450901104219E-4},{"$f":"'Population 2016'!U172/'Population 2016'!U$5","v":6.5949630416500685E-3},{"$f":"'Population 2016'!V172/'Population 2016'!V$5","v":9.540455346852795E-4},{"$f":"'Population 2016'!W172/'Population 2016'!W$5","v":1.5263532903208937E-3},{"$f":"'Population 2016'!X172/'Population 2016'!X$5","v":1.5263532903208937E-3},{"$f":"'Population 2016'!Y172/'Population 2016'!Y$5","v":9.8965040301426054E-4},{"$f":"'Population 2016'!Z172/'Population 2016'!Z$5","v":4.5878397082366239E-4},{"$f":"'Population 2016'!AA172/'Population 2016'!AA$5","v":8.4177265228810012E-4},{"$f":"'Population 2016'!AB172/'Population 2016'!AB$5","v":1.2425411706907669E-3},{"$f":"'Population 2016'!AC172/'Population 2016'!AC$5","v":7.1780084026138705E-4},{"$f":"'Population 2016'!AD172/'Population 2016'!AD$5","v":2.7541032416539507E-3},{"$f":"'Population 2016'!AE172/'Population 2016'!AE$5","v":2.5410938510662326E-3},{"$f":"'Population 2016'!AF172/'Population 2016'!AF$5","v":1.3422009078707265E-3},{"$f":"'Population 2016'!AG172/'Population 2016'!AG$5","v":2.5410938510662326E-3},{"$f":"'Population 2016'!AH172/'Population 2016'!AH$5","v":1.0644325348541281E-3},{"$f":"'Population 2016'!AI172/'Population 2016'!AI$5","v":9.3922259165281298E-4},{"$f":"'Population 2016'!AJ172/'Population 2016'!AJ$5","v":1.6869754342916097E-3},{"$f":"'Population 2016'!AK172/'Population 2016'!AK$5","v":2.3886451353356047E-3},{"$f":"'Population 2016'!AL172/'Population 2016'!AL$5","v":1.0375835831219738E-3},{"$f":"'Population 2016'!AM172/'Population 2016'!AM$5","v":8.8376658420593213E-4},{"$f":"'Population 2016'!AN172/'Population 2016'!AN$5","v":2.8908039707646995E-3},{"$f":"'Population 2016'!AO172/'Population 2016'!AO$5","v":2.8908039707646995E-3},{"$f":"'Population 2016'!AP172/'Population 2016'!AP$5","v":2.2668547786249861E-3},{"$f":"'Population 2016'!AQ172/'Population 2016'!AQ$5","v":1.424891763029539E-3},{"$f":"'Population 2016'!AR172/'Population 2016'!AR$5","v":1.3408979672218505E-3},{"$f":"'Population 2016'!AS172/'Population 2016'!AS$5","v":2.7112469642408508E-3},{"$f":"'Population 2016'!AT172/'Population 2016'!AT$5","v":3.0052195919228132E-3},{"$f":"'Population 2016'!AU172/'Population 2016'!AU$5","v":3.0052195919228132E-3},{"$f":"'Population 2016'!AV172/'Population 2016'!AV$5","v":1.5943406187308626E-3},{"$f":"'Population 2016'!AW172/'Population 2016'!AW$5","v":1.254652510830435E-3},{"$f":"'Population 2016'!AX172/'Population 2016'!AX$5","v":8.6893185274160777E-4},{"$f":"'Population 2016'!AY172/'Population 2016'!AY$5","v":1.7808512591413971E-3},{"$f":"'Population 2016'!AZ172/'Population 2016'!AZ$5","v":2.0048207742002291E-3},{"$f":"'Population 2016'!BA172/'Population 2016'!BA$5","v":9.3122435759015326E-4},{"$f":"'Population 2016'!BB172/'Population 2016'!BB$5","v":1.2290865401213896E-3},{"$f":"'Population 2016'!BC172/'Population 2016'!BC$5","v":6.5949630416500685E-3},170]
[null,"Male 90+",{"$f":"'Population 2016'!C173/'Population 2016'!C$5","v":3.2199864045018479E-4},{"$f":"'Population 2016'!D173/'Population 2016'!D$5","v":4.5479886153575308E-4},{"$f":"'Population 2016'!E173/'Population 2016'!E$5","v":5.7660124039583913E-4},{"$f":"'Population 2016'!F173/'Population 2016'!F$5","v":1.205253669842905E-3},{"$f":"'Population 2016'!G173/'Population 2016'!G$5","v":1.3668597412439777E-3},{"$f":"'Population 2016'!H173/'Population 2016'!H$5","v":4.8311841589038077E-4},{"$f":"'Population 2016'!I173/'Population 2016'!I$5","v":9.7353655472740973E-4},{"$f":"'Population 2016'!J173/'Population 2016'!J$5","v":4.6441040611031406E-4},{"$f":"'Population 2016'!K173/'Population 2016'!K$5","v":6.3790577895383451E-4},{"$f":"'Population 2016'!L173/'Population 2016'!L$5","v":1.588486648769717E-3},{"$f":"'Population 2016'!M173/'Population 2016'!M$5","v":1.588486648769717E-3},{"$f":"'Population 2016'!N173/'Population 2016'!N$5","v":4.1793587899148857E-4},{"$f":"'Population 2016'!O173/'Population 2016'!O$5","v":3.4673720292051791E-4},{"$f":"'Population 2016'!P173/'Population 2016'!P$5","v":1.3524174461850558E-4},{"$f":"'Population 2016'!Q173/'Population 2016'!Q$5","v":6.9329385083606533E-4},{"$f":"'Population 2016'!R173/'Population 2016'!R$5","v":4.6574759141959865E-4},{"$f":"'Population 2016'!S173/'Population 2016'!S$5","v":5.0576287223882597E-4},{"$f":"'Population 2016'!T173/'Population 2016'!T$5","v":2.4429626389580416E-4},{"$f":"'Population 2016'!U173/'Population 2016'!U$5","v":2.6556898154295578E-3},{"$f":"'Population 2016'!V173/'Population 2016'!V$5","v":4.8847131375886305E-4},{"$f":"'Population 2016'!W173/'Population 2016'!W$5","v":6.4387922525313936E-4},{"$f":"'Population 2016'!X173/'Population 2016'!X$5","v":6.4387922525313936E-4},{"$f":"'Population 2016'!Y173/'Population 2016'!Y$5","v":4.7693995325988456E-4},{"$f":"'Population 2016'!Z173/'Population 2016'!Z$5","v":2.322956814297025E-4},{"$f":"'Population 2016'!AA173/'Population 2016'!AA$5","v":3.9862951173864257E-4},{"$f":"'Population 2016'!AB173/'Population 2016'!AB$5","v":5.3222521314596279E-4},{"$f":"'Population 2016'!AC173/'Population 2016'!AC$5","v":3.7441484751386475E-4},{"$f":"'Population 2016'!AD173/'Population 2016'!AD$5","v":1.0718672075626186E-3},{"$f":"'Population 2016'!AE173/'Population 2016'!AE$5","v":9.5996878818057675E-4},{"$f":"'Population 2016'!AF173/'Population 2016'!AF$5","v":5.7307454493356856E-4},{"$f":"'Population 2016'!AG173/'Population 2016'!AG$5","v":9.5996878818057675E-4},{"$f":"'Population 2016'!AH173/'Population 2016'!AH$5","v":4.42120319887055E-4},{"$f":"'Population 2016'!AI173/'Population 2016'!AI$5","v":3.8689955376673376E-4},{"$f":"'Population 2016'!AJ173/'Population 2016'!AJ$5","v":5.2979393804199312E-4},{"$f":"'Population 2016'!AK173/'Population 2016'!AK$5","v":9.303144211307092E-4},{"$f":"'Population 2016'!AL173/'Population 2016'!AL$5","v":5.2322590943757645E-4},{"$f":"'Population 2016'!AM173/'Population 2016'!AM$5","v":3.2597947778087661E-4},{"$f":"'Population 2016'!AN173/'Population 2016'!AN$5","v":1.145412894076579E-3},{"$f":"'Population 2016'!AO173/'Population 2016'!AO$5","v":1.145412894076579E-3},{"$f":"'Population 2016'!AP173/'Population 2016'!AP$5","v":1.0541667327172138E-3},{"$f":"'Population 2016'!AQ173/'Population 2016'!AQ$5","v":9.1110867539869573E-4},{"$f":"'Population 2016'!AR173/'Population 2016'!AR$5","v":5.7766214138665201E-4},{"$f":"'Population 2016'!AS173/'Population 2016'!AS$5","v":9.7353655472740973E-4},{"$f":"'Population 2016'!AT173/'Population 2016'!AT$5","v":1.0544630147097591E-3},{"$f":"'Population 2016'!AU173/'Population 2016'!AU$5","v":1.0544630147097591E-3},{"$f":"'Population 2016'!AV173/'Population 2016'!AV$5","v":5.8072009291521487E-4},{"$f":"'Population 2016'!AW173/'Population 2016'!AW$5","v":5.6440295320031727E-4},{"$f":"'Population 2016'!AX173/'Population 2016'!AX$5","v":3.7057387837509745E-4},{"$f":"'Population 2016'!AY173/'Population 2016'!AY$5","v":7.634405311954959E-4},{"$f":"'Population 2016'!AZ173/'Population 2016'!AZ$5","v":8.6865979025605334E-4},{"$f":"'Population 2016'!BA173/'Population 2016'!BA$5","v":3.2390412437918379E-4},{"$f":"'Population 2016'!BB173/'Population 2016'!BB$5","v":5.593034255608571E-4},{"$f":"'Population 2016'!BC173/'Population 2016'!BC$5","v":2.6556898154295578E-3},171]
["SIMD Q4","Female 0-4",{"$f":"'Population 2016'!C174/'Population 2016'!C$5","v":0},{"$f":"'Population 2016'!D174/'Population 2016'!D$5","v":0},{"$f":"'Population 2016'!E174/'Population 2016'!E$5","v":0},{"$f":"'Population 2016'!F174/'Population 2016'!F$5","v":0},{"$f":"'Population 2016'!G174/'Population 2016'!G$5","v":0},{"$f":"'Population 2016'!H174/'Population 2016'!H$5","v":0},{"$f":"'Population 2016'!I174/'Population 2016'!I$5","v":0},{"$f":"'Population 2016'!J174/'Population 2016'!J$5","v":0},{"$f":"'Population 2016'!K174/'Population 2016'!K$5","v":0},{"$f":"'Population 2016'!L174/'Population 2016'!L$5","v":0},{"$f":"'Population 2016'!M174/'Population 2016'!M$5","v":0},{"$f":"'Population 2016'!N174/'Population 2016'!N$5","v":0},{"$f":"'Population 2016'!O174/'Population 2016'!O$5","v":0},{"$f":"'Population 2016'!P174/'Population 2016'!P$5","v":0},{"$f":"'Population 2016'!Q174/'Population 2016'!Q$5","v":0},{"$f":"'Population 2016'!R174/'Population 2016'!R$5","v":0},{"$f":"'Population 2016'!S174/'Population 2016'!S$5","v":0},{"$f":"'Population 2016'!T174/'Population 2016'!T$5","v":0},{"$f":"'Population 2016'!U174/'Population 2016'!U$5","v":0},{"$f":"'Population 2016'!V174/'Population 2016'!V$5","v":0},{"$f":"'Population 2016'!W174/'Population 2016'!W$5","v":0},{"$f":"'Population 2016'!X174/'Population 2016'!X$5","v":0},{"$f":"'Population 2016'!Y174/'Population 2016'!Y$5","v":0},{"$f":"'Population 2016'!Z174/'Population 2016'!Z$5","v":0},{"$f":"'Population 2016'!AA174/'Population 2016'!AA$5","v":0},{"$f":"'Population 2016'!AB174/'Population 2016'!AB$5","v":0},{"$f":"'Population 2016'!AC174/'Population 2016'!AC$5","v":0},{"$f":"'Population 2016'!AD174/'Population 2016'!AD$5","v":0},{"$f":"'Population 2016'!AE174/'Population 2016'!AE$5","v":0},{"$f":"'Population 2016'!AF174/'Population 2016'!AF$5","v":0},{"$f":"'Population 2016'!AG174/'Population 2016'!AG$5","v":0},{"$f":"'Population 2016'!AH174/'Population 2016'!AH$5","v":0},{"$f":"'Population 2016'!AI174/'Population 2016'!AI$5","v":0},{"$f":"'Population 2016'!AJ174/'Population 2016'!AJ$5","v":0},{"$f":"'Population 2016'!AK174/'Population 2016'!AK$5","v":0},{"$f":"'Population 2016'!AL174/'Population 2016'!AL$5","v":0},{"$f":"'Population 2016'!AM174/'Population 2016'!AM$5","v":0},{"$f":"'Population 2016'!AN174/'Population 2016'!AN$5","v":0},{"$f":"'Population 2016'!AO174/'Population 2016'!AO$5","v":0},{"$f":"'Population 2016'!AP174/'Population 2016'!AP$5","v":0},{"$f":"'Population 2016'!AQ174/'Population 2016'!AQ$5","v":0},{"$f":"'Population 2016'!AR174/'Population 2016'!AR$5","v":0},{"$f":"'Population 2016'!AS174/'Population 2016'!AS$5","v":0},{"$f":"'Population 2016'!AT174/'Population 2016'!AT$5","v":0},{"$f":"'Population 2016'!AU174/'Population 2016'!AU$5","v":0},{"$f":"'Population 2016'!AV174/'Population 2016'!AV$5","v":0},{"$f":"'Population 2016'!AW174/'Population 2016'!AW$5","v":0},{"$f":"'Population 2016'!AX174/'Population 2016'!AX$5","v":0},{"$f":"'Population 2016'!AY174/'Population 2016'!AY$5","v":0},{"$f":"'Population 2016'!AZ174/'Population 2016'!AZ$5","v":0},{"$f":"'Population 2016'!BA174/'Population 2016'!BA$5","v":0},{"$f":"'Population 2016'!BB174/'Population 2016'!BB$5","v":0},{"$f":"'Population 2016'!BC174/'Population 2016'!BC$5","v":0},172]
[null,"Female 5-9",{"$f":"'Population 2016'!C175/'Population 2016'!C$5","v":0},{"$f":"'Population 2016'!D175/'Population 2016'!D$5","v":0},{"$f":"'Population 2016'!E175/'Population 2016'!E$5","v":0},{"$f":"'Population 2016'!F175/'Population 2016'!F$5","v":0},{"$f":"'Population 2016'!G175/'Population 2016'!G$5","v":0},{"$f":"'Population 2016'!H175/'Population 2016'!H$5","v":0},{"$f":"'Population 2016'!I175/'Population 2016'!I$5","v":0},{"$f":"'Population 2016'!J175/'Population 2016'!J$5","v":0},{"$f":"'Population 2016'!K175/'Population 2016'!K$5","v":0},{"$f":"'Population 2016'!L175/'Population 2016'!L$5","v":0},{"$f":"'Population 2016'!M175/'Population 2016'!M$5","v":0},{"$f":"'Population 2016'!N175/'Population 2016'!N$5","v":0},{"$f":"'Population 2016'!O175/'Population 2016'!O$5","v":0},{"$f":"'Population 2016'!P175/'Population 2016'!P$5","v":0},{"$f":"'Population 2016'!Q175/'Population 2016'!Q$5","v":0},{"$f":"'Population 2016'!R175/'Population 2016'!R$5","v":0},{"$f":"'Population 2016'!S175/'Population 2016'!S$5","v":0},{"$f":"'Population 2016'!T175/'Population 2016'!T$5","v":0},{"$f":"'Population 2016'!U175/'Population 2016'!U$5","v":0},{"$f":"'Population 2016'!V175/'Population 2016'!V$5","v":0},{"$f":"'Population 2016'!W175/'Population 2016'!W$5","v":0},{"$f":"'Population 2016'!X175/'Population 2016'!X$5","v":0},{"$f":"'Population 2016'!Y175/'Population 2016'!Y$5","v":0},{"$f":"'Population 2016'!Z175/'Population 2016'!Z$5","v":0},{"$f":"'Population 2016'!AA175/'Population 2016'!AA$5","v":0},{"$f":"'Population 2016'!AB175/'Population 2016'!AB$5","v":0},{"$f":"'Population 2016'!AC175/'Population 2016'!AC$5","v":0},{"$f":"'Population 2016'!AD175/'Population 2016'!AD$5","v":0},{"$f":"'Population 2016'!AE175/'Population 2016'!AE$5","v":0},{"$f":"'Population 2016'!AF175/'Population 2016'!AF$5","v":0},{"$f":"'Population 2016'!AG175/'Population 2016'!AG$5","v":0},{"$f":"'Population 2016'!AH175/'Population 2016'!AH$5","v":0},{"$f":"'Population 2016'!AI175/'Population 2016'!AI$5","v":0},{"$f":"'Population 2016'!AJ175/'Population 2016'!AJ$5","v":0},{"$f":"'Population 2016'!AK175/'Population 2016'!AK$5","v":0},{"$f":"'Population 2016'!AL175/'Population 2016'!AL$5","v":0},{"$f":"'Population 2016'!AM175/'Population 2016'!AM$5","v":0},{"$f":"'Population 2016'!AN175/'Population 2016'!AN$5","v":0},{"$f":"'Population 2016'!AO175/'Population 2016'!AO$5","v":0},{"$f":"'Population 2016'!AP175/'Population 2016'!AP$5","v":0},{"$f":"'Population 2016'!AQ175/'Population 2016'!AQ$5","v":0},{"$f":"'Population 2016'!AR175/'Population 2016'!AR$5","v":0},{"$f":"'Population 2016'!AS175/'Population 2016'!AS$5","v":0},{"$f":"'Population 2016'!AT175/'Population 2016'!AT$5","v":0},{"$f":"'Population 2016'!AU175/'Population 2016'!AU$5","v":0},{"$f":"'Population 2016'!AV175/'Population 2016'!AV$5","v":0},{"$f":"'Population 2016'!AW175/'Population 2016'!AW$5","v":0},{"$f":"'Population 2016'!AX175/'Population 2016'!AX$5","v":0},{"$f":"'Population 2016'!AY175/'Population 2016'!AY$5","v":0},{"$f":"'Population 2016'!AZ175/'Population 2016'!AZ$5","v":0},{"$f":"'Population 2016'!BA175/'Population 2016'!BA$5","v":0},{"$f":"'Population 2016'!BB175/'Population 2016'!BB$5","v":0},{"$f":"'Population 2016'!BC175/'Population 2016'!BC$5","v":0},173]
[null,"Female 10-15",{"$f":"'Population 2016'!C176/'Population 2016'!C$5","v":0},{"$f":"'Population 2016'!D176/'Population 2016'!D$5","v":0},{"$f":"'Population 2016'!E176/'Population 2016'!E$5","v":0},{"$f":"'Population 2016'!F176/'Population 2016'!F$5","v":0},{"$f":"'Population 2016'!G176/'Population 2016'!G$5","v":0},{"$f":"'Population 2016'!H176/'Population 2016'!H$5","v":0},{"$f":"'Population 2016'!I176/'Population 2016'!I$5","v":0},{"$f":"'Population 2016'!J176/'Population 2016'!J$5","v":0},{"$f":"'Population 2016'!K176/'Population 2016'!K$5","v":0},{"$f":"'Population 2016'!L176/'Population 2016'!L$5","v":0},{"$f":"'Population 2016'!M176/'Population 2016'!M$5","v":0},{"$f":"'Population 2016'!N176/'Population 2016'!N$5","v":0},{"$f":"'Population 2016'!O176/'Population 2016'!O$5","v":0},{"$f":"'Population 2016'!P176/'Population 2016'!P$5","v":0},{"$f":"'Population 2016'!Q176/'Population 2016'!Q$5","v":0},{"$f":"'Population 2016'!R176/'Population 2016'!R$5","v":0},{"$f":"'Population 2016'!S176/'Population 2016'!S$5","v":0},{"$f":"'Population 2016'!T176/'Population 2016'!T$5","v":0},{"$f":"'Population 2016'!U176/'Population 2016'!U$5","v":0},{"$f":"'Population 2016'!V176/'Population 2016'!V$5","v":0},{"$f":"'Population 2016'!W176/'Population 2016'!W$5","v":0},{"$f":"'Population 2016'!X176/'Population 2016'!X$5","v":0},{"$f":"'Population 2016'!Y176/'Population 2016'!Y$5","v":0},{"$f":"'Population 2016'!Z176/'Population 2016'!Z$5","v":0},{"$f":"'Population 2016'!AA176/'Population 2016'!AA$5","v":0},{"$f":"'Population 2016'!AB176/'Population 2016'!AB$5","v":0},{"$f":"'Population 2016'!AC176/'Population 2016'!AC$5","v":0},{"$f":"'Population 2016'!AD176/'Population 2016'!AD$5","v":0},{"$f":"'Population 2016'!AE176/'Population 2016'!AE$5","v":0},{"$f":"'Population 2016'!AF176/'Population 2016'!AF$5","v":0},{"$f":"'Population 2016'!AG176/'Population 2016'!AG$5","v":0},{"$f":"'Population 2016'!AH176/'Population 2016'!AH$5","v":0},{"$f":"'Population 2016'!AI176/'Population 2016'!AI$5","v":0},{"$f":"'Population 2016'!AJ176/'Population 2016'!AJ$5","v":0},{"$f":"'Population 2016'!AK176/'Population 2016'!AK$5","v":0},{"$f":"'Population 2016'!AL176/'Population 2016'!AL$5","v":0},{"$f":"'Population 2016'!AM176/'Population 2016'!AM$5","v":0},{"$f":"'Population 2016'!AN176/'Population 2016'!AN$5","v":0},{"$f":"'Population 2016'!AO176/'Population 2016'!AO$5","v":0},{"$f":"'Population 2016'!AP176/'Population 2016'!AP$5","v":0},{"$f":"'Population 2016'!AQ176/'Population 2016'!AQ$5","v":0},{"$f":"'Population 2016'!AR176/'Population 2016'!AR$5","v":0},{"$f":"'Population 2016'!AS176/'Population 2016'!AS$5","v":0},{"$f":"'Population 2016'!AT176/'Population 2016'!AT$5","v":0},{"$f":"'Population 2016'!AU176/'Population 2016'!AU$5","v":0},{"$f":"'Population 2016'!AV176/'Population 2016'!AV$5","v":0},{"$f":"'Population 2016'!AW176/'Population 2016'!AW$5","v":0},{"$f":"'Population 2016'!AX176/'Population 2016'!AX$5","v":0},{"$f":"'Population 2016'!AY176/'Population 2016'!AY$5","v":0},{"$f":"'Population 2016'!AZ176/'Population 2016'!AZ$5","v":0},{"$f":"'Population 2016'!BA176/'Population 2016'!BA$5","v":0},{"$f":"'Population 2016'!BB176/'Population 2016'!BB$5","v":0},{"$f":"'Population 2016'!BC176/'Population 2016'!BC$5","v":0},174]
[null,"Female 16-19",{"$f":"'Population 2016'!C177/'Population 2016'!C$5","v":5.5301988724936494E-3},{"$f":"'Population 2016'!D177/'Population 2016'!D$5","v":7.2767817845720492E-3},{"$f":"'Population 2016'!E177/'Population 2016'!E$5","v":8.8787215391034086E-3},{"$f":"'Population 2016'!F177/'Population 2016'!F$5","v":5.8614473345351536E-3},{"$f":"'Population 2016'!G177/'Population 2016'!G$5","v":5.8599036431548745E-3},{"$f":"'Population 2016'!H177/'Population 2016'!H$5","v":3.5439491850213839E-3},{"$f":"'Population 2016'!I177/'Population 2016'!I$5","v":9.1596181224353063E-3},{"$f":"'Population 2016'!J177/'Population 2016'!J$5","v":7.2978778103049355E-3},{"$f":"'Population 2016'!K177/'Population 2016'!K$5","v":4.2290790530643101E-3},{"$f":"'Population 2016'!L177/'Population 2016'!L$5","v":3.8203103902911695E-3},{"$f":"'Population 2016'!M177/'Population 2016'!M$5","v":3.8203103902911695E-3},{"$f":"'Population 2016'!N177/'Population 2016'!N$5","v":7.3219151107931941E-3},{"$f":"'Population 2016'!O177/'Population 2016'!O$5","v":3.3385839252632727E-3},{"$f":"'Population 2016'!P177/'Population 2016'!P$5","v":4.0797926293249182E-3},{"$f":"'Population 2016'!Q177/'Population 2016'!Q$5","v":1.0270149586961375E-2},{"$f":"'Population 2016'!R177/'Population 2016'!R$5","v":4.617554692074307E-3},{"$f":"'Population 2016'!S177/'Population 2016'!S$5","v":4.6569021185550539E-3},{"$f":"'Population 2016'!T177/'Population 2016'!T$5","v":3.089766080510742E-3},{"$f":"'Population 2016'!U177/'Population 2016'!U$5","v":1.2835834107909529E-3},{"$f":"'Population 2016'!V177/'Population 2016'!V$5","v":4.6175803878767529E-3},{"$f":"'Population 2016'!W177/'Population 2016'!W$5","v":4.0397701645323867E-3},{"$f":"'Population 2016'!X177/'Population 2016'!X$5","v":4.0397701645323867E-3},{"$f":"'Population 2016'!Y177/'Population 2016'!Y$5","v":5.9021319215910714E-3},{"$f":"'Population 2016'!Z177/'Population 2016'!Z$5","v":2.6830151205130639E-3},{"$f":"'Population 2016'!AA177/'Population 2016'!AA$5","v":3.8899596520495868E-3},{"$f":"'Population 2016'!AB177/'Population 2016'!AB$5","v":7.6783722096557937E-3},{"$f":"'Population 2016'!AC177/'Population 2016'!AC$5","v":3.3945567114378565E-3},{"$f":"'Population 2016'!AD177/'Population 2016'!AD$5","v":7.2425471733224165E-3},{"$f":"'Population 2016'!AE177/'Population 2016'!AE$5","v":7.7670201952792124E-3},{"$f":"'Population 2016'!AF177/'Population 2016'!AF$5","v":4.9012954500897311E-3},{"$f":"'Population 2016'!AG177/'Population 2016'!AG$5","v":7.7670201952792124E-3},{"$f":"'Population 2016'!AH177/'Population 2016'!AH$5","v":4.7797293406276996E-3},{"$f":"'Population 2016'!AI177/'Population 2016'!AI$5","v":4.3269861755184181E-3},{"$f":"'Population 2016'!AJ177/'Population 2016'!AJ$5","v":4.0013384267908432E-3},{"$f":"'Population 2016'!AK177/'Population 2016'!AK$5","v":9.7431577888689135E-3},{"$f":"'Population 2016'!AL177/'Population 2016'!AL$5","v":4.0882566822156401E-3},{"$f":"'Population 2016'!AM177/'Population 2016'!AM$5","v":4.1000974316439147E-3},{"$f":"'Population 2016'!AN177/'Population 2016'!AN$5","v":1.0745063815861241E-2},{"$f":"'Population 2016'!AO177/'Population 2016'!AO$5","v":1.0745063815861241E-2},{"$f":"'Population 2016'!AP177/'Population 2016'!AP$5","v":1.1508647337634546E-2},{"$f":"'Population 2016'!AQ177/'Population 2016'!AQ$5","v":4.432235435962076E-3},{"$f":"'Population 2016'!AR177/'Population 2016'!AR$5","v":5.2147764772768031E-3},{"$f":"'Population 2016'!AS177/'Population 2016'!AS$5","v":9.1596181224353063E-3},{"$f":"'Population 2016'!AT177/'Population 2016'!AT$5","v":1.9138503716982128E-2},{"$f":"'Population 2016'!AU177/'Population 2016'!AU$5","v":1.9138503716982128E-2},{"$f":"'Population 2016'!AV177/'Population 2016'!AV$5","v":3.1147714074543343E-3},{"$f":"'Population 2016'!AW177/'Population 2016'!AW$5","v":5.4953017267679542E-3},{"$f":"'Population 2016'!AX177/'Population 2016'!AX$5","v":8.957665128998045E-3},{"$f":"'Population 2016'!AY177/'Population 2016'!AY$5","v":6.3767938557571678E-3},{"$f":"'Population 2016'!AZ177/'Population 2016'!AZ$5","v":8.4334784934792986E-3},{"$f":"'Population 2016'!BA177/'Population 2016'!BA$5","v":2.9016411142301878E-3},{"$f":"'Population 2016'!BB177/'Population 2016'!BB$5","v":4.6677668602362887E-3},{"$f":"'Population 2016'!BC177/'Population 2016'!BC$5","v":1.2835834107909529E-3},175]
[null,"Female 20-24",{"$f":"'Population 2016'!C178/'Population 2016'!C$5","v":1.3145722273617067E-2},{"$f":"'Population 2016'!D178/'Population 2016'!D$5","v":1.1629157986365815E-2},{"$f":"'Population 2016'!E178/'Population 2016'!E$5","v":1.0238187878248069E-2},{"$f":"'Population 2016'!F178/'Population 2016'!F$5","v":6.5310327066701E-3},{"$f":"'Population 2016'!G178/'Population 2016'!G$5","v":6.2388350565690471E-3},{"$f":"'Population 2016'!H178/'Population 2016'!H$5","v":4.2767328225463905E-3},{"$f":"'Population 2016'!I178/'Population 2016'!I$5","v":8.7932333975378942E-3},{"$f":"'Population 2016'!J178/'Population 2016'!J$5","v":1.0399475879684532E-2},{"$f":"'Population 2016'!K178/'Population 2016'!K$5","v":4.5125927325993477E-3},{"$f":"'Population 2016'!L178/'Population 2016'!L$5","v":4.956078344161517E-3},{"$f":"'Population 2016'!M178/'Population 2016'!M$5","v":4.956078344161517E-3},{"$f":"'Population 2016'!N178/'Population 2016'!N$5","v":1.5994084599866582E-2},{"$f":"'Population 2016'!O178/'Population 2016'!O$5","v":4.4085158657037283E-3},{"$f":"'Population 2016'!P178/'Population 2016'!P$5","v":6.1985799616815053E-3},{"$f":"'Population 2016'!Q178/'Population 2016'!Q$5","v":1.3043324990305636E-2},{"$f":"'Population 2016'!R178/'Population 2016'!R$5","v":4.7506254324799066E-3},{"$f":"'Population 2016'!S178/'Population 2016'!S$5","v":7.2033696341030698E-3},{"$f":"'Population 2016'!T178/'Population 2016'!T$5","v":8.0408370287990399E-3},{"$f":"'Population 2016'!U178/'Population 2016'!U$5","v":2.2130748461912982E-3},{"$f":"'Population 2016'!V178/'Population 2016'!V$5","v":6.1440532433732001E-3},{"$f":"'Population 2016'!W178/'Population 2016'!W$5","v":5.2229390962158203E-3},{"$f":"'Population 2016'!X178/'Population 2016'!X$5","v":5.2229390962158203E-3},{"$f":"'Population 2016'!Y178/'Population 2016'!Y$5","v":8.18349469801752E-3},{"$f":"'Population 2016'!Z178/'Population 2016'!Z$5","v":9.5570314934870105E-3},{"$f":"'Population 2016'!AA178/'Population 2016'!AA$5","v":6.7953044101047265E-3},{"$f":"'Population 2016'!AB178/'Population 2016'!AB$5","v":1.1381431481121357E-2},{"$f":"'Population 2016'!AC178/'Population 2016'!AC$5","v":7.5824178097352E-3},{"$f":"'Population 2016'!AD178/'Population 2016'!AD$5","v":7.9236294614611642E-3},{"$f":"'Population 2016'!AE178/'Population 2016'!AE$5","v":8.5627162496534868E-3},{"$f":"'Population 2016'!AF178/'Population 2016'!AF$5","v":5.9871209036480716E-3},{"$f":"'Population 2016'!AG178/'Population 2016'!AG$5","v":8.5627162496534868E-3},{"$f":"'Population 2016'!AH178/'Population 2016'!AH$5","v":5.3816074231630177E-3},{"$f":"'Population 2016'!AI178/'Population 2016'!AI$5","v":7.8241206579753256E-3},{"$f":"'Population 2016'!AJ178/'Population 2016'!AJ$5","v":4.6287259849984667E-3},{"$f":"'Population 2016'!AK178/'Population 2016'!AK$5","v":1.0107740467420138E-2},{"$f":"'Population 2016'!AL178/'Population 2016'!AL$5","v":4.7445061279509058E-3},{"$f":"'Population 2016'!AM178/'Population 2016'!AM$5","v":4.607176619303056E-3},{"$f":"'Population 2016'!AN178/'Population 2016'!AN$5","v":1.2708628777135376E-2},{"$f":"'Population 2016'!AO178/'Population 2016'!AO$5","v":1.2708628777135376E-2},{"$f":"'Population 2016'!AP178/'Population 2016'!AP$5","v":1.175435537307991E-2},{"$f":"'Population 2016'!AQ178/'Population 2016'!AQ$5","v":5.5762591110867536E-3},{"$f":"'Population 2016'!AR178/'Population 2016'!AR$5","v":7.7600097843892211E-3},{"$f":"'Population 2016'!AS178/'Population 2016'!AS$5","v":8.7932333975378942E-3},{"$f":"'Population 2016'!AT178/'Population 2016'!AT$5","v":1.9138503716982128E-2},{"$f":"'Population 2016'!AU178/'Population 2016'!AU$5","v":1.9138503716982128E-2},{"$f":"'Population 2016'!AV178/'Population 2016'!AV$5","v":3.5793474817865062E-3},{"$f":"'Population 2016'!AW178/'Population 2016'!AW$5","v":6.196991884800781E-3},{"$f":"'Population 2016'!AX178/'Population 2016'!AX$5","v":1.3583449403887192E-2},{"$f":"'Population 2016'!AY178/'Population 2016'!AY$5","v":8.7283130871148376E-3},{"$f":"'Population 2016'!AZ178/'Population 2016'!AZ$5","v":1.1813197876098049E-2},{"$f":"'Population 2016'!BA178/'Population 2016'!BA$5","v":3.724897430360613E-3},{"$f":"'Population 2016'!BB178/'Population 2016'!BB$5","v":5.6966089640457665E-3},{"$f":"'Population 2016'!BC178/'Population 2016'!BC$5","v":2.2130748461912982E-3},176]
[null,"Female 25-29",{"$f":"'Population 2016'!C179/'Population 2016'!C$5","v":1.0712843656882338E-2},{"$f":"'Population 2016'!D179/'Population 2016'!D$5","v":1.0900501745840792E-2},{"$f":"'Population 2016'!E179/'Population 2016'!E$5","v":1.1072618941585137E-2},{"$f":"'Population 2016'!F179/'Population 2016'!F$5","v":6.5001287664177183E-3},{"$f":"'Population 2016'!G179/'Population 2016'!G$5","v":5.4945054945054949E-3},{"$f":"'Population 2016'!H179/'Population 2016'!H$5","v":3.9006137873565639E-3},{"$f":"'Population 2016'!I179/'Population 2016'!I$5","v":8.290762917678586E-3},{"$f":"'Population 2016'!J179/'Population 2016'!J$5","v":8.1852334076942847E-3},{"$f":"'Population 2016'!K179/'Population 2016'!K$5","v":4.1345744932192981E-3},{"$f":"'Population 2016'!L179/'Population 2016'!L$5","v":4.8210569790160911E-3},{"$f":"'Population 2016'!M179/'Population 2016'!M$5","v":4.8210569790160911E-3},{"$f":"'Population 2016'!N179/'Population 2016'!N$5","v":8.0211539852597224E-3},{"$f":"'Population 2016'!O179/'Population 2016'!O$5","v":4.0815922172358111E-3},{"$f":"'Population 2016'!P179/'Population 2016'!P$5","v":4.913783387805703E-3},{"$f":"'Population 2016'!Q179/'Population 2016'!Q$5","v":9.130327493213946E-3},{"$f":"'Population 2016'!R179/'Population 2016'!R$5","v":5.083302283493905E-3},{"$f":"'Population 2016'!S179/'Population 2016'!S$5","v":8.2457883987000213E-3},{"$f":"'Population 2016'!T179/'Population 2016'!T$5","v":1.1181788993173665E-2},{"$f":"'Population 2016'!U179/'Population 2016'!U$5","v":1.8147213738768646E-3},{"$f":"'Population 2016'!V179/'Population 2016'!V$5","v":5.922714679326215E-3},{"$f":"'Population 2016'!W179/'Population 2016'!W$5","v":5.16410749187797E-3},{"$f":"'Population 2016'!X179/'Population 2016'!X$5","v":5.16410749187797E-3},{"$f":"'Population 2016'!Y179/'Population 2016'!Y$5","v":7.0070428133098047E-3},{"$f":"'Population 2016'!Z179/'Population 2016'!Z$5","v":7.9290259261338442E-3},{"$f":"'Population 2016'!AA179/'Population 2016'!AA$5","v":6.0558466658295444E-3},{"$f":"'Population 2016'!AB179/'Population 2016'!AB$5","v":1.0953604290554026E-2},{"$f":"'Population 2016'!AC179/'Population 2016'!AC$5","v":6.4829620558478013E-3},{"$f":"'Population 2016'!AD179/'Population 2016'!AD$5","v":8.474450109791953E-3},{"$f":"'Population 2016'!AE179/'Population 2016'!AE$5","v":9.6048214047372155E-3},{"$f":"'Population 2016'!AF179/'Population 2016'!AF$5","v":4.8108099956265362E-3},{"$f":"'Population 2016'!AG179/'Population 2016'!AG$5","v":9.6048214047372155E-3},{"$f":"'Population 2016'!AH179/'Population 2016'!AH$5","v":5.2887250030186784E-3},{"$f":"'Population 2016'!AI179/'Population 2016'!AI$5","v":9.5289395397672588E-3},{"$f":"'Population 2016'!AJ179/'Population 2016'!AJ$5","v":5.367649109109667E-3},{"$f":"'Population 2016'!AK179/'Population 2016'!AK$5","v":1.1226632136077342E-2},{"$f":"'Population 2016'!AL179/'Population 2016'!AL$5","v":4.416381405083273E-3},{"$f":"'Population 2016'!AM179/'Population 2016'!AM$5","v":4.4695408397955744E-3},{"$f":"'Population 2016'!AN179/'Population 2016'!AN$5","v":1.4017672084651467E-2},{"$f":"'Population 2016'!AO179/'Population 2016'!AO$5","v":1.4017672084651467E-2},{"$f":"'Population 2016'!AP179/'Population 2016'!AP$5","v":1.099345306976523E-2},{"$f":"'Population 2016'!AQ179/'Population 2016'!AQ$5","v":5.1378308763084342E-3},{"$f":"'Population 2016'!AR179/'Population 2016'!AR$5","v":7.4481212390975458E-3},{"$f":"'Population 2016'!AS179/'Population 2016'!AS$5","v":8.290762917678586E-3},{"$f":"'Population 2016'!AT179/'Population 2016'!AT$5","v":2.4305372489059947E-2},{"$f":"'Population 2016'!AU179/'Population 2016'!AU$5","v":2.4305372489059947E-2},{"$f":"'Population 2016'!AV179/'Population 2016'!AV$5","v":3.0936543131665083E-3},{"$f":"'Population 2016'!AW179/'Population 2016'!AW$5","v":6.1512294831899449E-3},{"$f":"'Population 2016'!AX179/'Population 2016'!AX$5","v":1.0376068594502729E-2},{"$f":"'Population 2016'!AY179/'Population 2016'!AY$5","v":7.0316085799088154E-3},{"$f":"'Population 2016'!AZ179/'Population 2016'!AZ$5","v":8.6750924748750218E-3},{"$f":"'Population 2016'!BA179/'Population 2016'!BA$5","v":3.846361477002807E-3},{"$f":"'Population 2016'!BB179/'Population 2016'!BB$5","v":6.9187905236046763E-3},{"$f":"'Population 2016'!BC179/'Population 2016'!BC$5","v":1.8147213738768646E-3},177]
[null,"Female 30-34",{"$f":"'Population 2016'!C180/'Population 2016'!C$5","v":8.4792975318548659E-3},{"$f":"'Population 2016'!D180/'Population 2016'!D$5","v":1.108388838355682E-2},{"$f":"'Population 2016'!E180/'Population 2016'!E$5","v":1.347278020241985E-2},{"$f":"'Population 2016'!F180/'Population 2016'!F$5","v":7.2830285861447339E-3},{"$f":"'Population 2016'!G180/'Population 2016'!G$5","v":5.765170789801332E-3},{"$f":"'Population 2016'!H180/'Population 2016'!H$5","v":4.2378239568370982E-3},{"$f":"'Population 2016'!I180/'Population 2016'!I$5","v":9.6306841973034085E-3},{"$f":"'Population 2016'!J180/'Population 2016'!J$5","v":7.413980411832514E-3},{"$f":"'Population 2016'!K180/'Population 2016'!K$5","v":5.5521428908944853E-3},{"$f":"'Population 2016'!L180/'Population 2016'!L$5","v":4.956078344161517E-3},{"$f":"'Population 2016'!M180/'Population 2016'!M$5","v":4.956078344161517E-3},{"$f":"'Population 2016'!N180/'Population 2016'!N$5","v":6.2770754133144729E-3},{"$f":"'Population 2016'!O180/'Population 2016'!O$5","v":4.5670243013245359E-3},{"$f":"'Population 2016'!P180/'Population 2016'!P$5","v":5.263157894736842E-3},{"$f":"'Population 2016'!Q180/'Population 2016'!Q$5","v":1.014089141138177E-2},{"$f":"'Population 2016'!R180/'Population 2016'!R$5","v":4.5377122478309469E-3},{"$f":"'Population 2016'!S180/'Population 2016'!S$5","v":8.1045631638689362E-3},{"$f":"'Population 2016'!T180/'Population 2016'!T$5","v":9.4321624174627614E-3},{"$f":"'Population 2016'!U180/'Population 2016'!U$5","v":2.699951312353384E-3},{"$f":"'Population 2016'!V180/'Population 2016'!V$5","v":6.7317452927393318E-3},{"$f":"'Population 2016'!W180/'Population 2016'!W$5","v":5.4451918237143661E-3},{"$f":"'Population 2016'!X180/'Population 2016'!X$5","v":5.4451918237143661E-3},{"$f":"'Population 2016'!Y180/'Population 2016'!Y$5","v":7.0587113082462918E-3},{"$f":"'Population 2016'!Z180/'Population 2016'!Z$5","v":6.3223141295784026E-3},{"$f":"'Population 2016'!AA180/'Population 2016'!AA$5","v":5.8385935819319848E-3},{"$f":"'Population 2016'!AB180/'Population 2016'!AB$5","v":1.135482022046406E-2},{"$f":"'Population 2016'!AC180/'Population 2016'!AC$5","v":5.690691964147193E-3},{"$f":"'Population 2016'!AD180/'Population 2016'!AD$5","v":9.9259369533663336E-3},{"$f":"'Population 2016'!AE180/'Population 2016'!AE$5","v":1.1504224889372581E-2},{"$f":"'Population 2016'!AF180/'Population 2016'!AF$5","v":4.2980590870017642E-3},{"$f":"'Population 2016'!AG180/'Population 2016'!AG$5","v":1.1504224889372581E-2},{"$f":"'Population 2016'!AH180/'Population 2016'!AH$5","v":6.1042326518859777E-3},{"$f":"'Population 2016'!AI180/'Population 2016'!AI$5","v":9.0176305888529183E-3},{"$f":"'Population 2016'!AJ180/'Population 2016'!AJ$5","v":6.7060758999525974E-3},{"$f":"'Population 2016'!AK180/'Population 2016'!AK$5","v":1.274782193279107E-2},{"$f":"'Population 2016'!AL180/'Population 2016'!AL$5","v":4.1592025682410739E-3},{"$f":"'Population 2016'!AM180/'Population 2016'!AM$5","v":4.9440220796766283E-3},{"$f":"'Population 2016'!AN180/'Population 2016'!AN$5","v":1.5817606632486093E-2},{"$f":"'Population 2016'!AO180/'Population 2016'!AO$5","v":1.5817606632486093E-2},{"$f":"'Population 2016'!AP180/'Population 2016'!AP$5","v":1.324445571707116E-2},{"$f":"'Population 2016'!AQ180/'Population 2016'!AQ$5","v":5.8845289636652604E-3},{"$f":"'Population 2016'!AR180/'Population 2016'!AR$5","v":7.5383461396997808E-3},{"$f":"'Population 2016'!AS180/'Population 2016'!AS$5","v":9.6306841973034085E-3},{"$f":"'Population 2016'!AT180/'Population 2016'!AT$5","v":2.3040016871408234E-2},{"$f":"'Population 2016'!AU180/'Population 2016'!AU$5","v":2.3040016871408234E-2},{"$f":"'Population 2016'!AV180/'Population 2016'!AV$5","v":3.9805722732552005E-3},{"$f":"'Population 2016'!AW180/'Population 2016'!AW$5","v":7.3257977912014154E-3},{"$f":"'Population 2016'!AX180/'Population 2016'!AX$5","v":8.4209719258341101E-3},{"$f":"'Population 2016'!AY180/'Population 2016'!AY$5","v":7.3819650561488329E-3},{"$f":"'Population 2016'!AZ180/'Population 2016'!AZ$5","v":9.0864115146320271E-3},{"$f":"'Population 2016'!BA180/'Population 2016'!BA$5","v":3.832865471820341E-3},{"$f":"'Population 2016'!BB180/'Population 2016'!BB$5","v":8.2721667138507E-3},{"$f":"'Population 2016'!BC180/'Population 2016'!BC$5","v":2.699951312353384E-3},178]
[null,"Female 35-39",{"$f":"'Population 2016'!C181/'Population 2016'!C$5","v":6.5881944054013994E-3},{"$f":"'Population 2016'!D181/'Population 2016'!D$5","v":1.0462818970491868E-2},{"$f":"'Population 2016'!E181/'Population 2016'!E$5","v":1.4016566738077715E-2},{"$f":"'Population 2016'!F181/'Population 2016'!F$5","v":7.8599021375225335E-3},{"$f":"'Population 2016'!G181/'Population 2016'!G$5","v":7.0508309424565582E-3},{"$f":"'Population 2016'!H181/'Population 2016'!H$5","v":4.6528518577362175E-3},{"$f":"'Population 2016'!I181/'Population 2016'!I$5","v":9.9028557072272008E-3},{"$f":"'Population 2016'!J181/'Population 2016'!J$5","v":8.1271821069304959E-3},{"$f":"'Population 2016'!K181/'Population 2016'!K$5","v":5.7647781505457641E-3},{"$f":"'Population 2016'!L181/'Population 2016'!L$5","v":4.8051721125283945E-3},{"$f":"'Population 2016'!M181/'Population 2016'!M$5","v":4.8051721125283945E-3},{"$f":"'Population 2016'!N181/'Population 2016'!N$5","v":5.3045707718150474E-3},{"$f":"'Population 2016'!O181/'Population 2016'!O$5","v":5.3793800338811778E-3},{"$f":"'Population 2016'!P181/'Population 2016'!P$5","v":5.6576129832074835E-3},{"$f":"'Population 2016'!Q181/'Population 2016'!Q$5","v":1.125721201866018E-2},{"$f":"'Population 2016'!R181/'Population 2016'!R$5","v":5.3760579123862248E-3},{"$f":"'Population 2016'!S181/'Population 2016'!S$5","v":7.4266820366797239E-3},{"$f":"'Population 2016'!T181/'Population 2016'!T$5","v":7.0450389245380477E-3},{"$f":"'Population 2016'!U181/'Population 2016'!U$5","v":2.0360288584959944E-3},{"$f":"'Population 2016'!V181/'Population 2016'!V$5","v":7.1820547851107839E-3},{"$f":"'Population 2016'!W181/'Population 2016'!W$5","v":5.8439393642264626E-3},{"$f":"'Population 2016'!X181/'Population 2016'!X$5","v":5.8439393642264626E-3},{"$f":"'Population 2016'!Y181/'Population 2016'!Y$5","v":7.6350137517686521E-3},{"$f":"'Population 2016'!Z181/'Population 2016'!Z$5","v":4.6478494259392976E-3},{"$f":"'Population 2016'!AA181/'Population 2016'!AA$5","v":5.7455800291929676E-3},{"$f":"'Population 2016'!AB181/'Population 2016'!AB$5","v":1.0781654606306869E-2},{"$f":"'Population 2016'!AC181/'Population 2016'!AC$5","v":4.9925427319044893E-3},{"$f":"'Population 2016'!AD181/'Population 2016'!AD$5","v":9.9371022367784438E-3},{"$f":"'Population 2016'!AE181/'Population 2016'!AE$5","v":1.1031940779679462E-2},{"$f":"'Population 2016'!AF181/'Population 2016'!AF$5","v":6.0776063581112674E-3},{"$f":"'Population 2016'!AG181/'Population 2016'!AG$5","v":1.1031940779679462E-2},{"$f":"'Population 2016'!AH181/'Population 2016'!AH$5","v":7.0980745474304077E-3},{"$f":"'Population 2016'!AI181/'Population 2016'!AI$5","v":7.7653337999825005E-3},{"$f":"'Population 2016'!AJ181/'Population 2016'!AJ$5","v":6.8594373030700165E-3},{"$f":"'Population 2016'!AK181/'Population 2016'!AK$5","v":1.2420954703745143E-2},{"$f":"'Population 2016'!AL181/'Population 2016'!AL$5","v":4.5405367056277823E-3},{"$f":"'Population 2016'!AM181/'Population 2016'!AM$5","v":5.5199191570895105E-3},{"$f":"'Population 2016'!AN181/'Population 2016'!AN$5","v":1.7181193411148685E-2},{"$f":"'Population 2016'!AO181/'Population 2016'!AO$5","v":1.7181193411148685E-2},{"$f":"'Population 2016'!AP181/'Population 2016'!AP$5","v":1.252318374205412E-2},{"$f":"'Population 2016'!AQ181/'Population 2016'!AQ$5","v":5.8434263166547923E-3},{"$f":"'Population 2016'!AR181/'Population 2016'!AR$5","v":7.3071030611192387E-3},{"$f":"'Population 2016'!AS181/'Population 2016'!AS$5","v":9.9028557072272008E-3},{"$f":"'Population 2016'!AT181/'Population 2016'!AT$5","v":2.5096219750092266E-2},{"$f":"'Population 2016'!AU181/'Population 2016'!AU$5","v":2.5096219750092266E-2},{"$f":"'Population 2016'!AV181/'Population 2016'!AV$5","v":4.0122479146869391E-3},{"$f":"'Population 2016'!AW181/'Population 2016'!AW$5","v":8.7596863750076265E-3},{"$f":"'Population 2016'!AX181/'Population 2016'!AX$5","v":9.4049094649679907E-3},{"$f":"'Population 2016'!AY181/'Population 2016'!AY$5","v":7.3299470640433278E-3},{"$f":"'Population 2016'!AZ181/'Population 2016'!AZ$5","v":8.6376998348971119E-3},{"$f":"'Population 2016'!BA181/'Population 2016'!BA$5","v":3.5629453681710215E-3},{"$f":"'Population 2016'!BB181/'Population 2016'!BB$5","v":8.2997866361006201E-3},{"$f":"'Population 2016'!BC181/'Population 2016'!BC$5","v":2.0360288584959944E-3},179]
[null,"Female 40-44",{"$f":"'Population 2016'!C182/'Population 2016'!C$5","v":5.2746443959458839E-3},{"$f":"'Population 2016'!D182/'Population 2016'!D$5","v":1.046037381532232E-2},{"$f":"'Population 2016'!E182/'Population 2016'!E$5","v":1.5216647368495071E-2},{"$f":"'Population 2016'!F182/'Population 2016'!F$5","v":8.4882822559876388E-3},{"$f":"'Population 2016'!G182/'Population 2016'!G$5","v":8.6883559789963736E-3},{"$f":"'Population 2016'!H182/'Population 2016'!H$5","v":5.7228456647417589E-3},{"$f":"'Population 2016'!I182/'Population 2016'!I$5","v":1.3064232476342015E-2},{"$f":"'Population 2016'!J182/'Population 2016'!J$5","v":9.910186344675451E-3},{"$f":"'Population 2016'!K182/'Population 2016'!K$5","v":7.6548693474460146E-3},{"$f":"'Population 2016'!L182/'Population 2016'!L$5","v":5.9488824996425903E-3},{"$f":"'Population 2016'!M182/'Population 2016'!M$5","v":5.9488824996425903E-3},{"$f":"'Population 2016'!N182/'Population 2016'!N$5","v":5.2000868020671753E-3},{"$f":"'Population 2016'!O182/'Population 2016'!O$5","v":5.5378884695019863E-3},{"$f":"'Population 2016'!P182/'Population 2016'!P$5","v":6.7282767947706521E-3},{"$f":"'Population 2016'!Q182/'Population 2016'!Q$5","v":1.3583859179093077E-2},{"$f":"'Population 2016'!R182/'Population 2016'!R$5","v":6.1611752807792623E-3},{"$f":"'Population 2016'!S182/'Population 2016'!S$5","v":7.760326653968164E-3},{"$f":"'Population 2016'!T182/'Population 2016'!T$5","v":6.0096880918367821E-3},{"$f":"'Population 2016'!U182/'Population 2016'!U$5","v":2.3015978400389501E-3},{"$f":"'Population 2016'!V182/'Population 2016'!V$5","v":8.8306454690469469E-3},{"$f":"'Population 2016'!W182/'Population 2016'!W$5","v":6.7394871191470722E-3},{"$f":"'Population 2016'!X182/'Population 2016'!X$5","v":6.7394871191470722E-3},{"$f":"'Population 2016'!Y182/'Population 2016'!Y$5","v":9.3480230838937379E-3},{"$f":"'Population 2016'!Z182/'Population 2016'!Z$5","v":3.9161180294357348E-3},{"$f":"'Population 2016'!AA182/'Population 2016'!AA$5","v":6.0126618020578584E-3},{"$f":"'Population 2016'!AB182/'Population 2016'!AB$5","v":1.1330255979857323E-2},{"$f":"'Population 2016'!AC182/'Population 2016'!AC$5","v":5.0659776881848331E-3},{"$f":"'Population 2016'!AD182/'Population 2016'!AD$5","v":1.188358331162306E-2},{"$f":"'Population 2016'!AE182/'Population 2016'!AE$5","v":1.309561699812113E-2},{"$f":"'Population 2016'!AF182/'Population 2016'!AF$5","v":7.0277036299748151E-3},{"$f":"'Population 2016'!AG182/'Population 2016'!AG$5","v":1.309561699812113E-2},{"$f":"'Population 2016'!AH182/'Population 2016'!AH$5","v":7.712956168785934E-3},{"$f":"'Population 2016'!AI182/'Population 2016'!AI$5","v":7.4946408259690261E-3},{"$f":"'Population 2016'!AJ182/'Population 2016'!AJ$5","v":6.5805983883110725E-3},{"$f":"'Population 2016'!AK182/'Population 2016'!AK$5","v":1.5802773342720289E-2},{"$f":"'Population 2016'!AL182/'Population 2016'!AL$5","v":5.8619038328514925E-3},{"$f":"'Population 2016'!AM182/'Population 2016'!AM$5","v":6.2189640372196124E-3},{"$f":"'Population 2016'!AN182/'Population 2016'!AN$5","v":1.8435693247518273E-2},{"$f":"'Population 2016'!AO182/'Population 2016'!AO$5","v":1.8435693247518273E-2},{"$f":"'Population 2016'!AP182/'Population 2016'!AP$5","v":1.5844205253396318E-2},{"$f":"'Population 2016'!AQ182/'Population 2016'!AQ$5","v":6.9668986682742372E-3},{"$f":"'Population 2016'!AR182/'Population 2016'!AR$5","v":7.9765495458345836E-3},{"$f":"'Population 2016'!AS182/'Population 2016'!AS$5","v":1.3064232476342015E-2},{"$f":"'Population 2016'!AT182/'Population 2016'!AT$5","v":2.6836083724363368E-2},{"$f":"'Population 2016'!AU182/'Population 2016'!AU$5","v":2.6836083724363368E-2},{"$f":"'Population 2016'!AV182/'Population 2016'!AV$5","v":5.7544081934325841E-3},{"$f":"'Population 2016'!AW182/'Population 2016'!AW$5","v":9.2859539935322474E-3},{"$f":"'Population 2016'!AX182/'Population 2016'!AX$5","v":1.1129994760852064E-2},{"$f":"'Population 2016'!AY182/'Population 2016'!AY$5","v":8.4636333037544746E-3},{"$f":"'Population 2016'!AZ182/'Population 2016'!AZ$5","v":9.9809585171804806E-3},{"$f":"'Population 2016'!BA182/'Population 2016'!BA$5","v":4.4806737205787088E-3},{"$f":"'Population 2016'!BB182/'Population 2016'!BB$5","v":8.7762302949117195E-3},{"$f":"'Population 2016'!BC182/'Population 2016'!BC$5","v":2.3015978400389501E-3},180]
[null,"Female 45-49",{"$f":"'Population 2016'!C183/'Population 2016'!C$5","v":5.4177549028126323E-3},{"$f":"'Population 2016'!D183/'Population 2016'!D$5","v":1.2020382813493343E-2},{"$f":"'Population 2016'!E183/'Population 2016'!E$5","v":1.8076214495661429E-2},{"$f":"'Population 2016'!F183/'Population 2016'!F$5","v":1.121813031161473E-2},{"$f":"'Population 2016'!G183/'Population 2016'!G$5","v":1.1516808314837871E-2},{"$f":"'Population 2016'!H183/'Population 2016'!H$5","v":6.8965964469720796E-3},{"$f":"'Population 2016'!I183/'Population 2016'!I$5","v":1.7345699690143206E-2},{"$f":"'Population 2016'!J183/'Population 2016'!J$5","v":1.1651725367589129E-2},{"$f":"'Population 2016'!K183/'Population 2016'!K$5","v":9.4740821244625045E-3},{"$f":"'Population 2016'!L183/'Population 2016'!L$5","v":8.1409940749448007E-3},{"$f":"'Population 2016'!M183/'Population 2016'!M$5","v":8.1409940749448007E-3},{"$f":"'Population 2016'!N183/'Population 2016'!N$5","v":6.0198841031658644E-3},{"$f":"'Population 2016'!O183/'Population 2016'!O$5","v":6.6474475188476436E-3},{"$f":"'Population 2016'!P183/'Population 2016'!P$5","v":8.5878507832751038E-3},{"$f":"'Population 2016'!Q183/'Population 2016'!Q$5","v":1.6345283839202831E-2},{"$f":"'Population 2016'!R183/'Population 2016'!R$5","v":7.5051897588758187E-3},{"$f":"'Population 2016'!S183/'Population 2016'!S$5","v":8.8248118615074731E-3},{"$f":"'Population 2016'!T183/'Population 2016'!T$5","v":5.676979846721544E-3},{"$f":"'Population 2016'!U183/'Population 2016'!U$5","v":2.3015978400389501E-3},{"$f":"'Population 2016'!V183/'Population 2016'!V$5","v":9.9526030178368353E-3},{"$f":"'Population 2016'!W183/'Population 2016'!W$5","v":8.3606246609011694E-3},{"$f":"'Population 2016'!X183/'Population 2016'!X$5","v":8.3606246609011694E-3},{"$f":"'Population 2016'!Y183/'Population 2016'!Y$5","v":1.0766919444841894E-2},{"$f":"'Population 2016'!Z183/'Population 2016'!Z$5","v":4.3671588108784064E-3},{"$f":"'Population 2016'!AA183/'Population 2016'!AA$5","v":7.1613791783847131E-3},{"$f":"'Population 2016'!AB183/'Population 2016'!AB$5","v":1.3002671361165983E-2},{"$f":"'Population 2016'!AC183/'Population 2016'!AC$5","v":6.2016337726329635E-3},{"$f":"'Population 2016'!AD183/'Population 2016'!AD$5","v":1.4220849305891547E-2},{"$f":"'Population 2016'!AE183/'Population 2016'!AE$5","v":1.5246563106397396E-2},{"$f":"'Population 2016'!AF183/'Population 2016'!AF$5","v":9.3350827187862889E-3},{"$f":"'Population 2016'!AG183/'Population 2016'!AG$5","v":1.5246563106397396E-2},{"$f":"'Population 2016'!AH183/'Population 2016'!AH$5","v":8.8851323110074962E-3},{"$f":"'Population 2016'!AI183/'Population 2016'!AI$5","v":7.9061488319188029E-3},{"$f":"'Population 2016'!AJ183/'Population 2016'!AJ$5","v":7.6959540473468474E-3},{"$f":"'Population 2016'!AK183/'Population 2016'!AK$5","v":1.8053128496536463E-2},{"$f":"'Population 2016'!AL183/'Population 2016'!AL$5","v":7.5202639186960143E-3},{"$f":"'Population 2016'!AM183/'Population 2016'!AM$5","v":7.5192599541455537E-3},{"$f":"'Population 2016'!AN183/'Population 2016'!AN$5","v":2.1544671102868986E-2},{"$f":"'Population 2016'!AO183/'Population 2016'!AO$5","v":2.1544671102868986E-2},{"$f":"'Population 2016'!AP183/'Population 2016'!AP$5","v":2.0187689234817622E-2},{"$f":"'Population 2016'!AQ183/'Population 2016'!AQ$5","v":8.9946292541239654E-3},{"$f":"'Population 2016'!AR183/'Population 2016'!AR$5","v":9.3987613123646205E-3},{"$f":"'Population 2016'!AS183/'Population 2016'!AS$5","v":1.7345699690143206E-2},{"$f":"'Population 2016'!AT183/'Population 2016'!AT$5","v":2.8786840301576421E-2},{"$f":"'Population 2016'!AU183/'Population 2016'!AU$5","v":2.8786840301576421E-2},{"$f":"'Population 2016'!AV183/'Population 2016'!AV$5","v":6.4195966634991025E-3},{"$f":"'Population 2016'!AW183/'Population 2016'!AW$5","v":1.0323235096711209E-2},{"$f":"'Population 2016'!AX183/'Population 2016'!AX$5","v":1.2829523237537856E-2},{"$f":"'Population 2016'!AY183/'Population 2016'!AY$5","v":1.0622379976132921E-2},{"$f":"'Population 2016'!AZ183/'Population 2016'!AZ$5","v":1.2612825100241039E-2},{"$f":"'Population 2016'!BA183/'Population 2016'!BA$5","v":6.5050744979486073E-3},{"$f":"'Population 2016'!BB183/'Population 2016'!BB$5","v":9.6669727874716029E-3},{"$f":"'Population 2016'!BC183/'Population 2016'!BC$5","v":2.3015978400389501E-3},181]
[null,"Female 50-54",{"$f":"'Population 2016'!C184/'Population 2016'!C$5","v":5.7244202746699517E-3},{"$f":"'Population 2016'!D184/'Population 2016'!D$5","v":1.2370040002738574E-2},{"$f":"'Population 2016'!E184/'Population 2016'!E$5","v":1.8465303137554553E-2},{"$f":"'Population 2016'!F184/'Population 2016'!F$5","v":1.275302601081638E-2},{"$f":"'Population 2016'!G184/'Population 2016'!G$5","v":1.2288204406431007E-2},{"$f":"'Population 2016'!H184/'Population 2016'!H$5","v":7.4348357559506249E-3},{"$f":"'Population 2016'!I184/'Population 2016'!I$5","v":1.8874047399715266E-2},{"$f":"'Population 2016'!J184/'Population 2016'!J$5","v":1.2281996633024556E-2},{"$f":"'Population 2016'!K184/'Population 2016'!K$5","v":8.5290365260123797E-3},{"$f":"'Population 2016'!L184/'Population 2016'!L$5","v":9.0146617317681445E-3},{"$f":"'Population 2016'!M184/'Population 2016'!M$5","v":9.0146617317681445E-3},{"$f":"'Population 2016'!N184/'Population 2016'!N$5","v":6.7030485207481049E-3},{"$f":"'Population 2016'!O184/'Population 2016'!O$5","v":6.8554898405999544E-3},{"$f":"'Population 2016'!P184/'Population 2016'!P$5","v":9.6134340132987724E-3},{"$f":"'Population 2016'!Q184/'Population 2016'!Q$5","v":1.5934007825994995E-2},{"$f":"'Population 2016'!R184/'Population 2016'!R$5","v":7.5318039069569385E-3},{"$f":"'Population 2016'!S184/'Population 2016'!S$5","v":9.1143235929111999E-3},{"$f":"'Population 2016'!T184/'Population 2016'!T$5","v":6.1702256366825961E-3},{"$f":"'Population 2016'!U184/'Population 2016'!U$5","v":2.9212587969725135E-3},{"$f":"'Population 2016'!V184/'Population 2016'!V$5","v":9.2962196899733628E-3},{"$f":"'Population 2016'!W184/'Population 2016'!W$5","v":8.7397616666339828E-3},{"$f":"'Population 2016'!X184/'Population 2016'!X$5","v":8.7397616666339828E-3},{"$f":"'Population 2016'!Y184/'Population 2016'!Y$5","v":1.0727174448736904E-2},{"$f":"'Population 2016'!Z184/'Population 2016'!Z$5","v":4.6091334790343465E-3},{"$f":"'Population 2016'!AA184/'Population 2016'!AA$5","v":7.4683239024234682E-3},{"$f":"'Population 2016'!AB184/'Population 2016'!AB$5","v":1.3407981331177139E-2},{"$f":"'Population 2016'!AC184/'Population 2016'!AC$5","v":6.6515521667449284E-3},{"$f":"'Population 2016'!AD184/'Population 2016'!AD$5","v":1.5370873497338941E-2},{"$f":"'Population 2016'!AE184/'Population 2016'!AE$5","v":1.6540210885122024E-2},{"$f":"'Population 2016'!AF184/'Population 2016'!AF$5","v":1.040582726326743E-2},{"$f":"'Population 2016'!AG184/'Population 2016'!AG$5","v":1.6540210885122024E-2},{"$f":"'Population 2016'!AH184/'Population 2016'!AH$5","v":8.9352888178854395E-3},{"$f":"'Population 2016'!AI184/'Population 2016'!AI$5","v":7.9963798232566274E-3},{"$f":"'Population 2016'!AJ184/'Population 2016'!AJ$5","v":7.5147087527535341E-3},{"$f":"'Population 2016'!AK184/'Population 2016'!AK$5","v":1.8744578404133613E-2},{"$f":"'Population 2016'!AL184/'Population 2016'!AL$5","v":8.7440804526347522E-3},{"$f":"'Population 2016'!AM184/'Population 2016'!AM$5","v":7.4721740295772042E-3},{"$f":"'Population 2016'!AN184/'Population 2016'!AN$5","v":2.2417366641213046E-2},{"$f":"'Population 2016'!AO184/'Population 2016'!AO$5","v":2.2417366641213046E-2},{"$f":"'Population 2016'!AP184/'Population 2016'!AP$5","v":2.0480953664220154E-2},{"$f":"'Population 2016'!AQ184/'Population 2016'!AQ$5","v":9.5974680769441555E-3},{"$f":"'Population 2016'!AR184/'Population 2016'!AR$5","v":9.8189197383789766E-3},{"$f":"'Population 2016'!AS184/'Population 2016'!AS$5","v":1.8874047399715266E-2},{"$f":"'Population 2016'!AT184/'Population 2016'!AT$5","v":2.9946749617757156E-2},{"$f":"'Population 2016'!AU184/'Population 2016'!AU$5","v":2.9946749617757156E-2},{"$f":"'Population 2016'!AV184/'Population 2016'!AV$5","v":6.4935064935064939E-3},{"$f":"'Population 2016'!AW184/'Population 2016'!AW$5","v":1.0475776435413997E-2},{"$f":"'Population 2016'!AX184/'Population 2016'!AX$5","v":1.4311818751038246E-2},{"$f":"'Population 2016'!AY184/'Population 2016'!AY$5","v":1.1214467121569108E-2},{"$f":"'Population 2016'!AZ184/'Population 2016'!AZ$5","v":1.3392317825934384E-2},{"$f":"'Population 2016'!BA184/'Population 2016'!BA$5","v":7.287842798531635E-3},{"$f":"'Population 2016'!BB184/'Population 2016'!BB$5","v":8.9902846923485911E-3},{"$f":"'Population 2016'!BC184/'Population 2016'!BC$5","v":2.9212587969725135E-3},182]
[null,"Female 55-59",{"$f":"'Population 2016'!C185/'Population 2016'!C$5","v":5.30019984360066E-3},{"$f":"'Population 2016'!D185/'Population 2016'!D$5","v":1.0814921314906644E-2},{"$f":"'Population 2016'!E185/'Population 2016'!E$5","v":1.5872941463254561E-2},{"$f":"'Population 2016'!F185/'Population 2016'!F$5","v":1.1300540818954416E-2},{"$f":"'Population 2016'!G185/'Population 2016'!G$5","v":1.1476208520543495E-2},{"$f":"'Population 2016'!H185/'Population 2016'!H$5","v":7.1170800193247367E-3},{"$f":"'Population 2016'!I185/'Population 2016'!I$5","v":1.7701616280043547E-2},{"$f":"'Population 2016'!J185/'Population 2016'!J$5","v":1.0183856762561887E-2},{"$f":"'Population 2016'!K185/'Population 2016'!K$5","v":7.6076170675235082E-3},{"$f":"'Population 2016'!L185/'Population 2016'!L$5","v":9.0464314647435394E-3},{"$f":"'Population 2016'!M185/'Population 2016'!M$5","v":9.0464314647435394E-3},{"$f":"'Population 2016'!N185/'Population 2016'!N$5","v":6.7593091198431135E-3},{"$f":"'Population 2016'!O185/'Population 2016'!O$5","v":6.5384729693583384E-3},{"$f":"'Population 2016'!P185/'Population 2016'!P$5","v":1.0300912881776175E-2},{"$f":"'Population 2016'!Q185/'Population 2016'!Q$5","v":1.4935194651061679E-2},{"$f":"'Population 2016'!R185/'Population 2016'!R$5","v":6.9462926491722999E-3},{"$f":"'Population 2016'!S185/'Population 2016'!S$5","v":8.2175433517338043E-3},{"$f":"'Population 2016'!T185/'Population 2016'!T$5","v":5.5350553505535052E-3},{"$f":"'Population 2016'!U185/'Population 2016'!U$5","v":2.5671668215819059E-3},{"$f":"'Population 2016'!V185/'Population 2016'!V$5","v":8.1437326840735451E-3},{"$f":"'Population 2016'!W185/'Population 2016'!W$5","v":8.0697350616751318E-3},{"$f":"'Population 2016'!X185/'Population 2016'!X$5","v":8.0697350616751318E-3},{"$f":"'Population 2016'!Y185/'Population 2016'!Y$5","v":9.1214766060952919E-3},{"$f":"'Population 2016'!Z185/'Population 2016'!Z$5","v":4.0516238436030605E-3},{"$f":"'Population 2016'!AA185/'Population 2016'!AA$5","v":6.7275373931091577E-3},{"$f":"'Population 2016'!AB185/'Population 2016'!AB$5","v":1.1821540791992057E-2},{"$f":"'Population 2016'!AC185/'Population 2016'!AC$5","v":6.1933594113619391E-3},{"$f":"'Population 2016'!AD185/'Population 2016'!AD$5","v":1.3997543637649336E-2},{"$f":"'Population 2016'!AE185/'Population 2016'!AE$5","v":1.4953952299304921E-2},{"$f":"'Population 2016'!AF185/'Population 2016'!AF$5","v":8.912817264624711E-3},{"$f":"'Population 2016'!AG185/'Population 2016'!AG$5","v":1.4953952299304921E-2},{"$f":"'Population 2016'!AH185/'Population 2016'!AH$5","v":7.6869490911455193E-3},{"$f":"'Population 2016'!AI185/'Population 2016'!AI$5","v":7.0407515968151195E-3},{"$f":"'Population 2016'!AJ185/'Population 2016'!AJ$5","v":6.4411789309316006E-3},{"$f":"'Population 2016'!AK185/'Population 2016'!AK$5","v":1.6997095910388092E-2},{"$f":"'Population 2016'!AL185/'Population 2016'!AL$5","v":7.8838615845763637E-3},{"$f":"'Population 2016'!AM185/'Population 2016'!AM$5","v":6.1356581706756104E-3},{"$f":"'Population 2016'!AN185/'Population 2016'!AN$5","v":2.1762844987455003E-2},{"$f":"'Population 2016'!AO185/'Population 2016'!AO$5","v":2.1762844987455003E-2},{"$f":"'Population 2016'!AP185/'Population 2016'!AP$5","v":1.8372620198785727E-2},{"$f":"'Population 2016'!AQ185/'Population 2016'!AQ$5","v":8.96722748945032E-3},{"$f":"'Population 2016'!AR185/'Population 2016'!AR$5","v":8.8696646730305299E-3},{"$f":"'Population 2016'!AS185/'Population 2016'!AS$5","v":1.7701616280043547E-2},{"$f":"'Population 2016'!AT185/'Population 2016'!AT$5","v":2.6361575367743976E-2},{"$f":"'Population 2016'!AU185/'Population 2016'!AU$5","v":2.6361575367743976E-2},{"$f":"'Population 2016'!AV185/'Population 2016'!AV$5","v":6.8208214549677964E-3},{"$f":"'Population 2016'!AW185/'Population 2016'!AW$5","v":9.3202757947403753E-3},{"$f":"'Population 2016'!AX185/'Population 2016'!AX$5","v":1.157723909682201E-2},{"$f":"'Population 2016'!AY185/'Population 2016'!AY$5","v":1.0288852850279979E-2},{"$f":"'Population 2016'!AZ185/'Population 2016'!AZ$5","v":1.224177505738332E-2},{"$f":"'Population 2016'!BA185/'Population 2016'!BA$5","v":7.5442668969984885E-3},{"$f":"'Population 2016'!BB185/'Population 2016'!BB$5","v":7.1673698238539458E-3},{"$f":"'Population 2016'!BC185/'Population 2016'!BC$5","v":2.5671668215819059E-3},183]
[null,"Female 60-64",{"$f":"'Population 2016'!C186/'Population 2016'!C$5","v":4.9015348601861462E-3},{"$f":"'Population 2016'!D186/'Population 2016'!D$5","v":9.7683949023405024E-3},{"$f":"'Population 2016'!E186/'Population 2016'!E$5","v":1.4232206226355834E-2},{"$f":"'Population 2016'!F186/'Population 2016'!F$5","v":1.1393252639711563E-2},{"$f":"'Population 2016'!G186/'Population 2016'!G$5","v":1.0867211606127863E-2},{"$f":"'Population 2016'!H186/'Population 2016'!H$5","v":6.6177495760554837E-3},{"$f":"'Population 2016'!I186/'Population 2016'!I$5","v":1.5953437735533038E-2},{"$f":"'Population 2016'!J186/'Population 2016'!J$5","v":8.4837829544794872E-3},{"$f":"'Population 2016'!K186/'Population 2016'!K$5","v":6.2373009497708265E-3},{"$f":"'Population 2016'!L186/'Population 2016'!L$5","v":8.7128492685018977E-3},{"$f":"'Population 2016'!M186/'Population 2016'!M$5","v":8.7128492685018977E-3},{"$f":"'Population 2016'!N186/'Population 2016'!N$5","v":4.8303742937285503E-3},{"$f":"'Population 2016'!O186/'Population 2016'!O$5","v":5.8350917862910016E-3},{"$f":"'Population 2016'!P186/'Population 2016'!P$5","v":8.2272061309590899E-3},{"$f":"'Population 2016'!Q186/'Population 2016'!Q$5","v":1.2479289315049177E-2},{"$f":"'Population 2016'!R186/'Population 2016'!R$5","v":6.2010965029009419E-3},{"$f":"'Population 2016'!S186/'Population 2016'!S$5","v":7.1662980099599094E-3},{"$f":"'Population 2016'!T186/'Population 2016'!T$5","v":4.6439556451050006E-3},{"$f":"'Population 2016'!U186/'Population 2016'!U$5","v":1.6819368831053865E-3},{"$f":"'Population 2016'!V186/'Population 2016'!V$5","v":6.777539478404225E-3},{"$f":"'Population 2016'!W186/'Population 2016'!W$5","v":7.3539505422312865E-3},{"$f":"'Population 2016'!X186/'Population 2016'!X$5","v":7.3539505422312865E-3},{"$f":"'Population 2016'!Y186/'Population 2016'!Y$5","v":7.5952687556636624E-3},{"$f":"'Population 2016'!Z186/'Population 2016'!Z$5","v":3.1650286594796964E-3},{"$f":"'Population 2016'!AA186/'Population 2016'!AA$5","v":5.5515803334801623E-3},{"$f":"'Population 2016'!AB186/'Population 2016'!AB$5","v":1.0642457242868693E-2},{"$f":"'Population 2016'!AC186/'Population 2016'!AC$5","v":5.0142629302409288E-3},{"$f":"'Population 2016'!AD186/'Population 2016'!AD$5","v":1.3335070155197439E-2},{"$f":"'Population 2016'!AE186/'Population 2016'!AE$5","v":1.4271193749422479E-2},{"$f":"'Population 2016'!AF186/'Population 2016'!AF$5","v":6.9975418118204168E-3},{"$f":"'Population 2016'!AG186/'Population 2016'!AG$5","v":1.4271193749422479E-2},{"$f":"'Population 2016'!AH186/'Population 2016'!AH$5","v":6.5166305973268441E-3},{"$f":"'Population 2016'!AI186/'Population 2016'!AI$5","v":5.9402069297401347E-3},{"$f":"'Population 2016'!AJ186/'Population 2016'!AJ$5","v":5.8835011014137135E-3},{"$f":"'Population 2016'!AK186/'Population 2016'!AK$5","v":1.5136467068126673E-2},{"$f":"'Population 2016'!AL186/'Population 2016'!AL$5","v":7.9015980560827228E-3},{"$f":"'Population 2016'!AM186/'Population 2016'!AM$5","v":5.233781615481852E-3},{"$f":"'Population 2016'!AN186/'Population 2016'!AN$5","v":2.0126540853059888E-2},{"$f":"'Population 2016'!AO186/'Population 2016'!AO$5","v":2.0126540853059888E-2},{"$f":"'Population 2016'!AP186/'Population 2016'!AP$5","v":1.7358083794366153E-2},{"$f":"'Population 2016'!AQ186/'Population 2016'!AQ$5","v":7.7752507261467634E-3},{"$f":"'Population 2016'!AR186/'Population 2016'!AR$5","v":7.8108030617652932E-3},{"$f":"'Population 2016'!AS186/'Population 2016'!AS$5","v":1.5953437735533038E-2},{"$f":"'Population 2016'!AT186/'Population 2016'!AT$5","v":2.3778140981705068E-2},{"$f":"'Population 2016'!AU186/'Population 2016'!AU$5","v":2.3778140981705068E-2},{"$f":"'Population 2016'!AV186/'Population 2016'!AV$5","v":5.9233449477351921E-3},{"$f":"'Population 2016'!AW186/'Population 2016'!AW$5","v":7.8673195435963149E-3},{"$f":"'Population 2016'!AX186/'Population 2016'!AX$5","v":9.6988128857482397E-3},{"$f":"'Population 2016'!AY186/'Population 2016'!AY$5","v":9.4045469844863984E-3},{"$f":"'Population 2016'!AZ186/'Population 2016'!AZ$5","v":1.1209162922608741E-2},{"$f":"'Population 2016'!BA186/'Population 2016'!BA$5","v":5.6413301662707836E-3},{"$f":"'Population 2016'!BB186/'Population 2016'!BB$5","v":5.9728081865449553E-3},{"$f":"'Population 2016'!BC186/'Population 2016'!BC$5","v":1.6819368831053865E-3},184]
[null,"Female 65-69",{"$f":"'Population 2016'!C187/'Population 2016'!C$5","v":5.0497564565838496E-3},{"$f":"'Population 2016'!D187/'Population 2016'!D$5","v":9.6950402472540907E-3},{"$f":"'Population 2016'!E187/'Population 2016'!E$5","v":1.3955625143564333E-2},{"$f":"'Population 2016'!F187/'Population 2016'!F$5","v":1.2227659026525882E-2},{"$f":"'Population 2016'!G187/'Population 2016'!G$5","v":1.2464136848373301E-2},{"$f":"'Population 2016'!H187/'Population 2016'!H$5","v":6.7442033896106847E-3},{"$f":"'Population 2016'!I187/'Population 2016'!I$5","v":1.7324763420149065E-2},{"$f":"'Population 2016'!J187/'Population 2016'!J$5","v":8.7989185871971999E-3},{"$f":"'Population 2016'!K187/'Population 2016'!K$5","v":6.9224590086471669E-3},{"$f":"'Population 2016'!L187/'Population 2016'!L$5","v":8.2919003065779224E-3},{"$f":"'Population 2016'!M187/'Population 2016'!M$5","v":8.2919003065779224E-3},{"$f":"'Population 2016'!N187/'Population 2016'!N$5","v":5.336719685583623E-3},{"$f":"'Population 2016'!O187/'Population 2016'!O$5","v":5.7657443457068977E-3},{"$f":"'Population 2016'!P187/'Population 2016'!P$5","v":8.0468838048010811E-3},{"$f":"'Population 2016'!Q187/'Population 2016'!Q$5","v":1.2491040058283687E-2},{"$f":"'Population 2016'!R187/'Population 2016'!R$5","v":5.6555064672379838E-3},{"$f":"'Population 2016'!S187/'Population 2016'!S$5","v":7.2986966676140529E-3},{"$f":"'Population 2016'!T187/'Population 2016'!T$5","v":4.4648050515814115E-3},{"$f":"'Population 2016'!U187/'Population 2016'!U$5","v":2.611428318505732E-3},{"$f":"'Population 2016'!V187/'Population 2016'!V$5","v":7.5331435418749667E-3},{"$f":"'Population 2016'!W187/'Population 2016'!W$5","v":7.5696664248034043E-3},{"$f":"'Population 2016'!X187/'Population 2016'!X$5","v":7.5696664248034043E-3},{"$f":"'Population 2016'!Y187/'Population 2016'!Y$5","v":8.1397752023020294E-3},{"$f":"'Population 2016'!Z187/'Population 2016'!Z$5","v":2.7701260010492023E-3},{"$f":"'Population 2016'!AA187/'Population 2016'!AA$5","v":5.0333619682199262E-3},{"$f":"'Population 2016'!AB187/'Population 2016'!AB$5","v":1.082873606746978E-2},{"$f":"'Population 2016'!AC187/'Population 2016'!AC$5","v":4.6522596246336007E-3},{"$f":"'Population 2016'!AD187/'Population 2016'!AD$5","v":1.3569541106851763E-2},{"$f":"'Population 2016'!AE187/'Population 2016'!AE$5","v":1.3988849988192897E-2},{"$f":"'Population 2016'!AF187/'Population 2016'!AF$5","v":6.5451145395044414E-3},{"$f":"'Population 2016'!AG187/'Population 2016'!AG$5","v":1.3988849988192897E-2},{"$f":"'Population 2016'!AH187/'Population 2016'!AH$5","v":5.7178417840855261E-3},{"$f":"'Population 2016'!AI187/'Population 2016'!AI$5","v":5.8759515268177447E-3},{"$f":"'Population 2016'!AJ187/'Population 2016'!AJ$5","v":6.3993530937177592E-3},{"$f":"'Population 2016'!AK187/'Population 2016'!AK$5","v":1.6657656864840401E-2},{"$f":"'Population 2016'!AL187/'Population 2016'!AL$5","v":8.1055674784058455E-3},{"$f":"'Population 2016'!AM187/'Population 2016'!AM$5","v":4.3681250022637461E-3},{"$f":"'Population 2016'!AN187/'Population 2016'!AN$5","v":2.0835605977964439E-2},{"$f":"'Population 2016'!AO187/'Population 2016'!AO$5","v":2.0835605977964439E-2},{"$f":"'Population 2016'!AP187/'Population 2016'!AP$5","v":1.7587939698492462E-2},{"$f":"'Population 2016'!AQ187/'Population 2016'!AQ$5","v":7.2409163150106868E-3},{"$f":"'Population 2016'!AR187/'Population 2016'!AR$5","v":7.7722625486685371E-3},{"$f":"'Population 2016'!AS187/'Population 2016'!AS$5","v":1.7324763420149065E-2},{"$f":"'Population 2016'!AT187/'Population 2016'!AT$5","v":2.2354615911846891E-2},{"$f":"'Population 2016'!AU187/'Population 2016'!AU$5","v":2.2354615911846891E-2},{"$f":"'Population 2016'!AV187/'Population 2016'!AV$5","v":6.1661915320451906E-3},{"$f":"'Population 2016'!AW187/'Population 2016'!AW$5","v":7.1389346512904994E-3},{"$f":"'Population 2016'!AX187/'Population 2016'!AX$5","v":9.8138185721405122E-3},{"$f":"'Population 2016'!AY187/'Population 2016'!AY$5","v":9.7702028701692114E-3},{"$f":"'Population 2016'!AZ187/'Population 2016'!AZ$5","v":1.1706772670007077E-2},{"$f":"'Population 2016'!BA187/'Population 2016'!BA$5","v":5.8977542647376379E-3},{"$f":"'Population 2016'!BB187/'Population 2016'!BB$5","v":5.9175683420451168E-3},{"$f":"'Population 2016'!BC187/'Population 2016'!BC$5","v":2.611428318505732E-3},185]
[null,"Female 70-74",{"$f":"'Population 2016'!C188/'Population 2016'!C$5","v":3.5573183135448982E-3},{"$f":"'Population 2016'!D188/'Population 2016'!D$5","v":7.0151501814305134E-3},{"$f":"'Population 2016'!E188/'Population 2016'!E$5","v":1.0186621913659825E-2},{"$f":"'Population 2016'!F188/'Population 2016'!F$5","v":9.7141385526654644E-3},{"$f":"'Population 2016'!G188/'Population 2016'!G$5","v":9.8657500135332643E-3},{"$f":"'Population 2016'!H188/'Population 2016'!H$5","v":5.6806943935566916E-3},{"$f":"'Population 2016'!I188/'Population 2016'!I$5","v":1.3859810736119253E-2},{"$f":"'Population 2016'!J188/'Population 2016'!J$5","v":6.9993282635197329E-3},{"$f":"'Population 2016'!K188/'Population 2016'!K$5","v":5.3631337712044605E-3},{"$f":"'Population 2016'!L188/'Population 2016'!L$5","v":7.1481899194637266E-3},{"$f":"'Population 2016'!M188/'Population 2016'!M$5","v":7.1481899194637266E-3},{"$f":"'Population 2016'!N188/'Population 2016'!N$5","v":3.7453484540391092E-3},{"$f":"'Population 2016'!O188/'Population 2016'!O$5","v":4.2698209845355205E-3},{"$f":"'Population 2016'!P188/'Population 2016'!P$5","v":5.7139637101318603E-3},{"$f":"'Population 2016'!Q188/'Population 2016'!Q$5","v":8.9423156014617929E-3},{"$f":"'Population 2016'!R188/'Population 2016'!R$5","v":4.4179485814659072E-3},{"$f":"'Population 2016'!S188/'Population 2016'!S$5","v":5.5316159167900919E-3},{"$f":"'Population 2016'!T188/'Population 2016'!T$5","v":3.3619819174232094E-3},{"$f":"'Population 2016'!U188/'Population 2016'!U$5","v":2.0360288584959944E-3},{"$f":"'Population 2016'!V188/'Population 2016'!V$5","v":5.640317201059372E-3},{"$f":"'Population 2016'!W188/'Population 2016'!W$5","v":5.8602814765425322E-3},{"$f":"'Population 2016'!X188/'Population 2016'!X$5","v":5.8602814765425322E-3},{"$f":"'Population 2016'!Y188/'Population 2016'!Y$5","v":6.2916328834199771E-3},{"$f":"'Population 2016'!Z188/'Population 2016'!Z$5","v":1.9841922788787088E-3},{"$f":"'Population 2016'!AA188/'Population 2016'!AA$5","v":3.5776998678543168E-3},{"$f":"'Population 2016'!AB188/'Population 2016'!AB$5","v":7.9137795154703549E-3},{"$f":"'Population 2016'!AC188/'Population 2016'!AC$5","v":3.4369628129518577E-3},{"$f":"'Population 2016'!AD188/'Population 2016'!AD$5","v":1.0394878856674979E-2},{"$f":"'Population 2016'!AE188/'Population 2016'!AE$5","v":1.0595591330506473E-2},{"$f":"'Population 2016'!AF188/'Population 2016'!AF$5","v":5.4743699950232996E-3},{"$f":"'Population 2016'!AG188/'Population 2016'!AG$5","v":1.0595591330506473E-2},{"$f":"'Population 2016'!AH188/'Population 2016'!AH$5","v":3.8304710067525519E-3},{"$f":"'Population 2016'!AI188/'Population 2016'!AI$5","v":4.3064791320325492E-3},{"$f":"'Population 2016'!AJ188/'Population 2016'!AJ$5","v":4.9354487912333048E-3},{"$f":"'Population 2016'!AK188/'Population 2016'!AK$5","v":1.2534101052261042E-2},{"$f":"'Population 2016'!AL188/'Population 2016'!AL$5","v":6.6068356361185503E-3},{"$f":"'Population 2016'!AM188/'Population 2016'!AM$5","v":2.8613754160765835E-3},{"$f":"'Population 2016'!AN188/'Population 2016'!AN$5","v":1.5763063161339588E-2},{"$f":"'Population 2016'!AO188/'Population 2016'!AO$5","v":1.5763063161339588E-2},{"$f":"'Population 2016'!AP188/'Population 2016'!AP$5","v":1.3379198833283135E-2},{"$f":"'Population 2016'!AQ188/'Population 2016'!AQ$5","v":5.2063352879925468E-3},{"$f":"'Population 2016'!AR188/'Population 2016'!AR$5","v":5.8635046514834864E-3},{"$f":"'Population 2016'!AS188/'Population 2016'!AS$5","v":1.3859810736119253E-2},{"$f":"'Population 2016'!AT188/'Population 2016'!AT$5","v":1.803131755153688E-2},{"$f":"'Population 2016'!AU188/'Population 2016'!AU$5","v":1.803131755153688E-2},{"$f":"'Population 2016'!AV188/'Population 2016'!AV$5","v":6.0817231548938866E-3},{"$f":"'Population 2016'!AW188/'Population 2016'!AW$5","v":4.8508145707486733E-3},{"$f":"'Population 2016'!AX188/'Population 2016'!AX$5","v":7.8842787226701769E-3},{"$f":"'Population 2016'!AY188/'Population 2016'!AY$5","v":7.4814112175270037E-3},{"$f":"'Population 2016'!AZ188/'Population 2016'!AZ$5","v":8.9080773855066131E-3},{"$f":"'Population 2016'!BA188/'Population 2016'!BA$5","v":4.5346577413085728E-3},{"$f":"'Population 2016'!BB188/'Population 2016'!BB$5","v":4.0739385318630328E-3},{"$f":"'Population 2016'!BC188/'Population 2016'!BC$5","v":2.0360288584959944E-3},186]
[null,"Female 75-79",{"$f":"'Population 2016'!C189/'Population 2016'!C$5","v":3.0257650023255457E-3},{"$f":"'Population 2016'!D189/'Population 2016'!D$5","v":5.618966579619143E-3},{"$f":"'Population 2016'!E189/'Population 2016'!E$5","v":7.997412326140662E-3},{"$f":"'Population 2016'!F189/'Population 2016'!F$5","v":7.5611640484161734E-3},{"$f":"'Population 2016'!G189/'Population 2016'!G$5","v":7.5921615330482323E-3},{"$f":"'Population 2016'!H189/'Population 2016'!H$5","v":4.0043707625813437E-3},{"$f":"'Population 2016'!I189/'Population 2016'!I$5","v":1.1179968176869609E-2},{"$f":"'Population 2016'!J189/'Population 2016'!J$5","v":5.1333935961122212E-3},{"$f":"'Population 2016'!K189/'Population 2016'!K$5","v":3.5202948542267165E-3},{"$f":"'Population 2016'!L189/'Population 2016'!L$5","v":5.6311851698886469E-3},{"$f":"'Population 2016'!M189/'Population 2016'!M$5","v":5.6311851698886469E-3},{"$f":"'Population 2016'!N189/'Population 2016'!N$5","v":3.2711519759526125E-3},{"$f":"'Population 2016'!O189/'Population 2016'!O$5","v":3.0215670540216562E-3},{"$f":"'Population 2016'!P189/'Population 2016'!P$5","v":5.4096697847402231E-3},{"$f":"'Population 2016'!Q189/'Population 2016'!Q$5","v":6.6979236436704621E-3},{"$f":"'Population 2016'!R189/'Population 2016'!R$5","v":4.0187363602491085E-3},{"$f":"'Population 2016'!S189/'Population 2016'!S$5","v":4.2914818234296194E-3},{"$f":"'Population 2016'!T189/'Population 2016'!T$5","v":2.7500779421413381E-3},{"$f":"'Population 2016'!U189/'Population 2016'!U$5","v":1.6819368831053865E-3},{"$f":"'Population 2016'!V189/'Population 2016'!V$5","v":4.442036009494661E-3},{"$f":"'Population 2016'!W189/'Population 2016'!W$5","v":4.278365004347002E-3},{"$f":"'Population 2016'!X189/'Population 2016'!X$5","v":4.278365004347002E-3},{"$f":"'Population 2016'!Y189/'Population 2016'!Y$5","v":4.7733740322093449E-3},{"$f":"'Population 2016'!Z189/'Population 2016'!Z$5","v":1.7809335576277191E-3},{"$f":"'Population 2016'!AA189/'Population 2016'!AA$5","v":2.9804199827659175E-3},{"$f":"'Population 2016'!AB189/'Population 2016'!AB$5","v":6.1860945927965363E-3},{"$f":"'Population 2016'!AC189/'Population 2016'!AC$5","v":2.8805120174754512E-3},{"$f":"'Population 2016'!AD189/'Population 2016'!AD$5","v":8.0278387733075298E-3},{"$f":"'Population 2016'!AE189/'Population 2016'!AE$5","v":8.1931025985893073E-3},{"$f":"'Population 2016'!AF189/'Population 2016'!AF$5","v":3.6495799966821999E-3},{"$f":"'Population 2016'!AG189/'Population 2016'!AG$5","v":8.1931025985893073E-3},{"$f":"'Population 2016'!AH189/'Population 2016'!AH$5","v":3.1598599333104225E-3},{"$f":"'Population 2016'!AI189/'Population 2016'!AI$5","v":3.3973335374923442E-3},{"$f":"'Population 2016'!AJ189/'Population 2016'!AJ$5","v":3.6667317290801104E-3},{"$f":"'Population 2016'!AK189/'Population 2016'!AK$5","v":9.1019951472788296E-3},{"$f":"'Population 2016'!AL189/'Population 2016'!AL$5","v":4.5405367056277823E-3},{"$f":"'Population 2016'!AM189/'Population 2016'!AM$5","v":2.4520900717517049E-3},{"$f":"'Population 2016'!AN189/'Population 2016'!AN$5","v":1.2381367950256354E-2},{"$f":"'Population 2016'!AO189/'Population 2016'!AO$5","v":1.2381367950256354E-2},{"$f":"'Population 2016'!AP189/'Population 2016'!AP$5","v":1.1009305201084285E-2},{"$f":"'Population 2016'!AQ189/'Population 2016'!AQ$5","v":3.9047514659944099E-3},{"$f":"'Population 2016'!AR189/'Population 2016'!AR$5","v":4.6132771399285729E-3},{"$f":"'Population 2016'!AS189/'Population 2016'!AS$5","v":1.1179968176869609E-2},{"$f":"'Population 2016'!AT189/'Population 2016'!AT$5","v":1.2706279327252597E-2},{"$f":"'Population 2016'!AU189/'Population 2016'!AU$5","v":1.2706279327252597E-2},{"$f":"'Population 2016'!AV189/'Population 2016'!AV$5","v":4.413472706155633E-3},{"$f":"'Population 2016'!AW189/'Population 2016'!AW$5","v":3.9050582707913844E-3},{"$f":"'Population 2016'!AX189/'Population 2016'!AX$5","v":6.0058525115964066E-3},{"$f":"'Population 2016'!AY189/'Population 2016'!AY$5","v":5.8734432850891952E-3},{"$f":"'Population 2016'!AZ189/'Population 2016'!AZ$5","v":7.2771830110854793E-3},{"$f":"'Population 2016'!BA189/'Population 2016'!BA$5","v":3.6574174044482835E-3},{"$f":"'Population 2016'!BB189/'Population 2016'!BB$5","v":3.245340864365467E-3},{"$f":"'Population 2016'!BC189/'Population 2016'!BC$5","v":1.6819368831053865E-3},187]
[null,"Female 80-84",{"$f":"'Population 2016'!C190/'Population 2016'!C$5","v":2.3357679156465784E-3},{"$f":"'Population 2016'!D190/'Population 2016'!D$5","v":4.2252281329773185E-3},{"$f":"'Population 2016'!E190/'Population 2016'!E$5","v":5.9582128174236705E-3},{"$f":"'Population 2016'!F190/'Population 2016'!F$5","v":6.0880762297192892E-3},{"$f":"'Population 2016'!G190/'Population 2016'!G$5","v":5.1832404049152814E-3},{"$f":"'Population 2016'!H190/'Population 2016'!H$5","v":3.05110355270368E-3},{"$f":"'Population 2016'!I190/'Population 2016'!I$5","v":7.6312704128632444E-3},{"$f":"'Population 2016'!J190/'Population 2016'!J$5","v":4.030418881600226E-3},{"$f":"'Population 2016'!K190/'Population 2016'!K$5","v":2.5988753957378445E-3},{"$f":"'Population 2016'!L190/'Population 2016'!L$5","v":4.4557050497990563E-3},{"$f":"'Population 2016'!M190/'Population 2016'!M$5","v":4.4557050497990563E-3},{"$f":"'Population 2016'!N190/'Population 2016'!N$5","v":3.2550775190683247E-3},{"$f":"'Population 2016'!O190/'Population 2016'!O$5","v":1.8921944502233979E-3},{"$f":"'Population 2016'!P190/'Population 2016'!P$5","v":3.7980389947030319E-3},{"$f":"'Population 2016'!Q190/'Population 2016'!Q$5","v":5.2055792528877456E-3},{"$f":"'Population 2016'!R190/'Population 2016'!R$5","v":3.41991802842391E-3},{"$f":"'Population 2016'!S190/'Population 2016'!S$5","v":3.2049301729479532E-3},{"$f":"'Population 2016'!T190/'Population 2016'!T$5","v":2.3568772888233297E-3},{"$f":"'Population 2016'!U190/'Population 2016'!U$5","v":8.4096844155269327E-4},{"$f":"'Population 2016'!V190/'Population 2016'!V$5","v":3.2284900893749858E-3},{"$f":"'Population 2016'!W190/'Population 2016'!W$5","v":3.1899803240967714E-3},{"$f":"'Population 2016'!X190/'Population 2016'!X$5","v":3.1899803240967714E-3},{"$f":"'Population 2016'!Y190/'Population 2016'!Y$5","v":3.6128201459436258E-3},{"$f":"'Population 2016'!Z190/'Population 2016'!Z$5","v":1.3376359655660368E-3},{"$f":"'Population 2016'!AA190/'Population 2016'!AA$5","v":2.1944554621212272E-3},{"$f":"'Population 2016'!AB190/'Population 2016'!AB$5","v":4.7429454571507532E-3},{"$f":"'Population 2016'!AC190/'Population 2016'!AC$5","v":2.1999458029336749E-3},{"$f":"'Population 2016'!AD190/'Population 2016'!AD$5","v":6.0888012207376534E-3},{"$f":"'Population 2016'!AE190/'Population 2016'!AE$5","v":6.4323042331030089E-3},{"$f":"'Population 2016'!AF190/'Population 2016'!AF$5","v":3.4082854514470131E-3},{"$f":"'Population 2016'!AG190/'Population 2016'!AG$5","v":6.4323042331030089E-3},{"$f":"'Population 2016'!AH190/'Population 2016'!AH$5","v":2.1845945217948597E-3},{"$f":"'Population 2016'!AI190/'Population 2016'!AI$5","v":2.6331043835856154E-3},{"$f":"'Population 2016'!AJ190/'Population 2016'!AJ$5","v":2.4816663413545995E-3},{"$f":"'Population 2016'!AK190/'Population 2016'!AK$5","v":7.4047999195403745E-3},{"$f":"'Population 2016'!AL190/'Population 2016'!AL$5","v":3.3787978219612992E-3},{"$f":"'Population 2016'!AM190/'Population 2016'!AM$5","v":1.5538355107555118E-3},{"$f":"'Population 2016'!AN190/'Population 2016'!AN$5","v":7.308825133631504E-3},{"$f":"'Population 2016'!AO190/'Population 2016'!AO$5","v":7.308825133631504E-3},{"$f":"'Population 2016'!AP190/'Population 2016'!AP$5","v":8.044956644420842E-3},{"$f":"'Population 2016'!AQ190/'Population 2016'!AQ$5","v":3.0073436729325369E-3},{"$f":"'Population 2016'!AR190/'Population 2016'!AR$5","v":3.4829039407786029E-3},{"$f":"'Population 2016'!AS190/'Population 2016'!AS$5","v":7.6312704128632444E-3},{"$f":"'Population 2016'!AT190/'Population 2016'!AT$5","v":9.0683819265039278E-3},{"$f":"'Population 2016'!AU190/'Population 2016'!AU$5","v":9.0683819265039278E-3},{"$f":"'Population 2016'!AV190/'Population 2016'!AV$5","v":3.8961038961038961E-3},{"$f":"'Population 2016'!AW190/'Population 2016'!AW$5","v":2.8487095002745744E-3},{"$f":"'Population 2016'!AX190/'Population 2016'!AX$5","v":4.8046820092771253E-3},{"$f":"'Population 2016'!AY190/'Population 2016'!AY$5","v":4.5699336005630186E-3},{"$f":"'Population 2016'!AZ190/'Population 2016'!AZ$5","v":5.7843537688904738E-3},{"$f":"'Population 2016'!BA190/'Population 2016'!BA$5","v":2.3887929172964804E-3},{"$f":"'Population 2016'!BB190/'Population 2016'!BB$5","v":2.0162543242440772E-3},{"$f":"'Population 2016'!BC190/'Population 2016'!BC$5","v":8.4096844155269327E-4},188]
[null,"Female 85-89",{"$f":"'Population 2016'!C191/'Population 2016'!C$5","v":1.4311050686674879E-3},{"$f":"'Population 2016'!D191/'Population 2016'!D$5","v":2.6578836692976535E-3},{"$f":"'Population 2016'!E191/'Population 2016'!E$5","v":3.7830666747922124E-3},{"$f":"'Population 2016'!F191/'Population 2016'!F$5","v":3.5951583826937935E-3},{"$f":"'Population 2016'!G191/'Population 2016'!G$5","v":3.3833161911979645E-3},{"$f":"'Population 2016'!H191/'Population 2016'!H$5","v":1.7898078226274508E-3},{"$f":"'Population 2016'!I191/'Population 2016'!I$5","v":4.961895988610669E-3},{"$f":"'Population 2016'!J191/'Population 2016'!J$5","v":2.479619846910427E-3},{"$f":"'Population 2016'!K191/'Population 2016'!K$5","v":1.630203657326466E-3},{"$f":"'Population 2016'!L191/'Population 2016'!L$5","v":2.6051181039823362E-3},{"$f":"'Population 2016'!M191/'Population 2016'!M$5","v":2.6051181039823362E-3},{"$f":"'Population 2016'!N191/'Population 2016'!N$5","v":2.6040620152546594E-3},{"$f":"'Population 2016'!O191/'Population 2016'!O$5","v":1.1491861582508594E-3},{"$f":"'Population 2016'!P191/'Population 2016'!P$5","v":2.9076975092978698E-3},{"$f":"'Population 2016'!Q191/'Population 2016'!Q$5","v":2.9729380383309244E-3},{"$f":"'Population 2016'!R191/'Population 2016'!R$5","v":2.2488955128546336E-3},{"$f":"'Population 2016'!S191/'Population 2016'!S$5","v":2.1086692875716497E-3},{"$f":"'Population 2016'!T191/'Population 2016'!T$5","v":1.9427369557428235E-3},{"$f":"'Population 2016'!U191/'Population 2016'!U$5","v":9.7375293232417125E-4},{"$f":"'Population 2016'!V191/'Population 2016'!V$5","v":1.938620526480488E-3},{"$f":"'Population 2016'!W191/'Population 2016'!W$5","v":1.9349060982226318E-3},{"$f":"'Population 2016'!X191/'Population 2016'!X$5","v":1.9349060982226318E-3},{"$f":"'Population 2016'!Y191/'Population 2016'!Y$5","v":2.1978982846059679E-3},{"$f":"'Population 2016'!Z191/'Population 2016'!Z$5","v":8.6142981863514669E-4},{"$f":"'Population 2016'!AA191/'Population 2016'!AA$5","v":1.3952032910852488E-3},{"$f":"'Population 2016'!AB191/'Population 2016'!AB$5","v":2.9968373540218826E-3},{"$f":"'Population 2016'!AC191/'Population 2016'!AC$5","v":1.4697334207657508E-3},{"$f":"'Population 2016'!AD191/'Population 2016'!AD$5","v":3.729204659644944E-3},{"$f":"'Population 2016'!AE191/'Population 2016'!AE$5","v":3.860409244448095E-3},{"$f":"'Population 2016'!AF191/'Population 2016'!AF$5","v":2.171650907116681E-3},{"$f":"'Population 2016'!AG191/'Population 2016'!AG$5","v":3.860409244448095E-3},{"$f":"'Population 2016'!AH191/'Population 2016'!AH$5","v":1.2613432655601273E-3},{"$f":"'Population 2016'!AI191/'Population 2016'!AI$5","v":1.8087212354536706E-3},{"$f":"'Population 2016'!AJ191/'Population 2016'!AJ$5","v":1.33842679084293E-3},{"$f":"'Population 2016'!AK191/'Population 2016'!AK$5","v":4.7395748211659103E-3},{"$f":"'Population 2016'!AL191/'Population 2016'!AL$5","v":2.0042212802185134E-3},{"$f":"'Population 2016'!AM191/'Population 2016'!AM$5","v":6.4471496716662262E-4},{"$f":"'Population 2016'!AN191/'Population 2016'!AN$5","v":5.3452601723573689E-3},{"$f":"'Population 2016'!AO191/'Population 2016'!AO$5","v":5.3452601723573689E-3},{"$f":"'Population 2016'!AP191/'Population 2016'!AP$5","v":5.516541699031435E-3},{"$f":"'Population 2016'!AQ191/'Population 2016'!AQ$5","v":2.0140297035129064E-3},{"$f":"'Population 2016'!AR191/'Population 2016'!AR$5","v":2.2251019931237488E-3},{"$f":"'Population 2016'!AS191/'Population 2016'!AS$5","v":4.961895988610669E-3},{"$f":"'Population 2016'!AT191/'Population 2016'!AT$5","v":5.8522697316391627E-3},{"$f":"'Population 2016'!AU191/'Population 2016'!AU$5","v":5.8522697316391627E-3},{"$f":"'Population 2016'!AV191/'Population 2016'!AV$5","v":2.2172949002217295E-3},{"$f":"'Population 2016'!AW191/'Population 2016'!AW$5","v":1.9105802672524253E-3},{"$f":"'Population 2016'!AX191/'Population 2016'!AX$5","v":2.9390342078024971E-3},{"$f":"'Population 2016'!AY191/'Population 2016'!AY$5","v":3.0002141917321993E-3},{"$f":"'Population 2016'!AZ191/'Population 2016'!AZ$5","v":3.9377326253660161E-3},{"$f":"'Population 2016'!BA191/'Population 2016'!BA$5","v":1.4980565752537249E-3},{"$f":"'Population 2016'!BB191/'Population 2016'!BB$5","v":9.5979229818468062E-4},{"$f":"'Population 2016'!BC191/'Population 2016'!BC$5","v":9.7375293232417125E-4},189]
[null,"Female 90+",{"$f":"'Population 2016'!C192/'Population 2016'!C$5","v":6.5933054949323549E-4},{"$f":"'Population 2016'!D192/'Population 2016'!D$5","v":1.4499770155414063E-3},{"$f":"'Population 2016'!E192/'Population 2016'!E$5","v":2.1751461426314581E-3},{"$f":"'Population 2016'!F192/'Population 2016'!F$5","v":2.9152716971413855E-3},{"$f":"'Population 2016'!G192/'Population 2016'!G$5","v":2.1653223623666973E-3},{"$f":"'Population 2016'!H192/'Population 2016'!H$5","v":1.1089026727148336E-3},{"$f":"'Population 2016'!I192/'Population 2016'!I$5","v":2.9206096641822294E-3},{"$f":"'Population 2016'!J192/'Population 2016'!J$5","v":1.799590323677467E-3},{"$f":"'Population 2016'!K192/'Population 2016'!K$5","v":1.0631762982563908E-3},{"$f":"'Population 2016'!L192/'Population 2016'!L$5","v":1.358156084698108E-3},{"$f":"'Population 2016'!M192/'Population 2016'!M$5","v":1.358156084698108E-3},{"$f":"'Population 2016'!N192/'Population 2016'!N$5","v":1.50296171868093E-3},{"$f":"'Population 2016'!O192/'Population 2016'!O$5","v":7.0338118306733635E-4},{"$f":"'Population 2016'!P192/'Population 2016'!P$5","v":1.4538487546489349E-3},{"$f":"'Population 2016'!Q192/'Population 2016'!Q$5","v":1.5158458772517361E-3},{"$f":"'Population 2016'!R192/'Population 2016'!R$5","v":2.2355884388140738E-3},{"$f":"'Population 2016'!S192/'Population 2016'!S$5","v":1.2533739591258865E-3},{"$f":"'Population 2016'!T192/'Population 2016'!T$5","v":1.1470291247679186E-3},{"$f":"'Population 2016'!U192/'Population 2016'!U$5","v":4.8687646616208562E-4},{"$f":"'Population 2016'!V192/'Population 2016'!V$5","v":1.3203990200044268E-3},{"$f":"'Population 2016'!W192/'Population 2016'!W$5","v":1.3302479425280594E-3},{"$f":"'Population 2016'!X192/'Population 2016'!X$5","v":1.3302479425280594E-3},{"$f":"'Population 2016'!Y192/'Population 2016'!Y$5","v":1.5500548480946248E-3},{"$f":"'Population 2016'!Z192/'Population 2016'!Z$5","v":5.3040847259782069E-4},{"$f":"'Population 2016'!AA192/'Population 2016'!AA$5","v":7.8729328568381905E-4},{"$f":"'Population 2016'!AB192/'Population 2016'!AB$5","v":1.6171458399435023E-3},{"$f":"'Population 2016'!AC192/'Population 2016'!AC$5","v":8.9156242695290439E-4},{"$f":"'Population 2016'!AD192/'Population 2016'!AD$5","v":2.4265882615653726E-3},{"$f":"'Population 2016'!AE192/'Population 2016'!AE$5","v":2.5256932822718919E-3},{"$f":"'Population 2016'!AF192/'Population 2016'!AF$5","v":1.131068180789938E-3},{"$f":"'Population 2016'!AG192/'Population 2016'!AG$5","v":2.5256932822718919E-3},{"$f":"'Population 2016'!AH192/'Population 2016'!AH$5","v":6.0002043413243176E-4},{"$f":"'Population 2016'!AI192/'Population 2016'!AI$5","v":1.0034779945752035E-3},{"$f":"'Population 2016'!AJ192/'Population 2016'!AJ$5","v":9.8987814739425026E-4},{"$f":"'Population 2016'!AK192/'Population 2016'!AK$5","v":2.4766478508479691E-3},{"$f":"'Population 2016'!AL192/'Population 2016'!AL$5","v":1.3302353629768894E-3},{"$f":"'Population 2016'!AM192/'Population 2016'!AM$5","v":2.8613754160765835E-4},{"$f":"'Population 2016'!AN192/'Population 2016'!AN$5","v":2.6180866150321805E-3},{"$f":"'Population 2016'!AO192/'Population 2016'!AO$5","v":2.6180866150321805E-3},{"$f":"'Population 2016'!AP192/'Population 2016'!AP$5","v":3.5984338094256774E-3},{"$f":"'Population 2016'!AQ192/'Population 2016'!AQ$5","v":1.1029210281142106E-3},{"$f":"'Population 2016'!AR192/'Population 2016'!AR$5","v":1.3362196390424754E-3},{"$f":"'Population 2016'!AS192/'Population 2016'!AS$5","v":2.9206096641822294E-3},{"$f":"'Population 2016'!AT192/'Population 2016'!AT$5","v":3.4270047978067169E-3},{"$f":"'Population 2016'!AU192/'Population 2016'!AU$5","v":3.4270047978067169E-3},{"$f":"'Population 2016'!AV192/'Population 2016'!AV$5","v":1.2775842044134727E-3},{"$f":"'Population 2016'!AW192/'Population 2016'!AW$5","v":9.3050216608700953E-4},{"$f":"'Population 2016'!AX192/'Population 2016'!AX$5","v":2.1978864510523019E-3},{"$f":"'Population 2016'!AY192/'Population 2016'!AY$5","v":2.0363513968360823E-3},{"$f":"'Population 2016'!AZ192/'Population 2016'!AZ$5","v":2.6577537953529577E-3},{"$f":"'Population 2016'!BA192/'Population 2016'!BA$5","v":7.4228028503562943E-4},{"$f":"'Population 2016'!BB192/'Population 2016'!BB$5","v":2.831042030616684E-4},{"$f":"'Population 2016'!BC192/'Population 2016'!BC$5","v":4.8687646616208562E-4},190]
[null,"Male 0-4",{"$f":"'Population 2016'!C193/'Population 2016'!C$5","v":0},{"$f":"'Population 2016'!D193/'Population 2016'!D$5","v":0},{"$f":"'Population 2016'!E193/'Population 2016'!E$5","v":0},{"$f":"'Population 2016'!F193/'Population 2016'!F$5","v":0},{"$f":"'Population 2016'!G193/'Population 2016'!G$5","v":0},{"$f":"'Population 2016'!H193/'Population 2016'!H$5","v":0},{"$f":"'Population 2016'!I193/'Population 2016'!I$5","v":0},{"$f":"'Population 2016'!J193/'Population 2016'!J$5","v":0},{"$f":"'Population 2016'!K193/'Population 2016'!K$5","v":0},{"$f":"'Population 2016'!L193/'Population 2016'!L$5","v":0},{"$f":"'Population 2016'!M193/'Population 2016'!M$5","v":0},{"$f":"'Population 2016'!N193/'Population 2016'!N$5","v":0},{"$f":"'Population 2016'!O193/'Population 2016'!O$5","v":0},{"$f":"'Population 2016'!P193/'Population 2016'!P$5","v":0},{"$f":"'Population 2016'!Q193/'Population 2016'!Q$5","v":0},{"$f":"'Population 2016'!R193/'Population 2016'!R$5","v":0},{"$f":"'Population 2016'!S193/'Population 2016'!S$5","v":0},{"$f":"'Population 2016'!T193/'Population 2016'!T$5","v":0},{"$f":"'Population 2016'!U193/'Population 2016'!U$5","v":0},{"$f":"'Population 2016'!V193/'Population 2016'!V$5","v":0},{"$f":"'Population 2016'!W193/'Population 2016'!W$5","v":0},{"$f":"'Population 2016'!X193/'Population 2016'!X$5","v":0},{"$f":"'Population 2016'!Y193/'Population 2016'!Y$5","v":0},{"$f":"'Population 2016'!Z193/'Population 2016'!Z$5","v":0},{"$f":"'Population 2016'!AA193/'Population 2016'!AA$5","v":0},{"$f":"'Population 2016'!AB193/'Population 2016'!AB$5","v":0},{"$f":"'Population 2016'!AC193/'Population 2016'!AC$5","v":0},{"$f":"'Population 2016'!AD193/'Population 2016'!AD$5","v":0},{"$f":"'Population 2016'!AE193/'Population 2016'!AE$5","v":0},{"$f":"'Population 2016'!AF193/'Population 2016'!AF$5","v":0},{"$f":"'Population 2016'!AG193/'Population 2016'!AG$5","v":0},{"$f":"'Population 2016'!AH193/'Population 2016'!AH$5","v":0},{"$f":"'Population 2016'!AI193/'Population 2016'!AI$5","v":0},{"$f":"'Population 2016'!AJ193/'Population 2016'!AJ$5","v":0},{"$f":"'Population 2016'!AK193/'Population 2016'!AK$5","v":0},{"$f":"'Population 2016'!AL193/'Population 2016'!AL$5","v":0},{"$f":"'Population 2016'!AM193/'Population 2016'!AM$5","v":0},{"$f":"'Population 2016'!AN193/'Population 2016'!AN$5","v":0},{"$f":"'Population 2016'!AO193/'Population 2016'!AO$5","v":0},{"$f":"'Population 2016'!AP193/'Population 2016'!AP$5","v":0},{"$f":"'Population 2016'!AQ193/'Population 2016'!AQ$5","v":0},{"$f":"'Population 2016'!AR193/'Population 2016'!AR$5","v":0},{"$f":"'Population 2016'!AS193/'Population 2016'!AS$5","v":0},{"$f":"'Population 2016'!AT193/'Population 2016'!AT$5","v":0},{"$f":"'Population 2016'!AU193/'Population 2016'!AU$5","v":0},{"$f":"'Population 2016'!AV193/'Population 2016'!AV$5","v":0},{"$f":"'Population 2016'!AW193/'Population 2016'!AW$5","v":0},{"$f":"'Population 2016'!AX193/'Population 2016'!AX$5","v":0},{"$f":"'Population 2016'!AY193/'Population 2016'!AY$5","v":0},{"$f":"'Population 2016'!AZ193/'Population 2016'!AZ$5","v":0},{"$f":"'Population 2016'!BA193/'Population 2016'!BA$5","v":0},{"$f":"'Population 2016'!BB193/'Population 2016'!BB$5","v":0},{"$f":"'Population 2016'!BC193/'Population 2016'!BC$5","v":0},191]
[null,"Male 5-9",{"$f":"'Population 2016'!C194/'Population 2016'!C$5","v":0},{"$f":"'Population 2016'!D194/'Population 2016'!D$5","v":0},{"$f":"'Population 2016'!E194/'Population 2016'!E$5","v":0},{"$f":"'Population 2016'!F194/'Population 2016'!F$5","v":0},{"$f":"'Population 2016'!G194/'Population 2016'!G$5","v":0},{"$f":"'Population 2016'!H194/'Population 2016'!H$5","v":0},{"$f":"'Population 2016'!I194/'Population 2016'!I$5","v":0},{"$f":"'Population 2016'!J194/'Population 2016'!J$5","v":0},{"$f":"'Population 2016'!K194/'Population 2016'!K$5","v":0},{"$f":"'Population 2016'!L194/'Population 2016'!L$5","v":0},{"$f":"'Population 2016'!M194/'Population 2016'!M$5","v":0},{"$f":"'Population 2016'!N194/'Population 2016'!N$5","v":0},{"$f":"'Population 2016'!O194/'Population 2016'!O$5","v":0},{"$f":"'Population 2016'!P194/'Population 2016'!P$5","v":0},{"$f":"'Population 2016'!Q194/'Population 2016'!Q$5","v":0},{"$f":"'Population 2016'!R194/'Population 2016'!R$5","v":0},{"$f":"'Population 2016'!S194/'Population 2016'!S$5","v":0},{"$f":"'Population 2016'!T194/'Population 2016'!T$5","v":0},{"$f":"'Population 2016'!U194/'Population 2016'!U$5","v":0},{"$f":"'Population 2016'!V194/'Population 2016'!V$5","v":0},{"$f":"'Population 2016'!W194/'Population 2016'!W$5","v":0},{"$f":"'Population 2016'!X194/'Population 2016'!X$5","v":0},{"$f":"'Population 2016'!Y194/'Population 2016'!Y$5","v":0},{"$f":"'Population 2016'!Z194/'Population 2016'!Z$5","v":0},{"$f":"'Population 2016'!AA194/'Population 2016'!AA$5","v":0},{"$f":"'Population 2016'!AB194/'Population 2016'!AB$5","v":0},{"$f":"'Population 2016'!AC194/'Population 2016'!AC$5","v":0},{"$f":"'Population 2016'!AD194/'Population 2016'!AD$5","v":0},{"$f":"'Population 2016'!AE194/'Population 2016'!AE$5","v":0},{"$f":"'Population 2016'!AF194/'Population 2016'!AF$5","v":0},{"$f":"'Population 2016'!AG194/'Population 2016'!AG$5","v":0},{"$f":"'Population 2016'!AH194/'Population 2016'!AH$5","v":0},{"$f":"'Population 2016'!AI194/'Population 2016'!AI$5","v":0},{"$f":"'Population 2016'!AJ194/'Population 2016'!AJ$5","v":0},{"$f":"'Population 2016'!AK194/'Population 2016'!AK$5","v":0},{"$f":"'Population 2016'!AL194/'Population 2016'!AL$5","v":0},{"$f":"'Population 2016'!AM194/'Population 2016'!AM$5","v":0},{"$f":"'Population 2016'!AN194/'Population 2016'!AN$5","v":0},{"$f":"'Population 2016'!AO194/'Population 2016'!AO$5","v":0},{"$f":"'Population 2016'!AP194/'Population 2016'!AP$5","v":0},{"$f":"'Population 2016'!AQ194/'Population 2016'!AQ$5","v":0},{"$f":"'Population 2016'!AR194/'Population 2016'!AR$5","v":0},{"$f":"'Population 2016'!AS194/'Population 2016'!AS$5","v":0},{"$f":"'Population 2016'!AT194/'Population 2016'!AT$5","v":0},{"$f":"'Population 2016'!AU194/'Population 2016'!AU$5","v":0},{"$f":"'Population 2016'!AV194/'Population 2016'!AV$5","v":0},{"$f":"'Population 2016'!AW194/'Population 2016'!AW$5","v":0},{"$f":"'Population 2016'!AX194/'Population 2016'!AX$5","v":0},{"$f":"'Population 2016'!AY194/'Population 2016'!AY$5","v":0},{"$f":"'Population 2016'!AZ194/'Population 2016'!AZ$5","v":0},{"$f":"'Population 2016'!BA194/'Population 2016'!BA$5","v":0},{"$f":"'Population 2016'!BB194/'Population 2016'!BB$5","v":0},{"$f":"'Population 2016'!BC194/'Population 2016'!BC$5","v":0},192]
[null,"Male 10-15",{"$f":"'Population 2016'!C195/'Population 2016'!C$5","v":0},{"$f":"'Population 2016'!D195/'Population 2016'!D$5","v":0},{"$f":"'Population 2016'!E195/'Population 2016'!E$5","v":0},{"$f":"'Population 2016'!F195/'Population 2016'!F$5","v":0},{"$f":"'Population 2016'!G195/'Population 2016'!G$5","v":0},{"$f":"'Population 2016'!H195/'Population 2016'!H$5","v":0},{"$f":"'Population 2016'!I195/'Population 2016'!I$5","v":0},{"$f":"'Population 2016'!J195/'Population 2016'!J$5","v":0},{"$f":"'Population 2016'!K195/'Population 2016'!K$5","v":0},{"$f":"'Population 2016'!L195/'Population 2016'!L$5","v":0},{"$f":"'Population 2016'!M195/'Population 2016'!M$5","v":0},{"$f":"'Population 2016'!N195/'Population 2016'!N$5","v":0},{"$f":"'Population 2016'!O195/'Population 2016'!O$5","v":0},{"$f":"'Population 2016'!P195/'Population 2016'!P$5","v":0},{"$f":"'Population 2016'!Q195/'Population 2016'!Q$5","v":0},{"$f":"'Population 2016'!R195/'Population 2016'!R$5","v":0},{"$f":"'Population 2016'!S195/'Population 2016'!S$5","v":0},{"$f":"'Population 2016'!T195/'Population 2016'!T$5","v":0},{"$f":"'Population 2016'!U195/'Population 2016'!U$5","v":0},{"$f":"'Population 2016'!V195/'Population 2016'!V$5","v":0},{"$f":"'Population 2016'!W195/'Population 2016'!W$5","v":0},{"$f":"'Population 2016'!X195/'Population 2016'!X$5","v":0},{"$f":"'Population 2016'!Y195/'Population 2016'!Y$5","v":0},{"$f":"'Population 2016'!Z195/'Population 2016'!Z$5","v":0},{"$f":"'Population 2016'!AA195/'Population 2016'!AA$5","v":0},{"$f":"'Population 2016'!AB195/'Population 2016'!AB$5","v":0},{"$f":"'Population 2016'!AC195/'Population 2016'!AC$5","v":0},{"$f":"'Population 2016'!AD195/'Population 2016'!AD$5","v":0},{"$f":"'Population 2016'!AE195/'Population 2016'!AE$5","v":0},{"$f":"'Population 2016'!AF195/'Population 2016'!AF$5","v":0},{"$f":"'Population 2016'!AG195/'Population 2016'!AG$5","v":0},{"$f":"'Population 2016'!AH195/'Population 2016'!AH$5","v":0},{"$f":"'Population 2016'!AI195/'Population 2016'!AI$5","v":0},{"$f":"'Population 2016'!AJ195/'Population 2016'!AJ$5","v":0},{"$f":"'Population 2016'!AK195/'Population 2016'!AK$5","v":0},{"$f":"'Population 2016'!AL195/'Population 2016'!AL$5","v":0},{"$f":"'Population 2016'!AM195/'Population 2016'!AM$5","v":0},{"$f":"'Population 2016'!AN195/'Population 2016'!AN$5","v":0},{"$f":"'Population 2016'!AO195/'Population 2016'!AO$5","v":0},{"$f":"'Population 2016'!AP195/'Population 2016'!AP$5","v":0},{"$f":"'Population 2016'!AQ195/'Population 2016'!AQ$5","v":0},{"$f":"'Population 2016'!AR195/'Population 2016'!AR$5","v":0},{"$f":"'Population 2016'!AS195/'Population 2016'!AS$5","v":0},{"$f":"'Population 2016'!AT195/'Population 2016'!AT$5","v":0},{"$f":"'Population 2016'!AU195/'Population 2016'!AU$5","v":0},{"$f":"'Population 2016'!AV195/'Population 2016'!AV$5","v":0},{"$f":"'Population 2016'!AW195/'Population 2016'!AW$5","v":0},{"$f":"'Population 2016'!AX195/'Population 2016'!AX$5","v":0},{"$f":"'Population 2016'!AY195/'Population 2016'!AY$5","v":0},{"$f":"'Population 2016'!AZ195/'Population 2016'!AZ$5","v":0},{"$f":"'Population 2016'!BA195/'Population 2016'!BA$5","v":0},{"$f":"'Population 2016'!BB195/'Population 2016'!BB$5","v":0},{"$f":"'Population 2016'!BC195/'Population 2016'!BC$5","v":0},193]
[null,"Male 16-19",{"$f":"'Population 2016'!C196/'Population 2016'!C$5","v":4.4159813547453913E-3},{"$f":"'Population 2016'!D196/'Population 2016'!D$5","v":7.4234910947448725E-3},{"$f":"'Population 2016'!E196/'Population 2016'!E$5","v":1.0181934098697257E-2},{"$f":"'Population 2016'!F196/'Population 2016'!F$5","v":7.2418233324748902E-3},{"$f":"'Population 2016'!G196/'Population 2016'!G$5","v":6.8478319709846802E-3},{"$f":"'Population 2016'!H196/'Population 2016'!H$5","v":3.9687043023478256E-3},{"$f":"'Population 2016'!I196/'Population 2016'!I$5","v":8.8979147475085844E-3},{"$f":"'Population 2016'!J196/'Population 2016'!J$5","v":7.3559291110687243E-3},{"$f":"'Population 2016'!K196/'Population 2016'!K$5","v":5.4340121910882201E-3},{"$f":"'Population 2016'!L196/'Population 2016'!L$5","v":4.20948961923975E-3},{"$f":"'Population 2016'!M196/'Population 2016'!M$5","v":4.20948961923975E-3},{"$f":"'Population 2016'!N196/'Population 2016'!N$5","v":6.1404425297980243E-3},{"$f":"'Population 2016'!O196/'Population 2016'!O$5","v":3.5664398014681846E-3},{"$f":"'Population 2016'!P196/'Population 2016'!P$5","v":5.0715654231939591E-3},{"$f":"'Population 2016'!Q196/'Population 2016'!Q$5","v":8.7073007367716015E-3},{"$f":"'Population 2016'!R196/'Population 2016'!R$5","v":4.6707829882365465E-3},{"$f":"'Population 2016'!S196/'Population 2016'!S$5","v":4.5589271118909886E-3},{"$f":"'Population 2016'!T196/'Population 2016'!T$5","v":2.9199220113260401E-3},{"$f":"'Population 2016'!U196/'Population 2016'!U$5","v":1.5491523923339087E-3},{"$f":"'Population 2016'!V196/'Population 2016'!V$5","v":6.2356416147029865E-3},{"$f":"'Population 2016'!W196/'Population 2016'!W$5","v":4.5529124912569701E-3},{"$f":"'Population 2016'!X196/'Population 2016'!X$5","v":4.5529124912569701E-3},{"$f":"'Population 2016'!Y196/'Population 2016'!Y$5","v":6.7725473362903613E-3},{"$f":"'Population 2016'!Z196/'Population 2016'!Z$5","v":2.5068575620955393E-3},{"$f":"'Population 2016'!AA196/'Population 2016'!AA$5","v":4.077979905086313E-3},{"$f":"'Population 2016'!AB196/'Population 2016'!AB$5","v":7.9199205756220383E-3},{"$f":"'Population 2016'!AC196/'Population 2016'!AC$5","v":3.5414266239985437E-3},{"$f":"'Population 2016'!AD196/'Population 2016'!AD$5","v":8.7498604339573492E-3},{"$f":"'Population 2016'!AE196/'Population 2016'!AE$5","v":9.4713498085195955E-3},{"$f":"'Population 2016'!AF196/'Population 2016'!AF$5","v":5.9720399945708729E-3},{"$f":"'Population 2016'!AG196/'Population 2016'!AG$5","v":9.4713498085195955E-3},{"$f":"'Population 2016'!AH196/'Population 2016'!AH$5","v":5.0416577654347362E-3},{"$f":"'Population 2016'!AI196/'Population 2016'!AI$5","v":3.9947720710473361E-3},{"$f":"'Population 2016'!AJ196/'Population 2016'!AJ$5","v":3.8340350779354766E-3},{"$f":"'Population 2016'!AK196/'Population 2016'!AK$5","v":1.0472323145971362E-2},{"$f":"'Population 2016'!AL196/'Population 2016'!AL$5","v":4.5760096486404996E-3},{"$f":"'Population 2016'!AM196/'Population 2016'!AM$5","v":4.1652933272000895E-3},{"$f":"'Population 2016'!AN196/'Population 2016'!AN$5","v":1.3472237373186429E-2},{"$f":"'Population 2016'!AO196/'Population 2016'!AO$5","v":1.3472237373186429E-2},{"$f":"'Population 2016'!AP196/'Population 2016'!AP$5","v":1.290363489371146E-2},{"$f":"'Population 2016'!AQ196/'Population 2016'!AQ$5","v":4.8569627884035736E-3},{"$f":"'Population 2016'!AR196/'Population 2016'!AR$5","v":5.5097339301097871E-3},{"$f":"'Population 2016'!AS196/'Population 2016'!AS$5","v":8.8979147475085844E-3},{"$f":"'Population 2016'!AT196/'Population 2016'!AT$5","v":1.9718458375072495E-2},{"$f":"'Population 2016'!AU196/'Population 2016'!AU$5","v":1.9718458375072495E-2},{"$f":"'Population 2016'!AV196/'Population 2016'!AV$5","v":3.6743744060817232E-3},{"$f":"'Population 2016'!AW196/'Population 2016'!AW$5","v":5.9643663432790289E-3},{"$f":"'Population 2016'!AX196/'Population 2016'!AX$5","v":8.3954151066358285E-3},{"$f":"'Population 2016'!AY196/'Population 2016'!AY$5","v":6.866374957926624E-3},{"$f":"'Population 2016'!AZ196/'Population 2016'!AZ$5","v":8.9023246716638579E-3},{"$f":"'Population 2016'!BA196/'Population 2016'!BA$5","v":3.0096091556899157E-3},{"$f":"'Population 2016'!BB196/'Population 2016'!BB$5","v":4.4951423461742955E-3},{"$f":"'Population 2016'!BC196/'Population 2016'!BC$5","v":1.5491523923339087E-3},194]
[null,"Male 20-24",{"$f":"'Population 2016'!C197/'Population 2016'!C$5","v":1.0942842685775327E-2},{"$f":"'Population 2016'!D197/'Population 2016'!D$5","v":1.1215926762712361E-2},{"$f":"'Population 2016'!E197/'Population 2016'!E$5","v":1.1466395398440833E-2},{"$f":"'Population 2016'!F197/'Population 2016'!F$5","v":8.6634045840844713E-3},{"$f":"'Population 2016'!G197/'Population 2016'!G$5","v":7.6598278568721923E-3},{"$f":"'Population 2016'!H197/'Population 2016'!H$5","v":4.3123992827799086E-3},{"$f":"'Population 2016'!I197/'Population 2016'!I$5","v":9.2119587974206513E-3},{"$f":"'Population 2016'!J197/'Population 2016'!J$5","v":1.0689732383503479E-2},{"$f":"'Population 2016'!K197/'Population 2016'!K$5","v":7.1114681283371926E-3},{"$f":"'Population 2016'!L197/'Population 2016'!L$5","v":5.0990421425507922E-3},{"$f":"'Population 2016'!M197/'Population 2016'!M$5","v":5.0990421425507922E-3},{"$f":"'Population 2016'!N197/'Population 2016'!N$5","v":1.3414134269938354E-2},{"$f":"'Population 2016'!O197/'Population 2016'!O$5","v":3.9825244449728063E-3},{"$f":"'Population 2016'!P197/'Population 2016'!P$5","v":6.7282767947706521E-3},{"$f":"'Population 2016'!Q197/'Population 2016'!Q$5","v":1.0939941951328422E-2},{"$f":"'Population 2016'!R197/'Population 2016'!R$5","v":4.7772395805610263E-3},{"$f":"'Population 2016'!S197/'Population 2016'!S$5","v":6.7991123993990862E-3},{"$f":"'Population 2016'!T197/'Population 2016'!T$5","v":6.8938079040311209E-3},{"$f":"'Population 2016'!U197/'Population 2016'!U$5","v":2.0802903554198201E-3},{"$f":"'Population 2016'!V197/'Population 2016'!V$5","v":7.296540249273017E-3},{"$f":"'Population 2016'!W197/'Population 2016'!W$5","v":5.9550657279757351E-3},{"$f":"'Population 2016'!X197/'Population 2016'!X$5","v":5.9550657279757351E-3},{"$f":"'Population 2016'!Y197/'Population 2016'!Y$5","v":8.9227516255703399E-3},{"$f":"'Population 2016'!Z197/'Population 2016'!Z$5","v":8.1826153783612701E-3},{"$f":"'Population 2016'!AA197/'Population 2016'!AA$5","v":6.6976401797287591E-3},{"$f":"'Population 2016'!AB197/'Population 2016'!AB$5","v":1.153086394481234E-2},{"$f":"'Population 2016'!AC197/'Population 2016'!AC$5","v":7.0756131818849408E-3},{"$f":"'Population 2016'!AD197/'Population 2016'!AD$5","v":9.7212400908109724E-3},{"$f":"'Population 2016'!AE197/'Population 2016'!AE$5","v":1.0503187917740428E-2},{"$f":"'Population 2016'!AF197/'Population 2016'!AF$5","v":6.2585772670376572E-3},{"$f":"'Population 2016'!AG197/'Population 2016'!AG$5","v":1.0503187917740428E-2},{"$f":"'Population 2016'!AH197/'Population 2016'!AH$5","v":6.0187808253531856E-3},{"$f":"'Population 2016'!AI197/'Population 2016'!AI$5","v":6.8370482981888183E-3},{"$f":"'Population 2016'!AJ197/'Population 2016'!AJ$5","v":4.1686417756462094E-3},{"$f":"'Population 2016'!AK197/'Population 2016'!AK$5","v":1.3150120060847592E-2},{"$f":"'Population 2016'!AL197/'Population 2016'!AL$5","v":5.1967861513630481E-3},{"$f":"'Population 2016'!AM197/'Population 2016'!AM$5","v":5.4728332325211619E-3},{"$f":"'Population 2016'!AN197/'Population 2016'!AN$5","v":1.4126759026944475E-2},{"$f":"'Population 2016'!AO197/'Population 2016'!AO$5","v":1.4126759026944475E-2},{"$f":"'Population 2016'!AP197/'Population 2016'!AP$5","v":1.3609054737409445E-2},{"$f":"'Population 2016'!AQ197/'Population 2016'!AQ$5","v":6.2681536690962899E-3},{"$f":"'Population 2016'!AR197/'Population 2016'!AR$5","v":7.8480069096679428E-3},{"$f":"'Population 2016'!AS197/'Population 2016'!AS$5","v":9.2119587974206513E-3},{"$f":"'Population 2016'!AT197/'Population 2016'!AT$5","v":2.3672694680234092E-2},{"$f":"'Population 2016'!AU197/'Population 2016'!AU$5","v":2.3672694680234092E-2},{"$f":"'Population 2016'!AV197/'Population 2016'!AV$5","v":3.6110231232182452E-3},{"$f":"'Population 2016'!AW197/'Population 2016'!AW$5","v":6.5935993654280311E-3},{"$f":"'Population 2016'!AX197/'Population 2016'!AX$5","v":1.2625068683951595E-2},{"$f":"'Population 2016'!AY197/'Population 2016'!AY$5","v":9.2546127719470034E-3},{"$f":"'Population 2016'!AZ197/'Population 2016'!AZ$5","v":1.2158360706663368E-2},{"$f":"'Population 2016'!BA197/'Population 2016'!BA$5","v":4.4266896998488448E-3},{"$f":"'Population 2016'!BB197/'Population 2016'!BB$5","v":5.5792242944836109E-3},{"$f":"'Population 2016'!BC197/'Population 2016'!BC$5","v":2.0802903554198201E-3},195]
[null,"Male 25-29",{"$f":"'Population 2016'!C198/'Population 2016'!C$5","v":1.2394392112566635E-2},{"$f":"'Population 2016'!D198/'Population 2016'!D$5","v":1.1907905675694179E-2},{"$f":"'Population 2016'!E198/'Population 2016'!E$5","v":1.1461707583478266E-2},{"$f":"'Population 2016'!F198/'Population 2016'!F$5","v":7.1903167653875871E-3},{"$f":"'Population 2016'!G198/'Population 2016'!G$5","v":6.2253017918042549E-3},{"$f":"'Population 2016'!H198/'Population 2016'!H$5","v":3.8357656778410768E-3},{"$f":"'Population 2016'!I198/'Population 2016'!I$5","v":7.3800351729335903E-3},{"$f":"'Population 2016'!J198/'Population 2016'!J$5","v":7.654478657853926E-3},{"$f":"'Population 2016'!K198/'Population 2016'!K$5","v":5.9065349903132825E-3},{"$f":"'Population 2016'!L198/'Population 2016'!L$5","v":4.8210569790160911E-3},{"$f":"'Population 2016'!M198/'Population 2016'!M$5","v":4.8210569790160911E-3},{"$f":"'Population 2016'!N198/'Population 2016'!N$5","v":8.8168396010319793E-3},{"$f":"'Population 2016'!O198/'Population 2016'!O$5","v":3.9230837816150027E-3},{"$f":"'Population 2016'!P198/'Population 2016'!P$5","v":5.3082384762763437E-3},{"$f":"'Population 2016'!Q198/'Population 2016'!Q$5","v":7.7084875618382859E-3},{"$f":"'Population 2016'!R198/'Population 2016'!R$5","v":5.0433810613722254E-3},{"$f":"'Population 2016'!S198/'Population 2016'!S$5","v":7.5334836205207326E-3},{"$f":"'Population 2016'!T198/'Population 2016'!T$5","v":1.0223216986268224E-2},{"$f":"'Population 2016'!U198/'Population 2016'!U$5","v":1.1065374230956491E-3},{"$f":"'Population 2016'!V198/'Population 2016'!V$5","v":5.9761412292685901E-3},{"$f":"'Population 2016'!W198/'Population 2016'!W$5","v":5.2033285614365371E-3},{"$f":"'Population 2016'!X198/'Population 2016'!X$5","v":5.2033285614365371E-3},{"$f":"'Population 2016'!Y198/'Population 2016'!Y$5","v":6.7804963355113587E-3},{"$f":"'Population 2016'!Z198/'Population 2016'!Z$5","v":7.8593372217049349E-3},{"$f":"'Population 2016'!AA198/'Population 2016'!AA$5","v":6.2578189517771233E-3},{"$f":"'Population 2016'!AB198/'Population 2016'!AB$5","v":1.1901374573963952E-2},{"$f":"'Population 2016'!AC198/'Population 2016'!AC$5","v":6.7591188632682483E-3},{"$f":"'Population 2016'!AD198/'Population 2016'!AD$5","v":9.2150805761286245E-3},{"$f":"'Population 2016'!AE198/'Population 2016'!AE$5","v":1.034918222979702E-2},{"$f":"'Population 2016'!AF198/'Population 2016'!AF$5","v":4.9616190863985285E-3},{"$f":"'Population 2016'!AG198/'Population 2016'!AG$5","v":1.034918222979702E-2},{"$f":"'Population 2016'!AH198/'Population 2016'!AH$5","v":5.35745799392549E-3},{"$f":"'Population 2016'!AI198/'Population 2016'!AI$5","v":8.5281958176568386E-3},{"$f":"'Population 2016'!AJ198/'Population 2016'!AJ$5","v":4.5869001477846245E-3},{"$f":"'Population 2016'!AK198/'Population 2016'!AK$5","v":1.1867794777667424E-2},{"$f":"'Population 2016'!AL198/'Population 2016'!AL$5","v":3.9641013816711307E-3},{"$f":"'Population 2016'!AM198/'Population 2016'!AM$5","v":4.6868604916494921E-3},{"$f":"'Population 2016'!AN198/'Population 2016'!AN$5","v":1.3799498200065452E-2},{"$f":"'Population 2016'!AO198/'Population 2016'!AO$5","v":1.3799498200065452E-2},{"$f":"'Population 2016'!AP198/'Population 2016'!AP$5","v":1.1461090943677378E-2},{"$f":"'Population 2016'!AQ198/'Population 2016'!AQ$5","v":6.6380774921904967E-3},{"$f":"'Population 2016'!AR198/'Population 2016'!AR$5","v":7.5116128358176373E-3},{"$f":"'Population 2016'!AS198/'Population 2016'!AS$5","v":7.3800351729335903E-3},{"$f":"'Population 2016'!AT198/'Population 2016'!AT$5","v":2.4199926187588969E-2},{"$f":"'Population 2016'!AU198/'Population 2016'!AU$5","v":2.4199926187588969E-2},{"$f":"'Population 2016'!AV198/'Population 2016'!AV$5","v":3.5899060289304192E-3},{"$f":"'Population 2016'!AW198/'Population 2016'!AW$5","v":6.0635182134358414E-3},{"$f":"'Population 2016'!AX198/'Population 2016'!AX$5","v":8.5998696602220884E-3},{"$f":"'Population 2016'!AY198/'Population 2016'!AY$5","v":7.3942045837030691E-3},{"$f":"'Population 2016'!AZ198/'Population 2016'!AZ$5","v":9.3222727821849951E-3},{"$f":"'Population 2016'!BA198/'Population 2016'!BA$5","v":4.4131936946663784E-3},{"$f":"'Population 2016'!BB198/'Population 2016'!BB$5","v":5.9313783031700769E-3},{"$f":"'Population 2016'!BC198/'Population 2016'!BC$5","v":1.1065374230956491E-3},196]
[null,"Male 30-34",{"$f":"'Population 2016'!C199/'Population 2016'!C$5","v":9.1641835290028773E-3},{"$f":"'Population 2016'!D199/'Population 2016'!D$5","v":1.0844263176941208E-2},{"$f":"'Population 2016'!E199/'Population 2016'!E$5","v":1.2385207131104121E-2},{"$f":"'Population 2016'!F199/'Population 2016'!F$5","v":7.0151944372907546E-3},{"$f":"'Population 2016'!G199/'Population 2016'!G$5","v":5.4133059059167437E-3},{"$f":"'Population 2016'!H199/'Population 2016'!H$5","v":3.6314941328672917E-3},{"$f":"'Population 2016'!I199/'Population 2016'!I$5","v":7.442843982916004E-3},{"$f":"'Population 2016'!J199/'Population 2016'!J$5","v":7.1486030369123342E-3},{"$f":"'Population 2016'!K199/'Population 2016'!K$5","v":7.3477295279497238E-3},{"$f":"'Population 2016'!L199/'Population 2016'!L$5","v":5.091099709306943E-3},{"$f":"'Population 2016'!M199/'Population 2016'!M$5","v":5.091099709306943E-3},{"$f":"'Population 2016'!N199/'Population 2016'!N$5","v":5.5939109957322316E-3},{"$f":"'Population 2016'!O199/'Population 2016'!O$5","v":4.1707532122725157E-3},{"$f":"'Population 2016'!P199/'Population 2016'!P$5","v":4.8010819339569478E-3},{"$f":"'Population 2016'!Q199/'Population 2016'!Q$5","v":8.1197635750461222E-3},{"$f":"'Population 2016'!R199/'Population 2016'!R$5","v":3.9522009900463083E-3},{"$f":"'Population 2016'!S199/'Population 2016'!S$5","v":7.6394025466440469E-3},{"$f":"'Population 2016'!T199/'Population 2016'!T$5","v":9.6834385746127315E-3},{"$f":"'Population 2016'!U199/'Population 2016'!U$5","v":1.0180144292479972E-3},{"$f":"'Population 2016'!V199/'Population 2016'!V$5","v":6.1898474290380933E-3},{"$f":"'Population 2016'!W199/'Population 2016'!W$5","v":5.2065969838997507E-3},{"$f":"'Population 2016'!X199/'Population 2016'!X$5","v":5.2065969838997507E-3},{"$f":"'Population 2016'!Y199/'Population 2016'!Y$5","v":6.6493378483648904E-3},{"$f":"'Population 2016'!Z199/'Population 2016'!Z$5","v":6.5120222694126598E-3},{"$f":"'Population 2016'!AA199/'Population 2016'!AA$5","v":5.778134772651624E-3},{"$f":"'Population 2016'!AB199/'Population 2016'!AB$5","v":1.1045720192829289E-2},{"$f":"'Population 2016'!AC199/'Population 2016'!AC$5","v":5.642080091679923E-3},{"$f":"'Population 2016'!AD199/'Population 2016'!AD$5","v":9.3378986936618405E-3},{"$f":"'Population 2016'!AE199/'Population 2016'!AE$5","v":1.0826599862421585E-2},{"$f":"'Population 2016'!AF199/'Population 2016'!AF$5","v":5.2783181770197111E-3},{"$f":"'Population 2016'!AG199/'Population 2016'!AG$5","v":1.0826599862421585E-2},{"$f":"'Population 2016'!AH199/'Population 2016'!AH$5","v":6.0224961221589587E-3},{"$f":"'Population 2016'!AI199/'Population 2016'!AI$5","v":8.6826822119170539E-3},{"$f":"'Population 2016'!AJ199/'Population 2016'!AJ$5","v":5.3815910548476141E-3},{"$f":"'Population 2016'!AK199/'Population 2016'!AK$5","v":1.2081515658197452E-2},{"$f":"'Population 2016'!AL199/'Population 2016'!AL$5","v":3.3610613504549405E-3},{"$f":"'Population 2016'!AM199/'Population 2016'!AM$5","v":5.0961458359743712E-3},{"$f":"'Population 2016'!AN199/'Population 2016'!AN$5","v":1.3799498200065452E-2},{"$f":"'Population 2016'!AO199/'Population 2016'!AO$5","v":1.3799498200065452E-2},{"$f":"'Population 2016'!AP199/'Population 2016'!AP$5","v":1.2626222595627982E-2},{"$f":"'Population 2016'!AQ199/'Population 2016'!AQ$5","v":5.2268866114977804E-3},{"$f":"'Population 2016'!AR199/'Population 2016'!AR$5","v":7.2059620614317961E-3},{"$f":"'Population 2016'!AS199/'Population 2016'!AS$5","v":7.442843982916004E-3},{"$f":"'Population 2016'!AT199/'Population 2016'!AT$5","v":2.1563768650814573E-2},{"$f":"'Population 2016'!AU199/'Population 2016'!AU$5","v":2.1563768650814573E-2},{"$f":"'Population 2016'!AV199/'Population 2016'!AV$5","v":3.3787350860521592E-3},{"$f":"'Population 2016'!AW199/'Population 2016'!AW$5","v":6.9978339129904204E-3},{"$f":"'Population 2016'!AX199/'Population 2016'!AX$5","v":7.0409036891268513E-3},{"$f":"'Population 2016'!AY199/'Population 2016'!AY$5","v":6.9811205287475904E-3},{"$f":"'Population 2016'!AZ199/'Population 2016'!AZ$5","v":8.5427800564916497E-3},{"$f":"'Population 2016'!BA199/'Population 2016'!BA$5","v":3.4414813215288276E-3},{"$f":"'Population 2016'!BB199/'Population 2016'!BB$5","v":7.6783383854774449E-3},{"$f":"'Population 2016'!BC199/'Population 2016'!BC$5","v":1.0180144292479972E-3},197]
[null,"Male 35-39",{"$f":"'Population 2016'!C200/'Population 2016'!C$5","v":7.2066362386469926E-3},{"$f":"'Population 2016'!D200/'Population 2016'!D$5","v":1.0739121504650685E-2},{"$f":"'Population 2016'!E200/'Population 2016'!E$5","v":1.3979064218377172E-2},{"$f":"'Population 2016'!F200/'Population 2016'!F$5","v":6.6958537213494722E-3},{"$f":"'Population 2016'!G200/'Population 2016'!G$5","v":6.766632382395929E-3},{"$f":"'Population 2016'!H200/'Population 2016'!H$5","v":4.2572783896917448E-3},{"$f":"'Population 2016'!I200/'Population 2016'!I$5","v":8.824637802529102E-3},{"$f":"'Population 2016'!J200/'Population 2016'!J$5","v":8.4257316537156984E-3},{"$f":"'Population 2016'!K200/'Population 2016'!K$5","v":7.4422340877947357E-3},{"$f":"'Population 2016'!L200/'Population 2016'!L$5","v":4.344510984385176E-3},{"$f":"'Population 2016'!M200/'Population 2016'!M$5","v":4.344510984385176E-3},{"$f":"'Population 2016'!N200/'Population 2016'!N$5","v":4.5571085266956539E-3},{"$f":"'Population 2016'!O200/'Population 2016'!O$5","v":4.6363717419086398E-3},{"$f":"'Population 2016'!P200/'Population 2016'!P$5","v":4.7785416431871969E-3},{"$f":"'Population 2016'!Q200/'Population 2016'!Q$5","v":9.8588735737535401E-3},{"$f":"'Population 2016'!R200/'Population 2016'!R$5","v":4.7240112843987868E-3},{"$f":"'Population 2016'!S200/'Population 2016'!S$5","v":7.349890815240321E-3},{"$f":"'Population 2016'!T200/'Population 2016'!T$5","v":7.6243700646338114E-3},{"$f":"'Population 2016'!U200/'Population 2016'!U$5","v":2.2130748461912982E-3},{"$f":"'Population 2016'!V200/'Population 2016'!V$5","v":7.1515253280008545E-3},{"$f":"'Population 2016'!W200/'Population 2016'!W$5","v":5.700128775845051E-3},{"$f":"'Population 2016'!X200/'Population 2016'!X$5","v":5.700128775845051E-3},{"$f":"'Population 2016'!Y200/'Population 2016'!Y$5","v":7.7621977393046212E-3},{"$f":"'Population 2016'!Z200/'Population 2016'!Z$5","v":4.8220711870115745E-3},{"$f":"'Population 2016'!AA200/'Population 2016'!AA$5","v":5.5263337977367148E-3},{"$f":"'Population 2016'!AB200/'Population 2016'!AB$5","v":1.0949510250452904E-2},{"$f":"'Population 2016'!AC200/'Population 2016'!AC$5","v":4.8239526210073621E-3},{"$f":"'Population 2016'!AD200/'Population 2016'!AD$5","v":9.8626670140310388E-3},{"$f":"'Population 2016'!AE200/'Population 2016'!AE$5","v":1.1037074302610909E-2},{"$f":"'Population 2016'!AF200/'Population 2016'!AF$5","v":5.0973472680933204E-3},{"$f":"'Population 2016'!AG200/'Population 2016'!AG$5","v":1.1037074302610909E-2},{"$f":"'Population 2016'!AH200/'Population 2016'!AH$5","v":6.7878472641483148E-3},{"$f":"'Population 2016'!AI200/'Population 2016'!AI$5","v":7.8473619739259769E-3},{"$f":"'Population 2016'!AJ200/'Population 2016'!AJ$5","v":6.5945403340490196E-3},{"$f":"'Population 2016'!AK200/'Population 2016'!AK$5","v":1.2031228392190388E-2},{"$f":"'Population 2016'!AL200/'Population 2016'!AL$5","v":4.1858072755006116E-3},{"$f":"'Population 2016'!AM200/'Population 2016'!AM$5","v":5.5307851396822066E-3},{"$f":"'Population 2016'!AN200/'Population 2016'!AN$5","v":1.3144976546307406E-2},{"$f":"'Population 2016'!AO200/'Population 2016'!AO$5","v":1.3144976546307406E-2},{"$f":"'Population 2016'!AP200/'Population 2016'!AP$5","v":1.2697557186563733E-2},{"$f":"'Population 2016'!AQ200/'Population 2016'!AQ$5","v":5.7064174932865679E-3},{"$f":"'Population 2016'!AR200/'Population 2016'!AR$5","v":7.1335593634176565E-3},{"$f":"'Population 2016'!AS200/'Population 2016'!AS$5","v":8.824637802529102E-3},{"$f":"'Population 2016'!AT200/'Population 2016'!AT$5","v":2.3936310433911531E-2},{"$f":"'Population 2016'!AU200/'Population 2016'!AU$5","v":2.3936310433911531E-2},{"$f":"'Population 2016'!AV200/'Population 2016'!AV$5","v":3.9383380846795485E-3},{"$f":"'Population 2016'!AW200/'Population 2016'!AW$5","v":8.111385685520776E-3},{"$f":"'Population 2016'!AX200/'Population 2016'!AX$5","v":8.957665128998045E-3},{"$f":"'Population 2016'!AY200/'Population 2016'!AY$5","v":6.9811205287475904E-3},{"$f":"'Population 2016'!AZ200/'Population 2016'!AZ$5","v":8.1084501613636235E-3},{"$f":"'Population 2016'!BA200/'Population 2016'!BA$5","v":3.0096091556899157E-3},{"$f":"'Population 2016'!BB200/'Population 2016'!BB$5","v":7.9476326274141532E-3},{"$f":"'Population 2016'!BC200/'Population 2016'!BC$5","v":2.2130748461912982E-3},198]
[null,"Male 40-44",{"$f":"'Population 2016'!C201/'Population 2016'!C$5","v":6.0413078255891805E-3},{"$f":"'Population 2016'!D201/'Population 2016'!D$5","v":1.0934733918214449E-2},{"$f":"'Population 2016'!E201/'Population 2016'!E$5","v":1.5422911226848053E-2},{"$f":"'Population 2016'!F201/'Population 2016'!F$5","v":7.9114087046098375E-3},{"$f":"'Population 2016'!G201/'Population 2016'!G$5","v":8.4718237427597026E-3},{"$f":"'Population 2016'!H201/'Population 2016'!H$5","v":5.0808493805384342E-3},{"$f":"'Population 2016'!I201/'Population 2016'!I$5","v":1.1473075956787539E-2},{"$f":"'Population 2016'!J201/'Population 2016'!J$5","v":9.3628455089025814E-3},{"$f":"'Population 2016'!K201/'Population 2016'!K$5","v":8.0328875868260641E-3},{"$f":"'Population 2016'!L201/'Population 2016'!L$5","v":5.6629549028640418E-3},{"$f":"'Population 2016'!M201/'Population 2016'!M$5","v":5.6629549028640418E-3},{"$f":"'Population 2016'!N201/'Population 2016'!N$5","v":4.6455180395592382E-3},{"$f":"'Population 2016'!O201/'Population 2016'!O$5","v":5.5081681378230845E-3},{"$f":"'Population 2016'!P201/'Population 2016'!P$5","v":5.7026935647469853E-3},{"$f":"'Population 2016'!Q201/'Population 2016'!Q$5","v":1.3102078706478185E-2},{"$f":"'Population 2016'!R201/'Population 2016'!R$5","v":5.7353489114813439E-3},{"$f":"'Population 2016'!S201/'Population 2016'!S$5","v":7.5228917279084014E-3},{"$f":"'Population 2016'!T201/'Population 2016'!T$5","v":6.3656626477992398E-3},{"$f":"'Population 2016'!U201/'Population 2016'!U$5","v":2.4343823308104282E-3},{"$f":"'Population 2016'!V201/'Population 2016'!V$5","v":7.8537028415292202E-3},{"$f":"'Population 2016'!W201/'Population 2016'!W$5","v":6.0727289366514356E-3},{"$f":"'Population 2016'!X201/'Population 2016'!X$5","v":6.0727289366514356E-3},{"$f":"'Population 2016'!Y201/'Population 2016'!Y$5","v":8.5769701594569248E-3},{"$f":"'Population 2016'!Z201/'Population 2016'!Z$5","v":4.1910012524608827E-3},{"$f":"'Population 2016'!AA201/'Population 2016'!AA$5","v":5.7821210677690103E-3},{"$f":"'Population 2016'!AB201/'Population 2016'!AB$5","v":1.1539052025014585E-2},{"$f":"'Population 2016'!AC201/'Population 2016'!AC$5","v":4.8953189869699494E-3},{"$f":"'Population 2016'!AD201/'Population 2016'!AD$5","v":1.1150396367561131E-2},{"$f":"'Population 2016'!AE201/'Population 2016'!AE$5","v":1.2166449347529236E-2},{"$f":"'Population 2016'!AF201/'Population 2016'!AF$5","v":6.1680918125744623E-3},{"$f":"'Population 2016'!AG201/'Population 2016'!AG$5","v":1.2166449347529236E-2},{"$f":"'Population 2016'!AH201/'Population 2016'!AH$5","v":7.3748641594605386E-3},{"$f":"'Population 2016'!AI201/'Population 2016'!AI$5","v":7.6135816781870676E-3},{"$f":"'Population 2016'!AJ201/'Population 2016'!AJ$5","v":6.3157014192900757E-3},{"$f":"'Population 2016'!AK201/'Population 2016'!AK$5","v":1.4646166224557786E-2},{"$f":"'Population 2016'!AL201/'Population 2016'!AL$5","v":5.3120732161543779E-3},{"$f":"'Population 2016'!AM201/'Population 2016'!AM$5","v":6.2080980546269163E-3},{"$f":"'Population 2016'!AN201/'Population 2016'!AN$5","v":1.6799389113123158E-2},{"$f":"'Population 2016'!AO201/'Population 2016'!AO$5","v":1.6799389113123158E-2},{"$f":"'Population 2016'!AP201/'Population 2016'!AP$5","v":1.4195583596214511E-2},{"$f":"'Population 2016'!AQ201/'Population 2016'!AQ$5","v":6.2818545514331126E-3},{"$f":"'Population 2016'!AR201/'Population 2016'!AR$5","v":7.6519626811988907E-3},{"$f":"'Population 2016'!AS201/'Population 2016'!AS$5","v":1.1473075956787539E-2},{"$f":"'Population 2016'!AT201/'Population 2016'!AT$5","v":2.9050456055253863E-2},{"$f":"'Population 2016'!AU201/'Population 2016'!AU$5","v":2.9050456055253863E-2},{"$f":"'Population 2016'!AV201/'Population 2016'!AV$5","v":4.350121423292155E-3},{"$f":"'Population 2016'!AW201/'Population 2016'!AW$5","v":8.6033315028372689E-3},{"$f":"'Population 2016'!AX201/'Population 2016'!AX$5","v":1.0082165173722478E-2},{"$f":"'Population 2016'!AY201/'Population 2016'!AY$5","v":7.6420550166763565E-3},{"$f":"'Population 2016'!AZ201/'Population 2016'!AZ$5","v":9.0231316623617195E-3},{"$f":"'Population 2016'!BA201/'Population 2016'!BA$5","v":4.1162815806521274E-3},{"$f":"'Population 2016'!BB201/'Population 2016'!BB$5","v":8.734800411536842E-3},{"$f":"'Population 2016'!BC201/'Population 2016'!BC$5","v":2.4343823308104282E-3},199]
[null,"Male 45-49",{"$f":"'Population 2016'!C202/'Population 2016'!C$5","v":5.6630872002984877E-3},{"$f":"'Population 2016'!D202/'Population 2016'!D$5","v":1.136752638322428E-2},{"$f":"'Population 2016'!E202/'Population 2016'!E$5","v":1.6599552782452572E-2},{"$f":"'Population 2016'!F202/'Population 2016'!F$5","v":1.0146793716198815E-2},{"$f":"'Population 2016'!G202/'Population 2016'!G$5","v":1.0380014074595356E-2},{"$f":"'Population 2016'!H202/'Population 2016'!H$5","v":6.4588717077425396E-3},{"$f":"'Population 2016'!I202/'Population 2016'!I$5","v":1.5775479440582867E-2},{"$f":"'Population 2016'!J202/'Population 2016'!J$5","v":1.1701483625386663E-2},{"$f":"'Population 2016'!K202/'Population 2016'!K$5","v":1.0088361763455086E-2},{"$f":"'Population 2016'!L202/'Population 2016'!L$5","v":7.4976569821930648E-3},{"$f":"'Population 2016'!M202/'Population 2016'!M$5","v":7.4976569821930648E-3},{"$f":"'Population 2016'!N202/'Population 2016'!N$5","v":5.561762081963656E-3},{"$f":"'Population 2016'!O202/'Population 2016'!O$5","v":6.2214560981167216E-3},{"$f":"'Population 2016'!P202/'Population 2016'!P$5","v":7.5284571170968102E-3},{"$f":"'Population 2016'!Q202/'Population 2016'!Q$5","v":1.4476915664915806E-2},{"$f":"'Population 2016'!R202/'Population 2016'!R$5","v":5.9482620961303027E-3},{"$f":"'Population 2016'!S202/'Population 2016'!S$5","v":8.4479170160520131E-3},{"$f":"'Population 2016'!T202/'Population 2016'!T$5","v":5.937562528210402E-3},{"$f":"'Population 2016'!U202/'Population 2016'!U$5","v":3.1868277785154693E-3},{"$f":"'Population 2016'!V202/'Population 2016'!V$5","v":9.4641317040779719E-3},{"$f":"'Population 2016'!W202/'Population 2016'!W$5","v":8.1579824681819076E-3},{"$f":"'Population 2016'!X202/'Population 2016'!X$5","v":8.1579824681819076E-3},{"$f":"'Population 2016'!Y202/'Population 2016'!Y$5","v":1.0536398467432951E-2},{"$f":"'Population 2016'!Z202/'Population 2016'!Z$5","v":4.330378661318704E-3},{"$f":"'Population 2016'!AA202/'Population 2016'!AA$5","v":6.6757155565831342E-3},{"$f":"'Population 2016'!AB202/'Population 2016'!AB$5","v":1.2540044829739107E-2},{"$f":"'Population 2016'!AC202/'Population 2016'!AC$5","v":5.6720746512873869E-3},{"$f":"'Population 2016'!AD202/'Population 2016'!AD$5","v":1.3335070155197439E-2},{"$f":"'Population 2016'!AE202/'Population 2016'!AE$5","v":1.4456000574954568E-2},{"$f":"'Population 2016'!AF202/'Population 2016'!AF$5","v":8.5357945376947318E-3},{"$f":"'Population 2016'!AG202/'Population 2016'!AG$5","v":1.4456000574954568E-2},{"$f":"'Population 2016'!AH202/'Population 2016'!AH$5","v":8.4783073107752901E-3},{"$f":"'Population 2016'!AI202/'Population 2016'!AI$5","v":7.6122145419546764E-3},{"$f":"'Population 2016'!AJ202/'Population 2016'!AJ$5","v":6.5666564425731254E-3},{"$f":"'Population 2016'!AK202/'Population 2016'!AK$5","v":1.8568572973108884E-2},{"$f":"'Population 2016'!AL202/'Population 2016'!AL$5","v":6.9349603589861832E-3},{"$f":"'Population 2016'!AM202/'Population 2016'!AM$5","v":7.2113904473525029E-3},{"$f":"'Population 2016'!AN202/'Population 2016'!AN$5","v":2.2144649285480527E-2},{"$f":"'Population 2016'!AO202/'Population 2016'!AO$5","v":2.2144649285480527E-2},{"$f":"'Population 2016'!AP202/'Population 2016'!AP$5","v":1.7738534946023492E-2},{"$f":"'Population 2016'!AQ202/'Population 2016'!AQ$5","v":7.7752507261467634E-3},{"$f":"'Population 2016'!AR202/'Population 2016'!AR$5","v":8.8767935540657681E-3},{"$f":"'Population 2016'!AS202/'Population 2016'!AS$5","v":1.5775479440582867E-2},{"$f":"'Population 2016'!AT202/'Population 2016'!AT$5","v":2.836505509569252E-2},{"$f":"'Population 2016'!AU202/'Population 2016'!AU$5","v":2.836505509569252E-2},{"$f":"'Population 2016'!AV202/'Population 2016'!AV$5","v":6.1450744377573646E-3},{"$f":"'Population 2016'!AW202/'Population 2016'!AW$5","v":9.8122216120568682E-3},{"$f":"'Population 2016'!AX202/'Population 2016'!AX$5","v":1.257395504555503E-2},{"$f":"'Population 2016'!AY202/'Population 2016'!AY$5","v":9.8084513937762002E-3},{"$f":"'Population 2016'!AZ202/'Population 2016'!AZ$5","v":1.1260937347193538E-2},{"$f":"'Population 2016'!BA202/'Population 2016'!BA$5","v":5.8167782336428419E-3},{"$f":"'Population 2016'!BB202/'Population 2016'!BB$5","v":9.0662394785358674E-3},{"$f":"'Population 2016'!BC202/'Population 2016'!BC$5","v":3.1868277785154693E-3},200]
[null,"Male 50-54",{"$f":"'Population 2016'!C203/'Population 2016'!C$5","v":5.847086423412879E-3},{"$f":"'Population 2016'!D203/'Population 2016'!D$5","v":1.2169537278835714E-2},{"$f":"'Population 2016'!E203/'Population 2016'!E$5","v":1.7968394751522367E-2},{"$f":"'Population 2016'!F203/'Population 2016'!F$5","v":1.2031934071594128E-2},{"$f":"'Population 2016'!G203/'Population 2016'!G$5","v":1.1706274021544958E-2},{"$f":"'Population 2016'!H203/'Population 2016'!H$5","v":6.9549597455360185E-3},{"$f":"'Population 2016'!I203/'Population 2016'!I$5","v":1.8099405409932167E-2},{"$f":"'Population 2016'!J203/'Population 2016'!J$5","v":1.2082963601834421E-2},{"$f":"'Population 2016'!K203/'Population 2016'!K$5","v":9.4504559845012513E-3},{"$f":"'Population 2016'!L203/'Population 2016'!L$5","v":8.8875827998665669E-3},{"$f":"'Population 2016'!M203/'Population 2016'!M$5","v":8.8875827998665669E-3},{"$f":"'Population 2016'!N203/'Population 2016'!N$5","v":6.1484797582401687E-3},{"$f":"'Population 2016'!O203/'Population 2016'!O$5","v":6.558286523810939E-3},{"$f":"'Population 2016'!P203/'Population 2016'!P$5","v":8.0694240955708329E-3},{"$f":"'Population 2016'!Q203/'Population 2016'!Q$5","v":1.5687242218070292E-2},{"$f":"'Population 2016'!R203/'Population 2016'!R$5","v":7.4386543886730185E-3},{"$f":"'Population 2016'!S203/'Population 2016'!S$5","v":8.7621431635511796E-3},{"$f":"'Population 2016'!T203/'Population 2016'!T$5","v":5.8817233821770749E-3},{"$f":"'Population 2016'!U203/'Population 2016'!U$5","v":2.478643827734254E-3},{"$f":"'Population 2016'!V203/'Population 2016'!V$5","v":9.0290869402614854E-3},{"$f":"'Population 2016'!W203/'Population 2016'!W$5","v":8.3638930833643838E-3},{"$f":"'Population 2016'!X203/'Population 2016'!X$5","v":8.3638930833643838E-3},{"$f":"'Population 2016'!Y203/'Population 2016'!Y$5","v":1.049267897171746E-2},{"$f":"'Population 2016'!Z203/'Population 2016'!Z$5","v":4.2200382126395949E-3},{"$f":"'Population 2016'!AA203/'Population 2016'!AA$5","v":6.976680837945809E-3},{"$f":"'Population 2016'!AB203/'Population 2016'!AB$5","v":1.3246266747182789E-2},{"$f":"'Population 2016'!AC203/'Population 2016'!AC$5","v":6.0268378907825685E-3},{"$f":"'Population 2016'!AD203/'Population 2016'!AD$5","v":1.4514868435743794E-2},{"$f":"'Population 2016'!AE203/'Population 2016'!AE$5","v":1.5580242096941447E-2},{"$f":"'Population 2016'!AF203/'Population 2016'!AF$5","v":9.7271863547934677E-3},{"$f":"'Population 2016'!AG203/'Population 2016'!AG$5","v":1.5580242096941447E-2},{"$f":"'Population 2016'!AH203/'Population 2016'!AH$5","v":8.6826486350928354E-3},{"$f":"'Population 2016'!AI203/'Population 2016'!AI$5","v":7.7092812144544578E-3},{"$f":"'Population 2016'!AJ203/'Population 2016'!AJ$5","v":6.7618436829043858E-3},{"$f":"'Population 2016'!AK203/'Population 2016'!AK$5","v":1.8782293853638912E-2},{"$f":"'Population 2016'!AL203/'Population 2016'!AL$5","v":7.8661251130700063E-3},{"$f":"'Population 2016'!AM203/'Population 2016'!AM$5","v":7.3526482210575497E-3},{"$f":"'Population 2016'!AN203/'Population 2016'!AN$5","v":2.4108214246754665E-2},{"$f":"'Population 2016'!AO203/'Population 2016'!AO$5","v":2.4108214246754665E-2},{"$f":"'Population 2016'!AP203/'Population 2016'!AP$5","v":2.0068798249924701E-2},{"$f":"'Population 2016'!AQ203/'Population 2016'!AQ$5","v":8.604154107524525E-3},{"$f":"'Population 2016'!AR203/'Population 2016'!AR$5","v":9.414132962096854E-3},{"$f":"'Population 2016'!AS203/'Population 2016'!AS$5","v":1.8099405409932167E-2},{"$f":"'Population 2016'!AT203/'Population 2016'!AT$5","v":3.1212105235408866E-2},{"$f":"'Population 2016'!AU203/'Population 2016'!AU$5","v":3.1212105235408866E-2},{"$f":"'Population 2016'!AV203/'Population 2016'!AV$5","v":6.2928940977721465E-3},{"$f":"'Population 2016'!AW203/'Population 2016'!AW$5","v":1.0082982488254316E-2},{"$f":"'Population 2016'!AX203/'Population 2016'!AX$5","v":1.3506778946292344E-2},{"$f":"'Population 2016'!AY203/'Population 2016'!AY$5","v":1.0746305192619566E-2},{"$f":"'Population 2016'!AZ203/'Population 2016'!AZ$5","v":1.2842933653951252E-2},{"$f":"'Population 2016'!BA203/'Population 2016'!BA$5","v":6.3566184409414809E-3},{"$f":"'Population 2016'!BB203/'Population 2016'!BB$5","v":8.9143299061613147E-3},{"$f":"'Population 2016'!BC203/'Population 2016'!BC$5","v":2.478643827734254E-3},201]
[null,"Male 55-59",{"$f":"'Population 2016'!C204/'Population 2016'!C$5","v":5.305310933131616E-3},{"$f":"'Population 2016'!D204/'Population 2016'!D$5","v":1.1012978883639956E-2},{"$f":"'Population 2016'!E204/'Population 2016'!E$5","v":1.6247966660259985E-2},{"$f":"'Population 2016'!F204/'Population 2016'!F$5","v":1.0558846252897245E-2},{"$f":"'Population 2016'!G204/'Population 2016'!G$5","v":1.0867211606127863E-2},{"$f":"'Population 2016'!H204/'Population 2016'!H$5","v":6.6631432527163251E-3},{"$f":"'Population 2016'!I204/'Population 2016'!I$5","v":1.6686207185327862E-2},{"$f":"'Population 2016'!J204/'Population 2016'!J$5","v":1.0664853254604712E-2},{"$f":"'Population 2016'!K204/'Population 2016'!K$5","v":7.9147568870197981E-3},{"$f":"'Population 2016'!L204/'Population 2016'!L$5","v":8.1965911076517396E-3},{"$f":"'Population 2016'!M204/'Population 2016'!M$5","v":8.1965911076517396E-3},{"$f":"'Population 2016'!N204/'Population 2016'!N$5","v":6.6548251500952414E-3},{"$f":"'Population 2016'!O204/'Population 2016'!O$5","v":6.2313628753430219E-3},{"$f":"'Population 2016'!P204/'Population 2016'!P$5","v":8.6216612194297305E-3},{"$f":"'Population 2016'!Q204/'Population 2016'!Q$5","v":1.4676678299902469E-2},{"$f":"'Population 2016'!R204/'Population 2016'!R$5","v":5.5889710970351836E-3},{"$f":"'Population 2016'!S204/'Population 2016'!S$5","v":8.0498383853718908E-3},{"$f":"'Population 2016'!T204/'Population 2016'!T$5","v":5.4117439030632424E-3},{"$f":"'Population 2016'!U204/'Population 2016'!U$5","v":2.3015978400389501E-3},{"$f":"'Population 2016'!V204/'Population 2016'!V$5","v":8.3574388838430474E-3},{"$f":"'Population 2016'!W204/'Population 2016'!W$5","v":7.8082612646180197E-3},{"$f":"'Population 2016'!X204/'Population 2016'!X$5","v":7.8082612646180197E-3},{"$f":"'Population 2016'!Y204/'Population 2016'!Y$5","v":9.4632835725982096E-3},{"$f":"'Population 2016'!Z204/'Population 2016'!Z$5","v":3.6625285772083093E-3},{"$f":"'Population 2016'!AA204/'Population 2016'!AA$5","v":6.1355725681772732E-3},{"$f":"'Population 2016'!AB204/'Population 2016'!AB$5","v":1.1905468614065075E-2},{"$f":"'Population 2016'!AC204/'Population 2016'!AC$5","v":5.5376162806332367E-3},{"$f":"'Population 2016'!AD204/'Population 2016'!AD$5","v":1.3759350924857642E-2},{"$f":"'Population 2016'!AE204/'Population 2016'!AE$5","v":1.4856415363607428E-2},{"$f":"'Population 2016'!AF204/'Population 2016'!AF$5","v":8.5357945376947318E-3},{"$f":"'Population 2016'!AG204/'Population 2016'!AG$5","v":1.4856415363607428E-2},{"$f":"'Population 2016'!AH204/'Population 2016'!AH$5","v":7.2095334516036154E-3},{"$f":"'Population 2016'!AI204/'Population 2016'!AI$5","v":7.022978825794033E-3},{"$f":"'Population 2016'!AJ204/'Population 2016'!AJ$5","v":6.4690628224074948E-3},{"$f":"'Population 2016'!AK204/'Population 2016'!AK$5","v":1.6494223250317439E-2},{"$f":"'Population 2016'!AL204/'Population 2016'!AL$5","v":7.3606356751387877E-3},{"$f":"'Population 2016'!AM204/'Population 2016'!AM$5","v":5.7553487799312545E-3},{"$f":"'Population 2016'!AN204/'Population 2016'!AN$5","v":2.1271953747136467E-2},{"$f":"'Population 2016'!AO204/'Population 2016'!AO$5","v":2.1271953747136467E-2},{"$f":"'Population 2016'!AP204/'Population 2016'!AP$5","v":1.840432446142384E-2},{"$f":"'Population 2016'!AQ204/'Population 2016'!AQ$5","v":8.3917904313037753E-3},{"$f":"'Population 2016'!AR204/'Population 2016'!AR$5","v":8.5731477774710872E-3},{"$f":"'Population 2016'!AS204/'Population 2016'!AS$5","v":1.6686207185327862E-2},{"$f":"'Population 2016'!AT204/'Population 2016'!AT$5","v":2.7943269889808615E-2},{"$f":"'Population 2016'!AU204/'Population 2016'!AU$5","v":2.7943269889808615E-2},{"$f":"'Population 2016'!AV204/'Population 2016'!AV$5","v":6.2928940977721465E-3},{"$f":"'Population 2016'!AW204/'Population 2016'!AW$5","v":8.740618707669779E-3},{"$f":"'Population 2016'!AX204/'Population 2016'!AX$5","v":1.2152267528783367E-2},{"$f":"'Population 2016'!AY204/'Population 2016'!AY$5","v":1.0042532358250972E-2},{"$f":"'Population 2016'!AZ204/'Population 2016'!AZ$5","v":1.2008790146751731E-2},{"$f":"'Population 2016'!BA204/'Population 2016'!BA$5","v":6.5590585186784713E-3},{"$f":"'Population 2016'!BB204/'Population 2016'!BB$5","v":7.581668657602729E-3},{"$f":"'Population 2016'!BC204/'Population 2016'!BC$5","v":2.3015978400389501E-3},202]
[null,"Male 60-64",{"$f":"'Population 2016'!C205/'Population 2016'!C$5","v":5.1059784414243586E-3},{"$f":"'Population 2016'!D205/'Population 2016'!D$5","v":9.9444460745478913E-3},{"$f":"'Population 2016'!E205/'Population 2016'!E$5","v":1.4382216305158003E-2},{"$f":"'Population 2016'!F205/'Population 2016'!F$5","v":1.0589750193149627E-2},{"$f":"'Population 2016'!G205/'Population 2016'!G$5","v":1.0664212634655985E-2},{"$f":"'Population 2016'!H205/'Population 2016'!H$5","v":6.0730254561253902E-3},{"$f":"'Population 2016'!I205/'Population 2016'!I$5","v":1.5974374005527175E-2},{"$f":"'Population 2016'!J205/'Population 2016'!J$5","v":8.4423177396482085E-3},{"$f":"'Population 2016'!K205/'Population 2016'!K$5","v":6.071917970042055E-3},{"$f":"'Population 2016'!L205/'Population 2016'!L$5","v":8.3077851730656207E-3},{"$f":"'Population 2016'!M205/'Population 2016'!M$5","v":8.3077851730656207E-3},{"$f":"'Population 2016'!N205/'Population 2016'!N$5","v":5.0071933194557189E-3},{"$f":"'Population 2016'!O205/'Population 2016'!O$5","v":5.7855579001594992E-3},{"$f":"'Population 2016'!P205/'Population 2016'!P$5","v":7.7538600247943198E-3},{"$f":"'Population 2016'!Q205/'Population 2016'!Q$5","v":1.124546127542567E-2},{"$f":"'Population 2016'!R205/'Population 2016'!R$5","v":5.7885772076435834E-3},{"$f":"'Population 2016'!S205/'Population 2016'!S$5","v":6.8282401040829985E-3},{"$f":"'Population 2016'!T205/'Population 2016'!T$5","v":4.7044480533077714E-3},{"$f":"'Population 2016'!U205/'Population 2016'!U$5","v":1.9917673615721682E-3},{"$f":"'Population 2016'!V205/'Population 2016'!V$5","v":6.4798772715824182E-3},{"$f":"'Population 2016'!W205/'Population 2016'!W$5","v":6.6773870923460084E-3},{"$f":"'Population 2016'!X205/'Population 2016'!X$5","v":6.6773870923460084E-3},{"$f":"'Population 2016'!Y205/'Population 2016'!Y$5","v":7.4203907728017044E-3},{"$f":"'Population 2016'!Z205/'Population 2016'!Z$5","v":3.1030831444317755E-3},{"$f":"'Population 2016'!AA205/'Population 2016'!AA$5","v":5.211416483463187E-3},{"$f":"'Population 2016'!AB205/'Population 2016'!AB$5","v":1.0920851969745043E-2},{"$f":"'Population 2016'!AC205/'Population 2016'!AC$5","v":4.7556891405214092E-3},{"$f":"'Population 2016'!AD205/'Population 2016'!AD$5","v":1.2784249506866649E-2},{"$f":"'Population 2016'!AE205/'Population 2016'!AE$5","v":1.3588435199540037E-2},{"$f":"'Population 2016'!AF205/'Population 2016'!AF$5","v":7.1483509025924083E-3},{"$f":"'Population 2016'!AG205/'Population 2016'!AG$5","v":1.3588435199540037E-2},{"$f":"'Population 2016'!AH205/'Population 2016'!AH$5","v":6.0299267157705059E-3},{"$f":"'Population 2016'!AI205/'Population 2016'!AI$5","v":5.6968566803744861E-3},{"$f":"'Population 2016'!AJ205/'Population 2016'!AJ$5","v":5.4652427292752976E-3},{"$f":"'Population 2016'!AK205/'Population 2016'!AK$5","v":1.594106332423972E-2},{"$f":"'Population 2016'!AL205/'Population 2016'!AL$5","v":6.8019368226884943E-3},{"$f":"'Population 2016'!AM205/'Population 2016'!AM$5","v":4.7918983233788863E-3},{"$f":"'Population 2016'!AN205/'Population 2016'!AN$5","v":1.969019308388786E-2},{"$f":"'Population 2016'!AO205/'Population 2016'!AO$5","v":1.969019308388786E-2},{"$f":"'Population 2016'!AP205/'Population 2016'!AP$5","v":1.6977632642708813E-2},{"$f":"'Population 2016'!AQ205/'Population 2016'!AQ$5","v":6.8641420507480682E-3},{"$f":"'Population 2016'!AR205/'Population 2016'!AR$5","v":7.5343361441174593E-3},{"$f":"'Population 2016'!AS205/'Population 2016'!AS$5","v":1.5974374005527175E-2},{"$f":"'Population 2016'!AT205/'Population 2016'!AT$5","v":2.5570728106711658E-2},{"$f":"'Population 2016'!AU205/'Population 2016'!AU$5","v":2.5570728106711658E-2},{"$f":"'Population 2016'!AV205/'Population 2016'!AV$5","v":5.5115616091225847E-3},{"$f":"'Population 2016'!AW205/'Population 2016'!AW$5","v":7.3334248581365547E-3},{"$f":"'Population 2016'!AX205/'Population 2016'!AX$5","v":9.7243697049465231E-3},{"$f":"'Population 2016'!AY205/'Population 2016'!AY$5","v":8.9287353508154584E-3},{"$f":"'Population 2016'!AZ205/'Population 2016'!AZ$5","v":1.0910021802785464E-2},{"$f":"'Population 2016'!BA205/'Population 2016'!BA$5","v":5.3444180522565317E-3},{"$f":"'Population 2016'!BB205/'Population 2016'!BB$5","v":5.4963645277338541E-3},{"$f":"'Population 2016'!BC205/'Population 2016'!BC$5","v":1.9917673615721682E-3},203]
[null,"Male 65-69",{"$f":"'Population 2016'!C206/'Population 2016'!C$5","v":4.7022023684788888E-3},{"$f":"'Population 2016'!D206/'Population 2016'!D$5","v":9.8759817298005731E-3},{"$f":"'Population 2016'!E206/'Population 2016'!E$5","v":1.4621294868248961E-2},{"$f":"'Population 2016'!F206/'Population 2016'!F$5","v":1.0878186968838527E-2},{"$f":"'Population 2016'!G206/'Population 2016'!G$5","v":1.1124343636658908E-2},{"$f":"'Population 2016'!H206/'Population 2016'!H$5","v":6.10220710540736E-3},{"$f":"'Population 2016'!I206/'Population 2016'!I$5","v":1.6937442425257517E-2},{"$f":"'Population 2016'!J206/'Population 2016'!J$5","v":8.0774238491329621E-3},{"$f":"'Population 2016'!K206/'Population 2016'!K$5","v":6.2609270897320797E-3},{"$f":"'Population 2016'!L206/'Population 2016'!L$5","v":8.3633822057725613E-3},{"$f":"'Population 2016'!M206/'Population 2016'!M$5","v":8.3633822057725613E-3},{"$f":"'Population 2016'!N206/'Population 2016'!N$5","v":4.7017786386542469E-3},{"$f":"'Population 2016'!O206/'Population 2016'!O$5","v":5.3298461477496754E-3},{"$f":"'Population 2016'!P206/'Population 2016'!P$5","v":7.7425898794094448E-3},{"$f":"'Population 2016'!Q206/'Population 2016'!Q$5","v":1.0998695667500969E-2},{"$f":"'Population 2016'!R206/'Population 2016'!R$5","v":5.1631447277372651E-3},{"$f":"'Population 2016'!S206/'Population 2016'!S$5","v":6.7894031645044494E-3},{"$f":"'Population 2016'!T206/'Population 2016'!T$5","v":3.9645793683661928E-3},{"$f":"'Population 2016'!U206/'Population 2016'!U$5","v":2.3015978400389501E-3},{"$f":"'Population 2016'!V206/'Population 2016'!V$5","v":6.8004365712366717E-3},{"$f":"'Population 2016'!W206/'Population 2016'!W$5","v":7.1970662639970189E-3},{"$f":"'Population 2016'!X206/'Population 2016'!X$5","v":7.1970662639970189E-3},{"$f":"'Population 2016'!Y206/'Population 2016'!Y$5","v":7.4124417735807061E-3},{"$f":"'Population 2016'!Z206/'Population 2016'!Z$5","v":2.6830151205130639E-3},{"$f":"'Population 2016'!AA206/'Population 2016'!AA$5","v":4.8114582066854155E-3},{"$f":"'Population 2016'!AB206/'Population 2016'!AB$5","v":1.0728432084992273E-2},{"$f":"'Population 2016'!AC206/'Population 2016'!AC$5","v":4.3761028172131537E-3},{"$f":"'Population 2016'!AD206/'Population 2016'!AD$5","v":1.2869850013026164E-2},{"$f":"'Population 2016'!AE206/'Population 2016'!AE$5","v":1.353196644729412E-2},{"$f":"'Population 2016'!AF206/'Population 2016'!AF$5","v":6.0776063581112674E-3},{"$f":"'Population 2016'!AG206/'Population 2016'!AG$5","v":1.353196644729412E-2},{"$f":"'Population 2016'!AH206/'Population 2016'!AH$5","v":5.5933793410921119E-3},{"$f":"'Population 2016'!AI206/'Population 2016'!AI$5","v":5.2935514918190565E-3},{"$f":"'Population 2016'!AJ206/'Population 2016'!AJ$5","v":5.9950366673172904E-3},{"$f":"'Population 2016'!AK206/'Population 2016'!AK$5","v":1.5111323435123142E-2},{"$f":"'Population 2016'!AL206/'Population 2016'!AL$5","v":7.4227133254110428E-3},{"$f":"'Population 2016'!AM206/'Population 2016'!AM$5","v":4.1978912749781779E-3},{"$f":"'Population 2016'!AN206/'Population 2016'!AN$5","v":1.9199301843569324E-2},{"$f":"'Population 2016'!AO206/'Population 2016'!AO$5","v":1.9199301843569324E-2},{"$f":"'Population 2016'!AP206/'Population 2016'!AP$5","v":1.7136153955899371E-2},{"$f":"'Population 2016'!AQ206/'Population 2016'!AQ$5","v":6.466816462980216E-3},{"$f":"'Population 2016'!AR206/'Population 2016'!AR$5","v":7.3770552062775146E-3},{"$f":"'Population 2016'!AS206/'Population 2016'!AS$5","v":1.6937442425257517E-2},{"$f":"'Population 2016'!AT206/'Population 2016'!AT$5","v":2.499077344862129E-2},{"$f":"'Population 2016'!AU206/'Population 2016'!AU$5","v":2.499077344862129E-2},{"$f":"'Population 2016'!AV206/'Population 2016'!AV$5","v":5.3531834019638902E-3},{"$f":"'Population 2016'!AW206/'Population 2016'!AW$5","v":7.0626639819391058E-3},{"$f":"'Population 2016'!AX206/'Population 2016'!AX$5","v":9.0598924057911749E-3},{"$f":"'Population 2016'!AY206/'Population 2016'!AY$5","v":9.1872953703987029E-3},{"$f":"'Population 2016'!AZ206/'Population 2016'!AZ$5","v":1.093878537199924E-2},{"$f":"'Population 2016'!BA206/'Population 2016'!BA$5","v":5.708810192183114E-3},{"$f":"'Population 2016'!BB206/'Population 2016'!BB$5","v":5.5377944111087325E-3},{"$f":"'Population 2016'!BC206/'Population 2016'!BC$5","v":2.3015978400389501E-3},204]
[null,"Male 70-74",{"$f":"'Population 2016'!C207/'Population 2016'!C$5","v":3.3886523590233729E-3},{"$f":"'Population 2016'!D207/'Population 2016'!D$5","v":6.6361511301507191E-3},{"$f":"'Population 2016'!E207/'Population 2016'!E$5","v":9.6147084882265525E-3},{"$f":"'Population 2016'!F207/'Population 2016'!F$5","v":8.9209374195209894E-3},{"$f":"'Population 2016'!G207/'Population 2016'!G$5","v":9.1349537162345052E-3},{"$f":"'Population 2016'!H207/'Population 2016'!H$5","v":5.0419405148291411E-3},{"$f":"'Population 2016'!I207/'Population 2016'!I$5","v":1.3001423666359601E-2},{"$f":"'Population 2016'!J207/'Population 2016'!J$5","v":6.6593135019032534E-3},{"$f":"'Population 2016'!K207/'Population 2016'!K$5","v":4.8906109719793981E-3},{"$f":"'Population 2016'!L207/'Population 2016'!L$5","v":6.5604498594189313E-3},{"$f":"'Population 2016'!M207/'Population 2016'!M$5","v":6.5604498594189313E-3},{"$f":"'Population 2016'!N207/'Population 2016'!N$5","v":3.2952636612790446E-3},{"$f":"'Population 2016'!O207/'Population 2016'!O$5","v":4.3490752023459247E-3},{"$f":"'Population 2016'!P207/'Population 2016'!P$5","v":5.3983996393553481E-3},{"$f":"'Population 2016'!Q207/'Population 2016'!Q$5","v":8.7425529664751297E-3},{"$f":"'Population 2016'!R207/'Population 2016'!R$5","v":3.6860595092351096E-3},{"$f":"'Population 2016'!S207/'Population 2016'!S$5","v":5.075281876742146E-3},{"$f":"'Population 2016'!T207/'Population 2016'!T$5","v":2.789630670581611E-3},{"$f":"'Population 2016'!U207/'Population 2016'!U$5","v":1.8589828708006906E-3},{"$f":"'Population 2016'!V207/'Population 2016'!V$5","v":4.9076102304210778E-3},{"$f":"'Population 2016'!W207/'Population 2016'!W$5","v":5.399433909229371E-3},{"$f":"'Population 2016'!X207/'Population 2016'!X$5","v":5.399433909229371E-3},{"$f":"'Population 2016'!Y207/'Population 2016'!Y$5","v":5.7471264367816091E-3},{"$f":"'Population 2016'!Z207/'Population 2016'!Z$5","v":1.7344744213417785E-3},{"$f":"'Population 2016'!AA207/'Population 2016'!AA$5","v":3.3046386523133465E-3},{"$f":"'Population 2016'!AB207/'Population 2016'!AB$5","v":7.4654821243974089E-3},{"$f":"'Population 2016'!AC207/'Population 2016'!AC$5","v":3.0635822605968709E-3},{"$f":"'Population 2016'!AD207/'Population 2016'!AD$5","v":9.9743198481521463E-3},{"$f":"'Population 2016'!AE207/'Population 2016'!AE$5","v":1.0292713477551105E-2},{"$f":"'Population 2016'!AF207/'Population 2016'!AF$5","v":4.6298390867001464E-3},{"$f":"'Population 2016'!AG207/'Population 2016'!AG$5","v":1.0292713477551105E-2},{"$f":"'Population 2016'!AH207/'Population 2016'!AH$5","v":3.7375885866082125E-3},{"$f":"'Population 2016'!AI207/'Population 2016'!AI$5","v":3.9045410797095108E-3},{"$f":"'Population 2016'!AJ207/'Population 2016'!AJ$5","v":4.9215068454953577E-3},{"$f":"'Population 2016'!AK207/'Population 2016'!AK$5","v":1.1729504796147995E-2},{"$f":"'Population 2016'!AL207/'Population 2016'!AL$5","v":6.0126638406555397E-3},{"$f":"'Population 2016'!AM207/'Population 2016'!AM$5","v":2.8722413986692792E-3},{"$f":"'Population 2016'!AN207/'Population 2016'!AN$5","v":1.5108541507581542E-2},{"$f":"'Population 2016'!AO207/'Population 2016'!AO$5","v":1.5108541507581542E-2},{"$f":"'Population 2016'!AP207/'Population 2016'!AP$5","v":1.252318374205412E-2},{"$f":"'Population 2016'!AQ207/'Population 2016'!AQ$5","v":4.9323176412560971E-3},{"$f":"'Population 2016'!AR207/'Population 2016'!AR$5","v":5.4268606880751424E-3},{"$f":"'Population 2016'!AS207/'Population 2016'!AS$5","v":1.3001423666359601E-2},{"$f":"'Population 2016'!AT207/'Population 2016'!AT$5","v":1.6186007275794802E-2},{"$f":"'Population 2016'!AU207/'Population 2016'!AU$5","v":1.6186007275794802E-2},{"$f":"'Population 2016'!AV207/'Population 2016'!AV$5","v":4.6246436490338929E-3},{"$f":"'Population 2016'!AW207/'Population 2016'!AW$5","v":4.6486972969674778E-3},{"$f":"'Population 2016'!AX207/'Population 2016'!AX$5","v":7.6159321210882095E-3},{"$f":"'Population 2016'!AY207/'Population 2016'!AY$5","v":6.8969737768122151E-3},{"$f":"'Population 2016'!AZ207/'Population 2016'!AZ$5","v":8.2148753674545962E-3},{"$f":"'Population 2016'!BA207/'Population 2016'!BA$5","v":3.819369466637875E-3},{"$f":"'Population 2016'!BB207/'Population 2016'!BB$5","v":3.8667891149886413E-3},{"$f":"'Population 2016'!BC207/'Population 2016'!BC$5","v":1.8589828708006906E-3},205]
[null,"Male 75-79",{"$f":"'Population 2016'!C208/'Population 2016'!C$5","v":2.2897681098679804E-3},{"$f":"'Population 2016'!D208/'Population 2016'!D$5","v":4.7607171151081247E-3},{"$f":"'Population 2016'!E208/'Population 2016'!E$5","v":7.0270346288891289E-3},{"$f":"'Population 2016'!F208/'Population 2016'!F$5","v":7.0151944372907546E-3},{"$f":"'Population 2016'!G208/'Population 2016'!G$5","v":6.1305689384507115E-3},{"$f":"'Population 2016'!H208/'Population 2016'!H$5","v":3.3202232071929522E-3},{"$f":"'Population 2016'!I208/'Population 2016'!I$5","v":9.5364709823297887E-3},{"$f":"'Population 2016'!J208/'Population 2016'!J$5","v":4.3704336432167055E-3},{"$f":"'Population 2016'!K208/'Population 2016'!K$5","v":3.0241459150404009E-3},{"$f":"'Population 2016'!L208/'Population 2016'!L$5","v":4.8369418455037885E-3},{"$f":"'Population 2016'!M208/'Population 2016'!M$5","v":4.8369418455037885E-3},{"$f":"'Population 2016'!N208/'Population 2016'!N$5","v":2.5478014161596516E-3},{"$f":"'Population 2016'!O208/'Population 2016'!O$5","v":2.5064146382540297E-3},{"$f":"'Population 2016'!P208/'Population 2016'!P$5","v":4.2037642285585484E-3},{"$f":"'Population 2016'!Q208/'Population 2016'!Q$5","v":5.7696149281442049E-3},{"$f":"'Population 2016'!R208/'Population 2016'!R$5","v":2.7545643263959122E-3},{"$f":"'Population 2016'!S208/'Population 2016'!S$5","v":3.6153660116757962E-3},{"$f":"'Population 2016'!T208/'Population 2016'!T$5","v":2.2172794237400131E-3},{"$f":"'Population 2016'!U208/'Population 2016'!U$5","v":9.7375293232417125E-4},{"$f":"'Population 2016'!V208/'Population 2016'!V$5","v":3.6253730318040619E-3},{"$f":"'Population 2016'!W208/'Population 2016'!W$5","v":3.7325384529902799E-3},{"$f":"'Population 2016'!X208/'Population 2016'!X$5","v":3.7325384529902799E-3},{"$f":"'Population 2016'!Y208/'Population 2016'!Y$5","v":3.9824486097200362E-3},{"$f":"'Population 2016'!Z208/'Population 2016'!Z$5","v":1.3531223443280171E-3},{"$f":"'Population 2016'!AA208/'Population 2016'!AA$5","v":2.3074004904471757E-3},{"$f":"'Population 2016'!AB208/'Population 2016'!AB$5","v":5.3713806126731009E-3},{"$f":"'Population 2016'!AC208/'Population 2016'!AC$5","v":2.2578663318308474E-3},{"$f":"'Population 2016'!AD208/'Population 2016'!AD$5","v":6.5875172131452603E-3},{"$f":"'Population 2016'!AE208/'Population 2016'!AE$5","v":6.7608497007156133E-3},{"$f":"'Population 2016'!AF208/'Population 2016'!AF$5","v":3.3328809060610173E-3},{"$f":"'Population 2016'!AG208/'Population 2016'!AG$5","v":6.7608497007156133E-3},{"$f":"'Population 2016'!AH208/'Population 2016'!AH$5","v":2.3963664397239535E-3},{"$f":"'Population 2016'!AI208/'Population 2016'!AI$5","v":2.7930593227753959E-3},{"$f":"'Population 2016'!AJ208/'Population 2016'!AJ$5","v":2.8859827677550679E-3},{"$f":"'Population 2016'!AK208/'Population 2016'!AK$5","v":8.5111197716958124E-3},{"$f":"'Population 2016'!AL208/'Population 2016'!AL$5","v":4.0882566822156401E-3},{"$f":"'Population 2016'!AM208/'Population 2016'!AM$5","v":1.8327290639680396E-3},{"$f":"'Population 2016'!AN208/'Population 2016'!AN$5","v":1.2217737536816844E-2},{"$f":"'Population 2016'!AO208/'Population 2016'!AO$5","v":1.2217737536816844E-2},{"$f":"'Population 2016'!AP208/'Population 2016'!AP$5","v":9.6380958419859542E-3},{"$f":"'Population 2016'!AQ208/'Population 2016'!AQ$5","v":3.3841179371951555E-3},{"$f":"'Population 2016'!AR208/'Population 2016'!AR$5","v":3.8507096466904281E-3},{"$f":"'Population 2016'!AS208/'Population 2016'!AS$5","v":9.5364709823297887E-3},{"$f":"'Population 2016'!AT208/'Population 2016'!AT$5","v":1.1968155216955765E-2},{"$f":"'Population 2016'!AU208/'Population 2016'!AU$5","v":1.1968155216955765E-2},{"$f":"'Population 2016'!AV208/'Population 2016'!AV$5","v":3.2731496146130292E-3},{"$f":"'Population 2016'!AW208/'Population 2016'!AW$5","v":2.9898102385746538E-3},{"$f":"'Population 2016'!AX208/'Population 2016'!AX$5","v":5.0985854300573752E-3},{"$f":"'Population 2016'!AY208/'Population 2016'!AY$5","v":5.1344818090021723E-3},{"$f":"'Population 2016'!AZ208/'Population 2016'!AZ$5","v":6.3682542239301395E-3},{"$f":"'Population 2016'!BA208/'Population 2016'!BA$5","v":2.5507449794860723E-3},{"$f":"'Population 2016'!BB208/'Population 2016'!BB$5","v":2.7067523804920491E-3},{"$f":"'Population 2016'!BC208/'Population 2016'!BC$5","v":9.7375293232417125E-4},206]
[null,"Male 80-84",{"$f":"'Population 2016'!C209/'Population 2016'!C$5","v":1.5588823069413707E-3},{"$f":"'Population 2016'!D209/'Population 2016'!D$5","v":3.1102373756638595E-3},{"$f":"'Population 2016'!E209/'Population 2016'!E$5","v":4.5331170688030602E-3},{"$f":"'Population 2016'!F209/'Population 2016'!F$5","v":4.2132371877414369E-3},{"$f":"'Population 2016'!G209/'Population 2016'!G$5","v":4.1547122827911009E-3},{"$f":"'Population 2016'!H209/'Population 2016'!H$5","v":2.2761686439936061E-3},{"$f":"'Population 2016'!I209/'Population 2016'!I$5","v":6.2180721882589395E-3},{"$f":"'Population 2016'!J209/'Population 2016'!J$5","v":3.0020815537845301E-3},{"$f":"'Population 2016'!K209/'Population 2016'!K$5","v":2.173604876435288E-3},{"$f":"'Population 2016'!L209/'Population 2016'!L$5","v":3.6217495591949552E-3},{"$f":"'Population 2016'!M209/'Population 2016'!M$5","v":3.6217495591949552E-3},{"$f":"'Population 2016'!N209/'Population 2016'!N$5","v":2.2343495069160352E-3},{"$f":"'Population 2016'!O209/'Population 2016'!O$5","v":1.5454572473028799E-3},{"$f":"'Population 2016'!P209/'Population 2016'!P$5","v":3.0429392539163755E-3},{"$f":"'Population 2016'!Q209/'Population 2016'!Q$5","v":3.8424930376846334E-3},{"$f":"'Population 2016'!R209/'Population 2016'!R$5","v":2.0892106243679139E-3},{"$f":"'Population 2016'!S209/'Population 2016'!S$5","v":2.4008289921284586E-3},{"$f":"'Population 2016'!T209/'Population 2016'!T$5","v":1.6193352349664733E-3},{"$f":"'Population 2016'!U209/'Population 2016'!U$5","v":9.2949143540034529E-4},{"$f":"'Population 2016'!V209/'Population 2016'!V$5","v":2.6026362186214423E-3},{"$f":"'Population 2016'!W209/'Population 2016'!W$5","v":2.3532641735140116E-3},{"$f":"'Population 2016'!X209/'Population 2016'!X$5","v":2.3532641735140116E-3},{"$f":"'Population 2016'!Y209/'Population 2016'!Y$5","v":2.7940732261808239E-3},{"$f":"'Population 2016'!Z209/'Population 2016'!Z$5","v":9.6983446996900787E-4},{"$f":"'Population 2016'!AA209/'Population 2016'!AA$5","v":1.5686071286915584E-3},{"$f":"'Population 2016'!AB209/'Population 2016'!AB$5","v":3.5188274669150383E-3},{"$f":"'Population 2016'!AC209/'Population 2016'!AC$5","v":1.575231526971315E-3},{"$f":"'Population 2016'!AD209/'Population 2016'!AD$5","v":4.5777661989653507E-3},{"$f":"'Population 2016'!AE209/'Population 2016'!AE$5","v":4.7382416657255205E-3},{"$f":"'Population 2016'!AF209/'Population 2016'!AF$5","v":2.00576090726749E-3},{"$f":"'Population 2016'!AG209/'Population 2016'!AG$5","v":4.7382416657255205E-3},{"$f":"'Population 2016'!AH209/'Population 2016'!AH$5","v":1.5567093616191264E-3},{"$f":"'Population 2016'!AI209/'Population 2016'!AI$5","v":1.9221935427421472E-3},{"$f":"'Population 2016'!AJ209/'Population 2016'!AJ$5","v":2.2028274265956556E-3},{"$f":"'Population 2016'!AK209/'Population 2016'!AK$5","v":5.6196019762895537E-3},{"$f":"'Population 2016'!AL209/'Population 2016'!AL$5","v":2.740284847732392E-3},{"$f":"'Population 2016'!AM209/'Population 2016'!AM$5","v":1.0938422476647193E-3},{"$f":"'Population 2016'!AN209/'Population 2016'!AN$5","v":6.872477364459474E-3},{"$f":"'Population 2016'!AO209/'Population 2016'!AO$5","v":6.872477364459474E-3},{"$f":"'Population 2016'!AP209/'Population 2016'!AP$5","v":6.7767861388963744E-3},{"$f":"'Population 2016'!AQ209/'Population 2016'!AQ$5","v":2.1030854387022522E-3},{"$f":"'Population 2016'!AR209/'Population 2016'!AR$5","v":2.6093932364295623E-3},{"$f":"'Population 2016'!AS209/'Population 2016'!AS$5","v":6.2180721882589395E-3},{"$f":"'Population 2016'!AT209/'Population 2016'!AT$5","v":7.0121790478198977E-3},{"$f":"'Population 2016'!AU209/'Population 2016'!AU$5","v":7.0121790478198977E-3},{"$f":"'Population 2016'!AV209/'Population 2016'!AV$5","v":2.5023756731073804E-3},{"$f":"'Population 2016'!AW209/'Population 2016'!AW$5","v":2.0440539386173654E-3},{"$f":"'Population 2016'!AX209/'Population 2016'!AX$5","v":3.4501705917681486E-3},{"$f":"'Population 2016'!AY209/'Population 2016'!AY$5","v":3.4607264159603438E-3},{"$f":"'Population 2016'!AZ209/'Population 2016'!AZ$5","v":4.4353423727643516E-3},{"$f":"'Population 2016'!BA209/'Population 2016'!BA$5","v":2.0918808032822284E-3},{"$f":"'Population 2016'!BB209/'Population 2016'!BB$5","v":1.5536206265579363E-3},{"$f":"'Population 2016'!BC209/'Population 2016'!BC$5","v":9.2949143540034529E-4},207]
[null,"Male 85-89",{"$f":"'Population 2016'!C210/'Population 2016'!C$5","v":7.2066362386469923E-4},{"$f":"'Population 2016'!D210/'Population 2016'!D$5","v":1.6724861359701886E-3},{"$f":"'Population 2016'!E210/'Population 2016'!E$5","v":2.5454835246743143E-3},{"$f":"'Population 2016'!F210/'Population 2016'!F$5","v":2.5753283543651817E-3},{"$f":"'Population 2016'!G210/'Population 2016'!G$5","v":1.8946570670708603E-3},{"$f":"'Population 2016'!H210/'Population 2016'!H$5","v":1.050539374150895E-3},{"$f":"'Population 2016'!I210/'Population 2016'!I$5","v":3.6010384389917093E-3},{"$f":"'Population 2016'!J210/'Population 2016'!J$5","v":1.6586085932511216E-3},{"$f":"'Population 2016'!K210/'Population 2016'!K$5","v":9.9229787837263141E-4},{"$f":"'Population 2016'!L210/'Population 2016'!L$5","v":1.8188172128413261E-3},{"$f":"'Population 2016'!M210/'Population 2016'!M$5","v":1.8188172128413261E-3},{"$f":"'Population 2016'!N210/'Population 2016'!N$5","v":1.2216587232058897E-3},{"$f":"'Population 2016'!O210/'Population 2016'!O$5","v":6.2412696525693224E-4},{"$f":"'Population 2016'!P210/'Population 2016'!P$5","v":1.6229009354220669E-3},{"$f":"'Population 2016'!Q210/'Population 2016'!Q$5","v":2.3148964171983877E-3},{"$f":"'Population 2016'!R210/'Population 2016'!R$5","v":1.0113376270825571E-3},{"$f":"'Population 2016'!S210/'Population 2016'!S$5","v":1.3328131537183722E-3},{"$f":"'Population 2016'!T210/'Population 2016'!T$5","v":9.981247353457142E-4},{"$f":"'Population 2016'!U210/'Population 2016'!U$5","v":5.3113796308591158E-4},{"$f":"'Population 2016'!V210/'Population 2016'!V$5","v":1.3051342914494623E-3},{"$f":"'Population 2016'!W210/'Population 2016'!W$5","v":1.1766320867570058E-3},{"$f":"'Population 2016'!X210/'Population 2016'!X$5","v":1.1766320867570058E-3},{"$f":"'Population 2016'!Y210/'Population 2016'!Y$5","v":1.4745393554951431E-3},{"$f":"'Population 2016'!Z210/'Population 2016'!Z$5","v":4.9556412038336526E-4},{"$f":"'Population 2016'!AA210/'Population 2016'!AA$5","v":7.9991655355554268E-4},{"$f":"'Population 2016'!AB210/'Population 2016'!AB$5","v":1.8382240054041329E-3},{"$f":"'Population 2016'!AC210/'Population 2016'!AC$5","v":8.1916176583143885E-4},{"$f":"'Population 2016'!AD210/'Population 2016'!AD$5","v":2.3782053667795603E-3},{"$f":"'Population 2016'!AE210/'Population 2016'!AE$5","v":2.5616279427920206E-3},{"$f":"'Population 2016'!AF210/'Population 2016'!AF$5","v":1.1612299989443363E-3},{"$f":"'Population 2016'!AG210/'Population 2016'!AG$5","v":2.5616279427920206E-3},{"$f":"'Population 2016'!AH210/'Population 2016'!AH$5","v":7.6535114198935566E-4},{"$f":"'Population 2016'!AI210/'Population 2016'!AI$5","v":1.101911803307376E-3},{"$f":"'Population 2016'!AJ210/'Population 2016'!AJ$5","v":9.7593620165630315E-4},{"$f":"'Population 2016'!AK210/'Population 2016'!AK$5","v":2.6903687313779966E-3},{"$f":"'Population 2016'!AL210/'Population 2016'!AL$5","v":1.3568400702364271E-3},{"$f":"'Population 2016'!AM210/'Population 2016'!AM$5","v":4.6723725148592314E-4},{"$f":"'Population 2016'!AN210/'Population 2016'!AN$5","v":3.708956037962256E-3},{"$f":"'Population 2016'!AO210/'Population 2016'!AO$5","v":3.708956037962256E-3},{"$f":"'Population 2016'!AP210/'Population 2016'!AP$5","v":3.6935465973400123E-3},{"$f":"'Population 2016'!AQ210/'Population 2016'!AQ$5","v":1.2330794103140243E-3},{"$f":"'Population 2016'!AR210/'Population 2016'!AR$5","v":1.377656260059798E-3},{"$f":"'Population 2016'!AS210/'Population 2016'!AS$5","v":3.6010384389917093E-3},{"$f":"'Population 2016'!AT210/'Population 2016'!AT$5","v":3.2161121948647651E-3},{"$f":"'Population 2016'!AU210/'Population 2016'!AU$5","v":3.2161121948647651E-3},{"$f":"'Population 2016'!AV210/'Population 2016'!AV$5","v":1.1403230915426037E-3},{"$f":"'Population 2016'!AW210/'Population 2016'!AW$5","v":1.0792299713222283E-3},{"$f":"'Population 2016'!AX210/'Population 2016'!AX$5","v":2.018988716664324E-3},{"$f":"'Population 2016'!AY210/'Population 2016'!AY$5","v":1.8787674795752885E-3},{"$f":"'Population 2016'!AZ210/'Population 2016'!AZ$5","v":2.496677807755809E-3},{"$f":"'Population 2016'!BA210/'Population 2016'!BA$5","v":7.9626430576549341E-4},{"$f":"'Population 2016'!BB210/'Population 2016'!BB$5","v":7.5954786187276886E-4},{"$f":"'Population 2016'!BC210/'Population 2016'!BC$5","v":5.3113796308591158E-4},208]
[null,"Male 90+",{"$f":"'Population 2016'!C211/'Population 2016'!C$5","v":2.0955467076916786E-4},{"$f":"'Population 2016'!D211/'Population 2016'!D$5","v":6.601918957777061E-4},{"$f":"'Population 2016'!E211/'Population 2016'!E$5","v":1.0735096264280256E-3},{"$f":"'Population 2016'!F211/'Population 2016'!F$5","v":9.7862477465876898E-4},{"$f":"'Population 2016'!G211/'Population 2016'!G$5","v":9.4732853353543013E-4},{"$f":"'Population 2016'!H211/'Population 2016'!H$5","v":4.5393676660841146E-4},{"$f":"'Population 2016'!I211/'Population 2016'!I$5","v":1.2875806046394773E-3},{"$f":"'Population 2016'!J211/'Population 2016'!J$5","v":6.302712654354262E-4},{"$f":"'Population 2016'!K211/'Population 2016'!K$5","v":3.7801823938005011E-4},{"$f":"'Population 2016'!L211/'Population 2016'!L$5","v":6.8304925897097837E-4},{"$f":"'Population 2016'!M211/'Population 2016'!M$5","v":6.8304925897097837E-4},{"$f":"'Population 2016'!N211/'Population 2016'!N$5","v":6.6708996069795288E-4},{"$f":"'Population 2016'!O211/'Population 2016'!O$5","v":3.2692364846791691E-4},{"$f":"'Population 2016'!P211/'Population 2016'!P$5","v":6.9874901386227887E-4},{"$f":"'Population 2016'!Q211/'Population 2016'!Q$5","v":7.2854608053959415E-4},{"$f":"'Population 2016'!R211/'Population 2016'!R$5","v":6.5204662798743808E-4},{"$f":"'Population 2016'!S211/'Population 2016'!S$5","v":5.2606399974579462E-4},{"$f":"'Population 2016'!T211/'Population 2016'!T$5","v":4.909191588763302E-4},{"$f":"'Population 2016'!U211/'Population 2016'!U$5","v":8.8522993847651925E-5},{"$f":"'Population 2016'!V211/'Population 2016'!V$5","v":5.342654994237565E-4},{"$f":"'Population 2016'!W211/'Population 2016'!W$5","v":5.1967917165101089E-4},{"$f":"'Population 2016'!X211/'Population 2016'!X$5","v":5.1967917165101089E-4},{"$f":"'Population 2016'!Y211/'Population 2016'!Y$5","v":5.8027694313285958E-4},{"$f":"'Population 2016'!Z211/'Population 2016'!Z$5","v":2.0132292390574215E-4},{"$f":"'Population 2016'!AA211/'Population 2016'!AA$5","v":3.308624947430733E-4},{"$f":"'Population 2016'!AB211/'Population 2016'!AB$5","v":7.5330337860659343E-4},{"$f":"'Population 2016'!AC211/'Population 2016'!AC$5","v":3.5683182981293738E-4},{"$f":"'Population 2016'!AD211/'Population 2016'!AD$5","v":1.0346495961889165E-3},{"$f":"'Population 2016'!AE211/'Population 2016'!AE$5","v":1.0677727697409624E-3},{"$f":"'Population 2016'!AF211/'Population 2016'!AF$5","v":4.3734636323877605E-4},{"$f":"'Population 2016'!AG211/'Population 2016'!AG$5","v":1.0677727697409624E-3},{"$f":"'Population 2016'!AH211/'Population 2016'!AH$5","v":2.8422020564167818E-4},{"$f":"'Population 2016'!AI211/'Population 2016'!AI$5","v":4.2928077697086361E-4},{"$f":"'Population 2016'!AJ211/'Population 2016'!AJ$5","v":2.509550232830494E-4},{"$f":"'Population 2016'!AK211/'Population 2016'!AK$5","v":1.2320380171731012E-3},{"$f":"'Population 2016'!AL211/'Population 2016'!AL$5","v":4.4341178765896312E-4},{"$f":"'Population 2016'!AM211/'Population 2016'!AM$5","v":1.9558768666852596E-4},{"$f":"'Population 2016'!AN211/'Population 2016'!AN$5","v":1.7999345478346242E-3},{"$f":"'Population 2016'!AO211/'Population 2016'!AO$5","v":1.7999345478346242E-3},{"$f":"'Population 2016'!AP211/'Population 2016'!AP$5","v":1.5376567379484171E-3},{"$f":"'Population 2016'!AQ211/'Population 2016'!AQ$5","v":5.2063352879925466E-4},{"$f":"'Population 2016'!AR211/'Population 2016'!AR$5","v":5.6674604230144341E-4},{"$f":"'Population 2016'!AS211/'Population 2016'!AS$5","v":1.2875806046394773E-3},{"$f":"'Population 2016'!AT211/'Population 2016'!AT$5","v":1.3180787683871988E-3},{"$f":"'Population 2016'!AU211/'Population 2016'!AU$5","v":1.3180787683871988E-3},{"$f":"'Population 2016'!AV211/'Population 2016'!AV$5","v":6.0183718720304086E-4},{"$f":"'Population 2016'!AW211/'Population 2016'!AW$5","v":3.7753981328940141E-4},{"$f":"'Population 2016'!AX211/'Population 2016'!AX$5","v":7.6670457594847749E-4},{"$f":"'Population 2016'!AY211/'Population 2016'!AY$5","v":8.1239864141244148E-4},{"$f":"'Population 2016'!AZ211/'Population 2016'!AZ$5","v":1.0700047747524894E-3},{"$f":"'Population 2016'!BA211/'Population 2016'!BA$5","v":3.3740012956164973E-4},{"$f":"'Population 2016'!BB211/'Population 2016'!BB$5","v":1.588145529370335E-4},{"$f":"'Population 2016'!BC211/'Population 2016'!BC$5","v":8.8522993847651925E-5},209]
["SIMD Q5 (least deprived)","Female 0-4",{"$f":"'Population 2016'!C212/'Population 2016'!C$5","v":0},{"$f":"'Population 2016'!D212/'Population 2016'!D$5","v":0},{"$f":"'Population 2016'!E212/'Population 2016'!E$5","v":0},{"$f":"'Population 2016'!F212/'Population 2016'!F$5","v":0},{"$f":"'Population 2016'!G212/'Population 2016'!G$5","v":0},{"$f":"'Population 2016'!H212/'Population 2016'!H$5","v":0},{"$f":"'Population 2016'!I212/'Population 2016'!I$5","v":0},{"$f":"'Population 2016'!J212/'Population 2016'!J$5","v":0},{"$f":"'Population 2016'!K212/'Population 2016'!K$5","v":0},{"$f":"'Population 2016'!L212/'Population 2016'!L$5","v":0},{"$f":"'Population 2016'!M212/'Population 2016'!M$5","v":0},{"$f":"'Population 2016'!N212/'Population 2016'!N$5","v":0},{"$f":"'Population 2016'!O212/'Population 2016'!O$5","v":0},{"$f":"'Population 2016'!P212/'Population 2016'!P$5","v":0},{"$f":"'Population 2016'!Q212/'Population 2016'!Q$5","v":0},{"$f":"'Population 2016'!R212/'Population 2016'!R$5","v":0},{"$f":"'Population 2016'!S212/'Population 2016'!S$5","v":0},{"$f":"'Population 2016'!T212/'Population 2016'!T$5","v":0},{"$f":"'Population 2016'!U212/'Population 2016'!U$5","v":0},{"$f":"'Population 2016'!V212/'Population 2016'!V$5","v":0},{"$f":"'Population 2016'!W212/'Population 2016'!W$5","v":0},{"$f":"'Population 2016'!X212/'Population 2016'!X$5","v":0},{"$f":"'Population 2016'!Y212/'Population 2016'!Y$5","v":0},{"$f":"'Population 2016'!Z212/'Population 2016'!Z$5","v":0},{"$f":"'Population 2016'!AA212/'Population 2016'!AA$5","v":0},{"$f":"'Population 2016'!AB212/'Population 2016'!AB$5","v":0},{"$f":"'Population 2016'!AC212/'Population 2016'!AC$5","v":0},{"$f":"'Population 2016'!AD212/'Population 2016'!AD$5","v":0},{"$f":"'Population 2016'!AE212/'Population 2016'!AE$5","v":0},{"$f":"'Population 2016'!AF212/'Population 2016'!AF$5","v":0},{"$f":"'Population 2016'!AG212/'Population 2016'!AG$5","v":0},{"$f":"'Population 2016'!AH212/'Population 2016'!AH$5","v":0},{"$f":"'Population 2016'!AI212/'Population 2016'!AI$5","v":0},{"$f":"'Population 2016'!AJ212/'Population 2016'!AJ$5","v":0},{"$f":"'Population 2016'!AK212/'Population 2016'!AK$5","v":0},{"$f":"'Population 2016'!AL212/'Population 2016'!AL$5","v":0},{"$f":"'Population 2016'!AM212/'Population 2016'!AM$5","v":0},{"$f":"'Population 2016'!AN212/'Population 2016'!AN$5","v":0},{"$f":"'Population 2016'!AO212/'Population 2016'!AO$5","v":0},{"$f":"'Population 2016'!AP212/'Population 2016'!AP$5","v":0},{"$f":"'Population 2016'!AQ212/'Population 2016'!AQ$5","v":0},{"$f":"'Population 2016'!AR212/'Population 2016'!AR$5","v":0},{"$f":"'Population 2016'!AS212/'Population 2016'!AS$5","v":0},{"$f":"'Population 2016'!AT212/'Population 2016'!AT$5","v":0},{"$f":"'Population 2016'!AU212/'Population 2016'!AU$5","v":0},{"$f":"'Population 2016'!AV212/'Population 2016'!AV$5","v":0},{"$f":"'Population 2016'!AW212/'Population 2016'!AW$5","v":0},{"$f":"'Population 2016'!AX212/'Population 2016'!AX$5","v":0},{"$f":"'Population 2016'!AY212/'Population 2016'!AY$5","v":0},{"$f":"'Population 2016'!AZ212/'Population 2016'!AZ$5","v":0},{"$f":"'Population 2016'!BA212/'Population 2016'!BA$5","v":0},{"$f":"'Population 2016'!BB212/'Population 2016'!BB$5","v":0},{"$f":"'Population 2016'!BC212/'Population 2016'!BC$5","v":0},210]
[null,"Female 5-9",{"$f":"'Population 2016'!C213/'Population 2016'!C$5","v":0},{"$f":"'Population 2016'!D213/'Population 2016'!D$5","v":0},{"$f":"'Population 2016'!E213/'Population 2016'!E$5","v":0},{"$f":"'Population 2016'!F213/'Population 2016'!F$5","v":0},{"$f":"'Population 2016'!G213/'Population 2016'!G$5","v":0},{"$f":"'Population 2016'!H213/'Population 2016'!H$5","v":0},{"$f":"'Population 2016'!I213/'Population 2016'!I$5","v":0},{"$f":"'Population 2016'!J213/'Population 2016'!J$5","v":0},{"$f":"'Population 2016'!K213/'Population 2016'!K$5","v":0},{"$f":"'Population 2016'!L213/'Population 2016'!L$5","v":0},{"$f":"'Population 2016'!M213/'Population 2016'!M$5","v":0},{"$f":"'Population 2016'!N213/'Population 2016'!N$5","v":0},{"$f":"'Population 2016'!O213/'Population 2016'!O$5","v":0},{"$f":"'Population 2016'!P213/'Population 2016'!P$5","v":0},{"$f":"'Population 2016'!Q213/'Population 2016'!Q$5","v":0},{"$f":"'Population 2016'!R213/'Population 2016'!R$5","v":0},{"$f":"'Population 2016'!S213/'Population 2016'!S$5","v":0},{"$f":"'Population 2016'!T213/'Population 2016'!T$5","v":0},{"$f":"'Population 2016'!U213/'Population 2016'!U$5","v":0},{"$f":"'Population 2016'!V213/'Population 2016'!V$5","v":0},{"$f":"'Population 2016'!W213/'Population 2016'!W$5","v":0},{"$f":"'Population 2016'!X213/'Population 2016'!X$5","v":0},{"$f":"'Population 2016'!Y213/'Population 2016'!Y$5","v":0},{"$f":"'Population 2016'!Z213/'Population 2016'!Z$5","v":0},{"$f":"'Population 2016'!AA213/'Population 2016'!AA$5","v":0},{"$f":"'Population 2016'!AB213/'Population 2016'!AB$5","v":0},{"$f":"'Population 2016'!AC213/'Population 2016'!AC$5","v":0},{"$f":"'Population 2016'!AD213/'Population 2016'!AD$5","v":0},{"$f":"'Population 2016'!AE213/'Population 2016'!AE$5","v":0},{"$f":"'Population 2016'!AF213/'Population 2016'!AF$5","v":0},{"$f":"'Population 2016'!AG213/'Population 2016'!AG$5","v":0},{"$f":"'Population 2016'!AH213/'Population 2016'!AH$5","v":0},{"$f":"'Population 2016'!AI213/'Population 2016'!AI$5","v":0},{"$f":"'Population 2016'!AJ213/'Population 2016'!AJ$5","v":0},{"$f":"'Population 2016'!AK213/'Population 2016'!AK$5","v":0},{"$f":"'Population 2016'!AL213/'Population 2016'!AL$5","v":0},{"$f":"'Population 2016'!AM213/'Population 2016'!AM$5","v":0},{"$f":"'Population 2016'!AN213/'Population 2016'!AN$5","v":0},{"$f":"'Population 2016'!AO213/'Population 2016'!AO$5","v":0},{"$f":"'Population 2016'!AP213/'Population 2016'!AP$5","v":0},{"$f":"'Population 2016'!AQ213/'Population 2016'!AQ$5","v":0},{"$f":"'Population 2016'!AR213/'Population 2016'!AR$5","v":0},{"$f":"'Population 2016'!AS213/'Population 2016'!AS$5","v":0},{"$f":"'Population 2016'!AT213/'Population 2016'!AT$5","v":0},{"$f":"'Population 2016'!AU213/'Population 2016'!AU$5","v":0},{"$f":"'Population 2016'!AV213/'Population 2016'!AV$5","v":0},{"$f":"'Population 2016'!AW213/'Population 2016'!AW$5","v":0},{"$f":"'Population 2016'!AX213/'Population 2016'!AX$5","v":0},{"$f":"'Population 2016'!AY213/'Population 2016'!AY$5","v":0},{"$f":"'Population 2016'!AZ213/'Population 2016'!AZ$5","v":0},{"$f":"'Population 2016'!BA213/'Population 2016'!BA$5","v":0},{"$f":"'Population 2016'!BB213/'Population 2016'!BB$5","v":0},{"$f":"'Population 2016'!BC213/'Population 2016'!BC$5","v":0},211]
[null,"Female 10-15",{"$f":"'Population 2016'!C214/'Population 2016'!C$5","v":0},{"$f":"'Population 2016'!D214/'Population 2016'!D$5","v":0},{"$f":"'Population 2016'!E214/'Population 2016'!E$5","v":0},{"$f":"'Population 2016'!F214/'Population 2016'!F$5","v":0},{"$f":"'Population 2016'!G214/'Population 2016'!G$5","v":0},{"$f":"'Population 2016'!H214/'Population 2016'!H$5","v":0},{"$f":"'Population 2016'!I214/'Population 2016'!I$5","v":0},{"$f":"'Population 2016'!J214/'Population 2016'!J$5","v":0},{"$f":"'Population 2016'!K214/'Population 2016'!K$5","v":0},{"$f":"'Population 2016'!L214/'Population 2016'!L$5","v":0},{"$f":"'Population 2016'!M214/'Population 2016'!M$5","v":0},{"$f":"'Population 2016'!N214/'Population 2016'!N$5","v":0},{"$f":"'Population 2016'!O214/'Population 2016'!O$5","v":0},{"$f":"'Population 2016'!P214/'Population 2016'!P$5","v":0},{"$f":"'Population 2016'!Q214/'Population 2016'!Q$5","v":0},{"$f":"'Population 2016'!R214/'Population 2016'!R$5","v":0},{"$f":"'Population 2016'!S214/'Population 2016'!S$5","v":0},{"$f":"'Population 2016'!T214/'Population 2016'!T$5","v":0},{"$f":"'Population 2016'!U214/'Population 2016'!U$5","v":0},{"$f":"'Population 2016'!V214/'Population 2016'!V$5","v":0},{"$f":"'Population 2016'!W214/'Population 2016'!W$5","v":0},{"$f":"'Population 2016'!X214/'Population 2016'!X$5","v":0},{"$f":"'Population 2016'!Y214/'Population 2016'!Y$5","v":0},{"$f":"'Population 2016'!Z214/'Population 2016'!Z$5","v":0},{"$f":"'Population 2016'!AA214/'Population 2016'!AA$5","v":0},{"$f":"'Population 2016'!AB214/'Population 2016'!AB$5","v":0},{"$f":"'Population 2016'!AC214/'Population 2016'!AC$5","v":0},{"$f":"'Population 2016'!AD214/'Population 2016'!AD$5","v":0},{"$f":"'Population 2016'!AE214/'Population 2016'!AE$5","v":0},{"$f":"'Population 2016'!AF214/'Population 2016'!AF$5","v":0},{"$f":"'Population 2016'!AG214/'Population 2016'!AG$5","v":0},{"$f":"'Population 2016'!AH214/'Population 2016'!AH$5","v":0},{"$f":"'Population 2016'!AI214/'Population 2016'!AI$5","v":0},{"$f":"'Population 2016'!AJ214/'Population 2016'!AJ$5","v":0},{"$f":"'Population 2016'!AK214/'Population 2016'!AK$5","v":0},{"$f":"'Population 2016'!AL214/'Population 2016'!AL$5","v":0},{"$f":"'Population 2016'!AM214/'Population 2016'!AM$5","v":0},{"$f":"'Population 2016'!AN214/'Population 2016'!AN$5","v":0},{"$f":"'Population 2016'!AO214/'Population 2016'!AO$5","v":0},{"$f":"'Population 2016'!AP214/'Population 2016'!AP$5","v":0},{"$f":"'Population 2016'!AQ214/'Population 2016'!AQ$5","v":0},{"$f":"'Population 2016'!AR214/'Population 2016'!AR$5","v":0},{"$f":"'Population 2016'!AS214/'Population 2016'!AS$5","v":0},{"$f":"'Population 2016'!AT214/'Population 2016'!AT$5","v":0},{"$f":"'Population 2016'!AU214/'Population 2016'!AU$5","v":0},{"$f":"'Population 2016'!AV214/'Population 2016'!AV$5","v":0},{"$f":"'Population 2016'!AW214/'Population 2016'!AW$5","v":0},{"$f":"'Population 2016'!AX214/'Population 2016'!AX$5","v":0},{"$f":"'Population 2016'!AY214/'Population 2016'!AY$5","v":0},{"$f":"'Population 2016'!AZ214/'Population 2016'!AZ$5","v":0},{"$f":"'Population 2016'!BA214/'Population 2016'!BA$5","v":0},{"$f":"'Population 2016'!BB214/'Population 2016'!BB$5","v":0},{"$f":"'Population 2016'!BC214/'Population 2016'!BC$5","v":0},212]
[null,"Female 16-19",{"$f":"'Population 2016'!C215/'Population 2016'!C$5","v":1.041640046408693E-2},{"$f":"'Population 2016'!D215/'Population 2016'!D$5","v":9.5678921784376428E-3},{"$f":"'Population 2016'!E215/'Population 2016'!E$5","v":8.7896530548146196E-3},{"$f":"'Population 2016'!F215/'Population 2016'!F$5","v":4.7283028586144731E-3},{"$f":"'Population 2016'!G215/'Population 2016'!G$5","v":1.8134574784821091E-3},{"$f":"'Population 2016'!H215/'Population 2016'!H$5","v":3.4434346152723782E-3},{"$f":"'Population 2016'!I215/'Population 2016'!I$5","v":2.1983083493844736E-3},{"$f":"'Population 2016'!J215/'Population 2016'!J$5","v":1.0258494149258187E-2},{"$f":"'Population 2016'!K215/'Population 2016'!K$5","v":3.8510608136842601E-3},{"$f":"'Population 2016'!L215/'Population 2016'!L$5","v":2.0570902101567836E-3},{"$f":"'Population 2016'!M215/'Population 2016'!M$5","v":2.0570902101567836E-3},{"$f":"'Population 2016'!N215/'Population 2016'!N$5","v":5.0795283754350154E-3},{"$f":"'Population 2016'!O215/'Population 2016'!O$5","v":3.1503551579635629E-3},{"$f":"'Population 2016'!P215/'Population 2016'!P$5","v":1.4887862053420488E-2},{"$f":"'Population 2016'!Q215/'Population 2016'!Q$5","v":4.1950153347199209E-3},{"$f":"'Population 2016'!R215/'Population 2016'!R$5","v":1.741895991909299E-2},{"$f":"'Population 2016'!S215/'Population 2016'!S$5","v":7.5634939829223383E-3},{"$f":"'Population 2016'!T215/'Population 2016'!T$5","v":1.0718789407313998E-2},{"$f":"'Population 2016'!U215/'Population 2016'!U$5","v":0},{"$f":"'Population 2016'!V215/'Population 2016'!V$5","v":5.1671106158554733E-3},{"$f":"'Population 2016'!W215/'Population 2016'!W$5","v":7.5108348204655541E-3},{"$f":"'Population 2016'!X215/'Population 2016'!X$5","v":7.5108348204655541E-3},{"$f":"'Population 2016'!Y215/'Population 2016'!Y$5","v":7.6071922544951589E-3},{"$f":"'Population 2016'!Z215/'Population 2016'!Z$5","v":2.8843380444188061E-3},{"$f":"'Population 2016'!AA215/'Population 2016'!AA$5","v":4.6101503032574013E-3},{"$f":"'Population 2016'!AB215/'Population 2016'!AB$5","v":8.8615497988802795E-3},{"$f":"'Population 2016'!AC215/'Population 2016'!AC$5","v":5.34213449560528E-3},{"$f":"'Population 2016'!AD215/'Population 2016'!AD$5","v":2.1400126539878671E-3},{"$f":"'Population 2016'!AE215/'Population 2016'!AE$5","v":2.2638836127680984E-3},{"$f":"'Population 2016'!AF215/'Population 2016'!AF$5","v":2.940777270053839E-3},{"$f":"'Population 2016'!AG215/'Population 2016'!AG$5","v":2.2638836127680984E-3},{"$f":"'Population 2016'!AH215/'Population 2016'!AH$5","v":3.2954682667211575E-3},{"$f":"'Population 2016'!AI215/'Population 2016'!AI$5","v":8.2862127045235812E-3},{"$f":"'Population 2016'!AJ215/'Population 2016'!AJ$5","v":3.9455706438390539E-3},{"$f":"'Population 2016'!AK215/'Population 2016'!AK$5","v":5.2298756647347977E-3},{"$f":"'Population 2016'!AL215/'Population 2016'!AL$5","v":2.2702683528138911E-3},{"$f":"'Population 2016'!AM215/'Population 2016'!AM$5","v":2.8505094334838874E-3},{"$f":"'Population 2016'!AN215/'Population 2016'!AN$5","v":1.4181302498090978E-3},{"$f":"'Population 2016'!AO215/'Population 2016'!AO$5","v":1.4181302498090978E-3},{"$f":"'Population 2016'!AP215/'Population 2016'!AP$5","v":3.9947370924020738E-3},{"$f":"'Population 2016'!AQ215/'Population 2016'!AQ$5","v":5.1241299939716115E-3},{"$f":"'Population 2016'!AR215/'Population 2016'!AR$5","v":5.6291426874500285E-3},{"$f":"'Population 2016'!AS215/'Population 2016'!AS$5","v":2.1983083493844736E-3},{"$f":"'Population 2016'!AT215/'Population 2016'!AT$5","v":0},{"$f":"'Population 2016'!AU215/'Population 2016'!AU$5","v":0},{"$f":"'Population 2016'!AV215/'Population 2016'!AV$5","v":5.1525710062295428E-3},{"$f":"'Population 2016'!AW215/'Population 2016'!AW$5","v":3.763957532491305E-3},{"$f":"'Population 2016'!AX215/'Population 2016'!AX$5","v":1.3724011909477746E-2},{"$f":"'Population 2016'!AY215/'Population 2016'!AY$5","v":5.9560600960802913E-3},{"$f":"'Population 2016'!AZ215/'Population 2016'!AZ$5","v":4.5877892895973679E-3},{"$f":"'Population 2016'!BA215/'Population 2016'!BA$5","v":1.3765925286115309E-3},{"$f":"'Population 2016'!BB215/'Population 2016'!BB$5","v":5.6206541778584893E-3},{"$f":"'Population 2016'!BC215/'Population 2016'!BC$5","v":0},213]
[null,"Female 20-24",{"$f":"'Population 2016'!C216/'Population 2016'!C$5","v":1.8359033595191487E-2},{"$f":"'Population 2016'!D216/'Population 2016'!D$5","v":1.3807791242432244E-2},{"$f":"'Population 2016'!E216/'Population 2016'!E$5","v":9.6334597480768232E-3},{"$f":"'Population 2016'!F216/'Population 2016'!F$5","v":4.3677568890033479E-3},{"$f":"'Population 2016'!G216/'Population 2016'!G$5","v":2.4901207167217021E-3},{"$f":"'Population 2016'!H216/'Population 2016'!H$5","v":3.3558896674264703E-3},{"$f":"'Population 2016'!I216/'Population 2016'!I$5","v":2.1250314044049911E-3},{"$f":"'Population 2016'!J216/'Population 2016'!J$5","v":1.0689732383503479E-2},{"$f":"'Population 2016'!K216/'Population 2016'!K$5","v":3.4494164343429569E-3},{"$f":"'Population 2016'!L216/'Population 2016'!L$5","v":2.4462694391053645E-3},{"$f":"'Population 2016'!M216/'Population 2016'!M$5","v":2.4462694391053645E-3},{"$f":"'Population 2016'!N216/'Population 2016'!N$5","v":6.236889271103753E-3},{"$f":"'Population 2016'!O216/'Population 2016'!O$5","v":3.1503551579635629E-3},{"$f":"'Population 2016'!P216/'Population 2016'!P$5","v":1.5665502084976895E-2},{"$f":"'Population 2016'!Q216/'Population 2016'!Q$5","v":4.2067660779544309E-3},{"$f":"'Population 2016'!R216/'Population 2016'!R$5","v":1.8283919731729388E-2},{"$f":"'Population 2016'!S216/'Population 2016'!S$5","v":1.4224029120643421E-2},{"$f":"'Population 2016'!T216/'Population 2016'!T$5","v":2.3913114288772144E-2},{"$f":"'Population 2016'!U216/'Population 2016'!U$5","v":0},{"$f":"'Population 2016'!V216/'Population 2016'!V$5","v":6.1135237862632707E-3},{"$f":"'Population 2016'!W216/'Population 2016'!W$5","v":1.3619516404212342E-2},{"$f":"'Population 2016'!X216/'Population 2016'!X$5","v":1.3619516404212342E-2},{"$f":"'Population 2016'!Y216/'Population 2016'!Y$5","v":8.30670418594299E-3},{"$f":"'Population 2016'!Z216/'Population 2016'!Z$5","v":7.4799209420364204E-3},{"$f":"'Population 2016'!AA216/'Population 2016'!AA$5","v":6.5694143534528295E-3},{"$f":"'Population 2016'!AB216/'Population 2016'!AB$5","v":1.2449975947514406E-2},{"$f":"'Population 2016'!AC216/'Population 2016'!AC$5","v":8.144040081005997E-3},{"$f":"'Population 2016'!AD216/'Population 2016'!AD$5","v":2.5159105288622575E-3},{"$f":"'Population 2016'!AE216/'Population 2016'!AE$5","v":2.5256932822718919E-3},{"$f":"'Population 2016'!AF216/'Population 2016'!AF$5","v":3.6948227239137973E-3},{"$f":"'Population 2016'!AG216/'Population 2016'!AG$5","v":2.5256932822718919E-3},{"$f":"'Population 2016'!AH216/'Population 2016'!AH$5","v":3.7413038834139861E-3},{"$f":"'Population 2016'!AI216/'Population 2016'!AI$5","v":1.6057015049435647E-2},{"$f":"'Population 2016'!AJ216/'Population 2016'!AJ$5","v":4.8657390625435684E-3},{"$f":"'Population 2016'!AK216/'Population 2016'!AK$5","v":5.4687401782683581E-3},{"$f":"'Population 2016'!AL216/'Population 2016'!AL$5","v":2.2081907025416365E-3},{"$f":"'Population 2016'!AM216/'Population 2016'!AM$5","v":3.1112930157085887E-3},{"$f":"'Population 2016'!AN216/'Population 2016'!AN$5","v":2.3999127304461655E-3},{"$f":"'Population 2016'!AO216/'Population 2016'!AO$5","v":2.3999127304461655E-3},{"$f":"'Population 2016'!AP216/'Population 2016'!AP$5","v":4.5574877542285562E-3},{"$f":"'Population 2016'!AQ216/'Population 2016'!AQ$5","v":6.0489395517071302E-3},{"$f":"'Population 2016'!AR216/'Population 2016'!AR$5","v":8.4684423372660255E-3},{"$f":"'Population 2016'!AS216/'Population 2016'!AS$5","v":2.1250314044049911E-3},{"$f":"'Population 2016'!AT216/'Population 2016'!AT$5","v":0},{"$f":"'Population 2016'!AU216/'Population 2016'!AU$5","v":0},{"$f":"'Population 2016'!AV216/'Population 2016'!AV$5","v":4.9414000633512829E-3},{"$f":"'Population 2016'!AW216/'Population 2016'!AW$5","v":4.4046311550430166E-3},{"$f":"'Population 2016'!AX216/'Population 2016'!AX$5","v":1.4605722171818495E-2},{"$f":"'Population 2016'!AY216/'Population 2016'!AY$5","v":9.0909090909090905E-3},{"$f":"'Population 2016'!AZ216/'Population 2016'!AZ$5","v":5.1055335354453467E-3},{"$f":"'Population 2016'!BA216/'Population 2016'!BA$5","v":1.5925286115309868E-3},{"$f":"'Population 2016'!BB216/'Population 2016'!BB$5","v":5.2477852274845846E-3},{"$f":"'Population 2016'!BC216/'Population 2016'!BC$5","v":0},214]
[null,"Female 25-29",{"$f":"'Population 2016'!C217/'Population 2016'!C$5","v":2.0551691003971317E-2},{"$f":"'Population 2016'!D217/'Population 2016'!D$5","v":1.4925227154915252E-2},{"$f":"'Population 2016'!E217/'Population 2016'!E$5","v":9.7647185670287229E-3},{"$f":"'Population 2016'!F217/'Population 2016'!F$5","v":4.1411279938192123E-3},{"$f":"'Population 2016'!G217/'Population 2016'!G$5","v":1.9758566556596115E-3},{"$f":"'Population 2016'!H217/'Population 2016'!H$5","v":2.8176503584479255E-3},{"$f":"'Population 2016'!I217/'Population 2016'!I$5","v":1.6539653295368896E-3},{"$f":"'Population 2016'!J217/'Population 2016'!J$5","v":6.6095552441057196E-3},{"$f":"'Population 2016'!K217/'Population 2016'!K$5","v":2.5043708358928316E-3},{"$f":"'Population 2016'!L217/'Population 2016'!L$5","v":2.8116213683223993E-3},{"$f":"'Population 2016'!M217/'Population 2016'!M$5","v":2.8116213683223993E-3},{"$f":"'Population 2016'!N217/'Population 2016'!N$5","v":5.1357889745300232E-3},{"$f":"'Population 2016'!O217/'Population 2016'!O$5","v":3.3782110341684748E-3},{"$f":"'Population 2016'!P217/'Population 2016'!P$5","v":1.1912543671813366E-2},{"$f":"'Population 2016'!Q217/'Population 2016'!Q$5","v":4.2772705373614883E-3},{"$f":"'Population 2016'!R217/'Population 2016'!R$5","v":1.4983765369670516E-2},{"$f":"'Population 2016'!S217/'Population 2016'!S$5","v":1.0921123941031403E-2},{"$f":"'Population 2016'!T217/'Population 2016'!T$5","v":2.053251932267116E-2},{"$f":"'Population 2016'!U217/'Population 2016'!U$5","v":0},{"$f":"'Population 2016'!V217/'Population 2016'!V$5","v":5.8769204936613218E-3},{"$f":"'Population 2016'!W217/'Population 2016'!W$5","v":6.3145921989292645E-3},{"$f":"'Population 2016'!X217/'Population 2016'!X$5","v":6.3145921989292645E-3},{"$f":"'Population 2016'!Y217/'Population 2016'!Y$5","v":6.2280408896519925E-3},{"$f":"'Population 2016'!Z217/'Population 2016'!Z$5","v":6.6339775021632538E-3},{"$f":"'Population 2016'!AA217/'Population 2016'!AA$5","v":5.4884639941215436E-3},{"$f":"'Population 2016'!AB217/'Population 2016'!AB$5","v":1.3448921732188366E-2},{"$f":"'Population 2016'!AC217/'Population 2016'!AC$5","v":6.8066964405766404E-3},{"$f":"'Population 2016'!AD217/'Population 2016'!AD$5","v":2.7913208530276528E-3},{"$f":"'Population 2016'!AE217/'Population 2016'!AE$5","v":3.1006478505939488E-3},{"$f":"'Population 2016'!AF217/'Population 2016'!AF$5","v":2.5788354522010585E-3},{"$f":"'Population 2016'!AG217/'Population 2016'!AG$5","v":3.1006478505939488E-3},{"$f":"'Population 2016'!AH217/'Population 2016'!AH$5","v":3.1208493168497996E-3},{"$f":"'Population 2016'!AI217/'Population 2016'!AI$5","v":1.4058261877679588E-2},{"$f":"'Population 2016'!AJ217/'Population 2016'!AJ$5","v":4.8657390625435684E-3},{"$f":"'Population 2016'!AK217/'Population 2016'!AK$5","v":5.8584664898231149E-3},{"$f":"'Population 2016'!AL217/'Population 2016'!AL$5","v":1.6140189070786258E-3},{"$f":"'Population 2016'!AM217/'Population 2016'!AM$5","v":2.6621657352104921E-3},{"$f":"'Population 2016'!AN217/'Population 2016'!AN$5","v":2.945347441911203E-3},{"$f":"'Population 2016'!AO217/'Population 2016'!AO$5","v":2.945347441911203E-3},{"$f":"'Population 2016'!AP217/'Population 2016'!AP$5","v":4.2166669308688551E-3},{"$f":"'Population 2016'!AQ217/'Population 2016'!AQ$5","v":5.0145229352770316E-3},{"$f":"'Population 2016'!AR217/'Population 2016'!AR$5","v":7.2115314997405755E-3},{"$f":"'Population 2016'!AS217/'Population 2016'!AS$5","v":1.6539653295368896E-3},{"$f":"'Population 2016'!AT217/'Population 2016'!AT$5","v":0},{"$f":"'Population 2016'!AU217/'Population 2016'!AU$5","v":0},{"$f":"'Population 2016'!AV217/'Population 2016'!AV$5","v":3.6532573117938972E-3},{"$f":"'Population 2016'!AW217/'Population 2016'!AW$5","v":3.6037891268533772E-3},{"$f":"'Population 2016'!AX217/'Population 2016'!AX$5","v":8.8298810330066316E-3},{"$f":"'Population 2016'!AY217/'Population 2016'!AY$5","v":5.3624430096998257E-3},{"$f":"'Population 2016'!AZ217/'Population 2016'!AZ$5","v":4.5245094373270595E-3},{"$f":"'Population 2016'!BA217/'Population 2016'!BA$5","v":9.1772835240768738E-4},{"$f":"'Population 2016'!BB217/'Population 2016'!BB$5","v":5.144210519047389E-3},{"$f":"'Population 2016'!BC217/'Population 2016'!BC$5","v":0},215]
[null,"Female 30-34",{"$f":"'Population 2016'!C218/'Population 2016'!C$5","v":1.7582147986486281E-2},{"$f":"'Population 2016'!D218/'Population 2016'!D$5","v":1.5653883395440275E-2},{"$f":"'Population 2016'!E218/'Population 2016'!E$5","v":1.3885307919125817E-2},{"$f":"'Population 2016'!F218/'Population 2016'!F$5","v":5.0682462013906769E-3},{"$f":"'Population 2016'!G218/'Population 2016'!G$5","v":1.5157256536566881E-3},{"$f":"'Population 2016'!H218/'Population 2016'!H$5","v":3.3104959907656294E-3},{"$f":"'Population 2016'!I218/'Population 2016'!I$5","v":2.9206096641822294E-3},{"$f":"'Population 2016'!J218/'Population 2016'!J$5","v":5.6309761740875579E-3},{"$f":"'Population 2016'!K218/'Population 2016'!K$5","v":3.3312857345366913E-3},{"$f":"'Population 2016'!L218/'Population 2016'!L$5","v":2.8116213683223993E-3},{"$f":"'Population 2016'!M218/'Population 2016'!M$5","v":2.8116213683223993E-3},{"$f":"'Population 2016'!N218/'Population 2016'!N$5","v":4.9750444056871432E-3},{"$f":"'Population 2016'!O218/'Population 2016'!O$5","v":3.9032702271624017E-3},{"$f":"'Population 2016'!P218/'Population 2016'!P$5","v":1.2712723994139525E-2},{"$f":"'Population 2016'!Q218/'Population 2016'!Q$5","v":4.9588136449630442E-3},{"$f":"'Population 2016'!R218/'Population 2016'!R$5","v":1.4824080481183798E-2},{"$f":"'Population 2016'!S218/'Population 2016'!S$5","v":9.9290166663430247E-3},{"$f":"'Population 2016'!T218/'Population 2016'!T$5","v":1.676570359650633E-2},{"$f":"'Population 2016'!U218/'Population 2016'!U$5","v":0},{"$f":"'Population 2016'!V218/'Population 2016'!V$5","v":7.8994970271941134E-3},{"$f":"'Population 2016'!W218/'Population 2016'!W$5","v":6.6610449800299388E-3},{"$f":"'Population 2016'!X218/'Population 2016'!X$5","v":6.6610449800299388E-3},{"$f":"'Population 2016'!Y218/'Population 2016'!Y$5","v":6.812292332395351E-3},{"$f":"'Population 2016'!Z218/'Population 2016'!Z$5","v":4.9614485958693957E-3},{"$f":"'Population 2016'!AA218/'Population 2016'!AA$5","v":5.1795261225240953E-3},{"$f":"'Population 2016'!AB218/'Population 2016'!AB$5","v":1.4149002589480365E-2},{"$f":"'Population 2016'!AC218/'Population 2016'!AC$5","v":6.0154606440349099E-3},{"$f":"'Population 2016'!AD218/'Population 2016'!AD$5","v":2.8657560757750569E-3},{"$f":"'Population 2016'!AE218/'Population 2016'!AE$5","v":3.377858088892083E-3},{"$f":"'Population 2016'!AF218/'Population 2016'!AF$5","v":2.6994827248186522E-3},{"$f":"'Population 2016'!AG218/'Population 2016'!AG$5","v":3.377858088892083E-3},{"$f":"'Population 2016'!AH218/'Population 2016'!AH$5","v":3.6781438377158355E-3},{"$f":"'Population 2016'!AI218/'Population 2016'!AI$5","v":1.2211260827718961E-2},{"$f":"'Population 2016'!AJ218/'Population 2016'!AJ$5","v":5.939268884365502E-3},{"$f":"'Population 2016'!AK218/'Population 2016'!AK$5","v":6.4116264159008339E-3},{"$f":"'Population 2016'!AL218/'Population 2016'!AL$5","v":2.3323460030861463E-3},{"$f":"'Population 2016'!AM218/'Population 2016'!AM$5","v":3.1294029866964154E-3},{"$f":"'Population 2016'!AN218/'Population 2016'!AN$5","v":2.127195374713647E-3},{"$f":"'Population 2016'!AO218/'Population 2016'!AO$5","v":2.127195374713647E-3},{"$f":"'Population 2016'!AP218/'Population 2016'!AP$5","v":5.2866857949051254E-3},{"$f":"'Population 2016'!AQ218/'Population 2016'!AQ$5","v":5.1378308763084342E-3},{"$f":"'Population 2016'!AR218/'Population 2016'!AR$5","v":7.0471216808653927E-3},{"$f":"'Population 2016'!AS218/'Population 2016'!AS$5","v":2.9206096641822294E-3},{"$f":"'Population 2016'!AT218/'Population 2016'!AT$5","v":0},{"$f":"'Population 2016'!AU218/'Population 2016'!AU$5","v":0},{"$f":"'Population 2016'!AV218/'Population 2016'!AV$5","v":3.8433111603843311E-3},{"$f":"'Population 2016'!AW218/'Population 2016'!AW$5","v":4.2559033498077983E-3},{"$f":"'Population 2016'!AX218/'Population 2016'!AX$5","v":6.8747843643380147E-3},{"$f":"'Population 2016'!AY218/'Population 2016'!AY$5","v":5.8382546433707657E-3},{"$f":"'Population 2016'!AZ218/'Population 2016'!AZ$5","v":5.1141626062094795E-3},{"$f":"'Population 2016'!BA218/'Population 2016'!BA$5","v":1.1066724249622112E-3},{"$f":"'Population 2016'!BB218/'Population 2016'!BB$5","v":6.0625729338571908E-3},{"$f":"'Population 2016'!BC218/'Population 2016'!BC$5","v":0},216]
[null,"Female 35-39",{"$f":"'Population 2016'!C219/'Population 2016'!C$5","v":1.5691044860032814E-2},{"$f":"'Population 2016'!D219/'Population 2016'!D$5","v":1.5384916326790099E-2},{"$f":"'Population 2016'!E219/'Population 2016'!E$5","v":1.5104139809393444E-2},{"$f":"'Population 2016'!F219/'Population 2016'!F$5","v":5.9232552150399178E-3},{"$f":"'Population 2016'!G219/'Population 2016'!G$5","v":2.2735884804850324E-3},{"$f":"'Population 2016'!H219/'Population 2016'!H$5","v":3.9978859516297954E-3},{"$f":"'Population 2016'!I219/'Population 2016'!I$5","v":3.255589984088435E-3},{"$f":"'Population 2016'!J219/'Population 2016'!J$5","v":6.8666395760596435E-3},{"$f":"'Population 2016'!K219/'Population 2016'!K$5","v":4.5834711524831073E-3},{"$f":"'Population 2016'!L219/'Population 2016'!L$5","v":2.7639667688593079E-3},{"$f":"'Population 2016'!M219/'Population 2016'!M$5","v":2.7639667688593079E-3},{"$f":"'Population 2016'!N219/'Population 2016'!N$5","v":4.5972946689063739E-3},{"$f":"'Population 2016'!O219/'Population 2016'!O$5","v":4.0023379994254069E-3},{"$f":"'Population 2016'!P219/'Population 2016'!P$5","v":1.8235095232728503E-2},{"$f":"'Population 2016'!Q219/'Population 2016'!Q$5","v":6.4629087789802708E-3},{"$f":"'Population 2016'!R219/'Population 2016'!R$5","v":2.2874860275722574E-2},{"$f":"'Population 2016'!S219/'Population 2016'!S$5","v":1.0281197095703045E-2},{"$f":"'Population 2016'!T219/'Population 2016'!T$5","v":1.621429202942723E-2},{"$f":"'Population 2016'!U219/'Population 2016'!U$5","v":0},{"$f":"'Population 2016'!V219/'Population 2016'!V$5","v":8.2353210554033315E-3},{"$f":"'Population 2016'!W219/'Population 2016'!W$5","v":7.4944927081494845E-3},{"$f":"'Population 2016'!X219/'Population 2016'!X$5","v":7.4944927081494845E-3},{"$f":"'Population 2016'!Y219/'Population 2016'!Y$5","v":7.5793707572216658E-3},{"$f":"'Population 2016'!Z219/'Population 2016'!Z$5","v":3.9122464347452392E-3},{"$f":"'Population 2016'!AA219/'Population 2016'!AA$5","v":6.0339220426839195E-3},{"$f":"'Population 2016'!AB219/'Population 2016'!AB$5","v":1.3712987318710786E-2},{"$f":"'Population 2016'!AC219/'Population 2016'!AC$5","v":6.8770285113803498E-3},{"$f":"'Population 2016'!AD219/'Population 2016'!AD$5","v":3.2230451449625965E-3},{"$f":"'Population 2016'!AE219/'Population 2016'!AE$5","v":3.5831990061499603E-3},{"$f":"'Population 2016'!AF219/'Population 2016'!AF$5","v":3.4987709059102084E-3},{"$f":"'Population 2016'!AG219/'Population 2016'!AG$5","v":3.5831990061499603E-3},{"$f":"'Population 2016'!AH219/'Population 2016'!AH$5","v":4.5196585642235491E-3},{"$f":"'Population 2016'!AI219/'Population 2016'!AI$5","v":1.2364380085746784E-2},{"$f":"'Population 2016'!AJ219/'Population 2016'!AJ$5","v":6.650308117000809E-3},{"$f":"'Population 2016'!AK219/'Population 2016'!AK$5","v":5.1167293162189004E-3},{"$f":"'Population 2016'!AL219/'Population 2016'!AL$5","v":2.8023624980046472E-3},{"$f":"'Population 2016'!AM219/'Population 2016'!AM$5","v":3.7523859886776463E-3},{"$f":"'Population 2016'!AN219/'Population 2016'!AN$5","v":3.218064797643722E-3},{"$f":"'Population 2016'!AO219/'Population 2016'!AO$5","v":3.218064797643722E-3},{"$f":"'Population 2016'!AP219/'Population 2016'!AP$5","v":5.4452071080956831E-3},{"$f":"'Population 2016'!AQ219/'Population 2016'!AQ$5","v":6.3983120512961034E-3},{"$f":"'Population 2016'!AR219/'Population 2016'!AR$5","v":7.5022561794588867E-3},{"$f":"'Population 2016'!AS219/'Population 2016'!AS$5","v":3.255589984088435E-3},{"$f":"'Population 2016'!AT219/'Population 2016'!AT$5","v":0},{"$f":"'Population 2016'!AU219/'Population 2016'!AU$5","v":0},{"$f":"'Population 2016'!AV219/'Population 2016'!AV$5","v":5.4165346848273682E-3},{"$f":"'Population 2016'!AW219/'Population 2016'!AW$5","v":5.3275062541948866E-3},{"$f":"'Population 2016'!AX219/'Population 2016'!AX$5","v":8.1015116858555777E-3},{"$f":"'Population 2016'!AY219/'Population 2016'!AY$5","v":6.3140662770417065E-3},{"$f":"'Population 2016'!AZ219/'Population 2016'!AZ$5","v":5.2752385938066287E-3},{"$f":"'Population 2016'!BA219/'Population 2016'!BA$5","v":1.6870006478082488E-3},{"$f":"'Population 2016'!BB219/'Population 2016'!BB$5","v":7.2364196294787434E-3},{"$f":"'Population 2016'!BC219/'Population 2016'!BC$5","v":0},217]
[null,"Female 40-44",{"$f":"'Population 2016'!C220/'Population 2016'!C$5","v":1.4459272283072583E-2},{"$f":"'Population 2016'!D220/'Population 2016'!D$5","v":1.5299335895855951E-2},{"$f":"'Population 2016'!E220/'Population 2016'!E$5","v":1.606982969168241E-2},{"$f":"'Population 2016'!F220/'Population 2016'!F$5","v":7.3036312129796553E-3},{"$f":"'Population 2016'!G220/'Population 2016'!G$5","v":2.6254533643696207E-3},{"$f":"'Population 2016'!H220/'Population 2016'!H$5","v":5.0970614079173058E-3},{"$f":"'Population 2016'!I220/'Population 2016'!I$5","v":5.0351729335901515E-3},{"$f":"'Population 2016'!J220/'Population 2016'!J$5","v":8.732574243467156E-3},{"$f":"'Population 2016'!K220/'Population 2016'!K$5","v":5.9065349903132825E-3},{"$f":"'Population 2016'!L220/'Population 2016'!L$5","v":2.986354899687068E-3},{"$f":"'Population 2016'!M220/'Population 2016'!M$5","v":2.986354899687068E-3},{"$f":"'Population 2016'!N220/'Population 2016'!N$5","v":5.4010175131207752E-3},{"$f":"'Population 2016'!O220/'Population 2016'!O$5","v":5.2307783754866706E-3},{"$f":"'Population 2016'!P220/'Population 2016'!P$5","v":2.1176603178181E-2},{"$f":"'Population 2016'!Q220/'Population 2016'!Q$5","v":7.5087249268516237E-3},{"$f":"'Population 2016'!R220/'Population 2016'!R$5","v":2.5829030712726887E-2},{"$f":"'Population 2016'!S220/'Population 2016'!S$5","v":1.0771072129023375E-2},{"$f":"'Population 2016'!T220/'Population 2016'!T$5","v":1.5453483664723154E-2},{"$f":"'Population 2016'!U220/'Population 2016'!U$5","v":0},{"$f":"'Population 2016'!V220/'Population 2016'!V$5","v":1.0028926660611658E-2},{"$f":"'Population 2016'!W220/'Population 2016'!W$5","v":8.6090247681054263E-3},{"$f":"'Population 2016'!X220/'Population 2016'!X$5","v":8.6090247681054263E-3},{"$f":"'Population 2016'!Y220/'Population 2016'!Y$5","v":9.4076405780512233E-3},{"$f":"'Population 2016'!Z220/'Population 2016'!Z$5","v":3.6431706037558342E-3},{"$f":"'Population 2016'!AA220/'Population 2016'!AA$5","v":6.5840307688832464E-3},{"$f":"'Population 2016'!AB220/'Population 2016'!AB$5","v":1.390745422351412E-2},{"$f":"'Population 2016'!AC220/'Population 2016'!AC$5","v":7.4396850778100246E-3},{"$f":"'Population 2016'!AD220/'Population 2016'!AD$5","v":3.7217611373702034E-3},{"$f":"'Population 2016'!AE220/'Population 2016'!AE$5","v":4.1376194827462296E-3},{"$f":"'Population 2016'!AF220/'Population 2016'!AF$5","v":4.5695154503913498E-3},{"$f":"'Population 2016'!AG220/'Population 2016'!AG$5","v":4.1376194827462296E-3},{"$f":"'Population 2016'!AH220/'Population 2016'!AH$5","v":5.0472307106433963E-3},{"$f":"'Population 2016'!AI220/'Population 2016'!AI$5","v":1.2424534079972E-2},{"$f":"'Population 2016'!AJ220/'Population 2016'!AJ$5","v":6.8873211945459107E-3},{"$f":"'Population 2016'!AK220/'Population 2016'!AK$5","v":6.7510654614485249E-3},{"$f":"'Population 2016'!AL220/'Population 2016'!AL$5","v":3.5916354800376014E-3},{"$f":"'Population 2016'!AM220/'Population 2016'!AM$5","v":4.0385235302853048E-3},{"$f":"'Population 2016'!AN220/'Population 2016'!AN$5","v":2.345369259299662E-3},{"$f":"'Population 2016'!AO220/'Population 2016'!AO$5","v":2.345369259299662E-3},{"$f":"'Population 2016'!AP220/'Population 2016'!AP$5","v":6.8322685985130697E-3},{"$f":"'Population 2016'!AQ220/'Population 2016'!AQ$5","v":7.2957198443579768E-3},{"$f":"'Population 2016'!AR220/'Population 2016'!AR$5","v":8.1331621510774745E-3},{"$f":"'Population 2016'!AS220/'Population 2016'!AS$5","v":5.0351729335901515E-3},{"$f":"'Population 2016'!AT220/'Population 2016'!AT$5","v":0},{"$f":"'Population 2016'!AU220/'Population 2016'!AU$5","v":0},{"$f":"'Population 2016'!AV220/'Population 2016'!AV$5","v":6.7469116249604059E-3},{"$f":"'Population 2016'!AW220/'Population 2016'!AW$5","v":6.1092806150466776E-3},{"$f":"'Population 2016'!AX220/'Population 2016'!AX$5","v":1.0261062908110456E-2},{"$f":"'Population 2016'!AY220/'Population 2016'!AY$5","v":7.4615219852513697E-3},{"$f":"'Population 2016'!AZ220/'Population 2016'!AZ$5","v":6.4516685746500912E-3},{"$f":"'Population 2016'!BA220/'Population 2016'!BA$5","v":1.6600086374433168E-3},{"$f":"'Population 2016'!BB220/'Population 2016'!BB$5","v":9.0662394785358674E-3},{"$f":"'Population 2016'!BC220/'Population 2016'!BC$5","v":0},218]
[null,"Female 45-49",{"$f":"'Population 2016'!C221/'Population 2016'!C$5","v":1.5394601667237405E-2},{"$f":"'Population 2016'!D221/'Population 2016'!D$5","v":1.6362978394608922E-2},{"$f":"'Population 2016'!E221/'Population 2016'!E$5","v":1.7251159062249496E-2},{"$f":"'Population 2016'!F221/'Population 2016'!F$5","v":8.395570435230492E-3},{"$f":"'Population 2016'!G221/'Population 2016'!G$5","v":3.5727818979050508E-3},{"$f":"'Population 2016'!H221/'Population 2016'!H$5","v":6.4718413296456379E-3},{"$f":"'Population 2016'!I221/'Population 2016'!I$5","v":5.1607905535549789E-3},{"$f":"'Population 2016'!J221/'Population 2016'!J$5","v":1.1353175820803928E-2},{"$f":"'Population 2016'!K221/'Population 2016'!K$5","v":6.9697112885696733E-3},{"$f":"'Population 2016'!L221/'Population 2016'!L$5","v":3.9871014884119895E-3},{"$f":"'Population 2016'!M221/'Population 2016'!M$5","v":3.9871014884119895E-3},{"$f":"'Population 2016'!N221/'Population 2016'!N$5","v":6.8637930895909856E-3},{"$f":"'Population 2016'!O221/'Population 2016'!O$5","v":5.9936002219118101E-3},{"$f":"'Population 2016'!P221/'Population 2016'!P$5","v":2.5504339005973178E-2},{"$f":"'Population 2016'!Q221/'Population 2016'!Q$5","v":9.1773304661519842E-3},{"$f":"'Population 2016'!R221/'Population 2016'!R$5","v":3.0286900516314472E-2},{"$f":"'Population 2016'!S221/'Population 2016'!S$5","v":1.1816138866773409E-2},{"$f":"'Population 2016'!T221/'Population 2016'!T$5","v":1.647720134200081E-2},{"$f":"'Population 2016'!U221/'Population 2016'!U$5","v":0},{"$f":"'Population 2016'!V221/'Population 2016'!V$5","v":1.0799795452637364E-2},{"$f":"'Population 2016'!W221/'Population 2016'!W$5","v":9.4490093411514001E-3},{"$f":"'Population 2016'!X221/'Population 2016'!X$5","v":9.4490093411514001E-3},{"$f":"'Population 2016'!Y221/'Population 2016'!Y$5","v":1.1065006915629323E-2},{"$f":"'Population 2016'!Z221/'Population 2016'!Z$5","v":4.1135693586509814E-3},{"$f":"'Population 2016'!AA221/'Population 2016'!AA$5","v":7.9015013051794598E-3},{"$f":"'Population 2016'!AB221/'Population 2016'!AB$5","v":1.4959622529502677E-2},{"$f":"'Population 2016'!AC221/'Population 2016'!AC$5","v":8.9114870888935323E-3},{"$f":"'Population 2016'!AD221/'Population 2016'!AD$5","v":4.2651382634262529E-3},{"$f":"'Population 2016'!AE221/'Population 2016'!AE$5","v":4.5277672255361967E-3},{"$f":"'Population 2016'!AF221/'Population 2016'!AF$5","v":5.9418781764164746E-3},{"$f":"'Population 2016'!AG221/'Population 2016'!AG$5","v":4.5277672255361967E-3},{"$f":"'Population 2016'!AH221/'Population 2016'!AH$5","v":6.0875138162599964E-3},{"$f":"'Population 2016'!AI221/'Population 2016'!AI$5","v":1.3675463732610027E-2},{"$f":"'Population 2016'!AJ221/'Population 2016'!AJ$5","v":7.8353735047263194E-3},{"$f":"'Population 2016'!AK221/'Population 2016'!AK$5","v":7.7442389650880655E-3},{"$f":"'Population 2016'!AL221/'Population 2016'!AL$5","v":4.7622425994572641E-3},{"$f":"'Population 2016'!AM221/'Population 2016'!AM$5","v":5.1975616735061994E-3},{"$f":"'Population 2016'!AN221/'Population 2016'!AN$5","v":4.0907603359877824E-3},{"$f":"'Population 2016'!AO221/'Population 2016'!AO$5","v":4.0907603359877824E-3},{"$f":"'Population 2016'!AP221/'Population 2016'!AP$5","v":8.1242173010161213E-3},{"$f":"'Population 2016'!AQ221/'Population 2016'!AQ$5","v":9.4330574889022849E-3},{"$f":"'Population 2016'!AR221/'Population 2016'!AR$5","v":9.3087591892947377E-3},{"$f":"'Population 2016'!AS221/'Population 2016'!AS$5","v":5.1607905535549789E-3},{"$f":"'Population 2016'!AT221/'Population 2016'!AT$5","v":0},{"$f":"'Population 2016'!AU221/'Population 2016'!AU$5","v":0},{"$f":"'Population 2016'!AV221/'Population 2016'!AV$5","v":9.0169992609017008E-3},{"$f":"'Population 2016'!AW221/'Population 2016'!AW$5","v":7.0245286472634082E-3},{"$f":"'Population 2016'!AX221/'Population 2016'!AX$5","v":1.3724011909477746E-2},{"$f":"'Population 2016'!AY221/'Population 2016'!AY$5","v":8.5447201738012915E-3},{"$f":"'Population 2016'!AZ221/'Population 2016'!AZ$5","v":7.7489055461914154E-3},{"$f":"'Population 2016'!BA221/'Population 2016'!BA$5","v":2.4427769380263443E-3},{"$f":"'Population 2016'!BB221/'Population 2016'!BB$5","v":1.0896059327592992E-2},{"$f":"'Population 2016'!BC221/'Population 2016'!BC$5","v":0},219]
[null,"Female 50-54",{"$f":"'Population 2016'!C222/'Population 2016'!C$5","v":1.6401486304835601E-2},{"$f":"'Population 2016'!D222/'Population 2016'!D$5","v":1.6534139256477218E-2},{"$f":"'Population 2016'!E222/'Population 2016'!E$5","v":1.6655806562003383E-2},{"$f":"'Population 2016'!F222/'Population 2016'!F$5","v":8.6118980169971673E-3},{"$f":"'Population 2016'!G222/'Population 2016'!G$5","v":3.7351810750825528E-3},{"$f":"'Population 2016'!H222/'Population 2016'!H$5","v":6.6631432527163251E-3},{"$f":"'Population 2016'!I222/'Population 2016'!I$5","v":4.6478519386986012E-3},{"$f":"'Population 2016'!J222/'Population 2016'!J$5","v":1.1137556703681281E-2},{"$f":"'Population 2016'!K222/'Population 2016'!K$5","v":7.4186079478334834E-3},{"$f":"'Population 2016'!L222/'Population 2016'!L$5","v":4.7972296792845454E-3},{"$f":"'Population 2016'!M222/'Population 2016'!M$5","v":4.7972296792845454E-3},{"$f":"'Population 2016'!N222/'Population 2016'!N$5","v":7.3058406539089063E-3},{"$f":"'Population 2016'!O222/'Population 2016'!O$5","v":5.7261172368016956E-3},{"$f":"'Population 2016'!P222/'Population 2016'!P$5","v":2.7837259100642397E-2},{"$f":"'Population 2016'!Q222/'Population 2016'!Q$5","v":8.6250455341300332E-3},{"$f":"'Population 2016'!R222/'Population 2016'!R$5","v":3.0326821738436153E-2},{"$f":"'Population 2016'!S222/'Population 2016'!S$5","v":1.1653729846717661E-2},{"$f":"'Population 2016'!T222/'Population 2016'!T$5","v":1.6777336751929939E-2},{"$f":"'Population 2016'!U222/'Population 2016'!U$5","v":0},{"$f":"'Population 2016'!V222/'Population 2016'!V$5","v":9.9373382892818714E-3},{"$f":"'Population 2016'!W222/'Population 2016'!W$5","v":9.1613881643885769E-3},{"$f":"'Population 2016'!X222/'Population 2016'!X$5","v":9.1613881643885769E-3},{"$f":"'Population 2016'!Y222/'Population 2016'!Y$5","v":1.0512551469769956E-2},{"$f":"'Population 2016'!Z222/'Population 2016'!Z$5","v":4.1793864683893969E-3},{"$f":"'Population 2016'!AA222/'Population 2016'!AA$5","v":8.2609322482638022E-3},{"$f":"'Population 2016'!AB222/'Population 2016'!AB$5","v":1.5025127171120641E-2},{"$f":"'Population 2016'!AC222/'Population 2016'!AC$5","v":9.309690725061593E-3},{"$f":"'Population 2016'!AD222/'Population 2016'!AD$5","v":4.4847221705310953E-3},{"$f":"'Population 2016'!AE222/'Population 2016'!AE$5","v":4.7690428033142027E-3},{"$f":"'Population 2016'!AF222/'Population 2016'!AF$5","v":6.0172827218024699E-3},{"$f":"'Population 2016'!AG222/'Population 2016'!AG$5","v":4.7690428033142027E-3},{"$f":"'Population 2016'!AH222/'Population 2016'!AH$5","v":6.3773069671103346E-3},{"$f":"'Population 2016'!AI222/'Population 2016'!AI$5","v":1.3611208329687636E-2},{"$f":"'Population 2016'!AJ222/'Population 2016'!AJ$5","v":7.3892312411120093E-3},{"$f":"'Population 2016'!AK222/'Population 2016'!AK$5","v":7.2665099380209448E-3},{"$f":"'Population 2016'!AL222/'Population 2016'!AL$5","v":4.6026143559000374E-3},{"$f":"'Population 2016'!AM222/'Population 2016'!AM$5","v":5.1142558069621974E-3},{"$f":"'Population 2016'!AN222/'Population 2016'!AN$5","v":3.654412566815752E-3},{"$f":"'Population 2016'!AO222/'Population 2016'!AO$5","v":3.654412566815752E-3},{"$f":"'Population 2016'!AP222/'Population 2016'!AP$5","v":8.9564541952665538E-3},{"$f":"'Population 2016'!AQ222/'Population 2016'!AQ$5","v":1.0200306899764346E-2},{"$f":"'Population 2016'!AR222/'Population 2016'!AR$5","v":9.4520051425965573E-3},{"$f":"'Population 2016'!AS222/'Population 2016'!AS$5","v":4.6478519386986012E-3},{"$f":"'Population 2016'!AT222/'Population 2016'!AT$5","v":0},{"$f":"'Population 2016'!AU222/'Population 2016'!AU$5","v":0},{"$f":"'Population 2016'!AV222/'Population 2016'!AV$5","v":1.0115088163868653E-2},{"$f":"'Population 2016'!AW222/'Population 2016'!AW$5","v":7.7071511379583867E-3},{"$f":"'Population 2016'!AX222/'Population 2016'!AX$5","v":1.3148983477516389E-2},{"$f":"'Population 2016'!AY222/'Population 2016'!AY$5","v":8.6870046816192887E-3},{"$f":"'Population 2016'!AZ222/'Population 2016'!AZ$5","v":8.2695261489607718E-3},{"$f":"'Population 2016'!BA222/'Population 2016'!BA$5","v":2.7666810624055278E-3},{"$f":"'Population 2016'!BB222/'Population 2016'!BB$5","v":1.0226276213032461E-2},{"$f":"'Population 2016'!BC222/'Population 2016'!BC$5","v":0},220]
[null,"Female 55-59",{"$f":"'Population 2016'!C223/'Population 2016'!C$5","v":1.5159491548813461E-2},{"$f":"'Population 2016'!D223/'Population 2016'!D$5","v":1.4580460276009115E-2},{"$f":"'Population 2016'!E223/'Population 2016'!E$5","v":1.404938144281569E-2},{"$f":"'Population 2016'!F223/'Population 2016'!F$5","v":8.0144218387844454E-3},{"$f":"'Population 2016'!G223/'Population 2016'!G$5","v":4.0329128999079741E-3},{"$f":"'Population 2016'!H223/'Population 2016'!H$5","v":6.9257780962540486E-3},{"$f":"'Population 2016'!I223/'Population 2016'!I$5","v":4.1035089188510175E-3},{"$f":"'Population 2016'!J223/'Population 2016'!J$5","v":9.7111533134853177E-3},{"$f":"'Population 2016'!K223/'Population 2016'!K$5","v":6.2845532296933329E-3},{"$f":"'Population 2016'!L223/'Population 2016'!L$5","v":4.2492017854589932E-3},{"$f":"'Population 2016'!M223/'Population 2016'!M$5","v":4.2492017854589932E-3},{"$f":"'Population 2016'!N223/'Population 2016'!N$5","v":7.2415428263717541E-3},{"$f":"'Population 2016'!O223/'Population 2016'!O$5","v":5.5477952467282866E-3},{"$f":"'Population 2016'!P223/'Population 2016'!P$5","v":2.509861377211766E-2},{"$f":"'Population 2016'!Q223/'Population 2016'!Q$5","v":7.2619593189269223E-3},{"$f":"'Population 2016'!R223/'Population 2016'!R$5","v":2.7093202746580083E-2},{"$f":"'Population 2016'!S223/'Population 2016'!S$5","v":1.0568943511671383E-2},{"$f":"'Population 2016'!T223/'Population 2016'!T$5","v":1.5683820142110626E-2},{"$f":"'Population 2016'!U223/'Population 2016'!U$5","v":0},{"$f":"'Population 2016'!V223/'Population 2016'!V$5","v":8.1666297769059926E-3},{"$f":"'Population 2016'!W223/'Population 2016'!W$5","v":8.4750194471136554E-3},{"$f":"'Population 2016'!X223/'Population 2016'!X$5","v":8.4750194471136554E-3},{"$f":"'Population 2016'!Y223/'Population 2016'!Y$5","v":8.9068536271283451E-3},{"$f":"'Population 2016'!Z223/'Population 2016'!Z$5","v":3.7612542418159326E-3},{"$f":"'Population 2016'!AA223/'Population 2016'!AA$5","v":7.3593651692149056E-3},{"$f":"'Population 2016'!AB223/'Population 2016'!AB$5","v":1.3229890586778297E-2},{"$f":"'Population 2016'!AC223/'Population 2016'!AC$5","v":8.337453275716198E-3},{"$f":"'Population 2016'!AD223/'Population 2016'!AD$5","v":4.1199895790688156E-3},{"$f":"'Population 2016'!AE223/'Population 2016'!AE$5","v":4.1530200515405699E-3},{"$f":"'Population 2016'!AF223/'Population 2016'!AF$5","v":5.2481563588653128E-3},{"$f":"'Population 2016'!AG223/'Population 2016'!AG$5","v":4.1530200515405699E-3},{"$f":"'Population 2016'!AH223/'Population 2016'!AH$5","v":5.6026675831065452E-3},{"$f":"'Population 2016'!AI223/'Population 2016'!AI$5","v":1.2289187592965264E-2},{"$f":"'Population 2016'!AJ223/'Population 2016'!AJ$5","v":6.9430889774977E-3},{"$f":"'Population 2016'!AK223/'Population 2016'!AK$5","v":6.2859082508831699E-3},{"$f":"'Population 2016'!AL223/'Population 2016'!AL$5","v":4.7356378921977263E-3},{"$f":"'Population 2016'!AM223/'Population 2016'!AM$5","v":4.4659188455980093E-3},{"$f":"'Population 2016'!AN223/'Population 2016'!AN$5","v":2.8908039707646995E-3},{"$f":"'Population 2016'!AO223/'Population 2016'!AO$5","v":2.8908039707646995E-3},{"$f":"'Population 2016'!AP223/'Population 2016'!AP$5","v":8.3144428768447912E-3},{"$f":"'Population 2016'!AQ223/'Population 2016'!AQ$5","v":9.1590398421658361E-3},{"$f":"'Population 2016'!AR223/'Population 2016'!AR$5","v":8.5354983745037361E-3},{"$f":"'Population 2016'!AS223/'Population 2016'!AS$5","v":4.1035089188510175E-3},{"$f":"'Population 2016'!AT223/'Population 2016'!AT$5","v":0},{"$f":"'Population 2016'!AU223/'Population 2016'!AU$5","v":0},{"$f":"'Population 2016'!AV223/'Population 2016'!AV$5","v":1.1002006123957344E-2},{"$f":"'Population 2016'!AW223/'Population 2016'!AW$5","v":6.7995301726767954E-3},{"$f":"'Population 2016'!AX223/'Population 2016'!AX$5","v":1.1564460687222868E-2},{"$f":"'Population 2016'!AY223/'Population 2016'!AY$5","v":8.1408157645114897E-3},{"$f":"'Population 2016'!AZ223/'Population 2016'!AZ$5","v":7.8467016815182561E-3},{"$f":"'Population 2016'!BA223/'Population 2016'!BA$5","v":2.2943208810192184E-3},{"$f":"'Population 2016'!BB223/'Population 2016'!BB$5","v":7.8164379967270384E-3},{"$f":"'Population 2016'!BC223/'Population 2016'!BC$5","v":0},221]
[null,"Female 60-64",{"$f":"'Population 2016'!C224/'Population 2016'!C$5","v":1.1949727323373523E-2},{"$f":"'Population 2016'!D224/'Population 2016'!D$5","v":1.2494742916385474E-2},{"$f":"'Population 2016'!E224/'Population 2016'!E$5","v":1.2994623076237935E-2},{"$f":"'Population 2016'!F224/'Population 2016'!F$5","v":7.4787535410764869E-3},{"$f":"'Population 2016'!G224/'Population 2016'!G$5","v":2.9637849834894172E-3},{"$f":"'Population 2016'!H224/'Population 2016'!H$5","v":6.4621141132183146E-3},{"$f":"'Population 2016'!I224/'Population 2016'!I$5","v":3.7999330039360187E-3},{"$f":"'Population 2016'!J224/'Population 2016'!J$5","v":9.1721055206787031E-3},{"$f":"'Population 2016'!K224/'Population 2016'!K$5","v":7.3004772480272173E-3},{"$f":"'Population 2016'!L224/'Population 2016'!L$5","v":4.0903531205820215E-3},{"$f":"'Population 2016'!M224/'Population 2016'!M$5","v":4.0903531205820215E-3},{"$f":"'Population 2016'!N224/'Population 2016'!N$5","v":5.4010175131207752E-3},{"$f":"'Population 2016'!O224/'Population 2016'!O$5","v":4.9732021676028573E-3},{"$f":"'Population 2016'!P224/'Population 2016'!P$5","v":2.2483940042826552E-2},{"$f":"'Population 2016'!Q224/'Population 2016'!Q$5","v":6.3454013466351751E-3},{"$f":"'Population 2016'!R224/'Population 2016'!R$5","v":2.3513599829669451E-2},{"$f":"'Population 2016'!S224/'Population 2016'!S$5","v":9.2078853109867943E-3},{"$f":"'Population 2016'!T224/'Population 2016'!T$5","v":1.3350209164134517E-2},{"$f":"'Population 2016'!U224/'Population 2016'!U$5","v":0},{"$f":"'Population 2016'!V224/'Population 2016'!V$5","v":6.8080689355141544E-3},{"$f":"'Population 2016'!W224/'Population 2016'!W$5","v":7.8572876015662284E-3},{"$f":"'Population 2016'!X224/'Population 2016'!X$5","v":7.8572876015662284E-3},{"$f":"'Population 2016'!Y224/'Population 2016'!Y$5","v":7.9410502217770775E-3},{"$f":"'Population 2016'!Z224/'Population 2016'!Z$5","v":3.3044060683375177E-3},{"$f":"'Population 2016'!AA224/'Population 2016'!AA$5","v":6.4132844613551945E-3},{"$f":"'Population 2016'!AB224/'Population 2016'!AB$5","v":1.1494017583902234E-2},{"$f":"'Population 2016'!AC224/'Population 2016'!AC$5","v":7.365215826370803E-3},{"$f":"'Population 2016'!AD224/'Population 2016'!AD$5","v":3.7105958539580932E-3},{"$f":"'Population 2016'!AE224/'Population 2016'!AE$5","v":3.993880840665715E-3},{"$f":"'Population 2016'!AF224/'Population 2016'!AF$5","v":6.0323636308796695E-3},{"$f":"'Population 2016'!AG224/'Population 2016'!AG$5","v":3.993880840665715E-3},{"$f":"'Population 2016'!AH224/'Population 2016'!AH$5","v":4.7035657561093408E-3},{"$f":"'Population 2016'!AI224/'Population 2016'!AI$5","v":1.0479099221279202E-2},{"$f":"'Population 2016'!AJ224/'Population 2016'!AJ$5","v":5.9950366673172904E-3},{"$f":"'Population 2016'!AK224/'Population 2016'!AK$5","v":6.3487673333920015E-3},{"$f":"'Population 2016'!AL224/'Population 2016'!AL$5","v":4.1858072755006116E-3},{"$f":"'Population 2016'!AM224/'Population 2016'!AM$5","v":3.5060903832432062E-3},{"$f":"'Population 2016'!AN224/'Population 2016'!AN$5","v":3.0544343842042109E-3},{"$f":"'Population 2016'!AO224/'Population 2016'!AO$5","v":3.0544343842042109E-3},{"$f":"'Population 2016'!AP224/'Population 2016'!AP$5","v":7.8230268059540607E-3},{"$f":"'Population 2016'!AQ224/'Population 2016'!AQ$5","v":7.6587932262837726E-3},{"$f":"'Population 2016'!AR224/'Population 2016'!AR$5","v":7.4951272984236485E-3},{"$f":"'Population 2016'!AS224/'Population 2016'!AS$5","v":3.7999330039360187E-3},{"$f":"'Population 2016'!AT224/'Population 2016'!AT$5","v":0},{"$f":"'Population 2016'!AU224/'Population 2016'!AU$5","v":0},{"$f":"'Population 2016'!AV224/'Population 2016'!AV$5","v":1.0759159539647345E-2},{"$f":"'Population 2016'!AW224/'Population 2016'!AW$5","v":5.9643663432790289E-3},{"$f":"'Population 2016'!AX224/'Population 2016'!AX$5","v":1.018439245051561E-2},{"$f":"'Population 2016'!AY224/'Population 2016'!AY$5","v":7.3268871821547685E-3},{"$f":"'Population 2016'!AZ224/'Population 2016'!AZ$5","v":6.8601112574857188E-3},{"$f":"'Population 2016'!BA224/'Population 2016'!BA$5","v":1.8084646944504428E-3},{"$f":"'Population 2016'!BB224/'Population 2016'!BB$5","v":6.6080663982930887E-3},{"$f":"'Population 2016'!BC224/'Population 2016'!BC$5","v":0},222]
[null,"Female 65-69",{"$f":"'Population 2016'!C225/'Population 2016'!C$5","v":1.1535729071366144E-2},{"$f":"'Population 2016'!D225/'Population 2016'!D$5","v":1.1675615934587208E-2},{"$f":"'Population 2016'!E225/'Population 2016'!E$5","v":1.1803918075745714E-2},{"$f":"'Population 2016'!F225/'Population 2016'!F$5","v":9.1475663147051241E-3},{"$f":"'Population 2016'!G225/'Population 2016'!G$5","v":3.4239159854923401E-3},{"$f":"'Population 2016'!H225/'Population 2016'!H$5","v":6.9906262057695366E-3},{"$f":"'Population 2016'!I225/'Population 2016'!I$5","v":4.1872539988275686E-3},{"$f":"'Population 2016'!J225/'Population 2016'!J$5","v":9.7857907001816184E-3},{"$f":"'Population 2016'!K225/'Population 2016'!K$5","v":7.1823465482209513E-3},{"$f":"'Population 2016'!L225/'Population 2016'!L$5","v":3.867964989754261E-3},{"$f":"'Population 2016'!M225/'Population 2016'!M$5","v":3.867964989754261E-3},{"$f":"'Population 2016'!N225/'Population 2016'!N$5","v":6.1806286720087443E-3},{"$f":"'Population 2016'!O225/'Population 2016'!O$5","v":5.0524563854132615E-3},{"$f":"'Population 2016'!P225/'Population 2016'!P$5","v":2.2844584695142566E-2},{"$f":"'Population 2016'!Q225/'Population 2016'!Q$5","v":6.9094370218916344E-3},{"$f":"'Population 2016'!R225/'Population 2016'!R$5","v":2.2675254165114175E-2},{"$f":"'Population 2016'!S225/'Population 2016'!S$5","v":9.5662443443706741E-3},{"$f":"'Population 2016'!T225/'Population 2016'!T$5","v":1.3810882118909462E-2},{"$f":"'Population 2016'!U225/'Population 2016'!U$5","v":0},{"$f":"'Population 2016'!V225/'Population 2016'!V$5","v":6.6019951000221341E-3},{"$f":"'Population 2016'!W225/'Population 2016'!W$5","v":8.7691774688029075E-3},{"$f":"'Population 2016'!X225/'Population 2016'!X$5","v":8.7691774688029075E-3},{"$f":"'Population 2016'!Y225/'Population 2016'!Y$5","v":8.1278517034705337E-3},{"$f":"'Population 2016'!Z225/'Population 2016'!Z$5","v":2.7449606355609843E-3},{"$f":"'Population 2016'!AA225/'Population 2016'!AA$5","v":6.0119974195382937E-3},{"$f":"'Population 2016'!AB225/'Population 2016'!AB$5","v":1.0838971167722589E-2},{"$f":"'Population 2016'!AC225/'Population 2016'!AC$5","v":6.9866637982214262E-3},{"$f":"'Population 2016'!AD225/'Population 2016'!AD$5","v":3.8036398823923481E-3},{"$f":"'Population 2016'!AE225/'Population 2016'!AE$5","v":3.9476791342826925E-3},{"$f":"'Population 2016'!AF225/'Population 2016'!AF$5","v":6.1077681762656657E-3},{"$f":"'Population 2016'!AG225/'Population 2016'!AG$5","v":3.9476791342826925E-3},{"$f":"'Population 2016'!AH225/'Population 2016'!AH$5","v":4.2614454362222866E-3},{"$f":"'Population 2016'!AI225/'Population 2016'!AI$5","v":1.0602141482194417E-2},{"$f":"'Population 2016'!AJ225/'Population 2016'!AJ$5","v":5.7859074812480829E-3},{"$f":"'Population 2016'!AK225/'Population 2016'!AK$5","v":6.537344580918497E-3},{"$f":"'Population 2016'!AL225/'Population 2016'!AL$5","v":4.6824284776786507E-3},{"$f":"'Population 2016'!AM225/'Population 2016'!AM$5","v":3.1438909634866766E-3},{"$f":"'Population 2016'!AN225/'Population 2016'!AN$5","v":2.781717028471692E-3},{"$f":"'Population 2016'!AO225/'Population 2016'!AO$5","v":2.781717028471692E-3},{"$f":"'Population 2016'!AP225/'Population 2016'!AP$5","v":9.2417925590095595E-3},{"$f":"'Population 2016'!AQ225/'Population 2016'!AQ$5","v":7.5765879322628373E-3},{"$f":"'Population 2016'!AR225/'Population 2016'!AR$5","v":7.5223061573704945E-3},{"$f":"'Population 2016'!AS225/'Population 2016'!AS$5","v":4.1872539988275686E-3},{"$f":"'Population 2016'!AT225/'Population 2016'!AT$5","v":0},{"$f":"'Population 2016'!AU225/'Population 2016'!AU$5","v":0},{"$f":"'Population 2016'!AV225/'Population 2016'!AV$5","v":1.1804455706894732E-2},{"$f":"'Population 2016'!AW225/'Population 2016'!AW$5","v":5.4380987247544081E-3},{"$f":"'Population 2016'!AX225/'Population 2016'!AX$5","v":1.119388680884777E-2},{"$f":"'Population 2016'!AY225/'Population 2016'!AY$5","v":8.4238548392032066E-3},{"$f":"'Population 2016'!AZ225/'Population 2016'!AZ$5","v":8.119955589049134E-3},{"$f":"'Population 2016'!BA225/'Population 2016'!BA$5","v":1.2821204923342691E-3},{"$f":"'Population 2016'!BB225/'Population 2016'!BB$5","v":5.6344641389834485E-3},{"$f":"'Population 2016'!BC225/'Population 2016'!BC$5","v":0},223]
[null,"Female 70-74",{"$f":"'Population 2016'!C226/'Population 2016'!C$5","v":8.8779625152693806E-3},{"$f":"'Population 2016'!D226/'Population 2016'!D$5","v":8.6827460070616081E-3},{"$f":"'Population 2016'!E226/'Population 2016'!E$5","v":8.5036963420979852E-3},{"$f":"'Population 2016'!F226/'Population 2016'!F$5","v":6.582539273757404E-3},{"$f":"'Population 2016'!G226/'Population 2016'!G$5","v":2.8149190710767065E-3},{"$f":"'Population 2016'!H226/'Population 2016'!H$5","v":5.3856354952612241E-3},{"$f":"'Population 2016'!I226/'Population 2016'!I$5","v":3.1718449041118835E-3},{"$f":"'Population 2016'!J226/'Population 2016'!J$5","v":7.5383760563263475E-3},{"$f":"'Population 2016'!K226/'Population 2016'!K$5","v":4.9142371119406513E-3},{"$f":"'Population 2016'!L226/'Population 2016'!L$5","v":3.7250011913649867E-3},{"$f":"'Population 2016'!M226/'Population 2016'!M$5","v":3.7250011913649867E-3},{"$f":"'Population 2016'!N226/'Population 2016'!N$5","v":4.9670071772449989E-3},{"$f":"'Population 2016'!O226/'Population 2016'!O$5","v":3.4673720292051793E-3},{"$f":"'Population 2016'!P226/'Population 2016'!P$5","v":1.9114166572748788E-2},{"$f":"'Population 2016'!Q226/'Population 2016'!Q$5","v":5.8283686443167532E-3},{"$f":"'Population 2016'!R226/'Population 2016'!R$5","v":1.9521477617501462E-2},{"$f":"'Population 2016'!S226/'Population 2016'!S$5","v":7.1618847213714386E-3},{"$f":"'Population 2016'!T226/'Population 2016'!T$5","v":1.0281382763386271E-2},{"$f":"'Population 2016'!U226/'Population 2016'!U$5","v":0},{"$f":"'Population 2016'!V226/'Population 2016'!V$5","v":4.671006937819128E-3},{"$f":"'Population 2016'!W226/'Population 2016'!W$5","v":6.6022133756920886E-3},{"$f":"'Population 2016'!X226/'Population 2016'!X$5","v":6.6022133756920886E-3},{"$f":"'Population 2016'!Y226/'Population 2016'!Y$5","v":6.0452139075690371E-3},{"$f":"'Population 2016'!Z226/'Population 2016'!Z$5","v":1.6434919461151452E-3},{"$f":"'Population 2016'!AA226/'Population 2016'!AA$5","v":4.574938029720488E-3},{"$f":"'Population 2016'!AB226/'Population 2016'!AB$5","v":8.1942212623972652E-3},{"$f":"'Population 2016'!AC226/'Population 2016'!AC$5","v":5.3907463680725499E-3},{"$f":"'Population 2016'!AD226/'Population 2016'!AD$5","v":3.055565893780937E-3},{"$f":"'Population 2016'!AE226/'Population 2016'!AE$5","v":3.1468495569769712E-3},{"$f":"'Population 2016'!AF226/'Population 2016'!AF$5","v":4.8560527228581341E-3},{"$f":"'Population 2016'!AG226/'Population 2016'!AG$5","v":3.1468495569769712E-3},{"$f":"'Population 2016'!AH226/'Population 2016'!AH$5","v":3.1097034264324793E-3},{"$f":"'Population 2016'!AI226/'Population 2016'!AI$5","v":7.9170859217779326E-3},{"$f":"'Population 2016'!AJ226/'Population 2016'!AJ$5","v":4.1546998299082623E-3},{"$f":"'Population 2016'!AK226/'Population 2016'!AK$5","v":5.6824610587983861E-3},{"$f":"'Population 2016'!AL226/'Population 2016'!AL$5","v":3.6448448945566769E-3},{"$f":"'Population 2016'!AM226/'Population 2016'!AM$5","v":2.0898906519951754E-3},{"$f":"'Population 2016'!AN226/'Population 2016'!AN$5","v":2.4544562015926695E-3},{"$f":"'Population 2016'!AO226/'Population 2016'!AO$5","v":2.4544562015926695E-3},{"$f":"'Population 2016'!AP226/'Population 2016'!AP$5","v":7.4901320482538879E-3},{"$f":"'Population 2016'!AQ226/'Population 2016'!AQ$5","v":5.6927166109497452E-3},{"$f":"'Population 2016'!AR226/'Population 2016'!AR$5","v":5.7302836871374711E-3},{"$f":"'Population 2016'!AS226/'Population 2016'!AS$5","v":3.1718449041118835E-3},{"$f":"'Population 2016'!AT226/'Population 2016'!AT$5","v":0},{"$f":"'Population 2016'!AU226/'Population 2016'!AU$5","v":0},{"$f":"'Population 2016'!AV226/'Population 2016'!AV$5","v":9.5026924295216978E-3},{"$f":"'Population 2016'!AW226/'Population 2016'!AW$5","v":4.1834462139239735E-3},{"$f":"'Population 2016'!AX226/'Population 2016'!AX$5","v":8.957665128998045E-3},{"$f":"'Population 2016'!AY226/'Population 2016'!AY$5","v":6.4594106667482639E-3},{"$f":"'Population 2016'!AZ226/'Population 2016'!AZ$5","v":6.3337379408736072E-3},{"$f":"'Population 2016'!BA226/'Population 2016'!BA$5","v":6.3431224357590158E-4},{"$f":"'Population 2016'!BB226/'Population 2016'!BB$5","v":3.991078765113276E-3},{"$f":"'Population 2016'!BC226/'Population 2016'!BC$5","v":0},224]
[null,"Female 75-79",{"$f":"'Population 2016'!C227/'Population 2016'!C$5","v":7.6819675650258365E-3},{"$f":"'Population 2016'!D227/'Population 2016'!D$5","v":6.9931437849045904E-3},{"$f":"'Population 2016'!E227/'Population 2016'!E$5","v":6.3613649042045016E-3},{"$f":"'Population 2016'!F227/'Population 2016'!F$5","v":5.1197527684779809E-3},{"$f":"'Population 2016'!G227/'Population 2016'!G$5","v":1.9758566556596115E-3},{"$f":"'Population 2016'!H227/'Population 2016'!H$5","v":4.046522033766411E-3},{"$f":"'Population 2016'!I227/'Population 2016'!I$5","v":2.7740557742232646E-3},{"$f":"'Population 2016'!J227/'Population 2016'!J$5","v":6.2031961387591953E-3},{"$f":"'Population 2016'!K227/'Population 2016'!K$5","v":3.8746869536455133E-3},{"$f":"'Population 2016'!L227/'Population 2016'!L$5","v":2.851333534541642E-3},{"$f":"'Population 2016'!M227/'Population 2016'!M$5","v":2.851333534541642E-3},{"$f":"'Population 2016'!N227/'Population 2016'!N$5","v":4.0427259063984377E-3},{"$f":"'Population 2016'!O227/'Population 2016'!O$5","v":2.3974400887647241E-3},{"$f":"'Population 2016'!P227/'Population 2016'!P$5","v":1.7265862729629211E-2},{"$f":"'Population 2016'!Q227/'Population 2016'!Q$5","v":4.571039118224228E-3},{"$f":"'Population 2016'!R227/'Population 2016'!R$5","v":1.4930537073508277E-2},{"$f":"'Population 2016'!S227/'Population 2016'!S$5","v":5.6781370979273431E-3},{"$f":"'Population 2016'!T227/'Population 2016'!T$5","v":8.7085801501142375E-3},{"$f":"'Population 2016'!U227/'Population 2016'!U$5","v":0},{"$f":"'Population 2016'!V227/'Population 2016'!V$5","v":3.4574610176994528E-3},{"$f":"'Population 2016'!W227/'Population 2016'!W$5","v":4.6705756999326706E-3},{"$f":"'Population 2016'!X227/'Population 2016'!X$5","v":4.6705756999326706E-3},{"$f":"'Population 2016'!Y227/'Population 2016'!Y$5","v":4.7733740322093449E-3},{"$f":"'Population 2016'!Z227/'Population 2016'!Z$5","v":1.4363616301736604E-3},{"$f":"'Population 2016'!AA227/'Population 2016'!AA$5","v":3.6255354092629539E-3},{"$f":"'Population 2016'!AB227/'Population 2016'!AB$5","v":6.51361780088636E-3},{"$f":"'Population 2016'!AC227/'Population 2016'!AC$5","v":4.3657598656243728E-3},{"$f":"'Population 2016'!AD227/'Population 2016'!AD$5","v":2.2553872492463434E-3},{"$f":"'Population 2016'!AE227/'Population 2016'!AE$5","v":2.3614205484655901E-3},{"$f":"'Population 2016'!AF227/'Population 2016'!AF$5","v":3.8456318146857893E-3},{"$f":"'Population 2016'!AG227/'Population 2016'!AG$5","v":2.3614205484655901E-3},{"$f":"'Population 2016'!AH227/'Population 2016'!AH$5","v":2.296053425968067E-3},{"$f":"'Population 2016'!AI227/'Population 2016'!AI$5","v":6.478858605302301E-3},{"$f":"'Population 2016'!AJ227/'Population 2016'!AJ$5","v":3.1927055739899061E-3},{"$f":"'Population 2016'!AK227/'Population 2016'!AK$5","v":4.0481249135687616E-3},{"$f":"'Population 2016'!AL227/'Population 2016'!AL$5","v":2.64273425444742E-3},{"$f":"'Population 2016'!AM227/'Population 2016'!AM$5","v":1.5647014933482077E-3},{"$f":"'Population 2016'!AN227/'Population 2016'!AN$5","v":1.2544998363695865E-3},{"$f":"'Population 2016'!AO227/'Population 2016'!AO$5","v":1.2544998363695865E-3},{"$f":"'Population 2016'!AP227/'Population 2016'!AP$5","v":6.190257280091308E-3},{"$f":"'Population 2016'!AQ227/'Population 2016'!AQ$5","v":3.6786869074368388E-3},{"$f":"'Population 2016'!AR227/'Population 2016'!AR$5","v":4.5201561314057734E-3},{"$f":"'Population 2016'!AS227/'Population 2016'!AS$5","v":2.7740557742232646E-3},{"$f":"'Population 2016'!AT227/'Population 2016'!AT$5","v":0},{"$f":"'Population 2016'!AU227/'Population 2016'!AU$5","v":0},{"$f":"'Population 2016'!AV227/'Population 2016'!AV$5","v":7.4754513778904023E-3},{"$f":"'Population 2016'!AW227/'Population 2016'!AW$5","v":3.0660809079260478E-3},{"$f":"'Population 2016'!AX227/'Population 2016'!AX$5","v":7.4625912058985137E-3},{"$f":"'Population 2016'!AY227/'Population 2016'!AY$5","v":4.9111104311373582E-3},{"$f":"'Population 2016'!AZ227/'Population 2016'!AZ$5","v":5.1227916769736124E-3},{"$f":"'Population 2016'!BA227/'Population 2016'!BA$5","v":4.4536817102137769E-4},{"$f":"'Population 2016'!BB227/'Population 2016'!BB$5","v":2.6100826526173327E-3},{"$f":"'Population 2016'!BC227/'Population 2016'!BC$5","v":0},225]
[null,"Female 80-84",{"$f":"'Population 2016'!C228/'Population 2016'!C$5","v":5.9953080198105833E-3},{"$f":"'Population 2016'!D228/'Population 2016'!D$5","v":5.3573349764776072E-3},{"$f":"'Population 2016'!E228/'Population 2016'!E$5","v":4.7721956318940179E-3},{"$f":"'Population 2016'!F228/'Population 2016'!F$5","v":4.0381148596446044E-3},{"$f":"'Population 2016'!G228/'Population 2016'!G$5","v":1.6510583013046067E-3},{"$f":"'Population 2016'!H228/'Population 2016'!H$5","v":3.0219219034217106E-3},{"$f":"'Population 2016'!I228/'Population 2016'!I$5","v":1.6644334645339587E-3},{"$f":"'Population 2016'!J228/'Population 2016'!J$5","v":4.262624084655383E-3},{"$f":"'Population 2016'!K228/'Population 2016'!K$5","v":2.4334924160090724E-3},{"$f":"'Population 2016'!L228/'Population 2016'!L$5","v":2.3033056407160898E-3},{"$f":"'Population 2016'!M228/'Population 2016'!M$5","v":2.3033056407160898E-3},{"$f":"'Population 2016'!N228/'Population 2016'!N$5","v":3.2470402906261803E-3},{"$f":"'Population 2016'!O228/'Population 2016'!O$5","v":1.9219147819022995E-3},{"$f":"'Population 2016'!P228/'Population 2016'!P$5","v":1.2735264284909275E-2},{"$f":"'Population 2016'!Q228/'Population 2016'!Q$5","v":3.2549558759591545E-3},{"$f":"'Population 2016'!R228/'Population 2016'!R$5","v":1.2415500079842445E-2},{"$f":"'Population 2016'!S228/'Population 2016'!S$5","v":4.4477122394615083E-3},{"$f":"'Population 2016'!T228/'Population 2016'!T$5","v":7.3451743344671782E-3},{"$f":"'Population 2016'!U228/'Population 2016'!U$5","v":0},{"$f":"'Population 2016'!V228/'Population 2016'!V$5","v":2.2744445546897061E-3},{"$f":"'Population 2016'!W228/'Population 2016'!W$5","v":3.4416488537642423E-3},{"$f":"'Population 2016'!X228/'Population 2016'!X$5","v":3.4416488537642423E-3},{"$f":"'Population 2016'!Y228/'Population 2016'!Y$5","v":3.2272936837252188E-3},{"$f":"'Population 2016'!Z228/'Population 2016'!Z$5","v":1.2214881248511856E-3},{"$f":"'Population 2016'!AA228/'Population 2016'!AA$5","v":2.7698107240640012E-3},{"$f":"'Population 2016'!AB228/'Population 2016'!AB$5","v":5.0274812441787869E-3},{"$f":"'Population 2016'!AC228/'Population 2016'!AC$5","v":3.3955910065967343E-3},{"$f":"'Population 2016'!AD228/'Population 2016'!AD$5","v":1.9241505080203952E-3},{"$f":"'Population 2016'!AE228/'Population 2016'!AE$5","v":2.0277415579215393E-3},{"$f":"'Population 2016'!AF228/'Population 2016'!AF$5","v":2.8050490883590462E-3},{"$f":"'Population 2016'!AG228/'Population 2016'!AG$5","v":2.0277415579215393E-3},{"$f":"'Population 2016'!AH228/'Population 2016'!AH$5","v":1.645876484957692E-3},{"$f":"'Population 2016'!AI228/'Population 2016'!AI$5","v":5.2320303613614489E-3},{"$f":"'Population 2016'!AJ228/'Population 2016'!AJ$5","v":2.1470596436438671E-3},{"$f":"'Population 2016'!AK228/'Population 2016'!AK$5","v":3.33153137296808E-3},{"$f":"'Population 2016'!AL228/'Population 2016'!AL$5","v":2.0751671662439476E-3},{"$f":"'Population 2016'!AM228/'Population 2016'!AM$5","v":9.960484043304563E-4},{"$f":"'Population 2016'!AN228/'Population 2016'!AN$5","v":1.4726737209556015E-3},{"$f":"'Population 2016'!AO228/'Population 2016'!AO$5","v":1.4726737209556015E-3},{"$f":"'Population 2016'!AP228/'Population 2016'!AP$5","v":4.7714915270358101E-3},{"$f":"'Population 2016'!AQ228/'Population 2016'!AQ$5","v":2.6100180851646847E-3},{"$f":"'Population 2016'!AR228/'Population 2016'!AR$5","v":3.4842406059727104E-3},{"$f":"'Population 2016'!AS228/'Population 2016'!AS$5","v":1.6644334645339587E-3},{"$f":"'Population 2016'!AT228/'Population 2016'!AT$5","v":0},{"$f":"'Population 2016'!AU228/'Population 2016'!AU$5","v":0},{"$f":"'Population 2016'!AV228/'Population 2016'!AV$5","v":5.3215077605321508E-3},{"$f":"'Population 2016'!AW228/'Population 2016'!AW$5","v":2.3300689486850938E-3},{"$f":"'Population 2016'!AX228/'Population 2016'!AX$5","v":5.2519263452470702E-3},{"$f":"'Population 2016'!AY228/'Population 2016'!AY$5","v":3.7498852544291792E-3},{"$f":"'Population 2016'!AZ228/'Population 2016'!AZ$5","v":4.0211469760859687E-3},{"$f":"'Population 2016'!BA228/'Population 2016'!BA$5","v":2.9691211401425179E-4},{"$f":"'Population 2016'!BB228/'Population 2016'!BB$5","v":1.6502903544326523E-3},{"$f":"'Population 2016'!BC228/'Population 2016'!BC$5","v":0},226]
[null,"Female 85-89",{"$f":"'Population 2016'!C229/'Population 2016'!C$5","v":4.3955369966215702E-3},{"$f":"'Population 2016'!D229/'Population 2016'!D$5","v":3.6824036853378714E-3},{"$f":"'Population 2016'!E229/'Population 2016'!E$5","v":3.028328465818797E-3},{"$f":"'Population 2016'!F229/'Population 2016'!F$5","v":2.6062322946175638E-3},{"$f":"'Population 2016'!G229/'Population 2016'!G$5","v":9.4732853353543013E-4},{"$f":"'Population 2016'!H229/'Population 2016'!H$5","v":1.7930502281032251E-3},{"$f":"'Population 2016'!I229/'Population 2016'!I$5","v":8.7932333975378944E-4},{"$f":"'Population 2016'!J229/'Population 2016'!J$5","v":2.3883963742816153E-3},{"$f":"'Population 2016'!K229/'Population 2016'!K$5","v":1.0631762982563908E-3},{"$f":"'Population 2016'!L229/'Population 2016'!L$5","v":1.2390195860403793E-3},{"$f":"'Population 2016'!M229/'Population 2016'!M$5","v":1.2390195860403793E-3},{"$f":"'Population 2016'!N229/'Population 2016'!N$5","v":2.1137910802838749E-3},{"$f":"'Population 2016'!O229/'Population 2016'!O$5","v":1.1689997127034605E-3},{"$f":"'Population 2016'!P229/'Population 2016'!P$5","v":7.4270258086329317E-3},{"$f":"'Population 2016'!Q229/'Population 2016'!Q$5","v":2.1386352686807442E-3},{"$f":"'Population 2016'!R229/'Population 2016'!R$5","v":8.6229839782828548E-3},{"$f":"'Population 2016'!S229/'Population 2016'!S$5","v":2.9630819582997189E-3},{"$f":"'Population 2016'!T229/'Population 2016'!T$5","v":5.1278949107271656E-3},{"$f":"'Population 2016'!U229/'Population 2016'!U$5","v":0},{"$f":"'Population 2016'!V229/'Population 2016'!V$5","v":1.2288106486746399E-3},{"$f":"'Population 2016'!W229/'Population 2016'!W$5","v":2.1310114460154662E-3},{"$f":"'Population 2016'!X229/'Population 2016'!X$5","v":2.1310114460154662E-3},{"$f":"'Population 2016'!Y229/'Population 2016'!Y$5","v":1.7845503251140682E-3},{"$f":"'Population 2016'!Z229/'Population 2016'!Z$5","v":8.1884227703970126E-4},{"$f":"'Population 2016'!AA229/'Population 2016'!AA$5","v":1.6974973374870529E-3},{"$f":"'Population 2016'!AB229/'Population 2016'!AB$5","v":3.4103354042352846E-3},{"$f":"'Population 2016'!AC229/'Population 2016'!AC$5","v":2.1637454723729419E-3},{"$f":"'Population 2016'!AD229/'Population 2016'!AD$5","v":1.1537459525847631E-3},{"$f":"'Population 2016'!AE229/'Population 2016'!AE$5","v":1.2320455035472644E-3},{"$f":"'Population 2016'!AF229/'Population 2016'!AF$5","v":1.9906799981902908E-3},{"$f":"'Population 2016'!AG229/'Population 2016'!AG$5","v":1.2320455035472644E-3},{"$f":"'Population 2016'!AH229/'Population 2016'!AH$5","v":8.6009121053658177E-4},{"$f":"'Population 2016'!AI229/'Population 2016'!AI$5","v":3.5832640650975589E-3},{"$f":"'Population 2016'!AJ229/'Population 2016'!AJ$5","v":8.7834258149067283E-4},{"$f":"'Population 2016'!AK229/'Population 2016'!AK$5","v":2.0114906402826146E-3},{"$f":"'Population 2016'!AL229/'Population 2016'!AL$5","v":1.179475355172842E-3},{"$f":"'Population 2016'!AM229/'Population 2016'!AM$5","v":4.4550528630053136E-4},{"$f":"'Population 2016'!AN229/'Population 2016'!AN$5","v":7.6360859605105274E-4},{"$f":"'Population 2016'!AO229/'Population 2016'!AO$5","v":7.6360859605105274E-4},{"$f":"'Population 2016'!AP229/'Population 2016'!AP$5","v":3.0753134758968342E-3},{"$f":"'Population 2016'!AQ229/'Population 2016'!AQ$5","v":1.5070970570504741E-3},{"$f":"'Population 2016'!AR229/'Population 2016'!AR$5","v":2.2197553323473201E-3},{"$f":"'Population 2016'!AS229/'Population 2016'!AS$5","v":8.7932333975378944E-4},{"$f":"'Population 2016'!AT229/'Population 2016'!AT$5","v":0},{"$f":"'Population 2016'!AU229/'Population 2016'!AU$5","v":0},{"$f":"'Population 2016'!AV229/'Population 2016'!AV$5","v":3.1886812374617253E-3},{"$f":"'Population 2016'!AW229/'Population 2016'!AW$5","v":1.2966013789737019E-3},{"$f":"'Population 2016'!AX229/'Population 2016'!AX$5","v":3.1051535325913337E-3},{"$f":"'Population 2016'!AY229/'Population 2016'!AY$5","v":2.3805881092989812E-3},{"$f":"'Population 2016'!AZ229/'Population 2016'!AZ$5","v":2.6002266569254045E-3},{"$f":"'Population 2016'!BA229/'Population 2016'!BA$5","v":1.349600518246599E-4},{"$f":"'Population 2016'!BB229/'Population 2016'!BB$5","v":1.1876566567465112E-3},{"$f":"'Population 2016'!BC229/'Population 2016'!BC$5","v":0},227]
[null,"Female 90+",{"$f":"'Population 2016'!C230/'Population 2016'!C$5","v":2.6782109142205845E-3},{"$f":"'Population 2016'!D230/'Population 2016'!D$5","v":2.2960007042046888E-3},{"$f":"'Population 2016'!E230/'Population 2016'!E$5","v":1.9454432094656361E-3},{"$f":"'Population 2016'!F230/'Population 2016'!F$5","v":1.3288694308524337E-3},{"$f":"'Population 2016'!G230/'Population 2016'!G$5","v":5.9546364965084176E-4},{"$f":"'Population 2016'!H230/'Population 2016'!H$5","v":1.1672659712787723E-3},{"$f":"'Population 2016'!I230/'Population 2016'!I$5","v":7.2230131479775563E-4},{"$f":"'Population 2016'!J230/'Population 2016'!J$5","v":1.3434729605334085E-3},{"$f":"'Population 2016'!K230/'Population 2016'!K$5","v":4.2527051930255636E-4},{"$f":"'Population 2016'!L230/'Population 2016'!L$5","v":7.2276142519022129E-4},{"$f":"'Population 2016'!M230/'Population 2016'!M$5","v":7.2276142519022129E-4},{"$f":"'Population 2016'!N230/'Population 2016'!N$5","v":9.4035572773084925E-4},{"$f":"'Population 2016'!O230/'Population 2016'!O$5","v":5.2505919299392718E-4},{"$f":"'Population 2016'!P230/'Population 2016'!P$5","v":4.3953567001014313E-3},{"$f":"'Population 2016'!Q230/'Population 2016'!Q$5","v":1.3395847287340924E-3},{"$f":"'Population 2016'!R230/'Population 2016'!R$5","v":4.7373183584393467E-3},{"$f":"'Population 2016'!S230/'Population 2016'!S$5","v":1.8853568849949954E-3},{"$f":"'Population 2016'!T230/'Population 2016'!T$5","v":3.1828313238996199E-3},{"$f":"'Population 2016'!U230/'Population 2016'!U$5","v":0},{"$f":"'Population 2016'!V230/'Population 2016'!V$5","v":9.3878080613031501E-4},{"$f":"'Population 2016'!W230/'Population 2016'!W$5","v":1.411958504108407E-3},{"$f":"'Population 2016'!X230/'Population 2016'!X$5","v":1.411958504108407E-3},{"$f":"'Population 2016'!Y230/'Population 2016'!Y$5","v":1.1327323889922258E-3},{"$f":"'Population 2016'!Z230/'Population 2016'!Z$5","v":5.3428006728831569E-4},{"$f":"'Population 2016'!AA230/'Population 2016'!AA$5","v":9.6468341840751494E-4},{"$f":"'Population 2016'!AB230/'Population 2016'!AB$5","v":2.1329948926849737E-3},{"$f":"'Population 2016'!AC230/'Population 2016'!AC$5","v":1.2597715035135007E-3},{"$f":"'Population 2016'!AD230/'Population 2016'!AD$5","v":6.4758643790241541E-4},{"$f":"'Population 2016'!AE230/'Population 2016'!AE$5","v":6.6735798108810153E-4},{"$f":"'Population 2016'!AF230/'Population 2016'!AF$5","v":1.3572818169479257E-3},{"$f":"'Population 2016'!AG230/'Population 2016'!AG$5","v":6.6735798108810153E-4},{"$f":"'Population 2016'!AH230/'Population 2016'!AH$5","v":4.3468972627550782E-4},{"$f":"'Population 2016'!AI230/'Population 2016'!AI$5","v":2.2352677399597514E-3},{"$f":"'Population 2016'!AJ230/'Population 2016'!AJ$5","v":6.4132950394557066E-4},{"$f":"'Population 2016'!AK230/'Population 2016'!AK$5","v":1.294897099681933E-3},{"$f":"'Population 2016'!AL230/'Population 2016'!AL$5","v":6.4738120998208612E-4},{"$f":"'Population 2016'!AM230/'Population 2016'!AM$5","v":2.3905161703930951E-4},{"$f":"'Population 2016'!AN230/'Population 2016'!AN$5","v":3.8180429802552637E-4},{"$f":"'Population 2016'!AO230/'Population 2016'!AO$5","v":3.8180429802552637E-4},{"$f":"'Population 2016'!AP230/'Population 2016'!AP$5","v":2.0924813341153719E-3},{"$f":"'Population 2016'!AQ230/'Population 2016'!AQ$5","v":6.7819367567271331E-4},{"$f":"'Population 2016'!AR230/'Population 2016'!AR$5","v":1.349363513451196E-3},{"$f":"'Population 2016'!AS230/'Population 2016'!AS$5","v":7.2230131479775563E-4},{"$f":"'Population 2016'!AT230/'Population 2016'!AT$5","v":0},{"$f":"'Population 2016'!AU230/'Population 2016'!AU$5","v":0},{"$f":"'Population 2016'!AV230/'Population 2016'!AV$5","v":2.4707000316756414E-3},{"$f":"'Population 2016'!AW230/'Population 2016'!AW$5","v":6.4067362255171149E-4},{"$f":"'Population 2016'!AX230/'Population 2016'!AX$5","v":1.8400909822763459E-3},{"$f":"'Population 2016'!AY230/'Population 2016'!AY$5","v":1.4412043695113369E-3},{"$f":"'Population 2016'!AZ230/'Population 2016'!AZ$5","v":1.4669420299026066E-3},{"$f":"'Population 2016'!BA230/'Population 2016'!BA$5","v":9.4472036277261928E-5},{"$f":"'Population 2016'!BB230/'Population 2016'!BB$5","v":7.3883292018532966E-4},{"$f":"'Population 2016'!BC230/'Population 2016'!BC$5","v":0},228]
[null,"Male 0-4",{"$f":"'Population 2016'!C231/'Population 2016'!C$5","v":0},{"$f":"'Population 2016'!D231/'Population 2016'!D$5","v":0},{"$f":"'Population 2016'!E231/'Population 2016'!E$5","v":0},{"$f":"'Population 2016'!F231/'Population 2016'!F$5","v":0},{"$f":"'Population 2016'!G231/'Population 2016'!G$5","v":0},{"$f":"'Population 2016'!H231/'Population 2016'!H$5","v":0},{"$f":"'Population 2016'!I231/'Population 2016'!I$5","v":0},{"$f":"'Population 2016'!J231/'Population 2016'!J$5","v":0},{"$f":"'Population 2016'!K231/'Population 2016'!K$5","v":0},{"$f":"'Population 2016'!L231/'Population 2016'!L$5","v":0},{"$f":"'Population 2016'!M231/'Population 2016'!M$5","v":0},{"$f":"'Population 2016'!N231/'Population 2016'!N$5","v":0},{"$f":"'Population 2016'!O231/'Population 2016'!O$5","v":0},{"$f":"'Population 2016'!P231/'Population 2016'!P$5","v":0},{"$f":"'Population 2016'!Q231/'Population 2016'!Q$5","v":0},{"$f":"'Population 2016'!R231/'Population 2016'!R$5","v":0},{"$f":"'Population 2016'!S231/'Population 2016'!S$5","v":0},{"$f":"'Population 2016'!T231/'Population 2016'!T$5","v":0},{"$f":"'Population 2016'!U231/'Population 2016'!U$5","v":0},{"$f":"'Population 2016'!V231/'Population 2016'!V$5","v":0},{"$f":"'Population 2016'!W231/'Population 2016'!W$5","v":0},{"$f":"'Population 2016'!X231/'Population 2016'!X$5","v":0},{"$f":"'Population 2016'!Y231/'Population 2016'!Y$5","v":0},{"$f":"'Population 2016'!Z231/'Population 2016'!Z$5","v":0},{"$f":"'Population 2016'!AA231/'Population 2016'!AA$5","v":0},{"$f":"'Population 2016'!AB231/'Population 2016'!AB$5","v":0},{"$f":"'Population 2016'!AC231/'Population 2016'!AC$5","v":0},{"$f":"'Population 2016'!AD231/'Population 2016'!AD$5","v":0},{"$f":"'Population 2016'!AE231/'Population 2016'!AE$5","v":0},{"$f":"'Population 2016'!AF231/'Population 2016'!AF$5","v":0},{"$f":"'Population 2016'!AG231/'Population 2016'!AG$5","v":0},{"$f":"'Population 2016'!AH231/'Population 2016'!AH$5","v":0},{"$f":"'Population 2016'!AI231/'Population 2016'!AI$5","v":0},{"$f":"'Population 2016'!AJ231/'Population 2016'!AJ$5","v":0},{"$f":"'Population 2016'!AK231/'Population 2016'!AK$5","v":0},{"$f":"'Population 2016'!AL231/'Population 2016'!AL$5","v":0},{"$f":"'Population 2016'!AM231/'Population 2016'!AM$5","v":0},{"$f":"'Population 2016'!AN231/'Population 2016'!AN$5","v":0},{"$f":"'Population 2016'!AO231/'Population 2016'!AO$5","v":0},{"$f":"'Population 2016'!AP231/'Population 2016'!AP$5","v":0},{"$f":"'Population 2016'!AQ231/'Population 2016'!AQ$5","v":0},{"$f":"'Population 2016'!AR231/'Population 2016'!AR$5","v":0},{"$f":"'Population 2016'!AS231/'Population 2016'!AS$5","v":0},{"$f":"'Population 2016'!AT231/'Population 2016'!AT$5","v":0},{"$f":"'Population 2016'!AU231/'Population 2016'!AU$5","v":0},{"$f":"'Population 2016'!AV231/'Population 2016'!AV$5","v":0},{"$f":"'Population 2016'!AW231/'Population 2016'!AW$5","v":0},{"$f":"'Population 2016'!AX231/'Population 2016'!AX$5","v":0},{"$f":"'Population 2016'!AY231/'Population 2016'!AY$5","v":0},{"$f":"'Population 2016'!AZ231/'Population 2016'!AZ$5","v":0},{"$f":"'Population 2016'!BA231/'Population 2016'!BA$5","v":0},{"$f":"'Population 2016'!BB231/'Population 2016'!BB$5","v":0},{"$f":"'Population 2016'!BC231/'Population 2016'!BC$5","v":0},229]
[null,"Male 5-9",{"$f":"'Population 2016'!C232/'Population 2016'!C$5","v":0},{"$f":"'Population 2016'!D232/'Population 2016'!D$5","v":0},{"$f":"'Population 2016'!E232/'Population 2016'!E$5","v":0},{"$f":"'Population 2016'!F232/'Population 2016'!F$5","v":0},{"$f":"'Population 2016'!G232/'Population 2016'!G$5","v":0},{"$f":"'Population 2016'!H232/'Population 2016'!H$5","v":0},{"$f":"'Population 2016'!I232/'Population 2016'!I$5","v":0},{"$f":"'Population 2016'!J232/'Population 2016'!J$5","v":0},{"$f":"'Population 2016'!K232/'Population 2016'!K$5","v":0},{"$f":"'Population 2016'!L232/'Population 2016'!L$5","v":0},{"$f":"'Population 2016'!M232/'Population 2016'!M$5","v":0},{"$f":"'Population 2016'!N232/'Population 2016'!N$5","v":0},{"$f":"'Population 2016'!O232/'Population 2016'!O$5","v":0},{"$f":"'Population 2016'!P232/'Population 2016'!P$5","v":0},{"$f":"'Population 2016'!Q232/'Population 2016'!Q$5","v":0},{"$f":"'Population 2016'!R232/'Population 2016'!R$5","v":0},{"$f":"'Population 2016'!S232/'Population 2016'!S$5","v":0},{"$f":"'Population 2016'!T232/'Population 2016'!T$5","v":0},{"$f":"'Population 2016'!U232/'Population 2016'!U$5","v":0},{"$f":"'Population 2016'!V232/'Population 2016'!V$5","v":0},{"$f":"'Population 2016'!W232/'Population 2016'!W$5","v":0},{"$f":"'Population 2016'!X232/'Population 2016'!X$5","v":0},{"$f":"'Population 2016'!Y232/'Population 2016'!Y$5","v":0},{"$f":"'Population 2016'!Z232/'Population 2016'!Z$5","v":0},{"$f":"'Population 2016'!AA232/'Population 2016'!AA$5","v":0},{"$f":"'Population 2016'!AB232/'Population 2016'!AB$5","v":0},{"$f":"'Population 2016'!AC232/'Population 2016'!AC$5","v":0},{"$f":"'Population 2016'!AD232/'Population 2016'!AD$5","v":0},{"$f":"'Population 2016'!AE232/'Population 2016'!AE$5","v":0},{"$f":"'Population 2016'!AF232/'Population 2016'!AF$5","v":0},{"$f":"'Population 2016'!AG232/'Population 2016'!AG$5","v":0},{"$f":"'Population 2016'!AH232/'Population 2016'!AH$5","v":0},{"$f":"'Population 2016'!AI232/'Population 2016'!AI$5","v":0},{"$f":"'Population 2016'!AJ232/'Population 2016'!AJ$5","v":0},{"$f":"'Population 2016'!AK232/'Population 2016'!AK$5","v":0},{"$f":"'Population 2016'!AL232/'Population 2016'!AL$5","v":0},{"$f":"'Population 2016'!AM232/'Population 2016'!AM$5","v":0},{"$f":"'Population 2016'!AN232/'Population 2016'!AN$5","v":0},{"$f":"'Population 2016'!AO232/'Population 2016'!AO$5","v":0},{"$f":"'Population 2016'!AP232/'Population 2016'!AP$5","v":0},{"$f":"'Population 2016'!AQ232/'Population 2016'!AQ$5","v":0},{"$f":"'Population 2016'!AR232/'Population 2016'!AR$5","v":0},{"$f":"'Population 2016'!AS232/'Population 2016'!AS$5","v":0},{"$f":"'Population 2016'!AT232/'Population 2016'!AT$5","v":0},{"$f":"'Population 2016'!AU232/'Population 2016'!AU$5","v":0},{"$f":"'Population 2016'!AV232/'Population 2016'!AV$5","v":0},{"$f":"'Population 2016'!AW232/'Population 2016'!AW$5","v":0},{"$f":"'Population 2016'!AX232/'Population 2016'!AX$5","v":0},{"$f":"'Population 2016'!AY232/'Population 2016'!AY$5","v":0},{"$f":"'Population 2016'!AZ232/'Population 2016'!AZ$5","v":0},{"$f":"'Population 2016'!BA232/'Population 2016'!BA$5","v":0},{"$f":"'Population 2016'!BB232/'Population 2016'!BB$5","v":0},{"$f":"'Population 2016'!BC232/'Population 2016'!BC$5","v":0},230]
[null,"Male 10-15",{"$f":"'Population 2016'!C233/'Population 2016'!C$5","v":0},{"$f":"'Population 2016'!D233/'Population 2016'!D$5","v":0},{"$f":"'Population 2016'!E233/'Population 2016'!E$5","v":0},{"$f":"'Population 2016'!F233/'Population 2016'!F$5","v":0},{"$f":"'Population 2016'!G233/'Population 2016'!G$5","v":0},{"$f":"'Population 2016'!H233/'Population 2016'!H$5","v":0},{"$f":"'Population 2016'!I233/'Population 2016'!I$5","v":0},{"$f":"'Population 2016'!J233/'Population 2016'!J$5","v":0},{"$f":"'Population 2016'!K233/'Population 2016'!K$5","v":0},{"$f":"'Population 2016'!L233/'Population 2016'!L$5","v":0},{"$f":"'Population 2016'!M233/'Population 2016'!M$5","v":0},{"$f":"'Population 2016'!N233/'Population 2016'!N$5","v":0},{"$f":"'Population 2016'!O233/'Population 2016'!O$5","v":0},{"$f":"'Population 2016'!P233/'Population 2016'!P$5","v":0},{"$f":"'Population 2016'!Q233/'Population 2016'!Q$5","v":0},{"$f":"'Population 2016'!R233/'Population 2016'!R$5","v":0},{"$f":"'Population 2016'!S233/'Population 2016'!S$5","v":0},{"$f":"'Population 2016'!T233/'Population 2016'!T$5","v":0},{"$f":"'Population 2016'!U233/'Population 2016'!U$5","v":0},{"$f":"'Population 2016'!V233/'Population 2016'!V$5","v":0},{"$f":"'Population 2016'!W233/'Population 2016'!W$5","v":0},{"$f":"'Population 2016'!X233/'Population 2016'!X$5","v":0},{"$f":"'Population 2016'!Y233/'Population 2016'!Y$5","v":0},{"$f":"'Population 2016'!Z233/'Population 2016'!Z$5","v":0},{"$f":"'Population 2016'!AA233/'Population 2016'!AA$5","v":0},{"$f":"'Population 2016'!AB233/'Population 2016'!AB$5","v":0},{"$f":"'Population 2016'!AC233/'Population 2016'!AC$5","v":0},{"$f":"'Population 2016'!AD233/'Population 2016'!AD$5","v":0},{"$f":"'Population 2016'!AE233/'Population 2016'!AE$5","v":0},{"$f":"'Population 2016'!AF233/'Population 2016'!AF$5","v":0},{"$f":"'Population 2016'!AG233/'Population 2016'!AG$5","v":0},{"$f":"'Population 2016'!AH233/'Population 2016'!AH$5","v":0},{"$f":"'Population 2016'!AI233/'Population 2016'!AI$5","v":0},{"$f":"'Population 2016'!AJ233/'Population 2016'!AJ$5","v":0},{"$f":"'Population 2016'!AK233/'Population 2016'!AK$5","v":0},{"$f":"'Population 2016'!AL233/'Population 2016'!AL$5","v":0},{"$f":"'Population 2016'!AM233/'Population 2016'!AM$5","v":0},{"$f":"'Population 2016'!AN233/'Population 2016'!AN$5","v":0},{"$f":"'Population 2016'!AO233/'Population 2016'!AO$5","v":0},{"$f":"'Population 2016'!AP233/'Population 2016'!AP$5","v":0},{"$f":"'Population 2016'!AQ233/'Population 2016'!AQ$5","v":0},{"$f":"'Population 2016'!AR233/'Population 2016'!AR$5","v":0},{"$f":"'Population 2016'!AS233/'Population 2016'!AS$5","v":0},{"$f":"'Population 2016'!AT233/'Population 2016'!AT$5","v":0},{"$f":"'Population 2016'!AU233/'Population 2016'!AU$5","v":0},{"$f":"'Population 2016'!AV233/'Population 2016'!AV$5","v":0},{"$f":"'Population 2016'!AW233/'Population 2016'!AW$5","v":0},{"$f":"'Population 2016'!AX233/'Population 2016'!AX$5","v":0},{"$f":"'Population 2016'!AY233/'Population 2016'!AY$5","v":0},{"$f":"'Population 2016'!AZ233/'Population 2016'!AZ$5","v":0},{"$f":"'Population 2016'!BA233/'Population 2016'!BA$5","v":0},{"$f":"'Population 2016'!BB233/'Population 2016'!BB$5","v":0},{"$f":"'Population 2016'!BC233/'Population 2016'!BC$5","v":0},231]
[null,"Male 16-19",{"$f":"'Population 2016'!C234/'Population 2016'!C$5","v":9.3686271102410897E-3},{"$f":"'Population 2016'!D234/'Population 2016'!D$5","v":9.8735365746310255E-3},{"$f":"'Population 2016'!E234/'Population 2016'!E$5","v":1.0336631992461993E-2},{"$f":"'Population 2016'!F234/'Population 2016'!F$5","v":5.1815606489827451E-3},{"$f":"'Population 2016'!G234/'Population 2016'!G$5","v":4.5471769609700648E-3},{"$f":"'Population 2016'!H234/'Population 2016'!H$5","v":3.7449783245193944E-3},{"$f":"'Population 2016'!I234/'Population 2016'!I$5","v":3.0566954191441251E-3},{"$f":"'Population 2016'!J234/'Population 2016'!J$5","v":9.9184793876417078E-3},{"$f":"'Population 2016'!K234/'Population 2016'!K$5","v":3.7093039739167417E-3},{"$f":"'Population 2016'!L234/'Population 2016'!L$5","v":2.2635934744968467E-3},{"$f":"'Population 2016'!M234/'Population 2016'!M$5","v":2.2635934744968467E-3},{"$f":"'Population 2016'!N234/'Population 2016'!N$5","v":5.111677289203591E-3},{"$f":"'Population 2016'!O234/'Population 2016'!O$5","v":3.3286771480369719E-3},{"$f":"'Population 2016'!P234/'Population 2016'!P$5","v":1.6431871971148426E-2},{"$f":"'Population 2016'!Q234/'Population 2016'!Q$5","v":4.1832645914854118E-3},{"$f":"'Population 2016'!R234/'Population 2016'!R$5","v":1.9920689838718263E-2},{"$f":"'Population 2016'!S234/'Population 2016'!S$5","v":7.9412714860954935E-3},{"$f":"'Population 2016'!T234/'Population 2016'!T$5","v":1.151217060720418E-2},{"$f":"'Population 2016'!U234/'Population 2016'!U$5","v":0},{"$f":"'Population 2016'!V234/'Population 2016'!V$5","v":5.4037139084574231E-3},{"$f":"'Population 2016'!W234/'Population 2016'!W$5","v":7.1251609698063136E-3},{"$f":"'Population 2016'!X234/'Population 2016'!X$5","v":7.1251609698063136E-3},{"$f":"'Population 2016'!Y234/'Population 2016'!Y$5","v":7.5674472583901684E-3},{"$f":"'Population 2016'!Z234/'Population 2016'!Z$5","v":2.5475093063457373E-3},{"$f":"'Population 2016'!AA234/'Population 2016'!AA$5","v":4.8798896062005491E-3},{"$f":"'Population 2016'!AB234/'Population 2016'!AB$5","v":9.5022670747059966E-3},{"$f":"'Population 2016'!AC234/'Population 2016'!AC$5","v":5.6007082853247996E-3},{"$f":"'Population 2016'!AD234/'Population 2016'!AD$5","v":3.1039487885667497E-3},{"$f":"'Population 2016'!AE234/'Population 2016'!AE$5","v":2.5564944198605737E-3},{"$f":"'Population 2016'!AF234/'Population 2016'!AF$5","v":3.0915863608258305E-3},{"$f":"'Population 2016'!AG234/'Population 2016'!AG$5","v":2.5564944198605737E-3},{"$f":"'Population 2016'!AH234/'Population 2016'!AH$5","v":3.5852614175714962E-3},{"$f":"'Population 2016'!AI234/'Population 2016'!AI$5","v":8.9205639163531369E-3},{"$f":"'Population 2016'!AJ234/'Population 2016'!AJ$5","v":4.8796810082815155E-3},{"$f":"'Population 2016'!AK234/'Population 2016'!AK$5","v":7.5933771670668691E-3},{"$f":"'Population 2016'!AL234/'Population 2016'!AL$5","v":2.7757577907451094E-3},{"$f":"'Population 2016'!AM234/'Population 2016'!AM$5","v":2.9809012245962381E-3},{"$f":"'Population 2016'!AN234/'Population 2016'!AN$5","v":1.636304134395113E-3},{"$f":"'Population 2016'!AO234/'Population 2016'!AO$5","v":1.636304134395113E-3},{"$f":"'Population 2016'!AP234/'Population 2016'!AP$5","v":4.5654138198880836E-3},{"$f":"'Population 2016'!AQ234/'Population 2016'!AQ$5","v":5.6927166109497452E-3},{"$f":"'Population 2016'!AR234/'Population 2016'!AR$5","v":5.9942750629736388E-3},{"$f":"'Population 2016'!AS234/'Population 2016'!AS$5","v":3.0566954191441251E-3},{"$f":"'Population 2016'!AT234/'Population 2016'!AT$5","v":0},{"$f":"'Population 2016'!AU234/'Population 2016'!AU$5","v":0},{"$f":"'Population 2016'!AV234/'Population 2016'!AV$5","v":5.3426248548199768E-3},{"$f":"'Population 2016'!AW234/'Population 2016'!AW$5","v":4.2215815485996703E-3},{"$f":"'Population 2016'!AX234/'Population 2016'!AX$5","v":1.32767675735078E-2},{"$f":"'Population 2016'!AY234/'Population 2016'!AY$5","v":5.9591199779688506E-3},{"$f":"'Population 2016'!AZ234/'Population 2016'!AZ$5","v":4.9329521201626871E-3},{"$f":"'Population 2016'!BA234/'Population 2016'!BA$5","v":1.4575685597063269E-3},{"$f":"'Population 2016'!BB234/'Population 2016'!BB$5","v":6.0142380699198328E-3},{"$f":"'Population 2016'!BC234/'Population 2016'!BC$5","v":0},232]
[null,"Male 20-24",{"$f":"'Population 2016'!C235/'Population 2016'!C$5","v":1.5593934158944662E-2},{"$f":"'Population 2016'!D235/'Population 2016'!D$5","v":1.3282082880979627E-2},{"$f":"'Population 2016'!E235/'Population 2016'!E$5","v":1.1161687425873926E-2},{"$f":"'Population 2016'!F235/'Population 2016'!F$5","v":5.4081895441668816E-3},{"$f":"'Population 2016'!G235/'Population 2016'!G$5","v":1.2044605640664754E-2},{"$f":"'Population 2016'!H235/'Population 2016'!H$5","v":4.0919157104272515E-3},{"$f":"'Population 2016'!I235/'Population 2016'!I$5","v":2.5123523992965414E-3},{"$f":"'Population 2016'!J235/'Population 2016'!J$5","v":1.1237073219276349E-2},{"$f":"'Population 2016'!K235/'Population 2016'!K$5","v":3.8746869536455133E-3},{"$f":"'Population 2016'!L235/'Population 2016'!L$5","v":2.4859816053246072E-3},{"$f":"'Population 2016'!M235/'Population 2016'!M$5","v":2.4859816053246072E-3},{"$f":"'Population 2016'!N235/'Population 2016'!N$5","v":6.4860433528102172E-3},{"$f":"'Population 2016'!O235/'Population 2016'!O$5","v":3.774482123220495E-3},{"$f":"'Population 2016'!P235/'Population 2016'!P$5","v":1.9519891806604305E-2},{"$f":"'Population 2016'!Q235/'Population 2016'!Q$5","v":5.3113359419983313E-3},{"$f":"'Population 2016'!R235/'Population 2016'!R$5","v":2.1836908500558899E-2},{"$f":"'Population 2016'!S235/'Population 2016'!S$5","v":1.2913282409867407E-2},{"$f":"'Population 2016'!T235/'Population 2016'!T$5","v":2.1018785219378045E-2},{"$f":"'Population 2016'!U235/'Population 2016'!U$5","v":0},{"$f":"'Population 2016'!V235/'Population 2016'!V$5","v":6.3501270788652205E-3},{"$f":"'Population 2016'!W235/'Population 2016'!W$5","v":1.1687878728452925E-2},{"$f":"'Population 2016'!X235/'Population 2016'!X$5","v":1.1687878728452925E-2},{"$f":"'Population 2016'!Y235/'Population 2016'!Y$5","v":8.6922306481613965E-3},{"$f":"'Population 2016'!Z235/'Population 2016'!Z$5","v":6.0822752587677102E-3},{"$f":"'Population 2016'!AA235/'Population 2016'!AA$5","v":6.671729261465747E-3},{"$f":"'Population 2016'!AB235/'Population 2016'!AB$5","v":1.2730417694441318E-2},{"$f":"'Population 2016'!AC235/'Population 2016'!AC$5","v":8.0695708295667745E-3},{"$f":"'Population 2016'!AD235/'Population 2016'!AD$5","v":5.1062562804719191E-3},{"$f":"'Population 2016'!AE235/'Population 2016'!AE$5","v":2.4743580529574226E-3},{"$f":"'Population 2016'!AF235/'Population 2016'!AF$5","v":2.8201299974362454E-3},{"$f":"'Population 2016'!AG235/'Population 2016'!AG$5","v":2.4743580529574226E-3},{"$f":"'Population 2016'!AH235/'Population 2016'!AH$5","v":4.1611324224664001E-3},{"$f":"'Population 2016'!AI235/'Population 2016'!AI$5","v":1.478421121707936E-2},{"$f":"'Population 2016'!AJ235/'Population 2016'!AJ$5","v":5.4791846750132447E-3},{"$f":"'Population 2016'!AK235/'Population 2016'!AK$5","v":9.8940195868901099E-3},{"$f":"'Population 2016'!AL235/'Population 2016'!AL$5","v":2.9265177985491565E-3},{"$f":"'Population 2016'!AM235/'Population 2016'!AM$5","v":3.3503446327478982E-3},{"$f":"'Population 2016'!AN235/'Population 2016'!AN$5","v":2.563543143885677E-3},{"$f":"'Population 2016'!AO235/'Population 2016'!AO$5","v":2.563543143885677E-3},{"$f":"'Population 2016'!AP235/'Population 2016'!AP$5","v":5.2708336635860688E-3},{"$f":"'Population 2016'!AQ235/'Population 2016'!AQ$5","v":6.5969748451800295E-3},{"$f":"'Population 2016'!AR235/'Population 2016'!AR$5","v":8.4809178790776919E-3},{"$f":"'Population 2016'!AS235/'Population 2016'!AS$5","v":2.5123523992965414E-3},{"$f":"'Population 2016'!AT235/'Population 2016'!AT$5","v":0},{"$f":"'Population 2016'!AU235/'Population 2016'!AU$5","v":0},{"$f":"'Population 2016'!AV235/'Population 2016'!AV$5","v":5.8177594762960621E-3},{"$f":"'Population 2016'!AW235/'Population 2016'!AW$5","v":5.0147965098541704E-3},{"$f":"'Population 2016'!AX235/'Population 2016'!AX$5","v":1.5219085832577278E-2},{"$f":"'Population 2016'!AY235/'Population 2016'!AY$5","v":8.5263608824699359E-3},{"$f":"'Population 2016'!AZ235/'Population 2016'!AZ$5","v":5.7440847719911871E-3},{"$f":"'Population 2016'!BA235/'Population 2016'!BA$5","v":1.8489527099978407E-3},{"$f":"'Population 2016'!BB235/'Population 2016'!BB$5","v":6.4561568259185352E-3},{"$f":"'Population 2016'!BC235/'Population 2016'!BC$5","v":0},233]
[null,"Male 25-29",{"$f":"'Population 2016'!C236/'Population 2016'!C$5","v":2.2790348218529745E-2},{"$f":"'Population 2016'!D236/'Population 2016'!D$5","v":1.6497461928934011E-2},{"$f":"'Population 2016'!E236/'Population 2016'!E$5","v":1.0725720634355122E-2},{"$f":"'Population 2016'!F236/'Population 2016'!F$5","v":4.2338398145763583E-3},{"$f":"'Population 2016'!G236/'Population 2016'!G$5","v":9.4191522762951327E-3},{"$f":"'Population 2016'!H236/'Population 2016'!H$5","v":2.8565592241572178E-3},{"$f":"'Population 2016'!I236/'Population 2016'!I$5","v":1.7377104095134411E-3},{"$f":"'Population 2016'!J236/'Population 2016'!J$5","v":5.8714744201089708E-3},{"$f":"'Population 2016'!K236/'Population 2016'!K$5","v":2.7170060955441101E-3},{"$f":"'Population 2016'!L236/'Population 2016'!L$5","v":2.0729750766444806E-3},{"$f":"'Population 2016'!M236/'Population 2016'!M$5","v":2.0729750766444806E-3},{"$f":"'Population 2016'!N236/'Population 2016'!N$5","v":6.0279213316080079E-3},{"$f":"'Population 2016'!O236/'Population 2016'!O$5","v":3.0314738312479566E-3},{"$f":"'Population 2016'!P236/'Population 2016'!P$5","v":1.5789473684210527E-2},{"$f":"'Population 2016'!Q236/'Population 2016'!Q$5","v":4.0305049294367869E-3},{"$f":"'Population 2016'!R236/'Population 2016'!R$5","v":1.5303135146643956E-2},{"$f":"'Population 2016'!S236/'Population 2016'!S$5","v":1.1080884987934069E-2},{"$f":"'Population 2016'!T236/'Population 2016'!T$5","v":2.0599991624128094E-2},{"$f":"'Population 2016'!U236/'Population 2016'!U$5","v":0},{"$f":"'Population 2016'!V236/'Population 2016'!V$5","v":6.2356416147029865E-3},{"$f":"'Population 2016'!W236/'Population 2016'!W$5","v":6.5106975467220992E-3},{"$f":"'Population 2016'!X236/'Population 2016'!X$5","v":6.5106975467220992E-3},{"$f":"'Population 2016'!Y236/'Population 2016'!Y$5","v":6.0611119060110328E-3},{"$f":"'Population 2016'!Z236/'Population 2016'!Z$5","v":6.4520125517099867E-3},{"$f":"'Population 2016'!AA236/'Population 2016'!AA$5","v":5.7608608271429492E-3},{"$f":"'Population 2016'!AB236/'Population 2016'!AB$5","v":1.5272816597238569E-2},{"$f":"'Population 2016'!AC236/'Population 2016'!AC$5","v":7.1655968607073342E-3},{"$f":"'Population 2016'!AD236/'Population 2016'!AD$5","v":4.4177304700584313E-3},{"$f":"'Population 2016'!AE236/'Population 2016'!AE$5","v":2.520559759340445E-3},{"$f":"'Population 2016'!AF236/'Population 2016'!AF$5","v":2.9860199972854364E-3},{"$f":"'Population 2016'!AG236/'Population 2016'!AG$5","v":2.520559759340445E-3},{"$f":"'Population 2016'!AH236/'Population 2016'!AH$5","v":3.2378811662316675E-3},{"$f":"'Population 2016'!AI236/'Population 2016'!AI$5","v":1.4212748271939803E-2},{"$f":"'Population 2016'!AJ236/'Population 2016'!AJ$5","v":5.242171597468143E-3},{"$f":"'Population 2016'!AK236/'Population 2016'!AK$5","v":8.9762769822611665E-3},{"$f":"'Population 2016'!AL236/'Population 2016'!AL$5","v":1.8800659796740036E-3},{"$f":"'Population 2016'!AM236/'Population 2016'!AM$5","v":2.8215334799033651E-3},{"$f":"'Population 2016'!AN236/'Population 2016'!AN$5","v":2.4544562015926695E-3},{"$f":"'Population 2016'!AO236/'Population 2016'!AO$5","v":2.4544562015926695E-3},{"$f":"'Population 2016'!AP236/'Population 2016'!AP$5","v":4.2325190621879108E-3},{"$f":"'Population 2016'!AQ236/'Population 2016'!AQ$5","v":5.1652326409820795E-3},{"$f":"'Population 2016'!AR236/'Population 2016'!AR$5","v":7.6368138089990094E-3},{"$f":"'Population 2016'!AS236/'Population 2016'!AS$5","v":1.7377104095134411E-3},{"$f":"'Population 2016'!AT236/'Population 2016'!AT$5","v":0},{"$f":"'Population 2016'!AU236/'Population 2016'!AU$5","v":0},{"$f":"'Population 2016'!AV236/'Population 2016'!AV$5","v":3.8327526132404181E-3},{"$f":"'Population 2016'!AW236/'Population 2016'!AW$5","v":3.676246262737202E-3},{"$f":"'Population 2016'!AX236/'Population 2016'!AX$5","v":7.5775968922907853E-3},{"$f":"'Population 2016'!AY236/'Population 2016'!AY$5","v":5.6408922615587042E-3},{"$f":"'Population 2016'!AZ236/'Population 2016'!AZ$5","v":4.8754249817351339E-3},{"$f":"'Population 2016'!BA236/'Population 2016'!BA$5","v":1.2416324767868712E-3},{"$f":"'Population 2016'!BB236/'Population 2016'!BB$5","v":5.6827990029208065E-3},{"$f":"'Population 2016'!BC236/'Population 2016'!BC$5","v":0},234]
[null,"Male 30-34",{"$f":"'Population 2016'!C237/'Population 2016'!C$5","v":1.9723694499956555E-2},{"$f":"'Population 2016'!D237/'Population 2016'!D$5","v":1.5971753567481393E-2},{"$f":"'Population 2016'!E237/'Population 2016'!E$5","v":1.2530529394943722E-2},{"$f":"'Population 2016'!F237/'Population 2016'!F$5","v":4.769508112284316E-3},{"$f":"'Population 2016'!G237/'Population 2016'!G$5","v":4.4389108428517293E-3},{"$f":"'Population 2016'!H237/'Population 2016'!H$5","v":2.5809547587163965E-3},{"$f":"'Population 2016'!I237/'Population 2016'!I$5","v":1.9366049744577506E-3},{"$f":"'Population 2016'!J237/'Population 2016'!J$5","v":4.8514301352595305E-3},{"$f":"'Population 2016'!K237/'Population 2016'!K$5","v":2.7878845154278692E-3},{"$f":"'Population 2016'!L237/'Population 2016'!L$5","v":2.3986148396422727E-3},{"$f":"'Population 2016'!M237/'Population 2016'!M$5","v":2.3986148396422727E-3},{"$f":"'Population 2016'!N237/'Population 2016'!N$5","v":4.1552471045884542E-3},{"$f":"'Population 2016'!O237/'Population 2016'!O$5","v":3.2494229302265682E-3},{"$f":"'Population 2016'!P237/'Population 2016'!P$5","v":1.3332581990307676E-2},{"$f":"'Population 2016'!Q237/'Population 2016'!Q$5","v":4.383027226472074E-3},{"$f":"'Population 2016'!R237/'Population 2016'!R$5","v":1.2468728376004684E-2},{"$f":"'Population 2016'!S237/'Population 2016'!S$5","v":9.4197231632334229E-3},{"$f":"'Population 2016'!T237/'Population 2016'!T$5","v":1.6365523049934157E-2},{"$f":"'Population 2016'!U237/'Population 2016'!U$5","v":0},{"$f":"'Population 2016'!V237/'Population 2016'!V$5","v":7.4186580777127328E-3},{"$f":"'Population 2016'!W237/'Population 2016'!W$5","v":6.3570816909510452E-3},{"$f":"'Population 2016'!X237/'Population 2016'!X$5","v":6.3570816909510452E-3},{"$f":"'Population 2016'!Y237/'Population 2016'!Y$5","v":6.1882958935470028E-3},{"$f":"'Population 2016'!Z237/'Population 2016'!Z$5","v":5.0369446923340493E-3},{"$f":"'Population 2016'!AA237/'Population 2016'!AA$5","v":4.8479992452614574E-3},{"$f":"'Population 2016'!AB237/'Population 2016'!AB$5","v":1.4511325138429731E-2},{"$f":"'Population 2016'!AC237/'Population 2016'!AC$5","v":5.8613506653620757E-3},{"$f":"'Population 2016'!AD237/'Population 2016'!AD$5","v":3.2081581004131153E-3},{"$f":"'Population 2016'!AE237/'Population 2016'!AE$5","v":2.741301245392663E-3},{"$f":"'Population 2016'!AF237/'Population 2016'!AF$5","v":2.8502918155906437E-3},{"$f":"'Population 2016'!AG237/'Population 2016'!AG$5","v":2.741301245392663E-3},{"$f":"'Population 2016'!AH237/'Population 2016'!AH$5","v":3.0279668967054607E-3},{"$f":"'Population 2016'!AI237/'Population 2016'!AI$5","v":1.1678077697086359E-2},{"$f":"'Population 2016'!AJ237/'Population 2016'!AJ$5","v":5.3258232718958257E-3},{"$f":"'Population 2016'!AK237/'Population 2016'!AK$5","v":7.0025017914838519E-3},{"$f":"'Population 2016'!AL237/'Population 2016'!AL$5","v":1.7470424433763147E-3},{"$f":"'Population 2016'!AM237/'Population 2016'!AM$5","v":2.499175996320054E-3},{"$f":"'Population 2016'!AN237/'Population 2016'!AN$5","v":2.2362823170066545E-3},{"$f":"'Population 2016'!AO237/'Population 2016'!AO$5","v":2.2362823170066545E-3},{"$f":"'Population 2016'!AP237/'Population 2016'!AP$5","v":4.5020052946118608E-3},{"$f":"'Population 2016'!AQ237/'Population 2016'!AQ$5","v":4.6034964651723567E-3},{"$f":"'Population 2016'!AR237/'Population 2016'!AR$5","v":6.7198614858414857E-3},{"$f":"'Population 2016'!AS237/'Population 2016'!AS$5","v":1.9366049744577506E-3},{"$f":"'Population 2016'!AT237/'Population 2016'!AT$5","v":0},{"$f":"'Population 2016'!AU237/'Population 2016'!AU$5","v":0},{"$f":"'Population 2016'!AV237/'Population 2016'!AV$5","v":2.8613662760004223E-3},{"$f":"'Population 2016'!AW237/'Population 2016'!AW$5","v":3.5847214595155288E-3},{"$f":"'Population 2016'!AX237/'Population 2016'!AX$5","v":5.9675172827989825E-3},{"$f":"'Population 2016'!AY237/'Population 2016'!AY$5","v":5.344083718368471E-3},{"$f":"'Population 2016'!AZ237/'Population 2016'!AZ$5","v":4.4526005142926173E-3},{"$f":"'Population 2016'!BA237/'Population 2016'!BA$5","v":1.1336644353271432E-3},{"$f":"'Population 2016'!BB237/'Population 2016'!BB$5","v":5.1994503635472266E-3},{"$f":"'Population 2016'!BC237/'Population 2016'!BC$5","v":0},235]
[null,"Male 35-39",{"$f":"'Population 2016'!C238/'Population 2016'!C$5","v":1.6672374049976232E-2},{"$f":"'Population 2016'!D238/'Population 2016'!D$5","v":1.5536515947302015E-2},{"$f":"'Population 2016'!E238/'Population 2016'!E$5","v":1.449472386425963E-2},{"$f":"'Population 2016'!F238/'Population 2016'!F$5","v":5.1815606489827451E-3},{"$f":"'Population 2016'!G238/'Population 2016'!G$5","v":4.0058463703783898E-3},{"$f":"'Population 2016'!H238/'Population 2016'!H$5","v":3.5277371576425119E-3},{"$f":"'Population 2016'!I238/'Population 2016'!I$5","v":2.8263964492086088E-3},{"$f":"'Population 2016'!J238/'Population 2016'!J$5","v":5.9958700646028044E-3},{"$f":"'Population 2016'!K238/'Population 2016'!K$5","v":3.5439209941879697E-3},{"$f":"'Population 2016'!L238/'Population 2016'!L$5","v":2.5654059377630931E-3},{"$f":"'Population 2016'!M238/'Population 2016'!M$5","v":2.5654059377630931E-3},{"$f":"'Population 2016'!N238/'Population 2016'!N$5","v":4.5249596129270783E-3},{"$f":"'Population 2016'!O238/'Population 2016'!O$5","v":3.8042024548993968E-3},{"$f":"'Population 2016'!P238/'Population 2016'!P$5","v":1.5845824411134905E-2},{"$f":"'Population 2016'!Q238/'Population 2016'!Q$5","v":5.2878344555293121E-3},{"$f":"'Population 2016'!R238/'Population 2016'!R$5","v":1.8816202693351786E-2},{"$f":"'Population 2016'!S238/'Population 2016'!S$5","v":9.5697749752414515E-3},{"$f":"'Population 2016'!T238/'Population 2016'!T$5","v":1.5423237460621769E-2},{"$f":"'Population 2016'!U238/'Population 2016'!U$5","v":0},{"$f":"'Population 2016'!V238/'Population 2016'!V$5","v":8.1284679555185813E-3},{"$f":"'Population 2016'!W238/'Population 2016'!W$5","v":6.9159819321606237E-3},{"$f":"'Population 2016'!X238/'Population 2016'!X$5","v":6.9159819321606237E-3},{"$f":"'Population 2016'!Y238/'Population 2016'!Y$5","v":7.1064053035722798E-3},{"$f":"'Population 2016'!Z238/'Population 2016'!Z$5","v":4.2723047409612787E-3},{"$f":"'Population 2016'!AA238/'Population 2016'!AA$5","v":5.4884639941215436E-3},{"$f":"'Population 2016'!AB238/'Population 2016'!AB$5","v":1.3970911845081523E-2},{"$f":"'Population 2016'!AC238/'Population 2016'!AC$5","v":6.3123033546329185E-3},{"$f":"'Population 2016'!AD238/'Population 2016'!AD$5","v":3.7329264207823141E-3},{"$f":"'Population 2016'!AE238/'Population 2016'!AE$5","v":3.6294007125329828E-3},{"$f":"'Population 2016'!AF238/'Population 2016'!AF$5","v":2.8201299974362454E-3},{"$f":"'Population 2016'!AG238/'Population 2016'!AG$5","v":3.6294007125329828E-3},{"$f":"'Population 2016'!AH238/'Population 2016'!AH$5","v":4.0088052534296833E-3},{"$f":"'Population 2016'!AI238/'Population 2016'!AI$5","v":1.1560503981100709E-2},{"$f":"'Population 2016'!AJ238/'Population 2016'!AJ$5","v":6.0089786130552384E-3},{"$f":"'Population 2016'!AK238/'Population 2016'!AK$5","v":5.9213255723319464E-3},{"$f":"'Population 2016'!AL238/'Population 2016'!AL$5","v":2.4919742466433729E-3},{"$f":"'Population 2016'!AM238/'Population 2016'!AM$5","v":3.3177466849698108E-3},{"$f":"'Population 2016'!AN238/'Population 2016'!AN$5","v":3.3271517399367295E-3},{"$f":"'Population 2016'!AO238/'Population 2016'!AO$5","v":3.3271517399367295E-3},{"$f":"'Population 2016'!AP238/'Population 2016'!AP$5","v":5.2153512039693735E-3},{"$f":"'Population 2016'!AQ238/'Population 2016'!AQ$5","v":5.4940538170658191E-3},{"$f":"'Population 2016'!AR238/'Population 2016'!AR$5","v":7.1099449449884304E-3},{"$f":"'Population 2016'!AS238/'Population 2016'!AS$5","v":2.8263964492086088E-3},{"$f":"'Population 2016'!AT238/'Population 2016'!AT$5","v":0},{"$f":"'Population 2016'!AU238/'Population 2016'!AU$5","v":0},{"$f":"'Population 2016'!AV238/'Population 2016'!AV$5","v":4.4662654418751984E-3},{"$f":"'Population 2016'!AW238/'Population 2016'!AW$5","v":4.7364085667215812E-3},{"$f":"'Population 2016'!AX238/'Population 2016'!AX$5","v":7.3220287003079596E-3},{"$f":"'Population 2016'!AY238/'Population 2016'!AY$5","v":5.8749732260334753E-3},{"$f":"'Population 2016'!AZ238/'Population 2016'!AZ$5","v":4.9588393324550856E-3},{"$f":"'Population 2016'!BA238/'Population 2016'!BA$5","v":1.1741524508745412E-3},{"$f":"'Population 2016'!BB238/'Population 2016'!BB$5","v":6.5321116121058115E-3},{"$f":"'Population 2016'!BC238/'Population 2016'!BC$5","v":0},236]
[null,"Male 40-44",{"$f":"'Population 2016'!C239/'Population 2016'!C$5","v":1.5123713922096773E-2},{"$f":"'Population 2016'!D239/'Population 2016'!D$5","v":1.564165761959254E-2},{"$f":"'Population 2016'!E239/'Population 2016'!E$5","v":1.6116707841308087E-2},{"$f":"'Population 2016'!F239/'Population 2016'!F$5","v":6.737058975019315E-3},{"$f":"'Population 2016'!G239/'Population 2016'!G$5","v":4.6419098143236073E-3},{"$f":"'Population 2016'!H239/'Population 2016'!H$5","v":4.6042157755996019E-3},{"$f":"'Population 2016'!I239/'Population 2016'!I$5","v":3.9255506239008458E-3},{"$f":"'Population 2016'!J239/'Population 2016'!J$5","v":8.3925594818506748E-3},{"$f":"'Population 2016'!K239/'Population 2016'!K$5","v":5.0087416717856633E-3},{"$f":"'Population 2016'!L239/'Population 2016'!L$5","v":2.7877940685908536E-3},{"$f":"'Population 2016'!M239/'Population 2016'!M$5","v":2.7877940685908536E-3},{"$f":"'Population 2016'!N239/'Population 2016'!N$5","v":4.5490712982535104E-3},{"$f":"'Population 2016'!O239/'Population 2016'!O$5","v":4.7750666230768467E-3},{"$f":"'Population 2016'!P239/'Population 2016'!P$5","v":1.955370224275893E-2},{"$f":"'Population 2016'!Q239/'Population 2016'!Q$5","v":7.1797041162853549E-3},{"$f":"'Population 2016'!R239/'Population 2016'!R$5","v":2.2968009794006494E-2},{"$f":"'Population 2016'!S239/'Population 2016'!S$5","v":1.0433896880864157E-2},{"$f":"'Population 2016'!T239/'Population 2016'!T$5","v":1.5246413498182902E-2},{"$f":"'Population 2016'!U239/'Population 2016'!U$5","v":0},{"$f":"'Population 2016'!V239/'Population 2016'!V$5","v":9.2733225971409171E-3},{"$f":"'Population 2016'!W239/'Population 2016'!W$5","v":8.4325299550918748E-3},{"$f":"'Population 2016'!X239/'Population 2016'!X$5","v":8.4325299550918748E-3},{"$f":"'Population 2016'!Y239/'Population 2016'!Y$5","v":8.8512106325813588E-3},{"$f":"'Population 2016'!Z239/'Population 2016'!Z$5","v":3.8599799064235564E-3},{"$f":"'Population 2016'!AA239/'Population 2016'!AA$5","v":6.1794218144685239E-3},{"$f":"'Population 2016'!AB239/'Population 2016'!AB$5","v":1.427591783261517E-2},{"$f":"'Population 2016'!AC239/'Population 2016'!AC$5","v":6.9649435998849867E-3},{"$f":"'Population 2016'!AD239/'Population 2016'!AD$5","v":3.859466299452901E-3},{"$f":"'Population 2016'!AE239/'Population 2016'!AE$5","v":3.5626649144241728E-3},{"$f":"'Population 2016'!AF239/'Population 2016'!AF$5","v":3.6948227239137973E-3},{"$f":"'Population 2016'!AG239/'Population 2016'!AG$5","v":3.5626649144241728E-3},{"$f":"'Population 2016'!AH239/'Population 2016'!AH$5","v":4.7685834502103784E-3},{"$f":"'Population 2016'!AI239/'Population 2016'!AI$5","v":1.2121029836381136E-2},{"$f":"'Population 2016'!AJ239/'Population 2016'!AJ$5","v":6.6084822797869668E-3},{"$f":"'Population 2016'!AK239/'Population 2016'!AK$5","v":7.2539381215191781E-3},{"$f":"'Population 2016'!AL239/'Population 2016'!AL$5","v":3.1216189851191005E-3},{"$f":"'Population 2016'!AM239/'Population 2016'!AM$5","v":3.8936437623826926E-3},{"$f":"'Population 2016'!AN239/'Population 2016'!AN$5","v":2.508999672739173E-3},{"$f":"'Population 2016'!AO239/'Population 2016'!AO$5","v":2.508999672739173E-3},{"$f":"'Population 2016'!AP239/'Population 2016'!AP$5","v":5.6750630122219935E-3},{"$f":"'Population 2016'!AQ239/'Population 2016'!AQ$5","v":6.4394146983065706E-3},{"$f":"'Population 2016'!AR239/'Population 2016'!AR$5","v":7.8223874934475555E-3},{"$f":"'Population 2016'!AS239/'Population 2016'!AS$5","v":3.9255506239008458E-3},{"$f":"'Population 2016'!AT239/'Population 2016'!AT$5","v":0},{"$f":"'Population 2016'!AU239/'Population 2016'!AU$5","v":0},{"$f":"'Population 2016'!AV239/'Population 2016'!AV$5","v":6.1873086263330166E-3},{"$f":"'Population 2016'!AW239/'Population 2016'!AW$5","v":5.6897919336140095E-3},{"$f":"'Population 2016'!AX239/'Population 2016'!AX$5","v":1.0222727679313032E-2},{"$f":"'Population 2016'!AY239/'Population 2016'!AY$5","v":6.9092133043664513E-3},{"$f":"'Population 2016'!AZ239/'Population 2016'!AZ$5","v":5.5686269997871499E-3},{"$f":"'Population 2016'!BA239/'Population 2016'!BA$5","v":1.2686244871518032E-3},{"$f":"'Population 2016'!BB239/'Population 2016'!BB$5","v":8.4793161307250928E-3},{"$f":"'Population 2016'!BC239/'Population 2016'!BC$5","v":0},237]
[null,"Male 45-49",{"$f":"'Population 2016'!C240/'Population 2016'!C$5","v":1.5256602249901611E-2},{"$f":"'Population 2016'!D240/'Population 2016'!D$5","v":1.6062224308754633E-2},{"$f":"'Population 2016'!E240/'Population 2016'!E$5","v":1.6801128825842986E-2},{"$f":"'Population 2016'!F240/'Population 2016'!F$5","v":7.437548287406644E-3},{"$f":"'Population 2016'!G240/'Population 2016'!G$5","v":3.9246467817896386E-3},{"$f":"'Population 2016'!H240/'Population 2016'!H$5","v":5.6839367990324666E-3},{"$f":"'Population 2016'!I240/'Population 2016'!I$5","v":5.24453563353153E-3},{"$f":"'Population 2016'!J240/'Population 2016'!J$5","v":1.0756076727233523E-2},{"$f":"'Population 2016'!K240/'Population 2016'!K$5","v":7.1114681283371926E-3},{"$f":"'Population 2016'!L240/'Population 2016'!L$5","v":3.7647133575842294E-3},{"$f":"'Population 2016'!M240/'Population 2016'!M$5","v":3.7647133575842294E-3},{"$f":"'Population 2016'!N240/'Population 2016'!N$5","v":6.2931498701987608E-3},{"$f":"'Population 2016'!O240/'Population 2016'!O$5","v":5.7558375684805974E-3},{"$f":"'Population 2016'!P240/'Population 2016'!P$5","v":2.3092527893609827E-2},{"$f":"'Population 2016'!Q240/'Population 2016'!Q$5","v":7.9552531697629873E-3},{"$f":"'Population 2016'!R240/'Population 2016'!R$5","v":2.6467770266673765E-2},{"$f":"'Population 2016'!S240/'Population 2016'!S$5","v":1.1414529605222509E-2},{"$f":"'Population 2016'!T240/'Population 2016'!T$5","v":1.5972322396616147E-2},{"$f":"'Population 2016'!U240/'Population 2016'!U$5","v":0},{"$f":"'Population 2016'!V240/'Population 2016'!V$5","v":1.0059456117721587E-2},{"$f":"'Population 2016'!W240/'Population 2016'!W$5","v":9.2659776832114214E-3},{"$f":"'Population 2016'!X240/'Population 2016'!X$5","v":9.2659776832114214E-3},{"$f":"'Population 2016'!Y240/'Population 2016'!Y$5","v":1.0393316481454985E-2},{"$f":"'Population 2016'!Z240/'Population 2016'!Z$5","v":3.9974215179361299E-3},{"$f":"'Population 2016'!AA240/'Population 2016'!AA$5","v":7.1487559105129894E-3},{"$f":"'Population 2016'!AB240/'Population 2016'!AB$5","v":1.4812237085862255E-2},{"$f":"'Population 2016'!AC240/'Population 2016'!AC$5","v":8.0302676135294085E-3},{"$f":"'Population 2016'!AD240/'Population 2016'!AD$5","v":4.2614165022888829E-3},{"$f":"'Population 2016'!AE240/'Population 2016'!AE$5","v":4.3891621063871294E-3},{"$f":"'Population 2016'!AF240/'Population 2016'!AF$5","v":4.3583827233105608E-3},{"$f":"'Population 2016'!AG240/'Population 2016'!AG$5","v":4.3891621063871294E-3},{"$f":"'Population 2016'!AH240/'Population 2016'!AH$5","v":5.5655146150488093E-3},{"$f":"'Population 2016'!AI240/'Population 2016'!AI$5","v":1.3119039286026774E-2},{"$f":"'Population 2016'!AJ240/'Population 2016'!AJ$5","v":8.0863285280093691E-3},{"$f":"'Population 2016'!AK240/'Population 2016'!AK$5","v":8.3854016066781493E-3},{"$f":"'Population 2016'!AL240/'Population 2016'!AL$5","v":4.1946755112537912E-3},{"$f":"'Population 2016'!AM240/'Population 2016'!AM$5","v":4.5093827759687928E-3},{"$f":"'Population 2016'!AN240/'Population 2016'!AN$5","v":3.708956037962256E-3},{"$f":"'Population 2016'!AO240/'Population 2016'!AO$5","v":3.708956037962256E-3},{"$f":"'Population 2016'!AP240/'Population 2016'!AP$5","v":6.9036031894488216E-3},{"$f":"'Population 2016'!AQ240/'Population 2016'!AQ$5","v":8.2684824902723737E-3},{"$f":"'Population 2016'!AR240/'Population 2016'!AR$5","v":8.7683008958107361E-3},{"$f":"'Population 2016'!AS240/'Population 2016'!AS$5","v":5.24453563353153E-3},{"$f":"'Population 2016'!AT240/'Population 2016'!AT$5","v":0},{"$f":"'Population 2016'!AU240/'Population 2016'!AU$5","v":0},{"$f":"'Population 2016'!AV240/'Population 2016'!AV$5","v":7.3804244535951857E-3},{"$f":"'Population 2016'!AW240/'Population 2016'!AW$5","v":6.6774971017145648E-3},{"$f":"'Population 2016'!AX240/'Population 2016'!AX$5","v":1.2727295960744726E-2},{"$f":"'Population 2016'!AY240/'Population 2016'!AY$5","v":7.9725222606407391E-3},{"$f":"'Population 2016'!AZ240/'Population 2016'!AZ$5","v":6.8342240451933203E-3},{"$f":"'Population 2016'!BA240/'Population 2016'!BA$5","v":2.2268408551068884E-3},{"$f":"'Population 2016'!BB240/'Population 2016'!BB$5","v":1.0177941349095103E-2},{"$f":"'Population 2016'!BC240/'Population 2016'!BC$5","v":0},238]
[null,"Male 50-54",{"$f":"'Population 2016'!C241/'Population 2016'!C$5","v":1.5583711979882751E-2},{"$f":"'Population 2016'!D241/'Population 2016'!D$5","v":1.5983979343329128E-2},{"$f":"'Population 2016'!E241/'Population 2016'!E$5","v":1.6351098589436477E-2},{"$f":"'Population 2016'!F241/'Population 2016'!F$5","v":8.7664177182590775E-3},{"$f":"'Population 2016'!G241/'Population 2016'!G$5","v":4.3035781952038112E-3},{"$f":"'Population 2016'!H241/'Population 2016'!H$5","v":6.192994458729042E-3},{"$f":"'Population 2016'!I241/'Population 2016'!I$5","v":4.3338078887865334E-3},{"$f":"'Population 2016'!J241/'Population 2016'!J$5","v":1.036630370781951E-2},{"$f":"'Population 2016'!K241/'Population 2016'!K$5","v":6.827954448802155E-3},{"$f":"'Population 2016'!L241/'Population 2016'!L$5","v":4.3842231506044192E-3},{"$f":"'Population 2016'!M241/'Population 2016'!M$5","v":4.3842231506044192E-3},{"$f":"'Population 2016'!N241/'Population 2016'!N$5","v":6.2127775857773208E-3},{"$f":"'Population 2016'!O241/'Population 2016'!O$5","v":5.2604987071655724E-3},{"$f":"'Population 2016'!P241/'Population 2016'!P$5","v":2.5774822495210188E-2},{"$f":"'Population 2016'!Q241/'Population 2016'!Q$5","v":9.1773304661519842E-3},{"$f":"'Population 2016'!R241/'Population 2016'!R$5","v":2.5855644860808005E-2},{"$f":"'Population 2016'!S241/'Population 2016'!S$5","v":1.1128548504689561E-2},{"$f":"'Population 2016'!T241/'Population 2016'!T$5","v":1.5830397900448108E-2},{"$f":"'Population 2016'!U241/'Population 2016'!U$5","v":0},{"$f":"'Population 2016'!V241/'Population 2016'!V$5","v":9.7694262751772624E-3},{"$f":"'Population 2016'!W241/'Population 2016'!W$5","v":8.6809300622961317E-3},{"$f":"'Population 2016'!X241/'Population 2016'!X$5","v":8.6809300622961317E-3},{"$f":"'Population 2016'!Y241/'Population 2016'!Y$5","v":1.0055484014562566E-2},{"$f":"'Population 2016'!Z241/'Population 2016'!Z$5","v":3.9316044081977143E-3},{"$f":"'Population 2016'!AA241/'Population 2016'!AA$5","v":7.5527004824081471E-3},{"$f":"'Population 2016'!AB241/'Population 2016'!AB$5","v":1.4593205940452186E-2},{"$f":"'Population 2016'!AC241/'Population 2016'!AC$5","v":8.5184549285198616E-3},{"$f":"'Population 2016'!AD241/'Population 2016'!AD$5","v":4.3544605307231383E-3},{"$f":"'Population 2016'!AE241/'Population 2016'!AE$5","v":4.3737615375927883E-3},{"$f":"'Population 2016'!AF241/'Population 2016'!AF$5","v":6.4546290850412465E-3},{"$f":"'Population 2016'!AG241/'Population 2016'!AG$5","v":4.3737615375927883E-3},{"$f":"'Population 2016'!AH241/'Population 2016'!AH$5","v":5.8181547978414126E-3},{"$f":"'Population 2016'!AI241/'Population 2016'!AI$5","v":1.3039745384548079E-2},{"$f":"'Population 2016'!AJ241/'Population 2016'!AJ$5","v":7.4589409698017457E-3},{"$f":"'Population 2016'!AK241/'Population 2016'!AK$5","v":7.4425153690456736E-3},{"$f":"'Population 2016'!AL241/'Population 2016'!AL$5","v":4.655823770419113E-3},{"$f":"'Population 2016'!AM241/'Population 2016'!AM$5","v":4.8715821957253224E-3},{"$f":"'Population 2016'!AN241/'Population 2016'!AN$5","v":3.436238682229737E-3},{"$f":"'Population 2016'!AO241/'Population 2016'!AO$5","v":3.436238682229737E-3},{"$f":"'Population 2016'!AP241/'Population 2016'!AP$5","v":8.6394115688854366E-3},{"$f":"'Population 2016'!AQ241/'Population 2016'!AQ$5","v":9.3919548418918176E-3},{"$f":"'Population 2016'!AR241/'Population 2016'!AR$5","v":8.9209035054713046E-3},{"$f":"'Population 2016'!AS241/'Population 2016'!AS$5","v":4.3338078887865334E-3},{"$f":"'Population 2016'!AT241/'Population 2016'!AT$5","v":0},{"$f":"'Population 2016'!AU241/'Population 2016'!AU$5","v":0},{"$f":"'Population 2016'!AV241/'Population 2016'!AV$5","v":9.0169992609017008E-3},{"$f":"'Population 2016'!AW241/'Population 2016'!AW$5","v":6.8147843065470741E-3},{"$f":"'Population 2016'!AX241/'Population 2016'!AX$5","v":1.2280051624774781E-2},{"$f":"'Population 2016'!AY241/'Population 2016'!AY$5","v":8.2157828707811881E-3},{"$f":"'Population 2016'!AZ241/'Population 2016'!AZ$5","v":7.8064326846189686E-3},{"$f":"'Population 2016'!BA241/'Population 2016'!BA$5","v":2.3752969121140144E-3},{"$f":"'Population 2016'!BB241/'Population 2016'!BB$5","v":9.791262437596239E-3},{"$f":"'Population 2016'!BC241/'Population 2016'!BC$5","v":0},239]
[null,"Male 55-59",{"$f":"'Population 2016'!C242/'Population 2016'!C$5","v":1.4643271506186974E-2},{"$f":"'Population 2016'!D242/'Population 2016'!D$5","v":1.4340835069393505E-2},{"$f":"'Population 2016'!E242/'Population 2016'!E$5","v":1.4063444887703393E-2},{"$f":"'Population 2016'!F242/'Population 2016'!F$5","v":7.5817666752510948E-3},{"$f":"'Population 2016'!G242/'Population 2016'!G$5","v":3.721647810317761E-3},{"$f":"'Population 2016'!H242/'Population 2016'!H$5","v":6.2902666230022731E-3},{"$f":"'Population 2016'!I242/'Population 2016'!I$5","v":3.6533791139770539E-3},{"$f":"'Population 2016'!J242/'Population 2016'!J$5","v":8.8320907590622218E-3},{"$f":"'Population 2016'!K242/'Population 2016'!K$5","v":5.6938997306620045E-3},{"$f":"'Population 2016'!L242/'Population 2016'!L$5","v":3.9315044557050498E-3},{"$f":"'Population 2016'!M242/'Population 2016'!M$5","v":3.9315044557050498E-3},{"$f":"'Population 2016'!N242/'Population 2016'!N$5","v":6.5503411803473693E-3},{"$f":"'Population 2016'!O242/'Population 2016'!O$5","v":5.3595664794285772E-3},{"$f":"'Population 2016'!P242/'Population 2016'!P$5","v":2.3498253127465344E-2},{"$f":"'Population 2016'!Q242/'Population 2016'!Q$5","v":6.9799414812986918E-3},{"$f":"'Population 2016'!R242/'Population 2016'!R$5","v":2.6055250971416404E-2},{"$f":"'Population 2016'!S242/'Population 2016'!S$5","v":1.0102900236728799E-2},{"$f":"'Population 2016'!T242/'Population 2016'!T$5","v":1.4599610056630201E-2},{"$f":"'Population 2016'!U242/'Population 2016'!U$5","v":0},{"$f":"'Population 2016'!V242/'Population 2016'!V$5","v":8.0903061341311699E-3},{"$f":"'Population 2016'!W242/'Population 2016'!W$5","v":8.3312088587322447E-3},{"$f":"'Population 2016'!X242/'Population 2016'!X$5","v":8.3312088587322447E-3},{"$f":"'Population 2016'!Y242/'Population 2016'!Y$5","v":8.4458116723104566E-3},{"$f":"'Population 2016'!Z242/'Population 2016'!Z$5","v":3.4495908692310819E-3},{"$f":"'Population 2016'!AA242/'Population 2016'!AA$5","v":6.9713657777892941E-3},{"$f":"'Population 2016'!AB242/'Population 2016'!AB$5","v":1.3014953481469351E-2},{"$f":"'Population 2016'!AC242/'Population 2016'!AC$5","v":7.9092550799406726E-3},{"$f":"'Population 2016'!AD242/'Population 2016'!AD$5","v":3.8966839108266031E-3},{"$f":"'Population 2016'!AE242/'Population 2016'!AE$5","v":3.9630797030770337E-3},{"$f":"'Population 2016'!AF242/'Population 2016'!AF$5","v":5.7609072674900839E-3},{"$f":"'Population 2016'!AG242/'Population 2016'!AG$5","v":3.9630797030770337E-3},{"$f":"'Population 2016'!AH242/'Population 2016'!AH$5","v":5.2868673546157922E-3},{"$f":"'Population 2016'!AI242/'Population 2016'!AI$5","v":1.1686280514480707E-2},{"$f":"'Population 2016'!AJ242/'Population 2016'!AJ$5","v":6.5248306053592841E-3},{"$f":"'Population 2016'!AK242/'Population 2016'!AK$5","v":6.1979055353708059E-3},{"$f":"'Population 2016'!AL242/'Population 2016'!AL$5","v":4.1148613894751778E-3},{"$f":"'Population 2016'!AM242/'Population 2016'!AM$5","v":4.2232452343611343E-3},{"$f":"'Population 2016'!AN242/'Population 2016'!AN$5","v":3.9816733936947745E-3},{"$f":"'Population 2016'!AO242/'Population 2016'!AO$5","v":3.9816733936947745E-3},{"$f":"'Population 2016'!AP242/'Population 2016'!AP$5","v":7.0859026996179632E-3},{"$f":"'Population 2016'!AQ242/'Population 2016'!AQ$5","v":8.8987230777662074E-3},{"$f":"'Population 2016'!AR242/'Population 2016'!AR$5","v":8.1140032832952725E-3},{"$f":"'Population 2016'!AS242/'Population 2016'!AS$5","v":3.6533791139770539E-3},{"$f":"'Population 2016'!AT242/'Population 2016'!AT$5","v":0},{"$f":"'Population 2016'!AU242/'Population 2016'!AU$5","v":0},{"$f":"'Population 2016'!AV242/'Population 2016'!AV$5","v":9.8722415795586532E-3},{"$f":"'Population 2016'!AW242/'Population 2016'!AW$5","v":6.4067362255171151E-3},{"$f":"'Population 2016'!AX242/'Population 2016'!AX$5","v":1.0529409509692424E-2},{"$f":"'Population 2016'!AY242/'Population 2016'!AY$5","v":7.6405250757320764E-3},{"$f":"'Population 2016'!AZ242/'Population 2016'!AZ$5","v":7.0326926727683784E-3},{"$f":"'Population 2016'!BA242/'Population 2016'!BA$5","v":1.9029367307277045E-3},{"$f":"'Population 2016'!BB242/'Population 2016'!BB$5","v":8.3619314611629372E-3},{"$f":"'Population 2016'!BC242/'Population 2016'!BC$5","v":0},240]
[null,"Male 60-64",{"$f":"'Population 2016'!C243/'Population 2016'!C$5","v":1.2977056319095542E-2},{"$f":"'Population 2016'!D243/'Population 2016'!D$5","v":1.2925090226225757E-2},{"$f":"'Population 2016'!E243/'Population 2016'!E$5","v":1.287742770217374E-2},{"$f":"'Population 2016'!F243/'Population 2016'!F$5","v":7.035797064125676E-3},{"$f":"'Population 2016'!G243/'Population 2016'!G$5","v":3.0720511016077518E-3},{"$f":"'Population 2016'!H243/'Population 2016'!H$5","v":5.9044203713851228E-3},{"$f":"'Population 2016'!I243/'Population 2016'!I$5","v":3.8522736789213634E-3},{"$f":"'Population 2016'!J243/'Population 2016'!J$5","v":8.3925594818506748E-3},{"$f":"'Population 2016'!K243/'Population 2016'!K$5","v":6.3554316495770917E-3},{"$f":"'Population 2016'!L243/'Population 2016'!L$5","v":3.7408860578526837E-3},{"$f":"'Population 2016'!M243/'Population 2016'!M$5","v":3.7408860578526837E-3},{"$f":"'Population 2016'!N243/'Population 2016'!N$5","v":5.3286824571414796E-3},{"$f":"'Population 2016'!O243/'Population 2016'!O$5","v":4.6462785191349401E-3},{"$f":"'Population 2016'!P243/'Population 2016'!P$5","v":2.0770877944325482E-2},{"$f":"'Population 2016'!Q243/'Population 2016'!Q$5","v":5.8988731037238106E-3},{"$f":"'Population 2016'!R243/'Population 2016'!R$5","v":2.2049821685207856E-2},{"$f":"'Population 2016'!S243/'Population 2016'!S$5","v":8.6103260361077624E-3},{"$f":"'Population 2016'!T243/'Population 2016'!T$5","v":1.2559154595329055E-2},{"$f":"'Population 2016'!U243/'Population 2016'!U$5","v":0},{"$f":"'Population 2016'!V243/'Population 2016'!V$5","v":6.5867303714671694E-3},{"$f":"'Population 2016'!W243/'Population 2016'!W$5","v":7.1709188842913078E-3},{"$f":"'Population 2016'!X243/'Population 2016'!X$5","v":7.1709188842913078E-3},{"$f":"'Population 2016'!Y243/'Population 2016'!Y$5","v":7.4521867696856967E-3},{"$f":"'Population 2016'!Z243/'Population 2016'!Z$5","v":3.0701745895625678E-3},{"$f":"'Population 2016'!AA243/'Population 2016'!AA$5","v":6.0379083378013058E-3},{"$f":"'Population 2016'!AB243/'Population 2016'!AB$5","v":1.1778553370930268E-2},{"$f":"'Population 2016'!AC243/'Population 2016'!AC$5","v":6.8284166389130799E-3},{"$f":"'Population 2016'!AD243/'Population 2016'!AD$5","v":3.4984554691279914E-3},{"$f":"'Population 2016'!AE243/'Population 2016'!AE$5","v":3.6602018501216645E-3},{"$f":"'Population 2016'!AF243/'Population 2016'!AF$5","v":4.7806481774721379E-3},{"$f":"'Population 2016'!AG243/'Population 2016'!AG$5","v":3.6602018501216645E-3},{"$f":"'Population 2016'!AH243/'Population 2016'!AH$5","v":4.6181139295765486E-3},{"$f":"'Population 2016'!AI243/'Population 2016'!AI$5","v":9.833810919590515E-3},{"$f":"'Population 2016'!AJ243/'Population 2016'!AJ$5","v":5.4931266207511919E-3},{"$f":"'Population 2016'!AK243/'Population 2016'!AK$5","v":5.8836101228266473E-3},{"$f":"'Population 2016'!AL243/'Population 2016'!AL$5","v":4.2035437470069707E-3},{"$f":"'Population 2016'!AM243/'Population 2016'!AM$5","v":3.5024683890456407E-3},{"$f":"'Population 2016'!AN243/'Population 2016'!AN$5","v":2.945347441911203E-3},{"$f":"'Population 2016'!AO243/'Population 2016'!AO$5","v":2.945347441911203E-3},{"$f":"'Population 2016'!AP243/'Population 2016'!AP$5","v":7.1096808965965472E-3},{"$f":"'Population 2016'!AQ243/'Population 2016'!AQ$5","v":7.2614676385159204E-3},{"$f":"'Population 2016'!AR243/'Population 2016'!AR$5","v":7.1291038127706333E-3},{"$f":"'Population 2016'!AS243/'Population 2016'!AS$5","v":3.8522736789213634E-3},{"$f":"'Population 2016'!AT243/'Population 2016'!AT$5","v":0},{"$f":"'Population 2016'!AU243/'Population 2016'!AU$5","v":0},{"$f":"'Population 2016'!AV243/'Population 2016'!AV$5","v":9.2704043923556127E-3},{"$f":"'Population 2016'!AW243/'Population 2016'!AW$5","v":5.7927573372383917E-3},{"$f":"'Population 2016'!AX243/'Population 2016'!AX$5","v":9.4943583321619798E-3},{"$f":"'Population 2016'!AY243/'Population 2016'!AY$5","v":6.7883479697683673E-3},{"$f":"'Population 2016'!AZ243/'Population 2016'!AZ$5","v":6.4516685746500912E-3},{"$f":"'Population 2016'!BA243/'Population 2016'!BA$5","v":1.8759447203627725E-3},{"$f":"'Population 2016'!BB243/'Population 2016'!BB$5","v":6.2075775256692656E-3},{"$f":"'Population 2016'!BC243/'Population 2016'!BC$5","v":0},241]
[null,"Male 65-69",{"$f":"'Population 2016'!C244/'Population 2016'!C$5","v":1.147439599699468E-2},{"$f":"'Population 2016'!D244/'Population 2016'!D$5","v":1.1746525434504074E-2},{"$f":"'Population 2016'!E244/'Population 2016'!E$5","v":1.1996118489210995E-2},{"$f":"'Population 2016'!F244/'Population 2016'!F$5","v":8.395570435230492E-3},{"$f":"'Population 2016'!G244/'Population 2016'!G$5","v":3.2750500730796299E-3},{"$f":"'Population 2016'!H244/'Population 2016'!H$5","v":6.5626286829673199E-3},{"$f":"'Population 2016'!I244/'Population 2016'!I$5","v":4.2186584038187754E-3},{"$f":"'Population 2016'!J244/'Population 2016'!J$5","v":9.2882081222062807E-3},{"$f":"'Population 2016'!K244/'Population 2016'!K$5","v":7.2059726881822045E-3},{"$f":"'Population 2016'!L244/'Population 2016'!L$5","v":4.0665258208504758E-3},{"$f":"'Population 2016'!M244/'Population 2016'!M$5","v":4.0665258208504758E-3},{"$f":"'Population 2016'!N244/'Population 2016'!N$5","v":5.2804590864886152E-3},{"$f":"'Population 2016'!O244/'Population 2016'!O$5","v":4.8741343953398516E-3},{"$f":"'Population 2016'!P244/'Population 2016'!P$5","v":2.0759607798940607E-2},{"$f":"'Population 2016'!Q244/'Population 2016'!Q$5","v":5.969377563130868E-3},{"$f":"'Population 2016'!R244/'Population 2016'!R$5","v":1.9840847394474902E-2},{"$f":"'Population 2016'!S244/'Population 2016'!S$5","v":8.7930361836704787E-3},{"$f":"'Population 2016'!T244/'Population 2016'!T$5","v":1.2519601866888783E-2},{"$f":"'Population 2016'!U244/'Population 2016'!U$5","v":0},{"$f":"'Population 2016'!V244/'Population 2016'!V$5","v":6.3959212645301137E-3},{"$f":"'Population 2016'!W244/'Population 2016'!W$5","v":7.9128507834408651E-3},{"$f":"'Population 2016'!X244/'Population 2016'!X$5","v":7.9128507834408651E-3},{"$f":"'Population 2016'!Y244/'Population 2016'!Y$5","v":7.7820702373571169E-3},{"$f":"'Population 2016'!Z244/'Population 2016'!Z$5","v":2.7256026621085092E-3},{"$f":"'Population 2016'!AA244/'Population 2016'!AA$5","v":5.5688542789888362E-3},{"$f":"'Population 2016'!AB244/'Population 2016'!AB$5","v":1.0793936726610238E-2},{"$f":"'Population 2016'!AC244/'Population 2016'!AC$5","v":6.4395216591749222E-3},{"$f":"'Population 2016'!AD244/'Population 2016'!AD$5","v":3.6808217648591312E-3},{"$f":"'Population 2016'!AE244/'Population 2016'!AE$5","v":3.8347416297908601E-3},{"$f":"'Population 2016'!AF244/'Population 2016'!AF$5","v":5.2933990860969098E-3},{"$f":"'Population 2016'!AG244/'Population 2016'!AG$5","v":3.8347416297908601E-3},{"$f":"'Population 2016'!AH244/'Population 2016'!AH$5","v":4.0050899566239102E-3},{"$f":"'Population 2016'!AI244/'Population 2016'!AI$5","v":9.7586184268089946E-3},{"$f":"'Population 2016'!AJ244/'Population 2016'!AJ$5","v":5.939268884365502E-3},{"$f":"'Population 2016'!AK244/'Population 2016'!AK$5","v":5.8961819393284131E-3},{"$f":"'Population 2016'!AL244/'Population 2016'!AL$5","v":4.4784590553555272E-3},{"$f":"'Population 2016'!AM244/'Population 2016'!AM$5","v":3.0497191143499789E-3},{"$f":"'Population 2016'!AN244/'Population 2016'!AN$5","v":3.436238682229737E-3},{"$f":"'Population 2016'!AO244/'Population 2016'!AO$5","v":3.436238682229737E-3},{"$f":"'Population 2016'!AP244/'Population 2016'!AP$5","v":8.3461471394829043E-3},{"$f":"'Population 2016'!AQ244/'Population 2016'!AQ$5","v":7.1039074916424616E-3},{"$f":"'Population 2016'!AR244/'Population 2016'!AR$5","v":7.0593744451447086E-3},{"$f":"'Population 2016'!AS244/'Population 2016'!AS$5","v":4.2186584038187754E-3},{"$f":"'Population 2016'!AT244/'Population 2016'!AT$5","v":0},{"$f":"'Population 2016'!AU244/'Population 2016'!AU$5","v":0},{"$f":"'Population 2016'!AV244/'Population 2016'!AV$5","v":1.0843627916798649E-2},{"$f":"'Population 2016'!AW244/'Population 2016'!AW$5","v":5.0109829763866007E-3},{"$f":"'Population 2016'!AX244/'Population 2016'!AX$5","v":1.0414403823300153E-2},{"$f":"'Population 2016'!AY244/'Population 2016'!AY$5","v":7.5670879104066582E-3},{"$f":"'Population 2016'!AZ244/'Population 2016'!AZ$5","v":7.2628012264785912E-3},{"$f":"'Population 2016'!BA244/'Population 2016'!BA$5","v":1.3091125026992011E-3},{"$f":"'Population 2016'!BB244/'Population 2016'!BB$5","v":5.6827990029208065E-3},{"$f":"'Population 2016'!BC244/'Population 2016'!BC$5","v":0},242]
[null,"Male 70-74",{"$f":"'Population 2016'!C245/'Population 2016'!C$5","v":7.4979683419114452E-3},{"$f":"'Population 2016'!D245/'Population 2016'!D$5","v":7.75847735297282E-3},{"$f":"'Population 2016'!E245/'Population 2016'!E$5","v":7.997412326140662E-3},{"$f":"'Population 2016'!F245/'Population 2016'!F$5","v":6.2219933041462788E-3},{"$f":"'Population 2016'!G245/'Population 2016'!G$5","v":2.7337194824879553E-3},{"$f":"'Population 2016'!H245/'Population 2016'!H$5","v":4.9641227834105565E-3},{"$f":"'Population 2016'!I245/'Population 2016'!I$5","v":2.7217150992379199E-3},{"$f":"'Population 2016'!J245/'Population 2016'!J$5","v":6.3192987402867738E-3},{"$f":"'Population 2016'!K245/'Population 2016'!K$5","v":4.6543495723668669E-3},{"$f":"'Population 2016'!L245/'Population 2016'!L$5","v":2.8989881340047339E-3},{"$f":"'Population 2016'!M245/'Population 2016'!M$5","v":2.8989881340047339E-3},{"$f":"'Population 2016'!N245/'Population 2016'!N$5","v":4.1230981908198776E-3},{"$f":"'Population 2016'!O245/'Population 2016'!O$5","v":3.1701687124161639E-3},{"$f":"'Population 2016'!P245/'Population 2016'!P$5","v":1.6488222698072805E-2},{"$f":"'Population 2016'!Q245/'Population 2016'!Q$5","v":4.9940658746665725E-3},{"$f":"'Population 2016'!R245/'Population 2016'!R$5","v":1.5196678554319476E-2},{"$f":"'Population 2016'!S245/'Population 2016'!S$5","v":6.3083547083610638E-3},{"$f":"'Population 2016'!T245/'Population 2016'!T$5","v":8.7318464609614562E-3},{"$f":"'Population 2016'!U245/'Population 2016'!U$5","v":0},{"$f":"'Population 2016'!V245/'Population 2016'!V$5","v":4.1978003526152293E-3},{"$f":"'Population 2016'!W245/'Population 2016'!W$5","v":6.2067342576432056E-3},{"$f":"'Population 2016'!X245/'Population 2016'!X$5","v":6.2067342576432056E-3},{"$f":"'Population 2016'!Y245/'Population 2016'!Y$5","v":5.2145434889747377E-3},{"$f":"'Population 2016'!Z245/'Population 2016'!Z$5","v":1.6299413646984125E-3},{"$f":"'Population 2016'!AA245/'Population 2016'!AA$5","v":4.0301443636776759E-3},{"$f":"'Population 2016'!AB245/'Population 2016'!AB$5","v":7.2607801193412692E-3},{"$f":"'Population 2016'!AC245/'Population 2016'!AC$5","v":4.7081115632130171E-3},{"$f":"'Population 2016'!AD245/'Population 2016'!AD$5","v":2.7206073914176187E-3},{"$f":"'Population 2016'!AE245/'Population 2016'!AE$5","v":2.7156336307354286E-3},{"$f":"'Population 2016'!AF245/'Population 2016'!AF$5","v":4.4790299959281549E-3},{"$f":"'Population 2016'!AG245/'Population 2016'!AG$5","v":2.7156336307354286E-3},{"$f":"'Population 2016'!AH245/'Population 2016'!AH$5","v":2.8124796819705934E-3},{"$f":"'Population 2016'!AI245/'Population 2016'!AI$5","v":6.819275527167731E-3},{"$f":"'Population 2016'!AJ245/'Population 2016'!AJ$5","v":3.959512589577001E-3},{"$f":"'Population 2016'!AK245/'Population 2016'!AK$5","v":4.7018593716606112E-3},{"$f":"'Population 2016'!AL245/'Population 2016'!AL$5","v":3.4231390007271952E-3},{"$f":"'Population 2016'!AM245/'Population 2016'!AM$5","v":1.8291070697704743E-3},{"$f":"'Population 2016'!AN245/'Population 2016'!AN$5","v":2.2362823170066545E-3},{"$f":"'Population 2016'!AO245/'Population 2016'!AO$5","v":2.2362823170066545E-3},{"$f":"'Population 2016'!AP245/'Population 2016'!AP$5","v":6.3884089215795062E-3},{"$f":"'Population 2016'!AQ245/'Population 2016'!AQ$5","v":5.1994848468241359E-3},{"$f":"'Population 2016'!AR245/'Population 2016'!AR$5","v":5.0488072156751615E-3},{"$f":"'Population 2016'!AS245/'Population 2016'!AS$5","v":2.7217150992379199E-3},{"$f":"'Population 2016'!AT245/'Population 2016'!AT$5","v":0},{"$f":"'Population 2016'!AU245/'Population 2016'!AU$5","v":0},{"$f":"'Population 2016'!AV245/'Population 2016'!AV$5","v":8.7108013937282226E-3},{"$f":"'Population 2016'!AW245/'Population 2016'!AW$5","v":3.8478552687778388E-3},{"$f":"'Population 2016'!AX245/'Population 2016'!AX$5","v":7.2198014235148296E-3},{"$f":"'Population 2016'!AY245/'Population 2016'!AY$5","v":5.8474342890364435E-3},{"$f":"'Population 2016'!AZ245/'Population 2016'!AZ$5","v":5.53123435980924E-3},{"$f":"'Population 2016'!BA245/'Population 2016'!BA$5","v":6.6130425394083357E-4},{"$f":"'Population 2016'!BB245/'Population 2016'!BB$5","v":3.6320197758643309E-3},{"$f":"'Population 2016'!BC245/'Population 2016'!BC$5","v":0},243]
[null,"Male 75-79",{"$f":"'Population 2016'!C246/'Population 2016'!C$5","v":5.6835315584223087E-3},{"$f":"'Population 2016'!D246/'Population 2016'!D$5","v":5.6923212347055547E-3},{"$f":"'Population 2016'!E246/'Population 2016'!E$5","v":5.7003829944824421E-3},{"$f":"'Population 2016'!F246/'Population 2016'!F$5","v":4.0896214267319084E-3},{"$f":"'Population 2016'!G246/'Population 2016'!G$5","v":1.7051913603637742E-3},{"$f":"'Population 2016'!H246/'Population 2016'!H$5","v":3.4531618316997015E-3},{"$f":"'Population 2016'!I246/'Population 2016'!I$5","v":1.8528598944811993E-3},{"$f":"'Population 2016'!J246/'Population 2016'!J$5","v":5.0753422953484324E-3},{"$f":"'Population 2016'!K246/'Population 2016'!K$5","v":2.8587629353116289E-3},{"$f":"'Population 2016'!L246/'Population 2016'!L$5","v":2.4700967388369102E-3},{"$f":"'Population 2016'!M246/'Population 2016'!M$5","v":2.4700967388369102E-3},{"$f":"'Population 2016'!N246/'Population 2016'!N$5","v":3.3917104025847728E-3},{"$f":"'Population 2016'!O246/'Population 2016'!O$5","v":2.1398638808809108E-3},{"$f":"'Population 2016'!P246/'Population 2016'!P$5","v":1.3783387805702693E-2},{"$f":"'Population 2016'!Q246/'Population 2016'!Q$5","v":3.8307422944501238E-3},{"$f":"'Population 2016'!R246/'Population 2016'!R$5","v":1.2521956672166924E-2},{"$f":"'Population 2016'!S246/'Population 2016'!S$5","v":4.4653653938153941E-3},{"$f":"'Population 2016'!T246/'Population 2016'!T$5","v":6.519220299390888E-3},{"$f":"'Population 2016'!U246/'Population 2016'!U$5","v":0},{"$f":"'Population 2016'!V246/'Population 2016'!V$5","v":2.8239747826684274E-3},{"$f":"'Population 2016'!W246/'Population 2016'!W$5","v":3.9351806457095422E-3},{"$f":"'Population 2016'!X246/'Population 2016'!X$5","v":3.9351806457095422E-3},{"$f":"'Population 2016'!Y246/'Population 2016'!Y$5","v":3.9029586175100555E-3},{"$f":"'Population 2016'!Z246/'Population 2016'!Z$5","v":1.130505649624552E-3},{"$f":"'Population 2016'!AA246/'Population 2016'!AA$5","v":2.9877281904811259E-3},{"$f":"'Population 2016'!AB246/'Population 2016'!AB$5","v":5.3570514723191714E-3},{"$f":"'Population 2016'!AC246/'Population 2016'!AC$5","v":3.5827984303536671E-3},{"$f":"'Population 2016'!AD246/'Population 2016'!AD$5","v":1.8124976738992892E-3},{"$f":"'Population 2016'!AE246/'Population 2016'!AE$5","v":1.8532017782523435E-3},{"$f":"'Population 2016'!AF246/'Population 2016'!AF$5","v":3.0161818154398347E-3},{"$f":"'Population 2016'!AG246/'Population 2016'!AG$5","v":1.8532017782523435E-3},{"$f":"'Population 2016'!AH246/'Population 2016'!AH$5","v":1.9189508001820495E-3},{"$f":"'Population 2016'!AI246/'Population 2016'!AI$5","v":5.0283270627351478E-3},{"$f":"'Population 2016'!AJ246/'Population 2016'!AJ$5","v":2.5374341243063884E-3},{"$f":"'Population 2016'!AK246/'Population 2016'!AK$5","v":3.6332549690104724E-3},{"$f":"'Population 2016'!AL246/'Population 2016'!AL$5","v":2.2259271740479947E-3},{"$f":"'Population 2016'!AM246/'Population 2016'!AM$5","v":1.3039179111235064E-3},{"$f":"'Population 2016'!AN246/'Population 2016'!AN$5","v":1.1999563652230827E-3},{"$f":"'Population 2016'!AO246/'Population 2016'!AO$5","v":1.1999563652230827E-3},{"$f":"'Population 2016'!AP246/'Population 2016'!AP$5","v":4.8824564462692007E-3},{"$f":"'Population 2016'!AQ246/'Population 2016'!AQ$5","v":3.3156135255110429E-3},{"$f":"'Population 2016'!AR246/'Population 2016'!AR$5","v":3.670259845485959E-3},{"$f":"'Population 2016'!AS246/'Population 2016'!AS$5","v":1.8528598944811993E-3},{"$f":"'Population 2016'!AT246/'Population 2016'!AT$5","v":0},{"$f":"'Population 2016'!AU246/'Population 2016'!AU$5","v":0},{"$f":"'Population 2016'!AV246/'Population 2016'!AV$5","v":6.3140111920599725E-3},{"$f":"'Population 2016'!AW246/'Population 2016'!AW$5","v":2.5665080236744156E-3},{"$f":"'Population 2016'!AX246/'Population 2016'!AX$5","v":6.2741991131783741E-3},{"$f":"'Population 2016'!AY246/'Population 2016'!AY$5","v":4.0375141519537342E-3},{"$f":"'Population 2016'!AZ246/'Population 2016'!AZ$5","v":4.1275721821769423E-3},{"$f":"'Population 2016'!BA246/'Population 2016'!BA$5","v":4.318721658389117E-4},{"$f":"'Population 2016'!BB246/'Population 2016'!BB$5","v":2.5410328469925359E-3},{"$f":"'Population 2016'!BC246/'Population 2016'!BC$5","v":0},244]
[null,"Male 80-84",{"$f":"'Population 2016'!C247/'Population 2016'!C$5","v":4.206426683976223E-3},{"$f":"'Population 2016'!D247/'Population 2016'!D$5","v":3.9415901333098597E-3},{"$f":"'Population 2016'!E247/'Population 2016'!E$5","v":3.6986860054659923E-3},{"$f":"'Population 2016'!F247/'Population 2016'!F$5","v":3.3994334277620396E-3},{"$f":"'Population 2016'!G247/'Population 2016'!G$5","v":1.0285281221241813E-3},{"$f":"'Population 2016'!H247/'Population 2016'!H$5","v":2.4771977834916166E-3},{"$f":"'Population 2016'!I247/'Population 2016'!I$5","v":1.36085754961896E-3},{"$f":"'Population 2016'!J247/'Population 2016'!J$5","v":3.5328363036248893E-3},{"$f":"'Population 2016'!K247/'Population 2016'!K$5","v":1.9137173368615036E-3},{"$f":"'Population 2016'!L247/'Population 2016'!L$5","v":1.6123139485012628E-3},{"$f":"'Population 2016'!M247/'Population 2016'!M$5","v":1.6123139485012628E-3},{"$f":"'Population 2016'!N247/'Population 2016'!N$5","v":2.6281737005810915E-3},{"$f":"'Population 2016'!O247/'Population 2016'!O$5","v":1.3374149255505692E-3},{"$f":"'Population 2016'!P247/'Population 2016'!P$5","v":1.0267102445621549E-2},{"$f":"'Population 2016'!Q247/'Population 2016'!Q$5","v":2.6321664845301465E-3},{"$f":"'Population 2016'!R247/'Population 2016'!R$5","v":9.1286527918241333E-3},{"$f":"'Population 2016'!S247/'Population 2016'!S$5","v":3.2958439178704647E-3},{"$f":"'Population 2016'!T247/'Population 2016'!T$5","v":5.1348748039813314E-3},{"$f":"'Population 2016'!U247/'Population 2016'!U$5","v":0},{"$f":"'Population 2016'!V247/'Population 2016'!V$5","v":2.0683707191976857E-3},{"$f":"'Population 2016'!W247/'Population 2016'!W$5","v":2.8500643879225255E-3},{"$f":"'Population 2016'!X247/'Population 2016'!X$5","v":2.8500643879225255E-3},{"$f":"'Population 2016'!Y247/'Population 2016'!Y$5","v":2.7702262285178294E-3},{"$f":"'Population 2016'!Z247/'Population 2016'!Z$5","v":7.5108936995603806E-4},{"$f":"'Population 2016'!AA247/'Population 2016'!AA$5","v":2.0742022260800698E-3},{"$f":"'Population 2016'!AB247/'Population 2016'!AB$5","v":3.69691821131388E-3},{"$f":"'Population 2016'!AC247/'Population 2016'!AC$5","v":2.5216115973447574E-3},{"$f":"'Population 2016'!AD247/'Population 2016'!AD$5","v":1.2840075923927202E-3},{"$f":"'Population 2016'!AE247/'Population 2016'!AE$5","v":1.3809176685592255E-3},{"$f":"'Population 2016'!AF247/'Population 2016'!AF$5","v":2.1264081798850836E-3},{"$f":"'Population 2016'!AG247/'Population 2016'!AG$5","v":1.3809176685592255E-3},{"$f":"'Population 2016'!AH247/'Population 2016'!AH$5","v":1.2706315075745613E-3},{"$f":"'Population 2016'!AI247/'Population 2016'!AI$5","v":3.7350161868929914E-3},{"$f":"'Population 2016'!AJ247/'Population 2016'!AJ$5","v":1.5754398683880321E-3},{"$f":"'Population 2016'!AK247/'Population 2016'!AK$5","v":2.43893240134267E-3},{"$f":"'Population 2016'!AL247/'Population 2016'!AL$5","v":1.6849647931040598E-3},{"$f":"'Population 2016'!AM247/'Population 2016'!AM$5","v":7.0991086272279794E-4},{"$f":"'Population 2016'!AN247/'Population 2016'!AN$5","v":8.7269553834406024E-4},{"$f":"'Population 2016'!AO247/'Population 2016'!AO$5","v":8.7269553834406024E-4},{"$f":"'Population 2016'!AP247/'Population 2016'!AP$5","v":3.7965854509138756E-3},{"$f":"'Population 2016'!AQ247/'Population 2016'!AQ$5","v":1.9934783800076724E-3},{"$f":"'Population 2016'!AR247/'Population 2016'!AR$5","v":2.6338987649881939E-3},{"$f":"'Population 2016'!AS247/'Population 2016'!AS$5","v":1.36085754961896E-3},{"$f":"'Population 2016'!AT247/'Population 2016'!AT$5","v":0},{"$f":"'Population 2016'!AU247/'Population 2016'!AU$5","v":0},{"$f":"'Population 2016'!AV247/'Population 2016'!AV$5","v":4.6352021961778064E-3},{"$f":"'Population 2016'!AW247/'Population 2016'!AW$5","v":1.8610043321740191E-3},{"$f":"'Population 2016'!AX247/'Population 2016'!AX$5","v":4.4085513117037454E-3},{"$f":"'Population 2016'!AY247/'Population 2016'!AY$5","v":3.0721214161133379E-3},{"$f":"'Population 2016'!AZ247/'Population 2016'!AZ$5","v":3.2675414626850215E-3},{"$f":"'Population 2016'!BA247/'Population 2016'!BA$5","v":2.834161088317858E-4},{"$f":"'Population 2016'!BB247/'Population 2016'!BB$5","v":1.2981363457461868E-3},{"$f":"'Population 2016'!BC247/'Population 2016'!BC$5","v":0},245]
[null,"Male 85-89",{"$f":"'Population 2016'!C248/'Population 2016'!C$5","v":2.3204346470537124E-3},{"$f":"'Population 2016'!D248/'Population 2016'!D$5","v":2.1419559285232241E-3},{"$f":"'Population 2016'!E248/'Population 2016'!E$5","v":1.9782579142036106E-3},{"$f":"'Population 2016'!F248/'Population 2016'!F$5","v":1.4833891321143445E-3},{"$f":"'Population 2016'!G248/'Population 2016'!G$5","v":7.0372976776917663E-4},{"$f":"'Population 2016'!H248/'Population 2016'!H$5","v":1.2742653519793264E-3},{"$f":"'Population 2016'!I248/'Population 2016'!I$5","v":8.374507997655138E-4},{"$f":"'Population 2016'!J248/'Population 2016'!J$5","v":1.4678686050272427E-3},{"$f":"'Population 2016'!K248/'Population 2016'!K$5","v":8.0328875868260641E-4},{"$f":"'Population 2016'!L248/'Population 2016'!L$5","v":8.3395549060410145E-4},{"$f":"'Population 2016'!M248/'Population 2016'!M$5","v":8.3395549060410145E-4},{"$f":"'Population 2016'!N248/'Population 2016'!N$5","v":1.50296171868093E-3},{"$f":"'Population 2016'!O248/'Population 2016'!O$5","v":7.4300829197253846E-4},{"$f":"'Population 2016'!P248/'Population 2016'!P$5","v":5.0377549870393324E-3},{"$f":"'Population 2016'!Q248/'Population 2016'!Q$5","v":1.1868250666854678E-3},{"$f":"'Population 2016'!R248/'Population 2016'!R$5","v":4.7639325065204664E-3},{"$f":"'Population 2016'!S248/'Population 2016'!S$5","v":1.7441316501639096E-3},{"$f":"'Population 2016'!T248/'Population 2016'!T$5","v":2.8571029720385476E-3},{"$f":"'Population 2016'!U248/'Population 2016'!U$5","v":0},{"$f":"'Population 2016'!V248/'Population 2016'!V$5","v":8.3956007052304589E-4},{"$f":"'Population 2016'!W248/'Population 2016'!W$5","v":1.3923479693291236E-3},{"$f":"'Population 2016'!X248/'Population 2016'!X$5","v":1.3923479693291236E-3},{"$f":"'Population 2016'!Y248/'Population 2016'!Y$5","v":1.1406813882132239E-3},{"$f":"'Population 2016'!Z248/'Population 2016'!Z$5","v":3.6780149559702892E-4},{"$f":"'Population 2016'!AA248/'Population 2016'!AA$5","v":1.0045463695813792E-3},{"$f":"'Population 2016'!AB248/'Population 2016'!AB$5","v":2.0367849503085881E-3},{"$f":"'Population 2016'!AC248/'Population 2016'!AC$5","v":1.2514971422424761E-3},{"$f":"'Population 2016'!AD248/'Population 2016'!AD$5","v":7.1829989951244927E-4},{"$f":"'Population 2016'!AE248/'Population 2016'!AE$5","v":7.2382673333401776E-4},{"$f":"'Population 2016'!AF248/'Population 2016'!AF$5","v":1.0104209081723446E-3},{"$f":"'Population 2016'!AG248/'Population 2016'!AG$5","v":7.2382673333401776E-4},{"$f":"'Population 2016'!AH248/'Population 2016'!AH$5","v":5.6100981767180928E-4},{"$f":"'Population 2016'!AI248/'Population 2016'!AI$5","v":2.0096902616151893E-3},{"$f":"'Population 2016'!AJ248/'Population 2016'!AJ$5","v":7.8074896132504252E-4},{"$f":"'Population 2016'!AK248/'Population 2016'!AK$5","v":1.4960461637101945E-3},{"$f":"'Population 2016'!AL248/'Population 2016'!AL$5","v":8.070094535393129E-4},{"$f":"'Population 2016'!AM248/'Population 2016'!AM$5","v":3.1511349518818072E-4},{"$f":"'Population 2016'!AN248/'Population 2016'!AN$5","v":5.4543471146503762E-4},{"$f":"'Population 2016'!AO248/'Population 2016'!AO$5","v":5.4543471146503762E-4},{"$f":"'Population 2016'!AP248/'Population 2016'!AP$5","v":2.1004073997748997E-3},{"$f":"'Population 2016'!AQ248/'Population 2016'!AQ$5","v":9.727626459143969E-4},{"$f":"'Population 2016'!AR248/'Population 2016'!AR$5","v":1.351591288774708E-3},{"$f":"'Population 2016'!AS248/'Population 2016'!AS$5","v":8.374507997655138E-4},{"$f":"'Population 2016'!AT248/'Population 2016'!AT$5","v":0},{"$f":"'Population 2016'!AU248/'Population 2016'!AU$5","v":0},{"$f":"'Population 2016'!AV248/'Population 2016'!AV$5","v":2.3967902016682504E-3},{"$f":"'Population 2016'!AW248/'Population 2016'!AW$5","v":8.1990969552748799E-4},{"$f":"'Population 2016'!AX248/'Population 2016'!AX$5","v":1.8273125726772047E-3},{"$f":"'Population 2016'!AY248/'Population 2016'!AY$5","v":1.5635996450537009E-3},{"$f":"'Population 2016'!AZ248/'Population 2016'!AZ$5","v":1.7143087251410853E-3},{"$f":"'Population 2016'!BA248/'Population 2016'!BA$5","v":8.0976031094795946E-5},{"$f":"'Population 2016'!BB248/'Population 2016'!BB$5","v":5.8692334781077589E-4},{"$f":"'Population 2016'!BC248/'Population 2016'!BC$5","v":0},246]
[null,"Male 90+",{"$f":"'Population 2016'!C249/'Population 2016'!C$5","v":1.1346618758720796E-3},{"$f":"'Population 2016'!D249/'Population 2016'!D$5","v":1.0098490850229355E-3},{"$f":"'Population 2016'!E249/'Population 2016'!E$5","v":8.9537265785044932E-4},{"$f":"'Population 2016'!F249/'Population 2016'!F$5","v":5.3566829770795778E-4},{"$f":"'Population 2016'!G249/'Population 2016'!G$5","v":1.8946570670708602E-4},{"$f":"'Population 2016'!H249/'Population 2016'!H$5","v":6.1929944587290416E-4},{"$f":"'Population 2016'!I249/'Population 2016'!I$5","v":2.4076710493258521E-4},{"$f":"'Population 2016'!J249/'Population 2016'!J$5","v":5.9709909357040384E-4},{"$f":"'Population 2016'!K249/'Population 2016'!K$5","v":2.1263525965127818E-4},{"$f":"'Population 2016'!L249/'Population 2016'!L$5","v":3.4946706272933774E-4},{"$f":"'Population 2016'!M249/'Population 2016'!M$5","v":3.4946706272933774E-4},{"$f":"'Population 2016'!N249/'Population 2016'!N$5","v":4.9027093497078472E-4},{"$f":"'Population 2016'!O249/'Population 2016'!O$5","v":2.9720331678901538E-4},{"$f":"'Population 2016'!P249/'Population 2016'!P$5","v":2.1413276231263384E-3},{"$f":"'Population 2016'!Q249/'Population 2016'!Q$5","v":7.4029682377410371E-4},{"$f":"'Population 2016'!R249/'Population 2016'!R$5","v":1.9827540320434341E-3},{"$f":"'Population 2016'!S249/'Population 2016'!S$5","v":8.2263699289107477E-4},{"$f":"'Population 2016'!T249/'Population 2016'!T$5","v":1.3820188643248348E-3},{"$f":"'Population 2016'!U249/'Population 2016'!U$5","v":0},{"$f":"'Population 2016'!V249/'Population 2016'!V$5","v":3.816182138741118E-4},{"$f":"'Population 2016'!W249/'Population 2016'!W$5","v":5.948528883049308E-4},{"$f":"'Population 2016'!X249/'Population 2016'!X$5","v":5.948528883049308E-4},{"$f":"'Population 2016'!Y249/'Population 2016'!Y$5","v":4.8488895248088268E-4},{"$f":"'Population 2016'!Z249/'Population 2016'!Z$5","v":1.9357973452475207E-4},{"$f":"'Population 2016'!AA249/'Population 2016'!AA$5","v":4.2121851740383229E-4},{"$f":"'Population 2016'!AB249/'Population 2016'!AB$5","v":9.4162922325824179E-4},{"$f":"'Population 2016'!AC249/'Population 2016'!AC$5","v":5.3886777777547939E-4},{"$f":"'Population 2016'!AD249/'Population 2016'!AD$5","v":2.6052327961591427E-4},{"$f":"'Population 2016'!AE249/'Population 2016'!AE$5","v":2.8747728416102832E-4},{"$f":"'Population 2016'!AF249/'Population 2016'!AF$5","v":6.3339818124236527E-4},{"$f":"'Population 2016'!AG249/'Population 2016'!AG$5","v":2.8747728416102832E-4},{"$f":"'Population 2016'!AH249/'Population 2016'!AH$5","v":2.0991426952620678E-4},{"$f":"'Population 2016'!AI249/'Population 2016'!AI$5","v":9.939080409484644E-4},{"$f":"'Population 2016'!AJ249/'Population 2016'!AJ$5","v":3.3460669771073249E-4},{"$f":"'Population 2016'!AK249/'Population 2016'!AK$5","v":5.9087537558301796E-4},{"$f":"'Population 2016'!AL249/'Population 2016'!AL$5","v":3.7246590163352901E-4},{"$f":"'Population 2016'!AM249/'Population 2016'!AM$5","v":1.4487976790261183E-4},{"$f":"'Population 2016'!AN249/'Population 2016'!AN$5","v":2.1817388458601506E-4},{"$f":"'Population 2016'!AO249/'Population 2016'!AO$5","v":2.1817388458601506E-4},{"$f":"'Population 2016'!AP249/'Population 2016'!AP$5","v":8.5601509122901578E-4},{"$f":"'Population 2016'!AQ249/'Population 2016'!AQ$5","v":2.6031676439962733E-4},{"$f":"'Population 2016'!AR249/'Population 2016'!AR$5","v":5.9659823163650376E-4},{"$f":"'Population 2016'!AS249/'Population 2016'!AS$5","v":2.4076710493258521E-4},{"$f":"'Population 2016'!AT249/'Population 2016'!AT$5","v":0},{"$f":"'Population 2016'!AU249/'Population 2016'!AU$5","v":0},{"$f":"'Population 2016'!AV249/'Population 2016'!AV$5","v":1.2564671101256467E-3},{"$f":"'Population 2016'!AW249/'Population 2016'!AW$5","v":2.7838794313258896E-4},{"$f":"'Population 2016'!AX249/'Population 2016'!AX$5","v":8.0503980474590133E-4},{"$f":"'Population 2016'!AY249/'Population 2016'!AY$5","v":6.1656620054465893E-4},{"$f":"'Population 2016'!AZ249/'Population 2016'!AZ$5","v":6.3567487962446281E-4},{"$f":"'Population 2016'!BA249/'Population 2016'!BA$5","v":2.6992010364931981E-5},{"$f":"'Population 2016'!BB249/'Population 2016'!BB$5","v":3.1762910587406699E-4},{"$f":"'Population 2016'!BC249/'Population 2016'!BC$5","v":0},247]

{"sheet":"Pop2016fractionQ1","index":15,"n_rows":249,"n_cols":56,"rows_kept":249,"cut":false,"hidden":true,"merged":[]}
["Q1 subgroup's fraction of area's 2016 Q1 population (16+ only)"]
[]
["SIMD","group","Aberdeen City Local Authority","Aberdeen City Region Deal","Aberdeenshire Local Authority","Angus Local Authority","Argyll & Bute Local Authority","Ayrshire & Arran Health Board","Borders Health Board","Clackmannanshire & Stirling IJB","Clackmannanshire Local Authority","Dumfries & Galloway Health Board","Dumfries & Galloway Local Authority","Dundee City Local Authority","East Ayrshire Local Authority","East Dunbartonshire Local Authority","East Lothian Local Authority","East Renfrewshire Local Authority","Edinburgh & SE Scotland City Region Deal","Edinburgh, City of Local Authority","Eilean Siar Local Authority","Falkirk Local Authority","Fife Health Board","Fife Local Authority","Forth Valley Health Board","Glasgow City Local Authority","Glasgow City Region Deal","Grampian Health Board","Greater Glasgow & Clyde Health Board","Highland Health Board","Highland Local Authority","Inverclyde Local Authority","Inverness & Highland City Region Deal","Lanarkshire Health Board","Lothian Health Board","Midlothian Local Authority","Moray Local Authority","North Ayrshire Local Authority","North Lanarkshire Local Authority","Orkney Health Board","Orkney Islands Local Authority","Perth & Kinross Local Authority","Renfrewshire Local Authority","Scotland","Scottish Borders Local Authority","Shetland Health Board","Shetland Islands Local Authority","South Ayrshire Local Authority","South Lanarkshire Local Authority","Stirling Local Authority","Tay Cities Region Deal ","Tayside Health Board","West Dunbartonshire Local Authority","West Lothian Local Authority","Western Isles Health Board",1]
[null,null,"popS12000033","Aber_deal","popS12000034","popS12000041","popS12000035","popS08000015","popS08000016","ClacksStirIJB","popS12000005","popS08000017","popS12000006","popS12000042","popS12000008","popS12000045","popS12000010","popS12000011","EdinSE_deal","popS12000036","popS12000013","popS12000014","popS08000018","popS12000015","popS08000019","popS12000046","GClyde_deal","popS08000020","popS08000021","popS08000022","popS12000017","popS12000018","Inver_deal","popS08000023","popS08000024","popS12000019","popS12000020","popS12000021","popS12000044","popS08000025","popS12000023","popS12000024","popS12000038","popS00000001","popS12000026","popS08000026","popS12000027","popS12000028","popS12000029","popS12000030","Tay_deal","popS08000027","popS12000039","popS12000040","popS08000028",2]
["All quintiles","16+ Males and Females",null,null,null,null,null,null,null,null,null,null,null,null,null,null,null,null,null,null,null,null,null,null,null,null,null,null,null,null,null,null,null,null,null,null,null,null,null,null,null,null,null,null,null,null,null,null,null,null,null,null,null,null,null,3]
["Q1 and Q2","16+ Males and Females",null,null,null,null,null,null,null,null,null,null,null,null,null,null,null,null,null,null,null,null,null,null,null,null,null,null,null,null,null,null,null,null,null,null,null,null,null,null,null,null,null,null,null,null,null,null,null,null,null,null,null,null,null,4]
["SIMD Q1 (most deprived)","16+ Males and Females",{"$f":"'Population 2016'!R7/'Population 2016'!R$7","v":1},{"$f":"'Population 2016'!AX7/'Population 2016'!AX$7","v":1},{"$f":"'Population 2016'!S7/'Population 2016'!S$7","v":1},{"$f":"'Population 2016'!T7/'Population 2016'!T$7","v":1},{"$f":"'Population 2016'!U7/'Population 2016'!U$7","v":{"$error":"#DIV/0!"}},{"$f":"'Population 2016'!D7/'Population 2016'!D$7","v":1},{"$f":"'Population 2016'!E7/'Population 2016'!E$7","v":1},{"$f":"'Population 2016'!BC7/'Population 2016'!BC$7","v":{"$error":"#DIV/0!"}},{"$f":"'Population 2016'!V7/'Population 2016'!V$7","v":1},{"$f":"'Population 2016'!F7/'Population 2016'!F$7","v":1},{"$f":"'Population 2016'!W7/'Population 2016'!W$7","v":1},{"$f":"'Population 2016'!X7/'Population 2016'!X$7","v":1},{"$f":"'Population 2016'!Y7/'Population 2016'!Y$7","v":1},{"$f":"'Population 2016'!Z7/'Population 2016'!Z$7","v":1},{"$f":"'Population 2016'!AA7/'Population 2016'!AA$7","v":1},{"$f":"'Population 2016'!AB7/'Population 2016'!AB$7","v":1},{"$f":"'Population 2016'!AY7/'Population 2016'!AY$7","v":1},{"$f":"'Population 2016'!AC7/'Population 2016'!AC$7","v":1},{"$f":"'Population 2016'!AD7/'Population 2016'!AD$7","v":1},{"$f":"'Population 2016'!AE7/'Population 2016'!AE$7","v":1},{"$f":"'Population 2016'!G7/'Population 2016'!G$7","v":1},{"$f":"'Population 2016'!AF7/'Population 2016'!AF$7","v":1},{"$f":"'Population 2016'!H7/'Population 2016'!H$7","v":1},{"$f":"'Population 2016'!AG7/'Population 2016'!AG$7","v":1},{"$f":"'Population 2016'!AZ7/'Population 2016'!AZ$7","v":1},{"$f":"'Population 2016'!I7/'Population 2016'!I$7","v":1},{"$f":"'Population 2016'!J7/'Population 2016'!J$7","v":1},{"$f":"'Population 2016'!K7/'Population 2016'!K$7","v":1},{"$f":"'Population 2016'!AH7/'Population 2016'!AH$7","v":1},{"$f":"'Population 2016'!AI7/'Population 2016'!AI$7","v":1},{"$f":"'Population 2016'!BA7/'Population 2016'!BA$7","v":1},{"$f":"'Population 2016'!L7/'Population 2016'!L$7","v":1},{"$f":"'Population 2016'!M7/'Population 2016'!M$7","v":1},{"$f":"'Population 2016'!AJ7/'Population 2016'!AJ$7","v":1},{"$f":"'Population 2016'!AK7/'Population 2016'!AK$7","v":1},{"$f":"'Population 2016'!AL7/'Population 2016'!AL$7","v":1},{"$f":"'Population 2016'!AM7/'Population 2016'!AM$7","v":1},{"$f":"'Population 2016'!N7/'Population 2016'!N$7","v":1},{"$f":"'Population 2016'!AN7/'Population 2016'!AN$7","v":{"$error":"#DIV/0!"}},{"$f":"'Population 2016'!AO7/'Population 2016'!AO$7","v":{"$error":"#DIV/0!"}},{"$f":"'Population 2016'!AP7/'Population 2016'!AP$7","v":1},{"$f":"'Population 2016'!C7/'Population 2016'!C$7","v":1},{"$f":"'Population 2016'!AQ7/'Population 2016'!AQ$7","v":1},{"$f":"'Population 2016'!O7/'Population 2016'!O$7","v":1},{"$f":"'Population 2016'!AR7/'Population 2016'!AR$7","v":1},{"$f":"'Population 2016'!AS7/'Population 2016'!AS$7","v":1},{"$f":"'Population 2016'!AT7/'Population 2016'!AT$7","v":{"$error":"#DIV/0!"}},{"$f":"'Population 2016'!AU7/'Population 2016'!AU$7","v":{"$error":"#DIV/0!"}},{"$f":"'Population 2016'!BB7/'Population 2016'!BB$7","v":1},{"$f":"'Population 2016'!P7/'Population 2016'!P$7","v":1},{"$f":"'Population 2016'!AV7/'Population 2016'!AV$7","v":1},{"$f":"'Population 2016'!AW7/'Population 2016'!AW$7","v":1},{"$f":"'Population 2016'!Q7/'Population 2016'!Q$7","v":1},5]
["SIMD Q2",null,null,null,null,null,null,null,null,null,null,null,null,null,null,null,null,null,null,null,null,null,null,null,null,null,null,null,null,null,null,null,null,null,null,null,null,null,null,null,null,null,null,null,null,null,null,null,null,null,null,null,null,null,null,6]
["SIMD Q3",null,null,null,null,null,null,null,null,null,null,null,null,null,null,null,null,null,null,null,null,null,null,null,null,null,null,null,null,null,null,null,null,null,null,null,null,null,null,null,null,null,null,null,null,null,null,null,null,null,null,null,null,null,null,7]
["SIMD Q4",null,null,null,null,null,null,null,null,null,null,null,null,null,null,null,null,null,null,null,null,null,null,null,null,null,null,null,null,null,null,null,null,null,null,null,null,null,null,null,null,null,null,null,null,null,null,null,null,null,null,null,null,null,null,8]
["SIMD Q5 (least deprived)",null,null,null,null,null,null,null,null,null,null,null,null,null,null,null,null,null,null,null,null,null,null,null,null,null,null,null,null,null,null,null,null,null,null,null,null,null,null,null,null,null,null,null,null,null,null,null,null,null,null,null,null,null,null,9]
["SIMD Q1 (most deprived)","16+ Females",null,null,null,null,null,null,null,null,null,null,null,null,null,null,null,null,null,null,null,null,null,null,null,null,null,null,null,null,null,null,null,null,null,null,null,null,null,null,null,null,null,null,null,null,null,null,null,null,null,null,null,null,null,10]
["SIMD Q2",null,null,null,null,null,null,null,null,null,null,null,null,null,null,null,null,null,null,null,null,null,null,null,null,null,null,null,null,null,null,null,null,null,null,null,null,null,null,null,null,null,null,null,null,null,null,null,null,null,null,null,null,null,null,11]
["SIMD Q3",null,null,null,null,null,null,null,null,null,null,null,null,null,null,null,null,null,null,null,null,null,null,null,null,null,null,null,null,null,null,null,null,null,null,null,null,null,null,null,null,null,null,null,null,null,null,null,null,null,null,null,null,null,null,12]
["SIMD Q4",null,null,null,null,null,null,null,null,null,null,null,null,null,null,null,null,null,null,null,null,null,null,null,null,null,null,null,null,null,null,null,null,null,null,null,null,null,null,null,null,null,null,null,null,null,null,null,null,null,null,null,null,null,null,13]
["SIMD Q5 (least deprived)",null,null,null,null,null,null,null,null,null,null,null,null,null,null,null,null,null,null,null,null,null,null,null,null,null,null,null,null,null,null,null,null,null,null,null,null,null,null,null,null,null,null,null,null,null,null,null,null,null,null,null,null,null,null,14]
["SIMD Q1 (most deprived)","16+ Males",null,null,null,null,null,null,null,null,null,null,null,null,null,null,null,null,null,null,null,null,null,null,null,null,null,null,null,null,null,null,null,null,null,null,null,null,null,null,null,null,null,null,null,null,null,null,null,null,null,null,null,null,null,15]
["SIMD Q2",null,null,null,null,null,null,null,null,null,null,null,null,null,null,null,null,null,null,null,null,null,null,null,null,null,null,null,null,null,null,null,null,null,null,null,null,null,null,null,null,null,null,null,null,null,null,null,null,null,null,null,null,null,null,16]
["SIMD Q3",null,null,null,null,null,null,null,null,null,null,null,null,null,null,null,null,null,null,null,null,null,null,null,null,null,null,null,null,null,null,null,null,null,null,null,null,null,null,null,null,null,null,null,null,null,null,null,null,null,null,null,null,null,null,17]
["SIMD Q4",null,null,null,null,null,null,null,null,null,null,null,null,null,null,null,null,null,null,null,null,null,null,null,null,null,null,null,null,null,null,null,null,null,null,null,null,null,null,null,null,null,null,null,null,null,null,null,null,null,null,null,null,null,null,18]
["SIMD Q5 (least deprived)",null,null,null,null,null,null,null,null,null,null,null,null,null,null,null,null,null,null,null,null,null,null,null,null,null,null,null,null,null,null,null,null,null,null,null,null,null,null,null,null,null,null,null,null,null,null,null,null,null,null,null,null,null,null,19]
["All quintiles","Female 0-4",null,null,null,null,null,null,null,null,null,null,null,null,null,null,null,null,null,null,null,null,null,null,null,null,null,null,null,null,null,null,null,null,null,null,null,null,null,null,null,null,null,null,null,null,null,null,null,null,null,null,null,null,null,20]
[null,"Female 5-9",null,null,null,null,null,null,null,null,null,null,null,null,null,null,null,null,null,null,null,null,null,null,null,null,null,null,null,null,null,null,null,null,null,null,null,null,null,null,null,null,null,null,null,null,null,null,null,null,null,null,null,null,null,21]
[null,"Female 10-15",null,null,null,null,null,null,null,null,null,null,null,null,null,null,null,null,null,null,null,null,null,null,null,null,null,null,null,null,null,null,null,null,null,null,null,null,null,null,null,null,null,null,null,null,null,null,null,null,null,null,null,null,null,22]
[null,"Female 16-19",null,null,null,null,null,null,null,null,null,null,null,null,null,null,null,null,null,null,null,null,null,null,null,null,null,null,null,null,null,null,null,null,null,null,null,null,null,null,null,null,null,null,null,null,null,null,null,null,null,null,null,null,null,23]
[null,"Female 20-24",null,null,null,null,null,null,null,null,null,null,null,null,null,null,null,null,null,null,null,null,null,null,null,null,null,null,null,null,null,null,null,null,null,null,null,null,null,null,null,null,null,null,null,null,null,null,null,null,null,null,null,null,null,24]
[null,"Female 25-29",null,null,null,null,null,null,null,null,null,null,null,null,null,null,null,null,null,null,null,null,null,null,null,null,null,null,null,null,null,null,null,null,null,null,null,null,null,null,null,null,null,null,null,null,null,null,null,null,null,null,null,null,null,25]
[null,"Female 30-34",null,null,null,null,null,null,null,null,null,null,null,null,null,null,null,null,null,null,null,null,null,null,null,null,null,null,null,null,null,null,null,null,null,null,null,null,null,null,null,null,null,null,null,null,null,null,null,null,null,null,null,null,null,26]
[null,"Female 35-39",null,null,null,null,null,null,null,null,null,null,null,null,null,null,null,null,null,null,null,null,null,null,null,null,null,null,null,null,null,null,null,null,null,null,null,null,null,null,null,null,null,null,null,null,null,null,null,null,null,null,null,null,null,27]
[null,"Female 40-44",null,null,null,null,null,null,null,null,null,null,null,null,null,null,null,null,null,null,null,null,null,null,null,null,null,null,null,null,null,null,null,null,null,null,null,null,null,null,null,null,null,null,null,null,null,null,null,null,null,null,null,null,null,28]
[null,"Female 45-49",null,null,null,null,null,null,null,null,null,null,null,null,null,null,null,null,null,null,null,null,null,null,null,null,null,null,null,null,null,null,null,null,null,null,null,null,null,null,null,null,null,null,null,null,null,null,null,null,null,null,null,null,null,29]
[null,"Female 50-54",null,null,null,null,null,null,null,null,null,null,null,null,null,null,null,null,null,null,null,null,null,null,null,null,null,null,null,null,null,null,null,null,null,null,null,null,null,null,null,null,null,null,null,null,null,null,null,null,null,null,null,null,null,30]
[null,"Female 55-59",null,null,null,null,null,null,null,null,null,null,null,null,null,null,null,null,null,null,null,null,null,null,null,null,null,null,null,null,null,null,null,null,null,null,null,null,null,null,null,null,null,null,null,null,null,null,null,null,null,null,null,null,null,31]
[null,"Female 60-64",null,null,null,null,null,null,null,null,null,null,null,null,null,null,null,null,null,null,null,null,null,null,null,null,null,null,null,null,null,null,null,null,null,null,null,null,null,null,null,null,null,null,null,null,null,null,null,null,null,null,null,null,null,32]
[null,"Female 65-69",null,null,null,null,null,null,null,null,null,null,null,null,null,null,null,null,null,null,null,null,null,null,null,null,null,null,null,null,null,null,null,null,null,null,null,null,null,null,null,null,null,null,null,null,null,null,null,null,null,null,null,null,null,33]
[null,"Female 70-74",null,null,null,null,null,null,null,null,null,null,null,null,null,null,null,null,null,null,null,null,null,null,null,null,null,null,null,null,null,null,null,null,null,null,null,null,null,null,null,null,null,null,null,null,null,null,null,null,null,null,null,null,null,34]
[null,"Female 75-79",null,null,null,null,null,null,null,null,null,null,null,null,null,null,null,null,null,null,null,null,null,null,null,null,null,null,null,null,null,null,null,null,null,null,null,null,null,null,null,null,null,null,null,null,null,null,null,null,null,null,null,null,null,35]
[null,"Female 80-84",null,null,null,null,null,null,null,null,null,null,null,null,null,null,null,null,null,null,null,null,null,null,null,null,null,null,null,null,null,null,null,null,null,null,null,null,null,null,null,null,null,null,null,null,null,null,null,null,null,null,null,null,null,36]
[null,"Female 85-89",null,null,null,null,null,null,null,null,null,null,null,null,null,null,null,null,null,null,null,null,null,null,null,null,null,null,null,null,null,null,null,null,null,null,null,null,null,null,null,null,null,null,null,null,null,null,null,null,null,null,null,null,null,37]
[null,"Female 90+",null,null,null,null,null,null,null,null,null,null,null,null,null,null,null,null,null,null,null,null,null,null,null,null,null,null,null,null,null,null,null,null,null,null,null,null,null,null,null,null,null,null,null,null,null,null,null,null,null,null,null,null,null,38]
[null,"Male 0-4",null,null,null,null,null,null,null,null,null,null,null,null,null,null,null,null,null,null,null,null,null,null,null,null,null,null,null,null,null,null,null,null,null,null,null,null,null,null,null,null,null,null,null,null,null,null,null,null,null,null,null,null,null,39]
[null,"Male 5-9",null,null,null,null,null,null,null,null,null,null,null,null,null,null,null,null,null,null,null,null,null,null,null,null,null,null,null,null,null,null,null,null,null,null,null,null,null,null,null,null,null,null,null,null,null,null,null,null,null,null,null,null,null,40]
[null,"Male 10-15",null,null,null,null,null,null,null,null,null,null,null,null,null,null,null,null,null,null,null,null,null,null,null,null,null,null,null,null,null,null,null,null,null,null,null,null,null,null,null,null,null,null,null,null,null,null,null,null,null,null,null,null,null,41]
[null,"Male 16-19",null,null,null,null,null,null,null,null,null,null,null,null,null,null,null,null,null,null,null,null,null,null,null,null,null,null,null,null,null,null,null,null,null,null,null,null,null,null,null,null,null,null,null,null,null,null,null,null,null,null,null,null,null,42]
[null,"Male 20-24",null,null,null,null,null,null,null,null,null,null,null,null,null,null,null,null,null,null,null,null,null,null,null,null,null,null,null,null,null,null,null,null,null,null,null,null,null,null,null,null,null,null,null,null,null,null,null,null,null,null,null,null,null,43]
[null,"Male 25-29",null,null,null,null,null,null,null,null,null,null,null,null,null,null,null,null,null,null,null,null,null,null,null,null,null,null,null,null,null,null,null,null,null,null,null,null,null,null,null,null,null,null,null,null,null,null,null,null,null,null,null,null,null,44]
[null,"Male 30-34",null,null,null,null,null,null,null,null,null,null,null,null,null,null,null,null,null,null,null,null,null,null,null,null,null,null,null,null,null,null,null,null,null,null,null,null,null,null,null,null,null,null,null,null,null,null,null,null,null,null,null,null,null,45]
[null,"Male 35-39",null,null,null,null,null,null,null,null,null,null,null,null,null,null,null,null,null,null,null,null,null,null,null,null,null,null,null,null,null,null,null,null,null,null,null,null,null,null,null,null,null,null,null,null,null,null,null,null,null,null,null,null,null,46]
[null,"Male 40-44",null,null,null,null,null,null,null,null,null,null,null,null,null,null,null,null,null,null,null,null,null,null,null,null,null,null,null,null,null,null,null,null,null,null,null,null,null,null,null,null,null,null,null,null,null,null,null,null,null,null,null,null,null,47]
[null,"Male 45-49",null,null,null,null,null,null,null,null,null,null,null,null,null,null,null,null,null,null,null,null,null,null,null,null,null,null,null,null,null,null,null,null,null,null,null,null,null,null,null,null,null,null,null,null,null,null,null,null,null,null,null,null,null,48]
[null,"Male 50-54",null,null,null,null,null,null,null,null,null,null,null,null,null,null,null,null,null,null,null,null,null,null,null,null,null,null,null,null,null,null,null,null,null,null,null,null,null,null,null,null,null,null,null,null,null,null,null,null,null,null,null,null,null,49]
[null,"Male 55-59",null,null,null,null,null,null,null,null,null,null,null,null,null,null,null,null,null,null,null,null,null,null,null,null,null,null,null,null,null,null,null,null,null,null,null,null,null,null,null,null,null,null,null,null,null,null,null,null,null,null,null,null,null,50]
[null,"Male 60-64",null,null,null,null,null,null,null,null,null,null,null,null,null,null,null,null,null,null,null,null,null,null,null,null,null,null,null,null,null,null,null,null,null,null,null,null,null,null,null,null,null,null,null,null,null,null,null,null,null,null,null,null,null,51]
[null,"Male 65-69",null,null,null,null,null,null,null,null,null,null,null,null,null,null,null,null,null,null,null,null,null,null,null,null,null,null,null,null,null,null,null,null,null,null,null,null,null,null,null,null,null,null,null,null,null,null,null,null,null,null,null,null,null,52]
[null,"Male 70-74",null,null,null,null,null,null,null,null,null,null,null,null,null,null,null,null,null,null,null,null,null,null,null,null,null,null,null,null,null,null,null,null,null,null,null,null,null,null,null,null,null,null,null,null,null,null,null,null,null,null,null,null,null,53]
[null,"Male 75-79",null,null,null,null,null,null,null,null,null,null,null,null,null,null,null,null,null,null,null,null,null,null,null,null,null,null,null,null,null,null,null,null,null,null,null,null,null,null,null,null,null,null,null,null,null,null,null,null,null,null,null,null,null,54]
[null,"Male 80-84",null,null,null,null,null,null,null,null,null,null,null,null,null,null,null,null,null,null,null,null,null,null,null,null,null,null,null,null,null,null,null,null,null,null,null,null,null,null,null,null,null,null,null,null,null,null,null,null,null,null,null,null,null,55]
[null,"Male 85-89",null,null,null,null,null,null,null,null,null,null,null,null,null,null,null,null,null,null,null,null,null,null,null,null,null,null,null,null,null,null,null,null,null,null,null,null,null,null,null,null,null,null,null,null,null,null,null,null,null,null,null,null,null,56]
[null,"Male 90+",null,null,null,null,null,null,null,null,null,null,null,null,null,null,null,null,null,null,null,null,null,null,null,null,null,null,null,null,null,null,null,null,null,null,null,null,null,null,null,null,null,null,null,null,null,null,null,null,null,null,null,null,null,57]
["SIMD Q1 (most deprived)","Female 0-4",{"$f":"'Population 2016'!C60/'Population 2016'!C$7","v":0},{"$f":"'Population 2016'!D60/'Population 2016'!D$7","v":0},{"$f":"'Population 2016'!E60/'Population 2016'!E$7","v":0},{"$f":"'Population 2016'!F60/'Population 2016'!F$7","v":0},{"$f":"'Population 2016'!G60/'Population 2016'!G$7","v":0},{"$f":"'Population 2016'!H60/'Population 2016'!H$7","v":0},{"$f":"'Population 2016'!I60/'Population 2016'!I$7","v":0},{"$f":"'Population 2016'!J60/'Population 2016'!J$7","v":0},{"$f":"'Population 2016'!K60/'Population 2016'!K$7","v":0},{"$f":"'Population 2016'!L60/'Population 2016'!L$7","v":0},{"$f":"'Population 2016'!M60/'Population 2016'!M$7","v":0},{"$f":"'Population 2016'!N60/'Population 2016'!N$7","v":0},{"$f":"'Population 2016'!O60/'Population 2016'!O$7","v":0},{"$f":"'Population 2016'!P60/'Population 2016'!P$7","v":0},{"$f":"'Population 2016'!Q60/'Population 2016'!Q$7","v":0},{"$f":"'Population 2016'!R60/'Population 2016'!R$7","v":0},{"$f":"'Population 2016'!S60/'Population 2016'!S$7","v":0},{"$f":"'Population 2016'!T60/'Population 2016'!T$7","v":0},{"$f":"'Population 2016'!U60/'Population 2016'!U$7","v":{"$error":"#DIV/0!"}},{"$f":"'Population 2016'!V60/'Population 2016'!V$7","v":0},{"$f":"'Population 2016'!W60/'Population 2016'!W$7","v":0},{"$f":"'Population 2016'!X60/'Population 2016'!X$7","v":0},{"$f":"'Population 2016'!Y60/'Population 2016'!Y$7","v":0},{"$f":"'Population 2016'!Z60/'Population 2016'!Z$7","v":0},{"$f":"'Population 2016'!AA60/'Population 2016'!AA$7","v":0},{"$f":"'Population 2016'!AB60/'Population 2016'!AB$7","v":0},{"$f":"'Population 2016'!AC60/'Population 2016'!AC$7","v":0},{"$f":"'Population 2016'!AD60/'Population 2016'!AD$7","v":0},{"$f":"'Population 2016'!AE60/'Population 2016'!AE$7","v":0},{"$f":"'Population 2016'!AF60/'Population 2016'!AF$7","v":0},{"$f":"'Population 2016'!AG60/'Population 2016'!AG$7","v":0},{"$f":"'Population 2016'!AH60/'Population 2016'!AH$7","v":0},{"$f":"'Population 2016'!AI60/'Population 2016'!AI$7","v":0},{"$f":"'Population 2016'!AJ60/'Population 2016'!AJ$7","v":0},{"$f":"'Population 2016'!AK60/'Population 2016'!AK$7","v":0},{"$f":"'Population 2016'!AL60/'Population 2016'!AL$7","v":0},{"$f":"'Population 2016'!AM60/'Population 2016'!AM$7","v":0},{"$f":"'Population 2016'!AN60/'Population 2016'!AN$7","v":{"$error":"#DIV/0!"}},{"$f":"'Population 2016'!AO60/'Population 2016'!AO$7","v":{"$error":"#DIV/0!"}},{"$f":"'Population 2016'!AP60/'Population 2016'!AP$7","v":0},{"$f":"'Population 2016'!AQ60/'Population 2016'!AQ$7","v":0},{"$f":"'Population 2016'!AR60/'Population 2016'!AR$7","v":0},{"$f":"'Population 2016'!AS60/'Population 2016'!AS$7","v":0},{"$f":"'Population 2016'!AT60/'Population 2016'!AT$7","v":{"$error":"#DIV/0!"}},{"$f":"'Population 2016'!AU60/'Population 2016'!AU$7","v":{"$error":"#DIV/0!"}},{"$f":"'Population 2016'!AV60/'Population 2016'!AV$7","v":0},{"$f":"'Population 2016'!AW60/'Population 2016'!AW$7","v":0},{"$f":"'Population 2016'!AX60/'Population 2016'!AX$7","v":0},{"$f":"'Population 2016'!AY60/'Population 2016'!AY$7","v":0},{"$f":"'Population 2016'!AZ60/'Population 2016'!AZ$7","v":0},{"$f":"'Population 2016'!BA60/'Population 2016'!BA$7","v":0},{"$f":"'Population 2016'!BB60/'Population 2016'!BB$7","v":0},{"$f":"'Population 2016'!BC60/'Population 2016'!BC$7","v":{"$error":"#DIV/0!"}},58]
[null,"Female 5-9",{"$f":"'Population 2016'!C61/'Population 2016'!C$7","v":0},{"$f":"'Population 2016'!D61/'Population 2016'!D$7","v":0},{"$f":"'Population 2016'!E61/'Population 2016'!E$7","v":0},{"$f":"'Population 2016'!F61/'Population 2016'!F$7","v":0},{"$f":"'Population 2016'!G61/'Population 2016'!G$7","v":0},{"$f":"'Population 2016'!H61/'Population 2016'!H$7","v":0},{"$f":"'Population 2016'!I61/'Population 2016'!I$7","v":0},{"$f":"'Population 2016'!J61/'Population 2016'!J$7","v":0},{"$f":"'Population 2016'!K61/'Population 2016'!K$7","v":0},{"$f":"'Population 2016'!L61/'Population 2016'!L$7","v":0},{"$f":"'Population 2016'!M61/'Population 2016'!M$7","v":0},{"$f":"'Population 2016'!N61/'Population 2016'!N$7","v":0},{"$f":"'Population 2016'!O61/'Population 2016'!O$7","v":0},{"$f":"'Population 2016'!P61/'Population 2016'!P$7","v":0},{"$f":"'Population 2016'!Q61/'Population 2016'!Q$7","v":0},{"$f":"'Population 2016'!R61/'Population 2016'!R$7","v":0},{"$f":"'Population 2016'!S61/'Population 2016'!S$7","v":0},{"$f":"'Population 2016'!T61/'Population 2016'!T$7","v":0},{"$f":"'Population 2016'!U61/'Population 2016'!U$7","v":{"$error":"#DIV/0!"}},{"$f":"'Population 2016'!V61/'Population 2016'!V$7","v":0},{"$f":"'Population 2016'!W61/'Population 2016'!W$7","v":0},{"$f":"'Population 2016'!X61/'Population 2016'!X$7","v":0},{"$f":"'Population 2016'!Y61/'Population 2016'!Y$7","v":0},{"$f":"'Population 2016'!Z61/'Population 2016'!Z$7","v":0},{"$f":"'Population 2016'!AA61/'Population 2016'!AA$7","v":0},{"$f":"'Population 2016'!AB61/'Population 2016'!AB$7","v":0},{"$f":"'Population 2016'!AC61/'Population 2016'!AC$7","v":0},{"$f":"'Population 2016'!AD61/'Population 2016'!AD$7","v":0},{"$f":"'Population 2016'!AE61/'Population 2016'!AE$7","v":0},{"$f":"'Population 2016'!AF61/'Population 2016'!AF$7","v":0},{"$f":"'Population 2016'!AG61/'Population 2016'!AG$7","v":0},{"$f":"'Population 2016'!AH61/'Population 2016'!AH$7","v":0},{"$f":"'Population 2016'!AI61/'Population 2016'!AI$7","v":0},{"$f":"'Population 2016'!AJ61/'Population 2016'!AJ$7","v":0},{"$f":"'Population 2016'!AK61/'Population 2016'!AK$7","v":0},{"$f":"'Population 2016'!AL61/'Population 2016'!AL$7","v":0},{"$f":"'Population 2016'!AM61/'Population 2016'!AM$7","v":0},{"$f":"'Population 2016'!AN61/'Population 2016'!AN$7","v":{"$error":"#DIV/0!"}},{"$f":"'Population 2016'!AO61/'Population 2016'!AO$7","v":{"$error":"#DIV/0!"}},{"$f":"'Population 2016'!AP61/'Population 2016'!AP$7","v":0},{"$f":"'Population 2016'!AQ61/'Population 2016'!AQ$7","v":0},{"$f":"'Population 2016'!AR61/'Population 2016'!AR$7","v":0},{"$f":"'Population 2016'!AS61/'Population 2016'!AS$7","v":0},{"$f":"'Population 2016'!AT61/'Population 2016'!AT$7","v":{"$error":"#DIV/0!"}},{"$f":"'Population 2016'!AU61/'Population 2016'!AU$7","v":{"$error":"#DIV/0!"}},{"$f":"'Population 2016'!AV61/'Population 2016'!AV$7","v":0},{"$f":"'Population 2016'!AW61/'Population 2016'!AW$7","v":0},{"$f":"'Population 2016'!AX61/'Population 2016'!AX$7","v":0},{"$f":"'Population 2016'!AY61/'Population 2016'!AY$7","v":0},{"$f":"'Population 2016'!AZ61/'Population 2016'!AZ$7","v":0},{"$f":"'Population 2016'!BA61/'Population 2016'!BA$7","v":0},{"$f":"'Population 2016'!BB61/'Population 2016'!BB$7","v":0},{"$f":"'Population 2016'!BC61/'Population 2016'!BC$7","v":{"$error":"#DIV/0!"}},59]
[null,"Female 10-15",{"$f":"'Population 2016'!C62/'Population 2016'!C$7","v":0},{"$f":"'Population 2016'!D62/'Population 2016'!D$7","v":0},{"$f":"'Population 2016'!E62/'Population 2016'!E$7","v":0},{"$f":"'Population 2016'!F62/'Population 2016'!F$7","v":0},{"$f":"'Population 2016'!G62/'Population 2016'!G$7","v":0},{"$f":"'Population 2016'!H62/'Population 2016'!H$7","v":0},{"$f":"'Population 2016'!I62/'Population 2016'!I$7","v":0},{"$f":"'Population 2016'!J62/'Population 2016'!J$7","v":0},{"$f":"'Population 2016'!K62/'Population 2016'!K$7","v":0},{"$f":"'Population 2016'!L62/'Population 2016'!L$7","v":0},{"$f":"'Population 2016'!M62/'Population 2016'!M$7","v":0},{"$f":"'Population 2016'!N62/'Population 2016'!N$7","v":0},{"$f":"'Population 2016'!O62/'Population 2016'!O$7","v":0},{"$f":"'Population 2016'!P62/'Population 2016'!P$7","v":0},{"$f":"'Population 2016'!Q62/'Population 2016'!Q$7","v":0},{"$f":"'Population 2016'!R62/'Population 2016'!R$7","v":0},{"$f":"'Population 2016'!S62/'Population 2016'!S$7","v":0},{"$f":"'Population 2016'!T62/'Population 2016'!T$7","v":0},{"$f":"'Population 2016'!U62/'Population 2016'!U$7","v":{"$error":"#DIV/0!"}},{"$f":"'Population 2016'!V62/'Population 2016'!V$7","v":0},{"$f":"'Population 2016'!W62/'Population 2016'!W$7","v":0},{"$f":"'Population 2016'!X62/'Population 2016'!X$7","v":0},{"$f":"'Population 2016'!Y62/'Population 2016'!Y$7","v":0},{"$f":"'Population 2016'!Z62/'Population 2016'!Z$7","v":0},{"$f":"'Population 2016'!AA62/'Population 2016'!AA$7","v":0},{"$f":"'Population 2016'!AB62/'Population 2016'!AB$7","v":0},{"$f":"'Population 2016'!AC62/'Population 2016'!AC$7","v":0},{"$f":"'Population 2016'!AD62/'Population 2016'!AD$7","v":0},{"$f":"'Population 2016'!AE62/'Population 2016'!AE$7","v":0},{"$f":"'Population 2016'!AF62/'Population 2016'!AF$7","v":0},{"$f":"'Population 2016'!AG62/'Population 2016'!AG$7","v":0},{"$f":"'Population 2016'!AH62/'Population 2016'!AH$7","v":0},{"$f":"'Population 2016'!AI62/'Population 2016'!AI$7","v":0},{"$f":"'Population 2016'!AJ62/'Population 2016'!AJ$7","v":0},{"$f":"'Population 2016'!AK62/'Population 2016'!AK$7","v":0},{"$f":"'Population 2016'!AL62/'Population 2016'!AL$7","v":0},{"$f":"'Population 2016'!AM62/'Population 2016'!AM$7","v":0},{"$f":"'Population 2016'!AN62/'Population 2016'!AN$7","v":{"$error":"#DIV/0!"}},{"$f":"'Population 2016'!AO62/'Population 2016'!AO$7","v":{"$error":"#DIV/0!"}},{"$f":"'Population 2016'!AP62/'Population 2016'!AP$7","v":0},{"$f":"'Population 2016'!AQ62/'Population 2016'!AQ$7","v":0},{"$f":"'Population 2016'!AR62/'Population 2016'!AR$7","v":0},{"$f":"'Population 2016'!AS62/'Population 2016'!AS$7","v":0},{"$f":"'Population 2016'!AT62/'Population 2016'!AT$7","v":{"$error":"#DIV/0!"}},{"$f":"'Population 2016'!AU62/'Population 2016'!AU$7","v":{"$error":"#DIV/0!"}},{"$f":"'Population 2016'!AV62/'Population 2016'!AV$7","v":0},{"$f":"'Population 2016'!AW62/'Population 2016'!AW$7","v":0},{"$f":"'Population 2016'!AX62/'Population 2016'!AX$7","v":0},{"$f":"'Population 2016'!AY62/'Population 2016'!AY$7","v":0},{"$f":"'Population 2016'!AZ62/'Population 2016'!AZ$7","v":0},{"$f":"'Population 2016'!BA62/'Population 2016'!BA$7","v":0},{"$f":"'Population 2016'!BB62/'Population 2016'!BB$7","v":0},{"$f":"'Population 2016'!BC62/'Population 2016'!BC$7","v":{"$error":"#DIV/0!"}},60]
[null,"Female 16-19",{"$f":"'Population 2016'!C63/'Population 2016'!C$7","v":2.3366866165796512E-2},{"$f":"'Population 2016'!D63/'Population 2016'!D$7","v":2.3858146137371122E-2},{"$f":"'Population 2016'!E63/'Population 2016'!E$7","v":2.562342713337909E-2},{"$f":"'Population 2016'!F63/'Population 2016'!F$7","v":3.3025885153228206E-2},{"$f":"'Population 2016'!G63/'Population 2016'!G$7","v":2.7047054464616523E-2},{"$f":"'Population 2016'!H63/'Population 2016'!H$7","v":2.9276091911804424E-2},{"$f":"'Population 2016'!I63/'Population 2016'!I$7","v":3.2872981910134214E-2},{"$f":"'Population 2016'!J63/'Population 2016'!J$7","v":2.9870260484763149E-2},{"$f":"'Population 2016'!K63/'Population 2016'!K$7","v":2.7463165280144333E-2},{"$f":"'Population 2016'!L63/'Population 2016'!L$7","v":3.1550480769230768E-2},{"$f":"'Population 2016'!M63/'Population 2016'!M$7","v":3.1550480769230768E-2},{"$f":"'Population 2016'!N63/'Population 2016'!N$7","v":2.9211814659272837E-2},{"$f":"'Population 2016'!O63/'Population 2016'!O$7","v":2.7685845213849286E-2},{"$f":"'Population 2016'!P63/'Population 2016'!P$7","v":2.7301280502536846E-2},{"$f":"'Population 2016'!Q63/'Population 2016'!Q$7","v":2.843439534087016E-2},{"$f":"'Population 2016'!R63/'Population 2016'!R$7","v":3.3887987012987016E-2},{"$f":"'Population 2016'!S63/'Population 2016'!S$7","v":2.9441723800195885E-2},{"$f":"'Population 2016'!T63/'Population 2016'!T$7","v":2.6873458885752065E-2},{"$f":"'Population 2016'!U63/'Population 2016'!U$7","v":{"$error":"#DIV/0!"}},{"$f":"'Population 2016'!V63/'Population 2016'!V$7","v":2.4892343241256172E-2},{"$f":"'Population 2016'!W63/'Population 2016'!W$7","v":3.0953307722249489E-2},{"$f":"'Population 2016'!X63/'Population 2016'!X$7","v":3.0953307722249489E-2},{"$f":"'Population 2016'!Y63/'Population 2016'!Y$7","v":2.7435265104808877E-2},{"$f":"'Population 2016'!Z63/'Population 2016'!Z$7","v":2.53492417127479E-2},{"$f":"'Population 2016'!AA63/'Population 2016'!AA$7","v":2.6628649455162724E-2},{"$f":"'Population 2016'!AB63/'Population 2016'!AB$7","v":2.3899188876013906E-2},{"$f":"'Population 2016'!AC63/'Population 2016'!AC$7","v":2.574934738019765E-2},{"$f":"'Population 2016'!AD63/'Population 2016'!AD$7","v":2.9571774845138701E-2},{"$f":"'Population 2016'!AE63/'Population 2016'!AE$7","v":3.0606820080504291E-2},{"$f":"'Population 2016'!AF63/'Population 2016'!AF$7","v":2.4868069110099037E-2},{"$f":"'Population 2016'!AG63/'Population 2016'!AG$7","v":3.0606820080504291E-2},{"$f":"'Population 2016'!AH63/'Population 2016'!AH$7","v":2.8805308138905916E-2},{"$f":"'Population 2016'!AI63/'Population 2016'!AI$7","v":2.8238866396761132E-2},{"$f":"'Population 2016'!AJ63/'Population 2016'!AJ$7","v":2.899165605996323E-2},{"$f":"'Population 2016'!AK63/'Population 2016'!AK$7","v":2.5196850393700787E-2},{"$f":"'Population 2016'!AL63/'Population 2016'!AL$7","v":3.0031565375894721E-2},{"$f":"'Population 2016'!AM63/'Population 2016'!AM$7","v":2.9491021441680025E-2},{"$f":"'Population 2016'!AN63/'Population 2016'!AN$7","v":{"$error":"#DIV/0!"}},{"$f":"'Population 2016'!AO63/'Population 2016'!AO$7","v":{"$error":"#DIV/0!"}},{"$f":"'Population 2016'!AP63/'Population 2016'!AP$7","v":2.7643504531722055E-2},{"$f":"'Population 2016'!AQ63/'Population 2016'!AQ$7","v":2.5568320703984355E-2},{"$f":"'Population 2016'!AR63/'Population 2016'!AR$7","v":2.7678352368745083E-2},{"$f":"'Population 2016'!AS63/'Population 2016'!AS$7","v":3.2872981910134214E-2},{"$f":"'Population 2016'!AT63/'Population 2016'!AT$7","v":{"$error":"#DIV/0!"}},{"$f":"'Population 2016'!AU63/'Population 2016'!AU$7","v":{"$error":"#DIV/0!"}},{"$f":"'Population 2016'!AV63/'Population 2016'!AV$7","v":3.0265519589032619E-2},{"$f":"'Population 2016'!AW63/'Population 2016'!AW$7","v":2.7682121725233537E-2},{"$f":"'Population 2016'!AX63/'Population 2016'!AX$7","v":3.229387425572712E-2},{"$f":"'Population 2016'!AY63/'Population 2016'!AY$7","v":3.0234571107071756E-2},{"$f":"'Population 2016'!AZ63/'Population 2016'!AZ$7","v":2.9482114066015839E-2},{"$f":"'Population 2016'!BA63/'Population 2016'!BA$7","v":2.8600866908264053E-2},{"$f":"'Population 2016'!BB63/'Population 2016'!BB$7","v":3.1309876328165828E-2},{"$f":"'Population 2016'!BC63/'Population 2016'!BC$7","v":{"$error":"#DIV/0!"}},61]
[null,"Female 20-24",{"$f":"'Population 2016'!C64/'Population 2016'!C$7","v":4.9789889214313002E-2},{"$f":"'Population 2016'!D64/'Population 2016'!D$7","v":4.891168999352493E-2},{"$f":"'Population 2016'!E64/'Population 2016'!E$7","v":4.5756119881034091E-2},{"$f":"'Population 2016'!F64/'Population 2016'!F$7","v":4.7604879500148765E-2},{"$f":"'Population 2016'!G64/'Population 2016'!G$7","v":3.8532789922193403E-2},{"$f":"'Population 2016'!H64/'Population 2016'!H$7","v":4.3827713980144109E-2},{"$f":"'Population 2016'!I64/'Population 2016'!I$7","v":4.2209686831355765E-2},{"$f":"'Population 2016'!J64/'Population 2016'!J$7","v":4.8124308558785078E-2},{"$f":"'Population 2016'!K64/'Population 2016'!K$7","v":4.430189435702115E-2},{"$f":"'Population 2016'!L64/'Population 2016'!L$7","v":5.028044871794872E-2},{"$f":"'Population 2016'!M64/'Population 2016'!M$7","v":5.028044871794872E-2},{"$f":"'Population 2016'!N64/'Population 2016'!N$7","v":4.9745933780366132E-2},{"$f":"'Population 2016'!O64/'Population 2016'!O$7","v":4.3374490835030553E-2},{"$f":"'Population 2016'!P64/'Population 2016'!P$7","v":4.2763952645566559E-2},{"$f":"'Population 2016'!Q64/'Population 2016'!Q$7","v":4.1109969167523124E-2},{"$f":"'Population 2016'!R64/'Population 2016'!R$7","v":4.6469155844155847E-2},{"$f":"'Population 2016'!S64/'Population 2016'!S$7","v":4.0888018282729352E-2},{"$f":"'Population 2016'!T64/'Population 2016'!T$7","v":4.2454347282278523E-2},{"$f":"'Population 2016'!U64/'Population 2016'!U$7","v":{"$error":"#DIV/0!"}},{"$f":"'Population 2016'!V64/'Population 2016'!V$7","v":4.0752021846444698E-2},{"$f":"'Population 2016'!W64/'Population 2016'!W$7","v":3.8044306046810743E-2},{"$f":"'Population 2016'!X64/'Population 2016'!X$7","v":3.8044306046810743E-2},{"$f":"'Population 2016'!Y64/'Population 2016'!Y$7","v":4.4518084669132756E-2},{"$f":"'Population 2016'!Z64/'Population 2016'!Z$7","v":4.3159832043901065E-2},{"$f":"'Population 2016'!AA64/'Population 2016'!AA$7","v":4.2441485244466025E-2},{"$f":"'Population 2016'!AB64/'Population 2016'!AB$7","v":4.9101969872537662E-2},{"$f":"'Population 2016'!AC64/'Population 2016'!AC$7","v":4.3611900988252843E-2},{"$f":"'Population 2016'!AD64/'Population 2016'!AD$7","v":4.368435227578777E-2},{"$f":"'Population 2016'!AE64/'Population 2016'!AE$7","v":4.5796308954203689E-2},{"$f":"'Population 2016'!AF64/'Population 2016'!AF$7","v":4.0952794043229955E-2},{"$f":"'Population 2016'!AG64/'Population 2016'!AG$7","v":4.5796308954203689E-2},{"$f":"'Population 2016'!AH64/'Population 2016'!AH$7","v":3.9544192420035339E-2},{"$f":"'Population 2016'!AI64/'Population 2016'!AI$7","v":4.2701304543409806E-2},{"$f":"'Population 2016'!AJ64/'Population 2016'!AJ$7","v":4.6103804270965915E-2},{"$f":"'Population 2016'!AK64/'Population 2016'!AK$7","v":5.5118110236220472E-2},{"$f":"'Population 2016'!AL64/'Population 2016'!AL$7","v":4.3257902458542656E-2},{"$f":"'Population 2016'!AM64/'Population 2016'!AM$7","v":3.9770483425093504E-2},{"$f":"'Population 2016'!AN64/'Population 2016'!AN$7","v":{"$error":"#DIV/0!"}},{"$f":"'Population 2016'!AO64/'Population 2016'!AO$7","v":{"$error":"#DIV/0!"}},{"$f":"'Population 2016'!AP64/'Population 2016'!AP$7","v":4.9244712990936558E-2},{"$f":"'Population 2016'!AQ64/'Population 2016'!AQ$7","v":4.7054509899780002E-2},{"$f":"'Population 2016'!AR64/'Population 2016'!AR$7","v":4.3135213715585499E-2},{"$f":"'Population 2016'!AS64/'Population 2016'!AS$7","v":4.2209686831355765E-2},{"$f":"'Population 2016'!AT64/'Population 2016'!AT$7","v":{"$error":"#DIV/0!"}},{"$f":"'Population 2016'!AU64/'Population 2016'!AU$7","v":{"$error":"#DIV/0!"}},{"$f":"'Population 2016'!AV64/'Population 2016'!AV$7","v":4.6295723215943552E-2},{"$f":"'Population 2016'!AW64/'Population 2016'!AW$7","v":3.917353170601777E-2},{"$f":"'Population 2016'!AX64/'Population 2016'!AX$7","v":5.1972953880310827E-2},{"$f":"'Population 2016'!AY64/'Population 2016'!AY$7","v":4.3607720938284425E-2},{"$f":"'Population 2016'!AZ64/'Population 2016'!AZ$7","v":4.9432150387129926E-2},{"$f":"'Population 2016'!BA64/'Population 2016'!BA$7","v":4.4659987209550202E-2},{"$f":"'Population 2016'!BB64/'Population 2016'!BB$7","v":4.2457759972130291E-2},{"$f":"'Population 2016'!BC64/'Population 2016'!BC$7","v":{"$error":"#DIV/0!"}},62]
[null,"Female 25-29",{"$f":"'Population 2016'!C65/'Population 2016'!C$7","v":6.5643703043422902E-2},{"$f":"'Population 2016'!D65/'Population 2016'!D$7","v":6.3206654380634553E-2},{"$f":"'Population 2016'!E65/'Population 2016'!E$7","v":5.4449782658430562E-2},{"$f":"'Population 2016'!F65/'Population 2016'!F$7","v":4.4480809282951506E-2},{"$f":"'Population 2016'!G65/'Population 2016'!G$7","v":3.18636532048907E-2},{"$f":"'Population 2016'!H65/'Population 2016'!H$7","v":4.3892531895816003E-2},{"$f":"'Population 2016'!I65/'Population 2016'!I$7","v":3.96809959151916E-2},{"$f":"'Population 2016'!J65/'Population 2016'!J$7","v":5.0990646686110828E-2},{"$f":"'Population 2016'!K65/'Population 2016'!K$7","v":4.2898666933948081E-2},{"$f":"'Population 2016'!L65/'Population 2016'!L$7","v":5.0480769230769232E-2},{"$f":"'Population 2016'!M65/'Population 2016'!M$7","v":5.0480769230769232E-2},{"$f":"'Population 2016'!N65/'Population 2016'!N$7","v":6.480428780250122E-2},{"$f":"'Population 2016'!O65/'Population 2016'!O$7","v":4.461558044806517E-2},{"$f":"'Population 2016'!P65/'Population 2016'!P$7","v":4.638801642908915E-2},{"$f":"'Population 2016'!Q65/'Population 2016'!Q$7","v":4.6933881466255566E-2},{"$f":"'Population 2016'!R65/'Population 2016'!R$7","v":4.4642857142857144E-2},{"$f":"'Population 2016'!S65/'Population 2016'!S$7","v":5.2530199151158995E-2},{"$f":"'Population 2016'!T65/'Population 2016'!T$7","v":6.3931672801343667E-2},{"$f":"'Population 2016'!U65/'Population 2016'!U$7","v":{"$error":"#DIV/0!"}},{"$f":"'Population 2016'!V65/'Population 2016'!V$7","v":4.684381892658334E-2},{"$f":"'Population 2016'!W65/'Population 2016'!W$7","v":4.6675354126825636E-2},{"$f":"'Population 2016'!X65/'Population 2016'!X$7","v":4.6675354126825636E-2},{"$f":"'Population 2016'!Y65/'Population 2016'!Y$7","v":4.8962186600904234E-2},{"$f":"'Population 2016'!Z65/'Population 2016'!Z$7","v":5.963115358212287E-2},{"$f":"'Population 2016'!AA65/'Population 2016'!AA$7","v":5.2001817853563177E-2},{"$f":"'Population 2016'!AB65/'Population 2016'!AB$7","v":6.2379297025878716E-2},{"$f":"'Population 2016'!AC65/'Population 2016'!AC$7","v":5.5953407607682269E-2},{"$f":"'Population 2016'!AD65/'Population 2016'!AD$7","v":4.1314301104228388E-2},{"$f":"'Population 2016'!AE65/'Population 2016'!AE$7","v":4.5188729399255716E-2},{"$f":"'Population 2016'!AF65/'Population 2016'!AF$7","v":4.1314248536109301E-2},{"$f":"'Population 2016'!AG65/'Population 2016'!AG$7","v":4.5188729399255716E-2},{"$f":"'Population 2016'!AH65/'Population 2016'!AH$7","v":4.2219898308751939E-2},{"$f":"'Population 2016'!AI65/'Population 2016'!AI$7","v":5.7163742690058479E-2},{"$f":"'Population 2016'!AJ65/'Population 2016'!AJ$7","v":4.76594541083298E-2},{"$f":"'Population 2016'!AK65/'Population 2016'!AK$7","v":3.6220472440944881E-2},{"$f":"'Population 2016'!AL65/'Population 2016'!AL$7","v":4.3346819010358778E-2},{"$f":"'Population 2016'!AM65/'Population 2016'!AM$7","v":4.3196970752897995E-2},{"$f":"'Population 2016'!AN65/'Population 2016'!AN$7","v":{"$error":"#DIV/0!"}},{"$f":"'Population 2016'!AO65/'Population 2016'!AO$7","v":{"$error":"#DIV/0!"}},{"$f":"'Population 2016'!AP65/'Population 2016'!AP$7","v":6.0574018126888216E-2},{"$f":"'Population 2016'!AQ65/'Population 2016'!AQ$7","v":5.3409924223906134E-2},{"$f":"'Population 2016'!AR65/'Population 2016'!AR$7","v":5.1739556128286672E-2},{"$f":"'Population 2016'!AS65/'Population 2016'!AS$7","v":3.96809959151916E-2},{"$f":"'Population 2016'!AT65/'Population 2016'!AT$7","v":{"$error":"#DIV/0!"}},{"$f":"'Population 2016'!AU65/'Population 2016'!AU$7","v":{"$error":"#DIV/0!"}},{"$f":"'Population 2016'!AV65/'Population 2016'!AV$7","v":4.4005694126384852E-2},{"$f":"'Population 2016'!AW65/'Population 2016'!AW$7","v":4.0619470710222406E-2},{"$f":"'Population 2016'!AX65/'Population 2016'!AX$7","v":5.9138157230800285E-2},{"$f":"'Population 2016'!AY65/'Population 2016'!AY$7","v":5.4107158313857873E-2},{"$f":"'Population 2016'!AZ65/'Population 2016'!AZ$7","v":6.1887634875356569E-2},{"$f":"'Population 2016'!BA65/'Population 2016'!BA$7","v":4.6400909543096711E-2},{"$f":"'Population 2016'!BB65/'Population 2016'!BB$7","v":4.4896359519247517E-2},{"$f":"'Population 2016'!BC65/'Population 2016'!BC$7","v":{"$error":"#DIV/0!"}},63]
[null,"Female 30-34",{"$f":"'Population 2016'!C66/'Population 2016'!C$7","v":5.7684961161339615E-2},{"$f":"'Population 2016'!D66/'Population 2016'!D$7","v":5.6831199880460231E-2},{"$f":"'Population 2016'!E66/'Population 2016'!E$7","v":5.3763440860215055E-2},{"$f":"'Population 2016'!F66/'Population 2016'!F$7","v":4.9390062481404345E-2},{"$f":"'Population 2016'!G66/'Population 2016'!G$7","v":3.7236013338273435E-2},{"$f":"'Population 2016'!H66/'Population 2016'!H$7","v":3.8955567318806915E-2},{"$f":"'Population 2016'!I66/'Population 2016'!I$7","v":4.0264539972767945E-2},{"$f":"'Population 2016'!J66/'Population 2016'!J$7","v":4.4604244191893794E-2},{"$f":"'Population 2016'!K66/'Population 2016'!K$7","v":4.099428685977749E-2},{"$f":"'Population 2016'!L66/'Population 2016'!L$7","v":4.3068910256410256E-2},{"$f":"'Population 2016'!M66/'Population 2016'!M$7","v":4.3068910256410256E-2},{"$f":"'Population 2016'!N66/'Population 2016'!N$7","v":5.1950161256641689E-2},{"$f":"'Population 2016'!O66/'Population 2016'!O$7","v":3.9651221995926682E-2},{"$f":"'Population 2016'!P66/'Population 2016'!P$7","v":3.9864701618748492E-2},{"$f":"'Population 2016'!Q66/'Population 2016'!Q$7","v":4.2480301473107225E-2},{"$f":"'Population 2016'!R66/'Population 2016'!R$7","v":4.3425324675324672E-2},{"$f":"'Population 2016'!S66/'Population 2016'!S$7","v":5.0199151158994447E-2},{"$f":"'Population 2016'!T66/'Population 2016'!T$7","v":6.2948933280920563E-2},{"$f":"'Population 2016'!U66/'Population 2016'!U$7","v":{"$error":"#DIV/0!"}},{"$f":"'Population 2016'!V66/'Population 2016'!V$7","v":4.5898540069320447E-2},{"$f":"'Population 2016'!W66/'Population 2016'!W$7","v":4.1175176428776931E-2},{"$f":"'Population 2016'!X66/'Population 2016'!X$7","v":4.1175176428776931E-2},{"$f":"'Population 2016'!Y66/'Population 2016'!Y$7","v":4.5237361282367446E-2},{"$f":"'Population 2016'!Z66/'Population 2016'!Z$7","v":5.0492118108346001E-2},{"$f":"'Population 2016'!AA66/'Population 2016'!AA$7","v":4.7301545798081296E-2},{"$f":"'Population 2016'!AB66/'Population 2016'!AB$7","v":5.6682116647354189E-2},{"$f":"'Population 2016'!AC66/'Population 2016'!AC$7","v":4.862308875629312E-2},{"$f":"'Population 2016'!AD66/'Population 2016'!AD$7","v":4.6108268246700779E-2},{"$f":"'Population 2016'!AE66/'Population 2016'!AE$7","v":4.9745576061365537E-2},{"$f":"'Population 2016'!AF66/'Population 2016'!AF$7","v":4.0410612303910937E-2},{"$f":"'Population 2016'!AG66/'Population 2016'!AG$7","v":4.9745576061365537E-2},{"$f":"'Population 2016'!AH66/'Population 2016'!AH$7","v":4.4030146767155894E-2},{"$f":"'Population 2016'!AI66/'Population 2016'!AI$7","v":5.6770130454340983E-2},{"$f":"'Population 2016'!AJ66/'Population 2016'!AJ$7","v":4.1861122896337151E-2},{"$f":"'Population 2016'!AK66/'Population 2016'!AK$7","v":5.1968503937007873E-2},{"$f":"'Population 2016'!AL66/'Population 2016'!AL$7","v":3.7633930556173034E-2},{"$f":"'Population 2016'!AM66/'Population 2016'!AM$7","v":4.3673194415406416E-2},{"$f":"'Population 2016'!AN66/'Population 2016'!AN$7","v":{"$error":"#DIV/0!"}},{"$f":"'Population 2016'!AO66/'Population 2016'!AO$7","v":{"$error":"#DIV/0!"}},{"$f":"'Population 2016'!AP66/'Population 2016'!AP$7","v":5.4380664652567974E-2},{"$f":"'Population 2016'!AQ66/'Population 2016'!AQ$7","v":4.5563431923735027E-2},{"$f":"'Population 2016'!AR66/'Population 2016'!AR$7","v":4.728089021982633E-2},{"$f":"'Population 2016'!AS66/'Population 2016'!AS$7","v":4.0264539972767945E-2},{"$f":"'Population 2016'!AT66/'Population 2016'!AT$7","v":{"$error":"#DIV/0!"}},{"$f":"'Population 2016'!AU66/'Population 2016'!AU$7","v":{"$error":"#DIV/0!"}},{"$f":"'Population 2016'!AV66/'Population 2016'!AV$7","v":4.1282416290152876E-2},{"$f":"'Population 2016'!AW66/'Population 2016'!AW$7","v":4.4614828484998384E-2},{"$f":"'Population 2016'!AX66/'Population 2016'!AX$7","v":4.8238974669492382E-2},{"$f":"'Population 2016'!AY66/'Population 2016'!AY$7","v":4.6429498831472342E-2},{"$f":"'Population 2016'!AZ66/'Population 2016'!AZ$7","v":5.1930334331425736E-2},{"$f":"'Population 2016'!BA66/'Population 2016'!BA$7","v":4.7573367441199457E-2},{"$f":"'Population 2016'!BB66/'Population 2016'!BB$7","v":4.8118794635080994E-2},{"$f":"'Population 2016'!BC66/'Population 2016'!BC$7","v":{"$error":"#DIV/0!"}},64]
[null,"Female 35-39",{"$f":"'Population 2016'!C67/'Population 2016'!C$7","v":4.1258117916719725E-2},{"$f":"'Population 2016'!D67/'Population 2016'!D$7","v":4.0842755391741793E-2},{"$f":"'Population 2016'!E67/'Population 2016'!E$7","v":3.9350263097689318E-2},{"$f":"'Population 2016'!F67/'Population 2016'!F$7","v":4.4332044034513539E-2},{"$f":"'Population 2016'!G67/'Population 2016'!G$7","v":3.2789922193404965E-2},{"$f":"'Population 2016'!H67/'Population 2016'!H$7","v":3.4990871476876212E-2},{"$f":"'Population 2016'!I67/'Population 2016'!I$7","v":3.7346819684886207E-2},{"$f":"'Population 2016'!J67/'Population 2016'!J$7","v":3.8921854571055015E-2},{"$f":"'Population 2016'!K67/'Population 2016'!K$7","v":4.2297283752631053E-2},{"$f":"'Population 2016'!L67/'Population 2016'!L$7","v":3.6157852564102567E-2},{"$f":"'Population 2016'!M67/'Population 2016'!M$7","v":3.6157852564102567E-2},{"$f":"'Population 2016'!N67/'Population 2016'!N$7","v":4.0673797535905706E-2},{"$f":"'Population 2016'!O67/'Population 2016'!O$7","v":3.4845977596741344E-2},{"$f":"'Population 2016'!P67/'Population 2016'!P$7","v":3.6482242087460738E-2},{"$f":"'Population 2016'!Q67/'Population 2016'!Q$7","v":4.9674546077423776E-2},{"$f":"'Population 2016'!R67/'Population 2016'!R$7","v":4.3628246753246752E-2},{"$f":"'Population 2016'!S67/'Population 2016'!S$7","v":4.3075416258570032E-2},{"$f":"'Population 2016'!T67/'Population 2016'!T$7","v":5.0423471393345957E-2},{"$f":"'Population 2016'!U67/'Population 2016'!U$7","v":{"$error":"#DIV/0!"}},{"$f":"'Population 2016'!V67/'Population 2016'!V$7","v":3.6235689528410879E-2},{"$f":"'Population 2016'!W67/'Population 2016'!W$7","v":3.7418131970417504E-2},{"$f":"'Population 2016'!X67/'Population 2016'!X$7","v":3.7418131970417504E-2},{"$f":"'Population 2016'!Y67/'Population 2016'!Y$7","v":3.76078914919852E-2},{"$f":"'Population 2016'!Z67/'Population 2016'!Z$7","v":4.1854255547647226E-2},{"$f":"'Population 2016'!AA67/'Population 2016'!AA$7","v":4.0438941079547694E-2},{"$f":"'Population 2016'!AB67/'Population 2016'!AB$7","v":4.0749324063344923E-2},{"$f":"'Population 2016'!AC67/'Population 2016'!AC$7","v":4.093732519112437E-2},{"$f":"'Population 2016'!AD67/'Population 2016'!AD$7","v":3.7651494748182066E-2},{"$f":"'Population 2016'!AE67/'Population 2016'!AE$7","v":3.9644565960355434E-2},{"$f":"'Population 2016'!AF67/'Population 2016'!AF$7","v":3.589243114291911E-2},{"$f":"'Population 2016'!AG67/'Population 2016'!AG$7","v":3.9644565960355434E-2},{"$f":"'Population 2016'!AH67/'Population 2016'!AH$7","v":3.9205221593162885E-2},{"$f":"'Population 2016'!AI67/'Population 2016'!AI$7","v":4.7165991902834006E-2},{"$f":"'Population 2016'!AJ67/'Population 2016'!AJ$7","v":3.9598359496535146E-2},{"$f":"'Population 2016'!AK67/'Population 2016'!AK$7","v":3.7795275590551181E-2},{"$f":"'Population 2016'!AL67/'Population 2016'!AL$7","v":3.5166496243275683E-2},{"$f":"'Population 2016'!AM67/'Population 2016'!AM$7","v":3.9085185959532601E-2},{"$f":"'Population 2016'!AN67/'Population 2016'!AN$7","v":{"$error":"#DIV/0!"}},{"$f":"'Population 2016'!AO67/'Population 2016'!AO$7","v":{"$error":"#DIV/0!"}},{"$f":"'Population 2016'!AP67/'Population 2016'!AP$7","v":4.4712990936555889E-2},{"$f":"'Population 2016'!AQ67/'Population 2016'!AQ$7","v":4.0210217550721093E-2},{"$f":"'Population 2016'!AR67/'Population 2016'!AR$7","v":4.0170412985506186E-2},{"$f":"'Population 2016'!AS67/'Population 2016'!AS$7","v":3.7346819684886207E-2},{"$f":"'Population 2016'!AT67/'Population 2016'!AT$7","v":{"$error":"#DIV/0!"}},{"$f":"'Population 2016'!AU67/'Population 2016'!AU$7","v":{"$error":"#DIV/0!"}},{"$f":"'Population 2016'!AV67/'Population 2016'!AV$7","v":3.4783685090053848E-2},{"$f":"'Population 2016'!AW67/'Population 2016'!AW$7","v":3.9401837864576399E-2},{"$f":"'Population 2016'!AX67/'Population 2016'!AX$7","v":3.5523261681299829E-2},{"$f":"'Population 2016'!AY67/'Population 2016'!AY$7","v":3.945295594217952E-2},{"$f":"'Population 2016'!AZ67/'Population 2016'!AZ$7","v":4.1583246221718252E-2},{"$f":"'Population 2016'!BA67/'Population 2016'!BA$7","v":3.9401691181695446E-2},{"$f":"'Population 2016'!BB67/'Population 2016'!BB$7","v":4.1238460198571678E-2},{"$f":"'Population 2016'!BC67/'Population 2016'!BC$7","v":{"$error":"#DIV/0!"}},65]
[null,"Female 40-44",{"$f":"'Population 2016'!C68/'Population 2016'!C$7","v":4.2085827072456387E-2},{"$f":"'Population 2016'!D68/'Population 2016'!D$7","v":4.1291029536285301E-2},{"$f":"'Population 2016'!E68/'Population 2016'!E$7","v":3.8435140700068635E-2},{"$f":"'Population 2016'!F68/'Population 2016'!F$7","v":3.7935138351681046E-2},{"$f":"'Population 2016'!G68/'Population 2016'!G$7","v":3.8532789922193403E-2},{"$f":"'Population 2016'!H68/'Population 2016'!H$7","v":3.9722579320924302E-2},{"$f":"'Population 2016'!I68/'Population 2016'!I$7","v":4.5321921805096282E-2},{"$f":"'Population 2016'!J68/'Population 2016'!J$7","v":3.8921854571055015E-2},{"$f":"'Population 2016'!K68/'Population 2016'!K$7","v":4.0793825799338476E-2},{"$f":"'Population 2016'!L68/'Population 2016'!L$7","v":3.6558493589743592E-2},{"$f":"'Population 2016'!M68/'Population 2016'!M$7","v":3.6558493589743592E-2},{"$f":"'Population 2016'!N68/'Population 2016'!N$7","v":3.362026961182394E-2},{"$f":"'Population 2016'!O68/'Population 2016'!O$7","v":3.9205702647657839E-2},{"$f":"'Population 2016'!P68/'Population 2016'!P$7","v":4.2522348393331723E-2},{"$f":"'Population 2016'!Q68/'Population 2016'!Q$7","v":3.6313806097978761E-2},{"$f":"'Population 2016'!R68/'Population 2016'!R$7","v":4.0787337662337664E-2},{"$f":"'Population 2016'!S68/'Population 2016'!S$7","v":3.9758406790728042E-2},{"$f":"'Population 2016'!T68/'Population 2016'!T$7","v":3.9041560947718261E-2},{"$f":"'Population 2016'!U68/'Population 2016'!U$7","v":{"$error":"#DIV/0!"}},{"$f":"'Population 2016'!V68/'Population 2016'!V$7","v":4.1592269719567275E-2},{"$f":"'Population 2016'!W68/'Population 2016'!W$7","v":3.8501243886340943E-2},{"$f":"'Population 2016'!X68/'Population 2016'!X$7","v":3.8501243886340943E-2},{"$f":"'Population 2016'!Y68/'Population 2016'!Y$7","v":4.0228113440197284E-2},{"$f":"'Population 2016'!Z68/'Population 2016'!Z$7","v":3.7474256979569832E-2},{"$f":"'Population 2016'!AA68/'Population 2016'!AA$7","v":3.8241330436388617E-2},{"$f":"'Population 2016'!AB68/'Population 2016'!AB$7","v":4.1376979528775587E-2},{"$f":"'Population 2016'!AC68/'Population 2016'!AC$7","v":3.7481936416184969E-2},{"$f":"'Population 2016'!AD68/'Population 2016'!AD$7","v":3.9536762725558845E-2},{"$f":"'Population 2016'!AE68/'Population 2016'!AE$7","v":3.994835573782942E-2},{"$f":"'Population 2016'!AF68/'Population 2016'!AF$7","v":3.6109303838646717E-2},{"$f":"'Population 2016'!AG68/'Population 2016'!AG$7","v":3.994835573782942E-2},{"$f":"'Population 2016'!AH68/'Population 2016'!AH$7","v":4.0121164040243767E-2},{"$f":"'Population 2016'!AI68/'Population 2016'!AI$7","v":4.0272154745838958E-2},{"$f":"'Population 2016'!AJ68/'Population 2016'!AJ$7","v":4.0164050346485645E-2},{"$f":"'Population 2016'!AK68/'Population 2016'!AK$7","v":4.4094488188976377E-2},{"$f":"'Population 2016'!AL68/'Population 2016'!AL$7","v":4.0834926421553369E-2},{"$f":"'Population 2016'!AM68/'Population 2016'!AM$7","v":4.0246707087601925E-2},{"$f":"'Population 2016'!AN68/'Population 2016'!AN$7","v":{"$error":"#DIV/0!"}},{"$f":"'Population 2016'!AO68/'Population 2016'!AO$7","v":{"$error":"#DIV/0!"}},{"$f":"'Population 2016'!AP68/'Population 2016'!AP$7","v":3.6706948640483385E-2},{"$f":"'Population 2016'!AQ68/'Population 2016'!AQ$7","v":3.6323637252505502E-2},{"$f":"'Population 2016'!AR68/'Population 2016'!AR$7","v":3.8594001151067259E-2},{"$f":"'Population 2016'!AS68/'Population 2016'!AS$7","v":4.5321921805096282E-2},{"$f":"'Population 2016'!AT68/'Population 2016'!AT$7","v":{"$error":"#DIV/0!"}},{"$f":"'Population 2016'!AU68/'Population 2016'!AU$7","v":{"$error":"#DIV/0!"}},{"$f":"'Population 2016'!AV68/'Population 2016'!AV$7","v":3.7630748282478185E-2},{"$f":"'Population 2016'!AW68/'Population 2016'!AW$7","v":3.9915526721333305E-2},{"$f":"'Population 2016'!AX68/'Population 2016'!AX$7","v":3.7037037037037035E-2},{"$f":"'Population 2016'!AY68/'Population 2016'!AY$7","v":3.6544620444906084E-2},{"$f":"'Population 2016'!AZ68/'Population 2016'!AZ$7","v":3.4496199571233677E-2},{"$f":"'Population 2016'!BA68/'Population 2016'!BA$7","v":3.9259575072834507E-2},{"$f":"'Population 2016'!BB68/'Population 2016'!BB$7","v":4.3807699007141612E-2},{"$f":"'Population 2016'!BC68/'Population 2016'!BC$7","v":{"$error":"#DIV/0!"}},66]
[null,"Female 45-49",{"$f":"'Population 2016'!C69/'Population 2016'!C$7","v":3.7819941423659749E-2},{"$f":"'Population 2016'!D69/'Population 2016'!D$7","v":3.9348508243263434E-2},{"$f":"'Population 2016'!E69/'Population 2016'!E$7","v":4.4840997483413407E-2},{"$f":"'Population 2016'!F69/'Population 2016'!F$7","v":4.5224635525141325E-2},{"$f":"'Population 2016'!G69/'Population 2016'!G$7","v":4.4275657650981848E-2},{"$f":"'Population 2016'!H69/'Population 2016'!H$7","v":4.7349487398316896E-2},{"$f":"'Population 2016'!I69/'Population 2016'!I$7","v":4.4154833689943593E-2},{"$f":"'Population 2016'!J69/'Population 2016'!J$7","v":4.9381474404103391E-2},{"$f":"'Population 2016'!K69/'Population 2016'!K$7","v":4.7308810263606296E-2},{"$f":"'Population 2016'!L69/'Population 2016'!L$7","v":4.5873397435897433E-2},{"$f":"'Population 2016'!M69/'Population 2016'!M$7","v":4.5873397435897433E-2},{"$f":"'Population 2016'!N69/'Population 2016'!N$7","v":3.821434372027193E-2},{"$f":"'Population 2016'!O69/'Population 2016'!O$7","v":4.8593431771894097E-2},{"$f":"'Population 2016'!P69/'Population 2016'!P$7","v":5.0978497221551101E-2},{"$f":"'Population 2016'!Q69/'Population 2016'!Q$7","v":5.2415210688591986E-2},{"$f":"'Population 2016'!R69/'Population 2016'!R$7","v":4.9918831168831168E-2},{"$f":"'Population 2016'!S69/'Population 2016'!S$7","v":4.4531505060398303E-2},{"$f":"'Population 2016'!T69/'Population 2016'!T$7","v":4.1614551692098774E-2},{"$f":"'Population 2016'!U69/'Population 2016'!U$7","v":{"$error":"#DIV/0!"}},{"$f":"'Population 2016'!V69/'Population 2016'!V$7","v":4.1434723243356793E-2},{"$f":"'Population 2016'!W69/'Population 2016'!W$7","v":4.6709201374198241E-2},{"$f":"'Population 2016'!X69/'Population 2016'!X$7","v":4.6709201374198241E-2},{"$f":"'Population 2016'!Y69/'Population 2016'!Y$7","v":4.5494245787094122E-2},{"$f":"'Population 2016'!Z69/'Population 2016'!Z$7","v":4.3985293312500263E-2},{"$f":"'Population 2016'!AA69/'Population 2016'!AA$7","v":4.546294048189721E-2},{"$f":"'Population 2016'!AB69/'Population 2016'!AB$7","v":3.9494013132483581E-2},{"$f":"'Population 2016'!AC69/'Population 2016'!AC$7","v":4.5147305612530303E-2},{"$f":"'Population 2016'!AD69/'Population 2016'!AD$7","v":4.5731214651225427E-2},{"$f":"'Population 2016'!AE69/'Population 2016'!AE$7","v":4.6327941064783169E-2},{"$f":"'Population 2016'!AF69/'Population 2016'!AF$7","v":4.8543338393696234E-2},{"$f":"'Population 2016'!AG69/'Population 2016'!AG$7","v":4.6327941064783169E-2},{"$f":"'Population 2016'!AH69/'Population 2016'!AH$7","v":4.6244275359705746E-2},{"$f":"'Population 2016'!AI69/'Population 2016'!AI$7","v":4.3106162843004947E-2},{"$f":"'Population 2016'!AJ69/'Population 2016'!AJ$7","v":4.4123886296139163E-2},{"$f":"'Population 2016'!AK69/'Population 2016'!AK$7","v":4.4094488188976377E-2},{"$f":"'Population 2016'!AL69/'Population 2016'!AL$7","v":4.717023073845196E-2},{"$f":"'Population 2016'!AM69/'Population 2016'!AM$7","v":4.6275001742281691E-2},{"$f":"'Population 2016'!AN69/'Population 2016'!AN$7","v":{"$error":"#DIV/0!"}},{"$f":"'Population 2016'!AO69/'Population 2016'!AO$7","v":{"$error":"#DIV/0!"}},{"$f":"'Population 2016'!AP69/'Population 2016'!AP$7","v":3.610271903323263E-2},{"$f":"'Population 2016'!AQ69/'Population 2016'!AQ$7","v":4.5881202639941332E-2},{"$f":"'Population 2016'!AR69/'Population 2016'!AR$7","v":4.4938628854183628E-2},{"$f":"'Population 2016'!AS69/'Population 2016'!AS$7","v":4.4154833689943593E-2},{"$f":"'Population 2016'!AT69/'Population 2016'!AT$7","v":{"$error":"#DIV/0!"}},{"$f":"'Population 2016'!AU69/'Population 2016'!AU$7","v":{"$error":"#DIV/0!"}},{"$f":"'Population 2016'!AV69/'Population 2016'!AV$7","v":4.5429225722597014E-2},{"$f":"'Population 2016'!AW69/'Population 2016'!AW$7","v":4.6193946081695553E-2},{"$f":"'Population 2016'!AX69/'Population 2016'!AX$7","v":5.1468362095065091E-2},{"$f":"'Population 2016'!AY69/'Population 2016'!AY$7","v":4.284601402233186E-2},{"$f":"'Population 2016'!AZ69/'Population 2016'!AZ$7","v":3.880158041140306E-2},{"$f":"'Population 2016'!BA69/'Population 2016'!BA$7","v":4.8852412420947913E-2},{"$f":"'Population 2016'!BB69/'Population 2016'!BB$7","v":4.5244730883121406E-2},{"$f":"'Population 2016'!BC69/'Population 2016'!BC$7","v":{"$error":"#DIV/0!"}},67]
[null,"Female 50-54",{"$f":"'Population 2016'!C70/'Population 2016'!C$7","v":3.9921049280529732E-2},{"$f":"'Population 2016'!D70/'Population 2016'!D$7","v":4.04442894854809E-2},{"$f":"'Population 2016'!E70/'Population 2016'!E$7","v":4.2324410889956532E-2},{"$f":"'Population 2016'!F70/'Population 2016'!F$7","v":4.1505504314192206E-2},{"$f":"'Population 2016'!G70/'Population 2016'!G$7","v":4.3164134864764725E-2},{"$f":"'Population 2016'!H70/'Population 2016'!H$7","v":4.8224529259887433E-2},{"$f":"'Population 2016'!I70/'Population 2016'!I$7","v":4.2793230888932117E-2},{"$f":"'Population 2016'!J70/'Population 2016'!J$7","v":4.5509403600522982E-2},{"$f":"'Population 2016'!K70/'Population 2016'!K$7","v":4.580535231031372E-2},{"$f":"'Population 2016'!L70/'Population 2016'!L$7","v":4.737580128205128E-2},{"$f":"'Population 2016'!M70/'Population 2016'!M$7","v":4.737580128205128E-2},{"$f":"'Population 2016'!N70/'Population 2016'!N$7","v":4.3295668112949257E-2},{"$f":"'Population 2016'!O70/'Population 2016'!O$7","v":4.9834521384928714E-2},{"$f":"'Population 2016'!P70/'Population 2016'!P$7","v":5.1220101473785938E-2},{"$f":"'Population 2016'!Q70/'Population 2016'!Q$7","v":4.2822884549503254E-2},{"$f":"'Population 2016'!R70/'Population 2016'!R$7","v":5.2353896103896104E-2},{"$f":"'Population 2016'!S70/'Population 2016'!S$7","v":4.2827293503101535E-2},{"$f":"'Population 2016'!T70/'Population 2016'!T$7","v":3.7397705749919595E-2},{"$f":"'Population 2016'!U70/'Population 2016'!U$7","v":{"$error":"#DIV/0!"}},{"$f":"'Population 2016'!V70/'Population 2016'!V$7","v":4.4113013338934984E-2},{"$f":"'Population 2016'!W70/'Population 2016'!W$7","v":4.6810743116316063E-2},{"$f":"'Population 2016'!X70/'Population 2016'!X$7","v":4.6810743116316063E-2},{"$f":"'Population 2016'!Y70/'Population 2016'!Y$7","v":4.482634607480477E-2},{"$f":"'Population 2016'!Z70/'Population 2016'!Z$7","v":4.6141600299861439E-2},{"$f":"'Population 2016'!AA70/'Population 2016'!AA$7","v":4.6535806112221328E-2},{"$f":"'Population 2016'!AB70/'Population 2016'!AB$7","v":4.0507918115102355E-2},{"$f":"'Population 2016'!AC70/'Population 2016'!AC$7","v":4.6513728323699419E-2},{"$f":"'Population 2016'!AD70/'Population 2016'!AD$7","v":4.2822515486129815E-2},{"$f":"'Population 2016'!AE70/'Population 2016'!AE$7","v":4.2682463735095315E-2},{"$f":"'Population 2016'!AF70/'Population 2016'!AF$7","v":4.7820429407937542E-2},{"$f":"'Population 2016'!AG70/'Population 2016'!AG$7","v":4.2682463735095315E-2},{"$f":"'Population 2016'!AH70/'Population 2016'!AH$7","v":4.65904583318308E-2},{"$f":"'Population 2016'!AI70/'Population 2016'!AI$7","v":4.0182186234817813E-2},{"$f":"'Population 2016'!AJ70/'Population 2016'!AJ$7","v":4.4830999858577289E-2},{"$f":"'Population 2016'!AK70/'Population 2016'!AK$7","v":4.2519685039370078E-2},{"$f":"'Population 2016'!AL70/'Population 2016'!AL$7","v":4.8948561774774371E-2},{"$f":"'Population 2016'!AM70/'Population 2016'!AM$7","v":4.69486839965619E-2},{"$f":"'Population 2016'!AN70/'Population 2016'!AN$7","v":{"$error":"#DIV/0!"}},{"$f":"'Population 2016'!AO70/'Population 2016'!AO$7","v":{"$error":"#DIV/0!"}},{"$f":"'Population 2016'!AP70/'Population 2016'!AP$7","v":3.9123867069486402E-2},{"$f":"'Population 2016'!AQ70/'Population 2016'!AQ$7","v":4.3950134441456859E-2},{"$f":"'Population 2016'!AR70/'Population 2016'!AR$7","v":4.5519894890591286E-2},{"$f":"'Population 2016'!AS70/'Population 2016'!AS$7","v":4.2793230888932117E-2},{"$f":"'Population 2016'!AT70/'Population 2016'!AT$7","v":{"$error":"#DIV/0!"}},{"$f":"'Population 2016'!AU70/'Population 2016'!AU$7","v":{"$error":"#DIV/0!"}},{"$f":"'Population 2016'!AV70/'Population 2016'!AV$7","v":4.307730395494213E-2},{"$f":"'Population 2016'!AW70/'Population 2016'!AW$7","v":4.6003690949563365E-2},{"$f":"'Population 2016'!AX70/'Population 2016'!AX$7","v":4.5211423958017964E-2},{"$f":"'Population 2016'!AY70/'Population 2016'!AY$7","v":4.4750281312213279E-2},{"$f":"'Population 2016'!AZ70/'Population 2016'!AZ$7","v":4.259315036941231E-2},{"$f":"'Population 2016'!BA70/'Population 2016'!BA$7","v":5.038016059120301E-2},{"$f":"'Population 2016'!BB70/'Population 2016'!BB$7","v":4.520118446263717E-2},{"$f":"'Population 2016'!BC70/'Population 2016'!BC$7","v":{"$error":"#DIV/0!"}},68]
[null,"Female 55-59",{"$f":"'Population 2016'!C71/'Population 2016'!C$7","v":3.4445434865656439E-2},{"$f":"'Population 2016'!D71/'Population 2016'!D$7","v":3.4865766797828358E-2},{"$f":"'Population 2016'!E71/'Population 2016'!E$7","v":3.6376115305422098E-2},{"$f":"'Population 2016'!F71/'Population 2016'!F$7","v":3.8678964593870872E-2},{"$f":"'Population 2016'!G71/'Population 2016'!G$7","v":4.1311596887736196E-2},{"$f":"'Population 2016'!H71/'Population 2016'!H$7","v":4.227208400401871E-2},{"$f":"'Population 2016'!I71/'Population 2016'!I$7","v":3.7930363742462558E-2},{"$f":"'Population 2016'!J71/'Population 2016'!J$7","v":4.1989339233631698E-2},{"$f":"'Population 2016'!K71/'Population 2016'!K$7","v":4.1996592161972539E-2},{"$f":"'Population 2016'!L71/'Population 2016'!L$7","v":3.8461538461538464E-2},{"$f":"'Population 2016'!M71/'Population 2016'!M$7","v":3.8461538461538464E-2},{"$f":"'Population 2016'!N71/'Population 2016'!N$7","v":3.8724796398988376E-2},{"$f":"'Population 2016'!O71/'Population 2016'!O$7","v":4.0351323828920573E-2},{"$f":"'Population 2016'!P71/'Population 2016'!P$7","v":5.1220101473785938E-2},{"$f":"'Population 2016'!Q71/'Population 2016'!Q$7","v":4.6933881466255566E-2},{"$f":"'Population 2016'!R71/'Population 2016'!R$7","v":3.9569805194805192E-2},{"$f":"'Population 2016'!S71/'Population 2016'!S$7","v":3.9712699967352272E-2},{"$f":"'Population 2016'!T71/'Population 2016'!T$7","v":3.6861666011506984E-2},{"$f":"'Population 2016'!U71/'Population 2016'!U$7","v":{"$error":"#DIV/0!"}},{"$f":"'Population 2016'!V71/'Population 2016'!V$7","v":4.0226866925743093E-2},{"$f":"'Population 2016'!W71/'Population 2016'!W$7","v":4.1395183536698875E-2},{"$f":"'Population 2016'!X71/'Population 2016'!X$7","v":4.1395183536698875E-2},{"$f":"'Population 2016'!Y71/'Population 2016'!Y$7","v":4.112720920674065E-2},{"$f":"'Population 2016'!Z71/'Population 2016'!Z$7","v":3.9954852322452127E-2},{"$f":"'Population 2016'!AA71/'Population 2016'!AA$7","v":4.1345792685837136E-2},{"$f":"'Population 2016'!AB71/'Population 2016'!AB$7","v":3.4907300115874854E-2},{"$f":"'Population 2016'!AC71/'Population 2016'!AC$7","v":4.0914017341040464E-2},{"$f":"'Population 2016'!AD71/'Population 2016'!AD$7","v":3.980608672232696E-2},{"$f":"'Population 2016'!AE71/'Population 2016'!AE$7","v":3.9188881294144454E-2},{"$f":"'Population 2016'!AF71/'Population 2016'!AF$7","v":4.5651702450661462E-2},{"$f":"'Population 2016'!AG71/'Population 2016'!AG$7","v":3.9188881294144454E-2},{"$f":"'Population 2016'!AH71/'Population 2016'!AH$7","v":4.241462623057228E-2},{"$f":"'Population 2016'!AI71/'Population 2016'!AI$7","v":3.8697705802968961E-2},{"$f":"'Population 2016'!AJ71/'Population 2016'!AJ$7","v":4.384104087116391E-2},{"$f":"'Population 2016'!AK71/'Population 2016'!AK$7","v":3.6220472440944881E-2},{"$f":"'Population 2016'!AL71/'Population 2016'!AL$7","v":4.3591339527853108E-2},{"$f":"'Population 2016'!AM71/'Population 2016'!AM$7","v":4.1477919483355399E-2},{"$f":"'Population 2016'!AN71/'Population 2016'!AN$7","v":{"$error":"#DIV/0!"}},{"$f":"'Population 2016'!AO71/'Population 2016'!AO$7","v":{"$error":"#DIV/0!"}},{"$f":"'Population 2016'!AP71/'Population 2016'!AP$7","v":3.5196374622356495E-2},{"$f":"'Population 2016'!AQ71/'Population 2016'!AQ$7","v":4.0405768760694204E-2},{"$f":"'Population 2016'!AR71/'Population 2016'!AR$7","v":4.0732188839233512E-2},{"$f":"'Population 2016'!AS71/'Population 2016'!AS$7","v":3.7930363742462558E-2},{"$f":"'Population 2016'!AT71/'Population 2016'!AT$7","v":{"$error":"#DIV/0!"}},{"$f":"'Population 2016'!AU71/'Population 2016'!AU$7","v":{"$error":"#DIV/0!"}},{"$f":"'Population 2016'!AV71/'Population 2016'!AV$7","v":4.2334591817787953E-2},{"$f":"'Population 2016'!AW71/'Population 2016'!AW$7","v":4.3948935522535718E-2},{"$f":"'Population 2016'!AX71/'Population 2016'!AX$7","v":4.1982036532445255E-2},{"$f":"'Population 2016'!AY71/'Population 2016'!AY$7","v":3.9885743962607113E-2},{"$f":"'Population 2016'!AZ71/'Population 2016'!AZ$7","v":3.8305487145869135E-2},{"$f":"'Population 2016'!BA71/'Population 2016'!BA$7","v":4.3807290556384569E-2},{"$f":"'Population 2016'!BB71/'Population 2016'!BB$7","v":4.0541717470823899E-2},{"$f":"'Population 2016'!BC71/'Population 2016'!BC$7","v":{"$error":"#DIV/0!"}},69]
[null,"Female 60-64",{"$f":"'Population 2016'!C72/'Population 2016'!C$7","v":2.8014771424933145E-2},{"$f":"'Population 2016'!D72/'Population 2016'!D$7","v":2.8141654629675748E-2},{"$f":"'Population 2016'!E72/'Population 2016'!E$7","v":2.8597574925646307E-2},{"$f":"'Population 2016'!F72/'Population 2016'!F$7","v":3.1091936923534663E-2},{"$f":"'Population 2016'!G72/'Population 2016'!G$7","v":3.7050759540570584E-2},{"$f":"'Population 2016'!H72/'Population 2016'!H$7","v":3.8274979204252053E-2},{"$f":"'Population 2016'!I72/'Population 2016'!I$7","v":3.6179731569733517E-2},{"$f":"'Population 2016'!J72/'Population 2016'!J$7","v":3.2133159006336114E-2},{"$f":"'Population 2016'!K72/'Population 2016'!K$7","v":3.3877919214192642E-2},{"$f":"'Population 2016'!L72/'Population 2016'!L$7","v":3.4555288461538464E-2},{"$f":"'Population 2016'!M72/'Population 2016'!M$7","v":3.4555288461538464E-2},{"$f":"'Population 2016'!N72/'Population 2016'!N$7","v":3.0859184667857722E-2},{"$f":"'Population 2016'!O72/'Population 2016'!O$7","v":3.6628054989816701E-2},{"$f":"'Population 2016'!P72/'Population 2016'!P$7","v":3.9381493114278812E-2},{"$f":"'Population 2016'!Q72/'Population 2016'!Q$7","v":3.3230558410414522E-2},{"$f":"'Population 2016'!R72/'Population 2016'!R$7","v":3.49025974025974E-2},{"$f":"'Population 2016'!S72/'Population 2016'!S$7","v":3.2158015017956253E-2},{"$f":"'Population 2016'!T72/'Population 2016'!T$7","v":2.7570310545688453E-2},{"$f":"'Population 2016'!U72/'Population 2016'!U$7","v":{"$error":"#DIV/0!"}},{"$f":"'Population 2016'!V72/'Population 2016'!V$7","v":3.4082554353534293E-2},{"$f":"'Population 2016'!W72/'Population 2016'!W$7","v":3.5302679009629544E-2},{"$f":"'Population 2016'!X72/'Population 2016'!X$7","v":3.5302679009629544E-2},{"$f":"'Population 2016'!Y72/'Population 2016'!Y$7","v":3.3086724208795729E-2},{"$f":"'Population 2016'!Z72/'Population 2016'!Z$7","v":3.0752643792404916E-2},{"$f":"'Population 2016'!AA72/'Population 2016'!AA$7","v":3.3362593305069445E-2},{"$f":"'Population 2016'!AB72/'Population 2016'!AB$7","v":2.9065276168404791E-2},{"$f":"'Population 2016'!AC72/'Population 2016'!AC$7","v":3.2022072534029458E-2},{"$f":"'Population 2016'!AD72/'Population 2016'!AD$7","v":3.6681928359816859E-2},{"$f":"'Population 2016'!AE72/'Population 2016'!AE$7","v":3.6530720741247059E-2},{"$f":"'Population 2016'!AF72/'Population 2016'!AF$7","v":3.7663558158027903E-2},{"$f":"'Population 2016'!AG72/'Population 2016'!AG$7","v":3.6530720741247059E-2},{"$f":"'Population 2016'!AH72/'Population 2016'!AH$7","v":3.6680970754750998E-2},{"$f":"'Population 2016'!AI72/'Population 2016'!AI$7","v":2.9835807467386413E-2},{"$f":"'Population 2016'!AJ72/'Population 2016'!AJ$7","v":3.2810069297129117E-2},{"$f":"'Population 2016'!AK72/'Population 2016'!AK$7","v":5.826771653543307E-2},{"$f":"'Population 2016'!AL72/'Population 2016'!AL$7","v":3.9167741075001108E-2},{"$f":"'Population 2016'!AM72/'Population 2016'!AM$7","v":3.5554161730201872E-2},{"$f":"'Population 2016'!AN72/'Population 2016'!AN$7","v":{"$error":"#DIV/0!"}},{"$f":"'Population 2016'!AO72/'Population 2016'!AO$7","v":{"$error":"#DIV/0!"}},{"$f":"'Population 2016'!AP72/'Population 2016'!AP$7","v":3.2024169184290033E-2},{"$f":"'Population 2016'!AQ72/'Population 2016'!AQ$7","v":3.0774871669518457E-2},{"$f":"'Population 2016'!AR72/'Population 2016'!AR$7","v":3.34910127328217E-2},{"$f":"'Population 2016'!AS72/'Population 2016'!AS$7","v":3.6179731569733517E-2},{"$f":"'Population 2016'!AT72/'Population 2016'!AT$7","v":{"$error":"#DIV/0!"}},{"$f":"'Population 2016'!AU72/'Population 2016'!AU$7","v":{"$error":"#DIV/0!"}},{"$f":"'Population 2016'!AV72/'Population 2016'!AV$7","v":3.899238720059417E-2},{"$f":"'Population 2016'!AW72/'Population 2016'!AW$7","v":3.8526664256768324E-2},{"$f":"'Population 2016'!AX72/'Population 2016'!AX$7","v":3.0376425471793318E-2},{"$f":"'Population 2016'!AY72/'Population 2016'!AY$7","v":3.3212152687613607E-2},{"$f":"'Population 2016'!AZ72/'Population 2016'!AZ$7","v":3.1023546712496235E-2},{"$f":"'Population 2016'!BA72/'Population 2016'!BA$7","v":3.7412065657642296E-2},{"$f":"'Population 2016'!BB72/'Population 2016'!BB$7","v":3.4009754398188471E-2},{"$f":"'Population 2016'!BC72/'Population 2016'!BC$7","v":{"$error":"#DIV/0!"}},70]
[null,"Female 65-69",{"$f":"'Population 2016'!C73/'Population 2016'!C$7","v":2.5977333503119825E-2},{"$f":"'Population 2016'!D73/'Population 2016'!D$7","v":2.6149325098371271E-2},{"$f":"'Population 2016'!E73/'Population 2016'!E$7","v":2.6767330130404943E-2},{"$f":"'Population 2016'!F73/'Population 2016'!F$7","v":2.7819101457899436E-2},{"$f":"'Population 2016'!G73/'Population 2016'!G$7","v":4.1682104483141906E-2},{"$f":"'Population 2016'!H73/'Population 2016'!H$7","v":3.6600516382728189E-2},{"$f":"'Population 2016'!I73/'Population 2016'!I$7","v":3.7541334370744993E-2},{"$f":"'Population 2016'!J73/'Population 2016'!J$7","v":3.4396057527909085E-2},{"$f":"'Population 2016'!K73/'Population 2016'!K$7","v":3.7285757241655809E-2},{"$f":"'Population 2016'!L73/'Population 2016'!L$7","v":2.9847756410256412E-2},{"$f":"'Population 2016'!M73/'Population 2016'!M$7","v":2.9847756410256412E-2},{"$f":"'Population 2016'!N73/'Population 2016'!N$7","v":3.078957748439639E-2},{"$f":"'Population 2016'!O73/'Population 2016'!O$7","v":3.5705193482688392E-2},{"$f":"'Population 2016'!P73/'Population 2016'!P$7","v":3.5515825078521385E-2},{"$f":"'Population 2016'!Q73/'Population 2016'!Q$7","v":3.4943473792394653E-2},{"$f":"'Population 2016'!R73/'Population 2016'!R$7","v":3.510551948051948E-2},{"$f":"'Population 2016'!S73/'Population 2016'!S$7","v":3.2066601371204699E-2},{"$f":"'Population 2016'!T73/'Population 2016'!T$7","v":2.667691098166744E-2},{"$f":"'Population 2016'!U73/'Population 2016'!U$7","v":{"$error":"#DIV/0!"}},{"$f":"'Population 2016'!V73/'Population 2016'!V$7","v":3.4345131813885099E-2},{"$f":"'Population 2016'!W73/'Population 2016'!W$7","v":3.5505762493865188E-2},{"$f":"'Population 2016'!X73/'Population 2016'!X$7","v":3.5505762493865188E-2},{"$f":"'Population 2016'!Y73/'Population 2016'!Y$7","v":3.4371146732429102E-2},{"$f":"'Population 2016'!Z73/'Population 2016'!Z$7","v":2.7593990978887564E-2},{"$f":"'Population 2016'!AA73/'Population 2016'!AA$7","v":3.1011419689678285E-2},{"$f":"'Population 2016'!AB73/'Population 2016'!AB$7","v":2.6892622634221708E-2},{"$f":"'Population 2016'!AC73/'Population 2016'!AC$7","v":2.9394112437068805E-2},{"$f":"'Population 2016'!AD73/'Population 2016'!AD$7","v":3.3934823592782118E-2},{"$f":"'Population 2016'!AE73/'Population 2016'!AE$7","v":3.0758714969241284E-2},{"$f":"'Population 2016'!AF73/'Population 2016'!AF$7","v":3.7771994505891707E-2},{"$f":"'Population 2016'!AG73/'Population 2016'!AG$7","v":3.0758714969241284E-2},{"$f":"'Population 2016'!AH73/'Population 2016'!AH$7","v":3.5014965201399156E-2},{"$f":"'Population 2016'!AI73/'Population 2016'!AI$7","v":2.9464687359424202E-2},{"$f":"'Population 2016'!AJ73/'Population 2016'!AJ$7","v":3.6911327959270261E-2},{"$f":"'Population 2016'!AK73/'Population 2016'!AK$7","v":5.0393700787401574E-2},{"$f":"'Population 2016'!AL73/'Population 2016'!AL$7","v":3.8367492108656025E-2},{"$f":"'Population 2016'!AM73/'Population 2016'!AM$7","v":3.3707343136571657E-2},{"$f":"'Population 2016'!AN73/'Population 2016'!AN$7","v":{"$error":"#DIV/0!"}},{"$f":"'Population 2016'!AO73/'Population 2016'!AO$7","v":{"$error":"#DIV/0!"}},{"$f":"'Population 2016'!AP73/'Population 2016'!AP$7","v":2.7492447129909364E-2},{"$f":"'Population 2016'!AQ73/'Population 2016'!AQ$7","v":2.9650452212173061E-2},{"$f":"'Population 2016'!AR73/'Population 2016'!AR$7","v":3.1828614798322469E-2},{"$f":"'Population 2016'!AS73/'Population 2016'!AS$7","v":3.7541334370744993E-2},{"$f":"'Population 2016'!AT73/'Population 2016'!AT$7","v":{"$error":"#DIV/0!"}},{"$f":"'Population 2016'!AU73/'Population 2016'!AU$7","v":{"$error":"#DIV/0!"}},{"$f":"'Population 2016'!AV73/'Population 2016'!AV$7","v":3.3422046171937857E-2},{"$f":"'Population 2016'!AW73/'Population 2016'!AW$7","v":3.7156827305416563E-2},{"$f":"'Population 2016'!AX73/'Population 2016'!AX$7","v":3.1486527399333941E-2},{"$f":"'Population 2016'!AY73/'Population 2016'!AY$7","v":3.2839954990045876E-2},{"$f":"'Population 2016'!AZ73/'Population 2016'!AZ$7","v":3.0049077798054605E-2},{"$f":"'Population 2016'!BA73/'Population 2016'!BA$7","v":3.4072337099410217E-2},{"$f":"'Population 2016'!BB73/'Population 2016'!BB$7","v":3.3269465249956456E-2},{"$f":"'Population 2016'!BC73/'Population 2016'!BC$7","v":{"$error":"#DIV/0!"}},71]
[null,"Female 70-74",{"$f":"'Population 2016'!C74/'Population 2016'!C$7","v":1.8273271361263211E-2},{"$f":"'Population 2016'!D74/'Population 2016'!D$7","v":1.8279623449718584E-2},{"$f":"'Population 2016'!E74/'Population 2016'!E$7","v":1.8302447952413637E-2},{"$f":"'Population 2016'!F74/'Population 2016'!F$7","v":2.3951204998512346E-2},{"$f":"'Population 2016'!G74/'Population 2016'!G$7","v":3.0752130418673584E-2},{"$f":"'Population 2016'!H74/'Population 2016'!H$7","v":2.8649518726976138E-2},{"$f":"'Population 2016'!I74/'Population 2016'!I$7","v":2.8982688192958569E-2},{"$f":"'Population 2016'!J74/'Population 2016'!J$7","v":2.6551342653122801E-2},{"$f":"'Population 2016'!K74/'Population 2016'!K$7","v":2.7964317931241857E-2},{"$f":"'Population 2016'!L74/'Population 2016'!L$7","v":3.1149839743589744E-2},{"$f":"'Population 2016'!M74/'Population 2016'!M$7","v":3.1149839743589744E-2},{"$f":"'Population 2016'!N74/'Population 2016'!N$7","v":2.2227893918652406E-2},{"$f":"'Population 2016'!O74/'Population 2016'!O$7","v":2.7590376782077392E-2},{"$f":"'Population 2016'!P74/'Population 2016'!P$7","v":2.4643633727953612E-2},{"$f":"'Population 2016'!Q74/'Population 2016'!Q$7","v":2.9804727646454265E-2},{"$f":"'Population 2016'!R74/'Population 2016'!R$7","v":2.5162337662337664E-2},{"$f":"'Population 2016'!S74/'Population 2016'!S$7","v":2.4720861900097944E-2},{"$f":"'Population 2016'!T74/'Population 2016'!T$7","v":1.9404638530536398E-2},{"$f":"'Population 2016'!U74/'Population 2016'!U$7","v":{"$error":"#DIV/0!"}},{"$f":"'Population 2016'!V74/'Population 2016'!V$7","v":2.483982774918601E-2},{"$f":"'Population 2016'!W74/'Population 2016'!W$7","v":2.8143986190323073E-2},{"$f":"'Population 2016'!X74/'Population 2016'!X$7","v":2.8143986190323073E-2},{"$f":"'Population 2016'!Y74/'Population 2016'!Y$7","v":2.5714138923140156E-2},{"$f":"'Population 2016'!Z74/'Population 2016'!Z$7","v":2.2725454108986156E-2},{"$f":"'Population 2016'!AA74/'Population 2016'!AA$7","v":2.4698736425759565E-2},{"$f":"'Population 2016'!AB74/'Population 2016'!AB$7","v":1.839513325608343E-2},{"$f":"'Population 2016'!AC74/'Population 2016'!AC$7","v":2.3462264590714151E-2},{"$f":"'Population 2016'!AD74/'Population 2016'!AD$7","v":2.6016698087799623E-2},{"$f":"'Population 2016'!AE74/'Population 2016'!AE$7","v":2.4075339864813548E-2},{"$f":"'Population 2016'!AF74/'Population 2016'!AF$7","v":2.8482614038892504E-2},{"$f":"'Population 2016'!AG74/'Population 2016'!AG$7","v":2.4075339864813548E-2},{"$f":"'Population 2016'!AH74/'Population 2016'!AH$7","v":2.7759547077278138E-2},{"$f":"'Population 2016'!AI74/'Population 2016'!AI$7","v":2.2199730094466935E-2},{"$f":"'Population 2016'!AJ74/'Population 2016'!AJ$7","v":2.8001697072549851E-2},{"$f":"'Population 2016'!AK74/'Population 2016'!AK$7","v":2.2047244094488189E-2},{"$f":"'Population 2016'!AL74/'Population 2016'!AL$7","v":2.9898190548170542E-2},{"$f":"'Population 2016'!AM74/'Population 2016'!AM$7","v":2.7632587636769113E-2},{"$f":"'Population 2016'!AN74/'Population 2016'!AN$7","v":{"$error":"#DIV/0!"}},{"$f":"'Population 2016'!AO74/'Population 2016'!AO$7","v":{"$error":"#DIV/0!"}},{"$f":"'Population 2016'!AP74/'Population 2016'!AP$7","v":2.2809667673716012E-2},{"$f":"'Population 2016'!AQ74/'Population 2016'!AQ$7","v":2.3466145196773404E-2},{"$f":"'Population 2016'!AR74/'Population 2016'!AR$7","v":2.4977242345517372E-2},{"$f":"'Population 2016'!AS74/'Population 2016'!AS$7","v":2.8982688192958569E-2},{"$f":"'Population 2016'!AT74/'Population 2016'!AT$7","v":{"$error":"#DIV/0!"}},{"$f":"'Population 2016'!AU74/'Population 2016'!AU$7","v":{"$error":"#DIV/0!"}},{"$f":"'Population 2016'!AV74/'Population 2016'!AV$7","v":2.7232778362319736E-2},{"$f":"'Population 2016'!AW74/'Population 2016'!AW$7","v":2.7967504423431822E-2},{"$f":"'Population 2016'!AX74/'Population 2016'!AX$7","v":2.5128670905237661E-2},{"$f":"'Population 2016'!AY74/'Population 2016'!AY$7","v":2.5387345278282698E-2},{"$f":"'Population 2016'!AZ74/'Population 2016'!AZ$7","v":2.250137311528853E-2},{"$f":"'Population 2016'!BA74/'Population 2016'!BA$7","v":2.42663255880054E-2},{"$f":"'Population 2016'!BB74/'Population 2016'!BB$7","v":2.6258491551994428E-2},{"$f":"'Population 2016'!BC74/'Population 2016'!BC$7","v":{"$error":"#DIV/0!"}},72]
[null,"Female 75-79",{"$f":"'Population 2016'!C75/'Population 2016'!C$7","v":1.5471794218769897E-2},{"$f":"'Population 2016'!D75/'Population 2016'!D$7","v":1.4793046769935748E-2},{"$f":"'Population 2016'!E75/'Population 2016'!E$7","v":1.2354152367879203E-2},{"$f":"'Population 2016'!F75/'Population 2016'!F$7","v":2.4695031240702173E-2},{"$f":"'Population 2016'!G75/'Population 2016'!G$7","v":2.667654686921082E-2},{"$f":"'Population 2016'!H75/'Population 2016'!H$7","v":2.4717231842881372E-2},{"$f":"'Population 2016'!I75/'Population 2016'!I$7","v":2.0229527329313362E-2},{"$f":"'Population 2016'!J75/'Population 2016'!J$7","v":2.071809313084582E-2},{"$f":"'Population 2016'!K75/'Population 2016'!K$7","v":2.1349102936754537E-2},{"$f":"'Population 2016'!L75/'Population 2016'!L$7","v":1.893028846153846E-2},{"$f":"'Population 2016'!M75/'Population 2016'!M$7","v":1.893028846153846E-2},{"$f":"'Population 2016'!N75/'Population 2016'!N$7","v":1.9466808974686188E-2},{"$f":"'Population 2016'!O75/'Population 2016'!O$7","v":2.3517057026476579E-2},{"$f":"'Population 2016'!P75/'Population 2016'!P$7","v":2.0777965692196181E-2},{"$f":"'Population 2016'!Q75/'Population 2016'!Q$7","v":2.5693730729701953E-2},{"$f":"'Population 2016'!R75/'Population 2016'!R$7","v":2.2118506493506492E-2},{"$f":"'Population 2016'!S75/'Population 2016'!S$7","v":2.0339536402220047E-2},{"$f":"'Population 2016'!T75/'Population 2016'!T$7","v":1.7189007611764284E-2},{"$f":"'Population 2016'!U75/'Population 2016'!U$7","v":{"$error":"#DIV/0!"}},{"$f":"'Population 2016'!V75/'Population 2016'!V$7","v":2.6677869971641635E-2},{"$f":"'Population 2016'!W75/'Population 2016'!W$7","v":2.3100746331804565E-2},{"$f":"'Population 2016'!X75/'Population 2016'!X$7","v":2.3100746331804565E-2},{"$f":"'Population 2016'!Y75/'Population 2016'!Y$7","v":2.3633374434854089E-2},{"$f":"'Population 2016'!Z75/'Population 2016'!Z$7","v":2.1542012188188322E-2},{"$f":"'Population 2016'!AA75/'Population 2016'!AA$7","v":2.2432644997686178E-2},{"$f":"'Population 2016'!AB75/'Population 2016'!AB$7","v":1.4822325222093473E-2},{"$f":"'Population 2016'!AC75/'Population 2016'!AC$7","v":2.2168678911057244E-2},{"$f":"'Population 2016'!AD75/'Population 2016'!AD$7","v":2.2030702935631565E-2},{"$f":"'Population 2016'!AE75/'Population 2016'!AE$7","v":2.0126072757651704E-2},{"$f":"'Population 2016'!AF75/'Population 2016'!AF$7","v":2.7145232415238921E-2},{"$f":"'Population 2016'!AG75/'Population 2016'!AG$7","v":2.0126072757651704E-2},{"$f":"'Population 2016'!AH75/'Population 2016'!AH$7","v":2.3086076953589846E-2},{"$f":"'Population 2016'!AI75/'Population 2016'!AI$7","v":1.851102114260009E-2},{"$f":"'Population 2016'!AJ75/'Population 2016'!AJ$7","v":1.8384952623391317E-2},{"$f":"'Population 2016'!AK75/'Population 2016'!AK$7","v":1.5748031496062992E-2},{"$f":"'Population 2016'!AL75/'Population 2016'!AL$7","v":2.5941403992353177E-2},{"$f":"'Population 2016'!AM75/'Population 2016'!AM$7","v":2.2847120589123516E-2},{"$f":"'Population 2016'!AN75/'Population 2016'!AN$7","v":{"$error":"#DIV/0!"}},{"$f":"'Population 2016'!AO75/'Population 2016'!AO$7","v":{"$error":"#DIV/0!"}},{"$f":"'Population 2016'!AP75/'Population 2016'!AP$7","v":1.4350453172205438E-2},{"$f":"'Population 2016'!AQ75/'Population 2016'!AQ$7","v":2.3417257394280126E-2},{"$f":"'Population 2016'!AR75/'Population 2016'!AR$7","v":2.194135977272154E-2},{"$f":"'Population 2016'!AS75/'Population 2016'!AS$7","v":2.0229527329313362E-2},{"$f":"'Population 2016'!AT75/'Population 2016'!AT$7","v":{"$error":"#DIV/0!"}},{"$f":"'Population 2016'!AU75/'Population 2016'!AU$7","v":{"$error":"#DIV/0!"}},{"$f":"'Population 2016'!AV75/'Population 2016'!AV$7","v":2.3643003032741226E-2},{"$f":"'Population 2016'!AW75/'Population 2016'!AW$7","v":2.3477483305112155E-2},{"$f":"'Population 2016'!AX75/'Population 2016'!AX$7","v":2.0082753052780299E-2},{"$f":"'Population 2016'!AY75/'Population 2016'!AY$7","v":2.1336449407080411E-2},{"$f":"'Population 2016'!AZ75/'Population 2016'!AZ$7","v":1.9489378288832588E-2},{"$f":"'Population 2016'!BA75/'Population 2016'!BA$7","v":2.0962126056988561E-2},{"$f":"'Population 2016'!BB75/'Population 2016'!BB$7","v":2.0858735411949138E-2},{"$f":"'Population 2016'!BC75/'Population 2016'!BC$7","v":{"$error":"#DIV/0!"}},73]
[null,"Female 80-84",{"$f":"'Population 2016'!C76/'Population 2016'!C$7","v":1.2033617725709919E-2},{"$f":"'Population 2016'!D76/'Population 2016'!D$7","v":1.1904168949544255E-2},{"$f":"'Population 2016'!E76/'Population 2016'!E$7","v":1.1439029970258523E-2},{"$f":"'Population 2016'!F76/'Population 2016'!F$7","v":1.4430229098482595E-2},{"$f":"'Population 2016'!G76/'Population 2016'!G$7","v":2.1674694331233792E-2},{"$f":"'Population 2016'!H76/'Population 2016'!H$7","v":1.8062592500567156E-2},{"$f":"'Population 2016'!I76/'Population 2016'!I$7","v":1.5950204240420152E-2},{"$f":"'Population 2016'!J76/'Population 2016'!J$7","v":1.563914311575983E-2},{"$f":"'Population 2016'!K76/'Population 2016'!K$7","v":1.403227423073068E-2},{"$f":"'Population 2016'!L76/'Population 2016'!L$7","v":1.5124198717948718E-2},{"$f":"'Population 2016'!M76/'Population 2016'!M$7","v":1.5124198717948718E-2},{"$f":"'Population 2016'!N76/'Population 2016'!N$7","v":1.5568806700851527E-2},{"$f":"'Population 2016'!O76/'Population 2016'!O$7","v":1.7820773930753563E-2},{"$f":"'Population 2016'!P76/'Population 2016'!P$7","v":1.3529838125151003E-2},{"$f":"'Population 2016'!Q76/'Population 2016'!Q$7","v":1.4388489208633094E-2},{"$f":"'Population 2016'!R76/'Population 2016'!R$7","v":1.9074675324675324E-2},{"$f":"'Population 2016'!S76/'Population 2016'!S$7","v":1.5435847208619001E-2},{"$f":"'Population 2016'!T76/'Population 2016'!T$7","v":1.3615409355680234E-2},{"$f":"'Population 2016'!U76/'Population 2016'!U$7","v":{"$error":"#DIV/0!"}},{"$f":"'Population 2016'!V76/'Population 2016'!V$7","v":1.9063123621468333E-2},{"$f":"'Population 2016'!W76/'Population 2016'!W$7","v":1.6686692954695461E-2},{"$f":"'Population 2016'!X76/'Population 2016'!X$7","v":1.6686692954695461E-2},{"$f":"'Population 2016'!Y76/'Population 2016'!Y$7","v":1.7314015618577889E-2},{"$f":"'Population 2016'!Z76/'Population 2016'!Z$7","v":1.7052513655908996E-2},{"$f":"'Population 2016'!AA76/'Population 2016'!AA$7","v":1.758296032057308E-2},{"$f":"'Population 2016'!AB76/'Population 2016'!AB$7","v":1.2022016222479722E-2},{"$f":"'Population 2016'!AC76/'Population 2016'!AC$7","v":1.7574118963266827E-2},{"$f":"'Population 2016'!AD76/'Population 2016'!AD$7","v":1.7021276595744681E-2},{"$f":"'Population 2016'!AE76/'Population 2016'!AE$7","v":1.5113541429330904E-2},{"$f":"'Population 2016'!AF76/'Population 2016'!AF$7","v":2.161497867418492E-2},{"$f":"'Population 2016'!AG76/'Population 2016'!AG$7","v":1.5113541429330904E-2},{"$f":"'Population 2016'!AH76/'Population 2016'!AH$7","v":1.7604846561609752E-2},{"$f":"'Population 2016'!AI76/'Population 2016'!AI$7","v":1.4574898785425101E-2},{"$f":"'Population 2016'!AJ76/'Population 2016'!AJ$7","v":1.923348889831707E-2},{"$f":"'Population 2016'!AK76/'Population 2016'!AK$7","v":1.5748031496062992E-2},{"$f":"'Population 2016'!AL76/'Population 2016'!AL$7","v":1.8250122260258746E-2},{"$f":"'Population 2016'!AM76/'Population 2016'!AM$7","v":1.7202127906706624E-2},{"$f":"'Population 2016'!AN76/'Population 2016'!AN$7","v":{"$error":"#DIV/0!"}},{"$f":"'Population 2016'!AO76/'Population 2016'!AO$7","v":{"$error":"#DIV/0!"}},{"$f":"'Population 2016'!AP76/'Population 2016'!AP$7","v":1.646525679758308E-2},{"$f":"'Population 2016'!AQ76/'Population 2016'!AQ$7","v":1.9237350281104865E-2},{"$f":"'Population 2016'!AR76/'Population 2016'!AR$7","v":1.6940408193214206E-2},{"$f":"'Population 2016'!AS76/'Population 2016'!AS$7","v":1.5950204240420152E-2},{"$f":"'Population 2016'!AT76/'Population 2016'!AT$7","v":{"$error":"#DIV/0!"}},{"$f":"'Population 2016'!AU76/'Population 2016'!AU$7","v":{"$error":"#DIV/0!"}},{"$f":"'Population 2016'!AV76/'Population 2016'!AV$7","v":1.8010769325988735E-2},{"$f":"'Population 2016'!AW76/'Population 2016'!AW$7","v":1.8264492684690169E-2},{"$f":"'Population 2016'!AX76/'Population 2016'!AX$7","v":1.725703905540418E-2},{"$f":"'Population 2016'!AY76/'Population 2016'!AY$7","v":1.6125681641132174E-2},{"$f":"'Population 2016'!AZ76/'Population 2016'!AZ$7","v":1.5538349781187434E-2},{"$f":"'Population 2016'!BA76/'Population 2016'!BA$7","v":1.591700419242521E-2},{"$f":"'Population 2016'!BB76/'Population 2016'!BB$7","v":1.5502525692388086E-2},{"$f":"'Population 2016'!BC76/'Population 2016'!BC$7","v":{"$error":"#DIV/0!"}},74]
[null,"Female 85-89",{"$f":"'Population 2016'!C77/'Population 2016'!C$7","v":9.232140583216605E-3},{"$f":"'Population 2016'!D77/'Population 2016'!D$7","v":8.9654828908701505E-3},{"$f":"'Population 2016'!E77/'Population 2016'!E$7","v":8.0073209791809655E-3},{"$f":"'Population 2016'!F77/'Population 2016'!F$7","v":8.9259149062778931E-3},{"$f":"'Population 2016'!G77/'Population 2016'!G$7","v":1.593182660244535E-2},{"$f":"'Population 2016'!H77/'Population 2016'!H$7","v":1.1094666565838797E-2},{"$f":"'Population 2016'!I77/'Population 2016'!I$7","v":1.1476366465668159E-2},{"$f":"'Population 2016'!J77/'Population 2016'!J$7","v":8.2972945791008751E-3},{"$f":"'Population 2016'!K77/'Population 2016'!K$7","v":8.8202866593164279E-3},{"$f":"'Population 2016'!L77/'Population 2016'!L$7","v":1.0116185897435898E-2},{"$f":"'Population 2016'!M77/'Population 2016'!M$7","v":1.0116185897435898E-2},{"$f":"'Population 2016'!N77/'Population 2016'!N$7","v":1.0255458363303093E-2},{"$f":"'Population 2016'!O77/'Population 2016'!O$7","v":1.212449083503055E-2},{"$f":"'Population 2016'!P77/'Population 2016'!P$7","v":7.9729403237496985E-3},{"$f":"'Population 2016'!Q77/'Population 2016'!Q$7","v":7.1942446043165471E-3},{"$f":"'Population 2016'!R77/'Population 2016'!R$7","v":8.9285714285714281E-3},{"$f":"'Population 2016'!S77/'Population 2016'!S$7","v":9.2980737838720216E-3},{"$f":"'Population 2016'!T77/'Population 2016'!T$7","v":9.0948075617339093E-3},{"$f":"'Population 2016'!U77/'Population 2016'!U$7","v":{"$error":"#DIV/0!"}},{"$f":"'Population 2016'!V77/'Population 2016'!V$7","v":1.1395861779224871E-2},{"$f":"'Population 2016'!W77/'Population 2016'!W$7","v":1.0238792330213745E-2},{"$f":"'Population 2016'!X77/'Population 2016'!X$7","v":1.0238792330213745E-2},{"$f":"'Population 2016'!Y77/'Population 2016'!Y$7","v":9.8129880805589813E-3},{"$f":"'Population 2016'!Z77/'Population 2016'!Z$7","v":9.9392275198679266E-3},{"$f":"'Population 2016'!AA77/'Population 2016'!AA$7","v":1.0344748872661017E-2},{"$f":"'Population 2016'!AB77/'Population 2016'!AB$7","v":9.0768636539204327E-3},{"$f":"'Population 2016'!AC77/'Population 2016'!AC$7","v":1.042152246876748E-2},{"$f":"'Population 2016'!AD77/'Population 2016'!AD$7","v":1.1203878265553462E-2},{"$f":"'Population 2016'!AE77/'Population 2016'!AE$7","v":9.2655882129566332E-3},{"$f":"'Population 2016'!AF77/'Population 2016'!AF$7","v":1.3048507192944408E-2},{"$f":"'Population 2016'!AG77/'Population 2016'!AG$7","v":9.2655882129566332E-3},{"$f":"'Population 2016'!AH77/'Population 2016'!AH$7","v":1.0154700515668386E-2},{"$f":"'Population 2016'!AI77/'Population 2016'!AI$7","v":8.5470085470085479E-3},{"$f":"'Population 2016'!AJ77/'Population 2016'!AJ$7","v":1.0182435299109036E-2},{"$f":"'Population 2016'!AK77/'Population 2016'!AK$7","v":1.2598425196850394E-2},{"$f":"'Population 2016'!AL77/'Population 2016'!AL$7","v":1.0069799493175654E-2},{"$f":"'Population 2016'!AM77/'Population 2016'!AM$7","v":1.0383998884939717E-2},{"$f":"'Population 2016'!AN77/'Population 2016'!AN$7","v":{"$error":"#DIV/0!"}},{"$f":"'Population 2016'!AO77/'Population 2016'!AO$7","v":{"$error":"#DIV/0!"}},{"$f":"'Population 2016'!AP77/'Population 2016'!AP$7","v":7.8549848942598196E-3},{"$f":"'Population 2016'!AQ77/'Population 2016'!AQ$7","v":1.1073087264727451E-2},{"$f":"'Population 2016'!AR77/'Population 2016'!AR$7","v":1.0168142952464591E-2},{"$f":"'Population 2016'!AS77/'Population 2016'!AS$7","v":1.1476366465668159E-2},{"$f":"'Population 2016'!AT77/'Population 2016'!AT$7","v":{"$error":"#DIV/0!"}},{"$f":"'Population 2016'!AU77/'Population 2016'!AU$7","v":{"$error":"#DIV/0!"}},{"$f":"'Population 2016'!AV77/'Population 2016'!AV$7","v":1.1945286872562976E-2},{"$f":"'Population 2016'!AW77/'Population 2016'!AW$7","v":9.7791137915945285E-3},{"$f":"'Population 2016'!AX77/'Population 2016'!AX$7","v":7.770713492784337E-3},{"$f":"'Population 2016'!AY77/'Population 2016'!AY$7","v":1.0032026313511641E-2},{"$f":"'Population 2016'!AZ77/'Population 2016'!AZ$7","v":9.8155596109211381E-3},{"$f":"'Population 2016'!BA77/'Population 2016'!BA$7","v":1.1582462872166559E-2},{"$f":"'Population 2016'!BB77/'Population 2016'!BB$7","v":6.8803344365093192E-3},{"$f":"'Population 2016'!BC77/'Population 2016'!BC$7","v":{"$error":"#DIV/0!"}},75]
[null,"Female 90+",{"$f":"'Population 2016'!C78/'Population 2016'!C$7","v":4.520565389023303E-3},{"$f":"'Population 2016'!D78/'Population 2016'!D$7","v":4.4329332071524627E-3},{"$f":"'Population 2016'!E78/'Population 2016'!E$7","v":4.1180507892930682E-3},{"$f":"'Population 2016'!F78/'Population 2016'!F$7","v":5.5043141922047007E-3},{"$f":"'Population 2016'!G78/'Population 2016'!G$7","v":1.018895887365691E-2},{"$f":"'Population 2016'!H78/'Population 2016'!H$7","v":6.1360960169390818E-3},{"$f":"'Population 2016'!I78/'Population 2016'!I$7","v":4.6683524606107758E-3},{"$f":"'Population 2016'!J78/'Population 2016'!J$7","v":5.0286633812732578E-3},{"$f":"'Population 2016'!K78/'Population 2016'!K$7","v":5.6129096922922722E-3},{"$f":"'Population 2016'!L78/'Population 2016'!L$7","v":4.0064102564102561E-3},{"$f":"'Population 2016'!M78/'Population 2016'!M$7","v":4.0064102564102561E-3},{"$f":"'Population 2016'!N78/'Population 2016'!N$7","v":5.5453722824195459E-3},{"$f":"'Population 2016'!O78/'Population 2016'!O$7","v":6.4600305498981672E-3},{"$f":"'Population 2016'!P78/'Population 2016'!P$7","v":1.2080212611741967E-3},{"$f":"'Population 2016'!Q78/'Population 2016'!Q$7","v":2.0554984583761563E-3},{"$f":"'Population 2016'!R78/'Population 2016'!R$7","v":5.275974025974026E-3},{"$f":"'Population 2016'!S78/'Population 2016'!S$7","v":5.3150506039830233E-3},{"$f":"'Population 2016'!T78/'Population 2016'!T$7","v":4.8422256369938894E-3},{"$f":"'Population 2016'!U78/'Population 2016'!U$7","v":{"$error":"#DIV/0!"}},{"$f":"'Population 2016'!V78/'Population 2016'!V$7","v":5.4616111752967128E-3},{"$f":"'Population 2016'!W78/'Population 2016'!W$7","v":5.9571155375789065E-3},{"$f":"'Population 2016'!X78/'Population 2016'!X$7","v":5.9571155375789065E-3},{"$f":"'Population 2016'!Y78/'Population 2016'!Y$7","v":5.2404438964241675E-3},{"$f":"'Population 2016'!Z78/'Population 2016'!Z$7","v":5.3570751717254249E-3},{"$f":"'Population 2016'!AA78/'Population 2016'!AA$7","v":5.5697705063635248E-3},{"$f":"'Population 2016'!AB78/'Population 2016'!AB$7","v":4.3935882580146777E-3},{"$f":"'Population 2016'!AC78/'Population 2016'!AC$7","v":5.55892224501212E-3},{"$f":"'Population 2016'!AD78/'Population 2016'!AD$7","v":6.5176407217883113E-3},{"$f":"'Population 2016'!AE78/'Population 2016'!AE$7","v":5.0125313283208017E-3},{"$f":"'Population 2016'!AF78/'Population 2016'!AF$7","v":6.5423263211161712E-3},{"$f":"'Population 2016'!AG78/'Population 2016'!AG$7","v":5.0125313283208017E-3},{"$f":"'Population 2016'!AH78/'Population 2016'!AH$7","v":5.5966247160217806E-3},{"$f":"'Population 2016'!AI78/'Population 2016'!AI$7","v":4.9257759784075575E-3},{"$f":"'Population 2016'!AJ78/'Population 2016'!AJ$7","v":5.3740630745297696E-3},{"$f":"'Population 2016'!AK78/'Population 2016'!AK$7","v":3.1496062992125984E-3},{"$f":"'Population 2016'!AL78/'Population 2016'!AL$7","v":5.7128884541857465E-3},{"$f":"'Population 2016'!AM78/'Population 2016'!AM$7","v":5.3894580342416431E-3},{"$f":"'Population 2016'!AN78/'Population 2016'!AN$7","v":{"$error":"#DIV/0!"}},{"$f":"'Population 2016'!AO78/'Population 2016'!AO$7","v":{"$error":"#DIV/0!"}},{"$f":"'Population 2016'!AP78/'Population 2016'!AP$7","v":4.0785498489425984E-3},{"$f":"'Population 2016'!AQ78/'Population 2016'!AQ$7","v":5.1576631630408211E-3},{"$f":"'Population 2016'!AR78/'Population 2016'!AR$7","v":5.5317724372129498E-3},{"$f":"'Population 2016'!AS78/'Population 2016'!AS$7","v":4.6683524606107758E-3},{"$f":"'Population 2016'!AT78/'Population 2016'!AT$7","v":{"$error":"#DIV/0!"}},{"$f":"'Population 2016'!AU78/'Population 2016'!AU$7","v":{"$error":"#DIV/0!"}},{"$f":"'Population 2016'!AV78/'Population 2016'!AV$7","v":6.6844092343875724E-3},{"$f":"'Population 2016'!AW78/'Population 2016'!AW$7","v":5.9359601225243055E-3},{"$f":"'Population 2016'!AX78/'Population 2016'!AX$7","v":4.4404077101624787E-3},{"$f":"'Population 2016'!AY78/'Population 2016'!AY$7","v":5.6695230676014887E-3},{"$f":"'Population 2016'!AZ78/'Population 2016'!AZ$7","v":5.3684378377420669E-3},{"$f":"'Population 2016'!BA78/'Population 2016'!BA$7","v":7.5676827968450223E-3},{"$f":"'Population 2016'!BB78/'Population 2016'!BB$7","v":5.356209719561052E-3},{"$f":"'Population 2016'!BC78/'Population 2016'!BC$7","v":{"$error":"#DIV/0!"}},76]
[null,"Male 0-4",{"$f":"'Population 2016'!C79/'Population 2016'!C$7","v":0},{"$f":"'Population 2016'!D79/'Population 2016'!D$7","v":0},{"$f":"'Population 2016'!E79/'Population 2016'!E$7","v":0},{"$f":"'Population 2016'!F79/'Population 2016'!F$7","v":0},{"$f":"'Population 2016'!G79/'Population 2016'!G$7","v":0},{"$f":"'Population 2016'!H79/'Population 2016'!H$7","v":0},{"$f":"'Population 2016'!I79/'Population 2016'!I$7","v":0},{"$f":"'Population 2016'!J79/'Population 2016'!J$7","v":0},{"$f":"'Population 2016'!K79/'Population 2016'!K$7","v":0},{"$f":"'Population 2016'!L79/'Population 2016'!L$7","v":0},{"$f":"'Population 2016'!M79/'Population 2016'!M$7","v":0},{"$f":"'Population 2016'!N79/'Population 2016'!N$7","v":0},{"$f":"'Population 2016'!O79/'Population 2016'!O$7","v":0},{"$f":"'Population 2016'!P79/'Population 2016'!P$7","v":0},{"$f":"'Population 2016'!Q79/'Population 2016'!Q$7","v":0},{"$f":"'Population 2016'!R79/'Population 2016'!R$7","v":0},{"$f":"'Population 2016'!S79/'Population 2016'!S$7","v":0},{"$f":"'Population 2016'!T79/'Population 2016'!T$7","v":0},{"$f":"'Population 2016'!U79/'Population 2016'!U$7","v":{"$error":"#DIV/0!"}},{"$f":"'Population 2016'!V79/'Population 2016'!V$7","v":0},{"$f":"'Population 2016'!W79/'Population 2016'!W$7","v":0},{"$f":"'Population 2016'!X79/'Population 2016'!X$7","v":0},{"$f":"'Population 2016'!Y79/'Population 2016'!Y$7","v":0},{"$f":"'Population 2016'!Z79/'Population 2016'!Z$7","v":0},{"$f":"'Population 2016'!AA79/'Population 2016'!AA$7","v":0},{"$f":"'Population 2016'!AB79/'Population 2016'!AB$7","v":0},{"$f":"'Population 2016'!AC79/'Population 2016'!AC$7","v":0},{"$f":"'Population 2016'!AD79/'Population 2016'!AD$7","v":0},{"$f":"'Population 2016'!AE79/'Population 2016'!AE$7","v":0},{"$f":"'Population 2016'!AF79/'Population 2016'!AF$7","v":0},{"$f":"'Population 2016'!AG79/'Population 2016'!AG$7","v":0},{"$f":"'Population 2016'!AH79/'Population 2016'!AH$7","v":0},{"$f":"'Population 2016'!AI79/'Population 2016'!AI$7","v":0},{"$f":"'Population 2016'!AJ79/'Population 2016'!AJ$7","v":0},{"$f":"'Population 2016'!AK79/'Population 2016'!AK$7","v":0},{"$f":"'Population 2016'!AL79/'Population 2016'!AL$7","v":0},{"$f":"'Population 2016'!AM79/'Population 2016'!AM$7","v":0},{"$f":"'Population 2016'!AN79/'Population 2016'!AN$7","v":{"$error":"#DIV/0!"}},{"$f":"'Population 2016'!AO79/'Population 2016'!AO$7","v":{"$error":"#DIV/0!"}},{"$f":"'Population 2016'!AP79/'Population 2016'!AP$7","v":0},{"$f":"'Population 2016'!AQ79/'Population 2016'!AQ$7","v":0},{"$f":"'Population 2016'!AR79/'Population 2016'!AR$7","v":0},{"$f":"'Population 2016'!AS79/'Population 2016'!AS$7","v":0},{"$f":"'Population 2016'!AT79/'Population 2016'!AT$7","v":{"$error":"#DIV/0!"}},{"$f":"'Population 2016'!AU79/'Population 2016'!AU$7","v":{"$error":"#DIV/0!"}},{"$f":"'Population 2016'!AV79/'Population 2016'!AV$7","v":0},{"$f":"'Population 2016'!AW79/'Population 2016'!AW$7","v":0},{"$f":"'Population 2016'!AX79/'Population 2016'!AX$7","v":0},{"$f":"'Population 2016'!AY79/'Population 2016'!AY$7","v":0},{"$f":"'Population 2016'!AZ79/'Population 2016'!AZ$7","v":0},{"$f":"'Population 2016'!BA79/'Population 2016'!BA$7","v":0},{"$f":"'Population 2016'!BB79/'Population 2016'!BB$7","v":0},{"$f":"'Population 2016'!BC79/'Population 2016'!BC$7","v":{"$error":"#DIV/0!"}},77]
[null,"Male 5-9",{"$f":"'Population 2016'!C80/'Population 2016'!C$7","v":0},{"$f":"'Population 2016'!D80/'Population 2016'!D$7","v":0},{"$f":"'Population 2016'!E80/'Population 2016'!E$7","v":0},{"$f":"'Population 2016'!F80/'Population 2016'!F$7","v":0},{"$f":"'Population 2016'!G80/'Population 2016'!G$7","v":0},{"$f":"'Population 2016'!H80/'Population 2016'!H$7","v":0},{"$f":"'Population 2016'!I80/'Population 2016'!I$7","v":0},{"$f":"'Population 2016'!J80/'Population 2016'!J$7","v":0},{"$f":"'Population 2016'!K80/'Population 2016'!K$7","v":0},{"$f":"'Population 2016'!L80/'Population 2016'!L$7","v":0},{"$f":"'Population 2016'!M80/'Population 2016'!M$7","v":0},{"$f":"'Population 2016'!N80/'Population 2016'!N$7","v":0},{"$f":"'Population 2016'!O80/'Population 2016'!O$7","v":0},{"$f":"'Population 2016'!P80/'Population 2016'!P$7","v":0},{"$f":"'Population 2016'!Q80/'Population 2016'!Q$7","v":0},{"$f":"'Population 2016'!R80/'Population 2016'!R$7","v":0},{"$f":"'Population 2016'!S80/'Population 2016'!S$7","v":0},{"$f":"'Population 2016'!T80/'Population 2016'!T$7","v":0},{"$f":"'Population 2016'!U80/'Population 2016'!U$7","v":{"$error":"#DIV/0!"}},{"$f":"'Population 2016'!V80/'Population 2016'!V$7","v":0},{"$f":"'Population 2016'!W80/'Population 2016'!W$7","v":0},{"$f":"'Population 2016'!X80/'Population 2016'!X$7","v":0},{"$f":"'Population 2016'!Y80/'Population 2016'!Y$7","v":0},{"$f":"'Population 2016'!Z80/'Population 2016'!Z$7","v":0},{"$f":"'Population 2016'!AA80/'Population 2016'!AA$7","v":0},{"$f":"'Population 2016'!AB80/'Population 2016'!AB$7","v":0},{"$f":"'Population 2016'!AC80/'Population 2016'!AC$7","v":0},{"$f":"'Population 2016'!AD80/'Population 2016'!AD$7","v":0},{"$f":"'Population 2016'!AE80/'Population 2016'!AE$7","v":0},{"$f":"'Population 2016'!AF80/'Population 2016'!AF$7","v":0},{"$f":"'Population 2016'!AG80/'Population 2016'!AG$7","v":0},{"$f":"'Population 2016'!AH80/'Population 2016'!AH$7","v":0},{"$f":"'Population 2016'!AI80/'Population 2016'!AI$7","v":0},{"$f":"'Population 2016'!AJ80/'Population 2016'!AJ$7","v":0},{"$f":"'Population 2016'!AK80/'Population 2016'!AK$7","v":0},{"$f":"'Population 2016'!AL80/'Population 2016'!AL$7","v":0},{"$f":"'Population 2016'!AM80/'Population 2016'!AM$7","v":0},{"$f":"'Population 2016'!AN80/'Population 2016'!AN$7","v":{"$error":"#DIV/0!"}},{"$f":"'Population 2016'!AO80/'Population 2016'!AO$7","v":{"$error":"#DIV/0!"}},{"$f":"'Population 2016'!AP80/'Population 2016'!AP$7","v":0},{"$f":"'Population 2016'!AQ80/'Population 2016'!AQ$7","v":0},{"$f":"'Population 2016'!AR80/'Population 2016'!AR$7","v":0},{"$f":"'Population 2016'!AS80/'Population 2016'!AS$7","v":0},{"$f":"'Population 2016'!AT80/'Population 2016'!AT$7","v":{"$error":"#DIV/0!"}},{"$f":"'Population 2016'!AU80/'Population 2016'!AU$7","v":{"$error":"#DIV/0!"}},{"$f":"'Population 2016'!AV80/'Population 2016'!AV$7","v":0},{"$f":"'Population 2016'!AW80/'Population 2016'!AW$7","v":0},{"$f":"'Population 2016'!AX80/'Population 2016'!AX$7","v":0},{"$f":"'Population 2016'!AY80/'Population 2016'!AY$7","v":0},{"$f":"'Population 2016'!AZ80/'Population 2016'!AZ$7","v":0},{"$f":"'Population 2016'!BA80/'Population 2016'!BA$7","v":0},{"$f":"'Population 2016'!BB80/'Population 2016'!BB$7","v":0},{"$f":"'Population 2016'!BC80/'Population 2016'!BC$7","v":{"$error":"#DIV/0!"}},78]
[null,"Male 10-15",{"$f":"'Population 2016'!C81/'Population 2016'!C$7","v":0},{"$f":"'Population 2016'!D81/'Population 2016'!D$7","v":0},{"$f":"'Population 2016'!E81/'Population 2016'!E$7","v":0},{"$f":"'Population 2016'!F81/'Population 2016'!F$7","v":0},{"$f":"'Population 2016'!G81/'Population 2016'!G$7","v":0},{"$f":"'Population 2016'!H81/'Population 2016'!H$7","v":0},{"$f":"'Population 2016'!I81/'Population 2016'!I$7","v":0},{"$f":"'Population 2016'!J81/'Population 2016'!J$7","v":0},{"$f":"'Population 2016'!K81/'Population 2016'!K$7","v":0},{"$f":"'Population 2016'!L81/'Population 2016'!L$7","v":0},{"$f":"'Population 2016'!M81/'Population 2016'!M$7","v":0},{"$f":"'Population 2016'!N81/'Population 2016'!N$7","v":0},{"$f":"'Population 2016'!O81/'Population 2016'!O$7","v":0},{"$f":"'Population 2016'!P81/'Population 2016'!P$7","v":0},{"$f":"'Population 2016'!Q81/'Population 2016'!Q$7","v":0},{"$f":"'Population 2016'!R81/'Population 2016'!R$7","v":0},{"$f":"'Population 2016'!S81/'Population 2016'!S$7","v":0},{"$f":"'Population 2016'!T81/'Population 2016'!T$7","v":0},{"$f":"'Population 2016'!U81/'Population 2016'!U$7","v":{"$error":"#DIV/0!"}},{"$f":"'Population 2016'!V81/'Population 2016'!V$7","v":0},{"$f":"'Population 2016'!W81/'Population 2016'!W$7","v":0},{"$f":"'Population 2016'!X81/'Population 2016'!X$7","v":0},{"$f":"'Population 2016'!Y81/'Population 2016'!Y$7","v":0},{"$f":"'Population 2016'!Z81/'Population 2016'!Z$7","v":0},{"$f":"'Population 2016'!AA81/'Population 2016'!AA$7","v":0},{"$f":"'Population 2016'!AB81/'Population 2016'!AB$7","v":0},{"$f":"'Population 2016'!AC81/'Population 2016'!AC$7","v":0},{"$f":"'Population 2016'!AD81/'Population 2016'!AD$7","v":0},{"$f":"'Population 2016'!AE81/'Population 2016'!AE$7","v":0},{"$f":"'Population 2016'!AF81/'Population 2016'!AF$7","v":0},{"$f":"'Population 2016'!AG81/'Population 2016'!AG$7","v":0},{"$f":"'Population 2016'!AH81/'Population 2016'!AH$7","v":0},{"$f":"'Population 2016'!AI81/'Population 2016'!AI$7","v":0},{"$f":"'Population 2016'!AJ81/'Population 2016'!AJ$7","v":0},{"$f":"'Population 2016'!AK81/'Population 2016'!AK$7","v":0},{"$f":"'Population 2016'!AL81/'Population 2016'!AL$7","v":0},{"$f":"'Population 2016'!AM81/'Population 2016'!AM$7","v":0},{"$f":"'Population 2016'!AN81/'Population 2016'!AN$7","v":{"$error":"#DIV/0!"}},{"$f":"'Population 2016'!AO81/'Population 2016'!AO$7","v":{"$error":"#DIV/0!"}},{"$f":"'Population 2016'!AP81/'Population 2016'!AP$7","v":0},{"$f":"'Population 2016'!AQ81/'Population 2016'!AQ$7","v":0},{"$f":"'Population 2016'!AR81/'Population 2016'!AR$7","v":0},{"$f":"'Population 2016'!AS81/'Population 2016'!AS$7","v":0},{"$f":"'Population 2016'!AT81/'Population 2016'!AT$7","v":{"$error":"#DIV/0!"}},{"$f":"'Population 2016'!AU81/'Population 2016'!AU$7","v":{"$error":"#DIV/0!"}},{"$f":"'Population 2016'!AV81/'Population 2016'!AV$7","v":0},{"$f":"'Population 2016'!AW81/'Population 2016'!AW$7","v":0},{"$f":"'Population 2016'!AX81/'Population 2016'!AX$7","v":0},{"$f":"'Population 2016'!AY81/'Population 2016'!AY$7","v":0},{"$f":"'Population 2016'!AZ81/'Population 2016'!AZ$7","v":0},{"$f":"'Population 2016'!BA81/'Population 2016'!BA$7","v":0},{"$f":"'Population 2016'!BB81/'Population 2016'!BB$7","v":0},{"$f":"'Population 2016'!BC81/'Population 2016'!BC$7","v":{"$error":"#DIV/0!"}},79]
[null,"Male 16-19",{"$f":"'Population 2016'!C82/'Population 2016'!C$7","v":2.4003565516363172E-2},{"$f":"'Population 2016'!D82/'Population 2016'!D$7","v":2.3210639039697167E-2},{"$f":"'Population 2016'!E82/'Population 2016'!E$7","v":2.036147334706017E-2},{"$f":"'Population 2016'!F82/'Population 2016'!F$7","v":3.5852424873549539E-2},{"$f":"'Population 2016'!G82/'Population 2016'!G$7","v":3.2975175991107816E-2},{"$f":"'Population 2016'!H82/'Population 2016'!H$7","v":2.9610984476109197E-2},{"$f":"'Population 2016'!I82/'Population 2016'!I$7","v":3.4429099397004476E-2},{"$f":"'Population 2016'!J82/'Population 2016'!J$7","v":3.4898923866036408E-2},{"$f":"'Population 2016'!K82/'Population 2016'!K$7","v":3.4278841335070663E-2},{"$f":"'Population 2016'!L82/'Population 2016'!L$7","v":2.9447115384615384E-2},{"$f":"'Population 2016'!M82/'Population 2016'!M$7","v":2.9447115384615384E-2},{"$f":"'Population 2016'!N82/'Population 2016'!N$7","v":2.7170003944407061E-2},{"$f":"'Population 2016'!O82/'Population 2016'!O$7","v":2.9913441955193482E-2},{"$f":"'Population 2016'!P82/'Population 2016'!P$7","v":3.2858178303938147E-2},{"$f":"'Population 2016'!Q82/'Population 2016'!Q$7","v":3.014731072285029E-2},{"$f":"'Population 2016'!R82/'Population 2016'!R$7","v":3.3076298701298704E-2},{"$f":"'Population 2016'!S82/'Population 2016'!S$7","v":2.9337251061051256E-2},{"$f":"'Population 2016'!T82/'Population 2016'!T$7","v":2.6819854911910804E-2},{"$f":"'Population 2016'!U82/'Population 2016'!U$7","v":{"$error":"#DIV/0!"}},{"$f":"'Population 2016'!V82/'Population 2016'!V$7","v":2.6362777019220671E-2},{"$f":"'Population 2016'!W82/'Population 2016'!W$7","v":3.0191744656365822E-2},{"$f":"'Population 2016'!X82/'Population 2016'!X$7","v":3.0191744656365822E-2},{"$f":"'Population 2016'!Y82/'Population 2016'!Y$7","v":3.0723386765310317E-2},{"$f":"'Population 2016'!Z82/'Population 2016'!Z$7","v":2.8625817564636565E-2},{"$f":"'Population 2016'!AA82/'Population 2016'!AA$7","v":2.9000574823558219E-2},{"$f":"'Population 2016'!AB82/'Population 2016'!AB$7","v":2.3609501738122828E-2},{"$f":"'Population 2016'!AC82/'Population 2016'!AC$7","v":2.8485106283796382E-2},{"$f":"'Population 2016'!AD82/'Population 2016'!AD$7","v":3.1672502019929973E-2},{"$f":"'Population 2016'!AE82/'Population 2016'!AE$7","v":3.1138452191083771E-2},{"$f":"'Population 2016'!AF82/'Population 2016'!AF$7","v":2.797657774886142E-2},{"$f":"'Population 2016'!AG82/'Population 2016'!AG$7","v":3.1138452191083771E-2},{"$f":"'Population 2016'!AH82/'Population 2016'!AH$7","v":3.0276585770437417E-2},{"$f":"'Population 2016'!AI82/'Population 2016'!AI$7","v":2.8475033738191633E-2},{"$f":"'Population 2016'!AJ82/'Population 2016'!AJ$7","v":2.927450148493848E-2},{"$f":"'Population 2016'!AK82/'Population 2016'!AK$7","v":3.6220472440944881E-2},{"$f":"'Population 2016'!AL82/'Population 2016'!AL$7","v":3.0453918997021295E-2},{"$f":"'Population 2016'!AM82/'Population 2016'!AM$7","v":3.1709526796292423E-2},{"$f":"'Population 2016'!AN82/'Population 2016'!AN$7","v":{"$error":"#DIV/0!"}},{"$f":"'Population 2016'!AO82/'Population 2016'!AO$7","v":{"$error":"#DIV/0!"}},{"$f":"'Population 2016'!AP82/'Population 2016'!AP$7","v":2.5830815709969788E-2},{"$f":"'Population 2016'!AQ82/'Population 2016'!AQ$7","v":2.6106086531410413E-2},{"$f":"'Population 2016'!AR82/'Population 2016'!AR$7","v":2.90736201523903E-2},{"$f":"'Population 2016'!AS82/'Population 2016'!AS$7","v":3.4429099397004476E-2},{"$f":"'Population 2016'!AT82/'Population 2016'!AT$7","v":{"$error":"#DIV/0!"}},{"$f":"'Population 2016'!AU82/'Population 2016'!AU$7","v":{"$error":"#DIV/0!"}},{"$f":"'Population 2016'!AV82/'Population 2016'!AV$7","v":2.6675744259454105E-2},{"$f":"'Population 2016'!AW82/'Population 2016'!AW$7","v":2.7929453397005383E-2},{"$f":"'Population 2016'!AX82/'Population 2016'!AX$7","v":3.5523261681299829E-2},{"$f":"'Population 2016'!AY82/'Population 2016'!AY$7","v":2.9143945295594217E-2},{"$f":"'Population 2016'!AZ82/'Population 2016'!AZ$7","v":2.8046987119292714E-2},{"$f":"'Population 2016'!BA82/'Population 2016'!BA$7","v":2.9808853833582036E-2},{"$f":"'Population 2016'!BB82/'Population 2016'!BB$7","v":3.2050165476397843E-2},{"$f":"'Population 2016'!BC82/'Population 2016'!BC$7","v":{"$error":"#DIV/0!"}},80]
[null,"Male 20-24",{"$f":"'Population 2016'!C83/'Population 2016'!C$7","v":3.9220679994906409E-2},{"$f":"'Population 2016'!D83/'Population 2016'!D$7","v":4.223738606365493E-2},{"$f":"'Population 2016'!E83/'Population 2016'!E$7","v":5.307709906199954E-2},{"$f":"'Population 2016'!F83/'Population 2016'!F$7","v":5.0580184468908065E-2},{"$f":"'Population 2016'!G83/'Population 2016'!G$7","v":5.1685809559095963E-2},{"$f":"'Population 2016'!H83/'Population 2016'!H$7","v":4.1505072001901323E-2},{"$f":"'Population 2016'!I83/'Population 2016'!I$7","v":4.1042598716203076E-2},{"$f":"'Population 2016'!J83/'Population 2016'!J$7","v":4.4604244191893794E-2},{"$f":"'Population 2016'!K83/'Population 2016'!K$7","v":4.2798436403728574E-2},{"$f":"'Population 2016'!L83/'Population 2016'!L$7","v":4.3970352564102567E-2},{"$f":"'Population 2016'!M83/'Population 2016'!M$7","v":4.3970352564102567E-2},{"$f":"'Population 2016'!N83/'Population 2016'!N$7","v":4.4850228543585696E-2},{"$f":"'Population 2016'!O83/'Population 2016'!O$7","v":4.1337830957230141E-2},{"$f":"'Population 2016'!P83/'Population 2016'!P$7","v":4.0831118627687846E-2},{"$f":"'Population 2016'!Q83/'Population 2016'!Q$7","v":4.0767386091127102E-2},{"$f":"'Population 2016'!R83/'Population 2016'!R$7","v":3.936688311688312E-2},{"$f":"'Population 2016'!S83/'Population 2016'!S$7","v":4.0137120470127324E-2},{"$f":"'Population 2016'!T83/'Population 2016'!T$7","v":3.9273844834363719E-2},{"$f":"'Population 2016'!U83/'Population 2016'!U$7","v":{"$error":"#DIV/0!"}},{"$f":"'Population 2016'!V83/'Population 2016'!V$7","v":3.8703917655708436E-2},{"$f":"'Population 2016'!W83/'Population 2016'!W$7","v":3.8907410854812231E-2},{"$f":"'Population 2016'!X83/'Population 2016'!X$7","v":3.8907410854812231E-2},{"$f":"'Population 2016'!Y83/'Population 2016'!Y$7","v":4.1718043567612002E-2},{"$f":"'Population 2016'!Z83/'Population 2016'!Z$7","v":4.4675985394389391E-2},{"$f":"'Population 2016'!AA83/'Population 2016'!AA$7","v":4.3223826332729455E-2},{"$f":"'Population 2016'!AB83/'Population 2016'!AB$7","v":4.2101197373503284E-2},{"$f":"'Population 2016'!AC83/'Population 2016'!AC$7","v":4.3713872832369945E-2},{"$f":"'Population 2016'!AD83/'Population 2016'!AD$7","v":4.5515755453810931E-2},{"$f":"'Population 2016'!AE83/'Population 2016'!AE$7","v":4.2986253512569302E-2},{"$f":"'Population 2016'!AF83/'Population 2016'!AF$7","v":3.9832285115303984E-2},{"$f":"'Population 2016'!AG83/'Population 2016'!AG$7","v":4.2986253512569302E-2},{"$f":"'Population 2016'!AH83/'Population 2016'!AH$7","v":4.2010746096426382E-2},{"$f":"'Population 2016'!AI83/'Population 2016'!AI$7","v":4.0901934322986958E-2},{"$f":"'Population 2016'!AJ83/'Population 2016'!AJ$7","v":4.6810917833404048E-2},{"$f":"'Population 2016'!AK83/'Population 2016'!AK$7","v":3.7795275590551181E-2},{"$f":"'Population 2016'!AL83/'Population 2016'!AL$7","v":4.1612946249944424E-2},{"$f":"'Population 2016'!AM83/'Population 2016'!AM$7","v":4.3522196668757403E-2},{"$f":"'Population 2016'!AN83/'Population 2016'!AN$7","v":{"$error":"#DIV/0!"}},{"$f":"'Population 2016'!AO83/'Population 2016'!AO$7","v":{"$error":"#DIV/0!"}},{"$f":"'Population 2016'!AP83/'Population 2016'!AP$7","v":4.6676737160120843E-2},{"$f":"'Population 2016'!AQ83/'Population 2016'!AQ$7","v":4.2679051576631627E-2},{"$f":"'Population 2016'!AR83/'Population 2016'!AR$7","v":4.2626176003228489E-2},{"$f":"'Population 2016'!AS83/'Population 2016'!AS$7","v":4.1042598716203076E-2},{"$f":"'Population 2016'!AT83/'Population 2016'!AT$7","v":{"$error":"#DIV/0!"}},{"$f":"'Population 2016'!AU83/'Population 2016'!AU$7","v":{"$error":"#DIV/0!"}},{"$f":"'Population 2016'!AV83/'Population 2016'!AV$7","v":4.1529987002537599E-2},{"$f":"'Population 2016'!AW83/'Population 2016'!AW$7","v":3.9535016457068931E-2},{"$f":"'Population 2016'!AX83/'Population 2016'!AX$7","v":4.6422444242607733E-2},{"$f":"'Population 2016'!AY83/'Population 2016'!AY$7","v":4.2248766554141781E-2},{"$f":"'Population 2016'!AZ83/'Population 2016'!AZ$7","v":4.5746886128877944E-2},{"$f":"'Population 2016'!BA83/'Population 2016'!BA$7","v":4.2101897250053297E-2},{"$f":"'Population 2016'!BB83/'Population 2016'!BB$7","v":4.3067409858909597E-2},{"$f":"'Population 2016'!BC83/'Population 2016'!BC$7","v":{"$error":"#DIV/0!"}},81]
[null,"Male 25-29",{"$f":"'Population 2016'!C84/'Population 2016'!C$7","v":6.5834712848592894E-2},{"$f":"'Population 2016'!D84/'Population 2016'!D$7","v":6.4601285052547697E-2},{"$f":"'Population 2016'!E84/'Population 2016'!E$7","v":6.0169297643559827E-2},{"$f":"'Population 2016'!F84/'Population 2016'!F$7","v":4.6712288009520979E-2},{"$f":"'Population 2016'!G84/'Population 2016'!G$7","v":4.1682104483141906E-2},{"$f":"'Population 2016'!H84/'Population 2016'!H$7","v":3.996024501172124E-2},{"$f":"'Population 2016'!I84/'Population 2016'!I$7","v":3.073332036568761E-2},{"$f":"'Population 2016'!J84/'Population 2016'!J$7","v":4.3497938248013679E-2},{"$f":"'Population 2016'!K84/'Population 2016'!K$7","v":3.4679763455948684E-2},{"$f":"'Population 2016'!L84/'Population 2016'!L$7","v":4.9679487179487176E-2},{"$f":"'Population 2016'!M84/'Population 2016'!M$7","v":4.9679487179487176E-2},{"$f":"'Population 2016'!N84/'Population 2016'!N$7","v":6.2994501032506561E-2},{"$f":"'Population 2016'!O84/'Population 2016'!O$7","v":4.0796843177189408E-2},{"$f":"'Population 2016'!P84/'Population 2016'!P$7","v":3.9381493114278812E-2},{"$f":"'Population 2016'!Q84/'Population 2016'!Q$7","v":3.5971223021582732E-2},{"$f":"'Population 2016'!R84/'Population 2016'!R$7","v":3.9772727272727272E-2},{"$f":"'Population 2016'!S84/'Population 2016'!S$7","v":4.7724453150506038E-2},{"$f":"'Population 2016'!T84/'Population 2016'!T$7","v":5.9589750920201551E-2},{"$f":"'Population 2016'!U84/'Population 2016'!U$7","v":{"$error":"#DIV/0!"}},{"$f":"'Population 2016'!V84/'Population 2016'!V$7","v":4.3692889402373702E-2},{"$f":"'Population 2016'!W84/'Population 2016'!W$7","v":4.1310565418267359E-2},{"$f":"'Population 2016'!X84/'Population 2016'!X$7","v":4.1310565418267359E-2},{"$f":"'Population 2016'!Y84/'Population 2016'!Y$7","v":4.3593300452116727E-2},{"$f":"'Population 2016'!Z84/'Population 2016'!Z$7","v":5.6961039070429535E-2},{"$f":"'Population 2016'!AA84/'Population 2016'!AA$7","v":4.9380871449115661E-2},{"$f":"'Population 2016'!AB84/'Population 2016'!AB$7","v":6.3200077249903439E-2},{"$f":"'Population 2016'!AC84/'Population 2016'!AC$7","v":5.3109849897445459E-2},{"$f":"'Population 2016'!AD84/'Population 2016'!AD$7","v":4.4276865068677618E-2},{"$f":"'Population 2016'!AE84/'Population 2016'!AE$7","v":4.5340624287992709E-2},{"$f":"'Population 2016'!AF84/'Population 2016'!AF$7","v":4.0157594158895395E-2},{"$f":"'Population 2016'!AG84/'Population 2016'!AG$7","v":4.5340624287992709E-2},{"$f":"'Population 2016'!AH84/'Population 2016'!AH$7","v":4.0150012621254193E-2},{"$f":"'Population 2016'!AI84/'Population 2016'!AI$7","v":5.2968960863697706E-2},{"$f":"'Population 2016'!AJ84/'Population 2016'!AJ$7","v":3.6062791684344508E-2},{"$f":"'Population 2016'!AK84/'Population 2016'!AK$7","v":1.889763779527559E-2},{"$f":"'Population 2016'!AL84/'Population 2016'!AL$7","v":3.7945138487529451E-2},{"$f":"'Population 2016'!AM84/'Population 2016'!AM$7","v":4.1512765117197481E-2},{"$f":"'Population 2016'!AN84/'Population 2016'!AN$7","v":{"$error":"#DIV/0!"}},{"$f":"'Population 2016'!AO84/'Population 2016'!AO$7","v":{"$error":"#DIV/0!"}},{"$f":"'Population 2016'!AP84/'Population 2016'!AP$7","v":6.6918429003021154E-2},{"$f":"'Population 2016'!AQ84/'Population 2016'!AQ$7","v":5.0452212173062824E-2},{"$f":"'Population 2016'!AR84/'Population 2016'!AR$7","v":4.8840104834253197E-2},{"$f":"'Population 2016'!AS84/'Population 2016'!AS$7","v":3.073332036568761E-2},{"$f":"'Population 2016'!AT84/'Population 2016'!AT$7","v":{"$error":"#DIV/0!"}},{"$f":"'Population 2016'!AU84/'Population 2016'!AU$7","v":{"$error":"#DIV/0!"}},{"$f":"'Population 2016'!AV84/'Population 2016'!AV$7","v":4.3943801448288668E-2},{"$f":"'Population 2016'!AW84/'Population 2016'!AW$7","v":3.791784783394532E-2},{"$f":"'Population 2016'!AX84/'Population 2016'!AX$7","v":5.2376627308507416E-2},{"$f":"'Population 2016'!AY84/'Population 2016'!AY$7","v":5.1181511295767333E-2},{"$f":"'Population 2016'!AZ84/'Population 2016'!AZ$7","v":6.1515564926206127E-2},{"$f":"'Population 2016'!BA84/'Population 2016'!BA$7","v":4.1568961841824771E-2},{"$f":"'Population 2016'!BB84/'Population 2016'!BB$7","v":4.4199616791499738E-2},{"$f":"'Population 2016'!BC84/'Population 2016'!BC$7","v":{"$error":"#DIV/0!"}},82]
[null,"Male 30-34",{"$f":"'Population 2016'!C85/'Population 2016'!C$7","v":5.5201833694129634E-2},{"$f":"'Population 2016'!D85/'Population 2016'!D$7","v":5.6781391642177617E-2},{"$f":"'Population 2016'!E85/'Population 2016'!E$7","v":6.2457103637611533E-2},{"$f":"'Population 2016'!F85/'Population 2016'!F$7","v":3.8381434096994939E-2},{"$f":"'Population 2016'!G85/'Population 2016'!G$7","v":3.2604668395702113E-2},{"$f":"'Population 2016'!H85/'Population 2016'!H$7","v":3.5228537167673143E-2},{"$f":"'Population 2016'!I85/'Population 2016'!I$7","v":3.3845555339428124E-2},{"$f":"'Population 2016'!J85/'Population 2016'!J$7","v":3.8167555063864024E-2},{"$f":"'Population 2016'!K85/'Population 2016'!K$7","v":3.6383682469680267E-2},{"$f":"'Population 2016'!L85/'Population 2016'!L$7","v":3.465544871794872E-2},{"$f":"'Population 2016'!M85/'Population 2016'!M$7","v":3.465544871794872E-2},{"$f":"'Population 2016'!N85/'Population 2016'!N$7","v":4.9421100257546577E-2},{"$f":"'Population 2016'!O85/'Population 2016'!O$7","v":3.5514256619144605E-2},{"$f":"'Population 2016'!P85/'Population 2016'!P$7","v":3.2374969799468474E-2},{"$f":"'Population 2016'!Q85/'Population 2016'!Q$7","v":3.7684138403562863E-2},{"$f":"'Population 2016'!R85/'Population 2016'!R$7","v":3.7337662337662336E-2},{"$f":"'Population 2016'!S85/'Population 2016'!S$7","v":4.3219066274893893E-2},{"$f":"'Population 2016'!T85/'Population 2016'!T$7","v":5.1477682878890756E-2},{"$f":"'Population 2016'!U85/'Population 2016'!U$7","v":{"$error":"#DIV/0!"}},{"$f":"'Population 2016'!V85/'Population 2016'!V$7","v":4.012183594160277E-2},{"$f":"'Population 2016'!W85/'Population 2016'!W$7","v":3.8704327370576587E-2},{"$f":"'Population 2016'!X85/'Population 2016'!X$7","v":3.8704327370576587E-2},{"$f":"'Population 2016'!Y85/'Population 2016'!Y$7","v":3.9123510069872587E-2},{"$f":"'Population 2016'!Z85/'Population 2016'!Z$7","v":4.9877233693981289E-2},{"$f":"'Population 2016'!AA85/'Population 2016'!AA$7","v":4.4852838943569756E-2},{"$f":"'Population 2016'!AB85/'Population 2016'!AB$7","v":5.547508690614137E-2},{"$f":"'Population 2016'!AC85/'Population 2016'!AC$7","v":4.7466436695879174E-2},{"$f":"'Population 2016'!AD85/'Population 2016'!AD$7","v":4.2876380285483434E-2},{"$f":"'Population 2016'!AE85/'Population 2016'!AE$7","v":4.7087415508468143E-2},{"$f":"'Population 2016'!AF85/'Population 2016'!AF$7","v":3.7808139955179641E-2},{"$f":"'Population 2016'!AG85/'Population 2016'!AG$7","v":4.7087415508468143E-2},{"$f":"'Population 2016'!AH85/'Population 2016'!AH$7","v":3.8383037034365873E-2},{"$f":"'Population 2016'!AI85/'Population 2016'!AI$7","v":4.6761133603238865E-2},{"$f":"'Population 2016'!AJ85/'Population 2016'!AJ$7","v":3.9739782209022766E-2},{"$f":"'Population 2016'!AK85/'Population 2016'!AK$7","v":1.4173228346456693E-2},{"$f":"'Population 2016'!AL85/'Population 2016'!AL$7","v":3.4455163828746721E-2},{"$f":"'Population 2016'!AM85/'Population 2016'!AM$7","v":3.914326201593607E-2},{"$f":"'Population 2016'!AN85/'Population 2016'!AN$7","v":{"$error":"#DIV/0!"}},{"$f":"'Population 2016'!AO85/'Population 2016'!AO$7","v":{"$error":"#DIV/0!"}},{"$f":"'Population 2016'!AP85/'Population 2016'!AP$7","v":4.6827794561933533E-2},{"$f":"'Population 2016'!AQ85/'Population 2016'!AQ$7","v":4.744561231972623E-2},{"$f":"'Population 2016'!AR85/'Population 2016'!AR$7","v":4.3573169585225981E-2},{"$f":"'Population 2016'!AS85/'Population 2016'!AS$7","v":3.3845555339428124E-2},{"$f":"'Population 2016'!AT85/'Population 2016'!AT$7","v":{"$error":"#DIV/0!"}},{"$f":"'Population 2016'!AU85/'Population 2016'!AU$7","v":{"$error":"#DIV/0!"}},{"$f":"'Population 2016'!AV85/'Population 2016'!AV$7","v":3.6826143467227825E-2},{"$f":"'Population 2016'!AW85/'Population 2016'!AW$7","v":3.7137801792203343E-2},{"$f":"'Population 2016'!AX85/'Population 2016'!AX$7","v":3.9963669391462307E-2},{"$f":"'Population 2016'!AY85/'Population 2016'!AY$7","v":4.3148965636631176E-2},{"$f":"'Population 2016'!AZ85/'Population 2016'!AZ$7","v":4.7802129657518469E-2},{"$f":"'Population 2016'!BA85/'Population 2016'!BA$7","v":4.0645207134228666E-2},{"$f":"'Population 2016'!BB85/'Population 2016'!BB$7","v":3.858212854903327E-2},{"$f":"'Population 2016'!BC85/'Population 2016'!BC$7","v":{"$error":"#DIV/0!"}},83]
[null,"Male 35-39",{"$f":"'Population 2016'!C86/'Population 2016'!C$7","v":5.2591366356806314E-2},{"$f":"'Population 2016'!D86/'Population 2016'!D$7","v":5.145191014593814E-2},{"$f":"'Population 2016'!E86/'Population 2016'!E$7","v":4.7357584076870282E-2},{"$f":"'Population 2016'!F86/'Population 2016'!F$7","v":3.8083903600119012E-2},{"$f":"'Population 2016'!G86/'Population 2016'!G$7","v":2.7788069655427936E-2},{"$f":"'Population 2016'!H86/'Population 2016'!H$7","v":3.1479901044648741E-2},{"$f":"'Population 2016'!I86/'Population 2016'!I$7","v":3.6374246255592296E-2},{"$f":"'Population 2016'!J86/'Population 2016'!J$7","v":3.3038318414965302E-2},{"$f":"'Population 2016'!K86/'Population 2016'!K$7","v":3.628345193946076E-2},{"$f":"'Population 2016'!L86/'Population 2016'!L$7","v":2.9847756410256412E-2},{"$f":"'Population 2016'!M86/'Population 2016'!M$7","v":2.9847756410256412E-2},{"$f":"'Population 2016'!N86/'Population 2016'!N$7","v":3.556927074874127E-2},{"$f":"'Population 2016'!O86/'Population 2016'!O$7","v":3.0168024439918534E-2},{"$f":"'Population 2016'!P86/'Population 2016'!P$7","v":3.2858178303938147E-2},{"$f":"'Population 2016'!Q86/'Population 2016'!Q$7","v":2.9462144570058239E-2},{"$f":"'Population 2016'!R86/'Population 2016'!R$7","v":3.3482142857142856E-2},{"$f":"'Population 2016'!S86/'Population 2016'!S$7","v":3.9947763630427686E-2},{"$f":"'Population 2016'!T86/'Population 2016'!T$7","v":4.681413715470107E-2},{"$f":"'Population 2016'!U86/'Population 2016'!U$7","v":{"$error":"#DIV/0!"}},{"$f":"'Population 2016'!V86/'Population 2016'!V$7","v":3.786366978258586E-2},{"$f":"'Population 2016'!W86/'Population 2016'!W$7","v":3.5928853086022776E-2},{"$f":"'Population 2016'!X86/'Population 2016'!X$7","v":3.5928853086022776E-2},{"$f":"'Population 2016'!Y86/'Population 2016'!Y$7","v":3.5398684751335799E-2},{"$f":"'Population 2016'!Z86/'Population 2016'!Z$7","v":4.0683448238103458E-2},{"$f":"'Population 2016'!AA86/'Population 2016'!AA$7","v":3.8413569986324593E-2},{"$f":"'Population 2016'!AB86/'Population 2016'!AB$7","v":5.1129779837775204E-2},{"$f":"'Population 2016'!AC86/'Population 2016'!AC$7","v":3.8918282677605817E-2},{"$f":"'Population 2016'!AD86/'Population 2016'!AD$7","v":3.2965257204416912E-2},{"$f":"'Population 2016'!AE86/'Population 2016'!AE$7","v":3.5087719298245612E-2},{"$f":"'Population 2016'!AF86/'Population 2016'!AF$7","v":3.0036868358273693E-2},{"$f":"'Population 2016'!AG86/'Population 2016'!AG$7","v":3.5087719298245612E-2},{"$f":"'Population 2016'!AH86/'Population 2016'!AH$7","v":3.7164184486675564E-2},{"$f":"'Population 2016'!AI86/'Population 2016'!AI$7","v":4.2825011246063881E-2},{"$f":"'Population 2016'!AJ86/'Population 2016'!AJ$7","v":3.365860557205487E-2},{"$f":"'Population 2016'!AK86/'Population 2016'!AK$7","v":4.0944881889763779E-2},{"$f":"'Population 2016'!AL86/'Population 2016'!AL$7","v":3.0765126928377719E-2},{"$f":"'Population 2016'!AM86/'Population 2016'!AM$7","v":3.6866680604920203E-2},{"$f":"'Population 2016'!AN86/'Population 2016'!AN$7","v":{"$error":"#DIV/0!"}},{"$f":"'Population 2016'!AO86/'Population 2016'!AO$7","v":{"$error":"#DIV/0!"}},{"$f":"'Population 2016'!AP86/'Population 2016'!AP$7","v":4.6072507552870089E-2},{"$f":"'Population 2016'!AQ86/'Population 2016'!AQ$7","v":3.9354681007088728E-2},{"$f":"'Population 2016'!AR86/'Population 2016'!AR$7","v":3.7815540325187968E-2},{"$f":"'Population 2016'!AS86/'Population 2016'!AS$7","v":3.6374246255592296E-2},{"$f":"'Population 2016'!AT86/'Population 2016'!AT$7","v":{"$error":"#DIV/0!"}},{"$f":"'Population 2016'!AU86/'Population 2016'!AU$7","v":{"$error":"#DIV/0!"}},{"$f":"'Population 2016'!AV86/'Population 2016'!AV$7","v":3.6021538651977471E-2},{"$f":"'Population 2016'!AW86/'Population 2016'!AW$7","v":3.7651490648960256E-2},{"$f":"'Population 2016'!AX86/'Population 2016'!AX$7","v":2.9770915329498437E-2},{"$f":"'Population 2016'!AY86/'Population 2016'!AY$7","v":3.6501341642863325E-2},{"$f":"'Population 2016'!AZ86/'Population 2016'!AZ$7","v":3.710068921528676E-2},{"$f":"'Population 2016'!BA86/'Population 2016'!BA$7","v":3.3965750017764515E-2},{"$f":"'Population 2016'!BB86/'Population 2016'!BB$7","v":3.7624107298380075E-2},{"$f":"'Population 2016'!BC86/'Population 2016'!BC$7","v":{"$error":"#DIV/0!"}},84]
[null,"Male 40-44",{"$f":"'Population 2016'!C87/'Population 2016'!C$7","v":4.2977206163249716E-2},{"$f":"'Population 2016'!D87/'Population 2016'!D$7","v":4.4179907356676797E-2},{"$f":"'Population 2016'!E87/'Population 2016'!E$7","v":4.8501487073896135E-2},{"$f":"'Population 2016'!F87/'Population 2016'!F$7","v":3.7340077357929186E-2},{"$f":"'Population 2016'!G87/'Population 2016'!G$7","v":3.0937384216376436E-2},{"$f":"'Population 2016'!H87/'Population 2016'!H$7","v":3.4375101277993238E-2},{"$f":"'Population 2016'!I87/'Population 2016'!I$7","v":3.6957790313168641E-2},{"$f":"'Population 2016'!J87/'Population 2016'!J$7","v":3.1831439203459717E-2},{"$f":"'Population 2016'!K87/'Population 2016'!K$7","v":3.5281146637265712E-2},{"$f":"'Population 2016'!L87/'Population 2016'!L$7","v":3.4154647435897433E-2},{"$f":"'Population 2016'!M87/'Population 2016'!M$7","v":3.4154647435897433E-2},{"$f":"'Population 2016'!N87/'Population 2016'!N$7","v":3.0070303255295947E-2},{"$f":"'Population 2016'!O87/'Population 2016'!O$7","v":3.5737016293279023E-2},{"$f":"'Population 2016'!P87/'Population 2016'!P$7","v":3.2858178303938147E-2},{"$f":"'Population 2016'!Q87/'Population 2016'!Q$7","v":4.5563549160671464E-2},{"$f":"'Population 2016'!R87/'Population 2016'!R$7","v":3.4293831168831168E-2},{"$f":"'Population 2016'!S87/'Population 2016'!S$7","v":3.8844270323212533E-2},{"$f":"'Population 2016'!T87/'Population 2016'!T$7","v":4.2347139334596003E-2},{"$f":"'Population 2016'!U87/'Population 2016'!U$7","v":{"$error":"#DIV/0!"}},{"$f":"'Population 2016'!V87/'Population 2016'!V$7","v":3.9596681020901164E-2},{"$f":"'Population 2016'!W87/'Population 2016'!W$7","v":3.5573456988610398E-2},{"$f":"'Population 2016'!X87/'Population 2016'!X$7","v":3.5573456988610398E-2},{"$f":"'Population 2016'!Y87/'Population 2016'!Y$7","v":3.5629880805589806E-2},{"$f":"'Population 2016'!Z87/'Population 2016'!Z$7","v":3.6556141895107461E-2},{"$f":"'Population 2016'!AA87/'Population 2016'!AA$7","v":3.6000141111920431E-2},{"$f":"'Population 2016'!AB87/'Population 2016'!AB$7","v":4.4273850907686367E-2},{"$f":"'Population 2016'!AC87/'Population 2016'!AC$7","v":3.5325960283423455E-2},{"$f":"'Population 2016'!AD87/'Population 2016'!AD$7","v":3.7705359547535684E-2},{"$f":"'Population 2016'!AE87/'Population 2016'!AE$7","v":4.0479987848408901E-2},{"$f":"'Population 2016'!AF87/'Population 2016'!AF$7","v":3.0868213691896192E-2},{"$f":"'Population 2016'!AG87/'Population 2016'!AG$7","v":4.0479987848408901E-2},{"$f":"'Population 2016'!AH87/'Population 2016'!AH$7","v":3.766903465435794E-2},{"$f":"'Population 2016'!AI87/'Population 2016'!AI$7","v":4.1126855600539809E-2},{"$f":"'Population 2016'!AJ87/'Population 2016'!AJ$7","v":3.7759864234196014E-2},{"$f":"'Population 2016'!AK87/'Population 2016'!AK$7","v":4.7244094488188976E-2},{"$f":"'Population 2016'!AL87/'Population 2016'!AL$7","v":3.3143644689458941E-2},{"$f":"'Population 2016'!AM87/'Population 2016'!AM$7","v":3.716867609821823E-2},{"$f":"'Population 2016'!AN87/'Population 2016'!AN$7","v":{"$error":"#DIV/0!"}},{"$f":"'Population 2016'!AO87/'Population 2016'!AO$7","v":{"$error":"#DIV/0!"}},{"$f":"'Population 2016'!AP87/'Population 2016'!AP$7","v":3.8066465256797584E-2},{"$f":"'Population 2016'!AQ87/'Population 2016'!AQ$7","v":3.441701295526766E-2},{"$f":"'Population 2016'!AR87/'Population 2016'!AR$7","v":3.6255179229426969E-2},{"$f":"'Population 2016'!AS87/'Population 2016'!AS$7","v":3.6957790313168641E-2},{"$f":"'Population 2016'!AT87/'Population 2016'!AT$7","v":{"$error":"#DIV/0!"}},{"$f":"'Population 2016'!AU87/'Population 2016'!AU$7","v":{"$error":"#DIV/0!"}},{"$f":"'Population 2016'!AV87/'Population 2016'!AV$7","v":3.5155041158630933E-2},{"$f":"'Population 2016'!AW87/'Population 2016'!AW$7","v":3.8488613230341889E-2},{"$f":"'Population 2016'!AX87/'Population 2016'!AX$7","v":2.8358058330810374E-2},{"$f":"'Population 2016'!AY87/'Population 2016'!AY$7","v":3.3766121353760926E-2},{"$f":"'Population 2016'!AZ87/'Population 2016'!AZ$7","v":3.1873992310554385E-2},{"$f":"'Population 2016'!BA87/'Population 2016'!BA$7","v":3.1194485894976195E-2},{"$f":"'Population 2016'!BB87/'Population 2016'!BB$7","v":3.8625674969517507E-2},{"$f":"'Population 2016'!BC87/'Population 2016'!BC$7","v":{"$error":"#DIV/0!"}},85]
[null,"Male 45-49",{"$f":"'Population 2016'!C88/'Population 2016'!C$7","v":3.9857379345473065E-2},{"$f":"'Population 2016'!D88/'Population 2016'!D$7","v":4.0593714200328736E-2},{"$f":"'Population 2016'!E88/'Population 2016'!E$7","v":4.3239533287577216E-2},{"$f":"'Population 2016'!F88/'Population 2016'!F$7","v":4.1207973817316272E-2},{"$f":"'Population 2016'!G88/'Population 2016'!G$7","v":3.7606520933679138E-2},{"$f":"'Population 2016'!H88/'Population 2016'!H$7","v":3.893396134691629E-2},{"$f":"'Population 2016'!I88/'Population 2016'!I$7","v":4.9017700836413151E-2},{"$f":"'Population 2016'!J88/'Population 2016'!J$7","v":3.9223574373931411E-2},{"$f":"'Population 2016'!K88/'Population 2016'!K$7","v":4.2597975343289567E-2},{"$f":"'Population 2016'!L88/'Population 2016'!L$7","v":4.0665064102564104E-2},{"$f":"'Population 2016'!M88/'Population 2016'!M$7","v":4.0665064102564104E-2},{"$f":"'Population 2016'!N88/'Population 2016'!N$7","v":3.7727093436042601E-2},{"$f":"'Population 2016'!O88/'Population 2016'!O$7","v":4.0733197556008148E-2},{"$f":"'Population 2016'!P88/'Population 2016'!P$7","v":4.4696786663445273E-2},{"$f":"'Population 2016'!Q88/'Population 2016'!Q$7","v":3.2202809181226449E-2},{"$f":"'Population 2016'!R88/'Population 2016'!R$7","v":3.7134740259740256E-2},{"$f":"'Population 2016'!S88/'Population 2016'!S$7","v":4.3232125367286975E-2},{"$f":"'Population 2016'!T88/'Population 2016'!T$7","v":4.1185719901368691E-2},{"$f":"'Population 2016'!U88/'Population 2016'!U$7","v":{"$error":"#DIV/0!"}},{"$f":"'Population 2016'!V88/'Population 2016'!V$7","v":4.4690683751706754E-2},{"$f":"'Population 2016'!W88/'Population 2016'!W$7","v":4.4593748413410281E-2},{"$f":"'Population 2016'!X88/'Population 2016'!X$7","v":4.4593748413410281E-2},{"$f":"'Population 2016'!Y88/'Population 2016'!Y$7","v":4.1897862720920671E-2},{"$f":"'Population 2016'!Z88/'Population 2016'!Z$7","v":3.9900102340351157E-2},{"$f":"'Population 2016'!AA88/'Population 2016'!AA$7","v":4.1221282167811124E-2},{"$f":"'Population 2016'!AB88/'Population 2016'!AB$7","v":4.1232135959830052E-2},{"$f":"'Population 2016'!AC88/'Population 2016'!AC$7","v":4.028179190751445E-2},{"$f":"'Population 2016'!AD88/'Population 2016'!AD$7","v":3.9752221922973334E-2},{"$f":"'Population 2016'!AE88/'Population 2016'!AE$7","v":4.0631882737145894E-2},{"$f":"'Population 2016'!AF88/'Population 2016'!AF$7","v":4.0410612303910937E-2},{"$f":"'Population 2016'!AG88/'Population 2016'!AG$7","v":4.0631882737145894E-2},{"$f":"'Population 2016'!AH88/'Population 2016'!AH$7","v":4.3546933035231328E-2},{"$f":"'Population 2016'!AI88/'Population 2016'!AI$7","v":4.1992802519118307E-2},{"$f":"'Population 2016'!AJ88/'Population 2016'!AJ$7","v":4.3699618158676283E-2},{"$f":"'Population 2016'!AK88/'Population 2016'!AK$7","v":6.1417322834645668E-2},{"$f":"'Population 2016'!AL88/'Population 2016'!AL$7","v":3.8323033832747967E-2},{"$f":"'Population 2016'!AM88/'Population 2016'!AM$7","v":4.398680511998513E-2},{"$f":"'Population 2016'!AN88/'Population 2016'!AN$7","v":{"$error":"#DIV/0!"}},{"$f":"'Population 2016'!AO88/'Population 2016'!AO$7","v":{"$error":"#DIV/0!"}},{"$f":"'Population 2016'!AP88/'Population 2016'!AP$7","v":3.8821752265861029E-2},{"$f":"'Population 2016'!AQ88/'Population 2016'!AQ$7","v":4.4316792960156441E-2},{"$f":"'Population 2016'!AR88/'Population 2016'!AR$7","v":4.1133457306181599E-2},{"$f":"'Population 2016'!AS88/'Population 2016'!AS$7","v":4.9017700836413151E-2},{"$f":"'Population 2016'!AT88/'Population 2016'!AT$7","v":{"$error":"#DIV/0!"}},{"$f":"'Population 2016'!AU88/'Population 2016'!AU$7","v":{"$error":"#DIV/0!"}},{"$f":"'Population 2016'!AV88/'Population 2016'!AV$7","v":3.7135606857708732E-2},{"$f":"'Population 2016'!AW88/'Population 2016'!AW$7","v":4.2826430242955807E-2},{"$f":"'Population 2016'!AX88/'Population 2016'!AX$7","v":3.5826016752447273E-2},{"$f":"'Population 2016'!AY88/'Population 2016'!AY$7","v":4.150437115900632E-2},{"$f":"'Population 2016'!AZ88/'Population 2016'!AZ$7","v":3.8270051912616718E-2},{"$f":"'Population 2016'!BA88/'Population 2016'!BA$7","v":3.7412065657642296E-2},{"$f":"'Population 2016'!BB88/'Population 2016'!BB$7","v":4.4678627416826336E-2},{"$f":"'Population 2016'!BC88/'Population 2016'!BC$7","v":{"$error":"#DIV/0!"}},86]
[null,"Male 50-54",{"$f":"'Population 2016'!C89/'Population 2016'!C$7","v":3.9157010059849742E-2},{"$f":"'Population 2016'!D89/'Population 2016'!D$7","v":3.8451959954176419E-2},{"$f":"'Population 2016'!E89/'Population 2016'!E$7","v":3.5918554106611759E-2},{"$f":"'Population 2016'!F89/'Population 2016'!F$7","v":4.3439452543885745E-2},{"$f":"'Population 2016'!G89/'Population 2016'!G$7","v":4.8721748795850311E-2},{"$f":"'Population 2016'!H89/'Population 2016'!H$7","v":4.1915585467823306E-2},{"$f":"'Population 2016'!I89/'Population 2016'!I$7","v":5.0573818323283407E-2},{"$f":"'Population 2016'!J89/'Population 2016'!J$7","v":4.3296791712762746E-2},{"$f":"'Population 2016'!K89/'Population 2016'!K$7","v":4.5504660719655206E-2},{"$f":"'Population 2016'!L89/'Population 2016'!L$7","v":4.3770032051282048E-2},{"$f":"'Population 2016'!M89/'Population 2016'!M$7","v":4.3770032051282048E-2},{"$f":"'Population 2016'!N89/'Population 2016'!N$7","v":3.8631986821039931E-2},{"$f":"'Population 2016'!O89/'Population 2016'!O$7","v":4.3056262729124238E-2},{"$f":"'Population 2016'!P89/'Population 2016'!P$7","v":4.5663203672384634E-2},{"$f":"'Population 2016'!Q89/'Population 2016'!Q$7","v":4.8989379924631725E-2},{"$f":"'Population 2016'!R89/'Population 2016'!R$7","v":4.8904220779220776E-2},{"$f":"'Population 2016'!S89/'Population 2016'!S$7","v":4.263793666340189E-2},{"$f":"'Population 2016'!T89/'Population 2016'!T$7","v":4.2704499160204412E-2},{"$f":"'Population 2016'!U89/'Population 2016'!U$7","v":{"$error":"#DIV/0!"}},{"$f":"'Population 2016'!V89/'Population 2016'!V$7","v":4.5058292196197877E-2},{"$f":"'Population 2016'!W89/'Population 2016'!W$7","v":4.1276718170894754E-2},{"$f":"'Population 2016'!X89/'Population 2016'!X$7","v":4.1276718170894754E-2},{"$f":"'Population 2016'!Y89/'Population 2016'!Y$7","v":4.4158446362515411E-2},{"$f":"'Population 2016'!Z89/'Population 2016'!Z$7","v":4.0864544332745119E-2},{"$f":"'Population 2016'!AA89/'Population 2016'!AA$7","v":4.2520341905882497E-2},{"$f":"'Population 2016'!AB89/'Population 2016'!AB$7","v":3.8480108149864814E-2},{"$f":"'Population 2016'!AC89/'Population 2016'!AC$7","v":4.2423200633973521E-2},{"$f":"'Population 2016'!AD89/'Population 2016'!AD$7","v":4.3899811473202259E-2},{"$f":"'Population 2016'!AE89/'Population 2016'!AE$7","v":4.1922989291410341E-2},{"$f":"'Population 2016'!AF89/'Population 2016'!AF$7","v":4.6446902334996022E-2},{"$f":"'Population 2016'!AG89/'Population 2016'!AG$7","v":4.1922989291410341E-2},{"$f":"'Population 2016'!AH89/'Population 2016'!AH$7","v":4.2760809202697342E-2},{"$f":"'Population 2016'!AI89/'Population 2016'!AI$7","v":4.3083670715249663E-2},{"$f":"'Population 2016'!AJ89/'Population 2016'!AJ$7","v":4.3133927308725784E-2},{"$f":"'Population 2016'!AK89/'Population 2016'!AK$7","v":3.937007874015748E-2},{"$f":"'Population 2016'!AL89/'Population 2016'!AL$7","v":4.212421642288712E-2},{"$f":"'Population 2016'!AM89/'Population 2016'!AM$7","v":4.3963574697423749E-2},{"$f":"'Population 2016'!AN89/'Population 2016'!AN$7","v":{"$error":"#DIV/0!"}},{"$f":"'Population 2016'!AO89/'Population 2016'!AO$7","v":{"$error":"#DIV/0!"}},{"$f":"'Population 2016'!AP89/'Population 2016'!AP$7","v":4.486404833836858E-2},{"$f":"'Population 2016'!AQ89/'Population 2016'!AQ$7","v":4.3999022243950137E-2},{"$f":"'Population 2016'!AR89/'Population 2016'!AR$7","v":4.2330383819021045E-2},{"$f":"'Population 2016'!AS89/'Population 2016'!AS$7","v":5.0573818323283407E-2},{"$f":"'Population 2016'!AT89/'Population 2016'!AT$7","v":{"$error":"#DIV/0!"}},{"$f":"'Population 2016'!AU89/'Population 2016'!AU$7","v":{"$error":"#DIV/0!"}},{"$f":"'Population 2016'!AV89/'Population 2016'!AV$7","v":3.9116172556786531E-2},{"$f":"'Population 2016'!AW89/'Population 2016'!AW$7","v":4.079070032914138E-2},{"$f":"'Population 2016'!AX89/'Population 2016'!AX$7","v":4.1073771319002923E-2},{"$f":"'Population 2016'!AY89/'Population 2016'!AY$7","v":4.0621483597334022E-2},{"$f":"'Population 2016'!AZ89/'Population 2016'!AZ$7","v":3.9935507875480593E-2},{"$f":"'Population 2016'!BA89/'Population 2016'!BA$7","v":4.7715483550060396E-2},{"$f":"'Population 2016'!BB89/'Population 2016'!BB$7","v":4.3241595540846542E-2},{"$f":"'Population 2016'!BC89/'Population 2016'!BC$7","v":{"$error":"#DIV/0!"}},87]
[null,"Male 55-59",{"$f":"'Population 2016'!C90/'Population 2016'!C$7","v":3.5782503501846426E-2},{"$f":"'Population 2016'!D90/'Population 2016'!D$7","v":3.7057329282263289E-2},{"$f":"'Population 2016'!E90/'Population 2016'!E$7","v":4.1638069091741017E-2},{"$f":"'Population 2016'!F90/'Population 2016'!F$7","v":3.4513537637607852E-2},{"$f":"'Population 2016'!G90/'Population 2016'!G$7","v":3.9459058910707667E-2},{"$f":"'Population 2016'!H90/'Population 2016'!H$7","v":4.0824483887346462E-2},{"$f":"'Population 2016'!I90/'Population 2016'!I$7","v":3.8319393114180124E-2},{"$f":"'Population 2016'!J90/'Population 2016'!J$7","v":4.0933319923564318E-2},{"$f":"'Population 2016'!K90/'Population 2016'!K$7","v":4.2898666933948081E-2},{"$f":"'Population 2016'!L90/'Population 2016'!L$7","v":3.8962339743589744E-2},{"$f":"'Population 2016'!M90/'Population 2016'!M$7","v":3.8962339743589744E-2},{"$f":"'Population 2016'!N90/'Population 2016'!N$7","v":3.7239843151813265E-2},{"$f":"'Population 2016'!O90/'Population 2016'!O$7","v":4.0224032586558045E-2},{"$f":"'Population 2016'!P90/'Population 2016'!P$7","v":4.1797535636627206E-2},{"$f":"'Population 2016'!Q90/'Population 2016'!Q$7","v":3.8369304556354913E-2},{"$f":"'Population 2016'!R90/'Population 2016'!R$7","v":3.916396103896104E-2},{"$f":"'Population 2016'!S90/'Population 2016'!S$7","v":3.7153117858308847E-2},{"$f":"'Population 2016'!T90/'Population 2016'!T$7","v":3.3663295572311763E-2},{"$f":"'Population 2016'!U90/'Population 2016'!U$7","v":{"$error":"#DIV/0!"}},{"$f":"'Population 2016'!V90/'Population 2016'!V$7","v":3.8178762735006824E-2},{"$f":"'Population 2016'!W90/'Population 2016'!W$7","v":4.0836703955050853E-2},{"$f":"'Population 2016'!X90/'Population 2016'!X$7","v":4.0836703955050853E-2},{"$f":"'Population 2016'!Y90/'Population 2016'!Y$7","v":3.9585902178380601E-2},{"$f":"'Population 2016'!Z90/'Population 2016'!Z$7","v":3.5755949849016394E-2},{"$f":"'Population 2016'!AA90/'Population 2016'!AA$7","v":3.7901001687117519E-2},{"$f":"'Population 2016'!AB90/'Population 2016'!AB$7","v":3.7224797219003479E-2},{"$f":"'Population 2016'!AC90/'Population 2016'!AC$7","v":3.7173107402573187E-2},{"$f":"'Population 2016'!AD90/'Population 2016'!AD$7","v":4.0237005117155937E-2},{"$f":"'Population 2016'!AE90/'Population 2016'!AE$7","v":4.0555935292777401E-2},{"$f":"'Population 2016'!AF90/'Population 2016'!AF$7","v":4.0663630448926479E-2},{"$f":"'Population 2016'!AG90/'Population 2016'!AG$7","v":4.0555935292777401E-2},{"$f":"'Population 2016'!AH90/'Population 2016'!AH$7","v":3.970285961559266E-2},{"$f":"'Population 2016'!AI90/'Population 2016'!AI$7","v":3.4637876743139902E-2},{"$f":"'Population 2016'!AJ90/'Population 2016'!AJ$7","v":3.804270965917126E-2},{"$f":"'Population 2016'!AK90/'Population 2016'!AK$7","v":4.2519685039370078E-2},{"$f":"'Population 2016'!AL90/'Population 2016'!AL$7","v":4.1346196594496065E-2},{"$f":"'Population 2016'!AM90/'Population 2016'!AM$7","v":3.9340720607707852E-2},{"$f":"'Population 2016'!AN90/'Population 2016'!AN$7","v":{"$error":"#DIV/0!"}},{"$f":"'Population 2016'!AO90/'Population 2016'!AO$7","v":{"$error":"#DIV/0!"}},{"$f":"'Population 2016'!AP90/'Population 2016'!AP$7","v":3.5196374622356495E-2},{"$f":"'Population 2016'!AQ90/'Population 2016'!AQ$7","v":4.0943534588120264E-2},{"$f":"'Population 2016'!AR90/'Population 2016'!AR$7","v":3.8121650841402649E-2},{"$f":"'Population 2016'!AS90/'Population 2016'!AS$7","v":3.8319393114180124E-2},{"$f":"'Population 2016'!AT90/'Population 2016'!AT$7","v":{"$error":"#DIV/0!"}},{"$f":"'Population 2016'!AU90/'Population 2016'!AU$7","v":{"$error":"#DIV/0!"}},{"$f":"'Population 2016'!AV90/'Population 2016'!AV$7","v":4.05397041529987E-2},{"$f":"'Population 2016'!AW90/'Population 2016'!AW$7","v":4.0296036985597687E-2},{"$f":"'Population 2016'!AX90/'Population 2016'!AX$7","v":3.8954485820970837E-2},{"$f":"'Population 2016'!AY90/'Population 2016'!AY$7","v":3.8803773911538129E-2},{"$f":"'Population 2016'!AZ90/'Population 2016'!AZ$7","v":3.6675466416257685E-2},{"$f":"'Population 2016'!BA90/'Population 2016'!BA$7","v":3.9188517018404034E-2},{"$f":"'Population 2016'!BB90/'Population 2016'!BB$7","v":3.5490332694652502E-2},{"$f":"'Population 2016'!BC90/'Population 2016'!BC$7","v":{"$error":"#DIV/0!"}},88]
[null,"Male 60-64",{"$f":"'Population 2016'!C91/'Population 2016'!C$7","v":3.2216987138673117E-2},{"$f":"'Population 2016'!D91/'Population 2016'!D$7","v":3.023360063754545E-2},{"$f":"'Population 2016'!E91/'Population 2016'!E$7","v":2.3106840539922215E-2},{"$f":"'Population 2016'!F91/'Population 2016'!F$7","v":2.9157988693841119E-2},{"$f":"'Population 2016'!G91/'Population 2016'!G$7","v":3.8347536124490551E-2},{"$f":"'Population 2016'!H91/'Population 2016'!H$7","v":3.4893644603368371E-2},{"$f":"'Population 2016'!I91/'Population 2016'!I$7","v":2.9955261622252479E-2},{"$f":"'Population 2016'!J91/'Population 2016'!J$7","v":3.1932012471085187E-2},{"$f":"'Population 2016'!K91/'Population 2016'!K$7","v":3.3376766563095121E-2},{"$f":"'Population 2016'!L91/'Population 2016'!L$7","v":3.2251602564102567E-2},{"$f":"'Population 2016'!M91/'Population 2016'!M$7","v":3.2251602564102567E-2},{"$f":"'Population 2016'!N91/'Population 2016'!N$7","v":3.0023898466321725E-2},{"$f":"'Population 2016'!O91/'Population 2016'!O$7","v":3.3254837067209775E-2},{"$f":"'Population 2016'!P91/'Population 2016'!P$7","v":3.8656680357574295E-2},{"$f":"'Population 2016'!Q91/'Population 2016'!Q$7","v":2.9804727646454265E-2},{"$f":"'Population 2016'!R91/'Population 2016'!R$7","v":2.9626623376623376E-2},{"$f":"'Population 2016'!S91/'Population 2016'!S$7","v":3.1093698987920339E-2},{"$f":"'Population 2016'!T91/'Population 2016'!T$7","v":2.8767465961476609E-2},{"$f":"'Population 2016'!U91/'Population 2016'!U$7","v":{"$error":"#DIV/0!"}},{"$f":"'Population 2016'!V91/'Population 2016'!V$7","v":3.2717151559710111E-2},{"$f":"'Population 2016'!W91/'Population 2016'!W$7","v":3.4151872598960888E-2},{"$f":"'Population 2016'!X91/'Population 2016'!X$7","v":3.4151872598960888E-2},{"$f":"'Population 2016'!Y91/'Population 2016'!Y$7","v":3.2316070694615701E-2},{"$f":"'Population 2016'!Z91/'Population 2016'!Z$7","v":2.8815336733447605E-2},{"$f":"'Population 2016'!AA91/'Population 2016'!AA$7","v":3.0774849705428865E-2},{"$f":"'Population 2016'!AB91/'Population 2016'!AB$7","v":3.0272305909617613E-2},{"$f":"'Population 2016'!AC91/'Population 2016'!AC$7","v":2.9982635651687489E-2},{"$f":"'Population 2016'!AD91/'Population 2016'!AD$7","v":3.4742795583086454E-2},{"$f":"'Population 2016'!AE91/'Population 2016'!AE$7","v":3.3264980633401685E-2},{"$f":"'Population 2016'!AF91/'Population 2016'!AF$7","v":3.4844213113569E-2},{"$f":"'Population 2016'!AG91/'Population 2016'!AG$7","v":3.3264980633401685E-2},{"$f":"'Population 2016'!AH91/'Population 2016'!AH$7","v":3.2735927301575853E-2},{"$f":"'Population 2016'!AI91/'Population 2016'!AI$7","v":2.9127305443094918E-2},{"$f":"'Population 2016'!AJ91/'Population 2016'!AJ$7","v":3.4507141846980623E-2},{"$f":"'Population 2016'!AK91/'Population 2016'!AK$7","v":3.1496062992125984E-2},{"$f":"'Population 2016'!AL91/'Population 2016'!AL$7","v":3.5010892277597475E-2},{"$f":"'Population 2016'!AM91/'Population 2016'!AM$7","v":3.1616605106046879E-2},{"$f":"'Population 2016'!AN91/'Population 2016'!AN$7","v":{"$error":"#DIV/0!"}},{"$f":"'Population 2016'!AO91/'Population 2016'!AO$7","v":{"$error":"#DIV/0!"}},{"$f":"'Population 2016'!AP91/'Population 2016'!AP$7","v":2.9305135951661631E-2},{"$f":"'Population 2016'!AQ91/'Population 2016'!AQ$7","v":2.9234905890980201E-2},{"$f":"'Population 2016'!AR91/'Population 2016'!AR$7","v":3.1365436339330963E-2},{"$f":"'Population 2016'!AS91/'Population 2016'!AS$7","v":2.9955261622252479E-2},{"$f":"'Population 2016'!AT91/'Population 2016'!AT$7","v":{"$error":"#DIV/0!"}},{"$f":"'Population 2016'!AU91/'Population 2016'!AU$7","v":{"$error":"#DIV/0!"}},{"$f":"'Population 2016'!AV91/'Population 2016'!AV$7","v":3.7754533638670547E-2},{"$f":"'Population 2016'!AW91/'Population 2016'!AW$7","v":3.4569357508418788E-2},{"$f":"'Population 2016'!AX91/'Population 2016'!AX$7","v":3.0477343828842467E-2},{"$f":"'Population 2016'!AY91/'Population 2016'!AY$7","v":3.2043625032459104E-2},{"$f":"'Population 2016'!AZ91/'Population 2016'!AZ$7","v":2.9836466398540068E-2},{"$f":"'Population 2016'!BA91/'Population 2016'!BA$7","v":3.4925033752575857E-2},{"$f":"'Population 2016'!BB91/'Population 2016'!BB$7","v":2.8261626894269292E-2},{"$f":"'Population 2016'!BC91/'Population 2016'!BC$7","v":{"$error":"#DIV/0!"}},89]
[null,"Male 65-69",{"$f":"'Population 2016'!C92/'Population 2016'!C$7","v":2.7696421749649817E-2},{"$f":"'Population 2016'!D92/'Population 2016'!D$7","v":2.7593764008567018E-2},{"$f":"'Population 2016'!E92/'Population 2016'!E$7","v":2.7224891329215281E-2},{"$f":"'Population 2016'!F92/'Population 2016'!F$7","v":3.0496875929782803E-2},{"$f":"'Population 2016'!G92/'Population 2016'!G$7","v":3.1678399407187849E-2},{"$f":"'Population 2016'!H92/'Population 2016'!H$7","v":3.3532468374258648E-2},{"$f":"'Population 2016'!I92/'Population 2016'!I$7","v":3.8902937171756469E-2},{"$f":"'Population 2016'!J92/'Population 2016'!J$7","v":3.1177712963894197E-2},{"$f":"'Population 2016'!K92/'Population 2016'!K$7","v":3.3777688683973135E-2},{"$f":"'Population 2016'!L92/'Population 2016'!L$7","v":3.7159455128205128E-2},{"$f":"'Population 2016'!M92/'Population 2016'!M$7","v":3.7159455128205128E-2},{"$f":"'Population 2016'!N92/'Population 2016'!N$7","v":2.8538945219146617E-2},{"$f":"'Population 2016'!O92/'Population 2016'!O$7","v":3.4655040733197556E-2},{"$f":"'Population 2016'!P92/'Population 2016'!P$7","v":3.0683740033824597E-2},{"$f":"'Population 2016'!Q92/'Population 2016'!Q$7","v":3.4600890715998631E-2},{"$f":"'Population 2016'!R92/'Population 2016'!R$7","v":2.7597402597402596E-2},{"$f":"'Population 2016'!S92/'Population 2016'!S$7","v":2.90956578517793E-2},{"$f":"'Population 2016'!T92/'Population 2016'!T$7","v":2.3478540542472216E-2},{"$f":"'Population 2016'!U92/'Population 2016'!U$7","v":{"$error":"#DIV/0!"}},{"$f":"'Population 2016'!V92/'Population 2016'!V$7","v":3.3819976893183487E-2},{"$f":"'Population 2016'!W92/'Population 2016'!W$7","v":3.2984142564605932E-2},{"$f":"'Population 2016'!X92/'Population 2016'!X$7","v":3.2984142564605932E-2},{"$f":"'Population 2016'!Y92/'Population 2016'!Y$7","v":3.2470201397451708E-2},{"$f":"'Population 2016'!Z92/'Population 2016'!Z$7","v":2.5673530068269015E-2},{"$f":"'Population 2016'!AA92/'Population 2016'!AA$7","v":2.8276338643706926E-2},{"$f":"'Population 2016'!AB92/'Population 2016'!AB$7","v":2.7665121668597914E-2},{"$f":"'Population 2016'!AC92/'Population 2016'!AC$7","v":2.6888518553048666E-2},{"$f":"'Population 2016'!AD92/'Population 2016'!AD$7","v":3.1079989227040129E-2},{"$f":"'Population 2016'!AE92/'Population 2016'!AE$7","v":3.0834662413609781E-2},{"$f":"'Population 2016'!AF92/'Population 2016'!AF$7","v":3.5350249403600084E-2},{"$f":"'Population 2016'!AG92/'Population 2016'!AG$7","v":3.0834662413609781E-2},{"$f":"'Population 2016'!AH92/'Population 2016'!AH$7","v":3.1711802675705891E-2},{"$f":"'Population 2016'!AI92/'Population 2016'!AI$7","v":2.5944669365721998E-2},{"$f":"'Population 2016'!AJ92/'Population 2016'!AJ$7","v":2.870881063498798E-2},{"$f":"'Population 2016'!AK92/'Population 2016'!AK$7","v":2.9921259842519685E-2},{"$f":"'Population 2016'!AL92/'Population 2016'!AL$7","v":3.3121415551504912E-2},{"$f":"'Population 2016'!AM92/'Population 2016'!AM$7","v":3.0977768485608754E-2},{"$f":"'Population 2016'!AN92/'Population 2016'!AN$7","v":{"$error":"#DIV/0!"}},{"$f":"'Population 2016'!AO92/'Population 2016'!AO$7","v":{"$error":"#DIV/0!"}},{"$f":"'Population 2016'!AP92/'Population 2016'!AP$7","v":2.4320241691842902E-2},{"$f":"'Population 2016'!AQ92/'Population 2016'!AQ$7","v":2.6277193840136884E-2},{"$f":"'Population 2016'!AR92/'Population 2016'!AR$7","v":2.9312088269890877E-2},{"$f":"'Population 2016'!AS92/'Population 2016'!AS$7","v":3.8902937171756469E-2},{"$f":"'Population 2016'!AT92/'Population 2016'!AT$7","v":{"$error":"#DIV/0!"}},{"$f":"'Population 2016'!AU92/'Population 2016'!AU$7","v":{"$error":"#DIV/0!"}},{"$f":"'Population 2016'!AV92/'Population 2016'!AV$7","v":3.2493656000495141E-2},{"$f":"'Population 2016'!AW92/'Population 2016'!AW$7","v":3.2914137858868743E-2},{"$f":"'Population 2016'!AX92/'Population 2016'!AX$7","v":2.8559895044908669E-2},{"$f":"'Population 2016'!AY92/'Population 2016'!AY$7","v":3.0684670648316453E-2},{"$f":"'Population 2016'!AZ92/'Population 2016'!AZ$7","v":2.827731613543346E-2},{"$f":"'Population 2016'!BA92/'Population 2016'!BA$7","v":2.902721523484687E-2},{"$f":"'Population 2016'!BB92/'Population 2016'!BB$7","v":3.0003483713638739E-2},{"$f":"'Population 2016'!BC92/'Population 2016'!BC$7","v":{"$error":"#DIV/0!"}},90]
[null,"Male 70-74",{"$f":"'Population 2016'!C93/'Population 2016'!C$7","v":1.6108493569336559E-2},{"$f":"'Population 2016'!D93/'Population 2016'!D$7","v":1.593863625043582E-2},{"$f":"'Population 2016'!E93/'Population 2016'!E$7","v":1.532830016014642E-2},{"$f":"'Population 2016'!F93/'Population 2016'!F$7","v":2.0083308539125259E-2},{"$f":"'Population 2016'!G93/'Population 2016'!G$7","v":2.8899592441645052E-2},{"$f":"'Population 2016'!H93/'Population 2016'!H$7","v":2.4868473646115788E-2},{"$f":"'Population 2016'!I93/'Population 2016'!I$7","v":2.7037541334370745E-2},{"$f":"'Population 2016'!J93/'Population 2016'!J$7","v":2.2377552046665996E-2},{"$f":"'Population 2016'!K93/'Population 2016'!K$7","v":2.455647990377869E-2},{"$f":"'Population 2016'!L93/'Population 2016'!L$7","v":2.2636217948717948E-2},{"$f":"'Population 2016'!M93/'Population 2016'!M$7","v":2.2636217948717948E-2},{"$f":"'Population 2016'!N93/'Population 2016'!N$7","v":2.0302095176222185E-2},{"$f":"'Population 2016'!O93/'Population 2016'!O$7","v":2.377163951120163E-2},{"$f":"'Population 2016'!P93/'Population 2016'!P$7","v":2.1261174196665861E-2},{"$f":"'Population 2016'!Q93/'Population 2016'!Q$7","v":2.1925316889345667E-2},{"$f":"'Population 2016'!R93/'Population 2016'!R$7","v":1.765422077922078E-2},{"$f":"'Population 2016'!S93/'Population 2016'!S$7","v":2.139732288605942E-2},{"$f":"'Population 2016'!T93/'Population 2016'!T$7","v":1.5973984204695708E-2},{"$f":"'Population 2016'!U93/'Population 2016'!U$7","v":{"$error":"#DIV/0!"}},{"$f":"'Population 2016'!V93/'Population 2016'!V$7","v":2.1321289780485243E-2},{"$f":"'Population 2016'!W93/'Population 2016'!W$7","v":2.5216199292592528E-2},{"$f":"'Population 2016'!X93/'Population 2016'!X$7","v":2.5216199292592528E-2},{"$f":"'Population 2016'!Y93/'Population 2016'!Y$7","v":2.1860871352240033E-2},{"$f":"'Population 2016'!Z93/'Population 2016'!Z$7","v":1.8602359303074842E-2},{"$f":"'Population 2016'!AA93/'Population 2016'!AA$7","v":2.0376146274956576E-2},{"$f":"'Population 2016'!AB93/'Population 2016'!AB$7","v":1.6174198532251834E-2},{"$f":"'Population 2016'!AC93/'Population 2016'!AC$7","v":1.9328034682080924E-2},{"$f":"'Population 2016'!AD93/'Population 2016'!AD$7","v":2.256935092916779E-2},{"$f":"'Population 2016'!AE93/'Population 2016'!AE$7","v":1.997417786891471E-2},{"$f":"'Population 2016'!AF93/'Population 2016'!AF$7","v":2.4362032820067953E-2},{"$f":"'Population 2016'!AG93/'Population 2016'!AG$7","v":1.997417786891471E-2},{"$f":"'Population 2016'!AH93/'Population 2016'!AH$7","v":2.2970682629548159E-2},{"$f":"'Population 2016'!AI93/'Population 2016'!AI$7","v":1.8533513270355375E-2},{"$f":"'Population 2016'!AJ93/'Population 2016'!AJ$7","v":2.1496252298119078E-2},{"$f":"'Population 2016'!AK93/'Population 2016'!AK$7","v":2.3622047244094488E-2},{"$f":"'Population 2016'!AL93/'Population 2016'!AL$7","v":2.5407904681456452E-2},{"$f":"'Population 2016'!AM93/'Population 2016'!AM$7","v":2.1824981996422514E-2},{"$f":"'Population 2016'!AN93/'Population 2016'!AN$7","v":{"$error":"#DIV/0!"}},{"$f":"'Population 2016'!AO93/'Population 2016'!AO$7","v":{"$error":"#DIV/0!"}},{"$f":"'Population 2016'!AP93/'Population 2016'!AP$7","v":1.797583081570997E-2},{"$f":"'Population 2016'!AQ93/'Population 2016'!AQ$7","v":1.8821803959912002E-2},{"$f":"'Population 2016'!AR93/'Population 2016'!AR$7","v":2.104710433209437E-2},{"$f":"'Population 2016'!AS93/'Population 2016'!AS$7","v":2.7037541334370745E-2},{"$f":"'Population 2016'!AT93/'Population 2016'!AT$7","v":{"$error":"#DIV/0!"}},{"$f":"'Population 2016'!AU93/'Population 2016'!AU$7","v":{"$error":"#DIV/0!"}},{"$f":"'Population 2016'!AV93/'Population 2016'!AV$7","v":2.5499783375626663E-2},{"$f":"'Population 2016'!AW93/'Population 2016'!AW$7","v":2.4847320256463919E-2},{"$f":"'Population 2016'!AX93/'Population 2016'!AX$7","v":2.0183671409829448E-2},{"$f":"'Population 2016'!AY93/'Population 2016'!AY$7","v":2.2669436509997403E-2},{"$f":"'Population 2016'!AZ93/'Population 2016'!AZ$7","v":2.0003189170992718E-2},{"$f":"'Population 2016'!BA93/'Population 2016'!BA$7","v":2.1246358274710438E-2},{"$f":"'Population 2016'!BB93/'Population 2016'!BB$7","v":2.3427974220519072E-2},{"$f":"'Population 2016'!BC93/'Population 2016'!BC$7","v":{"$error":"#DIV/0!"}},91]
[null,"Male 75-79",{"$f":"'Population 2016'!C94/'Population 2016'!C$7","v":1.0632879154463263E-2},{"$f":"'Population 2016'!D94/'Population 2016'!D$7","v":1.1206853613587687E-2},{"$f":"'Population 2016'!E94/'Population 2016'!E$7","v":1.3269274765499885E-2},{"$f":"'Population 2016'!F94/'Population 2016'!F$7","v":1.8149360309431716E-2},{"$f":"'Population 2016'!G94/'Population 2016'!G$7","v":1.6672841793256763E-2},{"$f":"'Population 2016'!H94/'Population 2016'!H$7","v":1.9391359771840935E-2},{"$f":"'Population 2016'!I94/'Population 2016'!I$7","v":1.419957206769111E-2},{"$f":"'Population 2016'!J94/'Population 2016'!J$7","v":1.7902041637332798E-2},{"$f":"'Population 2016'!K94/'Population 2016'!K$7","v":1.8241956499949884E-2},{"$f":"'Population 2016'!L94/'Population 2016'!L$7","v":1.8329326923076924E-2},{"$f":"'Population 2016'!M94/'Population 2016'!M$7","v":1.8329326923076924E-2},{"$f":"'Population 2016'!N94/'Population 2016'!N$7","v":1.540638993944175E-2},{"$f":"'Population 2016'!O94/'Population 2016'!O$7","v":2.0207484725050916E-2},{"$f":"'Population 2016'!P94/'Population 2016'!P$7","v":1.6187484899734237E-2},{"$f":"'Population 2016'!Q94/'Population 2016'!Q$7","v":2.0897567660157587E-2},{"$f":"'Population 2016'!R94/'Population 2016'!R$7","v":2.0495129870129872E-2},{"$f":"'Population 2016'!S94/'Population 2016'!S$7","v":1.5559908586353248E-2},{"$f":"'Population 2016'!T94/'Population 2016'!T$7","v":1.2954293678304685E-2},{"$f":"'Population 2016'!U94/'Population 2016'!U$7","v":{"$error":"#DIV/0!"}},{"$f":"'Population 2016'!V94/'Population 2016'!V$7","v":1.8380422224556246E-2},{"$f":"'Population 2016'!W94/'Population 2016'!W$7","v":1.6923623686303711E-2},{"$f":"'Population 2016'!X94/'Population 2016'!X$7","v":1.6923623686303711E-2},{"$f":"'Population 2016'!Y94/'Population 2016'!Y$7","v":1.8136046033703248E-2},{"$f":"'Population 2016'!Z94/'Population 2016'!Z$7","v":1.3952822361577305E-2},{"$f":"'Population 2016'!AA94/'Population 2016'!AA$7","v":1.5464206338830474E-2},{"$f":"'Population 2016'!AB94/'Population 2016'!AB$7","v":1.1201235998455001E-2},{"$f":"'Population 2016'!AC94/'Population 2016'!AC$7","v":1.4759696065634906E-2},{"$f":"'Population 2016'!AD94/'Population 2016'!AD$7","v":1.5136008618367896E-2},{"$f":"'Population 2016'!AE94/'Population 2016'!AE$7","v":1.4505961874382927E-2},{"$f":"'Population 2016'!AF94/'Population 2016'!AF$7","v":1.8289597339694933E-2},{"$f":"'Population 2016'!AG94/'Population 2016'!AG$7","v":1.4505961874382927E-2},{"$f":"'Population 2016'!AH94/'Population 2016'!AH$7","v":1.7208178572716455E-2},{"$f":"'Population 2016'!AI94/'Population 2016'!AI$7","v":1.4732343679712101E-2},{"$f":"'Population 2016'!AJ94/'Population 2016'!AJ$7","v":1.6405034648564559E-2},{"$f":"'Population 2016'!AK94/'Population 2016'!AK$7","v":1.1023622047244094E-2},{"$f":"'Population 2016'!AL94/'Population 2016'!AL$7","v":1.8939225536833682E-2},{"$f":"'Population 2016'!AM94/'Population 2016'!AM$7","v":1.7167282272864542E-2},{"$f":"'Population 2016'!AN94/'Population 2016'!AN$7","v":{"$error":"#DIV/0!"}},{"$f":"'Population 2016'!AO94/'Population 2016'!AO$7","v":{"$error":"#DIV/0!"}},{"$f":"'Population 2016'!AP94/'Population 2016'!AP$7","v":1.4501510574018127E-2},{"$f":"'Population 2016'!AQ94/'Population 2016'!AQ$7","v":1.6597408946467856E-2},{"$f":"'Population 2016'!AR94/'Population 2016'!AR$7","v":1.5952141283187768E-2},{"$f":"'Population 2016'!AS94/'Population 2016'!AS$7","v":1.419957206769111E-2},{"$f":"'Population 2016'!AT94/'Population 2016'!AT$7","v":{"$error":"#DIV/0!"}},{"$f":"'Population 2016'!AU94/'Population 2016'!AU$7","v":{"$error":"#DIV/0!"}},{"$f":"'Population 2016'!AV94/'Population 2016'!AV$7","v":1.9062944853623816E-2},{"$f":"'Population 2016'!AW94/'Population 2016'!AW$7","v":1.7275165997602784E-2},{"$f":"'Population 2016'!AX94/'Population 2016'!AX$7","v":1.755979412655162E-2},{"$f":"'Population 2016'!AY94/'Population 2016'!AY$7","v":1.629014108889466E-2},{"$f":"'Population 2016'!AZ94/'Population 2016'!AZ$7","v":1.5626937864318492E-2},{"$f":"'Population 2016'!BA94/'Population 2016'!BA$7","v":1.4211610886093939E-2},{"$f":"'Population 2016'!BB94/'Population 2016'!BB$7","v":1.7766939557568369E-2},{"$f":"'Population 2016'!BC94/'Population 2016'!BC$7","v":{"$error":"#DIV/0!"}},92]
[null,"Male 80-84",{"$f":"'Population 2016'!C95/'Population 2016'!C$7","v":7.6403922067999489E-3},{"$f":"'Population 2016'!D95/'Population 2016'!D$7","v":8.0689346017831353E-3},{"$f":"'Population 2016'!E95/'Population 2016'!E$7","v":9.6087851750171586E-3},{"$f":"'Population 2016'!F95/'Population 2016'!F$7","v":1.0264802142219578E-2},{"$f":"'Population 2016'!G95/'Population 2016'!G$7","v":1.278251204149685E-2},{"$f":"'Population 2016'!H95/'Population 2016'!H$7","v":1.3006795078159604E-2},{"$f":"'Population 2016'!I95/'Population 2016'!I$7","v":1.089282240809181E-2},{"$f":"'Population 2016'!J95/'Population 2016'!J$7","v":8.548727748164538E-3},{"$f":"'Population 2016'!K95/'Population 2016'!K$7","v":8.1186729477798932E-3},{"$f":"'Population 2016'!L95/'Population 2016'!L$7","v":1.1618589743589744E-2},{"$f":"'Population 2016'!M95/'Population 2016'!M$7","v":1.1618589743589744E-2},{"$f":"'Population 2016'!N95/'Population 2016'!N$7","v":9.7914104735608715E-3},{"$f":"'Population 2016'!O95/'Population 2016'!O$7","v":1.3429226069246436E-2},{"$f":"'Population 2016'!P95/'Population 2016'!P$7","v":1.0388982846098091E-2},{"$f":"'Population 2016'!Q95/'Population 2016'!Q$7","v":1.3360739979445015E-2},{"$f":"'Population 2016'!R95/'Population 2016'!R$7","v":9.74025974025974E-3},{"$f":"'Population 2016'!S95/'Population 2016'!S$7","v":1.0747633039503754E-2},{"$f":"'Population 2016'!T95/'Population 2016'!T$7","v":8.8625236750884458E-3},{"$f":"'Population 2016'!U95/'Population 2016'!U$7","v":{"$error":"#DIV/0!"}},{"$f":"'Population 2016'!V95/'Population 2016'!V$7","v":1.3443965969961138E-2},{"$f":"'Population 2016'!W95/'Population 2016'!W$7","v":1.2269627172570191E-2},{"$f":"'Population 2016'!X95/'Population 2016'!X$7","v":1.2269627172570191E-2},{"$f":"'Population 2016'!Y95/'Population 2016'!Y$7","v":1.0943279901356351E-2},{"$f":"'Population 2016'!Z95/'Population 2016'!Z$7","v":9.5349199597377053E-3},{"$f":"'Population 2016'!AA95/'Population 2016'!AA$7","v":1.0226463880536309E-2},{"$f":"'Population 2016'!AB95/'Population 2016'!AB$7","v":7.9663962920046346E-3},{"$f":"'Population 2016'!AC95/'Population 2016'!AC$7","v":9.8213453291068429E-3},{"$f":"'Population 2016'!AD95/'Population 2016'!AD$7","v":1.0557500673309992E-2},{"$f":"'Population 2016'!AE95/'Population 2016'!AE$7","v":9.6453254347991183E-3},{"$f":"'Population 2016'!AF95/'Population 2016'!AF$7","v":1.174727101857876E-2},{"$f":"'Population 2016'!AG95/'Population 2016'!AG$7","v":9.6453254347991183E-3},{"$f":"'Population 2016'!AH95/'Population 2016'!AH$7","v":1.1229310158306588E-2},{"$f":"'Population 2016'!AI95/'Population 2016'!AI$7","v":9.7278452541610435E-3},{"$f":"'Population 2016'!AJ95/'Population 2016'!AJ$7","v":1.0465280724084288E-2},{"$f":"'Population 2016'!AK95/'Population 2016'!AK$7","v":4.7244094488188976E-3},{"$f":"'Population 2016'!AL95/'Population 2016'!AL$7","v":1.2337171564486729E-2},{"$f":"'Population 2016'!AM95/'Population 2016'!AM$7","v":1.1266754942272399E-2},{"$f":"'Population 2016'!AN95/'Population 2016'!AN$7","v":{"$error":"#DIV/0!"}},{"$f":"'Population 2016'!AO95/'Population 2016'!AO$7","v":{"$error":"#DIV/0!"}},{"$f":"'Population 2016'!AP95/'Population 2016'!AP$7","v":9.6676737160120846E-3},{"$f":"'Population 2016'!AQ95/'Population 2016'!AQ$7","v":1.0388658029821559E-2},{"$f":"'Population 2016'!AR95/'Population 2016'!AR$7","v":1.0588901602093016E-2},{"$f":"'Population 2016'!AS95/'Population 2016'!AS$7","v":1.089282240809181E-2},{"$f":"'Population 2016'!AT95/'Population 2016'!AT$7","v":{"$error":"#DIV/0!"}},{"$f":"'Population 2016'!AU95/'Population 2016'!AU$7","v":{"$error":"#DIV/0!"}},{"$f":"'Population 2016'!AV95/'Population 2016'!AV$7","v":1.4049637927833137E-2},{"$f":"'Population 2016'!AW95/'Population 2016'!AW$7","v":1.116797625615951E-2},{"$f":"'Population 2016'!AX95/'Population 2016'!AX$7","v":8.9817337773741047E-3},{"$f":"'Population 2016'!AY95/'Population 2016'!AY$7","v":1.1079373322946421E-2},{"$f":"'Population 2016'!AZ95/'Population 2016'!AZ$7","v":9.8332772275473504E-3},{"$f":"'Population 2016'!BA95/'Population 2016'!BA$7","v":9.450721239252469E-3},{"$f":"'Population 2016'!BB95/'Population 2016'!BB$7","v":1.1147883643964466E-2},{"$f":"'Population 2016'!BC95/'Population 2016'!BC$7","v":{"$error":"#DIV/0!"}},93]
[null,"Male 85-89",{"$f":"'Population 2016'!C96/'Population 2016'!C$7","v":3.9475359735133067E-3},{"$f":"'Population 2016'!D96/'Population 2016'!D$7","v":4.134083777456791E-3},{"$f":"'Population 2016'!E96/'Population 2016'!E$7","v":4.8043925875085793E-3},{"$f":"'Population 2016'!F96/'Population 2016'!F$7","v":5.5043141922047007E-3},{"$f":"'Population 2016'!G96/'Population 2016'!G$7","v":7.224898110411263E-3},{"$f":"'Population 2016'!H96/'Population 2016'!H$7","v":6.1036870591031364E-3},{"$f":"'Population 2016'!I96/'Population 2016'!I$7","v":7.3915580626337293E-3},{"$f":"'Population 2016'!J96/'Population 2016'!J$7","v":5.2298099165241875E-3},{"$f":"'Population 2016'!K96/'Population 2016'!K$7","v":5.512679162072767E-3},{"$f":"'Population 2016'!L96/'Population 2016'!L$7","v":6.7107371794871791E-3},{"$f":"'Population 2016'!M96/'Population 2016'!M$7","v":6.7107371794871791E-3},{"$f":"'Population 2016'!N96/'Population 2016'!N$7","v":5.1973363651128795E-3},{"$f":"'Population 2016'!O96/'Population 2016'!O$7","v":6.619144602851324E-3},{"$f":"'Population 2016'!P96/'Population 2016'!P$7","v":5.5568978014013046E-3},{"$f":"'Population 2016'!Q96/'Population 2016'!Q$7","v":3.4258307639602604E-3},{"$f":"'Population 2016'!R96/'Population 2016'!R$7","v":4.87012987012987E-3},{"$f":"'Population 2016'!S96/'Population 2016'!S$7","v":5.15181194906954E-3},{"$f":"'Population 2016'!T96/'Population 2016'!T$7","v":4.1811099596183393E-3},{"$f":"'Population 2016'!U96/'Population 2016'!U$7","v":{"$error":"#DIV/0!"}},{"$f":"'Population 2016'!V96/'Population 2016'!V$7","v":5.4616111752967128E-3},{"$f":"'Population 2016'!W96/'Population 2016'!W$7","v":5.8724974191473878E-3},{"$f":"'Population 2016'!X96/'Population 2016'!X$7","v":5.8724974191473878E-3},{"$f":"'Population 2016'!Y96/'Population 2016'!Y$7","v":5.3431976983148374E-3},{"$f":"'Population 2016'!Z96/'Population 2016'!Z$7","v":4.5610946627190523E-3},{"$f":"'Population 2016'!AA96/'Population 2016'!AA$7","v":4.8476095018126653E-3},{"$f":"'Population 2016'!AB96/'Population 2016'!AB$7","v":4.2004634994206261E-3},{"$f":"'Population 2016'!AC96/'Population 2016'!AC$7","v":4.711099198209957E-3},{"$f":"'Population 2016'!AD96/'Population 2016'!AD$7","v":5.6019391327767308E-3},{"$f":"'Population 2016'!AE96/'Population 2016'!AE$7","v":4.936583883952305E-3},{"$f":"'Population 2016'!AF96/'Population 2016'!AF$7","v":5.0965083495987853E-3},{"$f":"'Population 2016'!AG96/'Population 2016'!AG$7","v":4.936583883952305E-3},{"$f":"'Population 2016'!AH96/'Population 2016'!AH$7","v":5.1855324366232736E-3},{"$f":"'Population 2016'!AI96/'Population 2016'!AI$7","v":4.5434098065677015E-3},{"$f":"'Population 2016'!AJ96/'Population 2016'!AJ$7","v":7.9196718993070295E-3},{"$f":"'Population 2016'!AK96/'Population 2016'!AK$7","v":6.2992125984251968E-3},{"$f":"'Population 2016'!AL96/'Population 2016'!AL$7","v":5.5795136264615661E-3},{"$f":"'Population 2016'!AM96/'Population 2016'!AM$7","v":4.8667735266104493E-3},{"$f":"'Population 2016'!AN96/'Population 2016'!AN$7","v":{"$error":"#DIV/0!"}},{"$f":"'Population 2016'!AO96/'Population 2016'!AO$7","v":{"$error":"#DIV/0!"}},{"$f":"'Population 2016'!AP96/'Population 2016'!AP$7","v":4.8338368580060423E-3},{"$f":"'Population 2016'!AQ96/'Population 2016'!AQ$7","v":5.5243216817404059E-3},{"$f":"'Population 2016'!AR96/'Population 2016'!AR$7","v":5.1006954555772874E-3},{"$f":"'Population 2016'!AS96/'Population 2016'!AS$7","v":7.3915580626337293E-3},{"$f":"'Population 2016'!AT96/'Population 2016'!AT$7","v":{"$error":"#DIV/0!"}},{"$f":"'Population 2016'!AU96/'Population 2016'!AU$7","v":{"$error":"#DIV/0!"}},{"$f":"'Population 2016'!AV96/'Population 2016'!AV$7","v":6.5606238781952099E-3},{"$f":"'Population 2016'!AW96/'Population 2016'!AW$7","v":5.7076539639656781E-3},{"$f":"'Population 2016'!AX96/'Population 2016'!AX$7","v":4.9449994954082147E-3},{"$f":"'Population 2016'!AY96/'Population 2016'!AY$7","v":5.5396866614732107E-3},{"$f":"'Population 2016'!AZ96/'Population 2016'!AZ$7","v":5.1912616714799523E-3},{"$f":"'Population 2016'!BA96/'Population 2016'!BA$7","v":4.2634832658281817E-3},{"$f":"'Population 2016'!BB96/'Population 2016'!BB$7","v":4.5288277303605646E-3},{"$f":"'Population 2016'!BC96/'Population 2016'!BC$7","v":{"$error":"#DIV/0!"}},94]
[null,"Male 90+",{"$f":"'Population 2016'!C97/'Population 2016'!C$7","v":1.5917483764166561E-3},{"$f":"'Population 2016'!D97/'Population 2016'!D$7","v":1.9923295313044776E-3},{"$f":"'Population 2016'!E97/'Population 2016'!E$7","v":3.4317089910775567E-3},{"$f":"'Population 2016'!F97/'Population 2016'!F$7","v":1.6364177328176137E-3},{"$f":"'Population 2016'!G97/'Population 2016'!G$7","v":2.2230455724342349E-3},{"$f":"'Population 2016'!H97/'Population 2016'!H$7","v":2.3226419782427861E-3},{"$f":"'Population 2016'!I97/'Population 2016'!I$7","v":2.7232056020229526E-3},{"$f":"'Population 2016'!J97/'Population 2016'!J$7","v":2.262898521572966E-3},{"$f":"'Population 2016'!K97/'Population 2016'!K$7","v":2.9066853763656409E-3},{"$f":"'Population 2016'!L97/'Population 2016'!L$7","v":2.6041666666666665E-3},{"$f":"'Population 2016'!M97/'Population 2016'!M$7","v":2.6041666666666665E-3},{"$f":"'Population 2016'!N97/'Population 2016'!N$7","v":2.1114178983271076E-3},{"$f":"'Population 2016'!O97/'Population 2016'!O$7","v":2.5776476578411407E-3},{"$f":"'Population 2016'!P97/'Population 2016'!P$7","v":2.1744382701135538E-3},{"$f":"'Population 2016'!Q97/'Population 2016'!Q$7","v":2.3980815347721821E-3},{"$f":"'Population 2016'!R97/'Population 2016'!R$7","v":2.232142857142857E-3},{"$f":"'Population 2016'!S97/'Population 2016'!S$7","v":2.4224616389160953E-3},{"$f":"'Population 2016'!T97/'Population 2016'!T$7","v":1.9654790408462279E-3},{"$f":"'Population 2016'!U97/'Population 2016'!U$7","v":{"$error":"#DIV/0!"}},{"$f":"'Population 2016'!V97/'Population 2016'!V$7","v":2.7308055876483564E-3},{"$f":"'Population 2016'!W97/'Population 2016'!W$7","v":2.640085295063379E-3},{"$f":"'Population 2016'!X97/'Population 2016'!X$7","v":2.640085295063379E-3},{"$f":"'Population 2016'!Y97/'Population 2016'!Y$7","v":2.4917796958487462E-3},{"$f":"'Population 2016'!Z97/'Population 2016'!Z$7","v":1.9541532072960667E-3},{"$f":"'Population 2016'!AA97/'Population 2016'!AA$7","v":2.1187539817426079E-3},{"$f":"'Population 2016'!AB97/'Population 2016'!AB$7","v":2.0278099652375433E-3},{"$f":"'Population 2016'!AC97/'Population 2016'!AC$7","v":2.0773121387283235E-3},{"$f":"'Population 2016'!AD97/'Population 2016'!AD$7","v":1.7775383786695395E-3},{"$f":"'Population 2016'!AE97/'Population 2016'!AE$7","v":1.594896331738437E-3},{"$f":"'Population 2016'!AF97/'Population 2016'!AF$7","v":2.277163305139883E-3},{"$f":"'Population 2016'!AG97/'Population 2016'!AG$7","v":1.594896331738437E-3},{"$f":"'Population 2016'!AH97/'Population 2016'!AH$7","v":2.2213407378024594E-3},{"$f":"'Population 2016'!AI97/'Population 2016'!AI$7","v":2.2604588394062076E-3},{"$f":"'Population 2016'!AJ97/'Population 2016'!AJ$7","v":4.2426813746287654E-3},{"$f":"'Population 2016'!AK97/'Population 2016'!AK$7","v":3.1496062992125984E-3},{"$f":"'Population 2016'!AL97/'Population 2016'!AL$7","v":2.0450806917707729E-3},{"$f":"'Population 2016'!AM97/'Population 2016'!AM$7","v":2.1836597207703207E-3},{"$f":"'Population 2016'!AN97/'Population 2016'!AN$7","v":{"$error":"#DIV/0!"}},{"$f":"'Population 2016'!AO97/'Population 2016'!AO$7","v":{"$error":"#DIV/0!"}},{"$f":"'Population 2016'!AP97/'Population 2016'!AP$7","v":1.3595166163141994E-3},{"$f":"'Population 2016'!AQ97/'Population 2016'!AQ$7","v":2.2977267171840625E-3},{"$f":"'Population 2016'!AR97/'Population 2016'!AR$7","v":2.1966582362072562E-3},{"$f":"'Population 2016'!AS97/'Population 2016'!AS$7","v":2.7232056020229526E-3},{"$f":"'Population 2016'!AT97/'Population 2016'!AT$7","v":{"$error":"#DIV/0!"}},{"$f":"'Population 2016'!AU97/'Population 2016'!AU$7","v":{"$error":"#DIV/0!"}},{"$f":"'Population 2016'!AV97/'Population 2016'!AV$7","v":2.5994924800396115E-3},{"$f":"'Population 2016'!AW97/'Population 2016'!AW$7","v":2.2830615855862712E-3},{"$f":"'Population 2016'!AX97/'Population 2016'!AX$7","v":1.6146937127863559E-3},{"$f":"'Population 2016'!AY97/'Population 2016'!AY$7","v":2.3110880290833549E-3},{"$f":"'Population 2016'!AZ97/'Population 2016'!AZ$7","v":1.9666554455094699E-3},{"$f":"'Population 2016'!BA97/'Population 2016'!BA$7","v":2.5580899594969089E-3},{"$f":"'Population 2016'!BB97/'Population 2016'!BB$7","v":2.3515067061487547E-3},{"$f":"'Population 2016'!BC97/'Population 2016'!BC$7","v":{"$error":"#DIV/0!"}},95]
["SIMD Q2","Female 0-4",0,0,0,0,0,0,0,0,0,0,0,0,0,0,0,0,0,0,0,0,0,0,0,0,0,0,0,0,0,0,0,0,0,0,0,0,0,0,0,0,0,0,0,0,0,0,0,0,0,0,0,0,0,96]
[null,"Female 5-9",0,0,0,0,0,0,0,0,0,0,0,0,0,0,0,0,0,0,0,0,0,0,0,0,0,0,0,0,0,0,0,0,0,0,0,0,0,0,0,0,0,0,0,0,0,0,0,0,0,0,0,0,0,97]
[null,"Female 10-15",0,0,0,0,0,0,0,0,0,0,0,0,0,0,0,0,0,0,0,0,0,0,0,0,0,0,0,0,0,0,0,0,0,0,0,0,0,0,0,0,0,0,0,0,0,0,0,0,0,0,0,0,0,98]
[null,"Female 16-19",0,0,0,0,0,0,0,0,0,0,0,0,0,0,0,0,0,0,0,0,0,0,0,0,0,0,0,0,0,0,0,0,0,0,0,0,0,0,0,0,0,0,0,0,0,0,0,0,0,0,0,0,0,99]
[null,"Female 20-24",0,0,0,0,0,0,0,0,0,0,0,0,0,0,0,0,0,0,0,0,0,0,0,0,0,0,0,0,0,0,0,0,0,0,0,0,0,0,0,0,0,0,0,0,0,0,0,0,0,0,0,0,0,100]
[null,"Female 25-29",0,0,0,0,0,0,0,0,0,0,0,0,0,0,0,0,0,0,0,0,0,0,0,0,0,0,0,0,0,0,0,0,0,0,0,0,0,0,0,0,0,0,0,0,0,0,0,0,0,0,0,0,0,101]
[null,"Female 30-34",0,0,0,0,0,0,0,0,0,0,0,0,0,0,0,0,0,0,0,0,0,0,0,0,0,0,0,0,0,0,0,0,0,0,0,0,0,0,0,0,0,0,0,0,0,0,0,0,0,0,0,0,0,102]
[null,"Female 35-39",0,0,0,0,0,0,0,0,0,0,0,0,0,0,0,0,0,0,0,0,0,0,0,0,0,0,0,0,0,0,0,0,0,0,0,0,0,0,0,0,0,0,0,0,0,0,0,0,0,0,0,0,0,103]
[null,"Female 40-44",0,0,0,0,0,0,0,0,0,0,0,0,0,0,0,0,0,0,0,0,0,0,0,0,0,0,0,0,0,0,0,0,0,0,0,0,0,0,0,0,0,0,0,0,0,0,0,0,0,0,0,0,0,104]
[null,"Female 45-49",0,0,0,0,0,0,0,0,0,0,0,0,0,0,0,0,0,0,0,0,0,0,0,0,0,0,0,0,0,0,0,0,0,0,0,0,0,0,0,0,0,0,0,0,0,0,0,0,0,0,0,0,0,105]
[null,"Female 50-54",0,0,0,0,0,0,0,0,0,0,0,0,0,0,0,0,0,0,0,0,0,0,0,0,0,0,0,0,0,0,0,0,0,0,0,0,0,0,0,0,0,0,0,0,0,0,0,0,0,0,0,0,0,106]
[null,"Female 55-59",0,0,0,0,0,0,0,0,0,0,0,0,0,0,0,0,0,0,0,0,0,0,0,0,0,0,0,0,0,0,0,0,0,0,0,0,0,0,0,0,0,0,0,0,0,0,0,0,0,0,0,0,0,107]
[null,"Female 60-64",0,0,0,0,0,0,0,0,0,0,0,0,0,0,0,0,0,0,0,0,0,0,0,0,0,0,0,0,0,0,0,0,0,0,0,0,0,0,0,0,0,0,0,0,0,0,0,0,0,0,0,0,0,108]
[null,"Female 65-69",0,0,0,0,0,0,0,0,0,0,0,0,0,0,0,0,0,0,0,0,0,0,0,0,0,0,0,0,0,0,0,0,0,0,0,0,0,0,0,0,0,0,0,0,0,0,0,0,0,0,0,0,0,109]
[null,"Female 70-74",0,0,0,0,0,0,0,0,0,0,0,0,0,0,0,0,0,0,0,0,0,0,0,0,0,0,0,0,0,0,0,0,0,0,0,0,0,0,0,0,0,0,0,0,0,0,0,0,0,0,0,0,0,110]
[null,"Female 75-79",0,0,0,0,0,0,0,0,0,0,0,0,0,0,0,0,0,0,0,0,0,0,0,0,0,0,0,0,0,0,0,0,0,0,0,0,0,0,0,0,0,0,0,0,0,0,0,0,0,0,0,0,0,111]
[null,"Female 80-84",0,0,0,0,0,0,0,0,0,0,0,0,0,0,0,0,0,0,0,0,0,0,0,0,0,0,0,0,0,0,0,0,0,0,0,0,0,0,0,0,0,0,0,0,0,0,0,0,0,0,0,0,0,112]
[null,"Female 85-89",0,0,0,0,0,0,0,0,0,0,0,0,0,0,0,0,0,0,0,0,0,0,0,0,0,0,0,0,0,0,0,0,0,0,0,0,0,0,0,0,0,0,0,0,0,0,0,0,0,0,0,0,0,113]
[null,"Female 90+",0,0,0,0,0,0,0,0,0,0,0,0,0,0,0,0,0,0,0,0,0,0,0,0,0,0,0,0,0,0,0,0,0,0,0,0,0,0,0,0,0,0,0,0,0,0,0,0,0,0,0,0,0,114]
[null,"Male 0-4",0,0,0,0,0,0,0,0,0,0,0,0,0,0,0,0,0,0,0,0,0,0,0,0,0,0,0,0,0,0,0,0,0,0,0,0,0,0,0,0,0,0,0,0,0,0,0,0,0,0,0,0,0,115]
[null,"Male 5-9",0,0,0,0,0,0,0,0,0,0,0,0,0,0,0,0,0,0,0,0,0,0,0,0,0,0,0,0,0,0,0,0,0,0,0,0,0,0,0,0,0,0,0,0,0,0,0,0,0,0,0,0,0,116]
[null,"Male 10-15",0,0,0,0,0,0,0,0,0,0,0,0,0,0,0,0,0,0,0,0,0,0,0,0,0,0,0,0,0,0,0,0,0,0,0,0,0,0,0,0,0,0,0,0,0,0,0,0,0,0,0,0,0,117]
[null,"Male 16-19",0,0,0,0,0,0,0,0,0,0,0,0,0,0,0,0,0,0,0,0,0,0,0,0,0,0,0,0,0,0,0,0,0,0,0,0,0,0,0,0,0,0,0,0,0,0,0,0,0,0,0,0,0,118]
[null,"Male 20-24",0,0,0,0,0,0,0,0,0,0,0,0,0,0,0,0,0,0,0,0,0,0,0,0,0,0,0,0,0,0,0,0,0,0,0,0,0,0,0,0,0,0,0,0,0,0,0,0,0,0,0,0,0,119]
[null,"Male 25-29",0,0,0,0,0,0,0,0,0,0,0,0,0,0,0,0,0,0,0,0,0,0,0,0,0,0,0,0,0,0,0,0,0,0,0,0,0,0,0,0,0,0,0,0,0,0,0,0,0,0,0,0,0,120]
[null,"Male 30-34",0,0,0,0,0,0,0,0,0,0,0,0,0,0,0,0,0,0,0,0,0,0,0,0,0,0,0,0,0,0,0,0,0,0,0,0,0,0,0,0,0,0,0,0,0,0,0,0,0,0,0,0,0,121]
[null,"Male 35-39",0,0,0,0,0,0,0,0,0,0,0,0,0,0,0,0,0,0,0,0,0,0,0,0,0,0,0,0,0,0,0,0,0,0,0,0,0,0,0,0,0,0,0,0,0,0,0,0,0,0,0,0,0,122]
[null,"Male 40-44",0,0,0,0,0,0,0,0,0,0,0,0,0,0,0,0,0,0,0,0,0,0,0,0,0,0,0,0,0,0,0,0,0,0,0,0,0,0,0,0,0,0,0,0,0,0,0,0,0,0,0,0,0,123]
[null,"Male 45-49",0,0,0,0,0,0,0,0,0,0,0,0,0,0,0,0,0,0,0,0,0,0,0,0,0,0,0,0,0,0,0,0,0,0,0,0,0,0,0,0,0,0,0,0,0,0,0,0,0,0,0,0,0,124]
[null,"Male 50-54",0,0,0,0,0,0,0,0,0,0,0,0,0,0,0,0,0,0,0,0,0,0,0,0,0,0,0,0,0,0,0,0,0,0,0,0,0,0,0,0,0,0,0,0,0,0,0,0,0,0,0,0,0,125]
[null,"Male 55-59",0,0,0,0,0,0,0,0,0,0,0,0,0,0,0,0,0,0,0,0,0,0,0,0,0,0,0,0,0,0,0,0,0,0,0,0,0,0,0,0,0,0,0,0,0,0,0,0,0,0,0,0,0,126]
[null,"Male 60-64",0,0,0,0,0,0,0,0,0,0,0,0,0,0,0,0,0,0,0,0,0,0,0,0,0,0,0,0,0,0,0,0,0,0,0,0,0,0,0,0,0,0,0,0,0,0,0,0,0,0,0,0,0,127]
[null,"Male 65-69",0,0,0,0,0,0,0,0,0,0,0,0,0,0,0,0,0,0,0,0,0,0,0,0,0,0,0,0,0,0,0,0,0,0,0,0,0,0,0,0,0,0,0,0,0,0,0,0,0,0,0,0,0,128]
[null,"Male 70-74",0,0,0,0,0,0,0,0,0,0,0,0,0,0,0,0,0,0,0,0,0,0,0,0,0,0,0,0,0,0,0,0,0,0,0,0,0,0,0,0,0,0,0,0,0,0,0,0,0,0,0,0,0,129]
[null,"Male 75-79",0,0,0,0,0,0,0,0,0,0,0,0,0,0,0,0,0,0,0,0,0,0,0,0,0,0,0,0,0,0,0,0,0,0,0,0,0,0,0,0,0,0,0,0,0,0,0,0,0,0,0,0,0,130]
[null,"Male 80-84",0,0,0,0,0,0,0,0,0,0,0,0,0,0,0,0,0,0,0,0,0,0,0,0,0,0,0,0,0,0,0,0,0,0,0,0,0,0,0,0,0,0,0,0,0,0,0,0,0,0,0,0,0,131]
[null,"Male 85-89",0,0,0,0,0,0,0,0,0,0,0,0,0,0,0,0,0,0,0,0,0,0,0,0,0,0,0,0,0,0,0,0,0,0,0,0,0,0,0,0,0,0,0,0,0,0,0,0,0,0,0,0,0,132]
[null,"Male 90+",0,0,0,0,0,0,0,0,0,0,0,0,0,0,0,0,0,0,0,0,0,0,0,0,0,0,0,0,0,0,0,0,0,0,0,0,0,0,0,0,0,0,0,0,0,0,0,0,0,0,0,0,0,133]
["SIMD Q3","Female 0-4",0,0,0,0,0,0,0,0,0,0,0,0,0,0,0,0,0,0,0,0,0,0,0,0,0,0,0,0,0,0,0,0,0,0,0,0,0,0,0,0,0,0,0,0,0,0,0,0,0,0,0,0,0,134]
[null,"Female 5-9",0,0,0,0,0,0,0,0,0,0,0,0,0,0,0,0,0,0,0,0,0,0,0,0,0,0,0,0,0,0,0,0,0,0,0,0,0,0,0,0,0,0,0,0,0,0,0,0,0,0,0,0,0,135]
[null,"Female 10-15",0,0,0,0,0,0,0,0,0,0,0,0,0,0,0,0,0,0,0,0,0,0,0,0,0,0,0,0,0,0,0,0,0,0,0,0,0,0,0,0,0,0,0,0,0,0,0,0,0,0,0,0,0,136]
[null,"Female 16-19",0,0,0,0,0,0,0,0,0,0,0,0,0,0,0,0,0,0,0,0,0,0,0,0,0,0,0,0,0,0,0,0,0,0,0,0,0,0,0,0,0,0,0,0,0,0,0,0,0,0,0,0,0,137]
[null,"Female 20-24",0,0,0,0,0,0,0,0,0,0,0,0,0,0,0,0,0,0,0,0,0,0,0,0,0,0,0,0,0,0,0,0,0,0,0,0,0,0,0,0,0,0,0,0,0,0,0,0,0,0,0,0,0,138]
[null,"Female 25-29",0,0,0,0,0,0,0,0,0,0,0,0,0,0,0,0,0,0,0,0,0,0,0,0,0,0,0,0,0,0,0,0,0,0,0,0,0,0,0,0,0,0,0,0,0,0,0,0,0,0,0,0,0,139]
[null,"Female 30-34",0,0,0,0,0,0,0,0,0,0,0,0,0,0,0,0,0,0,0,0,0,0,0,0,0,0,0,0,0,0,0,0,0,0,0,0,0,0,0,0,0,0,0,0,0,0,0,0,0,0,0,0,0,140]
[null,"Female 35-39",0,0,0,0,0,0,0,0,0,0,0,0,0,0,0,0,0,0,0,0,0,0,0,0,0,0,0,0,0,0,0,0,0,0,0,0,0,0,0,0,0,0,0,0,0,0,0,0,0,0,0,0,0,141]
[null,"Female 40-44",0,0,0,0,0,0,0,0,0,0,0,0,0,0,0,0,0,0,0,0,0,0,0,0,0,0,0,0,0,0,0,0,0,0,0,0,0,0,0,0,0,0,0,0,0,0,0,0,0,0,0,0,0,142]
[null,"Female 45-49",0,0,0,0,0,0,0,0,0,0,0,0,0,0,0,0,0,0,0,0,0,0,0,0,0,0,0,0,0,0,0,0,0,0,0,0,0,0,0,0,0,0,0,0,0,0,0,0,0,0,0,0,0,143]
[null,"Female 50-54",0,0,0,0,0,0,0,0,0,0,0,0,0,0,0,0,0,0,0,0,0,0,0,0,0,0,0,0,0,0,0,0,0,0,0,0,0,0,0,0,0,0,0,0,0,0,0,0,0,0,0,0,0,144]
[null,"Female 55-59",0,0,0,0,0,0,0,0,0,0,0,0,0,0,0,0,0,0,0,0,0,0,0,0,0,0,0,0,0,0,0,0,0,0,0,0,0,0,0,0,0,0,0,0,0,0,0,0,0,0,0,0,0,145]
[null,"Female 60-64",0,0,0,0,0,0,0,0,0,0,0,0,0,0,0,0,0,0,0,0,0,0,0,0,0,0,0,0,0,0,0,0,0,0,0,0,0,0,0,0,0,0,0,0,0,0,0,0,0,0,0,0,0,146]
[null,"Female 65-69",0,0,0,0,0,0,0,0,0,0,0,0,0,0,0,0,0,0,0,0,0,0,0,0,0,0,0,0,0,0,0,0,0,0,0,0,0,0,0,0,0,0,0,0,0,0,0,0,0,0,0,0,0,147]
[null,"Female 70-74",0,0,0,0,0,0,0,0,0,0,0,0,0,0,0,0,0,0,0,0,0,0,0,0,0,0,0,0,0,0,0,0,0,0,0,0,0,0,0,0,0,0,0,0,0,0,0,0,0,0,0,0,0,148]
[null,"Female 75-79",0,0,0,0,0,0,0,0,0,0,0,0,0,0,0,0,0,0,0,0,0,0,0,0,0,0,0,0,0,0,0,0,0,0,0,0,0,0,0,0,0,0,0,0,0,0,0,0,0,0,0,0,0,149]
[null,"Female 80-84",0,0,0,0,0,0,0,0,0,0,0,0,0,0,0,0,0,0,0,0,0,0,0,0,0,0,0,0,0,0,0,0,0,0,0,0,0,0,0,0,0,0,0,0,0,0,0,0,0,0,0,0,0,150]
[null,"Female 85-89",0,0,0,0,0,0,0,0,0,0,0,0,0,0,0,0,0,0,0,0,0,0,0,0,0,0,0,0,0,0,0,0,0,0,0,0,0,0,0,0,0,0,0,0,0,0,0,0,0,0,0,0,0,151]
[null,"Female 90+",0,0,0,0,0,0,0,0,0,0,0,0,0,0,0,0,0,0,0,0,0,0,0,0,0,0,0,0,0,0,0,0,0,0,0,0,0,0,0,0,0,0,0,0,0,0,0,0,0,0,0,0,0,152]
[null,"Male 0-4",0,0,0,0,0,0,0,0,0,0,0,0,0,0,0,0,0,0,0,0,0,0,0,0,0,0,0,0,0,0,0,0,0,0,0,0,0,0,0,0,0,0,0,0,0,0,0,0,0,0,0,0,0,153]
[null,"Male 5-9",0,0,0,0,0,0,0,0,0,0,0,0,0,0,0,0,0,0,0,0,0,0,0,0,0,0,0,0,0,0,0,0,0,0,0,0,0,0,0,0,0,0,0,0,0,0,0,0,0,0,0,0,0,154]
[null,"Male 10-15",0,0,0,0,0,0,0,0,0,0,0,0,0,0,0,0,0,0,0,0,0,0,0,0,0,0,0,0,0,0,0,0,0,0,0,0,0,0,0,0,0,0,0,0,0,0,0,0,0,0,0,0,0,155]
[null,"Male 16-19",0,0,0,0,0,0,0,0,0,0,0,0,0,0,0,0,0,0,0,0,0,0,0,0,0,0,0,0,0,0,0,0,0,0,0,0,0,0,0,0,0,0,0,0,0,0,0,0,0,0,0,0,0,156]
[null,"Male 20-24",0,0,0,0,0,0,0,0,0,0,0,0,0,0,0,0,0,0,0,0,0,0,0,0,0,0,0,0,0,0,0,0,0,0,0,0,0,0,0,0,0,0,0,0,0,0,0,0,0,0,0,0,0,157]
[null,"Male 25-29",0,0,0,0,0,0,0,0,0,0,0,0,0,0,0,0,0,0,0,0,0,0,0,0,0,0,0,0,0,0,0,0,0,0,0,0,0,0,0,0,0,0,0,0,0,0,0,0,0,0,0,0,0,158]
[null,"Male 30-34",0,0,0,0,0,0,0,0,0,0,0,0,0,0,0,0,0,0,0,0,0,0,0,0,0,0,0,0,0,0,0,0,0,0,0,0,0,0,0,0,0,0,0,0,0,0,0,0,0,0,0,0,0,159]
[null,"Male 35-39",0,0,0,0,0,0,0,0,0,0,0,0,0,0,0,0,0,0,0,0,0,0,0,0,0,0,0,0,0,0,0,0,0,0,0,0,0,0,0,0,0,0,0,0,0,0,0,0,0,0,0,0,0,160]
[null,"Male 40-44",0,0,0,0,0,0,0,0,0,0,0,0,0,0,0,0,0,0,0,0,0,0,0,0,0,0,0,0,0,0,0,0,0,0,0,0,0,0,0,0,0,0,0,0,0,0,0,0,0,0,0,0,0,161]
[null,"Male 45-49",0,0,0,0,0,0,0,0,0,0,0,0,0,0,0,0,0,0,0,0,0,0,0,0,0,0,0,0,0,0,0,0,0,0,0,0,0,0,0,0,0,0,0,0,0,0,0,0,0,0,0,0,0,162]
[null,"Male 50-54",0,0,0,0,0,0,0,0,0,0,0,0,0,0,0,0,0,0,0,0,0,0,0,0,0,0,0,0,0,0,0,0,0,0,0,0,0,0,0,0,0,0,0,0,0,0,0,0,0,0,0,0,0,163]
[null,"Male 55-59",0,0,0,0,0,0,0,0,0,0,0,0,0,0,0,0,0,0,0,0,0,0,0,0,0,0,0,0,0,0,0,0,0,0,0,0,0,0,0,0,0,0,0,0,0,0,0,0,0,0,0,0,0,164]
[null,"Male 60-64",0,0,0,0,0,0,0,0,0,0,0,0,0,0,0,0,0,0,0,0,0,0,0,0,0,0,0,0,0,0,0,0,0,0,0,0,0,0,0,0,0,0,0,0,0,0,0,0,0,0,0,0,0,165]
[null,"Male 65-69",0,0,0,0,0,0,0,0,0,0,0,0,0,0,0,0,0,0,0,0,0,0,0,0,0,0,0,0,0,0,0,0,0,0,0,0,0,0,0,0,0,0,0,0,0,0,0,0,0,0,0,0,0,166]
[null,"Male 70-74",0,0,0,0,0,0,0,0,0,0,0,0,0,0,0,0,0,0,0,0,0,0,0,0,0,0,0,0,0,0,0,0,0,0,0,0,0,0,0,0,0,0,0,0,0,0,0,0,0,0,0,0,0,167]
[null,"Male 75-79",0,0,0,0,0,0,0,0,0,0,0,0,0,0,0,0,0,0,0,0,0,0,0,0,0,0,0,0,0,0,0,0,0,0,0,0,0,0,0,0,0,0,0,0,0,0,0,0,0,0,0,0,0,168]
[null,"Male 80-84",0,0,0,0,0,0,0,0,0,0,0,0,0,0,0,0,0,0,0,0,0,0,0,0,0,0,0,0,0,0,0,0,0,0,0,0,0,0,0,0,0,0,0,0,0,0,0,0,0,0,0,0,0,169]
[null,"Male 85-89",0,0,0,0,0,0,0,0,0,0,0,0,0,0,0,0,0,0,0,0,0,0,0,0,0,0,0,0,0,0,0,0,0,0,0,0,0,0,0,0,0,0,0,0,0,0,0,0,0,0,0,0,0,170]
[null,"Male 90+",0,0,0,0,0,0,0,0,0,0,0,0,0,0,0,0,0,0,0,0,0,0,0,0,0,0,0,0,0,0,0,0,0,0,0,0,0,0,0,0,0,0,0,0,0,0,0,0,0,0,0,0,0,171]
["SIMD Q4","Female 0-4",0,0,0,0,0,0,0,0,0,0,0,0,0,0,0,0,0,0,0,0,0,0,0,0,0,0,0,0,0,0,0,0,0,0,0,0,0,0,0,0,0,0,0,0,0,0,0,0,0,0,0,0,0,172]
[null,"Female 5-9",0,0,0,0,0,0,0,0,0,0,0,0,0,0,0,0,0,0,0,0,0,0,0,0,0,0,0,0,0,0,0,0,0,0,0,0,0,0,0,0,0,0,0,0,0,0,0,0,0,0,0,0,0,173]
[null,"Female 10-15",0,0,0,0,0,0,0,0,0,0,0,0,0,0,0,0,0,0,0,0,0,0,0,0,0,0,0,0,0,0,0,0,0,0,0,0,0,0,0,0,0,0,0,0,0,0,0,0,0,0,0,0,0,174]
[null,"Female 16-19",0,0,0,0,0,0,0,0,0,0,0,0,0,0,0,0,0,0,0,0,0,0,0,0,0,0,0,0,0,0,0,0,0,0,0,0,0,0,0,0,0,0,0,0,0,0,0,0,0,0,0,0,0,175]
[null,"Female 20-24",0,0,0,0,0,0,0,0,0,0,0,0,0,0,0,0,0,0,0,0,0,0,0,0,0,0,0,0,0,0,0,0,0,0,0,0,0,0,0,0,0,0,0,0,0,0,0,0,0,0,0,0,0,176]
[null,"Female 25-29",0,0,0,0,0,0,0,0,0,0,0,0,0,0,0,0,0,0,0,0,0,0,0,0,0,0,0,0,0,0,0,0,0,0,0,0,0,0,0,0,0,0,0,0,0,0,0,0,0,0,0,0,0,177]
[null,"Female 30-34",0,0,0,0,0,0,0,0,0,0,0,0,0,0,0,0,0,0,0,0,0,0,0,0,0,0,0,0,0,0,0,0,0,0,0,0,0,0,0,0,0,0,0,0,0,0,0,0,0,0,0,0,0,178]
[null,"Female 35-39",0,0,0,0,0,0,0,0,0,0,0,0,0,0,0,0,0,0,0,0,0,0,0,0,0,0,0,0,0,0,0,0,0,0,0,0,0,0,0,0,0,0,0,0,0,0,0,0,0,0,0,0,0,179]
[null,"Female 40-44",0,0,0,0,0,0,0,0,0,0,0,0,0,0,0,0,0,0,0,0,0,0,0,0,0,0,0,0,0,0,0,0,0,0,0,0,0,0,0,0,0,0,0,0,0,0,0,0,0,0,0,0,0,180]
[null,"Female 45-49",0,0,0,0,0,0,0,0,0,0,0,0,0,0,0,0,0,0,0,0,0,0,0,0,0,0,0,0,0,0,0,0,0,0,0,0,0,0,0,0,0,0,0,0,0,0,0,0,0,0,0,0,0,181]
[null,"Female 50-54",0,0,0,0,0,0,0,0,0,0,0,0,0,0,0,0,0,0,0,0,0,0,0,0,0,0,0,0,0,0,0,0,0,0,0,0,0,0,0,0,0,0,0,0,0,0,0,0,0,0,0,0,0,182]
[null,"Female 55-59",0,0,0,0,0,0,0,0,0,0,0,0,0,0,0,0,0,0,0,0,0,0,0,0,0,0,0,0,0,0,0,0,0,0,0,0,0,0,0,0,0,0,0,0,0,0,0,0,0,0,0,0,0,183]
[null,"Female 60-64",0,0,0,0,0,0,0,0,0,0,0,0,0,0,0,0,0,0,0,0,0,0,0,0,0,0,0,0,0,0,0,0,0,0,0,0,0,0,0,0,0,0,0,0,0,0,0,0,0,0,0,0,0,184]
[null,"Female 65-69",0,0,0,0,0,0,0,0,0,0,0,0,0,0,0,0,0,0,0,0,0,0,0,0,0,0,0,0,0,0,0,0,0,0,0,0,0,0,0,0,0,0,0,0,0,0,0,0,0,0,0,0,0,185]
[null,"Female 70-74",0,0,0,0,0,0,0,0,0,0,0,0,0,0,0,0,0,0,0,0,0,0,0,0,0,0,0,0,0,0,0,0,0,0,0,0,0,0,0,0,0,0,0,0,0,0,0,0,0,0,0,0,0,186]
[null,"Female 75-79",0,0,0,0,0,0,0,0,0,0,0,0,0,0,0,0,0,0,0,0,0,0,0,0,0,0,0,0,0,0,0,0,0,0,0,0,0,0,0,0,0,0,0,0,0,0,0,0,0,0,0,0,0,187]
[null,"Female 80-84",0,0,0,0,0,0,0,0,0,0,0,0,0,0,0,0,0,0,0,0,0,0,0,0,0,0,0,0,0,0,0,0,0,0,0,0,0,0,0,0,0,0,0,0,0,0,0,0,0,0,0,0,0,188]
[null,"Female 85-89",0,0,0,0,0,0,0,0,0,0,0,0,0,0,0,0,0,0,0,0,0,0,0,0,0,0,0,0,0,0,0,0,0,0,0,0,0,0,0,0,0,0,0,0,0,0,0,0,0,0,0,0,0,189]
[null,"Female 90+",0,0,0,0,0,0,0,0,0,0,0,0,0,0,0,0,0,0,0,0,0,0,0,0,0,0,0,0,0,0,0,0,0,0,0,0,0,0,0,0,0,0,0,0,0,0,0,0,0,0,0,0,0,190]
[null,"Male 0-4",0,0,0,0,0,0,0,0,0,0,0,0,0,0,0,0,0,0,0,0,0,0,0,0,0,0,0,0,0,0,0,0,0,0,0,0,0,0,0,0,0,0,0,0,0,0,0,0,0,0,0,0,0,191]
[null,"Male 5-9",0,0,0,0,0,0,0,0,0,0,0,0,0,0,0,0,0,0,0,0,0,0,0,0,0,0,0,0,0,0,0,0,0,0,0,0,0,0,0,0,0,0,0,0,0,0,0,0,0,0,0,0,0,192]
[null,"Male 10-15",0,0,0,0,0,0,0,0,0,0,0,0,0,0,0,0,0,0,0,0,0,0,0,0,0,0,0,0,0,0,0,0,0,0,0,0,0,0,0,0,0,0,0,0,0,0,0,0,0,0,0,0,0,193]
[null,"Male 16-19",0,0,0,0,0,0,0,0,0,0,0,0,0,0,0,0,0,0,0,0,0,0,0,0,0,0,0,0,0,0,0,0,0,0,0,0,0,0,0,0,0,0,0,0,0,0,0,0,0,0,0,0,0,194]
[null,"Male 20-24",0,0,0,0,0,0,0,0,0,0,0,0,0,0,0,0,0,0,0,0,0,0,0,0,0,0,0,0,0,0,0,0,0,0,0,0,0,0,0,0,0,0,0,0,0,0,0,0,0,0,0,0,0,195]
[null,"Male 25-29",0,0,0,0,0,0,0,0,0,0,0,0,0,0,0,0,0,0,0,0,0,0,0,0,0,0,0,0,0,0,0,0,0,0,0,0,0,0,0,0,0,0,0,0,0,0,0,0,0,0,0,0,0,196]
[null,"Male 30-34",0,0,0,0,0,0,0,0,0,0,0,0,0,0,0,0,0,0,0,0,0,0,0,0,0,0,0,0,0,0,0,0,0,0,0,0,0,0,0,0,0,0,0,0,0,0,0,0,0,0,0,0,0,197]
[null,"Male 35-39",0,0,0,0,0,0,0,0,0,0,0,0,0,0,0,0,0,0,0,0,0,0,0,0,0,0,0,0,0,0,0,0,0,0,0,0,0,0,0,0,0,0,0,0,0,0,0,0,0,0,0,0,0,198]
[null,"Male 40-44",0,0,0,0,0,0,0,0,0,0,0,0,0,0,0,0,0,0,0,0,0,0,0,0,0,0,0,0,0,0,0,0,0,0,0,0,0,0,0,0,0,0,0,0,0,0,0,0,0,0,0,0,0,199]
[null,"Male 45-49",0,0,0,0,0,0,0,0,0,0,0,0,0,0,0,0,0,0,0,0,0,0,0,0,0,0,0,0,0,0,0,0,0,0,0,0,0,0,0,0,0,0,0,0,0,0,0,0,0,0,0,0,0,200]
[null,"Male 50-54",0,0,0,0,0,0,0,0,0,0,0,0,0,0,0,0,0,0,0,0,0,0,0,0,0,0,0,0,0,0,0,0,0,0,0,0,0,0,0,0,0,0,0,0,0,0,0,0,0,0,0,0,0,201]
[null,"Male 55-59",0,0,0,0,0,0,0,0,0,0,0,0,0,0,0,0,0,0,0,0,0,0,0,0,0,0,0,0,0,0,0,0,0,0,0,0,0,0,0,0,0,0,0,0,0,0,0,0,0,0,0,0,0,202]
[null,"Male 60-64",0,0,0,0,0,0,0,0,0,0,0,0,0,0,0,0,0,0,0,0,0,0,0,0,0,0,0,0,0,0,0,0,0,0,0,0,0,0,0,0,0,0,0,0,0,0,0,0,0,0,0,0,0,203]
[null,"Male 65-69",0,0,0,0,0,0,0,0,0,0,0,0,0,0,0,0,0,0,0,0,0,0,0,0,0,0,0,0,0,0,0,0,0,0,0,0,0,0,0,0,0,0,0,0,0,0,0,0,0,0,0,0,0,204]
[null,"Male 70-74",0,0,0,0,0,0,0,0,0,0,0,0,0,0,0,0,0,0,0,0,0,0,0,0,0,0,0,0,0,0,0,0,0,0,0,0,0,0,0,0,0,0,0,0,0,0,0,0,0,0,0,0,0,205]
[null,"Male 75-79",0,0,0,0,0,0,0,0,0,0,0,0,0,0,0,0,0,0,0,0,0,0,0,0,0,0,0,0,0,0,0,0,0,0,0,0,0,0,0,0,0,0,0,0,0,0,0,0,0,0,0,0,0,206]
[null,"Male 80-84",0,0,0,0,0,0,0,0,0,0,0,0,0,0,0,0,0,0,0,0,0,0,0,0,0,0,0,0,0,0,0,0,0,0,0,0,0,0,0,0,0,0,0,0,0,0,0,0,0,0,0,0,0,207]
[null,"Male 85-89",0,0,0,0,0,0,0,0,0,0,0,0,0,0,0,0,0,0,0,0,0,0,0,0,0,0,0,0,0,0,0,0,0,0,0,0,0,0,0,0,0,0,0,0,0,0,0,0,0,0,0,0,0,208]
[null,"Male 90+",0,0,0,0,0,0,0,0,0,0,0,0,0,0,0,0,0,0,0,0,0,0,0,0,0,0,0,0,0,0,0,0,0,0,0,0,0,0,0,0,0,0,0,0,0,0,0,0,0,0,0,0,0,209]
["SIMD Q5 (least deprived)","Female 0-4",0,0,0,0,0,0,0,0,0,0,0,0,0,0,0,0,0,0,0,0,0,0,0,0,0,0,0,0,0,0,0,0,0,0,0,0,0,0,0,0,0,0,0,0,0,0,0,0,0,0,0,0,0,210]
[null,"Female 5-9",0,0,0,0,0,0,0,0,0,0,0,0,0,0,0,0,0,0,0,0,0,0,0,0,0,0,0,0,0,0,0,0,0,0,0,0,0,0,0,0,0,0,0,0,0,0,0,0,0,0,0,0,0,211]
[null,"Female 10-15",0,0,0,0,0,0,0,0,0,0,0,0,0,0,0,0,0,0,0,0,0,0,0,0,0,0,0,0,0,0,0,0,0,0,0,0,0,0,0,0,0,0,0,0,0,0,0,0,0,0,0,0,0,212]
[null,"Female 16-19",0,0,0,0,0,0,0,0,0,0,0,0,0,0,0,0,0,0,0,0,0,0,0,0,0,0,0,0,0,0,0,0,0,0,0,0,0,0,0,0,0,0,0,0,0,0,0,0,0,0,0,0,0,213]
[null,"Female 20-24",0,0,0,0,0,0,0,0,0,0,0,0,0,0,0,0,0,0,0,0,0,0,0,0,0,0,0,0,0,0,0,0,0,0,0,0,0,0,0,0,0,0,0,0,0,0,0,0,0,0,0,0,0,214]
[null,"Female 25-29",0,0,0,0,0,0,0,0,0,0,0,0,0,0,0,0,0,0,0,0,0,0,0,0,0,0,0,0,0,0,0,0,0,0,0,0,0,0,0,0,0,0,0,0,0,0,0,0,0,0,0,0,0,215]
[null,"Female 30-34",0,0,0,0,0,0,0,0,0,0,0,0,0,0,0,0,0,0,0,0,0,0,0,0,0,0,0,0,0,0,0,0,0,0,0,0,0,0,0,0,0,0,0,0,0,0,0,0,0,0,0,0,0,216]
[null,"Female 35-39",0,0,0,0,0,0,0,0,0,0,0,0,0,0,0,0,0,0,0,0,0,0,0,0,0,0,0,0,0,0,0,0,0,0,0,0,0,0,0,0,0,0,0,0,0,0,0,0,0,0,0,0,0,217]
[null,"Female 40-44",0,0,0,0,0,0,0,0,0,0,0,0,0,0,0,0,0,0,0,0,0,0,0,0,0,0,0,0,0,0,0,0,0,0,0,0,0,0,0,0,0,0,0,0,0,0,0,0,0,0,0,0,0,218]
[null,"Female 45-49",0,0,0,0,0,0,0,0,0,0,0,0,0,0,0,0,0,0,0,0,0,0,0,0,0,0,0,0,0,0,0,0,0,0,0,0,0,0,0,0,0,0,0,0,0,0,0,0,0,0,0,0,0,219]
[null,"Female 50-54",0,0,0,0,0,0,0,0,0,0,0,0,0,0,0,0,0,0,0,0,0,0,0,0,0,0,0,0,0,0,0,0,0,0,0,0,0,0,0,0,0,0,0,0,0,0,0,0,0,0,0,0,0,220]
[null,"Female 55-59",0,0,0,0,0,0,0,0,0,0,0,0,0,0,0,0,0,0,0,0,0,0,0,0,0,0,0,0,0,0,0,0,0,0,0,0,0,0,0,0,0,0,0,0,0,0,0,0,0,0,0,0,0,221]
[null,"Female 60-64",0,0,0,0,0,0,0,0,0,0,0,0,0,0,0,0,0,0,0,0,0,0,0,0,0,0,0,0,0,0,0,0,0,0,0,0,0,0,0,0,0,0,0,0,0,0,0,0,0,0,0,0,0,222]
[null,"Female 65-69",0,0,0,0,0,0,0,0,0,0,0,0,0,0,0,0,0,0,0,0,0,0,0,0,0,0,0,0,0,0,0,0,0,0,0,0,0,0,0,0,0,0,0,0,0,0,0,0,0,0,0,0,0,223]
[null,"Female 70-74",0,0,0,0,0,0,0,0,0,0,0,0,0,0,0,0,0,0,0,0,0,0,0,0,0,0,0,0,0,0,0,0,0,0,0,0,0,0,0,0,0,0,0,0,0,0,0,0,0,0,0,0,0,224]
[null,"Female 75-79",0,0,0,0,0,0,0,0,0,0,0,0,0,0,0,0,0,0,0,0,0,0,0,0,0,0,0,0,0,0,0,0,0,0,0,0,0,0,0,0,0,0,0,0,0,0,0,0,0,0,0,0,0,225]
[null,"Female 80-84",0,0,0,0,0,0,0,0,0,0,0,0,0,0,0,0,0,0,0,0,0,0,0,0,0,0,0,0,0,0,0,0,0,0,0,0,0,0,0,0,0,0,0,0,0,0,0,0,0,0,0,0,0,226]
[null,"Female 85-89",0,0,0,0,0,0,0,0,0,0,0,0,0,0,0,0,0,0,0,0,0,0,0,0,0,0,0,0,0,0,0,0,0,0,0,0,0,0,0,0,0,0,0,0,0,0,0,0,0,0,0,0,0,227]
[null,"Female 90+",0,0,0,0,0,0,0,0,0,0,0,0,0,0,0,0,0,0,0,0,0,0,0,0,0,0,0,0,0,0,0,0,0,0,0,0,0,0,0,0,0,0,0,0,0,0,0,0,0,0,0,0,0,228]
[null,"Male 0-4",0,0,0,0,0,0,0,0,0,0,0,0,0,0,0,0,0,0,0,0,0,0,0,0,0,0,0,0,0,0,0,0,0,0,0,0,0,0,0,0,0,0,0,0,0,0,0,0,0,0,0,0,0,229]
[null,"Male 5-9",0,0,0,0,0,0,0,0,0,0,0,0,0,0,0,0,0,0,0,0,0,0,0,0,0,0,0,0,0,0,0,0,0,0,0,0,0,0,0,0,0,0,0,0,0,0,0,0,0,0,0,0,0,230]
[null,"Male 10-15",0,0,0,0,0,0,0,0,0,0,0,0,0,0,0,0,0,0,0,0,0,0,0,0,0,0,0,0,0,0,0,0,0,0,0,0,0,0,0,0,0,0,0,0,0,0,0,0,0,0,0,0,0,231]
[null,"Male 16-19",0,0,0,0,0,0,0,0,0,0,0,0,0,0,0,0,0,0,0,0,0,0,0,0,0,0,0,0,0,0,0,0,0,0,0,0,0,0,0,0,0,0,0,0,0,0,0,0,0,0,0,0,0,232]
[null,"Male 20-24",0,0,0,0,0,0,0,0,0,0,0,0,0,0,0,0,0,0,0,0,0,0,0,0,0,0,0,0,0,0,0,0,0,0,0,0,0,0,0,0,0,0,0,0,0,0,0,0,0,0,0,0,0,233]
[null,"Male 25-29",0,0,0,0,0,0,0,0,0,0,0,0,0,0,0,0,0,0,0,0,0,0,0,0,0,0,0,0,0,0,0,0,0,0,0,0,0,0,0,0,0,0,0,0,0,0,0,0,0,0,0,0,0,234]
[null,"Male 30-34",0,0,0,0,0,0,0,0,0,0,0,0,0,0,0,0,0,0,0,0,0,0,0,0,0,0,0,0,0,0,0,0,0,0,0,0,0,0,0,0,0,0,0,0,0,0,0,0,0,0,0,0,0,235]
[null,"Male 35-39",0,0,0,0,0,0,0,0,0,0,0,0,0,0,0,0,0,0,0,0,0,0,0,0,0,0,0,0,0,0,0,0,0,0,0,0,0,0,0,0,0,0,0,0,0,0,0,0,0,0,0,0,0,236]
[null,"Male 40-44",0,0,0,0,0,0,0,0,0,0,0,0,0,0,0,0,0,0,0,0,0,0,0,0,0,0,0,0,0,0,0,0,0,0,0,0,0,0,0,0,0,0,0,0,0,0,0,0,0,0,0,0,0,237]
[null,"Male 45-49",0,0,0,0,0,0,0,0,0,0,0,0,0,0,0,0,0,0,0,0,0,0,0,0,0,0,0,0,0,0,0,0,0,0,0,0,0,0,0,0,0,0,0,0,0,0,0,0,0,0,0,0,0,238]
[null,"Male 50-54",0,0,0,0,0,0,0,0,0,0,0,0,0,0,0,0,0,0,0,0,0,0,0,0,0,0,0,0,0,0,0,0,0,0,0,0,0,0,0,0,0,0,0,0,0,0,0,0,0,0,0,0,0,239]
[null,"Male 55-59",0,0,0,0,0,0,0,0,0,0,0,0,0,0,0,0,0,0,0,0,0,0,0,0,0,0,0,0,0,0,0,0,0,0,0,0,0,0,0,0,0,0,0,0,0,0,0,0,0,0,0,0,0,240]
[null,"Male 60-64",0,0,0,0,0,0,0,0,0,0,0,0,0,0,0,0,0,0,0,0,0,0,0,0,0,0,0,0,0,0,0,0,0,0,0,0,0,0,0,0,0,0,0,0,0,0,0,0,0,0,0,0,0,241]
[null,"Male 65-69",0,0,0,0,0,0,0,0,0,0,0,0,0,0,0,0,0,0,0,0,0,0,0,0,0,0,0,0,0,0,0,0,0,0,0,0,0,0,0,0,0,0,0,0,0,0,0,0,0,0,0,0,0,242]
[null,"Male 70-74",0,0,0,0,0,0,0,0,0,0,0,0,0,0,0,0,0,0,0,0,0,0,0,0,0,0,0,0,0,0,0,0,0,0,0,0,0,0,0,0,0,0,0,0,0,0,0,0,0,0,0,0,0,243]
[null,"Male 75-79",0,0,0,0,0,0,0,0,0,0,0,0,0,0,0,0,0,0,0,0,0,0,0,0,0,0,0,0,0,0,0,0,0,0,0,0,0,0,0,0,0,0,0,0,0,0,0,0,0,0,0,0,0,244]
[null,"Male 80-84",0,0,0,0,0,0,0,0,0,0,0,0,0,0,0,0,0,0,0,0,0,0,0,0,0,0,0,0,0,0,0,0,0,0,0,0,0,0,0,0,0,0,0,0,0,0,0,0,0,0,0,0,0,245]
[null,"Male 85-89",0,0,0,0,0,0,0,0,0,0,0,0,0,0,0,0,0,0,0,0,0,0,0,0,0,0,0,0,0,0,0,0,0,0,0,0,0,0,0,0,0,0,0,0,0,0,0,0,0,0,0,0,0,246]
[null,"Male 90+",0,0,0,0,0,0,0,0,0,0,0,0,0,0,0,0,0,0,0,0,0,0,0,0,0,0,0,0,0,0,0,0,0,0,0,0,0,0,0,0,0,0,0,0,0,0,0,0,0,0,0,0,0,247]

{"sheet":"Pop2016fractionQ1&2","index":16,"n_rows":249,"n_cols":56,"rows_kept":249,"cut":false,"hidden":true,"merged":[]}
["Q1 & Q2 subgroup's fraction of area's 2016 Q1 + Q2 population (16+ only)"]
[]
["SIMD","group","Aberdeen City Local Authority","Aberdeen City Region Deal","Aberdeenshire Local Authority","Angus Local Authority","Argyll & Bute Local Authority","Ayrshire & Arran Health Board","Borders Health Board","Clackmannanshire & Stirling IJB","Clackmannanshire Local Authority","Dumfries & Galloway Health Board","Dumfries & Galloway Local Authority","Dundee City Local Authority","East Ayrshire Local Authority","East Dunbartonshire Local Authority","East Lothian Local Authority","East Renfrewshire Local Authority","Edinburgh & SE Scotland City Region Deal","Edinburgh, City of Local Authority","Eilean Siar Local Authority","Falkirk Local Authority","Fife Health Board","Fife Local Authority","Forth Valley Health Board","Glasgow City Local Authority","Glasgow City Region Deal","Grampian Health Board","Greater Glasgow & Clyde Health Board","Highland Health Board","Highland Local Authority","Inverclyde Local Authority","Inverness & Highland City Region Deal","Lanarkshire Health Board","Lothian Health Board","Midlothian Local Authority","Moray Local Authority","North Ayrshire Local Authority","North Lanarkshire Local Authority","Orkney Health Board","Orkney Islands Local Authority","Perth & Kinross Local Authority","Renfrewshire Local Authority","Scotland","Scottish Borders Local Authority","Shetland Health Board","Shetland Islands Local Authority","South Ayrshire Local Authority","South Lanarkshire Local Authority","Stirling Local Authority","Tay Cities Region Deal ","Tayside Health Board","West Dunbartonshire Local Authority","West Lothian Local Authority","Western Isles Health Board",1]
[null,null,"popS12000033","Aber_deal","popS12000034","popS12000041","popS12000035","popS08000015","popS08000016","ClacksStirIJB","popS12000005","popS08000017","popS12000006","popS12000042","popS12000008","popS12000045","popS12000010","popS12000011","EdinSE_deal","popS12000036","popS12000013","popS12000014","popS08000018","popS12000015","popS08000019","popS12000046","GClyde_deal","popS08000020","popS08000021","popS08000022","popS12000017","popS12000018","Inver_deal","popS08000023","popS08000024","popS12000019","popS12000020","popS12000021","popS12000044","popS08000025","popS12000023","popS12000024","popS12000038","popS00000001","popS12000026","popS08000026","popS12000027","popS12000028","popS12000029","popS12000030","Tay_deal","popS08000027","popS12000039","popS12000040","popS08000028",2]
["All quintiles","16+ Males and Females",null,null,null,null,null,null,null,null,null,null,null,null,null,null,null,null,null,null,null,null,null,null,null,null,null,null,null,null,null,null,null,null,null,null,null,null,null,null,null,null,null,null,null,null,null,null,null,null,null,null,null,null,null,3]
["Q1 and Q2","16+ Males and Females",{"$f":"'Population 2016'!R6/'Population 2016'!R$6","v":1},{"$f":"'Population 2016'!AX6/'Population 2016'!AX$6","v":1},{"$f":"'Population 2016'!S6/'Population 2016'!S$6","v":1},{"$f":"'Population 2016'!T6/'Population 2016'!T$6","v":1},{"$f":"'Population 2016'!U6/'Population 2016'!U$6","v":1},{"$f":"'Population 2016'!D6/'Population 2016'!D$6","v":1},{"$f":"'Population 2016'!E6/'Population 2016'!E$6","v":1},{"$f":"'Population 2016'!BC6/'Population 2016'!BC$6","v":1},{"$f":"'Population 2016'!V6/'Population 2016'!V$6","v":1},{"$f":"'Population 2016'!F6/'Population 2016'!F$6","v":1},{"$f":"'Population 2016'!W6/'Population 2016'!W$6","v":1},{"$f":"'Population 2016'!X6/'Population 2016'!X$6","v":1},{"$f":"'Population 2016'!Y6/'Population 2016'!Y$6","v":1},{"$f":"'Population 2016'!Z6/'Population 2016'!Z$6","v":1},{"$f":"'Population 2016'!AA6/'Population 2016'!AA$6","v":1},{"$f":"'Population 2016'!AB6/'Population 2016'!AB$6","v":1},{"$f":"'Population 2016'!AY6/'Population 2016'!AY$6","v":1},{"$f":"'Population 2016'!AC6/'Population 2016'!AC$6","v":1},{"$f":"'Population 2016'!AD6/'Population 2016'!AD$6","v":1},{"$f":"'Population 2016'!AE6/'Population 2016'!AE$6","v":1},{"$f":"'Population 2016'!G6/'Population 2016'!G$6","v":1},{"$f":"'Population 2016'!AF6/'Population 2016'!AF$6","v":1},{"$f":"'Population 2016'!H6/'Population 2016'!H$6","v":1},{"$f":"'Population 2016'!AG6/'Population 2016'!AG$6","v":1},{"$f":"'Population 2016'!AZ6/'Population 2016'!AZ$6","v":1},{"$f":"'Population 2016'!I6/'Population 2016'!I$6","v":1},{"$f":"'Population 2016'!J6/'Population 2016'!J$6","v":1},{"$f":"'Population 2016'!K6/'Population 2016'!K$6","v":1},{"$f":"'Population 2016'!AH6/'Population 2016'!AH$6","v":1},{"$f":"'Population 2016'!AI6/'Population 2016'!AI$6","v":1},{"$f":"'Population 2016'!BA6/'Population 2016'!BA$6","v":1},{"$f":"'Population 2016'!L6/'Population 2016'!L$6","v":1},{"$f":"'Population 2016'!M6/'Population 2016'!M$6","v":1},{"$f":"'Population 2016'!AJ6/'Population 2016'!AJ$6","v":1},{"$f":"'Population 2016'!AK6/'Population 2016'!AK$6","v":1},{"$f":"'Population 2016'!AL6/'Population 2016'!AL$6","v":1},{"$f":"'Population 2016'!AM6/'Population 2016'!AM$6","v":1},{"$f":"'Population 2016'!N6/'Population 2016'!N$6","v":1},{"$f":"'Population 2016'!AN6/'Population 2016'!AN$6","v":1},{"$f":"'Population 2016'!AO6/'Population 2016'!AO$6","v":1},{"$f":"'Population 2016'!AP6/'Population 2016'!AP$6","v":1},{"$f":"'Population 2016'!C6/'Population 2016'!C$6","v":1},{"$f":"'Population 2016'!AQ6/'Population 2016'!AQ$6","v":1},{"$f":"'Population 2016'!O6/'Population 2016'!O$6","v":1},{"$f":"'Population 2016'!AR6/'Population 2016'!AR$6","v":1},{"$f":"'Population 2016'!AS6/'Population 2016'!AS$6","v":1},{"$f":"'Population 2016'!AT6/'Population 2016'!AT$6","v":1},{"$f":"'Population 2016'!AU6/'Population 2016'!AU$6","v":1},{"$f":"'Population 2016'!BB6/'Population 2016'!BB$6","v":1},{"$f":"'Population 2016'!P6/'Population 2016'!P$6","v":1},{"$f":"'Population 2016'!AV6/'Population 2016'!AV$6","v":1},{"$f":"'Population 2016'!AW6/'Population 2016'!AW$6","v":1},{"$f":"'Population 2016'!Q6/'Population 2016'!Q$6","v":1},4]
["SIMD Q1 (most deprived)","16+ Males and Females",null,null,null,null,null,null,null,null,null,null,null,null,null,null,null,null,null,null,null,null,null,null,null,null,null,null,null,null,null,null,null,null,null,null,null,null,null,null,null,null,null,null,null,null,null,null,null,null,null,null,null,null,null,5]
["SIMD Q2",null,null,null,null,null,null,null,null,null,null,null,null,null,null,null,null,null,null,null,null,null,null,null,null,null,null,null,null,null,null,null,null,null,null,null,null,null,null,null,null,null,null,null,null,null,null,null,null,null,null,null,null,null,null,6]
["SIMD Q3",null,null,null,null,null,null,null,null,null,null,null,null,null,null,null,null,null,null,null,null,null,null,null,null,null,null,null,null,null,null,null,null,null,null,null,null,null,null,null,null,null,null,null,null,null,null,null,null,null,null,null,null,null,null,7]
["SIMD Q4",null,null,null,null,null,null,null,null,null,null,null,null,null,null,null,null,null,null,null,null,null,null,null,null,null,null,null,null,null,null,null,null,null,null,null,null,null,null,null,null,null,null,null,null,null,null,null,null,null,null,null,null,null,null,8]
["SIMD Q5 (least deprived)",null,null,null,null,null,null,null,null,null,null,null,null,null,null,null,null,null,null,null,null,null,null,null,null,null,null,null,null,null,null,null,null,null,null,null,null,null,null,null,null,null,null,null,null,null,null,null,null,null,null,null,null,null,null,9]
["SIMD Q1 (most deprived)","16+ Females",null,null,null,null,null,null,null,null,null,null,null,null,null,null,null,null,null,null,null,null,null,null,null,null,null,null,null,null,null,null,null,null,null,null,null,null,null,null,null,null,null,null,null,null,null,null,null,null,null,null,null,null,null,10]
["SIMD Q2",null,null,null,null,null,null,null,null,null,null,null,null,null,null,null,null,null,null,null,null,null,null,null,null,null,null,null,null,null,null,null,null,null,null,null,null,null,null,null,null,null,null,null,null,null,null,null,null,null,null,null,null,null,null,11]
["SIMD Q3",null,null,null,null,null,null,null,null,null,null,null,null,null,null,null,null,null,null,null,null,null,null,null,null,null,null,null,null,null,null,null,null,null,null,null,null,null,null,null,null,null,null,null,null,null,null,null,null,null,null,null,null,null,null,12]
["SIMD Q4",null,null,null,null,null,null,null,null,null,null,null,null,null,null,null,null,null,null,null,null,null,null,null,null,null,null,null,null,null,null,null,null,null,null,null,null,null,null,null,null,null,null,null,null,null,null,null,null,null,null,null,null,null,null,13]
["SIMD Q5 (least deprived)",null,null,null,null,null,null,null,null,null,null,null,null,null,null,null,null,null,null,null,null,null,null,null,null,null,null,null,null,null,null,null,null,null,null,null,null,null,null,null,null,null,null,null,null,null,null,null,null,null,null,null,null,null,null,14]
["SIMD Q1 (most deprived)","16+ Males",null,null,null,null,null,null,null,null,null,null,null,null,null,null,null,null,null,null,null,null,null,null,null,null,null,null,null,null,null,null,null,null,null,null,null,null,null,null,null,null,null,null,null,null,null,null,null,null,null,null,null,null,null,15]
["SIMD Q2",null,null,null,null,null,null,null,null,null,null,null,null,null,null,null,null,null,null,null,null,null,null,null,null,null,null,null,null,null,null,null,null,null,null,null,null,null,null,null,null,null,null,null,null,null,null,null,null,null,null,null,null,null,null,16]
["SIMD Q3",null,null,null,null,null,null,null,null,null,null,null,null,null,null,null,null,null,null,null,null,null,null,null,null,null,null,null,null,null,null,null,null,null,null,null,null,null,null,null,null,null,null,null,null,null,null,null,null,null,null,null,null,null,null,17]
["SIMD Q4",null,null,null,null,null,null,null,null,null,null,null,null,null,null,null,null,null,null,null,null,null,null,null,null,null,null,null,null,null,null,null,null,null,null,null,null,null,null,null,null,null,null,null,null,null,null,null,null,null,null,null,null,null,null,18]
["SIMD Q5 (least deprived)",null,null,null,null,null,null,null,null,null,null,null,null,null,null,null,null,null,null,null,null,null,null,null,null,null,null,null,null,null,null,null,null,null,null,null,null,null,null,null,null,null,null,null,null,null,null,null,null,null,null,null,null,null,null,19]
["All quintiles","Female 0-4",null,null,null,null,null,null,null,null,null,null,null,null,null,null,null,null,null,null,null,null,null,null,null,null,null,null,null,null,null,null,null,null,null,null,null,null,null,null,null,null,null,null,null,null,null,null,null,null,null,null,null,null,null,20]
[null,"Female 5-9",null,null,null,null,null,null,null,null,null,null,null,null,null,null,null,null,null,null,null,null,null,null,null,null,null,null,null,null,null,null,null,null,null,null,null,null,null,null,null,null,null,null,null,null,null,null,null,null,null,null,null,null,null,21]
[null,"Female 10-15",null,null,null,null,null,null,null,null,null,null,null,null,null,null,null,null,null,null,null,null,null,null,null,null,null,null,null,null,null,null,null,null,null,null,null,null,null,null,null,null,null,null,null,null,null,null,null,null,null,null,null,null,null,22]
[null,"Female 16-19",null,null,null,null,null,null,null,null,null,null,null,null,null,null,null,null,null,null,null,null,null,null,null,null,null,null,null,null,null,null,null,null,null,null,null,null,null,null,null,null,null,null,null,null,null,null,null,null,null,null,null,null,null,23]
[null,"Female 20-24",null,null,null,null,null,null,null,null,null,null,null,null,null,null,null,null,null,null,null,null,null,null,null,null,null,null,null,null,null,null,null,null,null,null,null,null,null,null,null,null,null,null,null,null,null,null,null,null,null,null,null,null,null,24]
[null,"Female 25-29",null,null,null,null,null,null,null,null,null,null,null,null,null,null,null,null,null,null,null,null,null,null,null,null,null,null,null,null,null,null,null,null,null,null,null,null,null,null,null,null,null,null,null,null,null,null,null,null,null,null,null,null,null,25]
[null,"Female 30-34",null,null,null,null,null,null,null,null,null,null,null,null,null,null,null,null,null,null,null,null,null,null,null,null,null,null,null,null,null,null,null,null,null,null,null,null,null,null,null,null,null,null,null,null,null,null,null,null,null,null,null,null,null,26]
[null,"Female 35-39",null,null,null,null,null,null,null,null,null,null,null,null,null,null,null,null,null,null,null,null,null,null,null,null,null,null,null,null,null,null,null,null,null,null,null,null,null,null,null,null,null,null,null,null,null,null,null,null,null,null,null,null,null,27]
[null,"Female 40-44",null,null,null,null,null,null,null,null,null,null,null,null,null,null,null,null,null,null,null,null,null,null,null,null,null,null,null,null,null,null,null,null,null,null,null,null,null,null,null,null,null,null,null,null,null,null,null,null,null,null,null,null,null,28]
[null,"Female 45-49",null,null,null,null,null,null,null,null,null,null,null,null,null,null,null,null,null,null,null,null,null,null,null,null,null,null,null,null,null,null,null,null,null,null,null,null,null,null,null,null,null,null,null,null,null,null,null,null,null,null,null,null,null,29]
[null,"Female 50-54",null,null,null,null,null,null,null,null,null,null,null,null,null,null,null,null,null,null,null,null,null,null,null,null,null,null,null,null,null,null,null,null,null,null,null,null,null,null,null,null,null,null,null,null,null,null,null,null,null,null,null,null,null,30]
[null,"Female 55-59",null,null,null,null,null,null,null,null,null,null,null,null,null,null,null,null,null,null,null,null,null,null,null,null,null,null,null,null,null,null,null,null,null,null,null,null,null,null,null,null,null,null,null,null,null,null,null,null,null,null,null,null,null,31]
[null,"Female 60-64",null,null,null,null,null,null,null,null,null,null,null,null,null,null,null,null,null,null,null,null,null,null,null,null,null,null,null,null,null,null,null,null,null,null,null,null,null,null,null,null,null,null,null,null,null,null,null,null,null,null,null,null,null,32]
[null,"Female 65-69",null,null,null,null,null,null,null,null,null,null,null,null,null,null,null,null,null,null,null,null,null,null,null,null,null,null,null,null,null,null,null,null,null,null,null,null,null,null,null,null,null,null,null,null,null,null,null,null,null,null,null,null,null,33]
[null,"Female 70-74",null,null,null,null,null,null,null,null,null,null,null,null,null,null,null,null,null,null,null,null,null,null,null,null,null,null,null,null,null,null,null,null,null,null,null,null,null,null,null,null,null,null,null,null,null,null,null,null,null,null,null,null,null,34]
[null,"Female 75-79",null,null,null,null,null,null,null,null,null,null,null,null,null,null,null,null,null,null,null,null,null,null,null,null,null,null,null,null,null,null,null,null,null,null,null,null,null,null,null,null,null,null,null,null,null,null,null,null,null,null,null,null,null,35]
[null,"Female 80-84",null,null,null,null,null,null,null,null,null,null,null,null,null,null,null,null,null,null,null,null,null,null,null,null,null,null,null,null,null,null,null,null,null,null,null,null,null,null,null,null,null,null,null,null,null,null,null,null,null,null,null,null,null,36]
[null,"Female 85-89",null,null,null,null,null,null,null,null,null,null,null,null,null,null,null,null,null,null,null,null,null,null,null,null,null,null,null,null,null,null,null,null,null,null,null,null,null,null,null,null,null,null,null,null,null,null,null,null,null,null,null,null,null,37]
[null,"Female 90+",null,null,null,null,null,null,null,null,null,null,null,null,null,null,null,null,null,null,null,null,null,null,null,null,null,null,null,null,null,null,null,null,null,null,null,null,null,null,null,null,null,null,null,null,null,null,null,null,null,null,null,null,null,38]
[null,"Male 0-4",null,null,null,null,null,null,null,null,null,null,null,null,null,null,null,null,null,null,null,null,null,null,null,null,null,null,null,null,null,null,null,null,null,null,null,null,null,null,null,null,null,null,null,null,null,null,null,null,null,null,null,null,null,39]
[null,"Male 5-9",null,null,null,null,null,null,null,null,null,null,null,null,null,null,null,null,null,null,null,null,null,null,null,null,null,null,null,null,null,null,null,null,null,null,null,null,null,null,null,null,null,null,null,null,null,null,null,null,null,null,null,null,null,40]
[null,"Male 10-15",null,null,null,null,null,null,null,null,null,null,null,null,null,null,null,null,null,null,null,null,null,null,null,null,null,null,null,null,null,null,null,null,null,null,null,null,null,null,null,null,null,null,null,null,null,null,null,null,null,null,null,null,null,41]
[null,"Male 16-19",null,null,null,null,null,null,null,null,null,null,null,null,null,null,null,null,null,null,null,null,null,null,null,null,null,null,null,null,null,null,null,null,null,null,null,null,null,null,null,null,null,null,null,null,null,null,null,null,null,null,null,null,null,42]
[null,"Male 20-24",null,null,null,null,null,null,null,null,null,null,null,null,null,null,null,null,null,null,null,null,null,null,null,null,null,null,null,null,null,null,null,null,null,null,null,null,null,null,null,null,null,null,null,null,null,null,null,null,null,null,null,null,null,43]
[null,"Male 25-29",null,null,null,null,null,null,null,null,null,null,null,null,null,null,null,null,null,null,null,null,null,null,null,null,null,null,null,null,null,null,null,null,null,null,null,null,null,null,null,null,null,null,null,null,null,null,null,null,null,null,null,null,null,44]
[null,"Male 30-34",null,null,null,null,null,null,null,null,null,null,null,null,null,null,null,null,null,null,null,null,null,null,null,null,null,null,null,null,null,null,null,null,null,null,null,null,null,null,null,null,null,null,null,null,null,null,null,null,null,null,null,null,null,45]
[null,"Male 35-39",null,null,null,null,null,null,null,null,null,null,null,null,null,null,null,null,null,null,null,null,null,null,null,null,null,null,null,null,null,null,null,null,null,null,null,null,null,null,null,null,null,null,null,null,null,null,null,null,null,null,null,null,null,46]
[null,"Male 40-44",null,null,null,null,null,null,null,null,null,null,null,null,null,null,null,null,null,null,null,null,null,null,null,null,null,null,null,null,null,null,null,null,null,null,null,null,null,null,null,null,null,null,null,null,null,null,null,null,null,null,null,null,null,47]
[null,"Male 45-49",null,null,null,null,null,null,null,null,null,null,null,null,null,null,null,null,null,null,null,null,null,null,null,null,null,null,null,null,null,null,null,null,null,null,null,null,null,null,null,null,null,null,null,null,null,null,null,null,null,null,null,null,null,48]
[null,"Male 50-54",null,null,null,null,null,null,null,null,null,null,null,null,null,null,null,null,null,null,null,null,null,null,null,null,null,null,null,null,null,null,null,null,null,null,null,null,null,null,null,null,null,null,null,null,null,null,null,null,null,null,null,null,null,49]
[null,"Male 55-59",null,null,null,null,null,null,null,null,null,null,null,null,null,null,null,null,null,null,null,null,null,null,null,null,null,null,null,null,null,null,null,null,null,null,null,null,null,null,null,null,null,null,null,null,null,null,null,null,null,null,null,null,null,50]
[null,"Male 60-64",null,null,null,null,null,null,null,null,null,null,null,null,null,null,null,null,null,null,null,null,null,null,null,null,null,null,null,null,null,null,null,null,null,null,null,null,null,null,null,null,null,null,null,null,null,null,null,null,null,null,null,null,null,51]
[null,"Male 65-69",null,null,null,null,null,null,null,null,null,null,null,null,null,null,null,null,null,null,null,null,null,null,null,null,null,null,null,null,null,null,null,null,null,null,null,null,null,null,null,null,null,null,null,null,null,null,null,null,null,null,null,null,null,52]
[null,"Male 70-74",null,null,null,null,null,null,null,null,null,null,null,null,null,null,null,null,null,null,null,null,null,null,null,null,null,null,null,null,null,null,null,null,null,null,null,null,null,null,null,null,null,null,null,null,null,null,null,null,null,null,null,null,null,53]
[null,"Male 75-79",null,null,null,null,null,null,null,null,null,null,null,null,null,null,null,null,null,null,null,null,null,null,null,null,null,null,null,null,null,null,null,null,null,null,null,null,null,null,null,null,null,null,null,null,null,null,null,null,null,null,null,null,null,54]
[null,"Male 80-84",null,null,null,null,null,null,null,null,null,null,null,null,null,null,null,null,null,null,null,null,null,null,null,null,null,null,null,null,null,null,null,null,null,null,null,null,null,null,null,null,null,null,null,null,null,null,null,null,null,null,null,null,null,55]
[null,"Male 85-89",null,null,null,null,null,null,null,null,null,null,null,null,null,null,null,null,null,null,null,null,null,null,null,null,null,null,null,null,null,null,null,null,null,null,null,null,null,null,null,null,null,null,null,null,null,null,null,null,null,null,null,null,null,56]
[null,"Male 90+",null,null,null,null,null,null,null,null,null,null,null,null,null,null,null,null,null,null,null,null,null,null,null,null,null,null,null,null,null,null,null,null,null,null,null,null,null,null,null,null,null,null,null,null,null,null,null,null,null,null,null,null,null,57]
["SIMD Q1 (most deprived)","Female 0-4",{"$f":"'Population 2016'!C60/'Population 2016'!C$6","v":0},{"$f":"'Population 2016'!D60/'Population 2016'!D$6","v":0},{"$f":"'Population 2016'!E60/'Population 2016'!E$6","v":0},{"$f":"'Population 2016'!F60/'Population 2016'!F$6","v":0},{"$f":"'Population 2016'!G60/'Population 2016'!G$6","v":0},{"$f":"'Population 2016'!H60/'Population 2016'!H$6","v":0},{"$f":"'Population 2016'!I60/'Population 2016'!I$6","v":0},{"$f":"'Population 2016'!J60/'Population 2016'!J$6","v":0},{"$f":"'Population 2016'!K60/'Population 2016'!K$6","v":0},{"$f":"'Population 2016'!L60/'Population 2016'!L$6","v":0},{"$f":"'Population 2016'!M60/'Population 2016'!M$6","v":0},{"$f":"'Population 2016'!N60/'Population 2016'!N$6","v":0},{"$f":"'Population 2016'!O60/'Population 2016'!O$6","v":0},{"$f":"'Population 2016'!P60/'Population 2016'!P$6","v":0},{"$f":"'Population 2016'!Q60/'Population 2016'!Q$6","v":0},{"$f":"'Population 2016'!R60/'Population 2016'!R$6","v":0},{"$f":"'Population 2016'!S60/'Population 2016'!S$6","v":0},{"$f":"'Population 2016'!T60/'Population 2016'!T$6","v":0},{"$f":"'Population 2016'!U60/'Population 2016'!U$6","v":0},{"$f":"'Population 2016'!V60/'Population 2016'!V$6","v":0},{"$f":"'Population 2016'!W60/'Population 2016'!W$6","v":0},{"$f":"'Population 2016'!X60/'Population 2016'!X$6","v":0},{"$f":"'Population 2016'!Y60/'Population 2016'!Y$6","v":0},{"$f":"'Population 2016'!Z60/'Population 2016'!Z$6","v":0},{"$f":"'Population 2016'!AA60/'Population 2016'!AA$6","v":0},{"$f":"'Population 2016'!AB60/'Population 2016'!AB$6","v":0},{"$f":"'Population 2016'!AC60/'Population 2016'!AC$6","v":0},{"$f":"'Population 2016'!AD60/'Population 2016'!AD$6","v":0},{"$f":"'Population 2016'!AE60/'Population 2016'!AE$6","v":0},{"$f":"'Population 2016'!AF60/'Population 2016'!AF$6","v":0},{"$f":"'Population 2016'!AG60/'Population 2016'!AG$6","v":0},{"$f":"'Population 2016'!AH60/'Population 2016'!AH$6","v":0},{"$f":"'Population 2016'!AI60/'Population 2016'!AI$6","v":0},{"$f":"'Population 2016'!AJ60/'Population 2016'!AJ$6","v":0},{"$f":"'Population 2016'!AK60/'Population 2016'!AK$6","v":0},{"$f":"'Population 2016'!AL60/'Population 2016'!AL$6","v":0},{"$f":"'Population 2016'!AM60/'Population 2016'!AM$6","v":0},{"$f":"'Population 2016'!AN60/'Population 2016'!AN$6","v":0},{"$f":"'Population 2016'!AO60/'Population 2016'!AO$6","v":0},{"$f":"'Population 2016'!AP60/'Population 2016'!AP$6","v":0},{"$f":"'Population 2016'!AQ60/'Population 2016'!AQ$6","v":0},{"$f":"'Population 2016'!AR60/'Population 2016'!AR$6","v":0},{"$f":"'Population 2016'!AS60/'Population 2016'!AS$6","v":0},{"$f":"'Population 2016'!AT60/'Population 2016'!AT$6","v":0},{"$f":"'Population 2016'!AU60/'Population 2016'!AU$6","v":0},{"$f":"'Population 2016'!AV60/'Population 2016'!AV$6","v":0},{"$f":"'Population 2016'!AW60/'Population 2016'!AW$6","v":0},{"$f":"'Population 2016'!AX60/'Population 2016'!AX$6","v":0},{"$f":"'Population 2016'!AY60/'Population 2016'!AY$6","v":0},{"$f":"'Population 2016'!AZ60/'Population 2016'!AZ$6","v":0},{"$f":"'Population 2016'!BA60/'Population 2016'!BA$6","v":0},{"$f":"'Population 2016'!BB60/'Population 2016'!BB$6","v":0},{"$f":"'Population 2016'!BC60/'Population 2016'!BC$6","v":0},58]
[null,"Female 5-9",{"$f":"'Population 2016'!C61/'Population 2016'!C$6","v":0},{"$f":"'Population 2016'!D61/'Population 2016'!D$6","v":0},{"$f":"'Population 2016'!E61/'Population 2016'!E$6","v":0},{"$f":"'Population 2016'!F61/'Population 2016'!F$6","v":0},{"$f":"'Population 2016'!G61/'Population 2016'!G$6","v":0},{"$f":"'Population 2016'!H61/'Population 2016'!H$6","v":0},{"$f":"'Population 2016'!I61/'Population 2016'!I$6","v":0},{"$f":"'Population 2016'!J61/'Population 2016'!J$6","v":0},{"$f":"'Population 2016'!K61/'Population 2016'!K$6","v":0},{"$f":"'Population 2016'!L61/'Population 2016'!L$6","v":0},{"$f":"'Population 2016'!M61/'Population 2016'!M$6","v":0},{"$f":"'Population 2016'!N61/'Population 2016'!N$6","v":0},{"$f":"'Population 2016'!O61/'Population 2016'!O$6","v":0},{"$f":"'Population 2016'!P61/'Population 2016'!P$6","v":0},{"$f":"'Population 2016'!Q61/'Population 2016'!Q$6","v":0},{"$f":"'Population 2016'!R61/'Population 2016'!R$6","v":0},{"$f":"'Population 2016'!S61/'Population 2016'!S$6","v":0},{"$f":"'Population 2016'!T61/'Population 2016'!T$6","v":0},{"$f":"'Population 2016'!U61/'Population 2016'!U$6","v":0},{"$f":"'Population 2016'!V61/'Population 2016'!V$6","v":0},{"$f":"'Population 2016'!W61/'Population 2016'!W$6","v":0},{"$f":"'Population 2016'!X61/'Population 2016'!X$6","v":0},{"$f":"'Population 2016'!Y61/'Population 2016'!Y$6","v":0},{"$f":"'Population 2016'!Z61/'Population 2016'!Z$6","v":0},{"$f":"'Population 2016'!AA61/'Population 2016'!AA$6","v":0},{"$f":"'Population 2016'!AB61/'Population 2016'!AB$6","v":0},{"$f":"'Population 2016'!AC61/'Population 2016'!AC$6","v":0},{"$f":"'Population 2016'!AD61/'Population 2016'!AD$6","v":0},{"$f":"'Population 2016'!AE61/'Population 2016'!AE$6","v":0},{"$f":"'Population 2016'!AF61/'Population 2016'!AF$6","v":0},{"$f":"'Population 2016'!AG61/'Population 2016'!AG$6","v":0},{"$f":"'Population 2016'!AH61/'Population 2016'!AH$6","v":0},{"$f":"'Population 2016'!AI61/'Population 2016'!AI$6","v":0},{"$f":"'Population 2016'!AJ61/'Population 2016'!AJ$6","v":0},{"$f":"'Population 2016'!AK61/'Population 2016'!AK$6","v":0},{"$f":"'Population 2016'!AL61/'Population 2016'!AL$6","v":0},{"$f":"'Population 2016'!AM61/'Population 2016'!AM$6","v":0},{"$f":"'Population 2016'!AN61/'Population 2016'!AN$6","v":0},{"$f":"'Population 2016'!AO61/'Population 2016'!AO$6","v":0},{"$f":"'Population 2016'!AP61/'Population 2016'!AP$6","v":0},{"$f":"'Population 2016'!AQ61/'Population 2016'!AQ$6","v":0},{"$f":"'Population 2016'!AR61/'Population 2016'!AR$6","v":0},{"$f":"'Population 2016'!AS61/'Population 2016'!AS$6","v":0},{"$f":"'Population 2016'!AT61/'Population 2016'!AT$6","v":0},{"$f":"'Population 2016'!AU61/'Population 2016'!AU$6","v":0},{"$f":"'Population 2016'!AV61/'Population 2016'!AV$6","v":0},{"$f":"'Population 2016'!AW61/'Population 2016'!AW$6","v":0},{"$f":"'Population 2016'!AX61/'Population 2016'!AX$6","v":0},{"$f":"'Population 2016'!AY61/'Population 2016'!AY$6","v":0},{"$f":"'Population 2016'!AZ61/'Population 2016'!AZ$6","v":0},{"$f":"'Population 2016'!BA61/'Population 2016'!BA$6","v":0},{"$f":"'Population 2016'!BB61/'Population 2016'!BB$6","v":0},{"$f":"'Population 2016'!BC61/'Population 2016'!BC$6","v":0},59]
[null,"Female 10-15",{"$f":"'Population 2016'!C62/'Population 2016'!C$6","v":0},{"$f":"'Population 2016'!D62/'Population 2016'!D$6","v":0},{"$f":"'Population 2016'!E62/'Population 2016'!E$6","v":0},{"$f":"'Population 2016'!F62/'Population 2016'!F$6","v":0},{"$f":"'Population 2016'!G62/'Population 2016'!G$6","v":0},{"$f":"'Population 2016'!H62/'Population 2016'!H$6","v":0},{"$f":"'Population 2016'!I62/'Population 2016'!I$6","v":0},{"$f":"'Population 2016'!J62/'Population 2016'!J$6","v":0},{"$f":"'Population 2016'!K62/'Population 2016'!K$6","v":0},{"$f":"'Population 2016'!L62/'Population 2016'!L$6","v":0},{"$f":"'Population 2016'!M62/'Population 2016'!M$6","v":0},{"$f":"'Population 2016'!N62/'Population 2016'!N$6","v":0},{"$f":"'Population 2016'!O62/'Population 2016'!O$6","v":0},{"$f":"'Population 2016'!P62/'Population 2016'!P$6","v":0},{"$f":"'Population 2016'!Q62/'Population 2016'!Q$6","v":0},{"$f":"'Population 2016'!R62/'Population 2016'!R$6","v":0},{"$f":"'Population 2016'!S62/'Population 2016'!S$6","v":0},{"$f":"'Population 2016'!T62/'Population 2016'!T$6","v":0},{"$f":"'Population 2016'!U62/'Population 2016'!U$6","v":0},{"$f":"'Population 2016'!V62/'Population 2016'!V$6","v":0},{"$f":"'Population 2016'!W62/'Population 2016'!W$6","v":0},{"$f":"'Population 2016'!X62/'Population 2016'!X$6","v":0},{"$f":"'Population 2016'!Y62/'Population 2016'!Y$6","v":0},{"$f":"'Population 2016'!Z62/'Population 2016'!Z$6","v":0},{"$f":"'Population 2016'!AA62/'Population 2016'!AA$6","v":0},{"$f":"'Population 2016'!AB62/'Population 2016'!AB$6","v":0},{"$f":"'Population 2016'!AC62/'Population 2016'!AC$6","v":0},{"$f":"'Population 2016'!AD62/'Population 2016'!AD$6","v":0},{"$f":"'Population 2016'!AE62/'Population 2016'!AE$6","v":0},{"$f":"'Population 2016'!AF62/'Population 2016'!AF$6","v":0},{"$f":"'Population 2016'!AG62/'Population 2016'!AG$6","v":0},{"$f":"'Population 2016'!AH62/'Population 2016'!AH$6","v":0},{"$f":"'Population 2016'!AI62/'Population 2016'!AI$6","v":0},{"$f":"'Population 2016'!AJ62/'Population 2016'!AJ$6","v":0},{"$f":"'Population 2016'!AK62/'Population 2016'!AK$6","v":0},{"$f":"'Population 2016'!AL62/'Population 2016'!AL$6","v":0},{"$f":"'Population 2016'!AM62/'Population 2016'!AM$6","v":0},{"$f":"'Population 2016'!AN62/'Population 2016'!AN$6","v":0},{"$f":"'Population 2016'!AO62/'Population 2016'!AO$6","v":0},{"$f":"'Population 2016'!AP62/'Population 2016'!AP$6","v":0},{"$f":"'Population 2016'!AQ62/'Population 2016'!AQ$6","v":0},{"$f":"'Population 2016'!AR62/'Population 2016'!AR$6","v":0},{"$f":"'Population 2016'!AS62/'Population 2016'!AS$6","v":0},{"$f":"'Population 2016'!AT62/'Population 2016'!AT$6","v":0},{"$f":"'Population 2016'!AU62/'Population 2016'!AU$6","v":0},{"$f":"'Population 2016'!AV62/'Population 2016'!AV$6","v":0},{"$f":"'Population 2016'!AW62/'Population 2016'!AW$6","v":0},{"$f":"'Population 2016'!AX62/'Population 2016'!AX$6","v":0},{"$f":"'Population 2016'!AY62/'Population 2016'!AY$6","v":0},{"$f":"'Population 2016'!AZ62/'Population 2016'!AZ$6","v":0},{"$f":"'Population 2016'!BA62/'Population 2016'!BA$6","v":0},{"$f":"'Population 2016'!BB62/'Population 2016'!BB$6","v":0},{"$f":"'Population 2016'!BC62/'Population 2016'!BC$6","v":0},60]
[null,"Female 16-19",{"$f":"'Population 2016'!C63/'Population 2016'!C$6","v":6.5803629061177652E-3},{"$f":"'Population 2016'!D63/'Population 2016'!D$6","v":6.264222007166584E-3},{"$f":"'Population 2016'!E63/'Population 2016'!E$6","v":5.4121967720112112E-3},{"$f":"'Population 2016'!F63/'Population 2016'!F$6","v":9.6078940534925997E-3},{"$f":"'Population 2016'!G63/'Population 2016'!G$6","v":8.1719467144296433E-3},{"$f":"'Population 2016'!H63/'Population 2016'!H$6","v":1.6158171205065675E-2},{"$f":"'Population 2016'!I63/'Population 2016'!I$6","v":8.206273671943284E-3},{"$f":"'Population 2016'!J63/'Population 2016'!J$6","v":1.3940716749982398E-2},{"$f":"'Population 2016'!K63/'Population 2016'!K$6","v":1.302776721186763E-2},{"$f":"'Population 2016'!L63/'Population 2016'!L$6","v":7.0394207562349152E-3},{"$f":"'Population 2016'!M63/'Population 2016'!M$6","v":7.0394207562349152E-3},{"$f":"'Population 2016'!N63/'Population 2016'!N$6","v":1.8512255730859149E-2},{"$f":"'Population 2016'!O63/'Population 2016'!O$6","v":1.4947426293725518E-2},{"$f":"'Population 2016'!P63/'Population 2016'!P$6","v":5.9734630226780149E-3},{"$f":"'Population 2016'!Q63/'Population 2016'!Q$6","v":3.1942733990147783E-3},{"$f":"'Population 2016'!R63/'Population 2016'!R$6","v":1.425644527915315E-2},{"$f":"'Population 2016'!S63/'Population 2016'!S$6","v":1.186092025379055E-2},{"$f":"'Population 2016'!T63/'Population 2016'!T$6","v":1.2676685518741097E-2},{"$f":"'Population 2016'!U63/'Population 2016'!U$6","v":0},{"$f":"'Population 2016'!V63/'Population 2016'!V$6","v":8.3781108597285065E-3},{"$f":"'Population 2016'!W63/'Population 2016'!W$6","v":1.5162694300518136E-2},{"$f":"'Population 2016'!X63/'Population 2016'!X$6","v":1.5162694300518136E-2},{"$f":"'Population 2016'!Y63/'Population 2016'!Y$6","v":1.0767757221354035E-2},{"$f":"'Population 2016'!Z63/'Population 2016'!Z$6","v":1.8286439962205796E-2},{"$f":"'Population 2016'!AA63/'Population 2016'!AA$6","v":1.6038295931057326E-2},{"$f":"'Population 2016'!AB63/'Population 2016'!AB$6","v":5.5513188587834198E-3},{"$f":"'Population 2016'!AC63/'Population 2016'!AC$6","v":1.7192344951815524E-2},{"$f":"'Population 2016'!AD63/'Population 2016'!AD$6","v":8.1221428254405047E-3},{"$f":"'Population 2016'!AE63/'Population 2016'!AE$6","v":8.1042492006354692E-3},{"$f":"'Population 2016'!AF63/'Population 2016'!AF$6","v":1.9028653612125235E-2},{"$f":"'Population 2016'!AG63/'Population 2016'!AG$6","v":8.1042492006354692E-3},{"$f":"'Population 2016'!AH63/'Population 2016'!AH$6","v":1.3964107279586321E-2},{"$f":"'Population 2016'!AI63/'Population 2016'!AI$6","v":1.0509046317648586E-2},{"$f":"'Population 2016'!AJ63/'Population 2016'!AJ$6","v":6.2895011351782534E-3},{"$f":"'Population 2016'!AK63/'Population 2016'!AK$6","v":1.259644150527476E-3},{"$f":"'Population 2016'!AL63/'Population 2016'!AL$6","v":2.0000592171492863E-2},{"$f":"'Population 2016'!AM63/'Population 2016'!AM$6","v":1.5489263055148854E-2},{"$f":"'Population 2016'!AN63/'Population 2016'!AN$6","v":0},{"$f":"'Population 2016'!AO63/'Population 2016'!AO$6","v":0},{"$f":"'Population 2016'!AP63/'Population 2016'!AP$6","v":8.7824542880453032E-3},{"$f":"'Population 2016'!AQ63/'Population 2016'!AQ$6","v":1.5397070729373666E-2},{"$f":"'Population 2016'!AR63/'Population 2016'!AR$6","v":1.36452065432784E-2},{"$f":"'Population 2016'!AS63/'Population 2016'!AS$6","v":8.206273671943284E-3},{"$f":"'Population 2016'!AT63/'Population 2016'!AT$6","v":0},{"$f":"'Population 2016'!AU63/'Population 2016'!AU$6","v":0},{"$f":"'Population 2016'!AV63/'Population 2016'!AV$6","v":1.1652567615870368E-2},{"$f":"'Population 2016'!AW63/'Population 2016'!AW$6","v":1.1916559513181926E-2},{"$f":"'Population 2016'!AX63/'Population 2016'!AX$6","v":1.483060666450387E-2},{"$f":"'Population 2016'!AY63/'Population 2016'!AY$6","v":1.5018681984891025E-2},{"$f":"'Population 2016'!AZ63/'Population 2016'!AZ$6","v":1.4863512934114621E-2},{"$f":"'Population 2016'!BA63/'Population 2016'!BA$6","v":1.6038092961169884E-2},{"$f":"'Population 2016'!BB63/'Population 2016'!BB$6","v":1.1650139347981075E-2},{"$f":"'Population 2016'!BC63/'Population 2016'!BC$6","v":0},61]
[null,"Female 20-24",{"$f":"'Population 2016'!C64/'Population 2016'!C$6","v":1.4021372731836764E-2},{"$f":"'Population 2016'!D64/'Population 2016'!D$6","v":1.2842309000078466E-2},{"$f":"'Population 2016'!E64/'Population 2016'!E$6","v":9.6646370928771628E-3},{"$f":"'Population 2016'!F64/'Population 2016'!F$6","v":1.3849216653683025E-2},{"$f":"'Population 2016'!G64/'Population 2016'!G$6","v":1.1642225456173739E-2},{"$f":"'Population 2016'!H64/'Population 2016'!H$6","v":2.4189557409207176E-2},{"$f":"'Population 2016'!I64/'Population 2016'!I$6","v":1.053704962610469E-2},{"$f":"'Population 2016'!J64/'Population 2016'!J$6","v":2.2460043652749419E-2},{"$f":"'Population 2016'!K64/'Population 2016'!K$6","v":2.1015595283377712E-2},{"$f":"'Population 2016'!L64/'Population 2016'!L$6","v":1.1218378475015642E-2},{"$f":"'Population 2016'!M64/'Population 2016'!M$6","v":1.1218378475015642E-2},{"$f":"'Population 2016'!N64/'Population 2016'!N$6","v":3.1525239306562369E-2},{"$f":"'Population 2016'!O64/'Population 2016'!O$6","v":2.3417634526836643E-2},{"$f":"'Population 2016'!P64/'Population 2016'!P$6","v":9.3566633187080403E-3},{"$f":"'Population 2016'!Q64/'Population 2016'!Q$6","v":4.6182266009852221E-3},{"$f":"'Population 2016'!R64/'Population 2016'!R$6","v":1.9549257298958511E-2},{"$f":"'Population 2016'!S64/'Population 2016'!S$6","v":1.6472185102957733E-2},{"$f":"'Population 2016'!T64/'Population 2016'!T$6","v":2.0026465952479287E-2},{"$f":"'Population 2016'!U64/'Population 2016'!U$6","v":0},{"$f":"'Population 2016'!V64/'Population 2016'!V$6","v":1.3716063348416289E-2},{"$f":"'Population 2016'!W64/'Population 2016'!W$6","v":1.8636269430051814E-2},{"$f":"'Population 2016'!X64/'Population 2016'!X$6","v":1.8636269430051814E-2},{"$f":"'Population 2016'!Y64/'Population 2016'!Y$6","v":1.7472400060493019E-2},{"$f":"'Population 2016'!Z64/'Population 2016'!Z$6","v":3.1134646408487291E-2},{"$f":"'Population 2016'!AA64/'Population 2016'!AA$6","v":2.5562284007324222E-2},{"$f":"'Population 2016'!AB64/'Population 2016'!AB$6","v":1.1405436928045935E-2},{"$f":"'Population 2016'!AC64/'Population 2016'!AC$6","v":2.91188290997654E-2},{"$f":"'Population 2016'!AD64/'Population 2016'!AD$6","v":1.199828384596038E-2},{"$f":"'Population 2016'!AE64/'Population 2016'!AE$6","v":1.2126209101695255E-2},{"$f":"'Population 2016'!AF64/'Population 2016'!AF$6","v":3.1336431021130658E-2},{"$f":"'Population 2016'!AG64/'Population 2016'!AG$6","v":1.2126209101695255E-2},{"$f":"'Population 2016'!AH64/'Population 2016'!AH$6","v":1.9170055136197246E-2},{"$f":"'Population 2016'!AI64/'Population 2016'!AI$6","v":1.5891218187220901E-2},{"$f":"'Population 2016'!AJ64/'Population 2016'!AJ$6","v":1.0001840829600541E-2},{"$f":"'Population 2016'!AK64/'Population 2016'!AK$6","v":2.7554715792788538E-3},{"$f":"'Population 2016'!AL64/'Population 2016'!AL$6","v":2.8809143127849827E-2},{"$f":"'Population 2016'!AM64/'Population 2016'!AM$6","v":2.0888238164958516E-2},{"$f":"'Population 2016'!AN64/'Population 2016'!AN$6","v":0},{"$f":"'Population 2016'!AO64/'Population 2016'!AO$6","v":0},{"$f":"'Population 2016'!AP64/'Population 2016'!AP$6","v":1.5645246436627153E-2},{"$f":"'Population 2016'!AQ64/'Population 2016'!AQ$6","v":2.8335909325090159E-2},{"$f":"'Population 2016'!AR64/'Population 2016'!AR$6","v":2.1265315673279203E-2},{"$f":"'Population 2016'!AS64/'Population 2016'!AS$6","v":1.053704962610469E-2},{"$f":"'Population 2016'!AT64/'Population 2016'!AT$6","v":0},{"$f":"'Population 2016'!AU64/'Population 2016'!AU$6","v":0},{"$f":"'Population 2016'!AV64/'Population 2016'!AV$6","v":1.7824377457404981E-2},{"$f":"'Population 2016'!AW64/'Population 2016'!AW$6","v":1.6863364974324113E-2},{"$f":"'Population 2016'!AX64/'Population 2016'!AX$6","v":2.3868007600685914E-2},{"$f":"'Population 2016'!AY64/'Population 2016'!AY$6","v":2.1661643240733178E-2},{"$f":"'Population 2016'!AZ64/'Population 2016'!AZ$6","v":2.4921394883521509E-2},{"$f":"'Population 2016'!BA64/'Population 2016'!BA$6","v":2.5043332735640429E-2},{"$f":"'Population 2016'!BB64/'Population 2016'!BB$6","v":1.5798172272992416E-2},{"$f":"'Population 2016'!BC64/'Population 2016'!BC$6","v":0},62]
[null,"Female 25-29",{"$f":"'Population 2016'!C65/'Population 2016'!C$6","v":1.8485978627268165E-2},{"$f":"'Population 2016'!D65/'Population 2016'!D$6","v":1.6595611121282661E-2},{"$f":"'Population 2016'!E65/'Population 2016'!E$6","v":1.1500918140523824E-2},{"$f":"'Population 2016'!F65/'Population 2016'!F$6","v":1.2940361810785077E-2},{"$f":"'Population 2016'!G65/'Population 2016'!G$6","v":9.6272248964513595E-3},{"$f":"'Population 2016'!H65/'Population 2016'!H$6","v":2.4225331958000678E-2},{"$f":"'Population 2016'!I65/'Population 2016'!I$6","v":9.9057978051859761E-3},{"$f":"'Population 2016'!J65/'Population 2016'!J$6","v":2.3797789199464903E-2},{"$f":"'Population 2016'!K65/'Population 2016'!K$6","v":2.0349942944085205E-2},{"$f":"'Population 2016'!L65/'Population 2016'!L$6","v":1.1263073209975865E-2},{"$f":"'Population 2016'!M65/'Population 2016'!M$6","v":1.1263073209975865E-2},{"$f":"'Population 2016'!N65/'Population 2016'!N$6","v":4.1068093928744727E-2},{"$f":"'Population 2016'!O65/'Population 2016'!O$6","v":2.4087691567589855E-2},{"$f":"'Population 2016'!P65/'Population 2016'!P$6","v":1.0149600888090077E-2},{"$f":"'Population 2016'!Q65/'Population 2016'!Q$6","v":5.2724753694581277E-3},{"$f":"'Population 2016'!R65/'Population 2016'!R$6","v":1.87809458767287E-2},{"$f":"'Population 2016'!S65/'Population 2016'!S$6","v":2.1162364923873356E-2},{"$f":"'Population 2016'!T65/'Population 2016'!T$6","v":3.0157699990728488E-2},{"$f":"'Population 2016'!U65/'Population 2016'!U$6","v":0},{"$f":"'Population 2016'!V65/'Population 2016'!V$6","v":1.5766402714932126E-2},{"$f":"'Population 2016'!W65/'Population 2016'!W$6","v":2.2864248704663213E-2},{"$f":"'Population 2016'!X65/'Population 2016'!X$6","v":2.2864248704663213E-2},{"$f":"'Population 2016'!Y65/'Population 2016'!Y$6","v":1.9216615415637444E-2},{"$f":"'Population 2016'!Z65/'Population 2016'!Z$6","v":4.3016730922889497E-2},{"$f":"'Population 2016'!AA65/'Population 2016'!AA$6","v":3.1320422205140704E-2},{"$f":"'Population 2016'!AB65/'Population 2016'!AB$6","v":1.4489502960703391E-2},{"$f":"'Population 2016'!AC65/'Population 2016'!AC$6","v":3.7359016157458382E-2},{"$f":"'Population 2016'!AD65/'Population 2016'!AD$6","v":1.1347328865415058E-2},{"$f":"'Population 2016'!AE65/'Population 2016'!AE$6","v":1.1965330705652864E-2},{"$f":"'Population 2016'!AF65/'Population 2016'!AF$6","v":3.1613010288748758E-2},{"$f":"'Population 2016'!AG65/'Population 2016'!AG$6","v":1.1965330705652864E-2},{"$f":"'Population 2016'!AH65/'Population 2016'!AH$6","v":2.0467171761316554E-2},{"$f":"'Population 2016'!AI65/'Population 2016'!AI$6","v":2.1273390056793212E-2},{"$f":"'Population 2016'!AJ65/'Population 2016'!AJ$6","v":1.0339326256366202E-2},{"$f":"'Population 2016'!AK65/'Population 2016'!AK$6","v":1.8107384663832468E-3},{"$f":"'Population 2016'!AL65/'Population 2016'!AL$6","v":2.8868360277136258E-2},{"$f":"'Population 2016'!AM65/'Population 2016'!AM$6","v":2.2687896534895072E-2},{"$f":"'Population 2016'!AN65/'Population 2016'!AN$6","v":0},{"$f":"'Population 2016'!AO65/'Population 2016'!AO$6","v":0},{"$f":"'Population 2016'!AP65/'Population 2016'!AP$6","v":1.9244612948121131E-2},{"$f":"'Population 2016'!AQ65/'Population 2016'!AQ$6","v":3.2163097078089349E-2},{"$f":"'Population 2016'!AR65/'Population 2016'!AR$6","v":2.5507187726435707E-2},{"$f":"'Population 2016'!AS65/'Population 2016'!AS$6","v":9.9057978051859761E-3},{"$f":"'Population 2016'!AT65/'Population 2016'!AT$6","v":0},{"$f":"'Population 2016'!AU65/'Population 2016'!AU$6","v":0},{"$f":"'Population 2016'!AV65/'Population 2016'!AV$6","v":1.6942690337185751E-2},{"$f":"'Population 2016'!AW65/'Population 2016'!AW$6","v":1.7485810694600284E-2},{"$f":"'Population 2016'!AX65/'Population 2016'!AX$6","v":2.7158548454372711E-2},{"$f":"'Population 2016'!AY65/'Population 2016'!AY$6","v":2.6877120265546464E-2},{"$f":"'Population 2016'!AZ65/'Population 2016'!AZ$6","v":3.1200871802200943E-2},{"$f":"'Population 2016'!BA65/'Population 2016'!BA$6","v":2.6019564481102944E-2},{"$f":"'Population 2016'!BB65/'Population 2016'!BB$6","v":1.6705554475338648E-2},{"$f":"'Population 2016'!BC65/'Population 2016'!BC$6","v":0},63]
[null,"Female 30-34",{"$f":"'Population 2016'!C66/'Population 2016'!C$6","v":1.6244710607473282E-2},{"$f":"'Population 2016'!D66/'Population 2016'!D$6","v":1.4921664530641069E-2},{"$f":"'Population 2016'!E66/'Population 2016'!E$6","v":1.1355948584130665E-2},{"$f":"'Population 2016'!F66/'Population 2016'!F$6","v":1.4368562278196139E-2},{"$f":"'Population 2016'!G66/'Population 2016'!G$6","v":1.1250419791783275E-2},{"$f":"'Population 2016'!H66/'Population 2016'!H$6","v":2.150050382489551E-2},{"$f":"'Population 2016'!I66/'Population 2016'!I$6","v":1.0051471302321065E-2},{"$f":"'Population 2016'!J66/'Population 2016'!J$6","v":2.0817198244502334E-2},{"$f":"'Population 2016'!K66/'Population 2016'!K$6","v":1.9446557626473945E-2},{"$f":"'Population 2016'!L66/'Population 2016'!L$6","v":9.6093680164476628E-3},{"$f":"'Population 2016'!M66/'Population 2016'!M$6","v":9.6093680164476628E-3},{"$f":"'Population 2016'!N66/'Population 2016'!N$6","v":3.2922113249716951E-2},{"$f":"'Population 2016'!O66/'Population 2016'!O$6","v":2.1407463404577005E-2},{"$f":"'Population 2016'!P66/'Population 2016'!P$6","v":8.7223132632024102E-3},{"$f":"'Population 2016'!Q66/'Population 2016'!Q$6","v":4.7721674876847293E-3},{"$f":"'Population 2016'!R66/'Population 2016'!R$6","v":1.8268738261908828E-2},{"$f":"'Population 2016'!S66/'Population 2016'!S$6","v":2.0223276760066921E-2},{"$f":"'Population 2016'!T66/'Population 2016'!T$6","v":2.9694124389976654E-2},{"$f":"'Population 2016'!U66/'Population 2016'!U$6","v":0},{"$f":"'Population 2016'!V66/'Population 2016'!V$6","v":1.5448246606334842E-2},{"$f":"'Population 2016'!W66/'Population 2016'!W$6","v":2.0169948186528498E-2},{"$f":"'Population 2016'!X66/'Population 2016'!X$6","v":2.0169948186528498E-2},{"$f":"'Population 2016'!Y66/'Population 2016'!Y$6","v":1.7754700811614659E-2},{"$f":"'Population 2016'!Z66/'Population 2016'!Z$6","v":3.6424012079562265E-2},{"$f":"'Population 2016'!AA66/'Population 2016'!AA$6","v":2.8489472993494441E-2},{"$f":"'Population 2016'!AB66/'Population 2016'!AB$6","v":1.316615826305401E-2},{"$f":"'Population 2016'!AC66/'Population 2016'!AC$6","v":3.2464702975882477E-2},{"$f":"'Population 2016'!AD66/'Population 2016'!AD$6","v":1.2664033257881733E-2},{"$f":"'Population 2016'!AE66/'Population 2016'!AE$6","v":1.3171918675970801E-2},{"$f":"'Population 2016'!AF66/'Population 2016'!AF$6","v":3.0921562119703507E-2},{"$f":"'Population 2016'!AG66/'Population 2016'!AG$6","v":1.3171918675970801E-2},{"$f":"'Population 2016'!AH66/'Population 2016'!AH$6","v":2.1344735839227465E-2},{"$f":"'Population 2016'!AI66/'Population 2016'!AI$6","v":2.112690792970532E-2},{"$f":"'Population 2016'!AJ66/'Population 2016'!AJ$6","v":9.081426029330552E-3},{"$f":"'Population 2016'!AK66/'Population 2016'!AK$6","v":2.5980160604629193E-3},{"$f":"'Population 2016'!AL66/'Population 2016'!AL$6","v":2.5063658435482916E-2},{"$f":"'Population 2016'!AM66/'Population 2016'!AM$6","v":2.2938018545632016E-2},{"$f":"'Population 2016'!AN66/'Population 2016'!AN$6","v":0},{"$f":"'Population 2016'!AO66/'Population 2016'!AO$6","v":0},{"$f":"'Population 2016'!AP66/'Population 2016'!AP$6","v":1.7276959255171091E-2},{"$f":"'Population 2016'!AQ66/'Population 2016'!AQ$6","v":2.7437992198424965E-2},{"$f":"'Population 2016'!AR66/'Population 2016'!AR$6","v":2.3309101062248413E-2},{"$f":"'Population 2016'!AS66/'Population 2016'!AS$6","v":1.0051471302321065E-2},{"$f":"'Population 2016'!AT66/'Population 2016'!AT$6","v":0},{"$f":"'Population 2016'!AU66/'Population 2016'!AU$6","v":0},{"$f":"'Population 2016'!AV66/'Population 2016'!AV$6","v":1.5894197545573693E-2},{"$f":"'Population 2016'!AW66/'Population 2016'!AW$6","v":1.920572650062654E-2},{"$f":"'Population 2016'!AX66/'Population 2016'!AX$6","v":2.2153218705102656E-2},{"$f":"'Population 2016'!AY66/'Population 2016'!AY$6","v":2.3063329563972362E-2},{"$f":"'Population 2016'!AZ66/'Population 2016'!AZ$6","v":2.6180863227097326E-2},{"$f":"'Population 2016'!BA66/'Population 2016'!BA$6","v":2.6677026677026677E-2},{"$f":"'Population 2016'!BB66/'Population 2016'!BB$6","v":1.7904595242724738E-2},{"$f":"'Population 2016'!BC66/'Population 2016'!BC$6","v":0},64]
[null,"Female 35-39",{"$f":"'Population 2016'!C67/'Population 2016'!C$6","v":1.1618733414616653E-2},{"$f":"'Population 2016'!D67/'Population 2016'!D$6","v":1.0723720346297701E-2},{"$f":"'Population 2016'!E67/'Population 2016'!E$6","v":8.3115878998743595E-3},{"$f":"'Population 2016'!F67/'Population 2016'!F$6","v":1.2897083008742318E-2},{"$f":"'Population 2016'!G67/'Population 2016'!G$6","v":9.90708608530169E-3},{"$f":"'Population 2016'!H67/'Population 2016'!H$6","v":1.9312293923692887E-2},{"$f":"'Population 2016'!I67/'Population 2016'!I$6","v":9.3231038166456254E-3},{"$f":"'Population 2016'!J67/'Population 2016'!J$6","v":1.8165176371189185E-2},{"$f":"'Population 2016'!K67/'Population 2016'!K$6","v":2.0064663370102702E-2},{"$f":"'Population 2016'!L67/'Population 2016'!L$6","v":8.0673996603200151E-3},{"$f":"'Population 2016'!M67/'Population 2016'!M$6","v":8.0673996603200151E-3},{"$f":"'Population 2016'!N67/'Population 2016'!N$6","v":2.577600023526298E-2},{"$f":"'Population 2016'!O67/'Population 2016'!O$6","v":1.8813139990378668E-2},{"$f":"'Population 2016'!P67/'Population 2016'!P$6","v":7.9822381984458422E-3},{"$f":"'Population 2016'!Q67/'Population 2016'!Q$6","v":5.580357142857143E-3},{"$f":"'Population 2016'!R67/'Population 2016'!R$6","v":1.835410619771214E-2},{"$f":"'Population 2016'!S67/'Population 2016'!S$6","v":1.735340228748198E-2},{"$f":"'Population 2016'!T67/'Population 2016'!T$6","v":2.3785642642212352E-2},{"$f":"'Population 2016'!U67/'Population 2016'!U$6","v":0},{"$f":"'Population 2016'!V67/'Population 2016'!V$6","v":1.2195984162895928E-2},{"$f":"'Population 2016'!W67/'Population 2016'!W$6","v":1.8329533678756477E-2},{"$f":"'Population 2016'!X67/'Population 2016'!X$6","v":1.8329533678756477E-2},{"$f":"'Population 2016'!Y67/'Population 2016'!Y$6","v":1.4760296415788677E-2},{"$f":"'Population 2016'!Z67/'Population 2016'!Z$6","v":3.0192829430869116E-2},{"$f":"'Population 2016'!AA67/'Population 2016'!AA$6","v":2.4356162157770738E-2},{"$f":"'Population 2016'!AB67/'Population 2016'!AB$6","v":9.4652790238650645E-3},{"$f":"'Population 2016'!AC67/'Population 2016'!AC$6","v":2.7333066182163381E-2},{"$f":"'Population 2016'!AD67/'Population 2016'!AD$6","v":1.0341307531845013E-2},{"$f":"'Population 2016'!AE67/'Population 2016'!AE$6","v":1.0497315341766043E-2},{"$f":"'Population 2016'!AF67/'Population 2016'!AF$6","v":2.7464321274477264E-2},{"$f":"'Population 2016'!AG67/'Population 2016'!AG$6","v":1.0497315341766043E-2},{"$f":"'Population 2016'!AH67/'Population 2016'!AH$6","v":1.9005730388540622E-2},{"$f":"'Population 2016'!AI67/'Population 2016'!AI$6","v":1.7552744028760718E-2},{"$f":"'Population 2016'!AJ67/'Population 2016'!AJ$6","v":8.5905381358532245E-3},{"$f":"'Population 2016'!AK67/'Population 2016'!AK$6","v":1.8894662257912141E-3},{"$f":"'Population 2016'!AL67/'Population 2016'!AL$6","v":2.342038254278439E-2},{"$f":"'Population 2016'!AM67/'Population 2016'!AM$6","v":2.0528306490971204E-2},{"$f":"'Population 2016'!AN67/'Population 2016'!AN$6","v":0},{"$f":"'Population 2016'!AO67/'Population 2016'!AO$6","v":0},{"$f":"'Population 2016'!AP67/'Population 2016'!AP$6","v":1.4205499832029563E-2},{"$f":"'Population 2016'!AQ67/'Population 2016'!AQ$6","v":2.4214322514167955E-2},{"$f":"'Population 2016'!AR67/'Population 2016'!AR$6","v":1.9803692604729872E-2},{"$f":"'Population 2016'!AS67/'Population 2016'!AS$6","v":9.3231038166456254E-3},{"$f":"'Population 2016'!AT67/'Population 2016'!AT$6","v":0},{"$f":"'Population 2016'!AU67/'Population 2016'!AU$6","v":0},{"$f":"'Population 2016'!AV67/'Population 2016'!AV$6","v":1.3392112474681282E-2},{"$f":"'Population 2016'!AW67/'Population 2016'!AW$6","v":1.6961645877525616E-2},{"$f":"'Population 2016'!AX67/'Population 2016'!AX$6","v":1.6313667330954258E-2},{"$f":"'Population 2016'!AY67/'Population 2016'!AY$6","v":1.9597810617558917E-2},{"$f":"'Population 2016'!AZ67/'Population 2016'!AZ$6","v":2.0964341860797486E-2},{"$f":"'Population 2016'!BA67/'Population 2016'!BA$6","v":2.209471440240671E-2},{"$f":"'Population 2016'!BB67/'Population 2016'!BB$6","v":1.5344481171819302E-2},{"$f":"'Population 2016'!BC67/'Population 2016'!BC$6","v":0},65]
[null,"Female 40-44",{"$f":"'Population 2016'!C68/'Population 2016'!C$6","v":1.1851825288675321E-2},{"$f":"'Population 2016'!D68/'Population 2016'!D$6","v":1.0841419715952188E-2},{"$f":"'Population 2016'!E68/'Population 2016'!E$6","v":8.118295158016816E-3},{"$f":"'Population 2016'!F68/'Population 2016'!F$6","v":1.1036094520903662E-2},{"$f":"'Population 2016'!G68/'Population 2016'!G$6","v":1.1642225456173739E-2},{"$f":"'Population 2016'!H68/'Population 2016'!H$6","v":2.1923835985618631E-2},{"$f":"'Population 2016'!I68/'Population 2016'!I$6","v":1.1313974944158492E-2},{"$f":"'Population 2016'!J68/'Population 2016'!J$6","v":1.8165176371189185E-2},{"$f":"'Population 2016'!K68/'Population 2016'!K$6","v":1.9351464435146442E-2},{"$f":"'Population 2016'!L68/'Population 2016'!L$6","v":8.1567891302404584E-3},{"$f":"'Population 2016'!M68/'Population 2016'!M$6","v":8.1567891302404584E-3},{"$f":"'Population 2016'!N68/'Population 2016'!N$6","v":2.1306003617168317E-2},{"$f":"'Population 2016'!O68/'Population 2016'!O$6","v":2.1166930107896366E-2},{"$f":"'Population 2016'!P68/'Population 2016'!P$6","v":9.3038008140825714E-3},{"$f":"'Population 2016'!Q68/'Population 2016'!Q$6","v":4.079433497536946E-3},{"$f":"'Population 2016'!R68/'Population 2016'!R$6","v":1.7158955096465766E-2},{"$f":"'Population 2016'!S68/'Population 2016'!S$6","v":1.6017108765875063E-2},{"$f":"'Population 2016'!T68/'Population 2016'!T$6","v":1.8416594320777458E-2},{"$f":"'Population 2016'!U68/'Population 2016'!U$6","v":0},{"$f":"'Population 2016'!V68/'Population 2016'!V$6","v":1.3998868778280544E-2},{"$f":"'Population 2016'!W68/'Population 2016'!W$6","v":1.8860103626943004E-2},{"$f":"'Population 2016'!X68/'Population 2016'!X$6","v":1.8860103626943004E-2},{"$f":"'Population 2016'!Y68/'Population 2016'!Y$6","v":1.5788677723446085E-2},{"$f":"'Population 2016'!Z68/'Population 2016'!Z$6","v":2.7033185376924267E-2},{"$f":"'Population 2016'!AA68/'Population 2016'!AA$6","v":2.3032552791265929E-2},{"$f":"'Population 2016'!AB68/'Population 2016'!AB$6","v":9.6110712363179623E-3},{"$f":"'Population 2016'!AC68/'Population 2016'!AC$6","v":2.5025969428050094E-2},{"$f":"'Population 2016'!AD68/'Population 2016'!AD$6","v":1.0859112630006065E-2},{"$f":"'Population 2016'!AE68/'Population 2016'!AE$6","v":1.0577754539787239E-2},{"$f":"'Population 2016'!AF68/'Population 2016'!AF$6","v":2.7630268835048124E-2},{"$f":"'Population 2016'!AG68/'Population 2016'!AG$6","v":1.0577754539787239E-2},{"$f":"'Population 2016'!AH68/'Population 2016'!AH$6","v":1.9449756834336182E-2},{"$f":"'Population 2016'!AI68/'Population 2016'!AI$6","v":1.4987214202907042E-2},{"$f":"'Population 2016'!AJ68/'Population 2016'!AJ$6","v":8.7132601092225568E-3},{"$f":"'Population 2016'!AK68/'Population 2016'!AK$6","v":2.2043772634230828E-3},{"$f":"'Population 2016'!AL68/'Population 2016'!AL$6","v":2.7195475809794516E-2},{"$f":"'Population 2016'!AM68/'Population 2016'!AM$6","v":2.113836017569546E-2},{"$f":"'Population 2016'!AN68/'Population 2016'!AN$6","v":0},{"$f":"'Population 2016'!AO68/'Population 2016'!AO$6","v":0},{"$f":"'Population 2016'!AP68/'Population 2016'!AP$6","v":1.1661947497240486E-2},{"$f":"'Population 2016'!AQ68/'Population 2016'!AQ$6","v":2.1873850003679987E-2},{"$f":"'Population 2016'!AR68/'Population 2016'!AR$6","v":1.9026534167276149E-2},{"$f":"'Population 2016'!AS68/'Population 2016'!AS$6","v":1.1313974944158492E-2},{"$f":"'Population 2016'!AT68/'Population 2016'!AT$6","v":0},{"$f":"'Population 2016'!AU68/'Population 2016'!AU$6","v":0},{"$f":"'Population 2016'!AV68/'Population 2016'!AV$6","v":1.4488264029548434E-2},{"$f":"'Population 2016'!AW68/'Population 2016'!AW$6","v":1.718277790972899E-2},{"$f":"'Population 2016'!AX68/'Population 2016'!AX$6","v":1.7008852018352876E-2},{"$f":"'Population 2016'!AY68/'Population 2016'!AY$6","v":1.8153127781336934E-2},{"$f":"'Population 2016'!AZ68/'Population 2016'!AZ$6","v":1.7391382020866087E-2},{"$f":"'Population 2016'!BA68/'Population 2016'!BA$6","v":2.2015022015022014E-2},{"$f":"'Population 2016'!BB68/'Population 2016'!BB$6","v":1.630047313500551E-2},{"$f":"'Population 2016'!BC68/'Population 2016'!BC$6","v":0},66]
[null,"Female 45-49",{"$f":"'Population 2016'!C69/'Population 2016'!C$6","v":1.0650505630065265E-2},{"$f":"'Population 2016'!D69/'Population 2016'!D$6","v":1.0331389114116078E-2},{"$f":"'Population 2016'!E69/'Population 2016'!E$6","v":9.4713443510196192E-3},{"$f":"'Population 2016'!F69/'Population 2016'!F$6","v":1.3156755820998874E-2},{"$f":"'Population 2016'!G69/'Population 2016'!G$6","v":1.3377364827045785E-2},{"$f":"'Population 2016'!H69/'Population 2016'!H$6","v":2.613330789365419E-2},{"$f":"'Population 2016'!I69/'Population 2016'!I$6","v":1.1022627949888317E-2},{"$f":"'Population 2016'!J69/'Population 2016'!J$6","v":2.3046774155694807E-2},{"$f":"'Population 2016'!K69/'Population 2016'!K$6","v":2.2441993153290225E-2},{"$f":"'Population 2016'!L69/'Population 2016'!L$6","v":1.0235094305890766E-2},{"$f":"'Population 2016'!M69/'Population 2016'!M$6","v":1.0235094305890766E-2},{"$f":"'Population 2016'!N69/'Population 2016'!N$6","v":2.4217382993427339E-2},{"$f":"'Population 2016'!O69/'Population 2016'!O$6","v":2.6235310287952718E-2},{"$f":"'Population 2016'!P69/'Population 2016'!P$6","v":1.1153988475973991E-2},{"$f":"'Population 2016'!Q69/'Population 2016'!Q$6","v":5.8882389162561574E-3},{"$f":"'Population 2016'!R69/'Population 2016'!R$6","v":2.100051220761482E-2},{"$f":"'Population 2016'!S69/'Population 2016'!S$6","v":1.7940003577478721E-2},{"$f":"'Population 2016'!T69/'Population 2016'!T$6","v":1.9630319530018626E-2},{"$f":"'Population 2016'!U69/'Population 2016'!U$6","v":0},{"$f":"'Population 2016'!V69/'Population 2016'!V$6","v":1.3945842760180996E-2},{"$f":"'Population 2016'!W69/'Population 2016'!W$6","v":2.288082901554404E-2},{"$f":"'Population 2016'!X69/'Population 2016'!X$6","v":2.288082901554404E-2},{"$f":"'Population 2016'!Y69/'Population 2016'!Y$6","v":1.7855522508443817E-2},{"$f":"'Population 2016'!Z69/'Population 2016'!Z$6","v":3.1730117787884586E-2},{"$f":"'Population 2016'!AA69/'Population 2016'!AA$6","v":2.7382090652868132E-2},{"$f":"'Population 2016'!AB69/'Population 2016'!AB$6","v":9.1736945989592672E-3},{"$f":"'Population 2016'!AC69/'Population 2016'!AC$6","v":3.0143989293203596E-2},{"$f":"'Population 2016'!AD69/'Population 2016'!AD$6","v":1.2560472238249522E-2},{"$f":"'Population 2016'!AE69/'Population 2016'!AE$6","v":1.2266977698232349E-2},{"$f":"'Population 2016'!AF69/'Population 2016'!AF$6","v":3.7144595641110743E-2},{"$f":"'Population 2016'!AG69/'Population 2016'!AG$6","v":1.2266977698232349E-2},{"$f":"'Population 2016'!AH69/'Population 2016'!AH$6","v":2.2418091105835626E-2},{"$f":"'Population 2016'!AI69/'Population 2016'!AI$6","v":1.6041885517939874E-2},{"$f":"'Population 2016'!AJ69/'Population 2016'!AJ$6","v":9.5723139228078794E-3},{"$f":"'Population 2016'!AK69/'Population 2016'!AK$6","v":2.2043772634230828E-3},{"$f":"'Population 2016'!AL69/'Population 2016'!AL$6","v":3.1414697696452894E-2},{"$f":"'Population 2016'!AM69/'Population 2016'!AM$6","v":2.4304538799414348E-2},{"$f":"'Population 2016'!AN69/'Population 2016'!AN$6","v":0},{"$f":"'Population 2016'!AO69/'Population 2016'!AO$6","v":0},{"$f":"'Population 2016'!AP69/'Population 2016'!AP$6","v":1.1469981283294141E-2},{"$f":"'Population 2016'!AQ69/'Population 2016'!AQ$6","v":2.7629351586074925E-2},{"$f":"'Population 2016'!AR69/'Population 2016'!AR$6","v":2.2154384925726262E-2},{"$f":"'Population 2016'!AS69/'Population 2016'!AS$6","v":1.1022627949888317E-2},{"$f":"'Population 2016'!AT69/'Population 2016'!AT$6","v":0},{"$f":"'Population 2016'!AU69/'Population 2016'!AU$6","v":0},{"$f":"'Population 2016'!AV69/'Population 2016'!AV$6","v":1.7490766114619326E-2},{"$f":"'Population 2016'!AW69/'Population 2016'!AW$6","v":1.9885502747770251E-2},{"$f":"'Population 2016'!AX69/'Population 2016'!AX$6","v":2.3636279371553041E-2},{"$f":"'Population 2016'!AY69/'Population 2016'!AY$6","v":2.1283273926484561E-2},{"$f":"'Population 2016'!AZ69/'Population 2016'!AZ$6","v":1.9561955123624412E-2},{"$f":"'Population 2016'!BA69/'Population 2016'!BA$6","v":2.7394258163488932E-2},{"$f":"'Population 2016'!BB69/'Population 2016'!BB$6","v":1.6835180504245251E-2},{"$f":"'Population 2016'!BC69/'Population 2016'!BC$6","v":0},67]
[null,"Female 50-54",{"$f":"'Population 2016'!C70/'Population 2016'!C$6","v":1.1242200387291113E-2},{"$f":"'Population 2016'!D70/'Population 2016'!D$6","v":1.0619098684382601E-2},{"$f":"'Population 2016'!E70/'Population 2016'!E$6","v":8.9397893109113748E-3},{"$f":"'Population 2016'!F70/'Population 2016'!F$6","v":1.2074785769929888E-2},{"$f":"'Population 2016'!G70/'Population 2016'!G$6","v":1.3041531400425389E-2},{"$f":"'Population 2016'!H70/'Population 2016'!H$6","v":2.6616264302366487E-2},{"$f":"'Population 2016'!I70/'Population 2016'!I$6","v":1.0682723123239779E-2},{"$f":"'Population 2016'!J70/'Population 2016'!J$6","v":2.1239644206623012E-2},{"$f":"'Population 2016'!K70/'Population 2016'!K$6","v":2.1728794218333968E-2},{"$f":"'Population 2016'!L70/'Population 2016'!L$6","v":1.0570304818092428E-2},{"$f":"'Population 2016'!M70/'Population 2016'!M$6","v":1.0570304818092428E-2},{"$f":"'Population 2016'!N70/'Population 2016'!N$6","v":2.7437545030804745E-2},{"$f":"'Population 2016'!O70/'Population 2016'!O$6","v":2.690536732870593E-2},{"$f":"'Population 2016'!P70/'Population 2016'!P$6","v":1.120685098059946E-2},{"$f":"'Population 2016'!Q70/'Population 2016'!Q$6","v":4.8106527093596061E-3},{"$f":"'Population 2016'!R70/'Population 2016'!R$6","v":2.2024927437254566E-2},{"$f":"'Population 2016'!S70/'Population 2016'!S$6","v":1.7253443323267292E-2},{"$f":"'Population 2016'!T70/'Population 2016'!T$6","v":1.7641158770428933E-2},{"$f":"'Population 2016'!U70/'Population 2016'!U$6","v":0},{"$f":"'Population 2016'!V70/'Population 2016'!V$6","v":1.4847285067873302E-2},{"$f":"'Population 2016'!W70/'Population 2016'!W$6","v":2.2930569948186527E-2},{"$f":"'Population 2016'!X70/'Population 2016'!X$6","v":2.2930569948186527E-2},{"$f":"'Population 2016'!Y70/'Population 2016'!Y$6","v":1.7593386096688007E-2},{"$f":"'Population 2016'!Z70/'Population 2016'!Z$6","v":3.3285634860595895E-2},{"$f":"'Population 2016'!AA70/'Population 2016'!AA$6","v":2.8028271996100414E-2},{"$f":"'Population 2016'!AB70/'Population 2016'!AB$6","v":9.4092050959985653E-3},{"$f":"'Population 2016'!AC70/'Population 2016'!AC$6","v":3.1056323507098312E-2},{"$f":"'Population 2016'!AD70/'Population 2016'!AD$6","v":1.17615729439439E-2},{"$f":"'Population 2016'!AE70/'Population 2016'!AE$6","v":1.1301707321977999E-2},{"$f":"'Population 2016'!AF70/'Population 2016'!AF$6","v":3.6591437105874543E-2},{"$f":"'Population 2016'!AG70/'Population 2016'!AG$6","v":1.1301707321977999E-2},{"$f":"'Population 2016'!AH70/'Population 2016'!AH$6","v":2.2585912124718988E-2},{"$f":"'Population 2016'!AI70/'Population 2016'!AI$6","v":1.4953732573858382E-2},{"$f":"'Population 2016'!AJ70/'Population 2016'!AJ$6","v":9.7257163895195439E-3},{"$f":"'Population 2016'!AK70/'Population 2016'!AK$6","v":2.1256495040151155E-3},{"$f":"'Population 2016'!AL70/'Population 2016'!AL$6","v":3.2599040682181557E-2},{"$f":"'Population 2016'!AM70/'Population 2016'!AM$6","v":2.4658369936554417E-2},{"$f":"'Population 2016'!AN70/'Population 2016'!AN$6","v":0},{"$f":"'Population 2016'!AO70/'Population 2016'!AO$6","v":0},{"$f":"'Population 2016'!AP70/'Population 2016'!AP$6","v":1.2429812353025867E-2},{"$f":"'Population 2016'!AQ70/'Population 2016'!AQ$6","v":2.6466475307279018E-2},{"$f":"'Population 2016'!AR70/'Population 2016'!AR$6","v":2.2440944436845561E-2},{"$f":"'Population 2016'!AS70/'Population 2016'!AS$6","v":1.0682723123239779E-2},{"$f":"'Population 2016'!AT70/'Population 2016'!AT$6","v":0},{"$f":"'Population 2016'!AU70/'Population 2016'!AU$6","v":0},{"$f":"'Population 2016'!AV70/'Population 2016'!AV$6","v":1.6585249612772548E-2},{"$f":"'Population 2016'!AW70/'Population 2016'!AW$6","v":1.9803601995102334E-2},{"$f":"'Population 2016'!AX70/'Population 2016'!AX$6","v":2.0762849330305418E-2},{"$f":"'Population 2016'!AY70/'Population 2016'!AY$6","v":2.2229197212106099E-2},{"$f":"'Population 2016'!AZ70/'Population 2016'!AZ$6","v":2.147348863798771E-2},{"$f":"'Population 2016'!BA70/'Population 2016'!BA$6","v":2.8250951327874405E-2},{"$f":"'Population 2016'!BB70/'Population 2016'!BB$6","v":1.6818977250631927E-2},{"$f":"'Population 2016'!BC70/'Population 2016'!BC$6","v":0},68]
[null,"Female 55-59",{"$f":"'Population 2016'!C71/'Population 2016'!C$6","v":9.7002079896722371E-3},{"$f":"'Population 2016'!D71/'Population 2016'!D$6","v":9.1543954175712077E-3},{"$f":"'Population 2016'!E71/'Population 2016'!E$6","v":7.6833864888373442E-3},{"$f":"'Population 2016'!F71/'Population 2016'!F$6","v":1.1252488531117459E-2},{"$f":"'Population 2016'!G71/'Population 2016'!G$6","v":1.2481809022724728E-2},{"$f":"'Population 2016'!H71/'Population 2016'!H$6","v":2.3330968238163097E-2},{"$f":"'Population 2016'!I71/'Population 2016'!I$6","v":9.4687773137807126E-3},{"$f":"'Population 2016'!J71/'Population 2016'!J$6","v":1.959679879837593E-2},{"$f":"'Population 2016'!K71/'Population 2016'!K$6","v":1.9922023583111449E-2},{"$f":"'Population 2016'!L71/'Population 2016'!L$6","v":8.5813891123625637E-3},{"$f":"'Population 2016'!M71/'Population 2016'!M$6","v":8.5813891123625637E-3},{"$f":"'Population 2016'!N71/'Population 2016'!N$6","v":2.4540869590789455E-2},{"$f":"'Population 2016'!O71/'Population 2016'!O$6","v":2.1785444299360867E-2},{"$f":"'Population 2016'!P71/'Population 2016'!P$6","v":1.120685098059946E-2},{"$f":"'Population 2016'!Q71/'Population 2016'!Q$6","v":5.2724753694581277E-3},{"$f":"'Population 2016'!R71/'Population 2016'!R$6","v":1.6646747481645893E-2},{"$f":"'Population 2016'!S71/'Population 2016'!S$6","v":1.5998695272467091E-2},{"$f":"'Population 2016'!T71/'Population 2016'!T$6","v":1.7388299351837024E-2},{"$f":"'Population 2016'!U71/'Population 2016'!U$6","v":0},{"$f":"'Population 2016'!V71/'Population 2016'!V$6","v":1.3539309954751132E-2},{"$f":"'Population 2016'!W71/'Population 2016'!W$6","v":2.0277720207253887E-2},{"$f":"'Population 2016'!X71/'Population 2016'!X$6","v":2.0277720207253887E-2},{"$f":"'Population 2016'!Y71/'Population 2016'!Y$6","v":1.6141553662348138E-2},{"$f":"'Population 2016'!Z71/'Population 2016'!Z$6","v":2.8822637634398802E-2},{"$f":"'Population 2016'!AA71/'Population 2016'!AA$6","v":2.4902354124874231E-2},{"$f":"'Population 2016'!AB71/'Population 2016'!AB$6","v":8.1082899694957834E-3},{"$f":"'Population 2016'!AC71/'Population 2016'!AC$6","v":2.7317503978088416E-2},{"$f":"'Population 2016'!AD71/'Population 2016'!AD$6","v":1.0933084786886217E-2},{"$f":"'Population 2016'!AE71/'Population 2016'!AE$6","v":1.0376656544734249E-2},{"$f":"'Population 2016'!AF71/'Population 2016'!AF$6","v":3.4931961500165948E-2},{"$f":"'Population 2016'!AG71/'Population 2016'!AG$6","v":1.0376656544734249E-2},{"$f":"'Population 2016'!AH71/'Population 2016'!AH$6","v":2.0561571084438447E-2},{"$f":"'Population 2016'!AI71/'Population 2016'!AI$6","v":1.4401285694555468E-2},{"$f":"'Population 2016'!AJ71/'Population 2016'!AJ$6","v":9.5109529361232133E-3},{"$f":"'Population 2016'!AK71/'Population 2016'!AK$6","v":1.8107384663832468E-3},{"$f":"'Population 2016'!AL71/'Population 2016'!AL$6","v":2.9031207437673949E-2},{"$f":"'Population 2016'!AM71/'Population 2016'!AM$6","v":2.1785017081503173E-2},{"$f":"'Population 2016'!AN71/'Population 2016'!AN$6","v":0},{"$f":"'Population 2016'!AO71/'Population 2016'!AO$6","v":0},{"$f":"'Population 2016'!AP71/'Population 2016'!AP$6","v":1.1182031962374621E-2},{"$f":"'Population 2016'!AQ71/'Population 2016'!AQ$6","v":2.433208213733716E-2},{"$f":"'Population 2016'!AR71/'Population 2016'!AR$6","v":2.008064361153156E-2},{"$f":"'Population 2016'!AS71/'Population 2016'!AS$6","v":9.4687773137807126E-3},{"$f":"'Population 2016'!AT71/'Population 2016'!AT$6","v":0},{"$f":"'Population 2016'!AU71/'Population 2016'!AU$6","v":0},{"$f":"'Population 2016'!AV71/'Population 2016'!AV$6","v":1.6299297033241986E-2},{"$f":"'Population 2016'!AW71/'Population 2016'!AW$6","v":1.891907386628883E-2},{"$f":"'Population 2016'!AX71/'Population 2016'!AX$6","v":1.9279788663855033E-2},{"$f":"'Population 2016'!AY71/'Population 2016'!AY$6","v":1.98127931824729E-2},{"$f":"'Population 2016'!AZ71/'Population 2016'!AZ$6","v":1.9311847934829214E-2},{"$f":"'Population 2016'!BA71/'Population 2016'!BA$6","v":2.4565178411332256E-2},{"$f":"'Population 2016'!BB71/'Population 2016'!BB$6","v":1.5085229114006093E-2},{"$f":"'Population 2016'!BC71/'Population 2016'!BC$6","v":0},69]
[null,"Female 60-64",{"$f":"'Population 2016'!C72/'Population 2016'!C$6","v":7.8892634296779743E-3},{"$f":"'Population 2016'!D72/'Population 2016'!D$6","v":7.3889048727539038E-3},{"$f":"'Population 2016'!E72/'Population 2016'!E$6","v":6.0403981830482265E-3},{"$f":"'Population 2016'!F72/'Population 2016'!F$6","v":9.0452696269367264E-3},{"$f":"'Population 2016'!G72/'Population 2016'!G$6","v":1.119444755401321E-2},{"$f":"'Population 2016'!H72/'Population 2016'!H$6","v":2.1124871062563725E-2},{"$f":"'Population 2016'!I72/'Population 2016'!I$6","v":9.0317568223754491E-3},{"$f":"'Population 2016'!J72/'Population 2016'!J$6","v":1.4996831655284095E-2},{"$f":"'Population 2016'!K72/'Population 2016'!K$6","v":1.6070749334347659E-2},{"$f":"'Population 2016'!L72/'Population 2016'!L$6","v":7.7098417806382409E-3},{"$f":"'Population 2016'!M72/'Population 2016'!M$6","v":7.7098417806382409E-3},{"$f":"'Population 2016'!N72/'Population 2016'!N$6","v":1.9556235204164156E-2},{"$f":"'Population 2016'!O72/'Population 2016'!O$6","v":1.9775273177101229E-2},{"$f":"'Population 2016'!P72/'Population 2016'!P$6","v":8.6165882539514724E-3},{"$f":"'Population 2016'!Q72/'Population 2016'!Q$6","v":3.7330665024630544E-3},{"$f":"'Population 2016'!R72/'Population 2016'!R$6","v":1.4683284958169712E-2},{"$f":"'Population 2016'!S72/'Population 2016'!S$6","v":1.2955207862035585E-2},{"$f":"'Population 2016'!T72/'Population 2016'!T$6","v":1.3005402762910581E-2},{"$f":"'Population 2016'!U72/'Population 2016'!U$6","v":0},{"$f":"'Population 2016'!V72/'Population 2016'!V$6","v":1.1471295248868777E-2},{"$f":"'Population 2016'!W72/'Population 2016'!W$6","v":1.7293264248704664E-2},{"$f":"'Population 2016'!X72/'Population 2016'!X$6","v":1.7293264248704664E-2},{"$f":"'Population 2016'!Y72/'Population 2016'!Y$6","v":1.2985834551595504E-2},{"$f":"'Population 2016'!Z72/'Population 2016'!Z$6","v":2.2184347001831986E-2},{"$f":"'Population 2016'!AA72/'Population 2016'!AA$6","v":2.0094115000281219E-2},{"$f":"'Population 2016'!AB72/'Population 2016'!AB$6","v":6.7513009151265024E-3},{"$f":"'Population 2016'!AC72/'Population 2016'!AC$6","v":2.1380523123489981E-2},{"$f":"'Population 2016'!AD72/'Population 2016'!AD$6","v":1.0075007767076472E-2},{"$f":"'Population 2016'!AE72/'Population 2016'!AE$6","v":9.6728135620487866E-3},{"$f":"'Population 2016'!AF72/'Population 2016'!AF$6","v":2.8819559685805952E-2},{"$f":"'Population 2016'!AG72/'Population 2016'!AG$6","v":9.6728135620487866E-3},{"$f":"'Population 2016'!AH72/'Population 2016'!AH$6","v":1.778203545918278E-2},{"$f":"'Population 2016'!AI72/'Population 2016'!AI$6","v":1.1103345233262325E-2},{"$f":"'Population 2016'!AJ72/'Population 2016'!AJ$6","v":7.117874455421243E-3},{"$f":"'Population 2016'!AK72/'Population 2016'!AK$6","v":2.9129270980947884E-3},{"$f":"'Population 2016'!AL72/'Population 2016'!AL$6","v":2.6085154260673891E-2},{"$f":"'Population 2016'!AM72/'Population 2016'!AM$6","v":1.8673743289409468E-2},{"$f":"'Population 2016'!AN72/'Population 2016'!AN$6","v":0},{"$f":"'Population 2016'!AO72/'Population 2016'!AO$6","v":0},{"$f":"'Population 2016'!AP72/'Population 2016'!AP$6","v":1.0174209339156309E-2},{"$f":"'Population 2016'!AQ72/'Population 2016'!AQ$6","v":1.8532420696253771E-2},{"$f":"'Population 2016'!AR72/'Population 2016'!AR$6","v":1.6510801654471403E-2},{"$f":"'Population 2016'!AS72/'Population 2016'!AS$6","v":9.0317568223754491E-3},{"$f":"'Population 2016'!AT72/'Population 2016'!AT$6","v":0},{"$f":"'Population 2016'!AU72/'Population 2016'!AU$6","v":0},{"$f":"'Population 2016'!AV72/'Population 2016'!AV$6","v":1.5012510425354461E-2},{"$f":"'Population 2016'!AW72/'Population 2016'!AW$6","v":1.6584902415253195E-2},{"$f":"'Population 2016'!AX72/'Population 2016'!AX$6","v":1.3950039393798953E-2},{"$f":"'Population 2016'!AY72/'Population 2016'!AY$6","v":1.6497762031499247E-2},{"$f":"'Population 2016'!AZ72/'Population 2016'!AZ$6","v":1.56406316992997E-2},{"$f":"'Population 2016'!BA72/'Population 2016'!BA$6","v":2.097902097902098E-2},{"$f":"'Population 2016'!BB72/'Population 2016'!BB$6","v":1.2654741072007258E-2},{"$f":"'Population 2016'!BC72/'Population 2016'!BC$6","v":0},70]
[null,"Female 65-69",{"$f":"'Population 2016'!C73/'Population 2016'!C$6","v":7.315498816610486E-3},{"$f":"'Population 2016'!D73/'Population 2016'!D$6","v":6.8657965631784062E-3},{"$f":"'Population 2016'!E73/'Population 2016'!E$6","v":5.6538126993331403E-3},{"$f":"'Population 2016'!F73/'Population 2016'!F$6","v":8.0931359819960188E-3},{"$f":"'Population 2016'!G73/'Population 2016'!G$6","v":1.2593753498264861E-2},{"$f":"'Population 2016'!H73/'Population 2016'!H$6","v":2.0200695218731555E-2},{"$f":"'Population 2016'!I73/'Population 2016'!I$6","v":9.3716616490239872E-3},{"$f":"'Population 2016'!J73/'Population 2016'!J$6","v":1.6052946560585792E-2},{"$f":"'Population 2016'!K73/'Population 2016'!K$6","v":1.7687333586915176E-2},{"$f":"'Population 2016'!L73/'Population 2016'!L$6","v":6.6595155090730315E-3},{"$f":"'Population 2016'!M73/'Population 2016'!M$6","v":6.6595155090730315E-3},{"$f":"'Population 2016'!N73/'Population 2016'!N$6","v":1.9512123395432956E-2},{"$f":"'Population 2016'!O73/'Population 2016'!O$6","v":1.9277025633977048E-2},{"$f":"'Population 2016'!P73/'Population 2016'!P$6","v":7.7707881799439658E-3},{"$f":"'Population 2016'!Q73/'Population 2016'!Q$6","v":3.9254926108374388E-3},{"$f":"'Population 2016'!R73/'Population 2016'!R$6","v":1.4768652893973024E-2},{"$f":"'Population 2016'!S73/'Population 2016'!S$6","v":1.2918380875219647E-2},{"$f":"'Population 2016'!T73/'Population 2016'!T$6","v":1.258397039859073E-2},{"$f":"'Population 2016'!U73/'Population 2016'!U$6","v":0},{"$f":"'Population 2016'!V73/'Population 2016'!V$6","v":1.1559671945701358E-2},{"$f":"'Population 2016'!W73/'Population 2016'!W$6","v":1.7392746113989638E-2},{"$f":"'Population 2016'!X73/'Population 2016'!X$6","v":1.7392746113989638E-2},{"$f":"'Population 2016'!Y73/'Population 2016'!Y$6","v":1.3489943035741291E-2},{"$f":"'Population 2016'!Z73/'Population 2016'!Z$6","v":1.990575753985253E-2},{"$f":"'Population 2016'!AA73/'Population 2016'!AA$6","v":1.8678015460857286E-2},{"$f":"'Population 2016'!AB73/'Population 2016'!AB$6","v":6.2466355643280101E-3},{"$f":"'Population 2016'!AC73/'Population 2016'!AC$6","v":1.9625884614037886E-2},{"$f":"'Population 2016'!AD73/'Population 2016'!AD$6","v":9.3204917668989386E-3},{"$f":"'Population 2016'!AE73/'Population 2016'!AE$6","v":8.1444687996460683E-3},{"$f":"'Population 2016'!AF73/'Population 2016'!AF$6","v":2.8902533466091382E-2},{"$f":"'Population 2016'!AG73/'Population 2016'!AG$6","v":8.1444687996460683E-3},{"$f":"'Population 2016'!AH73/'Population 2016'!AH$6","v":1.6974396805806608E-2},{"$f":"'Population 2016'!AI73/'Population 2016'!AI$6","v":1.0965233513436597E-2},{"$f":"'Population 2016'!AJ73/'Population 2016'!AJ$6","v":8.0076087623488987E-3},{"$f":"'Population 2016'!AK73/'Population 2016'!AK$6","v":2.519288301054952E-3},{"$f":"'Population 2016'!AL73/'Population 2016'!AL$6","v":2.5552199917095991E-2},{"$f":"'Population 2016'!AM73/'Population 2016'!AM$6","v":1.7703757930697901E-2},{"$f":"'Population 2016'!AN73/'Population 2016'!AN$6","v":0},{"$f":"'Population 2016'!AO73/'Population 2016'!AO$6","v":0},{"$f":"'Population 2016'!AP73/'Population 2016'!AP$6","v":8.7344627345587178E-3},{"$f":"'Population 2016'!AQ73/'Population 2016'!AQ$6","v":1.7855302863030838E-2},{"$f":"'Population 2016'!AR73/'Population 2016'!AR$6","v":1.569125275679293E-2},{"$f":"'Population 2016'!AS73/'Population 2016'!AS$6","v":9.3716616490239872E-3},{"$f":"'Population 2016'!AT73/'Population 2016'!AT$6","v":0},{"$f":"'Population 2016'!AU73/'Population 2016'!AU$6","v":0},{"$f":"'Population 2016'!AV73/'Population 2016'!AV$6","v":1.2867866078875254E-2},{"$f":"'Population 2016'!AW73/'Population 2016'!AW$6","v":1.5995216996044195E-2},{"$f":"'Population 2016'!AX73/'Population 2016'!AX$6","v":1.4459841497891273E-2},{"$f":"'Population 2016'!AY73/'Population 2016'!AY$6","v":1.6312877025673217E-2},{"$f":"'Population 2016'!AZ73/'Population 2016'!AZ$6","v":1.5149349721309132E-2},{"$f":"'Population 2016'!BA73/'Population 2016'!BA$6","v":1.9106249875480645E-2},{"$f":"'Population 2016'!BB73/'Population 2016'!BB$6","v":1.2379285760580725E-2},{"$f":"'Population 2016'!BC73/'Population 2016'!BC$6","v":0},71]
[null,"Female 70-74",{"$f":"'Population 2016'!C74/'Population 2016'!C$6","v":5.1459513734490427E-3},{"$f":"'Population 2016'!D74/'Population 2016'!D$6","v":4.7995187403551904E-3},{"$f":"'Population 2016'!E74/'Population 2016'!E$6","v":3.8658548371508649E-3},{"$f":"'Population 2016'!F74/'Population 2016'!F$6","v":6.9678871288842729E-3},{"$f":"'Population 2016'!G74/'Population 2016'!G$6","v":9.2913914698309636E-3},{"$f":"'Population 2016'!H74/'Population 2016'!H$6","v":1.5812350566728476E-2},{"$f":"'Population 2016'!I74/'Population 2016'!I$6","v":7.2351170243760317E-3},{"$f":"'Population 2016'!J74/'Population 2016'!J$6","v":1.2391748222206575E-2},{"$f":"'Population 2016'!K74/'Population 2016'!K$6","v":1.3265500190186384E-2},{"$f":"'Population 2016'!L74/'Population 2016'!L$6","v":6.9500312863144719E-3},{"$f":"'Population 2016'!M74/'Population 2016'!M$6","v":6.9500312863144719E-3},{"$f":"'Population 2016'!N74/'Population 2016'!N$6","v":1.4086370921495684E-2},{"$f":"'Population 2016'!O74/'Population 2016'!O$6","v":1.4895883444436809E-2},{"$f":"'Population 2016'!P74/'Population 2016'!P$6","v":5.3919754717978536E-3},{"$f":"'Population 2016'!Q74/'Population 2016'!Q$6","v":3.3482142857142855E-3},{"$f":"'Population 2016'!R74/'Population 2016'!R$6","v":1.0585624039610723E-2},{"$f":"'Population 2016'!S74/'Population 2016'!S$6","v":9.9590694346531426E-3},{"$f":"'Population 2016'!T74/'Population 2016'!T$6","v":9.1535109530271486E-3},{"$f":"'Population 2016'!U74/'Population 2016'!U$6","v":0},{"$f":"'Population 2016'!V74/'Population 2016'!V$6","v":8.3604355203619907E-3},{"$f":"'Population 2016'!W74/'Population 2016'!W$6","v":1.3786528497409327E-2},{"$f":"'Population 2016'!X74/'Population 2016'!X$6","v":1.3786528497409327E-2},{"$f":"'Population 2016'!Y74/'Population 2016'!Y$6","v":1.0092251852598679E-2},{"$f":"'Population 2016'!Z74/'Population 2016'!Z$6","v":1.6393691649121529E-2},{"$f":"'Population 2016'!AA74/'Population 2016'!AA$6","v":1.4875919433560184E-2},{"$f":"'Population 2016'!AB74/'Population 2016'!AB$6","v":4.2728333034272384E-3},{"$f":"'Population 2016'!AC74/'Population 2016'!AC$6","v":1.5665303676959768E-2},{"$f":"'Population 2016'!AD74/'Population 2016'!AD$6","v":7.1457103546225201E-3},{"$f":"'Population 2016'!AE74/'Population 2016'!AE$6","v":6.3748064431797613E-3},{"$f":"'Population 2016'!AF74/'Population 2016'!AF$6","v":2.1794446288306228E-2},{"$f":"'Population 2016'!AG74/'Population 2016'!AG$6","v":6.3748064431797613E-3},{"$f":"'Population 2016'!AH74/'Population 2016'!AH$6","v":1.3457147951709502E-2},{"$f":"'Population 2016'!AI74/'Population 2016'!AI$6","v":8.2615919677571908E-3},{"$f":"'Population 2016'!AJ74/'Population 2016'!AJ$6","v":6.0747376817819228E-3},{"$f":"'Population 2016'!AK74/'Population 2016'!AK$6","v":1.1021886317115414E-3},{"$f":"'Population 2016'!AL74/'Population 2016'!AL$6","v":1.9911766447563213E-2},{"$f":"'Population 2016'!AM74/'Population 2016'!AM$6","v":1.4513177159590045E-2},{"$f":"'Population 2016'!AN74/'Population 2016'!AN$6","v":0},{"$f":"'Population 2016'!AO74/'Population 2016'!AO$6","v":0},{"$f":"'Population 2016'!AP74/'Population 2016'!AP$6","v":7.2467245764745404E-3},{"$f":"'Population 2016'!AQ74/'Population 2016'!AQ$6","v":1.4131154780304703E-2},{"$f":"'Population 2016'!AR74/'Population 2016'!AR$6","v":1.2313580886084963E-2},{"$f":"'Population 2016'!AS74/'Population 2016'!AS$6","v":7.2351170243760317E-3},{"$f":"'Population 2016'!AT74/'Population 2016'!AT$6","v":0},{"$f":"'Population 2016'!AU74/'Population 2016'!AU$6","v":0},{"$f":"'Population 2016'!AV74/'Population 2016'!AV$6","v":1.0484927916120577E-2},{"$f":"'Population 2016'!AW74/'Population 2016'!AW$6","v":1.2039410642183801E-2},{"$f":"'Population 2016'!AX74/'Population 2016'!AX$6","v":1.1540065810817074E-2},{"$f":"'Population 2016'!AY74/'Population 2016'!AY$6","v":1.2610877257854388E-2},{"$f":"'Population 2016'!AZ74/'Population 2016'!AZ$6","v":1.1344147491782192E-2},{"$f":"'Population 2016'!BA74/'Population 2016'!BA$6","v":1.3607475145936684E-2},{"$f":"'Population 2016'!BB74/'Population 2016'!BB$6","v":9.7705619288353095E-3},{"$f":"'Population 2016'!BC74/'Population 2016'!BC$6","v":0},72]
[null,"Female 75-79",{"$f":"'Population 2016'!C75/'Population 2016'!C$6","v":4.3570250304812447E-3},{"$f":"'Population 2016'!D75/'Population 2016'!D$6","v":3.8840791985980698E-3},{"$f":"'Population 2016'!E75/'Population 2016'!E$6","v":2.6094520150768338E-3},{"$f":"'Population 2016'!F75/'Population 2016'!F$6","v":7.1842811390980697E-3},{"$f":"'Population 2016'!G75/'Population 2016'!G$6","v":8.0600022388895107E-3},{"$f":"'Population 2016'!H75/'Population 2016'!H$6","v":1.3642027939922608E-2},{"$f":"'Population 2016'!I75/'Population 2016'!I$6","v":5.0500145673497135E-3},{"$f":"'Population 2016'!J75/'Population 2016'!J$6","v":9.6693186885399799E-3},{"$f":"'Population 2016'!K75/'Population 2016'!K$6","v":1.0127424876378851E-2},{"$f":"'Population 2016'!L75/'Population 2016'!L$6","v":4.2236524537409489E-3},{"$f":"'Population 2016'!M75/'Population 2016'!M$6","v":4.2236524537409489E-3},{"$f":"'Population 2016'!N75/'Population 2016'!N$6","v":1.2336602508491524E-2},{"$f":"'Population 2016'!O75/'Population 2016'!O$6","v":1.2696721874785238E-2},{"$f":"'Population 2016'!P75/'Population 2016'!P$6","v":4.5461753977903471E-3},{"$f":"'Population 2016'!Q75/'Population 2016'!Q$6","v":2.8863916256157635E-3},{"$f":"'Population 2016'!R75/'Population 2016'!R$6","v":9.3051050025610375E-3},{"$f":"'Population 2016'!S75/'Population 2016'!S$6","v":8.1940045665463649E-3},{"$f":"'Population 2016'!T75/'Population 2016'!T$6","v":8.1083586895139195E-3},{"$f":"'Population 2016'!U75/'Population 2016'!U$6","v":0},{"$f":"'Population 2016'!V75/'Population 2016'!V$6","v":8.9790723981900446E-3},{"$f":"'Population 2016'!W75/'Population 2016'!W$6","v":1.1316062176165802E-2},{"$f":"'Population 2016'!X75/'Population 2016'!X$6","v":1.1316062176165802E-2},{"$f":"'Population 2016'!Y75/'Population 2016'!Y$6","v":9.2755961082825016E-3},{"$f":"'Population 2016'!Z75/'Population 2016'!Z$6","v":1.5539980130699892E-2},{"$f":"'Population 2016'!AA75/'Population 2016'!AA$6","v":1.3511064449402251E-2},{"$f":"'Population 2016'!AB75/'Population 2016'!AB$6","v":3.4429391710030506E-3},{"$f":"'Population 2016'!AC75/'Population 2016'!AC$6","v":1.4801601350799314E-2},{"$f":"'Population 2016'!AD75/'Population 2016'!AD$6","v":6.0509224327962956E-3},{"$f":"'Population 2016'!AE75/'Population 2016'!AE$6","v":5.329096868904217E-3},{"$f":"'Population 2016'!AF75/'Population 2016'!AF$6","v":2.077110299811926E-2},{"$f":"'Population 2016'!AG75/'Population 2016'!AG$6","v":5.329096868904217E-3},{"$f":"'Population 2016'!AH75/'Population 2016'!AH$6","v":1.119156419678413E-2},{"$f":"'Population 2016'!AI75/'Population 2016'!AI$6","v":6.8888451767620757E-3},{"$f":"'Population 2016'!AJ75/'Population 2016'!AJ$6","v":3.9884641345032832E-3},{"$f":"'Population 2016'!AK75/'Population 2016'!AK$6","v":7.8727759407967246E-4},{"$f":"'Population 2016'!AL75/'Population 2016'!AL$6","v":1.7276603304316931E-2},{"$f":"'Population 2016'!AM75/'Population 2016'!AM$6","v":1.199975597852611E-2},{"$f":"'Population 2016'!AN75/'Population 2016'!AN$6","v":0},{"$f":"'Population 2016'!AO75/'Population 2016'!AO$6","v":0},{"$f":"'Population 2016'!AP75/'Population 2016'!AP$6","v":4.5591975812257039E-3},{"$f":"'Population 2016'!AQ75/'Population 2016'!AQ$6","v":1.4101714874512401E-2},{"$f":"'Population 2016'!AR75/'Population 2016'!AR$6","v":1.0816915037083175E-2},{"$f":"'Population 2016'!AS75/'Population 2016'!AS$6","v":5.0500145673497135E-3},{"$f":"'Population 2016'!AT75/'Population 2016'!AT$6","v":0},{"$f":"'Population 2016'!AU75/'Population 2016'!AU$6","v":0},{"$f":"'Population 2016'!AV75/'Population 2016'!AV$6","v":9.1028237817228647E-3},{"$f":"'Population 2016'!AW75/'Population 2016'!AW$6","v":1.0106552879220959E-2},{"$f":"'Population 2016'!AX75/'Population 2016'!AX$6","v":9.2227835194883447E-3},{"$f":"'Population 2016'!AY75/'Population 2016'!AY$6","v":1.0598640450259484E-2},{"$f":"'Population 2016'!AZ75/'Population 2016'!AZ$6","v":9.8256395598113472E-3},{"$f":"'Population 2016'!BA75/'Population 2016'!BA$6","v":1.1754627139242524E-2},{"$f":"'Population 2016'!BB75/'Population 2016'!BB$6","v":7.7613584807829416E-3},{"$f":"'Population 2016'!BC75/'Population 2016'!BC$6","v":0},73]
[null,"Female 80-84",{"$f":"'Population 2016'!C76/'Population 2016'!C$6","v":3.3887972459298575E-3},{"$f":"'Population 2016'!D76/'Population 2016'!D$6","v":3.1255721497135984E-3},{"$f":"'Population 2016'!E76/'Population 2016'!E$6","v":2.4161592732192907E-3},{"$f":"'Population 2016'!F76/'Population 2016'!F$6","v":4.1980437981476671E-3},{"$f":"'Population 2016'!G76/'Population 2016'!G$6","v":6.5487518190977274E-3},{"$f":"'Population 2016'!H76/'Population 2016'!H$6","v":9.9691742637895986E-3},{"$f":"'Population 2016'!I76/'Population 2016'!I$6","v":3.9817422550257357E-3},{"$f":"'Population 2016'!J76/'Population 2016'!J$6","v":7.2989274566406161E-3},{"$f":"'Population 2016'!K76/'Population 2016'!K$6","v":6.6565233929250667E-3},{"$f":"'Population 2016'!L76/'Population 2016'!L$6","v":3.3744524894967374E-3},{"$f":"'Population 2016'!M76/'Population 2016'!M$6","v":3.3744524894967374E-3},{"$f":"'Population 2016'!N76/'Population 2016'!N$6","v":9.8663412195444718E-3},{"$f":"'Population 2016'!O76/'Population 2016'!O$6","v":9.6213318672256198E-3},{"$f":"'Population 2016'!P76/'Population 2016'!P$6","v":2.9603002590262726E-3},{"$f":"'Population 2016'!Q76/'Population 2016'!Q$6","v":1.6163793103448276E-3},{"$f":"'Population 2016'!R76/'Population 2016'!R$6","v":8.0245859655113539E-3},{"$f":"'Population 2016'!S76/'Population 2016'!S$6","v":6.2184997737770812E-3},{"$f":"'Population 2016'!T76/'Population 2016'!T$6","v":6.422629232234519E-3},{"$f":"'Population 2016'!U76/'Population 2016'!U$6","v":0},{"$f":"'Population 2016'!V76/'Population 2016'!V$6","v":6.4161481900452486E-3},{"$f":"'Population 2016'!W76/'Population 2016'!W$6","v":8.1740932642487048E-3},{"$f":"'Population 2016'!X76/'Population 2016'!X$6","v":8.1740932642487048E-3},{"$f":"'Population 2016'!Y76/'Population 2016'!Y$6","v":6.7953823662852244E-3},{"$f":"'Population 2016'!Z76/'Population 2016'!Z$6","v":1.2301344975406425E-2},{"$f":"'Population 2016'!AA76/'Population 2016'!AA$6","v":1.0590124799240081E-2},{"$f":"'Population 2016'!AB76/'Population 2016'!AB$6","v":2.7924816077516596E-3},{"$f":"'Population 2016'!AC76/'Population 2016'!AC$6","v":1.1733901872522205E-2},{"$f":"'Population 2016'!AD76/'Population 2016'!AD$6","v":4.6750403148255E-3},{"$f":"'Population 2016'!AE76/'Population 2016'!AE$6","v":4.0018501015544874E-3},{"$f":"'Population 2016'!AF76/'Population 2016'!AF$6","v":1.653944020356234E-2},{"$f":"'Population 2016'!AG76/'Population 2016'!AG$6","v":4.0018501015544874E-3},{"$f":"'Population 2016'!AH76/'Population 2016'!AH$6","v":8.5343980644642485E-3},{"$f":"'Population 2016'!AI76/'Population 2016'!AI$6","v":5.4240239058831411E-3},{"$f":"'Population 2016'!AJ76/'Population 2016'!AJ$6","v":4.1725470945572808E-3},{"$f":"'Population 2016'!AK76/'Population 2016'!AK$6","v":7.8727759407967246E-4},{"$f":"'Population 2016'!AL76/'Population 2016'!AL$6","v":1.2154319891040445E-2},{"$f":"'Population 2016'!AM76/'Population 2016'!AM$6","v":9.0348950707662273E-3},{"$f":"'Population 2016'!AN76/'Population 2016'!AN$6","v":0},{"$f":"'Population 2016'!AO76/'Population 2016'!AO$6","v":0},{"$f":"'Population 2016'!AP76/'Population 2016'!AP$6","v":5.2310793300379133E-3},{"$f":"'Population 2016'!AQ76/'Population 2016'!AQ$6","v":1.1584602929270627E-2},{"$f":"'Population 2016'!AR76/'Population 2016'!AR$6","v":8.3514858704117987E-3},{"$f":"'Population 2016'!AS76/'Population 2016'!AS$6","v":3.9817422550257357E-3},{"$f":"'Population 2016'!AT76/'Population 2016'!AT$6","v":0},{"$f":"'Population 2016'!AU76/'Population 2016'!AU$6","v":0},{"$f":"'Population 2016'!AV76/'Population 2016'!AV$6","v":6.9343500536161087E-3},{"$f":"'Population 2016'!AW76/'Population 2016'!AW$6","v":7.8624722561200337E-3},{"$f":"'Population 2016'!AX76/'Population 2016'!AX$6","v":7.9251054363442559E-3},{"$f":"'Population 2016'!AY76/'Population 2016'!AY$6","v":8.0102503686950988E-3},{"$f":"'Population 2016'!AZ76/'Population 2016'!AZ$6","v":7.833714449049593E-3},{"$f":"'Population 2016'!BA76/'Population 2016'!BA$6","v":8.9255473870858484E-3},{"$f":"'Population 2016'!BB76/'Population 2016'!BB$6","v":5.7683582863438977E-3},{"$f":"'Population 2016'!BC76/'Population 2016'!BC$6","v":0},74]
[null,"Female 85-89",{"$f":"'Population 2016'!C77/'Population 2016'!C$6","v":2.5998709029620599E-3},{"$f":"'Population 2016'!D77/'Population 2016'!D$6","v":2.3539873930897392E-3},{"$f":"'Population 2016'!E77/'Population 2016'!E$6","v":1.6913114912535034E-3},{"$f":"'Population 2016'!F77/'Population 2016'!F$6","v":2.5967281225655675E-3},{"$f":"'Population 2016'!G77/'Population 2016'!G$6","v":4.8136124482256798E-3},{"$f":"'Population 2016'!H77/'Population 2016'!H$6","v":6.1234102684879889E-3},{"$f":"'Population 2016'!I77/'Population 2016'!I$6","v":2.8649121103233952E-3},{"$f":"'Population 2016'!J77/'Population 2016'!J$6","v":3.8724213194395551E-3},{"$f":"'Population 2016'!K77/'Population 2016'!K$6","v":4.1841004184100415E-3},{"$f":"'Population 2016'!L77/'Population 2016'!L$6","v":2.2570841154911951E-3},{"$f":"'Population 2016'!M77/'Population 2016'!M$6","v":2.2570841154911951E-3},{"$f":"'Population 2016'!N77/'Population 2016'!N$6","v":6.4991398197297417E-3},{"$f":"'Population 2016'!O77/'Population 2016'!O$6","v":6.545941859666002E-3},{"$f":"'Population 2016'!P77/'Population 2016'!P$6","v":1.744462652640482E-3},{"$f":"'Population 2016'!Q77/'Population 2016'!Q$6","v":8.0818965517241378E-4},{"$f":"'Population 2016'!R77/'Population 2016'!R$6","v":3.7561891753457402E-3},{"$f":"'Population 2016'!S77/'Population 2016'!S$6","v":3.7458306589926243E-3},{"$f":"'Population 2016'!T77/'Population 2016'!T$6","v":4.2901814687760758E-3},{"$f":"'Population 2016'!U77/'Population 2016'!U$6","v":0},{"$f":"'Population 2016'!V77/'Population 2016'!V$6","v":3.8355486425339365E-3},{"$f":"'Population 2016'!W77/'Population 2016'!W$6","v":5.0155440414507771E-3},{"$f":"'Population 2016'!X77/'Population 2016'!X$6","v":5.0155440414507771E-3},{"$f":"'Population 2016'!Y77/'Population 2016'!Y$6","v":3.8513888188738215E-3},{"$f":"'Population 2016'!Z77/'Population 2016'!Z$6","v":7.1699615070286889E-3},{"$f":"'Population 2016'!AA77/'Population 2016'!AA$6","v":6.2305880000249969E-3},{"$f":"'Population 2016'!AB77/'Population 2016'!AB$6","v":2.1083796877803696E-3},{"$f":"'Population 2016'!AC77/'Population 2016'!AC$6","v":6.958250497017893E-3},{"$f":"'Population 2016'!AD77/'Population 2016'!AD$6","v":3.0772417262142529E-3},{"$f":"'Population 2016'!AE77/'Population 2016'!AE$6","v":2.4533955396464696E-3},{"$f":"'Population 2016'!AF77/'Population 2016'!AF$6","v":9.9845115610133865E-3},{"$f":"'Population 2016'!AG77/'Population 2016'!AG$6","v":2.4533955396464696E-3},{"$f":"'Population 2016'!AH77/'Population 2016'!AH$6","v":4.9227498872452527E-3},{"$f":"'Population 2016'!AI77/'Population 2016'!AI$6","v":3.1807547596228295E-3},{"$f":"'Population 2016'!AJ77/'Population 2016'!AJ$6","v":2.2089955206479718E-3},{"$f":"'Population 2016'!AK77/'Population 2016'!AK$6","v":6.2982207526373799E-4},{"$f":"'Population 2016'!AL77/'Population 2016'!AL$6","v":6.7063421566885767E-3},{"$f":"'Population 2016'!AM77/'Population 2016'!AM$6","v":5.4538799414348459E-3},{"$f":"'Population 2016'!AN77/'Population 2016'!AN$6","v":0},{"$f":"'Population 2016'!AO77/'Population 2016'!AO$6","v":0},{"$f":"'Population 2016'!AP77/'Population 2016'!AP$6","v":2.4955607813024906E-3},{"$f":"'Population 2016'!AQ77/'Population 2016'!AQ$6","v":6.668138661956282E-3},{"$f":"'Population 2016'!AR77/'Population 2016'!AR$6","v":5.0128132231106008E-3},{"$f":"'Population 2016'!AS77/'Population 2016'!AS$6","v":2.8649121103233952E-3},{"$f":"'Population 2016'!AT77/'Population 2016'!AT$6","v":0},{"$f":"'Population 2016'!AU77/'Population 2016'!AU$6","v":0},{"$f":"'Population 2016'!AV77/'Population 2016'!AV$6","v":4.5990706541165259E-3},{"$f":"'Population 2016'!AW77/'Population 2016'!AW$6","v":4.209698687130935E-3},{"$f":"'Population 2016'!AX77/'Population 2016'!AX$6","v":3.5686147286462435E-3},{"$f":"'Population 2016'!AY77/'Population 2016'!AY$6","v":4.983295854706183E-3},{"$f":"'Population 2016'!AZ77/'Population 2016'!AZ$6","v":4.948549378304988E-3},{"$f":"'Population 2016'!BA77/'Population 2016'!BA$6","v":6.4949295718526485E-3},{"$f":"'Population 2016'!BB77/'Population 2016'!BB$6","v":2.5601140709054378E-3},{"$f":"'Population 2016'!BC77/'Population 2016'!BC$6","v":0},75]
[null,"Female 90+",{"$f":"'Population 2016'!C78/'Population 2016'!C$6","v":1.2730402352434914E-3},{"$f":"'Population 2016'!D78/'Population 2016'!D$6","v":1.1639159888054821E-3},{"$f":"'Population 2016'!E78/'Population 2016'!E$6","v":8.6981733835894465E-4},{"$f":"'Population 2016'!F78/'Population 2016'!F$6","v":1.6013156755820999E-3},{"$f":"'Population 2016'!G78/'Population 2016'!G$6","v":3.0784730773536326E-3},{"$f":"'Population 2016'!H78/'Population 2016'!H$6","v":3.3866572857849829E-3},{"$f":"'Population 2016'!I78/'Population 2016'!I$6","v":1.1653879770807032E-3},{"$f":"'Population 2016'!J78/'Population 2016'!J$6","v":2.3469220117815484E-3},{"$f":"'Population 2016'!K78/'Population 2016'!K$6","v":2.6626093571700264E-3},{"$f":"'Population 2016'!L78/'Population 2016'!L$6","v":8.9389469920443372E-4},{"$f":"'Population 2016'!M78/'Population 2016'!M$6","v":8.9389469920443372E-4},{"$f":"'Population 2016'!N78/'Population 2016'!N$6","v":3.514240762252055E-3},{"$f":"'Population 2016'!O78/'Population 2016'!O$6","v":3.4877328018692874E-3},{"$f":"'Population 2016'!P78/'Population 2016'!P$6","v":2.6431252312734575E-4},{"$f":"'Population 2016'!Q78/'Population 2016'!Q$6","v":2.3091133004926107E-4},{"$f":"'Population 2016'!R78/'Population 2016'!R$6","v":2.2195663308861194E-3},{"$f":"'Population 2016'!S78/'Population 2016'!S$6","v":2.1412262334410083E-3},{"$f":"'Population 2016'!T78/'Population 2016'!T$6","v":2.2841634146135888E-3},{"$f":"'Population 2016'!U78/'Population 2016'!U$6","v":0},{"$f":"'Population 2016'!V78/'Population 2016'!V$6","v":1.838235294117647E-3},{"$f":"'Population 2016'!W78/'Population 2016'!W$6","v":2.9181347150259067E-3},{"$f":"'Population 2016'!X78/'Population 2016'!X$6","v":2.9181347150259067E-3},{"$f":"'Population 2016'!Y78/'Population 2016'!Y$6","v":2.0567626153148158E-3},{"$f":"'Population 2016'!Z78/'Population 2016'!Z$6","v":3.8644877275171578E-3},{"$f":"'Population 2016'!AA78/'Population 2016'!AA$6","v":3.3546435691207809E-3},{"$f":"'Population 2016'!AB78/'Population 2016'!AB$6","v":1.0205454871702853E-3},{"$f":"'Population 2016'!AC78/'Population 2016'!AC$6","v":3.7115856718787084E-3},{"$f":"'Population 2016'!AD78/'Population 2016'!AD$6","v":1.7901261964996375E-3},{"$f":"'Population 2016'!AE78/'Population 2016'!AE$6","v":1.3272467673497296E-3},{"$f":"'Population 2016'!AF78/'Population 2016'!AF$6","v":5.0060847438875983E-3},{"$f":"'Population 2016'!AG78/'Population 2016'!AG$6","v":1.3272467673497296E-3},{"$f":"'Population 2016'!AH78/'Population 2016'!AH$6","v":2.7131064719476679E-3},{"$f":"'Population 2016'!AI78/'Population 2016'!AI$6","v":1.8331191904142096E-3},{"$f":"'Population 2016'!AJ78/'Population 2016'!AJ$6","v":1.1658587470086519E-3},{"$f":"'Population 2016'!AK78/'Population 2016'!AK$6","v":1.574555188159345E-4},{"$f":"'Population 2016'!AL78/'Population 2016'!AL$6","v":3.8047018416533427E-3},{"$f":"'Population 2016'!AM78/'Population 2016'!AM$6","v":2.8306490971205466E-3},{"$f":"'Population 2016'!AN78/'Population 2016'!AN$6","v":0},{"$f":"'Population 2016'!AO78/'Population 2016'!AO$6","v":0},{"$f":"'Population 2016'!AP78/'Population 2016'!AP$6","v":1.2957719441378317E-3},{"$f":"'Population 2016'!AQ78/'Population 2016'!AQ$6","v":3.1059100610878044E-3},{"$f":"'Population 2016'!AR78/'Population 2016'!AR$6","v":2.7271196077921578E-3},{"$f":"'Population 2016'!AS78/'Population 2016'!AS$6","v":1.1653879770807032E-3},{"$f":"'Population 2016'!AT78/'Population 2016'!AT$6","v":0},{"$f":"'Population 2016'!AU78/'Population 2016'!AU$6","v":0},{"$f":"'Population 2016'!AV78/'Population 2016'!AV$6","v":2.5735732157750506E-3},{"$f":"'Population 2016'!AW78/'Population 2016'!AW$6","v":2.555303483239011E-3},{"$f":"'Population 2016'!AX78/'Population 2016'!AX$6","v":2.0392084163692822E-3},{"$f":"'Population 2016'!AY78/'Population 2016'!AY$6","v":2.8162716003732099E-3},{"$f":"'Population 2016'!AZ78/'Population 2016'!AZ$6","v":2.7065170787480349E-3},{"$f":"'Population 2016'!BA78/'Population 2016'!BA$6","v":4.2436196282350132E-3},{"$f":"'Population 2016'!BB78/'Population 2016'!BB$6","v":1.9930001944390434E-3},{"$f":"'Population 2016'!BC78/'Population 2016'!BC$6","v":0},76]
[null,"Male 0-4",{"$f":"'Population 2016'!C79/'Population 2016'!C$6","v":0},{"$f":"'Population 2016'!D79/'Population 2016'!D$6","v":0},{"$f":"'Population 2016'!E79/'Population 2016'!E$6","v":0},{"$f":"'Population 2016'!F79/'Population 2016'!F$6","v":0},{"$f":"'Population 2016'!G79/'Population 2016'!G$6","v":0},{"$f":"'Population 2016'!H79/'Population 2016'!H$6","v":0},{"$f":"'Population 2016'!I79/'Population 2016'!I$6","v":0},{"$f":"'Population 2016'!J79/'Population 2016'!J$6","v":0},{"$f":"'Population 2016'!K79/'Population 2016'!K$6","v":0},{"$f":"'Population 2016'!L79/'Population 2016'!L$6","v":0},{"$f":"'Population 2016'!M79/'Population 2016'!M$6","v":0},{"$f":"'Population 2016'!N79/'Population 2016'!N$6","v":0},{"$f":"'Population 2016'!O79/'Population 2016'!O$6","v":0},{"$f":"'Population 2016'!P79/'Population 2016'!P$6","v":0},{"$f":"'Population 2016'!Q79/'Population 2016'!Q$6","v":0},{"$f":"'Population 2016'!R79/'Population 2016'!R$6","v":0},{"$f":"'Population 2016'!S79/'Population 2016'!S$6","v":0},{"$f":"'Population 2016'!T79/'Population 2016'!T$6","v":0},{"$f":"'Population 2016'!U79/'Population 2016'!U$6","v":0},{"$f":"'Population 2016'!V79/'Population 2016'!V$6","v":0},{"$f":"'Population 2016'!W79/'Population 2016'!W$6","v":0},{"$f":"'Population 2016'!X79/'Population 2016'!X$6","v":0},{"$f":"'Population 2016'!Y79/'Population 2016'!Y$6","v":0},{"$f":"'Population 2016'!Z79/'Population 2016'!Z$6","v":0},{"$f":"'Population 2016'!AA79/'Population 2016'!AA$6","v":0},{"$f":"'Population 2016'!AB79/'Population 2016'!AB$6","v":0},{"$f":"'Population 2016'!AC79/'Population 2016'!AC$6","v":0},{"$f":"'Population 2016'!AD79/'Population 2016'!AD$6","v":0},{"$f":"'Population 2016'!AE79/'Population 2016'!AE$6","v":0},{"$f":"'Population 2016'!AF79/'Population 2016'!AF$6","v":0},{"$f":"'Population 2016'!AG79/'Population 2016'!AG$6","v":0},{"$f":"'Population 2016'!AH79/'Population 2016'!AH$6","v":0},{"$f":"'Population 2016'!AI79/'Population 2016'!AI$6","v":0},{"$f":"'Population 2016'!AJ79/'Population 2016'!AJ$6","v":0},{"$f":"'Population 2016'!AK79/'Population 2016'!AK$6","v":0},{"$f":"'Population 2016'!AL79/'Population 2016'!AL$6","v":0},{"$f":"'Population 2016'!AM79/'Population 2016'!AM$6","v":0},{"$f":"'Population 2016'!AN79/'Population 2016'!AN$6","v":0},{"$f":"'Population 2016'!AO79/'Population 2016'!AO$6","v":0},{"$f":"'Population 2016'!AP79/'Population 2016'!AP$6","v":0},{"$f":"'Population 2016'!AQ79/'Population 2016'!AQ$6","v":0},{"$f":"'Population 2016'!AR79/'Population 2016'!AR$6","v":0},{"$f":"'Population 2016'!AS79/'Population 2016'!AS$6","v":0},{"$f":"'Population 2016'!AT79/'Population 2016'!AT$6","v":0},{"$f":"'Population 2016'!AU79/'Population 2016'!AU$6","v":0},{"$f":"'Population 2016'!AV79/'Population 2016'!AV$6","v":0},{"$f":"'Population 2016'!AW79/'Population 2016'!AW$6","v":0},{"$f":"'Population 2016'!AX79/'Population 2016'!AX$6","v":0},{"$f":"'Population 2016'!AY79/'Population 2016'!AY$6","v":0},{"$f":"'Population 2016'!AZ79/'Population 2016'!AZ$6","v":0},{"$f":"'Population 2016'!BA79/'Population 2016'!BA$6","v":0},{"$f":"'Population 2016'!BB79/'Population 2016'!BB$6","v":0},{"$f":"'Population 2016'!BC79/'Population 2016'!BC$6","v":0},77]
[null,"Male 5-9",{"$f":"'Population 2016'!C80/'Population 2016'!C$6","v":0},{"$f":"'Population 2016'!D80/'Population 2016'!D$6","v":0},{"$f":"'Population 2016'!E80/'Population 2016'!E$6","v":0},{"$f":"'Population 2016'!F80/'Population 2016'!F$6","v":0},{"$f":"'Population 2016'!G80/'Population 2016'!G$6","v":0},{"$f":"'Population 2016'!H80/'Population 2016'!H$6","v":0},{"$f":"'Population 2016'!I80/'Population 2016'!I$6","v":0},{"$f":"'Population 2016'!J80/'Population 2016'!J$6","v":0},{"$f":"'Population 2016'!K80/'Population 2016'!K$6","v":0},{"$f":"'Population 2016'!L80/'Population 2016'!L$6","v":0},{"$f":"'Population 2016'!M80/'Population 2016'!M$6","v":0},{"$f":"'Population 2016'!N80/'Population 2016'!N$6","v":0},{"$f":"'Population 2016'!O80/'Population 2016'!O$6","v":0},{"$f":"'Population 2016'!P80/'Population 2016'!P$6","v":0},{"$f":"'Population 2016'!Q80/'Population 2016'!Q$6","v":0},{"$f":"'Population 2016'!R80/'Population 2016'!R$6","v":0},{"$f":"'Population 2016'!S80/'Population 2016'!S$6","v":0},{"$f":"'Population 2016'!T80/'Population 2016'!T$6","v":0},{"$f":"'Population 2016'!U80/'Population 2016'!U$6","v":0},{"$f":"'Population 2016'!V80/'Population 2016'!V$6","v":0},{"$f":"'Population 2016'!W80/'Population 2016'!W$6","v":0},{"$f":"'Population 2016'!X80/'Population 2016'!X$6","v":0},{"$f":"'Population 2016'!Y80/'Population 2016'!Y$6","v":0},{"$f":"'Population 2016'!Z80/'Population 2016'!Z$6","v":0},{"$f":"'Population 2016'!AA80/'Population 2016'!AA$6","v":0},{"$f":"'Population 2016'!AB80/'Population 2016'!AB$6","v":0},{"$f":"'Population 2016'!AC80/'Population 2016'!AC$6","v":0},{"$f":"'Population 2016'!AD80/'Population 2016'!AD$6","v":0},{"$f":"'Population 2016'!AE80/'Population 2016'!AE$6","v":0},{"$f":"'Population 2016'!AF80/'Population 2016'!AF$6","v":0},{"$f":"'Population 2016'!AG80/'Population 2016'!AG$6","v":0},{"$f":"'Population 2016'!AH80/'Population 2016'!AH$6","v":0},{"$f":"'Population 2016'!AI80/'Population 2016'!AI$6","v":0},{"$f":"'Population 2016'!AJ80/'Population 2016'!AJ$6","v":0},{"$f":"'Population 2016'!AK80/'Population 2016'!AK$6","v":0},{"$f":"'Population 2016'!AL80/'Population 2016'!AL$6","v":0},{"$f":"'Population 2016'!AM80/'Population 2016'!AM$6","v":0},{"$f":"'Population 2016'!AN80/'Population 2016'!AN$6","v":0},{"$f":"'Population 2016'!AO80/'Population 2016'!AO$6","v":0},{"$f":"'Population 2016'!AP80/'Population 2016'!AP$6","v":0},{"$f":"'Population 2016'!AQ80/'Population 2016'!AQ$6","v":0},{"$f":"'Population 2016'!AR80/'Population 2016'!AR$6","v":0},{"$f":"'Population 2016'!AS80/'Population 2016'!AS$6","v":0},{"$f":"'Population 2016'!AT80/'Population 2016'!AT$6","v":0},{"$f":"'Population 2016'!AU80/'Population 2016'!AU$6","v":0},{"$f":"'Population 2016'!AV80/'Population 2016'!AV$6","v":0},{"$f":"'Population 2016'!AW80/'Population 2016'!AW$6","v":0},{"$f":"'Population 2016'!AX80/'Population 2016'!AX$6","v":0},{"$f":"'Population 2016'!AY80/'Population 2016'!AY$6","v":0},{"$f":"'Population 2016'!AZ80/'Population 2016'!AZ$6","v":0},{"$f":"'Population 2016'!BA80/'Population 2016'!BA$6","v":0},{"$f":"'Population 2016'!BB80/'Population 2016'!BB$6","v":0},{"$f":"'Population 2016'!BC80/'Population 2016'!BC$6","v":0},78]
[null,"Male 10-15",{"$f":"'Population 2016'!C81/'Population 2016'!C$6","v":0},{"$f":"'Population 2016'!D81/'Population 2016'!D$6","v":0},{"$f":"'Population 2016'!E81/'Population 2016'!E$6","v":0},{"$f":"'Population 2016'!F81/'Population 2016'!F$6","v":0},{"$f":"'Population 2016'!G81/'Population 2016'!G$6","v":0},{"$f":"'Population 2016'!H81/'Population 2016'!H$6","v":0},{"$f":"'Population 2016'!I81/'Population 2016'!I$6","v":0},{"$f":"'Population 2016'!J81/'Population 2016'!J$6","v":0},{"$f":"'Population 2016'!K81/'Population 2016'!K$6","v":0},{"$f":"'Population 2016'!L81/'Population 2016'!L$6","v":0},{"$f":"'Population 2016'!M81/'Population 2016'!M$6","v":0},{"$f":"'Population 2016'!N81/'Population 2016'!N$6","v":0},{"$f":"'Population 2016'!O81/'Population 2016'!O$6","v":0},{"$f":"'Population 2016'!P81/'Population 2016'!P$6","v":0},{"$f":"'Population 2016'!Q81/'Population 2016'!Q$6","v":0},{"$f":"'Population 2016'!R81/'Population 2016'!R$6","v":0},{"$f":"'Population 2016'!S81/'Population 2016'!S$6","v":0},{"$f":"'Population 2016'!T81/'Population 2016'!T$6","v":0},{"$f":"'Population 2016'!U81/'Population 2016'!U$6","v":0},{"$f":"'Population 2016'!V81/'Population 2016'!V$6","v":0},{"$f":"'Population 2016'!W81/'Population 2016'!W$6","v":0},{"$f":"'Population 2016'!X81/'Population 2016'!X$6","v":0},{"$f":"'Population 2016'!Y81/'Population 2016'!Y$6","v":0},{"$f":"'Population 2016'!Z81/'Population 2016'!Z$6","v":0},{"$f":"'Population 2016'!AA81/'Population 2016'!AA$6","v":0},{"$f":"'Population 2016'!AB81/'Population 2016'!AB$6","v":0},{"$f":"'Population 2016'!AC81/'Population 2016'!AC$6","v":0},{"$f":"'Population 2016'!AD81/'Population 2016'!AD$6","v":0},{"$f":"'Population 2016'!AE81/'Population 2016'!AE$6","v":0},{"$f":"'Population 2016'!AF81/'Population 2016'!AF$6","v":0},{"$f":"'Population 2016'!AG81/'Population 2016'!AG$6","v":0},{"$f":"'Population 2016'!AH81/'Population 2016'!AH$6","v":0},{"$f":"'Population 2016'!AI81/'Population 2016'!AI$6","v":0},{"$f":"'Population 2016'!AJ81/'Population 2016'!AJ$6","v":0},{"$f":"'Population 2016'!AK81/'Population 2016'!AK$6","v":0},{"$f":"'Population 2016'!AL81/'Population 2016'!AL$6","v":0},{"$f":"'Population 2016'!AM81/'Population 2016'!AM$6","v":0},{"$f":"'Population 2016'!AN81/'Population 2016'!AN$6","v":0},{"$f":"'Population 2016'!AO81/'Population 2016'!AO$6","v":0},{"$f":"'Population 2016'!AP81/'Population 2016'!AP$6","v":0},{"$f":"'Population 2016'!AQ81/'Population 2016'!AQ$6","v":0},{"$f":"'Population 2016'!AR81/'Population 2016'!AR$6","v":0},{"$f":"'Population 2016'!AS81/'Population 2016'!AS$6","v":0},{"$f":"'Population 2016'!AT81/'Population 2016'!AT$6","v":0},{"$f":"'Population 2016'!AU81/'Population 2016'!AU$6","v":0},{"$f":"'Population 2016'!AV81/'Population 2016'!AV$6","v":0},{"$f":"'Population 2016'!AW81/'Population 2016'!AW$6","v":0},{"$f":"'Population 2016'!AX81/'Population 2016'!AX$6","v":0},{"$f":"'Population 2016'!AY81/'Population 2016'!AY$6","v":0},{"$f":"'Population 2016'!AZ81/'Population 2016'!AZ$6","v":0},{"$f":"'Population 2016'!BA81/'Population 2016'!BA$6","v":0},{"$f":"'Population 2016'!BB81/'Population 2016'!BB$6","v":0},{"$f":"'Population 2016'!BC81/'Population 2016'!BC$6","v":0},79]
[null,"Male 16-19",{"$f":"'Population 2016'!C82/'Population 2016'!C$6","v":6.7596643477013559E-3},{"$f":"'Population 2016'!D82/'Population 2016'!D$6","v":6.0942118065545475E-3},{"$f":"'Population 2016'!E82/'Population 2016'!E$6","v":4.300763506330337E-3},{"$f":"'Population 2016'!F82/'Population 2016'!F$6","v":1.0430191292305029E-2},{"$f":"'Population 2016'!G82/'Population 2016'!G$6","v":9.9630583230717572E-3},{"$f":"'Population 2016'!H82/'Population 2016'!H$6","v":1.6343006373832111E-2},{"$f":"'Population 2016'!I82/'Population 2016'!I$6","v":8.5947363309701857E-3},{"$f":"'Population 2016'!J82/'Population 2016'!J$6","v":1.6287638761763947E-2},{"$f":"'Population 2016'!K82/'Population 2016'!K$6","v":1.6260935717002663E-2},{"$f":"'Population 2016'!L82/'Population 2016'!L$6","v":6.5701260391525882E-3},{"$f":"'Population 2016'!M82/'Population 2016'!M$6","v":6.5701260391525882E-3},{"$f":"'Population 2016'!N82/'Population 2016'!N$6","v":1.7218309341410696E-2},{"$f":"'Population 2016'!O82/'Population 2016'!O$6","v":1.615009277712872E-2},{"$f":"'Population 2016'!P82/'Population 2016'!P$6","v":7.1893006290638054E-3},{"$f":"'Population 2016'!Q82/'Population 2016'!Q$6","v":3.3866995073891628E-3},{"$f":"'Population 2016'!R82/'Population 2016'!R$6","v":1.3914973535939901E-2},{"$f":"'Population 2016'!S82/'Population 2016'!S$6","v":1.1818832268858048E-2},{"$f":"'Population 2016'!T82/'Population 2016'!T$6","v":1.2651399576881906E-2},{"$f":"'Population 2016'!U82/'Population 2016'!U$6","v":0},{"$f":"'Population 2016'!V82/'Population 2016'!V$6","v":8.8730203619909499E-3},{"$f":"'Population 2016'!W82/'Population 2016'!W$6","v":1.4789637305699483E-2},{"$f":"'Population 2016'!X82/'Population 2016'!X$6","v":1.4789637305699483E-2},{"$f":"'Population 2016'!Y82/'Population 2016'!Y$6","v":1.2058274940767253E-2},{"$f":"'Population 2016'!Z82/'Population 2016'!Z$6","v":2.0650096764099152E-2},{"$f":"'Population 2016'!AA82/'Population 2016'!AA$6","v":1.7466894142497361E-2},{"$f":"'Population 2016'!AB82/'Population 2016'!AB$6","v":5.4840301453436208E-3},{"$f":"'Population 2016'!AC82/'Population 2016'!AC$6","v":1.9018958655114323E-2},{"$f":"'Population 2016'!AD82/'Population 2016'!AD$6","v":8.6991256491056775E-3},{"$f":"'Population 2016'!AE82/'Population 2016'!AE$6","v":8.2450177971725627E-3},{"$f":"'Population 2016'!AF82/'Population 2016'!AF$6","v":2.1407235313640891E-2},{"$f":"'Population 2016'!AG82/'Population 2016'!AG$6","v":8.2450177971725627E-3},{"$f":"'Population 2016'!AH82/'Population 2016'!AH$6","v":1.4677346609840604E-2},{"$f":"'Population 2016'!AI82/'Population 2016'!AI$6","v":1.0596935593901321E-2},{"$f":"'Population 2016'!AJ82/'Population 2016'!AJ$6","v":6.3508621218629196E-3},{"$f":"'Population 2016'!AK82/'Population 2016'!AK$6","v":1.8107384663832468E-3},{"$f":"'Population 2016'!AL82/'Population 2016'!AL$6","v":2.0281873630603423E-2},{"$f":"'Population 2016'!AM82/'Population 2016'!AM$6","v":1.6654465592972182E-2},{"$f":"'Population 2016'!AN82/'Population 2016'!AN$6","v":0},{"$f":"'Population 2016'!AO82/'Population 2016'!AO$6","v":0},{"$f":"'Population 2016'!AP82/'Population 2016'!AP$6","v":8.2065556462062681E-3},{"$f":"'Population 2016'!AQ82/'Population 2016'!AQ$6","v":1.5720909693088984E-2},{"$f":"'Population 2016'!AR82/'Population 2016'!AR$6","v":1.4333062411191986E-2},{"$f":"'Population 2016'!AS82/'Population 2016'!AS$6","v":8.5947363309701857E-3},{"$f":"'Population 2016'!AT82/'Population 2016'!AT$6","v":0},{"$f":"'Population 2016'!AU82/'Population 2016'!AU$6","v":0},{"$f":"'Population 2016'!AV82/'Population 2016'!AV$6","v":1.0270463481472656E-2},{"$f":"'Population 2016'!AW82/'Population 2016'!AW$6","v":1.2023030491650218E-2},{"$f":"'Population 2016'!AX82/'Population 2016'!AX$6","v":1.6313667330954258E-2},{"$f":"'Population 2016'!AY82/'Population 2016'!AY$6","v":1.4476925921307782E-2},{"$f":"'Population 2016'!AZ82/'Population 2016'!AZ$6","v":1.4139988566528513E-2},{"$f":"'Population 2016'!BA82/'Population 2016'!BA$6","v":1.6715478253939792E-2},{"$f":"'Population 2016'!BB82/'Population 2016'!BB$6","v":1.192559465940761E-2},{"$f":"'Population 2016'!BC82/'Population 2016'!BC$6","v":0},80]
[null,"Male 20-24",{"$f":"'Population 2016'!C83/'Population 2016'!C$6","v":1.1044968801549164E-2},{"$f":"'Population 2016'!D83/'Population 2016'!D$6","v":1.1089896163000549E-2},{"$f":"'Population 2016'!E83/'Population 2016'!E$6","v":1.1210979027737508E-2},{"$f":"'Population 2016'!F83/'Population 2016'!F$6","v":1.4714792694538216E-2},{"$f":"'Population 2016'!G83/'Population 2016'!G$6","v":1.5616254337848428E-2},{"$f":"'Population 2016'!H83/'Population 2016'!H$6","v":2.2907636077439973E-2},{"$f":"'Population 2016'!I83/'Population 2016'!I$6","v":1.0245702631834514E-2},{"$f":"'Population 2016'!J83/'Population 2016'!J$6","v":2.0817198244502334E-2},{"$f":"'Population 2016'!K83/'Population 2016'!K$6","v":2.0302396348421452E-2},{"$f":"'Population 2016'!L83/'Population 2016'!L$6","v":9.8104943237686607E-3},{"$f":"'Population 2016'!M83/'Population 2016'!M$6","v":9.8104943237686607E-3},{"$f":"'Population 2016'!N83/'Population 2016'!N$6","v":2.8422708759134819E-2},{"$f":"'Population 2016'!O83/'Population 2016'!O$6","v":2.231805374201086E-2},{"$f":"'Population 2016'!P83/'Population 2016'!P$6","v":8.9337632817042874E-3},{"$f":"'Population 2016'!Q83/'Population 2016'!Q$6","v":4.5797413793103444E-3},{"$f":"'Population 2016'!R83/'Population 2016'!R$6","v":1.6561379545842581E-2},{"$f":"'Population 2016'!S83/'Population 2016'!S$6","v":1.6169677711255378E-2},{"$f":"'Population 2016'!T83/'Population 2016'!T$6","v":1.8526166735500619E-2},{"$f":"'Population 2016'!U83/'Population 2016'!U$6","v":0},{"$f":"'Population 2016'!V83/'Population 2016'!V$6","v":1.3026725113122173E-2},{"$f":"'Population 2016'!W83/'Population 2016'!W$6","v":1.9059067357512952E-2},{"$f":"'Population 2016'!X83/'Population 2016'!X$6","v":1.9059067357512952E-2},{"$f":"'Population 2016'!Y83/'Population 2016'!Y$6","v":1.6373443565055198E-2},{"$f":"'Population 2016'!Z83/'Population 2016'!Z$6","v":3.2228369350237429E-2},{"$f":"'Population 2016'!AA83/'Population 2016'!AA$6","v":2.6033483942331126E-2},{"$f":"'Population 2016'!AB83/'Population 2016'!AB$6","v":9.7792930199174597E-3},{"$f":"'Population 2016'!AC83/'Population 2016'!AC$6","v":2.9186913742593364E-2},{"$f":"'Population 2016'!AD83/'Population 2016'!AD$6","v":1.2501294512745403E-2},{"$f":"'Population 2016'!AE83/'Population 2016'!AE$6","v":1.1382146519999196E-2},{"$f":"'Population 2016'!AF83/'Population 2016'!AF$6","v":3.0479035291514547E-2},{"$f":"'Population 2016'!AG83/'Population 2016'!AG$6","v":1.1382146519999196E-2},{"$f":"'Population 2016'!AH83/'Population 2016'!AH$6","v":2.0365779895741194E-2},{"$f":"'Population 2016'!AI83/'Population 2016'!AI$6","v":1.5221585606247671E-2},{"$f":"'Population 2016'!AJ83/'Population 2016'!AJ$6","v":1.0155243296312205E-2},{"$f":"'Population 2016'!AK83/'Population 2016'!AK$6","v":1.8894662257912141E-3},{"$f":"'Population 2016'!AL83/'Population 2016'!AL$6","v":2.771362586605081E-2},{"$f":"'Population 2016'!AM83/'Population 2016'!AM$6","v":2.2858711566617864E-2},{"$f":"'Population 2016'!AN83/'Population 2016'!AN$6","v":0},{"$f":"'Population 2016'!AO83/'Population 2016'!AO$6","v":0},{"$f":"'Population 2016'!AP83/'Population 2016'!AP$6","v":1.4829390027355185E-2},{"$f":"'Population 2016'!AQ83/'Population 2016'!AQ$6","v":2.5701037756679177E-2},{"$f":"'Population 2016'!AR83/'Population 2016'!AR$6","v":2.1014364148748691E-2},{"$f":"'Population 2016'!AS83/'Population 2016'!AS$6","v":1.0245702631834514E-2},{"$f":"'Population 2016'!AT83/'Population 2016'!AT$6","v":0},{"$f":"'Population 2016'!AU83/'Population 2016'!AU$6","v":0},{"$f":"'Population 2016'!AV83/'Population 2016'!AV$6","v":1.598951507208388E-2},{"$f":"'Population 2016'!AW83/'Population 2016'!AW$6","v":1.7018976404393156E-2},{"$f":"'Population 2016'!AX83/'Population 2016'!AX$6","v":2.1318997080224313E-2},{"$f":"'Population 2016'!AY83/'Population 2016'!AY$6","v":2.0986597986903263E-2},{"$f":"'Population 2016'!AZ83/'Population 2016'!AZ$6","v":2.3063455766757182E-2},{"$f":"'Population 2016'!BA83/'Population 2016'!BA$6","v":2.3608869762715916E-2},{"$f":"'Population 2016'!BB83/'Population 2016'!BB$6","v":1.6025017823578975E-2},{"$f":"'Population 2016'!BC83/'Population 2016'!BC$6","v":0},81]
[null,"Male 25-29",{"$f":"'Population 2016'!C84/'Population 2016'!C$6","v":1.8539769059743239E-2},{"$f":"'Population 2016'!D84/'Population 2016'!D$6","v":1.6961786937985508E-2},{"$f":"'Population 2016'!E84/'Population 2016'!E$6","v":1.2708997777133468E-2},{"$f":"'Population 2016'!F84/'Population 2016'!F$6","v":1.3589543841426469E-2},{"$f":"'Population 2016'!G84/'Population 2016'!G$6","v":1.2593753498264861E-2},{"$f":"'Population 2016'!H84/'Population 2016'!H$6","v":2.2055009331194812E-2},{"$f":"'Population 2016'!I84/'Population 2016'!I$6","v":7.6721375157812952E-3},{"$f":"'Population 2016'!J84/'Population 2016'!J$6","v":2.0300875401910393E-2},{"$f":"'Population 2016'!K84/'Population 2016'!K$6","v":1.6451122099657666E-2},{"$f":"'Population 2016'!L84/'Population 2016'!L$6","v":1.1084294270134978E-2},{"$f":"'Population 2016'!M84/'Population 2016'!M$6","v":1.1084294270134978E-2},{"$f":"'Population 2016'!N84/'Population 2016'!N$6","v":3.9921186901733595E-2},{"$f":"'Population 2016'!O84/'Population 2016'!O$6","v":2.202597759604151E-2},{"$f":"'Population 2016'!P84/'Population 2016'!P$6","v":8.6165882539514724E-3},{"$f":"'Population 2016'!Q84/'Population 2016'!Q$6","v":4.0409482758620692E-3},{"$f":"'Population 2016'!R84/'Population 2016'!R$6","v":1.6732115417449206E-2},{"$f":"'Population 2016'!S84/'Population 2016'!S$6","v":1.9226317616978295E-2},{"$f":"'Population 2016'!T84/'Population 2016'!T$6","v":2.8109538700134017E-2},{"$f":"'Population 2016'!U84/'Population 2016'!U$6","v":0},{"$f":"'Population 2016'!V84/'Population 2016'!V$6","v":1.4705882352941176E-2},{"$f":"'Population 2016'!W84/'Population 2016'!W$6","v":2.0236269430051815E-2},{"$f":"'Population 2016'!X84/'Population 2016'!X$6","v":2.0236269430051815E-2},{"$f":"'Population 2016'!Y84/'Population 2016'!Y$6","v":1.7109441951908052E-2},{"$f":"'Population 2016'!Z84/'Population 2016'!Z$6","v":4.1090563297696191E-2},{"$f":"'Population 2016'!AA84/'Population 2016'!AA$6","v":2.9741839929507491E-2},{"$f":"'Population 2016'!AB84/'Population 2016'!AB$6","v":1.4680154315449489E-2},{"$f":"'Population 2016'!AC84/'Population 2016'!AC$6","v":3.5460427260312878E-2},{"$f":"'Population 2016'!AD84/'Population 2016'!AD$6","v":1.2161022591096712E-2},{"$f":"'Population 2016'!AE84/'Population 2016'!AE$6","v":1.2005550304663463E-2},{"$f":"'Population 2016'!AF84/'Population 2016'!AF$6","v":3.0727956632370837E-2},{"$f":"'Population 2016'!AG84/'Population 2016'!AG$6","v":1.2005550304663463E-2},{"$f":"'Population 2016'!AH84/'Population 2016'!AH$6","v":1.9463741919243126E-2},{"$f":"'Population 2016'!AI84/'Population 2016'!AI$6","v":1.9712309102399378E-2},{"$f":"'Population 2016'!AJ84/'Population 2016'!AJ$6","v":7.8235258022949002E-3},{"$f":"'Population 2016'!AK84/'Population 2016'!AK$6","v":9.4473311289560704E-4},{"$f":"'Population 2016'!AL84/'Population 2016'!AL$6","v":2.5270918457985434E-2},{"$f":"'Population 2016'!AM84/'Population 2016'!AM$6","v":2.1803318692044899E-2},{"$f":"'Population 2016'!AN84/'Population 2016'!AN$6","v":0},{"$f":"'Population 2016'!AO84/'Population 2016'!AO$6","v":0},{"$f":"'Population 2016'!AP84/'Population 2016'!AP$6","v":2.1260258194557759E-2},{"$f":"'Population 2016'!AQ84/'Population 2016'!AQ$6","v":3.0381982777655112E-2},{"$f":"'Population 2016'!AR84/'Population 2016'!AR$6","v":2.4077781407657185E-2},{"$f":"'Population 2016'!AS84/'Population 2016'!AS$6","v":7.6721375157812952E-3},{"$f":"'Population 2016'!AT84/'Population 2016'!AT$6","v":0},{"$f":"'Population 2016'!AU84/'Population 2016'!AU$6","v":0},{"$f":"'Population 2016'!AV84/'Population 2016'!AV$6","v":1.6918860955558203E-2},{"$f":"'Population 2016'!AW84/'Population 2016'!AW$6","v":1.6322820006715862E-2},{"$f":"'Population 2016'!AX84/'Population 2016'!AX$6","v":2.4053390183992215E-2},{"$f":"'Population 2016'!AY84/'Population 2016'!AY$6","v":2.5423838126727924E-2},{"$f":"'Population 2016'!AZ84/'Population 2016'!AZ$6","v":3.1013291410604545E-2},{"$f":"'Population 2016'!BA84/'Population 2016'!BA$6","v":2.3310023310023312E-2},{"$f":"'Population 2016'!BB84/'Population 2016'!BB$6","v":1.6446302417525441E-2},{"$f":"'Population 2016'!BC84/'Population 2016'!BC$6","v":0},82]
[null,"Male 30-34",{"$f":"'Population 2016'!C85/'Population 2016'!C$6","v":1.5545434985297282E-2},{"$f":"'Population 2016'!D85/'Population 2016'!D$6","v":1.4908586822901682E-2},{"$f":"'Population 2016'!E85/'Population 2016'!E$6","v":1.3192229631777326E-2},{"$f":"'Population 2016'!F85/'Population 2016'!F$6","v":1.116593092703194E-2},{"$f":"'Population 2016'!G85/'Population 2016'!G$6","v":9.8511138475316246E-3},{"$f":"'Population 2016'!H85/'Population 2016'!H$6","v":1.9443467269269068E-2},{"$f":"'Population 2016'!I85/'Population 2016'!I$6","v":8.4490628338350984E-3},{"$f":"'Population 2016'!J85/'Population 2016'!J$6","v":1.7813138069421953E-2},{"$f":"'Population 2016'!K85/'Population 2016'!K$6","v":1.7259414225941423E-2},{"$f":"'Population 2016'!L85/'Population 2016'!L$6","v":7.7321891481183513E-3},{"$f":"'Population 2016'!M85/'Population 2016'!M$6","v":7.7321891481183513E-3},{"$f":"'Population 2016'!N85/'Population 2016'!N$6","v":3.1319384199150112E-2},{"$f":"'Population 2016'!O85/'Population 2016'!O$6","v":1.917393993539963E-2},{"$f":"'Population 2016'!P85/'Population 2016'!P$6","v":7.0835756198128668E-3},{"$f":"'Population 2016'!Q85/'Population 2016'!Q$6","v":4.2333743842364532E-3},{"$f":"'Population 2016'!R85/'Population 2016'!R$6","v":1.570770018780946E-2},{"$f":"'Population 2016'!S85/'Population 2016'!S$6","v":1.7411273266764171E-2},{"$f":"'Population 2016'!T85/'Population 2016'!T$6","v":2.4282932832109774E-2},{"$f":"'Population 2016'!U85/'Population 2016'!U$6","v":0},{"$f":"'Population 2016'!V85/'Population 2016'!V$6","v":1.35039592760181E-2},{"$f":"'Population 2016'!W85/'Population 2016'!W$6","v":1.8959585492227978E-2},{"$f":"'Population 2016'!X85/'Population 2016'!X$6","v":1.8959585492227978E-2},{"$f":"'Population 2016'!Y85/'Population 2016'!Y$6","v":1.5355144427080707E-2},{"$f":"'Population 2016'!Z85/'Population 2016'!Z$6","v":3.5980446664296936E-2},{"$f":"'Population 2016'!AA85/'Population 2016'!AA$6","v":2.7014629695594844E-2},{"$f":"'Population 2016'!AB85/'Population 2016'!AB$6","v":1.2885788623721514E-2},{"$f":"'Population 2016'!AC85/'Population 2016'!AC$6","v":3.1692428598662427E-2},{"$f":"'Population 2016'!AD85/'Population 2016'!AD$6","v":1.1776367375319929E-2},{"$f":"'Population 2016'!AE85/'Population 2016'!AE$6","v":1.2468075693285337E-2},{"$f":"'Population 2016'!AF85/'Population 2016'!AF$6","v":2.8930191392853192E-2},{"$f":"'Population 2016'!AG85/'Population 2016'!AG$6","v":1.2468075693285337E-2},{"$f":"'Population 2016'!AH85/'Population 2016'!AH$6","v":1.860715546869264E-2},{"$f":"'Population 2016'!AI85/'Population 2016'!AI$6","v":1.7402076698041745E-2},{"$f":"'Population 2016'!AJ85/'Population 2016'!AJ$6","v":8.6212186291955567E-3},{"$f":"'Population 2016'!AK85/'Population 2016'!AK$6","v":7.0854983467170528E-4},{"$f":"'Population 2016'!AL85/'Population 2016'!AL$6","v":2.2946645348492924E-2},{"$f":"'Population 2016'!AM85/'Population 2016'!AM$6","v":2.0558809175207419E-2},{"$f":"'Population 2016'!AN85/'Population 2016'!AN$6","v":0},{"$f":"'Population 2016'!AO85/'Population 2016'!AO$6","v":0},{"$f":"'Population 2016'!AP85/'Population 2016'!AP$6","v":1.4877381580841773E-2},{"$f":"'Population 2016'!AQ85/'Population 2016'!AQ$6","v":2.8571428571428571E-2},{"$f":"'Population 2016'!AR85/'Population 2016'!AR$6","v":2.1481224417357253E-2},{"$f":"'Population 2016'!AS85/'Population 2016'!AS$6","v":8.4490628338350984E-3},{"$f":"'Population 2016'!AT85/'Population 2016'!AT$6","v":0},{"$f":"'Population 2016'!AU85/'Population 2016'!AU$6","v":0},{"$f":"'Population 2016'!AV85/'Population 2016'!AV$6","v":1.4178482068390326E-2},{"$f":"'Population 2016'!AW85/'Population 2016'!AW$6","v":1.5987026920777404E-2},{"$f":"'Population 2016'!AX85/'Population 2016'!AX$6","v":1.8352875747323538E-2},{"$f":"'Population 2016'!AY85/'Population 2016'!AY$6","v":2.1433761721924353E-2},{"$f":"'Population 2016'!AZ85/'Population 2016'!AZ$6","v":2.4099614120337287E-2},{"$f":"'Population 2016'!BA85/'Population 2016'!BA$6","v":2.2792022792022793E-2},{"$f":"'Population 2016'!BB85/'Population 2016'!BB$6","v":1.4356082701406443E-2},{"$f":"'Population 2016'!BC85/'Population 2016'!BC$6","v":0},83]
[null,"Male 35-39",{"$f":"'Population 2016'!C86/'Population 2016'!C$6","v":1.4810299074804561E-2},{"$f":"'Population 2016'!D86/'Population 2016'!D$6","v":1.3509272094787226E-2},{"$f":"'Population 2016'!E86/'Population 2016'!E$6","v":1.0002899391127864E-2},{"$f":"'Population 2016'!F86/'Population 2016'!F$6","v":1.1079373322946421E-2},{"$f":"'Population 2016'!G86/'Population 2016'!G$6","v":8.3958356655099067E-3},{"$f":"'Population 2016'!H86/'Population 2016'!H$6","v":1.7374505864044789E-2},{"$f":"'Population 2016'!I86/'Population 2016'!I$6","v":9.080314654753811E-3},{"$f":"'Population 2016'!J86/'Population 2016'!J$6","v":1.5419277617404773E-2},{"$f":"'Population 2016'!K86/'Population 2016'!K$6","v":1.7211867630277673E-2},{"$f":"'Population 2016'!L86/'Population 2016'!L$6","v":6.6595155090730315E-3},{"$f":"'Population 2016'!M86/'Population 2016'!M$6","v":6.6595155090730315E-3},{"$f":"'Population 2016'!N86/'Population 2016'!N$6","v":2.2541134261641841E-2},{"$f":"'Population 2016'!O86/'Population 2016'!O$6","v":1.6287540375231942E-2},{"$f":"'Population 2016'!P86/'Population 2016'!P$6","v":7.1893006290638054E-3},{"$f":"'Population 2016'!Q86/'Population 2016'!Q$6","v":3.3097290640394087E-3},{"$f":"'Population 2016'!R86/'Population 2016'!R$6","v":1.4085709407546526E-2},{"$f":"'Population 2016'!S86/'Population 2016'!S$6","v":1.6093393238565221E-2},{"$f":"'Population 2016'!T86/'Population 2016'!T$6","v":2.2083055890360154E-2},{"$f":"'Population 2016'!U86/'Population 2016'!U$6","v":0},{"$f":"'Population 2016'!V86/'Population 2016'!V$6","v":1.2743919683257918E-2},{"$f":"'Population 2016'!W86/'Population 2016'!W$6","v":1.7600000000000001E-2},{"$f":"'Population 2016'!X86/'Population 2016'!X$6","v":1.7600000000000001E-2},{"$f":"'Population 2016'!Y86/'Population 2016'!Y$6","v":1.3893229823057922E-2},{"$f":"'Population 2016'!Z86/'Population 2016'!Z$6","v":2.9348232270295396E-2},{"$f":"'Population 2016'!AA86/'Population 2016'!AA$6","v":2.3136291768999544E-2},{"$f":"'Population 2016'!AB86/'Population 2016'!AB$6","v":1.1876457922124529E-2},{"$f":"'Population 2016'!AC86/'Population 2016'!AC$6","v":2.5984990254169699E-2},{"$f":"'Population 2016'!AD86/'Population 2016'!AD$6","v":9.0541920021303974E-3},{"$f":"'Population 2016'!AE86/'Population 2016'!AE$6","v":9.290727371448107E-3},{"$f":"'Population 2016'!AF86/'Population 2016'!AF$6","v":2.2983737139064056E-2},{"$f":"'Population 2016'!AG86/'Population 2016'!AG$6","v":9.290727371448107E-3},{"$f":"'Population 2016'!AH86/'Population 2016'!AH$6","v":1.801628563137414E-2},{"$f":"'Population 2016'!AI86/'Population 2016'!AI$6","v":1.5937255427162809E-2},{"$f":"'Population 2016'!AJ86/'Population 2016'!AJ$6","v":7.3019574154752406E-3},{"$f":"'Population 2016'!AK86/'Population 2016'!AK$6","v":2.0469217446071487E-3},{"$f":"'Population 2016'!AL86/'Population 2016'!AL$6","v":2.0489133653105941E-2},{"$f":"'Population 2016'!AM86/'Population 2016'!AM$6","v":1.9363103953147876E-2},{"$f":"'Population 2016'!AN86/'Population 2016'!AN$6","v":0},{"$f":"'Population 2016'!AO86/'Population 2016'!AO$6","v":0},{"$f":"'Population 2016'!AP86/'Population 2016'!AP$6","v":1.463742381340884E-2},{"$f":"'Population 2016'!AQ86/'Population 2016'!AQ$6","v":2.369912416280268E-2},{"$f":"'Population 2016'!AR86/'Population 2016'!AR$6","v":1.8642759200708091E-2},{"$f":"'Population 2016'!AS86/'Population 2016'!AS$6","v":9.080314654753811E-3},{"$f":"'Population 2016'!AT86/'Population 2016'!AT$6","v":0},{"$f":"'Population 2016'!AU86/'Population 2016'!AU$6","v":0},{"$f":"'Population 2016'!AV86/'Population 2016'!AV$6","v":1.3868700107232217E-2},{"$f":"'Population 2016'!AW86/'Population 2016'!AW$6","v":1.6208158952980778E-2},{"$f":"'Population 2016'!AX86/'Population 2016'!AX$6","v":1.3671965518839506E-2},{"$f":"'Population 2016'!AY86/'Population 2016'!AY$6","v":1.8131629524845535E-2},{"$f":"'Population 2016'!AZ86/'Population 2016'!AZ$6","v":1.8704444762040875E-2},{"$f":"'Population 2016'!BA86/'Population 2016'!BA$6","v":1.9046480584942124E-2},{"$f":"'Population 2016'!BB86/'Population 2016'!BB$6","v":1.399961112191328E-2},{"$f":"'Population 2016'!BC86/'Population 2016'!BC$6","v":0},84]
[null,"Male 40-44",{"$f":"'Population 2016'!C87/'Population 2016'!C$6","v":1.2102847306892348E-2},{"$f":"'Population 2016'!D87/'Population 2016'!D$6","v":1.1599926764836659E-2},{"$f":"'Population 2016'!E87/'Population 2016'!E$6","v":1.0244515318449792E-2},{"$f":"'Population 2016'!F87/'Population 2016'!F$6","v":1.0862979312732623E-2},{"$f":"'Population 2016'!G87/'Population 2016'!G$6","v":9.3473637076010307E-3},{"$f":"'Population 2016'!H87/'Population 2016'!H$6","v":1.8972435710154605E-2},{"$f":"'Population 2016'!I87/'Population 2016'!I$6","v":9.2259881518889E-3},{"$f":"'Population 2016'!J87/'Population 2016'!J$6","v":1.4856016334577202E-2},{"$f":"'Population 2016'!K87/'Population 2016'!K$6","v":1.6736401673640166E-2},{"$f":"'Population 2016'!L87/'Population 2016'!L$6","v":7.6204523107177976E-3},{"$f":"'Population 2016'!M87/'Population 2016'!M$6","v":7.6204523107177976E-3},{"$f":"'Population 2016'!N87/'Population 2016'!N$6","v":1.9056301371877252E-2},{"$f":"'Population 2016'!O87/'Population 2016'!O$6","v":1.929420658373995E-2},{"$f":"'Population 2016'!P87/'Population 2016'!P$6","v":7.1893006290638054E-3},{"$f":"'Population 2016'!Q87/'Population 2016'!Q$6","v":5.1185344827586205E-3},{"$f":"'Population 2016'!R87/'Population 2016'!R$6","v":1.4427181150759775E-2},{"$f":"'Population 2016'!S87/'Population 2016'!S$6","v":1.5648838897715674E-2},{"$f":"'Population 2016'!T87/'Population 2016'!T$6","v":1.9975894068760904E-2},{"$f":"'Population 2016'!U87/'Population 2016'!U$6","v":0},{"$f":"'Population 2016'!V87/'Population 2016'!V$6","v":1.3327205882352941E-2},{"$f":"'Population 2016'!W87/'Population 2016'!W$6","v":1.7425906735751295E-2},{"$f":"'Population 2016'!X87/'Population 2016'!X$6","v":1.7425906735751295E-2},{"$f":"'Population 2016'!Y87/'Population 2016'!Y$6","v":1.3983969350204163E-2},{"$f":"'Population 2016'!Z87/'Population 2016'!Z$6","v":2.6370875373308907E-2},{"$f":"'Population 2016'!AA87/'Population 2016'!AA$6","v":2.1682696213527312E-2},{"$f":"'Population 2016'!AB87/'Population 2016'!AB$6","v":1.0283958370715952E-2},{"$f":"'Population 2016'!AC87/'Population 2016'!AC$6","v":2.3586465551116004E-2},{"$f":"'Population 2016'!AD87/'Population 2016'!AD$6","v":1.0356101963221044E-2},{"$f":"'Population 2016'!AE87/'Population 2016'!AE$6","v":1.0718523136324331E-2},{"$f":"'Population 2016'!AF87/'Population 2016'!AF$6","v":2.3619869454585683E-2},{"$f":"'Population 2016'!AG87/'Population 2016'!AG$6","v":1.0718523136324331E-2},{"$f":"'Population 2016'!AH87/'Population 2016'!AH$6","v":1.8261024617245707E-2},{"$f":"'Population 2016'!AI87/'Population 2016'!AI$6","v":1.5305289678869325E-2},{"$f":"'Population 2016'!AJ87/'Population 2016'!AJ$6","v":8.1916917224028954E-3},{"$f":"'Population 2016'!AK87/'Population 2016'!AK$6","v":2.3618327822390174E-3},{"$f":"'Population 2016'!AL87/'Population 2016'!AL$6","v":2.2073192396518032E-2},{"$f":"'Population 2016'!AM87/'Population 2016'!AM$6","v":1.9521717911176184E-2},{"$f":"'Population 2016'!AN87/'Population 2016'!AN$6","v":0},{"$f":"'Population 2016'!AO87/'Population 2016'!AO$6","v":0},{"$f":"'Population 2016'!AP87/'Population 2016'!AP$6","v":1.2093871478619763E-2},{"$f":"'Population 2016'!AQ87/'Population 2016'!AQ$6","v":2.0725693677780231E-2},{"$f":"'Population 2016'!AR87/'Population 2016'!AR$6","v":1.7873513649162988E-2},{"$f":"'Population 2016'!AS87/'Population 2016'!AS$6","v":9.2259881518889E-3},{"$f":"'Population 2016'!AT87/'Population 2016'!AT$6","v":0},{"$f":"'Population 2016'!AU87/'Population 2016'!AU$6","v":0},{"$f":"'Population 2016'!AV87/'Population 2016'!AV$6","v":1.3535088764446562E-2},{"$f":"'Population 2016'!AW87/'Population 2016'!AW$6","v":1.6568522264719613E-2},{"$f":"'Population 2016'!AX87/'Population 2016'!AX$6","v":1.3023126477267461E-2},{"$f":"'Population 2016'!AY87/'Population 2016'!AY$6","v":1.6772939714589145E-2},{"$f":"'Population 2016'!AZ87/'Population 2016'!AZ$6","v":1.6069386880091466E-2},{"$f":"'Population 2016'!BA87/'Population 2016'!BA$6","v":1.7492479030940568E-2},{"$f":"'Population 2016'!BB87/'Population 2016'!BB$6","v":1.4372285955019768E-2},{"$f":"'Population 2016'!BC87/'Population 2016'!BC$6","v":0},85]
[null,"Male 45-49",{"$f":"'Population 2016'!C88/'Population 2016'!C$6","v":1.1224270243132755E-2},{"$f":"'Population 2016'!D88/'Population 2016'!D$6","v":1.0658331807600764E-2},{"$f":"'Population 2016'!E88/'Population 2016'!E$6","v":9.1330820527689184E-3},{"$f":"'Population 2016'!F88/'Population 2016'!F$6","v":1.198822816584437E-2},{"$f":"'Population 2016'!G88/'Population 2016'!G$6","v":1.1362364267323408E-2},{"$f":"'Population 2016'!H88/'Population 2016'!H$6","v":2.1488578975297674E-2},{"$f":"'Population 2016'!I88/'Population 2016'!I$6","v":1.2236573759347382E-2},{"$f":"'Population 2016'!J88/'Population 2016'!J$6","v":1.8305991691896079E-2},{"$f":"'Population 2016'!K88/'Population 2016'!K$6","v":2.0207303157093952E-2},{"$f":"'Population 2016'!L88/'Population 2016'!L$6","v":9.0730311969250028E-3},{"$f":"'Population 2016'!M88/'Population 2016'!M$6","v":9.0730311969250028E-3},{"$f":"'Population 2016'!N88/'Population 2016'!N$6","v":2.390860033230896E-2},{"$f":"'Population 2016'!O88/'Population 2016'!O$6","v":2.1991615696515702E-2},{"$f":"'Population 2016'!P88/'Population 2016'!P$6","v":9.7795633557117932E-3},{"$f":"'Population 2016'!Q88/'Population 2016'!Q$6","v":3.6176108374384236E-3},{"$f":"'Population 2016'!R88/'Population 2016'!R$6","v":1.5622332252006146E-2},{"$f":"'Population 2016'!S88/'Population 2016'!S$6","v":1.7416534264880733E-2},{"$f":"'Population 2016'!T88/'Population 2016'!T$6","v":1.94280319951451E-2},{"$f":"'Population 2016'!U88/'Population 2016'!U$6","v":0},{"$f":"'Population 2016'!V88/'Population 2016'!V$6","v":1.5041713800904978E-2},{"$f":"'Population 2016'!W88/'Population 2016'!W$6","v":2.1844559585492227E-2},{"$f":"'Population 2016'!X88/'Population 2016'!X$6","v":2.1844559585492227E-2},{"$f":"'Population 2016'!Y88/'Population 2016'!Y$6","v":1.6444018752835611E-2},{"$f":"'Population 2016'!Z88/'Population 2016'!Z$6","v":2.878314208372449E-2},{"$f":"'Population 2016'!AA88/'Population 2016'!AA$6","v":2.4827362092777642E-2},{"$f":"'Population 2016'!AB88/'Population 2016'!AB$6","v":9.5774268795980628E-3},{"$f":"'Population 2016'!AC88/'Population 2016'!AC$6","v":2.6895379192555042E-2},{"$f":"'Population 2016'!AD88/'Population 2016'!AD$6","v":1.0918290355510186E-2},{"$f":"'Population 2016'!AE88/'Population 2016'!AE$6","v":1.0758742735334928E-2},{"$f":"'Population 2016'!AF88/'Population 2016'!AF$6","v":3.0921562119703507E-2},{"$f":"'Population 2016'!AG88/'Population 2016'!AG$6","v":1.0758742735334928E-2},{"$f":"'Population 2016'!AH88/'Population 2016'!AH$6","v":2.1110485667036105E-2},{"$f":"'Population 2016'!AI88/'Population 2016'!AI$6","v":1.5627550358462691E-2},{"$f":"'Population 2016'!AJ88/'Population 2016'!AJ$6","v":9.4802724427808793E-3},{"$f":"'Population 2016'!AK88/'Population 2016'!AK$6","v":3.0703826169107226E-3},{"$f":"'Population 2016'!AL88/'Population 2016'!AL$6","v":2.5522591342452775E-2},{"$f":"'Population 2016'!AM88/'Population 2016'!AM$6","v":2.3102733040507566E-2},{"$f":"'Population 2016'!AN88/'Population 2016'!AN$6","v":0},{"$f":"'Population 2016'!AO88/'Population 2016'!AO$6","v":0},{"$f":"'Population 2016'!AP88/'Population 2016'!AP$6","v":1.2333829246052695E-2},{"$f":"'Population 2016'!AQ88/'Population 2016'!AQ$6","v":2.6687274600721279E-2},{"$f":"'Population 2016'!AR88/'Population 2016'!AR$6","v":2.0278465759247057E-2},{"$f":"'Population 2016'!AS88/'Population 2016'!AS$6","v":1.2236573759347382E-2},{"$f":"'Population 2016'!AT88/'Population 2016'!AT$6","v":0},{"$f":"'Population 2016'!AU88/'Population 2016'!AU$6","v":0},{"$f":"'Population 2016'!AV88/'Population 2016'!AV$6","v":1.429762897652806E-2},{"$f":"'Population 2016'!AW88/'Population 2016'!AW$6","v":1.843585942554812E-2},{"$f":"'Population 2016'!AX88/'Population 2016'!AX$6","v":1.6452704268433982E-2},{"$f":"'Population 2016'!AY88/'Population 2016'!AY$6","v":2.0616827975251207E-2},{"$f":"'Population 2016'!AZ88/'Population 2016'!AZ$6","v":1.9293983135629557E-2},{"$f":"'Population 2016'!BA88/'Population 2016'!BA$6","v":2.097902097902098E-2},{"$f":"'Population 2016'!BB88/'Population 2016'!BB$6","v":1.662453820727202E-2},{"$f":"'Population 2016'!BC88/'Population 2016'!BC$6","v":0},86]
[null,"Male 50-54",{"$f":"'Population 2016'!C89/'Population 2016'!C$6","v":1.1027038657390806E-2},{"$f":"'Population 2016'!D89/'Population 2016'!D$6","v":1.0095990374807105E-2},{"$f":"'Population 2016'!E89/'Population 2016'!E$6","v":7.5867401179085725E-3},{"$f":"'Population 2016'!F89/'Population 2016'!F$6","v":1.2637410196485762E-2},{"$f":"'Population 2016'!G89/'Population 2016'!G$6","v":1.4720698533527371E-2},{"$f":"'Population 2016'!H89/'Population 2016'!H$6","v":2.3134208219798828E-2},{"$f":"'Population 2016'!I89/'Population 2016'!I$6","v":1.2625036418374284E-2},{"$f":"'Population 2016'!J89/'Population 2016'!J$6","v":2.0206998521439132E-2},{"$f":"'Population 2016'!K89/'Population 2016'!K$6","v":2.1586154431342715E-2},{"$f":"'Population 2016'!L89/'Population 2016'!L$6","v":9.7657995888084381E-3},{"$f":"'Population 2016'!M89/'Population 2016'!M$6","v":9.7657995888084381E-3},{"$f":"'Population 2016'!N89/'Population 2016'!N$6","v":2.4482053845814526E-2},{"$f":"'Population 2016'!O89/'Population 2016'!O$6","v":2.3245825029207613E-2},{"$f":"'Population 2016'!P89/'Population 2016'!P$6","v":9.9910133742136704E-3},{"$f":"'Population 2016'!Q89/'Population 2016'!Q$6","v":5.5033866995073894E-3},{"$f":"'Population 2016'!R89/'Population 2016'!R$6","v":2.057367252859826E-2},{"$f":"'Population 2016'!S89/'Population 2016'!S$6","v":1.7177158850577131E-2},{"$f":"'Population 2016'!T89/'Population 2016'!T$6","v":2.0144467014488843E-2},{"$f":"'Population 2016'!U89/'Population 2016'!U$6","v":0},{"$f":"'Population 2016'!V89/'Population 2016'!V$6","v":1.5165441176470588E-2},{"$f":"'Population 2016'!W89/'Population 2016'!W$6","v":2.0219689119170985E-2},{"$f":"'Population 2016'!X89/'Population 2016'!X$6","v":2.0219689119170985E-2},{"$f":"'Population 2016'!Y89/'Population 2016'!Y$6","v":1.7331249684932198E-2},{"$f":"'Population 2016'!Z89/'Population 2016'!Z$6","v":2.9478871399448884E-2},{"$f":"'Population 2016'!AA89/'Population 2016'!AA$6","v":2.5609778960985395E-2},{"$f":"'Population 2016'!AB89/'Population 2016'!AB$6","v":8.9381841019199708E-3},{"$f":"'Population 2016'!AC89/'Population 2016'!AC$6","v":2.8325156691942278E-2},{"$f":"'Population 2016'!AD89/'Population 2016'!AD$6","v":1.2057461571464501E-2},{"$f":"'Population 2016'!AE89/'Population 2016'!AE$6","v":1.110060932692501E-2},{"$f":"'Population 2016'!AF89/'Population 2016'!AF$6","v":3.5540435888925768E-2},{"$f":"'Population 2016'!AG89/'Population 2016'!AG$6","v":1.110060932692501E-2},{"$f":"'Population 2016'!AH89/'Population 2016'!AH$6","v":2.0729392103321809E-2},{"$f":"'Population 2016'!AI89/'Population 2016'!AI$6","v":1.6033515110677712E-2},{"$f":"'Population 2016'!AJ89/'Population 2016'!AJ$6","v":9.3575504694115488E-3},{"$f":"'Population 2016'!AK89/'Population 2016'!AK$6","v":1.9681939851991814E-3},{"$f":"'Population 2016'!AL89/'Population 2016'!AL$6","v":2.80541244744478E-2},{"$f":"'Population 2016'!AM89/'Population 2016'!AM$6","v":2.3090531966813078E-2},{"$f":"'Population 2016'!AN89/'Population 2016'!AN$6","v":0},{"$f":"'Population 2016'!AO89/'Population 2016'!AO$6","v":0},{"$f":"'Population 2016'!AP89/'Population 2016'!AP$6","v":1.4253491385516149E-2},{"$f":"'Population 2016'!AQ89/'Population 2016'!AQ$6","v":2.6495915213071319E-2},{"$f":"'Population 2016'!AR89/'Population 2016'!AR$6","v":2.0868540965575555E-2},{"$f":"'Population 2016'!AS89/'Population 2016'!AS$6","v":1.2625036418374284E-2},{"$f":"'Population 2016'!AT89/'Population 2016'!AT$6","v":0},{"$f":"'Population 2016'!AU89/'Population 2016'!AU$6","v":0},{"$f":"'Population 2016'!AV89/'Population 2016'!AV$6","v":1.5060169188609555E-2},{"$f":"'Population 2016'!AW89/'Population 2016'!AW$6","v":1.755952137200141E-2},{"$f":"'Population 2016'!AX89/'Population 2016'!AX$6","v":1.8862677851415859E-2},{"$f":"'Population 2016'!AY89/'Population 2016'!AY$6","v":2.0178263542826678E-2},{"$f":"'Population 2016'!AZ89/'Population 2016'!AZ$6","v":2.0133628698013436E-2},{"$f":"'Population 2016'!BA89/'Population 2016'!BA$6","v":2.6756719064411374E-2},{"$f":"'Population 2016'!BB89/'Population 2016'!BB$6","v":1.6089830838032278E-2},{"$f":"'Population 2016'!BC89/'Population 2016'!BC$6","v":0},87]
[null,"Male 55-59",{"$f":"'Population 2016'!C90/'Population 2016'!C$6","v":1.0076741016997777E-2},{"$f":"'Population 2016'!D90/'Population 2016'!D$6","v":9.7298145581042553E-3},{"$f":"'Population 2016'!E90/'Population 2016'!E$6","v":8.7948197545182176E-3},{"$f":"'Population 2016'!F90/'Population 2016'!F$6","v":1.0040682073920193E-2},{"$f":"'Population 2016'!G90/'Population 2016'!G$6","v":1.1922086645024067E-2},{"$f":"'Population 2016'!H90/'Population 2016'!H$6","v":2.2532003315108188E-2},{"$f":"'Population 2016'!I90/'Population 2016'!I$6","v":9.565892978537438E-3},{"$f":"'Population 2016'!J90/'Population 2016'!J$6","v":1.9103945175901804E-2},{"$f":"'Population 2016'!K90/'Population 2016'!K$6","v":2.0349942944085205E-2},{"$f":"'Population 2016'!L90/'Population 2016'!L$6","v":8.6931259497631183E-3},{"$f":"'Population 2016'!M90/'Population 2016'!M$6","v":8.6931259497631183E-3},{"$f":"'Population 2016'!N90/'Population 2016'!N$6","v":2.3599817671190577E-2},{"$f":"'Population 2016'!O90/'Population 2016'!O$6","v":2.1716720500309258E-2},{"$f":"'Population 2016'!P90/'Population 2016'!P$6","v":9.145213300206163E-3},{"$f":"'Population 2016'!Q90/'Population 2016'!Q$6","v":4.3103448275862068E-3},{"$f":"'Population 2016'!R90/'Population 2016'!R$6","v":1.6476011610039268E-2},{"$f":"'Population 2016'!S90/'Population 2016'!S$6","v":1.4967539641620809E-2},{"$f":"'Population 2016'!T90/'Population 2016'!T$6","v":1.5879571487571961E-2},{"$f":"'Population 2016'!U90/'Population 2016'!U$6","v":0},{"$f":"'Population 2016'!V90/'Population 2016'!V$6","v":1.2849971719457013E-2},{"$f":"'Population 2016'!W90/'Population 2016'!W$6","v":2.0004145077720206E-2},{"$f":"'Population 2016'!X90/'Population 2016'!X$6","v":2.0004145077720206E-2},{"$f":"'Population 2016'!Y90/'Population 2016'!Y$6","v":1.5536623481373191E-2},{"$f":"'Population 2016'!Z90/'Population 2016'!Z$6","v":2.5793632709607446E-2},{"$f":"'Population 2016'!AA90/'Population 2016'!AA$6","v":2.2827574570201917E-2},{"$f":"'Population 2016'!AB90/'Population 2016'!AB$6","v":8.6465996770141752E-3},{"$f":"'Population 2016'!AC90/'Population 2016'!AC$6","v":2.4819770224056834E-2},{"$f":"'Population 2016'!AD90/'Population 2016'!AD$6","v":1.1051440237894457E-2},{"$f":"'Population 2016'!AE90/'Population 2016'!AE$6","v":1.073863293582963E-2},{"$f":"'Population 2016'!AF90/'Population 2016'!AF$6","v":3.1115167607036177E-2},{"$f":"'Population 2016'!AG90/'Population 2016'!AG$6","v":1.073863293582963E-2},{"$f":"'Population 2016'!AH90/'Population 2016'!AH$6","v":1.9246973103185454E-2},{"$f":"'Population 2016'!AI90/'Population 2016'!AI$6","v":1.2890427183734624E-2},{"$f":"'Population 2016'!AJ90/'Population 2016'!AJ$6","v":8.2530527090875615E-3},{"$f":"'Population 2016'!AK90/'Population 2016'!AK$6","v":2.1256495040151155E-3},{"$f":"'Population 2016'!AL90/'Population 2016'!AL$6","v":2.7535974418191507E-2},{"$f":"'Population 2016'!AM90/'Population 2016'!AM$6","v":2.0662518301610543E-2},{"$f":"'Population 2016'!AN90/'Population 2016'!AN$6","v":0},{"$f":"'Population 2016'!AO90/'Population 2016'!AO$6","v":0},{"$f":"'Population 2016'!AP90/'Population 2016'!AP$6","v":1.1182031962374621E-2},{"$f":"'Population 2016'!AQ90/'Population 2016'!AQ$6","v":2.4655921101052476E-2},{"$f":"'Population 2016'!AR90/'Population 2016'!AR$6","v":1.8793669239108194E-2},{"$f":"'Population 2016'!AS90/'Population 2016'!AS$6","v":9.565892978537438E-3},{"$f":"'Population 2016'!AT90/'Population 2016'!AT$6","v":0},{"$f":"'Population 2016'!AU90/'Population 2016'!AU$6","v":0},{"$f":"'Population 2016'!AV90/'Population 2016'!AV$6","v":1.5608244966043131E-2},{"$f":"'Population 2016'!AW90/'Population 2016'!AW$6","v":1.7346579415064824E-2},{"$f":"'Population 2016'!AX90/'Population 2016'!AX$6","v":1.7889419289057792E-2},{"$f":"'Population 2016'!AY90/'Population 2016'!AY$6","v":1.9275336770187938E-2},{"$f":"'Population 2016'!AZ90/'Population 2016'!AZ$6","v":1.8490067171644992E-2},{"$f":"'Population 2016'!BA90/'Population 2016'!BA$6","v":2.1975175821329667E-2},{"$f":"'Population 2016'!BB90/'Population 2016'!BB$6","v":1.3205651694860328E-2},{"$f":"'Population 2016'!BC90/'Population 2016'!BC$6","v":0},88]
[null,"Male 60-64",{"$f":"'Population 2016'!C91/'Population 2016'!C$6","v":9.0726529441296708E-3},{"$f":"'Population 2016'!D91/'Population 2016'!D$6","v":7.9381685978081769E-3},{"$f":"'Population 2016'!E91/'Population 2016'!E$6","v":4.8806417319029669E-3},{"$f":"'Population 2016'!F91/'Population 2016'!F$6","v":8.482645200380853E-3},{"$f":"'Population 2016'!G91/'Population 2016'!G$6","v":1.1586253218403671E-2},{"$f":"'Population 2016'!H91/'Population 2016'!H$6","v":1.9258632100502632E-2},{"$f":"'Population 2016'!I91/'Population 2016'!I$6","v":7.4779061862678452E-3},{"$f":"'Population 2016'!J91/'Population 2016'!J$6","v":1.4902954774812833E-2},{"$f":"'Population 2016'!K91/'Population 2016'!K$6","v":1.583301635602891E-2},{"$f":"'Population 2016'!L91/'Population 2016'!L$6","v":7.1958523285956914E-3},{"$f":"'Population 2016'!M91/'Population 2016'!M$6","v":7.1958523285956914E-3},{"$f":"'Population 2016'!N91/'Population 2016'!N$6","v":1.9026893499389786E-2},{"$f":"'Population 2016'!O91/'Population 2016'!O$6","v":1.7954092502233523E-2},{"$f":"'Population 2016'!P91/'Population 2016'!P$6","v":8.458000740075064E-3},{"$f":"'Population 2016'!Q91/'Population 2016'!Q$6","v":3.3482142857142855E-3},{"$f":"'Population 2016'!R91/'Population 2016'!R$6","v":1.2463718627283592E-2},{"$f":"'Population 2016'!S91/'Population 2016'!S$6","v":1.2526436515535727E-2},{"$f":"'Population 2016'!T91/'Population 2016'!T$6","v":1.3570122131099181E-2},{"$f":"'Population 2016'!U91/'Population 2016'!U$6","v":0},{"$f":"'Population 2016'!V91/'Population 2016'!V$6","v":1.1011736425339367E-2},{"$f":"'Population 2016'!W91/'Population 2016'!W$6","v":1.6729533678756476E-2},{"$f":"'Population 2016'!X91/'Population 2016'!X$6","v":1.6729533678756476E-2},{"$f":"'Population 2016'!Y91/'Population 2016'!Y$6","v":1.268336946110803E-2},{"$f":"'Population 2016'!Z91/'Population 2016'!Z$6","v":2.0786812131817919E-2},{"$f":"'Population 2016'!AA91/'Population 2016'!AA$6","v":1.8535530599873763E-2},{"$f":"'Population 2016'!AB91/'Population 2016'!AB$6","v":7.031670554458999E-3},{"$f":"'Population 2016'!AC91/'Population 2016'!AC$6","v":2.0018830266930705E-2},{"$f":"'Population 2016'!AD91/'Population 2016'!AD$6","v":9.5424082375393897E-3},{"$f":"'Population 2016'!AE91/'Population 2016'!AE$6","v":8.8080921833209331E-3},{"$f":"'Population 2016'!AF91/'Population 2016'!AF$6","v":2.6662241398384776E-2},{"$f":"'Population 2016'!AG91/'Population 2016'!AG$6","v":8.8080921833209331E-3},{"$f":"'Population 2016'!AH91/'Population 2016'!AH$6","v":1.5869575098157816E-2},{"$f":"'Population 2016'!AI91/'Population 2016'!AI$6","v":1.0839677404504117E-2},{"$f":"'Population 2016'!AJ91/'Population 2016'!AJ$6","v":7.4860403755292381E-3},{"$f":"'Population 2016'!AK91/'Population 2016'!AK$6","v":1.5745551881593449E-3},{"$f":"'Population 2016'!AL91/'Population 2016'!AL$6","v":2.3316752531533133E-2},{"$f":"'Population 2016'!AM91/'Population 2016'!AM$6","v":1.6605661298194241E-2},{"$f":"'Population 2016'!AN91/'Population 2016'!AN$6","v":0},{"$f":"'Population 2016'!AO91/'Population 2016'!AO$6","v":0},{"$f":"'Population 2016'!AP91/'Population 2016'!AP$6","v":9.3103613763977546E-3},{"$f":"'Population 2016'!AQ91/'Population 2016'!AQ$6","v":1.7605063663796276E-2},{"$f":"'Population 2016'!AR91/'Population 2016'!AR$6","v":1.5462909477715617E-2},{"$f":"'Population 2016'!AS91/'Population 2016'!AS$6","v":7.4779061862678452E-3},{"$f":"'Population 2016'!AT91/'Population 2016'!AT$6","v":0},{"$f":"'Population 2016'!AU91/'Population 2016'!AU$6","v":0},{"$f":"'Population 2016'!AV91/'Population 2016'!AV$6","v":1.4535922792803527E-2},{"$f":"'Population 2016'!AW91/'Population 2016'!AW$6","v":1.4881366759760522E-2},{"$f":"'Population 2016'!AX91/'Population 2016'!AX$6","v":1.3996385039625527E-2},{"$f":"'Population 2016'!AY91/'Population 2016'!AY$6","v":1.5917309106231483E-2},{"$f":"'Population 2016'!AZ91/'Population 2016'!AZ$6","v":1.504216092611119E-2},{"$f":"'Population 2016'!BA91/'Population 2016'!BA$6","v":1.9584404199788814E-2},{"$f":"'Population 2016'!BB91/'Population 2016'!BB$6","v":1.0515911595048286E-2},{"$f":"'Population 2016'!BC91/'Population 2016'!BC$6","v":0},89]
[null,"Male 65-69",{"$f":"'Population 2016'!C92/'Population 2016'!C$6","v":7.7996127088861798E-3},{"$f":"'Population 2016'!D92/'Population 2016'!D$6","v":7.2450500876206419E-3},{"$f":"'Population 2016'!E92/'Population 2016'!E$6","v":5.750459070261912E-3},{"$f":"'Population 2016'!F92/'Population 2016'!F$6","v":8.8721544187656889E-3},{"$f":"'Population 2016'!G92/'Population 2016'!G$6","v":9.5712526586812941E-3},{"$f":"'Population 2016'!H92/'Population 2016'!H$6","v":1.8507366575839061E-2},{"$f":"'Population 2016'!I92/'Population 2016'!I$6","v":9.7115664756725253E-3},{"$f":"'Population 2016'!J92/'Population 2016'!J$6","v":1.4550916473045601E-2},{"$f":"'Population 2016'!K92/'Population 2016'!K$6","v":1.6023202738683909E-2},{"$f":"'Population 2016'!L92/'Population 2016'!L$6","v":8.2908733351211225E-3},{"$f":"'Population 2016'!M92/'Population 2016'!M$6","v":8.2908733351211225E-3},{"$f":"'Population 2016'!N92/'Population 2016'!N$6","v":1.8085841579790912E-2},{"$f":"'Population 2016'!O92/'Population 2016'!O$6","v":1.871005429180125E-2},{"$f":"'Population 2016'!P92/'Population 2016'!P$6","v":6.7135380874345828E-3},{"$f":"'Population 2016'!Q92/'Population 2016'!Q$6","v":3.8870073891625616E-3},{"$f":"'Population 2016'!R92/'Population 2016'!R$6","v":1.161003926925047E-2},{"$f":"'Population 2016'!S92/'Population 2016'!S$6","v":1.1721503803701638E-2},{"$f":"'Population 2016'!T92/'Population 2016'!T$6","v":1.1075242534325666E-2},{"$f":"'Population 2016'!U92/'Population 2016'!U$6","v":0},{"$f":"'Population 2016'!V92/'Population 2016'!V$6","v":1.1382918552036199E-2},{"$f":"'Population 2016'!W92/'Population 2016'!W$6","v":1.6157512953367877E-2},{"$f":"'Population 2016'!X92/'Population 2016'!X$6","v":1.6157512953367877E-2},{"$f":"'Population 2016'!Y92/'Population 2016'!Y$6","v":1.2743862479205526E-2},{"$f":"'Population 2016'!Z92/'Population 2016'!Z$6","v":1.8520375146969019E-2},{"$f":"'Population 2016'!AA92/'Population 2016'!AA$6","v":1.7030690489135528E-2},{"$f":"'Population 2016'!AB92/'Population 2016'!AB$6","v":6.4260721335008073E-3},{"$f":"'Population 2016'!AC92/'Population 2016'!AC$6","v":1.7952947675979349E-2},{"$f":"'Population 2016'!AD92/'Population 2016'!AD$6","v":8.5363869039693455E-3},{"$f":"'Population 2016'!AE92/'Population 2016'!AE$6","v":8.1645785991513661E-3},{"$f":"'Population 2016'!AF92/'Population 2016'!AF$6","v":2.7049452373050117E-2},{"$f":"'Population 2016'!AG92/'Population 2016'!AG$6","v":8.1645785991513661E-3},{"$f":"'Population 2016'!AH92/'Population 2016'!AH$6","v":1.5373104583961206E-2},{"$f":"'Population 2016'!AI92/'Population 2016'!AI$6","v":9.6552647769077207E-3},{"$f":"'Population 2016'!AJ92/'Population 2016'!AJ$6","v":6.2281401484935882E-3},{"$f":"'Population 2016'!AK92/'Population 2016'!AK$6","v":1.4958274287513776E-3},{"$f":"'Population 2016'!AL92/'Population 2016'!AL$6","v":2.2058388109196424E-2},{"$f":"'Population 2016'!AM92/'Population 2016'!AM$6","v":1.6270131771595902E-2},{"$f":"'Population 2016'!AN92/'Population 2016'!AN$6","v":0},{"$f":"'Population 2016'!AO92/'Population 2016'!AO$6","v":0},{"$f":"'Population 2016'!AP92/'Population 2016'!AP$6","v":7.7266401113404038E-3},{"$f":"'Population 2016'!AQ92/'Population 2016'!AQ$6","v":1.5823949363362039E-2},{"$f":"'Population 2016'!AR92/'Population 2016'!AR$6","v":1.4450625287548622E-2},{"$f":"'Population 2016'!AS92/'Population 2016'!AS$6","v":9.7115664756725253E-3},{"$f":"'Population 2016'!AT92/'Population 2016'!AT$6","v":0},{"$f":"'Population 2016'!AU92/'Population 2016'!AU$6","v":0},{"$f":"'Population 2016'!AV92/'Population 2016'!AV$6","v":1.2510425354462052E-2},{"$f":"'Population 2016'!AW92/'Population 2016'!AW$6","v":1.4168830211549644E-2},{"$f":"'Population 2016'!AX92/'Population 2016'!AX$6","v":1.311581776892061E-2},{"$f":"'Population 2016'!AY92/'Population 2016'!AY$6","v":1.524226385240157E-2},{"$f":"'Population 2016'!AZ92/'Population 2016'!AZ$6","v":1.4256109761326283E-2},{"$f":"'Population 2016'!BA92/'Population 2016'!BA$6","v":1.627717012332397E-2},{"$f":"'Population 2016'!BB92/'Population 2016'!BB$6","v":1.1164041739581307E-2},{"$f":"'Population 2016'!BC92/'Population 2016'!BC$6","v":0},90]
[null,"Male 70-74",{"$f":"'Population 2016'!C93/'Population 2016'!C$6","v":4.5363264720648354E-3},{"$f":"'Population 2016'!D93/'Population 2016'!D$6","v":4.1848664766039809E-3},{"$f":"'Population 2016'!E93/'Population 2016'!E$6","v":3.2376534261138496E-3},{"$f":"'Population 2016'!F93/'Population 2016'!F$6","v":5.842638275772527E-3},{"$f":"'Population 2016'!G93/'Population 2016'!G$6","v":8.7316690921303026E-3},{"$f":"'Population 2016'!H93/'Population 2016'!H$6","v":1.3725501887107449E-2},{"$f":"'Population 2016'!I93/'Population 2016'!I$6","v":6.7495387005924055E-3},{"$f":"'Population 2016'!J93/'Population 2016'!J$6","v":1.044380295242789E-2},{"$f":"'Population 2016'!K93/'Population 2016'!K$6","v":1.1648915937618867E-2},{"$f":"'Population 2016'!L93/'Population 2016'!L$6","v":5.0505050505050509E-3},{"$f":"'Population 2016'!M93/'Population 2016'!M$6","v":5.0505050505050509E-3},{"$f":"'Population 2016'!N93/'Population 2016'!N$6","v":1.2865944213265892E-2},{"$f":"'Population 2016'!O93/'Population 2016'!O$6","v":1.283416947288846E-2},{"$f":"'Population 2016'!P93/'Population 2016'!P$6","v":4.6519004070412857E-3},{"$f":"'Population 2016'!Q93/'Population 2016'!Q$6","v":2.4630541871921183E-3},{"$f":"'Population 2016'!R93/'Population 2016'!R$6","v":7.4270104148881676E-3},{"$f":"'Population 2016'!S93/'Population 2016'!S$6","v":8.6201454139879421E-3},{"$f":"'Population 2016'!T93/'Population 2016'!T$6","v":7.5352106740389233E-3},{"$f":"'Population 2016'!U93/'Population 2016'!U$6","v":0},{"$f":"'Population 2016'!V93/'Population 2016'!V$6","v":7.1761877828054295E-3},{"$f":"'Population 2016'!W93/'Population 2016'!W$6","v":1.2352331606217617E-2},{"$f":"'Population 2016'!X93/'Population 2016'!X$6","v":1.2352331606217617E-2},{"$f":"'Population 2016'!Y93/'Population 2016'!Y$6","v":8.5799264001613154E-3},{"$f":"'Population 2016'!Z93/'Population 2016'!Z$6","v":1.3419372871417678E-2},{"$f":"'Population 2016'!AA93/'Population 2016'!AA$6","v":1.2272446052606911E-2},{"$f":"'Population 2016'!AB93/'Population 2016'!AB$6","v":3.7569531670554458E-3},{"$f":"'Population 2016'!AC93/'Population 2016'!AC$6","v":1.2904957729163181E-2},{"$f":"'Population 2016'!AD93/'Population 2016'!AD$6","v":6.198866746556596E-3},{"$f":"'Population 2016'!AE93/'Population 2016'!AE$6","v":5.2888772698936196E-3},{"$f":"'Population 2016'!AF93/'Population 2016'!AF$6","v":1.8641442637459895E-2},{"$f":"'Population 2016'!AG93/'Population 2016'!AG$6","v":5.2888772698936196E-3},{"$f":"'Population 2016'!AH93/'Population 2016'!AH$6","v":1.1135623857156343E-2},{"$f":"'Population 2016'!AI93/'Population 2016'!AI$6","v":6.8972155840242404E-3},{"$f":"'Population 2016'!AJ93/'Population 2016'!AJ$6","v":4.6634349880346074E-3},{"$f":"'Population 2016'!AK93/'Population 2016'!AK$6","v":1.1809163911195087E-3},{"$f":"'Population 2016'!AL93/'Population 2016'!AL$6","v":1.6921300408598329E-2},{"$f":"'Population 2016'!AM93/'Population 2016'!AM$6","v":1.1462908735968766E-2},{"$f":"'Population 2016'!AN93/'Population 2016'!AN$6","v":0},{"$f":"'Population 2016'!AO93/'Population 2016'!AO$6","v":0},{"$f":"'Population 2016'!AP93/'Population 2016'!AP$6","v":5.7109948649037767E-3},{"$f":"'Population 2016'!AQ93/'Population 2016'!AQ$6","v":1.1334363730036065E-2},{"$f":"'Population 2016'!AR93/'Population 2016'!AR$6","v":1.037605425074579E-2},{"$f":"'Population 2016'!AS93/'Population 2016'!AS$6","v":6.7495387005924055E-3},{"$f":"'Population 2016'!AT93/'Population 2016'!AT$6","v":0},{"$f":"'Population 2016'!AU93/'Population 2016'!AU$6","v":0},{"$f":"'Population 2016'!AV93/'Population 2016'!AV$6","v":9.8177052305492667E-3},{"$f":"'Population 2016'!AW93/'Population 2016'!AW$6","v":1.0696238298429963E-2},{"$f":"'Population 2016'!AX93/'Population 2016'!AX$6","v":9.269129165314919E-3},{"$f":"'Population 2016'!AY93/'Population 2016'!AY$6","v":1.1260786750194559E-2},{"$f":"'Population 2016'!AZ93/'Population 2016'!AZ$6","v":1.0084679148206373E-2},{"$f":"'Population 2016'!BA93/'Population 2016'!BA$6","v":1.1914011914011913E-2},{"$f":"'Population 2016'!BB93/'Population 2016'!BB$6","v":8.7173504439691483E-3},{"$f":"'Population 2016'!BC93/'Population 2016'!BC$6","v":0},91]
[null,"Male 75-79",{"$f":"'Population 2016'!C94/'Population 2016'!C$6","v":2.9943340744459585E-3},{"$f":"'Population 2016'!D94/'Population 2016'!D$6","v":2.9424842413621742E-3},{"$f":"'Population 2016'!E94/'Population 2016'!E$6","v":2.802744756934377E-3},{"$f":"'Population 2016'!F94/'Population 2016'!F$6","v":5.2800138492166537E-3},{"$f":"'Population 2016'!G94/'Population 2016'!G$6","v":5.037501399305944E-3},{"$f":"'Population 2016'!H94/'Population 2016'!H$6","v":1.0702552514056416E-2},{"$f":"'Population 2016'!I94/'Population 2016'!I$6","v":3.5447217636204718E-3},{"$f":"'Population 2016'!J94/'Population 2016'!J$6","v":8.355042361942313E-3},{"$f":"'Population 2016'!K94/'Population 2016'!K$6","v":8.6534804108025862E-3},{"$f":"'Population 2016'!L94/'Population 2016'!L$6","v":4.089568248860284E-3},{"$f":"'Population 2016'!M94/'Population 2016'!M$6","v":4.089568248860284E-3},{"$f":"'Population 2016'!N94/'Population 2016'!N$6","v":9.7634136658383448E-3},{"$f":"'Population 2016'!O94/'Population 2016'!O$6","v":1.0909903099443338E-2},{"$f":"'Population 2016'!P94/'Population 2016'!P$6","v":3.5417878099064334E-3},{"$f":"'Population 2016'!Q94/'Population 2016'!Q$6","v":2.3475985221674879E-3},{"$f":"'Population 2016'!R94/'Population 2016'!R$6","v":8.6221615161345393E-3},{"$f":"'Population 2016'!S94/'Population 2016'!S$6","v":6.268479255884426E-3},{"$f":"'Population 2016'!T94/'Population 2016'!T$6","v":6.1107692826378292E-3},{"$f":"'Population 2016'!U94/'Population 2016'!U$6","v":0},{"$f":"'Population 2016'!V94/'Population 2016'!V$6","v":6.1863687782805427E-3},{"$f":"'Population 2016'!W94/'Population 2016'!W$6","v":8.2901554404145074E-3},{"$f":"'Population 2016'!X94/'Population 2016'!X$6","v":8.2901554404145074E-3},{"$f":"'Population 2016'!Y94/'Population 2016'!Y$6","v":7.1180117961385288E-3},{"$f":"'Population 2016'!Z94/'Population 2016'!Z$6","v":1.0065289183383917E-2},{"$f":"'Population 2016'!AA94/'Population 2016'!AA$6","v":9.3140103863964454E-3},{"$f":"'Population 2016'!AB94/'Population 2016'!AB$6","v":2.6018302530055625E-3},{"$f":"'Population 2016'!AC94/'Population 2016'!AC$6","v":9.8547657304704061E-3},{"$f":"'Population 2016'!AD94/'Population 2016'!AD$6","v":4.1572352166644472E-3},{"$f":"'Population 2016'!AE94/'Population 2016'!AE$6","v":3.8409717055120961E-3},{"$f":"'Population 2016'!AF94/'Population 2016'!AF$6","v":1.3994910941475827E-2},{"$f":"'Population 2016'!AG94/'Population 2016'!AG$6","v":3.8409717055120961E-3},{"$f":"'Population 2016'!AH94/'Population 2016'!AH$6","v":8.3421031469937314E-3},{"$f":"'Population 2016'!AI94/'Population 2016'!AI$6","v":5.4826167567182983E-3},{"$f":"'Population 2016'!AJ94/'Population 2016'!AJ$6","v":3.5589372277106215E-3},{"$f":"'Population 2016'!AK94/'Population 2016'!AK$6","v":5.510943158557707E-4},{"$f":"'Population 2016'!AL94/'Population 2016'!AL$6","v":1.2613252798010304E-2},{"$f":"'Population 2016'!AM94/'Population 2016'!AM$6","v":9.016593460224499E-3},{"$f":"'Population 2016'!AN94/'Population 2016'!AN$6","v":0},{"$f":"'Population 2016'!AO94/'Population 2016'!AO$6","v":0},{"$f":"'Population 2016'!AP94/'Population 2016'!AP$6","v":4.6071891347122911E-3},{"$f":"'Population 2016'!AQ94/'Population 2016'!AQ$6","v":9.9948480164863476E-3},{"$f":"'Population 2016'!AR94/'Population 2016'!AR$6","v":7.8642781808953548E-3},{"$f":"'Population 2016'!AS94/'Population 2016'!AS$6","v":3.5447217636204718E-3},{"$f":"'Population 2016'!AT94/'Population 2016'!AT$6","v":0},{"$f":"'Population 2016'!AU94/'Population 2016'!AU$6","v":0},{"$f":"'Population 2016'!AV94/'Population 2016'!AV$6","v":7.3394495412844041E-3},{"$f":"'Population 2016'!AW94/'Population 2016'!AW$6","v":7.4365883422468654E-3},{"$f":"'Population 2016'!AX94/'Population 2016'!AX$6","v":8.0641423738239786E-3},{"$f":"'Population 2016'!AY94/'Population 2016'!AY$6","v":8.091943743362414E-3},{"$f":"'Population 2016'!AZ94/'Population 2016'!AZ$6","v":7.878376447048736E-3},{"$f":"'Population 2016'!BA94/'Population 2016'!BA$6","v":7.9692387384695078E-3},{"$f":"'Population 2016'!BB94/'Population 2016'!BB$6","v":6.6109274742368268E-3},{"$f":"'Population 2016'!BC94/'Population 2016'!BC$6","v":0},92]
[null,"Male 80-84",{"$f":"'Population 2016'!C95/'Population 2016'!C$6","v":2.1516172990030838E-3},{"$f":"'Population 2016'!D95/'Population 2016'!D$6","v":2.1185886537807654E-3},{"$f":"'Population 2016'!E95/'Population 2016'!E$6","v":2.029573789504204E-3},{"$f":"'Population 2016'!F95/'Population 2016'!F$6","v":2.9862373409504026E-3},{"$f":"'Population 2016'!G95/'Population 2016'!G$6","v":3.8620844061345574E-3},{"$f":"'Population 2016'!H95/'Population 2016'!H$6","v":7.178759457896337E-3},{"$f":"'Population 2016'!I95/'Population 2016'!I$6","v":2.7192386131883071E-3},{"$f":"'Population 2016'!J95/'Population 2016'!J$6","v":3.9897674200286325E-3},{"$f":"'Population 2016'!K95/'Population 2016'!K$6","v":3.8512742487637887E-3},{"$f":"'Population 2016'!L95/'Population 2016'!L$6","v":2.592294627692858E-3},{"$f":"'Population 2016'!M95/'Population 2016'!M$6","v":2.592294627692858E-3},{"$f":"'Population 2016'!N95/'Population 2016'!N$6","v":6.205061094855093E-3},{"$f":"'Population 2016'!O95/'Population 2016'!O$6","v":7.2503607999450208E-3},{"$f":"'Population 2016'!P95/'Population 2016'!P$6","v":2.2730876988951735E-3},{"$f":"'Population 2016'!Q95/'Population 2016'!Q$6","v":1.5009236453201969E-3},{"$f":"'Population 2016'!R95/'Population 2016'!R$6","v":4.0976609185589897E-3},{"$f":"'Population 2016'!S95/'Population 2016'!S$6","v":4.3298014499310805E-3},{"$f":"'Population 2016'!T95/'Population 2016'!T$6","v":4.180609054052915E-3},{"$f":"'Population 2016'!U95/'Population 2016'!U$6","v":0},{"$f":"'Population 2016'!V95/'Population 2016'!V$6","v":4.5248868778280547E-3},{"$f":"'Population 2016'!W95/'Population 2016'!W$6","v":6.0103626943005181E-3},{"$f":"'Population 2016'!X95/'Population 2016'!X$6","v":6.0103626943005181E-3},{"$f":"'Population 2016'!Y95/'Population 2016'!Y$6","v":4.2950042849221153E-3},{"$f":"'Population 2016'!Z95/'Population 2016'!Z$6","v":6.878302055895319E-3},{"$f":"'Population 2016'!AA95/'Population 2016'!AA$6","v":6.1593455695332375E-3},{"$f":"'Population 2016'!AB95/'Population 2016'!AB$6","v":1.8504396195944733E-3},{"$f":"'Population 2016'!AC95/'Population 2016'!AC$6","v":6.5575237420875919E-3},{"$f":"'Population 2016'!AD95/'Population 2016'!AD$6","v":2.8997085497018921E-3},{"$f":"'Population 2016'!AE95/'Population 2016'!AE$6","v":2.5539445371729644E-3},{"$f":"'Population 2016'!AF95/'Population 2016'!AF$6","v":8.9888261975882289E-3},{"$f":"'Population 2016'!AG95/'Population 2016'!AG$6","v":2.5539445371729644E-3},{"$f":"'Population 2016'!AH95/'Population 2016'!AH$6","v":5.4436943000290188E-3},{"$f":"'Population 2016'!AI95/'Population 2016'!AI$6","v":3.6202011408865099E-3},{"$f":"'Population 2016'!AJ95/'Population 2016'!AJ$6","v":2.270356507332638E-3},{"$f":"'Population 2016'!AK95/'Population 2016'!AK$6","v":2.3618327822390176E-4},{"$f":"'Population 2016'!AL95/'Population 2016'!AL$6","v":8.2163794634926273E-3},{"$f":"'Population 2016'!AM95/'Population 2016'!AM$6","v":5.9175207418252808E-3},{"$f":"'Population 2016'!AN95/'Population 2016'!AN$6","v":0},{"$f":"'Population 2016'!AO95/'Population 2016'!AO$6","v":0},{"$f":"'Population 2016'!AP95/'Population 2016'!AP$6","v":3.0714594231415269E-3},{"$f":"'Population 2016'!AQ95/'Population 2016'!AQ$6","v":6.255979980864061E-3},{"$f":"'Population 2016'!AR95/'Population 2016'!AR$6","v":5.2202438751437034E-3},{"$f":"'Population 2016'!AS95/'Population 2016'!AS$6","v":2.7192386131883071E-3},{"$f":"'Population 2016'!AT95/'Population 2016'!AT$6","v":0},{"$f":"'Population 2016'!AU95/'Population 2016'!AU$6","v":0},{"$f":"'Population 2016'!AV95/'Population 2016'!AV$6","v":5.4092696294531159E-3},{"$f":"'Population 2016'!AW95/'Population 2016'!AW$6","v":4.807574181606729E-3},{"$f":"'Population 2016'!AX95/'Population 2016'!AX$6","v":4.1247624785651386E-3},{"$f":"'Population 2016'!AY95/'Population 2016'!AY$6","v":5.5035536617980283E-3},{"$f":"'Population 2016'!AZ95/'Population 2016'!AZ$6","v":4.9574817779048166E-3},{"$f":"'Population 2016'!BA95/'Population 2016'!BA$6","v":5.2995437610822227E-3},{"$f":"'Population 2016'!BB95/'Population 2016'!BB$6","v":4.1480329250113421E-3},{"$f":"'Population 2016'!BC95/'Population 2016'!BC$6","v":0},93]
[null,"Male 85-89",{"$f":"'Population 2016'!C96/'Population 2016'!C$6","v":1.11166893781826E-3},{"$f":"'Population 2016'!D96/'Population 2016'!D$6","v":1.0854497423691575E-3},{"$f":"'Population 2016'!E96/'Population 2016'!E$6","v":1.014786894752102E-3},{"$f":"'Population 2016'!F96/'Population 2016'!F$6","v":1.6013156755820999E-3},{"$f":"'Population 2016'!G96/'Population 2016'!G$6","v":2.1829172730325756E-3},{"$f":"'Population 2016'!H96/'Population 2016'!H$6","v":3.3687700113882312E-3},{"$f":"'Population 2016'!I96/'Population 2016'!I$6","v":1.8451976303777799E-3},{"$f":"'Population 2016'!J96/'Population 2016'!J$6","v":2.4407988922528104E-3},{"$f":"'Population 2016'!K96/'Population 2016'!K$6","v":2.615062761506276E-3},{"$f":"'Population 2016'!L96/'Population 2016'!L$6","v":1.4972736211674264E-3},{"$f":"'Population 2016'!M96/'Population 2016'!M$6","v":1.4972736211674264E-3},{"$f":"'Population 2016'!N96/'Population 2016'!N$6","v":3.2936817185960682E-3},{"$f":"'Population 2016'!O96/'Population 2016'!O$6","v":3.5736375506838017E-3},{"$f":"'Population 2016'!P96/'Population 2016'!P$6","v":1.2158376063857905E-3},{"$f":"'Population 2016'!Q96/'Population 2016'!Q$6","v":3.8485221674876849E-4},{"$f":"'Population 2016'!R96/'Population 2016'!R$6","v":2.0488304592794948E-3},{"$f":"'Population 2016'!S96/'Population 2016'!S$6","v":2.0754637569839751E-3},{"$f":"'Population 2016'!T96/'Population 2016'!T$6","v":1.9723034650168995E-3},{"$f":"'Population 2016'!U96/'Population 2016'!U$6","v":0},{"$f":"'Population 2016'!V96/'Population 2016'!V$6","v":1.838235294117647E-3},{"$f":"'Population 2016'!W96/'Population 2016'!W$6","v":2.8766839378238343E-3},{"$f":"'Population 2016'!X96/'Population 2016'!X$6","v":2.8766839378238343E-3},{"$f":"'Population 2016'!Y96/'Population 2016'!Y$6","v":2.0970912940464787E-3},{"$f":"'Population 2016'!Z96/'Population 2016'!Z$6","v":3.2902831830983349E-3},{"$f":"'Population 2016'!AA96/'Population 2016'!AA$6","v":2.9196897829605606E-3},{"$f":"'Population 2016'!AB96/'Population 2016'!AB$6","v":9.756863448770859E-4},{"$f":"'Population 2016'!AC96/'Population 2016'!AC$6","v":3.1455104986519242E-3},{"$f":"'Population 2016'!AD96/'Population 2016'!AD$6","v":1.5386208631071264E-3},{"$f":"'Population 2016'!AE96/'Population 2016'!AE$6","v":1.3071369678444307E-3},{"$f":"'Population 2016'!AF96/'Population 2016'!AF$6","v":3.8997676734152009E-3},{"$f":"'Population 2016'!AG96/'Population 2016'!AG$6","v":1.3071369678444307E-3},{"$f":"'Population 2016'!AH96/'Population 2016'!AH$6","v":2.5138190120236768E-3},{"$f":"'Population 2016'!AI96/'Population 2016'!AI$6","v":1.6908222669573987E-3},{"$f":"'Population 2016'!AJ96/'Population 2016'!AJ$6","v":1.7181076271706448E-3},{"$f":"'Population 2016'!AK96/'Population 2016'!AK$6","v":3.14911037631869E-4},{"$f":"'Population 2016'!AL96/'Population 2016'!AL$6","v":3.7158761177236927E-3},{"$f":"'Population 2016'!AM96/'Population 2016'!AM$6","v":2.5561249389946315E-3},{"$f":"'Population 2016'!AN96/'Population 2016'!AN$6","v":0},{"$f":"'Population 2016'!AO96/'Population 2016'!AO$6","v":0},{"$f":"'Population 2016'!AP96/'Population 2016'!AP$6","v":1.5357297115707635E-3},{"$f":"'Population 2016'!AQ96/'Population 2016'!AQ$6","v":3.3267093545300656E-3},{"$f":"'Population 2016'!AR96/'Population 2016'!AR$6","v":2.5146021005320852E-3},{"$f":"'Population 2016'!AS96/'Population 2016'!AS$6","v":1.8451976303777799E-3},{"$f":"'Population 2016'!AT96/'Population 2016'!AT$6","v":0},{"$f":"'Population 2016'!AU96/'Population 2016'!AU$6","v":0},{"$f":"'Population 2016'!AV96/'Population 2016'!AV$6","v":2.525914452519957E-3},{"$f":"'Population 2016'!AW96/'Population 2016'!AW$6","v":2.4570225800375108E-3},{"$f":"'Population 2016'!AX96/'Population 2016'!AX$6","v":2.2709366455021551E-3},{"$f":"'Population 2016'!AY96/'Population 2016'!AY$6","v":2.7517768308990141E-3},{"$f":"'Population 2016'!AZ96/'Population 2016'!AZ$6","v":2.6171930827497501E-3},{"$f":"'Population 2016'!BA96/'Population 2016'!BA$6","v":2.3907716215408525E-3},{"$f":"'Population 2016'!BB96/'Population 2016'!BB$6","v":1.6851383757858578E-3},{"$f":"'Population 2016'!BC96/'Population 2016'!BC$6","v":0},94]
[null,"Male 90+",{"$f":"'Population 2016'!C97/'Population 2016'!C$6","v":4.4825360395897584E-4},{"$f":"'Population 2016'!D97/'Population 2016'!D$6","v":5.2310830957549761E-4},{"$f":"'Population 2016'!E97/'Population 2016'!E$6","v":7.2484778196578719E-4},{"$f":"'Population 2016'!F97/'Population 2016'!F$6","v":4.7606682247035401E-4},{"$f":"'Population 2016'!G97/'Population 2016'!G$6","v":6.716668532407926E-4},{"$f":"'Population 2016'!H97/'Population 2016'!H$6","v":1.281921331767203E-3},{"$f":"'Population 2016'!I97/'Population 2016'!I$6","v":6.7980965329707678E-4},{"$f":"'Population 2016'!J97/'Population 2016'!J$6","v":1.0561149053016968E-3},{"$f":"'Population 2016'!K97/'Population 2016'!K$6","v":1.3788512742487638E-3},{"$f":"'Population 2016'!L97/'Population 2016'!L$6","v":5.8103155448288189E-4},{"$f":"'Population 2016'!M97/'Population 2016'!M$6","v":5.8103155448288189E-4},{"$f":"'Population 2016'!N97/'Population 2016'!N$6","v":1.3380581981796526E-3},{"$f":"'Population 2016'!O97/'Population 2016'!O$6","v":1.3916569307951343E-3},{"$f":"'Population 2016'!P97/'Population 2016'!P$6","v":4.7576254162922239E-4},{"$f":"'Population 2016'!Q97/'Population 2016'!Q$6","v":2.6939655172413793E-4},{"$f":"'Population 2016'!R97/'Population 2016'!R$6","v":9.3904729383643504E-4},{"$f":"'Population 2016'!S97/'Population 2016'!S$6","v":9.7591515062237606E-4},{"$f":"'Population 2016'!T97/'Population 2016'!T$6","v":9.2715120150367071E-4},{"$f":"'Population 2016'!U97/'Population 2016'!U$6","v":0},{"$f":"'Population 2016'!V97/'Population 2016'!V$6","v":9.1911764705882352E-4},{"$f":"'Population 2016'!W97/'Population 2016'!W$6","v":1.2932642487046631E-3},{"$f":"'Population 2016'!X97/'Population 2016'!X$6","v":1.2932642487046631E-3},{"$f":"'Population 2016'!Y97/'Population 2016'!Y$6","v":9.7797045924282898E-4},{"$f":"'Population 2016'!Z97/'Population 2016'!Z$6","v":1.4096873471446236E-3},{"$f":"'Population 2016'!AA97/'Population 2016'!AA$6","v":1.2761144128436354E-3},{"$f":"'Population 2016'!AB97/'Population 2016'!AB$6","v":4.710209940785932E-4},{"$f":"'Population 2016'!AC97/'Population 2016'!AC$6","v":1.3869814381810895E-3},{"$f":"'Population 2016'!AD97/'Population 2016'!AD$6","v":4.8821623540899208E-4},{"$f":"'Population 2016'!AE97/'Population 2016'!AE$6","v":4.2230578961127756E-4},{"$f":"'Population 2016'!AF97/'Population 2016'!AF$6","v":1.7424493859940259E-3},{"$f":"'Population 2016'!AG97/'Population 2016'!AG$6","v":4.2230578961127756E-4},{"$f":"'Population 2016'!AH97/'Population 2016'!AH$6","v":1.076851537834899E-3},{"$f":"'Population 2016'!AI97/'Population 2016'!AI$6","v":8.4122592984761679E-4},{"$f":"'Population 2016'!AJ97/'Population 2016'!AJ$6","v":9.2041480026998834E-4},{"$f":"'Population 2016'!AK97/'Population 2016'!AK$6","v":1.574555188159345E-4},{"$f":"'Population 2016'!AL97/'Population 2016'!AL$6","v":1.361994433587967E-3},{"$f":"'Population 2016'!AM97/'Population 2016'!AM$6","v":1.1469009272816009E-3},{"$f":"'Population 2016'!AN97/'Population 2016'!AN$6","v":0},{"$f":"'Population 2016'!AO97/'Population 2016'!AO$6","v":0},{"$f":"'Population 2016'!AP97/'Population 2016'!AP$6","v":4.3192398137927723E-4},{"$f":"'Population 2016'!AQ97/'Population 2016'!AQ$6","v":1.3836755722381688E-3},{"$f":"'Population 2016'!AR97/'Population 2016'!AR$6","v":1.0829349572082435E-3},{"$f":"'Population 2016'!AS97/'Population 2016'!AS$6","v":6.7980965329707678E-4},{"$f":"'Population 2016'!AT97/'Population 2016'!AT$6","v":0},{"$f":"'Population 2016'!AU97/'Population 2016'!AU$6","v":0},{"$f":"'Population 2016'!AV97/'Population 2016'!AV$6","v":1.0008340283569641E-3},{"$f":"'Population 2016'!AW97/'Population 2016'!AW$6","v":9.8280903201500422E-4},{"$f":"'Population 2016'!AX97/'Population 2016'!AX$6","v":7.4153033322519354E-4},{"$f":"'Population 2016'!AY97/'Population 2016'!AY$6","v":1.1480068966406825E-3},{"$f":"'Population 2016'!AZ97/'Population 2016'!AZ$6","v":9.9149635558096324E-4},{"$f":"'Population 2016'!BA97/'Population 2016'!BA$6","v":1.4344629729245114E-3},{"$f":"'Population 2016'!BB97/'Population 2016'!BB$6","v":8.7497569511958001E-4},{"$f":"'Population 2016'!BC97/'Population 2016'!BC$6","v":0},95]
["SIMD Q2","Female 0-4",{"$f":"'Population 2016'!C98/'Population 2016'!C$6","v":0},{"$f":"'Population 2016'!D98/'Population 2016'!D$6","v":0},{"$f":"'Population 2016'!E98/'Population 2016'!E$6","v":0},{"$f":"'Population 2016'!F98/'Population 2016'!F$6","v":0},{"$f":"'Population 2016'!G98/'Population 2016'!G$6","v":0},{"$f":"'Population 2016'!H98/'Population 2016'!H$6","v":0},{"$f":"'Population 2016'!I98/'Population 2016'!I$6","v":0},{"$f":"'Population 2016'!J98/'Population 2016'!J$6","v":0},{"$f":"'Population 2016'!K98/'Population 2016'!K$6","v":0},{"$f":"'Population 2016'!L98/'Population 2016'!L$6","v":0},{"$f":"'Population 2016'!M98/'Population 2016'!M$6","v":0},{"$f":"'Population 2016'!N98/'Population 2016'!N$6","v":0},{"$f":"'Population 2016'!O98/'Population 2016'!O$6","v":0},{"$f":"'Population 2016'!P98/'Population 2016'!P$6","v":0},{"$f":"'Population 2016'!Q98/'Population 2016'!Q$6","v":0},{"$f":"'Population 2016'!R98/'Population 2016'!R$6","v":0},{"$f":"'Population 2016'!S98/'Population 2016'!S$6","v":0},{"$f":"'Population 2016'!T98/'Population 2016'!T$6","v":0},{"$f":"'Population 2016'!U98/'Population 2016'!U$6","v":0},{"$f":"'Population 2016'!V98/'Population 2016'!V$6","v":0},{"$f":"'Population 2016'!W98/'Population 2016'!W$6","v":0},{"$f":"'Population 2016'!X98/'Population 2016'!X$6","v":0},{"$f":"'Population 2016'!Y98/'Population 2016'!Y$6","v":0},{"$f":"'Population 2016'!Z98/'Population 2016'!Z$6","v":0},{"$f":"'Population 2016'!AA98/'Population 2016'!AA$6","v":0},{"$f":"'Population 2016'!AB98/'Population 2016'!AB$6","v":0},{"$f":"'Population 2016'!AC98/'Population 2016'!AC$6","v":0},{"$f":"'Population 2016'!AD98/'Population 2016'!AD$6","v":0},{"$f":"'Population 2016'!AE98/'Population 2016'!AE$6","v":0},{"$f":"'Population 2016'!AF98/'Population 2016'!AF$6","v":0},{"$f":"'Population 2016'!AG98/'Population 2016'!AG$6","v":0},{"$f":"'Population 2016'!AH98/'Population 2016'!AH$6","v":0},{"$f":"'Population 2016'!AI98/'Population 2016'!AI$6","v":0},{"$f":"'Population 2016'!AJ98/'Population 2016'!AJ$6","v":0},{"$f":"'Population 2016'!AK98/'Population 2016'!AK$6","v":0},{"$f":"'Population 2016'!AL98/'Population 2016'!AL$6","v":0},{"$f":"'Population 2016'!AM98/'Population 2016'!AM$6","v":0},{"$f":"'Population 2016'!AN98/'Population 2016'!AN$6","v":0},{"$f":"'Population 2016'!AO98/'Population 2016'!AO$6","v":0},{"$f":"'Population 2016'!AP98/'Population 2016'!AP$6","v":0},{"$f":"'Population 2016'!AQ98/'Population 2016'!AQ$6","v":0},{"$f":"'Population 2016'!AR98/'Population 2016'!AR$6","v":0},{"$f":"'Population 2016'!AS98/'Population 2016'!AS$6","v":0},{"$f":"'Population 2016'!AT98/'Population 2016'!AT$6","v":0},{"$f":"'Population 2016'!AU98/'Population 2016'!AU$6","v":0},{"$f":"'Population 2016'!AV98/'Population 2016'!AV$6","v":0},{"$f":"'Population 2016'!AW98/'Population 2016'!AW$6","v":0},{"$f":"'Population 2016'!AX98/'Population 2016'!AX$6","v":0},{"$f":"'Population 2016'!AY98/'Population 2016'!AY$6","v":0},{"$f":"'Population 2016'!AZ98/'Population 2016'!AZ$6","v":0},{"$f":"'Population 2016'!BA98/'Population 2016'!BA$6","v":0},{"$f":"'Population 2016'!BB98/'Population 2016'!BB$6","v":0},{"$f":"'Population 2016'!BC98/'Population 2016'!BC$6","v":0},96]
[null,"Female 5-9",{"$f":"'Population 2016'!C99/'Population 2016'!C$6","v":0},{"$f":"'Population 2016'!D99/'Population 2016'!D$6","v":0},{"$f":"'Population 2016'!E99/'Population 2016'!E$6","v":0},{"$f":"'Population 2016'!F99/'Population 2016'!F$6","v":0},{"$f":"'Population 2016'!G99/'Population 2016'!G$6","v":0},{"$f":"'Population 2016'!H99/'Population 2016'!H$6","v":0},{"$f":"'Population 2016'!I99/'Population 2016'!I$6","v":0},{"$f":"'Population 2016'!J99/'Population 2016'!J$6","v":0},{"$f":"'Population 2016'!K99/'Population 2016'!K$6","v":0},{"$f":"'Population 2016'!L99/'Population 2016'!L$6","v":0},{"$f":"'Population 2016'!M99/'Population 2016'!M$6","v":0},{"$f":"'Population 2016'!N99/'Population 2016'!N$6","v":0},{"$f":"'Population 2016'!O99/'Population 2016'!O$6","v":0},{"$f":"'Population 2016'!P99/'Population 2016'!P$6","v":0},{"$f":"'Population 2016'!Q99/'Population 2016'!Q$6","v":0},{"$f":"'Population 2016'!R99/'Population 2016'!R$6","v":0},{"$f":"'Population 2016'!S99/'Population 2016'!S$6","v":0},{"$f":"'Population 2016'!T99/'Population 2016'!T$6","v":0},{"$f":"'Population 2016'!U99/'Population 2016'!U$6","v":0},{"$f":"'Population 2016'!V99/'Population 2016'!V$6","v":0},{"$f":"'Population 2016'!W99/'Population 2016'!W$6","v":0},{"$f":"'Population 2016'!X99/'Population 2016'!X$6","v":0},{"$f":"'Population 2016'!Y99/'Population 2016'!Y$6","v":0},{"$f":"'Population 2016'!Z99/'Population 2016'!Z$6","v":0},{"$f":"'Population 2016'!AA99/'Population 2016'!AA$6","v":0},{"$f":"'Population 2016'!AB99/'Population 2016'!AB$6","v":0},{"$f":"'Population 2016'!AC99/'Population 2016'!AC$6","v":0},{"$f":"'Population 2016'!AD99/'Population 2016'!AD$6","v":0},{"$f":"'Population 2016'!AE99/'Population 2016'!AE$6","v":0},{"$f":"'Population 2016'!AF99/'Population 2016'!AF$6","v":0},{"$f":"'Population 2016'!AG99/'Population 2016'!AG$6","v":0},{"$f":"'Population 2016'!AH99/'Population 2016'!AH$6","v":0},{"$f":"'Population 2016'!AI99/'Population 2016'!AI$6","v":0},{"$f":"'Population 2016'!AJ99/'Population 2016'!AJ$6","v":0},{"$f":"'Population 2016'!AK99/'Population 2016'!AK$6","v":0},{"$f":"'Population 2016'!AL99/'Population 2016'!AL$6","v":0},{"$f":"'Population 2016'!AM99/'Population 2016'!AM$6","v":0},{"$f":"'Population 2016'!AN99/'Population 2016'!AN$6","v":0},{"$f":"'Population 2016'!AO99/'Population 2016'!AO$6","v":0},{"$f":"'Population 2016'!AP99/'Population 2016'!AP$6","v":0},{"$f":"'Population 2016'!AQ99/'Population 2016'!AQ$6","v":0},{"$f":"'Population 2016'!AR99/'Population 2016'!AR$6","v":0},{"$f":"'Population 2016'!AS99/'Population 2016'!AS$6","v":0},{"$f":"'Population 2016'!AT99/'Population 2016'!AT$6","v":0},{"$f":"'Population 2016'!AU99/'Population 2016'!AU$6","v":0},{"$f":"'Population 2016'!AV99/'Population 2016'!AV$6","v":0},{"$f":"'Population 2016'!AW99/'Population 2016'!AW$6","v":0},{"$f":"'Population 2016'!AX99/'Population 2016'!AX$6","v":0},{"$f":"'Population 2016'!AY99/'Population 2016'!AY$6","v":0},{"$f":"'Population 2016'!AZ99/'Population 2016'!AZ$6","v":0},{"$f":"'Population 2016'!BA99/'Population 2016'!BA$6","v":0},{"$f":"'Population 2016'!BB99/'Population 2016'!BB$6","v":0},{"$f":"'Population 2016'!BC99/'Population 2016'!BC$6","v":0},97]
[null,"Female 10-15",{"$f":"'Population 2016'!C100/'Population 2016'!C$6","v":0},{"$f":"'Population 2016'!D100/'Population 2016'!D$6","v":0},{"$f":"'Population 2016'!E100/'Population 2016'!E$6","v":0},{"$f":"'Population 2016'!F100/'Population 2016'!F$6","v":0},{"$f":"'Population 2016'!G100/'Population 2016'!G$6","v":0},{"$f":"'Population 2016'!H100/'Population 2016'!H$6","v":0},{"$f":"'Population 2016'!I100/'Population 2016'!I$6","v":0},{"$f":"'Population 2016'!J100/'Population 2016'!J$6","v":0},{"$f":"'Population 2016'!K100/'Population 2016'!K$6","v":0},{"$f":"'Population 2016'!L100/'Population 2016'!L$6","v":0},{"$f":"'Population 2016'!M100/'Population 2016'!M$6","v":0},{"$f":"'Population 2016'!N100/'Population 2016'!N$6","v":0},{"$f":"'Population 2016'!O100/'Population 2016'!O$6","v":0},{"$f":"'Population 2016'!P100/'Population 2016'!P$6","v":0},{"$f":"'Population 2016'!Q100/'Population 2016'!Q$6","v":0},{"$f":"'Population 2016'!R100/'Population 2016'!R$6","v":0},{"$f":"'Population 2016'!S100/'Population 2016'!S$6","v":0},{"$f":"'Population 2016'!T100/'Population 2016'!T$6","v":0},{"$f":"'Population 2016'!U100/'Population 2016'!U$6","v":0},{"$f":"'Population 2016'!V100/'Population 2016'!V$6","v":0},{"$f":"'Population 2016'!W100/'Population 2016'!W$6","v":0},{"$f":"'Population 2016'!X100/'Population 2016'!X$6","v":0},{"$f":"'Population 2016'!Y100/'Population 2016'!Y$6","v":0},{"$f":"'Population 2016'!Z100/'Population 2016'!Z$6","v":0},{"$f":"'Population 2016'!AA100/'Population 2016'!AA$6","v":0},{"$f":"'Population 2016'!AB100/'Population 2016'!AB$6","v":0},{"$f":"'Population 2016'!AC100/'Population 2016'!AC$6","v":0},{"$f":"'Population 2016'!AD100/'Population 2016'!AD$6","v":0},{"$f":"'Population 2016'!AE100/'Population 2016'!AE$6","v":0},{"$f":"'Population 2016'!AF100/'Population 2016'!AF$6","v":0},{"$f":"'Population 2016'!AG100/'Population 2016'!AG$6","v":0},{"$f":"'Population 2016'!AH100/'Population 2016'!AH$6","v":0},{"$f":"'Population 2016'!AI100/'Population 2016'!AI$6","v":0},{"$f":"'Population 2016'!AJ100/'Population 2016'!AJ$6","v":0},{"$f":"'Population 2016'!AK100/'Population 2016'!AK$6","v":0},{"$f":"'Population 2016'!AL100/'Population 2016'!AL$6","v":0},{"$f":"'Population 2016'!AM100/'Population 2016'!AM$6","v":0},{"$f":"'Population 2016'!AN100/'Population 2016'!AN$6","v":0},{"$f":"'Population 2016'!AO100/'Population 2016'!AO$6","v":0},{"$f":"'Population 2016'!AP100/'Population 2016'!AP$6","v":0},{"$f":"'Population 2016'!AQ100/'Population 2016'!AQ$6","v":0},{"$f":"'Population 2016'!AR100/'Population 2016'!AR$6","v":0},{"$f":"'Population 2016'!AS100/'Population 2016'!AS$6","v":0},{"$f":"'Population 2016'!AT100/'Population 2016'!AT$6","v":0},{"$f":"'Population 2016'!AU100/'Population 2016'!AU$6","v":0},{"$f":"'Population 2016'!AV100/'Population 2016'!AV$6","v":0},{"$f":"'Population 2016'!AW100/'Population 2016'!AW$6","v":0},{"$f":"'Population 2016'!AX100/'Population 2016'!AX$6","v":0},{"$f":"'Population 2016'!AY100/'Population 2016'!AY$6","v":0},{"$f":"'Population 2016'!AZ100/'Population 2016'!AZ$6","v":0},{"$f":"'Population 2016'!BA100/'Population 2016'!BA$6","v":0},{"$f":"'Population 2016'!BB100/'Population 2016'!BB$6","v":0},{"$f":"'Population 2016'!BC100/'Population 2016'!BC$6","v":0},98]
[null,"Female 16-19",{"$f":"'Population 2016'!C101/'Population 2016'!C$6","v":1.7195008247866312E-2},{"$f":"'Population 2016'!D101/'Population 2016'!D$6","v":1.7550283786257944E-2},{"$f":"'Population 2016'!E101/'Population 2016'!E$6","v":1.8507780032859765E-2},{"$f":"'Population 2016'!F101/'Population 2016'!F$6","v":1.6748896390547909E-2},{"$f":"'Population 2016'!G101/'Population 2016'!G$6","v":1.572819881338856E-2},{"$f":"'Population 2016'!H101/'Population 2016'!H$6","v":1.1012598603600113E-2},{"$f":"'Population 2016'!I101/'Population 2016'!I$6","v":1.7577935320967273E-2},{"$f":"'Population 2016'!J101/'Population 2016'!J$6","v":1.5161116196108803E-2},{"$f":"'Population 2016'!K101/'Population 2016'!K$6","v":1.5642829973373906E-2},{"$f":"'Population 2016'!L101/'Population 2016'!L$6","v":1.9755072852417985E-2},{"$f":"'Population 2016'!M101/'Population 2016'!M$6","v":1.9755072852417985E-2},{"$f":"'Population 2016'!N101/'Population 2016'!N$6","v":9.8222294108132741E-3},{"$f":"'Population 2016'!O101/'Population 2016'!O$6","v":1.1854855336402997E-2},{"$f":"'Population 2016'!P101/'Population 2016'!P$6","v":1.8977639160543427E-2},{"$f":"'Population 2016'!Q101/'Population 2016'!Q$6","v":2.1243842364532018E-2},{"$f":"'Population 2016'!R101/'Population 2016'!R$6","v":1.835410619771214E-2},{"$f":"'Population 2016'!S101/'Population 2016'!S$6","v":1.5554140931617546E-2},{"$f":"'Population 2016'!T101/'Population 2016'!T$6","v":1.3536407541953592E-2},{"$f":"'Population 2016'!U101/'Population 2016'!U$6","v":2.1723122238586155E-2},{"$f":"'Population 2016'!V101/'Population 2016'!V$6","v":1.6420390271493213E-2},{"$f":"'Population 2016'!W101/'Population 2016'!W$6","v":1.2907772020725388E-2},{"$f":"'Population 2016'!X101/'Population 2016'!X$6","v":1.2907772020725388E-2},{"$f":"'Population 2016'!Y101/'Population 2016'!Y$6","v":1.5879417250592328E-2},{"$f":"'Population 2016'!Z101/'Population 2016'!Z$6","v":7.2945243976168996E-3},{"$f":"'Population 2016'!AA101/'Population 2016'!AA$6","v":1.0561377853603055E-2},{"$f":"'Population 2016'!AB101/'Population 2016'!AB$6","v":1.8123093486452538E-2},{"$f":"'Population 2016'!AC101/'Population 2016'!AC$6","v":8.8276602615228392E-3},{"$f":"'Population 2016'!AD101/'Population 2016'!AD$6","v":1.8315506043525217E-2},{"$f":"'Population 2016'!AE101/'Population 2016'!AE$6","v":1.9245078126571079E-2},{"$f":"'Population 2016'!AF101/'Population 2016'!AF$6","v":6.3889810819780946E-3},{"$f":"'Population 2016'!AG101/'Population 2016'!AG$6","v":1.9245078126571079E-2},{"$f":"'Population 2016'!AH101/'Population 2016'!AH$6","v":1.3677413038993913E-2},{"$f":"'Population 2016'!AI101/'Population 2016'!AI$6","v":1.6715703302544186E-2},{"$f":"'Population 2016'!AJ101/'Population 2016'!AJ$6","v":2.331717494017304E-2},{"$f":"'Population 2016'!AK101/'Population 2016'!AK$6","v":2.1571406077783028E-2},{"$f":"'Population 2016'!AL101/'Population 2016'!AL$6","v":8.3052051874222769E-3},{"$f":"'Population 2016'!AM101/'Population 2016'!AM$6","v":1.3396778916544656E-2},{"$f":"'Population 2016'!AN101/'Population 2016'!AN$6","v":1.8838908112264515E-2},{"$f":"'Population 2016'!AO101/'Population 2016'!AO$6","v":1.8838908112264515E-2},{"$f":"'Population 2016'!AP101/'Population 2016'!AP$6","v":1.7372942362144261E-2},{"$f":"'Population 2016'!AQ101/'Population 2016'!AQ$6","v":1.1113564436593802E-2},{"$f":"'Population 2016'!AR101/'Population 2016'!AR$6","v":1.3068131078085488E-2},{"$f":"'Population 2016'!AS101/'Population 2016'!AS$6","v":1.7577935320967273E-2},{"$f":"'Population 2016'!AT101/'Population 2016'!AT$6","v":2.2257551669316374E-2},{"$f":"'Population 2016'!AU101/'Population 2016'!AU$6","v":2.2257551669316374E-2},{"$f":"'Population 2016'!AV101/'Population 2016'!AV$6","v":1.4202311450017872E-2},{"$f":"'Population 2016'!AW101/'Population 2016'!AW$6","v":1.405416915781456E-2},{"$f":"'Population 2016'!AX101/'Population 2016'!AX$6","v":1.4691569727024146E-2},{"$f":"'Population 2016'!AY101/'Population 2016'!AY$6","v":1.2787162961083856E-2},{"$f":"'Population 2016'!AZ101/'Population 2016'!AZ$6","v":1.2657210232956982E-2},{"$f":"'Population 2016'!BA101/'Population 2016'!BA$6","v":1.1495626880242265E-2},{"$f":"'Population 2016'!BB101/'Population 2016'!BB$6","v":1.7434700887938297E-2},{"$f":"'Population 2016'!BC101/'Population 2016'!BC$6","v":2.1723122238586155E-2},99]
[null,"Female 20-24",{"$f":"'Population 2016'!C102/'Population 2016'!C$6","v":3.9320806139281357E-2},{"$f":"'Population 2016'!D102/'Population 2016'!D$6","v":3.646064917741218E-2},{"$f":"'Population 2016'!E102/'Population 2016'!E$6","v":2.8752295351309558E-2},{"$f":"'Population 2016'!F102/'Population 2016'!F$6","v":3.2588937938197872E-2},{"$f":"'Population 2016'!G102/'Population 2016'!G$6","v":2.0429866786074106E-2},{"$f":"'Population 2016'!H102/'Population 2016'!H$6","v":1.4917986846890894E-2},{"$f":"'Population 2016'!I102/'Population 2016'!I$6","v":2.6852481305234533E-2},{"$f":"'Population 2016'!J102/'Population 2016'!J$6","v":2.4220235161585581E-2},{"$f":"'Population 2016'!K102/'Population 2016'!K$6","v":1.7877519969570179E-2},{"$f":"'Population 2016'!L102/'Population 2016'!L$6","v":2.4693841065522481E-2},{"$f":"'Population 2016'!M102/'Population 2016'!M$6","v":2.4693841065522481E-2},{"$f":"'Population 2016'!N102/'Population 2016'!N$6","v":2.3835080651090298E-2},{"$f":"'Population 2016'!O102/'Population 2016'!O$6","v":1.5359769088035187E-2},{"$f":"'Population 2016'!P102/'Population 2016'!P$6","v":2.7171327377491145E-2},{"$f":"'Population 2016'!Q102/'Population 2016'!Q$6","v":3.575277093596059E-2},{"$f":"'Population 2016'!R102/'Population 2016'!R$6","v":2.3305446474304253E-2},{"$f":"'Population 2016'!S102/'Population 2016'!S$6","v":2.6515430507475877E-2},{"$f":"'Population 2016'!T102/'Population 2016'!T$6","v":3.459116846337331E-2},{"$f":"'Population 2016'!U102/'Population 2016'!U$6","v":2.6509572901325478E-2},{"$f":"'Population 2016'!V102/'Population 2016'!V$6","v":2.3030967194570137E-2},{"$f":"'Population 2016'!W102/'Population 2016'!W$6","v":1.7459067357512955E-2},{"$f":"'Population 2016'!X102/'Population 2016'!X$6","v":1.7459067357512955E-2},{"$f":"'Population 2016'!Y102/'Population 2016'!Y$6","v":2.3541866209608308E-2},{"$f":"'Population 2016'!Z102/'Population 2016'!Z$6","v":1.3878128883096207E-2},{"$f":"'Population 2016'!AA102/'Population 2016'!AA$6","v":1.5913309210896343E-2},{"$f":"'Population 2016'!AB102/'Population 2016'!AB$6","v":3.7502242957114663E-2},{"$f":"'Population 2016'!AC102/'Population 2016'!AC$6","v":1.4367804912209715E-2},{"$f":"'Population 2016'!AD102/'Population 2016'!AD$6","v":2.3567529182015889E-2},{"$f":"'Population 2016'!AE102/'Population 2016'!AE$6","v":2.4694833792507087E-2},{"$f":"'Population 2016'!AF102/'Population 2016'!AF$6","v":7.9931408341630712E-3},{"$f":"'Population 2016'!AG102/'Population 2016'!AG$6","v":2.4694833792507087E-2},{"$f":"'Population 2016'!AH102/'Population 2016'!AH$6","v":1.869106597813432E-2},{"$f":"'Population 2016'!AI102/'Population 2016'!AI$6","v":3.1058396146264496E-2},{"$f":"'Population 2016'!AJ102/'Population 2016'!AJ$6","v":2.9238510155243296E-2},{"$f":"'Population 2016'!AK102/'Population 2016'!AK$6","v":4.3772634230829791E-2},{"$f":"'Population 2016'!AL102/'Population 2016'!AL$6","v":1.1280866939065553E-2},{"$f":"'Population 2016'!AM102/'Population 2016'!AM$6","v":1.7087603709126403E-2},{"$f":"'Population 2016'!AN102/'Population 2016'!AN$6","v":3.3833141099577087E-2},{"$f":"'Population 2016'!AO102/'Population 2016'!AO$6","v":3.3833141099577087E-2},{"$f":"'Population 2016'!AP102/'Population 2016'!AP$6","v":2.7643134808273743E-2},{"$f":"'Population 2016'!AQ102/'Population 2016'!AQ$6","v":1.4131154780304703E-2},{"$f":"'Population 2016'!AR102/'Population 2016'!AR$6","v":2.0855541224439965E-2},{"$f":"'Population 2016'!AS102/'Population 2016'!AS$6","v":2.6852481305234533E-2},{"$f":"'Population 2016'!AT102/'Population 2016'!AT$6","v":4.133545310015898E-2},{"$f":"'Population 2016'!AU102/'Population 2016'!AU$6","v":4.133545310015898E-2},{"$f":"'Population 2016'!AV102/'Population 2016'!AV$6","v":2.0159656856904563E-2},{"$f":"'Population 2016'!AW102/'Population 2016'!AW$6","v":2.0843741553984881E-2},{"$f":"'Population 2016'!AX102/'Population 2016'!AX$6","v":3.0402743662232935E-2},{"$f":"'Population 2016'!AY102/'Population 2016'!AY$6","v":2.1739036964102211E-2},{"$f":"'Population 2016'!AZ102/'Population 2016'!AZ$6","v":2.6350578819494069E-2},{"$f":"'Population 2016'!BA102/'Population 2016'!BA$6","v":1.5579861733707888E-2},{"$f":"'Population 2016'!BB102/'Population 2016'!BB$6","v":2.3251668935122174E-2},{"$f":"'Population 2016'!BC102/'Population 2016'!BC$6","v":2.6509572901325478E-2},100]
[null,"Female 25-29",{"$f":"'Population 2016'!C103/'Population 2016'!C$6","v":4.4771569963422506E-2},{"$f":"'Population 2016'!D103/'Population 2016'!D$6","v":4.1351711871943087E-2},{"$f":"'Population 2016'!E103/'Population 2016'!E$6","v":3.2134918333816563E-2},{"$f":"'Population 2016'!F103/'Population 2016'!F$6","v":3.3584350385181337E-2},{"$f":"'Population 2016'!G103/'Population 2016'!G$6","v":2.3956117765588269E-2},{"$f":"'Population 2016'!H103/'Population 2016'!H$6","v":1.6032960284288415E-2},{"$f":"'Population 2016'!I103/'Population 2016'!I$6","v":2.7192386131883073E-2},{"$f":"'Population 2016'!J103/'Population 2016'!J$6","v":2.3915135300053979E-2},{"$f":"'Population 2016'!K103/'Population 2016'!K$6","v":2.0635222518067705E-2},{"$f":"'Population 2016'!L103/'Population 2016'!L$6","v":2.3956377938678823E-2},{"$f":"'Population 2016'!M103/'Population 2016'!M$6","v":2.3956377938678823E-2},{"$f":"'Population 2016'!N103/'Population 2016'!N$6","v":2.2011792556867475E-2},{"$f":"'Population 2016'!O103/'Population 2016'!O$6","v":1.7455844959109339E-2},{"$f":"'Population 2016'!P103/'Population 2016'!P$6","v":3.0871702701273988E-2},{"$f":"'Population 2016'!Q103/'Population 2016'!Q$6","v":3.5675800492610835E-2},{"$f":"'Population 2016'!R103/'Population 2016'!R$6","v":2.1683455694041318E-2},{"$f":"'Population 2016'!S103/'Population 2016'!S$6","v":2.9351108492303161E-2},{"$f":"'Population 2016'!T103/'Population 2016'!T$6","v":3.91342093507413E-2},{"$f":"'Population 2016'!U103/'Population 2016'!U$6","v":2.8902798232695141E-2},{"$f":"'Population 2016'!V103/'Population 2016'!V$6","v":2.4992929864253395E-2},{"$f":"'Population 2016'!W103/'Population 2016'!W$6","v":1.9838341968911918E-2},{"$f":"'Population 2016'!X103/'Population 2016'!X$6","v":1.9838341968911918E-2},{"$f":"'Population 2016'!Y103/'Population 2016'!Y$6","v":2.4529918838534052E-2},{"$f":"'Population 2016'!Z103/'Population 2016'!Z$6","v":1.8058581016007852E-2},{"$f":"'Population 2016'!AA103/'Population 2016'!AA$6","v":1.8346800652430679E-2},{"$f":"'Population 2016'!AB103/'Population 2016'!AB$6","v":4.1012470841557506E-2},{"$f":"'Population 2016'!AC103/'Population 2016'!AC$6","v":1.7635867767951976E-2},{"$f":"'Population 2016'!AD103/'Population 2016'!AD$6","v":2.5549982986403919E-2},{"$f":"'Population 2016'!AE103/'Population 2016'!AE$6","v":2.6122629557383314E-2},{"$f":"'Population 2016'!AF103/'Population 2016'!AF$6","v":9.8738798539661464E-3},{"$f":"'Population 2016'!AG103/'Population 2016'!AG$6","v":2.6122629557383314E-2},{"$f":"'Population 2016'!AH103/'Population 2016'!AH$6","v":1.9624570395673016E-2},{"$f":"'Population 2016'!AI103/'Population 2016'!AI$6","v":3.4339595793033313E-2},{"$f":"'Population 2016'!AJ103/'Population 2016'!AJ$6","v":3.0711173835675277E-2},{"$f":"'Population 2016'!AK103/'Population 2016'!AK$6","v":3.8970240906943787E-2},{"$f":"'Population 2016'!AL103/'Population 2016'!AL$6","v":1.1295671226387161E-2},{"$f":"'Population 2016'!AM103/'Population 2016'!AM$6","v":1.8502928257686676E-2},{"$f":"'Population 2016'!AN103/'Population 2016'!AN$6","v":3.8446751249519413E-2},{"$f":"'Population 2016'!AO103/'Population 2016'!AO$6","v":3.8446751249519413E-2},{"$f":"'Population 2016'!AP103/'Population 2016'!AP$6","v":3.0810577338388444E-2},{"$f":"'Population 2016'!AQ103/'Population 2016'!AQ$6","v":1.5809229410465888E-2},{"$f":"'Population 2016'!AR103/'Population 2016'!AR$6","v":2.2953021196360526E-2},{"$f":"'Population 2016'!AS103/'Population 2016'!AS$6","v":2.7192386131883073E-2},{"$f":"'Population 2016'!AT103/'Population 2016'!AT$6","v":3.6565977742448331E-2},{"$f":"'Population 2016'!AU103/'Population 2016'!AU$6","v":3.6565977742448331E-2},{"$f":"'Population 2016'!AV103/'Population 2016'!AV$6","v":2.1684737281067557E-2},{"$f":"'Population 2016'!AW103/'Population 2016'!AW$6","v":2.113039418832259E-2},{"$f":"'Population 2016'!AX103/'Population 2016'!AX$6","v":2.7112202808546138E-2},{"$f":"'Population 2016'!AY103/'Population 2016'!AY$6","v":2.2822549091268698E-2},{"$f":"'Population 2016'!AZ103/'Population 2016'!AZ$6","v":2.6037944833500071E-2},{"$f":"'Population 2016'!BA103/'Population 2016'!BA$6","v":1.6994401609786224E-2},{"$f":"'Population 2016'!BB103/'Population 2016'!BB$6","v":2.6476116404173959E-2},{"$f":"'Population 2016'!BC103/'Population 2016'!BC$6","v":2.8902798232695141E-2},101]
[null,"Female 30-34",{"$f":"'Population 2016'!C104/'Population 2016'!C$6","v":3.8137416624829661E-2},{"$f":"'Population 2016'!D104/'Population 2016'!D$6","v":3.5898307744618524E-2},{"$f":"'Population 2016'!E104/'Population 2016'!E$6","v":2.9863728616990434E-2},{"$f":"'Population 2016'!F104/'Population 2016'!F$6","v":3.0554834242188175E-2},{"$f":"'Population 2016'!G104/'Population 2016'!G$6","v":1.9926116646143514E-2},{"$f":"'Population 2016'!H104/'Population 2016'!H$6","v":1.5239957786032423E-2},{"$f":"'Population 2016'!I104/'Population 2016'!I$6","v":2.3016412547343885E-2},{"$f":"'Population 2016'!J104/'Population 2016'!J$6","v":1.98549602196719E-2},{"$f":"'Population 2016'!K104/'Population 2016'!K$6","v":1.9161278052491442E-2},{"$f":"'Population 2016'!L104/'Population 2016'!L$6","v":2.438097792080093E-2},{"$f":"'Population 2016'!M104/'Population 2016'!M$6","v":2.438097792080093E-2},{"$f":"'Population 2016'!N104/'Population 2016'!N$6","v":1.6262553485568088E-2},{"$f":"'Population 2016'!O104/'Population 2016'!O$6","v":1.6596797470964195E-2},{"$f":"'Population 2016'!P104/'Population 2016'!P$6","v":2.7277052386742082E-2},{"$f":"'Population 2016'!Q104/'Population 2016'!Q$6","v":3.6676416256157633E-2},{"$f":"'Population 2016'!R104/'Population 2016'!R$6","v":2.100051220761482E-2},{"$f":"'Population 2016'!S104/'Population 2016'!S$6","v":2.7491345658098253E-2},{"$f":"'Population 2016'!T104/'Population 2016'!T$6","v":3.2838009827802737E-2},{"$f":"'Population 2016'!U104/'Population 2016'!U$6","v":2.7614138438880706E-2},{"$f":"'Population 2016'!V104/'Population 2016'!V$6","v":2.6601385746606334E-2},{"$f":"'Population 2016'!W104/'Population 2016'!W$6","v":1.9655958549222797E-2},{"$f":"'Population 2016'!X104/'Population 2016'!X$6","v":1.9655958549222797E-2},{"$f":"'Population 2016'!Y104/'Population 2016'!Y$6","v":2.370318092453496E-2},{"$f":"'Population 2016'!Z104/'Population 2016'!Z$6","v":1.500223301767274E-2},{"$f":"'Population 2016'!AA104/'Population 2016'!AA$6","v":1.7404400782416868E-2},{"$f":"'Population 2016'!AB104/'Population 2016'!AB$6","v":3.6739637538130268E-2},{"$f":"'Population 2016'!AC104/'Population 2016'!AC$6","v":1.5550532421906915E-2},{"$f":"'Population 2016'!AD104/'Population 2016'!AD$6","v":2.5416833104019647E-2},{"$f":"'Population 2016'!AE104/'Population 2016'!AE$6","v":2.7389546926217145E-2},{"$f":"'Population 2016'!AF104/'Population 2016'!AF$6","v":1.0482354242725965E-2},{"$f":"'Population 2016'!AG104/'Population 2016'!AG$6","v":2.7389546926217145E-2},{"$f":"'Population 2016'!AH104/'Population 2016'!AH$6","v":2.0736384645775281E-2},{"$f":"'Population 2016'!AI104/'Population 2016'!AI$6","v":3.1832658818014788E-2},{"$f":"'Population 2016'!AJ104/'Population 2016'!AJ$6","v":3.2521322942872924E-2},{"$f":"'Population 2016'!AK104/'Population 2016'!AK$6","v":4.1804440245630611E-2},{"$f":"'Population 2016'!AL104/'Population 2016'!AL$6","v":1.1636169834784153E-2},{"$f":"'Population 2016'!AM104/'Population 2016'!AM$6","v":1.9533918984870668E-2},{"$f":"'Population 2016'!AN104/'Population 2016'!AN$6","v":2.3836985774702037E-2},{"$f":"'Population 2016'!AO104/'Population 2016'!AO$6","v":2.3836985774702037E-2},{"$f":"'Population 2016'!AP104/'Population 2016'!AP$6","v":3.3306138119690937E-2},{"$f":"'Population 2016'!AQ104/'Population 2016'!AQ$6","v":1.5176271435931405E-2},{"$f":"'Population 2016'!AR104/'Population 2016'!AR$6","v":2.1535484206444931E-2},{"$f":"'Population 2016'!AS104/'Population 2016'!AS$6","v":2.3016412547343885E-2},{"$f":"'Population 2016'!AT104/'Population 2016'!AT$6","v":2.5437201907790145E-2},{"$f":"'Population 2016'!AU104/'Population 2016'!AU$6","v":2.5437201907790145E-2},{"$f":"'Population 2016'!AV104/'Population 2016'!AV$6","v":1.9158822828547598E-2},{"$f":"'Population 2016'!AW104/'Population 2016'!AW$6","v":2.2350715403074553E-2},{"$f":"'Population 2016'!AX104/'Population 2016'!AX$6","v":2.0531121101172545E-2},{"$f":"'Population 2016'!AY104/'Population 2016'!AY$6","v":2.0969399381710142E-2},{"$f":"'Population 2016'!AZ104/'Population 2016'!AZ$6","v":2.2384593397170215E-2},{"$f":"'Population 2016'!BA104/'Population 2016'!BA$6","v":1.7612017612017611E-2},{"$f":"'Population 2016'!BB104/'Population 2016'!BB$6","v":2.7496921381813467E-2},{"$f":"'Population 2016'!BC104/'Population 2016'!BC$6","v":2.7614138438880706E-2},102]
[null,"Female 35-39",{"$f":"'Population 2016'!C105/'Population 2016'!C$6","v":2.8508929211790861E-2},{"$f":"'Population 2016'!D105/'Population 2016'!D$6","v":2.8862500980828081E-2},{"$f":"'Population 2016'!E105/'Population 2016'!E$6","v":2.9815405431526047E-2},{"$f":"'Population 2016'!F105/'Population 2016'!F$6","v":2.4495801956201851E-2},{"$f":"'Population 2016'!G105/'Population 2016'!G$6","v":2.0877644688234637E-2},{"$f":"'Population 2016'!H105/'Population 2016'!H$6","v":1.5347281432412934E-2},{"$f":"'Population 2016'!I105/'Population 2016'!I$6","v":2.2093813732154997E-2},{"$f":"'Population 2016'!J105/'Population 2016'!J$6","v":1.9901898659907533E-2},{"$f":"'Population 2016'!K105/'Population 2016'!K$6","v":1.9351464435146442E-2},{"$f":"'Population 2016'!L105/'Population 2016'!L$6","v":2.3799946366318048E-2},{"$f":"'Population 2016'!M105/'Population 2016'!M$6","v":2.3799946366318048E-2},{"$f":"'Population 2016'!N105/'Population 2016'!N$6","v":1.2674793042097369E-2},{"$f":"'Population 2016'!O105/'Population 2016'!O$6","v":1.6493711772386777E-2},{"$f":"'Population 2016'!P105/'Population 2016'!P$6","v":3.0554527673521171E-2},{"$f":"'Population 2016'!Q105/'Population 2016'!Q$6","v":3.4598214285714288E-2},{"$f":"'Population 2016'!R105/'Population 2016'!R$6","v":2.2963974731091002E-2},{"$f":"'Population 2016'!S105/'Population 2016'!S$6","v":2.2895863803280757E-2},{"$f":"'Population 2016'!T105/'Population 2016'!T$6","v":2.2184199657796919E-2},{"$f":"'Population 2016'!U105/'Population 2016'!U$6","v":2.8166421207658322E-2},{"$f":"'Population 2016'!V105/'Population 2016'!V$6","v":2.5929722850678735E-2},{"$f":"'Population 2016'!W105/'Population 2016'!W$6","v":1.8528497409326425E-2},{"$f":"'Population 2016'!X105/'Population 2016'!X$6","v":1.8528497409326425E-2},{"$f":"'Population 2016'!Y105/'Population 2016'!Y$6","v":2.3340222815949992E-2},{"$f":"'Population 2016'!Z105/'Population 2016'!Z$6","v":1.1201545795091007E-2},{"$f":"'Population 2016'!AA105/'Population 2016'!AA$6","v":1.483717355031028E-2},{"$f":"'Population 2016'!AB105/'Population 2016'!AB$6","v":2.9674322626951372E-2},{"$f":"'Population 2016'!AC105/'Population 2016'!AC$6","v":1.2731828208829217E-2},{"$f":"'Population 2016'!AD105/'Population 2016'!AD$6","v":2.4040950986048852E-2},{"$f":"'Population 2016'!AE105/'Population 2016'!AE$6","v":2.5177468980634263E-2},{"$f":"'Population 2016'!AF105/'Population 2016'!AF$6","v":6.8591658369288634E-3},{"$f":"'Population 2016'!AG105/'Population 2016'!AG$6","v":2.5177468980634263E-2},{"$f":"'Population 2016'!AH105/'Population 2016'!AH$6","v":1.8621140553599588E-2},{"$f":"'Population 2016'!AI105/'Population 2016'!AI$6","v":2.516981463733118E-2},{"$f":"'Population 2016'!AJ105/'Population 2016'!AJ$6","v":3.1447505675891267E-2},{"$f":"'Population 2016'!AK105/'Population 2016'!AK$6","v":3.4561486380097622E-2},{"$f":"'Population 2016'!AL105/'Population 2016'!AL$6","v":1.139930123763842E-2},{"$f":"'Population 2016'!AM105/'Population 2016'!AM$6","v":1.796608101512933E-2},{"$f":"'Population 2016'!AN105/'Population 2016'!AN$6","v":2.7297193387158785E-2},{"$f":"'Population 2016'!AO105/'Population 2016'!AO$6","v":2.7297193387158785E-2},{"$f":"'Population 2016'!AP105/'Population 2016'!AP$6","v":2.5339540240917599E-2},{"$f":"'Population 2016'!AQ105/'Population 2016'!AQ$6","v":1.40722749687201E-2},{"$f":"'Population 2016'!AR105/'Population 2016'!AR$6","v":1.8659715384797989E-2},{"$f":"'Population 2016'!AS105/'Population 2016'!AS$6","v":2.2093813732154997E-2},{"$f":"'Population 2016'!AT105/'Population 2016'!AT$6","v":5.4054054054054057E-2},{"$f":"'Population 2016'!AU105/'Population 2016'!AU$6","v":5.4054054054054057E-2},{"$f":"'Population 2016'!AV105/'Population 2016'!AV$6","v":2.0111998093649469E-2},{"$f":"'Population 2016'!AW105/'Population 2016'!AW$6","v":1.9500569210231043E-2},{"$f":"'Population 2016'!AX105/'Population 2016'!AX$6","v":2.0438429809519397E-2},{"$f":"'Population 2016'!AY105/'Population 2016'!AY$6","v":1.8019838591090263E-2},{"$f":"'Population 2016'!AZ105/'Population 2016'!AZ$6","v":1.7471773617264541E-2},{"$f":"'Population 2016'!BA105/'Population 2016'!BA$6","v":1.607793915486223E-2},{"$f":"'Population 2016'!BB105/'Population 2016'!BB$6","v":2.362434376822866E-2},{"$f":"'Population 2016'!BC105/'Population 2016'!BC$6","v":2.8166421207658322E-2},103]
[null,"Female 40-44",{"$f":"'Population 2016'!C106/'Population 2016'!C$6","v":2.5693896578928496E-2},{"$f":"'Population 2016'!D106/'Population 2016'!D$6","v":2.6730834619307926E-2},{"$f":"'Population 2016'!E106/'Population 2016'!E$6","v":2.9525466318739733E-2},{"$f":"'Population 2016'!F106/'Population 2016'!F$6","v":2.709253007876742E-2},{"$f":"'Population 2016'!G106/'Population 2016'!G$6","v":2.4571812381058995E-2},{"$f":"'Population 2016'!H106/'Population 2016'!H$6","v":1.6790188233750902E-2},{"$f":"'Population 2016'!I106/'Population 2016'!I$6","v":2.398756919491114E-2},{"$f":"'Population 2016'!J106/'Population 2016'!J$6","v":2.1239644206623012E-2},{"$f":"'Population 2016'!K106/'Population 2016'!K$6","v":2.1966527196652718E-2},{"$f":"'Population 2016'!L106/'Population 2016'!L$6","v":2.6749798873692679E-2},{"$f":"'Population 2016'!M106/'Population 2016'!M$6","v":2.6749798873692679E-2},{"$f":"'Population 2016'!N106/'Population 2016'!N$6","v":1.1277919098942787E-2},{"$f":"'Population 2016'!O106/'Population 2016'!O$6","v":1.7610473506975467E-2},{"$f":"'Population 2016'!P106/'Population 2016'!P$6","v":2.9074377544008035E-2},{"$f":"'Population 2016'!Q106/'Population 2016'!Q$6","v":3.3597598522167489E-2},{"$f":"'Population 2016'!R106/'Population 2016'!R$6","v":2.2707870923681064E-2},{"$f":"'Population 2016'!S106/'Population 2016'!S$6","v":2.2772230347541535E-2},{"$f":"'Population 2016'!T106/'Population 2016'!T$6","v":1.9554461704441053E-2},{"$f":"'Population 2016'!U106/'Population 2016'!U$6","v":3.6818851251840944E-2},{"$f":"'Population 2016'!V106/'Population 2016'!V$6","v":2.7131645927601811E-2},{"$f":"'Population 2016'!W106/'Population 2016'!W$6","v":1.9813471502590673E-2},{"$f":"'Population 2016'!X106/'Population 2016'!X$6","v":1.9813471502590673E-2},{"$f":"'Population 2016'!Y106/'Population 2016'!Y$6","v":2.4600494026314462E-2},{"$f":"'Population 2016'!Z106/'Population 2016'!Z$6","v":9.8252777600554148E-3},{"$f":"'Population 2016'!AA106/'Population 2016'!AA$6","v":1.4814675940681303E-2},{"$f":"'Population 2016'!AB106/'Population 2016'!AB$6","v":2.8048178718822897E-2},{"$f":"'Population 2016'!AC106/'Population 2016'!AC$6","v":1.2233837678430396E-2},{"$f":"'Population 2016'!AD106/'Population 2016'!AD$6","v":2.6718743065110292E-2},{"$f":"'Population 2016'!AE106/'Population 2016'!AE$6","v":2.749009592374364E-2},{"$f":"'Population 2016'!AF106/'Population 2016'!AF$6","v":8.0484566876866913E-3},{"$f":"'Population 2016'!AG106/'Population 2016'!AG$6","v":2.749009592374364E-2},{"$f":"'Population 2016'!AH106/'Population 2016'!AH$6","v":1.9453253105562916E-2},{"$f":"'Population 2016'!AI106/'Population 2016'!AI$6","v":2.4161180562240255E-2},{"$f":"'Population 2016'!AJ106/'Population 2016'!AJ$6","v":2.979075903540529E-2},{"$f":"'Population 2016'!AK106/'Population 2016'!AK$6","v":3.5978586049441035E-2},{"$f":"'Population 2016'!AL106/'Population 2016'!AL$6","v":1.3560727186593237E-2},{"$f":"'Population 2016'!AM106/'Population 2016'!AM$6","v":1.8704245973645679E-2},{"$f":"'Population 2016'!AN106/'Population 2016'!AN$6","v":4.0369088811995385E-2},{"$f":"'Population 2016'!AO106/'Population 2016'!AO$6","v":4.0369088811995385E-2},{"$f":"'Population 2016'!AP106/'Population 2016'!AP$6","v":2.2076114603829727E-2},{"$f":"'Population 2016'!AQ106/'Population 2016'!AQ$6","v":1.6368587620519615E-2},{"$f":"'Population 2016'!AR106/'Population 2016'!AR$6","v":1.8901623611147222E-2},{"$f":"'Population 2016'!AS106/'Population 2016'!AS$6","v":2.398756919491114E-2},{"$f":"'Population 2016'!AT106/'Population 2016'!AT$6","v":2.2257551669316374E-2},{"$f":"'Population 2016'!AU106/'Population 2016'!AU$6","v":2.2257551669316374E-2},{"$f":"'Population 2016'!AV106/'Population 2016'!AV$6","v":2.0850708924103418E-2},{"$f":"'Population 2016'!AW106/'Population 2016'!AW$6","v":2.045880801644567E-2},{"$f":"'Population 2016'!AX106/'Population 2016'!AX$6","v":2.0531121101172545E-2},{"$f":"'Population 2016'!AY106/'Population 2016'!AY$6","v":1.8243420458600806E-2},{"$f":"'Population 2016'!AZ106/'Population 2016'!AZ$6","v":1.6551736458482208E-2},{"$f":"'Population 2016'!BA106/'Population 2016'!BA$6","v":1.665570896340127E-2},{"$f":"'Population 2016'!BB106/'Population 2016'!BB$6","v":2.6071035063840821E-2},{"$f":"'Population 2016'!BC106/'Population 2016'!BC$6","v":3.6818851251840944E-2},104]
[null,"Female 45-49",{"$f":"'Population 2016'!C107/'Population 2016'!C$6","v":2.6859355949221831E-2},{"$f":"'Population 2016'!D107/'Population 2016'!D$6","v":2.8561713702822171E-2},{"$f":"'Population 2016'!E107/'Population 2016'!E$6","v":3.3149705228568666E-2},{"$f":"'Population 2016'!F107/'Population 2016'!F$6","v":2.8780403358435038E-2},{"$f":"'Population 2016'!G107/'Population 2016'!G$6","v":2.9105563640434345E-2},{"$f":"'Population 2016'!H107/'Population 2016'!H$6","v":2.1387217753716083E-2},{"$f":"'Population 2016'!I107/'Population 2016'!I$6","v":3.2242400699232787E-2},{"$f":"'Population 2016'!J107/'Population 2016'!J$6","v":2.4407988922528105E-2},{"$f":"'Population 2016'!K107/'Population 2016'!K$6","v":2.5912894636744011E-2},{"$f":"'Population 2016'!L107/'Population 2016'!L$6","v":3.4995977473853579E-2},{"$f":"'Population 2016'!M107/'Population 2016'!M$6","v":3.4995977473853579E-2},{"$f":"'Population 2016'!N107/'Population 2016'!N$6","v":1.1748445058742226E-2},{"$f":"'Population 2016'!O107/'Population 2016'!O$6","v":2.2816301285135041E-2},{"$f":"'Population 2016'!P107/'Population 2016'!P$6","v":3.9858328487603741E-2},{"$f":"'Population 2016'!Q107/'Population 2016'!Q$6","v":4.2102832512315273E-2},{"$f":"'Population 2016'!R107/'Population 2016'!R$6","v":3.2866655284275223E-2},{"$f":"'Population 2016'!S107/'Population 2016'!S$6","v":2.5563189848378035E-2},{"$f":"'Population 2016'!T107/'Population 2016'!T$6","v":1.8290164611481502E-2},{"$f":"'Population 2016'!U107/'Population 2016'!U$6","v":4.2893961708394698E-2},{"$f":"'Population 2016'!V107/'Population 2016'!V$6","v":3.1073246606334842E-2},{"$f":"'Population 2016'!W107/'Population 2016'!W$6","v":2.267357512953368E-2},{"$f":"'Population 2016'!X107/'Population 2016'!X$6","v":2.267357512953368E-2},{"$f":"'Population 2016'!Y107/'Population 2016'!Y$6","v":2.8209910772798306E-2},{"$f":"'Population 2016'!Z107/'Population 2016'!Z$6","v":1.1073944785220157E-2},{"$f":"'Population 2016'!AA107/'Population 2016'!AA$6","v":1.7819356693351333E-2},{"$f":"'Population 2016'!AB107/'Population 2016'!AB$6","v":3.0414498474789161E-2},{"$f":"'Population 2016'!AC107/'Population 2016'!AC$6","v":1.4556496636618644E-2},{"$f":"'Population 2016'!AD107/'Population 2016'!AD$6","v":3.1571316556448153E-2},{"$f":"'Population 2016'!AE107/'Population 2016'!AE$6","v":3.2457216401552476E-2},{"$f":"'Population 2016'!AF107/'Population 2016'!AF$6","v":1.1063170704723974E-2},{"$f":"'Population 2016'!AG107/'Population 2016'!AG$6","v":3.2457216401552476E-2},{"$f":"'Population 2016'!AH107/'Population 2016'!AH$6","v":2.3683741289914306E-2},{"$f":"'Population 2016'!AI107/'Population 2016'!AI$6","v":2.6446301744811395E-2},{"$f":"'Population 2016'!AJ107/'Population 2016'!AJ$6","v":3.7307479904276859E-2},{"$f":"'Population 2016'!AK107/'Population 2016'!AK$6","v":4.1568256967406708E-2},{"$f":"'Population 2016'!AL107/'Population 2016'!AL$6","v":1.6876887546633506E-2},{"$f":"'Population 2016'!AM107/'Population 2016'!AM$6","v":2.2010736944851148E-2},{"$f":"'Population 2016'!AN107/'Population 2016'!AN$6","v":3.6524413687043442E-2},{"$f":"'Population 2016'!AO107/'Population 2016'!AO$6","v":3.6524413687043442E-2},{"$f":"'Population 2016'!AP107/'Population 2016'!AP$6","v":2.7979075682679849E-2},{"$f":"'Population 2016'!AQ107/'Population 2016'!AQ$6","v":1.8650180319422976E-2},{"$f":"'Population 2016'!AR107/'Population 2016'!AR$6","v":2.2139124360045351E-2},{"$f":"'Population 2016'!AS107/'Population 2016'!AS$6","v":3.2242400699232787E-2},{"$f":"'Population 2016'!AT107/'Population 2016'!AT$6","v":3.6565977742448331E-2},{"$f":"'Population 2016'!AU107/'Population 2016'!AU$6","v":3.6565977742448331E-2},{"$f":"'Population 2016'!AV107/'Population 2016'!AV$6","v":2.6665078041224831E-2},{"$f":"'Population 2016'!AW107/'Population 2016'!AW$6","v":2.5929778294662528E-2},{"$f":"'Population 2016'!AX107/'Population 2016'!AX$6","v":2.2941094684154423E-2},{"$f":"'Population 2016'!AY107/'Population 2016'!AY$6","v":2.0560932508373569E-2},{"$f":"'Population 2016'!AZ107/'Population 2016'!AZ$6","v":1.8284621980848934E-2},{"$f":"'Population 2016'!BA107/'Population 2016'!BA$6","v":2.0560635945251329E-2},{"$f":"'Population 2016'!BB107/'Population 2016'!BB$6","v":2.9797783394905696E-2},{"$f":"'Population 2016'!BC107/'Population 2016'!BC$6","v":4.2893961708394698E-2},105]
[null,"Female 50-54",{"$f":"'Population 2016'!C108/'Population 2016'!C$6","v":2.8006885175356811E-2},{"$f":"'Population 2016'!D108/'Population 2016'!D$6","v":3.0013339261894176E-2},{"$f":"'Population 2016'!E108/'Population 2016'!E$6","v":3.5420894945394799E-2},{"$f":"'Population 2016'!F108/'Population 2016'!F$6","v":2.6832857266510864E-2},{"$f":"'Population 2016'!G108/'Population 2016'!G$6","v":3.2295981193328112E-2},{"$f":"'Population 2016'!H108/'Population 2016'!H$6","v":2.2096746304787231E-2},{"$f":"'Population 2016'!I108/'Population 2016'!I$6","v":3.4621734485772555E-2},{"$f":"'Population 2016'!J108/'Population 2016'!J$6","v":2.5581449928418879E-2},{"$f":"'Population 2016'!K108/'Population 2016'!K$6","v":2.6721186763027767E-2},{"$f":"'Population 2016'!L108/'Population 2016'!L$6","v":3.787878787878788E-2},{"$f":"'Population 2016'!M108/'Population 2016'!M$6","v":3.787878787878788E-2},{"$f":"'Population 2016'!N108/'Population 2016'!N$6","v":1.4012851240277022E-2},{"$f":"'Population 2016'!O108/'Population 2016'!O$6","v":2.1544911002680227E-2},{"$f":"'Population 2016'!P108/'Population 2016'!P$6","v":3.9118253422847173E-2},{"$f":"'Population 2016'!Q108/'Population 2016'!Q$6","v":4.2795566502463057E-2},{"$f":"'Population 2016'!R108/'Population 2016'!R$6","v":3.0988560696602357E-2},{"$f":"'Population 2016'!S108/'Population 2016'!S$6","v":2.5781521270215386E-2},{"$f":"'Population 2016'!T108/'Population 2016'!T$6","v":1.7363013409977833E-2},{"$f":"'Population 2016'!U108/'Population 2016'!U$6","v":4.9705449189985269E-2},{"$f":"'Population 2016'!V108/'Population 2016'!V$6","v":3.0967194570135748E-2},{"$f":"'Population 2016'!W108/'Population 2016'!W$6","v":2.4431088082901554E-2},{"$f":"'Population 2016'!X108/'Population 2016'!X$6","v":2.4431088082901554E-2},{"$f":"'Population 2016'!Y108/'Population 2016'!Y$6","v":2.8653526238846601E-2},{"$f":"'Population 2016'!Z108/'Population 2016'!Z$6","v":1.1347375520657692E-2},{"$f":"'Population 2016'!AA108/'Population 2016'!AA$6","v":1.848303617740615E-2},{"$f":"'Population 2016'!AB108/'Population 2016'!AB$6","v":3.1491117889825948E-2},{"$f":"'Population 2016'!AC108/'Population 2016'!AC$6","v":1.5029198585395649E-2},{"$f":"'Population 2016'!AD108/'Population 2016'!AD$6","v":3.4485819537526073E-2},{"$f":"'Population 2016'!AE108/'Population 2016'!AE$6","v":3.5272588332294325E-2},{"$f":"'Population 2016'!AF108/'Population 2016'!AF$6","v":1.3275804845668768E-2},{"$f":"'Population 2016'!AG108/'Population 2016'!AG$6","v":3.5272588332294325E-2},{"$f":"'Population 2016'!AH108/'Population 2016'!AH$6","v":2.4690667403214472E-2},{"$f":"'Population 2016'!AI108/'Population 2016'!AI$6","v":2.5701335498478677E-2},{"$f":"'Population 2016'!AJ108/'Population 2016'!AJ$6","v":3.7031355464195864E-2},{"$f":"'Population 2016'!AK108/'Population 2016'!AK$6","v":4.0387340576287199E-2},{"$f":"'Population 2016'!AL108/'Population 2016'!AL$6","v":1.7602297625392314E-2},{"$f":"'Population 2016'!AM108/'Population 2016'!AM$6","v":2.2712298682284041E-2},{"$f":"'Population 2016'!AN108/'Population 2016'!AN$6","v":4.690503652441369E-2},{"$f":"'Population 2016'!AO108/'Population 2016'!AO$6","v":4.690503652441369E-2},{"$f":"'Population 2016'!AP108/'Population 2016'!AP$6","v":2.6971253059461534E-2},{"$f":"'Population 2016'!AQ108/'Population 2016'!AQ$6","v":1.9356738058438214E-2},{"$f":"'Population 2016'!AR108/'Population 2016'!AR$6","v":2.2901022231818165E-2},{"$f":"'Population 2016'!AS108/'Population 2016'!AS$6","v":3.4621734485772555E-2},{"$f":"'Population 2016'!AT108/'Population 2016'!AT$6","v":3.1796502384737677E-2},{"$f":"'Population 2016'!AU108/'Population 2016'!AU$6","v":3.1796502384737677E-2},{"$f":"'Population 2016'!AV108/'Population 2016'!AV$6","v":3.0096508995591565E-2},{"$f":"'Population 2016'!AW108/'Population 2016'!AW$6","v":2.7346661315817491E-2},{"$f":"'Population 2016'!AX108/'Population 2016'!AX$6","v":2.4470500996431385E-2},{"$f":"'Population 2016'!AY108/'Population 2016'!AY$6","v":2.1850827897857483E-2},{"$f":"'Population 2016'!AZ108/'Population 2016'!AZ$6","v":1.9070673145633842E-2},{"$f":"'Population 2016'!BA108/'Population 2016'!BA$6","v":2.1775944852867931E-2},{"$f":"'Population 2016'!BB108/'Population 2016'!BB$6","v":2.855013286667963E-2},{"$f":"'Population 2016'!BC108/'Population 2016'!BC$6","v":4.9705449189985269E-2},106]
[null,"Female 55-59",{"$f":"'Population 2016'!C109/'Population 2016'!C$6","v":2.4922900380119056E-2},{"$f":"'Population 2016'!D109/'Population 2016'!D$6","v":2.6730834619307926E-2},{"$f":"'Population 2016'!E109/'Population 2016'!E$6","v":3.1603363293708324E-2},{"$f":"'Population 2016'!F109/'Population 2016'!F$6","v":2.9040076170691594E-2},{"$f":"'Population 2016'!G109/'Population 2016'!G$6","v":3.2855703571028773E-2},{"$f":"'Population 2016'!H109/'Population 2016'!H$6","v":2.0773087999427606E-2},{"$f":"'Population 2016'!I109/'Population 2016'!I$6","v":3.3650577838205305E-2},{"$f":"'Population 2016'!J109/'Population 2016'!J$6","v":2.1967190030275294E-2},{"$f":"'Population 2016'!K109/'Population 2016'!K$6","v":2.2394446557626475E-2},{"$f":"'Population 2016'!L109/'Population 2016'!L$6","v":3.5353535353535352E-2},{"$f":"'Population 2016'!M109/'Population 2016'!M$6","v":3.5353535353535352E-2},{"$f":"'Population 2016'!N109/'Population 2016'!N$6","v":1.3233542619359202E-2},{"$f":"'Population 2016'!O109/'Population 2016'!O$6","v":2.0410968318328636E-2},{"$f":"'Population 2016'!P109/'Population 2016'!P$6","v":3.700375323782841E-2},{"$f":"'Population 2016'!Q109/'Population 2016'!Q$6","v":4.0524938423645324E-2},{"$f":"'Population 2016'!R109/'Population 2016'!R$6","v":2.4585965511353936E-2},{"$f":"'Population 2016'!S109/'Population 2016'!S$6","v":2.3879670451077979E-2},{"$f":"'Population 2016'!T109/'Population 2016'!T$6","v":1.57699990728488E-2},{"$f":"'Population 2016'!U109/'Population 2016'!U$6","v":4.252577319587629E-2},{"$f":"'Population 2016'!V109/'Population 2016'!V$6","v":2.7043269230769232E-2},{"$f":"'Population 2016'!W109/'Population 2016'!W$6","v":2.205181347150259E-2},{"$f":"'Population 2016'!X109/'Population 2016'!X$6","v":2.205181347150259E-2},{"$f":"'Population 2016'!Y109/'Population 2016'!Y$6","v":2.4862630438070271E-2},{"$f":"'Population 2016'!Z109/'Population 2016'!Z$6","v":1.0156432761863097E-2},{"$f":"'Population 2016'!AA109/'Population 2016'!AA$6","v":1.6771967978402295E-2},{"$f":"'Population 2016'!AB109/'Population 2016'!AB$6","v":2.8631347568634488E-2},{"$f":"'Population 2016'!AC109/'Population 2016'!AC$6","v":1.3496321484011781E-2},{"$f":"'Population 2016'!AD109/'Population 2016'!AD$6","v":3.3420620478451908E-2},{"$f":"'Population 2016'!AE109/'Population 2016'!AE$6","v":3.3623584772859816E-2},{"$f":"'Population 2016'!AF109/'Population 2016'!AF$6","v":1.2114171921672752E-2},{"$f":"'Population 2016'!AG109/'Population 2016'!AG$6","v":3.3623584772859816E-2},{"$f":"'Population 2016'!AH109/'Population 2016'!AH$6","v":2.2659333820480458E-2},{"$f":"'Population 2016'!AI109/'Population 2016'!AI$6","v":2.3960290787948289E-2},{"$f":"'Population 2016'!AJ109/'Population 2016'!AJ$6","v":3.629502362397987E-2},{"$f":"'Population 2016'!AK109/'Population 2016'!AK$6","v":4.0072429538655328E-2},{"$f":"'Population 2016'!AL109/'Population 2016'!AL$6","v":1.5692544560904839E-2},{"$f":"'Population 2016'!AM109/'Population 2016'!AM$6","v":2.0552708638360177E-2},{"$f":"'Population 2016'!AN109/'Population 2016'!AN$6","v":4.1906958861976165E-2},{"$f":"'Population 2016'!AO109/'Population 2016'!AO$6","v":4.1906958861976165E-2},{"$f":"'Population 2016'!AP109/'Population 2016'!AP$6","v":2.4427700724672458E-2},{"$f":"'Population 2016'!AQ109/'Population 2016'!AQ$6","v":1.7060425406638699E-2},{"$f":"'Population 2016'!AR109/'Population 2016'!AR$6","v":2.1068058731700038E-2},{"$f":"'Population 2016'!AS109/'Population 2016'!AS$6","v":3.3650577838205305E-2},{"$f":"'Population 2016'!AT109/'Population 2016'!AT$6","v":2.2257551669316374E-2},{"$f":"'Population 2016'!AU109/'Population 2016'!AU$6","v":2.2257551669316374E-2},{"$f":"'Population 2016'!AV109/'Population 2016'!AV$6","v":2.9453115691647803E-2},{"$f":"'Population 2016'!AW109/'Population 2016'!AW$6","v":2.5487514230255776E-2},{"$f":"'Population 2016'!AX109/'Population 2016'!AX$6","v":2.1550725309357185E-2},{"$f":"'Population 2016'!AY109/'Population 2016'!AY$6","v":2.0380347153845822E-2},{"$f":"'Population 2016'!AZ109/'Population 2016'!AZ$6","v":1.8579391167643275E-2},{"$f":"'Population 2016'!BA109/'Population 2016'!BA$6","v":2.0122327814635507E-2},{"$f":"'Population 2016'!BB109/'Population 2016'!BB$6","v":2.6216864346360749E-2},{"$f":"'Population 2016'!BC109/'Population 2016'!BC$6","v":4.252577319587629E-2},107]
[null,"Female 60-64",{"$f":"'Population 2016'!C110/'Population 2016'!C$6","v":2.2269239044681918E-2},{"$f":"'Population 2016'!D110/'Population 2016'!D$6","v":2.4219914733345539E-2},{"$f":"'Population 2016'!E110/'Population 2016'!E$6","v":2.9477143133275346E-2},{"$f":"'Population 2016'!F110/'Population 2016'!F$6","v":2.4365965550073573E-2},{"$f":"'Population 2016'!G110/'Population 2016'!G$6","v":2.9441397067054741E-2},{"$f":"'Population 2016'!H110/'Population 2016'!H$6","v":1.8280794433480206E-2},{"$f":"'Population 2016'!I110/'Population 2016'!I$6","v":3.0542876565990095E-2},{"$f":"'Population 2016'!J110/'Population 2016'!J$6","v":1.8681499213781125E-2},{"$f":"'Population 2016'!K110/'Population 2016'!K$6","v":1.9874476987447699E-2},{"$f":"'Population 2016'!L110/'Population 2016'!L$6","v":3.4772503799052473E-2},{"$f":"'Population 2016'!M110/'Population 2016'!M$6","v":3.4772503799052473E-2},{"$f":"'Population 2016'!N110/'Population 2016'!N$6","v":1.1395550588892647E-2},{"$f":"'Population 2016'!O110/'Population 2016'!O$6","v":1.7868187753419008E-2},{"$f":"'Population 2016'!P110/'Population 2016'!P$6","v":2.7911402442247712E-2},{"$f":"'Population 2016'!Q110/'Population 2016'!Q$6","v":3.3943965517241381E-2},{"$f":"'Population 2016'!R110/'Population 2016'!R$6","v":2.142735188663138E-2},{"$f":"'Population 2016'!S110/'Population 2016'!S$6","v":2.0523153652710992E-2},{"$f":"'Population 2016'!T110/'Population 2016'!T$6","v":1.2946402231905801E-2},{"$f":"'Population 2016'!U110/'Population 2016'!U$6","v":4.5655375552282766E-2},{"$f":"'Population 2016'!V110/'Population 2016'!V$6","v":2.5205033936651584E-2},{"$f":"'Population 2016'!W110/'Population 2016'!W$6","v":2.010362694300518E-2},{"$f":"'Population 2016'!X110/'Population 2016'!X$6","v":2.010362694300518E-2},{"$f":"'Population 2016'!Y110/'Population 2016'!Y$6","v":2.2402581035438827E-2},{"$f":"'Population 2016'!Z110/'Population 2016'!Z$6","v":7.9902537133412933E-3},{"$f":"'Population 2016'!AA110/'Population 2016'!AA$6","v":1.4247236231150441E-2},{"$f":"'Population 2016'!AB110/'Population 2016'!AB$6","v":2.6242598241521621E-2},{"$f":"'Population 2016'!AC110/'Population 2016'!AC$6","v":1.0763209393346379E-2},{"$f":"'Population 2016'!AD110/'Population 2016'!AD$6","v":3.0195434438477359E-2},{"$f":"'Population 2016'!AE110/'Population 2016'!AE$6","v":3.0466346250527881E-2},{"$f":"'Population 2016'!AF110/'Population 2016'!AF$6","v":8.7952207102555587E-3},{"$f":"'Population 2016'!AG110/'Population 2016'!AG$6","v":3.0466346250527881E-2},{"$f":"'Population 2016'!AH110/'Population 2016'!AH$6","v":2.0509127016037396E-2},{"$f":"'Population 2016'!AI110/'Population 2016'!AI$6","v":1.987134684038052E-2},{"$f":"'Population 2016'!AJ110/'Population 2016'!AJ$6","v":2.9729398048720622E-2},{"$f":"'Population 2016'!AK110/'Population 2016'!AK$6","v":3.841914659108802E-2},{"$f":"'Population 2016'!AL110/'Population 2016'!AL$6","v":1.3664357197844496E-2},{"$f":"'Population 2016'!AM110/'Population 2016'!AM$6","v":1.8661542215714984E-2},{"$f":"'Population 2016'!AN110/'Population 2016'!AN$6","v":3.9984621299500193E-2},{"$f":"'Population 2016'!AO110/'Population 2016'!AO$6","v":3.9984621299500193E-2},{"$f":"'Population 2016'!AP110/'Population 2016'!AP$6","v":2.3899793636320006E-2},{"$f":"'Population 2016'!AQ110/'Population 2016'!AQ$6","v":1.3851475675277839E-2},{"$f":"'Population 2016'!AR110/'Population 2016'!AR$6","v":1.8450589114355896E-2},{"$f":"'Population 2016'!AS110/'Population 2016'!AS$6","v":3.0542876565990095E-2},{"$f":"'Population 2016'!AT110/'Population 2016'!AT$6","v":4.7694753577106522E-2},{"$f":"'Population 2016'!AU110/'Population 2016'!AU$6","v":4.7694753577106522E-2},{"$f":"'Population 2016'!AV110/'Population 2016'!AV$6","v":2.6283807935184082E-2},{"$f":"'Population 2016'!AW110/'Population 2016'!AW$6","v":2.2989541273884306E-2},{"$f":"'Population 2016'!AX110/'Population 2016'!AX$6","v":1.7518654122445198E-2},{"$f":"'Population 2016'!AY110/'Population 2016'!AY$6","v":1.8320814181969843E-2},{"$f":"'Population 2016'!AZ110/'Population 2016'!AZ$6","v":1.6399885665285122E-2},{"$f":"'Population 2016'!BA110/'Population 2016'!BA$6","v":1.723347877194031E-2},{"$f":"'Population 2016'!BB110/'Population 2016'!BB$6","v":2.205262816773608E-2},{"$f":"'Population 2016'!BC110/'Population 2016'!BC$6","v":4.5655375552282766E-2},108]
[null,"Female 65-69",{"$f":"'Population 2016'!C111/'Population 2016'!C$6","v":2.1067919386071863E-2},{"$f":"'Population 2016'!D111/'Population 2016'!D$6","v":2.4141448486909214E-2},{"$f":"'Population 2016'!E111/'Population 2016'!E$6","v":3.2424857446602881E-2},{"$f":"'Population 2016'!F111/'Population 2016'!F$6","v":2.6010560027698432E-2},{"$f":"'Population 2016'!G111/'Population 2016'!G$6","v":3.2295981193328112E-2},{"$f":"'Population 2016'!H111/'Population 2016'!H$6","v":1.8817412665382758E-2},{"$f":"'Population 2016'!I111/'Population 2016'!I$6","v":3.3213557346800038E-2},{"$f":"'Population 2016'!J111/'Population 2016'!J$6","v":1.9362106597197774E-2},{"$f":"'Population 2016'!K111/'Population 2016'!K$6","v":2.1823887409661468E-2},{"$f":"'Population 2016'!L111/'Population 2016'!L$6","v":3.4392598551890585E-2},{"$f":"'Population 2016'!M111/'Population 2016'!M$6","v":3.4392598551890585E-2},{"$f":"'Population 2016'!N111/'Population 2016'!N$6","v":1.1748445058742226E-2},{"$f":"'Population 2016'!O111/'Population 2016'!O$6","v":1.7988454401759328E-2},{"$f":"'Population 2016'!P111/'Population 2016'!P$6","v":2.7647089919120366E-2},{"$f":"'Population 2016'!Q111/'Population 2016'!Q$6","v":3.3020320197044338E-2},{"$f":"'Population 2016'!R111/'Population 2016'!R$6","v":2.1085880143418133E-2},{"$f":"'Population 2016'!S111/'Population 2016'!S$6","v":2.1115015940824294E-2},{"$f":"'Population 2016'!T111/'Population 2016'!T$6","v":1.2701971460600288E-2},{"$f":"'Population 2016'!U111/'Population 2016'!U$6","v":4.3446244477172311E-2},{"$f":"'Population 2016'!V111/'Population 2016'!V$6","v":2.5116657239819005E-2},{"$f":"'Population 2016'!W111/'Population 2016'!W$6","v":2.070880829015544E-2},{"$f":"'Population 2016'!X111/'Population 2016'!X$6","v":2.070880829015544E-2},{"$f":"'Population 2016'!Y111/'Population 2016'!Y$6","v":2.2644553107828806E-2},{"$f":"'Population 2016'!Z111/'Population 2016'!Z$6","v":6.9542550379613002E-3},{"$f":"'Population 2016'!AA111/'Population 2016'!AA$6","v":1.3693545060837286E-2},{"$f":"'Population 2016'!AB111/'Population 2016'!AB$6","v":2.5782792033016328E-2},{"$f":"'Population 2016'!AC111/'Population 2016'!AC$6","v":1.0354701536378597E-2},{"$f":"'Population 2016'!AD111/'Population 2016'!AD$6","v":3.1319811223055639E-2},{"$f":"'Population 2016'!AE111/'Population 2016'!AE$6","v":3.0969091238160357E-2},{"$f":"'Population 2016'!AF111/'Population 2016'!AF$6","v":9.9568536342515765E-3},{"$f":"'Population 2016'!AG111/'Population 2016'!AG$6","v":3.0969091238160357E-2},{"$f":"'Population 2016'!AH111/'Population 2016'!AH$6","v":1.9694495820207748E-2},{"$f":"'Population 2016'!AI111/'Population 2016'!AI$6","v":2.0277311592595538E-2},{"$f":"'Population 2016'!AJ111/'Population 2016'!AJ$6","v":3.1938393569368596E-2},{"$f":"'Population 2016'!AK111/'Population 2016'!AK$6","v":3.5663675011809164E-2},{"$f":"'Population 2016'!AL111/'Population 2016'!AL$6","v":1.4448984425889738E-2},{"$f":"'Population 2016'!AM111/'Population 2016'!AM$6","v":1.7911176183504147E-2},{"$f":"'Population 2016'!AN111/'Population 2016'!AN$6","v":4.5751633986928102E-2},{"$f":"'Population 2016'!AO111/'Population 2016'!AO$6","v":4.5751633986928102E-2},{"$f":"'Population 2016'!AP111/'Population 2016'!AP$6","v":2.2076114603829727E-2},{"$f":"'Population 2016'!AQ111/'Population 2016'!AQ$6","v":1.5544270258335173E-2},{"$f":"'Population 2016'!AR111/'Population 2016'!AR$6","v":1.8414415921630779E-2},{"$f":"'Population 2016'!AS111/'Population 2016'!AS$6","v":3.3213557346800038E-2},{"$f":"'Population 2016'!AT111/'Population 2016'!AT$6","v":3.9745627980922099E-2},{"$f":"'Population 2016'!AU111/'Population 2016'!AU$6","v":3.9745627980922099E-2},{"$f":"'Population 2016'!AV111/'Population 2016'!AV$6","v":2.6998689384010486E-2},{"$f":"'Population 2016'!AW111/'Population 2016'!AW$6","v":2.208863299453722E-2},{"$f":"'Population 2016'!AX111/'Population 2016'!AX$6","v":1.69625063725263E-2},{"$f":"'Population 2016'!AY111/'Population 2016'!AY$6","v":1.8737880357902973E-2},{"$f":"'Population 2016'!AZ111/'Population 2016'!AZ$6","v":1.6614263255681005E-2},{"$f":"'Population 2016'!BA111/'Population 2016'!BA$6","v":1.6894786125555356E-2},{"$f":"'Population 2016'!BB111/'Population 2016'!BB$6","v":2.3316481949575474E-2},{"$f":"'Population 2016'!BC111/'Population 2016'!BC$6","v":4.3446244477172311E-2},109]
[null,"Female 70-74",{"$f":"'Population 2016'!C112/'Population 2016'!C$6","v":1.4523416768270818E-2},{"$f":"'Population 2016'!D112/'Population 2016'!D$6","v":1.7432584416603458E-2},{"$f":"'Population 2016'!E112/'Population 2016'!E$6","v":2.5273025997873781E-2},{"$f":"'Population 2016'!F112/'Population 2016'!F$6","v":2.0990218990738337E-2},{"$f":"'Population 2016'!G112/'Population 2016'!G$6","v":2.664278517855144E-2},{"$f":"'Population 2016'!H112/'Population 2016'!H$6","v":1.5156483838847582E-2},{"$f":"'Population 2016'!I112/'Population 2016'!I$6","v":2.6561134310964359E-2},{"$f":"'Population 2016'!J112/'Population 2016'!J$6","v":1.5771315919172007E-2},{"$f":"'Population 2016'!K112/'Population 2016'!K$6","v":1.6783948269303919E-2},{"$f":"'Population 2016'!L112/'Population 2016'!L$6","v":2.7978904085098774E-2},{"$f":"'Population 2016'!M112/'Population 2016'!M$6","v":2.7978904085098774E-2},{"$f":"'Population 2016'!N112/'Population 2016'!N$6","v":9.4399270684762306E-3},{"$f":"'Population 2016'!O112/'Population 2016'!O$6","v":1.467253109751907E-2},{"$f":"'Population 2016'!P112/'Population 2016'!P$6","v":2.4739652164719565E-2},{"$f":"'Population 2016'!Q112/'Population 2016'!Q$6","v":2.6708743842364532E-2},{"$f":"'Population 2016'!R112/'Population 2016'!R$6","v":1.2463718627283592E-2},{"$f":"'Population 2016'!S112/'Population 2016'!S$6","v":1.6451141110491483E-2},{"$f":"'Population 2016'!T112/'Population 2016'!T$6","v":9.5749433173469983E-3},{"$f":"'Population 2016'!U112/'Population 2016'!U$6","v":3.1848306332842413E-2},{"$f":"'Population 2016'!V112/'Population 2016'!V$6","v":2.0503393665158371E-2},{"$f":"'Population 2016'!W112/'Population 2016'!W$6","v":1.5933678756476683E-2},{"$f":"'Population 2016'!X112/'Population 2016'!X$6","v":1.5933678756476683E-2},{"$f":"'Population 2016'!Y112/'Population 2016'!Y$6","v":1.8470534859101679E-2},{"$f":"'Population 2016'!Z112/'Population 2016'!Z$6","v":5.3106325060534526E-3},{"$f":"'Population 2016'!AA112/'Population 2016'!AA$6","v":1.1003830842972934E-2},{"$f":"'Population 2016'!AB112/'Population 2016'!AB$6","v":1.8919343262156829E-2},{"$f":"'Population 2016'!AC112/'Population 2016'!AC$6","v":8.0281520271716089E-3},{"$f":"'Population 2016'!AD112/'Population 2016'!AD$6","v":2.3700679064400161E-2},{"$f":"'Population 2016'!AE112/'Population 2016'!AE$6","v":2.2643634242966598E-2},{"$f":"'Population 2016'!AF112/'Population 2016'!AF$6","v":7.5782719327359225E-3},{"$f":"'Population 2016'!AG112/'Population 2016'!AG$6","v":2.2643634242966598E-2},{"$f":"'Population 2016'!AH112/'Population 2016'!AH$6","v":1.6352060527447476E-2},{"$f":"'Population 2016'!AI112/'Population 2016'!AI$6","v":1.5840995743647907E-2},{"$f":"'Population 2016'!AJ112/'Population 2016'!AJ$6","v":2.3194452966803707E-2},{"$f":"'Population 2016'!AK112/'Population 2016'!AK$6","v":2.7869626830420408E-2},{"$f":"'Population 2016'!AL112/'Population 2016'!AL$6","v":1.1058802629241428E-2},{"$f":"'Population 2016'!AM112/'Population 2016'!AM$6","v":1.5165934602244998E-2},{"$f":"'Population 2016'!AN112/'Population 2016'!AN$6","v":3.9600153787004995E-2},{"$f":"'Population 2016'!AO112/'Population 2016'!AO$6","v":3.9600153787004995E-2},{"$f":"'Population 2016'!AP112/'Population 2016'!AP$6","v":1.7708883236550368E-2},{"$f":"'Population 2016'!AQ112/'Population 2016'!AQ$6","v":1.2585559726208876E-2},{"$f":"'Population 2016'!AR112/'Population 2016'!AR$6","v":1.4561970896405627E-2},{"$f":"'Population 2016'!AS112/'Population 2016'!AS$6","v":2.6561134310964359E-2},{"$f":"'Population 2016'!AT112/'Population 2016'!AT$6","v":3.0206677265500796E-2},{"$f":"'Population 2016'!AU112/'Population 2016'!AU$6","v":3.0206677265500796E-2},{"$f":"'Population 2016'!AV112/'Population 2016'!AV$6","v":2.2423448111521506E-2},{"$f":"'Population 2016'!AW112/'Population 2016'!AW$6","v":1.7944454909540618E-2},{"$f":"'Population 2016'!AX112/'Population 2016'!AX$6","v":1.4784261018677296E-2},{"$f":"'Population 2016'!AY112/'Population 2016'!AY$6","v":1.4696208137520048E-2},{"$f":"'Population 2016'!AZ112/'Population 2016'!AZ$6","v":1.3362869801343434E-2},{"$f":"'Population 2016'!BA112/'Population 2016'!BA$6","v":1.2671089594166518E-2},{"$f":"'Population 2016'!BB112/'Population 2016'!BB$6","v":1.942770108237734E-2},{"$f":"'Population 2016'!BC112/'Population 2016'!BC$6","v":3.1848306332842413E-2},110]
[null,"Female 75-79",{"$f":"'Population 2016'!C113/'Population 2016'!C$6","v":1.4415835903320663E-2},{"$f":"'Population 2016'!D113/'Population 2016'!D$6","v":1.6059425103967778E-2},{"$f":"'Population 2016'!E113/'Population 2016'!E$6","v":2.0489030636899584E-2},{"$f":"'Population 2016'!F113/'Population 2016'!F$6","v":1.8480048472258287E-2},{"$f":"'Population 2016'!G113/'Population 2016'!G$6","v":2.4627784618829061E-2},{"$f":"'Population 2016'!H113/'Population 2016'!H$6","v":1.2318369634562985E-2},{"$f":"'Population 2016'!I113/'Population 2016'!I$6","v":2.1462561911236282E-2},{"$f":"'Population 2016'!J113/'Population 2016'!J$6","v":1.2532563542913469E-2},{"$f":"'Population 2016'!K113/'Population 2016'!K$6","v":1.1411182959300114E-2},{"$f":"'Population 2016'!L113/'Population 2016'!L$6","v":2.1922767497988736E-2},{"$f":"'Population 2016'!M113/'Population 2016'!M$6","v":2.1922767497988736E-2},{"$f":"'Population 2016'!N113/'Population 2016'!N$6","v":9.0723286623829204E-3},{"$f":"'Population 2016'!O113/'Population 2016'!O$6","v":1.2542093326919112E-2},{"$f":"'Population 2016'!P113/'Population 2016'!P$6","v":2.0087751757678279E-2},{"$f":"'Population 2016'!Q113/'Population 2016'!Q$6","v":2.3591440886699507E-2},{"$f":"'Population 2016'!R113/'Population 2016'!R$6","v":1.3488133856923339E-2},{"$f":"'Population 2016'!S113/'Population 2016'!S$6","v":1.3783815065394207E-2},{"$f":"'Population 2016'!T113/'Population 2016'!T$6","v":9.1703682475999422E-3},{"$f":"'Population 2016'!U113/'Population 2016'!U$6","v":3.0559646539027981E-2},{"$f":"'Population 2016'!V113/'Population 2016'!V$6","v":1.7003676470588234E-2},{"$f":"'Population 2016'!W113/'Population 2016'!W$6","v":1.3081865284974093E-2},{"$f":"'Population 2016'!X113/'Population 2016'!X$6","v":1.3081865284974093E-2},{"$f":"'Population 2016'!Y113/'Population 2016'!Y$6","v":1.5082925845641982E-2},{"$f":"'Population 2016'!Z113/'Population 2016'!Z$6","v":5.2103745697263566E-3},{"$f":"'Population 2016'!AA113/'Population 2016'!AA$6","v":9.7627127117743736E-3},{"$f":"'Population 2016'!AB113/'Population 2016'!AB$6","v":1.7225910640588551E-2},{"$f":"'Population 2016'!AC113/'Population 2016'!AC$6","v":7.5243256702446767E-3},{"$f":"'Population 2016'!AD113/'Population 2016'!AD$6","v":2.1777402985516253E-2},{"$f":"'Population 2016'!AE113/'Population 2016'!AE$6","v":2.0753313089468498E-2},{"$f":"'Population 2016'!AF113/'Population 2016'!AF$6","v":5.5869012058856072E-3},{"$f":"'Population 2016'!AG113/'Population 2016'!AG$6","v":2.0753313089468498E-2},{"$f":"'Population 2016'!AH113/'Population 2016'!AH$6","v":1.3785797447022751E-2},{"$f":"'Population 2016'!AI113/'Population 2016'!AI$6","v":1.3476355692086198E-2},{"$f":"'Population 2016'!AJ113/'Population 2016'!AJ$6","v":1.8438976498742099E-2},{"$f":"'Population 2016'!AK113/'Population 2016'!AK$6","v":2.4248149897653913E-2},{"$f":"'Population 2016'!AL113/'Population 2016'!AL$6","v":8.4088351986735359E-3},{"$f":"'Population 2016'!AM113/'Population 2016'!AM$6","v":1.2628111273792094E-2},{"$f":"'Population 2016'!AN113/'Population 2016'!AN$6","v":2.4221453287197232E-2},{"$f":"'Population 2016'!AO113/'Population 2016'!AO$6","v":2.4221453287197232E-2},{"$f":"'Population 2016'!AP113/'Population 2016'!AP$6","v":1.3533618083217354E-2},{"$f":"'Population 2016'!AQ113/'Population 2016'!AQ$6","v":1.184956208140134E-2},{"$f":"'Population 2016'!AR113/'Population 2016'!AR$6","v":1.2528924424026687E-2},{"$f":"'Population 2016'!AS113/'Population 2016'!AS$6","v":2.1462561911236282E-2},{"$f":"'Population 2016'!AT113/'Population 2016'!AT$6","v":1.5898251192368838E-2},{"$f":"'Population 2016'!AU113/'Population 2016'!AU$6","v":1.5898251192368838E-2},{"$f":"'Population 2016'!AV113/'Population 2016'!AV$6","v":1.8300965089955917E-2},{"$f":"'Population 2016'!AW113/'Population 2016'!AW$6","v":1.5340010974700858E-2},{"$f":"'Population 2016'!AX113/'Population 2016'!AX$6","v":1.362561987301293E-2},{"$f":"'Population 2016'!AY113/'Population 2016'!AY$6","v":1.2486187370204276E-2},{"$f":"'Population 2016'!AZ113/'Population 2016'!AZ$6","v":1.1844361869372589E-2},{"$f":"'Population 2016'!BA113/'Population 2016'!BA$6","v":1.2113242882473651E-2},{"$f":"'Population 2016'!BB113/'Population 2016'!BB$6","v":1.487458681703286E-2},{"$f":"'Population 2016'!BC113/'Population 2016'!BC$6","v":3.0559646539027981E-2},111]
[null,"Female 80-84",{"$f":"'Population 2016'!C114/'Population 2016'!C$6","v":1.2784192784909991E-2},{"$f":"'Population 2016'!D114/'Population 2016'!D$6","v":1.3744670834096199E-2},{"$f":"'Population 2016'!E114/'Population 2016'!E$6","v":1.6333236686962405E-2},{"$f":"'Population 2016'!F114/'Population 2016'!F$6","v":1.4282004674110621E-2},{"$f":"'Population 2016'!G114/'Population 2016'!G$6","v":1.8694727415202061E-2},{"$f":"'Population 2016'!H114/'Population 2016'!H$6","v":9.6591281742459019E-3},{"$f":"'Population 2016'!I114/'Population 2016'!I$6","v":1.6995241332426921E-2},{"$f":"'Population 2016'!J114/'Population 2016'!J$6","v":8.3785115820601275E-3},{"$f":"'Population 2016'!K114/'Population 2016'!K$6","v":7.6550019018638265E-3},{"$f":"'Population 2016'!L114/'Population 2016'!L$6","v":1.8257799231250559E-2},{"$f":"'Population 2016'!M114/'Population 2016'!M$6","v":1.8257799231250559E-2},{"$f":"'Population 2016'!N114/'Population 2016'!N$6","v":7.3813759943536887E-3},{"$f":"'Population 2016'!O114/'Population 2016'!O$6","v":9.2948938217304652E-3},{"$f":"'Population 2016'!P114/'Population 2016'!P$6","v":1.8501876618914205E-2},{"$f":"'Population 2016'!Q114/'Population 2016'!Q$6","v":1.8588362068965518E-2},{"$f":"'Population 2016'!R114/'Population 2016'!R$6","v":1.2890558306300154E-2},{"$f":"'Population 2016'!S114/'Population 2016'!S$6","v":1.060354170393207E-2},{"$f":"'Population 2016'!T114/'Population 2016'!T$6","v":6.8693475384135599E-3},{"$f":"'Population 2016'!U114/'Population 2016'!U$6","v":2.8166421207658322E-2},{"$f":"'Population 2016'!V114/'Population 2016'!V$6","v":1.2249010180995475E-2},{"$f":"'Population 2016'!W114/'Population 2016'!W$6","v":1.0420725388601036E-2},{"$f":"'Population 2016'!X114/'Population 2016'!X$6","v":1.0420725388601036E-2},{"$f":"'Population 2016'!Y114/'Population 2016'!Y$6","v":1.0586278167061551E-2},{"$f":"'Population 2016'!Z114/'Population 2016'!Z$6","v":4.6938942916776799E-3},{"$f":"'Population 2016'!AA114/'Population 2016'!AA$6","v":7.8816625733515808E-3},{"$f":"'Population 2016'!AB114/'Population 2016'!AB$6","v":1.4265207249237395E-2},{"$f":"'Population 2016'!AC114/'Population 2016'!AC$6","v":6.4291355584691458E-3},{"$f":"'Population 2016'!AD114/'Population 2016'!AD$6","v":1.5948397023360407E-2},{"$f":"'Population 2016'!AE114/'Population 2016'!AE$6","v":1.4961690831942405E-2},{"$f":"'Population 2016'!AF114/'Population 2016'!AF$6","v":4.3146365748423501E-3},{"$f":"'Population 2016'!AG114/'Population 2016'!AG$6","v":1.4961690831942405E-2},{"$f":"'Population 2016'!AH114/'Population 2016'!AH$6","v":1.0492309951436792E-2},{"$f":"'Population 2016'!AI114/'Population 2016'!AI$6","v":1.0144933601744392E-2},{"$f":"'Population 2016'!AJ114/'Population 2016'!AJ$6","v":1.4511873350923483E-2},{"$f":"'Population 2016'!AK114/'Population 2016'!AK$6","v":1.7398834829160763E-2},{"$f":"'Population 2016'!AL114/'Population 2016'!AL$6","v":7.0764493397287853E-3},{"$f":"'Population 2016'!AM114/'Population 2016'!AM$6","v":9.3277208394338708E-3},{"$f":"'Population 2016'!AN114/'Population 2016'!AN$6","v":2.306805074971165E-2},{"$f":"'Population 2016'!AO114/'Population 2016'!AO$6","v":2.306805074971165E-2},{"$f":"'Population 2016'!AP114/'Population 2016'!AP$6","v":1.1326006622834381E-2},{"$f":"'Population 2016'!AQ114/'Population 2016'!AQ$6","v":9.8770883933171419E-3},{"$f":"'Population 2016'!AR114/'Population 2016'!AR$6","v":9.8741512016847673E-3},{"$f":"'Population 2016'!AS114/'Population 2016'!AS$6","v":1.6995241332426921E-2},{"$f":"'Population 2016'!AT114/'Population 2016'!AT$6","v":2.3847376788553261E-2},{"$f":"'Population 2016'!AU114/'Population 2016'!AU$6","v":2.3847376788553261E-2},{"$f":"'Population 2016'!AV114/'Population 2016'!AV$6","v":1.4321458358155606E-2},{"$f":"'Population 2016'!AW114/'Population 2016'!AW$6","v":1.2055790792717385E-2},{"$f":"'Population 2016'!AX114/'Population 2016'!AX$6","v":9.0837465820086203E-3},{"$f":"'Population 2016'!AY114/'Population 2016'!AY$6","v":9.996689268500324E-3},{"$f":"'Population 2016'!AZ114/'Population 2016'!AZ$6","v":9.5398027726168351E-3},{"$f":"'Population 2016'!BA114/'Population 2016'!BA$6","v":8.6067778375470676E-3},{"$f":"'Population 2016'!BB114/'Population 2016'!BB$6","v":1.0580724609501588E-2},{"$f":"'Population 2016'!BC114/'Population 2016'!BC$6","v":2.8166421207658322E-2},112]
[null,"Female 85-89",{"$f":"'Population 2016'!C115/'Population 2016'!C$6","v":7.1899878075019725E-3},{"$f":"'Population 2016'!D115/'Population 2016'!D$6","v":7.6766144430204276E-3},{"$f":"'Population 2016'!E115/'Population 2016'!E$6","v":8.9881124963757612E-3},{"$f":"'Population 2016'!F115/'Population 2016'!F$6","v":1.0603306500476067E-2},{"$f":"'Population 2016'!G115/'Population 2016'!G$6","v":1.0466808463002351E-2},{"$f":"'Population 2016'!H115/'Population 2016'!H$6","v":5.306558071036329E-3},{"$f":"'Population 2016'!I115/'Population 2016'!I$6","v":1.034281829659124E-2},{"$f":"'Population 2016'!J115/'Population 2016'!J$6","v":4.8815977845056207E-3},{"$f":"'Population 2016'!K115/'Population 2016'!K$6","v":4.8497527577025488E-3},{"$f":"'Population 2016'!L115/'Population 2016'!L$6","v":1.0168052203450434E-2},{"$f":"'Population 2016'!M115/'Population 2016'!M$6","v":1.0168052203450434E-2},{"$f":"'Population 2016'!N115/'Population 2016'!N$6","v":4.0435824670264232E-3},{"$f":"'Population 2016'!O115/'Population 2016'!O$6","v":4.965294481478936E-3},{"$f":"'Population 2016'!P115/'Population 2016'!P$6","v":1.0731088438970238E-2},{"$f":"'Population 2016'!Q115/'Population 2016'!Q$6","v":1.0467980295566502E-2},{"$f":"'Population 2016'!R115/'Population 2016'!R$6","v":5.7196516988219223E-3},{"$f":"'Population 2016'!S115/'Population 2016'!S$6","v":6.6472711202769392E-3},{"$f":"'Population 2016'!T115/'Population 2016'!T$6","v":4.6863278912367351E-3},{"$f":"'Population 2016'!U115/'Population 2016'!U$6","v":1.1597938144329897E-2},{"$f":"'Population 2016'!V115/'Population 2016'!V$6","v":7.6534219457013572E-3},{"$f":"'Population 2016'!W115/'Population 2016'!W$6","v":6.7067357512953368E-3},{"$f":"'Population 2016'!X115/'Population 2016'!X$6","v":6.7067357512953368E-3},{"$f":"'Population 2016'!Y115/'Population 2016'!Y$6","v":6.4626707667490048E-3},{"$f":"'Population 2016'!Z115/'Population 2016'!Z$6","v":2.9165945113337039E-3},{"$f":"'Population 2016'!AA115/'Population 2016'!AA$6","v":4.5907622315129017E-3},{"$f":"'Population 2016'!AB115/'Population 2016'!AB$6","v":8.1643638973622826E-3},{"$f":"'Population 2016'!AC115/'Population 2016'!AC$6","v":3.7349289779911527E-3},{"$f":"'Population 2016'!AD115/'Population 2016'!AD$6","v":1.0001035610196322E-2},{"$f":"'Population 2016'!AE115/'Population 2016'!AE$6","v":9.8336919580911779E-3},{"$f":"'Population 2016'!AF115/'Population 2016'!AF$6","v":2.2126341409447947E-3},{"$f":"'Population 2016'!AG115/'Population 2016'!AG$6","v":9.8336919580911779E-3},{"$f":"'Population 2016'!AH115/'Population 2016'!AH$6","v":6.1289634604694094E-3},{"$f":"'Population 2016'!AI115/'Population 2016'!AI$6","v":6.2987314647794191E-3},{"$f":"'Population 2016'!AJ115/'Population 2016'!AJ$6","v":9.4189114560962132E-3},{"$f":"'Population 2016'!AK115/'Population 2016'!AK$6","v":1.1100614076523381E-2},{"$f":"'Population 2016'!AL115/'Population 2016'!AL$6","v":3.6122461064724345E-3},{"$f":"'Population 2016'!AM115/'Population 2016'!AM$6","v":5.1366520253782336E-3},{"$f":"'Population 2016'!AN115/'Population 2016'!AN$6","v":1.114955786236063E-2},{"$f":"'Population 2016'!AO115/'Population 2016'!AO$6","v":1.114955786236063E-2},{"$f":"'Population 2016'!AP115/'Population 2016'!AP$6","v":9.7902769112636172E-3},{"$f":"'Population 2016'!AQ115/'Population 2016'!AQ$6","v":5.1961433723412085E-3},{"$f":"'Population 2016'!AR115/'Population 2016'!AR$6","v":5.8843610853314314E-3},{"$f":"'Population 2016'!AS115/'Population 2016'!AS$6","v":1.034281829659124E-2},{"$f":"'Population 2016'!AT115/'Population 2016'!AT$6","v":7.9491255961844191E-3},{"$f":"'Population 2016'!AU115/'Population 2016'!AU$6","v":7.9491255961844191E-3},{"$f":"'Population 2016'!AV115/'Population 2016'!AV$6","v":8.507089241034195E-3},{"$f":"'Population 2016'!AW115/'Population 2016'!AW$6","v":7.4611585680472402E-3},{"$f":"'Population 2016'!AX115/'Population 2016'!AX$6","v":4.9126384576169066E-3},{"$f":"'Population 2016'!AY115/'Population 2016'!AY$6","v":6.591365440262795E-3},{"$f":"'Population 2016'!AZ115/'Population 2016'!AZ$6","v":6.4670573102758328E-3},{"$f":"'Population 2016'!BA115/'Population 2016'!BA$6","v":5.1202358894666591E-3},{"$f":"'Population 2016'!BB115/'Population 2016'!BB$6","v":5.9952038369304557E-3},{"$f":"'Population 2016'!BC115/'Population 2016'!BC$6","v":1.1597938144329897E-2},113]
[null,"Female 90+",{"$f":"'Population 2016'!C116/'Population 2016'!C$6","v":3.4963781108800114E-3},{"$f":"'Population 2016'!D116/'Population 2016'!D$6","v":4.041011691470719E-3},{"$f":"'Population 2016'!E116/'Population 2016'!E$6","v":5.508843142939983E-3},{"$f":"'Population 2016'!F116/'Population 2016'!F$6","v":6.9678871288842729E-3},{"$f":"'Population 2016'!G116/'Population 2016'!G$6","v":5.8211127280868693E-3},{"$f":"'Population 2016'!H116/'Population 2016'!H$6","v":3.6967033753286787E-3},{"$f":"'Population 2016'!I116/'Population 2016'!I$6","v":7.1380013596193063E-3},{"$f":"'Population 2016'!J116/'Population 2016'!J$6","v":2.9571217348447511E-3},{"$f":"'Population 2016'!K116/'Population 2016'!K$6","v":2.9003423354887789E-3},{"$f":"'Population 2016'!L116/'Population 2016'!L$6","v":6.1678734245105924E-3},{"$f":"'Population 2016'!M116/'Population 2016'!M$6","v":6.1678734245105924E-3},{"$f":"'Population 2016'!N116/'Population 2016'!N$6","v":2.4261494802158539E-3},{"$f":"'Population 2016'!O116/'Population 2016'!O$6","v":3.1612947563741324E-3},{"$f":"'Population 2016'!P116/'Population 2016'!P$6","v":7.3478881429402121E-3},{"$f":"'Population 2016'!Q116/'Population 2016'!Q$6","v":5.6573275862068966E-3},{"$f":"'Population 2016'!R116/'Population 2016'!R$6","v":2.9878777531159298E-3},{"$f":"'Population 2016'!S116/'Population 2016'!S$6","v":3.8300066288576269E-3},{"$f":"'Population 2016'!T116/'Population 2016'!T$6","v":2.8320254882293941E-3},{"$f":"'Population 2016'!U116/'Population 2016'!U$6","v":1.0493372606774668E-2},{"$f":"'Population 2016'!V116/'Population 2016'!V$6","v":4.8783936651583711E-3},{"$f":"'Population 2016'!W116/'Population 2016'!W$6","v":3.9958549222797925E-3},{"$f":"'Population 2016'!X116/'Population 2016'!X$6","v":3.9958549222797925E-3},{"$f":"'Population 2016'!Y116/'Population 2016'!Y$6","v":4.0530322125321367E-3},{"$f":"'Population 2016'!Z116/'Population 2016'!Z$6","v":1.7104611561259118E-3},{"$f":"'Population 2016'!AA116/'Population 2016'!AA$6","v":2.3709980814538454E-3},{"$f":"'Population 2016'!AB116/'Population 2016'!AB$6","v":4.1831150188408397E-3},{"$f":"'Population 2016'!AC116/'Population 2016'!AC$6","v":2.009469601179615E-3},{"$f":"'Population 2016'!AD116/'Population 2016'!AD$6","v":5.5627061973873033E-3},{"$f":"'Population 2016'!AE116/'Population 2016'!AE$6","v":5.4698654654413096E-3},{"$f":"'Population 2016'!AF116/'Population 2016'!AF$6","v":7.1910609580705831E-4},{"$f":"'Population 2016'!AG116/'Population 2016'!AG$6","v":5.4698654654413096E-3},{"$f":"'Population 2016'!AH116/'Population 2016'!AH$6","v":3.0207783399004962E-3},{"$f":"'Population 2016'!AI116/'Population 2016'!AI$6","v":3.4611634029053685E-3},{"$f":"'Population 2016'!AJ116/'Population 2016'!AJ$6","v":4.2645885745842792E-3},{"$f":"'Population 2016'!AK116/'Population 2016'!AK$6","v":5.0385766021099039E-3},{"$f":"'Population 2016'!AL116/'Population 2016'!AL$6","v":2.279860247527684E-3},{"$f":"'Population 2016'!AM116/'Population 2016'!AM$6","v":2.1961932650073207E-3},{"$f":"'Population 2016'!AN116/'Population 2016'!AN$6","v":4.61361014994233E-3},{"$f":"'Population 2016'!AO116/'Population 2016'!AO$6","v":4.61361014994233E-3},{"$f":"'Population 2016'!AP116/'Population 2016'!AP$6","v":4.6071891347122911E-3},{"$f":"'Population 2016'!AQ116/'Population 2016'!AQ$6","v":2.4729520865533232E-3},{"$f":"'Population 2016'!AR116/'Population 2016'!AR$6","v":3.3301945552562475E-3},{"$f":"'Population 2016'!AS116/'Population 2016'!AS$6","v":7.1380013596193063E-3},{"$f":"'Population 2016'!AT116/'Population 2016'!AT$6","v":1.589825119236884E-3},{"$f":"'Population 2016'!AU116/'Population 2016'!AU$6","v":1.589825119236884E-3},{"$f":"'Population 2016'!AV116/'Population 2016'!AV$6","v":6.7198856189681876E-3},{"$f":"'Population 2016'!AW116/'Population 2016'!AW$6","v":4.1277979344630181E-3},{"$f":"'Population 2016'!AX116/'Population 2016'!AX$6","v":3.0124669787273484E-3},{"$f":"'Population 2016'!AY116/'Population 2016'!AY$6","v":3.8868847736448576E-3},{"$f":"'Population 2016'!AZ116/'Population 2016'!AZ$6","v":3.7694726311276261E-3},{"$f":"'Population 2016'!BA116/'Population 2016'!BA$6","v":2.0321558783097243E-3},{"$f":"'Population 2016'!BB116/'Population 2016'!BB$6","v":3.3216669907317389E-3},{"$f":"'Population 2016'!BC116/'Population 2016'!BC$6","v":1.0493372606774668E-2},114]
[null,"Male 0-4",{"$f":"'Population 2016'!C117/'Population 2016'!C$6","v":0},{"$f":"'Population 2016'!D117/'Population 2016'!D$6","v":0},{"$f":"'Population 2016'!E117/'Population 2016'!E$6","v":0},{"$f":"'Population 2016'!F117/'Population 2016'!F$6","v":0},{"$f":"'Population 2016'!G117/'Population 2016'!G$6","v":0},{"$f":"'Population 2016'!H117/'Population 2016'!H$6","v":0},{"$f":"'Population 2016'!I117/'Population 2016'!I$6","v":0},{"$f":"'Population 2016'!J117/'Population 2016'!J$6","v":0},{"$f":"'Population 2016'!K117/'Population 2016'!K$6","v":0},{"$f":"'Population 2016'!L117/'Population 2016'!L$6","v":0},{"$f":"'Population 2016'!M117/'Population 2016'!M$6","v":0},{"$f":"'Population 2016'!N117/'Population 2016'!N$6","v":0},{"$f":"'Population 2016'!O117/'Population 2016'!O$6","v":0},{"$f":"'Population 2016'!P117/'Population 2016'!P$6","v":0},{"$f":"'Population 2016'!Q117/'Population 2016'!Q$6","v":0},{"$f":"'Population 2016'!R117/'Population 2016'!R$6","v":0},{"$f":"'Population 2016'!S117/'Population 2016'!S$6","v":0},{"$f":"'Population 2016'!T117/'Population 2016'!T$6","v":0},{"$f":"'Population 2016'!U117/'Population 2016'!U$6","v":0},{"$f":"'Population 2016'!V117/'Population 2016'!V$6","v":0},{"$f":"'Population 2016'!W117/'Population 2016'!W$6","v":0},{"$f":"'Population 2016'!X117/'Population 2016'!X$6","v":0},{"$f":"'Population 2016'!Y117/'Population 2016'!Y$6","v":0},{"$f":"'Population 2016'!Z117/'Population 2016'!Z$6","v":0},{"$f":"'Population 2016'!AA117/'Population 2016'!AA$6","v":0},{"$f":"'Population 2016'!AB117/'Population 2016'!AB$6","v":0},{"$f":"'Population 2016'!AC117/'Population 2016'!AC$6","v":0},{"$f":"'Population 2016'!AD117/'Population 2016'!AD$6","v":0},{"$f":"'Population 2016'!AE117/'Population 2016'!AE$6","v":0},{"$f":"'Population 2016'!AF117/'Population 2016'!AF$6","v":0},{"$f":"'Population 2016'!AG117/'Population 2016'!AG$6","v":0},{"$f":"'Population 2016'!AH117/'Population 2016'!AH$6","v":0},{"$f":"'Population 2016'!AI117/'Population 2016'!AI$6","v":0},{"$f":"'Population 2016'!AJ117/'Population 2016'!AJ$6","v":0},{"$f":"'Population 2016'!AK117/'Population 2016'!AK$6","v":0},{"$f":"'Population 2016'!AL117/'Population 2016'!AL$6","v":0},{"$f":"'Population 2016'!AM117/'Population 2016'!AM$6","v":0},{"$f":"'Population 2016'!AN117/'Population 2016'!AN$6","v":0},{"$f":"'Population 2016'!AO117/'Population 2016'!AO$6","v":0},{"$f":"'Population 2016'!AP117/'Population 2016'!AP$6","v":0},{"$f":"'Population 2016'!AQ117/'Population 2016'!AQ$6","v":0},{"$f":"'Population 2016'!AR117/'Population 2016'!AR$6","v":0},{"$f":"'Population 2016'!AS117/'Population 2016'!AS$6","v":0},{"$f":"'Population 2016'!AT117/'Population 2016'!AT$6","v":0},{"$f":"'Population 2016'!AU117/'Population 2016'!AU$6","v":0},{"$f":"'Population 2016'!AV117/'Population 2016'!AV$6","v":0},{"$f":"'Population 2016'!AW117/'Population 2016'!AW$6","v":0},{"$f":"'Population 2016'!AX117/'Population 2016'!AX$6","v":0},{"$f":"'Population 2016'!AY117/'Population 2016'!AY$6","v":0},{"$f":"'Population 2016'!AZ117/'Population 2016'!AZ$6","v":0},{"$f":"'Population 2016'!BA117/'Population 2016'!BA$6","v":0},{"$f":"'Population 2016'!BB117/'Population 2016'!BB$6","v":0},{"$f":"'Population 2016'!BC117/'Population 2016'!BC$6","v":0},115]
[null,"Male 5-9",{"$f":"'Population 2016'!C118/'Population 2016'!C$6","v":0},{"$f":"'Population 2016'!D118/'Population 2016'!D$6","v":0},{"$f":"'Population 2016'!E118/'Population 2016'!E$6","v":0},{"$f":"'Population 2016'!F118/'Population 2016'!F$6","v":0},{"$f":"'Population 2016'!G118/'Population 2016'!G$6","v":0},{"$f":"'Population 2016'!H118/'Population 2016'!H$6","v":0},{"$f":"'Population 2016'!I118/'Population 2016'!I$6","v":0},{"$f":"'Population 2016'!J118/'Population 2016'!J$6","v":0},{"$f":"'Population 2016'!K118/'Population 2016'!K$6","v":0},{"$f":"'Population 2016'!L118/'Population 2016'!L$6","v":0},{"$f":"'Population 2016'!M118/'Population 2016'!M$6","v":0},{"$f":"'Population 2016'!N118/'Population 2016'!N$6","v":0},{"$f":"'Population 2016'!O118/'Population 2016'!O$6","v":0},{"$f":"'Population 2016'!P118/'Population 2016'!P$6","v":0},{"$f":"'Population 2016'!Q118/'Population 2016'!Q$6","v":0},{"$f":"'Population 2016'!R118/'Population 2016'!R$6","v":0},{"$f":"'Population 2016'!S118/'Population 2016'!S$6","v":0},{"$f":"'Population 2016'!T118/'Population 2016'!T$6","v":0},{"$f":"'Population 2016'!U118/'Population 2016'!U$6","v":0},{"$f":"'Population 2016'!V118/'Population 2016'!V$6","v":0},{"$f":"'Population 2016'!W118/'Population 2016'!W$6","v":0},{"$f":"'Population 2016'!X118/'Population 2016'!X$6","v":0},{"$f":"'Population 2016'!Y118/'Population 2016'!Y$6","v":0},{"$f":"'Population 2016'!Z118/'Population 2016'!Z$6","v":0},{"$f":"'Population 2016'!AA118/'Population 2016'!AA$6","v":0},{"$f":"'Population 2016'!AB118/'Population 2016'!AB$6","v":0},{"$f":"'Population 2016'!AC118/'Population 2016'!AC$6","v":0},{"$f":"'Population 2016'!AD118/'Population 2016'!AD$6","v":0},{"$f":"'Population 2016'!AE118/'Population 2016'!AE$6","v":0},{"$f":"'Population 2016'!AF118/'Population 2016'!AF$6","v":0},{"$f":"'Population 2016'!AG118/'Population 2016'!AG$6","v":0},{"$f":"'Population 2016'!AH118/'Population 2016'!AH$6","v":0},{"$f":"'Population 2016'!AI118/'Population 2016'!AI$6","v":0},{"$f":"'Population 2016'!AJ118/'Population 2016'!AJ$6","v":0},{"$f":"'Population 2016'!AK118/'Population 2016'!AK$6","v":0},{"$f":"'Population 2016'!AL118/'Population 2016'!AL$6","v":0},{"$f":"'Population 2016'!AM118/'Population 2016'!AM$6","v":0},{"$f":"'Population 2016'!AN118/'Population 2016'!AN$6","v":0},{"$f":"'Population 2016'!AO118/'Population 2016'!AO$6","v":0},{"$f":"'Population 2016'!AP118/'Population 2016'!AP$6","v":0},{"$f":"'Population 2016'!AQ118/'Population 2016'!AQ$6","v":0},{"$f":"'Population 2016'!AR118/'Population 2016'!AR$6","v":0},{"$f":"'Population 2016'!AS118/'Population 2016'!AS$6","v":0},{"$f":"'Population 2016'!AT118/'Population 2016'!AT$6","v":0},{"$f":"'Population 2016'!AU118/'Population 2016'!AU$6","v":0},{"$f":"'Population 2016'!AV118/'Population 2016'!AV$6","v":0},{"$f":"'Population 2016'!AW118/'Population 2016'!AW$6","v":0},{"$f":"'Population 2016'!AX118/'Population 2016'!AX$6","v":0},{"$f":"'Population 2016'!AY118/'Population 2016'!AY$6","v":0},{"$f":"'Population 2016'!AZ118/'Population 2016'!AZ$6","v":0},{"$f":"'Population 2016'!BA118/'Population 2016'!BA$6","v":0},{"$f":"'Population 2016'!BB118/'Population 2016'!BB$6","v":0},{"$f":"'Population 2016'!BC118/'Population 2016'!BC$6","v":0},116]
[null,"Male 10-15",{"$f":"'Population 2016'!C119/'Population 2016'!C$6","v":0},{"$f":"'Population 2016'!D119/'Population 2016'!D$6","v":0},{"$f":"'Population 2016'!E119/'Population 2016'!E$6","v":0},{"$f":"'Population 2016'!F119/'Population 2016'!F$6","v":0},{"$f":"'Population 2016'!G119/'Population 2016'!G$6","v":0},{"$f":"'Population 2016'!H119/'Population 2016'!H$6","v":0},{"$f":"'Population 2016'!I119/'Population 2016'!I$6","v":0},{"$f":"'Population 2016'!J119/'Population 2016'!J$6","v":0},{"$f":"'Population 2016'!K119/'Population 2016'!K$6","v":0},{"$f":"'Population 2016'!L119/'Population 2016'!L$6","v":0},{"$f":"'Population 2016'!M119/'Population 2016'!M$6","v":0},{"$f":"'Population 2016'!N119/'Population 2016'!N$6","v":0},{"$f":"'Population 2016'!O119/'Population 2016'!O$6","v":0},{"$f":"'Population 2016'!P119/'Population 2016'!P$6","v":0},{"$f":"'Population 2016'!Q119/'Population 2016'!Q$6","v":0},{"$f":"'Population 2016'!R119/'Population 2016'!R$6","v":0},{"$f":"'Population 2016'!S119/'Population 2016'!S$6","v":0},{"$f":"'Population 2016'!T119/'Population 2016'!T$6","v":0},{"$f":"'Population 2016'!U119/'Population 2016'!U$6","v":0},{"$f":"'Population 2016'!V119/'Population 2016'!V$6","v":0},{"$f":"'Population 2016'!W119/'Population 2016'!W$6","v":0},{"$f":"'Population 2016'!X119/'Population 2016'!X$6","v":0},{"$f":"'Population 2016'!Y119/'Population 2016'!Y$6","v":0},{"$f":"'Population 2016'!Z119/'Population 2016'!Z$6","v":0},{"$f":"'Population 2016'!AA119/'Population 2016'!AA$6","v":0},{"$f":"'Population 2016'!AB119/'Population 2016'!AB$6","v":0},{"$f":"'Population 2016'!AC119/'Population 2016'!AC$6","v":0},{"$f":"'Population 2016'!AD119/'Population 2016'!AD$6","v":0},{"$f":"'Population 2016'!AE119/'Population 2016'!AE$6","v":0},{"$f":"'Population 2016'!AF119/'Population 2016'!AF$6","v":0},{"$f":"'Population 2016'!AG119/'Population 2016'!AG$6","v":0},{"$f":"'Population 2016'!AH119/'Population 2016'!AH$6","v":0},{"$f":"'Population 2016'!AI119/'Population 2016'!AI$6","v":0},{"$f":"'Population 2016'!AJ119/'Population 2016'!AJ$6","v":0},{"$f":"'Population 2016'!AK119/'Population 2016'!AK$6","v":0},{"$f":"'Population 2016'!AL119/'Population 2016'!AL$6","v":0},{"$f":"'Population 2016'!AM119/'Population 2016'!AM$6","v":0},{"$f":"'Population 2016'!AN119/'Population 2016'!AN$6","v":0},{"$f":"'Population 2016'!AO119/'Population 2016'!AO$6","v":0},{"$f":"'Population 2016'!AP119/'Population 2016'!AP$6","v":0},{"$f":"'Population 2016'!AQ119/'Population 2016'!AQ$6","v":0},{"$f":"'Population 2016'!AR119/'Population 2016'!AR$6","v":0},{"$f":"'Population 2016'!AS119/'Population 2016'!AS$6","v":0},{"$f":"'Population 2016'!AT119/'Population 2016'!AT$6","v":0},{"$f":"'Population 2016'!AU119/'Population 2016'!AU$6","v":0},{"$f":"'Population 2016'!AV119/'Population 2016'!AV$6","v":0},{"$f":"'Population 2016'!AW119/'Population 2016'!AW$6","v":0},{"$f":"'Population 2016'!AX119/'Population 2016'!AX$6","v":0},{"$f":"'Population 2016'!AY119/'Population 2016'!AY$6","v":0},{"$f":"'Population 2016'!AZ119/'Population 2016'!AZ$6","v":0},{"$f":"'Population 2016'!BA119/'Population 2016'!BA$6","v":0},{"$f":"'Population 2016'!BB119/'Population 2016'!BB$6","v":0},{"$f":"'Population 2016'!BC119/'Population 2016'!BC$6","v":0},117]
[null,"Male 16-19",{"$f":"'Population 2016'!C120/'Population 2016'!C$6","v":1.6585383346482106E-2},{"$f":"'Population 2016'!D120/'Population 2016'!D$6","v":1.7654905448173046E-2},{"$f":"'Population 2016'!E120/'Population 2016'!E$6","v":2.053735382236397E-2},{"$f":"'Population 2016'!F120/'Population 2016'!F$6","v":1.6878732796676187E-2},{"$f":"'Population 2016'!G120/'Population 2016'!G$6","v":1.7015560282100078E-2},{"$f":"'Population 2016'!H120/'Population 2016'!H$6","v":1.2115647191399799E-2},{"$f":"'Population 2016'!I120/'Population 2016'!I$6","v":1.7723608818102358E-2},{"$f":"'Population 2016'!J120/'Population 2016'!J$6","v":1.4574385693163416E-2},{"$f":"'Population 2016'!K120/'Population 2016'!K$6","v":1.4549258273107645E-2},{"$f":"'Population 2016'!L120/'Population 2016'!L$6","v":2.0202020202020204E-2},{"$f":"'Population 2016'!M120/'Population 2016'!M$6","v":2.0202020202020204E-2},{"$f":"'Population 2016'!N120/'Population 2016'!N$6","v":8.2930200414651004E-3},{"$f":"'Population 2016'!O120/'Population 2016'!O$6","v":1.2490550477630404E-2},{"$f":"'Population 2016'!P120/'Population 2016'!P$6","v":2.2149389438071578E-2},{"$f":"'Population 2016'!Q120/'Population 2016'!Q$6","v":2.3399014778325122E-2},{"$f":"'Population 2016'!R120/'Population 2016'!R$6","v":1.8610210005122075E-2},{"$f":"'Population 2016'!S120/'Population 2016'!S$6","v":1.5604120413724892E-2},{"$f":"'Population 2016'!T120/'Population 2016'!T$6","v":1.2786257933464258E-2},{"$f":"'Population 2016'!U120/'Population 2016'!U$6","v":2.5773195876288658E-2},{"$f":"'Population 2016'!V120/'Population 2016'!V$6","v":1.9336821266968326E-2},{"$f":"'Population 2016'!W120/'Population 2016'!W$6","v":1.355440414507772E-2},{"$f":"'Population 2016'!X120/'Population 2016'!X$6","v":1.355440414507772E-2},{"$f":"'Population 2016'!Y120/'Population 2016'!Y$6","v":1.7290921006200534E-2},{"$f":"'Population 2016'!Z120/'Population 2016'!Z$6","v":7.0757798092668713E-3},{"$f":"'Population 2016'!AA120/'Population 2016'!AA$6","v":1.0682614972159207E-2},{"$f":"'Population 2016'!AB120/'Population 2016'!AB$6","v":1.9020276332316528E-2},{"$f":"'Population 2016'!AC120/'Population 2016'!AC$6","v":8.7284512105449494E-3},{"$f":"'Population 2016'!AD120/'Population 2016'!AD$6","v":1.9499060553607624E-2},{"$f":"'Population 2016'!AE120/'Population 2016'!AE$6","v":2.0391336698373116E-2},{"$f":"'Population 2016'!AF120/'Population 2016'!AF$6","v":5.8911384002655158E-3},{"$f":"'Population 2016'!AG120/'Population 2016'!AG$6","v":2.0391336698373116E-2},{"$f":"'Population 2016'!AH120/'Population 2016'!AH$6","v":1.4194861180550942E-2},{"$f":"'Population 2016'!AI120/'Population 2016'!AI$6","v":1.6456220677417061E-2},{"$f":"'Population 2016'!AJ120/'Population 2016'!AJ$6","v":2.1997913726452722E-2},{"$f":"'Population 2016'!AK120/'Population 2016'!AK$6","v":2.7239804755156669E-2},{"$f":"'Population 2016'!AL120/'Population 2016'!AL$6","v":9.8152424942263283E-3},{"$f":"'Population 2016'!AM120/'Population 2016'!AM$6","v":1.3488286969253294E-2},{"$f":"'Population 2016'!AN120/'Population 2016'!AN$6","v":2.5759323337178008E-2},{"$f":"'Population 2016'!AO120/'Population 2016'!AO$6","v":2.5759323337178008E-2},{"$f":"'Population 2016'!AP120/'Population 2016'!AP$6","v":1.8236790324902816E-2},{"$f":"'Population 2016'!AQ120/'Population 2016'!AQ$6","v":1.0671965849709281E-2},{"$f":"'Population 2016'!AR120/'Population 2016'!AR$6","v":1.3391428988066237E-2},{"$f":"'Population 2016'!AS120/'Population 2016'!AS$6","v":1.7723608818102358E-2},{"$f":"'Population 2016'!AT120/'Population 2016'!AT$6","v":1.2718600953895072E-2},{"$f":"'Population 2016'!AU120/'Population 2016'!AU$6","v":1.2718600953895072E-2},{"$f":"'Population 2016'!AV120/'Population 2016'!AV$6","v":1.5298463004885023E-2},{"$f":"'Population 2016'!AW120/'Population 2016'!AW$6","v":1.5143449168297856E-2},{"$f":"'Population 2016'!AX120/'Population 2016'!AX$6","v":1.4598878435370997E-2},{"$f":"'Population 2016'!AY120/'Population 2016'!AY$6","v":1.2765664704592457E-2},{"$f":"'Population 2016'!AZ120/'Population 2016'!AZ$6","v":1.1915821066171216E-2},{"$f":"'Population 2016'!BA120/'Population 2016'!BA$6","v":1.1615165461319308E-2},{"$f":"'Population 2016'!BB120/'Population 2016'!BB$6","v":1.7661546438524856E-2},{"$f":"'Population 2016'!BC120/'Population 2016'!BC$6","v":2.5773195876288658E-2},118]
[null,"Male 20-24",{"$f":"'Population 2016'!C121/'Population 2016'!C$6","v":3.9930431040665564E-2},{"$f":"'Population 2016'!D121/'Population 2016'!D$6","v":3.7127612272120941E-2},{"$f":"'Population 2016'!E121/'Population 2016'!E$6","v":2.9573789504204116E-2},{"$f":"'Population 2016'!F121/'Population 2016'!F$6","v":2.6313511641997748E-2},{"$f":"'Population 2016'!G121/'Population 2016'!G$6","v":2.2276950632486286E-2},{"$f":"'Population 2016'!H121/'Population 2016'!H$6","v":1.5555966300375037E-2},{"$f":"'Population 2016'!I121/'Population 2016'!I$6","v":2.6221229484315819E-2},{"$f":"'Population 2016'!J121/'Population 2016'!J$6","v":2.4220235161585581E-2},{"$f":"'Population 2016'!K121/'Population 2016'!K$6","v":1.9303917839482692E-2},{"$f":"'Population 2016'!L121/'Population 2016'!L$6","v":2.7263788325735228E-2},{"$f":"'Population 2016'!M121/'Population 2016'!M$6","v":2.7263788325735228E-2},{"$f":"'Population 2016'!N121/'Population 2016'!N$6","v":2.468790895322678E-2},{"$f":"'Population 2016'!O121/'Population 2016'!O$6","v":1.680296886811903E-2},{"$f":"'Population 2016'!P121/'Population 2016'!P$6","v":3.2563302849289003E-2},{"$f":"'Population 2016'!Q121/'Population 2016'!Q$6","v":3.282789408866995E-2},{"$f":"'Population 2016'!R121/'Population 2016'!R$6","v":2.5183541061977122E-2},{"$f":"'Population 2016'!S121/'Population 2016'!S$6","v":2.3072107240185609E-2},{"$f":"'Population 2016'!T121/'Population 2016'!T$6","v":2.468750790185683E-2},{"$f":"'Population 2016'!U121/'Population 2016'!U$6","v":2.8718703976435934E-2},{"$f":"'Population 2016'!V121/'Population 2016'!V$6","v":2.3243071266968326E-2},{"$f":"'Population 2016'!W121/'Population 2016'!W$6","v":1.682901554404145E-2},{"$f":"'Population 2016'!X121/'Population 2016'!X$6","v":1.682901554404145E-2},{"$f":"'Population 2016'!Y121/'Population 2016'!Y$6","v":2.3662852245803296E-2},{"$f":"'Population 2016'!Z121/'Population 2016'!Z$6","v":1.3340381770069057E-2},{"$f":"'Population 2016'!AA121/'Population 2016'!AA$6","v":1.592455801571083E-2},{"$f":"'Population 2016'!AB121/'Population 2016'!AB$6","v":3.7289162031221963E-2},{"$f":"'Population 2016'!AC121/'Population 2016'!AC$6","v":1.4463123412168865E-2},{"$f":"'Population 2016'!AD121/'Population 2016'!AD$6","v":2.5239299927507286E-2},{"$f":"'Population 2016'!AE121/'Population 2016'!AE$6","v":2.6303617752931004E-2},{"$f":"'Population 2016'!AF121/'Population 2016'!AF$6","v":8.9058524173027988E-3},{"$f":"'Population 2016'!AG121/'Population 2016'!AG$6","v":2.6303617752931004E-2},{"$f":"'Population 2016'!AH121/'Population 2016'!AH$6","v":1.8551215129064852E-2},{"$f":"'Population 2016'!AI121/'Population 2016'!AI$6","v":2.5952447716343637E-2},{"$f":"'Population 2016'!AJ121/'Population 2016'!AJ$6","v":2.7182917101306988E-2},{"$f":"'Population 2016'!AK121/'Population 2016'!AK$6","v":3.8261691072272085E-2},{"$f":"'Population 2016'!AL121/'Population 2016'!AL$6","v":1.2317167051578136E-2},{"$f":"'Population 2016'!AM121/'Population 2016'!AM$6","v":1.7276720351390922E-2},{"$f":"'Population 2016'!AN121/'Population 2016'!AN$6","v":3.4986543637062668E-2},{"$f":"'Population 2016'!AO121/'Population 2016'!AO$6","v":3.4986543637062668E-2},{"$f":"'Population 2016'!AP121/'Population 2016'!AP$6","v":3.2106349282526273E-2},{"$f":"'Population 2016'!AQ121/'Population 2016'!AQ$6","v":1.4366674026643114E-2},{"$f":"'Population 2016'!AR121/'Population 2016'!AR$6","v":2.0327073486971433E-2},{"$f":"'Population 2016'!AS121/'Population 2016'!AS$6","v":2.6221229484315819E-2},{"$f":"'Population 2016'!AT121/'Population 2016'!AT$6","v":6.6772655007949128E-2},{"$f":"'Population 2016'!AU121/'Population 2016'!AU$6","v":6.6772655007949128E-2},{"$f":"'Population 2016'!AV121/'Population 2016'!AV$6","v":1.9039675920409865E-2},{"$f":"'Population 2016'!AW121/'Population 2016'!AW$6","v":2.0262246210042672E-2},{"$f":"'Population 2016'!AX121/'Population 2016'!AX$6","v":2.9012374287435694E-2},{"$f":"'Population 2016'!AY121/'Population 2016'!AY$6","v":2.1438061373222631E-2},{"$f":"'Population 2016'!AZ121/'Population 2016'!AZ$6","v":2.6404173217093041E-2},{"$f":"'Population 2016'!BA121/'Population 2016'!BA$6","v":1.6635785866555099E-2},{"$f":"'Population 2016'!BB121/'Population 2016'!BB$6","v":2.4839587789228079E-2},{"$f":"'Population 2016'!BC121/'Population 2016'!BC$6","v":2.8718703976435934E-2},119]
[null,"Male 25-29",{"$f":"'Population 2016'!C122/'Population 2016'!C$6","v":4.7676253317076672E-2},{"$f":"'Population 2016'!D122/'Population 2016'!D$6","v":4.4176496743650776E-2},{"$f":"'Population 2016'!E122/'Population 2016'!E$6","v":3.4744370348893397E-2},{"$f":"'Population 2016'!F122/'Population 2016'!F$6","v":3.0771228252401972E-2},{"$f":"'Population 2016'!G122/'Population 2016'!G$6","v":2.0373894548304041E-2},{"$f":"'Population 2016'!H122/'Population 2016'!H$6","v":1.5210145662037837E-2},{"$f":"'Population 2016'!I122/'Population 2016'!I$6","v":2.7580848790909974E-2},{"$f":"'Population 2016'!J122/'Population 2016'!J$6","v":2.4431458142645919E-2},{"$f":"'Population 2016'!K122/'Population 2016'!K$6","v":1.8400532521871436E-2},{"$f":"'Population 2016'!L122/'Population 2016'!L$6","v":2.2190935907750068E-2},{"$f":"'Population 2016'!M122/'Population 2016'!M$6","v":2.2190935907750068E-2},{"$f":"'Population 2016'!N122/'Population 2016'!N$6","v":2.2864620859003957E-2},{"$f":"'Population 2016'!O122/'Population 2016'!O$6","v":1.615009277712872E-2},{"$f":"'Population 2016'!P122/'Population 2016'!P$6","v":3.0660252682772109E-2},{"$f":"'Population 2016'!Q122/'Population 2016'!Q$6","v":3.2712438423645324E-2},{"$f":"'Population 2016'!R122/'Population 2016'!R$6","v":2.2024927437254566E-2},{"$f":"'Population 2016'!S122/'Population 2016'!S$6","v":2.7133597786171991E-2},{"$f":"'Population 2016'!T122/'Population 2016'!T$6","v":3.6285326567939112E-2},{"$f":"'Population 2016'!U122/'Population 2016'!U$6","v":3.2584683357879236E-2},{"$f":"'Population 2016'!V122/'Population 2016'!V$6","v":2.356122737556561E-2},{"$f":"'Population 2016'!W122/'Population 2016'!W$6","v":1.7881865284974093E-2},{"$f":"'Population 2016'!X122/'Population 2016'!X$6","v":1.7881865284974093E-2},{"$f":"'Population 2016'!Y122/'Population 2016'!Y$6","v":2.3935070827242024E-2},{"$f":"'Population 2016'!Z122/'Population 2016'!Z$6","v":1.8347202347858582E-2},{"$f":"'Population 2016'!AA122/'Population 2016'!AA$6","v":1.8079329071286177E-2},{"$f":"'Population 2016'!AB122/'Population 2016'!AB$6","v":4.3849811591602367E-2},{"$f":"'Population 2016'!AC122/'Population 2016'!AC$6","v":1.7618360288367642E-2},{"$f":"'Population 2016'!AD122/'Population 2016'!AD$6","v":2.4484783927329754E-2},{"$f":"'Population 2016'!AE122/'Population 2016'!AE$6","v":2.5961751161340921E-2},{"$f":"'Population 2016'!AF122/'Population 2016'!AF$6","v":8.8505365637791787E-3},{"$f":"'Population 2016'!AG122/'Population 2016'!AG$6","v":2.5961751161340921E-2},{"$f":"'Population 2016'!AH122/'Population 2016'!AH$6","v":1.8907834794191995E-2},{"$f":"'Population 2016'!AI122/'Population 2016'!AI$6","v":3.176569555991747E-2},{"$f":"'Population 2016'!AJ122/'Population 2016'!AJ$6","v":2.8594219795054304E-2},{"$f":"'Population 2016'!AK122/'Population 2016'!AK$6","v":4.1883168005038579E-2},{"$f":"'Population 2016'!AL122/'Population 2016'!AL$6","v":1.148812696156807E-2},{"$f":"'Population 2016'!AM122/'Population 2016'!AM$6","v":1.7667154709614444E-2},{"$f":"'Population 2016'!AN122/'Population 2016'!AN$6","v":3.9984621299500193E-2},{"$f":"'Population 2016'!AO122/'Population 2016'!AO$6","v":3.9984621299500193E-2},{"$f":"'Population 2016'!AP122/'Population 2016'!AP$6","v":3.6233622882372703E-2},{"$f":"'Population 2016'!AQ122/'Population 2016'!AQ$6","v":1.4955472142489145E-2},{"$f":"'Population 2016'!AR122/'Population 2016'!AR$6","v":2.2388380266166873E-2},{"$f":"'Population 2016'!AS122/'Population 2016'!AS$6","v":2.7580848790909974E-2},{"$f":"'Population 2016'!AT122/'Population 2016'!AT$6","v":7.3131955484896663E-2},{"$f":"'Population 2016'!AU122/'Population 2016'!AU$6","v":7.3131955484896663E-2},{"$f":"'Population 2016'!AV122/'Population 2016'!AV$6","v":1.989753365900155E-2},{"$f":"'Population 2016'!AW122/'Population 2016'!AW$6","v":2.0573469070180754E-2},{"$f":"'Population 2016'!AX122/'Population 2016'!AX$6","v":3.0310052370579783E-2},{"$f":"'Population 2016'!AY122/'Population 2016'!AY$6","v":2.2263594422492337E-2},{"$f":"'Population 2016'!AZ122/'Population 2016'!AZ$6","v":2.6984779191081894E-2},{"$f":"'Population 2016'!BA122/'Population 2016'!BA$6","v":1.681509373817066E-2},{"$f":"'Population 2016'!BB122/'Population 2016'!BB$6","v":2.4353490180828309E-2},{"$f":"'Population 2016'!BC122/'Population 2016'!BC$6","v":3.2584683357879236E-2},120]
[null,"Male 30-34",{"$f":"'Population 2016'!C123/'Population 2016'!C$6","v":3.7886394606612639E-2},{"$f":"'Population 2016'!D123/'Population 2016'!D$6","v":3.6002929406533622E-2},{"$f":"'Population 2016'!E123/'Population 2016'!E$6","v":3.0926838697206919E-2},{"$f":"'Population 2016'!F123/'Population 2016'!F$6","v":3.111745866874405E-2},{"$f":"'Population 2016'!G123/'Population 2016'!G$6","v":2.1661256017015559E-2},{"$f":"'Population 2016'!H123/'Population 2016'!H$6","v":1.4482729836569936E-2},{"$f":"'Population 2016'!I123/'Population 2016'!I$6","v":2.3453433038749149E-2},{"$f":"'Population 2016'!J123/'Population 2016'!J$6","v":1.9362106597197774E-2},{"$f":"'Population 2016'!K123/'Population 2016'!K$6","v":1.7449600608596426E-2},{"$f":"'Population 2016'!L123/'Population 2016'!L$6","v":2.228032537767051E-2},{"$f":"'Population 2016'!M123/'Population 2016'!M$6","v":2.228032537767051E-2},{"$f":"'Population 2016'!N123/'Population 2016'!N$6","v":1.7585907747504008E-2},{"$f":"'Population 2016'!O123/'Population 2016'!O$6","v":1.651089272214968E-2},{"$f":"'Population 2016'!P123/'Population 2016'!P$6","v":2.6854152349738331E-2},{"$f":"'Population 2016'!Q123/'Population 2016'!Q$6","v":3.1981219211822662E-2},{"$f":"'Population 2016'!R123/'Population 2016'!R$6","v":1.87809458767287E-2},{"$f":"'Population 2016'!S123/'Population 2016'!S$6","v":2.5849914245730701E-2},{"$f":"'Population 2016'!T123/'Population 2016'!T$6","v":3.2779009296797959E-2},{"$f":"'Population 2016'!U123/'Population 2016'!U$6","v":2.687776141384389E-2},{"$f":"'Population 2016'!V123/'Population 2016'!V$6","v":2.3596578054298642E-2},{"$f":"'Population 2016'!W123/'Population 2016'!W$6","v":1.7467357512953367E-2},{"$f":"'Population 2016'!X123/'Population 2016'!X$6","v":1.7467357512953367E-2},{"$f":"'Population 2016'!Y123/'Population 2016'!Y$6","v":2.177748651509805E-2},{"$f":"'Population 2016'!Z123/'Population 2016'!Z$6","v":1.7022582340627857E-2},{"$f":"'Population 2016'!AA123/'Population 2016'!AA$6","v":1.7423148790441014E-2},{"$f":"'Population 2016'!AB123/'Population 2016'!AB$6","v":3.6425623542077873E-2},{"$f":"'Population 2016'!AC123/'Population 2016'!AC$6","v":1.6653503635719928E-2},{"$f":"'Population 2016'!AD123/'Population 2016'!AD$6","v":2.4218484162561213E-2},{"$f":"'Population 2016'!AE123/'Population 2016'!AE$6","v":2.5137249381623664E-2},{"$f":"'Population 2016'!AF123/'Population 2016'!AF$6","v":8.8228786370173687E-3},{"$f":"'Population 2016'!AG123/'Population 2016'!AG$6","v":2.5137249381623664E-2},{"$f":"'Population 2016'!AH123/'Population 2016'!AH$6","v":1.8806442928616631E-2},{"$f":"'Population 2016'!AI123/'Population 2016'!AI$6","v":3.0288318678145285E-2},{"$f":"'Population 2016'!AJ123/'Population 2016'!AJ$6","v":2.7673804994784317E-2},{"$f":"'Population 2016'!AK123/'Population 2016'!AK$6","v":3.8970240906943787E-2},{"$f":"'Population 2016'!AL123/'Population 2016'!AL$6","v":1.0422218274412269E-2},{"$f":"'Population 2016'!AM123/'Population 2016'!AM$6","v":1.8075890678379697E-2},{"$f":"'Population 2016'!AN123/'Population 2016'!AN$6","v":2.7297193387158785E-2},{"$f":"'Population 2016'!AO123/'Population 2016'!AO$6","v":2.7297193387158785E-2},{"$f":"'Population 2016'!AP123/'Population 2016'!AP$6","v":3.6089648221912941E-2},{"$f":"'Population 2016'!AQ123/'Population 2016'!AQ$6","v":1.6074188562596601E-2},{"$f":"'Population 2016'!AR123/'Population 2016'!AR$6","v":2.0995147140113472E-2},{"$f":"'Population 2016'!AS123/'Population 2016'!AS$6","v":2.3453433038749149E-2},{"$f":"'Population 2016'!AT123/'Population 2016'!AT$6","v":3.8155802861685212E-2},{"$f":"'Population 2016'!AU123/'Population 2016'!AU$6","v":3.8155802861685212E-2},{"$f":"'Population 2016'!AV123/'Population 2016'!AV$6","v":1.8205647563445729E-2},{"$f":"'Population 2016'!AW123/'Population 2016'!AW$6","v":1.9787221844568752E-2},{"$f":"'Population 2016'!AX123/'Population 2016'!AX$6","v":2.1226305788571164E-2},{"$f":"'Population 2016'!AY123/'Population 2016'!AY$6","v":2.0526535297987335E-2},{"$f":"'Population 2016'!AZ123/'Population 2016'!AZ$6","v":2.3822709732742604E-2},{"$f":"'Population 2016'!BA123/'Population 2016'!BA$6","v":1.6317016317016316E-2},{"$f":"'Population 2016'!BB123/'Population 2016'!BB$6","v":2.6168254585520773E-2},{"$f":"'Population 2016'!BC123/'Population 2016'!BC$6","v":2.687776141384389E-2},121]
[null,"Male 35-39",{"$f":"'Population 2016'!C124/'Population 2016'!C$6","v":2.9441296708025533E-2},{"$f":"'Population 2016'!D124/'Population 2016'!D$6","v":2.9621008029712553E-2},{"$f":"'Population 2016'!E124/'Population 2016'!E$6","v":3.0105344544312362E-2},{"$f":"'Population 2016'!F124/'Population 2016'!F$6","v":2.6573184454254307E-2},{"$f":"'Population 2016'!G124/'Population 2016'!G$6","v":2.1101533639314898E-2},{"$f":"'Population 2016'!H124/'Population 2016'!H$6","v":1.2825175742470949E-2},{"$f":"'Population 2016'!I124/'Population 2016'!I$6","v":2.2919296882587162E-2},{"$f":"'Population 2016'!J124/'Population 2016'!J$6","v":1.710906146588749E-2},{"$f":"'Population 2016'!K124/'Population 2016'!K$6","v":1.8257892734880182E-2},{"$f":"'Population 2016'!L124/'Population 2016'!L$6","v":2.1006525431304192E-2},{"$f":"'Population 2016'!M124/'Population 2016'!M$6","v":2.1006525431304192E-2},{"$f":"'Population 2016'!N124/'Population 2016'!N$6","v":1.2013115911129409E-2},{"$f":"'Population 2016'!O124/'Population 2016'!O$6","v":1.4569445398941654E-2},{"$f":"'Population 2016'!P124/'Population 2016'!P$6","v":2.3365227044457367E-2},{"$f":"'Population 2016'!Q124/'Population 2016'!Q$6","v":3.0711206896551723E-2},{"$f":"'Population 2016'!R124/'Population 2016'!R$6","v":1.6988219224859144E-2},{"$f":"'Population 2016'!S124/'Population 2016'!S$6","v":2.266174938709372E-2},{"$f":"'Population 2016'!T124/'Population 2016'!T$6","v":2.5125797560749476E-2},{"$f":"'Population 2016'!U124/'Population 2016'!U$6","v":2.614138438880707E-2},{"$f":"'Population 2016'!V124/'Population 2016'!V$6","v":2.3596578054298642E-2},{"$f":"'Population 2016'!W124/'Population 2016'!W$6","v":1.7119170984455957E-2},{"$f":"'Population 2016'!X124/'Population 2016'!X$6","v":1.7119170984455957E-2},{"$f":"'Population 2016'!Y124/'Population 2016'!Y$6","v":2.0809598225538135E-2},{"$f":"'Population 2016'!Z124/'Population 2016'!Z$6","v":1.3306962457960024E-2},{"$f":"'Population 2016'!AA124/'Population 2016'!AA$6","v":1.4907166113600431E-2},{"$f":"'Population 2016'!AB124/'Population 2016'!AB$6","v":3.0627579400681858E-2},{"$f":"'Population 2016'!AC124/'Population 2016'!AC$6","v":1.3614983290083375E-2},{"$f":"'Population 2016'!AD124/'Population 2016'!AD$6","v":2.3034929652478806E-2},{"$f":"'Population 2016'!AE124/'Population 2016'!AE$6","v":2.3729563416252739E-2},{"$f":"'Population 2016'!AF124/'Population 2016'!AF$6","v":8.49098351587565E-3},{"$f":"'Population 2016'!AG124/'Population 2016'!AG$6","v":2.3729563416252739E-2},{"$f":"'Population 2016'!AH124/'Population 2016'!AH$6","v":1.7229624605358384E-2},{"$f":"'Population 2016'!AI124/'Population 2016'!AI$6","v":2.5437667669720471E-2},{"$f":"'Population 2016'!AJ124/'Population 2016'!AJ$6","v":2.7182917101306988E-2},{"$f":"'Population 2016'!AK124/'Population 2016'!AK$6","v":3.6687135884112737E-2},{"$f":"'Population 2016'!AL124/'Population 2016'!AL$6","v":8.9269852549298274E-3},{"$f":"'Population 2016'!AM124/'Population 2016'!AM$6","v":1.617252318204002E-2},{"$f":"'Population 2016'!AN124/'Population 2016'!AN$6","v":2.768166089965398E-2},{"$f":"'Population 2016'!AO124/'Population 2016'!AO$6","v":2.768166089965398E-2},{"$f":"'Population 2016'!AP124/'Population 2016'!AP$6","v":3.253827326390555E-2},{"$f":"'Population 2016'!AQ124/'Population 2016'!AQ$6","v":1.2747479208066534E-2},{"$f":"'Population 2016'!AR124/'Population 2016'!AR$6","v":1.8279331655047911E-2},{"$f":"'Population 2016'!AS124/'Population 2016'!AS$6","v":2.2919296882587162E-2},{"$f":"'Population 2016'!AT124/'Population 2016'!AT$6","v":5.246422893481717E-2},{"$f":"'Population 2016'!AU124/'Population 2016'!AU$6","v":5.246422893481717E-2},{"$f":"'Population 2016'!AV124/'Population 2016'!AV$6","v":1.6680567139282735E-2},{"$f":"'Population 2016'!AW124/'Population 2016'!AW$6","v":1.8648801382484707E-2},{"$f":"'Population 2016'!AX124/'Population 2016'!AX$6","v":1.5989247810168236E-2},{"$f":"'Population 2016'!AY124/'Population 2016'!AY$6","v":1.7946744519019509E-2},{"$f":"'Population 2016'!AZ124/'Population 2016'!AZ$6","v":1.8838430756038301E-2},{"$f":"'Population 2016'!BA124/'Population 2016'!BA$6","v":1.6038092961169884E-2},{"$f":"'Population 2016'!BB124/'Population 2016'!BB$6","v":2.2895197355629011E-2},{"$f":"'Population 2016'!BC124/'Population 2016'!BC$6","v":2.614138438880707E-2},122]
[null,"Male 40-44",{"$f":"'Population 2016'!C125/'Population 2016'!C$6","v":2.562217600229506E-2},{"$f":"'Population 2016'!D125/'Population 2016'!D$6","v":2.6338503387126306E-2},{"$f":"'Population 2016'!E125/'Population 2016'!E$6","v":2.8269063496665699E-2},{"$f":"'Population 2016'!F125/'Population 2016'!F$6","v":2.5101705184800486E-2},{"$f":"'Population 2016'!G125/'Population 2016'!G$6","v":2.0150005597223776E-2},{"$f":"'Population 2016'!H125/'Population 2016'!H$6","v":1.4959723820483314E-2},{"$f":"'Population 2016'!I125/'Population 2016'!I$6","v":2.495872584247839E-2},{"$f":"'Population 2016'!J125/'Population 2016'!J$6","v":1.8423337792485155E-2},{"$f":"'Population 2016'!K125/'Population 2016'!K$6","v":1.9826930391783949E-2},{"$f":"'Population 2016'!L125/'Population 2016'!L$6","v":2.5073746312684365E-2},{"$f":"'Population 2016'!M125/'Population 2016'!M$6","v":2.5073746312684365E-2},{"$f":"'Population 2016'!N125/'Population 2016'!N$6","v":1.1277919098942787E-2},{"$f":"'Population 2016'!O125/'Population 2016'!O$6","v":1.621881657618033E-2},{"$f":"'Population 2016'!P125/'Population 2016'!P$6","v":2.6219802294232701E-2},{"$f":"'Population 2016'!Q125/'Population 2016'!Q$6","v":3.163485221674877E-2},{"$f":"'Population 2016'!R125/'Population 2016'!R$6","v":2.2622502987877754E-2},{"$f":"'Population 2016'!S125/'Population 2016'!S$6","v":2.252496343606309E-2},{"$f":"'Population 2016'!T125/'Population 2016'!T$6","v":2.1509907874885159E-2},{"$f":"'Population 2016'!U125/'Population 2016'!U$6","v":3.663475699558174E-2},{"$f":"'Population 2016'!V125/'Population 2016'!V$6","v":2.55585407239819E-2},{"$f":"'Population 2016'!W125/'Population 2016'!W$6","v":1.877720207253886E-2},{"$f":"'Population 2016'!X125/'Population 2016'!X$6","v":1.877720207253886E-2},{"$f":"'Population 2016'!Y125/'Population 2016'!Y$6","v":2.2493320562585069E-2},{"$f":"'Population 2016'!Z125/'Population 2016'!Z$6","v":1.0265805056038111E-2},{"$f":"'Population 2016'!AA125/'Population 2016'!AA$6","v":1.432347813044864E-2},{"$f":"'Population 2016'!AB125/'Population 2016'!AB$6","v":2.7106136730665711E-2},{"$f":"'Population 2016'!AC125/'Population 2016'!AC$6","v":1.181171289289702E-2},{"$f":"'Population 2016'!AD125/'Population 2016'!AD$6","v":2.2635480005325996E-2},{"$f":"'Population 2016'!AE125/'Population 2016'!AE$6","v":2.3528465421199751E-2},{"$f":"'Population 2016'!AF125/'Population 2016'!AF$6","v":7.218718884832393E-3},{"$f":"'Population 2016'!AG125/'Population 2016'!AG$6","v":2.3528465421199751E-2},{"$f":"'Population 2016'!AH125/'Population 2016'!AH$6","v":1.883790936965726E-2},{"$f":"'Population 2016'!AI125/'Population 2016'!AI$6","v":2.4207217802182164E-2},{"$f":"'Population 2016'!AJ125/'Population 2016'!AJ$6","v":2.709087562127999E-2},{"$f":"'Population 2016'!AK125/'Population 2016'!AK$6","v":3.1727287041410798E-2},{"$f":"'Population 2016'!AL125/'Population 2016'!AL$6","v":1.0999585479954995E-2},{"$f":"'Population 2016'!AM125/'Population 2016'!AM$6","v":1.7886774036115178E-2},{"$f":"'Population 2016'!AN125/'Population 2016'!AN$6","v":3.9215686274509803E-2},{"$f":"'Population 2016'!AO125/'Population 2016'!AO$6","v":3.9215686274509803E-2},{"$f":"'Population 2016'!AP125/'Population 2016'!AP$6","v":2.4235734510726113E-2},{"$f":"'Population 2016'!AQ125/'Population 2016'!AQ$6","v":1.3512916758666373E-2},{"$f":"'Population 2016'!AR125/'Population 2016'!AR$6","v":1.8094509248468008E-2},{"$f":"'Population 2016'!AS125/'Population 2016'!AS$6","v":2.495872584247839E-2},{"$f":"'Population 2016'!AT125/'Population 2016'!AT$6","v":4.6104928457869634E-2},{"$f":"'Population 2016'!AU125/'Population 2016'!AU$6","v":4.6104928457869634E-2},{"$f":"'Population 2016'!AV125/'Population 2016'!AV$6","v":1.958775169784344E-2},{"$f":"'Population 2016'!AW125/'Population 2016'!AW$6","v":2.011482485524042E-2},{"$f":"'Population 2016'!AX125/'Population 2016'!AX$6","v":1.7055197664179449E-2},{"$f":"'Population 2016'!AY125/'Population 2016'!AY$6","v":1.7701664395017563E-2},{"$f":"'Population 2016'!AZ125/'Population 2016'!AZ$6","v":1.6542804058882379E-2},{"$f":"'Population 2016'!BA125/'Population 2016'!BA$6","v":1.5002091925168848E-2},{"$f":"'Population 2016'!BB125/'Population 2016'!BB$6","v":2.4742368267548123E-2},{"$f":"'Population 2016'!BC125/'Population 2016'!BC$6","v":3.663475699558174E-2},123]
[null,"Male 45-49",{"$f":"'Population 2016'!C126/'Population 2016'!C$6","v":2.7200028688230654E-2},{"$f":"'Population 2016'!D126/'Population 2016'!D$6","v":2.7986294562289123E-2},{"$f":"'Population 2016'!E126/'Population 2016'!E$6","v":3.0105344544312362E-2},{"$f":"'Population 2016'!F126/'Population 2016'!F$6","v":2.8823682160477797E-2},{"$f":"'Population 2016'!G126/'Population 2016'!G$6","v":2.7874174409492893E-2},{"$f":"'Population 2016'!H126/'Population 2016'!H$6","v":1.9204970277312376E-2},{"$f":"'Population 2016'!I126/'Population 2016'!I$6","v":2.971739341555793E-2},{"$f":"'Population 2016'!J126/'Population 2016'!J$6","v":2.2694735853927575E-2},{"$f":"'Population 2016'!K126/'Population 2016'!K$6","v":2.5342335488779004E-2},{"$f":"'Population 2016'!L126/'Population 2016'!L$6","v":3.0191293465629748E-2},{"$f":"'Population 2016'!M126/'Population 2016'!M$6","v":3.0191293465629748E-2},{"$f":"'Population 2016'!N126/'Population 2016'!N$6","v":1.3409989854283991E-2},{"$f":"'Population 2016'!O126/'Population 2016'!O$6","v":2.0256339770462511E-2},{"$f":"'Population 2016'!P126/'Population 2016'!P$6","v":2.9920177618015541E-2},{"$f":"'Population 2016'!Q126/'Population 2016'!Q$6","v":3.6022167487684727E-2},{"$f":"'Population 2016'!R126/'Population 2016'!R$6","v":2.4244493768140685E-2},{"$f":"'Population 2016'!S126/'Population 2016'!S$6","v":2.4155872852197519E-2},{"$f":"'Population 2016'!T126/'Population 2016'!T$6","v":1.9731463297455391E-2},{"$f":"'Population 2016'!U126/'Population 2016'!U$6","v":4.3262150220913106E-2},{"$f":"'Population 2016'!V126/'Population 2016'!V$6","v":3.0224830316742082E-2},{"$f":"'Population 2016'!W126/'Population 2016'!W$6","v":2.1512953367875648E-2},{"$f":"'Population 2016'!X126/'Population 2016'!X$6","v":2.1512953367875648E-2},{"$f":"'Population 2016'!Y126/'Population 2016'!Y$6","v":2.69899682411655E-2},{"$f":"'Population 2016'!Z126/'Population 2016'!Z$6","v":1.0846085839022211E-2},{"$f":"'Population 2016'!AA126/'Population 2016'!AA$6","v":1.6403257153927396E-2},{"$f":"'Population 2016'!AB126/'Population 2016'!AB$6","v":2.985375919612417E-2},{"$f":"'Population 2016'!AC126/'Population 2016'!AC$6","v":1.3085868351534628E-2},{"$f":"'Population 2016'!AD126/'Population 2016'!AD$6","v":2.8523663692985961E-2},{"$f":"'Population 2016'!AE126/'Population 2016'!AE$6","v":2.8757013292577474E-2},{"$f":"'Population 2016'!AF126/'Population 2016'!AF$6","v":8.8228786370173687E-3},{"$f":"'Population 2016'!AG126/'Population 2016'!AG$6","v":2.8757013292577474E-2},{"$f":"'Population 2016'!AH126/'Population 2016'!AH$6","v":2.2365647037434575E-2},{"$f":"'Population 2016'!AI126/'Population 2016'!AI$6","v":2.5010776899350037E-2},{"$f":"'Population 2016'!AJ126/'Population 2016'!AJ$6","v":3.1447505675891267E-2},{"$f":"'Population 2016'!AK126/'Population 2016'!AK$6","v":4.1095890410958902E-2},{"$f":"'Population 2016'!AL126/'Population 2016'!AL$6","v":1.4685853023035472E-2},{"$f":"'Population 2016'!AM126/'Population 2016'!AM$6","v":2.0229380185456319E-2},{"$f":"'Population 2016'!AN126/'Population 2016'!AN$6","v":4.0369088811995385E-2},{"$f":"'Population 2016'!AO126/'Population 2016'!AO$6","v":4.0369088811995385E-2},{"$f":"'Population 2016'!AP126/'Population 2016'!AP$6","v":2.9322839180304268E-2},{"$f":"'Population 2016'!AQ126/'Population 2016'!AQ$6","v":1.5617870022815927E-2},{"$f":"'Population 2016'!AR126/'Population 2016'!AR$6","v":2.073628272967434E-2},{"$f":"'Population 2016'!AS126/'Population 2016'!AS$6","v":2.971739341555793E-2},{"$f":"'Population 2016'!AT126/'Population 2016'!AT$6","v":2.066772655007949E-2},{"$f":"'Population 2016'!AU126/'Population 2016'!AU$6","v":2.066772655007949E-2},{"$f":"'Population 2016'!AV126/'Population 2016'!AV$6","v":2.5020850708924104E-2},{"$f":"'Population 2016'!AW126/'Population 2016'!AW$6","v":2.5233621896985234E-2},{"$f":"'Population 2016'!AX126/'Population 2016'!AX$6","v":2.0114010288733372E-2},{"$f":"'Population 2016'!AY126/'Population 2016'!AY$6","v":2.056953181097013E-2},{"$f":"'Population 2016'!AZ126/'Population 2016'!AZ$6","v":1.9553022724024583E-2},{"$f":"'Population 2016'!BA126/'Population 2016'!BA$6","v":1.8468710776403083E-2},{"$f":"'Population 2016'!BB126/'Population 2016'!BB$6","v":2.712424654870698E-2},{"$f":"'Population 2016'!BC126/'Population 2016'!BC$6","v":4.3262150220913106E-2},124]
[null,"Male 50-54",{"$f":"'Population 2016'!C127/'Population 2016'!C$6","v":2.524564297496952E-2},{"$f":"'Population 2016'!D127/'Population 2016'!D$6","v":2.7005466481835064E-2},{"$f":"'Population 2016'!E127/'Population 2016'!E$6","v":3.1748332850101479E-2},{"$f":"'Population 2016'!F127/'Population 2016'!F$6","v":2.8866960962520557E-2},{"$f":"'Population 2016'!G127/'Population 2016'!G$6","v":2.8657785738273815E-2},{"$f":"'Population 2016'!H127/'Population 2016'!H$6","v":2.0308018865112062E-2},{"$f":"'Population 2016'!I127/'Population 2016'!I$6","v":3.3650577838205305E-2},{"$f":"'Population 2016'!J127/'Population 2016'!J$6","v":2.2929428055105727E-2},{"$f":"'Population 2016'!K127/'Population 2016'!K$6","v":2.3678204640547738E-2},{"$f":"'Population 2016'!L127/'Population 2016'!L$6","v":3.5353535353535352E-2},{"$f":"'Population 2016'!M127/'Population 2016'!M$6","v":3.5353535353535352E-2},{"$f":"'Population 2016'!N127/'Population 2016'!N$6","v":1.2468937934685115E-2},{"$f":"'Population 2016'!O127/'Population 2016'!O$6","v":2.1201292007422171E-2},{"$f":"'Population 2016'!P127/'Population 2016'!P$6","v":3.8378178358090605E-2},{"$f":"'Population 2016'!Q127/'Population 2016'!Q$6","v":3.8947044334975367E-2},{"$f":"'Population 2016'!R127/'Population 2016'!R$6","v":2.9195834044732798E-2},{"$f":"'Population 2016'!S127/'Population 2016'!S$6","v":2.482665011205926E-2},{"$f":"'Population 2016'!T127/'Population 2016'!T$6","v":1.8998170983538853E-2},{"$f":"'Population 2016'!U127/'Population 2016'!U$6","v":4.7680412371134018E-2},{"$f":"'Population 2016'!V127/'Population 2016'!V$6","v":2.9376414027149321E-2},{"$f":"'Population 2016'!W127/'Population 2016'!W$6","v":2.2433160621761657E-2},{"$f":"'Population 2016'!X127/'Population 2016'!X$6","v":2.2433160621761657E-2},{"$f":"'Population 2016'!Y127/'Population 2016'!Y$6","v":2.6606845793214699E-2},{"$f":"'Population 2016'!Z127/'Population 2016'!Z$6","v":1.0484549644388138E-2},{"$f":"'Population 2016'!AA127/'Population 2016'!AA$6","v":1.6908203503377767E-2},{"$f":"'Population 2016'!AB127/'Population 2016'!AB$6","v":2.8821998923380585E-2},{"$f":"'Population 2016'!AC127/'Population 2016'!AC$6","v":1.3683067932911339E-2},{"$f":"'Population 2016'!AD127/'Population 2016'!AD$6","v":3.1438166674063885E-2},{"$f":"'Population 2016'!AE127/'Population 2016'!AE$6","v":3.2437106602047176E-2},{"$f":"'Population 2016'!AF127/'Population 2016'!AF$6","v":1.1588671313198363E-2},{"$f":"'Population 2016'!AG127/'Population 2016'!AG$6","v":3.2437106602047176E-2},{"$f":"'Population 2016'!AH127/'Population 2016'!AH$6","v":2.2704785346428034E-2},{"$f":"'Population 2016'!AI127/'Population 2016'!AI$6","v":2.5274444728108247E-2},{"$f":"'Population 2016'!AJ127/'Population 2016'!AJ$6","v":3.4116708596674233E-2},{"$f":"'Population 2016'!AK127/'Population 2016'!AK$6","v":3.9757518501023457E-2},{"$f":"'Population 2016'!AL127/'Population 2016'!AL$6","v":1.4893113045537988E-2},{"$f":"'Population 2016'!AM127/'Population 2016'!AM$6","v":2.060761346998536E-2},{"$f":"'Population 2016'!AN127/'Population 2016'!AN$6","v":4.5751633986928102E-2},{"$f":"'Population 2016'!AO127/'Population 2016'!AO$6","v":4.5751633986928102E-2},{"$f":"'Population 2016'!AP127/'Population 2016'!AP$6","v":2.8890915198924991E-2},{"$f":"'Population 2016'!AQ127/'Population 2016'!AQ$6","v":1.6486347243688821E-2},{"$f":"'Population 2016'!AR127/'Population 2016'!AR$6","v":2.1375530869863549E-2},{"$f":"'Population 2016'!AS127/'Population 2016'!AS$6","v":3.3650577838205305E-2},{"$f":"'Population 2016'!AT127/'Population 2016'!AT$6","v":5.7233704292527825E-2},{"$f":"'Population 2016'!AU127/'Population 2016'!AU$6","v":5.7233704292527825E-2},{"$f":"'Population 2016'!AV127/'Population 2016'!AV$6","v":2.7785058977719528E-2},{"$f":"'Population 2016'!AW127/'Population 2016'!AW$6","v":2.5520274531322943E-2},{"$f":"'Population 2016'!AX127/'Population 2016'!AX$6","v":2.2199564350929232E-2},{"$f":"'Population 2016'!AY127/'Population 2016'!AY$6","v":2.0737218211603039E-2},{"$f":"'Population 2016'!AZ127/'Population 2016'!AZ$6","v":1.890988995283693E-2},{"$f":"'Population 2016'!BA127/'Population 2016'!BA$6","v":1.9444942521865599E-2},{"$f":"'Population 2016'!BB127/'Population 2016'!BB$6","v":2.6913604251733749E-2},{"$f":"'Population 2016'!BC127/'Population 2016'!BC$6","v":4.7680412371134018E-2},125]
[null,"Male 55-59",{"$f":"'Population 2016'!C128/'Population 2016'!C$6","v":2.4833249659327261E-2},{"$f":"'Population 2016'!D128/'Population 2016'!D$6","v":2.6573902126435279E-2},{"$f":"'Population 2016'!E128/'Population 2016'!E$6","v":3.1265100995457623E-2},{"$f":"'Population 2016'!F128/'Population 2016'!F$6","v":2.4365965550073573E-2},{"$f":"'Population 2016'!G128/'Population 2016'!G$6","v":3.0336952871375798E-2},{"$f":"'Population 2016'!H128/'Population 2016'!H$6","v":1.8781638116589255E-2},{"$f":"'Population 2016'!I128/'Population 2016'!I$6","v":3.2582305525881324E-2},{"$f":"'Population 2016'!J128/'Population 2016'!J$6","v":2.1380459527329906E-2},{"$f":"'Population 2016'!K128/'Population 2016'!K$6","v":2.1300874857360211E-2},{"$f":"'Population 2016'!L128/'Population 2016'!L$6","v":3.4191472244569587E-2},{"$f":"'Population 2016'!M128/'Population 2016'!M$6","v":3.4191472244569587E-2},{"$f":"'Population 2016'!N128/'Population 2016'!N$6","v":1.1586701760061168E-2},{"$f":"'Population 2016'!O128/'Population 2016'!O$6","v":1.9517558930657687E-2},{"$f":"'Population 2016'!P128/'Population 2016'!P$6","v":3.2880477877041812E-2},{"$f":"'Population 2016'!Q128/'Population 2016'!Q$6","v":3.6560960591133007E-2},{"$f":"'Population 2016'!R128/'Population 2016'!R$6","v":2.4073757896534063E-2},{"$f":"'Population 2016'!S128/'Population 2016'!S$6","v":2.2669640884268562E-2},{"$f":"'Population 2016'!T128/'Population 2016'!T$6","v":1.6326289793751E-2},{"$f":"'Population 2016'!U128/'Population 2016'!U$6","v":4.731222385861561E-2},{"$f":"'Population 2016'!V128/'Population 2016'!V$6","v":2.6813489819004523E-2},{"$f":"'Population 2016'!W128/'Population 2016'!W$6","v":2.0907772020725388E-2},{"$f":"'Population 2016'!X128/'Population 2016'!X$6","v":2.0907772020725388E-2},{"$f":"'Population 2016'!Y128/'Population 2016'!Y$6","v":2.4479507990119474E-2},{"$f":"'Population 2016'!Z128/'Population 2016'!Z$6","v":9.4151316568991134E-3},{"$f":"'Population 2016'!AA128/'Population 2016'!AA$6","v":1.5574595199260079E-2},{"$f":"'Population 2016'!AB128/'Population 2016'!AB$6","v":2.8025749147676297E-2},{"$f":"'Population 2016'!AC128/'Population 2016'!AC$6","v":1.2432255780386176E-2},{"$f":"'Population 2016'!AD128/'Population 2016'!AD$6","v":3.093515600727886E-2},{"$f":"'Population 2016'!AE128/'Population 2016'!AE$6","v":3.1150079433708046E-2},{"$f":"'Population 2016'!AF128/'Population 2016'!AF$6","v":1.0537670096249585E-2},{"$f":"'Population 2016'!AG128/'Population 2016'!AG$6","v":3.1150079433708046E-2},{"$f":"'Population 2016'!AH128/'Population 2016'!AH$6","v":2.1222366346291679E-2},{"$f":"'Population 2016'!AI128/'Population 2016'!AI$6","v":2.2704729698623485E-2},{"$f":"'Population 2016'!AJ128/'Population 2016'!AJ$6","v":3.2183837516107261E-2},{"$f":"'Population 2016'!AK128/'Population 2016'!AK$6","v":3.6765863643520705E-2},{"$f":"'Population 2016'!AL128/'Population 2016'!AL$6","v":1.353111861195002E-2},{"$f":"'Population 2016'!AM128/'Population 2016'!AM$6","v":1.8557833089311859E-2},{"$f":"'Population 2016'!AN128/'Population 2016'!AN$6","v":4.2291426374471357E-2},{"$f":"'Population 2016'!AO128/'Population 2016'!AO$6","v":4.2291426374471357E-2},{"$f":"'Population 2016'!AP128/'Population 2016'!AP$6","v":2.4715650045591977E-2},{"$f":"'Population 2016'!AQ128/'Population 2016'!AQ$6","v":1.5529550305439023E-2},{"$f":"'Population 2016'!AR128/'Population 2016'!AR$6","v":1.9802562192457213E-2},{"$f":"'Population 2016'!AS128/'Population 2016'!AS$6","v":3.2582305525881324E-2},{"$f":"'Population 2016'!AT128/'Population 2016'!AT$6","v":4.133545310015898E-2},{"$f":"'Population 2016'!AU128/'Population 2016'!AU$6","v":4.133545310015898E-2},{"$f":"'Population 2016'!AV128/'Population 2016'!AV$6","v":2.621231979030144E-2},{"$f":"'Population 2016'!AW128/'Population 2016'!AW$6","v":2.4799547907845273E-2},{"$f":"'Population 2016'!AX128/'Population 2016'!AX$6","v":2.1458034017704037E-2},{"$f":"'Population 2016'!AY128/'Population 2016'!AY$6","v":1.8866869896851365E-2},{"$f":"'Population 2016'!AZ128/'Population 2016'!AZ$6","v":1.6667857653279976E-2},{"$f":"'Population 2016'!BA128/'Population 2016'!BA$6","v":1.8966788197557427E-2},{"$f":"'Population 2016'!BB128/'Population 2016'!BB$6","v":2.4126644630241754E-2},{"$f":"'Population 2016'!BC128/'Population 2016'!BC$6","v":4.731222385861561E-2},126]
[null,"Male 60-64",{"$f":"'Population 2016'!C129/'Population 2016'!C$6","v":2.0314853331420784E-2},{"$f":"'Population 2016'!D129/'Population 2016'!D$6","v":2.1931315878952737E-2},{"$f":"'Population 2016'!E129/'Population 2016'!E$6","v":2.6287812892625884E-2},{"$f":"'Population 2016'!F129/'Population 2016'!F$6","v":2.4236129143945295E-2},{"$f":"'Population 2016'!G129/'Population 2016'!G$6","v":2.8265980073883354E-2},{"$f":"'Population 2016'!H129/'Population 2016'!H$6","v":1.6492066993805041E-2},{"$f":"'Population 2016'!I129/'Population 2016'!I$6","v":3.1174128386908809E-2},{"$f":"'Population 2016'!J129/'Population 2016'!J$6","v":1.7977422610246662E-2},{"$f":"'Population 2016'!K129/'Population 2016'!K$6","v":1.9589197413465195E-2},{"$f":"'Population 2016'!L129/'Population 2016'!L$6","v":3.0928756592473405E-2},{"$f":"'Population 2016'!M129/'Population 2016'!M$6","v":3.0928756592473405E-2},{"$f":"'Population 2016'!N129/'Population 2016'!N$6","v":9.6310782396447532E-3},{"$f":"'Population 2016'!O129/'Population 2016'!O$6","v":1.6373445124046457E-2},{"$f":"'Population 2016'!P129/'Population 2016'!P$6","v":2.6008352275730826E-2},{"$f":"'Population 2016'!Q129/'Population 2016'!Q$6","v":2.8825431034482759E-2},{"$f":"'Population 2016'!R129/'Population 2016'!R$6","v":2.1939559501451256E-2},{"$f":"'Population 2016'!S129/'Population 2016'!S$6","v":1.929734109155189E-2},{"$f":"'Population 2016'!T129/'Population 2016'!T$6","v":1.2929544937333007E-2},{"$f":"'Population 2016'!U129/'Population 2016'!U$6","v":4.7680412371134018E-2},{"$f":"'Population 2016'!V129/'Population 2016'!V$6","v":2.2076498868778282E-2},{"$f":"'Population 2016'!W129/'Population 2016'!W$6","v":1.8818652849740932E-2},{"$f":"'Population 2016'!X129/'Population 2016'!X$6","v":1.8818652849740932E-2},{"$f":"'Population 2016'!Y129/'Population 2016'!Y$6","v":2.0315571911075265E-2},{"$f":"'Population 2016'!Z129/'Population 2016'!Z$6","v":7.4950402702710917E-3},{"$f":"'Population 2016'!AA129/'Population 2016'!AA$6","v":1.3089859202459739E-2},{"$f":"'Population 2016'!AB129/'Population 2016'!AB$6","v":2.300152521083797E-2},{"$f":"'Population 2016'!AC129/'Population 2016'!AC$6","v":1.0123213750763521E-2},{"$f":"'Population 2016'!AD129/'Population 2016'!AD$6","v":2.7798736555560487E-2},{"$f":"'Population 2016'!AE129/'Population 2016'!AE$6","v":2.7630864520280733E-2},{"$f":"'Population 2016'!AF129/'Population 2016'!AF$6","v":7.9378249806394512E-3},{"$f":"'Population 2016'!AG129/'Population 2016'!AG$6","v":2.7630864520280733E-2},{"$f":"'Population 2016'!AH129/'Population 2016'!AH$6","v":1.8421853093675594E-2},{"$f":"'Population 2016'!AI129/'Population 2016'!AI$6","v":1.8515340863909734E-2},{"$f":"'Population 2016'!AJ129/'Population 2016'!AJ$6","v":2.8256734368288641E-2},{"$f":"'Population 2016'!AK129/'Population 2016'!AK$6","v":2.9444182018579752E-2},{"$f":"'Population 2016'!AL129/'Population 2016'!AL$6","v":1.2539231361402262E-2},{"$f":"'Population 2016'!AM129/'Population 2016'!AM$6","v":1.6642264519277698E-2},{"$f":"'Population 2016'!AN129/'Population 2016'!AN$6","v":4.1906958861976165E-2},{"$f":"'Population 2016'!AO129/'Population 2016'!AO$6","v":4.1906958861976165E-2},{"$f":"'Population 2016'!AP129/'Population 2016'!AP$6","v":2.2652013245668762E-2},{"$f":"'Population 2016'!AQ129/'Population 2016'!AQ$6","v":1.3586516523147126E-2},{"$f":"'Population 2016'!AR129/'Population 2016'!AR$6","v":1.6944879967172827E-2},{"$f":"'Population 2016'!AS129/'Population 2016'!AS$6","v":3.1174128386908809E-2},{"$f":"'Population 2016'!AT129/'Population 2016'!AT$6","v":3.3386327503974564E-2},{"$f":"'Population 2016'!AU129/'Population 2016'!AU$6","v":3.3386327503974564E-2},{"$f":"'Population 2016'!AV129/'Population 2016'!AV$6","v":2.3019182652210174E-2},{"$f":"'Population 2016'!AW129/'Population 2016'!AW$6","v":2.0810981252917714E-2},{"$f":"'Population 2016'!AX129/'Population 2016'!AX$6","v":1.6406358622607406E-2},{"$f":"'Population 2016'!AY129/'Population 2016'!AY$6","v":1.7013720187292809E-2},{"$f":"'Population 2016'!AZ129/'Population 2016'!AZ$6","v":1.5068958124910676E-2},{"$f":"'Population 2016'!BA129/'Population 2016'!BA$6","v":1.5500169346323192E-2},{"$f":"'Population 2016'!BB129/'Population 2016'!BB$6","v":1.9767969408257178E-2},{"$f":"'Population 2016'!BC129/'Population 2016'!BC$6","v":4.7680412371134018E-2},127]
[null,"Male 65-69",{"$f":"'Population 2016'!C130/'Population 2016'!C$6","v":1.8539769059743239E-2},{"$f":"'Population 2016'!D130/'Population 2016'!D$6","v":2.1839771924777027E-2},{"$f":"'Population 2016'!E130/'Population 2016'!E$6","v":3.0733545955349377E-2},{"$f":"'Population 2016'!F130/'Population 2016'!F$6","v":2.5880723621570154E-2},{"$f":"'Population 2016'!G130/'Population 2016'!G$6","v":3.0616814060226129E-2},{"$f":"'Population 2016'!H130/'Population 2016'!H$6","v":1.7589153156805811E-2},{"$f":"'Population 2016'!I130/'Population 2016'!I$6","v":3.2096727202097698E-2},{"$f":"'Population 2016'!J130/'Population 2016'!J$6","v":1.8775376094252387E-2},{"$f":"'Population 2016'!K130/'Population 2016'!K$6","v":1.9208824648155192E-2},{"$f":"'Population 2016'!L130/'Population 2016'!L$6","v":3.4347903816930363E-2},{"$f":"'Population 2016'!M130/'Population 2016'!M$6","v":3.4347903816930363E-2},{"$f":"'Population 2016'!N130/'Population 2016'!N$6","v":1.0704465585437221E-2},{"$f":"'Population 2016'!O130/'Population 2016'!O$6","v":1.6476530822623875E-2},{"$f":"'Population 2016'!P130/'Population 2016'!P$6","v":2.3418089549082834E-2},{"$f":"'Population 2016'!Q130/'Population 2016'!Q$6","v":2.9441194581280788E-2},{"$f":"'Population 2016'!R130/'Population 2016'!R$6","v":1.7244323032269079E-2},{"$f":"'Population 2016'!S130/'Population 2016'!S$6","v":1.9347320573659236E-2},{"$f":"'Population 2016'!T130/'Population 2016'!T$6","v":1.1951821852110954E-2},{"$f":"'Population 2016'!U130/'Population 2016'!U$6","v":4.6944035346097202E-2},{"$f":"'Population 2016'!V130/'Population 2016'!V$6","v":2.4710124434389139E-2},{"$f":"'Population 2016'!W130/'Population 2016'!W$6","v":1.9490155440414509E-2},{"$f":"'Population 2016'!X130/'Population 2016'!X$6","v":1.9490155440414509E-2},{"$f":"'Population 2016'!Y130/'Population 2016'!Y$6","v":2.2160608963048847E-2},{"$f":"'Population 2016'!Z130/'Population 2016'!Z$6","v":6.2220682908452349E-3},{"$f":"'Population 2016'!AA130/'Population 2016'!AA$6","v":1.1837492266446691E-2},{"$f":"'Population 2016'!AB130/'Population 2016'!AB$6","v":2.303516956755787E-2},{"$f":"'Population 2016'!AC130/'Population 2016'!AC$6","v":8.7712472717510984E-3},{"$f":"'Population 2016'!AD130/'Population 2016'!AD$6","v":2.9633246046188215E-2},{"$f":"'Population 2016'!AE130/'Population 2016'!AE$6","v":2.9279868079715245E-2},{"$f":"'Population 2016'!AF130/'Population 2016'!AF$6","v":7.4952981524504924E-3},{"$f":"'Population 2016'!AG130/'Population 2016'!AG$6","v":2.9279868079715245E-2},{"$f":"'Population 2016'!AH130/'Population 2016'!AH$6","v":1.7348497827067433E-2},{"$f":"'Population 2016'!AI130/'Population 2016'!AI$6","v":1.8176339369792037E-2},{"$f":"'Population 2016'!AJ130/'Population 2016'!AJ$6","v":2.7029514634595325E-2},{"$f":"'Population 2016'!AK130/'Population 2016'!AK$6","v":3.0231459612659425E-2},{"$f":"'Population 2016'!AL130/'Population 2016'!AL$6","v":1.3072185704980163E-2},{"$f":"'Population 2016'!AM130/'Population 2016'!AM$6","v":1.5623474865788189E-2},{"$f":"'Population 2016'!AN130/'Population 2016'!AN$6","v":4.6520569011918492E-2},{"$f":"'Population 2016'!AO130/'Population 2016'!AO$6","v":4.6520569011918492E-2},{"$f":"'Population 2016'!AP130/'Population 2016'!AP$6","v":2.0828334213178482E-2},{"$f":"'Population 2016'!AQ130/'Population 2016'!AQ$6","v":1.2394200338558916E-2},{"$f":"'Population 2016'!AR130/'Population 2016'!AR$6","v":1.6801882814681344E-2},{"$f":"'Population 2016'!AS130/'Population 2016'!AS$6","v":3.2096727202097698E-2},{"$f":"'Population 2016'!AT130/'Population 2016'!AT$6","v":3.6565977742448331E-2},{"$f":"'Population 2016'!AU130/'Population 2016'!AU$6","v":3.6565977742448331E-2},{"$f":"'Population 2016'!AV130/'Population 2016'!AV$6","v":2.6402954843321814E-2},{"$f":"'Population 2016'!AW130/'Population 2016'!AW$6","v":1.9664370715566877E-2},{"$f":"'Population 2016'!AX130/'Population 2016'!AX$6","v":1.8352875747323538E-2},{"$f":"'Population 2016'!AY130/'Population 2016'!AY$6","v":1.7675866487227885E-2},{"$f":"'Population 2016'!AZ130/'Population 2016'!AZ$6","v":1.5721023295698158E-2},{"$f":"'Population 2016'!BA130/'Population 2016'!BA$6","v":1.4005937082860159E-2},{"$f":"'Population 2016'!BB130/'Population 2016'!BB$6","v":2.0723961371443386E-2},{"$f":"'Population 2016'!BC130/'Population 2016'!BC$6","v":4.6944035346097202E-2},128]
[null,"Male 70-74",{"$f":"'Population 2016'!C131/'Population 2016'!C$6","v":1.204905687441727E-2},{"$f":"'Population 2016'!D131/'Population 2016'!D$6","v":1.4424711636544347E-2},{"$f":"'Population 2016'!E131/'Population 2016'!E$6","v":2.0827292935150284E-2},{"$f":"'Population 2016'!F131/'Population 2016'!F$6","v":1.757119362936034E-2},{"$f":"'Population 2016'!G131/'Population 2016'!G$6","v":2.4235978954438599E-2},{"$f":"'Population 2016'!H131/'Population 2016'!H$6","v":1.299212363684063E-2},{"$f":"'Population 2016'!I131/'Population 2016'!I$6","v":2.3016412547343885E-2},{"$f":"'Population 2016'!J131/'Population 2016'!J$6","v":1.2462155882560022E-2},{"$f":"'Population 2016'!K131/'Population 2016'!K$6","v":1.3645872955496387E-2},{"$f":"'Population 2016'!L131/'Population 2016'!L$6","v":2.5945293644408687E-2},{"$f":"'Population 2016'!M131/'Population 2016'!M$6","v":2.5945293644408687E-2},{"$f":"'Population 2016'!N131/'Population 2016'!N$6","v":7.3225602493787586E-3},{"$f":"'Population 2016'!O131/'Population 2016'!O$6","v":1.2404645728815888E-2},{"$f":"'Population 2016'!P131/'Population 2016'!P$6","v":1.6863138975524661E-2},{"$f":"'Population 2016'!Q131/'Population 2016'!Q$6","v":2.1012931034482759E-2},{"$f":"'Population 2016'!R131/'Population 2016'!R$6","v":1.0329520232200785E-2},{"$f":"'Population 2016'!S131/'Population 2016'!S$6","v":1.4254674396826567E-2},{"$f":"'Population 2016'!T131/'Population 2016'!T$6","v":8.6899353522753141E-3},{"$f":"'Population 2016'!U131/'Population 2016'!U$6","v":3.0007363770250369E-2},{"$f":"'Population 2016'!V131/'Population 2016'!V$6","v":1.7321832579185521E-2},{"$f":"'Population 2016'!W131/'Population 2016'!W$6","v":1.4026943005181347E-2},{"$f":"'Population 2016'!X131/'Population 2016'!X$6","v":1.4026943005181347E-2},{"$f":"'Population 2016'!Y131/'Population 2016'!Y$6","v":1.5234158390885719E-2},{"$f":"'Population 2016'!Z131/'Population 2016'!Z$6","v":4.6057888324811409E-3},{"$f":"'Population 2016'!AA131/'Population 2016'!AA$6","v":9.2402682215014659E-3},{"$f":"'Population 2016'!AB131/'Population 2016'!AB$6","v":1.5711914588193075E-2},{"$f":"'Population 2016'!AC131/'Population 2016'!AC$6","v":6.7423249154777787E-3},{"$f":"'Population 2016'!AD131/'Population 2016'!AD$6","v":2.2310002515053332E-2},{"$f":"'Population 2016'!AE131/'Population 2016'!AE$6","v":2.1618034468196351E-2},{"$f":"'Population 2016'!AF131/'Population 2016'!AF$6","v":5.9741121805509459E-3},{"$f":"'Population 2016'!AG131/'Population 2016'!AG$6","v":2.1618034468196351E-2},{"$f":"'Population 2016'!AH131/'Population 2016'!AH$6","v":1.3729857107394963E-2},{"$f":"'Population 2016'!AI131/'Population 2016'!AI$6","v":1.3614467411911926E-2},{"$f":"'Population 2016'!AJ131/'Population 2016'!AJ$6","v":2.0862735472786404E-2},{"$f":"'Population 2016'!AK131/'Population 2016'!AK$6","v":2.3460872303574239E-2},{"$f":"'Population 2016'!AL131/'Population 2016'!AL$6","v":9.0306152661810864E-3},{"$f":"'Population 2016'!AM131/'Population 2016'!AM$6","v":1.2231576378721328E-2},{"$f":"'Population 2016'!AN131/'Population 2016'!AN$6","v":3.767781622452903E-2},{"$f":"'Population 2016'!AO131/'Population 2016'!AO$6","v":3.767781622452903E-2},{"$f":"'Population 2016'!AP131/'Population 2016'!AP$6","v":1.3965542064596631E-2},{"$f":"'Population 2016'!AQ131/'Population 2016'!AQ$6","v":1.0362846838890116E-2},{"$f":"'Population 2016'!AR131/'Population 2016'!AR$6","v":1.2463925718348739E-2},{"$f":"'Population 2016'!AS131/'Population 2016'!AS$6","v":2.3016412547343885E-2},{"$f":"'Population 2016'!AT131/'Population 2016'!AT$6","v":3.8155802861685212E-2},{"$f":"'Population 2016'!AU131/'Population 2016'!AU$6","v":3.8155802861685212E-2},{"$f":"'Population 2016'!AV131/'Population 2016'!AV$6","v":2.0183486238532111E-2},{"$f":"'Population 2016'!AW131/'Population 2016'!AW$6","v":1.5741324662773649E-2},{"$f":"'Population 2016'!AX131/'Population 2016'!AX$6","v":1.1308337581684201E-2},{"$f":"'Population 2016'!AY131/'Population 2016'!AY$6","v":1.2413093298133521E-2},{"$f":"'Population 2016'!AZ131/'Population 2016'!AZ$6","v":1.0674217521795055E-2},{"$f":"'Population 2016'!BA131/'Population 2016'!BA$6","v":1.1754627139242524E-2},{"$f":"'Population 2016'!BB131/'Population 2016'!BB$6","v":1.6138440598872254E-2},{"$f":"'Population 2016'!BC131/'Population 2016'!BC$6","v":3.0007363770250369E-2},129]
[null,"Male 75-79",{"$f":"'Population 2016'!C132/'Population 2016'!C$6","v":1.000502044036434E-2},{"$f":"'Population 2016'!D132/'Population 2016'!D$6","v":1.1560693641618497E-2},{"$f":"'Population 2016'!E132/'Population 2016'!E$6","v":1.5753358461389776E-2},{"$f":"'Population 2016'!F132/'Population 2016'!F$6","v":1.3113477018956115E-2},{"$f":"'Population 2016'!G132/'Population 2016'!G$6","v":1.7967088324191201E-2},{"$f":"'Population 2016'!H132/'Population 2016'!H$6","v":9.9751366885885151E-3},{"$f":"'Population 2016'!I132/'Population 2016'!I$6","v":1.6995241332426921E-2},{"$f":"'Population 2016'!J132/'Population 2016'!J$6","v":9.92748010983595E-3},{"$f":"'Population 2016'!K132/'Population 2016'!K$6","v":1.0174971472042603E-2},{"$f":"'Population 2016'!L132/'Population 2016'!L$6","v":2.0537230714221866E-2},{"$f":"'Population 2016'!M132/'Population 2016'!M$6","v":2.0537230714221866E-2},{"$f":"'Population 2016'!N132/'Population 2016'!N$6","v":6.5579555647046718E-3},{"$f":"'Population 2016'!O132/'Population 2016'!O$6","v":9.8790461136691633E-3},{"$f":"'Population 2016'!P132/'Population 2016'!P$6","v":1.4907226304382301E-2},{"$f":"'Population 2016'!Q132/'Population 2016'!Q$6","v":1.7818657635467982E-2},{"$f":"'Population 2016'!R132/'Population 2016'!R$6","v":8.366057708724603E-3},{"$f":"'Population 2016'!S132/'Population 2016'!S$6","v":1.0600911204873789E-2},{"$f":"'Population 2016'!T132/'Population 2016'!T$6","v":6.3214854647977549E-3},{"$f":"'Population 2016'!U132/'Population 2016'!U$6","v":2.6693667157584682E-2},{"$f":"'Population 2016'!V132/'Population 2016'!V$6","v":1.2814621040723981E-2},{"$f":"'Population 2016'!W132/'Population 2016'!W$6","v":1.0578238341968912E-2},{"$f":"'Population 2016'!X132/'Population 2016'!X$6","v":1.0578238341968912E-2},{"$f":"'Population 2016'!Y132/'Population 2016'!Y$6","v":1.1574330795987296E-2},{"$f":"'Population 2016'!Z132/'Population 2016'!Z$6","v":3.4361129086650198E-3},{"$f":"'Population 2016'!AA132/'Population 2016'!AA$6","v":6.9417624377409899E-3},{"$f":"'Population 2016'!AB132/'Population 2016'!AB$6","v":1.2235331060470124E-2},{"$f":"'Population 2016'!AC132/'Population 2016'!AC$6","v":5.215283640622021E-3},{"$f":"'Population 2016'!AD132/'Population 2016'!AD$6","v":1.5770863846848046E-2},{"$f":"'Population 2016'!AE132/'Population 2016'!AE$6","v":1.4981800631447705E-2},{"$f":"'Population 2016'!AF132/'Population 2016'!AF$6","v":4.20400486779511E-3},{"$f":"'Population 2016'!AG132/'Population 2016'!AG$6","v":1.4981800631447705E-2},{"$f":"'Population 2016'!AH132/'Population 2016'!AH$6","v":1.0044787234414498E-2},{"$f":"'Population 2016'!AI132/'Population 2016'!AI$6","v":1.006122952912274E-2},{"$f":"'Population 2016'!AJ132/'Population 2016'!AJ$6","v":1.4481192857581151E-2},{"$f":"'Population 2016'!AK132/'Population 2016'!AK$6","v":1.6296646197449222E-2},{"$f":"'Population 2016'!AL132/'Population 2016'!AL$6","v":6.9284064665127024E-3},{"$f":"'Population 2016'!AM132/'Population 2016'!AM$6","v":9.0836993655441685E-3},{"$f":"'Population 2016'!AN132/'Population 2016'!AN$6","v":3.1141868512110725E-2},{"$f":"'Population 2016'!AO132/'Population 2016'!AO$6","v":3.1141868512110725E-2},{"$f":"'Population 2016'!AP132/'Population 2016'!AP$6","v":1.1086048855401449E-2},{"$f":"'Population 2016'!AQ132/'Population 2016'!AQ$6","v":8.6700522558327813E-3},{"$f":"'Population 2016'!AR132/'Population 2016'!AR$6","v":9.436116446029031E-3},{"$f":"'Population 2016'!AS132/'Population 2016'!AS$6","v":1.6995241332426921E-2},{"$f":"'Population 2016'!AT132/'Population 2016'!AT$6","v":1.2718600953895072E-2},{"$f":"'Population 2016'!AU132/'Population 2016'!AU$6","v":1.2718600953895072E-2},{"$f":"'Population 2016'!AV132/'Population 2016'!AV$6","v":1.5012510425354461E-2},{"$f":"'Population 2016'!AW132/'Population 2016'!AW$6","v":1.1335064169239715E-2},{"$f":"'Population 2016'!AX132/'Population 2016'!AX$6","v":9.6862399777540905E-3},{"$f":"'Population 2016'!AY132/'Population 2016'!AY$6","v":9.7000133289190243E-3},{"$f":"'Population 2016'!AZ132/'Population 2016'!AZ$6","v":8.7537516078319277E-3},{"$f":"'Population 2016'!BA132/'Population 2016'!BA$6","v":8.5470085470085479E-3},{"$f":"'Population 2016'!BB132/'Population 2016'!BB$6","v":1.1650139347981075E-2},{"$f":"'Population 2016'!BC132/'Population 2016'!BC$6","v":2.6693667157584682E-2},130]
[null,"Male 80-84",{"$f":"'Population 2016'!C133/'Population 2016'!C$6","v":8.0864950154199231E-3},{"$f":"'Population 2016'!D133/'Population 2016'!D$6","v":9.4028718646195688E-3},{"$f":"'Population 2016'!E133/'Population 2016'!E$6","v":1.2950613704455398E-2},{"$f":"'Population 2016'!F133/'Population 2016'!F$6","v":9.8242880637063965E-3},{"$f":"'Population 2016'!G133/'Population 2016'!G$6","v":1.1810142169483936E-2},{"$f":"'Population 2016'!H133/'Population 2016'!H$6","v":6.1949593660749957E-3},{"$f":"'Population 2016'!I133/'Population 2016'!I$6","v":1.0731280955618141E-2},{"$f":"'Population 2016'!J133/'Population 2016'!J$6","v":6.3601586519279963E-3},{"$f":"'Population 2016'!K133/'Population 2016'!K$6","v":6.0384176492963102E-3},{"$f":"'Population 2016'!L133/'Population 2016'!L$6","v":1.3028515240904622E-2},{"$f":"'Population 2016'!M133/'Population 2016'!M$6","v":1.3028515240904622E-2},{"$f":"'Population 2016'!N133/'Population 2016'!N$6","v":4.3670690643885365E-3},{"$f":"'Population 2016'!O133/'Population 2016'!O$6","v":6.1335990653563332E-3},{"$f":"'Population 2016'!P133/'Population 2016'!P$6","v":1.0678225934344769E-2},{"$f":"'Population 2016'!Q133/'Population 2016'!Q$6","v":1.2469211822660099E-2},{"$f":"'Population 2016'!R133/'Population 2016'!R$6","v":7.0001707358716067E-3},{"$f":"'Population 2016'!S133/'Population 2016'!S$6","v":7.2075674196908635E-3},{"$f":"'Population 2016'!T133/'Population 2016'!T$6","v":4.6020414183727655E-3},{"$f":"'Population 2016'!U133/'Population 2016'!U$6","v":1.638438880706922E-2},{"$f":"'Population 2016'!V133/'Population 2016'!V$6","v":9.2795531674208145E-3},{"$f":"'Population 2016'!W133/'Population 2016'!W$6","v":7.2787564766839379E-3},{"$f":"'Population 2016'!X133/'Population 2016'!X$6","v":7.2787564766839379E-3},{"$f":"'Population 2016'!Y133/'Population 2016'!Y$6","v":8.0254070676009474E-3},{"$f":"'Population 2016'!Z133/'Population 2016'!Z$6","v":2.43049542611142E-3},{"$f":"'Population 2016'!AA133/'Population 2016'!AA$6","v":4.7582444365286188E-3},{"$f":"'Population 2016'!AB133/'Population 2016'!AB$6","v":9.7232190920509606E-3},{"$f":"'Population 2016'!AC133/'Population 2016'!AC$6","v":3.635719927013263E-3},{"$f":"'Population 2016'!AD133/'Population 2016'!AD$6","v":1.0311718669092954E-2},{"$f":"'Population 2016'!AE133/'Population 2016'!AE$6","v":9.7733625595752809E-3},{"$f":"'Population 2016'!AF133/'Population 2016'!AF$6","v":2.9593981635136629E-3},{"$f":"'Population 2016'!AG133/'Population 2016'!AG$6","v":9.7733625595752809E-3},{"$f":"'Population 2016'!AH133/'Population 2016'!AH$6","v":6.7757736374156963E-3},{"$f":"'Population 2016'!AI133/'Population 2016'!AI$6","v":6.8679191586066618E-3},{"$f":"'Population 2016'!AJ133/'Population 2016'!AJ$6","v":9.0200650426458858E-3},{"$f":"'Population 2016'!AK133/'Population 2016'!AK$6","v":1.1651708392379154E-2},{"$f":"'Population 2016'!AL133/'Population 2016'!AL$6","v":4.3228518979096346E-3},{"$f":"'Population 2016'!AM133/'Population 2016'!AM$6","v":6.1127379209370428E-3},{"$f":"'Population 2016'!AN133/'Population 2016'!AN$6","v":1.3456362937331795E-2},{"$f":"'Population 2016'!AO133/'Population 2016'!AO$6","v":1.3456362937331795E-2},{"$f":"'Population 2016'!AP133/'Population 2016'!AP$6","v":7.1987330229879541E-3},{"$f":"'Population 2016'!AQ133/'Population 2016'!AQ$6","v":6.0793405461102524E-3},{"$f":"'Population 2016'!AR133/'Population 2016'!AR$6","v":6.4054811430276732E-3},{"$f":"'Population 2016'!AS133/'Population 2016'!AS$6","v":1.0731280955618141E-2},{"$f":"'Population 2016'!AT133/'Population 2016'!AT$6","v":9.538950715421303E-3},{"$f":"'Population 2016'!AU133/'Population 2016'!AU$6","v":9.538950715421303E-3},{"$f":"'Population 2016'!AV133/'Population 2016'!AV$6","v":9.293458834743239E-3},{"$f":"'Population 2016'!AW133/'Population 2016'!AW$6","v":7.6659104497170333E-3},{"$f":"'Population 2016'!AX133/'Population 2016'!AX$6","v":6.6737729990267412E-3},{"$f":"'Population 2016'!AY133/'Population 2016'!AY$6","v":6.6730588149301094E-3},{"$f":"'Population 2016'!AZ133/'Population 2016'!AZ$6","v":6.0204373302844075E-3},{"$f":"'Population 2016'!BA133/'Population 2016'!BA$6","v":5.2796206642360486E-3},{"$f":"'Population 2016'!BB133/'Population 2016'!BB$6","v":7.7289519735562898E-3},{"$f":"'Population 2016'!BC133/'Population 2016'!BC$6","v":1.638438880706922E-2},131]
[null,"Male 85-89",{"$f":"'Population 2016'!C134/'Population 2016'!C$6","v":4.1418633005809368E-3},{"$f":"'Population 2016'!D134/'Population 2016'!D$6","v":4.3679543849554046E-3},{"$f":"'Population 2016'!E134/'Population 2016'!E$6","v":4.9772881028317386E-3},{"$f":"'Population 2016'!F134/'Population 2016'!F$6","v":5.2800138492166537E-3},{"$f":"'Population 2016'!G134/'Population 2016'!G$6","v":5.8211127280868693E-3},{"$f":"'Population 2016'!H134/'Population 2016'!H$6","v":3.2793336394044731E-3},{"$f":"'Population 2016'!I134/'Population 2016'!I$6","v":7.3322326891327571E-3},{"$f":"'Population 2016'!J134/'Population 2016'!J$6","v":2.9805909549625665E-3},{"$f":"'Population 2016'!K134/'Population 2016'!K$6","v":2.9478889311525293E-3},{"$f":"'Population 2016'!L134/'Population 2016'!L$6","v":6.346652364351479E-3},{"$f":"'Population 2016'!M134/'Population 2016'!M$6","v":6.346652364351479E-3},{"$f":"'Population 2016'!N134/'Population 2016'!N$6","v":2.1320707553412047E-3},{"$f":"'Population 2016'!O134/'Population 2016'!O$6","v":3.2815614047144526E-3},{"$f":"'Population 2016'!P134/'Population 2016'!P$6","v":6.0791880319289527E-3},{"$f":"'Population 2016'!Q134/'Population 2016'!Q$6","v":5.772783251231527E-3},{"$f":"'Population 2016'!R134/'Population 2016'!R$6","v":2.731773945705993E-3},{"$f":"'Population 2016'!S134/'Population 2016'!S$6","v":3.6011532107871505E-3},{"$f":"'Population 2016'!T134/'Population 2016'!T$6","v":2.2925920618999856E-3},{"$f":"'Population 2016'!U134/'Population 2016'!U$6","v":9.0206185567010301E-3},{"$f":"'Population 2016'!V134/'Population 2016'!V$6","v":4.4718608597285065E-3},{"$f":"'Population 2016'!W134/'Population 2016'!W$6","v":3.5647668393782384E-3},{"$f":"'Population 2016'!X134/'Population 2016'!X$6","v":3.5647668393782384E-3},{"$f":"'Population 2016'!Y134/'Population 2016'!Y$6","v":3.83122447950799E-3},{"$f":"'Population 2016'!Z134/'Population 2016'!Z$6","v":1.2030952359251528E-3},{"$f":"'Population 2016'!AA134/'Population 2016'!AA$6","v":2.2510108300993021E-3},{"$f":"'Population 2016'!AB134/'Population 2016'!AB$6","v":4.5532029427597341E-3},{"$f":"'Population 2016'!AC134/'Population 2016'!AC$6","v":1.7390763053771305E-3},{"$f":"'Population 2016'!AD134/'Population 2016'!AD$6","v":5.3851730208749424E-3},{"$f":"'Population 2016'!AE134/'Population 2016'!AE$6","v":5.2285478713777226E-3},{"$f":"'Population 2016'!AF134/'Population 2016'!AF$6","v":1.3552384113286868E-3},{"$f":"'Population 2016'!AG134/'Population 2016'!AG$6","v":5.2285478713777226E-3},{"$f":"'Population 2016'!AH134/'Population 2016'!AH$6","v":3.1711180026501736E-3},{"$f":"'Population 2016'!AI134/'Population 2016'!AI$6","v":3.2979404612931444E-3},{"$f":"'Population 2016'!AJ134/'Population 2016'!AJ$6","v":4.8168374547462719E-3},{"$f":"'Population 2016'!AK134/'Population 2016'!AK$6","v":5.6683986773736423E-3},{"$f":"'Population 2016'!AL134/'Population 2016'!AL$6","v":2.013383075738734E-3},{"$f":"'Population 2016'!AM134/'Population 2016'!AM$6","v":2.7269399707174229E-3},{"$f":"'Population 2016'!AN134/'Population 2016'!AN$6","v":6.1514801999231067E-3},{"$f":"'Population 2016'!AO134/'Population 2016'!AO$6","v":6.1514801999231067E-3},{"$f":"'Population 2016'!AP134/'Population 2016'!AP$6","v":3.887315832413495E-3},{"$f":"'Population 2016'!AQ134/'Population 2016'!AQ$6","v":2.5612718039302275E-3},{"$f":"'Population 2016'!AR134/'Population 2016'!AR$6","v":3.1470677670853335E-3},{"$f":"'Population 2016'!AS134/'Population 2016'!AS$6","v":7.3322326891327571E-3},{"$f":"'Population 2016'!AT134/'Population 2016'!AT$6","v":1.589825119236884E-3},{"$f":"'Population 2016'!AU134/'Population 2016'!AU$6","v":1.589825119236884E-3},{"$f":"'Population 2016'!AV134/'Population 2016'!AV$6","v":5.3139521029429287E-3},{"$f":"'Population 2016'!AW134/'Population 2016'!AW$6","v":3.767434622724183E-3},{"$f":"'Population 2016'!AX134/'Population 2016'!AX$6","v":3.0124669787273484E-3},{"$f":"'Population 2016'!AY134/'Population 2016'!AY$6","v":3.3451287100616138E-3},{"$f":"'Population 2016'!AZ134/'Population 2016'!AZ$6","v":3.1084750607403172E-3},{"$f":"'Population 2016'!BA134/'Population 2016'!BA$6","v":2.5501563963102425E-3},{"$f":"'Population 2016'!BB134/'Population 2016'!BB$6","v":3.3864800051850411E-3},{"$f":"'Population 2016'!BC134/'Population 2016'!BC$6","v":9.0206185567010301E-3},132]
[null,"Male 90+",{"$f":"'Population 2016'!C135/'Population 2016'!C$6","v":1.6675034067273901E-3},{"$f":"'Population 2016'!D135/'Population 2016'!D$6","v":1.9485784531687285E-3},{"$f":"'Population 2016'!E135/'Population 2016'!E$6","v":2.7060983860056056E-3},{"$f":"'Population 2016'!F135/'Population 2016'!F$6","v":2.9429585389076432E-3},{"$f":"'Population 2016'!G135/'Population 2016'!G$6","v":1.9590283219523118E-3},{"$f":"'Population 2016'!H135/'Population 2016'!H$6","v":1.2759589069682858E-3},{"$f":"'Population 2016'!I135/'Population 2016'!I$6","v":2.7192386131883071E-3},{"$f":"'Population 2016'!J135/'Population 2016'!J$6","v":8.6836114435917295E-4},{"$f":"'Population 2016'!K135/'Population 2016'!K$6","v":9.5093191327500946E-4},{"$f":"'Population 2016'!L135/'Population 2016'!L$6","v":2.7710735675337446E-3},{"$f":"'Population 2016'!M135/'Population 2016'!M$6","v":2.7710735675337446E-3},{"$f":"'Population 2016'!N135/'Population 2016'!N$6","v":9.8516372833007404E-4},{"$f":"'Population 2016'!O135/'Population 2016'!O$6","v":1.2026664834032025E-3},{"$f":"'Population 2016'!P135/'Population 2016'!P$6","v":3.3832002960300258E-3},{"$f":"'Population 2016'!Q135/'Population 2016'!Q$6","v":2.5785098522167487E-3},{"$f":"'Population 2016'!R135/'Population 2016'!R$6","v":1.4512549086563087E-3},{"$f":"'Population 2016'!S135/'Population 2016'!S$6","v":1.5730384368522396E-3},{"$f":"'Population 2016'!T135/'Population 2016'!T$6","v":1.2221538565275658E-3},{"$f":"'Population 2016'!U135/'Population 2016'!U$6","v":1.6568483063328424E-3},{"$f":"'Population 2016'!V135/'Population 2016'!V$6","v":1.6438065610859729E-3},{"$f":"'Population 2016'!W135/'Population 2016'!W$6","v":1.5917098445595854E-3},{"$f":"'Population 2016'!X135/'Population 2016'!X$6","v":1.5917098445595854E-3},{"$f":"'Population 2016'!Y135/'Population 2016'!Y$6","v":1.3106820587790492E-3},{"$f":"'Population 2016'!Z135/'Population 2016'!Z$6","v":4.9825156235284106E-4},{"$f":"'Population 2016'!AA135/'Population 2016'!AA$6","v":8.5740890030434262E-4},{"$f":"'Population 2016'!AB135/'Population 2016'!AB$6","v":2.018661403193971E-3},{"$f":"'Population 2016'!AC135/'Population 2016'!AC$6","v":7.2753304050452664E-4},{"$f":"'Population 2016'!AD135/'Population 2016'!AD$6","v":2.5298477653011406E-3},{"$f":"'Population 2016'!AE135/'Population 2016'!AE$6","v":2.7349327327206548E-3},{"$f":"'Population 2016'!AF135/'Population 2016'!AF$6","v":4.9784268171257882E-4},{"$f":"'Population 2016'!AG135/'Population 2016'!AG$6","v":2.7349327327206548E-3},{"$f":"'Population 2016'!AH135/'Population 2016'!AH$6","v":1.0908366227418459E-3},{"$f":"'Population 2016'!AI135/'Population 2016'!AI$6","v":1.4648212708789346E-3},{"$f":"'Population 2016'!AJ135/'Population 2016'!AJ$6","v":1.9635515739093085E-3},{"$f":"'Population 2016'!AK135/'Population 2016'!AK$6","v":2.4405605416469847E-3},{"$f":"'Population 2016'!AL135/'Population 2016'!AL$6","v":8.2904009001006696E-4},{"$f":"'Population 2016'!AM135/'Population 2016'!AM$6","v":9.0287945339189845E-4},{"$f":"'Population 2016'!AN135/'Population 2016'!AN$6","v":3.4602076124567475E-3},{"$f":"'Population 2016'!AO135/'Population 2016'!AO$6","v":3.4602076124567475E-3},{"$f":"'Population 2016'!AP135/'Population 2016'!AP$6","v":1.4397466045975907E-3},{"$f":"'Population 2016'!AQ135/'Population 2016'!AQ$6","v":1.0745565614190035E-3},{"$f":"'Population 2016'!AR135/'Population 2016'!AR$6","v":1.2920612276503362E-3},{"$f":"'Population 2016'!AS135/'Population 2016'!AS$6","v":2.7192386131883071E-3},{"$f":"'Population 2016'!AT135/'Population 2016'!AT$6","v":0},{"$f":"'Population 2016'!AU135/'Population 2016'!AU$6","v":0},{"$f":"'Population 2016'!AV135/'Population 2016'!AV$6","v":2.0969855832241153E-3},{"$f":"'Population 2016'!AW135/'Population 2016'!AW$6","v":1.3431723437538391E-3},{"$f":"'Population 2016'!AX135/'Population 2016'!AX$6","v":7.878759790517681E-4},{"$f":"'Population 2016'!AY135/'Population 2016'!AY$6","v":1.5349755134858563E-3},{"$f":"'Population 2016'!AZ135/'Population 2016'!AZ$6","v":1.4738459339717022E-3},{"$f":"'Population 2016'!BA135/'Population 2016'!BA$6","v":7.570776801546032E-4},{"$f":"'Population 2016'!BB135/'Population 2016'!BB$6","v":1.199040767386091E-3},{"$f":"'Population 2016'!BC135/'Population 2016'!BC$6","v":1.6568483063328424E-3},133]
["SIMD Q3","Female 0-4",0,0,0,0,0,0,0,0,0,0,0,0,0,0,0,0,0,0,0,0,0,0,0,0,0,0,0,0,0,0,0,0,0,0,0,0,0,0,0,0,0,0,0,0,0,0,0,0,0,0,0,0,0,134]
[null,"Female 5-9",0,0,0,0,0,0,0,0,0,0,0,0,0,0,0,0,0,0,0,0,0,0,0,0,0,0,0,0,0,0,0,0,0,0,0,0,0,0,0,0,0,0,0,0,0,0,0,0,0,0,0,0,0,135]
[null,"Female 10-15",0,0,0,0,0,0,0,0,0,0,0,0,0,0,0,0,0,0,0,0,0,0,0,0,0,0,0,0,0,0,0,0,0,0,0,0,0,0,0,0,0,0,0,0,0,0,0,0,0,0,0,0,0,136]
[null,"Female 16-19",0,0,0,0,0,0,0,0,0,0,0,0,0,0,0,0,0,0,0,0,0,0,0,0,0,0,0,0,0,0,0,0,0,0,0,0,0,0,0,0,0,0,0,0,0,0,0,0,0,0,0,0,0,137]
[null,"Female 20-24",0,0,0,0,0,0,0,0,0,0,0,0,0,0,0,0,0,0,0,0,0,0,0,0,0,0,0,0,0,0,0,0,0,0,0,0,0,0,0,0,0,0,0,0,0,0,0,0,0,0,0,0,0,138]
[null,"Female 25-29",0,0,0,0,0,0,0,0,0,0,0,0,0,0,0,0,0,0,0,0,0,0,0,0,0,0,0,0,0,0,0,0,0,0,0,0,0,0,0,0,0,0,0,0,0,0,0,0,0,0,0,0,0,139]
[null,"Female 30-34",0,0,0,0,0,0,0,0,0,0,0,0,0,0,0,0,0,0,0,0,0,0,0,0,0,0,0,0,0,0,0,0,0,0,0,0,0,0,0,0,0,0,0,0,0,0,0,0,0,0,0,0,0,140]
[null,"Female 35-39",0,0,0,0,0,0,0,0,0,0,0,0,0,0,0,0,0,0,0,0,0,0,0,0,0,0,0,0,0,0,0,0,0,0,0,0,0,0,0,0,0,0,0,0,0,0,0,0,0,0,0,0,0,141]
[null,"Female 40-44",0,0,0,0,0,0,0,0,0,0,0,0,0,0,0,0,0,0,0,0,0,0,0,0,0,0,0,0,0,0,0,0,0,0,0,0,0,0,0,0,0,0,0,0,0,0,0,0,0,0,0,0,0,142]
[null,"Female 45-49",0,0,0,0,0,0,0,0,0,0,0,0,0,0,0,0,0,0,0,0,0,0,0,0,0,0,0,0,0,0,0,0,0,0,0,0,0,0,0,0,0,0,0,0,0,0,0,0,0,0,0,0,0,143]
[null,"Female 50-54",0,0,0,0,0,0,0,0,0,0,0,0,0,0,0,0,0,0,0,0,0,0,0,0,0,0,0,0,0,0,0,0,0,0,0,0,0,0,0,0,0,0,0,0,0,0,0,0,0,0,0,0,0,144]
[null,"Female 55-59",0,0,0,0,0,0,0,0,0,0,0,0,0,0,0,0,0,0,0,0,0,0,0,0,0,0,0,0,0,0,0,0,0,0,0,0,0,0,0,0,0,0,0,0,0,0,0,0,0,0,0,0,0,145]
[null,"Female 60-64",0,0,0,0,0,0,0,0,0,0,0,0,0,0,0,0,0,0,0,0,0,0,0,0,0,0,0,0,0,0,0,0,0,0,0,0,0,0,0,0,0,0,0,0,0,0,0,0,0,0,0,0,0,146]
[null,"Female 65-69",0,0,0,0,0,0,0,0,0,0,0,0,0,0,0,0,0,0,0,0,0,0,0,0,0,0,0,0,0,0,0,0,0,0,0,0,0,0,0,0,0,0,0,0,0,0,0,0,0,0,0,0,0,147]
[null,"Female 70-74",0,0,0,0,0,0,0,0,0,0,0,0,0,0,0,0,0,0,0,0,0,0,0,0,0,0,0,0,0,0,0,0,0,0,0,0,0,0,0,0,0,0,0,0,0,0,0,0,0,0,0,0,0,148]
[null,"Female 75-79",0,0,0,0,0,0,0,0,0,0,0,0,0,0,0,0,0,0,0,0,0,0,0,0,0,0,0,0,0,0,0,0,0,0,0,0,0,0,0,0,0,0,0,0,0,0,0,0,0,0,0,0,0,149]
[null,"Female 80-84",0,0,0,0,0,0,0,0,0,0,0,0,0,0,0,0,0,0,0,0,0,0,0,0,0,0,0,0,0,0,0,0,0,0,0,0,0,0,0,0,0,0,0,0,0,0,0,0,0,0,0,0,0,150]
[null,"Female 85-89",0,0,0,0,0,0,0,0,0,0,0,0,0,0,0,0,0,0,0,0,0,0,0,0,0,0,0,0,0,0,0,0,0,0,0,0,0,0,0,0,0,0,0,0,0,0,0,0,0,0,0,0,0,151]
[null,"Female 90+",0,0,0,0,0,0,0,0,0,0,0,0,0,0,0,0,0,0,0,0,0,0,0,0,0,0,0,0,0,0,0,0,0,0,0,0,0,0,0,0,0,0,0,0,0,0,0,0,0,0,0,0,0,152]
[null,"Male 0-4",0,0,0,0,0,0,0,0,0,0,0,0,0,0,0,0,0,0,0,0,0,0,0,0,0,0,0,0,0,0,0,0,0,0,0,0,0,0,0,0,0,0,0,0,0,0,0,0,0,0,0,0,0,153]
[null,"Male 5-9",0,0,0,0,0,0,0,0,0,0,0,0,0,0,0,0,0,0,0,0,0,0,0,0,0,0,0,0,0,0,0,0,0,0,0,0,0,0,0,0,0,0,0,0,0,0,0,0,0,0,0,0,0,154]
[null,"Male 10-15",0,0,0,0,0,0,0,0,0,0,0,0,0,0,0,0,0,0,0,0,0,0,0,0,0,0,0,0,0,0,0,0,0,0,0,0,0,0,0,0,0,0,0,0,0,0,0,0,0,0,0,0,0,155]
[null,"Male 16-19",0,0,0,0,0,0,0,0,0,0,0,0,0,0,0,0,0,0,0,0,0,0,0,0,0,0,0,0,0,0,0,0,0,0,0,0,0,0,0,0,0,0,0,0,0,0,0,0,0,0,0,0,0,156]
[null,"Male 20-24",0,0,0,0,0,0,0,0,0,0,0,0,0,0,0,0,0,0,0,0,0,0,0,0,0,0,0,0,0,0,0,0,0,0,0,0,0,0,0,0,0,0,0,0,0,0,0,0,0,0,0,0,0,157]
[null,"Male 25-29",0,0,0,0,0,0,0,0,0,0,0,0,0,0,0,0,0,0,0,0,0,0,0,0,0,0,0,0,0,0,0,0,0,0,0,0,0,0,0,0,0,0,0,0,0,0,0,0,0,0,0,0,0,158]
[null,"Male 30-34",0,0,0,0,0,0,0,0,0,0,0,0,0,0,0,0,0,0,0,0,0,0,0,0,0,0,0,0,0,0,0,0,0,0,0,0,0,0,0,0,0,0,0,0,0,0,0,0,0,0,0,0,0,159]
[null,"Male 35-39",0,0,0,0,0,0,0,0,0,0,0,0,0,0,0,0,0,0,0,0,0,0,0,0,0,0,0,0,0,0,0,0,0,0,0,0,0,0,0,0,0,0,0,0,0,0,0,0,0,0,0,0,0,160]
[null,"Male 40-44",0,0,0,0,0,0,0,0,0,0,0,0,0,0,0,0,0,0,0,0,0,0,0,0,0,0,0,0,0,0,0,0,0,0,0,0,0,0,0,0,0,0,0,0,0,0,0,0,0,0,0,0,0,161]
[null,"Male 45-49",0,0,0,0,0,0,0,0,0,0,0,0,0,0,0,0,0,0,0,0,0,0,0,0,0,0,0,0,0,0,0,0,0,0,0,0,0,0,0,0,0,0,0,0,0,0,0,0,0,0,0,0,0,162]
[null,"Male 50-54",0,0,0,0,0,0,0,0,0,0,0,0,0,0,0,0,0,0,0,0,0,0,0,0,0,0,0,0,0,0,0,0,0,0,0,0,0,0,0,0,0,0,0,0,0,0,0,0,0,0,0,0,0,163]
[null,"Male 55-59",0,0,0,0,0,0,0,0,0,0,0,0,0,0,0,0,0,0,0,0,0,0,0,0,0,0,0,0,0,0,0,0,0,0,0,0,0,0,0,0,0,0,0,0,0,0,0,0,0,0,0,0,0,164]
[null,"Male 60-64",0,0,0,0,0,0,0,0,0,0,0,0,0,0,0,0,0,0,0,0,0,0,0,0,0,0,0,0,0,0,0,0,0,0,0,0,0,0,0,0,0,0,0,0,0,0,0,0,0,0,0,0,0,165]
[null,"Male 65-69",0,0,0,0,0,0,0,0,0,0,0,0,0,0,0,0,0,0,0,0,0,0,0,0,0,0,0,0,0,0,0,0,0,0,0,0,0,0,0,0,0,0,0,0,0,0,0,0,0,0,0,0,0,166]
[null,"Male 70-74",0,0,0,0,0,0,0,0,0,0,0,0,0,0,0,0,0,0,0,0,0,0,0,0,0,0,0,0,0,0,0,0,0,0,0,0,0,0,0,0,0,0,0,0,0,0,0,0,0,0,0,0,0,167]
[null,"Male 75-79",0,0,0,0,0,0,0,0,0,0,0,0,0,0,0,0,0,0,0,0,0,0,0,0,0,0,0,0,0,0,0,0,0,0,0,0,0,0,0,0,0,0,0,0,0,0,0,0,0,0,0,0,0,168]
[null,"Male 80-84",0,0,0,0,0,0,0,0,0,0,0,0,0,0,0,0,0,0,0,0,0,0,0,0,0,0,0,0,0,0,0,0,0,0,0,0,0,0,0,0,0,0,0,0,0,0,0,0,0,0,0,0,0,169]
[null,"Male 85-89",0,0,0,0,0,0,0,0,0,0,0,0,0,0,0,0,0,0,0,0,0,0,0,0,0,0,0,0,0,0,0,0,0,0,0,0,0,0,0,0,0,0,0,0,0,0,0,0,0,0,0,0,0,170]
[null,"Male 90+",0,0,0,0,0,0,0,0,0,0,0,0,0,0,0,0,0,0,0,0,0,0,0,0,0,0,0,0,0,0,0,0,0,0,0,0,0,0,0,0,0,0,0,0,0,0,0,0,0,0,0,0,0,171]
["SIMD Q4","Female 0-4",0,0,0,0,0,0,0,0,0,0,0,0,0,0,0,0,0,0,0,0,0,0,0,0,0,0,0,0,0,0,0,0,0,0,0,0,0,0,0,0,0,0,0,0,0,0,0,0,0,0,0,0,0,172]
[null,"Female 5-9",0,0,0,0,0,0,0,0,0,0,0,0,0,0,0,0,0,0,0,0,0,0,0,0,0,0,0,0,0,0,0,0,0,0,0,0,0,0,0,0,0,0,0,0,0,0,0,0,0,0,0,0,0,173]
[null,"Female 10-15",0,0,0,0,0,0,0,0,0,0,0,0,0,0,0,0,0,0,0,0,0,0,0,0,0,0,0,0,0,0,0,0,0,0,0,0,0,0,0,0,0,0,0,0,0,0,0,0,0,0,0,0,0,174]
[null,"Female 16-19",0,0,0,0,0,0,0,0,0,0,0,0,0,0,0,0,0,0,0,0,0,0,0,0,0,0,0,0,0,0,0,0,0,0,0,0,0,0,0,0,0,0,0,0,0,0,0,0,0,0,0,0,0,175]
[null,"Female 20-24",0,0,0,0,0,0,0,0,0,0,0,0,0,0,0,0,0,0,0,0,0,0,0,0,0,0,0,0,0,0,0,0,0,0,0,0,0,0,0,0,0,0,0,0,0,0,0,0,0,0,0,0,0,176]
[null,"Female 25-29",0,0,0,0,0,0,0,0,0,0,0,0,0,0,0,0,0,0,0,0,0,0,0,0,0,0,0,0,0,0,0,0,0,0,0,0,0,0,0,0,0,0,0,0,0,0,0,0,0,0,0,0,0,177]
[null,"Female 30-34",0,0,0,0,0,0,0,0,0,0,0,0,0,0,0,0,0,0,0,0,0,0,0,0,0,0,0,0,0,0,0,0,0,0,0,0,0,0,0,0,0,0,0,0,0,0,0,0,0,0,0,0,0,178]
[null,"Female 35-39",0,0,0,0,0,0,0,0,0,0,0,0,0,0,0,0,0,0,0,0,0,0,0,0,0,0,0,0,0,0,0,0,0,0,0,0,0,0,0,0,0,0,0,0,0,0,0,0,0,0,0,0,0,179]
[null,"Female 40-44",0,0,0,0,0,0,0,0,0,0,0,0,0,0,0,0,0,0,0,0,0,0,0,0,0,0,0,0,0,0,0,0,0,0,0,0,0,0,0,0,0,0,0,0,0,0,0,0,0,0,0,0,0,180]
[null,"Female 45-49",0,0,0,0,0,0,0,0,0,0,0,0,0,0,0,0,0,0,0,0,0,0,0,0,0,0,0,0,0,0,0,0,0,0,0,0,0,0,0,0,0,0,0,0,0,0,0,0,0,0,0,0,0,181]
[null,"Female 50-54",0,0,0,0,0,0,0,0,0,0,0,0,0,0,0,0,0,0,0,0,0,0,0,0,0,0,0,0,0,0,0,0,0,0,0,0,0,0,0,0,0,0,0,0,0,0,0,0,0,0,0,0,0,182]
[null,"Female 55-59",0,0,0,0,0,0,0,0,0,0,0,0,0,0,0,0,0,0,0,0,0,0,0,0,0,0,0,0,0,0,0,0,0,0,0,0,0,0,0,0,0,0,0,0,0,0,0,0,0,0,0,0,0,183]
[null,"Female 60-64",0,0,0,0,0,0,0,0,0,0,0,0,0,0,0,0,0,0,0,0,0,0,0,0,0,0,0,0,0,0,0,0,0,0,0,0,0,0,0,0,0,0,0,0,0,0,0,0,0,0,0,0,0,184]
[null,"Female 65-69",0,0,0,0,0,0,0,0,0,0,0,0,0,0,0,0,0,0,0,0,0,0,0,0,0,0,0,0,0,0,0,0,0,0,0,0,0,0,0,0,0,0,0,0,0,0,0,0,0,0,0,0,0,185]
[null,"Female 70-74",0,0,0,0,0,0,0,0,0,0,0,0,0,0,0,0,0,0,0,0,0,0,0,0,0,0,0,0,0,0,0,0,0,0,0,0,0,0,0,0,0,0,0,0,0,0,0,0,0,0,0,0,0,186]
[null,"Female 75-79",0,0,0,0,0,0,0,0,0,0,0,0,0,0,0,0,0,0,0,0,0,0,0,0,0,0,0,0,0,0,0,0,0,0,0,0,0,0,0,0,0,0,0,0,0,0,0,0,0,0,0,0,0,187]
[null,"Female 80-84",0,0,0,0,0,0,0,0,0,0,0,0,0,0,0,0,0,0,0,0,0,0,0,0,0,0,0,0,0,0,0,0,0,0,0,0,0,0,0,0,0,0,0,0,0,0,0,0,0,0,0,0,0,188]
[null,"Female 85-89",0,0,0,0,0,0,0,0,0,0,0,0,0,0,0,0,0,0,0,0,0,0,0,0,0,0,0,0,0,0,0,0,0,0,0,0,0,0,0,0,0,0,0,0,0,0,0,0,0,0,0,0,0,189]
[null,"Female 90+",0,0,0,0,0,0,0,0,0,0,0,0,0,0,0,0,0,0,0,0,0,0,0,0,0,0,0,0,0,0,0,0,0,0,0,0,0,0,0,0,0,0,0,0,0,0,0,0,0,0,0,0,0,190]
[null,"Male 0-4",0,0,0,0,0,0,0,0,0,0,0,0,0,0,0,0,0,0,0,0,0,0,0,0,0,0,0,0,0,0,0,0,0,0,0,0,0,0,0,0,0,0,0,0,0,0,0,0,0,0,0,0,0,191]
[null,"Male 5-9",0,0,0,0,0,0,0,0,0,0,0,0,0,0,0,0,0,0,0,0,0,0,0,0,0,0,0,0,0,0,0,0,0,0,0,0,0,0,0,0,0,0,0,0,0,0,0,0,0,0,0,0,0,192]
[null,"Male 10-15",0,0,0,0,0,0,0,0,0,0,0,0,0,0,0,0,0,0,0,0,0,0,0,0,0,0,0,0,0,0,0,0,0,0,0,0,0,0,0,0,0,0,0,0,0,0,0,0,0,0,0,0,0,193]
[null,"Male 16-19",0,0,0,0,0,0,0,0,0,0,0,0,0,0,0,0,0,0,0,0,0,0,0,0,0,0,0,0,0,0,0,0,0,0,0,0,0,0,0,0,0,0,0,0,0,0,0,0,0,0,0,0,0,194]
[null,"Male 20-24",0,0,0,0,0,0,0,0,0,0,0,0,0,0,0,0,0,0,0,0,0,0,0,0,0,0,0,0,0,0,0,0,0,0,0,0,0,0,0,0,0,0,0,0,0,0,0,0,0,0,0,0,0,195]
[null,"Male 25-29",0,0,0,0,0,0,0,0,0,0,0,0,0,0,0,0,0,0,0,0,0,0,0,0,0,0,0,0,0,0,0,0,0,0,0,0,0,0,0,0,0,0,0,0,0,0,0,0,0,0,0,0,0,196]
[null,"Male 30-34",0,0,0,0,0,0,0,0,0,0,0,0,0,0,0,0,0,0,0,0,0,0,0,0,0,0,0,0,0,0,0,0,0,0,0,0,0,0,0,0,0,0,0,0,0,0,0,0,0,0,0,0,0,197]
[null,"Male 35-39",0,0,0,0,0,0,0,0,0,0,0,0,0,0,0,0,0,0,0,0,0,0,0,0,0,0,0,0,0,0,0,0,0,0,0,0,0,0,0,0,0,0,0,0,0,0,0,0,0,0,0,0,0,198]
[null,"Male 40-44",0,0,0,0,0,0,0,0,0,0,0,0,0,0,0,0,0,0,0,0,0,0,0,0,0,0,0,0,0,0,0,0,0,0,0,0,0,0,0,0,0,0,0,0,0,0,0,0,0,0,0,0,0,199]
[null,"Male 45-49",0,0,0,0,0,0,0,0,0,0,0,0,0,0,0,0,0,0,0,0,0,0,0,0,0,0,0,0,0,0,0,0,0,0,0,0,0,0,0,0,0,0,0,0,0,0,0,0,0,0,0,0,0,200]
[null,"Male 50-54",0,0,0,0,0,0,0,0,0,0,0,0,0,0,0,0,0,0,0,0,0,0,0,0,0,0,0,0,0,0,0,0,0,0,0,0,0,0,0,0,0,0,0,0,0,0,0,0,0,0,0,0,0,201]
[null,"Male 55-59",0,0,0,0,0,0,0,0,0,0,0,0,0,0,0,0,0,0,0,0,0,0,0,0,0,0,0,0,0,0,0,0,0,0,0,0,0,0,0,0,0,0,0,0,0,0,0,0,0,0,0,0,0,202]
[null,"Male 60-64",0,0,0,0,0,0,0,0,0,0,0,0,0,0,0,0,0,0,0,0,0,0,0,0,0,0,0,0,0,0,0,0,0,0,0,0,0,0,0,0,0,0,0,0,0,0,0,0,0,0,0,0,0,203]
[null,"Male 65-69",0,0,0,0,0,0,0,0,0,0,0,0,0,0,0,0,0,0,0,0,0,0,0,0,0,0,0,0,0,0,0,0,0,0,0,0,0,0,0,0,0,0,0,0,0,0,0,0,0,0,0,0,0,204]
[null,"Male 70-74",0,0,0,0,0,0,0,0,0,0,0,0,0,0,0,0,0,0,0,0,0,0,0,0,0,0,0,0,0,0,0,0,0,0,0,0,0,0,0,0,0,0,0,0,0,0,0,0,0,0,0,0,0,205]
[null,"Male 75-79",0,0,0,0,0,0,0,0,0,0,0,0,0,0,0,0,0,0,0,0,0,0,0,0,0,0,0,0,0,0,0,0,0,0,0,0,0,0,0,0,0,0,0,0,0,0,0,0,0,0,0,0,0,206]
[null,"Male 80-84",0,0,0,0,0,0,0,0,0,0,0,0,0,0,0,0,0,0,0,0,0,0,0,0,0,0,0,0,0,0,0,0,0,0,0,0,0,0,0,0,0,0,0,0,0,0,0,0,0,0,0,0,0,207]
[null,"Male 85-89",0,0,0,0,0,0,0,0,0,0,0,0,0,0,0,0,0,0,0,0,0,0,0,0,0,0,0,0,0,0,0,0,0,0,0,0,0,0,0,0,0,0,0,0,0,0,0,0,0,0,0,0,0,208]
[null,"Male 90+",0,0,0,0,0,0,0,0,0,0,0,0,0,0,0,0,0,0,0,0,0,0,0,0,0,0,0,0,0,0,0,0,0,0,0,0,0,0,0,0,0,0,0,0,0,0,0,0,0,0,0,0,0,209]
["SIMD Q5 (least deprived)","Female 0-4",0,0,0,0,0,0,0,0,0,0,0,0,0,0,0,0,0,0,0,0,0,0,0,0,0,0,0,0,0,0,0,0,0,0,0,0,0,0,0,0,0,0,0,0,0,0,0,0,0,0,0,0,0,210]
[null,"Female 5-9",0,0,0,0,0,0,0,0,0,0,0,0,0,0,0,0,0,0,0,0,0,0,0,0,0,0,0,0,0,0,0,0,0,0,0,0,0,0,0,0,0,0,0,0,0,0,0,0,0,0,0,0,0,211]
[null,"Female 10-15",0,0,0,0,0,0,0,0,0,0,0,0,0,0,0,0,0,0,0,0,0,0,0,0,0,0,0,0,0,0,0,0,0,0,0,0,0,0,0,0,0,0,0,0,0,0,0,0,0,0,0,0,0,212]
[null,"Female 16-19",0,0,0,0,0,0,0,0,0,0,0,0,0,0,0,0,0,0,0,0,0,0,0,0,0,0,0,0,0,0,0,0,0,0,0,0,0,0,0,0,0,0,0,0,0,0,0,0,0,0,0,0,0,213]
[null,"Female 20-24",0,0,0,0,0,0,0,0,0,0,0,0,0,0,0,0,0,0,0,0,0,0,0,0,0,0,0,0,0,0,0,0,0,0,0,0,0,0,0,0,0,0,0,0,0,0,0,0,0,0,0,0,0,214]
[null,"Female 25-29",0,0,0,0,0,0,0,0,0,0,0,0,0,0,0,0,0,0,0,0,0,0,0,0,0,0,0,0,0,0,0,0,0,0,0,0,0,0,0,0,0,0,0,0,0,0,0,0,0,0,0,0,0,215]
[null,"Female 30-34",0,0,0,0,0,0,0,0,0,0,0,0,0,0,0,0,0,0,0,0,0,0,0,0,0,0,0,0,0,0,0,0,0,0,0,0,0,0,0,0,0,0,0,0,0,0,0,0,0,0,0,0,0,216]
[null,"Female 35-39",0,0,0,0,0,0,0,0,0,0,0,0,0,0,0,0,0,0,0,0,0,0,0,0,0,0,0,0,0,0,0,0,0,0,0,0,0,0,0,0,0,0,0,0,0,0,0,0,0,0,0,0,0,217]
[null,"Female 40-44",0,0,0,0,0,0,0,0,0,0,0,0,0,0,0,0,0,0,0,0,0,0,0,0,0,0,0,0,0,0,0,0,0,0,0,0,0,0,0,0,0,0,0,0,0,0,0,0,0,0,0,0,0,218]
[null,"Female 45-49",0,0,0,0,0,0,0,0,0,0,0,0,0,0,0,0,0,0,0,0,0,0,0,0,0,0,0,0,0,0,0,0,0,0,0,0,0,0,0,0,0,0,0,0,0,0,0,0,0,0,0,0,0,219]
[null,"Female 50-54",0,0,0,0,0,0,0,0,0,0,0,0,0,0,0,0,0,0,0,0,0,0,0,0,0,0,0,0,0,0,0,0,0,0,0,0,0,0,0,0,0,0,0,0,0,0,0,0,0,0,0,0,0,220]
[null,"Female 55-59",0,0,0,0,0,0,0,0,0,0,0,0,0,0,0,0,0,0,0,0,0,0,0,0,0,0,0,0,0,0,0,0,0,0,0,0,0,0,0,0,0,0,0,0,0,0,0,0,0,0,0,0,0,221]
[null,"Female 60-64",0,0,0,0,0,0,0,0,0,0,0,0,0,0,0,0,0,0,0,0,0,0,0,0,0,0,0,0,0,0,0,0,0,0,0,0,0,0,0,0,0,0,0,0,0,0,0,0,0,0,0,0,0,222]
[null,"Female 65-69",0,0,0,0,0,0,0,0,0,0,0,0,0,0,0,0,0,0,0,0,0,0,0,0,0,0,0,0,0,0,0,0,0,0,0,0,0,0,0,0,0,0,0,0,0,0,0,0,0,0,0,0,0,223]
[null,"Female 70-74",0,0,0,0,0,0,0,0,0,0,0,0,0,0,0,0,0,0,0,0,0,0,0,0,0,0,0,0,0,0,0,0,0,0,0,0,0,0,0,0,0,0,0,0,0,0,0,0,0,0,0,0,0,224]
[null,"Female 75-79",0,0,0,0,0,0,0,0,0,0,0,0,0,0,0,0,0,0,0,0,0,0,0,0,0,0,0,0,0,0,0,0,0,0,0,0,0,0,0,0,0,0,0,0,0,0,0,0,0,0,0,0,0,225]
[null,"Female 80-84",0,0,0,0,0,0,0,0,0,0,0,0,0,0,0,0,0,0,0,0,0,0,0,0,0,0,0,0,0,0,0,0,0,0,0,0,0,0,0,0,0,0,0,0,0,0,0,0,0,0,0,0,0,226]
[null,"Female 85-89",0,0,0,0,0,0,0,0,0,0,0,0,0,0,0,0,0,0,0,0,0,0,0,0,0,0,0,0,0,0,0,0,0,0,0,0,0,0,0,0,0,0,0,0,0,0,0,0,0,0,0,0,0,227]
[null,"Female 90+",0,0,0,0,0,0,0,0,0,0,0,0,0,0,0,0,0,0,0,0,0,0,0,0,0,0,0,0,0,0,0,0,0,0,0,0,0,0,0,0,0,0,0,0,0,0,0,0,0,0,0,0,0,228]
[null,"Male 0-4",0,0,0,0,0,0,0,0,0,0,0,0,0,0,0,0,0,0,0,0,0,0,0,0,0,0,0,0,0,0,0,0,0,0,0,0,0,0,0,0,0,0,0,0,0,0,0,0,0,0,0,0,0,229]
[null,"Male 5-9",0,0,0,0,0,0,0,0,0,0,0,0,0,0,0,0,0,0,0,0,0,0,0,0,0,0,0,0,0,0,0,0,0,0,0,0,0,0,0,0,0,0,0,0,0,0,0,0,0,0,0,0,0,230]
[null,"Male 10-15",0,0,0,0,0,0,0,0,0,0,0,0,0,0,0,0,0,0,0,0,0,0,0,0,0,0,0,0,0,0,0,0,0,0,0,0,0,0,0,0,0,0,0,0,0,0,0,0,0,0,0,0,0,231]
[null,"Male 16-19",0,0,0,0,0,0,0,0,0,0,0,0,0,0,0,0,0,0,0,0,0,0,0,0,0,0,0,0,0,0,0,0,0,0,0,0,0,0,0,0,0,0,0,0,0,0,0,0,0,0,0,0,0,232]
[null,"Male 20-24",0,0,0,0,0,0,0,0,0,0,0,0,0,0,0,0,0,0,0,0,0,0,0,0,0,0,0,0,0,0,0,0,0,0,0,0,0,0,0,0,0,0,0,0,0,0,0,0,0,0,0,0,0,233]
[null,"Male 25-29",0,0,0,0,0,0,0,0,0,0,0,0,0,0,0,0,0,0,0,0,0,0,0,0,0,0,0,0,0,0,0,0,0,0,0,0,0,0,0,0,0,0,0,0,0,0,0,0,0,0,0,0,0,234]
[null,"Male 30-34",0,0,0,0,0,0,0,0,0,0,0,0,0,0,0,0,0,0,0,0,0,0,0,0,0,0,0,0,0,0,0,0,0,0,0,0,0,0,0,0,0,0,0,0,0,0,0,0,0,0,0,0,0,235]
[null,"Male 35-39",0,0,0,0,0,0,0,0,0,0,0,0,0,0,0,0,0,0,0,0,0,0,0,0,0,0,0,0,0,0,0,0,0,0,0,0,0,0,0,0,0,0,0,0,0,0,0,0,0,0,0,0,0,236]
[null,"Male 40-44",0,0,0,0,0,0,0,0,0,0,0,0,0,0,0,0,0,0,0,0,0,0,0,0,0,0,0,0,0,0,0,0,0,0,0,0,0,0,0,0,0,0,0,0,0,0,0,0,0,0,0,0,0,237]
[null,"Male 45-49",0,0,0,0,0,0,0,0,0,0,0,0,0,0,0,0,0,0,0,0,0,0,0,0,0,0,0,0,0,0,0,0,0,0,0,0,0,0,0,0,0,0,0,0,0,0,0,0,0,0,0,0,0,238]
[null,"Male 50-54",0,0,0,0,0,0,0,0,0,0,0,0,0,0,0,0,0,0,0,0,0,0,0,0,0,0,0,0,0,0,0,0,0,0,0,0,0,0,0,0,0,0,0,0,0,0,0,0,0,0,0,0,0,239]
[null,"Male 55-59",0,0,0,0,0,0,0,0,0,0,0,0,0,0,0,0,0,0,0,0,0,0,0,0,0,0,0,0,0,0,0,0,0,0,0,0,0,0,0,0,0,0,0,0,0,0,0,0,0,0,0,0,0,240]
[null,"Male 60-64",0,0,0,0,0,0,0,0,0,0,0,0,0,0,0,0,0,0,0,0,0,0,0,0,0,0,0,0,0,0,0,0,0,0,0,0,0,0,0,0,0,0,0,0,0,0,0,0,0,0,0,0,0,241]
[null,"Male 65-69",0,0,0,0,0,0,0,0,0,0,0,0,0,0,0,0,0,0,0,0,0,0,0,0,0,0,0,0,0,0,0,0,0,0,0,0,0,0,0,0,0,0,0,0,0,0,0,0,0,0,0,0,0,242]
[null,"Male 70-74",0,0,0,0,0,0,0,0,0,0,0,0,0,0,0,0,0,0,0,0,0,0,0,0,0,0,0,0,0,0,0,0,0,0,0,0,0,0,0,0,0,0,0,0,0,0,0,0,0,0,0,0,0,243]
[null,"Male 75-79",0,0,0,0,0,0,0,0,0,0,0,0,0,0,0,0,0,0,0,0,0,0,0,0,0,0,0,0,0,0,0,0,0,0,0,0,0,0,0,0,0,0,0,0,0,0,0,0,0,0,0,0,0,244]
[null,"Male 80-84",0,0,0,0,0,0,0,0,0,0,0,0,0,0,0,0,0,0,0,0,0,0,0,0,0,0,0,0,0,0,0,0,0,0,0,0,0,0,0,0,0,0,0,0,0,0,0,0,0,0,0,0,0,245]
[null,"Male 85-89",0,0,0,0,0,0,0,0,0,0,0,0,0,0,0,0,0,0,0,0,0,0,0,0,0,0,0,0,0,0,0,0,0,0,0,0,0,0,0,0,0,0,0,0,0,0,0,0,0,0,0,0,0,246]
[null,"Male 90+",0,0,0,0,0,0,0,0,0,0,0,0,0,0,0,0,0,0,0,0,0,0,0,0,0,0,0,0,0,0,0,0,0,0,0,0,0,0,0,0,0,0,0,0,0,0,0,0,0,0,0,0,0,247]

{"sheet":"PARfraction","index":17,"n_rows":249,"n_cols":56,"rows_kept":249,"cut":false,"hidden":true,"merged":[]}
["Subgroup's fraction of area's 2016 Population-At-Risk (PAR) (16+ only)"]
[]
["SIMD","group","Aberdeen City Local Authority","Aberdeen City Region Deal","Aberdeenshire Local Authority","Angus Local Authority","Argyll & Bute Local Authority","Ayrshire & Arran Health Board","Borders Health Board","Clackmannanshire & Stirling IJB","Clackmannanshire Local Authority","Dumfries & Galloway Health Board","Dumfries & Galloway Local Authority","Dundee City Local Authority","East Ayrshire Local Authority","East Dunbartonshire Local Authority","East Lothian Local Authority","East Renfrewshire Local Authority","Edinburgh & SE Scotland City Region Deal","Edinburgh, City of Local Authority","Eilean Siar Local Authority","Falkirk Local Authority","Fife Health Board","Fife Local Authority","Forth Valley Health Board","Glasgow City Local Authority","Glasgow City Region Deal","Grampian Health Board","Greater Glasgow & Clyde Health Board","Highland Health Board","Highland Local Authority","Inverclyde Local Authority","Inverness & Highland City Region Deal","Lanarkshire Health Board","Lothian Health Board","Midlothian Local Authority","Moray Local Authority","North Ayrshire Local Authority","North Lanarkshire Local Authority","Orkney Health Board","Orkney Islands Local Authority","Perth & Kinross Local Authority","Renfrewshire Local Authority","Scotland","Scottish Borders Local Authority","Shetland Health Board","Shetland Islands Local Authority","South Ayrshire Local Authority","South Lanarkshire Local Authority","Stirling Local Authority","Tay Cities Region Deal ","Tayside Health Board","West Dunbartonshire Local Authority","West Lothian Local Authority","Western Isles Health Board",1]
[null,null,"popS12000033","Aber_deal","popS12000034","popS12000041","popS12000035","popS08000015","popS08000016","ClacksStirIJB","popS12000005","popS08000017","popS12000006","popS12000042","popS12000008","popS12000045","popS12000010","popS12000011","EdinSE_deal","popS12000036","popS12000013","popS12000014","popS08000018","popS12000015","popS08000019","popS12000046","GClyde_deal","popS08000020","popS08000021","popS08000022","popS12000017","popS12000018","Inver_deal","popS08000023","popS08000024","popS12000019","popS12000020","popS12000021","popS12000044","popS08000025","popS12000023","popS12000024","popS12000038","popS00000001","popS12000026","popS08000026","popS12000027","popS12000028","popS12000029","popS12000030","Tay_deal","popS08000027","popS12000039","popS12000040","popS08000028",2]
["All quintiles","16+ Males and Females",{"$f":"'Population at Risk'!R5/'Population at Risk'!R$5","v":1},{"$f":"'Population at Risk'!AX5/'Population at Risk'!AX$5","v":1},{"$f":"'Population at Risk'!S5/'Population at Risk'!S$5","v":1},{"$f":"'Population at Risk'!T5/'Population at Risk'!T$5","v":1},{"$f":"'Population at Risk'!U5/'Population at Risk'!U$5","v":1},{"$f":"'Population at Risk'!D5/'Population at Risk'!D$5","v":1},{"$f":"'Population at Risk'!E5/'Population at Risk'!E$5","v":1},{"$f":"'Population at Risk'!BC5/'Population at Risk'!BC$5","v":1},{"$f":"'Population at Risk'!V5/'Population at Risk'!V$5","v":1},{"$f":"'Population at Risk'!F5/'Population at Risk'!F$5","v":1},{"$f":"'Population at Risk'!W5/'Population at Risk'!W$5","v":1},{"$f":"'Population at Risk'!X5/'Population at Risk'!X$5","v":1},{"$f":"'Population at Risk'!Y5/'Population at Risk'!Y$5","v":1},{"$f":"'Population at Risk'!Z5/'Population at Risk'!Z$5","v":1},{"$f":"'Population at Risk'!AA5/'Population at Risk'!AA$5","v":1},{"$f":"'Population at Risk'!AB5/'Population at Risk'!AB$5","v":1},{"$f":"'Population at Risk'!AY5/'Population at Risk'!AY$5","v":1},{"$f":"'Population at Risk'!AC5/'Population at Risk'!AC$5","v":1},{"$f":"'Population at Risk'!AD5/'Population at Risk'!AD$5","v":1},{"$f":"'Population at Risk'!AE5/'Population at Risk'!AE$5","v":1},{"$f":"'Population at Risk'!G5/'Population at Risk'!G$5","v":1},{"$f":"'Population at Risk'!AF5/'Population at Risk'!AF$5","v":1},{"$f":"'Population at Risk'!H5/'Population at Risk'!H$5","v":1},{"$f":"'Population at Risk'!AG5/'Population at Risk'!AG$5","v":1},{"$f":"'Population at Risk'!AZ5/'Population at Risk'!AZ$5","v":1},{"$f":"'Population at Risk'!I5/'Population at Risk'!I$5","v":1},{"$f":"'Population at Risk'!J5/'Population at Risk'!J$5","v":1},{"$f":"'Population at Risk'!K5/'Population at Risk'!K$5","v":1},{"$f":"'Population at Risk'!AH5/'Population at Risk'!AH$5","v":1},{"$f":"'Population at Risk'!AI5/'Population at Risk'!AI$5","v":1},{"$f":"'Population at Risk'!BA5/'Population at Risk'!BA$5","v":1},{"$f":"'Population at Risk'!L5/'Population at Risk'!L$5","v":1},{"$f":"'Population at Risk'!M5/'Population at Risk'!M$5","v":1},{"$f":"'Population at Risk'!AJ5/'Population at Risk'!AJ$5","v":1},{"$f":"'Population at Risk'!AK5/'Population at Risk'!AK$5","v":1},{"$f":"'Population at Risk'!AL5/'Population at Risk'!AL$5","v":1},{"$f":"'Population at Risk'!AM5/'Population at Risk'!AM$5","v":1},{"$f":"'Population at Risk'!N5/'Population at Risk'!N$5","v":1},{"$f":"'Population at Risk'!AN5/'Population at Risk'!AN$5","v":1},{"$f":"'Population at Risk'!AO5/'Population at Risk'!AO$5","v":1},{"$f":"'Population at Risk'!AP5/'Population at Risk'!AP$5","v":1},{"$f":"'Population at Risk'!C5/'Population at Risk'!C$5","v":1},{"$f":"'Population at Risk'!AQ5/'Population at Risk'!AQ$5","v":1},{"$f":"'Population at Risk'!O5/'Population at Risk'!O$5","v":1},{"$f":"'Population at Risk'!AR5/'Population at Risk'!AR$5","v":1},{"$f":"'Population at Risk'!AS5/'Population at Risk'!AS$5","v":1},{"$f":"'Population at Risk'!AT5/'Population at Risk'!AT$5","v":1},{"$f":"'Population at Risk'!AU5/'Population at Risk'!AU$5","v":1},{"$f":"'Population at Risk'!BB5/'Population at Risk'!BB$5","v":1},{"$f":"'Population at Risk'!P5/'Population at Risk'!P$5","v":1},{"$f":"'Population at Risk'!AV5/'Population at Risk'!AV$5","v":1},{"$f":"'Population at Risk'!AW5/'Population at Risk'!AW$5","v":1},{"$f":"'Population at Risk'!Q5/'Population at Risk'!Q$5","v":1},3]
["Q1 and Q2","16+ Males and Females",{"$f":"'Population at Risk'!R6/'Population at Risk'!R$5","v":0.3140236975467931},{"$f":"'Population at Risk'!AX6/'Population at Risk'!AX$5","v":0.44614834364984801},{"$f":"'Population at Risk'!S6/'Population at Risk'!S$5","v":0.5052617591539923},{"$f":"'Population at Risk'!T6/'Population at Risk'!T$5","v":0.45691233981122614},{"$f":"'Population at Risk'!U6/'Population at Risk'!U$5","v":0.2999957402290932},{"$f":"'Population at Risk'!D6/'Population at Risk'!D$5","v":0.31796321640189484},{"$f":"'Population at Risk'!E6/'Population at Risk'!E$5","v":0.17196339211155418},{"$f":"'Population at Risk'!BC6/'Population at Risk'!BC$5","v":0.2999957402290932},{"$f":"'Population at Risk'!V6/'Population at Risk'!V$5","v":0.59052561610598131},{"$f":"'Population at Risk'!F6/'Population at Risk'!F$5","v":0.36157429573487665},{"$f":"'Population at Risk'!W6/'Population at Risk'!W$5","v":0.56807859060857047},{"$f":"'Population at Risk'!X6/'Population at Risk'!X$5","v":0.56807859060857047},{"$f":"'Population at Risk'!Y6/'Population at Risk'!Y$5","v":0.56312339790940746},{"$f":"'Population at Risk'!Z6/'Population at Risk'!Z$5","v":0.7745141740136845},{"$f":"'Population at Risk'!AA6/'Population at Risk'!AA$5","v":0.7007232292354777},{"$f":"'Population at Risk'!AB6/'Population at Risk'!AB$5","v":0.30404487332337959},{"$f":"'Population at Risk'!AY6/'Population at Risk'!AY$5","v":0.52824884742175249},{"$f":"'Population at Risk'!AC6/'Population at Risk'!AC$5","v":0.71035844450140806},{"$f":"'Population at Risk'!AD6/'Population at Risk'!AD$5","v":0.36679894566084342},{"$f":"'Population at Risk'!AE6/'Population at Risk'!AE$5","v":0.37292881867125832},{"$f":"'Population at Risk'!G6/'Population at Risk'!G$5","v":0.3507974216214006},{"$f":"'Population at Risk'!AF6/'Population at Risk'!AF$5","v":0.71948461187137847},{"$f":"'Population at Risk'!H6/'Population at Risk'!H$5","v":0.70869439086855623},{"$f":"'Population at Risk'!AG6/'Population at Risk'!AG$5","v":0.37490549728190553},{"$f":"'Population at Risk'!AZ6/'Population at Risk'!AZ$5","v":0.4891293562136157},{"$f":"'Population at Risk'!I6/'Population at Risk'!I$5","v":0.32549059459321239},{"$f":"'Population at Risk'!J6/'Population at Risk'!J$5","v":0.53150340911473437},{"$f":"'Population at Risk'!K6/'Population at Risk'!K$5","v":0.65994615791637035},{"$f":"'Population at Risk'!AH6/'Population at Risk'!AH$5","v":0.68187838090613506},{"$f":"'Population at Risk'!AI6/'Population at Risk'!AI$5","v":0.4973821423914061},{"$f":"'Population at Risk'!BA6/'Population at Risk'!BA$5","v":0.79724876207694584},{"$f":"'Population at Risk'!L6/'Population at Risk'!L$5","v":0.48202845677954725},{"$f":"'Population at Risk'!M6/'Population at Risk'!M$5","v":0.48202845677954725},{"$f":"'Population at Risk'!AJ6/'Population at Risk'!AJ$5","v":0.59620204650497222},{"$f":"'Population at Risk'!AK6/'Population at Risk'!AK$5","v":0.24756534528972196},{"$f":"'Population at Risk'!AL6/'Population at Risk'!AL$5","v":0.75781156492422286},{"$f":"'Population at Risk'!AM6/'Population at Risk'!AM$5","v":0.73070035465704886},{"$f":"'Population at Risk'!N6/'Population at Risk'!N$5","v":0.7178140078037325},{"$f":"'Population at Risk'!AN6/'Population at Risk'!AN$5","v":0.20883581035166973},{"$f":"'Population at Risk'!AO6/'Population at Risk'!AO$5","v":0.20883581035166973},{"$f":"'Population at Risk'!AP6/'Population at Risk'!AP$5","v":0.28034204986785571},{"$f":"'Population at Risk'!C6/'Population at Risk'!C$5","v":0.44743214132411491},{"$f":"'Population at Risk'!AQ6/'Population at Risk'!AQ$5","v":0.6449479508044349},{"$f":"'Population at Risk'!O6/'Population at Risk'!O$5","v":0.72655789378259961},{"$f":"'Population at Risk'!AR6/'Population at Risk'!AR$5","v":0.5668711612145263},{"$f":"'Population at Risk'!AS6/'Population at Risk'!AS$5","v":0.32549059459321239},{"$f":"'Population at Risk'!AT6/'Population at Risk'!AT$5","v":5.1548727400015044E-2},{"$f":"'Population at Risk'!AU6/'Population at Risk'!AU$5","v":5.1548727400015044E-2},{"$f":"'Population at Risk'!BB6/'Population at Risk'!BB$5","v":0.58221733931607011},{"$f":"'Population at Risk'!P6/'Population at Risk'!P$5","v":0.39256709527378186},{"$f":"'Population at Risk'!AV6/'Population at Risk'!AV$5","v":0.61607348203246337},{"$f":"'Population at Risk'!AW6/'Population at Risk'!AW$5","v":0.62379313263461278},{"$f":"'Population at Risk'!Q6/'Population at Risk'!Q$5","v":0.43927489381934093},4]
["SIMD Q1 (most deprived)","16+ Males and Females",{"$f":"'Population at Risk'!R7/'Population at Risk'!R$5","v":0.152395770685256},{"$f":"'Population at Risk'!AX7/'Population at Risk'!AX$5","v":0.23509815033900869},{"$f":"'Population at Risk'!S7/'Population at Risk'!S$5","v":0.23825983436195594},{"$f":"'Population at Risk'!T7/'Population at Risk'!T$5","v":0.24596829186743976},{"$f":"'Population at Risk'!U7/'Population at Risk'!U$5","v":0},{"$f":"'Population at Risk'!D7/'Population at Risk'!D$5","v":0.10261474612005046},{"$f":"'Population at Risk'!E7/'Population at Risk'!E$5","v":4.6434227327547914E-2},{"$f":"'Population at Risk'!BC7/'Population at Risk'!BC$5","v":0},{"$f":"'Population at Risk'!V7/'Population at Risk'!V$5","v":0.23727159953600538},{"$f":"'Population at Risk'!F7/'Population at Risk'!F$5","v":0.12830411473875988},{"$f":"'Population at Risk'!W7/'Population at Risk'!W$5","v":0.31897743174990373},{"$f":"'Population at Risk'!X7/'Population at Risk'!X$5","v":0.31897743174990373},{"$f":"'Population at Risk'!Y7/'Population at Risk'!Y$5","v":0.25893042450867509},{"$f":"'Population at Risk'!Z7/'Population at Risk'!Z$5","v":0.5966967194406646},{"$f":"'Population at Risk'!AA7/'Population at Risk'!AA$5","v":0.46702997580724093},{"$f":"'Population at Risk'!AB7/'Population at Risk'!AB$5","v":8.8095219951143985E-2},{"$f":"'Population at Risk'!AY7/'Population at Risk'!AY$5","v":0.29972689266606939},{"$f":"'Population at Risk'!AC7/'Population at Risk'!AC$5","v":0.51500870687813649},{"$f":"'Population at Risk'!AD7/'Population at Risk'!AD$5","v":0.12417230433670938},{"$f":"'Population at Risk'!AE7/'Population at Risk'!AE$5","v":0.12227788877971003},{"$f":"'Population at Risk'!G7/'Population at Risk'!G$5","v":0.1292528269403998},{"$f":"'Population at Risk'!AF7/'Population at Risk'!AF$5","v":0.58213262617526984},{"$f":"'Population at Risk'!H7/'Population at Risk'!H$5","v":0.43987280437316134},{"$f":"'Population at Risk'!AG7/'Population at Risk'!AG$5","v":0.12260024240078587},{"$f":"'Population at Risk'!AZ7/'Population at Risk'!AZ$5","v":0.28063488264829073},{"$f":"'Population at Risk'!I7/'Population at Risk'!I$5","v":0.10096066610713486},{"$f":"'Population at Risk'!J7/'Population at Risk'!J$5","v":0.28409018129606584},{"$f":"'Population at Risk'!K7/'Population at Risk'!K$5","v":0.35781364564145912},{"$f":"'Population at Risk'!AH7/'Population at Risk'!AH$5","v":0.37837341376104527},{"$f":"'Population at Risk'!AI7/'Population at Risk'!AI$5","v":0.21832476297944553},{"$f":"'Population at Risk'!BA7/'Population at Risk'!BA$5","v":0.50129286173912224},{"$f":"'Population at Risk'!L7/'Population at Risk'!L$5","v":0.13510047039079584},{"$f":"'Population at Risk'!M7/'Population at Risk'!M$5","v":0.13510047039079584},{"$f":"'Population at Risk'!AJ7/'Population at Risk'!AJ$5","v":0.15938649212887182},{"$f":"'Population at Risk'!AK7/'Population at Risk'!AK$5","v":1.6212866790281482E-2},{"$f":"'Population at Risk'!AL7/'Population at Risk'!AL$5","v":0.54905200296953305},{"$f":"'Population at Risk'!AM7/'Population at Risk'!AM$5","v":0.43334168664385997},{"$f":"'Population at Risk'!N7/'Population at Risk'!N$5","v":0.49989244138098787},{"$f":"'Population at Risk'!AN7/'Population at Risk'!AN$5","v":0},{"$f":"'Population at Risk'!AO7/'Population at Risk'!AO$5","v":0},{"$f":"'Population at Risk'!AP7/'Population at Risk'!AP$5","v":0.10671376109259426},{"$f":"'Population at Risk'!C7/'Population at Risk'!C$5","v":0.15383380041335126},{"$f":"'Population at Risk'!AQ7/'Population at Risk'!AQ$5","v":0.43227387707520304},{"$f":"'Population at Risk'!O7/'Population at Risk'!O$5","v":0.44118157910753164},{"$f":"'Population at Risk'!AR7/'Population at Risk'!AR$5","v":0.3192253696832385},{"$f":"'Population at Risk'!AS7/'Population at Risk'!AS$5","v":0.10096066610713486},{"$f":"'Population at Risk'!AT7/'Population at Risk'!AT$5","v":0},{"$f":"'Population at Risk'!AU7/'Population at Risk'!AU$5","v":0},{"$f":"'Population at Risk'!BB7/'Population at Risk'!BB$5","v":0.25513218249069797},{"$f":"'Population at Risk'!P7/'Population at Risk'!P$5","v":0.10755186101350683},{"$f":"'Population at Risk'!AV7/'Population at Risk'!AV$5","v":0.2816390960208342},{"$f":"'Population at Risk'!AW7/'Population at Risk'!AW$5","v":0.31282141817350939},{"$f":"'Population at Risk'!Q7/'Population at Risk'!Q$5","v":6.3198990152781423E-2},5]
["SIMD Q2",null,{"$f":"'Population at Risk'!R8/'Population at Risk'!R$5","v":0.1616279268615371},{"$f":"'Population at Risk'!AX8/'Population at Risk'!AX$5","v":0.21105019331083935},{"$f":"'Population at Risk'!S8/'Population at Risk'!S$5","v":0.26700192479203633},{"$f":"'Population at Risk'!T8/'Population at Risk'!T$5","v":0.21094404794378638},{"$f":"'Population at Risk'!U8/'Population at Risk'!U$5","v":0.2999957402290932},{"$f":"'Population at Risk'!D8/'Population at Risk'!D$5","v":0.2153484702818444},{"$f":"'Population at Risk'!E8/'Population at Risk'!E$5","v":0.12552916478400625},{"$f":"'Population at Risk'!BC8/'Population at Risk'!BC$5","v":0.2999957402290932},{"$f":"'Population at Risk'!V8/'Population at Risk'!V$5","v":0.3532540165699759},{"$f":"'Population at Risk'!F8/'Population at Risk'!F$5","v":0.23327018099611674},{"$f":"'Population at Risk'!W8/'Population at Risk'!W$5","v":0.24910115885866677},{"$f":"'Population at Risk'!X8/'Population at Risk'!X$5","v":0.24910115885866677},{"$f":"'Population at Risk'!Y8/'Population at Risk'!Y$5","v":0.30419297340073237},{"$f":"'Population at Risk'!Z8/'Population at Risk'!Z$5","v":0.17781745457302003},{"$f":"'Population at Risk'!AA8/'Population at Risk'!AA$5","v":0.2336932534282368},{"$f":"'Population at Risk'!AB8/'Population at Risk'!AB$5","v":0.21594965337223562},{"$f":"'Population at Risk'!AY8/'Population at Risk'!AY$5","v":0.22852195475568302},{"$f":"'Population at Risk'!AC8/'Population at Risk'!AC$5","v":0.19534973762327151},{"$f":"'Population at Risk'!AD8/'Population at Risk'!AD$5","v":0.242626641324134},{"$f":"'Population at Risk'!AE8/'Population at Risk'!AE$5","v":0.2506509298915483},{"$f":"'Population at Risk'!G8/'Population at Risk'!G$5","v":0.22154459468100079},{"$f":"'Population at Risk'!AF8/'Population at Risk'!AF$5","v":0.13735198569610851},{"$f":"'Population at Risk'!H8/'Population at Risk'!H$5","v":0.26882158649539489},{"$f":"'Population at Risk'!AG8/'Population at Risk'!AG$5","v":0.25230525488111971},{"$f":"'Population at Risk'!AZ8/'Population at Risk'!AZ$5","v":0.20849447356532502},{"$f":"'Population at Risk'!I8/'Population at Risk'!I$5","v":0.2245299284860775},{"$f":"'Population at Risk'!J8/'Population at Risk'!J$5","v":0.24741322781866856},{"$f":"'Population at Risk'!K8/'Population at Risk'!K$5","v":0.30213251227491122},{"$f":"'Population at Risk'!AH8/'Population at Risk'!AH$5","v":0.30350496714508979},{"$f":"'Population at Risk'!AI8/'Population at Risk'!AI$5","v":0.27905737941196057},{"$f":"'Population at Risk'!BA8/'Population at Risk'!BA$5","v":0.29595590033782349},{"$f":"'Population at Risk'!L8/'Population at Risk'!L$5","v":0.34692798638875139},{"$f":"'Population at Risk'!M8/'Population at Risk'!M$5","v":0.34692798638875139},{"$f":"'Population at Risk'!AJ8/'Population at Risk'!AJ$5","v":0.43681555437610042},{"$f":"'Population at Risk'!AK8/'Population at Risk'!AK$5","v":0.23135247849944049},{"$f":"'Population at Risk'!AL8/'Population at Risk'!AL$5","v":0.20875956195468973},{"$f":"'Population at Risk'!AM8/'Population at Risk'!AM$5","v":0.29735866801318889},{"$f":"'Population at Risk'!N8/'Population at Risk'!N$5","v":0.2179215664227446},{"$f":"'Population at Risk'!AN8/'Population at Risk'!AN$5","v":0.20883581035166973},{"$f":"'Population at Risk'!AO8/'Population at Risk'!AO$5","v":0.20883581035166973},{"$f":"'Population at Risk'!AP8/'Population at Risk'!AP$5","v":0.17362828877526146},{"$f":"'Population at Risk'!C8/'Population at Risk'!C$5","v":0.29359834091076359},{"$f":"'Population at Risk'!AQ8/'Population at Risk'!AQ$5","v":0.21267407372923183},{"$f":"'Population at Risk'!O8/'Population at Risk'!O$5","v":0.28537631467506791},{"$f":"'Population at Risk'!AR8/'Population at Risk'!AR$5","v":0.24764579153128777},{"$f":"'Population at Risk'!AS8/'Population at Risk'!AS$5","v":0.2245299284860775},{"$f":"'Population at Risk'!AT8/'Population at Risk'!AT$5","v":5.1548727400015044E-2},{"$f":"'Population at Risk'!AU8/'Population at Risk'!AU$5","v":5.1548727400015044E-2},{"$f":"'Population at Risk'!BB8/'Population at Risk'!BB$5","v":0.32708515682537226},{"$f":"'Population at Risk'!P8/'Population at Risk'!P$5","v":0.28501523426027509},{"$f":"'Population at Risk'!AV8/'Population at Risk'!AV$5","v":0.33443438601162923},{"$f":"'Population at Risk'!AW8/'Population at Risk'!AW$5","v":0.31097171446110344},{"$f":"'Population at Risk'!Q8/'Population at Risk'!Q$5","v":0.37607590366655946},6]
["SIMD Q3",null,{"$f":"'Population at Risk'!R9/'Population at Risk'!R$5","v":0.1440925317964174},{"$f":"'Population at Risk'!AX9/'Population at Risk'!AX$5","v":0.17539685098371871},{"$f":"'Population at Risk'!S9/'Population at Risk'!S$5","v":0.20797057451435208},{"$f":"'Population at Risk'!T9/'Population at Risk'!T$5","v":0.17591703914687237},{"$f":"'Population at Risk'!U9/'Population at Risk'!U$5","v":0.65792092949117265},{"$f":"'Population at Risk'!D9/'Population at Risk'!D$5","v":0.21333872455554656},{"$f":"'Population at Risk'!E9/'Population at Risk'!E$5","v":0.25332940737854365},{"$f":"'Population at Risk'!BC9/'Population at Risk'!BC$5","v":0.65792092949117265},{"$f":"'Population at Risk'!V9/'Population at Risk'!V$5","v":0.17475034421394414},{"$f":"'Population at Risk'!F9/'Population at Risk'!F$5","v":0.34477667649906901},{"$f":"'Population at Risk'!W9/'Population at Risk'!W$5","v":0.20437774729334671},{"$f":"'Population at Risk'!X9/'Population at Risk'!X$5","v":0.20437774729334671},{"$f":"'Population at Risk'!Y9/'Population at Risk'!Y$5","v":0.1724356699204771},{"$f":"'Population at Risk'!Z9/'Population at Risk'!Z$5","v":0.11192536275742794},{"$f":"'Population at Risk'!AA9/'Population at Risk'!AA$5","v":0.13334561736114983},{"$f":"'Population at Risk'!AB9/'Population at Risk'!AB$5","v":0.23001857917889626},{"$f":"'Population at Risk'!AY9/'Population at Risk'!AY$5","v":0.21100364206697933},{"$f":"'Population at Risk'!AC9/'Population at Risk'!AC$5","v":0.11909390569290691},{"$f":"'Population at Risk'!AD9/'Population at Risk'!AD$5","v":0.34494549462335755},{"$f":"'Population at Risk'!AE9/'Population at Risk'!AE$5","v":0.32212170459079575},{"$f":"'Population at Risk'!G9/'Population at Risk'!G$5","v":0.40604612881521107},{"$f":"'Population at Risk'!AF9/'Population at Risk'!AF$5","v":0.12487025445482401},{"$f":"'Population at Risk'!H9/'Population at Risk'!H$5","v":0.14435716048664854},{"$f":"'Population at Risk'!AG9/'Population at Risk'!AG$5","v":0.32181032052735198},{"$f":"'Population at Risk'!AZ9/'Population at Risk'!AZ$5","v":0.21735917189068504},{"$f":"'Population at Risk'!I9/'Population at Risk'!I$5","v":0.34897825783789332},{"$f":"'Population at Risk'!J9/'Population at Risk'!J$5","v":0.16981443876602198},{"$f":"'Population at Risk'!K9/'Population at Risk'!K$5","v":0.16141399567246281},{"$f":"'Population at Risk'!AH9/'Population at Risk'!AH$5","v":0.15963227085415654},{"$f":"'Population at Risk'!AI9/'Population at Risk'!AI$5","v":0.19244122551190487},{"$f":"'Population at Risk'!BA9/'Population at Risk'!BA$5","v":0.11439501065491225},{"$f":"'Population at Risk'!L9/'Population at Risk'!L$5","v":0.34697334580317735},{"$f":"'Population at Risk'!M9/'Population at Risk'!M$5","v":0.34697334580317735},{"$f":"'Population at Risk'!AJ9/'Population at Risk'!AJ$5","v":0.21959569499353365},{"$f":"'Population at Risk'!AK9/'Population at Risk'!AK$5","v":0.31512621718072903},{"$f":"'Population at Risk'!AL9/'Population at Risk'!AL$5","v":0.1103947018061673},{"$f":"'Population at Risk'!AM9/'Population at Risk'!AM$5","v":0.14752454946379179},{"$f":"'Population at Risk'!N9/'Population at Risk'!N$5","v":0.1051747927228769},{"$f":"'Population at Risk'!AN9/'Population at Risk'!AN$5","v":0.34596210748388756},{"$f":"'Population at Risk'!AO9/'Population at Risk'!AO$5","v":0.34596210748388756},{"$f":"'Population at Risk'!AP9/'Population at Risk'!AP$5","v":0.26587325498230463},{"$f":"'Population at Risk'!C9/'Population at Risk'!C$5","v":0.17665605520186781},{"$f":"'Population at Risk'!AQ9/'Population at Risk'!AQ$5","v":0.15629998714699361},{"$f":"'Population at Risk'!O9/'Population at Risk'!O$5","v":0.14113327358842537},{"$f":"'Population at Risk'!AR9/'Population at Risk'!AR$5","v":0.19006992228652544},{"$f":"'Population at Risk'!AS9/'Population at Risk'!AS$5","v":0.34897825783789332},{"$f":"'Population at Risk'!AT9/'Population at Risk'!AT$5","v":0.37300358968576142},{"$f":"'Population at Risk'!AU9/'Population at Risk'!AU$5","v":0.37300358968576142},{"$f":"'Population at Risk'!BB9/'Population at Risk'!BB$5","v":0.20517185083189143},{"$f":"'Population at Risk'!P9/'Population at Risk'!P$5","v":8.0975189472725154E-2},{"$f":"'Population at Risk'!AV9/'Population at Risk'!AV$5","v":0.19691957730747445},{"$f":"'Population at Risk'!AW9/'Population at Risk'!AW$5","v":0.17397227558578132},{"$f":"'Population at Risk'!Q9/'Population at Risk'!Q$5","v":0.22311857898438281},7]
["SIMD Q4",null,{"$f":"'Population at Risk'!R10/'Population at Risk'!R$5","v":0.15157390389239728},{"$f":"'Population at Risk'!AX10/'Population at Risk'!AX$5","v":0.22704403292909592},{"$f":"'Population at Risk'!S10/'Population at Risk'!S$5","v":0.15024562604105643},{"$f":"'Population at Risk'!T10/'Population at Risk'!T$5","v":0.13959276461520839},{"$f":"'Population at Risk'!U10/'Population at Risk'!U$5","v":4.2083330279734113E-2},{"$f":"'Population at Risk'!D10/'Population at Risk'!D$5","v":0.2491797195970247},{"$f":"'Population at Risk'!E10/'Population at Risk'!E$5","v":0.35275271907220718},{"$f":"'Population at Risk'!BC10/'Population at Risk'!BC$5","v":4.2083330279734113E-2},{"$f":"'Population at Risk'!V10/'Population at Risk'!V$5","v":0.13951850194567977},{"$f":"'Population at Risk'!F10/'Population at Risk'!F$5","v":0.19875427919660796},{"$f":"'Population at Risk'!W10/'Population at Risk'!W$5","v":0.12390130145224595},{"$f":"'Population at Risk'!X10/'Population at Risk'!X$5","v":0.12390130145224595},{"$f":"'Population at Risk'!Y10/'Population at Risk'!Y$5","v":0.16055480672077288},{"$f":"'Population at Risk'!Z10/'Population at Risk'!Z$5","v":7.2502926613565513E-2},{"$f":"'Population at Risk'!AA10/'Population at Risk'!AA$5","v":9.798607301421873E-2},{"$f":"'Population at Risk'!AB10/'Population at Risk'!AB$5","v":0.26285866608803476},{"$f":"'Population at Risk'!AY10/'Population at Risk'!AY$5","v":0.16882344464059509},{"$f":"'Population at Risk'!AC10/'Population at Risk'!AC$5","v":9.1498225574229763E-2},{"$f":"'Population at Risk'!AD10/'Population at Risk'!AD$5","v":0.23661041528262378},{"$f":"'Population at Risk'!AE10/'Population at Risk'!AE$5","v":0.25658083707198337},{"$f":"'Population at Risk'!G10/'Population at Risk'!G$5","v":0.18393051112809544},{"$f":"'Population at Risk'!AF10/'Population at Risk'!AF$5","v":0.10899309506803656},{"$f":"'Population at Risk'!H10/'Population at Risk'!H$5","v":9.1689498848025353E-2},{"$f":"'Population at Risk'!AG10/'Population at Risk'!AG$5","v":0.25518584539136474},{"$f":"'Population at Risk'!AZ10/'Population at Risk'!AZ$5","v":0.21106289722624591},{"$f":"'Population at Risk'!I10/'Population at Risk'!I$5","v":0.27706593863249812},{"$f":"'Population at Risk'!J10/'Population at Risk'!J$5","v":0.18452807038740063},{"$f":"'Population at Risk'!K10/'Population at Risk'!K$5","v":0.12054982765441086},{"$f":"'Population at Risk'!AH10/'Population at Risk'!AH$5","v":0.11011988886672275},{"$f":"'Population at Risk'!AI10/'Population at Risk'!AI$5","v":0.14680428727416622},{"$f":"'Population at Risk'!BA10/'Population at Risk'!BA$5","v":7.2643052665574276E-2},{"$f":"'Population at Risk'!L10/'Population at Risk'!L$5","v":0.12837002682705442},{"$f":"'Population at Risk'!M10/'Population at Risk'!M$5","v":0.12837002682705442},{"$f":"'Population at Risk'!AJ10/'Population at Risk'!AJ$5","v":0.11019675232493632},{"$f":"'Population at Risk'!AK10/'Population at Risk'!AK$5","v":0.33152847394611829},{"$f":"'Population at Risk'!AL10/'Population at Risk'!AL$5","v":9.5595679418295595E-2},{"$f":"'Population at Risk'!AM10/'Population at Risk'!AM$5","v":8.5312648118076886E-2},{"$f":"'Population at Risk'!N10/'Population at Risk'!N$5","v":0.11435724185708597},{"$f":"'Population at Risk'!AN10/'Population at Risk'!AN$5","v":0.40208064308719954},{"$f":"'Population at Risk'!AO10/'Population at Risk'!AO$5","v":0.40208064308719954},{"$f":"'Population at Risk'!AP10/'Population at Risk'!AP$5","v":0.35430126728038647},{"$f":"'Population at Risk'!C10/'Population at Risk'!C$5","v":0.15335858408932881},{"$f":"'Population at Risk'!AQ10/'Population at Risk'!AQ$5","v":0.11884341601150782},{"$f":"'Population at Risk'!O10/'Population at Risk'!O$5","v":8.484096798854858E-2},{"$f":"'Population at Risk'!AR10/'Population at Risk'!AR$5","v":0.14695071509818303},{"$f":"'Population at Risk'!AS10/'Population at Risk'!AS$5","v":0.27706593863249812},{"$f":"'Population at Risk'!AT10/'Population at Risk'!AT$5","v":0.57544768291422344},{"$f":"'Population at Risk'!AU10/'Population at Risk'!AU$5","v":0.57544768291422344},{"$f":"'Population at Risk'!BB10/'Population at Risk'!BB$5","v":0.12922222259365057},{"$f":"'Population at Risk'!P10/'Population at Risk'!P$5","v":0.17763449496557823},{"$f":"'Population at Risk'!AV10/'Population at Risk'!AV$5","v":9.4847144371418154E-2},{"$f":"'Population at Risk'!AW10/'Population at Risk'!AW$5","v":0.13959144862535541},{"$f":"'Population at Risk'!Q10/'Population at Risk'!Q$5","v":0.25144784678852833},8]
["SIMD Q5 (least deprived)",null,{"$f":"'Population at Risk'!R11/'Population at Risk'!R$5","v":0.39030986676439228},{"$f":"'Population at Risk'!AX11/'Population at Risk'!AX$5","v":0.15141077243733733},{"$f":"'Population at Risk'!S11/'Population at Risk'!S$5","v":0.13652204029059908},{"$f":"'Population at Risk'!T11/'Population at Risk'!T$5","v":0.22757785642669329},{"$f":"'Population at Risk'!U11/'Population at Risk'!U$5","v":0},{"$f":"'Population at Risk'!D11/'Population at Risk'!D$5","v":0.21951833944553387},{"$f":"'Population at Risk'!E11/'Population at Risk'!E$5","v":0.22195448143769508},{"$f":"'Population at Risk'!BC11/'Population at Risk'!BC$5","v":0},{"$f":"'Population at Risk'!V11/'Population at Risk'!V$5","v":9.5205537734394885E-2},{"$f":"'Population at Risk'!F11/'Population at Risk'!F$5","v":9.489474856944638E-2},{"$f":"'Population at Risk'!W11/'Population at Risk'!W$5","v":0.10364236064583683},{"$f":"'Population at Risk'!X11/'Population at Risk'!X$5","v":0.10364236064583683},{"$f":"'Population at Risk'!Y11/'Population at Risk'!Y$5","v":0.10388612544934241},{"$f":"'Population at Risk'!Z11/'Population at Risk'!Z$5","v":4.1057536615321986E-2},{"$f":"'Population at Risk'!AA11/'Population at Risk'!AA$5","v":6.794508038915377E-2},{"$f":"'Population at Risk'!AB11/'Population at Risk'!AB$5","v":0.20307788140968935},{"$f":"'Population at Risk'!AY11/'Population at Risk'!AY$5","v":9.1924065870673186E-2},{"$f":"'Population at Risk'!AC11/'Population at Risk'!AC$5","v":7.9049424231455181E-2},{"$f":"'Population at Risk'!AD11/'Population at Risk'!AD$5","v":5.1645144433175375E-2},{"$f":"'Population at Risk'!AE11/'Population at Risk'!AE$5","v":4.8368639665962505E-2},{"$f":"'Population at Risk'!G11/'Population at Risk'!G$5","v":5.9225938435292939E-2},{"$f":"'Population at Risk'!AF11/'Population at Risk'!AF$5","v":4.6652038605761011E-2},{"$f":"'Population at Risk'!H11/'Population at Risk'!H$5","v":5.5258949796769846E-2},{"$f":"'Population at Risk'!AG11/'Population at Risk'!AG$5","v":4.8098336799377778E-2},{"$f":"'Population at Risk'!AZ11/'Population at Risk'!AZ$5","v":8.2448574669453489E-2},{"$f":"'Population at Risk'!I11/'Population at Risk'!I$5","v":4.8465208936396185E-2},{"$f":"'Population at Risk'!J11/'Population at Risk'!J$5","v":0.11415408173184287},{"$f":"'Population at Risk'!K11/'Population at Risk'!K$5","v":5.809001875675588E-2},{"$f":"'Population at Risk'!AH11/'Population at Risk'!AH$5","v":4.8369459372985521E-2},{"$f":"'Population at Risk'!AI11/'Population at Risk'!AI$5","v":0.16337234482252289},{"$f":"'Population at Risk'!BA11/'Population at Risk'!BA$5","v":1.5713174602567673E-2},{"$f":"'Population at Risk'!L11/'Population at Risk'!L$5","v":4.2628170590220935E-2},{"$f":"'Population at Risk'!M11/'Population at Risk'!M$5","v":4.2628170590220935E-2},{"$f":"'Population at Risk'!AJ11/'Population at Risk'!AJ$5","v":7.4005506176557989E-2},{"$f":"'Population at Risk'!AK11/'Population at Risk'!AK$5","v":0.10577996358343071},{"$f":"'Population at Risk'!AL11/'Population at Risk'!AL$5","v":3.6198053851314374E-2},{"$f":"'Population at Risk'!AM11/'Population at Risk'!AM$5","v":3.6462447761082546E-2},{"$f":"'Population at Risk'!N11/'Population at Risk'!N$5","v":6.2653957616304753E-2},{"$f":"'Population at Risk'!AN11/'Population at Risk'!AN$5","v":4.3121439077243161E-2},{"$f":"'Population at Risk'!AO11/'Population at Risk'!AO$5","v":4.3121439077243161E-2},{"$f":"'Population at Risk'!AP11/'Population at Risk'!AP$5","v":9.9483427869453245E-2},{"$f":"'Population at Risk'!C11/'Population at Risk'!C$5","v":0.22255321938468833},{"$f":"'Population at Risk'!AQ11/'Population at Risk'!AQ$5","v":7.9908646037063755E-2},{"$f":"'Population at Risk'!O11/'Population at Risk'!O$5","v":4.7467864640426329E-2},{"$f":"'Population at Risk'!AR11/'Population at Risk'!AR$5","v":9.6108201400765245E-2},{"$f":"'Population at Risk'!AS11/'Population at Risk'!AS$5","v":4.8465208936396185E-2},{"$f":"'Population at Risk'!AT11/'Population at Risk'!AT$5","v":0},{"$f":"'Population at Risk'!AU11/'Population at Risk'!AU$5","v":0},{"$f":"'Population at Risk'!BB11/'Population at Risk'!BB$5","v":8.3388587258387825E-2},{"$f":"'Population at Risk'!P11/'Population at Risk'!P$5","v":0.34882322028791474},{"$f":"'Population at Risk'!AV11/'Population at Risk'!AV$5","v":9.2159796288643833E-2},{"$f":"'Population at Risk'!AW11/'Population at Risk'!AW$5","v":6.2643143154250305E-2},{"$f":"'Population at Risk'!Q11/'Population at Risk'!Q$5","v":8.6158680407747962E-2},9]
["SIMD Q1 (most deprived)","16+ Females",{"$f":"'Population at Risk'!R12/'Population at Risk'!R$5","v":6.7493962841099944E-2},{"$f":"'Population at Risk'!AX12/'Population at Risk'!AX$5","v":0.11974047141659516},{"$f":"'Population at Risk'!S12/'Population at Risk'!S$5","v":0.12763628008650618},{"$f":"'Population at Risk'!T12/'Population at Risk'!T$5","v":0.11197695025907957},{"$f":"'Population at Risk'!U12/'Population at Risk'!U$5","v":0},{"$f":"'Population at Risk'!D12/'Population at Risk'!D$5","v":5.2613550655647351E-2},{"$f":"'Population at Risk'!E12/'Population at Risk'!E$5","v":1.8513717955876835E-2},{"$f":"'Population at Risk'!BC12/'Population at Risk'!BC$5","v":0},{"$f":"'Population at Risk'!V12/'Population at Risk'!V$5","v":9.4765226846420456E-2},{"$f":"'Population at Risk'!F12/'Population at Risk'!F$5","v":3.8483309871242335E-2},{"$f":"'Population at Risk'!W12/'Population at Risk'!W$5","v":0.15159835218400408},{"$f":"'Population at Risk'!X12/'Population at Risk'!X$5","v":0.15159835218400408},{"$f":"'Population at Risk'!Y12/'Population at Risk'!Y$5","v":0.11782545404005547},{"$f":"'Population at Risk'!Z12/'Population at Risk'!Z$5","v":0.29656308579306084},{"$f":"'Population at Risk'!AA12/'Population at Risk'!AA$5","v":0.25131338173916817},{"$f":"'Population at Risk'!AB12/'Population at Risk'!AB$5","v":3.745185917494518E-2},{"$f":"'Population at Risk'!AY12/'Population at Risk'!AY$5","v":0.16066547384599814},{"$f":"'Population at Risk'!AC12/'Population at Risk'!AC$5","v":0.25812615321992016},{"$f":"'Population at Risk'!AD12/'Population at Risk'!AD$5","v":5.6884426988815191E-2},{"$f":"'Population at Risk'!AE12/'Population at Risk'!AE$5","v":5.5194114125380826E-2},{"$f":"'Population at Risk'!G12/'Population at Risk'!G$5","v":6.2358905911739787E-2},{"$f":"'Population at Risk'!AF12/'Population at Risk'!AF$5","v":0.29107681316114425},{"$f":"'Population at Risk'!H12/'Population at Risk'!H$5","v":0.21718455733484004},{"$f":"'Population at Risk'!AG12/'Population at Risk'!AG$5","v":6.5348763232479179E-2},{"$f":"'Population at Risk'!AZ12/'Population at Risk'!AZ$5","v":0.12602150273719592},{"$f":"'Population at Risk'!I12/'Population at Risk'!I$5","v":5.7189375620377507E-2},{"$f":"'Population at Risk'!J12/'Population at Risk'!J$5","v":0.14219852524409946},{"$f":"'Population at Risk'!K12/'Population at Risk'!K$5","v":0.1759935220685869},{"$f":"'Population at Risk'!AH12/'Population at Risk'!AH$5","v":0.20507901192090389},{"$f":"'Population at Risk'!AI12/'Population at Risk'!AI$5","v":0.1079632544108725},{"$f":"'Population at Risk'!BA12/'Population at Risk'!BA$5","v":0.27297329016305866},{"$f":"'Population at Risk'!L12/'Population at Risk'!L$5","v":7.1501968607728186E-2},{"$f":"'Population at Risk'!M12/'Population at Risk'!M$5","v":7.1501968607728186E-2},{"$f":"'Population at Risk'!AJ12/'Population at Risk'!AJ$5","v":7.904505505657082E-2},{"$f":"'Population at Risk'!AK12/'Population at Risk'!AK$5","v":8.8608889328509813E-3},{"$f":"'Population at Risk'!AL12/'Population at Risk'!AL$5","v":0.24182367163241011},{"$f":"'Population at Risk'!AM12/'Population at Risk'!AM$5","v":0.25037213597996844},{"$f":"'Population at Risk'!N12/'Population at Risk'!N$5","v":0.26219228165363462},{"$f":"'Population at Risk'!AN12/'Population at Risk'!AN$5","v":0},{"$f":"'Population at Risk'!AO12/'Population at Risk'!AO$5","v":0},{"$f":"'Population at Risk'!AP12/'Population at Risk'!AP$5","v":4.724237456144794E-2},{"$f":"'Population at Risk'!C12/'Population at Risk'!C$5","v":6.2802053367576188E-2},{"$f":"'Population at Risk'!AQ12/'Population at Risk'!AQ$5","v":0.22023735180386245},{"$f":"'Population at Risk'!O12/'Population at Risk'!O$5","v":0.21990720628213503},{"$f":"'Population at Risk'!AR12/'Population at Risk'!AR$5","v":0.15679832099216096},{"$f":"'Population at Risk'!AS12/'Population at Risk'!AS$5","v":5.7189375620377507E-2},{"$f":"'Population at Risk'!AT12/'Population at Risk'!AT$5","v":0},{"$f":"'Population at Risk'!AU12/'Population at Risk'!AU$5","v":0},{"$f":"'Population at Risk'!BB12/'Population at Risk'!BB$5","v":0.14420924749285075},{"$f":"'Population at Risk'!P12/'Population at Risk'!P$5","v":5.0804999958827528E-2},{"$f":"'Population at Risk'!AV12/'Population at Risk'!AV$5","v":0.15802281903694484},{"$f":"'Population at Risk'!AW12/'Population at Risk'!AW$5","v":0.15525741584710451},{"$f":"'Population at Risk'!Q12/'Population at Risk'!Q$5","v":3.4553492855981374E-2},10]
["SIMD Q2",null,{"$f":"'Population at Risk'!R13/'Population at Risk'!R$5","v":6.9864431354880241E-2},{"$f":"'Population at Risk'!AX13/'Population at Risk'!AX$5","v":0.10452583718922828},{"$f":"'Population at Risk'!S13/'Population at Risk'!S$5","v":0.1445397339584692},{"$f":"'Population at Risk'!T13/'Population at Risk'!T$5","v":9.569543098348815E-2},{"$f":"'Population at Risk'!U13/'Population at Risk'!U$5","v":0.14332213661780688},{"$f":"'Population at Risk'!D13/'Population at Risk'!D$5","v":0.11442595081160149},{"$f":"'Population at Risk'!E13/'Population at Risk'!E$5","v":5.3728829892104368E-2},{"$f":"'Population at Risk'!BC13/'Population at Risk'!BC$5","v":0.14332213661780688},{"$f":"'Population at Risk'!V13/'Population at Risk'!V$5","v":0.1446511889714644},{"$f":"'Population at Risk'!F13/'Population at Risk'!F$5","v":7.1185546232789637E-2},{"$f":"'Population at Risk'!W13/'Population at Risk'!W$5","v":0.1203889525115297},{"$f":"'Population at Risk'!X13/'Population at Risk'!X$5","v":0.1203889525115297},{"$f":"'Population at Risk'!Y13/'Population at Risk'!Y$5","v":0.1391723411584152},{"$f":"'Population at Risk'!Z13/'Population at Risk'!Z$5","v":8.6556707847946335E-2},{"$f":"'Population at Risk'!AA13/'Population at Risk'!AA$5","v":0.12627787020457337},{"$f":"'Population at Risk'!AB13/'Population at Risk'!AB$5","v":9.5816653094075846E-2},{"$f":"'Population at Risk'!AY13/'Population at Risk'!AY$5","v":0.12285744096263458},{"$f":"'Population at Risk'!AC13/'Population at Risk'!AC$5","v":9.7624313876949351E-2},{"$f":"'Population at Risk'!AD13/'Population at Risk'!AD$5","v":0.11432591766785531},{"$f":"'Population at Risk'!AE13/'Population at Risk'!AE$5","v":0.11614523807352463},{"$f":"'Population at Risk'!G13/'Population at Risk'!G$5","v":0.11039543583577101},{"$f":"'Population at Risk'!AF13/'Population at Risk'!AF$5","v":6.9602979147048355E-2},{"$f":"'Population at Risk'!H13/'Population at Risk'!H$5","v":0.13294317850109738},{"$f":"'Population at Risk'!AG13/'Population at Risk'!AG$5","v":0.13751371470887469},{"$f":"'Population at Risk'!AZ13/'Population at Risk'!AZ$5","v":9.2481906528323207E-2},{"$f":"'Population at Risk'!I13/'Population at Risk'!I$5","v":0.12778306852955795},{"$f":"'Population at Risk'!J13/'Population at Risk'!J$5","v":0.12276245334030537},{"$f":"'Population at Risk'!K13/'Population at Risk'!K$5","v":0.15020500867696859},{"$f":"'Population at Risk'!AH13/'Population at Risk'!AH$5","v":0.1663926334057888},{"$f":"'Population at Risk'!AI13/'Population at Risk'!AI$5","v":0.1395320379675957},{"$f":"'Population at Risk'!BA13/'Population at Risk'!BA$5","v":0.15827234352525432},{"$f":"'Population at Risk'!L13/'Population at Risk'!L$5","v":0.18485860669863896},{"$f":"'Population at Risk'!M13/'Population at Risk'!M$5","v":0.18485860669863896},{"$f":"'Population at Risk'!AJ13/'Population at Risk'!AJ$5","v":0.22206620677924979},{"$f":"'Population at Risk'!AK13/'Population at Risk'!AK$5","v":0.12171412321417784},{"$f":"'Population at Risk'!AL13/'Population at Risk'!AL$5","v":9.2243524373909022E-2},{"$f":"'Population at Risk'!AM13/'Population at Risk'!AM$5","v":0.1750169032800637},{"$f":"'Population at Risk'!N13/'Population at Risk'!N$5","v":0.11365187479364079},{"$f":"'Population at Risk'!AN13/'Population at Risk'!AN$5","v":9.8553079658024526E-2},{"$f":"'Population at Risk'!AO13/'Population at Risk'!AO$5","v":9.8553079658024526E-2},{"$f":"'Population at Risk'!AP13/'Population at Risk'!AP$5","v":7.5111481735021315E-2},{"$f":"'Population at Risk'!C13/'Population at Risk'!C$5","v":0.1241371848087798},{"$f":"'Population at Risk'!AQ13/'Population at Risk'!AQ$5","v":0.11286106546372657},{"$f":"'Population at Risk'!O13/'Population at Risk'!O$5","v":0.1415827389820698},{"$f":"'Population at Risk'!AR13/'Population at Risk'!AR$5","v":0.12225169579833783},{"$f":"'Population at Risk'!AS13/'Population at Risk'!AS$5","v":0.12778306852955795},{"$f":"'Population at Risk'!AT13/'Population at Risk'!AT$5","v":2.1916875751766655E-2},{"$f":"'Population at Risk'!AU13/'Population at Risk'!AU$5","v":2.1916875751766655E-2},{"$f":"'Population at Risk'!BB13/'Population at Risk'!BB$5","v":0.18525891139133852},{"$f":"'Population at Risk'!P13/'Population at Risk'!P$5","v":0.13456999677831857},{"$f":"'Population at Risk'!AV13/'Population at Risk'!AV$5","v":0.19115759124335657},{"$f":"'Population at Risk'!AW13/'Population at Risk'!AW$5","v":0.15426031080663982},{"$f":"'Population at Risk'!Q13/'Population at Risk'!Q$5","v":0.20604484880003546},11]
["SIMD Q3",null,{"$f":"'Population at Risk'!R14/'Population at Risk'!R$5","v":6.0741248218862523E-2},{"$f":"'Population at Risk'!AX14/'Population at Risk'!AX$5","v":8.4645740556620483E-2},{"$f":"'Population at Risk'!S14/'Population at Risk'!S$5","v":0.10841873192906394},{"$f":"'Population at Risk'!T14/'Population at Risk'!T$5","v":7.6463617855516502E-2},{"$f":"'Population at Risk'!U14/'Population at Risk'!U$5","v":0.30908345969682088},{"$f":"'Population at Risk'!D14/'Population at Risk'!D$5","v":0.1072202847730101},{"$f":"'Population at Risk'!E14/'Population at Risk'!E$5","v":0.10427422409034148},{"$f":"'Population at Risk'!BC14/'Population at Risk'!BC$5","v":0.30908345969682088},{"$f":"'Population at Risk'!V14/'Population at Risk'!V$5","v":6.8668674901852175E-2},{"$f":"'Population at Risk'!F14/'Population at Risk'!F$5","v":0.10017744754700129},{"$f":"'Population at Risk'!W14/'Population at Risk'!W$5","v":9.550212251080889E-2},{"$f":"'Population at Risk'!X14/'Population at Risk'!X$5","v":9.550212251080889E-2},{"$f":"'Population at Risk'!Y14/'Population at Risk'!Y$5","v":7.6294107309128986E-2},{"$f":"'Population at Risk'!Z14/'Population at Risk'!Z$5","v":5.3250714501446438E-2},{"$f":"'Population at Risk'!AA14/'Population at Risk'!AA$5","v":7.0147886861879186E-2},{"$f":"'Population at Risk'!AB14/'Population at Risk'!AB$5","v":9.6383839343059219E-2},{"$f":"'Population at Risk'!AY14/'Population at Risk'!AY$5","v":0.11093047935565023},{"$f":"'Population at Risk'!AC14/'Population at Risk'!AC$5","v":5.7896733961476682E-2},{"$f":"'Population at Risk'!AD14/'Population at Risk'!AD$5","v":0.15556093053401288},{"$f":"'Population at Risk'!AE14/'Population at Risk'!AE$5","v":0.14188908147238927},{"$f":"'Population at Risk'!G14/'Population at Risk'!G$5","v":0.19643716912415854},{"$f":"'Population at Risk'!AF14/'Population at Risk'!AF$5","v":6.038413838755325E-2},{"$f":"'Population at Risk'!H14/'Population at Risk'!H$5","v":6.9005998996522974E-2},{"$f":"'Population at Risk'!AG14/'Population at Risk'!AG$5","v":0.16799392720299666},{"$f":"'Population at Risk'!AZ14/'Population at Risk'!AZ$5","v":9.4985977690356174E-2},{"$f":"'Population at Risk'!I14/'Population at Risk'!I$5","v":0.19640136685596038},{"$f":"'Population at Risk'!J14/'Population at Risk'!J$5","v":8.1982161165095616E-2},{"$f":"'Population at Risk'!K14/'Population at Risk'!K$5","v":7.7973992969857311E-2},{"$f":"'Population at Risk'!AH14/'Population at Risk'!AH$5","v":8.5192039847552178E-2},{"$f":"'Population at Risk'!AI14/'Population at Risk'!AI$5","v":9.1514193354805887E-2},{"$f":"'Population at Risk'!BA14/'Population at Risk'!BA$5","v":5.9397511984823785E-2},{"$f":"'Population at Risk'!L14/'Population at Risk'!L$5","v":0.17983448615885927},{"$f":"'Population at Risk'!M14/'Population at Risk'!M$5","v":0.17983448615885927},{"$f":"'Population at Risk'!AJ14/'Population at Risk'!AJ$5","v":0.10659468907404149},{"$f":"'Population at Risk'!AK14/'Population at Risk'!AK$5","v":0.16112424969805816},{"$f":"'Population at Risk'!AL14/'Population at Risk'!AL$5","v":4.7224326384462653E-2},{"$f":"'Population at Risk'!AM14/'Population at Risk'!AM$5","v":8.4310436427481289E-2},{"$f":"'Population at Risk'!N14/'Population at Risk'!N$5","v":5.3528639912397979E-2},{"$f":"'Population at Risk'!AN14/'Population at Risk'!AN$5","v":0.16256877331210492},{"$f":"'Population at Risk'!AO14/'Population at Risk'!AO$5","v":0.16256877331210492},{"$f":"'Population at Risk'!AP14/'Population at Risk'!AP$5","v":0.11891202043467708},{"$f":"'Population at Risk'!C14/'Population at Risk'!C$5","v":6.6466042667485667E-2},{"$f":"'Population at Risk'!AQ14/'Population at Risk'!AQ$5","v":8.0133043545589477E-2},{"$f":"'Population at Risk'!O14/'Population at Risk'!O$5","v":6.6285748530924657E-2},{"$f":"'Population at Risk'!AR14/'Population at Risk'!AR$5","v":9.0464652674007454E-2},{"$f":"'Population at Risk'!AS14/'Population at Risk'!AS$5","v":0.19640136685596038},{"$f":"'Population at Risk'!AT14/'Population at Risk'!AT$5","v":0.16854341100022549},{"$f":"'Population at Risk'!AU14/'Population at Risk'!AU$5","v":0.16854341100022549},{"$f":"'Population at Risk'!BB14/'Population at Risk'!BB$5","v":0.11050495332578869},{"$f":"'Population at Risk'!P14/'Population at Risk'!P$5","v":3.7414395145273498E-2},{"$f":"'Population at Risk'!AV14/'Population at Risk'!AV$5","v":0.11063209760249615},{"$f":"'Population at Risk'!AW14/'Population at Risk'!AW$5","v":8.4308837136536668E-2},{"$f":"'Population at Risk'!Q14/'Population at Risk'!Q$5","v":0.11665208827059424},12]
["SIMD Q4",null,{"$f":"'Population at Risk'!R15/'Population at Risk'!R$5","v":6.3095568472490329E-2},{"$f":"'Population at Risk'!AX15/'Population at Risk'!AX$5","v":0.10856648427448153},{"$f":"'Population at Risk'!S15/'Population at Risk'!S$5","v":7.7785493498232092E-2},{"$f":"'Population at Risk'!T15/'Population at Risk'!T$5","v":6.0734213029983684E-2},{"$f":"'Population at Risk'!U15/'Population at Risk'!U$5","v":2.0430119436814151E-2},{"$f":"'Population at Risk'!D15/'Population at Risk'!D$5","v":0.12573571760614841},{"$f":"'Population at Risk'!E15/'Population at Risk'!E$5","v":0.140556264995082},{"$f":"'Population at Risk'!BC15/'Population at Risk'!BC$5","v":2.0430119436814151E-2},{"$f":"'Population at Risk'!V15/'Population at Risk'!V$5","v":5.2771476827471062E-2},{"$f":"'Population at Risk'!F15/'Population at Risk'!F$5","v":5.7016599700714314E-2},{"$f":"'Population at Risk'!W15/'Population at Risk'!W$5","v":5.6035500812117355E-2},{"$f":"'Population at Risk'!X15/'Population at Risk'!X$5","v":5.6035500812117355E-2},{"$f":"'Population at Risk'!Y15/'Population at Risk'!Y$5","v":6.8365787891313215E-2},{"$f":"'Population at Risk'!Z15/'Population at Risk'!Z$5","v":3.4453201688049891E-2},{"$f":"'Population at Risk'!AA15/'Population at Risk'!AA$5","v":5.0335150099987166E-2},{"$f":"'Population at Risk'!AB15/'Population at Risk'!AB$5","v":0.10932407092798785},{"$f":"'Population at Risk'!AY15/'Population at Risk'!AY$5","v":8.7301514708090777E-2},{"$f":"'Population at Risk'!AC15/'Population at Risk'!AC$5","v":4.4020740335986283E-2},{"$f":"'Population at Risk'!AD15/'Population at Risk'!AD$5","v":0.10321913781540426},{"$f":"'Population at Risk'!AE15/'Population at Risk'!AE$5","v":0.10954956950942897},{"$f":"'Population at Risk'!G15/'Population at Risk'!G$5","v":8.6250769342474901E-2},{"$f":"'Population at Risk'!AF15/'Population at Risk'!AF$5","v":5.0822281485770407E-2},{"$f":"'Population at Risk'!H15/'Population at Risk'!H$5","v":4.3333569189227594E-2},{"$f":"'Population at Risk'!AG15/'Population at Risk'!AG$5","v":0.12970457074153285},{"$f":"'Population at Risk'!AZ15/'Population at Risk'!AZ$5","v":9.1389177455642845E-2},{"$f":"'Population at Risk'!I15/'Population at Risk'!I$5","v":0.15621798266720005},{"$f":"'Population at Risk'!J15/'Population at Risk'!J$5","v":8.556653903739643E-2},{"$f":"'Population at Risk'!K15/'Population at Risk'!K$5","v":5.095610118642202E-2},{"$f":"'Population at Risk'!AH15/'Population at Risk'!AH$5","v":5.6239530707433011E-2},{"$f":"'Population at Risk'!AI15/'Population at Risk'!AI$5","v":6.9864080393996109E-2},{"$f":"'Population at Risk'!BA15/'Population at Risk'!BA$5","v":3.7315392640306387E-2},{"$f":"'Population at Risk'!L15/'Population at Risk'!L$5","v":6.5218489953752984E-2},{"$f":"'Population at Risk'!M15/'Population at Risk'!M$5","v":6.5218489953752984E-2},{"$f":"'Population at Risk'!AJ15/'Population at Risk'!AJ$5","v":5.3076958154833154E-2},{"$f":"'Population at Risk'!AK15/'Population at Risk'!AK$5","v":0.1625338647387711},{"$f":"'Population at Risk'!AL15/'Population at Risk'!AL$5","v":3.993955108693123E-2},{"$f":"'Population at Risk'!AM15/'Population at Risk'!AM$5","v":4.6273756671466826E-2},{"$f":"'Population at Risk'!N15/'Population at Risk'!N$5","v":5.9617384172174132E-2},{"$f":"'Population at Risk'!AN15/'Population at Risk'!AN$5","v":0.18705622307617906},{"$f":"'Population at Risk'!AO15/'Population at Risk'!AO$5","v":0.18705622307617906},{"$f":"'Population at Risk'!AP15/'Population at Risk'!AP$5","v":0.15424721607189165},{"$f":"'Population at Risk'!C15/'Population at Risk'!C$5","v":6.1049334190267888E-2},{"$f":"'Population at Risk'!AQ15/'Population at Risk'!AQ$5","v":5.8664884817565141E-2},{"$f":"'Population at Risk'!O15/'Population at Risk'!O$5","v":4.0103662185300301E-2},{"$f":"'Population at Risk'!AR15/'Population at Risk'!AR$5","v":6.8638070950540642E-2},{"$f":"'Population at Risk'!AS15/'Population at Risk'!AS$5","v":0.15621798266720005},{"$f":"'Population at Risk'!AT15/'Population at Risk'!AT$5","v":0.25956852118102541},{"$f":"'Population at Risk'!AU15/'Population at Risk'!AU$5","v":0.25956852118102541},{"$f":"'Population at Risk'!BB15/'Population at Risk'!BB$5","v":6.9317072581527708E-2},{"$f":"'Population at Risk'!P15/'Population at Risk'!P$5","v":7.9889372426780902E-2},{"$f":"'Population at Risk'!AV15/'Population at Risk'!AV$5","v":5.2397863979788878E-2},{"$f":"'Population at Risk'!AW15/'Population at Risk'!AW$5","v":6.5095707774722414E-2},{"$f":"'Population at Risk'!Q15/'Population at Risk'!Q$5","v":0.1324529155140691},13]
["SIMD Q5 (least deprived)",null,{"$f":"'Population at Risk'!R16/'Population at Risk'!R$5","v":0.15355237203144495},{"$f":"'Population at Risk'!AX16/'Population at Risk'!AX$5","v":6.9290653565080434E-2},{"$f":"'Population at Risk'!S16/'Population at Risk'!S$5","v":6.7001075617251146E-2},{"$f":"'Population at Risk'!T16/'Population at Risk'!T$5","v":9.3905275703321037E-2},{"$f":"'Population at Risk'!U16/'Population at Risk'!U$5","v":0},{"$f":"'Population at Risk'!D16/'Population at Risk'!D$5","v":0.10422051545592233},{"$f":"'Population at Risk'!E16/'Population at Risk'!E$5","v":8.3184240850340943E-2},{"$f":"'Population at Risk'!BC16/'Population at Risk'!BC$5","v":0},{"$f":"'Population at Risk'!V16/'Population at Risk'!V$5","v":3.4080435220914716E-2},{"$f":"'Population at Risk'!F16/'Population at Risk'!F$5","v":2.6030868676346793E-2},{"$f":"'Population at Risk'!W16/'Population at Risk'!W$5","v":4.5253036190465723E-2},{"$f":"'Population at Risk'!X16/'Population at Risk'!X$5","v":4.5253036190465723E-2},{"$f":"'Population at Risk'!Y16/'Population at Risk'!Y$5","v":4.2929575752684183E-2},{"$f":"'Population at Risk'!Z16/'Population at Risk'!Z$5","v":1.8072405490363732E-2},{"$f":"'Population at Risk'!AA16/'Population at Risk'!AA$5","v":3.3715333957062318E-2},{"$f":"'Population at Risk'!AB16/'Population at Risk'!AB$5","v":7.8090070902566866E-2},{"$f":"'Population at Risk'!AY16/'Population at Risk'!AY$5","v":4.6145486596160683E-2},{"$f":"'Population at Risk'!AC16/'Population at Risk'!AC$5","v":3.6287181927698822E-2},{"$f":"'Population at Risk'!AD16/'Population at Risk'!AD$5","v":1.967151521733377E-2},{"$f":"'Population at Risk'!AE16/'Population at Risk'!AE$5","v":2.0629264893407152E-2},{"$f":"'Population at Risk'!G16/'Population at Risk'!G$5","v":1.7149638054356767E-2},{"$f":"'Population at Risk'!AF16/'Population at Risk'!AF$5","v":2.2038765058264076E-2},{"$f":"'Population at Risk'!H16/'Population at Risk'!H$5","v":2.539937250820376E-2},{"$f":"'Population at Risk'!AG16/'Population at Risk'!AG$5","v":2.4424650500177905E-2},{"$f":"'Population at Risk'!AZ16/'Population at Risk'!AZ$5","v":3.470617710052365E-2},{"$f":"'Population at Risk'!I16/'Population at Risk'!I$5","v":2.6291999087118625E-2},{"$f":"'Population at Risk'!J16/'Population at Risk'!J$5","v":5.2427648479538826E-2},{"$f":"'Population at Risk'!K16/'Population at Risk'!K$5","v":2.7052110256397803E-2},{"$f":"'Population at Risk'!AH16/'Population at Risk'!AH$5","v":2.4238677290864458E-2},{"$f":"'Population at Risk'!AI16/'Population at Risk'!AI$5","v":7.3126444881215599E-2},{"$f":"'Population at Risk'!BA16/'Population at Risk'!BA$5","v":7.6354480350649696E-3},{"$f":"'Population at Risk'!L16/'Population at Risk'!L$5","v":2.1452303323213625E-2},{"$f":"'Population at Risk'!M16/'Population at Risk'!M$5","v":2.1452303323213625E-2},{"$f":"'Population at Risk'!AJ16/'Population at Risk'!AJ$5","v":3.227139465309372E-2},{"$f":"'Population at Risk'!AK16/'Population at Risk'!AK$5","v":4.5385476758208393E-2},{"$f":"'Population at Risk'!AL16/'Population at Risk'!AL$5","v":1.4276032008486627E-2},{"$f":"'Population at Risk'!AM16/'Population at Risk'!AM$5","v":1.9577298970574895E-2},{"$f":"'Population at Risk'!N16/'Population at Risk'!N$5","v":3.0524061145913963E-2},{"$f":"'Population at Risk'!AN16/'Population at Risk'!AN$5","v":1.8690032923516436E-2},{"$f":"'Population at Risk'!AO16/'Population at Risk'!AO$5","v":1.8690032923516436E-2},{"$f":"'Population at Risk'!AP16/'Population at Risk'!AP$5","v":4.3602022371072566E-2},{"$f":"'Population at Risk'!C16/'Population at Risk'!C$5","v":8.1405985725411315E-2},{"$f":"'Population at Risk'!AQ16/'Population at Risk'!AQ$5","v":3.8218221667092114E-2},{"$f":"'Population at Risk'!O16/'Population at Risk'!O$5","v":2.1546878672552418E-2},{"$f":"'Population at Risk'!AR16/'Population at Risk'!AR$5","v":4.2653958236750784E-2},{"$f":"'Population at Risk'!AS16/'Population at Risk'!AS$5","v":2.6291999087118625E-2},{"$f":"'Population at Risk'!AT16/'Population at Risk'!AT$5","v":0},{"$f":"'Population at Risk'!AU16/'Population at Risk'!AU$5","v":0},{"$f":"'Population at Risk'!BB16/'Population at Risk'!BB$5","v":4.2517345445297443E-2},{"$f":"'Population at Risk'!P16/'Population at Risk'!P$5","v":0.14632113421479007},{"$f":"'Population at Risk'!AV16/'Population at Risk'!AV$5","v":5.0557441198892973E-2},{"$f":"'Population at Risk'!AW16/'Population at Risk'!AW$5","v":2.8423994076565165E-2},{"$f":"'Population at Risk'!Q16/'Population at Risk'!Q$5","v":4.2884971525847276E-2},14]
["SIMD Q1 (most deprived)","16+ Males",{"$f":"'Population at Risk'!R17/'Population at Risk'!R$5","v":8.4901807844156046E-2},{"$f":"'Population at Risk'!AX17/'Population at Risk'!AX$5","v":0.11535767892241354},{"$f":"'Population at Risk'!S17/'Population at Risk'!S$5","v":0.11062355427544975},{"$f":"'Population at Risk'!T17/'Population at Risk'!T$5","v":0.13399134160836018},{"$f":"'Population at Risk'!U17/'Population at Risk'!U$5","v":0},{"$f":"'Population at Risk'!D17/'Population at Risk'!D$5","v":5.0001195464403111E-2},{"$f":"'Population at Risk'!E17/'Population at Risk'!E$5","v":2.7920509371671082E-2},{"$f":"'Population at Risk'!BC17/'Population at Risk'!BC$5","v":0},{"$f":"'Population at Risk'!V17/'Population at Risk'!V$5","v":0.14250637268958494},{"$f":"'Population at Risk'!F17/'Population at Risk'!F$5","v":8.982080486751752E-2},{"$f":"'Population at Risk'!W17/'Population at Risk'!W$5","v":0.16737907956589967},{"$f":"'Population at Risk'!X17/'Population at Risk'!X$5","v":0.16737907956589967},{"$f":"'Population at Risk'!Y17/'Population at Risk'!Y$5","v":0.14110497046861967},{"$f":"'Population at Risk'!Z17/'Population at Risk'!Z$5","v":0.3001336336476037},{"$f":"'Population at Risk'!AA17/'Population at Risk'!AA$5","v":0.21571659406807275},{"$f":"'Population at Risk'!AB17/'Population at Risk'!AB$5","v":5.0643360776198805E-2},{"$f":"'Population at Risk'!AY17/'Population at Risk'!AY$5","v":0.13906141882007123},{"$f":"'Population at Risk'!AC17/'Population at Risk'!AC$5","v":0.25688255365821638},{"$f":"'Population at Risk'!AD17/'Population at Risk'!AD$5","v":6.7287877347894182E-2},{"$f":"'Population at Risk'!AE17/'Population at Risk'!AE$5","v":6.7083774654329201E-2},{"$f":"'Population at Risk'!G17/'Population at Risk'!G$5","v":6.6893921028660014E-2},{"$f":"'Population at Risk'!AF17/'Population at Risk'!AF$5","v":0.2910558130141257},{"$f":"'Population at Risk'!H17/'Population at Risk'!H$5","v":0.22268824703832127},{"$f":"'Population at Risk'!AG17/'Population at Risk'!AG$5","v":5.7251479168306696E-2},{"$f":"'Population at Risk'!AZ17/'Population at Risk'!AZ$5","v":0.15461337991109475},{"$f":"'Population at Risk'!I17/'Population at Risk'!I$5","v":4.377129048675734E-2},{"$f":"'Population at Risk'!J17/'Population at Risk'!J$5","v":0.14189165605196635},{"$f":"'Population at Risk'!K17/'Population at Risk'!K$5","v":0.18182012357287222},{"$f":"'Population at Risk'!AH17/'Population at Risk'!AH$5","v":0.17329440184014142},{"$f":"'Population at Risk'!AI17/'Population at Risk'!AI$5","v":0.11036150856857303},{"$f":"'Population at Risk'!BA17/'Population at Risk'!BA$5","v":0.22831957157606353},{"$f":"'Population at Risk'!L17/'Population at Risk'!L$5","v":6.3598501783067654E-2},{"$f":"'Population at Risk'!M17/'Population at Risk'!M$5","v":6.3598501783067654E-2},{"$f":"'Population at Risk'!AJ17/'Population at Risk'!AJ$5","v":8.0341437072301014E-2},{"$f":"'Population at Risk'!AK17/'Population at Risk'!AK$5","v":7.3519778574304999E-3},{"$f":"'Population at Risk'!AL17/'Population at Risk'!AL$5","v":0.30722833133712296},{"$f":"'Population at Risk'!AM17/'Population at Risk'!AM$5","v":0.18296955066389156},{"$f":"'Population at Risk'!N17/'Population at Risk'!N$5","v":0.23770015972735326},{"$f":"'Population at Risk'!AN17/'Population at Risk'!AN$5","v":0},{"$f":"'Population at Risk'!AO17/'Population at Risk'!AO$5","v":0},{"$f":"'Population at Risk'!AP17/'Population at Risk'!AP$5","v":5.9471386531146322E-2},{"$f":"'Population at Risk'!C17/'Population at Risk'!C$5","v":9.103174704577506E-2},{"$f":"'Population at Risk'!AQ17/'Population at Risk'!AQ$5","v":0.21203652527134059},{"$f":"'Population at Risk'!O17/'Population at Risk'!O$5","v":0.22127437282539664},{"$f":"'Population at Risk'!AR17/'Population at Risk'!AR$5","v":0.16242704869107752},{"$f":"'Population at Risk'!AS17/'Population at Risk'!AS$5","v":4.377129048675734E-2},{"$f":"'Population at Risk'!AT17/'Population at Risk'!AT$5","v":0},{"$f":"'Population at Risk'!AU17/'Population at Risk'!AU$5","v":0},{"$f":"'Population at Risk'!BB17/'Population at Risk'!BB$5","v":0.11092293499784722},{"$f":"'Population at Risk'!P17/'Population at Risk'!P$5","v":5.6746861054679319E-2},{"$f":"'Population at Risk'!AV17/'Population at Risk'!AV$5","v":0.12361627698388934},{"$f":"'Population at Risk'!AW17/'Population at Risk'!AW$5","v":0.15756400232640491},{"$f":"'Population at Risk'!Q17/'Population at Risk'!Q$5","v":2.8645497296800049E-2},15]
["SIMD Q2",null,{"$f":"'Population at Risk'!R18/'Population at Risk'!R$5","v":9.176349550665687E-2},{"$f":"'Population at Risk'!AX18/'Population at Risk'!AX$5","v":0.10652435612161108},{"$f":"'Population at Risk'!S18/'Population at Risk'!S$5","v":0.12246219083356713},{"$f":"'Population at Risk'!T18/'Population at Risk'!T$5","v":0.11524861696029824},{"$f":"'Population at Risk'!U18/'Population at Risk'!U$5","v":0.15667360361128632},{"$f":"'Population at Risk'!D18/'Population at Risk'!D$5","v":0.1009225194702429},{"$f":"'Population at Risk'!E18/'Population at Risk'!E$5","v":7.1800334891901879E-2},{"$f":"'Population at Risk'!BC18/'Population at Risk'!BC$5","v":0.15667360361128632},{"$f":"'Population at Risk'!V18/'Population at Risk'!V$5","v":0.20860282759851154},{"$f":"'Population at Risk'!F18/'Population at Risk'!F$5","v":0.1620846347633271},{"$f":"'Population at Risk'!W18/'Population at Risk'!W$5","v":0.12871220634713706},{"$f":"'Population at Risk'!X18/'Population at Risk'!X$5","v":0.12871220634713706},{"$f":"'Population at Risk'!Y18/'Population at Risk'!Y$5","v":0.16502063224231717},{"$f":"'Population at Risk'!Z18/'Population at Risk'!Z$5","v":9.1260746725073699E-2},{"$f":"'Population at Risk'!AA18/'Population at Risk'!AA$5","v":0.10741538322366342},{"$f":"'Population at Risk'!AB18/'Population at Risk'!AB$5","v":0.12013300027815978},{"$f":"'Population at Risk'!AY18/'Population at Risk'!AY$5","v":0.10566451379304843},{"$f":"'Population at Risk'!AC18/'Population at Risk'!AC$5","v":9.7725423746322176E-2},{"$f":"'Population at Risk'!AD18/'Population at Risk'!AD$5","v":0.12830072365627868},{"$f":"'Population at Risk'!AE18/'Population at Risk'!AE$5","v":0.13450569181802366},{"$f":"'Population at Risk'!G18/'Population at Risk'!G$5","v":0.1111491588452298},{"$f":"'Population at Risk'!AF18/'Population at Risk'!AF$5","v":6.7749006549060159E-2},{"$f":"'Population at Risk'!H18/'Population at Risk'!H$5","v":0.13587840799429754},{"$f":"'Population at Risk'!AG18/'Population at Risk'!AG$5","v":0.11479154017224502},{"$f":"'Population at Risk'!AZ18/'Population at Risk'!AZ$5","v":0.1160125670370018},{"$f":"'Population at Risk'!I18/'Population at Risk'!I$5","v":9.6746859956519562E-2},{"$f":"'Population at Risk'!J18/'Population at Risk'!J$5","v":0.1246507744783632},{"$f":"'Population at Risk'!K18/'Population at Risk'!K$5","v":0.15192750359794266},{"$f":"'Population at Risk'!AH18/'Population at Risk'!AH$5","v":0.13711233373930096},{"$f":"'Population at Risk'!AI18/'Population at Risk'!AI$5","v":0.13952534144436485},{"$f":"'Population at Risk'!BA18/'Population at Risk'!BA$5","v":0.13768355681256916},{"$f":"'Population at Risk'!L18/'Population at Risk'!L$5","v":0.16206937969011243},{"$f":"'Population at Risk'!M18/'Population at Risk'!M$5","v":0.16206937969011243},{"$f":"'Population at Risk'!AJ18/'Population at Risk'!AJ$5","v":0.2147493475968506},{"$f":"'Population at Risk'!AK18/'Population at Risk'!AK$5","v":0.10963835528526265},{"$f":"'Population at Risk'!AL18/'Population at Risk'!AL$5","v":0.11651603758078069},{"$f":"'Population at Risk'!AM18/'Population at Risk'!AM$5","v":0.12234176473312519},{"$f":"'Population at Risk'!N18/'Population at Risk'!N$5","v":0.10426969162910382},{"$f":"'Population at Risk'!AN18/'Population at Risk'!AN$5","v":0.11028273069364519},{"$f":"'Population at Risk'!AO18/'Population at Risk'!AO$5","v":0.11028273069364519},{"$f":"'Population at Risk'!AP18/'Population at Risk'!AP$5","v":9.8516807040240156E-2},{"$f":"'Population at Risk'!C18/'Population at Risk'!C$5","v":0.16946115610198381},{"$f":"'Population at Risk'!AQ18/'Population at Risk'!AQ$5","v":9.9813008265505238E-2},{"$f":"'Population at Risk'!O18/'Population at Risk'!O$5","v":0.14379357569299811},{"$f":"'Population at Risk'!AR18/'Population at Risk'!AR$5","v":0.12539409573294993},{"$f":"'Population at Risk'!AS18/'Population at Risk'!AS$5","v":9.6746859956519562E-2},{"$f":"'Population at Risk'!AT18/'Population at Risk'!AT$5","v":2.9631851648248386E-2},{"$f":"'Population at Risk'!AU18/'Population at Risk'!AU$5","v":2.9631851648248386E-2},{"$f":"'Population at Risk'!BB18/'Population at Risk'!BB$5","v":0.14182624543403369},{"$f":"'Population at Risk'!P18/'Population at Risk'!P$5","v":0.15044523748195648},{"$f":"'Population at Risk'!AV18/'Population at Risk'!AV$5","v":0.14327679476827265},{"$f":"'Population at Risk'!AW18/'Population at Risk'!AW$5","v":0.15671140365446357},{"$f":"'Population at Risk'!Q18/'Population at Risk'!Q$5","v":0.17003105486652403},16]
["SIMD Q3",null,{"$f":"'Population at Risk'!R19/'Population at Risk'!R$5","v":8.3351283577554863E-2},{"$f":"'Population at Risk'!AX19/'Population at Risk'!AX$5","v":9.0751110427098242E-2},{"$f":"'Population at Risk'!S19/'Population at Risk'!S$5","v":9.9551842585288139E-2},{"$f":"'Population at Risk'!T19/'Population at Risk'!T$5","v":9.9453421291355856E-2},{"$f":"'Population at Risk'!U19/'Population at Risk'!U$5","v":0.34883746979435176},{"$f":"'Population at Risk'!D19/'Population at Risk'!D$5","v":0.10611843978253646},{"$f":"'Population at Risk'!E19/'Population at Risk'!E$5","v":0.14905518328820214},{"$f":"'Population at Risk'!BC19/'Population at Risk'!BC$5","v":0.34883746979435176},{"$f":"'Population at Risk'!V19/'Population at Risk'!V$5","v":0.10608166931209198},{"$f":"'Population at Risk'!F19/'Population at Risk'!F$5","v":0.24459922895206776},{"$f":"'Population at Risk'!W19/'Population at Risk'!W$5","v":0.10887562478253782},{"$f":"'Population at Risk'!X19/'Population at Risk'!X$5","v":0.10887562478253782},{"$f":"'Population at Risk'!Y19/'Population at Risk'!Y$5","v":9.6141562611348111E-2},{"$f":"'Population at Risk'!Z19/'Population at Risk'!Z$5","v":5.8674648255981496E-2},{"$f":"'Population at Risk'!AA19/'Population at Risk'!AA$5","v":6.3197730499270674E-2},{"$f":"'Population at Risk'!AB19/'Population at Risk'!AB$5","v":0.13363473983583704},{"$f":"'Population at Risk'!AY19/'Population at Risk'!AY$5","v":0.10007316271132913},{"$f":"'Population at Risk'!AC19/'Population at Risk'!AC$5","v":6.1197171731430237E-2},{"$f":"'Population at Risk'!AD19/'Population at Risk'!AD$5","v":0.18938456408934462},{"$f":"'Population at Risk'!AE19/'Population at Risk'!AE$5","v":0.18023262311840649},{"$f":"'Population at Risk'!G19/'Population at Risk'!G$5","v":0.2096089596910525},{"$f":"'Population at Risk'!AF19/'Population at Risk'!AF$5","v":6.4486116067270768E-2},{"$f":"'Population at Risk'!H19/'Population at Risk'!H$5","v":7.5351161490125565E-2},{"$f":"'Population at Risk'!AG19/'Population at Risk'!AG$5","v":0.15381639332435534},{"$f":"'Population at Risk'!AZ19/'Population at Risk'!AZ$5","v":0.12237319420032888},{"$f":"'Population at Risk'!I19/'Population at Risk'!I$5","v":0.15257689098193292},{"$f":"'Population at Risk'!J19/'Population at Risk'!J$5","v":8.7832277600926392E-2},{"$f":"'Population at Risk'!K19/'Population at Risk'!K$5","v":8.3440002702605515E-2},{"$f":"'Population at Risk'!AH19/'Population at Risk'!AH$5","v":7.4440231006604365E-2},{"$f":"'Population at Risk'!AI19/'Population at Risk'!AI$5","v":0.10092703215709897},{"$f":"'Population at Risk'!BA19/'Population at Risk'!BA$5","v":5.499749867008847E-2},{"$f":"'Population at Risk'!L19/'Population at Risk'!L$5","v":0.16713885964431804},{"$f":"'Population at Risk'!M19/'Population at Risk'!M$5","v":0.16713885964431804},{"$f":"'Population at Risk'!AJ19/'Population at Risk'!AJ$5","v":0.11300100591949216},{"$f":"'Population at Risk'!AK19/'Population at Risk'!AK$5","v":0.15400196748267087},{"$f":"'Population at Risk'!AL19/'Population at Risk'!AL$5","v":6.3170375421704644E-2},{"$f":"'Population at Risk'!AM19/'Population at Risk'!AM$5","v":6.3214113036310485E-2},{"$f":"'Population at Risk'!N19/'Population at Risk'!N$5","v":5.1646152810478914E-2},{"$f":"'Population at Risk'!AN19/'Population at Risk'!AN$5","v":0.18339333417178261},{"$f":"'Population at Risk'!AO19/'Population at Risk'!AO$5","v":0.18339333417178261},{"$f":"'Population at Risk'!AP19/'Population at Risk'!AP$5","v":0.14696123454762755},{"$f":"'Population at Risk'!C19/'Population at Risk'!C$5","v":0.11019001253438215},{"$f":"'Population at Risk'!AQ19/'Population at Risk'!AQ$5","v":7.6166943601404136E-2},{"$f":"'Population at Risk'!O19/'Population at Risk'!O$5","v":7.4847525057500711E-2},{"$f":"'Population at Risk'!AR19/'Population at Risk'!AR$5","v":9.9605269612517977E-2},{"$f":"'Population at Risk'!AS19/'Population at Risk'!AS$5","v":0.15257689098193292},{"$f":"'Population at Risk'!AT19/'Population at Risk'!AT$5","v":0.20446017868553595},{"$f":"'Population at Risk'!AU19/'Population at Risk'!AU$5","v":0.20446017868553595},{"$f":"'Population at Risk'!BB19/'Population at Risk'!BB$5","v":9.4666897506102743E-2},{"$f":"'Population at Risk'!P19/'Population at Risk'!P$5","v":4.3560794327451649E-2},{"$f":"'Population at Risk'!AV19/'Population at Risk'!AV$5","v":8.6287479704978284E-2},{"$f":"'Population at Risk'!AW19/'Population at Risk'!AW$5","v":8.966343844924464E-2},{"$f":"'Population at Risk'!Q19/'Population at Risk'!Q$5","v":0.10646649071378858},17]
["SIMD Q4",null,{"$f":"'Population at Risk'!R20/'Population at Risk'!R$5","v":8.8478335419906948E-2},{"$f":"'Population at Risk'!AX20/'Population at Risk'!AX$5","v":0.11847754865461441},{"$f":"'Population at Risk'!S20/'Population at Risk'!S$5","v":7.2460132542824338E-2},{"$f":"'Population at Risk'!T20/'Population at Risk'!T$5","v":7.8858551585224701E-2},{"$f":"'Population at Risk'!U20/'Population at Risk'!U$5","v":2.1653210842919966E-2},{"$f":"'Population at Risk'!D20/'Population at Risk'!D$5","v":0.12344400199087628},{"$f":"'Population at Risk'!E20/'Population at Risk'!E$5","v":0.21219645407712517},{"$f":"'Population at Risk'!BC20/'Population at Risk'!BC$5","v":2.1653210842919966E-2},{"$f":"'Population at Risk'!V20/'Population at Risk'!V$5","v":8.6747025118208726E-2},{"$f":"'Population at Risk'!F20/'Population at Risk'!F$5","v":0.14173767949589364},{"$f":"'Population at Risk'!W20/'Population at Risk'!W$5","v":6.7865800640128593E-2},{"$f":"'Population at Risk'!X20/'Population at Risk'!X$5","v":6.7865800640128593E-2},{"$f":"'Population at Risk'!Y20/'Population at Risk'!Y$5","v":9.2189018829459651E-2},{"$f":"'Population at Risk'!Z20/'Population at Risk'!Z$5","v":3.8049724925515623E-2},{"$f":"'Population at Risk'!AA20/'Population at Risk'!AA$5","v":4.7650922914231564E-2},{"$f":"'Population at Risk'!AB20/'Population at Risk'!AB$5","v":0.15353459516004692},{"$f":"'Population at Risk'!AY20/'Population at Risk'!AY$5","v":8.1521929932504331E-2},{"$f":"'Population at Risk'!AC20/'Population at Risk'!AC$5","v":4.7477485238243487E-2},{"$f":"'Population at Risk'!AD20/'Population at Risk'!AD$5","v":0.13339127746721952},{"$f":"'Population at Risk'!AE20/'Population at Risk'!AE$5","v":0.14703126756255441},{"$f":"'Population at Risk'!G20/'Population at Risk'!G$5","v":9.7679741785620555E-2},{"$f":"'Population at Risk'!AF20/'Population at Risk'!AF$5","v":5.8170813582266147E-2},{"$f":"'Population at Risk'!H20/'Population at Risk'!H$5","v":4.8355929658797751E-2},{"$f":"'Population at Risk'!AG20/'Population at Risk'!AG$5","v":0.12548127464983189},{"$f":"'Population at Risk'!AZ20/'Population at Risk'!AZ$5","v":0.11967371977060305},{"$f":"'Population at Risk'!I20/'Population at Risk'!I$5","v":0.12084795596529807},{"$f":"'Population at Risk'!J20/'Population at Risk'!J$5","v":9.8961531350004184E-2},{"$f":"'Population at Risk'!K20/'Population at Risk'!K$5","v":6.9593726467988837E-2},{"$f":"'Population at Risk'!AH20/'Population at Risk'!AH$5","v":5.388035815928973E-2},{"$f":"'Population at Risk'!AI20/'Population at Risk'!AI$5","v":7.6940206880170101E-2},{"$f":"'Population at Risk'!BA20/'Population at Risk'!BA$5","v":3.5327660025267882E-2},{"$f":"'Population at Risk'!L20/'Population at Risk'!L$5","v":6.3151536873301425E-2},{"$f":"'Population at Risk'!M20/'Population at Risk'!M$5","v":6.3151536873301425E-2},{"$f":"'Population at Risk'!AJ20/'Population at Risk'!AJ$5","v":5.7119794170103169E-2},{"$f":"'Population at Risk'!AK20/'Population at Risk'!AK$5","v":0.16899460920734716},{"$f":"'Population at Risk'!AL20/'Population at Risk'!AL$5","v":5.5656128331364366E-2},{"$f":"'Population at Risk'!AM20/'Population at Risk'!AM$5","v":3.9038891446610068E-2},{"$f":"'Population at Risk'!N20/'Population at Risk'!N$5","v":5.4739857684911832E-2},{"$f":"'Population at Risk'!AN20/'Population at Risk'!AN$5","v":0.21502442001102051},{"$f":"'Population at Risk'!AO20/'Population at Risk'!AO$5","v":0.21502442001102051},{"$f":"'Population at Risk'!AP20/'Population at Risk'!AP$5","v":0.20005405120849476},{"$f":"'Population at Risk'!C20/'Population at Risk'!C$5","v":9.2309249899060919E-2},{"$f":"'Population at Risk'!AQ20/'Population at Risk'!AQ$5","v":6.0178531193942668E-2},{"$f":"'Population at Risk'!O20/'Population at Risk'!O$5","v":4.4737305803248285E-2},{"$f":"'Population at Risk'!AR20/'Population at Risk'!AR$5","v":7.8312644147642399E-2},{"$f":"'Population at Risk'!AS20/'Population at Risk'!AS$5","v":0.12084795596529807},{"$f":"'Population at Risk'!AT20/'Population at Risk'!AT$5","v":0.31587916173319808},{"$f":"'Population at Risk'!AU20/'Population at Risk'!AU$5","v":0.31587916173319808},{"$f":"'Population at Risk'!BB20/'Population at Risk'!BB$5","v":5.9905150012122869E-2},{"$f":"'Population at Risk'!P20/'Population at Risk'!P$5","v":9.7745122538797344E-2},{"$f":"'Population at Risk'!AV20/'Population at Risk'!AV$5","v":4.244928039162927E-2},{"$f":"'Population at Risk'!AW20/'Population at Risk'!AW$5","v":7.4495740850632999E-2},{"$f":"'Population at Risk'!Q20/'Population at Risk'!Q$5","v":0.11899493127445922},18]
["SIMD Q5 (least deprived)",null,{"$f":"'Population at Risk'!R21/'Population at Risk'!R$5","v":0.23675749473294727},{"$f":"'Population at Risk'!AX21/'Population at Risk'!AX$5","v":8.2120118872256884E-2},{"$f":"'Population at Risk'!S21/'Population at Risk'!S$5","v":6.9520964673347951E-2},{"$f":"'Population at Risk'!T21/'Population at Risk'!T$5","v":0.13367258072337224},{"$f":"'Population at Risk'!U21/'Population at Risk'!U$5","v":0},{"$f":"'Population at Risk'!D21/'Population at Risk'!D$5","v":0.11529782398961155},{"$f":"'Population at Risk'!E21/'Population at Risk'!E$5","v":0.13877024058735413},{"$f":"'Population at Risk'!BC21/'Population at Risk'!BC$5","v":0},{"$f":"'Population at Risk'!V21/'Population at Risk'!V$5","v":6.1125102513480148E-2},{"$f":"'Population at Risk'!F21/'Population at Risk'!F$5","v":6.8863879893099583E-2},{"$f":"'Population at Risk'!W21/'Population at Risk'!W$5","v":5.8389324455371108E-2},{"$f":"'Population at Risk'!X21/'Population at Risk'!X$5","v":5.8389324455371108E-2},{"$f":"'Population at Risk'!Y21/'Population at Risk'!Y$5","v":6.0956549696658223E-2},{"$f":"'Population at Risk'!Z21/'Population at Risk'!Z$5","v":2.2985131124958261E-2},{"$f":"'Population at Risk'!AA21/'Population at Risk'!AA$5","v":3.4229746432091444E-2},{"$f":"'Population at Risk'!AB21/'Population at Risk'!AB$5","v":0.12498781050712247},{"$f":"'Population at Risk'!AY21/'Population at Risk'!AY$5","v":4.5778579274512496E-2},{"$f":"'Population at Risk'!AC21/'Population at Risk'!AC$5","v":4.2762242303756359E-2},{"$f":"'Population at Risk'!AD21/'Population at Risk'!AD$5","v":3.1973629215841605E-2},{"$f":"'Population at Risk'!AE21/'Population at Risk'!AE$5","v":2.7739374772555357E-2},{"$f":"'Population at Risk'!G21/'Population at Risk'!G$5","v":4.2076300380936169E-2},{"$f":"'Population at Risk'!AF21/'Population at Risk'!AF$5","v":2.4613273547496942E-2},{"$f":"'Population at Risk'!H21/'Population at Risk'!H$5","v":2.9859577288566089E-2},{"$f":"'Population at Risk'!AG21/'Population at Risk'!AG$5","v":2.3673686299199876E-2},{"$f":"'Population at Risk'!AZ21/'Population at Risk'!AZ$5","v":4.7742397568929847E-2},{"$f":"'Population at Risk'!I21/'Population at Risk'!I$5","v":2.2173209849277561E-2},{"$f":"'Population at Risk'!J21/'Population at Risk'!J$5","v":6.1726433252304036E-2},{"$f":"'Population at Risk'!K21/'Population at Risk'!K$5","v":3.1037908500358074E-2},{"$f":"'Population at Risk'!AH21/'Population at Risk'!AH$5","v":2.413078208212106E-2},{"$f":"'Population at Risk'!AI21/'Population at Risk'!AI$5","v":9.0245899941307273E-2},{"$f":"'Population at Risk'!BA21/'Population at Risk'!BA$5","v":8.0777265675027049E-3},{"$f":"'Population at Risk'!L21/'Population at Risk'!L$5","v":2.1175867267007306E-2},{"$f":"'Population at Risk'!M21/'Population at Risk'!M$5","v":2.1175867267007306E-2},{"$f":"'Population at Risk'!AJ21/'Population at Risk'!AJ$5","v":4.1734111523464269E-2},{"$f":"'Population at Risk'!AK21/'Population at Risk'!AK$5","v":6.0394486825222318E-2},{"$f":"'Population at Risk'!AL21/'Population at Risk'!AL$5","v":2.1922021842827752E-2},{"$f":"'Population at Risk'!AM21/'Population at Risk'!AM$5","v":1.6885148790507655E-2},{"$f":"'Population at Risk'!N21/'Population at Risk'!N$5","v":3.2129896470390787E-2},{"$f":"'Population at Risk'!AN21/'Population at Risk'!AN$5","v":2.4431406153726722E-2},{"$f":"'Population at Risk'!AO21/'Population at Risk'!AO$5","v":2.4431406153726722E-2},{"$f":"'Population at Risk'!AP21/'Population at Risk'!AP$5","v":5.5881405498380679E-2},{"$f":"'Population at Risk'!C21/'Population at Risk'!C$5","v":0.14114723365927703},{"$f":"'Population at Risk'!AQ21/'Population at Risk'!AQ$5","v":4.1690424369971633E-2},{"$f":"'Population at Risk'!O21/'Population at Risk'!O$5","v":2.592098596787391E-2},{"$f":"'Population at Risk'!AR21/'Population at Risk'!AR$5","v":5.345424316401446E-2},{"$f":"'Population at Risk'!AS21/'Population at Risk'!AS$5","v":2.2173209849277561E-2},{"$f":"'Population at Risk'!AT21/'Population at Risk'!AT$5","v":0},{"$f":"'Population at Risk'!AU21/'Population at Risk'!AU$5","v":0},{"$f":"'Population at Risk'!BB21/'Population at Risk'!BB$5","v":4.0871241813090375E-2},{"$f":"'Population at Risk'!P21/'Population at Risk'!P$5","v":0.2025020860731247},{"$f":"'Population at Risk'!AV21/'Population at Risk'!AV$5","v":4.160235508975086E-2},{"$f":"'Population at Risk'!AW21/'Population at Risk'!AW$5","v":3.4219149077685147E-2},{"$f":"'Population at Risk'!Q21/'Population at Risk'!Q$5","v":4.3273708881900692E-2},19]
["All quintiles","Female 0-4",{"$f":"'Population at Risk'!R22/'Population at Risk'!R$5","v":0},{"$f":"'Population at Risk'!AX22/'Population at Risk'!AX$5","v":0},{"$f":"'Population at Risk'!S22/'Population at Risk'!S$5","v":0},{"$f":"'Population at Risk'!T22/'Population at Risk'!T$5","v":0},{"$f":"'Population at Risk'!U22/'Population at Risk'!U$5","v":0},{"$f":"'Population at Risk'!D22/'Population at Risk'!D$5","v":0},{"$f":"'Population at Risk'!E22/'Population at Risk'!E$5","v":0},{"$f":"'Population at Risk'!BC22/'Population at Risk'!BC$5","v":0},{"$f":"'Population at Risk'!V22/'Population at Risk'!V$5","v":0},{"$f":"'Population at Risk'!F22/'Population at Risk'!F$5","v":0},{"$f":"'Population at Risk'!W22/'Population at Risk'!W$5","v":0},{"$f":"'Population at Risk'!X22/'Population at Risk'!X$5","v":0},{"$f":"'Population at Risk'!Y22/'Population at Risk'!Y$5","v":0},{"$f":"'Population at Risk'!Z22/'Population at Risk'!Z$5","v":0},{"$f":"'Population at Risk'!AA22/'Population at Risk'!AA$5","v":0},{"$f":"'Population at Risk'!AB22/'Population at Risk'!AB$5","v":0},{"$f":"'Population at Risk'!AY22/'Population at Risk'!AY$5","v":0},{"$f":"'Population at Risk'!AC22/'Population at Risk'!AC$5","v":0},{"$f":"'Population at Risk'!AD22/'Population at Risk'!AD$5","v":0},{"$f":"'Population at Risk'!AE22/'Population at Risk'!AE$5","v":0},{"$f":"'Population at Risk'!G22/'Population at Risk'!G$5","v":0},{"$f":"'Population at Risk'!AF22/'Population at Risk'!AF$5","v":0},{"$f":"'Population at Risk'!H22/'Population at Risk'!H$5","v":0},{"$f":"'Population at Risk'!AG22/'Population at Risk'!AG$5","v":0},{"$f":"'Population at Risk'!AZ22/'Population at Risk'!AZ$5","v":0},{"$f":"'Population at Risk'!I22/'Population at Risk'!I$5","v":0},{"$f":"'Population at Risk'!J22/'Population at Risk'!J$5","v":0},{"$f":"'Population at Risk'!K22/'Population at Risk'!K$5","v":0},{"$f":"'Population at Risk'!AH22/'Population at Risk'!AH$5","v":0},{"$f":"'Population at Risk'!AI22/'Population at Risk'!AI$5","v":0},{"$f":"'Population at Risk'!BA22/'Population at Risk'!BA$5","v":0},{"$f":"'Population at Risk'!L22/'Population at Risk'!L$5","v":0},{"$f":"'Population at Risk'!M22/'Population at Risk'!M$5","v":0},{"$f":"'Population at Risk'!AJ22/'Population at Risk'!AJ$5","v":0},{"$f":"'Population at Risk'!AK22/'Population at Risk'!AK$5","v":0},{"$f":"'Population at Risk'!AL22/'Population at Risk'!AL$5","v":0},{"$f":"'Population at Risk'!AM22/'Population at Risk'!AM$5","v":0},{"$f":"'Population at Risk'!N22/'Population at Risk'!N$5","v":0},{"$f":"'Population at Risk'!AN22/'Population at Risk'!AN$5","v":0},{"$f":"'Population at Risk'!AO22/'Population at Risk'!AO$5","v":0},{"$f":"'Population at Risk'!AP22/'Population at Risk'!AP$5","v":0},{"$f":"'Population at Risk'!C22/'Population at Risk'!C$5","v":0},{"$f":"'Population at Risk'!AQ22/'Population at Risk'!AQ$5","v":0},{"$f":"'Population at Risk'!O22/'Population at Risk'!O$5","v":0},{"$f":"'Population at Risk'!AR22/'Population at Risk'!AR$5","v":0},{"$f":"'Population at Risk'!AS22/'Population at Risk'!AS$5","v":0},{"$f":"'Population at Risk'!AT22/'Population at Risk'!AT$5","v":0},{"$f":"'Population at Risk'!AU22/'Population at Risk'!AU$5","v":0},{"$f":"'Population at Risk'!BB22/'Population at Risk'!BB$5","v":0},{"$f":"'Population at Risk'!P22/'Population at Risk'!P$5","v":0},{"$f":"'Population at Risk'!AV22/'Population at Risk'!AV$5","v":0},{"$f":"'Population at Risk'!AW22/'Population at Risk'!AW$5","v":0},{"$f":"'Population at Risk'!Q22/'Population at Risk'!Q$5","v":0},20]
[null,"Female 5-9",{"$f":"'Population at Risk'!R23/'Population at Risk'!R$5","v":0},{"$f":"'Population at Risk'!AX23/'Population at Risk'!AX$5","v":0},{"$f":"'Population at Risk'!S23/'Population at Risk'!S$5","v":0},{"$f":"'Population at Risk'!T23/'Population at Risk'!T$5","v":0},{"$f":"'Population at Risk'!U23/'Population at Risk'!U$5","v":0},{"$f":"'Population at Risk'!D23/'Population at Risk'!D$5","v":0},{"$f":"'Population at Risk'!E23/'Population at Risk'!E$5","v":0},{"$f":"'Population at Risk'!BC23/'Population at Risk'!BC$5","v":0},{"$f":"'Population at Risk'!V23/'Population at Risk'!V$5","v":0},{"$f":"'Population at Risk'!F23/'Population at Risk'!F$5","v":0},{"$f":"'Population at Risk'!W23/'Population at Risk'!W$5","v":0},{"$f":"'Population at Risk'!X23/'Population at Risk'!X$5","v":0},{"$f":"'Population at Risk'!Y23/'Population at Risk'!Y$5","v":0},{"$f":"'Population at Risk'!Z23/'Population at Risk'!Z$5","v":0},{"$f":"'Population at Risk'!AA23/'Population at Risk'!AA$5","v":0},{"$f":"'Population at Risk'!AB23/'Population at Risk'!AB$5","v":0},{"$f":"'Population at Risk'!AY23/'Population at Risk'!AY$5","v":0},{"$f":"'Population at Risk'!AC23/'Population at Risk'!AC$5","v":0},{"$f":"'Population at Risk'!AD23/'Population at Risk'!AD$5","v":0},{"$f":"'Population at Risk'!AE23/'Population at Risk'!AE$5","v":0},{"$f":"'Population at Risk'!G23/'Population at Risk'!G$5","v":0},{"$f":"'Population at Risk'!AF23/'Population at Risk'!AF$5","v":0},{"$f":"'Population at Risk'!H23/'Population at Risk'!H$5","v":0},{"$f":"'Population at Risk'!AG23/'Population at Risk'!AG$5","v":0},{"$f":"'Population at Risk'!AZ23/'Population at Risk'!AZ$5","v":0},{"$f":"'Population at Risk'!I23/'Population at Risk'!I$5","v":0},{"$f":"'Population at Risk'!J23/'Population at Risk'!J$5","v":0},{"$f":"'Population at Risk'!K23/'Population at Risk'!K$5","v":0},{"$f":"'Population at Risk'!AH23/'Population at Risk'!AH$5","v":0},{"$f":"'Population at Risk'!AI23/'Population at Risk'!AI$5","v":0},{"$f":"'Population at Risk'!BA23/'Population at Risk'!BA$5","v":0},{"$f":"'Population at Risk'!L23/'Population at Risk'!L$5","v":0},{"$f":"'Population at Risk'!M23/'Population at Risk'!M$5","v":0},{"$f":"'Population at Risk'!AJ23/'Population at Risk'!AJ$5","v":0},{"$f":"'Population at Risk'!AK23/'Population at Risk'!AK$5","v":0},{"$f":"'Population at Risk'!AL23/'Population at Risk'!AL$5","v":0},{"$f":"'Population at Risk'!AM23/'Population at Risk'!AM$5","v":0},{"$f":"'Population at Risk'!N23/'Population at Risk'!N$5","v":0},{"$f":"'Population at Risk'!AN23/'Population at Risk'!AN$5","v":0},{"$f":"'Population at Risk'!AO23/'Population at Risk'!AO$5","v":0},{"$f":"'Population at Risk'!AP23/'Population at Risk'!AP$5","v":0},{"$f":"'Population at Risk'!C23/'Population at Risk'!C$5","v":0},{"$f":"'Population at Risk'!AQ23/'Population at Risk'!AQ$5","v":0},{"$f":"'Population at Risk'!O23/'Population at Risk'!O$5","v":0},{"$f":"'Population at Risk'!AR23/'Population at Risk'!AR$5","v":0},{"$f":"'Population at Risk'!AS23/'Population at Risk'!AS$5","v":0},{"$f":"'Population at Risk'!AT23/'Population at Risk'!AT$5","v":0},{"$f":"'Population at Risk'!AU23/'Population at Risk'!AU$5","v":0},{"$f":"'Population at Risk'!BB23/'Population at Risk'!BB$5","v":0},{"$f":"'Population at Risk'!P23/'Population at Risk'!P$5","v":0},{"$f":"'Population at Risk'!AV23/'Population at Risk'!AV$5","v":0},{"$f":"'Population at Risk'!AW23/'Population at Risk'!AW$5","v":0},{"$f":"'Population at Risk'!Q23/'Population at Risk'!Q$5","v":0},21]
[null,"Female 10-15",{"$f":"'Population at Risk'!R24/'Population at Risk'!R$5","v":0},{"$f":"'Population at Risk'!AX24/'Population at Risk'!AX$5","v":0},{"$f":"'Population at Risk'!S24/'Population at Risk'!S$5","v":0},{"$f":"'Population at Risk'!T24/'Population at Risk'!T$5","v":0},{"$f":"'Population at Risk'!U24/'Population at Risk'!U$5","v":0},{"$f":"'Population at Risk'!D24/'Population at Risk'!D$5","v":0},{"$f":"'Population at Risk'!E24/'Population at Risk'!E$5","v":0},{"$f":"'Population at Risk'!BC24/'Population at Risk'!BC$5","v":0},{"$f":"'Population at Risk'!V24/'Population at Risk'!V$5","v":0},{"$f":"'Population at Risk'!F24/'Population at Risk'!F$5","v":0},{"$f":"'Population at Risk'!W24/'Population at Risk'!W$5","v":0},{"$f":"'Population at Risk'!X24/'Population at Risk'!X$5","v":0},{"$f":"'Population at Risk'!Y24/'Population at Risk'!Y$5","v":0},{"$f":"'Population at Risk'!Z24/'Population at Risk'!Z$5","v":0},{"$f":"'Population at Risk'!AA24/'Population at Risk'!AA$5","v":0},{"$f":"'Population at Risk'!AB24/'Population at Risk'!AB$5","v":0},{"$f":"'Population at Risk'!AY24/'Population at Risk'!AY$5","v":0},{"$f":"'Population at Risk'!AC24/'Population at Risk'!AC$5","v":0},{"$f":"'Population at Risk'!AD24/'Population at Risk'!AD$5","v":0},{"$f":"'Population at Risk'!AE24/'Population at Risk'!AE$5","v":0},{"$f":"'Population at Risk'!G24/'Population at Risk'!G$5","v":0},{"$f":"'Population at Risk'!AF24/'Population at Risk'!AF$5","v":0},{"$f":"'Population at Risk'!H24/'Population at Risk'!H$5","v":0},{"$f":"'Population at Risk'!AG24/'Population at Risk'!AG$5","v":0},{"$f":"'Population at Risk'!AZ24/'Population at Risk'!AZ$5","v":0},{"$f":"'Population at Risk'!I24/'Population at Risk'!I$5","v":0},{"$f":"'Population at Risk'!J24/'Population at Risk'!J$5","v":0},{"$f":"'Population at Risk'!K24/'Population at Risk'!K$5","v":0},{"$f":"'Population at Risk'!AH24/'Population at Risk'!AH$5","v":0},{"$f":"'Population at Risk'!AI24/'Population at Risk'!AI$5","v":0},{"$f":"'Population at Risk'!BA24/'Population at Risk'!BA$5","v":0},{"$f":"'Population at Risk'!L24/'Population at Risk'!L$5","v":0},{"$f":"'Population at Risk'!M24/'Population at Risk'!M$5","v":0},{"$f":"'Population at Risk'!AJ24/'Population at Risk'!AJ$5","v":0},{"$f":"'Population at Risk'!AK24/'Population at Risk'!AK$5","v":0},{"$f":"'Population at Risk'!AL24/'Population at Risk'!AL$5","v":0},{"$f":"'Population at Risk'!AM24/'Population at Risk'!AM$5","v":0},{"$f":"'Population at Risk'!N24/'Population at Risk'!N$5","v":0},{"$f":"'Population at Risk'!AN24/'Population at Risk'!AN$5","v":0},{"$f":"'Population at Risk'!AO24/'Population at Risk'!AO$5","v":0},{"$f":"'Population at Risk'!AP24/'Population at Risk'!AP$5","v":0},{"$f":"'Population at Risk'!C24/'Population at Risk'!C$5","v":0},{"$f":"'Population at Risk'!AQ24/'Population at Risk'!AQ$5","v":0},{"$f":"'Population at Risk'!O24/'Population at Risk'!O$5","v":0},{"$f":"'Population at Risk'!AR24/'Population at Risk'!AR$5","v":0},{"$f":"'Population at Risk'!AS24/'Population at Risk'!AS$5","v":0},{"$f":"'Population at Risk'!AT24/'Population at Risk'!AT$5","v":0},{"$f":"'Population at Risk'!AU24/'Population at Risk'!AU$5","v":0},{"$f":"'Population at Risk'!BB24/'Population at Risk'!BB$5","v":0},{"$f":"'Population at Risk'!P24/'Population at Risk'!P$5","v":0},{"$f":"'Population at Risk'!AV24/'Population at Risk'!AV$5","v":0},{"$f":"'Population at Risk'!AW24/'Population at Risk'!AW$5","v":0},{"$f":"'Population at Risk'!Q24/'Population at Risk'!Q$5","v":0},22]
[null,"Female 16-19",{"$f":"'Population at Risk'!R25/'Population at Risk'!R$5","v":2.5425343228742004E-2},{"$f":"'Population at Risk'!AX25/'Population at Risk'!AX$5","v":3.1660827338936333E-2},{"$f":"'Population at Risk'!S25/'Population at Risk'!S$5","v":2.7041592540282086E-2},{"$f":"'Population at Risk'!T25/'Population at Risk'!T$5","v":2.051884630021647E-2},{"$f":"'Population at Risk'!U25/'Population at Risk'!U$5","v":2.2480639070568787E-2},{"$f":"'Population at Risk'!D25/'Population at Risk'!D$5","v":2.7082595476810668E-2},{"$f":"'Population at Risk'!E25/'Population at Risk'!E$5","v":2.212674614729768E-2},{"$f":"'Population at Risk'!BC25/'Population at Risk'!BC$5","v":2.2480639070568787E-2},{"$f":"'Population at Risk'!V25/'Population at Risk'!V$5","v":1.9397281799012001E-2},{"$f":"'Population at Risk'!F25/'Population at Risk'!F$5","v":1.5441105778391287E-2},{"$f":"'Population at Risk'!W25/'Population at Risk'!W$5","v":2.4660963951711495E-2},{"$f":"'Population at Risk'!X25/'Population at Risk'!X$5","v":2.4660963951711495E-2},{"$f":"'Population at Risk'!Y25/'Population at Risk'!Y$5","v":2.3993117781216822E-2},{"$f":"'Population at Risk'!Z25/'Population at Risk'!Z$5","v":2.2288650934167056E-2},{"$f":"'Population at Risk'!AA25/'Population at Risk'!AA$5","v":2.603028086043499E-2},{"$f":"'Population at Risk'!AB25/'Population at Risk'!AB$5","v":2.2595398979597378E-2},{"$f":"'Population at Risk'!AY25/'Population at Risk'!AY$5","v":2.8573011179112331E-2},{"$f":"'Population at Risk'!AC25/'Population at Risk'!AC$5","v":2.3419469937129872E-2},{"$f":"'Population at Risk'!AD25/'Population at Risk'!AD$5","v":2.3528041146684241E-2},{"$f":"'Population at Risk'!AE25/'Population at Risk'!AE$5","v":2.3278434473432058E-2},{"$f":"'Population at Risk'!G25/'Population at Risk'!G$5","v":2.4505508988502924E-2},{"$f":"'Population at Risk'!AF25/'Population at Risk'!AF$5","v":2.2829868745842183E-2},{"$f":"'Population at Risk'!H25/'Population at Risk'!H$5","v":2.3803475865638392E-2},{"$f":"'Population at Risk'!AG25/'Population at Risk'!AG$5","v":2.756121602697427E-2},{"$f":"'Population at Risk'!AZ25/'Population at Risk'!AZ$5","v":2.441222480511937E-2},{"$f":"'Population at Risk'!I25/'Population at Risk'!I$5","v":3.0886440630094124E-2},{"$f":"'Population at Risk'!J25/'Population at Risk'!J$5","v":2.8818148443442038E-2},{"$f":"'Population at Risk'!K25/'Population at Risk'!K$5","v":2.4540470378185453E-2},{"$f":"'Population at Risk'!AH25/'Population at Risk'!AH$5","v":2.7790907514151676E-2},{"$f":"'Population at Risk'!AI25/'Population at Risk'!AI$5","v":2.4360986324043699E-2},{"$f":"'Population at Risk'!BA25/'Population at Risk'!BA$5","v":2.5044732426272948E-2},{"$f":"'Population at Risk'!L25/'Population at Risk'!L$5","v":2.6193658439552046E-2},{"$f":"'Population at Risk'!M25/'Population at Risk'!M$5","v":2.6193658439552046E-2},{"$f":"'Population at Risk'!AJ25/'Population at Risk'!AJ$5","v":2.722259533437664E-2},{"$f":"'Population at Risk'!AK25/'Population at Risk'!AK$5","v":2.8217765211743275E-2},{"$f":"'Population at Risk'!AL25/'Population at Risk'!AL$5","v":2.1272993731935648E-2},{"$f":"'Population at Risk'!AM25/'Population at Risk'!AM$5","v":3.0422310875496582E-2},{"$f":"'Population at Risk'!N25/'Population at Risk'!N$5","v":2.9307706412500963E-2},{"$f":"'Population at Risk'!AN25/'Population at Risk'!AN$5","v":2.3358369453249782E-2},{"$f":"'Population at Risk'!AO25/'Population at Risk'!AO$5","v":2.3358369453249782E-2},{"$f":"'Population at Risk'!AP25/'Population at Risk'!AP$5","v":2.4876697355940017E-2},{"$f":"'Population at Risk'!C25/'Population at Risk'!C$5","v":2.0682018623948587E-2},{"$f":"'Population at Risk'!AQ25/'Population at Risk'!AQ$5","v":2.5028612786504117E-2},{"$f":"'Population at Risk'!O25/'Population at Risk'!O$5","v":2.3627977330016734E-2},{"$f":"'Population at Risk'!AR25/'Population at Risk'!AR$5","v":2.4518336242585141E-2},{"$f":"'Population at Risk'!AS25/'Population at Risk'!AS$5","v":3.0886440630094124E-2},{"$f":"'Population at Risk'!AT25/'Population at Risk'!AT$5","v":3.0219433637798828E-2},{"$f":"'Population at Risk'!AU25/'Population at Risk'!AU$5","v":3.0219433637798828E-2},{"$f":"'Population at Risk'!BB25/'Population at Risk'!BB$5","v":3.0196891043319213E-2},{"$f":"'Population at Risk'!P25/'Population at Risk'!P$5","v":2.3839002963477133E-2},{"$f":"'Population at Risk'!AV25/'Population at Risk'!AV$5","v":2.7768334007141786E-2},{"$f":"'Population at Risk'!AW25/'Population at Risk'!AW$5","v":2.4566552618231298E-2},{"$f":"'Population at Risk'!Q25/'Population at Risk'!Q$5","v":2.9853552988323363E-2},23]
[null,"Female 20-24",{"$f":"'Population at Risk'!R26/'Population at Risk'!R$5","v":2.883428159472674E-2},{"$f":"'Population at Risk'!AX26/'Population at Risk'!AX$5","v":5.0118127068512416E-2},{"$f":"'Population at Risk'!S26/'Population at Risk'!S$5","v":4.4581006475569195E-2},{"$f":"'Population at Risk'!T26/'Population at Risk'!T$5","v":4.8393116392039193E-2},{"$f":"'Population at Risk'!U26/'Population at Risk'!U$5","v":2.4994778345340089E-2},{"$f":"'Population at Risk'!D26/'Population at Risk'!D$5","v":4.7622699590239896E-2},{"$f":"'Population at Risk'!E26/'Population at Risk'!E$5","v":2.7265792117695524E-2},{"$f":"'Population at Risk'!BC26/'Population at Risk'!BC$5","v":2.4994778345340089E-2},{"$f":"'Population at Risk'!V26/'Population at Risk'!V$5","v":2.7096051130853376E-2},{"$f":"'Population at Risk'!F26/'Population at Risk'!F$5","v":2.0475950357513182E-2},{"$f":"'Population at Risk'!W26/'Population at Risk'!W$5","v":3.3947392727984936E-2},{"$f":"'Population at Risk'!X26/'Population at Risk'!X$5","v":3.3947392727984936E-2},{"$f":"'Population at Risk'!Y26/'Population at Risk'!Y$5","v":3.4655441412182637E-2},{"$f":"'Population at Risk'!Z26/'Population at Risk'!Z$5","v":4.495560734025375E-2},{"$f":"'Population at Risk'!AA26/'Population at Risk'!AA$5","v":4.1146423367882913E-2},{"$f":"'Population at Risk'!AB26/'Population at Risk'!AB$5","v":3.7887730246818754E-2},{"$f":"'Population at Risk'!AY26/'Population at Risk'!AY$5","v":4.2271207948143326E-2},{"$f":"'Population at Risk'!AC26/'Population at Risk'!AC$5","v":4.0949299017796044E-2},{"$f":"'Population at Risk'!AD26/'Population at Risk'!AD$5","v":2.7653396841587696E-2},{"$f":"'Population at Risk'!AE26/'Population at Risk'!AE$5","v":2.8072941093106218E-2},{"$f":"'Population at Risk'!G26/'Population at Risk'!G$5","v":2.6761416224277676E-2},{"$f":"'Population at Risk'!AF26/'Population at Risk'!AF$5","v":3.2589990355891538E-2},{"$f":"'Population at Risk'!H26/'Population at Risk'!H$5","v":3.1981742372488409E-2},{"$f":"'Population at Risk'!AG26/'Population at Risk'!AG$5","v":3.3237819100880008E-2},{"$f":"'Population at Risk'!AZ26/'Population at Risk'!AZ$5","v":3.8322005260369378E-2},{"$f":"'Population at Risk'!I26/'Population at Risk'!I$5","v":3.6565700851266619E-2},{"$f":"'Population at Risk'!J26/'Population at Risk'!J$5","v":4.289732453943032E-2},{"$f":"'Population at Risk'!K26/'Population at Risk'!K$5","v":3.2031423138761256E-2},{"$f":"'Population at Risk'!AH26/'Population at Risk'!AH$5","v":3.6168738378280559E-2},{"$f":"'Population at Risk'!AI26/'Population at Risk'!AI$5","v":4.4829413226670209E-2},{"$f":"'Population at Risk'!BA26/'Population at Risk'!BA$5","v":3.6708176969034154E-2},{"$f":"'Population at Risk'!L26/'Population at Risk'!L$5","v":3.3446614516295388E-2},{"$f":"'Population at Risk'!M26/'Population at Risk'!M$5","v":3.3446614516295388E-2},{"$f":"'Population at Risk'!AJ26/'Population at Risk'!AJ$5","v":3.3922748171902391E-2},{"$f":"'Population at Risk'!AK26/'Population at Risk'!AK$5","v":3.6464280933064801E-2},{"$f":"'Population at Risk'!AL26/'Population at Risk'!AL$5","v":2.8540413437060083E-2},{"$f":"'Population at Risk'!AM26/'Population at Risk'!AM$5","v":3.8624203459914505E-2},{"$f":"'Population at Risk'!N26/'Population at Risk'!N$5","v":5.645225919114559E-2},{"$f":"'Population at Risk'!AN26/'Population at Risk'!AN$5","v":3.1805229933192951E-2},{"$f":"'Population at Risk'!AO26/'Population at Risk'!AO$5","v":3.1805229933192951E-2},{"$f":"'Population at Risk'!AP26/'Population at Risk'!AP$5","v":3.1254346179241804E-2},{"$f":"'Population at Risk'!C26/'Population at Risk'!C$5","v":4.7130482604715924E-2},{"$f":"'Population at Risk'!AQ26/'Population at Risk'!AQ$5","v":3.6793383814407089E-2},{"$f":"'Population at Risk'!O26/'Population at Risk'!O$5","v":3.2531898133524681E-2},{"$f":"'Population at Risk'!AR26/'Population at Risk'!AR$5","v":3.7841911025172731E-2},{"$f":"'Population at Risk'!AS26/'Population at Risk'!AS$5","v":3.6565700851266619E-2},{"$f":"'Population at Risk'!AT26/'Population at Risk'!AT$5","v":3.2548383231844835E-2},{"$f":"'Population at Risk'!AU26/'Population at Risk'!AU$5","v":3.2548383231844835E-2},{"$f":"'Population at Risk'!BB26/'Population at Risk'!BB$5","v":3.8294142476432265E-2},{"$f":"'Population at Risk'!P26/'Population at Risk'!P$5","v":3.1284931181489034E-2},{"$f":"'Population at Risk'!AV26/'Population at Risk'!AV$5","v":3.6275469491485732E-2},{"$f":"'Population at Risk'!AW26/'Population at Risk'!AW$5","v":3.2947297021510405E-2},{"$f":"'Population at Risk'!Q26/'Population at Risk'!Q$5","v":4.2105939865332023E-2},24]
[null,"Female 25-29",{"$f":"'Population at Risk'!R27/'Population at Risk'!R$5","v":2.9266914547159933E-2},{"$f":"'Population at Risk'!AX27/'Population at Risk'!AX$5","v":4.7994106540393579E-2},{"$f":"'Population at Risk'!S27/'Population at Risk'!S$5","v":5.4223424763852085E-2},{"$f":"'Population at Risk'!T27/'Population at Risk'!T$5","v":6.3500421706145269E-2},{"$f":"'Population at Risk'!U27/'Population at Risk'!U$5","v":3.0633811438138626E-2},{"$f":"'Population at Risk'!D27/'Population at Risk'!D$5","v":5.4218873289938747E-2},{"$f":"'Population at Risk'!E27/'Population at Risk'!E$5","v":3.1136324838766799E-2},{"$f":"'Population at Risk'!BC27/'Population at Risk'!BC$5","v":3.0633811438138626E-2},{"$f":"'Population at Risk'!V27/'Population at Risk'!V$5","v":3.2091689017634838E-2},{"$f":"'Population at Risk'!F27/'Population at Risk'!F$5","v":2.1878337668289116E-2},{"$f":"'Population at Risk'!W27/'Population at Risk'!W$5","v":3.9500508713583952E-2},{"$f":"'Population at Risk'!X27/'Population at Risk'!X$5","v":3.9500508713583952E-2},{"$f":"'Population at Risk'!Y27/'Population at Risk'!Y$5","v":3.8045060690158894E-2},{"$f":"'Population at Risk'!Z27/'Population at Risk'!Z$5","v":6.3088015924165783E-2},{"$f":"'Population at Risk'!AA27/'Population at Risk'!AA$5","v":5.2849238952526967E-2},{"$f":"'Population at Risk'!AB27/'Population at Risk'!AB$5","v":4.2836916052968715E-2},{"$f":"'Population at Risk'!AY27/'Population at Risk'!AY$5","v":4.8252160994532688E-2},{"$f":"'Population at Risk'!AC27/'Population at Risk'!AC$5","v":5.4228059594630992E-2},{"$f":"'Population at Risk'!AD27/'Population at Risk'!AD$5","v":3.2172721647137255E-2},{"$f":"'Population at Risk'!AE27/'Population at Risk'!AE$5","v":3.3115619220915944E-2},{"$f":"'Population at Risk'!G27/'Population at Risk'!G$5","v":2.9833063839711144E-2},{"$f":"'Population at Risk'!AF27/'Population at Risk'!AF$5","v":3.8739929933356926E-2},{"$f":"'Population at Risk'!H27/'Population at Risk'!H$5","v":3.7784513424649106E-2},{"$f":"'Population at Risk'!AG27/'Population at Risk'!AG$5","v":3.920825243881277E-2},{"$f":"'Population at Risk'!AZ27/'Population at Risk'!AZ$5","v":4.3091851843522669E-2},{"$f":"'Population at Risk'!I27/'Population at Risk'!I$5","v":3.6406334569757545E-2},{"$f":"'Population at Risk'!J27/'Population at Risk'!J$5","v":4.3852895752243687E-2},{"$f":"'Population at Risk'!K27/'Population at Risk'!K$5","v":3.7621180105375851E-2},{"$f":"'Population at Risk'!AH27/'Population at Risk'!AH$5","v":4.3232860984622055E-2},{"$f":"'Population at Risk'!AI27/'Population at Risk'!AI$5","v":5.6222366588704886E-2},{"$f":"'Population at Risk'!BA27/'Population at Risk'!BA$5","v":4.5091998501542115E-2},{"$f":"'Population at Risk'!L27/'Population at Risk'!L$5","v":3.7583981688963639E-2},{"$f":"'Population at Risk'!M27/'Population at Risk'!M$5","v":3.7583981688963639E-2},{"$f":"'Population at Risk'!AJ27/'Population at Risk'!AJ$5","v":4.0222878993634394E-2},{"$f":"'Population at Risk'!AK27/'Population at Risk'!AK$5","v":3.9385405789592452E-2},{"$f":"'Population at Risk'!AL27/'Population at Risk'!AL$5","v":3.3383009794413505E-2},{"$f":"'Population at Risk'!AM27/'Population at Risk'!AM$5","v":4.7969668001347478E-2},{"$f":"'Population at Risk'!N27/'Population at Risk'!N$5","v":6.4821530773341934E-2},{"$f":"'Population at Risk'!AN27/'Population at Risk'!AN$5","v":3.7305501386913992E-2},{"$f":"'Population at Risk'!AO27/'Population at Risk'!AO$5","v":3.7305501386913992E-2},{"$f":"'Population at Risk'!AP27/'Population at Risk'!AP$5","v":3.4976417425417128E-2},{"$f":"'Population at Risk'!C27/'Population at Risk'!C$5","v":5.3571606126078197E-2},{"$f":"'Population at Risk'!AQ27/'Population at Risk'!AQ$5","v":4.5989800717113394E-2},{"$f":"'Population at Risk'!O27/'Population at Risk'!O$5","v":4.016684101107218E-2},{"$f":"'Population at Risk'!AR27/'Population at Risk'!AR$5","v":4.5911629602774874E-2},{"$f":"'Population at Risk'!AS27/'Population at Risk'!AS$5","v":3.6406334569757545E-2},{"$f":"'Population at Risk'!AT27/'Population at Risk'!AT$5","v":4.1492086481356188E-2},{"$f":"'Population at Risk'!AU27/'Population at Risk'!AU$5","v":4.1492086481356188E-2},{"$f":"'Population at Risk'!BB27/'Population at Risk'!BB$5","v":4.7151656636762136E-2},{"$f":"'Population at Risk'!P27/'Population at Risk'!P$5","v":3.1069402550687866E-2},{"$f":"'Population at Risk'!AV27/'Population at Risk'!AV$5","v":4.1036617158767635E-2},{"$f":"'Population at Risk'!AW27/'Population at Risk'!AW$5","v":3.7569829807140256E-2},{"$f":"'Population at Risk'!Q27/'Population at Risk'!Q$5","v":4.0591515515733916E-2},25]
[null,"Female 30-34",{"$f":"'Population at Risk'!R28/'Population at Risk'!R$5","v":2.8542363916116614E-2},{"$f":"'Population at Risk'!AX28/'Population at Risk'!AX$5","v":3.746339490157783E-2},{"$f":"'Population at Risk'!S28/'Population at Risk'!S$5","v":5.0865249978188788E-2},{"$f":"'Population at Risk'!T28/'Population at Risk'!T$5","v":5.4133097310339134E-2},{"$f":"'Population at Risk'!U28/'Population at Risk'!U$5","v":3.2930527508709416E-2},{"$f":"'Population at Risk'!D28/'Population at Risk'!D$5","v":5.1378419000252085E-2},{"$f":"'Population at Risk'!E28/'Population at Risk'!E$5","v":3.6076978414326499E-2},{"$f":"'Population at Risk'!BC28/'Population at Risk'!BC$5","v":3.2930527508709416E-2},{"$f":"'Population at Risk'!V28/'Population at Risk'!V$5","v":3.4819493234251014E-2},{"$f":"'Population at Risk'!F28/'Population at Risk'!F$5","v":2.3816792554823843E-2},{"$f":"'Population at Risk'!W28/'Population at Risk'!W$5","v":3.7735635206484042E-2},{"$f":"'Population at Risk'!X28/'Population at Risk'!X$5","v":3.7735635206484042E-2},{"$f":"'Population at Risk'!Y28/'Population at Risk'!Y$5","v":3.6964108797718845E-2},{"$f":"'Population at Risk'!Z28/'Population at Risk'!Z$5","v":5.2304646063156698E-2},{"$f":"'Population at Risk'!AA28/'Population at Risk'!AA$5","v":4.9135263509795336E-2},{"$f":"'Population at Risk'!AB28/'Population at Risk'!AB$5","v":4.1586563429348793E-2},{"$f":"'Population at Risk'!AY28/'Population at Risk'!AY$5","v":4.5026282806584821E-2},{"$f":"'Population at Risk'!AC28/'Population at Risk'!AC$5","v":4.7269886197308722E-2},{"$f":"'Population at Risk'!AD28/'Population at Risk'!AD$5","v":3.4947855536908282E-2},{"$f":"'Population at Risk'!AE28/'Population at Risk'!AE$5","v":3.6563594095467195E-2},{"$f":"'Population at Risk'!G28/'Population at Risk'!G$5","v":3.0713096959343468E-2},{"$f":"'Population at Risk'!AF28/'Population at Risk'!AF$5","v":3.7729773394221199E-2},{"$f":"'Population at Risk'!H28/'Population at Risk'!H$5","v":3.5953008770236945E-2},{"$f":"'Population at Risk'!AG28/'Population at Risk'!AG$5","v":4.3290587979097746E-2},{"$f":"'Population at Risk'!AZ28/'Population at Risk'!AZ$5","v":3.9449008572464368E-2},{"$f":"'Population at Risk'!I28/'Population at Risk'!I$5","v":3.9873626959538597E-2},{"$f":"'Population at Risk'!J28/'Population at Risk'!J$5","v":3.7578789852617707E-2},{"$f":"'Population at Risk'!K28/'Population at Risk'!K$5","v":3.7752436778300057E-2},{"$f":"'Population at Risk'!AH28/'Population at Risk'!AH$5","v":4.6410064582713191E-2},{"$f":"'Population at Risk'!AI28/'Population at Risk'!AI$5","v":5.1811807343933439E-2},{"$f":"'Population at Risk'!BA28/'Population at Risk'!BA$5","v":4.6249092377829294E-2},{"$f":"'Population at Risk'!L28/'Population at Risk'!L$5","v":3.6344833192105679E-2},{"$f":"'Population at Risk'!M28/'Population at Risk'!M$5","v":3.6344833192105679E-2},{"$f":"'Population at Risk'!AJ28/'Population at Risk'!AJ$5","v":4.2436869479802276E-2},{"$f":"'Population at Risk'!AK28/'Population at Risk'!AK$5","v":4.440943324465875E-2},{"$f":"'Population at Risk'!AL28/'Population at Risk'!AL$5","v":3.1156953120873614E-2},{"$f":"'Population at Risk'!AM28/'Population at Risk'!AM$5","v":5.0614535958005961E-2},{"$f":"'Population at Risk'!N28/'Population at Risk'!N$5","v":5.0109796997162899E-2},{"$f":"'Population at Risk'!AN28/'Population at Risk'!AN$5","v":3.6831085009407599E-2},{"$f":"'Population at Risk'!AO28/'Population at Risk'!AO$5","v":3.6831085009407599E-2},{"$f":"'Population at Risk'!AP28/'Population at Risk'!AP$5","v":3.8328994284336088E-2},{"$f":"'Population at Risk'!C28/'Population at Risk'!C$5","v":4.468978867413842E-2},{"$f":"'Population at Risk'!AQ28/'Population at Risk'!AQ$5","v":4.3413586532099896E-2},{"$f":"'Population at Risk'!O28/'Population at Risk'!O$5","v":3.816932083381197E-2},{"$f":"'Population at Risk'!AR28/'Population at Risk'!AR$5","v":4.3414607501996723E-2},{"$f":"'Population at Risk'!AS28/'Population at Risk'!AS$5","v":3.9873626959538597E-2},{"$f":"'Population at Risk'!AT28/'Population at Risk'!AT$5","v":3.8103292737934148E-2},{"$f":"'Population at Risk'!AU28/'Population at Risk'!AU$5","v":3.8103292737934148E-2},{"$f":"'Population at Risk'!BB28/'Population at Risk'!BB$5","v":5.1457443540297611E-2},{"$f":"'Population at Risk'!P28/'Population at Risk'!P$5","v":2.9415477319302559E-2},{"$f":"'Population at Risk'!AV28/'Population at Risk'!AV$5","v":4.0255376468101622E-2},{"$f":"'Population at Risk'!AW28/'Population at Risk'!AW$5","v":4.1216502113870152E-2},{"$f":"'Population at Risk'!Q28/'Population at Risk'!Q$5","v":4.2418290089618678E-2},26]
[null,"Female 35-39",{"$f":"'Population at Risk'!R29/'Population at Risk'!R$5","v":3.3503249854614552E-2},{"$f":"'Population at Risk'!AX29/'Population at Risk'!AX$5","v":3.6116413787062963E-2},{"$f":"'Population at Risk'!S29/'Population at Risk'!S$5","v":4.475568576968577E-2},{"$f":"'Population at Risk'!T29/'Population at Risk'!T$5","v":4.1185263052688083E-2},{"$f":"'Population at Risk'!U29/'Population at Risk'!U$5","v":3.6458017563414373E-2},{"$f":"'Population at Risk'!D29/'Population at Risk'!D$5","v":4.2339631567508043E-2},{"$f":"'Population at Risk'!E29/'Population at Risk'!E$5","v":3.3702865078725011E-2},{"$f":"'Population at Risk'!BC29/'Population at Risk'!BC$5","v":3.6458017563414373E-2},{"$f":"'Population at Risk'!V29/'Population at Risk'!V$5","v":3.3498492202964331E-2},{"$f":"'Population at Risk'!F29/'Population at Risk'!F$5","v":2.2832558247236096E-2},{"$f":"'Population at Risk'!W29/'Population at Risk'!W$5","v":3.7437917719982429E-2},{"$f":"'Population at Risk'!X29/'Population at Risk'!X$5","v":3.7437917719982429E-2},{"$f":"'Population at Risk'!Y29/'Population at Risk'!Y$5","v":3.6114965689615287E-2},{"$f":"'Population at Risk'!Z29/'Population at Risk'!Z$5","v":4.3787737073629304E-2},{"$f":"'Population at Risk'!AA29/'Population at Risk'!AA$5","v":4.5273495667779128E-2},{"$f":"'Population at Risk'!AB29/'Population at Risk'!AB$5","v":3.4272964014513838E-2},{"$f":"'Population at Risk'!AY29/'Population at Risk'!AY$5","v":4.1538970278847766E-2},{"$f":"'Population at Risk'!AC29/'Population at Risk'!AC$5","v":4.2177117415794024E-2},{"$f":"'Population at Risk'!AD29/'Population at Risk'!AD$5","v":3.3378721602587105E-2},{"$f":"'Population at Risk'!AE29/'Population at Risk'!AE$5","v":3.4116241878022542E-2},{"$f":"'Population at Risk'!G29/'Population at Risk'!G$5","v":3.1640465896588539E-2},{"$f":"'Population at Risk'!AF29/'Population at Risk'!AF$5","v":3.7260526699116385E-2},{"$f":"'Population at Risk'!H29/'Population at Risk'!H$5","v":3.6288905347446547E-2},{"$f":"'Population at Risk'!AG29/'Population at Risk'!AG$5","v":4.0392970304847772E-2},{"$f":"'Population at Risk'!AZ29/'Population at Risk'!AZ$5","v":3.4110245954832336E-2},{"$f":"'Population at Risk'!I29/'Population at Risk'!I$5","v":3.7582867155287303E-2},{"$f":"'Population at Risk'!J29/'Population at Risk'!J$5","v":3.743546267429506E-2},{"$f":"'Population at Risk'!K29/'Population at Risk'!K$5","v":3.9420374336620809E-2},{"$f":"'Population at Risk'!AH29/'Population at Risk'!AH$5","v":4.5483029047908852E-2},{"$f":"'Population at Risk'!AI29/'Population at Risk'!AI$5","v":4.3341570710402774E-2},{"$f":"'Population at Risk'!BA29/'Population at Risk'!BA$5","v":4.3003937159160392E-2},{"$f":"'Population at Risk'!L29/'Population at Risk'!L$5","v":3.4866972692055291E-2},{"$f":"'Population at Risk'!M29/'Population at Risk'!M$5","v":3.4866972692055291E-2},{"$f":"'Population at Risk'!AJ29/'Population at Risk'!AJ$5","v":4.2509746413680653E-2},{"$f":"'Population at Risk'!AK29/'Population at Risk'!AK$5","v":3.6614843645416992E-2},{"$f":"'Population at Risk'!AL29/'Population at Risk'!AL$5","v":3.1929098794150408E-2},{"$f":"'Population at Risk'!AM29/'Population at Risk'!AM$5","v":4.9893758305331971E-2},{"$f":"'Population at Risk'!N29/'Population at Risk'!N$5","v":4.1528377685425368E-2},{"$f":"'Population at Risk'!AN29/'Population at Risk'!AN$5","v":3.2431240668731355E-2},{"$f":"'Population at Risk'!AO29/'Population at Risk'!AO$5","v":3.2431240668731355E-2},{"$f":"'Population at Risk'!AP29/'Population at Risk'!AP$5","v":3.2482289221806925E-2},{"$f":"'Population at Risk'!C29/'Population at Risk'!C$5","v":3.3155130299060483E-2},{"$f":"'Population at Risk'!AQ29/'Population at Risk'!AQ$5","v":4.1700384265270105E-2},{"$f":"'Population at Risk'!O29/'Population at Risk'!O$5","v":3.7890065945639866E-2},{"$f":"'Population at Risk'!AR29/'Population at Risk'!AR$5","v":3.9476724299704849E-2},{"$f":"'Population at Risk'!AS29/'Population at Risk'!AS$5","v":3.7582867155287303E-2},{"$f":"'Population at Risk'!AT29/'Population at Risk'!AT$5","v":3.7326741279506845E-2},{"$f":"'Population at Risk'!AU29/'Population at Risk'!AU$5","v":3.7326741279506845E-2},{"$f":"'Population at Risk'!BB29/'Population at Risk'!BB$5","v":4.7765093747417262E-2},{"$f":"'Population at Risk'!P29/'Population at Risk'!P$5","v":3.3688392888082265E-2},{"$f":"'Population at Risk'!AV29/'Population at Risk'!AV$5","v":4.0630823048527651E-2},{"$f":"'Population at Risk'!AW29/'Population at Risk'!AW$5","v":4.0101250910097412E-2},{"$f":"'Population at Risk'!Q29/'Population at Risk'!Q$5","v":4.3201475377955954E-2},27]
[null,"Female 40-44",{"$f":"'Population at Risk'!R30/'Population at Risk'!R$5","v":3.5488288591061838E-2},{"$f":"'Population at Risk'!AX30/'Population at Risk'!AX$5","v":3.9211536076659219E-2},{"$f":"'Population at Risk'!S30/'Population at Risk'!S$5","v":4.4171602816300434E-2},{"$f":"'Population at Risk'!T30/'Population at Risk'!T$5","v":3.4710915410206128E-2},{"$f":"'Population at Risk'!U30/'Population at Risk'!U$5","v":4.0867817351683357E-2},{"$f":"'Population at Risk'!D30/'Population at Risk'!D$5","v":4.160365305537414E-2},{"$f":"'Population at Risk'!E30/'Population at Risk'!E$5","v":3.5754007855160676E-2},{"$f":"'Population at Risk'!BC30/'Population at Risk'!BC$5","v":4.0867817351683357E-2},{"$f":"'Population at Risk'!V30/'Population at Risk'!V$5","v":3.7244905695229438E-2},{"$f":"'Population at Risk'!F30/'Population at Risk'!F$5","v":2.4850926847826495E-2},{"$f":"'Population at Risk'!W30/'Population at Risk'!W$5","v":3.9524056432091059E-2},{"$f":"'Population at Risk'!X30/'Population at Risk'!X$5","v":3.9524056432091059E-2},{"$f":"'Population at Risk'!Y30/'Population at Risk'!Y$5","v":3.9848106629034472E-2},{"$f":"'Population at Risk'!Z30/'Population at Risk'!Z$5","v":3.86989218317653E-2},{"$f":"'Population at Risk'!AA30/'Population at Risk'!AA$5","v":4.4359870644033489E-2},{"$f":"'Population at Risk'!AB30/'Population at Risk'!AB$5","v":3.4728707561093607E-2},{"$f":"'Population at Risk'!AY30/'Population at Risk'!AY$5","v":4.2469177963898597E-2},{"$f":"'Population at Risk'!AC30/'Population at Risk'!AC$5","v":3.9879773147436945E-2},{"$f":"'Population at Risk'!AD30/'Population at Risk'!AD$5","v":3.7589871650755634E-2},{"$f":"'Population at Risk'!AE30/'Population at Risk'!AE$5","v":3.7476142693213262E-2},{"$f":"'Population at Risk'!G30/'Population at Risk'!G$5","v":3.8335511209832668E-2},{"$f":"'Population at Risk'!AF30/'Population at Risk'!AF$5","v":3.9683087405574052E-2},{"$f":"'Population at Risk'!H30/'Population at Risk'!H$5","v":4.1400381490556241E-2},{"$f":"'Population at Risk'!AG30/'Population at Risk'!AG$5","v":4.4371027862900786E-2},{"$f":"'Population at Risk'!AZ30/'Population at Risk'!AZ$5","v":3.3788670234697837E-2},{"$f":"'Population at Risk'!I30/'Population at Risk'!I$5","v":4.7613808419438818E-2},{"$f":"'Population at Risk'!J30/'Population at Risk'!J$5","v":4.0913122352283213E-2},{"$f":"'Population at Risk'!K30/'Population at Risk'!K$5","v":4.3473678276807627E-2},{"$f":"'Population at Risk'!AH30/'Population at Risk'!AH$5","v":4.7421185425641846E-2},{"$f":"'Population at Risk'!AI30/'Population at Risk'!AI$5","v":4.0450343918496862E-2},{"$f":"'Population at Risk'!BA30/'Population at Risk'!BA$5","v":4.4274905371336076E-2},{"$f":"'Population at Risk'!L30/'Population at Risk'!L$5","v":4.055398963146447E-2},{"$f":"'Population at Risk'!M30/'Population at Risk'!M$5","v":4.055398963146447E-2},{"$f":"'Population at Risk'!AJ30/'Population at Risk'!AJ$5","v":4.2042280062652135E-2},{"$f":"'Population at Risk'!AK30/'Population at Risk'!AK$5","v":4.3477134353191373E-2},{"$f":"'Population at Risk'!AL30/'Population at Risk'!AL$5","v":3.7729531408428593E-2},{"$f":"'Population at Risk'!AM30/'Population at Risk'!AM$5","v":5.2024973413583621E-2},{"$f":"'Population at Risk'!N30/'Population at Risk'!N$5","v":3.6250670104399203E-2},{"$f":"'Population at Risk'!AN30/'Population at Risk'!AN$5","v":3.9575929064904841E-2},{"$f":"'Population at Risk'!AO30/'Population at Risk'!AO$5","v":3.9575929064904841E-2},{"$f":"'Population at Risk'!AP30/'Population at Risk'!AP$5","v":3.5227339467881695E-2},{"$f":"'Population at Risk'!C30/'Population at Risk'!C$5","v":3.0141064998601134E-2},{"$f":"'Population at Risk'!AQ30/'Population at Risk'!AQ$5","v":4.3051019847651542E-2},{"$f":"'Population at Risk'!O30/'Population at Risk'!O$5","v":4.2312186991517252E-2},{"$f":"'Population at Risk'!AR30/'Population at Risk'!AR$5","v":4.0100289982468174E-2},{"$f":"'Population at Risk'!AS30/'Population at Risk'!AS$5","v":4.7613808419438818E-2},{"$f":"'Population at Risk'!AT30/'Population at Risk'!AT$5","v":3.758771589798527E-2},{"$f":"'Population at Risk'!AU30/'Population at Risk'!AU$5","v":3.758771589798527E-2},{"$f":"'Population at Risk'!BB30/'Population at Risk'!BB$5","v":5.229505206122876E-2},{"$f":"'Population at Risk'!P30/'Population at Risk'!P$5","v":3.6639180987815489E-2},{"$f":"'Population at Risk'!AV30/'Population at Risk'!AV$5","v":4.5210873802624153E-2},{"$f":"'Population at Risk'!AW30/'Population at Risk'!AW$5","v":4.1804939342793175E-2},{"$f":"'Population at Risk'!Q30/'Population at Risk'!Q$5","v":4.5158733387844943E-2},28]
[null,"Female 45-49",{"$f":"'Population at Risk'!R31/'Population at Risk'!R$5","v":4.5863882007153231E-2},{"$f":"'Population at Risk'!AX31/'Population at Risk'!AX$5","v":4.9945895664953152E-2},{"$f":"'Population at Risk'!S31/'Population at Risk'!S$5","v":5.2202221662716729E-2},{"$f":"'Population at Risk'!T31/'Population at Risk'!T$5","v":3.6271037558577156E-2},{"$f":"'Population at Risk'!U31/'Population at Risk'!U$5","v":5.0920959971644829E-2},{"$f":"'Population at Risk'!D31/'Population at Risk'!D$5","v":4.7206837636759223E-2},{"$f":"'Population at Risk'!E31/'Population at Risk'!E$5","v":4.2935606893245888E-2},{"$f":"'Population at Risk'!BC31/'Population at Risk'!BC$5","v":5.0920959971644829E-2},{"$f":"'Population at Risk'!V31/'Population at Risk'!V$5","v":4.258746256160019E-2},{"$f":"'Population at Risk'!F31/'Population at Risk'!F$5","v":2.9706331810244853E-2},{"$f":"'Population at Risk'!W31/'Population at Risk'!W$5","v":4.9570955832999121E-2},{"$f":"'Population at Risk'!X31/'Population at Risk'!X$5","v":4.9570955832999121E-2},{"$f":"'Population at Risk'!Y31/'Population at Risk'!Y$5","v":4.7786383987782753E-2},{"$f":"'Population at Risk'!Z31/'Population at Risk'!Z$5","v":4.7837903852486222E-2},{"$f":"'Population at Risk'!AA31/'Population at Risk'!AA$5","v":5.6183124363101931E-2},{"$f":"'Population at Risk'!AB31/'Population at Risk'!AB$5","v":3.9627698057365678E-2},{"$f":"'Population at Risk'!AY31/'Population at Risk'!AY$5","v":5.2626248608924307E-2},{"$f":"'Population at Risk'!AC31/'Population at Risk'!AC$5","v":5.1077809365839381E-2},{"$f":"'Population at Risk'!AD31/'Population at Risk'!AD$5","v":4.6956600141373518E-2},{"$f":"'Population at Risk'!AE31/'Population at Risk'!AE$5","v":4.654545723988996E-2},{"$f":"'Population at Risk'!G31/'Population at Risk'!G$5","v":4.8658308574353125E-2},{"$f":"'Population at Risk'!AF31/'Population at Risk'!AF$5","v":5.5918515425052592E-2},{"$f":"'Population at Risk'!H31/'Population at Risk'!H$5","v":5.3928207058924281E-2},{"$f":"'Population at Risk'!AG31/'Population at Risk'!AG$5","v":5.510892081368407E-2},{"$f":"'Population at Risk'!AZ31/'Population at Risk'!AZ$5","v":4.1352795383122497E-2},{"$f":"'Population at Risk'!I31/'Population at Risk'!I$5","v":6.1168020148127375E-2},{"$f":"'Population at Risk'!J31/'Population at Risk'!J$5","v":5.1933130558217029E-2},{"$f":"'Population at Risk'!K31/'Population at Risk'!K$5","v":5.4923532016116959E-2},{"$f":"'Population at Risk'!AH31/'Population at Risk'!AH$5","v":5.8936960959550089E-2},{"$f":"'Population at Risk'!AI31/'Population at Risk'!AI$5","v":4.5944179777440093E-2},{"$f":"'Population at Risk'!BA31/'Population at Risk'!BA$5","v":6.00627024394043E-2},{"$f":"'Population at Risk'!L31/'Population at Risk'!L$5","v":5.6030249478322344E-2},{"$f":"'Population at Risk'!M31/'Population at Risk'!M$5","v":5.6030249478322344E-2},{"$f":"'Population at Risk'!AJ31/'Population at Risk'!AJ$5","v":5.3482131125331643E-2},{"$f":"'Population at Risk'!AK31/'Population at Risk'!AK$5","v":5.0913861410784592E-2},{"$f":"'Population at Risk'!AL31/'Population at Risk'!AL$5","v":4.8248083600432187E-2},{"$f":"'Population at Risk'!AM31/'Population at Risk'!AM$5","v":6.3641757203957885E-2},{"$f":"'Population at Risk'!N31/'Population at Risk'!N$5","v":4.3882400937968379E-2},{"$f":"'Population at Risk'!AN31/'Population at Risk'!AN$5","v":4.7013343099674067E-2},{"$f":"'Population at Risk'!AO31/'Population at Risk'!AO$5","v":4.7013343099674067E-2},{"$f":"'Population at Risk'!AP31/'Population at Risk'!AP$5","v":4.4585338302462606E-2},{"$f":"'Population at Risk'!C31/'Population at Risk'!C$5","v":3.2013016162365404E-2},{"$f":"'Population at Risk'!AQ31/'Population at Risk'!AQ$5","v":5.6879029030535863E-2},{"$f":"'Population at Risk'!O31/'Population at Risk'!O$5","v":5.6397561096330935E-2},{"$f":"'Population at Risk'!AR31/'Population at Risk'!AR$5","v":4.9457022562357192E-2},{"$f":"'Population at Risk'!AS31/'Population at Risk'!AS$5","v":6.1168020148127375E-2},{"$f":"'Population at Risk'!AT31/'Population at Risk'!AT$5","v":4.5093489230942717E-2},{"$f":"'Population at Risk'!AU31/'Population at Risk'!AU$5","v":4.5093489230942717E-2},{"$f":"'Population at Risk'!BB31/'Population at Risk'!BB$5","v":6.1886561160984899E-2},{"$f":"'Population at Risk'!P31/'Population at Risk'!P$5","v":4.9192422858226871E-2},{"$f":"'Population at Risk'!AV31/'Population at Risk'!AV$5","v":5.8760046494745304E-2},{"$f":"'Population at Risk'!AW31/'Population at Risk'!AW$5","v":5.2979849336146079E-2},{"$f":"'Population at Risk'!Q31/'Population at Risk'!Q$5","v":5.8999074178622095E-2},29]
[null,"Female 50-54",{"$f":"'Population at Risk'!R32/'Population at Risk'!R$5","v":4.6585284281754923E-2},{"$f":"'Population at Risk'!AX32/'Population at Risk'!AX$5","v":5.0395181239071073E-2},{"$f":"'Population at Risk'!S32/'Population at Risk'!S$5","v":5.2117627765176013E-2},{"$f":"'Population at Risk'!T32/'Population at Risk'!T$5","v":3.518246390408919E-2},{"$f":"'Population at Risk'!U32/'Population at Risk'!U$5","v":5.4247703637869342E-2},{"$f":"'Population at Risk'!D32/'Population at Risk'!D$5","v":4.8642935217976517E-2},{"$f":"'Population at Risk'!E32/'Population at Risk'!E$5","v":4.3148059022954093E-2},{"$f":"'Population at Risk'!BC32/'Population at Risk'!BC$5","v":5.4247703637869342E-2},{"$f":"'Population at Risk'!V32/'Population at Risk'!V$5","v":4.2916290656591673E-2},{"$f":"'Population at Risk'!F32/'Population at Risk'!F$5","v":3.0995280995422154E-2},{"$f":"'Population at Risk'!W32/'Population at Risk'!W$5","v":5.1509483973088646E-2},{"$f":"'Population at Risk'!X32/'Population at Risk'!X$5","v":5.1509483973088646E-2},{"$f":"'Population at Risk'!Y32/'Population at Risk'!Y$5","v":4.8056760170833754E-2},{"$f":"'Population at Risk'!Z32/'Population at Risk'!Z$5","v":4.9943351355315024E-2},{"$f":"'Population at Risk'!AA32/'Population at Risk'!AA$5","v":5.7742874153873837E-2},{"$f":"'Population at Risk'!AB32/'Population at Risk'!AB$5","v":4.0835448333341962E-2},{"$f":"'Population at Risk'!AY32/'Population at Risk'!AY$5","v":5.5851931848555338E-2},{"$f":"'Population at Risk'!AC32/'Population at Risk'!AC$5","v":5.2811486704612144E-2},{"$f":"'Population at Risk'!AD32/'Population at Risk'!AD$5","v":5.0792223770671212E-2},{"$f":"'Population at Risk'!AE32/'Population at Risk'!AE$5","v":4.9406252005280128E-2},{"$f":"'Population at Risk'!G32/'Population at Risk'!G$5","v":5.5327397065149518E-2},{"$f":"'Population at Risk'!AF32/'Population at Risk'!AF$5","v":5.8314504997649258E-2},{"$f":"'Population at Risk'!H32/'Population at Risk'!H$5","v":5.6125946390104181E-2},{"$f":"'Population at Risk'!AG32/'Population at Risk'!AG$5","v":5.8496046465443201E-2},{"$f":"'Population at Risk'!AZ32/'Population at Risk'!AZ$5","v":4.4844264443679255E-2},{"$f":"'Population at Risk'!I32/'Population at Risk'!I$5","v":6.3662341795979044E-2},{"$f":"'Population at Risk'!J32/'Population at Risk'!J$5","v":5.2105579597955587E-2},{"$f":"'Population at Risk'!K32/'Population at Risk'!K$5","v":5.4679395991445577E-2},{"$f":"'Population at Risk'!AH32/'Population at Risk'!AH$5","v":5.9949785785096923E-2},{"$f":"'Population at Risk'!AI32/'Population at Risk'!AI$5","v":4.4649070652853985E-2},{"$f":"'Population at Risk'!BA32/'Population at Risk'!BA$5","v":6.2518253434388979E-2},{"$f":"'Population at Risk'!L32/'Population at Risk'!L$5","v":6.0647595062756576E-2},{"$f":"'Population at Risk'!M32/'Population at Risk'!M$5","v":6.0647595062756576E-2},{"$f":"'Population at Risk'!AJ32/'Population at Risk'!AJ$5","v":5.320627027531246E-2},{"$f":"'Population at Risk'!AK32/'Population at Risk'!AK$5","v":5.2478568316322992E-2},{"$f":"'Population at Risk'!AL32/'Population at Risk'!AL$5","v":5.0658580565969918E-2},{"$f":"'Population at Risk'!AM32/'Population at Risk'!AM$5","v":6.4292185879022509E-2},{"$f":"'Population at Risk'!N32/'Population at Risk'!N$5","v":5.0371454422772771E-2},{"$f":"'Population at Risk'!AN32/'Population at Risk'!AN$5","v":5.1700080213920627E-2},{"$f":"'Population at Risk'!AO32/'Population at Risk'!AO$5","v":5.1700080213920627E-2},{"$f":"'Population at Risk'!AP32/'Population at Risk'!AP$5","v":4.6543887835055718E-2},{"$f":"'Population at Risk'!C32/'Population at Risk'!C$5","v":3.3997964163051647E-2},{"$f":"'Population at Risk'!AQ32/'Population at Risk'!AQ$5","v":5.6700338161312022E-2},{"$f":"'Population at Risk'!O32/'Population at Risk'!O$5","v":5.6693589819362566E-2},{"$f":"'Population at Risk'!AR32/'Population at Risk'!AR$5","v":5.0930801215856518E-2},{"$f":"'Population at Risk'!AS32/'Population at Risk'!AS$5","v":6.3662341795979044E-2},{"$f":"'Population at Risk'!AT32/'Population at Risk'!AT$5","v":4.5919551571192312E-2},{"$f":"'Population at Risk'!AU32/'Population at Risk'!AU$5","v":4.5919551571192312E-2},{"$f":"'Population at Risk'!BB32/'Population at Risk'!BB$5","v":6.0085905534263406E-2},{"$f":"'Population at Risk'!P32/'Population at Risk'!P$5","v":5.0534444867802342E-2},{"$f":"'Population at Risk'!AV32/'Population at Risk'!AV$5","v":6.3154203360581543E-2},{"$f":"'Population at Risk'!AW32/'Population at Risk'!AW$5","v":5.4336168148955838E-2},{"$f":"'Population at Risk'!Q32/'Population at Risk'!Q$5","v":5.6548543750653157E-2},30]
[null,"Female 55-59",{"$f":"'Population at Risk'!R33/'Population at Risk'!R$5","v":3.8930890721346152E-2},{"$f":"'Population at Risk'!AX33/'Population at Risk'!AX$5","v":4.0673445657667499E-2},{"$f":"'Population at Risk'!S33/'Population at Risk'!S$5","v":4.3847370293985048E-2},{"$f":"'Population at Risk'!T33/'Population at Risk'!T$5","v":3.0872315690418976E-2},{"$f":"'Population at Risk'!U33/'Population at Risk'!U$5","v":4.1933530418178759E-2},{"$f":"'Population at Risk'!D33/'Population at Risk'!D$5","v":4.0013275770197788E-2},{"$f":"'Population at Risk'!E33/'Population at Risk'!E$5","v":3.456787364738638E-2},{"$f":"'Population at Risk'!BC33/'Population at Risk'!BC$5","v":4.1933530418178759E-2},{"$f":"'Population at Risk'!V33/'Population at Risk'!V$5","v":3.4669873402004392E-2},{"$f":"'Population at Risk'!F33/'Population at Risk'!F$5","v":2.6710401157210795E-2},{"$f":"'Population at Risk'!W33/'Population at Risk'!W$5","v":4.2315296573882138E-2},{"$f":"'Population at Risk'!X33/'Population at Risk'!X$5","v":4.2315296573882138E-2},{"$f":"'Population at Risk'!Y33/'Population at Risk'!Y$5","v":3.8846685173000335E-2},{"$f":"'Population at Risk'!Z33/'Population at Risk'!Z$5","v":3.9926255033785593E-2},{"$f":"'Population at Risk'!AA33/'Population at Risk'!AA$5","v":4.756954730633995E-2},{"$f":"'Population at Risk'!AB33/'Population at Risk'!AB$5","v":3.3529857976323116E-2},{"$f":"'Population at Risk'!AY33/'Population at Risk'!AY$5","v":4.6512634019004413E-2},{"$f":"'Population at Risk'!AC33/'Population at Risk'!AC$5","v":4.334559826591259E-2},{"$f":"'Population at Risk'!AD33/'Population at Risk'!AD$5","v":4.2333248065476808E-2},{"$f":"'Population at Risk'!AE33/'Population at Risk'!AE$5","v":4.1130131524078635E-2},{"$f":"'Population at Risk'!G33/'Population at Risk'!G$5","v":4.6250439142980361E-2},{"$f":"'Population at Risk'!AF33/'Population at Risk'!AF$5","v":5.0163786129815126E-2},{"$f":"'Population at Risk'!H33/'Population at Risk'!H$5","v":4.6635365254681066E-2},{"$f":"'Population at Risk'!AG33/'Population at Risk'!AG$5","v":4.8697279941517645E-2},{"$f":"'Population at Risk'!AZ33/'Population at Risk'!AZ$5","v":3.7851037615567754E-2},{"$f":"'Population at Risk'!I33/'Population at Risk'!I$5","v":5.3757348017286023E-2},{"$f":"'Population at Risk'!J33/'Population at Risk'!J$5","v":4.2149268836994318E-2},{"$f":"'Population at Risk'!K33/'Population at Risk'!K$5","v":4.4370095273778991E-2},{"$f":"'Population at Risk'!AH33/'Population at Risk'!AH$5","v":4.970635495432809E-2},{"$f":"'Population at Risk'!AI33/'Population at Risk'!AI$5","v":3.8020207654840175E-2},{"$f":"'Population at Risk'!BA33/'Population at Risk'!BA$5","v":5.1578216415337559E-2},{"$f":"'Population at Risk'!L33/'Population at Risk'!L$5","v":4.9565327461672172E-2},{"$f":"'Population at Risk'!M33/'Population at Risk'!M$5","v":4.9565327461672172E-2},{"$f":"'Population at Risk'!AJ33/'Population at Risk'!AJ$5","v":4.5527116847423457E-2},{"$f":"'Population at Risk'!AK33/'Population at Risk'!AK$5","v":4.2733103926194012E-2},{"$f":"'Population at Risk'!AL33/'Population at Risk'!AL$5","v":4.1776865061140429E-2},{"$f":"'Population at Risk'!AM33/'Population at Risk'!AM$5","v":5.1841725858723778E-2},{"$f":"'Population at Risk'!N33/'Population at Risk'!N$5","v":4.2946027113559174E-2},{"$f":"'Population at Risk'!AN33/'Population at Risk'!AN$5","v":4.1354682300829539E-2},{"$f":"'Population at Risk'!AO33/'Population at Risk'!AO$5","v":4.1354682300829539E-2},{"$f":"'Population at Risk'!AP33/'Population at Risk'!AP$5","v":3.8078881707579129E-2},{"$f":"'Population at Risk'!C33/'Population at Risk'!C$5","v":2.8821885504338802E-2},{"$f":"'Population at Risk'!AQ33/'Population at Risk'!AQ$5","v":4.6951100112259087E-2},{"$f":"'Population at Risk'!O33/'Population at Risk'!O$5","v":4.5162202952901097E-2},{"$f":"'Population at Risk'!AR33/'Population at Risk'!AR$5","v":4.219590730308645E-2},{"$f":"'Population at Risk'!AS33/'Population at Risk'!AS$5","v":5.3757348017286023E-2},{"$f":"'Population at Risk'!AT33/'Population at Risk'!AT$5","v":3.5587399921064508E-2},{"$f":"'Population at Risk'!AU33/'Population at Risk'!AU$5","v":3.5587399921064508E-2},{"$f":"'Population at Risk'!BB33/'Population at Risk'!BB$5","v":4.7682050818455848E-2},{"$f":"'Population at Risk'!P33/'Population at Risk'!P$5","v":4.7140073807808207E-2},{"$f":"'Population at Risk'!AV33/'Population at Risk'!AV$5","v":5.5813970927581696E-2},{"$f":"'Population at Risk'!AW33/'Population at Risk'!AW$5","v":4.652563107819848E-2},{"$f":"'Population at Risk'!Q33/'Population at Risk'!Q$5","v":4.9080133301708066E-2},31]
[null,"Female 60-64",{"$f":"'Population at Risk'!R34/'Population at Risk'!R$5","v":3.4025300564294862E-2},{"$f":"'Population at Risk'!AX34/'Population at Risk'!AX$5","v":3.3838431116685129E-2},{"$f":"'Population at Risk'!S34/'Population at Risk'!S$5","v":3.7252377701591476E-2},{"$f":"'Population at Risk'!T34/'Population at Risk'!T$5","v":2.4973340312486263E-2},{"$f":"'Population at Risk'!U34/'Population at Risk'!U$5","v":4.2780487800815614E-2},{"$f":"'Population at Risk'!D34/'Population at Risk'!D$5","v":3.5706522565702427E-2},{"$f":"'Population at Risk'!E34/'Population at Risk'!E$5","v":3.1825458498363858E-2},{"$f":"'Population at Risk'!BC34/'Population at Risk'!BC$5","v":4.2780487800815614E-2},{"$f":"'Population at Risk'!V34/'Population at Risk'!V$5","v":3.0688229740077178E-2},{"$f":"'Population at Risk'!F34/'Population at Risk'!F$5","v":2.3795496804542484E-2},{"$f":"'Population at Risk'!W34/'Population at Risk'!W$5","v":3.7433554560116149E-2},{"$f":"'Population at Risk'!X34/'Population at Risk'!X$5","v":3.7433554560116149E-2},{"$f":"'Population at Risk'!Y34/'Population at Risk'!Y$5","v":3.3645633513433734E-2},{"$f":"'Population at Risk'!Z34/'Population at Risk'!Z$5","v":3.0922303443455122E-2},{"$f":"'Population at Risk'!AA34/'Population at Risk'!AA$5","v":3.921533401081094E-2},{"$f":"'Population at Risk'!AB34/'Population at Risk'!AB$5","v":3.0175934660074049E-2},{"$f":"'Population at Risk'!AY34/'Population at Risk'!AY$5","v":4.0726236248497853E-2},{"$f":"'Population at Risk'!AC34/'Population at Risk'!AC$5","v":3.4556495520888228E-2},{"$f":"'Population at Risk'!AD34/'Population at Risk'!AD$5","v":3.9313210962032233E-2},{"$f":"'Population at Risk'!AE34/'Population at Risk'!AE$5","v":3.8091350560299282E-2},{"$f":"'Population at Risk'!G34/'Population at Risk'!G$5","v":4.3250309920938618E-2},{"$f":"'Population at Risk'!AF34/'Population at Risk'!AF$5","v":4.036416115852029E-2},{"$f":"'Population at Risk'!H34/'Population at Risk'!H$5","v":4.2149068699125242E-2},{"$f":"'Population at Risk'!AG34/'Population at Risk'!AG$5","v":4.5099422074530597E-2},{"$f":"'Population at Risk'!AZ34/'Population at Risk'!AZ$5","v":3.2809461410053975E-2},{"$f":"'Population at Risk'!I34/'Population at Risk'!I$5","v":4.8856898515731446E-2},{"$f":"'Population at Risk'!J34/'Population at Risk'!J$5","v":3.5593990435934565E-2},{"$f":"'Population at Risk'!K34/'Population at Risk'!K$5","v":3.8235765278711642E-2},{"$f":"'Population at Risk'!AH34/'Population at Risk'!AH$5","v":4.3300664531026919E-2},{"$f":"'Population at Risk'!AI34/'Population at Risk'!AI$5","v":3.126866918273382E-2},{"$f":"'Population at Risk'!BA34/'Population at Risk'!BA$5","v":4.3840950397522331E-2},{"$f":"'Population at Risk'!L34/'Population at Risk'!L$5","v":4.800535531861172E-2},{"$f":"'Population at Risk'!M34/'Population at Risk'!M$5","v":4.800535531861172E-2},{"$f":"'Population at Risk'!AJ34/'Population at Risk'!AJ$5","v":3.7541816457952452E-2},{"$f":"'Population at Risk'!AK34/'Population at Risk'!AK$5","v":3.9952129937252279E-2},{"$f":"'Population at Risk'!AL34/'Population at Risk'!AL$5","v":3.8046205633950246E-2},{"$f":"'Population at Risk'!AM34/'Population at Risk'!AM$5","v":4.5017530552573778E-2},{"$f":"'Population at Risk'!N34/'Population at Risk'!N$5","v":3.441689409449579E-2},{"$f":"'Population at Risk'!AN34/'Population at Risk'!AN$5","v":3.849684903520053E-2},{"$f":"'Population at Risk'!AO34/'Population at Risk'!AO$5","v":3.849684903520053E-2},{"$f":"'Population at Risk'!AP34/'Population at Risk'!AP$5","v":3.5568617606335853E-2},{"$f":"'Population at Risk'!C34/'Population at Risk'!C$5","v":2.4815379577352581E-2},{"$f":"'Population at Risk'!AQ34/'Population at Risk'!AQ$5","v":3.7895591922086955E-2},{"$f":"'Population at Risk'!O34/'Population at Risk'!O$5","v":3.9983911931937739E-2},{"$f":"'Population at Risk'!AR34/'Population at Risk'!AR$5","v":3.6286507568977652E-2},{"$f":"'Population at Risk'!AS34/'Population at Risk'!AS$5","v":4.8856898515731446E-2},{"$f":"'Population at Risk'!AT34/'Population at Risk'!AT$5","v":3.4928605660802886E-2},{"$f":"'Population at Risk'!AU34/'Population at Risk'!AU$5","v":3.4928605660802886E-2},{"$f":"'Population at Risk'!BB34/'Population at Risk'!BB$5","v":4.0047675857189373E-2},{"$f":"'Population at Risk'!P34/'Population at Risk'!P$5","v":3.864983545195471E-2},{"$f":"'Population at Risk'!AV34/'Population at Risk'!AV$5","v":5.1084136847594101E-2},{"$f":"'Population at Risk'!AW34/'Population at Risk'!AW$5","v":4.0674007590006923E-2},{"$f":"'Population at Risk'!Q34/'Population at Risk'!Q$5","v":4.1132069416872107E-2},32]
[null,"Female 65-69",{"$f":"'Population at Risk'!R35/'Population at Risk'!R$5","v":2.4114873117200161E-2},{"$f":"'Population at Risk'!AX35/'Population at Risk'!AX$5","v":2.5781397208481893E-2},{"$f":"'Population at Risk'!S35/'Population at Risk'!S$5","v":2.8870175109660348E-2},{"$f":"'Population at Risk'!T35/'Population at Risk'!T$5","v":1.8073436918554994E-2},{"$f":"'Population at Risk'!U35/'Population at Risk'!U$5","v":3.6089815957909631E-2},{"$f":"'Population at Risk'!D35/'Population at Risk'!D$5","v":2.6792495385826488E-2},{"$f":"'Population at Risk'!E35/'Population at Risk'!E$5","v":2.4882342142150217E-2},{"$f":"'Population at Risk'!BC35/'Population at Risk'!BC$5","v":3.6089815957909631E-2},{"$f":"'Population at Risk'!V35/'Population at Risk'!V$5","v":2.357536859079578E-2},{"$f":"'Population at Risk'!F35/'Population at Risk'!F$5","v":2.0160918770502811E-2},{"$f":"'Population at Risk'!W35/'Population at Risk'!W$5","v":2.9443979319872603E-2},{"$f":"'Population at Risk'!X35/'Population at Risk'!X$5","v":2.9443979319872603E-2},{"$f":"'Population at Risk'!Y35/'Population at Risk'!Y$5","v":2.6088428262684583E-2},{"$f":"'Population at Risk'!Z35/'Population at Risk'!Z$5","v":1.9675919962593835E-2},{"$f":"'Population at Risk'!AA35/'Population at Risk'!AA$5","v":2.6932589367005367E-2},{"$f":"'Population at Risk'!AB35/'Population at Risk'!AB$5","v":2.3053890425571075E-2},{"$f":"'Population at Risk'!AY35/'Population at Risk'!AY$5","v":3.2262206838416144E-2},{"$f":"'Population at Risk'!AC35/'Population at Risk'!AC$5","v":2.34226671112341E-2},{"$f":"'Population at Risk'!AD35/'Population at Risk'!AD$5","v":3.2019607098586353E-2},{"$f":"'Population at Risk'!AE35/'Population at Risk'!AE$5","v":2.9962744843503902E-2},{"$f":"'Population at Risk'!G35/'Population at Risk'!G$5","v":3.8265523273491066E-2},{"$f":"'Population at Risk'!AF35/'Population at Risk'!AF$5","v":2.9843317172858447E-2},{"$f":"'Population at Risk'!H35/'Population at Risk'!H$5","v":3.1411426691261041E-2},{"$f":"'Population at Risk'!AG35/'Population at Risk'!AG$5","v":3.5475310177556243E-2},{"$f":"'Population at Risk'!AZ35/'Population at Risk'!AZ$5","v":2.6173307224479209E-2},{"$f":"'Population at Risk'!I35/'Population at Risk'!I$5","v":4.2498052754528955E-2},{"$f":"'Population at Risk'!J35/'Population at Risk'!J$5","v":2.7902987125791839E-2},{"$f":"'Population at Risk'!K35/'Population at Risk'!K$5","v":3.1095566726369015E-2},{"$f":"'Population at Risk'!AH35/'Population at Risk'!AH$5","v":3.0351115630421394E-2},{"$f":"'Population at Risk'!AI35/'Population at Risk'!AI$5","v":2.3536221492253498E-2},{"$f":"'Population at Risk'!BA35/'Population at Risk'!BA$5","v":3.0490827844512555E-2},{"$f":"'Population at Risk'!L35/'Population at Risk'!L$5","v":3.7936098815600824E-2},{"$f":"'Population at Risk'!M35/'Population at Risk'!M$5","v":3.7936098815600824E-2},{"$f":"'Population at Risk'!AJ35/'Population at Risk'!AJ$5","v":3.0864927409779658E-2},{"$f":"'Population at Risk'!AK35/'Population at Risk'!AK$5","v":3.2911290965800394E-2},{"$f":"'Population at Risk'!AL35/'Population at Risk'!AL$5","v":2.8265851172580691E-2},{"$f":"'Population at Risk'!AM35/'Population at Risk'!AM$5","v":3.1370355455649625E-2},{"$f":"'Population at Risk'!N35/'Population at Risk'!N$5","v":2.5843626541719556E-2},{"$f":"'Population at Risk'!AN35/'Population at Risk'!AN$5","v":3.3207793441292051E-2},{"$f":"'Population at Risk'!AO35/'Population at Risk'!AO$5","v":3.3207793441292051E-2},{"$f":"'Population at Risk'!AP35/'Population at Risk'!AP$5","v":2.8825020430831769E-2},{"$f":"'Population at Risk'!C35/'Population at Risk'!C$5","v":1.7693991805097949E-2},{"$f":"'Population at Risk'!AQ35/'Population at Risk'!AQ$5","v":2.844475761591678E-2},{"$f":"'Population at Risk'!O35/'Population at Risk'!O$5","v":2.983309416868608E-2},{"$f":"'Population at Risk'!AR35/'Population at Risk'!AR$5","v":2.6993071747426874E-2},{"$f":"'Population at Risk'!AS35/'Population at Risk'!AS$5","v":4.2498052754528955E-2},{"$f":"'Population at Risk'!AT35/'Population at Risk'!AT$5","v":2.7287602428206284E-2},{"$f":"'Population at Risk'!AU35/'Population at Risk'!AU$5","v":2.7287602428206284E-2},{"$f":"'Population at Risk'!BB35/'Population at Risk'!BB$5","v":3.032057774157107E-2},{"$f":"'Population at Risk'!P35/'Population at Risk'!P$5","v":2.7657915256728897E-2},{"$f":"'Population at Risk'!AV35/'Population at Risk'!AV$5","v":3.8184832132919469E-2},{"$f":"'Population at Risk'!AW35/'Population at Risk'!AW$5","v":2.8695256189064083E-2},{"$f":"'Population at Risk'!Q35/'Population at Risk'!Q$5","v":3.212500512270039E-2},33]
[null,"Female 70-74",{"$f":"'Population at Risk'!R36/'Population at Risk'!R$5","v":1.8677240283545827E-2},{"$f":"'Population at Risk'!AX36/'Population at Risk'!AX$5","v":2.107291151581852E-2},{"$f":"'Population at Risk'!S36/'Population at Risk'!S$5","v":2.214141933846752E-2},{"$f":"'Population at Risk'!T36/'Population at Risk'!T$5","v":1.3444926935040291E-2},{"$f":"'Population at Risk'!U36/'Population at Risk'!U$5","v":2.8471988112948966E-2},{"$f":"'Population at Risk'!D36/'Population at Risk'!D$5","v":1.9561975487741586E-2},{"$f":"'Population at Risk'!E36/'Population at Risk'!E$5","v":1.8325907086308345E-2},{"$f":"'Population at Risk'!BC36/'Population at Risk'!BC$5","v":2.8471988112948966E-2},{"$f":"'Population at Risk'!V36/'Population at Risk'!V$5","v":1.7877240956063047E-2},{"$f":"'Population at Risk'!F36/'Population at Risk'!F$5","v":1.5691591045834299E-2},{"$f":"'Population at Risk'!W36/'Population at Risk'!W$5","v":2.2764841722091086E-2},{"$f":"'Population at Risk'!X36/'Population at Risk'!X$5","v":2.2764841722091086E-2},{"$f":"'Population at Risk'!Y36/'Population at Risk'!Y$5","v":2.0181615217855543E-2},{"$f":"'Population at Risk'!Z36/'Population at Risk'!Z$5","v":1.5629520278919531E-2},{"$f":"'Population at Risk'!AA36/'Population at Risk'!AA$5","v":2.1200145566541179E-2},{"$f":"'Population at Risk'!AB36/'Population at Risk'!AB$5","v":1.7125756856852019E-2},{"$f":"'Population at Risk'!AY36/'Population at Risk'!AY$5","v":2.5020658233086211E-2},{"$f":"'Population at Risk'!AC36/'Population at Risk'!AC$5","v":1.8334556876715934E-2},{"$f":"'Population at Risk'!AD36/'Population at Risk'!AD$5","v":2.4701737547507065E-2},{"$f":"'Population at Risk'!AE36/'Population at Risk'!AE$5","v":2.3095092531968772E-2},{"$f":"'Population at Risk'!G36/'Population at Risk'!G$5","v":2.9577057652438978E-2},{"$f":"'Population at Risk'!AF36/'Population at Risk'!AF$5","v":2.3152426528415111E-2},{"$f":"'Population at Risk'!H36/'Population at Risk'!H$5","v":2.507494208282111E-2},{"$f":"'Population at Risk'!AG36/'Population at Risk'!AG$5","v":2.7344142715569172E-2},{"$f":"'Population at Risk'!AZ36/'Population at Risk'!AZ$5","v":2.0359505137483067E-2},{"$f":"'Population at Risk'!I36/'Population at Risk'!I$5","v":3.3097962877538217E-2},{"$f":"'Population at Risk'!J36/'Population at Risk'!J$5","v":2.2083099996874231E-2},{"$f":"'Population at Risk'!K36/'Population at Risk'!K$5","v":2.3603236905068898E-2},{"$f":"'Population at Risk'!AH36/'Population at Risk'!AH$5","v":2.4093938513643359E-2},{"$f":"'Population at Risk'!AI36/'Population at Risk'!AI$5","v":1.7911077156735608E-2},{"$f":"'Population at Risk'!BA36/'Population at Risk'!BA$5","v":2.2200865732242028E-2},{"$f":"'Population at Risk'!L36/'Population at Risk'!L$5","v":3.2069229980591689E-2},{"$f":"'Population at Risk'!M36/'Population at Risk'!M$5","v":3.2069229980591689E-2},{"$f":"'Population at Risk'!AJ36/'Population at Risk'!AJ$5","v":2.292239308774174E-2},{"$f":"'Population at Risk'!AK36/'Population at Risk'!AK$5","v":2.612218065266891E-2},{"$f":"'Population at Risk'!AL36/'Population at Risk'!AL$5","v":2.2259182802123492E-2},{"$f":"'Population at Risk'!AM36/'Population at Risk'!AM$5","v":2.52785057028895E-2},{"$f":"'Population at Risk'!N36/'Population at Risk'!N$5","v":1.9340981085862508E-2},{"$f":"'Population at Risk'!AN36/'Population at Risk'!AN$5","v":2.8928695419905091E-2},{"$f":"'Population at Risk'!AO36/'Population at Risk'!AO$5","v":2.8928695419905091E-2},{"$f":"'Population at Risk'!AP36/'Population at Risk'!AP$5","v":2.3325530958266741E-2},{"$f":"'Population at Risk'!C36/'Population at Risk'!C$5","v":1.2772288373903306E-2},{"$f":"'Population at Risk'!AQ36/'Population at Risk'!AQ$5","v":2.2117072778557009E-2},{"$f":"'Population at Risk'!O36/'Population at Risk'!O$5","v":2.3298986253751739E-2},{"$f":"'Population at Risk'!AR36/'Population at Risk'!AR$5","v":2.1051653797260865E-2},{"$f":"'Population at Risk'!AS36/'Population at Risk'!AS$5","v":3.3097962877538217E-2},{"$f":"'Population at Risk'!AT36/'Population at Risk'!AT$5","v":2.3259484006164489E-2},{"$f":"'Population at Risk'!AU36/'Population at Risk'!AU$5","v":2.3259484006164489E-2},{"$f":"'Population at Risk'!BB36/'Population at Risk'!BB$5","v":2.3880835280493257E-2},{"$f":"'Population at Risk'!P36/'Population at Risk'!P$5","v":2.2329749551598353E-2},{"$f":"'Population at Risk'!AV36/'Population at Risk'!AV$5","v":3.1780970344945599E-2},{"$f":"'Population at Risk'!AW36/'Population at Risk'!AW$5","v":2.2401778821588114E-2},{"$f":"'Population at Risk'!Q36/'Population at Risk'!Q$5","v":2.5327489674741833E-2},34]
[null,"Female 75-79",{"$f":"'Population at Risk'!R37/'Population at Risk'!R$5","v":9.2931869933576151E-3},{"$f":"'Population at Risk'!AX37/'Population at Risk'!AX$5","v":9.2178726465002702E-3},{"$f":"'Population at Risk'!S37/'Population at Risk'!S$5","v":9.2299509998848995E-3},{"$f":"'Population at Risk'!T37/'Population at Risk'!T$5","v":6.449766376386808E-3},{"$f":"'Population at Risk'!U37/'Population at Risk'!U$5","v":1.1631194114970343E-2},{"$f":"'Population at Risk'!D37/'Population at Risk'!D$5","v":8.5817306844705281E-3},{"$f":"'Population at Risk'!E37/'Population at Risk'!E$5","v":7.454151741554422E-3},{"$f":"'Population at Risk'!BC37/'Population at Risk'!BC$5","v":1.1631194114970343E-2},{"$f":"'Population at Risk'!V37/'Population at Risk'!V$5","v":7.7784906125045765E-3},{"$f":"'Population at Risk'!F37/'Population at Risk'!F$5","v":6.4093421896672343E-3},{"$f":"'Population at Risk'!W37/'Population at Risk'!W$5","v":9.1791904876846967E-3},{"$f":"'Population at Risk'!X37/'Population at Risk'!X$5","v":9.1791904876846967E-3},{"$f":"'Population at Risk'!Y37/'Population at Risk'!Y$5","v":8.5322917409929415E-3},{"$f":"'Population at Risk'!Z37/'Population at Risk'!Z$5","v":7.6936897497255482E-3},{"$f":"'Population at Risk'!AA37/'Population at Risk'!AA$5","v":9.6271252468561504E-3},{"$f":"'Population at Risk'!AB37/'Population at Risk'!AB$5","v":7.3331152361852687E-3},{"$f":"'Population at Risk'!AY37/'Population at Risk'!AY$5","v":1.0396925463871337E-2},{"$f":"'Population at Risk'!AC37/'Population at Risk'!AC$5","v":8.7797343009469488E-3},{"$f":"'Population at Risk'!AD37/'Population at Risk'!AD$5","v":9.7353236040016271E-3},{"$f":"'Population at Risk'!AE37/'Population at Risk'!AE$5","v":9.0092611484084081E-3},{"$f":"'Population at Risk'!G37/'Population at Risk'!G$5","v":1.1922585473419055E-2},{"$f":"'Population at Risk'!AF37/'Population at Risk'!AF$5","v":1.0657250717404419E-2},{"$f":"'Population at Risk'!H37/'Population at Risk'!H$5","v":1.0321253228141142E-2},{"$f":"'Population at Risk'!AG37/'Population at Risk'!AG$5","v":1.0666790889142703E-2},{"$f":"'Population at Risk'!AZ37/'Population at Risk'!AZ$5","v":8.703949597606557E-3},{"$f":"'Population at Risk'!I37/'Population at Risk'!I$5","v":1.3049938009997503E-2},{"$f":"'Population at Risk'!J37/'Population at Risk'!J$5","v":9.0316649636593919E-3},{"$f":"'Population at Risk'!K37/'Population at Risk'!K$5","v":8.7514586689093257E-3},{"$f":"'Population at Risk'!AH37/'Population at Risk'!AH$5","v":1.0044856177345731E-2},{"$f":"'Population at Risk'!AI37/'Population at Risk'!AI$5","v":7.6914244767993956E-3},{"$f":"'Population at Risk'!BA37/'Population at Risk'!BA$5","v":9.8029264559169275E-3},{"$f":"'Population at Risk'!L37/'Population at Risk'!L$5","v":1.1657069247307826E-2},{"$f":"'Population at Risk'!M37/'Population at Risk'!M$5","v":1.1657069247307826E-2},{"$f":"'Population at Risk'!AJ37/'Population at Risk'!AJ$5","v":8.5615438884560843E-3},{"$f":"'Population at Risk'!AK37/'Population at Risk'!AK$5","v":1.0176990733498851E-2},{"$f":"'Population at Risk'!AL37/'Population at Risk'!AL$5","v":9.3048278603761539E-3},{"$f":"'Population at Risk'!AM37/'Population at Risk'!AM$5","v":1.0438946110436075E-2},{"$f":"'Population at Risk'!N37/'Population at Risk'!N$5","v":9.0546869506530105E-3},{"$f":"'Population at Risk'!AN37/'Population at Risk'!AN$5","v":1.046776781336684E-2},{"$f":"'Population at Risk'!AO37/'Population at Risk'!AO$5","v":1.046776781336684E-2},{"$f":"'Population at Risk'!AP37/'Population at Risk'!AP$5","v":9.4050012621400211E-3},{"$f":"'Population at Risk'!C37/'Population at Risk'!C$5","v":6.1442277502889164E-3},{"$f":"'Population at Risk'!AQ37/'Population at Risk'!AQ$5","v":1.0091025159476175E-2},{"$f":"'Population at Risk'!O37/'Population at Risk'!O$5","v":9.5630618041137004E-3},{"$f":"'Population at Risk'!AR37/'Population at Risk'!AR$5","v":8.9946574725626033E-3},{"$f":"'Population at Risk'!AS37/'Population at Risk'!AS$5","v":1.3049938009997503E-2},{"$f":"'Population at Risk'!AT37/'Population at Risk'!AT$5","v":8.2647346263719744E-3},{"$f":"'Population at Risk'!AU37/'Population at Risk'!AU$5","v":8.2647346263719744E-3},{"$f":"'Population at Risk'!BB37/'Population at Risk'!BB$5","v":9.0727824828673552E-3},{"$f":"'Population at Risk'!P37/'Population at Risk'!P$5","v":1.1009656051517904E-2},{"$f":"'Population at Risk'!AV37/'Population at Risk'!AV$5","v":1.2853411432303209E-2},{"$f":"'Population at Risk'!AW37/'Population at Risk'!AW$5","v":9.4397383579655682E-3},{"$f":"'Population at Risk'!Q37/'Population at Risk'!Q$5","v":1.0476885668372495E-2},35]
[null,"Female 80-84",{"$f":"'Population at Risk'!R38/'Population at Risk'!R$5","v":8.1289750366980319E-3},{"$f":"'Population at Risk'!AX38/'Population at Risk'!AX$5","v":6.966454469580702E-3},{"$f":"'Population at Risk'!S38/'Population at Risk'!S$5","v":7.0096812928053514E-3},{"$f":"'Population at Risk'!T38/'Population at Risk'!T$5","v":5.2202865538651805E-3},{"$f":"'Population at Risk'!U38/'Population at Risk'!U$5","v":9.1630462083958208E-3},{"$f":"'Population at Risk'!D38/'Population at Risk'!D$5","v":6.6807604662303217E-3},{"$f":"'Population at Risk'!E38/'Population at Risk'!E$5","v":5.4671828036659108E-3},{"$f":"'Population at Risk'!BC38/'Population at Risk'!BC$5","v":9.1630462083958208E-3},{"$f":"'Population at Risk'!V38/'Population at Risk'!V$5","v":5.5223949747575706E-3},{"$f":"'Population at Risk'!F38/'Population at Risk'!F$5","v":4.8421779099224772E-3},{"$f":"'Population at Risk'!W38/'Population at Risk'!W$5","v":6.8400334694068013E-3},{"$f":"'Population at Risk'!X38/'Population at Risk'!X$5","v":6.8400334694068013E-3},{"$f":"'Population at Risk'!Y38/'Population at Risk'!Y$5","v":6.1081849288306582E-3},{"$f":"'Population at Risk'!Z38/'Population at Risk'!Z$5","v":6.2759679635211382E-3},{"$f":"'Population at Risk'!AA38/'Population at Risk'!AA$5","v":7.5633916971055469E-3},{"$f":"'Population at Risk'!AB38/'Population at Risk'!AB$5","v":5.7431441472425588E-3},{"$f":"'Population at Risk'!AY38/'Population at Risk'!AY$5","v":8.0511092229576687E-3},{"$f":"'Population at Risk'!AC38/'Population at Risk'!AC$5","v":7.0498476085647539E-3},{"$f":"'Population at Risk'!AD38/'Population at Risk'!AD$5","v":7.2757537851788441E-3},{"$f":"'Population at Risk'!AE38/'Population at Risk'!AE$5","v":6.7899964025714054E-3},{"$f":"'Population at Risk'!G38/'Population at Risk'!G$5","v":8.7476184632334034E-3},{"$f":"'Population at Risk'!AF38/'Population at Risk'!AF$5","v":8.4426480007592074E-3},{"$f":"'Population at Risk'!H38/'Population at Risk'!H$5","v":7.7261240738453838E-3},{"$f":"'Population at Risk'!AG38/'Population at Risk'!AG$5","v":8.0392243682552763E-3},{"$f":"'Population at Risk'!AZ38/'Population at Risk'!AZ$5","v":6.9733257382448652E-3},{"$f":"'Population at Risk'!I38/'Population at Risk'!I$5","v":9.4791619311889192E-3},{"$f":"'Population at Risk'!J38/'Population at Risk'!J$5","v":6.5294393245107704E-3},{"$f":"'Population at Risk'!K38/'Population at Risk'!K$5","v":5.8718166492189435E-3},{"$f":"'Population at Risk'!AH38/'Population at Risk'!AH$5","v":7.5910164745798866E-3},{"$f":"'Population at Risk'!AI38/'Population at Risk'!AI$5","v":5.948564763280869E-3},{"$f":"'Population at Risk'!BA38/'Population at Risk'!BA$5","v":7.2859612723818277E-3},{"$f":"'Population at Risk'!L38/'Population at Risk'!L$5","v":9.182869777681256E-3},{"$f":"'Population at Risk'!M38/'Population at Risk'!M$5","v":9.182869777681256E-3},{"$f":"'Population at Risk'!AJ38/'Population at Risk'!AJ$5","v":6.6667623838808652E-3},{"$f":"'Population at Risk'!AK38/'Population at Risk'!AK$5","v":8.1680699080396938E-3},{"$f":"'Population at Risk'!AL38/'Population at Risk'!AL$5","v":6.834970254689432E-3},{"$f":"'Population at Risk'!AM38/'Population at Risk'!AM$5","v":7.7087443813526344E-3},{"$f":"'Population at Risk'!N38/'Population at Risk'!N$5","v":7.6344526514499963E-3},{"$f":"'Population at Risk'!AN38/'Population at Risk'!AN$5","v":6.9741823262806663E-3},{"$f":"'Population at Risk'!AO38/'Population at Risk'!AO$5","v":6.9741823262806663E-3},{"$f":"'Population at Risk'!AP38/'Population at Risk'!AP$5","v":7.4474912971815386E-3},{"$f":"'Population at Risk'!C38/'Population at Risk'!C$5","v":5.0935992997056664E-3},{"$f":"'Population at Risk'!AQ38/'Population at Risk'!AQ$5","v":8.0102671515386043E-3},{"$f":"'Population at Risk'!O38/'Population at Risk'!O$5","v":7.0955639152000087E-3},{"$f":"'Population at Risk'!AR38/'Population at Risk'!AR$5","v":6.9328490668431409E-3},{"$f":"'Population at Risk'!AS38/'Population at Risk'!AS$5","v":9.4791619311889192E-3},{"$f":"'Population at Risk'!AT38/'Population at Risk'!AT$5","v":6.2100330307472565E-3},{"$f":"'Population at Risk'!AU38/'Population at Risk'!AU$5","v":6.2100330307472565E-3},{"$f":"'Population at Risk'!BB38/'Population at Risk'!BB$5","v":6.3500844082870489E-3},{"$f":"'Population at Risk'!P38/'Population at Risk'!P$5","v":8.3773871410242774E-3},{"$f":"'Population at Risk'!AV38/'Population at Risk'!AV$5","v":9.9542396214272275E-3},{"$f":"'Population at Risk'!AW38/'Population at Risk'!AW$5","v":7.3148762859923822E-3},{"$f":"'Population at Risk'!Q38/'Population at Risk'!Q$5","v":7.9466858120538879E-3},36]
[null,"Female 85-89",{"$f":"'Population at Risk'!R39/'Population at Risk'!R$5","v":4.9913052697508637E-3},{"$f":"'Population at Risk'!AX39/'Population at Risk'!AX$5","v":3.823002577387883E-3},{"$f":"'Population at Risk'!S39/'Population at Risk'!S$5","v":4.4470491579002291E-3},{"$f":"'Population at Risk'!T39/'Population at Risk'!T$5","v":3.6778193842583111E-3},{"$f":"'Population at Risk'!U39/'Population at Risk'!U$5","v":5.306350398178233E-3},{"$f":"'Population at Risk'!D39/'Population at Risk'!D$5","v":4.3465448366317248E-3},{"$f":"'Population at Risk'!E39/'Population at Risk'!E$5","v":3.5215490381366602E-3},{"$f":"'Population at Risk'!BC39/'Population at Risk'!BC$5","v":5.306350398178233E-3},{"$f":"'Population at Risk'!V39/'Population at Risk'!V$5","v":3.2658555821264592E-3},{"$f":"'Population at Risk'!F39/'Population at Risk'!F$5","v":3.1610012664835545E-3},{"$f":"'Population at Risk'!W39/'Population at Risk'!W$5","v":4.3170188704998247E-3},{"$f":"'Population at Risk'!X39/'Population at Risk'!X$5","v":4.3170188704998247E-3},{"$f":"'Population at Risk'!Y39/'Population at Risk'!Y$5","v":3.5759040965691463E-3},{"$f":"'Population at Risk'!Z39/'Population at Risk'!Z$5","v":3.7457081424994011E-3},{"$f":"'Population at Risk'!AA39/'Population at Risk'!AA$5","v":4.4933481448376517E-3},{"$f":"'Population at Risk'!AB39/'Population at Risk'!AB$5","v":3.6774798664047283E-3},{"$f":"'Population at Risk'!AY39/'Population at Risk'!AY$5","v":5.1882633189878737E-3},{"$f":"'Population at Risk'!AC39/'Population at Risk'!AC$5","v":4.250669488421681E-3},{"$f":"'Population at Risk'!AD39/'Population at Risk'!AD$5","v":4.6023711103339937E-3},{"$f":"'Population at Risk'!AE39/'Population at Risk'!AE$5","v":4.3415512728916666E-3},{"$f":"'Population at Risk'!G39/'Population at Risk'!G$5","v":5.4004411752376982E-3},{"$f":"'Population at Risk'!AF39/'Population at Risk'!AF$5","v":5.295811892861442E-3},{"$f":"'Population at Risk'!H39/'Population at Risk'!H$5","v":4.5270101018510577E-3},{"$f":"'Population at Risk'!AG39/'Population at Risk'!AG$5","v":5.1403127070645538E-3},{"$f":"'Population at Risk'!AZ39/'Population at Risk'!AZ$5","v":4.5727157646227009E-3},{"$f":"'Population at Risk'!I39/'Population at Risk'!I$5","v":5.8535981233122456E-3},{"$f":"'Population at Risk'!J39/'Population at Risk'!J$5","v":3.7770812991520645E-3},{"$f":"'Population at Risk'!K39/'Population at Risk'!K$5","v":3.7079787195574226E-3},{"$f":"'Population at Risk'!AH39/'Population at Risk'!AH$5","v":4.3865034379910739E-3},{"$f":"'Population at Risk'!AI39/'Population at Risk'!AI$5","v":3.8014050916331294E-3},{"$f":"'Population at Risk'!BA39/'Population at Risk'!BA$5","v":4.7704866733544269E-3},{"$f":"'Population at Risk'!L39/'Population at Risk'!L$5","v":5.6338820842562424E-3},{"$f":"'Population at Risk'!M39/'Population at Risk'!M$5","v":5.6338820842562424E-3},{"$f":"'Population at Risk'!AJ39/'Population at Risk'!AJ$5","v":3.8090277347053794E-3},{"$f":"'Population at Risk'!AK39/'Population at Risk'!AK$5","v":4.8931133811944572E-3},{"$f":"'Population at Risk'!AL39/'Population at Risk'!AL$5","v":3.8126203510861051E-3},{"$f":"'Population at Risk'!AM39/'Population at Risk'!AM$5","v":4.3324461986723288E-3},{"$f":"'Population at Risk'!N39/'Population at Risk'!N$5","v":4.8601841417780676E-3},{"$f":"'Population at Risk'!AN39/'Population at Risk'!AN$5","v":4.5919380244260535E-3},{"$f":"'Population at Risk'!AO39/'Population at Risk'!AO$5","v":4.5919380244260535E-3},{"$f":"'Population at Risk'!AP39/'Population at Risk'!AP$5","v":5.0768620849793731E-3},{"$f":"'Population at Risk'!C39/'Population at Risk'!C$5","v":3.3466848647837381E-3},{"$f":"'Population at Risk'!AQ39/'Population at Risk'!AQ$5","v":4.5860571906550024E-3},{"$f":"'Population at Risk'!O39/'Population at Risk'!O$5","v":4.256841812181774E-3},{"$f":"'Population at Risk'!AR39/'Population at Risk'!AR$5","v":4.2533638070088144E-3},{"$f":"'Population at Risk'!AS39/'Population at Risk'!AS$5","v":5.8535981233122456E-3},{"$f":"'Population at Risk'!AT39/'Population at Risk'!AT$5","v":3.7230068786648627E-3},{"$f":"'Population at Risk'!AU39/'Population at Risk'!AU$5","v":3.7230068786648627E-3},{"$f":"'Population at Risk'!BB39/'Population at Risk'!BB$5","v":3.315095027081208E-3},{"$f":"'Population at Risk'!P39/'Population at Risk'!P$5","v":5.1553976775159235E-3},{"$f":"'Population at Risk'!AV39/'Population at Risk'!AV$5","v":6.0515728268039628E-3},{"$f":"'Population at Risk'!AW39/'Population at Risk'!AW$5","v":4.3497427147613137E-3},{"$f":"'Population at Risk'!Q39/'Population at Risk'!Q$5","v":4.9415102035131504E-3},37]
[null,"Female 90+",{"$f":"'Population at Risk'!R40/'Population at Risk'!R$5","v":3.0762029112546066E-3},{"$f":"'Population at Risk'!AX40/'Population at Risk'!AX$5","v":2.4901891927174204E-3},{"$f":"'Population at Risk'!S40/'Population at Risk'!S$5","v":2.6248794234566019E-3},{"$f":"'Population at Risk'!T40/'Population at Risk'!T$5","v":2.1684340260774912E-3},{"$f":"'Population at Risk'!U40/'Population at Risk'!U$5","v":3.9250478526757192E-3},{"$f":"'Population at Risk'!D40/'Population at Risk'!D$5","v":2.4370692706694509E-3},{"$f":"'Population at Risk'!E40/'Population at Risk'!E$5","v":2.0664324580076635E-3},{"$f":"'Population at Risk'!BC40/'Population at Risk'!BC$5","v":3.9250478526757192E-3},{"$f":"'Population at Risk'!V40/'Population at Risk'!V$5","v":1.9078826116569634E-3},{"$f":"'Population at Risk'!F40/'Population at Risk'!F$5","v":2.1255586241837022E-3},{"$f":"'Population at Risk'!W40/'Population at Risk'!W$5","v":2.5971346474467764E-3},{"$f":"'Population at Risk'!X40/'Population at Risk'!X$5","v":2.5971346474467764E-3},{"$f":"'Population at Risk'!Y40/'Population at Risk'!Y$5","v":2.1445780596866795E-3},{"$f":"'Population at Risk'!Z40/'Population at Risk'!Z$5","v":2.1219163714279207E-3},{"$f":"'Population at Risk'!AA40/'Population at Risk'!AA$5","v":2.4675700037449354E-3},{"$f":"'Population at Risk'!AB40/'Population at Risk'!AB$5","v":2.0558875989334156E-3},{"$f":"'Population at Risk'!AY40/'Population at Risk'!AY$5","v":3.1333704951137702E-3},{"$f":"'Population at Risk'!AC40/'Population at Risk'!AC$5","v":2.4026527687989233E-3},{"$f":"'Population at Risk'!AD40/'Population at Risk'!AD$5","v":2.6612437125995946E-3},{"$f":"'Population at Risk'!AE40/'Population at Risk'!AE$5","v":2.4124570910814777E-3},{"$f":"'Population at Risk'!G40/'Population at Risk'!G$5","v":3.4031744090028361E-3},{"$f":"'Population at Risk'!AF40/'Population at Risk'!AF$5","v":2.9393786824421782E-3},{"$f":"'Population at Risk'!H40/'Population at Risk'!H$5","v":2.75530567812165E-3},{"$f":"'Population at Risk'!AG40/'Population at Risk'!AG$5","v":2.8563025197845086E-3},{"$f":"'Population at Risk'!AZ40/'Population at Risk'!AZ$5","v":2.770372526175941E-3},{"$f":"'Population at Risk'!I40/'Population at Risk'!I$5","v":3.5316920011417953E-3},{"$f":"'Population at Risk'!J40/'Population at Risk'!J$5","v":2.3353415130338839E-3},{"$f":"'Population at Risk'!K40/'Population at Risk'!K$5","v":2.1023259150048396E-3},{"$f":"'Population at Risk'!AH40/'Population at Risk'!AH$5","v":2.2739107752407627E-3},{"$f":"'Population at Risk'!AI40/'Population at Risk'!AI$5","v":2.2127026476633921E-3},{"$f":"'Population at Risk'!BA40/'Population at Risk'!BA$5","v":2.6699528782722559E-3},{"$f":"'Population at Risk'!L40/'Population at Risk'!L$5","v":3.148127354955827E-3},{"$f":"'Population at Risk'!M40/'Population at Risk'!M$5","v":3.148127354955827E-3},{"$f":"'Population at Risk'!AJ40/'Population at Risk'!AJ$5","v":2.1151960511567036E-3},{"$f":"'Population at Risk'!AK40/'Population at Risk'!AK$5","v":2.7004309326426833E-3},{"$f":"'Population at Risk'!AL40/'Population at Risk'!AL$5","v":2.2879178969891327E-3},{"$f":"'Population at Risk'!AM40/'Population at Risk'!AM$5","v":2.0788839725968053E-3},{"$f":"'Population at Risk'!N40/'Population at Risk'!N$5","v":2.6931925735262804E-3},{"$f":"'Population at Risk'!AN40/'Population at Risk'!AN$5","v":2.8254217785289412E-3},{"$f":"'Population at Risk'!AO40/'Population at Risk'!AO$5","v":2.8254217785289412E-3},{"$f":"'Population at Risk'!AP40/'Population at Risk'!AP$5","v":3.1123997546541604E-3},{"$f":"'Population at Risk'!C40/'Population at Risk'!C$5","v":1.7914719320900627E-3},{"$f":"'Population at Risk'!AQ40/'Population at Risk'!AQ$5","v":2.4625402124521583E-3},{"$f":"'Population at Risk'!O40/'Population at Risk'!O$5","v":2.4431306529338966E-3},{"$f":"'Population at Risk'!AR40/'Population at Risk'!AR$5","v":2.4473654557151175E-3},{"$f":"'Population at Risk'!AS40/'Population at Risk'!AS$5","v":3.5316920011417953E-3},{"$f":"'Population at Risk'!AT40/'Population at Risk'!AT$5","v":2.4772473124342206E-3},{"$f":"'Population at Risk'!AU40/'Population at Risk'!AU$5","v":2.4772473124342206E-3},{"$f":"'Population at Risk'!BB40/'Population at Risk'!BB$5","v":2.0056824201524406E-3},{"$f":"'Population at Risk'!P40/'Population at Risk'!P$5","v":3.0166279689587683E-3},{"$f":"'Population at Risk'!AV40/'Population at Risk'!AV$5","v":3.9529350959286993E-3},{"$f":"'Population at Risk'!AW40/'Population at Risk'!AW$5","v":2.4228453052471139E-3},{"$f":"'Population at Risk'!Q40/'Population at Risk'!Q$5","v":2.6814126124814043E-3},38]
[null,"Male 0-4",{"$f":"'Population at Risk'!R41/'Population at Risk'!R$5","v":0},{"$f":"'Population at Risk'!AX41/'Population at Risk'!AX$5","v":0},{"$f":"'Population at Risk'!S41/'Population at Risk'!S$5","v":0},{"$f":"'Population at Risk'!T41/'Population at Risk'!T$5","v":0},{"$f":"'Population at Risk'!U41/'Population at Risk'!U$5","v":0},{"$f":"'Population at Risk'!D41/'Population at Risk'!D$5","v":0},{"$f":"'Population at Risk'!E41/'Population at Risk'!E$5","v":0},{"$f":"'Population at Risk'!BC41/'Population at Risk'!BC$5","v":0},{"$f":"'Population at Risk'!V41/'Population at Risk'!V$5","v":0},{"$f":"'Population at Risk'!F41/'Population at Risk'!F$5","v":0},{"$f":"'Population at Risk'!W41/'Population at Risk'!W$5","v":0},{"$f":"'Population at Risk'!X41/'Population at Risk'!X$5","v":0},{"$f":"'Population at Risk'!Y41/'Population at Risk'!Y$5","v":0},{"$f":"'Population at Risk'!Z41/'Population at Risk'!Z$5","v":0},{"$f":"'Population at Risk'!AA41/'Population at Risk'!AA$5","v":0},{"$f":"'Population at Risk'!AB41/'Population at Risk'!AB$5","v":0},{"$f":"'Population at Risk'!AY41/'Population at Risk'!AY$5","v":0},{"$f":"'Population at Risk'!AC41/'Population at Risk'!AC$5","v":0},{"$f":"'Population at Risk'!AD41/'Population at Risk'!AD$5","v":0},{"$f":"'Population at Risk'!AE41/'Population at Risk'!AE$5","v":0},{"$f":"'Population at Risk'!G41/'Population at Risk'!G$5","v":0},{"$f":"'Population at Risk'!AF41/'Population at Risk'!AF$5","v":0},{"$f":"'Population at Risk'!H41/'Population at Risk'!H$5","v":0},{"$f":"'Population at Risk'!AG41/'Population at Risk'!AG$5","v":0},{"$f":"'Population at Risk'!AZ41/'Population at Risk'!AZ$5","v":0},{"$f":"'Population at Risk'!I41/'Population at Risk'!I$5","v":0},{"$f":"'Population at Risk'!J41/'Population at Risk'!J$5","v":0},{"$f":"'Population at Risk'!K41/'Population at Risk'!K$5","v":0},{"$f":"'Population at Risk'!AH41/'Population at Risk'!AH$5","v":0},{"$f":"'Population at Risk'!AI41/'Population at Risk'!AI$5","v":0},{"$f":"'Population at Risk'!BA41/'Population at Risk'!BA$5","v":0},{"$f":"'Population at Risk'!L41/'Population at Risk'!L$5","v":0},{"$f":"'Population at Risk'!M41/'Population at Risk'!M$5","v":0},{"$f":"'Population at Risk'!AJ41/'Population at Risk'!AJ$5","v":0},{"$f":"'Population at Risk'!AK41/'Population at Risk'!AK$5","v":0},{"$f":"'Population at Risk'!AL41/'Population at Risk'!AL$5","v":0},{"$f":"'Population at Risk'!AM41/'Population at Risk'!AM$5","v":0},{"$f":"'Population at Risk'!N41/'Population at Risk'!N$5","v":0},{"$f":"'Population at Risk'!AN41/'Population at Risk'!AN$5","v":0},{"$f":"'Population at Risk'!AO41/'Population at Risk'!AO$5","v":0},{"$f":"'Population at Risk'!AP41/'Population at Risk'!AP$5","v":0},{"$f":"'Population at Risk'!C41/'Population at Risk'!C$5","v":0},{"$f":"'Population at Risk'!AQ41/'Population at Risk'!AQ$5","v":0},{"$f":"'Population at Risk'!O41/'Population at Risk'!O$5","v":0},{"$f":"'Population at Risk'!AR41/'Population at Risk'!AR$5","v":0},{"$f":"'Population at Risk'!AS41/'Population at Risk'!AS$5","v":0},{"$f":"'Population at Risk'!AT41/'Population at Risk'!AT$5","v":0},{"$f":"'Population at Risk'!AU41/'Population at Risk'!AU$5","v":0},{"$f":"'Population at Risk'!BB41/'Population at Risk'!BB$5","v":0},{"$f":"'Population at Risk'!P41/'Population at Risk'!P$5","v":0},{"$f":"'Population at Risk'!AV41/'Population at Risk'!AV$5","v":0},{"$f":"'Population at Risk'!AW41/'Population at Risk'!AW$5","v":0},{"$f":"'Population at Risk'!Q41/'Population at Risk'!Q$5","v":0},39]
[null,"Male 5-9",{"$f":"'Population at Risk'!R42/'Population at Risk'!R$5","v":0},{"$f":"'Population at Risk'!AX42/'Population at Risk'!AX$5","v":0},{"$f":"'Population at Risk'!S42/'Population at Risk'!S$5","v":0},{"$f":"'Population at Risk'!T42/'Population at Risk'!T$5","v":0},{"$f":"'Population at Risk'!U42/'Population at Risk'!U$5","v":0},{"$f":"'Population at Risk'!D42/'Population at Risk'!D$5","v":0},{"$f":"'Population at Risk'!E42/'Population at Risk'!E$5","v":0},{"$f":"'Population at Risk'!BC42/'Population at Risk'!BC$5","v":0},{"$f":"'Population at Risk'!V42/'Population at Risk'!V$5","v":0},{"$f":"'Population at Risk'!F42/'Population at Risk'!F$5","v":0},{"$f":"'Population at Risk'!W42/'Population at Risk'!W$5","v":0},{"$f":"'Population at Risk'!X42/'Population at Risk'!X$5","v":0},{"$f":"'Population at Risk'!Y42/'Population at Risk'!Y$5","v":0},{"$f":"'Population at Risk'!Z42/'Population at Risk'!Z$5","v":0},{"$f":"'Population at Risk'!AA42/'Population at Risk'!AA$5","v":0},{"$f":"'Population at Risk'!AB42/'Population at Risk'!AB$5","v":0},{"$f":"'Population at Risk'!AY42/'Population at Risk'!AY$5","v":0},{"$f":"'Population at Risk'!AC42/'Population at Risk'!AC$5","v":0},{"$f":"'Population at Risk'!AD42/'Population at Risk'!AD$5","v":0},{"$f":"'Population at Risk'!AE42/'Population at Risk'!AE$5","v":0},{"$f":"'Population at Risk'!G42/'Population at Risk'!G$5","v":0},{"$f":"'Population at Risk'!AF42/'Population at Risk'!AF$5","v":0},{"$f":"'Population at Risk'!H42/'Population at Risk'!H$5","v":0},{"$f":"'Population at Risk'!AG42/'Population at Risk'!AG$5","v":0},{"$f":"'Population at Risk'!AZ42/'Population at Risk'!AZ$5","v":0},{"$f":"'Population at Risk'!I42/'Population at Risk'!I$5","v":0},{"$f":"'Population at Risk'!J42/'Population at Risk'!J$5","v":0},{"$f":"'Population at Risk'!K42/'Population at Risk'!K$5","v":0},{"$f":"'Population at Risk'!AH42/'Population at Risk'!AH$5","v":0},{"$f":"'Population at Risk'!AI42/'Population at Risk'!AI$5","v":0},{"$f":"'Population at Risk'!BA42/'Population at Risk'!BA$5","v":0},{"$f":"'Population at Risk'!L42/'Population at Risk'!L$5","v":0},{"$f":"'Population at Risk'!M42/'Population at Risk'!M$5","v":0},{"$f":"'Population at Risk'!AJ42/'Population at Risk'!AJ$5","v":0},{"$f":"'Population at Risk'!AK42/'Population at Risk'!AK$5","v":0},{"$f":"'Population at Risk'!AL42/'Population at Risk'!AL$5","v":0},{"$f":"'Population at Risk'!AM42/'Population at Risk'!AM$5","v":0},{"$f":"'Population at Risk'!N42/'Population at Risk'!N$5","v":0},{"$f":"'Population at Risk'!AN42/'Population at Risk'!AN$5","v":0},{"$f":"'Population at Risk'!AO42/'Population at Risk'!AO$5","v":0},{"$f":"'Population at Risk'!AP42/'Population at Risk'!AP$5","v":0},{"$f":"'Population at Risk'!C42/'Population at Risk'!C$5","v":0},{"$f":"'Population at Risk'!AQ42/'Population at Risk'!AQ$5","v":0},{"$f":"'Population at Risk'!O42/'Population at Risk'!O$5","v":0},{"$f":"'Population at Risk'!AR42/'Population at Risk'!AR$5","v":0},{"$f":"'Population at Risk'!AS42/'Population at Risk'!AS$5","v":0},{"$f":"'Population at Risk'!AT42/'Population at Risk'!AT$5","v":0},{"$f":"'Population at Risk'!AU42/'Population at Risk'!AU$5","v":0},{"$f":"'Population at Risk'!BB42/'Population at Risk'!BB$5","v":0},{"$f":"'Population at Risk'!P42/'Population at Risk'!P$5","v":0},{"$f":"'Population at Risk'!AV42/'Population at Risk'!AV$5","v":0},{"$f":"'Population at Risk'!AW42/'Population at Risk'!AW$5","v":0},{"$f":"'Population at Risk'!Q42/'Population at Risk'!Q$5","v":0},40]
[null,"Male 10-15",{"$f":"'Population at Risk'!R43/'Population at Risk'!R$5","v":0},{"$f":"'Population at Risk'!AX43/'Population at Risk'!AX$5","v":0},{"$f":"'Population at Risk'!S43/'Population at Risk'!S$5","v":0},{"$f":"'Population at Risk'!T43/'Population at Risk'!T$5","v":0},{"$f":"'Population at Risk'!U43/'Population at Risk'!U$5","v":0},{"$f":"'Population at Risk'!D43/'Population at Risk'!D$5","v":0},{"$f":"'Population at Risk'!E43/'Population at Risk'!E$5","v":0},{"$f":"'Population at Risk'!BC43/'Population at Risk'!BC$5","v":0},{"$f":"'Population at Risk'!V43/'Population at Risk'!V$5","v":0},{"$f":"'Population at Risk'!F43/'Population at Risk'!F$5","v":0},{"$f":"'Population at Risk'!W43/'Population at Risk'!W$5","v":0},{"$f":"'Population at Risk'!X43/'Population at Risk'!X$5","v":0},{"$f":"'Population at Risk'!Y43/'Population at Risk'!Y$5","v":0},{"$f":"'Population at Risk'!Z43/'Population at Risk'!Z$5","v":0},{"$f":"'Population at Risk'!AA43/'Population at Risk'!AA$5","v":0},{"$f":"'Population at Risk'!AB43/'Population at Risk'!AB$5","v":0},{"$f":"'Population at Risk'!AY43/'Population at Risk'!AY$5","v":0},{"$f":"'Population at Risk'!AC43/'Population at Risk'!AC$5","v":0},{"$f":"'Population at Risk'!AD43/'Population at Risk'!AD$5","v":0},{"$f":"'Population at Risk'!AE43/'Population at Risk'!AE$5","v":0},{"$f":"'Population at Risk'!G43/'Population at Risk'!G$5","v":0},{"$f":"'Population at Risk'!AF43/'Population at Risk'!AF$5","v":0},{"$f":"'Population at Risk'!H43/'Population at Risk'!H$5","v":0},{"$f":"'Population at Risk'!AG43/'Population at Risk'!AG$5","v":0},{"$f":"'Population at Risk'!AZ43/'Population at Risk'!AZ$5","v":0},{"$f":"'Population at Risk'!I43/'Population at Risk'!I$5","v":0},{"$f":"'Population at Risk'!J43/'Population at Risk'!J$5","v":0},{"$f":"'Population at Risk'!K43/'Population at Risk'!K$5","v":0},{"$f":"'Population at Risk'!AH43/'Population at Risk'!AH$5","v":0},{"$f":"'Population at Risk'!AI43/'Population at Risk'!AI$5","v":0},{"$f":"'Population at Risk'!BA43/'Population at Risk'!BA$5","v":0},{"$f":"'Population at Risk'!L43/'Population at Risk'!L$5","v":0},{"$f":"'Population at Risk'!M43/'Population at Risk'!M$5","v":0},{"$f":"'Population at Risk'!AJ43/'Population at Risk'!AJ$5","v":0},{"$f":"'Population at Risk'!AK43/'Population at Risk'!AK$5","v":0},{"$f":"'Population at Risk'!AL43/'Population at Risk'!AL$5","v":0},{"$f":"'Population at Risk'!AM43/'Population at Risk'!AM$5","v":0},{"$f":"'Population at Risk'!N43/'Population at Risk'!N$5","v":0},{"$f":"'Population at Risk'!AN43/'Population at Risk'!AN$5","v":0},{"$f":"'Population at Risk'!AO43/'Population at Risk'!AO$5","v":0},{"$f":"'Population at Risk'!AP43/'Population at Risk'!AP$5","v":0},{"$f":"'Population at Risk'!C43/'Population at Risk'!C$5","v":0},{"$f":"'Population at Risk'!AQ43/'Population at Risk'!AQ$5","v":0},{"$f":"'Population at Risk'!O43/'Population at Risk'!O$5","v":0},{"$f":"'Population at Risk'!AR43/'Population at Risk'!AR$5","v":0},{"$f":"'Population at Risk'!AS43/'Population at Risk'!AS$5","v":0},{"$f":"'Population at Risk'!AT43/'Population at Risk'!AT$5","v":0},{"$f":"'Population at Risk'!AU43/'Population at Risk'!AU$5","v":0},{"$f":"'Population at Risk'!BB43/'Population at Risk'!BB$5","v":0},{"$f":"'Population at Risk'!P43/'Population at Risk'!P$5","v":0},{"$f":"'Population at Risk'!AV43/'Population at Risk'!AV$5","v":0},{"$f":"'Population at Risk'!AW43/'Population at Risk'!AW$5","v":0},{"$f":"'Population at Risk'!Q43/'Population at Risk'!Q$5","v":0},41]
[null,"Male 16-19",{"$f":"'Population at Risk'!R44/'Population at Risk'!R$5","v":4.3361513298954116E-2},{"$f":"'Population at Risk'!AX44/'Population at Risk'!AX$5","v":3.5743457515833535E-2},{"$f":"'Population at Risk'!S44/'Population at Risk'!S$5","v":2.5669014427872144E-2},{"$f":"'Population at Risk'!T44/'Population at Risk'!T$5","v":2.6785419199861146E-2},{"$f":"'Population at Risk'!U44/'Population at Risk'!U$5","v":2.6096634922559613E-2},{"$f":"'Population at Risk'!D44/'Population at Risk'!D$5","v":2.6269755785777584E-2},{"$f":"'Population at Risk'!E44/'Population at Risk'!E$5","v":3.6476706695546396E-2},{"$f":"'Population at Risk'!BC44/'Population at Risk'!BC$5","v":2.6096634922559613E-2},{"$f":"'Population at Risk'!V44/'Population at Risk'!V$5","v":3.5014123161547013E-2},{"$f":"'Population at Risk'!F44/'Population at Risk'!F$5","v":4.2784401343593993E-2},{"$f":"'Population at Risk'!W44/'Population at Risk'!W$5","v":3.0518469116470427E-2},{"$f":"'Population at Risk'!X44/'Population at Risk'!X$5","v":3.0518469116470427E-2},{"$f":"'Population at Risk'!Y44/'Population at Risk'!Y$5","v":3.4187785989962131E-2},{"$f":"'Population at Risk'!Z44/'Population at Risk'!Z$5","v":2.567972728740597E-2},{"$f":"'Population at Risk'!AA44/'Population at Risk'!AA$5","v":2.5952901709899775E-2},{"$f":"'Population at Risk'!AB44/'Population at Risk'!AB$5","v":3.1740682176178654E-2},{"$f":"'Population at Risk'!AY44/'Population at Risk'!AY$5","v":2.7333517065238944E-2},{"$f":"'Population at Risk'!AC44/'Population at Risk'!AC$5","v":2.7264972527616654E-2},{"$f":"'Population at Risk'!AD44/'Population at Risk'!AD$5","v":3.2782366086968412E-2},{"$f":"'Population at Risk'!AE44/'Population at Risk'!AE$5","v":3.3191790339646129E-2},{"$f":"'Population at Risk'!G44/'Population at Risk'!G$5","v":3.1324832831765535E-2},{"$f":"'Population at Risk'!AF44/'Population at Risk'!AF$5","v":2.8306484484404138E-2},{"$f":"'Population at Risk'!H44/'Population at Risk'!H$5","v":2.9578312038857801E-2},{"$f":"'Population at Risk'!AG44/'Population at Risk'!AG$5","v":2.832695540733739E-2},{"$f":"'Population at Risk'!AZ44/'Population at Risk'!AZ$5","v":3.2675285604692406E-2},{"$f":"'Population at Risk'!I44/'Population at Risk'!I$5","v":2.4780674870561219E-2},{"$f":"'Population at Risk'!J44/'Population at Risk'!J$5","v":3.3899175622713537E-2},{"$f":"'Population at Risk'!K44/'Population at Risk'!K$5","v":3.1123890586878505E-2},{"$f":"'Population at Risk'!AH44/'Population at Risk'!AH$5","v":2.6977901061755669E-2},{"$f":"'Population at Risk'!AI44/'Population at Risk'!AI$5","v":2.7074127042521719E-2},{"$f":"'Population at Risk'!BA44/'Population at Risk'!BA$5","v":2.547706346463071E-2},{"$f":"'Population at Risk'!L44/'Population at Risk'!L$5","v":2.6292169416769935E-2},{"$f":"'Population at Risk'!M44/'Population at Risk'!M$5","v":2.6292169416769935E-2},{"$f":"'Population at Risk'!AJ44/'Population at Risk'!AJ$5","v":2.8917822720111407E-2},{"$f":"'Population at Risk'!AK44/'Population at Risk'!AK$5","v":3.102830026212371E-2},{"$f":"'Population at Risk'!AL44/'Population at Risk'!AL$5","v":3.3706622383500071E-2},{"$f":"'Population at Risk'!AM44/'Population at Risk'!AM$5","v":2.5255385976518326E-2},{"$f":"'Population at Risk'!N44/'Population at Risk'!N$5","v":2.6166385933497682E-2},{"$f":"'Population at Risk'!AN44/'Population at Risk'!AN$5","v":3.1479551613834984E-2},{"$f":"'Population at Risk'!AO44/'Population at Risk'!AO$5","v":3.1479551613834984E-2},{"$f":"'Population at Risk'!AP44/'Population at Risk'!AP$5","v":3.4567851270893513E-2},{"$f":"'Population at Risk'!C44/'Population at Risk'!C$5","v":2.7667854640892553E-2},{"$f":"'Population at Risk'!AQ44/'Population at Risk'!AQ$5","v":2.7257914270516402E-2},{"$f":"'Population at Risk'!O44/'Population at Risk'!O$5","v":2.8790600880139613E-2},{"$f":"'Population at Risk'!AR44/'Population at Risk'!AR$5","v":2.9053424119094142E-2},{"$f":"'Population at Risk'!AS44/'Population at Risk'!AS$5","v":2.4780674870561219E-2},{"$f":"'Population at Risk'!AT44/'Population at Risk'!AT$5","v":3.3288491627198914E-2},{"$f":"'Population at Risk'!AU44/'Population at Risk'!AU$5","v":3.3288491627198914E-2},{"$f":"'Population at Risk'!BB44/'Population at Risk'!BB$5","v":2.6025978459169954E-2},{"$f":"'Population at Risk'!P44/'Population at Risk'!P$5","v":3.6890902015396465E-2},{"$f":"'Population at Risk'!AV44/'Population at Risk'!AV$5","v":2.479953800786119E-2},{"$f":"'Population at Risk'!AW44/'Population at Risk'!AW$5","v":2.9142709529897635E-2},{"$f":"'Population at Risk'!Q44/'Population at Risk'!Q$5","v":2.8001848947598638E-2},42]
[null,"Male 20-24",{"$f":"'Population at Risk'!R45/'Population at Risk'!R$5","v":5.0222002241765928E-2},{"$f":"'Population at Risk'!AX45/'Population at Risk'!AX$5","v":5.4419349779807336E-2},{"$f":"'Population at Risk'!S45/'Population at Risk'!S$5","v":3.8961931745409843E-2},{"$f":"'Population at Risk'!T45/'Population at Risk'!T$5","v":5.2250918976457596E-2},{"$f":"'Population at Risk'!U45/'Population at Risk'!U$5","v":3.038018226323002E-2},{"$f":"'Population at Risk'!D45/'Population at Risk'!D$5","v":4.3931809093368697E-2},{"$f":"'Population at Risk'!E45/'Population at Risk'!E$5","v":4.4075618171213631E-2},{"$f":"'Population at Risk'!BC45/'Population at Risk'!BC$5","v":3.038018226323002E-2},{"$f":"'Population at Risk'!V45/'Population at Risk'!V$5","v":4.4193326656189538E-2},{"$f":"'Population at Risk'!F45/'Population at Risk'!F$5","v":5.276151126472739E-2},{"$f":"'Population at Risk'!W45/'Population at Risk'!W$5","v":4.1172516207803538E-2},{"$f":"'Population at Risk'!X45/'Population at Risk'!X$5","v":4.1172516207803538E-2},{"$f":"'Population at Risk'!Y45/'Population at Risk'!Y$5","v":4.6056797623811291E-2},{"$f":"'Population at Risk'!Z45/'Population at Risk'!Z$5","v":4.7729566914088042E-2},{"$f":"'Population at Risk'!AA45/'Population at Risk'!AA$5","v":3.9132455581416432E-2},{"$f":"'Population at Risk'!AB45/'Population at Risk'!AB$5","v":5.0786119591048805E-2},{"$f":"'Population at Risk'!AY45/'Population at Risk'!AY$5","v":3.9727042028475629E-2},{"$f":"'Population at Risk'!AC45/'Population at Risk'!AC$5","v":4.446160106947103E-2},{"$f":"'Population at Risk'!AD45/'Population at Risk'!AD$5","v":3.944443470644058E-2},{"$f":"'Population at Risk'!AE45/'Population at Risk'!AE$5","v":3.8437907091970071E-2},{"$f":"'Population at Risk'!G45/'Population at Risk'!G$5","v":4.1419273814924107E-2},{"$f":"'Population at Risk'!AF45/'Population at Risk'!AF$5","v":3.8173985982490194E-2},{"$f":"'Population at Risk'!H45/'Population at Risk'!H$5","v":3.8214188148207887E-2},{"$f":"'Population at Risk'!AG45/'Population at Risk'!AG$5","v":3.2804162384848998E-2},{"$f":"'Population at Risk'!AZ45/'Population at Risk'!AZ$5","v":5.0545882851092606E-2},{"$f":"'Population at Risk'!I45/'Population at Risk'!I$5","v":2.8909959912968616E-2},{"$f":"'Population at Risk'!J45/'Population at Risk'!J$5","v":4.8598307618402746E-2},{"$f":"'Population at Risk'!K45/'Population at Risk'!K$5","v":3.9838772937844137E-2},{"$f":"'Population at Risk'!AH45/'Population at Risk'!AH$5","v":3.5037091993197766E-2},{"$f":"'Population at Risk'!AI45/'Population at Risk'!AI$5","v":4.4565173499789362E-2},{"$f":"'Population at Risk'!BA45/'Population at Risk'!BA$5","v":3.6342804419773389E-2},{"$f":"'Population at Risk'!L45/'Population at Risk'!L$5","v":3.3327040689255405E-2},{"$f":"'Population at Risk'!M45/'Population at Risk'!M$5","v":3.3327040689255405E-2},{"$f":"'Population at Risk'!AJ45/'Population at Risk'!AJ$5","v":3.7594659119643888E-2},{"$f":"'Population at Risk'!AK45/'Population at Risk'!AK$5","v":3.9745494522777036E-2},{"$f":"'Population at Risk'!AL45/'Population at Risk'!AL$5","v":4.3821994552726042E-2},{"$f":"'Population at Risk'!AM45/'Population at Risk'!AM$5","v":3.2821652774609592E-2},{"$f":"'Population at Risk'!N45/'Population at Risk'!N$5","v":5.1862378577039583E-2},{"$f":"'Population at Risk'!AN45/'Population at Risk'!AN$5","v":3.6823448165508324E-2},{"$f":"'Population at Risk'!AO45/'Population at Risk'!AO$5","v":3.6823448165508324E-2},{"$f":"'Population at Risk'!AP45/'Population at Risk'!AP$5","v":4.4462848121217327E-2},{"$f":"'Population at Risk'!C45/'Population at Risk'!C$5","v":6.191559089572108E-2},{"$f":"'Population at Risk'!AQ45/'Population at Risk'!AQ$5","v":3.7634941530040628E-2},{"$f":"'Population at Risk'!O45/'Population at Risk'!O$5","v":3.8169663922916292E-2},{"$f":"'Population at Risk'!AR45/'Population at Risk'!AR$5","v":4.2643209502110146E-2},{"$f":"'Population at Risk'!AS45/'Population at Risk'!AS$5","v":2.8909959912968616E-2},{"$f":"'Population at Risk'!AT45/'Population at Risk'!AT$5","v":4.4400072592467303E-2},{"$f":"'Population at Risk'!AU45/'Population at Risk'!AU$5","v":4.4400072592467303E-2},{"$f":"'Population at Risk'!BB45/'Population at Risk'!BB$5","v":3.4513787587482456E-2},{"$f":"'Population at Risk'!P45/'Population at Risk'!P$5","v":4.8021702687422181E-2},{"$f":"'Population at Risk'!AV45/'Population at Risk'!AV$5","v":3.0695105643366607E-2},{"$f":"'Population at Risk'!AW45/'Population at Risk'!AW$5","v":3.7817666314353564E-2},{"$f":"'Population at Risk'!Q45/'Population at Risk'!Q$5","v":3.6621559526272572E-2},43]
[null,"Male 25-29",{"$f":"'Population at Risk'!R46/'Population at Risk'!R$5","v":5.3678382732620891E-2},{"$f":"'Population at Risk'!AX46/'Population at Risk'!AX$5","v":5.626006837917872E-2},{"$f":"'Population at Risk'!S46/'Population at Risk'!S$5","v":5.3485234146447638E-2},{"$f":"'Population at Risk'!T46/'Population at Risk'!T$5","v":8.7387709724821822E-2},{"$f":"'Population at Risk'!U46/'Population at Risk'!U$5","v":3.760036903024129E-2},{"$f":"'Population at Risk'!D46/'Population at Risk'!D$5","v":6.5021330311837391E-2},{"$f":"'Population at Risk'!E46/'Population at Risk'!E$5","v":5.5475108821640258E-2},{"$f":"'Population at Risk'!BC46/'Population at Risk'!BC$5","v":3.760036903024129E-2},{"$f":"'Population at Risk'!V46/'Population at Risk'!V$5","v":5.3504280248219037E-2},{"$f":"'Population at Risk'!F46/'Population at Risk'!F$5","v":6.1351388890452128E-2},{"$f":"'Population at Risk'!W46/'Population at Risk'!W$5","v":4.7851553769253534E-2},{"$f":"'Population at Risk'!X46/'Population at Risk'!X$5","v":4.7851553769253534E-2},{"$f":"'Population at Risk'!Y46/'Population at Risk'!Y$5","v":5.1393634597201483E-2},{"$f":"'Population at Risk'!Z46/'Population at Risk'!Z$5","v":7.0933578885692572E-2},{"$f":"'Population at Risk'!AA46/'Population at Risk'!AA$5","v":5.1513232441662206E-2},{"$f":"'Population at Risk'!AB46/'Population at Risk'!AB$5","v":7.3129550891520331E-2},{"$f":"'Population at Risk'!AY46/'Population at Risk'!AY$5","v":4.7897465206478286E-2},{"$f":"'Population at Risk'!AC46/'Population at Risk'!AC$5","v":6.1742332654850345E-2},{"$f":"'Population at Risk'!AD46/'Population at Risk'!AD$5","v":4.6879496525786213E-2},{"$f":"'Population at Risk'!AE46/'Population at Risk'!AE$5","v":4.7388387300629907E-2},{"$f":"'Population at Risk'!G46/'Population at Risk'!G$5","v":4.4985692461319358E-2},{"$f":"'Population at Risk'!AF46/'Population at Risk'!AF$5","v":4.5811773609346094E-2},{"$f":"'Population at Risk'!H46/'Population at Risk'!H$5","v":4.3644482497407246E-2},{"$f":"'Population at Risk'!AG46/'Population at Risk'!AG$5","v":4.0442793840113435E-2},{"$f":"'Population at Risk'!AZ46/'Population at Risk'!AZ$5","v":6.2657779115461013E-2},{"$f":"'Population at Risk'!I46/'Population at Risk'!I$5","v":3.1863644965409589E-2},{"$f":"'Population at Risk'!J46/'Population at Risk'!J$5","v":5.0104868562574068E-2},{"$f":"'Population at Risk'!K46/'Population at Risk'!K$5","v":4.0842491695283603E-2},{"$f":"'Population at Risk'!AH46/'Population at Risk'!AH$5","v":4.0711683817236721E-2},{"$f":"'Population at Risk'!AI46/'Population at Risk'!AI$5","v":6.6032894855776125E-2},{"$f":"'Population at Risk'!BA46/'Population at Risk'!BA$5","v":4.4091591047416785E-2},{"$f":"'Population at Risk'!L46/'Population at Risk'!L$5","v":3.8228616579163238E-2},{"$f":"'Population at Risk'!M46/'Population at Risk'!M$5","v":3.8228616579163238E-2},{"$f":"'Population at Risk'!AJ46/'Population at Risk'!AJ$5","v":4.4807303785896639E-2},{"$f":"'Population at Risk'!AK46/'Population at Risk'!AK$5","v":4.8048559488409304E-2},{"$f":"'Population at Risk'!AL46/'Population at Risk'!AL$5","v":4.6971893326620537E-2},{"$f":"'Population at Risk'!AM46/'Population at Risk'!AM$5","v":3.826194843902659E-2},{"$f":"'Population at Risk'!N46/'Population at Risk'!N$5","v":6.8052431538128275E-2},{"$f":"'Population at Risk'!AN46/'Population at Risk'!AN$5","v":4.8130938078334948E-2},{"$f":"'Population at Risk'!AO46/'Population at Risk'!AO$5","v":4.8130938078334948E-2},{"$f":"'Population at Risk'!AP46/'Population at Risk'!AP$5","v":5.1891984191577797E-2},{"$f":"'Population at Risk'!C46/'Population at Risk'!C$5","v":0.10065932709027424},{"$f":"'Population at Risk'!AQ46/'Population at Risk'!AQ$5","v":5.0217182668878979E-2},{"$f":"'Population at Risk'!O46/'Population at Risk'!O$5","v":4.5380597584027675E-2},{"$f":"'Population at Risk'!AR46/'Population at Risk'!AR$5","v":5.5527261730013051E-2},{"$f":"'Population at Risk'!AS46/'Population at Risk'!AS$5","v":3.1863644965409589E-2},{"$f":"'Population at Risk'!AT46/'Population at Risk'!AT$5","v":5.3240026170876566E-2},{"$f":"'Population at Risk'!AU46/'Population at Risk'!AU$5","v":5.3240026170876566E-2},{"$f":"'Population at Risk'!BB46/'Population at Risk'!BB$5","v":4.2226367922465556E-2},{"$f":"'Population at Risk'!P46/'Population at Risk'!P$5","v":5.2491038613484572E-2},{"$f":"'Population at Risk'!AV46/'Population at Risk'!AV$5","v":3.6487834845918526E-2},{"$f":"'Population at Risk'!AW46/'Population at Risk'!AW$5","v":4.3764672468884769E-2},{"$f":"'Population at Risk'!Q46/'Population at Risk'!Q$5","v":3.8912902772891347E-2},44]
[null,"Male 30-34",{"$f":"'Population at Risk'!R47/'Population at Risk'!R$5","v":4.6121555557344797E-2},{"$f":"'Population at Risk'!AX47/'Population at Risk'!AX$5","v":4.3049700495046944E-2},{"$f":"'Population at Risk'!S47/'Population at Risk'!S$5","v":4.9795165668229752E-2},{"$f":"'Population at Risk'!T47/'Population at Risk'!T$5","v":7.6164600109379657E-2},{"$f":"'Population at Risk'!U47/'Population at Risk'!U$5","v":3.7710839921890046E-2},{"$f":"'Population at Risk'!D47/'Population at Risk'!D$5","v":5.7989947773717195E-2},{"$f":"'Population at Risk'!E47/'Population at Risk'!E$5","v":5.9379158602988064E-2},{"$f":"'Population at Risk'!BC47/'Population at Risk'!BC$5","v":3.7710839921890046E-2},{"$f":"'Population at Risk'!V47/'Population at Risk'!V$5","v":5.3899482327365543E-2},{"$f":"'Population at Risk'!F47/'Population at Risk'!F$5","v":6.2447317969975727E-2},{"$f":"'Population at Risk'!W47/'Population at Risk'!W$5","v":4.6413500236016744E-2},{"$f":"'Population at Risk'!X47/'Population at Risk'!X$5","v":4.6413500236016744E-2},{"$f":"'Population at Risk'!Y47/'Population at Risk'!Y$5","v":4.7882068082315564E-2},{"$f":"'Population at Risk'!Z47/'Population at Risk'!Z$5","v":6.2516779700201905E-2},{"$f":"'Population at Risk'!AA47/'Population at Risk'!AA$5","v":4.7783409321755996E-2},{"$f":"'Population at Risk'!AB47/'Population at Risk'!AB$5","v":6.6090386399389869E-2},{"$f":"'Population at Risk'!AY47/'Population at Risk'!AY$5","v":4.395696493725805E-2},{"$f":"'Population at Risk'!AC47/'Population at Risk'!AC$5","v":5.5331052386706346E-2},{"$f":"'Population at Risk'!AD47/'Population at Risk'!AD$5","v":4.6225247954203595E-2},{"$f":"'Population at Risk'!AE47/'Population at Risk'!AE$5","v":4.9442098849489906E-2},{"$f":"'Population at Risk'!G47/'Population at Risk'!G$5","v":3.760519877569396E-2},{"$f":"'Population at Risk'!AF47/'Population at Risk'!AF$5","v":4.3721770194613825E-2},{"$f":"'Population at Risk'!H47/'Population at Risk'!H$5","v":3.9855714065533628E-2},{"$f":"'Population at Risk'!AG47/'Population at Risk'!AG$5","v":4.2195498194677973E-2},{"$f":"'Population at Risk'!AZ47/'Population at Risk'!AZ$5","v":5.5105202130592577E-2},{"$f":"'Population at Risk'!I47/'Population at Risk'!I$5","v":3.137420814787991E-2},{"$f":"'Population at Risk'!J47/'Population at Risk'!J$5","v":4.269348337500644E-2},{"$f":"'Population at Risk'!K47/'Population at Risk'!K$5","v":4.2157445990241883E-2},{"$f":"'Population at Risk'!AH47/'Population at Risk'!AH$5","v":4.1031234262562367E-2},{"$f":"'Population at Risk'!AI47/'Population at Risk'!AI$5","v":6.0429388833954843E-2},{"$f":"'Population at Risk'!BA47/'Population at Risk'!BA$5","v":4.1653589428268398E-2},{"$f":"'Population at Risk'!L47/'Population at Risk'!L$5","v":3.5856471654424578E-2},{"$f":"'Population at Risk'!M47/'Population at Risk'!M$5","v":3.5856471654424578E-2},{"$f":"'Population at Risk'!AJ47/'Population at Risk'!AJ$5","v":4.5771427317531886E-2},{"$f":"'Population at Risk'!AK47/'Population at Risk'!AK$5","v":4.7451383393557117E-2},{"$f":"'Population at Risk'!AL47/'Population at Risk'!AL$5","v":4.2551699318829767E-2},{"$f":"'Population at Risk'!AM47/'Population at Risk'!AM$5","v":3.8560137824854637E-2},{"$f":"'Population at Risk'!N47/'Population at Risk'!N$5","v":5.1852230213271254E-2},{"$f":"'Population at Risk'!AN47/'Population at Risk'!AN$5","v":4.2307634140937599E-2},{"$f":"'Population at Risk'!AO47/'Population at Risk'!AO$5","v":4.2307634140937599E-2},{"$f":"'Population at Risk'!AP47/'Population at Risk'!AP$5","v":5.2571417311555138E-2},{"$f":"'Population at Risk'!C47/'Population at Risk'!C$5","v":8.0619838656975834E-2},{"$f":"'Population at Risk'!AQ47/'Population at Risk'!AQ$5","v":4.7972267512240138E-2},{"$f":"'Population at Risk'!O47/'Population at Risk'!O$5","v":4.229804422560015E-2},{"$f":"'Population at Risk'!AR47/'Population at Risk'!AR$5","v":5.1328957446486211E-2},{"$f":"'Population at Risk'!AS47/'Population at Risk'!AS$5","v":3.137420814787991E-2},{"$f":"'Population at Risk'!AT47/'Population at Risk'!AT$5","v":4.9388807839046762E-2},{"$f":"'Population at Risk'!AU47/'Population at Risk'!AU$5","v":4.9388807839046762E-2},{"$f":"'Population at Risk'!BB47/'Population at Risk'!BB$5","v":4.3301095152566929E-2},{"$f":"'Population at Risk'!P47/'Population at Risk'!P$5","v":4.5232201026835353E-2},{"$f":"'Population at Risk'!AV47/'Population at Risk'!AV$5","v":3.2772125316894156E-2},{"$f":"'Population at Risk'!AW47/'Population at Risk'!AW$5","v":4.4111233847006333E-2},{"$f":"'Population at Risk'!Q47/'Population at Risk'!Q$5","v":3.8326741489158697E-2},45]
[null,"Male 35-39",{"$f":"'Population at Risk'!R48/'Population at Risk'!R$5","v":4.749767593476522E-2},{"$f":"'Population at Risk'!AX48/'Population at Risk'!AX$5","v":3.9989477432172446E-2},{"$f":"'Population at Risk'!S48/'Population at Risk'!S$5","v":4.5487509515567293E-2},{"$f":"'Population at Risk'!T48/'Population at Risk'!T$5","v":6.1092114989268184E-2},{"$f":"'Population at Risk'!U48/'Population at Risk'!U$5","v":4.4205491515102661E-2},{"$f":"'Population at Risk'!D48/'Population at Risk'!D$5","v":4.8662953879888213E-2},{"$f":"'Population at Risk'!E48/'Population at Risk'!E$5","v":5.6535611033285235E-2},{"$f":"'Population at Risk'!BC48/'Population at Risk'!BC$5","v":4.4205491515102661E-2},{"$f":"'Population at Risk'!V48/'Population at Risk'!V$5","v":5.7024637868387476E-2},{"$f":"'Population at Risk'!F48/'Population at Risk'!F$5","v":5.985975528663405E-2},{"$f":"'Population at Risk'!W48/'Population at Risk'!W$5","v":4.6804030828778258E-2},{"$f":"'Population at Risk'!X48/'Population at Risk'!X$5","v":4.6804030828778258E-2},{"$f":"'Population at Risk'!Y48/'Population at Risk'!Y$5","v":4.9109125800995808E-2},{"$f":"'Population at Risk'!Z48/'Population at Risk'!Z$5","v":5.3803816726698456E-2},{"$f":"'Population at Risk'!AA48/'Population at Risk'!AA$5","v":4.4827721243674193E-2},{"$f":"'Population at Risk'!AB48/'Population at Risk'!AB$5","v":5.6050978441422795E-2},{"$f":"'Population at Risk'!AY48/'Population at Risk'!AY$5","v":4.1180765044353633E-2},{"$f":"'Population at Risk'!AC48/'Population at Risk'!AC$5","v":4.9104181763174666E-2},{"$f":"'Population at Risk'!AD48/'Population at Risk'!AD$5","v":4.6024987870783893E-2},{"$f":"'Population at Risk'!AE48/'Population at Risk'!AE$5","v":4.8321076203475928E-2},{"$f":"'Population at Risk'!G48/'Population at Risk'!G$5","v":3.9697665387994636E-2},{"$f":"'Population at Risk'!AF48/'Population at Risk'!AF$5","v":4.1263681196803438E-2},{"$f":"'Population at Risk'!H48/'Population at Risk'!H$5","v":4.071051135452531E-2},{"$f":"'Population at Risk'!AG48/'Population at Risk'!AG$5","v":4.1238780940823699E-2},{"$f":"'Population at Risk'!AZ48/'Population at Risk'!AZ$5","v":4.8437196390730103E-2},{"$f":"'Population at Risk'!I48/'Population at Risk'!I$5","v":3.2981839860886389E-2},{"$f":"'Population at Risk'!J48/'Population at Risk'!J$5","v":4.2070849830299593E-2},{"$f":"'Population at Risk'!K48/'Population at Risk'!K$5","v":4.5202909897727975E-2},{"$f":"'Population at Risk'!AH48/'Population at Risk'!AH$5","v":4.3214157693591375E-2},{"$f":"'Population at Risk'!AI48/'Population at Risk'!AI$5","v":5.2683921417668068E-2},{"$f":"'Population at Risk'!BA48/'Population at Risk'!BA$5","v":4.0410351681185903E-2},{"$f":"'Population at Risk'!L48/'Population at Risk'!L$5","v":3.4015476400205906E-2},{"$f":"'Population at Risk'!M48/'Population at Risk'!M$5","v":3.4015476400205906E-2},{"$f":"'Population at Risk'!AJ48/'Population at Risk'!AJ$5","v":4.6974722882079212E-2},{"$f":"'Population at Risk'!AK48/'Population at Risk'!AK$5","v":4.2943911650772916E-2},{"$f":"'Population at Risk'!AL48/'Population at Risk'!AL$5","v":4.3506178605963008E-2},{"$f":"'Population at Risk'!AM48/'Population at Risk'!AM$5","v":4.0312651642023224E-2},{"$f":"'Population at Risk'!N48/'Population at Risk'!N$5","v":4.073581681161912E-2},{"$f":"'Population at Risk'!AN48/'Population at Risk'!AN$5","v":3.9935852916551273E-2},{"$f":"'Population at Risk'!AO48/'Population at Risk'!AO$5","v":3.9935852916551273E-2},{"$f":"'Population at Risk'!AP48/'Population at Risk'!AP$5","v":5.0519471335290549E-2},{"$f":"'Population at Risk'!C48/'Population at Risk'!C$5","v":6.1453391636607249E-2},{"$f":"'Population at Risk'!AQ48/'Population at Risk'!AQ$5","v":4.4244566728699031E-2},{"$f":"'Population at Risk'!O48/'Population at Risk'!O$5","v":4.1938217376397267E-2},{"$f":"'Population at Risk'!AR48/'Population at Risk'!AR$5","v":4.7800118686768346E-2},{"$f":"'Population at Risk'!AS48/'Population at Risk'!AS$5","v":3.2981839860886389E-2},{"$f":"'Population at Risk'!AT48/'Population at Risk'!AT$5","v":5.1563674635393179E-2},{"$f":"'Population at Risk'!AU48/'Population at Risk'!AU$5","v":5.1563674635393179E-2},{"$f":"'Population at Risk'!BB48/'Population at Risk'!BB$5","v":4.3110428653351796E-2},{"$f":"'Population at Risk'!P48/'Population at Risk'!P$5","v":4.0379778082548029E-2},{"$f":"'Population at Risk'!AV48/'Population at Risk'!AV$5","v":3.4791731322067102E-2},{"$f":"'Population at Risk'!AW48/'Population at Risk'!AW$5","v":4.6885193254740568E-2},{"$f":"'Population at Risk'!Q48/'Population at Risk'!Q$5","v":3.9206393133152134E-2},46]
[null,"Male 40-44",{"$f":"'Population at Risk'!R49/'Population at Risk'!R$5","v":5.5453440952774706E-2},{"$f":"'Population at Risk'!AX49/'Population at Risk'!AX$5","v":4.329943306762498E-2},{"$f":"'Population at Risk'!S49/'Population at Risk'!S$5","v":4.5558705917605878E-2},{"$f":"'Population at Risk'!T49/'Population at Risk'!T$5","v":5.2849139890110017E-2},{"$f":"'Population at Risk'!U49/'Population at Risk'!U$5","v":5.2793635211041461E-2},{"$f":"'Population at Risk'!D49/'Population at Risk'!D$5","v":4.6345011363791329E-2},{"$f":"'Population at Risk'!E49/'Population at Risk'!E$5","v":6.1110815064045657E-2},{"$f":"'Population at Risk'!BC49/'Population at Risk'!BC$5","v":5.2793635211041461E-2},{"$f":"'Population at Risk'!V49/'Population at Risk'!V$5","v":6.0942772946222336E-2},{"$f":"'Population at Risk'!F49/'Population at Risk'!F$5","v":6.580111001173021E-2},{"$f":"'Population at Risk'!W49/'Population at Risk'!W$5","v":4.9717115745610684E-2},{"$f":"'Population at Risk'!X49/'Population at Risk'!X$5","v":4.9717115745610684E-2},{"$f":"'Population at Risk'!Y49/'Population at Risk'!Y$5","v":5.2851001738569089E-2},{"$f":"'Population at Risk'!Z49/'Population at Risk'!Z$5","v":4.5715249066216775E-2},{"$f":"'Population at Risk'!AA49/'Population at Risk'!AA$5","v":4.3085315703277789E-2},{"$f":"'Population at Risk'!AB49/'Population at Risk'!AB$5","v":5.4545452386187972E-2},{"$f":"'Population at Risk'!AY49/'Population at Risk'!AY$5","v":4.1742469796745181E-2},{"$f":"'Population at Risk'!AC49/'Population at Risk'!AC$5","v":4.481631691031087E-2},{"$f":"'Population at Risk'!AD49/'Population at Risk'!AD$5","v":4.8874591871337296E-2},{"$f":"'Population at Risk'!AE49/'Population at Risk'!AE$5","v":5.0051495424919781E-2},{"$f":"'Population at Risk'!G49/'Population at Risk'!G$5","v":4.5292630363078727E-2},{"$f":"'Population at Risk'!AF49/'Population at Risk'!AF$5","v":4.2329070595975168E-2},{"$f":"'Population at Risk'!H49/'Population at Risk'!H$5","v":4.6130237868049422E-2},{"$f":"'Population at Risk'!AG49/'Population at Risk'!AG$5","v":4.2715577088914866E-2},{"$f":"'Population at Risk'!AZ49/'Population at Risk'!AZ$5","v":4.6915069696103984E-2},{"$f":"'Population at Risk'!I49/'Population at Risk'!I$5","v":4.0483792355081372E-2},{"$f":"'Population at Risk'!J49/'Population at Risk'!J$5","v":4.5696658029686046E-2},{"$f":"'Population at Risk'!K49/'Population at Risk'!K$5","v":4.9304014686798431E-2},{"$f":"'Population at Risk'!AH49/'Population at Risk'!AH$5","v":4.5539817714493655E-2},{"$f":"'Population at Risk'!AI49/'Population at Risk'!AI$5","v":5.047006317441393E-2},{"$f":"'Population at Risk'!BA49/'Population at Risk'!BA$5","v":3.9755301529319033E-2},{"$f":"'Population at Risk'!L49/'Population at Risk'!L$5","v":4.0656500879687592E-2},{"$f":"'Population at Risk'!M49/'Population at Risk'!M$5","v":4.0656500879687592E-2},{"$f":"'Population at Risk'!AJ49/'Population at Risk'!AJ$5","v":4.8904634773966289E-2},{"$f":"'Population at Risk'!AK49/'Population at Risk'!AK$5","v":4.7059771240316794E-2},{"$f":"'Population at Risk'!AL49/'Population at Risk'!AL$5","v":4.9862281846292364E-2},{"$f":"'Population at Risk'!AM49/'Population at Risk'!AM$5","v":4.2203196217885368E-2},{"$f":"'Population at Risk'!N49/'Population at Risk'!N$5","v":3.6474085305147889E-2},{"$f":"'Population at Risk'!AN49/'Population at Risk'!AN$5","v":4.6999783191805686E-2},{"$f":"'Population at Risk'!AO49/'Population at Risk'!AO$5","v":4.6999783191805686E-2},{"$f":"'Population at Risk'!AP49/'Population at Risk'!AP$5","v":4.8511669883774575E-2},{"$f":"'Population at Risk'!C49/'Population at Risk'!C$5","v":5.1807688838270867E-2},{"$f":"'Population at Risk'!AQ49/'Population at Risk'!AQ$5","v":4.3193612003586991E-2},{"$f":"'Population at Risk'!O49/'Population at Risk'!O$5","v":4.7814309626478535E-2},{"$f":"'Population at Risk'!AR49/'Population at Risk'!AR$5","v":4.7885576188512143E-2},{"$f":"'Population at Risk'!AS49/'Population at Risk'!AS$5","v":4.0483792355081372E-2},{"$f":"'Population at Risk'!AT49/'Population at Risk'!AT$5","v":5.6641329781235913E-2},{"$f":"'Population at Risk'!AU49/'Population at Risk'!AU$5","v":5.6641329781235913E-2},{"$f":"'Population at Risk'!BB49/'Population at Risk'!BB$5","v":4.6563755014117567E-2},{"$f":"'Population at Risk'!P49/'Population at Risk'!P$5","v":4.6975056525538537E-2},{"$f":"'Population at Risk'!AV49/'Population at Risk'!AV$5","v":3.8493914908392705E-2},{"$f":"'Population at Risk'!AW49/'Population at Risk'!AW$5","v":4.980704448681212E-2},{"$f":"'Population at Risk'!Q49/'Population at Risk'!Q$5","v":4.7927939356261648E-2},47]
[null,"Male 45-49",{"$f":"'Population at Risk'!R50/'Population at Risk'!R$5","v":5.8612823902318846E-2},{"$f":"'Population at Risk'!AX50/'Population at Risk'!AX$5","v":5.0487528240245563E-2},{"$f":"'Population at Risk'!S50/'Population at Risk'!S$5","v":4.7299078120925132E-2},{"$f":"'Population at Risk'!T50/'Population at Risk'!T$5","v":4.7703196130764111E-2},{"$f":"'Population at Risk'!U50/'Population at Risk'!U$5","v":6.0135389926853522E-2},{"$f":"'Population at Risk'!D50/'Population at Risk'!D$5","v":4.6117393943081467E-2},{"$f":"'Population at Risk'!E50/'Population at Risk'!E$5","v":6.3039328819283078E-2},{"$f":"'Population at Risk'!BC50/'Population at Risk'!BC$5","v":6.0135389926853522E-2},{"$f":"'Population at Risk'!V50/'Population at Risk'!V$5","v":6.8479109939226387E-2},{"$f":"'Population at Risk'!F50/'Population at Risk'!F$5","v":7.1881673687923558E-2},{"$f":"'Population at Risk'!W50/'Population at Risk'!W$5","v":5.6546864006642113E-2},{"$f":"'Population at Risk'!X50/'Population at Risk'!X$5","v":5.6546864006642113E-2},{"$f":"'Population at Risk'!Y50/'Population at Risk'!Y$5","v":6.0698258293222701E-2},{"$f":"'Population at Risk'!Z50/'Population at Risk'!Z$5","v":4.6003732717577357E-2},{"$f":"'Population at Risk'!AA50/'Population at Risk'!AA$5","v":4.6762263253843951E-2},{"$f":"'Population at Risk'!AB50/'Population at Risk'!AB$5","v":5.581804026106181E-2},{"$f":"'Population at Risk'!AY50/'Population at Risk'!AY$5","v":4.7474864026393802E-2},{"$f":"'Population at Risk'!AC50/'Population at Risk'!AC$5","v":4.7899989756281215E-2},{"$f":"'Population at Risk'!AD50/'Population at Risk'!AD$5","v":5.5654839770604904E-2},{"$f":"'Population at Risk'!AE50/'Population at Risk'!AE$5","v":5.6593983506338513E-2},{"$f":"'Population at Risk'!G50/'Population at Risk'!G$5","v":5.2573366691157142E-2},{"$f":"'Population at Risk'!AF50/'Population at Risk'!AF$5","v":5.0387885847888447E-2},{"$f":"'Population at Risk'!H50/'Population at Risk'!H$5","v":5.3164320482274104E-2},{"$f":"'Population at Risk'!AG50/'Population at Risk'!AG$5","v":4.8299149600037221E-2},{"$f":"'Population at Risk'!AZ50/'Population at Risk'!AZ$5","v":5.3355679392445371E-2},{"$f":"'Population at Risk'!I50/'Population at Risk'!I$5","v":4.7965303661845198E-2},{"$f":"'Population at Risk'!J50/'Population at Risk'!J$5","v":5.3970462443096036E-2},{"$f":"'Population at Risk'!K50/'Population at Risk'!K$5","v":5.9211600042520456E-2},{"$f":"'Population at Risk'!AH50/'Population at Risk'!AH$5","v":5.0673678209280183E-2},{"$f":"'Population at Risk'!AI50/'Population at Risk'!AI$5","v":4.9421658863947296E-2},{"$f":"'Population at Risk'!BA50/'Population at Risk'!BA$5","v":4.6868341116470071E-2},{"$f":"'Population at Risk'!L50/'Population at Risk'!L$5","v":4.8811167707489604E-2},{"$f":"'Population at Risk'!M50/'Population at Risk'!M$5","v":4.8811167707489604E-2},{"$f":"'Population at Risk'!AJ50/'Population at Risk'!AJ$5","v":5.4071818428333446E-2},{"$f":"'Population at Risk'!AK50/'Population at Risk'!AK$5","v":5.4980562506444924E-2},{"$f":"'Population at Risk'!AL50/'Population at Risk'!AL$5","v":5.8020866913598257E-2},{"$f":"'Population at Risk'!AM50/'Population at Risk'!AM$5","v":4.6225539961909631E-2},{"$f":"'Population at Risk'!N50/'Population at Risk'!N$5","v":4.2111973290849321E-2},{"$f":"'Population at Risk'!AN50/'Population at Risk'!AN$5","v":5.5499770849583539E-2},{"$f":"'Population at Risk'!AO50/'Population at Risk'!AO$5","v":5.5499770849583539E-2},{"$f":"'Population at Risk'!AP50/'Population at Risk'!AP$5","v":5.6098253673792162E-2},{"$f":"'Population at Risk'!C50/'Population at Risk'!C$5","v":4.9493123220945769E-2},{"$f":"'Population at Risk'!AQ50/'Population at Risk'!AQ$5","v":5.0918506163359439E-2},{"$f":"'Population at Risk'!O50/'Population at Risk'!O$5","v":5.4392098892622913E-2},{"$f":"'Population at Risk'!AR50/'Population at Risk'!AR$5","v":5.1978063825549488E-2},{"$f":"'Population at Risk'!AS50/'Population at Risk'!AS$5","v":4.7965303661845198E-2},{"$f":"'Population at Risk'!AT50/'Population at Risk'!AT$5","v":5.3288802905578109E-2},{"$f":"'Population at Risk'!AU50/'Population at Risk'!AU$5","v":5.3288802905578109E-2},{"$f":"'Population at Risk'!BB50/'Population at Risk'!BB$5","v":4.9659457627290904E-2},{"$f":"'Population at Risk'!P50/'Population at Risk'!P$5","v":5.5793243713105047E-2},{"$f":"'Population at Risk'!AV50/'Population at Risk'!AV$5","v":4.4525251509823081E-2},{"$f":"'Population at Risk'!AW50/'Population at Risk'!AW$5","v":5.6472768033436829E-2},{"$f":"'Population at Risk'!Q50/'Population at Risk'!Q$5","v":5.069811966556427E-2},48]
[null,"Male 50-54",{"$f":"'Population at Risk'!R51/'Population at Risk'!R$5","v":6.6930346801559723E-2},{"$f":"'Population at Risk'!AX51/'Population at Risk'!AX$5","v":5.4657923290077626E-2},{"$f":"'Population at Risk'!S51/'Population at Risk'!S$5","v":4.7958995536927174E-2},{"$f":"'Population at Risk'!T51/'Population at Risk'!T$5","v":4.74874782090553E-2},{"$f":"'Population at Risk'!U51/'Population at Risk'!U$5","v":5.9468442218018995E-2},{"$f":"'Population at Risk'!D51/'Population at Risk'!D$5","v":4.6352582058373171E-2},{"$f":"'Population at Risk'!E51/'Population at Risk'!E$5","v":6.4388743414193192E-2},{"$f":"'Population at Risk'!BC51/'Population at Risk'!BC$5","v":5.9468442218018995E-2},{"$f":"'Population at Risk'!V51/'Population at Risk'!V$5","v":6.7661626137837855E-2},{"$f":"'Population at Risk'!F51/'Population at Risk'!F$5","v":8.0262222618585899E-2},{"$f":"'Population at Risk'!W51/'Population at Risk'!W$5","v":5.6183331157805619E-2},{"$f":"'Population at Risk'!X51/'Population at Risk'!X$5","v":5.6183331157805619E-2},{"$f":"'Population at Risk'!Y51/'Population at Risk'!Y$5","v":6.1453490925157062E-2},{"$f":"'Population at Risk'!Z51/'Population at Risk'!Z$5","v":4.6289147429951168E-2},{"$f":"'Population at Risk'!AA51/'Population at Risk'!AA$5","v":4.8455093917279583E-2},{"$f":"'Population at Risk'!AB51/'Population at Risk'!AB$5","v":5.5900381873149031E-2},{"$f":"'Population at Risk'!AY51/'Population at Risk'!AY$5","v":4.9363691115514918E-2},{"$f":"'Population at Risk'!AC51/'Population at Risk'!AC$5","v":5.056947723420302E-2},{"$f":"'Population at Risk'!AD51/'Population at Risk'!AD$5","v":6.1977707090737112E-2},{"$f":"'Population at Risk'!AE51/'Population at Risk'!AE$5","v":6.2927400956851023E-2},{"$f":"'Population at Risk'!G51/'Population at Risk'!G$5","v":5.8785275155794105E-2},{"$f":"'Population at Risk'!AF51/'Population at Risk'!AF$5","v":5.9920121117729583E-2},{"$f":"'Population at Risk'!H51/'Population at Risk'!H$5","v":5.7291815928522984E-2},{"$f":"'Population at Risk'!AG51/'Population at Risk'!AG$5","v":5.3704294422322621E-2},{"$f":"'Population at Risk'!AZ51/'Population at Risk'!AZ$5","v":5.7986230597523371E-2},{"$f":"'Population at Risk'!I51/'Population at Risk'!I$5","v":5.340992290791792E-2},{"$f":"'Population at Risk'!J51/'Population at Risk'!J$5","v":5.6285506062229818E-2},{"$f":"'Population at Risk'!K51/'Population at Risk'!K$5","v":5.8734701127792908E-2},{"$f":"'Population at Risk'!AH51/'Population at Risk'!AH$5","v":5.0933279926820486E-2},{"$f":"'Population at Risk'!AI51/'Population at Risk'!AI$5","v":4.9917326675828912E-2},{"$f":"'Population at Risk'!BA51/'Population at Risk'!BA$5","v":5.4447694376939026E-2},{"$f":"'Population at Risk'!L51/'Population at Risk'!L$5","v":5.6531989919354791E-2},{"$f":"'Population at Risk'!M51/'Population at Risk'!M$5","v":5.6531989919354791E-2},{"$f":"'Population at Risk'!AJ51/'Population at Risk'!AJ$5","v":5.588985508893609E-2},{"$f":"'Population at Risk'!AK51/'Population at Risk'!AK$5","v":5.4190326168036054E-2},{"$f":"'Population at Risk'!AL51/'Population at Risk'!AL$5","v":6.296770430678679E-2},{"$f":"'Population at Risk'!AM51/'Population at Risk'!AM$5","v":4.6623411892944076E-2},{"$f":"'Population at Risk'!N51/'Population at Risk'!N$5","v":4.3382169706216847E-2},{"$f":"'Population at Risk'!AN51/'Population at Risk'!AN$5","v":6.4181930307305096E-2},{"$f":"'Population at Risk'!AO51/'Population at Risk'!AO$5","v":6.4181930307305096E-2},{"$f":"'Population at Risk'!AP51/'Population at Risk'!AP$5","v":6.328583905362789E-2},{"$f":"'Population at Risk'!C51/'Population at Risk'!C$5","v":4.8795331099661304E-2},{"$f":"'Population at Risk'!AQ51/'Population at Risk'!AQ$5","v":5.3799036186731333E-2},{"$f":"'Population at Risk'!O51/'Population at Risk'!O$5","v":5.7502027869278376E-2},{"$f":"'Population at Risk'!AR51/'Population at Risk'!AR$5","v":5.4129823284003245E-2},{"$f":"'Population at Risk'!AS51/'Population at Risk'!AS$5","v":5.340992290791792E-2},{"$f":"'Population at Risk'!AT51/'Population at Risk'!AT$5","v":6.174964291084048E-2},{"$f":"'Population at Risk'!AU51/'Population at Risk'!AU$5","v":6.174964291084048E-2},{"$f":"'Population at Risk'!BB51/'Population at Risk'!BB$5","v":4.9012260368049593E-2},{"$f":"'Population at Risk'!P51/'Population at Risk'!P$5","v":6.3450880087647279E-2},{"$f":"'Population at Risk'!AV51/'Population at Risk'!AV$5","v":4.8696829945091252E-2},{"$f":"'Population at Risk'!AW51/'Population at Risk'!AW$5","v":5.6531934640185862E-2},{"$f":"'Population at Risk'!Q51/'Population at Risk'!Q$5","v":5.5510842413889108E-2},49]
[null,"Male 55-59",{"$f":"'Population at Risk'!R52/'Population at Risk'!R$5","v":5.190949497119416E-2},{"$f":"'Population at Risk'!AX52/'Population at Risk'!AX$5","v":4.2222257670806916E-2},{"$f":"'Population at Risk'!S52/'Population at Risk'!S$5","v":3.6883487911985181E-2},{"$f":"'Population at Risk'!T52/'Population at Risk'!T$5","v":3.5415033560704738E-2},{"$f":"'Population at Risk'!U52/'Population at Risk'!U$5","v":4.7727943131100674E-2},{"$f":"'Population at Risk'!D52/'Population at Risk'!D$5","v":3.5482597132491724E-2},{"$f":"'Population at Risk'!E52/'Population at Risk'!E$5","v":4.790227633723982E-2},{"$f":"'Population at Risk'!BC52/'Population at Risk'!BC$5","v":4.7727943131100674E-2},{"$f":"'Population at Risk'!V52/'Population at Risk'!V$5","v":4.9946384778578573E-2},{"$f":"'Population at Risk'!F52/'Population at Risk'!F$5","v":5.8092672879749362E-2},{"$f":"'Population at Risk'!W52/'Population at Risk'!W$5","v":4.6447973045767151E-2},{"$f":"'Population at Risk'!X52/'Population at Risk'!X$5","v":4.6447973045767151E-2},{"$f":"'Population at Risk'!Y52/'Population at Risk'!Y$5","v":4.6537139137550497E-2},{"$f":"'Population at Risk'!Z52/'Population at Risk'!Z$5","v":3.7406930202302673E-2},{"$f":"'Population at Risk'!AA52/'Population at Risk'!AA$5","v":3.8676516352523567E-2},{"$f":"'Population at Risk'!AB52/'Population at Risk'!AB$5","v":4.2355119192691158E-2},{"$f":"'Population at Risk'!AY52/'Population at Risk'!AY$5","v":3.9475706549753471E-2},{"$f":"'Population at Risk'!AC52/'Population at Risk'!AC$5","v":4.0692599874595559E-2},{"$f":"'Population at Risk'!AD52/'Population at Risk'!AD$5","v":4.8843361240659425E-2},{"$f":"'Population at Risk'!AE52/'Population at Risk'!AE$5","v":4.9344423642841494E-2},{"$f":"'Population at Risk'!G52/'Population at Risk'!G$5","v":4.6942713624682615E-2},{"$f":"'Population at Risk'!AF52/'Population at Risk'!AF$5","v":4.8867618895150226E-2},{"$f":"'Population at Risk'!H52/'Population at Risk'!H$5","v":4.7509895349528625E-2},{"$f":"'Population at Risk'!AG52/'Population at Risk'!AG$5","v":4.2112138990645302E-2},{"$f":"'Population at Risk'!AZ52/'Population at Risk'!AZ$5","v":4.4913750040008187E-2},{"$f":"'Population at Risk'!I52/'Population at Risk'!I$5","v":4.0101296672334662E-2},{"$f":"'Population at Risk'!J52/'Population at Risk'!J$5","v":4.3895445390314078E-2},{"$f":"'Population at Risk'!K52/'Population at Risk'!K$5","v":4.6413267019108341E-2},{"$f":"'Population at Risk'!AH52/'Population at Risk'!AH$5","v":4.0101743382079176E-2},{"$f":"'Population at Risk'!AI52/'Population at Risk'!AI$5","v":3.7137532650006459E-2},{"$f":"'Population at Risk'!BA52/'Population at Risk'!BA$5","v":4.3044546248254635E-2},{"$f":"'Population at Risk'!L52/'Population at Risk'!L$5","v":4.388999711895529E-2},{"$f":"'Population at Risk'!M52/'Population at Risk'!M$5","v":4.388999711895529E-2},{"$f":"'Population at Risk'!AJ52/'Population at Risk'!AJ$5","v":4.2655663009046552E-2},{"$f":"'Population at Risk'!AK52/'Population at Risk'!AK$5","v":3.9173758341892496E-2},{"$f":"'Population at Risk'!AL52/'Population at Risk'!AL$5","v":5.380856638723789E-2},{"$f":"'Population at Risk'!AM52/'Population at Risk'!AM$5","v":3.5717251632412544E-2},{"$f":"'Population at Risk'!N52/'Population at Risk'!N$5","v":3.7726223206068492E-2},{"$f":"'Population at Risk'!AN52/'Population at Risk'!AN$5","v":4.8483525749227749E-2},{"$f":"'Population at Risk'!AO52/'Population at Risk'!AO$5","v":4.8483525749227749E-2},{"$f":"'Population at Risk'!AP52/'Population at Risk'!AP$5","v":4.524667273982054E-2},{"$f":"'Population at Risk'!C52/'Population at Risk'!C$5","v":3.8634512011108783E-2},{"$f":"'Population at Risk'!AQ52/'Population at Risk'!AQ$5","v":4.4004098039091839E-2},{"$f":"'Population at Risk'!O52/'Population at Risk'!O$5","v":4.5978776382494112E-2},{"$f":"'Population at Risk'!AR52/'Population at Risk'!AR$5","v":4.2469099338016861E-2},{"$f":"'Population at Risk'!AS52/'Population at Risk'!AS$5","v":4.0101296672334662E-2},{"$f":"'Population at Risk'!AT52/'Population at Risk'!AT$5","v":4.2030157589084349E-2},{"$f":"'Population at Risk'!AU52/'Population at Risk'!AU$5","v":4.2030157589084349E-2},{"$f":"'Population at Risk'!BB52/'Population at Risk'!BB$5","v":3.5913802264039084E-2},{"$f":"'Population at Risk'!P52/'Population at Risk'!P$5","v":4.9286110190936719E-2},{"$f":"'Population at Risk'!AV52/'Population at Risk'!AV$5","v":4.0482001087569303E-2},{"$f":"'Population at Risk'!AW52/'Population at Risk'!AW$5","v":4.5926107201535483E-2},{"$f":"'Population at Risk'!Q52/'Population at Risk'!Q$5","v":4.113191559905232E-2},50]
[null,"Male 60-64",{"$f":"'Population at Risk'!R53/'Population at Risk'!R$5","v":4.4345986407487471E-2},{"$f":"'Population at Risk'!AX53/'Population at Risk'!AX$5","v":3.4739484251050785E-2},{"$f":"'Population at Risk'!S53/'Population at Risk'!S$5","v":3.1247006003518613E-2},{"$f":"'Population at Risk'!T53/'Population at Risk'!T$5","v":2.9787345286982157E-2},{"$f":"'Population at Risk'!U53/'Population at Risk'!U$5","v":4.6494316807698534E-2},{"$f":"'Population at Risk'!D53/'Population at Risk'!D$5","v":3.125172163131601E-2},{"$f":"'Population at Risk'!E53/'Population at Risk'!E$5","v":4.2257633448058614E-2},{"$f":"'Population at Risk'!BC53/'Population at Risk'!BC$5","v":4.6494316807698534E-2},{"$f":"'Population at Risk'!V53/'Population at Risk'!V$5","v":4.1234176559295288E-2},{"$f":"'Population at Risk'!F53/'Population at Risk'!F$5","v":5.3185905069671989E-2},{"$f":"'Population at Risk'!W53/'Population at Risk'!W$5","v":3.9762819241257207E-2},{"$f":"'Population at Risk'!X53/'Population at Risk'!X$5","v":3.9762819241257207E-2},{"$f":"'Population at Risk'!Y53/'Population at Risk'!Y$5","v":3.8536240781196357E-2},{"$f":"'Population at Risk'!Z53/'Population at Risk'!Z$5","v":3.0377985692308884E-2},{"$f":"'Population at Risk'!AA53/'Population at Risk'!AA$5","v":3.207151135462364E-2},{"$f":"'Population at Risk'!AB53/'Population at Risk'!AB$5","v":3.7379636786943442E-2},{"$f":"'Population at Risk'!AY53/'Population at Risk'!AY$5","v":3.4169305474907298E-2},{"$f":"'Population at Risk'!AC53/'Population at Risk'!AC$5","v":3.3314852032004016E-2},{"$f":"'Population at Risk'!AD53/'Population at Risk'!AD$5","v":4.4985193069580119E-2},{"$f":"'Population at Risk'!AE53/'Population at Risk'!AE$5","v":4.4767134144605869E-2},{"$f":"'Population at Risk'!G53/'Population at Risk'!G$5","v":4.4924778916336998E-2},{"$f":"'Population at Risk'!AF53/'Population at Risk'!AF$5","v":4.0371534177047322E-2},{"$f":"'Population at Risk'!H53/'Population at Risk'!H$5","v":4.2063475824608641E-2},{"$f":"'Population at Risk'!AG53/'Population at Risk'!AG$5","v":3.8205730985045185E-2},{"$f":"'Population at Risk'!AZ53/'Population at Risk'!AZ$5","v":3.9300051309701489E-2},{"$f":"'Population at Risk'!I53/'Population at Risk'!I$5","v":3.6772764749593172E-2},{"$f":"'Population at Risk'!J53/'Population at Risk'!J$5","v":3.6471945540038735E-2},{"$f":"'Population at Risk'!K53/'Population at Risk'!K$5","v":3.907896234610727E-2},{"$f":"'Population at Risk'!AH53/'Population at Risk'!AH$5","v":3.3974613722567451E-2},{"$f":"'Population at Risk'!AI53/'Population at Risk'!AI$5","v":3.0880560228280732E-2},{"$f":"'Population at Risk'!BA53/'Population at Risk'!BA$5","v":3.7213810120505911E-2},{"$f":"'Population at Risk'!L53/'Population at Risk'!L$5","v":4.09047785551045E-2},{"$f":"'Population at Risk'!M53/'Population at Risk'!M$5","v":4.09047785551045E-2},{"$f":"'Population at Risk'!AJ53/'Population at Risk'!AJ$5","v":3.8060010011753576E-2},{"$f":"'Population at Risk'!AK53/'Population at Risk'!AK$5","v":3.489889601340037E-2},{"$f":"'Population at Risk'!AL53/'Population at Risk'!AL$5","v":4.7331776614792383E-2},{"$f":"'Population at Risk'!AM53/'Population at Risk'!AM$5","v":2.9977714794168407E-2},{"$f":"'Population at Risk'!N53/'Population at Risk'!N$5","v":3.0526481961418647E-2},{"$f":"'Population at Risk'!AN53/'Population at Risk'!AN$5","v":4.2604268400426658E-2},{"$f":"'Population at Risk'!AO53/'Population at Risk'!AO$5","v":4.2604268400426658E-2},{"$f":"'Population at Risk'!AP53/'Population at Risk'!AP$5","v":4.1928577514048958E-2},{"$f":"'Population at Risk'!C53/'Population at Risk'!C$5","v":3.3965753960684512E-2},{"$f":"'Population at Risk'!AQ53/'Population at Risk'!AQ$5","v":3.4282893215917785E-2},{"$f":"'Population at Risk'!O53/'Population at Risk'!O$5","v":3.9380018724362267E-2},{"$f":"'Population at Risk'!AR53/'Population at Risk'!AR$5","v":3.6329359497887993E-2},{"$f":"'Population at Risk'!AS53/'Population at Risk'!AS$5","v":3.6772764749593172E-2},{"$f":"'Population at Risk'!AT53/'Population at Risk'!AT$5","v":3.9393101131408814E-2},{"$f":"'Population at Risk'!AU53/'Population at Risk'!AU$5","v":3.9393101131408814E-2},{"$f":"'Population at Risk'!BB53/'Population at Risk'!BB$5","v":2.8508273312824836E-2},{"$f":"'Population at Risk'!P53/'Population at Risk'!P$5","v":4.2685705546468965E-2},{"$f":"'Population at Risk'!AV53/'Population at Risk'!AV$5","v":3.760487473947495E-2},{"$f":"'Population at Risk'!AW53/'Population at Risk'!AW$5","v":3.9312484904245999E-2},{"$f":"'Population at Risk'!Q53/'Population at Risk'!Q$5","v":3.3273857766763698E-2},51]
[null,"Male 65-69",{"$f":"'Population at Risk'!R54/'Population at Risk'!R$5","v":2.8126827562096085E-2},{"$f":"'Population at Risk'!AX54/'Population at Risk'!AX$5","v":2.5883928911361452E-2},{"$f":"'Population at Risk'!S54/'Population at Risk'!S$5","v":2.2897601007558711E-2},{"$f":"'Population at Risk'!T54/'Population at Risk'!T$5","v":1.9424151801055167E-2},{"$f":"'Population at Risk'!U54/'Population at Risk'!U$5","v":3.8020037662537538E-2},{"$f":"'Population at Risk'!D54/'Population at Risk'!D$5","v":2.2415524225807549E-2},{"$f":"'Population at Risk'!E54/'Population at Risk'!E$5","v":3.2310926301869942E-2},{"$f":"'Population at Risk'!BC54/'Population at Risk'!BC$5","v":3.8020037662537538E-2},{"$f":"'Population at Risk'!V54/'Population at Risk'!V$5","v":3.2855558204489405E-2},{"$f":"'Population at Risk'!F54/'Population at Risk'!F$5","v":4.4272828032092003E-2},{"$f":"'Population at Risk'!W54/'Population at Risk'!W$5","v":3.0396081090041105E-2},{"$f":"'Population at Risk'!X54/'Population at Risk'!X$5","v":3.0396081090041105E-2},{"$f":"'Population at Risk'!Y54/'Population at Risk'!Y$5","v":2.986093475935217E-2},{"$f":"'Population at Risk'!Z54/'Population at Risk'!Z$5","v":1.9291654587850142E-2},{"$f":"'Population at Risk'!AA54/'Population at Risk'!AA$5","v":2.156564317123761E-2},{"$f":"'Population at Risk'!AB54/'Population at Risk'!AB$5","v":2.7072645524617377E-2},{"$f":"'Population at Risk'!AY54/'Population at Risk'!AY$5","v":2.6032340302476833E-2},{"$f":"'Population at Risk'!AC54/'Population at Risk'!AC$5","v":2.1821797700696574E-2},{"$f":"'Population at Risk'!AD54/'Population at Risk'!AD$5","v":3.4870106455097805E-2},{"$f":"'Population at Risk'!AE54/'Population at Risk'!AE$5","v":3.4013821698562222E-2},{"$f":"'Population at Risk'!G54/'Population at Risk'!G$5","v":3.6532565085428688E-2},{"$f":"'Population at Risk'!AF54/'Population at Risk'!AF$5","v":2.9006903577495174E-2},{"$f":"'Population at Risk'!H54/'Population at Risk'!H$5","v":3.1654576572704908E-2},{"$f":"'Population at Risk'!AG54/'Population at Risk'!AG$5","v":2.9028503754358469E-2},{"$f":"'Population at Risk'!AZ54/'Population at Risk'!AZ$5","v":2.9843149068582077E-2},{"$f":"'Population at Risk'!I54/'Population at Risk'!I$5","v":3.0204706101369386E-2},{"$f":"'Population at Risk'!J54/'Population at Risk'!J$5","v":2.7371389556123702E-2},{"$f":"'Population at Risk'!K54/'Population at Risk'!K$5","v":2.960972811174362E-2},{"$f":"'Population at Risk'!AH54/'Population at Risk'!AH$5","v":2.3821567013963194E-2},{"$f":"'Population at Risk'!AI54/'Population at Risk'!AI$5","v":2.1617911801349508E-2},{"$f":"'Population at Risk'!BA54/'Population at Risk'!BA$5","v":2.3952868317322899E-2},{"$f":"'Population at Risk'!L54/'Population at Risk'!L$5","v":3.3788354279923334E-2},{"$f":"'Population at Risk'!M54/'Population at Risk'!M$5","v":3.3788354279923334E-2},{"$f":"'Population at Risk'!AJ54/'Population at Risk'!AJ$5","v":2.7802381288237629E-2},{"$f":"'Population at Risk'!AK54/'Population at Risk'!AK$5","v":2.6417037340199987E-2},{"$f":"'Population at Risk'!AL54/'Population at Risk'!AL$5","v":3.5235484675890619E-2},{"$f":"'Population at Risk'!AM54/'Population at Risk'!AM$5","v":2.129773007447109E-2},{"$f":"'Population at Risk'!N54/'Population at Risk'!N$5","v":2.2109599240062543E-2},{"$f":"'Population at Risk'!AN54/'Population at Risk'!AN$5","v":3.2830010198794564E-2},{"$f":"'Population at Risk'!AO54/'Population at Risk'!AO$5","v":3.2830010198794564E-2},{"$f":"'Population at Risk'!AP54/'Population at Risk'!AP$5","v":3.0994437807104206E-2},{"$f":"'Population at Risk'!C54/'Population at Risk'!C$5","v":2.2512194099547467E-2},{"$f":"'Population at Risk'!AQ54/'Population at Risk'!AQ$5","v":2.3666541667979789E-2},{"$f":"'Population at Risk'!O54/'Population at Risk'!O$5","v":2.9779471656171494E-2},{"$f":"'Population at Risk'!AR54/'Population at Risk'!AR$5","v":2.6244975540435977E-2},{"$f":"'Population at Risk'!AS54/'Population at Risk'!AS$5","v":3.0204706101369386E-2},{"$f":"'Population at Risk'!AT54/'Population at Risk'!AT$5","v":3.0482757527063604E-2},{"$f":"'Population at Risk'!AU54/'Population at Risk'!AU$5","v":3.0482757527063604E-2},{"$f":"'Population at Risk'!BB54/'Population at Risk'!BB$5","v":2.1614557217833064E-2},{"$f":"'Population at Risk'!P54/'Population at Risk'!P$5","v":2.9557079534760309E-2},{"$f":"'Population at Risk'!AV54/'Population at Risk'!AV$5","v":2.8562129330181135E-2},{"$f":"'Population at Risk'!AW54/'Population at Risk'!AW$5","v":2.7166123115978439E-2},{"$f":"'Population at Risk'!Q54/'Population at Risk'!Q$5","v":2.505409833600428E-2},52]
[null,"Male 70-74",{"$f":"'Population at Risk'!R55/'Population at Risk'!R$5","v":2.0346694629670058E-2},{"$f":"'Population at Risk'!AX55/'Population at Risk'!AX$5","v":1.8312949522992224E-2},{"$f":"'Population at Risk'!S55/'Population at Risk'!S$5","v":1.6720410659160592E-2},{"$f":"'Population at Risk'!T55/'Population at Risk'!T$5","v":1.3296638252587216E-2},{"$f":"'Population at Risk'!U55/'Population at Risk'!U$5","v":2.6580470778387981E-2},{"$f":"'Population at Risk'!D55/'Population at Risk'!D$5","v":1.4800388585604658E-2},{"$f":"'Population at Risk'!E55/'Population at Risk'!E$5","v":2.1755964661953824E-2},{"$f":"'Population at Risk'!BC55/'Population at Risk'!BC$5","v":2.6580470778387981E-2},{"$f":"'Population at Risk'!V55/'Population at Risk'!V$5","v":2.275248085665282E-2},{"$f":"'Population at Risk'!F55/'Population at Risk'!F$5","v":3.101729938905327E-2},{"$f":"'Population at Risk'!W55/'Population at Risk'!W$5","v":2.2676441032404297E-2},{"$f":"'Population at Risk'!X55/'Population at Risk'!X$5","v":2.2676441032404297E-2},{"$f":"'Population at Risk'!Y55/'Population at Risk'!Y$5","v":2.1003824974832538E-2},{"$f":"'Population at Risk'!Z55/'Population at Risk'!Z$5","v":1.3825069595674292E-2},{"$f":"'Population at Risk'!AA55/'Population at Risk'!AA$5","v":1.5815808680085169E-2},{"$f":"'Population at Risk'!AB55/'Population at Risk'!AB$5","v":1.8390620298915927E-2},{"$f":"'Population at Risk'!AY55/'Population at Risk'!AY$5","v":1.9067894898281132E-2},{"$f":"'Population at Risk'!AC55/'Population at Risk'!AC$5","v":1.5910787460719659E-2},{"$f":"'Population at Risk'!AD55/'Population at Risk'!AD$5","v":2.6285691144569297E-2},{"$f":"'Population at Risk'!AE55/'Population at Risk'!AE$5","v":2.5298352290120875E-2},{"$f":"'Population at Risk'!G55/'Population at Risk'!G$5","v":2.8389118244506715E-2},{"$f":"'Population at Risk'!AF55/'Population at Risk'!AF$5","v":2.1329583144431633E-2},{"$f":"'Population at Risk'!H55/'Population at Risk'!H$5","v":2.3812214811308047E-2},{"$f":"'Population at Risk'!AG55/'Population at Risk'!AG$5","v":2.1590438173664548E-2},{"$f":"'Population at Risk'!AZ55/'Population at Risk'!AZ$5","v":2.1463606417142522E-2},{"$f":"'Population at Risk'!I55/'Population at Risk'!I$5","v":2.2148868547521704E-2},{"$f":"'Population at Risk'!J55/'Population at Risk'!J$5","v":1.9604862418229139E-2},{"$f":"'Population at Risk'!K55/'Population at Risk'!K$5","v":2.1548939697916467E-2},{"$f":"'Population at Risk'!AH55/'Population at Risk'!AH$5","v":1.7626617101021314E-2},{"$f":"'Population at Risk'!AI55/'Population at Risk'!AI$5","v":1.5566028730602231E-2},{"$f":"'Population at Risk'!BA55/'Population at Risk'!BA$5","v":1.8162485382572514E-2},{"$f":"'Population at Risk'!L55/'Population at Risk'!L$5","v":2.5572677560862934E-2},{"$f":"'Population at Risk'!M55/'Population at Risk'!M$5","v":2.5572677560862934E-2},{"$f":"'Population at Risk'!AJ55/'Population at Risk'!AJ$5","v":2.088667695614202E-2},{"$f":"'Population at Risk'!AK55/'Population at Risk'!AK$5","v":2.0169113739820534E-2},{"$f":"'Population at Risk'!AL55/'Population at Risk'!AL$5","v":2.6542838220716469E-2},{"$f":"'Population at Risk'!AM55/'Population at Risk'!AM$5","v":1.5398442421744906E-2},{"$f":"'Population at Risk'!N55/'Population at Risk'!N$5","v":1.5662844414630148E-2},{"$f":"'Population at Risk'!AN55/'Population at Risk'!AN$5","v":2.6352914251201592E-2},{"$f":"'Population at Risk'!AO55/'Population at Risk'!AO$5","v":2.6352914251201592E-2},{"$f":"'Population at Risk'!AP55/'Population at Risk'!AP$5","v":2.3194182610235162E-2},{"$f":"'Population at Risk'!C55/'Population at Risk'!C$5","v":1.4474222515470038E-2},{"$f":"'Population at Risk'!AQ55/'Population at Risk'!AQ$5","v":1.7833145466188739E-2},{"$f":"'Population at Risk'!O55/'Population at Risk'!O$5","v":2.1608354830404432E-2},{"$f":"'Population at Risk'!AR55/'Population at Risk'!AR$5","v":1.9138319485925197E-2},{"$f":"'Population at Risk'!AS55/'Population at Risk'!AS$5","v":2.2148868547521704E-2},{"$f":"'Population at Risk'!AT55/'Population at Risk'!AT$5","v":2.1646856440760791E-2},{"$f":"'Population at Risk'!AU55/'Population at Risk'!AU$5","v":2.1646856440760791E-2},{"$f":"'Population at Risk'!BB55/'Population at Risk'!BB$5","v":1.6290777362281482E-2},{"$f":"'Population at Risk'!P55/'Population at Risk'!P$5","v":2.1401754872631077E-2},{"$f":"'Population at Risk'!AV55/'Population at Risk'!AV$5","v":2.2298737747941826E-2},{"$f":"'Population at Risk'!AW55/'Population at Risk'!AW$5","v":2.0616790303413703E-2},{"$f":"'Population at Risk'!Q55/'Population at Risk'!Q$5","v":1.877255989158582E-2},53]
[null,"Male 75-79",{"$f":"'Population at Risk'!R56/'Population at Risk'!R$5","v":8.4364712644477823E-3},{"$f":"'Population at Risk'!AX56/'Population at Risk'!AX$5","v":6.8429608467083037E-3},{"$f":"'Population at Risk'!S56/'Population at Risk'!S$5","v":5.7801281128851403E-3},{"$f":"'Population at Risk'!T56/'Population at Risk'!T$5","v":5.0102058872797282E-3},{"$f":"'Population at Risk'!U56/'Population at Risk'!U$5","v":9.5834227205103938E-3},{"$f":"'Population at Risk'!D56/'Population at Risk'!D$5","v":5.0024590192977256E-3},{"$f":"'Population at Risk'!E56/'Population at Risk'!E$5","v":6.9097345648514935E-3},{"$f":"'Population at Risk'!BC56/'Population at Risk'!BC$5","v":9.5834227205103938E-3},{"$f":"'Population at Risk'!V56/'Population at Risk'!V$5","v":8.1472762406456598E-3},{"$f":"'Population at Risk'!F56/'Population at Risk'!F$5","v":1.0648342520558582E-2},{"$f":"'Population at Risk'!W56/'Population at Risk'!W$5","v":7.6998323656918269E-3},{"$f":"'Population at Risk'!X56/'Population at Risk'!X$5","v":7.6998323656918269E-3},{"$f":"'Population at Risk'!Y56/'Population at Risk'!Y$5","v":7.5457283628992027E-3},{"$f":"'Population at Risk'!Z56/'Population at Risk'!Z$5","v":5.3356955233077596E-3},{"$f":"'Population at Risk'!AA56/'Population at Risk'!AA$5","v":5.8979306958082808E-3},{"$f":"'Population at Risk'!AB56/'Population at Risk'!AB$5","v":6.2013521185245715E-3},{"$f":"'Population at Risk'!AY56/'Population at Risk'!AY$5","v":6.6964285316385022E-3},{"$f":"'Population at Risk'!AC56/'Population at Risk'!AC$5","v":6.0698355967195939E-3},{"$f":"'Population at Risk'!AD56/'Population at Risk'!AD$5","v":8.114593165538796E-3},{"$f":"'Population at Risk'!AE56/'Population at Risk'!AE$5","v":7.6834280506739624E-3},{"$f":"'Population at Risk'!G56/'Population at Risk'!G$5","v":9.0782242737991459E-3},{"$f":"'Population at Risk'!AF56/'Population at Risk'!AF$5","v":7.9136103654746989E-3},{"$f":"'Population at Risk'!H56/'Population at Risk'!H$5","v":8.819668362353544E-3},{"$f":"'Population at Risk'!AG56/'Population at Risk'!AG$5","v":6.5572878576228982E-3},{"$f":"'Population at Risk'!AZ56/'Population at Risk'!AZ$5","v":7.7909944472842226E-3},{"$f":"'Population at Risk'!I56/'Population at Risk'!I$5","v":6.9240886140001364E-3},{"$f":"'Population at Risk'!J56/'Population at Risk'!J$5","v":7.0693941525208663E-3},{"$f":"'Population at Risk'!K56/'Population at Risk'!K$5","v":7.4101321750436365E-3},{"$f":"'Population at Risk'!AH56/'Population at Risk'!AH$5","v":6.3434373051955177E-3},{"$f":"'Population at Risk'!AI56/'Population at Risk'!AI$5","v":5.5466857074951562E-3},{"$f":"'Population at Risk'!BA56/'Population at Risk'!BA$5","v":6.1018759191250665E-3},{"$f":"'Population at Risk'!L56/'Population at Risk'!L$5","v":9.0377546440580155E-3},{"$f":"'Population at Risk'!M56/'Population at Risk'!M$5","v":9.0377546440580155E-3},{"$f":"'Population at Risk'!AJ56/'Population at Risk'!AJ$5","v":6.7829186030365501E-3},{"$f":"'Population at Risk'!AK56/'Population at Risk'!AK$5","v":6.7398667899012631E-3},{"$f":"'Population at Risk'!AL56/'Population at Risk'!AL$5","v":9.7740087611146113E-3},{"$f":"'Population at Risk'!AM56/'Population at Risk'!AM$5","v":5.7513299967837965E-3},{"$f":"'Population at Risk'!N56/'Population at Risk'!N$5","v":6.3104095956486601E-3},{"$f":"'Population at Risk'!AN56/'Population at Risk'!AN$5","v":8.5680878602654789E-3},{"$f":"'Population at Risk'!AO56/'Population at Risk'!AO$5","v":8.5680878602654789E-3},{"$f":"'Population at Risk'!AP56/'Population at Risk'!AP$5","v":7.8429764548835889E-3},{"$f":"'Population at Risk'!C56/'Population at Risk'!C$5","v":5.3023405703762124E-3},{"$f":"'Population at Risk'!AQ56/'Population at Risk'!AQ$5","v":6.9407321293894373E-3},{"$f":"'Population at Risk'!O56/'Population at Risk'!O$5","v":8.4245664872292878E-3},{"$f":"'Population at Risk'!AR56/'Population at Risk'!AR$5","v":6.817925117599398E-3},{"$f":"'Population at Risk'!AS56/'Population at Risk'!AS$5","v":6.9240886140001364E-3},{"$f":"'Population at Risk'!AT56/'Population at Risk'!AT$5","v":6.3391841922267331E-3},{"$f":"'Population at Risk'!AU56/'Population at Risk'!AU$5","v":6.3391841922267331E-3},{"$f":"'Population at Risk'!BB56/'Population at Risk'!BB$5","v":5.6672085908724499E-3},{"$f":"'Population at Risk'!P56/'Population at Risk'!P$5","v":8.2456578727991611E-3},{"$f":"'Population at Risk'!AV56/'Population at Risk'!AV$5","v":7.8683760686947338E-3},{"$f":"'Population at Risk'!AW56/'Population at Risk'!AW$5","v":7.1197929307995076E-3},{"$f":"'Population at Risk'!Q56/'Population at Risk'!Q$5","v":6.3675023131970123E-3},54]
[null,"Male 80-84",{"$f":"'Population at Risk'!R57/'Population at Risk'!R$5","v":5.8757800205691364E-3},{"$f":"'Population at Risk'!AX57/'Population at Risk'!AX$5","v":4.4509516517462983E-3},{"$f":"'Population at Risk'!S57/'Population at Risk'!S$5","v":3.982849514332476E-3},{"$f":"'Population at Risk'!T57/'Population at Risk'!T$5","v":3.7306761436272894E-3},{"$f":"'Population at Risk'!U57/'Population at Risk'!U$5","v":5.8148579476748567E-3},{"$f":"'Population at Risk'!D57/'Population at Risk'!D$5","v":3.5693008886305707E-3},{"$f":"'Population at Risk'!E57/'Population at Risk'!E$5","v":4.7460172921067797E-3},{"$f":"'Population at Risk'!BC57/'Population at Risk'!BC$5","v":5.8148579476748567E-3},{"$f":"'Population at Risk'!V57/'Population at Risk'!V$5","v":5.72887929566072E-3},{"$f":"'Population at Risk'!F57/'Population at Risk'!F$5","v":7.1492087525666737E-3},{"$f":"'Population at Risk'!W57/'Population at Risk'!W$5","v":5.290095765307575E-3},{"$f":"'Population at Risk'!X57/'Population at Risk'!X$5","v":5.290095765307575E-3},{"$f":"'Population at Risk'!Y57/'Population at Risk'!Y$5","v":4.9746752232673755E-3},{"$f":"'Population at Risk'!Z57/'Population at Risk'!Z$5","v":3.6704855715447497E-3},{"$f":"'Population at Risk'!AA57/'Population at Risk'!AA$5","v":3.9658645685955547E-3},{"$f":"'Population at Risk'!AB57/'Population at Risk'!AB$5","v":4.3174801575757635E-3},{"$f":"'Population at Risk'!AY57/'Population at Risk'!AY$5","v":4.5874511310878352E-3},{"$f":"'Population at Risk'!AC57/'Population at Risk'!AC$5","v":4.1399533506132668E-3},{"$f":"'Population at Risk'!AD57/'Population at Risk'!AD$5","v":5.4562270662092752E-3},{"$f":"'Population at Risk'!AE57/'Population at Risk'!AE$5","v":5.2763780141835753E-3},{"$f":"'Population at Risk'!G57/'Population at Risk'!G$5","v":5.8304251150548192E-3},{"$f":"'Population at Risk'!AF57/'Population at Risk'!AF$5","v":5.1618844269334593E-3},{"$f":"'Population at Risk'!H57/'Population at Risk'!H$5","v":5.7681970562290579E-3},{"$f":"'Population at Risk'!AG57/'Population at Risk'!AG$5","v":4.503032924424861E-3},{"$f":"'Population at Risk'!AZ57/'Population at Risk'!AZ$5","v":5.3226563950571695E-3},{"$f":"'Population at Risk'!I57/'Population at Risk'!I$5","v":4.5774632387516534E-3},{"$f":"'Population at Risk'!J57/'Population at Risk'!J$5","v":4.3085918552454193E-3},{"$f":"'Population at Risk'!K57/'Population at Risk'!K$5","v":4.0943680891241622E-3},{"$f":"'Population at Risk'!AH57/'Population at Risk'!AH$5","v":4.1669529754940187E-3},{"$f":"'Population at Risk'!AI57/'Population at Risk'!AI$5","v":3.8566282497126815E-3},{"$f":"'Population at Risk'!BA57/'Population at Risk'!BA$5","v":4.1522389232904354E-3},{"$f":"'Population at Risk'!L57/'Population at Risk'!L$5","v":5.9864341570678671E-3},{"$f":"'Population at Risk'!M57/'Population at Risk'!M$5","v":5.9864341570678671E-3},{"$f":"'Population at Risk'!AJ57/'Population at Risk'!AJ$5","v":4.3571318748174565E-3},{"$f":"'Population at Risk'!AK57/'Population at Risk'!AK$5","v":4.2414536006695923E-3},{"$f":"'Population at Risk'!AL57/'Population at Risk'!AL$5","v":6.3559718114163891E-3},{"$f":"'Population at Risk'!AM57/'Population at Risk'!AM$5","v":3.7328843137899919E-3},{"$f":"'Population at Risk'!N57/'Population at Risk'!N$5","v":4.2467351791430786E-3},{"$f":"'Population at Risk'!AN57/'Population at Risk'!AN$5","v":5.1280204131033446E-3},{"$f":"'Population at Risk'!AO57/'Population at Risk'!AO$5","v":5.1280204131033446E-3},{"$f":"'Population at Risk'!AP57/'Population at Risk'!AP$5","v":5.539182034665374E-3},{"$f":"'Population at Risk'!C57/'Population at Risk'!C$5","v":3.9534865345326447E-3},{"$f":"'Population at Risk'!AQ57/'Population at Risk'!AQ$5","v":4.5246595525118881E-3},{"$f":"'Population at Risk'!O57/'Population at Risk'!O$5","v":5.4337939032183128E-3},{"$f":"'Population at Risk'!AR57/'Population at Risk'!AR$5","v":4.6005787278877103E-3},{"$f":"'Population at Risk'!AS57/'Population at Risk'!AS$5","v":4.5774632387516534E-3},{"$f":"'Population at Risk'!AT57/'Population at Risk'!AT$5","v":3.7876411911742596E-3},{"$f":"'Population at Risk'!AU57/'Population at Risk'!AU$5","v":3.7876411911742596E-3},{"$f":"'Population at Risk'!BB57/'Population at Risk'!BB$5","v":3.5417503355761031E-3},{"$f":"'Population at Risk'!P57/'Population at Risk'!P$5","v":6.0702327463380895E-3},{"$f":"'Population at Risk'!AV57/'Population at Risk'!AV$5","v":5.2673861360826319E-3},{"$f":"'Population at Risk'!AW57/'Population at Risk'!AW$5","v":4.7414062912802995E-3},{"$f":"'Population at Risk'!Q57/'Population at Risk'!Q$5","v":4.4962551605189785E-3},55]
[null,"Male 85-89",{"$f":"'Population at Risk'!R58/'Population at Risk'!R$5","v":2.9452346247726031E-3},{"$f":"'Population at Risk'!AX58/'Population at Risk'!AX$5","v":2.1113077556608822E-3},{"$f":"'Population at Risk'!S58/'Population at Risk'!S$5","v":2.0087342663742645E-3},{"$f":"'Population at Risk'!T58/'Population at Risk'!T$5","v":1.9153886979470472E-3},{"$f":"'Population at Risk'!U58/'Population at Risk'!U$5","v":3.4225781016295558E-3},{"$f":"'Population at Risk'!D58/'Population at Risk'!D$5","v":1.7783375511165635E-3},{"$f":"'Population at Risk'!E58/'Population at Risk'!E$5","v":2.2906704124150776E-3},{"$f":"'Population at Risk'!BC58/'Population at Risk'!BC$5","v":3.4225781016295558E-3},{"$f":"'Population at Risk'!V58/'Population at Risk'!V$5","v":2.562047621429617E-3},{"$f":"'Population at Risk'!F58/'Population at Risk'!F$5","v":3.9104548889125684E-3},{"$f":"'Population at Risk'!W58/'Population at Risk'!W$5","v":2.5979166066308411E-3},{"$f":"'Population at Risk'!X58/'Population at Risk'!X$5","v":2.5979166066308411E-3},{"$f":"'Population at Risk'!Y58/'Population at Risk'!Y$5","v":2.3468571112399512E-3},{"$f":"'Population at Risk'!Z58/'Population at Risk'!Z$5","v":1.7610785664461531E-3},{"$f":"'Population at Risk'!AA58/'Population at Risk'!AA$5","v":1.897229687870284E-3},{"$f":"'Population at Risk'!AB58/'Population at Risk'!AB$5","v":2.1907455801878943E-3},{"$f":"'Population at Risk'!AY58/'Population at Risk'!AY$5","v":2.3759123107819492E-3},{"$f":"'Population at Risk'!AC58/'Population at Risk'!AC$5","v":2.0120926435785967E-3},{"$f":"'Population at Risk'!AD58/'Population at Risk'!AD$5","v":2.7838793137448187E-3},{"$f":"'Population at Risk'!AE58/'Population at Risk'!AE$5","v":2.717136756562722E-3},{"$f":"'Population at Risk'!G58/'Population at Risk'!G$5","v":2.9125748892927642E-3},{"$f":"'Population at Risk'!AF58/'Population at Risk'!AF$5","v":2.4359758312217121E-3},{"$f":"'Population at Risk'!H58/'Population at Risk'!H$5","v":2.8041306137896941E-3},{"$f":"'Population at Risk'!AG58/'Population at Risk'!AG$5","v":2.3188930440686253E-3},{"$f":"'Population at Risk'!AZ58/'Population at Risk'!AZ$5","v":2.8928615235147034E-3},{"$f":"'Population at Risk'!I58/'Population at Risk'!I$5","v":2.6622318031418808E-3},{"$f":"'Population at Risk'!J58/'Population at Risk'!J$5","v":2.1710480183502771E-3},{"$f":"'Population at Risk'!K58/'Population at Risk'!K$5","v":2.2609454780050213E-3},{"$f":"'Population at Risk'!AH58/'Population at Risk'!AH$5","v":1.9402636712530349E-3},{"$f":"'Population at Risk'!AI58/'Population at Risk'!AI$5","v":1.9241785591934653E-3},{"$f":"'Population at Risk'!BA58/'Population at Risk'!BA$5","v":1.8684984166773139E-3},{"$f":"'Population at Risk'!L58/'Population at Risk'!L$5","v":2.9414025919265877E-3},{"$f":"'Population at Risk'!M58/'Population at Risk'!M$5","v":2.9414025919265877E-3},{"$f":"'Population at Risk'!AJ58/'Population at Risk'!AJ$5","v":2.4640402338756257E-3},{"$f":"'Population at Risk'!AK58/'Population at Risk'!AK$5","v":2.3230009849111834E-3},{"$f":"'Population at Risk'!AL58/'Population at Risk'!AL$5","v":2.8987265245331265E-3},{"$f":"'Population at Risk'!AM58/'Population at Risk'!AM$5","v":1.6490987493805159E-3},{"$f":"'Population at Risk'!N58/'Population at Risk'!N$5","v":2.3097310391859446E-3},{"$f":"'Population at Risk'!AN58/'Population at Risk'!AN$5","v":2.6150477755241741E-3},{"$f":"'Population at Risk'!AO58/'Population at Risk'!AO$5","v":2.6150477755241741E-3},{"$f":"'Population at Risk'!AP58/'Population at Risk'!AP$5","v":2.9919624909360378E-3},{"$f":"'Population at Risk'!C58/'Population at Risk'!C$5","v":2.0381032866208806E-3},{"$f":"'Population at Risk'!AQ58/'Population at Risk'!AQ$5","v":2.3448558239685374E-3},{"$f":"'Population at Risk'!O58/'Population at Risk'!O$5","v":2.6657977557824025E-3},{"$f":"'Population at Risk'!AR58/'Population at Risk'!AR$5","v":2.2787819031625462E-3},{"$f":"'Population at Risk'!AS58/'Population at Risk'!AS$5","v":2.6622318031418808E-3},{"$f":"'Population at Risk'!AT58/'Population at Risk'!AT$5","v":1.9972325590136828E-3},{"$f":"'Population at Risk'!AU58/'Population at Risk'!AU$5","v":1.9972325590136828E-3},{"$f":"'Population at Risk'!BB58/'Population at Risk'!BB$5","v":1.5739167399139629E-3},{"$f":"'Population at Risk'!P58/'Population at Risk'!P$5","v":3.0817632922245418E-3},{"$f":"'Population at Risk'!AV58/'Population at Risk'!AV$5","v":2.7428396772596719E-3},{"$f":"'Population at Risk'!AW58/'Population at Risk'!AW$5","v":2.3349936242750822E-3},{"$f":"'Population at Risk'!Q58/'Population at Risk'!Q$5","v":2.1557182086846642E-3},56]
[null,"Male 90+",{"$f":"'Population at Risk'!R59/'Population at Risk'!R$5","v":1.3881861788803669E-3},{"$f":"'Population at Risk'!AX59/'Population at Risk'!AX$5","v":7.6003418768014121E-4},{"$f":"'Population at Risk'!S59/'Population at Risk'!S$5","v":8.8283235567744372E-4},{"$f":"'Population at Risk'!T59/'Population at Risk'!T$5","v":9.2449530871007021E-4},{"$f":"'Population at Risk'!U59/'Population at Risk'!U$5","v":1.1296720900809548E-3},{"$f":"'Population at Risk'!D59/'Population at Risk'!D$5","v":7.9286745357044829E-4},{"$f":"'Population at Risk'!E59/'Population at Risk'!E$5","v":1.0884085755633003E-3},{"$f":"'Population at Risk'!BC59/'Population at Risk'!BC$5","v":1.1296720900809548E-3},{"$f":"'Population at Risk'!V59/'Population at Risk'!V$5","v":1.11683439013003E-3},{"$f":"'Population at Risk'!F59/'Population at Risk'!F$5","v":1.6801353656780947E-3},{"$f":"'Population at Risk'!W59/'Population at Risk'!W$5","v":1.1434955755933482E-3},{"$f":"'Population at Risk'!X59/'Population at Risk'!X$5","v":1.1434955755933482E-3},{"$f":"'Population at Risk'!Y59/'Population at Risk'!Y$5","v":9.7517044682957793E-4},{"$f":"'Population at Risk'!Z59/'Population at Risk'!Z$5","v":7.6338621186582221E-4},{"$f":"'Population at Risk'!AA59/'Population at Risk'!AA$5","v":8.0747945377577894E-4},{"$f":"'Population at Risk'!AB59/'Population at Risk'!AB$5","v":9.6431487794967452E-4},{"$f":"'Population at Risk'!AY59/'Population at Risk'!AY$5","v":1.0177861120802148E-3},{"$f":"'Population at Risk'!AC59/'Population at Risk'!AC$5","v":8.9303371642720977E-4},{"$f":"'Population at Risk'!AD59/'Population at Risk'!AD$5","v":1.1353484443170966E-3},{"$f":"'Population at Risk'!AE59/'Population at Risk'!AE$5","v":1.1379176549971535E-3},{"$f":"'Population at Risk'!G59/'Population at Risk'!G$5","v":1.1137461006696997E-3},{"$f":"'Population at Risk'!AF59/'Population at Risk'!AF$5","v":1.0731393132145132E-3},{"$f":"'Population at Risk'!H59/'Population at Risk'!H$5","v":1.1115824962072815E-3},{"$f":"'Population at Risk'!AG59/'Population at Risk'!AG$5","v":9.71136005032682E-4},{"$f":"'Population at Risk'!AZ59/'Population at Risk'!AZ$5","v":1.209863508026574E-3},{"$f":"'Population at Risk'!I59/'Population at Risk'!I$5","v":9.5544083052264751E-4},{"$f":"'Population at Risk'!J59/'Population at Risk'!J$5","v":8.5068425873370958E-4},{"$f":"'Population at Risk'!K59/'Population at Risk'!K$5","v":9.8709495963082076E-4},{"$f":"'Population at Risk'!AH59/'Population at Risk'!AH$5","v":7.6406697694551503E-4},{"$f":"'Population at Risk'!AI59/'Population at Risk'!AI$5","v":8.7590870097372883E-4},{"$f":"'Population at Risk'!BA59/'Population at Risk'!BA$5","v":8.6295325973961444E-4},{"$f":"'Population at Risk'!L59/'Population at Risk'!L$5","v":1.2933131035573263E-3},{"$f":"'Population at Risk'!M59/'Population at Risk'!M$5","v":1.2933131035573263E-3},{"$f":"'Population at Risk'!AJ59/'Population at Risk'!AJ$5","v":1.0046301888029562E-3},{"$f":"'Population at Risk'!AK59/'Population at Risk'!AK$5","v":9.6996061470017636E-4},{"$f":"'Population at Risk'!AL59/'Population at Risk'!AL$5","v":1.1362802637821115E-3},{"$f":"'Population at Risk'!AM59/'Population at Risk'!AM$5","v":6.610919579222561E-4},{"$f":"'Population at Risk'!N59/'Population at Risk'!N$5","v":9.5626231031113382E-4},{"$f":"'Population at Risk'!AN59/'Population at Risk'!AN$5","v":1.1911071177700249E-3},{"$f":"'Population at Risk'!AO59/'Population at Risk'!AO$5","v":1.1911071177700249E-3},{"$f":"'Population at Risk'!AP59/'Population at Risk'!AP$5","v":1.2375583324666496E-3},{"$f":"'Population at Risk'!C59/'Population at Risk'!C$5","v":8.4664018278955873E-4},{"$f":"'Population at Risk'!AQ59/'Population at Risk'!AQ$5","v":1.0504797430633151E-3},{"$f":"'Population at Risk'!O59/'Population at Risk'!O$5","v":1.0174252298945274E-3},{"$f":"'Population at Risk'!AR59/'Population at Risk'!AR$5","v":9.6782695474976284E-4},{"$f":"'Population at Risk'!AS59/'Population at Risk'!AS$5","v":9.5544083052264751E-4},{"$f":"'Population at Risk'!AT59/'Population at Risk'!AT$5","v":7.334129736129907E-4},{"$f":"'Population at Risk'!AU59/'Population at Risk'!AU$5","v":7.334129736129907E-4},{"$f":"'Population at Risk'!BB59/'Population at Risk'!BB$5","v":6.6905315536120705E-4},{"$f":"'Population at Risk'!P59/'Population at Risk'!P$5","v":1.4369946678732606E-3},{"$f":"'Population at Risk'!AV59/'Population at Risk'!AV$5","v":1.1435106519015182E-3},{"$f":"'Population at Risk'!AW59/'Population at Risk'!AW$5","v":9.0281341158501231E-4},{"$f":"'Population at Risk'!Q59/'Population at Risk'!Q$5","v":9.5342845287734314E-4},57]
["SIMD Q1 (most deprived)","Female 0-4",{"$f":"'Population at Risk'!C60/'Population at Risk'!C$5","v":0},{"$f":"'Population at Risk'!D60/'Population at Risk'!D$5","v":0},{"$f":"'Population at Risk'!E60/'Population at Risk'!E$5","v":0},{"$f":"'Population at Risk'!F60/'Population at Risk'!F$5","v":0},{"$f":"'Population at Risk'!G60/'Population at Risk'!G$5","v":0},{"$f":"'Population at Risk'!H60/'Population at Risk'!H$5","v":0},{"$f":"'Population at Risk'!I60/'Population at Risk'!I$5","v":0},{"$f":"'Population at Risk'!J60/'Population at Risk'!J$5","v":0},{"$f":"'Population at Risk'!K60/'Population at Risk'!K$5","v":0},{"$f":"'Population at Risk'!L60/'Population at Risk'!L$5","v":0},{"$f":"'Population at Risk'!M60/'Population at Risk'!M$5","v":0},{"$f":"'Population at Risk'!N60/'Population at Risk'!N$5","v":0},{"$f":"'Population at Risk'!O60/'Population at Risk'!O$5","v":0},{"$f":"'Population at Risk'!P60/'Population at Risk'!P$5","v":0},{"$f":"'Population at Risk'!Q60/'Population at Risk'!Q$5","v":0},{"$f":"'Population at Risk'!R60/'Population at Risk'!R$5","v":0},{"$f":"'Population at Risk'!S60/'Population at Risk'!S$5","v":0},{"$f":"'Population at Risk'!T60/'Population at Risk'!T$5","v":0},{"$f":"'Population at Risk'!U60/'Population at Risk'!U$5","v":0},{"$f":"'Population at Risk'!V60/'Population at Risk'!V$5","v":0},{"$f":"'Population at Risk'!W60/'Population at Risk'!W$5","v":0},{"$f":"'Population at Risk'!X60/'Population at Risk'!X$5","v":0},{"$f":"'Population at Risk'!Y60/'Population at Risk'!Y$5","v":0},{"$f":"'Population at Risk'!Z60/'Population at Risk'!Z$5","v":0},{"$f":"'Population at Risk'!AA60/'Population at Risk'!AA$5","v":0},{"$f":"'Population at Risk'!AB60/'Population at Risk'!AB$5","v":0},{"$f":"'Population at Risk'!AC60/'Population at Risk'!AC$5","v":0},{"$f":"'Population at Risk'!AD60/'Population at Risk'!AD$5","v":0},{"$f":"'Population at Risk'!AE60/'Population at Risk'!AE$5","v":0},{"$f":"'Population at Risk'!AF60/'Population at Risk'!AF$5","v":0},{"$f":"'Population at Risk'!AG60/'Population at Risk'!AG$5","v":0},{"$f":"'Population at Risk'!AH60/'Population at Risk'!AH$5","v":0},{"$f":"'Population at Risk'!AI60/'Population at Risk'!AI$5","v":0},{"$f":"'Population at Risk'!AJ60/'Population at Risk'!AJ$5","v":0},{"$f":"'Population at Risk'!AK60/'Population at Risk'!AK$5","v":0},{"$f":"'Population at Risk'!AL60/'Population at Risk'!AL$5","v":0},{"$f":"'Population at Risk'!AM60/'Population at Risk'!AM$5","v":0},{"$f":"'Population at Risk'!AN60/'Population at Risk'!AN$5","v":0},{"$f":"'Population at Risk'!AO60/'Population at Risk'!AO$5","v":0},{"$f":"'Population at Risk'!AP60/'Population at Risk'!AP$5","v":0},{"$f":"'Population at Risk'!AQ60/'Population at Risk'!AQ$5","v":0},{"$f":"'Population at Risk'!AR60/'Population at Risk'!AR$5","v":0},{"$f":"'Population at Risk'!AS60/'Population at Risk'!AS$5","v":0},{"$f":"'Population at Risk'!AT60/'Population at Risk'!AT$5","v":0},{"$f":"'Population at Risk'!AU60/'Population at Risk'!AU$5","v":0},{"$f":"'Population at Risk'!AV60/'Population at Risk'!AV$5","v":0},{"$f":"'Population at Risk'!AW60/'Population at Risk'!AW$5","v":0},{"$f":"'Population at Risk'!AX60/'Population at Risk'!AX$5","v":0},{"$f":"'Population at Risk'!AY60/'Population at Risk'!AY$5","v":0},{"$f":"'Population at Risk'!AZ60/'Population at Risk'!AZ$5","v":0},{"$f":"'Population at Risk'!BA60/'Population at Risk'!BA$5","v":0},{"$f":"'Population at Risk'!BB60/'Population at Risk'!BB$5","v":0},{"$f":"'Population at Risk'!BC60/'Population at Risk'!BC$5","v":0},58]
[null,"Female 5-9",{"$f":"'Population at Risk'!C61/'Population at Risk'!C$5","v":0},{"$f":"'Population at Risk'!D61/'Population at Risk'!D$5","v":0},{"$f":"'Population at Risk'!E61/'Population at Risk'!E$5","v":0},{"$f":"'Population at Risk'!F61/'Population at Risk'!F$5","v":0},{"$f":"'Population at Risk'!G61/'Population at Risk'!G$5","v":0},{"$f":"'Population at Risk'!H61/'Population at Risk'!H$5","v":0},{"$f":"'Population at Risk'!I61/'Population at Risk'!I$5","v":0},{"$f":"'Population at Risk'!J61/'Population at Risk'!J$5","v":0},{"$f":"'Population at Risk'!K61/'Population at Risk'!K$5","v":0},{"$f":"'Population at Risk'!L61/'Population at Risk'!L$5","v":0},{"$f":"'Population at Risk'!M61/'Population at Risk'!M$5","v":0},{"$f":"'Population at Risk'!N61/'Population at Risk'!N$5","v":0},{"$f":"'Population at Risk'!O61/'Population at Risk'!O$5","v":0},{"$f":"'Population at Risk'!P61/'Population at Risk'!P$5","v":0},{"$f":"'Population at Risk'!Q61/'Population at Risk'!Q$5","v":0},{"$f":"'Population at Risk'!R61/'Population at Risk'!R$5","v":0},{"$f":"'Population at Risk'!S61/'Population at Risk'!S$5","v":0},{"$f":"'Population at Risk'!T61/'Population at Risk'!T$5","v":0},{"$f":"'Population at Risk'!U61/'Population at Risk'!U$5","v":0},{"$f":"'Population at Risk'!V61/'Population at Risk'!V$5","v":0},{"$f":"'Population at Risk'!W61/'Population at Risk'!W$5","v":0},{"$f":"'Population at Risk'!X61/'Population at Risk'!X$5","v":0},{"$f":"'Population at Risk'!Y61/'Population at Risk'!Y$5","v":0},{"$f":"'Population at Risk'!Z61/'Population at Risk'!Z$5","v":0},{"$f":"'Population at Risk'!AA61/'Population at Risk'!AA$5","v":0},{"$f":"'Population at Risk'!AB61/'Population at Risk'!AB$5","v":0},{"$f":"'Population at Risk'!AC61/'Population at Risk'!AC$5","v":0},{"$f":"'Population at Risk'!AD61/'Population at Risk'!AD$5","v":0},{"$f":"'Population at Risk'!AE61/'Population at Risk'!AE$5","v":0},{"$f":"'Population at Risk'!AF61/'Population at Risk'!AF$5","v":0},{"$f":"'Population at Risk'!AG61/'Population at Risk'!AG$5","v":0},{"$f":"'Population at Risk'!AH61/'Population at Risk'!AH$5","v":0},{"$f":"'Population at Risk'!AI61/'Population at Risk'!AI$5","v":0},{"$f":"'Population at Risk'!AJ61/'Population at Risk'!AJ$5","v":0},{"$f":"'Population at Risk'!AK61/'Population at Risk'!AK$5","v":0},{"$f":"'Population at Risk'!AL61/'Population at Risk'!AL$5","v":0},{"$f":"'Population at Risk'!AM61/'Population at Risk'!AM$5","v":0},{"$f":"'Population at Risk'!AN61/'Population at Risk'!AN$5","v":0},{"$f":"'Population at Risk'!AO61/'Population at Risk'!AO$5","v":0},{"$f":"'Population at Risk'!AP61/'Population at Risk'!AP$5","v":0},{"$f":"'Population at Risk'!AQ61/'Population at Risk'!AQ$5","v":0},{"$f":"'Population at Risk'!AR61/'Population at Risk'!AR$5","v":0},{"$f":"'Population at Risk'!AS61/'Population at Risk'!AS$5","v":0},{"$f":"'Population at Risk'!AT61/'Population at Risk'!AT$5","v":0},{"$f":"'Population at Risk'!AU61/'Population at Risk'!AU$5","v":0},{"$f":"'Population at Risk'!AV61/'Population at Risk'!AV$5","v":0},{"$f":"'Population at Risk'!AW61/'Population at Risk'!AW$5","v":0},{"$f":"'Population at Risk'!AX61/'Population at Risk'!AX$5","v":0},{"$f":"'Population at Risk'!AY61/'Population at Risk'!AY$5","v":0},{"$f":"'Population at Risk'!AZ61/'Population at Risk'!AZ$5","v":0},{"$f":"'Population at Risk'!BA61/'Population at Risk'!BA$5","v":0},{"$f":"'Population at Risk'!BB61/'Population at Risk'!BB$5","v":0},{"$f":"'Population at Risk'!BC61/'Population at Risk'!BC$5","v":0},59]
[null,"Female 10-15",{"$f":"'Population at Risk'!C62/'Population at Risk'!C$5","v":0},{"$f":"'Population at Risk'!D62/'Population at Risk'!D$5","v":0},{"$f":"'Population at Risk'!E62/'Population at Risk'!E$5","v":0},{"$f":"'Population at Risk'!F62/'Population at Risk'!F$5","v":0},{"$f":"'Population at Risk'!G62/'Population at Risk'!G$5","v":0},{"$f":"'Population at Risk'!H62/'Population at Risk'!H$5","v":0},{"$f":"'Population at Risk'!I62/'Population at Risk'!I$5","v":0},{"$f":"'Population at Risk'!J62/'Population at Risk'!J$5","v":0},{"$f":"'Population at Risk'!K62/'Population at Risk'!K$5","v":0},{"$f":"'Population at Risk'!L62/'Population at Risk'!L$5","v":0},{"$f":"'Population at Risk'!M62/'Population at Risk'!M$5","v":0},{"$f":"'Population at Risk'!N62/'Population at Risk'!N$5","v":0},{"$f":"'Population at Risk'!O62/'Population at Risk'!O$5","v":0},{"$f":"'Population at Risk'!P62/'Population at Risk'!P$5","v":0},{"$f":"'Population at Risk'!Q62/'Population at Risk'!Q$5","v":0},{"$f":"'Population at Risk'!R62/'Population at Risk'!R$5","v":0},{"$f":"'Population at Risk'!S62/'Population at Risk'!S$5","v":0},{"$f":"'Population at Risk'!T62/'Population at Risk'!T$5","v":0},{"$f":"'Population at Risk'!U62/'Population at Risk'!U$5","v":0},{"$f":"'Population at Risk'!V62/'Population at Risk'!V$5","v":0},{"$f":"'Population at Risk'!W62/'Population at Risk'!W$5","v":0},{"$f":"'Population at Risk'!X62/'Population at Risk'!X$5","v":0},{"$f":"'Population at Risk'!Y62/'Population at Risk'!Y$5","v":0},{"$f":"'Population at Risk'!Z62/'Population at Risk'!Z$5","v":0},{"$f":"'Population at Risk'!AA62/'Population at Risk'!AA$5","v":0},{"$f":"'Population at Risk'!AB62/'Population at Risk'!AB$5","v":0},{"$f":"'Population at Risk'!AC62/'Population at Risk'!AC$5","v":0},{"$f":"'Population at Risk'!AD62/'Population at Risk'!AD$5","v":0},{"$f":"'Population at Risk'!AE62/'Population at Risk'!AE$5","v":0},{"$f":"'Population at Risk'!AF62/'Population at Risk'!AF$5","v":0},{"$f":"'Population at Risk'!AG62/'Population at Risk'!AG$5","v":0},{"$f":"'Population at Risk'!AH62/'Population at Risk'!AH$5","v":0},{"$f":"'Population at Risk'!AI62/'Population at Risk'!AI$5","v":0},{"$f":"'Population at Risk'!AJ62/'Population at Risk'!AJ$5","v":0},{"$f":"'Population at Risk'!AK62/'Population at Risk'!AK$5","v":0},{"$f":"'Population at Risk'!AL62/'Population at Risk'!AL$5","v":0},{"$f":"'Population at Risk'!AM62/'Population at Risk'!AM$5","v":0},{"$f":"'Population at Risk'!AN62/'Population at Risk'!AN$5","v":0},{"$f":"'Population at Risk'!AO62/'Population at Risk'!AO$5","v":0},{"$f":"'Population at Risk'!AP62/'Population at Risk'!AP$5","v":0},{"$f":"'Population at Risk'!AQ62/'Population at Risk'!AQ$5","v":0},{"$f":"'Population at Risk'!AR62/'Population at Risk'!AR$5","v":0},{"$f":"'Population at Risk'!AS62/'Population at Risk'!AS$5","v":0},{"$f":"'Population at Risk'!AT62/'Population at Risk'!AT$5","v":0},{"$f":"'Population at Risk'!AU62/'Population at Risk'!AU$5","v":0},{"$f":"'Population at Risk'!AV62/'Population at Risk'!AV$5","v":0},{"$f":"'Population at Risk'!AW62/'Population at Risk'!AW$5","v":0},{"$f":"'Population at Risk'!AX62/'Population at Risk'!AX$5","v":0},{"$f":"'Population at Risk'!AY62/'Population at Risk'!AY$5","v":0},{"$f":"'Population at Risk'!AZ62/'Population at Risk'!AZ$5","v":0},{"$f":"'Population at Risk'!BA62/'Population at Risk'!BA$5","v":0},{"$f":"'Population at Risk'!BB62/'Population at Risk'!BB$5","v":0},{"$f":"'Population at Risk'!BC62/'Population at Risk'!BC$5","v":0},60]
[null,"Female 16-19",{"$f":"'Population at Risk'!C63/'Population at Risk'!C$5","v":2.338137344038033E-3},{"$f":"'Population at Risk'!D63/'Population at Risk'!D$5","v":2.0090864769199586E-3},{"$f":"'Population at Risk'!E63/'Population at Risk'!E$5","v":7.7186873835252137E-4},{"$f":"'Population at Risk'!F63/'Population at Risk'!F$5","v":2.0049262088086893E-3},{"$f":"'Population at Risk'!G63/'Population at Risk'!G$5","v":2.7367280830051643E-3},{"$f":"'Population at Risk'!H63/'Population at Risk'!H$5","v":9.8219499116714744E-3},{"$f":"'Population at Risk'!I63/'Population at Risk'!I$5","v":2.9777229413522656E-3},{"$f":"'Population at Risk'!J63/'Population at Risk'!J$5","v":6.5030465252131527E-3},{"$f":"'Population at Risk'!K63/'Population at Risk'!K$5","v":7.5137188436296019E-3},{"$f":"'Population at Risk'!L63/'Population at Risk'!L$5","v":3.5129923343154893E-3},{"$f":"'Population at Risk'!M63/'Population at Risk'!M$5","v":3.5129923343154893E-3},{"$f":"'Population at Risk'!N63/'Population at Risk'!N$5","v":1.1931189678864914E-2},{"$f":"'Population at Risk'!O63/'Population at Risk'!O$5","v":9.4599714649523711E-3},{"$f":"'Population at Risk'!P63/'Population at Risk'!P$5","v":2.0839564517145552E-3},{"$f":"'Population at Risk'!Q63/'Population at Risk'!Q$5","v":1.4864035363625625E-3},{"$f":"'Population at Risk'!R63/'Population at Risk'!R$5","v":3.4163067025394416E-3},{"$f":"'Population at Risk'!S63/'Population at Risk'!S$5","v":5.8430448598068606E-3},{"$f":"'Population at Risk'!T63/'Population at Risk'!T$5","v":4.6612726885894209E-3},{"$f":"'Population at Risk'!U63/'Population at Risk'!U$5","v":0},{"$f":"'Population at Risk'!V63/'Population at Risk'!V$5","v":3.7562619877575137E-3},{"$f":"'Population at Risk'!W63/'Population at Risk'!W$5","v":7.3434997628347293E-3},{"$f":"'Population at Risk'!X63/'Population at Risk'!X$5","v":7.3434997628347293E-3},{"$f":"'Population at Risk'!Y63/'Population at Risk'!Y$5","v":5.0441919080369954E-3},{"$f":"'Population at Risk'!Z63/'Population at Risk'!Z$5","v":1.1672314648041873E-2},{"$f":"'Population at Risk'!AA63/'Population at Risk'!AA$5","v":1.0379628197606898E-2},{"$f":"'Population at Risk'!AB63/'Population at Risk'!AB$5","v":1.4288659710029363E-3},{"$f":"'Population at Risk'!AC63/'Population at Risk'!AC$5","v":1.0296779523627548E-2},{"$f":"'Population at Risk'!AD63/'Population at Risk'!AD$5","v":2.6565028045337623E-3},{"$f":"'Population at Risk'!AE63/'Population at Risk'!AE$5","v":2.6388484196749299E-3},{"$f":"'Population at Risk'!AF63/'Population at Risk'!AF$5","v":1.1214902966924444E-2},{"$f":"'Population at Risk'!AG63/'Population at Risk'!AG$5","v":3.1243454726351053E-3},{"$f":"'Population at Risk'!AH63/'Population at Risk'!AH$5","v":9.1893638073848819E-3},{"$f":"'Population at Risk'!AI63/'Population at Risk'!AI$5","v":4.7153819124524845E-3},{"$f":"'Population at Risk'!AJ63/'Population at Risk'!AJ$5","v":3.5514674819603618E-3},{"$f":"'Population at Risk'!AK63/'Population at Risk'!AK$5","v":3.2937127214884677E-4},{"$f":"'Population at Risk'!AL63/'Population at Risk'!AL$5","v":1.1105821010639866E-2},{"$f":"'Population at Risk'!AM63/'Population at Risk'!AM$5","v":1.1528453058986182E-2},{"$f":"'Population at Risk'!AN63/'Population at Risk'!AN$5","v":0},{"$f":"'Population at Risk'!AO63/'Population at Risk'!AO$5","v":0},{"$f":"'Population at Risk'!AP63/'Population at Risk'!AP$5","v":2.0813705451090043E-3},{"$f":"'Population at Risk'!AQ63/'Population at Risk'!AQ$5","v":8.8619358525567522E-3},{"$f":"'Population at Risk'!AR63/'Population at Risk'!AR$5","v":6.7442681829556397E-3},{"$f":"'Population at Risk'!AS63/'Population at Risk'!AS$5","v":2.9777229413522656E-3},{"$f":"'Population at Risk'!AT63/'Population at Risk'!AT$5","v":0},{"$f":"'Population at Risk'!AU63/'Population at Risk'!AU$5","v":0},{"$f":"'Population at Risk'!AV63/'Population at Risk'!AV$5","v":7.5149944520180884E-3},{"$f":"'Population at Risk'!AW63/'Population at Risk'!AW$5","v":6.6455298662528904E-3},{"$f":"'Population at Risk'!AX63/'Population at Risk'!AX$5","v":5.8314165367019943E-3},{"$f":"'Population at Risk'!AY63/'Population at Risk'!AY$5","v":7.6003305443516486E-3},{"$f":"'Population at Risk'!AZ63/'Population at Risk'!AZ$5","v":5.8117844707967605E-3},{"$f":"'Population at Risk'!BA63/'Population at Risk'!BA$5","v":1.1736325171146471E-2},{"$f":"'Population at Risk'!BB63/'Population at Risk'!BB$5","v":6.9731814216950844E-3},{"$f":"'Population at Risk'!BC63/'Population at Risk'!BC$5","v":0},61]
[null,"Female 20-24",{"$f":"'Population at Risk'!C64/'Population at Risk'!C$5","v":4.9820801172690511E-3},{"$f":"'Population at Risk'!D64/'Population at Risk'!D$5","v":4.1188369944371592E-3},{"$f":"'Population at Risk'!E64/'Population at Risk'!E$5","v":1.3783370327723596E-3},{"$f":"'Population at Risk'!F64/'Population at Risk'!F$5","v":2.8899837244089214E-3},{"$f":"'Population at Risk'!G64/'Population at Risk'!G$5","v":3.8989002826374944E-3},{"$f":"'Population at Risk'!H64/'Population at Risk'!H$5","v":1.4703930181421094E-2},{"$f":"'Population at Risk'!I64/'Population at Risk'!I$5","v":3.8234667353458083E-3},{"$f":"'Population at Risk'!J64/'Population at Risk'!J$5","v":1.0477130512843415E-2},{"$f":"'Population at Risk'!K64/'Population at Risk'!K$5","v":1.2120670543373298E-2},{"$f":"'Population at Risk'!L64/'Population at Risk'!L$5","v":5.5984830216710343E-3},{"$f":"'Population at Risk'!M64/'Population at Risk'!M$5","v":5.5984830216710343E-3},{"$f":"'Population at Risk'!N64/'Population at Risk'!N$5","v":2.0318086315715942E-2},{"$f":"'Population at Risk'!O64/'Population at Risk'!O$5","v":1.4820621961758713E-2},{"$f":"'Population at Risk'!P64/'Population at Risk'!P$5","v":3.2642503712697018E-3},{"$f":"'Population at Risk'!Q64/'Population at Risk'!Q$5","v":2.1490171610061143E-3},{"$f":"'Population at Risk'!R64/'Population at Risk'!R$5","v":4.6846361370151621E-3},{"$f":"'Population at Risk'!S64/'Population at Risk'!S$5","v":8.1146921517211267E-3},{"$f":"'Population at Risk'!T64/'Population at Risk'!T$5","v":7.3638190878247767E-3},{"$f":"'Population at Risk'!U64/'Population at Risk'!U$5","v":0},{"$f":"'Population at Risk'!V64/'Population at Risk'!V$5","v":6.1494921993667309E-3},{"$f":"'Population at Risk'!W64/'Population at Risk'!W$5","v":9.0257995991538942E-3},{"$f":"'Population at Risk'!X64/'Population at Risk'!X$5","v":9.0257995991538942E-3},{"$f":"'Population at Risk'!Y64/'Population at Risk'!Y$5","v":8.1850042852323144E-3},{"$f":"'Population at Risk'!Z64/'Population at Risk'!Z$5","v":1.9873381045544626E-2},{"$f":"'Population at Risk'!AA64/'Population at Risk'!AA$5","v":1.6543341326173338E-2},{"$f":"'Population at Risk'!AB64/'Population at Risk'!AB$5","v":2.9356700858787599E-3},{"$f":"'Population at Risk'!AC64/'Population at Risk'!AC$5","v":1.7439747984745502E-2},{"$f":"'Population at Risk'!AD64/'Population at Risk'!AD$5","v":3.9242691702675433E-3},{"$f":"'Population at Risk'!AE64/'Population at Risk'!AE$5","v":3.948450613061991E-3},{"$f":"'Population at Risk'!AF64/'Population at Risk'!AF$5","v":1.8468728287100864E-2},{"$f":"'Population at Risk'!AG64/'Population at Risk'!AG$5","v":4.6748891315110874E-3},{"$f":"'Population at Risk'!AH64/'Population at Risk'!AH$5","v":1.2615243303928721E-2},{"$f":"'Population at Risk'!AI64/'Population at Risk'!AI$5","v":7.1303485151661041E-3},{"$f":"'Population at Risk'!AJ64/'Population at Risk'!AJ$5","v":5.6476995078979415E-3},{"$f":"'Population at Risk'!AK64/'Population at Risk'!AK$5","v":7.2049965782560225E-4},{"$f":"'Population at Risk'!AL64/'Population at Risk'!AL$5","v":1.5996985704444987E-2},{"$f":"'Population at Risk'!AM64/'Population at Risk'!AM$5","v":1.5546838627006176E-2},{"$f":"'Population at Risk'!AN64/'Population at Risk'!AN$5","v":0},{"$f":"'Population at Risk'!AO64/'Population at Risk'!AO$5","v":0},{"$f":"'Population at Risk'!AP64/'Population at Risk'!AP$5","v":3.7077967087734173E-3},{"$f":"'Population at Risk'!AQ64/'Population at Risk'!AQ$5","v":1.6309011965747369E-2},{"$f":"'Population at Risk'!AR64/'Population at Risk'!AR$5","v":1.0510576841832615E-2},{"$f":"'Population at Risk'!AS64/'Population at Risk'!AS$5","v":3.8234667353458083E-3},{"$f":"'Population at Risk'!AT64/'Population at Risk'!AT$5","v":0},{"$f":"'Population at Risk'!AU64/'Population at Risk'!AU$5","v":0},{"$f":"'Population at Risk'!AV64/'Population at Risk'!AV$5","v":1.1495328936829306E-2},{"$f":"'Population at Risk'!AW64/'Population at Risk'!AW$5","v":9.4042240512815806E-3},{"$f":"'Population at Risk'!AX64/'Population at Risk'!AX$5","v":9.3849359887547713E-3},{"$f":"'Population at Risk'!AY64/'Population at Risk'!AY$5","v":1.0962057051944921E-2},{"$f":"'Population at Risk'!AZ64/'Population at Risk'!AZ$5","v":9.7445184336075481E-3},{"$f":"'Population at Risk'!BA64/'Population at Risk'!BA$5","v":1.8326162410100762E-2},{"$f":"'Population at Risk'!BB64/'Population at Risk'!BB$5","v":9.4559831518118316E-3},{"$f":"'Population at Risk'!BC64/'Population at Risk'!BC$5","v":0},62]
[null,"Female 25-29",{"$f":"'Population at Risk'!C65/'Population at Risk'!C$5","v":8.5119273906040047E-3},{"$f":"'Population at Risk'!D65/'Population at Risk'!D$5","v":6.8974733319290184E-3},{"$f":"'Population at Risk'!E65/'Population at Risk'!E$5","v":2.1255321439666913E-3},{"$f":"'Population at Risk'!F65/'Population at Risk'!F$5","v":3.4993058099451156E-3},{"$f":"'Population at Risk'!G65/'Population at Risk'!G$5","v":4.1780393959418754E-3},{"$f":"'Population at Risk'!H65/'Population at Risk'!H$5","v":1.9082731399927978E-2},{"$f":"'Population at Risk'!I65/'Population at Risk'!I$5","v":4.6579308899866567E-3},{"$f":"'Population at Risk'!J65/'Population at Risk'!J$5","v":1.4385788202559518E-2},{"$f":"'Population at Risk'!K65/'Population at Risk'!K$5","v":1.5209447468749389E-2},{"$f":"'Population at Risk'!L65/'Population at Risk'!L$5","v":7.2838748573350641E-3},{"$f":"'Population at Risk'!M65/'Population at Risk'!M$5","v":7.2838748573350641E-3},{"$f":"'Population at Risk'!N65/'Population at Risk'!N$5","v":3.430000999078342E-2},{"$f":"'Population at Risk'!O65/'Population at Risk'!O$5","v":1.9755311332298263E-2},{"$f":"'Population at Risk'!P65/'Population at Risk'!P$5","v":4.5885631749757703E-3},{"$f":"'Population at Risk'!Q65/'Population at Risk'!Q$5","v":3.1793950633564063E-3},{"$f":"'Population at Risk'!R65/'Population at Risk'!R$5","v":5.8321455454163383E-3},{"$f":"'Population at Risk'!S65/'Population at Risk'!S$5","v":1.3509843702372343E-2},{"$f":"'Population at Risk'!T65/'Population at Risk'!T$5","v":1.4370183078588497E-2},{"$f":"'Population at Risk'!U65/'Population at Risk'!U$5","v":0},{"$f":"'Population at Risk'!V65/'Population at Risk'!V$5","v":9.1602574335663232E-3},{"$f":"'Population at Risk'!W65/'Population at Risk'!W$5","v":1.4349901910441125E-2},{"$f":"'Population at Risk'!X65/'Population at Risk'!X$5","v":1.4349901910441125E-2},{"$f":"'Population at Risk'!Y65/'Population at Risk'!Y$5","v":1.1665639075080003E-2},{"$f":"'Population at Risk'!Z65/'Population at Risk'!Z$5","v":3.558201312567575E-2},{"$f":"'Population at Risk'!AA65/'Population at Risk'!AA$5","v":2.6267362844997078E-2},{"$f":"'Population at Risk'!AB65/'Population at Risk'!AB$5","v":4.8329699972849095E-3},{"$f":"'Population at Risk'!AC65/'Population at Risk'!AC$5","v":2.8995260761660882E-2},{"$f":"'Population at Risk'!AD65/'Population at Risk'!AD$5","v":4.8094851611538971E-3},{"$f":"'Population at Risk'!AE65/'Population at Risk'!AE$5","v":5.0488405442002133E-3},{"$f":"'Population at Risk'!AF65/'Population at Risk'!AF$5","v":2.4144521527756573E-2},{"$f":"'Population at Risk'!AG65/'Population at Risk'!AG$5","v":5.9777295197090841E-3},{"$f":"'Population at Risk'!AH65/'Population at Risk'!AH$5","v":1.7454016977225446E-2},{"$f":"'Population at Risk'!AI65/'Population at Risk'!AI$5","v":1.2369597300518268E-2},{"$f":"'Population at Risk'!AJ65/'Population at Risk'!AJ$5","v":7.5657009905467408E-3},{"$f":"'Population at Risk'!AK65/'Population at Risk'!AK$5","v":6.135625750440754E-4},{"$f":"'Population at Risk'!AL65/'Population at Risk'!AL$5","v":2.0772808766165541E-2},{"$f":"'Population at Risk'!AM65/'Population at Risk'!AM$5","v":2.1882644448181745E-2},{"$f":"'Population at Risk'!AN65/'Population at Risk'!AN$5","v":0},{"$f":"'Population at Risk'!AO65/'Population at Risk'!AO$5","v":0},{"$f":"'Population at Risk'!AP65/'Population at Risk'!AP$5","v":5.9102789377975173E-3},{"$f":"'Population at Risk'!AQ65/'Population at Risk'!AQ$5","v":2.3989083146475822E-2},{"$f":"'Population at Risk'!AR65/'Population at Risk'!AR$5","v":1.6337386634710887E-2},{"$f":"'Population at Risk'!AS65/'Population at Risk'!AS$5","v":4.6579308899866567E-3},{"$f":"'Population at Risk'!AT65/'Population at Risk'!AT$5","v":0},{"$f":"'Population at Risk'!AU65/'Population at Risk'!AU$5","v":0},{"$f":"'Population at Risk'!AV65/'Population at Risk'!AV$5","v":1.4159721019706297E-2},{"$f":"'Population at Risk'!AW65/'Population at Risk'!AW$5","v":1.2636586980956106E-2},{"$f":"'Population at Risk'!AX65/'Population at Risk'!AX$5","v":1.3838435461806735E-2},{"$f":"'Population at Risk'!AY65/'Population at Risk'!AY$5","v":1.762579378170525E-2},{"$f":"'Population at Risk'!AZ65/'Population at Risk'!AZ$5","v":1.5809569887471842E-2},{"$f":"'Population at Risk'!BA65/'Population at Risk'!BA$5","v":2.4674293207152965E-2},{"$f":"'Population at Risk'!BB65/'Population at Risk'!BB$5","v":1.2957643591255766E-2},{"$f":"'Population at Risk'!BC65/'Population at Risk'!BC$5","v":0},63]
[null,"Female 30-34",{"$f":"'Population at Risk'!C66/'Population at Risk'!C$5","v":7.4799284344202015E-3},{"$f":"'Population at Risk'!D66/'Population at Risk'!D$5","v":6.2017471014428754E-3},{"$f":"'Population at Risk'!E66/'Population at Risk'!E$5","v":2.098739721983918E-3},{"$f":"'Population at Risk'!F66/'Population at Risk'!F$5","v":3.8855168190694931E-3},{"$f":"'Population at Risk'!G66/'Population at Risk'!G$5","v":4.8824762708390528E-3},{"$f":"'Population at Risk'!H66/'Population at Risk'!H$5","v":1.6936335079532436E-2},{"$f":"'Population at Risk'!I66/'Population at Risk'!I$5","v":4.7264298736629309E-3},{"$f":"'Population at Risk'!J66/'Population at Risk'!J$5","v":1.2584017885276421E-2},{"$f":"'Population at Risk'!K66/'Population at Risk'!K$5","v":1.4534261716632009E-2},{"$f":"'Population at Risk'!L66/'Population at Risk'!L$5","v":6.2144170409803128E-3},{"$f":"'Population at Risk'!M66/'Population at Risk'!M$5","v":6.2144170409803128E-3},{"$f":"'Population at Risk'!N66/'Population at Risk'!N$5","v":2.7496499237151476E-2},{"$f":"'Population at Risk'!O66/'Population at Risk'!O$5","v":1.7557145449389185E-2},{"$f":"'Population at Risk'!P66/'Population at Risk'!P$5","v":3.9432964784948026E-3},{"$f":"'Population at Risk'!Q66/'Population at Risk'!Q$5","v":2.8777006412860902E-3},{"$f":"'Population at Risk'!R66/'Population at Risk'!R$5","v":5.6730870305413484E-3},{"$f":"'Population at Risk'!S66/'Population at Risk'!S$5","v":1.2910339140315547E-2},{"$f":"'Population at Risk'!T66/'Population at Risk'!T$5","v":1.4149288704825957E-2},{"$f":"'Population at Risk'!U66/'Population at Risk'!U$5","v":0},{"$f":"'Population at Risk'!V66/'Population at Risk'!V$5","v":8.9754091893912182E-3},{"$f":"'Population at Risk'!W66/'Population at Risk'!W$5","v":1.2658923621502267E-2},{"$f":"'Population at Risk'!X66/'Population at Risk'!X$5","v":1.2658923621502267E-2},{"$f":"'Population at Risk'!Y66/'Population at Risk'!Y$5","v":1.0778169155936981E-2},{"$f":"'Population at Risk'!Z66/'Population at Risk'!Z$5","v":3.0128734752717466E-2},{"$f":"'Population at Risk'!AA66/'Population at Risk'!AA$5","v":2.3893142930239173E-2},{"$f":"'Population at Risk'!AB66/'Population at Risk'!AB$5","v":4.3915687127031615E-3},{"$f":"'Population at Risk'!AC66/'Population at Risk'!AC$5","v":2.5196662684267557E-2},{"$f":"'Population at Risk'!AD66/'Population at Risk'!AD$5","v":5.3675610142734495E-3},{"$f":"'Population at Risk'!AE66/'Population at Risk'!AE$5","v":5.5579673217666208E-3},{"$f":"'Population at Risk'!AF66/'Population at Risk'!AF$5","v":2.3616426131261459E-2},{"$f":"'Population at Risk'!AG66/'Population at Risk'!AG$5","v":6.5805257737973953E-3},{"$f":"'Population at Risk'!AH66/'Population at Risk'!AH$5","v":1.8202387025275258E-2},{"$f":"'Population at Risk'!AI66/'Population at Risk'!AI$5","v":1.2284423996265241E-2},{"$f":"'Population at Risk'!AJ66/'Population at Risk'!AJ$5","v":6.6452447869490665E-3},{"$f":"'Population at Risk'!AK66/'Population at Risk'!AK$5","v":8.8032891201976038E-4},{"$f":"'Population at Risk'!AL66/'Population at Risk'!AL$5","v":1.8035059098009364E-2},{"$f":"'Population at Risk'!AM66/'Population at Risk'!AM$5","v":2.2123888982297221E-2},{"$f":"'Population at Risk'!AN66/'Population at Risk'!AN$5","v":0},{"$f":"'Population at Risk'!AO66/'Population at Risk'!AO$5","v":0},{"$f":"'Population at Risk'!AP66/'Population at Risk'!AP$5","v":5.3059860788207134E-3},{"$f":"'Population at Risk'!AQ66/'Population at Risk'!AQ$5","v":2.0464828826101112E-2},{"$f":"'Population at Risk'!AR66/'Population at Risk'!AR$5","v":1.4929509291486115E-2},{"$f":"'Population at Risk'!AS66/'Population at Risk'!AS$5","v":4.7264298736629309E-3},{"$f":"'Population at Risk'!AT66/'Population at Risk'!AT$5","v":0},{"$f":"'Population at Risk'!AU66/'Population at Risk'!AU$5","v":0},{"$f":"'Population at Risk'!AV66/'Population at Risk'!AV$5","v":1.3283451364478342E-2},{"$f":"'Population at Risk'!AW66/'Population at Risk'!AW$5","v":1.3879529962689494E-2},{"$f":"'Population at Risk'!AX66/'Population at Risk'!AX$5","v":1.1288007083180238E-2},{"$f":"'Population at Risk'!AY66/'Population at Risk'!AY$5","v":1.5124741296603256E-2},{"$f":"'Population at Risk'!AZ66/'Population at Risk'!AZ$5","v":1.3265917360486677E-2},{"$f":"'Population at Risk'!BA66/'Population at Risk'!BA$5","v":2.5297763096767092E-2},{"$f":"'Population at Risk'!BB66/'Population at Risk'!BB$5","v":1.3887678145817288E-2},{"$f":"'Population at Risk'!BC66/'Population at Risk'!BC$5","v":0},64]
[null,"Female 35-39",{"$f":"'Population at Risk'!C67/'Population at Risk'!C$5","v":5.8599633932585726E-3},{"$f":"'Population at Risk'!D67/'Population at Risk'!D$5","v":4.8819453383216358E-3},{"$f":"'Population at Risk'!E67/'Population at Risk'!E$5","v":1.6825571291603462E-3},{"$f":"'Population at Risk'!F67/'Population at Risk'!F$5","v":3.8201254559411023E-3},{"$f":"'Population at Risk'!G67/'Population at Risk'!G$5","v":4.7094262732315763E-3},{"$f":"'Population at Risk'!H67/'Population at Risk'!H$5","v":1.6663081374962464E-2},{"$f":"'Population at Risk'!I67/'Population at Risk'!I$5","v":4.8019181598275007E-3},{"$f":"'Population at Risk'!J67/'Population at Risk'!J$5","v":1.202783107040623E-2},{"$f":"'Population at Risk'!K67/'Population at Risk'!K$5","v":1.6426036037580086E-2},{"$f":"'Population at Risk'!L67/'Population at Risk'!L$5","v":5.7146520600866212E-3},{"$f":"'Population at Risk'!M67/'Population at Risk'!M$5","v":5.7146520600866212E-3},{"$f":"'Population at Risk'!N67/'Population at Risk'!N$5","v":2.3580655800548252E-2},{"$f":"'Population at Risk'!O67/'Population at Risk'!O$5","v":1.6900542129654451E-2},{"$f":"'Population at Risk'!P67/'Population at Risk'!P$5","v":3.9527840289681048E-3},{"$f":"'Population at Risk'!Q67/'Population at Risk'!Q$5","v":3.6858918042840462E-3},{"$f":"'Population at Risk'!R67/'Population at Risk'!R$5","v":6.2430208420651227E-3},{"$f":"'Population at Risk'!S67/'Population at Risk'!S$5","v":1.2134486767299786E-2},{"$f":"'Population at Risk'!T67/'Population at Risk'!T$5","v":1.2414511252835943E-2},{"$f":"'Population at Risk'!U67/'Population at Risk'!U$5","v":0},{"$f":"'Population at Risk'!V67/'Population at Risk'!V$5","v":7.7614446990854633E-3},{"$f":"'Population at Risk'!W67/'Population at Risk'!W$5","v":1.2600682399776401E-2},{"$f":"'Population at Risk'!X67/'Population at Risk'!X$5","v":1.2600682399776401E-2},{"$f":"'Population at Risk'!Y67/'Population at Risk'!Y$5","v":9.8147076573952621E-3},{"$f":"'Population at Risk'!Z67/'Population at Risk'!Z$5","v":2.7355684000780495E-2},{"$f":"'Population at Risk'!AA67/'Population at Risk'!AA$5","v":2.2374244232274666E-2},{"$f":"'Population at Risk'!AB67/'Population at Risk'!AB$5","v":3.4581568237720657E-3},{"$f":"'Population at Risk'!AC67/'Population at Risk'!AC$5","v":2.3236493592305275E-2},{"$f":"'Population at Risk'!AD67/'Population at Risk'!AD$5","v":4.8009927823250602E-3},{"$f":"'Population at Risk'!AE67/'Population at Risk'!AE$5","v":4.851721284864296E-3},{"$f":"'Population at Risk'!AF67/'Population at Risk'!AF$5","v":2.2975886313236629E-2},{"$f":"'Population at Risk'!AG67/'Population at Risk'!AG$5","v":5.7443441305054018E-3},{"$f":"'Population at Risk'!AH67/'Population at Risk'!AH$5","v":1.7753041821595639E-2},{"$f":"'Population at Risk'!AI67/'Population at Risk'!AI$5","v":1.1179297914278947E-2},{"$f":"'Population at Risk'!AJ67/'Population at Risk'!AJ$5","v":6.8853806680076015E-3},{"$f":"'Population at Risk'!AK67/'Population at Risk'!AK$5","v":7.012823671998659E-4},{"$f":"'Population at Risk'!AL67/'Population at Risk'!AL$5","v":1.8459406896136663E-2},{"$f":"'Population at Risk'!AM67/'Population at Risk'!AM$5","v":2.1687492716422414E-2},{"$f":"'Population at Risk'!AN67/'Population at Risk'!AN$5","v":0},{"$f":"'Population at Risk'!AO67/'Population at Risk'!AO$5","v":0},{"$f":"'Population at Risk'!AP67/'Population at Risk'!AP$5","v":4.7786582054728712E-3},{"$f":"'Population at Risk'!AQ67/'Population at Risk'!AQ$5","v":1.9782390151279604E-2},{"$f":"'Population at Risk'!AR67/'Population at Risk'!AR$5","v":1.3893665452482322E-2},{"$f":"'Population at Risk'!AS67/'Population at Risk'!AS$5","v":4.8019181598275007E-3},{"$f":"'Population at Risk'!AT67/'Population at Risk'!AT$5","v":0},{"$f":"'Population at Risk'!AU67/'Population at Risk'!AU$5","v":0},{"$f":"'Population at Risk'!AV67/'Population at Risk'!AV$5","v":1.2259480403791092E-2},{"$f":"'Population at Risk'!AW67/'Population at Risk'!AW$5","v":1.3426495256285694E-2},{"$f":"'Population at Risk'!AX67/'Population at Risk'!AX$5","v":9.1050574891518611E-3},{"$f":"'Population at Risk'!AY67/'Population at Risk'!AY$5","v":1.4077455356058659E-2},{"$f":"'Population at Risk'!AZ67/'Population at Risk'!AZ$5","v":1.1635504295958759E-2},{"$f":"'Population at Risk'!BA67/'Population at Risk'!BA$5","v":2.2950055627560244E-2},{"$f":"'Population at Risk'!BB67/'Population at Risk'!BB$5","v":1.3036709737618517E-2},{"$f":"'Population at Risk'!BC67/'Population at Risk'!BC$5","v":0},65]
[null,"Female 40-44",{"$f":"'Population at Risk'!C68/'Population at Risk'!C$5","v":5.9775243872591298E-3},{"$f":"'Population at Risk'!D68/'Population at Risk'!D$5","v":4.9355276652056539E-3},{"$f":"'Population at Risk'!E68/'Population at Risk'!E$5","v":1.6434278935984776E-3},{"$f":"'Population at Risk'!F68/'Population at Risk'!F$5","v":3.2688992995469164E-3},{"$f":"'Population at Risk'!G68/'Population at Risk'!G$5","v":5.5342410442495368E-3},{"$f":"'Population at Risk'!H68/'Population at Risk'!H$5","v":1.8916378578492432E-2},{"$f":"'Population at Risk'!I68/'Population at Risk'!I$5","v":5.8273277668739977E-3},{"$f":"'Population at Risk'!J68/'Population at Risk'!J$5","v":1.202783107040623E-2},{"$f":"'Population at Risk'!K68/'Population at Risk'!K$5","v":1.5842172197381741E-2},{"$f":"'Population at Risk'!L68/'Population at Risk'!L$5","v":5.7779723045197134E-3},{"$f":"'Population at Risk'!M68/'Population at Risk'!M$5","v":5.7779723045197134E-3},{"$f":"'Population at Risk'!N68/'Population at Risk'!N$5","v":1.9491369227036176E-2},{"$f":"'Population at Risk'!O68/'Population at Risk'!O$5","v":1.9015039181492499E-2},{"$f":"'Population at Risk'!P68/'Population at Risk'!P$5","v":4.6072184708502413E-3},{"$f":"'Population at Risk'!Q68/'Population at Risk'!Q$5","v":2.6945140086490267E-3},{"$f":"'Population at Risk'!R68/'Population at Risk'!R$5","v":5.8364985546748354E-3},{"$f":"'Population at Risk'!S68/'Population at Risk'!S$5","v":1.1200074264982325E-2},{"$f":"'Population at Risk'!T68/'Population at Risk'!T$5","v":9.6122278835742512E-3},{"$f":"'Population at Risk'!U68/'Population at Risk'!U$5","v":0},{"$f":"'Population at Risk'!V68/'Population at Risk'!V$5","v":8.9087886980807052E-3},{"$f":"'Population at Risk'!W68/'Population at Risk'!W$5","v":1.2965423997960794E-2},{"$f":"'Population at Risk'!X68/'Population at Risk'!X$5","v":1.2965423997960794E-2},{"$f":"'Population at Risk'!Y68/'Population at Risk'!Y$5","v":1.049851925647608E-2},{"$f":"'Population at Risk'!Z68/'Population at Risk'!Z$5","v":2.4492943875925221E-2},{"$f":"'Population at Risk'!AA68/'Population at Risk'!AA$5","v":2.1158340058108356E-2},{"$f":"'Population at Risk'!AB68/'Population at Risk'!AB$5","v":3.5114222724794554E-3},{"$f":"'Population at Risk'!AC68/'Population at Risk'!AC$5","v":2.1275175436980098E-2},{"$f":"'Population at Risk'!AD68/'Population at Risk'!AD$5","v":5.04138584009527E-3},{"$f":"'Population at Risk'!AE68/'Population at Risk'!AE$5","v":4.8888992257444816E-3},{"$f":"'Population at Risk'!AF68/'Population at Risk'!AF$5","v":2.3114713420869477E-2},{"$f":"'Population at Risk'!AG68/'Population at Risk'!AG$5","v":5.7883620931912664E-3},{"$f":"'Population at Risk'!AH68/'Population at Risk'!AH$5","v":1.8167801996603485E-2},{"$f":"'Population at Risk'!AI68/'Population at Risk'!AI$5","v":9.5453185100221518E-3},{"$f":"'Population at Risk'!AJ68/'Population at Risk'!AJ$5","v":6.9837432489791391E-3},{"$f":"'Population at Risk'!AK68/'Population at Risk'!AK$5","v":8.1816276173317696E-4},{"$f":"'Population at Risk'!AL68/'Population at Risk'!AL$5","v":2.1434848589256036E-2},{"$f":"'Population at Risk'!AM68/'Population at Risk'!AM$5","v":2.2331994728797523E-2},{"$f":"'Population at Risk'!AN68/'Population at Risk'!AN$5","v":0},{"$f":"'Population at Risk'!AO68/'Population at Risk'!AO$5","v":0},{"$f":"'Population at Risk'!AP68/'Population at Risk'!AP$5","v":3.9230200808442828E-3},{"$f":"'Population at Risk'!AQ68/'Population at Risk'!AQ$5","v":1.7870292866140725E-2},{"$f":"'Population at Risk'!AR68/'Population at Risk'!AR$5","v":1.3348434845793494E-2},{"$f":"'Population at Risk'!AS68/'Population at Risk'!AS$5","v":5.8273277668739977E-3},{"$f":"'Population at Risk'!AT68/'Population at Risk'!AT$5","v":0},{"$f":"'Population at Risk'!AU68/'Population at Risk'!AU$5","v":0},{"$f":"'Population at Risk'!AV68/'Population at Risk'!AV$5","v":1.3262925419048015E-2},{"$f":"'Population at Risk'!AW68/'Population at Risk'!AW$5","v":1.3601538893137319E-2},{"$f":"'Population at Risk'!AX68/'Population at Risk'!AX$5","v":9.4930570980645817E-3},{"$f":"'Population at Risk'!AY68/'Population at Risk'!AY$5","v":1.3039714022220197E-2},{"$f":"'Population at Risk'!AZ68/'Population at Risk'!AZ$5","v":9.6524613822887521E-3},{"$f":"'Population at Risk'!BA68/'Population at Risk'!BA$5","v":2.2867278150093841E-2},{"$f":"'Population at Risk'!BB68/'Population at Risk'!BB$5","v":1.3848922910289574E-2},{"$f":"'Population at Risk'!BC68/'Population at Risk'!BC$5","v":0},66]
[null,"Female 45-49",{"$f":"'Population at Risk'!C69/'Population at Risk'!C$5","v":5.8993629095829749E-3},{"$f":"'Population at Risk'!D69/'Population at Risk'!D$5","v":5.1654114702238234E-3},{"$f":"'Population at Risk'!E69/'Population at Risk'!E$5","v":2.1056986309553748E-3},{"$f":"'Population at Risk'!F69/'Population at Risk'!F$5","v":4.2799009329058061E-3},{"$f":"'Population at Risk'!G69/'Population at Risk'!G$5","v":6.9837938006819152E-3},{"$f":"'Population at Risk'!H69/'Population at Risk'!H$5","v":2.4763647255831529E-2},{"$f":"'Population at Risk'!I69/'Population at Risk'!I$5","v":6.2350243477213184E-3},{"$f":"'Population at Risk'!J69/'Population at Risk'!J$5","v":1.6759328674924492E-2},{"$f":"'Population at Risk'!K69/'Population at Risk'!K$5","v":2.0177208892087278E-2},{"$f":"'Population at Risk'!L69/'Population at Risk'!L$5","v":7.962452243941728E-3},{"$f":"'Population at Risk'!M69/'Population at Risk'!M$5","v":7.962452243941728E-3},{"$f":"'Population at Risk'!N69/'Population at Risk'!N$5","v":2.4331357137771504E-2},{"$f":"'Population at Risk'!O69/'Population at Risk'!O$5","v":2.5883578866200126E-2},{"$f":"'Population at Risk'!P69/'Population at Risk'!P$5","v":6.0660692708395985E-3},{"$f":"'Population at Risk'!Q69/'Population at Risk'!Q$5","v":4.2713462927818878E-3},{"$f":"'Population at Risk'!R69/'Population at Risk'!R$5","v":7.84495042071621E-3},{"$f":"'Population at Risk'!S69/'Population at Risk'!S$5","v":1.3777108359377444E-2},{"$f":"'Population at Risk'!T69/'Population at Risk'!T$5","v":1.12522889721322E-2},{"$f":"'Population at Risk'!U69/'Population at Risk'!U$5","v":0},{"$f":"'Population at Risk'!V69/'Population at Risk'!V$5","v":9.7469615119829597E-3},{"$f":"'Population at Risk'!W69/'Population at Risk'!W$5","v":1.727480588817603E-2},{"$f":"'Population at Risk'!X69/'Population at Risk'!X$5","v":1.727480588817603E-2},{"$f":"'Population at Risk'!Y69/'Population at Risk'!Y$5","v":1.303928037770857E-2},{"$f":"'Population at Risk'!Z69/'Population at Risk'!Z$5","v":3.1572881552144383E-2},{"$f":"'Population at Risk'!AA69/'Population at Risk'!AA$5","v":2.7625165770458503E-2},{"$f":"'Population at Risk'!AB69/'Population at Risk'!AB$5","v":3.6809024872058254E-3},{"$f":"'Population at Risk'!AC69/'Population at Risk'!AC$5","v":2.8143735360871149E-2},{"$f":"'Population at Risk'!AD69/'Population at Risk'!AD$5","v":6.4041329425328928E-3},{"$f":"'Population at Risk'!AE69/'Population at Risk'!AE$5","v":6.2266427263796146E-3},{"$f":"'Population at Risk'!AF69/'Population at Risk'!AF$5","v":3.4126976158149129E-2},{"$f":"'Population at Risk'!AG69/'Population at Risk'!AG$5","v":7.3722245153728643E-3},{"$f":"'Population at Risk'!AH69/'Population at Risk'!AH$5","v":2.2997764001736646E-2},{"$f":"'Population at Risk'!AI69/'Population at Risk'!AI$5","v":1.1220796706328437E-2},{"$f":"'Population at Risk'!AJ69/'Population at Risk'!AJ$5","v":8.4260356013210122E-3},{"$f":"'Population at Risk'!AK69/'Population at Risk'!AK$5","v":8.9854220332874967E-4},{"$f":"'Population at Risk'!AL69/'Population at Risk'!AL$5","v":2.7192893049799653E-2},{"$f":"'Population at Risk'!AM69/'Population at Risk'!AM$5","v":2.8199563030440321E-2},{"$f":"'Population at Risk'!AN69/'Population at Risk'!AN$5","v":0},{"$f":"'Population at Risk'!AO69/'Population at Risk'!AO$5","v":0},{"$f":"'Population at Risk'!AP69/'Population at Risk'!AP$5","v":4.237511889614208E-3},{"$f":"'Population at Risk'!AQ69/'Population at Risk'!AQ$5","v":2.4789964475009238E-2},{"$f":"'Population at Risk'!AR69/'Population at Risk'!AR$5","v":1.7069827372220268E-2},{"$f":"'Population at Risk'!AS69/'Population at Risk'!AS$5","v":6.2350243477213184E-3},{"$f":"'Population at Risk'!AT69/'Population at Risk'!AT$5","v":0},{"$f":"'Population at Risk'!AU69/'Population at Risk'!AU$5","v":0},{"$f":"'Population at Risk'!AV69/'Population at Risk'!AV$5","v":1.7584522484822316E-2},{"$f":"'Population at Risk'!AW69/'Population at Risk'!AW$5","v":1.7287413397432512E-2},{"$f":"'Population at Risk'!AX69/'Population at Risk'!AX$5","v":1.4488017974951729E-2},{"$f":"'Population at Risk'!AY69/'Population at Risk'!AY$5","v":1.6790120308685388E-2},{"$f":"'Population at Risk'!AZ69/'Population at Risk'!AZ$5","v":1.1923808906683953E-2},{"$f":"'Population at Risk'!BA69/'Population at Risk'!BA$5","v":3.1250262216394285E-2},{"$f":"'Population at Risk'!BB69/'Population at Risk'!BB$5","v":1.5708413896832189E-2},{"$f":"'Population at Risk'!BC69/'Population at Risk'!BC$5","v":0},67]
[null,"Female 50-54",{"$f":"'Population at Risk'!C70/'Population at Risk'!C$5","v":6.227105293448696E-3},{"$f":"'Population at Risk'!D70/'Population at Risk'!D$5","v":5.3092583719262587E-3},{"$f":"'Population at Risk'!E70/'Population at Risk'!E$5","v":1.9875216669731854E-3},{"$f":"'Population at Risk'!F70/'Population at Risk'!F$5","v":3.9279353956602628E-3},{"$f":"'Population at Risk'!G70/'Population at Risk'!G$5","v":6.8084684333007796E-3},{"$f":"'Population at Risk'!H70/'Population at Risk'!H$5","v":2.5221291660970098E-2},{"$f":"'Population at Risk'!I70/'Population at Risk'!I$5","v":6.0427548744435688E-3},{"$f":"'Population at Risk'!J70/'Population at Risk'!J$5","v":1.5445206161717582E-2},{"$f":"'Population at Risk'!K70/'Population at Risk'!K$5","v":1.9535984033228572E-2},{"$f":"'Population at Risk'!L70/'Population at Risk'!L$5","v":8.2232312475642739E-3},{"$f":"'Population at Risk'!M70/'Population at Risk'!M$5","v":8.2232312475642739E-3},{"$f":"'Population at Risk'!N70/'Population at Risk'!N$5","v":2.7566674207092669E-2},{"$f":"'Population at Risk'!O70/'Population at Risk'!O$5","v":2.6544652589698362E-2},{"$f":"'Population at Risk'!P70/'Population at Risk'!P$5","v":6.0948184143032932E-3},{"$f":"'Population at Risk'!Q70/'Population at Risk'!Q$5","v":3.4896620039067709E-3},{"$f":"'Population at Risk'!R70/'Population at Risk'!R$5","v":8.2276309290438294E-3},{"$f":"'Population at Risk'!S70/'Population at Risk'!S$5","v":1.3249861250609481E-2},{"$f":"'Population at Risk'!T70/'Population at Risk'!T$5","v":1.0112082790327478E-2},{"$f":"'Population at Risk'!U70/'Population at Risk'!U$5","v":0},{"$f":"'Population at Risk'!V70/'Population at Risk'!V$5","v":1.0376993244696686E-2},{"$f":"'Population at Risk'!W70/'Population at Risk'!W$5","v":1.7312359814019889E-2},{"$f":"'Population at Risk'!X70/'Population at Risk'!X$5","v":1.7312359814019889E-2},{"$f":"'Population at Risk'!Y70/'Population at Risk'!Y$5","v":1.2847851077979363E-2},{"$f":"'Population at Risk'!Z70/'Population at Risk'!Z$5","v":3.3120690375842005E-2},{"$f":"'Population at Risk'!AA70/'Population at Risk'!AA$5","v":2.8277083366922216E-2},{"$f":"'Population at Risk'!AB70/'Population at Risk'!AB$5","v":3.775399983821134E-3},{"$f":"'Population at Risk'!AC70/'Population at Risk'!AC$5","v":2.8995530139152549E-2},{"$f":"'Population at Risk'!AD70/'Population at Risk'!AD$5","v":5.9968029320537682E-3},{"$f":"'Population at Risk'!AE70/'Population at Risk'!AE$5","v":5.7366773970907265E-3},{"$f":"'Population at Risk'!AF70/'Population at Risk'!AF$5","v":3.3618756111117865E-2},{"$f":"'Population at Risk'!AG70/'Population at Risk'!AG$5","v":6.7921150453107374E-3},{"$f":"'Population at Risk'!AH70/'Population at Risk'!AH$5","v":2.3169924430944906E-2},{"$f":"'Population at Risk'!AI70/'Population at Risk'!AI$5","v":1.0459667788080225E-2},{"$f":"'Population at Risk'!AJ70/'Population at Risk'!AJ$5","v":8.5610682231370538E-3},{"$f":"'Population at Risk'!AK70/'Population at Risk'!AK$5","v":8.664514103527229E-4},{"$f":"'Population at Risk'!AL70/'Population at Risk'!AL$5","v":2.8218072806625277E-2},{"$f":"'Population at Risk'!AM70/'Population at Risk'!AM$5","v":2.8610098837610384E-2},{"$f":"'Population at Risk'!AN70/'Population at Risk'!AN$5","v":0},{"$f":"'Population at Risk'!AO70/'Population at Risk'!AO$5","v":0},{"$f":"'Population at Risk'!AP70/'Population at Risk'!AP$5","v":4.5921153950212552E-3},{"$f":"'Population at Risk'!AQ70/'Population at Risk'!AQ$5","v":2.3746593567430266E-2},{"$f":"'Population at Risk'!AR70/'Population at Risk'!AR$5","v":1.7290619843014349E-2},{"$f":"'Population at Risk'!AS70/'Population at Risk'!AS$5","v":6.0427548744435688E-3},{"$f":"'Population at Risk'!AT70/'Population at Risk'!AT$5","v":0},{"$f":"'Population at Risk'!AU70/'Population at Risk'!AU$5","v":0},{"$f":"'Population at Risk'!AV70/'Population at Risk'!AV$5","v":1.6674152110948678E-2},{"$f":"'Population at Risk'!AW70/'Population at Risk'!AW$5","v":1.7216213177508984E-2},{"$f":"'Population at Risk'!AX70/'Population at Risk'!AX$5","v":1.2726729515251717E-2},{"$f":"'Population at Risk'!AY70/'Population at Risk'!AY$5","v":1.7536347877960295E-2},{"$f":"'Population at Risk'!AZ70/'Population at Risk'!AZ$5","v":1.308896648934622E-2},{"$f":"'Population at Risk'!BA70/'Population at Risk'!BA$5","v":3.2227543143888801E-2},{"$f":"'Population at Risk'!BB70/'Population at Risk'!BB$5","v":1.5693295115410792E-2},{"$f":"'Population at Risk'!BC70/'Population at Risk'!BC$5","v":0},68]
[null,"Female 55-59",{"$f":"'Population at Risk'!C71/'Population at Risk'!C$5","v":4.9222305073272675E-3},{"$f":"'Population at Risk'!D71/'Population at Risk'!D$5","v":4.1929712598842254E-3},{"$f":"'Population at Risk'!E71/'Population at Risk'!E$5","v":1.5648880783911E-3},{"$f":"'Population at Risk'!F71/'Population at Risk'!F$5","v":3.3533547149035871E-3},{"$f":"'Population at Risk'!G71/'Population at Risk'!G$5","v":5.9695883556759987E-3},{"$f":"'Population at Risk'!H71/'Population at Risk'!H$5","v":2.0253449462928529E-2},{"$f":"'Population at Risk'!I71/'Population at Risk'!I$5","v":4.9067386006970493E-3},{"$f":"'Population at Risk'!J71/'Population at Risk'!J$5","v":1.3055022365593522E-2},{"$f":"'Population at Risk'!K71/'Population at Risk'!K$5","v":1.640888717345209E-2},{"$f":"'Population at Risk'!L71/'Population at Risk'!L$5","v":6.1158750113070757E-3},{"$f":"'Population at Risk'!M71/'Population at Risk'!M$5","v":6.1158750113070757E-3},{"$f":"'Population at Risk'!N71/'Population at Risk'!N$5","v":2.2587859889754165E-2},{"$f":"'Population at Risk'!O71/'Population at Risk'!O$5","v":1.9690219425126703E-2},{"$f":"'Population at Risk'!P71/'Population at Risk'!P$5","v":5.5835034048067021E-3},{"$f":"'Population at Risk'!Q71/'Population at Risk'!Q$5","v":3.5038050419425354E-3},{"$f":"'Population at Risk'!R71/'Population at Risk'!R$5","v":5.6968622950313054E-3},{"$f":"'Population at Risk'!S71/'Population at Risk'!S$5","v":1.1255534659969249E-2},{"$f":"'Population at Risk'!T71/'Population at Risk'!T$5","v":9.130964000882421E-3},{"$f":"'Population at Risk'!U71/'Population at Risk'!U$5","v":0},{"$f":"'Population at Risk'!V71/'Population at Risk'!V$5","v":8.6689606552323249E-3},{"$f":"'Population at Risk'!W71/'Population at Risk'!W$5","v":1.4025119197893917E-2},{"$f":"'Population at Risk'!X71/'Population at Risk'!X$5","v":1.4025119197893917E-2},{"$f":"'Population at Risk'!Y71/'Population at Risk'!Y$5","v":1.079872319234431E-2},{"$f":"'Population at Risk'!Z71/'Population at Risk'!Z$5","v":2.627376263447255E-2},{"$f":"'Population at Risk'!AA71/'Population at Risk'!AA$5","v":2.301572754694986E-2},{"$f":"'Population at Risk'!AB71/'Population at Risk'!AB$5","v":2.9804738815757586E-3},{"$f":"'Population at Risk'!AC71/'Population at Risk'!AC$5","v":2.3365121344576596E-2},{"$f":"'Population at Risk'!AD71/'Population at Risk'!AD$5","v":5.1067324051427788E-3},{"$f":"'Population at Risk'!AE71/'Population at Risk'!AE$5","v":4.8252500989105366E-3},{"$f":"'Population at Risk'!AF71/'Population at Risk'!AF$5","v":2.9401613295366214E-2},{"$f":"'Population at Risk'!AG71/'Population at Risk'!AG$5","v":5.7130027584988584E-3},{"$f":"'Population at Risk'!AH71/'Population at Risk'!AH$5","v":1.9323655798276003E-2},{"$f":"'Population at Risk'!AI71/'Population at Risk'!AI$5","v":9.2281694751821484E-3},{"$f":"'Population at Risk'!AJ71/'Population at Risk'!AJ$5","v":7.6696651565252476E-3},{"$f":"'Population at Risk'!AK71/'Population at Risk'!AK$5","v":6.7616751021723736E-4},{"$f":"'Population at Risk'!AL71/'Population at Risk'!AL$5","v":2.3021501361219124E-2},{"$f":"'Population at Risk'!AM71/'Population at Risk'!AM$5","v":2.3155753271863207E-2},{"$f":"'Population at Risk'!AN71/'Population at Risk'!AN$5","v":0},{"$f":"'Population at Risk'!AO71/'Population at Risk'!AO$5","v":0},{"$f":"'Population at Risk'!AP71/'Population at Risk'!AP$5","v":3.7845562462532445E-3},{"$f":"'Population at Risk'!AQ71/'Population at Risk'!AQ$5","v":2.0000023209385695E-2},{"$f":"'Population at Risk'!AR71/'Population at Risk'!AR$5","v":1.417402109017315E-2},{"$f":"'Population at Risk'!AS71/'Population at Risk'!AS$5","v":4.9067386006970493E-3},{"$f":"'Population at Risk'!AT71/'Population at Risk'!AT$5","v":0},{"$f":"'Population at Risk'!AU71/'Population at Risk'!AU$5","v":0},{"$f":"'Population at Risk'!AV71/'Population at Risk'!AV$5","v":1.5011933622851593E-2},{"$f":"'Population at Risk'!AW71/'Population at Risk'!AW$5","v":1.5067435091918843E-2},{"$f":"'Population at Risk'!AX71/'Population at Risk'!AX$5","v":1.0826252326755015E-2},{"$f":"'Population at Risk'!AY71/'Population at Risk'!AY$5","v":1.4318815521786361E-2},{"$f":"'Population at Risk'!AZ71/'Population at Risk'!AZ$5","v":1.0783819161865962E-2},{"$f":"'Population at Risk'!BA71/'Population at Risk'!BA$5","v":2.5672020951109976E-2},{"$f":"'Population at Risk'!BB71/'Population at Risk'!BB$5","v":1.289473684695918E-2},{"$f":"'Population at Risk'!BC71/'Population at Risk'!BC$5","v":0},69]
[null,"Female 60-64",{"$f":"'Population at Risk'!C72/'Population at Risk'!C$5","v":4.0032928340554491E-3},{"$f":"'Population at Risk'!D72/'Population at Risk'!D$5","v":3.3843268026208391E-3},{"$f":"'Population at Risk'!E72/'Population at Risk'!E$5","v":1.2302579232634436E-3},{"$f":"'Population at Risk'!F72/'Population at Risk'!F$5","v":2.6955812900571145E-3},{"$f":"'Population at Risk'!G72/'Population at Risk'!G$5","v":5.3538909019515673E-3},{"$f":"'Population at Risk'!H72/'Population at Risk'!H$5","v":1.8338352018184456E-2},{"$f":"'Population at Risk'!I72/'Population at Risk'!I$5","v":4.6802737422033391E-3},{"$f":"'Population at Risk'!J72/'Population at Risk'!J$5","v":9.9906099300769591E-3},{"$f":"'Population at Risk'!K72/'Population at Risk'!K$5","v":1.3236763400063977E-2},{"$f":"'Population at Risk'!L72/'Population at Risk'!L$5","v":5.4947314554712016E-3},{"$f":"'Population at Risk'!M72/'Population at Risk'!M$5","v":5.4947314554712016E-3},{"$f":"'Population at Risk'!N72/'Population at Risk'!N$5","v":1.7999912314783127E-2},{"$f":"'Population at Risk'!O72/'Population at Risk'!O$5","v":1.7873377411924952E-2},{"$f":"'Population at Risk'!P72/'Population at Risk'!P$5","v":4.292976674450436E-3},{"$f":"'Population at Risk'!Q72/'Population at Risk'!Q$5","v":2.480796270572452E-3},{"$f":"'Population at Risk'!R72/'Population at Risk'!R$5","v":5.0249246910019718E-3},{"$f":"'Population at Risk'!S72/'Population at Risk'!S$5","v":9.1143551792746708E-3},{"$f":"'Population at Risk'!T72/'Population at Risk'!T$5","v":6.8294122410865613E-3},{"$f":"'Population at Risk'!U72/'Population at Risk'!U$5","v":0},{"$f":"'Population at Risk'!V72/'Population at Risk'!V$5","v":7.3448504768221659E-3},{"$f":"'Population at Risk'!W72/'Population at Risk'!W$5","v":1.1960915227639701E-2},{"$f":"'Population at Risk'!X72/'Population at Risk'!X$5","v":1.1960915227639701E-2},{"$f":"'Population at Risk'!Y72/'Population at Risk'!Y$5","v":8.687542455802293E-3},{"$f":"'Population at Risk'!Z72/'Population at Risk'!Z$5","v":2.0222516576042855E-2},{"$f":"'Population at Risk'!AA72/'Population at Risk'!AA$5","v":1.8571765296743266E-2},{"$f":"'Population at Risk'!AB72/'Population at Risk'!AB$5","v":2.4816670493894972E-3},{"$f":"'Population at Risk'!AC72/'Population at Risk'!AC$5","v":1.828712160494491E-2},{"$f":"'Population at Risk'!AD72/'Population at Risk'!AD$5","v":4.7059333801112756E-3},{"$f":"'Population at Risk'!AE72/'Population at Risk'!AE$5","v":4.4979560030542019E-3},{"$f":"'Population at Risk'!AF72/'Population at Risk'!AF$5","v":2.4256912948354394E-2},{"$f":"'Population at Risk'!AG72/'Population at Risk'!AG$5","v":5.3254928814688973E-3},{"$f":"'Population at Risk'!AH72/'Population at Risk'!AH$5","v":1.6711462912775338E-2},{"$f":"'Population at Risk'!AI72/'Population at Risk'!AI$5","v":7.1148891652595874E-3},{"$f":"'Population at Risk'!AJ72/'Population at Risk'!AJ$5","v":5.739878439722121E-3},{"$f":"'Population at Risk'!AK72/'Population at Risk'!AK$5","v":1.0877477338277295E-3},{"$f":"'Population at Risk'!AL72/'Population at Risk'!AL$5","v":2.0685306169540077E-2},{"$f":"'Population at Risk'!AM72/'Population at Risk'!AM$5","v":1.9848714860031719E-2},{"$f":"'Population at Risk'!AN72/'Population at Risk'!AN$5","v":0},{"$f":"'Population at Risk'!AO72/'Population at Risk'!AO$5","v":0},{"$f":"'Population at Risk'!AP72/'Population at Risk'!AP$5","v":3.4434589021703345E-3},{"$f":"'Population at Risk'!AQ72/'Population at Risk'!AQ$5","v":1.5232927538183054E-2},{"$f":"'Population at Risk'!AR72/'Population at Risk'!AR$5","v":1.1654230581123004E-2},{"$f":"'Population at Risk'!AS72/'Population at Risk'!AS$5","v":4.6802737422033391E-3},{"$f":"'Population at Risk'!AT72/'Population at Risk'!AT$5","v":0},{"$f":"'Population at Risk'!AU72/'Population at Risk'!AU$5","v":0},{"$f":"'Population at Risk'!AV72/'Population at Risk'!AV$5","v":1.382678096841594E-2},{"$f":"'Population at Risk'!AW72/'Population at Risk'!AW$5","v":1.3208465827331454E-2},{"$f":"'Population at Risk'!AX72/'Population at Risk'!AX$5","v":7.8334181498876439E-3},{"$f":"'Population at Risk'!AY72/'Population at Risk'!AY$5","v":1.1923024122633304E-2},{"$f":"'Population at Risk'!AZ72/'Population at Risk'!AZ$5","v":8.7337961852115165E-3},{"$f":"'Population at Risk'!BA72/'Population at Risk'!BA$5","v":2.1924280666276403E-2},{"$f":"'Population at Risk'!BB72/'Population at Risk'!BB$5","v":1.0817174519307325E-2},{"$f":"'Population at Risk'!BC72/'Population at Risk'!BC$5","v":0},70]
[null,"Female 65-69",{"$f":"'Population at Risk'!C73/'Population at Risk'!C$5","v":2.5702349737934268E-3},{"$f":"'Population at Risk'!D73/'Population at Risk'!D$5","v":2.1773644709656825E-3},{"$f":"'Population at Risk'!E73/'Population at Risk'!E$5","v":7.9729676601817193E-4},{"$f":"'Population at Risk'!F73/'Population at Risk'!F$5","v":1.6699202716799694E-3},{"$f":"'Population at Risk'!G73/'Population at Risk'!G$5","v":4.1703261632865217E-3},{"$f":"'Population at Risk'!H73/'Population at Risk'!H$5","v":1.2141729060258176E-2},{"$f":"'Population at Risk'!I73/'Population at Risk'!I$5","v":3.3625101418212843E-3},{"$f":"'Population at Risk'!J73/'Population at Risk'!J$5","v":7.4044913393470756E-3},{"$f":"'Population at Risk'!K73/'Population at Risk'!K$5","v":1.0086860829586951E-2},{"$f":"'Population at Risk'!L73/'Population at Risk'!L$5","v":3.2861820874259162E-3},{"$f":"'Population at Risk'!M73/'Population at Risk'!M$5","v":3.2861820874259162E-3},{"$f":"'Population at Risk'!N73/'Population at Risk'!N$5","v":1.243476707086081E-2},{"$f":"'Population at Risk'!O73/'Population at Risk'!O$5","v":1.206346705008087E-2},{"$f":"'Population at Risk'!P73/'Population at Risk'!P$5","v":2.6806261024425243E-3},{"$f":"'Population at Risk'!Q73/'Population at Risk'!Q$5","v":1.8062069993579029E-3},{"$f":"'Population at Risk'!R73/'Population at Risk'!R$5","v":3.4994129658871449E-3},{"$f":"'Population at Risk'!S73/'Population at Risk'!S$5","v":6.292708744354736E-3},{"$f":"'Population at Risk'!T73/'Population at Risk'!T$5","v":4.575359181768459E-3},{"$f":"'Population at Risk'!U73/'Population at Risk'!U$5","v":0},{"$f":"'Population at Risk'!V73/'Population at Risk'!V$5","v":5.1246474518624342E-3},{"$f":"'Population at Risk'!W73/'Population at Risk'!W$5","v":8.3292054608995834E-3},{"$f":"'Population at Risk'!X73/'Population at Risk'!X$5","v":8.3292054608995834E-3},{"$f":"'Population at Risk'!Y73/'Population at Risk'!Y$5","v":6.2486352358866347E-3},{"$f":"'Population at Risk'!Z73/'Population at Risk'!Z$5","v":1.2563633048330865E-2},{"$f":"'Population at Risk'!AA73/'Population at Risk'!AA$5","v":1.1952617363733899E-2},{"$f":"'Population at Risk'!AB73/'Population at Risk'!AB$5","v":1.589828219031146E-3},{"$f":"'Population at Risk'!AC73/'Population at Risk'!AC$5","v":1.1622625653550395E-2},{"$f":"'Population at Risk'!AD73/'Population at Risk'!AD$5","v":3.01430500995347E-3},{"$f":"'Population at Risk'!AE73/'Population at Risk'!AE$5","v":2.6222441967786443E-3},{"$f":"'Population at Risk'!AF73/'Population at Risk'!AF$5","v":1.684349004423134E-2},{"$f":"'Population at Risk'!AG73/'Population at Risk'!AG$5","v":3.1046863939832793E-3},{"$f":"'Population at Risk'!AH73/'Population at Risk'!AH$5","v":1.1045244423412967E-2},{"$f":"'Population at Risk'!AI73/'Population at Risk'!AI$5","v":4.8649699661492364E-3},{"$f":"'Population at Risk'!AJ73/'Population at Risk'!AJ$5","v":4.4709848724283768E-3},{"$f":"'Population at Risk'!AK73/'Population at Risk'!AK$5","v":6.5136500857759664E-4},{"$f":"'Population at Risk'!AL73/'Population at Risk'!AL$5","v":1.4029584972158652E-2},{"$f":"'Population at Risk'!AM73/'Population at Risk'!AM$5","v":1.3029101111836834E-2},{"$f":"'Population at Risk'!AN73/'Population at Risk'!AN$5","v":0},{"$f":"'Population at Risk'!AO73/'Population at Risk'!AO$5","v":0},{"$f":"'Population at Risk'!AP73/'Population at Risk'!AP$5","v":2.0468141664244936E-3},{"$f":"'Population at Risk'!AQ73/'Population at Risk'!AQ$5","v":1.0161701421637625E-2},{"$f":"'Population at Risk'!AR73/'Population at Risk'!AR$5","v":7.6686876208379388E-3},{"$f":"'Population at Risk'!AS73/'Population at Risk'!AS$5","v":3.3625101418212843E-3},{"$f":"'Population at Risk'!AT73/'Population at Risk'!AT$5","v":0},{"$f":"'Population at Risk'!AU73/'Population at Risk'!AU$5","v":0},{"$f":"'Population at Risk'!AV73/'Population at Risk'!AV$5","v":8.2058254874535271E-3},{"$f":"'Population at Risk'!AW73/'Population at Risk'!AW$5","v":8.8201825902815226E-3},{"$f":"'Population at Risk'!AX73/'Population at Risk'!AX$5","v":5.6219553411956382E-3},{"$f":"'Population at Risk'!AY73/'Population at Risk'!AY$5","v":8.1628146085093826E-3},{"$f":"'Population at Risk'!AZ73/'Population at Risk'!AZ$5","v":5.8572092257548414E-3},{"$f":"'Population at Risk'!BA73/'Population at Risk'!BA$5","v":1.3824950091416252E-2},{"$f":"'Population at Risk'!BB73/'Population at Risk'!BB$5","v":7.3266280485003946E-3},{"$f":"'Population at Risk'!BC73/'Population at Risk'!BC$5","v":0},71]
[null,"Female 70-74",{"$f":"'Population at Risk'!C74/'Population at Risk'!C$5","v":1.8079839153890037E-3},{"$f":"'Population at Risk'!D74/'Population at Risk'!D$5","v":1.5220814492274389E-3},{"$f":"'Population at Risk'!E74/'Population at Risk'!E$5","v":5.4516018189276717E-4},{"$f":"'Population at Risk'!F74/'Population at Risk'!F$5","v":1.4377388435319522E-3},{"$f":"'Population at Risk'!G74/'Population at Risk'!G$5","v":3.0767739693580557E-3},{"$f":"'Population at Risk'!H74/'Population at Risk'!H$5","v":9.504092522964783E-3},{"$f":"'Population at Risk'!I74/'Population at Risk'!I$5","v":2.5959275188153956E-3},{"$f":"'Population at Risk'!J74/'Population at Risk'!J$5","v":5.7157477005486193E-3},{"$f":"'Population at Risk'!K74/'Population at Risk'!K$5","v":7.5651456221902131E-3},{"$f":"'Population at Risk'!L74/'Population at Risk'!L$5","v":3.429539024125705E-3},{"$f":"'Population at Risk'!M74/'Population at Risk'!M$5","v":3.429539024125705E-3},{"$f":"'Population at Risk'!N74/'Population at Risk'!N$5","v":8.9770209901165465E-3},{"$f":"'Population at Risk'!O74/'Population at Risk'!O$5","v":9.3217699932443068E-3},{"$f":"'Population at Risk'!P74/'Population at Risk'!P$5","v":1.8600262751642005E-3},{"$f":"'Population at Risk'!Q74/'Population at Risk'!Q$5","v":1.5405883229817406E-3},{"$f":"'Population at Risk'!R74/'Population at Risk'!R$5","v":2.5082497558959883E-3},{"$f":"'Population at Risk'!S74/'Population at Risk'!S$5","v":4.8511902476332793E-3},{"$f":"'Population at Risk'!T74/'Population at Risk'!T$5","v":3.3280911395850948E-3},{"$f":"'Population at Risk'!U74/'Population at Risk'!U$5","v":0},{"$f":"'Population at Risk'!V74/'Population at Risk'!V$5","v":3.7063581723714547E-3},{"$f":"'Population at Risk'!W74/'Population at Risk'!W$5","v":6.6022253009895178E-3},{"$f":"'Population at Risk'!X74/'Population at Risk'!X$5","v":6.6022253009895178E-3},{"$f":"'Population at Risk'!Y74/'Population at Risk'!Y$5","v":4.6748010994936634E-3},{"$f":"'Population at Risk'!Z74/'Population at Risk'!Z$5","v":1.0346972516604602E-2},{"$f":"'Population at Risk'!AA74/'Population at Risk'!AA$5","v":9.519543085061621E-3},{"$f":"'Population at Risk'!AB74/'Population at Risk'!AB$5","v":1.0874767530536205E-3},{"$f":"'Population at Risk'!AC74/'Population at Risk'!AC$5","v":9.2771339466786937E-3},{"$f":"'Population at Risk'!AD74/'Population at Risk'!AD$5","v":2.3109671742976606E-3},{"$f":"'Population at Risk'!AE74/'Population at Risk'!AE$5","v":2.0524726182193339E-3},{"$f":"'Population at Risk'!AF74/'Population at Risk'!AF$5","v":1.2701119765410808E-2},{"$f":"'Population at Risk'!AG74/'Population at Risk'!AG$5","v":2.4300878688708633E-3},{"$f":"'Population at Risk'!AH74/'Population at Risk'!AH$5","v":8.7565696777994872E-3},{"$f":"'Population at Risk'!AI74/'Population at Risk'!AI$5","v":3.6654392035032793E-3},{"$f":"'Population at Risk'!AJ74/'Population at Risk'!AJ$5","v":3.3917816273594582E-3},{"$f":"'Population at Risk'!AK74/'Population at Risk'!AK$5","v":2.8497219125269856E-4},{"$f":"'Population at Risk'!AL74/'Population at Risk'!AL$5","v":1.0932671951073804E-2},{"$f":"'Population at Risk'!AM74/'Population at Risk'!AM$5","v":1.0680989505534056E-2},{"$f":"'Population at Risk'!AN74/'Population at Risk'!AN$5","v":0},{"$f":"'Population at Risk'!AO74/'Population at Risk'!AO$5","v":0},{"$f":"'Population at Risk'!AP74/'Population at Risk'!AP$5","v":1.6981809842313107E-3},{"$f":"'Population at Risk'!AQ74/'Population at Risk'!AQ$5","v":8.042236904181467E-3},{"$f":"'Population at Risk'!AR74/'Population at Risk'!AR$5","v":6.0179392157472568E-3},{"$f":"'Population at Risk'!AS74/'Population at Risk'!AS$5","v":2.5959275188153956E-3},{"$f":"'Population at Risk'!AT74/'Population at Risk'!AT$5","v":0},{"$f":"'Population at Risk'!AU74/'Population at Risk'!AU$5","v":0},{"$f":"'Population at Risk'!AV74/'Population at Risk'!AV$5","v":6.6862281749621322E-3},{"$f":"'Population at Risk'!AW74/'Population at Risk'!AW$5","v":6.6388471109645863E-3},{"$f":"'Population at Risk'!AX74/'Population at Risk'!AX$5","v":4.4867528203772879E-3},{"$f":"'Population at Risk'!AY74/'Population at Risk'!AY$5","v":6.3103677508587301E-3},{"$f":"'Population at Risk'!AZ74/'Population at Risk'!AZ$5","v":4.3859998329650058E-3},{"$f":"'Population at Risk'!BA74/'Population at Risk'!BA$5","v":9.8461323383079238E-3},{"$f":"'Population at Risk'!BB74/'Population at Risk'!BB$5","v":5.782665855033689E-3},{"$f":"'Population at Risk'!BC74/'Population at Risk'!BC$5","v":0},72]
[null,"Female 75-79",{"$f":"'Population at Risk'!C75/'Population at Risk'!C$5","v":8.3335570017389329E-4},{"$f":"'Population at Risk'!D75/'Population at Risk'!D$5","v":6.7056325092572225E-4},{"$f":"'Population at Risk'!E75/'Population at Risk'!E$5","v":2.0032694663450878E-4},{"$f":"'Population at Risk'!F75/'Population at Risk'!F$5","v":8.0700028720567937E-4},{"$f":"'Population at Risk'!G75/'Population at Risk'!G$5","v":1.4529861268944197E-3},{"$f":"'Population at Risk'!H75/'Population at Risk'!H$5","v":4.4637989626940275E-3},{"$f":"'Population at Risk'!I75/'Population at Risk'!I$5","v":9.8639554971428987E-4},{"$f":"'Population at Risk'!J75/'Population at Risk'!J$5","v":2.4279951495311072E-3},{"$f":"'Population at Risk'!K75/'Population at Risk'!K$5","v":3.1441565616993042E-3},{"$f":"'Population at Risk'!L75/'Population at Risk'!L$5","v":1.1346152987276182E-3},{"$f":"'Population at Risk'!M75/'Population at Risk'!M$5","v":1.1346152987276182E-3},{"$f":"'Population at Risk'!N75/'Population at Risk'!N$5","v":4.2799644666625201E-3},{"$f":"'Population at Risk'!O75/'Population at Risk'!O$5","v":4.3254888295519E-3},{"$f":"'Population at Risk'!P75/'Population at Risk'!P$5","v":8.5374629048385817E-4},{"$f":"'Population at Risk'!Q75/'Population at Risk'!Q$5","v":7.2300297369470531E-4},{"$f":"'Population at Risk'!R75/'Population at Risk'!R$5","v":1.2002924171009802E-3},{"$f":"'Population at Risk'!S75/'Population at Risk'!S$5","v":2.1728873867602446E-3},{"$f":"'Population at Risk'!T75/'Population at Risk'!T$5","v":1.6049146030552208E-3},{"$f":"'Population at Risk'!U75/'Population at Risk'!U$5","v":0},{"$f":"'Population at Risk'!V75/'Population at Risk'!V$5","v":2.1670125604965557E-3},{"$f":"'Population at Risk'!W75/'Population at Risk'!W$5","v":2.9501371988233513E-3},{"$f":"'Population at Risk'!X75/'Population at Risk'!X$5","v":2.9501371988233513E-3},{"$f":"'Population at Risk'!Y75/'Population at Risk'!Y$5","v":2.3389899640680525E-3},{"$f":"'Population at Risk'!Z75/'Population at Risk'!Z$5","v":5.3394738459986253E-3},{"$f":"'Population at Risk'!AA75/'Population at Risk'!AA$5","v":4.7068821301614831E-3},{"$f":"'Population at Risk'!AB75/'Population at Risk'!AB$5","v":4.7702907771053984E-4},{"$f":"'Population at Risk'!AC75/'Population at Risk'!AC$5","v":4.7719422934501422E-3},{"$f":"'Population at Risk'!AD75/'Population at Risk'!AD$5","v":1.0653232980819831E-3},{"$f":"'Population at Risk'!AE75/'Population at Risk'!AE$5","v":9.3406146325664987E-4},{"$f":"'Population at Risk'!AF75/'Population at Risk'!AF$5","v":6.5897236434242171E-3},{"$f":"'Population at Risk'!AG75/'Population at Risk'!AG$5","v":1.1059107003381172E-3},{"$f":"'Population at Risk'!AH75/'Population at Risk'!AH$5","v":3.9644527110105294E-3},{"$f":"'Population at Risk'!AI75/'Population at Risk'!AI$5","v":1.6638729986277457E-3},{"$f":"'Population at Risk'!AJ75/'Population at Risk'!AJ$5","v":1.2123206881004547E-3},{"$f":"'Population at Risk'!AK75/'Population at Risk'!AK$5","v":1.1081177644097311E-4},{"$f":"'Population at Risk'!AL75/'Population at Risk'!AL$5","v":5.1640014964110604E-3},{"$f":"'Population at Risk'!AM75/'Population at Risk'!AM$5","v":4.8076503765063375E-3},{"$f":"'Population at Risk'!AN75/'Population at Risk'!AN$5","v":0},{"$f":"'Population at Risk'!AO75/'Population at Risk'!AO$5","v":0},{"$f":"'Population at Risk'!AP75/'Population at Risk'!AP$5","v":5.8162371020124522E-4},{"$f":"'Population at Risk'!AQ75/'Population at Risk'!AQ$5","v":4.3690056790306863E-3},{"$f":"'Population at Risk'!AR75/'Population at Risk'!AR$5","v":2.8779173590704286E-3},{"$f":"'Population at Risk'!AS75/'Population at Risk'!AS$5","v":9.8639554971428987E-4},{"$f":"'Population at Risk'!AT75/'Population at Risk'!AT$5","v":0},{"$f":"'Population at Risk'!AU75/'Population at Risk'!AU$5","v":0},{"$f":"'Population at Risk'!AV75/'Population at Risk'!AV$5","v":3.1601183716618614E-3},{"$f":"'Population at Risk'!AW75/'Population at Risk'!AW$5","v":3.0339048983683281E-3},{"$f":"'Population at Risk'!AX75/'Population at Risk'!AX$5","v":1.9520787993333503E-3},{"$f":"'Population at Risk'!AY75/'Population at Risk'!AY$5","v":2.8871609900045711E-3},{"$f":"'Population at Risk'!AZ75/'Population at Risk'!AZ$5","v":2.068088149341524E-3},{"$f":"'Population at Risk'!BA75/'Population at Risk'!BA$5","v":4.6302927233847621E-3},{"$f":"'Population at Risk'!BB75/'Population at Risk'!BB$5","v":2.5006779810581082E-3},{"$f":"'Population at Risk'!BC75/'Population at Risk'!BC$5","v":0},73]
[null,"Female 80-84",{"$f":"'Population at Risk'!C76/'Population at Risk'!C$5","v":6.4816554457969484E-4},{"$f":"'Population at Risk'!D76/'Population at Risk'!D$5","v":5.3961150495369567E-4},{"$f":"'Population at Risk'!E76/'Population at Risk'!E$5","v":1.8548791355047111E-4},{"$f":"'Population at Risk'!F76/'Population at Risk'!F$5","v":4.7156040878886083E-4},{"$f":"'Population at Risk'!G76/'Population at Risk'!G$5","v":1.1805512281017161E-3},{"$f":"'Population at Risk'!H76/'Population at Risk'!H$5","v":3.2620069342764045E-3},{"$f":"'Population at Risk'!I76/'Population at Risk'!I$5","v":7.7773495265934397E-4},{"$f":"'Population at Risk'!J76/'Population at Risk'!J$5","v":1.8327827463693552E-3},{"$f":"'Population at Risk'!K76/'Population at Risk'!K$5","v":2.066581777642735E-3},{"$f":"'Population at Risk'!L76/'Population at Risk'!L$5","v":9.0649158787232985E-4},{"$f":"'Population at Risk'!M76/'Population at Risk'!M$5","v":9.0649158787232985E-4},{"$f":"'Population at Risk'!N76/'Population at Risk'!N$5","v":3.4229513195834938E-3},{"$f":"'Population at Risk'!O76/'Population at Risk'!O$5","v":3.2777723200934565E-3},{"$f":"'Population at Risk'!P76/'Population at Risk'!P$5","v":5.5592781705925652E-4},{"$f":"'Population at Risk'!Q76/'Population at Risk'!Q$5","v":4.0488166526903496E-4},{"$f":"'Population at Risk'!R76/'Population at Risk'!R$5","v":1.0351145615366251E-3},{"$f":"'Population at Risk'!S76/'Population at Risk'!S$5","v":1.6490227230501501E-3},{"$f":"'Population at Risk'!T76/'Population at Risk'!T$5","v":1.2712525234179605E-3},{"$f":"'Population at Risk'!U76/'Population at Risk'!U$5","v":0},{"$f":"'Population at Risk'!V76/'Population at Risk'!V$5","v":1.548475510748523E-3},{"$f":"'Population at Risk'!W76/'Population at Risk'!W$5","v":2.131014855706831E-3},{"$f":"'Population at Risk'!X76/'Population at Risk'!X$5","v":2.131014855706831E-3},{"$f":"'Population at Risk'!Y76/'Population at Risk'!Y$5","v":1.7135643867194209E-3},{"$f":"'Population at Risk'!Z76/'Population at Risk'!Z$5","v":4.2266920043887461E-3},{"$f":"'Population at Risk'!AA76/'Population at Risk'!AA$5","v":3.6893073347694953E-3},{"$f":"'Population at Risk'!AB76/'Population at Risk'!AB$5","v":3.8690632035805997E-4},{"$f":"'Population at Risk'!AC76/'Population at Risk'!AC$5","v":3.7829354598621708E-3},{"$f":"'Population at Risk'!AD76/'Population at Risk'!AD$5","v":8.2308597113424625E-4},{"$f":"'Population at Risk'!AE76/'Population at Risk'!AE$5","v":7.0142728750216348E-4},{"$f":"'Population at Risk'!AF76/'Population at Risk'!AF$5","v":5.2472100383058337E-3},{"$f":"'Population at Risk'!AG76/'Population at Risk'!AG$5","v":8.3047633723503907E-4},{"$f":"'Population at Risk'!AH76/'Population at Risk'!AH$5","v":3.0231893369499223E-3},{"$f":"'Population at Risk'!AI76/'Population at Risk'!AI$5","v":1.3100725432694765E-3},{"$f":"'Population at Risk'!AJ76/'Population at Risk'!AJ$5","v":1.2682739506281681E-3},{"$f":"'Population at Risk'!AK76/'Population at Risk'!AK$5","v":1.1081177644097311E-4},{"$f":"'Population at Risk'!AL76/'Population at Risk'!AL$5","v":3.632943640577104E-3},{"$f":"'Population at Risk'!AM76/'Population at Risk'!AM$5","v":3.6197916662968409E-3},{"$f":"'Population at Risk'!AN76/'Population at Risk'!AN$5","v":0},{"$f":"'Population at Risk'!AO76/'Population at Risk'!AO$5","v":0},{"$f":"'Population at Risk'!AP76/'Population at Risk'!AP$5","v":6.673366780203761E-4},{"$f":"'Population at Risk'!AQ76/'Population at Risk'!AQ$5","v":3.5891518469698853E-3},{"$f":"'Population at Risk'!AR76/'Population at Risk'!AR$5","v":2.2219723533088436E-3},{"$f":"'Population at Risk'!AS76/'Population at Risk'!AS$5","v":7.7773495265934397E-4},{"$f":"'Population at Risk'!AT76/'Population at Risk'!AT$5","v":0},{"$f":"'Population at Risk'!AU76/'Population at Risk'!AU$5","v":0},{"$f":"'Population at Risk'!AV76/'Population at Risk'!AV$5","v":2.40731530406702E-3},{"$f":"'Population at Risk'!AW76/'Population at Risk'!AW$5","v":2.3602501640466729E-3},{"$f":"'Population at Risk'!AX76/'Population at Risk'!AX$5","v":1.677414445658306E-3},{"$f":"'Population at Risk'!AY76/'Population at Risk'!AY$5","v":2.1820612269284039E-3},{"$f":"'Population at Risk'!AZ76/'Population at Risk'!AZ$5","v":1.648830279065924E-3},{"$f":"'Population at Risk'!BA76/'Population at Risk'!BA$5","v":3.5158832882650395E-3},{"$f":"'Population at Risk'!BB76/'Population at Risk'!BB$5","v":1.8585414640014332E-3},{"$f":"'Population at Risk'!BC76/'Population at Risk'!BC$5","v":0},74]
[null,"Female 85-89",{"$f":"'Population at Risk'!C77/'Population at Risk'!C$5","v":4.9726986224368124E-4},{"$f":"'Population at Risk'!D77/'Population at Risk'!D$5","v":4.064019702580135E-4},{"$f":"'Population at Risk'!E77/'Population at Risk'!E$5","v":1.2984153948532979E-4},{"$f":"'Population at Risk'!F77/'Population at Risk'!F$5","v":2.9168685079723349E-4},{"$f":"'Population at Risk'!G77/'Population at Risk'!G$5","v":8.6775560356194511E-4},{"$f":"'Population at Risk'!H77/'Population at Risk'!H$5","v":2.0036370343910689E-3},{"$f":"'Population at Risk'!I77/'Population at Risk'!I$5","v":5.5958978301099132E-4},{"$f":"'Population at Risk'!J77/'Population at Risk'!J$5","v":9.7237669823454533E-4},{"$f":"'Population at Risk'!K77/'Population at Risk'!K$5","v":1.2989942602325765E-3},{"$f":"'Population at Risk'!L77/'Population at Risk'!L$5","v":6.0632881043116104E-4},{"$f":"'Population at Risk'!M77/'Population at Risk'!M$5","v":6.0632881043116104E-4},{"$f":"'Population at Risk'!N77/'Population at Risk'!N$5","v":2.2547607798150586E-3},{"$f":"'Population at Risk'!O77/'Population at Risk'!O$5","v":2.2300558106350121E-3},{"$f":"'Population at Risk'!P77/'Population at Risk'!P$5","v":3.2760032076706189E-4},{"$f":"'Population at Risk'!Q77/'Population at Risk'!Q$5","v":2.0244083263451748E-4},{"$f":"'Population at Risk'!R77/'Population at Risk'!R$5","v":4.8452170965544158E-4},{"$f":"'Population at Risk'!S77/'Population at Risk'!S$5","v":9.9331994823325461E-4},{"$f":"'Population at Risk'!T77/'Population at Risk'!T$5","v":8.4916999267682679E-4},{"$f":"'Population at Risk'!U77/'Population at Risk'!U$5","v":0},{"$f":"'Population at Risk'!V77/'Population at Risk'!V$5","v":9.2567268824360739E-4},{"$f":"'Population at Risk'!W77/'Population at Risk'!W$5","v":1.3075699672440496E-3},{"$f":"'Population at Risk'!X77/'Population at Risk'!X$5","v":1.3075699672440496E-3},{"$f":"'Population at Risk'!Y77/'Population at Risk'!Y$5","v":9.7118931116738701E-4},{"$f":"'Population at Risk'!Z77/'Population at Risk'!Z$5","v":2.4635695555340676E-3},{"$f":"'Population at Risk'!AA77/'Population at Risk'!AA$5","v":2.1705649786174829E-3},{"$f":"'Population at Risk'!AB77/'Population at Risk'!AB$5","v":2.9212204107355533E-4},{"$f":"'Population at Risk'!AC77/'Population at Risk'!AC$5","v":2.2432957791656142E-3},{"$f":"'Population at Risk'!AD77/'Population at Risk'!AD$5","v":5.4177810758203543E-4},{"$f":"'Population at Risk'!AE77/'Population at Risk'!AE$5","v":4.300207491219294E-4},{"$f":"'Population at Risk'!AF77/'Population at Risk'!AF$5","v":3.1676301401812809E-3},{"$f":"'Population at Risk'!AG77/'Population at Risk'!AG$5","v":5.0913624694811439E-4},{"$f":"'Population at Risk'!AH77/'Population at Risk'!AH$5","v":1.7438142508912294E-3},{"$f":"'Population at Risk'!AI77/'Population at Risk'!AI$5","v":7.6825241734938441E-4},{"$f":"'Population at Risk'!AJ77/'Population at Risk'!AJ$5","v":6.7143915033255957E-4},{"$f":"'Population at Risk'!AK77/'Population at Risk'!AK$5","v":8.8649421152778488E-5},{"$f":"'Population at Risk'!AL77/'Population at Risk'!AL$5","v":2.0045352852392545E-3},{"$f":"'Population at Risk'!AM77/'Population at Risk'!AM$5","v":2.1850734298915434E-3},{"$f":"'Population at Risk'!AN77/'Population at Risk'!AN$5","v":0},{"$f":"'Population at Risk'!AO77/'Population at Risk'!AO$5","v":0},{"$f":"'Population at Risk'!AP77/'Population at Risk'!AP$5","v":3.1836245189962898E-4},{"$f":"'Population at Risk'!AQ77/'Population at Risk'!AQ$5","v":2.0659285726522978E-3},{"$f":"'Population at Risk'!AR77/'Population at Risk'!AR$5","v":1.3336946941997928E-3},{"$f":"'Population at Risk'!AS77/'Population at Risk'!AS$5","v":5.5958978301099132E-4},{"$f":"'Population at Risk'!AT77/'Population at Risk'!AT$5","v":0},{"$f":"'Population at Risk'!AU77/'Population at Risk'!AU$5","v":0},{"$f":"'Population at Risk'!AV77/'Population at Risk'!AV$5","v":1.5966043081956525E-3},{"$f":"'Population at Risk'!AW77/'Population at Risk'!AW$5","v":1.2637172753333229E-3},{"$f":"'Population at Risk'!AX77/'Population at Risk'!AX$5","v":7.553269726063717E-4},{"$f":"'Population at Risk'!AY77/'Population at Risk'!AY$5","v":1.3574927332313583E-3},{"$f":"'Population at Risk'!AZ77/'Population at Risk'!AZ$5","v":1.0415643952138222E-3},{"$f":"'Population at Risk'!BA77/'Population at Risk'!BA$5","v":2.5584329285142922E-3},{"$f":"'Population at Risk'!BB77/'Population at Risk'!BB$5","v":8.2485829020288325E-4},{"$f":"'Population at Risk'!BC77/'Population at Risk'!BC$5","v":0},75]
[null,"Female 90+",{"$f":"'Population at Risk'!C78/'Population at Risk'!C$5","v":2.4349076013311288E-4},{"$f":"'Population at Risk'!D78/'Population at Risk'!D$5","v":2.0094319640535111E-4},{"$f":"'Population at Risk'!E78/'Population at Risk'!E$5","v":6.677564887816959E-5},{"$f":"'Population at Risk'!F78/'Population at Risk'!F$5","v":1.7987355799162734E-4},{"$f":"'Population at Risk'!G78/'Population at Risk'!G$5","v":5.5495997902217425E-4},{"$f":"'Population at Risk'!H78/'Population at Risk'!H$5","v":1.1081458963331325E-3},{"$f":"'Population at Risk'!I78/'Population at Risk'!I$5","v":2.2762974224175918E-4},{"$f":"'Population at Risk'!J78/'Population at Risk'!J$5","v":5.8931921105123957E-4},{"$f":"'Population at Risk'!K78/'Population at Risk'!K$5","v":8.2663271105709406E-4},{"$f":"'Population at Risk'!L78/'Population at Risk'!L$5","v":2.4013022195293506E-4},{"$f":"'Population at Risk'!M78/'Population at Risk'!M$5","v":2.4013022195293506E-4},{"$f":"'Population at Risk'!N78/'Population at Risk'!N$5","v":1.2192032270945676E-3},{"$f":"'Population at Risk'!O78/'Population at Risk'!O$5","v":1.188192466033878E-3},{"$f":"'Population at Risk'!P78/'Population at Risk'!P$5","v":4.9636412237433619E-5},{"$f":"'Population at Risk'!Q78/'Population at Risk'!Q$5","v":5.7840237895576423E-5},{"$f":"'Population at Risk'!R78/'Population at Risk'!R$5","v":2.8630828297821544E-4},{"$f":"'Population at Risk'!S78/'Population at Risk'!S$5","v":5.6781070074569473E-4},{"$f":"'Population at Risk'!T78/'Population at Risk'!T$5","v":4.5211211790848735E-4},{"$f":"'Population at Risk'!U78/'Population at Risk'!U$5","v":0},{"$f":"'Population at Risk'!V78/'Population at Risk'!V$5","v":4.4364036671583037E-4},{"$f":"'Population at Risk'!W78/'Population at Risk'!W$5","v":7.6076798094199243E-4},{"$f":"'Population at Risk'!X78/'Population at Risk'!X$5","v":7.6076798094199243E-4},{"$f":"'Population at Risk'!Y78/'Population at Risk'!Y$5","v":5.1864560072813334E-4},{"$f":"'Population at Risk'!Z78/'Population at Risk'!Z$5","v":1.3278222350166669E-3},{"$f":"'Population at Risk'!AA78/'Population at Risk'!AA$5","v":1.1686652763509176E-3},{"$f":"'Population at Risk'!AB78/'Population at Risk'!AB$5","v":1.4139949860475281E-4},{"$f":"'Population at Risk'!AC78/'Population at Risk'!AC$5","v":1.1965916540810713E-3},{"$f":"'Population at Risk'!AD78/'Population at Risk'!AD$5","v":3.1516899527608795E-4},{"$f":"'Population at Risk'!AE78/'Population at Risk'!AE$5","v":2.3263417575448639E-4},{"$f":"'Population at Risk'!AF78/'Population at Risk'!AF$5","v":1.5882023694537724E-3},{"$f":"'Population at Risk'!AG78/'Population at Risk'!AG$5","v":2.7543436310307822E-4},{"$f":"'Population at Risk'!AH78/'Population at Risk'!AH$5","v":9.6107944509346164E-4},{"$f":"'Population at Risk'!AI78/'Population at Risk'!AI$5","v":4.4275599841977673E-4},{"$f":"'Population at Risk'!AJ78/'Population at Risk'!AJ$5","v":3.5437066267551755E-4},{"$f":"'Population at Risk'!AK78/'Population at Risk'!AK$5","v":2.2162355288194622E-5},{"$f":"'Population at Risk'!AL78/'Population at Risk'!AL$5","v":1.1372308351136611E-3},{"$f":"'Population at Risk'!AM78/'Population at Risk'!AM$5","v":1.134087328265857E-3},{"$f":"'Population at Risk'!AN78/'Population at Risk'!AN$5","v":0},{"$f":"'Population at Risk'!AO78/'Population at Risk'!AO$5","v":0},{"$f":"'Population at Risk'!AP78/'Population at Risk'!AP$5","v":1.6530358079403811E-4},{"$f":"'Population at Risk'!AQ78/'Population at Risk'!AQ$5","v":9.6227578108087149E-4},{"$f":"'Population at Risk'!AR78/'Population at Risk'!AR$5","v":7.255696132048708E-4},{"$f":"'Population at Risk'!AS78/'Population at Risk'!AS$5","v":2.2762974224175918E-4},{"$f":"'Population at Risk'!AT78/'Population at Risk'!AT$5","v":0},{"$f":"'Population at Risk'!AU78/'Population at Risk'!AU$5","v":0},{"$f":"'Population at Risk'!AV78/'Population at Risk'!AV$5","v":8.9343660769497654E-4},{"$f":"'Population at Risk'!AW78/'Population at Risk'!AW$5","v":7.6708130331516874E-4},{"$f":"'Population at Risk'!AX78/'Population at Risk'!AX$5","v":4.3161541291792673E-4},{"$f":"'Population at Risk'!AY78/'Population at Risk'!AY$5","v":7.6717665251642756E-4},{"$f":"'Population at Risk'!AZ78/'Population at Risk'!AZ$5","v":5.6966428113680156E-4},{"$f":"'Population at Risk'!BA78/'Population at Risk'!BA$5","v":1.6716141526795837E-3},{"$f":"'Population at Risk'!BB78/'Population at Risk'!BB$5","v":6.42136517056675E-4},{"$f":"'Population at Risk'!BC78/'Population at Risk'!BC$5","v":0},76]
[null,"Male 0-4",{"$f":"'Population at Risk'!C79/'Population at Risk'!C$5","v":0},{"$f":"'Population at Risk'!D79/'Population at Risk'!D$5","v":0},{"$f":"'Population at Risk'!E79/'Population at Risk'!E$5","v":0},{"$f":"'Population at Risk'!F79/'Population at Risk'!F$5","v":0},{"$f":"'Population at Risk'!G79/'Population at Risk'!G$5","v":0},{"$f":"'Population at Risk'!H79/'Population at Risk'!H$5","v":0},{"$f":"'Population at Risk'!I79/'Population at Risk'!I$5","v":0},{"$f":"'Population at Risk'!J79/'Population at Risk'!J$5","v":0},{"$f":"'Population at Risk'!K79/'Population at Risk'!K$5","v":0},{"$f":"'Population at Risk'!L79/'Population at Risk'!L$5","v":0},{"$f":"'Population at Risk'!M79/'Population at Risk'!M$5","v":0},{"$f":"'Population at Risk'!N79/'Population at Risk'!N$5","v":0},{"$f":"'Population at Risk'!O79/'Population at Risk'!O$5","v":0},{"$f":"'Population at Risk'!P79/'Population at Risk'!P$5","v":0},{"$f":"'Population at Risk'!Q79/'Population at Risk'!Q$5","v":0},{"$f":"'Population at Risk'!R79/'Population at Risk'!R$5","v":0},{"$f":"'Population at Risk'!S79/'Population at Risk'!S$5","v":0},{"$f":"'Population at Risk'!T79/'Population at Risk'!T$5","v":0},{"$f":"'Population at Risk'!U79/'Population at Risk'!U$5","v":0},{"$f":"'Population at Risk'!V79/'Population at Risk'!V$5","v":0},{"$f":"'Population at Risk'!W79/'Population at Risk'!W$5","v":0},{"$f":"'Population at Risk'!X79/'Population at Risk'!X$5","v":0},{"$f":"'Population at Risk'!Y79/'Population at Risk'!Y$5","v":0},{"$f":"'Population at Risk'!Z79/'Population at Risk'!Z$5","v":0},{"$f":"'Population at Risk'!AA79/'Population at Risk'!AA$5","v":0},{"$f":"'Population at Risk'!AB79/'Population at Risk'!AB$5","v":0},{"$f":"'Population at Risk'!AC79/'Population at Risk'!AC$5","v":0},{"$f":"'Population at Risk'!AD79/'Population at Risk'!AD$5","v":0},{"$f":"'Population at Risk'!AE79/'Population at Risk'!AE$5","v":0},{"$f":"'Population at Risk'!AF79/'Population at Risk'!AF$5","v":0},{"$f":"'Population at Risk'!AG79/'Population at Risk'!AG$5","v":0},{"$f":"'Population at Risk'!AH79/'Population at Risk'!AH$5","v":0},{"$f":"'Population at Risk'!AI79/'Population at Risk'!AI$5","v":0},{"$f":"'Population at Risk'!AJ79/'Population at Risk'!AJ$5","v":0},{"$f":"'Population at Risk'!AK79/'Population at Risk'!AK$5","v":0},{"$f":"'Population at Risk'!AL79/'Population at Risk'!AL$5","v":0},{"$f":"'Population at Risk'!AM79/'Population at Risk'!AM$5","v":0},{"$f":"'Population at Risk'!AN79/'Population at Risk'!AN$5","v":0},{"$f":"'Population at Risk'!AO79/'Population at Risk'!AO$5","v":0},{"$f":"'Population at Risk'!AP79/'Population at Risk'!AP$5","v":0},{"$f":"'Population at Risk'!AQ79/'Population at Risk'!AQ$5","v":0},{"$f":"'Population at Risk'!AR79/'Population at Risk'!AR$5","v":0},{"$f":"'Population at Risk'!AS79/'Population at Risk'!AS$5","v":0},{"$f":"'Population at Risk'!AT79/'Population at Risk'!AT$5","v":0},{"$f":"'Population at Risk'!AU79/'Population at Risk'!AU$5","v":0},{"$f":"'Population at Risk'!AV79/'Population at Risk'!AV$5","v":0},{"$f":"'Population at Risk'!AW79/'Population at Risk'!AW$5","v":0},{"$f":"'Population at Risk'!AX79/'Population at Risk'!AX$5","v":0},{"$f":"'Population at Risk'!AY79/'Population at Risk'!AY$5","v":0},{"$f":"'Population at Risk'!AZ79/'Population at Risk'!AZ$5","v":0},{"$f":"'Population at Risk'!BA79/'Population at Risk'!BA$5","v":0},{"$f":"'Population at Risk'!BB79/'Population at Risk'!BB$5","v":0},{"$f":"'Population at Risk'!BC79/'Population at Risk'!BC$5","v":0},77]
[null,"Male 5-9",{"$f":"'Population at Risk'!C80/'Population at Risk'!C$5","v":0},{"$f":"'Population at Risk'!D80/'Population at Risk'!D$5","v":0},{"$f":"'Population at Risk'!E80/'Population at Risk'!E$5","v":0},{"$f":"'Population at Risk'!F80/'Population at Risk'!F$5","v":0},{"$f":"'Population at Risk'!G80/'Population at Risk'!G$5","v":0},{"$f":"'Population at Risk'!H80/'Population at Risk'!H$5","v":0},{"$f":"'Population at Risk'!I80/'Population at Risk'!I$5","v":0},{"$f":"'Population at Risk'!J80/'Population at Risk'!J$5","v":0},{"$f":"'Population at Risk'!K80/'Population at Risk'!K$5","v":0},{"$f":"'Population at Risk'!L80/'Population at Risk'!L$5","v":0},{"$f":"'Population at Risk'!M80/'Population at Risk'!M$5","v":0},{"$f":"'Population at Risk'!N80/'Population at Risk'!N$5","v":0},{"$f":"'Population at Risk'!O80/'Population at Risk'!O$5","v":0},{"$f":"'Population at Risk'!P80/'Population at Risk'!P$5","v":0},{"$f":"'Population at Risk'!Q80/'Population at Risk'!Q$5","v":0},{"$f":"'Population at Risk'!R80/'Population at Risk'!R$5","v":0},{"$f":"'Population at Risk'!S80/'Population at Risk'!S$5","v":0},{"$f":"'Population at Risk'!T80/'Population at Risk'!T$5","v":0},{"$f":"'Population at Risk'!U80/'Population at Risk'!U$5","v":0},{"$f":"'Population at Risk'!V80/'Population at Risk'!V$5","v":0},{"$f":"'Population at Risk'!W80/'Population at Risk'!W$5","v":0},{"$f":"'Population at Risk'!X80/'Population at Risk'!X$5","v":0},{"$f":"'Population at Risk'!Y80/'Population at Risk'!Y$5","v":0},{"$f":"'Population at Risk'!Z80/'Population at Risk'!Z$5","v":0},{"$f":"'Population at Risk'!AA80/'Population at Risk'!AA$5","v":0},{"$f":"'Population at Risk'!AB80/'Population at Risk'!AB$5","v":0},{"$f":"'Population at Risk'!AC80/'Population at Risk'!AC$5","v":0},{"$f":"'Population at Risk'!AD80/'Population at Risk'!AD$5","v":0},{"$f":"'Population at Risk'!AE80/'Population at Risk'!AE$5","v":0},{"$f":"'Population at Risk'!AF80/'Population at Risk'!AF$5","v":0},{"$f":"'Population at Risk'!AG80/'Population at Risk'!AG$5","v":0},{"$f":"'Population at Risk'!AH80/'Population at Risk'!AH$5","v":0},{"$f":"'Population at Risk'!AI80/'Population at Risk'!AI$5","v":0},{"$f":"'Population at Risk'!AJ80/'Population at Risk'!AJ$5","v":0},{"$f":"'Population at Risk'!AK80/'Population at Risk'!AK$5","v":0},{"$f":"'Population at Risk'!AL80/'Population at Risk'!AL$5","v":0},{"$f":"'Population at Risk'!AM80/'Population at Risk'!AM$5","v":0},{"$f":"'Population at Risk'!AN80/'Population at Risk'!AN$5","v":0},{"$f":"'Population at Risk'!AO80/'Population at Risk'!AO$5","v":0},{"$f":"'Population at Risk'!AP80/'Population at Risk'!AP$5","v":0},{"$f":"'Population at Risk'!AQ80/'Population at Risk'!AQ$5","v":0},{"$f":"'Population at Risk'!AR80/'Population at Risk'!AR$5","v":0},{"$f":"'Population at Risk'!AS80/'Population at Risk'!AS$5","v":0},{"$f":"'Population at Risk'!AT80/'Population at Risk'!AT$5","v":0},{"$f":"'Population at Risk'!AU80/'Population at Risk'!AU$5","v":0},{"$f":"'Population at Risk'!AV80/'Population at Risk'!AV$5","v":0},{"$f":"'Population at Risk'!AW80/'Population at Risk'!AW$5","v":0},{"$f":"'Population at Risk'!AX80/'Population at Risk'!AX$5","v":0},{"$f":"'Population at Risk'!AY80/'Population at Risk'!AY$5","v":0},{"$f":"'Population at Risk'!AZ80/'Population at Risk'!AZ$5","v":0},{"$f":"'Population at Risk'!BA80/'Population at Risk'!BA$5","v":0},{"$f":"'Population at Risk'!BB80/'Population at Risk'!BB$5","v":0},{"$f":"'Population at Risk'!BC80/'Population at Risk'!BC$5","v":0},78]
[null,"Male 10-15",{"$f":"'Population at Risk'!C81/'Population at Risk'!C$5","v":0},{"$f":"'Population at Risk'!D81/'Population at Risk'!D$5","v":0},{"$f":"'Population at Risk'!E81/'Population at Risk'!E$5","v":0},{"$f":"'Population at Risk'!F81/'Population at Risk'!F$5","v":0},{"$f":"'Population at Risk'!G81/'Population at Risk'!G$5","v":0},{"$f":"'Population at Risk'!H81/'Population at Risk'!H$5","v":0},{"$f":"'Population at Risk'!I81/'Population at Risk'!I$5","v":0},{"$f":"'Population at Risk'!J81/'Population at Risk'!J$5","v":0},{"$f":"'Population at Risk'!K81/'Population at Risk'!K$5","v":0},{"$f":"'Population at Risk'!L81/'Population at Risk'!L$5","v":0},{"$f":"'Population at Risk'!M81/'Population at Risk'!M$5","v":0},{"$f":"'Population at Risk'!N81/'Population at Risk'!N$5","v":0},{"$f":"'Population at Risk'!O81/'Population at Risk'!O$5","v":0},{"$f":"'Population at Risk'!P81/'Population at Risk'!P$5","v":0},{"$f":"'Population at Risk'!Q81/'Population at Risk'!Q$5","v":0},{"$f":"'Population at Risk'!R81/'Population at Risk'!R$5","v":0},{"$f":"'Population at Risk'!S81/'Population at Risk'!S$5","v":0},{"$f":"'Population at Risk'!T81/'Population at Risk'!T$5","v":0},{"$f":"'Population at Risk'!U81/'Population at Risk'!U$5","v":0},{"$f":"'Population at Risk'!V81/'Population at Risk'!V$5","v":0},{"$f":"'Population at Risk'!W81/'Population at Risk'!W$5","v":0},{"$f":"'Population at Risk'!X81/'Population at Risk'!X$5","v":0},{"$f":"'Population at Risk'!Y81/'Population at Risk'!Y$5","v":0},{"$f":"'Population at Risk'!Z81/'Population at Risk'!Z$5","v":0},{"$f":"'Population at Risk'!AA81/'Population at Risk'!AA$5","v":0},{"$f":"'Population at Risk'!AB81/'Population at Risk'!AB$5","v":0},{"$f":"'Population at Risk'!AC81/'Population at Risk'!AC$5","v":0},{"$f":"'Population at Risk'!AD81/'Population at Risk'!AD$5","v":0},{"$f":"'Population at Risk'!AE81/'Population at Risk'!AE$5","v":0},{"$f":"'Population at Risk'!AF81/'Population at Risk'!AF$5","v":0},{"$f":"'Population at Risk'!AG81/'Population at Risk'!AG$5","v":0},{"$f":"'Population at Risk'!AH81/'Population at Risk'!AH$5","v":0},{"$f":"'Population at Risk'!AI81/'Population at Risk'!AI$5","v":0},{"$f":"'Population at Risk'!AJ81/'Population at Risk'!AJ$5","v":0},{"$f":"'Population at Risk'!AK81/'Population at Risk'!AK$5","v":0},{"$f":"'Population at Risk'!AL81/'Population at Risk'!AL$5","v":0},{"$f":"'Population at Risk'!AM81/'Population at Risk'!AM$5","v":0},{"$f":"'Population at Risk'!AN81/'Population at Risk'!AN$5","v":0},{"$f":"'Population at Risk'!AO81/'Population at Risk'!AO$5","v":0},{"$f":"'Population at Risk'!AP81/'Population at Risk'!AP$5","v":0},{"$f":"'Population at Risk'!AQ81/'Population at Risk'!AQ$5","v":0},{"$f":"'Population at Risk'!AR81/'Population at Risk'!AR$5","v":0},{"$f":"'Population at Risk'!AS81/'Population at Risk'!AS$5","v":0},{"$f":"'Population at Risk'!AT81/'Population at Risk'!AT$5","v":0},{"$f":"'Population at Risk'!AU81/'Population at Risk'!AU$5","v":0},{"$f":"'Population at Risk'!AV81/'Population at Risk'!AV$5","v":0},{"$f":"'Population at Risk'!AW81/'Population at Risk'!AW$5","v":0},{"$f":"'Population at Risk'!AX81/'Population at Risk'!AX$5","v":0},{"$f":"'Population at Risk'!AY81/'Population at Risk'!AY$5","v":0},{"$f":"'Population at Risk'!AZ81/'Population at Risk'!AZ$5","v":0},{"$f":"'Population at Risk'!BA81/'Population at Risk'!BA$5","v":0},{"$f":"'Population at Risk'!BB81/'Population at Risk'!BB$5","v":0},{"$f":"'Population at Risk'!BC81/'Population at Risk'!BC$5","v":0},79]
[null,"Male 16-19",{"$f":"'Population at Risk'!C82/'Population at Risk'!C$5","v":3.6836046817981913E-3},{"$f":"'Population at Risk'!D82/'Population at Risk'!D$5","v":1.9485122323987716E-3},{"$f":"'Population at Risk'!E82/'Population at Risk'!E$5","v":9.4074415316252355E-4},{"$f":"'Population at Risk'!F82/'Population at Risk'!F$5","v":5.7765264841945947E-3},{"$f":"'Population at Risk'!G82/'Population at Risk'!G$5","v":4.0091744534538109E-3},{"$f":"'Population at Risk'!H82/'Population at Risk'!H$5","v":1.227917045762183E-2},{"$f":"'Population at Risk'!I82/'Population at Risk'!I$5","v":2.7011824743210359E-3},{"$f":"'Population at Risk'!J82/'Population at Risk'!J$5","v":9.1294800872064267E-3},{"$f":"'Population at Risk'!K82/'Population at Risk'!K$5","v":1.126903278722143E-2},{"$f":"'Population at Risk'!L82/'Population at Risk'!L$5","v":3.4221393969858368E-3},{"$f":"'Population at Risk'!M82/'Population at Risk'!M$5","v":3.4221393969858368E-3},{"$f":"'Population at Risk'!N82/'Population at Risk'!N$5","v":1.1669707467734856E-2},{"$f":"'Population at Risk'!O82/'Population at Risk'!O$5","v":1.2244381667031503E-2},{"$f":"'Population at Risk'!P82/'Population at Risk'!P$5","v":3.4250597805190203E-3},{"$f":"'Population at Risk'!Q82/'Population at Risk'!Q$5","v":1.6096598314284619E-3},{"$f":"'Population at Risk'!R82/'Population at Risk'!R$5","v":5.326815530855406E-3},{"$f":"'Population at Risk'!S82/'Population at Risk'!S$5","v":5.8042953960093999E-3},{"$f":"'Population at Risk'!T82/'Population at Risk'!T$5","v":6.2841165475093132E-3},{"$f":"'Population at Risk'!U82/'Population at Risk'!U$5","v":0},{"$f":"'Population at Risk'!V82/'Population at Risk'!V$5","v":6.7082463284445885E-3},{"$f":"'Population at Risk'!W82/'Population at Risk'!W$5","v":9.1413707709189461E-3},{"$f":"'Population at Risk'!X82/'Population at Risk'!X$5","v":9.1413707709189461E-3},{"$f":"'Population at Risk'!Y82/'Population at Risk'!Y$5","v":7.8675013634561305E-3},{"$f":"'Population at Risk'!Z82/'Population at Risk'!Z$5","v":1.5312062989016573E-2},{"$f":"'Population at Risk'!AA82/'Population at Risk'!AA$5","v":1.1269207240859287E-2},{"$f":"'Population at Risk'!AB82/'Population at Risk'!AB$5","v":2.0141304940703209E-3},{"$f":"'Population at Risk'!AC82/'Population at Risk'!AC$5","v":1.3150776905921197E-2},{"$f":"'Population at Risk'!AD82/'Population at Risk'!AD$5","v":3.8125698907075616E-3},{"$f":"'Population at Risk'!AE82/'Population at Risk'!AE$5","v":3.712981136179848E-3},{"$f":"'Population at Risk'!AF82/'Population at Risk'!AF$5","v":1.5160174557980327E-2},{"$f":"'Population at Risk'!AG82/'Population at Risk'!AG$5","v":3.1687790865327818E-3},{"$f":"'Population at Risk'!AH82/'Population at Risk'!AH$5","v":9.5058428168956609E-3},{"$f":"'Population at Risk'!AI82/'Population at Risk'!AI$5","v":5.5777362286100291E-3},{"$f":"'Population at Risk'!AJ82/'Population at Risk'!AJ$5","v":4.3090396075620933E-3},{"$f":"'Population at Risk'!AK82/'Population at Risk'!AK$5","v":5.0131440976234254E-4},{"$f":"'Population at Risk'!AL82/'Population at Risk'!AL$5","v":1.7613870983346984E-2},{"$f":"'Population at Risk'!AM82/'Population at Risk'!AM$5","v":1.0460256293534158E-2},{"$f":"'Population at Risk'!AN82/'Population at Risk'!AN$5","v":0},{"$f":"'Population at Risk'!AO82/'Population at Risk'!AO$5","v":0},{"$f":"'Population at Risk'!AP82/'Population at Risk'!AP$5","v":2.6453505292046813E-3},{"$f":"'Population at Risk'!AQ82/'Population at Risk'!AQ$5","v":9.8667604332188311E-3},{"$f":"'Population at Risk'!AR82/'Population at Risk'!AR$5","v":8.5123577738315526E-3},{"$f":"'Population at Risk'!AS82/'Population at Risk'!AS$5","v":2.7011824743210359E-3},{"$f":"'Population at Risk'!AT82/'Population at Risk'!AT$5","v":0},{"$f":"'Population at Risk'!AU82/'Population at Risk'!AU$5","v":0},{"$f":"'Population at Risk'!AV82/'Population at Risk'!AV$5","v":6.0365878002302991E-3},{"$f":"'Population at Risk'!AW82/'Population at Risk'!AW$5","v":8.0375321568465236E-3},{"$f":"'Population at Risk'!AX82/'Population at Risk'!AX$5","v":7.7076663804833516E-3},{"$f":"'Population at Risk'!AY82/'Population at Risk'!AY$5","v":7.3035013534936931E-3},{"$f":"'Population at Risk'!AZ82/'Population at Risk'!AZ$5","v":7.7838242418329451E-3},{"$f":"'Population at Risk'!BA82/'Population at Risk'!BA$5","v":1.2695169110098482E-2},{"$f":"'Population at Risk'!BB82/'Population at Risk'!BB$5","v":6.4444513278939311E-3},{"$f":"'Population at Risk'!BC82/'Population at Risk'!BC$5","v":0},80]
[null,"Male 20-24",{"$f":"'Population at Risk'!C83/'Population at Risk'!C$5","v":6.0188341750336497E-3},{"$f":"'Population at Risk'!D83/'Population at Risk'!D$5","v":3.5457905001591377E-3},{"$f":"'Population at Risk'!E83/'Population at Risk'!E$5","v":2.4522768936371402E-3},{"$f":"'Population at Risk'!F83/'Population at Risk'!F$5","v":8.1494564507309641E-3},{"$f":"'Population at Risk'!G83/'Population at Risk'!G$5","v":6.2840431040090622E-3},{"$f":"'Population at Risk'!H83/'Population at Risk'!H$5","v":1.721144578554654E-2},{"$f":"'Population at Risk'!I83/'Population at Risk'!I$5","v":3.2200536840776188E-3},{"$f":"'Population at Risk'!J83/'Population at Risk'!J$5","v":1.1668370082639917E-2},{"$f":"'Population at Risk'!K83/'Population at Risk'!K$5","v":1.4069815789893424E-2},{"$f":"'Population at Risk'!L83/'Population at Risk'!L$5","v":5.1099292356353142E-3},{"$f":"'Population at Risk'!M83/'Population at Risk'!M$5","v":5.1099292356353142E-3},{"$f":"'Population at Risk'!N83/'Population at Risk'!N$5","v":1.926348807440775E-2},{"$f":"'Population at Risk'!O83/'Population at Risk'!O$5","v":1.6920693388802047E-2},{"$f":"'Population at Risk'!P83/'Population at Risk'!P$5","v":4.2561404625567241E-3},{"$f":"'Population at Risk'!Q83/'Population at Risk'!Q$5","v":2.1766990902271242E-3},{"$f":"'Population at Risk'!R83/'Population at Risk'!R$5","v":6.3398908772144096E-3},{"$f":"'Population at Risk'!S83/'Population at Risk'!S$5","v":7.9410202090518106E-3},{"$f":"'Population at Risk'!T83/'Population at Risk'!T$5","v":9.2021906538477492E-3},{"$f":"'Population at Risk'!U83/'Population at Risk'!U$5","v":0},{"$f":"'Population at Risk'!V83/'Population at Risk'!V$5","v":9.8485608447483313E-3},{"$f":"'Population at Risk'!W83/'Population at Risk'!W$5","v":1.1780275449743641E-2},{"$f":"'Population at Risk'!X83/'Population at Risk'!X$5","v":1.1780275449743641E-2},{"$f":"'Population at Risk'!Y83/'Population at Risk'!Y$5","v":1.068296171760264E-2},{"$f":"'Population at Risk'!Z83/'Population at Risk'!Z$5","v":2.3897361216343654E-2},{"$f":"'Population at Risk'!AA83/'Population at Risk'!AA$5","v":1.679615868478412E-2},{"$f":"'Population at Risk'!AB83/'Population at Risk'!AB$5","v":3.5916601039454399E-3},{"$f":"'Population at Risk'!AC83/'Population at Risk'!AC$5","v":2.0181472506540007E-2},{"$f":"'Population at Risk'!AD83/'Population at Risk'!AD$5","v":5.478948227292329E-3},{"$f":"'Population at Risk'!AE83/'Population at Risk'!AE$5","v":5.1257251782385223E-3},{"$f":"'Population at Risk'!AF83/'Population at Risk'!AF$5","v":2.1584641295729092E-2},{"$f":"'Population at Risk'!AG83/'Population at Risk'!AG$5","v":4.3744608853111084E-3},{"$f":"'Population at Risk'!AH83/'Population at Risk'!AH$5","v":1.3189979611342837E-2},{"$f":"'Population at Risk'!AI83/'Population at Risk'!AI$5","v":8.0119378607640904E-3},{"$f":"'Population at Risk'!AJ83/'Population at Risk'!AJ$5","v":6.8903000488070186E-3},{"$f":"'Population at Risk'!AK83/'Population at Risk'!AK$5","v":5.2311068844766186E-4},{"$f":"'Population at Risk'!AL83/'Population at Risk'!AL$5","v":2.4068004730529599E-2},{"$f":"'Population at Risk'!AM83/'Population at Risk'!AM$5","v":1.4356989132554029E-2},{"$f":"'Population at Risk'!AN83/'Population at Risk'!AN$5","v":0},{"$f":"'Population at Risk'!AO83/'Population at Risk'!AO$5","v":0},{"$f":"'Population at Risk'!AP83/'Population at Risk'!AP$5","v":4.7801948159312659E-3},{"$f":"'Population at Risk'!AQ83/'Population at Risk'!AQ$5","v":1.613049037116112E-2},{"$f":"'Population at Risk'!AR83/'Population at Risk'!AR$5","v":1.2480360504399112E-2},{"$f":"'Population at Risk'!AS83/'Population at Risk'!AS$5","v":3.2200536840776188E-3},{"$f":"'Population at Risk'!AT83/'Population at Risk'!AT$5","v":0},{"$f":"'Population at Risk'!AU83/'Population at Risk'!AU$5","v":0},{"$f":"'Population at Risk'!AV83/'Population at Risk'!AV$5","v":9.3980288026787248E-3},{"$f":"'Population at Risk'!AW83/'Population at Risk'!AW$5","v":1.1377378625290922E-2},{"$f":"'Population at Risk'!AX83/'Population at Risk'!AX$5","v":1.007251856540438E-2},{"$f":"'Population at Risk'!AY83/'Population at Risk'!AY$5","v":1.0587582449184056E-2},{"$f":"'Population at Risk'!AZ83/'Population at Risk'!AZ$5","v":1.2696041814537375E-2},{"$f":"'Population at Risk'!BA83/'Population at Risk'!BA$5","v":1.793060237838701E-2},{"$f":"'Population at Risk'!BB83/'Population at Risk'!BB$5","v":8.6597314718574701E-3},{"$f":"'Population at Risk'!BC83/'Population at Risk'!BC$5","v":0},81]
[null,"Male 25-29",{"$f":"'Population at Risk'!C84/'Population at Risk'!C$5","v":1.244199171789449E-2},{"$f":"'Population at Risk'!D84/'Population at Risk'!D$5","v":6.678745568640663E-3},{"$f":"'Population at Risk'!E84/'Population at Risk'!E$5","v":3.4235365810604303E-3},{"$f":"'Population at Risk'!F84/'Population at Risk'!F$5","v":9.2686626908925433E-3},{"$f":"'Population at Risk'!G84/'Population at Risk'!G$5","v":6.2410142363250251E-3},{"$f":"'Population at Risk'!H84/'Population at Risk'!H$5","v":2.0407134510643143E-2},{"$f":"'Population at Risk'!I84/'Population at Risk'!I$5","v":2.9694461026825054E-3},{"$f":"'Population at Risk'!J84/'Population at Risk'!J$5","v":1.4013298909550231E-2},{"$f":"'Population at Risk'!K84/'Population at Risk'!K$5","v":1.4040233751599841E-2},{"$f":"'Population at Risk'!L84/'Population at Risk'!L$5","v":7.1100023655580828E-3},{"$f":"'Population at Risk'!M84/'Population at Risk'!M$5","v":7.1100023655580828E-3},{"$f":"'Population at Risk'!N84/'Population at Risk'!N$5","v":3.3320431076632712E-2},{"$f":"'Population at Risk'!O84/'Population at Risk'!O$5","v":2.0565285029958181E-2},{"$f":"'Population at Risk'!P84/'Population at Risk'!P$5","v":5.0553887206500545E-3},{"$f":"'Population at Risk'!Q84/'Population at Risk'!Q$5","v":2.3652575448967943E-3},{"$f":"'Population at Risk'!R84/'Population at Risk'!R$5","v":7.8881257857210049E-3},{"$f":"'Population at Risk'!S84/'Population at Risk'!S$5","v":1.1628099869287974E-2},{"$f":"'Population at Risk'!T84/'Population at Risk'!T$5","v":1.7194798075611417E-2},{"$f":"'Population at Risk'!U84/'Population at Risk'!U$5","v":0},{"$f":"'Population at Risk'!V84/'Population at Risk'!V$5","v":1.3691981821247253E-2},{"$f":"'Population at Risk'!W84/'Population at Risk'!W$5","v":1.5403590219372751E-2},{"$f":"'Population at Risk'!X84/'Population at Risk'!X$5","v":1.5403590219372751E-2},{"$f":"'Population at Risk'!Y84/'Population at Risk'!Y$5","v":1.3747546350448475E-2},{"$f":"'Population at Risk'!Z84/'Population at Risk'!Z$5","v":3.7522469557673153E-2},{"$f":"'Population at Risk'!AA84/'Population at Risk'!AA$5","v":2.3631060519381322E-2},{"$f":"'Population at Risk'!AB84/'Population at Risk'!AB$5","v":6.6398167756543244E-3},{"$f":"'Population at Risk'!AC84/'Population at Risk'!AC$5","v":3.0195786300437261E-2},{"$f":"'Population at Risk'!AD84/'Population at Risk'!AD$5","v":6.5637194255228739E-3},{"$f":"'Population at Risk'!AE84/'Population at Risk'!AE$5","v":6.6581093000265589E-3},{"$f":"'Population at Risk'!AF84/'Population at Risk'!AF$5","v":2.6798778752527078E-2},{"$f":"'Population at Risk'!AG84/'Population at Risk'!AG$5","v":5.6822474265195502E-3},{"$f":"'Population at Risk'!AH84/'Population at Risk'!AH$5","v":1.5524124567733036E-2},{"$f":"'Population at Risk'!AI84/'Population at Risk'!AI$5","v":1.2777705710874498E-2},{"$f":"'Population at Risk'!AJ84/'Population at Risk'!AJ$5","v":6.5371435844458602E-3},{"$f":"'Population at Risk'!AK84/'Population at Risk'!AK$5","v":3.2210784423957053E-4},{"$f":"'Population at Risk'!AL84/'Population at Risk'!AL$5","v":2.7027474606194118E-2},{"$f":"'Population at Risk'!AM84/'Population at Risk'!AM$5","v":1.6864440202258274E-2},{"$f":"'Population at Risk'!AN84/'Population at Risk'!AN$5","v":0},{"$f":"'Population at Risk'!AO84/'Population at Risk'!AO$5","v":0},{"$f":"'Population at Risk'!AP84/'Population at Risk'!AP$5","v":8.4397298707273756E-3},{"$f":"'Population at Risk'!AQ84/'Population at Risk'!AQ$5","v":2.3482845832723673E-2},{"$f":"'Population at Risk'!AR84/'Population at Risk'!AR$5","v":1.7610230772371616E-2},{"$f":"'Population at Risk'!AS84/'Population at Risk'!AS$5","v":2.9694461026825054E-3},{"$f":"'Population at Risk'!AT84/'Population at Risk'!AT$5","v":0},{"$f":"'Population at Risk'!AU84/'Population at Risk'!AU$5","v":0},{"$f":"'Population at Risk'!AV84/'Population at Risk'!AV$5","v":1.2246452527661376E-2},{"$f":"'Population at Risk'!AW84/'Population at Risk'!AW$5","v":1.343821761558377E-2},{"$f":"'Population at Risk'!AX84/'Population at Risk'!AX$5","v":1.3995399688084787E-2},{"$f":"'Population at Risk'!AY84/'Population at Risk'!AY$5","v":1.5795507343581556E-2},{"$f":"'Population at Risk'!AZ84/'Population at Risk'!AZ$5","v":2.1024686356023007E-2},{"$f":"'Population at Risk'!BA84/'Population at Risk'!BA$5","v":2.1802188711365418E-2},{"$f":"'Population at Risk'!BB84/'Population at Risk'!BB$5","v":1.0944902043451849E-2},{"$f":"'Population at Risk'!BC84/'Population at Risk'!BC$5","v":0},82]
[null,"Male 30-34",{"$f":"'Population at Risk'!C85/'Population at Risk'!C$5","v":1.0432501759588514E-2},{"$f":"'Population at Risk'!D85/'Population at Risk'!D$5","v":5.8702929439092954E-3},{"$f":"'Population at Risk'!E85/'Population at Risk'!E$5","v":3.5537090746368726E-3},{"$f":"'Population at Risk'!F85/'Population at Risk'!F$5","v":7.6156527842365486E-3},{"$f":"'Population at Risk'!G85/'Population at Risk'!G$5","v":4.8818600248586863E-3},{"$f":"'Population at Risk'!H85/'Population at Risk'!H$5","v":1.7990717934362608E-2},{"$f":"'Population at Risk'!I85/'Population at Risk'!I$5","v":3.2701495054857973E-3},{"$f":"'Population at Risk'!J85/'Population at Risk'!J$5","v":1.2296062280171821E-2},{"$f":"'Population at Risk'!K85/'Population at Risk'!K$5","v":1.4730071826100409E-2},{"$f":"'Population at Risk'!L85/'Population at Risk'!L$5","v":4.9598000372643083E-3},{"$f":"'Population at Risk'!M85/'Population at Risk'!M$5","v":4.9598000372643083E-3},{"$f":"'Population at Risk'!N85/'Population at Risk'!N$5","v":2.6140890678905224E-2},{"$f":"'Population at Risk'!O85/'Population at Risk'!O$5","v":1.7902385408294329E-2},{"$f":"'Population at Risk'!P85/'Population at Risk'!P$5","v":4.155963733540536E-3},{"$f":"'Population at Risk'!Q85/'Population at Risk'!Q$5","v":2.477888856558546E-3},{"$f":"'Population at Risk'!R85/'Population at Risk'!R$5","v":7.4051793090442073E-3},{"$f":"'Population at Risk'!S85/'Population at Risk'!S$5","v":1.0530358877386388E-2},{"$f":"'Population at Risk'!T85/'Population at Risk'!T$5","v":1.485403695827181E-2},{"$f":"'Population at Risk'!U85/'Population at Risk'!U$5","v":0},{"$f":"'Population at Risk'!V85/'Population at Risk'!V$5","v":1.2572925614703006E-2},{"$f":"'Population at Risk'!W85/'Population at Risk'!W$5","v":1.4431794687302532E-2},{"$f":"'Population at Risk'!X85/'Population at Risk'!X$5","v":1.4431794687302532E-2},{"$f":"'Population at Risk'!Y85/'Population at Risk'!Y$5","v":1.2337957036967018E-2},{"$f":"'Population at Risk'!Z85/'Population at Risk'!Z$5","v":3.2856089240038681E-2},{"$f":"'Population at Risk'!AA85/'Population at Risk'!AA$5","v":2.1464184823748018E-2},{"$f":"'Population at Risk'!AB85/'Population at Risk'!AB$5","v":5.8282272538020012E-3},{"$f":"'Population at Risk'!AC85/'Population at Risk'!AC$5","v":2.6987204476752642E-2},{"$f":"'Population at Risk'!AD85/'Population at Risk'!AD$5","v":6.3561078621851667E-3},{"$f":"'Population at Risk'!AE85/'Population at Risk'!AE$5","v":6.9146193735619196E-3},{"$f":"'Population at Risk'!AF85/'Population at Risk'!AF$5","v":2.5230893406969684E-2},{"$f":"'Population at Risk'!AG85/'Population at Risk'!AG$5","v":5.9011614814775898E-3},{"$f":"'Population at Risk'!AH85/'Population at Risk'!AH$5","v":1.4840918079661437E-2},{"$f":"'Population at Risk'!AI85/'Population at Risk'!AI$5","v":1.128019115622424E-2},{"$f":"'Population at Risk'!AJ85/'Population at Risk'!AJ$5","v":7.2036758714873984E-3},{"$f":"'Population at Risk'!AK85/'Population at Risk'!AK$5","v":2.4158088317967786E-4},{"$f":"'Population at Risk'!AL85/'Population at Risk'!AL$5","v":2.4541643608436369E-2},{"$f":"'Population at Risk'!AM85/'Population at Risk'!AM$5","v":1.5901836452605032E-2},{"$f":"'Population at Risk'!AN85/'Population at Risk'!AN$5","v":0},{"$f":"'Population at Risk'!AO85/'Population at Risk'!AO$5","v":0},{"$f":"'Population at Risk'!AP85/'Population at Risk'!AP$5","v":5.9059057786128369E-3},{"$f":"'Population at Risk'!AQ85/'Population at Risk'!AQ$5","v":2.2083432054901476E-2},{"$f":"'Population at Risk'!AR85/'Population at Risk'!AR$5","v":1.571113687170788E-2},{"$f":"'Population at Risk'!AS85/'Population at Risk'!AS$5","v":3.2701495054857973E-3},{"$f":"'Population at Risk'!AT85/'Population at Risk'!AT$5","v":0},{"$f":"'Population at Risk'!AU85/'Population at Risk'!AU$5","v":0},{"$f":"'Population at Risk'!AV85/'Population at Risk'!AV$5","v":1.026287218867397E-2},{"$f":"'Population at Risk'!AW85/'Population at Risk'!AW$5","v":1.3161766575825148E-2},{"$f":"'Population at Risk'!AX85/'Population at Risk'!AX$5","v":1.0678570860272787E-2},{"$f":"'Population at Risk'!AY85/'Population at Risk'!AY$5","v":1.3316523610308481E-2},{"$f":"'Population at Risk'!AZ85/'Population at Risk'!AZ$5","v":1.6337731505918801E-2},{"$f":"'Population at Risk'!BA85/'Population at Risk'!BA$5","v":2.1317695628890628E-2},{"$f":"'Population at Risk'!BB85/'Population at Risk'!BB$5","v":9.5538750842348169E-3},{"$f":"'Population at Risk'!BC85/'Population at Risk'!BC$5","v":0},83]
[null,"Male 35-39",{"$f":"'Population at Risk'!C86/'Population at Risk'!C$5","v":1.150427948263159E-2},{"$f":"'Population at Risk'!D86/'Population at Risk'!D$5","v":6.1569446848074739E-3},{"$f":"'Population at Risk'!E86/'Population at Risk'!E$5","v":3.1188865467164039E-3},{"$f":"'Population at Risk'!F86/'Population at Risk'!F$5","v":8.7465624636786522E-3},{"$f":"'Population at Risk'!G86/'Population at Risk'!G$5","v":4.8158607575548417E-3},{"$f":"'Population at Risk'!H86/'Population at Risk'!H$5","v":1.8607895161922919E-2},{"$f":"'Population at Risk'!I86/'Population at Risk'!I$5","v":4.0678972429367974E-3},{"$f":"'Population at Risk'!J86/'Population at Risk'!J$5","v":1.2319686465726244E-2},{"$f":"'Population at Risk'!K86/'Population at Risk'!K$5","v":1.7002657925336163E-2},{"$f":"'Population at Risk'!L86/'Population at Risk'!L$5","v":4.944408452238533E-3},{"$f":"'Population at Risk'!M86/'Population at Risk'!M$5","v":4.944408452238533E-3},{"$f":"'Population at Risk'!N86/'Population at Risk'!N$5","v":2.1776743695030677E-2},{"$f":"'Population at Risk'!O86/'Population at Risk'!O$5","v":1.760212304802259E-2},{"$f":"'Population at Risk'!P86/'Population at Risk'!P$5","v":4.8822033732533595E-3},{"$f":"'Population at Risk'!Q86/'Population at Risk'!Q$5","v":2.2423200282519302E-3},{"$f":"'Population at Risk'!R86/'Population at Risk'!R$5","v":7.6862004715489481E-3},{"$f":"'Population at Risk'!S86/'Population at Risk'!S$5","v":1.1266013601343126E-2},{"$f":"'Population at Risk'!T86/'Population at Risk'!T$5","v":1.5635527600874451E-2},{"$f":"'Population at Risk'!U86/'Population at Risk'!U$5","v":0},{"$f":"'Population at Risk'!V86/'Population at Risk'!V$5","v":1.3733722238475639E-2},{"$f":"'Population at Risk'!W86/'Population at Risk'!W$5","v":1.5506514111086894E-2},{"$f":"'Population at Risk'!X86/'Population at Risk'!X$5","v":1.5506514111086894E-2},{"$f":"'Population at Risk'!Y86/'Population at Risk'!Y$5","v":1.2921191861876865E-2},{"$f":"'Population at Risk'!Z86/'Population at Risk'!Z$5","v":3.1019962889731266E-2},{"$f":"'Population at Risk'!AA86/'Population at Risk'!AA$5","v":2.1277428526193579E-2},{"$f":"'Population at Risk'!AB86/'Population at Risk'!AB$5","v":6.2175948067701384E-3},{"$f":"'Population at Risk'!AC86/'Population at Risk'!AC$5","v":2.5611495869863356E-2},{"$f":"'Population at Risk'!AD86/'Population at Risk'!AD$5","v":5.6563935747056095E-3},{"$f":"'Population at Risk'!AE86/'Population at Risk'!AE$5","v":5.9638755465309832E-3},{"$f":"'Population at Risk'!AF86/'Population at Risk'!AF$5","v":2.320128160964537E-2},{"$f":"'Population at Risk'!AG86/'Population at Risk'!AG$5","v":5.0897657201607344E-3},{"$f":"'Population at Risk'!AH86/'Population at Risk'!AH$5","v":1.6632443139757279E-2},{"$f":"'Population at Risk'!AI86/'Population at Risk'!AI$5","v":1.1957459577785734E-2},{"$f":"'Population at Risk'!AJ86/'Population at Risk'!AJ$5","v":7.0621153690431241E-3},{"$f":"'Population at Risk'!AK86/'Population at Risk'!AK$5","v":8.0779918473378285E-4},{"$f":"'Population at Risk'!AL86/'Population at Risk'!AL$5","v":2.5364017510249814E-2},{"$f":"'Population at Risk'!AM86/'Population at Risk'!AM$5","v":1.7335417735301912E-2},{"$f":"'Population at Risk'!AN86/'Population at Risk'!AN$5","v":0},{"$f":"'Population at Risk'!AO86/'Population at Risk'!AO$5","v":0},{"$f":"'Population at Risk'!AP86/'Population at Risk'!AP$5","v":6.7256562542551777E-3},{"$f":"'Population at Risk'!AQ86/'Population at Risk'!AQ$5","v":2.1202004256094774E-2},{"$f":"'Population at Risk'!AR86/'Population at Risk'!AR$5","v":1.5782244863673179E-2},{"$f":"'Population at Risk'!AS86/'Population at Risk'!AS$5","v":4.0678972429367974E-3},{"$f":"'Population at Risk'!AT86/'Population at Risk'!AT$5","v":0},{"$f":"'Population at Risk'!AU86/'Population at Risk'!AU$5","v":0},{"$f":"'Population at Risk'!AV86/'Population at Risk'!AV$5","v":1.1619433282343467E-2},{"$f":"'Population at Risk'!AW86/'Population at Risk'!AW$5","v":1.544508037003293E-2},{"$f":"'Population at Risk'!AX86/'Population at Risk'!AX$5","v":9.2076747777600325E-3},{"$f":"'Population at Risk'!AY86/'Population at Risk'!AY$5","v":1.3038850598994475E-2},{"$f":"'Population at Risk'!AZ86/'Population at Risk'!AZ$5","v":1.467697295447264E-2},{"$f":"'Population at Risk'!BA86/'Population at Risk'!BA$5","v":2.0619690026258214E-2},{"$f":"'Population at Risk'!BB86/'Population at Risk'!BB$5","v":1.0783744426386552E-2},{"$f":"'Population at Risk'!BC86/'Population at Risk'!BC$5","v":0},84]
[null,"Male 40-44",{"$f":"'Population at Risk'!C87/'Population at Risk'!C$5","v":9.4011969137727889E-3},{"$f":"'Population at Risk'!D87/'Population at Risk'!D$5","v":5.2867472753380723E-3},{"$f":"'Population at Risk'!E87/'Population at Risk'!E$5","v":3.1942219705501334E-3},{"$f":"'Population at Risk'!F87/'Population at Risk'!F$5","v":8.5757311655599282E-3},{"$f":"'Population at Risk'!G87/'Population at Risk'!G$5","v":5.3616583100777231E-3},{"$f":"'Population at Risk'!H87/'Population at Risk'!H$5","v":2.0319259576265864E-2},{"$f":"'Population at Risk'!I87/'Population at Risk'!I$5","v":4.1331576265133231E-3},{"$f":"'Population at Risk'!J87/'Population at Risk'!J$5","v":1.1869652256932591E-2},{"$f":"'Population at Risk'!K87/'Population at Risk'!K$5","v":1.6532971242315828E-2},{"$f":"'Population at Risk'!L87/'Population at Risk'!L$5","v":5.6578633631320131E-3},{"$f":"'Population at Risk'!M87/'Population at Risk'!M$5","v":5.6578633631320131E-3},{"$f":"'Population at Risk'!N87/'Population at Risk'!N$5","v":1.8410084689341001E-2},{"$f":"'Population at Risk'!O87/'Population at Risk'!O$5","v":2.0851460108575286E-2},{"$f":"'Population at Risk'!P87/'Population at Risk'!P$5","v":4.8822033732533595E-3},{"$f":"'Population at Risk'!Q87/'Population at Risk'!Q$5","v":3.4677739971803109E-3},{"$f":"'Population at Risk'!R87/'Population at Risk'!R$5","v":7.8725326041925586E-3},{"$f":"'Population at Risk'!S87/'Population at Risk'!S$5","v":1.0954807929779381E-2},{"$f":"'Population at Risk'!T87/'Population at Risk'!T$5","v":1.414358794430246E-2},{"$f":"'Population at Risk'!U87/'Population at Risk'!U$5","v":0},{"$f":"'Population at Risk'!V87/'Population at Risk'!V$5","v":1.4362311467143734E-2},{"$f":"'Population at Risk'!W87/'Population at Risk'!W$5","v":1.5353128903205204E-2},{"$f":"'Population at Risk'!X87/'Population at Risk'!X$5","v":1.5353128903205204E-2},{"$f":"'Population at Risk'!Y87/'Population at Risk'!Y$5","v":1.3005582810176495E-2},{"$f":"'Population at Risk'!Z87/'Population at Risk'!Z$5","v":2.7873010132802013E-2},{"$f":"'Population at Risk'!AA87/'Population at Risk'!AA$5","v":1.99406207159206E-2},{"$f":"'Population at Risk'!AB87/'Population at Risk'!AB$5","v":5.3838852103949173E-3},{"$f":"'Population at Risk'!AC87/'Population at Risk'!AC$5","v":2.3247446281037074E-2},{"$f":"'Population at Risk'!AD87/'Population at Risk'!AD$5","v":6.4697312128985732E-3},{"$f":"'Population at Risk'!AE87/'Population at Risk'!AE$5","v":6.8804018751104203E-3},{"$f":"'Population at Risk'!AF87/'Population at Risk'!AF$5","v":2.3843435011597046E-2},{"$f":"'Population at Risk'!AG87/'Population at Risk'!AG$5","v":5.8719591533456092E-3},{"$f":"'Population at Risk'!AH87/'Population at Risk'!AH$5","v":1.6858383566650936E-2},{"$f":"'Population at Risk'!AI87/'Population at Risk'!AI$5","v":1.1483306112385093E-2},{"$f":"'Population at Risk'!AJ87/'Population at Risk'!AJ$5","v":7.9226252249349326E-3},{"$f":"'Population at Risk'!AK87/'Population at Risk'!AK$5","v":9.3207598238513416E-4},{"$f":"'Population at Risk'!AL87/'Population at Risk'!AL$5","v":2.7324963950709876E-2},{"$f":"'Population at Risk'!AM87/'Population at Risk'!AM$5","v":1.7477421787323918E-2},{"$f":"'Population at Risk'!AN87/'Population at Risk'!AN$5","v":0},{"$f":"'Population at Risk'!AO87/'Population at Risk'!AO$5","v":0},{"$f":"'Population at Risk'!AP87/'Population at Risk'!AP$5","v":5.5569356592534589E-3},{"$f":"'Population at Risk'!AQ87/'Population at Risk'!AQ$5","v":1.8541877014025741E-2},{"$f":"'Population at Risk'!AR87/'Population at Risk'!AR$5","v":1.5131031085494087E-2},{"$f":"'Population at Risk'!AS87/'Population at Risk'!AS$5","v":4.1331576265133231E-3},{"$f":"'Population at Risk'!AT87/'Population at Risk'!AT$5","v":0},{"$f":"'Population at Risk'!AU87/'Population at Risk'!AU$5","v":0},{"$f":"'Population at Risk'!AV87/'Population at Risk'!AV$5","v":1.1339928014383315E-2},{"$f":"'Population at Risk'!AW87/'Population at Risk'!AW$5","v":1.5788477811307034E-2},{"$f":"'Population at Risk'!AX87/'Population at Risk'!AX$5","v":8.7707003815273542E-3},{"$f":"'Population at Risk'!AY87/'Population at Risk'!AY$5","v":1.2061787096674756E-2},{"$f":"'Population at Risk'!AZ87/'Population at Risk'!AZ$5","v":1.2609300069291441E-2},{"$f":"'Population at Risk'!BA87/'Population at Risk'!BA$5","v":1.8937330379764344E-2},{"$f":"'Population at Risk'!BB87/'Population at Risk'!BB$5","v":1.1070811696996381E-2},{"$f":"'Population at Risk'!BC87/'Population at Risk'!BC$5","v":0},85]
[null,"Male 45-49",{"$f":"'Population at Risk'!C88/'Population at Risk'!C$5","v":7.9941702775912608E-3},{"$f":"'Population at Risk'!D88/'Population at Risk'!D$5","v":4.4539180700783332E-3},{"$f":"'Population at Risk'!E88/'Population at Risk'!E$5","v":2.6110231394046416E-3},{"$f":"'Population at Risk'!F88/'Population at Risk'!F$5","v":8.6775453220594573E-3},{"$f":"'Population at Risk'!G88/'Population at Risk'!G$5","v":5.9758320786858629E-3},{"$f":"'Population at Risk'!H88/'Population at Risk'!H$5","v":2.1101443738939931E-2},{"$f":"'Population at Risk'!I88/'Population at Risk'!I$5","v":5.0263021603462084E-3},{"$f":"'Population at Risk'!J88/'Population at Risk'!J$5","v":1.3410611249281855E-2},{"$f":"'Population at Risk'!K88/'Population at Risk'!K$5","v":1.8302771666589224E-2},{"$f":"'Population at Risk'!L88/'Population at Risk'!L$5","v":6.1765191822327056E-3},{"$f":"'Population at Risk'!M88/'Population at Risk'!M$5","v":6.1765191822327056E-3},{"$f":"'Population at Risk'!N88/'Population at Risk'!N$5","v":2.1178295852157702E-2},{"$f":"'Population at Risk'!O88/'Population at Risk'!O$5","v":2.1791462077132461E-2},{"$f":"'Population at Risk'!P88/'Population at Risk'!P$5","v":6.0893140280554583E-3},{"$f":"'Population at Risk'!Q88/'Population at Risk'!Q$5","v":2.2472256498340731E-3},{"$f":"'Population at Risk'!R88/'Population at Risk'!R$5","v":7.816251732236084E-3},{"$f":"'Population at Risk'!S88/'Population at Risk'!S$5","v":1.1179028705199363E-2},{"$f":"'Population at Risk'!T88/'Population at Risk'!T$5","v":1.2612519880875767E-2},{"$f":"'Population at Risk'!U88/'Population at Risk'!U$5","v":0},{"$f":"'Population at Risk'!V88/'Population at Risk'!V$5","v":1.4862854965032285E-2},{"$f":"'Population at Risk'!W88/'Population at Risk'!W$5","v":1.7646740078681208E-2},{"$f":"'Population at Risk'!X88/'Population at Risk'!X$5","v":1.7646740078681208E-2},{"$f":"'Population at Risk'!Y88/'Population at Risk'!Y$5","v":1.4022550203510941E-2},{"$f":"'Population at Risk'!Z88/'Population at Risk'!Z$5","v":2.7894412104575262E-2},{"$f":"'Population at Risk'!AA88/'Population at Risk'!AA$5","v":2.0935129464137777E-2},{"$f":"'Population at Risk'!AB88/'Population at Risk'!AB$5","v":4.5973123510348705E-3},{"$f":"'Population at Risk'!AC88/'Population at Risk'!AC$5","v":2.4305790093406637E-2},{"$f":"'Population at Risk'!AD88/'Population at Risk'!AD$5","v":6.2540917009259447E-3},{"$f":"'Population at Risk'!AE88/'Population at Risk'!AE$5","v":6.3322793177558803E-3},{"$f":"'Population at Risk'!AF88/'Population at Risk'!AF$5","v":2.8620185222356726E-2},{"$f":"'Population at Risk'!AG88/'Population at Risk'!AG$5","v":5.4041735027056097E-3},{"$f":"'Population at Risk'!AH88/'Population at Risk'!AH$5","v":1.7869347665041106E-2},{"$f":"'Population at Risk'!AI88/'Population at Risk'!AI$5","v":1.075068111770741E-2},{"$f":"'Population at Risk'!AJ88/'Population at Risk'!AJ$5","v":8.4069025897385505E-3},{"$f":"'Population at Risk'!AK88/'Population at Risk'!AK$5","v":1.1110007559706036E-3},{"$f":"'Population at Risk'!AL88/'Population at Risk'!AL$5","v":2.8969359988716744E-2},{"$f":"'Population at Risk'!AM88/'Population at Risk'!AM$5","v":1.8964542880817961E-2},{"$f":"'Population at Risk'!AN88/'Population at Risk'!AN$5","v":0},{"$f":"'Population at Risk'!AO88/'Population at Risk'!AO$5","v":0},{"$f":"'Population at Risk'!AP88/'Population at Risk'!AP$5","v":5.1962212637387453E-3},{"$f":"'Population at Risk'!AQ88/'Population at Risk'!AQ$5","v":2.1891147655348983E-2},{"$f":"'Population at Risk'!AR88/'Population at Risk'!AR$5","v":1.5740313061085268E-2},{"$f":"'Population at Risk'!AS88/'Population at Risk'!AS$5","v":5.0263021603462084E-3},{"$f":"'Population at Risk'!AT88/'Population at Risk'!AT$5","v":0},{"$f":"'Population at Risk'!AU88/'Population at Risk'!AU$5","v":0},{"$f":"'Population at Risk'!AV88/'Population at Risk'!AV$5","v":1.0983301291072842E-2},{"$f":"'Population at Risk'!AW88/'Population at Risk'!AW$5","v":1.6107923493408071E-2},{"$f":"'Population at Risk'!AX88/'Population at Risk'!AX$5","v":1.0159585585475148E-2},{"$f":"'Population at Risk'!AY88/'Population at Risk'!AY$5","v":1.3593897924367958E-2},{"$f":"'Population at Risk'!AZ88/'Population at Risk'!AZ$5","v":1.3881399482242224E-2},{"$f":"'Population at Risk'!BA88/'Population at Risk'!BA$5","v":2.0824390355340561E-2},{"$f":"'Population at Risk'!BB88/'Population at Risk'!BB$5","v":1.1741481272523524E-2},{"$f":"'Population at Risk'!BC88/'Population at Risk'!BC$5","v":0},86]
[null,"Male 50-54",{"$f":"'Population at Risk'!C89/'Population at Risk'!C$5","v":7.8536976369307128E-3},{"$f":"'Population at Risk'!D89/'Population at Risk'!D$5","v":4.2189260737429124E-3},{"$f":"'Population at Risk'!E89/'Population at Risk'!E$5","v":2.1689451475477711E-3},{"$f":"'Population at Risk'!F89/'Population at Risk'!F$5","v":9.1474484983442659E-3},{"$f":"'Population at Risk'!G89/'Population at Risk'!G$5","v":7.7420878654895662E-3},{"$f":"'Population at Risk'!H89/'Population at Risk'!H$5","v":2.2717425556905365E-2},{"$f":"'Population at Risk'!I89/'Population at Risk'!I$5","v":5.1858673082937059E-3},{"$f":"'Population at Risk'!J89/'Population at Risk'!J$5","v":1.480325164824574E-2},{"$f":"'Population at Risk'!K89/'Population at Risk'!K$5","v":1.9551666674427079E-2},{"$f":"'Population at Risk'!L89/'Population at Risk'!L$5","v":6.6481253266888977E-3},{"$f":"'Population at Risk'!M89/'Population at Risk'!M$5","v":6.6481253266888977E-3},{"$f":"'Population at Risk'!N89/'Population at Risk'!N$5","v":2.1686262357836762E-2},{"$f":"'Population at Risk'!O89/'Population at Risk'!O$5","v":2.3034256398718922E-2},{"$f":"'Population at Risk'!P89/'Population at Risk'!P$5","v":6.2209748719053064E-3},{"$f":"'Population at Risk'!Q89/'Population at Risk'!Q$5","v":3.418651786449707E-3},{"$f":"'Population at Risk'!R89/'Population at Risk'!R$5","v":1.0293533702015828E-2},{"$f":"'Population at Risk'!S89/'Population at Risk'!S$5","v":1.1025382486777199E-2},{"$f":"'Population at Risk'!T89/'Population at Risk'!T$5","v":1.3077623650886369E-2},{"$f":"'Population at Risk'!U89/'Population at Risk'!U$5","v":0},{"$f":"'Population at Risk'!V89/'Population at Risk'!V$5","v":1.4985111116331024E-2},{"$f":"'Population at Risk'!W89/'Population at Risk'!W$5","v":1.6334117287249893E-2},{"$f":"'Population at Risk'!X89/'Population at Risk'!X$5","v":1.6334117287249893E-2},{"$f":"'Population at Risk'!Y89/'Population at Risk'!Y$5","v":1.4779131698243598E-2},{"$f":"'Population at Risk'!Z89/'Population at Risk'!Z$5","v":2.8568659557810197E-2},{"$f":"'Population at Risk'!AA89/'Population at Risk'!AA$5","v":2.1594885356432891E-2},{"$f":"'Population at Risk'!AB89/'Population at Risk'!AB$5","v":4.2904659763170865E-3},{"$f":"'Population at Risk'!AC89/'Population at Risk'!AC$5","v":2.5597903193265881E-2},{"$f":"'Population at Risk'!AD89/'Population at Risk'!AD$5","v":6.9066188838138812E-3},{"$f":"'Population at Risk'!AE89/'Population at Risk'!AE$5","v":6.5334919315911148E-3},{"$f":"'Population at Risk'!AF89/'Population at Risk'!AF$5","v":3.2895293390633622E-2},{"$f":"'Population at Risk'!AG89/'Population at Risk'!AG$5","v":5.575894903726163E-3},{"$f":"'Population at Risk'!AH89/'Population at Risk'!AH$5","v":1.7546764211001774E-2},{"$f":"'Population at Risk'!AI89/'Population at Risk'!AI$5","v":1.1029956979629642E-2},{"$f":"'Population at Risk'!AJ89/'Population at Risk'!AJ$5","v":8.2980753717484083E-3},{"$f":"'Population at Risk'!AK89/'Population at Risk'!AK$5","v":7.1217997177602799E-4},{"$f":"'Population at Risk'!AL89/'Population at Risk'!AL$5","v":3.1842770985277394E-2},{"$f":"'Population at Risk'!AM89/'Population at Risk'!AM$5","v":1.8954527278557162E-2},{"$f":"'Population at Risk'!AN89/'Population at Risk'!AN$5","v":0},{"$f":"'Population at Risk'!AO89/'Population at Risk'!AO$5","v":0},{"$f":"'Population at Risk'!AP89/'Population at Risk'!AP$5","v":6.0049716549821306E-3},{"$f":"'Population at Risk'!AQ89/'Population at Risk'!AQ$5","v":2.1734178587770641E-2},{"$f":"'Population at Risk'!AR89/'Population at Risk'!AR$5","v":1.6198334323022194E-2},{"$f":"'Population at Risk'!AS89/'Population at Risk'!AS$5","v":5.1858673082937059E-3},{"$f":"'Population at Risk'!AT89/'Population at Risk'!AT$5","v":0},{"$f":"'Population at Risk'!AU89/'Population at Risk'!AU$5","v":0},{"$f":"'Population at Risk'!AV89/'Population at Risk'!AV$5","v":1.156907735993006E-2},{"$f":"'Population at Risk'!AW89/'Population at Risk'!AW$5","v":1.5342242545476188E-2},{"$f":"'Population at Risk'!AX89/'Population at Risk'!AX$5","v":1.1647750234615169E-2},{"$f":"'Population at Risk'!AY89/'Population at Risk'!AY$5","v":1.3304726373109246E-2},{"$f":"'Population at Risk'!AZ89/'Population at Risk'!AZ$5","v":1.4485497422673136E-2},{"$f":"'Population at Risk'!BA89/'Population at Risk'!BA$5","v":2.655950260894812E-2},{"$f":"'Population at Risk'!BB89/'Population at Risk'!BB$5","v":1.1363831290073937E-2},{"$f":"'Population at Risk'!BC89/'Population at Risk'!BC$5","v":0},87]
[null,"Male 55-59",{"$f":"'Population at Risk'!C90/'Population at Risk'!C$5","v":7.1422040204449349E-3},{"$f":"'Population at Risk'!D90/'Population at Risk'!D$5","v":4.046265961841591E-3},{"$f":"'Population at Risk'!E90/'Population at Risk'!E$5","v":2.5021721121222511E-3},{"$f":"'Population at Risk'!F90/'Population at Risk'!F$5","v":7.2327254753634627E-3},{"$f":"'Population at Risk'!G90/'Population at Risk'!G$5","v":6.2399171830412967E-3},{"$f":"'Population at Risk'!H90/'Population at Risk'!H$5","v":2.2019180665105765E-2},{"$f":"'Population at Risk'!I90/'Population at Risk'!I$5","v":3.9103096823704057E-3},{"$f":"'Population at Risk'!J90/'Population at Risk'!J$5","v":1.3927566807410991E-2},{"$f":"'Population at Risk'!K90/'Population at Risk'!K$5","v":1.834292437965148E-2},{"$f":"'Population at Risk'!L90/'Population at Risk'!L$5","v":5.8893075860764338E-3},{"$f":"'Population at Risk'!M90/'Population at Risk'!M$5","v":5.8893075860764338E-3},{"$f":"'Population at Risk'!N90/'Population at Risk'!N$5","v":2.0803786172757015E-2},{"$f":"'Population at Risk'!O90/'Population at Risk'!O$5","v":2.1415111947056385E-2},{"$f":"'Population at Risk'!P90/'Population at Risk'!P$5","v":5.6668226486967085E-3},{"$f":"'Population at Risk'!Q90/'Population at Risk'!Q$5","v":2.6646104529227947E-3},{"$f":"'Population at Risk'!R90/'Population at Risk'!R$5","v":8.2035462730720484E-3},{"$f":"'Population at Risk'!S90/'Population at Risk'!S$5","v":9.5606985433643512E-3},{"$f":"'Population at Risk'!T90/'Population at Risk'!T$5","v":1.0259086874464057E-2},{"$f":"'Population at Risk'!U90/'Population at Risk'!U$5","v":0},{"$f":"'Population at Risk'!V90/'Population at Risk'!V$5","v":1.2635835563010072E-2},{"$f":"'Population at Risk'!W90/'Population at Risk'!W$5","v":1.6081926252565697E-2},{"$f":"'Population at Risk'!X90/'Population at Risk'!X$5","v":1.6081926252565697E-2},{"$f":"'Population at Risk'!Y90/'Population at Risk'!Y$5","v":1.3184769937247634E-2},{"$f":"'Population at Risk'!Z90/'Population at Risk'!Z$5","v":2.4876449609955067E-2},{"$f":"'Population at Risk'!AA90/'Population at Risk'!AA$5","v":1.9155862797895384E-2},{"$f":"'Population at Risk'!AB90/'Population at Risk'!AB$5","v":4.1304502339966761E-3},{"$f":"'Population at Risk'!AC90/'Population at Risk'!AC$5","v":2.2321671001133383E-2},{"$f":"'Population at Risk'!AD90/'Population at Risk'!AD$5","v":6.2997796572659241E-3},{"$f":"'Population at Risk'!AE90/'Population at Risk'!AE$5","v":6.2899097392245052E-3},{"$f":"'Population at Risk'!AF90/'Population at Risk'!AF$5","v":2.8660253926875854E-2},{"$f":"'Population at Risk'!AG90/'Population at Risk'!AG$5","v":5.3680139238035853E-3},{"$f":"'Population at Risk'!AH90/'Population at Risk'!AH$5","v":1.6213239125303484E-2},{"$f":"'Population at Risk'!AI90/'Population at Risk'!AI$5","v":8.8248891315513001E-3},{"$f":"'Population at Risk'!AJ90/'Population at Risk'!AJ$5","v":7.2832747073741395E-3},{"$f":"'Population at Risk'!AK90/'Population at Risk'!AK$5","v":7.6543864792623525E-4},{"$f":"'Population at Risk'!AL90/'Population at Risk'!AL$5","v":3.1103657299832738E-2},{"$f":"'Population at Risk'!AM90/'Population at Risk'!AM$5","v":1.6879483189872892E-2},{"$f":"'Population at Risk'!AN90/'Population at Risk'!AN$5","v":0},{"$f":"'Population at Risk'!AO90/'Population at Risk'!AO$5","v":0},{"$f":"'Population at Risk'!AP90/'Population at Risk'!AP$5","v":4.6882127148429919E-3},{"$f":"'Population at Risk'!AQ90/'Population at Risk'!AQ$5","v":2.0127155989560549E-2},{"$f":"'Population at Risk'!AR90/'Population at Risk'!AR$5","v":1.4517329233609731E-2},{"$f":"'Population at Risk'!AS90/'Population at Risk'!AS$5","v":3.9103096823704057E-3},{"$f":"'Population at Risk'!AT90/'Population at Risk'!AT$5","v":0},{"$f":"'Population at Risk'!AU90/'Population at Risk'!AU$5","v":0},{"$f":"'Population at Risk'!AV90/'Population at Risk'!AV$5","v":1.1932180702129296E-2},{"$f":"'Population at Risk'!AW90/'Population at Risk'!AW$5","v":1.5082970925561563E-2},{"$f":"'Population at Risk'!AX90/'Population at Risk'!AX$5","v":1.0993394671220548E-2},{"$f":"'Population at Risk'!AY90/'Population at Risk'!AY$5","v":1.2647975241276855E-2},{"$f":"'Population at Risk'!AZ90/'Population at Risk'!AZ$5","v":1.3238742098805083E-2},{"$f":"'Population at Risk'!BA90/'Population at Risk'!BA$5","v":2.1707825021492634E-2},{"$f":"'Population at Risk'!BB90/'Population at Risk'!BB$5","v":9.2817531186445857E-3},{"$f":"'Population at Risk'!BC90/'Population at Risk'!BC$5","v":0},88]
[null,"Male 60-64",{"$f":"'Population at Risk'!C91/'Population at Risk'!C$5","v":6.4305253280162586E-3},{"$f":"'Population at Risk'!D91/'Population at Risk'!D$5","v":3.301187417792804E-3},{"$f":"'Population at Risk'!E91/'Population at Risk'!E$5","v":1.3885680402436669E-3},{"$f":"'Population at Risk'!F91/'Population at Risk'!F$5","v":6.1104060050484431E-3},{"$f":"'Population at Risk'!G91/'Population at Risk'!G$5","v":6.0641448680260482E-3},{"$f":"'Population at Risk'!H91/'Population at Risk'!H$5","v":1.8820310544665684E-2},{"$f":"'Population at Risk'!I91/'Population at Risk'!I$5","v":3.0567903100763572E-3},{"$f":"'Population at Risk'!J91/'Population at Risk'!J$5","v":1.0864870912415208E-2},{"$f":"'Population at Risk'!K91/'Population at Risk'!K$5","v":1.4271480884168089E-2},{"$f":"'Population at Risk'!L91/'Population at Risk'!L$5","v":4.8749538373177677E-3},{"$f":"'Population at Risk'!M91/'Population at Risk'!M$5","v":4.8749538373177677E-3},{"$f":"'Population at Risk'!N91/'Population at Risk'!N$5","v":1.6772647543643347E-2},{"$f":"'Population at Risk'!O91/'Population at Risk'!O$5","v":1.7704740494204053E-2},{"$f":"'Population at Risk'!P91/'Population at Risk'!P$5","v":5.2409920450374172E-3},{"$f":"'Population at Risk'!Q91/'Population at Risk'!Q$5","v":2.0698313339668137E-3},{"$f":"'Population at Risk'!R91/'Population at Risk'!R$5","v":6.2057914811840366E-3},{"$f":"'Population at Risk'!S91/'Population at Risk'!S$5","v":8.0014141412128367E-3},{"$f":"'Population at Risk'!T91/'Population at Risk'!T$5","v":8.7670540700037873E-3},{"$f":"'Population at Risk'!U91/'Population at Risk'!U$5","v":0},{"$f":"'Population at Risk'!V91/'Population at Risk'!V$5","v":1.0828233226623485E-2},{"$f":"'Population at Risk'!W91/'Population at Risk'!W$5","v":1.3449368909107992E-2},{"$f":"'Population at Risk'!X91/'Population at Risk'!X$5","v":1.3449368909107992E-2},{"$f":"'Population at Risk'!Y91/'Population at Risk'!Y$5","v":1.0763426723593461E-2},{"$f":"'Population at Risk'!Z91/'Population at Risk'!Z$5","v":2.00476641026281E-2},{"$f":"'Population at Risk'!AA91/'Population at Risk'!AA$5","v":1.5554174621812777E-2},{"$f":"'Population at Risk'!AB91/'Population at Risk'!AB$5","v":3.3590042758961294E-3},{"$f":"'Population at Risk'!AC91/'Population at Risk'!AC$5","v":1.8003943590615537E-2},{"$f":"'Population at Risk'!AD91/'Population at Risk'!AD$5","v":5.4395687803701753E-3},{"$f":"'Population at Risk'!AE91/'Population at Risk'!AE$5","v":5.159139449026841E-3},{"$f":"'Population at Risk'!AF91/'Population at Risk'!AF$5","v":2.4558653142674063E-2},{"$f":"'Population at Risk'!AG91/'Population at Risk'!AG$5","v":4.4029777127827154E-3},{"$f":"'Population at Risk'!AH91/'Population at Risk'!AH$5","v":1.3368191169800639E-2},{"$f":"'Population at Risk'!AI91/'Population at Risk'!AI$5","v":7.420929496986319E-3},{"$f":"'Population at Risk'!AJ91/'Population at Risk'!AJ$5","v":6.6063904408895542E-3},{"$f":"'Population at Risk'!AK91/'Population at Risk'!AK$5","v":5.6699159105647056E-4},{"$f":"'Population at Risk'!AL91/'Population at Risk'!AL$5","v":2.6337774326471268E-2},{"$f":"'Population at Risk'!AM91/'Population at Risk'!AM$5","v":1.3565383301692949E-2},{"$f":"'Population at Risk'!AN91/'Population at Risk'!AN$5","v":0},{"$f":"'Population at Risk'!AO91/'Population at Risk'!AO$5","v":0},{"$f":"'Population at Risk'!AP91/'Population at Risk'!AP$5","v":3.9034904149336499E-3},{"$f":"'Population at Risk'!AQ91/'Population at Risk'!AQ$5","v":1.4371390187172787E-2},{"$f":"'Population at Risk'!AR91/'Population at Risk'!AR$5","v":1.1944455600526151E-2},{"$f":"'Population at Risk'!AS91/'Population at Risk'!AS$5","v":3.0567903100763572E-3},{"$f":"'Population at Risk'!AT91/'Population at Risk'!AT$5","v":0},{"$f":"'Population at Risk'!AU91/'Population at Risk'!AU$5","v":0},{"$f":"'Population at Risk'!AV91/'Population at Risk'!AV$5","v":1.1112412562288352E-2},{"$f":"'Population at Risk'!AW91/'Population at Risk'!AW$5","v":1.2939451450304701E-2},{"$f":"'Population at Risk'!AX91/'Population at Risk'!AX$5","v":8.601049716861672E-3},{"$f":"'Population at Risk'!AY91/'Population at Risk'!AY$5","v":1.0444524725230185E-2},{"$f":"'Population at Risk'!AZ91/'Population at Risk'!AZ$5","v":1.0770068451395054E-2},{"$f":"'Population at Risk'!BA91/'Population at Risk'!BA$5","v":1.9346139615709211E-2},{"$f":"'Population at Risk'!BB91/'Population at Risk'!BB$5","v":7.3912365325157501E-3},{"$f":"'Population at Risk'!BC91/'Population at Risk'!BC$5","v":0},89]
[null,"Male 65-69",{"$f":"'Population at Risk'!C92/'Population at Risk'!C$5","v":3.9551169654581855E-3},{"$f":"'Population at Risk'!D92/'Population at Risk'!D$5","v":2.1555861924374645E-3},{"$f":"'Population at Risk'!E92/'Population at Risk'!E$5","v":1.1704877989910047E-3},{"$f":"'Population at Risk'!F92/'Population at Risk'!F$5","v":4.5723766240825647E-3},{"$f":"'Population at Risk'!G92/'Population at Risk'!G$5","v":3.5840121305380185E-3},{"$f":"'Population at Risk'!H92/'Population at Risk'!H$5","v":1.2939578025971402E-2},{"$f":"'Population at Risk'!I92/'Population at Risk'!I$5","v":2.8402009023321163E-3},{"$f":"'Population at Risk'!J92/'Population at Risk'!J$5","v":7.5895613025921058E-3},{"$f":"'Population at Risk'!K92/'Population at Risk'!K$5","v":1.0333057491888963E-2},{"$f":"'Population at Risk'!L92/'Population at Risk'!L$5","v":4.0184880736518318E-3},{"$f":"'Population at Risk'!M92/'Population at Risk'!M$5","v":4.0184880736518318E-3},{"$f":"'Population at Risk'!N92/'Population at Risk'!N$5","v":1.1406347390445087E-2},{"$f":"'Population at Risk'!O92/'Population at Risk'!O$5","v":1.3200041392623771E-2},{"$f":"'Population at Risk'!P92/'Population at Risk'!P$5","v":2.9762634913641827E-3},{"$f":"'Population at Risk'!Q92/'Population at Risk'!Q$5","v":1.7191398861770213E-3},{"$f":"'Population at Risk'!R92/'Population at Risk'!R$5","v":4.1357794385334682E-3},{"$f":"'Population at Risk'!S92/'Population at Risk'!S$5","v":5.3566920347996637E-3},{"$f":"'Population at Risk'!T92/'Population at Risk'!T$5","v":5.1191436013808597E-3},{"$f":"'Population at Risk'!U92/'Population at Risk'!U$5","v":0},{"$f":"'Population at Risk'!V92/'Population at Risk'!V$5","v":8.0081013390390244E-3},{"$f":"'Population at Risk'!W92/'Population at Risk'!W$5","v":9.2932307695741002E-3},{"$f":"'Population at Risk'!X92/'Population at Risk'!X$5","v":9.2932307695741002E-3},{"$f":"'Population at Risk'!Y92/'Population at Risk'!Y$5","v":7.7373301700068243E-3},{"$f":"'Population at Risk'!Z92/'Population at Risk'!Z$5","v":1.2779086324532231E-2},{"$f":"'Population at Risk'!AA92/'Population at Risk'!AA$5","v":1.0224647447043697E-2},{"$f":"'Population at Risk'!AB92/'Population at Risk'!AB$5","v":2.1961994379977052E-3},{"$f":"'Population at Risk'!AC92/'Population at Risk'!AC$5","v":1.1551512425230294E-2},{"$f":"'Population at Risk'!AD92/'Population at Risk'!AD$5","v":3.481406287390383E-3},{"$f":"'Population at Risk'!AE92/'Population at Risk'!AE$5","v":3.4213958804170481E-3},{"$f":"'Population at Risk'!AF92/'Population at Risk'!AF$5","v":1.7825450087594345E-2},{"$f":"'Population at Risk'!AG92/'Population at Risk'!AG$5","v":2.9199307281613436E-3},{"$f":"'Population at Risk'!AH92/'Population at Risk'!AH$5","v":9.2649497591650344E-3},{"$f":"'Population at Risk'!AI92/'Population at Risk'!AI$5","v":4.7291193467753857E-3},{"$f":"'Population at Risk'!AJ92/'Population at Risk'!AJ$5","v":3.9322813811212918E-3},{"$f":"'Population at Risk'!AK92/'Population at Risk'!AK$5","v":3.8536685751358932E-4},{"$f":"'Population at Risk'!AL92/'Population at Risk'!AL$5","v":1.7826205988924634E-2},{"$f":"'Population at Risk'!AM92/'Population at Risk'!AM$5","v":9.5091369628983857E-3},{"$f":"'Population at Risk'!AN92/'Population at Risk'!AN$5","v":0},{"$f":"'Population at Risk'!AO92/'Population at Risk'!AO$5","v":0},{"$f":"'Population at Risk'!AP92/'Population at Risk'!AP$5","v":2.3176689452761808E-3},{"$f":"'Population at Risk'!AQ92/'Population at Risk'!AQ$5","v":9.241664613377859E-3},{"$f":"'Population at Risk'!AR92/'Population at Risk'!AR$5","v":7.986121715200285E-3},{"$f":"'Population at Risk'!AS92/'Population at Risk'!AS$5","v":2.8402009023321163E-3},{"$f":"'Population at Risk'!AT92/'Population at Risk'!AT$5","v":0},{"$f":"'Population at Risk'!AU92/'Population at Risk'!AU$5","v":0},{"$f":"'Population at Risk'!AV92/'Population at Risk'!AV$5","v":6.8424552125343086E-3},{"$f":"'Population at Risk'!AW92/'Population at Risk'!AW$5","v":8.814165067237402E-3},{"$f":"'Population at Risk'!AX92/'Population at Risk'!AX$5","v":5.7664043005432918E-3},{"$f":"'Population at Risk'!AY92/'Population at Risk'!AY$5","v":7.1555438206461338E-3},{"$f":"'Population at Risk'!AZ92/'Population at Risk'!AZ$5","v":7.3026990208736259E-3},{"$f":"'Population at Risk'!BA92/'Population at Risk'!BA$5","v":1.1503685356651739E-2},{"$f":"'Population at Risk'!BB92/'Population at Risk'!BB$5","v":5.6139141123068802E-3},{"$f":"'Population at Risk'!BC92/'Population at Risk'!BC$5","v":0},90]
[null,"Male 70-74",{"$f":"'Population at Risk'!C93/'Population at Risk'!C$5","v":2.3003323960021169E-3},{"$f":"'Population at Risk'!D93/'Population at Risk'!D$5","v":1.2451039378700156E-3},{"$f":"'Population at Risk'!E93/'Population at Risk'!E$5","v":6.5901413892770851E-4},{"$f":"'Population at Risk'!F93/'Population at Risk'!F$5","v":3.0110772890299814E-3},{"$f":"'Population at Risk'!G93/'Population at Risk'!G$5","v":3.269625101543455E-3},{"$f":"'Population at Risk'!H93/'Population at Risk'!H$5","v":9.5962978787970908E-3},{"$f":"'Population at Risk'!I93/'Population at Risk'!I$5","v":1.9739396271208206E-3},{"$f":"'Population at Risk'!J93/'Population at Risk'!J$5","v":5.4473464187959472E-3},{"$f":"'Population at Risk'!K93/'Population at Risk'!K$5","v":7.5121634584949431E-3},{"$f":"'Population at Risk'!L93/'Population at Risk'!L$5","v":2.4479199586127064E-3},{"$f":"'Population at Risk'!M93/'Population at Risk'!M$5","v":2.4479199586127064E-3},{"$f":"'Population at Risk'!N93/'Population at Risk'!N$5","v":8.1142715175930493E-3},{"$f":"'Population at Risk'!O93/'Population at Risk'!O$5","v":9.054573847832835E-3},{"$f":"'Population at Risk'!P93/'Population at Risk'!P$5","v":2.0622928129137644E-3},{"$f":"'Population at Risk'!Q93/'Population at Risk'!Q$5","v":1.0893559674785085E-3},{"$f":"'Population at Risk'!R93/'Population at Risk'!R$5","v":2.6456824349442038E-3},{"$f":"'Population at Risk'!S93/'Population at Risk'!S$5","v":3.9393805650894294E-3},{"$f":"'Population at Risk'!T93/'Population at Risk'!T$5","v":3.4828876557340097E-3},{"$f":"'Population at Risk'!U93/'Population at Risk'!U$5","v":0},{"$f":"'Population at Risk'!V93/'Population at Risk'!V$5","v":5.048585626785472E-3},{"$f":"'Population at Risk'!W93/'Population at Risk'!W$5","v":7.1046248571910772E-3},{"$f":"'Population at Risk'!X93/'Population at Risk'!X$5","v":7.1046248571910772E-3},{"$f":"'Population at Risk'!Y93/'Population at Risk'!Y$5","v":5.2092309926232653E-3},{"$f":"'Population at Risk'!Z93/'Population at Risk'!Z$5","v":9.2593871875752722E-3},{"$f":"'Population at Risk'!AA93/'Population at Risk'!AA$5","v":7.3679592897785166E-3},{"$f":"'Population at Risk'!AB93/'Population at Risk'!AB$5","v":1.2839909454262326E-3},{"$f":"'Population at Risk'!AC93/'Population at Risk'!AC$5","v":8.3034709534053272E-3},{"$f":"'Population at Risk'!AD93/'Population at Risk'!AD$5","v":2.5280922606872973E-3},{"$f":"'Population at Risk'!AE93/'Population at Risk'!AE$5","v":2.2163229471667081E-3},{"$f":"'Population at Risk'!AF93/'Population at Risk'!AF$5","v":1.2284614886542524E-2},{"$f":"'Population at Risk'!AG93/'Population at Risk'!AG$5","v":1.8914822204591955E-3},{"$f":"'Population at Risk'!AH93/'Population at Risk'!AH$5","v":6.7111359979396485E-3},{"$f":"'Population at Risk'!AI93/'Population at Risk'!AI$5","v":3.3782352334138861E-3},{"$f":"'Population at Risk'!AJ93/'Population at Risk'!AJ$5","v":2.9443683247804748E-3},{"$f":"'Population at Risk'!AK93/'Population at Risk'!AK$5","v":3.0423699277388631E-4},{"$f":"'Population at Risk'!AL93/'Population at Risk'!AL$5","v":1.3674733855933461E-2},{"$f":"'Population at Risk'!AM93/'Population at Risk'!AM$5","v":6.6995381902084997E-3},{"$f":"'Population at Risk'!AN93/'Population at Risk'!AN$5","v":0},{"$f":"'Population at Risk'!AO93/'Population at Risk'!AO$5","v":0},{"$f":"'Population at Risk'!AP93/'Population at Risk'!AP$5","v":1.7130596552041334E-3},{"$f":"'Population at Risk'!AQ93/'Population at Risk'!AQ$5","v":6.619610932372978E-3},{"$f":"'Population at Risk'!AR93/'Population at Risk'!AR$5","v":5.7343146418291878E-3},{"$f":"'Population at Risk'!AS93/'Population at Risk'!AS$5","v":1.9739396271208206E-3},{"$f":"'Population at Risk'!AT93/'Population at Risk'!AT$5","v":0},{"$f":"'Population at Risk'!AU93/'Population at Risk'!AU$5","v":0},{"$f":"'Population at Risk'!AV93/'Population at Risk'!AV$5","v":5.3696981858364478E-3},{"$f":"'Population at Risk'!AW93/'Population at Risk'!AW$5","v":6.6539303917988709E-3},{"$f":"'Population at Risk'!AX93/'Population at Risk'!AX$5","v":4.075197385542963E-3},{"$f":"'Population at Risk'!AY93/'Population at Risk'!AY$5","v":5.2864229241952679E-3},{"$f":"'Population at Risk'!AZ93/'Population at Risk'!AZ$5","v":5.1658817008560926E-3},{"$f":"'Population at Risk'!BA93/'Population at Risk'!BA$5","v":8.4200781435468039E-3},{"$f":"'Population at Risk'!BB93/'Population at Risk'!BB$5","v":4.3835787988695226E-3},{"$f":"'Population at Risk'!BC93/'Population at Risk'!BC$5","v":0},91]
[null,"Male 75-79",{"$f":"'Population at Risk'!C94/'Population at Risk'!C$5","v":8.3646981907023682E-4},{"$f":"'Population at Risk'!D94/'Population at Risk'!D$5","v":4.8228291414113969E-4},{"$f":"'Population at Risk'!E94/'Population at Risk'!E$5","v":3.1427631566831961E-4},{"$f":"'Population at Risk'!F94/'Population at Risk'!F$5","v":1.4990347319837889E-3},{"$f":"'Population at Risk'!G94/'Population at Risk'!G$5","v":1.0391532493099773E-3},{"$f":"'Population at Risk'!H94/'Population at Risk'!H$5","v":4.1221765088181421E-3},{"$f":"'Population at Risk'!I94/'Population at Risk'!I$5","v":5.7109144637926788E-4},{"$f":"'Population at Risk'!J94/'Population at Risk'!J$5","v":2.4007045283481981E-3},{"$f":"'Population at Risk'!K94/'Population at Risk'!K$5","v":3.0742137651980691E-3},{"$f":"'Population at Risk'!L94/'Population at Risk'!L$5","v":1.0919521150107134E-3},{"$f":"'Population at Risk'!M94/'Population at Risk'!M$5","v":1.0919521150107134E-3},{"$f":"'Population at Risk'!N94/'Population at Risk'!N$5","v":3.3921362826669532E-3},{"$f":"'Population at Risk'!O94/'Population at Risk'!O$5","v":4.2401856173006148E-3},{"$f":"'Population at Risk'!P94/'Population at Risk'!P$5","v":8.6498024483479155E-4},{"$f":"'Population at Risk'!Q94/'Population at Risk'!Q$5","v":5.7198337741115851E-4},{"$f":"'Population at Risk'!R94/'Population at Risk'!R$5","v":1.6920124921900976E-3},{"$f":"'Population at Risk'!S94/'Population at Risk'!S$5","v":1.5781172569247581E-3},{"$f":"'Population at Risk'!T94/'Population at Risk'!T$5","v":1.5559788297659148E-3},{"$f":"'Population at Risk'!U94/'Population at Risk'!U$5","v":0},{"$f":"'Population at Risk'!V94/'Population at Risk'!V$5","v":2.3975930292655647E-3},{"$f":"'Population at Risk'!W94/'Population at Risk'!W$5","v":2.62674922347384E-3},{"$f":"'Population at Risk'!X94/'Population at Risk'!X$5","v":2.62674922347384E-3},{"$f":"'Population at Risk'!Y94/'Population at Risk'!Y$5","v":2.3807428389865022E-3},{"$f":"'Population at Risk'!Z94/'Population at Risk'!Z$5","v":3.8259563544072363E-3},{"$f":"'Population at Risk'!AA94/'Population at Risk'!AA$5","v":3.0804668088448514E-3},{"$f":"'Population at Risk'!AB94/'Population at Risk'!AB$5","v":4.8985649301743351E-4},{"$f":"'Population at Risk'!AC94/'Population at Risk'!AC$5","v":3.4931168930100202E-3},{"$f":"'Population at Risk'!AD94/'Population at Risk'!AD$5","v":9.3400445136823781E-4},{"$f":"'Population at Risk'!AE94/'Population at Risk'!AE$5","v":8.8669527001059532E-4},{"$f":"'Population at Risk'!AF94/'Population at Risk'!AF$5","v":5.0806104423554953E-3},{"$f":"'Population at Risk'!AG94/'Population at Risk'!AG$5","v":7.5673463577785756E-4},{"$f":"'Population at Risk'!AH94/'Population at Risk'!AH$5","v":2.7696237347723169E-3},{"$f":"'Population at Risk'!AI94/'Population at Risk'!AI$5","v":1.479338995245931E-3},{"$f":"'Population at Risk'!AJ94/'Population at Risk'!AJ$5","v":1.2378564052271967E-3},{"$f":"'Population at Risk'!AK94/'Population at Risk'!AK$5","v":7.8213645853663619E-5},{"$f":"'Population at Risk'!AL94/'Population at Risk'!AL$5","v":5.6153389623600017E-3},{"$f":"'Population at Risk'!AM94/'Population at Risk'!AM$5","v":2.903061598939992E-3},{"$f":"'Population at Risk'!AN94/'Population at Risk'!AN$5","v":0},{"$f":"'Population at Risk'!AO94/'Population at Risk'!AO$5","v":0},{"$f":"'Population at Risk'!AP94/'Population at Risk'!AP$5","v":7.6130816677431087E-4},{"$f":"'Population at Risk'!AQ94/'Population at Risk'!AQ$5","v":3.2156979117359524E-3},{"$f":"'Population at Risk'!AR94/'Population at Risk'!AR$5","v":2.3942631560755346E-3},{"$f":"'Population at Risk'!AS94/'Population at Risk'!AS$5","v":5.7109144637926788E-4},{"$f":"'Population at Risk'!AT94/'Population at Risk'!AT$5","v":0},{"$f":"'Population at Risk'!AU94/'Population at Risk'!AU$5","v":0},{"$f":"'Population at Risk'!AV94/'Population at Risk'!AV$5","v":2.2113989878053799E-3},{"$f":"'Population at Risk'!AW94/'Population at Risk'!AW$5","v":2.5485000993944944E-3},{"$f":"'Population at Risk'!AX94/'Population at Risk'!AX$5","v":1.9531321621470612E-3},{"$f":"'Population at Risk'!AY94/'Population at Risk'!AY$5","v":2.0927134002590763E-3},{"$f":"'Population at Risk'!AZ94/'Population at Risk'!AZ$5","v":2.2232219916876132E-3},{"$f":"'Population at Risk'!BA94/'Population at Risk'!BA$5","v":3.1026919531982867E-3},{"$f":"'Population at Risk'!BB94/'Population at Risk'!BB$5","v":1.8313461306734061E-3},{"$f":"'Population at Risk'!BC94/'Population at Risk'!BC$5","v":0},92]
[null,"Male 80-84",{"$f":"'Population at Risk'!C95/'Population at Risk'!C$5","v":6.0105615741573907E-4},{"$f":"'Population at Risk'!D95/'Population at Risk'!D$5","v":3.472436981816206E-4},{"$f":"'Population at Risk'!E95/'Population at Risk'!E$5","v":2.2757940100119695E-4},{"$f":"'Population at Risk'!F95/'Population at Risk'!F$5","v":8.4781472546624124E-4},{"$f":"'Population at Risk'!G95/'Population at Risk'!G$5","v":7.9668415780431603E-4},{"$f":"'Population at Risk'!H95/'Population at Risk'!H$5","v":2.7649585050791322E-3},{"$f":"'Population at Risk'!I95/'Population at Risk'!I$5","v":4.3809754790738361E-4},{"$f":"'Population at Risk'!J95/'Population at Risk'!J$5","v":1.1464038478067237E-3},{"$f":"'Population at Risk'!K95/'Population at Risk'!K$5","v":1.3681940383573825E-3},{"$f":"'Population at Risk'!L95/'Population at Risk'!L$5","v":6.9216636798493292E-4},{"$f":"'Population at Risk'!M95/'Population at Risk'!M$5","v":6.9216636798493292E-4},{"$f":"'Population at Risk'!N95/'Population at Risk'!N$5","v":2.1558456495262869E-3},{"$f":"'Population at Risk'!O95/'Population at Risk'!O$5","v":2.8178871346470225E-3},{"$f":"'Population at Risk'!P95/'Population at Risk'!P$5","v":5.5513657504322443E-4},{"$f":"'Population at Risk'!Q95/'Population at Risk'!Q$5","v":3.6569429047598659E-4},{"$f":"'Population at Risk'!R95/'Population at Risk'!R$5","v":8.0412474876361071E-4},{"$f":"'Population at Risk'!S95/'Population at Risk'!S$5","v":1.0900465819967066E-3},{"$f":"'Population at Risk'!T95/'Population at Risk'!T$5","v":1.0645041373295086E-3},{"$f":"'Population at Risk'!U95/'Population at Risk'!U$5","v":0},{"$f":"'Population at Risk'!V95/'Population at Risk'!V$5","v":1.7536680442628131E-3},{"$f":"'Population at Risk'!W95/'Population at Risk'!W$5","v":1.904393187018534E-3},{"$f":"'Population at Risk'!X95/'Population at Risk'!X$5","v":1.904393187018534E-3},{"$f":"'Population at Risk'!Y95/'Population at Risk'!Y$5","v":1.4365388801816572E-3},{"$f":"'Population at Risk'!Z95/'Population at Risk'!Z$5","v":2.614538239172346E-3},{"$f":"'Population at Risk'!AA95/'Population at Risk'!AA$5","v":2.0371095590428646E-3},{"$f":"'Population at Risk'!AB95/'Population at Risk'!AB$5","v":3.4838931615464023E-4},{"$f":"'Population at Risk'!AC95/'Population at Risk'!AC$5","v":2.3243776246223407E-3},{"$f":"'Population at Risk'!AD95/'Population at Risk'!AD$5","v":6.5147641447748966E-4},{"$f":"'Population at Risk'!AE95/'Population at Risk'!AE$5","v":5.895827188028566E-4},{"$f":"'Population at Risk'!AF95/'Population at Risk'!AF$5","v":3.2632379323429559E-3},{"$f":"'Population at Risk'!AG95/'Population at Risk'!AG$5","v":5.0316910337061733E-4},{"$f":"'Population at Risk'!AH95/'Population at Risk'!AH$5","v":1.807336192389144E-3},{"$f":"'Population at Risk'!AI95/'Population at Risk'!AI$5","v":9.768154434257484E-4},{"$f":"'Population at Risk'!AJ95/'Population at Risk'!AJ$5","v":7.8966701712769431E-4},{"$f":"'Population at Risk'!AK95/'Population at Risk'!AK$5","v":3.3520133937284411E-5},{"$f":"'Population at Risk'!AL95/'Population at Risk'!AL$5","v":3.6578792536500009E-3},{"$f":"'Population at Risk'!AM95/'Population at Risk'!AM$5","v":1.9052569357048662E-3},{"$f":"'Population at Risk'!AN95/'Population at Risk'!AN$5","v":0},{"$f":"'Population at Risk'!AO95/'Population at Risk'!AO$5","v":0},{"$f":"'Population at Risk'!AP95/'Population at Risk'!AP$5","v":5.0753877784954062E-4},{"$f":"'Population at Risk'!AQ95/'Population at Risk'!AQ$5","v":2.0127711524120465E-3},{"$f":"'Population at Risk'!AR95/'Population at Risk'!AR$5","v":1.5892924040185165E-3},{"$f":"'Population at Risk'!AS95/'Population at Risk'!AS$5","v":4.3809754790738361E-4},{"$f":"'Population at Risk'!AT95/'Population at Risk'!AT$5","v":0},{"$f":"'Population at Risk'!AU95/'Population at Risk'!AU$5","v":0},{"$f":"'Population at Risk'!AV95/'Population at Risk'!AV$5","v":1.6298297734799393E-3},{"$f":"'Population at Risk'!AW95/'Population at Risk'!AW$5","v":1.6475435664587755E-3},{"$f":"'Population at Risk'!AX95/'Population at Risk'!AX$5","v":9.9901587604073823E-4},{"$f":"'Population at Risk'!AY95/'Population at Risk'!AY$5","v":1.423311983173017E-3},{"$f":"'Population at Risk'!AZ95/'Population at Risk'!AZ$5","v":1.3989662192592123E-3},{"$f":"'Population at Risk'!BA95/'Population at Risk'!BA$5","v":2.0632901488768611E-3},{"$f":"'Population at Risk'!BB95/'Population at Risk'!BB$5","v":1.1490799251284117E-3},{"$f":"'Population at Risk'!BC95/'Population at Risk'!BC$5","v":0},93]
[null,"Male 85-89",{"$f":"'Population at Risk'!C96/'Population at Risk'!C$5","v":3.1054568133146517E-4},{"$f":"'Population at Risk'!D96/'Population at Risk'!D$5","v":1.7790880832762042E-4},{"$f":"'Population at Risk'!E96/'Population at Risk'!E$5","v":1.1378970050059848E-4},{"$f":"'Population at Risk'!F96/'Population at Risk'!F$5","v":4.5462528756885393E-4},{"$f":"'Population at Risk'!G96/'Population at Risk'!G$5","v":4.5029974136765686E-4},{"$f":"'Population at Risk'!H96/'Population at Risk'!H$5","v":1.2975095974831477E-3},{"$f":"'Population at Risk'!I96/'Population at Risk'!I$5","v":2.9728047893715315E-4},{"$f":"'Population at Risk'!J96/'Population at Risk'!J$5","v":7.0132941277587814E-4},{"$f":"'Population at Risk'!K96/'Population at Risk'!K$5","v":9.2902064332908685E-4},{"$f":"'Population at Risk'!L96/'Population at Risk'!L$5","v":3.9978574702578026E-4},{"$f":"'Population at Risk'!M96/'Population at Risk'!M$5","v":3.9978574702578026E-4},{"$f":"'Population at Risk'!N96/'Population at Risk'!N$5","v":1.1443351315021048E-3},{"$f":"'Population at Risk'!O96/'Population at Risk'!O$5","v":1.3889111943283905E-3},{"$f":"'Population at Risk'!P96/'Population at Risk'!P$5","v":2.9693351688358518E-4},{"$f":"'Population at Risk'!Q96/'Population at Risk'!Q$5","v":9.3767766788714513E-5},{"$f":"'Population at Risk'!R96/'Population at Risk'!R$5","v":4.0206237438180536E-4},{"$f":"'Population at Risk'!S96/'Population at Risk'!S$5","v":5.2250714045893167E-4},{"$f":"'Population at Risk'!T96/'Population at Risk'!T$5","v":5.0220558091755053E-4},{"$f":"'Population at Risk'!U96/'Population at Risk'!U$5","v":0},{"$f":"'Population at Risk'!V96/'Population at Risk'!V$5","v":7.1242764298176772E-4},{"$f":"'Population at Risk'!W96/'Population at Risk'!W$5","v":9.1148198054542243E-4},{"$f":"'Population at Risk'!X96/'Population at Risk'!X$5","v":9.1148198054542243E-4},{"$f":"'Population at Risk'!Y96/'Population at Risk'!Y$5","v":7.0140865511217061E-4},{"$f":"'Population at Risk'!Z96/'Population at Risk'!Z$5","v":1.2506823820775843E-3},{"$f":"'Population at Risk'!AA96/'Population at Risk'!AA$5","v":9.6564284292291653E-4},{"$f":"'Population at Risk'!AB96/'Population at Risk'!AB$5","v":1.8369618488153758E-4},{"$f":"'Population at Risk'!AC96/'Population at Risk'!AC$5","v":1.1149565763910782E-3},{"$f":"'Population at Risk'!AD96/'Population at Risk'!AD$5","v":3.4568136278397417E-4},{"$f":"'Population at Risk'!AE96/'Population at Risk'!AE$5","v":3.0175493482035968E-4},{"$f":"'Population at Risk'!AF96/'Population at Risk'!AF$5","v":1.4157432260318672E-3},{"$f":"'Population at Risk'!AG96/'Population at Risk'!AG$5","v":2.5752749385110337E-4},{"$f":"'Population at Risk'!AH96/'Population at Risk'!AH$5","v":8.3460161999216094E-4},{"$f":"'Population at Risk'!AI96/'Population at Risk'!AI$5","v":4.5622362906821078E-4},{"$f":"'Population at Risk'!AJ96/'Population at Risk'!AJ$5","v":5.9758585079933623E-4},{"$f":"'Population at Risk'!AK96/'Population at Risk'!AK$5","v":4.4693511916379208E-5},{"$f":"'Population at Risk'!AL96/'Population at Risk'!AL$5","v":1.6542841309300004E-3},{"$f":"'Population at Risk'!AM96/'Population at Risk'!AM$5","v":8.2299242892818446E-4},{"$f":"'Population at Risk'!AN96/'Population at Risk'!AN$5","v":0},{"$f":"'Population at Risk'!AO96/'Population at Risk'!AO$5","v":0},{"$f":"'Population at Risk'!AP96/'Population at Risk'!AP$5","v":2.5376938892477031E-4},{"$f":"'Population at Risk'!AQ96/'Population at Risk'!AQ$5","v":1.0703206598708765E-3},{"$f":"'Population at Risk'!AR96/'Population at Risk'!AR$5","v":7.6556538604140105E-4},{"$f":"'Population at Risk'!AS96/'Population at Risk'!AS$5","v":2.9728047893715315E-4},{"$f":"'Population at Risk'!AT96/'Population at Risk'!AT$5","v":0},{"$f":"'Population at Risk'!AU96/'Population at Risk'!AU$5","v":0},{"$f":"'Population at Risk'!AV96/'Population at Risk'!AV$5","v":7.6106588541353991E-4},{"$f":"'Population at Risk'!AW96/'Population at Risk'!AW$5","v":8.4201545134179336E-4},{"$f":"'Population at Risk'!AX96/'Population at Risk'!AX$5","v":5.5001997669658614E-4},{"$f":"'Population at Risk'!AY96/'Population at Risk'!AY$5","v":7.1165599158650849E-4},{"$f":"'Population at Risk'!AZ96/'Population at Risk'!AZ$5","v":7.3855333737468339E-4},{"$f":"'Population at Risk'!BA96/'Population at Risk'!BA$5","v":9.3080758595948609E-4},{"$f":"'Population at Risk'!BB96/'Population at Risk'!BB$5","v":4.6681371958341722E-4},{"$f":"'Population at Risk'!BC96/'Population at Risk'!BC$5","v":0},94]
[null,"Male 90+",{"$f":"'Population at Risk'!C97/'Population at Risk'!C$5","v":1.2522003279494563E-4},{"$f":"'Population at Risk'!D97/'Population at Risk'!D$5","v":8.5739184736202613E-5},{"$f":"'Population at Risk'!E97/'Population at Risk'!E$5","v":8.1278357500427485E-5},{"$f":"'Population at Risk'!F97/'Population at Risk'!F$5","v":1.3515886927722686E-4},{"$f":"'Population at Risk'!G97/'Population at Risk'!G$5","v":1.3855376657466364E-4},{"$f":"'Population at Risk'!H97/'Population at Risk'!H$5","v":4.9374259019270214E-4},{"$f":"'Population at Risk'!I97/'Population at Risk'!I$5","v":1.095243869768459E-4},{"$f":"'Population at Risk'!J97/'Population at Risk'!J$5","v":3.0345984206648567E-4},{"$f":"'Population at Risk'!K97/'Population at Risk'!K$5","v":4.8984724830079124E-4},{"$f":"'Population at Risk'!L97/'Population at Risk'!L$5","v":1.5514073765179534E-4},{"$f":"'Population at Risk'!M97/'Population at Risk'!M$5","v":1.5514073765179534E-4},{"$f":"'Population at Risk'!N97/'Population at Risk'!N$5","v":4.6488614717273008E-4},{"$f":"'Population at Risk'!O97/'Population at Risk'!O$5","v":5.4087407086826742E-4},{"$f":"'Population at Risk'!P97/'Population at Risk'!P$5","v":1.1619137617183768E-4},{"$f":"'Population at Risk'!Q97/'Population at Risk'!Q$5","v":6.5637436752100152E-5},{"$f":"'Population at Risk'!R97/'Population at Risk'!R$5","v":1.8427858825832748E-4},{"$f":"'Population at Risk'!S97/'Population at Risk'!S$5","v":2.4569093676839497E-4},{"$f":"'Population at Risk'!T97/'Population at Risk'!T$5","v":2.360795465851733E-4},{"$f":"'Population at Risk'!U97/'Population at Risk'!U$5","v":0},{"$f":"'Population at Risk'!V97/'Population at Risk'!V$5","v":3.5621382149088386E-4},{"$f":"'Population at Risk'!W97/'Population at Risk'!W$5","v":4.0977287886191904E-4},{"$f":"'Population at Risk'!X97/'Population at Risk'!X$5","v":4.0977287886191904E-4},{"$f":"'Population at Risk'!Y97/'Population at Risk'!Y$5","v":3.2709922858596414E-4},{"$f":"'Population at Risk'!Z97/'Population at Risk'!Z$5","v":5.3584175926500385E-4},{"$f":"'Population at Risk'!AA97/'Population at Risk'!AA$5","v":4.2205536927410002E-4},{"$f":"'Population at Risk'!AB97/'Population at Risk'!AB$5","v":8.8680916839362959E-5},{"$f":"'Population at Risk'!AC97/'Population at Risk'!AC$5","v":4.9162896658431587E-4},{"$f":"'Population at Risk'!AD97/'Population at Risk'!AD$5","v":1.0968735549876103E-4},{"$f":"'Population at Risk'!AE97/'Population at Risk'!AE$5","v":9.7490055865039283E-5},{"$f":"'Population at Risk'!AF97/'Population at Risk'!AF$5","v":6.3256612226955764E-4},{"$f":"'Population at Risk'!AG97/'Population at Risk'!AG$5","v":8.3201190321125699E-5},{"$f":"'Population at Risk'!AH97/'Population at Risk'!AH$5","v":3.5752058269483385E-4},{"$f":"'Population at Risk'!AI97/'Population at Risk'!AI$5","v":2.269825481255207E-4},{"$f":"'Population at Risk'!AJ97/'Population at Risk'!AJ$5","v":3.2013527721393013E-4},{"$f":"'Population at Risk'!AK97/'Population at Risk'!AK$5","v":2.2346755958189604E-5},{"$f":"'Population at Risk'!AL97/'Population at Risk'!AL$5","v":6.0635115556000008E-4},{"$f":"'Population at Risk'!AM97/'Population at Risk'!AM$5","v":3.6926629269331429E-4},{"$f":"'Population at Risk'!AN97/'Population at Risk'!AN$5","v":0},{"$f":"'Population at Risk'!AO97/'Population at Risk'!AO$5","v":0},{"$f":"'Population at Risk'!AP97/'Population at Risk'!AP$5","v":7.1372640635091641E-5},{"$f":"'Population at Risk'!AQ97/'Population at Risk'!AQ$5","v":4.4517761959231154E-4},{"$f":"'Population at Risk'!AR97/'Population at Risk'!AR$5","v":3.2969729819180138E-4},{"$f":"'Population at Risk'!AS97/'Population at Risk'!AS$5","v":1.095243869768459E-4},{"$f":"'Population at Risk'!AT97/'Population at Risk'!AT$5","v":0},{"$f":"'Population at Risk'!AU97/'Population at Risk'!AU$5","v":0},{"$f":"'Population at Risk'!AV97/'Population at Risk'!AV$5","v":3.0155440742800636E-4},{"$f":"'Population at Risk'!AW97/'Population at Risk'!AW$5","v":3.3680618053671734E-4},{"$f":"'Population at Risk'!AX97/'Population at Risk'!AX$5","v":1.795983597376608E-4},{"$f":"'Population at Risk'!AY97/'Population at Risk'!AY$5","v":2.9689398398999648E-4},{"$f":"'Population at Risk'!AZ97/'Population at Risk'!AZ$5","v":2.7979324385184244E-4},{"$f":"'Population at Risk'!BA97/'Population at Risk'!BA$5","v":5.5848455157569174E-4},{"$f":"'Population at Risk'!BB97/'Population at Risk'!BB$5","v":2.4238404670677433E-4},{"$f":"'Population at Risk'!BC97/'Population at Risk'!BC$5","v":0},95]
["SIMD Q2","Female 0-4",{"$f":"'Population at Risk'!C98/'Population at Risk'!C$5","v":0},{"$f":"'Population at Risk'!D98/'Population at Risk'!D$5","v":0},{"$f":"'Population at Risk'!E98/'Population at Risk'!E$5","v":0},{"$f":"'Population at Risk'!F98/'Population at Risk'!F$5","v":0},{"$f":"'Population at Risk'!G98/'Population at Risk'!G$5","v":0},{"$f":"'Population at Risk'!H98/'Population at Risk'!H$5","v":0},{"$f":"'Population at Risk'!I98/'Population at Risk'!I$5","v":0},{"$f":"'Population at Risk'!J98/'Population at Risk'!J$5","v":0},{"$f":"'Population at Risk'!K98/'Population at Risk'!K$5","v":0},{"$f":"'Population at Risk'!L98/'Population at Risk'!L$5","v":0},{"$f":"'Population at Risk'!M98/'Population at Risk'!M$5","v":0},{"$f":"'Population at Risk'!N98/'Population at Risk'!N$5","v":0},{"$f":"'Population at Risk'!O98/'Population at Risk'!O$5","v":0},{"$f":"'Population at Risk'!P98/'Population at Risk'!P$5","v":0},{"$f":"'Population at Risk'!Q98/'Population at Risk'!Q$5","v":0},{"$f":"'Population at Risk'!R98/'Population at Risk'!R$5","v":0},{"$f":"'Population at Risk'!S98/'Population at Risk'!S$5","v":0},{"$f":"'Population at Risk'!T98/'Population at Risk'!T$5","v":0},{"$f":"'Population at Risk'!U98/'Population at Risk'!U$5","v":0},{"$f":"'Population at Risk'!V98/'Population at Risk'!V$5","v":0},{"$f":"'Population at Risk'!W98/'Population at Risk'!W$5","v":0},{"$f":"'Population at Risk'!X98/'Population at Risk'!X$5","v":0},{"$f":"'Population at Risk'!Y98/'Population at Risk'!Y$5","v":0},{"$f":"'Population at Risk'!Z98/'Population at Risk'!Z$5","v":0},{"$f":"'Population at Risk'!AA98/'Population at Risk'!AA$5","v":0},{"$f":"'Population at Risk'!AB98/'Population at Risk'!AB$5","v":0},{"$f":"'Population at Risk'!AC98/'Population at Risk'!AC$5","v":0},{"$f":"'Population at Risk'!AD98/'Population at Risk'!AD$5","v":0},{"$f":"'Population at Risk'!AE98/'Population at Risk'!AE$5","v":0},{"$f":"'Population at Risk'!AF98/'Population at Risk'!AF$5","v":0},{"$f":"'Population at Risk'!AG98/'Population at Risk'!AG$5","v":0},{"$f":"'Population at Risk'!AH98/'Population at Risk'!AH$5","v":0},{"$f":"'Population at Risk'!AI98/'Population at Risk'!AI$5","v":0},{"$f":"'Population at Risk'!AJ98/'Population at Risk'!AJ$5","v":0},{"$f":"'Population at Risk'!AK98/'Population at Risk'!AK$5","v":0},{"$f":"'Population at Risk'!AL98/'Population at Risk'!AL$5","v":0},{"$f":"'Population at Risk'!AM98/'Population at Risk'!AM$5","v":0},{"$f":"'Population at Risk'!AN98/'Population at Risk'!AN$5","v":0},{"$f":"'Population at Risk'!AO98/'Population at Risk'!AO$5","v":0},{"$f":"'Population at Risk'!AP98/'Population at Risk'!AP$5","v":0},{"$f":"'Population at Risk'!AQ98/'Population at Risk'!AQ$5","v":0},{"$f":"'Population at Risk'!AR98/'Population at Risk'!AR$5","v":0},{"$f":"'Population at Risk'!AS98/'Population at Risk'!AS$5","v":0},{"$f":"'Population at Risk'!AT98/'Population at Risk'!AT$5","v":0},{"$f":"'Population at Risk'!AU98/'Population at Risk'!AU$5","v":0},{"$f":"'Population at Risk'!AV98/'Population at Risk'!AV$5","v":0},{"$f":"'Population at Risk'!AW98/'Population at Risk'!AW$5","v":0},{"$f":"'Population at Risk'!AX98/'Population at Risk'!AX$5","v":0},{"$f":"'Population at Risk'!AY98/'Population at Risk'!AY$5","v":0},{"$f":"'Population at Risk'!AZ98/'Population at Risk'!AZ$5","v":0},{"$f":"'Population at Risk'!BA98/'Population at Risk'!BA$5","v":0},{"$f":"'Population at Risk'!BB98/'Population at Risk'!BB$5","v":0},{"$f":"'Population at Risk'!BC98/'Population at Risk'!BC$5","v":0},96]
[null,"Female 5-9",{"$f":"'Population at Risk'!C99/'Population at Risk'!C$5","v":0},{"$f":"'Population at Risk'!D99/'Population at Risk'!D$5","v":0},{"$f":"'Population at Risk'!E99/'Population at Risk'!E$5","v":0},{"$f":"'Population at Risk'!F99/'Population at Risk'!F$5","v":0},{"$f":"'Population at Risk'!G99/'Population at Risk'!G$5","v":0},{"$f":"'Population at Risk'!H99/'Population at Risk'!H$5","v":0},{"$f":"'Population at Risk'!I99/'Population at Risk'!I$5","v":0},{"$f":"'Population at Risk'!J99/'Population at Risk'!J$5","v":0},{"$f":"'Population at Risk'!K99/'Population at Risk'!K$5","v":0},{"$f":"'Population at Risk'!L99/'Population at Risk'!L$5","v":0},{"$f":"'Population at Risk'!M99/'Population at Risk'!M$5","v":0},{"$f":"'Population at Risk'!N99/'Population at Risk'!N$5","v":0},{"$f":"'Population at Risk'!O99/'Population at Risk'!O$5","v":0},{"$f":"'Population at Risk'!P99/'Population at Risk'!P$5","v":0},{"$f":"'Population at Risk'!Q99/'Population at Risk'!Q$5","v":0},{"$f":"'Population at Risk'!R99/'Population at Risk'!R$5","v":0},{"$f":"'Population at Risk'!S99/'Population at Risk'!S$5","v":0},{"$f":"'Population at Risk'!T99/'Population at Risk'!T$5","v":0},{"$f":"'Population at Risk'!U99/'Population at Risk'!U$5","v":0},{"$f":"'Population at Risk'!V99/'Population at Risk'!V$5","v":0},{"$f":"'Population at Risk'!W99/'Population at Risk'!W$5","v":0},{"$f":"'Population at Risk'!X99/'Population at Risk'!X$5","v":0},{"$f":"'Population at Risk'!Y99/'Population at Risk'!Y$5","v":0},{"$f":"'Population at Risk'!Z99/'Population at Risk'!Z$5","v":0},{"$f":"'Population at Risk'!AA99/'Population at Risk'!AA$5","v":0},{"$f":"'Population at Risk'!AB99/'Population at Risk'!AB$5","v":0},{"$f":"'Population at Risk'!AC99/'Population at Risk'!AC$5","v":0},{"$f":"'Population at Risk'!AD99/'Population at Risk'!AD$5","v":0},{"$f":"'Population at Risk'!AE99/'Population at Risk'!AE$5","v":0},{"$f":"'Population at Risk'!AF99/'Population at Risk'!AF$5","v":0},{"$f":"'Population at Risk'!AG99/'Population at Risk'!AG$5","v":0},{"$f":"'Population at Risk'!AH99/'Population at Risk'!AH$5","v":0},{"$f":"'Population at Risk'!AI99/'Population at Risk'!AI$5","v":0},{"$f":"'Population at Risk'!AJ99/'Population at Risk'!AJ$5","v":0},{"$f":"'Population at Risk'!AK99/'Population at Risk'!AK$5","v":0},{"$f":"'Population at Risk'!AL99/'Population at Risk'!AL$5","v":0},{"$f":"'Population at Risk'!AM99/'Population at Risk'!AM$5","v":0},{"$f":"'Population at Risk'!AN99/'Population at Risk'!AN$5","v":0},{"$f":"'Population at Risk'!AO99/'Population at Risk'!AO$5","v":0},{"$f":"'Population at Risk'!AP99/'Population at Risk'!AP$5","v":0},{"$f":"'Population at Risk'!AQ99/'Population at Risk'!AQ$5","v":0},{"$f":"'Population at Risk'!AR99/'Population at Risk'!AR$5","v":0},{"$f":"'Population at Risk'!AS99/'Population at Risk'!AS$5","v":0},{"$f":"'Population at Risk'!AT99/'Population at Risk'!AT$5","v":0},{"$f":"'Population at Risk'!AU99/'Population at Risk'!AU$5","v":0},{"$f":"'Population at Risk'!AV99/'Population at Risk'!AV$5","v":0},{"$f":"'Population at Risk'!AW99/'Population at Risk'!AW$5","v":0},{"$f":"'Population at Risk'!AX99/'Population at Risk'!AX$5","v":0},{"$f":"'Population at Risk'!AY99/'Population at Risk'!AY$5","v":0},{"$f":"'Population at Risk'!AZ99/'Population at Risk'!AZ$5","v":0},{"$f":"'Population at Risk'!BA99/'Population at Risk'!BA$5","v":0},{"$f":"'Population at Risk'!BB99/'Population at Risk'!BB$5","v":0},{"$f":"'Population at Risk'!BC99/'Population at Risk'!BC$5","v":0},97]
[null,"Female 10-15",{"$f":"'Population at Risk'!C100/'Population at Risk'!C$5","v":0},{"$f":"'Population at Risk'!D100/'Population at Risk'!D$5","v":0},{"$f":"'Population at Risk'!E100/'Population at Risk'!E$5","v":0},{"$f":"'Population at Risk'!F100/'Population at Risk'!F$5","v":0},{"$f":"'Population at Risk'!G100/'Population at Risk'!G$5","v":0},{"$f":"'Population at Risk'!H100/'Population at Risk'!H$5","v":0},{"$f":"'Population at Risk'!I100/'Population at Risk'!I$5","v":0},{"$f":"'Population at Risk'!J100/'Population at Risk'!J$5","v":0},{"$f":"'Population at Risk'!K100/'Population at Risk'!K$5","v":0},{"$f":"'Population at Risk'!L100/'Population at Risk'!L$5","v":0},{"$f":"'Population at Risk'!M100/'Population at Risk'!M$5","v":0},{"$f":"'Population at Risk'!N100/'Population at Risk'!N$5","v":0},{"$f":"'Population at Risk'!O100/'Population at Risk'!O$5","v":0},{"$f":"'Population at Risk'!P100/'Population at Risk'!P$5","v":0},{"$f":"'Population at Risk'!Q100/'Population at Risk'!Q$5","v":0},{"$f":"'Population at Risk'!R100/'Population at Risk'!R$5","v":0},{"$f":"'Population at Risk'!S100/'Population at Risk'!S$5","v":0},{"$f":"'Population at Risk'!T100/'Population at Risk'!T$5","v":0},{"$f":"'Population at Risk'!U100/'Population at Risk'!U$5","v":0},{"$f":"'Population at Risk'!V100/'Population at Risk'!V$5","v":0},{"$f":"'Population at Risk'!W100/'Population at Risk'!W$5","v":0},{"$f":"'Population at Risk'!X100/'Population at Risk'!X$5","v":0},{"$f":"'Population at Risk'!Y100/'Population at Risk'!Y$5","v":0},{"$f":"'Population at Risk'!Z100/'Population at Risk'!Z$5","v":0},{"$f":"'Population at Risk'!AA100/'Population at Risk'!AA$5","v":0},{"$f":"'Population at Risk'!AB100/'Population at Risk'!AB$5","v":0},{"$f":"'Population at Risk'!AC100/'Population at Risk'!AC$5","v":0},{"$f":"'Population at Risk'!AD100/'Population at Risk'!AD$5","v":0},{"$f":"'Population at Risk'!AE100/'Population at Risk'!AE$5","v":0},{"$f":"'Population at Risk'!AF100/'Population at Risk'!AF$5","v":0},{"$f":"'Population at Risk'!AG100/'Population at Risk'!AG$5","v":0},{"$f":"'Population at Risk'!AH100/'Population at Risk'!AH$5","v":0},{"$f":"'Population at Risk'!AI100/'Population at Risk'!AI$5","v":0},{"$f":"'Population at Risk'!AJ100/'Population at Risk'!AJ$5","v":0},{"$f":"'Population at Risk'!AK100/'Population at Risk'!AK$5","v":0},{"$f":"'Population at Risk'!AL100/'Population at Risk'!AL$5","v":0},{"$f":"'Population at Risk'!AM100/'Population at Risk'!AM$5","v":0},{"$f":"'Population at Risk'!AN100/'Population at Risk'!AN$5","v":0},{"$f":"'Population at Risk'!AO100/'Population at Risk'!AO$5","v":0},{"$f":"'Population at Risk'!AP100/'Population at Risk'!AP$5","v":0},{"$f":"'Population at Risk'!AQ100/'Population at Risk'!AQ$5","v":0},{"$f":"'Population at Risk'!AR100/'Population at Risk'!AR$5","v":0},{"$f":"'Population at Risk'!AS100/'Population at Risk'!AS$5","v":0},{"$f":"'Population at Risk'!AT100/'Population at Risk'!AT$5","v":0},{"$f":"'Population at Risk'!AU100/'Population at Risk'!AU$5","v":0},{"$f":"'Population at Risk'!AV100/'Population at Risk'!AV$5","v":0},{"$f":"'Population at Risk'!AW100/'Population at Risk'!AW$5","v":0},{"$f":"'Population at Risk'!AX100/'Population at Risk'!AX$5","v":0},{"$f":"'Population at Risk'!AY100/'Population at Risk'!AY$5","v":0},{"$f":"'Population at Risk'!AZ100/'Population at Risk'!AZ$5","v":0},{"$f":"'Population at Risk'!BA100/'Population at Risk'!BA$5","v":0},{"$f":"'Population at Risk'!BB100/'Population at Risk'!BB$5","v":0},{"$f":"'Population at Risk'!BC100/'Population at Risk'!BC$5","v":0},98]
[null,"Female 16-19",{"$f":"'Population at Risk'!C101/'Population at Risk'!C$5","v":5.8205845917166732E-3},{"$f":"'Population at Risk'!D101/'Population at Risk'!D$5","v":5.3624058093044444E-3},{"$f":"'Population at Risk'!E101/'Population at Risk'!E$5","v":2.5145961548521186E-3},{"$f":"'Population at Risk'!F101/'Population at Risk'!F$5","v":3.3296641307465546E-3},{"$f":"'Population at Risk'!G101/'Population at Risk'!G$5","v":5.0179826671811348E-3},{"$f":"'Population at Risk'!H101/'Population at Risk'!H$5","v":6.3773369479398802E-3},{"$f":"'Population at Risk'!I101/'Population at Risk'!I$5","v":6.0764537518324911E-3},{"$f":"'Population at Risk'!J101/'Population at Risk'!J$5","v":6.7376272125114689E-3},{"$f":"'Population at Risk'!K101/'Population at Risk'!K$5","v":8.5949690919215754E-3},{"$f":"'Population at Risk'!L101/'Population at Risk'!L$5","v":9.392105393225882E-3},{"$f":"'Population at Risk'!M101/'Population at Risk'!M$5","v":9.392105393225882E-3},{"$f":"'Population at Risk'!N101/'Population at Risk'!N$5","v":6.0308499951664211E-3},{"$f":"'Population at Risk'!O101/'Population at Risk'!O$5","v":7.1476570824300645E-3},{"$f":"'Population at Risk'!P101/'Population at Risk'!P$5","v":6.3073755229758888E-3},{"$f":"'Population at Risk'!Q101/'Population at Risk'!Q$5","v":9.4176329358512893E-3},{"$f":"'Population at Risk'!R101/'Population at Risk'!R$5","v":4.1900855078965968E-3},{"$f":"'Population at Risk'!S101/'Population at Risk'!S$5","v":7.2997991062810257E-3},{"$f":"'Population at Risk'!T101/'Population at Risk'!T$5","v":4.7418330464078793E-3},{"$f":"'Population at Risk'!U101/'Population at Risk'!U$5","v":6.4784744573643145E-3},{"$f":"'Population at Risk'!V101/'Population at Risk'!V$5","v":7.013540217414428E-3},{"$f":"'Population at Risk'!W101/'Population at Risk'!W$5","v":5.9555522099288072E-3},{"$f":"'Population at Risk'!X101/'Population at Risk'!X$5","v":5.9555522099288072E-3},{"$f":"'Population at Risk'!Y101/'Population at Risk'!Y$5","v":7.0867147235298663E-3},{"$f":"'Population at Risk'!Z101/'Population at Risk'!Z$5","v":4.435768239103046E-3},{"$f":"'Population at Risk'!AA101/'Population at Risk'!AA$5","v":6.5116072675463774E-3},{"$f":"'Population at Risk'!AB101/'Population at Risk'!AB$5","v":4.4439758990951024E-3},{"$f":"'Population at Risk'!AC101/'Population at Risk'!AC$5","v":5.036814446569682E-3},{"$f":"'Population at Risk'!AD101/'Population at Risk'!AD$5","v":5.7069310166525502E-3},{"$f":"'Population at Risk'!AE101/'Population at Risk'!AE$5","v":5.969876953849945E-3},{"$f":"'Population at Risk'!AF101/'Population at Risk'!AF$5","v":3.5872620740318782E-3},{"$f":"'Population at Risk'!AG101/'Population at Risk'!AG$5","v":7.0682188085844644E-3},{"$f":"'Population at Risk'!AH101/'Population at Risk'!AH$5","v":8.5747264712648114E-3},{"$f":"'Population at Risk'!AI101/'Population at Risk'!AI$5","v":7.1453295729901143E-3},{"$f":"'Population at Risk'!AJ101/'Population at Risk'!AJ$5","v":1.254329446275624E-2},{"$f":"'Population at Risk'!AK101/'Population at Risk'!AK$5","v":5.3735382098058938E-3},{"$f":"'Population at Risk'!AL101/'Population at Risk'!AL$5","v":4.3934149754295574E-3},{"$f":"'Population at Risk'!AM101/'Population at Risk'!AM$5","v":9.499149318825206E-3},{"$f":"'Population at Risk'!AN101/'Population at Risk'!AN$5","v":3.884958703766614E-3},{"$f":"'Population at Risk'!AO101/'Population at Risk'!AO$5","v":3.884958703766614E-3},{"$f":"'Population at Risk'!AP101/'Population at Risk'!AP$5","v":3.9223914095079301E-3},{"$f":"'Population at Risk'!AQ101/'Population at Risk'!AQ$5","v":6.0937960247025814E-3},{"$f":"'Population at Risk'!AR101/'Population at Risk'!AR$5","v":6.1533588602373261E-3},{"$f":"'Population at Risk'!AS101/'Population at Risk'!AS$5","v":6.0764537518324911E-3},{"$f":"'Population at Risk'!AT101/'Population at Risk'!AT$5","v":1.0841297361299052E-3},{"$f":"'Population at Risk'!AU101/'Population at Risk'!AU$5","v":1.0841297361299052E-3},{"$f":"'Population at Risk'!AV101/'Population at Risk'!AV$5","v":8.7258975351542697E-3},{"$f":"'Population at Risk'!AW101/'Population at Risk'!AW$5","v":7.4666870353231884E-3},{"$f":"'Population at Risk'!AX101/'Population at Risk'!AX$5","v":5.5033532718894076E-3},{"$f":"'Population at Risk'!AY101/'Population at Risk'!AY$5","v":6.1647987421564908E-3},{"$f":"'Population at Risk'!AZ101/'Population at Risk'!AZ$5","v":4.7148737970627626E-3},{"$f":"'Population at Risk'!BA101/'Population at Risk'!BA$5","v":8.0141249721002866E-3},{"$f":"'Population at Risk'!BB101/'Population at Risk'!BB$5","v":9.9416481646467745E-3},{"$f":"'Population at Risk'!BC101/'Population at Risk'!BC$5","v":6.4784744573643145E-3},99]
[null,"Female 20-24",{"$f":"'Population at Risk'!C102/'Population at Risk'!C$5","v":1.3310262783769204E-2},{"$f":"'Population at Risk'!D102/'Population at Risk'!D$5","v":1.114037808967272E-2},{"$f":"'Population at Risk'!E102/'Population at Risk'!E$5","v":3.9064874990522467E-3},{"$f":"'Population at Risk'!F102/'Population at Risk'!F$5","v":6.4786488125378695E-3},{"$f":"'Population at Risk'!G102/'Population at Risk'!G$5","v":6.5180201904665993E-3},{"$f":"'Population at Risk'!H102/'Population at Risk'!H$5","v":8.6389263907664226E-3},{"$f":"'Population at Risk'!I102/'Population at Risk'!I$5","v":9.2825384661971468E-3},{"$f":"'Population at Risk'!J102/'Population at Risk'!J$5","v":1.0763515918439374E-2},{"$f":"'Population at Risk'!K102/'Population at Risk'!K$5","v":9.8228218193389446E-3},{"$f":"'Population at Risk'!L102/'Population at Risk'!L$5","v":1.1740131741532352E-2},{"$f":"'Population at Risk'!M102/'Population at Risk'!M$5","v":1.1740131741532352E-2},{"$f":"'Population at Risk'!N102/'Population at Risk'!N$5","v":1.4634742278689774E-2},{"$f":"'Population at Risk'!O102/'Population at Risk'!O$5","v":9.2608774372354759E-3},{"$f":"'Population at Risk'!P102/'Population at Risk'!P$5","v":9.0306156512802421E-3},{"$f":"'Population at Risk'!Q102/'Population at Risk'!Q$5","v":1.5849603256170016E-2},{"$f":"'Population at Risk'!R102/'Population at Risk'!R$5","v":5.3204341565384694E-3},{"$f":"'Population at Risk'!S102/'Population at Risk'!S$5","v":1.2444101977221839E-2},{"$f":"'Population at Risk'!T102/'Population at Risk'!T$5","v":1.2117361657819389E-2},{"$f":"'Population at Risk'!U102/'Population at Risk'!U$5","v":7.9059349310208592E-3},{"$f":"'Population at Risk'!V102/'Population at Risk'!V$5","v":9.8370752457384285E-3},{"$f":"'Population at Risk'!W102/'Population at Risk'!W$5","v":8.0554868041811615E-3},{"$f":"'Population at Risk'!X102/'Population at Risk'!X$5","v":8.0554868041811615E-3},{"$f":"'Population at Risk'!Y102/'Population at Risk'!Y$5","v":1.0506335796471261E-2},{"$f":"'Population at Risk'!Z102/'Population at Risk'!Z$5","v":8.4392292029249125E-3},{"$f":"'Population at Risk'!AA102/'Population at Risk'!AA$5","v":9.8113353527101155E-3},{"$f":"'Population at Risk'!AB102/'Population at Risk'!AB$5","v":9.1959501278304576E-3},{"$f":"'Population at Risk'!AC102/'Population at Risk'!AC$5","v":8.1978650291678421E-3},{"$f":"'Population at Risk'!AD102/'Population at Risk'!AD$5","v":7.3434096199737585E-3},{"$f":"'Population at Risk'!AE102/'Population at Risk'!AE$5","v":7.6604063733832113E-3},{"$f":"'Population at Risk'!AF102/'Population at Risk'!AF$5","v":4.487959910801787E-3},{"$f":"'Population at Risk'!AG102/'Population at Risk'!AG$5","v":9.0697729330634514E-3},{"$f":"'Population at Risk'!AH102/'Population at Risk'!AH$5","v":1.1717916082664028E-2},{"$f":"'Population at Risk'!AI102/'Population at Risk'!AI$5","v":1.3276287120971366E-2},{"$f":"'Population at Risk'!AJ102/'Population at Risk'!AJ$5","v":1.5728631082903545E-2},{"$f":"'Population at Risk'!AK102/'Population at Risk'!AK$5","v":1.0903968046175464E-2},{"$f":"'Population at Risk'!AL102/'Population at Risk'!AL$5","v":5.9675262233107361E-3},{"$f":"'Population at Risk'!AM102/'Population at Risk'!AM$5","v":1.2116173607481514E-2},{"$f":"'Population at Risk'!AN102/'Population at Risk'!AN$5","v":6.9770686924788177E-3},{"$f":"'Population at Risk'!AO102/'Population at Risk'!AO$5","v":6.9770686924788177E-3},{"$f":"'Population at Risk'!AP102/'Population at Risk'!AP$5","v":6.2411531819794681E-3},{"$f":"'Population at Risk'!AQ102/'Population at Risk'!AQ$5","v":7.7484028923370581E-3},{"$f":"'Population at Risk'!AR102/'Population at Risk'!AR$5","v":9.8201975945632573E-3},{"$f":"'Population at Risk'!AS102/'Population at Risk'!AS$5","v":9.2825384661971468E-3},{"$f":"'Population at Risk'!AT102/'Population at Risk'!AT$5","v":2.013383795669824E-3},{"$f":"'Population at Risk'!AU102/'Population at Risk'!AU$5","v":2.013383795669824E-3},{"$f":"'Population at Risk'!AV102/'Population at Risk'!AV$5","v":1.2386089454262606E-2},{"$f":"'Population at Risk'!AW102/'Population at Risk'!AW$5","v":1.1073845282574308E-2},{"$f":"'Population at Risk'!AX102/'Population at Risk'!AX$5","v":1.1388642732995115E-2},{"$f":"'Population at Risk'!AY102/'Population at Risk'!AY$5","v":1.0480572441272097E-2},{"$f":"'Population at Risk'!AZ102/'Population at Risk'!AZ$5","v":9.8157217370043407E-3},{"$f":"'Population at Risk'!BA102/'Population at Risk'!BA$5","v":1.0861431071373351E-2},{"$f":"'Population at Risk'!BB102/'Population at Risk'!BB$5","v":1.3258610702851415E-2},{"$f":"'Population at Risk'!BC102/'Population at Risk'!BC$5","v":7.9059349310208592E-3},100]
[null,"Female 25-29",{"$f":"'Population at Risk'!C103/'Population at Risk'!C$5","v":1.6097910908164519E-2},{"$f":"'Population at Risk'!D103/'Population at Risk'!D$5","v":1.342060226288704E-2},{"$f":"'Population at Risk'!E103/'Population at Risk'!E$5","v":4.637608650919306E-3},{"$f":"'Population at Risk'!F103/'Population at Risk'!F$5","v":7.0917621745911381E-3},{"$f":"'Population at Risk'!G103/'Population at Risk'!G$5","v":8.1183839137424652E-3},{"$f":"'Population at Risk'!H103/'Population at Risk'!H$5","v":9.8620284135866598E-3},{"$f":"'Population at Risk'!I103/'Population at Risk'!I$5","v":9.9846450920227578E-3},{"$f":"'Population at Risk'!J103/'Population at Risk'!J$5","v":1.1288899927835289E-2},{"$f":"'Population at Risk'!K103/'Population at Risk'!K$5","v":1.204317868016754E-2},{"$f":"'Population at Risk'!L103/'Population at Risk'!L$5","v":1.2097857278722543E-2},{"$f":"'Population at Risk'!M103/'Population at Risk'!M$5","v":1.2097857278722543E-2},{"$f":"'Population at Risk'!N103/'Population at Risk'!N$5","v":1.4355781623432508E-2},{"$f":"'Population at Risk'!O103/'Population at Risk'!O$5","v":1.1179214900382406E-2},{"$f":"'Population at Risk'!P103/'Population at Risk'!P$5","v":1.0898583752402432E-2},{"$f":"'Population at Risk'!Q103/'Population at Risk'!Q$5","v":1.6799075993544448E-2},{"$f":"'Population at Risk'!R103/'Population at Risk'!R$5","v":5.2580065347956461E-3},{"$f":"'Population at Risk'!S103/'Population at Risk'!S$5","v":1.4631618380337559E-2},{"$f":"'Population at Risk'!T103/'Population at Risk'!T$5","v":1.4561374809234872E-2},{"$f":"'Population at Risk'!U103/'Population at Risk'!U$5","v":9.1557383902712997E-3},{"$f":"'Population at Risk'!V103/'Population at Risk'!V$5","v":1.1338979397133788E-2},{"$f":"'Population at Risk'!W103/'Population at Risk'!W$5","v":9.7225257345983085E-3},{"$f":"'Population at Risk'!X103/'Population at Risk'!X$5","v":9.7225257345983085E-3},{"$f":"'Population at Risk'!Y103/'Population at Risk'!Y$5","v":1.1628119341844018E-2},{"$f":"'Population at Risk'!Z103/'Population at Risk'!Z$5","v":1.1664294245280028E-2},{"$f":"'Population at Risk'!AA103/'Population at Risk'!AA$5","v":1.2015198215111647E-2},{"$f":"'Population at Risk'!AB103/'Population at Risk'!AB$5","v":1.0682140304444462E-2},{"$f":"'Population at Risk'!AC103/'Population at Risk'!AC$5","v":1.0688337385664414E-2},{"$f":"'Population at Risk'!AD103/'Population at Risk'!AD$5","v":8.4562398935708726E-3},{"$f":"'Population at Risk'!AE103/'Population at Risk'!AE$5","v":8.6072728884332202E-3},{"$f":"'Population at Risk'!AF103/'Population at Risk'!AF$5","v":5.8887392070595358E-3},{"$f":"'Population at Risk'!AG103/'Population at Risk'!AG$5","v":1.0190844566973634E-2},{"$f":"'Population at Risk'!AH103/'Population at Risk'!AH$5","v":1.3068310670615264E-2},{"$f":"'Population at Risk'!AI103/'Population at Risk'!AI$5","v":1.5591782539093171E-2},{"$f":"'Population at Risk'!AJ103/'Population at Risk'!AJ$5","v":1.7548301278351799E-2},{"$f":"'Population at Risk'!AK103/'Population at Risk'!AK$5","v":1.0311407649431345E-2},{"$f":"'Population at Risk'!AL103/'Population at Risk'!AL$5","v":6.3469763749615278E-3},{"$f":"'Population at Risk'!AM103/'Population at Risk'!AM$5","v":1.39356672550214E-2},{"$f":"'Population at Risk'!AN103/'Population at Risk'!AN$5","v":8.4215747093947871E-3},{"$f":"'Population at Risk'!AO103/'Population at Risk'!AO$5","v":8.4215747093947871E-3},{"$f":"'Population at Risk'!AP103/'Population at Risk'!AP$5","v":7.3889098119371797E-3},{"$f":"'Population at Risk'!AQ103/'Population at Risk'!AQ$5","v":9.2076376890336143E-3},{"$f":"'Population at Risk'!AR103/'Population at Risk'!AR$5","v":1.1479992344165486E-2},{"$f":"'Population at Risk'!AS103/'Population at Risk'!AS$5","v":9.9846450920227578E-3},{"$f":"'Population at Risk'!AT103/'Population at Risk'!AT$5","v":1.8918383983611488E-3},{"$f":"'Population at Risk'!AU103/'Population at Risk'!AU$5","v":1.8918383983611488E-3},{"$f":"'Population at Risk'!AV103/'Population at Risk'!AV$5","v":1.4151687196866785E-2},{"$f":"'Population at Risk'!AW103/'Population at Risk'!AW$5","v":1.1924312521320196E-2},{"$f":"'Population at Risk'!AX103/'Population at Risk'!AX$5","v":1.0787653163150107E-2},{"$f":"'Population at Risk'!AY103/'Population at Risk'!AY$5","v":1.1687236491656041E-2},{"$f":"'Population at Risk'!AZ103/'Population at Risk'!AZ$5","v":1.0302479531348902E-2},{"$f":"'Population at Risk'!BA103/'Population at Risk'!BA$5","v":1.2584394016864082E-2},{"$f":"'Population at Risk'!BB103/'Population at Risk'!BB$5","v":1.603618837729345E-2},{"$f":"'Population at Risk'!BC103/'Population at Risk'!BC$5","v":9.1557383902712997E-3},101]
[null,"Female 30-34",{"$f":"'Population at Risk'!C104/'Population at Risk'!C$5","v":1.3712557669870217E-2},{"$f":"'Population at Risk'!D104/'Population at Risk'!D$5","v":1.1650712590646718E-2},{"$f":"'Population at Risk'!E104/'Population at Risk'!E$5","v":4.3098378139370388E-3},{"$f":"'Population at Risk'!F104/'Population at Risk'!F$5","v":6.4520413598728654E-3},{"$f":"'Population at Risk'!G104/'Population at Risk'!G$5","v":6.7526744703091546E-3},{"$f":"'Population at Risk'!H104/'Population at Risk'!H$5","v":9.3742449331080339E-3},{"$f":"'Population at Risk'!I104/'Population at Risk'!I$5","v":8.4512888814621216E-3},{"$f":"'Population at Risk'!J104/'Population at Risk'!J$5","v":9.3723349744344025E-3},{"$f":"'Population at Risk'!K104/'Population at Risk'!K$5","v":1.1182951631584144E-2},{"$f":"'Population at Risk'!L104/'Population at Risk'!L$5","v":1.231227825661035E-2},{"$f":"'Population at Risk'!M104/'Population at Risk'!M$5","v":1.231227825661035E-2},{"$f":"'Population at Risk'!N104/'Population at Risk'!N$5","v":1.0606208734479865E-2},{"$f":"'Population at Risk'!O104/'Population at Risk'!O$5","v":1.0629056686780909E-2},{"$f":"'Population at Risk'!P104/'Population at Risk'!P$5","v":9.6295705757528348E-3},{"$f":"'Population at Risk'!Q104/'Population at Risk'!Q$5","v":1.7270247488509017E-2},{"$f":"'Population at Risk'!R104/'Population at Risk'!R$5","v":5.0924000297627127E-3},{"$f":"'Population at Risk'!S104/'Population at Risk'!S$5","v":1.3704520854356323E-2},{"$f":"'Population at Risk'!T104/'Population at Risk'!T$5","v":1.221863369734634E-2},{"$f":"'Population at Risk'!U104/'Population at Risk'!U$5","v":8.747520755036273E-3},{"$f":"'Population at Risk'!V104/'Population at Risk'!V$5","v":1.2068715694969132E-2},{"$f":"'Population at Risk'!W104/'Population at Risk'!W$5","v":9.6331418791193429E-3},{"$f":"'Population at Risk'!X104/'Population at Risk'!X$5","v":9.6331418791193429E-3},{"$f":"'Population at Risk'!Y104/'Population at Risk'!Y$5","v":1.1236213963286184E-2},{"$f":"'Population at Risk'!Z104/'Population at Risk'!Z$5","v":9.6901556162841147E-3},{"$f":"'Population at Risk'!AA104/'Population at Risk'!AA$5","v":1.1398026782848266E-2},{"$f":"'Population at Risk'!AB104/'Population at Risk'!AB$5","v":9.5692347928247358E-3},{"$f":"'Population at Risk'!AC104/'Population at Risk'!AC$5","v":9.4245057424444424E-3},{"$f":"'Population at Risk'!AD104/'Population at Risk'!AD$5","v":8.4121714749014233E-3},{"$f":"'Population at Risk'!AE104/'Population at Risk'!AE$5","v":9.0247156844080433E-3},{"$f":"'Population at Risk'!AF104/'Population at Risk'!AF$5","v":6.2516306988111038E-3},{"$f":"'Population at Risk'!AG104/'Population at Risk'!AG$5","v":1.0685088760752956E-2},{"$f":"'Population at Risk'!AH104/'Population at Risk'!AH$5","v":1.3808685299736173E-2},{"$f":"'Population at Risk'!AI104/'Population at Risk'!AI$5","v":1.4453515904002763E-2},{"$f":"'Population at Risk'!AJ104/'Population at Risk'!AJ$5","v":1.8582616738314593E-2},{"$f":"'Population at Risk'!AK104/'Population at Risk'!AK$5","v":1.1061328205753625E-2},{"$f":"'Population at Risk'!AL104/'Population at Risk'!AL$5","v":6.5383006955698044E-3},{"$f":"'Population at Risk'!AM104/'Population at Risk'!AM$5","v":1.4712168331875542E-2},{"$f":"'Population at Risk'!AN104/'Population at Risk'!AN$5","v":5.221376319824768E-3},{"$f":"'Population at Risk'!AO104/'Population at Risk'!AO$5","v":5.221376319824768E-3},{"$f":"'Population at Risk'!AP104/'Population at Risk'!AP$5","v":7.987388488293461E-3},{"$f":"'Population at Risk'!AQ104/'Population at Risk'!AQ$5","v":8.8389892526942789E-3},{"$f":"'Population at Risk'!AR104/'Population at Risk'!AR$5","v":1.0771008822885824E-2},{"$f":"'Population at Risk'!AS104/'Population at Risk'!AS$5","v":8.4512888814621216E-3},{"$f":"'Population at Risk'!AT104/'Population at Risk'!AT$5","v":1.3160614945121035E-3},{"$f":"'Population at Risk'!AU104/'Population at Risk'!AU$5","v":1.3160614945121035E-3},{"$f":"'Population at Risk'!AV104/'Population at Risk'!AV$5","v":1.2503248908000983E-2},{"$f":"'Population at Risk'!AW104/'Population at Risk'!AW$5","v":1.2612964678559229E-2},{"$f":"'Population at Risk'!AX104/'Population at Risk'!AX$5","v":8.1691117115820465E-3},{"$f":"'Population at Risk'!AY104/'Population at Risk'!AY$5","v":1.0738254025962039E-2},{"$f":"'Population at Risk'!AZ104/'Population at Risk'!AZ$5","v":8.8569515284941166E-3},{"$f":"'Population at Risk'!BA104/'Population at Risk'!BA$5","v":1.3041740106574265E-2},{"$f":"'Population at Risk'!BB104/'Population at Risk'!BB$5","v":1.6654474710077714E-2},{"$f":"'Population at Risk'!BC104/'Population at Risk'!BC$5","v":8.747520755036273E-3},102]
[null,"Female 35-39",{"$f":"'Population at Risk'!C105/'Population at Risk'!C$5","v":1.1088623074896473E-2},{"$f":"'Population at Risk'!D105/'Population at Risk'!D$5","v":1.0133092168266555E-2},{"$f":"'Population at Risk'!E105/'Population at Risk'!E$5","v":4.6546511310300836E-3},{"$f":"'Population at Risk'!F105/'Population at Risk'!F$5","v":5.5954934606290774E-3},{"$f":"'Population at Risk'!G105/'Population at Risk'!G$5","v":7.653571918133875E-3},{"$f":"'Population at Risk'!H105/'Population at Risk'!H$5","v":1.0212063566498836E-2},{"$f":"'Population at Risk'!I105/'Population at Risk'!I$5","v":8.7757758428859429E-3},{"$f":"'Population at Risk'!J105/'Population at Risk'!J$5","v":1.016255270901676E-2},{"$f":"'Population at Risk'!K105/'Population at Risk'!K$5","v":1.2217302559955885E-2},{"$f":"'Population at Risk'!L105/'Population at Risk'!L$5","v":1.3001480196829259E-2},{"$f":"'Population at Risk'!M105/'Population at Risk'!M$5","v":1.3001480196829259E-2},{"$f":"'Population at Risk'!N105/'Population at Risk'!N$5","v":8.9421474845390973E-3},{"$f":"'Population at Risk'!O105/'Population at Risk'!O$5","v":1.1426634857008443E-2},{"$f":"'Population at Risk'!P105/'Population at Risk'!P$5","v":1.1668487813141878E-2},{"$f":"'Population at Risk'!Q105/'Population at Risk'!Q$5","v":1.7623609935169274E-2},{"$f":"'Population at Risk'!R105/'Population at Risk'!R$5","v":6.0237814199033072E-3},{"$f":"'Population at Risk'!S105/'Population at Risk'!S$5","v":1.2346799917591722E-2},{"$f":"'Population at Risk'!T105/'Population at Risk'!T$5","v":8.9293346933690034E-3},{"$f":"'Population at Risk'!U105/'Population at Risk'!U$5","v":9.6519413229257788E-3},{"$f":"'Population at Risk'!V105/'Population at Risk'!V$5","v":1.2725773531592236E-2},{"$f":"'Population at Risk'!W105/'Population at Risk'!W$5","v":9.8229842993788515E-3},{"$f":"'Population at Risk'!X105/'Population at Risk'!X$5","v":9.8229842993788515E-3},{"$f":"'Population at Risk'!Y105/'Population at Risk'!Y$5","v":1.1968724944161912E-2},{"$f":"'Population at Risk'!Z105/'Population at Risk'!Z$5","v":7.8267655222101998E-3},{"$f":"'Population at Risk'!AA105/'Population at Risk'!AA$5","v":1.0511175659776571E-2},{"$f":"'Population at Risk'!AB105/'Population at Risk'!AB$5","v":8.3608932231268758E-3},{"$f":"'Population at Risk'!AC105/'Population at Risk'!AC$5","v":8.3470614365373091E-3},{"$f":"'Population at Risk'!AD105/'Population at Risk'!AD$5","v":8.6073178794755009E-3},{"$f":"'Population at Risk'!AE105/'Population at Risk'!AE$5","v":8.9740868799592175E-3},{"$f":"'Population at Risk'!AF105/'Population at Risk'!AF$5","v":4.4252244744052158E-3},{"$f":"'Population at Risk'!AG105/'Population at Risk'!AG$5","v":1.0625145235848215E-2},{"$f":"'Population at Risk'!AH105/'Population at Risk'!AH$5","v":1.3413900788279566E-2},{"$f":"'Population at Risk'!AI105/'Population at Risk'!AI$5","v":1.2362608808685773E-2},{"$f":"'Population at Risk'!AJ105/'Population at Risk'!AJ$5","v":1.9438125849602413E-2},{"$f":"'Population at Risk'!AK105/'Population at Risk'!AK$5","v":9.8925168233885384E-3},{"$f":"'Population at Risk'!AL105/'Population at Risk'!AL$5","v":6.9288728002603163E-3},{"$f":"'Population at Risk'!AM105/'Population at Risk'!AM$5","v":1.4637610160670469E-2},{"$f":"'Population at Risk'!AN105/'Population at Risk'!AN$5","v":6.4681662521674415E-3},{"$f":"'Population at Risk'!AO105/'Population at Risk'!AO$5","v":6.4681662521674415E-3},{"$f":"'Population at Risk'!AP105/'Population at Risk'!AP$5","v":6.5736833382434483E-3},{"$f":"'Population at Risk'!AQ105/'Population at Risk'!AQ$5","v":8.8660740148902278E-3},{"$f":"'Population at Risk'!AR105/'Population at Risk'!AR$5","v":1.009569625306495E-2},{"$f":"'Population at Risk'!AS105/'Population at Risk'!AS$5","v":8.7757758428859429E-3},{"$f":"'Population at Risk'!AT105/'Population at Risk'!AT$5","v":3.0252734551195308E-3},{"$f":"'Population at Risk'!AU105/'Population at Risk'!AU$5","v":3.0252734551195308E-3},{"$f":"'Population at Risk'!AV105/'Population at Risk'!AV$5","v":1.4198379975084002E-2},{"$f":"'Population at Risk'!AW105/'Population at Risk'!AW$5","v":1.1904264255455285E-2},{"$f":"'Population at Risk'!AX105/'Population at Risk'!AX$5","v":8.7970937035283889E-3},{"$f":"'Population at Risk'!AY105/'Population at Risk'!AY$5","v":9.9822420949945544E-3},{"$f":"'Population at Risk'!AZ105/'Population at Risk'!AZ$5","v":7.4782774087488848E-3},{"$f":"'Population at Risk'!BA105/'Population at Risk'!BA$5","v":1.2879124183992325E-2},{"$f":"'Population at Risk'!BB105/'Population at Risk'!BB$5","v":1.5478759081475175E-2},{"$f":"'Population at Risk'!BC105/'Population at Risk'!BC$5","v":9.6519413229257788E-3},103]
[null,"Female 40-44",{"$f":"'Population at Risk'!C106/'Population at Risk'!C$5","v":9.9937087209601549E-3},{"$f":"'Population at Risk'!D106/'Population at Risk'!D$5","v":9.3847033946247559E-3},{"$f":"'Population at Risk'!E106/'Population at Risk'!E$5","v":4.6093871005824655E-3},{"$f":"'Population at Risk'!F106/'Population at Risk'!F$5","v":6.1886553115791569E-3},{"$f":"'Population at Risk'!G106/'Population at Risk'!G$5","v":9.0078232494926833E-3},{"$f":"'Population at Risk'!H106/'Population at Risk'!H$5","v":1.1172172106938896E-2},{"$f":"'Population at Risk'!I106/'Population at Risk'!I$5","v":9.5279852008475947E-3},{"$f":"'Population at Risk'!J106/'Population at Risk'!J$5","v":1.0845648822712462E-2},{"$f":"'Population at Risk'!K106/'Population at Risk'!K$5","v":1.3868289392382355E-2},{"$f":"'Population at Risk'!L106/'Population at Risk'!L$5","v":1.4612931263478519E-2},{"$f":"'Population at Risk'!M106/'Population at Risk'!M$5","v":1.4612931263478519E-2},{"$f":"'Population at Risk'!N106/'Population at Risk'!N$5","v":7.956643991463442E-3},{"$f":"'Population at Risk'!O106/'Population at Risk'!O$5","v":1.2200313258785057E-2},{"$f":"'Population at Risk'!P106/'Population at Risk'!P$5","v":1.1103232348145387E-2},{"$f":"'Population at Risk'!Q106/'Population at Risk'!Q$5","v":1.7113917100559258E-2},{"$f":"'Population at Risk'!R106/'Population at Risk'!R$5","v":5.9566017014657238E-3},{"$f":"'Population at Risk'!S106/'Population at Risk'!S$5","v":1.2280129467669062E-2},{"$f":"'Population at Risk'!T106/'Population at Risk'!T$5","v":7.8708421309331648E-3},{"$f":"'Population at Risk'!U106/'Population at Risk'!U$5","v":1.2616916761994482E-2},{"$f":"'Population at Risk'!V106/'Population at Risk'!V$5","v":1.3315652604631278E-2},{"$f":"'Population at Risk'!W106/'Population at Risk'!W$5","v":1.0504220346986779E-2},{"$f":"'Population at Risk'!X106/'Population at Risk'!X$5","v":1.0504220346986779E-2},{"$f":"'Population at Risk'!Y106/'Population at Risk'!Y$5","v":1.2614984390390957E-2},{"$f":"'Population at Risk'!Z106/'Population at Risk'!Z$5","v":6.8651368860395395E-3},{"$f":"'Population at Risk'!AA106/'Population at Risk'!AA$5","v":1.0495237561732937E-2},{"$f":"'Population at Risk'!AB106/'Population at Risk'!AB$5","v":7.9027188023583963E-3},{"$f":"'Population at Risk'!AC106/'Population at Risk'!AC$5","v":8.0205759166360798E-3},{"$f":"'Population at Risk'!AD106/'Population at Risk'!AD$5","v":9.5660406709740017E-3},{"$f":"'Population at Risk'!AE106/'Population at Risk'!AE$5","v":9.7983839975273566E-3},{"$f":"'Population at Risk'!AF106/'Population at Risk'!AF$5","v":5.192501298596444E-3},{"$f":"'Population at Risk'!AG106/'Population at Risk'!AG$5","v":1.1601097074604242E-2},{"$f":"'Population at Risk'!AH106/'Population at Risk'!AH$5","v":1.4013320312802762E-2},{"$f":"'Population at Risk'!AI106/'Population at Risk'!AI$5","v":1.186719997548104E-2},{"$f":"'Population at Risk'!AJ106/'Population at Risk'!AJ$5","v":1.8414068487769698E-2},{"$f":"'Population at Risk'!AK106/'Population at Risk'!AK$5","v":1.0298132547354354E-2},{"$f":"'Population at Risk'!AL106/'Population at Risk'!AL$5","v":8.2426590714785048E-3},{"$f":"'Population at Risk'!AM106/'Population at Risk'!AM$5","v":1.5239019610395808E-2},{"$f":"'Population at Risk'!AN106/'Population at Risk'!AN$5","v":9.5655979785574836E-3},{"$f":"'Population at Risk'!AO106/'Population at Risk'!AO$5","v":9.5655979785574836E-3},{"$f":"'Population at Risk'!AP106/'Population at Risk'!AP$5","v":5.7270726052878525E-3},{"$f":"'Population at Risk'!AQ106/'Population at Risk'!AQ$5","v":1.0312839230709137E-2},{"$f":"'Population at Risk'!AR106/'Population at Risk'!AR$5","v":1.0226578848215848E-2},{"$f":"'Population at Risk'!AS106/'Population at Risk'!AS$5","v":9.5279852008475947E-3},{"$f":"'Population at Risk'!AT106/'Population at Risk'!AT$5","v":1.2457008344609834E-3},{"$f":"'Population at Risk'!AU106/'Population at Risk'!AU$5","v":1.2457008344609834E-3},{"$f":"'Population at Risk'!AV106/'Population at Risk'!AV$5","v":1.4719884452841826E-2},{"$f":"'Population at Risk'!AW106/'Population at Risk'!AW$5","v":1.2489228101691435E-2},{"$f":"'Population at Risk'!AX106/'Population at Risk'!AX$5","v":8.836989820097679E-3},{"$f":"'Population at Risk'!AY106/'Population at Risk'!AY$5","v":1.0106097162744427E-2},{"$f":"'Population at Risk'!AZ106/'Population at Risk'!AZ$5","v":7.0844826372247873E-3},{"$f":"'Population at Risk'!BA106/'Population at Risk'!BA$5","v":1.334194277300816E-2},{"$f":"'Population at Risk'!BB106/'Population at Risk'!BB$5","v":1.7081840440393386E-2},{"$f":"'Population at Risk'!BC106/'Population at Risk'!BC$5","v":1.2616916761994482E-2},104]
[null,"Female 45-49",{"$f":"'Population at Risk'!C107/'Population at Risk'!C$5","v":1.0784907537093987E-2},{"$f":"'Population at Risk'!D107/'Population at Risk'!D$5","v":1.0351812799105417E-2},{"$f":"'Population at Risk'!E107/'Population at Risk'!E$5","v":5.3425697825491185E-3},{"$f":"'Population at Risk'!F107/'Population at Risk'!F$5","v":6.7868417458651171E-3},{"$f":"'Population at Risk'!G107/'Population at Risk'!G$5","v":1.1014956723347256E-2},{"$f":"'Population at Risk'!H107/'Population at Risk'!H$5","v":1.4691307856011497E-2},{"$f":"'Population at Risk'!I107/'Population at Risk'!I$5","v":1.322106134223143E-2},{"$f":"'Population at Risk'!J107/'Population at Risk'!J$5","v":1.2866618200369186E-2},{"$f":"'Population at Risk'!K107/'Population at Risk'!K$5","v":1.6888906765360638E-2},{"$f":"'Population at Risk'!L107/'Population at Risk'!L$5","v":1.9735996735988439E-2},{"$f":"'Population at Risk'!M107/'Population at Risk'!M$5","v":1.9735996735988439E-2},{"$f":"'Population at Risk'!N107/'Population at Risk'!N$5","v":8.5566832938897951E-3},{"$f":"'Population at Risk'!O107/'Population at Risk'!O$5","v":1.631808937357514E-2},{"$f":"'Population at Risk'!P107/'Population at Risk'!P$5","v":1.5713835422675713E-2},{"$f":"'Population at Risk'!Q107/'Population at Risk'!Q$5","v":2.2139949101373062E-2},{"$f":"'Population at Risk'!R107/'Population at Risk'!R$5","v":8.9002410693083452E-3},{"$f":"'Population at Risk'!S107/'Population at Risk'!S$5","v":1.4231036699569906E-2},{"$f":"'Population at Risk'!T107/'Population at Risk'!T$5","v":7.6000607975792219E-3},{"$f":"'Population at Risk'!U107/'Population at Risk'!U$5","v":1.5174111785715951E-2},{"$f":"'Population at Risk'!V107/'Population at Risk'!V$5","v":1.5743346824594426E-2},{"$f":"'Population at Risk'!W107/'Population at Risk'!W$5","v":1.2409302429829969E-2},{"$f":"'Population at Risk'!X107/'Population at Risk'!X$5","v":1.2409302429829969E-2},{"$f":"'Population at Risk'!Y107/'Population at Risk'!Y$5","v":1.4933744514209528E-2},{"$f":"'Population at Risk'!Z107/'Population at Risk'!Z$5","v":7.9878671657362659E-3},{"$f":"'Population at Risk'!AA107/'Population at Risk'!AA$5","v":1.3032155533401209E-2},{"$f":"'Population at Risk'!AB107/'Population at Risk'!AB$5","v":8.8466050372146068E-3},{"$f":"'Population at Risk'!AC107/'Population at Risk'!AC$5","v":9.8519867766045186E-3},{"$f":"'Population at Risk'!AD107/'Population at Risk'!AD$5","v":1.1668983022658877E-2},{"$f":"'Population at Risk'!AE107/'Population at Risk'!AE$5","v":1.1943004257074374E-2},{"$f":"'Population at Risk'!AF107/'Population at Risk'!AF$5","v":7.3683073330882134E-3},{"$f":"'Population at Risk'!AG107/'Population at Risk'!AG$5","v":1.4140285967940779E-2},{"$f":"'Population at Risk'!AH107/'Population at Risk'!AH$5","v":1.7612590430884083E-2},{"$f":"'Population at Risk'!AI107/'Population at Risk'!AI$5","v":1.3409703474851483E-2},{"$f":"'Population at Risk'!AJ107/'Population at Risk'!AJ$5","v":2.3806097886690341E-2},{"$f":"'Population at Risk'!AK107/'Population at Risk'!AK$5","v":1.2282883018891822E-2},{"$f":"'Population at Risk'!AL107/'Population at Risk'!AL$5","v":1.0590118767264269E-2},{"$f":"'Population at Risk'!AM107/'Population at Risk'!AM$5","v":1.8512945480558159E-2},{"$f":"'Population at Risk'!AN107/'Population at Risk'!AN$5","v":8.9345060358577474E-3},{"$f":"'Population at Risk'!AO107/'Population at Risk'!AO$5","v":8.9345060358577474E-3},{"$f":"'Population at Risk'!AP107/'Population at Risk'!AP$5","v":7.4932035103640812E-3},{"$f":"'Population at Risk'!AQ107/'Population at Risk'!AQ$5","v":1.2130373997140381E-2},{"$f":"'Population at Risk'!AR107/'Population at Risk'!AR$5","v":1.2365617714171358E-2},{"$f":"'Population at Risk'!AS107/'Population at Risk'!AS$5","v":1.322106134223143E-2},{"$f":"'Population at Risk'!AT107/'Population at Risk'!AT$5","v":2.1126992181626828E-3},{"$f":"'Population at Risk'!AU107/'Population at Risk'!AU$5","v":2.1126992181626828E-3},{"$f":"'Population at Risk'!AV107/'Population at Risk'!AV$5","v":1.9433478773461368E-2},{"$f":"'Population at Risk'!AW107/'Population at Risk'!AW$5","v":1.6340983442809629E-2},{"$f":"'Population at Risk'!AX107/'Population at Risk'!AX$5","v":1.0193655288981102E-2},{"$f":"'Population at Risk'!AY107/'Population at Risk'!AY$5","v":1.1758288864490362E-2},{"$f":"'Population at Risk'!AZ107/'Population at Risk'!AZ$5","v":8.0793175775742323E-3},{"$f":"'Population at Risk'!BA107/'Population at Risk'!BA$5","v":1.7002649777257944E-2},{"$f":"'Population at Risk'!BB107/'Population at Risk'!BB$5","v":2.0155077010010809E-2},{"$f":"'Population at Risk'!BC107/'Population at Risk'!BC$5","v":1.5174111785715951E-2},105]
[null,"Female 50-54",{"$f":"'Population at Risk'!C108/'Population at Risk'!C$5","v":1.1245677952563959E-2},{"$f":"'Population at Risk'!D108/'Population at Risk'!D$5","v":1.0877935152906104E-2},{"$f":"'Population at Risk'!E108/'Population at Risk'!E$5","v":5.7086059046771191E-3},{"$f":"'Population at Risk'!F108/'Population at Risk'!F$5","v":6.3275817780998082E-3},{"$f":"'Population at Risk'!G108/'Population at Risk'!G$5","v":1.2222365441098783E-2},{"$f":"'Population at Risk'!H108/'Population at Risk'!H$5","v":1.517869721616354E-2},{"$f":"'Population at Risk'!I108/'Population at Risk'!I$5","v":1.4196711953329834E-2},{"$f":"'Population at Risk'!J108/'Population at Risk'!J$5","v":1.3485205613848474E-2},{"$f":"'Population at Risk'!K108/'Population at Risk'!K$5","v":1.7415716701160881E-2},{"$f":"'Population at Risk'!L108/'Population at Risk'!L$5","v":2.1361758919221201E-2},{"$f":"'Population at Risk'!M108/'Population at Risk'!M$5","v":2.1361758919221201E-2},{"$f":"'Population at Risk'!N108/'Population at Risk'!N$5","v":1.0205906356792208E-2},{"$f":"'Population at Risk'!O108/'Population at Risk'!O$5","v":1.5408798248842791E-2},{"$f":"'Population at Risk'!P108/'Population at Risk'!P$5","v":1.5422066595198973E-2},{"$f":"'Population at Risk'!Q108/'Population at Risk'!Q$5","v":2.2504226143260371E-2},{"$f":"'Population at Risk'!R108/'Population at Risk'!R$5","v":8.3916558653478694E-3},{"$f":"'Population at Risk'!S108/'Population at Risk'!S$5","v":1.4352581878214104E-2},{"$f":"'Population at Risk'!T108/'Population at Risk'!T$5","v":7.2148042594530866E-3},{"$f":"'Population at Risk'!U108/'Population at Risk'!U$5","v":1.758373468731033E-2},{"$f":"'Population at Risk'!V108/'Population at Risk'!V$5","v":1.5689615265466118E-2},{"$f":"'Population at Risk'!W108/'Population at Risk'!W$5","v":1.3371193513970352E-2},{"$f":"'Population at Risk'!X108/'Population at Risk'!X$5","v":1.3371193513970352E-2},{"$f":"'Population at Risk'!Y108/'Population at Risk'!Y$5","v":1.5168585385769651E-2},{"$f":"'Population at Risk'!Z108/'Population at Risk'!Z$5","v":8.1850984537791376E-3},{"$f":"'Population at Risk'!AA108/'Population at Risk'!AA$5","v":1.3517536370059414E-2},{"$f":"'Population at Risk'!AB108/'Population at Risk'!AB$5","v":9.1597591978239724E-3},{"$f":"'Population at Risk'!AC108/'Population at Risk'!AC$5","v":1.0171916321802286E-2},{"$f":"'Population at Risk'!AD108/'Population at Risk'!AD$5","v":1.2746204042088961E-2},{"$f":"'Population at Risk'!AE108/'Population at Risk'!AE$5","v":1.2978952581727665E-2},{"$f":"'Population at Risk'!AF108/'Population at Risk'!AF$5","v":8.8419687997058558E-3},{"$f":"'Population at Risk'!AG108/'Population at Risk'!AG$5","v":1.5366828740872444E-2},{"$f":"'Population at Risk'!AH108/'Population at Risk'!AH$5","v":1.8361398527148416E-2},{"$f":"'Population at Risk'!AI108/'Population at Risk'!AI$5","v":1.3031965348799327E-2},{"$f":"'Population at Risk'!AJ108/'Population at Risk'!AJ$5","v":2.3629901438515826E-2},{"$f":"'Population at Risk'!AK108/'Population at Risk'!AK$5","v":1.1933937478582396E-2},{"$f":"'Population at Risk'!AL108/'Population at Risk'!AL$5","v":1.1045308082699313E-2},{"$f":"'Population at Risk'!AM108/'Population at Risk'!AM$5","v":1.9103019962338697E-2},{"$f":"'Population at Risk'!AN108/'Population at Risk'!AN$5","v":1.1473786698680476E-2},{"$f":"'Population at Risk'!AO108/'Population at Risk'!AO$5","v":1.1473786698680476E-2},{"$f":"'Population at Risk'!AP108/'Population at Risk'!AP$5","v":7.2232939499564551E-3},{"$f":"'Population at Risk'!AQ108/'Population at Risk'!AQ$5","v":1.2589930391665036E-2},{"$f":"'Population at Risk'!AR108/'Population at Risk'!AR$5","v":1.2791169224988387E-2},{"$f":"'Population at Risk'!AS108/'Population at Risk'!AS$5","v":1.4196711953329834E-2},{"$f":"'Population at Risk'!AT108/'Population at Risk'!AT$5","v":1.8371297549240717E-3},{"$f":"'Population at Risk'!AU108/'Population at Risk'!AU$5","v":1.8371297549240717E-3},{"$f":"'Population at Risk'!AV108/'Population at Risk'!AV$5","v":2.1934301779161489E-2},{"$f":"'Population at Risk'!AW108/'Population at Risk'!AW$5","v":1.7233905153361134E-2},{"$f":"'Population at Risk'!AX108/'Population at Risk'!AX$5","v":1.0873232308246508E-2},{"$f":"'Population at Risk'!AY108/'Population at Risk'!AY$5","v":1.2495948140807196E-2},{"$f":"'Population at Risk'!AZ108/'Population at Risk'!AZ$5","v":8.4266453483737118E-3},{"$f":"'Population at Risk'!BA108/'Population at Risk'!BA$5","v":1.80076513629292E-2},{"$f":"'Population at Risk'!BB108/'Population at Risk'!BB$5","v":1.9311172208612861E-2},{"$f":"'Population at Risk'!BC108/'Population at Risk'!BC$5","v":1.758373468731033E-2},106]
[null,"Female 55-59",{"$f":"'Population at Risk'!C109/'Population at Risk'!C$5","v":9.3738994119872288E-3},{"$f":"'Population at Risk'!D109/'Population at Risk'!D$5","v":9.0749772099836777E-3},{"$f":"'Population at Risk'!E109/'Population at Risk'!E$5","v":4.770948318170252E-3},{"$f":"'Population at Risk'!F109/'Population at Risk'!F$5","v":6.4145984258711991E-3},{"$f":"'Population at Risk'!G109/'Population at Risk'!G$5","v":1.1647116748261473E-2},{"$f":"'Population at Risk'!H109/'Population at Risk'!H$5","v":1.3366204612057118E-2},{"$f":"'Population at Risk'!I109/'Population at Risk'!I$5","v":1.2925053560527675E-2},{"$f":"'Population at Risk'!J109/'Population at Risk'!J$5","v":1.0846954026334255E-2},{"$f":"'Population at Risk'!K109/'Population at Risk'!K$5","v":1.3671835333654382E-2},{"$f":"'Population at Risk'!L109/'Population at Risk'!L$5","v":1.867560423841547E-2},{"$f":"'Population at Risk'!M109/'Population at Risk'!M$5","v":1.867560423841547E-2},{"$f":"'Population at Risk'!N109/'Population at Risk'!N$5","v":9.0282185556383576E-3},{"$f":"'Population at Risk'!O109/'Population at Risk'!O$5","v":1.3673778766387952E-2},{"$f":"'Population at Risk'!P109/'Population at Risk'!P$5","v":1.3665004228050521E-2},{"$f":"'Population at Risk'!Q109/'Population at Risk'!Q$5","v":1.996128720098915E-2},{"$f":"'Population at Risk'!R109/'Population at Risk'!R$5","v":6.2364063373344701E-3},{"$f":"'Population at Risk'!S109/'Population at Risk'!S$5","v":1.2452332203397254E-2},{"$f":"'Population at Risk'!T109/'Population at Risk'!T$5","v":6.1380722497780165E-3},{"$f":"'Population at Risk'!U109/'Population at Risk'!U$5","v":1.409159698353255E-2},{"$f":"'Population at Risk'!V109/'Population at Risk'!V$5","v":1.2834250128745455E-2},{"$f":"'Population at Risk'!W109/'Population at Risk'!W$5","v":1.1305051650903184E-2},{"$f":"'Population at Risk'!X109/'Population at Risk'!X$5","v":1.1305051650903184E-2},{"$f":"'Population at Risk'!Y109/'Population at Risk'!Y$5","v":1.2328633868236087E-2},{"$f":"'Population at Risk'!Z109/'Population at Risk'!Z$5","v":6.8623134912867258E-3},{"$f":"'Population at Risk'!AA109/'Population at Risk'!AA$5","v":1.1489711758475326E-2},{"$f":"'Population at Risk'!AB109/'Population at Risk'!AB$5","v":7.8007910274957354E-3},{"$f":"'Population at Risk'!AC109/'Population at Risk'!AC$5","v":8.5562456858871896E-3},{"$f":"'Population at Risk'!AD109/'Population at Risk'!AD$5","v":1.1570595195313331E-2},{"$f":"'Population at Risk'!AE109/'Population at Risk'!AE$5","v":1.1589033167116115E-2},{"$f":"'Population at Risk'!AF109/'Population at Risk'!AF$5","v":7.5575795499084305E-3},{"$f":"'Population at Risk'!AG109/'Population at Risk'!AG$5","v":1.3721191046038811E-2},{"$f":"'Population at Risk'!AH109/'Population at Risk'!AH$5","v":1.5784140610164525E-2},{"$f":"'Population at Risk'!AI109/'Population at Risk'!AI$5","v":1.138012902836711E-2},{"$f":"'Population at Risk'!AJ109/'Population at Risk'!AJ$5","v":2.1694031212632504E-2},{"$f":"'Population at Risk'!AK109/'Population at Risk'!AK$5","v":1.1091366377904302E-2},{"$f":"'Population at Risk'!AL109/'Population at Risk'!AL$5","v":9.2236479975348236E-3},{"$f":"'Population at Risk'!AM109/'Population at Risk'!AM$5","v":1.6192387196479519E-2},{"$f":"'Population at Risk'!AN109/'Population at Risk'!AN$5","v":9.6022788823256471E-3},{"$f":"'Population at Risk'!AO109/'Population at Risk'!AO$5","v":9.6022788823256471E-3},{"$f":"'Population at Risk'!AP109/'Population at Risk'!AP$5","v":6.1279841235099344E-3},{"$f":"'Population at Risk'!AQ109/'Population at Risk'!AQ$5","v":1.0393980268771587E-2},{"$f":"'Population at Risk'!AR109/'Population at Risk'!AR$5","v":1.1022516880534114E-2},{"$f":"'Population at Risk'!AS109/'Population at Risk'!AS$5","v":1.2925053560527675E-2},{"$f":"'Population at Risk'!AT109/'Population at Risk'!AT$5","v":1.2045885956998949E-3},{"$f":"'Population at Risk'!AU109/'Population at Risk'!AU$5","v":1.2045885956998949E-3},{"$f":"'Population at Risk'!AV109/'Population at Risk'!AV$5","v":2.010665427563512E-2},{"$f":"'Population at Risk'!AW109/'Population at Risk'!AW$5","v":1.5045538755455687E-2},{"$f":"'Population at Risk'!AX109/'Population at Risk'!AX$5","v":8.969713534625218E-3},{"$f":"'Population at Risk'!AY109/'Population at Risk'!AY$5","v":1.0917262959658437E-2},{"$f":"'Population at Risk'!AZ109/'Population at Risk'!AZ$5","v":7.6899062949035901E-3},{"$f":"'Population at Risk'!BA109/'Population at Risk'!BA$5","v":1.558687891742979E-2},{"$f":"'Population at Risk'!BB109/'Population at Risk'!BB$5","v":1.6610477829820822E-2},{"$f":"'Population at Risk'!BC109/'Population at Risk'!BC$5","v":1.409159698353255E-2},107]
[null,"Female 60-64",{"$f":"'Population at Risk'!C110/'Population at Risk'!C$5","v":8.37581515804902E-3},{"$f":"'Population at Risk'!D110/'Population at Risk'!D$5","v":8.2225331667758177E-3},{"$f":"'Population at Risk'!E110/'Population at Risk'!E$5","v":4.4499670857551287E-3},{"$f":"'Population at Risk'!F110/'Population at Risk'!F$5","v":5.3821444318412591E-3},{"$f":"'Population at Risk'!G110/'Population at Risk'!G$5","v":1.043676901121897E-2},{"$f":"'Population at Risk'!H110/'Population at Risk'!H$5","v":1.1762566974904456E-2},{"$f":"'Population at Risk'!I110/'Population at Risk'!I$5","v":1.1731397820450086E-2},{"$f":"'Population at Risk'!J110/'Population at Risk'!J$5","v":9.2245463728227207E-3},{"$f":"'Population at Risk'!K110/'Population at Risk'!K$5","v":1.2133391017977776E-2},{"$f":"'Population at Risk'!L110/'Population at Risk'!L$5","v":1.8368672689617241E-2},{"$f":"'Population at Risk'!M110/'Population at Risk'!M$5","v":1.8368672689617241E-2},{"$f":"'Population at Risk'!N110/'Population at Risk'!N$5","v":7.7742993117996982E-3},{"$f":"'Population at Risk'!O110/'Population at Risk'!O$5","v":1.1970311377982721E-2},{"$f":"'Population at Risk'!P110/'Population at Risk'!P$5","v":1.0307317474872393E-2},{"$f":"'Population at Risk'!Q110/'Population at Risk'!Q$5","v":1.6719710646982366E-2},{"$f":"'Population at Risk'!R110/'Population at Risk'!R$5","v":5.4352013564963617E-3},{"$f":"'Population at Risk'!S110/'Population at Risk'!S$5","v":1.0702037436759791E-2},{"$f":"'Population at Risk'!T110/'Population at Risk'!T$5","v":5.0390587790801883E-3},{"$f":"'Population at Risk'!U110/'Population at Risk'!U$5","v":1.5128640917385597E-2},{"$f":"'Population at Risk'!V110/'Population at Risk'!V$5","v":1.1961856655941844E-2},{"$f":"'Population at Risk'!W110/'Population at Risk'!W$5","v":1.0306297087759481E-2},{"$f":"'Population at Risk'!X110/'Population at Risk'!X$5","v":1.0306297087759481E-2},{"$f":"'Population at Risk'!Y110/'Population at Risk'!Y$5","v":1.1108769041046466E-2},{"$f":"'Population at Risk'!Z110/'Population at Risk'!Z$5","v":5.3987090882692459E-3},{"$f":"'Population at Risk'!AA110/'Population at Risk'!AA$5","v":9.7601329707772758E-3},{"$f":"'Population at Risk'!AB110/'Population at Risk'!AB$5","v":7.1499612237916248E-3},{"$f":"'Population at Risk'!AC110/'Population at Risk'!AC$5","v":6.823538106084436E-3},{"$f":"'Population at Risk'!AD110/'Population at Risk'!AD$5","v":1.0453999465973663E-2},{"$f":"'Population at Risk'!AE110/'Population at Risk'!AE$5","v":1.0500828497715858E-2},{"$f":"'Population at Risk'!AF110/'Population at Risk'!AF$5","v":5.4870098102074907E-3},{"$f":"'Population at Risk'!AG110/'Population at Risk'!AG$5","v":1.2432777771978947E-2},{"$f":"'Population at Risk'!AH110/'Population at Risk'!AH$5","v":1.4286339888786467E-2},{"$f":"'Population at Risk'!AI110/'Population at Risk'!AI$5","v":9.4380528605566873E-3},{"$f":"'Population at Risk'!AJ110/'Population at Risk'!AJ$5","v":1.776966715557134E-2},{"$f":"'Population at Risk'!AK110/'Population at Risk'!AK$5","v":1.0633765800426912E-2},{"$f":"'Population at Risk'!AL110/'Population at Risk'!AL$5","v":8.0315350016270191E-3},{"$f":"'Population at Risk'!AM110/'Population at Risk'!AM$5","v":1.4702437647382265E-2},{"$f":"'Population at Risk'!AN110/'Population at Risk'!AN$5","v":9.1618073739620845E-3},{"$f":"'Population at Risk'!AO110/'Population at Risk'!AO$5","v":9.1618073739620845E-3},{"$f":"'Population at Risk'!AP110/'Population at Risk'!AP$5","v":5.9955522465774992E-3},{"$f":"'Population at Risk'!AQ110/'Population at Risk'!AQ$5","v":8.4389434278809884E-3},{"$f":"'Population at Risk'!AR110/'Population at Risk'!AR$5","v":9.6530929858660124E-3},{"$f":"'Population at Risk'!AS110/'Population at Risk'!AS$5","v":1.1731397820450086E-2},{"$f":"'Population at Risk'!AT110/'Population at Risk'!AT$5","v":2.581261276499775E-3},{"$f":"'Population at Risk'!AU110/'Population at Risk'!AU$5","v":2.581261276499775E-3},{"$f":"'Population at Risk'!AV110/'Population at Risk'!AV$5","v":1.7943074163451086E-2},{"$f":"'Population at Risk'!AW110/'Population at Risk'!AW$5","v":1.357095992498847E-2},{"$f":"'Population at Risk'!AX110/'Population at Risk'!AX$5","v":7.2915090668566294E-3},{"$f":"'Population at Risk'!AY110/'Population at Risk'!AY$5","v":9.8140205635241767E-3},{"$f":"'Population at Risk'!AZ110/'Population at Risk'!AZ$5","v":6.7878211333860542E-3},{"$f":"'Population at Risk'!BA110/'Population at Risk'!BA$5","v":1.3349158676808682E-2},{"$f":"'Population at Risk'!BB110/'Population at Risk'!BB$5","v":1.3972101561425303E-2},{"$f":"'Population at Risk'!BC110/'Population at Risk'!BC$5","v":1.5128640917385597E-2},108]
[null,"Female 65-69",{"$f":"'Population at Risk'!C111/'Population at Risk'!C$5","v":5.7063471694869094E-3},{"$f":"'Population at Risk'!D111/'Population at Risk'!D$5","v":5.9021627825249006E-3},{"$f":"'Population at Risk'!E111/'Population at Risk'!E$5","v":3.5250421863609739E-3},{"$f":"'Population at Risk'!F111/'Population at Risk'!F$5","v":4.1374833597816541E-3},{"$f":"'Population at Risk'!G111/'Population at Risk'!G$5","v":8.2446263045775053E-3},{"$f":"'Population at Risk'!H111/'Population at Risk'!H$5","v":8.7193033687325647E-3},{"$f":"'Population at Risk'!I111/'Population at Risk'!I$5","v":9.1869225165826778E-3},{"$f":"'Population at Risk'!J111/'Population at Risk'!J$5","v":6.8849491049492988E-3},{"$f":"'Population at Risk'!K111/'Population at Risk'!K$5","v":9.5947448985101279E-3},{"$f":"'Population at Risk'!L111/'Population at Risk'!L$5","v":1.3083430678616554E-2},{"$f":"'Population at Risk'!M111/'Population at Risk'!M$5","v":1.3083430678616554E-2},{"$f":"'Population at Risk'!N111/'Population at Risk'!N$5","v":5.7719315057888328E-3},{"$f":"'Population at Risk'!O111/'Population at Risk'!O$5","v":8.6782793341093744E-3},{"$f":"'Population at Risk'!P111/'Population at Risk'!P$5","v":7.3523852344127691E-3},{"$f":"'Population at Risk'!Q111/'Population at Risk'!Q$5","v":1.1712842268612265E-2},{"$f":"'Population at Risk'!R111/'Population at Risk'!R$5","v":3.8517110955022349E-3},{"$f":"'Population at Risk'!S111/'Population at Risk'!S$5","v":7.9291862244684555E-3},{"$f":"'Population at Risk'!T111/'Population at Risk'!T$5","v":3.5602975535844652E-3},{"$f":"'Population at Risk'!U111/'Population at Risk'!U$5","v":1.0367524539278503E-2},{"$f":"'Population at Risk'!V111/'Population at Risk'!V$5","v":8.5839658487851141E-3},{"$f":"'Population at Risk'!W111/'Population at Risk'!W$5","v":7.645364281935318E-3},{"$f":"'Population at Risk'!X111/'Population at Risk'!X$5","v":7.645364281935318E-3},{"$f":"'Population at Risk'!Y111/'Population at Risk'!Y$5","v":8.086237072597275E-3},{"$f":"'Population at Risk'!Z111/'Population at Risk'!Z$5","v":3.383723013201822E-3},{"$f":"'Population at Risk'!AA111/'Population at Risk'!AA$5","v":6.7554741945429495E-3},{"$f":"'Population at Risk'!AB111/'Population at Risk'!AB$5","v":5.0587315715525452E-3},{"$f":"'Population at Risk'!AC111/'Population at Risk'!AC$5","v":4.72737715467237E-3},{"$f":"'Population at Risk'!AD111/'Population at Risk'!AD$5","v":7.8086356976476744E-3},{"$f":"'Population at Risk'!AE111/'Population at Risk'!AE$5","v":7.6868160534536113E-3},{"$f":"'Population at Risk'!AF111/'Population at Risk'!AF$5","v":4.4732786526644882E-3},{"$f":"'Population at Risk'!AG111/'Population at Risk'!AG$5","v":9.1010414832941085E-3},{"$f":"'Population at Risk'!AH111/'Population at Risk'!AH$5","v":9.8794667932143882E-3},{"$f":"'Population at Risk'!AI111/'Population at Risk'!AI$5","v":6.9355404891751071E-3},{"$f":"'Population at Risk'!AJ111/'Population at Risk'!AJ$5","v":1.3747416182857667E-2},{"$f":"'Population at Risk'!AK111/'Population at Risk'!AK$5","v":7.1085382735285472E-3},{"$f":"'Population at Risk'!AL111/'Population at Risk'!AL$5","v":6.1159159444276225E-3},{"$f":"'Population at Risk'!AM111/'Population at Risk'!AM$5","v":1.0162036616399349E-2},{"$f":"'Population at Risk'!AN111/'Population at Risk'!AN$5","v":7.5493509238912437E-3},{"$f":"'Population at Risk'!AO111/'Population at Risk'!AO$5","v":7.5493509238912437E-3},{"$f":"'Population at Risk'!AP111/'Population at Risk'!AP$5","v":3.9881594710090337E-3},{"$f":"'Population at Risk'!AQ111/'Population at Risk'!AQ$5","v":6.8198874149087273E-3},{"$f":"'Population at Risk'!AR111/'Population at Risk'!AR$5","v":6.9379159684574898E-3},{"$f":"'Population at Risk'!AS111/'Population at Risk'!AS$5","v":9.1869225165826778E-3},{"$f":"'Population at Risk'!AT111/'Population at Risk'!AT$5","v":1.5490504247481583E-3},{"$f":"'Population at Risk'!AU111/'Population at Risk'!AU$5","v":1.5490504247481583E-3},{"$f":"'Population at Risk'!AV111/'Population at Risk'!AV$5","v":1.3272908013011696E-2},{"$f":"'Population at Risk'!AW111/'Population at Risk'!AW$5","v":9.3899642065404677E-3},{"$f":"'Population at Risk'!AX111/'Population at Risk'!AX$5","v":5.0841872907260244E-3},{"$f":"'Population at Risk'!AY111/'Population at Risk'!AY$5","v":7.228321990897596E-3},{"$f":"'Population at Risk'!AZ111/'Population at Risk'!AZ$5","v":4.9520553696801375E-3},{"$f":"'Population at Risk'!BA111/'Population at Risk'!BA$5","v":9.4242863884630747E-3},{"$f":"'Population at Risk'!BB111/'Population at Risk'!BB$5","v":1.0638471574038371E-2},{"$f":"'Population at Risk'!BC111/'Population at Risk'!BC$5","v":1.0367524539278503E-2},109]
[null,"Female 70-74",{"$f":"'Population at Risk'!C112/'Population at Risk'!C$5","v":3.9337371976888484E-3},{"$f":"'Population at Risk'!D112/'Population at Risk'!D$5","v":4.2619626159835812E-3},{"$f":"'Population at Risk'!E112/'Population at Risk'!E$5","v":2.7475366072530387E-3},{"$f":"'Population at Risk'!F112/'Population at Risk'!F$5","v":3.3389008810218008E-3},{"$f":"'Population at Risk'!G112/'Population at Risk'!G$5","v":6.8014594817658444E-3},{"$f":"'Population at Risk'!H112/'Population at Risk'!H$5","v":7.0229623457915644E-3},{"$f":"'Population at Risk'!I112/'Population at Risk'!I$5","v":7.346851778612171E-3},{"$f":"'Population at Risk'!J112/'Population at Risk'!J$5","v":5.608103998213247E-3},{"$f":"'Population at Risk'!K112/'Population at Risk'!K$5","v":7.3789650308803386E-3},{"$f":"'Population at Risk'!L112/'Population at Risk'!L$5","v":1.0643570636535364E-2},{"$f":"'Population at Risk'!M112/'Population at Risk'!M$5","v":1.0643570636535364E-2},{"$f":"'Population at Risk'!N112/'Population at Risk'!N$5","v":4.637772248706421E-3},{"$f":"'Population at Risk'!O112/'Population at Risk'!O$5","v":7.0785583107253148E-3},{"$f":"'Population at Risk'!P112/'Population at Risk'!P$5","v":6.5791898464726117E-3},{"$f":"'Population at Risk'!Q112/'Population at Risk'!Q$5","v":9.474023932886844E-3},{"$f":"'Population at Risk'!R112/'Population at Risk'!R$5","v":2.276719918798892E-3},{"$f":"'Population at Risk'!S112/'Population at Risk'!S$5","v":6.1777912853900234E-3},{"$f":"'Population at Risk'!T112/'Population at Risk'!T$5","v":2.6838075785480774E-3},{"$f":"'Population at Risk'!U112/'Population at Risk'!U$5","v":7.5999226495558512E-3},{"$f":"'Population at Risk'!V112/'Population at Risk'!V$5","v":7.0073190602327464E-3},{"$f":"'Population at Risk'!W112/'Population at Risk'!W$5","v":5.8824620295755328E-3},{"$f":"'Population at Risk'!X112/'Population at Risk'!X$5","v":5.8824620295755328E-3},{"$f":"'Population at Risk'!Y112/'Population at Risk'!Y$5","v":6.5957196424747148E-3},{"$f":"'Population at Risk'!Z112/'Population at Risk'!Z$5","v":2.5839876920387876E-3},{"$f":"'Population at Risk'!AA112/'Population at Risk'!AA$5","v":5.4285500920733948E-3},{"$f":"'Population at Risk'!AB112/'Population at Risk'!AB$5","v":3.7120835846929721E-3},{"$f":"'Population at Risk'!AC112/'Population at Risk'!AC$5","v":3.6652048689334721E-3},{"$f":"'Population at Risk'!AD112/'Population at Risk'!AD$5","v":5.9090384447952633E-3},{"$f":"'Population at Risk'!AE112/'Population at Risk'!AE$5","v":5.6203603092134851E-3},{"$f":"'Population at Risk'!AF112/'Population at Risk'!AF$5","v":3.4046620856390828E-3},{"$f":"'Population at Risk'!AG112/'Population at Risk'!AG$5","v":6.654397863759199E-3},{"$f":"'Population at Risk'!AH112/'Population at Risk'!AH$5","v":8.2027811453690216E-3},{"$f":"'Population at Risk'!AI112/'Population at Risk'!AI$5","v":5.418167337776632E-3},{"$f":"'Population at Risk'!AJ112/'Population at Risk'!AJ$5","v":9.983714346052254E-3},{"$f":"'Population at Risk'!AK112/'Population at Risk'!AK$5","v":5.5550166640819104E-3},{"$f":"'Population at Risk'!AL112/'Population at Risk'!AL$5","v":4.6809315681223705E-3},{"$f":"'Population at Risk'!AM112/'Population at Risk'!AM$5","v":8.6045037562563972E-3},{"$f":"'Population at Risk'!AN112/'Population at Risk'!AN$5","v":6.534312144208387E-3},{"$f":"'Population at Risk'!AO112/'Population at Risk'!AO$5","v":6.534312144208387E-3},{"$f":"'Population at Risk'!AP112/'Population at Risk'!AP$5","v":3.1991974887007244E-3},{"$f":"'Population at Risk'!AQ112/'Population at Risk'!AQ$5","v":5.5217838444573501E-3},{"$f":"'Population at Risk'!AR112/'Population at Risk'!AR$5","v":5.4864477290159225E-3},{"$f":"'Population at Risk'!AS112/'Population at Risk'!AS$5","v":7.346851778612171E-3},{"$f":"'Population at Risk'!AT112/'Population at Risk'!AT$5","v":1.1772783228086003E-3},{"$f":"'Population at Risk'!AU112/'Population at Risk'!AU$5","v":1.1772783228086003E-3},{"$f":"'Population at Risk'!AV112/'Population at Risk'!AV$5","v":1.10236597001271E-2},{"$f":"'Population at Risk'!AW112/'Population at Risk'!AW$5","v":7.628257907500987E-3},{"$f":"'Population at Risk'!AX112/'Population at Risk'!AX$5","v":4.4312998517530098E-3},{"$f":"'Population at Risk'!AY112/'Population at Risk'!AY$5","v":5.6692071052978398E-3},{"$f":"'Population at Risk'!AZ112/'Population at Risk'!AZ$5","v":3.9829434586244553E-3},{"$f":"'Population at Risk'!BA112/'Population at Risk'!BA$5","v":7.068214791347306E-3},{"$f":"'Population at Risk'!BB112/'Population at Risk'!BB$5","v":8.8641608181181403E-3},{"$f":"'Population at Risk'!BC112/'Population at Risk'!BC$5","v":7.5999226495558512E-3},110]
[null,"Female 75-79",{"$f":"'Population at Risk'!C113/'Population at Risk'!C$5","v":1.7857523504761978E-3},{"$f":"'Population at Risk'!D113/'Population at Risk'!D$5","v":1.7956542236955673E-3},{"$f":"'Population at Risk'!E113/'Population at Risk'!E$5","v":1.0187145598430974E-3},{"$f":"'Population at Risk'!F113/'Population at Risk'!F$5","v":1.3444186275755488E-3},{"$f":"'Population at Risk'!G113/'Population at Risk'!G$5","v":2.8753631127860302E-3},{"$f":"'Population at Risk'!H113/'Population at Risk'!H$5","v":2.6104775877450648E-3},{"$f":"'Population at Risk'!I113/'Population at Risk'!I$5","v":2.7150703008494842E-3},{"$f":"'Population at Risk'!J113/'Population at Risk'!J$5","v":2.0381347828645254E-3},{"$f":"'Population at Risk'!K113/'Population at Risk'!K$5","v":2.2944407464144654E-3},{"$f":"'Population at Risk'!L113/'Population at Risk'!L$5","v":3.8141422242462296E-3},{"$f":"'Population at Risk'!M113/'Population at Risk'!M$5","v":3.8141422242462296E-3},{"$f":"'Population at Risk'!N113/'Population at Risk'!N$5","v":2.038470409222547E-3},{"$f":"'Population at Risk'!O113/'Population at Risk'!O$5","v":2.7672899219676837E-3},{"$f":"'Population at Risk'!P113/'Population at Risk'!P$5","v":2.4431774989888471E-3},{"$f":"'Population at Risk'!Q113/'Population at Risk'!Q$5","v":3.8271927881363263E-3},{"$f":"'Population at Risk'!R113/'Population at Risk'!R$5","v":1.1268307667962961E-3},{"$f":"'Population at Risk'!S113/'Population at Risk'!S$5","v":2.3672901978717079E-3},{"$f":"'Population at Risk'!T113/'Population at Risk'!T$5","v":1.1755654048750069E-3},{"$f":"'Population at Risk'!U113/'Population at Risk'!U$5","v":3.3351549440658354E-3},{"$f":"'Population at Risk'!V113/'Population at Risk'!V$5","v":2.6577482036222689E-3},{"$f":"'Population at Risk'!W113/'Population at Risk'!W$5","v":2.2088061667538093E-3},{"$f":"'Population at Risk'!X113/'Population at Risk'!X$5","v":2.2088061667538093E-3},{"$f":"'Population at Risk'!Y113/'Population at Risk'!Y$5","v":2.463276533212141E-3},{"$f":"'Population at Risk'!Z113/'Population at Risk'!Z$5","v":1.1594659382237497E-3},{"$f":"'Population at Risk'!AA113/'Population at Risk'!AA$5","v":2.2026997962076591E-3},{"$f":"'Population at Risk'!AB113/'Population at Risk'!AB$5","v":1.545748158506592E-3},{"$f":"'Population at Risk'!AC113/'Population at Risk'!AC$5","v":1.5710684577322218E-3},{"$f":"'Population at Risk'!AD113/'Population at Risk'!AD$5","v":2.4831729680502377E-3},{"$f":"'Population at Risk'!AE113/'Population at Risk'!AE$5","v":2.3558645815576359E-3},{"$f":"'Population at Risk'!AF113/'Population at Risk'!AF$5","v":1.1479412951078049E-3},{"$f":"'Population at Risk'!AG113/'Population at Risk'!AG$5","v":2.7892980834563104E-3},{"$f":"'Population at Risk'!AH113/'Population at Risk'!AH$5","v":3.1627538254889957E-3},{"$f":"'Population at Risk'!AI113/'Population at Risk'!AI$5","v":2.1080808340071902E-3},{"$f":"'Population at Risk'!AJ113/'Population at Risk'!AJ$5","v":3.6298583782869405E-3},{"$f":"'Population at Risk'!AK113/'Population at Risk'!AK$5","v":2.2104346438782574E-3},{"$f":"'Population at Risk'!AL113/'Population at Risk'!AL$5","v":1.6278143925586921E-3},{"$f":"'Population at Risk'!AM113/'Population at Risk'!AM$5","v":3.276724344158561E-3},{"$f":"'Population at Risk'!AN113/'Population at Risk'!AN$5","v":1.8278815939223711E-3},{"$f":"'Population at Risk'!AO113/'Population at Risk'!AO$5","v":1.8278815939223711E-3},{"$f":"'Population at Risk'!AP113/'Population at Risk'!AP$5","v":1.1181720964822668E-3},{"$f":"'Population at Risk'!AQ113/'Population at Risk'!AQ$5","v":2.3776833984482586E-3},{"$f":"'Population at Risk'!AR113/'Population at Risk'!AR$5","v":2.1588861229412579E-3},{"$f":"'Population at Risk'!AS113/'Population at Risk'!AS$5","v":2.7150703008494842E-3},{"$f":"'Population at Risk'!AT113/'Population at Risk'!AT$5","v":2.8338078860321757E-4},{"$f":"'Population at Risk'!AU113/'Population at Risk'!AU$5","v":2.8338078860321757E-4},{"$f":"'Population at Risk'!AV113/'Population at Risk'!AV$5","v":4.1147386197794003E-3},{"$f":"'Population at Risk'!AW113/'Population at Risk'!AW$5","v":2.9823981807573677E-3},{"$f":"'Population at Risk'!AX113/'Population at Risk'!AX$5","v":1.8678097742365009E-3},{"$f":"'Population at Risk'!AY113/'Population at Risk'!AY$5","v":2.202884537062284E-3},{"$f":"'Population at Risk'!AZ113/'Population at Risk'!AZ$5","v":1.6145850610225264E-3},{"$f":"'Population at Risk'!BA113/'Population at Risk'!BA$5","v":3.0903029765263425E-3},{"$f":"'Population at Risk'!BB113/'Population at Risk'!BB$5","v":3.103887577699551E-3},{"$f":"'Population at Risk'!BC113/'Population at Risk'!BC$5","v":3.3351549440658354E-3},111]
[null,"Female 80-84",{"$f":"'Population at Risk'!C114/'Population at Risk'!C$5","v":1.5836336142904589E-3},{"$f":"'Population at Risk'!D114/'Population at Risk'!D$5","v":1.5368343559479163E-3},{"$f":"'Population at Risk'!E114/'Population at Risk'!E$5","v":8.1208849345982756E-4},{"$f":"'Population at Risk'!F114/'Population at Risk'!F$5","v":1.0390120540981994E-3},{"$f":"'Population at Risk'!G114/'Population at Risk'!G$5","v":2.1826619992512141E-3},{"$f":"'Population at Risk'!H114/'Population at Risk'!H$5","v":2.0469378955212995E-3},{"$f":"'Population at Risk'!I114/'Population at Risk'!I$5","v":2.1499425459215373E-3},{"$f":"'Population at Risk'!J114/'Population at Risk'!J$5","v":1.3625732537128007E-3},{"$f":"'Population at Risk'!K114/'Population at Risk'!K$5","v":1.5391873340530372E-3},{"$f":"'Population at Risk'!L114/'Population at Risk'!L$5","v":3.176507846288654E-3},{"$f":"'Population at Risk'!M114/'Population at Risk'!M$5","v":3.176507846288654E-3},{"$f":"'Population at Risk'!N114/'Population at Risk'!N$5","v":1.6585285987515699E-3},{"$f":"'Population at Risk'!O114/'Population at Risk'!O$5","v":2.0508271887459133E-3},{"$f":"'Population at Risk'!P114/'Population at Risk'!P$5","v":2.2502950648581486E-3},{"$f":"'Population at Risk'!Q114/'Population at Risk'!Q$5","v":3.0155532082705473E-3},{"$f":"'Population at Risk'!R114/'Population at Risk'!R$5","v":1.0769078847230424E-3},{"$f":"'Population at Risk'!S114/'Population at Risk'!S$5","v":1.8210967151948197E-3},{"$f":"'Population at Risk'!T114/'Population at Risk'!T$5","v":8.8059357074736261E-4},{"$f":"'Population at Risk'!U114/'Population at Risk'!U$5","v":3.0739681110968239E-3},{"$f":"'Population at Risk'!V114/'Population at Risk'!V$5","v":1.9145732901353768E-3},{"$f":"'Population at Risk'!W114/'Population at Risk'!W$5","v":1.7594862811213803E-3},{"$f":"'Population at Risk'!X114/'Population at Risk'!X$5","v":1.7594862811213803E-3},{"$f":"'Population at Risk'!Y114/'Population at Risk'!Y$5","v":1.7289039838721577E-3},{"$f":"'Population at Risk'!Z114/'Population at Risk'!Z$5","v":1.0445334545514248E-3},{"$f":"'Population at Risk'!AA114/'Population at Risk'!AA$5","v":1.7782902208277427E-3},{"$f":"'Population at Risk'!AB114/'Population at Risk'!AB$5","v":1.2800726937632718E-3},{"$f":"'Population at Risk'!AC114/'Population at Risk'!AC$5","v":1.3423943259578575E-3},{"$f":"'Population at Risk'!AD114/'Population at Risk'!AD$5","v":1.8185193339389648E-3},{"$f":"'Population at Risk'!AE114/'Population at Risk'!AE$5","v":1.6984140006578306E-3},{"$f":"'Population at Risk'!AF114/'Population at Risk'!AF$5","v":8.8652892097434435E-4},{"$f":"'Population at Risk'!AG114/'Population at Risk'!AG$5","v":2.010889315980131E-3},{"$f":"'Population at Risk'!AH114/'Population at Risk'!AH$5","v":2.4071580599270802E-3},{"$f":"'Population at Risk'!AI114/'Population at Risk'!AI$5","v":1.5869527769047916E-3},{"$f":"'Population at Risk'!AJ114/'Population at Risk'!AJ$5","v":2.8567770597832322E-3},{"$f":"'Population at Risk'!AK114/'Population at Risk'!AK$5","v":1.586058624341217E-3},{"$f":"'Population at Risk'!AL114/'Population at Risk'!AL$5","v":1.3698860557096039E-3},{"$f":"'Population at Risk'!AM114/'Population at Risk'!AM$5","v":2.4203437305403089E-3},{"$f":"'Population at Risk'!AN114/'Population at Risk'!AN$5","v":1.7408396132594008E-3},{"$f":"'Population at Risk'!AO114/'Population at Risk'!AO$5","v":1.7408396132594008E-3},{"$f":"'Population at Risk'!AP114/'Population at Risk'!AP$5","v":9.3577522968019502E-4},{"$f":"'Population at Risk'!AQ114/'Population at Risk'!AQ$5","v":1.9818951060357535E-3},{"$f":"'Population at Risk'!AR114/'Population at Risk'!AR$5","v":1.7014363949918248E-3},{"$f":"'Population at Risk'!AS114/'Population at Risk'!AS$5","v":2.1499425459215373E-3},{"$f":"'Population at Risk'!AT114/'Population at Risk'!AT$5","v":4.2507118290482633E-4},{"$f":"'Population at Risk'!AU114/'Population at Risk'!AU$5","v":4.2507118290482633E-4},{"$f":"'Population at Risk'!AV114/'Population at Risk'!AV$5","v":3.2199972792804937E-3},{"$f":"'Population at Risk'!AW114/'Population at Risk'!AW$5","v":2.3438815387479156E-3},{"$f":"'Population at Risk'!AX114/'Population at Risk'!AX$5","v":1.2452065161576672E-3},{"$f":"'Population at Risk'!AY114/'Population at Risk'!AY$5","v":1.7636730539496593E-3},{"$f":"'Population at Risk'!AZ114/'Population at Risk'!AZ$5","v":1.3004350265249309E-3},{"$f":"'Population at Risk'!BA114/'Population at Risk'!BA$5","v":2.1957415885845064E-3},{"$f":"'Population at Risk'!BB114/'Population at Risk'!BB$5","v":2.2078851723723388E-3},{"$f":"'Population at Risk'!BC114/'Population at Risk'!BC$5","v":3.0739681110968239E-3},112]
[null,"Female 85-89",{"$f":"'Population at Risk'!C115/'Population at Risk'!C$5","v":8.906550902250687E-4},{"$f":"'Population at Risk'!D115/'Population at Risk'!D$5","v":8.5834611507271824E-4},{"$f":"'Population at Risk'!E115/'Population at Risk'!E$5","v":4.4688893427079272E-4},{"$f":"'Population at Risk'!F115/'Population at Risk'!F$5","v":7.7138773713351168E-4},{"$f":"'Population at Risk'!G115/'Population at Risk'!G$5","v":1.2220293229340629E-3},{"$f":"'Population at Risk'!H115/'Population at Risk'!H$5","v":1.1245523006258992E-3},{"$f":"'Population at Risk'!I115/'Population at Risk'!I$5","v":1.308393606517964E-3},{"$f":"'Population at Risk'!J115/'Population at Risk'!J$5","v":7.9388021504835451E-4},{"$f":"'Population at Risk'!K115/'Population at Risk'!K$5","v":9.7513731722614775E-4},{"$f":"'Population at Risk'!L115/'Population at Risk'!L$5","v":1.7690465973822982E-3},{"$f":"'Population at Risk'!M115/'Population at Risk'!M$5","v":1.7690465973822982E-3},{"$f":"'Population at Risk'!N115/'Population at Risk'!N$5","v":9.0855650330016286E-4},{"$f":"'Population at Risk'!O115/'Population at Risk'!O$5","v":1.09554354445022E-3},{"$f":"'Population at Risk'!P115/'Population at Risk'!P$5","v":1.3051711376177262E-3},{"$f":"'Population at Risk'!Q115/'Population at Risk'!Q$5","v":1.6981997363345524E-3},{"$f":"'Population at Risk'!R115/'Population at Risk'!R$5","v":4.7783329984399896E-4},{"$f":"'Population at Risk'!S115/'Population at Risk'!S$5","v":1.1416302156530165E-3},{"$f":"'Population at Risk'!T115/'Population at Risk'!T$5","v":6.0074849734421303E-4},{"$f":"'Population at Risk'!U115/'Population at Risk'!U$5","v":1.2657515751575159E-3},{"$f":"'Population at Risk'!V115/'Population at Risk'!V$5","v":1.1962629648320608E-3},{"$f":"'Population at Risk'!W115/'Population at Risk'!W$5","v":1.1323980918275232E-3},{"$f":"'Population at Risk'!X115/'Population at Risk'!X$5","v":1.1323980918275232E-3},{"$f":"'Population at Risk'!Y115/'Population at Risk'!Y$5","v":1.0554547177733841E-3},{"$f":"'Population at Risk'!Z115/'Population at Risk'!Z$5","v":6.4903049603195324E-4},{"$f":"'Population at Risk'!AA115/'Population at Risk'!AA$5","v":1.0357849637012845E-3},{"$f":"'Population at Risk'!AB115/'Population at Risk'!AB$5","v":7.3262022095885355E-4},{"$f":"'Population at Risk'!AC115/'Population at Risk'!AC$5","v":7.7984783837793843E-4},{"$f":"'Population at Risk'!AD115/'Population at Risk'!AD$5","v":1.1403701945665494E-3},{"$f":"'Population at Risk'!AE115/'Population at Risk'!AE$5","v":1.1162962988194613E-3},{"$f":"'Population at Risk'!AF115/'Population at Risk'!AF$5","v":4.5463021588427918E-4},{"$f":"'Population at Risk'!AG115/'Population at Risk'!AG$5","v":1.3216732197772634E-3},{"$f":"'Population at Risk'!AH115/'Population at Risk'!AH$5","v":1.4061139883546055E-3},{"$f":"'Population at Risk'!AI115/'Population at Risk'!AI$5","v":9.8529865067727368E-4},{"$f":"'Population at Risk'!AJ115/'Population at Risk'!AJ$5","v":1.8541872248487366E-3},{"$f":"'Population at Risk'!AK115/'Population at Risk'!AK$5","v":1.01191975580141E-3},{"$f":"'Population at Risk'!AL115/'Population at Risk'!AL$5","v":6.992723799019734E-4},{"$f":"'Population at Risk'!AM115/'Population at Risk'!AM$5","v":1.3328511583485547E-3},{"$f":"'Population at Risk'!AN115/'Population at Risk'!AN$5","v":8.4140581307537714E-4},{"$f":"'Population at Risk'!AO115/'Population at Risk'!AO$5","v":8.4140581307537714E-4},{"$f":"'Population at Risk'!AP115/'Population at Risk'!AP$5","v":8.088904527744059E-4},{"$f":"'Population at Risk'!AQ115/'Population at Risk'!AQ$5","v":1.0426363225493605E-3},{"$f":"'Population at Risk'!AR115/'Population at Risk'!AR$5","v":1.0139470124934109E-3},{"$f":"'Population at Risk'!AS115/'Population at Risk'!AS$5","v":1.308393606517964E-3},{"$f":"'Population at Risk'!AT115/'Population at Risk'!AT$5","v":1.4169039430160879E-4},{"$f":"'Population at Risk'!AU115/'Population at Risk'!AU$5","v":1.4169039430160879E-4},{"$f":"'Population at Risk'!AV115/'Population at Risk'!AV$5","v":1.9127105302880806E-3},{"$f":"'Population at Risk'!AW115/'Population at Risk'!AW$5","v":1.4505951642658636E-3},{"$f":"'Population at Risk'!AX115/'Population at Risk'!AX$5","v":6.7342801384037113E-4},{"$f":"'Population at Risk'!AY115/'Population at Risk'!AY$5","v":1.1628863620235818E-3},{"$f":"'Population at Risk'!AZ115/'Population at Risk'!AZ$5","v":8.8156831386146991E-4},{"$f":"'Population at Risk'!BA115/'Population at Risk'!BA$5","v":1.3062629358014308E-3},{"$f":"'Population at Risk'!BB115/'Population at Risk'!BB$5","v":1.2510222263059194E-3},{"$f":"'Population at Risk'!BC115/'Population at Risk'!BC$5","v":1.2657515751575159E-3},113]
[null,"Female 90+",{"$f":"'Population at Risk'!C116/'Population at Risk'!C$5","v":4.3311157754086883E-4},{"$f":"'Population at Risk'!D116/'Population at Risk'!D$5","v":4.5183807420352633E-4},{"$f":"'Population at Risk'!E116/'Population at Risk'!E$5","v":2.7389966939177614E-4},{"$f":"'Population at Risk'!F116/'Population at Risk'!F$5","v":5.0691194154487914E-4},{"$f":"'Population at Risk'!G116/'Population at Risk'!G$5","v":6.7963128120397079E-4},{"$f":"'Population at Risk'!H116/'Population at Risk'!H$5","v":7.8339598470568254E-4},{"$f":"'Population at Risk'!I116/'Population at Risk'!I$5","v":9.0297586928704565E-4},{"$f":"'Population at Risk'!J116/'Population at Risk'!J$5","v":4.8090820719275324E-4},{"$f":"'Population at Risk'!K116/'Population at Risk'!K$5","v":5.8317035638034325E-4},{"$f":"'Population at Risk'!L116/'Population at Risk'!L$5","v":1.0730920019286028E-3},{"$f":"'Population at Risk'!M116/'Population at Risk'!M$5","v":1.0730920019286028E-3},{"$f":"'Population at Risk'!N116/'Population at Risk'!N$5","v":5.4513390198009765E-4},{"$f":"'Population at Risk'!O116/'Population at Risk'!O$5","v":6.975086926603477E-4},{"$f":"'Population at Risk'!P116/'Population at Risk'!P$5","v":8.9368861147223614E-4},{"$f":"'Population at Risk'!Q116/'Population at Risk'!Q$5","v":9.1777706338668831E-4},{"$f":"'Population at Risk'!R116/'Population at Risk'!R$5","v":2.4961441036626815E-4},{"$f":"'Population at Risk'!S116/'Population at Risk'!S$5","v":6.5778139849259675E-4},{"$f":"'Population at Risk'!T116/'Population at Risk'!T$5","v":3.6304225738786975E-4},{"$f":"'Population at Risk'!U116/'Population at Risk'!U$5","v":1.1452038060948951E-3},{"$f":"'Population at Risk'!V116/'Population at Risk'!V$5","v":7.6251403762967384E-4},{"$f":"'Population at Risk'!W116/'Population at Risk'!W$5","v":6.7467970365990874E-4},{"$f":"'Population at Risk'!X116/'Population at Risk'!X$5","v":6.7467970365990874E-4},{"$f":"'Population at Risk'!Y116/'Population at Risk'!Y$5","v":6.6192323953962622E-4},{"$f":"'Population at Risk'!Z116/'Population at Risk'!Z$5","v":3.8062934298540592E-4},{"$f":"'Population at Risk'!AA116/'Population at Risk'!AA$5","v":5.3495346478119694E-4},{"$f":"'Population at Risk'!AB116/'Population at Risk'!AB$5","v":3.7536722859567634E-4},{"$f":"'Population at Risk'!AC116/'Population at Risk'!AC$5","v":4.1957438387729706E-4},{"$f":"'Population at Risk'!AD116/'Population at Risk'!AD$5","v":6.3428874727370211E-4},{"$f":"'Population at Risk'!AE116/'Population at Risk'!AE$5","v":6.2092554862759391E-4},{"$f":"'Population at Risk'!AF116/'Population at Risk'!AF$5","v":1.4775482016239072E-4},{"$f":"'Population at Risk'!AG116/'Population at Risk'!AG$5","v":7.3516383594972529E-4},{"$f":"'Population at Risk'!AH116/'Population at Risk'!AH$5","v":6.9303051108863612E-4},{"$f":"'Population at Risk'!AI116/'Population at Risk'!AI$5","v":5.4142324525588393E-4},{"$f":"'Population at Risk'!AJ116/'Population at Risk'!AJ$5","v":8.3951799431262011E-4},{"$f":"'Population at Risk'!AK116/'Population at Risk'!AK$5","v":4.5931109483184562E-4},{"$f":"'Population at Risk'!AL116/'Population at Risk'!AL$5","v":4.4134404305288486E-4},{"$f":"'Population at Risk'!AM116/'Population at Risk'!AM$5","v":5.6986510333192366E-4},{"$f":"'Population at Risk'!AN116/'Population at Risk'!AN$5","v":3.4816792265188017E-4},{"$f":"'Population at Risk'!AO116/'Population at Risk'!AO$5","v":3.4816792265188017E-4},{"$f":"'Population at Risk'!AP116/'Population at Risk'!AP$5","v":3.8065433071736746E-4},{"$f":"'Population at Risk'!AQ116/'Population at Risk'!AQ$5","v":4.9621218750224528E-4},{"$f":"'Population at Risk'!AR116/'Population at Risk'!AR$5","v":5.7383304174538237E-4},{"$f":"'Population at Risk'!AS116/'Population at Risk'!AS$5","v":9.0297586928704565E-4},{"$f":"'Population at Risk'!AT116/'Population at Risk'!AT$5","v":2.8338078860321758E-5},{"$f":"'Population at Risk'!AU116/'Population at Risk'!AU$5","v":2.8338078860321758E-5},{"$f":"'Population at Risk'!AV116/'Population at Risk'!AV$5","v":1.5108805869502484E-3},{"$f":"'Population at Risk'!AW116/'Population at Risk'!AW$5","v":8.0252465728868842E-4},{"$f":"'Population at Risk'!AX116/'Population at Risk'!AX$5","v":4.1295114056249166E-4},{"$f":"'Population at Risk'!AY116/'Population at Risk'!AY$5","v":6.8574642613784603E-4},{"$f":"'Population at Risk'!AZ116/'Population at Risk'!AZ$5","v":5.1384230448831534E-4},{"$f":"'Population at Risk'!BA116/'Population at Risk'!BA$5","v":5.1843898619356396E-4},{"$f":"'Population at Risk'!BB116/'Population at Risk'!BB$5","v":6.9313393619652283E-4},{"$f":"'Population at Risk'!BC116/'Population at Risk'!BC$5","v":1.1452038060948951E-3},114]
[null,"Male 0-4",{"$f":"'Population at Risk'!C117/'Population at Risk'!C$5","v":0},{"$f":"'Population at Risk'!D117/'Population at Risk'!D$5","v":0},{"$f":"'Population at Risk'!E117/'Population at Risk'!E$5","v":0},{"$f":"'Population at Risk'!F117/'Population at Risk'!F$5","v":0},{"$f":"'Population at Risk'!G117/'Population at Risk'!G$5","v":0},{"$f":"'Population at Risk'!H117/'Population at Risk'!H$5","v":0},{"$f":"'Population at Risk'!I117/'Population at Risk'!I$5","v":0},{"$f":"'Population at Risk'!J117/'Population at Risk'!J$5","v":0},{"$f":"'Population at Risk'!K117/'Population at Risk'!K$5","v":0},{"$f":"'Population at Risk'!L117/'Population at Risk'!L$5","v":0},{"$f":"'Population at Risk'!M117/'Population at Risk'!M$5","v":0},{"$f":"'Population at Risk'!N117/'Population at Risk'!N$5","v":0},{"$f":"'Population at Risk'!O117/'Population at Risk'!O$5","v":0},{"$f":"'Population at Risk'!P117/'Population at Risk'!P$5","v":0},{"$f":"'Population at Risk'!Q117/'Population at Risk'!Q$5","v":0},{"$f":"'Population at Risk'!R117/'Population at Risk'!R$5","v":0},{"$f":"'Population at Risk'!S117/'Population at Risk'!S$5","v":0},{"$f":"'Population at Risk'!T117/'Population at Risk'!T$5","v":0},{"$f":"'Population at Risk'!U117/'Population at Risk'!U$5","v":0},{"$f":"'Population at Risk'!V117/'Population at Risk'!V$5","v":0},{"$f":"'Population at Risk'!W117/'Population at Risk'!W$5","v":0},{"$f":"'Population at Risk'!X117/'Population at Risk'!X$5","v":0},{"$f":"'Population at Risk'!Y117/'Population at Risk'!Y$5","v":0},{"$f":"'Population at Risk'!Z117/'Population at Risk'!Z$5","v":0},{"$f":"'Population at Risk'!AA117/'Population at Risk'!AA$5","v":0},{"$f":"'Population at Risk'!AB117/'Population at Risk'!AB$5","v":0},{"$f":"'Population at Risk'!AC117/'Population at Risk'!AC$5","v":0},{"$f":"'Population at Risk'!AD117/'Population at Risk'!AD$5","v":0},{"$f":"'Population at Risk'!AE117/'Population at Risk'!AE$5","v":0},{"$f":"'Population at Risk'!AF117/'Population at Risk'!AF$5","v":0},{"$f":"'Population at Risk'!AG117/'Population at Risk'!AG$5","v":0},{"$f":"'Population at Risk'!AH117/'Population at Risk'!AH$5","v":0},{"$f":"'Population at Risk'!AI117/'Population at Risk'!AI$5","v":0},{"$f":"'Population at Risk'!AJ117/'Population at Risk'!AJ$5","v":0},{"$f":"'Population at Risk'!AK117/'Population at Risk'!AK$5","v":0},{"$f":"'Population at Risk'!AL117/'Population at Risk'!AL$5","v":0},{"$f":"'Population at Risk'!AM117/'Population at Risk'!AM$5","v":0},{"$f":"'Population at Risk'!AN117/'Population at Risk'!AN$5","v":0},{"$f":"'Population at Risk'!AO117/'Population at Risk'!AO$5","v":0},{"$f":"'Population at Risk'!AP117/'Population at Risk'!AP$5","v":0},{"$f":"'Population at Risk'!AQ117/'Population at Risk'!AQ$5","v":0},{"$f":"'Population at Risk'!AR117/'Population at Risk'!AR$5","v":0},{"$f":"'Population at Risk'!AS117/'Population at Risk'!AS$5","v":0},{"$f":"'Population at Risk'!AT117/'Population at Risk'!AT$5","v":0},{"$f":"'Population at Risk'!AU117/'Population at Risk'!AU$5","v":0},{"$f":"'Population at Risk'!AV117/'Population at Risk'!AV$5","v":0},{"$f":"'Population at Risk'!AW117/'Population at Risk'!AW$5","v":0},{"$f":"'Population at Risk'!AX117/'Population at Risk'!AX$5","v":0},{"$f":"'Population at Risk'!AY117/'Population at Risk'!AY$5","v":0},{"$f":"'Population at Risk'!AZ117/'Population at Risk'!AZ$5","v":0},{"$f":"'Population at Risk'!BA117/'Population at Risk'!BA$5","v":0},{"$f":"'Population at Risk'!BB117/'Population at Risk'!BB$5","v":0},{"$f":"'Population at Risk'!BC117/'Population at Risk'!BC$5","v":0},115]
[null,"Male 5-9",{"$f":"'Population at Risk'!C118/'Population at Risk'!C$5","v":0},{"$f":"'Population at Risk'!D118/'Population at Risk'!D$5","v":0},{"$f":"'Population at Risk'!E118/'Population at Risk'!E$5","v":0},{"$f":"'Population at Risk'!F118/'Population at Risk'!F$5","v":0},{"$f":"'Population at Risk'!G118/'Population at Risk'!G$5","v":0},{"$f":"'Population at Risk'!H118/'Population at Risk'!H$5","v":0},{"$f":"'Population at Risk'!I118/'Population at Risk'!I$5","v":0},{"$f":"'Population at Risk'!J118/'Population at Risk'!J$5","v":0},{"$f":"'Population at Risk'!K118/'Population at Risk'!K$5","v":0},{"$f":"'Population at Risk'!L118/'Population at Risk'!L$5","v":0},{"$f":"'Population at Risk'!M118/'Population at Risk'!M$5","v":0},{"$f":"'Population at Risk'!N118/'Population at Risk'!N$5","v":0},{"$f":"'Population at Risk'!O118/'Population at Risk'!O$5","v":0},{"$f":"'Population at Risk'!P118/'Population at Risk'!P$5","v":0},{"$f":"'Population at Risk'!Q118/'Population at Risk'!Q$5","v":0},{"$f":"'Population at Risk'!R118/'Population at Risk'!R$5","v":0},{"$f":"'Population at Risk'!S118/'Population at Risk'!S$5","v":0},{"$f":"'Population at Risk'!T118/'Population at Risk'!T$5","v":0},{"$f":"'Population at Risk'!U118/'Population at Risk'!U$5","v":0},{"$f":"'Population at Risk'!V118/'Population at Risk'!V$5","v":0},{"$f":"'Population at Risk'!W118/'Population at Risk'!W$5","v":0},{"$f":"'Population at Risk'!X118/'Population at Risk'!X$5","v":0},{"$f":"'Population at Risk'!Y118/'Population at Risk'!Y$5","v":0},{"$f":"'Population at Risk'!Z118/'Population at Risk'!Z$5","v":0},{"$f":"'Population at Risk'!AA118/'Population at Risk'!AA$5","v":0},{"$f":"'Population at Risk'!AB118/'Population at Risk'!AB$5","v":0},{"$f":"'Population at Risk'!AC118/'Population at Risk'!AC$5","v":0},{"$f":"'Population at Risk'!AD118/'Population at Risk'!AD$5","v":0},{"$f":"'Population at Risk'!AE118/'Population at Risk'!AE$5","v":0},{"$f":"'Population at Risk'!AF118/'Population at Risk'!AF$5","v":0},{"$f":"'Population at Risk'!AG118/'Population at Risk'!AG$5","v":0},{"$f":"'Population at Risk'!AH118/'Population at Risk'!AH$5","v":0},{"$f":"'Population at Risk'!AI118/'Population at Risk'!AI$5","v":0},{"$f":"'Population at Risk'!AJ118/'Population at Risk'!AJ$5","v":0},{"$f":"'Population at Risk'!AK118/'Population at Risk'!AK$5","v":0},{"$f":"'Population at Risk'!AL118/'Population at Risk'!AL$5","v":0},{"$f":"'Population at Risk'!AM118/'Population at Risk'!AM$5","v":0},{"$f":"'Population at Risk'!AN118/'Population at Risk'!AN$5","v":0},{"$f":"'Population at Risk'!AO118/'Population at Risk'!AO$5","v":0},{"$f":"'Population at Risk'!AP118/'Population at Risk'!AP$5","v":0},{"$f":"'Population at Risk'!AQ118/'Population at Risk'!AQ$5","v":0},{"$f":"'Population at Risk'!AR118/'Population at Risk'!AR$5","v":0},{"$f":"'Population at Risk'!AS118/'Population at Risk'!AS$5","v":0},{"$f":"'Population at Risk'!AT118/'Population at Risk'!AT$5","v":0},{"$f":"'Population at Risk'!AU118/'Population at Risk'!AU$5","v":0},{"$f":"'Population at Risk'!AV118/'Population at Risk'!AV$5","v":0},{"$f":"'Population at Risk'!AW118/'Population at Risk'!AW$5","v":0},{"$f":"'Population at Risk'!AX118/'Population at Risk'!AX$5","v":0},{"$f":"'Population at Risk'!AY118/'Population at Risk'!AY$5","v":0},{"$f":"'Population at Risk'!AZ118/'Population at Risk'!AZ$5","v":0},{"$f":"'Population at Risk'!BA118/'Population at Risk'!BA$5","v":0},{"$f":"'Population at Risk'!BB118/'Population at Risk'!BB$5","v":0},{"$f":"'Population at Risk'!BC118/'Population at Risk'!BC$5","v":0},116]
[null,"Male 10-15",{"$f":"'Population at Risk'!C119/'Population at Risk'!C$5","v":0},{"$f":"'Population at Risk'!D119/'Population at Risk'!D$5","v":0},{"$f":"'Population at Risk'!E119/'Population at Risk'!E$5","v":0},{"$f":"'Population at Risk'!F119/'Population at Risk'!F$5","v":0},{"$f":"'Population at Risk'!G119/'Population at Risk'!G$5","v":0},{"$f":"'Population at Risk'!H119/'Population at Risk'!H$5","v":0},{"$f":"'Population at Risk'!I119/'Population at Risk'!I$5","v":0},{"$f":"'Population at Risk'!J119/'Population at Risk'!J$5","v":0},{"$f":"'Population at Risk'!K119/'Population at Risk'!K$5","v":0},{"$f":"'Population at Risk'!L119/'Population at Risk'!L$5","v":0},{"$f":"'Population at Risk'!M119/'Population at Risk'!M$5","v":0},{"$f":"'Population at Risk'!N119/'Population at Risk'!N$5","v":0},{"$f":"'Population at Risk'!O119/'Population at Risk'!O$5","v":0},{"$f":"'Population at Risk'!P119/'Population at Risk'!P$5","v":0},{"$f":"'Population at Risk'!Q119/'Population at Risk'!Q$5","v":0},{"$f":"'Population at Risk'!R119/'Population at Risk'!R$5","v":0},{"$f":"'Population at Risk'!S119/'Population at Risk'!S$5","v":0},{"$f":"'Population at Risk'!T119/'Population at Risk'!T$5","v":0},{"$f":"'Population at Risk'!U119/'Population at Risk'!U$5","v":0},{"$f":"'Population at Risk'!V119/'Population at Risk'!V$5","v":0},{"$f":"'Population at Risk'!W119/'Population at Risk'!W$5","v":0},{"$f":"'Population at Risk'!X119/'Population at Risk'!X$5","v":0},{"$f":"'Population at Risk'!Y119/'Population at Risk'!Y$5","v":0},{"$f":"'Population at Risk'!Z119/'Population at Risk'!Z$5","v":0},{"$f":"'Population at Risk'!AA119/'Population at Risk'!AA$5","v":0},{"$f":"'Population at Risk'!AB119/'Population at Risk'!AB$5","v":0},{"$f":"'Population at Risk'!AC119/'Population at Risk'!AC$5","v":0},{"$f":"'Population at Risk'!AD119/'Population at Risk'!AD$5","v":0},{"$f":"'Population at Risk'!AE119/'Population at Risk'!AE$5","v":0},{"$f":"'Population at Risk'!AF119/'Population at Risk'!AF$5","v":0},{"$f":"'Population at Risk'!AG119/'Population at Risk'!AG$5","v":0},{"$f":"'Population at Risk'!AH119/'Population at Risk'!AH$5","v":0},{"$f":"'Population at Risk'!AI119/'Population at Risk'!AI$5","v":0},{"$f":"'Population at Risk'!AJ119/'Population at Risk'!AJ$5","v":0},{"$f":"'Population at Risk'!AK119/'Population at Risk'!AK$5","v":0},{"$f":"'Population at Risk'!AL119/'Population at Risk'!AL$5","v":0},{"$f":"'Population at Risk'!AM119/'Population at Risk'!AM$5","v":0},{"$f":"'Population at Risk'!AN119/'Population at Risk'!AN$5","v":0},{"$f":"'Population at Risk'!AO119/'Population at Risk'!AO$5","v":0},{"$f":"'Population at Risk'!AP119/'Population at Risk'!AP$5","v":0},{"$f":"'Population at Risk'!AQ119/'Population at Risk'!AQ$5","v":0},{"$f":"'Population at Risk'!AR119/'Population at Risk'!AR$5","v":0},{"$f":"'Population at Risk'!AS119/'Population at Risk'!AS$5","v":0},{"$f":"'Population at Risk'!AT119/'Population at Risk'!AT$5","v":0},{"$f":"'Population at Risk'!AU119/'Population at Risk'!AU$5","v":0},{"$f":"'Population at Risk'!AV119/'Population at Risk'!AV$5","v":0},{"$f":"'Population at Risk'!AW119/'Population at Risk'!AW$5","v":0},{"$f":"'Population at Risk'!AX119/'Population at Risk'!AX$5","v":0},{"$f":"'Population at Risk'!AY119/'Population at Risk'!AY$5","v":0},{"$f":"'Population at Risk'!AZ119/'Population at Risk'!AZ$5","v":0},{"$f":"'Population at Risk'!BA119/'Population at Risk'!BA$5","v":0},{"$f":"'Population at Risk'!BB119/'Population at Risk'!BB$5","v":0},{"$f":"'Population at Risk'!BC119/'Population at Risk'!BC$5","v":0},117]
[null,"Male 16-19",{"$f":"'Population at Risk'!C120/'Population at Risk'!C$5","v":7.766285975328047E-3},{"$f":"'Population at Risk'!D120/'Population at Risk'!D$5","v":4.8505498015790401E-3},{"$f":"'Population at Risk'!E120/'Population at Risk'!E$5","v":3.8602055498687879E-3},{"$f":"'Population at Risk'!F120/'Population at Risk'!F$5","v":8.0325661889513508E-3},{"$f":"'Population at Risk'!G120/'Population at Risk'!G$5","v":5.883672830918776E-3},{"$f":"'Population at Risk'!H120/'Population at Risk'!H$5","v":7.8221056205964642E-3},{"$f":"'Population at Risk'!I120/'Population at Risk'!I$5","v":4.7864497177476468E-3},{"$f":"'Population at Risk'!J120/'Population at Risk'!J$5","v":7.0196935806680471E-3},{"$f":"'Population at Risk'!K120/'Population at Risk'!K$5","v":8.6640698009295258E-3},{"$f":"'Population at Risk'!L120/'Population at Risk'!L$5","v":9.0418807647368211E-3},{"$f":"'Population at Risk'!M120/'Population at Risk'!M$5","v":9.0418807647368211E-3},{"$f":"'Population at Risk'!N120/'Population at Risk'!N$5","v":4.8297222729624537E-3},{"$f":"'Population at Risk'!O120/'Population at Risk'!O$5","v":8.1373574796834037E-3},{"$f":"'Population at Risk'!P120/'Population at Risk'!P$5","v":9.0674099282194824E-3},{"$f":"'Population at Risk'!Q120/'Population at Risk'!Q$5","v":9.5564148216507223E-3},{"$f":"'Population at Risk'!R120/'Population at Risk'!R$5","v":6.1217631960981808E-3},{"$f":"'Population at Risk'!S120/'Population at Risk'!S$5","v":6.5849762064786781E-3},{"$f":"'Population at Risk'!T120/'Population at Risk'!T$5","v":5.4574416265583845E-3},{"$f":"'Population at Risk'!U120/'Population at Risk'!U$5","v":8.3304962620614383E-3},{"$f":"'Population at Risk'!V120/'Population at Risk'!V$5","v":1.2562109828469604E-2},{"$f":"'Population at Risk'!W120/'Population at Risk'!W$5","v":7.1990337676981009E-3},{"$f":"'Population at Risk'!X120/'Population at Risk'!X$5","v":7.1990337676981009E-3},{"$f":"'Population at Risk'!Y120/'Population at Risk'!Y$5","v":9.6941503518290385E-3},{"$f":"'Population at Risk'!Z120/'Population at Risk'!Z$5","v":4.5084359604661466E-3},{"$f":"'Population at Risk'!AA120/'Population at Risk'!AA$5","v":5.922365856778228E-3},{"$f":"'Population at Risk'!AB120/'Population at Risk'!AB$5","v":6.0026714469267042E-3},{"$f":"'Population at Risk'!AC120/'Population at Risk'!AC$5","v":5.1861114341668242E-3},{"$f":"'Population at Risk'!AD120/'Population at Risk'!AD$5","v":7.3433778892095427E-3},{"$f":"'Population at Risk'!AE120/'Population at Risk'!AE$5","v":7.8907234123042659E-3},{"$f":"'Population at Risk'!AF120/'Population at Risk'!AF$5","v":3.5849477000054206E-3},{"$f":"'Population at Risk'!AG120/'Population at Risk'!AG$5","v":6.734200473813884E-3},{"$f":"'Population at Risk'!AH120/'Population at Risk'!AH$5","v":7.899765645138156E-3},{"$f":"'Population at Risk'!AI120/'Population at Risk'!AI$5","v":7.4429955613079654E-3},{"$f":"'Population at Risk'!AJ120/'Population at Risk'!AJ$5","v":1.2825351479431176E-2},{"$f":"'Population at Risk'!AK120/'Population at Risk'!AK$5","v":6.4803495222472253E-3},{"$f":"'Population at Risk'!AL120/'Population at Risk'!AL$5","v":7.324664748932095E-3},{"$f":"'Population at Risk'!AM120/'Population at Risk'!AM$5","v":7.2796148238852406E-3},{"$f":"'Population at Risk'!AN120/'Population at Risk'!AN$5","v":5.757278310614674E-3},{"$f":"'Population at Risk'!AO120/'Population at Risk'!AO$5","v":5.757278310614674E-3},{"$f":"'Population at Risk'!AP120/'Population at Risk'!AP$5","v":5.0513875943522272E-3},{"$f":"'Population at Risk'!AQ120/'Population at Risk'!AQ$5","v":5.7554769244166038E-3},{"$f":"'Population at Risk'!AR120/'Population at Risk'!AR$5","v":6.834044132128507E-3},{"$f":"'Population at Risk'!AS120/'Population at Risk'!AS$5","v":4.7864497177476468E-3},{"$f":"'Population at Risk'!AT120/'Population at Risk'!AT$5","v":6.7142159073823487E-4},{"$f":"'Population at Risk'!AU120/'Population at Risk'!AU$5","v":6.7142159073823487E-4},{"$f":"'Population at Risk'!AV120/'Population at Risk'!AV$5","v":7.7266147564247099E-3},{"$f":"'Population at Risk'!AW120/'Population at Risk'!AW$5","v":8.699084683713644E-3},{"$f":"'Population at Risk'!AX120/'Population at Risk'!AX$5","v":5.9269433768703765E-3},{"$f":"'Population at Risk'!AY120/'Population at Risk'!AY$5","v":5.5339875131232962E-3},{"$f":"'Population at Risk'!AZ120/'Population at Risk'!AZ$5","v":5.6364792861414853E-3},{"$f":"'Population at Risk'!BA120/'Population at Risk'!BA$5","v":7.5802767890122144E-3},{"$f":"'Population at Risk'!BB120/'Population at Risk'!BB$5","v":8.2011472790472183E-3},{"$f":"'Population at Risk'!BC120/'Population at Risk'!BC$5","v":8.3304962620614383E-3},118]
[null,"Male 20-24",{"$f":"'Population at Risk'!C121/'Population at Risk'!C$5","v":1.8697858234654658E-2},{"$f":"'Population at Risk'!D121/'Population at Risk'!D$5","v":1.0200526582728072E-2},{"$f":"'Population at Risk'!E121/'Population at Risk'!E$5","v":5.5586959918110549E-3},{"$f":"'Population at Risk'!F121/'Population at Risk'!F$5","v":1.2522564725339544E-2},{"$f":"'Population at Risk'!G121/'Population at Risk'!G$5","v":7.7029664036370816E-3},{"$f":"'Population at Risk'!H121/'Population at Risk'!H$5","v":1.0043244864240243E-2},{"$f":"'Population at Risk'!I121/'Population at Risk'!I$5","v":7.0813228700924088E-3},{"$f":"'Population at Risk'!J121/'Population at Risk'!J$5","v":1.1665577737921781E-2},{"$f":"'Population at Risk'!K121/'Population at Risk'!K$5","v":1.1495465160710415E-2},{"$f":"'Population at Risk'!L121/'Population at Risk'!L$5","v":1.2202538200197921E-2},{"$f":"'Population at Risk'!M121/'Population at Risk'!M$5","v":1.2202538200197921E-2},{"$f":"'Population at Risk'!N121/'Population at Risk'!N$5","v":1.4377843433163048E-2},{"$f":"'Population at Risk'!O121/'Population at Risk'!O$5","v":1.0946816527001881E-2},{"$f":"'Population at Risk'!P121/'Population at Risk'!P$5","v":1.3330607436236756E-2},{"$f":"'Population at Risk'!Q121/'Population at Risk'!Q$5","v":1.3407272767875109E-2},{"$f":"'Population at Risk'!R121/'Population at Risk'!R$5","v":8.2840373525181806E-3},{"$f":"'Population at Risk'!S121/'Population at Risk'!S$5","v":9.7364845426541613E-3},{"$f":"'Population at Risk'!T121/'Population at Risk'!T$5","v":1.0537143391028021E-2},{"$f":"'Population at Risk'!U121/'Population at Risk'!U$5","v":9.2825529777256031E-3},{"$f":"'Population at Risk'!V121/'Population at Risk'!V$5","v":1.509979380661566E-2},{"$f":"'Population at Risk'!W121/'Population at Risk'!W$5","v":8.9382498767138496E-3},{"$f":"'Population at Risk'!X121/'Population at Risk'!X$5","v":8.9382498767138496E-3},{"$f":"'Population at Risk'!Y121/'Population at Risk'!Y$5","v":1.3266571939208603E-2},{"$f":"'Population at Risk'!Z121/'Population at Risk'!Z$5","v":8.5000181633348437E-3},{"$f":"'Population at Risk'!AA121/'Population at Risk'!AA$5","v":8.8284618440635787E-3},{"$f":"'Population at Risk'!AB121/'Population at Risk'!AB$5","v":1.1768209057211846E-2},{"$f":"'Population at Risk'!AC121/'Population at Risk'!AC$5","v":8.5934340345509997E-3},{"$f":"'Population at Risk'!AD121/'Population at Risk'!AD$5","v":9.5051613649404249E-3},{"$f":"'Population at Risk'!AE121/'Population at Risk'!AE$5","v":1.0178566295161713E-2},{"$f":"'Population at Risk'!AF121/'Population at Risk'!AF$5","v":5.4194984009471609E-3},{"$f":"'Population at Risk'!AG121/'Population at Risk'!AG$5","v":8.6867201378190931E-3},{"$f":"'Population at Risk'!AH121/'Population at Risk'!AH$5","v":1.0324176481059865E-2},{"$f":"'Population at Risk'!AI121/'Population at Risk'!AI$5","v":1.1738050731350634E-2},{"$f":"'Population at Risk'!AJ121/'Population at Risk'!AJ$5","v":1.5848342274443542E-2},{"$f":"'Population at Risk'!AK121/'Population at Risk'!AK$5","v":9.1024562653530382E-3},{"$f":"'Population at Risk'!AL121/'Population at Risk'!AL$5","v":9.1917361555226285E-3},{"$f":"'Population at Risk'!AM121/'Population at Risk'!AM$5","v":9.3242284854106738E-3},{"$f":"'Population at Risk'!AN121/'Population at Risk'!AN$5","v":7.8195869591930652E-3},{"$f":"'Population at Risk'!AO121/'Population at Risk'!AO$5","v":7.8195869591930652E-3},{"$f":"'Population at Risk'!AP121/'Population at Risk'!AP$5","v":8.8931007911095799E-3},{"$f":"'Population at Risk'!AQ121/'Population at Risk'!AQ$5","v":7.7480627285939378E-3},{"$f":"'Population at Risk'!AR121/'Population at Risk'!AR$5","v":1.0373509609077351E-2},{"$f":"'Population at Risk'!AS121/'Population at Risk'!AS$5","v":7.0813228700924088E-3},{"$f":"'Population at Risk'!AT121/'Population at Risk'!AT$5","v":3.5249633513757331E-3},{"$f":"'Population at Risk'!AU121/'Population at Risk'!AU$5","v":3.5249633513757331E-3},{"$f":"'Population at Risk'!AV121/'Population at Risk'!AV$5","v":9.6161451563603478E-3},{"$f":"'Population at Risk'!AW121/'Population at Risk'!AW$5","v":1.1639554087348597E-2},{"$f":"'Population at Risk'!AX121/'Population at Risk'!AX$5","v":1.1778623980701128E-2},{"$f":"'Population at Risk'!AY121/'Population at Risk'!AY$5","v":9.2935202898055749E-3},{"$f":"'Population at Risk'!AZ121/'Population at Risk'!AZ$5","v":1.24898296625444E-2},{"$f":"'Population at Risk'!BA121/'Population at Risk'!BA$5","v":1.0856828677230188E-2},{"$f":"'Population at Risk'!BB121/'Population at Risk'!BB$5","v":1.1534274108971914E-2},{"$f":"'Population at Risk'!BC121/'Population at Risk'!BC$5","v":9.2825529777256031E-3},119]
[null,"Male 25-29",{"$f":"'Population at Risk'!C122/'Population at Risk'!C$5","v":2.4980792842492196E-2},{"$f":"'Population at Risk'!D122/'Population at Risk'!D$5","v":1.3581041603993814E-2},{"$f":"'Population at Risk'!E122/'Population at Risk'!E$5","v":7.3074630169657068E-3},{"$f":"'Population at Risk'!F122/'Population at Risk'!F$5","v":1.6386097758860799E-2},{"$f":"'Population at Risk'!G122/'Population at Risk'!G$5","v":7.8830185808456427E-3},{"$f":"'Population at Risk'!H122/'Population at Risk'!H$5","v":1.0988202789513478E-2},{"$f":"'Population at Risk'!I122/'Population at Risk'!I$5","v":8.3346085490368423E-3},{"$f":"'Population at Risk'!J122/'Population at Risk'!J$5","v":1.3167202639305242E-2},{"$f":"'Population at Risk'!K122/'Population at Risk'!K$5","v":1.2261051481960057E-2},{"$f":"'Population at Risk'!L122/'Population at Risk'!L$5","v":1.1113627305602716E-2},{"$f":"'Population at Risk'!M122/'Population at Risk'!M$5","v":1.1113627305602716E-2},{"$f":"'Population at Risk'!N122/'Population at Risk'!N$5","v":1.4900117124255083E-2},{"$f":"'Population at Risk'!O122/'Population at Risk'!O$5","v":1.1773160724944906E-2},{"$f":"'Population at Risk'!P122/'Population at Risk'!P$5","v":1.4044731976446493E-2},{"$f":"'Population at Risk'!Q122/'Population at Risk'!Q$5","v":1.4949496801276402E-2},{"$f":"'Population at Risk'!R122/'Population at Risk'!R$5","v":8.1069216056802902E-3},{"$f":"'Population at Risk'!S122/'Population at Risk'!S$5","v":1.2812637378292245E-2},{"$f":"'Population at Risk'!T122/'Population at Risk'!T$5","v":1.7329774400753128E-2},{"$f":"'Population at Risk'!U122/'Population at Risk'!U$5","v":1.1785074695478431E-2},{"$f":"'Population at Risk'!V122/'Population at Risk'!V$5","v":1.7127408198775319E-2},{"$f":"'Population at Risk'!W122/'Population at Risk'!W$5","v":1.0627297386484321E-2},{"$f":"'Population at Risk'!X122/'Population at Risk'!X$5","v":1.0627297386484321E-2},{"$f":"'Population at Risk'!Y122/'Population at Risk'!Y$5","v":1.5015596049124929E-2},{"$f":"'Population at Risk'!Z122/'Population at Risk'!Z$5","v":1.3080901674431114E-2},{"$f":"'Population at Risk'!AA122/'Population at Risk'!AA$5","v":1.1215437036960742E-2},{"$f":"'Population at Risk'!AB122/'Population at Risk'!AB$5","v":1.5485018108147267E-2},{"$f":"'Population at Risk'!AC122/'Population at Risk'!AC$5","v":1.1713491787649202E-2},{"$f":"'Population at Risk'!AD122/'Population at Risk'!AD$5","v":1.0317980442099663E-2},{"$f":"'Population at Risk'!AE122/'Population at Risk'!AE$5","v":1.1241424367138856E-2},{"$f":"'Population at Risk'!AF122/'Population at Risk'!AF$5","v":6.0265592969862176E-3},{"$f":"'Population at Risk'!AG122/'Population at Risk'!AG$5","v":9.5937978489380061E-3},{"$f":"'Population at Risk'!AH122/'Population at Risk'!AH$5","v":1.1774462530489567E-2},{"$f":"'Population at Risk'!AI122/'Population at Risk'!AI$5","v":1.6076528016200818E-2},{"$f":"'Population at Risk'!AJ122/'Population at Risk'!AJ$5","v":1.865444220148775E-2},{"$f":"'Population at Risk'!AK122/'Population at Risk'!AK$5","v":1.1149366684716267E-2},{"$f":"'Population at Risk'!AL122/'Population at Risk'!AL$5","v":9.5929499712684128E-3},{"$f":"'Population at Risk'!AM122/'Population at Risk'!AM$5","v":1.0669263733949592E-2},{"$f":"'Population at Risk'!AN122/'Population at Risk'!AN$5","v":9.9998156934917211E-3},{"$f":"'Population at Risk'!AO122/'Population at Risk'!AO$5","v":9.9998156934917211E-3},{"$f":"'Population at Risk'!AP122/'Population at Risk'!AP$5","v":1.1230272211601331E-2},{"$f":"'Population at Risk'!AQ122/'Population at Risk'!AQ$5","v":9.0251255749392387E-3},{"$f":"'Population at Risk'!AR122/'Population at Risk'!AR$5","v":1.2784677172140173E-2},{"$f":"'Population at Risk'!AS122/'Population at Risk'!AS$5","v":8.3346085490368423E-3},{"$f":"'Population at Risk'!AT122/'Population at Risk'!AT$5","v":4.319956585475869E-3},{"$f":"'Population at Risk'!AU122/'Population at Risk'!AU$5","v":4.319956585475869E-3},{"$f":"'Population at Risk'!AV122/'Population at Risk'!AV$5","v":1.1244934796637738E-2},{"$f":"'Population at Risk'!AW122/'Population at Risk'!AW$5","v":1.3224294659703482E-2},{"$f":"'Population at Risk'!AX122/'Population at Risk'!AX$5","v":1.3769374362332831E-2},{"$f":"'Population at Risk'!AY122/'Population at Risk'!AY$5","v":1.0799564890710172E-2},{"$f":"'Population at Risk'!AZ122/'Population at Risk'!AZ$5","v":1.4282987166443047E-2},{"$f":"'Population at Risk'!BA122/'Population at Risk'!BA$5","v":1.2279344696746238E-2},{"$f":"'Population at Risk'!BB122/'Population at Risk'!BB$5","v":1.265386884540568E-2},{"$f":"'Population at Risk'!BC122/'Population at Risk'!BC$5","v":1.1785074695478431E-2},120]
[null,"Male 30-34",{"$f":"'Population at Risk'!C123/'Population at Risk'!C$5","v":1.9851228009095907E-2},{"$f":"'Population at Risk'!D123/'Population at Risk'!D$5","v":1.1068267476552684E-2},{"$f":"'Population at Risk'!E123/'Population at Risk'!E$5","v":6.5045567883978478E-3},{"$f":"'Population at Risk'!F123/'Population at Risk'!F$5","v":1.6570470166836732E-2},{"$f":"'Population at Risk'!G123/'Population at Risk'!G$5","v":8.381121403261714E-3},{"$f":"'Population at Risk'!H123/'Population at Risk'!H$5","v":1.0462698775275673E-2},{"$f":"'Population at Risk'!I123/'Population at Risk'!I$5","v":7.0873519880013981E-3},{"$f":"'Population at Risk'!J123/'Population at Risk'!J$5","v":1.0435102956221734E-2},{"$f":"'Population at Risk'!K123/'Population at Risk'!K$5","v":1.1627405410540933E-2},{"$f":"'Population at Risk'!L123/'Population at Risk'!L$5","v":1.1158395190016022E-2},{"$f":"'Population at Risk'!M123/'Population at Risk'!M$5","v":1.1158395190016022E-2},{"$f":"'Population at Risk'!N123/'Population at Risk'!N$5","v":1.146015439267465E-2},{"$f":"'Population at Risk'!O123/'Population at Risk'!O$5","v":1.2036178145395803E-2},{"$f":"'Population at Risk'!P123/'Population at Risk'!P$5","v":1.230124800695658E-2},{"$f":"'Population at Risk'!Q123/'Population at Risk'!Q$5","v":1.4615331578659636E-2},{"$f":"'Population at Risk'!R123/'Population at Risk'!R$5","v":6.912878888564589E-3},{"$f":"'Population at Risk'!S123/'Population at Risk'!S$5","v":1.2206474795586805E-2},{"$f":"'Population at Risk'!T123/'Population at Risk'!T$5","v":1.5655166700239004E-2},{"$f":"'Population at Risk'!U123/'Population at Risk'!U$5","v":9.7210220651968975E-3},{"$f":"'Population at Risk'!V123/'Population at Risk'!V$5","v":1.7153105735457651E-2},{"$f":"'Population at Risk'!W123/'Population at Risk'!W$5","v":1.0380952987168506E-2},{"$f":"'Population at Risk'!X123/'Population at Risk'!X$5","v":1.0380952987168506E-2},{"$f":"'Population at Risk'!Y123/'Population at Risk'!Y$5","v":1.3662041898108612E-2},{"$f":"'Population at Risk'!Z123/'Population at Risk'!Z$5","v":1.2136494797456123E-2},{"$f":"'Population at Risk'!AA123/'Population at Risk'!AA$5","v":1.0808378312840147E-2},{"$f":"'Population at Risk'!AB123/'Population at Risk'!AB$5","v":1.2863258009018497E-2},{"$f":"'Population at Risk'!AC123/'Population at Risk'!AC$5","v":1.1072010952198832E-2},{"$f":"'Population at Risk'!AD123/'Population at Risk'!AD$5","v":1.0205760715236947E-2},{"$f":"'Population at Risk'!AE123/'Population at Risk'!AE$5","v":1.0884415537508576E-2},{"$f":"'Population at Risk'!AF123/'Population at Risk'!AF$5","v":6.0077262991831354E-3},{"$f":"'Population at Risk'!AG123/'Population at Risk'!AG$5","v":9.2891148808462495E-3},{"$f":"'Population at Risk'!AH123/'Population at Risk'!AH$5","v":1.1711322846062015E-2},{"$f":"'Population at Risk'!AI123/'Population at Risk'!AI$5","v":1.5328831785671321E-2},{"$f":"'Population at Risk'!AJ123/'Population at Risk'!AJ$5","v":1.8053977323757461E-2},{"$f":"'Population at Risk'!AK123/'Population at Risk'!AK$5","v":1.0373940806267955E-2},{"$f":"'Population at Risk'!AL123/'Population at Risk'!AL$5","v":8.7028824481610329E-3},{"$f":"'Population at Risk'!AM123/'Population at Risk'!AM$5","v":1.0916100981938065E-2},{"$f":"'Population at Risk'!AN123/'Population at Risk'!AN$5","v":6.8267972522876186E-3},{"$f":"'Population at Risk'!AO123/'Population at Risk'!AO$5","v":6.8267972522876186E-3},{"$f":"'Population at Risk'!AP123/'Population at Risk'!AP$5","v":1.118564861340954E-2},{"$f":"'Population at Risk'!AQ123/'Population at Risk'!AQ$5","v":9.7002333935370562E-3},{"$f":"'Population at Risk'!AR123/'Population at Risk'!AR$5","v":1.1989084300732596E-2},{"$f":"'Population at Risk'!AS123/'Population at Risk'!AS$5","v":7.0873519880013981E-3},{"$f":"'Population at Risk'!AT123/'Population at Risk'!AT$5","v":2.2538903924221921E-3},{"$f":"'Population at Risk'!AU123/'Population at Risk'!AU$5","v":2.2538903924221921E-3},{"$f":"'Population at Risk'!AV123/'Population at Risk'!AV$5","v":1.0288778664229019E-2},{"$f":"'Population at Risk'!AW123/'Population at Risk'!AW$5","v":1.271890760264475E-2},{"$f":"'Population at Risk'!AX123/'Population at Risk'!AX$5","v":9.6427728714807894E-3},{"$f":"'Population at Risk'!AY123/'Population at Risk'!AY$5","v":9.9569568922847351E-3},{"$f":"'Population at Risk'!AZ123/'Population at Risk'!AZ$5","v":1.2609310418041577E-2},{"$f":"'Population at Risk'!BA123/'Population at Risk'!BA$5","v":1.1915620031558256E-2},{"$f":"'Population at Risk'!BB123/'Population at Risk'!BB$5","v":1.3596805179860396E-2},{"$f":"'Population at Risk'!BC123/'Population at Risk'!BC$5","v":9.7210220651968975E-3},121]
[null,"Male 35-39",{"$f":"'Population at Risk'!C124/'Population at Risk'!C$5","v":1.6444079782575161E-2},{"$f":"'Population at Risk'!D124/'Population at Risk'!D$5","v":9.7071151749903804E-3},{"$f":"'Population at Risk'!E124/'Population at Risk'!E$5","v":6.7495423111597419E-3},{"$f":"'Population at Risk'!F124/'Population at Risk'!F$5","v":1.5084219856825634E-2},{"$f":"'Population at Risk'!G124/'Population at Risk'!G$5","v":8.7032419807131813E-3},{"$f":"'Population at Risk'!H124/'Population at Risk'!H$5","v":9.8765475603051177E-3},{"$f":"'Population at Risk'!I124/'Population at Risk'!I$5","v":7.3829072398961023E-3},{"$f":"'Population at Risk'!J124/'Population at Risk'!J$5","v":9.8292155694987247E-3},{"$f":"'Population at Risk'!K124/'Population at Risk'!K$5","v":1.2968702183671566E-2},{"$f":"'Population at Risk'!L124/'Population at Risk'!L$5","v":1.1214579024941848E-2},{"$f":"'Population at Risk'!M124/'Population at Risk'!M$5","v":1.1214579024941848E-2},{"$f":"'Population at Risk'!N124/'Population at Risk'!N$5","v":8.3450681412559728E-3},{"$f":"'Population at Risk'!O124/'Population at Risk'!O$5","v":1.1321647094864454E-2},{"$f":"'Population at Risk'!P124/'Population at Risk'!P$5","v":1.1409228374418328E-2},{"$f":"'Population at Risk'!Q124/'Population at Risk'!Q$5","v":1.4960946918018581E-2},{"$f":"'Population at Risk'!R124/'Population at Risk'!R$5","v":6.6655790864918714E-3},{"$f":"'Population at Risk'!S124/'Population at Risk'!S$5","v":1.1407044250168596E-2},{"$f":"'Population at Risk'!T124/'Population at Risk'!T$5","v":1.2791759075524921E-2},{"$f":"'Population at Risk'!U124/'Population at Risk'!U$5","v":1.0078501373453407E-2},{"$f":"'Population at Risk'!V124/'Population at Risk'!V$5","v":1.8284845982543818E-2},{"$f":"'Population at Risk'!W124/'Population at Risk'!W$5","v":1.0845292922186564E-2},{"$f":"'Population at Risk'!X124/'Population at Risk'!X$5","v":1.0845292922186564E-2},{"$f":"'Population at Risk'!Y124/'Population at Risk'!Y$5","v":1.3916181889500709E-2},{"$f":"'Population at Risk'!Z124/'Population at Risk'!Z$5","v":1.0113356205284488E-2},{"$f":"'Population at Risk'!AA124/'Population at Risk'!AA$5","v":9.857743752593448E-3},{"$f":"'Population at Risk'!AB124/'Population at Risk'!AB$5","v":1.1529360054115567E-2},{"$f":"'Population at Risk'!AC124/'Population at Risk'!AC$5","v":9.6490941718766644E-3},{"$f":"'Population at Risk'!AD124/'Population at Risk'!AD$5","v":1.0347462391396875E-2},{"$f":"'Population at Risk'!AE124/'Population at Risk'!AE$5","v":1.0952812415132645E-2},{"$f":"'Population at Risk'!AF124/'Population at Risk'!AF$5","v":6.1632015884261517E-3},{"$f":"'Population at Risk'!AG124/'Population at Risk'!AG$5","v":9.3474870048754835E-3},{"$f":"'Population at Risk'!AH124/'Population at Risk'!AH$5","v":1.1437303614373621E-2},{"$f":"'Population at Risk'!AI124/'Population at Risk'!AI$5","v":1.3723336843264825E-2},{"$f":"'Population at Risk'!AJ124/'Population at Risk'!AJ$5","v":1.8903778451216952E-2},{"$f":"'Population at Risk'!AK124/'Population at Risk'!AK$5","v":1.0410534438312101E-2},{"$f":"'Population at Risk'!AL124/'Population at Risk'!AL$5","v":7.946141826152853E-3},{"$f":"'Population at Risk'!AM124/'Population at Risk'!AM$5","v":1.0411041140073903E-2},{"$f":"'Population at Risk'!AN124/'Population at Risk'!AN$5","v":7.379716777120785E-3},{"$f":"'Population at Risk'!AO124/'Population at Risk'!AO$5","v":7.379716777120785E-3},{"$f":"'Population at Risk'!AP124/'Population at Risk'!AP$5","v":1.0750324343119493E-2},{"$f":"'Population at Risk'!AQ124/'Population at Risk'!AQ$5","v":8.200228972950049E-3},{"$f":"'Population at Risk'!AR124/'Population at Risk'!AR$5","v":1.1126945112214156E-2},{"$f":"'Population at Risk'!AS124/'Population at Risk'!AS$5","v":7.3829072398961023E-3},{"$f":"'Population at Risk'!AT124/'Population at Risk'!AT$5","v":3.3035739456472712E-3},{"$f":"'Population at Risk'!AU124/'Population at Risk'!AU$5","v":3.3035739456472712E-3},{"$f":"'Population at Risk'!AV124/'Population at Risk'!AV$5","v":1.0048865835015386E-2},{"$f":"'Population at Risk'!AW124/'Population at Risk'!AW$5","v":1.2778046224520515E-2},{"$f":"'Population at Risk'!AX124/'Population at Risk'!AX$5","v":7.7429079501195588E-3},{"$f":"'Population at Risk'!AY124/'Population at Risk'!AY$5","v":9.2799406517403149E-3},{"$f":"'Population at Risk'!AZ124/'Population at Risk'!AZ$5","v":1.0629025335793367E-2},{"$f":"'Population at Risk'!BA124/'Population at Risk'!BA$5","v":1.2484672843261924E-2},{"$f":"'Population at Risk'!BB124/'Population at Risk'!BB$5","v":1.2681045238521293E-2},{"$f":"'Population at Risk'!BC124/'Population at Risk'!BC$5","v":1.0078501373453407E-2},122]
[null,"Male 40-44",{"$f":"'Population at Risk'!C125/'Population at Risk'!C$5","v":1.4310956156699091E-2},{"$f":"'Population at Risk'!D125/'Population at Risk'!D$5","v":8.6314039569230141E-3},{"$f":"'Population at Risk'!E125/'Population at Risk'!E$5","v":6.3378527319878798E-3},{"$f":"'Population at Risk'!F125/'Population at Risk'!F$5","v":1.4248937324037243E-2},{"$f":"'Population at Risk'!G125/'Population at Risk'!G$5","v":8.3107880982937546E-3},{"$f":"'Population at Risk'!H125/'Population at Risk'!H$5","v":1.1520343016645998E-2},{"$f":"'Population at Risk'!I125/'Population at Risk'!I$5","v":8.0398608502258405E-3},{"$f":"'Population at Risk'!J125/'Population at Risk'!J$5","v":1.0584271909542522E-2},{"$f":"'Population at Risk'!K125/'Population at Risk'!K$5","v":1.4083200027580841E-2},{"$f":"'Population at Risk'!L125/'Population at Risk'!L$5","v":1.338591241062208E-2},{"$f":"'Population at Risk'!M125/'Population at Risk'!M$5","v":1.338591241062208E-2},{"$f":"'Population at Risk'!N125/'Population at Risk'!N$5","v":7.8343540567237854E-3},{"$f":"'Population at Risk'!O125/'Population at Risk'!O$5","v":1.2603342992396278E-2},{"$f":"'Population at Risk'!P125/'Population at Risk'!P$5","v":1.2803116003872152E-2},{"$f":"'Population at Risk'!Q125/'Population at Risk'!Q$5","v":1.5410900208786056E-2},{"$f":"'Population at Risk'!R125/'Population at Risk'!R$5","v":8.8762736578911847E-3},{"$f":"'Population at Risk'!S125/'Population at Risk'!S$5","v":1.1338191516447323E-2},{"$f":"'Population at Risk'!T125/'Population at Risk'!T$5","v":1.0950878618161556E-2},{"$f":"'Population at Risk'!U125/'Population at Risk'!U$5","v":1.4124096995191748E-2},{"$f":"'Population at Risk'!V125/'Population at Risk'!V$5","v":1.9805159019294652E-2},{"$f":"'Population at Risk'!W125/'Population at Risk'!W$5","v":1.1895684488500032E-2},{"$f":"'Population at Risk'!X125/'Population at Risk'!X$5","v":1.1895684488500032E-2},{"$f":"'Population at Risk'!Y125/'Population at Risk'!Y$5","v":1.5042152032691903E-2},{"$f":"'Population at Risk'!Z125/'Population at Risk'!Z$5","v":7.8020617848530323E-3},{"$f":"'Population at Risk'!AA125/'Population at Risk'!AA$5","v":9.4717651886242083E-3},{"$f":"'Population at Risk'!AB125/'Population at Risk'!AB$5","v":1.0203758055949223E-2},{"$f":"'Population at Risk'!AC125/'Population at Risk'!AC$5","v":8.3710958439255755E-3},{"$f":"'Population at Risk'!AD125/'Population at Risk'!AD$5","v":1.0168026627384212E-2},{"$f":"'Population at Risk'!AE125/'Population at Risk'!AE$5","v":1.0859991970936607E-2},{"$f":"'Population at Risk'!AF125/'Population at Risk'!AF$5","v":5.239725128922559E-3},{"$f":"'Population at Risk'!AG125/'Population at Risk'!AG$5","v":9.2682710133087428E-3},{"$f":"'Population at Risk'!AH125/'Population at Risk'!AH$5","v":1.2504909065390639E-2},{"$f":"'Population at Risk'!AI125/'Population at Risk'!AI$5","v":1.3059522918960802E-2},{"$f":"'Population at Risk'!AJ125/'Population at Risk'!AJ$5","v":1.8839770172036759E-2},{"$f":"'Population at Risk'!AK125/'Population at Risk'!AK$5","v":9.0031016709008066E-3},{"$f":"'Population at Risk'!AL125/'Population at Risk'!AL$5","v":9.791017208675902E-3},{"$f":"'Population at Risk'!AM125/'Population at Risk'!AM$5","v":1.1514587937644922E-2},{"$f":"'Population at Risk'!AN125/'Population at Risk'!AN$5","v":1.0454598767587781E-2},{"$f":"'Population at Risk'!AO125/'Population at Risk'!AO$5","v":1.0454598767587781E-2},{"$f":"'Population at Risk'!AP125/'Population at Risk'!AP$5","v":8.0072474827069962E-3},{"$f":"'Population at Risk'!AQ125/'Population at Risk'!AQ$5","v":8.6926214747900053E-3},{"$f":"'Population at Risk'!AR125/'Population at Risk'!AR$5","v":1.1014440518920997E-2},{"$f":"'Population at Risk'!AS125/'Population at Risk'!AS$5","v":8.0398608502258405E-3},{"$f":"'Population at Risk'!AT125/'Population at Risk'!AT$5","v":2.9031407401142687E-3},{"$f":"'Population at Risk'!AU125/'Population at Risk'!AU$5","v":2.9031407401142687E-3},{"$f":"'Population at Risk'!AV125/'Population at Risk'!AV$5","v":1.1800239594832352E-2},{"$f":"'Population at Risk'!AW125/'Population at Risk'!AW$5","v":1.3782556665534644E-2},{"$f":"'Population at Risk'!AX125/'Population at Risk'!AX$5","v":8.2591018134608625E-3},{"$f":"'Population at Risk'!AY125/'Population at Risk'!AY$5","v":9.1532141023514309E-3},{"$f":"'Population at Risk'!AZ125/'Population at Risk'!AZ$5","v":9.3337861175387931E-3},{"$f":"'Population at Risk'!BA125/'Population at Risk'!BA$5","v":1.1678209504318299E-2},{"$f":"'Population at Risk'!BB125/'Population at Risk'!BB$5","v":1.370414442973957E-2},{"$f":"'Population at Risk'!BC125/'Population at Risk'!BC$5","v":1.4124096995191748E-2},123]
[null,"Male 45-49",{"$f":"'Population at Risk'!C126/'Population at Risk'!C$5","v":1.6355396091079232E-2},{"$f":"'Population at Risk'!D126/'Population at Risk'!D$5","v":9.8735837108678611E-3},{"$f":"'Population at Risk'!E126/'Population at Risk'!E$5","v":7.2663010507351862E-3},{"$f":"'Population at Risk'!F126/'Population at Risk'!F$5","v":1.761439677231583E-2},{"$f":"'Population at Risk'!G126/'Population at Risk'!G$5","v":1.2376792620618266E-2},{"$f":"'Population at Risk'!H126/'Population at Risk'!H$5","v":1.5921886982607231E-2},{"$f":"'Population at Risk'!I126/'Population at Risk'!I$5","v":1.0305662091557392E-2},{"$f":"'Population at Risk'!J126/'Population at Risk'!J$5","v":1.4036436610118349E-2},{"$f":"'Population at Risk'!K126/'Population at Risk'!K$5","v":1.937900901756822E-2},{"$f":"'Population at Risk'!L126/'Population at Risk'!L$5","v":1.7351999801556554E-2},{"$f":"'Population at Risk'!M126/'Population at Risk'!M$5","v":1.7351999801556554E-2},{"$f":"'Population at Risk'!N126/'Population at Risk'!N$5","v":1.0028632851232729E-2},{"$f":"'Population at Risk'!O126/'Population at Risk'!O$5","v":1.6945977650787678E-2},{"$f":"'Population at Risk'!P126/'Population at Risk'!P$5","v":1.5728579368632433E-2},{"$f":"'Population at Risk'!Q126/'Population at Risk'!Q$5","v":1.8891702700953018E-2},{"$f":"'Population at Risk'!R126/'Population at Risk'!R$5","v":1.0240996372694723E-2},{"$f":"'Population at Risk'!S126/'Population at Risk'!S$5","v":1.3090055618093458E-2},{"$f":"'Population at Risk'!T126/'Population at Risk'!T$5","v":1.0814557942415988E-2},{"$f":"'Population at Risk'!U126/'Population at Risk'!U$5","v":1.7956204391719705E-2},{"$f":"'Population at Risk'!V126/'Population at Risk'!V$5","v":2.5214201212839384E-2},{"$f":"'Population at Risk'!W126/'Population at Risk'!W$5","v":1.4672281666942307E-2},{"$f":"'Population at Risk'!X126/'Population at Risk'!X$5","v":1.4672281666942307E-2},{"$f":"'Population at Risk'!Y126/'Population at Risk'!Y$5","v":1.9431120175187458E-2},{"$f":"'Population at Risk'!Z126/'Population at Risk'!Z$5","v":8.8741848843590758E-3},{"$f":"'Population at Risk'!AA126/'Population at Risk'!AA$5","v":1.167754609247823E-2},{"$f":"'Population at Risk'!AB126/'Population at Risk'!AB$5","v":1.2098474574763722E-2},{"$f":"'Population at Risk'!AC126/'Population at Risk'!AC$5","v":9.9841487364040089E-3},{"$f":"'Population at Risk'!AD126/'Population at Risk'!AD$5","v":1.3794035413559285E-2},{"$f":"'Population at Risk'!AE126/'Population at Risk'!AE$5","v":1.4289556268267353E-2},{"$f":"'Population at Risk'!AF126/'Population at Risk'!AF$5","v":6.894420111945623E-3},{"$f":"'Population at Risk'!AG126/'Population at Risk'!AG$5","v":1.2195172934626443E-2},{"$f":"'Population at Risk'!AH126/'Population at Risk'!AH$5","v":1.5983370424497826E-2},{"$f":"'Population at Risk'!AI126/'Population at Risk'!AI$5","v":1.4526088288426109E-2},{"$f":"'Population at Risk'!AJ126/'Population at Risk'!AJ$5","v":2.3543868603313815E-2},{"$f":"'Population at Risk'!AK126/'Population at Risk'!AK$5","v":1.2554420603912654E-2},{"$f":"'Population at Risk'!AL126/'Population at Risk'!AL$5","v":1.407309875671273E-2},{"$f":"'Population at Risk'!AM126/'Population at Risk'!AM$5","v":1.4019677380407065E-2},{"$f":"'Population at Risk'!AN126/'Population at Risk'!AN$5","v":1.1586054317262695E-2},{"$f":"'Population at Risk'!AO126/'Population at Risk'!AO$5","v":1.1586054317262695E-2},{"$f":"'Population at Risk'!AP126/'Population at Risk'!AP$5","v":1.0429707929678102E-2},{"$f":"'Population at Risk'!AQ126/'Population at Risk'!AQ$5","v":1.0815896784188643E-2},{"$f":"'Population at Risk'!AR126/'Population at Risk'!AR$5","v":1.3588940647103009E-2},{"$f":"'Population at Risk'!AS126/'Population at Risk'!AS$5","v":1.0305662091557392E-2},{"$f":"'Population at Risk'!AT126/'Population at Risk'!AT$5","v":1.4010463652082393E-3},{"$f":"'Population at Risk'!AU126/'Population at Risk'!AU$5","v":1.4010463652082393E-3},{"$f":"'Population at Risk'!AV126/'Population at Risk'!AV$5","v":1.6227341279483627E-2},{"$f":"'Population at Risk'!AW126/'Population at Risk'!AW$5","v":1.8613677521981464E-2},{"$f":"'Population at Risk'!AX126/'Population at Risk'!AX$5","v":1.0486095140137512E-2},{"$f":"'Population at Risk'!AY126/'Population at Risk'!AY$5","v":1.1450461425918228E-2},{"$f":"'Population at Risk'!AZ126/'Population at Risk'!AZ$5","v":1.1876861364854177E-2},{"$f":"'Population at Risk'!BA126/'Population at Risk'!BA$5","v":1.5477473998616362E-2},{"$f":"'Population at Risk'!BB126/'Population at Risk'!BB$5","v":1.617362638934294E-2},{"$f":"'Population at Risk'!BC126/'Population at Risk'!BC$5","v":1.7956204391719705E-2},124]
[null,"Male 50-54",{"$f":"'Population at Risk'!C127/'Population at Risk'!C$5","v":1.5180222607936427E-2},{"$f":"'Population at Risk'!D127/'Population at Risk'!D$5","v":9.5275468985710904E-3},{"$f":"'Population at Risk'!E127/'Population at Risk'!E$5","v":7.6628568063130302E-3},{"$f":"'Population at Risk'!F127/'Population at Risk'!F$5","v":1.7640844815517507E-2},{"$f":"'Population at Risk'!G127/'Population at Risk'!G$5","v":1.2724734581840466E-2},{"$f":"'Population at Risk'!H127/'Population at Risk'!H$5","v":1.6836369780428507E-2},{"$f":"'Population at Risk'!I127/'Population at Risk'!I$5","v":1.1669646780145872E-2},{"$f":"'Population at Risk'!J127/'Population at Risk'!J$5","v":1.4181591073511505E-2},{"$f":"'Population at Risk'!K127/'Population at Risk'!K$5","v":1.8106466211536536E-2},{"$f":"'Population at Risk'!L127/'Population at Risk'!L$5","v":2.0318922047418555E-2},{"$f":"'Population at Risk'!M127/'Population at Risk'!M$5","v":2.0318922047418555E-2},{"$f":"'Population at Risk'!N127/'Population at Risk'!N$5","v":9.3248691423742924E-3},{"$f":"'Population at Risk'!O127/'Population at Risk'!O$5","v":1.7736502477584386E-2},{"$f":"'Population at Risk'!P127/'Population at Risk'!P$5","v":2.0174820886267042E-2},{"$f":"'Population at Risk'!Q127/'Population at Risk'!Q$5","v":2.0425644373252623E-2},{"$f":"'Population at Risk'!R127/'Population at Risk'!R$5","v":1.2332467462892941E-2},{"$f":"'Population at Risk'!S127/'Population at Risk'!S$5","v":1.3453549485306117E-2},{"$f":"'Population at Risk'!T127/'Population at Risk'!T$5","v":1.0412649979583783E-2},{"$f":"'Population at Risk'!U127/'Population at Risk'!U$5","v":1.9790029521086824E-2},{"$f":"'Population at Risk'!V127/'Population at Risk'!V$5","v":2.4506434161250912E-2},{"$f":"'Population at Risk'!W127/'Population at Risk'!W$5","v":1.5299882154430013E-2},{"$f":"'Population at Risk'!X127/'Population at Risk'!X$5","v":1.5299882154430013E-2},{"$f":"'Population at Risk'!Y127/'Population at Risk'!Y$5","v":1.915529553317882E-2},{"$f":"'Population at Risk'!Z127/'Population at Risk'!Z$5","v":8.5783787215471079E-3},{"$f":"'Population at Risk'!AA127/'Population at Risk'!AA$5","v":1.2037019471125078E-2},{"$f":"'Population at Risk'!AB127/'Population at Risk'!AB$5","v":1.1680345476011555E-2},{"$f":"'Population at Risk'!AC127/'Population at Risk'!AC$5","v":1.0439795185352431E-2},{"$f":"'Population at Risk'!AD127/'Population at Risk'!AD$5","v":1.5203488202185417E-2},{"$f":"'Population at Risk'!AE127/'Population at Risk'!AE$5","v":1.6118219762737931E-2},{"$f":"'Population at Risk'!AF127/'Population at Risk'!AF$5","v":9.0556803351260692E-3},{"$f":"'Population at Risk'!AG127/'Population at Risk'!AG$5","v":1.3755813946540175E-2},{"$f":"'Population at Risk'!AH127/'Population at Risk'!AH$5","v":1.6225731989477701E-2},{"$f":"'Population at Risk'!AI127/'Population at Risk'!AI$5","v":1.4679224761346263E-2},{"$f":"'Population at Risk'!AJ127/'Population at Risk'!AJ$5","v":2.554222623110728E-2},{"$f":"'Population at Risk'!AK127/'Population at Risk'!AK$5","v":1.2145560162789061E-2},{"$f":"'Population at Risk'!AL127/'Population at Risk'!AL$5","v":1.4271711037553434E-2},{"$f":"'Population at Risk'!AM127/'Population at Risk'!AM$5","v":1.4281806450848932E-2},{"$f":"'Population at Risk'!AN127/'Population at Risk'!AN$5","v":1.313086155956439E-2},{"$f":"'Population at Risk'!AO127/'Population at Risk'!AO$5","v":1.313086155956439E-2},{"$f":"'Population at Risk'!AP127/'Population at Risk'!AP$5","v":1.0276078843970896E-2},{"$f":"'Population at Risk'!AQ127/'Population at Risk'!AQ$5","v":1.1417346275486597E-2},{"$f":"'Population at Risk'!AR127/'Population at Risk'!AR$5","v":1.4007853966768118E-2},{"$f":"'Population at Risk'!AS127/'Population at Risk'!AS$5","v":1.1669646780145872E-2},{"$f":"'Population at Risk'!AT127/'Population at Risk'!AT$5","v":3.8798207036535859E-3},{"$f":"'Population at Risk'!AU127/'Population at Risk'!AU$5","v":3.8798207036535859E-3},{"$f":"'Population at Risk'!AV127/'Population at Risk'!AV$5","v":1.8020076125598007E-2},{"$f":"'Population at Risk'!AW127/'Population at Risk'!AW$5","v":1.8825127932000727E-2},{"$f":"'Population at Risk'!AX127/'Population at Risk'!AX$5","v":1.1573363069414444E-2},{"$f":"'Population at Risk'!AY127/'Population at Risk'!AY$5","v":1.1543807578846909E-2},{"$f":"'Population at Risk'!AZ127/'Population at Risk'!AZ$5","v":1.1486210831154085E-2},{"$f":"'Population at Risk'!BA127/'Population at Risk'!BA$5","v":1.629559290469209E-2},{"$f":"'Population at Risk'!BB127/'Population at Risk'!BB$5","v":1.6048024750716025E-2},{"$f":"'Population at Risk'!BC127/'Population at Risk'!BC$5","v":1.9790029521086824E-2},125]
[null,"Male 55-59",{"$f":"'Population at Risk'!C128/'Population at Risk'!C$5","v":1.1547064340288495E-2},{"$f":"'Population at Risk'!D128/'Population at Risk'!D$5","v":7.2498841988810694E-3},{"$f":"'Population at Risk'!E128/'Population at Risk'!E$5","v":5.8354714426306917E-3},{"$f":"'Population at Risk'!F128/'Population at Risk'!F$5","v":1.151458439765062E-2},{"$f":"'Population at Risk'!G128/'Population at Risk'!G$5","v":1.0416561560610035E-2},{"$f":"'Population at Risk'!H128/'Population at Risk'!H$5","v":1.2040948328570413E-2},{"$f":"'Population at Risk'!I128/'Population at Risk'!I$5","v":8.7376234215012019E-3},{"$f":"'Population at Risk'!J128/'Population at Risk'!J$5","v":1.0225748295286403E-2},{"$f":"'Population at Risk'!K128/'Population at Risk'!K$5","v":1.2595885283114271E-2},{"$f":"'Population at Risk'!L128/'Population at Risk'!L$5","v":1.5196092997684785E-2},{"$f":"'Population at Risk'!M128/'Population at Risk'!M$5","v":1.5196092997684785E-2},{"$f":"'Population at Risk'!N128/'Population at Risk'!N$5","v":6.7006886398301808E-3},{"$f":"'Population at Risk'!O128/'Population at Risk'!O$5","v":1.2626340078266726E-2},{"$f":"'Population at Risk'!P128/'Population at Risk'!P$5","v":1.3366256116524604E-2},{"$f":"'Population at Risk'!Q128/'Population at Risk'!Q$5","v":1.4827406219299306E-2},{"$f":"'Population at Risk'!R128/'Population at Risk'!R$5","v":7.8635618576673744E-3},{"$f":"'Population at Risk'!S128/'Population at Risk'!S$5","v":9.4996963605263399E-3},{"$f":"'Population at Risk'!T128/'Population at Risk'!T$5","v":6.9196368966424624E-3},{"$f":"'Population at Risk'!U128/'Population at Risk'!U$5","v":1.5185396222819912E-2},{"$f":"'Population at Risk'!V128/'Population at Risk'!V$5","v":1.7297407287596909E-2},{"$f":"'Population at Risk'!W128/'Population at Risk'!W$5","v":1.1026855985374609E-2},{"$f":"'Population at Risk'!X128/'Population at Risk'!X$5","v":1.1026855985374609E-2},{"$f":"'Population at Risk'!Y128/'Population at Risk'!Y$5","v":1.3628387573510741E-2},{"$f":"'Population at Risk'!Z128/'Population at Risk'!Z$5","v":5.9570076736131759E-3},{"$f":"'Population at Risk'!AA128/'Population at Risk'!AA$5","v":8.5740219568628886E-3},{"$f":"'Population at Risk'!AB128/'Population at Risk'!AB$5","v":8.7828435767810381E-3},{"$f":"'Population at Risk'!AC128/'Population at Risk'!AC$5","v":7.3350783799811204E-3},{"$f":"'Population at Risk'!AD128/'Population at Risk'!AD$5","v":1.1568702867988386E-2},{"$f":"'Population at Risk'!AE128/'Population at Risk'!AE$5","v":1.1969622398161605E-2},{"$f":"'Population at Risk'!AF128/'Population at Risk'!AF$5","v":6.3676379607632326E-3},{"$f":"'Population at Risk'!AG128/'Population at Risk'!AG$5","v":1.0215265776440956E-2},{"$f":"'Population at Risk'!AH128/'Population at Risk'!AH$5","v":1.1728083027546535E-2},{"$f":"'Population at Risk'!AI128/'Population at Risk'!AI$5","v":1.0197275669519659E-2},{"$f":"'Population at Risk'!AJ128/'Population at Risk'!AJ$5","v":1.8632699289404836E-2},{"$f":"'Population at Risk'!AK128/'Population at Risk'!AK$5","v":8.6853910915433326E-3},{"$f":"'Population at Risk'!AL128/'Population at Risk'!AL$5","v":1.0026990090807484E-2},{"$f":"'Population at Risk'!AM128/'Population at Risk'!AM$5","v":9.9455552536805072E-3},{"$f":"'Population at Risk'!AN128/'Population at Risk'!AN$5","v":9.3861020806100138E-3},{"$f":"'Population at Risk'!AO128/'Population at Risk'!AO$5","v":9.3861020806100138E-3},{"$f":"'Population at Risk'!AP128/'Population at Risk'!AP$5","v":6.7980521585552876E-3},{"$f":"'Population at Risk'!AQ128/'Population at Risk'!AQ$5","v":8.3166023525621992E-3},{"$f":"'Population at Risk'!AR128/'Population at Risk'!AR$5","v":1.0035116274421078E-2},{"$f":"'Population at Risk'!AS128/'Population at Risk'!AS$5","v":8.7376234215012019E-3},{"$f":"'Population at Risk'!AT128/'Population at Risk'!AT$5","v":2.1668499097880021E-3},{"$f":"'Population at Risk'!AU128/'Population at Risk'!AU$5","v":2.1668499097880021E-3},{"$f":"'Population at Risk'!AV128/'Population at Risk'!AV$5","v":1.3146104581884518E-2},{"$f":"'Population at Risk'!AW128/'Population at Risk'!AW$5","v":1.4146294171162175E-2},{"$f":"'Population at Risk'!AX128/'Population at Risk'!AX$5","v":8.6507026064929545E-3},{"$f":"'Population at Risk'!AY128/'Population at Risk'!AY$5","v":8.121659220756576E-3},{"$f":"'Population at Risk'!AZ128/'Population at Risk'!AZ$5","v":7.8291369834992616E-3},{"$f":"'Population at Risk'!BA128/'Population at Risk'!BA$5","v":1.2291464302850812E-2},{"$f":"'Population at Risk'!BB128/'Population at Risk'!BB$5","v":1.1124819611824113E-2},{"$f":"'Population at Risk'!BC128/'Population at Risk'!BC$5","v":1.5185396222819912E-2},126]
[null,"Male 60-64",{"$f":"'Population at Risk'!C129/'Population at Risk'!C$5","v":9.4460822364959302E-3},{"$f":"'Population at Risk'!D129/'Population at Risk'!D$5","v":5.9832951779151353E-3},{"$f":"'Population at Risk'!E129/'Population at Risk'!E$5","v":4.9064860352258056E-3},{"$f":"'Population at Risk'!F129/'Population at Risk'!F$5","v":1.1453227820043245E-2},{"$f":"'Population at Risk'!G129/'Population at Risk'!G$5","v":9.7054678747381315E-3},{"$f":"'Population at Risk'!H129/'Population at Risk'!H$5","v":1.0573099389468496E-2},{"$f":"'Population at Risk'!I129/'Population at Risk'!I$5","v":8.3599914107358748E-3},{"$f":"'Population at Risk'!J129/'Population at Risk'!J$5","v":8.5981593789126055E-3},{"$f":"'Population at Risk'!K129/'Population at Risk'!K$5","v":1.1583715930006875E-2},{"$f":"'Population at Risk'!L129/'Population at Risk'!L$5","v":1.3746008306402447E-2},{"$f":"'Population at Risk'!M129/'Population at Risk'!M$5","v":1.3746008306402447E-2},{"$f":"'Population at Risk'!N129/'Population at Risk'!N$5","v":5.5697348465593511E-3},{"$f":"'Population at Risk'!O129/'Population at Risk'!O$5","v":1.0592343393123408E-2},{"$f":"'Population at Risk'!P129/'Population at Risk'!P$5","v":1.0572665609855474E-2},{"$f":"'Population at Risk'!Q129/'Population at Risk'!Q$5","v":1.169023921921598E-2},{"$f":"'Population at Risk'!R129/'Population at Risk'!R$5","v":7.1664375795053737E-3},{"$f":"'Population at Risk'!S129/'Population at Risk'!S$5","v":8.0865366095174331E-3},{"$f":"'Population at Risk'!T129/'Population at Risk'!T$5","v":5.4799808980121522E-3},{"$f":"'Population at Risk'!U129/'Population at Risk'!U$5","v":1.5303570512491663E-2},{"$f":"'Population at Risk'!V129/'Population at Risk'!V$5","v":1.4241570008047818E-2},{"$f":"'Population at Risk'!W129/'Population at Risk'!W$5","v":9.9250448401270262E-3},{"$f":"'Population at Risk'!X129/'Population at Risk'!X$5","v":9.9250448401270262E-3},{"$f":"'Population at Risk'!Y129/'Population at Risk'!Y$5","v":1.131021456368375E-2},{"$f":"'Population at Risk'!Z129/'Population at Risk'!Z$5","v":4.742154866345178E-3},{"$f":"'Population at Risk'!AA129/'Population at Risk'!AA$5","v":7.2061417184997216E-3},{"$f":"'Population at Risk'!AB129/'Population at Risk'!AB$5","v":7.208328201671832E-3},{"$f":"'Population at Risk'!AC129/'Population at Risk'!AC$5","v":5.9727347659868169E-3},{"$f":"'Population at Risk'!AD129/'Population at Risk'!AD$5","v":1.0395787990889612E-2},{"$f":"'Population at Risk'!AE129/'Population at Risk'!AE$5","v":1.0617340978098157E-2},{"$f":"'Population at Risk'!AF129/'Population at Risk'!AF$5","v":4.796619671231097E-3},{"$f":"'Population at Risk'!AG129/'Population at Risk'!AG$5","v":9.0611847494059851E-3},{"$f":"'Population at Risk'!AH129/'Population at Risk'!AH$5","v":1.0180439781242617E-2},{"$f":"'Population at Risk'!AI129/'Population at Risk'!AI$5","v":8.3157138363050657E-3},{"$f":"'Population at Risk'!AJ129/'Population at Risk'!AJ$5","v":1.6359119204520354E-2},{"$f":"'Population at Risk'!AK129/'Population at Risk'!AK$5","v":6.9557521803794561E-3},{"$f":"'Population at Risk'!AL129/'Population at Risk'!AL$5","v":9.2919700294463222E-3},{"$f":"'Population at Risk'!AM129/'Population at Risk'!AM$5","v":8.9189594779883041E-3},{"$f":"'Population at Risk'!AN129/'Population at Risk'!AN$5","v":9.3007738798771954E-3},{"$f":"'Population at Risk'!AO129/'Population at Risk'!AO$5","v":9.3007738798771954E-3},{"$f":"'Population at Risk'!AP129/'Population at Risk'!AP$5","v":6.2304478035691184E-3},{"$f":"'Population at Risk'!AQ129/'Population at Risk'!AQ$5","v":7.2760416790662663E-3},{"$f":"'Population at Risk'!AR129/'Population at Risk'!AR$5","v":8.5869615797221129E-3},{"$f":"'Population at Risk'!AS129/'Population at Risk'!AS$5","v":8.3599914107358748E-3},{"$f":"'Population at Risk'!AT129/'Population at Risk'!AT$5","v":1.7501480040595398E-3},{"$f":"'Population at Risk'!AU129/'Population at Risk'!AU$5","v":1.7501480040595398E-3},{"$f":"'Population at Risk'!AV129/'Population at Risk'!AV$5","v":1.1544670023727678E-2},{"$f":"'Population at Risk'!AW129/'Population at Risk'!AW$5","v":1.1871114098059143E-2},{"$f":"'Population at Risk'!AX129/'Population at Risk'!AX$5","v":6.6141441095000138E-3},{"$f":"'Population at Risk'!AY129/'Population at Risk'!AY$5","v":7.3239301587360462E-3},{"$f":"'Population at Risk'!AZ129/'Population at Risk'!AZ$5","v":7.0781104454251103E-3},{"$f":"'Population at Risk'!BA129/'Population at Risk'!BA$5","v":1.0044915155060853E-2},{"$f":"'Population at Risk'!BB129/'Population at Risk'!BB$5","v":9.1150301722131757E-3},{"$f":"'Population at Risk'!BC129/'Population at Risk'!BC$5","v":1.5303570512491663E-2},127]
[null,"Male 65-69",{"$f":"'Population at Risk'!C130/'Population at Risk'!C$5","v":6.6341088652054608E-3},{"$f":"'Population at Risk'!D130/'Population at Risk'!D$5","v":4.5852611980155E-3},{"$f":"'Population at Risk'!E130/'Population at Risk'!E$5","v":4.4143729911504904E-3},{"$f":"'Population at Risk'!F130/'Population at Risk'!F$5","v":9.4119865827712694E-3},{"$f":"'Population at Risk'!G130/'Population at Risk'!G$5","v":8.0900772302487187E-3},{"$f":"'Population at Risk'!H130/'Population at Risk'!H$5","v":8.6778551731393084E-3},{"$f":"'Population at Risk'!I130/'Population at Risk'!I$5","v":6.623880755134569E-3},{"$f":"'Population at Risk'!J130/'Population at Risk'!J$5","v":6.9104599030115838E-3},{"$f":"'Population at Risk'!K130/'Population at Risk'!K$5","v":8.7412248291379707E-3},{"$f":"'Population at Risk'!L130/'Population at Risk'!L$5","v":1.1747748009822869E-2},{"$f":"'Population at Risk'!M130/'Population at Risk'!M$5","v":1.1747748009822869E-2},{"$f":"'Population at Risk'!N130/'Population at Risk'!N$5","v":4.7639242014087613E-3},{"$f":"'Population at Risk'!O130/'Population at Risk'!O$5","v":8.2027221532491069E-3},{"$f":"'Population at Risk'!P130/'Population at Risk'!P$5","v":7.3259400940219634E-3},{"$f":"'Population at Risk'!Q130/'Population at Risk'!Q$5","v":9.1884712046869602E-3},{"$f":"'Population at Risk'!R130/'Population at Risk'!R$5","v":4.3347276046254227E-3},{"$f":"'Population at Risk'!S130/'Population at Risk'!S$5","v":6.2391604499379416E-3},{"$f":"'Population at Risk'!T130/'Population at Risk'!T$5","v":3.898254229667727E-3},{"$f":"'Population at Risk'!U130/'Population at Risk'!U$5","v":1.1595071424240868E-2},{"$f":"'Population at Risk'!V130/'Population at Risk'!V$5","v":1.2267126535283718E-2},{"$f":"'Population at Risk'!W130/'Population at Risk'!W$5","v":7.9104190820300305E-3},{"$f":"'Population at Risk'!X130/'Population at Risk'!X$5","v":7.9104190820300305E-3},{"$f":"'Population at Risk'!Y130/'Population at Risk'!Y$5","v":9.4943169216033935E-3},{"$f":"'Population at Risk'!Z130/'Population at Risk'!Z$5","v":3.0295406104975295E-3},{"$f":"'Population at Risk'!AA130/'Population at Risk'!AA$5","v":5.0149634811657148E-3},{"$f":"'Population at Risk'!AB130/'Population at Risk'!AB$5","v":5.5553263142396952E-3},{"$f":"'Population at Risk'!AC130/'Population at Risk'!AC$5","v":3.9825058240204646E-3},{"$f":"'Population at Risk'!AD130/'Population at Risk'!AD$5","v":8.5280910045644007E-3},{"$f":"'Population at Risk'!AE130/'Population at Risk'!AE$5","v":8.6582605391834072E-3},{"$f":"'Population at Risk'!AF130/'Population at Risk'!AF$5","v":3.4854826177996507E-3},{"$f":"'Population at Risk'!AG130/'Population at Risk'!AG$5","v":7.3892416675578514E-3},{"$f":"'Population at Risk'!AH130/'Population at Risk'!AH$5","v":7.3779438146562362E-3},{"$f":"'Population at Risk'!AI130/'Population at Risk'!AI$5","v":6.2822395092454256E-3},{"$f":"'Population at Risk'!AJ130/'Population at Risk'!AJ$5","v":1.2042493986870613E-2},{"$f":"'Population at Risk'!AK130/'Population at Risk'!AK$5","v":5.4959650923376725E-3},{"$f":"'Population at Risk'!AL130/'Population at Risk'!AL$5","v":7.4546170194128812E-3},{"$f":"'Population at Risk'!AM130/'Population at Risk'!AM$5","v":6.4434675568829777E-3},{"$f":"'Population at Risk'!AN130/'Population at Risk'!AN$5","v":7.9454445519582442E-3},{"$f":"'Population at Risk'!AO130/'Population at Risk'!AO$5","v":7.9454445519582442E-3},{"$f":"'Population at Risk'!AP130/'Population at Risk'!AP$5","v":4.4086663839566914E-3},{"$f":"'Population at Risk'!AQ130/'Population at Risk'!AQ$5","v":5.1079402860276417E-3},{"$f":"'Population at Risk'!AR130/'Population at Risk'!AR$5","v":6.5523821310376987E-3},{"$f":"'Population at Risk'!AS130/'Population at Risk'!AS$5","v":6.623880755134569E-3},{"$f":"'Population at Risk'!AT130/'Population at Risk'!AT$5","v":1.4751071267478575E-3},{"$f":"'Population at Risk'!AU130/'Population at Risk'!AU$5","v":1.4751071267478575E-3},{"$f":"'Population at Risk'!AV130/'Population at Risk'!AV$5","v":1.019023972925045E-2},{"$f":"'Population at Risk'!AW130/'Population at Risk'!AW$5","v":8.6321547438883185E-3},{"$f":"'Population at Risk'!AX130/'Population at Risk'!AX$5","v":5.6938473532313879E-3},{"$f":"'Population at Risk'!AY130/'Population at Risk'!AY$5","v":5.8555253249671048E-3},{"$f":"'Population at Risk'!AZ130/'Population at Risk'!AZ$5","v":5.6827056746055118E-3},{"$f":"'Population at Risk'!BA130/'Population at Risk'!BA$5","v":6.984932984936798E-3},{"$f":"'Population at Risk'!BB130/'Population at Risk'!BB$5","v":7.3537534863876847E-3},{"$f":"'Population at Risk'!BC130/'Population at Risk'!BC$5","v":1.1595071424240868E-2},128]
[null,"Male 70-74",{"$f":"'Population at Risk'!C131/'Population at Risk'!C$5","v":4.3115291657814985E-3},{"$f":"'Population at Risk'!D131/'Population at Risk'!D$5","v":3.0284689230006567E-3},{"$f":"'Population at Risk'!E131/'Population at Risk'!E$5","v":2.9915011936884608E-3},{"$f":"'Population at Risk'!F131/'Population at Risk'!F$5","v":6.3900778471657777E-3},{"$f":"'Population at Risk'!G131/'Population at Risk'!G$5","v":6.4040282279665345E-3},{"$f":"'Population at Risk'!H131/'Population at Risk'!H$5","v":6.4098462448374744E-3},{"$f":"'Population at Risk'!I131/'Population at Risk'!I$5","v":4.749953824408148E-3},{"$f":"'Population at Risk'!J131/'Population at Risk'!J$5","v":4.5868177606239388E-3},{"$f":"'Population at Risk'!K131/'Population at Risk'!K$5","v":6.2097314999074197E-3},{"$f":"'Population at Risk'!L131/'Population at Risk'!L$5","v":8.8738682104127203E-3},{"$f":"'Population at Risk'!M131/'Population at Risk'!M$5","v":8.8738682104127203E-3},{"$f":"'Population at Risk'!N131/'Population at Risk'!N$5","v":3.2588382586559933E-3},{"$f":"'Population at Risk'!O131/'Population at Risk'!O$5","v":6.1755634980665856E-3},{"$f":"'Population at Risk'!P131/'Population at Risk'!P$5","v":5.2753383521286813E-3},{"$f":"'Population at Risk'!Q131/'Population at Risk'!Q$5","v":6.5580461147177515E-3},{"$f":"'Population at Risk'!R131/'Population at Risk'!R$5","v":2.5965447532657238E-3},{"$f":"'Population at Risk'!S131/'Population at Risk'!S$5","v":4.596874300232999E-3},{"$f":"'Population at Risk'!T131/'Population at Risk'!T$5","v":2.8343442248148281E-3},{"$f":"'Population at Risk'!U131/'Population at Risk'!U$5","v":7.4117515378480858E-3},{"$f":"'Population at Risk'!V131/'Population at Risk'!V$5","v":8.5992732507711341E-3},{"$f":"'Population at Risk'!W131/'Population at Risk'!W$5","v":5.6930791521883507E-3},{"$f":"'Population at Risk'!X131/'Population at Risk'!X$5","v":5.6930791521883507E-3},{"$f":"'Population at Risk'!Y131/'Population at Risk'!Y$5","v":6.5268029429220772E-3},{"$f":"'Population at Risk'!Z131/'Population at Risk'!Z$5","v":2.2425701003487572E-3},{"$f":"'Population at Risk'!AA131/'Population at Risk'!AA$5","v":3.9146473462420154E-3},{"$f":"'Population at Risk'!AB131/'Population at Risk'!AB$5","v":3.7891977440359364E-3},{"$f":"'Population at Risk'!AC131/'Population at Risk'!AC$5","v":3.0612919019860122E-3},{"$f":"'Population at Risk'!AD131/'Population at Risk'!AD$5","v":6.4205497927524299E-3},{"$f":"'Population at Risk'!AE131/'Population at Risk'!AE$5","v":6.3926030766635724E-3},{"$f":"'Population at Risk'!AF131/'Population at Risk'!AF$5","v":2.7780968466595002E-3},{"$f":"'Population at Risk'!AG131/'Population at Risk'!AG$5","v":5.4556557641653094E-3},{"$f":"'Population at Risk'!AH131/'Population at Risk'!AH$5","v":5.8390135752025476E-3},{"$f":"'Population at Risk'!AI131/'Population at Risk'!AI$5","v":4.7055319188522605E-3},{"$f":"'Population at Risk'!AJ131/'Population at Risk'!AJ$5","v":9.2950010341339567E-3},{"$f":"'Population at Risk'!AK131/'Population at Risk'!AK$5","v":4.2650979101995466E-3},{"$f":"'Population at Risk'!AL131/'Population at Risk'!AL$5","v":5.149848677057596E-3},{"$f":"'Population at Risk'!AM131/'Population at Risk'!AM$5","v":5.0445733899064319E-3},{"$f":"'Population at Risk'!AN131/'Population at Risk'!AN$5","v":6.4351534387760987E-3},{"$f":"'Population at Risk'!AO131/'Population at Risk'!AO$5","v":6.4351534387760987E-3},{"$f":"'Population at Risk'!AP131/'Population at Risk'!AP$5","v":2.9560412850953856E-3},{"$f":"'Population at Risk'!AQ131/'Population at Risk'!AQ$5","v":4.2707719256098097E-3},{"$f":"'Population at Risk'!AR131/'Population at Risk'!AR$5","v":4.8606697868484325E-3},{"$f":"'Population at Risk'!AS131/'Population at Risk'!AS$5","v":4.749953824408148E-3},{"$f":"'Population at Risk'!AT131/'Population at Risk'!AT$5","v":1.5392422192151557E-3},{"$f":"'Population at Risk'!AU131/'Population at Risk'!AU$5","v":1.5392422192151557E-3},{"$f":"'Population at Risk'!AV131/'Population at Risk'!AV$5","v":7.7898312731725008E-3},{"$f":"'Population at Risk'!AW131/'Population at Risk'!AW$5","v":6.9100380748660338E-3},{"$f":"'Population at Risk'!AX131/'Population at Risk'!AX$5","v":3.5083301873445926E-3},{"$f":"'Population at Risk'!AY131/'Population at Risk'!AY$5","v":4.1121142333203674E-3},{"$f":"'Population at Risk'!AZ131/'Population at Risk'!AZ$5","v":3.8584280006554472E-3},{"$f":"'Population at Risk'!BA131/'Population at Risk'!BA$5","v":5.862177042834581E-3},{"$f":"'Population at Risk'!BB131/'Population at Risk'!BB$5","v":5.7266133482737555E-3},{"$f":"'Population at Risk'!BC131/'Population at Risk'!BC$5","v":7.4117515378480858E-3},129]
[null,"Male 75-79",{"$f":"'Population at Risk'!C132/'Population at Risk'!C$5","v":1.6474402860076846E-3},{"$f":"'Population at Risk'!D132/'Population at Risk'!D$5","v":1.1168974560606618E-3},{"$f":"'Population at Risk'!E132/'Population at Risk'!E$5","v":1.0412210466418401E-3},{"$f":"'Population at Risk'!F132/'Population at Risk'!F$5","v":2.1945029633673543E-3},{"$f":"'Population at Risk'!G132/'Population at Risk'!G$5","v":2.1846597197370168E-3},{"$f":"'Population at Risk'!H132/'Population at Risk'!H$5","v":2.264643006640804E-3},{"$f":"'Population at Risk'!I132/'Population at Risk'!I$5","v":1.6139590749520546E-3},{"$f":"'Population at Risk'!J132/'Population at Risk'!J$5","v":1.681398902054012E-3},{"$f":"'Population at Risk'!K132/'Population at Risk'!K$5","v":2.1306794962493917E-3},{"$f":"'Population at Risk'!L132/'Population at Risk'!L$5","v":3.2322853505867338E-3},{"$f":"'Population at Risk'!M132/'Population at Risk'!M$5","v":3.2322853505867338E-3},{"$f":"'Population at Risk'!N132/'Population at Risk'!N$5","v":1.3430177419176488E-3},{"$f":"'Population at Risk'!O132/'Population at Risk'!O$5","v":2.2631881807537745E-3},{"$f":"'Population at Risk'!P132/'Population at Risk'!P$5","v":2.1459627188569904E-3},{"$f":"'Population at Risk'!Q132/'Population at Risk'!Q$5","v":2.5590350969671959E-3},{"$f":"'Population at Risk'!R132/'Population at Risk'!R$5","v":9.6772050960078229E-4},{"$f":"'Population at Risk'!S132/'Population at Risk'!S$5","v":1.5731203572061164E-3},{"$f":"'Population at Risk'!T132/'Population at Risk'!T$5","v":9.4878676746773841E-4},{"$f":"'Population at Risk'!U132/'Population at Risk'!U$5","v":3.0339937213558514E-3},{"$f":"'Population at Risk'!V132/'Population at Risk'!V$5","v":2.9274339689126468E-3},{"$f":"'Population at Risk'!W132/'Population at Risk'!W$5","v":1.9756543514360017E-3},{"$f":"'Population at Risk'!X132/'Population at Risk'!X$5","v":1.9756543514360017E-3},{"$f":"'Population at Risk'!Y132/'Population at Risk'!Y$5","v":2.2818723825544654E-3},{"$f":"'Population at Risk'!Z132/'Population at Risk'!Z$5","v":7.6987968307887916E-4},{"$f":"'Population at Risk'!AA132/'Population at Risk'!AA$5","v":1.3532911489529805E-3},{"$f":"'Population at Risk'!AB132/'Population at Risk'!AB$5","v":1.3578359820290984E-3},{"$f":"'Population at Risk'!AC132/'Population at Risk'!AC$5","v":1.0896485016099119E-3},{"$f":"'Population at Risk'!AD132/'Population at Risk'!AD$5","v":2.0885338055005357E-3},{"$f":"'Population at Risk'!AE132/'Population at Risk'!AE$5","v":2.0386326512373001E-3},{"$f":"'Population at Risk'!AF132/'Population at Risk'!AF$5","v":8.9960248417723433E-4},{"$f":"'Population at Risk'!AG132/'Population at Risk'!AG$5","v":1.7398355319979009E-3},{"$f":"'Population at Risk'!AH132/'Population at Risk'!AH$5","v":1.9657470717383348E-3},{"$f":"'Population at Risk'!AI132/'Population at Risk'!AI$5","v":1.6001936823863687E-3},{"$f":"'Population at Risk'!AJ132/'Population at Risk'!AJ$5","v":2.9689026412355797E-3},{"$f":"'Population at Risk'!AK132/'Population at Risk'!AK$5","v":1.3633159459712535E-3},{"$f":"'Population at Risk'!AL132/'Population at Risk'!AL$5","v":1.8181257331766573E-3},{"$f":"'Population at Risk'!AM132/'Population at Risk'!AM$5","v":1.723924307011439E-3},{"$f":"'Population at Risk'!AN132/'Population at Risk'!AN$5","v":2.4475483370877643E-3},{"$f":"'Population at Risk'!AO132/'Population at Risk'!AO$5","v":2.4475483370877643E-3},{"$f":"'Population at Risk'!AP132/'Population at Risk'!AP$5","v":1.0797989825115479E-3},{"$f":"'Population at Risk'!AQ132/'Population at Risk'!AQ$5","v":1.6442295253607715E-3},{"$f":"'Population at Risk'!AR132/'Population at Risk'!AR$5","v":1.6933548862423195E-3},{"$f":"'Population at Risk'!AS132/'Population at Risk'!AS$5","v":1.6139590749520546E-3},{"$f":"'Population at Risk'!AT132/'Population at Risk'!AT$5","v":2.3610171402796575E-4},{"$f":"'Population at Risk'!AU132/'Population at Risk'!AU$5","v":2.3610171402796575E-4},{"$f":"'Population at Risk'!AV132/'Population at Risk'!AV$5","v":2.666236182977828E-3},{"$f":"'Population at Risk'!AW132/'Population at Risk'!AW$5","v":2.2896894068041586E-3},{"$f":"'Population at Risk'!AX132/'Population at Risk'!AX$5","v":1.3828349512865455E-3},{"$f":"'Population at Risk'!AY132/'Population at Risk'!AY$5","v":1.4786688018734043E-3},{"$f":"'Population at Risk'!AZ132/'Population at Risk'!AZ$5","v":1.4560691441160322E-3},{"$f":"'Population at Risk'!BA132/'Population at Risk'!BA$5","v":1.961451792025917E-3},{"$f":"'Population at Risk'!BB132/'Population at Risk'!BB$5","v":1.9023080290005603E-3},{"$f":"'Population at Risk'!BC132/'Population at Risk'!BC$5","v":3.0339937213558514E-3},130]
[null,"Male 80-84",{"$f":"'Population at Risk'!C133/'Population at Risk'!C$5","v":1.3315332777588992E-3},{"$f":"'Population at Risk'!D133/'Population at Risk'!D$5","v":9.0842677704481428E-4},{"$f":"'Population at Risk'!E133/'Population at Risk'!E$5","v":8.5597313036813838E-4},{"$f":"'Population at Risk'!F133/'Population at Risk'!F$5","v":1.6440665765161369E-3},{"$f":"'Population at Risk'!G133/'Population at Risk'!G$5","v":1.4360224325997214E-3},{"$f":"'Population at Risk'!H133/'Population at Risk'!H$5","v":1.4064340011355619E-3},{"$f":"'Population at Risk'!I133/'Population at Risk'!I$5","v":1.0190998730411544E-3},{"$f":"'Population at Risk'!J133/'Population at Risk'!J$5","v":1.0772082800393314E-3},{"$f":"'Population at Risk'!K133/'Population at Risk'!K$5","v":1.2644686730078165E-3},{"$f":"'Population at Risk'!L133/'Population at Risk'!L$5","v":2.0505139928096469E-3},{"$f":"'Population at Risk'!M133/'Population at Risk'!M$5","v":2.0505139928096469E-3},{"$f":"'Population at Risk'!N133/'Population at Risk'!N$5","v":8.9434141109762696E-4},{"$f":"'Population at Risk'!O133/'Population at Risk'!O$5","v":1.4051446617897347E-3},{"$f":"'Population at Risk'!P133/'Population at Risk'!P$5","v":1.5371789688266386E-3},{"$f":"'Population at Risk'!Q133/'Population at Risk'!Q$5","v":1.7907718605126813E-3},{"$f":"'Population at Risk'!R133/'Population at Risk'!R$5","v":8.0972532435983821E-4},{"$f":"'Population at Risk'!S133/'Population at Risk'!S$5","v":1.0695657019217765E-3},{"$f":"'Population at Risk'!T133/'Population at Risk'!T$5","v":6.9071676671651359E-4},{"$f":"'Population at Risk'!U133/'Population at Risk'!U$5","v":1.8622444220735915E-3},{"$f":"'Population at Risk'!V133/'Population at Risk'!V$5","v":2.1198659774884685E-3},{"$f":"'Population at Risk'!W133/'Population at Risk'!W$5","v":1.3594236054551799E-3},{"$f":"'Population at Risk'!X133/'Population at Risk'!X$5","v":1.3594236054551799E-3},{"$f":"'Population at Risk'!Y133/'Population at Risk'!Y$5","v":1.5822041955691241E-3},{"$f":"'Population at Risk'!Z133/'Population at Risk'!Z$5","v":5.445656467401444E-4},{"$f":"'Population at Risk'!AA133/'Population at Risk'!AA$5","v":9.2761602521858062E-4},{"$f":"'Population at Risk'!AB133/'Population at Risk'!AB$5","v":1.0790502258654704E-3},{"$f":"'Population at Risk'!AC133/'Population at Risk'!AC$5","v":7.5962441234946867E-4},{"$f":"'Population at Risk'!AD133/'Population at Risk'!AD$5","v":1.3655797959041967E-3},{"$f":"'Population at Risk'!AE133/'Population at Risk'!AE$5","v":1.3298999577199032E-3},{"$f":"'Population at Risk'!AF133/'Population at Risk'!AF$5","v":6.332728013616057E-4},{"$f":"'Population at Risk'!AG133/'Population at Risk'!AG$5","v":1.1349799577865501E-3},{"$f":"'Population at Risk'!AH133/'Population at Risk'!AH$5","v":1.3260069004625453E-3},{"$f":"'Population at Risk'!AI133/'Population at Risk'!AI$5","v":1.0923119104808781E-3},{"$f":"'Population at Risk'!AJ133/'Population at Risk'!AJ$5","v":1.8492741028035178E-3},{"$f":"'Population at Risk'!AK133/'Population at Risk'!AK$5","v":9.7473797103258695E-4},{"$f":"'Population at Risk'!AL133/'Population at Risk'!AL$5","v":1.1343861412127863E-3},{"$f":"'Population at Risk'!AM133/'Population at Risk'!AM$5","v":1.1600887546175029E-3},{"$f":"'Population at Risk'!AN133/'Population at Risk'!AN$5","v":1.0575826147910092E-3},{"$f":"'Population at Risk'!AO133/'Population at Risk'!AO$5","v":1.0575826147910092E-3},{"$f":"'Population at Risk'!AP133/'Population at Risk'!AP$5","v":7.0116817046204406E-4},{"$f":"'Population at Risk'!AQ133/'Population at Risk'!AQ$5","v":1.1529147605670606E-3},{"$f":"'Population at Risk'!AR133/'Population at Risk'!AR$5","v":1.1494933169083083E-3},{"$f":"'Population at Risk'!AS133/'Population at Risk'!AS$5","v":1.0190998730411544E-3},{"$f":"'Population at Risk'!AT133/'Population at Risk'!AT$5","v":1.7707628552097429E-4},{"$f":"'Population at Risk'!AU133/'Population at Risk'!AU$5","v":1.7707628552097429E-4},{"$f":"'Population at Risk'!AV133/'Population at Risk'!AV$5","v":1.6505271608910363E-3},{"$f":"'Population at Risk'!AW133/'Population at Risk'!AW$5","v":1.5485182693415411E-3},{"$f":"'Population at Risk'!AX133/'Population at Risk'!AX$5","v":9.5276666500125628E-4},{"$f":"'Population at Risk'!AY133/'Population at Risk'!AY$5","v":1.0172402395866682E-3},{"$f":"'Population at Risk'!AZ133/'Population at Risk'!AZ$5","v":1.0014189827900059E-3},{"$f":"'Population at Risk'!BA133/'Population at Risk'!BA$5","v":1.2116194053306945E-3},{"$f":"'Population at Risk'!BB133/'Population at Risk'!BB$5","v":1.2620318912840993E-3},{"$f":"'Population at Risk'!BC133/'Population at Risk'!BC$5","v":1.8622444220735915E-3},131]
[null,"Male 85-89",{"$f":"'Population at Risk'!C134/'Population at Risk'!C$5","v":6.8200484958382641E-4},{"$f":"'Population at Risk'!D134/'Population at Risk'!D$5","v":4.2199519267450346E-4},{"$f":"'Population at Risk'!E134/'Population at Risk'!E$5","v":3.2897474786536664E-4},{"$f":"'Population at Risk'!F134/'Population at Risk'!F$5","v":8.8359525257695462E-4},{"$f":"'Population at Risk'!G134/'Population at Risk'!G$5","v":7.078025260207157E-4},{"$f":"'Population at Risk'!H134/'Population at Risk'!H$5","v":7.4450308048562E-4},{"$f":"'Population at Risk'!I134/'Population at Risk'!I$5","v":6.9630805805074366E-4},{"$f":"'Population at Risk'!J134/'Population at Risk'!J$5","v":5.0481716444647636E-4},{"$f":"'Population at Risk'!K134/'Population at Risk'!K$5","v":6.1729966713767429E-4},{"$f":"'Population at Risk'!L134/'Population at Risk'!L$5","v":9.9887817145444214E-4},{"$f":"'Population at Risk'!M134/'Population at Risk'!M$5","v":9.9887817145444214E-4},{"$f":"'Population at Risk'!N134/'Population at Risk'!N$5","v":4.3663132865035665E-4},{"$f":"'Population at Risk'!O134/'Population at Risk'!O$5","v":7.5177207395473204E-4},{"$f":"'Population at Risk'!P134/'Population at Risk'!P$5","v":8.7512664066863083E-4},{"$f":"'Population at Risk'!Q134/'Population at Risk'!Q$5","v":8.2906104653364876E-4},{"$f":"'Population at Risk'!R134/'Population at Risk'!R$5","v":3.159903704818881E-4},{"$f":"'Population at Risk'!S134/'Population at Risk'!S$5","v":5.3439249851493134E-4},{"$f":"'Population at Risk'!T134/'Population at Risk'!T$5","v":3.4409333433496652E-4},{"$f":"'Population at Risk'!U134/'Population at Risk'!U$5","v":1.0252806368719774E-3},{"$f":"'Population at Risk'!V134/'Population at Risk'!V$5","v":1.0215735091515857E-3},{"$f":"'Population at Risk'!W134/'Population at Risk'!W$5","v":6.6577693661244578E-4},{"$f":"'Population at Risk'!X134/'Population at Risk'!X$5","v":6.6577693661244578E-4},{"$f":"'Population at Risk'!Y134/'Population at Risk'!Y$5","v":7.5532361095008438E-4},{"$f":"'Population at Risk'!Z134/'Population at Risk'!Z$5","v":2.6955999513637153E-4},{"$f":"'Population at Risk'!AA134/'Population at Risk'!AA$5","v":4.388327978509755E-4},{"$f":"'Population at Risk'!AB134/'Population at Risk'!AB$5","v":5.0529918304657558E-4},{"$f":"'Population at Risk'!AC134/'Population at Risk'!AC$5","v":3.6335164507245854E-4},{"$f":"'Population at Risk'!AD134/'Population at Risk'!AD$5","v":7.131578848050611E-4},{"$f":"'Population at Risk'!AE134/'Population at Risk'!AE$5","v":7.1146911318348727E-4},{"$f":"'Population at Risk'!AF134/'Population at Risk'!AF$5","v":2.9000343239924E-4},{"$f":"'Population at Risk'!AG134/'Population at Risk'!AG$5","v":6.0719092391873055E-4},{"$f":"'Population at Risk'!AH134/'Population at Risk'!AH$5","v":6.2058217684186196E-4},{"$f":"'Population at Risk'!AI134/'Population at Risk'!AI$5","v":5.2452272118155515E-4},{"$f":"'Population at Risk'!AJ134/'Population at Risk'!AJ$5","v":9.8753753108895333E-4},{"$f":"'Population at Risk'!AK134/'Population at Risk'!AK$5","v":4.7419685077260988E-4},{"$f":"'Population at Risk'!AL134/'Population at Risk'!AL$5","v":5.2834423015390042E-4},{"$f":"'Population at Risk'!AM134/'Population at Risk'!AM$5","v":5.1752462406589206E-4},{"$f":"'Population at Risk'!AN134/'Population at Risk'!AN$5","v":4.8346633819017562E-4},{"$f":"'Population at Risk'!AO134/'Population at Risk'!AO$5","v":4.8346633819017562E-4},{"$f":"'Population at Risk'!AP134/'Population at Risk'!AP$5","v":3.7863081204950378E-4},{"$f":"'Population at Risk'!AQ134/'Population at Risk'!AQ$5","v":4.8573164246650972E-4},{"$f":"'Population at Risk'!AR134/'Population at Risk'!AR$5","v":5.6475591533975658E-4},{"$f":"'Population at Risk'!AS134/'Population at Risk'!AS$5","v":6.9630805805074366E-4},{"$f":"'Population at Risk'!AT134/'Population at Risk'!AT$5","v":2.9512714253495719E-5},{"$f":"'Population at Risk'!AU134/'Population at Risk'!AU$5","v":2.9512714253495719E-5},{"$f":"'Population at Risk'!AV134/'Population at Risk'!AV$5","v":9.4376296635564373E-4},{"$f":"'Population at Risk'!AW134/'Population at Risk'!AW$5","v":7.6102393578750943E-4},{"$f":"'Population at Risk'!AX134/'Population at Risk'!AX$5","v":4.3006828628528929E-4},{"$f":"'Population at Risk'!AY134/'Population at Risk'!AY$5","v":5.0993099639073957E-4},{"$f":"'Population at Risk'!AZ134/'Population at Risk'!AZ$5","v":5.1705312464528494E-4},{"$f":"'Population at Risk'!BA134/'Population at Risk'!BA$5","v":5.852350335182223E-4},{"$f":"'Population at Risk'!BB134/'Population at Risk'!BB$5","v":5.5296575530058021E-4},{"$f":"'Population at Risk'!BC134/'Population at Risk'!BC$5","v":1.0252806368719774E-3},132]
[null,"Male 90+",{"$f":"'Population at Risk'!C135/'Population at Risk'!C$5","v":2.7457338100128078E-4},{"$f":"'Population at Risk'!D135/'Population at Risk'!D$5","v":1.8825534044461379E-4},{"$f":"'Population at Risk'!E135/'Population at Risk'!E$5","v":1.7886005709184981E-4},{"$f":"'Population at Risk'!F135/'Population at Risk'!F$5","v":4.9249571455108954E-4},{"$f":"'Population at Risk'!G135/'Population at Risk'!G$5","v":2.3820277318004854E-4},{"$f":"'Population at Risk'!H135/'Population at Risk'!H$5","v":2.8967938040713211E-4},{"$f":"'Population at Risk'!I135/'Population at Risk'!I$5","v":2.5823345199232873E-4},{"$f":"'Population at Risk'!J135/'Population at Risk'!J$5","v":1.4707271720094194E-4},{"$f":"'Population at Risk'!K135/'Population at Risk'!K$5","v":1.9912892488312071E-4},{"$f":"'Population at Risk'!L135/'Population at Risk'!L$5","v":4.3612990584630573E-4},{"$f":"'Population at Risk'!M135/'Population at Risk'!M$5","v":4.3612990584630573E-4},{"$f":"'Population at Risk'!N135/'Population at Risk'!N$5","v":2.0175378634188892E-4},{"$f":"'Population at Risk'!O135/'Population at Risk'!O$5","v":2.755185611352421E-4},{"$f":"'Population at Risk'!P135/'Population at Risk'!P$5","v":4.8702700002428153E-4},{"$f":"'Population at Risk'!Q135/'Population at Risk'!Q$5","v":3.7031393411836311E-4},{"$f":"'Population at Risk'!R135/'Population at Risk'!R$5","v":1.6786988431850304E-4},{"$f":"'Population at Risk'!S135/'Population at Risk'!S$5","v":2.3343076268219791E-4},{"$f":"'Population at Risk'!T135/'Population at Risk'!T$5","v":1.8343210837709612E-4},{"$f":"'Population at Risk'!U135/'Population at Risk'!U$5","v":1.883168516703632E-4},{"$f":"'Population at Risk'!V135/'Population at Risk'!V$5","v":3.7551911601224299E-4},{"$f":"'Population at Risk'!W135/'Population at Risk'!W$5","v":2.9727714378974322E-4},{"$f":"'Population at Risk'!X135/'Population at Risk'!X$5","v":2.9727714378974322E-4},{"$f":"'Population at Risk'!Y135/'Population at Risk'!Y$5","v":2.5840018269344993E-4},{"$f":"'Population at Risk'!Z135/'Population at Risk'!Z$5","v":1.1163595758172961E-4},{"$f":"'Population at Risk'!AA135/'Population at Risk'!AA$5","v":1.6715119340686795E-4},{"$f":"'Population at Risk'!AB135/'Population at Risk'!AB$5","v":2.2402426834577241E-4},{"$f":"'Population at Risk'!AC135/'Population at Risk'!AC$5","v":1.5200616919138645E-4},{"$f":"'Population at Risk'!AD135/'Population at Risk'!AD$5","v":3.3502746786171828E-4},{"$f":"'Population at Risk'!AE135/'Population at Risk'!AE$5","v":3.7215307458828565E-4},{"$f":"'Population at Risk'!AF135/'Population at Risk'!AF$5","v":1.0653187312625143E-4},{"$f":"'Population at Risk'!AG135/'Population at Risk'!AG$5","v":3.1760756020364364E-4},{"$f":"'Population at Risk'!AH135/'Population at Risk'!AH$5","v":2.1347479512090511E-4},{"$f":"'Population at Risk'!AI135/'Population at Risk'!AI$5","v":2.3297328986490395E-4},{"$f":"'Population at Risk'!AJ135/'Population at Risk'!AJ$5","v":4.0256306999804473E-4},{"$f":"'Population at Risk'!AK135/'Population at Risk'!AK$5","v":2.0416808852709593E-4},{"$f":"'Population at Risk'!AL135/'Population at Risk'!AL$5","v":2.1755350653395901E-4},{"$f":"'Population at Risk'!AM135/'Population at Risk'!AM$5","v":1.7135043481376292E-4},{"$f":"'Population at Risk'!AN135/'Population at Risk'!AN$5","v":2.7194981523197379E-4},{"$f":"'Population at Risk'!AO135/'Population at Risk'!AO$5","v":2.7194981523197379E-4},{"$f":"'Population at Risk'!AP135/'Population at Risk'!AP$5","v":1.4023363409240881E-4},{"$f":"'Population at Risk'!AQ135/'Population at Risk'!AQ$5","v":2.0378396494284606E-4},{"$f":"'Population at Risk'!AR135/'Population at Risk'!AR$5","v":2.3186638334530955E-4},{"$f":"'Population at Risk'!AS135/'Population at Risk'!AS$5","v":2.5823345199232873E-4},{"$f":"'Population at Risk'!AT135/'Population at Risk'!AT$5","v":0},{"$f":"'Population at Risk'!AU135/'Population at Risk'!AU$5","v":0},{"$f":"'Population at Risk'!AV135/'Population at Risk'!AV$5","v":3.7242664143182354E-4},{"$f":"'Population at Risk'!AW135/'Population at Risk'!AW$5","v":2.7132157710685117E-4},{"$f":"'Population at Risk'!AX135/'Population at Risk'!AX$5","v":1.1247939795153719E-4},{"$f":"'Population at Risk'!AY135/'Population at Risk'!AY$5","v":2.3399147263688177E-4},{"$f":"'Population at Risk'!AZ135/'Population at Risk'!AZ$5","v":2.451544987542299E-4},{"$f":"'Population at Risk'!BA135/'Population at Risk'!BA$5","v":1.7374165057572224E-4},{"$f":"'Population at Risk'!BB135/'Population at Risk'!BB$5","v":1.9578691814470302E-4},{"$f":"'Population at Risk'!BC135/'Population at Risk'!BC$5","v":1.883168516703632E-4},133]
["SIMD Q3","Female 0-4",{"$f":"'Population at Risk'!C136/'Population at Risk'!C$5","v":0},{"$f":"'Population at Risk'!D136/'Population at Risk'!D$5","v":0},{"$f":"'Population at Risk'!E136/'Population at Risk'!E$5","v":0},{"$f":"'Population at Risk'!F136/'Population at Risk'!F$5","v":0},{"$f":"'Population at Risk'!G136/'Population at Risk'!G$5","v":0},{"$f":"'Population at Risk'!H136/'Population at Risk'!H$5","v":0},{"$f":"'Population at Risk'!I136/'Population at Risk'!I$5","v":0},{"$f":"'Population at Risk'!J136/'Population at Risk'!J$5","v":0},{"$f":"'Population at Risk'!K136/'Population at Risk'!K$5","v":0},{"$f":"'Population at Risk'!L136/'Population at Risk'!L$5","v":0},{"$f":"'Population at Risk'!M136/'Population at Risk'!M$5","v":0},{"$f":"'Population at Risk'!N136/'Population at Risk'!N$5","v":0},{"$f":"'Population at Risk'!O136/'Population at Risk'!O$5","v":0},{"$f":"'Population at Risk'!P136/'Population at Risk'!P$5","v":0},{"$f":"'Population at Risk'!Q136/'Population at Risk'!Q$5","v":0},{"$f":"'Population at Risk'!R136/'Population at Risk'!R$5","v":0},{"$f":"'Population at Risk'!S136/'Population at Risk'!S$5","v":0},{"$f":"'Population at Risk'!T136/'Population at Risk'!T$5","v":0},{"$f":"'Population at Risk'!U136/'Population at Risk'!U$5","v":0},{"$f":"'Population at Risk'!V136/'Population at Risk'!V$5","v":0},{"$f":"'Population at Risk'!W136/'Population at Risk'!W$5","v":0},{"$f":"'Population at Risk'!X136/'Population at Risk'!X$5","v":0},{"$f":"'Population at Risk'!Y136/'Population at Risk'!Y$5","v":0},{"$f":"'Population at Risk'!Z136/'Population at Risk'!Z$5","v":0},{"$f":"'Population at Risk'!AA136/'Population at Risk'!AA$5","v":0},{"$f":"'Population at Risk'!AB136/'Population at Risk'!AB$5","v":0},{"$f":"'Population at Risk'!AC136/'Population at Risk'!AC$5","v":0},{"$f":"'Population at Risk'!AD136/'Population at Risk'!AD$5","v":0},{"$f":"'Population at Risk'!AE136/'Population at Risk'!AE$5","v":0},{"$f":"'Population at Risk'!AF136/'Population at Risk'!AF$5","v":0},{"$f":"'Population at Risk'!AG136/'Population at Risk'!AG$5","v":0},{"$f":"'Population at Risk'!AH136/'Population at Risk'!AH$5","v":0},{"$f":"'Population at Risk'!AI136/'Population at Risk'!AI$5","v":0},{"$f":"'Population at Risk'!AJ136/'Population at Risk'!AJ$5","v":0},{"$f":"'Population at Risk'!AK136/'Population at Risk'!AK$5","v":0},{"$f":"'Population at Risk'!AL136/'Population at Risk'!AL$5","v":0},{"$f":"'Population at Risk'!AM136/'Population at Risk'!AM$5","v":0},{"$f":"'Population at Risk'!AN136/'Population at Risk'!AN$5","v":0},{"$f":"'Population at Risk'!AO136/'Population at Risk'!AO$5","v":0},{"$f":"'Population at Risk'!AP136/'Population at Risk'!AP$5","v":0},{"$f":"'Population at Risk'!AQ136/'Population at Risk'!AQ$5","v":0},{"$f":"'Population at Risk'!AR136/'Population at Risk'!AR$5","v":0},{"$f":"'Population at Risk'!AS136/'Population at Risk'!AS$5","v":0},{"$f":"'Population at Risk'!AT136/'Population at Risk'!AT$5","v":0},{"$f":"'Population at Risk'!AU136/'Population at Risk'!AU$5","v":0},{"$f":"'Population at Risk'!AV136/'Population at Risk'!AV$5","v":0},{"$f":"'Population at Risk'!AW136/'Population at Risk'!AW$5","v":0},{"$f":"'Population at Risk'!AX136/'Population at Risk'!AX$5","v":0},{"$f":"'Population at Risk'!AY136/'Population at Risk'!AY$5","v":0},{"$f":"'Population at Risk'!AZ136/'Population at Risk'!AZ$5","v":0},{"$f":"'Population at Risk'!BA136/'Population at Risk'!BA$5","v":0},{"$f":"'Population at Risk'!BB136/'Population at Risk'!BB$5","v":0},{"$f":"'Population at Risk'!BC136/'Population at Risk'!BC$5","v":0},134]
[null,"Female 5-9",{"$f":"'Population at Risk'!C137/'Population at Risk'!C$5","v":0},{"$f":"'Population at Risk'!D137/'Population at Risk'!D$5","v":0},{"$f":"'Population at Risk'!E137/'Population at Risk'!E$5","v":0},{"$f":"'Population at Risk'!F137/'Population at Risk'!F$5","v":0},{"$f":"'Population at Risk'!G137/'Population at Risk'!G$5","v":0},{"$f":"'Population at Risk'!H137/'Population at Risk'!H$5","v":0},{"$f":"'Population at Risk'!I137/'Population at Risk'!I$5","v":0},{"$f":"'Population at Risk'!J137/'Population at Risk'!J$5","v":0},{"$f":"'Population at Risk'!K137/'Population at Risk'!K$5","v":0},{"$f":"'Population at Risk'!L137/'Population at Risk'!L$5","v":0},{"$f":"'Population at Risk'!M137/'Population at Risk'!M$5","v":0},{"$f":"'Population at Risk'!N137/'Population at Risk'!N$5","v":0},{"$f":"'Population at Risk'!O137/'Population at Risk'!O$5","v":0},{"$f":"'Population at Risk'!P137/'Population at Risk'!P$5","v":0},{"$f":"'Population at Risk'!Q137/'Population at Risk'!Q$5","v":0},{"$f":"'Population at Risk'!R137/'Population at Risk'!R$5","v":0},{"$f":"'Population at Risk'!S137/'Population at Risk'!S$5","v":0},{"$f":"'Population at Risk'!T137/'Population at Risk'!T$5","v":0},{"$f":"'Population at Risk'!U137/'Population at Risk'!U$5","v":0},{"$f":"'Population at Risk'!V137/'Population at Risk'!V$5","v":0},{"$f":"'Population at Risk'!W137/'Population at Risk'!W$5","v":0},{"$f":"'Population at Risk'!X137/'Population at Risk'!X$5","v":0},{"$f":"'Population at Risk'!Y137/'Population at Risk'!Y$5","v":0},{"$f":"'Population at Risk'!Z137/'Population at Risk'!Z$5","v":0},{"$f":"'Population at Risk'!AA137/'Population at Risk'!AA$5","v":0},{"$f":"'Population at Risk'!AB137/'Population at Risk'!AB$5","v":0},{"$f":"'Population at Risk'!AC137/'Population at Risk'!AC$5","v":0},{"$f":"'Population at Risk'!AD137/'Population at Risk'!AD$5","v":0},{"$f":"'Population at Risk'!AE137/'Population at Risk'!AE$5","v":0},{"$f":"'Population at Risk'!AF137/'Population at Risk'!AF$5","v":0},{"$f":"'Population at Risk'!AG137/'Population at Risk'!AG$5","v":0},{"$f":"'Population at Risk'!AH137/'Population at Risk'!AH$5","v":0},{"$f":"'Population at Risk'!AI137/'Population at Risk'!AI$5","v":0},{"$f":"'Population at Risk'!AJ137/'Population at Risk'!AJ$5","v":0},{"$f":"'Population at Risk'!AK137/'Population at Risk'!AK$5","v":0},{"$f":"'Population at Risk'!AL137/'Population at Risk'!AL$5","v":0},{"$f":"'Population at Risk'!AM137/'Population at Risk'!AM$5","v":0},{"$f":"'Population at Risk'!AN137/'Population at Risk'!AN$5","v":0},{"$f":"'Population at Risk'!AO137/'Population at Risk'!AO$5","v":0},{"$f":"'Population at Risk'!AP137/'Population at Risk'!AP$5","v":0},{"$f":"'Population at Risk'!AQ137/'Population at Risk'!AQ$5","v":0},{"$f":"'Population at Risk'!AR137/'Population at Risk'!AR$5","v":0},{"$f":"'Population at Risk'!AS137/'Population at Risk'!AS$5","v":0},{"$f":"'Population at Risk'!AT137/'Population at Risk'!AT$5","v":0},{"$f":"'Population at Risk'!AU137/'Population at Risk'!AU$5","v":0},{"$f":"'Population at Risk'!AV137/'Population at Risk'!AV$5","v":0},{"$f":"'Population at Risk'!AW137/'Population at Risk'!AW$5","v":0},{"$f":"'Population at Risk'!AX137/'Population at Risk'!AX$5","v":0},{"$f":"'Population at Risk'!AY137/'Population at Risk'!AY$5","v":0},{"$f":"'Population at Risk'!AZ137/'Population at Risk'!AZ$5","v":0},{"$f":"'Population at Risk'!BA137/'Population at Risk'!BA$5","v":0},{"$f":"'Population at Risk'!BB137/'Population at Risk'!BB$5","v":0},{"$f":"'Population at Risk'!BC137/'Population at Risk'!BC$5","v":0},135]
[null,"Female 10-15",{"$f":"'Population at Risk'!C138/'Population at Risk'!C$5","v":0},{"$f":"'Population at Risk'!D138/'Population at Risk'!D$5","v":0},{"$f":"'Population at Risk'!E138/'Population at Risk'!E$5","v":0},{"$f":"'Population at Risk'!F138/'Population at Risk'!F$5","v":0},{"$f":"'Population at Risk'!G138/'Population at Risk'!G$5","v":0},{"$f":"'Population at Risk'!H138/'Population at Risk'!H$5","v":0},{"$f":"'Population at Risk'!I138/'Population at Risk'!I$5","v":0},{"$f":"'Population at Risk'!J138/'Population at Risk'!J$5","v":0},{"$f":"'Population at Risk'!K138/'Population at Risk'!K$5","v":0},{"$f":"'Population at Risk'!L138/'Population at Risk'!L$5","v":0},{"$f":"'Population at Risk'!M138/'Population at Risk'!M$5","v":0},{"$f":"'Population at Risk'!N138/'Population at Risk'!N$5","v":0},{"$f":"'Population at Risk'!O138/'Population at Risk'!O$5","v":0},{"$f":"'Population at Risk'!P138/'Population at Risk'!P$5","v":0},{"$f":"'Population at Risk'!Q138/'Population at Risk'!Q$5","v":0},{"$f":"'Population at Risk'!R138/'Population at Risk'!R$5","v":0},{"$f":"'Population at Risk'!S138/'Population at Risk'!S$5","v":0},{"$f":"'Population at Risk'!T138/'Population at Risk'!T$5","v":0},{"$f":"'Population at Risk'!U138/'Population at Risk'!U$5","v":0},{"$f":"'Population at Risk'!V138/'Population at Risk'!V$5","v":0},{"$f":"'Population at Risk'!W138/'Population at Risk'!W$5","v":0},{"$f":"'Population at Risk'!X138/'Population at Risk'!X$5","v":0},{"$f":"'Population at Risk'!Y138/'Population at Risk'!Y$5","v":0},{"$f":"'Population at Risk'!Z138/'Population at Risk'!Z$5","v":0},{"$f":"'Population at Risk'!AA138/'Population at Risk'!AA$5","v":0},{"$f":"'Population at Risk'!AB138/'Population at Risk'!AB$5","v":0},{"$f":"'Population at Risk'!AC138/'Population at Risk'!AC$5","v":0},{"$f":"'Population at Risk'!AD138/'Population at Risk'!AD$5","v":0},{"$f":"'Population at Risk'!AE138/'Population at Risk'!AE$5","v":0},{"$f":"'Population at Risk'!AF138/'Population at Risk'!AF$5","v":0},{"$f":"'Population at Risk'!AG138/'Population at Risk'!AG$5","v":0},{"$f":"'Population at Risk'!AH138/'Population at Risk'!AH$5","v":0},{"$f":"'Population at Risk'!AI138/'Population at Risk'!AI$5","v":0},{"$f":"'Population at Risk'!AJ138/'Population at Risk'!AJ$5","v":0},{"$f":"'Population at Risk'!AK138/'Population at Risk'!AK$5","v":0},{"$f":"'Population at Risk'!AL138/'Population at Risk'!AL$5","v":0},{"$f":"'Population at Risk'!AM138/'Population at Risk'!AM$5","v":0},{"$f":"'Population at Risk'!AN138/'Population at Risk'!AN$5","v":0},{"$f":"'Population at Risk'!AO138/'Population at Risk'!AO$5","v":0},{"$f":"'Population at Risk'!AP138/'Population at Risk'!AP$5","v":0},{"$f":"'Population at Risk'!AQ138/'Population at Risk'!AQ$5","v":0},{"$f":"'Population at Risk'!AR138/'Population at Risk'!AR$5","v":0},{"$f":"'Population at Risk'!AS138/'Population at Risk'!AS$5","v":0},{"$f":"'Population at Risk'!AT138/'Population at Risk'!AT$5","v":0},{"$f":"'Population at Risk'!AU138/'Population at Risk'!AU$5","v":0},{"$f":"'Population at Risk'!AV138/'Population at Risk'!AV$5","v":0},{"$f":"'Population at Risk'!AW138/'Population at Risk'!AW$5","v":0},{"$f":"'Population at Risk'!AX138/'Population at Risk'!AX$5","v":0},{"$f":"'Population at Risk'!AY138/'Population at Risk'!AY$5","v":0},{"$f":"'Population at Risk'!AZ138/'Population at Risk'!AZ$5","v":0},{"$f":"'Population at Risk'!BA138/'Population at Risk'!BA$5","v":0},{"$f":"'Population at Risk'!BB138/'Population at Risk'!BB$5","v":0},{"$f":"'Population at Risk'!BC138/'Population at Risk'!BC$5","v":0},136]
[null,"Female 16-19",{"$f":"'Population at Risk'!C139/'Population at Risk'!C$5","v":3.1357485361783954E-3},{"$f":"'Population at Risk'!D139/'Population at Risk'!D$5","v":5.2333027225558142E-3},{"$f":"'Population at Risk'!E139/'Population at Risk'!E$5","v":5.2067527934997462E-3},{"$f":"'Population at Risk'!F139/'Population at Risk'!F$5","v":5.0736480658839867E-3},{"$f":"'Population at Risk'!G139/'Population at Risk'!G$5","v":1.0234735136732728E-2},{"$f":"'Population at Risk'!H139/'Population at Risk'!H$5","v":3.4923486605633082E-3},{"$f":"'Population at Risk'!I139/'Population at Risk'!I$5","v":9.8353617386935151E-3},{"$f":"'Population at Risk'!J139/'Population at Risk'!J$5","v":4.092430359664322E-3},{"$f":"'Population at Risk'!K139/'Population at Risk'!K$5","v":3.4431471563745575E-3},{"$f":"'Population at Risk'!L139/'Population at Risk'!L$5","v":8.545767231758877E-3},{"$f":"'Population at Risk'!M139/'Population at Risk'!M$5","v":8.545767231758877E-3},{"$f":"'Population at Risk'!N139/'Population at Risk'!N$5","v":3.2365187775930766E-3},{"$f":"'Population at Risk'!O139/'Population at Risk'!O$5","v":3.2532675936639945E-3},{"$f":"'Population at Risk'!P139/'Population at Risk'!P$5","v":2.1700373169639031E-3},{"$f":"'Population at Risk'!Q139/'Population at Risk'!Q$5","v":5.8334791339059401E-3},{"$f":"'Population at Risk'!R139/'Population at Risk'!R$5","v":3.3905138293439338E-3},{"$f":"'Population at Risk'!S139/'Population at Risk'!S$5","v":5.2178285655669161E-3},{"$f":"'Population at Risk'!T139/'Population at Risk'!T$5","v":3.1931864102992731E-3},{"$f":"'Population at Risk'!U139/'Population at Risk'!U$5","v":1.4844114870406358E-2},{"$f":"'Population at Risk'!V139/'Population at Risk'!V$5","v":3.4001014548398823E-3},{"$f":"'Population at Risk'!W139/'Population at Risk'!W$5","v":4.6466173047079694E-3},{"$f":"'Population at Risk'!X139/'Population at Risk'!X$5","v":4.6466173047079694E-3},{"$f":"'Population at Risk'!Y139/'Population at Risk'!Y$5","v":3.7919586539299759E-3},{"$f":"'Population at Risk'!Z139/'Population at Risk'!Z$5","v":3.2920054199834198E-3},{"$f":"'Population at Risk'!AA139/'Population at Risk'!AA$5","v":3.8640647516352423E-3},{"$f":"'Population at Risk'!AB139/'Population at Risk'!AB$5","v":4.7821521083033511E-3},{"$f":"'Population at Risk'!AC139/'Population at Risk'!AC$5","v":3.2993447777970412E-3},{"$f":"'Population at Risk'!AD139/'Population at Risk'!AD$5","v":7.6517836633133093E-3},{"$f":"'Population at Risk'!AE139/'Population at Risk'!AE$5","v":6.7793629815828304E-3},{"$f":"'Population at Risk'!AF139/'Population at Risk'!AF$5","v":3.2279687566573218E-3},{"$f":"'Population at Risk'!AG139/'Population at Risk'!AG$5","v":8.0266346035395113E-3},{"$f":"'Population at Risk'!AH139/'Population at Risk'!AH$5","v":4.4752784387650252E-3},{"$f":"'Population at Risk'!AI139/'Population at Risk'!AI$5","v":4.339843251551379E-3},{"$f":"'Population at Risk'!AJ139/'Population at Risk'!AJ$5","v":5.941485429939425E-3},{"$f":"'Population at Risk'!AK139/'Population at Risk'!AK$5","v":8.4188689373631137E-3},{"$f":"'Population at Risk'!AL139/'Population at Risk'!AL$5","v":2.4005065115923082E-3},{"$f":"'Population at Risk'!AM139/'Population at Risk'!AM$5","v":4.5641470506600397E-3},{"$f":"'Population at Risk'!AN139/'Population at Risk'!AN$5","v":7.344539189080828E-3},{"$f":"'Population at Risk'!AO139/'Population at Risk'!AO$5","v":7.344539189080828E-3},{"$f":"'Population at Risk'!AP139/'Population at Risk'!AP$5","v":5.3940247196880529E-3},{"$f":"'Population at Risk'!AQ139/'Population at Risk'!AQ$5","v":4.0240935214606588E-3},{"$f":"'Population at Risk'!AR139/'Population at Risk'!AR$5","v":4.5827583324719416E-3},{"$f":"'Population at Risk'!AS139/'Population at Risk'!AS$5","v":9.8353617386935151E-3},{"$f":"'Population at Risk'!AT139/'Population at Risk'!AT$5","v":8.6897764433919722E-3},{"$f":"'Population at Risk'!AU139/'Population at Risk'!AU$5","v":8.6897764433919722E-3},{"$f":"'Population at Risk'!AV139/'Population at Risk'!AV$5","v":5.7226913273419958E-3},{"$f":"'Population at Risk'!AW139/'Population at Risk'!AW$5","v":4.2929029934239849E-3},{"$f":"'Population at Risk'!AX139/'Population at Risk'!AX$5","v":4.5239036101133437E-3},{"$f":"'Population at Risk'!AY139/'Population at Risk'!AY$5","v":5.5155736821500181E-3},{"$f":"'Population at Risk'!AZ139/'Population at Risk'!AZ$5","v":4.8113900451599457E-3},{"$f":"'Population at Risk'!BA139/'Population at Risk'!BA$5","v":2.5941858883667961E-3},{"$f":"'Population at Risk'!BB139/'Population at Risk'!BB$5","v":5.9355950445353677E-3},{"$f":"'Population at Risk'!BC139/'Population at Risk'!BC$5","v":1.4844114870406358E-2},137]
[null,"Female 20-24",{"$f":"'Population at Risk'!C140/'Population at Risk'!C$5","v":9.3569639264681845E-3},{"$f":"'Population at Risk'!D140/'Population at Risk'!D$5","v":1.0129555471030978E-2},{"$f":"'Population at Risk'!E140/'Population at Risk'!E$5","v":6.5220388742888566E-3},{"$f":"'Population at Risk'!F140/'Population at Risk'!F$5","v":5.7799413470862281E-3},{"$f":"'Population at Risk'!G140/'Population at Risk'!G$5","v":9.1319121653633661E-3},{"$f":"'Population at Risk'!H140/'Population at Risk'!H$5","v":3.9942275075392714E-3},{"$f":"'Population at Risk'!I140/'Population at Risk'!I$5","v":1.1933909359031719E-2},{"$f":"'Population at Risk'!J140/'Population at Risk'!J$5","v":7.1322970567662273E-3},{"$f":"'Population at Risk'!K140/'Population at Risk'!K$5","v":5.0368324116107808E-3},{"$f":"'Population at Risk'!L140/'Population at Risk'!L$5","v":1.0066081626921974E-2},{"$f":"'Population at Risk'!M140/'Population at Risk'!M$5","v":1.0066081626921974E-2},{"$f":"'Population at Risk'!N140/'Population at Risk'!N$5","v":5.8202942723102379E-3},{"$f":"'Population at Risk'!O140/'Population at Risk'!O$5","v":3.8695940682430246E-3},{"$f":"'Population at Risk'!P140/'Population at Risk'!P$5","v":2.8580979296597754E-3},{"$f":"'Population at Risk'!Q140/'Population at Risk'!Q$5","v":8.0563687598216391E-3},{"$f":"'Population at Risk'!R140/'Population at Risk'!R$5","v":3.7868076535529649E-3},{"$f":"'Population at Risk'!S140/'Population at Risk'!S$5","v":9.2781025045959118E-3},{"$f":"'Population at Risk'!T140/'Population at Risk'!T$5","v":1.0177725765974772E-2},{"$f":"'Population at Risk'!U140/'Population at Risk'!U$5","v":1.5092205926736272E-2},{"$f":"'Population at Risk'!V140/'Population at Risk'!V$5","v":4.4349149410954991E-3},{"$f":"'Population at Risk'!W140/'Population at Risk'!W$5","v":6.4787615116479987E-3},{"$f":"'Population at Risk'!X140/'Population at Risk'!X$5","v":6.4787615116479987E-3},{"$f":"'Population at Risk'!Y140/'Population at Risk'!Y$5","v":5.7201306593689001E-3},{"$f":"'Population at Risk'!Z140/'Population at Risk'!Z$5","v":7.3478785388556376E-3},{"$f":"'Population at Risk'!AA140/'Population at Risk'!AA$5","v":6.2186022549972396E-3},{"$f":"'Population at Risk'!AB140/'Population at Risk'!AB$5","v":8.4003503470239885E-3},{"$f":"'Population at Risk'!AC140/'Population at Risk'!AC$5","v":6.1355942916215562E-3},{"$f":"'Population at Risk'!AD140/'Population at Risk'!AD$5","v":8.0857550598260886E-3},{"$f":"'Population at Risk'!AE140/'Population at Risk'!AE$5","v":7.7518703531612417E-3},{"$f":"'Population at Risk'!AF140/'Population at Risk'!AF$5","v":3.730876932513354E-3},{"$f":"'Population at Risk'!AG140/'Population at Risk'!AG$5","v":9.178064515481768E-3},{"$f":"'Population at Risk'!AH140/'Population at Risk'!AH$5","v":5.5713997531656066E-3},{"$f":"'Population at Risk'!AI140/'Population at Risk'!AI$5","v":9.1431779897633205E-3},{"$f":"'Population at Risk'!AJ140/'Population at Risk'!AJ$5","v":6.4138210917337717E-3},{"$f":"'Population at Risk'!AK140/'Population at Risk'!AK$5","v":1.0191262397860612E-2},{"$f":"'Population at Risk'!AL140/'Population at Risk'!AL$5","v":2.8015739385905316E-3},{"$f":"'Population at Risk'!AM140/'Population at Risk'!AM$5","v":5.5740582467375642E-3},{"$f":"'Population at Risk'!AN140/'Population at Risk'!AN$5","v":1.0091277422395609E-2},{"$f":"'Population at Risk'!AO140/'Population at Risk'!AO$5","v":1.0091277422395609E-2},{"$f":"'Population at Risk'!AP140/'Population at Risk'!AP$5","v":7.2953980323768822E-3},{"$f":"'Population at Risk'!AQ140/'Population at Risk'!AQ$5","v":5.3006186566672119E-3},{"$f":"'Population at Risk'!AR140/'Population at Risk'!AR$5","v":6.9972049241862969E-3},{"$f":"'Population at Risk'!AS140/'Population at Risk'!AS$5","v":1.1933909359031719E-2},{"$f":"'Population at Risk'!AT140/'Population at Risk'!AT$5","v":1.008947197789806E-2},{"$f":"'Population at Risk'!AU140/'Population at Risk'!AU$5","v":1.008947197789806E-2},{"$f":"'Population at Risk'!AV140/'Population at Risk'!AV$5","v":6.2299048168559298E-3},{"$f":"'Population at Risk'!AW140/'Population at Risk'!AW$5","v":5.4529699092042069E-3},{"$f":"'Population at Risk'!AX140/'Population at Risk'!AX$5","v":8.5248125832193648E-3},{"$f":"'Population at Risk'!AY140/'Population at Risk'!AY$5","v":7.6356271948473638E-3},{"$f":"'Population at Risk'!AZ140/'Population at Risk'!AZ$5","v":6.6206731767253007E-3},{"$f":"'Population at Risk'!BA140/'Population at Risk'!BA$5","v":4.1214082258730547E-3},{"$f":"'Population at Risk'!BB140/'Population at Risk'!BB$5","v":7.4177541822681142E-3},{"$f":"'Population at Risk'!BC140/'Population at Risk'!BC$5","v":1.5092205926736272E-2},138]
[null,"Female 25-29",{"$f":"'Population at Risk'!C141/'Population at Risk'!C$5","v":1.0648116320001341E-2},{"$f":"'Population at Risk'!D141/'Population at Risk'!D$5","v":1.1977990430848944E-2},{"$f":"'Population at Risk'!E141/'Population at Risk'!E$5","v":8.1625039408118293E-3},{"$f":"'Population at Risk'!F141/'Population at Risk'!F$5","v":6.1176977541838751E-3},{"$f":"'Population at Risk'!G141/'Population at Risk'!G$5","v":1.1398085652854988E-2},{"$f":"'Population at Risk'!H141/'Population at Risk'!H$5","v":4.7497758141524906E-3},{"$f":"'Population at Risk'!I141/'Population at Risk'!I$5","v":1.1317373947550518E-2},{"$f":"'Population at Risk'!J141/'Population at Risk'!J$5","v":7.7086749761492816E-3},{"$f":"'Population at Risk'!K141/'Population at Risk'!K$5","v":6.0697666516114634E-3},{"$f":"'Population at Risk'!L141/'Population at Risk'!L$5","v":1.2193490348324469E-2},{"$f":"'Population at Risk'!M141/'Population at Risk'!M$5","v":1.2193490348324469E-2},{"$f":"'Population at Risk'!N141/'Population at Risk'!N$5","v":7.5751581056915209E-3},{"$f":"'Population at Risk'!O141/'Population at Risk'!O$5","v":4.8589910572507172E-3},{"$f":"'Population at Risk'!P141/'Population at Risk'!P$5","v":3.0807888615556117E-3},{"$f":"'Population at Risk'!Q141/'Population at Risk'!Q$5","v":8.8403174875405447E-3},{"$f":"'Population at Risk'!R141/'Population at Risk'!R$5","v":4.5451033444847367E-3},{"$f":"'Population at Risk'!S141/'Population at Risk'!S$5","v":1.2084799702756274E-2},{"$f":"'Population at Risk'!T141/'Population at Risk'!T$5","v":1.4584624786025702E-2},{"$f":"'Population at Risk'!U141/'Population at Risk'!U$5","v":1.9880096817971954E-2},{"$f":"'Population at Risk'!V141/'Population at Risk'!V$5","v":5.2224739317971274E-3},{"$f":"'Population at Risk'!W141/'Population at Risk'!W$5","v":8.3269861674835511E-3},{"$f":"'Population at Risk'!X141/'Population at Risk'!X$5","v":8.3269861674835511E-3},{"$f":"'Population at Risk'!Y141/'Population at Risk'!Y$5","v":6.4381671349446681E-3},{"$f":"'Population at Risk'!Z141/'Population at Risk'!Z$5","v":8.0616145169175139E-3},{"$f":"'Population at Risk'!AA141/'Population at Risk'!AA$5","v":7.1589798467957058E-3},{"$f":"'Population at Risk'!AB141/'Population at Risk'!AB$5","v":1.0003488410444048E-2},{"$f":"'Population at Risk'!AC141/'Population at Risk'!AC$5","v":6.8274533395648934E-3},{"$f":"'Population at Risk'!AD141/'Population at Risk'!AD$5","v":1.0140522653222546E-2},{"$f":"'Population at Risk'!AE141/'Population at Risk'!AE$5","v":9.740809759480655E-3},{"$f":"'Population at Risk'!AF141/'Population at Risk'!AF$5","v":4.1799126055855861E-3},{"$f":"'Population at Risk'!AG141/'Population at Risk'!AG$5","v":1.1532930290699397E-2},{"$f":"'Population at Risk'!AH141/'Population at Risk'!AH$5","v":6.8799004738296374E-3},{"$f":"'Population at Risk'!AI141/'Population at Risk'!AI$5","v":1.2411751454485068E-2},{"$f":"'Population at Risk'!AJ141/'Population at Risk'!AJ$5","v":8.4072092686942393E-3},{"$f":"'Population at Risk'!AK141/'Population at Risk'!AK$5","v":1.2551925087652134E-2},{"$f":"'Population at Risk'!AL141/'Population at Risk'!AL$5","v":2.9524701826354619E-3},{"$f":"'Population at Risk'!AM141/'Population at Risk'!AM$5","v":7.1527289356701973E-3},{"$f":"'Population at Risk'!AN141/'Population at Risk'!AN$5","v":1.2790450746070039E-2},{"$f":"'Population at Risk'!AO141/'Population at Risk'!AO$5","v":1.2790450746070039E-2},{"$f":"'Population at Risk'!AP141/'Population at Risk'!AP$5","v":8.8159280020511394E-3},{"$f":"'Population at Risk'!AQ141/'Population at Risk'!AQ$5","v":6.2485516650449277E-3},{"$f":"'Population at Risk'!AR141/'Population at Risk'!AR$5","v":8.5009281033241336E-3},{"$f":"'Population at Risk'!AS141/'Population at Risk'!AS$5","v":1.1317373947550518E-2},{"$f":"'Population at Risk'!AT141/'Population at Risk'!AT$5","v":1.4257724402345514E-2},{"$f":"'Population at Risk'!AU141/'Population at Risk'!AU$5","v":1.4257724402345514E-2},{"$f":"'Population at Risk'!AV141/'Population at Risk'!AV$5","v":7.7531553811983267E-3},{"$f":"'Population at Risk'!AW141/'Population at Risk'!AW$5","v":6.4625180750093603E-3},{"$f":"'Population at Risk'!AX141/'Population at Risk'!AX$5","v":8.797791556392473E-3},{"$f":"'Population at Risk'!AY141/'Population at Risk'!AY$5","v":9.412425458661328E-3},{"$f":"'Population at Risk'!AZ141/'Population at Risk'!AZ$5","v":7.864983394902025E-3},{"$f":"'Population at Risk'!BA141/'Population at Risk'!BA$5","v":4.6639809866753654E-3},{"$f":"'Population at Risk'!BB141/'Population at Risk'!BB$5","v":8.967501105312279E-3},{"$f":"'Population at Risk'!BC141/'Population at Risk'!BC$5","v":1.9880096817971954E-2},139]
[null,"Female 30-34",{"$f":"'Population at Risk'!C142/'Population at Risk'!C$5","v":8.4078079888066544E-3},{"$f":"'Population at Risk'!D142/'Population at Risk'!D$5","v":1.0937492285788358E-2},{"$f":"'Population at Risk'!E142/'Population at Risk'!E$5","v":8.8762913094018615E-3},{"$f":"'Population at Risk'!F142/'Population at Risk'!F$5","v":7.5509438371616014E-3},{"$f":"'Population at Risk'!G142/'Population at Risk'!G$5","v":1.2916786625831546E-2},{"$f":"'Population at Risk'!H142/'Population at Risk'!H$5","v":5.097911071403948E-3},{"$f":"'Population at Risk'!I142/'Population at Risk'!I$5","v":1.3951717168111692E-2},{"$f":"'Population at Risk'!J142/'Population at Risk'!J$5","v":6.3095916174887362E-3},{"$f":"'Population at Risk'!K142/'Population at Risk'!K$5","v":6.2759096699680781E-3},{"$f":"'Population at Risk'!L142/'Population at Risk'!L$5","v":1.1681158821083946E-2},{"$f":"'Population at Risk'!M142/'Population at Risk'!M$5","v":1.1681158821083946E-2},{"$f":"'Population at Risk'!N142/'Population at Risk'!N$5","v":4.8759638381462665E-3},{"$f":"'Population at Risk'!O142/'Population at Risk'!O$5","v":5.0406355827554159E-3},{"$f":"'Population at Risk'!P142/'Population at Risk'!P$5","v":2.4800350335522675E-3},{"$f":"'Population at Risk'!Q142/'Population at Risk'!Q$5","v":9.0796492638529798E-3},{"$f":"'Population at Risk'!R142/'Population at Risk'!R$5","v":4.8014061646624471E-3},{"$f":"'Population at Risk'!S142/'Population at Risk'!S$5","v":1.0921238602849154E-2},{"$f":"'Population at Risk'!T142/'Population at Risk'!T$5","v":1.117533283657667E-2},{"$f":"'Population at Risk'!U142/'Population at Risk'!U$5","v":2.1805529923828802E-2},{"$f":"'Population at Risk'!V142/'Population at Risk'!V$5","v":6.0763384909882931E-3},{"$f":"'Population at Risk'!W142/'Population at Risk'!W$5","v":7.9547366851675325E-3},{"$f":"'Population at Risk'!X142/'Population at Risk'!X$5","v":7.9547366851675325E-3},{"$f":"'Population at Risk'!Y142/'Population at Risk'!Y$5","v":6.3434882064896001E-3},{"$f":"'Population at Risk'!Z142/'Population at Risk'!Z$5","v":6.4013463071846514E-3},{"$f":"'Population at Risk'!AA142/'Population at Risk'!AA$5","v":6.751574708288929E-3},{"$f":"'Population at Risk'!AB142/'Population at Risk'!AB$5","v":9.5670865299209394E-3},{"$f":"'Population at Risk'!AC142/'Population at Risk'!AC$5","v":5.858219655669991E-3},{"$f":"'Population at Risk'!AD142/'Population at Risk'!AD$5","v":1.1090312539036536E-2},{"$f":"'Population at Risk'!AE142/'Population at Risk'!AE$5","v":1.0495572110299481E-2},{"$f":"'Population at Risk'!AF142/'Population at Risk'!AF$5","v":3.6625292863274352E-3},{"$f":"'Population at Risk'!AG142/'Population at Risk'!AG$5","v":1.2426554310978182E-2},{"$f":"'Population at Risk'!AH142/'Population at Risk'!AH$5","v":7.6351521180237835E-3},{"$f":"'Population at Risk'!AI142/'Population at Risk'!AI$5","v":1.0618925482985457E-2},{"$f":"'Population at Risk'!AJ142/'Population at Risk'!AJ$5","v":8.899197418669463E-3},{"$f":"'Population at Risk'!AK142/'Population at Risk'!AK$5","v":1.4546477567333842E-2},{"$f":"'Population at Risk'!AL142/'Population at Risk'!AL$5","v":3.1927875230825342E-3},{"$f":"'Population at Risk'!AM142/'Population at Risk'!AM$5","v":8.1653369027030413E-3},{"$f":"'Population at Risk'!AN142/'Population at Risk'!AN$5","v":1.4111203812240316E-2},{"$f":"'Population at Risk'!AO142/'Population at Risk'!AO$5","v":1.4111203812240316E-2},{"$f":"'Population at Risk'!AP142/'Population at Risk'!AP$5","v":9.4334229590913605E-3},{"$f":"'Population at Risk'!AQ142/'Population at Risk'!AQ$5","v":6.8854368857176832E-3},{"$f":"'Population at Risk'!AR142/'Population at Risk'!AR$5","v":8.1189556805874846E-3},{"$f":"'Population at Risk'!AS142/'Population at Risk'!AS$5","v":1.3951717168111692E-2},{"$f":"'Population at Risk'!AT142/'Population at Risk'!AT$5","v":1.2764058036385507E-2},{"$f":"'Population at Risk'!AU142/'Population at Risk'!AU$5","v":1.2764058036385507E-2},{"$f":"'Population at Risk'!AV142/'Population at Risk'!AV$5","v":8.5233363793306115E-3},{"$f":"'Population at Risk'!AW142/'Population at Risk'!AW$5","v":6.9432012376133634E-3},{"$f":"'Population at Risk'!AX142/'Population at Risk'!AX$5","v":6.3319745457772816E-3},{"$f":"'Population at Risk'!AY142/'Population at Risk'!AY$5","v":9.0543934417939252E-3},{"$f":"'Population at Risk'!AZ142/'Population at Risk'!AZ$5","v":7.6140974260735491E-3},{"$f":"'Population at Risk'!BA142/'Population at Risk'!BA$5","v":4.676158482724126E-3},{"$f":"'Population at Risk'!BB142/'Population at Risk'!BB$5","v":9.9719908406860104E-3},{"$f":"'Population at Risk'!BC142/'Population at Risk'!BC$5","v":2.1805529923828802E-2},140]
[null,"Female 35-39",{"$f":"'Population at Risk'!C143/'Population at Risk'!C$5","v":5.042650141313507E-3},{"$f":"'Population at Risk'!D143/'Population at Risk'!D$5","v":8.3736898488828929E-3},{"$f":"'Population at Risk'!E143/'Population at Risk'!E$5","v":8.3039378524514002E-3},{"$f":"'Population at Risk'!F143/'Population at Risk'!F$5","v":7.786237896804704E-3},{"$f":"'Population at Risk'!G143/'Population at Risk'!G$5","v":1.2699868040742609E-2},{"$f":"'Population at Risk'!H143/'Population at Risk'!H$5","v":4.9809267310102585E-3},{"$f":"'Population at Risk'!I143/'Population at Risk'!I$5","v":1.274384093462895E-2},{"$f":"'Population at Risk'!J143/'Population at Risk'!J$5","v":6.1518597373764975E-3},{"$f":"'Population at Risk'!K143/'Population at Risk'!K$5","v":5.2171183904676484E-3},{"$f":"'Population at Risk'!L143/'Population at Risk'!L$5","v":1.1038439806547434E-2},{"$f":"'Population at Risk'!M143/'Population at Risk'!M$5","v":1.1038439806547434E-2},{"$f":"'Population at Risk'!N143/'Population at Risk'!N$5","v":3.6591571802549391E-3},{"$f":"'Population at Risk'!O143/'Population at Risk'!O$5","v":4.7571302755392798E-3},{"$f":"'Population at Risk'!P143/'Population at Risk'!P$5","v":2.8868404105178011E-3},{"$f":"'Population at Risk'!Q143/'Population at Risk'!Q$5","v":8.8987141304091646E-3},{"$f":"'Population at Risk'!R143/'Population at Risk'!R$5","v":4.8444041406657326E-3},{"$f":"'Population at Risk'!S143/'Population at Risk'!S$5","v":9.0740846545088721E-3},{"$f":"'Population at Risk'!T143/'Population at Risk'!T$5","v":7.3343582937327777E-3},{"$f":"'Population at Risk'!U143/'Population at Risk'!U$5","v":2.5305329385640268E-2},{"$f":"'Population at Risk'!V143/'Population at Risk'!V$5","v":5.9415858788265698E-3},{"$f":"'Population at Risk'!W143/'Population at Risk'!W$5","v":7.883585848145783E-3},{"$f":"'Population at Risk'!X143/'Population at Risk'!X$5","v":7.883585848145783E-3},{"$f":"'Population at Risk'!Y143/'Population at Risk'!Y$5","v":6.1951292194777881E-3},{"$f":"'Population at Risk'!Z143/'Population at Risk'!Z$5","v":4.6639342654363862E-3},{"$f":"'Population at Risk'!AA143/'Population at Risk'!AA$5","v":5.9809778958482699E-3},{"$f":"'Population at Risk'!AB143/'Population at Risk'!AB$5","v":7.4057838788674345E-3},{"$f":"'Population at Risk'!AC143/'Population at Risk'!AC$5","v":4.8296050709555937E-3},{"$f":"'Population at Risk'!AD143/'Population at Risk'!AD$5","v":1.1260667071121815E-2},{"$f":"'Population at Risk'!AE143/'Population at Risk'!AE$5","v":1.0801876140653786E-2},{"$f":"'Population at Risk'!AF143/'Population at Risk'!AF$5","v":4.8808322630334959E-3},{"$f":"'Population at Risk'!AG143/'Population at Risk'!AG$5","v":1.2789212356568101E-2},{"$f":"'Population at Risk'!AH143/'Population at Risk'!AH$5","v":7.4746103566383964E-3},{"$f":"'Population at Risk'!AI143/'Population at Risk'!AI$5","v":8.1041484814371127E-3},{"$f":"'Population at Risk'!AJ143/'Population at Risk'!AJ$5","v":8.6084031811344934E-3},{"$f":"'Population at Risk'!AK143/'Population at Risk'!AK$5","v":1.1716285300775583E-2},{"$f":"'Population at Risk'!AL143/'Population at Risk'!AL$5","v":3.29286431174276E-3},{"$f":"'Population at Risk'!AM143/'Population at Risk'!AM$5","v":8.0844009666109374E-3},{"$f":"'Population at Risk'!AN143/'Population at Risk'!AN$5","v":9.4866438365122496E-3},{"$f":"'Population at Risk'!AO143/'Population at Risk'!AO$5","v":9.4866438365122496E-3},{"$f":"'Population at Risk'!AP143/'Population at Risk'!AP$5","v":8.3540559090177161E-3},{"$f":"'Population at Risk'!AQ143/'Population at Risk'!AQ$5","v":6.3249607512083014E-3},{"$f":"'Population at Risk'!AR143/'Population at Risk'!AR$5","v":7.1664744588177997E-3},{"$f":"'Population at Risk'!AS143/'Population at Risk'!AS$5","v":1.274384093462895E-2},{"$f":"'Population at Risk'!AT143/'Population at Risk'!AT$5","v":1.2397689257254549E-2},{"$f":"'Population at Risk'!AU143/'Population at Risk'!AU$5","v":1.2397689257254549E-2},{"$f":"'Population at Risk'!AV143/'Population at Risk'!AV$5","v":8.2408922635795606E-3},{"$f":"'Population at Risk'!AW143/'Population at Risk'!AW$5","v":6.7059188731766733E-3},{"$f":"'Population at Risk'!AX143/'Population at Risk'!AX$5","v":6.7730307229130898E-3},{"$f":"'Population at Risk'!AY143/'Population at Risk'!AY$5","v":8.5866495431309239E-3},{"$f":"'Population at Risk'!AZ143/'Population at Risk'!AZ$5","v":6.9251805451842948E-3},{"$f":"'Population at Risk'!BA143/'Population at Risk'!BA$5","v":4.3887969648053167E-3},{"$f":"'Population at Risk'!BB143/'Population at Risk'!BB$5","v":9.2646070588253346E-3},{"$f":"'Population at Risk'!BC143/'Population at Risk'!BC$5","v":2.5305329385640268E-2},141]
[null,"Female 40-44",{"$f":"'Population at Risk'!C144/'Population at Risk'!C$5","v":4.4442829338756972E-3},{"$f":"'Population at Risk'!D144/'Population at Risk'!D$5","v":8.3837908016559728E-3},{"$f":"'Population at Risk'!E144/'Population at Risk'!E$5","v":8.9678102990164692E-3},{"$f":"'Population at Risk'!F144/'Population at Risk'!F$5","v":9.0476954331585382E-3},{"$f":"'Population at Risk'!G144/'Population at Risk'!G$5","v":1.5769504391822578E-2},{"$f":"'Population at Risk'!H144/'Population at Risk'!H$5","v":5.7926548606550372E-3},{"$f":"'Population at Risk'!I144/'Population at Risk'!I$5","v":1.6987073210310066E-2},{"$f":"'Population at Risk'!J144/'Population at Risk'!J$5","v":6.7934108242743334E-3},{"$f":"'Population at Risk'!K144/'Population at Risk'!K$5","v":6.4498552253460803E-3},{"$f":"'Population at Risk'!L144/'Population at Risk'!L$5","v":1.4037529291700223E-2},{"$f":"'Population at Risk'!M144/'Population at Risk'!M$5","v":1.4037529291700223E-2},{"$f":"'Population at Risk'!N144/'Population at Risk'!N$5","v":3.2103208525313602E-3},{"$f":"'Population at Risk'!O144/'Population at Risk'!O$5","v":5.7434710482657724E-3},{"$f":"'Population at Risk'!P144/'Population at Risk'!P$5","v":3.1533179868732902E-3},{"$f":"'Population at Risk'!Q144/'Population at Risk'!Q$5","v":9.8187750421154449E-3},{"$f":"'Population at Risk'!R144/'Population at Risk'!R$5","v":5.1071514838882809E-3},{"$f":"'Population at Risk'!S144/'Population at Risk'!S$5","v":8.9742208316460001E-3},{"$f":"'Population at Risk'!T144/'Population at Risk'!T$5","v":5.8391244624799278E-3},{"$f":"'Population at Risk'!U144/'Population at Risk'!U$5","v":2.6554404145077717E-2},{"$f":"'Population at Risk'!V144/'Population at Risk'!V$5","v":6.3614409837543561E-3},{"$f":"'Population at Risk'!W144/'Population at Risk'!W$5","v":7.8449092209267515E-3},{"$f":"'Population at Risk'!X144/'Population at Risk'!X$5","v":7.8449092209267515E-3},{"$f":"'Population at Risk'!Y144/'Population at Risk'!Y$5","v":6.7221322558960331E-3},{"$f":"'Population at Risk'!Z144/'Population at Risk'!Z$5","v":3.9042547188633038E-3},{"$f":"'Population at Risk'!AA144/'Population at Risk'!AA$5","v":5.8920196967676914E-3},{"$f":"'Population at Risk'!AB144/'Population at Risk'!AB$5","v":7.7371440461634433E-3},{"$f":"'Population at Risk'!AC144/'Population at Risk'!AC$5","v":4.5621250069948468E-3},{"$f":"'Population at Risk'!AD144/'Population at Risk'!AD$5","v":1.2624066223230734E-2},{"$f":"'Population at Risk'!AE144/'Population at Risk'!AE$5","v":1.1574565090861138E-2},{"$f":"'Population at Risk'!AF144/'Population at Risk'!AF$5","v":5.4304165929193052E-3},{"$f":"'Population at Risk'!AG144/'Population at Risk'!AG$5","v":1.3704061123680273E-2},{"$f":"'Population at Risk'!AH144/'Population at Risk'!AH$5","v":7.7498060431071686E-3},{"$f":"'Population at Risk'!AI144/'Population at Risk'!AI$5","v":7.5252807327630331E-3},{"$f":"'Population at Risk'!AJ144/'Population at Risk'!AJ$5","v":9.1646812542288056E-3},{"$f":"'Population at Risk'!AK144/'Population at Risk'!AK$5","v":1.402979720783987E-2},{"$f":"'Population at Risk'!AL144/'Population at Risk'!AL$5","v":3.8669709151929006E-3},{"$f":"'Population at Risk'!AM144/'Population at Risk'!AM$5","v":8.3541239925483627E-3},{"$f":"'Population at Risk'!AN144/'Population at Risk'!AN$5","v":1.2893818735541296E-2},{"$f":"'Population at Risk'!AO144/'Population at Risk'!AO$5","v":1.2893818735541296E-2},{"$f":"'Population at Risk'!AP144/'Population at Risk'!AP$5","v":9.4405396829773981E-3},{"$f":"'Population at Risk'!AQ144/'Population at Risk'!AQ$5","v":6.9846609585923931E-3},{"$f":"'Population at Risk'!AR144/'Population at Risk'!AR$5","v":7.4656288515349807E-3},{"$f":"'Population at Risk'!AS144/'Population at Risk'!AS$5","v":1.6987073210310066E-2},{"$f":"'Population at Risk'!AT144/'Population at Risk'!AT$5","v":1.2919697225981058E-2},{"$f":"'Population at Risk'!AU144/'Population at Risk'!AU$5","v":1.2919697225981058E-2},{"$f":"'Population at Risk'!AV144/'Population at Risk'!AV$5","v":9.2154888037334313E-3},{"$f":"'Population at Risk'!AW144/'Population at Risk'!AW$5","v":6.9809018778175976E-3},{"$f":"'Population at Risk'!AX144/'Population at Risk'!AX$5","v":7.0217165161949964E-3},{"$f":"'Population at Risk'!AY144/'Population at Risk'!AY$5","v":8.9744111783170624E-3},{"$f":"'Population at Risk'!AZ144/'Population at Risk'!AZ$5","v":7.5812502810438604E-3},{"$f":"'Population at Risk'!BA144/'Population at Risk'!BA$5","v":4.7281972634169271E-3},{"$f":"'Population at Risk'!BB144/'Population at Risk'!BB$5","v":1.0144355460209588E-2},{"$f":"'Population at Risk'!BC144/'Population at Risk'!BC$5","v":2.6554404145077717E-2},142]
[null,"Female 45-49",{"$f":"'Population at Risk'!C145/'Population at Risk'!C$5","v":4.7626507278366809E-3},{"$f":"'Population at Risk'!D145/'Population at Risk'!D$5","v":1.0433008336668078E-2},{"$f":"'Population at Risk'!E145/'Population at Risk'!E$5","v":1.1990476522363215E-2},{"$f":"'Population at Risk'!F145/'Population at Risk'!F$5","v":1.0673911617965701E-2},{"$f":"'Population at Risk'!G145/'Population at Risk'!G$5","v":2.0259784113728509E-2},{"$f":"'Population at Risk'!H145/'Population at Risk'!H$5","v":7.7013573430235408E-3},{"$f":"'Population at Risk'!I145/'Population at Risk'!I$5","v":2.281135190988726E-2},{"$f":"'Population at Risk'!J145/'Population at Risk'!J$5","v":8.5956755368687132E-3},{"$f":"'Population at Risk'!K145/'Population at Risk'!K$5","v":9.0015784682388866E-3},{"$f":"'Population at Risk'!L145/'Population at Risk'!L$5","v":2.0139286579891138E-2},{"$f":"'Population at Risk'!M145/'Population at Risk'!M$5","v":2.0139286579891138E-2},{"$f":"'Population at Risk'!N145/'Population at Risk'!N$5","v":4.2427217812441541E-3},{"$f":"'Population at Risk'!O145/'Population at Risk'!O$5","v":7.8833724069039667E-3},{"$f":"'Population at Risk'!P145/'Population at Risk'!P$5","v":4.7752227354111981E-3},{"$f":"'Population at Risk'!Q145/'Population at Risk'!Q$5","v":1.4090658330394575E-2},{"$f":"'Population at Risk'!R145/'Population at Risk'!R$5","v":6.1000071202295149E-3},{"$f":"'Population at Risk'!S145/'Population at Risk'!S$5","v":1.0941803868801002E-2},{"$f":"'Population at Risk'!T145/'Population at Risk'!T$5","v":5.4206965392150901E-3},{"$f":"'Population at Risk'!U145/'Population at Risk'!U$5","v":3.4128301801312627E-2},{"$f":"'Population at Risk'!V145/'Population at Risk'!V$5","v":7.472969669200199E-3},{"$f":"'Population at Risk'!W145/'Population at Risk'!W$5","v":1.0154697589665803E-2},{"$f":"'Population at Risk'!X145/'Population at Risk'!X$5","v":1.0154697589665803E-2},{"$f":"'Population at Risk'!Y145/'Population at Risk'!Y$5","v":8.1621126238973756E-3},{"$f":"'Population at Risk'!Z145/'Population at Risk'!Z$5","v":4.4284617418630665E-3},{"$f":"'Population at Risk'!AA145/'Population at Risk'!AA$5","v":7.3481563621885715E-3},{"$f":"'Population at Risk'!AB145/'Population at Risk'!AB$5","v":9.5911971310548138E-3},{"$f":"'Population at Risk'!AC145/'Population at Risk'!AC$5","v":5.6898688250336272E-3},{"$f":"'Population at Risk'!AD145/'Population at Risk'!AD$5","v":1.6898176649311866E-2},{"$f":"'Population at Risk'!AE145/'Population at Risk'!AE$5","v":1.5789847150825743E-2},{"$f":"'Population at Risk'!AF145/'Population at Risk'!AF$5","v":6.6579063978219914E-3},{"$f":"'Population at Risk'!AG145/'Population at Risk'!AG$5","v":1.8694873525687345E-2},{"$f":"'Population at Risk'!AH145/'Population at Risk'!AH$5","v":9.6645305818126373E-3},{"$f":"'Population at Risk'!AI145/'Population at Risk'!AI$5","v":8.6755209521997868E-3},{"$f":"'Population at Risk'!AJ145/'Population at Risk'!AJ$5","v":1.2574638303778475E-2},{"$f":"'Population at Risk'!AK145/'Population at Risk'!AK$5","v":1.7194417928290594E-2},{"$f":"'Population at Risk'!AL145/'Population at Risk'!AL$5","v":5.1084600369320551E-3},{"$f":"'Population at Risk'!AM145/'Population at Risk'!AM$5","v":9.4889330843302405E-3},{"$f":"'Population at Risk'!AN145/'Population at Risk'!AN$5","v":1.8073463010751141E-2},{"$f":"'Population at Risk'!AO145/'Population at Risk'!AO$5","v":1.8073463010751141E-2},{"$f":"'Population at Risk'!AP145/'Population at Risk'!AP$5","v":1.3005393787508632E-2},{"$f":"'Population at Risk'!AQ145/'Population at Risk'!AQ$5","v":9.7443438762931673E-3},{"$f":"'Population at Risk'!AR145/'Population at Risk'!AR$5","v":9.4473423651566628E-3},{"$f":"'Population at Risk'!AS145/'Population at Risk'!AS$5","v":2.281135190988726E-2},{"$f":"'Population at Risk'!AT145/'Population at Risk'!AT$5","v":1.901029920312735E-2},{"$f":"'Population at Risk'!AU145/'Population at Risk'!AU$5","v":1.901029920312735E-2},{"$f":"'Population at Risk'!AV145/'Population at Risk'!AV$5","v":1.1963478170988145E-2},{"$f":"'Population at Risk'!AW145/'Population at Risk'!AW$5","v":9.640367872224706E-3},{"$f":"'Population at Risk'!AX145/'Population at Risk'!AX$5","v":8.3259376839908E-3},{"$f":"'Population at Risk'!AY145/'Population at Risk'!AY$5","v":1.1536991081595309E-2},{"$f":"'Population at Risk'!AZ145/'Population at Risk'!AZ$5","v":9.6853653082621394E-3},{"$f":"'Population at Risk'!BA145/'Population at Risk'!BA$5","v":7.0629477082812314E-3},{"$f":"'Population at Risk'!BB145/'Population at Risk'!BB$5","v":1.3171776691271694E-2},{"$f":"'Population at Risk'!BC145/'Population at Risk'!BC$5","v":3.4128301801312627E-2},143]
[null,"Female 50-54",{"$f":"'Population at Risk'!C146/'Population at Risk'!C$5","v":5.3001118714249545E-3},{"$f":"'Population at Risk'!D146/'Population at Risk'!D$5","v":1.0769330969414933E-2},{"$f":"'Population at Risk'!E146/'Population at Risk'!E$5","v":1.1961694773629747E-2},{"$f":"'Population at Risk'!F146/'Population at Risk'!F$5","v":1.1978919893519104E-2},{"$f":"'Population at Risk'!G146/'Population at Risk'!G$5","v":2.5238618231321761E-2},{"$f":"'Population at Risk'!H146/'Population at Risk'!H$5","v":8.5520182759597097E-3},{"$f":"'Population at Risk'!I146/'Population at Risk'!I$5","v":2.3444182962871228E-2},{"$f":"'Population at Risk'!J146/'Population at Risk'!J$5","v":9.1169026704873476E-3},{"$f":"'Population at Risk'!K146/'Population at Risk'!K$5","v":9.2764358260477072E-3},{"$f":"'Population at Risk'!L146/'Population at Risk'!L$5","v":2.1797377704415016E-2},{"$f":"'Population at Risk'!M146/'Population at Risk'!M$5","v":2.1797377704415016E-2},{"$f":"'Population at Risk'!N146/'Population at Risk'!N$5","v":5.2242469694424283E-3},{"$f":"'Population at Risk'!O146/'Population at Risk'!O$5","v":8.4101415308675959E-3},{"$f":"'Population at Risk'!P146/'Population at Risk'!P$5","v":4.0974491858689639E-3},{"$f":"'Population at Risk'!Q146/'Population at Risk'!Q$5","v":1.2699542380578549E-2},{"$f":"'Population at Risk'!R146/'Population at Risk'!R$5","v":6.903089290119676E-3},{"$f":"'Population at Risk'!S146/'Population at Risk'!S$5","v":1.1119314585437995E-2},{"$f":"'Population at Risk'!T146/'Population at Risk'!T$5","v":5.3585682121180698E-3},{"$f":"'Population at Risk'!U146/'Population at Risk'!U$5","v":3.4609660077776841E-2},{"$f":"'Population at Risk'!V146/'Population at Risk'!V$5","v":7.916449711570803E-3},{"$f":"'Population at Risk'!W146/'Population at Risk'!W$5","v":1.0969622132033304E-2},{"$f":"'Population at Risk'!X146/'Population at Risk'!X$5","v":1.0969622132033304E-2},{"$f":"'Population at Risk'!Y146/'Population at Risk'!Y$5","v":8.6512870875818972E-3},{"$f":"'Population at Risk'!Z146/'Population at Risk'!Z$5","v":4.6341730224836253E-3},{"$f":"'Population at Risk'!AA146/'Population at Risk'!AA$5","v":7.410989990515488E-3},{"$f":"'Population at Risk'!AB146/'Population at Risk'!AB$5","v":1.0049298552598406E-2},{"$f":"'Population at Risk'!AC146/'Population at Risk'!AC$5","v":5.8163752295580622E-3},{"$f":"'Population at Risk'!AD146/'Population at Risk'!AD$5","v":1.9153422420734017E-2},{"$f":"'Population at Risk'!AE146/'Population at Risk'!AE$5","v":1.7102477326162834E-2},{"$f":"'Population at Risk'!AF146/'Population at Risk'!AF$5","v":7.4339813767092177E-3},{"$f":"'Population at Risk'!AG146/'Population at Risk'!AG$5","v":2.024900225660697E-2},{"$f":"'Population at Risk'!AH146/'Population at Risk'!AH$5","v":9.593425465183672E-3},{"$f":"'Population at Risk'!AI146/'Population at Risk'!AI$5","v":8.4841606997737556E-3},{"$f":"'Population at Risk'!AJ146/'Population at Risk'!AJ$5","v":1.2661459742009397E-2},{"$f":"'Population at Risk'!AK146/'Population at Risk'!AK$5","v":1.881069321354991E-2},{"$f":"'Population at Risk'!AL146/'Population at Risk'!AL$5","v":5.4792353621932527E-3},{"$f":"'Population at Risk'!AM146/'Population at Risk'!AM$5","v":9.2082851833548453E-3},{"$f":"'Population at Risk'!AN146/'Population at Risk'!AN$5","v":1.9741782673282016E-2},{"$f":"'Population at Risk'!AO146/'Population at Risk'!AO$5","v":1.9741782673282016E-2},{"$f":"'Population at Risk'!AP146/'Population at Risk'!AP$5","v":1.4221383856757067E-2},{"$f":"'Population at Risk'!AQ146/'Population at Risk'!AQ$5","v":9.4046717586010291E-3},{"$f":"'Population at Risk'!AR146/'Population at Risk'!AR$5","v":9.925449569913777E-3},{"$f":"'Population at Risk'!AS146/'Population at Risk'!AS$5","v":2.3444182962871228E-2},{"$f":"'Population at Risk'!AT146/'Population at Risk'!AT$5","v":1.9146087054578261E-2},{"$f":"'Population at Risk'!AU146/'Population at Risk'!AU$5","v":1.9146087054578261E-2},{"$f":"'Population at Risk'!AV146/'Population at Risk'!AV$5","v":1.4132821315727413E-2},{"$f":"'Population at Risk'!AW146/'Population at Risk'!AW$5","v":9.7815208644179454E-3},{"$f":"'Population at Risk'!AX146/'Population at Risk'!AX$5","v":9.0108868536061329E-3},{"$f":"'Population at Risk'!AY146/'Population at Risk'!AY$5","v":1.2751028580414728E-2},{"$f":"'Population at Risk'!AZ146/'Population at Risk'!AZ$5","v":1.0925208758867985E-2},{"$f":"'Population at Risk'!BA146/'Population at Risk'!BA$5","v":6.9533502438423852E-3},{"$f":"'Population at Risk'!BB146/'Population at Risk'!BB$5","v":1.3082668730875636E-2},{"$f":"'Population at Risk'!BC146/'Population at Risk'!BC$5","v":3.4609660077776841E-2},144]
[null,"Female 55-59",{"$f":"'Population at Risk'!C147/'Population at Risk'!C$5","v":3.8390154022212414E-3},{"$f":"'Population at Risk'!D147/'Population at Risk'!D$5","v":7.721770780813454E-3},{"$f":"'Population at Risk'!E147/'Population at Risk'!E$5","v":8.5347893872755581E-3},{"$f":"'Population at Risk'!F147/'Population at Risk'!F$5","v":9.2622712433322631E-3},{"$f":"'Population at Risk'!G147/'Population at Risk'!G$5","v":1.853862263443315E-2},{"$f":"'Population at Risk'!H147/'Population at Risk'!H$5","v":6.0263747611698218E-3},{"$f":"'Population at Risk'!I147/'Population at Risk'!I$5","v":1.8398606769667605E-2},{"$f":"'Population at Risk'!J147/'Population at Risk'!J$5","v":6.5387458218503927E-3},{"$f":"'Population at Risk'!K147/'Population at Risk'!K$5","v":7.0401090235817183E-3},{"$f":"'Population at Risk'!L147/'Population at Risk'!L$5","v":1.6118108590791328E-2},{"$f":"'Population at Risk'!M147/'Population at Risk'!M$5","v":1.6118108590791328E-2},{"$f":"'Population at Risk'!N147/'Population at Risk'!N$5","v":4.0212993288864162E-3},{"$f":"'Population at Risk'!O147/'Population at Risk'!O$5","v":5.8434541032645971E-3},{"$f":"'Population at Risk'!P147/'Population at Risk'!P$5","v":3.4221741134527746E-3},{"$f":"'Population at Risk'!Q147/'Population at Risk'!Q$5","v":9.9575527941132211E-3},{"$f":"'Population at Risk'!R147/'Population at Risk'!R$5","v":5.3743405224662725E-3},{"$f":"'Population at Risk'!S147/'Population at Risk'!S$5","v":8.0611615060115129E-3},{"$f":"'Population at Risk'!T147/'Population at Risk'!T$5","v":3.7536547287342569E-3},{"$f":"'Population at Risk'!U147/'Population at Risk'!U$5","v":2.6179123741389684E-2},{"$f":"'Population at Risk'!V147/'Population at Risk'!V$5","v":5.6396092487255595E-3},{"$f":"'Population at Risk'!W147/'Population at Risk'!W$5","v":7.9764988153118149E-3},{"$f":"'Population at Risk'!X147/'Population at Risk'!X$5","v":7.9764988153118149E-3},{"$f":"'Population at Risk'!Y147/'Population at Risk'!Y$5","v":6.1820589954299622E-3},{"$f":"'Population at Risk'!Z147/'Population at Risk'!Z$5","v":3.2954236192387523E-3},{"$f":"'Population at Risk'!AA147/'Population at Risk'!AA$5","v":5.4805160649521144E-3},{"$f":"'Population at Risk'!AB147/'Population at Risk'!AB$5","v":7.1496316844335654E-3},{"$f":"'Population at Risk'!AC147/'Population at Risk'!AC$5","v":4.2757944112499918E-3},{"$f":"'Population at Risk'!AD147/'Population at Risk'!AD$5","v":1.4504848434227486E-2},{"$f":"'Population at Risk'!AE147/'Population at Risk'!AE$5","v":1.315237078547192E-2},{"$f":"'Population at Risk'!AF147/'Population at Risk'!AF$5","v":6.1905736252581478E-3},{"$f":"'Population at Risk'!AG147/'Population at Risk'!AG$5","v":1.5572152538822015E-2},{"$f":"'Population at Risk'!AH147/'Population at Risk'!AH$5","v":7.1447816625867192E-3},{"$f":"'Population at Risk'!AI147/'Population at Risk'!AI$5","v":5.9901408961777463E-3},{"$f":"'Population at Risk'!AJ147/'Population at Risk'!AJ$5","v":8.8030879892091081E-3},{"$f":"'Population at Risk'!AK147/'Population at Risk'!AK$5","v":1.3089146529463552E-2},{"$f":"'Population at Risk'!AL147/'Population at Risk'!AL$5","v":4.177114519957714E-3},{"$f":"'Population at Risk'!AM147/'Population at Risk'!AM$5","v":6.4747174116921392E-3},{"$f":"'Population at Risk'!AN147/'Population at Risk'!AN$5","v":1.3505908767436544E-2},{"$f":"'Population at Risk'!AO147/'Population at Risk'!AO$5","v":1.3505908767436544E-2},{"$f":"'Population at Risk'!AP147/'Population at Risk'!AP$5","v":1.0378632367779835E-2},{"$f":"'Population at Risk'!AQ147/'Population at Risk'!AQ$5","v":6.6040785762928357E-3},{"$f":"'Population at Risk'!AR147/'Population at Risk'!AR$5","v":7.2746873496062573E-3},{"$f":"'Population at Risk'!AS147/'Population at Risk'!AS$5","v":1.8398606769667605E-2},{"$f":"'Population at Risk'!AT147/'Population at Risk'!AT$5","v":1.4164399620357841E-2},{"$f":"'Population at Risk'!AU147/'Population at Risk'!AU$5","v":1.4164399620357841E-2},{"$f":"'Population at Risk'!AV147/'Population at Risk'!AV$5","v":9.4853963804577886E-3},{"$f":"'Population at Risk'!AW147/'Population at Risk'!AW$5","v":7.6703592658172977E-3},{"$f":"'Population at Risk'!AX147/'Population at Risk'!AX$5","v":6.2055710081320072E-3},{"$f":"'Population at Risk'!AY147/'Population at Risk'!AY$5","v":9.4630892246650531E-3},{"$f":"'Population at Risk'!AZ147/'Population at Risk'!AZ$5","v":8.2511947559456202E-3},{"$f":"'Population at Risk'!BA147/'Population at Risk'!BA$5","v":5.2943981588536408E-3},{"$f":"'Population at Risk'!BB147/'Population at Risk'!BB$5","v":8.8693639213419592E-3},{"$f":"'Population at Risk'!BC147/'Population at Risk'!BC$5","v":2.6179123741389684E-2},145]
[null,"Female 60-64",{"$f":"'Population at Risk'!C148/'Population at Risk'!C$5","v":3.5635893523930061E-3},{"$f":"'Population at Risk'!D148/'Population at Risk'!D$5","v":7.370273989490298E-3},{"$f":"'Population at Risk'!E148/'Population at Risk'!E$5","v":8.2551856533207742E-3},{"$f":"'Population at Risk'!F148/'Population at Risk'!F$5","v":8.1810722655113743E-3},{"$f":"'Population at Risk'!G148/'Population at Risk'!G$5","v":1.8364082811378631E-2},{"$f":"'Population at Risk'!H148/'Population at Risk'!H$5","v":5.5394436804673004E-3},{"$f":"'Population at Risk'!I148/'Population at Risk'!I$5","v":1.6582183808330993E-2},{"$f":"'Population at Risk'!J148/'Population at Risk'!J$5","v":6.065451302451421E-3},{"$f":"'Population at Risk'!K148/'Population at Risk'!K$5","v":5.9457915587762698E-3},{"$f":"'Population at Risk'!L148/'Population at Risk'!L$5","v":1.5806575889082523E-2},{"$f":"'Population at Risk'!M148/'Population at Risk'!M$5","v":1.5806575889082523E-2},{"$f":"'Population at Risk'!N148/'Population at Risk'!N$5","v":3.3153659043797098E-3},{"$f":"'Population at Risk'!O148/'Population at Risk'!O$5","v":4.8165104366017595E-3},{"$f":"'Population at Risk'!P148/'Population at Risk'!P$5","v":2.943805688991634E-3},{"$f":"'Population at Risk'!Q148/'Population at Risk'!Q$5","v":8.6830813240532743E-3},{"$f":"'Population at Risk'!R148/'Population at Risk'!R$5","v":4.6668324030529913E-3},{"$f":"'Population at Risk'!S148/'Population at Risk'!S$5","v":6.9079663712907375E-3},{"$f":"'Population at Risk'!T148/'Population at Risk'!T$5","v":3.0631141828111508E-3},{"$f":"'Population at Risk'!U148/'Population at Risk'!U$5","v":2.6562419843020574E-2},{"$f":"'Population at Risk'!V148/'Population at Risk'!V$5","v":5.1125429637979376E-3},{"$f":"'Population at Risk'!W148/'Population at Risk'!W$5","v":6.8923145103179746E-3},{"$f":"'Population at Risk'!X148/'Population at Risk'!X$5","v":6.8923145103179746E-3},{"$f":"'Population at Risk'!Y148/'Population at Risk'!Y$5","v":5.6637461223375115E-3},{"$f":"'Population at Risk'!Z148/'Population at Risk'!Z$5","v":2.4273922706095235E-3},{"$f":"'Population at Risk'!AA148/'Population at Risk'!AA$5","v":4.4631747594819611E-3},{"$f":"'Population at Risk'!AB148/'Population at Risk'!AB$5","v":6.7310979284704838E-3},{"$f":"'Population at Risk'!AC148/'Population at Risk'!AC$5","v":3.3870056853160047E-3},{"$f":"'Population at Risk'!AD148/'Population at Risk'!AD$5","v":1.3639127504827177E-2},{"$f":"'Population at Risk'!AE148/'Population at Risk'!AE$5","v":1.2041822921135715E-2},{"$f":"'Population at Risk'!AF148/'Population at Risk'!AF$5","v":4.3041291229903413E-3},{"$f":"'Population at Risk'!AG148/'Population at Risk'!AG$5","v":1.4257285354252604E-2},{"$f":"'Population at Risk'!AH148/'Population at Risk'!AH$5","v":6.0062685854900127E-3},{"$f":"'Population at Risk'!AI148/'Population at Risk'!AI$5","v":5.0196781196285159E-3},{"$f":"'Population at Risk'!AJ148/'Population at Risk'!AJ$5","v":7.4780158442365324E-3},{"$f":"'Population at Risk'!AK148/'Population at Risk'!AK$5","v":1.18295215496407E-2},{"$f":"'Population at Risk'!AL148/'Population at Risk'!AL$5","v":4.1661796651934271E-3},{"$f":"'Population at Risk'!AM148/'Population at Risk'!AM$5","v":5.4811623611106504E-3},{"$f":"'Population at Risk'!AN148/'Population at Risk'!AN$5","v":1.2232810809850314E-2},{"$f":"'Population at Risk'!AO148/'Population at Risk'!AO$5","v":1.2232810809850314E-2},{"$f":"'Population at Risk'!AP148/'Population at Risk'!AP$5","v":9.3422820511720843E-3},{"$f":"'Population at Risk'!AQ148/'Population at Risk'!AQ$5","v":5.7306722799401154E-3},{"$f":"'Population at Risk'!AR148/'Population at Risk'!AR$5","v":6.4259459552558525E-3},{"$f":"'Population at Risk'!AS148/'Population at Risk'!AS$5","v":1.6582183808330993E-2},{"$f":"'Population at Risk'!AT148/'Population at Risk'!AT$5","v":1.4110337026387009E-2},{"$f":"'Population at Risk'!AU148/'Population at Risk'!AU$5","v":1.4110337026387009E-2},{"$f":"'Population at Risk'!AV148/'Population at Risk'!AV$5","v":8.8925591066791772E-3},{"$f":"'Population at Risk'!AW148/'Population at Risk'!AW$5","v":6.4096863567819802E-3},{"$f":"'Population at Risk'!AX148/'Population at Risk'!AX$5","v":6.1449697287557182E-3},{"$f":"'Population at Risk'!AY148/'Population at Risk'!AY$5","v":8.2546965801329648E-3},{"$f":"'Population at Risk'!AZ148/'Population at Risk'!AZ$5","v":7.2546399839015134E-3},{"$f":"'Population at Risk'!BA148/'Population at Risk'!BA$5","v":4.7707763629230614E-3},{"$f":"'Population at Risk'!BB148/'Population at Risk'!BB$5","v":7.4502656939272466E-3},{"$f":"'Population at Risk'!BC148/'Population at Risk'!BC$5","v":2.6562419843020574E-2},146]
[null,"Female 65-69",{"$f":"'Population at Risk'!C149/'Population at Risk'!C$5","v":3.0172093441151039E-3},{"$f":"'Population at Risk'!D149/'Population at Risk'!D$5","v":6.5145599408692485E-3},{"$f":"'Population at Risk'!E149/'Population at Risk'!E$5","v":7.4402065361343396E-3},{"$f":"'Population at Risk'!F149/'Population at Risk'!F$5","v":7.7730728359214057E-3},{"$f":"'Population at Risk'!G149/'Population at Risk'!G$5","v":1.7396800096020605E-2},{"$f":"'Population at Risk'!H149/'Population at Risk'!H$5","v":5.3525416085153377E-3},{"$f":"'Population at Risk'!I149/'Population at Risk'!I$5","v":1.5921764743521638E-2},{"$f":"'Population at Risk'!J149/'Population at Risk'!J$5","v":5.3741680024008455E-3},{"$f":"'Population at Risk'!K149/'Population at Risk'!K$5","v":5.8719157183357998E-3},{"$f":"'Population at Risk'!L149/'Population at Risk'!L$5","v":1.5279481993834691E-2},{"$f":"'Population at Risk'!M149/'Population at Risk'!M$5","v":1.5279481993834691E-2},{"$f":"'Population at Risk'!N149/'Population at Risk'!N$5","v":3.097558847848575E-3},{"$f":"'Population at Risk'!O149/'Population at Risk'!O$5","v":4.9939281128537965E-3},{"$f":"'Population at Risk'!P149/'Population at Risk'!P$5","v":2.3209919736167269E-3},{"$f":"'Population at Risk'!Q149/'Population at Risk'!Q$5","v":7.8937626413619622E-3},{"$f":"'Population at Risk'!R149/'Population at Risk'!R$5","v":3.9899653301350034E-3},{"$f":"'Population at Risk'!S149/'Population at Risk'!S$5","v":6.4895174219232786E-3},{"$f":"'Population at Risk'!T149/'Population at Risk'!T$5","v":2.6286771977521725E-3},{"$f":"'Population at Risk'!U149/'Population at Risk'!U$5","v":2.4302284503061704E-2},{"$f":"'Population at Risk'!V149/'Population at Risk'!V$5","v":4.8023325333957229E-3},{"$f":"'Population at Risk'!W149/'Population at Risk'!W$5","v":6.7605377990370514E-3},{"$f":"'Population at Risk'!X149/'Population at Risk'!X$5","v":6.7605377990370514E-3},{"$f":"'Population at Risk'!Y149/'Population at Risk'!Y$5","v":5.1806358331002444E-3},{"$f":"'Population at Risk'!Z149/'Population at Risk'!Z$5","v":1.8483763596935556E-3},{"$f":"'Population at Risk'!AA149/'Population at Risk'!AA$5","v":3.7453983936765215E-3},{"$f":"'Population at Risk'!AB149/'Population at Risk'!AB$5","v":6.0191990589186402E-3},{"$f":"'Population at Risk'!AC149/'Population at Risk'!AC$5","v":2.8199437575320055E-3},{"$f":"'Population at Risk'!AD149/'Population at Risk'!AD$5","v":1.2531663967130542E-2},{"$f":"'Population at Risk'!AE149/'Population at Risk'!AE$5","v":1.0881067331090609E-2},{"$f":"'Population at Risk'!AF149/'Population at Risk'!AF$5","v":3.8404769706975807E-3},{"$f":"'Population at Risk'!AG149/'Population at Risk'!AG$5","v":1.2882973193859525E-2},{"$f":"'Population at Risk'!AH149/'Population at Risk'!AH$5","v":5.084480485938625E-3},{"$f":"'Population at Risk'!AI149/'Population at Risk'!AI$5","v":4.5453066753407606E-3},{"$f":"'Population at Risk'!AJ149/'Population at Risk'!AJ$5","v":7.4399062899265494E-3},{"$f":"'Population at Risk'!AK149/'Population at Risk'!AK$5","v":1.0952457494658362E-2},{"$f":"'Population at Risk'!AL149/'Population at Risk'!AL$5","v":3.844079589684175E-3},{"$f":"'Population at Risk'!AM149/'Population at Risk'!AM$5","v":4.8586068807374913E-3},{"$f":"'Population at Risk'!AN149/'Population at Risk'!AN$5","v":1.126816317337683E-2},{"$f":"'Population at Risk'!AO149/'Population at Risk'!AO$5","v":1.126816317337683E-2},{"$f":"'Population at Risk'!AP149/'Population at Risk'!AP$5","v":8.7715799645788541E-3},{"$f":"'Population at Risk'!AQ149/'Population at Risk'!AQ$5","v":5.2655728292128525E-3},{"$f":"'Population at Risk'!AR149/'Population at Risk'!AR$5","v":5.842071556888262E-3},{"$f":"'Population at Risk'!AS149/'Population at Risk'!AS$5","v":1.5921764743521638E-2},{"$f":"'Population at Risk'!AT149/'Population at Risk'!AT$5","v":1.1345039749661705E-2},{"$f":"'Population at Risk'!AU149/'Population at Risk'!AU$5","v":1.1345039749661705E-2},{"$f":"'Population at Risk'!AV149/'Population at Risk'!AV$5","v":8.4514594819703123E-3},{"$f":"'Population at Risk'!AW149/'Population at Risk'!AW$5","v":5.2060495265850533E-3},{"$f":"'Population at Risk'!AX149/'Population at Risk'!AX$5","v":5.0433958157650787E-3},{"$f":"'Population at Risk'!AY149/'Population at Risk'!AY$5","v":7.9257944010772338E-3},{"$f":"'Population at Risk'!AZ149/'Population at Risk'!AZ$5","v":6.8413264475316775E-3},{"$f":"'Population at Risk'!BA149/'Population at Risk'!BA$5","v":4.2175377589119527E-3},{"$f":"'Population at Risk'!BB149/'Population at Risk'!BB$5","v":6.8086267126670564E-3},{"$f":"'Population at Risk'!BC149/'Population at Risk'!BC$5","v":2.4302284503061704E-2},147]
[null,"Female 70-74",{"$f":"'Population at Risk'!C150/'Population at Risk'!C$5","v":2.276207049275752E-3},{"$f":"'Population at Risk'!D150/'Population at Risk'!D$5","v":4.8458919375820803E-3},{"$f":"'Population at Risk'!E150/'Population at Risk'!E$5","v":5.4999979808551085E-3},{"$f":"'Population at Risk'!F150/'Population at Risk'!F$5","v":5.8446181753116595E-3},{"$f":"'Population at Risk'!G150/'Population at Risk'!G$5","v":1.2969336832508935E-2},{"$f":"'Population at Risk'!H150/'Population at Risk'!H$5","v":4.3170539548485981E-3},{"$f":"'Population at Risk'!I150/'Population at Risk'!I$5","v":1.2012262113429196E-2},{"$f":"'Population at Risk'!J150/'Population at Risk'!J$5","v":4.2901924393406506E-3},{"$f":"'Population at Risk'!K150/'Population at Risk'!K$5","v":4.5634108228849255E-3},{"$f":"'Population at Risk'!L150/'Population at Risk'!L$5","v":1.2432456180442768E-2},{"$f":"'Population at Risk'!M150/'Population at Risk'!M$5","v":1.2432456180442768E-2},{"$f":"'Population at Risk'!N150/'Population at Risk'!N$5","v":2.3457790544838659E-3},{"$f":"'Population at Risk'!O150/'Population at Risk'!O$5","v":3.9432575228767639E-3},{"$f":"'Population at Risk'!P150/'Population at Risk'!P$5","v":1.7819938375635532E-3},{"$f":"'Population at Risk'!Q150/'Population at Risk'!Q$5","v":6.2915104137512791E-3},{"$f":"'Population at Risk'!R150/'Population at Risk'!R$5","v":3.1846512268050029E-3},{"$f":"'Population at Risk'!S150/'Population at Risk'!S$5","v":4.9629813442317022E-3},{"$f":"'Population at Risk'!T150/'Population at Risk'!T$5","v":1.9705836095666777E-3},{"$f":"'Population at Risk'!U150/'Population at Risk'!U$5","v":1.9764941427525433E-2},{"$f":"'Population at Risk'!V150/'Population at Risk'!V$5","v":3.4457681268164194E-3},{"$f":"'Population at Risk'!W150/'Population at Risk'!W$5","v":5.1464384449630262E-3},{"$f":"'Population at Risk'!X150/'Population at Risk'!X$5","v":5.1464384449630262E-3},{"$f":"'Population at Risk'!Y150/'Population at Risk'!Y$5","v":3.904492259204426E-3},{"$f":"'Population at Risk'!Z150/'Population at Risk'!Z$5","v":1.4365978965828511E-3},{"$f":"'Population at Risk'!AA150/'Population at Risk'!AA$5","v":2.9720023322230291E-3},{"$f":"'Population at Risk'!AB150/'Population at Risk'!AB$5","v":4.6349210144762528E-3},{"$f":"'Population at Risk'!AC150/'Population at Risk'!AC$5","v":2.1827115185825605E-3},{"$f":"'Population at Risk'!AD150/'Population at Risk'!AD$5","v":9.7955936214742193E-3},{"$f":"'Population at Risk'!AE150/'Population at Risk'!AE$5","v":8.7251631075579393E-3},{"$f":"'Population at Risk'!AF150/'Population at Risk'!AF$5","v":3.1987770211633015E-3},{"$f":"'Population at Risk'!AG150/'Population at Risk'!AG$5","v":1.0330424305485347E-2},{"$f":"'Population at Risk'!AH150/'Population at Risk'!AH$5","v":4.1430625066258336E-3},{"$f":"'Population at Risk'!AI150/'Population at Risk'!AI$5","v":3.5047473107790144E-3},{"$f":"'Population at Risk'!AJ150/'Population at Risk'!AJ$5","v":5.6315957333471804E-3},{"$f":"'Population at Risk'!AK150/'Population at Risk'!AK$5","v":9.2702975431245092E-3},{"$f":"'Population at Risk'!AL150/'Population at Risk'!AL$5","v":3.2017652704894976E-3},{"$f":"'Population at Risk'!AM150/'Population at Risk'!AM$5","v":3.8078045007340655E-3},{"$f":"'Population at Risk'!AN150/'Population at Risk'!AN$5","v":1.1367442144067375E-2},{"$f":"'Population at Risk'!AO150/'Population at Risk'!AO$5","v":1.1367442144067375E-2},{"$f":"'Population at Risk'!AP150/'Population at Risk'!AP$5","v":7.5911817326865709E-3},{"$f":"'Population at Risk'!AQ150/'Population at Risk'!AQ$5","v":4.0173996153783278E-3},{"$f":"'Population at Risk'!AR150/'Population at Risk'!AR$5","v":4.5918772415141241E-3},{"$f":"'Population at Risk'!AS150/'Population at Risk'!AS$5","v":1.2012262113429196E-2},{"$f":"'Population at Risk'!AT150/'Population at Risk'!AT$5","v":1.0472344384303113E-2},{"$f":"'Population at Risk'!AU150/'Population at Risk'!AU$5","v":1.0472344384303113E-2},{"$f":"'Population at Risk'!AV150/'Population at Risk'!AV$5","v":6.7465012784491858E-3},{"$f":"'Population at Risk'!AW150/'Population at Risk'!AW$5","v":4.394221813909833E-3},{"$f":"'Population at Risk'!AX150/'Population at Risk'!AX$5","v":4.108628487843104E-3},{"$f":"'Population at Risk'!AY150/'Population at Risk'!AY$5","v":6.1880117413355574E-3},{"$f":"'Population at Risk'!AZ150/'Population at Risk'!AZ$5","v":5.4559786742038562E-3},{"$f":"'Population at Risk'!BA150/'Population at Risk'!BA$5","v":3.0609758580144482E-3},{"$f":"'Population at Risk'!BB150/'Population at Risk'!BB$5","v":5.3740137774576854E-3},{"$f":"'Population at Risk'!BC150/'Population at Risk'!BC$5","v":1.9764941427525433E-2},148]
[null,"Female 75-79",{"$f":"'Population at Risk'!C151/'Population at Risk'!C$5","v":9.3805971916638257E-4},{"$f":"'Population at Risk'!D151/'Population at Risk'!D$5","v":1.7846016660107726E-3},{"$f":"'Population at Risk'!E151/'Population at Risk'!E$5","v":1.9175342139543434E-3},{"$f":"'Population at Risk'!F151/'Population at Risk'!F$5","v":1.9669808164734341E-3},{"$f":"'Population at Risk'!G151/'Population at Risk'!G$5","v":4.7613331461931986E-3},{"$f":"'Population at Risk'!H151/'Population at Risk'!H$5","v":1.4272432582932348E-3},{"$f":"'Population at Risk'!I151/'Population at Risk'!I$5","v":4.3207447860636071E-3},{"$f":"'Population at Risk'!J151/'Population at Risk'!J$5","v":1.5653307036143495E-3},{"$f":"'Population at Risk'!K151/'Population at Risk'!K$5","v":1.584402478986697E-3},{"$f":"'Population at Risk'!L151/'Population at Risk'!L$5","v":4.2224804434527396E-3},{"$f":"'Population at Risk'!M151/'Population at Risk'!M$5","v":4.2224804434527396E-3},{"$f":"'Population at Risk'!N151/'Population at Risk'!N$5","v":1.0092980015935487E-3},{"$f":"'Population at Risk'!O151/'Population at Risk'!O$5","v":1.2536025653889548E-3},{"$f":"'Population at Risk'!P151/'Population at Risk'!P$5","v":5.8433050502813984E-4},{"$f":"'Population at Risk'!Q151/'Population at Risk'!Q$5","v":2.3888988724663262E-3},{"$f":"'Population at Risk'!R151/'Population at Risk'!R$5","v":1.399828744724337E-3},{"$f":"'Population at Risk'!S151/'Population at Risk'!S$5","v":1.7682931196132134E-3},{"$f":"'Population at Risk'!T151/'Population at Risk'!T$5","v":7.3607646242232656E-4},{"$f":"'Population at Risk'!U151/'Population at Risk'!U$5","v":7.8102670555730627E-3},{"$f":"'Population at Risk'!V151/'Population at Risk'!V$5","v":1.2744296719335213E-3},{"$f":"'Population at Risk'!W151/'Population at Risk'!W$5","v":1.8055953655062645E-3},{"$f":"'Population at Risk'!X151/'Population at Risk'!X$5","v":1.8055953655062645E-3},{"$f":"'Population at Risk'!Y151/'Population at Risk'!Y$5","v":1.4348529498206992E-3},{"$f":"'Population at Risk'!Z151/'Population at Risk'!Z$5","v":5.3595879063840718E-4},{"$f":"'Population at Risk'!AA151/'Population at Risk'!AA$5","v":1.1057188481368575E-3},{"$f":"'Population at Risk'!AB151/'Population at Risk'!AB$5","v":1.6962506604546661E-3},{"$f":"'Population at Risk'!AC151/'Population at Risk'!AC$5","v":8.1801063180296507E-4},{"$f":"'Population at Risk'!AD151/'Population at Risk'!AD$5","v":3.3355801969234926E-3},{"$f":"'Population at Risk'!AE151/'Population at Risk'!AE$5","v":2.8505493045889504E-3},{"$f":"'Population at Risk'!AF151/'Population at Risk'!AF$5","v":1.2846954774039803E-3},{"$f":"'Population at Risk'!AG151/'Population at Risk'!AG$5","v":3.3749952243989608E-3},{"$f":"'Population at Risk'!AH151/'Population at Risk'!AH$5","v":1.5296685211821088E-3},{"$f":"'Population at Risk'!AI151/'Population at Risk'!AI$5","v":1.2575045120452478E-3},{"$f":"'Population at Risk'!AJ151/'Population at Risk'!AJ$5","v":1.9834617928028661E-3},{"$f":"'Population at Risk'!AK151/'Population at Risk'!AK$5","v":3.3379853728410258E-3},{"$f":"'Population at Risk'!AL151/'Population at Risk'!AL$5","v":1.1315852188977706E-3},{"$f":"'Population at Risk'!AM151/'Population at Risk'!AM$5","v":1.3141328777091751E-3},{"$f":"'Population at Risk'!AN151/'Population at Risk'!AN$5","v":4.0993916592375309E-3},{"$f":"'Population at Risk'!AO151/'Population at Risk'!AO$5","v":4.0993916592375309E-3},{"$f":"'Population at Risk'!AP151/'Population at Risk'!AP$5","v":2.5770881662309322E-3},{"$f":"'Population at Risk'!AQ151/'Population at Risk'!AQ$5","v":1.4414486566670978E-3},{"$f":"'Population at Risk'!AR151/'Population at Risk'!AR$5","v":1.6384683469126643E-3},{"$f":"'Population at Risk'!AS151/'Population at Risk'!AS$5","v":4.3207447860636071E-3},{"$f":"'Population at Risk'!AT151/'Population at Risk'!AT$5","v":3.6359663960306723E-3},{"$f":"'Population at Risk'!AU151/'Population at Risk'!AU$5","v":3.6359663960306723E-3},{"$f":"'Population at Risk'!AV151/'Population at Risk'!AV$5","v":2.1645961381547576E-3},{"$f":"'Population at Risk'!AW151/'Population at Risk'!AW$5","v":1.7146960031965753E-3},{"$f":"'Population at Risk'!AX151/'Population at Risk'!AX$5","v":1.5526567874094544E-3},{"$f":"'Population at Risk'!AY151/'Population at Risk'!AY$5","v":2.1771686530411539E-3},{"$f":"'Population at Risk'!AZ151/'Population at Risk'!AZ$5","v":1.9240576075581881E-3},{"$f":"'Population at Risk'!BA151/'Population at Risk'!BA$5","v":1.1179699832723879E-3},{"$f":"'Population at Risk'!BB151/'Population at Risk'!BB$5","v":1.7869383545859798E-3},{"$f":"'Population at Risk'!BC151/'Population at Risk'!BC$5","v":7.8102670555730627E-3},149]
[null,"Female 80-84",{"$f":"'Population at Risk'!C152/'Population at Risk'!C$5","v":8.4985157197533026E-4},{"$f":"'Population at Risk'!D152/'Population at Risk'!D$5","v":1.3166741953859204E-3},{"$f":"'Population at Risk'!E152/'Population at Risk'!E$5","v":1.2441035378574592E-3},{"$f":"'Population at Risk'!F152/'Population at Risk'!F$5","v":1.5004841436178763E-3},{"$f":"'Population at Risk'!G152/'Population at Risk'!G$5","v":3.3738587073654119E-3},{"$f":"'Population at Risk'!H152/'Population at Risk'!H$5","v":1.043171035980383E-3},{"$f":"'Population at Risk'!I152/'Population at Risk'!I$5","v":3.1901264435648781E-3},{"$f":"'Population at Risk'!J152/'Population at Risk'!J$5","v":1.125172535558918E-3},{"$f":"'Population at Risk'!K152/'Population at Risk'!K$5","v":1.0806062990324017E-3},{"$f":"'Population at Risk'!L152/'Population at Risk'!L$5","v":3.1208347018768139E-3},{"$f":"'Population at Risk'!M152/'Population at Risk'!M$5","v":3.1208347018768139E-3},{"$f":"'Population at Risk'!N152/'Population at Risk'!N$5","v":1.001728266581597E-3},{"$f":"'Population at Risk'!O152/'Population at Risk'!O$5","v":9.2065962077064116E-4},{"$f":"'Population at Risk'!P152/'Population at Risk'!P$5","v":3.8300654951424289E-4},{"$f":"'Population at Risk'!Q152/'Population at Risk'!Q$5","v":1.8596218767701937E-3},{"$f":"'Population at Risk'!R152/'Population at Risk'!R$5","v":1.3617011135450747E-3},{"$f":"'Population at Risk'!S152/'Population at Risk'!S$5","v":1.3021538016429791E-3},{"$f":"'Population at Risk'!T152/'Population at Risk'!T$5","v":5.834148642741982E-4},{"$f":"'Population at Risk'!U152/'Population at Risk'!U$5","v":5.8461920396332741E-3},{"$f":"'Population at Risk'!V152/'Population at Risk'!V$5","v":8.8408283533136659E-4},{"$f":"'Population at Risk'!W152/'Population at Risk'!W$5","v":1.307426365905365E-3},{"$f":"'Population at Risk'!X152/'Population at Risk'!X$5","v":1.307426365905365E-3},{"$f":"'Population at Risk'!Y152/'Population at Risk'!Y$5","v":1.0123195658244197E-3},{"$f":"'Population at Risk'!Z152/'Population at Risk'!Z$5","v":4.8380865783062381E-4},{"$f":"'Population at Risk'!AA152/'Population at Risk'!AA$5","v":8.8668572220090424E-4},{"$f":"'Population at Risk'!AB152/'Population at Risk'!AB$5","v":1.2965903326629007E-3},{"$f":"'Population at Risk'!AC152/'Population at Risk'!AC$5","v":6.756265286563738E-4},{"$f":"'Population at Risk'!AD152/'Population at Risk'!AD$5","v":2.4208401660947244E-3},{"$f":"'Population at Risk'!AE152/'Population at Risk'!AE$5","v":2.097376644293888E-3},{"$f":"'Population at Risk'!AF152/'Population at Risk'!AF$5","v":9.3748048351101256E-4},{"$f":"'Population at Risk'!AG152/'Population at Risk'!AG$5","v":2.4832533669430887E-3},{"$f":"'Population at Risk'!AH152/'Population at Risk'!AH$5","v":1.1878363085991628E-3},{"$f":"'Population at Risk'!AI152/'Population at Risk'!AI$5","v":9.3550335667461559E-4},{"$f":"'Population at Risk'!AJ152/'Population at Risk'!AJ$5","v":1.3699724475870958E-3},{"$f":"'Population at Risk'!AK152/'Population at Risk'!AK$5","v":2.784395023650642E-3},{"$f":"'Population at Risk'!AL152/'Population at Risk'!AL$5","v":7.8576226998897407E-4},{"$f":"'Population at Risk'!AM152/'Population at Risk'!AM$5","v":1.0082675437069475E-3},{"$f":"'Population at Risk'!AN152/'Population at Risk'!AN$5","v":2.3488406263739363E-3},{"$f":"'Population at Risk'!AO152/'Population at Risk'!AO$5","v":2.3488406263739363E-3},{"$f":"'Population at Risk'!AP152/'Population at Risk'!AP$5","v":2.0319931369458936E-3},{"$f":"'Population at Risk'!AQ152/'Population at Risk'!AQ$5","v":1.0241278405741195E-3},{"$f":"'Population at Risk'!AR152/'Population at Risk'!AR$5","v":1.241942345578389E-3},{"$f":"'Population at Risk'!AS152/'Population at Risk'!AS$5","v":3.1901264435648781E-3},{"$f":"'Population at Risk'!AT152/'Population at Risk'!AT$5","v":2.6836894827845436E-3},{"$f":"'Population at Risk'!AU152/'Population at Risk'!AU$5","v":2.6836894827845436E-3},{"$f":"'Population at Risk'!AV152/'Population at Risk'!AV$5","v":1.6531131187420077E-3},{"$f":"'Population at Risk'!AW152/'Population at Risk'!AW$5","v":1.3437865840654013E-3},{"$f":"'Population at Risk'!AX152/'Population at Risk'!AX$5","v":1.1547884856357819E-3},{"$f":"'Population at Risk'!AY152/'Population at Risk'!AY$5","v":1.6887830291684306E-3},{"$f":"'Population at Risk'!AZ152/'Population at Risk'!AZ$5","v":1.5734680869929699E-3},{"$f":"'Population at Risk'!BA152/'Population at Risk'!BA$5","v":9.432871733860771E-4},{"$f":"'Population at Risk'!BB152/'Population at Risk'!BB$5","v":1.2317479698518965E-3},{"$f":"'Population at Risk'!BC152/'Population at Risk'!BC$5","v":5.8461920396332741E-3},150]
[null,"Female 85-89",{"$f":"'Population at Risk'!C153/'Population at Risk'!C$5","v":5.6147878308150558E-4},{"$f":"'Population at Risk'!D153/'Population at Risk'!D$5","v":9.1575304513694209E-4},{"$f":"'Population at Risk'!E153/'Population at Risk'!E$5","v":8.9729591447241532E-4},{"$f":"'Population at Risk'!F153/'Population at Risk'!F$5","v":9.8108578621168823E-4},{"$f":"'Population at Risk'!G153/'Population at Risk'!G$5","v":2.0313025057658615E-3},{"$f":"'Population at Risk'!H153/'Population at Risk'!H$5","v":5.8865340605738549E-4},{"$f":"'Population at Risk'!I153/'Population at Risk'!I$5","v":1.8624708795518482E-3},{"$f":"'Population at Risk'!J153/'Population at Risk'!J$5","v":7.0833400554615807E-4},{"$f":"'Population at Risk'!K153/'Population at Risk'!K$5","v":7.8855054253715794E-4},{"$f":"'Population at Risk'!L153/'Population at Risk'!L$5","v":2.1290565949054954E-3},{"$f":"'Population at Risk'!M153/'Population at Risk'!M$5","v":2.1290565949054954E-3},{"$f":"'Population at Risk'!N153/'Population at Risk'!N$5","v":5.6016039088441954E-4},{"$f":"'Population at Risk'!O153/'Population at Risk'!O$5","v":4.1690246978293188E-4},{"$f":"'Population at Risk'!P153/'Population at Risk'!P$5","v":2.4551701891938646E-4},{"$f":"'Population at Risk'!Q153/'Population at Risk'!Q$5","v":1.4400148891912782E-3},{"$f":"'Population at Risk'!R153/'Population at Risk'!R$5","v":8.3880788594376606E-4},{"$f":"'Population at Risk'!S153/'Population at Risk'!S$5","v":8.3014892600768617E-4},{"$f":"'Population at Risk'!T153/'Population at Risk'!T$5","v":4.0517213346341065E-4},{"$f":"'Population at Risk'!U153/'Population at Risk'!U$5","v":3.7593623351972502E-3},{"$f":"'Population at Risk'!V153/'Population at Risk'!V$5","v":4.6419623812148124E-4},{"$f":"'Population at Risk'!W153/'Population at Risk'!W$5","v":8.7126123320758174E-4},{"$f":"'Population at Risk'!X153/'Population at Risk'!X$5","v":8.7126123320758174E-4},{"$f":"'Population at Risk'!Y153/'Population at Risk'!Y$5","v":5.822409428282066E-4},{"$f":"'Population at Risk'!Z153/'Population at Risk'!Z$5","v":2.9173094095443164E-4},{"$f":"'Population at Risk'!AA153/'Population at Risk'!AA$5","v":5.3239910256998671E-4},{"$f":"'Population at Risk'!AB153/'Population at Risk'!AB$5","v":8.3621237814892474E-4},{"$f":"'Population at Risk'!AC153/'Population at Risk'!AC$5","v":4.14744108729831E-4},{"$f":"'Population at Risk'!AD153/'Population at Risk'!AD$5","v":1.5705184472961519E-3},{"$f":"'Population at Risk'!AE153/'Population at Risk'!AE$5","v":1.4156856485175705E-3},{"$f":"'Population at Risk'!AF153/'Population at Risk'!AF$5","v":7.595327991408667E-4},{"$f":"'Population at Risk'!AG153/'Population at Risk'!AG$5","v":1.676144417255019E-3},{"$f":"'Population at Risk'!AH153/'Population at Risk'!AH$5","v":6.9530387326459495E-4},{"$f":"'Population at Risk'!AI153/'Population at Risk'!AI$5","v":5.9700214210020911E-4},{"$f":"'Population at Risk'!AJ153/'Population at Risk'!AJ$5","v":7.1496878577777733E-4},{"$f":"'Population at Risk'!AK153/'Population at Risk'!AK$5","v":1.4689328077527011E-3},{"$f":"'Population at Risk'!AL153/'Population at Risk'!AL$5","v":4.9684689495124539E-4},{"$f":"'Population at Risk'!AM153/'Population at Risk'!AM$5","v":5.331486651975586E-4},{"$f":"'Population at Risk'!AN153/'Population at Risk'!AN$5","v":1.7283921590298776E-3},{"$f":"'Population at Risk'!AO153/'Population at Risk'!AO$5","v":1.7283921590298776E-3},{"$f":"'Population at Risk'!AP153/'Population at Risk'!AP$5","v":1.386964018958598E-3},{"$f":"'Population at Risk'!AQ153/'Population at Risk'!AQ$5","v":5.8424914253016943E-4},{"$f":"'Population at Risk'!AR153/'Population at Risk'!AR$5","v":7.7795262576536937E-4},{"$f":"'Population at Risk'!AS153/'Population at Risk'!AS$5","v":1.8624708795518482E-3},{"$f":"'Population at Risk'!AT153/'Population at Risk'!AT$5","v":1.5799139697038041E-3},{"$f":"'Population at Risk'!AU153/'Population at Risk'!AU$5","v":1.5799139697038041E-3},{"$f":"'Population at Risk'!AV153/'Population at Risk'!AV$5","v":9.7795553311717798E-4},{"$f":"'Population at Risk'!AW153/'Population at Risk'!AW$5","v":8.4397094058044218E-4},{"$f":"'Population at Risk'!AX153/'Population at Risk'!AX$5","v":6.5502708218836362E-4},{"$f":"'Population at Risk'!AY153/'Population at Risk'!AY$5","v":1.1024885435703339E-3},{"$f":"'Population at Risk'!AZ153/'Population at Risk'!AZ$5","v":1.0117808975463067E-3},{"$f":"'Population at Risk'!BA153/'Population at Risk'!BA$5","v":5.2016658943923599E-4},{"$f":"'Population at Risk'!BB153/'Population at Risk'!BB$5","v":6.3524109137016039E-4},{"$f":"'Population at Risk'!BC153/'Population at Risk'!BC$5","v":3.7593623351972502E-3},151]
[null,"Female 90+",{"$f":"'Population at Risk'!C154/'Population at Risk'!C$5","v":3.2229899935192169E-4},{"$f":"'Population at Risk'!D154/'Population at Risk'!D$5","v":5.1259835087543468E-4},{"$f":"'Population at Risk'!E154/'Population at Risk'!E$5","v":4.9360450100834302E-4},{"$f":"'Population at Risk'!F154/'Population at Risk'!F$5","v":6.5886643485784952E-4},{"$f":"'Population at Risk'!G154/'Population at Risk'!G$5","v":1.3525380320947137E-3},{"$f":"'Population at Risk'!H154/'Population at Risk'!H$5","v":3.5029702688332939E-4},{"$f":"'Population at Risk'!I154/'Population at Risk'!I$5","v":1.0883960807456642E-3},{"$f":"'Population at Risk'!J154/'Population at Risk'!J$5","v":4.139235752574258E-4},{"$f":"'Population at Risk'!K154/'Population at Risk'!K$5","v":3.2856272605714915E-4},{"$f":"'Population at Risk'!L154/'Population at Risk'!L$5","v":1.2263603538298043E-3},{"$f":"'Population at Risk'!M154/'Population at Risk'!M$5","v":1.2263603538298043E-3},{"$f":"'Population at Risk'!N154/'Population at Risk'!N$5","v":3.3306834052587107E-4},{"$f":"'Population at Risk'!O154/'Population at Risk'!O$5","v":2.8083013589544716E-4},{"$f":"'Population at Risk'!P154/'Population at Risk'!P$5","v":2.3078599778422328E-4},{"$f":"'Population at Risk'!Q154/'Population at Risk'!Q$5","v":8.2014093026788032E-4},{"$f":"'Population at Risk'!R154/'Population at Risk'!R$5","v":4.4663796524278452E-4},{"$f":"'Population at Risk'!S154/'Population at Risk'!S$5","v":4.8511612218071765E-4},{"$f":"'Population at Risk'!T154/'Population at Risk'!T$5","v":2.3930737007003887E-4},{"$f":"'Population at Risk'!U154/'Population at Risk'!U$5","v":2.6392258026690903E-3},{"$f":"'Population at Risk'!V154/'Population at Risk'!V$5","v":2.1943822165742749E-4},{"$f":"'Population at Risk'!W154/'Population at Risk'!W$5","v":4.8213351678112808E-4},{"$f":"'Population at Risk'!X154/'Population at Risk'!X$5","v":4.8213351678112808E-4},{"$f":"'Population at Risk'!Y154/'Population at Risk'!Y$5","v":3.0935479899727602E-4},{"$f":"'Population at Risk'!Z154/'Population at Risk'!Z$5","v":1.9775743431070322E-4},{"$f":"'Population at Risk'!AA154/'Population at Risk'!AA$5","v":3.3662613160068339E-4},{"$f":"'Population at Risk'!AB154/'Population at Risk'!AB$5","v":4.8343528111734712E-4},{"$f":"'Population at Risk'!AC154/'Population at Risk'!AC$5","v":3.0431112241134195E-4},{"$f":"'Population at Risk'!AD154/'Population at Risk'!AD$5","v":8.5805191624219624E-4},{"$f":"'Population at Risk'!AE154/'Population at Risk'!AE$5","v":6.8866481670497575E-4},{"$f":"'Population at Risk'!AF154/'Population at Risk'!AF$5","v":6.6404867582030053E-4},{"$f":"'Population at Risk'!AG154/'Population at Risk'!AG$5","v":8.1536581873858688E-4},{"$f":"'Population at Risk'!AH154/'Population at Risk'!AH$5","v":3.5653467333920198E-4},{"$f":"'Population at Risk'!AI154/'Population at Risk'!AI$5","v":3.6150129710088032E-4},{"$f":"'Population at Risk'!AJ154/'Population at Risk'!AJ$5","v":5.0278450096630787E-4},{"$f":"'Population at Risk'!AK154/'Population at Risk'!AK$5","v":9.3178573626104169E-4},{"$f":"'Population at Risk'!AL154/'Population at Risk'!AL$5","v":3.2612417333804217E-4},{"$f":"'Population at Risk'!AM154/'Population at Risk'!AM$5","v":2.4058182397803665E-4},{"$f":"'Population at Risk'!AN154/'Population at Risk'!AN$5","v":1.4846445468589976E-3},{"$f":"'Population at Risk'!AO154/'Population at Risk'!AO$5","v":1.4846445468589976E-3},{"$f":"'Population at Risk'!AP154/'Population at Risk'!AP$5","v":8.7215204685606152E-4},{"$f":"'Population at Risk'!AQ154/'Population at Risk'!AQ$5","v":5.4815653140861465E-4},{"$f":"'Population at Risk'!AR154/'Population at Risk'!AR$5","v":4.6696496649344956E-4},{"$f":"'Population at Risk'!AS154/'Population at Risk'!AS$5","v":1.0883960807456642E-3},{"$f":"'Population at Risk'!AT154/'Population at Risk'!AT$5","v":1.2769167700345814E-3},{"$f":"'Population at Risk'!AU154/'Population at Risk'!AU$5","v":1.2769167700345814E-3},{"$f":"'Population at Risk'!AV154/'Population at Risk'!AV$5","v":4.787481061703339E-4},{"$f":"'Population at Risk'!AW154/'Population at Risk'!AW$5","v":4.6576494271226125E-4},{"$f":"'Population at Risk'!AX154/'Population at Risk'!AX$5","v":4.706490886834909E-4},{"$f":"'Population at Risk'!AY154/'Population at Risk'!AY$5","v":6.6334702174883472E-4},{"$f":"'Population at Risk'!AZ154/'Population at Risk'!AZ$5","v":6.4538230045692736E-4},{"$f":"'Population at Risk'!BA154/'Population at Risk'!BA$5","v":2.8337433603779273E-4},{"$f":"'Population at Risk'!BB154/'Population at Risk'!BB$5","v":3.9250669060270077E-4},{"$f":"'Population at Risk'!BC154/'Population at Risk'!BC$5","v":2.6392258026690903E-3},152]
[null,"Male 0-4",{"$f":"'Population at Risk'!C155/'Population at Risk'!C$5","v":0},{"$f":"'Population at Risk'!D155/'Population at Risk'!D$5","v":0},{"$f":"'Population at Risk'!E155/'Population at Risk'!E$5","v":0},{"$f":"'Population at Risk'!F155/'Population at Risk'!F$5","v":0},{"$f":"'Population at Risk'!G155/'Population at Risk'!G$5","v":0},{"$f":"'Population at Risk'!H155/'Population at Risk'!H$5","v":0},{"$f":"'Population at Risk'!I155/'Population at Risk'!I$5","v":0},{"$f":"'Population at Risk'!J155/'Population at Risk'!J$5","v":0},{"$f":"'Population at Risk'!K155/'Population at Risk'!K$5","v":0},{"$f":"'Population at Risk'!L155/'Population at Risk'!L$5","v":0},{"$f":"'Population at Risk'!M155/'Population at Risk'!M$5","v":0},{"$f":"'Population at Risk'!N155/'Population at Risk'!N$5","v":0},{"$f":"'Population at Risk'!O155/'Population at Risk'!O$5","v":0},{"$f":"'Population at Risk'!P155/'Population at Risk'!P$5","v":0},{"$f":"'Population at Risk'!Q155/'Population at Risk'!Q$5","v":0},{"$f":"'Population at Risk'!R155/'Population at Risk'!R$5","v":0},{"$f":"'Population at Risk'!S155/'Population at Risk'!S$5","v":0},{"$f":"'Population at Risk'!T155/'Population at Risk'!T$5","v":0},{"$f":"'Population at Risk'!U155/'Population at Risk'!U$5","v":0},{"$f":"'Population at Risk'!V155/'Population at Risk'!V$5","v":0},{"$f":"'Population at Risk'!W155/'Population at Risk'!W$5","v":0},{"$f":"'Population at Risk'!X155/'Population at Risk'!X$5","v":0},{"$f":"'Population at Risk'!Y155/'Population at Risk'!Y$5","v":0},{"$f":"'Population at Risk'!Z155/'Population at Risk'!Z$5","v":0},{"$f":"'Population at Risk'!AA155/'Population at Risk'!AA$5","v":0},{"$f":"'Population at Risk'!AB155/'Population at Risk'!AB$5","v":0},{"$f":"'Population at Risk'!AC155/'Population at Risk'!AC$5","v":0},{"$f":"'Population at Risk'!AD155/'Population at Risk'!AD$5","v":0},{"$f":"'Population at Risk'!AE155/'Population at Risk'!AE$5","v":0},{"$f":"'Population at Risk'!AF155/'Population at Risk'!AF$5","v":0},{"$f":"'Population at Risk'!AG155/'Population at Risk'!AG$5","v":0},{"$f":"'Population at Risk'!AH155/'Population at Risk'!AH$5","v":0},{"$f":"'Population at Risk'!AI155/'Population at Risk'!AI$5","v":0},{"$f":"'Population at Risk'!AJ155/'Population at Risk'!AJ$5","v":0},{"$f":"'Population at Risk'!AK155/'Population at Risk'!AK$5","v":0},{"$f":"'Population at Risk'!AL155/'Population at Risk'!AL$5","v":0},{"$f":"'Population at Risk'!AM155/'Population at Risk'!AM$5","v":0},{"$f":"'Population at Risk'!AN155/'Population at Risk'!AN$5","v":0},{"$f":"'Population at Risk'!AO155/'Population at Risk'!AO$5","v":0},{"$f":"'Population at Risk'!AP155/'Population at Risk'!AP$5","v":0},{"$f":"'Population at Risk'!AQ155/'Population at Risk'!AQ$5","v":0},{"$f":"'Population at Risk'!AR155/'Population at Risk'!AR$5","v":0},{"$f":"'Population at Risk'!AS155/'Population at Risk'!AS$5","v":0},{"$f":"'Population at Risk'!AT155/'Population at Risk'!AT$5","v":0},{"$f":"'Population at Risk'!AU155/'Population at Risk'!AU$5","v":0},{"$f":"'Population at Risk'!AV155/'Population at Risk'!AV$5","v":0},{"$f":"'Population at Risk'!AW155/'Population at Risk'!AW$5","v":0},{"$f":"'Population at Risk'!AX155/'Population at Risk'!AX$5","v":0},{"$f":"'Population at Risk'!AY155/'Population at Risk'!AY$5","v":0},{"$f":"'Population at Risk'!AZ155/'Population at Risk'!AZ$5","v":0},{"$f":"'Population at Risk'!BA155/'Population at Risk'!BA$5","v":0},{"$f":"'Population at Risk'!BB155/'Population at Risk'!BB$5","v":0},{"$f":"'Population at Risk'!BC155/'Population at Risk'!BC$5","v":0},153]
[null,"Male 5-9",{"$f":"'Population at Risk'!C156/'Population at Risk'!C$5","v":0},{"$f":"'Population at Risk'!D156/'Population at Risk'!D$5","v":0},{"$f":"'Population at Risk'!E156/'Population at Risk'!E$5","v":0},{"$f":"'Population at Risk'!F156/'Population at Risk'!F$5","v":0},{"$f":"'Population at Risk'!G156/'Population at Risk'!G$5","v":0},{"$f":"'Population at Risk'!H156/'Population at Risk'!H$5","v":0},{"$f":"'Population at Risk'!I156/'Population at Risk'!I$5","v":0},{"$f":"'Population at Risk'!J156/'Population at Risk'!J$5","v":0},{"$f":"'Population at Risk'!K156/'Population at Risk'!K$5","v":0},{"$f":"'Population at Risk'!L156/'Population at Risk'!L$5","v":0},{"$f":"'Population at Risk'!M156/'Population at Risk'!M$5","v":0},{"$f":"'Population at Risk'!N156/'Population at Risk'!N$5","v":0},{"$f":"'Population at Risk'!O156/'Population at Risk'!O$5","v":0},{"$f":"'Population at Risk'!P156/'Population at Risk'!P$5","v":0},{"$f":"'Population at Risk'!Q156/'Population at Risk'!Q$5","v":0},{"$f":"'Population at Risk'!R156/'Population at Risk'!R$5","v":0},{"$f":"'Population at Risk'!S156/'Population at Risk'!S$5","v":0},{"$f":"'Population at Risk'!T156/'Population at Risk'!T$5","v":0},{"$f":"'Population at Risk'!U156/'Population at Risk'!U$5","v":0},{"$f":"'Population at Risk'!V156/'Population at Risk'!V$5","v":0},{"$f":"'Population at Risk'!W156/'Population at Risk'!W$5","v":0},{"$f":"'Population at Risk'!X156/'Population at Risk'!X$5","v":0},{"$f":"'Population at Risk'!Y156/'Population at Risk'!Y$5","v":0},{"$f":"'Population at Risk'!Z156/'Population at Risk'!Z$5","v":0},{"$f":"'Population at Risk'!AA156/'Population at Risk'!AA$5","v":0},{"$f":"'Population at Risk'!AB156/'Population at Risk'!AB$5","v":0},{"$f":"'Population at Risk'!AC156/'Population at Risk'!AC$5","v":0},{"$f":"'Population at Risk'!AD156/'Population at Risk'!AD$5","v":0},{"$f":"'Population at Risk'!AE156/'Population at Risk'!AE$5","v":0},{"$f":"'Population at Risk'!AF156/'Population at Risk'!AF$5","v":0},{"$f":"'Population at Risk'!AG156/'Population at Risk'!AG$5","v":0},{"$f":"'Population at Risk'!AH156/'Population at Risk'!AH$5","v":0},{"$f":"'Population at Risk'!AI156/'Population at Risk'!AI$5","v":0},{"$f":"'Population at Risk'!AJ156/'Population at Risk'!AJ$5","v":0},{"$f":"'Population at Risk'!AK156/'Population at Risk'!AK$5","v":0},{"$f":"'Population at Risk'!AL156/'Population at Risk'!AL$5","v":0},{"$f":"'Population at Risk'!AM156/'Population at Risk'!AM$5","v":0},{"$f":"'Population at Risk'!AN156/'Population at Risk'!AN$5","v":0},{"$f":"'Population at Risk'!AO156/'Population at Risk'!AO$5","v":0},{"$f":"'Population at Risk'!AP156/'Population at Risk'!AP$5","v":0},{"$f":"'Population at Risk'!AQ156/'Population at Risk'!AQ$5","v":0},{"$f":"'Population at Risk'!AR156/'Population at Risk'!AR$5","v":0},{"$f":"'Population at Risk'!AS156/'Population at Risk'!AS$5","v":0},{"$f":"'Population at Risk'!AT156/'Population at Risk'!AT$5","v":0},{"$f":"'Population at Risk'!AU156/'Population at Risk'!AU$5","v":0},{"$f":"'Population at Risk'!AV156/'Population at Risk'!AV$5","v":0},{"$f":"'Population at Risk'!AW156/'Population at Risk'!AW$5","v":0},{"$f":"'Population at Risk'!AX156/'Population at Risk'!AX$5","v":0},{"$f":"'Population at Risk'!AY156/'Population at Risk'!AY$5","v":0},{"$f":"'Population at Risk'!AZ156/'Population at Risk'!AZ$5","v":0},{"$f":"'Population at Risk'!BA156/'Population at Risk'!BA$5","v":0},{"$f":"'Population at Risk'!BB156/'Population at Risk'!BB$5","v":0},{"$f":"'Population at Risk'!BC156/'Population at Risk'!BC$5","v":0},154]
[null,"Male 10-15",{"$f":"'Population at Risk'!C157/'Population at Risk'!C$5","v":0},{"$f":"'Population at Risk'!D157/'Population at Risk'!D$5","v":0},{"$f":"'Population at Risk'!E157/'Population at Risk'!E$5","v":0},{"$f":"'Population at Risk'!F157/'Population at Risk'!F$5","v":0},{"$f":"'Population at Risk'!G157/'Population at Risk'!G$5","v":0},{"$f":"'Population at Risk'!H157/'Population at Risk'!H$5","v":0},{"$f":"'Population at Risk'!I157/'Population at Risk'!I$5","v":0},{"$f":"'Population at Risk'!J157/'Population at Risk'!J$5","v":0},{"$f":"'Population at Risk'!K157/'Population at Risk'!K$5","v":0},{"$f":"'Population at Risk'!L157/'Population at Risk'!L$5","v":0},{"$f":"'Population at Risk'!M157/'Population at Risk'!M$5","v":0},{"$f":"'Population at Risk'!N157/'Population at Risk'!N$5","v":0},{"$f":"'Population at Risk'!O157/'Population at Risk'!O$5","v":0},{"$f":"'Population at Risk'!P157/'Population at Risk'!P$5","v":0},{"$f":"'Population at Risk'!Q157/'Population at Risk'!Q$5","v":0},{"$f":"'Population at Risk'!R157/'Population at Risk'!R$5","v":0},{"$f":"'Population at Risk'!S157/'Population at Risk'!S$5","v":0},{"$f":"'Population at Risk'!T157/'Population at Risk'!T$5","v":0},{"$f":"'Population at Risk'!U157/'Population at Risk'!U$5","v":0},{"$f":"'Population at Risk'!V157/'Population at Risk'!V$5","v":0},{"$f":"'Population at Risk'!W157/'Population at Risk'!W$5","v":0},{"$f":"'Population at Risk'!X157/'Population at Risk'!X$5","v":0},{"$f":"'Population at Risk'!Y157/'Population at Risk'!Y$5","v":0},{"$f":"'Population at Risk'!Z157/'Population at Risk'!Z$5","v":0},{"$f":"'Population at Risk'!AA157/'Population at Risk'!AA$5","v":0},{"$f":"'Population at Risk'!AB157/'Population at Risk'!AB$5","v":0},{"$f":"'Population at Risk'!AC157/'Population at Risk'!AC$5","v":0},{"$f":"'Population at Risk'!AD157/'Population at Risk'!AD$5","v":0},{"$f":"'Population at Risk'!AE157/'Population at Risk'!AE$5","v":0},{"$f":"'Population at Risk'!AF157/'Population at Risk'!AF$5","v":0},{"$f":"'Population at Risk'!AG157/'Population at Risk'!AG$5","v":0},{"$f":"'Population at Risk'!AH157/'Population at Risk'!AH$5","v":0},{"$f":"'Population at Risk'!AI157/'Population at Risk'!AI$5","v":0},{"$f":"'Population at Risk'!AJ157/'Population at Risk'!AJ$5","v":0},{"$f":"'Population at Risk'!AK157/'Population at Risk'!AK$5","v":0},{"$f":"'Population at Risk'!AL157/'Population at Risk'!AL$5","v":0},{"$f":"'Population at Risk'!AM157/'Population at Risk'!AM$5","v":0},{"$f":"'Population at Risk'!AN157/'Population at Risk'!AN$5","v":0},{"$f":"'Population at Risk'!AO157/'Population at Risk'!AO$5","v":0},{"$f":"'Population at Risk'!AP157/'Population at Risk'!AP$5","v":0},{"$f":"'Population at Risk'!AQ157/'Population at Risk'!AQ$5","v":0},{"$f":"'Population at Risk'!AR157/'Population at Risk'!AR$5","v":0},{"$f":"'Population at Risk'!AS157/'Population at Risk'!AS$5","v":0},{"$f":"'Population at Risk'!AT157/'Population at Risk'!AT$5","v":0},{"$f":"'Population at Risk'!AU157/'Population at Risk'!AU$5","v":0},{"$f":"'Population at Risk'!AV157/'Population at Risk'!AV$5","v":0},{"$f":"'Population at Risk'!AW157/'Population at Risk'!AW$5","v":0},{"$f":"'Population at Risk'!AX157/'Population at Risk'!AX$5","v":0},{"$f":"'Population at Risk'!AY157/'Population at Risk'!AY$5","v":0},{"$f":"'Population at Risk'!AZ157/'Population at Risk'!AZ$5","v":0},{"$f":"'Population at Risk'!BA157/'Population at Risk'!BA$5","v":0},{"$f":"'Population at Risk'!BB157/'Population at Risk'!BB$5","v":0},{"$f":"'Population at Risk'!BC157/'Population at Risk'!BC$5","v":0},155]
[null,"Male 16-19",{"$f":"'Population at Risk'!C158/'Population at Risk'!C$5","v":3.7296298373125231E-3},{"$f":"'Population at Risk'!D158/'Population at Risk'!D$5","v":4.7727320626349606E-3},{"$f":"'Population at Risk'!E158/'Population at Risk'!E$5","v":8.0303716379089025E-3},{"$f":"'Population at Risk'!F158/'Population at Risk'!F$5","v":1.3672088926740754E-2},{"$f":"'Population at Risk'!G158/'Population at Risk'!G$5","v":1.1319727606274565E-2},{"$f":"'Population at Risk'!H158/'Population at Risk'!H$5","v":3.9890603008625111E-3},{"$f":"'Population at Risk'!I158/'Population at Risk'!I$5","v":7.4721326789053914E-3},{"$f":"'Population at Risk'!J158/'Population at Risk'!J$5","v":4.1533635929895266E-3},{"$f":"'Population at Risk'!K158/'Population at Risk'!K$5","v":4.4092394632316359E-3},{"$f":"'Population at Risk'!L158/'Population at Risk'!L$5","v":8.6708308759753973E-3},{"$f":"'Population at Risk'!M158/'Population at Risk'!M$5","v":8.6708308759753973E-3},{"$f":"'Population at Risk'!N158/'Population at Risk'!N$5","v":2.3905404194137715E-3},{"$f":"'Population at Risk'!O158/'Population at Risk'!O$5","v":3.7351270011811996E-3},{"$f":"'Population at Risk'!P158/'Population at Risk'!P$5","v":2.4848069080840832E-3},{"$f":"'Population at Risk'!Q158/'Population at Risk'!Q$5","v":5.8202890250302159E-3},{"$f":"'Population at Risk'!R158/'Population at Risk'!R$5","v":4.9574526574985922E-3},{"$f":"'Population at Risk'!S158/'Population at Risk'!S$5","v":4.4380241593521986E-3},{"$f":"'Population at Risk'!T158/'Population at Risk'!T$5","v":3.3846178923516695E-3},{"$f":"'Population at Risk'!U158/'Population at Risk'!U$5","v":1.6269389244623945E-2},{"$f":"'Population at Risk'!V158/'Population at Risk'!V$5","v":5.1584952286431824E-3},{"$f":"'Population at Risk'!W158/'Population at Risk'!W$5","v":5.2326323522364016E-3},{"$f":"'Population at Risk'!X158/'Population at Risk'!X$5","v":5.2326323522364016E-3},{"$f":"'Population at Risk'!Y158/'Population at Risk'!Y$5","v":4.6162713020547605E-3},{"$f":"'Population at Risk'!Z158/'Population at Risk'!Z$5","v":2.8533844609043907E-3},{"$f":"'Population at Risk'!AA158/'Population at Risk'!AA$5","v":3.2988337699149197E-3},{"$f":"'Population at Risk'!AB158/'Population at Risk'!AB$5","v":6.1161572620245857E-3},{"$f":"'Population at Risk'!AC158/'Population at Risk'!AC$5","v":3.125360397338065E-3},{"$f":"'Population at Risk'!AD158/'Population at Risk'!AD$5","v":1.0015938134729174E-2},{"$f":"'Population at Risk'!AE158/'Population at Risk'!AE$5","v":9.4377616740354848E-3},{"$f":"'Population at Risk'!AF158/'Population at Risk'!AF$5","v":3.1403641052130922E-3},{"$f":"'Population at Risk'!AG158/'Population at Risk'!AG$5","v":8.0544933355448309E-3},{"$f":"'Population at Risk'!AH158/'Population at Risk'!AH$5","v":4.0019144104371423E-3},{"$f":"'Population at Risk'!AI158/'Population at Risk'!AI$5","v":4.2396641559568349E-3},{"$f":"'Population at Risk'!AJ158/'Population at Risk'!AJ$5","v":5.2887224021328939E-3},{"$f":"'Population at Risk'!AK158/'Population at Risk'!AK$5","v":7.4865367841429652E-3},{"$f":"'Population at Risk'!AL158/'Population at Risk'!AL$5","v":3.0365220086734255E-3},{"$f":"'Population at Risk'!AM158/'Population at Risk'!AM$5","v":3.5134523064481791E-3},{"$f":"'Population at Risk'!AN158/'Population at Risk'!AN$5","v":9.249901675634796E-3},{"$f":"'Population at Risk'!AO158/'Population at Risk'!AO$5","v":9.249901675634796E-3},{"$f":"'Population at Risk'!AP158/'Population at Risk'!AP$5","v":7.6984637181920093E-3},{"$f":"'Population at Risk'!AQ158/'Population at Risk'!AQ$5","v":4.4721504259082005E-3},{"$f":"'Population at Risk'!AR158/'Population at Risk'!AR$5","v":4.9113851272193972E-3},{"$f":"'Population at Risk'!AS158/'Population at Risk'!AS$5","v":7.4721326789053914E-3},{"$f":"'Population at Risk'!AT158/'Population at Risk'!AT$5","v":1.0058314774094121E-2},{"$f":"'Population at Risk'!AU158/'Population at Risk'!AU$5","v":1.0058314774094121E-2},{"$f":"'Population at Risk'!AV158/'Population at Risk'!AV$5","v":5.1475897419685137E-3},{"$f":"'Population at Risk'!AW158/'Population at Risk'!AW$5","v":4.6559075649620389E-3},{"$f":"'Population at Risk'!AX158/'Population at Risk'!AX$5","v":3.9833243976346395E-3},{"$f":"'Population at Risk'!AY158/'Population at Risk'!AY$5","v":5.0521751458356108E-3},{"$f":"'Population at Risk'!AZ158/'Population at Risk'!AZ$5","v":6.4312618181829456E-3},{"$f":"'Population at Risk'!BA158/'Population at Risk'!BA$5","v":2.4540064142969907E-3},{"$f":"'Population at Risk'!BB158/'Population at Risk'!BB$5","v":4.7623371085012923E-3},{"$f":"'Population at Risk'!BC158/'Population at Risk'!BC$5","v":1.6269389244623945E-2},156]
[null,"Male 20-24",{"$f":"'Population at Risk'!C159/'Population at Risk'!C$5","v":1.2171005284929398E-2},{"$f":"'Population at Risk'!D159/'Population at Risk'!D$5","v":9.1148610704562868E-3},{"$f":"'Population at Risk'!E159/'Population at Risk'!E$5","v":9.8750105774610287E-3},{"$f":"'Population at Risk'!F159/'Population at Risk'!F$5","v":1.4529365854039094E-2},{"$f":"'Population at Risk'!G159/'Population at Risk'!G$5","v":1.1416952260561586E-2},{"$f":"'Population at Risk'!H159/'Population at Risk'!H$5","v":4.9835628689445782E-3},{"$f":"'Population at Risk'!I159/'Population at Risk'!I$5","v":8.8272801672711048E-3},{"$f":"'Population at Risk'!J159/'Population at Risk'!J$5","v":7.5523076270961895E-3},{"$f":"'Population at Risk'!K159/'Population at Risk'!K$5","v":5.9534892291560806E-3},{"$f":"'Population at Risk'!L159/'Population at Risk'!L$5","v":9.919775058442052E-3},{"$f":"'Population at Risk'!M159/'Population at Risk'!M$5","v":9.919775058442052E-3},{"$f":"'Population at Risk'!N159/'Population at Risk'!N$5","v":4.6827552688773625E-3},{"$f":"'Population at Risk'!O159/'Population at Risk'!O$5","v":5.0524621155762896E-3},{"$f":"'Population at Risk'!P159/'Population at Risk'!P$5","v":3.43213954179114E-3},{"$f":"'Population at Risk'!Q159/'Population at Risk'!Q$5","v":7.1625649823530762E-3},{"$f":"'Population at Risk'!R159/'Population at Risk'!R$5","v":6.5696323835143936E-3},{"$f":"'Population at Risk'!S159/'Population at Risk'!S$5","v":7.4620305691351719E-3},{"$f":"'Population at Risk'!T159/'Population at Risk'!T$5","v":9.4877732680338552E-3},{"$f":"'Population at Risk'!U159/'Population at Risk'!U$5","v":1.9087708641330452E-2},{"$f":"'Population at Risk'!V159/'Population at Risk'!V$5","v":6.8395384021946353E-3},{"$f":"'Population at Risk'!W159/'Population at Risk'!W$5","v":7.2454263186461764E-3},{"$f":"'Population at Risk'!X159/'Population at Risk'!X$5","v":7.2454263186461764E-3},{"$f":"'Population at Risk'!Y159/'Population at Risk'!Y$5","v":7.1434567336717339E-3},{"$f":"'Population at Risk'!Z159/'Population at Risk'!Z$5","v":6.5763982657845114E-3},{"$f":"'Population at Risk'!AA159/'Population at Risk'!AA$5","v":5.1983732635952021E-3},{"$f":"'Population at Risk'!AB159/'Population at Risk'!AB$5","v":1.0693115478871886E-2},{"$f":"'Population at Risk'!AC159/'Population at Risk'!AC$5","v":5.7414396683583037E-3},{"$f":"'Population at Risk'!AD159/'Population at Risk'!AD$5","v":1.0387787334940677E-2},{"$f":"'Population at Risk'!AE159/'Population at Risk'!AE$5","v":9.9180264692822588E-3},{"$f":"'Population at Risk'!AF159/'Population at Risk'!AF$5","v":4.662232863893283E-3},{"$f":"'Population at Risk'!AG159/'Population at Risk'!AG$5","v":8.4643669609039164E-3},{"$f":"'Population at Risk'!AH159/'Population at Risk'!AH$5","v":4.9318777730858292E-3},{"$f":"'Population at Risk'!AI159/'Population at Risk'!AI$5","v":8.3353345917818455E-3},{"$f":"'Population at Risk'!AJ159/'Population at Risk'!AJ$5","v":7.6891862108679696E-3},{"$f":"'Population at Risk'!AK159/'Population at Risk'!AK$5","v":9.072553553494617E-3},{"$f":"'Population at Risk'!AL159/'Population at Risk'!AL$5","v":4.1861191137847744E-3},{"$f":"'Population at Risk'!AM159/'Population at Risk'!AM$5","v":4.1254120558564368E-3},{"$f":"'Population at Risk'!AN159/'Population at Risk'!AN$5","v":1.1099882010761754E-2},{"$f":"'Population at Risk'!AO159/'Population at Risk'!AO$5","v":1.1099882010761754E-2},{"$f":"'Population at Risk'!AP159/'Population at Risk'!AP$5","v":1.0207380642460285E-2},{"$f":"'Population at Risk'!AQ159/'Population at Risk'!AQ$5","v":4.9222139719550129E-3},{"$f":"'Population at Risk'!AR159/'Population at Risk'!AR$5","v":7.2959746946138198E-3},{"$f":"'Population at Risk'!AS159/'Population at Risk'!AS$5","v":8.8272801672711048E-3},{"$f":"'Population at Risk'!AT159/'Population at Risk'!AT$5","v":1.3792539420763795E-2},{"$f":"'Population at Risk'!AU159/'Population at Risk'!AU$5","v":1.3792539420763795E-2},{"$f":"'Population at Risk'!AV159/'Population at Risk'!AV$5","v":5.5880714145195107E-3},{"$f":"'Population at Risk'!AW159/'Population at Risk'!AW$5","v":6.0300586736926776E-3},{"$f":"'Population at Risk'!AX159/'Population at Risk'!AX$5","v":8.6147829345454251E-3},{"$f":"'Population at Risk'!AY159/'Population at Risk'!AY$5","v":6.8325418705131842E-3},{"$f":"'Population at Risk'!AZ159/'Population at Risk'!AZ$5","v":8.5355973683097566E-3},{"$f":"'Population at Risk'!BA159/'Population at Risk'!BA$5","v":3.6483517414073129E-3},{"$f":"'Population at Risk'!BB159/'Population at Risk'!BB$5","v":6.6251560455000968E-3},{"$f":"'Population at Risk'!BC159/'Population at Risk'!BC$5","v":1.9087708641330452E-2},157]
[null,"Male 25-29",{"$f":"'Population at Risk'!C160/'Population at Risk'!C$5","v":2.1159206700979146E-2},{"$f":"'Population at Risk'!D160/'Population at Risk'!D$5","v":1.3945381595038006E-2},{"$f":"'Population at Risk'!E160/'Population at Risk'!E$5","v":1.2362706720143809E-2},{"$f":"'Population at Risk'!F160/'Population at Risk'!F$5","v":1.8095664679970948E-2},{"$f":"'Population at Risk'!G160/'Population at Risk'!G$5","v":1.4416722570109255E-2},{"$f":"'Population at Risk'!H160/'Population at Risk'!H$5","v":6.1953337272302716E-3},{"$f":"'Population at Risk'!I160/'Population at Risk'!I$5","v":1.1442311410344665E-2},{"$f":"'Population at Risk'!J160/'Population at Risk'!J$5","v":8.897371376464536E-3},{"$f":"'Population at Risk'!K160/'Population at Risk'!K$5","v":6.489463058265618E-3},{"$f":"'Population at Risk'!L160/'Population at Risk'!L$5","v":1.3221767000784897E-2},{"$f":"'Population at Risk'!M160/'Population at Risk'!M$5","v":1.3221767000784897E-2},{"$f":"'Population at Risk'!N160/'Population at Risk'!N$5","v":7.7302366984168952E-3},{"$f":"'Population at Risk'!O160/'Population at Risk'!O$5","v":7.0661366143126335E-3},{"$f":"'Population at Risk'!P160/'Population at Risk'!P$5","v":4.5248685134096737E-3},{"$f":"'Population at Risk'!Q160/'Population at Risk'!Q$5","v":9.4327678597322089E-3},{"$f":"'Population at Risk'!R160/'Population at Risk'!R$5","v":7.1136742620461768E-3},{"$f":"'Population at Risk'!S160/'Population at Risk'!S$5","v":1.1812949813531865E-2},{"$f":"'Population at Risk'!T160/'Population at Risk'!T$5","v":1.8317085372556986E-2},{"$f":"'Population at Risk'!U160/'Population at Risk'!U$5","v":2.4584312150682127E-2},{"$f":"'Population at Risk'!V160/'Population at Risk'!V$5","v":8.922738382221726E-3},{"$f":"'Population at Risk'!W160/'Population at Risk'!W$5","v":1.0109413363922664E-2},{"$f":"'Population at Risk'!X160/'Population at Risk'!X$5","v":1.0109413363922664E-2},{"$f":"'Population at Risk'!Y160/'Population at Risk'!Y$5","v":8.8415543506360997E-3},{"$f":"'Population at Risk'!Z160/'Population at Risk'!Z$5","v":9.4786818770202508E-3},{"$f":"'Population at Risk'!AA160/'Population at Risk'!AA$5","v":7.2169983149483327E-3},{"$f":"'Population at Risk'!AB160/'Population at Risk'!AB$5","v":1.6181269187453145E-2},{"$f":"'Population at Risk'!AC160/'Population at Risk'!AC$5","v":8.1865668979061064E-3},{"$f":"'Population at Risk'!AD160/'Population at Risk'!AD$5","v":1.4125341328739105E-2},{"$f":"'Population at Risk'!AE160/'Population at Risk'!AE$5","v":1.3932087284484267E-2},{"$f":"'Population at Risk'!AF160/'Population at Risk'!AF$5","v":6.1585433954110674E-3},{"$f":"'Population at Risk'!AG160/'Population at Risk'!AG$5","v":1.1890097255986876E-2},{"$f":"'Population at Risk'!AH160/'Population at Risk'!AH$5","v":6.4840313858831643E-3},{"$f":"'Population at Risk'!AI160/'Population at Risk'!AI$5","v":1.4145887801240691E-2},{"$f":"'Population at Risk'!AJ160/'Population at Risk'!AJ$5","v":1.0213435660125765E-2},{"$f":"'Population at Risk'!AK160/'Population at Risk'!AK$5","v":1.2934584140537445E-2},{"$f":"'Population at Risk'!AL160/'Population at Risk'!AL$5","v":4.686623607725854E-3},{"$f":"'Population at Risk'!AM160/'Population at Risk'!AM$5","v":5.4742996363438354E-3},{"$f":"'Population at Risk'!AN160/'Population at Risk'!AN$5","v":1.75352459137398E-2},{"$f":"'Population at Risk'!AO160/'Population at Risk'!AO$5","v":1.75352459137398E-2},{"$f":"'Population at Risk'!AP160/'Population at Risk'!AP$5","v":1.1532176853568303E-2},{"$f":"'Population at Risk'!AQ160/'Population at Risk'!AQ$5","v":7.3099126211846211E-3},{"$f":"'Population at Risk'!AR160/'Population at Risk'!AR$5","v":1.0420995272751556E-2},{"$f":"'Population at Risk'!AS160/'Population at Risk'!AS$5","v":1.1442311410344665E-2},{"$f":"'Population at Risk'!AT160/'Population at Risk'!AT$5","v":1.7042373797173358E-2},{"$f":"'Population at Risk'!AU160/'Population at Risk'!AU$5","v":1.7042373797173358E-2},{"$f":"'Population at Risk'!AV160/'Population at Risk'!AV$5","v":6.6662136951529801E-3},{"$f":"'Population at Risk'!AW160/'Population at Risk'!AW$5","v":7.8556057881172207E-3},{"$f":"'Population at Risk'!AX160/'Population at Risk'!AX$5","v":1.0497517543148687E-2},{"$f":"'Population at Risk'!AY160/'Population at Risk'!AY$5","v":9.2167583562776031E-3},{"$f":"'Population at Risk'!AZ160/'Population at Risk'!AZ$5","v":1.1191958904969563E-2},{"$f":"'Population at Risk'!BA160/'Population at Risk'!BA$5","v":5.6856375102189508E-3},{"$f":"'Population at Risk'!BB160/'Population at Risk'!BB$5","v":9.1064268153690595E-3},{"$f":"'Population at Risk'!BC160/'Population at Risk'!BC$5","v":2.4584312150682127E-2},158]
[null,"Male 30-34",{"$f":"'Population at Risk'!C161/'Population at Risk'!C$5","v":1.6044536074416176E-2},{"$f":"'Population at Risk'!D161/'Population at Risk'!D$5","v":1.2049156436427556E-2},{"$f":"'Population at Risk'!E161/'Population at Risk'!E$5","v":1.3102277801629515E-2},{"$f":"'Population at Risk'!F161/'Population at Risk'!F$5","v":2.0228220128525879E-2},{"$f":"'Population at Risk'!G161/'Population at Risk'!G$5","v":1.3657947697998243E-2},{"$f":"'Population at Risk'!H161/'Population at Risk'!H$5","v":5.7696705729546128E-3},{"$f":"'Population at Risk'!I161/'Population at Risk'!I$5","v":1.1666411979441276E-2},{"$f":"'Population at Risk'!J161/'Population at Risk'!J$5","v":7.4428841016401922E-3},{"$f":"'Population at Risk'!K161/'Population at Risk'!K$5","v":6.2617626000808597E-3},{"$f":"'Population at Risk'!L161/'Population at Risk'!L$5","v":1.2397291796173215E-2},{"$f":"'Population at Risk'!M161/'Population at Risk'!M$5","v":1.2397291796173215E-2},{"$f":"'Population at Risk'!N161/'Population at Risk'!N$5","v":6.3356951113973667E-3},{"$f":"'Population at Risk'!O161/'Population at Risk'!O$5","v":5.9859628643540138E-3},{"$f":"'Population at Risk'!P161/'Population at Risk'!P$5","v":3.8939974225977482E-3},{"$f":"'Population at Risk'!Q161/'Population at Risk'!Q$5","v":8.2951476153423926E-3},{"$f":"'Population at Risk'!R161/'Population at Risk'!R$5","v":7.1701319942846396E-3},{"$f":"'Population at Risk'!S161/'Population at Risk'!S$5","v":1.1124437624324499E-2},{"$f":"'Population at Risk'!T161/'Population at Risk'!T$5","v":1.6212338346529704E-2},{"$f":"'Population at Risk'!U161/'Population at Risk'!U$5","v":2.6857314247338872E-2},{"$f":"'Population at Risk'!V161/'Population at Risk'!V$5","v":8.945824380623333E-3},{"$f":"'Population at Risk'!W161/'Population at Risk'!W$5","v":1.0025315792156231E-2},{"$f":"'Population at Risk'!X161/'Population at Risk'!X$5","v":1.0025315792156231E-2},{"$f":"'Population at Risk'!Y161/'Population at Risk'!Y$5","v":8.1255930086180077E-3},{"$f":"'Population at Risk'!Z161/'Population at Risk'!Z$5","v":8.7411699838996042E-3},{"$f":"'Population at Risk'!AA161/'Population at Risk'!AA$5","v":7.1166945066911619E-3},{"$f":"'Population at Risk'!AB161/'Population at Risk'!AB$5","v":1.4686956729508923E-2},{"$f":"'Population at Risk'!AC161/'Population at Risk'!AC$5","v":7.6404859382104102E-3},{"$f":"'Population at Risk'!AD161/'Population at Risk'!AD$5","v":1.4859052555568932E-2},{"$f":"'Population at Risk'!AE161/'Population at Risk'!AE$5","v":1.5261932786091413E-2},{"$f":"'Population at Risk'!AF161/'Population at Risk'!AF$5","v":5.4648613096642158E-3},{"$f":"'Population at Risk'!AG161/'Population at Risk'!AG$5","v":1.3025030739152385E-2},{"$f":"'Population at Risk'!AH161/'Population at Risk'!AH$5","v":7.1216767046758979E-3},{"$f":"'Population at Risk'!AI161/'Population at Risk'!AI$5","v":1.2975626703882201E-2},{"$f":"'Population at Risk'!AJ161/'Population at Risk'!AJ$5","v":1.0195454259315685E-2},{"$f":"'Population at Risk'!AK161/'Population at Risk'!AK$5","v":1.4911485646733124E-2},{"$f":"'Population at Risk'!AL161/'Population at Risk'!AL$5","v":4.3756627996303001E-3},{"$f":"'Population at Risk'!AM161/'Population at Risk'!AM$5","v":6.377856952378822E-3},{"$f":"'Population at Risk'!AN161/'Population at Risk'!AN$5","v":1.5116591304948105E-2},{"$f":"'Population at Risk'!AO161/'Population at Risk'!AO$5","v":1.5116591304948105E-2},{"$f":"'Population at Risk'!AP161/'Population at Risk'!AP$5","v":1.2868466176113875E-2},{"$f":"'Population at Risk'!AQ161/'Population at Risk'!AQ$5","v":7.5812412555954041E-3},{"$f":"'Population at Risk'!AR161/'Population at Risk'!AR$5","v":1.004492318402705E-2},{"$f":"'Population at Risk'!AS161/'Population at Risk'!AS$5","v":1.1666411979441276E-2},{"$f":"'Population at Risk'!AT161/'Population at Risk'!AT$5","v":1.8729737539467748E-2},{"$f":"'Population at Risk'!AU161/'Population at Risk'!AU$5","v":1.8729737539467748E-2},{"$f":"'Population at Risk'!AV161/'Population at Risk'!AV$5","v":6.8355911756105888E-3},{"$f":"'Population at Risk'!AW161/'Population at Risk'!AW$5","v":8.106266297912652E-3},{"$f":"'Population at Risk'!AX161/'Population at Risk'!AX$5","v":8.2277840203057277E-3},{"$f":"'Population at Risk'!AY161/'Population at Risk'!AY$5","v":9.2579798817580081E-3},{"$f":"'Population at Risk'!AZ161/'Population at Risk'!AZ$5","v":1.1366103237077249E-2},{"$f":"'Population at Risk'!BA161/'Population at Risk'!BA$5","v":4.9406229399143993E-3},{"$f":"'Population at Risk'!BB161/'Population at Risk'!BB$5","v":9.4089659122251739E-3},{"$f":"'Population at Risk'!BC161/'Population at Risk'!BC$5","v":2.6857314247338872E-2},159]
[null,"Male 35-39",{"$f":"'Population at Risk'!C162/'Population at Risk'!C$5","v":1.2553372182959302E-2},{"$f":"'Population at Risk'!D162/'Population at Risk'!D$5","v":1.1024937758940983E-2},{"$f":"'Population at Risk'!E162/'Population at Risk'!E$5","v":1.4289895232953946E-2},{"$f":"'Population at Risk'!F162/'Population at Risk'!F$5","v":2.1610047510473691E-2},{"$f":"'Population at Risk'!G162/'Population at Risk'!G$5","v":1.654781629309136E-2},{"$f":"'Population at Risk'!H162/'Population at Risk'!H$5","v":6.6577553321066239E-3},{"$f":"'Population at Risk'!I162/'Population at Risk'!I$5","v":1.1880826499903281E-2},{"$f":"'Population at Risk'!J162/'Population at Risk'!J$5","v":7.8741036024675987E-3},{"$f":"'Population at Risk'!K162/'Population at Risk'!K$5","v":6.8201359565118278E-3},{"$f":"'Population at Risk'!L162/'Population at Risk'!L$5","v":1.241526264408303E-2},{"$f":"'Population at Risk'!M162/'Population at Risk'!M$5","v":1.241526264408303E-2},{"$f":"'Population at Risk'!N162/'Population at Risk'!N$5","v":4.9058754508590234E-3},{"$f":"'Population at Risk'!O162/'Population at Risk'!O$5","v":7.2625596123961729E-3},{"$f":"'Population at Risk'!P162/'Population at Risk'!P$5","v":3.7099312014598402E-3},{"$f":"'Population at Risk'!Q162/'Population at Risk'!Q$5","v":9.2092596010776556E-3},{"$f":"'Population at Risk'!R162/'Population at Risk'!R$5","v":8.0133723420808493E-3},{"$f":"'Population at Risk'!S162/'Population at Risk'!S$5","v":1.066188551228139E-2},{"$f":"'Population at Risk'!T162/'Population at Risk'!T$5","v":1.3341821272180256E-2},{"$f":"'Population at Risk'!U162/'Population at Risk'!U$5","v":3.1958587698148057E-2},{"$f":"'Population at Risk'!V162/'Population at Risk'!V$5","v":1.1661667500280446E-2},{"$f":"'Population at Risk'!W162/'Population at Risk'!W$5","v":1.0663264593153659E-2},{"$f":"'Population at Risk'!X162/'Population at Risk'!X$5","v":1.0663264593153659E-2},{"$f":"'Population at Risk'!Y162/'Population at Risk'!Y$5","v":9.6781459562809685E-3},{"$f":"'Population at Risk'!Z162/'Population at Risk'!Z$5","v":7.2336768096316565E-3},{"$f":"'Population at Risk'!AA162/'Population at Risk'!AA$5","v":6.9161067709447846E-3},{"$f":"'Population at Risk'!AB162/'Population at Risk'!AB$5","v":1.3636689102012125E-2},{"$f":"'Population at Risk'!AC162/'Population at Risk'!AC$5","v":6.7406811592063236E-3},{"$f":"'Population at Risk'!AD162/'Population at Risk'!AD$5","v":1.6745563949926108E-2},{"$f":"'Population at Risk'!AE162/'Population at Risk'!AE$5","v":1.6734859001164611E-2},{"$f":"'Population at Risk'!AF162/'Population at Risk'!AF$5","v":6.3368326413423704E-3},{"$f":"'Population at Risk'!AG162/'Population at Risk'!AG$5","v":1.4282073965375702E-2},{"$f":"'Population at Risk'!AH162/'Population at Risk'!AH$5","v":8.0731979171380294E-3},{"$f":"'Population at Risk'!AI162/'Population at Risk'!AI$5","v":1.1881660964531979E-2},{"$f":"'Population at Risk'!AJ162/'Population at Risk'!AJ$5","v":1.1373320505557633E-2},{"$f":"'Population at Risk'!AK162/'Population at Risk'!AK$5","v":1.4692651270864554E-2},{"$f":"'Population at Risk'!AL162/'Population at Risk'!AL$5","v":4.9986165193438778E-3},{"$f":"'Population at Risk'!AM162/'Population at Risk'!AM$5","v":7.5448934982586752E-3},{"$f":"'Population at Risk'!AN162/'Population at Risk'!AN$5","v":1.5104173917033148E-2},{"$f":"'Population at Risk'!AO162/'Population at Risk'!AO$5","v":1.5104173917033148E-2},{"$f":"'Population at Risk'!AP162/'Population at Risk'!AP$5","v":1.3586811222552812E-2},{"$f":"'Population at Risk'!AQ162/'Population at Risk'!AQ$5","v":7.1578711451527732E-3},{"$f":"'Population at Risk'!AR162/'Population at Risk'!AR$5","v":1.0017105233110491E-2},{"$f":"'Population at Risk'!AS162/'Population at Risk'!AS$5","v":1.1880826499903281E-2},{"$f":"'Population at Risk'!AT162/'Population at Risk'!AT$5","v":2.0489311992557512E-2},{"$f":"'Population at Risk'!AU162/'Population at Risk'!AU$5","v":2.0489311992557512E-2},{"$f":"'Population at Risk'!AV162/'Population at Risk'!AV$5","v":7.5608798477088332E-3},{"$f":"'Population at Risk'!AW162/'Population at Risk'!AW$5","v":8.739366439518793E-3},{"$f":"'Population at Risk'!AX162/'Population at Risk'!AX$5","v":8.5745049739561659E-3},{"$f":"'Population at Risk'!AY162/'Population at Risk'!AY$5","v":9.4425956547366935E-3},{"$f":"'Population at Risk'!AZ162/'Population at Risk'!AZ$5","v":1.1172417507927301E-2},{"$f":"'Population at Risk'!BA162/'Population at Risk'!BA$5","v":4.6837546216424329E-3},{"$f":"'Population at Risk'!BB162/'Population at Risk'!BB$5","v":1.0131166120208479E-2},{"$f":"'Population at Risk'!BC162/'Population at Risk'!BC$5","v":3.1958587698148057E-2},160]
[null,"Male 40-44",{"$f":"'Population at Risk'!C163/'Population at Risk'!C$5","v":9.6837696883060511E-3},{"$f":"'Population at Risk'!D163/'Population at Risk'!D$5","v":1.0373889454222757E-2},{"$f":"'Population at Risk'!E163/'Population at Risk'!E$5","v":1.5748450056731315E-2},{"$f":"'Population at Risk'!F163/'Population at Risk'!F$5","v":2.5386777633813973E-2},{"$f":"'Population at Risk'!G163/'Population at Risk'!G$5","v":1.9802780157849174E-2},{"$f":"'Population at Risk'!H163/'Population at Risk'!H$5","v":7.4346326795168083E-3},{"$f":"'Population at Risk'!I163/'Population at Risk'!I$5","v":1.5622931134004552E-2},{"$f":"'Population at Risk'!J163/'Population at Risk'!J$5","v":8.7939755186437207E-3},{"$f":"'Population at Risk'!K163/'Population at Risk'!K$5","v":8.9706292761326748E-3},{"$f":"'Population at Risk'!L163/'Population at Risk'!L$5","v":1.4835370659494319E-2},{"$f":"'Population at Risk'!M163/'Population at Risk'!M$5","v":1.4835370659494319E-2},{"$f":"'Population at Risk'!N163/'Population at Risk'!N$5","v":4.4413039119519191E-3},{"$f":"'Population at Risk'!O163/'Population at Risk'!O$5","v":7.3961518460690118E-3},{"$f":"'Population at Risk'!P163/'Population at Risk'!P$5","v":4.4143485181927216E-3},{"$f":"'Population at Risk'!Q163/'Population at Risk'!Q$5","v":1.1954983296954512E-2},{"$f":"'Population at Risk'!R163/'Population at Risk'!R$5","v":8.0743105347962935E-3},{"$f":"'Population at Risk'!S163/'Population at Risk'!S$5","v":1.046555842930558E-2},{"$f":"'Population at Risk'!T163/'Population at Risk'!T$5","v":9.973187053955692E-3},{"$f":"'Population at Risk'!U163/'Population at Risk'!U$5","v":3.6284295527998396E-2},{"$f":"'Population at Risk'!V163/'Population at Risk'!V$5","v":1.1885930336824302E-2},{"$f":"'Population at Risk'!W163/'Population at Risk'!W$5","v":1.1394214182200482E-2},{"$f":"'Population at Risk'!X163/'Population at Risk'!X$5","v":1.1394214182200482E-2},{"$f":"'Population at Risk'!Y163/'Population at Risk'!Y$5","v":1.0248530984122624E-2},{"$f":"'Population at Risk'!Z163/'Population at Risk'!Z$5","v":5.2488264655254089E-3},{"$f":"'Population at Risk'!AA163/'Population at Risk'!AA$5","v":6.3777947318104803E-3},{"$f":"'Population at Risk'!AB163/'Population at Risk'!AB$5","v":1.3310268777125885E-2},{"$f":"'Population at Risk'!AC163/'Population at Risk'!AC$5","v":5.7085731417129641E-3},{"$f":"'Population at Risk'!AD163/'Population at Risk'!AD$5","v":1.7471003543424714E-2},{"$f":"'Population at Risk'!AE163/'Population at Risk'!AE$5","v":1.6439339291255045E-2},{"$f":"'Population at Risk'!AF163/'Population at Risk'!AF$5","v":6.3733561724163904E-3},{"$f":"'Population at Risk'!AG163/'Population at Risk'!AG$5","v":1.4029867815633952E-2},{"$f":"'Population at Risk'!AH163/'Population at Risk'!AH$5","v":8.29909545299937E-3},{"$f":"'Population at Risk'!AI163/'Population at Risk'!AI$5","v":1.0692467931089626E-2},{"$f":"'Population at Risk'!AJ163/'Population at Risk'!AJ$5","v":1.2421373930984445E-2},{"$f":"'Population at Risk'!AK163/'Population at Risk'!AK$5","v":1.6359037722055277E-2},{"$f":"'Population at Risk'!AL163/'Population at Risk'!AL$5","v":6.1733513368395611E-3},{"$f":"'Population at Risk'!AM163/'Population at Risk'!AM$5","v":7.5055971779552444E-3},{"$f":"'Population at Risk'!AN163/'Population at Risk'!AN$5","v":1.5477116482885817E-2},{"$f":"'Population at Risk'!AO163/'Population at Risk'!AO$5","v":1.5477116482885817E-2},{"$f":"'Population at Risk'!AP163/'Population at Risk'!AP$5","v":1.3312767259465228E-2},{"$f":"'Population at Risk'!AQ163/'Population at Risk'!AQ$5","v":7.295688158777857E-3},{"$f":"'Population at Risk'!AR163/'Population at Risk'!AR$5","v":9.9620232035223556E-3},{"$f":"'Population at Risk'!AS163/'Population at Risk'!AS$5","v":1.5622931134004552E-2},{"$f":"'Population at Risk'!AT163/'Population at Risk'!AT$5","v":2.0033993948278459E-2},{"$f":"'Population at Risk'!AU163/'Population at Risk'!AU$5","v":2.0033993948278459E-2},{"$f":"'Population at Risk'!AV163/'Population at Risk'!AV$5","v":8.5663854578531852E-3},{"$f":"'Population at Risk'!AW163/'Population at Risk'!AW$5","v":9.3417293132706733E-3},{"$f":"'Population at Risk'!AX163/'Population at Risk'!AX$5","v":8.6765824141223098E-3},{"$f":"'Population at Risk'!AY163/'Population at Risk'!AY$5","v":9.9542633995746439E-3},{"$f":"'Population at Risk'!AZ163/'Population at Risk'!AZ$5","v":1.1630867138946068E-2},{"$f":"'Population at Risk'!BA163/'Population at Risk'!BA$5","v":5.6995086359745272E-3},{"$f":"'Population at Risk'!BB163/'Population at Risk'!BB$5","v":1.0694462221976718E-2},{"$f":"'Population at Risk'!BC163/'Population at Risk'!BC$5","v":3.6284295527998396E-2},161]
[null,"Male 45-49",{"$f":"'Population at Risk'!C164/'Population at Risk'!C$5","v":7.6317974568212415E-3},{"$f":"'Population at Risk'!D164/'Population at Risk'!D$5","v":9.547887954421996E-3},{"$f":"'Population at Risk'!E164/'Population at Risk'!E$5","v":1.5880217926083521E-2},{"$f":"'Population at Risk'!F164/'Population at Risk'!F$5","v":2.4508385511261978E-2},{"$f":"'Population at Risk'!G164/'Population at Risk'!G$5","v":2.1060619466982986E-2},{"$f":"'Population at Risk'!H164/'Population at Risk'!H$5","v":7.6879536408291796E-3},{"$f":"'Population at Risk'!I164/'Population at Risk'!I$5","v":1.5501688050574466E-2},{"$f":"'Population at Risk'!J164/'Population at Risk'!J$5","v":8.6722949446303554E-3},{"$f":"'Population at Risk'!K164/'Population at Risk'!K$5","v":9.1125755067657747E-3},{"$f":"'Population at Risk'!L164/'Population at Risk'!L$5","v":1.6408577531948049E-2},{"$f":"'Population at Risk'!M164/'Population at Risk'!M$5","v":1.6408577531948049E-2},{"$f":"'Population at Risk'!N164/'Population at Risk'!N$5","v":3.7318113363898993E-3},{"$f":"'Population at Risk'!O164/'Population at Risk'!O$5","v":7.7694589353206125E-3},{"$f":"'Population at Risk'!P164/'Population at Risk'!P$5","v":4.4424252612911361E-3},{"$f":"'Population at Risk'!Q164/'Population at Risk'!Q$5","v":1.0964900171605214E-2},{"$f":"'Population at Risk'!R164/'Population at Risk'!R$5","v":7.4500428672413565E-3},{"$f":"'Population at Risk'!S164/'Population at Risk'!S$5","v":9.1653635688734338E-3},{"$f":"'Population at Risk'!T164/'Population at Risk'!T$5","v":7.0095548189605941E-3},{"$f":"'Population at Risk'!U164/'Population at Risk'!U$5","v":3.9077672571106115E-2},{"$f":"'Population at Risk'!V164/'Population at Risk'!V$5","v":1.1586230203728305E-2},{"$f":"'Population at Risk'!W164/'Population at Risk'!W$5","v":1.0903924121716032E-2},{"$f":"'Population at Risk'!X164/'Population at Risk'!X$5","v":1.0903924121716032E-2},{"$f":"'Population at Risk'!Y164/'Population at Risk'!Y$5","v":1.0040151459833307E-2},{"$f":"'Population at Risk'!Z164/'Population at Risk'!Z$5","v":4.3812961376432698E-3},{"$f":"'Population at Risk'!AA164/'Population at Risk'!AA$5","v":5.9031052717926202E-3},{"$f":"'Population at Risk'!AB164/'Population at Risk'!AB$5","v":1.2413039817721412E-2},{"$f":"'Population at Risk'!AC164/'Population at Risk'!AC$5","v":5.1625601231576196E-3},{"$f":"'Population at Risk'!AD164/'Population at Risk'!AD$5","v":1.8411478310849119E-2},{"$f":"'Population at Risk'!AE164/'Population at Risk'!AE$5","v":1.7247143990713101E-2},{"$f":"'Population at Risk'!AF164/'Population at Risk'!AF$5","v":5.885294146485801E-3},{"$f":"'Population at Risk'!AG164/'Population at Risk'!AG$5","v":1.4719274667907708E-2},{"$f":"'Population at Risk'!AH164/'Population at Risk'!AH$5","v":7.8853283874990004E-3},{"$f":"'Population at Risk'!AI164/'Population at Risk'!AI$5","v":8.7036277760385011E-3},{"$f":"'Population at Risk'!AJ164/'Population at Risk'!AJ$5","v":1.1560532361120155E-2},{"$f":"'Population at Risk'!AK164/'Population at Risk'!AK$5","v":1.591680131961349E-2},{"$f":"'Population at Risk'!AL164/'Population at Risk'!AL$5","v":6.4769869158149695E-3},{"$f":"'Population at Risk'!AM164/'Population at Risk'!AM$5","v":6.733039884405212E-3},{"$f":"'Population at Risk'!AN164/'Population at Risk'!AN$5","v":1.6144889329353714E-2},{"$f":"'Population at Risk'!AO164/'Population at Risk'!AO$5","v":1.6144889329353714E-2},{"$f":"'Population at Risk'!AP164/'Population at Risk'!AP$5","v":1.395639545356385E-2},{"$f":"'Population at Risk'!AQ164/'Population at Risk'!AQ$5","v":7.5682028594740687E-3},{"$f":"'Population at Risk'!AR164/'Population at Risk'!AR$5","v":9.446548091365109E-3},{"$f":"'Population at Risk'!AS164/'Population at Risk'!AS$5","v":1.5501688050574466E-2},{"$f":"'Population at Risk'!AT164/'Population at Risk'!AT$5","v":1.9199944087355286E-2},{"$f":"'Population at Risk'!AU164/'Population at Risk'!AU$5","v":1.9199944087355286E-2},{"$f":"'Population at Risk'!AV164/'Population at Risk'!AV$5","v":8.6262162778606849E-3},{"$f":"'Population at Risk'!AW164/'Population at Risk'!AW$5","v":9.4452042052363475E-3},{"$f":"'Population at Risk'!AX164/'Population at Risk'!AX$5","v":8.3797118556307275E-3},{"$f":"'Population at Risk'!AY164/'Population at Risk'!AY$5","v":9.6030371675979529E-3},{"$f":"'Population at Risk'!AZ164/'Population at Risk'!AZ$5","v":1.1305175709848791E-2},{"$f":"'Population at Risk'!BA164/'Population at Risk'!BA$5","v":5.587047426175315E-3},{"$f":"'Population at Risk'!BB164/'Population at Risk'!BB$5","v":9.8235329304841371E-3},{"$f":"'Population at Risk'!BC164/'Population at Risk'!BC$5","v":3.9077672571106115E-2},162]
[null,"Male 50-54",{"$f":"'Population at Risk'!C165/'Population at Risk'!C$5","v":7.7997700324259197E-3},{"$f":"'Population at Risk'!D165/'Population at Risk'!D$5","v":9.560389280712565E-3},{"$f":"'Population at Risk'!E165/'Population at Risk'!E$5","v":1.57301064133494E-2},{"$f":"'Population at Risk'!F165/'Population at Risk'!F$5","v":2.8521454483866279E-2},{"$f":"'Population at Risk'!G165/'Population at Risk'!G$5","v":2.3552203544611666E-2},{"$f":"'Population at Risk'!H165/'Population at Risk'!H$5","v":8.5987216679657384E-3},{"$f":"'Population at Risk'!I165/'Population at Risk'!I$5","v":1.7805838886642191E-2},{"$f":"'Population at Risk'!J165/'Population at Risk'!J$5","v":9.3015771174833513E-3},{"$f":"'Population at Risk'!K165/'Population at Risk'!K$5","v":9.3588613312729583E-3},{"$f":"'Population at Risk'!L165/'Population at Risk'!L$5","v":1.9088239186158016E-2},{"$f":"'Population at Risk'!M165/'Population at Risk'!M$5","v":1.9088239186158016E-2},{"$f":"'Population at Risk'!N165/'Population at Risk'!N$5","v":4.7820815927391526E-3},{"$f":"'Population at Risk'!O165/'Population at Risk'!O$5","v":8.8112284918109712E-3},{"$f":"'Population at Risk'!P165/'Population at Risk'!P$5","v":4.5553682764087073E-3},{"$f":"'Population at Risk'!Q165/'Population at Risk'!Q$5","v":1.1197323242574404E-2},{"$f":"'Population at Risk'!R165/'Population at Risk'!R$5","v":9.4774315819332652E-3},{"$f":"'Population at Risk'!S165/'Population at Risk'!S$5","v":9.484007687892421E-3},{"$f":"'Population at Risk'!T165/'Population at Risk'!T$5","v":6.8875134627376195E-3},{"$f":"'Population at Risk'!U165/'Population at Risk'!U$5","v":3.7266124836021722E-2},{"$f":"'Population at Risk'!V165/'Population at Risk'!V$5","v":1.2015719771625128E-2},{"$f":"'Population at Risk'!W165/'Population at Risk'!W$5","v":1.1363520501978036E-2},{"$f":"'Population at Risk'!X165/'Population at Risk'!X$5","v":1.1363520501978036E-2},{"$f":"'Population at Risk'!Y165/'Population at Risk'!Y$5","v":1.0566251462870607E-2},{"$f":"'Population at Risk'!Z165/'Population at Risk'!Z$5","v":4.3964505055290462E-3},{"$f":"'Population at Risk'!AA165/'Population at Risk'!AA$5","v":6.1683050185343752E-3},{"$f":"'Population at Risk'!AB165/'Population at Risk'!AB$5","v":1.2499241483122257E-2},{"$f":"'Population at Risk'!AC165/'Population at Risk'!AC$5","v":5.5626962339690583E-3},{"$f":"'Population at Risk'!AD165/'Population at Risk'!AD$5","v":2.1333858258583267E-2},{"$f":"'Population at Risk'!AE165/'Population at Risk'!AE$5","v":2.0326991131911869E-2},{"$f":"'Population at Risk'!AF165/'Population at Risk'!AF$5","v":7.012576856136067E-3},{"$f":"'Population at Risk'!AG165/'Population at Risk'!AG$5","v":1.7347716572891227E-2},{"$f":"'Population at Risk'!AH165/'Population at Risk'!AH$5","v":7.9564131250553331E-3},{"$f":"'Population at Risk'!AI165/'Population at Risk'!AI$5","v":8.7168001222754105E-3},{"$f":"'Population at Risk'!AJ165/'Population at Risk'!AJ$5","v":1.1653887938733508E-2},{"$f":"'Population at Risk'!AK165/'Population at Risk'!AK$5","v":1.6307797462572264E-2},{"$f":"'Population at Risk'!AL165/'Population at Risk'!AL$5","v":7.2649882913295499E-3},{"$f":"'Population at Risk'!AM165/'Population at Risk'!AM$5","v":6.6442588395661814E-3},{"$f":"'Population at Risk'!AN165/'Population at Risk'!AN$5","v":2.1227539673779883E-2},{"$f":"'Population at Risk'!AO165/'Population at Risk'!AO$5","v":2.1227539673779883E-2},{"$f":"'Population at Risk'!AP165/'Population at Risk'!AP$5","v":1.6407725889483929E-2},{"$f":"'Population at Risk'!AQ165/'Population at Risk'!AQ$5","v":8.7490082326219382E-3},{"$f":"'Population at Risk'!AR165/'Population at Risk'!AR$5","v":1.0132753212872735E-2},{"$f":"'Population at Risk'!AS165/'Population at Risk'!AS$5","v":1.7805838886642191E-2},{"$f":"'Population at Risk'!AT165/'Population at Risk'!AT$5","v":2.1901076905728463E-2},{"$f":"'Population at Risk'!AU165/'Population at Risk'!AU$5","v":2.1901076905728463E-2},{"$f":"'Population at Risk'!AV165/'Population at Risk'!AV$5","v":9.4951191310917987E-3},{"$f":"'Population at Risk'!AW165/'Population at Risk'!AW$5","v":9.7439476658005824E-3},{"$f":"'Population at Risk'!AX165/'Population at Risk'!AX$5","v":9.2635095904042824E-3},{"$f":"'Population at Risk'!AY165/'Population at Risk'!AY$5","v":1.0733092360205716E-2},{"$f":"'Population at Risk'!AZ165/'Population at Risk'!AZ$5","v":1.3425814976618216E-2},{"$f":"'Population at Risk'!BA165/'Population at Risk'!BA$5","v":6.1751576815621901E-3},{"$f":"'Population at Risk'!BB165/'Population at Risk'!BB$5","v":9.9806047428303186E-3},{"$f":"'Population at Risk'!BC165/'Population at Risk'!BC$5","v":3.7266124836021722E-2},163]
[null,"Male 55-59",{"$f":"'Population at Risk'!C166/'Population at Risk'!C$5","v":5.8283205246691915E-3},{"$f":"'Population at Risk'!D166/'Population at Risk'!D$5","v":7.3508716324686722E-3},{"$f":"'Population at Risk'!E166/'Population at Risk'!E$5","v":1.2277338225943362E-2},{"$f":"'Population at Risk'!F166/'Population at Risk'!F$5","v":2.2284242002475415E-2},{"$f":"'Population at Risk'!G166/'Population at Risk'!G$5","v":2.0046515600984818E-2},{"$f":"'Population at Risk'!H166/'Population at Risk'!H$5","v":6.3461631147634073E-3},{"$f":"'Population at Risk'!I166/'Population at Risk'!I$5","v":1.4707331118401046E-2},{"$f":"'Population at Risk'!J166/'Population at Risk'!J$5","v":7.3580260904113045E-3},{"$f":"'Population at Risk'!K166/'Population at Risk'!K$5","v":7.803872473081187E-3},{"$f":"'Population at Risk'!L166/'Population at Risk'!L$5","v":1.5440825499015489E-2},{"$f":"'Population at Risk'!M166/'Population at Risk'!M$5","v":1.5440825499015489E-2},{"$f":"'Population at Risk'!N166/'Population at Risk'!N$5","v":3.7412016440515239E-3},{"$f":"'Population at Risk'!O166/'Population at Risk'!O$5","v":5.8500599561812491E-3},{"$f":"'Population at Risk'!P166/'Population at Risk'!P$5","v":3.6644011431397842E-3},{"$f":"'Population at Risk'!Q166/'Population at Risk'!Q$5","v":9.6666318195517548E-3},{"$f":"'Population at Risk'!R166/'Population at Risk'!R$5","v":7.8221372493977349E-3},{"$f":"'Population at Risk'!S166/'Population at Risk'!S$5","v":7.4805258952760426E-3},{"$f":"'Population at Risk'!T166/'Population at Risk'!T$5","v":4.8891690177439032E-3},{"$f":"'Population at Risk'!U166/'Population at Risk'!U$5","v":3.0925083163386657E-2},{"$f":"'Population at Risk'!V166/'Population at Risk'!V$5","v":8.6023669191959921E-3},{"$f":"'Population at Risk'!W166/'Population at Risk'!W$5","v":9.3793742785656178E-3},{"$f":"'Population at Risk'!X166/'Population at Risk'!X$5","v":9.3793742785656178E-3},{"$f":"'Population at Risk'!Y166/'Population at Risk'!Y$5","v":7.9140865751144672E-3},{"$f":"'Population at Risk'!Z166/'Population at Risk'!Z$5","v":3.2877913859776574E-3},{"$f":"'Population at Risk'!AA166/'Population at Risk'!AA$5","v":4.7115528983917351E-3},{"$f":"'Population at Risk'!AB166/'Population at Risk'!AB$5","v":9.7368637408403961E-3},{"$f":"'Population at Risk'!AC166/'Population at Risk'!AC$5","v":4.2878927572607192E-3},{"$f":"'Population at Risk'!AD166/'Population at Risk'!AD$5","v":1.7888601133780879E-2},{"$f":"'Population at Risk'!AE166/'Population at Risk'!AE$5","v":1.6924592266430456E-2},{"$f":"'Population at Risk'!AF166/'Population at Risk'!AF$5","v":6.304431404971964E-3},{"$f":"'Population at Risk'!AG166/'Population at Risk'!AG$5","v":1.444399851628052E-2},{"$f":"'Population at Risk'!AH166/'Population at Risk'!AH$5","v":6.01184196869983E-3},{"$f":"'Population at Risk'!AI166/'Population at Risk'!AI$5","v":6.6006880001819312E-3},{"$f":"'Population at Risk'!AJ166/'Population at Risk'!AJ$5","v":9.0735663106182429E-3},{"$f":"'Population at Risk'!AK166/'Population at Risk'!AK$5","v":1.3207457035359457E-2},{"$f":"'Population at Risk'!AL166/'Population at Risk'!AL$5","v":5.8470017492573039E-3},{"$f":"'Population at Risk'!AM166/'Population at Risk'!AM$5","v":4.6314441968128622E-3},{"$f":"'Population at Risk'!AN166/'Population at Risk'!AN$5","v":1.9085645490550411E-2},{"$f":"'Population at Risk'!AO166/'Population at Risk'!AO$5","v":1.9085645490550411E-2},{"$f":"'Population at Risk'!AP166/'Population at Risk'!AP$5","v":1.2901401312532066E-2},{"$f":"'Population at Risk'!AQ166/'Population at Risk'!AQ$5","v":6.3778700686235625E-3},{"$f":"'Population at Risk'!AR166/'Population at Risk'!AR$5","v":7.938375465130933E-3},{"$f":"'Population at Risk'!AS166/'Population at Risk'!AS$5","v":1.4707331118401046E-2},{"$f":"'Population at Risk'!AT166/'Population at Risk'!AT$5","v":1.6610812753721248E-2},{"$f":"'Population at Risk'!AU166/'Population at Risk'!AU$5","v":1.6610812753721248E-2},{"$f":"'Population at Risk'!AV166/'Population at Risk'!AV$5","v":7.1812564951710947E-3},{"$f":"'Population at Risk'!AW166/'Population at Risk'!AW$5","v":7.918270504023826E-3},{"$f":"'Population at Risk'!AX166/'Population at Risk'!AX$5","v":7.0617443031160002E-3},{"$f":"'Population at Risk'!AY166/'Population at Risk'!AY$5","v":8.6104961909450866E-3},{"$f":"'Population at Risk'!AZ166/'Population at Risk'!AZ$5","v":1.0518203527374155E-2},{"$f":"'Population at Risk'!BA166/'Population at Risk'!BA$5","v":5.0133041813283227E-3},{"$f":"'Population at Risk'!BB166/'Population at Risk'!BB$5","v":7.567005113621697E-3},{"$f":"'Population at Risk'!BC166/'Population at Risk'!BC$5","v":3.0925083163386657E-2},164]
[null,"Male 60-64",{"$f":"'Population at Risk'!C167/'Population at Risk'!C$5","v":5.2313331002838579E-3},{"$f":"'Population at Risk'!D167/'Population at Risk'!D$5","v":6.7793420214884853E-3},{"$f":"'Population at Risk'!E167/'Population at Risk'!E$5","v":1.1478379122302795E-2},{"$f":"'Population at Risk'!F167/'Population at Risk'!F$5","v":1.8962742517011601E-2},{"$f":"'Population at Risk'!G167/'Population at Risk'!G$5","v":1.9436465940091442E-2},{"$f":"'Population at Risk'!H167/'Population at Risk'!H$5","v":6.1147778878133854E-3},{"$f":"'Population at Risk'!I167/'Population at Risk'!I$5","v":1.2977056869177394E-2},{"$f":"'Population at Risk'!J167/'Population at Risk'!J$5","v":6.4465588945270208E-3},{"$f":"'Population at Risk'!K167/'Population at Risk'!K$5","v":6.3925338343324622E-3},{"$f":"'Population at Risk'!L167/'Population at Risk'!L$5","v":1.4942261332855445E-2},{"$f":"'Population at Risk'!M167/'Population at Risk'!M$5","v":1.4942261332855445E-2},{"$f":"'Population at Risk'!N167/'Population at Risk'!N$5","v":3.1385919832647015E-3},{"$f":"'Population at Risk'!O167/'Population at Risk'!O$5","v":5.5792998179568717E-3},{"$f":"'Population at Risk'!P167/'Population at Risk'!P$5","v":3.2360945160195497E-3},{"$f":"'Population at Risk'!Q167/'Population at Risk'!Q$5","v":8.5144706968399847E-3},{"$f":"'Population at Risk'!R167/'Population at Risk'!R$5","v":6.0930332258466568E-3},{"$f":"'Population at Risk'!S167/'Population at Risk'!S$5","v":6.3657298029744886E-3},{"$f":"'Population at Risk'!T167/'Population at Risk'!T$5","v":4.0189285776923997E-3},{"$f":"'Population at Risk'!U167/'Population at Risk'!U$5","v":2.9791018054433127E-2},{"$f":"'Population at Risk'!V167/'Population at Risk'!V$5","v":7.1293588850870893E-3},{"$f":"'Population at Risk'!W167/'Population at Risk'!W$5","v":7.8462693982081968E-3},{"$f":"'Population at Risk'!X167/'Population at Risk'!X$5","v":7.8462693982081968E-3},{"$f":"'Population at Risk'!Y167/'Population at Risk'!Y$5","v":6.7331888400842983E-3},{"$f":"'Population at Risk'!Z167/'Population at Risk'!Z$5","v":2.7457385981298084E-3},{"$f":"'Population at Risk'!AA167/'Population at Risk'!AA$5","v":3.96692843213017E-3},{"$f":"'Population at Risk'!AB167/'Population at Risk'!AB$5","v":8.8469771799269247E-3},{"$f":"'Population at Risk'!AC167/'Population at Risk'!AC$5","v":3.5270692646663447E-3},{"$f":"'Population at Risk'!AD167/'Population at Risk'!AD$5","v":1.706360172076176E-2},{"$f":"'Population at Risk'!AE167/'Population at Risk'!AE$5","v":1.6017612094417495E-2},{"$f":"'Population at Risk'!AF167/'Population at Risk'!AF$5","v":4.7252391939418053E-3},{"$f":"'Population at Risk'!AG167/'Population at Risk'!AG$5","v":1.3669952084164374E-2},{"$f":"'Population at Risk'!AH167/'Population at Risk'!AH$5","v":5.2017052573780026E-3},{"$f":"'Population at Risk'!AI167/'Population at Risk'!AI$5","v":5.6085728183172933E-3},{"$f":"'Population at Risk'!AJ167/'Population at Risk'!AJ$5","v":8.6277552491138762E-3},{"$f":"'Population at Risk'!AK167/'Population at Risk'!AK$5","v":1.1477582205364351E-2},{"$f":"'Population at Risk'!AL167/'Population at Risk'!AL$5","v":5.1910361790497668E-3},{"$f":"'Population at Risk'!AM167/'Population at Risk'!AM$5","v":3.9508463523619877E-3},{"$f":"'Population at Risk'!AN167/'Population at Risk'!AN$5","v":1.5243320820835644E-2},{"$f":"'Population at Risk'!AO167/'Population at Risk'!AO$5","v":1.5243320820835644E-2},{"$f":"'Population at Risk'!AP167/'Population at Risk'!AP$5","v":1.2170581751776851E-2},{"$f":"'Population at Risk'!AQ167/'Population at Risk'!AQ$5","v":5.1325560223777203E-3},{"$f":"'Population at Risk'!AR167/'Population at Risk'!AR$5","v":7.0296222956241347E-3},{"$f":"'Population at Risk'!AS167/'Population at Risk'!AS$5","v":1.2977056869177394E-2},{"$f":"'Population at Risk'!AT167/'Population at Risk'!AT$5","v":1.6364726638851301E-2},{"$f":"'Population at Risk'!AU167/'Population at Risk'!AU$5","v":1.6364726638851301E-2},{"$f":"'Population at Risk'!AV167/'Population at Risk'!AV$5","v":7.4635663328190983E-3},{"$f":"'Population at Risk'!AW167/'Population at Risk'!AW$5","v":6.9319354151079664E-3},{"$f":"'Population at Risk'!AX167/'Population at Risk'!AX$5","v":6.4824605907510156E-3},{"$f":"'Population at Risk'!AY167/'Population at Risk'!AY$5","v":7.4272702783207698E-3},{"$f":"'Population at Risk'!AZ167/'Population at Risk'!AZ$5","v":9.3071853945109941E-3},{"$f":"'Population at Risk'!BA167/'Population at Risk'!BA$5","v":4.4128513991540178E-3},{"$f":"'Population at Risk'!BB167/'Population at Risk'!BB$5","v":6.1826623413774942E-3},{"$f":"'Population at Risk'!BC167/'Population at Risk'!BC$5","v":2.9791018054433127E-2},165]
[null,"Male 65-69",{"$f":"'Population at Risk'!C168/'Population at Risk'!C$5","v":3.8379991461634979E-3},{"$f":"'Population at Risk'!D168/'Population at Risk'!D$5","v":5.3246296632215914E-3},{"$f":"'Population at Risk'!E168/'Population at Risk'!E$5","v":9.3082930586125927E-3},{"$f":"'Population at Risk'!F168/'Population at Risk'!F$5","v":1.7198326534100923E-2},{"$f":"'Population at Risk'!G168/'Population at Risk'!G$5","v":1.7308392499606522E-2},{"$f":"'Population at Risk'!H168/'Population at Risk'!H$5","v":5.0903403021577446E-3},{"$f":"'Population at Risk'!I168/'Population at Risk'!I$5","v":1.0927652324058745E-2},{"$f":"'Population at Risk'!J168/'Population at Risk'!J$5","v":5.1350388782387133E-3},{"$f":"'Population at Risk'!K168/'Population at Risk'!K$5","v":5.2611050783522781E-3},{"$f":"'Population at Risk'!L168/'Population at Risk'!L$5","v":1.2485137220396039E-2},{"$f":"'Population at Risk'!M168/'Population at Risk'!M$5","v":1.2485137220396039E-2},{"$f":"'Population at Risk'!N168/'Population at Risk'!N$5","v":2.4551040280585334E-3},{"$f":"'Population at Risk'!O168/'Population at Risk'!O$5","v":4.5232863239135805E-3},{"$f":"'Population at Risk'!P168/'Population at Risk'!P$5","v":2.7383002213118954E-3},{"$f":"'Population at Risk'!Q168/'Population at Risk'!Q$5","v":6.1905369642394027E-3},{"$f":"'Population at Risk'!R168/'Population at Risk'!R$5","v":4.1775282906534169E-3},{"$f":"'Population at Risk'!S168/'Population at Risk'!S$5","v":4.9712852183894461E-3},{"$f":"'Population at Risk'!T168/'Population at Risk'!T$5","v":2.8174038966999617E-3},{"$f":"'Population at Risk'!U168/'Population at Risk'!U$5","v":2.5199418072821347E-2},{"$f":"'Population at Risk'!V168/'Population at Risk'!V$5","v":5.9624191197279507E-3},{"$f":"'Population at Risk'!W168/'Population at Risk'!W$5","v":6.51006440715007E-3},{"$f":"'Population at Risk'!X168/'Population at Risk'!X$5","v":6.51006440715007E-3},{"$f":"'Population at Risk'!Y168/'Population at Risk'!Y$5","v":5.5029092775647302E-3},{"$f":"'Population at Risk'!Z168/'Population at Risk'!Z$5","v":1.69364996039606E-3},{"$f":"'Population at Risk'!AA168/'Population at Risk'!AA$5","v":2.7899156886679456E-3},{"$f":"'Population at Risk'!AB168/'Population at Risk'!AB$5","v":6.9981280511123723E-3},{"$f":"'Population at Risk'!AC168/'Population at Risk'!AC$5","v":2.4322394422814841E-3},{"$f":"'Population at Risk'!AD168/'Population at Risk'!AD$5","v":1.3760303603158592E-2},{"$f":"'Population at Risk'!AE168/'Population at Risk'!AE$5","v":1.2259584861764218E-2},{"$f":"'Population at Risk'!AF168/'Population at Risk'!AF$5","v":3.4343543854899704E-3},{"$f":"'Population at Risk'!AG168/'Population at Risk'!AG$5","v":1.0462729191105333E-2},{"$f":"'Population at Risk'!AH168/'Population at Risk'!AH$5","v":3.73968136210483E-3},{"$f":"'Population at Risk'!AI168/'Population at Risk'!AI$5","v":4.1010114354254959E-3},{"$f":"'Population at Risk'!AJ168/'Population at Risk'!AJ$5","v":6.7494280093244935E-3},{"$f":"'Population at Risk'!AK168/'Population at Risk'!AK$5","v":9.2768592613399307E-3},{"$f":"'Population at Risk'!AL168/'Population at Risk'!AL$5","v":4.8046042504572501E-3},{"$f":"'Population at Risk'!AM168/'Population at Risk'!AM$5","v":3.0945618956290241E-3},{"$f":"'Population at Risk'!AN168/'Population at Risk'!AN$5","v":1.1460858183417928E-2},{"$f":"'Population at Risk'!AO168/'Population at Risk'!AO$5","v":1.1460858183417928E-2},{"$f":"'Population at Risk'!AP168/'Population at Risk'!AP$5","v":9.1527772021005992E-3},{"$f":"'Population at Risk'!AQ168/'Population at Risk'!AQ$5","v":4.1537930133273464E-3},{"$f":"'Population at Risk'!AR168/'Population at Risk'!AR$5","v":5.486378999606514E-3},{"$f":"'Population at Risk'!AS168/'Population at Risk'!AS$5","v":1.0927652324058745E-2},{"$f":"'Population at Risk'!AT168/'Population at Risk'!AT$5","v":1.3250856309201626E-2},{"$f":"'Population at Risk'!AU168/'Population at Risk'!AU$5","v":1.3250856309201626E-2},{"$f":"'Population at Risk'!AV168/'Population at Risk'!AV$5","v":5.8171323276887113E-3},{"$f":"'Population at Risk'!AW168/'Population at Risk'!AW$5","v":4.6204128686534729E-3},{"$f":"'Population at Risk'!AX168/'Population at Risk'!AX$5","v":5.0512631192799811E-3},{"$f":"'Population at Risk'!AY168/'Population at Risk'!AY$5","v":6.1300307105927564E-3},{"$f":"'Population at Risk'!AZ168/'Population at Risk'!AZ$5","v":7.6487671389884179E-3},{"$f":"'Population at Risk'!BA168/'Population at Risk'!BA$5","v":2.9495681910857532E-3},{"$f":"'Population at Risk'!BB168/'Population at Risk'!BB$5","v":4.6058655303535369E-3},{"$f":"'Population at Risk'!BC168/'Population at Risk'!BC$5","v":2.5199418072821347E-2},166]
[null,"Male 70-74",{"$f":"'Population at Risk'!C169/'Population at Risk'!C$5","v":2.3736254071036094E-3},{"$f":"'Population at Risk'!D169/'Population at Risk'!D$5","v":3.6248440399623909E-3},{"$f":"'Population at Risk'!E169/'Population at Risk'!E$5","v":6.5955313440892354E-3},{"$f":"'Population at Risk'!F169/'Population at Risk'!F$5","v":1.123467473934101E-2},{"$f":"'Population at Risk'!G169/'Population at Risk'!G$5","v":1.2498667114119941E-2},{"$f":"'Population at Risk'!H169/'Population at Risk'!H$5","v":3.8638315828016336E-3},{"$f":"'Population at Risk'!I169/'Population at Risk'!I$5","v":8.0649362911486919E-3},{"$f":"'Population at Risk'!J169/'Population at Risk'!J$5","v":3.6789299867933567E-3},{"$f":"'Population at Risk'!K169/'Population at Risk'!K$5","v":4.0184514248764328E-3},{"$f":"'Population at Risk'!L169/'Population at Risk'!L$5","v":1.0005212704016003E-2},{"$f":"'Population at Risk'!M169/'Population at Risk'!M$5","v":1.0005212704016003E-2},{"$f":"'Population at Risk'!N169/'Population at Risk'!N$5","v":1.7278465724308565E-3},{"$f":"'Population at Risk'!O169/'Population at Risk'!O$5","v":3.4769972447572656E-3},{"$f":"'Population at Risk'!P169/'Population at Risk'!P$5","v":1.5171663388349693E-3},{"$f":"'Population at Risk'!Q169/'Population at Risk'!Q$5","v":4.7123334923153768E-3},{"$f":"'Population at Risk'!R169/'Population at Risk'!R$5","v":3.4732706477846416E-3},{"$f":"'Population at Risk'!S169/'Population at Risk'!S$5","v":3.5407040959790433E-3},{"$f":"'Population at Risk'!T169/'Population at Risk'!T$5","v":1.6711675224239219E-3},{"$f":"'Population at Risk'!U169/'Population at Risk'!U$5","v":1.817885341457906E-2},{"$f":"'Population at Risk'!V169/'Population at Risk'!V$5","v":4.4963577774457756E-3},{"$f":"'Population at Risk'!W169/'Population at Risk'!W$5","v":4.7683586636796957E-3},{"$f":"'Population at Risk'!X169/'Population at Risk'!X$5","v":4.7683586636796957E-3},{"$f":"'Population at Risk'!Y169/'Population at Risk'!Y$5","v":4.0530795498691045E-3},{"$f":"'Population at Risk'!Z169/'Population at Risk'!Z$5","v":1.2015536201116022E-3},{"$f":"'Population at Risk'!AA169/'Population at Risk'!AA$5","v":2.0474126458174735E-3},{"$f":"'Population at Risk'!AB169/'Population at Risk'!AB$5","v":4.8577377766153337E-3},{"$f":"'Population at Risk'!AC169/'Population at Risk'!AC$5","v":1.7872875424999096E-3},{"$f":"'Population at Risk'!AD169/'Population at Risk'!AD$5","v":1.0336900121920428E-2},{"$f":"'Population at Risk'!AE169/'Population at Risk'!AE$5","v":9.4120257151460458E-3},{"$f":"'Population at Risk'!AF169/'Population at Risk'!AF$5","v":2.88754377104045E-3},{"$f":"'Population at Risk'!AG169/'Population at Risk'!AG$5","v":8.0325294296402019E-3},{"$f":"'Population at Risk'!AH169/'Population at Risk'!AH$5","v":2.7404367276871395E-3},{"$f":"'Population at Risk'!AI169/'Population at Risk'!AI$5","v":2.8235587809809326E-3},{"$f":"'Population at Risk'!AJ169/'Population at Risk'!AJ$5","v":4.7918899764086281E-3},{"$f":"'Population at Risk'!AK169/'Population at Risk'!AK$5","v":6.8108586981989365E-3},{"$f":"'Population at Risk'!AL169/'Population at Risk'!AL$5","v":3.6144729223623355E-3},{"$f":"'Population at Risk'!AM169/'Population at Risk'!AM$5","v":2.1768901145722669E-3},{"$f":"'Population at Risk'!AN169/'Population at Risk'!AN$5","v":9.5507151528482735E-3},{"$f":"'Population at Risk'!AO169/'Population at Risk'!AO$5","v":9.5507151528482735E-3},{"$f":"'Population at Risk'!AP169/'Population at Risk'!AP$5","v":7.3494982500311098E-3},{"$f":"'Population at Risk'!AQ169/'Population at Risk'!AQ$5","v":3.0723588845852591E-3},{"$f":"'Population at Risk'!AR169/'Population at Risk'!AR$5","v":4.01741503803856E-3},{"$f":"'Population at Risk'!AS169/'Population at Risk'!AS$5","v":8.0649362911486919E-3},{"$f":"'Population at Risk'!AT169/'Population at Risk'!AT$5","v":9.9022644621109615E-3},{"$f":"'Population at Risk'!AU169/'Population at Risk'!AU$5","v":9.9022644621109615E-3},{"$f":"'Population at Risk'!AV169/'Population at Risk'!AV$5","v":4.4040082009152741E-3},{"$f":"'Population at Risk'!AW169/'Population at Risk'!AW$5","v":3.5155898263521204E-3},{"$f":"'Population at Risk'!AX169/'Population at Risk'!AX$5","v":3.4533051473633843E-3},{"$f":"'Population at Risk'!AY169/'Population at Risk'!AY$5","v":4.4418818719217188E-3},{"$f":"'Population at Risk'!AZ169/'Population at Risk'!AZ$5","v":5.4933368526550947E-3},{"$f":"'Population at Risk'!BA169/'Population at Risk'!BA$5","v":2.2529365077639924E-3},{"$f":"'Population at Risk'!BB169/'Population at Risk'!BB$5","v":3.4565434054608483E-3},{"$f":"'Population at Risk'!BC169/'Population at Risk'!BC$5","v":1.817885341457906E-2},167]
[null,"Male 75-79",{"$f":"'Population at Risk'!C170/'Population at Risk'!C$5","v":9.7608464742401501E-4},{"$f":"'Population at Risk'!D170/'Population at Risk'!D$5","v":1.2363791586607893E-3},{"$f":"'Population at Risk'!E170/'Population at Risk'!E$5","v":2.069539253344218E-3},{"$f":"'Population at Risk'!F170/'Population at Risk'!F$5","v":3.8129862828355497E-3},{"$f":"'Population at Risk'!G170/'Population at Risk'!G$5","v":4.2645576228117635E-3},{"$f":"'Population at Risk'!H170/'Population at Risk'!H$5","v":1.2977183681343921E-3},{"$f":"'Population at Risk'!I170/'Population at Risk'!I$5","v":2.7129195242534525E-3},{"$f":"'Population at Risk'!J170/'Population at Risk'!J$5","v":1.170728097121926E-3},{"$f":"'Population at Risk'!K170/'Population at Risk'!K$5","v":1.2096339168273153E-3},{"$f":"'Population at Risk'!L170/'Population at Risk'!L$5","v":3.410716447116777E-3},{"$f":"'Population at Risk'!M170/'Population at Risk'!M$5","v":3.410716447116777E-3},{"$f":"'Population at Risk'!N170/'Population at Risk'!N$5","v":6.8290967525125616E-4},{"$f":"'Population at Risk'!O170/'Population at Risk'!O$5","v":1.1795405862503514E-3},{"$f":"'Population at Risk'!P170/'Population at Risk'!P$5","v":3.8101987937223022E-4},{"$f":"'Population at Risk'!Q170/'Population at Risk'!Q$5","v":1.4203204370002002E-3},{"$f":"'Population at Risk'!R170/'Population at Risk'!R$5","v":1.2505987050663782E-3},{"$f":"'Population at Risk'!S170/'Population at Risk'!S$5","v":1.1953951331577783E-3},{"$f":"'Population at Risk'!T170/'Population at Risk'!T$5","v":6.0639275271629639E-4},{"$f":"'Population at Risk'!U170/'Population at Risk'!U$5","v":6.3630067669979444E-3},{"$f":"'Population at Risk'!V170/'Population at Risk'!V$5","v":1.450890313746763E-3},{"$f":"'Population at Risk'!W170/'Population at Risk'!W$5","v":1.6393996385237434E-3},{"$f":"'Population at Risk'!X170/'Population at Risk'!X$5","v":1.6393996385237434E-3},{"$f":"'Population at Risk'!Y170/'Population at Risk'!Y$5","v":1.2996550176159192E-3},{"$f":"'Population at Risk'!Z170/'Population at Risk'!Z$5","v":3.8894449873639372E-4},{"$f":"'Population at Risk'!AA170/'Population at Risk'!AA$5","v":6.8535310839756662E-4},{"$f":"'Population at Risk'!AB170/'Population at Risk'!AB$5","v":1.7347577423113593E-3},{"$f":"'Population at Risk'!AC170/'Population at Risk'!AC$5","v":5.6740558071216867E-4},{"$f":"'Population at Risk'!AD170/'Population at Risk'!AD$5","v":3.3079125310123115E-3},{"$f":"'Population at Risk'!AE170/'Population at Risk'!AE$5","v":2.9054514400912198E-3},{"$f":"'Population at Risk'!AF170/'Population at Risk'!AF$5","v":9.3258084180614586E-4},{"$f":"'Population at Risk'!AG170/'Population at Risk'!AG$5","v":2.4796069310952886E-3},{"$f":"'Population at Risk'!AH170/'Population at Risk'!AH$5","v":9.6931009791216972E-4},{"$f":"'Population at Risk'!AI170/'Population at Risk'!AI$5","v":9.4201350592482049E-4},{"$f":"'Population at Risk'!AJ170/'Population at Risk'!AJ$5","v":1.5932284685743511E-3},{"$f":"'Population at Risk'!AK170/'Population at Risk'!AK$5","v":2.7350856500615878E-3},{"$f":"'Population at Risk'!AL170/'Population at Risk'!AL$5","v":1.2271594915470971E-3},{"$f":"'Population at Risk'!AM170/'Population at Risk'!AM$5","v":7.2120630772359916E-4},{"$f":"'Population at Risk'!AN170/'Population at Risk'!AN$5","v":3.1148701888372011E-3},{"$f":"'Population at Risk'!AO170/'Population at Risk'!AO$5","v":3.1148701888372011E-3},{"$f":"'Population at Risk'!AP170/'Population at Risk'!AP$5","v":2.5538800599489162E-3},{"$f":"'Population at Risk'!AQ170/'Population at Risk'!AQ$5","v":9.8457390054714389E-4},{"$f":"'Population at Risk'!AR170/'Population at Risk'!AR$5","v":1.355214770511463E-3},{"$f":"'Population at Risk'!AS170/'Population at Risk'!AS$5","v":2.7129195242534525E-3},{"$f":"'Population at Risk'!AT170/'Population at Risk'!AT$5","v":3.389997744700046E-3},{"$f":"'Population at Risk'!AU170/'Population at Risk'!AU$5","v":3.389997744700046E-3},{"$f":"'Population at Risk'!AV170/'Population at Risk'!AV$5","v":1.4521438605987114E-3},{"$f":"'Population at Risk'!AW170/'Population at Risk'!AW$5","v":1.3131819469098249E-3},{"$f":"'Population at Risk'!AX170/'Population at Risk'!AX$5","v":1.1448737081517309E-3},{"$f":"'Population at Risk'!AY170/'Population at Risk'!AY$5","v":1.545803944628092E-3},{"$f":"'Population at Risk'!AZ170/'Population at Risk'!AZ$5","v":1.9309289360645244E-3},{"$f":"'Population at Risk'!BA170/'Population at Risk'!BA$5","v":6.2954620598765242E-4},{"$f":"'Population at Risk'!BB170/'Population at Risk'!BB$5","v":1.1260182953993867E-3},{"$f":"'Population at Risk'!BC170/'Population at Risk'!BC$5","v":6.3630067669979444E-3},168]
[null,"Male 80-84",{"$f":"'Population at Risk'!C171/'Population at Risk'!C$5","v":6.8912880452875894E-4},{"$f":"'Population at Risk'!D171/'Population at Risk'!D$5","v":8.5216200852767721E-4},{"$f":"'Population at Risk'!E171/'Population at Risk'!E$5","v":1.4086977417649847E-3},{"$f":"'Population at Risk'!F171/'Population at Risk'!F$5","v":2.5064385355702216E-3},{"$f":"'Population at Risk'!G171/'Population at Risk'!G$5","v":2.5457053729593137E-3},{"$f":"'Population at Risk'!H171/'Population at Risk'!H$5","v":8.0035933149916801E-4},{"$f":"'Population at Risk'!I171/'Population at Risk'!I$5","v":1.7723954839302905E-3},{"$f":"'Population at Risk'!J171/'Population at Risk'!J$5","v":8.282901287137626E-4},{"$f":"'Population at Risk'!K171/'Population at Risk'!K$5","v":7.6976703798101891E-4},{"$f":"'Population at Risk'!L171/'Population at Risk'!L$5","v":2.3100676316083258E-3},{"$f":"'Population at Risk'!M171/'Population at Risk'!M$5","v":2.3100676316083258E-3},{"$f":"'Population at Risk'!N171/'Population at Risk'!N$5","v":4.6562023312585643E-4},{"$f":"'Population at Risk'!O171/'Population at Risk'!O$5","v":7.5061673670476909E-4},{"$f":"'Population at Risk'!P171/'Population at Risk'!P$5","v":3.866231128924101E-4},{"$f":"'Population at Risk'!Q171/'Population at Risk'!Q$5","v":1.1150939820574637E-3},{"$f":"'Population at Risk'!R171/'Population at Risk'!R$5","v":9.3794902879978362E-4},{"$f":"'Population at Risk'!S171/'Population at Risk'!S$5","v":8.1312162339585369E-4},{"$f":"'Population at Risk'!T171/'Population at Risk'!T$5","v":5.0765599113729884E-4},{"$f":"'Population at Risk'!U171/'Population at Risk'!U$5","v":3.7746650312699666E-3},{"$f":"'Population at Risk'!V171/'Population at Risk'!V$5","v":8.6220940775934686E-4},{"$f":"'Population at Risk'!W171/'Population at Risk'!W$5","v":1.0374503971186417E-3},{"$f":"'Population at Risk'!X171/'Population at Risk'!X$5","v":1.0374503971186417E-3},{"$f":"'Population at Risk'!Y171/'Population at Risk'!Y$5","v":8.3862874447513704E-4},{"$f":"'Population at Risk'!Z171/'Population at Risk'!Z$5","v":2.6815116858759105E-4},{"$f":"'Population at Risk'!AA171/'Population at Risk'!AA$5","v":4.6539423119981363E-4},{"$f":"'Population at Risk'!AB171/'Population at Risk'!AB$5","v":1.1290129627721049E-3},{"$f":"'Population at Risk'!AC171/'Population at Risk'!AC$5","v":4.1089022274145974E-4},{"$f":"'Population at Risk'!AD171/'Population at Risk'!AD$5","v":2.1942149845921174E-3},{"$f":"'Population at Risk'!AE171/'Population at Risk'!AE$5","v":2.0410695622832217E-3},{"$f":"'Population at Risk'!AF171/'Population at Risk'!AF$5","v":6.1445747053582504E-4},{"$f":"'Population at Risk'!AG171/'Population at Risk'!AG$5","v":1.7419152712895476E-3},{"$f":"'Population at Risk'!AH171/'Population at Risk'!AH$5","v":6.1513910059810765E-4},{"$f":"'Population at Risk'!AI171/'Population at Risk'!AI$5","v":6.8469972308895653E-4},{"$f":"'Population at Risk'!AJ171/'Population at Risk'!AJ$5","v":1.0328196177095358E-3},{"$f":"'Population at Risk'!AK171/'Population at Risk'!AK$5","v":1.5324238748572019E-3},{"$f":"'Population at Risk'!AL171/'Population at Risk'!AL$5","v":7.8378018807436975E-4},{"$f":"'Population at Risk'!AM171/'Population at Risk'!AM$5","v":4.3562224970066096E-4},{"$f":"'Population at Risk'!AN171/'Population at Risk'!AN$5","v":2.3361526416279012E-3},{"$f":"'Population at Risk'!AO171/'Population at Risk'!AO$5","v":2.3361526416279012E-3},{"$f":"'Population at Risk'!AP171/'Population at Risk'!AP$5","v":1.820758155947408E-3},{"$f":"'Population at Risk'!AQ171/'Population at Risk'!AQ$5","v":6.8858508702148899E-4},{"$f":"'Population at Risk'!AR171/'Population at Risk'!AR$5","v":9.0337693508798947E-4},{"$f":"'Population at Risk'!AS171/'Population at Risk'!AS$5","v":1.7723954839302905E-3},{"$f":"'Population at Risk'!AT171/'Population at Risk'!AT$5","v":2.0209601939557963E-3},{"$f":"'Population at Risk'!AU171/'Population at Risk'!AU$5","v":2.0209601939557963E-3},{"$f":"'Population at Risk'!AV171/'Population at Risk'!AV$5","v":8.413709063554766E-4},{"$f":"'Population at Risk'!AW171/'Population at Risk'!AW$5","v":8.6489720065489396E-4},{"$f":"'Population at Risk'!AX171/'Population at Risk'!AX$5","v":8.6718093638726845E-4},{"$f":"'Population at Risk'!AY171/'Population at Risk'!AY$5","v":1.0226533121033177E-3},{"$f":"'Population at Risk'!AZ171/'Population at Risk'!AZ$5","v":1.3226589709359829E-3},{"$f":"'Population at Risk'!BA171/'Population at Risk'!BA$5","v":5.5211538920842248E-4},{"$f":"'Population at Risk'!BB171/'Population at Risk'!BB$5","v":6.9158563125740874E-4},{"$f":"'Population at Risk'!BC171/'Population at Risk'!BC$5","v":3.7746650312699666E-3},169]
[null,"Male 85-89",{"$f":"'Population at Risk'!C172/'Population at Risk'!C$5","v":3.4347744831401869E-4},{"$f":"'Population at Risk'!D172/'Population at Risk'!D$5","v":3.8793838161139889E-4},{"$f":"'Population at Risk'!E172/'Population at Risk'!E$5","v":6.0910303024562789E-4},{"$f":"'Population at Risk'!F172/'Population at Risk'!F$5","v":1.4238704021218066E-3},{"$f":"'Population at Risk'!G172/'Population at Risk'!G$5","v":1.2277516070374644E-3},{"$f":"'Population at Risk'!H172/'Population at Risk'!H$5","v":3.7277009960235221E-4},{"$f":"'Population at Risk'!I172/'Population at Risk'!I$5","v":8.7940695467039331E-4},{"$f":"'Population at Risk'!J172/'Population at Risk'!J$5","v":3.6292571010779705E-4},{"$f":"'Population at Risk'!K172/'Population at Risk'!K$5","v":4.1054242025654339E-4},{"$f":"'Population at Risk'!L172/'Population at Risk'!L$5","v":1.0695716724823303E-3},{"$f":"'Population at Risk'!M172/'Population at Risk'!M$5","v":1.0695716724823303E-3},{"$f":"'Population at Risk'!N172/'Population at Risk'!N$5","v":3.192824455720158E-4},{"$f":"'Population at Risk'!O172/'Population at Risk'!O$5","v":3.072022165664306E-4},{"$f":"'Population at Risk'!P172/'Population at Risk'!P$5","v":1.1206467040359711E-4},{"$f":"'Population at Risk'!Q172/'Population at Risk'!Q$5","v":5.6975604922644132E-4},{"$f":"'Population at Risk'!R172/'Population at Risk'!R$5","v":5.1623551197507473E-4},{"$f":"'Population at Risk'!S172/'Population at Risk'!S$5","v":4.0612967616060133E-4},{"$f":"'Population at Risk'!T172/'Population at Risk'!T$5","v":2.3100676293954148E-4},{"$f":"'Population at Risk'!U172/'Population at Risk'!U$5","v":2.2956126108539796E-3},{"$f":"'Population at Risk'!V172/'Population at Risk'!V$5","v":3.7164198610316676E-4},{"$f":"'Population at Risk'!W172/'Population at Risk'!W$5","v":5.3240586313670947E-4},{"$f":"'Population at Risk'!X172/'Population at Risk'!X$5","v":5.3240586313670947E-4},{"$f":"'Population at Risk'!Y172/'Population at Risk'!Y$5","v":3.6443029210176113E-4},{"$f":"'Population at Risk'!Z172/'Population at Risk'!Z$5","v":1.187884615986151E-4},{"$f":"'Population at Risk'!AA172/'Population at Risk'!AA$5","v":2.2731476134547562E-4},{"$f":"'Population at Risk'!AB172/'Population at Risk'!AB$5","v":5.562588217554121E-4},{"$f":"'Population at Risk'!AC172/'Population at Risk'!AC$5","v":2.0768959547164825E-4},{"$f":"'Population at Risk'!AD172/'Population at Risk'!AD$5","v":1.0675339175530356E-3},{"$f":"'Population at Risk'!AE172/'Population at Risk'!AE$5","v":9.9736370516307488E-4},{"$f":"'Population at Risk'!AF172/'Population at Risk'!AF$5","v":3.8784904168573354E-4},{"$f":"'Population at Risk'!AG172/'Population at Risk'!AG$5","v":8.5118268439123999E-4},{"$f":"'Population at Risk'!AH172/'Population at Risk'!AH$5","v":2.886770717794559E-4},{"$f":"'Population at Risk'!AI172/'Population at Risk'!AI$5","v":3.3671346439664499E-4},{"$f":"'Population at Risk'!AJ172/'Population at Risk'!AJ$5","v":5.6040885086481532E-4},{"$f":"'Population at Risk'!AK172/'Population at Risk'!AK$5","v":9.2139410197110232E-4},{"$f":"'Population at Risk'!AL172/'Population at Risk'!AL$5","v":3.3467986133102647E-4},{"$f":"'Population at Risk'!AM172/'Population at Risk'!AM$5","v":2.0800749300775202E-4},{"$f":"'Population at Risk'!AN172/'Population at Risk'!AN$5","v":1.1792008572026548E-3},{"$f":"'Population at Risk'!AO172/'Population at Risk'!AO$5","v":1.1792008572026548E-3},{"$f":"'Population at Risk'!AP172/'Population at Risk'!AP$5","v":9.8437964574850422E-4},{"$f":"'Population at Risk'!AQ172/'Population at Risk'!AQ$5","v":4.2753939731483495E-4},{"$f":"'Population at Risk'!AR172/'Population at Risk'!AR$5","v":4.4952263329155163E-4},{"$f":"'Population at Risk'!AS172/'Population at Risk'!AS$5","v":8.7940695467039331E-4},{"$f":"'Population at Risk'!AT172/'Population at Risk'!AT$5","v":1.2386530221019398E-3},{"$f":"'Population at Risk'!AU172/'Population at Risk'!AU$5","v":1.2386530221019398E-3},{"$f":"'Population at Risk'!AV172/'Population at Risk'!AV$5","v":4.7054446985065544E-4},{"$f":"'Population at Risk'!AW172/'Population at Risk'!AW$5","v":4.0077630847247905E-4},{"$f":"'Population at Risk'!AX172/'Population at Risk'!AX$5","v":3.312826049119902E-4},{"$f":"'Population at Risk'!AY172/'Population at Risk'!AY$5","v":5.617595352941302E-4},{"$f":"'Population at Risk'!AZ172/'Population at Risk'!AZ$5","v":7.6252547786797361E-4},{"$f":"'Population at Risk'!BA172/'Population at Risk'!BA$5","v":2.3229245033768995E-4},{"$f":"'Population at Risk'!BB172/'Population at Risk'!BB$5","v":3.4676687989808103E-4},{"$f":"'Population at Risk'!BC172/'Population at Risk'!BC$5","v":2.2956126108539796E-3},170]
[null,"Male 90+",{"$f":"'Population at Risk'!C173/'Population at Risk'!C$5","v":1.3695619774546313E-4},{"$f":"'Population at Risk'!D173/'Population at Risk'!D$5","v":1.730372637403362E-4},{"$f":"'Population at Risk'!E173/'Population at Risk'!E$5","v":2.8926514563788503E-4},{"$f":"'Population at Risk'!F173/'Population at Risk'!F$5","v":6.2394320991854442E-4},{"$f":"'Population at Risk'!G173/'Population at Risk'!G$5","v":5.0613433596238323E-4},{"$f":"'Population at Risk'!H173/'Population at Risk'!H$5","v":1.4851001294318312E-4},{"$f":"'Population at Risk'!I173/'Population at Risk'!I$5","v":3.1577160920597132E-4},{"$f":"'Population at Risk'!J173/'Population at Risk'!J$5","v":1.6390193359706962E-4},{"$f":"'Population at Risk'!K173/'Population at Risk'!K$5","v":1.9794009548083344E-4},{"$f":"'Population at Risk'!L173/'Population at Risk'!L$5","v":5.1795238376868287E-4},{"$f":"'Population at Risk'!M173/'Population at Risk'!M$5","v":5.1795238376868287E-4},{"$f":"'Population at Risk'!N173/'Population at Risk'!N$5","v":1.1529643867878349E-4},{"$f":"'Population at Risk'!O173/'Population at Risk'!O$5","v":1.0143469414929312E-4},{"$f":"'Population at Risk'!P173/'Population at Risk'!P$5","v":6.7238802242158279E-5},{"$f":"'Population at Risk'!Q173/'Population at Risk'!Q$5","v":2.4011147788828601E-4},{"$f":"'Population at Risk'!R173/'Population at Risk'!R$5","v":2.5448229463560025E-4},{"$f":"'Population at Risk'!S173/'Population at Risk'!S$5","v":1.6469377525833302E-4},{"$f":"'Population at Risk'!T173/'Population at Risk'!T$5","v":9.7805282696176828E-5},{"$f":"'Population at Risk'!U173/'Population at Risk'!U$5","v":9.2440776275999181E-4},{"$f":"'Population at Risk'!V173/'Population at Risk'!V$5","v":1.9028069688482136E-4},{"$f":"'Population at Risk'!W173/'Population at Risk'!W$5","v":2.2459091014546417E-4},{"$f":"'Population at Risk'!X173/'Population at Risk'!X$5","v":2.2459091014546417E-4},{"$f":"'Population at Risk'!Y173/'Population at Risk'!Y$5","v":1.7562905643458369E-4},{"$f":"'Population at Risk'!Z173/'Population at Risk'!Z$5","v":6.0146056505627905E-5},{"$f":"'Population at Risk'!AA173/'Population at Risk'!AA$5","v":1.0764708508862303E-4},{"$f":"'Population at Risk'!AB173/'Population at Risk'!AB$5","v":2.3826572266294423E-4},{"$f":"'Population at Risk'!AC173/'Population at Risk'!AC$5","v":1.0833376593766091E-4},{"$f":"'Population at Risk'!AD173/'Population at Risk'!AD$5","v":4.1547265980442465E-4},{"$f":"'Population at Risk'!AE173/'Population at Risk'!AE$5","v":3.7678184417271716E-4},{"$f":"'Population at Risk'!AF173/'Population at Risk'!AF$5","v":1.6559846723660532E-4},{"$f":"'Population at Risk'!AG173/'Population at Risk'!AG$5","v":3.2155790299224617E-4},{"$f":"'Population at Risk'!AH173/'Population at Risk'!AH$5","v":1.19904263671048E-4},{"$f":"'Population at Risk'!AI173/'Population at Risk'!AI$5","v":1.3870438198580864E-4},{"$f":"'Population at Risk'!AJ173/'Population at Risk'!AJ$5","v":1.7599616804018996E-4},{"$f":"'Population at Risk'!AK173/'Population at Risk'!AK$5","v":3.5885875550453457E-4},{"$f":"'Population at Risk'!AL173/'Population at Risk'!AL$5","v":1.687701864831672E-4},{"$f":"'Population at Risk'!AM173/'Population at Risk'!AM$5","v":7.6724075289744592E-5},{"$f":"'Population at Risk'!AN173/'Population at Risk'!AN$5","v":4.6723052832558024E-4},{"$f":"'Population at Risk'!AO173/'Population at Risk'!AO$5","v":4.6723052832558024E-4},{"$f":"'Population at Risk'!AP173/'Population at Risk'!AP$5","v":4.5777095414178693E-4},{"$f":"'Population at Risk'!AQ173/'Population at Risk'!AQ$5","v":2.7337855693688963E-4},{"$f":"'Population at Risk'!AR173/'Population at Risk'!AR$5","v":1.936554557443086E-4},{"$f":"'Population at Risk'!AS173/'Population at Risk'!AS$5","v":3.1577160920597132E-4},{"$f":"'Population at Risk'!AT173/'Population at Risk'!AT$5","v":4.3461509547436481E-4},{"$f":"'Population at Risk'!AU173/'Population at Risk'!AU$5","v":4.3461509547436481E-4},{"$f":"'Population at Risk'!AV173/'Population at Risk'!AV$5","v":1.7139036981315265E-4},{"$f":"'Population at Risk'!AW173/'Population at Risk'!AW$5","v":1.8028843055904831E-4},{"$f":"'Population at Risk'!AX173/'Population at Risk'!AX$5","v":1.4128228738893698E-4},{"$f":"'Population at Risk'!AY173/'Population at Risk'!AY$5","v":2.4082303102385824E-4},{"$f":"'Population at Risk'!AZ173/'Population at Risk'!AZ$5","v":3.3039124005183358E-4},{"$f":"'Population at Risk'!BA173/'Population at Risk'!BA$5","v":8.0797374030500845E-5},{"$f":"'Population at Risk'!BB173/'Population at Risk'!BB$5","v":1.5779841163901439E-4},{"$f":"'Population at Risk'!BC173/'Population at Risk'!BC$5","v":9.2440776275999181E-4},171]
["SIMD Q4","Female 0-4",{"$f":"'Population at Risk'!C174/'Population at Risk'!C$5","v":0},{"$f":"'Population at Risk'!D174/'Population at Risk'!D$5","v":0},{"$f":"'Population at Risk'!E174/'Population at Risk'!E$5","v":0},{"$f":"'Population at Risk'!F174/'Population at Risk'!F$5","v":0},{"$f":"'Population at Risk'!G174/'Population at Risk'!G$5","v":0},{"$f":"'Population at Risk'!H174/'Population at Risk'!H$5","v":0},{"$f":"'Population at Risk'!I174/'Population at Risk'!I$5","v":0},{"$f":"'Population at Risk'!J174/'Population at Risk'!J$5","v":0},{"$f":"'Population at Risk'!K174/'Population at Risk'!K$5","v":0},{"$f":"'Population at Risk'!L174/'Population at Risk'!L$5","v":0},{"$f":"'Population at Risk'!M174/'Population at Risk'!M$5","v":0},{"$f":"'Population at Risk'!N174/'Population at Risk'!N$5","v":0},{"$f":"'Population at Risk'!O174/'Population at Risk'!O$5","v":0},{"$f":"'Population at Risk'!P174/'Population at Risk'!P$5","v":0},{"$f":"'Population at Risk'!Q174/'Population at Risk'!Q$5","v":0},{"$f":"'Population at Risk'!R174/'Population at Risk'!R$5","v":0},{"$f":"'Population at Risk'!S174/'Population at Risk'!S$5","v":0},{"$f":"'Population at Risk'!T174/'Population at Risk'!T$5","v":0},{"$f":"'Population at Risk'!U174/'Population at Risk'!U$5","v":0},{"$f":"'Population at Risk'!V174/'Population at Risk'!V$5","v":0},{"$f":"'Population at Risk'!W174/'Population at Risk'!W$5","v":0},{"$f":"'Population at Risk'!X174/'Population at Risk'!X$5","v":0},{"$f":"'Population at Risk'!Y174/'Population at Risk'!Y$5","v":0},{"$f":"'Population at Risk'!Z174/'Population at Risk'!Z$5","v":0},{"$f":"'Population at Risk'!AA174/'Population at Risk'!AA$5","v":0},{"$f":"'Population at Risk'!AB174/'Population at Risk'!AB$5","v":0},{"$f":"'Population at Risk'!AC174/'Population at Risk'!AC$5","v":0},{"$f":"'Population at Risk'!AD174/'Population at Risk'!AD$5","v":0},{"$f":"'Population at Risk'!AE174/'Population at Risk'!AE$5","v":0},{"$f":"'Population at Risk'!AF174/'Population at Risk'!AF$5","v":0},{"$f":"'Population at Risk'!AG174/'Population at Risk'!AG$5","v":0},{"$f":"'Population at Risk'!AH174/'Population at Risk'!AH$5","v":0},{"$f":"'Population at Risk'!AI174/'Population at Risk'!AI$5","v":0},{"$f":"'Population at Risk'!AJ174/'Population at Risk'!AJ$5","v":0},{"$f":"'Population at Risk'!AK174/'Population at Risk'!AK$5","v":0},{"$f":"'Population at Risk'!AL174/'Population at Risk'!AL$5","v":0},{"$f":"'Population at Risk'!AM174/'Population at Risk'!AM$5","v":0},{"$f":"'Population at Risk'!AN174/'Population at Risk'!AN$5","v":0},{"$f":"'Population at Risk'!AO174/'Population at Risk'!AO$5","v":0},{"$f":"'Population at Risk'!AP174/'Population at Risk'!AP$5","v":0},{"$f":"'Population at Risk'!AQ174/'Population at Risk'!AQ$5","v":0},{"$f":"'Population at Risk'!AR174/'Population at Risk'!AR$5","v":0},{"$f":"'Population at Risk'!AS174/'Population at Risk'!AS$5","v":0},{"$f":"'Population at Risk'!AT174/'Population at Risk'!AT$5","v":0},{"$f":"'Population at Risk'!AU174/'Population at Risk'!AU$5","v":0},{"$f":"'Population at Risk'!AV174/'Population at Risk'!AV$5","v":0},{"$f":"'Population at Risk'!AW174/'Population at Risk'!AW$5","v":0},{"$f":"'Population at Risk'!AX174/'Population at Risk'!AX$5","v":0},{"$f":"'Population at Risk'!AY174/'Population at Risk'!AY$5","v":0},{"$f":"'Population at Risk'!AZ174/'Population at Risk'!AZ$5","v":0},{"$f":"'Population at Risk'!BA174/'Population at Risk'!BA$5","v":0},{"$f":"'Population at Risk'!BB174/'Population at Risk'!BB$5","v":0},{"$f":"'Population at Risk'!BC174/'Population at Risk'!BC$5","v":0},172]
[null,"Female 5-9",{"$f":"'Population at Risk'!C175/'Population at Risk'!C$5","v":0},{"$f":"'Population at Risk'!D175/'Population at Risk'!D$5","v":0},{"$f":"'Population at Risk'!E175/'Population at Risk'!E$5","v":0},{"$f":"'Population at Risk'!F175/'Population at Risk'!F$5","v":0},{"$f":"'Population at Risk'!G175/'Population at Risk'!G$5","v":0},{"$f":"'Population at Risk'!H175/'Population at Risk'!H$5","v":0},{"$f":"'Population at Risk'!I175/'Population at Risk'!I$5","v":0},{"$f":"'Population at Risk'!J175/'Population at Risk'!J$5","v":0},{"$f":"'Population at Risk'!K175/'Population at Risk'!K$5","v":0},{"$f":"'Population at Risk'!L175/'Population at Risk'!L$5","v":0},{"$f":"'Population at Risk'!M175/'Population at Risk'!M$5","v":0},{"$f":"'Population at Risk'!N175/'Population at Risk'!N$5","v":0},{"$f":"'Population at Risk'!O175/'Population at Risk'!O$5","v":0},{"$f":"'Population at Risk'!P175/'Population at Risk'!P$5","v":0},{"$f":"'Population at Risk'!Q175/'Population at Risk'!Q$5","v":0},{"$f":"'Population at Risk'!R175/'Population at Risk'!R$5","v":0},{"$f":"'Population at Risk'!S175/'Population at Risk'!S$5","v":0},{"$f":"'Population at Risk'!T175/'Population at Risk'!T$5","v":0},{"$f":"'Population at Risk'!U175/'Population at Risk'!U$5","v":0},{"$f":"'Population at Risk'!V175/'Population at Risk'!V$5","v":0},{"$f":"'Population at Risk'!W175/'Population at Risk'!W$5","v":0},{"$f":"'Population at Risk'!X175/'Population at Risk'!X$5","v":0},{"$f":"'Population at Risk'!Y175/'Population at Risk'!Y$5","v":0},{"$f":"'Population at Risk'!Z175/'Population at Risk'!Z$5","v":0},{"$f":"'Population at Risk'!AA175/'Population at Risk'!AA$5","v":0},{"$f":"'Population at Risk'!AB175/'Population at Risk'!AB$5","v":0},{"$f":"'Population at Risk'!AC175/'Population at Risk'!AC$5","v":0},{"$f":"'Population at Risk'!AD175/'Population at Risk'!AD$5","v":0},{"$f":"'Population at Risk'!AE175/'Population at Risk'!AE$5","v":0},{"$f":"'Population at Risk'!AF175/'Population at Risk'!AF$5","v":0},{"$f":"'Population at Risk'!AG175/'Population at Risk'!AG$5","v":0},{"$f":"'Population at Risk'!AH175/'Population at Risk'!AH$5","v":0},{"$f":"'Population at Risk'!AI175/'Population at Risk'!AI$5","v":0},{"$f":"'Population at Risk'!AJ175/'Population at Risk'!AJ$5","v":0},{"$f":"'Population at Risk'!AK175/'Population at Risk'!AK$5","v":0},{"$f":"'Population at Risk'!AL175/'Population at Risk'!AL$5","v":0},{"$f":"'Population at Risk'!AM175/'Population at Risk'!AM$5","v":0},{"$f":"'Population at Risk'!AN175/'Population at Risk'!AN$5","v":0},{"$f":"'Population at Risk'!AO175/'Population at Risk'!AO$5","v":0},{"$f":"'Population at Risk'!AP175/'Population at Risk'!AP$5","v":0},{"$f":"'Population at Risk'!AQ175/'Population at Risk'!AQ$5","v":0},{"$f":"'Population at Risk'!AR175/'Population at Risk'!AR$5","v":0},{"$f":"'Population at Risk'!AS175/'Population at Risk'!AS$5","v":0},{"$f":"'Population at Risk'!AT175/'Population at Risk'!AT$5","v":0},{"$f":"'Population at Risk'!AU175/'Population at Risk'!AU$5","v":0},{"$f":"'Population at Risk'!AV175/'Population at Risk'!AV$5","v":0},{"$f":"'Population at Risk'!AW175/'Population at Risk'!AW$5","v":0},{"$f":"'Population at Risk'!AX175/'Population at Risk'!AX$5","v":0},{"$f":"'Population at Risk'!AY175/'Population at Risk'!AY$5","v":0},{"$f":"'Population at Risk'!AZ175/'Population at Risk'!AZ$5","v":0},{"$f":"'Population at Risk'!BA175/'Population at Risk'!BA$5","v":0},{"$f":"'Population at Risk'!BB175/'Population at Risk'!BB$5","v":0},{"$f":"'Population at Risk'!BC175/'Population at Risk'!BC$5","v":0},173]
[null,"Female 10-15",{"$f":"'Population at Risk'!C176/'Population at Risk'!C$5","v":0},{"$f":"'Population at Risk'!D176/'Population at Risk'!D$5","v":0},{"$f":"'Population at Risk'!E176/'Population at Risk'!E$5","v":0},{"$f":"'Population at Risk'!F176/'Population at Risk'!F$5","v":0},{"$f":"'Population at Risk'!G176/'Population at Risk'!G$5","v":0},{"$f":"'Population at Risk'!H176/'Population at Risk'!H$5","v":0},{"$f":"'Population at Risk'!I176/'Population at Risk'!I$5","v":0},{"$f":"'Population at Risk'!J176/'Population at Risk'!J$5","v":0},{"$f":"'Population at Risk'!K176/'Population at Risk'!K$5","v":0},{"$f":"'Population at Risk'!L176/'Population at Risk'!L$5","v":0},{"$f":"'Population at Risk'!M176/'Population at Risk'!M$5","v":0},{"$f":"'Population at Risk'!N176/'Population at Risk'!N$5","v":0},{"$f":"'Population at Risk'!O176/'Population at Risk'!O$5","v":0},{"$f":"'Population at Risk'!P176/'Population at Risk'!P$5","v":0},{"$f":"'Population at Risk'!Q176/'Population at Risk'!Q$5","v":0},{"$f":"'Population at Risk'!R176/'Population at Risk'!R$5","v":0},{"$f":"'Population at Risk'!S176/'Population at Risk'!S$5","v":0},{"$f":"'Population at Risk'!T176/'Population at Risk'!T$5","v":0},{"$f":"'Population at Risk'!U176/'Population at Risk'!U$5","v":0},{"$f":"'Population at Risk'!V176/'Population at Risk'!V$5","v":0},{"$f":"'Population at Risk'!W176/'Population at Risk'!W$5","v":0},{"$f":"'Population at Risk'!X176/'Population at Risk'!X$5","v":0},{"$f":"'Population at Risk'!Y176/'Population at Risk'!Y$5","v":0},{"$f":"'Population at Risk'!Z176/'Population at Risk'!Z$5","v":0},{"$f":"'Population at Risk'!AA176/'Population at Risk'!AA$5","v":0},{"$f":"'Population at Risk'!AB176/'Population at Risk'!AB$5","v":0},{"$f":"'Population at Risk'!AC176/'Population at Risk'!AC$5","v":0},{"$f":"'Population at Risk'!AD176/'Population at Risk'!AD$5","v":0},{"$f":"'Population at Risk'!AE176/'Population at Risk'!AE$5","v":0},{"$f":"'Population at Risk'!AF176/'Population at Risk'!AF$5","v":0},{"$f":"'Population at Risk'!AG176/'Population at Risk'!AG$5","v":0},{"$f":"'Population at Risk'!AH176/'Population at Risk'!AH$5","v":0},{"$f":"'Population at Risk'!AI176/'Population at Risk'!AI$5","v":0},{"$f":"'Population at Risk'!AJ176/'Population at Risk'!AJ$5","v":0},{"$f":"'Population at Risk'!AK176/'Population at Risk'!AK$5","v":0},{"$f":"'Population at Risk'!AL176/'Population at Risk'!AL$5","v":0},{"$f":"'Population at Risk'!AM176/'Population at Risk'!AM$5","v":0},{"$f":"'Population at Risk'!AN176/'Population at Risk'!AN$5","v":0},{"$f":"'Population at Risk'!AO176/'Population at Risk'!AO$5","v":0},{"$f":"'Population at Risk'!AP176/'Population at Risk'!AP$5","v":0},{"$f":"'Population at Risk'!AQ176/'Population at Risk'!AQ$5","v":0},{"$f":"'Population at Risk'!AR176/'Population at Risk'!AR$5","v":0},{"$f":"'Population at Risk'!AS176/'Population at Risk'!AS$5","v":0},{"$f":"'Population at Risk'!AT176/'Population at Risk'!AT$5","v":0},{"$f":"'Population at Risk'!AU176/'Population at Risk'!AU$5","v":0},{"$f":"'Population at Risk'!AV176/'Population at Risk'!AV$5","v":0},{"$f":"'Population at Risk'!AW176/'Population at Risk'!AW$5","v":0},{"$f":"'Population at Risk'!AX176/'Population at Risk'!AX$5","v":0},{"$f":"'Population at Risk'!AY176/'Population at Risk'!AY$5","v":0},{"$f":"'Population at Risk'!AZ176/'Population at Risk'!AZ$5","v":0},{"$f":"'Population at Risk'!BA176/'Population at Risk'!BA$5","v":0},{"$f":"'Population at Risk'!BB176/'Population at Risk'!BB$5","v":0},{"$f":"'Population at Risk'!BC176/'Population at Risk'!BC$5","v":0},174]
[null,"Female 16-19",{"$f":"'Population at Risk'!C177/'Population at Risk'!C$5","v":4.7765434419699965E-3},{"$f":"'Population at Risk'!D177/'Population at Risk'!D$5","v":8.6492522049578403E-3},{"$f":"'Population at Risk'!E177/'Population at Risk'!E$5","v":9.0445699282078931E-3},{"$f":"'Population at Risk'!F177/'Population at Risk'!F$5","v":3.5607394980173876E-3},{"$f":"'Population at Risk'!G177/'Population at Risk'!G$5","v":5.624050430970611E-3},{"$f":"'Population at Risk'!H177/'Population at Risk'!H$5","v":2.7449289220146922E-3},{"$f":"'Population at Risk'!I177/'Population at Risk'!I$5","v":1.0682875137506499E-2},{"$f":"'Population at Risk'!J177/'Population at Risk'!J$5","v":6.6756814575887535E-3},{"$f":"'Population at Risk'!K177/'Population at Risk'!K$5","v":3.4012607337673018E-3},{"$f":"'Population at Risk'!L177/'Population at Risk'!L$5","v":3.7170143843029508E-3},{"$f":"'Population at Risk'!M177/'Population at Risk'!M$5","v":3.7170143843029508E-3},{"$f":"'Population at Risk'!N177/'Population at Risk'!N$5","v":5.982172250978305E-3},{"$f":"'Population at Risk'!O177/'Population at Risk'!O$5","v":2.5391186282952144E-3},{"$f":"'Population at Risk'!P177/'Population at Risk'!P$5","v":4.6259537179927472E-3},{"$f":"'Population at Risk'!Q177/'Population at Risk'!Q$5","v":1.0845575131092551E-2},{"$f":"'Population at Risk'!R177/'Population at Risk'!R$5","v":4.9187230899075734E-3},{"$f":"'Population at Risk'!S177/'Population at Risk'!S$5","v":4.7374679972820924E-3},{"$f":"'Population at Risk'!T177/'Population at Risk'!T$5","v":2.8519195224576627E-3},{"$f":"'Population at Risk'!U177/'Population at Risk'!U$5","v":1.158049742798114E-3},{"$f":"'Population at Risk'!V177/'Population at Risk'!V$5","v":3.3221208384962724E-3},{"$f":"'Population at Risk'!W177/'Population at Risk'!W$5","v":3.4386689530280898E-3},{"$f":"'Population at Risk'!X177/'Population at Risk'!X$5","v":3.4386689530280898E-3},{"$f":"'Population at Risk'!Y177/'Population at Risk'!Y$5","v":4.8599222245094458E-3},{"$f":"'Population at Risk'!Z177/'Population at Risk'!Z$5","v":1.8624232740344889E-3},{"$f":"'Population at Risk'!AA177/'Population at Risk'!AA$5","v":3.2816847788636624E-3},{"$f":"'Population at Risk'!AB177/'Population at Risk'!AB$5","v":7.5026705358286656E-3},{"$f":"'Population at Risk'!AC177/'Population at Risk'!AC$5","v":2.649527980061077E-3},{"$f":"'Population at Risk'!AD177/'Population at Risk'!AD$5","v":6.5247411542533598E-3},{"$f":"'Population at Risk'!AE177/'Population at Risk'!AE$5","v":6.8648466970095551E-3},{"$f":"'Population at Risk'!AF177/'Population at Risk'!AF$5","v":3.6709034335682049E-3},{"$f":"'Population at Risk'!AG177/'Population at Risk'!AG$5","v":8.1278456686716318E-3},{"$f":"'Population at Risk'!AH177/'Population at Risk'!AH$5","v":4.1020380860794167E-3},{"$f":"'Population at Risk'!AI177/'Population at Risk'!AI$5","v":4.1183797703522769E-3},{"$f":"'Population at Risk'!AJ177/'Population at Risk'!AJ$5","v":3.4452313882080794E-3},{"$f":"'Population at Risk'!AK177/'Population at Risk'!AK$5","v":1.1054776180582853E-2},{"$f":"'Population at Risk'!AL177/'Population at Risk'!AL$5","v":2.6259035070269475E-3},{"$f":"'Population at Risk'!AM177/'Population at Risk'!AM$5","v":3.5615355083241013E-3},{"$f":"'Population at Risk'!AN177/'Population at Risk'!AN$5","v":1.1360436692773947E-2},{"$f":"'Population at Risk'!AO177/'Population at Risk'!AO$5","v":1.1360436692773947E-2},{"$f":"'Population at Risk'!AP177/'Population at Risk'!AP$5","v":1.1443198933189791E-2},{"$f":"'Population at Risk'!AQ177/'Population at Risk'!AQ$5","v":3.7982514756486631E-3},{"$f":"'Population at Risk'!AR177/'Population at Risk'!AR$5","v":4.5311497116271469E-3},{"$f":"'Population at Risk'!AS177/'Population at Risk'!AS$5","v":1.0682875137506499E-2},{"$f":"'Population at Risk'!AT177/'Population at Risk'!AT$5","v":2.0445527458276953E-2},{"$f":"'Population at Risk'!AU177/'Population at Risk'!AU$5","v":2.0445527458276953E-2},{"$f":"'Population at Risk'!AV177/'Population at Risk'!AV$5","v":3.1414079480480655E-3},{"$f":"'Population at Risk'!AW177/'Population at Risk'!AW$5","v":4.5605069161761954E-3},{"$f":"'Population at Risk'!AX177/'Population at Risk'!AX$5","v":8.8516578972785993E-3},{"$f":"'Population at Risk'!AY177/'Population at Risk'!AY$5","v":6.2841149728843542E-3},{"$f":"'Population at Risk'!AZ177/'Population at Risk'!AZ$5","v":7.095821160781824E-3},{"$f":"'Population at Risk'!BA177/'Population at Risk'!BA$5","v":2.171987043956517E-3},{"$f":"'Population at Risk'!BB177/'Population at Risk'!BB$5","v":4.5428802294272879E-3},{"$f":"'Population at Risk'!BC177/'Population at Risk'!BC$5","v":1.158049742798114E-3},175]
[null,"Female 20-24",{"$f":"'Population at Risk'!C178/'Population at Risk'!C$5","v":1.1354223412889863E-2},{"$f":"'Population at Risk'!D178/'Population at Risk'!D$5","v":1.3822528053353322E-2},{"$f":"'Population at Risk'!E178/'Population at Risk'!E$5","v":1.0429430160087667E-2},{"$f":"'Population at Risk'!F178/'Population at Risk'!F$5","v":3.9675023580720984E-3},{"$f":"'Population at Risk'!G178/'Population at Risk'!G$5","v":5.9877303664606267E-3},{"$f":"'Population at Risk'!H178/'Population at Risk'!H$5","v":3.31249885465451E-3},{"$f":"'Population at Risk'!I178/'Population at Risk'!I$5","v":1.025556013200624E-2},{"$f":"'Population at Risk'!J178/'Population at Risk'!J$5","v":9.5128460770639751E-3},{"$f":"'Population at Risk'!K178/'Population at Risk'!K$5","v":3.6292782131260035E-3},{"$f":"'Population at Risk'!L178/'Population at Risk'!L$5","v":4.8220727147713967E-3},{"$f":"'Population at Risk'!M178/'Population at Risk'!M$5","v":4.8220727147713967E-3},{"$f":"'Population at Risk'!N178/'Population at Risk'!N$5","v":1.3067533237592563E-2},{"$f":"'Population at Risk'!O178/'Population at Risk'!O$5","v":3.3528421056123752E-3},{"$f":"'Population at Risk'!P178/'Population at Risk'!P$5","v":7.0283827207072115E-3},{"$f":"'Population at Risk'!Q178/'Population at Risk'!Q$5","v":1.377412859898482E-2},{"$f":"'Population at Risk'!R178/'Population at Risk'!R$5","v":5.0604730348616823E-3},{"$f":"'Population at Risk'!S178/'Population at Risk'!S$5","v":7.3279902058034797E-3},{"$f":"'Population at Risk'!T178/'Population at Risk'!T$5","v":7.4218628536247616E-3},{"$f":"'Population at Risk'!U178/'Population at Risk'!U$5","v":1.9966374875829552E-3},{"$f":"'Population at Risk'!V178/'Population at Risk'!V$5","v":4.4203426032884286E-3},{"$f":"'Population at Risk'!W178/'Population at Risk'!W$5","v":4.445787206261236E-3},{"$f":"'Population at Risk'!X178/'Population at Risk'!X$5","v":4.445787206261236E-3},{"$f":"'Population at Risk'!Y178/'Population at Risk'!Y$5","v":6.7384376163400327E-3},{"$f":"'Population at Risk'!Z178/'Population at Risk'!Z$5","v":6.6340430764128952E-3},{"$f":"'Population at Risk'!AA178/'Population at Risk'!AA$5","v":5.732719371172936E-3},{"$f":"'Population at Risk'!AB178/'Population at Risk'!AB$5","v":1.112099391607768E-2},{"$f":"'Population at Risk'!AC178/'Population at Risk'!AC$5","v":5.9182479042741484E-3},{"$f":"'Population at Risk'!AD178/'Population at Risk'!AD$5","v":7.1383216430654694E-3},{"$f":"'Population at Risk'!AE178/'Population at Risk'!AE$5","v":7.5681191610125174E-3},{"$f":"'Population at Risk'!AF178/'Population at Risk'!AF$5","v":4.4841497326971605E-3},{"$f":"'Population at Risk'!AG178/'Population at Risk'!AG$5","v":8.960506659183267E-3},{"$f":"'Population at Risk'!AH178/'Population at Risk'!AH$5","v":4.6185792208985887E-3},{"$f":"'Population at Risk'!AI178/'Population at Risk'!AI$5","v":7.4469154583652695E-3},{"$f":"'Population at Risk'!AJ178/'Population at Risk'!AJ$5","v":3.9854244630142237E-3},{"$f":"'Population at Risk'!AK178/'Population at Risk'!AK$5","v":1.1468438773146598E-2},{"$f":"'Population at Risk'!AL178/'Population at Risk'!AL$5","v":3.0474151328837677E-3},{"$f":"'Population at Risk'!AM178/'Population at Risk'!AM$5","v":4.0020080976928066E-3},{"$f":"'Population at Risk'!AN178/'Population at Risk'!AN$5","v":1.3436455580793552E-2},{"$f":"'Population at Risk'!AO178/'Population at Risk'!AO$5","v":1.3436455580793552E-2},{"$f":"'Population at Risk'!AP178/'Population at Risk'!AP$5","v":1.1687509654215193E-2},{"$f":"'Population at Risk'!AQ178/'Population at Risk'!AQ$5","v":4.7786347777094458E-3},{"$f":"'Population at Risk'!AR178/'Population at Risk'!AR$5","v":6.7427177847363467E-3},{"$f":"'Population at Risk'!AS178/'Population at Risk'!AS$5","v":1.025556013200624E-2},{"$f":"'Population at Risk'!AT178/'Population at Risk'!AT$5","v":2.0445527458276953E-2},{"$f":"'Population at Risk'!AU178/'Population at Risk'!AU$5","v":2.0445527458276953E-2},{"$f":"'Population at Risk'!AV178/'Population at Risk'!AV$5","v":3.6099569301298109E-3},{"$f":"'Population at Risk'!AW178/'Population at Risk'!AW$5","v":5.1428339616837728E-3},{"$f":"'Population at Risk'!AX178/'Population at Risk'!AX$5","v":1.3422699493305493E-2},{"$f":"'Population at Risk'!AY178/'Population at Risk'!AY$5","v":8.6014577543918527E-3},{"$f":"'Population at Risk'!AZ178/'Population at Risk'!AZ$5","v":9.9394739110951393E-3},{"$f":"'Population at Risk'!BA178/'Population at Risk'!BA$5","v":2.7882252285209245E-3},{"$f":"'Population at Risk'!BB178/'Population at Risk'!BB$5","v":5.5441955462685096E-3},{"$f":"'Population at Risk'!BC178/'Population at Risk'!BC$5","v":1.9966374875829552E-3},176]
[null,"Female 25-29",{"$f":"'Population at Risk'!C179/'Population at Risk'!C$5","v":9.0309822991153851E-3},{"$f":"'Population at Risk'!D179/'Population at Risk'!D$5","v":1.264570189762841E-2},{"$f":"'Population at Risk'!E179/'Population at Risk'!E$5","v":1.100892925880846E-2},{"$f":"'Population at Risk'!F179/'Population at Risk'!F$5","v":3.8540250798760373E-3},{"$f":"'Population at Risk'!G179/'Population at Risk'!G$5","v":5.1468864280192943E-3},{"$f":"'Population at Risk'!H179/'Population at Risk'!H$5","v":2.9487218651060546E-3},{"$f":"'Population at Risk'!I179/'Population at Risk'!I$5","v":9.43762077632679E-3},{"$f":"'Population at Risk'!J179/'Population at Risk'!J$5","v":7.3078113474347502E-3},{"$f":"'Population at Risk'!K179/'Population at Risk'!K$5","v":3.2455042682442954E-3},{"$f":"'Population at Risk'!L179/'Population at Risk'!L$5","v":4.578203552449798E-3},{"$f":"'Population at Risk'!M179/'Population at Risk'!M$5","v":4.578203552449798E-3},{"$f":"'Population at Risk'!N179/'Population at Risk'!N$5","v":6.3962925619577907E-3},{"$f":"'Population at Risk'!O179/'Population at Risk'!O$5","v":3.0297552620860016E-3},{"$f":"'Population at Risk'!P179/'Population at Risk'!P$5","v":5.4379654465631444E-3},{"$f":"'Population at Risk'!Q179/'Population at Risk'!Q$5","v":9.4106455245618927E-3},{"$f":"'Population at Risk'!R179/'Population at Risk'!R$5","v":5.284981889283784E-3},{"$f":"'Population at Risk'!S179/'Population at Risk'!S$5","v":8.1872604622443453E-3},{"$f":"'Population at Risk'!T179/'Population at Risk'!T$5","v":1.0073495554587416E-2},{"$f":"'Population at Risk'!U179/'Population at Risk'!U$5","v":1.5979762298953804E-3},{"$f":"'Population at Risk'!V179/'Population at Risk'!V$5","v":4.1589051290514883E-3},{"$f":"'Population at Risk'!W179/'Population at Risk'!W$5","v":4.2902858132073439E-3},{"$f":"'Population at Risk'!X179/'Population at Risk'!X$5","v":4.2902858132073439E-3},{"$f":"'Population at Risk'!Y179/'Population at Risk'!Y$5","v":5.6313486883954617E-3},{"$f":"'Population at Risk'!Z179/'Population at Risk'!Z$5","v":5.3719547957579447E-3},{"$f":"'Population at Risk'!AA179/'Population at Risk'!AA$5","v":4.9863628453607972E-3},{"$f":"'Population at Risk'!AB179/'Population at Risk'!AB$5","v":1.0446264166145797E-2},{"$f":"'Population at Risk'!AC179/'Population at Risk'!AC$5","v":4.9387399944861091E-3},{"$f":"'Population at Risk'!AD179/'Population at Risk'!AD$5","v":7.4514488313279555E-3},{"$f":"'Population at Risk'!AE179/'Population at Risk'!AE$5","v":8.2855805591844391E-3},{"$f":"'Population at Risk'!AF179/'Population at Risk'!AF$5","v":3.5167178336681765E-3},{"$f":"'Population at Risk'!AG179/'Population at Risk'!AG$5","v":9.8099670732244154E-3},{"$f":"'Population at Risk'!AH179/'Population at Risk'!AH$5","v":4.430009023471764E-3},{"$f":"'Population at Risk'!AI179/'Population at Risk'!AI$5","v":8.8520263345001696E-3},{"$f":"'Population at Risk'!AJ179/'Population at Risk'!AJ$5","v":4.5108093253885383E-3},{"$f":"'Population at Risk'!AK179/'Population at Risk'!AK$5","v":1.2432456605991208E-2},{"$f":"'Population at Risk'!AL179/'Population at Risk'!AL$5","v":2.7686268232306722E-3},{"$f":"'Population at Risk'!AM179/'Population at Risk'!AM$5","v":3.7893371969536659E-3},{"$f":"'Population at Risk'!AN179/'Population at Risk'!AN$5","v":1.4465024202030238E-2},{"$f":"'Population at Risk'!AO179/'Population at Risk'!AO$5","v":1.4465024202030238E-2},{"$f":"'Population at Risk'!AP179/'Population at Risk'!AP$5","v":1.0668774461914277E-2},{"$f":"'Population at Risk'!AQ179/'Population at Risk'!AQ$5","v":4.2973224232244782E-3},{"$f":"'Population at Risk'!AR179/'Population at Risk'!AR$5","v":6.3165027979465533E-3},{"$f":"'Population at Risk'!AS179/'Population at Risk'!AS$5","v":9.43762077632679E-3},{"$f":"'Population at Risk'!AT179/'Population at Risk'!AT$5","v":2.5342523680649529E-2},{"$f":"'Population at Risk'!AU179/'Population at Risk'!AU$5","v":2.5342523680649529E-2},{"$f":"'Population at Risk'!AV179/'Population at Risk'!AV$5","v":3.0452796766981347E-3},{"$f":"'Population at Risk'!AW179/'Population at Risk'!AW$5","v":4.982424733882016E-3},{"$f":"'Population at Risk'!AX179/'Population at Risk'!AX$5","v":1.000736807537638E-2},{"$f":"'Population at Risk'!AY179/'Population at Risk'!AY$5","v":6.7632224718227564E-3},{"$f":"'Population at Risk'!AZ179/'Population at Risk'!AZ$5","v":7.1240551695857688E-3},{"$f":"'Population at Risk'!BA179/'Population at Risk'!BA$5","v":2.8100941574112593E-3},{"$f":"'Population at Risk'!BB179/'Population at Risk'!BB$5","v":6.5721815848199701E-3},{"$f":"'Population at Risk'!BC179/'Population at Risk'!BC$5","v":1.5979762298953804E-3},177]
[null,"Female 30-34",{"$f":"'Population at Risk'!C180/'Population at Risk'!C$5","v":7.1480914285460039E-3},{"$f":"'Population at Risk'!D180/'Population at Risk'!D$5","v":1.2858449237763478E-2},{"$f":"'Population at Risk'!E180/'Population at Risk'!E$5","v":1.3395284796704283E-2},{"$f":"'Population at Risk'!F180/'Population at Risk'!F$5","v":4.3182182749165743E-3},{"$f":"'Population at Risk'!G180/'Population at Risk'!G$5","v":5.4004276313699981E-3},{"$f":"'Population at Risk'!H180/'Population at Risk'!H$5","v":3.2036404635857134E-3},{"$f":"'Population at Risk'!I180/'Population at Risk'!I$5","v":1.0962892820985665E-2},{"$f":"'Population at Risk'!J180/'Population at Risk'!J$5","v":6.619233378527524E-3},{"$f":"'Population at Risk'!K180/'Population at Risk'!K$5","v":4.3582485887851971E-3},{"$f":"'Population at Risk'!L180/'Population at Risk'!L$5","v":4.7064234212992979E-3},{"$f":"'Population at Risk'!M180/'Population at Risk'!M$5","v":4.7064234212992979E-3},{"$f":"'Population at Risk'!N180/'Population at Risk'!N$5","v":5.0055155219329E-3},{"$f":"'Population at Risk'!O180/'Population at Risk'!O$5","v":3.3900902325768125E-3},{"$f":"'Population at Risk'!P180/'Population at Risk'!P$5","v":5.8246097787729096E-3},{"$f":"'Population at Risk'!Q180/'Population at Risk'!Q$5","v":1.045223563410156E-2},{"$f":"'Population at Risk'!R180/'Population at Risk'!R$5","v":4.7177456132088229E-3},{"$f":"'Population at Risk'!S180/'Population at Risk'!S$5","v":8.0470376326619106E-3},{"$f":"'Population at Risk'!T180/'Population at Risk'!T$5","v":8.4972848477522633E-3},{"$f":"'Population at Risk'!U180/'Population at Risk'!U$5","v":2.3774768298443463E-3},{"$f":"'Population at Risk'!V180/'Population at Risk'!V$5","v":4.7270029946178006E-3},{"$f":"'Population at Risk'!W180/'Population at Risk'!W$5","v":4.5238076992426806E-3},{"$f":"'Population at Risk'!X180/'Population at Risk'!X$5","v":4.5238076992426806E-3},{"$f":"'Population at Risk'!Y180/'Population at Risk'!Y$5","v":5.6728730973286106E-3},{"$f":"'Population at Risk'!Z180/'Population at Risk'!Z$5","v":4.2833995026722287E-3},{"$f":"'Population at Risk'!AA180/'Population at Risk'!AA$5","v":4.8074774201898717E-3},{"$f":"'Population at Risk'!AB180/'Population at Risk'!AB$5","v":1.08288969033098E-2},{"$f":"'Population at Risk'!AC180/'Population at Risk'!AC$5","v":4.3351862555300845E-3},{"$f":"'Population at Risk'!AD180/'Population at Risk'!AD$5","v":8.7277180646252346E-3},{"$f":"'Population at Risk'!AE180/'Population at Risk'!AE$5","v":9.9240972918932802E-3},{"$f":"'Population at Risk'!AF180/'Population at Risk'!AF$5","v":3.1418952432458631E-3},{"$f":"'Population at Risk'!AG180/'Population at Risk'!AG$5","v":1.1749939182841215E-2},{"$f":"'Population at Risk'!AH180/'Population at Risk'!AH$5","v":5.1131049002909081E-3},{"$f":"'Population at Risk'!AI180/'Population at Risk'!AI$5","v":8.3770395555757705E-3},{"$f":"'Population at Risk'!AJ180/'Population at Risk'!AJ$5","v":5.6355825597711341E-3},{"$f":"'Population at Risk'!AK180/'Population at Risk'!AK$5","v":1.4117033592917227E-2},{"$f":"'Population at Risk'!AL180/'Population at Risk'!AL$5","v":2.6074015664561954E-3},{"$f":"'Population at Risk'!AM180/'Population at Risk'!AM$5","v":4.1916088118652784E-3},{"$f":"'Population at Risk'!AN180/'Population at Risk'!AN$5","v":1.6322400850539959E-2},{"$f":"'Population at Risk'!AO180/'Population at Risk'!AO$5","v":1.6322400850539959E-2},{"$f":"'Population at Risk'!AP180/'Population at Risk'!AP$5","v":1.2853296413740993E-2},{"$f":"'Population at Risk'!AQ180/'Population at Risk'!AQ$5","v":4.9218666153997689E-3},{"$f":"'Population at Risk'!AR180/'Population at Risk'!AR$5","v":6.3930195219368728E-3},{"$f":"'Population at Risk'!AS180/'Population at Risk'!AS$5","v":1.0962892820985665E-2},{"$f":"'Population at Risk'!AT180/'Population at Risk'!AT$5","v":2.4023173207036536E-2},{"$f":"'Population at Risk'!AU180/'Population at Risk'!AU$5","v":2.4023173207036536E-2},{"$f":"'Population at Risk'!AV180/'Population at Risk'!AV$5","v":3.9183291403249035E-3},{"$f":"'Population at Risk'!AW180/'Population at Risk'!AW$5","v":5.9338114778594879E-3},{"$f":"'Population at Risk'!AX180/'Population at Risk'!AX$5","v":8.1217433025529973E-3},{"$f":"'Population at Risk'!AY180/'Population at Risk'!AY$5","v":7.1002063591263705E-3},{"$f":"'Population at Risk'!AZ180/'Population at Risk'!AZ$5","v":7.4618336474540602E-3},{"$f":"'Population at Risk'!BA180/'Population at Risk'!BA$5","v":2.8002341779115713E-3},{"$f":"'Population at Risk'!BB180/'Population at Risk'!BB$5","v":7.8577580225691855E-3},{"$f":"'Population at Risk'!BC180/'Population at Risk'!BC$5","v":2.3774768298443463E-3},178]
[null,"Female 35-39",{"$f":"'Population at Risk'!C181/'Population at Risk'!C$5","v":4.6490025260870569E-3},{"$f":"'Population at Risk'!D181/'Population at Risk'!D$5","v":1.0160341708278302E-2},{"$f":"'Population at Risk'!E181/'Population at Risk'!E$5","v":1.166539712745542E-2},{"$f":"'Population at Risk'!F181/'Population at Risk'!F$5","v":3.9009723069020042E-3},{"$f":"'Population at Risk'!G181/'Population at Risk'!G$5","v":5.5286541988231394E-3},{"$f":"'Population at Risk'!H181/'Population at Risk'!H$5","v":2.9443079793222628E-3},{"$f":"'Population at Risk'!I181/'Population at Risk'!I$5","v":9.4360803289659807E-3},{"$f":"'Population at Risk'!J181/'Population at Risk'!J$5","v":6.0737848298184341E-3},{"$f":"'Population at Risk'!K181/'Population at Risk'!K$5","v":3.7878878692144992E-3},{"$f":"'Population at Risk'!L181/'Population at Risk'!L$5","v":3.8196619961266918E-3},{"$f":"'Population at Risk'!M181/'Population at Risk'!M$5","v":3.8196619961266918E-3},{"$f":"'Population at Risk'!N181/'Population at Risk'!N$5","v":3.5408282876800545E-3},{"$f":"'Population at Risk'!O181/'Population at Risk'!O$5","v":3.3425146086930018E-3},{"$f":"'Population at Risk'!P181/'Population at Risk'!P$5","v":5.2410321481854176E-3},{"$f":"'Population at Risk'!Q181/'Population at Risk'!Q$5","v":9.7124111147101552E-3},{"$f":"'Population at Risk'!R181/'Population at Risk'!R$5","v":4.6786941685196936E-3},{"$f":"'Population at Risk'!S181/'Population at Risk'!S$5","v":6.1725469740352467E-3},{"$f":"'Population at Risk'!T181/'Population at Risk'!T$5","v":5.3127019925534357E-3},{"$f":"'Population at Risk'!U181/'Population at Risk'!U$5","v":1.5007468548483272E-3},{"$f":"'Population at Risk'!V181/'Population at Risk'!V$5","v":4.2215318264050561E-3},{"$f":"'Population at Risk'!W181/'Population at Risk'!W$5","v":4.0640571345548935E-3},{"$f":"'Population at Risk'!X181/'Population at Risk'!X$5","v":4.0640571345548935E-3},{"$f":"'Population at Risk'!Y181/'Population at Risk'!Y$5","v":5.1363028616628241E-3},{"$f":"'Population at Risk'!Z181/'Population at Risk'!Z$5","v":2.6358926168655568E-3},{"$f":"'Population at Risk'!AA181/'Population at Risk'!AA$5","v":3.960098951926466E-3},{"$f":"'Population at Risk'!AB181/'Population at Risk'!AB$5","v":8.6070142812152989E-3},{"$f":"'Population at Risk'!AC181/'Population at Risk'!AC$5","v":3.1836669275353158E-3},{"$f":"'Population at Risk'!AD181/'Population at Risk'!AD$5","v":7.3139520086841839E-3},{"$f":"'Population at Risk'!AE181/'Population at Risk'!AE$5","v":7.9661544851763796E-3},{"$f":"'Population at Risk'!AF181/'Population at Risk'!AF$5","v":3.7189046108955723E-3},{"$f":"'Population at Risk'!AG181/'Population at Risk'!AG$5","v":9.4317727818328586E-3},{"$f":"'Population at Risk'!AH181/'Population at Risk'!AH$5","v":4.97688188010553E-3},{"$f":"'Population at Risk'!AI181/'Population at Risk'!AI$5","v":6.0383934438036357E-3},{"$f":"'Population at Risk'!AJ181/'Population at Risk'!AJ$5","v":4.8252741712993237E-3},{"$f":"'Population at Risk'!AK181/'Population at Risk'!AK$5","v":1.1513983156967035E-2},{"$f":"'Population at Risk'!AL181/'Population at Risk'!AL$5","v":2.3826935678453788E-3},{"$f":"'Population at Risk'!AM181/'Population at Risk'!AM$5","v":3.9173846061824804E-3},{"$f":"'Population at Risk'!AN181/'Population at Risk'!AN$5","v":1.4840883200395623E-2},{"$f":"'Population at Risk'!AO181/'Population at Risk'!AO$5","v":1.4840883200395623E-2},{"$f":"'Population at Risk'!AP181/'Population at Risk'!AP$5","v":1.0173217090348675E-2},{"$f":"'Population at Risk'!AQ181/'Population at Risk'!AQ$5","v":4.091182560060842E-3},{"$f":"'Population at Risk'!AR181/'Population at Risk'!AR$5","v":5.1872638664198171E-3},{"$f":"'Population at Risk'!AS181/'Population at Risk'!AS$5","v":9.4360803289659807E-3},{"$f":"'Population at Risk'!AT181/'Population at Risk'!AT$5","v":2.1903778567132763E-2},{"$f":"'Population at Risk'!AU181/'Population at Risk'!AU$5","v":2.1903778567132763E-2},{"$f":"'Population at Risk'!AV181/'Population at Risk'!AV$5","v":3.3060263635225628E-3},{"$f":"'Population at Risk'!AW181/'Population at Risk'!AW$5","v":5.9392352350527353E-3},{"$f":"'Population at Risk'!AX181/'Population at Risk'!AX$5","v":7.5928498337888943E-3},{"$f":"'Population at Risk'!AY181/'Population at Risk'!AY$5","v":5.9015076768657434E-3},{"$f":"'Population at Risk'!AZ181/'Population at Risk'!AZ$5","v":5.9376476341943618E-3},{"$f":"'Population at Risk'!BA181/'Population at Risk'!BA$5","v":2.1789290594376016E-3},{"$f":"'Population at Risk'!BB181/'Population at Risk'!BB$5","v":6.5994759781624239E-3},{"$f":"'Population at Risk'!BC181/'Population at Risk'!BC$5","v":1.5007468548483272E-3},179]
[null,"Female 40-44",{"$f":"'Population at Risk'!C182/'Population at Risk'!C$5","v":3.7220873599083338E-3},{"$f":"'Population at Risk'!D182/'Population at Risk'!D$5","v":1.015796724188235E-2},{"$f":"'Population at Risk'!E182/'Population at Risk'!E$5","v":1.2664173603919832E-2},{"$f":"'Population at Risk'!F182/'Population at Risk'!F$5","v":4.2128455843869613E-3},{"$f":"'Population at Risk'!G182/'Population at Risk'!G$5","v":6.8126602603540394E-3},{"$f":"'Population at Risk'!H182/'Population at Risk'!H$5","v":3.621396225438184E-3},{"$f":"'Population at Risk'!I182/'Population at Risk'!I$5","v":1.2448444239481549E-2},{"$f":"'Population at Risk'!J182/'Population at Risk'!J$5","v":7.4062988486051327E-3},{"$f":"'Population at Risk'!K182/'Population at Risk'!K$5","v":5.0298183181372857E-3},{"$f":"'Population at Risk'!L182/'Population at Risk'!L$5","v":4.7288046861138711E-3},{"$f":"'Population at Risk'!M182/'Population at Risk'!M$5","v":4.7288046861138711E-3},{"$f":"'Population at Risk'!N182/'Population at Risk'!N$5","v":3.4710847001954465E-3},{"$f":"'Population at Risk'!O182/'Population at Risk'!O$5","v":3.4410049102382837E-3},{"$f":"'Population at Risk'!P182/'Population at Risk'!P$5","v":6.2328609411687139E-3},{"$f":"'Population at Risk'!Q182/'Population at Risk'!Q$5","v":1.1719777921299518E-2},{"$f":"'Population at Risk'!R182/'Population at Risk'!R$5","v":5.3619688119421246E-3},{"$f":"'Population at Risk'!S182/'Population at Risk'!S$5","v":6.4498494171283446E-3},{"$f":"'Population at Risk'!T182/'Population at Risk'!T$5","v":4.5319383245592875E-3},{"$f":"'Population at Risk'!U182/'Population at Risk'!U$5","v":1.6964964446111524E-3},{"$f":"'Population at Risk'!V182/'Population at Risk'!V$5","v":5.1905550724236447E-3},{"$f":"'Population at Risk'!W182/'Population at Risk'!W$5","v":4.6868488878367958E-3},{"$f":"'Population at Risk'!X182/'Population at Risk'!X$5","v":4.6868488878367958E-3},{"$f":"'Population at Risk'!Y182/'Population at Risk'!Y$5","v":6.288695643222781E-3},{"$f":"'Population at Risk'!Z182/'Population at Risk'!Z$5","v":2.2209124381170437E-3},{"$f":"'Population at Risk'!AA182/'Population at Risk'!AA$5","v":4.1441831076473772E-3},{"$f":"'Population at Risk'!AB182/'Population at Risk'!AB$5","v":9.0449637453059954E-3},{"$f":"'Population at Risk'!AC182/'Population at Risk'!AC$5","v":3.2304952581454277E-3},{"$f":"'Population at Risk'!AD182/'Population at Risk'!AD$5","v":8.7466100238683883E-3},{"$f":"'Population at Risk'!AE182/'Population at Risk'!AE$5","v":9.4563332208864315E-3},{"$f":"'Population at Risk'!AF182/'Population at Risk'!AF$5","v":4.3002718329462446E-3},{"$f":"'Population at Risk'!AG182/'Population at Risk'!AG$5","v":1.1196115573036586E-2},{"$f":"'Population at Risk'!AH182/'Population at Risk'!AH$5","v":5.4080119252023452E-3},{"$f":"'Population at Risk'!AI182/'Population at Risk'!AI$5","v":5.8279001512203405E-3},{"$f":"'Population at Risk'!AJ182/'Population at Risk'!AJ$5","v":4.6291248147424411E-3},{"$f":"'Population at Risk'!AK182/'Population at Risk'!AK$5","v":1.4648863186546117E-2},{"$f":"'Population at Risk'!AL182/'Population at Risk'!AL$5","v":3.0760946256753814E-3},{"$f":"'Population at Risk'!AM182/'Population at Risk'!AM$5","v":4.413483837805327E-3},{"$f":"'Population at Risk'!AN182/'Population at Risk'!AN$5","v":1.5924503243599113E-2},{"$f":"'Population at Risk'!AO182/'Population at Risk'!AO$5","v":1.5924503243599113E-2},{"$f":"'Population at Risk'!AP182/'Population at Risk'!AP$5","v":1.2871051242789243E-2},{"$f":"'Population at Risk'!AQ182/'Population at Risk'!AQ$5","v":4.8777639666844974E-3},{"$f":"'Population at Risk'!AR182/'Population at Risk'!AR$5","v":5.66249947369395E-3},{"$f":"'Population at Risk'!AS182/'Population at Risk'!AS$5","v":1.2448444239481549E-2},{"$f":"'Population at Risk'!AT182/'Population at Risk'!AT$5","v":2.3422317837543227E-2},{"$f":"'Population at Risk'!AU182/'Population at Risk'!AU$5","v":2.3422317837543227E-2},{"$f":"'Population at Risk'!AV182/'Population at Risk'!AV$5","v":4.7415378108415706E-3},{"$f":"'Population at Risk'!AW182/'Population at Risk'!AW$5","v":6.2960547659353114E-3},{"$f":"'Population at Risk'!AX182/'Population at Risk'!AX$5","v":8.9855600614539774E-3},{"$f":"'Population at Risk'!AY182/'Population at Risk'!AY$5","v":6.8142643432313283E-3},{"$f":"'Population at Risk'!AZ182/'Population at Risk'!AZ$5","v":6.861018078806006E-3},{"$f":"'Population at Risk'!BA182/'Population at Risk'!BA$5","v":2.7401683626260749E-3},{"$f":"'Population at Risk'!BB182/'Population at Risk'!BB$5","v":6.9783144494546092E-3},{"$f":"'Population at Risk'!BC182/'Population at Risk'!BC$5","v":1.6964964446111524E-3},180]
[null,"Female 45-49",{"$f":"'Population at Risk'!C183/'Population at Risk'!C$5","v":3.6474128706205115E-3},{"$f":"'Population at Risk'!D183/'Population at Risk'!D$5","v":1.1136535302959171E-2},{"$f":"'Population at Risk'!E183/'Population at Risk'!E$5","v":1.4352830671176802E-2},{"$f":"'Population at Risk'!F183/'Population at Risk'!F$5","v":5.3118818330502235E-3},{"$f":"'Population at Risk'!G183/'Population at Risk'!G$5","v":8.6155589812210616E-3},{"$f":"'Population at Risk'!H183/'Population at Risk'!H$5","v":4.1636193764100536E-3},{"$f":"'Population at Risk'!I183/'Population at Risk'!I$5","v":1.5768674830185108E-2},{"$f":"'Population at Risk'!J183/'Population at Risk'!J$5","v":8.3077199317641119E-3},{"$f":"'Population at Risk'!K183/'Population at Risk'!K$5","v":5.9391440210351462E-3},{"$f":"'Population at Risk'!L183/'Population at Risk'!L$5","v":6.1739857192135714E-3},{"$f":"'Population at Risk'!M183/'Population at Risk'!M$5","v":6.1739857192135714E-3},{"$f":"'Population at Risk'!N183/'Population at Risk'!N$5","v":3.8336719259646672E-3},{"$f":"'Population at Risk'!O183/'Population at Risk'!O$5","v":3.9406530609301894E-3},{"$f":"'Population at Risk'!P183/'Population at Risk'!P$5","v":7.5899737525855051E-3},{"$f":"'Population at Risk'!Q183/'Population at Risk'!Q$5","v":1.3454292786863139E-2},{"$f":"'Population at Risk'!R183/'Population at Risk'!R$5","v":6.2315286020023673E-3},{"$f":"'Population at Risk'!S183/'Population at Risk'!S$5","v":6.9975695646265065E-3},{"$f":"'Population at Risk'!T183/'Population at Risk'!T$5","v":4.084337362754353E-3},{"$f":"'Population at Risk'!U183/'Population at Risk'!U$5","v":1.6185463846162557E-3},{"$f":"'Population at Risk'!V183/'Population at Risk'!V$5","v":5.5812340094551945E-3},{"$f":"'Population at Risk'!W183/'Population at Risk'!W$5","v":5.5470876304114106E-3},{"$f":"'Population at Risk'!X183/'Population at Risk'!X$5","v":5.5470876304114106E-3},{"$f":"'Population at Risk'!Y183/'Population at Risk'!Y$5","v":6.9104202654852835E-3},{"$f":"'Population at Risk'!Z183/'Population at Risk'!Z$5","v":2.3629081763567455E-3},{"$f":"'Population at Risk'!AA183/'Population at Risk'!AA$5","v":4.7091337444890614E-3},{"$f":"'Population at Risk'!AB183/'Population at Risk'!AB$5","v":9.9031165619175299E-3},{"$f":"'Population at Risk'!AC183/'Population at Risk'!AC$5","v":3.7729769107170807E-3},{"$f":"'Population at Risk'!AD183/'Population at Risk'!AD$5","v":9.9859659036560435E-3},{"$f":"'Population at Risk'!AE183/'Population at Risk'!AE$5","v":1.0503667230794007E-2},{"$f":"'Population at Risk'!AF183/'Population at Risk'!AF$5","v":5.4497030431397845E-3},{"$f":"'Population at Risk'!AG183/'Population at Risk'!AG$5","v":1.2436138777019861E-2},{"$f":"'Population at Risk'!AH183/'Population at Risk'!AH$5","v":5.9436451462444046E-3},{"$f":"'Population at Risk'!AI183/'Population at Risk'!AI$5","v":5.8654111406301465E-3},{"$f":"'Population at Risk'!AJ183/'Population at Risk'!AJ$5","v":5.1649743141353602E-3},{"$f":"'Population at Risk'!AK183/'Population at Risk'!AK$5","v":1.5965968986510731E-2},{"$f":"'Population at Risk'!AL183/'Population at Risk'!AL$5","v":3.7650112645227453E-3},{"$f":"'Population at Risk'!AM183/'Population at Risk'!AM$5","v":5.0910901899914362E-3},{"$f":"'Population at Risk'!AN183/'Population at Risk'!AN$5","v":1.7754910407944864E-2},{"$f":"'Population at Risk'!AO183/'Population at Risk'!AO$5","v":1.7754910407944864E-2},{"$f":"'Population at Risk'!AP183/'Population at Risk'!AP$5","v":1.5645965431822284E-2},{"$f":"'Population at Risk'!AQ183/'Population at Risk'!AQ$5","v":6.0080944379146302E-3},{"$f":"'Population at Risk'!AR183/'Population at Risk'!AR$5","v":6.3655498605825278E-3},{"$f":"'Population at Risk'!AS183/'Population at Risk'!AS$5","v":1.5768674830185108E-2},{"$f":"'Population at Risk'!AT183/'Population at Risk'!AT$5","v":2.3970490809652682E-2},{"$f":"'Population at Risk'!AU183/'Population at Risk'!AU$5","v":2.3970490809652682E-2},{"$f":"'Population at Risk'!AV183/'Population at Risk'!AV$5","v":5.0465954445092333E-3},{"$f":"'Population at Risk'!AW183/'Population at Risk'!AW$5","v":6.6777473469946487E-3},{"$f":"'Population at Risk'!AX183/'Population at Risk'!AX$5","v":9.8817282257710436E-3},{"$f":"'Population at Risk'!AY183/'Population at Risk'!AY$5","v":8.1593613506227031E-3},{"$f":"'Population at Risk'!AZ183/'Population at Risk'!AZ$5","v":8.271816332897839E-3},{"$f":"'Population at Risk'!BA183/'Population at Risk'!BA$5","v":3.7954073865815331E-3},{"$f":"'Population at Risk'!BB183/'Population at Risk'!BB$5","v":7.3333973383511806E-3},{"$f":"'Population at Risk'!BC183/'Population at Risk'!BC$5","v":1.6185463846162557E-3},181]
[null,"Female 50-54",{"$f":"'Population at Risk'!C184/'Population at Risk'!C$5","v":3.8538702029197861E-3},{"$f":"'Population at Risk'!D184/'Population at Risk'!D$5","v":1.1460482525970392E-2},{"$f":"'Population at Risk'!E184/'Population at Risk'!E$5","v":1.4661773862491033E-2},{"$f":"'Population at Risk'!F184/'Population at Risk'!F$5","v":6.0386682362866635E-3},{"$f":"'Population at Risk'!G184/'Population at Risk'!G$5","v":9.1926293242640695E-3},{"$f":"'Population at Risk'!H184/'Population at Risk'!H$5","v":4.4885656935158696E-3},{"$f":"'Population at Risk'!I184/'Population at Risk'!I$5","v":1.7158069232844752E-2},{"$f":"'Population at Risk'!J184/'Population at Risk'!J$5","v":8.757105493909359E-3},{"$f":"'Population at Risk'!K184/'Population at Risk'!K$5","v":5.3467107022286478E-3},{"$f":"'Population at Risk'!L184/'Population at Risk'!L$5","v":6.8365597963974669E-3},{"$f":"'Population at Risk'!M184/'Population at Risk'!M$5","v":6.8365597963974669E-3},{"$f":"'Population at Risk'!N184/'Population at Risk'!N$5","v":4.2687348281101904E-3},{"$f":"'Population at Risk'!O184/'Population at Risk'!O$5","v":4.0639819942826991E-3},{"$f":"'Population at Risk'!P184/'Population at Risk'!P$5","v":8.4963879408863994E-3},{"$f":"'Population at Risk'!Q184/'Population at Risk'!Q$5","v":1.311575917971705E-2},{"$f":"'Population at Risk'!R184/'Population at Risk'!R$5","v":6.2536262211584041E-3},{"$f":"'Population at Risk'!S184/'Population at Risk'!S$5","v":7.227135759585248E-3},{"$f":"'Population at Risk'!T184/'Population at Risk'!T$5","v":4.4392060188625177E-3},{"$f":"'Population at Risk'!U184/'Population at Risk'!U$5","v":2.0543088727821707E-3},{"$f":"'Population at Risk'!V184/'Population at Risk'!V$5","v":5.2131464904267072E-3},{"$f":"'Population at Risk'!W184/'Population at Risk'!W$5","v":5.7986365612666584E-3},{"$f":"'Population at Risk'!X184/'Population at Risk'!X$5","v":5.7986365612666584E-3},{"$f":"'Population at Risk'!Y184/'Population at Risk'!Y$5","v":6.8849111467496425E-3},{"$f":"'Population at Risk'!Z184/'Population at Risk'!Z$5","v":2.4938317233623277E-3},{"$f":"'Population at Risk'!AA184/'Population at Risk'!AA$5","v":4.9109724855553897E-3},{"$f":"'Population at Risk'!AB184/'Population at Risk'!AB$5","v":1.0211809427040273E-2},{"$f":"'Population at Risk'!AC184/'Population at Risk'!AC$5","v":4.0467002189495576E-3},{"$f":"'Population at Risk'!AD184/'Population at Risk'!AD$5","v":1.0793519806882873E-2},{"$f":"'Population at Risk'!AE184/'Population at Risk'!AE$5","v":1.139488748067956E-2},{"$f":"'Population at Risk'!AF184/'Population at Risk'!AF$5","v":6.0747901450184999E-3},{"$f":"'Population at Risk'!AG184/'Population at Risk'!AG$5","v":1.3491326309615484E-2},{"$f":"'Population at Risk'!AH184/'Population at Risk'!AH$5","v":5.9771969796018377E-3},{"$f":"'Population at Risk'!AI184/'Population at Risk'!AI$5","v":5.9323516793265991E-3},{"$f":"'Population at Risk'!AJ184/'Population at Risk'!AJ$5","v":5.0433354263024624E-3},{"$f":"'Population at Risk'!AK184/'Population at Risk'!AK$5","v":1.6577478940729459E-2},{"$f":"'Population at Risk'!AL184/'Population at Risk'!AL$5","v":4.377713569362532E-3},{"$f":"'Population at Risk'!AM184/'Population at Risk'!AM$5","v":5.0592095674144178E-3},{"$f":"'Population at Risk'!AN184/'Population at Risk'!AN$5","v":1.8474096652317314E-2},{"$f":"'Population at Risk'!AO184/'Population at Risk'!AO$5","v":1.8474096652317314E-2},{"$f":"'Population at Risk'!AP184/'Population at Risk'!AP$5","v":1.5873252719210359E-2},{"$f":"'Population at Risk'!AQ184/'Population at Risk'!AQ$5","v":6.4107694649797381E-3},{"$f":"'Population at Risk'!AR184/'Population at Risk'!AR$5","v":6.6501128281109987E-3},{"$f":"'Population at Risk'!AS184/'Population at Risk'!AS$5","v":1.7158069232844752E-2},{"$f":"'Population at Risk'!AT184/'Population at Risk'!AT$5","v":2.4936334761689972E-2},{"$f":"'Population at Risk'!AU184/'Population at Risk'!AU$5","v":2.4936334761689972E-2},{"$f":"'Population at Risk'!AV184/'Population at Risk'!AV$5","v":5.1046976946927279E-3},{"$f":"'Population at Risk'!AW184/'Population at Risk'!AW$5","v":6.7764211164367556E-3},{"$f":"'Population at Risk'!AX184/'Population at Risk'!AX$5","v":1.1023441845481643E-2},{"$f":"'Population at Risk'!AY184/'Population at Risk'!AY$5","v":8.6141608382636348E-3},{"$f":"'Population at Risk'!AZ184/'Population at Risk'!AZ$5","v":8.7830277869948344E-3},{"$f":"'Population at Risk'!BA184/'Population at Risk'!BA$5","v":4.2521161592407215E-3},{"$f":"'Population at Risk'!BB184/'Population at Risk'!BB$5","v":6.8200595246665982E-3},{"$f":"'Population at Risk'!BC184/'Population at Risk'!BC$5","v":2.0543088727821707E-3},182]
[null,"Female 55-59",{"$f":"'Population at Risk'!C185/'Population at Risk'!C$5","v":3.2866281070169055E-3},{"$f":"'Population at Risk'!D185/'Population at Risk'!D$5","v":9.2288568762091509E-3},{"$f":"'Population at Risk'!E185/'Population at Risk'!E$5","v":1.1608610438431808E-2},{"$f":"'Population at Risk'!F185/'Population at Risk'!F$5","v":4.9285583279857527E-3},{"$f":"'Population at Risk'!G185/'Population at Risk'!G$5","v":7.9075600691186926E-3},{"$f":"'Population at Risk'!H185/'Population at Risk'!H$5","v":3.9575900296050411E-3},{"$f":"'Population at Risk'!I185/'Population at Risk'!I$5","v":1.4822076292453357E-2},{"$f":"'Population at Risk'!J185/'Population at Risk'!J$5","v":6.6880057439084577E-3},{"$f":"'Population at Risk'!K185/'Population at Risk'!K$5","v":4.3926651999814147E-3},{"$f":"'Population at Risk'!L185/'Population at Risk'!L$5","v":6.3191436325780084E-3},{"$f":"'Population at Risk'!M185/'Population at Risk'!M$5","v":6.3191436325780084E-3},{"$f":"'Population at Risk'!N185/'Population at Risk'!N$5","v":3.9648053454254427E-3},{"$f":"'Population at Risk'!O185/'Population at Risk'!O$5","v":3.5701162990739877E-3},{"$f":"'Population at Risk'!P185/'Population at Risk'!P$5","v":8.3854089182503009E-3},{"$f":"'Population at Risk'!Q185/'Population at Risk'!Q$5","v":1.1323274679752495E-2},{"$f":"'Population at Risk'!R185/'Population at Risk'!R$5","v":5.312252864095081E-3},{"$f":"'Population at Risk'!S185/'Population at Risk'!S$5","v":6.0017309237411645E-3},{"$f":"'Population at Risk'!T185/'Population at Risk'!T$5","v":3.6679125316387466E-3},{"$f":"'Population at Risk'!U185/'Population at Risk'!U$5","v":1.6628096932565205E-3},{"$f":"'Population at Risk'!V185/'Population at Risk'!V$5","v":4.2063926275202265E-3},{"$f":"'Population at Risk'!W185/'Population at Risk'!W$5","v":4.931491899768034E-3},{"$f":"'Population at Risk'!X185/'Population at Risk'!X$5","v":4.931491899768034E-3},{"$f":"'Population at Risk'!Y185/'Population at Risk'!Y$5","v":5.3922608471675812E-3},{"$f":"'Population at Risk'!Z185/'Population at Risk'!Z$5","v":2.0191553113388895E-3},{"$f":"'Population at Risk'!AA185/'Population at Risk'!AA$5","v":4.0746773367731151E-3},{"$f":"'Population at Risk'!AB185/'Population at Risk'!AB$5","v":8.2928944451452942E-3},{"$f":"'Population at Risk'!AC185/'Population at Risk'!AC$5","v":3.4705400663844832E-3},{"$f":"'Population at Risk'!AD185/'Population at Risk'!AD$5","v":9.0533460764787074E-3},{"$f":"'Population at Risk'!AE185/'Population at Risk'!AE$5","v":9.4889408015107982E-3},{"$f":"'Population at Risk'!AF185/'Population at Risk'!AF$5","v":4.7925032655199169E-3},{"$f":"'Population at Risk'!AG185/'Population at Risk'!AG$5","v":1.1234722317606577E-2},{"$f":"'Population at Risk'!AH185/'Population at Risk'!AH$5","v":4.7362620789871638E-3},{"$f":"'Population at Risk'!AI185/'Population at Risk'!AI$5","v":4.8111095286595086E-3},{"$f":"'Population at Risk'!AJ185/'Population at Risk'!AJ$5","v":3.9816566929871912E-3},{"$f":"'Population at Risk'!AK185/'Population at Risk'!AK$5","v":1.3845552177668823E-2},{"$f":"'Population at Risk'!AL185/'Population at Risk'!AL$5","v":3.6355065899691692E-3},{"$f":"'Population at Risk'!AM185/'Population at Risk'!AM$5","v":3.8263931920148875E-3},{"$f":"'Population at Risk'!AN185/'Population at Risk'!AN$5","v":1.6519124746732641E-2},{"$f":"'Population at Risk'!AO185/'Population at Risk'!AO$5","v":1.6519124746732641E-2},{"$f":"'Population at Risk'!AP185/'Population at Risk'!AP$5","v":1.3115341418999732E-2},{"$f":"'Population at Risk'!AQ185/'Population at Risk'!AQ$5","v":5.5170182240777488E-3},{"$f":"'Population at Risk'!AR185/'Population at Risk'!AR$5","v":5.5330583795042644E-3},{"$f":"'Population at Risk'!AS185/'Population at Risk'!AS$5","v":1.4822076292453357E-2},{"$f":"'Population at Risk'!AT185/'Population at Risk'!AT$5","v":2.021841170500677E-2},{"$f":"'Population at Risk'!AU185/'Population at Risk'!AU$5","v":2.021841170500677E-2},{"$f":"'Population at Risk'!AV185/'Population at Risk'!AV$5","v":4.9387856505232726E-3},{"$f":"'Population at Risk'!AW185/'Population at Risk'!AW$5","v":5.5531023343685032E-3},{"$f":"'Population at Risk'!AX185/'Population at Risk'!AX$5","v":8.213346366240307E-3},{"$f":"'Population at Risk'!AY185/'Population at Risk'!AY$5","v":7.2793740813711649E-3},{"$f":"'Population at Risk'!AZ185/'Population at Risk'!AZ$5","v":7.3947867091359335E-3},{"$f":"'Population at Risk'!BA185/'Population at Risk'!BA$5","v":4.0543003205282188E-3},{"$f":"'Population at Risk'!BB185/'Population at Risk'!BB$5","v":5.0080341538634209E-3},{"$f":"'Population at Risk'!BC185/'Population at Risk'!BC$5","v":1.6628096932565205E-3},183]
[null,"Female 60-64",{"$f":"'Population at Risk'!C186/'Population at Risk'!C$5","v":3.0394178926029052E-3},{"$f":"'Population at Risk'!D186/'Population at Risk'!D$5","v":8.3358090030421789E-3},{"$f":"'Population at Risk'!E186/'Population at Risk'!E$5","v":1.0408665472852621E-2},{"$f":"'Population at Risk'!F186/'Population at Risk'!F$5","v":4.9689931729737851E-3},{"$f":"'Population at Risk'!G186/'Population at Risk'!G$5","v":7.4879371880923465E-3},{"$f":"'Population at Risk'!H186/'Population at Risk'!H$5","v":3.6799276767307014E-3},{"$f":"'Population at Risk'!I186/'Population at Risk'!I$5","v":1.3358275736072688E-2},{"$f":"'Population at Risk'!J186/'Population at Risk'!J$5","v":5.5715227003406776E-3},{"$f":"'Population at Risk'!K186/'Population at Risk'!K$5","v":3.6014397912891099E-3},{"$f":"'Population at Risk'!L186/'Population at Risk'!L$5","v":6.0861286786111279E-3},{"$f":"'Population at Risk'!M186/'Population at Risk'!M$5","v":6.0861286786111279E-3},{"$f":"'Population at Risk'!N186/'Population at Risk'!N$5","v":2.8333507878724028E-3},{"$f":"'Population at Risk'!O186/'Population at Risk'!O$5","v":3.1860583335675437E-3},{"$f":"'Population at Risk'!P186/'Population at Risk'!P$5","v":6.6973178449920351E-3},{"$f":"'Population at Risk'!Q186/'Population at Risk'!Q$5","v":9.4613042564100306E-3},{"$f":"'Population at Risk'!R186/'Population at Risk'!R$5","v":4.7423560051117006E-3},{"$f":"'Population at Risk'!S186/'Population at Risk'!S$5","v":5.2339477303817959E-3},{"$f":"'Population at Risk'!T186/'Population at Risk'!T$5","v":3.0774079080079608E-3},{"$f":"'Population at Risk'!U186/'Population at Risk'!U$5","v":1.0894270404094445E-3},{"$f":"'Population at Risk'!V186/'Population at Risk'!V$5","v":3.5007278849465426E-3},{"$f":"'Population at Risk'!W186/'Population at Risk'!W$5","v":4.494069167467832E-3},{"$f":"'Population at Risk'!X186/'Population at Risk'!X$5","v":4.494069167467832E-3},{"$f":"'Population at Risk'!Y186/'Population at Risk'!Y$5","v":4.4900263524781034E-3},{"$f":"'Population at Risk'!Z186/'Population at Risk'!Z$5","v":1.5773143497558931E-3},{"$f":"'Population at Risk'!AA186/'Population at Risk'!AA$5","v":3.3624337177637917E-3},{"$f":"'Population at Risk'!AB186/'Population at Risk'!AB$5","v":7.4657589991879462E-3},{"$f":"'Population at Risk'!AC186/'Population at Risk'!AC$5","v":2.8098160056499624E-3},{"$f":"'Population at Risk'!AD186/'Population at Risk'!AD$5","v":8.6248707769272029E-3},{"$f":"'Population at Risk'!AE186/'Population at Risk'!AE$5","v":9.0557004559560644E-3},{"$f":"'Population at Risk'!AF186/'Population at Risk'!AF$5","v":3.7626421577009166E-3},{"$f":"'Population at Risk'!AG186/'Population at Risk'!AG$5","v":1.0721774130774558E-2},{"$f":"'Population at Risk'!AH186/'Population at Risk'!AH$5","v":4.0151781955260922E-3},{"$f":"'Population at Risk'!AI186/'Population at Risk'!AI$5","v":4.0590817285486537E-3},{"$f":"'Population at Risk'!AJ186/'Population at Risk'!AJ$5","v":3.6369245117761784E-3},{"$f":"'Population at Risk'!AK186/'Population at Risk'!AK$5","v":1.2329914809107442E-2},{"$f":"'Population at Risk'!AL186/'Population at Risk'!AL$5","v":3.6436854574381661E-3},{"$f":"'Population at Risk'!AM186/'Population at Risk'!AM$5","v":3.2639540510398532E-3},{"$f":"'Population at Risk'!AN186/'Population at Risk'!AN$5","v":1.5277085292091088E-2},{"$f":"'Population at Risk'!AO186/'Population at Risk'!AO$5","v":1.5277085292091088E-2},{"$f":"'Population at Risk'!AP186/'Population at Risk'!AP$5","v":1.2391112039520886E-2},{"$f":"'Population at Risk'!AQ186/'Population at Risk'!AQ$5","v":4.7836636243913247E-3},{"$f":"'Population at Risk'!AR186/'Population at Risk'!AR$5","v":4.8725212197668916E-3},{"$f":"'Population at Risk'!AS186/'Population at Risk'!AS$5","v":1.3358275736072688E-2},{"$f":"'Population at Risk'!AT186/'Population at Risk'!AT$5","v":1.8237007357916106E-2},{"$f":"'Population at Risk'!AU186/'Population at Risk'!AU$5","v":1.8237007357916106E-2},{"$f":"'Population at Risk'!AV186/'Population at Risk'!AV$5","v":4.2889454333491575E-3},{"$f":"'Population at Risk'!AW186/'Population at Risk'!AW$5","v":4.6874182143216946E-3},{"$f":"'Population at Risk'!AX186/'Population at Risk'!AX$5","v":6.8807173200622438E-3},{"$f":"'Population at Risk'!AY186/'Population at Risk'!AY$5","v":6.6537267625559181E-3},{"$f":"'Population at Risk'!AZ186/'Population at Risk'!AZ$5","v":6.7710253302403038E-3},{"$f":"'Population at Risk'!BA186/'Population at Risk'!BA$5","v":3.0316592736686862E-3},{"$f":"'Population at Risk'!BB186/'Population at Risk'!BB$5","v":4.1733617948861842E-3},{"$f":"'Population at Risk'!BC186/'Population at Risk'!BC$5","v":1.0894270404094445E-3},184]
[null,"Female 65-69",{"$f":"'Population at Risk'!C187/'Population at Risk'!C$5","v":2.6287703458673971E-3},{"$f":"'Population at Risk'!D187/'Population at Risk'!D$5","v":6.9454127022983425E-3},{"$f":"'Population at Risk'!E187/'Population at Risk'!E$5","v":8.5683265979537449E-3},{"$f":"'Population at Risk'!F187/'Population at Risk'!F$5","v":4.4770081591962146E-3},{"$f":"'Population at Risk'!G187/'Population at Risk'!G$5","v":7.2099154438732445E-3},{"$f":"'Population at Risk'!H187/'Population at Risk'!H$5","v":3.1483536307957871E-3},{"$f":"'Population at Risk'!I187/'Population at Risk'!I$5","v":1.2178318519633359E-2},{"$f":"'Population at Risk'!J187/'Population at Risk'!J$5","v":4.8510700769243105E-3},{"$f":"'Population at Risk'!K187/'Population at Risk'!K$5","v":3.3555502432493557E-3},{"$f":"'Population at Risk'!L187/'Population at Risk'!L$5","v":4.8624919494464278E-3},{"$f":"'Population at Risk'!M187/'Population at Risk'!M$5","v":4.8624919494464278E-3},{"$f":"'Population at Risk'!N187/'Population at Risk'!N$5","v":2.627954536143767E-3},{"$f":"'Population at Risk'!O187/'Population at Risk'!O$5","v":2.6429278460933805E-3},{"$f":"'Population at Risk'!P187/'Population at Risk'!P$5","v":5.4992081178767667E-3},{"$f":"'Population at Risk'!Q187/'Population at Risk'!Q$5","v":7.9503024443786791E-3},{"$f":"'Population at Risk'!R187/'Population at Risk'!R$5","v":3.6309566191842354E-3},{"$f":"'Population at Risk'!S187/'Population at Risk'!S$5","v":4.4751101093637091E-3},{"$f":"'Population at Risk'!T187/'Population at Risk'!T$5","v":2.4838387437329892E-3},{"$f":"'Population at Risk'!U187/'Population at Risk'!U$5","v":1.4200069155694251E-3},{"$f":"'Population at Risk'!V187/'Population at Risk'!V$5","v":3.2665283717894576E-3},{"$f":"'Population at Risk'!W187/'Population at Risk'!W$5","v":3.8834675722698156E-3},{"$f":"'Population at Risk'!X187/'Population at Risk'!X$5","v":3.8834675722698156E-3},{"$f":"'Population at Risk'!Y187/'Population at Risk'!Y$5","v":4.0396342807495957E-3},{"$f":"'Population at Risk'!Z187/'Population at Risk'!Z$5","v":1.1589481990866948E-3},{"$f":"'Population at Risk'!AA187/'Population at Risk'!AA$5","v":2.5592880011006164E-3},{"$f":"'Population at Risk'!AB187/'Population at Risk'!AB$5","v":6.3772539999094975E-3},{"$f":"'Population at Risk'!AC187/'Population at Risk'!AC$5","v":2.1885607982727261E-3},{"$f":"'Population at Risk'!AD187/'Population at Risk'!AD$5","v":7.3679445184634132E-3},{"$f":"'Population at Risk'!AE187/'Population at Risk'!AE$5","v":7.4519108912366044E-3},{"$f":"'Population at Risk'!AF187/'Population at Risk'!AF$5","v":2.9545310599741761E-3},{"$f":"'Population at Risk'!AG187/'Population at Risk'!AG$5","v":8.8229183161582965E-3},{"$f":"'Population at Risk'!AH187/'Population at Risk'!AH$5","v":2.9575884997831872E-3},{"$f":"'Population at Risk'!AI187/'Population at Risk'!AI$5","v":3.3707637906847479E-3},{"$f":"'Population at Risk'!AJ187/'Population at Risk'!AJ$5","v":3.3209200123327505E-3},{"$f":"'Population at Risk'!AK187/'Population at Risk'!AK$5","v":1.1391301877492519E-2},{"$f":"'Population at Risk'!AL187/'Population at Risk'!AL$5","v":3.1378578452660607E-3},{"$f":"'Population at Risk'!AM187/'Population at Risk'!AM$5","v":2.2869011390292304E-3},{"$f":"'Population at Risk'!AN187/'Population at Risk'!AN$5","v":1.3277043980974878E-2},{"$f":"'Population at Risk'!AO187/'Population at Risk'!AO$5","v":1.3277043980974878E-2},{"$f":"'Population at Risk'!AP187/'Population at Risk'!AP$5","v":1.0540163920555755E-2},{"$f":"'Population at Risk'!AQ187/'Population at Risk'!AQ$5","v":3.7399315458394615E-3},{"$f":"'Population at Risk'!AR187/'Population at Risk'!AR$5","v":4.0703280037984796E-3},{"$f":"'Population at Risk'!AS187/'Population at Risk'!AS$5","v":1.2178318519633359E-2},{"$f":"'Population at Risk'!AT187/'Population at Risk'!AT$5","v":1.4393512253796422E-2},{"$f":"'Population at Risk'!AU187/'Population at Risk'!AU$5","v":1.4393512253796422E-2},{"$f":"'Population at Risk'!AV187/'Population at Risk'!AV$5","v":3.7482141909104491E-3},{"$f":"'Population at Risk'!AW187/'Population at Risk'!AW$5","v":3.5707892079154435E-3},{"$f":"'Population at Risk'!AX187/'Population at Risk'!AX$5","v":5.8448995807174903E-3},{"$f":"'Population at Risk'!AY187/'Population at Risk'!AY$5","v":5.8030265475006015E-3},{"$f":"'Population at Risk'!AZ187/'Population at Risk'!AZ$5","v":5.9366621693715208E-3},{"$f":"'Population at Risk'!BA187/'Population at Risk'!BA$5","v":2.6607828866542231E-3},{"$f":"'Population at Risk'!BB187/'Population at Risk'!BB$5","v":3.4711600936100373E-3},{"$f":"'Population at Risk'!BC187/'Population at Risk'!BC$5","v":1.4200069155694251E-3},185]
[null,"Female 70-74",{"$f":"'Population at Risk'!C188/'Population at Risk'!C$5","v":1.8518463165219721E-3},{"$f":"'Population at Risk'!D188/'Population at Risk'!D$5","v":5.0255710070350422E-3},{"$f":"'Population at Risk'!E188/'Population at Risk'!E$5","v":6.2542739997828297E-3},{"$f":"'Population at Risk'!F188/'Population at Risk'!F$5","v":3.5567133059157792E-3},{"$f":"'Population at Risk'!G188/'Population at Risk'!G$5","v":5.7068711819583014E-3},{"$f":"'Population at Risk'!H188/'Population at Risk'!H$5","v":2.6518824813241441E-3},{"$f":"'Population at Risk'!I188/'Population at Risk'!I$5","v":9.7426548157066861E-3},{"$f":"'Population at Risk'!J188/'Population at Risk'!J$5","v":3.8589096559134006E-3},{"$f":"'Population at Risk'!K188/'Population at Risk'!K$5","v":2.5996925092750985E-3},{"$f":"'Population at Risk'!L188/'Population at Risk'!L$5","v":4.1918034046951958E-3},{"$f":"'Population at Risk'!M188/'Population at Risk'!M$5","v":4.1918034046951958E-3},{"$f":"'Population at Risk'!N188/'Population at Risk'!N$5","v":1.8443174907274028E-3},{"$f":"'Population at Risk'!O188/'Population at Risk'!O$5","v":1.9572197623131393E-3},{"$f":"'Population at Risk'!P188/'Population at Risk'!P$5","v":3.9048998820217385E-3},{"$f":"'Population at Risk'!Q188/'Population at Risk'!Q$5","v":5.6916088054300793E-3},{"$f":"'Population at Risk'!R188/'Population at Risk'!R$5","v":2.8364178766333318E-3},{"$f":"'Population at Risk'!S188/'Population at Risk'!S$5","v":3.3916453084269398E-3},{"$f":"'Population at Risk'!T188/'Population at Risk'!T$5","v":1.8703215136499057E-3},{"$f":"'Population at Risk'!U188/'Population at Risk'!U$5","v":1.1071240358676874E-3},{"$f":"'Population at Risk'!V188/'Population at Risk'!V$5","v":2.4457593381483375E-3},{"$f":"'Population at Risk'!W188/'Population at Risk'!W$5","v":3.0065014495163126E-3},{"$f":"'Population at Risk'!X188/'Population at Risk'!X$5","v":3.0065014495163126E-3},{"$f":"'Population at Risk'!Y188/'Population at Risk'!Y$5","v":3.1224321613411176E-3},{"$f":"'Population at Risk'!Z188/'Population at Risk'!Z$5","v":8.301341048664307E-4},{"$f":"'Population at Risk'!AA188/'Population at Risk'!AA$5","v":1.8191348846260324E-3},{"$f":"'Population at Risk'!AB188/'Population at Risk'!AB$5","v":4.6605791991777158E-3},{"$f":"'Population at Risk'!AC188/'Population at Risk'!AC$5","v":1.6168491624411444E-3},{"$f":"'Population at Risk'!AD188/'Population at Risk'!AD$5","v":5.6441769171882376E-3},{"$f":"'Population at Risk'!AE188/'Population at Risk'!AE$5","v":5.6443097539494863E-3},{"$f":"'Population at Risk'!AF188/'Population at Risk'!AF$5","v":2.471186116983009E-3},{"$f":"'Population at Risk'!AG188/'Population at Risk'!AG$5","v":6.6827535429543946E-3},{"$f":"'Population at Risk'!AH188/'Population at Risk'!AH$5","v":1.9813344660665798E-3},{"$f":"'Population at Risk'!AI188/'Population at Risk'!AI$5","v":2.4704294882868672E-3},{"$f":"'Population at Risk'!AJ188/'Population at Risk'!AJ$5","v":2.5612324278121868E-3},{"$f":"'Population at Risk'!AK188/'Population at Risk'!AK$5","v":8.5714173372528624E-3},{"$f":"'Population at Risk'!AL188/'Population at Risk'!AL$5","v":2.557663123329557E-3},{"$f":"'Population at Risk'!AM188/'Population at Risk'!AM$5","v":1.4980529849362291E-3},{"$f":"'Population at Risk'!AN188/'Population at Risk'!AN$5","v":1.0044674634821307E-2},{"$f":"'Population at Risk'!AO188/'Population at Risk'!AO$5","v":1.0044674634821307E-2},{"$f":"'Population at Risk'!AP188/'Population at Risk'!AP$5","v":8.0179345191068556E-3},{"$f":"'Population at Risk'!AQ188/'Population at Risk'!AQ$5","v":2.6890709317294141E-3},{"$f":"'Population at Risk'!AR188/'Population at Risk'!AR$5","v":3.070712940265305E-3},{"$f":"'Population at Risk'!AS188/'Population at Risk'!AS$5","v":9.7426548157066861E-3},{"$f":"'Population at Risk'!AT188/'Population at Risk'!AT$5","v":1.1609861299052775E-2},{"$f":"'Population at Risk'!AU188/'Population at Risk'!AU$5","v":1.1609861299052775E-2},{"$f":"'Population at Risk'!AV188/'Population at Risk'!AV$5","v":3.6968687910349639E-3},{"$f":"'Population at Risk'!AW188/'Population at Risk'!AW$5","v":2.4263054874297243E-3},{"$f":"'Population at Risk'!AX188/'Population at Risk'!AX$5","v":4.6957070850295471E-3},{"$f":"'Population at Risk'!AY188/'Population at Risk'!AY$5","v":4.4435953362477213E-3},{"$f":"'Population at Risk'!AZ188/'Population at Risk'!AZ$5","v":4.5174060782662414E-3},{"$f":"'Population at Risk'!BA188/'Population at Risk'!BA$5","v":2.0458193361918052E-3},{"$f":"'Population at Risk'!BB188/'Population at Risk'!BB$5","v":2.3897134833488006E-3},{"$f":"'Population at Risk'!BC188/'Population at Risk'!BC$5","v":1.1071240358676874E-3},186]
[null,"Female 75-79",{"$f":"'Population at Risk'!C189/'Population at Risk'!C$5","v":8.3661942923967238E-4},{"$f":"'Population at Risk'!D189/'Population at Risk'!D$5","v":2.1380380342240486E-3},{"$f":"'Population at Risk'!E189/'Population at Risk'!E$5","v":2.6079949213087474E-3},{"$f":"'Population at Risk'!F189/'Population at Risk'!F$5","v":1.4704279996632442E-3},{"$f":"'Population at Risk'!G189/'Population at Risk'!G$5","v":2.3326197024295791E-3},{"$f":"'Population at Risk'!H189/'Population at Risk'!H$5","v":9.9288206792992151E-4},{"$f":"'Population at Risk'!I189/'Population at Risk'!I$5","v":4.1741794948131463E-3},{"$f":"'Population at Risk'!J189/'Population at Risk'!J$5","v":1.5032227870295331E-3},{"$f":"'Population at Risk'!K189/'Population at Risk'!K$5","v":9.0634372248045675E-4},{"$f":"'Population at Risk'!L189/'Population at Risk'!L$5","v":1.7539417617765676E-3},{"$f":"'Population at Risk'!M189/'Population at Risk'!M$5","v":1.7539417617765676E-3},{"$f":"'Population at Risk'!N189/'Population at Risk'!N$5","v":8.5556835821650151E-4},{"$f":"'Population at Risk'!O189/'Population at Risk'!O$5","v":7.3565247169690988E-4},{"$f":"'Population at Risk'!P189/'Population at Risk'!P$5","v":1.9636031429015352E-3},{"$f":"'Population at Risk'!Q189/'Population at Risk'!Q$5","v":2.2643094472811899E-3},{"$f":"'Population at Risk'!R189/'Population at Risk'!R$5","v":1.3704071320620687E-3},{"$f":"'Population at Risk'!S189/'Population at Risk'!S$5","v":1.397578545746169E-3},{"$f":"'Population at Risk'!T189/'Population at Risk'!T$5","v":8.1259928514289335E-4},{"$f":"'Population at Risk'!U189/'Population at Risk'!U$5","v":4.8577211533144436E-4},{"$f":"'Population at Risk'!V189/'Population at Risk'!V$5","v":1.023064002098403E-3},{"$f":"'Population at Risk'!W189/'Population at Risk'!W$5","v":1.1658194902581297E-3},{"$f":"'Population at Risk'!X189/'Population at Risk'!X$5","v":1.1658194902581297E-3},{"$f":"'Population at Risk'!Y189/'Population at Risk'!Y$5","v":1.2582462396872472E-3},{"$f":"'Population at Risk'!Z189/'Population at Risk'!Z$5","v":3.9575166947164263E-4},{"$f":"'Population at Risk'!AA189/'Population at Risk'!AA$5","v":8.049131097135581E-4},{"$f":"'Population at Risk'!AB189/'Population at Risk'!AB$5","v":1.9350092252902701E-3},{"$f":"'Population at Risk'!AC189/'Population at Risk'!AC$5","v":7.1973877652627984E-4},{"$f":"'Population at Risk'!AD189/'Population at Risk'!AD$5","v":2.3152098674671935E-3},{"$f":"'Population at Risk'!AE189/'Population at Risk'!AE$5","v":2.3181662062797884E-3},{"$f":"'Population at Risk'!AF189/'Population at Risk'!AF$5","v":8.7503360774369521E-4},{"$f":"'Population at Risk'!AG189/'Population at Risk'!AG$5","v":2.7446639365129445E-3},{"$f":"'Population at Risk'!AH189/'Population at Risk'!AH$5","v":8.6812844008842698E-4},{"$f":"'Population at Risk'!AI189/'Population at Risk'!AI$5","v":1.0351393993884822E-3},{"$f":"'Population at Risk'!AJ189/'Population at Risk'!AJ$5","v":1.010676145357964E-3},{"$f":"'Population at Risk'!AK189/'Population at Risk'!AK$5","v":3.3060284464405654E-3},{"$f":"'Population at Risk'!AL189/'Population at Risk'!AL$5","v":9.336144547907228E-4},{"$f":"'Population at Risk'!AM189/'Population at Risk'!AM$5","v":6.8186639730226644E-4},{"$f":"'Population at Risk'!AN189/'Population at Risk'!AN$5","v":4.1905827913103419E-3},{"$f":"'Population at Risk'!AO189/'Population at Risk'!AO$5","v":4.1905827913103419E-3},{"$f":"'Population at Risk'!AP189/'Population at Risk'!AP$5","v":3.5043126439441271E-3},{"$f":"'Population at Risk'!AQ189/'Population at Risk'!AQ$5","v":1.0712086194302726E-3},{"$f":"'Population at Risk'!AR189/'Population at Risk'!AR$5","v":1.2832226821784373E-3},{"$f":"'Population at Risk'!AS189/'Population at Risk'!AS$5","v":4.1741794948131463E-3},{"$f":"'Population at Risk'!AT189/'Population at Risk'!AT$5","v":4.3453874417380854E-3},{"$f":"'Population at Risk'!AU189/'Population at Risk'!AU$5","v":4.3453874417380854E-3},{"$f":"'Population at Risk'!AV189/'Population at Risk'!AV$5","v":1.4249458876344216E-3},{"$f":"'Population at Risk'!AW189/'Population at Risk'!AW$5","v":1.0374540318386809E-3},{"$f":"'Population at Risk'!AX189/'Population at Risk'!AX$5","v":1.8998715048788178E-3},{"$f":"'Population at Risk'!AY189/'Population at Risk'!AY$5","v":1.8529098599031585E-3},{"$f":"'Population at Risk'!AZ189/'Population at Risk'!AZ$5","v":1.9601034124161745E-3},{"$f":"'Population at Risk'!BA189/'Population at Risk'!BA$5","v":8.7641101969614837E-4},{"$f":"'Population at Risk'!BB189/'Population at Risk'!BB$5","v":1.0111188742959311E-3},{"$f":"'Population at Risk'!BC189/'Population at Risk'!BC$5","v":4.8577211533144436E-4},187]
[null,"Female 80-84",{"$f":"'Population at Risk'!C190/'Population at Risk'!C$5","v":6.4583628236913903E-4},{"$f":"'Population at Risk'!D190/'Population at Risk'!D$5","v":1.6077152842206947E-3},{"$f":"'Population at Risk'!E190/'Population at Risk'!E$5","v":1.9430020779504207E-3},{"$f":"'Population at Risk'!F190/'Population at Risk'!F$5","v":1.1839549697560999E-3},{"$f":"'Population at Risk'!G190/'Population at Risk'!G$5","v":1.5925015080758089E-3},{"$f":"'Population at Risk'!H190/'Population at Risk'!H$5","v":7.5651985904619929E-4},{"$f":"'Population at Risk'!I190/'Population at Risk'!I$5","v":2.8492292619089732E-3},{"$f":"'Population at Risk'!J190/'Population at Risk'!J$5","v":1.1802363077485513E-3},{"$f":"'Population at Risk'!K190/'Population at Risk'!K$5","v":6.6911281525402848E-4},{"$f":"'Population at Risk'!L190/'Population at Risk'!L$5","v":1.3878156958485959E-3},{"$f":"'Population at Risk'!M190/'Population at Risk'!M$5","v":1.3878156958485959E-3},{"$f":"'Population at Risk'!N190/'Population at Risk'!N$5","v":8.5136409109995838E-4},{"$f":"'Population at Risk'!O190/'Population at Risk'!O$5","v":4.6068728555445832E-4},{"$f":"'Population at Risk'!P190/'Population at Risk'!P$5","v":1.3786130399121195E-3},{"$f":"'Population at Risk'!Q190/'Population at Risk'!Q$5","v":1.7598054125360827E-3},{"$f":"'Population at Risk'!R190/'Population at Risk'!R$5","v":1.1662073938408996E-3},{"$f":"'Population at Risk'!S190/'Population at Risk'!S$5","v":1.0437284450029495E-3},{"$f":"'Population at Risk'!T190/'Population at Risk'!T$5","v":6.964154618018198E-4},{"$f":"'Population at Risk'!U190/'Population at Risk'!U$5","v":2.4288605766572218E-4},{"$f":"'Population at Risk'!V190/'Population at Risk'!V$5","v":7.435671355457466E-4},{"$f":"'Population at Risk'!W190/'Population at Risk'!W$5","v":8.692435618731357E-4},{"$f":"'Population at Risk'!X190/'Population at Risk'!X$5","v":8.692435618731357E-4},{"$f":"'Population at Risk'!Y190/'Population at Risk'!Y$5","v":9.5232791996312054E-4},{"$f":"'Population at Risk'!Z190/'Population at Risk'!Z$5","v":2.9724391696185333E-4},{"$f":"'Population at Risk'!AA190/'Population at Risk'!AA$5","v":5.92650022600063E-4},{"$f":"'Population at Risk'!AB190/'Population at Risk'!AB$5","v":1.4835924470541217E-3},{"$f":"'Population at Risk'!AC190/'Population at Risk'!AC$5","v":5.496891840830869E-4},{"$f":"'Population at Risk'!AD190/'Population at Risk'!AD$5","v":1.7559959866371483E-3},{"$f":"'Population at Risk'!AE190/'Population at Risk'!AE$5","v":1.8199638198424658E-3},{"$f":"'Population at Risk'!AF190/'Population at Risk'!AF$5","v":8.1718014607469057E-4},{"$f":"'Population at Risk'!AG190/'Population at Risk'!AG$5","v":2.1548019501570924E-3},{"$f":"'Population at Risk'!AH190/'Population at Risk'!AH$5","v":6.0018756351792478E-4},{"$f":"'Population at Risk'!AI190/'Population at Risk'!AI$5","v":8.0228510391236083E-4},{"$f":"'Population at Risk'!AJ190/'Population at Risk'!AJ$5","v":6.8403176377839392E-4},{"$f":"'Population at Risk'!AK190/'Population at Risk'!AK$5","v":2.6895728659578635E-3},{"$f":"'Population at Risk'!AL190/'Population at Risk'!AL$5","v":6.9474044389700271E-4},{"$f":"'Population at Risk'!AM190/'Population at Risk'!AM$5","v":4.3208372886657651E-4},{"$f":"'Population at Risk'!AN190/'Population at Risk'!AN$5","v":2.4737360970730651E-3},{"$f":"'Population at Risk'!AO190/'Population at Risk'!AO$5","v":2.4737360970730651E-3},{"$f":"'Population at Risk'!AP190/'Population at Risk'!AP$5","v":2.5607468204487324E-3},{"$f":"'Population at Risk'!AQ190/'Population at Risk'!AQ$5","v":8.2501856829805213E-4},{"$f":"'Population at Risk'!AR190/'Population at Risk'!AR$5","v":9.6879966260274731E-4},{"$f":"'Population at Risk'!AS190/'Population at Risk'!AS$5","v":2.8492292619089732E-3},{"$f":"'Population at Risk'!AT190/'Population at Risk'!AT$5","v":3.1012723650578862E-3},{"$f":"'Population at Risk'!AU190/'Population at Risk'!AU$5","v":3.1012723650578862E-3},{"$f":"'Population at Risk'!AV190/'Population at Risk'!AV$5","v":1.2579067764045492E-3},{"$f":"'Population at Risk'!AW190/'Population at Risk'!AW$5","v":7.56814611116694E-4},{"$f":"'Population at Risk'!AX190/'Population at Risk'!AX$5","v":1.5198972039030543E-3},{"$f":"'Population at Risk'!AY190/'Population at Risk'!AY$5","v":1.4416883958142052E-3},{"$f":"'Population at Risk'!AZ190/'Population at Risk'!AZ$5","v":1.558011052319734E-3},{"$f":"'Population at Risk'!BA190/'Population at Risk'!BA$5","v":5.7241605345467999E-4},{"$f":"'Population at Risk'!BB190/'Population at Risk'!BB$5","v":6.2818449211576985E-4},{"$f":"'Population at Risk'!BC190/'Population at Risk'!BC$5","v":2.4288605766572218E-4},188]
[null,"Female 85-89",{"$f":"'Population at Risk'!C191/'Population at Risk'!C$5","v":3.9569837869443962E-4},{"$f":"'Population at Risk'!D191/'Population at Risk'!D$5","v":1.011334788164291E-3},{"$f":"'Population at Risk'!E191/'Population at Risk'!E$5","v":1.2336763783682059E-3},{"$f":"'Population at Risk'!F191/'Population at Risk'!F$5","v":6.9915445760554797E-4},{"$f":"'Population at Risk'!G191/'Population at Risk'!G$5","v":1.0394918460024862E-3},{"$f":"'Population at Risk'!H191/'Population at Risk'!H$5","v":4.4378210647556007E-4},{"$f":"'Population at Risk'!I191/'Population at Risk'!I$5","v":1.8525852814058345E-3},{"$f":"'Population at Risk'!J191/'Population at Risk'!J$5","v":7.2611246093995233E-4},{"$f":"'Population at Risk'!K191/'Population at Risk'!K$5","v":4.1971622047752696E-4},{"$f":"'Population at Risk'!L191/'Population at Risk'!L$5","v":8.1141452448901851E-4},{"$f":"'Population at Risk'!M191/'Population at Risk'!M$5","v":8.1141452448901851E-4},{"$f":"'Population at Risk'!N191/'Population at Risk'!N$5","v":6.8109127287996677E-4},{"$f":"'Population at Risk'!O191/'Population at Risk'!O$5","v":2.7978913677652968E-4},{"$f":"'Population at Risk'!P191/'Population at Risk'!P$5","v":1.0554366893095752E-3},{"$f":"'Population at Risk'!Q191/'Population at Risk'!Q$5","v":1.005035596775686E-3},{"$f":"'Population at Risk'!R191/'Population at Risk'!R$5","v":7.6688346131950213E-4},{"$f":"'Population at Risk'!S191/'Population at Risk'!S$5","v":6.8671640184853923E-4},{"$f":"'Population at Risk'!T191/'Population at Risk'!T$5","v":5.7404433425915064E-4},{"$f":"'Population at Risk'!U191/'Population at Risk'!U$5","v":2.8123648782346774E-4},{"$f":"'Population at Risk'!V191/'Population at Risk'!V$5","v":4.4649184971304876E-4},{"$f":"'Population at Risk'!W191/'Population at Risk'!W$5","v":5.2724609490665598E-4},{"$f":"'Population at Risk'!X191/'Population at Risk'!X$5","v":5.2724609490665598E-4},{"$f":"'Population at Risk'!Y191/'Population at Risk'!Y$5","v":5.793590096145277E-4},{"$f":"'Population at Risk'!Z191/'Population at Risk'!Z$5","v":1.9142336186400103E-4},{"$f":"'Population at Risk'!AA191/'Population at Risk'!AA$5","v":3.7679837949141151E-4},{"$f":"'Population at Risk'!AB191/'Population at Risk'!AB$5","v":9.3741016076272514E-4},{"$f":"'Population at Risk'!AC191/'Population at Risk'!AC$5","v":3.6723475814859732E-4},{"$f":"'Population at Risk'!AD191/'Population at Risk'!AD$5","v":1.0754938744562486E-3},{"$f":"'Population at Risk'!AE191/'Population at Risk'!AE$5","v":1.0922687889238101E-3},{"$f":"'Population at Risk'!AF191/'Population at Risk'!AF$5","v":5.2068115502104174E-4},{"$f":"'Population at Risk'!AG191/'Population at Risk'!AG$5","v":1.2932251129434424E-3},{"$f":"'Population at Risk'!AH191/'Population at Risk'!AH$5","v":3.4653686703118279E-4},{"$f":"'Population at Risk'!AI191/'Population at Risk'!AI$5","v":5.5110238446316382E-4},{"$f":"'Population at Risk'!AJ191/'Population at Risk'!AJ$5","v":3.6891600743104396E-4},{"$f":"'Population at Risk'!AK191/'Population at Risk'!AK$5","v":1.7215092877183606E-3},{"$f":"'Population at Risk'!AL191/'Population at Risk'!AL$5","v":4.1210325543496748E-4},{"$f":"'Population at Risk'!AM191/'Population at Risk'!AM$5","v":1.792794958933581E-4},{"$f":"'Population at Risk'!AN191/'Population at Risk'!AN$5","v":1.8091502799489579E-3},{"$f":"'Population at Risk'!AO191/'Population at Risk'!AO$5","v":1.8091502799489579E-3},{"$f":"'Population at Risk'!AP191/'Population at Risk'!AP$5","v":1.7559406768791308E-3},{"$f":"'Population at Risk'!AQ191/'Population at Risk'!AQ$5","v":5.5251813002193007E-4},{"$f":"'Population at Risk'!AR191/'Population at Risk'!AR$5","v":6.1893124152975808E-4},{"$f":"'Population at Risk'!AS191/'Population at Risk'!AS$5","v":1.8525852814058345E-3},{"$f":"'Population at Risk'!AT191/'Population at Risk'!AT$5","v":2.0014025146594498E-3},{"$f":"'Population at Risk'!AU191/'Population at Risk'!AU$5","v":2.0014025146594498E-3},{"$f":"'Population at Risk'!AV191/'Population at Risk'!AV$5","v":7.1588190527088161E-4},{"$f":"'Population at Risk'!AW191/'Population at Risk'!AW$5","v":5.0758249018669844E-4},{"$f":"'Population at Risk'!AX191/'Population at Risk'!AX$5","v":9.2972435345133639E-4},{"$f":"'Population at Risk'!AY191/'Population at Risk'!AY$5","v":9.4648508342539555E-4},{"$f":"'Population at Risk'!AZ191/'Population at Risk'!AZ$5","v":1.0606251271137325E-3},{"$f":"'Population at Risk'!BA191/'Population at Risk'!BA$5","v":3.5897277928513831E-4},{"$f":"'Population at Risk'!BB191/'Population at Risk'!BB$5","v":2.9903302878113701E-4},{"$f":"'Population at Risk'!BC191/'Population at Risk'!BC$5","v":2.8123648782346774E-4},189]
[null,"Female 90+",{"$f":"'Population at Risk'!C192/'Population at Risk'!C$5","v":1.8230389589850968E-4},{"$f":"'Population at Risk'!D192/'Population at Risk'!D$5","v":5.5172173816138415E-4},{"$f":"'Population at Risk'!E192/'Population at Risk'!E$5","v":7.0932569958221498E-4},{"$f":"'Population at Risk'!F192/'Population at Risk'!F$5","v":5.6693613610994285E-4},{"$f":"'Population at Risk'!G192/'Population at Risk'!G$5","v":6.6527478144159111E-4},{"$f":"'Population at Risk'!H192/'Population at Risk'!H$5","v":2.7495195727290131E-4},{"$f":"'Population at Risk'!I192/'Population at Risk'!I$5","v":1.0904457669034342E-3},{"$f":"'Population at Risk'!J192/'Population at Risk'!J$5","v":5.2697793987949713E-4},{"$f":"'Population at Risk'!K192/'Population at Risk'!K$5","v":2.7372796987664805E-4},{"$f":"'Population at Risk'!L192/'Population at Risk'!L$5","v":4.2302403563299442E-4},{"$f":"'Population at Risk'!M192/'Population at Risk'!M$5","v":4.2302403563299442E-4},{"$f":"'Population at Risk'!N192/'Population at Risk'!N$5","v":3.9309897539677093E-4},{"$f":"'Population at Risk'!O192/'Population at Risk'!O$5","v":1.7125024750977246E-4},{"$f":"'Population at Risk'!P192/'Population at Risk'!P$5","v":5.2771834465478761E-4},{"$f":"'Population at Risk'!Q192/'Population at Risk'!Q$5","v":5.1244898017416393E-4},{"$f":"'Population at Risk'!R192/'Population at Risk'!R$5","v":7.6234568935903166E-4},{"$f":"'Population at Risk'!S192/'Population at Risk'!S$5","v":4.0817802035367337E-4},{"$f":"'Population at Risk'!T192/'Population at Risk'!T$5","v":3.3892677459851643E-4},{"$f":"'Population at Risk'!U192/'Population at Risk'!U$5","v":1.4061824391173387E-4},{"$f":"'Population at Risk'!V192/'Population at Risk'!V$5","v":3.0410665354471434E-4},{"$f":"'Population at Risk'!W192/'Population at Risk'!W$5","v":3.6248169024832605E-4},{"$f":"'Population at Risk'!X192/'Population at Risk'!X$5","v":3.6248169024832605E-4},{"$f":"'Population at Risk'!Y192/'Population at Risk'!Y$5","v":4.085895366178405E-4},{"$f":"'Population at Risk'!Z192/'Population at Risk'!Z$5","v":1.1786517112525008E-4},{"$f":"'Population at Risk'!AA192/'Population at Risk'!AA$5","v":2.1262194271301076E-4},{"$f":"'Population at Risk'!AB192/'Population at Risk'!AB$5","v":5.0584291461923012E-4},{"$f":"'Population at Risk'!AC192/'Population at Risk'!AC$5","v":2.22770134781204E-4},{"$f":"'Population at Risk'!AD192/'Population at Risk'!AD$5","v":6.9982236142262881E-4},{"$f":"'Population at Risk'!AE192/'Population at Risk'!AE$5","v":7.1462266509376938E-4},{"$f":"'Population at Risk'!AF192/'Population at Risk'!AF$5","v":2.7118810157345929E-4},{"$f":"'Population at Risk'!AG192/'Population at Risk'!AG$5","v":8.4609940900023104E-4},{"$f":"'Population at Risk'!AH192/'Population at Risk'!AH$5","v":1.6484743453766134E-4},{"$f":"'Population at Risk'!AI192/'Population at Risk'!AI$5","v":3.0575143627812717E-4},{"$f":"'Population at Risk'!AJ192/'Population at Risk'!AJ$5","v":2.7284413049587626E-4},{"$f":"'Population at Risk'!AK192/'Population at Risk'!AK$5","v":8.9956851374142451E-4},{"$f":"'Population at Risk'!AL192/'Population at Risk'!AL$5","v":2.7351985980196954E-4},{"$f":"'Population at Risk'!AM192/'Population at Risk'!AM$5","v":7.9567866154917367E-5},{"$f":"'Population at Risk'!AN192/'Population at Risk'!AN$5","v":8.8611442283214269E-4},{"$f":"'Population at Risk'!AO192/'Population at Risk'!AO$5","v":8.8611442283214269E-4},{"$f":"'Population at Risk'!AP192/'Population at Risk'!AP$5","v":1.1453980852056398E-3},{"$f":"'Population at Risk'!AQ192/'Population at Risk'!AQ$5","v":3.0256945215486648E-4},{"$f":"'Population at Risk'!AR192/'Population at Risk'!AR$5","v":3.716809758405576E-4},{"$f":"'Population at Risk'!AS192/'Population at Risk'!AS$5","v":1.0904457669034342E-3},{"$f":"'Population at Risk'!AT192/'Population at Risk'!AT$5","v":1.1719924635393176E-3},{"$f":"'Population at Risk'!AU192/'Population at Risk'!AU$5","v":1.1719924635393176E-3},{"$f":"'Population at Risk'!AV192/'Population at Risk'!AV$5","v":4.1248433589417469E-4},{"$f":"'Population at Risk'!AW192/'Population at Risk'!AW$5","v":2.4720584352406068E-4},{"$f":"'Population at Risk'!AX192/'Population at Risk'!AX$5","v":6.9527212518969502E-4},{"$f":"'Population at Risk'!AY192/'Population at Risk'!AY$5","v":6.4241287406384569E-4},{"$f":"'Population at Risk'!AZ192/'Population at Risk'!AZ$5","v":7.158638549693855E-4},{"$f":"'Population at Risk'!BA192/'Population at Risk'!BA$5","v":1.7786939514128472E-4},{"$f":"'Population at Risk'!BB192/'Population at Risk'!BB$5","v":8.8203986906666316E-5},{"$f":"'Population at Risk'!BC192/'Population at Risk'!BC$5","v":1.4061824391173387E-4},190]
[null,"Male 0-4",{"$f":"'Population at Risk'!C193/'Population at Risk'!C$5","v":0},{"$f":"'Population at Risk'!D193/'Population at Risk'!D$5","v":0},{"$f":"'Population at Risk'!E193/'Population at Risk'!E$5","v":0},{"$f":"'Population at Risk'!F193/'Population at Risk'!F$5","v":0},{"$f":"'Population at Risk'!G193/'Population at Risk'!G$5","v":0},{"$f":"'Population at Risk'!H193/'Population at Risk'!H$5","v":0},{"$f":"'Population at Risk'!I193/'Population at Risk'!I$5","v":0},{"$f":"'Population at Risk'!J193/'Population at Risk'!J$5","v":0},{"$f":"'Population at Risk'!K193/'Population at Risk'!K$5","v":0},{"$f":"'Population at Risk'!L193/'Population at Risk'!L$5","v":0},{"$f":"'Population at Risk'!M193/'Population at Risk'!M$5","v":0},{"$f":"'Population at Risk'!N193/'Population at Risk'!N$5","v":0},{"$f":"'Population at Risk'!O193/'Population at Risk'!O$5","v":0},{"$f":"'Population at Risk'!P193/'Population at Risk'!P$5","v":0},{"$f":"'Population at Risk'!Q193/'Population at Risk'!Q$5","v":0},{"$f":"'Population at Risk'!R193/'Population at Risk'!R$5","v":0},{"$f":"'Population at Risk'!S193/'Population at Risk'!S$5","v":0},{"$f":"'Population at Risk'!T193/'Population at Risk'!T$5","v":0},{"$f":"'Population at Risk'!U193/'Population at Risk'!U$5","v":0},{"$f":"'Population at Risk'!V193/'Population at Risk'!V$5","v":0},{"$f":"'Population at Risk'!W193/'Population at Risk'!W$5","v":0},{"$f":"'Population at Risk'!X193/'Population at Risk'!X$5","v":0},{"$f":"'Population at Risk'!Y193/'Population at Risk'!Y$5","v":0},{"$f":"'Population at Risk'!Z193/'Population at Risk'!Z$5","v":0},{"$f":"'Population at Risk'!AA193/'Population at Risk'!AA$5","v":0},{"$f":"'Population at Risk'!AB193/'Population at Risk'!AB$5","v":0},{"$f":"'Population at Risk'!AC193/'Population at Risk'!AC$5","v":0},{"$f":"'Population at Risk'!AD193/'Population at Risk'!AD$5","v":0},{"$f":"'Population at Risk'!AE193/'Population at Risk'!AE$5","v":0},{"$f":"'Population at Risk'!AF193/'Population at Risk'!AF$5","v":0},{"$f":"'Population at Risk'!AG193/'Population at Risk'!AG$5","v":0},{"$f":"'Population at Risk'!AH193/'Population at Risk'!AH$5","v":0},{"$f":"'Population at Risk'!AI193/'Population at Risk'!AI$5","v":0},{"$f":"'Population at Risk'!AJ193/'Population at Risk'!AJ$5","v":0},{"$f":"'Population at Risk'!AK193/'Population at Risk'!AK$5","v":0},{"$f":"'Population at Risk'!AL193/'Population at Risk'!AL$5","v":0},{"$f":"'Population at Risk'!AM193/'Population at Risk'!AM$5","v":0},{"$f":"'Population at Risk'!AN193/'Population at Risk'!AN$5","v":0},{"$f":"'Population at Risk'!AO193/'Population at Risk'!AO$5","v":0},{"$f":"'Population at Risk'!AP193/'Population at Risk'!AP$5","v":0},{"$f":"'Population at Risk'!AQ193/'Population at Risk'!AQ$5","v":0},{"$f":"'Population at Risk'!AR193/'Population at Risk'!AR$5","v":0},{"$f":"'Population at Risk'!AS193/'Population at Risk'!AS$5","v":0},{"$f":"'Population at Risk'!AT193/'Population at Risk'!AT$5","v":0},{"$f":"'Population at Risk'!AU193/'Population at Risk'!AU$5","v":0},{"$f":"'Population at Risk'!AV193/'Population at Risk'!AV$5","v":0},{"$f":"'Population at Risk'!AW193/'Population at Risk'!AW$5","v":0},{"$f":"'Population at Risk'!AX193/'Population at Risk'!AX$5","v":0},{"$f":"'Population at Risk'!AY193/'Population at Risk'!AY$5","v":0},{"$f":"'Population at Risk'!AZ193/'Population at Risk'!AZ$5","v":0},{"$f":"'Population at Risk'!BA193/'Population at Risk'!BA$5","v":0},{"$f":"'Population at Risk'!BB193/'Population at Risk'!BB$5","v":0},{"$f":"'Population at Risk'!BC193/'Population at Risk'!BC$5","v":0},191]
[null,"Male 5-9",{"$f":"'Population at Risk'!C194/'Population at Risk'!C$5","v":0},{"$f":"'Population at Risk'!D194/'Population at Risk'!D$5","v":0},{"$f":"'Population at Risk'!E194/'Population at Risk'!E$5","v":0},{"$f":"'Population at Risk'!F194/'Population at Risk'!F$5","v":0},{"$f":"'Population at Risk'!G194/'Population at Risk'!G$5","v":0},{"$f":"'Population at Risk'!H194/'Population at Risk'!H$5","v":0},{"$f":"'Population at Risk'!I194/'Population at Risk'!I$5","v":0},{"$f":"'Population at Risk'!J194/'Population at Risk'!J$5","v":0},{"$f":"'Population at Risk'!K194/'Population at Risk'!K$5","v":0},{"$f":"'Population at Risk'!L194/'Population at Risk'!L$5","v":0},{"$f":"'Population at Risk'!M194/'Population at Risk'!M$5","v":0},{"$f":"'Population at Risk'!N194/'Population at Risk'!N$5","v":0},{"$f":"'Population at Risk'!O194/'Population at Risk'!O$5","v":0},{"$f":"'Population at Risk'!P194/'Population at Risk'!P$5","v":0},{"$f":"'Population at Risk'!Q194/'Population at Risk'!Q$5","v":0},{"$f":"'Population at Risk'!R194/'Population at Risk'!R$5","v":0},{"$f":"'Population at Risk'!S194/'Population at Risk'!S$5","v":0},{"$f":"'Population at Risk'!T194/'Population at Risk'!T$5","v":0},{"$f":"'Population at Risk'!U194/'Population at Risk'!U$5","v":0},{"$f":"'Population at Risk'!V194/'Population at Risk'!V$5","v":0},{"$f":"'Population at Risk'!W194/'Population at Risk'!W$5","v":0},{"$f":"'Population at Risk'!X194/'Population at Risk'!X$5","v":0},{"$f":"'Population at Risk'!Y194/'Population at Risk'!Y$5","v":0},{"$f":"'Population at Risk'!Z194/'Population at Risk'!Z$5","v":0},{"$f":"'Population at Risk'!AA194/'Population at Risk'!AA$5","v":0},{"$f":"'Population at Risk'!AB194/'Population at Risk'!AB$5","v":0},{"$f":"'Population at Risk'!AC194/'Population at Risk'!AC$5","v":0},{"$f":"'Population at Risk'!AD194/'Population at Risk'!AD$5","v":0},{"$f":"'Population at Risk'!AE194/'Population at Risk'!AE$5","v":0},{"$f":"'Population at Risk'!AF194/'Population at Risk'!AF$5","v":0},{"$f":"'Population at Risk'!AG194/'Population at Risk'!AG$5","v":0},{"$f":"'Population at Risk'!AH194/'Population at Risk'!AH$5","v":0},{"$f":"'Population at Risk'!AI194/'Population at Risk'!AI$5","v":0},{"$f":"'Population at Risk'!AJ194/'Population at Risk'!AJ$5","v":0},{"$f":"'Population at Risk'!AK194/'Population at Risk'!AK$5","v":0},{"$f":"'Population at Risk'!AL194/'Population at Risk'!AL$5","v":0},{"$f":"'Population at Risk'!AM194/'Population at Risk'!AM$5","v":0},{"$f":"'Population at Risk'!AN194/'Population at Risk'!AN$5","v":0},{"$f":"'Population at Risk'!AO194/'Population at Risk'!AO$5","v":0},{"$f":"'Population at Risk'!AP194/'Population at Risk'!AP$5","v":0},{"$f":"'Population at Risk'!AQ194/'Population at Risk'!AQ$5","v":0},{"$f":"'Population at Risk'!AR194/'Population at Risk'!AR$5","v":0},{"$f":"'Population at Risk'!AS194/'Population at Risk'!AS$5","v":0},{"$f":"'Population at Risk'!AT194/'Population at Risk'!AT$5","v":0},{"$f":"'Population at Risk'!AU194/'Population at Risk'!AU$5","v":0},{"$f":"'Population at Risk'!AV194/'Population at Risk'!AV$5","v":0},{"$f":"'Population at Risk'!AW194/'Population at Risk'!AW$5","v":0},{"$f":"'Population at Risk'!AX194/'Population at Risk'!AX$5","v":0},{"$f":"'Population at Risk'!AY194/'Population at Risk'!AY$5","v":0},{"$f":"'Population at Risk'!AZ194/'Population at Risk'!AZ$5","v":0},{"$f":"'Population at Risk'!BA194/'Population at Risk'!BA$5","v":0},{"$f":"'Population at Risk'!BB194/'Population at Risk'!BB$5","v":0},{"$f":"'Population at Risk'!BC194/'Population at Risk'!BC$5","v":0},192]
[null,"Male 10-15",{"$f":"'Population at Risk'!C195/'Population at Risk'!C$5","v":0},{"$f":"'Population at Risk'!D195/'Population at Risk'!D$5","v":0},{"$f":"'Population at Risk'!E195/'Population at Risk'!E$5","v":0},{"$f":"'Population at Risk'!F195/'Population at Risk'!F$5","v":0},{"$f":"'Population at Risk'!G195/'Population at Risk'!G$5","v":0},{"$f":"'Population at Risk'!H195/'Population at Risk'!H$5","v":0},{"$f":"'Population at Risk'!I195/'Population at Risk'!I$5","v":0},{"$f":"'Population at Risk'!J195/'Population at Risk'!J$5","v":0},{"$f":"'Population at Risk'!K195/'Population at Risk'!K$5","v":0},{"$f":"'Population at Risk'!L195/'Population at Risk'!L$5","v":0},{"$f":"'Population at Risk'!M195/'Population at Risk'!M$5","v":0},{"$f":"'Population at Risk'!N195/'Population at Risk'!N$5","v":0},{"$f":"'Population at Risk'!O195/'Population at Risk'!O$5","v":0},{"$f":"'Population at Risk'!P195/'Population at Risk'!P$5","v":0},{"$f":"'Population at Risk'!Q195/'Population at Risk'!Q$5","v":0},{"$f":"'Population at Risk'!R195/'Population at Risk'!R$5","v":0},{"$f":"'Population at Risk'!S195/'Population at Risk'!S$5","v":0},{"$f":"'Population at Risk'!T195/'Population at Risk'!T$5","v":0},{"$f":"'Population at Risk'!U195/'Population at Risk'!U$5","v":0},{"$f":"'Population at Risk'!V195/'Population at Risk'!V$5","v":0},{"$f":"'Population at Risk'!W195/'Population at Risk'!W$5","v":0},{"$f":"'Population at Risk'!X195/'Population at Risk'!X$5","v":0},{"$f":"'Population at Risk'!Y195/'Population at Risk'!Y$5","v":0},{"$f":"'Population at Risk'!Z195/'Population at Risk'!Z$5","v":0},{"$f":"'Population at Risk'!AA195/'Population at Risk'!AA$5","v":0},{"$f":"'Population at Risk'!AB195/'Population at Risk'!AB$5","v":0},{"$f":"'Population at Risk'!AC195/'Population at Risk'!AC$5","v":0},{"$f":"'Population at Risk'!AD195/'Population at Risk'!AD$5","v":0},{"$f":"'Population at Risk'!AE195/'Population at Risk'!AE$5","v":0},{"$f":"'Population at Risk'!AF195/'Population at Risk'!AF$5","v":0},{"$f":"'Population at Risk'!AG195/'Population at Risk'!AG$5","v":0},{"$f":"'Population at Risk'!AH195/'Population at Risk'!AH$5","v":0},{"$f":"'Population at Risk'!AI195/'Population at Risk'!AI$5","v":0},{"$f":"'Population at Risk'!AJ195/'Population at Risk'!AJ$5","v":0},{"$f":"'Population at Risk'!AK195/'Population at Risk'!AK$5","v":0},{"$f":"'Population at Risk'!AL195/'Population at Risk'!AL$5","v":0},{"$f":"'Population at Risk'!AM195/'Population at Risk'!AM$5","v":0},{"$f":"'Population at Risk'!AN195/'Population at Risk'!AN$5","v":0},{"$f":"'Population at Risk'!AO195/'Population at Risk'!AO$5","v":0},{"$f":"'Population at Risk'!AP195/'Population at Risk'!AP$5","v":0},{"$f":"'Population at Risk'!AQ195/'Population at Risk'!AQ$5","v":0},{"$f":"'Population at Risk'!AR195/'Population at Risk'!AR$5","v":0},{"$f":"'Population at Risk'!AS195/'Population at Risk'!AS$5","v":0},{"$f":"'Population at Risk'!AT195/'Population at Risk'!AT$5","v":0},{"$f":"'Population at Risk'!AU195/'Population at Risk'!AU$5","v":0},{"$f":"'Population at Risk'!AV195/'Population at Risk'!AV$5","v":0},{"$f":"'Population at Risk'!AW195/'Population at Risk'!AW$5","v":0},{"$f":"'Population at Risk'!AX195/'Population at Risk'!AX$5","v":0},{"$f":"'Population at Risk'!AY195/'Population at Risk'!AY$5","v":0},{"$f":"'Population at Risk'!AZ195/'Population at Risk'!AZ$5","v":0},{"$f":"'Population at Risk'!BA195/'Population at Risk'!BA$5","v":0},{"$f":"'Population at Risk'!BB195/'Population at Risk'!BB$5","v":0},{"$f":"'Population at Risk'!BC195/'Population at Risk'!BC$5","v":0},193]
[null,"Male 16-19",{"$f":"'Population at Risk'!C196/'Population at Risk'!C$5","v":5.2134306749500765E-3},{"$f":"'Population at Risk'!D196/'Population at Risk'!D$5","v":7.8396591586600319E-3},{"$f":"'Population at Risk'!E196/'Population at Risk'!E$5","v":1.4178149011783662E-2},{"$f":"'Population at Risk'!F196/'Population at Risk'!F$5","v":1.0405986200974835E-2},{"$f":"'Population at Risk'!G196/'Population at Risk'!G$5","v":7.0382333769035046E-3},{"$f":"'Population at Risk'!H196/'Population at Risk'!H$5","v":3.3862545755523749E-3},{"$f":"'Population at Risk'!I196/'Population at Risk'!I$5","v":8.0108348229105675E-3},{"$f":"'Population at Risk'!J196/'Population at Risk'!J$5","v":7.2059026307102775E-3},{"$f":"'Population at Risk'!K196/'Population at Risk'!K$5","v":4.6802232185713371E-3},{"$f":"'Population at Risk'!L196/'Population at Risk'!L$5","v":3.8098197568801587E-3},{"$f":"'Population at Risk'!M196/'Population at Risk'!M$5","v":3.8098197568801587E-3},{"$f":"'Population at Risk'!N196/'Population at Risk'!N$5","v":4.7019134141193615E-3},{"$f":"'Population at Risk'!O196/'Population at Risk'!O$5","v":2.895940935975031E-3},{"$f":"'Population at Risk'!P196/'Population at Risk'!P$5","v":6.9987415441922175E-3},{"$f":"'Population at Risk'!Q196/'Population at Risk'!Q$5","v":8.3704313079858376E-3},{"$f":"'Population at Risk'!R196/'Population at Risk'!R$5","v":7.083784874390521E-3},{"$f":"'Population at Risk'!S196/'Population at Risk'!S$5","v":4.1206109128717559E-3},{"$f":"'Population at Risk'!T196/'Population at Risk'!T$5","v":3.244781513201078E-3},{"$f":"'Population at Risk'!U196/'Population at Risk'!U$5","v":1.4967494158742299E-3},{"$f":"'Population at Risk'!V196/'Population at Risk'!V$5","v":6.7422606101132307E-3},{"$f":"'Population at Risk'!W196/'Population at Risk'!W$5","v":4.408042619757341E-3},{"$f":"'Population at Risk'!X196/'Population at Risk'!X$5","v":4.408042619757341E-3},{"$f":"'Population at Risk'!Y196/'Population at Risk'!Y$5","v":6.9223480584002899E-3},{"$f":"'Population at Risk'!Z196/'Population at Risk'!Z$5","v":1.8016250009123286E-3},{"$f":"'Population at Risk'!AA196/'Population at Risk'!AA$5","v":3.0566564373755191E-3},{"$f":"'Population at Risk'!AB196/'Population at Risk'!AB$5","v":9.8413724861691303E-3},{"$f":"'Population at Risk'!AC196/'Population at Risk'!AC$5","v":2.8441843703446001E-3},{"$f":"'Population at Risk'!AD196/'Population at Risk'!AD$5","v":9.4139375115109575E-3},{"$f":"'Population at Risk'!AE196/'Population at Risk'!AE$5","v":1.0318425929558128E-2},{"$f":"'Population at Risk'!AF196/'Population at Risk'!AF$5","v":4.7900122217204464E-3},{"$f":"'Population at Risk'!AG196/'Population at Risk'!AG$5","v":8.8060809070422442E-3},{"$f":"'Population at Risk'!AH196/'Population at Risk'!AH$5","v":3.7952136751818232E-3},{"$f":"'Population at Risk'!AI196/'Population at Risk'!AI$5","v":3.97514227556987E-3},{"$f":"'Population at Risk'!AJ196/'Population at Risk'!AJ$5","v":3.5352573085882391E-3},{"$f":"'Population at Risk'!AK196/'Population at Risk'!AK$5","v":1.1212579824884212E-2},{"$f":"'Population at Risk'!AL196/'Population at Risk'!AL$5","v":4.0969639241135022E-3},{"$f":"'Population at Risk'!AM196/'Population at Risk'!AM$5","v":2.7211702438724576E-3},{"$f":"'Population at Risk'!AN196/'Population at Risk'!AN$5","v":1.5253783898303936E-2},{"$f":"'Population at Risk'!AO196/'Population at Risk'!AO$5","v":1.5253783898303936E-2},{"$f":"'Population at Risk'!AP196/'Population at Risk'!AP$5","v":1.5553198402826368E-2},{"$f":"'Population at Risk'!AQ196/'Population at Risk'!AQ$5","v":4.0450860106420973E-3},{"$f":"'Population at Risk'!AR196/'Population at Risk'!AR$5","v":5.1269039026254487E-3},{"$f":"'Population at Risk'!AS196/'Population at Risk'!AS$5","v":8.0108348229105675E-3},{"$f":"'Population at Risk'!AT196/'Population at Risk'!AT$5","v":2.2558755262366559E-2},{"$f":"'Population at Risk'!AU196/'Population at Risk'!AU$5","v":2.2558755262366559E-2},{"$f":"'Population at Risk'!AV196/'Population at Risk'!AV$5","v":3.0100360004786976E-3},{"$f":"'Population at Risk'!AW196/'Population at Risk'!AW$5","v":5.2882455303140796E-3},{"$f":"'Population at Risk'!AX196/'Population at Risk'!AX$5","v":8.8843121445036297E-3},{"$f":"'Population at Risk'!AY196/'Population at Risk'!AY$5","v":6.0120009469881528E-3},{"$f":"'Population at Risk'!AZ196/'Population at Risk'!AZ$5","v":9.3983357073148047E-3},{"$f":"'Population at Risk'!BA196/'Population at Risk'!BA$5","v":2.0838170493062314E-3},{"$f":"'Population at Risk'!BB196/'Population at Risk'!BB$5","v":3.5201998217676777E-3},{"$f":"'Population at Risk'!BC196/'Population at Risk'!BC$5","v":1.4967494158742299E-3},194]
[null,"Male 20-24",{"$f":"'Population at Risk'!C197/'Population at Risk'!C$5","v":1.2918929485032539E-2},{"$f":"'Population at Risk'!D197/'Population at Risk'!D$5","v":1.1844702424497224E-2},{"$f":"'Population at Risk'!E197/'Population at Risk'!E$5","v":1.5966736870544583E-2},{"$f":"'Population at Risk'!F197/'Population at Risk'!F$5","v":1.2448697574708161E-2},{"$f":"'Population at Risk'!G197/'Population at Risk'!G$5","v":7.8728065045995718E-3},{"$f":"'Population at Risk'!H197/'Population at Risk'!H$5","v":3.6795086482717797E-3},{"$f":"'Population at Risk'!I197/'Population at Risk'!I$5","v":8.2935701696015274E-3},{"$f":"'Population at Risk'!J197/'Population at Risk'!J$5","v":1.0471711940231734E-2},{"$f":"'Population at Risk'!K197/'Population at Risk'!K$5","v":6.1249877773477072E-3},{"$f":"'Population at Risk'!L197/'Population at Risk'!L$5","v":4.6149137432397389E-3},{"$f":"'Population at Risk'!M197/'Population at Risk'!M$5","v":4.6149137432397389E-3},{"$f":"'Population at Risk'!N197/'Population at Risk'!N$5","v":1.0271588335294783E-2},{"$f":"'Population at Risk'!O197/'Population at Risk'!O$5","v":3.2338007118387843E-3},{"$f":"'Population at Risk'!P197/'Population at Risk'!P$5","v":9.2849971152950076E-3},{"$f":"'Population at Risk'!Q197/'Population at Risk'!Q$5","v":1.0516695745930922E-2},{"$f":"'Population at Risk'!R197/'Population at Risk'!R$5","v":7.2452386607014157E-3},{"$f":"'Population at Risk'!S197/'Population at Risk'!S$5","v":6.1454144940660468E-3},{"$f":"'Population at Risk'!T197/'Population at Risk'!T$5","v":7.6607869510874841E-3},{"$f":"'Population at Risk'!U197/'Population at Risk'!U$5","v":2.009920644173966E-3},{"$f":"'Population at Risk'!V197/'Population at Risk'!V$5","v":7.8893526845388601E-3},{"$f":"'Population at Risk'!W197/'Population at Risk'!W$5","v":5.7655805119869886E-3},{"$f":"'Population at Risk'!X197/'Population at Risk'!X$5","v":5.7655805119869886E-3},{"$f":"'Population at Risk'!Y197/'Population at Risk'!Y$5","v":9.120112318725733E-3},{"$f":"'Population at Risk'!Z197/'Population at Risk'!Z$5","v":5.8806709489238711E-3},{"$f":"'Population at Risk'!AA197/'Population at Risk'!AA$5","v":5.0202270357091244E-3},{"$f":"'Population at Risk'!AB197/'Population at Risk'!AB$5","v":1.4328366816901189E-2},{"$f":"'Population at Risk'!AC197/'Population at Risk'!AC$5","v":5.6825541114273979E-3},{"$f":"'Population at Risk'!AD197/'Population at Risk'!AD$5","v":1.0459040740138929E-2},{"$f":"'Population at Risk'!AE197/'Population at Risk'!AE$5","v":1.1442547128388037E-2},{"$f":"'Population at Risk'!AF197/'Population at Risk'!AF$5","v":5.0198360404393573E-3},{"$f":"'Population at Risk'!AG197/'Population at Risk'!AG$5","v":9.7654425668338377E-3},{"$f":"'Population at Risk'!AH197/'Population at Risk'!AH$5","v":4.5307635621183147E-3},{"$f":"'Population at Risk'!AI197/'Population at Risk'!AI$5","v":6.8034519233829303E-3},{"$f":"'Population at Risk'!AJ197/'Population at Risk'!AJ$5","v":3.8437888555195765E-3},{"$f":"'Population at Risk'!AK197/'Population at Risk'!AK$5","v":1.4079662061019071E-2},{"$f":"'Population at Risk'!AL197/'Population at Risk'!AL$5","v":4.6527536037413025E-3},{"$f":"'Population at Risk'!AM197/'Population at Risk'!AM$5","v":3.5753810769489419E-3},{"$f":"'Population at Risk'!AN197/'Population at Risk'!AN$5","v":1.5994858419679025E-2},{"$f":"'Population at Risk'!AO197/'Population at Risk'!AO$5","v":1.5994858419679025E-2},{"$f":"'Population at Risk'!AP197/'Population at Risk'!AP$5","v":1.6403465391678668E-2},{"$f":"'Population at Risk'!AQ197/'Population at Risk'!AQ$5","v":5.2203860363011544E-3},{"$f":"'Population at Risk'!AR197/'Population at Risk'!AR$5","v":7.3027078554782996E-3},{"$f":"'Population at Risk'!AS197/'Population at Risk'!AS$5","v":8.2935701696015274E-3},{"$f":"'Population at Risk'!AT197/'Population at Risk'!AT$5","v":2.7082569820327768E-2},{"$f":"'Population at Risk'!AU197/'Population at Risk'!AU$5","v":2.7082569820327768E-2},{"$f":"'Population at Risk'!AV197/'Population at Risk'!AV$5","v":2.9581388280566514E-3},{"$f":"'Population at Risk'!AW197/'Population at Risk'!AW$5","v":5.8461486712999E-3},{"$f":"'Population at Risk'!AX197/'Population at Risk'!AX$5","v":1.3360274579557969E-2},{"$f":"'Population at Risk'!AY197/'Population at Risk'!AY$5","v":8.1030734688795313E-3},{"$f":"'Population at Risk'!AZ197/'Population at Risk'!AZ$5","v":1.2835788379586327E-2},{"$f":"'Population at Risk'!BA197/'Population at Risk'!BA$5","v":3.0649865119840533E-3},{"$f":"'Population at Risk'!BB197/'Population at Risk'!BB$5","v":4.3691573824704817E-3},{"$f":"'Population at Risk'!BC197/'Population at Risk'!BC$5","v":2.009920644173966E-3},195]
[null,"Male 25-29",{"$f":"'Population at Risk'!C198/'Population at Risk'!C$5","v":1.6848153444765104E-2},{"$f":"'Population at Risk'!D198/'Population at Risk'!D$5","v":1.4479550544845314E-2},{"$f":"'Population at Risk'!E198/'Population at Risk'!E$5","v":1.8376774442596656E-2},{"$f":"'Population at Risk'!F198/'Population at Risk'!F$5","v":1.189635865831873E-2},{"$f":"'Population at Risk'!G198/'Population at Risk'!G$5","v":7.3671868356098031E-3},{"$f":"'Population at Risk'!H198/'Population at Risk'!H$5","v":3.7683708657933333E-3},{"$f":"'Population at Risk'!I198/'Population at Risk'!I$5","v":7.650303666366552E-3},{"$f":"'Population at Risk'!J198/'Population at Risk'!J$5","v":8.633704424212723E-3},{"$f":"'Population at Risk'!K198/'Population at Risk'!K$5","v":5.857461534186325E-3},{"$f":"'Population at Risk'!L198/'Population at Risk'!L$5","v":5.023980637034132E-3},{"$f":"'Population at Risk'!M198/'Population at Risk'!M$5","v":5.023980637034132E-3},{"$f":"'Population at Risk'!N198/'Population at Risk'!N$5","v":7.7735357845745649E-3},{"$f":"'Population at Risk'!O198/'Population at Risk'!O$5","v":3.667862874848609E-3},{"$f":"'Population at Risk'!P198/'Population at Risk'!P$5","v":8.4344944143664117E-3},{"$f":"'Population at Risk'!Q198/'Population at Risk'!Q$5","v":8.5322618244389001E-3},{"$f":"'Population at Risk'!R198/'Population at Risk'!R$5","v":8.80700338077995E-3},{"$f":"'Population at Risk'!S198/'Population at Risk'!S$5","v":7.8401706154842873E-3},{"$f":"'Population at Risk'!T198/'Population at Risk'!T$5","v":1.3080745363899065E-2},{"$f":"'Population at Risk'!U198/'Population at Risk'!U$5","v":1.2309821840807323E-3},{"$f":"'Population at Risk'!V198/'Population at Risk'!V$5","v":7.4400515854693358E-3},{"$f":"'Population at Risk'!W198/'Population at Risk'!W$5","v":5.8005401561975868E-3},{"$f":"'Population at Risk'!X198/'Population at Risk'!X$5","v":5.8005401561975868E-3},{"$f":"'Population at Risk'!Y198/'Population at Risk'!Y$5","v":7.9798288029960633E-3},{"$f":"'Population at Risk'!Z198/'Population at Risk'!Z$5","v":6.5035632878534732E-3},{"$f":"'Population at Risk'!AA198/'Population at Risk'!AA$5","v":5.4007645729135939E-3},{"$f":"'Population at Risk'!AB198/'Population at Risk'!AB$5","v":1.7027962036616301E-2},{"$f":"'Population at Risk'!AC198/'Population at Risk'!AC$5","v":6.2502917140218831E-3},{"$f":"'Population at Risk'!AD198/'Population at Risk'!AD$5","v":1.1415633788115434E-2},{"$f":"'Population at Risk'!AE198/'Population at Risk'!AE$5","v":1.2981901632609103E-2},{"$f":"'Population at Risk'!AF198/'Population at Risk'!AF$5","v":4.582136677802065E-3},{"$f":"'Population at Risk'!AG198/'Population at Risk'!AG$5","v":1.1079177859535704E-2},{"$f":"'Population at Risk'!AH198/'Population at Risk'!AH$5","v":4.6435737852065081E-3},{"$f":"'Population at Risk'!AI198/'Population at Risk'!AI$5","v":9.7712143819452604E-3},{"$f":"'Population at Risk'!AJ198/'Population at Risk'!AJ$5","v":4.8698427599413651E-3},{"$f":"'Population at Risk'!AK198/'Population at Risk'!AK$5","v":1.4630637384755363E-2},{"$f":"'Population at Risk'!AL198/'Population at Risk'!AL$5","v":4.0864921321945172E-3},{"$f":"'Population at Risk'!AM198/'Population at Risk'!AM$5","v":3.5255173400894628E-3},{"$f":"'Population at Risk'!AN198/'Population at Risk'!AN$5","v":1.799002898783586E-2},{"$f":"'Population at Risk'!AO198/'Population at Risk'!AO$5","v":1.799002898783586E-2},{"$f":"'Population at Risk'!AP198/'Population at Risk'!AP$5","v":1.59061220408915E-2},{"$f":"'Population at Risk'!AQ198/'Population at Risk'!AQ$5","v":6.3655510897573245E-3},{"$f":"'Population at Risk'!AR198/'Population at Risk'!AR$5","v":8.0480089655623251E-3},{"$f":"'Population at Risk'!AS198/'Population at Risk'!AS$5","v":7.650303666366552E-3},{"$f":"'Population at Risk'!AT198/'Population at Risk'!AT$5","v":3.1877695788227342E-2},{"$f":"'Population at Risk'!AU198/'Population at Risk'!AU$5","v":3.1877695788227342E-2},{"$f":"'Population at Risk'!AV198/'Population at Risk'!AV$5","v":3.3861178468490424E-3},{"$f":"'Population at Risk'!AW198/'Population at Risk'!AW$5","v":6.1901716567998293E-3},{"$f":"'Population at Risk'!AX198/'Population at Risk'!AX$5","v":1.0478622847677753E-2},{"$f":"'Population at Risk'!AY198/'Population at Risk'!AY$5","v":7.4544171630804732E-3},{"$f":"'Population at Risk'!AZ198/'Population at Risk'!AZ$5","v":1.1331829655020147E-2},{"$f":"'Population at Risk'!BA198/'Population at Risk'!BA$5","v":3.5183025446710574E-3},{"$f":"'Population at Risk'!BB198/'Population at Risk'!BB$5","v":5.3482315013190698E-3},{"$f":"'Population at Risk'!BC198/'Population at Risk'!BC$5","v":1.2309821840807323E-3},196]
[null,"Male 30-34",{"$f":"'Population at Risk'!C199/'Population at Risk'!C$5","v":1.245721201091292E-2},{"$f":"'Population at Risk'!D199/'Population at Risk'!D$5","v":1.3186202600901226E-2},{"$f":"'Population at Risk'!E199/'Population at Risk'!E$5","v":1.9857438886437775E-2},{"$f":"'Population at Risk'!F199/'Population at Risk'!F$5","v":1.1606619264061684E-2},{"$f":"'Population at Risk'!G199/'Population at Risk'!G$5","v":6.4062494222693941E-3},{"$f":"'Population at Risk'!H199/'Population at Risk'!H$5","v":3.5676883936504936E-3},{"$f":"'Population at Risk'!I199/'Population at Risk'!I$5","v":7.715412633739884E-3},{"$f":"'Population at Risk'!J199/'Population at Risk'!J$5","v":8.063112907552945E-3},{"$f":"'Population at Risk'!K199/'Population at Risk'!K$5","v":7.2866821485277873E-3},{"$f":"'Population at Risk'!L199/'Population at Risk'!L$5","v":5.3053897666208863E-3},{"$f":"'Population at Risk'!M199/'Population at Risk'!M$5","v":5.3053897666208863E-3},{"$f":"'Population at Risk'!N199/'Population at Risk'!N$5","v":4.9319789480983568E-3},{"$f":"'Population at Risk'!O199/'Population at Risk'!O$5","v":3.8994198745233946E-3},{"$f":"'Population at Risk'!P199/'Population at Risk'!P$5","v":7.6286509989810861E-3},{"$f":"'Population at Risk'!Q199/'Population at Risk'!Q$5","v":8.9874892083647556E-3},{"$f":"'Population at Risk'!R199/'Population at Risk'!R$5","v":6.901530353803813E-3},{"$f":"'Population at Risk'!S199/'Population at Risk'!S$5","v":7.950401485297777E-3},{"$f":"'Population at Risk'!T199/'Population at Risk'!T$5","v":1.2390091534944903E-2},{"$f":"'Population at Risk'!U199/'Population at Risk'!U$5","v":1.1325036093542738E-3},{"$f":"'Population at Risk'!V199/'Population at Risk'!V$5","v":7.706107070007193E-3},{"$f":"'Population at Risk'!W199/'Population at Risk'!W$5","v":5.8041837115720826E-3},{"$f":"'Population at Risk'!X199/'Population at Risk'!X$5","v":5.8041837115720826E-3},{"$f":"'Population at Risk'!Y199/'Population at Risk'!Y$5","v":7.8254710359978961E-3},{"$f":"'Population at Risk'!Z199/'Population at Risk'!Z$5","v":5.3886667242214496E-3},{"$f":"'Population at Risk'!AA199/'Population at Risk'!AA$5","v":4.9867766738113948E-3},{"$f":"'Population at Risk'!AB199/'Population at Risk'!AB$5","v":1.5803729471892253E-2},{"$f":"'Population at Risk'!AC199/'Population at Risk'!AC$5","v":5.2173437337397653E-3},{"$f":"'Population at Risk'!AD199/'Population at Risk'!AD$5","v":1.1567780765097587E-2},{"$f":"'Population at Risk'!AE199/'Population at Risk'!AE$5","v":1.3580769118637199E-2},{"$f":"'Population at Risk'!AF199/'Population at Risk'!AF$5","v":4.8746134870234726E-3},{"$f":"'Population at Risk'!AG199/'Population at Risk'!AG$5","v":1.1590270885794049E-2},{"$f":"'Population at Risk'!AH199/'Population at Risk'!AH$5","v":5.2199952190150828E-3},{"$f":"'Population at Risk'!AI199/'Population at Risk'!AI$5","v":9.948217784503742E-3},{"$f":"'Population at Risk'!AJ199/'Population at Risk'!AJ$5","v":5.7135541195664644E-3},{"$f":"'Population at Risk'!AK199/'Population at Risk'!AK$5","v":1.4894112846133373E-2},{"$f":"'Population at Risk'!AL199/'Population at Risk'!AL$5","v":3.464833373829356E-3},{"$f":"'Population at Risk'!AM199/'Population at Risk'!AM$5","v":3.8333870923538448E-3},{"$f":"'Population at Risk'!AN199/'Population at Risk'!AN$5","v":1.799002898783586E-2},{"$f":"'Population at Risk'!AO199/'Population at Risk'!AO$5","v":1.799002898783586E-2},{"$f":"'Population at Risk'!AP199/'Population at Risk'!AP$5","v":1.7523134447538148E-2},{"$f":"'Population at Risk'!AQ199/'Population at Risk'!AQ$5","v":5.0122966785189254E-3},{"$f":"'Population at Risk'!AR199/'Population at Risk'!AR$5","v":7.720532000714128E-3},{"$f":"'Population at Risk'!AS199/'Population at Risk'!AS$5","v":7.715412633739884E-3},{"$f":"'Population at Risk'!AT199/'Population at Risk'!AT$5","v":2.8405179907156821E-2},{"$f":"'Population at Risk'!AU199/'Population at Risk'!AU$5","v":2.8405179907156821E-2},{"$f":"'Population at Risk'!AV199/'Population at Risk'!AV$5","v":3.1869344440932164E-3},{"$f":"'Population at Risk'!AW199/'Population at Risk'!AW$5","v":7.1440031385079789E-3},{"$f":"'Population at Risk'!AX199/'Population at Risk'!AX$5","v":8.5790805186782195E-3},{"$f":"'Population at Risk'!AY199/'Population at Risk'!AY$5","v":7.0379692768748597E-3},{"$f":"'Population at Risk'!AZ199/'Population at Risk'!AZ$5","v":1.0384305484544843E-2},{"$f":"'Population at Risk'!BA199/'Population at Risk'!BA$5","v":2.7436304247434851E-3},{"$f":"'Population at Risk'!BB199/'Population at Risk'!BB$5","v":6.9234382182384235E-3},{"$f":"'Population at Risk'!BC199/'Population at Risk'!BC$5","v":1.1325036093542738E-3},197]
[null,"Male 35-39",{"$f":"'Population at Risk'!C200/'Population at Risk'!C$5","v":8.6281523265627942E-3},{"$f":"'Population at Risk'!D200/'Population at Risk'!D$5","v":1.1501290589000001E-2},{"$f":"'Population at Risk'!E200/'Population at Risk'!E$5","v":1.9740410763794732E-2},{"$f":"'Population at Risk'!F200/'Population at Risk'!F$5","v":9.7573101070595209E-3},{"$f":"'Population at Risk'!G200/'Population at Risk'!G$5","v":7.0529691049614944E-3},{"$f":"'Population at Risk'!H200/'Population at Risk'!H$5","v":3.6837635288348809E-3},{"$f":"'Population at Risk'!I200/'Population at Risk'!I$5","v":8.0570351183638506E-3},{"$f":"'Population at Risk'!J200/'Population at Risk'!J$5","v":8.3704211227224688E-3},{"$f":"'Population at Risk'!K200/'Population at Risk'!K$5","v":6.5003705680316045E-3},{"$f":"'Population at Risk'!L200/'Population at Risk'!L$5","v":3.9875369190433847E-3},{"$f":"'Population at Risk'!M200/'Population at Risk'!M$5","v":3.9875369190433847E-3},{"$f":"'Population at Risk'!N200/'Population at Risk'!N$5","v":3.5387766934096331E-3},{"$f":"'Population at Risk'!O200/'Population at Risk'!O$5","v":3.817876563060753E-3},{"$f":"'Population at Risk'!P200/'Population at Risk'!P$5","v":6.6874743502090359E-3},{"$f":"'Population at Risk'!Q200/'Population at Risk'!Q$5","v":9.6112620907524149E-3},{"$f":"'Population at Risk'!R200/'Population at Risk'!R$5","v":7.2656660232708137E-3},{"$f":"'Population at Risk'!S200/'Population at Risk'!S$5","v":6.7370330495686477E-3},{"$f":"'Population at Risk'!T200/'Population at Risk'!T$5","v":8.5922519876004983E-3},{"$f":"'Population at Risk'!U200/'Population at Risk'!U$5","v":2.168402443501197E-3},{"$f":"'Population at Risk'!V200/'Population at Risk'!V$5","v":7.8417302795520411E-3},{"$f":"'Population at Risk'!W200/'Population at Risk'!W$5","v":5.59667360414841E-3},{"$f":"'Population at Risk'!X200/'Population at Risk'!X$5","v":5.59667360414841E-3},{"$f":"'Population at Risk'!Y200/'Population at Risk'!Y$5","v":8.0459052798701955E-3},{"$f":"'Population at Risk'!Z200/'Population at Risk'!Z$5","v":3.514448548780926E-3},{"$f":"'Population at Risk'!AA200/'Population at Risk'!AA$5","v":4.2007563270202867E-3},{"$f":"'Population at Risk'!AB200/'Population at Risk'!AB$5","v":1.3798070785559651E-2},{"$f":"'Population at Risk'!AC200/'Population at Risk'!AC$5","v":3.9289034995750359E-3},{"$f":"'Population at Risk'!AD200/'Population at Risk'!AD$5","v":1.0761018714749595E-2},{"$f":"'Population at Risk'!AE200/'Population at Risk'!AE$5","v":1.219394890905698E-2},{"$f":"'Population at Risk'!AF200/'Population at Risk'!AF$5","v":4.146168678940289E-3},{"$f":"'Population at Risk'!AG200/'Population at Risk'!AG$5","v":1.040671333036295E-2},{"$f":"'Population at Risk'!AH200/'Population at Risk'!AH$5","v":5.181837178075752E-3},{"$f":"'Population at Risk'!AI200/'Population at Risk'!AI$5","v":7.919051890281548E-3},{"$f":"'Population at Risk'!AJ200/'Population at Risk'!AJ$5","v":6.1664939021020453E-3},{"$f":"'Population at Risk'!AK200/'Population at Risk'!AK$5","v":1.3063553101609929E-2},{"$f":"'Population at Risk'!AL200/'Population at Risk'!AL$5","v":3.8005221453452673E-3},{"$f":"'Population at Risk'!AM200/'Population at Risk'!AM$5","v":3.6642554348525151E-3},{"$f":"'Population at Risk'!AN200/'Population at Risk'!AN$5","v":1.5093380110104648E-2},{"$f":"'Population at Risk'!AO200/'Population at Risk'!AO$5","v":1.5093380110104648E-2},{"$f":"'Population at Risk'!AP200/'Population at Risk'!AP$5","v":1.5520891178202623E-2},{"$f":"'Population at Risk'!AQ200/'Population at Risk'!AQ$5","v":4.819648403829686E-3},{"$f":"'Population at Risk'!AR200/'Population at Risk'!AR$5","v":6.7316210633062276E-3},{"$f":"'Population at Risk'!AS200/'Population at Risk'!AS$5","v":8.0570351183638506E-3},{"$f":"'Population at Risk'!AT200/'Population at Risk'!AT$5","v":2.7770788697188395E-2},{"$f":"'Population at Risk'!AU200/'Population at Risk'!AU$5","v":2.7770788697188395E-2},{"$f":"'Population at Risk'!AV200/'Population at Risk'!AV$5","v":3.2718253154706942E-3},{"$f":"'Population at Risk'!AW200/'Population at Risk'!AW$5","v":7.2934193153535096E-3},{"$f":"'Population at Risk'!AX200/'Population at Risk'!AX$5","v":9.6131404588275932E-3},{"$f":"'Population at Risk'!AY200/'Population at Risk'!AY$5","v":6.1987695576026782E-3},{"$f":"'Population at Risk'!AZ200/'Population at Risk'!AZ$5","v":8.6810889680769884E-3},{"$f":"'Population at Risk'!BA200/'Population at Risk'!BA$5","v":2.113238030041324E-3},{"$f":"'Population at Risk'!BB200/'Population at Risk'!BB$5","v":6.3117600809496329E-3},{"$f":"'Population at Risk'!BC200/'Population at Risk'!BC$5","v":2.168402443501197E-3},198]
[null,"Male 40-44",{"$f":"'Population at Risk'!C201/'Population at Risk'!C$5","v":7.232961737586684E-3},{"$f":"'Population at Risk'!D201/'Population at Risk'!D$5","v":1.1710785863845176E-2},{"$f":"'Population at Risk'!E201/'Population at Risk'!E$5","v":2.1779326429538792E-2},{"$f":"'Population at Risk'!F201/'Population at Risk'!F$5","v":1.1528637172648789E-2},{"$f":"'Population at Risk'!G201/'Population at Risk'!G$5","v":8.8303173194117911E-3},{"$f":"'Population at Risk'!H201/'Population at Risk'!H$5","v":4.3963880043292143E-3},{"$f":"'Population at Risk'!I201/'Population at Risk'!I$5","v":1.0475101411301046E-2},{"$f":"'Population at Risk'!J201/'Population at Risk'!J$5","v":9.3013833145213273E-3},{"$f":"'Population at Risk'!K201/'Population at Risk'!K$5","v":7.0162729940658579E-3},{"$f":"'Population at Risk'!L201/'Population at Risk'!L$5","v":5.1976486714404632E-3},{"$f":"'Population at Risk'!M201/'Population at Risk'!M$5","v":5.1976486714404632E-3},{"$f":"'Population at Risk'!N201/'Population at Risk'!N$5","v":3.6074302095075277E-3},{"$f":"'Population at Risk'!O201/'Population at Risk'!O$5","v":4.5357678826106387E-3},{"$f":"'Population at Risk'!P201/'Population at Risk'!P$5","v":7.9808066537871997E-3},{"$f":"'Population at Risk'!Q201/'Population at Risk'!Q$5","v":1.2773012194504104E-2},{"$f":"'Population at Risk'!R201/'Population at Risk'!R$5","v":8.8211325521963969E-3},{"$f":"'Population at Risk'!S201/'Population at Risk'!S$5","v":6.8956085843008995E-3},{"$f":"'Population at Risk'!T201/'Population at Risk'!T$5","v":7.17375692342843E-3},{"$f":"'Population at Risk'!U201/'Population at Risk'!U$5","v":2.3852426878513164E-3},{"$f":"'Population at Risk'!V201/'Population at Risk'!V$5","v":8.6116760487289761E-3},{"$f":"'Population at Risk'!W201/'Population at Risk'!W$5","v":5.9625112135938902E-3},{"$f":"'Population at Risk'!X201/'Population at Risk'!X$5","v":5.9625112135938902E-3},{"$f":"'Population at Risk'!Y201/'Population at Risk'!Y$5","v":8.8904575493906207E-3},{"$f":"'Population at Risk'!Z201/'Population at Risk'!Z$5","v":3.0545086744723829E-3},{"$f":"'Population at Risk'!AA201/'Population at Risk'!AA$5","v":4.3951890254938153E-3},{"$f":"'Population at Risk'!AB201/'Population at Risk'!AB$5","v":1.4540984299532576E-2},{"$f":"'Population at Risk'!AC201/'Population at Risk'!AC$5","v":3.9870283583809275E-3},{"$f":"'Population at Risk'!AD201/'Population at Risk'!AD$5","v":1.2166042290335769E-2},{"$f":"'Population at Risk'!AE201/'Population at Risk'!AE$5","v":1.3441701820681416E-2},{"$f":"'Population at Risk'!AF201/'Population at Risk'!AF$5","v":5.0171094369425391E-3},{"$f":"'Population at Risk'!AG201/'Population at Risk'!AG$5","v":1.1471586322307065E-2},{"$f":"'Population at Risk'!AH201/'Population at Risk'!AH$5","v":5.629965406940541E-3},{"$f":"'Population at Risk'!AI201/'Population at Risk'!AI$5","v":7.6831358844909308E-3},{"$f":"'Population at Risk'!AJ201/'Population at Risk'!AJ$5","v":5.90575420222458E-3},{"$f":"'Population at Risk'!AK201/'Population at Risk'!AK$5","v":1.5902862448668308E-2},{"$f":"'Population at Risk'!AL201/'Population at Risk'!AL$5","v":4.8231202649614731E-3},{"$f":"'Population at Risk'!AM201/'Population at Risk'!AM$5","v":4.1129887461278389E-3},{"$f":"'Population at Risk'!AN201/'Population at Risk'!AN$5","v":1.9289465036980213E-2},{"$f":"'Population at Risk'!AO201/'Population at Risk'!AO$5","v":1.9289465036980213E-2},{"$f":"'Population at Risk'!AP201/'Population at Risk'!AP$5","v":1.7352007553159111E-2},{"$f":"'Population at Risk'!AQ201/'Population at Risk'!AQ$5","v":5.3056633689217546E-3},{"$f":"'Population at Risk'!AR201/'Population at Risk'!AR$5","v":7.2208150989176573E-3},{"$f":"'Population at Risk'!AS201/'Population at Risk'!AS$5","v":1.0475101411301046E-2},{"$f":"'Population at Risk'!AT201/'Population at Risk'!AT$5","v":3.3704195092843184E-2},{"$f":"'Population at Risk'!AU201/'Population at Risk'!AU$5","v":3.3704195092843184E-2},{"$f":"'Population at Risk'!AV201/'Population at Risk'!AV$5","v":3.6139196514046274E-3},{"$f":"'Population at Risk'!AW201/'Population at Risk'!AW$5","v":7.7357564529560502E-3},{"$f":"'Population at Risk'!AX201/'Population at Risk'!AX$5","v":1.0819925566355165E-2},{"$f":"'Population at Risk'!AY201/'Population at Risk'!AY$5","v":6.7856353145354757E-3},{"$f":"'Population at Risk'!AZ201/'Population at Risk'!AZ$5","v":9.6603675391477521E-3},{"$f":"'Population at Risk'!BA201/'Population at Risk'!BA$5","v":2.8903031352583131E-3},{"$f":"'Population at Risk'!BB201/'Population at Risk'!BB$5","v":6.9369039986110223E-3},{"$f":"'Population at Risk'!BC201/'Population at Risk'!BC$5","v":2.3852426878513164E-3},199]
[null,"Male 45-49",{"$f":"'Population at Risk'!C202/'Population at Risk'!C$5","v":6.7345669119258343E-3},{"$f":"'Population at Risk'!D202/'Population at Risk'!D$5","v":1.20924698107929E-2},{"$f":"'Population at Risk'!E202/'Population at Risk'!E$5","v":2.3283362175083061E-2},{"$f":"'Population at Risk'!F202/'Population at Risk'!F$5","v":1.4686699281608297E-2},{"$f":"'Population at Risk'!G202/'Population at Risk'!G$5","v":1.0746537581327709E-2},{"$f":"'Population at Risk'!H202/'Population at Risk'!H$5","v":5.5512089227703247E-3},{"$f":"'Population at Risk'!I202/'Population at Risk'!I$5","v":1.4306459014630369E-2},{"$f":"'Population at Risk'!J202/'Population at Risk'!J$5","v":1.154653921245192E-2},{"$f":"'Population at Risk'!K202/'Population at Risk'!K$5","v":8.7523899186077846E-3},{"$f":"'Population at Risk'!L202/'Population at Risk'!L$5","v":6.8353476150299327E-3},{"$f":"'Population at Risk'!M202/'Population at Risk'!M$5","v":6.8353476150299327E-3},{"$f":"'Population at Risk'!N202/'Population at Risk'!N$5","v":4.2899024294561043E-3},{"$f":"'Population at Risk'!O202/'Population at Risk'!O$5","v":5.088700541250552E-3},{"$f":"'Population at Risk'!P202/'Population at Risk'!P$5","v":1.0465113814016781E-2},{"$f":"'Population at Risk'!Q202/'Population at Risk'!Q$5","v":1.4018462620913053E-2},{"$f":"'Population at Risk'!R202/'Population at Risk'!R$5","v":9.0871107651610949E-3},{"$f":"'Population at Risk'!S202/'Population at Risk'!S$5","v":7.6914575974761533E-3},{"$f":"'Population at Risk'!T202/'Population at Risk'!T$5","v":6.6463384749123663E-3},{"$f":"'Population at Risk'!U202/'Population at Risk'!U$5","v":3.101512964027713E-3},{"$f":"'Population at Risk'!V202/'Population at Risk'!V$5","v":1.0307781771533409E-2},{"$f":"'Population at Risk'!W202/'Population at Risk'!W$5","v":7.9560829219032046E-3},{"$f":"'Population at Risk'!X202/'Population at Risk'!X$5","v":7.9560829219032046E-3},{"$f":"'Population at Risk'!Y202/'Population at Risk'!Y$5","v":1.084809852015901E-2},{"$f":"'Population at Risk'!Z202/'Population at Risk'!Z$5","v":3.1348781651575714E-3},{"$f":"'Population at Risk'!AA202/'Population at Risk'!AA$5","v":5.0403352202656121E-3},{"$f":"'Population at Risk'!AB202/'Population at Risk'!AB$5","v":1.5696180485663635E-2},{"$f":"'Population at Risk'!AC202/'Population at Risk'!AC$5","v":4.5886135900403604E-3},{"$f":"'Population at Risk'!AD202/'Population at Risk'!AD$5","v":1.4451919760810693E-2},{"$f":"'Population at Risk'!AE202/'Population at Risk'!AE$5","v":1.5863893379324166E-2},{"$f":"'Population at Risk'!AF202/'Population at Risk'!AF$5","v":6.8963281454941534E-3},{"$f":"'Population at Risk'!AG202/'Population at Risk'!AG$5","v":1.3538763523885933E-2},{"$f":"'Population at Risk'!AH202/'Population at Risk'!AH$5","v":6.4288319889141375E-3},{"$f":"'Population at Risk'!AI202/'Population at Risk'!AI$5","v":7.6301265959213844E-3},{"$f":"'Population at Risk'!AJ202/'Population at Risk'!AJ$5","v":6.0991497069344614E-3},{"$f":"'Population at Risk'!AK202/'Population at Risk'!AK$5","v":2.0026317313917616E-2},{"$f":"'Population at Risk'!AL202/'Population at Risk'!AL$5","v":6.2543076816750391E-3},{"$f":"'Population at Risk'!AM202/'Population at Risk'!AM$5","v":4.745578746891784E-3},{"$f":"'Population at Risk'!AN202/'Population at Risk'!AN$5","v":2.5256125162219041E-2},{"$f":"'Population at Risk'!AO202/'Population at Risk'!AO$5","v":2.5256125162219041E-2},{"$f":"'Population at Risk'!AP202/'Population at Risk'!AP$5","v":2.1537011755934983E-2},{"$f":"'Population at Risk'!AQ202/'Population at Risk'!AQ$5","v":6.5228507003988207E-3},{"$f":"'Population at Risk'!AR202/'Population at Risk'!AR$5","v":8.3203332538523619E-3},{"$f":"'Population at Risk'!AS202/'Population at Risk'!AS$5","v":1.4306459014630369E-2},{"$f":"'Population at Risk'!AT202/'Population at Risk'!AT$5","v":3.2687812453014588E-2},{"$f":"'Population at Risk'!AU202/'Population at Risk'!AU$5","v":3.2687812453014588E-2},{"$f":"'Population at Risk'!AV202/'Population at Risk'!AV$5","v":5.0707883276035932E-3},{"$f":"'Population at Risk'!AW202/'Population at Risk'!AW$5","v":8.7634416613680093E-3},{"$f":"'Population at Risk'!AX202/'Population at Risk'!AX$5","v":1.3403357118638732E-2},{"$f":"'Population at Risk'!AY202/'Population at Risk'!AY$5","v":8.650715319743792E-3},{"$f":"'Population at Risk'!AZ202/'Population at Risk'!AZ$5","v":1.1975181883109266E-2},{"$f":"'Population at Risk'!BA202/'Population at Risk'!BA$5","v":4.0568789144473415E-3},{"$f":"'Population at Risk'!BB202/'Population at Risk'!BB$5","v":7.151729924312838E-3},{"$f":"'Population at Risk'!BC202/'Population at Risk'!BC$5","v":3.101512964027713E-3},200]
[null,"Male 50-54",{"$f":"'Population at Risk'!C203/'Population at Risk'!C$5","v":6.953379555273604E-3},{"$f":"'Population at Risk'!D203/'Population at Risk'!D$5","v":1.2945627500175579E-2},{"$f":"'Population at Risk'!E203/'Population at Risk'!E$5","v":2.5203368318862857E-2},{"$f":"'Population at Risk'!F203/'Population at Risk'!F$5","v":1.741529417352131E-2},{"$f":"'Population at Risk'!G203/'Population at Risk'!G$5","v":1.2119628432657717E-2},{"$f":"'Population at Risk'!H203/'Population at Risk'!H$5","v":5.9775818972602141E-3},{"$f":"'Population at Risk'!I203/'Population at Risk'!I$5","v":1.6413979851556671E-2},{"$f":"'Population at Risk'!J203/'Population at Risk'!J$5","v":1.1922967847301522E-2},{"$f":"'Population at Risk'!K203/'Population at Risk'!K$5","v":8.198960111107996E-3},{"$f":"'Population at Risk'!L203/'Population at Risk'!L$5","v":8.1024936241721347E-3},{"$f":"'Population at Risk'!M203/'Population at Risk'!M$5","v":8.1024936241721347E-3},{"$f":"'Population at Risk'!N203/'Population at Risk'!N$5","v":4.7424499400779184E-3},{"$f":"'Population at Risk'!O203/'Population at Risk'!O$5","v":5.3642034367959645E-3},{"$f":"'Population at Risk'!P203/'Population at Risk'!P$5","v":1.1217098040173673E-2},{"$f":"'Population at Risk'!Q203/'Population at Risk'!Q$5","v":1.5190460713408219E-2},{"$f":"'Population at Risk'!R203/'Population at Risk'!R$5","v":1.1363970733165665E-2},{"$f":"'Population at Risk'!S203/'Population at Risk'!S$5","v":7.9775467109127335E-3},{"$f":"'Population at Risk'!T203/'Population at Risk'!T$5","v":6.5838337243646012E-3},{"$f":"'Population at Risk'!U203/'Population at Risk'!U$5","v":2.4122878609104431E-3},{"$f":"'Population at Risk'!V203/'Population at Risk'!V$5","v":9.8339563191322758E-3},{"$f":"'Population at Risk'!W203/'Population at Risk'!W$5","v":8.1568975148839356E-3},{"$f":"'Population at Risk'!X203/'Population at Risk'!X$5","v":8.1568975148839356E-3},{"$f":"'Population at Risk'!Y203/'Population at Risk'!Y$5","v":1.0803085663228889E-2},{"$f":"'Population at Risk'!Z203/'Population at Risk'!Z$5","v":3.054999731803087E-3},{"$f":"'Population at Risk'!AA203/'Population at Risk'!AA$5","v":5.2675716707811697E-3},{"$f":"'Population at Risk'!AB203/'Population at Risk'!AB$5","v":1.6580147555130487E-2},{"$f":"'Population at Risk'!AC203/'Population at Risk'!AC$5","v":4.8756111212919732E-3},{"$f":"'Population at Risk'!AD203/'Population at Risk'!AD$5","v":1.573052946334404E-2},{"$f":"'Population at Risk'!AE203/'Population at Risk'!AE$5","v":1.709762656471905E-2},{"$f":"'Population at Risk'!AF203/'Population at Risk'!AF$5","v":7.8588898477804404E-3},{"$f":"'Population at Risk'!AG203/'Population at Risk'!AG$5","v":1.4591671624642689E-2},{"$f":"'Population at Risk'!AH203/'Population at Risk'!AH$5","v":6.5837775451763093E-3},{"$f":"'Population at Risk'!AI203/'Population at Risk'!AI$5","v":7.7274216728449507E-3},{"$f":"'Population at Risk'!AJ203/'Population at Risk'!AJ$5","v":6.2804407810259314E-3},{"$f":"'Population at Risk'!AK203/'Population at Risk'!AK$5","v":2.0256816565330342E-2},{"$f":"'Population at Risk'!AL203/'Population at Risk'!AL$5","v":7.0940804522324286E-3},{"$f":"'Population at Risk'!AM203/'Population at Risk'!AM$5","v":4.8385358393723352E-3},{"$f":"'Population at Risk'!AN203/'Population at Risk'!AN$5","v":2.7495584536208904E-2},{"$f":"'Population at Risk'!AO203/'Population at Risk'!AO$5","v":2.7495584536208904E-2},{"$f":"'Population at Risk'!AP203/'Population at Risk'!AP$5","v":2.4366270672934488E-2},{"$f":"'Population at Risk'!AQ203/'Population at Risk'!AQ$5","v":7.218238308106536E-3},{"$f":"'Population at Risk'!AR203/'Population at Risk'!AR$5","v":8.8239884214549313E-3},{"$f":"'Population at Risk'!AS203/'Population at Risk'!AS$5","v":1.6413979851556671E-2},{"$f":"'Population at Risk'!AT203/'Population at Risk'!AT$5","v":3.5968745301458431E-2},{"$f":"'Population at Risk'!AU203/'Population at Risk'!AU$5","v":3.5968745301458431E-2},{"$f":"'Population at Risk'!AV203/'Population at Risk'!AV$5","v":5.1927660536971506E-3},{"$f":"'Population at Risk'!AW203/'Population at Risk'!AW$5","v":9.0052622435511133E-3},{"$f":"'Population at Risk'!AX203/'Population at Risk'!AX$5","v":1.4397711864228802E-2},{"$f":"'Population at Risk'!AY203/'Population at Risk'!AY$5","v":9.4778699744003121E-3},{"$f":"'Population at Risk'!AZ203/'Population at Risk'!AZ$5","v":1.3657519056981576E-2},{"$f":"'Population at Risk'!BA203/'Population at Risk'!BA$5","v":4.4333873983867702E-3},{"$f":"'Population at Risk'!BB203/'Population at Risk'!BB$5","v":7.0318989583304445E-3},{"$f":"'Population at Risk'!BC203/'Population at Risk'!BC$5","v":2.4122878609104431E-3},201]
[null,"Male 55-59",{"$f":"'Population at Risk'!C204/'Population at Risk'!C$5","v":4.5557236527268841E-3},{"$f":"'Population at Risk'!D204/'Population at Risk'!D$5","v":8.4594855769717561E-3},{"$f":"'Population at Risk'!E204/'Population at Risk'!E$5","v":1.6456536301941098E-2},{"$f":"'Population at Risk'!F204/'Population at Risk'!F$5","v":1.1035752304328517E-2},{"$f":"'Population at Risk'!G204/'Population at Risk'!G$5","v":8.1241671452505198E-3},{"$f":"'Population at Risk'!H204/'Population at Risk'!H$5","v":4.1352347763266148E-3},{"$f":"'Population at Risk'!I204/'Population at Risk'!I$5","v":1.0926909008152156E-2},{"$f":"'Population at Risk'!J204/'Population at Risk'!J$5","v":7.5989904099689259E-3},{"$f":"'Population at Risk'!K204/'Population at Risk'!K$5","v":4.9583102295897054E-3},{"$f":"'Population at Risk'!L204/'Population at Risk'!L$5","v":5.3958319521190895E-3},{"$f":"'Population at Risk'!M204/'Population at Risk'!M$5","v":5.3958319521190895E-3},{"$f":"'Population at Risk'!N204/'Population at Risk'!N$5","v":3.7064808766032456E-3},{"$f":"'Population at Risk'!O204/'Population at Risk'!O$5","v":3.6803405171482095E-3},{"$f":"'Population at Risk'!P204/'Population at Risk'!P$5","v":8.6540427331739979E-3},{"$f":"'Population at Risk'!Q204/'Population at Risk'!Q$5","v":1.0262241374448212E-2},{"$f":"'Population at Risk'!R204/'Population at Risk'!R$5","v":6.1653494300365408E-3},{"$f":"'Population at Risk'!S204/'Population at Risk'!S$5","v":5.2922003729820753E-3},{"$f":"'Population at Risk'!T204/'Population at Risk'!T$5","v":4.374229868747144E-3},{"$f":"'Population at Risk'!U204/'Population at Risk'!U$5","v":1.6174637448941045E-3},{"$f":"'Population at Risk'!V204/'Population at Risk'!V$5","v":6.5727597224405779E-3},{"$f":"'Population at Risk'!W204/'Population at Risk'!W$5","v":5.4987120345743297E-3},{"$f":"'Population at Risk'!X204/'Population at Risk'!X$5","v":5.4987120345743297E-3},{"$f":"'Population at Risk'!Y204/'Population at Risk'!Y$5","v":7.0354745310348089E-3},{"$f":"'Population at Risk'!Z204/'Population at Risk'!Z$5","v":1.9145465127198206E-3},{"$f":"'Population at Risk'!AA204/'Population at Risk'!AA$5","v":3.345082254967094E-3},{"$f":"'Population at Risk'!AB204/'Population at Risk'!AB$5","v":1.0760476319404778E-2},{"$f":"'Population at Risk'!AC204/'Population at Risk'!AC$5","v":3.23483783913832E-3},{"$f":"'Population at Risk'!AD204/'Population at Risk'!AD$5","v":1.0767584555206712E-2},{"$f":"'Population at Risk'!AE204/'Population at Risk'!AE$5","v":1.1772420477031002E-2},{"$f":"'Population at Risk'!AF204/'Population at Risk'!AF$5","v":4.9797555579353626E-3},{"$f":"'Population at Risk'!AG204/'Population at Risk'!AG$5","v":1.0046967231260175E-2},{"$f":"'Population at Risk'!AH204/'Population at Risk'!AH$5","v":3.9474822863795247E-3},{"$f":"'Population at Risk'!AI204/'Population at Risk'!AI$5","v":5.0831413853981555E-3},{"$f":"'Population at Risk'!AJ204/'Population at Risk'!AJ$5","v":4.3386685499341507E-3},{"$f":"'Population at Risk'!AK204/'Population at Risk'!AK$5","v":1.2845308522819433E-2},{"$f":"'Population at Risk'!AL204/'Population at Risk'!AL$5","v":4.7933670783980066E-3},{"$f":"'Population at Risk'!AM204/'Population at Risk'!AM$5","v":2.734840031821228E-3},{"$f":"'Population at Risk'!AN204/'Population at Risk'!AN$5","v":1.751843884389849E-2},{"$f":"'Population at Risk'!AO204/'Population at Risk'!AO$5","v":1.751843884389849E-2},{"$f":"'Population at Risk'!AP204/'Population at Risk'!AP$5","v":1.6135323799458853E-2},{"$f":"'Population at Risk'!AQ204/'Population at Risk'!AQ$5","v":5.0835578741927302E-3},{"$f":"'Population at Risk'!AR204/'Population at Risk'!AR$5","v":5.8024982529324741E-3},{"$f":"'Population at Risk'!AS204/'Population at Risk'!AS$5","v":1.0926909008152156E-2},{"$f":"'Population at Risk'!AT204/'Population at Risk'!AT$5","v":2.3252494925575101E-2},{"$f":"'Population at Risk'!AU204/'Population at Risk'!AU$5","v":2.3252494925575101E-2},{"$f":"'Population at Risk'!AV204/'Population at Risk'!AV$5","v":3.7496338734768209E-3},{"$f":"'Population at Risk'!AW204/'Population at Risk'!AW$5","v":5.6368909584090581E-3},{"$f":"'Population at Risk'!AX204/'Population at Risk'!AX$5","v":9.3538222846447951E-3},{"$f":"'Population at Risk'!AY204/'Population at Risk'!AY$5","v":6.3956534398718085E-3},{"$f":"'Population at Risk'!AZ204/'Population at Risk'!AZ$5","v":9.2214016478490667E-3},{"$f":"'Population at Risk'!BA204/'Population at Risk'!BA$5","v":3.3032477773402122E-3},{"$f":"'Population at Risk'!BB204/'Population at Risk'!BB$5","v":4.3185586925855663E-3},{"$f":"'Population at Risk'!BC204/'Population at Risk'!BC$5","v":1.6174637448941045E-3},202]
[null,"Male 60-64",{"$f":"'Population at Risk'!C205/'Population at Risk'!C$5","v":4.3845548449654688E-3},{"$f":"'Population at Risk'!D205/'Population at Risk'!D$5","v":7.6387051157957662E-3},{"$f":"'Population at Risk'!E205/'Population at Risk'!E$5","v":1.4566835941822068E-2},{"$f":"'Population at Risk'!F205/'Population at Risk'!F$5","v":1.1068052067170453E-2},{"$f":"'Population at Risk'!G205/'Population at Risk'!G$5","v":7.9724081076680067E-3},{"$f":"'Population at Risk'!H205/'Population at Risk'!H$5","v":3.7689998715619215E-3},{"$f":"'Population at Risk'!I205/'Population at Risk'!I$5","v":1.0460767344065366E-2},{"$f":"'Population at Risk'!J205/'Population at Risk'!J$5","v":6.0153749901620274E-3},{"$f":"'Population at Risk'!K205/'Population at Risk'!K$5","v":3.8038379970285205E-3},{"$f":"'Population at Risk'!L205/'Population at Risk'!L$5","v":5.469031222787372E-3},{"$f":"'Population at Risk'!M205/'Population at Risk'!M$5","v":5.469031222787372E-3},{"$f":"'Population at Risk'!N205/'Population at Risk'!N$5","v":2.7888135098113791E-3},{"$f":"'Population at Risk'!O205/'Population at Risk'!O$5","v":3.4170411160803727E-3},{"$f":"'Population at Risk'!P205/'Population at Risk'!P$5","v":7.7829822227760935E-3},{"$f":"'Population at Risk'!Q205/'Population at Risk'!Q$5","v":7.8630624462345394E-3},{"$f":"'Population at Risk'!R205/'Population at Risk'!R$5","v":6.3855404811092743E-3},{"$f":"'Population at Risk'!S205/'Population at Risk'!S$5","v":4.4890857549769007E-3},{"$f":"'Population at Risk'!T205/'Population at Risk'!T$5","v":3.8025334456606732E-3},{"$f":"'Population at Risk'!U205/'Population at Risk'!U$5","v":1.3997282407737443E-3},{"$f":"'Population at Risk'!V205/'Population at Risk'!V$5","v":5.0961397300018727E-3},{"$f":"'Population at Risk'!W205/'Population at Risk'!W$5","v":4.7023309697092315E-3},{"$f":"'Population at Risk'!X205/'Population at Risk'!X$5","v":4.7023309697092315E-3},{"$f":"'Population at Risk'!Y205/'Population at Risk'!Y$5","v":5.5166866650323346E-3},{"$f":"'Population at Risk'!Z205/'Population at Risk'!Z$5","v":1.6221025686521528E-3},{"$f":"'Population at Risk'!AA205/'Population at Risk'!AA$5","v":2.841237163829116E-3},{"$f":"'Population at Risk'!AB205/'Population at Risk'!AB$5","v":9.8705538452586814E-3},{"$f":"'Population at Risk'!AC205/'Population at Risk'!AC$5","v":2.7780695525509891E-3},{"$f":"'Population at Risk'!AD205/'Population at Risk'!AD$5","v":1.0004504448778755E-2},{"$f":"'Population at Risk'!AE205/'Population at Risk'!AE$5","v":1.0767656186144113E-2},{"$f":"'Population at Risk'!AF205/'Population at Risk'!AF$5","v":4.1703253259034664E-3},{"$f":"'Population at Risk'!AG205/'Population at Risk'!AG$5","v":9.1894686458692757E-3},{"$f":"'Population at Risk'!AH205/'Population at Risk'!AH$5","v":3.301604612622504E-3},{"$f":"'Population at Risk'!AI205/'Population at Risk'!AI$5","v":4.1233113009449315E-3},{"$f":"'Population at Risk'!AJ205/'Population at Risk'!AJ$5","v":3.6654268783926445E-3},{"$f":"'Population at Risk'!AK205/'Population at Risk'!AK$5","v":1.2414520736993171E-2},{"$f":"'Population at Risk'!AL205/'Population at Risk'!AL$5","v":4.4295331917244231E-3},{"$f":"'Population at Risk'!AM205/'Population at Risk'!AM$5","v":2.2770254009436657E-3},{"$f":"'Population at Risk'!AN205/'Population at Risk'!AN$5","v":1.6215785699095781E-2},{"$f":"'Population at Risk'!AO205/'Population at Risk'!AO$5","v":1.6215785699095781E-2},{"$f":"'Population at Risk'!AP205/'Population at Risk'!AP$5","v":1.4884523504927158E-2},{"$f":"'Population at Risk'!AQ205/'Population at Risk'!AQ$5","v":4.1581428489315233E-3},{"$f":"'Population at Risk'!AR205/'Population at Risk'!AR$5","v":5.0994072944982542E-3},{"$f":"'Population at Risk'!AS205/'Population at Risk'!AS$5","v":1.0460767344065366E-2},{"$f":"'Population at Risk'!AT205/'Population at Risk'!AT$5","v":2.1278226488497972E-2},{"$f":"'Population at Risk'!AU205/'Population at Risk'!AU$5","v":2.1278226488497972E-2},{"$f":"'Population at Risk'!AV205/'Population at Risk'!AV$5","v":3.2840753052934576E-3},{"$f":"'Population at Risk'!AW205/'Population at Risk'!AW$5","v":4.7293810266233064E-3},{"$f":"'Population at Risk'!AX205/'Population at Risk'!AX$5","v":7.4850249827704404E-3},{"$f":"'Population at Risk'!AY205/'Population at Risk'!AY$5","v":5.6863244172900475E-3},{"$f":"'Population at Risk'!AZ205/'Population at Risk'!AZ$5","v":8.3776710060578467E-3},{"$f":"'Population at Risk'!BA205/'Population at Risk'!BA$5","v":2.6915352259809142E-3},{"$f":"'Population at Risk'!BB205/'Population at Risk'!BB$5","v":3.1307583964463666E-3},{"$f":"'Population at Risk'!BC205/'Population at Risk'!BC$5","v":1.3997282407737443E-3},203]
[null,"Male 65-69",{"$f":"'Population at Risk'!C206/'Population at Risk'!C$5","v":3.0594522217939749E-3},{"$f":"'Population at Risk'!D206/'Population at Risk'!D$5","v":5.7479800881709573E-3},{"$f":"'Population at Risk'!E206/'Population at Risk'!E$5","v":1.1220729112555986E-2},{"$f":"'Population at Risk'!F206/'Population at Risk'!F$5","v":8.6146537490292066E-3},{"$f":"'Population at Risk'!G206/'Population at Risk'!G$5","v":6.3013115353270192E-3},{"$f":"'Population at Risk'!H206/'Population at Risk'!H$5","v":2.869483909073716E-3},{"$f":"'Population at Risk'!I206/'Population at Risk'!I$5","v":8.4039479933600125E-3},{"$f":"'Population at Risk'!J206/'Population at Risk'!J$5","v":4.360835596579485E-3},{"$f":"'Population at Risk'!K206/'Population at Risk'!K$5","v":2.9718753674845052E-3},{"$f":"'Population at Risk'!L206/'Population at Risk'!L$5","v":4.1716024975860461E-3},{"$f":"'Population at Risk'!M206/'Population at Risk'!M$5","v":4.1716024975860461E-3},{"$f":"'Population at Risk'!N206/'Population at Risk'!N$5","v":1.9841893872625783E-3},{"$f":"'Population at Risk'!O206/'Population at Risk'!O$5","v":2.3851487139778336E-3},{"$f":"'Population at Risk'!P206/'Population at Risk'!P$5","v":5.8885744012264216E-3},{"$f":"'Population at Risk'!Q206/'Population at Risk'!Q$5","v":5.8270865006754278E-3},{"$f":"'Population at Risk'!R206/'Population at Risk'!R$5","v":4.3155480896011501E-3},{"$f":"'Population at Risk'!S206/'Population at Risk'!S$5","v":3.3820229136196276E-3},{"$f":"'Population at Risk'!T206/'Population at Risk'!T$5","v":2.4280482411913897E-3},{"$f":"'Population at Risk'!U206/'Population at Risk'!U$5","v":1.2255481654753187E-3},{"$f":"'Population at Risk'!V206/'Population at Risk'!V$5","v":4.052352074459321E-3},{"$f":"'Population at Risk'!W206/'Population at Risk'!W$5","v":3.8402364964112588E-3},{"$f":"'Population at Risk'!X206/'Population at Risk'!X$5","v":3.8402364964112588E-3},{"$f":"'Population at Risk'!Y206/'Population at Risk'!Y$5","v":4.175501704544643E-3},{"$f":"'Population at Risk'!Z206/'Population at Risk'!Z$5","v":1.0626832843087599E-3},{"$f":"'Population at Risk'!AA206/'Population at Risk'!AA$5","v":1.9875783227922671E-3},{"$f":"'Population at Risk'!AB206/'Population at Risk'!AB$5","v":7.3471192235103301E-3},{"$f":"'Population at Risk'!AC206/'Population at Risk'!AC$5","v":1.9369258820677144E-3},{"$f":"'Population at Risk'!AD206/'Population at Risk'!AD$5","v":7.6311441723319667E-3},{"$f":"'Population at Risk'!AE206/'Population at Risk'!AE$5","v":8.1247213288254631E-3},{"$f":"'Population at Risk'!AF206/'Population at Risk'!AF$5","v":2.6865347922998013E-3},{"$f":"'Population at Risk'!AG206/'Population at Risk'!AG$5","v":6.9339019204330025E-3},{"$f":"'Population at Risk'!AH206/'Population at Risk'!AH$5","v":2.3205083313542524E-3},{"$f":"'Population at Risk'!AI206/'Population at Risk'!AI$5","v":2.9030452272921672E-3},{"$f":"'Population at Risk'!AJ206/'Population at Risk'!AJ$5","v":3.0465111932874416E-3},{"$f":"'Population at Risk'!AK206/'Population at Risk'!AK$5","v":8.9168405715818484E-3},{"$f":"'Population at Risk'!AL206/'Population at Risk'!AL$5","v":3.6625527111730921E-3},{"$f":"'Population at Risk'!AM206/'Population at Risk'!AM$5","v":1.5114274187874087E-3},{"$f":"'Population at Risk'!AN206/'Population at Risk'!AN$5","v":1.1980343966455854E-2},{"$f":"'Population at Risk'!AO206/'Population at Risk'!AO$5","v":1.1980343966455854E-2},{"$f":"'Population at Risk'!AP206/'Population at Risk'!AP$5","v":1.1383268734315617E-2},{"$f":"'Population at Risk'!AQ206/'Population at Risk'!AQ$5","v":2.9682433750377541E-3},{"$f":"'Population at Risk'!AR206/'Population at Risk'!AR$5","v":3.7831500891367001E-3},{"$f":"'Population at Risk'!AS206/'Population at Risk'!AS$5","v":8.4039479933600125E-3},{"$f":"'Population at Risk'!AT206/'Population at Risk'!AT$5","v":1.5756794091114121E-2},{"$f":"'Population at Risk'!AU206/'Population at Risk'!AU$5","v":1.5756794091114121E-2},{"$f":"'Population at Risk'!AV206/'Population at Risk'!AV$5","v":2.4168316119077106E-3},{"$f":"'Population at Risk'!AW206/'Population at Risk'!AW$5","v":3.4511340785568357E-3},{"$f":"'Population at Risk'!AX206/'Population at Risk'!AX$5","v":5.2838522120648721E-3},{"$f":"'Population at Risk'!AY206/'Population at Risk'!AY$5","v":4.4332803040395387E-3},{"$f":"'Population at Risk'!AZ206/'Population at Risk'!AZ$5","v":6.3644754199847107E-3},{"$f":"'Population at Risk'!BA206/'Population at Risk'!BA$5","v":2.1784173080669428E-3},{"$f":"'Population at Risk'!BB206/'Population at Risk'!BB$5","v":2.3900483347387745E-3},{"$f":"'Population at Risk'!BC206/'Population at Risk'!BC$5","v":1.2255481654753187E-3},204]
[null,"Male 70-74",{"$f":"'Population at Risk'!C207/'Population at Risk'!C$5","v":2.2048008946189191E-3},{"$f":"'Population at Risk'!D207/'Population at Risk'!D$5","v":3.8623466103728595E-3},{"$f":"'Population at Risk'!E207/'Population at Risk'!E$5","v":7.3785557582085048E-3},{"$f":"'Population at Risk'!F207/'Population at Risk'!F$5","v":7.0646686994879672E-3},{"$f":"'Population at Risk'!G207/'Population at Risk'!G$5","v":5.1744346549218228E-3},{"$f":"'Population at Risk'!H207/'Population at Risk'!H$5","v":2.3709072681241386E-3},{"$f":"'Population at Risk'!I207/'Population at Risk'!I$5","v":6.4509909813060175E-3},{"$f":"'Population at Risk'!J207/'Population at Risk'!J$5","v":3.5952268830116286E-3},{"$f":"'Population at Risk'!K207/'Population at Risk'!K$5","v":2.321427173846387E-3},{"$f":"'Population at Risk'!L207/'Population at Risk'!L$5","v":3.2723111709459392E-3},{"$f":"'Population at Risk'!M207/'Population at Risk'!M$5","v":3.2723111709459392E-3},{"$f":"'Population at Risk'!N207/'Population at Risk'!N$5","v":1.3906284594489863E-3},{"$f":"'Population at Risk'!O207/'Population at Risk'!O$5","v":1.9462458837105371E-3},{"$f":"'Population at Risk'!P207/'Population at Risk'!P$5","v":4.1057163583514637E-3},{"$f":"'Population at Risk'!Q207/'Population at Risk'!Q$5","v":4.6317867056650834E-3},{"$f":"'Population at Risk'!R207/'Population at Risk'!R$5","v":3.0809454144832952E-3},{"$f":"'Population at Risk'!S207/'Population at Risk'!S$5","v":2.5281632544608499E-3},{"$f":"'Population at Risk'!T207/'Population at Risk'!T$5","v":1.7084682166599039E-3},{"$f":"'Population at Risk'!U207/'Population at Risk'!U$5","v":9.8986582596083438E-4},{"$f":"'Population at Risk'!V207/'Population at Risk'!V$5","v":2.9244246732630119E-3},{"$f":"'Population at Risk'!W207/'Population at Risk'!W$5","v":2.8810493606137143E-3},{"$f":"'Population at Risk'!X207/'Population at Risk'!X$5","v":2.8810493606137143E-3},{"$f":"'Population at Risk'!Y207/'Population at Risk'!Y$5","v":3.2374131178399754E-3},{"$f":"'Population at Risk'!Z207/'Population at Risk'!Z$5","v":6.8698717369455192E-4},{"$f":"'Population at Risk'!AA207/'Population at Risk'!AA$5","v":1.3651221454803559E-3},{"$f":"'Population at Risk'!AB207/'Population at Risk'!AB$5","v":5.1125632146808188E-3},{"$f":"'Population at Risk'!AC207/'Population at Risk'!AC$5","v":1.3559854556096833E-3},{"$f":"'Population at Risk'!AD207/'Population at Risk'!AD$5","v":5.9142470739877587E-3},{"$f":"'Population at Risk'!AE207/'Population at Risk'!AE$5","v":6.1798430441180018E-3},{"$f":"'Population at Risk'!AF207/'Population at Risk'!AF$5","v":2.0465662065410391E-3},{"$f":"'Population at Risk'!AG207/'Population at Risk'!AG$5","v":5.2740794197527205E-3},{"$f":"'Population at Risk'!AH207/'Population at Risk'!AH$5","v":1.5506020467235986E-3},{"$f":"'Population at Risk'!AI207/'Population at Risk'!AI$5","v":2.1412957564944293E-3},{"$f":"'Population at Risk'!AJ207/'Population at Risk'!AJ$5","v":2.5009731423964346E-3},{"$f":"'Population at Risk'!AK207/'Population at Risk'!AK$5","v":6.9213080310198535E-3},{"$f":"'Population at Risk'!AL207/'Population at Risk'!AL$5","v":2.9667989703409275E-3},{"$f":"'Population at Risk'!AM207/'Population at Risk'!AM$5","v":1.0341345496966481E-3},{"$f":"'Population at Risk'!AN207/'Population at Risk'!AN$5","v":9.4277138599666802E-3},{"$f":"'Population at Risk'!AO207/'Population at Risk'!AO$5","v":9.4277138599666802E-3},{"$f":"'Population at Risk'!AP207/'Population at Risk'!AP$5","v":8.3189475486672871E-3},{"$f":"'Population at Risk'!AQ207/'Population at Risk'!AQ$5","v":2.2639144385881173E-3},{"$f":"'Population at Risk'!AR207/'Population at Risk'!AR$5","v":2.7830384783285016E-3},{"$f":"'Population at Risk'!AS207/'Population at Risk'!AS$5","v":6.4509909813060175E-3},{"$f":"'Population at Risk'!AT207/'Population at Risk'!AT$5","v":1.0205349759434672E-2},{"$f":"'Population at Risk'!AU207/'Population at Risk'!AU$5","v":1.0205349759434672E-2},{"$f":"'Population at Risk'!AV207/'Population at Risk'!AV$5","v":2.0879137002279627E-3},{"$f":"'Population at Risk'!AW207/'Population at Risk'!AW$5","v":2.271561793607334E-3},{"$f":"'Population at Risk'!AX207/'Population at Risk'!AX$5","v":4.4417149765735731E-3},{"$f":"'Population at Risk'!AY207/'Population at Risk'!AY$5","v":3.3280978535570756E-3},{"$f":"'Population at Risk'!AZ207/'Population at Risk'!AZ$5","v":4.779632342749497E-3},{"$f":"'Population at Risk'!BA207/'Population at Risk'!BA$5","v":1.457428128092068E-3},{"$f":"'Population at Risk'!BB207/'Population at Risk'!BB$5","v":1.66886168011685E-3},{"$f":"'Population at Risk'!BC207/'Population at Risk'!BC$5","v":9.8986582596083438E-4},205]
[null,"Male 75-79",{"$f":"'Population at Risk'!C208/'Population at Risk'!C$5","v":5.3565090673781128E-4},{"$f":"'Population at Risk'!D208/'Population at Risk'!D$5","v":9.962201821308548E-4},{"$f":"'Population at Risk'!E208/'Population at Risk'!E$5","v":1.938899587976864E-3},{"$f":"'Population at Risk'!F208/'Population at Risk'!F$5","v":1.9974181989315457E-3},{"$f":"'Population at Risk'!G208/'Population at Risk'!G$5","v":1.2485482158913642E-3},{"$f":"'Population at Risk'!H208/'Population at Risk'!H$5","v":5.6134791469530682E-4},{"$f":"'Population at Risk'!I208/'Population at Risk'!I$5","v":1.7012619870177624E-3},{"$f":"'Population at Risk'!J208/'Population at Risk'!J$5","v":8.4833884737697536E-4},{"$f":"'Population at Risk'!K208/'Population at Risk'!K$5","v":5.161104711796545E-4},{"$f":"'Population at Risk'!L208/'Population at Risk'!L$5","v":8.6744075471660153E-4},{"$f":"'Population at Risk'!M208/'Population at Risk'!M$5","v":8.6744075471660153E-4},{"$f":"'Population at Risk'!N208/'Population at Risk'!N$5","v":3.8657565545472885E-4},{"$f":"'Population at Risk'!O208/'Population at Risk'!O$5","v":4.0327536259640389E-4},{"$f":"'Population at Risk'!P208/'Population at Risk'!P$5","v":1.1495033566648973E-3},{"$f":"'Population at Risk'!Q208/'Population at Risk'!Q$5","v":1.0990187220971462E-3},{"$f":"'Population at Risk'!R208/'Population at Risk'!R$5","v":8.2779454983608798E-4},{"$f":"'Population at Risk'!S208/'Population at Risk'!S$5","v":6.4750809232455955E-4},{"$f":"'Population at Risk'!T208/'Population at Risk'!T$5","v":4.8823465643048651E-4},{"$f":"'Population at Risk'!U208/'Population at Risk'!U$5","v":1.8642223215659833E-4},{"$f":"'Population at Risk'!V208/'Population at Risk'!V$5","v":7.7673175095561845E-4},{"$f":"'Population at Risk'!W208/'Population at Risk'!W$5","v":7.1606878508815241E-4},{"$f":"'Population at Risk'!X208/'Population at Risk'!X$5","v":7.1606878508815241E-4},{"$f":"'Population at Risk'!Y208/'Population at Risk'!Y$5","v":8.065764416758254E-4},{"$f":"'Population at Risk'!Z208/'Population at Risk'!Z$5","v":1.9269292852990534E-4},{"$f":"'Population at Risk'!AA208/'Population at Risk'!AA$5","v":3.4270346597005543E-4},{"$f":"'Population at Risk'!AB208/'Population at Risk'!AB$5","v":1.3225580421044657E-3},{"$f":"'Population at Risk'!AC208/'Population at Risk'!AC$5","v":3.5931197810235515E-4},{"$f":"'Population at Risk'!AD208/'Population at Risk'!AD$5","v":1.404384146943081E-3},{"$f":"'Population at Risk'!AE208/'Population at Risk'!AE$5","v":1.4594755552219659E-3},{"$f":"'Population at Risk'!AF208/'Population at Risk'!AF$5","v":5.2969720243708877E-4},{"$f":"'Population at Risk'!AG208/'Population at Risk'!AG$5","v":1.2455639948258477E-3},{"$f":"'Population at Risk'!AH208/'Population at Risk'!AH$5","v":3.5744569359079224E-4},{"$f":"'Population at Risk'!AI208/'Population at Risk'!AI$5","v":5.5072501349241634E-4},{"$f":"'Population at Risk'!AJ208/'Population at Risk'!AJ$5","v":5.2729378240462164E-4},{"$f":"'Population at Risk'!AK208/'Population at Risk'!AK$5","v":1.8056899677312626E-3},{"$f":"'Population at Risk'!AL208/'Population at Risk'!AL$5","v":7.2528272513232273E-4},{"$f":"'Population at Risk'!AM208/'Population at Risk'!AM$5","v":2.3724789059039906E-4},{"$f":"'Population at Risk'!AN208/'Population at Risk'!AN$5","v":2.7410857661767365E-3},{"$f":"'Population at Risk'!AO208/'Population at Risk'!AO$5","v":2.7410857661767365E-3},{"$f":"'Population at Risk'!AP208/'Population at Risk'!AP$5","v":2.3019339408272715E-3},{"$f":"'Population at Risk'!AQ208/'Population at Risk'!AQ$5","v":5.58473337742503E-4},{"$f":"'Population at Risk'!AR208/'Population at Risk'!AR$5","v":7.1000154411770362E-4},{"$f":"'Population at Risk'!AS208/'Population at Risk'!AS$5","v":1.7012619870177624E-3},{"$f":"'Population at Risk'!AT208/'Population at Risk'!AT$5","v":2.713084733498722E-3},{"$f":"'Population at Risk'!AU208/'Population at Risk'!AU$5","v":2.713084733498722E-3},{"$f":"'Population at Risk'!AV208/'Population at Risk'!AV$5","v":5.3131014642077308E-4},{"$f":"'Population at Risk'!AW208/'Population at Risk'!AW$5","v":5.2527277876392999E-4},{"$f":"'Population at Risk'!AX208/'Population at Risk'!AX$5","v":1.0691171712931798E-3},{"$f":"'Population at Risk'!AY208/'Population at Risk'!AY$5","v":8.9080390914596686E-4},{"$f":"'Population at Risk'!AZ208/'Population at Risk'!AZ$5","v":1.3321768642752241E-3},{"$f":"'Population at Risk'!BA208/'Population at Risk'!BA$5","v":3.4995362626960677E-4},{"$f":"'Population at Risk'!BB208/'Population at Risk'!BB$5","v":4.2001651295520365E-4},{"$f":"'Population at Risk'!BC208/'Population at Risk'!BC$5","v":1.8642223215659833E-4},206]
[null,"Male 80-84",{"$f":"'Population at Risk'!C209/'Population at Risk'!C$5","v":3.6467305034605451E-4},{"$f":"'Population at Risk'!D209/'Population at Risk'!D$5","v":6.5084338555236132E-4},{"$f":"'Population at Risk'!E209/'Population at Risk'!E$5","v":1.2507777862399117E-3},{"$f":"'Population at Risk'!F209/'Population at Risk'!F$5","v":1.1996241459074921E-3},{"$f":"'Population at Risk'!G209/'Population at Risk'!G$5","v":8.4614636264602376E-4},{"$f":"'Population at Risk'!H209/'Population at Risk'!H$5","v":3.8483030870713414E-4},{"$f":"'Population at Risk'!I209/'Population at Risk'!I$5","v":1.1092751045977507E-3},{"$f":"'Population at Risk'!J209/'Population at Risk'!J$5","v":5.8272991034243851E-4},{"$f":"'Population at Risk'!K209/'Population at Risk'!K$5","v":3.7095440116037673E-4},{"$f":"'Population at Risk'!L209/'Population at Risk'!L$5","v":6.4951228924592819E-4},{"$f":"'Population at Risk'!M209/'Population at Risk'!M$5","v":6.4951228924592819E-4},{"$f":"'Population at Risk'!N209/'Population at Risk'!N$5","v":3.3901587449973068E-4},{"$f":"'Population at Risk'!O209/'Population at Risk'!O$5","v":2.4865990737169572E-4},{"$f":"'Population at Risk'!P209/'Population at Risk'!P$5","v":8.3208017774670864E-4},{"$f":"'Population at Risk'!Q209/'Population at Risk'!Q$5","v":7.3193303895268183E-4},{"$f":"'Population at Risk'!R209/'Population at Risk'!R$5","v":6.2784417547954508E-4},{"$f":"'Population at Risk'!S209/'Population at Risk'!S$5","v":4.2998584255927785E-4},{"$f":"'Population at Risk'!T209/'Population at Risk'!T$5","v":3.5657011634377609E-4},{"$f":"'Population at Risk'!U209/'Population at Risk'!U$5","v":1.779484943312984E-4},{"$f":"'Population at Risk'!V209/'Population at Risk'!V$5","v":5.5761163594919127E-4},{"$f":"'Population at Risk'!W209/'Population at Risk'!W$5","v":4.5146193105382638E-4},{"$f":"'Population at Risk'!X209/'Population at Risk'!X$5","v":4.5146193105382638E-4},{"$f":"'Population at Risk'!Y209/'Population at Risk'!Y$5","v":5.6589145558693136E-4},{"$f":"'Population at Risk'!Z209/'Population at Risk'!Z$5","v":1.3811038225104805E-4},{"$f":"'Population at Risk'!AA209/'Population at Risk'!AA$5","v":2.3297520390305239E-4},{"$f":"'Population at Risk'!AB209/'Population at Risk'!AB$5","v":8.6641664419877164E-4},{"$f":"'Population at Risk'!AC209/'Population at Risk'!AC$5","v":2.506789476179051E-4},{"$f":"'Population at Risk'!AD209/'Population at Risk'!AD$5","v":9.7592796651976811E-4},{"$f":"'Population at Risk'!AE209/'Population at Risk'!AE$5","v":1.0228518887394644E-3},{"$f":"'Population at Risk'!AF209/'Population at Risk'!AF$5","v":3.1877704943046521E-4},{"$f":"'Population at Risk'!AG209/'Population at Risk'!AG$5","v":8.7293513077012707E-4},{"$f":"'Population at Risk'!AH209/'Population at Risk'!AH$5","v":2.3220115599153793E-4},{"$f":"'Population at Risk'!AI209/'Population at Risk'!AI$5","v":3.7901094907994982E-4},{"$f":"'Population at Risk'!AJ209/'Population at Risk'!AJ$5","v":4.0247544743927645E-4},{"$f":"'Population at Risk'!AK209/'Population at Risk'!AK$5","v":1.1922354735241865E-3},{"$f":"'Population at Risk'!AL209/'Population at Risk'!AL$5","v":4.8614395242058069E-4},{"$f":"'Population at Risk'!AM209/'Population at Risk'!AM$5","v":1.4159854339585083E-4},{"$f":"'Population at Risk'!AN209/'Population at Risk'!AN$5","v":1.5418607434744143E-3},{"$f":"'Population at Risk'!AO209/'Population at Risk'!AO$5","v":1.5418607434744143E-3},{"$f":"'Population at Risk'!AP209/'Population at Risk'!AP$5","v":1.618547302144175E-3},{"$f":"'Population at Risk'!AQ209/'Population at Risk'!AQ$5","v":3.4706743863754746E-4},{"$f":"'Population at Risk'!AR209/'Population at Risk'!AR$5","v":4.8112514239228595E-4},{"$f":"'Population at Risk'!AS209/'Population at Risk'!AS$5","v":1.1092751045977507E-3},{"$f":"'Population at Risk'!AT209/'Population at Risk'!AT$5","v":1.5896047116974892E-3},{"$f":"'Population at Risk'!AU209/'Population at Risk'!AU$5","v":1.5896047116974892E-3},{"$f":"'Population at Risk'!AV209/'Population at Risk'!AV$5","v":4.0619517645717172E-4},{"$f":"'Population at Risk'!AW209/'Population at Risk'!AW$5","v":3.5911506303248274E-4},{"$f":"'Population at Risk'!AX209/'Population at Risk'!AX$5","v":7.2346274749162558E-4},{"$f":"'Population at Risk'!AY209/'Population at Risk'!AY$5","v":6.0041669919194793E-4},{"$f":"'Population at Risk'!AZ209/'Population at Risk'!AZ$5","v":9.27830498966755E-4},{"$f":"'Population at Risk'!BA209/'Population at Risk'!BA$5","v":2.8699900567084153E-4},{"$f":"'Population at Risk'!BB209/'Population at Risk'!BB$5","v":2.4108090667071636E-4},{"$f":"'Population at Risk'!BC209/'Population at Risk'!BC$5","v":1.779484943312984E-4},207]
[null,"Male 85-89",{"$f":"'Population at Risk'!C210/'Population at Risk'!C$5","v":1.6858655770096291E-4},{"$f":"'Population at Risk'!D210/'Population at Risk'!D$5","v":3.4998182053287349E-4},{"$f":"'Population at Risk'!E210/'Population at Risk'!E$5","v":7.0234988410369402E-4},{"$f":"'Population at Risk'!F210/'Population at Risk'!F$5","v":7.3326659285299022E-4},{"$f":"'Population at Risk'!G210/'Population at Risk'!G$5","v":3.8586479078320306E-4},{"$f":"'Population at Risk'!H210/'Population at Risk'!H$5","v":1.776139886340619E-4},{"$f":"'Population at Risk'!I210/'Population at Risk'!I$5","v":6.4240847808354597E-4},{"$f":"'Population at Risk'!J210/'Population at Risk'!J$5","v":3.219502267085296E-4},{"$f":"'Population at Risk'!K210/'Population at Risk'!K$5","v":1.6934874835582413E-4},{"$f":"'Population at Risk'!L210/'Population at Risk'!L$5","v":3.2618051367832798E-4},{"$f":"'Population at Risk'!M210/'Population at Risk'!M$5","v":3.2618051367832798E-4},{"$f":"'Population at Risk'!N210/'Population at Risk'!N$5","v":1.8536119756819806E-4},{"$f":"'Population at Risk'!O210/'Population at Risk'!O$5","v":1.0042034720780018E-4},{"$f":"'Population at Risk'!P210/'Population at Risk'!P$5","v":4.4377609479824451E-4},{"$f":"'Population at Risk'!Q210/'Population at Risk'!Q$5","v":4.4095048524060644E-4},{"$f":"'Population at Risk'!R210/'Population at Risk'!R$5","v":3.0392456902194535E-4},{"$f":"'Population at Risk'!S210/'Population at Risk'!S$5","v":2.387053758325403E-4},{"$f":"'Population at Risk'!T210/'Population at Risk'!T$5","v":2.1978244240155164E-4},{"$f":"'Population at Risk'!U210/'Population at Risk'!U$5","v":1.0168485390359909E-4},{"$f":"'Population at Risk'!V210/'Population at Risk'!V$5","v":2.7962343034402263E-4},{"$f":"'Population at Risk'!W210/'Population at Risk'!W$5","v":2.2573096552691319E-4},{"$f":"'Population at Risk'!X210/'Population at Risk'!X$5","v":2.2573096552691319E-4},{"$f":"'Population at Risk'!Y210/'Population at Risk'!Y$5","v":2.9864257471230661E-4},{"$f":"'Population at Risk'!Z210/'Population at Risk'!Z$5","v":7.0571372966603388E-5},{"$f":"'Population at Risk'!AA210/'Population at Risk'!AA$5","v":1.1880649957614361E-4},{"$f":"'Population at Risk'!AB210/'Population at Risk'!AB$5","v":4.5261323239703135E-4},{"$f":"'Population at Risk'!AC210/'Population at Risk'!AC$5","v":1.3035963658134003E-4},{"$f":"'Population at Risk'!AD210/'Population at Risk'!AD$5","v":5.0700648016758685E-4},{"$f":"'Population at Risk'!AE210/'Population at Risk'!AE$5","v":5.529827654181936E-4},{"$f":"'Population at Risk'!AF210/'Population at Risk'!AF$5","v":1.8455513388079568E-4},{"$f":"'Population at Risk'!AG210/'Population at Risk'!AG$5","v":4.7193351056803182E-4},{"$f":"'Population at Risk'!AH210/'Population at Risk'!AH$5","v":1.1416095020109025E-4},{"$f":"'Population at Risk'!AI210/'Population at Risk'!AI$5","v":2.1727085701169245E-4},{"$f":"'Population at Risk'!AJ210/'Population at Risk'!AJ$5","v":1.7831190709335034E-4},{"$f":"'Population at Risk'!AK210/'Population at Risk'!AK$5","v":5.7077939895788798E-4},{"$f":"'Population at Risk'!AL210/'Population at Risk'!AL$5","v":2.4071205411116132E-4},{"$f":"'Population at Risk'!AM210/'Population at Risk'!AM$5","v":6.048414602008197E-5},{"$f":"'Population at Risk'!AN210/'Population at Risk'!AN$5","v":8.3211532187508076E-4},{"$f":"'Population at Risk'!AO210/'Population at Risk'!AO$5","v":8.3211532187508076E-4},{"$f":"'Population at Risk'!AP210/'Population at Risk'!AP$5","v":8.8215560561308271E-4},{"$f":"'Population at Risk'!AQ210/'Population at Risk'!AQ$5","v":2.0349230929888774E-4},{"$f":"'Population at Risk'!AR210/'Population at Risk'!AR$5","v":2.5401501584170546E-4},{"$f":"'Population at Risk'!AS210/'Population at Risk'!AS$5","v":6.4240847808354597E-4},{"$f":"'Population at Risk'!AT210/'Population at Risk'!AT$5","v":7.2906682265824686E-4},{"$f":"'Population at Risk'!AU210/'Population at Risk'!AU$5","v":7.2906682265824686E-4},{"$f":"'Population at Risk'!AV210/'Population at Risk'!AV$5","v":1.8510159939820483E-4},{"$f":"'Population at Risk'!AW210/'Population at Risk'!AW$5","v":1.8960739335483696E-4},{"$f":"'Population at Risk'!AX210/'Population at Risk'!AX$5","v":4.2335968186546974E-4},{"$f":"'Population at Risk'!AY210/'Population at Risk'!AY$5","v":3.2595566163028821E-4},{"$f":"'Population at Risk'!AZ210/'Population at Risk'!AZ$5","v":5.2228072185677267E-4},{"$f":"'Population at Risk'!BA210/'Population at Risk'!BA$5","v":1.0924478280373968E-4},{"$f":"'Population at Risk'!BB210/'Population at Risk'!BB$5","v":1.1786177659457245E-4},{"$f":"'Population at Risk'!BC210/'Population at Risk'!BC$5","v":1.0168485390359909E-4},208]
[null,"Male 90+",{"$f":"'Population at Risk'!C211/'Population at Risk'!C$5","v":4.9021623161272906E-5},{"$f":"'Population at Risk'!D211/'Population at Risk'!D$5","v":1.3815071863139744E-4},{"$f":"'Population at Risk'!E211/'Population at Risk'!E$5","v":2.9620280563489118E-4},{"$f":"'Population at Risk'!F211/'Population at Risk'!F$5","v":2.7864130528413629E-4},{"$f":"'Population at Risk'!G211/'Population at Risk'!G$5","v":1.9293239539160153E-4},{"$f":"'Population at Risk'!H211/'Population at Risk'!H$5","v":7.6746785212248968E-5},{"$f":"'Population at Risk'!I211/'Population at Risk'!I$5","v":2.2969838024498878E-4},{"$f":"'Population at Risk'!J211/'Population at Risk'!J$5","v":1.2234108614924124E-4},{"$f":"'Population at Risk'!K211/'Population at Risk'!K$5","v":6.4513808897456813E-5},{"$f":"'Population at Risk'!L211/'Population at Risk'!L$5","v":1.2249573876129348E-4},{"$f":"'Population at Risk'!M211/'Population at Risk'!M$5","v":1.2249573876129348E-4},{"$f":"'Population at Risk'!N211/'Population at Risk'!N$5","v":1.0121696972473973E-4},{"$f":"'Population at Risk'!O211/'Population at Risk'!O$5","v":5.2601134251704859E-5},{"$f":"'Population at Risk'!P211/'Population at Risk'!P$5","v":1.9107026303813308E-4},{"$f":"'Population at Risk'!Q211/'Population at Risk'!Q$5","v":1.3877629484729747E-4},{"$f":"'Population at Risk'!R211/'Population at Risk'!R$5","v":1.9595136686941211E-4},{"$f":"'Population at Risk'!S211/'Population at Risk'!S$5","v":9.4217486090194703E-5},{"$f":"'Population at Risk'!T211/'Population at Risk'!T$5","v":1.0809812435134591E-4},{"$f":"'Population at Risk'!U211/'Population at Risk'!U$5","v":1.6947475650599849E-5},{"$f":"'Population at Risk'!V211/'Population at Risk'!V$5","v":1.1446573171977536E-4},{"$f":"'Population at Risk'!W211/'Population at Risk'!W$5","v":9.9697843107719996E-5},{"$f":"'Population at Risk'!X211/'Population at Risk'!X$5","v":9.9697843107719996E-5},{"$f":"'Population at Risk'!Y211/'Population at Risk'!Y$5","v":1.1752511026414223E-4},{"$f":"'Population at Risk'!Z211/'Population at Risk'!Z$5","v":2.8669620267682627E-5},{"$f":"'Population at Risk'!AA211/'Population at Risk'!AA$5","v":4.9140894342956409E-5},{"$f":"'Population at Risk'!AB211/'Population at Risk'!AB$5","v":1.8548070102684581E-4},{"$f":"'Population at Risk'!AC211/'Population at Risk'!AC$5","v":5.6785447753235238E-5},{"$f":"'Population at Risk'!AD211/'Population at Risk'!AD$5","v":2.2057558918089066E-4},{"$f":"'Population at Risk'!AE211/'Population at Risk'!AE$5","v":2.3050183408213277E-4},{"$f":"'Population at Risk'!AF211/'Population at Risk'!AF$5","v":6.9507777695364592E-5},{"$f":"'Population at Risk'!AG211/'Population at Risk'!AG$5","v":1.9671777594819766E-4},{"$f":"'Population at Risk'!AH211/'Population at Risk'!AH$5","v":4.2394721797977685E-5},{"$f":"'Population at Risk'!AI211/'Population at Risk'!AI$5","v":8.4643981515721369E-5},{"$f":"'Population at Risk'!AJ211/'Population at Risk'!AJ$5","v":4.5851633252575803E-5},{"$f":"'Population at Risk'!AK211/'Population at Risk'!AK$5","v":2.613849584012758E-4},{"$f":"'Population at Risk'!AL211/'Population at Risk'!AL$5","v":7.8664069970967759E-5},{"$f":"'Population at Risk'!AM211/'Population at Risk'!AM$5","v":2.5318944845615712E-5},{"$f":"'Population at Risk'!AN211/'Population at Risk'!AN$5","v":4.0382067090996565E-4},{"$f":"'Population at Risk'!AO211/'Population at Risk'!AO$5","v":4.0382067090996565E-4},{"$f":"'Population at Risk'!AP211/'Population at Risk'!AP$5","v":3.6724932937540346E-4},{"$f":"'Population at Risk'!AQ211/'Population at Risk'!AQ$5","v":8.5918975037308163E-5},{"$f":"'Population at Risk'!AR211/'Population at Risk'!AR$5","v":1.0449776848339243E-4},{"$f":"'Population at Risk'!AS211/'Population at Risk'!AS$5","v":2.2969838024498878E-4},{"$f":"'Population at Risk'!AT211/'Population at Risk'!AT$5","v":2.9879787813862579E-4},{"$f":"'Population at Risk'!AU211/'Population at Risk'!AU$5","v":2.9879787813862579E-4},{"$f":"'Population at Risk'!AV211/'Population at Risk'!AV$5","v":9.7692510793497003E-5},{"$f":"'Population at Risk'!AW211/'Population at Risk'!AW$5","v":6.6329088134730953E-5},{"$f":"'Population at Risk'!AX211/'Population at Risk'!AX$5","v":1.6076949944258346E-4},{"$f":"'Population at Risk'!AY211/'Population at Risk'!AY$5","v":1.4094662567238034E-4},{"$f":"'Population at Risk'!AZ211/'Population at Risk'!AZ$5","v":2.2383459508147399E-4},{"$f":"'Population at Risk'!BA211/'Population at Risk'!BA$5","v":4.629016220497444E-5},{"$f":"'Population at Risk'!BB211/'Population at Risk'!BB$5","v":2.4643826015228782E-5},{"$f":"'Population at Risk'!BC211/'Population at Risk'!BC$5","v":1.6947475650599849E-5},209]
["SIMD Q5 (least deprived)","Female 0-4",{"$f":"'Population at Risk'!C212/'Population at Risk'!C$5","v":0},{"$f":"'Population at Risk'!D212/'Population at Risk'!D$5","v":0},{"$f":"'Population at Risk'!E212/'Population at Risk'!E$5","v":0},{"$f":"'Population at Risk'!F212/'Population at Risk'!F$5","v":0},{"$f":"'Population at Risk'!G212/'Population at Risk'!G$5","v":0},{"$f":"'Population at Risk'!H212/'Population at Risk'!H$5","v":0},{"$f":"'Population at Risk'!I212/'Population at Risk'!I$5","v":0},{"$f":"'Population at Risk'!J212/'Population at Risk'!J$5","v":0},{"$f":"'Population at Risk'!K212/'Population at Risk'!K$5","v":0},{"$f":"'Population at Risk'!L212/'Population at Risk'!L$5","v":0},{"$f":"'Population at Risk'!M212/'Population at Risk'!M$5","v":0},{"$f":"'Population at Risk'!N212/'Population at Risk'!N$5","v":0},{"$f":"'Population at Risk'!O212/'Population at Risk'!O$5","v":0},{"$f":"'Population at Risk'!P212/'Population at Risk'!P$5","v":0},{"$f":"'Population at Risk'!Q212/'Population at Risk'!Q$5","v":0},{"$f":"'Population at Risk'!R212/'Population at Risk'!R$5","v":0},{"$f":"'Population at Risk'!S212/'Population at Risk'!S$5","v":0},{"$f":"'Population at Risk'!T212/'Population at Risk'!T$5","v":0},{"$f":"'Population at Risk'!U212/'Population at Risk'!U$5","v":0},{"$f":"'Population at Risk'!V212/'Population at Risk'!V$5","v":0},{"$f":"'Population at Risk'!W212/'Population at Risk'!W$5","v":0},{"$f":"'Population at Risk'!X212/'Population at Risk'!X$5","v":0},{"$f":"'Population at Risk'!Y212/'Population at Risk'!Y$5","v":0},{"$f":"'Population at Risk'!Z212/'Population at Risk'!Z$5","v":0},{"$f":"'Population at Risk'!AA212/'Population at Risk'!AA$5","v":0},{"$f":"'Population at Risk'!AB212/'Population at Risk'!AB$5","v":0},{"$f":"'Population at Risk'!AC212/'Population at Risk'!AC$5","v":0},{"$f":"'Population at Risk'!AD212/'Population at Risk'!AD$5","v":0},{"$f":"'Population at Risk'!AE212/'Population at Risk'!AE$5","v":0},{"$f":"'Population at Risk'!AF212/'Population at Risk'!AF$5","v":0},{"$f":"'Population at Risk'!AG212/'Population at Risk'!AG$5","v":0},{"$f":"'Population at Risk'!AH212/'Population at Risk'!AH$5","v":0},{"$f":"'Population at Risk'!AI212/'Population at Risk'!AI$5","v":0},{"$f":"'Population at Risk'!AJ212/'Population at Risk'!AJ$5","v":0},{"$f":"'Population at Risk'!AK212/'Population at Risk'!AK$5","v":0},{"$f":"'Population at Risk'!AL212/'Population at Risk'!AL$5","v":0},{"$f":"'Population at Risk'!AM212/'Population at Risk'!AM$5","v":0},{"$f":"'Population at Risk'!AN212/'Population at Risk'!AN$5","v":0},{"$f":"'Population at Risk'!AO212/'Population at Risk'!AO$5","v":0},{"$f":"'Population at Risk'!AP212/'Population at Risk'!AP$5","v":0},{"$f":"'Population at Risk'!AQ212/'Population at Risk'!AQ$5","v":0},{"$f":"'Population at Risk'!AR212/'Population at Risk'!AR$5","v":0},{"$f":"'Population at Risk'!AS212/'Population at Risk'!AS$5","v":0},{"$f":"'Population at Risk'!AT212/'Population at Risk'!AT$5","v":0},{"$f":"'Population at Risk'!AU212/'Population at Risk'!AU$5","v":0},{"$f":"'Population at Risk'!AV212/'Population at Risk'!AV$5","v":0},{"$f":"'Population at Risk'!AW212/'Population at Risk'!AW$5","v":0},{"$f":"'Population at Risk'!AX212/'Population at Risk'!AX$5","v":0},{"$f":"'Population at Risk'!AY212/'Population at Risk'!AY$5","v":0},{"$f":"'Population at Risk'!AZ212/'Population at Risk'!AZ$5","v":0},{"$f":"'Population at Risk'!BA212/'Population at Risk'!BA$5","v":0},{"$f":"'Population at Risk'!BB212/'Population at Risk'!BB$5","v":0},{"$f":"'Population at Risk'!BC212/'Population at Risk'!BC$5","v":0},210]
[null,"Female 5-9",{"$f":"'Population at Risk'!C213/'Population at Risk'!C$5","v":0},{"$f":"'Population at Risk'!D213/'Population at Risk'!D$5","v":0},{"$f":"'Population at Risk'!E213/'Population at Risk'!E$5","v":0},{"$f":"'Population at Risk'!F213/'Population at Risk'!F$5","v":0},{"$f":"'Population at Risk'!G213/'Population at Risk'!G$5","v":0},{"$f":"'Population at Risk'!H213/'Population at Risk'!H$5","v":0},{"$f":"'Population at Risk'!I213/'Population at Risk'!I$5","v":0},{"$f":"'Population at Risk'!J213/'Population at Risk'!J$5","v":0},{"$f":"'Population at Risk'!K213/'Population at Risk'!K$5","v":0},{"$f":"'Population at Risk'!L213/'Population at Risk'!L$5","v":0},{"$f":"'Population at Risk'!M213/'Population at Risk'!M$5","v":0},{"$f":"'Population at Risk'!N213/'Population at Risk'!N$5","v":0},{"$f":"'Population at Risk'!O213/'Population at Risk'!O$5","v":0},{"$f":"'Population at Risk'!P213/'Population at Risk'!P$5","v":0},{"$f":"'Population at Risk'!Q213/'Population at Risk'!Q$5","v":0},{"$f":"'Population at Risk'!R213/'Population at Risk'!R$5","v":0},{"$f":"'Population at Risk'!S213/'Population at Risk'!S$5","v":0},{"$f":"'Population at Risk'!T213/'Population at Risk'!T$5","v":0},{"$f":"'Population at Risk'!U213/'Population at Risk'!U$5","v":0},{"$f":"'Population at Risk'!V213/'Population at Risk'!V$5","v":0},{"$f":"'Population at Risk'!W213/'Population at Risk'!W$5","v":0},{"$f":"'Population at Risk'!X213/'Population at Risk'!X$5","v":0},{"$f":"'Population at Risk'!Y213/'Population at Risk'!Y$5","v":0},{"$f":"'Population at Risk'!Z213/'Population at Risk'!Z$5","v":0},{"$f":"'Population at Risk'!AA213/'Population at Risk'!AA$5","v":0},{"$f":"'Population at Risk'!AB213/'Population at Risk'!AB$5","v":0},{"$f":"'Population at Risk'!AC213/'Population at Risk'!AC$5","v":0},{"$f":"'Population at Risk'!AD213/'Population at Risk'!AD$5","v":0},{"$f":"'Population at Risk'!AE213/'Population at Risk'!AE$5","v":0},{"$f":"'Population at Risk'!AF213/'Population at Risk'!AF$5","v":0},{"$f":"'Population at Risk'!AG213/'Population at Risk'!AG$5","v":0},{"$f":"'Population at Risk'!AH213/'Population at Risk'!AH$5","v":0},{"$f":"'Population at Risk'!AI213/'Population at Risk'!AI$5","v":0},{"$f":"'Population at Risk'!AJ213/'Population at Risk'!AJ$5","v":0},{"$f":"'Population at Risk'!AK213/'Population at Risk'!AK$5","v":0},{"$f":"'Population at Risk'!AL213/'Population at Risk'!AL$5","v":0},{"$f":"'Population at Risk'!AM213/'Population at Risk'!AM$5","v":0},{"$f":"'Population at Risk'!AN213/'Population at Risk'!AN$5","v":0},{"$f":"'Population at Risk'!AO213/'Population at Risk'!AO$5","v":0},{"$f":"'Population at Risk'!AP213/'Population at Risk'!AP$5","v":0},{"$f":"'Population at Risk'!AQ213/'Population at Risk'!AQ$5","v":0},{"$f":"'Population at Risk'!AR213/'Population at Risk'!AR$5","v":0},{"$f":"'Population at Risk'!AS213/'Population at Risk'!AS$5","v":0},{"$f":"'Population at Risk'!AT213/'Population at Risk'!AT$5","v":0},{"$f":"'Population at Risk'!AU213/'Population at Risk'!AU$5","v":0},{"$f":"'Population at Risk'!AV213/'Population at Risk'!AV$5","v":0},{"$f":"'Population at Risk'!AW213/'Population at Risk'!AW$5","v":0},{"$f":"'Population at Risk'!AX213/'Population at Risk'!AX$5","v":0},{"$f":"'Population at Risk'!AY213/'Population at Risk'!AY$5","v":0},{"$f":"'Population at Risk'!AZ213/'Population at Risk'!AZ$5","v":0},{"$f":"'Population at Risk'!BA213/'Population at Risk'!BA$5","v":0},{"$f":"'Population at Risk'!BB213/'Population at Risk'!BB$5","v":0},{"$f":"'Population at Risk'!BC213/'Population at Risk'!BC$5","v":0},211]
[null,"Female 10-15",{"$f":"'Population at Risk'!C214/'Population at Risk'!C$5","v":0},{"$f":"'Population at Risk'!D214/'Population at Risk'!D$5","v":0},{"$f":"'Population at Risk'!E214/'Population at Risk'!E$5","v":0},{"$f":"'Population at Risk'!F214/'Population at Risk'!F$5","v":0},{"$f":"'Population at Risk'!G214/'Population at Risk'!G$5","v":0},{"$f":"'Population at Risk'!H214/'Population at Risk'!H$5","v":0},{"$f":"'Population at Risk'!I214/'Population at Risk'!I$5","v":0},{"$f":"'Population at Risk'!J214/'Population at Risk'!J$5","v":0},{"$f":"'Population at Risk'!K214/'Population at Risk'!K$5","v":0},{"$f":"'Population at Risk'!L214/'Population at Risk'!L$5","v":0},{"$f":"'Population at Risk'!M214/'Population at Risk'!M$5","v":0},{"$f":"'Population at Risk'!N214/'Population at Risk'!N$5","v":0},{"$f":"'Population at Risk'!O214/'Population at Risk'!O$5","v":0},{"$f":"'Population at Risk'!P214/'Population at Risk'!P$5","v":0},{"$f":"'Population at Risk'!Q214/'Population at Risk'!Q$5","v":0},{"$f":"'Population at Risk'!R214/'Population at Risk'!R$5","v":0},{"$f":"'Population at Risk'!S214/'Population at Risk'!S$5","v":0},{"$f":"'Population at Risk'!T214/'Population at Risk'!T$5","v":0},{"$f":"'Population at Risk'!U214/'Population at Risk'!U$5","v":0},{"$f":"'Population at Risk'!V214/'Population at Risk'!V$5","v":0},{"$f":"'Population at Risk'!W214/'Population at Risk'!W$5","v":0},{"$f":"'Population at Risk'!X214/'Population at Risk'!X$5","v":0},{"$f":"'Population at Risk'!Y214/'Population at Risk'!Y$5","v":0},{"$f":"'Population at Risk'!Z214/'Population at Risk'!Z$5","v":0},{"$f":"'Population at Risk'!AA214/'Population at Risk'!AA$5","v":0},{"$f":"'Population at Risk'!AB214/'Population at Risk'!AB$5","v":0},{"$f":"'Population at Risk'!AC214/'Population at Risk'!AC$5","v":0},{"$f":"'Population at Risk'!AD214/'Population at Risk'!AD$5","v":0},{"$f":"'Population at Risk'!AE214/'Population at Risk'!AE$5","v":0},{"$f":"'Population at Risk'!AF214/'Population at Risk'!AF$5","v":0},{"$f":"'Population at Risk'!AG214/'Population at Risk'!AG$5","v":0},{"$f":"'Population at Risk'!AH214/'Population at Risk'!AH$5","v":0},{"$f":"'Population at Risk'!AI214/'Population at Risk'!AI$5","v":0},{"$f":"'Population at Risk'!AJ214/'Population at Risk'!AJ$5","v":0},{"$f":"'Population at Risk'!AK214/'Population at Risk'!AK$5","v":0},{"$f":"'Population at Risk'!AL214/'Population at Risk'!AL$5","v":0},{"$f":"'Population at Risk'!AM214/'Population at Risk'!AM$5","v":0},{"$f":"'Population at Risk'!AN214/'Population at Risk'!AN$5","v":0},{"$f":"'Population at Risk'!AO214/'Population at Risk'!AO$5","v":0},{"$f":"'Population at Risk'!AP214/'Population at Risk'!AP$5","v":0},{"$f":"'Population at Risk'!AQ214/'Population at Risk'!AQ$5","v":0},{"$f":"'Population at Risk'!AR214/'Population at Risk'!AR$5","v":0},{"$f":"'Population at Risk'!AS214/'Population at Risk'!AS$5","v":0},{"$f":"'Population at Risk'!AT214/'Population at Risk'!AT$5","v":0},{"$f":"'Population at Risk'!AU214/'Population at Risk'!AU$5","v":0},{"$f":"'Population at Risk'!AV214/'Population at Risk'!AV$5","v":0},{"$f":"'Population at Risk'!AW214/'Population at Risk'!AW$5","v":0},{"$f":"'Population at Risk'!AX214/'Population at Risk'!AX$5","v":0},{"$f":"'Population at Risk'!AY214/'Population at Risk'!AY$5","v":0},{"$f":"'Population at Risk'!AZ214/'Population at Risk'!AZ$5","v":0},{"$f":"'Population at Risk'!BA214/'Population at Risk'!BA$5","v":0},{"$f":"'Population at Risk'!BB214/'Population at Risk'!BB$5","v":0},{"$f":"'Population at Risk'!BC214/'Population at Risk'!BC$5","v":0},212]
[null,"Female 16-19",{"$f":"'Population at Risk'!C215/'Population at Risk'!C$5","v":4.6110047100454878E-3},{"$f":"'Population at Risk'!D215/'Population at Risk'!D$5","v":5.8285482630726073E-3},{"$f":"'Population at Risk'!E215/'Population at Risk'!E$5","v":4.5889585323853968E-3},{"$f":"'Population at Risk'!F215/'Population at Risk'!F$5","v":1.4721278749346687E-3},{"$f":"'Population at Risk'!G215/'Population at Risk'!G$5","v":8.9201267061328655E-4},{"$f":"'Population at Risk'!H215/'Population at Risk'!H$5","v":1.3669114234490362E-3},{"$f":"'Population at Risk'!I215/'Population at Risk'!I$5","v":1.31402706070935E-3},{"$f":"'Population at Risk'!J215/'Population at Risk'!J$5","v":4.8093628884643422E-3},{"$f":"'Population at Risk'!K215/'Population at Risk'!K$5","v":1.5873745524924152E-3},{"$f":"'Population at Risk'!L215/'Population at Risk'!L$5","v":1.0257790959488492E-3},{"$f":"'Population at Risk'!M215/'Population at Risk'!M$5","v":1.0257790959488492E-3},{"$f":"'Population at Risk'!N215/'Population at Risk'!N$5","v":2.1269757098982415E-3},{"$f":"'Population at Risk'!O215/'Population at Risk'!O$5","v":1.2279625606750886E-3},{"$f":"'Population at Risk'!P215/'Population at Risk'!P$5","v":8.6516799538300364E-3},{"$f":"'Population at Risk'!Q215/'Population at Risk'!Q$5","v":2.2704622511110209E-3},{"$f":"'Population at Risk'!R215/'Population at Risk'!R$5","v":9.5097140990544598E-3},{"$f":"'Population at Risk'!S215/'Population at Risk'!S$5","v":3.9434520113451922E-3},{"$f":"'Population at Risk'!T215/'Population at Risk'!T$5","v":5.0706346324622354E-3},{"$f":"'Population at Risk'!U215/'Population at Risk'!U$5","v":0},{"$f":"'Population at Risk'!V215/'Population at Risk'!V$5","v":1.9052573005039018E-3},{"$f":"'Population at Risk'!W215/'Population at Risk'!W$5","v":3.2766257212119023E-3},{"$f":"'Population at Risk'!X215/'Population at Risk'!X$5","v":3.2766257212119023E-3},{"$f":"'Population at Risk'!Y215/'Population at Risk'!Y$5","v":3.2103302712105384E-3},{"$f":"'Population at Risk'!Z215/'Population at Risk'!Z$5","v":1.0261393530042323E-3},{"$f":"'Population at Risk'!AA215/'Population at Risk'!AA$5","v":1.9932958647828126E-3},{"$f":"'Population at Risk'!AB215/'Population at Risk'!AB$5","v":4.4377344653673241E-3},{"$f":"'Population at Risk'!AC215/'Population at Risk'!AC$5","v":2.1370032090745231E-3},{"$f":"'Population at Risk'!AD215/'Population at Risk'!AD$5","v":9.8808250793125971E-4},{"$f":"'Population at Risk'!AE215/'Population at Risk'!AE$5","v":1.0254994213147969E-3},{"$f":"'Population at Risk'!AF215/'Population at Risk'!AF$5","v":1.1288315146603374E-3},{"$f":"'Population at Risk'!AG215/'Population at Risk'!AG$5","v":1.2141714735435605E-3},{"$f":"'Population at Risk'!AH215/'Population at Risk'!AH$5","v":1.4495007106575387E-3},{"$f":"'Population at Risk'!AI215/'Population at Risk'!AI$5","v":4.042051816697448E-3},{"$f":"'Population at Risk'!AJ215/'Population at Risk'!AJ$5","v":1.7411165715125318E-3},{"$f":"'Population at Risk'!AK215/'Population at Risk'!AK$5","v":3.0412106118425674E-3},{"$f":"'Population at Risk'!AL215/'Population at Risk'!AL$5","v":7.4734772724697096E-4},{"$f":"'Population at Risk'!AM215/'Population at Risk'!AM$5","v":1.2690259387010538E-3},{"$f":"'Population at Risk'!AN215/'Population at Risk'!AN$5","v":7.6843486762838984E-4},{"$f":"'Population at Risk'!AO215/'Population at Risk'!AO$5","v":7.6843486762838984E-4},{"$f":"'Population at Risk'!AP215/'Population at Risk'!AP$5","v":2.0357117484452372E-3},{"$f":"'Population at Risk'!AQ215/'Population at Risk'!AQ$5","v":2.250535912135461E-3},{"$f":"'Population at Risk'!AR215/'Population at Risk'!AR$5","v":2.5068011552930899E-3},{"$f":"'Population at Risk'!AS215/'Population at Risk'!AS$5","v":1.31402706070935E-3},{"$f":"'Population at Risk'!AT215/'Population at Risk'!AT$5","v":0},{"$f":"'Population at Risk'!AU215/'Population at Risk'!AU$5","v":0},{"$f":"'Population at Risk'!AV215/'Population at Risk'!AV$5","v":2.6633427445793625E-3},{"$f":"'Population at Risk'!AW215/'Population at Risk'!AW$5","v":1.6009258070550385E-3},{"$f":"'Population at Risk'!AX215/'Population at Risk'!AX$5","v":6.9504960229529863E-3},{"$f":"'Population at Risk'!AY215/'Population at Risk'!AY$5","v":3.0081932375698168E-3},{"$f":"'Population at Risk'!AZ215/'Population at Risk'!AZ$5","v":1.9783553313180813E-3},{"$f":"'Population at Risk'!BA215/'Population at Risk'!BA$5","v":5.281093507028741E-4},{"$f":"'Population at Risk'!BB215/'Population at Risk'!BB$5","v":2.8035861830146953E-3},{"$f":"'Population at Risk'!BC215/'Population at Risk'!BC$5","v":0},213]
[null,"Female 20-24",{"$f":"'Population at Risk'!C216/'Population at Risk'!C$5","v":8.1269523643196246E-3},{"$f":"'Population at Risk'!D216/'Population at Risk'!D$5","v":8.4114009817457241E-3},{"$f":"'Population at Risk'!E216/'Population at Risk'!E$5","v":5.0294985514943956E-3},{"$f":"'Population at Risk'!F216/'Population at Risk'!F$5","v":1.3598741154080599E-3},{"$f":"'Population at Risk'!G216/'Population at Risk'!G$5","v":1.2248532193495875E-3},{"$f":"'Population at Risk'!H216/'Population at Risk'!H$5","v":1.3321594381071116E-3},{"$f":"'Population at Risk'!I216/'Population at Risk'!I$5","v":1.2702261586857049E-3},{"$f":"'Population at Risk'!J216/'Population at Risk'!J$5","v":5.0115349743173297E-3},{"$f":"'Population at Risk'!K216/'Population at Risk'!K$5","v":1.4218201513122245E-3},{"$f":"'Population at Risk'!L216/'Population at Risk'!L$5","v":1.2198454113986313E-3},{"$f":"'Population at Risk'!M216/'Population at Risk'!M$5","v":1.2198454113986313E-3},{"$f":"'Population at Risk'!N216/'Population at Risk'!N$5","v":2.6116030868370815E-3},{"$f":"'Population at Risk'!O216/'Population at Risk'!O$5","v":1.2279625606750886E-3},{"$f":"'Population at Risk'!P216/'Population at Risk'!P$5","v":9.1035845085721042E-3},{"$f":"'Population at Risk'!Q216/'Population at Risk'!Q$5","v":2.2768220893494276E-3},{"$f":"'Population at Risk'!R216/'Population at Risk'!R$5","v":9.9819306127584637E-3},{"$f":"'Population at Risk'!S216/'Population at Risk'!S$5","v":7.4161196362268382E-3},{"$f":"'Population at Risk'!T216/'Population at Risk'!T$5","v":1.1312347026795498E-2},{"$f":"'Population at Risk'!U216/'Population at Risk'!U$5","v":0},{"$f":"'Population at Risk'!V216/'Population at Risk'!V$5","v":2.2542261413642916E-3},{"$f":"'Population at Risk'!W216/'Population at Risk'!W$5","v":5.9415576067406439E-3},{"$f":"'Population at Risk'!X216/'Population at Risk'!X$5","v":5.9415576067406439E-3},{"$f":"'Population at Risk'!Y216/'Population at Risk'!Y$5","v":3.5055330547701276E-3},{"$f":"'Population at Risk'!Z216/'Population at Risk'!Z$5","v":2.6610754765156739E-3},{"$f":"'Population at Risk'!AA216/'Population at Risk'!AA$5","v":2.840425062829291E-3},{"$f":"'Population at Risk'!AB216/'Population at Risk'!AB$5","v":6.2347657700078689E-3},{"$f":"'Population at Risk'!AC216/'Population at Risk'!AC$5","v":3.2578438079869888E-3},{"$f":"'Population at Risk'!AD216/'Population at Risk'!AD$5","v":1.1616413484548374E-3},{"$f":"'Population at Risk'!AE216/'Population at Risk'!AE$5","v":1.1440945924872563E-3},{"$f":"'Population at Risk'!AF216/'Population at Risk'!AF$5","v":1.4182754927783727E-3},{"$f":"'Population at Risk'!AG216/'Population at Risk'!AG$5","v":1.3545858616404347E-3},{"$f":"'Population at Risk'!AH216/'Population at Risk'!AH$5","v":1.6456000176236095E-3},{"$f":"'Population at Risk'!AI216/'Population at Risk'!AI$5","v":7.832684142404147E-3},{"$f":"'Population at Risk'!AJ216/'Population at Risk'!AJ$5","v":2.1471720263529104E-3},{"$f":"'Population at Risk'!AK216/'Population at Risk'!AK$5","v":3.1801120580565306E-3},{"$f":"'Population at Risk'!AL216/'Population at Risk'!AL$5","v":7.2691243783006172E-4},{"$f":"'Population at Risk'!AM216/'Population at Risk'!AM$5","v":1.3851248809964489E-3},{"$f":"'Population at Risk'!AN216/'Population at Risk'!AN$5","v":1.3004282375249673E-3},{"$f":"'Population at Risk'!AO216/'Population at Risk'!AO$5","v":1.3004282375249673E-3},{"$f":"'Population at Risk'!AP216/'Population at Risk'!AP$5","v":2.3224886018968481E-3},{"$f":"'Population at Risk'!AQ216/'Population at Risk'!AQ$5","v":2.6567155219460051E-3},{"$f":"'Population at Risk'!AR216/'Population at Risk'!AR$5","v":3.7712138798542119E-3},{"$f":"'Population at Risk'!AS216/'Population at Risk'!AS$5","v":1.2702261586857049E-3},{"$f":"'Population at Risk'!AT216/'Population at Risk'!AT$5","v":0},{"$f":"'Population at Risk'!AU216/'Population at Risk'!AU$5","v":0},{"$f":"'Population at Risk'!AV216/'Population at Risk'!AV$5","v":2.5541893534080772E-3},{"$f":"'Population at Risk'!AW216/'Population at Risk'!AW$5","v":1.8734238167665345E-3},{"$f":"'Population at Risk'!AX216/'Population at Risk'!AX$5","v":7.3970362702376752E-3},{"$f":"'Population at Risk'!AY216/'Population at Risk'!AY$5","v":4.5914935056870932E-3},{"$f":"'Population at Risk'!AZ216/'Population at Risk'!AZ$5","v":2.2016180019370493E-3},{"$f":"'Population at Risk'!BA216/'Population at Risk'!BA$5","v":6.1095003316607001E-4},{"$f":"'Population at Risk'!BB216/'Population at Risk'!BB$5","v":2.6175988932323935E-3},{"$f":"'Population at Risk'!BC216/'Population at Risk'!BC$5","v":0},214]
[null,"Female 25-29",{"$f":"'Population at Risk'!C217/'Population at Risk'!C$5","v":9.2826692081929528E-3},{"$f":"'Population at Risk'!D217/'Population at Risk'!D$5","v":9.2771053666453364E-3},{"$f":"'Population at Risk'!E217/'Population at Risk'!E$5","v":5.201750844260512E-3},{"$f":"'Population at Risk'!F217/'Population at Risk'!F$5","v":1.3155468496929457E-3},{"$f":"'Population at Risk'!G217/'Population at Risk'!G$5","v":9.9166844915252162E-4},{"$f":"'Population at Risk'!H217/'Population at Risk'!H$5","v":1.1412559318759248E-3},{"$f":"'Population at Risk'!I217/'Population at Risk'!I$5","v":1.0087638638708206E-3},{"$f":"'Population at Risk'!J217/'Population at Risk'!J$5","v":3.1617212982648422E-3},{"$f":"'Population at Risk'!K217/'Population at Risk'!K$5","v":1.0532830366031655E-3},{"$f":"'Population at Risk'!L217/'Population at Risk'!L$5","v":1.4305556521317625E-3},{"$f":"'Population at Risk'!M217/'Population at Risk'!M$5","v":1.4305556521317625E-3},{"$f":"'Population at Risk'!N217/'Population at Risk'!N$5","v":2.1942884914767039E-3},{"$f":"'Population at Risk'!O217/'Population at Risk'!O$5","v":1.343568459054799E-3},{"$f":"'Population at Risk'!P217/'Population at Risk'!P$5","v":7.0635013151909053E-3},{"$f":"'Population at Risk'!Q217/'Population at Risk'!Q$5","v":2.362081446730625E-3},{"$f":"'Population at Risk'!R217/'Population at Risk'!R$5","v":8.3466772331794274E-3},{"$f":"'Population at Risk'!S217/'Population at Risk'!S$5","v":5.8099025161415666E-3},{"$f":"'Population at Risk'!T217/'Population at Risk'!T$5","v":9.9107434777087819E-3},{"$f":"'Population at Risk'!U217/'Population at Risk'!U$5","v":0},{"$f":"'Population at Risk'!V217/'Population at Risk'!V$5","v":2.2110731260861056E-3},{"$f":"'Population at Risk'!W217/'Population at Risk'!W$5","v":2.810809087853625E-3},{"$f":"'Population at Risk'!X217/'Population at Risk'!X$5","v":2.810809087853625E-3},{"$f":"'Population at Risk'!Y217/'Population at Risk'!Y$5","v":2.6817864498947489E-3},{"$f":"'Population at Risk'!Z217/'Population at Risk'!Z$5","v":2.4081392405345507E-3},{"$f":"'Population at Risk'!AA217/'Population at Risk'!AA$5","v":2.4213352002617388E-3},{"$f":"'Population at Risk'!AB217/'Population at Risk'!AB$5","v":6.8720531746495001E-3},{"$f":"'Population at Risk'!AC217/'Population at Risk'!AC$5","v":2.7782681132547003E-3},{"$f":"'Population at Risk'!AD217/'Population at Risk'!AD$5","v":1.3150251078619844E-3},{"$f":"'Population at Risk'!AE217/'Population at Risk'!AE$5","v":1.4331154696174185E-3},{"$f":"'Population at Risk'!AF217/'Population at Risk'!AF$5","v":1.0100387592870514E-3},{"$f":"'Population at Risk'!AG217/'Population at Risk'!AG$5","v":1.6967809882062442E-3},{"$f":"'Population at Risk'!AH217/'Population at Risk'!AH$5","v":1.4006238394799408E-3},{"$f":"'Population at Risk'!AI217/'Population at Risk'!AI$5","v":6.9972089601082052E-3},{"$f":"'Population at Risk'!AJ217/'Population at Risk'!AJ$5","v":2.1908581306530712E-3},{"$f":"'Population at Risk'!AK217/'Population at Risk'!AK$5","v":3.4760538714736881E-3},{"$f":"'Population at Risk'!AL217/'Population at Risk'!AL$5","v":5.4212764742030768E-4},{"$f":"'Population at Risk'!AM217/'Population at Risk'!AM$5","v":1.2092901655204687E-3},{"$f":"'Population at Risk'!AN217/'Population at Risk'!AN$5","v":1.6284517294189234E-3},{"$f":"'Population at Risk'!AO217/'Population at Risk'!AO$5","v":1.6284517294189234E-3},{"$f":"'Population at Risk'!AP217/'Population at Risk'!AP$5","v":2.1925262117170165E-3},{"$f":"'Population at Risk'!AQ217/'Population at Risk'!AQ$5","v":2.2472057933345573E-3},{"$f":"'Population at Risk'!AR217/'Population at Risk'!AR$5","v":3.2768197226278177E-3},{"$f":"'Population at Risk'!AS217/'Population at Risk'!AS$5","v":1.0087638638708206E-3},{"$f":"'Population at Risk'!AT217/'Population at Risk'!AT$5","v":0},{"$f":"'Population at Risk'!AU217/'Population at Risk'!AU$5","v":0},{"$f":"'Population at Risk'!AV217/'Population at Risk'!AV$5","v":1.9267738842980938E-3},{"$f":"'Population at Risk'!AW217/'Population at Risk'!AW$5","v":1.56398749597258E-3},{"$f":"'Population at Risk'!AX217/'Population at Risk'!AX$5","v":4.5628582836678803E-3},{"$f":"'Population at Risk'!AY217/'Population at Risk'!AY$5","v":2.7634827906873193E-3},{"$f":"'Population at Risk'!AZ217/'Population at Risk'!AZ$5","v":1.9907638602141308E-3},{"$f":"'Population at Risk'!BA217/'Population at Risk'!BA$5","v":3.5923613343844191E-4},{"$f":"'Population at Risk'!BB217/'Population at Risk'!BB$5","v":2.6181419780806708E-3},{"$f":"'Population at Risk'!BC217/'Population at Risk'!BC$5","v":0},215]
[null,"Female 30-34",{"$f":"'Population at Risk'!C218/'Population at Risk'!C$5","v":7.9414031524953389E-3},{"$f":"'Population at Risk'!D218/'Population at Risk'!D$5","v":9.7300177846106565E-3},{"$f":"'Population at Risk'!E218/'Population at Risk'!E$5","v":7.3968247722993943E-3},{"$f":"'Population at Risk'!F218/'Population at Risk'!F$5","v":1.6100722638033068E-3},{"$f":"'Population at Risk'!G218/'Population at Risk'!G$5","v":7.6073196099371522E-4},{"$f":"'Population at Risk'!H218/'Population at Risk'!H$5","v":1.3408772226068115E-3},{"$f":"'Population at Risk'!I218/'Population at Risk'!I$5","v":1.781298215316196E-3},{"$f":"'Population at Risk'!J218/'Population at Risk'!J$5","v":2.693611996890625E-3},{"$f":"'Population at Risk'!K218/'Population at Risk'!K$5","v":1.4010651713306259E-3},{"$f":"'Population at Risk'!L218/'Population at Risk'!L$5","v":1.4305556521317625E-3},{"$f":"'Population at Risk'!M218/'Population at Risk'!M$5","v":1.4305556521317625E-3},{"$f":"'Population at Risk'!N218/'Population at Risk'!N$5","v":2.1256096654523942E-3},{"$f":"'Population at Risk'!O218/'Population at Risk'!O$5","v":1.5523928823096501E-3},{"$f":"'Population at Risk'!P218/'Population at Risk'!P$5","v":7.537965452729745E-3},{"$f":"'Population at Risk'!Q218/'Population at Risk'!Q$5","v":2.7384570618690213E-3},{"$f":"'Population at Risk'!R218/'Population at Risk'!R$5","v":8.2577250779412806E-3},{"$f":"'Population at Risk'!S218/'Population at Risk'!S$5","v":5.2821137480058584E-3},{"$f":"'Population at Risk'!T218/'Population at Risk'!T$5","v":8.0925572238378998E-3},{"$f":"'Population at Risk'!U218/'Population at Risk'!U$5","v":0},{"$f":"'Population at Risk'!V218/'Population at Risk'!V$5","v":2.9720268642845701E-3},{"$f":"'Population at Risk'!W218/'Population at Risk'!W$5","v":2.9650253214522195E-3},{"$f":"'Population at Risk'!X218/'Population at Risk'!X$5","v":2.9650253214522195E-3},{"$f":"'Population at Risk'!Y218/'Population at Risk'!Y$5","v":2.9333643746774726E-3},{"$f":"'Population at Risk'!Z218/'Population at Risk'!Z$5","v":1.8010098842982359E-3},{"$f":"'Population at Risk'!AA218/'Population at Risk'!AA$5","v":2.2850416682290904E-3},{"$f":"'Population at Risk'!AB218/'Population at Risk'!AB$5","v":7.2297764905901582E-3},{"$f":"'Population at Risk'!AC218/'Population at Risk'!AC$5","v":2.4553118593966475E-3},{"$f":"'Population at Risk'!AD218/'Population at Risk'!AD$5","v":1.3500924440716371E-3},{"$f":"'Population at Risk'!AE218/'Population at Risk'!AE$5","v":1.5612416870997704E-3},{"$f":"'Population at Risk'!AF218/'Population at Risk'!AF$5","v":1.0572920345753346E-3},{"$f":"'Population at Risk'!AG218/'Population at Risk'!AG$5","v":1.8484799507279945E-3},{"$f":"'Population at Risk'!AH218/'Population at Risk'!AH$5","v":1.6507352393870731E-3},{"$f":"'Population at Risk'!AI218/'Population at Risk'!AI$5","v":6.0779024051041998E-3},{"$f":"'Population at Risk'!AJ218/'Population at Risk'!AJ$5","v":2.6742279760980183E-3},{"$f":"'Population at Risk'!AK218/'Population at Risk'!AK$5","v":3.8042649666342934E-3},{"$f":"'Population at Risk'!AL218/'Population at Risk'!AL$5","v":7.8340423775571932E-4},{"$f":"'Population at Risk'!AM218/'Population at Risk'!AM$5","v":1.4215329292648772E-3},{"$f":"'Population at Risk'!AN218/'Population at Risk'!AN$5","v":1.1761040268025559E-3},{"$f":"'Population at Risk'!AO218/'Population at Risk'!AO$5","v":1.1761040268025559E-3},{"$f":"'Population at Risk'!AP218/'Population at Risk'!AP$5","v":2.7489003443895675E-3},{"$f":"'Population at Risk'!AQ218/'Population at Risk'!AQ$5","v":2.3024649521870464E-3},{"$f":"'Population at Risk'!AR218/'Population at Risk'!AR$5","v":3.2021141851004222E-3},{"$f":"'Population at Risk'!AS218/'Population at Risk'!AS$5","v":1.781298215316196E-3},{"$f":"'Population at Risk'!AT218/'Population at Risk'!AT$5","v":0},{"$f":"'Population at Risk'!AU218/'Population at Risk'!AU$5","v":0},{"$f":"'Population at Risk'!AV218/'Population at Risk'!AV$5","v":2.0270106759667809E-3},{"$f":"'Population at Risk'!AW218/'Population at Risk'!AW$5","v":1.8469947571485709E-3},{"$f":"'Population at Risk'!AX218/'Population at Risk'!AX$5","v":3.552558258485267E-3},{"$f":"'Population at Risk'!AY218/'Population at Risk'!AY$5","v":3.0086876830992325E-3},{"$f":"'Population at Risk'!AZ218/'Population at Risk'!AZ$5","v":2.2502086099559595E-3},{"$f":"'Population at Risk'!BA218/'Population at Risk'!BA$5","v":4.3319651385223881E-4},{"$f":"'Population at Risk'!BB218/'Population at Risk'!BB$5","v":3.0855418211474216E-3},{"$f":"'Population at Risk'!BC218/'Population at Risk'!BC$5","v":0},216]
[null,"Female 35-39",{"$f":"'Population at Risk'!C219/'Population at Risk'!C$5","v":6.5148911635048807E-3},{"$f":"'Population at Risk'!D219/'Population at Risk'!D$5","v":8.790562503758665E-3},{"$f":"'Population at Risk'!E219/'Population at Risk'!E$5","v":7.3963218386277549E-3},{"$f":"'Population at Risk'!F219/'Population at Risk'!F$5","v":1.72972912695921E-3},{"$f":"'Population at Risk'!G219/'Population at Risk'!G$5","v":1.0489454656573362E-3},{"$f":"'Population at Risk'!H219/'Population at Risk'!H$5","v":1.48852569565272E-3},{"$f":"'Population at Risk'!I219/'Population at Risk'!I$5","v":1.8252518889789295E-3},{"$f":"'Population at Risk'!J219/'Population at Risk'!J$5","v":3.0194343276771355E-3},{"$f":"'Population at Risk'!K219/'Population at Risk'!K$5","v":1.7720294794026884E-3},{"$f":"'Population at Risk'!L219/'Population at Risk'!L$5","v":1.2927386324652842E-3},{"$f":"'Population at Risk'!M219/'Population at Risk'!M$5","v":1.2927386324652842E-3},{"$f":"'Population at Risk'!N219/'Population at Risk'!N$5","v":1.8055889324030258E-3},{"$f":"'Population at Risk'!O219/'Population at Risk'!O$5","v":1.4632440747446925E-3},{"$f":"'Population at Risk'!P219/'Population at Risk'!P$5","v":9.9392484872690649E-3},{"$f":"'Population at Risk'!Q219/'Population at Risk'!Q$5","v":3.2808483933833119E-3},{"$f":"'Population at Risk'!R219/'Population at Risk'!R$5","v":1.1713349283460696E-2},{"$f":"'Population at Risk'!S219/'Population at Risk'!S$5","v":5.0277674562501495E-3},{"$f":"'Population at Risk'!T219/'Population at Risk'!T$5","v":7.1943568201969267E-3},{"$f":"'Population at Risk'!U219/'Population at Risk'!U$5","v":0},{"$f":"'Population at Risk'!V219/'Population at Risk'!V$5","v":2.8481562670550028E-3},{"$f":"'Population at Risk'!W219/'Population at Risk'!W$5","v":3.0666080381265056E-3},{"$f":"'Population at Risk'!X219/'Population at Risk'!X$5","v":3.0666080381265056E-3},{"$f":"'Population at Risk'!Y219/'Population at Risk'!Y$5","v":3.0001010069175007E-3},{"$f":"'Population at Risk'!Z219/'Population at Risk'!Z$5","v":1.3054606683366714E-3},{"$f":"'Population at Risk'!AA219/'Population at Risk'!AA$5","v":2.4469989279531576E-3},{"$f":"'Population at Risk'!AB219/'Population at Risk'!AB$5","v":6.4411158075321669E-3},{"$f":"'Population at Risk'!AC219/'Population at Risk'!AC$5","v":2.5802903884605296E-3},{"$f":"'Population at Risk'!AD219/'Population at Risk'!AD$5","v":1.3957918609805479E-3},{"$f":"'Population at Risk'!AE219/'Population at Risk'!AE$5","v":1.5224030873688657E-3},{"$f":"'Population at Risk'!AF219/'Population at Risk'!AF$5","v":1.2596790375454772E-3},{"$f":"'Population at Risk'!AG219/'Population at Risk'!AG$5","v":1.8024958000931934E-3},{"$f":"'Population at Risk'!AH219/'Population at Risk'!AH$5","v":1.8645942012897202E-3},{"$f":"'Population at Risk'!AI219/'Population at Risk'!AI$5","v":5.6571220621972999E-3},{"$f":"'Population at Risk'!AJ219/'Population at Risk'!AJ$5","v":2.7525625436368171E-3},{"$f":"'Population at Risk'!AK219/'Population at Risk'!AK$5","v":2.7907759970859686E-3},{"$f":"'Population at Risk'!AL219/'Population at Risk'!AL$5","v":8.6526121816529245E-4},{"$f":"'Population at Risk'!AM219/'Population at Risk'!AM$5","v":1.5668698554456731E-3},{"$f":"'Population at Risk'!AN219/'Population at Risk'!AN$5","v":1.6355473796560429E-3},{"$f":"'Population at Risk'!AO219/'Population at Risk'!AO$5","v":1.6355473796560429E-3},{"$f":"'Population at Risk'!AP219/'Population at Risk'!AP$5","v":2.6026746787242076E-3},{"$f":"'Population at Risk'!AQ219/'Population at Risk'!AQ$5","v":2.6357767878311344E-3},{"$f":"'Population at Risk'!AR219/'Population at Risk'!AR$5","v":3.1336242689199607E-3},{"$f":"'Population at Risk'!AS219/'Population at Risk'!AS$5","v":1.8252518889789295E-3},{"$f":"'Population at Risk'!AT219/'Population at Risk'!AT$5","v":0},{"$f":"'Population at Risk'!AU219/'Population at Risk'!AU$5","v":0},{"$f":"'Population at Risk'!AV219/'Population at Risk'!AV$5","v":2.626044042550436E-3},{"$f":"'Population at Risk'!AW219/'Population at Risk'!AW$5","v":2.1253372901270224E-3},{"$f":"'Population at Risk'!AX219/'Population at Risk'!AX$5","v":3.8483820376807236E-3},{"$f":"'Population at Risk'!AY219/'Population at Risk'!AY$5","v":2.9911156077978831E-3},{"$f":"'Population at Risk'!AZ219/'Population at Risk'!AZ$5","v":2.1336360707460353E-3},{"$f":"'Population at Risk'!BA219/'Population at Risk'!BA$5","v":6.0703132336491173E-4},{"$f":"'Population at Risk'!BB219/'Population at Risk'!BB$5","v":3.3855418913358135E-3},{"$f":"'Population at Risk'!BC219/'Population at Risk'!BC$5","v":0},217]
[null,"Female 40-44",{"$f":"'Population at Risk'!C220/'Population at Risk'!C$5","v":6.0034615965978205E-3},{"$f":"'Population at Risk'!D220/'Population at Risk'!D$5","v":8.7416639520054001E-3},{"$f":"'Population at Risk'!E220/'Population at Risk'!E$5","v":7.8692089580434336E-3},{"$f":"'Population at Risk'!F220/'Population at Risk'!F$5","v":2.1328312191549216E-3},{"$f":"'Population at Risk'!G220/'Population at Risk'!G$5","v":1.2112822639138287E-3},{"$f":"'Population at Risk'!H220/'Population at Risk'!H$5","v":1.8977797190316919E-3},{"$f":"'Population at Risk'!I220/'Population at Risk'!I$5","v":2.822978001925611E-3},{"$f":"'Population at Risk'!J220/'Population at Risk'!J$5","v":3.839932786285053E-3},{"$f":"'Population at Risk'!K220/'Population at Risk'!K$5","v":2.2835431435601653E-3},{"$f":"'Population at Risk'!L220/'Population at Risk'!L$5","v":1.3967520856521462E-3},{"$f":"'Population at Risk'!M220/'Population at Risk'!M$5","v":1.3967520856521462E-3},{"$f":"'Population at Risk'!N220/'Population at Risk'!N$5","v":2.1212513331727856E-3},{"$f":"'Population at Risk'!O220/'Population at Risk'!O$5","v":1.9123585927356376E-3},{"$f":"'Population at Risk'!P220/'Population at Risk'!P$5","v":1.1542551240777858E-2},{"$f":"'Population at Risk'!Q220/'Population at Risk'!Q$5","v":3.8117493152217017E-3},{"$f":"'Population at Risk'!R220/'Population at Risk'!R$5","v":1.3226068039090873E-2},{"$f":"'Population at Risk'!S220/'Population at Risk'!S$5","v":5.2673288348747058E-3},{"$f":"'Population at Risk'!T220/'Population at Risk'!T$5","v":6.8567826086594896E-3},{"$f":"'Population at Risk'!U220/'Population at Risk'!U$5","v":0},{"$f":"'Population at Risk'!V220/'Population at Risk'!V$5","v":3.4684683363394564E-3},{"$f":"'Population at Risk'!W220/'Population at Risk'!W$5","v":3.5226539783799462E-3},{"$f":"'Population at Risk'!X220/'Population at Risk'!X$5","v":3.5226539783799462E-3},{"$f":"'Population at Risk'!Y220/'Population at Risk'!Y$5","v":3.7237750830486221E-3},{"$f":"'Population at Risk'!Z220/'Population at Risk'!Z$5","v":1.2156739128201957E-3},{"$f":"'Population at Risk'!AA220/'Population at Risk'!AA$5","v":2.6700902197771183E-3},{"$f":"'Population at Risk'!AB220/'Population at Risk'!AB$5","v":6.5324586947863184E-3},{"$f":"'Population at Risk'!AC220/'Population at Risk'!AC$5","v":2.791401528680492E-3},{"$f":"'Population at Risk'!AD220/'Population at Risk'!AD$5","v":1.6117688925872376E-3},{"$f":"'Population at Risk'!AE220/'Population at Risk'!AE$5","v":1.7579611581938477E-3},{"$f":"'Population at Risk'!AF220/'Population at Risk'!AF$5","v":1.6451842602425847E-3},{"$f":"'Population at Risk'!AG220/'Population at Risk'!AG$5","v":2.0813919983884155E-3},{"$f":"'Population at Risk'!AH220/'Population at Risk'!AH$5","v":2.0822451479260871E-3},{"$f":"'Population at Risk'!AI220/'Population at Risk'!AI$5","v":5.6846445490102903E-3},{"$f":"'Population at Risk'!AJ220/'Population at Risk'!AJ$5","v":2.8506622569320498E-3},{"$f":"'Population at Risk'!AK220/'Population at Risk'!AK$5","v":3.6821786497178502E-3},{"$f":"'Population at Risk'!AL220/'Population at Risk'!AL$5","v":1.1089582068257702E-3},{"$f":"'Population at Risk'!AM220/'Population at Risk'!AM$5","v":1.6863512440366078E-3},{"$f":"'Population at Risk'!AN220/'Population at Risk'!AN$5","v":1.1920091072069466E-3},{"$f":"'Population at Risk'!AO220/'Population at Risk'!AO$5","v":1.1920091072069466E-3},{"$f":"'Population at Risk'!AP220/'Population at Risk'!AP$5","v":3.2656558559829214E-3},{"$f":"'Population at Risk'!AQ220/'Population at Risk'!AQ$5","v":3.0054628255247943E-3},{"$f":"'Population at Risk'!AR220/'Population at Risk'!AR$5","v":3.3971479632298944E-3},{"$f":"'Population at Risk'!AS220/'Population at Risk'!AS$5","v":2.822978001925611E-3},{"$f":"'Population at Risk'!AT220/'Population at Risk'!AT$5","v":0},{"$f":"'Population at Risk'!AU220/'Population at Risk'!AU$5","v":0},{"$f":"'Population at Risk'!AV220/'Population at Risk'!AV$5","v":3.271037316159315E-3},{"$f":"'Population at Risk'!AW220/'Population at Risk'!AW$5","v":2.4372157042115172E-3},{"$f":"'Population at Risk'!AX220/'Population at Risk'!AX$5","v":4.8742125808479827E-3},{"$f":"'Population at Risk'!AY220/'Population at Risk'!AY$5","v":3.5346912573855764E-3},{"$f":"'Population at Risk'!AZ220/'Population at Risk'!AZ$5","v":2.6094578553344364E-3},{"$f":"'Population at Risk'!BA220/'Population at Risk'!BA$5","v":5.9731882219107315E-4},{"$f":"'Population at Risk'!BB220/'Population at Risk'!BB$5","v":4.2416188008816058E-3},{"$f":"'Population at Risk'!BC220/'Population at Risk'!BC$5","v":0},218]
[null,"Female 45-49",{"$f":"'Population at Risk'!C221/'Population at Risk'!C$5","v":6.9186821172312514E-3},{"$f":"'Population at Risk'!D221/'Population at Risk'!D$5","v":1.0120069727802732E-2},{"$f":"'Population at Risk'!E221/'Population at Risk'!E$5","v":9.144031286201372E-3},{"$f":"'Population at Risk'!F221/'Population at Risk'!F$5","v":2.6537956804580072E-3},{"$f":"'Population at Risk'!G221/'Population at Risk'!G$5","v":1.7842149553743782E-3},{"$f":"'Population at Risk'!H221/'Population at Risk'!H$5","v":2.6082752276476639E-3},{"$f":"'Population at Risk'!I221/'Population at Risk'!I$5","v":3.1319077181022623E-3},{"$f":"'Population at Risk'!J221/'Population at Risk'!J$5","v":5.4037882142905294E-3},{"$f":"'Population at Risk'!K221/'Population at Risk'!K$5","v":2.9166938693950032E-3},{"$f":"'Population at Risk'!L221/'Population at Risk'!L$5","v":2.0185281992874606E-3},{"$f":"'Population at Risk'!M221/'Population at Risk'!M$5","v":2.0185281992874606E-3},{"$f":"'Population at Risk'!N221/'Population at Risk'!N$5","v":2.9179667990982656E-3},{"$f":"'Population at Risk'!O221/'Population at Risk'!O$5","v":2.37186738872151E-3},{"$f":"'Population at Risk'!P221/'Population at Risk'!P$5","v":1.5047321676714857E-2},{"$f":"'Population at Risk'!Q221/'Population at Risk'!Q$5","v":5.0428276672094298E-3},{"$f":"'Population at Risk'!R221/'Population at Risk'!R$5","v":1.6787154794896789E-2},{"$f":"'Population at Risk'!S221/'Population at Risk'!S$5","v":6.2547031703418772E-3},{"$f":"'Population at Risk'!T221/'Population at Risk'!T$5","v":7.913653886896287E-3},{"$f":"'Population at Risk'!U221/'Population at Risk'!U$5","v":0},{"$f":"'Population at Risk'!V221/'Population at Risk'!V$5","v":4.0429505463674114E-3},{"$f":"'Population at Risk'!W221/'Population at Risk'!W$5","v":4.185062294915904E-3},{"$f":"'Population at Risk'!X221/'Population at Risk'!X$5","v":4.185062294915904E-3},{"$f":"'Population at Risk'!Y221/'Population at Risk'!Y$5","v":4.740826206482E-3},{"$f":"'Population at Risk'!Z221/'Population at Risk'!Z$5","v":1.4857852163857564E-3},{"$f":"'Population at Risk'!AA221/'Population at Risk'!AA$5","v":3.4685129525645832E-3},{"$f":"'Population at Risk'!AB221/'Population at Risk'!AB$5","v":7.6058768399729065E-3},{"$f":"'Population at Risk'!AC221/'Population at Risk'!AC$5","v":3.6192414926130121E-3},{"$f":"'Population at Risk'!AD221/'Population at Risk'!AD$5","v":1.9993416232138442E-3},{"$f":"'Population at Risk'!AE221/'Population at Risk'!AE$5","v":2.08229587481621E-3},{"$f":"'Population at Risk'!AF221/'Population at Risk'!AF$5","v":2.3156224928534866E-3},{"$f":"'Population at Risk'!AG221/'Population at Risk'!AG$5","v":2.4653980276632217E-3},{"$f":"'Population at Risk'!AH221/'Population at Risk'!AH$5","v":2.7184307988723203E-3},{"$f":"'Population at Risk'!AI221/'Population at Risk'!AI$5","v":6.7727475034302376E-3},{"$f":"'Population at Risk'!AJ221/'Population at Risk'!AJ$5","v":3.5103850194064569E-3},{"$f":"'Population at Risk'!AK221/'Population at Risk'!AK$5","v":4.5720492737626947E-3},{"$f":"'Population at Risk'!AL221/'Population at Risk'!AL$5","v":1.5916004819134671E-3},{"$f":"'Population at Risk'!AM221/'Population at Risk'!AM$5","v":2.3492254186377316E-3},{"$f":"'Population at Risk'!AN221/'Population at Risk'!AN$5","v":2.2504636451203138E-3},{"$f":"'Population at Risk'!AO221/'Population at Risk'!AO$5","v":2.2504636451203138E-3},{"$f":"'Population at Risk'!AP221/'Population at Risk'!AP$5","v":4.2032636831533998E-3},{"$f":"'Population at Risk'!AQ221/'Population at Risk'!AQ$5","v":4.2062522441784506E-3},{"$f":"'Population at Risk'!AR221/'Population at Risk'!AR$5","v":4.2086852502263798E-3},{"$f":"'Population at Risk'!AS221/'Population at Risk'!AS$5","v":3.1319077181022623E-3},{"$f":"'Population at Risk'!AT221/'Population at Risk'!AT$5","v":0},{"$f":"'Population at Risk'!AU221/'Population at Risk'!AU$5","v":0},{"$f":"'Population at Risk'!AV221/'Population at Risk'!AV$5","v":4.7319716209642494E-3},{"$f":"'Population at Risk'!AW221/'Population at Risk'!AW$5","v":3.0333372766845807E-3},{"$f":"'Population at Risk'!AX221/'Population at Risk'!AX$5","v":7.0565564912584743E-3},{"$f":"'Population at Risk'!AY221/'Population at Risk'!AY$5","v":4.381487003530549E-3},{"$f":"'Population at Risk'!AZ221/'Population at Risk'!AZ$5","v":3.3924872577043401E-3},{"$f":"'Population at Risk'!BA221/'Population at Risk'!BA$5","v":9.5143535088929206E-4},{"$f":"'Population at Risk'!BB221/'Population at Risk'!BB$5","v":5.5178962245190279E-3},{"$f":"'Population at Risk'!BC221/'Population at Risk'!BC$5","v":0},219]
[null,"Female 50-54",{"$f":"'Population at Risk'!C222/'Population at Risk'!C$5","v":7.3711988426942527E-3},{"$f":"'Population at Risk'!D222/'Population at Risk'!D$5","v":1.0225928197758829E-2},{"$f":"'Population at Risk'!E222/'Population at Risk'!E$5","v":8.8284628151830084E-3},{"$f":"'Population at Risk'!F222/'Population at Risk'!F$5","v":2.7221756918563121E-3},{"$f":"'Population at Risk'!G222/'Population at Risk'!G$5","v":1.8653156351641225E-3},{"$f":"'Population at Risk'!H222/'Population at Risk'!H$5","v":2.6853735434949643E-3},{"$f":"'Population at Risk'!I222/'Population at Risk'!I$5","v":2.8206227724896647E-3},{"$f":"'Population at Risk'!J222/'Population at Risk'!J$5","v":5.3011596579928266E-3},{"$f":"'Population at Risk'!K222/'Population at Risk'!K$5","v":3.1045487287797661E-3},{"$f":"'Population at Risk'!L222/'Population at Risk'!L$5","v":2.4286673951586183E-3},{"$f":"'Population at Risk'!M222/'Population at Risk'!M$5","v":2.4286673951586183E-3},{"$f":"'Population at Risk'!N222/'Population at Risk'!N$5","v":3.1058920613352731E-3},{"$f":"'Population at Risk'!O222/'Population at Risk'!O$5","v":2.2660154556711286E-3},{"$f":"'Population at Risk'!P222/'Population at Risk'!P$5","v":1.6423722731544715E-2},{"$f":"'Population at Risk'!Q222/'Population at Risk'!Q$5","v":4.7393540431904238E-3},{"$f":"'Population at Risk'!R222/'Population at Risk'!R$5","v":1.6809281976085142E-2},{"$f":"'Population at Risk'!S222/'Population at Risk'!S$5","v":6.168734291329186E-3},{"$f":"'Population at Risk'!T222/'Population at Risk'!T$5","v":8.0578026233280326E-3},{"$f":"'Population at Risk'!U222/'Population at Risk'!U$5","v":0},{"$f":"'Population at Risk'!V222/'Population at Risk'!V$5","v":3.720085944431357E-3},{"$f":"'Population at Risk'!W222/'Population at Risk'!W$5","v":4.0576719517984366E-3},{"$f":"'Population at Risk'!X222/'Population at Risk'!X$5","v":4.0576719517984366E-3},{"$f":"'Population at Risk'!Y222/'Population at Risk'!Y$5","v":4.5041254727531937E-3},{"$f":"'Population at Risk'!Z222/'Population at Risk'!Z$5","v":1.5095577798479283E-3},{"$f":"'Population at Risk'!AA222/'Population at Risk'!AA$5","v":3.6262919408213256E-3},{"$f":"'Population at Risk'!AB222/'Population at Risk'!AB$5","v":7.6391811720581751E-3},{"$f":"'Population at Risk'!AC222/'Population at Risk'!AC$5","v":3.7809647951496895E-3},{"$f":"'Population at Risk'!AD222/'Population at Risk'!AD$5","v":2.10227456891159E-3},{"$f":"'Population at Risk'!AE222/'Population at Risk'!AE$5","v":2.1932572196193415E-3},{"$f":"'Population at Risk'!AF222/'Population at Risk'!AF$5","v":2.3450085650978205E-3},{"$f":"'Population at Risk'!AG222/'Population at Risk'!AG$5","v":2.5967741130375655E-3},{"$f":"'Population at Risk'!AH222/'Population at Risk'!AH$5","v":2.8478403822180883E-3},{"$f":"'Population at Risk'!AI222/'Population at Risk'!AI$5","v":6.7409251368740824E-3},{"$f":"'Population at Risk'!AJ222/'Population at Risk'!AJ$5","v":3.3105054453477262E-3},{"$f":"'Population at Risk'!AK222/'Population at Risk'!AK$5","v":4.290007273108503E-3},{"$f":"'Population at Risk'!AL222/'Population at Risk'!AL$5","v":1.5382507450895522E-3},{"$f":"'Population at Risk'!AM222/'Population at Risk'!AM$5","v":2.3115723283041647E-3},{"$f":"'Population at Risk'!AN222/'Population at Risk'!AN$5","v":2.0104141896408133E-3},{"$f":"'Population at Risk'!AO222/'Population at Risk'!AO$5","v":2.0104141896408133E-3},{"$f":"'Population at Risk'!AP222/'Population at Risk'!AP$5","v":4.6338419141105777E-3},{"$f":"'Population at Risk'!AQ222/'Population at Risk'!AQ$5","v":4.548372978635958E-3},{"$f":"'Population at Risk'!AR222/'Population at Risk'!AR$5","v":4.2734497498290013E-3},{"$f":"'Population at Risk'!AS222/'Population at Risk'!AS$5","v":2.8206227724896647E-3},{"$f":"'Population at Risk'!AT222/'Population at Risk'!AT$5","v":0},{"$f":"'Population at Risk'!AU222/'Population at Risk'!AU$5","v":0},{"$f":"'Population at Risk'!AV222/'Population at Risk'!AV$5","v":5.3082304600512312E-3},{"$f":"'Population at Risk'!AW222/'Population at Risk'!AW$5","v":3.3281078372310192E-3},{"$f":"'Population at Risk'!AX222/'Population at Risk'!AX$5","v":6.7608907164850747E-3},{"$f":"'Population at Risk'!AY222/'Population at Risk'!AY$5","v":4.4544464111094823E-3},{"$f":"'Population at Risk'!AZ222/'Population at Risk'!AZ$5","v":3.6204160600965024E-3},{"$f":"'Population at Risk'!BA222/'Population at Risk'!BA$5","v":1.0775925244878722E-3},{"$f":"'Population at Risk'!BB222/'Population at Risk'!BB$5","v":5.1787099546975164E-3},{"$f":"'Population at Risk'!BC222/'Population at Risk'!BC$5","v":0},220]
[null,"Female 55-59",{"$f":"'Population at Risk'!C223/'Population at Risk'!C$5","v":7.4001120757861529E-3},{"$f":"'Population at Risk'!D223/'Population at Risk'!D$5","v":9.794699643307276E-3},{"$f":"'Population at Risk'!E223/'Population at Risk'!E$5","v":8.0886374251176642E-3},{"$f":"'Population at Risk'!F223/'Population at Risk'!F$5","v":2.7516184451179923E-3},{"$f":"'Population at Risk'!G223/'Population at Risk'!G$5","v":2.1875513354910432E-3},{"$f":"'Population at Risk'!H223/'Population at Risk'!H$5","v":3.0317463889205595E-3},{"$f":"'Population at Risk'!I223/'Population at Risk'!I$5","v":2.7048727939403315E-3},{"$f":"'Population at Risk'!J223/'Population at Risk'!J$5","v":5.0205408793076904E-3},{"$f":"'Population at Risk'!K223/'Population at Risk'!K$5","v":2.8565985431093809E-3},{"$f":"'Population at Risk'!L223/'Population at Risk'!L$5","v":2.3365959885802883E-3},{"$f":"'Population at Risk'!M223/'Population at Risk'!M$5","v":2.3365959885802883E-3},{"$f":"'Population at Risk'!N223/'Population at Risk'!N$5","v":3.3438439938547945E-3},{"$f":"'Population at Risk'!O223/'Population at Risk'!O$5","v":2.384634359047857E-3},{"$f":"'Population at Risk'!P223/'Population at Risk'!P$5","v":1.608398314324791E-2},{"$f":"'Population at Risk'!Q223/'Population at Risk'!Q$5","v":4.3342135849106711E-3},{"$f":"'Population at Risk'!R223/'Population at Risk'!R$5","v":1.6311028702419027E-2},{"$f":"'Population at Risk'!S223/'Population at Risk'!S$5","v":6.0766110008658716E-3},{"$f":"'Population at Risk'!T223/'Population at Risk'!T$5","v":8.1817121793855384E-3},{"$f":"'Population at Risk'!U223/'Population at Risk'!U$5","v":0},{"$f":"'Population at Risk'!V223/'Population at Risk'!V$5","v":3.3206607417808291E-3},{"$f":"'Population at Risk'!W223/'Population at Risk'!W$5","v":4.0771350100051937E-3},{"$f":"'Population at Risk'!X223/'Population at Risk'!X$5","v":4.0771350100051937E-3},{"$f":"'Population at Risk'!Y223/'Population at Risk'!Y$5","v":4.1450082698223905E-3},{"$f":"'Population at Risk'!Z223/'Population at Risk'!Z$5","v":1.4755999774486747E-3},{"$f":"'Population at Risk'!AA223/'Population at Risk'!AA$5","v":3.5089145991895302E-3},{"$f":"'Population at Risk'!AB223/'Population at Risk'!AB$5","v":7.3060669376727571E-3},{"$f":"'Population at Risk'!AC223/'Population at Risk'!AC$5","v":3.6778967578143273E-3},{"$f":"'Population at Risk'!AD223/'Population at Risk'!AD$5","v":2.0977259543145058E-3},{"$f":"'Population at Risk'!AE223/'Population at Risk'!AE$5","v":2.0745366710692636E-3},{"$f":"'Population at Risk'!AF223/'Population at Risk'!AF$5","v":2.2215163937624148E-3},{"$f":"'Population at Risk'!AG223/'Population at Risk'!AG$5","v":2.4562112805513845E-3},{"$f":"'Population at Risk'!AH223/'Population at Risk'!AH$5","v":2.7175148043136707E-3},{"$f":"'Population at Risk'!AI223/'Population at Risk'!AI$5","v":6.6106587264536569E-3},{"$f":"'Population at Risk'!AJ223/'Population at Risk'!AJ$5","v":3.3786757960694103E-3},{"$f":"'Population at Risk'!AK223/'Population at Risk'!AK$5","v":4.0308713309400966E-3},{"$f":"'Population at Risk'!AL223/'Population at Risk'!AL$5","v":1.719094592459597E-3},{"$f":"'Population at Risk'!AM223/'Population at Risk'!AM$5","v":2.1924747866740239E-3},{"$f":"'Population at Risk'!AN223/'Population at Risk'!AN$5","v":1.7273699043346997E-3},{"$f":"'Population at Risk'!AO223/'Population at Risk'!AO$5","v":1.7273699043346997E-3},{"$f":"'Population at Risk'!AP223/'Population at Risk'!AP$5","v":4.6723675510363773E-3},{"$f":"'Population at Risk'!AQ223/'Population at Risk'!AQ$5","v":4.435999833731212E-3},{"$f":"'Population at Risk'!AR223/'Population at Risk'!AR$5","v":4.191623603268667E-3},{"$f":"'Population at Risk'!AS223/'Population at Risk'!AS$5","v":2.7048727939403315E-3},{"$f":"'Population at Risk'!AT223/'Population at Risk'!AT$5","v":0},{"$f":"'Population at Risk'!AU223/'Population at Risk'!AU$5","v":0},{"$f":"'Population at Risk'!AV223/'Population at Risk'!AV$5","v":6.2712009981139172E-3},{"$f":"'Population at Risk'!AW223/'Population at Risk'!AW$5","v":3.1891956306381547E-3},{"$f":"'Population at Risk'!AX223/'Population at Risk'!AX$5","v":6.4585624219149554E-3},{"$f":"'Population at Risk'!AY223/'Population at Risk'!AY$5","v":4.534092231523402E-3},{"$f":"'Population at Risk'!AZ223/'Population at Risk'!AZ$5","v":3.7313306937166485E-3},{"$f":"'Population at Risk'!BA223/'Population at Risk'!BA$5","v":9.7061806741593007E-4},{"$f":"'Population at Risk'!BB223/'Population at Risk'!BB$5","v":4.2994380664704611E-3},{"$f":"'Population at Risk'!BC223/'Population at Risk'!BC$5","v":0},221]
[null,"Female 60-64",{"$f":"'Population at Risk'!C224/'Population at Risk'!C$5","v":5.8332643402522E-3},{"$f":"'Population at Risk'!D224/'Population at Risk'!D$5","v":8.3935796037732987E-3},{"$f":"'Population at Risk'!E224/'Population at Risk'!E$5","v":7.4813823631718936E-3},{"$f":"'Population at Risk'!F224/'Population at Risk'!F$5","v":2.5677056441589493E-3},{"$f":"'Population at Risk'!G224/'Population at Risk'!G$5","v":1.607630008297109E-3},{"$f":"'Population at Risk'!H224/'Population at Risk'!H$5","v":2.8287783488383312E-3},{"$f":"'Population at Risk'!I224/'Population at Risk'!I$5","v":2.5047674086743376E-3},{"$f":"'Population at Risk'!J224/'Population at Risk'!J$5","v":4.7418601302427884E-3},{"$f":"'Population at Risk'!K224/'Population at Risk'!K$5","v":3.3183795106045068E-3},{"$f":"'Population at Risk'!L224/'Population at Risk'!L$5","v":2.2492466058296229E-3},{"$f":"'Population at Risk'!M224/'Population at Risk'!M$5","v":2.2492466058296229E-3},{"$f":"'Population at Risk'!N224/'Population at Risk'!N$5","v":2.4939657756608458E-3},{"$f":"'Population at Risk'!O224/'Population at Risk'!O$5","v":2.1376543718607576E-3},{"$f":"'Population at Risk'!P224/'Population at Risk'!P$5","v":1.4408417768648218E-2},{"$f":"'Population at Risk'!Q224/'Population at Risk'!Q$5","v":3.7871769188539835E-3},{"$f":"'Population at Risk'!R224/'Population at Risk'!R$5","v":1.4155986108631837E-2},{"$f":"'Population at Risk'!S224/'Population at Risk'!S$5","v":5.2940709838844805E-3},{"$f":"'Population at Risk'!T224/'Population at Risk'!T$5","v":6.9643472015004041E-3},{"$f":"'Population at Risk'!U224/'Population at Risk'!U$5","v":0},{"$f":"'Population at Risk'!V224/'Population at Risk'!V$5","v":2.7682517585686912E-3},{"$f":"'Population at Risk'!W224/'Population at Risk'!W$5","v":3.7799585669311552E-3},{"$f":"'Population at Risk'!X224/'Population at Risk'!X$5","v":3.7799585669311552E-3},{"$f":"'Population at Risk'!Y224/'Population at Risk'!Y$5","v":3.6955495417693596E-3},{"$f":"'Population at Risk'!Z224/'Population at Risk'!Z$5","v":1.2963711587776056E-3},{"$f":"'Population at Risk'!AA224/'Population at Risk'!AA$5","v":3.0578272660446455E-3},{"$f":"'Population at Risk'!AB224/'Population at Risk'!AB$5","v":6.3474494592344931E-3},{"$f":"'Population at Risk'!AC224/'Population at Risk'!AC$5","v":3.24901411889292E-3},{"$f":"'Population at Risk'!AD224/'Population at Risk'!AD$5","v":1.8892798341929198E-3},{"$f":"'Population at Risk'!AE224/'Population at Risk'!AE$5","v":1.9950426824374375E-3},{"$f":"'Population at Risk'!AF224/'Population at Risk'!AF$5","v":2.5534671192671433E-3},{"$f":"'Population at Risk'!AG224/'Population at Risk'!AG$5","v":2.3620919360555956E-3},{"$f":"'Population at Risk'!AH224/'Population at Risk'!AH$5","v":2.2814149484490101E-3},{"$f":"'Population at Risk'!AI224/'Population at Risk'!AI$5","v":5.636967308740381E-3},{"$f":"'Population at Risk'!AJ224/'Population at Risk'!AJ$5","v":2.917330506646278E-3},{"$f":"'Population at Risk'!AK224/'Population at Risk'!AK$5","v":4.0711800442494971E-3},{"$f":"'Population at Risk'!AL224/'Population at Risk'!AL$5","v":1.519499340151554E-3},{"$f":"'Population at Risk'!AM224/'Population at Risk'!AM$5","v":1.7212616330092904E-3},{"$f":"'Population at Risk'!AN224/'Population at Risk'!AN$5","v":1.825145559297041E-3},{"$f":"'Population at Risk'!AO224/'Population at Risk'!AO$5","v":1.825145559297041E-3},{"$f":"'Population at Risk'!AP224/'Population at Risk'!AP$5","v":4.3962123668950474E-3},{"$f":"'Population at Risk'!AQ224/'Population at Risk'!AQ$5","v":3.7093850516914705E-3},{"$f":"'Population at Risk'!AR224/'Population at Risk'!AR$5","v":3.6807168269658882E-3},{"$f":"'Population at Risk'!AS224/'Population at Risk'!AS$5","v":2.5047674086743376E-3},{"$f":"'Population at Risk'!AT224/'Population at Risk'!AT$5","v":0},{"$f":"'Population at Risk'!AU224/'Population at Risk'!AU$5","v":0},{"$f":"'Population at Risk'!AV224/'Population at Risk'!AV$5","v":6.1327771756987349E-3},{"$f":"'Population at Risk'!AW224/'Population at Risk'!AW$5","v":2.7974772665833279E-3},{"$f":"'Population at Risk'!AX224/'Population at Risk'!AX$5","v":5.6878168511228944E-3},{"$f":"'Population at Risk'!AY224/'Population at Risk'!AY$5","v":4.0807682196514882E-3},{"$f":"'Population at Risk'!AZ224/'Population at Risk'!AZ$5","v":3.2621787773145922E-3},{"$f":"'Population at Risk'!BA224/'Population at Risk'!BA$5","v":7.6507541784549783E-4},{"$f":"'Population at Risk'!BB224/'Population at Risk'!BB$5","v":3.6347722876433133E-3},{"$f":"'Population at Risk'!BC224/'Population at Risk'!BC$5","v":0},222]
[null,"Female 65-69",{"$f":"'Population at Risk'!C225/'Population at Risk'!C$5","v":3.77142997183511E-3},{"$f":"'Population at Risk'!D225/'Population at Risk'!D$5","v":5.252995489168316E-3},{"$f":"'Population at Risk'!E225/'Population at Risk'!E$5","v":4.5514700556829879E-3},{"$f":"'Population at Risk'!F225/'Population at Risk'!F$5","v":2.103434143923567E-3},{"$f":"'Population at Risk'!G225/'Population at Risk'!G$5","v":1.2438552657331899E-3},{"$f":"'Population at Risk'!H225/'Population at Risk'!H$5","v":2.0494990229591808E-3},{"$f":"'Population at Risk'!I225/'Population at Risk'!I$5","v":1.848536832969991E-3},{"$f":"'Population at Risk'!J225/'Population at Risk'!J$5","v":3.3883086021703084E-3},{"$f":"'Population at Risk'!K225/'Population at Risk'!K$5","v":2.1864950366867796E-3},{"$f":"'Population at Risk'!L225/'Population at Risk'!L$5","v":1.4245121062772422E-3},{"$f":"'Population at Risk'!M225/'Population at Risk'!M$5","v":1.4245121062772422E-3},{"$f":"'Population at Risk'!N225/'Population at Risk'!N$5","v":1.9114145810775732E-3},{"$f":"'Population at Risk'!O225/'Population at Risk'!O$5","v":1.4544918255486616E-3},{"$f":"'Population at Risk'!P225/'Population at Risk'!P$5","v":9.8047038283801072E-3},{"$f":"'Population at Risk'!Q225/'Population at Risk'!Q$5","v":2.7618907689895777E-3},{"$f":"'Population at Risk'!R225/'Population at Risk'!R$5","v":9.1428271064915405E-3},{"$f":"'Population at Risk'!S225/'Population at Risk'!S$5","v":3.6836526095501668E-3},{"$f":"'Population at Risk'!T225/'Population at Risk'!T$5","v":4.8252642417169096E-3},{"$f":"'Population at Risk'!U225/'Population at Risk'!U$5","v":0},{"$f":"'Population at Risk'!V225/'Population at Risk'!V$5","v":1.7978943849630503E-3},{"$f":"'Population at Risk'!W225/'Population at Risk'!W$5","v":2.8254042057308335E-3},{"$f":"'Population at Risk'!X225/'Population at Risk'!X$5","v":2.8254042057308335E-3},{"$f":"'Population at Risk'!Y225/'Population at Risk'!Y$5","v":2.5332858403508281E-3},{"$f":"'Population at Risk'!Z225/'Population at Risk'!Z$5","v":7.2123934228089681E-4},{"$f":"'Population at Risk'!AA225/'Population at Risk'!AA$5","v":1.9198114139513803E-3},{"$f":"'Population at Risk'!AB225/'Population at Risk'!AB$5","v":4.0088775761592489E-3},{"$f":"'Population at Risk'!AC225/'Population at Risk'!AC$5","v":2.0641597472066055E-3},{"$f":"'Population at Risk'!AD225/'Population at Risk'!AD$5","v":1.2970579053912558E-3},{"$f":"'Population at Risk'!AE225/'Population at Risk'!AE$5","v":1.3207063709444295E-3},{"$f":"'Population at Risk'!AF225/'Population at Risk'!AF$5","v":1.7315404452908627E-3},{"$f":"'Population at Risk'!AG225/'Population at Risk'!AG$5","v":1.5636907902610328E-3},{"$f":"'Population at Risk'!AH225/'Population at Risk'!AH$5","v":1.38433542807223E-3},{"$f":"'Population at Risk'!AI225/'Population at Risk'!AI$5","v":3.8196405709036469E-3},{"$f":"'Population at Risk'!AJ225/'Population at Risk'!AJ$5","v":1.8857000522343108E-3},{"$f":"'Population at Risk'!AK225/'Population at Risk'!AK$5","v":2.807628311543367E-3},{"$f":"'Population at Risk'!AL225/'Population at Risk'!AL$5","v":1.1384128210441844E-3},{"$f":"'Population at Risk'!AM225/'Population at Risk'!AM$5","v":1.0337097076467232E-3},{"$f":"'Population at Risk'!AN225/'Population at Risk'!AN$5","v":1.1132353630490947E-3},{"$f":"'Population at Risk'!AO225/'Population at Risk'!AO$5","v":1.1132353630490947E-3},{"$f":"'Population at Risk'!AP225/'Population at Risk'!AP$5","v":3.4783029082636331E-3},{"$f":"'Population at Risk'!AQ225/'Population at Risk'!AQ$5","v":2.457664404318115E-3},{"$f":"'Population at Risk'!AR225/'Population at Risk'!AR$5","v":2.4740685974447038E-3},{"$f":"'Population at Risk'!AS225/'Population at Risk'!AS$5","v":1.848536832969991E-3},{"$f":"'Population at Risk'!AT225/'Population at Risk'!AT$5","v":0},{"$f":"'Population at Risk'!AU225/'Population at Risk'!AU$5","v":0},{"$f":"'Population at Risk'!AV225/'Population at Risk'!AV$5","v":4.5064249595734912E-3},{"$f":"'Population at Risk'!AW225/'Population at Risk'!AW$5","v":1.7082706577415993E-3},{"$f":"'Population at Risk'!AX225/'Population at Risk'!AX$5","v":4.1869591800776599E-3},{"$f":"'Population at Risk'!AY225/'Population at Risk'!AY$5","v":3.1422492904313302E-3},{"$f":"'Population at Risk'!AZ225/'Population at Risk'!AZ$5","v":2.5860540121410338E-3},{"$f":"'Population at Risk'!BA225/'Population at Risk'!BA$5","v":3.632707190670539E-4},{"$f":"'Population at Risk'!BB225/'Population at Risk'!BB$5","v":2.0756913127552091E-3},{"$f":"'Population at Risk'!BC225/'Population at Risk'!BC$5","v":0},223]
[null,"Female 70-74",{"$f":"'Population at Risk'!C226/'Population at Risk'!C$5","v":2.9025138950277301E-3},{"$f":"'Population at Risk'!D226/'Population at Risk'!D$5","v":3.9064684779134429E-3},{"$f":"'Population at Risk'!E226/'Population at Risk'!E$5","v":3.278938316524599E-3},{"$f":"'Population at Risk'!F226/'Population at Risk'!F$5","v":1.5136198400531073E-3},{"$f":"'Population at Risk'!G226/'Population at Risk'!G$5","v":1.02261618684784E-3},{"$f":"'Population at Risk'!H226/'Population at Risk'!H$5","v":1.5789507778920218E-3},{"$f":"'Population at Risk'!I226/'Population at Risk'!I$5","v":1.4002666509747681E-3},{"$f":"'Population at Risk'!J226/'Population at Risk'!J$5","v":2.6101462028583137E-3},{"$f":"'Population at Risk'!K226/'Population at Risk'!K$5","v":1.496022919838323E-3},{"$f":"'Population at Risk'!L226/'Population at Risk'!L$5","v":1.3718607347926624E-3},{"$f":"'Population at Risk'!M226/'Population at Risk'!M$5","v":1.3718607347926624E-3},{"$f":"'Population at Risk'!N226/'Population at Risk'!N$5","v":1.5360913018282708E-3},{"$f":"'Population at Risk'!O226/'Population at Risk'!O$5","v":9.981806645922187E-4},{"$f":"'Population at Risk'!P226/'Population at Risk'!P$5","v":8.2036397103762513E-3},{"$f":"'Population at Risk'!Q226/'Population at Risk'!Q$5","v":2.3297581996918888E-3},{"$f":"'Population at Risk'!R226/'Population at Risk'!R$5","v":7.8712015054126123E-3},{"$f":"'Population at Risk'!S226/'Population at Risk'!S$5","v":2.7578111527855743E-3},{"$f":"'Population at Risk'!T226/'Population at Risk'!T$5","v":3.5921230936905362E-3},{"$f":"'Population at Risk'!U226/'Population at Risk'!U$5","v":0},{"$f":"'Population at Risk'!V226/'Population at Risk'!V$5","v":1.2720362584940888E-3},{"$f":"'Population at Risk'!W226/'Population at Risk'!W$5","v":2.1272144970466956E-3},{"$f":"'Population at Risk'!X226/'Population at Risk'!X$5","v":2.1272144970466956E-3},{"$f":"'Population at Risk'!Y226/'Population at Risk'!Y$5","v":1.8841700553416181E-3},{"$f":"'Population at Risk'!Z226/'Population at Risk'!Z$5","v":4.3182806882685566E-4},{"$f":"'Population at Risk'!AA226/'Population at Risk'!AA$5","v":1.4609151725571007E-3},{"$f":"'Population at Risk'!AB226/'Population at Risk'!AB$5","v":3.0306963054514587E-3},{"$f":"'Population at Risk'!AC226/'Population at Risk'!AC$5","v":1.5926573800800635E-3},{"$f":"'Population at Risk'!AD226/'Population at Risk'!AD$5","v":1.0419613897516839E-3},{"$f":"'Population at Risk'!AE226/'Population at Risk'!AE$5","v":1.0527867430285246E-3},{"$f":"'Population at Risk'!AF226/'Population at Risk'!AF$5","v":1.3766815392189081E-3},{"$f":"'Population at Risk'!AG226/'Population at Risk'!AG$5","v":1.2464791344993669E-3},{"$f":"'Population at Risk'!AH226/'Population at Risk'!AH$5","v":1.0101907177824383E-3},{"$f":"'Population at Risk'!AI226/'Population at Risk'!AI$5","v":2.8522938163898157E-3},{"$f":"'Population at Risk'!AJ226/'Population at Risk'!AJ$5","v":1.3540689531706617E-3},{"$f":"'Population at Risk'!AK226/'Population at Risk'!AK$5","v":2.4404769169569266E-3},{"$f":"'Population at Risk'!AL226/'Population at Risk'!AL$5","v":8.8615088910825712E-4},{"$f":"'Population at Risk'!AM226/'Population at Risk'!AM$5","v":6.8715495542875493E-4},{"$f":"'Population at Risk'!AN226/'Population at Risk'!AN$5","v":9.8226649680802471E-4},{"$f":"'Population at Risk'!AO226/'Population at Risk'!AO$5","v":9.8226649680802471E-4},{"$f":"'Population at Risk'!AP226/'Population at Risk'!AP$5","v":2.8190362335412805E-3},{"$f":"'Population at Risk'!AQ226/'Population at Risk'!AQ$5","v":1.8465814828104465E-3},{"$f":"'Population at Risk'!AR226/'Population at Risk'!AR$5","v":1.884676670718257E-3},{"$f":"'Population at Risk'!AS226/'Population at Risk'!AS$5","v":1.4002666509747681E-3},{"$f":"'Population at Risk'!AT226/'Population at Risk'!AT$5","v":0},{"$f":"'Population at Risk'!AU226/'Population at Risk'!AU$5","v":0},{"$f":"'Population at Risk'!AV226/'Population at Risk'!AV$5","v":3.6277124003722201E-3},{"$f":"'Population at Risk'!AW226/'Population at Risk'!AW$5","v":1.3141465017829834E-3},{"$f":"'Population at Risk'!AX226/'Population at Risk'!AX$5","v":3.3505232708155703E-3},{"$f":"'Population at Risk'!AY226/'Population at Risk'!AY$5","v":2.409476299346363E-3},{"$f":"'Population at Risk'!AZ226/'Population at Risk'!AZ$5","v":2.0171770934235057E-3},{"$f":"'Population at Risk'!BA226/'Population at Risk'!BA$5","v":1.7972340838054245E-4},{"$f":"'Population at Risk'!BB226/'Population at Risk'!BB$5","v":1.47028134653494E-3},{"$f":"'Population at Risk'!BC226/'Population at Risk'!BC$5","v":0},224]
[null,"Female 75-79",{"$f":"'Population at Risk'!C227/'Population at Risk'!C$5","v":1.7504405512327702E-3},{"$f":"'Population at Risk'!D227/'Population at Risk'!D$5","v":2.1928735096144176E-3},{"$f":"'Population at Risk'!E227/'Population at Risk'!E$5","v":1.7095810998137258E-3},{"$f":"'Population at Risk'!F227/'Population at Risk'!F$5","v":8.2051445874932753E-4},{"$f":"'Population at Risk'!G227/'Population at Risk'!G$5","v":5.0028338511582846E-4},{"$f":"'Population at Risk'!H227/'Population at Risk'!H$5","v":8.2685135147889371E-4},{"$f":"'Population at Risk'!I227/'Population at Risk'!I$5","v":8.5354787855697681E-4},{"$f":"'Population at Risk'!J227/'Population at Risk'!J$5","v":1.4969815406198764E-3},{"$f":"'Population at Risk'!K227/'Population at Risk'!K$5","v":8.2211515932840236E-4},{"$f":"'Population at Risk'!L227/'Population at Risk'!L$5","v":7.3188951910467222E-4},{"$f":"'Population at Risk'!M227/'Population at Risk'!M$5","v":7.3188951910467222E-4},{"$f":"'Population at Risk'!N227/'Population at Risk'!N$5","v":8.7138571495789282E-4},{"$f":"'Population at Risk'!O227/'Population at Risk'!O$5","v":4.8102801550825011E-4},{"$f":"'Population at Risk'!P227/'Population at Risk'!P$5","v":5.1647986141155231E-3},{"$f":"'Population at Risk'!Q227/'Population at Risk'!Q$5","v":1.2734815867939473E-3},{"$f":"'Population at Risk'!R227/'Population at Risk'!R$5","v":4.1958279326739347E-3},{"$f":"'Population at Risk'!S227/'Population at Risk'!S$5","v":1.523901749893565E-3},{"$f":"'Population at Risk'!T227/'Population at Risk'!T$5","v":2.1206106208913615E-3},{"$f":"'Population at Risk'!U227/'Population at Risk'!U$5","v":0},{"$f":"'Population at Risk'!V227/'Population at Risk'!V$5","v":6.5623617435382807E-4},{"$f":"'Population at Risk'!W227/'Population at Risk'!W$5","v":1.0488322663431404E-3},{"$f":"'Population at Risk'!X227/'Population at Risk'!X$5","v":1.0488322663431404E-3},{"$f":"'Population at Risk'!Y227/'Population at Risk'!Y$5","v":1.0369260542047998E-3},{"$f":"'Population at Risk'!Z227/'Population at Risk'!Z$5","v":2.6303950539312271E-4},{"$f":"'Population at Risk'!AA227/'Population at Risk'!AA$5","v":8.0691136263659382E-4},{"$f":"'Population at Risk'!AB227/'Population at Risk'!AB$5","v":1.6790781142232E-3},{"$f":"'Population at Risk'!AC227/'Population at Risk'!AC$5","v":8.989741414353403E-4},{"$f":"'Population at Risk'!AD227/'Population at Risk'!AD$5","v":5.3603727347872041E-4},{"$f":"'Population at Risk'!AE227/'Population at Risk'!AE$5","v":5.5061959272538388E-4},{"$f":"'Population at Risk'!AF227/'Population at Risk'!AF$5","v":7.5985669372472203E-4},{"$f":"'Population at Risk'!AG227/'Population at Risk'!AG$5","v":6.5192294443636883E-4},{"$f":"'Population at Risk'!AH227/'Population at Risk'!AH$5","v":5.1985267957566984E-4},{"$f":"'Population at Risk'!AI227/'Population at Risk'!AI$5","v":1.6268267327307301E-3},{"$f":"'Population at Risk'!AJ227/'Population at Risk'!AJ$5","v":7.2522688390785808E-4},{"$f":"'Population at Risk'!AK227/'Population at Risk'!AK$5","v":1.2117304938980289E-3},{"$f":"'Population at Risk'!AL227/'Population at Risk'!AL$5","v":4.4781229771790861E-4},{"$f":"'Population at Risk'!AM227/'Population at Risk'!AM$5","v":3.5857211475973474E-4},{"$f":"'Population at Risk'!AN227/'Population at Risk'!AN$5","v":3.4991176889659597E-4},{"$f":"'Population at Risk'!AO227/'Population at Risk'!AO$5","v":3.4991176889659597E-4},{"$f":"'Population at Risk'!AP227/'Population at Risk'!AP$5","v":1.6238046452814502E-3},{"$f":"'Population at Risk'!AQ227/'Population at Risk'!AQ$5","v":8.3167880589985865E-4},{"$f":"'Population at Risk'!AR227/'Population at Risk'!AR$5","v":1.0361629614598152E-3},{"$f":"'Population at Risk'!AS227/'Population at Risk'!AS$5","v":8.5354787855697681E-4},{"$f":"'Population at Risk'!AT227/'Population at Risk'!AT$5","v":0},{"$f":"'Population at Risk'!AU227/'Population at Risk'!AU$5","v":0},{"$f":"'Population at Risk'!AV227/'Population at Risk'!AV$5","v":1.9890124150727688E-3},{"$f":"'Population at Risk'!AW227/'Population at Risk'!AW$5","v":6.7128524380461667E-4},{"$f":"'Population at Risk'!AX227/'Population at Risk'!AX$5","v":1.9454557806421449E-3},{"$f":"'Population at Risk'!AY227/'Population at Risk'!AY$5","v":1.2768014238601698E-3},{"$f":"'Population at Risk'!AZ227/'Population at Risk'!AZ$5","v":1.1371153672681458E-3},{"$f":"'Population at Risk'!BA227/'Population at Risk'!BA$5","v":8.7949753037286723E-5},{"$f":"'Population at Risk'!BB227/'Population at Risk'!BB$5","v":6.7015969522778477E-4},{"$f":"'Population at Risk'!BC227/'Population at Risk'!BC$5","v":0},225]
[null,"Female 80-84",{"$f":"'Population at Risk'!C228/'Population at Risk'!C$5","v":1.3661122864910443E-3},{"$f":"'Population at Risk'!D228/'Population at Risk'!D$5","v":1.6799251257220941E-3},{"$f":"'Population at Risk'!E228/'Population at Risk'!E$5","v":1.2825007808477326E-3},{"$f":"'Population at Risk'!F228/'Population at Risk'!F$5","v":6.4716633366144148E-4},{"$f":"'Population at Risk'!G228/'Population at Risk'!G$5","v":4.1804502043925389E-4},{"$f":"'Population at Risk'!H228/'Population at Risk'!H$5","v":6.1748834902109688E-4},{"$f":"'Population at Risk'!I228/'Population at Risk'!I$5","v":5.1212872713418613E-4},{"$f":"'Population at Risk'!J228/'Population at Risk'!J$5","v":1.0286744811211449E-3},{"$f":"'Population at Risk'!K228/'Population at Risk'!K$5","v":5.163284232367405E-4},{"$f":"'Population at Risk'!L228/'Population at Risk'!L$5","v":5.9121994579486065E-4},{"$f":"'Population at Risk'!M228/'Population at Risk'!M$5","v":5.9121994579486065E-4},{"$f":"'Population at Risk'!N228/'Population at Risk'!N$5","v":6.9988037543337715E-4},{"$f":"'Population at Risk'!O228/'Population at Risk'!O$5","v":3.8561750003553933E-4},{"$f":"'Population at Risk'!P228/'Population at Risk'!P$5","v":3.8095446696805096E-3},{"$f":"'Population at Risk'!Q228/'Population at Risk'!Q$5","v":9.0682364920802942E-4},{"$f":"'Population at Risk'!R228/'Population at Risk'!R$5","v":3.4890440830523898E-3},{"$f":"'Population at Risk'!S228/'Population at Risk'!S$5","v":1.1936796079144527E-3},{"$f":"'Population at Risk'!T228/'Population at Risk'!T$5","v":1.7886101336238389E-3},{"$f":"'Population at Risk'!U228/'Population at Risk'!U$5","v":0},{"$f":"'Population at Risk'!V228/'Population at Risk'!V$5","v":4.3169620299655801E-4},{"$f":"'Population at Risk'!W228/'Population at Risk'!W$5","v":7.7286240480008877E-4},{"$f":"'Population at Risk'!X228/'Population at Risk'!X$5","v":7.7286240480008877E-4},{"$f":"'Population at Risk'!Y228/'Population at Risk'!Y$5","v":7.0106907245153828E-4},{"$f":"'Population at Risk'!Z228/'Population at Risk'!Z$5","v":2.2368992978849116E-4},{"$f":"'Population at Risk'!AA228/'Population at Risk'!AA$5","v":6.1645839670734087E-4},{"$f":"'Population at Risk'!AB228/'Population at Risk'!AB$5","v":1.2959823534042048E-3},{"$f":"'Population at Risk'!AC228/'Population at Risk'!AC$5","v":6.9920211000526467E-4},{"$f":"'Population at Risk'!AD228/'Population at Risk'!AD$5","v":4.5731232737375975E-4},{"$f":"'Population at Risk'!AE228/'Population at Risk'!AE$5","v":4.7281465027505787E-4},{"$f":"'Population at Risk'!AF228/'Population at Risk'!AF$5","v":5.5424841189332665E-4},{"$f":"'Population at Risk'!AG228/'Population at Risk'!AG$5","v":5.5980339793992525E-4},{"$f":"'Population at Risk'!AH228/'Population at Risk'!AH$5","v":3.7264520558579568E-4},{"$f":"'Population at Risk'!AI228/'Population at Risk'!AI$5","v":1.3137509825196252E-3},{"$f":"'Population at Risk'!AJ228/'Population at Risk'!AJ$5","v":4.8770716210397438E-4},{"$f":"'Population at Risk'!AK228/'Population at Risk'!AK$5","v":9.9723161764899912E-4},{"$f":"'Population at Risk'!AL228/'Population at Risk'!AL$5","v":3.5163784451674703E-4},{"$f":"'Population at Risk'!AM228/'Population at Risk'!AM$5","v":2.2825771194196075E-4},{"$f":"'Population at Risk'!AN228/'Population at Risk'!AN$5","v":4.1076598957426487E-4},{"$f":"'Population at Risk'!AO228/'Population at Risk'!AO$5","v":4.1076598957426487E-4},{"$f":"'Population at Risk'!AP228/'Population at Risk'!AP$5","v":1.2516394320863419E-3},{"$f":"'Population at Risk'!AQ228/'Population at Risk'!AQ$5","v":5.9007378966079355E-4},{"$f":"'Population at Risk'!AR228/'Population at Risk'!AR$5","v":7.9869831036133605E-4},{"$f":"'Population at Risk'!AS228/'Population at Risk'!AS$5","v":5.1212872713418613E-4},{"$f":"'Population at Risk'!AT228/'Population at Risk'!AT$5","v":0},{"$f":"'Population at Risk'!AU228/'Population at Risk'!AU$5","v":0},{"$f":"'Population at Risk'!AV228/'Population at Risk'!AV$5","v":1.4159071429331574E-3},{"$f":"'Population at Risk'!AW228/'Population at Risk'!AW$5","v":5.101433880156976E-4},{"$f":"'Population at Risk'!AX228/'Population at Risk'!AX$5","v":1.3691478182258929E-3},{"$f":"'Population at Risk'!AY228/'Population at Risk'!AY$5","v":9.7490351709697066E-4},{"$f":"'Population at Risk'!AZ228/'Population at Risk'!AZ$5","v":8.925812933413069E-4},{"$f":"'Population at Risk'!BA228/'Population at Risk'!BA$5","v":5.8633168691524493E-5},{"$f":"'Population at Risk'!BB228/'Population at Risk'!BB$5","v":4.2372530994560994E-4},{"$f":"'Population at Risk'!BC228/'Population at Risk'!BC$5","v":0},226]
[null,"Female 85-89",{"$f":"'Population at Risk'!C229/'Population at Risk'!C$5","v":1.0015827505390435E-3},{"$f":"'Population at Risk'!D229/'Population at Risk'!D$5","v":1.1547089179997597E-3},{"$f":"'Population at Risk'!E229/'Population at Risk'!E$5","v":8.1384627153991665E-4},{"$f":"'Population at Risk'!F229/'Population at Risk'!F$5","v":4.1768643473557313E-4},{"$f":"'Population at Risk'!G229/'Population at Risk'!G$5","v":2.398618969733424E-4},{"$f":"'Population at Risk'!H229/'Population at Risk'!H$5","v":3.6638525430114437E-4},{"$f":"'Population at Risk'!I229/'Population at Risk'!I$5","v":2.705585728256077E-4},{"$f":"'Population at Risk'!J229/'Population at Risk'!J$5","v":5.7637791938305405E-4},{"$f":"'Population at Risk'!K229/'Population at Risk'!K$5","v":2.2558037908401287E-4},{"$f":"'Population at Risk'!L229/'Population at Risk'!L$5","v":3.180355570482698E-4},{"$f":"'Population at Risk'!M229/'Population at Risk'!M$5","v":3.180355570482698E-4},{"$f":"'Population at Risk'!N229/'Population at Risk'!N$5","v":4.556151948984609E-4},{"$f":"'Population at Risk'!O229/'Population at Risk'!O$5","v":2.3455085053708063E-4},{"$f":"'Population at Risk'!P229/'Population at Risk'!P$5","v":2.2216725109021735E-3},{"$f":"'Population at Risk'!Q229/'Population at Risk'!Q$5","v":5.9581914857711668E-4},{"$f":"'Population at Risk'!R229/'Population at Risk'!R$5","v":2.4232589129881549E-3},{"$f":"'Population at Risk'!S229/'Population at Risk'!S$5","v":7.9523366615773315E-4},{"$f":"'Population at Risk'!T229/'Population at Risk'!T$5","v":1.2486844265147104E-3},{"$f":"'Population at Risk'!U229/'Population at Risk'!U$5","v":0},{"$f":"'Population at Risk'!V229/'Population at Risk'!V$5","v":2.3323184121626123E-4},{"$f":"'Population at Risk'!W229/'Population at Risk'!W$5","v":4.7854348331401506E-4},{"$f":"'Population at Risk'!X229/'Population at Risk'!X$5","v":4.7854348331401506E-4},{"$f":"'Population at Risk'!Y229/'Population at Risk'!Y$5","v":3.8766011518564126E-4},{"$f":"'Population at Risk'!Z229/'Population at Risk'!Z$5","v":1.4995378811494733E-4},{"$f":"'Population at Risk'!AA229/'Population at Risk'!AA$5","v":3.778007204574853E-4},{"$f":"'Population at Risk'!AB229/'Population at Risk'!AB$5","v":8.7911506546066985E-4},{"$f":"'Population at Risk'!AC229/'Population at Risk'!AC$5","v":4.4554700399969963E-4},{"$f":"'Population at Risk'!AD229/'Population at Risk'!AD$5","v":2.7421048643300877E-4},{"$f":"'Population at Risk'!AE229/'Population at Risk'!AE$5","v":2.8727978750889597E-4},{"$f":"'Population at Risk'!AF229/'Population at Risk'!AF$5","v":3.9333758263397373E-4},{"$f":"'Population at Risk'!AG229/'Population at Risk'!AG$5","v":3.4013371014071409E-4},{"$f":"'Population at Risk'!AH229/'Population at Risk'!AH$5","v":1.9473445844946208E-4},{"$f":"'Population at Risk'!AI229/'Population at Risk'!AI$5","v":8.9974949704309845E-4},{"$f":"'Population at Risk'!AJ229/'Population at Risk'!AJ$5","v":1.9951656631526224E-4},{"$f":"'Population at Risk'!AK229/'Population at Risk'!AK$5","v":6.0210210876920694E-4},{"$f":"'Population at Risk'!AL229/'Population at Risk'!AL$5","v":1.9986253555866391E-4},{"$f":"'Population at Risk'!AM229/'Population at Risk'!AM$5","v":1.0209344934131337E-4},{"$f":"'Population at Risk'!AN229/'Population at Risk'!AN$5","v":2.1298977237184103E-4},{"$f":"'Population at Risk'!AO229/'Population at Risk'!AO$5","v":2.1298977237184103E-4},{"$f":"'Population at Risk'!AP229/'Population at Risk'!AP$5","v":8.0670448446760904E-4},{"$f":"'Population at Risk'!AQ229/'Population at Risk'!AQ$5","v":3.4072502290124563E-4},{"$f":"'Population at Risk'!AR229/'Population at Risk'!AR$5","v":5.0883823302048296E-4},{"$f":"'Population at Risk'!AS229/'Population at Risk'!AS$5","v":2.705585728256077E-4},{"$f":"'Population at Risk'!AT229/'Population at Risk'!AT$5","v":0},{"$f":"'Population at Risk'!AU229/'Population at Risk'!AU$5","v":0},{"$f":"'Population at Risk'!AV229/'Population at Risk'!AV$5","v":8.4842054993216969E-4},{"$f":"'Population at Risk'!AW229/'Population at Risk'!AW$5","v":2.8387684439498716E-4},{"$f":"'Population at Risk'!AX229/'Population at Risk'!AX$5","v":8.0949615530144037E-4},{"$f":"'Population at Risk'!AY229/'Population at Risk'!AY$5","v":6.1891059673720378E-4},{"$f":"'Population at Risk'!AZ229/'Population at Risk'!AZ$5","v":5.7717703088736873E-4},{"$f":"'Population at Risk'!BA229/'Population at Risk'!BA$5","v":2.6651440314329312E-5},{"$f":"'Population at Risk'!BB229/'Population at Risk'!BB$5","v":3.0494039042110844E-4},{"$f":"'Population at Risk'!BC229/'Population at Risk'!BC$5","v":0},227]
[null,"Female 90+",{"$f":"'Population at Risk'!C230/'Population at Risk'!C$5","v":6.1026669916564968E-4},{"$f":"'Population at Risk'!D230/'Population at Risk'!D$5","v":7.1996791102375466E-4},{"$f":"'Population at Risk'!E230/'Population at Risk'!E$5","v":5.228269391471601E-4},{"$f":"'Population at Risk'!F230/'Population at Risk'!F$5","v":2.1297055367940291E-4},{"$f":"'Population at Risk'!G230/'Population at Risk'!G$5","v":1.5077033524038666E-4},{"$f":"'Population at Risk'!H230/'Population at Risk'!H$5","v":2.3851481292660396E-4},{"$f":"'Population at Risk'!I230/'Population at Risk'!I$5","v":2.2224454196389208E-4},{"$f":"'Population at Risk'!J230/'Population at Risk'!J$5","v":3.2421257965296792E-4},{"$f":"'Population at Risk'!K230/'Population at Risk'!K$5","v":9.023215163360514E-5},{"$f":"'Population at Risk'!L230/'Population at Risk'!L$5","v":1.8552074161149075E-4},{"$f":"'Population at Risk'!M230/'Population at Risk'!M$5","v":1.8552074161149075E-4},{"$f":"'Population at Risk'!N230/'Population at Risk'!N$5","v":2.0268812852897308E-4},{"$f":"'Population at Risk'!O230/'Population at Risk'!O$5","v":1.0534911083445146E-4},{"$f":"'Population at Risk'!P230/'Population at Risk'!P$5","v":1.3147986028100875E-3},{"$f":"'Population at Risk'!Q230/'Population at Risk'!Q$5","v":3.7320540075709514E-4},{"$f":"'Population at Risk'!R230/'Population at Risk'!R$5","v":1.3312965633083072E-3},{"$f":"'Population at Risk'!S230/'Population at Risk'!S$5","v":5.0599318168391958E-4},{"$f":"'Population at Risk'!T230/'Population at Risk'!T$5","v":7.7504550611257885E-4},{"$f":"'Population at Risk'!U230/'Population at Risk'!U$5","v":0},{"$f":"'Population at Risk'!V230/'Population at Risk'!V$5","v":1.7818333210931758E-4},{"$f":"'Population at Risk'!W230/'Population at Risk'!W$5","v":3.1707175581542103E-4},{"$f":"'Population at Risk'!X230/'Population at Risk'!X$5","v":3.1707175581542103E-4},{"$f":"'Population at Risk'!Y230/'Population at Risk'!Y$5","v":2.4606488380380347E-4},{"$f":"'Population at Risk'!Z230/'Population at Risk'!Z$5","v":9.7842187989894718E-5},{"$f":"'Population at Risk'!AA230/'Population at Risk'!AA$5","v":2.1470318829912665E-4},{"$f":"'Population at Risk'!AB230/'Population at Risk'!AB$5","v":5.4984267599640928E-4},{"$f":"'Population at Risk'!AC230/'Population at Risk'!AC$5","v":2.5940547364800866E-4},{"$f":"'Population at Risk'!AD230/'Population at Risk'!AD$5","v":1.5391169238497911E-4},{"$f":"'Population at Risk'!AE230/'Population at Risk'!AE$5","v":1.5560988490065199E-4},{"$f":"'Population at Risk'!AF230/'Population at Risk'!AF$5","v":2.6818471543225487E-4},{"$f":"'Population at Risk'!AG230/'Population at Risk'!AG$5","v":1.842390929928868E-4},{"$f":"'Population at Risk'!AH230/'Population at Risk'!AH$5","v":9.8418711181801565E-5},{"$f":"'Population at Risk'!AI230/'Population at Risk'!AI$5","v":5.6127067060872415E-4},{"$f":"'Population at Risk'!AJ230/'Population at Risk'!AJ$5","v":1.4567876270638196E-4},{"$f":"'Population at Risk'!AK230/'Population at Risk'!AK$5","v":3.8760323252017698E-4},{"$f":"'Population at Risk'!AL230/'Population at Risk'!AL$5","v":1.0969898568257491E-4},{"$f":"'Population at Risk'!AM230/'Population at Risk'!AM$5","v":5.4781850866070583E-5},{"$f":"'Population at Risk'!AN230/'Population at Risk'!AN$5","v":1.0649488618592052E-4},{"$f":"'Population at Risk'!AO230/'Population at Risk'!AO$5","v":1.0649488618592052E-4},{"$f":"'Population at Risk'!AP230/'Population at Risk'!AP$5","v":5.4889171108105366E-4},{"$f":"'Population at Risk'!AQ230/'Population at Risk'!AQ$5","v":1.5332626030556054E-4},{"$f":"'Population at Risk'!AR230/'Population at Risk'!AR$5","v":3.0931685843085756E-4},{"$f":"'Population at Risk'!AS230/'Population at Risk'!AS$5","v":2.2224454196389208E-4},{"$f":"'Population at Risk'!AT230/'Population at Risk'!AT$5","v":0},{"$f":"'Population at Risk'!AU230/'Population at Risk'!AU$5","v":0},{"$f":"'Population at Risk'!AV230/'Population at Risk'!AV$5","v":6.5738545921896594E-4},{"$f":"'Population at Risk'!AW230/'Population at Risk'!AW$5","v":1.4026855840693485E-4},{"$f":"'Population at Risk'!AX230/'Population at Risk'!AX$5","v":4.7970142536381651E-4},{"$f":"'Population at Risk'!AY230/'Population at Risk'!AY$5","v":3.746875206468162E-4},{"$f":"'Population at Risk'!AZ230/'Population at Risk'!AZ$5","v":3.2561978512451111E-4},{"$f":"'Population at Risk'!BA230/'Population at Risk'!BA$5","v":1.8656008220030517E-5},{"$f":"'Population at Risk'!BB230/'Population at Risk'!BB$5","v":1.8970128938987558E-4},{"$f":"'Population at Risk'!BC230/'Population at Risk'!BC$5","v":0},228]
[null,"Male 0-4",{"$f":"'Population at Risk'!C231/'Population at Risk'!C$5","v":0},{"$f":"'Population at Risk'!D231/'Population at Risk'!D$5","v":0},{"$f":"'Population at Risk'!E231/'Population at Risk'!E$5","v":0},{"$f":"'Population at Risk'!F231/'Population at Risk'!F$5","v":0},{"$f":"'Population at Risk'!G231/'Population at Risk'!G$5","v":0},{"$f":"'Population at Risk'!H231/'Population at Risk'!H$5","v":0},{"$f":"'Population at Risk'!I231/'Population at Risk'!I$5","v":0},{"$f":"'Population at Risk'!J231/'Population at Risk'!J$5","v":0},{"$f":"'Population at Risk'!K231/'Population at Risk'!K$5","v":0},{"$f":"'Population at Risk'!L231/'Population at Risk'!L$5","v":0},{"$f":"'Population at Risk'!M231/'Population at Risk'!M$5","v":0},{"$f":"'Population at Risk'!N231/'Population at Risk'!N$5","v":0},{"$f":"'Population at Risk'!O231/'Population at Risk'!O$5","v":0},{"$f":"'Population at Risk'!P231/'Population at Risk'!P$5","v":0},{"$f":"'Population at Risk'!Q231/'Population at Risk'!Q$5","v":0},{"$f":"'Population at Risk'!R231/'Population at Risk'!R$5","v":0},{"$f":"'Population at Risk'!S231/'Population at Risk'!S$5","v":0},{"$f":"'Population at Risk'!T231/'Population at Risk'!T$5","v":0},{"$f":"'Population at Risk'!U231/'Population at Risk'!U$5","v":0},{"$f":"'Population at Risk'!V231/'Population at Risk'!V$5","v":0},{"$f":"'Population at Risk'!W231/'Population at Risk'!W$5","v":0},{"$f":"'Population at Risk'!X231/'Population at Risk'!X$5","v":0},{"$f":"'Population at Risk'!Y231/'Population at Risk'!Y$5","v":0},{"$f":"'Population at Risk'!Z231/'Population at Risk'!Z$5","v":0},{"$f":"'Population at Risk'!AA231/'Population at Risk'!AA$5","v":0},{"$f":"'Population at Risk'!AB231/'Population at Risk'!AB$5","v":0},{"$f":"'Population at Risk'!AC231/'Population at Risk'!AC$5","v":0},{"$f":"'Population at Risk'!AD231/'Population at Risk'!AD$5","v":0},{"$f":"'Population at Risk'!AE231/'Population at Risk'!AE$5","v":0},{"$f":"'Population at Risk'!AF231/'Population at Risk'!AF$5","v":0},{"$f":"'Population at Risk'!AG231/'Population at Risk'!AG$5","v":0},{"$f":"'Population at Risk'!AH231/'Population at Risk'!AH$5","v":0},{"$f":"'Population at Risk'!AI231/'Population at Risk'!AI$5","v":0},{"$f":"'Population at Risk'!AJ231/'Population at Risk'!AJ$5","v":0},{"$f":"'Population at Risk'!AK231/'Population at Risk'!AK$5","v":0},{"$f":"'Population at Risk'!AL231/'Population at Risk'!AL$5","v":0},{"$f":"'Population at Risk'!AM231/'Population at Risk'!AM$5","v":0},{"$f":"'Population at Risk'!AN231/'Population at Risk'!AN$5","v":0},{"$f":"'Population at Risk'!AO231/'Population at Risk'!AO$5","v":0},{"$f":"'Population at Risk'!AP231/'Population at Risk'!AP$5","v":0},{"$f":"'Population at Risk'!AQ231/'Population at Risk'!AQ$5","v":0},{"$f":"'Population at Risk'!AR231/'Population at Risk'!AR$5","v":0},{"$f":"'Population at Risk'!AS231/'Population at Risk'!AS$5","v":0},{"$f":"'Population at Risk'!AT231/'Population at Risk'!AT$5","v":0},{"$f":"'Population at Risk'!AU231/'Population at Risk'!AU$5","v":0},{"$f":"'Population at Risk'!AV231/'Population at Risk'!AV$5","v":0},{"$f":"'Population at Risk'!AW231/'Population at Risk'!AW$5","v":0},{"$f":"'Population at Risk'!AX231/'Population at Risk'!AX$5","v":0},{"$f":"'Population at Risk'!AY231/'Population at Risk'!AY$5","v":0},{"$f":"'Population at Risk'!AZ231/'Population at Risk'!AZ$5","v":0},{"$f":"'Population at Risk'!BA231/'Population at Risk'!BA$5","v":0},{"$f":"'Population at Risk'!BB231/'Population at Risk'!BB$5","v":0},{"$f":"'Population at Risk'!BC231/'Population at Risk'!BC$5","v":0},229]
[null,"Male 5-9",{"$f":"'Population at Risk'!C232/'Population at Risk'!C$5","v":0},{"$f":"'Population at Risk'!D232/'Population at Risk'!D$5","v":0},{"$f":"'Population at Risk'!E232/'Population at Risk'!E$5","v":0},{"$f":"'Population at Risk'!F232/'Population at Risk'!F$5","v":0},{"$f":"'Population at Risk'!G232/'Population at Risk'!G$5","v":0},{"$f":"'Population at Risk'!H232/'Population at Risk'!H$5","v":0},{"$f":"'Population at Risk'!I232/'Population at Risk'!I$5","v":0},{"$f":"'Population at Risk'!J232/'Population at Risk'!J$5","v":0},{"$f":"'Population at Risk'!K232/'Population at Risk'!K$5","v":0},{"$f":"'Population at Risk'!L232/'Population at Risk'!L$5","v":0},{"$f":"'Population at Risk'!M232/'Population at Risk'!M$5","v":0},{"$f":"'Population at Risk'!N232/'Population at Risk'!N$5","v":0},{"$f":"'Population at Risk'!O232/'Population at Risk'!O$5","v":0},{"$f":"'Population at Risk'!P232/'Population at Risk'!P$5","v":0},{"$f":"'Population at Risk'!Q232/'Population at Risk'!Q$5","v":0},{"$f":"'Population at Risk'!R232/'Population at Risk'!R$5","v":0},{"$f":"'Population at Risk'!S232/'Population at Risk'!S$5","v":0},{"$f":"'Population at Risk'!T232/'Population at Risk'!T$5","v":0},{"$f":"'Population at Risk'!U232/'Population at Risk'!U$5","v":0},{"$f":"'Population at Risk'!V232/'Population at Risk'!V$5","v":0},{"$f":"'Population at Risk'!W232/'Population at Risk'!W$5","v":0},{"$f":"'Population at Risk'!X232/'Population at Risk'!X$5","v":0},{"$f":"'Population at Risk'!Y232/'Population at Risk'!Y$5","v":0},{"$f":"'Population at Risk'!Z232/'Population at Risk'!Z$5","v":0},{"$f":"'Population at Risk'!AA232/'Population at Risk'!AA$5","v":0},{"$f":"'Population at Risk'!AB232/'Population at Risk'!AB$5","v":0},{"$f":"'Population at Risk'!AC232/'Population at Risk'!AC$5","v":0},{"$f":"'Population at Risk'!AD232/'Population at Risk'!AD$5","v":0},{"$f":"'Population at Risk'!AE232/'Population at Risk'!AE$5","v":0},{"$f":"'Population at Risk'!AF232/'Population at Risk'!AF$5","v":0},{"$f":"'Population at Risk'!AG232/'Population at Risk'!AG$5","v":0},{"$f":"'Population at Risk'!AH232/'Population at Risk'!AH$5","v":0},{"$f":"'Population at Risk'!AI232/'Population at Risk'!AI$5","v":0},{"$f":"'Population at Risk'!AJ232/'Population at Risk'!AJ$5","v":0},{"$f":"'Population at Risk'!AK232/'Population at Risk'!AK$5","v":0},{"$f":"'Population at Risk'!AL232/'Population at Risk'!AL$5","v":0},{"$f":"'Population at Risk'!AM232/'Population at Risk'!AM$5","v":0},{"$f":"'Population at Risk'!AN232/'Population at Risk'!AN$5","v":0},{"$f":"'Population at Risk'!AO232/'Population at Risk'!AO$5","v":0},{"$f":"'Population at Risk'!AP232/'Population at Risk'!AP$5","v":0},{"$f":"'Population at Risk'!AQ232/'Population at Risk'!AQ$5","v":0},{"$f":"'Population at Risk'!AR232/'Population at Risk'!AR$5","v":0},{"$f":"'Population at Risk'!AS232/'Population at Risk'!AS$5","v":0},{"$f":"'Population at Risk'!AT232/'Population at Risk'!AT$5","v":0},{"$f":"'Population at Risk'!AU232/'Population at Risk'!AU$5","v":0},{"$f":"'Population at Risk'!AV232/'Population at Risk'!AV$5","v":0},{"$f":"'Population at Risk'!AW232/'Population at Risk'!AW$5","v":0},{"$f":"'Population at Risk'!AX232/'Population at Risk'!AX$5","v":0},{"$f":"'Population at Risk'!AY232/'Population at Risk'!AY$5","v":0},{"$f":"'Population at Risk'!AZ232/'Population at Risk'!AZ$5","v":0},{"$f":"'Population at Risk'!BA232/'Population at Risk'!BA$5","v":0},{"$f":"'Population at Risk'!BB232/'Population at Risk'!BB$5","v":0},{"$f":"'Population at Risk'!BC232/'Population at Risk'!BC$5","v":0},230]
[null,"Male 10-15",{"$f":"'Population at Risk'!C233/'Population at Risk'!C$5","v":0},{"$f":"'Population at Risk'!D233/'Population at Risk'!D$5","v":0},{"$f":"'Population at Risk'!E233/'Population at Risk'!E$5","v":0},{"$f":"'Population at Risk'!F233/'Population at Risk'!F$5","v":0},{"$f":"'Population at Risk'!G233/'Population at Risk'!G$5","v":0},{"$f":"'Population at Risk'!H233/'Population at Risk'!H$5","v":0},{"$f":"'Population at Risk'!I233/'Population at Risk'!I$5","v":0},{"$f":"'Population at Risk'!J233/'Population at Risk'!J$5","v":0},{"$f":"'Population at Risk'!K233/'Population at Risk'!K$5","v":0},{"$f":"'Population at Risk'!L233/'Population at Risk'!L$5","v":0},{"$f":"'Population at Risk'!M233/'Population at Risk'!M$5","v":0},{"$f":"'Population at Risk'!N233/'Population at Risk'!N$5","v":0},{"$f":"'Population at Risk'!O233/'Population at Risk'!O$5","v":0},{"$f":"'Population at Risk'!P233/'Population at Risk'!P$5","v":0},{"$f":"'Population at Risk'!Q233/'Population at Risk'!Q$5","v":0},{"$f":"'Population at Risk'!R233/'Population at Risk'!R$5","v":0},{"$f":"'Population at Risk'!S233/'Population at Risk'!S$5","v":0},{"$f":"'Population at Risk'!T233/'Population at Risk'!T$5","v":0},{"$f":"'Population at Risk'!U233/'Population at Risk'!U$5","v":0},{"$f":"'Population at Risk'!V233/'Population at Risk'!V$5","v":0},{"$f":"'Population at Risk'!W233/'Population at Risk'!W$5","v":0},{"$f":"'Population at Risk'!X233/'Population at Risk'!X$5","v":0},{"$f":"'Population at Risk'!Y233/'Population at Risk'!Y$5","v":0},{"$f":"'Population at Risk'!Z233/'Population at Risk'!Z$5","v":0},{"$f":"'Population at Risk'!AA233/'Population at Risk'!AA$5","v":0},{"$f":"'Population at Risk'!AB233/'Population at Risk'!AB$5","v":0},{"$f":"'Population at Risk'!AC233/'Population at Risk'!AC$5","v":0},{"$f":"'Population at Risk'!AD233/'Population at Risk'!AD$5","v":0},{"$f":"'Population at Risk'!AE233/'Population at Risk'!AE$5","v":0},{"$f":"'Population at Risk'!AF233/'Population at Risk'!AF$5","v":0},{"$f":"'Population at Risk'!AG233/'Population at Risk'!AG$5","v":0},{"$f":"'Population at Risk'!AH233/'Population at Risk'!AH$5","v":0},{"$f":"'Population at Risk'!AI233/'Population at Risk'!AI$5","v":0},{"$f":"'Population at Risk'!AJ233/'Population at Risk'!AJ$5","v":0},{"$f":"'Population at Risk'!AK233/'Population at Risk'!AK$5","v":0},{"$f":"'Population at Risk'!AL233/'Population at Risk'!AL$5","v":0},{"$f":"'Population at Risk'!AM233/'Population at Risk'!AM$5","v":0},{"$f":"'Population at Risk'!AN233/'Population at Risk'!AN$5","v":0},{"$f":"'Population at Risk'!AO233/'Population at Risk'!AO$5","v":0},{"$f":"'Population at Risk'!AP233/'Population at Risk'!AP$5","v":0},{"$f":"'Population at Risk'!AQ233/'Population at Risk'!AQ$5","v":0},{"$f":"'Population at Risk'!AR233/'Population at Risk'!AR$5","v":0},{"$f":"'Population at Risk'!AS233/'Population at Risk'!AS$5","v":0},{"$f":"'Population at Risk'!AT233/'Population at Risk'!AT$5","v":0},{"$f":"'Population at Risk'!AU233/'Population at Risk'!AU$5","v":0},{"$f":"'Population at Risk'!AV233/'Population at Risk'!AV$5","v":0},{"$f":"'Population at Risk'!AW233/'Population at Risk'!AW$5","v":0},{"$f":"'Population at Risk'!AX233/'Population at Risk'!AX$5","v":0},{"$f":"'Population at Risk'!AY233/'Population at Risk'!AY$5","v":0},{"$f":"'Population at Risk'!AZ233/'Population at Risk'!AZ$5","v":0},{"$f":"'Population at Risk'!BA233/'Population at Risk'!BA$5","v":0},{"$f":"'Population at Risk'!BB233/'Population at Risk'!BB$5","v":0},{"$f":"'Population at Risk'!BC233/'Population at Risk'!BC$5","v":0},231]
[null,"Male 16-19",{"$f":"'Population at Risk'!C234/'Population at Risk'!C$5","v":7.2749034715037129E-3},{"$f":"'Population at Risk'!D234/'Population at Risk'!D$5","v":6.8583025305047817E-3},{"$f":"'Population at Risk'!E234/'Population at Risk'!E$5","v":9.4672363428225208E-3},{"$f":"'Population at Risk'!F234/'Population at Risk'!F$5","v":4.8972335427324622E-3},{"$f":"'Population at Risk'!G234/'Population at Risk'!G$5","v":3.074024564214883E-3},{"$f":"'Population at Risk'!H234/'Population at Risk'!H$5","v":2.101721084224629E-3},{"$f":"'Population at Risk'!I234/'Population at Risk'!I$5","v":1.8100751766765768E-3},{"$f":"'Population at Risk'!J234/'Population at Risk'!J$5","v":6.390735731139254E-3},{"$f":"'Population at Risk'!K234/'Population at Risk'!K$5","v":2.101325316924581E-3},{"$f":"'Population at Risk'!L234/'Population at Risk'!L$5","v":1.3474986221917215E-3},{"$f":"'Population at Risk'!M234/'Population at Risk'!M$5","v":1.3474986221917215E-3},{"$f":"'Population at Risk'!N234/'Population at Risk'!N$5","v":2.5745023592672351E-3},{"$f":"'Population at Risk'!O234/'Population at Risk'!O$5","v":1.7777937962684756E-3},{"$f":"'Population at Risk'!P234/'Population at Risk'!P$5","v":1.4914883854381665E-2},{"$f":"'Population at Risk'!Q234/'Population at Risk'!Q$5","v":2.6450539615034E-3},{"$f":"'Population at Risk'!R234/'Population at Risk'!R$5","v":1.9871697040111415E-2},{"$f":"'Population at Risk'!S234/'Population at Risk'!S$5","v":4.7211077531601076E-3},{"$f":"'Population at Risk'!T234/'Population at Risk'!T$5","v":8.4144616202407024E-3},{"$f":"'Population at Risk'!U234/'Population at Risk'!U$5","v":0},{"$f":"'Population at Risk'!V234/'Population at Risk'!V$5","v":3.8430111658764084E-3},{"$f":"'Population at Risk'!W234/'Population at Risk'!W$5","v":4.5373896058596387E-3},{"$f":"'Population at Risk'!X234/'Population at Risk'!X$5","v":4.5373896058596387E-3},{"$f":"'Population at Risk'!Y234/'Population at Risk'!Y$5","v":5.0875149142219061E-3},{"$f":"'Population at Risk'!Z234/'Population at Risk'!Z$5","v":1.2042188761065306E-3},{"$f":"'Population at Risk'!AA234/'Population at Risk'!AA$5","v":2.4058384049718234E-3},{"$f":"'Population at Risk'!AB234/'Population at Risk'!AB$5","v":7.7663504869879092E-3},{"$f":"'Population at Risk'!AC234/'Population at Risk'!AC$5","v":2.9585394198459679E-3},{"$f":"'Population at Risk'!AD234/'Population at Risk'!AD$5","v":2.1965426608111793E-3},{"$f":"'Population at Risk'!AE234/'Population at Risk'!AE$5","v":1.8318981875684037E-3},{"$f":"'Population at Risk'!AF234/'Population at Risk'!AF$5","v":1.6309858994848513E-3},{"$f":"'Population at Risk'!AG234/'Population at Risk'!AG$5","v":1.5634016044036511E-3},{"$f":"'Population at Risk'!AH234/'Population at Risk'!AH$5","v":1.7751645141028884E-3},{"$f":"'Population at Risk'!AI234/'Population at Risk'!AI$5","v":5.8385888210770176E-3},{"$f":"'Population at Risk'!AJ234/'Population at Risk'!AJ$5","v":2.9594519223970057E-3},{"$f":"'Population at Risk'!AK234/'Population at Risk'!AK$5","v":5.3475197210869647E-3},{"$f":"'Population at Risk'!AL234/'Population at Risk'!AL$5","v":1.6346007184340706E-3},{"$f":"'Population at Risk'!AM234/'Population at Risk'!AM$5","v":1.2808923087782908E-3},{"$f":"'Population at Risk'!AN234/'Population at Risk'!AN$5","v":1.2185877292815806E-3},{"$f":"'Population at Risk'!AO234/'Population at Risk'!AO$5","v":1.2185877292815806E-3},{"$f":"'Population at Risk'!AP234/'Population at Risk'!AP$5","v":3.6194510263182194E-3},{"$f":"'Population at Risk'!AQ234/'Population at Risk'!AQ$5","v":3.118440476330666E-3},{"$f":"'Population at Risk'!AR234/'Population at Risk'!AR$5","v":3.668733183289241E-3},{"$f":"'Population at Risk'!AS234/'Population at Risk'!AS$5","v":1.8100751766765768E-3},{"$f":"'Population at Risk'!AT234/'Population at Risk'!AT$5","v":0},{"$f":"'Population at Risk'!AU234/'Population at Risk'!AU$5","v":0},{"$f":"'Population at Risk'!AV234/'Population at Risk'!AV$5","v":2.8787097087589683E-3},{"$f":"'Population at Risk'!AW234/'Population at Risk'!AW$5","v":2.4619395940613459E-3},{"$f":"'Population at Risk'!AX234/'Population at Risk'!AX$5","v":9.2412112163415445E-3},{"$f":"'Population at Risk'!AY234/'Population at Risk'!AY$5","v":3.4318521057981918E-3},{"$f":"'Population at Risk'!AZ234/'Population at Risk'!AZ$5","v":3.425384551220228E-3},{"$f":"'Population at Risk'!BA234/'Population at Risk'!BA$5","v":6.6379410191679704E-4},{"$f":"'Population at Risk'!BB234/'Population at Risk'!BB$5","v":3.0978429219598366E-3},{"$f":"'Population at Risk'!BC234/'Population at Risk'!BC$5","v":0},232]
[null,"Male 20-24",{"$f":"'Population at Risk'!C235/'Population at Risk'!C$5","v":1.210896371607083E-2},{"$f":"'Population at Risk'!D235/'Population at Risk'!D$5","v":9.2259285155279775E-3},{"$f":"'Population at Risk'!E235/'Population at Risk'!E$5","v":1.0222897837759828E-2},{"$f":"'Population at Risk'!F235/'Population at Risk'!F$5","v":5.1114266599096283E-3},{"$f":"'Population at Risk'!G235/'Population at Risk'!G$5","v":8.1425055421168041E-3},{"$f":"'Population at Risk'!H235/'Population at Risk'!H$5","v":2.2964259812047459E-3},{"$f":"'Population at Risk'!I235/'Population at Risk'!I$5","v":1.4877330219259537E-3},{"$f":"'Population at Risk'!J235/'Population at Risk'!J$5","v":7.2403402305131178E-3},{"$f":"'Population at Risk'!K235/'Population at Risk'!K$5","v":2.1950149807365049E-3},{"$f":"'Population at Risk'!L235/'Population at Risk'!L$5","v":1.4798844517403818E-3},{"$f":"'Population at Risk'!M235/'Population at Risk'!M$5","v":1.4798844517403818E-3},{"$f":"'Population at Risk'!N235/'Population at Risk'!N$5","v":3.266703465296633E-3},{"$f":"'Population at Risk'!O235/'Population at Risk'!O$5","v":2.0158911796972893E-3},{"$f":"'Population at Risk'!P235/'Population at Risk'!P$5","v":1.7717818131542551E-2},{"$f":"'Population at Risk'!Q235/'Population at Risk'!Q$5","v":3.3583269398863393E-3},{"$f":"'Population at Risk'!R235/'Population at Risk'!R$5","v":2.1783202967817522E-2},{"$f":"'Population at Risk'!S235/'Population at Risk'!S$5","v":7.6769819305026535E-3},{"$f":"'Population at Risk'!T235/'Population at Risk'!T$5","v":1.5363024712460489E-2},{"$f":"'Population at Risk'!U235/'Population at Risk'!U$5","v":0},{"$f":"'Population at Risk'!V235/'Population at Risk'!V$5","v":4.5160809180920499E-3},{"$f":"'Population at Risk'!W235/'Population at Risk'!W$5","v":7.4429840507128755E-3},{"$f":"'Population at Risk'!X235/'Population at Risk'!X$5","v":7.4429840507128755E-3},{"$f":"'Population at Risk'!Y235/'Population at Risk'!Y$5","v":5.8436949146025777E-3},{"$f":"'Population at Risk'!Z235/'Population at Risk'!Z$5","v":2.8751183197011543E-3},{"$f":"'Population at Risk'!AA235/'Population at Risk'!AA$5","v":3.2892347532644042E-3},{"$f":"'Population at Risk'!AB235/'Population at Risk'!AB$5","v":1.0404768134118444E-2},{"$f":"'Population at Risk'!AC235/'Population at Risk'!AC$5","v":4.2627007485943206E-3},{"$f":"'Population at Risk'!AD235/'Population at Risk'!AD$5","v":3.613497039128223E-3},{"$f":"'Population at Risk'!AE235/'Population at Risk'!AE$5","v":1.7730420208995395E-3},{"$f":"'Population at Risk'!AF235/'Population at Risk'!AF$5","v":1.4877773814813036E-3},{"$f":"'Population at Risk'!AG235/'Population at Risk'!AG$5","v":1.5131718339810437E-3},{"$f":"'Population at Risk'!AH235/'Population at Risk'!AH$5","v":2.0602945655909173E-3},{"$f":"'Population at Risk'!AI235/'Population at Risk'!AI$5","v":9.6763983925098641E-3},{"$f":"'Population at Risk'!AJ235/'Population at Risk'!AJ$5","v":3.3230417300057808E-3},{"$f":"'Population at Risk'!AK235/'Population at Risk'!AK$5","v":6.967711954462651E-3},{"$f":"'Population at Risk'!AL235/'Population at Risk'!AL$5","v":1.7233809491477422E-3},{"$f":"'Population at Risk'!AM235/'Population at Risk'!AM$5","v":1.4396420238395127E-3},{"$f":"'Population at Risk'!AN235/'Population at Risk'!AN$5","v":1.9091207758744765E-3},{"$f":"'Population at Risk'!AO235/'Population at Risk'!AO$5","v":1.9091207758744765E-3},{"$f":"'Population at Risk'!AP235/'Population at Risk'!AP$5","v":4.1787064800375279E-3},{"$f":"'Population at Risk'!AQ235/'Population at Risk'!AQ$5","v":3.6137884220294003E-3},{"$f":"'Population at Risk'!AR235/'Population at Risk'!AR$5","v":5.1906568385415731E-3},{"$f":"'Population at Risk'!AS235/'Population at Risk'!AS$5","v":1.4877330219259537E-3},{"$f":"'Population at Risk'!AT235/'Population at Risk'!AT$5","v":0},{"$f":"'Population at Risk'!AU235/'Population at Risk'!AU$5","v":0},{"$f":"'Population at Risk'!AV235/'Population at Risk'!AV$5","v":3.1347214417513664E-3},{"$f":"'Population at Risk'!AW235/'Population at Risk'!AW$5","v":2.9245262567214724E-3},{"$f":"'Population at Risk'!AX235/'Population at Risk'!AX$5","v":1.0593149719598439E-2},{"$f":"'Population at Risk'!AY235/'Population at Risk'!AY$5","v":4.9103239500932795E-3},{"$f":"'Population at Risk'!AZ235/'Population at Risk'!AZ$5","v":3.9886256261147494E-3},{"$f":"'Population at Risk'!BA235/'Population at Risk'!BA$5","v":8.420351107648259E-4},{"$f":"'Population at Risk'!BB235/'Population at Risk'!BB$5","v":3.325468578682488E-3},{"$f":"'Population at Risk'!BC235/'Population at Risk'!BC$5","v":0},233]
[null,"Male 25-29",{"$f":"'Population at Risk'!C236/'Population at Risk'!C$5","v":2.52291823841433E-2},{"$f":"'Population at Risk'!D236/'Population at Risk'!D$5","v":1.6336610999319597E-2},{"$f":"'Population at Risk'!E236/'Population at Risk'!E$5","v":1.400462806087366E-2},{"$f":"'Population at Risk'!F236/'Population at Risk'!F$5","v":5.7046051024091131E-3},{"$f":"'Population at Risk'!G236/'Population at Risk'!G$5","v":9.0777502384296344E-3},{"$f":"'Population at Risk'!H236/'Population at Risk'!H$5","v":2.2854406042270153E-3},{"$f":"'Population at Risk'!I236/'Population at Risk'!I$5","v":1.4669752369790225E-3},{"$f":"'Population at Risk'!J236/'Population at Risk'!J$5","v":5.3932912130413352E-3},{"$f":"'Population at Risk'!K236/'Population at Risk'!K$5","v":2.1942818692717615E-3},{"$f":"'Population at Risk'!L236/'Population at Risk'!L$5","v":1.7592392701834064E-3},{"$f":"'Population at Risk'!M236/'Population at Risk'!M$5","v":1.7592392701834064E-3},{"$f":"'Population at Risk'!N236/'Population at Risk'!N$5","v":4.3281108542490322E-3},{"$f":"'Population at Risk'!O236/'Population at Risk'!O$5","v":2.3081523399633513E-3},{"$f":"'Population at Risk'!P236/'Population at Risk'!P$5","v":2.0431554988611936E-2},{"$f":"'Population at Risk'!Q236/'Population at Risk'!Q$5","v":3.6331187425470385E-3},{"$f":"'Population at Risk'!R236/'Population at Risk'!R$5","v":2.1762657698393469E-2},{"$f":"'Population at Risk'!S236/'Population at Risk'!S$5","v":9.3913764698512706E-3},{"$f":"'Population at Risk'!T236/'Population at Risk'!T$5","v":2.1465306512001226E-2},{"$f":"'Population at Risk'!U236/'Population at Risk'!U$5","v":0},{"$f":"'Population at Risk'!V236/'Population at Risk'!V$5","v":6.3221002605053965E-3},{"$f":"'Population at Risk'!W236/'Population at Risk'!W$5","v":5.9107126432762147E-3},{"$f":"'Population at Risk'!X236/'Population at Risk'!X$5","v":5.9107126432762147E-3},{"$f":"'Population at Risk'!Y236/'Population at Risk'!Y$5","v":5.809109043995917E-3},{"$f":"'Population at Risk'!Z236/'Population at Risk'!Z$5","v":4.347962488714577E-3},{"$f":"'Population at Risk'!AA236/'Population at Risk'!AA$5","v":4.0489719974582099E-3},{"$f":"'Population at Risk'!AB236/'Population at Risk'!AB$5","v":1.7795484783649299E-2},{"$f":"'Population at Risk'!AC236/'Population at Risk'!AC$5","v":5.396195954835886E-3},{"$f":"'Population at Risk'!AD236/'Population at Risk'!AD$5","v":4.4568215413091352E-3},{"$f":"'Population at Risk'!AE236/'Population at Risk'!AE$5","v":2.5748647163711283E-3},{"$f":"'Population at Risk'!AF236/'Population at Risk'!AF$5","v":2.2457554866196646E-3},{"$f":"'Population at Risk'!AG236/'Population at Risk'!AG$5","v":2.1974734491332962E-3},{"$f":"'Population at Risk'!AH236/'Population at Risk'!AH$5","v":2.2854915479244508E-3},{"$f":"'Population at Risk'!AI236/'Population at Risk'!AI$5","v":1.3261558945514862E-2},{"$f":"'Population at Risk'!AJ236/'Population at Risk'!AJ$5","v":4.5324395798958961E-3},{"$f":"'Population at Risk'!AK236/'Population at Risk'!AK$5","v":9.0118634341606607E-3},{"$f":"'Population at Risk'!AL236/'Population at Risk'!AL$5","v":1.5783530092376311E-3},{"$f":"'Population at Risk'!AM236/'Population at Risk'!AM$5","v":1.728427526385427E-3},{"$f":"'Population at Risk'!AN236/'Population at Risk'!AN$5","v":2.6058474832675702E-3},{"$f":"'Population at Risk'!AO236/'Population at Risk'!AO$5","v":2.6058474832675702E-3},{"$f":"'Population at Risk'!AP236/'Population at Risk'!AP$5","v":4.7836832147892874E-3},{"$f":"'Population at Risk'!AQ236/'Population at Risk'!AQ$5","v":4.0337475502741204E-3},{"$f":"'Population at Risk'!AR236/'Population at Risk'!AR$5","v":6.6633495471873829E-3},{"$f":"'Population at Risk'!AS236/'Population at Risk'!AS$5","v":1.4669752369790225E-3},{"$f":"'Population at Risk'!AT236/'Population at Risk'!AT$5","v":0},{"$f":"'Population at Risk'!AU236/'Population at Risk'!AU$5","v":0},{"$f":"'Population at Risk'!AV236/'Population at Risk'!AV$5","v":2.9441159796173939E-3},{"$f":"'Population at Risk'!AW236/'Population at Risk'!AW$5","v":3.0563827486804682E-3},{"$f":"'Population at Risk'!AX236/'Population at Risk'!AX$5","v":7.5191539379346655E-3},{"$f":"'Population at Risk'!AY236/'Population at Risk'!AY$5","v":4.6312174528284761E-3},{"$f":"'Population at Risk'!AZ236/'Population at Risk'!AZ$5","v":4.826317033005254E-3},{"$f":"'Population at Risk'!BA236/'Population at Risk'!BA$5","v":8.0611758441511859E-4},{"$f":"'Population at Risk'!BB236/'Population at Risk'!BB$5","v":4.1729387169198925E-3},{"$f":"'Population at Risk'!BC236/'Population at Risk'!BC$5","v":0},234]
[null,"Male 30-34",{"$f":"'Population at Risk'!C237/'Population at Risk'!C$5","v":2.1834360802962322E-2},{"$f":"'Population at Risk'!D237/'Population at Risk'!D$5","v":1.5816028315926427E-2},{"$f":"'Population at Risk'!E237/'Population at Risk'!E$5","v":1.6361176051886053E-2},{"$f":"'Population at Risk'!F237/'Population at Risk'!F$5","v":6.4263556263148879E-3},{"$f":"'Population at Risk'!G237/'Population at Risk'!G$5","v":4.2780202273059202E-3},{"$f":"'Population at Risk'!H237/'Population at Risk'!H$5","v":2.0649383892902438E-3},{"$f":"'Population at Risk'!I237/'Population at Risk'!I$5","v":1.6348820412115611E-3},{"$f":"'Population at Risk'!J237/'Population at Risk'!J$5","v":4.4563211294197467E-3},{"$f":"'Population at Risk'!K237/'Population at Risk'!K$5","v":2.2515240049918945E-3},{"$f":"'Population at Risk'!L237/'Population at Risk'!L$5","v":2.0355948643501483E-3},{"$f":"'Population at Risk'!M237/'Population at Risk'!M$5","v":2.0355948643501483E-3},{"$f":"'Population at Risk'!N237/'Population at Risk'!N$5","v":2.983511082195666E-3},{"$f":"'Population at Risk'!O237/'Population at Risk'!O$5","v":2.4740979330326119E-3},{"$f":"'Population at Risk'!P237/'Population at Risk'!P$5","v":1.7252340864759397E-2},{"$f":"'Population at Risk'!Q237/'Population at Risk'!Q$5","v":3.950884230233368E-3},{"$f":"'Population at Risk'!R237/'Population at Risk'!R$5","v":1.7731835011647549E-2},{"$f":"'Population at Risk'!S237/'Population at Risk'!S$5","v":7.9834928856342812E-3},{"$f":"'Population at Risk'!T237/'Population at Risk'!T$5","v":1.7052966569394239E-2},{"$f":"'Population at Risk'!U237/'Population at Risk'!U$5","v":0},{"$f":"'Population at Risk'!V237/'Population at Risk'!V$5","v":7.5215195265743518E-3},{"$f":"'Population at Risk'!W237/'Population at Risk'!W$5","v":5.7712530578173885E-3},{"$f":"'Population at Risk'!X237/'Population at Risk'!X$5","v":5.7712530578173885E-3},{"$f":"'Population at Risk'!Y237/'Population at Risk'!Y$5","v":5.9310051026240287E-3},{"$f":"'Population at Risk'!Z237/'Population at Risk'!Z$5","v":3.3943589545860579E-3},{"$f":"'Population at Risk'!AA237/'Population at Risk'!AA$5","v":3.4073750046652706E-3},{"$f":"'Population at Risk'!AB237/'Population at Risk'!AB$5","v":1.6908214935168194E-2},{"$f":"'Population at Risk'!AC237/'Population at Risk'!AC$5","v":4.4140072858047004E-3},{"$f":"'Population at Risk'!AD237/'Population at Risk'!AD$5","v":3.2365460561149745E-3},{"$f":"'Population at Risk'!AE237/'Population at Risk'!AE$5","v":2.8003620336907995E-3},{"$f":"'Population at Risk'!AF237/'Population at Risk'!AF$5","v":2.143675691773316E-3},{"$f":"'Population at Risk'!AG237/'Population at Risk'!AG$5","v":2.3899202074076985E-3},{"$f":"'Population at Risk'!AH237/'Population at Risk'!AH$5","v":2.1373214131479375E-3},{"$f":"'Population at Risk'!AI237/'Population at Risk'!AI$5","v":1.089652140367333E-2},{"$f":"'Population at Risk'!AJ237/'Population at Risk'!AJ$5","v":4.6047657434048735E-3},{"$f":"'Population at Risk'!AK237/'Population at Risk'!AK$5","v":7.0302632112429807E-3},{"$f":"'Population at Risk'!AL237/'Population at Risk'!AL$5","v":1.4666770887727042E-3},{"$f":"'Population at Risk'!AM237/'Population at Risk'!AM$5","v":1.5309563455788765E-3},{"$f":"'Population at Risk'!AN237/'Population at Risk'!AN$5","v":2.3742165958660082E-3},{"$f":"'Population at Risk'!AO237/'Population at Risk'!AO$5","v":2.3742165958660082E-3},{"$f":"'Population at Risk'!AP237/'Population at Risk'!AP$5","v":5.0882622958807397E-3},{"$f":"'Population at Risk'!AQ237/'Population at Risk'!AQ$5","v":3.595064129687279E-3},{"$f":"'Population at Risk'!AR237/'Population at Risk'!AR$5","v":5.8632810893045574E-3},{"$f":"'Population at Risk'!AS237/'Population at Risk'!AS$5","v":1.6348820412115611E-3},{"$f":"'Population at Risk'!AT237/'Population at Risk'!AT$5","v":0},{"$f":"'Population at Risk'!AU237/'Population at Risk'!AU$5","v":0},{"$f":"'Population at Risk'!AV237/'Population at Risk'!AV$5","v":2.1979488442873652E-3},{"$f":"'Population at Risk'!AW237/'Population at Risk'!AW$5","v":2.9802902321158092E-3},{"$f":"'Population at Risk'!AX237/'Population at Risk'!AX$5","v":5.9214922243094248E-3},{"$f":"'Population at Risk'!AY237/'Population at Risk'!AY$5","v":4.3875352760319687E-3},{"$f":"'Population at Risk'!AZ237/'Population at Risk'!AZ$5","v":4.407751485010109E-3},{"$f":"'Population at Risk'!BA237/'Population at Risk'!BA$5","v":7.3602040316163005E-4},{"$f":"'Population at Risk'!BB237/'Population at Risk'!BB$5","v":3.8180107580081165E-3},{"$f":"'Population at Risk'!BC237/'Population at Risk'!BC$5","v":0},235]
[null,"Male 35-39",{"$f":"'Population at Risk'!C238/'Population at Risk'!C$5","v":1.2323507861878403E-2},{"$f":"'Population at Risk'!D238/'Population at Risk'!D$5","v":1.0272665672149375E-2},{"$f":"'Population at Risk'!E238/'Population at Risk'!E$5","v":1.2636876178660404E-2},{"$f":"'Population at Risk'!F238/'Population at Risk'!F$5","v":4.6616153485965562E-3},{"$f":"'Population at Risk'!G238/'Population at Risk'!G$5","v":2.5777772516737615E-3},{"$f":"'Population at Risk'!H238/'Population at Risk'!H$5","v":1.8845497713557739E-3},{"$f":"'Population at Risk'!I238/'Population at Risk'!I$5","v":1.593173759786361E-3},{"$f":"'Population at Risk'!J238/'Population at Risk'!J$5","v":3.6774230698845612E-3},{"$f":"'Population at Risk'!K238/'Population at Risk'!K$5","v":1.9110432641768153E-3},{"$f":"'Population at Risk'!L238/'Population at Risk'!L$5","v":1.4536893598991077E-3},{"$f":"'Population at Risk'!M238/'Population at Risk'!M$5","v":1.4536893598991077E-3},{"$f":"'Population at Risk'!N238/'Population at Risk'!N$5","v":2.1693528310638113E-3},{"$f":"'Population at Risk'!O238/'Population at Risk'!O$5","v":1.9340110580533022E-3},{"$f":"'Population at Risk'!P238/'Population at Risk'!P$5","v":1.3690940783207461E-2},{"$f":"'Population at Risk'!Q238/'Population at Risk'!Q$5","v":3.1826044950515595E-3},{"$f":"'Population at Risk'!R238/'Population at Risk'!R$5","v":1.7866858011372739E-2},{"$f":"'Population at Risk'!S238/'Population at Risk'!S$5","v":5.4155331022055298E-3},{"$f":"'Population at Risk'!T238/'Population at Risk'!T$5","v":1.0730755053088055E-2},{"$f":"'Population at Risk'!U238/'Population at Risk'!U$5","v":0},{"$f":"'Population at Risk'!V238/'Population at Risk'!V$5","v":5.5026718675355258E-3},{"$f":"'Population at Risk'!W238/'Population at Risk'!W$5","v":4.1922855982027274E-3},{"$f":"'Population at Risk'!X238/'Population at Risk'!X$5","v":4.1922855982027274E-3},{"$f":"'Population at Risk'!Y238/'Population at Risk'!Y$5","v":4.5477008134670698E-3},{"$f":"'Population at Risk'!Z238/'Population at Risk'!Z$5","v":1.9223722732701137E-3},{"$f":"'Population at Risk'!AA238/'Population at Risk'!AA$5","v":2.5756858669220939E-3},{"$f":"'Population at Risk'!AB238/'Population at Risk'!AB$5","v":1.0869263692965325E-2},{"$f":"'Population at Risk'!AC238/'Population at Risk'!AC$5","v":3.1740070626532857E-3},{"$f":"'Population at Risk'!AD238/'Population at Risk'!AD$5","v":2.5145492400057033E-3},{"$f":"'Population at Risk'!AE238/'Population at Risk'!AE$5","v":2.4755803315907121E-3},{"$f":"'Population at Risk'!AF238/'Population at Risk'!AF$5","v":1.4161966784492649E-3},{"$f":"'Population at Risk'!AG238/'Population at Risk'!AG$5","v":2.1127409200488241E-3},{"$f":"'Population at Risk'!AH238/'Population at Risk'!AH$5","v":1.8893758442466977E-3},{"$f":"'Population at Risk'!AI238/'Population at Risk'!AI$5","v":7.2024121418039792E-3},{"$f":"'Population at Risk'!AJ238/'Population at Risk'!AJ$5","v":3.4690146541594569E-3},{"$f":"'Population at Risk'!AK238/'Population at Risk'!AK$5","v":3.9693736552525501E-3},{"$f":"'Population at Risk'!AL238/'Population at Risk'!AL$5","v":1.396880604871191E-3},{"$f":"'Population at Risk'!AM238/'Population at Risk'!AM$5","v":1.3570438335362188E-3},{"$f":"'Population at Risk'!AN238/'Population at Risk'!AN$5","v":2.3585821122926939E-3},{"$f":"'Population at Risk'!AO238/'Population at Risk'!AO$5","v":2.3585821122926939E-3},{"$f":"'Population at Risk'!AP238/'Population at Risk'!AP$5","v":3.9357883371604393E-3},{"$f":"'Population at Risk'!AQ238/'Population at Risk'!AQ$5","v":2.8648139506717509E-3},{"$f":"'Population at Risk'!AR238/'Population at Risk'!AR$5","v":4.1422024144642938E-3},{"$f":"'Population at Risk'!AS238/'Population at Risk'!AS$5","v":1.593173759786361E-3},{"$f":"'Population at Risk'!AT238/'Population at Risk'!AT$5","v":0},{"$f":"'Population at Risk'!AU238/'Population at Risk'!AU$5","v":0},{"$f":"'Population at Risk'!AV238/'Population at Risk'!AV$5","v":2.290727041528726E-3},{"$f":"'Population at Risk'!AW238/'Population at Risk'!AW$5","v":2.6292809053148165E-3},{"$f":"'Population at Risk'!AX238/'Population at Risk'!AX$5","v":4.8512492715090914E-3},{"$f":"'Population at Risk'!AY238/'Population at Risk'!AY$5","v":3.2206085812794714E-3},{"$f":"'Population at Risk'!AZ238/'Population at Risk'!AZ$5","v":3.2776916244598104E-3},{"$f":"'Population at Risk'!BA238/'Population at Risk'!BA$5","v":5.089961599820099E-4},{"$f":"'Population at Risk'!BB238/'Population at Risk'!BB$5","v":3.2027127872858319E-3},{"$f":"'Population at Risk'!BC238/'Population at Risk'!BC$5","v":0},236]
[null,"Male 40-44",{"$f":"'Population at Risk'!C239/'Population at Risk'!C$5","v":1.1178804341906252E-2},{"$f":"'Population at Risk'!D239/'Population at Risk'!D$5","v":1.0342184813462314E-2},{"$f":"'Population at Risk'!E239/'Population at Risk'!E$5","v":1.405096387523754E-2},{"$f":"'Population at Risk'!F239/'Population at Risk'!F$5","v":6.0610267156702745E-3},{"$f":"'Population at Risk'!G239/'Population at Risk'!G$5","v":2.9870864774462847E-3},{"$f":"'Population at Risk'!H239/'Population at Risk'!H$5","v":2.4596145912915432E-3},{"$f":"'Population at Risk'!I239/'Population at Risk'!I$5","v":2.2127413330366125E-3},{"$f":"'Population at Risk'!J239/'Population at Risk'!J$5","v":5.147375030045886E-3},{"$f":"'Population at Risk'!K239/'Population at Risk'!K$5","v":2.7009411467032326E-3},{"$f":"'Population at Risk'!L239/'Population at Risk'!L$5","v":1.5797057749987208E-3},{"$f":"'Population at Risk'!M239/'Population at Risk'!M$5","v":1.5797057749987208E-3},{"$f":"'Population at Risk'!N239/'Population at Risk'!N$5","v":2.1809124376236545E-3},{"$f":"'Population at Risk'!O239/'Population at Risk'!O$5","v":2.4275867968273218E-3},{"$f":"'Population at Risk'!P239/'Population at Risk'!P$5","v":1.6894581976433103E-2},{"$f":"'Population at Risk'!Q239/'Population at Risk'!Q$5","v":4.3212696588366727E-3},{"$f":"'Population at Risk'!R239/'Population at Risk'!R$5","v":2.1809191603698267E-2},{"$f":"'Population at Risk'!S239/'Population at Risk'!S$5","v":5.9045394577726959E-3},{"$f":"'Population at Risk'!T239/'Population at Risk'!T$5","v":1.0607729350261882E-2},{"$f":"'Population at Risk'!U239/'Population at Risk'!U$5","v":0},{"$f":"'Population at Risk'!V239/'Population at Risk'!V$5","v":6.2776960742306704E-3},{"$f":"'Population at Risk'!W239/'Population at Risk'!W$5","v":5.1115769581110762E-3},{"$f":"'Population at Risk'!X239/'Population at Risk'!X$5","v":5.1115769581110762E-3},{"$f":"'Population at Risk'!Y239/'Population at Risk'!Y$5","v":5.6642783621874519E-3},{"$f":"'Population at Risk'!Z239/'Population at Risk'!Z$5","v":1.7368420085639362E-3},{"$f":"'Population at Risk'!AA239/'Population at Risk'!AA$5","v":2.8999460414286886E-3},{"$f":"'Population at Risk'!AB239/'Population at Risk'!AB$5","v":1.1106556043185372E-2},{"$f":"'Population at Risk'!AC239/'Population at Risk'!AC$5","v":3.5021732852543379E-3},{"$f":"'Population at Risk'!AD239/'Population at Risk'!AD$5","v":2.5997881972940327E-3},{"$f":"'Population at Risk'!AE239/'Population at Risk'!AE$5","v":2.430060466936286E-3},{"$f":"'Population at Risk'!AF239/'Population at Risk'!AF$5","v":1.8554448460966302E-3},{"$f":"'Population at Risk'!AG239/'Population at Risk'!AG$5","v":2.073892784319496E-3},{"$f":"'Population at Risk'!AH239/'Population at Risk'!AH$5","v":2.2474642225121747E-3},{"$f":"'Population at Risk'!AI239/'Population at Risk'!AI$5","v":7.5516303274874739E-3},{"$f":"'Population at Risk'!AJ239/'Population at Risk'!AJ$5","v":3.8151112437855746E-3},{"$f":"'Population at Risk'!AK239/'Population at Risk'!AK$5","v":4.8626934163072625E-3},{"$f":"'Population at Risk'!AL239/'Population at Risk'!AL$5","v":1.749829085105549E-3},{"$f":"'Population at Risk'!AM239/'Population at Risk'!AM$5","v":1.5926005688334445E-3},{"$f":"'Population at Risk'!AN239/'Population at Risk'!AN$5","v":1.7786029043518677E-3},{"$f":"'Population at Risk'!AO239/'Population at Risk'!AO$5","v":1.7786029043518677E-3},{"$f":"'Population at Risk'!AP239/'Population at Risk'!AP$5","v":4.2827119291897787E-3},{"$f":"'Population at Risk'!AQ239/'Population at Risk'!AQ$5","v":3.3577619870716283E-3},{"$f":"'Population at Risk'!AR239/'Population at Risk'!AR$5","v":4.55726628165705E-3},{"$f":"'Population at Risk'!AS239/'Population at Risk'!AS$5","v":2.2127413330366125E-3},{"$f":"'Population at Risk'!AT239/'Population at Risk'!AT$5","v":0},{"$f":"'Population at Risk'!AU239/'Population at Risk'!AU$5","v":0},{"$f":"'Population at Risk'!AV239/'Population at Risk'!AV$5","v":3.1734421899192282E-3},{"$f":"'Population at Risk'!AW239/'Population at Risk'!AW$5","v":3.1585242437437247E-3},{"$f":"'Population at Risk'!AX239/'Population at Risk'!AX$5","v":6.7731228921592895E-3},{"$f":"'Population at Risk'!AY239/'Population at Risk'!AY$5","v":3.787569883608879E-3},{"$f":"'Population at Risk'!AZ239/'Population at Risk'!AZ$5","v":3.6807488311799263E-3},{"$f":"'Population at Risk'!BA239/'Population at Risk'!BA$5","v":5.4994987400355095E-4},{"$f":"'Population at Risk'!BB239/'Population at Risk'!BB$5","v":4.157432666793871E-3},{"$f":"'Population at Risk'!BC239/'Population at Risk'!BC$5","v":0},237]
[null,"Male 45-49",{"$f":"'Population at Risk'!C240/'Population at Risk'!C$5","v":1.0777192483528207E-2},{"$f":"'Population at Risk'!D240/'Population at Risk'!D$5","v":1.0149534396920372E-2},{"$f":"'Population at Risk'!E240/'Population at Risk'!E$5","v":1.3998424527976656E-2},{"$f":"'Population at Risk'!F240/'Population at Risk'!F$5","v":6.3946468006780017E-3},{"$f":"'Population at Risk'!G240/'Population at Risk'!G$5","v":2.4135849435423201E-3},{"$f":"'Population at Risk'!H240/'Population at Risk'!H$5","v":2.9018271971274494E-3},{"$f":"'Population at Risk'!I240/'Population at Risk'!I$5","v":2.8251923447367554E-3},{"$f":"'Population at Risk'!J240/'Population at Risk'!J$5","v":6.3045804266135558E-3},{"$f":"'Population at Risk'!K240/'Population at Risk'!K$5","v":3.6648539329894514E-3},{"$f":"'Population at Risk'!L240/'Population at Risk'!L$5","v":2.0387235767223722E-3},{"$f":"'Population at Risk'!M240/'Population at Risk'!M$5","v":2.0387235767223722E-3},{"$f":"'Population at Risk'!N240/'Population at Risk'!N$5","v":2.8833308216128922E-3},{"$f":"'Population at Risk'!O240/'Population at Risk'!O$5","v":2.7964996881316064E-3},{"$f":"'Population at Risk'!P240/'Population at Risk'!P$5","v":1.9067811241109241E-2},{"$f":"'Population at Risk'!Q240/'Population at Risk'!Q$5","v":4.5758285222589155E-3},{"$f":"'Population at Risk'!R240/'Population at Risk'!R$5","v":2.4018422164985585E-2},{"$f":"'Population at Risk'!S240/'Population at Risk'!S$5","v":6.1731726312827155E-3},{"$f":"'Population at Risk'!T240/'Population at Risk'!T$5","v":1.0620225013599396E-2},{"$f":"'Population at Risk'!U240/'Population at Risk'!U$5","v":0},{"$f":"'Population at Risk'!V240/'Population at Risk'!V$5","v":6.5080417860930127E-3},{"$f":"'Population at Risk'!W240/'Population at Risk'!W$5","v":5.3678352173993568E-3},{"$f":"'Population at Risk'!X240/'Population at Risk'!X$5","v":5.3678352173993568E-3},{"$f":"'Population at Risk'!Y240/'Population at Risk'!Y$5","v":6.356337934531984E-3},{"$f":"'Population at Risk'!Z240/'Population at Risk'!Z$5","v":1.7189614258421785E-3},{"$f":"'Population at Risk'!AA240/'Population at Risk'!AA$5","v":3.2061472051697175E-3},{"$f":"'Population at Risk'!AB240/'Population at Risk'!AB$5","v":1.1013033031878172E-2},{"$f":"'Population at Risk'!AC240/'Population at Risk'!AC$5","v":3.8588772132725812E-3},{"$f":"'Population at Risk'!AD240/'Population at Risk'!AD$5","v":2.74331458445986E-3},{"$f":"'Population at Risk'!AE240/'Population at Risk'!AE$5","v":2.8611105502780046E-3},{"$f":"'Population at Risk'!AF240/'Population at Risk'!AF$5","v":2.091658221606142E-3},{"$f":"'Population at Risk'!AG240/'Population at Risk'!AG$5","v":2.4417649709115282E-3},{"$f":"'Population at Risk'!AH240/'Population at Risk'!AH$5","v":2.5067997433281123E-3},{"$f":"'Population at Risk'!AI240/'Population at Risk'!AI$5","v":7.811135085853892E-3},{"$f":"'Population at Risk'!AJ240/'Population at Risk'!AJ$5","v":4.4613651672264654E-3},{"$f":"'Population at Risk'!AK240/'Population at Risk'!AK$5","v":5.3720225130305631E-3},{"$f":"'Population at Risk'!AL240/'Population at Risk'!AL$5","v":2.2471135706787749E-3},{"$f":"'Population at Risk'!AM240/'Population at Risk'!AM$5","v":1.7627010693876072E-3},{"$f":"'Population at Risk'!AN240/'Population at Risk'!AN$5","v":2.5127020407480945E-3},{"$f":"'Population at Risk'!AO240/'Population at Risk'!AO$5","v":2.5127020407480945E-3},{"$f":"'Population at Risk'!AP240/'Population at Risk'!AP$5","v":4.9789172708764795E-3},{"$f":"'Population at Risk'!AQ240/'Population at Risk'!AQ$5","v":4.120408163948922E-3},{"$f":"'Population at Risk'!AR240/'Population at Risk'!AR$5","v":4.8819287721437428E-3},{"$f":"'Population at Risk'!AS240/'Population at Risk'!AS$5","v":2.8251923447367554E-3},{"$f":"'Population at Risk'!AT240/'Population at Risk'!AT$5","v":0},{"$f":"'Population at Risk'!AU240/'Population at Risk'!AU$5","v":0},{"$f":"'Population at Risk'!AV240/'Population at Risk'!AV$5","v":3.6176043338023304E-3},{"$f":"'Population at Risk'!AW240/'Population at Risk'!AW$5","v":3.5425211514429344E-3},{"$f":"'Population at Risk'!AX240/'Population at Risk'!AX$5","v":8.0587785403634458E-3},{"$f":"'Population at Risk'!AY240/'Population at Risk'!AY$5","v":4.176752188765869E-3},{"$f":"'Population at Risk'!AZ240/'Population at Risk'!AZ$5","v":4.317060952390905E-3},{"$f":"'Population at Risk'!BA240/'Population at Risk'!BA$5","v":9.2255042189049049E-4},{"$f":"'Population at Risk'!BB240/'Population at Risk'!BB$5","v":4.7690871106274594E-3},{"$f":"'Population at Risk'!BC240/'Population at Risk'!BC$5","v":0},238]
[null,"Male 50-54",{"$f":"'Population at Risk'!C241/'Population at Risk'!C$5","v":1.100826126709464E-2},{"$f":"'Population at Risk'!D241/'Population at Risk'!D$5","v":1.0100092305171025E-2},{"$f":"'Population at Risk'!E241/'Population at Risk'!E$5","v":1.3623466728120138E-2},{"$f":"'Population at Risk'!F241/'Population at Risk'!F$5","v":7.5371806473365369E-3},{"$f":"'Population at Risk'!G241/'Population at Risk'!G$5","v":2.6466207311946818E-3},{"$f":"'Population at Risk'!H241/'Population at Risk'!H$5","v":3.1617170259631649E-3},{"$f":"'Population at Risk'!I241/'Population at Risk'!I$5","v":2.3345900812794741E-3},{"$f":"'Population at Risk'!J241/'Population at Risk'!J$5","v":6.0761183756876972E-3},{"$f":"'Population at Risk'!K241/'Population at Risk'!K$5","v":3.5187467994483436E-3},{"$f":"'Population at Risk'!L241/'Population at Risk'!L$5","v":2.374209734917193E-3},{"$f":"'Population at Risk'!M241/'Population at Risk'!M$5","v":2.374209734917193E-3},{"$f":"'Population at Risk'!N241/'Population at Risk'!N$5","v":2.8465066731887174E-3},{"$f":"'Population at Risk'!O241/'Population at Risk'!O$5","v":2.5558370643681289E-3},{"$f":"'Population at Risk'!P241/'Population at Risk'!P$5","v":2.1282618012892544E-2},{"$f":"'Population at Risk'!Q241/'Population at Risk'!Q$5","v":5.2787622982041552E-3},{"$f":"'Population at Risk'!R241/'Population at Risk'!R$5","v":2.3462943321552032E-2},{"$f":"'Population at Risk'!S241/'Population at Risk'!S$5","v":6.018509166038701E-3},{"$f":"'Population at Risk'!T241/'Population at Risk'!T$5","v":1.0525857391482927E-2},{"$f":"'Population at Risk'!U241/'Population at Risk'!U$5","v":0},{"$f":"'Population at Risk'!V241/'Population at Risk'!V$5","v":6.3204047694985247E-3},{"$f":"'Population at Risk'!W241/'Population at Risk'!W$5","v":5.0289136992637366E-3},{"$f":"'Population at Risk'!X241/'Population at Risk'!X$5","v":5.0289136992637366E-3},{"$f":"'Population at Risk'!Y241/'Population at Risk'!Y$5","v":6.149726567635151E-3},{"$f":"'Population at Risk'!Z241/'Population at Risk'!Z$5","v":1.6906589132617261E-3},{"$f":"'Population at Risk'!AA241/'Population at Risk'!AA$5","v":3.3873124004060733E-3},{"$f":"'Population at Risk'!AB241/'Population at Risk'!AB$5","v":1.0850181382567646E-2},{"$f":"'Population at Risk'!AC241/'Population at Risk'!AC$5","v":4.0934715003236701E-3},{"$f":"'Population at Risk'!AD241/'Population at Risk'!AD$5","v":2.8032122828105118E-3},{"$f":"'Population at Risk'!AE241/'Population at Risk'!AE$5","v":2.8510715658910638E-3},{"$f":"'Population at Risk'!AF241/'Population at Risk'!AF$5","v":3.0976806880533871E-3},{"$f":"'Population at Risk'!AG241/'Population at Risk'!AG$5","v":2.4331973745223652E-3},{"$f":"'Population at Risk'!AH241/'Population at Risk'!AH$5","v":2.6205930561093616E-3},{"$f":"'Population at Risk'!AI241/'Population at Risk'!AI$5","v":7.7639231397326402E-3},{"$f":"'Population at Risk'!AJ241/'Population at Risk'!AJ$5","v":4.1152247663209639E-3},{"$f":"'Population at Risk'!AK241/'Population at Risk'!AK$5","v":4.7679720055683562E-3},{"$f":"'Population at Risk'!AL241/'Population at Risk'!AL$5","v":2.4941535403939885E-3},{"$f":"'Population at Risk'!AM241/'Population at Risk'!AM$5","v":1.9042834845994633E-3},{"$f":"'Population at Risk'!AN241/'Population at Risk'!AN$5","v":2.3279445377519109E-3},{"$f":"'Population at Risk'!AO241/'Population at Risk'!AO$5","v":2.3279445377519109E-3},{"$f":"'Population at Risk'!AP241/'Population at Risk'!AP$5","v":6.230791992256444E-3},{"$f":"'Population at Risk'!AQ241/'Population at Risk'!AQ$5","v":4.6802647827456269E-3},{"$f":"'Population at Risk'!AR241/'Population at Risk'!AR$5","v":4.9668933598852622E-3},{"$f":"'Population at Risk'!AS241/'Population at Risk'!AS$5","v":2.3345900812794741E-3},{"$f":"'Population at Risk'!AT241/'Population at Risk'!AT$5","v":0},{"$f":"'Population at Risk'!AU241/'Population at Risk'!AU$5","v":0},{"$f":"'Population at Risk'!AV241/'Population at Risk'!AV$5","v":4.4197912747742357E-3},{"$f":"'Population at Risk'!AW241/'Population at Risk'!AW$5","v":3.6153542533572383E-3},{"$f":"'Population at Risk'!AX241/'Population at Risk'!AX$5","v":7.7755885314149302E-3},{"$f":"'Population at Risk'!AY241/'Population at Risk'!AY$5","v":4.3041948289527371E-3},{"$f":"'Population at Risk'!AZ241/'Population at Risk'!AZ$5","v":4.9311883100963448E-3},{"$f":"'Population at Risk'!BA241/'Population at Risk'!BA$5","v":9.8405378334985669E-4},{"$f":"'Population at Risk'!BB241/'Population at Risk'!BB$5","v":4.5879006260988722E-3},{"$f":"'Population at Risk'!BC241/'Population at Risk'!BC$5","v":0},239]
[null,"Male 55-59",{"$f":"'Population at Risk'!C242/'Population at Risk'!C$5","v":9.5611994729792801E-3},{"$f":"'Population at Risk'!D242/'Population at Risk'!D$5","v":8.3760897623286375E-3},{"$f":"'Population at Risk'!E242/'Population at Risk'!E$5","v":1.083075825460242E-2},{"$f":"'Population at Risk'!F242/'Population at Risk'!F$5","v":6.0253686999313391E-3},{"$f":"'Population at Risk'!G242/'Population at Risk'!G$5","v":2.1155521347959393E-3},{"$f":"'Population at Risk'!H242/'Population at Risk'!H$5","v":2.9683684647624216E-3},{"$f":"'Population at Risk'!I242/'Population at Risk'!I$5","v":1.8191234419098546E-3},{"$f":"'Population at Risk'!J242/'Population at Risk'!J$5","v":4.7851137872364554E-3},{"$f":"'Population at Risk'!K242/'Population at Risk'!K$5","v":2.7122746536717042E-3},{"$f":"'Population at Risk'!L242/'Population at Risk'!L$5","v":1.9679390840594982E-3},{"$f":"'Population at Risk'!M242/'Population at Risk'!M$5","v":1.9679390840594982E-3},{"$f":"'Population at Risk'!N242/'Population at Risk'!N$5","v":2.7740658728265307E-3},{"$f":"'Population at Risk'!O242/'Population at Risk'!O$5","v":2.4069238838415434E-3},{"$f":"'Population at Risk'!P242/'Population at Risk'!P$5","v":1.793458754940162E-2},{"$f":"'Population at Risk'!Q242/'Population at Risk'!Q$5","v":3.7110257328302598E-3},{"$f":"'Population at Risk'!R242/'Population at Risk'!R$5","v":2.1854900161020461E-2},{"$f":"'Population at Risk'!S242/'Population at Risk'!S$5","v":5.0503667398363655E-3},{"$f":"'Population at Risk'!T242/'Population at Risk'!T$5","v":8.9729109031071678E-3},{"$f":"'Population at Risk'!U242/'Population at Risk'!U$5","v":0},{"$f":"'Population at Risk'!V242/'Population at Risk'!V$5","v":4.8380152863350184E-3},{"$f":"'Population at Risk'!W242/'Population at Risk'!W$5","v":4.4611044946868935E-3},{"$f":"'Population at Risk'!X242/'Population at Risk'!X$5","v":4.4611044946868935E-3},{"$f":"'Population at Risk'!Y242/'Population at Risk'!Y$5","v":4.7744205206428489E-3},{"$f":"'Population at Risk'!Z242/'Population at Risk'!Z$5","v":1.3711350200369464E-3},{"$f":"'Population at Risk'!AA242/'Population at Risk'!AA$5","v":2.8899964444064653E-3},{"$f":"'Population at Risk'!AB242/'Population at Risk'!AB$5","v":8.9444853216682704E-3},{"$f":"'Population at Risk'!AC242/'Population at Risk'!AC$5","v":3.5131198970820244E-3},{"$f":"'Population at Risk'!AD242/'Population at Risk'!AD$5","v":2.3186930264175306E-3},{"$f":"'Population at Risk'!AE242/'Population at Risk'!AE$5","v":2.3878787619939263E-3},{"$f":"'Population at Risk'!AF242/'Population at Risk'!AF$5","v":2.5555400446038178E-3},{"$f":"'Population at Risk'!AG242/'Population at Risk'!AG$5","v":2.0378935428600662E-3},{"$f":"'Population at Risk'!AH242/'Population at Risk'!AH$5","v":2.2010969741498056E-3},{"$f":"'Population at Risk'!AI242/'Population at Risk'!AI$5","v":6.4315384633554119E-3},{"$f":"'Population at Risk'!AJ242/'Population at Risk'!AJ$5","v":3.3274541517151813E-3},{"$f":"'Population at Risk'!AK242/'Population at Risk'!AK$5","v":3.6701630442440383E-3},{"$f":"'Population at Risk'!AL242/'Population at Risk'!AL$5","v":2.0375501689423583E-3},{"$f":"'Population at Risk'!AM242/'Population at Risk'!AM$5","v":1.5259289602250559E-3},{"$f":"'Population at Risk'!AN242/'Population at Risk'!AN$5","v":2.4933393341688356E-3},{"$f":"'Population at Risk'!AO242/'Population at Risk'!AO$5","v":2.4933393341688356E-3},{"$f":"'Population at Risk'!AP242/'Population at Risk'!AP$5","v":4.7236827544313402E-3},{"$f":"'Population at Risk'!AQ242/'Population at Risk'!AQ$5","v":4.0989117541527969E-3},{"$f":"'Population at Risk'!AR242/'Population at Risk'!AR$5","v":4.1757801119226496E-3},{"$f":"'Population at Risk'!AS242/'Population at Risk'!AS$5","v":1.8191234419098546E-3},{"$f":"'Population at Risk'!AT242/'Population at Risk'!AT$5","v":0},{"$f":"'Population at Risk'!AU242/'Population at Risk'!AU$5","v":0},{"$f":"'Population at Risk'!AV242/'Population at Risk'!AV$5","v":4.4728254349075723E-3},{"$f":"'Population at Risk'!AW242/'Population at Risk'!AW$5","v":3.141680642378858E-3},{"$f":"'Population at Risk'!AX242/'Population at Risk'!AX$5","v":6.162593805332614E-3},{"$f":"'Population at Risk'!AY242/'Population at Risk'!AY$5","v":3.6999224569031473E-3},{"$f":"'Population at Risk'!AZ242/'Population at Risk'!AZ$5","v":4.1062657824806181E-3},{"$f":"'Population at Risk'!BA242/'Population at Risk'!BA$5","v":7.2870496524265213E-4},{"$f":"'Population at Risk'!BB242/'Population at Risk'!BB$5","v":3.6216657273631216E-3},{"$f":"'Population at Risk'!BC242/'Population at Risk'!BC$5","v":0},240]
[null,"Male 60-64",{"$f":"'Population at Risk'!C243/'Population at Risk'!C$5","v":8.4732584509229977E-3},{"$f":"'Population at Risk'!D243/'Population at Risk'!D$5","v":7.5491918983238157E-3},{"$f":"'Population at Risk'!E243/'Population at Risk'!E$5","v":9.9173643084642816E-3},{"$f":"'Population at Risk'!F243/'Population at Risk'!F$5","v":5.5914766603982402E-3},{"$f":"'Population at Risk'!G243/'Population at Risk'!G$5","v":1.7462921258133755E-3},{"$f":"'Population at Risk'!H243/'Population at Risk'!H$5","v":2.7862881310991598E-3},{"$f":"'Population at Risk'!I243/'Population at Risk'!I$5","v":1.9181588155381848E-3},{"$f":"'Population at Risk'!J243/'Population at Risk'!J$5","v":4.5469813640218711E-3},{"$f":"'Population at Risk'!K243/'Population at Risk'!K$5","v":3.0273937005713216E-3},{"$f":"'Population at Risk'!L243/'Population at Risk'!L$5","v":1.8725238557414619E-3},{"$f":"'Population at Risk'!M243/'Population at Risk'!M$5","v":1.8725238557414619E-3},{"$f":"'Population at Risk'!N243/'Population at Risk'!N$5","v":2.2566940781398649E-3},{"$f":"'Population at Risk'!O243/'Population at Risk'!O$5","v":2.0865939029975672E-3},{"$f":"'Population at Risk'!P243/'Population at Risk'!P$5","v":1.5852971152780428E-2},{"$f":"'Population at Risk'!Q243/'Population at Risk'!Q$5","v":3.1362540705063813E-3},{"$f":"'Population at Risk'!R243/'Population at Risk'!R$5","v":1.8495183639842136E-2},{"$f":"'Population at Risk'!S243/'Population at Risk'!S$5","v":4.3042396948369506E-3},{"$f":"'Population at Risk'!T243/'Population at Risk'!T$5","v":7.7188482956131463E-3},{"$f":"'Population at Risk'!U243/'Population at Risk'!U$5","v":0},{"$f":"'Population at Risk'!V243/'Population at Risk'!V$5","v":3.9388747095350203E-3},{"$f":"'Population at Risk'!W243/'Population at Risk'!W$5","v":3.8398051241047642E-3},{"$f":"'Population at Risk'!X243/'Population at Risk'!X$5","v":3.8398051241047642E-3},{"$f":"'Population at Risk'!Y243/'Population at Risk'!Y$5","v":4.2127239888025136E-3},{"$f":"'Population at Risk'!Z243/'Population at Risk'!Z$5","v":1.2203255565536458E-3},{"$f":"'Population at Risk'!AA243/'Population at Risk'!AA$5","v":2.5030294183518501E-3},{"$f":"'Population at Risk'!AB243/'Population at Risk'!AB$5","v":8.094773284189876E-3},{"$f":"'Population at Risk'!AC243/'Population at Risk'!AC$5","v":3.0330348581843239E-3},{"$f":"'Population at Risk'!AD243/'Population at Risk'!AD$5","v":2.081730128779827E-3},{"$f":"'Population at Risk'!AE243/'Population at Risk'!AE$5","v":2.205385436919261E-3},{"$f":"'Population at Risk'!AF243/'Population at Risk'!AF$5","v":2.1206968432968855E-3},{"$f":"'Population at Risk'!AG243/'Population at Risk'!AG$5","v":1.8821477928228332E-3},{"$f":"'Population at Risk'!AH243/'Population at Risk'!AH$5","v":1.9226729015236884E-3},{"$f":"'Population at Risk'!AI243/'Population at Risk'!AI$5","v":5.4120327757271264E-3},{"$f":"'Population at Risk'!AJ243/'Population at Risk'!AJ$5","v":2.8013182388371399E-3},{"$f":"'Population at Risk'!AK243/'Population at Risk'!AK$5","v":3.4840492996069169E-3},{"$f":"'Population at Risk'!AL243/'Population at Risk'!AL$5","v":2.0814628881005983E-3},{"$f":"'Population at Risk'!AM243/'Population at Risk'!AM$5","v":1.2655002611815E-3},{"$f":"'Population at Risk'!AN243/'Population at Risk'!AN$5","v":1.8443880006180431E-3},{"$f":"'Population at Risk'!AO243/'Population at Risk'!AO$5","v":1.8443880006180431E-3},{"$f":"'Population at Risk'!AP243/'Population at Risk'!AP$5","v":4.7395340388421839E-3},{"$f":"'Population at Risk'!AQ243/'Population at Risk'!AQ$5","v":3.3447624783694879E-3},{"$f":"'Population at Risk'!AR243/'Population at Risk'!AR$5","v":3.6689127275173444E-3},{"$f":"'Population at Risk'!AS243/'Population at Risk'!AS$5","v":1.9181588155381848E-3},{"$f":"'Population at Risk'!AT243/'Population at Risk'!AT$5","v":0},{"$f":"'Population at Risk'!AU243/'Population at Risk'!AU$5","v":0},{"$f":"'Population at Risk'!AV243/'Population at Risk'!AV$5","v":4.2001505153463617E-3},{"$f":"'Population at Risk'!AW243/'Population at Risk'!AW$5","v":2.8406029141508841E-3},{"$f":"'Population at Risk'!AX243/'Population at Risk'!AX$5","v":5.5568048511676366E-3},{"$f":"'Population at Risk'!AY243/'Population at Risk'!AY$5","v":3.2872558953302485E-3},{"$f":"'Population at Risk'!AZ243/'Population at Risk'!AZ$5","v":3.7670160123124859E-3},{"$f":"'Population at Risk'!BA243/'Population at Risk'!BA$5","v":7.1836872460091241E-4},{"$f":"'Population at Risk'!BB243/'Population at Risk'!BB$5","v":2.6885858702720448E-3},{"$f":"'Population at Risk'!BC243/'Population at Risk'!BC$5","v":0},241]
[null,"Male 65-69",{"$f":"'Population at Risk'!C244/'Population at Risk'!C$5","v":5.0255169009263473E-3},{"$f":"'Population at Risk'!D244/'Population at Risk'!D$5","v":4.6020670839620331E-3},{"$f":"'Population at Risk'!E244/'Population at Risk'!E$5","v":6.1970433405598669E-3},{"$f":"'Population at Risk'!F244/'Population at Risk'!F$5","v":4.4754845421080347E-3},{"$f":"'Population at Risk'!G244/'Population at Risk'!G$5","v":1.24877168970842E-3},{"$f":"'Population at Risk'!H244/'Population at Risk'!H$5","v":2.0773191623627424E-3},{"$f":"'Population at Risk'!I244/'Population at Risk'!I$5","v":1.4090241264839421E-3},{"$f":"'Population at Risk'!J244/'Population at Risk'!J$5","v":3.3754938757018125E-3},{"$f":"'Population at Risk'!K244/'Population at Risk'!K$5","v":2.3024653448799046E-3},{"$f":"'Population at Risk'!L244/'Population at Risk'!L$5","v":1.3653784784665472E-3},{"$f":"'Population at Risk'!M244/'Population at Risk'!M$5","v":1.3653784784665472E-3},{"$f":"'Population at Risk'!N244/'Population at Risk'!N$5","v":1.5000342328875802E-3},{"$f":"'Population at Risk'!O244/'Population at Risk'!O$5","v":1.4682730724072039E-3},{"$f":"'Population at Risk'!P244/'Population at Risk'!P$5","v":1.0628001326835846E-2},{"$f":"'Population at Risk'!Q244/'Population at Risk'!Q$5","v":2.1288637802254679E-3},{"$f":"'Population at Risk'!R244/'Population at Risk'!R$5","v":1.1163244138682627E-2},{"$f":"'Population at Risk'!S244/'Population at Risk'!S$5","v":2.9484403908120313E-3},{"$f":"'Population at Risk'!T244/'Population at Risk'!T$5","v":5.1613018321152275E-3},{"$f":"'Population at Risk'!U244/'Population at Risk'!U$5","v":0},{"$f":"'Population at Risk'!V244/'Population at Risk'!V$5","v":2.5655591359793916E-3},{"$f":"'Population at Risk'!W244/'Population at Risk'!W$5","v":2.8421303348756524E-3},{"$f":"'Population at Risk'!X244/'Population at Risk'!X$5","v":2.8421303348756524E-3},{"$f":"'Population at Risk'!Y244/'Population at Risk'!Y$5","v":2.9508766856325796E-3},{"$f":"'Population at Risk'!Z244/'Population at Risk'!Z$5","v":7.2669440811556462E-4},{"$f":"'Population at Risk'!AA244/'Population at Risk'!AA$5","v":1.5485382315679791E-3},{"$f":"'Population at Risk'!AB244/'Population at Risk'!AB$5","v":4.9758724977572721E-3},{"$f":"'Population at Risk'!AC244/'Population at Risk'!AC$5","v":1.9186141270966181E-3},{"$f":"'Population at Risk'!AD244/'Population at Risk'!AD$5","v":1.4691613876524534E-3},{"$f":"'Population at Risk'!AE244/'Population at Risk'!AE$5","v":1.5498590883720842E-3},{"$f":"'Population at Risk'!AF244/'Population at Risk'!AF$5","v":1.5750816943114129E-3},{"$f":"'Population at Risk'!AG244/'Population at Risk'!AG$5","v":1.3227002471009421E-3},{"$f":"'Population at Risk'!AH244/'Population at Risk'!AH$5","v":1.1184837466828412E-3},{"$f":"'Population at Risk'!AI244/'Population at Risk'!AI$5","v":3.6024962826110341E-3},{"$f":"'Population at Risk'!AJ244/'Population at Risk'!AJ$5","v":2.0316667176337889E-3},{"$f":"'Population at Risk'!AK244/'Population at Risk'!AK$5","v":2.3420055574269456E-3},{"$f":"'Population at Risk'!AL244/'Population at Risk'!AL$5","v":1.4875047059227568E-3},{"$f":"'Population at Risk'!AM244/'Population at Risk'!AM$5","v":7.3913624027329263E-4},{"$f":"'Population at Risk'!AN244/'Population at Risk'!AN$5","v":1.4433634969625354E-3},{"$f":"'Population at Risk'!AO244/'Population at Risk'!AO$5","v":1.4433634969625354E-3},{"$f":"'Population at Risk'!AP244/'Population at Risk'!AP$5","v":3.7320565414551091E-3},{"$f":"'Population at Risk'!AQ244/'Population at Risk'!AQ$5","v":2.194900380209191E-3},{"$f":"'Population at Risk'!AR244/'Population at Risk'!AR$5","v":2.4369426054547823E-3},{"$f":"'Population at Risk'!AS244/'Population at Risk'!AS$5","v":1.4090241264839421E-3},{"$f":"'Population at Risk'!AT244/'Population at Risk'!AT$5","v":0},{"$f":"'Population at Risk'!AU244/'Population at Risk'!AU$5","v":0},{"$f":"'Population at Risk'!AV244/'Population at Risk'!AV$5","v":3.2954704487999534E-3},{"$f":"'Population at Risk'!AW244/'Population at Risk'!AW$5","v":1.6482563576424138E-3},{"$f":"'Population at Risk'!AX244/'Population at Risk'!AX$5","v":4.0885619262419166E-3},{"$f":"'Population at Risk'!AY244/'Population at Risk'!AY$5","v":2.4579601422313004E-3},{"$f":"'Population at Risk'!AZ244/'Population at Risk'!AZ$5","v":2.8445018141298123E-3},{"$f":"'Population at Risk'!BA244/'Population at Risk'!BA$5","v":3.3626447658166884E-4},{"$f":"'Population at Risk'!BB244/'Population at Risk'!BB$5","v":1.6509757540461882E-3},{"$f":"'Population at Risk'!BC244/'Population at Risk'!BC$5","v":0},242]
[null,"Male 70-74",{"$f":"'Population at Risk'!C245/'Population at Risk'!C$5","v":3.2839346519638979E-3},{"$f":"'Population at Risk'!D245/'Population at Risk'!D$5","v":3.0396250743987365E-3},{"$f":"'Population at Risk'!E245/'Population at Risk'!E$5","v":4.1313622270399107E-3},{"$f":"'Population at Risk'!F245/'Population at Risk'!F$5","v":3.3168008140285316E-3},{"$f":"'Population at Risk'!G245/'Population at Risk'!G$5","v":1.0423631459549622E-3},{"$f":"'Population at Risk'!H245/'Population at Risk'!H$5","v":1.5713318367477067E-3},{"$f":"'Population at Risk'!I245/'Population at Risk'!I$5","v":9.0904782353802723E-4},{"$f":"'Population at Risk'!J245/'Population at Risk'!J$5","v":2.2965413690042686E-3},{"$f":"'Population at Risk'!K245/'Population at Risk'!K$5","v":1.4871661407912825E-3},{"$f":"'Population at Risk'!L245/'Population at Risk'!L$5","v":9.733655168755658E-4},{"$f":"'Population at Risk'!M245/'Population at Risk'!M$5","v":9.733655168755658E-4},{"$f":"'Population at Risk'!N245/'Population at Risk'!N$5","v":1.1712596065012613E-3},{"$f":"'Population at Risk'!O245/'Population at Risk'!O$5","v":9.5497435603720583E-4},{"$f":"'Population at Risk'!P245/'Population at Risk'!P$5","v":8.4412410104021951E-3},{"$f":"'Population at Risk'!Q245/'Population at Risk'!Q$5","v":1.7810376114091022E-3},{"$f":"'Population at Risk'!R245/'Population at Risk'!R$5","v":8.5502513791921933E-3},{"$f":"'Population at Risk'!S245/'Population at Risk'!S$5","v":2.115288443398272E-3},{"$f":"'Population at Risk'!T245/'Population at Risk'!T$5","v":3.5997706329545525E-3},{"$f":"'Population at Risk'!U245/'Population at Risk'!U$5","v":0},{"$f":"'Population at Risk'!V245/'Population at Risk'!V$5","v":1.6838395283874286E-3},{"$f":"'Population at Risk'!W245/'Population at Risk'!W$5","v":2.2293289987314596E-3},{"$f":"'Population at Risk'!X245/'Population at Risk'!X$5","v":2.2293289987314596E-3},{"$f":"'Population at Risk'!Y245/'Population at Risk'!Y$5","v":1.9772983715781126E-3},{"$f":"'Population at Risk'!Z245/'Population at Risk'!Z$5","v":4.3457151394410897E-4},{"$f":"'Population at Risk'!AA245/'Population at Risk'!AA$5","v":1.1206672527668052E-3},{"$f":"'Population at Risk'!AB245/'Population at Risk'!AB$5","v":3.347130618157603E-3},{"$f":"'Population at Risk'!AC245/'Population at Risk'!AC$5","v":1.4027516072187289E-3},{"$f":"'Population at Risk'!AD245/'Population at Risk'!AD$5","v":1.0859018952213786E-3},{"$f":"'Population at Risk'!AE245/'Population at Risk'!AE$5","v":1.0975575070265495E-3},{"$f":"'Population at Risk'!AF245/'Population at Risk'!AF$5","v":1.3327614336481187E-3},{"$f":"'Population at Risk'!AG245/'Population at Risk'!AG$5","v":9.366913396471198E-4},{"$f":"'Population at Risk'!AH245/'Population at Risk'!AH$5","v":7.8542875346837733E-4},{"$f":"'Population at Risk'!AI245/'Population at Risk'!AI$5","v":2.5174070408607229E-3},{"$f":"'Population at Risk'!AJ245/'Population at Risk'!AJ$5","v":1.3544444784225258E-3},{"$f":"'Population at Risk'!AK245/'Population at Risk'!AK$5","v":1.8676121076283104E-3},{"$f":"'Population at Risk'!AL245/'Population at Risk'!AL$5","v":1.1369837950221467E-3},{"$f":"'Population at Risk'!AM245/'Population at Risk'!AM$5","v":4.4330617736106027E-4},{"$f":"'Population at Risk'!AN245/'Population at Risk'!AN$5","v":9.3933179961053887E-4},{"$f":"'Population at Risk'!AO245/'Population at Risk'!AO$5","v":9.3933179961053887E-4},{"$f":"'Population at Risk'!AP245/'Population at Risk'!AP$5","v":2.856635871237244E-3},{"$f":"'Population at Risk'!AQ245/'Population at Risk'!AQ$5","v":1.6064892850325707E-3},{"$f":"'Population at Risk'!AR245/'Population at Risk'!AR$5","v":1.7428815408805141E-3},{"$f":"'Population at Risk'!AS245/'Population at Risk'!AS$5","v":9.0904782353802723E-4},{"$f":"'Population at Risk'!AT245/'Population at Risk'!AT$5","v":0},{"$f":"'Population at Risk'!AU245/'Population at Risk'!AU$5","v":0},{"$f":"'Population at Risk'!AV245/'Population at Risk'!AV$5","v":2.6472863877896411E-3},{"$f":"'Population at Risk'!AW245/'Population at Risk'!AW$5","v":1.2656702167893421E-3},{"$f":"'Population at Risk'!AX245/'Population at Risk'!AX$5","v":2.8344018261677092E-3},{"$f":"'Population at Risk'!AY245/'Population at Risk'!AY$5","v":1.8993780152867026E-3},{"$f":"'Population at Risk'!AZ245/'Population at Risk'!AZ$5","v":2.1663275202263876E-3},{"$f":"'Population at Risk'!BA245/'Population at Risk'!BA$5","v":1.6986556033506982E-4},{"$f":"'Population at Risk'!BB245/'Population at Risk'!BB$5","v":1.0551801295605044E-3},{"$f":"'Population at Risk'!BC245/'Population at Risk'!BC$5","v":0},243]
[null,"Male 75-79",{"$f":"'Population at Risk'!C246/'Population at Risk'!C$5","v":1.3066949111364646E-3},{"$f":"'Population at Risk'!D246/'Population at Risk'!D$5","v":1.1706793083042797E-3},{"$f":"'Population at Risk'!E246/'Population at Risk'!E$5","v":1.5457983612202511E-3},{"$f":"'Population at Risk'!F246/'Population at Risk'!F$5","v":1.1444003434403424E-3},{"$f":"'Population at Risk'!G246/'Population at Risk'!G$5","v":3.4130546604902476E-4},{"$f":"'Population at Risk'!H246/'Population at Risk'!H$5","v":5.7378256406490113E-4},{"$f":"'Population at Risk'!I246/'Population at Risk'!I$5","v":3.2485658139759906E-4},{"$f":"'Population at Risk'!J246/'Population at Risk'!J$5","v":9.6822377761975487E-4},{"$f":"'Population at Risk'!K246/'Population at Risk'!K$5","v":4.7949452558920607E-4},{"$f":"'Population at Risk'!L246/'Population at Risk'!L$5","v":4.3535997662719011E-4},{"$f":"'Population at Risk'!M246/'Population at Risk'!M$5","v":4.3535997662719011E-4},{"$f":"'Population at Risk'!N246/'Population at Risk'!N$5","v":5.0577024035807308E-4},{"$f":"'Population at Risk'!O246/'Population at Risk'!O$5","v":3.3837674032814383E-4},{"$f":"'Population at Risk'!P246/'Population at Risk'!P$5","v":3.7041916730702505E-3},{"$f":"'Population at Risk'!Q246/'Population at Risk'!Q$5","v":7.1714467972131218E-4},{"$f":"'Population at Risk'!R246/'Population at Risk'!R$5","v":3.6983450077544364E-3},{"$f":"'Population at Risk'!S246/'Population at Risk'!S$5","v":7.8598727327192747E-4},{"$f":"'Population at Risk'!T246/'Population at Risk'!T$5","v":1.4108128808992921E-3},{"$f":"'Population at Risk'!U246/'Population at Risk'!U$5","v":0},{"$f":"'Population at Risk'!V246/'Population at Risk'!V$5","v":5.9462717776506669E-4},{"$f":"'Population at Risk'!W246/'Population at Risk'!W$5","v":7.4196036717008877E-4},{"$f":"'Population at Risk'!X246/'Population at Risk'!X$5","v":7.4196036717008877E-4},{"$f":"'Population at Risk'!Y246/'Population at Risk'!Y$5","v":7.768816820664916E-4},{"$f":"'Population at Risk'!Z246/'Population at Risk'!Z$5","v":1.5822205855534543E-4},{"$f":"'Population at Risk'!AA246/'Population at Risk'!AA$5","v":4.3611616364282673E-4},{"$f":"'Population at Risk'!AB246/'Population at Risk'!AB$5","v":1.2963438590622141E-3},{"$f":"'Population at Risk'!AC246/'Population at Risk'!AC$5","v":5.6035264328513866E-4},{"$f":"'Population at Risk'!AD246/'Population at Risk'!AD$5","v":3.7975823071462981E-4},{"$f":"'Population at Risk'!AE246/'Population at Risk'!AE$5","v":3.9317313411288011E-4},{"$f":"'Population at Risk'!AF246/'Population at Risk'!AF$5","v":4.7111939469873489E-4},{"$f":"'Population at Risk'!AG246/'Population at Risk'!AG$5","v":3.3554676392600328E-4},{"$f":"'Population at Risk'!AH246/'Population at Risk'!AH$5","v":2.8131070718190462E-4},{"$f":"'Population at Risk'!AI246/'Population at Risk'!AI$5","v":9.7441451044561964E-4},{"$f":"'Population at Risk'!AJ246/'Population at Risk'!AJ$5","v":4.5563730559480185E-4},{"$f":"'Population at Risk'!AK246/'Population at Risk'!AK$5","v":7.5756158028349499E-4},{"$f":"'Population at Risk'!AL246/'Population at Risk'!AL$5","v":3.8810184889853379E-4},{"$f":"'Population at Risk'!AM246/'Population at Risk'!AM$5","v":1.6588989251836668E-4},{"$f":"'Population at Risk'!AN246/'Population at Risk'!AN$5","v":2.6458356816377767E-4},{"$f":"'Population at Risk'!AO246/'Population at Risk'!AO$5","v":2.6458356816377767E-4},{"$f":"'Population at Risk'!AP246/'Population at Risk'!AP$5","v":1.1460553048215432E-3},{"$f":"'Population at Risk'!AQ246/'Population at Risk'!AQ$5","v":5.3775745400306684E-4},{"$f":"'Population at Risk'!AR246/'Population at Risk'!AR$5","v":6.6509076065237671E-4},{"$f":"'Population at Risk'!AS246/'Population at Risk'!AS$5","v":3.2485658139759906E-4},{"$f":"'Population at Risk'!AT246/'Population at Risk'!AT$5","v":0},{"$f":"'Population at Risk'!AU246/'Population at Risk'!AU$5","v":0},{"$f":"'Population at Risk'!AV246/'Population at Risk'!AV$5","v":1.007286890892042E-3},{"$f":"'Population at Risk'!AW246/'Population at Risk'!AW$5","v":4.4314869892709825E-4},{"$f":"'Population at Risk'!AX246/'Population at Risk'!AX$5","v":1.2930028538297865E-3},{"$f":"'Population at Risk'!AY246/'Population at Risk'!AY$5","v":6.8843847573196325E-4},{"$f":"'Population at Risk'!AZ246/'Population at Risk'!AZ$5","v":8.4859751114082897E-4},{"$f":"'Population at Risk'!BA246/'Population at Risk'!BA$5","v":5.8232341643604209E-5},{"$f":"'Population at Risk'!BB246/'Population at Risk'!BB$5","v":3.8751962284389247E-4},{"$f":"'Population at Risk'!BC246/'Population at Risk'!BC$5","v":0},244]
[null,"Male 80-84",{"$f":"'Population at Risk'!C247/'Population at Risk'!C$5","v":9.6709524448319287E-4},{"$f":"'Population at Risk'!D247/'Population at Risk'!D$5","v":8.1062501932409737E-4},{"$f":"'Population at Risk'!E247/'Population at Risk'!E$5","v":1.002989232732548E-3},{"$f":"'Population at Risk'!F247/'Population at Risk'!F$5","v":9.5126476910658187E-4},{"$f":"'Population at Risk'!G247/'Population at Risk'!G$5","v":2.0586678904544351E-4},{"$f":"'Population at Risk'!H247/'Population at Risk'!H$5","v":4.1161490980806052E-4},{"$f":"'Population at Risk'!I247/'Population at Risk'!I$5","v":2.3859522927507275E-4},{"$f":"'Population at Risk'!J247/'Population at Risk'!J$5","v":6.7395968834316265E-4},{"$f":"'Population at Risk'!K247/'Population at Risk'!K$5","v":3.2098393861756773E-4},{"$f":"'Population at Risk'!L247/'Population at Risk'!L$5","v":2.8417387541903406E-4},{"$f":"'Population at Risk'!M247/'Population at Risk'!M$5","v":2.8417387541903406E-4},{"$f":"'Population at Risk'!N247/'Population at Risk'!N$5","v":3.9191201089357799E-4},{"$f":"'Population at Risk'!O247/'Population at Risk'!O$5","v":2.1148546270508987E-4},{"$f":"'Population at Risk'!P247/'Population at Risk'!P$5","v":2.7592139118291074E-3},{"$f":"'Population at Risk'!Q247/'Population at Risk'!Q$5","v":4.9276198852016544E-4},{"$f":"'Population at Risk'!R247/'Population at Risk'!R$5","v":2.6961367431663583E-3},{"$f":"'Population at Risk'!S247/'Population at Risk'!S$5","v":5.8012976445886088E-4},{"$f":"'Population at Risk'!T247/'Population at Risk'!T$5","v":1.1112291321001919E-3},{"$f":"'Population at Risk'!U247/'Population at Risk'!U$5","v":0},{"$f":"'Population at Risk'!V247/'Population at Risk'!V$5","v":4.3552423020090024E-4},{"$f":"'Population at Risk'!W247/'Population at Risk'!W$5","v":5.3736664466139312E-4},{"$f":"'Population at Risk'!X247/'Population at Risk'!X$5","v":5.3736664466139312E-4},{"$f":"'Population at Risk'!Y247/'Population at Risk'!Y$5","v":5.5141194745452621E-4},{"$f":"'Population at Risk'!Z247/'Population at Risk'!Z$5","v":1.0512013479361991E-4},{"$f":"'Population at Risk'!AA247/'Population at Risk'!AA$5","v":3.0276954923124419E-4},{"$f":"'Population at Risk'!AB247/'Population at Risk'!AB$5","v":8.9461100858477603E-4},{"$f":"'Population at Risk'!AC247/'Population at Risk'!AC$5","v":3.9438214328209239E-4},{"$f":"'Population at Risk'!AD247/'Population at Risk'!AD$5","v":2.6902790471570282E-4},{"$f":"'Population at Risk'!AE247/'Population at Risk'!AE$5","v":2.9297388663812948E-4},{"$f":"'Population at Risk'!AF247/'Population at Risk'!AF$5","v":3.3213917326260805E-4},{"$f":"'Population at Risk'!AG247/'Population at Risk'!AG$5","v":2.5003346120801908E-4},{"$f":"'Population at Risk'!AH247/'Population at Risk'!AH$5","v":1.8626962605268417E-4},{"$f":"'Population at Risk'!AI247/'Population at Risk'!AI$5","v":7.237902236371486E-4},{"$f":"'Population at Risk'!AJ247/'Population at Risk'!AJ$5","v":2.828956897374319E-4},{"$f":"'Population at Risk'!AK247/'Population at Risk'!AK$5","v":5.0853614731833231E-4},{"$f":"'Population at Risk'!AL247/'Population at Risk'!AL$5","v":2.9378227605865106E-4},{"$f":"'Population at Risk'!AM247/'Population at Risk'!AM$5","v":9.0317830371110735E-5},{"$f":"'Population at Risk'!AN247/'Population at Risk'!AN$5","v":1.9242441321002014E-4},{"$f":"'Population at Risk'!AO247/'Population at Risk'!AO$5","v":1.9242441321002014E-4},{"$f":"'Population at Risk'!AP247/'Population at Risk'!AP$5","v":8.9116962826220651E-4},{"$f":"'Population at Risk'!AQ247/'Population at Risk'!AQ$5","v":3.2332111387374469E-4},{"$f":"'Population at Risk'!AR247/'Population at Risk'!AR$5","v":4.7729092948061E-4},{"$f":"'Population at Risk'!AS247/'Population at Risk'!AS$5","v":2.3859522927507275E-4},{"$f":"'Population at Risk'!AT247/'Population at Risk'!AT$5","v":0},{"$f":"'Population at Risk'!AU247/'Population at Risk'!AU$5","v":0},{"$f":"'Population at Risk'!AV247/'Population at Risk'!AV$5","v":7.3946311889900738E-4},{"$f":"'Population at Risk'!AW247/'Population at Risk'!AW$5","v":3.2133219179260618E-4},{"$f":"'Population at Risk'!AX247/'Population at Risk'!AX$5","v":9.0852542682541017E-4},{"$f":"'Population at Risk'!AY247/'Population at Risk'!AY$5","v":5.2382889703288444E-4},{"$f":"'Population at Risk'!AZ247/'Population at Risk'!AZ$5","v":6.7178172310521371E-4},{"$f":"'Population at Risk'!BA247/'Population at Risk'!BA$5","v":3.8214974203615263E-5},{"$f":"'Population at Risk'!BB247/'Population at Risk'!BB$5","v":1.9797198123546681E-4},{"$f":"'Population at Risk'!BC247/'Population at Risk'!BC$5","v":0},245]
[null,"Male 85-89",{"$f":"'Population at Risk'!C248/'Population at Risk'!C$5","v":5.3348874969060694E-4},{"$f":"'Population at Risk'!D248/'Population at Risk'!D$5","v":4.4051334797016707E-4},{"$f":"'Population at Risk'!E248/'Population at Risk'!E$5","v":5.3645304969979115E-4},{"$f":"'Population at Risk'!F248/'Population at Risk'!F$5","v":4.1509735379196302E-4},{"$f":"'Population at Risk'!G248/'Population at Risk'!G$5","v":1.4085622408372453E-4},{"$f":"'Population at Risk'!H248/'Population at Risk'!H$5","v":2.1173384758451278E-4},{"$f":"'Population at Risk'!I248/'Population at Risk'!I$5","v":1.4682783340004478E-4},{"$f":"'Population at Risk'!J248/'Population at Risk'!J$5","v":2.8002550431159578E-4},{"$f":"'Population at Risk'!K248/'Population at Risk'!K$5","v":1.3473399892589263E-4},{"$f":"'Population at Risk'!L248/'Population at Risk'!L$5","v":1.469864872857073E-4},{"$f":"'Population at Risk'!M248/'Population at Risk'!M$5","v":1.469864872857073E-4},{"$f":"'Population at Risk'!N248/'Population at Risk'!N$5","v":2.2412093589326937E-4},{"$f":"'Population at Risk'!O248/'Population at Risk'!O$5","v":1.1749192372504993E-4},{"$f":"'Population at Risk'!P248/'Population at Risk'!P$5","v":1.3538623694704841E-3},{"$f":"'Population at Risk'!Q248/'Population at Risk'!Q$5","v":2.2218286089525314E-4},{"$f":"'Population at Risk'!R248/'Population at Risk'!R$5","v":1.4070217989118896E-3},{"$f":"'Population at Risk'!S248/'Population at Risk'!S$5","v":3.0699957540726011E-4},{"$f":"'Population at Risk'!T248/'Population at Risk'!T$5","v":6.183005773534371E-4},{"$f":"'Population at Risk'!U248/'Population at Risk'!U$5","v":0},{"$f":"'Population at Risk'!V248/'Population at Risk'!V$5","v":1.767810528490739E-4},{"$f":"'Population at Risk'!W248/'Population at Risk'!W$5","v":2.6252086080935037E-4},{"$f":"'Population at Risk'!X248/'Population at Risk'!X$5","v":2.6252086080935037E-4},{"$f":"'Population at Risk'!Y248/'Population at Risk'!Y$5","v":2.2705197836362843E-4},{"$f":"'Population at Risk'!Z248/'Population at Risk'!Z$5","v":5.1476354666978823E-5},{"$f":"'Population at Risk'!AA248/'Population at Risk'!AA$5","v":1.4663278617477296E-4},{"$f":"'Population at Risk'!AB248/'Population at Risk'!AB$5","v":4.9287815810733775E-4},{"$f":"'Population at Risk'!AC248/'Population at Risk'!AC$5","v":1.9573519006207209E-4},{"$f":"'Population at Risk'!AD248/'Population at Risk'!AD$5","v":1.5049966843516129E-4},{"$f":"'Population at Risk'!AE248/'Population at Risk'!AE$5","v":1.5356623797760691E-4},{"$f":"'Population at Risk'!AF248/'Population at Risk'!AF$5","v":1.578249972240762E-4},{"$f":"'Population at Risk'!AG248/'Population at Risk'!AG$5","v":1.3105843133951931E-4},{"$f":"'Population at Risk'!AH248/'Population at Risk'!AH$5","v":8.2241852438465804E-5},{"$f":"'Population at Risk'!AI248/'Population at Risk'!AI$5","v":3.8944788753536179E-4},{"$f":"'Population at Risk'!AJ248/'Population at Risk'!AJ$5","v":1.401960940291698E-4},{"$f":"'Population at Risk'!AK248/'Population at Risk'!AK$5","v":3.1193712129320387E-4},{"$f":"'Population at Risk'!AL248/'Population at Risk'!AL$5","v":1.4070624800703816E-4},{"$f":"'Population at Risk'!AM248/'Population at Risk'!AM$5","v":4.0090057358605276E-5},{"$f":"'Population at Risk'!AN248/'Population at Risk'!AN$5","v":1.202652582562626E-4},{"$f":"'Population at Risk'!AO248/'Population at Risk'!AO$5","v":1.202652582562626E-4},{"$f":"'Population at Risk'!AP248/'Population at Risk'!AP$5","v":4.9302703860017681E-4},{"$f":"'Population at Risk'!AQ248/'Population at Risk'!AQ$5","v":1.5777181501742867E-4},{"$f":"'Population at Risk'!AR248/'Population at Risk'!AR$5","v":2.4492295264813167E-4},{"$f":"'Population at Risk'!AS248/'Population at Risk'!AS$5","v":1.4682783340004478E-4},{"$f":"'Population at Risk'!AT248/'Population at Risk'!AT$5","v":0},{"$f":"'Population at Risk'!AU248/'Population at Risk'!AU$5","v":0},{"$f":"'Population at Risk'!AV248/'Population at Risk'!AV$5","v":3.8236475624162797E-4},{"$f":"'Population at Risk'!AW248/'Population at Risk'!AW$5","v":1.4157053531846378E-4},{"$f":"'Population at Risk'!AX248/'Population at Risk'!AX$5","v":3.765772059015468E-4},{"$f":"'Population at Risk'!AY248/'Population at Risk'!AY$5","v":2.6661012588028284E-4},{"$f":"'Population at Risk'!AZ248/'Population at Risk'!AZ$5","v":3.5244886176998892E-4},{"$f":"'Population at Risk'!BA248/'Population at Risk'!BA$5","v":1.0918564058175789E-5},{"$f":"'Population at Risk'!BB248/'Population at Risk'!BB$5","v":8.9508608537312119E-5},{"$f":"'Population at Risk'!BC248/'Population at Risk'!BC$5","v":0},246]
[null,"Male 90+",{"$f":"'Population at Risk'!C249/'Population at Risk'!C$5","v":2.6086894808659641E-4},{"$f":"'Population at Risk'!D249/'Population at Risk'!D$5","v":2.0768494601789838E-4},{"$f":"'Population at Risk'!E249/'Population at Risk'!E$5","v":2.4280220969824669E-4},{"$f":"'Population at Risk'!F249/'Population at Risk'!F$5","v":1.4989626664709774E-4},{"$f":"'Population at Risk'!G249/'Population at Risk'!G$5","v":3.7922829561002757E-5},{"$f":"'Population at Risk'!H249/'Population at Risk'!H$5","v":1.0290372745201513E-4},{"$f":"'Population at Risk'!I249/'Population at Risk'!I$5","v":4.221300210251287E-5},{"$f":"'Population at Risk'!J249/'Population at Risk'!J$5","v":1.1390867971997115E-4},{"$f":"'Population at Risk'!K249/'Population at Risk'!K$5","v":3.5664882068618629E-5},{"$f":"'Population at Risk'!L249/'Population at Risk'!L$5","v":6.1594337529248766E-5},{"$f":"'Population at Risk'!M249/'Population at Risk'!M$5","v":6.1594337529248766E-5},{"$f":"'Population at Risk'!N249/'Population at Risk'!N$5","v":7.3108968392991602E-5},{"$f":"'Population at Risk'!O249/'Population at Risk'!O$5","v":4.699676949001997E-5},{"$f":"'Population at Risk'!P249/'Population at Risk'!P$5","v":5.7546722639685002E-4},{"$f":"'Population at Risk'!Q249/'Population at Risk'!Q$5","v":1.385893092712965E-4},{"$f":"'Population at Risk'!R249/'Population at Risk'!R$5","v":5.8560404479852393E-4},{"$f":"'Population at Risk'!S249/'Population at Risk'!S$5","v":1.4479939487832305E-4},{"$f":"'Population at Risk'!T249/'Population at Risk'!T$5","v":2.9908024670027817E-4},{"$f":"'Population at Risk'!U249/'Population at Risk'!U$5","v":0},{"$f":"'Population at Risk'!V249/'Population at Risk'!V$5","v":8.0355024022306306E-5},{"$f":"'Population at Risk'!W249/'Population at Risk'!W$5","v":1.1215679968850178E-4},{"$f":"'Population at Risk'!X249/'Population at Risk'!X$5","v":1.1215679968850178E-4},{"$f":"'Population at Risk'!Y249/'Population at Risk'!Y$5","v":9.6516868851437881E-5},{"$f":"'Population at Risk'!Z249/'Population at Risk'!Z$5","v":2.7092818245778328E-5},{"$f":"'Population at Risk'!AA249/'Population at Risk'!AA$5","v":6.1484911663231516E-5},{"$f":"'Population at Risk'!AB249/'Population at Risk'!AB$5","v":2.2786326907474916E-4},{"$f":"'Population at Risk'!AC249/'Population at Risk'!AC$5","v":8.4279366960611214E-5},{"$f":"'Population at Risk'!AD249/'Population at Risk'!AD$5","v":5.458537197130202E-5},{"$f":"'Population at Risk'!AE249/'Population at Risk'!AE$5","v":6.0990846288978637E-5},{"$f":"'Population at Risk'!AF249/'Population at Risk'!AF$5","v":9.8935072886734328E-5},{"$f":"'Population at Risk'!AG249/'Population at Risk'!AG$5","v":5.2051575567468659E-5},{"$f":"'Population at Risk'!AH249/'Population at Risk'!AH$5","v":3.0772613660750452E-5},{"$f":"'Population at Risk'!AI249/'Population at Risk'!AI$5","v":1.9260449948177417E-4},{"$f":"'Population at Risk'!AJ249/'Population at Risk'!AJ$5","v":6.008404029821562E-5},{"$f":"'Population at Risk'!AK249/'Population at Risk'!AK$5","v":1.2320205630908049E-4},{"$f":"'Population at Risk'!AL249/'Population at Risk'!AL$5","v":6.4941345234017616E-5},{"$f":"'Population at Risk'!AM249/'Population at Risk'!AM$5","v":1.843221027981852E-5},{"$f":"'Population at Risk'!AN249/'Population at Risk'!AN$5","v":4.8106103302505035E-5},{"$f":"'Population at Risk'!AO249/'Population at Risk'!AO$5","v":4.8106103302505035E-5},{"$f":"'Population at Risk'!AP249/'Population at Risk'!AP$5","v":2.009317742219589E-4},{"$f":"'Population at Risk'!AQ249/'Population at Risk'!AQ$5","v":4.2220626553959789E-5},{"$f":"'Population at Risk'!AR249/'Population at Risk'!AR$5","v":1.0811004898495083E-4},{"$f":"'Population at Risk'!AS249/'Population at Risk'!AS$5","v":4.221300210251287E-5},{"$f":"'Population at Risk'!AT249/'Population at Risk'!AT$5","v":0},{"$f":"'Population at Risk'!AU249/'Population at Risk'!AU$5","v":0},{"$f":"'Population at Risk'!AV249/'Population at Risk'!AV$5","v":2.0044672243503845E-4},{"$f":"'Population at Risk'!AW249/'Population at Risk'!AW$5","v":4.8068135247664448E-5},{"$f":"'Population at Risk'!AX249/'Population at Risk'!AX$5","v":1.6590464315942272E-4},{"$f":"'Population at Risk'!AY249/'Population at Risk'!AY$5","v":1.0513099875709784E-4},{"$f":"'Population at Risk'!AZ249/'Population at Risk'!AZ$5","v":1.3068993028719385E-4},{"$f":"'Population at Risk'!BA249/'Population at Risk'!BA$5","v":3.6395213527252631E-6},{"$f":"'Population at Risk'!BB249/'Population at Risk'!BB$5","v":4.8439952855486559E-5},{"$f":"'Population at Risk'!BC249/'Population at Risk'!BC$5","v":0},247]

{"sheet":"Targeting","index":18,"n_rows":249,"n_cols":7,"rows_kept":249,"cut":false,"hidden":true,"merged":[]}
["Calculating how many will be treated in each group, for each targeting strategy"]
[]
["SIMD","group","Even distribution","Targeting to SIMD Q1","Targeting to SIMD Q1 & Q2","Proportionate to need",1]
[null,null,null,null,null,null,2]
["All quintiles","16+ Males and Females",null,null,null,null,3]
["Q1 and Q2","16+ Males and Females",null,null,null,null,4]
["SIMD Q1 (most deprived)","16+ Males and Females",null,null,null,null,5]
["SIMD Q2",null,null,null,null,null,6]
["SIMD Q3",null,null,null,null,null,7]
["SIMD Q4",null,null,null,null,null,8]
["SIMD Q5 (least deprived)",null,null,null,null,null,9]
["SIMD Q1 (most deprived)","16+ Females",null,null,null,null,10]
["SIMD Q2",null,null,null,null,null,11]
["SIMD Q3",null,null,null,null,null,12]
["SIMD Q4",null,null,null,null,null,13]
["SIMD Q5 (least deprived)",null,null,null,null,null,14]
["SIMD Q1 (most deprived)","16+ Males",null,null,null,null,15]
["SIMD Q2",null,null,null,null,null,16]
["SIMD Q3",null,null,null,null,null,17]
["SIMD Q4",null,null,null,null,null,18]
["SIMD Q5 (least deprived)",null,null,null,null,null,19]
["All quintiles","Female 0-4",null,null,null,null,20]
[null,"Female 5-9",null,null,null,null,21]
[null,"Female 10-15",null,null,null,null,22]
[null,"Female 16-19",null,null,null,null,23]
[null,"Female 20-24",null,null,null,null,24]
[null,"Female 25-29",null,null,null,null,25]
[null,"Female 30-34",null,null,null,null,26]
[null,"Female 35-39",null,null,null,null,27]
[null,"Female 40-44",null,null,null,null,28]
[null,"Female 45-49",null,null,null,null,29]
[null,"Female 50-54",null,null,null,null,30]
[null,"Female 55-59",null,null,null,null,31]
[null,"Female 60-64",null,null,null,null,32]
[null,"Female 65-69",null,null,null,null,33]
[null,"Female 70-74",null,null,null,null,34]
[null,"Female 75-79",null,null,null,null,35]
[null,"Female 80-84",null,null,null,null,36]
[null,"Female 85-89",null,null,null,null,37]
[null,"Female 90+",null,null,null,null,38]
[null,"Male 0-4",null,null,null,null,39]
[null,"Male 5-9",null,null,null,null,40]
[null,"Male 10-15",null,null,null,null,41]
[null,"Male 16-19",null,null,null,null,42]
[null,"Male 20-24",null,null,null,null,43]
[null,"Male 25-29",null,null,null,null,44]
[null,"Male 30-34",null,null,null,null,45]
[null,"Male 35-39",null,null,null,null,46]
[null,"Male 40-44",null,null,null,null,47]
[null,"Male 45-49",null,null,null,null,48]
[null,"Male 50-54",null,null,null,null,49]
[null,"Male 55-59",null,null,null,null,50]
[null,"Male 60-64",null,null,null,null,51]
[null,"Male 65-69",null,null,null,null,52]
[null,"Male 70-74",null,null,null,null,53]
[null,"Male 75-79",null,null,null,null,54]
[null,"Male 80-84",null,null,null,null,55]
[null,"Male 85-89",null,null,null,null,56]
[null,"Male 90+",null,null,null,null,57]
["SIMD Q1 (most deprived)","Female 0-4",{"$f":"ROUND(Options!$B$21*HLOOKUP(Calculations!$E$2,Pop2016fraction!$C$3:$BC$251,Pop2016fraction!$BD60,FALSE),0)","v":0},{"$f":"ROUND(Options!$B$21*HLOOKUP(Calculations!$E$2,Pop2016fractionQ1!$C$3:$BC$251,Pop2016fractionQ1!$BD60,FALSE),0)","v":0},{"$f":"ROUND(Options!$B$21*HLOOKUP(Calculations!$E$2,'Pop2016fractionQ1&2'!$C$3:$BC$251,'Pop2016fractionQ1&2'!$BD60,FALSE),0)","v":0},{"$f":"ROUND(Options!$B$21*HLOOKUP(Calculations!$E$2,PARfraction!$C$3:$BC$251,PARfraction!$BD60,FALSE),0)","v":0},58]
[null,"Female 5-9",{"$f":"ROUND(Options!$B$21*HLOOKUP(Calculations!$E$2,Pop2016fraction!$C$3:$BC$251,Pop2016fraction!$BD61,FALSE),0)","v":0},{"$f":"ROUND(Options!$B$21*HLOOKUP(Calculations!$E$2,Pop2016fractionQ1!$C$3:$BC$251,Pop2016fractionQ1!$BD61,FALSE),0)","v":0},{"$f":"ROUND(Options!$B$21*HLOOKUP(Calculations!$E$2,'Pop2016fractionQ1&2'!$C$3:$BC$251,'Pop2016fractionQ1&2'!$BD61,FALSE),0)","v":0},{"$f":"ROUND(Options!$B$21*HLOOKUP(Calculations!$E$2,PARfraction!$C$3:$BC$251,PARfraction!$BD61,FALSE),0)","v":0},59]
[null,"Female 10-15",{"$f":"ROUND(Options!$B$21*HLOOKUP(Calculations!$E$2,Pop2016fraction!$C$3:$BC$251,Pop2016fraction!$BD62,FALSE),0)","v":0},{"$f":"ROUND(Options!$B$21*HLOOKUP(Calculations!$E$2,Pop2016fractionQ1!$C$3:$BC$251,Pop2016fractionQ1!$BD62,FALSE),0)","v":0},{"$f":"ROUND(Options!$B$21*HLOOKUP(Calculations!$E$2,'Pop2016fractionQ1&2'!$C$3:$BC$251,'Pop2016fractionQ1&2'!$BD62,FALSE),0)","v":0},{"$f":"ROUND(Options!$B$21*HLOOKUP(Calculations!$E$2,PARfraction!$C$3:$BC$251,PARfraction!$BD62,FALSE),0)","v":0},60]
[null,"Female 16-19",{"$f":"ROUND(Options!$B$21*HLOOKUP(Calculations!$E$2,Pop2016fraction!$C$3:$BC$251,Pop2016fraction!$BD63,FALSE),0)","v":3720},{"$f":"ROUND(Options!$B$21*HLOOKUP(Calculations!$E$2,Pop2016fractionQ1!$C$3:$BC$251,Pop2016fractionQ1!$BD63,FALSE),0)","v":19143},{"$f":"ROUND(Options!$B$21*HLOOKUP(Calculations!$E$2,'Pop2016fractionQ1&2'!$C$3:$BC$251,'Pop2016fractionQ1&2'!$BD63,FALSE),0)","v":9437},{"$f":"ROUND(Options!$B$21*HLOOKUP(Calculations!$E$2,PARfraction!$C$3:$BC$251,PARfraction!$BD63,FALSE),0)","v":4664},61]
[null,"Female 20-24",{"$f":"ROUND(Options!$B$21*HLOOKUP(Calculations!$E$2,Pop2016fraction!$C$3:$BC$251,Pop2016fraction!$BD64,FALSE),0)","v":5797},{"$f":"ROUND(Options!$B$21*HLOOKUP(Calculations!$E$2,Pop2016fractionQ1!$C$3:$BC$251,Pop2016fractionQ1!$BD64,FALSE),0)","v":29833},{"$f":"ROUND(Options!$B$21*HLOOKUP(Calculations!$E$2,'Pop2016fractionQ1&2'!$C$3:$BC$251,'Pop2016fractionQ1&2'!$BD64,FALSE),0)","v":14707},{"$f":"ROUND(Options!$B$21*HLOOKUP(Calculations!$E$2,PARfraction!$C$3:$BC$251,PARfraction!$BD64,FALSE),0)","v":7269},62]
[null,"Female 25-29",{"$f":"ROUND(Options!$B$21*HLOOKUP(Calculations!$E$2,Pop2016fraction!$C$3:$BC$251,Pop2016fraction!$BD65,FALSE),0)","v":6953},{"$f":"ROUND(Options!$B$21*HLOOKUP(Calculations!$E$2,Pop2016fractionQ1!$C$3:$BC$251,Pop2016fractionQ1!$BD65,FALSE),0)","v":35783},{"$f":"ROUND(Options!$B$21*HLOOKUP(Calculations!$E$2,'Pop2016fractionQ1&2'!$C$3:$BC$251,'Pop2016fractionQ1&2'!$BD65,FALSE),0)","v":17641},{"$f":"ROUND(Options!$B$21*HLOOKUP(Calculations!$E$2,PARfraction!$C$3:$BC$251,PARfraction!$BD65,FALSE),0)","v":11299},63]
[null,"Female 30-34",{"$f":"ROUND(Options!$B$21*HLOOKUP(Calculations!$E$2,Pop2016fraction!$C$3:$BC$251,Pop2016fraction!$BD66,FALSE),0)","v":6354},{"$f":"ROUND(Options!$B$21*HLOOKUP(Calculations!$E$2,Pop2016fractionQ1!$C$3:$BC$251,Pop2016fractionQ1!$BD66,FALSE),0)","v":32700},{"$f":"ROUND(Options!$B$21*HLOOKUP(Calculations!$E$2,'Pop2016fractionQ1&2'!$C$3:$BC$251,'Pop2016fractionQ1&2'!$BD66,FALSE),0)","v":16121},{"$f":"ROUND(Options!$B$21*HLOOKUP(Calculations!$E$2,PARfraction!$C$3:$BC$251,PARfraction!$BD66,FALSE),0)","v":10325},64]
[null,"Female 35-39",{"$f":"ROUND(Options!$B$21*HLOOKUP(Calculations!$E$2,Pop2016fraction!$C$3:$BC$251,Pop2016fraction!$BD67,FALSE),0)","v":5398},{"$f":"ROUND(Options!$B$21*HLOOKUP(Calculations!$E$2,Pop2016fractionQ1!$C$3:$BC$251,Pop2016fractionQ1!$BD67,FALSE),0)","v":27782},{"$f":"ROUND(Options!$B$21*HLOOKUP(Calculations!$E$2,'Pop2016fractionQ1&2'!$C$3:$BC$251,'Pop2016fractionQ1&2'!$BD67,FALSE),0)","v":13696},{"$f":"ROUND(Options!$B$21*HLOOKUP(Calculations!$E$2,PARfraction!$C$3:$BC$251,PARfraction!$BD67,FALSE),0)","v":9609},65]
[null,"Female 40-44",{"$f":"ROUND(Options!$B$21*HLOOKUP(Calculations!$E$2,Pop2016fraction!$C$3:$BC$251,Pop2016fraction!$BD68,FALSE),0)","v":5187},{"$f":"ROUND(Options!$B$21*HLOOKUP(Calculations!$E$2,Pop2016fractionQ1!$C$3:$BC$251,Pop2016fractionQ1!$BD68,FALSE),0)","v":26692},{"$f":"ROUND(Options!$B$21*HLOOKUP(Calculations!$E$2,'Pop2016fractionQ1&2'!$C$3:$BC$251,'Pop2016fractionQ1&2'!$BD68,FALSE),0)","v":13159},{"$f":"ROUND(Options!$B$21*HLOOKUP(Calculations!$E$2,PARfraction!$C$3:$BC$251,PARfraction!$BD68,FALSE),0)","v":9232},66]
[null,"Female 45-49",{"$f":"ROUND(Options!$B$21*HLOOKUP(Calculations!$E$2,Pop2016fraction!$C$3:$BC$251,Pop2016fraction!$BD69,FALSE),0)","v":6039},{"$f":"ROUND(Options!$B$21*HLOOKUP(Calculations!$E$2,Pop2016fractionQ1!$C$3:$BC$251,Pop2016fractionQ1!$BD69,FALSE),0)","v":31080},{"$f":"ROUND(Options!$B$21*HLOOKUP(Calculations!$E$2,'Pop2016fractionQ1&2'!$C$3:$BC$251,'Pop2016fractionQ1&2'!$BD69,FALSE),0)","v":15322},{"$f":"ROUND(Options!$B$21*HLOOKUP(Calculations!$E$2,PARfraction!$C$3:$BC$251,PARfraction!$BD69,FALSE),0)","v":11806},67]
[null,"Female 50-54",{"$f":"ROUND(Options!$B$21*HLOOKUP(Calculations!$E$2,Pop2016fraction!$C$3:$BC$251,Pop2016fraction!$BD70,FALSE),0)","v":6117},{"$f":"ROUND(Options!$B$21*HLOOKUP(Calculations!$E$2,Pop2016fractionQ1!$C$3:$BC$251,Pop2016fractionQ1!$BD70,FALSE),0)","v":31482},{"$f":"ROUND(Options!$B$21*HLOOKUP(Calculations!$E$2,'Pop2016fractionQ1&2'!$C$3:$BC$251,'Pop2016fractionQ1&2'!$BD70,FALSE),0)","v":15520},{"$f":"ROUND(Options!$B$21*HLOOKUP(Calculations!$E$2,PARfraction!$C$3:$BC$251,PARfraction!$BD70,FALSE),0)","v":11958},68]
[null,"Female 55-59",{"$f":"ROUND(Options!$B$21*HLOOKUP(Calculations!$E$2,Pop2016fraction!$C$3:$BC$251,Pop2016fraction!$BD71,FALSE),0)","v":5474},{"$f":"ROUND(Options!$B$21*HLOOKUP(Calculations!$E$2,Pop2016fractionQ1!$C$3:$BC$251,Pop2016fractionQ1!$BD71,FALSE),0)","v":28171},{"$f":"ROUND(Options!$B$21*HLOOKUP(Calculations!$E$2,'Pop2016fractionQ1&2'!$C$3:$BC$251,'Pop2016fractionQ1&2'!$BD71,FALSE),0)","v":13888},{"$f":"ROUND(Options!$B$21*HLOOKUP(Calculations!$E$2,PARfraction!$C$3:$BC$251,PARfraction!$BD71,FALSE),0)","v":9803},69]
[null,"Female 60-64",{"$f":"ROUND(Options!$B$21*HLOOKUP(Calculations!$E$2,Pop2016fraction!$C$3:$BC$251,Pop2016fraction!$BD72,FALSE),0)","v":4501},{"$f":"ROUND(Options!$B$21*HLOOKUP(Calculations!$E$2,Pop2016fractionQ1!$C$3:$BC$251,Pop2016fractionQ1!$BD72,FALSE),0)","v":23163},{"$f":"ROUND(Options!$B$21*HLOOKUP(Calculations!$E$2,'Pop2016fractionQ1&2'!$C$3:$BC$251,'Pop2016fractionQ1&2'!$BD72,FALSE),0)","v":11419},{"$f":"ROUND(Options!$B$21*HLOOKUP(Calculations!$E$2,PARfraction!$C$3:$BC$251,PARfraction!$BD72,FALSE),0)","v":8060},70]
[null,"Female 65-69",{"$f":"ROUND(Options!$B$21*HLOOKUP(Calculations!$E$2,Pop2016fraction!$C$3:$BC$251,Pop2016fraction!$BD73,FALSE),0)","v":4277},{"$f":"ROUND(Options!$B$21*HLOOKUP(Calculations!$E$2,Pop2016fractionQ1!$C$3:$BC$251,Pop2016fractionQ1!$BD73,FALSE),0)","v":22013},{"$f":"ROUND(Options!$B$21*HLOOKUP(Calculations!$E$2,'Pop2016fractionQ1&2'!$C$3:$BC$251,'Pop2016fractionQ1&2'!$BD73,FALSE),0)","v":10852},{"$f":"ROUND(Options!$B$21*HLOOKUP(Calculations!$E$2,PARfraction!$C$3:$BC$251,PARfraction!$BD73,FALSE),0)","v":5304},71]
[null,"Female 70-74",{"$f":"ROUND(Options!$B$21*HLOOKUP(Calculations!$E$2,Pop2016fraction!$C$3:$BC$251,Pop2016fraction!$BD74,FALSE),0)","v":3357},{"$f":"ROUND(Options!$B$21*HLOOKUP(Calculations!$E$2,Pop2016fractionQ1!$C$3:$BC$251,Pop2016fractionQ1!$BD74,FALSE),0)","v":17274},{"$f":"ROUND(Options!$B$21*HLOOKUP(Calculations!$E$2,'Pop2016fractionQ1&2'!$C$3:$BC$251,'Pop2016fractionQ1&2'!$BD74,FALSE),0)","v":8516},{"$f":"ROUND(Options!$B$21*HLOOKUP(Calculations!$E$2,PARfraction!$C$3:$BC$251,PARfraction!$BD74,FALSE),0)","v":4162},72]
[null,"Female 75-79",{"$f":"ROUND(Options!$B$21*HLOOKUP(Calculations!$E$2,Pop2016fraction!$C$3:$BC$251,Pop2016fraction!$BD75,FALSE),0)","v":2949},{"$f":"ROUND(Options!$B$21*HLOOKUP(Calculations!$E$2,Pop2016fractionQ1!$C$3:$BC$251,Pop2016fractionQ1!$BD75,FALSE),0)","v":15175},{"$f":"ROUND(Options!$B$21*HLOOKUP(Calculations!$E$2,'Pop2016fractionQ1&2'!$C$3:$BC$251,'Pop2016fractionQ1&2'!$BD75,FALSE),0)","v":7481},{"$f":"ROUND(Options!$B$21*HLOOKUP(Calculations!$E$2,PARfraction!$C$3:$BC$251,PARfraction!$BD75,FALSE),0)","v":1990},73]
[null,"Female 80-84",{"$f":"ROUND(Options!$B$21*HLOOKUP(Calculations!$E$2,Pop2016fraction!$C$3:$BC$251,Pop2016fraction!$BD76,FALSE),0)","v":2277},{"$f":"ROUND(Options!$B$21*HLOOKUP(Calculations!$E$2,Pop2016fractionQ1!$C$3:$BC$251,Pop2016fractionQ1!$BD76,FALSE),0)","v":11716},{"$f":"ROUND(Options!$B$21*HLOOKUP(Calculations!$E$2,'Pop2016fractionQ1&2'!$C$3:$BC$251,'Pop2016fractionQ1&2'!$BD76,FALSE),0)","v":5776},{"$f":"ROUND(Options!$B$21*HLOOKUP(Calculations!$E$2,PARfraction!$C$3:$BC$251,PARfraction!$BD76,FALSE),0)","v":1537},74]
[null,"Female 85-89",{"$f":"ROUND(Options!$B$21*HLOOKUP(Calculations!$E$2,Pop2016fraction!$C$3:$BC$251,Pop2016fraction!$BD77,FALSE),0)","v":1366},{"$f":"ROUND(Options!$B$21*HLOOKUP(Calculations!$E$2,Pop2016fractionQ1!$C$3:$BC$251,Pop2016fractionQ1!$BD77,FALSE),0)","v":7032},{"$f":"ROUND(Options!$B$21*HLOOKUP(Calculations!$E$2,'Pop2016fractionQ1&2'!$C$3:$BC$251,'Pop2016fractionQ1&2'!$BD77,FALSE),0)","v":3467},{"$f":"ROUND(Options!$B$21*HLOOKUP(Calculations!$E$2,PARfraction!$C$3:$BC$251,PARfraction!$BD77,FALSE),0)","v":922},75]
[null,"Female 90+",{"$f":"ROUND(Options!$B$21*HLOOKUP(Calculations!$E$2,Pop2016fraction!$C$3:$BC$251,Pop2016fraction!$BD78,FALSE),0)","v":743},{"$f":"ROUND(Options!$B$21*HLOOKUP(Calculations!$E$2,Pop2016fractionQ1!$C$3:$BC$251,Pop2016fractionQ1!$BD78,FALSE),0)","v":3826},{"$f":"ROUND(Options!$B$21*HLOOKUP(Calculations!$E$2,'Pop2016fractionQ1&2'!$C$3:$BC$251,'Pop2016fractionQ1&2'!$BD78,FALSE),0)","v":1886},{"$f":"ROUND(Options!$B$21*HLOOKUP(Calculations!$E$2,PARfraction!$C$3:$BC$251,PARfraction!$BD78,FALSE),0)","v":502},76]
[null,"Male 0-4",{"$f":"ROUND(Options!$B$21*HLOOKUP(Calculations!$E$2,Pop2016fraction!$C$3:$BC$251,Pop2016fraction!$BD79,FALSE),0)","v":0},{"$f":"ROUND(Options!$B$21*HLOOKUP(Calculations!$E$2,Pop2016fractionQ1!$C$3:$BC$251,Pop2016fractionQ1!$BD79,FALSE),0)","v":0},{"$f":"ROUND(Options!$B$21*HLOOKUP(Calculations!$E$2,'Pop2016fractionQ1&2'!$C$3:$BC$251,'Pop2016fractionQ1&2'!$BD79,FALSE),0)","v":0},{"$f":"ROUND(Options!$B$21*HLOOKUP(Calculations!$E$2,PARfraction!$C$3:$BC$251,PARfraction!$BD79,FALSE),0)","v":0},77]
[null,"Male 5-9",{"$f":"ROUND(Options!$B$21*HLOOKUP(Calculations!$E$2,Pop2016fraction!$C$3:$BC$251,Pop2016fraction!$BD80,FALSE),0)","v":0},{"$f":"ROUND(Options!$B$21*HLOOKUP(Calculations!$E$2,Pop2016fractionQ1!$C$3:$BC$251,Pop2016fractionQ1!$BD80,FALSE),0)","v":0},{"$f":"ROUND(Options!$B$21*HLOOKUP(Calculations!$E$2,'Pop2016fractionQ1&2'!$C$3:$BC$251,'Pop2016fractionQ1&2'!$BD80,FALSE),0)","v":0},{"$f":"ROUND(Options!$B$21*HLOOKUP(Calculations!$E$2,PARfraction!$C$3:$BC$251,PARfraction!$BD80,FALSE),0)","v":0},78]
[null,"Male 10-15",{"$f":"ROUND(Options!$B$21*HLOOKUP(Calculations!$E$2,Pop2016fraction!$C$3:$BC$251,Pop2016fraction!$BD81,FALSE),0)","v":0},{"$f":"ROUND(Options!$B$21*HLOOKUP(Calculations!$E$2,Pop2016fractionQ1!$C$3:$BC$251,Pop2016fractionQ1!$BD81,FALSE),0)","v":0},{"$f":"ROUND(Options!$B$21*HLOOKUP(Calculations!$E$2,'Pop2016fractionQ1&2'!$C$3:$BC$251,'Pop2016fractionQ1&2'!$BD81,FALSE),0)","v":0},{"$f":"ROUND(Options!$B$21*HLOOKUP(Calculations!$E$2,PARfraction!$C$3:$BC$251,PARfraction!$BD81,FALSE),0)","v":0},79]
[null,"Male 16-19",{"$f":"ROUND(Options!$B$21*HLOOKUP(Calculations!$E$2,Pop2016fraction!$C$3:$BC$251,Pop2016fraction!$BD82,FALSE),0)","v":3907},{"$f":"ROUND(Options!$B$21*HLOOKUP(Calculations!$E$2,Pop2016fractionQ1!$C$3:$BC$251,Pop2016fractionQ1!$BD82,FALSE),0)","v":20108},{"$f":"ROUND(Options!$B$21*HLOOKUP(Calculations!$E$2,'Pop2016fractionQ1&2'!$C$3:$BC$251,'Pop2016fractionQ1&2'!$BD82,FALSE),0)","v":9913},{"$f":"ROUND(Options!$B$21*HLOOKUP(Calculations!$E$2,PARfraction!$C$3:$BC$251,PARfraction!$BD82,FALSE),0)","v":5887},80]
[null,"Male 20-24",{"$f":"ROUND(Options!$B$21*HLOOKUP(Calculations!$E$2,Pop2016fraction!$C$3:$BC$251,Pop2016fraction!$BD83,FALSE),0)","v":5728},{"$f":"ROUND(Options!$B$21*HLOOKUP(Calculations!$E$2,Pop2016fractionQ1!$C$3:$BC$251,Pop2016fractionQ1!$BD83,FALSE),0)","v":29481},{"$f":"ROUND(Options!$B$21*HLOOKUP(Calculations!$E$2,'Pop2016fractionQ1&2'!$C$3:$BC$251,'Pop2016fractionQ1&2'!$BD83,FALSE),0)","v":14534},{"$f":"ROUND(Options!$B$21*HLOOKUP(Calculations!$E$2,PARfraction!$C$3:$BC$251,PARfraction!$BD83,FALSE),0)","v":8632},81]
[null,"Male 25-29",{"$f":"ROUND(Options!$B$21*HLOOKUP(Calculations!$E$2,Pop2016fraction!$C$3:$BC$251,Pop2016fraction!$BD84,FALSE),0)","v":6564},{"$f":"ROUND(Options!$B$21*HLOOKUP(Calculations!$E$2,Pop2016fractionQ1!$C$3:$BC$251,Pop2016fractionQ1!$BD84,FALSE),0)","v":33778},{"$f":"ROUND(Options!$B$21*HLOOKUP(Calculations!$E$2,'Pop2016fractionQ1&2'!$C$3:$BC$251,'Pop2016fractionQ1&2'!$BD84,FALSE),0)","v":16652},{"$f":"ROUND(Options!$B$21*HLOOKUP(Calculations!$E$2,PARfraction!$C$3:$BC$251,PARfraction!$BD84,FALSE),0)","v":12179},82]
[null,"Male 30-34",{"$f":"ROUND(Options!$B$21*HLOOKUP(Calculations!$E$2,Pop2016fraction!$C$3:$BC$251,Pop2016fraction!$BD85,FALSE),0)","v":5856},{"$f":"ROUND(Options!$B$21*HLOOKUP(Calculations!$E$2,Pop2016fractionQ1!$C$3:$BC$251,Pop2016fractionQ1!$BD85,FALSE),0)","v":30136},{"$f":"ROUND(Options!$B$21*HLOOKUP(Calculations!$E$2,'Pop2016fractionQ1&2'!$C$3:$BC$251,'Pop2016fractionQ1&2'!$BD85,FALSE),0)","v":14857},{"$f":"ROUND(Options!$B$21*HLOOKUP(Calculations!$E$2,PARfraction!$C$3:$BC$251,PARfraction!$BD85,FALSE),0)","v":10866},83]
[null,"Male 35-39",{"$f":"ROUND(Options!$B$21*HLOOKUP(Calculations!$E$2,Pop2016fraction!$C$3:$BC$251,Pop2016fraction!$BD86,FALSE),0)","v":5082},{"$f":"ROUND(Options!$B$21*HLOOKUP(Calculations!$E$2,Pop2016fractionQ1!$C$3:$BC$251,Pop2016fractionQ1!$BD86,FALSE),0)","v":26153},{"$f":"ROUND(Options!$B$21*HLOOKUP(Calculations!$E$2,'Pop2016fractionQ1&2'!$C$3:$BC$251,'Pop2016fractionQ1&2'!$BD86,FALSE),0)","v":12893},{"$f":"ROUND(Options!$B$21*HLOOKUP(Calculations!$E$2,PARfraction!$C$3:$BC$251,PARfraction!$BD86,FALSE),0)","v":10915},84]
[null,"Male 40-44",{"$f":"ROUND(Options!$B$21*HLOOKUP(Calculations!$E$2,Pop2016fraction!$C$3:$BC$251,Pop2016fraction!$BD87,FALSE),0)","v":4872},{"$f":"ROUND(Options!$B$21*HLOOKUP(Calculations!$E$2,Pop2016fractionQ1!$C$3:$BC$251,Pop2016fractionQ1!$BD87,FALSE),0)","v":25074},{"$f":"ROUND(Options!$B$21*HLOOKUP(Calculations!$E$2,'Pop2016fractionQ1&2'!$C$3:$BC$251,'Pop2016fractionQ1&2'!$BD87,FALSE),0)","v":12361},{"$f":"ROUND(Options!$B$21*HLOOKUP(Calculations!$E$2,PARfraction!$C$3:$BC$251,PARfraction!$BD87,FALSE),0)","v":10465},85]
[null,"Male 45-49",{"$f":"ROUND(Options!$B$21*HLOOKUP(Calculations!$E$2,Pop2016fraction!$C$3:$BC$251,Pop2016fraction!$BD88,FALSE),0)","v":5528},{"$f":"ROUND(Options!$B$21*HLOOKUP(Calculations!$E$2,Pop2016fractionQ1!$C$3:$BC$251,Pop2016fractionQ1!$BD88,FALSE),0)","v":28448},{"$f":"ROUND(Options!$B$21*HLOOKUP(Calculations!$E$2,'Pop2016fractionQ1&2'!$C$3:$BC$251,'Pop2016fractionQ1&2'!$BD88,FALSE),0)","v":14025},{"$f":"ROUND(Options!$B$21*HLOOKUP(Calculations!$E$2,PARfraction!$C$3:$BC$251,PARfraction!$BD88,FALSE),0)","v":10886},86]
[null,"Male 50-54",{"$f":"ROUND(Options!$B$21*HLOOKUP(Calculations!$E$2,Pop2016fraction!$C$3:$BC$251,Pop2016fraction!$BD89,FALSE),0)","v":5689},{"$f":"ROUND(Options!$B$21*HLOOKUP(Calculations!$E$2,Pop2016fractionQ1!$C$3:$BC$251,Pop2016fractionQ1!$BD89,FALSE),0)","v":29276},{"$f":"ROUND(Options!$B$21*HLOOKUP(Calculations!$E$2,'Pop2016fractionQ1&2'!$C$3:$BC$251,'Pop2016fractionQ1&2'!$BD89,FALSE),0)","v":14433},{"$f":"ROUND(Options!$B$21*HLOOKUP(Calculations!$E$2,PARfraction!$C$3:$BC$251,PARfraction!$BD89,FALSE),0)","v":11203},87]
[null,"Male 55-59",{"$f":"ROUND(Options!$B$21*HLOOKUP(Calculations!$E$2,Pop2016fraction!$C$3:$BC$251,Pop2016fraction!$BD90,FALSE),0)","v":5123},{"$f":"ROUND(Options!$B$21*HLOOKUP(Calculations!$E$2,Pop2016fractionQ1!$C$3:$BC$251,Pop2016fractionQ1!$BD90,FALSE),0)","v":26365},{"$f":"ROUND(Options!$B$21*HLOOKUP(Calculations!$E$2,'Pop2016fractionQ1&2'!$C$3:$BC$251,'Pop2016fractionQ1&2'!$BD90,FALSE),0)","v":12998},{"$f":"ROUND(Options!$B$21*HLOOKUP(Calculations!$E$2,PARfraction!$C$3:$BC$251,PARfraction!$BD90,FALSE),0)","v":10040},88]
[null,"Male 60-64",{"$f":"ROUND(Options!$B$21*HLOOKUP(Calculations!$E$2,Pop2016fraction!$C$3:$BC$251,Pop2016fraction!$BD91,FALSE),0)","v":4215},{"$f":"ROUND(Options!$B$21*HLOOKUP(Calculations!$E$2,Pop2016fractionQ1!$C$3:$BC$251,Pop2016fractionQ1!$BD91,FALSE),0)","v":21693},{"$f":"ROUND(Options!$B$21*HLOOKUP(Calculations!$E$2,'Pop2016fractionQ1&2'!$C$3:$BC$251,'Pop2016fractionQ1&2'!$BD91,FALSE),0)","v":10694},{"$f":"ROUND(Options!$B$21*HLOOKUP(Calculations!$E$2,PARfraction!$C$3:$BC$251,PARfraction!$BD91,FALSE),0)","v":8261},89]
[null,"Male 65-69",{"$f":"ROUND(Options!$B$21*HLOOKUP(Calculations!$E$2,Pop2016fraction!$C$3:$BC$251,Pop2016fraction!$BD92,FALSE),0)","v":3939},{"$f":"ROUND(Options!$B$21*HLOOKUP(Calculations!$E$2,Pop2016fractionQ1!$C$3:$BC$251,Pop2016fractionQ1!$BD92,FALSE),0)","v":20272},{"$f":"ROUND(Options!$B$21*HLOOKUP(Calculations!$E$2,'Pop2016fractionQ1&2'!$C$3:$BC$251,'Pop2016fractionQ1&2'!$BD92,FALSE),0)","v":9994},{"$f":"ROUND(Options!$B$21*HLOOKUP(Calculations!$E$2,PARfraction!$C$3:$BC$251,PARfraction!$BD92,FALSE),0)","v":5523},90]
[null,"Male 70-74",{"$f":"ROUND(Options!$B$21*HLOOKUP(Calculations!$E$2,Pop2016fraction!$C$3:$BC$251,Pop2016fraction!$BD93,FALSE),0)","v":2828},{"$f":"ROUND(Options!$B$21*HLOOKUP(Calculations!$E$2,Pop2016fractionQ1!$C$3:$BC$251,Pop2016fractionQ1!$BD93,FALSE),0)","v":14556},{"$f":"ROUND(Options!$B$21*HLOOKUP(Calculations!$E$2,'Pop2016fractionQ1&2'!$C$3:$BC$251,'Pop2016fractionQ1&2'!$BD93,FALSE),0)","v":7176},{"$f":"ROUND(Options!$B$21*HLOOKUP(Calculations!$E$2,PARfraction!$C$3:$BC$251,PARfraction!$BD93,FALSE),0)","v":3966},91]
[null,"Male 75-79",{"$f":"ROUND(Options!$B$21*HLOOKUP(Calculations!$E$2,Pop2016fraction!$C$3:$BC$251,Pop2016fraction!$BD94,FALSE),0)","v":2144},{"$f":"ROUND(Options!$B$21*HLOOKUP(Calculations!$E$2,Pop2016fractionQ1!$C$3:$BC$251,Pop2016fractionQ1!$BD94,FALSE),0)","v":11033},{"$f":"ROUND(Options!$B$21*HLOOKUP(Calculations!$E$2,'Pop2016fractionQ1&2'!$C$3:$BC$251,'Pop2016fractionQ1&2'!$BD94,FALSE),0)","v":5439},{"$f":"ROUND(Options!$B$21*HLOOKUP(Calculations!$E$2,PARfraction!$C$3:$BC$251,PARfraction!$BD94,FALSE),0)","v":1656},92]
[null,"Male 80-84",{"$f":"ROUND(Options!$B$21*HLOOKUP(Calculations!$E$2,Pop2016fraction!$C$3:$BC$251,Pop2016fraction!$BD95,FALSE),0)","v":1423},{"$f":"ROUND(Options!$B$21*HLOOKUP(Calculations!$E$2,Pop2016fractionQ1!$C$3:$BC$251,Pop2016fractionQ1!$BD95,FALSE),0)","v":7323},{"$f":"ROUND(Options!$B$21*HLOOKUP(Calculations!$E$2,'Pop2016fractionQ1&2'!$C$3:$BC$251,'Pop2016fractionQ1&2'!$BD95,FALSE),0)","v":3610},{"$f":"ROUND(Options!$B$21*HLOOKUP(Calculations!$E$2,PARfraction!$C$3:$BC$251,PARfraction!$BD95,FALSE),0)","v":1099},93]
[null,"Male 85-89",{"$f":"ROUND(Options!$B$21*HLOOKUP(Calculations!$E$2,Pop2016fraction!$C$3:$BC$251,Pop2016fraction!$BD96,FALSE),0)","v":685},{"$f":"ROUND(Options!$B$21*HLOOKUP(Calculations!$E$2,Pop2016fractionQ1!$C$3:$BC$251,Pop2016fractionQ1!$BD96,FALSE),0)","v":3528},{"$f":"ROUND(Options!$B$21*HLOOKUP(Calculations!$E$2,'Pop2016fractionQ1&2'!$C$3:$BC$251,'Pop2016fractionQ1&2'!$BD96,FALSE),0)","v":1739},{"$f":"ROUND(Options!$B$21*HLOOKUP(Calculations!$E$2,PARfraction!$C$3:$BC$251,PARfraction!$BD96,FALSE),0)","v":529},94]
[null,"Male 90+",{"$f":"ROUND(Options!$B$21*HLOOKUP(Calculations!$E$2,Pop2016fraction!$C$3:$BC$251,Pop2016fraction!$BD97,FALSE),0)","v":295},{"$f":"ROUND(Options!$B$21*HLOOKUP(Calculations!$E$2,Pop2016fractionQ1!$C$3:$BC$251,Pop2016fractionQ1!$BD97,FALSE),0)","v":1519},{"$f":"ROUND(Options!$B$21*HLOOKUP(Calculations!$E$2,'Pop2016fractionQ1&2'!$C$3:$BC$251,'Pop2016fractionQ1&2'!$BD97,FALSE),0)","v":749},{"$f":"ROUND(Options!$B$21*HLOOKUP(Calculations!$E$2,PARfraction!$C$3:$BC$251,PARfraction!$BD97,FALSE),0)","v":228},95]
["SIMD Q2","Female 0-4",{"$f":"ROUND(Options!$B$21*HLOOKUP(Calculations!$E$2,Pop2016fraction!$C$3:$BC$251,Pop2016fraction!$BD98,FALSE),0)","v":0},{"$f":"ROUND(Options!$B$21*HLOOKUP(Calculations!$E$2,Pop2016fractionQ1!$C$3:$BC$251,Pop2016fractionQ1!$BD98,FALSE),0)","v":0},{"$f":"ROUND(Options!$B$21*HLOOKUP(Calculations!$E$2,'Pop2016fractionQ1&2'!$C$3:$BC$251,'Pop2016fractionQ1&2'!$BD98,FALSE),0)","v":0},{"$f":"ROUND(Options!$B$21*HLOOKUP(Calculations!$E$2,PARfraction!$C$3:$BC$251,PARfraction!$BD98,FALSE),0)","v":0},96]
[null,"Female 5-9",{"$f":"ROUND(Options!$B$21*HLOOKUP(Calculations!$E$2,Pop2016fraction!$C$3:$BC$251,Pop2016fraction!$BD99,FALSE),0)","v":0},{"$f":"ROUND(Options!$B$21*HLOOKUP(Calculations!$E$2,Pop2016fractionQ1!$C$3:$BC$251,Pop2016fractionQ1!$BD99,FALSE),0)","v":0},{"$f":"ROUND(Options!$B$21*HLOOKUP(Calculations!$E$2,'Pop2016fractionQ1&2'!$C$3:$BC$251,'Pop2016fractionQ1&2'!$BD99,FALSE),0)","v":0},{"$f":"ROUND(Options!$B$21*HLOOKUP(Calculations!$E$2,PARfraction!$C$3:$BC$251,PARfraction!$BD99,FALSE),0)","v":0},97]
[null,"Female 10-15",{"$f":"ROUND(Options!$B$21*HLOOKUP(Calculations!$E$2,Pop2016fraction!$C$3:$BC$251,Pop2016fraction!$BD100,FALSE),0)","v":0},{"$f":"ROUND(Options!$B$21*HLOOKUP(Calculations!$E$2,Pop2016fractionQ1!$C$3:$BC$251,Pop2016fractionQ1!$BD100,FALSE),0)","v":0},{"$f":"ROUND(Options!$B$21*HLOOKUP(Calculations!$E$2,'Pop2016fractionQ1&2'!$C$3:$BC$251,'Pop2016fractionQ1&2'!$BD100,FALSE),0)","v":0},{"$f":"ROUND(Options!$B$21*HLOOKUP(Calculations!$E$2,PARfraction!$C$3:$BC$251,PARfraction!$BD100,FALSE),0)","v":0},98]
[null,"Female 16-19",{"$f":"ROUND(Options!$B$21*HLOOKUP(Calculations!$E$2,Pop2016fraction!$C$3:$BC$251,Pop2016fraction!$BD101,FALSE),0)","v":3562},{"$f":"ROUND(Options!$B$21*HLOOKUP(Calculations!$E$2,Pop2016fractionQ1!$C$3:$BC$251,Pop2016fractionQ1!$BD101,FALSE),0)","v":0},{"$f":"ROUND(Options!$B$21*HLOOKUP(Calculations!$E$2,'Pop2016fractionQ1&2'!$C$3:$BC$251,'Pop2016fractionQ1&2'!$BD101,FALSE),0)","v":9038},{"$f":"ROUND(Options!$B$21*HLOOKUP(Calculations!$E$2,PARfraction!$C$3:$BC$251,PARfraction!$BD101,FALSE),0)","v":4256},99]
[null,"Female 20-24",{"$f":"ROUND(Options!$B$21*HLOOKUP(Calculations!$E$2,Pop2016fraction!$C$3:$BC$251,Pop2016fraction!$BD102,FALSE),0)","v":5685},{"$f":"ROUND(Options!$B$21*HLOOKUP(Calculations!$E$2,Pop2016fractionQ1!$C$3:$BC$251,Pop2016fractionQ1!$BD102,FALSE),0)","v":0},{"$f":"ROUND(Options!$B$21*HLOOKUP(Calculations!$E$2,'Pop2016fractionQ1&2'!$C$3:$BC$251,'Pop2016fractionQ1&2'!$BD102,FALSE),0)","v":14424},{"$f":"ROUND(Options!$B$21*HLOOKUP(Calculations!$E$2,PARfraction!$C$3:$BC$251,PARfraction!$BD102,FALSE),0)","v":6792},100]
[null,"Female 25-29",{"$f":"ROUND(Options!$B$21*HLOOKUP(Calculations!$E$2,Pop2016fraction!$C$3:$BC$251,Pop2016fraction!$BD103,FALSE),0)","v":6257},{"$f":"ROUND(Options!$B$21*HLOOKUP(Calculations!$E$2,Pop2016fractionQ1!$C$3:$BC$251,Pop2016fractionQ1!$BD103,FALSE),0)","v":0},{"$f":"ROUND(Options!$B$21*HLOOKUP(Calculations!$E$2,'Pop2016fractionQ1&2'!$C$3:$BC$251,'Pop2016fractionQ1&2'!$BD103,FALSE),0)","v":15874},{"$f":"ROUND(Options!$B$21*HLOOKUP(Calculations!$E$2,PARfraction!$C$3:$BC$251,PARfraction!$BD103,FALSE),0)","v":7940},101]
[null,"Female 30-34",{"$f":"ROUND(Options!$B$21*HLOOKUP(Calculations!$E$2,Pop2016fraction!$C$3:$BC$251,Pop2016fraction!$BD104,FALSE),0)","v":5871},{"$f":"ROUND(Options!$B$21*HLOOKUP(Calculations!$E$2,Pop2016fractionQ1!$C$3:$BC$251,Pop2016fractionQ1!$BD104,FALSE),0)","v":0},{"$f":"ROUND(Options!$B$21*HLOOKUP(Calculations!$E$2,'Pop2016fractionQ1&2'!$C$3:$BC$251,'Pop2016fractionQ1&2'!$BD104,FALSE),0)","v":14894},{"$f":"ROUND(Options!$B$21*HLOOKUP(Calculations!$E$2,PARfraction!$C$3:$BC$251,PARfraction!$BD104,FALSE),0)","v":7449},102]
[null,"Female 35-39",{"$f":"ROUND(Options!$B$21*HLOOKUP(Calculations!$E$2,Pop2016fraction!$C$3:$BC$251,Pop2016fraction!$BD105,FALSE),0)","v":5087},{"$f":"ROUND(Options!$B$21*HLOOKUP(Calculations!$E$2,Pop2016fractionQ1!$C$3:$BC$251,Pop2016fractionQ1!$BD105,FALSE),0)","v":0},{"$f":"ROUND(Options!$B$21*HLOOKUP(Calculations!$E$2,'Pop2016fractionQ1&2'!$C$3:$BC$251,'Pop2016fractionQ1&2'!$BD105,FALSE),0)","v":12905},{"$f":"ROUND(Options!$B$21*HLOOKUP(Calculations!$E$2,PARfraction!$C$3:$BC$251,PARfraction!$BD105,FALSE),0)","v":6982},103]
[null,"Female 40-44",{"$f":"ROUND(Options!$B$21*HLOOKUP(Calculations!$E$2,Pop2016fraction!$C$3:$BC$251,Pop2016fraction!$BD106,FALSE),0)","v":5153},{"$f":"ROUND(Options!$B$21*HLOOKUP(Calculations!$E$2,Pop2016fractionQ1!$C$3:$BC$251,Pop2016fractionQ1!$BD106,FALSE),0)","v":0},{"$f":"ROUND(Options!$B$21*HLOOKUP(Calculations!$E$2,'Pop2016fractionQ1&2'!$C$3:$BC$251,'Pop2016fractionQ1&2'!$BD106,FALSE),0)","v":13072},{"$f":"ROUND(Options!$B$21*HLOOKUP(Calculations!$E$2,PARfraction!$C$3:$BC$251,PARfraction!$BD106,FALSE),0)","v":7073},104]
[null,"Female 45-49",{"$f":"ROUND(Options!$B$21*HLOOKUP(Calculations!$E$2,Pop2016fraction!$C$3:$BC$251,Pop2016fraction!$BD107,FALSE),0)","v":6035},{"$f":"ROUND(Options!$B$21*HLOOKUP(Calculations!$E$2,Pop2016fractionQ1!$C$3:$BC$251,Pop2016fractionQ1!$BD107,FALSE),0)","v":0},{"$f":"ROUND(Options!$B$21*HLOOKUP(Calculations!$E$2,'Pop2016fractionQ1&2'!$C$3:$BC$251,'Pop2016fractionQ1&2'!$BD107,FALSE),0)","v":15312},{"$f":"ROUND(Options!$B$21*HLOOKUP(Calculations!$E$2,PARfraction!$C$3:$BC$251,PARfraction!$BD107,FALSE),0)","v":8552},105]
[null,"Female 50-54",{"$f":"ROUND(Options!$B$21*HLOOKUP(Calculations!$E$2,Pop2016fraction!$C$3:$BC$251,Pop2016fraction!$BD108,FALSE),0)","v":6243},{"$f":"ROUND(Options!$B$21*HLOOKUP(Calculations!$E$2,Pop2016fractionQ1!$C$3:$BC$251,Pop2016fractionQ1!$BD108,FALSE),0)","v":0},{"$f":"ROUND(Options!$B$21*HLOOKUP(Calculations!$E$2,'Pop2016fractionQ1&2'!$C$3:$BC$251,'Pop2016fractionQ1&2'!$BD108,FALSE),0)","v":15839},{"$f":"ROUND(Options!$B$21*HLOOKUP(Calculations!$E$2,PARfraction!$C$3:$BC$251,PARfraction!$BD108,FALSE),0)","v":8846},106]
[null,"Female 55-59",{"$f":"ROUND(Options!$B$21*HLOOKUP(Calculations!$E$2,Pop2016fraction!$C$3:$BC$251,Pop2016fraction!$BD109,FALSE),0)","v":5743},{"$f":"ROUND(Options!$B$21*HLOOKUP(Calculations!$E$2,Pop2016fractionQ1!$C$3:$BC$251,Pop2016fractionQ1!$BD109,FALSE),0)","v":0},{"$f":"ROUND(Options!$B$21*HLOOKUP(Calculations!$E$2,'Pop2016fractionQ1&2'!$C$3:$BC$251,'Pop2016fractionQ1&2'!$BD109,FALSE),0)","v":14571},{"$f":"ROUND(Options!$B$21*HLOOKUP(Calculations!$E$2,PARfraction!$C$3:$BC$251,PARfraction!$BD109,FALSE),0)","v":7623},107]
[null,"Female 60-64",{"$f":"ROUND(Options!$B$21*HLOOKUP(Calculations!$E$2,Pop2016fraction!$C$3:$BC$251,Pop2016fraction!$BD110,FALSE),0)","v":5030},{"$f":"ROUND(Options!$B$21*HLOOKUP(Calculations!$E$2,Pop2016fractionQ1!$C$3:$BC$251,Pop2016fractionQ1!$BD110,FALSE),0)","v":0},{"$f":"ROUND(Options!$B$21*HLOOKUP(Calculations!$E$2,'Pop2016fractionQ1&2'!$C$3:$BC$251,'Pop2016fractionQ1&2'!$BD110,FALSE),0)","v":12761},{"$f":"ROUND(Options!$B$21*HLOOKUP(Calculations!$E$2,PARfraction!$C$3:$BC$251,PARfraction!$BD110,FALSE),0)","v":6676},108]
[null,"Female 65-69",{"$f":"ROUND(Options!$B$21*HLOOKUP(Calculations!$E$2,Pop2016fraction!$C$3:$BC$251,Pop2016fraction!$BD111,FALSE),0)","v":5020},{"$f":"ROUND(Options!$B$21*HLOOKUP(Calculations!$E$2,Pop2016fractionQ1!$C$3:$BC$251,Pop2016fractionQ1!$BD111,FALSE),0)","v":0},{"$f":"ROUND(Options!$B$21*HLOOKUP(Calculations!$E$2,'Pop2016fractionQ1&2'!$C$3:$BC$251,'Pop2016fractionQ1&2'!$BD111,FALSE),0)","v":12736},{"$f":"ROUND(Options!$B$21*HLOOKUP(Calculations!$E$2,PARfraction!$C$3:$BC$251,PARfraction!$BD111,FALSE),0)","v":4798},109]
[null,"Female 70-74",{"$f":"ROUND(Options!$B$21*HLOOKUP(Calculations!$E$2,Pop2016fraction!$C$3:$BC$251,Pop2016fraction!$BD112,FALSE),0)","v":3970},{"$f":"ROUND(Options!$B$21*HLOOKUP(Calculations!$E$2,Pop2016fractionQ1!$C$3:$BC$251,Pop2016fractionQ1!$BD112,FALSE),0)","v":0},{"$f":"ROUND(Options!$B$21*HLOOKUP(Calculations!$E$2,'Pop2016fractionQ1&2'!$C$3:$BC$251,'Pop2016fractionQ1&2'!$BD112,FALSE),0)","v":10071},{"$f":"ROUND(Options!$B$21*HLOOKUP(Calculations!$E$2,PARfraction!$C$3:$BC$251,PARfraction!$BD112,FALSE),0)","v":3794},110]
[null,"Female 75-79",{"$f":"ROUND(Options!$B$21*HLOOKUP(Calculations!$E$2,Pop2016fraction!$C$3:$BC$251,Pop2016fraction!$BD113,FALSE),0)","v":3415},{"$f":"ROUND(Options!$B$21*HLOOKUP(Calculations!$E$2,Pop2016fractionQ1!$C$3:$BC$251,Pop2016fractionQ1!$BD113,FALSE),0)","v":0},{"$f":"ROUND(Options!$B$21*HLOOKUP(Calculations!$E$2,'Pop2016fractionQ1&2'!$C$3:$BC$251,'Pop2016fractionQ1&2'!$BD113,FALSE),0)","v":8665},{"$f":"ROUND(Options!$B$21*HLOOKUP(Calculations!$E$2,PARfraction!$C$3:$BC$251,PARfraction!$BD113,FALSE),0)","v":1493},111]
[null,"Female 80-84",{"$f":"ROUND(Options!$B$21*HLOOKUP(Calculations!$E$2,Pop2016fraction!$C$3:$BC$251,Pop2016fraction!$BD114,FALSE),0)","v":2692},{"$f":"ROUND(Options!$B$21*HLOOKUP(Calculations!$E$2,Pop2016fractionQ1!$C$3:$BC$251,Pop2016fractionQ1!$BD114,FALSE),0)","v":0},{"$f":"ROUND(Options!$B$21*HLOOKUP(Calculations!$E$2,'Pop2016fractionQ1&2'!$C$3:$BC$251,'Pop2016fractionQ1&2'!$BD114,FALSE),0)","v":6829},{"$f":"ROUND(Options!$B$21*HLOOKUP(Calculations!$E$2,PARfraction!$C$3:$BC$251,PARfraction!$BD114,FALSE),0)","v":1177},112]
[null,"Female 85-89",{"$f":"ROUND(Options!$B$21*HLOOKUP(Calculations!$E$2,Pop2016fraction!$C$3:$BC$251,Pop2016fraction!$BD115,FALSE),0)","v":1604},{"$f":"ROUND(Options!$B$21*HLOOKUP(Calculations!$E$2,Pop2016fractionQ1!$C$3:$BC$251,Pop2016fractionQ1!$BD115,FALSE),0)","v":0},{"$f":"ROUND(Options!$B$21*HLOOKUP(Calculations!$E$2,'Pop2016fractionQ1&2'!$C$3:$BC$251,'Pop2016fractionQ1&2'!$BD115,FALSE),0)","v":4070},{"$f":"ROUND(Options!$B$21*HLOOKUP(Calculations!$E$2,PARfraction!$C$3:$BC$251,PARfraction!$BD115,FALSE),0)","v":701},113]
[null,"Female 90+",{"$f":"ROUND(Options!$B$21*HLOOKUP(Calculations!$E$2,Pop2016fraction!$C$3:$BC$251,Pop2016fraction!$BD116,FALSE),0)","v":908},{"$f":"ROUND(Options!$B$21*HLOOKUP(Calculations!$E$2,Pop2016fractionQ1!$C$3:$BC$251,Pop2016fractionQ1!$BD116,FALSE),0)","v":0},{"$f":"ROUND(Options!$B$21*HLOOKUP(Calculations!$E$2,'Pop2016fractionQ1&2'!$C$3:$BC$251,'Pop2016fractionQ1&2'!$BD116,FALSE),0)","v":2303},{"$f":"ROUND(Options!$B$21*HLOOKUP(Calculations!$E$2,PARfraction!$C$3:$BC$251,PARfraction!$BD116,FALSE),0)","v":397},114]
[null,"Male 0-4",{"$f":"ROUND(Options!$B$21*HLOOKUP(Calculations!$E$2,Pop2016fraction!$C$3:$BC$251,Pop2016fraction!$BD117,FALSE),0)","v":0},{"$f":"ROUND(Options!$B$21*HLOOKUP(Calculations!$E$2,Pop2016fractionQ1!$C$3:$BC$251,Pop2016fractionQ1!$BD117,FALSE),0)","v":0},{"$f":"ROUND(Options!$B$21*HLOOKUP(Calculations!$E$2,'Pop2016fractionQ1&2'!$C$3:$BC$251,'Pop2016fractionQ1&2'!$BD117,FALSE),0)","v":0},{"$f":"ROUND(Options!$B$21*HLOOKUP(Calculations!$E$2,PARfraction!$C$3:$BC$251,PARfraction!$BD117,FALSE),0)","v":0},115]
[null,"Male 5-9",{"$f":"ROUND(Options!$B$21*HLOOKUP(Calculations!$E$2,Pop2016fraction!$C$3:$BC$251,Pop2016fraction!$BD118,FALSE),0)","v":0},{"$f":"ROUND(Options!$B$21*HLOOKUP(Calculations!$E$2,Pop2016fractionQ1!$C$3:$BC$251,Pop2016fractionQ1!$BD118,FALSE),0)","v":0},{"$f":"ROUND(Options!$B$21*HLOOKUP(Calculations!$E$2,'Pop2016fractionQ1&2'!$C$3:$BC$251,'Pop2016fractionQ1&2'!$BD118,FALSE),0)","v":0},{"$f":"ROUND(Options!$B$21*HLOOKUP(Calculations!$E$2,PARfraction!$C$3:$BC$251,PARfraction!$BD118,FALSE),0)","v":0},116]
[null,"Male 10-15",{"$f":"ROUND(Options!$B$21*HLOOKUP(Calculations!$E$2,Pop2016fraction!$C$3:$BC$251,Pop2016fraction!$BD119,FALSE),0)","v":0},{"$f":"ROUND(Options!$B$21*HLOOKUP(Calculations!$E$2,Pop2016fractionQ1!$C$3:$BC$251,Pop2016fractionQ1!$BD119,FALSE),0)","v":0},{"$f":"ROUND(Options!$B$21*HLOOKUP(Calculations!$E$2,'Pop2016fractionQ1&2'!$C$3:$BC$251,'Pop2016fractionQ1&2'!$BD119,FALSE),0)","v":0},{"$f":"ROUND(Options!$B$21*HLOOKUP(Calculations!$E$2,PARfraction!$C$3:$BC$251,PARfraction!$BD119,FALSE),0)","v":0},117]
[null,"Male 16-19",{"$f":"ROUND(Options!$B$21*HLOOKUP(Calculations!$E$2,Pop2016fraction!$C$3:$BC$251,Pop2016fraction!$BD120,FALSE),0)","v":3650},{"$f":"ROUND(Options!$B$21*HLOOKUP(Calculations!$E$2,Pop2016fractionQ1!$C$3:$BC$251,Pop2016fractionQ1!$BD120,FALSE),0)","v":0},{"$f":"ROUND(Options!$B$21*HLOOKUP(Calculations!$E$2,'Pop2016fractionQ1&2'!$C$3:$BC$251,'Pop2016fractionQ1&2'!$BD120,FALSE),0)","v":9262},{"$f":"ROUND(Options!$B$21*HLOOKUP(Calculations!$E$2,PARfraction!$C$3:$BC$251,PARfraction!$BD120,FALSE),0)","v":4726},118]
[null,"Male 20-24",{"$f":"ROUND(Options!$B$21*HLOOKUP(Calculations!$E$2,Pop2016fraction!$C$3:$BC$251,Pop2016fraction!$BD121,FALSE),0)","v":5541},{"$f":"ROUND(Options!$B$21*HLOOKUP(Calculations!$E$2,Pop2016fractionQ1!$C$3:$BC$251,Pop2016fractionQ1!$BD121,FALSE),0)","v":0},{"$f":"ROUND(Options!$B$21*HLOOKUP(Calculations!$E$2,'Pop2016fractionQ1&2'!$C$3:$BC$251,'Pop2016fractionQ1&2'!$BD121,FALSE),0)","v":14058},{"$f":"ROUND(Options!$B$21*HLOOKUP(Calculations!$E$2,PARfraction!$C$3:$BC$251,PARfraction!$BD121,FALSE),0)","v":7174},119]
[null,"Male 25-29",{"$f":"ROUND(Options!$B$21*HLOOKUP(Calculations!$E$2,Pop2016fraction!$C$3:$BC$251,Pop2016fraction!$BD122,FALSE),0)","v":6103},{"$f":"ROUND(Options!$B$21*HLOOKUP(Calculations!$E$2,Pop2016fractionQ1!$C$3:$BC$251,Pop2016fractionQ1!$BD122,FALSE),0)","v":0},{"$f":"ROUND(Options!$B$21*HLOOKUP(Calculations!$E$2,'Pop2016fractionQ1&2'!$C$3:$BC$251,'Pop2016fractionQ1&2'!$BD122,FALSE),0)","v":15484},{"$f":"ROUND(Options!$B$21*HLOOKUP(Calculations!$E$2,PARfraction!$C$3:$BC$251,PARfraction!$BD122,FALSE),0)","v":8842},120]
[null,"Male 30-34",{"$f":"ROUND(Options!$B$21*HLOOKUP(Calculations!$E$2,Pop2016fraction!$C$3:$BC$251,Pop2016fraction!$BD123,FALSE),0)","v":5723},{"$f":"ROUND(Options!$B$21*HLOOKUP(Calculations!$E$2,Pop2016fractionQ1!$C$3:$BC$251,Pop2016fractionQ1!$BD123,FALSE),0)","v":0},{"$f":"ROUND(Options!$B$21*HLOOKUP(Calculations!$E$2,'Pop2016fractionQ1&2'!$C$3:$BC$251,'Pop2016fractionQ1&2'!$BD123,FALSE),0)","v":14520},{"$f":"ROUND(Options!$B$21*HLOOKUP(Calculations!$E$2,PARfraction!$C$3:$BC$251,PARfraction!$BD123,FALSE),0)","v":8292},121]
[null,"Male 35-39",{"$f":"ROUND(Options!$B$21*HLOOKUP(Calculations!$E$2,Pop2016fraction!$C$3:$BC$251,Pop2016fraction!$BD124,FALSE),0)","v":4983},{"$f":"ROUND(Options!$B$21*HLOOKUP(Calculations!$E$2,Pop2016fractionQ1!$C$3:$BC$251,Pop2016fractionQ1!$BD124,FALSE),0)","v":0},{"$f":"ROUND(Options!$B$21*HLOOKUP(Calculations!$E$2,'Pop2016fractionQ1&2'!$C$3:$BC$251,'Pop2016fractionQ1&2'!$BD124,FALSE),0)","v":12642},{"$f":"ROUND(Options!$B$21*HLOOKUP(Calculations!$E$2,PARfraction!$C$3:$BC$251,PARfraction!$BD124,FALSE),0)","v":7695},122]
[null,"Male 40-44",{"$f":"ROUND(Options!$B$21*HLOOKUP(Calculations!$E$2,Pop2016fraction!$C$3:$BC$251,Pop2016fraction!$BD125,FALSE),0)","v":4933},{"$f":"ROUND(Options!$B$21*HLOOKUP(Calculations!$E$2,Pop2016fractionQ1!$C$3:$BC$251,Pop2016fractionQ1!$BD125,FALSE),0)","v":0},{"$f":"ROUND(Options!$B$21*HLOOKUP(Calculations!$E$2,'Pop2016fractionQ1&2'!$C$3:$BC$251,'Pop2016fractionQ1&2'!$BD125,FALSE),0)","v":12514},{"$f":"ROUND(Options!$B$21*HLOOKUP(Calculations!$E$2,PARfraction!$C$3:$BC$251,PARfraction!$BD125,FALSE),0)","v":7618},123]
[null,"Male 45-49",{"$f":"ROUND(Options!$B$21*HLOOKUP(Calculations!$E$2,Pop2016fraction!$C$3:$BC$251,Pop2016fraction!$BD126,FALSE),0)","v":5653},{"$f":"ROUND(Options!$B$21*HLOOKUP(Calculations!$E$2,Pop2016fractionQ1!$C$3:$BC$251,Pop2016fractionQ1!$BD126,FALSE),0)","v":0},{"$f":"ROUND(Options!$B$21*HLOOKUP(Calculations!$E$2,'Pop2016fractionQ1&2'!$C$3:$BC$251,'Pop2016fractionQ1&2'!$BD126,FALSE),0)","v":14341},{"$f":"ROUND(Options!$B$21*HLOOKUP(Calculations!$E$2,PARfraction!$C$3:$BC$251,PARfraction!$BD126,FALSE),0)","v":9398},124]
[null,"Male 50-54",{"$f":"ROUND(Options!$B$21*HLOOKUP(Calculations!$E$2,Pop2016fraction!$C$3:$BC$251,Pop2016fraction!$BD127,FALSE),0)","v":5827},{"$f":"ROUND(Options!$B$21*HLOOKUP(Calculations!$E$2,Pop2016fractionQ1!$C$3:$BC$251,Pop2016fractionQ1!$BD127,FALSE),0)","v":0},{"$f":"ROUND(Options!$B$21*HLOOKUP(Calculations!$E$2,'Pop2016fractionQ1&2'!$C$3:$BC$251,'Pop2016fractionQ1&2'!$BD127,FALSE),0)","v":14783},{"$f":"ROUND(Options!$B$21*HLOOKUP(Calculations!$E$2,PARfraction!$C$3:$BC$251,PARfraction!$BD127,FALSE),0)","v":9688},125]
[null,"Male 55-59",{"$f":"ROUND(Options!$B$21*HLOOKUP(Calculations!$E$2,Pop2016fraction!$C$3:$BC$251,Pop2016fraction!$BD128,FALSE),0)","v":5398},{"$f":"ROUND(Options!$B$21*HLOOKUP(Calculations!$E$2,Pop2016fractionQ1!$C$3:$BC$251,Pop2016fractionQ1!$BD128,FALSE),0)","v":0},{"$f":"ROUND(Options!$B$21*HLOOKUP(Calculations!$E$2,'Pop2016fractionQ1&2'!$C$3:$BC$251,'Pop2016fractionQ1&2'!$BD128,FALSE),0)","v":13696},{"$f":"ROUND(Options!$B$21*HLOOKUP(Calculations!$E$2,PARfraction!$C$3:$BC$251,PARfraction!$BD128,FALSE),0)","v":6940},126]
[null,"Male 60-64",{"$f":"ROUND(Options!$B$21*HLOOKUP(Calculations!$E$2,Pop2016fraction!$C$3:$BC$251,Pop2016fraction!$BD129,FALSE),0)","v":4619},{"$f":"ROUND(Options!$B$21*HLOOKUP(Calculations!$E$2,Pop2016fractionQ1!$C$3:$BC$251,Pop2016fractionQ1!$BD129,FALSE),0)","v":0},{"$f":"ROUND(Options!$B$21*HLOOKUP(Calculations!$E$2,'Pop2016fractionQ1&2'!$C$3:$BC$251,'Pop2016fractionQ1&2'!$BD129,FALSE),0)","v":11719},{"$f":"ROUND(Options!$B$21*HLOOKUP(Calculations!$E$2,PARfraction!$C$3:$BC$251,PARfraction!$BD129,FALSE),0)","v":5939},127]
[null,"Male 65-69",{"$f":"ROUND(Options!$B$21*HLOOKUP(Calculations!$E$2,Pop2016fraction!$C$3:$BC$251,Pop2016fraction!$BD130,FALSE),0)","v":4580},{"$f":"ROUND(Options!$B$21*HLOOKUP(Calculations!$E$2,Pop2016fractionQ1!$C$3:$BC$251,Pop2016fractionQ1!$BD130,FALSE),0)","v":0},{"$f":"ROUND(Options!$B$21*HLOOKUP(Calculations!$E$2,'Pop2016fractionQ1&2'!$C$3:$BC$251,'Pop2016fractionQ1&2'!$BD130,FALSE),0)","v":11620},{"$f":"ROUND(Options!$B$21*HLOOKUP(Calculations!$E$2,PARfraction!$C$3:$BC$251,PARfraction!$BD130,FALSE),0)","v":4532},128]
[null,"Male 70-74",{"$f":"ROUND(Options!$B$21*HLOOKUP(Calculations!$E$2,Pop2016fraction!$C$3:$BC$251,Pop2016fraction!$BD131,FALSE),0)","v":3398},{"$f":"ROUND(Options!$B$21*HLOOKUP(Calculations!$E$2,Pop2016fractionQ1!$C$3:$BC$251,Pop2016fractionQ1!$BD131,FALSE),0)","v":0},{"$f":"ROUND(Options!$B$21*HLOOKUP(Calculations!$E$2,'Pop2016fractionQ1&2'!$C$3:$BC$251,'Pop2016fractionQ1&2'!$BD131,FALSE),0)","v":8620},{"$f":"ROUND(Options!$B$21*HLOOKUP(Calculations!$E$2,PARfraction!$C$3:$BC$251,PARfraction!$BD131,FALSE),0)","v":3362},129]
[null,"Male 75-79",{"$f":"ROUND(Options!$B$21*HLOOKUP(Calculations!$E$2,Pop2016fraction!$C$3:$BC$251,Pop2016fraction!$BD132,FALSE),0)","v":2572},{"$f":"ROUND(Options!$B$21*HLOOKUP(Calculations!$E$2,Pop2016fractionQ1!$C$3:$BC$251,Pop2016fractionQ1!$BD132,FALSE),0)","v":0},{"$f":"ROUND(Options!$B$21*HLOOKUP(Calculations!$E$2,'Pop2016fractionQ1&2'!$C$3:$BC$251,'Pop2016fractionQ1&2'!$BD132,FALSE),0)","v":6526},{"$f":"ROUND(Options!$B$21*HLOOKUP(Calculations!$E$2,PARfraction!$C$3:$BC$251,PARfraction!$BD132,FALSE),0)","v":1171},130]
[null,"Male 80-84",{"$f":"ROUND(Options!$B$21*HLOOKUP(Calculations!$E$2,Pop2016fraction!$C$3:$BC$251,Pop2016fraction!$BD133,FALSE),0)","v":1746},{"$f":"ROUND(Options!$B$21*HLOOKUP(Calculations!$E$2,Pop2016fractionQ1!$C$3:$BC$251,Pop2016fractionQ1!$BD133,FALSE),0)","v":0},{"$f":"ROUND(Options!$B$21*HLOOKUP(Calculations!$E$2,'Pop2016fractionQ1&2'!$C$3:$BC$251,'Pop2016fractionQ1&2'!$BD133,FALSE),0)","v":4430},{"$f":"ROUND(Options!$B$21*HLOOKUP(Calculations!$E$2,PARfraction!$C$3:$BC$251,PARfraction!$BD133,FALSE),0)","v":795},131]
[null,"Male 85-89",{"$f":"ROUND(Options!$B$21*HLOOKUP(Calculations!$E$2,Pop2016fraction!$C$3:$BC$251,Pop2016fraction!$BD134,FALSE),0)","v":858},{"$f":"ROUND(Options!$B$21*HLOOKUP(Calculations!$E$2,Pop2016fractionQ1!$C$3:$BC$251,Pop2016fractionQ1!$BD134,FALSE),0)","v":0},{"$f":"ROUND(Options!$B$21*HLOOKUP(Calculations!$E$2,'Pop2016fractionQ1&2'!$C$3:$BC$251,'Pop2016fractionQ1&2'!$BD134,FALSE),0)","v":2177},{"$f":"ROUND(Options!$B$21*HLOOKUP(Calculations!$E$2,PARfraction!$C$3:$BC$251,PARfraction!$BD134,FALSE),0)","v":391},132]
[null,"Male 90+",{"$f":"ROUND(Options!$B$21*HLOOKUP(Calculations!$E$2,Pop2016fraction!$C$3:$BC$251,Pop2016fraction!$BD135,FALSE),0)","v":352},{"$f":"ROUND(Options!$B$21*HLOOKUP(Calculations!$E$2,Pop2016fractionQ1!$C$3:$BC$251,Pop2016fractionQ1!$BD135,FALSE),0)","v":0},{"$f":"ROUND(Options!$B$21*HLOOKUP(Calculations!$E$2,'Pop2016fractionQ1&2'!$C$3:$BC$251,'Pop2016fractionQ1&2'!$BD135,FALSE),0)","v":894},{"$f":"ROUND(Options!$B$21*HLOOKUP(Calculations!$E$2,PARfraction!$C$3:$BC$251,PARfraction!$BD135,FALSE),0)","v":160},133]
["SIMD Q3","Female 0-4",{"$f":"ROUND(Options!$B$21*HLOOKUP(Calculations!$E$2,Pop2016fraction!$C$3:$BC$251,Pop2016fraction!$BD136,FALSE),0)","v":0},{"$f":"ROUND(Options!$B$21*HLOOKUP(Calculations!$E$2,Pop2016fractionQ1!$C$3:$BC$251,Pop2016fractionQ1!$BD136,FALSE),0)","v":0},{"$f":"ROUND(Options!$B$21*HLOOKUP(Calculations!$E$2,'Pop2016fractionQ1&2'!$C$3:$BC$251,'Pop2016fractionQ1&2'!$BD136,FALSE),0)","v":0},{"$f":"ROUND(Options!$B$21*HLOOKUP(Calculations!$E$2,PARfraction!$C$3:$BC$251,PARfraction!$BD136,FALSE),0)","v":0},134]
[null,"Female 5-9",{"$f":"ROUND(Options!$B$21*HLOOKUP(Calculations!$E$2,Pop2016fraction!$C$3:$BC$251,Pop2016fraction!$BD137,FALSE),0)","v":0},{"$f":"ROUND(Options!$B$21*HLOOKUP(Calculations!$E$2,Pop2016fractionQ1!$C$3:$BC$251,Pop2016fractionQ1!$BD137,FALSE),0)","v":0},{"$f":"ROUND(Options!$B$21*HLOOKUP(Calculations!$E$2,'Pop2016fractionQ1&2'!$C$3:$BC$251,'Pop2016fractionQ1&2'!$BD137,FALSE),0)","v":0},{"$f":"ROUND(Options!$B$21*HLOOKUP(Calculations!$E$2,PARfraction!$C$3:$BC$251,PARfraction!$BD137,FALSE),0)","v":0},135]
[null,"Female 10-15",{"$f":"ROUND(Options!$B$21*HLOOKUP(Calculations!$E$2,Pop2016fraction!$C$3:$BC$251,Pop2016fraction!$BD138,FALSE),0)","v":0},{"$f":"ROUND(Options!$B$21*HLOOKUP(Calculations!$E$2,Pop2016fractionQ1!$C$3:$BC$251,Pop2016fractionQ1!$BD138,FALSE),0)","v":0},{"$f":"ROUND(Options!$B$21*HLOOKUP(Calculations!$E$2,'Pop2016fractionQ1&2'!$C$3:$BC$251,'Pop2016fractionQ1&2'!$BD138,FALSE),0)","v":0},{"$f":"ROUND(Options!$B$21*HLOOKUP(Calculations!$E$2,PARfraction!$C$3:$BC$251,PARfraction!$BD138,FALSE),0)","v":0},136]
[null,"Female 16-19",{"$f":"ROUND(Options!$B$21*HLOOKUP(Calculations!$E$2,Pop2016fraction!$C$3:$BC$251,Pop2016fraction!$BD139,FALSE),0)","v":3523},{"$f":"ROUND(Options!$B$21*HLOOKUP(Calculations!$E$2,Pop2016fractionQ1!$C$3:$BC$251,Pop2016fractionQ1!$BD139,FALSE),0)","v":0},{"$f":"ROUND(Options!$B$21*HLOOKUP(Calculations!$E$2,'Pop2016fractionQ1&2'!$C$3:$BC$251,'Pop2016fractionQ1&2'!$BD139,FALSE),0)","v":0},{"$f":"ROUND(Options!$B$21*HLOOKUP(Calculations!$E$2,PARfraction!$C$3:$BC$251,PARfraction!$BD139,FALSE),0)","v":3169},137]
[null,"Female 20-24",{"$f":"ROUND(Options!$B$21*HLOOKUP(Calculations!$E$2,Pop2016fraction!$C$3:$BC$251,Pop2016fraction!$BD140,FALSE),0)","v":5379},{"$f":"ROUND(Options!$B$21*HLOOKUP(Calculations!$E$2,Pop2016fractionQ1!$C$3:$BC$251,Pop2016fractionQ1!$BD140,FALSE),0)","v":0},{"$f":"ROUND(Options!$B$21*HLOOKUP(Calculations!$E$2,'Pop2016fractionQ1&2'!$C$3:$BC$251,'Pop2016fractionQ1&2'!$BD140,FALSE),0)","v":0},{"$f":"ROUND(Options!$B$21*HLOOKUP(Calculations!$E$2,PARfraction!$C$3:$BC$251,PARfraction!$BD140,FALSE),0)","v":4839},138]
[null,"Female 25-29",{"$f":"ROUND(Options!$B$21*HLOOKUP(Calculations!$E$2,Pop2016fraction!$C$3:$BC$251,Pop2016fraction!$BD141,FALSE),0)","v":5613},{"$f":"ROUND(Options!$B$21*HLOOKUP(Calculations!$E$2,Pop2016fractionQ1!$C$3:$BC$251,Pop2016fractionQ1!$BD141,FALSE),0)","v":0},{"$f":"ROUND(Options!$B$21*HLOOKUP(Calculations!$E$2,'Pop2016fractionQ1&2'!$C$3:$BC$251,'Pop2016fractionQ1&2'!$BD141,FALSE),0)","v":0},{"$f":"ROUND(Options!$B$21*HLOOKUP(Calculations!$E$2,PARfraction!$C$3:$BC$251,PARfraction!$BD141,FALSE),0)","v":5879},139]
[null,"Female 30-34",{"$f":"ROUND(Options!$B$21*HLOOKUP(Calculations!$E$2,Pop2016fraction!$C$3:$BC$251,Pop2016fraction!$BD142,FALSE),0)","v":5361},{"$f":"ROUND(Options!$B$21*HLOOKUP(Calculations!$E$2,Pop2016fractionQ1!$C$3:$BC$251,Pop2016fractionQ1!$BD142,FALSE),0)","v":0},{"$f":"ROUND(Options!$B$21*HLOOKUP(Calculations!$E$2,'Pop2016fractionQ1&2'!$C$3:$BC$251,'Pop2016fractionQ1&2'!$BD142,FALSE),0)","v":0},{"$f":"ROUND(Options!$B$21*HLOOKUP(Calculations!$E$2,PARfraction!$C$3:$BC$251,PARfraction!$BD142,FALSE),0)","v":5615},140]
[null,"Female 35-39",{"$f":"ROUND(Options!$B$21*HLOOKUP(Calculations!$E$2,Pop2016fraction!$C$3:$BC$251,Pop2016fraction!$BD143,FALSE),0)","v":4924},{"$f":"ROUND(Options!$B$21*HLOOKUP(Calculations!$E$2,Pop2016fractionQ1!$C$3:$BC$251,Pop2016fractionQ1!$BD143,FALSE),0)","v":0},{"$f":"ROUND(Options!$B$21*HLOOKUP(Calculations!$E$2,'Pop2016fractionQ1&2'!$C$3:$BC$251,'Pop2016fractionQ1&2'!$BD143,FALSE),0)","v":0},{"$f":"ROUND(Options!$B$21*HLOOKUP(Calculations!$E$2,PARfraction!$C$3:$BC$251,PARfraction!$BD143,FALSE),0)","v":4956},141]
[null,"Female 40-44",{"$f":"ROUND(Options!$B$21*HLOOKUP(Calculations!$E$2,Pop2016fraction!$C$3:$BC$251,Pop2016fraction!$BD144,FALSE),0)","v":5129},{"$f":"ROUND(Options!$B$21*HLOOKUP(Calculations!$E$2,Pop2016fractionQ1!$C$3:$BC$251,Pop2016fractionQ1!$BD144,FALSE),0)","v":0},{"$f":"ROUND(Options!$B$21*HLOOKUP(Calculations!$E$2,'Pop2016fractionQ1&2'!$C$3:$BC$251,'Pop2016fractionQ1&2'!$BD144,FALSE),0)","v":0},{"$f":"ROUND(Options!$B$21*HLOOKUP(Calculations!$E$2,PARfraction!$C$3:$BC$251,PARfraction!$BD144,FALSE),0)","v":5163},142]
[null,"Female 45-49",{"$f":"ROUND(Options!$B$21*HLOOKUP(Calculations!$E$2,Pop2016fraction!$C$3:$BC$251,Pop2016fraction!$BD145,FALSE),0)","v":6238},{"$f":"ROUND(Options!$B$21*HLOOKUP(Calculations!$E$2,Pop2016fractionQ1!$C$3:$BC$251,Pop2016fractionQ1!$BD145,FALSE),0)","v":0},{"$f":"ROUND(Options!$B$21*HLOOKUP(Calculations!$E$2,'Pop2016fractionQ1&2'!$C$3:$BC$251,'Pop2016fractionQ1&2'!$BD145,FALSE),0)","v":0},{"$f":"ROUND(Options!$B$21*HLOOKUP(Calculations!$E$2,PARfraction!$C$3:$BC$251,PARfraction!$BD145,FALSE),0)","v":6534},143]
[null,"Female 50-54",{"$f":"ROUND(Options!$B$21*HLOOKUP(Calculations!$E$2,Pop2016fraction!$C$3:$BC$251,Pop2016fraction!$BD146,FALSE),0)","v":6554},{"$f":"ROUND(Options!$B$21*HLOOKUP(Calculations!$E$2,Pop2016fractionQ1!$C$3:$BC$251,Pop2016fractionQ1!$BD146,FALSE),0)","v":0},{"$f":"ROUND(Options!$B$21*HLOOKUP(Calculations!$E$2,'Pop2016fractionQ1&2'!$C$3:$BC$251,'Pop2016fractionQ1&2'!$BD146,FALSE),0)","v":0},{"$f":"ROUND(Options!$B$21*HLOOKUP(Calculations!$E$2,PARfraction!$C$3:$BC$251,PARfraction!$BD146,FALSE),0)","v":6865},144]
[null,"Female 55-59",{"$f":"ROUND(Options!$B$21*HLOOKUP(Calculations!$E$2,Pop2016fraction!$C$3:$BC$251,Pop2016fraction!$BD147,FALSE),0)","v":6032},{"$f":"ROUND(Options!$B$21*HLOOKUP(Calculations!$E$2,Pop2016fractionQ1!$C$3:$BC$251,Pop2016fractionQ1!$BD147,FALSE),0)","v":0},{"$f":"ROUND(Options!$B$21*HLOOKUP(Calculations!$E$2,'Pop2016fractionQ1&2'!$C$3:$BC$251,'Pop2016fractionQ1&2'!$BD147,FALSE),0)","v":0},{"$f":"ROUND(Options!$B$21*HLOOKUP(Calculations!$E$2,PARfraction!$C$3:$BC$251,PARfraction!$BD147,FALSE),0)","v":5031},145]
[null,"Female 60-64",{"$f":"ROUND(Options!$B$21*HLOOKUP(Calculations!$E$2,Pop2016fraction!$C$3:$BC$251,Pop2016fraction!$BD148,FALSE),0)","v":5329},{"$f":"ROUND(Options!$B$21*HLOOKUP(Calculations!$E$2,Pop2016fractionQ1!$C$3:$BC$251,Pop2016fractionQ1!$BD148,FALSE),0)","v":0},{"$f":"ROUND(Options!$B$21*HLOOKUP(Calculations!$E$2,'Pop2016fractionQ1&2'!$C$3:$BC$251,'Pop2016fractionQ1&2'!$BD148,FALSE),0)","v":0},{"$f":"ROUND(Options!$B$21*HLOOKUP(Calculations!$E$2,PARfraction!$C$3:$BC$251,PARfraction!$BD148,FALSE),0)","v":4444},146]
[null,"Female 65-69",{"$f":"ROUND(Options!$B$21*HLOOKUP(Calculations!$E$2,Pop2016fraction!$C$3:$BC$251,Pop2016fraction!$BD149,FALSE),0)","v":5402},{"$f":"ROUND(Options!$B$21*HLOOKUP(Calculations!$E$2,Pop2016fractionQ1!$C$3:$BC$251,Pop2016fractionQ1!$BD149,FALSE),0)","v":0},{"$f":"ROUND(Options!$B$21*HLOOKUP(Calculations!$E$2,'Pop2016fractionQ1&2'!$C$3:$BC$251,'Pop2016fractionQ1&2'!$BD149,FALSE),0)","v":0},{"$f":"ROUND(Options!$B$21*HLOOKUP(Calculations!$E$2,PARfraction!$C$3:$BC$251,PARfraction!$BD149,FALSE),0)","v":4040},147]
[null,"Female 70-74",{"$f":"ROUND(Options!$B$21*HLOOKUP(Calculations!$E$2,Pop2016fraction!$C$3:$BC$251,Pop2016fraction!$BD150,FALSE),0)","v":4246},{"$f":"ROUND(Options!$B$21*HLOOKUP(Calculations!$E$2,Pop2016fractionQ1!$C$3:$BC$251,Pop2016fractionQ1!$BD150,FALSE),0)","v":0},{"$f":"ROUND(Options!$B$21*HLOOKUP(Calculations!$E$2,'Pop2016fractionQ1&2'!$C$3:$BC$251,'Pop2016fractionQ1&2'!$BD150,FALSE),0)","v":0},{"$f":"ROUND(Options!$B$21*HLOOKUP(Calculations!$E$2,PARfraction!$C$3:$BC$251,PARfraction!$BD150,FALSE),0)","v":3176},148]
[null,"Female 75-79",{"$f":"ROUND(Options!$B$21*HLOOKUP(Calculations!$E$2,Pop2016fraction!$C$3:$BC$251,Pop2016fraction!$BD151,FALSE),0)","v":3394},{"$f":"ROUND(Options!$B$21*HLOOKUP(Calculations!$E$2,Pop2016fractionQ1!$C$3:$BC$251,Pop2016fractionQ1!$BD151,FALSE),0)","v":0},{"$f":"ROUND(Options!$B$21*HLOOKUP(Calculations!$E$2,'Pop2016fractionQ1&2'!$C$3:$BC$251,'Pop2016fractionQ1&2'!$BD151,FALSE),0)","v":0},{"$f":"ROUND(Options!$B$21*HLOOKUP(Calculations!$E$2,PARfraction!$C$3:$BC$251,PARfraction!$BD151,FALSE),0)","v":1133},149]
[null,"Female 80-84",{"$f":"ROUND(Options!$B$21*HLOOKUP(Calculations!$E$2,Pop2016fraction!$C$3:$BC$251,Pop2016fraction!$BD152,FALSE),0)","v":2573},{"$f":"ROUND(Options!$B$21*HLOOKUP(Calculations!$E$2,Pop2016fractionQ1!$C$3:$BC$251,Pop2016fractionQ1!$BD152,FALSE),0)","v":0},{"$f":"ROUND(Options!$B$21*HLOOKUP(Calculations!$E$2,'Pop2016fractionQ1&2'!$C$3:$BC$251,'Pop2016fractionQ1&2'!$BD152,FALSE),0)","v":0},{"$f":"ROUND(Options!$B$21*HLOOKUP(Calculations!$E$2,PARfraction!$C$3:$BC$251,PARfraction!$BD152,FALSE),0)","v":859},150]
[null,"Female 85-89",{"$f":"ROUND(Options!$B$21*HLOOKUP(Calculations!$E$2,Pop2016fraction!$C$3:$BC$251,Pop2016fraction!$BD153,FALSE),0)","v":1611},{"$f":"ROUND(Options!$B$21*HLOOKUP(Calculations!$E$2,Pop2016fractionQ1!$C$3:$BC$251,Pop2016fractionQ1!$BD153,FALSE),0)","v":0},{"$f":"ROUND(Options!$B$21*HLOOKUP(Calculations!$E$2,'Pop2016fractionQ1&2'!$C$3:$BC$251,'Pop2016fractionQ1&2'!$BD153,FALSE),0)","v":0},{"$f":"ROUND(Options!$B$21*HLOOKUP(Calculations!$E$2,PARfraction!$C$3:$BC$251,PARfraction!$BD153,FALSE),0)","v":538},151]
[null,"Female 90+",{"$f":"ROUND(Options!$B$21*HLOOKUP(Calculations!$E$2,Pop2016fraction!$C$3:$BC$251,Pop2016fraction!$BD154,FALSE),0)","v":967},{"$f":"ROUND(Options!$B$21*HLOOKUP(Calculations!$E$2,Pop2016fractionQ1!$C$3:$BC$251,Pop2016fractionQ1!$BD154,FALSE),0)","v":0},{"$f":"ROUND(Options!$B$21*HLOOKUP(Calculations!$E$2,'Pop2016fractionQ1&2'!$C$3:$BC$251,'Pop2016fractionQ1&2'!$BD154,FALSE),0)","v":0},{"$f":"ROUND(Options!$B$21*HLOOKUP(Calculations!$E$2,PARfraction!$C$3:$BC$251,PARfraction!$BD154,FALSE),0)","v":323},152]
[null,"Male 0-4",{"$f":"ROUND(Options!$B$21*HLOOKUP(Calculations!$E$2,Pop2016fraction!$C$3:$BC$251,Pop2016fraction!$BD155,FALSE),0)","v":0},{"$f":"ROUND(Options!$B$21*HLOOKUP(Calculations!$E$2,Pop2016fractionQ1!$C$3:$BC$251,Pop2016fractionQ1!$BD155,FALSE),0)","v":0},{"$f":"ROUND(Options!$B$21*HLOOKUP(Calculations!$E$2,'Pop2016fractionQ1&2'!$C$3:$BC$251,'Pop2016fractionQ1&2'!$BD155,FALSE),0)","v":0},{"$f":"ROUND(Options!$B$21*HLOOKUP(Calculations!$E$2,PARfraction!$C$3:$BC$251,PARfraction!$BD155,FALSE),0)","v":0},153]
[null,"Male 5-9",{"$f":"ROUND(Options!$B$21*HLOOKUP(Calculations!$E$2,Pop2016fraction!$C$3:$BC$251,Pop2016fraction!$BD156,FALSE),0)","v":0},{"$f":"ROUND(Options!$B$21*HLOOKUP(Calculations!$E$2,Pop2016fractionQ1!$C$3:$BC$251,Pop2016fractionQ1!$BD156,FALSE),0)","v":0},{"$f":"ROUND(Options!$B$21*HLOOKUP(Calculations!$E$2,'Pop2016fractionQ1&2'!$C$3:$BC$251,'Pop2016fractionQ1&2'!$BD156,FALSE),0)","v":0},{"$f":"ROUND(Options!$B$21*HLOOKUP(Calculations!$E$2,PARfraction!$C$3:$BC$251,PARfraction!$BD156,FALSE),0)","v":0},154]
[null,"Male 10-15",{"$f":"ROUND(Options!$B$21*HLOOKUP(Calculations!$E$2,Pop2016fraction!$C$3:$BC$251,Pop2016fraction!$BD157,FALSE),0)","v":0},{"$f":"ROUND(Options!$B$21*HLOOKUP(Calculations!$E$2,Pop2016fractionQ1!$C$3:$BC$251,Pop2016fractionQ1!$BD157,FALSE),0)","v":0},{"$f":"ROUND(Options!$B$21*HLOOKUP(Calculations!$E$2,'Pop2016fractionQ1&2'!$C$3:$BC$251,'Pop2016fractionQ1&2'!$BD157,FALSE),0)","v":0},{"$f":"ROUND(Options!$B$21*HLOOKUP(Calculations!$E$2,PARfraction!$C$3:$BC$251,PARfraction!$BD157,FALSE),0)","v":0},155]
[null,"Male 16-19",{"$f":"ROUND(Options!$B$21*HLOOKUP(Calculations!$E$2,Pop2016fraction!$C$3:$BC$251,Pop2016fraction!$BD158,FALSE),0)","v":3656},{"$f":"ROUND(Options!$B$21*HLOOKUP(Calculations!$E$2,Pop2016fractionQ1!$C$3:$BC$251,Pop2016fractionQ1!$BD158,FALSE),0)","v":0},{"$f":"ROUND(Options!$B$21*HLOOKUP(Calculations!$E$2,'Pop2016fractionQ1&2'!$C$3:$BC$251,'Pop2016fractionQ1&2'!$BD158,FALSE),0)","v":0},{"$f":"ROUND(Options!$B$21*HLOOKUP(Calculations!$E$2,PARfraction!$C$3:$BC$251,PARfraction!$BD158,FALSE),0)","v":3397},156]
[null,"Male 20-24",{"$f":"ROUND(Options!$B$21*HLOOKUP(Calculations!$E$2,Pop2016fraction!$C$3:$BC$251,Pop2016fraction!$BD159,FALSE),0)","v":5431},{"$f":"ROUND(Options!$B$21*HLOOKUP(Calculations!$E$2,Pop2016fractionQ1!$C$3:$BC$251,Pop2016fractionQ1!$BD159,FALSE),0)","v":0},{"$f":"ROUND(Options!$B$21*HLOOKUP(Calculations!$E$2,'Pop2016fractionQ1&2'!$C$3:$BC$251,'Pop2016fractionQ1&2'!$BD159,FALSE),0)","v":0},{"$f":"ROUND(Options!$B$21*HLOOKUP(Calculations!$E$2,PARfraction!$C$3:$BC$251,PARfraction!$BD159,FALSE),0)","v":5046},157]
[null,"Male 25-29",{"$f":"ROUND(Options!$B$21*HLOOKUP(Calculations!$E$2,Pop2016fraction!$C$3:$BC$251,Pop2016fraction!$BD160,FALSE),0)","v":5537},{"$f":"ROUND(Options!$B$21*HLOOKUP(Calculations!$E$2,Pop2016fractionQ1!$C$3:$BC$251,Pop2016fractionQ1!$BD160,FALSE),0)","v":0},{"$f":"ROUND(Options!$B$21*HLOOKUP(Calculations!$E$2,'Pop2016fractionQ1&2'!$C$3:$BC$251,'Pop2016fractionQ1&2'!$BD160,FALSE),0)","v":0},{"$f":"ROUND(Options!$B$21*HLOOKUP(Calculations!$E$2,PARfraction!$C$3:$BC$251,PARfraction!$BD160,FALSE),0)","v":7207},158]
[null,"Male 30-34",{"$f":"ROUND(Options!$B$21*HLOOKUP(Calculations!$E$2,Pop2016fraction!$C$3:$BC$251,Pop2016fraction!$BD161,FALSE),0)","v":5338},{"$f":"ROUND(Options!$B$21*HLOOKUP(Calculations!$E$2,Pop2016fractionQ1!$C$3:$BC$251,Pop2016fractionQ1!$BD161,FALSE),0)","v":0},{"$f":"ROUND(Options!$B$21*HLOOKUP(Calculations!$E$2,'Pop2016fractionQ1&2'!$C$3:$BC$251,'Pop2016fractionQ1&2'!$BD161,FALSE),0)","v":0},{"$f":"ROUND(Options!$B$21*HLOOKUP(Calculations!$E$2,PARfraction!$C$3:$BC$251,PARfraction!$BD161,FALSE),0)","v":6947},159]
[null,"Male 35-39",{"$f":"ROUND(Options!$B$21*HLOOKUP(Calculations!$E$2,Pop2016fraction!$C$3:$BC$251,Pop2016fraction!$BD162,FALSE),0)","v":4931},{"$f":"ROUND(Options!$B$21*HLOOKUP(Calculations!$E$2,Pop2016fractionQ1!$C$3:$BC$251,Pop2016fractionQ1!$BD162,FALSE),0)","v":0},{"$f":"ROUND(Options!$B$21*HLOOKUP(Calculations!$E$2,'Pop2016fractionQ1&2'!$C$3:$BC$251,'Pop2016fractionQ1&2'!$BD162,FALSE),0)","v":0},{"$f":"ROUND(Options!$B$21*HLOOKUP(Calculations!$E$2,PARfraction!$C$3:$BC$251,PARfraction!$BD162,FALSE),0)","v":6928},160]
[null,"Male 40-44",{"$f":"ROUND(Options!$B$21*HLOOKUP(Calculations!$E$2,Pop2016fraction!$C$3:$BC$251,Pop2016fraction!$BD163,FALSE),0)","v":4904},{"$f":"ROUND(Options!$B$21*HLOOKUP(Calculations!$E$2,Pop2016fractionQ1!$C$3:$BC$251,Pop2016fractionQ1!$BD163,FALSE),0)","v":0},{"$f":"ROUND(Options!$B$21*HLOOKUP(Calculations!$E$2,'Pop2016fractionQ1&2'!$C$3:$BC$251,'Pop2016fractionQ1&2'!$BD163,FALSE),0)","v":0},{"$f":"ROUND(Options!$B$21*HLOOKUP(Calculations!$E$2,PARfraction!$C$3:$BC$251,PARfraction!$BD163,FALSE),0)","v":6890},161]
[null,"Male 45-49",{"$f":"ROUND(Options!$B$21*HLOOKUP(Calculations!$E$2,Pop2016fraction!$C$3:$BC$251,Pop2016fraction!$BD164,FALSE),0)","v":5801},{"$f":"ROUND(Options!$B$21*HLOOKUP(Calculations!$E$2,Pop2016fractionQ1!$C$3:$BC$251,Pop2016fractionQ1!$BD164,FALSE),0)","v":0},{"$f":"ROUND(Options!$B$21*HLOOKUP(Calculations!$E$2,'Pop2016fractionQ1&2'!$C$3:$BC$251,'Pop2016fractionQ1&2'!$BD164,FALSE),0)","v":0},{"$f":"ROUND(Options!$B$21*HLOOKUP(Calculations!$E$2,PARfraction!$C$3:$BC$251,PARfraction!$BD164,FALSE),0)","v":6533},162]
[null,"Male 50-54",{"$f":"ROUND(Options!$B$21*HLOOKUP(Calculations!$E$2,Pop2016fraction!$C$3:$BC$251,Pop2016fraction!$BD165,FALSE),0)","v":6222},{"$f":"ROUND(Options!$B$21*HLOOKUP(Calculations!$E$2,Pop2016fractionQ1!$C$3:$BC$251,Pop2016fractionQ1!$BD165,FALSE),0)","v":0},{"$f":"ROUND(Options!$B$21*HLOOKUP(Calculations!$E$2,'Pop2016fractionQ1&2'!$C$3:$BC$251,'Pop2016fractionQ1&2'!$BD165,FALSE),0)","v":0},{"$f":"ROUND(Options!$B$21*HLOOKUP(Calculations!$E$2,PARfraction!$C$3:$BC$251,PARfraction!$BD165,FALSE),0)","v":7008},163]
[null,"Male 55-59",{"$f":"ROUND(Options!$B$21*HLOOKUP(Calculations!$E$2,Pop2016fraction!$C$3:$BC$251,Pop2016fraction!$BD166,FALSE),0)","v":5785},{"$f":"ROUND(Options!$B$21*HLOOKUP(Calculations!$E$2,Pop2016fractionQ1!$C$3:$BC$251,Pop2016fractionQ1!$BD166,FALSE),0)","v":0},{"$f":"ROUND(Options!$B$21*HLOOKUP(Calculations!$E$2,'Pop2016fractionQ1&2'!$C$3:$BC$251,'Pop2016fractionQ1&2'!$BD166,FALSE),0)","v":0},{"$f":"ROUND(Options!$B$21*HLOOKUP(Calculations!$E$2,PARfraction!$C$3:$BC$251,PARfraction!$BD166,FALSE),0)","v":5490},164]
[null,"Male 60-64",{"$f":"ROUND(Options!$B$21*HLOOKUP(Calculations!$E$2,Pop2016fraction!$C$3:$BC$251,Pop2016fraction!$BD167,FALSE),0)","v":5123},{"$f":"ROUND(Options!$B$21*HLOOKUP(Calculations!$E$2,Pop2016fractionQ1!$C$3:$BC$251,Pop2016fractionQ1!$BD167,FALSE),0)","v":0},{"$f":"ROUND(Options!$B$21*HLOOKUP(Calculations!$E$2,'Pop2016fractionQ1&2'!$C$3:$BC$251,'Pop2016fractionQ1&2'!$BD167,FALSE),0)","v":0},{"$f":"ROUND(Options!$B$21*HLOOKUP(Calculations!$E$2,PARfraction!$C$3:$BC$251,PARfraction!$BD167,FALSE),0)","v":4862},165]
[null,"Male 65-69",{"$f":"ROUND(Options!$B$21*HLOOKUP(Calculations!$E$2,Pop2016fraction!$C$3:$BC$251,Pop2016fraction!$BD168,FALSE),0)","v":5142},{"$f":"ROUND(Options!$B$21*HLOOKUP(Calculations!$E$2,Pop2016fractionQ1!$C$3:$BC$251,Pop2016fractionQ1!$BD168,FALSE),0)","v":0},{"$f":"ROUND(Options!$B$21*HLOOKUP(Calculations!$E$2,'Pop2016fractionQ1&2'!$C$3:$BC$251,'Pop2016fractionQ1&2'!$BD168,FALSE),0)","v":0},{"$f":"ROUND(Options!$B$21*HLOOKUP(Calculations!$E$2,PARfraction!$C$3:$BC$251,PARfraction!$BD168,FALSE),0)","v":3794},166]
[null,"Male 70-74",{"$f":"ROUND(Options!$B$21*HLOOKUP(Calculations!$E$2,Pop2016fraction!$C$3:$BC$251,Pop2016fraction!$BD169,FALSE),0)","v":3765},{"$f":"ROUND(Options!$B$21*HLOOKUP(Calculations!$E$2,Pop2016fractionQ1!$C$3:$BC$251,Pop2016fractionQ1!$BD169,FALSE),0)","v":0},{"$f":"ROUND(Options!$B$21*HLOOKUP(Calculations!$E$2,'Pop2016fractionQ1&2'!$C$3:$BC$251,'Pop2016fractionQ1&2'!$BD169,FALSE),0)","v":0},{"$f":"ROUND(Options!$B$21*HLOOKUP(Calculations!$E$2,PARfraction!$C$3:$BC$251,PARfraction!$BD169,FALSE),0)","v":2778},167]
[null,"Male 75-79",{"$f":"ROUND(Options!$B$21*HLOOKUP(Calculations!$E$2,Pop2016fraction!$C$3:$BC$251,Pop2016fraction!$BD170,FALSE),0)","v":2796},{"$f":"ROUND(Options!$B$21*HLOOKUP(Calculations!$E$2,Pop2016fractionQ1!$C$3:$BC$251,Pop2016fractionQ1!$BD170,FALSE),0)","v":0},{"$f":"ROUND(Options!$B$21*HLOOKUP(Calculations!$E$2,'Pop2016fractionQ1&2'!$C$3:$BC$251,'Pop2016fractionQ1&2'!$BD170,FALSE),0)","v":0},{"$f":"ROUND(Options!$B$21*HLOOKUP(Calculations!$E$2,PARfraction!$C$3:$BC$251,PARfraction!$BD170,FALSE),0)","v":937},168]
[null,"Male 80-84",{"$f":"ROUND(Options!$B$21*HLOOKUP(Calculations!$E$2,Pop2016fraction!$C$3:$BC$251,Pop2016fraction!$BD171,FALSE),0)","v":1864},{"$f":"ROUND(Options!$B$21*HLOOKUP(Calculations!$E$2,Pop2016fractionQ1!$C$3:$BC$251,Pop2016fractionQ1!$BD171,FALSE),0)","v":0},{"$f":"ROUND(Options!$B$21*HLOOKUP(Calculations!$E$2,'Pop2016fractionQ1&2'!$C$3:$BC$251,'Pop2016fractionQ1&2'!$BD171,FALSE),0)","v":0},{"$f":"ROUND(Options!$B$21*HLOOKUP(Calculations!$E$2,PARfraction!$C$3:$BC$251,PARfraction!$BD171,FALSE),0)","v":625},169]
[null,"Male 85-89",{"$f":"ROUND(Options!$B$21*HLOOKUP(Calculations!$E$2,Pop2016fraction!$C$3:$BC$251,Pop2016fraction!$BD172,FALSE),0)","v":927},{"$f":"ROUND(Options!$B$21*HLOOKUP(Calculations!$E$2,Pop2016fractionQ1!$C$3:$BC$251,Pop2016fractionQ1!$BD172,FALSE),0)","v":0},{"$f":"ROUND(Options!$B$21*HLOOKUP(Calculations!$E$2,'Pop2016fractionQ1&2'!$C$3:$BC$251,'Pop2016fractionQ1&2'!$BD172,FALSE),0)","v":0},{"$f":"ROUND(Options!$B$21*HLOOKUP(Calculations!$E$2,PARfraction!$C$3:$BC$251,PARfraction!$BD172,FALSE),0)","v":311},170]
[null,"Male 90+",{"$f":"ROUND(Options!$B$21*HLOOKUP(Calculations!$E$2,Pop2016fraction!$C$3:$BC$251,Pop2016fraction!$BD173,FALSE),0)","v":400},{"$f":"ROUND(Options!$B$21*HLOOKUP(Calculations!$E$2,Pop2016fractionQ1!$C$3:$BC$251,Pop2016fractionQ1!$BD173,FALSE),0)","v":0},{"$f":"ROUND(Options!$B$21*HLOOKUP(Calculations!$E$2,'Pop2016fractionQ1&2'!$C$3:$BC$251,'Pop2016fractionQ1&2'!$BD173,FALSE),0)","v":0},{"$f":"ROUND(Options!$B$21*HLOOKUP(Calculations!$E$2,PARfraction!$C$3:$BC$251,PARfraction!$BD173,FALSE),0)","v":134},171]
["SIMD Q4","Female 0-4",{"$f":"ROUND(Options!$B$21*HLOOKUP(Calculations!$E$2,Pop2016fraction!$C$3:$BC$251,Pop2016fraction!$BD174,FALSE),0)","v":0},{"$f":"ROUND(Options!$B$21*HLOOKUP(Calculations!$E$2,Pop2016fractionQ1!$C$3:$BC$251,Pop2016fractionQ1!$BD174,FALSE),0)","v":0},{"$f":"ROUND(Options!$B$21*HLOOKUP(Calculations!$E$2,'Pop2016fractionQ1&2'!$C$3:$BC$251,'Pop2016fractionQ1&2'!$BD174,FALSE),0)","v":0},{"$f":"ROUND(Options!$B$21*HLOOKUP(Calculations!$E$2,PARfraction!$C$3:$BC$251,PARfraction!$BD174,FALSE),0)","v":0},172]
[null,"Female 5-9",{"$f":"ROUND(Options!$B$21*HLOOKUP(Calculations!$E$2,Pop2016fraction!$C$3:$BC$251,Pop2016fraction!$BD175,FALSE),0)","v":0},{"$f":"ROUND(Options!$B$21*HLOOKUP(Calculations!$E$2,Pop2016fractionQ1!$C$3:$BC$251,Pop2016fractionQ1!$BD175,FALSE),0)","v":0},{"$f":"ROUND(Options!$B$21*HLOOKUP(Calculations!$E$2,'Pop2016fractionQ1&2'!$C$3:$BC$251,'Pop2016fractionQ1&2'!$BD175,FALSE),0)","v":0},{"$f":"ROUND(Options!$B$21*HLOOKUP(Calculations!$E$2,PARfraction!$C$3:$BC$251,PARfraction!$BD175,FALSE),0)","v":0},173]
[null,"Female 10-15",{"$f":"ROUND(Options!$B$21*HLOOKUP(Calculations!$E$2,Pop2016fraction!$C$3:$BC$251,Pop2016fraction!$BD176,FALSE),0)","v":0},{"$f":"ROUND(Options!$B$21*HLOOKUP(Calculations!$E$2,Pop2016fractionQ1!$C$3:$BC$251,Pop2016fractionQ1!$BD176,FALSE),0)","v":0},{"$f":"ROUND(Options!$B$21*HLOOKUP(Calculations!$E$2,'Pop2016fractionQ1&2'!$C$3:$BC$251,'Pop2016fractionQ1&2'!$BD176,FALSE),0)","v":0},{"$f":"ROUND(Options!$B$21*HLOOKUP(Calculations!$E$2,PARfraction!$C$3:$BC$251,PARfraction!$BD176,FALSE),0)","v":0},174]
[null,"Female 16-19",{"$f":"ROUND(Options!$B$21*HLOOKUP(Calculations!$E$2,Pop2016fraction!$C$3:$BC$251,Pop2016fraction!$BD177,FALSE),0)","v":3607},{"$f":"ROUND(Options!$B$21*HLOOKUP(Calculations!$E$2,Pop2016fractionQ1!$C$3:$BC$251,Pop2016fractionQ1!$BD177,FALSE),0)","v":0},{"$f":"ROUND(Options!$B$21*HLOOKUP(Calculations!$E$2,'Pop2016fractionQ1&2'!$C$3:$BC$251,'Pop2016fractionQ1&2'!$BD177,FALSE),0)","v":0},{"$f":"ROUND(Options!$B$21*HLOOKUP(Calculations!$E$2,PARfraction!$C$3:$BC$251,PARfraction!$BD177,FALSE),0)","v":3134},175]
[null,"Female 20-24",{"$f":"ROUND(Options!$B$21*HLOOKUP(Calculations!$E$2,Pop2016fraction!$C$3:$BC$251,Pop2016fraction!$BD178,FALSE),0)","v":5367},{"$f":"ROUND(Options!$B$21*HLOOKUP(Calculations!$E$2,Pop2016fractionQ1!$C$3:$BC$251,Pop2016fractionQ1!$BD178,FALSE),0)","v":0},{"$f":"ROUND(Options!$B$21*HLOOKUP(Calculations!$E$2,'Pop2016fractionQ1&2'!$C$3:$BC$251,'Pop2016fractionQ1&2'!$BD178,FALSE),0)","v":0},{"$f":"ROUND(Options!$B$21*HLOOKUP(Calculations!$E$2,PARfraction!$C$3:$BC$251,PARfraction!$BD178,FALSE),0)","v":4663},176]
[null,"Female 25-29",{"$f":"ROUND(Options!$B$21*HLOOKUP(Calculations!$E$2,Pop2016fraction!$C$3:$BC$251,Pop2016fraction!$BD179,FALSE),0)","v":5151},{"$f":"ROUND(Options!$B$21*HLOOKUP(Calculations!$E$2,Pop2016fractionQ1!$C$3:$BC$251,Pop2016fractionQ1!$BD179,FALSE),0)","v":0},{"$f":"ROUND(Options!$B$21*HLOOKUP(Calculations!$E$2,'Pop2016fractionQ1&2'!$C$3:$BC$251,'Pop2016fractionQ1&2'!$BD179,FALSE),0)","v":0},{"$f":"ROUND(Options!$B$21*HLOOKUP(Calculations!$E$2,PARfraction!$C$3:$BC$251,PARfraction!$BD179,FALSE),0)","v":4369},177]
[null,"Female 30-34",{"$f":"ROUND(Options!$B$21*HLOOKUP(Calculations!$E$2,Pop2016fraction!$C$3:$BC$251,Pop2016fraction!$BD180,FALSE),0)","v":5214},{"$f":"ROUND(Options!$B$21*HLOOKUP(Calculations!$E$2,Pop2016fractionQ1!$C$3:$BC$251,Pop2016fractionQ1!$BD180,FALSE),0)","v":0},{"$f":"ROUND(Options!$B$21*HLOOKUP(Calculations!$E$2,'Pop2016fractionQ1&2'!$C$3:$BC$251,'Pop2016fractionQ1&2'!$BD180,FALSE),0)","v":0},{"$f":"ROUND(Options!$B$21*HLOOKUP(Calculations!$E$2,PARfraction!$C$3:$BC$251,PARfraction!$BD180,FALSE),0)","v":4421},178]
[null,"Female 35-39",{"$f":"ROUND(Options!$B$21*HLOOKUP(Calculations!$E$2,Pop2016fraction!$C$3:$BC$251,Pop2016fraction!$BD181,FALSE),0)","v":5054},{"$f":"ROUND(Options!$B$21*HLOOKUP(Calculations!$E$2,Pop2016fractionQ1!$C$3:$BC$251,Pop2016fractionQ1!$BD181,FALSE),0)","v":0},{"$f":"ROUND(Options!$B$21*HLOOKUP(Calculations!$E$2,'Pop2016fractionQ1&2'!$C$3:$BC$251,'Pop2016fractionQ1&2'!$BD181,FALSE),0)","v":0},{"$f":"ROUND(Options!$B$21*HLOOKUP(Calculations!$E$2,PARfraction!$C$3:$BC$251,PARfraction!$BD181,FALSE),0)","v":3588},179]
[null,"Female 40-44",{"$f":"ROUND(Options!$B$21*HLOOKUP(Calculations!$E$2,Pop2016fraction!$C$3:$BC$251,Pop2016fraction!$BD182,FALSE),0)","v":5517},{"$f":"ROUND(Options!$B$21*HLOOKUP(Calculations!$E$2,Pop2016fractionQ1!$C$3:$BC$251,Pop2016fractionQ1!$BD182,FALSE),0)","v":0},{"$f":"ROUND(Options!$B$21*HLOOKUP(Calculations!$E$2,'Pop2016fractionQ1&2'!$C$3:$BC$251,'Pop2016fractionQ1&2'!$BD182,FALSE),0)","v":0},{"$f":"ROUND(Options!$B$21*HLOOKUP(Calculations!$E$2,PARfraction!$C$3:$BC$251,PARfraction!$BD182,FALSE),0)","v":3916},180]
[null,"Female 45-49",{"$f":"ROUND(Options!$B$21*HLOOKUP(Calculations!$E$2,Pop2016fraction!$C$3:$BC$251,Pop2016fraction!$BD183,FALSE),0)","v":6500},{"$f":"ROUND(Options!$B$21*HLOOKUP(Calculations!$E$2,Pop2016fractionQ1!$C$3:$BC$251,Pop2016fractionQ1!$BD183,FALSE),0)","v":0},{"$f":"ROUND(Options!$B$21*HLOOKUP(Calculations!$E$2,'Pop2016fractionQ1&2'!$C$3:$BC$251,'Pop2016fractionQ1&2'!$BD183,FALSE),0)","v":0},{"$f":"ROUND(Options!$B$21*HLOOKUP(Calculations!$E$2,PARfraction!$C$3:$BC$251,PARfraction!$BD183,FALSE),0)","v":4402},181]
[null,"Female 50-54",{"$f":"ROUND(Options!$B$21*HLOOKUP(Calculations!$E$2,Pop2016fraction!$C$3:$BC$251,Pop2016fraction!$BD184,FALSE),0)","v":6791},{"$f":"ROUND(Options!$B$21*HLOOKUP(Calculations!$E$2,Pop2016fractionQ1!$C$3:$BC$251,Pop2016fractionQ1!$BD184,FALSE),0)","v":0},{"$f":"ROUND(Options!$B$21*HLOOKUP(Calculations!$E$2,'Pop2016fractionQ1&2'!$C$3:$BC$251,'Pop2016fractionQ1&2'!$BD184,FALSE),0)","v":0},{"$f":"ROUND(Options!$B$21*HLOOKUP(Calculations!$E$2,PARfraction!$C$3:$BC$251,PARfraction!$BD184,FALSE),0)","v":4599},182]
[null,"Female 55-59",{"$f":"ROUND(Options!$B$21*HLOOKUP(Calculations!$E$2,Pop2016fraction!$C$3:$BC$251,Pop2016fraction!$BD185,FALSE),0)","v":6134},{"$f":"ROUND(Options!$B$21*HLOOKUP(Calculations!$E$2,Pop2016fractionQ1!$C$3:$BC$251,Pop2016fractionQ1!$BD185,FALSE),0)","v":0},{"$f":"ROUND(Options!$B$21*HLOOKUP(Calculations!$E$2,'Pop2016fractionQ1&2'!$C$3:$BC$251,'Pop2016fractionQ1&2'!$BD185,FALSE),0)","v":0},{"$f":"ROUND(Options!$B$21*HLOOKUP(Calculations!$E$2,PARfraction!$C$3:$BC$251,PARfraction!$BD185,FALSE),0)","v":3827},183]
[null,"Female 60-64",{"$f":"ROUND(Options!$B$21*HLOOKUP(Calculations!$E$2,Pop2016fraction!$C$3:$BC$251,Pop2016fraction!$BD186,FALSE),0)","v":5402},{"$f":"ROUND(Options!$B$21*HLOOKUP(Calculations!$E$2,Pop2016fractionQ1!$C$3:$BC$251,Pop2016fractionQ1!$BD186,FALSE),0)","v":0},{"$f":"ROUND(Options!$B$21*HLOOKUP(Calculations!$E$2,'Pop2016fractionQ1&2'!$C$3:$BC$251,'Pop2016fractionQ1&2'!$BD186,FALSE),0)","v":0},{"$f":"ROUND(Options!$B$21*HLOOKUP(Calculations!$E$2,PARfraction!$C$3:$BC$251,PARfraction!$BD186,FALSE),0)","v":3370},184]
[null,"Female 65-69",{"$f":"ROUND(Options!$B$21*HLOOKUP(Calculations!$E$2,Pop2016fraction!$C$3:$BC$251,Pop2016fraction!$BD187,FALSE),0)","v":5375},{"$f":"ROUND(Options!$B$21*HLOOKUP(Calculations!$E$2,Pop2016fractionQ1!$C$3:$BC$251,Pop2016fractionQ1!$BD187,FALSE),0)","v":0},{"$f":"ROUND(Options!$B$21*HLOOKUP(Calculations!$E$2,'Pop2016fractionQ1&2'!$C$3:$BC$251,'Pop2016fractionQ1&2'!$BD187,FALSE),0)","v":0},{"$f":"ROUND(Options!$B$21*HLOOKUP(Calculations!$E$2,PARfraction!$C$3:$BC$251,PARfraction!$BD187,FALSE),0)","v":2815},185]
[null,"Female 70-74",{"$f":"ROUND(Options!$B$21*HLOOKUP(Calculations!$E$2,Pop2016fraction!$C$3:$BC$251,Pop2016fraction!$BD188,FALSE),0)","v":4055},{"$f":"ROUND(Options!$B$21*HLOOKUP(Calculations!$E$2,Pop2016fractionQ1!$C$3:$BC$251,Pop2016fractionQ1!$BD188,FALSE),0)","v":0},{"$f":"ROUND(Options!$B$21*HLOOKUP(Calculations!$E$2,'Pop2016fractionQ1&2'!$C$3:$BC$251,'Pop2016fractionQ1&2'!$BD188,FALSE),0)","v":0},{"$f":"ROUND(Options!$B$21*HLOOKUP(Calculations!$E$2,PARfraction!$C$3:$BC$251,PARfraction!$BD188,FALSE),0)","v":2124},186]
[null,"Female 75-79",{"$f":"ROUND(Options!$B$21*HLOOKUP(Calculations!$E$2,Pop2016fraction!$C$3:$BC$251,Pop2016fraction!$BD189,FALSE),0)","v":3191},{"$f":"ROUND(Options!$B$21*HLOOKUP(Calculations!$E$2,Pop2016fractionQ1!$C$3:$BC$251,Pop2016fractionQ1!$BD189,FALSE),0)","v":0},{"$f":"ROUND(Options!$B$21*HLOOKUP(Calculations!$E$2,'Pop2016fractionQ1&2'!$C$3:$BC$251,'Pop2016fractionQ1&2'!$BD189,FALSE),0)","v":0},{"$f":"ROUND(Options!$B$21*HLOOKUP(Calculations!$E$2,PARfraction!$C$3:$BC$251,PARfraction!$BD189,FALSE),0)","v":887},187]
[null,"Female 80-84",{"$f":"ROUND(Options!$B$21*HLOOKUP(Calculations!$E$2,Pop2016fraction!$C$3:$BC$251,Pop2016fraction!$BD190,FALSE),0)","v":2409},{"$f":"ROUND(Options!$B$21*HLOOKUP(Calculations!$E$2,Pop2016fractionQ1!$C$3:$BC$251,Pop2016fractionQ1!$BD190,FALSE),0)","v":0},{"$f":"ROUND(Options!$B$21*HLOOKUP(Calculations!$E$2,'Pop2016fractionQ1&2'!$C$3:$BC$251,'Pop2016fractionQ1&2'!$BD190,FALSE),0)","v":0},{"$f":"ROUND(Options!$B$21*HLOOKUP(Calculations!$E$2,PARfraction!$C$3:$BC$251,PARfraction!$BD190,FALSE),0)","v":670},188]
[null,"Female 85-89",{"$f":"ROUND(Options!$B$21*HLOOKUP(Calculations!$E$2,Pop2016fraction!$C$3:$BC$251,Pop2016fraction!$BD191,FALSE),0)","v":1539},{"$f":"ROUND(Options!$B$21*HLOOKUP(Calculations!$E$2,Pop2016fractionQ1!$C$3:$BC$251,Pop2016fractionQ1!$BD191,FALSE),0)","v":0},{"$f":"ROUND(Options!$B$21*HLOOKUP(Calculations!$E$2,'Pop2016fractionQ1&2'!$C$3:$BC$251,'Pop2016fractionQ1&2'!$BD191,FALSE),0)","v":0},{"$f":"ROUND(Options!$B$21*HLOOKUP(Calculations!$E$2,PARfraction!$C$3:$BC$251,PARfraction!$BD191,FALSE),0)","v":428},189]
[null,"Female 90+",{"$f":"ROUND(Options!$B$21*HLOOKUP(Calculations!$E$2,Pop2016fraction!$C$3:$BC$251,Pop2016fraction!$BD192,FALSE),0)","v":924},{"$f":"ROUND(Options!$B$21*HLOOKUP(Calculations!$E$2,Pop2016fractionQ1!$C$3:$BC$251,Pop2016fractionQ1!$BD192,FALSE),0)","v":0},{"$f":"ROUND(Options!$B$21*HLOOKUP(Calculations!$E$2,'Pop2016fractionQ1&2'!$C$3:$BC$251,'Pop2016fractionQ1&2'!$BD192,FALSE),0)","v":0},{"$f":"ROUND(Options!$B$21*HLOOKUP(Calculations!$E$2,PARfraction!$C$3:$BC$251,PARfraction!$BD192,FALSE),0)","v":257},190]
[null,"Male 0-4",{"$f":"ROUND(Options!$B$21*HLOOKUP(Calculations!$E$2,Pop2016fraction!$C$3:$BC$251,Pop2016fraction!$BD193,FALSE),0)","v":0},{"$f":"ROUND(Options!$B$21*HLOOKUP(Calculations!$E$2,Pop2016fractionQ1!$C$3:$BC$251,Pop2016fractionQ1!$BD193,FALSE),0)","v":0},{"$f":"ROUND(Options!$B$21*HLOOKUP(Calculations!$E$2,'Pop2016fractionQ1&2'!$C$3:$BC$251,'Pop2016fractionQ1&2'!$BD193,FALSE),0)","v":0},{"$f":"ROUND(Options!$B$21*HLOOKUP(Calculations!$E$2,PARfraction!$C$3:$BC$251,PARfraction!$BD193,FALSE),0)","v":0},191]
[null,"Male 5-9",{"$f":"ROUND(Options!$B$21*HLOOKUP(Calculations!$E$2,Pop2016fraction!$C$3:$BC$251,Pop2016fraction!$BD194,FALSE),0)","v":0},{"$f":"ROUND(Options!$B$21*HLOOKUP(Calculations!$E$2,Pop2016fractionQ1!$C$3:$BC$251,Pop2016fractionQ1!$BD194,FALSE),0)","v":0},{"$f":"ROUND(Options!$B$21*HLOOKUP(Calculations!$E$2,'Pop2016fractionQ1&2'!$C$3:$BC$251,'Pop2016fractionQ1&2'!$BD194,FALSE),0)","v":0},{"$f":"ROUND(Options!$B$21*HLOOKUP(Calculations!$E$2,PARfraction!$C$3:$BC$251,PARfraction!$BD194,FALSE),0)","v":0},192]
[null,"Male 10-15",{"$f":"ROUND(Options!$B$21*HLOOKUP(Calculations!$E$2,Pop2016fraction!$C$3:$BC$251,Pop2016fraction!$BD195,FALSE),0)","v":0},{"$f":"ROUND(Options!$B$21*HLOOKUP(Calculations!$E$2,Pop2016fractionQ1!$C$3:$BC$251,Pop2016fractionQ1!$BD195,FALSE),0)","v":0},{"$f":"ROUND(Options!$B$21*HLOOKUP(Calculations!$E$2,'Pop2016fractionQ1&2'!$C$3:$BC$251,'Pop2016fractionQ1&2'!$BD195,FALSE),0)","v":0},{"$f":"ROUND(Options!$B$21*HLOOKUP(Calculations!$E$2,PARfraction!$C$3:$BC$251,PARfraction!$BD195,FALSE),0)","v":0},193]
[null,"Male 16-19",{"$f":"ROUND(Options!$B$21*HLOOKUP(Calculations!$E$2,Pop2016fraction!$C$3:$BC$251,Pop2016fraction!$BD196,FALSE),0)","v":3811},{"$f":"ROUND(Options!$B$21*HLOOKUP(Calculations!$E$2,Pop2016fractionQ1!$C$3:$BC$251,Pop2016fractionQ1!$BD196,FALSE),0)","v":0},{"$f":"ROUND(Options!$B$21*HLOOKUP(Calculations!$E$2,'Pop2016fractionQ1&2'!$C$3:$BC$251,'Pop2016fractionQ1&2'!$BD196,FALSE),0)","v":0},{"$f":"ROUND(Options!$B$21*HLOOKUP(Calculations!$E$2,PARfraction!$C$3:$BC$251,PARfraction!$BD196,FALSE),0)","v":3546},194]
[null,"Male 20-24",{"$f":"ROUND(Options!$B$21*HLOOKUP(Calculations!$E$2,Pop2016fraction!$C$3:$BC$251,Pop2016fraction!$BD197,FALSE),0)","v":5428},{"$f":"ROUND(Options!$B$21*HLOOKUP(Calculations!$E$2,Pop2016fractionQ1!$C$3:$BC$251,Pop2016fractionQ1!$BD197,FALSE),0)","v":0},{"$f":"ROUND(Options!$B$21*HLOOKUP(Calculations!$E$2,'Pop2016fractionQ1&2'!$C$3:$BC$251,'Pop2016fractionQ1&2'!$BD197,FALSE),0)","v":0},{"$f":"ROUND(Options!$B$21*HLOOKUP(Calculations!$E$2,PARfraction!$C$3:$BC$251,PARfraction!$BD197,FALSE),0)","v":5051},195]
[null,"Male 25-29",{"$f":"ROUND(Options!$B$21*HLOOKUP(Calculations!$E$2,Pop2016fraction!$C$3:$BC$251,Pop2016fraction!$BD198,FALSE),0)","v":5195},{"$f":"ROUND(Options!$B$21*HLOOKUP(Calculations!$E$2,Pop2016fractionQ1!$C$3:$BC$251,Pop2016fractionQ1!$BD198,FALSE),0)","v":0},{"$f":"ROUND(Options!$B$21*HLOOKUP(Calculations!$E$2,'Pop2016fractionQ1&2'!$C$3:$BC$251,'Pop2016fractionQ1&2'!$BD198,FALSE),0)","v":0},{"$f":"ROUND(Options!$B$21*HLOOKUP(Calculations!$E$2,PARfraction!$C$3:$BC$251,PARfraction!$BD198,FALSE),0)","v":5566},196]
[null,"Male 30-34",{"$f":"ROUND(Options!$B$21*HLOOKUP(Calculations!$E$2,Pop2016fraction!$C$3:$BC$251,Pop2016fraction!$BD199,FALSE),0)","v":4984},{"$f":"ROUND(Options!$B$21*HLOOKUP(Calculations!$E$2,Pop2016fractionQ1!$C$3:$BC$251,Pop2016fractionQ1!$BD199,FALSE),0)","v":0},{"$f":"ROUND(Options!$B$21*HLOOKUP(Calculations!$E$2,'Pop2016fractionQ1&2'!$C$3:$BC$251,'Pop2016fractionQ1&2'!$BD199,FALSE),0)","v":0},{"$f":"ROUND(Options!$B$21*HLOOKUP(Calculations!$E$2,PARfraction!$C$3:$BC$251,PARfraction!$BD199,FALSE),0)","v":5340},197]
[null,"Male 35-39",{"$f":"ROUND(Options!$B$21*HLOOKUP(Calculations!$E$2,Pop2016fraction!$C$3:$BC$251,Pop2016fraction!$BD200,FALSE),0)","v":4934},{"$f":"ROUND(Options!$B$21*HLOOKUP(Calculations!$E$2,Pop2016fractionQ1!$C$3:$BC$251,Pop2016fractionQ1!$BD200,FALSE),0)","v":0},{"$f":"ROUND(Options!$B$21*HLOOKUP(Calculations!$E$2,'Pop2016fractionQ1&2'!$C$3:$BC$251,'Pop2016fractionQ1&2'!$BD200,FALSE),0)","v":0},{"$f":"ROUND(Options!$B$21*HLOOKUP(Calculations!$E$2,PARfraction!$C$3:$BC$251,PARfraction!$BD200,FALSE),0)","v":4656},198]
[null,"Male 40-44",{"$f":"ROUND(Options!$B$21*HLOOKUP(Calculations!$E$2,Pop2016fraction!$C$3:$BC$251,Pop2016fraction!$BD201,FALSE),0)","v":5292},{"$f":"ROUND(Options!$B$21*HLOOKUP(Calculations!$E$2,Pop2016fractionQ1!$C$3:$BC$251,Pop2016fractionQ1!$BD201,FALSE),0)","v":0},{"$f":"ROUND(Options!$B$21*HLOOKUP(Calculations!$E$2,'Pop2016fractionQ1&2'!$C$3:$BC$251,'Pop2016fractionQ1&2'!$BD201,FALSE),0)","v":0},{"$f":"ROUND(Options!$B$21*HLOOKUP(Calculations!$E$2,PARfraction!$C$3:$BC$251,PARfraction!$BD201,FALSE),0)","v":4994},199]
[null,"Male 45-49",{"$f":"ROUND(Options!$B$21*HLOOKUP(Calculations!$E$2,Pop2016fraction!$C$3:$BC$251,Pop2016fraction!$BD202,FALSE),0)","v":6139},{"$f":"ROUND(Options!$B$21*HLOOKUP(Calculations!$E$2,Pop2016fractionQ1!$C$3:$BC$251,Pop2016fractionQ1!$BD202,FALSE),0)","v":0},{"$f":"ROUND(Options!$B$21*HLOOKUP(Calculations!$E$2,'Pop2016fractionQ1&2'!$C$3:$BC$251,'Pop2016fractionQ1&2'!$BD202,FALSE),0)","v":0},{"$f":"ROUND(Options!$B$21*HLOOKUP(Calculations!$E$2,PARfraction!$C$3:$BC$251,PARfraction!$BD202,FALSE),0)","v":5754},200]
[null,"Male 50-54",{"$f":"ROUND(Options!$B$21*HLOOKUP(Calculations!$E$2,Pop2016fraction!$C$3:$BC$251,Pop2016fraction!$BD203,FALSE),0)","v":6511},{"$f":"ROUND(Options!$B$21*HLOOKUP(Calculations!$E$2,Pop2016fractionQ1!$C$3:$BC$251,Pop2016fractionQ1!$BD203,FALSE),0)","v":0},{"$f":"ROUND(Options!$B$21*HLOOKUP(Calculations!$E$2,'Pop2016fractionQ1&2'!$C$3:$BC$251,'Pop2016fractionQ1&2'!$BD203,FALSE),0)","v":0},{"$f":"ROUND(Options!$B$21*HLOOKUP(Calculations!$E$2,PARfraction!$C$3:$BC$251,PARfraction!$BD203,FALSE),0)","v":6103},201]
[null,"Male 55-59",{"$f":"ROUND(Options!$B$21*HLOOKUP(Calculations!$E$2,Pop2016fraction!$C$3:$BC$251,Pop2016fraction!$BD204,FALSE),0)","v":5929},{"$f":"ROUND(Options!$B$21*HLOOKUP(Calculations!$E$2,Pop2016fractionQ1!$C$3:$BC$251,Pop2016fractionQ1!$BD204,FALSE),0)","v":0},{"$f":"ROUND(Options!$B$21*HLOOKUP(Calculations!$E$2,'Pop2016fractionQ1&2'!$C$3:$BC$251,'Pop2016fractionQ1&2'!$BD204,FALSE),0)","v":0},{"$f":"ROUND(Options!$B$21*HLOOKUP(Calculations!$E$2,PARfraction!$C$3:$BC$251,PARfraction!$BD204,FALSE),0)","v":4013},202]
[null,"Male 60-64",{"$f":"ROUND(Options!$B$21*HLOOKUP(Calculations!$E$2,Pop2016fraction!$C$3:$BC$251,Pop2016fraction!$BD205,FALSE),0)","v":5211},{"$f":"ROUND(Options!$B$21*HLOOKUP(Calculations!$E$2,Pop2016fractionQ1!$C$3:$BC$251,Pop2016fractionQ1!$BD205,FALSE),0)","v":0},{"$f":"ROUND(Options!$B$21*HLOOKUP(Calculations!$E$2,'Pop2016fractionQ1&2'!$C$3:$BC$251,'Pop2016fractionQ1&2'!$BD205,FALSE),0)","v":0},{"$f":"ROUND(Options!$B$21*HLOOKUP(Calculations!$E$2,PARfraction!$C$3:$BC$251,PARfraction!$BD205,FALSE),0)","v":3527},203]
[null,"Male 65-69",{"$f":"ROUND(Options!$B$21*HLOOKUP(Calculations!$E$2,Pop2016fraction!$C$3:$BC$251,Pop2016fraction!$BD206,FALSE),0)","v":5102},{"$f":"ROUND(Options!$B$21*HLOOKUP(Calculations!$E$2,Pop2016fractionQ1!$C$3:$BC$251,Pop2016fractionQ1!$BD206,FALSE),0)","v":0},{"$f":"ROUND(Options!$B$21*HLOOKUP(Calculations!$E$2,'Pop2016fractionQ1&2'!$C$3:$BC$251,'Pop2016fractionQ1&2'!$BD206,FALSE),0)","v":0},{"$f":"ROUND(Options!$B$21*HLOOKUP(Calculations!$E$2,PARfraction!$C$3:$BC$251,PARfraction!$BD206,FALSE),0)","v":2616},204]
[null,"Male 70-74",{"$f":"ROUND(Options!$B$21*HLOOKUP(Calculations!$E$2,Pop2016fraction!$C$3:$BC$251,Pop2016fraction!$BD207,FALSE),0)","v":3753},{"$f":"ROUND(Options!$B$21*HLOOKUP(Calculations!$E$2,Pop2016fractionQ1!$C$3:$BC$251,Pop2016fractionQ1!$BD207,FALSE),0)","v":0},{"$f":"ROUND(Options!$B$21*HLOOKUP(Calculations!$E$2,'Pop2016fractionQ1&2'!$C$3:$BC$251,'Pop2016fractionQ1&2'!$BD207,FALSE),0)","v":0},{"$f":"ROUND(Options!$B$21*HLOOKUP(Calculations!$E$2,PARfraction!$C$3:$BC$251,PARfraction!$BD207,FALSE),0)","v":1925},205]
[null,"Male 75-79",{"$f":"ROUND(Options!$B$21*HLOOKUP(Calculations!$E$2,Pop2016fraction!$C$3:$BC$251,Pop2016fraction!$BD208,FALSE),0)","v":2663},{"$f":"ROUND(Options!$B$21*HLOOKUP(Calculations!$E$2,Pop2016fractionQ1!$C$3:$BC$251,Pop2016fractionQ1!$BD208,FALSE),0)","v":0},{"$f":"ROUND(Options!$B$21*HLOOKUP(Calculations!$E$2,'Pop2016fractionQ1&2'!$C$3:$BC$251,'Pop2016fractionQ1&2'!$BD208,FALSE),0)","v":0},{"$f":"ROUND(Options!$B$21*HLOOKUP(Calculations!$E$2,PARfraction!$C$3:$BC$251,PARfraction!$BD208,FALSE),0)","v":491},206]
[null,"Male 80-84",{"$f":"ROUND(Options!$B$21*HLOOKUP(Calculations!$E$2,Pop2016fraction!$C$3:$BC$251,Pop2016fraction!$BD209,FALSE),0)","v":1805},{"$f":"ROUND(Options!$B$21*HLOOKUP(Calculations!$E$2,Pop2016fractionQ1!$C$3:$BC$251,Pop2016fractionQ1!$BD209,FALSE),0)","v":0},{"$f":"ROUND(Options!$B$21*HLOOKUP(Calculations!$E$2,'Pop2016fractionQ1&2'!$C$3:$BC$251,'Pop2016fractionQ1&2'!$BD209,FALSE),0)","v":0},{"$f":"ROUND(Options!$B$21*HLOOKUP(Calculations!$E$2,PARfraction!$C$3:$BC$251,PARfraction!$BD209,FALSE),0)","v":333},207]
[null,"Male 85-89",{"$f":"ROUND(Options!$B$21*HLOOKUP(Calculations!$E$2,Pop2016fraction!$C$3:$BC$251,Pop2016fraction!$BD210,FALSE),0)","v":953},{"$f":"ROUND(Options!$B$21*HLOOKUP(Calculations!$E$2,Pop2016fractionQ1!$C$3:$BC$251,Pop2016fractionQ1!$BD210,FALSE),0)","v":0},{"$f":"ROUND(Options!$B$21*HLOOKUP(Calculations!$E$2,'Pop2016fractionQ1&2'!$C$3:$BC$251,'Pop2016fractionQ1&2'!$BD210,FALSE),0)","v":0},{"$f":"ROUND(Options!$B$21*HLOOKUP(Calculations!$E$2,PARfraction!$C$3:$BC$251,PARfraction!$BD210,FALSE),0)","v":176},208]
[null,"Male 90+",{"$f":"ROUND(Options!$B$21*HLOOKUP(Calculations!$E$2,Pop2016fraction!$C$3:$BC$251,Pop2016fraction!$BD211,FALSE),0)","v":392},{"$f":"ROUND(Options!$B$21*HLOOKUP(Calculations!$E$2,Pop2016fractionQ1!$C$3:$BC$251,Pop2016fractionQ1!$BD211,FALSE),0)","v":0},{"$f":"ROUND(Options!$B$21*HLOOKUP(Calculations!$E$2,'Pop2016fractionQ1&2'!$C$3:$BC$251,'Pop2016fractionQ1&2'!$BD211,FALSE),0)","v":0},{"$f":"ROUND(Options!$B$21*HLOOKUP(Calculations!$E$2,PARfraction!$C$3:$BC$251,PARfraction!$BD211,FALSE),0)","v":72},209]
["SIMD Q5 (least deprived)","Female 0-4",{"$f":"ROUND(Options!$B$21*HLOOKUP(Calculations!$E$2,Pop2016fraction!$C$3:$BC$251,Pop2016fraction!$BD212,FALSE),0)","v":0},{"$f":"ROUND(Options!$B$21*HLOOKUP(Calculations!$E$2,Pop2016fractionQ1!$C$3:$BC$251,Pop2016fractionQ1!$BD212,FALSE),0)","v":0},{"$f":"ROUND(Options!$B$21*HLOOKUP(Calculations!$E$2,'Pop2016fractionQ1&2'!$C$3:$BC$251,'Pop2016fractionQ1&2'!$BD212,FALSE),0)","v":0},{"$f":"ROUND(Options!$B$21*HLOOKUP(Calculations!$E$2,PARfraction!$C$3:$BC$251,PARfraction!$BD212,FALSE),0)","v":0},210]
[null,"Female 5-9",{"$f":"ROUND(Options!$B$21*HLOOKUP(Calculations!$E$2,Pop2016fraction!$C$3:$BC$251,Pop2016fraction!$BD213,FALSE),0)","v":0},{"$f":"ROUND(Options!$B$21*HLOOKUP(Calculations!$E$2,Pop2016fractionQ1!$C$3:$BC$251,Pop2016fractionQ1!$BD213,FALSE),0)","v":0},{"$f":"ROUND(Options!$B$21*HLOOKUP(Calculations!$E$2,'Pop2016fractionQ1&2'!$C$3:$BC$251,'Pop2016fractionQ1&2'!$BD213,FALSE),0)","v":0},{"$f":"ROUND(Options!$B$21*HLOOKUP(Calculations!$E$2,PARfraction!$C$3:$BC$251,PARfraction!$BD213,FALSE),0)","v":0},211]
[null,"Female 10-15",{"$f":"ROUND(Options!$B$21*HLOOKUP(Calculations!$E$2,Pop2016fraction!$C$3:$BC$251,Pop2016fraction!$BD214,FALSE),0)","v":0},{"$f":"ROUND(Options!$B$21*HLOOKUP(Calculations!$E$2,Pop2016fractionQ1!$C$3:$BC$251,Pop2016fractionQ1!$BD214,FALSE),0)","v":0},{"$f":"ROUND(Options!$B$21*HLOOKUP(Calculations!$E$2,'Pop2016fractionQ1&2'!$C$3:$BC$251,'Pop2016fractionQ1&2'!$BD214,FALSE),0)","v":0},{"$f":"ROUND(Options!$B$21*HLOOKUP(Calculations!$E$2,PARfraction!$C$3:$BC$251,PARfraction!$BD214,FALSE),0)","v":0},212]
[null,"Female 16-19",{"$f":"ROUND(Options!$B$21*HLOOKUP(Calculations!$E$2,Pop2016fraction!$C$3:$BC$251,Pop2016fraction!$BD215,FALSE),0)","v":3893},{"$f":"ROUND(Options!$B$21*HLOOKUP(Calculations!$E$2,Pop2016fractionQ1!$C$3:$BC$251,Pop2016fractionQ1!$BD215,FALSE),0)","v":0},{"$f":"ROUND(Options!$B$21*HLOOKUP(Calculations!$E$2,'Pop2016fractionQ1&2'!$C$3:$BC$251,'Pop2016fractionQ1&2'!$BD215,FALSE),0)","v":0},{"$f":"ROUND(Options!$B$21*HLOOKUP(Calculations!$E$2,PARfraction!$C$3:$BC$251,PARfraction!$BD215,FALSE),0)","v":1734},213]
[null,"Female 20-24",{"$f":"ROUND(Options!$B$21*HLOOKUP(Calculations!$E$2,Pop2016fraction!$C$3:$BC$251,Pop2016fraction!$BD216,FALSE),0)","v":5857},{"$f":"ROUND(Options!$B$21*HLOOKUP(Calculations!$E$2,Pop2016fractionQ1!$C$3:$BC$251,Pop2016fractionQ1!$BD216,FALSE),0)","v":0},{"$f":"ROUND(Options!$B$21*HLOOKUP(Calculations!$E$2,'Pop2016fractionQ1&2'!$C$3:$BC$251,'Pop2016fractionQ1&2'!$BD216,FALSE),0)","v":0},{"$f":"ROUND(Options!$B$21*HLOOKUP(Calculations!$E$2,PARfraction!$C$3:$BC$251,PARfraction!$BD216,FALSE),0)","v":2608},214]
[null,"Female 25-29",{"$f":"ROUND(Options!$B$21*HLOOKUP(Calculations!$E$2,Pop2016fraction!$C$3:$BC$251,Pop2016fraction!$BD217,FALSE),0)","v":4988},{"$f":"ROUND(Options!$B$21*HLOOKUP(Calculations!$E$2,Pop2016fractionQ1!$C$3:$BC$251,Pop2016fractionQ1!$BD217,FALSE),0)","v":0},{"$f":"ROUND(Options!$B$21*HLOOKUP(Calculations!$E$2,'Pop2016fractionQ1&2'!$C$3:$BC$251,'Pop2016fractionQ1&2'!$BD217,FALSE),0)","v":0},{"$f":"ROUND(Options!$B$21*HLOOKUP(Calculations!$E$2,PARfraction!$C$3:$BC$251,PARfraction!$BD217,FALSE),0)","v":2266},215]
[null,"Female 30-34",{"$f":"ROUND(Options!$B$21*HLOOKUP(Calculations!$E$2,Pop2016fraction!$C$3:$BC$251,Pop2016fraction!$BD218,FALSE),0)","v":4874},{"$f":"ROUND(Options!$B$21*HLOOKUP(Calculations!$E$2,Pop2016fractionQ1!$C$3:$BC$251,Pop2016fractionQ1!$BD218,FALSE),0)","v":0},{"$f":"ROUND(Options!$B$21*HLOOKUP(Calculations!$E$2,'Pop2016fractionQ1&2'!$C$3:$BC$251,'Pop2016fractionQ1&2'!$BD218,FALSE),0)","v":0},{"$f":"ROUND(Options!$B$21*HLOOKUP(Calculations!$E$2,PARfraction!$C$3:$BC$251,PARfraction!$BD218,FALSE),0)","v":2215},216]
[null,"Female 35-39",{"$f":"ROUND(Options!$B$21*HLOOKUP(Calculations!$E$2,Pop2016fraction!$C$3:$BC$251,Pop2016fraction!$BD219,FALSE),0)","v":5189},{"$f":"ROUND(Options!$B$21*HLOOKUP(Calculations!$E$2,Pop2016fractionQ1!$C$3:$BC$251,Pop2016fractionQ1!$BD219,FALSE),0)","v":0},{"$f":"ROUND(Options!$B$21*HLOOKUP(Calculations!$E$2,'Pop2016fractionQ1&2'!$C$3:$BC$251,'Pop2016fractionQ1&2'!$BD219,FALSE),0)","v":0},{"$f":"ROUND(Options!$B$21*HLOOKUP(Calculations!$E$2,PARfraction!$C$3:$BC$251,PARfraction!$BD219,FALSE),0)","v":2167},217]
[null,"Female 40-44",{"$f":"ROUND(Options!$B$21*HLOOKUP(Calculations!$E$2,Pop2016fraction!$C$3:$BC$251,Pop2016fraction!$BD220,FALSE),0)","v":5625},{"$f":"ROUND(Options!$B$21*HLOOKUP(Calculations!$E$2,Pop2016fractionQ1!$C$3:$BC$251,Pop2016fractionQ1!$BD220,FALSE),0)","v":0},{"$f":"ROUND(Options!$B$21*HLOOKUP(Calculations!$E$2,'Pop2016fractionQ1&2'!$C$3:$BC$251,'Pop2016fractionQ1&2'!$BD220,FALSE),0)","v":0},{"$f":"ROUND(Options!$B$21*HLOOKUP(Calculations!$E$2,PARfraction!$C$3:$BC$251,PARfraction!$BD220,FALSE),0)","v":2349},218]
[null,"Female 45-49",{"$f":"ROUND(Options!$B$21*HLOOKUP(Calculations!$E$2,Pop2016fraction!$C$3:$BC$251,Pop2016fraction!$BD221,FALSE),0)","v":6438},{"$f":"ROUND(Options!$B$21*HLOOKUP(Calculations!$E$2,Pop2016fractionQ1!$C$3:$BC$251,Pop2016fractionQ1!$BD221,FALSE),0)","v":0},{"$f":"ROUND(Options!$B$21*HLOOKUP(Calculations!$E$2,'Pop2016fractionQ1&2'!$C$3:$BC$251,'Pop2016fractionQ1&2'!$BD221,FALSE),0)","v":0},{"$f":"ROUND(Options!$B$21*HLOOKUP(Calculations!$E$2,PARfraction!$C$3:$BC$251,PARfraction!$BD221,FALSE),0)","v":2911},219]
[null,"Female 50-54",{"$f":"ROUND(Options!$B$21*HLOOKUP(Calculations!$E$2,Pop2016fraction!$C$3:$BC$251,Pop2016fraction!$BD222,FALSE),0)","v":6537},{"$f":"ROUND(Options!$B$21*HLOOKUP(Calculations!$E$2,Pop2016fractionQ1!$C$3:$BC$251,Pop2016fractionQ1!$BD222,FALSE),0)","v":0},{"$f":"ROUND(Options!$B$21*HLOOKUP(Calculations!$E$2,'Pop2016fractionQ1&2'!$C$3:$BC$251,'Pop2016fractionQ1&2'!$BD222,FALSE),0)","v":0},{"$f":"ROUND(Options!$B$21*HLOOKUP(Calculations!$E$2,PARfraction!$C$3:$BC$251,PARfraction!$BD222,FALSE),0)","v":2956},220]
[null,"Female 55-59",{"$f":"ROUND(Options!$B$21*HLOOKUP(Calculations!$E$2,Pop2016fraction!$C$3:$BC$251,Pop2016fraction!$BD223,FALSE),0)","v":5903},{"$f":"ROUND(Options!$B$21*HLOOKUP(Calculations!$E$2,Pop2016fractionQ1!$C$3:$BC$251,Pop2016fractionQ1!$BD223,FALSE),0)","v":0},{"$f":"ROUND(Options!$B$21*HLOOKUP(Calculations!$E$2,'Pop2016fractionQ1&2'!$C$3:$BC$251,'Pop2016fractionQ1&2'!$BD223,FALSE),0)","v":0},{"$f":"ROUND(Options!$B$21*HLOOKUP(Calculations!$E$2,PARfraction!$C$3:$BC$251,PARfraction!$BD223,FALSE),0)","v":2899},221]
[null,"Female 60-64",{"$f":"ROUND(Options!$B$21*HLOOKUP(Calculations!$E$2,Pop2016fraction!$C$3:$BC$251,Pop2016fraction!$BD224,FALSE),0)","v":5184},{"$f":"ROUND(Options!$B$21*HLOOKUP(Calculations!$E$2,Pop2016fractionQ1!$C$3:$BC$251,Pop2016fractionQ1!$BD224,FALSE),0)","v":0},{"$f":"ROUND(Options!$B$21*HLOOKUP(Calculations!$E$2,'Pop2016fractionQ1&2'!$C$3:$BC$251,'Pop2016fractionQ1&2'!$BD224,FALSE),0)","v":0},{"$f":"ROUND(Options!$B$21*HLOOKUP(Calculations!$E$2,PARfraction!$C$3:$BC$251,PARfraction!$BD224,FALSE),0)","v":2546},222]
[null,"Female 65-69",{"$f":"ROUND(Options!$B$21*HLOOKUP(Calculations!$E$2,Pop2016fraction!$C$3:$BC$251,Pop2016fraction!$BD225,FALSE),0)","v":5202},{"$f":"ROUND(Options!$B$21*HLOOKUP(Calculations!$E$2,Pop2016fractionQ1!$C$3:$BC$251,Pop2016fractionQ1!$BD225,FALSE),0)","v":0},{"$f":"ROUND(Options!$B$21*HLOOKUP(Calculations!$E$2,'Pop2016fractionQ1&2'!$C$3:$BC$251,'Pop2016fractionQ1&2'!$BD225,FALSE),0)","v":0},{"$f":"ROUND(Options!$B$21*HLOOKUP(Calculations!$E$2,PARfraction!$C$3:$BC$251,PARfraction!$BD225,FALSE),0)","v":1711},223]
[null,"Female 70-74",{"$f":"ROUND(Options!$B$21*HLOOKUP(Calculations!$E$2,Pop2016fraction!$C$3:$BC$251,Pop2016fraction!$BD226,FALSE),0)","v":3963},{"$f":"ROUND(Options!$B$21*HLOOKUP(Calculations!$E$2,Pop2016fractionQ1!$C$3:$BC$251,Pop2016fractionQ1!$BD226,FALSE),0)","v":0},{"$f":"ROUND(Options!$B$21*HLOOKUP(Calculations!$E$2,'Pop2016fractionQ1&2'!$C$3:$BC$251,'Pop2016fractionQ1&2'!$BD226,FALSE),0)","v":0},{"$f":"ROUND(Options!$B$21*HLOOKUP(Calculations!$E$2,PARfraction!$C$3:$BC$251,PARfraction!$BD226,FALSE),0)","v":1303},224]
[null,"Female 75-79",{"$f":"ROUND(Options!$B$21*HLOOKUP(Calculations!$E$2,Pop2016fraction!$C$3:$BC$251,Pop2016fraction!$BD227,FALSE),0)","v":3126},{"$f":"ROUND(Options!$B$21*HLOOKUP(Calculations!$E$2,Pop2016fractionQ1!$C$3:$BC$251,Pop2016fractionQ1!$BD227,FALSE),0)","v":0},{"$f":"ROUND(Options!$B$21*HLOOKUP(Calculations!$E$2,'Pop2016fractionQ1&2'!$C$3:$BC$251,'Pop2016fractionQ1&2'!$BD227,FALSE),0)","v":0},{"$f":"ROUND(Options!$B$21*HLOOKUP(Calculations!$E$2,PARfraction!$C$3:$BC$251,PARfraction!$BD227,FALSE),0)","v":717},225]
[null,"Female 80-84",{"$f":"ROUND(Options!$B$21*HLOOKUP(Calculations!$E$2,Pop2016fraction!$C$3:$BC$251,Pop2016fraction!$BD228,FALSE),0)","v":2410},{"$f":"ROUND(Options!$B$21*HLOOKUP(Calculations!$E$2,Pop2016fractionQ1!$C$3:$BC$251,Pop2016fractionQ1!$BD228,FALSE),0)","v":0},{"$f":"ROUND(Options!$B$21*HLOOKUP(Calculations!$E$2,'Pop2016fractionQ1&2'!$C$3:$BC$251,'Pop2016fractionQ1&2'!$BD228,FALSE),0)","v":0},{"$f":"ROUND(Options!$B$21*HLOOKUP(Calculations!$E$2,PARfraction!$C$3:$BC$251,PARfraction!$BD228,FALSE),0)","v":552},226]
[null,"Female 85-89",{"$f":"ROUND(Options!$B$21*HLOOKUP(Calculations!$E$2,Pop2016fraction!$C$3:$BC$251,Pop2016fraction!$BD229,FALSE),0)","v":1535},{"$f":"ROUND(Options!$B$21*HLOOKUP(Calculations!$E$2,Pop2016fractionQ1!$C$3:$BC$251,Pop2016fractionQ1!$BD229,FALSE),0)","v":0},{"$f":"ROUND(Options!$B$21*HLOOKUP(Calculations!$E$2,'Pop2016fractionQ1&2'!$C$3:$BC$251,'Pop2016fractionQ1&2'!$BD229,FALSE),0)","v":0},{"$f":"ROUND(Options!$B$21*HLOOKUP(Calculations!$E$2,PARfraction!$C$3:$BC$251,PARfraction!$BD229,FALSE),0)","v":352},227]
[null,"Female 90+",{"$f":"ROUND(Options!$B$21*HLOOKUP(Calculations!$E$2,Pop2016fraction!$C$3:$BC$251,Pop2016fraction!$BD230,FALSE),0)","v":933},{"$f":"ROUND(Options!$B$21*HLOOKUP(Calculations!$E$2,Pop2016fractionQ1!$C$3:$BC$251,Pop2016fractionQ1!$BD230,FALSE),0)","v":0},{"$f":"ROUND(Options!$B$21*HLOOKUP(Calculations!$E$2,'Pop2016fractionQ1&2'!$C$3:$BC$251,'Pop2016fractionQ1&2'!$BD230,FALSE),0)","v":0},{"$f":"ROUND(Options!$B$21*HLOOKUP(Calculations!$E$2,PARfraction!$C$3:$BC$251,PARfraction!$BD230,FALSE),0)","v":214},228]
[null,"Male 0-4",{"$f":"ROUND(Options!$B$21*HLOOKUP(Calculations!$E$2,Pop2016fraction!$C$3:$BC$251,Pop2016fraction!$BD231,FALSE),0)","v":0},{"$f":"ROUND(Options!$B$21*HLOOKUP(Calculations!$E$2,Pop2016fractionQ1!$C$3:$BC$251,Pop2016fractionQ1!$BD231,FALSE),0)","v":0},{"$f":"ROUND(Options!$B$21*HLOOKUP(Calculations!$E$2,'Pop2016fractionQ1&2'!$C$3:$BC$251,'Pop2016fractionQ1&2'!$BD231,FALSE),0)","v":0},{"$f":"ROUND(Options!$B$21*HLOOKUP(Calculations!$E$2,PARfraction!$C$3:$BC$251,PARfraction!$BD231,FALSE),0)","v":0},229]
[null,"Male 5-9",{"$f":"ROUND(Options!$B$21*HLOOKUP(Calculations!$E$2,Pop2016fraction!$C$3:$BC$251,Pop2016fraction!$BD232,FALSE),0)","v":0},{"$f":"ROUND(Options!$B$21*HLOOKUP(Calculations!$E$2,Pop2016fractionQ1!$C$3:$BC$251,Pop2016fractionQ1!$BD232,FALSE),0)","v":0},{"$f":"ROUND(Options!$B$21*HLOOKUP(Calculations!$E$2,'Pop2016fractionQ1&2'!$C$3:$BC$251,'Pop2016fractionQ1&2'!$BD232,FALSE),0)","v":0},{"$f":"ROUND(Options!$B$21*HLOOKUP(Calculations!$E$2,PARfraction!$C$3:$BC$251,PARfraction!$BD232,FALSE),0)","v":0},230]
[null,"Male 10-15",{"$f":"ROUND(Options!$B$21*HLOOKUP(Calculations!$E$2,Pop2016fraction!$C$3:$BC$251,Pop2016fraction!$BD233,FALSE),0)","v":0},{"$f":"ROUND(Options!$B$21*HLOOKUP(Calculations!$E$2,Pop2016fractionQ1!$C$3:$BC$251,Pop2016fractionQ1!$BD233,FALSE),0)","v":0},{"$f":"ROUND(Options!$B$21*HLOOKUP(Calculations!$E$2,'Pop2016fractionQ1&2'!$C$3:$BC$251,'Pop2016fractionQ1&2'!$BD233,FALSE),0)","v":0},{"$f":"ROUND(Options!$B$21*HLOOKUP(Calculations!$E$2,PARfraction!$C$3:$BC$251,PARfraction!$BD233,FALSE),0)","v":0},231]
[null,"Male 16-19",{"$f":"ROUND(Options!$B$21*HLOOKUP(Calculations!$E$2,Pop2016fraction!$C$3:$BC$251,Pop2016fraction!$BD234,FALSE),0)","v":4146},{"$f":"ROUND(Options!$B$21*HLOOKUP(Calculations!$E$2,Pop2016fractionQ1!$C$3:$BC$251,Pop2016fractionQ1!$BD234,FALSE),0)","v":0},{"$f":"ROUND(Options!$B$21*HLOOKUP(Calculations!$E$2,'Pop2016fractionQ1&2'!$C$3:$BC$251,'Pop2016fractionQ1&2'!$BD234,FALSE),0)","v":0},{"$f":"ROUND(Options!$B$21*HLOOKUP(Calculations!$E$2,PARfraction!$C$3:$BC$251,PARfraction!$BD234,FALSE),0)","v":2537},232]
[null,"Male 20-24",{"$f":"ROUND(Options!$B$21*HLOOKUP(Calculations!$E$2,Pop2016fraction!$C$3:$BC$251,Pop2016fraction!$BD235,FALSE),0)","v":5865},{"$f":"ROUND(Options!$B$21*HLOOKUP(Calculations!$E$2,Pop2016fractionQ1!$C$3:$BC$251,Pop2016fractionQ1!$BD235,FALSE),0)","v":0},{"$f":"ROUND(Options!$B$21*HLOOKUP(Calculations!$E$2,'Pop2016fractionQ1&2'!$C$3:$BC$251,'Pop2016fractionQ1&2'!$BD235,FALSE),0)","v":0},{"$f":"ROUND(Options!$B$21*HLOOKUP(Calculations!$E$2,PARfraction!$C$3:$BC$251,PARfraction!$BD235,FALSE),0)","v":3590},233]
[null,"Male 25-29",{"$f":"ROUND(Options!$B$21*HLOOKUP(Calculations!$E$2,Pop2016fraction!$C$3:$BC$251,Pop2016fraction!$BD236,FALSE),0)","v":5282},{"$f":"ROUND(Options!$B$21*HLOOKUP(Calculations!$E$2,Pop2016fractionQ1!$C$3:$BC$251,Pop2016fractionQ1!$BD236,FALSE),0)","v":0},{"$f":"ROUND(Options!$B$21*HLOOKUP(Calculations!$E$2,'Pop2016fractionQ1&2'!$C$3:$BC$251,'Pop2016fractionQ1&2'!$BD236,FALSE),0)","v":0},{"$f":"ROUND(Options!$B$21*HLOOKUP(Calculations!$E$2,PARfraction!$C$3:$BC$251,PARfraction!$BD236,FALSE),0)","v":4608},234]
[null,"Male 30-34",{"$f":"ROUND(Options!$B$21*HLOOKUP(Calculations!$E$2,Pop2016fraction!$C$3:$BC$251,Pop2016fraction!$BD237,FALSE),0)","v":4648},{"$f":"ROUND(Options!$B$21*HLOOKUP(Calculations!$E$2,Pop2016fractionQ1!$C$3:$BC$251,Pop2016fractionQ1!$BD237,FALSE),0)","v":0},{"$f":"ROUND(Options!$B$21*HLOOKUP(Calculations!$E$2,'Pop2016fractionQ1&2'!$C$3:$BC$251,'Pop2016fractionQ1&2'!$BD237,FALSE),0)","v":0},{"$f":"ROUND(Options!$B$21*HLOOKUP(Calculations!$E$2,PARfraction!$C$3:$BC$251,PARfraction!$BD237,FALSE),0)","v":4055},235]
[null,"Male 35-39",{"$f":"ROUND(Options!$B$21*HLOOKUP(Calculations!$E$2,Pop2016fraction!$C$3:$BC$251,Pop2016fraction!$BD238,FALSE),0)","v":4917},{"$f":"ROUND(Options!$B$21*HLOOKUP(Calculations!$E$2,Pop2016fractionQ1!$C$3:$BC$251,Pop2016fractionQ1!$BD238,FALSE),0)","v":0},{"$f":"ROUND(Options!$B$21*HLOOKUP(Calculations!$E$2,'Pop2016fractionQ1&2'!$C$3:$BC$251,'Pop2016fractionQ1&2'!$BD238,FALSE),0)","v":0},{"$f":"ROUND(Options!$B$21*HLOOKUP(Calculations!$E$2,PARfraction!$C$3:$BC$251,PARfraction!$BD238,FALSE),0)","v":2865},236]
[null,"Male 40-44",{"$f":"ROUND(Options!$B$21*HLOOKUP(Calculations!$E$2,Pop2016fraction!$C$3:$BC$251,Pop2016fraction!$BD239,FALSE),0)","v":5410},{"$f":"ROUND(Options!$B$21*HLOOKUP(Calculations!$E$2,Pop2016fractionQ1!$C$3:$BC$251,Pop2016fractionQ1!$BD239,FALSE),0)","v":0},{"$f":"ROUND(Options!$B$21*HLOOKUP(Calculations!$E$2,'Pop2016fractionQ1&2'!$C$3:$BC$251,'Pop2016fractionQ1&2'!$BD239,FALSE),0)","v":0},{"$f":"ROUND(Options!$B$21*HLOOKUP(Calculations!$E$2,PARfraction!$C$3:$BC$251,PARfraction!$BD239,FALSE),0)","v":3152},237]
[null,"Male 45-49",{"$f":"ROUND(Options!$B$21*HLOOKUP(Calculations!$E$2,Pop2016fraction!$C$3:$BC$251,Pop2016fraction!$BD240,FALSE),0)","v":6064},{"$f":"ROUND(Options!$B$21*HLOOKUP(Calculations!$E$2,Pop2016fractionQ1!$C$3:$BC$251,Pop2016fractionQ1!$BD240,FALSE),0)","v":0},{"$f":"ROUND(Options!$B$21*HLOOKUP(Calculations!$E$2,'Pop2016fractionQ1&2'!$C$3:$BC$251,'Pop2016fractionQ1&2'!$BD240,FALSE),0)","v":0},{"$f":"ROUND(Options!$B$21*HLOOKUP(Calculations!$E$2,PARfraction!$C$3:$BC$251,PARfraction!$BD240,FALSE),0)","v":3376},238]
[null,"Male 50-54",{"$f":"ROUND(Options!$B$21*HLOOKUP(Calculations!$E$2,Pop2016fraction!$C$3:$BC$251,Pop2016fraction!$BD241,FALSE),0)","v":6170},{"$f":"ROUND(Options!$B$21*HLOOKUP(Calculations!$E$2,Pop2016fractionQ1!$C$3:$BC$251,Pop2016fractionQ1!$BD241,FALSE),0)","v":0},{"$f":"ROUND(Options!$B$21*HLOOKUP(Calculations!$E$2,'Pop2016fractionQ1&2'!$C$3:$BC$251,'Pop2016fractionQ1&2'!$BD241,FALSE),0)","v":0},{"$f":"ROUND(Options!$B$21*HLOOKUP(Calculations!$E$2,PARfraction!$C$3:$BC$251,PARfraction!$BD241,FALSE),0)","v":3435},239]
[null,"Male 55-59",{"$f":"ROUND(Options!$B$21*HLOOKUP(Calculations!$E$2,Pop2016fraction!$C$3:$BC$251,Pop2016fraction!$BD242,FALSE),0)","v":5612},{"$f":"ROUND(Options!$B$21*HLOOKUP(Calculations!$E$2,Pop2016fractionQ1!$C$3:$BC$251,Pop2016fractionQ1!$BD242,FALSE),0)","v":0},{"$f":"ROUND(Options!$B$21*HLOOKUP(Calculations!$E$2,'Pop2016fractionQ1&2'!$C$3:$BC$251,'Pop2016fractionQ1&2'!$BD242,FALSE),0)","v":0},{"$f":"ROUND(Options!$B$21*HLOOKUP(Calculations!$E$2,PARfraction!$C$3:$BC$251,PARfraction!$BD242,FALSE),0)","v":2888},240]
[null,"Male 60-64",{"$f":"ROUND(Options!$B$21*HLOOKUP(Calculations!$E$2,Pop2016fraction!$C$3:$BC$251,Pop2016fraction!$BD243,FALSE),0)","v":4931},{"$f":"ROUND(Options!$B$21*HLOOKUP(Calculations!$E$2,Pop2016fractionQ1!$C$3:$BC$251,Pop2016fractionQ1!$BD243,FALSE),0)","v":0},{"$f":"ROUND(Options!$B$21*HLOOKUP(Calculations!$E$2,'Pop2016fractionQ1&2'!$C$3:$BC$251,'Pop2016fractionQ1&2'!$BD243,FALSE),0)","v":0},{"$f":"ROUND(Options!$B$21*HLOOKUP(Calculations!$E$2,PARfraction!$C$3:$BC$251,PARfraction!$BD243,FALSE),0)","v":2537},241]
[null,"Male 65-69",{"$f":"ROUND(Options!$B$21*HLOOKUP(Calculations!$E$2,Pop2016fraction!$C$3:$BC$251,Pop2016fraction!$BD244,FALSE),0)","v":4882},{"$f":"ROUND(Options!$B$21*HLOOKUP(Calculations!$E$2,Pop2016fractionQ1!$C$3:$BC$251,Pop2016fractionQ1!$BD244,FALSE),0)","v":0},{"$f":"ROUND(Options!$B$21*HLOOKUP(Calculations!$E$2,'Pop2016fractionQ1&2'!$C$3:$BC$251,'Pop2016fractionQ1&2'!$BD244,FALSE),0)","v":0},{"$f":"ROUND(Options!$B$21*HLOOKUP(Calculations!$E$2,PARfraction!$C$3:$BC$251,PARfraction!$BD244,FALSE),0)","v":1685},242]
[null,"Male 70-74",{"$f":"ROUND(Options!$B$21*HLOOKUP(Calculations!$E$2,Pop2016fraction!$C$3:$BC$251,Pop2016fraction!$BD245,FALSE),0)","v":3492},{"$f":"ROUND(Options!$B$21*HLOOKUP(Calculations!$E$2,Pop2016fractionQ1!$C$3:$BC$251,Pop2016fractionQ1!$BD245,FALSE),0)","v":0},{"$f":"ROUND(Options!$B$21*HLOOKUP(Calculations!$E$2,'Pop2016fractionQ1&2'!$C$3:$BC$251,'Pop2016fractionQ1&2'!$BD245,FALSE),0)","v":0},{"$f":"ROUND(Options!$B$21*HLOOKUP(Calculations!$E$2,PARfraction!$C$3:$BC$251,PARfraction!$BD245,FALSE),0)","v":1205},243]
[null,"Male 75-79",{"$f":"ROUND(Options!$B$21*HLOOKUP(Calculations!$E$2,Pop2016fraction!$C$3:$BC$251,Pop2016fraction!$BD246,FALSE),0)","v":2538},{"$f":"ROUND(Options!$B$21*HLOOKUP(Calculations!$E$2,Pop2016fractionQ1!$C$3:$BC$251,Pop2016fractionQ1!$BD246,FALSE),0)","v":0},{"$f":"ROUND(Options!$B$21*HLOOKUP(Calculations!$E$2,'Pop2016fractionQ1&2'!$C$3:$BC$251,'Pop2016fractionQ1&2'!$BD246,FALSE),0)","v":0},{"$f":"ROUND(Options!$B$21*HLOOKUP(Calculations!$E$2,PARfraction!$C$3:$BC$251,PARfraction!$BD246,FALSE),0)","v":460},244]
[null,"Male 80-84",{"$f":"ROUND(Options!$B$21*HLOOKUP(Calculations!$E$2,Pop2016fraction!$C$3:$BC$251,Pop2016fraction!$BD247,FALSE),0)","v":1822},{"$f":"ROUND(Options!$B$21*HLOOKUP(Calculations!$E$2,Pop2016fractionQ1!$C$3:$BC$251,Pop2016fractionQ1!$BD247,FALSE),0)","v":0},{"$f":"ROUND(Options!$B$21*HLOOKUP(Calculations!$E$2,'Pop2016fractionQ1&2'!$C$3:$BC$251,'Pop2016fractionQ1&2'!$BD247,FALSE),0)","v":0},{"$f":"ROUND(Options!$B$21*HLOOKUP(Calculations!$E$2,PARfraction!$C$3:$BC$251,PARfraction!$BD247,FALSE),0)","v":330},245]
[null,"Male 85-89",{"$f":"ROUND(Options!$B$21*HLOOKUP(Calculations!$E$2,Pop2016fraction!$C$3:$BC$251,Pop2016fraction!$BD248,FALSE),0)","v":935},{"$f":"ROUND(Options!$B$21*HLOOKUP(Calculations!$E$2,Pop2016fractionQ1!$C$3:$BC$251,Pop2016fractionQ1!$BD248,FALSE),0)","v":0},{"$f":"ROUND(Options!$B$21*HLOOKUP(Calculations!$E$2,'Pop2016fractionQ1&2'!$C$3:$BC$251,'Pop2016fractionQ1&2'!$BD248,FALSE),0)","v":0},{"$f":"ROUND(Options!$B$21*HLOOKUP(Calculations!$E$2,PARfraction!$C$3:$BC$251,PARfraction!$BD248,FALSE),0)","v":169},246]
[null,"Male 90+",{"$f":"ROUND(Options!$B$21*HLOOKUP(Calculations!$E$2,Pop2016fraction!$C$3:$BC$251,Pop2016fraction!$BD249,FALSE),0)","v":413},{"$f":"ROUND(Options!$B$21*HLOOKUP(Calculations!$E$2,Pop2016fractionQ1!$C$3:$BC$251,Pop2016fractionQ1!$BD249,FALSE),0)","v":0},{"$f":"ROUND(Options!$B$21*HLOOKUP(Calculations!$E$2,'Pop2016fractionQ1&2'!$C$3:$BC$251,'Pop2016fractionQ1&2'!$BD249,FALSE),0)","v":0},{"$f":"ROUND(Options!$B$21*HLOOKUP(Calculations!$E$2,PARfraction!$C$3:$BC$251,PARfraction!$BD249,FALSE),0)","v":75},247]